{"text_format":"1","workbook":"xlsx","n_sheets":9,"sheets":["Blank - Request Form","JET","CICMP","CICSA","UGC","ASI","Foundation","Macro Use Only","Expense Transfer Justification"],"not_rendered":{"charts":0,"images":2,"macros":1,"external_links":0,"defined_names":30,"comments":1,"pivot_tables":0},"unopened":[],"bounds":{"document_bytes":16777216,"sheet_cells":100000,"rows_first":2000,"rows_last":500,"rows_between":2000,"halvings":0,"cell_chars":16384,"cell_head_chars":4096},"cells_cut":0,"cells_raw":0,"read":"whole","date_system":"1900"}

{"sheet":"Blank - Request Form","index":0,"n_rows":462,"n_cols":20,"rows_kept":462,"cut":false,"hidden":false,"merged":[[246,1,249,1],[259,1,261,1],[282,1,284,1],[282,4,282,5],[283,4,283,5],[284,4,284,5],[264,4,264,5],[265,4,265,5],[266,4,266,5],[267,4,267,5],[268,4,268,5],[269,4,269,5],[270,4,270,5],[271,4,271,5],[272,4,272,5],[24,0,25,0],[44,0,46,0],[23,12,23,13],[24,5,24,6],[25,5,25,6],[26,5,26,6],[27,5,27,6],[28,5,28,6],[29,5,29,6],[414,4,414,5],[437,4,437,5],[425,4,425,5],[426,4,426,5],[427,4,427,5],[428,4,428,5],[429,4,429,5],[430,4,430,5],[431,4,431,5],[432,4,432,5],[433,4,433,5],[434,4,434,5],[415,4,415,5],[416,4,416,5],[435,4,435,5],[436,4,436,5],[417,4,417,5],[418,4,418,5],[419,4,419,5],[420,4,420,5],[421,4,421,5],[422,4,422,5],[423,4,423,5],[424,4,424,5],[408,4,408,5],[409,4,409,5],[410,4,410,5],[411,4,411,5],[412,4,412,5],[413,4,413,5],[390,4,390,5],[391,4,391,5],[392,4,392,5],[393,4,393,5],[394,4,394,5],[395,4,395,5],[396,4,396,5],[397,4,397,5],[398,4,398,5],[399,4,399,5],[400,4,400,5],[401,4,401,5],[402,4,402,5],[403,4,403,5],[404,4,404,5],[405,4,405,5],[406,4,406,5],[407,4,407,5],[381,4,381,5],[382,4,382,5],[383,4,383,5],[384,4,384,5],[385,4,385,5],[386,4,386,5],[387,4,387,5],[388,4,388,5],[389,4,389,5],[372,4,372,5],[373,4,373,5],[374,4,374,5],[375,4,375,5],[376,4,376,5],[377,4,377,5],[378,4,378,5],[379,4,379,5],[380,4,380,5],[363,4,363,5],[364,4,364,5],[365,4,365,5],[366,4,366,5],[367,4,367,5],[368,4,368,5],[369,4,369,5],[370,4,370,5],[371,4,371,5],[354,4,354,5],[355,4,355,5],[356,4,356,5],[357,4,357,5],[358,4,358,5],[359,4,359,5],[360,4,360,5],[361,4,361,5],[362,4,362,5],[345,4,345,5],[346,4,346,5],[347,4,347,5],[348,4,348,5],[349,4,349,5],[350,4,350,5],[351,4,351,5],[352,4,352,5],[353,4,353,5],[336,4,336,5],[337,4,337,5],[338,4,338,5],[339,4,339,5],[340,4,340,5],[341,4,341,5],[342,4,342,5],[343,4,343,5],[344,4,344,5],[327,4,327,5],[328,4,328,5],[329,4,329,5],[330,4,330,5],[331,4,331,5],[332,4,332,5],[333,4,333,5],[334,4,334,5],[335,4,335,5],[318,4,318,5],[319,4,319,5],[320,4,320,5],[321,4,321,5],[322,4,322,5],[323,4,323,5],[324,4,324,5],[325,4,325,5],[326,4,326,5],[309,4,309,5],[310,4,310,5],[311,4,311,5],[312,4,312,5],[313,4,313,5],[314,4,314,5],[315,4,315,5],[316,4,316,5],[317,4,317,5],[300,4,300,5],[301,4,301,5],[302,4,302,5],[303,4,303,5],[304,4,304,5],[305,4,305,5],[306,4,306,5],[307,4,307,5],[308,4,308,5],[291,4,291,5],[292,4,292,5],[293,4,293,5],[294,4,294,5],[295,4,295,5],[296,4,296,5],[297,4,297,5],[298,4,298,5],[299,4,299,5],[285,4,285,5],[286,4,286,5],[287,4,287,5],[288,4,288,5],[289,4,289,5],[290,4,290,5],[273,4,273,5],[274,4,274,5],[275,4,275,5],[276,4,276,5],[277,4,277,5],[278,4,278,5],[279,4,279,5],[280,4,280,5],[281,4,281,5],[430,13,430,17],[431,13,431,17],[432,13,432,17],[433,13,433,17],[434,13,434,17],[245,4,245,5],[246,4,246,5],[247,4,247,5],[248,4,248,5],[249,4,249,5],[250,4,250,5],[251,4,251,5],[252,4,252,5],[253,4,253,5],[254,4,254,5],[255,4,255,5],[256,4,256,5],[257,4,257,5],[258,4,258,5],[259,4,259,5],[260,4,260,5],[261,4,261,5],[262,4,262,5],[263,4,263,5],[417,13,417,17],[418,13,418,17],[419,13,419,17],[420,13,420,17],[421,13,421,17],[426,13,426,17],[427,13,427,17],[428,13,428,17],[429,13,429,17],[400,13,400,17],[401,13,401,17],[402,13,402,17],[403,13,403,17],[404,13,404,17],[413,13,413,17],[414,13,414,17],[415,13,415,17],[416,13,416,17],[387,13,387,17],[388,13,388,17],[389,13,389,17],[390,13,390,17],[391,13,391,17],[396,13,396,17],[397,13,397,17],[398,13,398,17],[399,13,399,17],[370,13,370,17],[371,13,371,17],[372,13,372,17],[373,13,373,17],[374,13,374,17],[383,13,383,17],[384,13,384,17],[385,13,385,17],[386,13,386,17],[357,13,357,17],[358,13,358,17],[359,13,359,17],[360,13,360,17],[361,13,361,17],[366,13,366,17],[367,13,367,17],[368,13,368,17],[369,13,369,17],[336,13,336,17],[337,13,337,17],[338,13,338,17],[339,13,339,17],[340,13,340,17],[341,13,341,17],[342,13,342,17],[343,13,343,17],[344,13,344,17],[323,13,323,17],[324,13,324,17],[325,13,325,17],[326,13,326,17],[327,13,327,17],[328,13,328,17],[329,13,329,17],[330,13,330,17],[331,13,331,17],[293,13,293,17],[294,13,294,17],[295,13,295,17],[296,13,296,17],[297,13,297,17],[298,13,298,17],[299,13,299,17],[300,13,300,17],[301,13,301,17],[278,13,278,17],[279,13,279,17],[280,13,280,17],[281,13,281,17],[282,13,282,17],[283,13,283,17],[284,13,284,17],[285,13,285,17],[286,13,286,17],[265,13,265,17],[266,13,266,17],[267,13,267,17],[268,13,268,17],[269,13,269,17],[270,13,270,17],[271,13,271,17],[272,13,272,17],[273,13,273,17],[247,11,247,12],[248,11,248,12],[249,11,249,12],[250,11,250,12],[251,11,251,12],[252,11,252,12],[253,11,253,12],[238,13,238,17],[239,13,239,17],[240,13,240,17],[241,13,241,17],[242,13,242,17],[243,13,243,17],[244,13,244,17],[245,13,245,17],[246,13,246,17],[247,13,247,17],[248,13,248,17],[249,13,249,17],[250,13,250,17],[251,13,251,17],[252,13,252,17],[253,13,253,17],[432,11,432,12],[433,11,433,12],[434,11,434,12],[435,11,435,12],[436,11,436,12],[437,11,437,12],[237,4,237,5],[237,11,237,12],[238,11,238,12],[239,11,239,12],[240,11,240,12],[241,11,241,12],[242,11,242,12],[243,11,243,12],[244,11,244,12],[239,4,239,5],[240,4,240,5],[241,4,241,5],[242,4,242,5],[243,4,243,5],[244,4,244,5],[238,4,238,5],[245,11,245,12],[246,11,246,12],[414,11,414,12],[415,11,415,12],[416,11,416,12],[417,11,417,12],[435,13,435,17],[436,13,436,17],[437,13,437,17],[419,11,419,12],[420,11,420,12],[421,11,421,12],[422,11,422,12],[423,11,423,12],[424,11,424,12],[425,11,425,12],[426,11,426,12],[427,11,427,12],[428,11,428,12],[422,13,422,17],[423,13,423,17],[424,13,424,17],[425,13,425,17],[429,11,429,12],[430,11,430,12],[431,11,431,12],[418,11,418,12],[409,13,409,17],[410,13,410,17],[411,13,411,17],[412,13,412,17],[399,11,399,12],[400,11,400,12],[401,11,401,12],[402,11,402,12],[403,11,403,12],[404,11,404,12],[405,11,405,12],[406,11,406,12],[407,11,407,12],[408,11,408,12],[405,13,405,17],[406,13,406,17],[407,13,407,17],[408,13,408,17],[409,11,409,12],[410,11,410,12],[411,11,411,12],[412,11,412,12],[413,11,413,12],[389,11,389,12],[390,11,390,12],[391,11,391,12],[392,11,392,12],[393,11,393,12],[394,11,394,12],[395,11,395,12],[396,11,396,12],[397,11,397,12],[373,11,373,12],[374,11,374,12],[375,11,375,12],[376,11,376,12],[377,11,377,12],[398,11,398,12],[392,13,392,17],[393,13,393,17],[394,13,394,17],[395,13,395,17],[379,11,379,12],[380,11,380,12],[381,11,381,12],[382,11,382,12],[383,11,383,12],[384,11,384,12],[385,11,385,12],[386,11,386,12],[387,11,387,12],[388,11,388,12],[379,13,379,17],[380,13,380,17],[381,13,381,17],[382,13,382,17],[357,11,357,12],[378,11,378,12],[375,13,375,17],[376,13,376,17],[377,13,377,17],[378,13,378,17],[359,11,359,12],[360,11,360,12],[361,11,361,12],[362,11,362,12],[363,11,363,12],[364,11,364,12],[365,11,365,12],[366,11,366,12],[367,11,367,12],[368,11,368,12],[362,13,362,17],[363,13,363,17],[364,13,364,17],[365,13,365,17],[369,11,369,12],[370,11,370,12],[371,11,371,12],[372,11,372,12],[348,13,348,17],[349,11,349,12],[350,11,350,12],[351,11,351,12],[352,11,352,12],[353,11,353,12],[354,11,354,12],[355,11,355,12],[356,11,356,12],[353,13,353,17],[354,13,354,17],[355,13,355,17],[356,13,356,17],[332,11,332,12],[333,11,333,12],[334,11,334,12],[335,11,335,12],[336,11,336,12],[337,11,337,12],[358,11,358,12],[349,13,349,17],[350,13,350,17],[351,13,351,17],[352,13,352,17],[339,11,339,12],[340,11,340,12],[341,11,341,12],[342,11,342,12],[343,11,343,12],[344,11,344,12],[345,11,345,12],[346,11,346,12],[347,11,347,12],[348,11,348,12],[345,13,345,17],[346,13,346,17],[347,13,347,17],[316,11,316,12],[317,11,317,12],[338,11,338,12],[332,13,332,17],[333,13,333,17],[334,13,334,17],[335,13,335,17],[319,11,319,12],[320,11,320,12],[321,11,321,12],[322,11,322,12],[323,11,323,12],[324,11,324,12],[325,11,325,12],[326,11,326,12],[327,11,327,12],[328,11,328,12],[319,13,319,17],[320,13,320,17],[321,13,321,17],[322,13,322,17],[329,11,329,12],[330,11,330,12],[331,11,331,12],[304,13,304,17],[305,13,305,17],[309,11,309,12],[310,11,310,12],[311,11,311,12],[312,11,312,12],[313,11,313,12],[314,11,314,12],[315,11,315,12],[306,13,306,17],[307,13,307,17],[308,13,308,17],[309,13,309,17],[310,13,310,17],[311,13,311,17],[312,13,312,17],[313,13,313,17],[314,13,314,17],[291,11,291,12],[292,11,292,12],[293,11,293,12],[294,11,294,12],[295,11,295,12],[296,11,296,12],[297,11,297,12],[318,11,318,12],[315,13,315,17],[316,13,316,17],[317,13,317,17],[318,13,318,17],[299,11,299,12],[300,11,300,12],[301,11,301,12],[302,11,302,12],[303,11,303,12],[304,11,304,12],[305,11,305,12],[306,11,306,12],[307,11,307,12],[308,11,308,12],[302,13,302,17],[303,13,303,17],[273,11,273,12],[274,11,274,12],[275,11,275,12],[276,11,276,12],[277,11,277,12],[298,11,298,12],[289,13,289,17],[290,13,290,17],[291,13,291,17],[292,13,292,17],[279,11,279,12],[280,11,280,12],[281,11,281,12],[282,11,282,12],[283,11,283,12],[284,11,284,12],[285,11,285,12],[286,11,286,12],[287,11,287,12],[288,11,288,12],[287,13,287,17],[288,13,288,17],[289,11,289,12],[290,11,290,12],[278,11,278,12],[274,13,274,17],[275,13,275,17],[276,13,276,17],[277,13,277,17],[259,11,259,12],[260,11,260,12],[261,11,261,12],[262,11,262,12],[263,11,263,12],[264,11,264,12],[265,11,265,12],[266,11,266,12],[267,11,267,12],[268,11,268,12],[259,13,259,17],[260,13,260,17],[261,13,261,17],[262,13,262,17],[263,13,263,17],[269,11,269,12],[270,11,270,12],[271,11,271,12],[272,11,272,12],[254,11,254,12],[255,11,255,12],[256,11,256,12],[257,11,257,12],[258,11,258,12],[256,13,256,17],[257,13,257,17],[258,13,258,17],[264,13,264,17],[254,13,254,17],[255,13,255,17],[4,5,4,6],[5,5,5,6],[6,5,6,6],[15,5,15,17],[17,5,17,17],[10,5,10,7],[11,5,11,7],[10,10,10,12],[11,10,11,12],[60,1,61,1],[57,0,58,0],[57,1,58,1],[54,0,55,0],[54,1,55,1],[232,0,233,0],[232,1,233,1],[78,0,79,0],[78,1,79,1],[75,0,76,0],[75,1,76,1],[72,0,73,0],[72,1,73,1],[69,0,70,0],[69,1,70,1],[438,11,438,12],[439,11,439,12],[263,1,265,1],[5,1,6,1],[10,1,11,1],[238,1,240,1],[242,1,244,1],[10,0,11,0],[51,0,52,0],[51,1,52,1],[48,0,49,0],[48,1,49,1],[42,0,43,0],[36,0,37,0],[36,1,37,1],[39,0,40,0],[39,1,40,1],[42,1,43,1],[45,1,46,1],[66,0,67,0],[66,1,67,1],[63,0,64,0],[63,1,64,1],[60,0,61,0]]}
["RET Instructions","JET Instructions",null,{"$f":"IF($F$6=$F$7,\"Journal Entry Transfer (JET) Request Form\",\"RET Request Form\")","v":"Journal Entry Transfer (JET) Request Form"},null,null,null,null,null,"Rev. (5/20) LC"]
["Log # will now be generated by Fiscal Services when uploading to PeopleSoft.",null,null,null,null,null,null,null,null,null,null,"Log # "]
["Fill out unlocked cells, highlighted in \"grey\" for convenience","Fill out unlocked cells, highlighted in 'yellow' for convenience",null,{"$f":"IF($F$6=$F$7,\"JET Transfer Information\",\"RET Transfer Information\")","v":"JET Transfer Information"},null,null,null,null,null,null,null,null,null,null,null,null,null,null,"."]
[null,"Macros must be enabled"]
["Enter the date (usually today's date) >","Enter the date (usually today's date) >",null,"Request Date"]
["Select \"Transfer From\" or \"Due To\" entity > ","\"Transfer From\" and \"Transfer To\" entity should always be the same >",null,"Transfer From Entity",null,"CICMP"]
["Select \"Transfer To\" or \"Due From\" entity > ",null,null,"Transfer To Entity",null,"CICMP"]
[]
[null,"Log # will be issued after you submit JET and is for tracking purposes only >",null,{"$f":"IF($F$6=$F$7,\"JET Contact Information\",\"RET Contact Information\")","v":"JET Contact Information"}]
[null,null,null,null,null,"Name",null,null,"Telephone","Dept","Email"]
["Enter requestor name in case of questions and additional contact if RET needs to be emailed to another party >","Enter requestor name in case of questions and additional contact if JET needs to be emailed to another party >",null,{"$f":"IF($F$6=$F$7,\"JET Requestor/Contact\",\"RET Requestor/Contact\")","v":"JET Requestor/Contact"}]
[null,null,null,"Additional Contact"]
[]
[null,null,null,{"$f":"IF($F$6=$F$7,\"JET Subject Detail\",\"RET Subject Detail\")","v":"JET Subject Detail"}]
[]
["A short description of the RET, will appear in the email to CIJET inbox >","A short description of the JET, will appear in the email to JET inbox >",null,{"$f":"IF($F$6=$F$7,\"JET Subject Line\",\"RET Subject Line\")","v":"JET Subject Line"},null,"(Enter a short description of the transaction)",null,null,null,null,null,null,null,null,null,null,null,null,{"$f":"IF(LEN(F16)=0,\"Remaining Characters 100\",\"Remaining Characters \"& (100-LEN(F16)))","v":"Remaining Characters 54"}]
[]
["Explain why the RET is being submitted -- \nInclude the following:\n•\tData Warehouse Report confirming original coding\n•\tOriginal source document \n•\tEnsure proper SDA if transferring funds/departments","Explain why the JET is being submitted -- \nInclude the following:\n•\tData Warehouse Report confirming original coding\n•\tOriginal source document \n•\tEnsure proper SDA if transferring funds/departments",null,{"$f":"IF($F$6=$F$7,\"JET Detailed Description\",\"RET Detailed Description\")","v":"JET Detailed Description"},null,"(Explain why the form is being submitted -- \nInclude the following:\n•\tData Warehouse Report confirming original coding\n•\tOriginal source document \n•\tEnsure proper Signature Delegation of Authority if transferring funds/departments)",null,null,null,null,null,null,null,null,null,null,null,null,{"$f":"IF(LEN(F18)=0,\"Remaining Character 500\",\"Remaining Characters \"& (500-LEN(F18)))","v":"Remaining Characters 269"}]
[]
[]
[null,null,null,"RET Amount Detail",null,null,null,null,"RET Transfer Accounts"]
[]
[null,null,null,"Charge Detail",null,null,null,null,"Transfer From/ Due To (Credit)",null,null,null,"Transfer To/ Due From (Debit)"]
[null,null,null,null,null,null,null,null,"Description",null,"Account",null,"Description",null,null,"Account"]
["Charge Detail will auto-populate once the RET Journal Entry is completed >",null,null,"Associated Students","CIASI",{"$f":"(IF(E25=TransferFrom, -SUMPRODUCT(ABS($J$35:$J$235)),IF(E25=TransferTo, SUMPRODUCT(ABS($S$35:$S$235)),0)))/2","v":0},null,"CIASI","Due To ASI",null,201819,"CIASI","Due From ASI",null,null,103819]
[null,null,null,"CI - Campus","CICMP",{"$f":"(IF(E26=TransferFrom, -SUMPRODUCT(ABS($J$35:$J$235)),IF(E26=TransferTo, SUMPRODUCT(ABS($S$35:$S$235)),0)))/2","v":0},null,"CICMP","Due To CSUCI - Campus",null,201823,"CICMP","Due From CSUCI - Campus",null,null,103823]
["Transfer From = Credit (-) >",null,null,"Foundation","CIFDN",{"$f":"(IF(E27=TransferFrom, -SUMPRODUCT(ABS($J$35:$J$235)),IF(E27=TransferTo, SUMPRODUCT(ABS($S$35:$S$235)),0)))/2","v":0},null,"CIFDN","Due to Foundation",null,201820,"CIFDN","Due From Foundation",null,null,103820]
["Transfer To = Debit (+) >",null,null,"Site Authority","CICSA",{"$f":"(IF(E28=TransferFrom, -SUMPRODUCT(ABS($J$35:$J$235)),IF(E28=TransferTo, SUMPRODUCT(ABS($S$35:$S$235)),0)))/2","v":0},null,"CICSA","Due to Site/Finance Authority",null,201822,"CICSA","Due From Site/Finance Authority",null,null,103822]
[null,null,null,"University Glen","CIUGC",{"$f":"(IF(E29=TransferFrom, -SUMPRODUCT(ABS($J$35:$J$235)),IF(E29=TransferTo, SUMPRODUCT(ABS($S$35:$S$235)),0)))/2","v":0},null,"CIUGC","Due To UGC",null,201821,"CIUGC","Due From UGC",null,null,103821]
["Total should be zero >",null,null,null,"Total",{"$f":"ROUND(SUM(F25:F29),2)","v":0}]
[]
[null,null,null,{"$f":"IF($F$6=$F$7,\"JET Journal Entry\",\"RET Journal Entry\")","v":"JET Journal Entry"}]
[null,null,null,"Transfer From Entity -",{"$f":"+F6","v":"CICMP"},null,null,null,"Total does not net to zero:",{"$f":"J236","v":0},null,null,"Transfer To Entity -",{"$f":"+F7","v":"CICMP"},null,null,null,"Total does not net to zero:",{"$f":"S236","v":0}]
[null,null,null,"Account","Fund","Dept","Program","Class","Project","Amount","Line Description (Maximum 30 Characters)",null,"Account","Fund","Dept","Program","Class","Project","Amount","Line Description (Maximum 30 Characters)"]
["Enter two (2) Journal Entries >"]
[]
["The first JE is for the \"Transfer From\" entity, and the second JE is for the \"Transfer To\" entity >"]
[]
[]
["Use Transfer From/Transfer To accounts as highlighted in the RET Transfer Accounts section >"]
[]
[]
["Line description will appear on Data Warehouse reports, be specific >"]
[]
["Account = 5 numeric digits; Fund = 5 alpha/numeric digits; Dept = 3 or 6 alpha/numeric digits; Prog =  5 alpha/numeric digits; Class =  5 alpha/numeric digits; and Project =  5 alpha/numeric digits >"]
[]
[]
[]
["* If additional lines are needed, please click the \"Show/Hide\" page button below"]
[]
[]
[]
[]
[]
[]
[]
[]
[]
[]
[]
[]
[]
[]
[]
[]
[]
[]
[]
[]
[]
[]
[]
[]
[]
[]
[]
[]
[]
[]
[]
[]
[]
[]
[]
[]
[]
[]
[]
[]
[]
[]
[]
[]
[]
[]
[]
[]
[]
[]
[]
[]
[]
[]
[]
[]
[]
[]
[]
[]
[]
[]
[]
[]
[]
[]
[]
[]
[]
[]
[]
[]
[]
[]
[]
[]
[]
[]
[]
[]
[]
[]
[]
[]
[]
[]
[]
[]
[]
[]
[]
[]
[]
[]
[]
[]
[]
[]
[]
[]
[]
[]
[]
[]
[]
[]
[]
[]
[]
[]
[]
[]
[]
[]
[]
[]
[]
[]
[]
[]
[]
[]
[]
[]
[]
[]
[]
[]
[]
[]
[]
[]
[]
[]
[]
[]
[]
[]
[]
[]
[]
[]
[]
[]
[]
[]
[]
[]
[]
[]
[]
[]
[]
[]
[]
[]
[]
[]
[]
[]
[]
[]
[]
[]
[]
[]
[]
[]
[]
[]
[]
[]
[]
[]
[]
[]
[]
[]
[]
[]
[]
[]
[]
[]
[]
[]
["Total must equal zero >",null,null,null,null,null,null,null,"Total",{"$f":"ROUND(SUM(J35:J235),2)","v":0},null,null,null,null,null,null,null,"Total",{"$f":"ROUND(SUM(S35:S235),2)","v":0}]
[null,null,null,null,null,null,null,null,null,{"$f":"SUMIF(J35:J236,\">0\")","v":0},null,"Total does not net to zero:",{"$f":"L439","v":0}]
[null,null,null,"Original Transaction Date","Account",null,"Fund","Dept","Program","Class","Project (Grants Only)","Amount",null,"Line Description (Maximum 30 Characters)"]
[null,"If correcting an expense error = offset the expense with a credit (-) and debit (+) the correct expense  ",1,null,null,null,null,null,null,null,null,null,null,null,null,null,null,null,{"$f":"IF(LEN(N239)=0,\"Remaining Characters 30\",\"Remaining Characters \"& (30-LEN(N239)))","v":"Remaining Characters 30"}]
[null,null,2,null,null,null,null,null,null,null,null,null,null,null,null,null,null,null,{"$f":"IF(LEN(N240)=0,\"Remaining Characters 30\",\"Remaining Characters \"& (30-LEN(N240)))","v":"Remaining Characters 30"}]
[null,null,3,null,null,null,null,null,null,null,null,null,null,null,null,null,null,null,"Remaining Characters 30"]
[null,null,4,null,null,null,null,null,null,null,null,null,null,null,null,null,null,null,"Remaining Characters 30"]
[null,"If correcting a revenue error = offset the revenue with a debit (+) and credit (-) the correct revenue",5,null,null,null,null,null,null,null,null,null,null,null,null,null,null,null,"Remaining Characters 30"]
[null,null,6,null,null,null,null,null,null,null,null,null,null,null,null,null,null,null,"Remaining Characters 30"]
[null,null,7,null,null,null,null,null,null,null,null,null,null,null,null,null,null,null,"Remaining Characters 30"]
[null,null,8,null,null,null,null,null,null,null,null,null,null,null,null,null,null,null,"Remaining Characters 30"]
[null,"If original transaction date is greater than 90 days compared to the request date, fill out Expense Transfer Justification",9,null,null,null,null,null,null,null,null,null,null,null,null,null,null,null,"Remaining Characters 30"]
[null,null,10,null,null,null,null,null,null,null,null,null,null,null,null,null,null,null,"Remaining Characters 30"]
[null,null,11,null,null,null,null,null,null,null,null,null,null,null,null,null,null,null,"Remaining Characters 30"]
[null,null,12,null,null,null,null,null,null,null,null,null,null,null,null,null,null,null,"Remaining Characters 30"]
[null,null,13,null,null,null,null,null,null,null,null,null,null,null,null,null,null,null,"Remaining Characters 30"]
[null,"Account = 6 numeric digits",14,null,null,null,null,null,null,null,null,null,null,null,null,null,null,null,"Remaining Characters 30"]
[null,"Fund = 5 alpha/numeric digits",15,null,null,null,null,null,null,null,null,null,null,null,null,null,null,null,"Remaining Characters 30"]
[null,"Dept = 3 or 6 alpha/numeric digits",16,null,null,null,null,null,null,null,null,null,null,null,null,null,null,null,"Remaining Characters 30"]
[null,"Program =  5 alpha/numeric digits",17,null,null,null,null,null,null,null,null,null,null,null,null,null,null,null,"Remaining Characters 30"]
[null,"Class =  5 alpha/numeric digits",18,null,null,null,null,null,null,null,null,null,null,null,null,null,null,null,"Remaining Characters 30"]
[null,"Project =  5 alpha/numeric digits",19,null,null,null,null,null,null,null,null,null,null,null,null,null,null,null,"Remaining Characters 30"]
[null,null,20,null,null,null,null,null,null,null,null,null,null,null,null,null,null,null,"Remaining Characters 30"]
[null,null,21,null,null,null,null,null,null,null,null,null,null,null,null,null,null,null,"Remaining Characters 30"]
[null,"* See the JET Process Guide for a more detailed description of how to process accounting transactions",22,null,null,null,null,null,null,null,null,null,null,null,null,null,null,null,"Remaining Characters 30"]
[null,null,23,null,null,null,null,null,null,null,null,null,null,null,null,null,null,null,"Remaining Characters 30"]
[null,null,24,null,null,null,null,null,null,null,null,null,null,null,null,null,null,null,"Remaining Characters 30"]
[null,null,25,null,null,null,null,null,null,null,null,null,null,null,null,null,null,null,"Remaining Characters 30"]
[null,null,26,null,null,null,null,null,null,null,null,null,null,null,null,null,null,null,"Remaining Characters 30"]
[null,null,27,null,null,null,null,null,null,null,null,null,null,null,null,null,null,null,"Remaining Characters 30"]
[null,null,28,null,null,null,null,null,null,null,null,null,null,null,null,null,null,null,"Remaining Characters 30"]
[null,null,29,null,null,null,null,null,null,null,null,null,null,null,null,null,null,null,"Remaining Characters 30"]
[null,null,30,null,null,null,null,null,null,null,null,null,null,null,null,null,null,null,"Remaining Characters 30"]
[null,null,31,null,null,null,null,null,null,null,null,null,null,null,null,null,null,null,"Remaining Characters 30"]
[null,null,32,null,null,null,null,null,null,null,null,null,null,null,null,null,null,null,"Remaining Characters 30"]
[null,null,33,null,null,null,null,null,null,null,null,null,null,null,null,null,null,null,"Remaining Characters 30"]
[null,null,34,null,null,null,null,null,null,null,null,null,null,null,null,null,null,null,"Remaining Characters 30"]
[null,null,35,null,null,null,null,null,null,null,null,null,null,null,null,null,null,null,"Remaining Characters 30"]
[null,null,36,null,null,null,null,null,null,null,null,null,null,null,null,null,null,null,"Remaining Characters 30"]
[null,null,37,null,null,null,null,null,null,null,null,null,null,null,null,null,null,null,"Remaining Characters 30"]
[null,null,38,null,null,null,null,null,null,null,null,null,null,null,null,null,null,null,"Remaining Characters 30"]
[null,null,39,null,null,null,null,null,null,null,null,null,null,null,null,null,null,null,"Remaining Characters 30"]
[null,null,40,null,null,null,null,null,null,null,null,null,null,null,null,null,null,null,"Remaining Characters 30"]
[null,null,41,null,null,null,null,null,null,null,null,null,null,null,null,null,null,null,"Remaining Characters 30"]
[null,null,42,null,null,null,null,null,null,null,null,null,null,null,null,null,null,null,"Remaining Characters 30"]
[null,null,43,null,null,null,null,null,null,null,null,null,null,null,null,null,null,null,"Remaining Characters 30"]
[null,null,44,null,null,null,null,null,null,null,null,null,null,null,null,null,null,null,"Remaining Characters 30"]
[null,"If additional lines are needed, please click the \"Show/Hide\" page buttons below",45,null,null,null,null,null,null,null,null,null,null,null,null,null,null,null,"Remaining Characters 30"]
[null,null,46,null,null,null,null,null,null,null,null,null,null,null,null,null,null,null,"Remaining Characters 30"]
[null,null,47,null,null,null,null,null,null,null,null,null,null,null,null,null,null,null,"Remaining Characters 30"]
[null,null,48,null,null,null,null,null,null,null,null,null,null,null,null,null,null,null,"Remaining Characters 30"]
[null,null,49,null,null,null,null,null,null,null,null,null,null,null,null,null,null,null,"Remaining Characters 30"]
[null,null,50,null,null,null,null,null,null,null,null,null,null,null,null,null,null,null,"Remaining Characters 30"]
[null,null,51,null,null,null,null,null,null,null,null,null,null,null,null,null,null,null,"Remaining Characters 30"]
[null,null,52,null,null,null,null,null,null,null,null,null,null,null,null,null,null,null,"Remaining Characters 30"]
[null,null,53,null,null,null,null,null,null,null,null,null,null,null,null,null,null,null,"Remaining Characters 30"]
[null,null,54,null,null,null,null,null,null,null,null,null,null,null,null,null,null,null,"Remaining Characters 30"]
[null,null,55,null,null,null,null,null,null,null,null,null,null,null,null,null,null,null,"Remaining Characters 30"]
[null,null,56,null,null,null,null,null,null,null,null,null,null,null,null,null,null,null,"Remaining Characters 30"]
[null,null,57,null,null,null,null,null,null,null,null,null,null,null,null,null,null,null,"Remaining Characters 30"]
[null,null,58,null,null,null,null,null,null,null,null,null,null,null,null,null,null,null,"Remaining Characters 30"]
[null,null,59,null,null,null,null,null,null,null,null,null,null,null,null,null,null,null,"Remaining Characters 30"]
[null,null,60,null,null,null,null,null,null,null,null,null,null,null,null,null,null,null,"Remaining Characters 30"]
[null,null,61,null,null,null,null,null,null,null,null,null,null,null,null,null,null,null,"Remaining Characters 30"]
[null,null,62,null,null,null,null,null,null,null,null,null,null,null,null,null,null,null,"Remaining Characters 30"]
[null,null,63,null,null,null,null,null,null,null,null,null,null,null,null,null,null,null,"Remaining Characters 30"]
[null,null,64,null,null,null,null,null,null,null,null,null,null,null,null,null,null,null,"Remaining Characters 30"]
[null,null,65,null,null,null,null,null,null,null,null,null,null,null,null,null,null,null,"Remaining Characters 30"]
[null,null,66,null,null,null,null,null,null,null,null,null,null,null,null,null,null,null,{"$f":"IF(LEN(N304)=0,\"Remaining Characters 30\",\"Remaining Characters \"& (30-LEN(N304)))","v":"Remaining Characters 30"}]
[null,null,67,null,null,null,null,null,null,null,null,null,null,null,null,null,null,null,"Remaining Characters 30"]
[null,null,68,null,null,null,null,null,null,null,null,null,null,null,null,null,null,null,"Remaining Characters 30"]
[null,null,69,null,null,null,null,null,null,null,null,null,null,null,null,null,null,null,"Remaining Characters 30"]
[null,null,70,null,null,null,null,null,null,null,null,null,null,null,null,null,null,null,"Remaining Characters 30"]
[null,null,71,null,null,null,null,null,null,null,null,null,null,null,null,null,null,null,"Remaining Characters 30"]
[null,null,72,null,null,null,null,null,null,null,null,null,null,null,null,null,null,null,"Remaining Characters 30"]
[null,null,73,null,null,null,null,null,null,null,null,null,null,null,null,null,null,null,"Remaining Characters 30"]
[null,null,74,null,null,null,null,null,null,null,null,null,null,null,null,null,null,null,"Remaining Characters 30"]
[null,null,75,null,null,null,null,null,null,null,null,null,null,null,null,null,null,null,"Remaining Characters 30"]
[null,null,76,null,null,null,null,null,null,null,null,null,null,null,null,null,null,null,"Remaining Characters 30"]
[null,null,77,null,null,null,null,null,null,null,null,null,null,null,null,null,null,null,"Remaining Characters 30"]
[null,null,78,null,null,null,null,null,null,null,null,null,null,null,null,null,null,null,"Remaining Characters 30"]
[null,null,79,null,null,null,null,null,null,null,null,null,null,null,null,null,null,null,"Remaining Characters 30"]
[null,null,80,null,null,null,null,null,null,null,null,null,null,null,null,null,null,null,"Remaining Characters 30"]
[null,null,81,null,null,null,null,null,null,null,null,null,null,null,null,null,null,null,"Remaining Characters 30"]
[null,null,82,null,null,null,null,null,null,null,null,null,null,null,null,null,null,null,"Remaining Characters 30"]
[null,null,83,null,null,null,null,null,null,null,null,null,null,null,null,null,null,null,"Remaining Characters 30"]
[null,null,84,null,null,null,null,null,null,null,null,null,null,null,null,null,null,null,"Remaining Characters 30"]
[null,null,85,null,null,null,null,null,null,null,null,null,null,null,null,null,null,null,"Remaining Characters 30"]
[null,null,86,null,null,null,null,null,null,null,null,null,null,null,null,null,null,null,"Remaining Characters 30"]
[null,null,87,null,null,null,null,null,null,null,null,null,null,null,null,null,null,null,"Remaining Characters 30"]
[null,null,88,null,null,null,null,null,null,null,null,null,null,null,null,null,null,null,"Remaining Characters 30"]
[null,null,89,null,null,null,null,null,null,null,null,null,null,null,null,null,null,null,"Remaining Characters 30"]
[null,null,90,null,null,null,null,null,null,null,null,null,null,null,null,null,null,null,"Remaining Characters 30"]
[null,null,91,null,null,null,null,null,null,null,null,null,null,null,null,null,null,null,"Remaining Characters 30"]
[null,null,92,null,null,null,null,null,null,null,null,null,null,null,null,null,null,null,"Remaining Characters 30"]
[null,null,93,null,null,null,null,null,null,null,null,null,null,null,null,null,null,null,"Remaining Characters 30"]
[null,null,94,null,null,null,null,null,null,null,null,null,null,null,null,null,null,null,"Remaining Characters 30"]
[null,null,95,null,null,null,null,null,null,null,null,null,null,null,null,null,null,null,"Remaining Characters 30"]
[null,null,96,null,null,null,null,null,null,null,null,null,null,null,null,null,null,null,"Remaining Characters 30"]
[null,null,97,null,null,null,null,null,null,null,null,null,null,null,null,null,null,null,"Remaining Characters 30"]
[null,null,98,null,null,null,null,null,null,null,null,null,null,null,null,null,null,null,"Remaining Characters 30"]
[null,null,99,null,null,null,null,null,null,null,null,null,null,null,null,null,null,null,"Remaining Characters 30"]
[null,null,100,null,null,null,null,null,null,null,null,null,null,null,null,null,null,null,"Remaining Characters 30"]
[null,null,101,null,null,null,null,null,null,null,null,null,null,null,null,null,null,null,"Remaining Characters 30"]
[null,null,102,null,null,null,null,null,null,null,null,null,null,null,null,null,null,null,"Remaining Characters 30"]
[null,null,103,null,null,null,null,null,null,null,null,null,null,null,null,null,null,null,"Remaining Characters 30"]
[null,null,104,null,null,null,null,null,null,null,null,null,null,null,null,null,null,null,"Remaining Characters 30"]
[null,null,105,null,null,null,null,null,null,null,null,null,null,null,null,null,null,null,"Remaining Characters 30"]
[null,null,106,null,null,null,null,null,null,null,null,null,null,null,null,null,null,null,"Remaining Characters 30"]
[null,null,107,null,null,null,null,null,null,null,null,null,null,null,null,null,null,null,"Remaining Characters 30"]
[null,null,108,null,null,null,null,null,null,null,null,null,null,null,null,null,null,null,"Remaining Characters 30"]
[null,null,109,null,null,null,null,null,null,null,null,null,null,null,null,null,null,null,"Remaining Characters 30"]
[null,null,110,null,null,null,null,null,null,null,null,null,null,null,null,null,null,null,"Remaining Characters 30"]
[null,null,111,null,null,null,null,null,null,null,null,null,null,null,null,null,null,null,"Remaining Characters 30"]
[null,null,112,null,null,null,null,null,null,null,null,null,null,null,null,null,null,null,"Remaining Characters 30"]
[null,null,113,null,null,null,null,null,null,null,null,null,null,null,null,null,null,null,"Remaining Characters 30"]
[null,null,114,null,null,null,null,null,null,null,null,null,null,null,null,null,null,null,"Remaining Characters 30"]
[null,null,115,null,null,null,null,null,null,null,null,null,null,null,null,null,null,null,"Remaining Characters 30"]
[null,null,116,null,null,null,null,null,null,null,null,null,null,null,null,null,null,null,"Remaining Characters 30"]
[null,null,117,null,null,null,null,null,null,null,null,null,null,null,null,null,null,null,"Remaining Characters 30"]
[null,null,118,null,null,null,null,null,null,null,null,null,null,null,null,null,null,null,"Remaining Characters 30"]
[null,null,119,null,null,null,null,null,null,null,null,null,null,null,null,null,null,null,"Remaining Characters 30"]
[null,null,120,null,null,null,null,null,null,null,null,null,null,null,null,null,null,null,"Remaining Characters 30"]
[null,null,121,null,null,null,null,null,null,null,null,null,null,null,null,null,null,null,"Remaining Characters 30"]
[null,null,122,null,null,null,null,null,null,null,null,null,null,null,null,null,null,null,"Remaining Characters 30"]
[null,null,123,null,null,null,null,null,null,null,null,null,null,null,null,null,null,null,"Remaining Characters 30"]
[null,null,124,null,null,null,null,null,null,null,null,null,null,null,null,null,null,null,"Remaining Characters 30"]
[null,null,125,null,null,null,null,null,null,null,null,null,null,null,null,null,null,null,"Remaining Characters 30"]
[null,null,126,null,null,null,null,null,null,null,null,null,null,null,null,null,null,null,"Remaining Characters 30"]
[null,null,127,null,null,null,null,null,null,null,null,null,null,null,null,null,null,null,"Remaining Characters 30"]
[null,null,128,null,null,null,null,null,null,null,null,null,null,null,null,null,null,null,"Remaining Characters 30"]
[null,null,129,null,null,null,null,null,null,null,null,null,null,null,null,null,null,null,"Remaining Characters 30"]
[null,null,130,null,null,null,null,null,null,null,null,null,null,null,null,null,null,null,{"$f":"IF(LEN(N368)=0,\"Remaining Characters 30\",\"Remaining Characters \"& (30-LEN(N368)))","v":"Remaining Characters 30"}]
[null,null,131,null,null,null,null,null,null,null,null,null,null,null,null,null,null,null,"Remaining Characters 30"]
[null,null,132,null,null,null,null,null,null,null,null,null,null,null,null,null,null,null,"Remaining Characters 30"]
[null,null,133,null,null,null,null,null,null,null,null,null,null,null,null,null,null,null,"Remaining Characters 30"]
[null,null,134,null,null,null,null,null,null,null,null,null,null,null,null,null,null,null,"Remaining Characters 30"]
[null,null,135,null,null,null,null,null,null,null,null,null,null,null,null,null,null,null,"Remaining Characters 30"]
[null,null,136,null,null,null,null,null,null,null,null,null,null,null,null,null,null,null,"Remaining Characters 30"]
[null,null,137,null,null,null,null,null,null,null,null,null,null,null,null,null,null,null,"Remaining Characters 30"]
[null,null,138,null,null,null,null,null,null,null,null,null,null,null,null,null,null,null,"Remaining Characters 30"]
[null,null,139,null,null,null,null,null,null,null,null,null,null,null,null,null,null,null,"Remaining Characters 30"]
[null,null,140,null,null,null,null,null,null,null,null,null,null,null,null,null,null,null,"Remaining Characters 30"]
[null,null,141,null,null,null,null,null,null,null,null,null,null,null,null,null,null,null,"Remaining Characters 30"]
[null,null,142,null,null,null,null,null,null,null,null,null,null,null,null,null,null,null,"Remaining Characters 30"]
[null,null,143,null,null,null,null,null,null,null,null,null,null,null,null,null,null,null,"Remaining Characters 30"]
[null,null,144,null,null,null,null,null,null,null,null,null,null,null,null,null,null,null,"Remaining Characters 30"]
[null,null,145,null,null,null,null,null,null,null,null,null,null,null,null,null,null,null,"Remaining Characters 30"]
[null,null,146,null,null,null,null,null,null,null,null,null,null,null,null,null,null,null,"Remaining Characters 30"]
[null,null,147,null,null,null,null,null,null,null,null,null,null,null,null,null,null,null,"Remaining Characters 30"]
[null,null,148,null,null,null,null,null,null,null,null,null,null,null,null,null,null,null,"Remaining Characters 30"]
[null,null,149,null,null,null,null,null,null,null,null,null,null,null,null,null,null,null,"Remaining Characters 30"]
[null,null,150,null,null,null,null,null,null,null,null,null,null,null,null,null,null,null,"Remaining Characters 30"]
[null,null,151,null,null,null,null,null,null,null,null,null,null,null,null,null,null,null,"Remaining Characters 30"]
[null,null,152,null,null,null,null,null,null,null,null,null,null,null,null,null,null,null,"Remaining Characters 30"]
[null,null,153,null,null,null,null,null,null,null,null,null,null,null,null,null,null,null,"Remaining Characters 30"]
[null,null,154,null,null,null,null,null,null,null,null,null,null,null,null,null,null,null,"Remaining Characters 30"]
[null,null,155,null,null,null,null,null,null,null,null,null,null,null,null,null,null,null,"Remaining Characters 30"]
[null,null,156,null,null,null,null,null,null,null,null,null,null,null,null,null,null,null,"Remaining Characters 30"]
[null,null,157,null,null,null,null,null,null,null,null,null,null,null,null,null,null,null,"Remaining Characters 30"]
[null,null,158,null,null,null,null,null,null,null,null,null,null,null,null,null,null,null,"Remaining Characters 30"]
[null,null,159,null,null,null,null,null,null,null,null,null,null,null,null,null,null,null,"Remaining Characters 30"]
[null,null,160,null,null,null,null,null,null,null,null,null,null,null,null,null,null,null,"Remaining Characters 30"]
[null,null,161,null,null,null,null,null,null,null,null,null,null,null,null,null,null,null,"Remaining Characters 30"]
[null,null,162,null,null,null,null,null,null,null,null,null,null,null,null,null,null,null,"Remaining Characters 30"]
[null,null,163,null,null,null,null,null,null,null,null,null,null,null,null,null,null,null,"Remaining Characters 30"]
[null,null,164,null,null,null,null,null,null,null,null,null,null,null,null,null,null,null,"Remaining Characters 30"]
[null,null,165,null,null,null,null,null,null,null,null,null,null,null,null,null,null,null,"Remaining Characters 30"]
[null,null,166,null,null,null,null,null,null,null,null,null,null,null,null,null,null,null,"Remaining Characters 30"]
[null,null,167,null,null,null,null,null,null,null,null,null,null,null,null,null,null,null,"Remaining Characters 30"]
[null,null,168,null,null,null,null,null,null,null,null,null,null,null,null,null,null,null,"Remaining Characters 30"]
[null,null,169,null,null,null,null,null,null,null,null,null,null,null,null,null,null,null,"Remaining Characters 30"]
[null,null,170,null,null,null,null,null,null,null,null,null,null,null,null,null,null,null,"Remaining Characters 30"]
[null,null,171,null,null,null,null,null,null,null,null,null,null,null,null,null,null,null,"Remaining Characters 30"]
[null,null,172,null,null,null,null,null,null,null,null,null,null,null,null,null,null,null,"Remaining Characters 30"]
[null,null,173,null,null,null,null,null,null,null,null,null,null,null,null,null,null,null,"Remaining Characters 30"]
[null,null,174,null,null,null,null,null,null,null,null,null,null,null,null,null,null,null,"Remaining Characters 30"]
[null,null,175,null,null,null,null,null,null,null,null,null,null,null,null,null,null,null,"Remaining Characters 30"]
[null,null,176,null,null,null,null,null,null,null,null,null,null,null,null,null,null,null,"Remaining Characters 30"]
[null,null,177,null,null,null,null,null,null,null,null,null,null,null,null,null,null,null,"Remaining Characters 30"]
[null,null,178,null,null,null,null,null,null,null,null,null,null,null,null,null,null,null,"Remaining Characters 30"]
[null,null,179,null,null,null,null,null,null,null,null,null,null,null,null,null,null,null,"Remaining Characters 30"]
[null,null,180,null,null,null,null,null,null,null,null,null,null,null,null,null,null,null,"Remaining Characters 30"]
[null,null,181,null,null,null,null,null,null,null,null,null,null,null,null,null,null,null,"Remaining Characters 30"]
[null,null,182,null,null,null,null,null,null,null,null,null,null,null,null,null,null,null,"Remaining Characters 30"]
[null,null,183,null,null,null,null,null,null,null,null,null,null,null,null,null,null,null,"Remaining Characters 30"]
[null,null,184,null,null,null,null,null,null,null,null,null,null,null,null,null,null,null,"Remaining Characters 30"]
[null,null,185,null,null,null,null,null,null,null,null,null,null,null,null,null,null,null,"Remaining Characters 30"]
[null,null,186,null,null,null,null,null,null,null,null,null,null,null,null,null,null,null,"Remaining Characters 30"]
[null,null,187,null,null,null,null,null,null,null,null,null,null,null,null,null,null,null,"Remaining Characters 30"]
[null,null,188,null,null,null,null,null,null,null,null,null,null,null,null,null,null,null,"Remaining Characters 30"]
[null,null,189,null,null,null,null,null,null,null,null,null,null,null,null,null,null,null,"Remaining Characters 30"]
[null,null,190,null,null,null,null,null,null,null,null,null,null,null,null,null,null,null,"Remaining Characters 30"]
[null,null,191,null,null,null,null,null,null,null,null,null,null,null,null,null,null,null,"Remaining Characters 30"]
[null,null,192,null,null,null,null,null,null,null,null,null,null,null,null,null,null,null,"Remaining Characters 30"]
[null,null,193,null,null,null,null,null,null,null,null,null,null,null,null,null,null,null,"Remaining Characters 30"]
[null,null,194,null,null,null,null,null,null,null,null,null,null,null,null,null,null,null,{"$f":"IF(LEN(N432)=0,\"Remaining Characters 30\",\"Remaining Characters \"& (30-LEN(N432)))","v":"Remaining Characters 30"}]
[null,null,195,null,null,null,null,null,null,null,null,null,null,null,null,null,null,null,"Remaining Characters 30"]
[null,null,196,null,null,null,null,null,null,null,null,null,null,null,null,null,null,null,"Remaining Characters 30"]
[null,null,197,null,null,null,null,null,null,null,null,null,null,null,null,null,null,null,"Remaining Characters 30"]
[null,null,198,null,null,null,null,null,null,null,null,null,null,null,null,null,null,null,"Remaining Characters 30"]
[null,null,199,null,null,null,null,null,null,null,null,null,null,null,null,null,null,null,"Remaining Characters 30"]
[null,null,200,null,null,null,null,null,null,null,null,null,null,null,null,null,null,null,"Remaining Characters 30"]
["Total should net to zero >","Total should equal zero >",null,null,null,null,null,null,null,null,"Total",{"$f":"ROUND(SUM(L239:M438),2)","v":0}]
[null,null,null,null,null,null,null,null,null,null,null,{"$f":"SUMIF(L239:M438,\">0\")","v":0}]
[]
[]
[]
[]
[]
[]
[]
[]
[]
[]
[]
[]
[]
[]
[]
[null,null,null,"Drop-Down List of Entities:"]
[null,null,null,"CIASI"]
[null,null,null,"CICMP"]
[null,null,null,"CICSA"]
[null,null,null,"CIFDN"]
[null,null,null,"CIUGC"]
["End of Worksheet"]

{"sheet":"JET","index":1,"n_rows":200,"n_cols":16,"rows_kept":200,"cut":false,"hidden":true,"merged":[]}
[{"$f":"IF('Blank - Request Form'!E239=0,\"\",'Blank - Request Form'!E239)","v":""},{"$f":"IF('Blank - Request Form'!G239=0,\"\",'Blank - Request Form'!G239)","v":""},{"$f":"IF(OR('Blank - Request Form'!H239=\"0\",'Blank - Request Form'!H239=\"000\",'Blank - Request Form'!H239=0),\"\",'Blank - Request Form'!H239)","v":""},{"$f":"IF(OR('Blank - Request Form'!I239=\"0\",'Blank - Request Form'!I239=\"00000\",'Blank - Request Form'!I239=0),\"\",'Blank - Request Form'!I239)","v":""},{"$f":"IF(OR('Blank - Request Form'!J239=\"0\",'Blank - Request Form'!J239=\"00000\",'Blank - Request Form'!J239=0),\"\",'Blank - Request Form'!J239)","v":""},{"$f":"IF(OR('Blank - Request Form'!K239=\"0\",'Blank - Request Form'!K239=\"00000\",'Blank - Request Form'!K239=0),\"\",'Blank - Request Form'!K239)","v":""},null,{"$f":"IF('Blank - Request Form'!N239=0,\"\",'Blank - Request Form'!N239)","v":""},null,null,null,{"$f":"IF(M1<>\"\",'Blank - Request Form'!$M$2,\"\")","v":""},{"$f":"IF('Blank - Request Form'!L239=0,\"\",'Blank - Request Form'!L239)","v":""},{"$f":"IF(M1<>\"\",O1,\"\")","v":""},1,{"$f":"TransferFrom","v":"CICMP"}]
[{"$f":"IF('Blank - Request Form'!E240=0,\"\",'Blank - Request Form'!E240)","v":""},{"$f":"IF('Blank - Request Form'!G240=0,\"\",'Blank - Request Form'!G240)","v":""},{"$f":"IF(OR('Blank - Request Form'!H240=\"0\",'Blank - Request Form'!H240=\"000\",'Blank - Request Form'!H240=0),\"\",'Blank - Request Form'!H240)","v":""},{"$f":"IF(OR('Blank - Request Form'!I240=\"0\",'Blank - Request Form'!I240=\"00000\",'Blank - Request Form'!I240=0),\"\",'Blank - Request Form'!I240)","v":""},{"$f":"IF(OR('Blank - Request Form'!J240=\"0\",'Blank - Request Form'!J240=\"00000\",'Blank - Request Form'!J240=0),\"\",'Blank - Request Form'!J240)","v":""},{"$f":"IF(OR('Blank - Request Form'!K240=\"0\",'Blank - Request Form'!K240=\"00000\",'Blank - Request Form'!K240=0),\"\",'Blank - Request Form'!K240)","v":""},null,{"$f":"IF('Blank - Request Form'!N240=0,\"\",'Blank - Request Form'!N240)","v":""},null,null,null,{"$f":"IF(M2<>\"\",'Blank - Request Form'!$M$2,\"\")","v":""},{"$f":"IF('Blank - Request Form'!L240=0,\"\",'Blank - Request Form'!L240)","v":""},{"$f":"IF(M2<>\"\",O2,\"\")","v":""},2,{"$f":"LogNumber","v":0}]
[{"$f":"IF('Blank - Request Form'!E241=0,\"\",'Blank - Request Form'!E241)","v":""},{"$f":"IF('Blank - Request Form'!G241=0,\"\",'Blank - Request Form'!G241)","v":""},{"$f":"IF(OR('Blank - Request Form'!H241=\"0\",'Blank - Request Form'!H241=\"000\",'Blank - Request Form'!H241=0),\"\",'Blank - Request Form'!H241)","v":""},{"$f":"IF(OR('Blank - Request Form'!I241=\"0\",'Blank - Request Form'!I241=\"00000\",'Blank - Request Form'!I241=0),\"\",'Blank - Request Form'!I241)","v":""},{"$f":"IF(OR('Blank - Request Form'!J241=\"0\",'Blank - Request Form'!J241=\"00000\",'Blank - Request Form'!J241=0),\"\",'Blank - Request Form'!J241)","v":""},{"$f":"IF(OR('Blank - Request Form'!K241=\"0\",'Blank - Request Form'!K241=\"00000\",'Blank - Request Form'!K241=0),\"\",'Blank - Request Form'!K241)","v":""},null,{"$f":"IF('Blank - Request Form'!N241=0,\"\",'Blank - Request Form'!N241)","v":""},null,null,null,{"$f":"IF(M3<>\"\",'Blank - Request Form'!$M$2,\"\")","v":""},{"$f":"IF('Blank - Request Form'!L241=0,\"\",'Blank - Request Form'!L241)","v":""},"",3]
[{"$f":"IF('Blank - Request Form'!E242=0,\"\",'Blank - Request Form'!E242)","v":""},{"$f":"IF('Blank - Request Form'!G242=0,\"\",'Blank - Request Form'!G242)","v":""},{"$f":"IF(OR('Blank - Request Form'!H242=\"0\",'Blank - Request Form'!H242=\"000\",'Blank - Request Form'!H242=0),\"\",'Blank - Request Form'!H242)","v":""},{"$f":"IF(OR('Blank - Request Form'!I242=\"0\",'Blank - Request Form'!I242=\"00000\",'Blank - Request Form'!I242=0),\"\",'Blank - Request Form'!I242)","v":""},{"$f":"IF(OR('Blank - Request Form'!J242=\"0\",'Blank - Request Form'!J242=\"00000\",'Blank - Request Form'!J242=0),\"\",'Blank - Request Form'!J242)","v":""},{"$f":"IF(OR('Blank - Request Form'!K242=\"0\",'Blank - Request Form'!K242=\"00000\",'Blank - Request Form'!K242=0),\"\",'Blank - Request Form'!K242)","v":""},null,{"$f":"IF('Blank - Request Form'!N242=0,\"\",'Blank - Request Form'!N242)","v":""},null,null,null,{"$f":"IF(M4<>\"\",'Blank - Request Form'!$M$2,\"\")","v":""},{"$f":"IF('Blank - Request Form'!L242=0,\"\",'Blank - Request Form'!L242)","v":""},"",4]
[{"$f":"IF('Blank - Request Form'!E243=0,\"\",'Blank - Request Form'!E243)","v":""},{"$f":"IF('Blank - Request Form'!G243=0,\"\",'Blank - Request Form'!G243)","v":""},{"$f":"IF(OR('Blank - Request Form'!H243=\"0\",'Blank - Request Form'!H243=\"000\",'Blank - Request Form'!H243=0),\"\",'Blank - Request Form'!H243)","v":""},{"$f":"IF(OR('Blank - Request Form'!I243=\"0\",'Blank - Request Form'!I243=\"00000\",'Blank - Request Form'!I243=0),\"\",'Blank - Request Form'!I243)","v":""},{"$f":"IF(OR('Blank - Request Form'!J243=\"0\",'Blank - Request Form'!J243=\"00000\",'Blank - Request Form'!J243=0),\"\",'Blank - Request Form'!J243)","v":""},{"$f":"IF(OR('Blank - Request Form'!K243=\"0\",'Blank - Request Form'!K243=\"00000\",'Blank - Request Form'!K243=0),\"\",'Blank - Request Form'!K243)","v":""},null,{"$f":"IF('Blank - Request Form'!N243=0,\"\",'Blank - Request Form'!N243)","v":""},null,null,null,{"$f":"IF(M5<>\"\",'Blank - Request Form'!$M$2,\"\")","v":""},{"$f":"IF('Blank - Request Form'!L243=0,\"\",'Blank - Request Form'!L243)","v":""},"",5]
[{"$f":"IF('Blank - Request Form'!E244=0,\"\",'Blank - Request Form'!E244)","v":""},{"$f":"IF('Blank - Request Form'!G244=0,\"\",'Blank - Request Form'!G244)","v":""},{"$f":"IF(OR('Blank - Request Form'!H244=\"0\",'Blank - Request Form'!H244=\"000\",'Blank - Request Form'!H244=0),\"\",'Blank - Request Form'!H244)","v":""},{"$f":"IF(OR('Blank - Request Form'!I244=\"0\",'Blank - Request Form'!I244=\"00000\",'Blank - Request Form'!I244=0),\"\",'Blank - Request Form'!I244)","v":""},{"$f":"IF(OR('Blank - Request Form'!J244=\"0\",'Blank - Request Form'!J244=\"00000\",'Blank - Request Form'!J244=0),\"\",'Blank - Request Form'!J244)","v":""},{"$f":"IF(OR('Blank - Request Form'!K244=\"0\",'Blank - Request Form'!K244=\"00000\",'Blank - Request Form'!K244=0),\"\",'Blank - Request Form'!K244)","v":""},null,{"$f":"IF('Blank - Request Form'!N244=0,\"\",'Blank - Request Form'!N244)","v":""},null,null,null,{"$f":"IF(M6<>\"\",'Blank - Request Form'!$M$2,\"\")","v":""},{"$f":"IF('Blank - Request Form'!L244=0,\"\",'Blank - Request Form'!L244)","v":""},"",6]
[{"$f":"IF('Blank - Request Form'!E245=0,\"\",'Blank - Request Form'!E245)","v":""},{"$f":"IF('Blank - Request Form'!G245=0,\"\",'Blank - Request Form'!G245)","v":""},{"$f":"IF(OR('Blank - Request Form'!H245=\"0\",'Blank - Request Form'!H245=\"000\",'Blank - Request Form'!H245=0),\"\",'Blank - Request Form'!H245)","v":""},{"$f":"IF(OR('Blank - Request Form'!I245=\"0\",'Blank - Request Form'!I245=\"00000\",'Blank - Request Form'!I245=0),\"\",'Blank - Request Form'!I245)","v":""},{"$f":"IF(OR('Blank - Request Form'!J245=\"0\",'Blank - Request Form'!J245=\"00000\",'Blank - Request Form'!J245=0),\"\",'Blank - Request Form'!J245)","v":""},{"$f":"IF(OR('Blank - Request Form'!K245=\"0\",'Blank - Request Form'!K245=\"00000\",'Blank - Request Form'!K245=0),\"\",'Blank - Request Form'!K245)","v":""},null,{"$f":"IF('Blank - Request Form'!N245=0,\"\",'Blank - Request Form'!N245)","v":""},null,null,null,{"$f":"IF(M7<>\"\",'Blank - Request Form'!$M$2,\"\")","v":""},{"$f":"IF('Blank - Request Form'!L245=0,\"\",'Blank - Request Form'!L245)","v":""},"",7]
[{"$f":"IF('Blank - Request Form'!E246=0,\"\",'Blank - Request Form'!E246)","v":""},{"$f":"IF('Blank - Request Form'!G246=0,\"\",'Blank - Request Form'!G246)","v":""},{"$f":"IF(OR('Blank - Request Form'!H246=\"0\",'Blank - Request Form'!H246=\"000\",'Blank - Request Form'!H246=0),\"\",'Blank - Request Form'!H246)","v":""},{"$f":"IF(OR('Blank - Request Form'!I246=\"0\",'Blank - Request Form'!I246=\"00000\",'Blank - Request Form'!I246=0),\"\",'Blank - Request Form'!I246)","v":""},{"$f":"IF(OR('Blank - Request Form'!J246=\"0\",'Blank - Request Form'!J246=\"00000\",'Blank - Request Form'!J246=0),\"\",'Blank - Request Form'!J246)","v":""},{"$f":"IF(OR('Blank - Request Form'!K246=\"0\",'Blank - Request Form'!K246=\"00000\",'Blank - Request Form'!K246=0),\"\",'Blank - Request Form'!K246)","v":""},null,{"$f":"IF('Blank - Request Form'!N246=0,\"\",'Blank - Request Form'!N246)","v":""},null,null,null,{"$f":"IF(M8<>\"\",'Blank - Request Form'!$M$2,\"\")","v":""},{"$f":"IF('Blank - Request Form'!L246=0,\"\",'Blank - Request Form'!L246)","v":""},"",8]
[{"$f":"IF('Blank - Request Form'!E247=0,\"\",'Blank - Request Form'!E247)","v":""},{"$f":"IF('Blank - Request Form'!G247=0,\"\",'Blank - Request Form'!G247)","v":""},{"$f":"IF(OR('Blank - Request Form'!H247=\"0\",'Blank - Request Form'!H247=\"000\",'Blank - Request Form'!H247=0),\"\",'Blank - Request Form'!H247)","v":""},{"$f":"IF(OR('Blank - Request Form'!I247=\"0\",'Blank - Request Form'!I247=\"00000\",'Blank - Request Form'!I247=0),\"\",'Blank - Request Form'!I247)","v":""},{"$f":"IF(OR('Blank - Request Form'!J247=\"0\",'Blank - Request Form'!J247=\"00000\",'Blank - Request Form'!J247=0),\"\",'Blank - Request Form'!J247)","v":""},{"$f":"IF(OR('Blank - Request Form'!K247=\"0\",'Blank - Request Form'!K247=\"00000\",'Blank - Request Form'!K247=0),\"\",'Blank - Request Form'!K247)","v":""},null,{"$f":"IF('Blank - Request Form'!N247=0,\"\",'Blank - Request Form'!N247)","v":""},null,null,null,{"$f":"IF(M9<>\"\",'Blank - Request Form'!$M$2,\"\")","v":""},{"$f":"IF('Blank - Request Form'!L247=0,\"\",'Blank - Request Form'!L247)","v":""},"",9]
[{"$f":"IF('Blank - Request Form'!E248=0,\"\",'Blank - Request Form'!E248)","v":""},{"$f":"IF('Blank - Request Form'!G248=0,\"\",'Blank - Request Form'!G248)","v":""},{"$f":"IF(OR('Blank - Request Form'!H248=\"0\",'Blank - Request Form'!H248=\"000\",'Blank - Request Form'!H248=0),\"\",'Blank - Request Form'!H248)","v":""},{"$f":"IF(OR('Blank - Request Form'!I248=\"0\",'Blank - Request Form'!I248=\"00000\",'Blank - Request Form'!I248=0),\"\",'Blank - Request Form'!I248)","v":""},{"$f":"IF(OR('Blank - Request Form'!J248=\"0\",'Blank - Request Form'!J248=\"00000\",'Blank - Request Form'!J248=0),\"\",'Blank - Request Form'!J248)","v":""},{"$f":"IF(OR('Blank - Request Form'!K248=\"0\",'Blank - Request Form'!K248=\"00000\",'Blank - Request Form'!K248=0),\"\",'Blank - Request Form'!K248)","v":""},null,{"$f":"IF('Blank - Request Form'!N248=0,\"\",'Blank - Request Form'!N248)","v":""},null,null,null,{"$f":"IF(M10<>\"\",'Blank - Request Form'!$M$2,\"\")","v":""},{"$f":"IF('Blank - Request Form'!L248=0,\"\",'Blank - Request Form'!L248)","v":""},"",10]
[{"$f":"IF('Blank - Request Form'!E249=0,\"\",'Blank - Request Form'!E249)","v":""},{"$f":"IF('Blank - Request Form'!G249=0,\"\",'Blank - Request Form'!G249)","v":""},{"$f":"IF(OR('Blank - Request Form'!H249=\"0\",'Blank - Request Form'!H249=\"000\",'Blank - Request Form'!H249=0),\"\",'Blank - Request Form'!H249)","v":""},{"$f":"IF(OR('Blank - Request Form'!I249=\"0\",'Blank - Request Form'!I249=\"00000\",'Blank - Request Form'!I249=0),\"\",'Blank - Request Form'!I249)","v":""},{"$f":"IF(OR('Blank - Request Form'!J249=\"0\",'Blank - Request Form'!J249=\"00000\",'Blank - Request Form'!J249=0),\"\",'Blank - Request Form'!J249)","v":""},{"$f":"IF(OR('Blank - Request Form'!K249=\"0\",'Blank - Request Form'!K249=\"00000\",'Blank - Request Form'!K249=0),\"\",'Blank - Request Form'!K249)","v":""},null,{"$f":"IF('Blank - Request Form'!N249=0,\"\",'Blank - Request Form'!N249)","v":""},null,null,null,{"$f":"IF(M11<>\"\",'Blank - Request Form'!$M$2,\"\")","v":""},{"$f":"IF('Blank - Request Form'!L249=0,\"\",'Blank - Request Form'!L249)","v":""},"",11]
[{"$f":"IF('Blank - Request Form'!E250=0,\"\",'Blank - Request Form'!E250)","v":""},{"$f":"IF('Blank - Request Form'!G250=0,\"\",'Blank - Request Form'!G250)","v":""},{"$f":"IF(OR('Blank - Request Form'!H250=\"0\",'Blank - Request Form'!H250=\"000\",'Blank - Request Form'!H250=0),\"\",'Blank - Request Form'!H250)","v":""},{"$f":"IF(OR('Blank - Request Form'!I250=\"0\",'Blank - Request Form'!I250=\"00000\",'Blank - Request Form'!I250=0),\"\",'Blank - Request Form'!I250)","v":""},{"$f":"IF(OR('Blank - Request Form'!J250=\"0\",'Blank - Request Form'!J250=\"00000\",'Blank - Request Form'!J250=0),\"\",'Blank - Request Form'!J250)","v":""},{"$f":"IF(OR('Blank - Request Form'!K250=\"0\",'Blank - Request Form'!K250=\"00000\",'Blank - Request Form'!K250=0),\"\",'Blank - Request Form'!K250)","v":""},null,{"$f":"IF('Blank - Request Form'!N250=0,\"\",'Blank - Request Form'!N250)","v":""},null,null,null,{"$f":"IF(M12<>\"\",'Blank - Request Form'!$M$2,\"\")","v":""},{"$f":"IF('Blank - Request Form'!L250=0,\"\",'Blank - Request Form'!L250)","v":""},"",12]
[{"$f":"IF('Blank - Request Form'!E251=0,\"\",'Blank - Request Form'!E251)","v":""},{"$f":"IF('Blank - Request Form'!G251=0,\"\",'Blank - Request Form'!G251)","v":""},{"$f":"IF(OR('Blank - Request Form'!H251=\"0\",'Blank - Request Form'!H251=\"000\",'Blank - Request Form'!H251=0),\"\",'Blank - Request Form'!H251)","v":""},{"$f":"IF(OR('Blank - Request Form'!I251=\"0\",'Blank - Request Form'!I251=\"00000\",'Blank - Request Form'!I251=0),\"\",'Blank - Request Form'!I251)","v":""},{"$f":"IF(OR('Blank - Request Form'!J251=\"0\",'Blank - Request Form'!J251=\"00000\",'Blank - Request Form'!J251=0),\"\",'Blank - Request Form'!J251)","v":""},{"$f":"IF(OR('Blank - Request Form'!K251=\"0\",'Blank - Request Form'!K251=\"00000\",'Blank - Request Form'!K251=0),\"\",'Blank - Request Form'!K251)","v":""},null,{"$f":"IF('Blank - Request Form'!N251=0,\"\",'Blank - Request Form'!N251)","v":""},null,null,null,{"$f":"IF(M13<>\"\",'Blank - Request Form'!$M$2,\"\")","v":""},{"$f":"IF('Blank - Request Form'!L251=0,\"\",'Blank - Request Form'!L251)","v":""},"",13]
[{"$f":"IF('Blank - Request Form'!E252=0,\"\",'Blank - Request Form'!E252)","v":""},{"$f":"IF('Blank - Request Form'!G252=0,\"\",'Blank - Request Form'!G252)","v":""},{"$f":"IF(OR('Blank - Request Form'!H252=\"0\",'Blank - Request Form'!H252=\"000\",'Blank - Request Form'!H252=0),\"\",'Blank - Request Form'!H252)","v":""},{"$f":"IF(OR('Blank - Request Form'!I252=\"0\",'Blank - Request Form'!I252=\"00000\",'Blank - Request Form'!I252=0),\"\",'Blank - Request Form'!I252)","v":""},{"$f":"IF(OR('Blank - Request Form'!J252=\"0\",'Blank - Request Form'!J252=\"00000\",'Blank - Request Form'!J252=0),\"\",'Blank - Request Form'!J252)","v":""},{"$f":"IF(OR('Blank - Request Form'!K252=\"0\",'Blank - Request Form'!K252=\"00000\",'Blank - Request Form'!K252=0),\"\",'Blank - Request Form'!K252)","v":""},null,{"$f":"IF('Blank - Request Form'!N252=0,\"\",'Blank - Request Form'!N252)","v":""},null,null,null,{"$f":"IF(M14<>\"\",'Blank - Request Form'!$M$2,\"\")","v":""},{"$f":"IF('Blank - Request Form'!L252=0,\"\",'Blank - Request Form'!L252)","v":""},"",14]
[{"$f":"IF('Blank - Request Form'!E253=0,\"\",'Blank - Request Form'!E253)","v":""},{"$f":"IF('Blank - Request Form'!G253=0,\"\",'Blank - Request Form'!G253)","v":""},{"$f":"IF(OR('Blank - Request Form'!H253=\"0\",'Blank - Request Form'!H253=\"000\",'Blank - Request Form'!H253=0),\"\",'Blank - Request Form'!H253)","v":""},{"$f":"IF(OR('Blank - Request Form'!I253=\"0\",'Blank - Request Form'!I253=\"00000\",'Blank - Request Form'!I253=0),\"\",'Blank - Request Form'!I253)","v":""},{"$f":"IF(OR('Blank - Request Form'!J253=\"0\",'Blank - Request Form'!J253=\"00000\",'Blank - Request Form'!J253=0),\"\",'Blank - Request Form'!J253)","v":""},{"$f":"IF(OR('Blank - Request Form'!K253=\"0\",'Blank - Request Form'!K253=\"00000\",'Blank - Request Form'!K253=0),\"\",'Blank - Request Form'!K253)","v":""},null,{"$f":"IF('Blank - Request Form'!N253=0,\"\",'Blank - Request Form'!N253)","v":""},null,null,null,{"$f":"IF(M15<>\"\",'Blank - Request Form'!$M$2,\"\")","v":""},{"$f":"IF('Blank - Request Form'!L253=0,\"\",'Blank - Request Form'!L253)","v":""},"",15]
[{"$f":"IF('Blank - Request Form'!E254=0,\"\",'Blank - Request Form'!E254)","v":""},{"$f":"IF('Blank - Request Form'!G254=0,\"\",'Blank - Request Form'!G254)","v":""},{"$f":"IF(OR('Blank - Request Form'!H254=\"0\",'Blank - Request Form'!H254=\"000\",'Blank - Request Form'!H254=0),\"\",'Blank - Request Form'!H254)","v":""},{"$f":"IF(OR('Blank - Request Form'!I254=\"0\",'Blank - Request Form'!I254=\"00000\",'Blank - Request Form'!I254=0),\"\",'Blank - Request Form'!I254)","v":""},{"$f":"IF(OR('Blank - Request Form'!J254=\"0\",'Blank - Request Form'!J254=\"00000\",'Blank - Request Form'!J254=0),\"\",'Blank - Request Form'!J254)","v":""},{"$f":"IF(OR('Blank - Request Form'!K254=\"0\",'Blank - Request Form'!K254=\"00000\",'Blank - Request Form'!K254=0),\"\",'Blank - Request Form'!K254)","v":""},null,{"$f":"IF('Blank - Request Form'!N254=0,\"\",'Blank - Request Form'!N254)","v":""},null,null,null,{"$f":"IF(M16<>\"\",'Blank - Request Form'!$M$2,\"\")","v":""},{"$f":"IF('Blank - Request Form'!L254=0,\"\",'Blank - Request Form'!L254)","v":""},"",16]
[{"$f":"IF('Blank - Request Form'!E255=0,\"\",'Blank - Request Form'!E255)","v":""},{"$f":"IF('Blank - Request Form'!G255=0,\"\",'Blank - Request Form'!G255)","v":""},{"$f":"IF(OR('Blank - Request Form'!H255=\"0\",'Blank - Request Form'!H255=\"000\",'Blank - Request Form'!H255=0),\"\",'Blank - Request Form'!H255)","v":""},{"$f":"IF(OR('Blank - Request Form'!I255=\"0\",'Blank - Request Form'!I255=\"00000\",'Blank - Request Form'!I255=0),\"\",'Blank - Request Form'!I255)","v":""},{"$f":"IF(OR('Blank - Request Form'!J255=\"0\",'Blank - Request Form'!J255=\"00000\",'Blank - Request Form'!J255=0),\"\",'Blank - Request Form'!J255)","v":""},{"$f":"IF(OR('Blank - Request Form'!K255=\"0\",'Blank - Request Form'!K255=\"00000\",'Blank - Request Form'!K255=0),\"\",'Blank - Request Form'!K255)","v":""},null,{"$f":"IF('Blank - Request Form'!N255=0,\"\",'Blank - Request Form'!N255)","v":""},null,null,null,{"$f":"IF(M17<>\"\",'Blank - Request Form'!$M$2,\"\")","v":""},{"$f":"IF('Blank - Request Form'!L255=0,\"\",'Blank - Request Form'!L255)","v":""},"",17]
[{"$f":"IF('Blank - Request Form'!E256=0,\"\",'Blank - Request Form'!E256)","v":""},{"$f":"IF('Blank - Request Form'!G256=0,\"\",'Blank - Request Form'!G256)","v":""},{"$f":"IF(OR('Blank - Request Form'!H256=\"0\",'Blank - Request Form'!H256=\"000\",'Blank - Request Form'!H256=0),\"\",'Blank - Request Form'!H256)","v":""},{"$f":"IF(OR('Blank - Request Form'!I256=\"0\",'Blank - Request Form'!I256=\"00000\",'Blank - Request Form'!I256=0),\"\",'Blank - Request Form'!I256)","v":""},{"$f":"IF(OR('Blank - Request Form'!J256=\"0\",'Blank - Request Form'!J256=\"00000\",'Blank - Request Form'!J256=0),\"\",'Blank - Request Form'!J256)","v":""},{"$f":"IF(OR('Blank - Request Form'!K256=\"0\",'Blank - Request Form'!K256=\"00000\",'Blank - Request Form'!K256=0),\"\",'Blank - Request Form'!K256)","v":""},null,{"$f":"IF('Blank - Request Form'!N256=0,\"\",'Blank - Request Form'!N256)","v":""},null,null,null,{"$f":"IF(M18<>\"\",'Blank - Request Form'!$M$2,\"\")","v":""},{"$f":"IF('Blank - Request Form'!L256=0,\"\",'Blank - Request Form'!L256)","v":""},"",18]
[{"$f":"IF('Blank - Request Form'!E257=0,\"\",'Blank - Request Form'!E257)","v":""},{"$f":"IF('Blank - Request Form'!G257=0,\"\",'Blank - Request Form'!G257)","v":""},{"$f":"IF(OR('Blank - Request Form'!H257=\"0\",'Blank - Request Form'!H257=\"000\",'Blank - Request Form'!H257=0),\"\",'Blank - Request Form'!H257)","v":""},{"$f":"IF(OR('Blank - Request Form'!I257=\"0\",'Blank - Request Form'!I257=\"00000\",'Blank - Request Form'!I257=0),\"\",'Blank - Request Form'!I257)","v":""},{"$f":"IF(OR('Blank - Request Form'!J257=\"0\",'Blank - Request Form'!J257=\"00000\",'Blank - Request Form'!J257=0),\"\",'Blank - Request Form'!J257)","v":""},{"$f":"IF(OR('Blank - Request Form'!K257=\"0\",'Blank - Request Form'!K257=\"00000\",'Blank - Request Form'!K257=0),\"\",'Blank - Request Form'!K257)","v":""},null,{"$f":"IF('Blank - Request Form'!N257=0,\"\",'Blank - Request Form'!N257)","v":""},null,null,null,{"$f":"IF(M19<>\"\",'Blank - Request Form'!$M$2,\"\")","v":""},{"$f":"IF('Blank - Request Form'!L257=0,\"\",'Blank - Request Form'!L257)","v":""},"",19]
[{"$f":"IF('Blank - Request Form'!E258=0,\"\",'Blank - Request Form'!E258)","v":""},{"$f":"IF('Blank - Request Form'!G258=0,\"\",'Blank - Request Form'!G258)","v":""},{"$f":"IF(OR('Blank - Request Form'!H258=\"0\",'Blank - Request Form'!H258=\"000\",'Blank - Request Form'!H258=0),\"\",'Blank - Request Form'!H258)","v":""},{"$f":"IF(OR('Blank - Request Form'!I258=\"0\",'Blank - Request Form'!I258=\"00000\",'Blank - Request Form'!I258=0),\"\",'Blank - Request Form'!I258)","v":""},{"$f":"IF(OR('Blank - Request Form'!J258=\"0\",'Blank - Request Form'!J258=\"00000\",'Blank - Request Form'!J258=0),\"\",'Blank - Request Form'!J258)","v":""},{"$f":"IF(OR('Blank - Request Form'!K258=\"0\",'Blank - Request Form'!K258=\"00000\",'Blank - Request Form'!K258=0),\"\",'Blank - Request Form'!K258)","v":""},null,{"$f":"IF('Blank - Request Form'!N258=0,\"\",'Blank - Request Form'!N258)","v":""},null,null,null,{"$f":"IF(M20<>\"\",'Blank - Request Form'!$M$2,\"\")","v":""},{"$f":"IF('Blank - Request Form'!L258=0,\"\",'Blank - Request Form'!L258)","v":""},"",20]
[{"$f":"IF('Blank - Request Form'!E259=0,\"\",'Blank - Request Form'!E259)","v":""},{"$f":"IF('Blank - Request Form'!G259=0,\"\",'Blank - Request Form'!G259)","v":""},{"$f":"IF(OR('Blank - Request Form'!H259=\"0\",'Blank - Request Form'!H259=\"000\",'Blank - Request Form'!H259=0),\"\",'Blank - Request Form'!H259)","v":""},{"$f":"IF(OR('Blank - Request Form'!I259=\"0\",'Blank - Request Form'!I259=\"00000\",'Blank - Request Form'!I259=0),\"\",'Blank - Request Form'!I259)","v":""},{"$f":"IF(OR('Blank - Request Form'!J259=\"0\",'Blank - Request Form'!J259=\"00000\",'Blank - Request Form'!J259=0),\"\",'Blank - Request Form'!J259)","v":""},{"$f":"IF(OR('Blank - Request Form'!K259=\"0\",'Blank - Request Form'!K259=\"00000\",'Blank - Request Form'!K259=0),\"\",'Blank - Request Form'!K259)","v":""},null,{"$f":"IF('Blank - Request Form'!N259=0,\"\",'Blank - Request Form'!N259)","v":""},null,null,null,{"$f":"IF(M21<>\"\",'Blank - Request Form'!$M$2,\"\")","v":""},{"$f":"IF('Blank - Request Form'!L259=0,\"\",'Blank - Request Form'!L259)","v":""},"",21]
[{"$f":"IF('Blank - Request Form'!E260=0,\"\",'Blank - Request Form'!E260)","v":""},{"$f":"IF('Blank - Request Form'!G260=0,\"\",'Blank - Request Form'!G260)","v":""},{"$f":"IF(OR('Blank - Request Form'!H260=\"0\",'Blank - Request Form'!H260=\"000\",'Blank - Request Form'!H260=0),\"\",'Blank - Request Form'!H260)","v":""},{"$f":"IF(OR('Blank - Request Form'!I260=\"0\",'Blank - Request Form'!I260=\"00000\",'Blank - Request Form'!I260=0),\"\",'Blank - Request Form'!I260)","v":""},{"$f":"IF(OR('Blank - Request Form'!J260=\"0\",'Blank - Request Form'!J260=\"00000\",'Blank - Request Form'!J260=0),\"\",'Blank - Request Form'!J260)","v":""},{"$f":"IF(OR('Blank - Request Form'!K260=\"0\",'Blank - Request Form'!K260=\"00000\",'Blank - Request Form'!K260=0),\"\",'Blank - Request Form'!K260)","v":""},null,{"$f":"IF('Blank - Request Form'!N260=0,\"\",'Blank - Request Form'!N260)","v":""},null,null,null,{"$f":"IF(M22<>\"\",'Blank - Request Form'!$M$2,\"\")","v":""},{"$f":"IF('Blank - Request Form'!L260=0,\"\",'Blank - Request Form'!L260)","v":""},"",22]
[{"$f":"IF('Blank - Request Form'!E261=0,\"\",'Blank - Request Form'!E261)","v":""},{"$f":"IF('Blank - Request Form'!G261=0,\"\",'Blank - Request Form'!G261)","v":""},{"$f":"IF(OR('Blank - Request Form'!H261=\"0\",'Blank - Request Form'!H261=\"000\",'Blank - Request Form'!H261=0),\"\",'Blank - Request Form'!H261)","v":""},{"$f":"IF(OR('Blank - Request Form'!I261=\"0\",'Blank - Request Form'!I261=\"00000\",'Blank - Request Form'!I261=0),\"\",'Blank - Request Form'!I261)","v":""},{"$f":"IF(OR('Blank - Request Form'!J261=\"0\",'Blank - Request Form'!J261=\"00000\",'Blank - Request Form'!J261=0),\"\",'Blank - Request Form'!J261)","v":""},{"$f":"IF(OR('Blank - Request Form'!K261=\"0\",'Blank - Request Form'!K261=\"00000\",'Blank - Request Form'!K261=0),\"\",'Blank - Request Form'!K261)","v":""},null,{"$f":"IF('Blank - Request Form'!N261=0,\"\",'Blank - Request Form'!N261)","v":""},null,null,null,{"$f":"IF(M23<>\"\",'Blank - Request Form'!$M$2,\"\")","v":""},{"$f":"IF('Blank - Request Form'!L261=0,\"\",'Blank - Request Form'!L261)","v":""},"",23]
[{"$f":"IF('Blank - Request Form'!E262=0,\"\",'Blank - Request Form'!E262)","v":""},{"$f":"IF('Blank - Request Form'!G262=0,\"\",'Blank - Request Form'!G262)","v":""},{"$f":"IF(OR('Blank - Request Form'!H262=\"0\",'Blank - Request Form'!H262=\"000\",'Blank - Request Form'!H262=0),\"\",'Blank - Request Form'!H262)","v":""},{"$f":"IF(OR('Blank - Request Form'!I262=\"0\",'Blank - Request Form'!I262=\"00000\",'Blank - Request Form'!I262=0),\"\",'Blank - Request Form'!I262)","v":""},{"$f":"IF(OR('Blank - Request Form'!J262=\"0\",'Blank - Request Form'!J262=\"00000\",'Blank - Request Form'!J262=0),\"\",'Blank - Request Form'!J262)","v":""},{"$f":"IF(OR('Blank - Request Form'!K262=\"0\",'Blank - Request Form'!K262=\"00000\",'Blank - Request Form'!K262=0),\"\",'Blank - Request Form'!K262)","v":""},null,{"$f":"IF('Blank - Request Form'!N262=0,\"\",'Blank - Request Form'!N262)","v":""},null,null,null,{"$f":"IF(M24<>\"\",'Blank - Request Form'!$M$2,\"\")","v":""},{"$f":"IF('Blank - Request Form'!L262=0,\"\",'Blank - Request Form'!L262)","v":""},"",24]
[{"$f":"IF('Blank - Request Form'!E263=0,\"\",'Blank - Request Form'!E263)","v":""},{"$f":"IF('Blank - Request Form'!G263=0,\"\",'Blank - Request Form'!G263)","v":""},{"$f":"IF(OR('Blank - Request Form'!H263=\"0\",'Blank - Request Form'!H263=\"000\",'Blank - Request Form'!H263=0),\"\",'Blank - Request Form'!H263)","v":""},{"$f":"IF(OR('Blank - Request Form'!I263=\"0\",'Blank - Request Form'!I263=\"00000\",'Blank - Request Form'!I263=0),\"\",'Blank - Request Form'!I263)","v":""},{"$f":"IF(OR('Blank - Request Form'!J263=\"0\",'Blank - Request Form'!J263=\"00000\",'Blank - Request Form'!J263=0),\"\",'Blank - Request Form'!J263)","v":""},{"$f":"IF(OR('Blank - Request Form'!K263=\"0\",'Blank - Request Form'!K263=\"00000\",'Blank - Request Form'!K263=0),\"\",'Blank - Request Form'!K263)","v":""},null,{"$f":"IF('Blank - Request Form'!N263=0,\"\",'Blank - Request Form'!N263)","v":""},null,null,null,{"$f":"IF(M25<>\"\",'Blank - Request Form'!$M$2,\"\")","v":""},{"$f":"IF('Blank - Request Form'!L263=0,\"\",'Blank - Request Form'!L263)","v":""},"",25]
[{"$f":"IF('Blank - Request Form'!E264=0,\"\",'Blank - Request Form'!E264)","v":""},{"$f":"IF('Blank - Request Form'!G264=0,\"\",'Blank - Request Form'!G264)","v":""},{"$f":"IF(OR('Blank - Request Form'!H264=\"0\",'Blank - Request Form'!H264=\"000\",'Blank - Request Form'!H264=0),\"\",'Blank - Request Form'!H264)","v":""},{"$f":"IF(OR('Blank - Request Form'!I264=\"0\",'Blank - Request Form'!I264=\"00000\",'Blank - Request Form'!I264=0),\"\",'Blank - Request Form'!I264)","v":""},{"$f":"IF(OR('Blank - Request Form'!J264=\"0\",'Blank - Request Form'!J264=\"00000\",'Blank - Request Form'!J264=0),\"\",'Blank - Request Form'!J264)","v":""},{"$f":"IF(OR('Blank - Request Form'!K264=\"0\",'Blank - Request Form'!K264=\"00000\",'Blank - Request Form'!K264=0),\"\",'Blank - Request Form'!K264)","v":""},null,{"$f":"IF('Blank - Request Form'!N264=0,\"\",'Blank - Request Form'!N264)","v":""},null,null,null,{"$f":"IF(M26<>\"\",'Blank - Request Form'!$M$2,\"\")","v":""},{"$f":"IF('Blank - Request Form'!L264=0,\"\",'Blank - Request Form'!L264)","v":""},"",26]
[{"$f":"IF('Blank - Request Form'!E265=0,\"\",'Blank - Request Form'!E265)","v":""},{"$f":"IF('Blank - Request Form'!G265=0,\"\",'Blank - Request Form'!G265)","v":""},{"$f":"IF(OR('Blank - Request Form'!H265=\"0\",'Blank - Request Form'!H265=\"000\",'Blank - Request Form'!H265=0),\"\",'Blank - Request Form'!H265)","v":""},{"$f":"IF(OR('Blank - Request Form'!I265=\"0\",'Blank - Request Form'!I265=\"00000\",'Blank - Request Form'!I265=0),\"\",'Blank - Request Form'!I265)","v":""},{"$f":"IF(OR('Blank - Request Form'!J265=\"0\",'Blank - Request Form'!J265=\"00000\",'Blank - Request Form'!J265=0),\"\",'Blank - Request Form'!J265)","v":""},{"$f":"IF(OR('Blank - Request Form'!K265=\"0\",'Blank - Request Form'!K265=\"00000\",'Blank - Request Form'!K265=0),\"\",'Blank - Request Form'!K265)","v":""},null,{"$f":"IF('Blank - Request Form'!N265=0,\"\",'Blank - Request Form'!N265)","v":""},null,null,null,{"$f":"IF(M27<>\"\",'Blank - Request Form'!$M$2,\"\")","v":""},{"$f":"IF('Blank - Request Form'!L265=0,\"\",'Blank - Request Form'!L265)","v":""},"",27]
[{"$f":"IF('Blank - Request Form'!E266=0,\"\",'Blank - Request Form'!E266)","v":""},{"$f":"IF('Blank - Request Form'!G266=0,\"\",'Blank - Request Form'!G266)","v":""},{"$f":"IF(OR('Blank - Request Form'!H266=\"0\",'Blank - Request Form'!H266=\"000\",'Blank - Request Form'!H266=0),\"\",'Blank - Request Form'!H266)","v":""},{"$f":"IF(OR('Blank - Request Form'!I266=\"0\",'Blank - Request Form'!I266=\"00000\",'Blank - Request Form'!I266=0),\"\",'Blank - Request Form'!I266)","v":""},{"$f":"IF(OR('Blank - Request Form'!J266=\"0\",'Blank - Request Form'!J266=\"00000\",'Blank - Request Form'!J266=0),\"\",'Blank - Request Form'!J266)","v":""},{"$f":"IF(OR('Blank - Request Form'!K266=\"0\",'Blank - Request Form'!K266=\"00000\",'Blank - Request Form'!K266=0),\"\",'Blank - Request Form'!K266)","v":""},null,{"$f":"IF('Blank - Request Form'!N266=0,\"\",'Blank - Request Form'!N266)","v":""},null,null,null,{"$f":"IF(M28<>\"\",'Blank - Request Form'!$M$2,\"\")","v":""},{"$f":"IF('Blank - Request Form'!L266=0,\"\",'Blank - Request Form'!L266)","v":""},"",28]
[{"$f":"IF('Blank - Request Form'!E267=0,\"\",'Blank - Request Form'!E267)","v":""},{"$f":"IF('Blank - Request Form'!G267=0,\"\",'Blank - Request Form'!G267)","v":""},{"$f":"IF(OR('Blank - Request Form'!H267=\"0\",'Blank - Request Form'!H267=\"000\",'Blank - Request Form'!H267=0),\"\",'Blank - Request Form'!H267)","v":""},{"$f":"IF(OR('Blank - Request Form'!I267=\"0\",'Blank - Request Form'!I267=\"00000\",'Blank - Request Form'!I267=0),\"\",'Blank - Request Form'!I267)","v":""},{"$f":"IF(OR('Blank - Request Form'!J267=\"0\",'Blank - Request Form'!J267=\"00000\",'Blank - Request Form'!J267=0),\"\",'Blank - Request Form'!J267)","v":""},{"$f":"IF(OR('Blank - Request Form'!K267=\"0\",'Blank - Request Form'!K267=\"00000\",'Blank - Request Form'!K267=0),\"\",'Blank - Request Form'!K267)","v":""},null,{"$f":"IF('Blank - Request Form'!N267=0,\"\",'Blank - Request Form'!N267)","v":""},null,null,null,{"$f":"IF(M29<>\"\",'Blank - Request Form'!$M$2,\"\")","v":""},{"$f":"IF('Blank - Request Form'!L267=0,\"\",'Blank - Request Form'!L267)","v":""},"",29]
[{"$f":"IF('Blank - Request Form'!E268=0,\"\",'Blank - Request Form'!E268)","v":""},{"$f":"IF('Blank - Request Form'!G268=0,\"\",'Blank - Request Form'!G268)","v":""},{"$f":"IF(OR('Blank - Request Form'!H268=\"0\",'Blank - Request Form'!H268=\"000\",'Blank - Request Form'!H268=0),\"\",'Blank - Request Form'!H268)","v":""},{"$f":"IF(OR('Blank - Request Form'!I268=\"0\",'Blank - Request Form'!I268=\"00000\",'Blank - Request Form'!I268=0),\"\",'Blank - Request Form'!I268)","v":""},{"$f":"IF(OR('Blank - Request Form'!J268=\"0\",'Blank - Request Form'!J268=\"00000\",'Blank - Request Form'!J268=0),\"\",'Blank - Request Form'!J268)","v":""},{"$f":"IF(OR('Blank - Request Form'!K268=\"0\",'Blank - Request Form'!K268=\"00000\",'Blank - Request Form'!K268=0),\"\",'Blank - Request Form'!K268)","v":""},null,{"$f":"IF('Blank - Request Form'!N268=0,\"\",'Blank - Request Form'!N268)","v":""},null,null,null,{"$f":"IF(M30<>\"\",'Blank - Request Form'!$M$2,\"\")","v":""},{"$f":"IF('Blank - Request Form'!L268=0,\"\",'Blank - Request Form'!L268)","v":""},"",30]
[{"$f":"IF('Blank - Request Form'!E269=0,\"\",'Blank - Request Form'!E269)","v":""},{"$f":"IF('Blank - Request Form'!G269=0,\"\",'Blank - Request Form'!G269)","v":""},{"$f":"IF(OR('Blank - Request Form'!H269=\"0\",'Blank - Request Form'!H269=\"000\",'Blank - Request Form'!H269=0),\"\",'Blank - Request Form'!H269)","v":""},{"$f":"IF(OR('Blank - Request Form'!I269=\"0\",'Blank - Request Form'!I269=\"00000\",'Blank - Request Form'!I269=0),\"\",'Blank - Request Form'!I269)","v":""},{"$f":"IF(OR('Blank - Request Form'!J269=\"0\",'Blank - Request Form'!J269=\"00000\",'Blank - Request Form'!J269=0),\"\",'Blank - Request Form'!J269)","v":""},{"$f":"IF(OR('Blank - Request Form'!K269=\"0\",'Blank - Request Form'!K269=\"00000\",'Blank - Request Form'!K269=0),\"\",'Blank - Request Form'!K269)","v":""},null,{"$f":"IF('Blank - Request Form'!N269=0,\"\",'Blank - Request Form'!N269)","v":""},null,null,null,{"$f":"IF(M31<>\"\",'Blank - Request Form'!$M$2,\"\")","v":""},{"$f":"IF('Blank - Request Form'!L269=0,\"\",'Blank - Request Form'!L269)","v":""},"",31]
[{"$f":"IF('Blank - Request Form'!E270=0,\"\",'Blank - Request Form'!E270)","v":""},{"$f":"IF('Blank - Request Form'!G270=0,\"\",'Blank - Request Form'!G270)","v":""},{"$f":"IF(OR('Blank - Request Form'!H270=\"0\",'Blank - Request Form'!H270=\"000\",'Blank - Request Form'!H270=0),\"\",'Blank - Request Form'!H270)","v":""},{"$f":"IF(OR('Blank - Request Form'!I270=\"0\",'Blank - Request Form'!I270=\"00000\",'Blank - Request Form'!I270=0),\"\",'Blank - Request Form'!I270)","v":""},{"$f":"IF(OR('Blank - Request Form'!J270=\"0\",'Blank - Request Form'!J270=\"00000\",'Blank - Request Form'!J270=0),\"\",'Blank - Request Form'!J270)","v":""},{"$f":"IF(OR('Blank - Request Form'!K270=\"0\",'Blank - Request Form'!K270=\"00000\",'Blank - Request Form'!K270=0),\"\",'Blank - Request Form'!K270)","v":""},null,{"$f":"IF('Blank - Request Form'!N270=0,\"\",'Blank - Request Form'!N270)","v":""},null,null,null,{"$f":"IF(M32<>\"\",'Blank - Request Form'!$M$2,\"\")","v":""},{"$f":"IF('Blank - Request Form'!L270=0,\"\",'Blank - Request Form'!L270)","v":""},"",32]
[{"$f":"IF('Blank - Request Form'!E271=0,\"\",'Blank - Request Form'!E271)","v":""},{"$f":"IF('Blank - Request Form'!G271=0,\"\",'Blank - Request Form'!G271)","v":""},{"$f":"IF(OR('Blank - Request Form'!H271=\"0\",'Blank - Request Form'!H271=\"000\",'Blank - Request Form'!H271=0),\"\",'Blank - Request Form'!H271)","v":""},{"$f":"IF(OR('Blank - Request Form'!I271=\"0\",'Blank - Request Form'!I271=\"00000\",'Blank - Request Form'!I271=0),\"\",'Blank - Request Form'!I271)","v":""},{"$f":"IF(OR('Blank - Request Form'!J271=\"0\",'Blank - Request Form'!J271=\"00000\",'Blank - Request Form'!J271=0),\"\",'Blank - Request Form'!J271)","v":""},{"$f":"IF(OR('Blank - Request Form'!K271=\"0\",'Blank - Request Form'!K271=\"00000\",'Blank - Request Form'!K271=0),\"\",'Blank - Request Form'!K271)","v":""},null,{"$f":"IF('Blank - Request Form'!N271=0,\"\",'Blank - Request Form'!N271)","v":""},null,null,null,{"$f":"IF(M33<>\"\",'Blank - Request Form'!$M$2,\"\")","v":""},{"$f":"IF('Blank - Request Form'!L271=0,\"\",'Blank - Request Form'!L271)","v":""},"",33]
[{"$f":"IF('Blank - Request Form'!E272=0,\"\",'Blank - Request Form'!E272)","v":""},{"$f":"IF('Blank - Request Form'!G272=0,\"\",'Blank - Request Form'!G272)","v":""},{"$f":"IF(OR('Blank - Request Form'!H272=\"0\",'Blank - Request Form'!H272=\"000\",'Blank - Request Form'!H272=0),\"\",'Blank - Request Form'!H272)","v":""},{"$f":"IF(OR('Blank - Request Form'!I272=\"0\",'Blank - Request Form'!I272=\"00000\",'Blank - Request Form'!I272=0),\"\",'Blank - Request Form'!I272)","v":""},{"$f":"IF(OR('Blank - Request Form'!J272=\"0\",'Blank - Request Form'!J272=\"00000\",'Blank - Request Form'!J272=0),\"\",'Blank - Request Form'!J272)","v":""},{"$f":"IF(OR('Blank - Request Form'!K272=\"0\",'Blank - Request Form'!K272=\"00000\",'Blank - Request Form'!K272=0),\"\",'Blank - Request Form'!K272)","v":""},null,{"$f":"IF('Blank - Request Form'!N272=0,\"\",'Blank - Request Form'!N272)","v":""},null,null,null,{"$f":"IF(M34<>\"\",'Blank - Request Form'!$M$2,\"\")","v":""},{"$f":"IF('Blank - Request Form'!L272=0,\"\",'Blank - Request Form'!L272)","v":""},"",34]
[{"$f":"IF('Blank - Request Form'!E273=0,\"\",'Blank - Request Form'!E273)","v":""},{"$f":"IF('Blank - Request Form'!G273=0,\"\",'Blank - Request Form'!G273)","v":""},{"$f":"IF(OR('Blank - Request Form'!H273=\"0\",'Blank - Request Form'!H273=\"000\",'Blank - Request Form'!H273=0),\"\",'Blank - Request Form'!H273)","v":""},{"$f":"IF(OR('Blank - Request Form'!I273=\"0\",'Blank - Request Form'!I273=\"00000\",'Blank - Request Form'!I273=0),\"\",'Blank - Request Form'!I273)","v":""},{"$f":"IF(OR('Blank - Request Form'!J273=\"0\",'Blank - Request Form'!J273=\"00000\",'Blank - Request Form'!J273=0),\"\",'Blank - Request Form'!J273)","v":""},{"$f":"IF(OR('Blank - Request Form'!K273=\"0\",'Blank - Request Form'!K273=\"00000\",'Blank - Request Form'!K273=0),\"\",'Blank - Request Form'!K273)","v":""},null,{"$f":"IF('Blank - Request Form'!N273=0,\"\",'Blank - Request Form'!N273)","v":""},null,null,null,{"$f":"IF(M35<>\"\",'Blank - Request Form'!$M$2,\"\")","v":""},{"$f":"IF('Blank - Request Form'!L273=0,\"\",'Blank - Request Form'!L273)","v":""},"",35]
[{"$f":"IF('Blank - Request Form'!E274=0,\"\",'Blank - Request Form'!E274)","v":""},{"$f":"IF('Blank - Request Form'!G274=0,\"\",'Blank - Request Form'!G274)","v":""},{"$f":"IF(OR('Blank - Request Form'!H274=\"0\",'Blank - Request Form'!H274=\"000\",'Blank - Request Form'!H274=0),\"\",'Blank - Request Form'!H274)","v":""},{"$f":"IF(OR('Blank - Request Form'!I274=\"0\",'Blank - Request Form'!I274=\"00000\",'Blank - Request Form'!I274=0),\"\",'Blank - Request Form'!I274)","v":""},{"$f":"IF(OR('Blank - Request Form'!J274=\"0\",'Blank - Request Form'!J274=\"00000\",'Blank - Request Form'!J274=0),\"\",'Blank - Request Form'!J274)","v":""},{"$f":"IF(OR('Blank - Request Form'!K274=\"0\",'Blank - Request Form'!K274=\"00000\",'Blank - Request Form'!K274=0),\"\",'Blank - Request Form'!K274)","v":""},null,{"$f":"IF('Blank - Request Form'!N274=0,\"\",'Blank - Request Form'!N274)","v":""},null,null,null,{"$f":"IF(M36<>\"\",'Blank - Request Form'!$M$2,\"\")","v":""},{"$f":"IF('Blank - Request Form'!L274=0,\"\",'Blank - Request Form'!L274)","v":""},"",36]
[{"$f":"IF('Blank - Request Form'!E275=0,\"\",'Blank - Request Form'!E275)","v":""},{"$f":"IF('Blank - Request Form'!G275=0,\"\",'Blank - Request Form'!G275)","v":""},{"$f":"IF(OR('Blank - Request Form'!H275=\"0\",'Blank - Request Form'!H275=\"000\",'Blank - Request Form'!H275=0),\"\",'Blank - Request Form'!H275)","v":""},{"$f":"IF(OR('Blank - Request Form'!I275=\"0\",'Blank - Request Form'!I275=\"00000\",'Blank - Request Form'!I275=0),\"\",'Blank - Request Form'!I275)","v":""},{"$f":"IF(OR('Blank - Request Form'!J275=\"0\",'Blank - Request Form'!J275=\"00000\",'Blank - Request Form'!J275=0),\"\",'Blank - Request Form'!J275)","v":""},{"$f":"IF(OR('Blank - Request Form'!K275=\"0\",'Blank - Request Form'!K275=\"00000\",'Blank - Request Form'!K275=0),\"\",'Blank - Request Form'!K275)","v":""},null,{"$f":"IF('Blank - Request Form'!N275=0,\"\",'Blank - Request Form'!N275)","v":""},null,null,null,{"$f":"IF(M37<>\"\",'Blank - Request Form'!$M$2,\"\")","v":""},{"$f":"IF('Blank - Request Form'!L275=0,\"\",'Blank - Request Form'!L275)","v":""},"",37]
[{"$f":"IF('Blank - Request Form'!E276=0,\"\",'Blank - Request Form'!E276)","v":""},{"$f":"IF('Blank - Request Form'!G276=0,\"\",'Blank - Request Form'!G276)","v":""},{"$f":"IF(OR('Blank - Request Form'!H276=\"0\",'Blank - Request Form'!H276=\"000\",'Blank - Request Form'!H276=0),\"\",'Blank - Request Form'!H276)","v":""},{"$f":"IF(OR('Blank - Request Form'!I276=\"0\",'Blank - Request Form'!I276=\"00000\",'Blank - Request Form'!I276=0),\"\",'Blank - Request Form'!I276)","v":""},{"$f":"IF(OR('Blank - Request Form'!J276=\"0\",'Blank - Request Form'!J276=\"00000\",'Blank - Request Form'!J276=0),\"\",'Blank - Request Form'!J276)","v":""},{"$f":"IF(OR('Blank - Request Form'!K276=\"0\",'Blank - Request Form'!K276=\"00000\",'Blank - Request Form'!K276=0),\"\",'Blank - Request Form'!K276)","v":""},null,{"$f":"IF('Blank - Request Form'!N276=0,\"\",'Blank - Request Form'!N276)","v":""},null,null,null,{"$f":"IF(M38<>\"\",'Blank - Request Form'!$M$2,\"\")","v":""},{"$f":"IF('Blank - Request Form'!L276=0,\"\",'Blank - Request Form'!L276)","v":""},"",38]
[{"$f":"IF('Blank - Request Form'!E277=0,\"\",'Blank - Request Form'!E277)","v":""},{"$f":"IF('Blank - Request Form'!G277=0,\"\",'Blank - Request Form'!G277)","v":""},{"$f":"IF(OR('Blank - Request Form'!H277=\"0\",'Blank - Request Form'!H277=\"000\",'Blank - Request Form'!H277=0),\"\",'Blank - Request Form'!H277)","v":""},{"$f":"IF(OR('Blank - Request Form'!I277=\"0\",'Blank - Request Form'!I277=\"00000\",'Blank - Request Form'!I277=0),\"\",'Blank - Request Form'!I277)","v":""},{"$f":"IF(OR('Blank - Request Form'!J277=\"0\",'Blank - Request Form'!J277=\"00000\",'Blank - Request Form'!J277=0),\"\",'Blank - Request Form'!J277)","v":""},{"$f":"IF(OR('Blank - Request Form'!K277=\"0\",'Blank - Request Form'!K277=\"00000\",'Blank - Request Form'!K277=0),\"\",'Blank - Request Form'!K277)","v":""},null,{"$f":"IF('Blank - Request Form'!N277=0,\"\",'Blank - Request Form'!N277)","v":""},null,null,null,{"$f":"IF(M39<>\"\",'Blank - Request Form'!$M$2,\"\")","v":""},{"$f":"IF('Blank - Request Form'!L277=0,\"\",'Blank - Request Form'!L277)","v":""},"",39]
[{"$f":"IF('Blank - Request Form'!E278=0,\"\",'Blank - Request Form'!E278)","v":""},{"$f":"IF('Blank - Request Form'!G278=0,\"\",'Blank - Request Form'!G278)","v":""},{"$f":"IF(OR('Blank - Request Form'!H278=\"0\",'Blank - Request Form'!H278=\"000\",'Blank - Request Form'!H278=0),\"\",'Blank - Request Form'!H278)","v":""},{"$f":"IF(OR('Blank - Request Form'!I278=\"0\",'Blank - Request Form'!I278=\"00000\",'Blank - Request Form'!I278=0),\"\",'Blank - Request Form'!I278)","v":""},{"$f":"IF(OR('Blank - Request Form'!J278=\"0\",'Blank - Request Form'!J278=\"00000\",'Blank - Request Form'!J278=0),\"\",'Blank - Request Form'!J278)","v":""},{"$f":"IF(OR('Blank - Request Form'!K278=\"0\",'Blank - Request Form'!K278=\"00000\",'Blank - Request Form'!K278=0),\"\",'Blank - Request Form'!K278)","v":""},null,{"$f":"IF('Blank - Request Form'!N278=0,\"\",'Blank - Request Form'!N278)","v":""},null,null,null,{"$f":"IF(M40<>\"\",'Blank - Request Form'!$M$2,\"\")","v":""},{"$f":"IF('Blank - Request Form'!L278=0,\"\",'Blank - Request Form'!L278)","v":""},"",40]
[{"$f":"IF('Blank - Request Form'!E279=0,\"\",'Blank - Request Form'!E279)","v":""},{"$f":"IF('Blank - Request Form'!G279=0,\"\",'Blank - Request Form'!G279)","v":""},{"$f":"IF(OR('Blank - Request Form'!H279=\"0\",'Blank - Request Form'!H279=\"000\",'Blank - Request Form'!H279=0),\"\",'Blank - Request Form'!H279)","v":""},{"$f":"IF(OR('Blank - Request Form'!I279=\"0\",'Blank - Request Form'!I279=\"00000\",'Blank - Request Form'!I279=0),\"\",'Blank - Request Form'!I279)","v":""},{"$f":"IF(OR('Blank - Request Form'!J279=\"0\",'Blank - Request Form'!J279=\"00000\",'Blank - Request Form'!J279=0),\"\",'Blank - Request Form'!J279)","v":""},{"$f":"IF(OR('Blank - Request Form'!K279=\"0\",'Blank - Request Form'!K279=\"00000\",'Blank - Request Form'!K279=0),\"\",'Blank - Request Form'!K279)","v":""},null,{"$f":"IF('Blank - Request Form'!N279=0,\"\",'Blank - Request Form'!N279)","v":""},null,null,null,{"$f":"IF(M41<>\"\",'Blank - Request Form'!$M$2,\"\")","v":""},{"$f":"IF('Blank - Request Form'!L279=0,\"\",'Blank - Request Form'!L279)","v":""},"",41]
[{"$f":"IF('Blank - Request Form'!E280=0,\"\",'Blank - Request Form'!E280)","v":""},{"$f":"IF('Blank - Request Form'!G280=0,\"\",'Blank - Request Form'!G280)","v":""},{"$f":"IF(OR('Blank - Request Form'!H280=\"0\",'Blank - Request Form'!H280=\"000\",'Blank - Request Form'!H280=0),\"\",'Blank - Request Form'!H280)","v":""},{"$f":"IF(OR('Blank - Request Form'!I280=\"0\",'Blank - Request Form'!I280=\"00000\",'Blank - Request Form'!I280=0),\"\",'Blank - Request Form'!I280)","v":""},{"$f":"IF(OR('Blank - Request Form'!J280=\"0\",'Blank - Request Form'!J280=\"00000\",'Blank - Request Form'!J280=0),\"\",'Blank - Request Form'!J280)","v":""},{"$f":"IF(OR('Blank - Request Form'!K280=\"0\",'Blank - Request Form'!K280=\"00000\",'Blank - Request Form'!K280=0),\"\",'Blank - Request Form'!K280)","v":""},null,{"$f":"IF('Blank - Request Form'!N280=0,\"\",'Blank - Request Form'!N280)","v":""},null,null,null,{"$f":"IF(M42<>\"\",'Blank - Request Form'!$M$2,\"\")","v":""},{"$f":"IF('Blank - Request Form'!L280=0,\"\",'Blank - Request Form'!L280)","v":""},"",42]
[{"$f":"IF('Blank - Request Form'!E281=0,\"\",'Blank - Request Form'!E281)","v":""},{"$f":"IF('Blank - Request Form'!G281=0,\"\",'Blank - Request Form'!G281)","v":""},{"$f":"IF(OR('Blank - Request Form'!H281=\"0\",'Blank - Request Form'!H281=\"000\",'Blank - Request Form'!H281=0),\"\",'Blank - Request Form'!H281)","v":""},{"$f":"IF(OR('Blank - Request Form'!I281=\"0\",'Blank - Request Form'!I281=\"00000\",'Blank - Request Form'!I281=0),\"\",'Blank - Request Form'!I281)","v":""},{"$f":"IF(OR('Blank - Request Form'!J281=\"0\",'Blank - Request Form'!J281=\"00000\",'Blank - Request Form'!J281=0),\"\",'Blank - Request Form'!J281)","v":""},{"$f":"IF(OR('Blank - Request Form'!K281=\"0\",'Blank - Request Form'!K281=\"00000\",'Blank - Request Form'!K281=0),\"\",'Blank - Request Form'!K281)","v":""},null,{"$f":"IF('Blank - Request Form'!N281=0,\"\",'Blank - Request Form'!N281)","v":""},null,null,null,{"$f":"IF(M43<>\"\",'Blank - Request Form'!$M$2,\"\")","v":""},{"$f":"IF('Blank - Request Form'!L281=0,\"\",'Blank - Request Form'!L281)","v":""},"",43]
[{"$f":"IF('Blank - Request Form'!E282=0,\"\",'Blank - Request Form'!E282)","v":""},{"$f":"IF('Blank - Request Form'!G282=0,\"\",'Blank - Request Form'!G282)","v":""},{"$f":"IF(OR('Blank - Request Form'!H282=\"0\",'Blank - Request Form'!H282=\"000\",'Blank - Request Form'!H282=0),\"\",'Blank - Request Form'!H282)","v":""},{"$f":"IF(OR('Blank - Request Form'!I282=\"0\",'Blank - Request Form'!I282=\"00000\",'Blank - Request Form'!I282=0),\"\",'Blank - Request Form'!I282)","v":""},{"$f":"IF(OR('Blank - Request Form'!J282=\"0\",'Blank - Request Form'!J282=\"00000\",'Blank - Request Form'!J282=0),\"\",'Blank - Request Form'!J282)","v":""},{"$f":"IF(OR('Blank - Request Form'!K282=\"0\",'Blank - Request Form'!K282=\"00000\",'Blank - Request Form'!K282=0),\"\",'Blank - Request Form'!K282)","v":""},null,{"$f":"IF('Blank - Request Form'!N282=0,\"\",'Blank - Request Form'!N282)","v":""},null,null,null,{"$f":"IF(M44<>\"\",'Blank - Request Form'!$M$2,\"\")","v":""},{"$f":"IF('Blank - Request Form'!L282=0,\"\",'Blank - Request Form'!L282)","v":""},"",44]
[{"$f":"IF('Blank - Request Form'!E283=0,\"\",'Blank - Request Form'!E283)","v":""},{"$f":"IF('Blank - Request Form'!G283=0,\"\",'Blank - Request Form'!G283)","v":""},{"$f":"IF(OR('Blank - Request Form'!H283=\"0\",'Blank - Request Form'!H283=\"000\",'Blank - Request Form'!H283=0),\"\",'Blank - Request Form'!H283)","v":""},{"$f":"IF(OR('Blank - Request Form'!I283=\"0\",'Blank - Request Form'!I283=\"00000\",'Blank - Request Form'!I283=0),\"\",'Blank - Request Form'!I283)","v":""},{"$f":"IF(OR('Blank - Request Form'!J283=\"0\",'Blank - Request Form'!J283=\"00000\",'Blank - Request Form'!J283=0),\"\",'Blank - Request Form'!J283)","v":""},{"$f":"IF(OR('Blank - Request Form'!K283=\"0\",'Blank - Request Form'!K283=\"00000\",'Blank - Request Form'!K283=0),\"\",'Blank - Request Form'!K283)","v":""},null,{"$f":"IF('Blank - Request Form'!N283=0,\"\",'Blank - Request Form'!N283)","v":""},null,null,null,{"$f":"IF(M45<>\"\",'Blank - Request Form'!$M$2,\"\")","v":""},{"$f":"IF('Blank - Request Form'!L283=0,\"\",'Blank - Request Form'!L283)","v":""},"",45]
[{"$f":"IF('Blank - Request Form'!E284=0,\"\",'Blank - Request Form'!E284)","v":""},{"$f":"IF('Blank - Request Form'!G284=0,\"\",'Blank - Request Form'!G284)","v":""},{"$f":"IF(OR('Blank - Request Form'!H284=\"0\",'Blank - Request Form'!H284=\"000\",'Blank - Request Form'!H284=0),\"\",'Blank - Request Form'!H284)","v":""},{"$f":"IF(OR('Blank - Request Form'!I284=\"0\",'Blank - Request Form'!I284=\"00000\",'Blank - Request Form'!I284=0),\"\",'Blank - Request Form'!I284)","v":""},{"$f":"IF(OR('Blank - Request Form'!J284=\"0\",'Blank - Request Form'!J284=\"00000\",'Blank - Request Form'!J284=0),\"\",'Blank - Request Form'!J284)","v":""},{"$f":"IF(OR('Blank - Request Form'!K284=\"0\",'Blank - Request Form'!K284=\"00000\",'Blank - Request Form'!K284=0),\"\",'Blank - Request Form'!K284)","v":""},null,{"$f":"IF('Blank - Request Form'!N284=0,\"\",'Blank - Request Form'!N284)","v":""},null,null,null,{"$f":"IF(M46<>\"\",'Blank - Request Form'!$M$2,\"\")","v":""},{"$f":"IF('Blank - Request Form'!L284=0,\"\",'Blank - Request Form'!L284)","v":""},"",46]
[{"$f":"IF('Blank - Request Form'!E285=0,\"\",'Blank - Request Form'!E285)","v":""},{"$f":"IF('Blank - Request Form'!G285=0,\"\",'Blank - Request Form'!G285)","v":""},{"$f":"IF(OR('Blank - Request Form'!H285=\"0\",'Blank - Request Form'!H285=\"000\",'Blank - Request Form'!H285=0),\"\",'Blank - Request Form'!H285)","v":""},{"$f":"IF(OR('Blank - Request Form'!I285=\"0\",'Blank - Request Form'!I285=\"00000\",'Blank - Request Form'!I285=0),\"\",'Blank - Request Form'!I285)","v":""},{"$f":"IF(OR('Blank - Request Form'!J285=\"0\",'Blank - Request Form'!J285=\"00000\",'Blank - Request Form'!J285=0),\"\",'Blank - Request Form'!J285)","v":""},{"$f":"IF(OR('Blank - Request Form'!K285=\"0\",'Blank - Request Form'!K285=\"00000\",'Blank - Request Form'!K285=0),\"\",'Blank - Request Form'!K285)","v":""},null,{"$f":"IF('Blank - Request Form'!N285=0,\"\",'Blank - Request Form'!N285)","v":""},null,null,null,{"$f":"IF(M47<>\"\",'Blank - Request Form'!$M$2,\"\")","v":""},{"$f":"IF('Blank - Request Form'!L285=0,\"\",'Blank - Request Form'!L285)","v":""},"",47]
[{"$f":"IF('Blank - Request Form'!E286=0,\"\",'Blank - Request Form'!E286)","v":""},{"$f":"IF('Blank - Request Form'!G286=0,\"\",'Blank - Request Form'!G286)","v":""},{"$f":"IF(OR('Blank - Request Form'!H286=\"0\",'Blank - Request Form'!H286=\"000\",'Blank - Request Form'!H286=0),\"\",'Blank - Request Form'!H286)","v":""},{"$f":"IF(OR('Blank - Request Form'!I286=\"0\",'Blank - Request Form'!I286=\"00000\",'Blank - Request Form'!I286=0),\"\",'Blank - Request Form'!I286)","v":""},{"$f":"IF(OR('Blank - Request Form'!J286=\"0\",'Blank - Request Form'!J286=\"00000\",'Blank - Request Form'!J286=0),\"\",'Blank - Request Form'!J286)","v":""},{"$f":"IF(OR('Blank - Request Form'!K286=\"0\",'Blank - Request Form'!K286=\"00000\",'Blank - Request Form'!K286=0),\"\",'Blank - Request Form'!K286)","v":""},null,{"$f":"IF('Blank - Request Form'!N286=0,\"\",'Blank - Request Form'!N286)","v":""},null,null,null,{"$f":"IF(M48<>\"\",'Blank - Request Form'!$M$2,\"\")","v":""},{"$f":"IF('Blank - Request Form'!L286=0,\"\",'Blank - Request Form'!L286)","v":""},"",48]
[{"$f":"IF('Blank - Request Form'!E287=0,\"\",'Blank - Request Form'!E287)","v":""},{"$f":"IF('Blank - Request Form'!G287=0,\"\",'Blank - Request Form'!G287)","v":""},{"$f":"IF(OR('Blank - Request Form'!H287=\"0\",'Blank - Request Form'!H287=\"000\",'Blank - Request Form'!H287=0),\"\",'Blank - Request Form'!H287)","v":""},{"$f":"IF(OR('Blank - Request Form'!I287=\"0\",'Blank - Request Form'!I287=\"00000\",'Blank - Request Form'!I287=0),\"\",'Blank - Request Form'!I287)","v":""},{"$f":"IF(OR('Blank - Request Form'!J287=\"0\",'Blank - Request Form'!J287=\"00000\",'Blank - Request Form'!J287=0),\"\",'Blank - Request Form'!J287)","v":""},{"$f":"IF(OR('Blank - Request Form'!K287=\"0\",'Blank - Request Form'!K287=\"00000\",'Blank - Request Form'!K287=0),\"\",'Blank - Request Form'!K287)","v":""},null,{"$f":"IF('Blank - Request Form'!N287=0,\"\",'Blank - Request Form'!N287)","v":""},null,null,null,{"$f":"IF(M49<>\"\",'Blank - Request Form'!$M$2,\"\")","v":""},{"$f":"IF('Blank - Request Form'!L287=0,\"\",'Blank - Request Form'!L287)","v":""},"",49]
[{"$f":"IF('Blank - Request Form'!E288=0,\"\",'Blank - Request Form'!E288)","v":""},{"$f":"IF('Blank - Request Form'!G288=0,\"\",'Blank - Request Form'!G288)","v":""},{"$f":"IF(OR('Blank - Request Form'!H288=\"0\",'Blank - Request Form'!H288=\"000\",'Blank - Request Form'!H288=0),\"\",'Blank - Request Form'!H288)","v":""},{"$f":"IF(OR('Blank - Request Form'!I288=\"0\",'Blank - Request Form'!I288=\"00000\",'Blank - Request Form'!I288=0),\"\",'Blank - Request Form'!I288)","v":""},{"$f":"IF(OR('Blank - Request Form'!J288=\"0\",'Blank - Request Form'!J288=\"00000\",'Blank - Request Form'!J288=0),\"\",'Blank - Request Form'!J288)","v":""},{"$f":"IF(OR('Blank - Request Form'!K288=\"0\",'Blank - Request Form'!K288=\"00000\",'Blank - Request Form'!K288=0),\"\",'Blank - Request Form'!K288)","v":""},null,{"$f":"IF('Blank - Request Form'!N288=0,\"\",'Blank - Request Form'!N288)","v":""},null,null,null,{"$f":"IF(M50<>\"\",'Blank - Request Form'!$M$2,\"\")","v":""},{"$f":"IF('Blank - Request Form'!L288=0,\"\",'Blank - Request Form'!L288)","v":""},"",50]
[{"$f":"IF('Blank - Request Form'!E289=0,\"\",'Blank - Request Form'!E289)","v":""},{"$f":"IF('Blank - Request Form'!G289=0,\"\",'Blank - Request Form'!G289)","v":""},{"$f":"IF(OR('Blank - Request Form'!H289=\"0\",'Blank - Request Form'!H289=\"000\",'Blank - Request Form'!H289=0),\"\",'Blank - Request Form'!H289)","v":""},{"$f":"IF(OR('Blank - Request Form'!I289=\"0\",'Blank - Request Form'!I289=\"00000\",'Blank - Request Form'!I289=0),\"\",'Blank - Request Form'!I289)","v":""},{"$f":"IF(OR('Blank - Request Form'!J289=\"0\",'Blank - Request Form'!J289=\"00000\",'Blank - Request Form'!J289=0),\"\",'Blank - Request Form'!J289)","v":""},{"$f":"IF(OR('Blank - Request Form'!K289=\"0\",'Blank - Request Form'!K289=\"00000\",'Blank - Request Form'!K289=0),\"\",'Blank - Request Form'!K289)","v":""},null,{"$f":"IF('Blank - Request Form'!N289=0,\"\",'Blank - Request Form'!N289)","v":""},null,null,null,{"$f":"IF(M51<>\"\",'Blank - Request Form'!$M$2,\"\")","v":""},{"$f":"IF('Blank - Request Form'!L289=0,\"\",'Blank - Request Form'!L289)","v":""},"",51]
[{"$f":"IF('Blank - Request Form'!E290=0,\"\",'Blank - Request Form'!E290)","v":""},{"$f":"IF('Blank - Request Form'!G290=0,\"\",'Blank - Request Form'!G290)","v":""},{"$f":"IF(OR('Blank - Request Form'!H290=\"0\",'Blank - Request Form'!H290=\"000\",'Blank - Request Form'!H290=0),\"\",'Blank - Request Form'!H290)","v":""},{"$f":"IF(OR('Blank - Request Form'!I290=\"0\",'Blank - Request Form'!I290=\"00000\",'Blank - Request Form'!I290=0),\"\",'Blank - Request Form'!I290)","v":""},{"$f":"IF(OR('Blank - Request Form'!J290=\"0\",'Blank - Request Form'!J290=\"00000\",'Blank - Request Form'!J290=0),\"\",'Blank - Request Form'!J290)","v":""},{"$f":"IF(OR('Blank - Request Form'!K290=\"0\",'Blank - Request Form'!K290=\"00000\",'Blank - Request Form'!K290=0),\"\",'Blank - Request Form'!K290)","v":""},null,{"$f":"IF('Blank - Request Form'!N290=0,\"\",'Blank - Request Form'!N290)","v":""},null,null,null,{"$f":"IF(M52<>\"\",'Blank - Request Form'!$M$2,\"\")","v":""},{"$f":"IF('Blank - Request Form'!L290=0,\"\",'Blank - Request Form'!L290)","v":""},"",52]
[{"$f":"IF('Blank - Request Form'!E291=0,\"\",'Blank - Request Form'!E291)","v":""},{"$f":"IF('Blank - Request Form'!G291=0,\"\",'Blank - Request Form'!G291)","v":""},{"$f":"IF(OR('Blank - Request Form'!H291=\"0\",'Blank - Request Form'!H291=\"000\",'Blank - Request Form'!H291=0),\"\",'Blank - Request Form'!H291)","v":""},{"$f":"IF(OR('Blank - Request Form'!I291=\"0\",'Blank - Request Form'!I291=\"00000\",'Blank - Request Form'!I291=0),\"\",'Blank - Request Form'!I291)","v":""},{"$f":"IF(OR('Blank - Request Form'!J291=\"0\",'Blank - Request Form'!J291=\"00000\",'Blank - Request Form'!J291=0),\"\",'Blank - Request Form'!J291)","v":""},{"$f":"IF(OR('Blank - Request Form'!K291=\"0\",'Blank - Request Form'!K291=\"00000\",'Blank - Request Form'!K291=0),\"\",'Blank - Request Form'!K291)","v":""},null,{"$f":"IF('Blank - Request Form'!N291=0,\"\",'Blank - Request Form'!N291)","v":""},null,null,null,{"$f":"IF(M53<>\"\",'Blank - Request Form'!$M$2,\"\")","v":""},{"$f":"IF('Blank - Request Form'!L291=0,\"\",'Blank - Request Form'!L291)","v":""},"",53]
[{"$f":"IF('Blank - Request Form'!E292=0,\"\",'Blank - Request Form'!E292)","v":""},{"$f":"IF('Blank - Request Form'!G292=0,\"\",'Blank - Request Form'!G292)","v":""},{"$f":"IF(OR('Blank - Request Form'!H292=\"0\",'Blank - Request Form'!H292=\"000\",'Blank - Request Form'!H292=0),\"\",'Blank - Request Form'!H292)","v":""},{"$f":"IF(OR('Blank - Request Form'!I292=\"0\",'Blank - Request Form'!I292=\"00000\",'Blank - Request Form'!I292=0),\"\",'Blank - Request Form'!I292)","v":""},{"$f":"IF(OR('Blank - Request Form'!J292=\"0\",'Blank - Request Form'!J292=\"00000\",'Blank - Request Form'!J292=0),\"\",'Blank - Request Form'!J292)","v":""},{"$f":"IF(OR('Blank - Request Form'!K292=\"0\",'Blank - Request Form'!K292=\"00000\",'Blank - Request Form'!K292=0),\"\",'Blank - Request Form'!K292)","v":""},null,{"$f":"IF('Blank - Request Form'!N292=0,\"\",'Blank - Request Form'!N292)","v":""},null,null,null,{"$f":"IF(M54<>\"\",'Blank - Request Form'!$M$2,\"\")","v":""},{"$f":"IF('Blank - Request Form'!L292=0,\"\",'Blank - Request Form'!L292)","v":""},"",54]
[{"$f":"IF('Blank - Request Form'!E293=0,\"\",'Blank - Request Form'!E293)","v":""},{"$f":"IF('Blank - Request Form'!G293=0,\"\",'Blank - Request Form'!G293)","v":""},{"$f":"IF(OR('Blank - Request Form'!H293=\"0\",'Blank - Request Form'!H293=\"000\",'Blank - Request Form'!H293=0),\"\",'Blank - Request Form'!H293)","v":""},{"$f":"IF(OR('Blank - Request Form'!I293=\"0\",'Blank - Request Form'!I293=\"00000\",'Blank - Request Form'!I293=0),\"\",'Blank - Request Form'!I293)","v":""},{"$f":"IF(OR('Blank - Request Form'!J293=\"0\",'Blank - Request Form'!J293=\"00000\",'Blank - Request Form'!J293=0),\"\",'Blank - Request Form'!J293)","v":""},{"$f":"IF(OR('Blank - Request Form'!K293=\"0\",'Blank - Request Form'!K293=\"00000\",'Blank - Request Form'!K293=0),\"\",'Blank - Request Form'!K293)","v":""},null,{"$f":"IF('Blank - Request Form'!N293=0,\"\",'Blank - Request Form'!N293)","v":""},null,null,null,{"$f":"IF(M55<>\"\",'Blank - Request Form'!$M$2,\"\")","v":""},{"$f":"IF('Blank - Request Form'!L293=0,\"\",'Blank - Request Form'!L293)","v":""},"",55]
[{"$f":"IF('Blank - Request Form'!E294=0,\"\",'Blank - Request Form'!E294)","v":""},{"$f":"IF('Blank - Request Form'!G294=0,\"\",'Blank - Request Form'!G294)","v":""},{"$f":"IF(OR('Blank - Request Form'!H294=\"0\",'Blank - Request Form'!H294=\"000\",'Blank - Request Form'!H294=0),\"\",'Blank - Request Form'!H294)","v":""},{"$f":"IF(OR('Blank - Request Form'!I294=\"0\",'Blank - Request Form'!I294=\"00000\",'Blank - Request Form'!I294=0),\"\",'Blank - Request Form'!I294)","v":""},{"$f":"IF(OR('Blank - Request Form'!J294=\"0\",'Blank - Request Form'!J294=\"00000\",'Blank - Request Form'!J294=0),\"\",'Blank - Request Form'!J294)","v":""},{"$f":"IF(OR('Blank - Request Form'!K294=\"0\",'Blank - Request Form'!K294=\"00000\",'Blank - Request Form'!K294=0),\"\",'Blank - Request Form'!K294)","v":""},null,{"$f":"IF('Blank - Request Form'!N294=0,\"\",'Blank - Request Form'!N294)","v":""},null,null,null,{"$f":"IF(M56<>\"\",'Blank - Request Form'!$M$2,\"\")","v":""},{"$f":"IF('Blank - Request Form'!L294=0,\"\",'Blank - Request Form'!L294)","v":""},"",56]
[{"$f":"IF('Blank - Request Form'!E295=0,\"\",'Blank - Request Form'!E295)","v":""},{"$f":"IF('Blank - Request Form'!G295=0,\"\",'Blank - Request Form'!G295)","v":""},{"$f":"IF(OR('Blank - Request Form'!H295=\"0\",'Blank - Request Form'!H295=\"000\",'Blank - Request Form'!H295=0),\"\",'Blank - Request Form'!H295)","v":""},{"$f":"IF(OR('Blank - Request Form'!I295=\"0\",'Blank - Request Form'!I295=\"00000\",'Blank - Request Form'!I295=0),\"\",'Blank - Request Form'!I295)","v":""},{"$f":"IF(OR('Blank - Request Form'!J295=\"0\",'Blank - Request Form'!J295=\"00000\",'Blank - Request Form'!J295=0),\"\",'Blank - Request Form'!J295)","v":""},{"$f":"IF(OR('Blank - Request Form'!K295=\"0\",'Blank - Request Form'!K295=\"00000\",'Blank - Request Form'!K295=0),\"\",'Blank - Request Form'!K295)","v":""},null,{"$f":"IF('Blank - Request Form'!N295=0,\"\",'Blank - Request Form'!N295)","v":""},null,null,null,{"$f":"IF(M57<>\"\",'Blank - Request Form'!$M$2,\"\")","v":""},{"$f":"IF('Blank - Request Form'!L295=0,\"\",'Blank - Request Form'!L295)","v":""},"",57]
[{"$f":"IF('Blank - Request Form'!E296=0,\"\",'Blank - Request Form'!E296)","v":""},{"$f":"IF('Blank - Request Form'!G296=0,\"\",'Blank - Request Form'!G296)","v":""},{"$f":"IF(OR('Blank - Request Form'!H296=\"0\",'Blank - Request Form'!H296=\"000\",'Blank - Request Form'!H296=0),\"\",'Blank - Request Form'!H296)","v":""},{"$f":"IF(OR('Blank - Request Form'!I296=\"0\",'Blank - Request Form'!I296=\"00000\",'Blank - Request Form'!I296=0),\"\",'Blank - Request Form'!I296)","v":""},{"$f":"IF(OR('Blank - Request Form'!J296=\"0\",'Blank - Request Form'!J296=\"00000\",'Blank - Request Form'!J296=0),\"\",'Blank - Request Form'!J296)","v":""},{"$f":"IF(OR('Blank - Request Form'!K296=\"0\",'Blank - Request Form'!K296=\"00000\",'Blank - Request Form'!K296=0),\"\",'Blank - Request Form'!K296)","v":""},null,{"$f":"IF('Blank - Request Form'!N296=0,\"\",'Blank - Request Form'!N296)","v":""},null,null,null,{"$f":"IF(M58<>\"\",'Blank - Request Form'!$M$2,\"\")","v":""},{"$f":"IF('Blank - Request Form'!L296=0,\"\",'Blank - Request Form'!L296)","v":""},"",58]
[{"$f":"IF('Blank - Request Form'!E297=0,\"\",'Blank - Request Form'!E297)","v":""},{"$f":"IF('Blank - Request Form'!G297=0,\"\",'Blank - Request Form'!G297)","v":""},{"$f":"IF(OR('Blank - Request Form'!H297=\"0\",'Blank - Request Form'!H297=\"000\",'Blank - Request Form'!H297=0),\"\",'Blank - Request Form'!H297)","v":""},{"$f":"IF(OR('Blank - Request Form'!I297=\"0\",'Blank - Request Form'!I297=\"00000\",'Blank - Request Form'!I297=0),\"\",'Blank - Request Form'!I297)","v":""},{"$f":"IF(OR('Blank - Request Form'!J297=\"0\",'Blank - Request Form'!J297=\"00000\",'Blank - Request Form'!J297=0),\"\",'Blank - Request Form'!J297)","v":""},{"$f":"IF(OR('Blank - Request Form'!K297=\"0\",'Blank - Request Form'!K297=\"00000\",'Blank - Request Form'!K297=0),\"\",'Blank - Request Form'!K297)","v":""},null,{"$f":"IF('Blank - Request Form'!N297=0,\"\",'Blank - Request Form'!N297)","v":""},null,null,null,{"$f":"IF(M59<>\"\",'Blank - Request Form'!$M$2,\"\")","v":""},{"$f":"IF('Blank - Request Form'!L297=0,\"\",'Blank - Request Form'!L297)","v":""},"",59]
[{"$f":"IF('Blank - Request Form'!E298=0,\"\",'Blank - Request Form'!E298)","v":""},{"$f":"IF('Blank - Request Form'!G298=0,\"\",'Blank - Request Form'!G298)","v":""},{"$f":"IF(OR('Blank - Request Form'!H298=\"0\",'Blank - Request Form'!H298=\"000\",'Blank - Request Form'!H298=0),\"\",'Blank - Request Form'!H298)","v":""},{"$f":"IF(OR('Blank - Request Form'!I298=\"0\",'Blank - Request Form'!I298=\"00000\",'Blank - Request Form'!I298=0),\"\",'Blank - Request Form'!I298)","v":""},{"$f":"IF(OR('Blank - Request Form'!J298=\"0\",'Blank - Request Form'!J298=\"00000\",'Blank - Request Form'!J298=0),\"\",'Blank - Request Form'!J298)","v":""},{"$f":"IF(OR('Blank - Request Form'!K298=\"0\",'Blank - Request Form'!K298=\"00000\",'Blank - Request Form'!K298=0),\"\",'Blank - Request Form'!K298)","v":""},null,{"$f":"IF('Blank - Request Form'!N298=0,\"\",'Blank - Request Form'!N298)","v":""},null,null,null,{"$f":"IF(M60<>\"\",'Blank - Request Form'!$M$2,\"\")","v":""},{"$f":"IF('Blank - Request Form'!L298=0,\"\",'Blank - Request Form'!L298)","v":""},"",60]
[{"$f":"IF('Blank - Request Form'!E299=0,\"\",'Blank - Request Form'!E299)","v":""},{"$f":"IF('Blank - Request Form'!G299=0,\"\",'Blank - Request Form'!G299)","v":""},{"$f":"IF(OR('Blank - Request Form'!H299=\"0\",'Blank - Request Form'!H299=\"000\",'Blank - Request Form'!H299=0),\"\",'Blank - Request Form'!H299)","v":""},{"$f":"IF(OR('Blank - Request Form'!I299=\"0\",'Blank - Request Form'!I299=\"00000\",'Blank - Request Form'!I299=0),\"\",'Blank - Request Form'!I299)","v":""},{"$f":"IF(OR('Blank - Request Form'!J299=\"0\",'Blank - Request Form'!J299=\"00000\",'Blank - Request Form'!J299=0),\"\",'Blank - Request Form'!J299)","v":""},{"$f":"IF(OR('Blank - Request Form'!K299=\"0\",'Blank - Request Form'!K299=\"00000\",'Blank - Request Form'!K299=0),\"\",'Blank - Request Form'!K299)","v":""},null,{"$f":"IF('Blank - Request Form'!N299=0,\"\",'Blank - Request Form'!N299)","v":""},null,null,null,{"$f":"IF(M61<>\"\",'Blank - Request Form'!$M$2,\"\")","v":""},{"$f":"IF('Blank - Request Form'!L299=0,\"\",'Blank - Request Form'!L299)","v":""},"",61]
[{"$f":"IF('Blank - Request Form'!E300=0,\"\",'Blank - Request Form'!E300)","v":""},{"$f":"IF('Blank - Request Form'!G300=0,\"\",'Blank - Request Form'!G300)","v":""},{"$f":"IF(OR('Blank - Request Form'!H300=\"0\",'Blank - Request Form'!H300=\"000\",'Blank - Request Form'!H300=0),\"\",'Blank - Request Form'!H300)","v":""},{"$f":"IF(OR('Blank - Request Form'!I300=\"0\",'Blank - Request Form'!I300=\"00000\",'Blank - Request Form'!I300=0),\"\",'Blank - Request Form'!I300)","v":""},{"$f":"IF(OR('Blank - Request Form'!J300=\"0\",'Blank - Request Form'!J300=\"00000\",'Blank - Request Form'!J300=0),\"\",'Blank - Request Form'!J300)","v":""},{"$f":"IF(OR('Blank - Request Form'!K300=\"0\",'Blank - Request Form'!K300=\"00000\",'Blank - Request Form'!K300=0),\"\",'Blank - Request Form'!K300)","v":""},null,{"$f":"IF('Blank - Request Form'!N300=0,\"\",'Blank - Request Form'!N300)","v":""},null,null,null,{"$f":"IF(M62<>\"\",'Blank - Request Form'!$M$2,\"\")","v":""},{"$f":"IF('Blank - Request Form'!L300=0,\"\",'Blank - Request Form'!L300)","v":""},"",62]
[{"$f":"IF('Blank - Request Form'!E301=0,\"\",'Blank - Request Form'!E301)","v":""},{"$f":"IF('Blank - Request Form'!G301=0,\"\",'Blank - Request Form'!G301)","v":""},{"$f":"IF(OR('Blank - Request Form'!H301=\"0\",'Blank - Request Form'!H301=\"000\",'Blank - Request Form'!H301=0),\"\",'Blank - Request Form'!H301)","v":""},{"$f":"IF(OR('Blank - Request Form'!I301=\"0\",'Blank - Request Form'!I301=\"00000\",'Blank - Request Form'!I301=0),\"\",'Blank - Request Form'!I301)","v":""},{"$f":"IF(OR('Blank - Request Form'!J301=\"0\",'Blank - Request Form'!J301=\"00000\",'Blank - Request Form'!J301=0),\"\",'Blank - Request Form'!J301)","v":""},{"$f":"IF(OR('Blank - Request Form'!K301=\"0\",'Blank - Request Form'!K301=\"00000\",'Blank - Request Form'!K301=0),\"\",'Blank - Request Form'!K301)","v":""},null,{"$f":"IF('Blank - Request Form'!N301=0,\"\",'Blank - Request Form'!N301)","v":""},null,null,null,{"$f":"IF(M63<>\"\",'Blank - Request Form'!$M$2,\"\")","v":""},{"$f":"IF('Blank - Request Form'!L301=0,\"\",'Blank - Request Form'!L301)","v":""},"",63]
[{"$f":"IF('Blank - Request Form'!E302=0,\"\",'Blank - Request Form'!E302)","v":""},{"$f":"IF('Blank - Request Form'!G302=0,\"\",'Blank - Request Form'!G302)","v":""},{"$f":"IF(OR('Blank - Request Form'!H302=\"0\",'Blank - Request Form'!H302=\"000\",'Blank - Request Form'!H302=0),\"\",'Blank - Request Form'!H302)","v":""},{"$f":"IF(OR('Blank - Request Form'!I302=\"0\",'Blank - Request Form'!I302=\"00000\",'Blank - Request Form'!I302=0),\"\",'Blank - Request Form'!I302)","v":""},{"$f":"IF(OR('Blank - Request Form'!J302=\"0\",'Blank - Request Form'!J302=\"00000\",'Blank - Request Form'!J302=0),\"\",'Blank - Request Form'!J302)","v":""},{"$f":"IF(OR('Blank - Request Form'!K302=\"0\",'Blank - Request Form'!K302=\"00000\",'Blank - Request Form'!K302=0),\"\",'Blank - Request Form'!K302)","v":""},null,{"$f":"IF('Blank - Request Form'!N302=0,\"\",'Blank - Request Form'!N302)","v":""},null,null,null,{"$f":"IF(M64<>\"\",'Blank - Request Form'!$M$2,\"\")","v":""},{"$f":"IF('Blank - Request Form'!L302=0,\"\",'Blank - Request Form'!L302)","v":""},"",64]
[{"$f":"IF('Blank - Request Form'!E303=0,\"\",'Blank - Request Form'!E303)","v":""},{"$f":"IF('Blank - Request Form'!G303=0,\"\",'Blank - Request Form'!G303)","v":""},{"$f":"IF(OR('Blank - Request Form'!H303=\"0\",'Blank - Request Form'!H303=\"000\",'Blank - Request Form'!H303=0),\"\",'Blank - Request Form'!H303)","v":""},{"$f":"IF(OR('Blank - Request Form'!I303=\"0\",'Blank - Request Form'!I303=\"00000\",'Blank - Request Form'!I303=0),\"\",'Blank - Request Form'!I303)","v":""},{"$f":"IF(OR('Blank - Request Form'!J303=\"0\",'Blank - Request Form'!J303=\"00000\",'Blank - Request Form'!J303=0),\"\",'Blank - Request Form'!J303)","v":""},{"$f":"IF(OR('Blank - Request Form'!K303=\"0\",'Blank - Request Form'!K303=\"00000\",'Blank - Request Form'!K303=0),\"\",'Blank - Request Form'!K303)","v":""},null,{"$f":"IF('Blank - Request Form'!N303=0,\"\",'Blank - Request Form'!N303)","v":""},null,null,null,{"$f":"IF(M65<>\"\",'Blank - Request Form'!$M$2,\"\")","v":""},{"$f":"IF('Blank - Request Form'!L303=0,\"\",'Blank - Request Form'!L303)","v":""},"",65]
[{"$f":"IF('Blank - Request Form'!E304=0,\"\",'Blank - Request Form'!E304)","v":""},{"$f":"IF('Blank - Request Form'!G304=0,\"\",'Blank - Request Form'!G304)","v":""},{"$f":"IF(OR('Blank - Request Form'!H304=\"0\",'Blank - Request Form'!H304=\"000\",'Blank - Request Form'!H304=0),\"\",'Blank - Request Form'!H304)","v":""},{"$f":"IF(OR('Blank - Request Form'!I304=\"0\",'Blank - Request Form'!I304=\"00000\",'Blank - Request Form'!I304=0),\"\",'Blank - Request Form'!I304)","v":""},{"$f":"IF(OR('Blank - Request Form'!J304=\"0\",'Blank - Request Form'!J304=\"00000\",'Blank - Request Form'!J304=0),\"\",'Blank - Request Form'!J304)","v":""},{"$f":"IF(OR('Blank - Request Form'!K304=\"0\",'Blank - Request Form'!K304=\"00000\",'Blank - Request Form'!K304=0),\"\",'Blank - Request Form'!K304)","v":""},null,{"$f":"IF('Blank - Request Form'!N304=0,\"\",'Blank - Request Form'!N304)","v":""},null,null,null,{"$f":"IF(M66<>\"\",'Blank - Request Form'!$M$2,\"\")","v":""},{"$f":"IF('Blank - Request Form'!L304=0,\"\",'Blank - Request Form'!L304)","v":""},{"$f":"IF(M66<>\"\",O66,\"\")","v":""},66]
[{"$f":"IF('Blank - Request Form'!E305=0,\"\",'Blank - Request Form'!E305)","v":""},{"$f":"IF('Blank - Request Form'!G305=0,\"\",'Blank - Request Form'!G305)","v":""},{"$f":"IF(OR('Blank - Request Form'!H305=\"0\",'Blank - Request Form'!H305=\"000\",'Blank - Request Form'!H305=0),\"\",'Blank - Request Form'!H305)","v":""},{"$f":"IF(OR('Blank - Request Form'!I305=\"0\",'Blank - Request Form'!I305=\"00000\",'Blank - Request Form'!I305=0),\"\",'Blank - Request Form'!I305)","v":""},{"$f":"IF(OR('Blank - Request Form'!J305=\"0\",'Blank - Request Form'!J305=\"00000\",'Blank - Request Form'!J305=0),\"\",'Blank - Request Form'!J305)","v":""},{"$f":"IF(OR('Blank - Request Form'!K305=\"0\",'Blank - Request Form'!K305=\"00000\",'Blank - Request Form'!K305=0),\"\",'Blank - Request Form'!K305)","v":""},null,{"$f":"IF('Blank - Request Form'!N305=0,\"\",'Blank - Request Form'!N305)","v":""},null,null,null,{"$f":"IF(M67<>\"\",'Blank - Request Form'!$M$2,\"\")","v":""},{"$f":"IF('Blank - Request Form'!L305=0,\"\",'Blank - Request Form'!L305)","v":""},"",67]
[{"$f":"IF('Blank - Request Form'!E306=0,\"\",'Blank - Request Form'!E306)","v":""},{"$f":"IF('Blank - Request Form'!G306=0,\"\",'Blank - Request Form'!G306)","v":""},{"$f":"IF(OR('Blank - Request Form'!H306=\"0\",'Blank - Request Form'!H306=\"000\",'Blank - Request Form'!H306=0),\"\",'Blank - Request Form'!H306)","v":""},{"$f":"IF(OR('Blank - Request Form'!I306=\"0\",'Blank - Request Form'!I306=\"00000\",'Blank - Request Form'!I306=0),\"\",'Blank - Request Form'!I306)","v":""},{"$f":"IF(OR('Blank - Request Form'!J306=\"0\",'Blank - Request Form'!J306=\"00000\",'Blank - Request Form'!J306=0),\"\",'Blank - Request Form'!J306)","v":""},{"$f":"IF(OR('Blank - Request Form'!K306=\"0\",'Blank - Request Form'!K306=\"00000\",'Blank - Request Form'!K306=0),\"\",'Blank - Request Form'!K306)","v":""},null,{"$f":"IF('Blank - Request Form'!N306=0,\"\",'Blank - Request Form'!N306)","v":""},null,null,null,{"$f":"IF(M68<>\"\",'Blank - Request Form'!$M$2,\"\")","v":""},{"$f":"IF('Blank - Request Form'!L306=0,\"\",'Blank - Request Form'!L306)","v":""},"",68]
[{"$f":"IF('Blank - Request Form'!E307=0,\"\",'Blank - Request Form'!E307)","v":""},{"$f":"IF('Blank - Request Form'!G307=0,\"\",'Blank - Request Form'!G307)","v":""},{"$f":"IF(OR('Blank - Request Form'!H307=\"0\",'Blank - Request Form'!H307=\"000\",'Blank - Request Form'!H307=0),\"\",'Blank - Request Form'!H307)","v":""},{"$f":"IF(OR('Blank - Request Form'!I307=\"0\",'Blank - Request Form'!I307=\"00000\",'Blank - Request Form'!I307=0),\"\",'Blank - Request Form'!I307)","v":""},{"$f":"IF(OR('Blank - Request Form'!J307=\"0\",'Blank - Request Form'!J307=\"00000\",'Blank - Request Form'!J307=0),\"\",'Blank - Request Form'!J307)","v":""},{"$f":"IF(OR('Blank - Request Form'!K307=\"0\",'Blank - Request Form'!K307=\"00000\",'Blank - Request Form'!K307=0),\"\",'Blank - Request Form'!K307)","v":""},null,{"$f":"IF('Blank - Request Form'!N307=0,\"\",'Blank - Request Form'!N307)","v":""},null,null,null,{"$f":"IF(M69<>\"\",'Blank - Request Form'!$M$2,\"\")","v":""},{"$f":"IF('Blank - Request Form'!L307=0,\"\",'Blank - Request Form'!L307)","v":""},"",69]
[{"$f":"IF('Blank - Request Form'!E308=0,\"\",'Blank - Request Form'!E308)","v":""},{"$f":"IF('Blank - Request Form'!G308=0,\"\",'Blank - Request Form'!G308)","v":""},{"$f":"IF(OR('Blank - Request Form'!H308=\"0\",'Blank - Request Form'!H308=\"000\",'Blank - Request Form'!H308=0),\"\",'Blank - Request Form'!H308)","v":""},{"$f":"IF(OR('Blank - Request Form'!I308=\"0\",'Blank - Request Form'!I308=\"00000\",'Blank - Request Form'!I308=0),\"\",'Blank - Request Form'!I308)","v":""},{"$f":"IF(OR('Blank - Request Form'!J308=\"0\",'Blank - Request Form'!J308=\"00000\",'Blank - Request Form'!J308=0),\"\",'Blank - Request Form'!J308)","v":""},{"$f":"IF(OR('Blank - Request Form'!K308=\"0\",'Blank - Request Form'!K308=\"00000\",'Blank - Request Form'!K308=0),\"\",'Blank - Request Form'!K308)","v":""},null,{"$f":"IF('Blank - Request Form'!N308=0,\"\",'Blank - Request Form'!N308)","v":""},null,null,null,{"$f":"IF(M70<>\"\",'Blank - Request Form'!$M$2,\"\")","v":""},{"$f":"IF('Blank - Request Form'!L308=0,\"\",'Blank - Request Form'!L308)","v":""},"",70]
[{"$f":"IF('Blank - Request Form'!E309=0,\"\",'Blank - Request Form'!E309)","v":""},{"$f":"IF('Blank - Request Form'!G309=0,\"\",'Blank - Request Form'!G309)","v":""},{"$f":"IF(OR('Blank - Request Form'!H309=\"0\",'Blank - Request Form'!H309=\"000\",'Blank - Request Form'!H309=0),\"\",'Blank - Request Form'!H309)","v":""},{"$f":"IF(OR('Blank - Request Form'!I309=\"0\",'Blank - Request Form'!I309=\"00000\",'Blank - Request Form'!I309=0),\"\",'Blank - Request Form'!I309)","v":""},{"$f":"IF(OR('Blank - Request Form'!J309=\"0\",'Blank - Request Form'!J309=\"00000\",'Blank - Request Form'!J309=0),\"\",'Blank - Request Form'!J309)","v":""},{"$f":"IF(OR('Blank - Request Form'!K309=\"0\",'Blank - Request Form'!K309=\"00000\",'Blank - Request Form'!K309=0),\"\",'Blank - Request Form'!K309)","v":""},null,{"$f":"IF('Blank - Request Form'!N309=0,\"\",'Blank - Request Form'!N309)","v":""},null,null,null,{"$f":"IF(M71<>\"\",'Blank - Request Form'!$M$2,\"\")","v":""},{"$f":"IF('Blank - Request Form'!L309=0,\"\",'Blank - Request Form'!L309)","v":""},"",71]
[{"$f":"IF('Blank - Request Form'!E310=0,\"\",'Blank - Request Form'!E310)","v":""},{"$f":"IF('Blank - Request Form'!G310=0,\"\",'Blank - Request Form'!G310)","v":""},{"$f":"IF(OR('Blank - Request Form'!H310=\"0\",'Blank - Request Form'!H310=\"000\",'Blank - Request Form'!H310=0),\"\",'Blank - Request Form'!H310)","v":""},{"$f":"IF(OR('Blank - Request Form'!I310=\"0\",'Blank - Request Form'!I310=\"00000\",'Blank - Request Form'!I310=0),\"\",'Blank - Request Form'!I310)","v":""},{"$f":"IF(OR('Blank - Request Form'!J310=\"0\",'Blank - Request Form'!J310=\"00000\",'Blank - Request Form'!J310=0),\"\",'Blank - Request Form'!J310)","v":""},{"$f":"IF(OR('Blank - Request Form'!K310=\"0\",'Blank - Request Form'!K310=\"00000\",'Blank - Request Form'!K310=0),\"\",'Blank - Request Form'!K310)","v":""},null,{"$f":"IF('Blank - Request Form'!N310=0,\"\",'Blank - Request Form'!N310)","v":""},null,null,null,{"$f":"IF(M72<>\"\",'Blank - Request Form'!$M$2,\"\")","v":""},{"$f":"IF('Blank - Request Form'!L310=0,\"\",'Blank - Request Form'!L310)","v":""},"",72]
[{"$f":"IF('Blank - Request Form'!E311=0,\"\",'Blank - Request Form'!E311)","v":""},{"$f":"IF('Blank - Request Form'!G311=0,\"\",'Blank - Request Form'!G311)","v":""},{"$f":"IF(OR('Blank - Request Form'!H311=\"0\",'Blank - Request Form'!H311=\"000\",'Blank - Request Form'!H311=0),\"\",'Blank - Request Form'!H311)","v":""},{"$f":"IF(OR('Blank - Request Form'!I311=\"0\",'Blank - Request Form'!I311=\"00000\",'Blank - Request Form'!I311=0),\"\",'Blank - Request Form'!I311)","v":""},{"$f":"IF(OR('Blank - Request Form'!J311=\"0\",'Blank - Request Form'!J311=\"00000\",'Blank - Request Form'!J311=0),\"\",'Blank - Request Form'!J311)","v":""},{"$f":"IF(OR('Blank - Request Form'!K311=\"0\",'Blank - Request Form'!K311=\"00000\",'Blank - Request Form'!K311=0),\"\",'Blank - Request Form'!K311)","v":""},null,{"$f":"IF('Blank - Request Form'!N311=0,\"\",'Blank - Request Form'!N311)","v":""},null,null,null,{"$f":"IF(M73<>\"\",'Blank - Request Form'!$M$2,\"\")","v":""},{"$f":"IF('Blank - Request Form'!L311=0,\"\",'Blank - Request Form'!L311)","v":""},"",73]
[{"$f":"IF('Blank - Request Form'!E312=0,\"\",'Blank - Request Form'!E312)","v":""},{"$f":"IF('Blank - Request Form'!G312=0,\"\",'Blank - Request Form'!G312)","v":""},{"$f":"IF(OR('Blank - Request Form'!H312=\"0\",'Blank - Request Form'!H312=\"000\",'Blank - Request Form'!H312=0),\"\",'Blank - Request Form'!H312)","v":""},{"$f":"IF(OR('Blank - Request Form'!I312=\"0\",'Blank - Request Form'!I312=\"00000\",'Blank - Request Form'!I312=0),\"\",'Blank - Request Form'!I312)","v":""},{"$f":"IF(OR('Blank - Request Form'!J312=\"0\",'Blank - Request Form'!J312=\"00000\",'Blank - Request Form'!J312=0),\"\",'Blank - Request Form'!J312)","v":""},{"$f":"IF(OR('Blank - Request Form'!K312=\"0\",'Blank - Request Form'!K312=\"00000\",'Blank - Request Form'!K312=0),\"\",'Blank - Request Form'!K312)","v":""},null,{"$f":"IF('Blank - Request Form'!N312=0,\"\",'Blank - Request Form'!N312)","v":""},null,null,null,{"$f":"IF(M74<>\"\",'Blank - Request Form'!$M$2,\"\")","v":""},{"$f":"IF('Blank - Request Form'!L312=0,\"\",'Blank - Request Form'!L312)","v":""},"",74]
[{"$f":"IF('Blank - Request Form'!E313=0,\"\",'Blank - Request Form'!E313)","v":""},{"$f":"IF('Blank - Request Form'!G313=0,\"\",'Blank - Request Form'!G313)","v":""},{"$f":"IF(OR('Blank - Request Form'!H313=\"0\",'Blank - Request Form'!H313=\"000\",'Blank - Request Form'!H313=0),\"\",'Blank - Request Form'!H313)","v":""},{"$f":"IF(OR('Blank - Request Form'!I313=\"0\",'Blank - Request Form'!I313=\"00000\",'Blank - Request Form'!I313=0),\"\",'Blank - Request Form'!I313)","v":""},{"$f":"IF(OR('Blank - Request Form'!J313=\"0\",'Blank - Request Form'!J313=\"00000\",'Blank - Request Form'!J313=0),\"\",'Blank - Request Form'!J313)","v":""},{"$f":"IF(OR('Blank - Request Form'!K313=\"0\",'Blank - Request Form'!K313=\"00000\",'Blank - Request Form'!K313=0),\"\",'Blank - Request Form'!K313)","v":""},null,{"$f":"IF('Blank - Request Form'!N313=0,\"\",'Blank - Request Form'!N313)","v":""},null,null,null,{"$f":"IF(M75<>\"\",'Blank - Request Form'!$M$2,\"\")","v":""},{"$f":"IF('Blank - Request Form'!L313=0,\"\",'Blank - Request Form'!L313)","v":""},"",75]
[{"$f":"IF('Blank - Request Form'!E314=0,\"\",'Blank - Request Form'!E314)","v":""},{"$f":"IF('Blank - Request Form'!G314=0,\"\",'Blank - Request Form'!G314)","v":""},{"$f":"IF(OR('Blank - Request Form'!H314=\"0\",'Blank - Request Form'!H314=\"000\",'Blank - Request Form'!H314=0),\"\",'Blank - Request Form'!H314)","v":""},{"$f":"IF(OR('Blank - Request Form'!I314=\"0\",'Blank - Request Form'!I314=\"00000\",'Blank - Request Form'!I314=0),\"\",'Blank - Request Form'!I314)","v":""},{"$f":"IF(OR('Blank - Request Form'!J314=\"0\",'Blank - Request Form'!J314=\"00000\",'Blank - Request Form'!J314=0),\"\",'Blank - Request Form'!J314)","v":""},{"$f":"IF(OR('Blank - Request Form'!K314=\"0\",'Blank - Request Form'!K314=\"00000\",'Blank - Request Form'!K314=0),\"\",'Blank - Request Form'!K314)","v":""},null,{"$f":"IF('Blank - Request Form'!N314=0,\"\",'Blank - Request Form'!N314)","v":""},null,null,null,{"$f":"IF(M76<>\"\",'Blank - Request Form'!$M$2,\"\")","v":""},{"$f":"IF('Blank - Request Form'!L314=0,\"\",'Blank - Request Form'!L314)","v":""},"",76]
[{"$f":"IF('Blank - Request Form'!E315=0,\"\",'Blank - Request Form'!E315)","v":""},{"$f":"IF('Blank - Request Form'!G315=0,\"\",'Blank - Request Form'!G315)","v":""},{"$f":"IF(OR('Blank - Request Form'!H315=\"0\",'Blank - Request Form'!H315=\"000\",'Blank - Request Form'!H315=0),\"\",'Blank - Request Form'!H315)","v":""},{"$f":"IF(OR('Blank - Request Form'!I315=\"0\",'Blank - Request Form'!I315=\"00000\",'Blank - Request Form'!I315=0),\"\",'Blank - Request Form'!I315)","v":""},{"$f":"IF(OR('Blank - Request Form'!J315=\"0\",'Blank - Request Form'!J315=\"00000\",'Blank - Request Form'!J315=0),\"\",'Blank - Request Form'!J315)","v":""},{"$f":"IF(OR('Blank - Request Form'!K315=\"0\",'Blank - Request Form'!K315=\"00000\",'Blank - Request Form'!K315=0),\"\",'Blank - Request Form'!K315)","v":""},null,{"$f":"IF('Blank - Request Form'!N315=0,\"\",'Blank - Request Form'!N315)","v":""},null,null,null,{"$f":"IF(M77<>\"\",'Blank - Request Form'!$M$2,\"\")","v":""},{"$f":"IF('Blank - Request Form'!L315=0,\"\",'Blank - Request Form'!L315)","v":""},"",77]
[{"$f":"IF('Blank - Request Form'!E316=0,\"\",'Blank - Request Form'!E316)","v":""},{"$f":"IF('Blank - Request Form'!G316=0,\"\",'Blank - Request Form'!G316)","v":""},{"$f":"IF(OR('Blank - Request Form'!H316=\"0\",'Blank - Request Form'!H316=\"000\",'Blank - Request Form'!H316=0),\"\",'Blank - Request Form'!H316)","v":""},{"$f":"IF(OR('Blank - Request Form'!I316=\"0\",'Blank - Request Form'!I316=\"00000\",'Blank - Request Form'!I316=0),\"\",'Blank - Request Form'!I316)","v":""},{"$f":"IF(OR('Blank - Request Form'!J316=\"0\",'Blank - Request Form'!J316=\"00000\",'Blank - Request Form'!J316=0),\"\",'Blank - Request Form'!J316)","v":""},{"$f":"IF(OR('Blank - Request Form'!K316=\"0\",'Blank - Request Form'!K316=\"00000\",'Blank - Request Form'!K316=0),\"\",'Blank - Request Form'!K316)","v":""},null,{"$f":"IF('Blank - Request Form'!N316=0,\"\",'Blank - Request Form'!N316)","v":""},null,null,null,{"$f":"IF(M78<>\"\",'Blank - Request Form'!$M$2,\"\")","v":""},{"$f":"IF('Blank - Request Form'!L316=0,\"\",'Blank - Request Form'!L316)","v":""},"",78]
[{"$f":"IF('Blank - Request Form'!E317=0,\"\",'Blank - Request Form'!E317)","v":""},{"$f":"IF('Blank - Request Form'!G317=0,\"\",'Blank - Request Form'!G317)","v":""},{"$f":"IF(OR('Blank - Request Form'!H317=\"0\",'Blank - Request Form'!H317=\"000\",'Blank - Request Form'!H317=0),\"\",'Blank - Request Form'!H317)","v":""},{"$f":"IF(OR('Blank - Request Form'!I317=\"0\",'Blank - Request Form'!I317=\"00000\",'Blank - Request Form'!I317=0),\"\",'Blank - Request Form'!I317)","v":""},{"$f":"IF(OR('Blank - Request Form'!J317=\"0\",'Blank - Request Form'!J317=\"00000\",'Blank - Request Form'!J317=0),\"\",'Blank - Request Form'!J317)","v":""},{"$f":"IF(OR('Blank - Request Form'!K317=\"0\",'Blank - Request Form'!K317=\"00000\",'Blank - Request Form'!K317=0),\"\",'Blank - Request Form'!K317)","v":""},null,{"$f":"IF('Blank - Request Form'!N317=0,\"\",'Blank - Request Form'!N317)","v":""},null,null,null,{"$f":"IF(M79<>\"\",'Blank - Request Form'!$M$2,\"\")","v":""},{"$f":"IF('Blank - Request Form'!L317=0,\"\",'Blank - Request Form'!L317)","v":""},"",79]
[{"$f":"IF('Blank - Request Form'!E318=0,\"\",'Blank - Request Form'!E318)","v":""},{"$f":"IF('Blank - Request Form'!G318=0,\"\",'Blank - Request Form'!G318)","v":""},{"$f":"IF(OR('Blank - Request Form'!H318=\"0\",'Blank - Request Form'!H318=\"000\",'Blank - Request Form'!H318=0),\"\",'Blank - Request Form'!H318)","v":""},{"$f":"IF(OR('Blank - Request Form'!I318=\"0\",'Blank - Request Form'!I318=\"00000\",'Blank - Request Form'!I318=0),\"\",'Blank - Request Form'!I318)","v":""},{"$f":"IF(OR('Blank - Request Form'!J318=\"0\",'Blank - Request Form'!J318=\"00000\",'Blank - Request Form'!J318=0),\"\",'Blank - Request Form'!J318)","v":""},{"$f":"IF(OR('Blank - Request Form'!K318=\"0\",'Blank - Request Form'!K318=\"00000\",'Blank - Request Form'!K318=0),\"\",'Blank - Request Form'!K318)","v":""},null,{"$f":"IF('Blank - Request Form'!N318=0,\"\",'Blank - Request Form'!N318)","v":""},null,null,null,{"$f":"IF(M80<>\"\",'Blank - Request Form'!$M$2,\"\")","v":""},{"$f":"IF('Blank - Request Form'!L318=0,\"\",'Blank - Request Form'!L318)","v":""},"",80]
[{"$f":"IF('Blank - Request Form'!E319=0,\"\",'Blank - Request Form'!E319)","v":""},{"$f":"IF('Blank - Request Form'!G319=0,\"\",'Blank - Request Form'!G319)","v":""},{"$f":"IF(OR('Blank - Request Form'!H319=\"0\",'Blank - Request Form'!H319=\"000\",'Blank - Request Form'!H319=0),\"\",'Blank - Request Form'!H319)","v":""},{"$f":"IF(OR('Blank - Request Form'!I319=\"0\",'Blank - Request Form'!I319=\"00000\",'Blank - Request Form'!I319=0),\"\",'Blank - Request Form'!I319)","v":""},{"$f":"IF(OR('Blank - Request Form'!J319=\"0\",'Blank - Request Form'!J319=\"00000\",'Blank - Request Form'!J319=0),\"\",'Blank - Request Form'!J319)","v":""},{"$f":"IF(OR('Blank - Request Form'!K319=\"0\",'Blank - Request Form'!K319=\"00000\",'Blank - Request Form'!K319=0),\"\",'Blank - Request Form'!K319)","v":""},null,{"$f":"IF('Blank - Request Form'!N319=0,\"\",'Blank - Request Form'!N319)","v":""},null,null,null,{"$f":"IF(M81<>\"\",'Blank - Request Form'!$M$2,\"\")","v":""},{"$f":"IF('Blank - Request Form'!L319=0,\"\",'Blank - Request Form'!L319)","v":""},"",81]
[{"$f":"IF('Blank - Request Form'!E320=0,\"\",'Blank - Request Form'!E320)","v":""},{"$f":"IF('Blank - Request Form'!G320=0,\"\",'Blank - Request Form'!G320)","v":""},{"$f":"IF(OR('Blank - Request Form'!H320=\"0\",'Blank - Request Form'!H320=\"000\",'Blank - Request Form'!H320=0),\"\",'Blank - Request Form'!H320)","v":""},{"$f":"IF(OR('Blank - Request Form'!I320=\"0\",'Blank - Request Form'!I320=\"00000\",'Blank - Request Form'!I320=0),\"\",'Blank - Request Form'!I320)","v":""},{"$f":"IF(OR('Blank - Request Form'!J320=\"0\",'Blank - Request Form'!J320=\"00000\",'Blank - Request Form'!J320=0),\"\",'Blank - Request Form'!J320)","v":""},{"$f":"IF(OR('Blank - Request Form'!K320=\"0\",'Blank - Request Form'!K320=\"00000\",'Blank - Request Form'!K320=0),\"\",'Blank - Request Form'!K320)","v":""},null,{"$f":"IF('Blank - Request Form'!N320=0,\"\",'Blank - Request Form'!N320)","v":""},null,null,null,{"$f":"IF(M82<>\"\",'Blank - Request Form'!$M$2,\"\")","v":""},{"$f":"IF('Blank - Request Form'!L320=0,\"\",'Blank - Request Form'!L320)","v":""},"",82]
[{"$f":"IF('Blank - Request Form'!E321=0,\"\",'Blank - Request Form'!E321)","v":""},{"$f":"IF('Blank - Request Form'!G321=0,\"\",'Blank - Request Form'!G321)","v":""},{"$f":"IF(OR('Blank - Request Form'!H321=\"0\",'Blank - Request Form'!H321=\"000\",'Blank - Request Form'!H321=0),\"\",'Blank - Request Form'!H321)","v":""},{"$f":"IF(OR('Blank - Request Form'!I321=\"0\",'Blank - Request Form'!I321=\"00000\",'Blank - Request Form'!I321=0),\"\",'Blank - Request Form'!I321)","v":""},{"$f":"IF(OR('Blank - Request Form'!J321=\"0\",'Blank - Request Form'!J321=\"00000\",'Blank - Request Form'!J321=0),\"\",'Blank - Request Form'!J321)","v":""},{"$f":"IF(OR('Blank - Request Form'!K321=\"0\",'Blank - Request Form'!K321=\"00000\",'Blank - Request Form'!K321=0),\"\",'Blank - Request Form'!K321)","v":""},null,{"$f":"IF('Blank - Request Form'!N321=0,\"\",'Blank - Request Form'!N321)","v":""},null,null,null,{"$f":"IF(M83<>\"\",'Blank - Request Form'!$M$2,\"\")","v":""},{"$f":"IF('Blank - Request Form'!L321=0,\"\",'Blank - Request Form'!L321)","v":""},"",83]
[{"$f":"IF('Blank - Request Form'!E322=0,\"\",'Blank - Request Form'!E322)","v":""},{"$f":"IF('Blank - Request Form'!G322=0,\"\",'Blank - Request Form'!G322)","v":""},{"$f":"IF(OR('Blank - Request Form'!H322=\"0\",'Blank - Request Form'!H322=\"000\",'Blank - Request Form'!H322=0),\"\",'Blank - Request Form'!H322)","v":""},{"$f":"IF(OR('Blank - Request Form'!I322=\"0\",'Blank - Request Form'!I322=\"00000\",'Blank - Request Form'!I322=0),\"\",'Blank - Request Form'!I322)","v":""},{"$f":"IF(OR('Blank - Request Form'!J322=\"0\",'Blank - Request Form'!J322=\"00000\",'Blank - Request Form'!J322=0),\"\",'Blank - Request Form'!J322)","v":""},{"$f":"IF(OR('Blank - Request Form'!K322=\"0\",'Blank - Request Form'!K322=\"00000\",'Blank - Request Form'!K322=0),\"\",'Blank - Request Form'!K322)","v":""},null,{"$f":"IF('Blank - Request Form'!N322=0,\"\",'Blank - Request Form'!N322)","v":""},null,null,null,{"$f":"IF(M84<>\"\",'Blank - Request Form'!$M$2,\"\")","v":""},{"$f":"IF('Blank - Request Form'!L322=0,\"\",'Blank - Request Form'!L322)","v":""},"",84]
[{"$f":"IF('Blank - Request Form'!E323=0,\"\",'Blank - Request Form'!E323)","v":""},{"$f":"IF('Blank - Request Form'!G323=0,\"\",'Blank - Request Form'!G323)","v":""},{"$f":"IF(OR('Blank - Request Form'!H323=\"0\",'Blank - Request Form'!H323=\"000\",'Blank - Request Form'!H323=0),\"\",'Blank - Request Form'!H323)","v":""},{"$f":"IF(OR('Blank - Request Form'!I323=\"0\",'Blank - Request Form'!I323=\"00000\",'Blank - Request Form'!I323=0),\"\",'Blank - Request Form'!I323)","v":""},{"$f":"IF(OR('Blank - Request Form'!J323=\"0\",'Blank - Request Form'!J323=\"00000\",'Blank - Request Form'!J323=0),\"\",'Blank - Request Form'!J323)","v":""},{"$f":"IF(OR('Blank - Request Form'!K323=\"0\",'Blank - Request Form'!K323=\"00000\",'Blank - Request Form'!K323=0),\"\",'Blank - Request Form'!K323)","v":""},null,{"$f":"IF('Blank - Request Form'!N323=0,\"\",'Blank - Request Form'!N323)","v":""},null,null,null,{"$f":"IF(M85<>\"\",'Blank - Request Form'!$M$2,\"\")","v":""},{"$f":"IF('Blank - Request Form'!L323=0,\"\",'Blank - Request Form'!L323)","v":""},"",85]
[{"$f":"IF('Blank - Request Form'!E324=0,\"\",'Blank - Request Form'!E324)","v":""},{"$f":"IF('Blank - Request Form'!G324=0,\"\",'Blank - Request Form'!G324)","v":""},{"$f":"IF(OR('Blank - Request Form'!H324=\"0\",'Blank - Request Form'!H324=\"000\",'Blank - Request Form'!H324=0),\"\",'Blank - Request Form'!H324)","v":""},{"$f":"IF(OR('Blank - Request Form'!I324=\"0\",'Blank - Request Form'!I324=\"00000\",'Blank - Request Form'!I324=0),\"\",'Blank - Request Form'!I324)","v":""},{"$f":"IF(OR('Blank - Request Form'!J324=\"0\",'Blank - Request Form'!J324=\"00000\",'Blank - Request Form'!J324=0),\"\",'Blank - Request Form'!J324)","v":""},{"$f":"IF(OR('Blank - Request Form'!K324=\"0\",'Blank - Request Form'!K324=\"00000\",'Blank - Request Form'!K324=0),\"\",'Blank - Request Form'!K324)","v":""},null,{"$f":"IF('Blank - Request Form'!N324=0,\"\",'Blank - Request Form'!N324)","v":""},null,null,null,{"$f":"IF(M86<>\"\",'Blank - Request Form'!$M$2,\"\")","v":""},{"$f":"IF('Blank - Request Form'!L324=0,\"\",'Blank - Request Form'!L324)","v":""},"",86]
[{"$f":"IF('Blank - Request Form'!E325=0,\"\",'Blank - Request Form'!E325)","v":""},{"$f":"IF('Blank - Request Form'!G325=0,\"\",'Blank - Request Form'!G325)","v":""},{"$f":"IF(OR('Blank - Request Form'!H325=\"0\",'Blank - Request Form'!H325=\"000\",'Blank - Request Form'!H325=0),\"\",'Blank - Request Form'!H325)","v":""},{"$f":"IF(OR('Blank - Request Form'!I325=\"0\",'Blank - Request Form'!I325=\"00000\",'Blank - Request Form'!I325=0),\"\",'Blank - Request Form'!I325)","v":""},{"$f":"IF(OR('Blank - Request Form'!J325=\"0\",'Blank - Request Form'!J325=\"00000\",'Blank - Request Form'!J325=0),\"\",'Blank - Request Form'!J325)","v":""},{"$f":"IF(OR('Blank - Request Form'!K325=\"0\",'Blank - Request Form'!K325=\"00000\",'Blank - Request Form'!K325=0),\"\",'Blank - Request Form'!K325)","v":""},null,{"$f":"IF('Blank - Request Form'!N325=0,\"\",'Blank - Request Form'!N325)","v":""},null,null,null,{"$f":"IF(M87<>\"\",'Blank - Request Form'!$M$2,\"\")","v":""},{"$f":"IF('Blank - Request Form'!L325=0,\"\",'Blank - Request Form'!L325)","v":""},"",87]
[{"$f":"IF('Blank - Request Form'!E326=0,\"\",'Blank - Request Form'!E326)","v":""},{"$f":"IF('Blank - Request Form'!G326=0,\"\",'Blank - Request Form'!G326)","v":""},{"$f":"IF(OR('Blank - Request Form'!H326=\"0\",'Blank - Request Form'!H326=\"000\",'Blank - Request Form'!H326=0),\"\",'Blank - Request Form'!H326)","v":""},{"$f":"IF(OR('Blank - Request Form'!I326=\"0\",'Blank - Request Form'!I326=\"00000\",'Blank - Request Form'!I326=0),\"\",'Blank - Request Form'!I326)","v":""},{"$f":"IF(OR('Blank - Request Form'!J326=\"0\",'Blank - Request Form'!J326=\"00000\",'Blank - Request Form'!J326=0),\"\",'Blank - Request Form'!J326)","v":""},{"$f":"IF(OR('Blank - Request Form'!K326=\"0\",'Blank - Request Form'!K326=\"00000\",'Blank - Request Form'!K326=0),\"\",'Blank - Request Form'!K326)","v":""},null,{"$f":"IF('Blank - Request Form'!N326=0,\"\",'Blank - Request Form'!N326)","v":""},null,null,null,{"$f":"IF(M88<>\"\",'Blank - Request Form'!$M$2,\"\")","v":""},{"$f":"IF('Blank - Request Form'!L326=0,\"\",'Blank - Request Form'!L326)","v":""},"",88]
[{"$f":"IF('Blank - Request Form'!E327=0,\"\",'Blank - Request Form'!E327)","v":""},{"$f":"IF('Blank - Request Form'!G327=0,\"\",'Blank - Request Form'!G327)","v":""},{"$f":"IF(OR('Blank - Request Form'!H327=\"0\",'Blank - Request Form'!H327=\"000\",'Blank - Request Form'!H327=0),\"\",'Blank - Request Form'!H327)","v":""},{"$f":"IF(OR('Blank - Request Form'!I327=\"0\",'Blank - Request Form'!I327=\"00000\",'Blank - Request Form'!I327=0),\"\",'Blank - Request Form'!I327)","v":""},{"$f":"IF(OR('Blank - Request Form'!J327=\"0\",'Blank - Request Form'!J327=\"00000\",'Blank - Request Form'!J327=0),\"\",'Blank - Request Form'!J327)","v":""},{"$f":"IF(OR('Blank - Request Form'!K327=\"0\",'Blank - Request Form'!K327=\"00000\",'Blank - Request Form'!K327=0),\"\",'Blank - Request Form'!K327)","v":""},null,{"$f":"IF('Blank - Request Form'!N327=0,\"\",'Blank - Request Form'!N327)","v":""},null,null,null,{"$f":"IF(M89<>\"\",'Blank - Request Form'!$M$2,\"\")","v":""},{"$f":"IF('Blank - Request Form'!L327=0,\"\",'Blank - Request Form'!L327)","v":""},"",89]
[{"$f":"IF('Blank - Request Form'!E328=0,\"\",'Blank - Request Form'!E328)","v":""},{"$f":"IF('Blank - Request Form'!G328=0,\"\",'Blank - Request Form'!G328)","v":""},{"$f":"IF(OR('Blank - Request Form'!H328=\"0\",'Blank - Request Form'!H328=\"000\",'Blank - Request Form'!H328=0),\"\",'Blank - Request Form'!H328)","v":""},{"$f":"IF(OR('Blank - Request Form'!I328=\"0\",'Blank - Request Form'!I328=\"00000\",'Blank - Request Form'!I328=0),\"\",'Blank - Request Form'!I328)","v":""},{"$f":"IF(OR('Blank - Request Form'!J328=\"0\",'Blank - Request Form'!J328=\"00000\",'Blank - Request Form'!J328=0),\"\",'Blank - Request Form'!J328)","v":""},{"$f":"IF(OR('Blank - Request Form'!K328=\"0\",'Blank - Request Form'!K328=\"00000\",'Blank - Request Form'!K328=0),\"\",'Blank - Request Form'!K328)","v":""},null,{"$f":"IF('Blank - Request Form'!N328=0,\"\",'Blank - Request Form'!N328)","v":""},null,null,null,{"$f":"IF(M90<>\"\",'Blank - Request Form'!$M$2,\"\")","v":""},{"$f":"IF('Blank - Request Form'!L328=0,\"\",'Blank - Request Form'!L328)","v":""},"",90]
[{"$f":"IF('Blank - Request Form'!E329=0,\"\",'Blank - Request Form'!E329)","v":""},{"$f":"IF('Blank - Request Form'!G329=0,\"\",'Blank - Request Form'!G329)","v":""},{"$f":"IF(OR('Blank - Request Form'!H329=\"0\",'Blank - Request Form'!H329=\"000\",'Blank - Request Form'!H329=0),\"\",'Blank - Request Form'!H329)","v":""},{"$f":"IF(OR('Blank - Request Form'!I329=\"0\",'Blank - Request Form'!I329=\"00000\",'Blank - Request Form'!I329=0),\"\",'Blank - Request Form'!I329)","v":""},{"$f":"IF(OR('Blank - Request Form'!J329=\"0\",'Blank - Request Form'!J329=\"00000\",'Blank - Request Form'!J329=0),\"\",'Blank - Request Form'!J329)","v":""},{"$f":"IF(OR('Blank - Request Form'!K329=\"0\",'Blank - Request Form'!K329=\"00000\",'Blank - Request Form'!K329=0),\"\",'Blank - Request Form'!K329)","v":""},null,{"$f":"IF('Blank - Request Form'!N329=0,\"\",'Blank - Request Form'!N329)","v":""},null,null,null,{"$f":"IF(M91<>\"\",'Blank - Request Form'!$M$2,\"\")","v":""},{"$f":"IF('Blank - Request Form'!L329=0,\"\",'Blank - Request Form'!L329)","v":""},"",91]
[{"$f":"IF('Blank - Request Form'!E330=0,\"\",'Blank - Request Form'!E330)","v":""},{"$f":"IF('Blank - Request Form'!G330=0,\"\",'Blank - Request Form'!G330)","v":""},{"$f":"IF(OR('Blank - Request Form'!H330=\"0\",'Blank - Request Form'!H330=\"000\",'Blank - Request Form'!H330=0),\"\",'Blank - Request Form'!H330)","v":""},{"$f":"IF(OR('Blank - Request Form'!I330=\"0\",'Blank - Request Form'!I330=\"00000\",'Blank - Request Form'!I330=0),\"\",'Blank - Request Form'!I330)","v":""},{"$f":"IF(OR('Blank - Request Form'!J330=\"0\",'Blank - Request Form'!J330=\"00000\",'Blank - Request Form'!J330=0),\"\",'Blank - Request Form'!J330)","v":""},{"$f":"IF(OR('Blank - Request Form'!K330=\"0\",'Blank - Request Form'!K330=\"00000\",'Blank - Request Form'!K330=0),\"\",'Blank - Request Form'!K330)","v":""},null,{"$f":"IF('Blank - Request Form'!N330=0,\"\",'Blank - Request Form'!N330)","v":""},null,null,null,{"$f":"IF(M92<>\"\",'Blank - Request Form'!$M$2,\"\")","v":""},{"$f":"IF('Blank - Request Form'!L330=0,\"\",'Blank - Request Form'!L330)","v":""},"",92]
[{"$f":"IF('Blank - Request Form'!E331=0,\"\",'Blank - Request Form'!E331)","v":""},{"$f":"IF('Blank - Request Form'!G331=0,\"\",'Blank - Request Form'!G331)","v":""},{"$f":"IF(OR('Blank - Request Form'!H331=\"0\",'Blank - Request Form'!H331=\"000\",'Blank - Request Form'!H331=0),\"\",'Blank - Request Form'!H331)","v":""},{"$f":"IF(OR('Blank - Request Form'!I331=\"0\",'Blank - Request Form'!I331=\"00000\",'Blank - Request Form'!I331=0),\"\",'Blank - Request Form'!I331)","v":""},{"$f":"IF(OR('Blank - Request Form'!J331=\"0\",'Blank - Request Form'!J331=\"00000\",'Blank - Request Form'!J331=0),\"\",'Blank - Request Form'!J331)","v":""},{"$f":"IF(OR('Blank - Request Form'!K331=\"0\",'Blank - Request Form'!K331=\"00000\",'Blank - Request Form'!K331=0),\"\",'Blank - Request Form'!K331)","v":""},null,{"$f":"IF('Blank - Request Form'!N331=0,\"\",'Blank - Request Form'!N331)","v":""},null,null,null,{"$f":"IF(M93<>\"\",'Blank - Request Form'!$M$2,\"\")","v":""},{"$f":"IF('Blank - Request Form'!L331=0,\"\",'Blank - Request Form'!L331)","v":""},"",93]
[{"$f":"IF('Blank - Request Form'!E332=0,\"\",'Blank - Request Form'!E332)","v":""},{"$f":"IF('Blank - Request Form'!G332=0,\"\",'Blank - Request Form'!G332)","v":""},{"$f":"IF(OR('Blank - Request Form'!H332=\"0\",'Blank - Request Form'!H332=\"000\",'Blank - Request Form'!H332=0),\"\",'Blank - Request Form'!H332)","v":""},{"$f":"IF(OR('Blank - Request Form'!I332=\"0\",'Blank - Request Form'!I332=\"00000\",'Blank - Request Form'!I332=0),\"\",'Blank - Request Form'!I332)","v":""},{"$f":"IF(OR('Blank - Request Form'!J332=\"0\",'Blank - Request Form'!J332=\"00000\",'Blank - Request Form'!J332=0),\"\",'Blank - Request Form'!J332)","v":""},{"$f":"IF(OR('Blank - Request Form'!K332=\"0\",'Blank - Request Form'!K332=\"00000\",'Blank - Request Form'!K332=0),\"\",'Blank - Request Form'!K332)","v":""},null,{"$f":"IF('Blank - Request Form'!N332=0,\"\",'Blank - Request Form'!N332)","v":""},null,null,null,{"$f":"IF(M94<>\"\",'Blank - Request Form'!$M$2,\"\")","v":""},{"$f":"IF('Blank - Request Form'!L332=0,\"\",'Blank - Request Form'!L332)","v":""},"",94]
[{"$f":"IF('Blank - Request Form'!E333=0,\"\",'Blank - Request Form'!E333)","v":""},{"$f":"IF('Blank - Request Form'!G333=0,\"\",'Blank - Request Form'!G333)","v":""},{"$f":"IF(OR('Blank - Request Form'!H333=\"0\",'Blank - Request Form'!H333=\"000\",'Blank - Request Form'!H333=0),\"\",'Blank - Request Form'!H333)","v":""},{"$f":"IF(OR('Blank - Request Form'!I333=\"0\",'Blank - Request Form'!I333=\"00000\",'Blank - Request Form'!I333=0),\"\",'Blank - Request Form'!I333)","v":""},{"$f":"IF(OR('Blank - Request Form'!J333=\"0\",'Blank - Request Form'!J333=\"00000\",'Blank - Request Form'!J333=0),\"\",'Blank - Request Form'!J333)","v":""},{"$f":"IF(OR('Blank - Request Form'!K333=\"0\",'Blank - Request Form'!K333=\"00000\",'Blank - Request Form'!K333=0),\"\",'Blank - Request Form'!K333)","v":""},null,{"$f":"IF('Blank - Request Form'!N333=0,\"\",'Blank - Request Form'!N333)","v":""},null,null,null,{"$f":"IF(M95<>\"\",'Blank - Request Form'!$M$2,\"\")","v":""},{"$f":"IF('Blank - Request Form'!L333=0,\"\",'Blank - Request Form'!L333)","v":""},"",95]
[{"$f":"IF('Blank - Request Form'!E334=0,\"\",'Blank - Request Form'!E334)","v":""},{"$f":"IF('Blank - Request Form'!G334=0,\"\",'Blank - Request Form'!G334)","v":""},{"$f":"IF(OR('Blank - Request Form'!H334=\"0\",'Blank - Request Form'!H334=\"000\",'Blank - Request Form'!H334=0),\"\",'Blank - Request Form'!H334)","v":""},{"$f":"IF(OR('Blank - Request Form'!I334=\"0\",'Blank - Request Form'!I334=\"00000\",'Blank - Request Form'!I334=0),\"\",'Blank - Request Form'!I334)","v":""},{"$f":"IF(OR('Blank - Request Form'!J334=\"0\",'Blank - Request Form'!J334=\"00000\",'Blank - Request Form'!J334=0),\"\",'Blank - Request Form'!J334)","v":""},{"$f":"IF(OR('Blank - Request Form'!K334=\"0\",'Blank - Request Form'!K334=\"00000\",'Blank - Request Form'!K334=0),\"\",'Blank - Request Form'!K334)","v":""},null,{"$f":"IF('Blank - Request Form'!N334=0,\"\",'Blank - Request Form'!N334)","v":""},null,null,null,{"$f":"IF(M96<>\"\",'Blank - Request Form'!$M$2,\"\")","v":""},{"$f":"IF('Blank - Request Form'!L334=0,\"\",'Blank - Request Form'!L334)","v":""},"",96]
[{"$f":"IF('Blank - Request Form'!E335=0,\"\",'Blank - Request Form'!E335)","v":""},{"$f":"IF('Blank - Request Form'!G335=0,\"\",'Blank - Request Form'!G335)","v":""},{"$f":"IF(OR('Blank - Request Form'!H335=\"0\",'Blank - Request Form'!H335=\"000\",'Blank - Request Form'!H335=0),\"\",'Blank - Request Form'!H335)","v":""},{"$f":"IF(OR('Blank - Request Form'!I335=\"0\",'Blank - Request Form'!I335=\"00000\",'Blank - Request Form'!I335=0),\"\",'Blank - Request Form'!I335)","v":""},{"$f":"IF(OR('Blank - Request Form'!J335=\"0\",'Blank - Request Form'!J335=\"00000\",'Blank - Request Form'!J335=0),\"\",'Blank - Request Form'!J335)","v":""},{"$f":"IF(OR('Blank - Request Form'!K335=\"0\",'Blank - Request Form'!K335=\"00000\",'Blank - Request Form'!K335=0),\"\",'Blank - Request Form'!K335)","v":""},null,{"$f":"IF('Blank - Request Form'!N335=0,\"\",'Blank - Request Form'!N335)","v":""},null,null,null,{"$f":"IF(M97<>\"\",'Blank - Request Form'!$M$2,\"\")","v":""},{"$f":"IF('Blank - Request Form'!L335=0,\"\",'Blank - Request Form'!L335)","v":""},"",97]
[{"$f":"IF('Blank - Request Form'!E336=0,\"\",'Blank - Request Form'!E336)","v":""},{"$f":"IF('Blank - Request Form'!G336=0,\"\",'Blank - Request Form'!G336)","v":""},{"$f":"IF(OR('Blank - Request Form'!H336=\"0\",'Blank - Request Form'!H336=\"000\",'Blank - Request Form'!H336=0),\"\",'Blank - Request Form'!H336)","v":""},{"$f":"IF(OR('Blank - Request Form'!I336=\"0\",'Blank - Request Form'!I336=\"00000\",'Blank - Request Form'!I336=0),\"\",'Blank - Request Form'!I336)","v":""},{"$f":"IF(OR('Blank - Request Form'!J336=\"0\",'Blank - Request Form'!J336=\"00000\",'Blank - Request Form'!J336=0),\"\",'Blank - Request Form'!J336)","v":""},{"$f":"IF(OR('Blank - Request Form'!K336=\"0\",'Blank - Request Form'!K336=\"00000\",'Blank - Request Form'!K336=0),\"\",'Blank - Request Form'!K336)","v":""},null,{"$f":"IF('Blank - Request Form'!N336=0,\"\",'Blank - Request Form'!N336)","v":""},null,null,null,{"$f":"IF(M98<>\"\",'Blank - Request Form'!$M$2,\"\")","v":""},{"$f":"IF('Blank - Request Form'!L336=0,\"\",'Blank - Request Form'!L336)","v":""},"",98]
[{"$f":"IF('Blank - Request Form'!E337=0,\"\",'Blank - Request Form'!E337)","v":""},{"$f":"IF('Blank - Request Form'!G337=0,\"\",'Blank - Request Form'!G337)","v":""},{"$f":"IF(OR('Blank - Request Form'!H337=\"0\",'Blank - Request Form'!H337=\"000\",'Blank - Request Form'!H337=0),\"\",'Blank - Request Form'!H337)","v":""},{"$f":"IF(OR('Blank - Request Form'!I337=\"0\",'Blank - Request Form'!I337=\"00000\",'Blank - Request Form'!I337=0),\"\",'Blank - Request Form'!I337)","v":""},{"$f":"IF(OR('Blank - Request Form'!J337=\"0\",'Blank - Request Form'!J337=\"00000\",'Blank - Request Form'!J337=0),\"\",'Blank - Request Form'!J337)","v":""},{"$f":"IF(OR('Blank - Request Form'!K337=\"0\",'Blank - Request Form'!K337=\"00000\",'Blank - Request Form'!K337=0),\"\",'Blank - Request Form'!K337)","v":""},null,{"$f":"IF('Blank - Request Form'!N337=0,\"\",'Blank - Request Form'!N337)","v":""},null,null,null,{"$f":"IF(M99<>\"\",'Blank - Request Form'!$M$2,\"\")","v":""},{"$f":"IF('Blank - Request Form'!L337=0,\"\",'Blank - Request Form'!L337)","v":""},"",99]
[{"$f":"IF('Blank - Request Form'!E338=0,\"\",'Blank - Request Form'!E338)","v":""},{"$f":"IF('Blank - Request Form'!G338=0,\"\",'Blank - Request Form'!G338)","v":""},{"$f":"IF(OR('Blank - Request Form'!H338=\"0\",'Blank - Request Form'!H338=\"000\",'Blank - Request Form'!H338=0),\"\",'Blank - Request Form'!H338)","v":""},{"$f":"IF(OR('Blank - Request Form'!I338=\"0\",'Blank - Request Form'!I338=\"00000\",'Blank - Request Form'!I338=0),\"\",'Blank - Request Form'!I338)","v":""},{"$f":"IF(OR('Blank - Request Form'!J338=\"0\",'Blank - Request Form'!J338=\"00000\",'Blank - Request Form'!J338=0),\"\",'Blank - Request Form'!J338)","v":""},{"$f":"IF(OR('Blank - Request Form'!K338=\"0\",'Blank - Request Form'!K338=\"00000\",'Blank - Request Form'!K338=0),\"\",'Blank - Request Form'!K338)","v":""},null,{"$f":"IF('Blank - Request Form'!N338=0,\"\",'Blank - Request Form'!N338)","v":""},null,null,null,{"$f":"IF(M100<>\"\",'Blank - Request Form'!$M$2,\"\")","v":""},{"$f":"IF('Blank - Request Form'!L338=0,\"\",'Blank - Request Form'!L338)","v":""},"",100]
[{"$f":"IF('Blank - Request Form'!E339=0,\"\",'Blank - Request Form'!E339)","v":""},{"$f":"IF('Blank - Request Form'!G339=0,\"\",'Blank - Request Form'!G339)","v":""},{"$f":"IF(OR('Blank - Request Form'!H339=\"0\",'Blank - Request Form'!H339=\"000\",'Blank - Request Form'!H339=0),\"\",'Blank - Request Form'!H339)","v":""},{"$f":"IF(OR('Blank - Request Form'!I339=\"0\",'Blank - Request Form'!I339=\"00000\",'Blank - Request Form'!I339=0),\"\",'Blank - Request Form'!I339)","v":""},{"$f":"IF(OR('Blank - Request Form'!J339=\"0\",'Blank - Request Form'!J339=\"00000\",'Blank - Request Form'!J339=0),\"\",'Blank - Request Form'!J339)","v":""},{"$f":"IF(OR('Blank - Request Form'!K339=\"0\",'Blank - Request Form'!K339=\"00000\",'Blank - Request Form'!K339=0),\"\",'Blank - Request Form'!K339)","v":""},null,{"$f":"IF('Blank - Request Form'!N339=0,\"\",'Blank - Request Form'!N339)","v":""},null,null,null,{"$f":"IF(M101<>\"\",'Blank - Request Form'!$M$2,\"\")","v":""},{"$f":"IF('Blank - Request Form'!L339=0,\"\",'Blank - Request Form'!L339)","v":""},"",101]
[{"$f":"IF('Blank - Request Form'!E340=0,\"\",'Blank - Request Form'!E340)","v":""},{"$f":"IF('Blank - Request Form'!G340=0,\"\",'Blank - Request Form'!G340)","v":""},{"$f":"IF(OR('Blank - Request Form'!H340=\"0\",'Blank - Request Form'!H340=\"000\",'Blank - Request Form'!H340=0),\"\",'Blank - Request Form'!H340)","v":""},{"$f":"IF(OR('Blank - Request Form'!I340=\"0\",'Blank - Request Form'!I340=\"00000\",'Blank - Request Form'!I340=0),\"\",'Blank - Request Form'!I340)","v":""},{"$f":"IF(OR('Blank - Request Form'!J340=\"0\",'Blank - Request Form'!J340=\"00000\",'Blank - Request Form'!J340=0),\"\",'Blank - Request Form'!J340)","v":""},{"$f":"IF(OR('Blank - Request Form'!K340=\"0\",'Blank - Request Form'!K340=\"00000\",'Blank - Request Form'!K340=0),\"\",'Blank - Request Form'!K340)","v":""},null,{"$f":"IF('Blank - Request Form'!N340=0,\"\",'Blank - Request Form'!N340)","v":""},null,null,null,{"$f":"IF(M102<>\"\",'Blank - Request Form'!$M$2,\"\")","v":""},{"$f":"IF('Blank - Request Form'!L340=0,\"\",'Blank - Request Form'!L340)","v":""},"",102]
[{"$f":"IF('Blank - Request Form'!E341=0,\"\",'Blank - Request Form'!E341)","v":""},{"$f":"IF('Blank - Request Form'!G341=0,\"\",'Blank - Request Form'!G341)","v":""},{"$f":"IF(OR('Blank - Request Form'!H341=\"0\",'Blank - Request Form'!H341=\"000\",'Blank - Request Form'!H341=0),\"\",'Blank - Request Form'!H341)","v":""},{"$f":"IF(OR('Blank - Request Form'!I341=\"0\",'Blank - Request Form'!I341=\"00000\",'Blank - Request Form'!I341=0),\"\",'Blank - Request Form'!I341)","v":""},{"$f":"IF(OR('Blank - Request Form'!J341=\"0\",'Blank - Request Form'!J341=\"00000\",'Blank - Request Form'!J341=0),\"\",'Blank - Request Form'!J341)","v":""},{"$f":"IF(OR('Blank - Request Form'!K341=\"0\",'Blank - Request Form'!K341=\"00000\",'Blank - Request Form'!K341=0),\"\",'Blank - Request Form'!K341)","v":""},null,{"$f":"IF('Blank - Request Form'!N341=0,\"\",'Blank - Request Form'!N341)","v":""},null,null,null,{"$f":"IF(M103<>\"\",'Blank - Request Form'!$M$2,\"\")","v":""},{"$f":"IF('Blank - Request Form'!L341=0,\"\",'Blank - Request Form'!L341)","v":""},"",103]
[{"$f":"IF('Blank - Request Form'!E342=0,\"\",'Blank - Request Form'!E342)","v":""},{"$f":"IF('Blank - Request Form'!G342=0,\"\",'Blank - Request Form'!G342)","v":""},{"$f":"IF(OR('Blank - Request Form'!H342=\"0\",'Blank - Request Form'!H342=\"000\",'Blank - Request Form'!H342=0),\"\",'Blank - Request Form'!H342)","v":""},{"$f":"IF(OR('Blank - Request Form'!I342=\"0\",'Blank - Request Form'!I342=\"00000\",'Blank - Request Form'!I342=0),\"\",'Blank - Request Form'!I342)","v":""},{"$f":"IF(OR('Blank - Request Form'!J342=\"0\",'Blank - Request Form'!J342=\"00000\",'Blank - Request Form'!J342=0),\"\",'Blank - Request Form'!J342)","v":""},{"$f":"IF(OR('Blank - Request Form'!K342=\"0\",'Blank - Request Form'!K342=\"00000\",'Blank - Request Form'!K342=0),\"\",'Blank - Request Form'!K342)","v":""},null,{"$f":"IF('Blank - Request Form'!N342=0,\"\",'Blank - Request Form'!N342)","v":""},null,null,null,{"$f":"IF(M104<>\"\",'Blank - Request Form'!$M$2,\"\")","v":""},{"$f":"IF('Blank - Request Form'!L342=0,\"\",'Blank - Request Form'!L342)","v":""},"",104]
[{"$f":"IF('Blank - Request Form'!E343=0,\"\",'Blank - Request Form'!E343)","v":""},{"$f":"IF('Blank - Request Form'!G343=0,\"\",'Blank - Request Form'!G343)","v":""},{"$f":"IF(OR('Blank - Request Form'!H343=\"0\",'Blank - Request Form'!H343=\"000\",'Blank - Request Form'!H343=0),\"\",'Blank - Request Form'!H343)","v":""},{"$f":"IF(OR('Blank - Request Form'!I343=\"0\",'Blank - Request Form'!I343=\"00000\",'Blank - Request Form'!I343=0),\"\",'Blank - Request Form'!I343)","v":""},{"$f":"IF(OR('Blank - Request Form'!J343=\"0\",'Blank - Request Form'!J343=\"00000\",'Blank - Request Form'!J343=0),\"\",'Blank - Request Form'!J343)","v":""},{"$f":"IF(OR('Blank - Request Form'!K343=\"0\",'Blank - Request Form'!K343=\"00000\",'Blank - Request Form'!K343=0),\"\",'Blank - Request Form'!K343)","v":""},null,{"$f":"IF('Blank - Request Form'!N343=0,\"\",'Blank - Request Form'!N343)","v":""},null,null,null,{"$f":"IF(M105<>\"\",'Blank - Request Form'!$M$2,\"\")","v":""},{"$f":"IF('Blank - Request Form'!L343=0,\"\",'Blank - Request Form'!L343)","v":""},"",105]
[{"$f":"IF('Blank - Request Form'!E344=0,\"\",'Blank - Request Form'!E344)","v":""},{"$f":"IF('Blank - Request Form'!G344=0,\"\",'Blank - Request Form'!G344)","v":""},{"$f":"IF(OR('Blank - Request Form'!H344=\"0\",'Blank - Request Form'!H344=\"000\",'Blank - Request Form'!H344=0),\"\",'Blank - Request Form'!H344)","v":""},{"$f":"IF(OR('Blank - Request Form'!I344=\"0\",'Blank - Request Form'!I344=\"00000\",'Blank - Request Form'!I344=0),\"\",'Blank - Request Form'!I344)","v":""},{"$f":"IF(OR('Blank - Request Form'!J344=\"0\",'Blank - Request Form'!J344=\"00000\",'Blank - Request Form'!J344=0),\"\",'Blank - Request Form'!J344)","v":""},{"$f":"IF(OR('Blank - Request Form'!K344=\"0\",'Blank - Request Form'!K344=\"00000\",'Blank - Request Form'!K344=0),\"\",'Blank - Request Form'!K344)","v":""},null,{"$f":"IF('Blank - Request Form'!N344=0,\"\",'Blank - Request Form'!N344)","v":""},null,null,null,{"$f":"IF(M106<>\"\",'Blank - Request Form'!$M$2,\"\")","v":""},{"$f":"IF('Blank - Request Form'!L344=0,\"\",'Blank - Request Form'!L344)","v":""},"",106]
[{"$f":"IF('Blank - Request Form'!E345=0,\"\",'Blank - Request Form'!E345)","v":""},{"$f":"IF('Blank - Request Form'!G345=0,\"\",'Blank - Request Form'!G345)","v":""},{"$f":"IF(OR('Blank - Request Form'!H345=\"0\",'Blank - Request Form'!H345=\"000\",'Blank - Request Form'!H345=0),\"\",'Blank - Request Form'!H345)","v":""},{"$f":"IF(OR('Blank - Request Form'!I345=\"0\",'Blank - Request Form'!I345=\"00000\",'Blank - Request Form'!I345=0),\"\",'Blank - Request Form'!I345)","v":""},{"$f":"IF(OR('Blank - Request Form'!J345=\"0\",'Blank - Request Form'!J345=\"00000\",'Blank - Request Form'!J345=0),\"\",'Blank - Request Form'!J345)","v":""},{"$f":"IF(OR('Blank - Request Form'!K345=\"0\",'Blank - Request Form'!K345=\"00000\",'Blank - Request Form'!K345=0),\"\",'Blank - Request Form'!K345)","v":""},null,{"$f":"IF('Blank - Request Form'!N345=0,\"\",'Blank - Request Form'!N345)","v":""},null,null,null,{"$f":"IF(M107<>\"\",'Blank - Request Form'!$M$2,\"\")","v":""},{"$f":"IF('Blank - Request Form'!L345=0,\"\",'Blank - Request Form'!L345)","v":""},"",107]
[{"$f":"IF('Blank - Request Form'!E346=0,\"\",'Blank - Request Form'!E346)","v":""},{"$f":"IF('Blank - Request Form'!G346=0,\"\",'Blank - Request Form'!G346)","v":""},{"$f":"IF(OR('Blank - Request Form'!H346=\"0\",'Blank - Request Form'!H346=\"000\",'Blank - Request Form'!H346=0),\"\",'Blank - Request Form'!H346)","v":""},{"$f":"IF(OR('Blank - Request Form'!I346=\"0\",'Blank - Request Form'!I346=\"00000\",'Blank - Request Form'!I346=0),\"\",'Blank - Request Form'!I346)","v":""},{"$f":"IF(OR('Blank - Request Form'!J346=\"0\",'Blank - Request Form'!J346=\"00000\",'Blank - Request Form'!J346=0),\"\",'Blank - Request Form'!J346)","v":""},{"$f":"IF(OR('Blank - Request Form'!K346=\"0\",'Blank - Request Form'!K346=\"00000\",'Blank - Request Form'!K346=0),\"\",'Blank - Request Form'!K346)","v":""},null,{"$f":"IF('Blank - Request Form'!N346=0,\"\",'Blank - Request Form'!N346)","v":""},null,null,null,{"$f":"IF(M108<>\"\",'Blank - Request Form'!$M$2,\"\")","v":""},{"$f":"IF('Blank - Request Form'!L346=0,\"\",'Blank - Request Form'!L346)","v":""},"",108]
[{"$f":"IF('Blank - Request Form'!E347=0,\"\",'Blank - Request Form'!E347)","v":""},{"$f":"IF('Blank - Request Form'!G347=0,\"\",'Blank - Request Form'!G347)","v":""},{"$f":"IF(OR('Blank - Request Form'!H347=\"0\",'Blank - Request Form'!H347=\"000\",'Blank - Request Form'!H347=0),\"\",'Blank - Request Form'!H347)","v":""},{"$f":"IF(OR('Blank - Request Form'!I347=\"0\",'Blank - Request Form'!I347=\"00000\",'Blank - Request Form'!I347=0),\"\",'Blank - Request Form'!I347)","v":""},{"$f":"IF(OR('Blank - Request Form'!J347=\"0\",'Blank - Request Form'!J347=\"00000\",'Blank - Request Form'!J347=0),\"\",'Blank - Request Form'!J347)","v":""},{"$f":"IF(OR('Blank - Request Form'!K347=\"0\",'Blank - Request Form'!K347=\"00000\",'Blank - Request Form'!K347=0),\"\",'Blank - Request Form'!K347)","v":""},null,{"$f":"IF('Blank - Request Form'!N347=0,\"\",'Blank - Request Form'!N347)","v":""},null,null,null,{"$f":"IF(M109<>\"\",'Blank - Request Form'!$M$2,\"\")","v":""},{"$f":"IF('Blank - Request Form'!L347=0,\"\",'Blank - Request Form'!L347)","v":""},"",109]
[{"$f":"IF('Blank - Request Form'!E348=0,\"\",'Blank - Request Form'!E348)","v":""},{"$f":"IF('Blank - Request Form'!G348=0,\"\",'Blank - Request Form'!G348)","v":""},{"$f":"IF(OR('Blank - Request Form'!H348=\"0\",'Blank - Request Form'!H348=\"000\",'Blank - Request Form'!H348=0),\"\",'Blank - Request Form'!H348)","v":""},{"$f":"IF(OR('Blank - Request Form'!I348=\"0\",'Blank - Request Form'!I348=\"00000\",'Blank - Request Form'!I348=0),\"\",'Blank - Request Form'!I348)","v":""},{"$f":"IF(OR('Blank - Request Form'!J348=\"0\",'Blank - Request Form'!J348=\"00000\",'Blank - Request Form'!J348=0),\"\",'Blank - Request Form'!J348)","v":""},{"$f":"IF(OR('Blank - Request Form'!K348=\"0\",'Blank - Request Form'!K348=\"00000\",'Blank - Request Form'!K348=0),\"\",'Blank - Request Form'!K348)","v":""},null,{"$f":"IF('Blank - Request Form'!N348=0,\"\",'Blank - Request Form'!N348)","v":""},null,null,null,{"$f":"IF(M110<>\"\",'Blank - Request Form'!$M$2,\"\")","v":""},{"$f":"IF('Blank - Request Form'!L348=0,\"\",'Blank - Request Form'!L348)","v":""},"",110]
[{"$f":"IF('Blank - Request Form'!E349=0,\"\",'Blank - Request Form'!E349)","v":""},{"$f":"IF('Blank - Request Form'!G349=0,\"\",'Blank - Request Form'!G349)","v":""},{"$f":"IF(OR('Blank - Request Form'!H349=\"0\",'Blank - Request Form'!H349=\"000\",'Blank - Request Form'!H349=0),\"\",'Blank - Request Form'!H349)","v":""},{"$f":"IF(OR('Blank - Request Form'!I349=\"0\",'Blank - Request Form'!I349=\"00000\",'Blank - Request Form'!I349=0),\"\",'Blank - Request Form'!I349)","v":""},{"$f":"IF(OR('Blank - Request Form'!J349=\"0\",'Blank - Request Form'!J349=\"00000\",'Blank - Request Form'!J349=0),\"\",'Blank - Request Form'!J349)","v":""},{"$f":"IF(OR('Blank - Request Form'!K349=\"0\",'Blank - Request Form'!K349=\"00000\",'Blank - Request Form'!K349=0),\"\",'Blank - Request Form'!K349)","v":""},null,{"$f":"IF('Blank - Request Form'!N349=0,\"\",'Blank - Request Form'!N349)","v":""},null,null,null,{"$f":"IF(M111<>\"\",'Blank - Request Form'!$M$2,\"\")","v":""},{"$f":"IF('Blank - Request Form'!L349=0,\"\",'Blank - Request Form'!L349)","v":""},"",111]
[{"$f":"IF('Blank - Request Form'!E350=0,\"\",'Blank - Request Form'!E350)","v":""},{"$f":"IF('Blank - Request Form'!G350=0,\"\",'Blank - Request Form'!G350)","v":""},{"$f":"IF(OR('Blank - Request Form'!H350=\"0\",'Blank - Request Form'!H350=\"000\",'Blank - Request Form'!H350=0),\"\",'Blank - Request Form'!H350)","v":""},{"$f":"IF(OR('Blank - Request Form'!I350=\"0\",'Blank - Request Form'!I350=\"00000\",'Blank - Request Form'!I350=0),\"\",'Blank - Request Form'!I350)","v":""},{"$f":"IF(OR('Blank - Request Form'!J350=\"0\",'Blank - Request Form'!J350=\"00000\",'Blank - Request Form'!J350=0),\"\",'Blank - Request Form'!J350)","v":""},{"$f":"IF(OR('Blank - Request Form'!K350=\"0\",'Blank - Request Form'!K350=\"00000\",'Blank - Request Form'!K350=0),\"\",'Blank - Request Form'!K350)","v":""},null,{"$f":"IF('Blank - Request Form'!N350=0,\"\",'Blank - Request Form'!N350)","v":""},null,null,null,{"$f":"IF(M112<>\"\",'Blank - Request Form'!$M$2,\"\")","v":""},{"$f":"IF('Blank - Request Form'!L350=0,\"\",'Blank - Request Form'!L350)","v":""},"",112]
[{"$f":"IF('Blank - Request Form'!E351=0,\"\",'Blank - Request Form'!E351)","v":""},{"$f":"IF('Blank - Request Form'!G351=0,\"\",'Blank - Request Form'!G351)","v":""},{"$f":"IF(OR('Blank - Request Form'!H351=\"0\",'Blank - Request Form'!H351=\"000\",'Blank - Request Form'!H351=0),\"\",'Blank - Request Form'!H351)","v":""},{"$f":"IF(OR('Blank - Request Form'!I351=\"0\",'Blank - Request Form'!I351=\"00000\",'Blank - Request Form'!I351=0),\"\",'Blank - Request Form'!I351)","v":""},{"$f":"IF(OR('Blank - Request Form'!J351=\"0\",'Blank - Request Form'!J351=\"00000\",'Blank - Request Form'!J351=0),\"\",'Blank - Request Form'!J351)","v":""},{"$f":"IF(OR('Blank - Request Form'!K351=\"0\",'Blank - Request Form'!K351=\"00000\",'Blank - Request Form'!K351=0),\"\",'Blank - Request Form'!K351)","v":""},null,{"$f":"IF('Blank - Request Form'!N351=0,\"\",'Blank - Request Form'!N351)","v":""},null,null,null,{"$f":"IF(M113<>\"\",'Blank - Request Form'!$M$2,\"\")","v":""},{"$f":"IF('Blank - Request Form'!L351=0,\"\",'Blank - Request Form'!L351)","v":""},"",113]
[{"$f":"IF('Blank - Request Form'!E352=0,\"\",'Blank - Request Form'!E352)","v":""},{"$f":"IF('Blank - Request Form'!G352=0,\"\",'Blank - Request Form'!G352)","v":""},{"$f":"IF(OR('Blank - Request Form'!H352=\"0\",'Blank - Request Form'!H352=\"000\",'Blank - Request Form'!H352=0),\"\",'Blank - Request Form'!H352)","v":""},{"$f":"IF(OR('Blank - Request Form'!I352=\"0\",'Blank - Request Form'!I352=\"00000\",'Blank - Request Form'!I352=0),\"\",'Blank - Request Form'!I352)","v":""},{"$f":"IF(OR('Blank - Request Form'!J352=\"0\",'Blank - Request Form'!J352=\"00000\",'Blank - Request Form'!J352=0),\"\",'Blank - Request Form'!J352)","v":""},{"$f":"IF(OR('Blank - Request Form'!K352=\"0\",'Blank - Request Form'!K352=\"00000\",'Blank - Request Form'!K352=0),\"\",'Blank - Request Form'!K352)","v":""},null,{"$f":"IF('Blank - Request Form'!N352=0,\"\",'Blank - Request Form'!N352)","v":""},null,null,null,{"$f":"IF(M114<>\"\",'Blank - Request Form'!$M$2,\"\")","v":""},{"$f":"IF('Blank - Request Form'!L352=0,\"\",'Blank - Request Form'!L352)","v":""},"",114]
[{"$f":"IF('Blank - Request Form'!E353=0,\"\",'Blank - Request Form'!E353)","v":""},{"$f":"IF('Blank - Request Form'!G353=0,\"\",'Blank - Request Form'!G353)","v":""},{"$f":"IF(OR('Blank - Request Form'!H353=\"0\",'Blank - Request Form'!H353=\"000\",'Blank - Request Form'!H353=0),\"\",'Blank - Request Form'!H353)","v":""},{"$f":"IF(OR('Blank - Request Form'!I353=\"0\",'Blank - Request Form'!I353=\"00000\",'Blank - Request Form'!I353=0),\"\",'Blank - Request Form'!I353)","v":""},{"$f":"IF(OR('Blank - Request Form'!J353=\"0\",'Blank - Request Form'!J353=\"00000\",'Blank - Request Form'!J353=0),\"\",'Blank - Request Form'!J353)","v":""},{"$f":"IF(OR('Blank - Request Form'!K353=\"0\",'Blank - Request Form'!K353=\"00000\",'Blank - Request Form'!K353=0),\"\",'Blank - Request Form'!K353)","v":""},null,{"$f":"IF('Blank - Request Form'!N353=0,\"\",'Blank - Request Form'!N353)","v":""},null,null,null,{"$f":"IF(M115<>\"\",'Blank - Request Form'!$M$2,\"\")","v":""},{"$f":"IF('Blank - Request Form'!L353=0,\"\",'Blank - Request Form'!L353)","v":""},"",115]
[{"$f":"IF('Blank - Request Form'!E354=0,\"\",'Blank - Request Form'!E354)","v":""},{"$f":"IF('Blank - Request Form'!G354=0,\"\",'Blank - Request Form'!G354)","v":""},{"$f":"IF(OR('Blank - Request Form'!H354=\"0\",'Blank - Request Form'!H354=\"000\",'Blank - Request Form'!H354=0),\"\",'Blank - Request Form'!H354)","v":""},{"$f":"IF(OR('Blank - Request Form'!I354=\"0\",'Blank - Request Form'!I354=\"00000\",'Blank - Request Form'!I354=0),\"\",'Blank - Request Form'!I354)","v":""},{"$f":"IF(OR('Blank - Request Form'!J354=\"0\",'Blank - Request Form'!J354=\"00000\",'Blank - Request Form'!J354=0),\"\",'Blank - Request Form'!J354)","v":""},{"$f":"IF(OR('Blank - Request Form'!K354=\"0\",'Blank - Request Form'!K354=\"00000\",'Blank - Request Form'!K354=0),\"\",'Blank - Request Form'!K354)","v":""},null,{"$f":"IF('Blank - Request Form'!N354=0,\"\",'Blank - Request Form'!N354)","v":""},null,null,null,{"$f":"IF(M116<>\"\",'Blank - Request Form'!$M$2,\"\")","v":""},{"$f":"IF('Blank - Request Form'!L354=0,\"\",'Blank - Request Form'!L354)","v":""},"",116]
[{"$f":"IF('Blank - Request Form'!E355=0,\"\",'Blank - Request Form'!E355)","v":""},{"$f":"IF('Blank - Request Form'!G355=0,\"\",'Blank - Request Form'!G355)","v":""},{"$f":"IF(OR('Blank - Request Form'!H355=\"0\",'Blank - Request Form'!H355=\"000\",'Blank - Request Form'!H355=0),\"\",'Blank - Request Form'!H355)","v":""},{"$f":"IF(OR('Blank - Request Form'!I355=\"0\",'Blank - Request Form'!I355=\"00000\",'Blank - Request Form'!I355=0),\"\",'Blank - Request Form'!I355)","v":""},{"$f":"IF(OR('Blank - Request Form'!J355=\"0\",'Blank - Request Form'!J355=\"00000\",'Blank - Request Form'!J355=0),\"\",'Blank - Request Form'!J355)","v":""},{"$f":"IF(OR('Blank - Request Form'!K355=\"0\",'Blank - Request Form'!K355=\"00000\",'Blank - Request Form'!K355=0),\"\",'Blank - Request Form'!K355)","v":""},null,{"$f":"IF('Blank - Request Form'!N355=0,\"\",'Blank - Request Form'!N355)","v":""},null,null,null,{"$f":"IF(M117<>\"\",'Blank - Request Form'!$M$2,\"\")","v":""},{"$f":"IF('Blank - Request Form'!L355=0,\"\",'Blank - Request Form'!L355)","v":""},"",117]
[{"$f":"IF('Blank - Request Form'!E356=0,\"\",'Blank - Request Form'!E356)","v":""},{"$f":"IF('Blank - Request Form'!G356=0,\"\",'Blank - Request Form'!G356)","v":""},{"$f":"IF(OR('Blank - Request Form'!H356=\"0\",'Blank - Request Form'!H356=\"000\",'Blank - Request Form'!H356=0),\"\",'Blank - Request Form'!H356)","v":""},{"$f":"IF(OR('Blank - Request Form'!I356=\"0\",'Blank - Request Form'!I356=\"00000\",'Blank - Request Form'!I356=0),\"\",'Blank - Request Form'!I356)","v":""},{"$f":"IF(OR('Blank - Request Form'!J356=\"0\",'Blank - Request Form'!J356=\"00000\",'Blank - Request Form'!J356=0),\"\",'Blank - Request Form'!J356)","v":""},{"$f":"IF(OR('Blank - Request Form'!K356=\"0\",'Blank - Request Form'!K356=\"00000\",'Blank - Request Form'!K356=0),\"\",'Blank - Request Form'!K356)","v":""},null,{"$f":"IF('Blank - Request Form'!N356=0,\"\",'Blank - Request Form'!N356)","v":""},null,null,null,{"$f":"IF(M118<>\"\",'Blank - Request Form'!$M$2,\"\")","v":""},{"$f":"IF('Blank - Request Form'!L356=0,\"\",'Blank - Request Form'!L356)","v":""},"",118]
[{"$f":"IF('Blank - Request Form'!E357=0,\"\",'Blank - Request Form'!E357)","v":""},{"$f":"IF('Blank - Request Form'!G357=0,\"\",'Blank - Request Form'!G357)","v":""},{"$f":"IF(OR('Blank - Request Form'!H357=\"0\",'Blank - Request Form'!H357=\"000\",'Blank - Request Form'!H357=0),\"\",'Blank - Request Form'!H357)","v":""},{"$f":"IF(OR('Blank - Request Form'!I357=\"0\",'Blank - Request Form'!I357=\"00000\",'Blank - Request Form'!I357=0),\"\",'Blank - Request Form'!I357)","v":""},{"$f":"IF(OR('Blank - Request Form'!J357=\"0\",'Blank - Request Form'!J357=\"00000\",'Blank - Request Form'!J357=0),\"\",'Blank - Request Form'!J357)","v":""},{"$f":"IF(OR('Blank - Request Form'!K357=\"0\",'Blank - Request Form'!K357=\"00000\",'Blank - Request Form'!K357=0),\"\",'Blank - Request Form'!K357)","v":""},null,{"$f":"IF('Blank - Request Form'!N357=0,\"\",'Blank - Request Form'!N357)","v":""},null,null,null,{"$f":"IF(M119<>\"\",'Blank - Request Form'!$M$2,\"\")","v":""},{"$f":"IF('Blank - Request Form'!L357=0,\"\",'Blank - Request Form'!L357)","v":""},"",119]
[{"$f":"IF('Blank - Request Form'!E358=0,\"\",'Blank - Request Form'!E358)","v":""},{"$f":"IF('Blank - Request Form'!G358=0,\"\",'Blank - Request Form'!G358)","v":""},{"$f":"IF(OR('Blank - Request Form'!H358=\"0\",'Blank - Request Form'!H358=\"000\",'Blank - Request Form'!H358=0),\"\",'Blank - Request Form'!H358)","v":""},{"$f":"IF(OR('Blank - Request Form'!I358=\"0\",'Blank - Request Form'!I358=\"00000\",'Blank - Request Form'!I358=0),\"\",'Blank - Request Form'!I358)","v":""},{"$f":"IF(OR('Blank - Request Form'!J358=\"0\",'Blank - Request Form'!J358=\"00000\",'Blank - Request Form'!J358=0),\"\",'Blank - Request Form'!J358)","v":""},{"$f":"IF(OR('Blank - Request Form'!K358=\"0\",'Blank - Request Form'!K358=\"00000\",'Blank - Request Form'!K358=0),\"\",'Blank - Request Form'!K358)","v":""},null,{"$f":"IF('Blank - Request Form'!N358=0,\"\",'Blank - Request Form'!N358)","v":""},null,null,null,{"$f":"IF(M120<>\"\",'Blank - Request Form'!$M$2,\"\")","v":""},{"$f":"IF('Blank - Request Form'!L358=0,\"\",'Blank - Request Form'!L358)","v":""},"",120]
[{"$f":"IF('Blank - Request Form'!E359=0,\"\",'Blank - Request Form'!E359)","v":""},{"$f":"IF('Blank - Request Form'!G359=0,\"\",'Blank - Request Form'!G359)","v":""},{"$f":"IF(OR('Blank - Request Form'!H359=\"0\",'Blank - Request Form'!H359=\"000\",'Blank - Request Form'!H359=0),\"\",'Blank - Request Form'!H359)","v":""},{"$f":"IF(OR('Blank - Request Form'!I359=\"0\",'Blank - Request Form'!I359=\"00000\",'Blank - Request Form'!I359=0),\"\",'Blank - Request Form'!I359)","v":""},{"$f":"IF(OR('Blank - Request Form'!J359=\"0\",'Blank - Request Form'!J359=\"00000\",'Blank - Request Form'!J359=0),\"\",'Blank - Request Form'!J359)","v":""},{"$f":"IF(OR('Blank - Request Form'!K359=\"0\",'Blank - Request Form'!K359=\"00000\",'Blank - Request Form'!K359=0),\"\",'Blank - Request Form'!K359)","v":""},null,{"$f":"IF('Blank - Request Form'!N359=0,\"\",'Blank - Request Form'!N359)","v":""},null,null,null,{"$f":"IF(M121<>\"\",'Blank - Request Form'!$M$2,\"\")","v":""},{"$f":"IF('Blank - Request Form'!L359=0,\"\",'Blank - Request Form'!L359)","v":""},"",121]
[{"$f":"IF('Blank - Request Form'!E360=0,\"\",'Blank - Request Form'!E360)","v":""},{"$f":"IF('Blank - Request Form'!G360=0,\"\",'Blank - Request Form'!G360)","v":""},{"$f":"IF(OR('Blank - Request Form'!H360=\"0\",'Blank - Request Form'!H360=\"000\",'Blank - Request Form'!H360=0),\"\",'Blank - Request Form'!H360)","v":""},{"$f":"IF(OR('Blank - Request Form'!I360=\"0\",'Blank - Request Form'!I360=\"00000\",'Blank - Request Form'!I360=0),\"\",'Blank - Request Form'!I360)","v":""},{"$f":"IF(OR('Blank - Request Form'!J360=\"0\",'Blank - Request Form'!J360=\"00000\",'Blank - Request Form'!J360=0),\"\",'Blank - Request Form'!J360)","v":""},{"$f":"IF(OR('Blank - Request Form'!K360=\"0\",'Blank - Request Form'!K360=\"00000\",'Blank - Request Form'!K360=0),\"\",'Blank - Request Form'!K360)","v":""},null,{"$f":"IF('Blank - Request Form'!N360=0,\"\",'Blank - Request Form'!N360)","v":""},null,null,null,{"$f":"IF(M122<>\"\",'Blank - Request Form'!$M$2,\"\")","v":""},{"$f":"IF('Blank - Request Form'!L360=0,\"\",'Blank - Request Form'!L360)","v":""},"",122]
[{"$f":"IF('Blank - Request Form'!E361=0,\"\",'Blank - Request Form'!E361)","v":""},{"$f":"IF('Blank - Request Form'!G361=0,\"\",'Blank - Request Form'!G361)","v":""},{"$f":"IF(OR('Blank - Request Form'!H361=\"0\",'Blank - Request Form'!H361=\"000\",'Blank - Request Form'!H361=0),\"\",'Blank - Request Form'!H361)","v":""},{"$f":"IF(OR('Blank - Request Form'!I361=\"0\",'Blank - Request Form'!I361=\"00000\",'Blank - Request Form'!I361=0),\"\",'Blank - Request Form'!I361)","v":""},{"$f":"IF(OR('Blank - Request Form'!J361=\"0\",'Blank - Request Form'!J361=\"00000\",'Blank - Request Form'!J361=0),\"\",'Blank - Request Form'!J361)","v":""},{"$f":"IF(OR('Blank - Request Form'!K361=\"0\",'Blank - Request Form'!K361=\"00000\",'Blank - Request Form'!K361=0),\"\",'Blank - Request Form'!K361)","v":""},null,{"$f":"IF('Blank - Request Form'!N361=0,\"\",'Blank - Request Form'!N361)","v":""},null,null,null,{"$f":"IF(M123<>\"\",'Blank - Request Form'!$M$2,\"\")","v":""},{"$f":"IF('Blank - Request Form'!L361=0,\"\",'Blank - Request Form'!L361)","v":""},"",123]
[{"$f":"IF('Blank - Request Form'!E362=0,\"\",'Blank - Request Form'!E362)","v":""},{"$f":"IF('Blank - Request Form'!G362=0,\"\",'Blank - Request Form'!G362)","v":""},{"$f":"IF(OR('Blank - Request Form'!H362=\"0\",'Blank - Request Form'!H362=\"000\",'Blank - Request Form'!H362=0),\"\",'Blank - Request Form'!H362)","v":""},{"$f":"IF(OR('Blank - Request Form'!I362=\"0\",'Blank - Request Form'!I362=\"00000\",'Blank - Request Form'!I362=0),\"\",'Blank - Request Form'!I362)","v":""},{"$f":"IF(OR('Blank - Request Form'!J362=\"0\",'Blank - Request Form'!J362=\"00000\",'Blank - Request Form'!J362=0),\"\",'Blank - Request Form'!J362)","v":""},{"$f":"IF(OR('Blank - Request Form'!K362=\"0\",'Blank - Request Form'!K362=\"00000\",'Blank - Request Form'!K362=0),\"\",'Blank - Request Form'!K362)","v":""},null,{"$f":"IF('Blank - Request Form'!N362=0,\"\",'Blank - Request Form'!N362)","v":""},null,null,null,{"$f":"IF(M124<>\"\",'Blank - Request Form'!$M$2,\"\")","v":""},{"$f":"IF('Blank - Request Form'!L362=0,\"\",'Blank - Request Form'!L362)","v":""},"",124]
[{"$f":"IF('Blank - Request Form'!E363=0,\"\",'Blank - Request Form'!E363)","v":""},{"$f":"IF('Blank - Request Form'!G363=0,\"\",'Blank - Request Form'!G363)","v":""},{"$f":"IF(OR('Blank - Request Form'!H363=\"0\",'Blank - Request Form'!H363=\"000\",'Blank - Request Form'!H363=0),\"\",'Blank - Request Form'!H363)","v":""},{"$f":"IF(OR('Blank - Request Form'!I363=\"0\",'Blank - Request Form'!I363=\"00000\",'Blank - Request Form'!I363=0),\"\",'Blank - Request Form'!I363)","v":""},{"$f":"IF(OR('Blank - Request Form'!J363=\"0\",'Blank - Request Form'!J363=\"00000\",'Blank - Request Form'!J363=0),\"\",'Blank - Request Form'!J363)","v":""},{"$f":"IF(OR('Blank - Request Form'!K363=\"0\",'Blank - Request Form'!K363=\"00000\",'Blank - Request Form'!K363=0),\"\",'Blank - Request Form'!K363)","v":""},null,{"$f":"IF('Blank - Request Form'!N363=0,\"\",'Blank - Request Form'!N363)","v":""},null,null,null,{"$f":"IF(M125<>\"\",'Blank - Request Form'!$M$2,\"\")","v":""},{"$f":"IF('Blank - Request Form'!L363=0,\"\",'Blank - Request Form'!L363)","v":""},"",125]
[{"$f":"IF('Blank - Request Form'!E364=0,\"\",'Blank - Request Form'!E364)","v":""},{"$f":"IF('Blank - Request Form'!G364=0,\"\",'Blank - Request Form'!G364)","v":""},{"$f":"IF(OR('Blank - Request Form'!H364=\"0\",'Blank - Request Form'!H364=\"000\",'Blank - Request Form'!H364=0),\"\",'Blank - Request Form'!H364)","v":""},{"$f":"IF(OR('Blank - Request Form'!I364=\"0\",'Blank - Request Form'!I364=\"00000\",'Blank - Request Form'!I364=0),\"\",'Blank - Request Form'!I364)","v":""},{"$f":"IF(OR('Blank - Request Form'!J364=\"0\",'Blank - Request Form'!J364=\"00000\",'Blank - Request Form'!J364=0),\"\",'Blank - Request Form'!J364)","v":""},{"$f":"IF(OR('Blank - Request Form'!K364=\"0\",'Blank - Request Form'!K364=\"00000\",'Blank - Request Form'!K364=0),\"\",'Blank - Request Form'!K364)","v":""},null,{"$f":"IF('Blank - Request Form'!N364=0,\"\",'Blank - Request Form'!N364)","v":""},null,null,null,{"$f":"IF(M126<>\"\",'Blank - Request Form'!$M$2,\"\")","v":""},{"$f":"IF('Blank - Request Form'!L364=0,\"\",'Blank - Request Form'!L364)","v":""},"",126]
[{"$f":"IF('Blank - Request Form'!E365=0,\"\",'Blank - Request Form'!E365)","v":""},{"$f":"IF('Blank - Request Form'!G365=0,\"\",'Blank - Request Form'!G365)","v":""},{"$f":"IF(OR('Blank - Request Form'!H365=\"0\",'Blank - Request Form'!H365=\"000\",'Blank - Request Form'!H365=0),\"\",'Blank - Request Form'!H365)","v":""},{"$f":"IF(OR('Blank - Request Form'!I365=\"0\",'Blank - Request Form'!I365=\"00000\",'Blank - Request Form'!I365=0),\"\",'Blank - Request Form'!I365)","v":""},{"$f":"IF(OR('Blank - Request Form'!J365=\"0\",'Blank - Request Form'!J365=\"00000\",'Blank - Request Form'!J365=0),\"\",'Blank - Request Form'!J365)","v":""},{"$f":"IF(OR('Blank - Request Form'!K365=\"0\",'Blank - Request Form'!K365=\"00000\",'Blank - Request Form'!K365=0),\"\",'Blank - Request Form'!K365)","v":""},null,{"$f":"IF('Blank - Request Form'!N365=0,\"\",'Blank - Request Form'!N365)","v":""},null,null,null,{"$f":"IF(M127<>\"\",'Blank - Request Form'!$M$2,\"\")","v":""},{"$f":"IF('Blank - Request Form'!L365=0,\"\",'Blank - Request Form'!L365)","v":""},"",127]
[{"$f":"IF('Blank - Request Form'!E366=0,\"\",'Blank - Request Form'!E366)","v":""},{"$f":"IF('Blank - Request Form'!G366=0,\"\",'Blank - Request Form'!G366)","v":""},{"$f":"IF(OR('Blank - Request Form'!H366=\"0\",'Blank - Request Form'!H366=\"000\",'Blank - Request Form'!H366=0),\"\",'Blank - Request Form'!H366)","v":""},{"$f":"IF(OR('Blank - Request Form'!I366=\"0\",'Blank - Request Form'!I366=\"00000\",'Blank - Request Form'!I366=0),\"\",'Blank - Request Form'!I366)","v":""},{"$f":"IF(OR('Blank - Request Form'!J366=\"0\",'Blank - Request Form'!J366=\"00000\",'Blank - Request Form'!J366=0),\"\",'Blank - Request Form'!J366)","v":""},{"$f":"IF(OR('Blank - Request Form'!K366=\"0\",'Blank - Request Form'!K366=\"00000\",'Blank - Request Form'!K366=0),\"\",'Blank - Request Form'!K366)","v":""},null,{"$f":"IF('Blank - Request Form'!N366=0,\"\",'Blank - Request Form'!N366)","v":""},null,null,null,{"$f":"IF(M128<>\"\",'Blank - Request Form'!$M$2,\"\")","v":""},{"$f":"IF('Blank - Request Form'!L366=0,\"\",'Blank - Request Form'!L366)","v":""},"",128]
[{"$f":"IF('Blank - Request Form'!E367=0,\"\",'Blank - Request Form'!E367)","v":""},{"$f":"IF('Blank - Request Form'!G367=0,\"\",'Blank - Request Form'!G367)","v":""},{"$f":"IF(OR('Blank - Request Form'!H367=\"0\",'Blank - Request Form'!H367=\"000\",'Blank - Request Form'!H367=0),\"\",'Blank - Request Form'!H367)","v":""},{"$f":"IF(OR('Blank - Request Form'!I367=\"0\",'Blank - Request Form'!I367=\"00000\",'Blank - Request Form'!I367=0),\"\",'Blank - Request Form'!I367)","v":""},{"$f":"IF(OR('Blank - Request Form'!J367=\"0\",'Blank - Request Form'!J367=\"00000\",'Blank - Request Form'!J367=0),\"\",'Blank - Request Form'!J367)","v":""},{"$f":"IF(OR('Blank - Request Form'!K367=\"0\",'Blank - Request Form'!K367=\"00000\",'Blank - Request Form'!K367=0),\"\",'Blank - Request Form'!K367)","v":""},null,{"$f":"IF('Blank - Request Form'!N367=0,\"\",'Blank - Request Form'!N367)","v":""},null,null,null,{"$f":"IF(M129<>\"\",'Blank - Request Form'!$M$2,\"\")","v":""},{"$f":"IF('Blank - Request Form'!L367=0,\"\",'Blank - Request Form'!L367)","v":""},"",129]
[{"$f":"IF('Blank - Request Form'!E368=0,\"\",'Blank - Request Form'!E368)","v":""},{"$f":"IF('Blank - Request Form'!G368=0,\"\",'Blank - Request Form'!G368)","v":""},{"$f":"IF(OR('Blank - Request Form'!H368=\"0\",'Blank - Request Form'!H368=\"000\",'Blank - Request Form'!H368=0),\"\",'Blank - Request Form'!H368)","v":""},{"$f":"IF(OR('Blank - Request Form'!I368=\"0\",'Blank - Request Form'!I368=\"00000\",'Blank - Request Form'!I368=0),\"\",'Blank - Request Form'!I368)","v":""},{"$f":"IF(OR('Blank - Request Form'!J368=\"0\",'Blank - Request Form'!J368=\"00000\",'Blank - Request Form'!J368=0),\"\",'Blank - Request Form'!J368)","v":""},{"$f":"IF(OR('Blank - Request Form'!K368=\"0\",'Blank - Request Form'!K368=\"00000\",'Blank - Request Form'!K368=0),\"\",'Blank - Request Form'!K368)","v":""},null,{"$f":"IF('Blank - Request Form'!N368=0,\"\",'Blank - Request Form'!N368)","v":""},null,null,null,{"$f":"IF(M130<>\"\",'Blank - Request Form'!$M$2,\"\")","v":""},{"$f":"IF('Blank - Request Form'!L368=0,\"\",'Blank - Request Form'!L368)","v":""},{"$f":"IF(M130<>\"\",O130,\"\")","v":""},130]
[{"$f":"IF('Blank - Request Form'!E369=0,\"\",'Blank - Request Form'!E369)","v":""},{"$f":"IF('Blank - Request Form'!G369=0,\"\",'Blank - Request Form'!G369)","v":""},{"$f":"IF(OR('Blank - Request Form'!H369=\"0\",'Blank - Request Form'!H369=\"000\",'Blank - Request Form'!H369=0),\"\",'Blank - Request Form'!H369)","v":""},{"$f":"IF(OR('Blank - Request Form'!I369=\"0\",'Blank - Request Form'!I369=\"00000\",'Blank - Request Form'!I369=0),\"\",'Blank - Request Form'!I369)","v":""},{"$f":"IF(OR('Blank - Request Form'!J369=\"0\",'Blank - Request Form'!J369=\"00000\",'Blank - Request Form'!J369=0),\"\",'Blank - Request Form'!J369)","v":""},{"$f":"IF(OR('Blank - Request Form'!K369=\"0\",'Blank - Request Form'!K369=\"00000\",'Blank - Request Form'!K369=0),\"\",'Blank - Request Form'!K369)","v":""},null,{"$f":"IF('Blank - Request Form'!N369=0,\"\",'Blank - Request Form'!N369)","v":""},null,null,null,{"$f":"IF(M131<>\"\",'Blank - Request Form'!$M$2,\"\")","v":""},{"$f":"IF('Blank - Request Form'!L369=0,\"\",'Blank - Request Form'!L369)","v":""},"",131]
[{"$f":"IF('Blank - Request Form'!E370=0,\"\",'Blank - Request Form'!E370)","v":""},{"$f":"IF('Blank - Request Form'!G370=0,\"\",'Blank - Request Form'!G370)","v":""},{"$f":"IF(OR('Blank - Request Form'!H370=\"0\",'Blank - Request Form'!H370=\"000\",'Blank - Request Form'!H370=0),\"\",'Blank - Request Form'!H370)","v":""},{"$f":"IF(OR('Blank - Request Form'!I370=\"0\",'Blank - Request Form'!I370=\"00000\",'Blank - Request Form'!I370=0),\"\",'Blank - Request Form'!I370)","v":""},{"$f":"IF(OR('Blank - Request Form'!J370=\"0\",'Blank - Request Form'!J370=\"00000\",'Blank - Request Form'!J370=0),\"\",'Blank - Request Form'!J370)","v":""},{"$f":"IF(OR('Blank - Request Form'!K370=\"0\",'Blank - Request Form'!K370=\"00000\",'Blank - Request Form'!K370=0),\"\",'Blank - Request Form'!K370)","v":""},null,{"$f":"IF('Blank - Request Form'!N370=0,\"\",'Blank - Request Form'!N370)","v":""},null,null,null,{"$f":"IF(M132<>\"\",'Blank - Request Form'!$M$2,\"\")","v":""},{"$f":"IF('Blank - Request Form'!L370=0,\"\",'Blank - Request Form'!L370)","v":""},"",132]
[{"$f":"IF('Blank - Request Form'!E371=0,\"\",'Blank - Request Form'!E371)","v":""},{"$f":"IF('Blank - Request Form'!G371=0,\"\",'Blank - Request Form'!G371)","v":""},{"$f":"IF(OR('Blank - Request Form'!H371=\"0\",'Blank - Request Form'!H371=\"000\",'Blank - Request Form'!H371=0),\"\",'Blank - Request Form'!H371)","v":""},{"$f":"IF(OR('Blank - Request Form'!I371=\"0\",'Blank - Request Form'!I371=\"00000\",'Blank - Request Form'!I371=0),\"\",'Blank - Request Form'!I371)","v":""},{"$f":"IF(OR('Blank - Request Form'!J371=\"0\",'Blank - Request Form'!J371=\"00000\",'Blank - Request Form'!J371=0),\"\",'Blank - Request Form'!J371)","v":""},{"$f":"IF(OR('Blank - Request Form'!K371=\"0\",'Blank - Request Form'!K371=\"00000\",'Blank - Request Form'!K371=0),\"\",'Blank - Request Form'!K371)","v":""},null,{"$f":"IF('Blank - Request Form'!N371=0,\"\",'Blank - Request Form'!N371)","v":""},null,null,null,{"$f":"IF(M133<>\"\",'Blank - Request Form'!$M$2,\"\")","v":""},{"$f":"IF('Blank - Request Form'!L371=0,\"\",'Blank - Request Form'!L371)","v":""},"",133]
[{"$f":"IF('Blank - Request Form'!E372=0,\"\",'Blank - Request Form'!E372)","v":""},{"$f":"IF('Blank - Request Form'!G372=0,\"\",'Blank - Request Form'!G372)","v":""},{"$f":"IF(OR('Blank - Request Form'!H372=\"0\",'Blank - Request Form'!H372=\"000\",'Blank - Request Form'!H372=0),\"\",'Blank - Request Form'!H372)","v":""},{"$f":"IF(OR('Blank - Request Form'!I372=\"0\",'Blank - Request Form'!I372=\"00000\",'Blank - Request Form'!I372=0),\"\",'Blank - Request Form'!I372)","v":""},{"$f":"IF(OR('Blank - Request Form'!J372=\"0\",'Blank - Request Form'!J372=\"00000\",'Blank - Request Form'!J372=0),\"\",'Blank - Request Form'!J372)","v":""},{"$f":"IF(OR('Blank - Request Form'!K372=\"0\",'Blank - Request Form'!K372=\"00000\",'Blank - Request Form'!K372=0),\"\",'Blank - Request Form'!K372)","v":""},null,{"$f":"IF('Blank - Request Form'!N372=0,\"\",'Blank - Request Form'!N372)","v":""},null,null,null,{"$f":"IF(M134<>\"\",'Blank - Request Form'!$M$2,\"\")","v":""},{"$f":"IF('Blank - Request Form'!L372=0,\"\",'Blank - Request Form'!L372)","v":""},"",134]
[{"$f":"IF('Blank - Request Form'!E373=0,\"\",'Blank - Request Form'!E373)","v":""},{"$f":"IF('Blank - Request Form'!G373=0,\"\",'Blank - Request Form'!G373)","v":""},{"$f":"IF(OR('Blank - Request Form'!H373=\"0\",'Blank - Request Form'!H373=\"000\",'Blank - Request Form'!H373=0),\"\",'Blank - Request Form'!H373)","v":""},{"$f":"IF(OR('Blank - Request Form'!I373=\"0\",'Blank - Request Form'!I373=\"00000\",'Blank - Request Form'!I373=0),\"\",'Blank - Request Form'!I373)","v":""},{"$f":"IF(OR('Blank - Request Form'!J373=\"0\",'Blank - Request Form'!J373=\"00000\",'Blank - Request Form'!J373=0),\"\",'Blank - Request Form'!J373)","v":""},{"$f":"IF(OR('Blank - Request Form'!K373=\"0\",'Blank - Request Form'!K373=\"00000\",'Blank - Request Form'!K373=0),\"\",'Blank - Request Form'!K373)","v":""},null,{"$f":"IF('Blank - Request Form'!N373=0,\"\",'Blank - Request Form'!N373)","v":""},null,null,null,{"$f":"IF(M135<>\"\",'Blank - Request Form'!$M$2,\"\")","v":""},{"$f":"IF('Blank - Request Form'!L373=0,\"\",'Blank - Request Form'!L373)","v":""},"",135]
[{"$f":"IF('Blank - Request Form'!E374=0,\"\",'Blank - Request Form'!E374)","v":""},{"$f":"IF('Blank - Request Form'!G374=0,\"\",'Blank - Request Form'!G374)","v":""},{"$f":"IF(OR('Blank - Request Form'!H374=\"0\",'Blank - Request Form'!H374=\"000\",'Blank - Request Form'!H374=0),\"\",'Blank - Request Form'!H374)","v":""},{"$f":"IF(OR('Blank - Request Form'!I374=\"0\",'Blank - Request Form'!I374=\"00000\",'Blank - Request Form'!I374=0),\"\",'Blank - Request Form'!I374)","v":""},{"$f":"IF(OR('Blank - Request Form'!J374=\"0\",'Blank - Request Form'!J374=\"00000\",'Blank - Request Form'!J374=0),\"\",'Blank - Request Form'!J374)","v":""},{"$f":"IF(OR('Blank - Request Form'!K374=\"0\",'Blank - Request Form'!K374=\"00000\",'Blank - Request Form'!K374=0),\"\",'Blank - Request Form'!K374)","v":""},null,{"$f":"IF('Blank - Request Form'!N374=0,\"\",'Blank - Request Form'!N374)","v":""},null,null,null,{"$f":"IF(M136<>\"\",'Blank - Request Form'!$M$2,\"\")","v":""},{"$f":"IF('Blank - Request Form'!L374=0,\"\",'Blank - Request Form'!L374)","v":""},"",136]
[{"$f":"IF('Blank - Request Form'!E375=0,\"\",'Blank - Request Form'!E375)","v":""},{"$f":"IF('Blank - Request Form'!G375=0,\"\",'Blank - Request Form'!G375)","v":""},{"$f":"IF(OR('Blank - Request Form'!H375=\"0\",'Blank - Request Form'!H375=\"000\",'Blank - Request Form'!H375=0),\"\",'Blank - Request Form'!H375)","v":""},{"$f":"IF(OR('Blank - Request Form'!I375=\"0\",'Blank - Request Form'!I375=\"00000\",'Blank - Request Form'!I375=0),\"\",'Blank - Request Form'!I375)","v":""},{"$f":"IF(OR('Blank - Request Form'!J375=\"0\",'Blank - Request Form'!J375=\"00000\",'Blank - Request Form'!J375=0),\"\",'Blank - Request Form'!J375)","v":""},{"$f":"IF(OR('Blank - Request Form'!K375=\"0\",'Blank - Request Form'!K375=\"00000\",'Blank - Request Form'!K375=0),\"\",'Blank - Request Form'!K375)","v":""},null,{"$f":"IF('Blank - Request Form'!N375=0,\"\",'Blank - Request Form'!N375)","v":""},null,null,null,{"$f":"IF(M137<>\"\",'Blank - Request Form'!$M$2,\"\")","v":""},{"$f":"IF('Blank - Request Form'!L375=0,\"\",'Blank - Request Form'!L375)","v":""},"",137]
[{"$f":"IF('Blank - Request Form'!E376=0,\"\",'Blank - Request Form'!E376)","v":""},{"$f":"IF('Blank - Request Form'!G376=0,\"\",'Blank - Request Form'!G376)","v":""},{"$f":"IF(OR('Blank - Request Form'!H376=\"0\",'Blank - Request Form'!H376=\"000\",'Blank - Request Form'!H376=0),\"\",'Blank - Request Form'!H376)","v":""},{"$f":"IF(OR('Blank - Request Form'!I376=\"0\",'Blank - Request Form'!I376=\"00000\",'Blank - Request Form'!I376=0),\"\",'Blank - Request Form'!I376)","v":""},{"$f":"IF(OR('Blank - Request Form'!J376=\"0\",'Blank - Request Form'!J376=\"00000\",'Blank - Request Form'!J376=0),\"\",'Blank - Request Form'!J376)","v":""},{"$f":"IF(OR('Blank - Request Form'!K376=\"0\",'Blank - Request Form'!K376=\"00000\",'Blank - Request Form'!K376=0),\"\",'Blank - Request Form'!K376)","v":""},null,{"$f":"IF('Blank - Request Form'!N376=0,\"\",'Blank - Request Form'!N376)","v":""},null,null,null,{"$f":"IF(M138<>\"\",'Blank - Request Form'!$M$2,\"\")","v":""},{"$f":"IF('Blank - Request Form'!L376=0,\"\",'Blank - Request Form'!L376)","v":""},"",138]
[{"$f":"IF('Blank - Request Form'!E377=0,\"\",'Blank - Request Form'!E377)","v":""},{"$f":"IF('Blank - Request Form'!G377=0,\"\",'Blank - Request Form'!G377)","v":""},{"$f":"IF(OR('Blank - Request Form'!H377=\"0\",'Blank - Request Form'!H377=\"000\",'Blank - Request Form'!H377=0),\"\",'Blank - Request Form'!H377)","v":""},{"$f":"IF(OR('Blank - Request Form'!I377=\"0\",'Blank - Request Form'!I377=\"00000\",'Blank - Request Form'!I377=0),\"\",'Blank - Request Form'!I377)","v":""},{"$f":"IF(OR('Blank - Request Form'!J377=\"0\",'Blank - Request Form'!J377=\"00000\",'Blank - Request Form'!J377=0),\"\",'Blank - Request Form'!J377)","v":""},{"$f":"IF(OR('Blank - Request Form'!K377=\"0\",'Blank - Request Form'!K377=\"00000\",'Blank - Request Form'!K377=0),\"\",'Blank - Request Form'!K377)","v":""},null,{"$f":"IF('Blank - Request Form'!N377=0,\"\",'Blank - Request Form'!N377)","v":""},null,null,null,{"$f":"IF(M139<>\"\",'Blank - Request Form'!$M$2,\"\")","v":""},{"$f":"IF('Blank - Request Form'!L377=0,\"\",'Blank - Request Form'!L377)","v":""},"",139]
[{"$f":"IF('Blank - Request Form'!E378=0,\"\",'Blank - Request Form'!E378)","v":""},{"$f":"IF('Blank - Request Form'!G378=0,\"\",'Blank - Request Form'!G378)","v":""},{"$f":"IF(OR('Blank - Request Form'!H378=\"0\",'Blank - Request Form'!H378=\"000\",'Blank - Request Form'!H378=0),\"\",'Blank - Request Form'!H378)","v":""},{"$f":"IF(OR('Blank - Request Form'!I378=\"0\",'Blank - Request Form'!I378=\"00000\",'Blank - Request Form'!I378=0),\"\",'Blank - Request Form'!I378)","v":""},{"$f":"IF(OR('Blank - Request Form'!J378=\"0\",'Blank - Request Form'!J378=\"00000\",'Blank - Request Form'!J378=0),\"\",'Blank - Request Form'!J378)","v":""},{"$f":"IF(OR('Blank - Request Form'!K378=\"0\",'Blank - Request Form'!K378=\"00000\",'Blank - Request Form'!K378=0),\"\",'Blank - Request Form'!K378)","v":""},null,{"$f":"IF('Blank - Request Form'!N378=0,\"\",'Blank - Request Form'!N378)","v":""},null,null,null,{"$f":"IF(M140<>\"\",'Blank - Request Form'!$M$2,\"\")","v":""},{"$f":"IF('Blank - Request Form'!L378=0,\"\",'Blank - Request Form'!L378)","v":""},"",140]
[{"$f":"IF('Blank - Request Form'!E379=0,\"\",'Blank - Request Form'!E379)","v":""},{"$f":"IF('Blank - Request Form'!G379=0,\"\",'Blank - Request Form'!G379)","v":""},{"$f":"IF(OR('Blank - Request Form'!H379=\"0\",'Blank - Request Form'!H379=\"000\",'Blank - Request Form'!H379=0),\"\",'Blank - Request Form'!H379)","v":""},{"$f":"IF(OR('Blank - Request Form'!I379=\"0\",'Blank - Request Form'!I379=\"00000\",'Blank - Request Form'!I379=0),\"\",'Blank - Request Form'!I379)","v":""},{"$f":"IF(OR('Blank - Request Form'!J379=\"0\",'Blank - Request Form'!J379=\"00000\",'Blank - Request Form'!J379=0),\"\",'Blank - Request Form'!J379)","v":""},{"$f":"IF(OR('Blank - Request Form'!K379=\"0\",'Blank - Request Form'!K379=\"00000\",'Blank - Request Form'!K379=0),\"\",'Blank - Request Form'!K379)","v":""},null,{"$f":"IF('Blank - Request Form'!N379=0,\"\",'Blank - Request Form'!N379)","v":""},null,null,null,{"$f":"IF(M141<>\"\",'Blank - Request Form'!$M$2,\"\")","v":""},{"$f":"IF('Blank - Request Form'!L379=0,\"\",'Blank - Request Form'!L379)","v":""},"",141]
[{"$f":"IF('Blank - Request Form'!E380=0,\"\",'Blank - Request Form'!E380)","v":""},{"$f":"IF('Blank - Request Form'!G380=0,\"\",'Blank - Request Form'!G380)","v":""},{"$f":"IF(OR('Blank - Request Form'!H380=\"0\",'Blank - Request Form'!H380=\"000\",'Blank - Request Form'!H380=0),\"\",'Blank - Request Form'!H380)","v":""},{"$f":"IF(OR('Blank - Request Form'!I380=\"0\",'Blank - Request Form'!I380=\"00000\",'Blank - Request Form'!I380=0),\"\",'Blank - Request Form'!I380)","v":""},{"$f":"IF(OR('Blank - Request Form'!J380=\"0\",'Blank - Request Form'!J380=\"00000\",'Blank - Request Form'!J380=0),\"\",'Blank - Request Form'!J380)","v":""},{"$f":"IF(OR('Blank - Request Form'!K380=\"0\",'Blank - Request Form'!K380=\"00000\",'Blank - Request Form'!K380=0),\"\",'Blank - Request Form'!K380)","v":""},null,{"$f":"IF('Blank - Request Form'!N380=0,\"\",'Blank - Request Form'!N380)","v":""},null,null,null,{"$f":"IF(M142<>\"\",'Blank - Request Form'!$M$2,\"\")","v":""},{"$f":"IF('Blank - Request Form'!L380=0,\"\",'Blank - Request Form'!L380)","v":""},"",142]
[{"$f":"IF('Blank - Request Form'!E381=0,\"\",'Blank - Request Form'!E381)","v":""},{"$f":"IF('Blank - Request Form'!G381=0,\"\",'Blank - Request Form'!G381)","v":""},{"$f":"IF(OR('Blank - Request Form'!H381=\"0\",'Blank - Request Form'!H381=\"000\",'Blank - Request Form'!H381=0),\"\",'Blank - Request Form'!H381)","v":""},{"$f":"IF(OR('Blank - Request Form'!I381=\"0\",'Blank - Request Form'!I381=\"00000\",'Blank - Request Form'!I381=0),\"\",'Blank - Request Form'!I381)","v":""},{"$f":"IF(OR('Blank - Request Form'!J381=\"0\",'Blank - Request Form'!J381=\"00000\",'Blank - Request Form'!J381=0),\"\",'Blank - Request Form'!J381)","v":""},{"$f":"IF(OR('Blank - Request Form'!K381=\"0\",'Blank - Request Form'!K381=\"00000\",'Blank - Request Form'!K381=0),\"\",'Blank - Request Form'!K381)","v":""},null,{"$f":"IF('Blank - Request Form'!N381=0,\"\",'Blank - Request Form'!N381)","v":""},null,null,null,{"$f":"IF(M143<>\"\",'Blank - Request Form'!$M$2,\"\")","v":""},{"$f":"IF('Blank - Request Form'!L381=0,\"\",'Blank - Request Form'!L381)","v":""},"",143]
[{"$f":"IF('Blank - Request Form'!E382=0,\"\",'Blank - Request Form'!E382)","v":""},{"$f":"IF('Blank - Request Form'!G382=0,\"\",'Blank - Request Form'!G382)","v":""},{"$f":"IF(OR('Blank - Request Form'!H382=\"0\",'Blank - Request Form'!H382=\"000\",'Blank - Request Form'!H382=0),\"\",'Blank - Request Form'!H382)","v":""},{"$f":"IF(OR('Blank - Request Form'!I382=\"0\",'Blank - Request Form'!I382=\"00000\",'Blank - Request Form'!I382=0),\"\",'Blank - Request Form'!I382)","v":""},{"$f":"IF(OR('Blank - Request Form'!J382=\"0\",'Blank - Request Form'!J382=\"00000\",'Blank - Request Form'!J382=0),\"\",'Blank - Request Form'!J382)","v":""},{"$f":"IF(OR('Blank - Request Form'!K382=\"0\",'Blank - Request Form'!K382=\"00000\",'Blank - Request Form'!K382=0),\"\",'Blank - Request Form'!K382)","v":""},null,{"$f":"IF('Blank - Request Form'!N382=0,\"\",'Blank - Request Form'!N382)","v":""},null,null,null,{"$f":"IF(M144<>\"\",'Blank - Request Form'!$M$2,\"\")","v":""},{"$f":"IF('Blank - Request Form'!L382=0,\"\",'Blank - Request Form'!L382)","v":""},"",144]
[{"$f":"IF('Blank - Request Form'!E383=0,\"\",'Blank - Request Form'!E383)","v":""},{"$f":"IF('Blank - Request Form'!G383=0,\"\",'Blank - Request Form'!G383)","v":""},{"$f":"IF(OR('Blank - Request Form'!H383=\"0\",'Blank - Request Form'!H383=\"000\",'Blank - Request Form'!H383=0),\"\",'Blank - Request Form'!H383)","v":""},{"$f":"IF(OR('Blank - Request Form'!I383=\"0\",'Blank - Request Form'!I383=\"00000\",'Blank - Request Form'!I383=0),\"\",'Blank - Request Form'!I383)","v":""},{"$f":"IF(OR('Blank - Request Form'!J383=\"0\",'Blank - Request Form'!J383=\"00000\",'Blank - Request Form'!J383=0),\"\",'Blank - Request Form'!J383)","v":""},{"$f":"IF(OR('Blank - Request Form'!K383=\"0\",'Blank - Request Form'!K383=\"00000\",'Blank - Request Form'!K383=0),\"\",'Blank - Request Form'!K383)","v":""},null,{"$f":"IF('Blank - Request Form'!N383=0,\"\",'Blank - Request Form'!N383)","v":""},null,null,null,{"$f":"IF(M145<>\"\",'Blank - Request Form'!$M$2,\"\")","v":""},{"$f":"IF('Blank - Request Form'!L383=0,\"\",'Blank - Request Form'!L383)","v":""},"",145]
[{"$f":"IF('Blank - Request Form'!E384=0,\"\",'Blank - Request Form'!E384)","v":""},{"$f":"IF('Blank - Request Form'!G384=0,\"\",'Blank - Request Form'!G384)","v":""},{"$f":"IF(OR('Blank - Request Form'!H384=\"0\",'Blank - Request Form'!H384=\"000\",'Blank - Request Form'!H384=0),\"\",'Blank - Request Form'!H384)","v":""},{"$f":"IF(OR('Blank - Request Form'!I384=\"0\",'Blank - Request Form'!I384=\"00000\",'Blank - Request Form'!I384=0),\"\",'Blank - Request Form'!I384)","v":""},{"$f":"IF(OR('Blank - Request Form'!J384=\"0\",'Blank - Request Form'!J384=\"00000\",'Blank - Request Form'!J384=0),\"\",'Blank - Request Form'!J384)","v":""},{"$f":"IF(OR('Blank - Request Form'!K384=\"0\",'Blank - Request Form'!K384=\"00000\",'Blank - Request Form'!K384=0),\"\",'Blank - Request Form'!K384)","v":""},null,{"$f":"IF('Blank - Request Form'!N384=0,\"\",'Blank - Request Form'!N384)","v":""},null,null,null,{"$f":"IF(M146<>\"\",'Blank - Request Form'!$M$2,\"\")","v":""},{"$f":"IF('Blank - Request Form'!L384=0,\"\",'Blank - Request Form'!L384)","v":""},"",146]
[{"$f":"IF('Blank - Request Form'!E385=0,\"\",'Blank - Request Form'!E385)","v":""},{"$f":"IF('Blank - Request Form'!G385=0,\"\",'Blank - Request Form'!G385)","v":""},{"$f":"IF(OR('Blank - Request Form'!H385=\"0\",'Blank - Request Form'!H385=\"000\",'Blank - Request Form'!H385=0),\"\",'Blank - Request Form'!H385)","v":""},{"$f":"IF(OR('Blank - Request Form'!I385=\"0\",'Blank - Request Form'!I385=\"00000\",'Blank - Request Form'!I385=0),\"\",'Blank - Request Form'!I385)","v":""},{"$f":"IF(OR('Blank - Request Form'!J385=\"0\",'Blank - Request Form'!J385=\"00000\",'Blank - Request Form'!J385=0),\"\",'Blank - Request Form'!J385)","v":""},{"$f":"IF(OR('Blank - Request Form'!K385=\"0\",'Blank - Request Form'!K385=\"00000\",'Blank - Request Form'!K385=0),\"\",'Blank - Request Form'!K385)","v":""},null,{"$f":"IF('Blank - Request Form'!N385=0,\"\",'Blank - Request Form'!N385)","v":""},null,null,null,{"$f":"IF(M147<>\"\",'Blank - Request Form'!$M$2,\"\")","v":""},{"$f":"IF('Blank - Request Form'!L385=0,\"\",'Blank - Request Form'!L385)","v":""},"",147]
[{"$f":"IF('Blank - Request Form'!E386=0,\"\",'Blank - Request Form'!E386)","v":""},{"$f":"IF('Blank - Request Form'!G386=0,\"\",'Blank - Request Form'!G386)","v":""},{"$f":"IF(OR('Blank - Request Form'!H386=\"0\",'Blank - Request Form'!H386=\"000\",'Blank - Request Form'!H386=0),\"\",'Blank - Request Form'!H386)","v":""},{"$f":"IF(OR('Blank - Request Form'!I386=\"0\",'Blank - Request Form'!I386=\"00000\",'Blank - Request Form'!I386=0),\"\",'Blank - Request Form'!I386)","v":""},{"$f":"IF(OR('Blank - Request Form'!J386=\"0\",'Blank - Request Form'!J386=\"00000\",'Blank - Request Form'!J386=0),\"\",'Blank - Request Form'!J386)","v":""},{"$f":"IF(OR('Blank - Request Form'!K386=\"0\",'Blank - Request Form'!K386=\"00000\",'Blank - Request Form'!K386=0),\"\",'Blank - Request Form'!K386)","v":""},null,{"$f":"IF('Blank - Request Form'!N386=0,\"\",'Blank - Request Form'!N386)","v":""},null,null,null,{"$f":"IF(M148<>\"\",'Blank - Request Form'!$M$2,\"\")","v":""},{"$f":"IF('Blank - Request Form'!L386=0,\"\",'Blank - Request Form'!L386)","v":""},"",148]
[{"$f":"IF('Blank - Request Form'!E387=0,\"\",'Blank - Request Form'!E387)","v":""},{"$f":"IF('Blank - Request Form'!G387=0,\"\",'Blank - Request Form'!G387)","v":""},{"$f":"IF(OR('Blank - Request Form'!H387=\"0\",'Blank - Request Form'!H387=\"000\",'Blank - Request Form'!H387=0),\"\",'Blank - Request Form'!H387)","v":""},{"$f":"IF(OR('Blank - Request Form'!I387=\"0\",'Blank - Request Form'!I387=\"00000\",'Blank - Request Form'!I387=0),\"\",'Blank - Request Form'!I387)","v":""},{"$f":"IF(OR('Blank - Request Form'!J387=\"0\",'Blank - Request Form'!J387=\"00000\",'Blank - Request Form'!J387=0),\"\",'Blank - Request Form'!J387)","v":""},{"$f":"IF(OR('Blank - Request Form'!K387=\"0\",'Blank - Request Form'!K387=\"00000\",'Blank - Request Form'!K387=0),\"\",'Blank - Request Form'!K387)","v":""},null,{"$f":"IF('Blank - Request Form'!N387=0,\"\",'Blank - Request Form'!N387)","v":""},null,null,null,{"$f":"IF(M149<>\"\",'Blank - Request Form'!$M$2,\"\")","v":""},{"$f":"IF('Blank - Request Form'!L387=0,\"\",'Blank - Request Form'!L387)","v":""},"",149]
[{"$f":"IF('Blank - Request Form'!E388=0,\"\",'Blank - Request Form'!E388)","v":""},{"$f":"IF('Blank - Request Form'!G388=0,\"\",'Blank - Request Form'!G388)","v":""},{"$f":"IF(OR('Blank - Request Form'!H388=\"0\",'Blank - Request Form'!H388=\"000\",'Blank - Request Form'!H388=0),\"\",'Blank - Request Form'!H388)","v":""},{"$f":"IF(OR('Blank - Request Form'!I388=\"0\",'Blank - Request Form'!I388=\"00000\",'Blank - Request Form'!I388=0),\"\",'Blank - Request Form'!I388)","v":""},{"$f":"IF(OR('Blank - Request Form'!J388=\"0\",'Blank - Request Form'!J388=\"00000\",'Blank - Request Form'!J388=0),\"\",'Blank - Request Form'!J388)","v":""},{"$f":"IF(OR('Blank - Request Form'!K388=\"0\",'Blank - Request Form'!K388=\"00000\",'Blank - Request Form'!K388=0),\"\",'Blank - Request Form'!K388)","v":""},null,{"$f":"IF('Blank - Request Form'!N388=0,\"\",'Blank - Request Form'!N388)","v":""},null,null,null,{"$f":"IF(M150<>\"\",'Blank - Request Form'!$M$2,\"\")","v":""},{"$f":"IF('Blank - Request Form'!L388=0,\"\",'Blank - Request Form'!L388)","v":""},"",150]
[{"$f":"IF('Blank - Request Form'!E389=0,\"\",'Blank - Request Form'!E389)","v":""},{"$f":"IF('Blank - Request Form'!G389=0,\"\",'Blank - Request Form'!G389)","v":""},{"$f":"IF(OR('Blank - Request Form'!H389=\"0\",'Blank - Request Form'!H389=\"000\",'Blank - Request Form'!H389=0),\"\",'Blank - Request Form'!H389)","v":""},{"$f":"IF(OR('Blank - Request Form'!I389=\"0\",'Blank - Request Form'!I389=\"00000\",'Blank - Request Form'!I389=0),\"\",'Blank - Request Form'!I389)","v":""},{"$f":"IF(OR('Blank - Request Form'!J389=\"0\",'Blank - Request Form'!J389=\"00000\",'Blank - Request Form'!J389=0),\"\",'Blank - Request Form'!J389)","v":""},{"$f":"IF(OR('Blank - Request Form'!K389=\"0\",'Blank - Request Form'!K389=\"00000\",'Blank - Request Form'!K389=0),\"\",'Blank - Request Form'!K389)","v":""},null,{"$f":"IF('Blank - Request Form'!N389=0,\"\",'Blank - Request Form'!N389)","v":""},null,null,null,{"$f":"IF(M151<>\"\",'Blank - Request Form'!$M$2,\"\")","v":""},{"$f":"IF('Blank - Request Form'!L389=0,\"\",'Blank - Request Form'!L389)","v":""},"",151]
[{"$f":"IF('Blank - Request Form'!E390=0,\"\",'Blank - Request Form'!E390)","v":""},{"$f":"IF('Blank - Request Form'!G390=0,\"\",'Blank - Request Form'!G390)","v":""},{"$f":"IF(OR('Blank - Request Form'!H390=\"0\",'Blank - Request Form'!H390=\"000\",'Blank - Request Form'!H390=0),\"\",'Blank - Request Form'!H390)","v":""},{"$f":"IF(OR('Blank - Request Form'!I390=\"0\",'Blank - Request Form'!I390=\"00000\",'Blank - Request Form'!I390=0),\"\",'Blank - Request Form'!I390)","v":""},{"$f":"IF(OR('Blank - Request Form'!J390=\"0\",'Blank - Request Form'!J390=\"00000\",'Blank - Request Form'!J390=0),\"\",'Blank - Request Form'!J390)","v":""},{"$f":"IF(OR('Blank - Request Form'!K390=\"0\",'Blank - Request Form'!K390=\"00000\",'Blank - Request Form'!K390=0),\"\",'Blank - Request Form'!K390)","v":""},null,{"$f":"IF('Blank - Request Form'!N390=0,\"\",'Blank - Request Form'!N390)","v":""},null,null,null,{"$f":"IF(M152<>\"\",'Blank - Request Form'!$M$2,\"\")","v":""},{"$f":"IF('Blank - Request Form'!L390=0,\"\",'Blank - Request Form'!L390)","v":""},"",152]
[{"$f":"IF('Blank - Request Form'!E391=0,\"\",'Blank - Request Form'!E391)","v":""},{"$f":"IF('Blank - Request Form'!G391=0,\"\",'Blank - Request Form'!G391)","v":""},{"$f":"IF(OR('Blank - Request Form'!H391=\"0\",'Blank - Request Form'!H391=\"000\",'Blank - Request Form'!H391=0),\"\",'Blank - Request Form'!H391)","v":""},{"$f":"IF(OR('Blank - Request Form'!I391=\"0\",'Blank - Request Form'!I391=\"00000\",'Blank - Request Form'!I391=0),\"\",'Blank - Request Form'!I391)","v":""},{"$f":"IF(OR('Blank - Request Form'!J391=\"0\",'Blank - Request Form'!J391=\"00000\",'Blank - Request Form'!J391=0),\"\",'Blank - Request Form'!J391)","v":""},{"$f":"IF(OR('Blank - Request Form'!K391=\"0\",'Blank - Request Form'!K391=\"00000\",'Blank - Request Form'!K391=0),\"\",'Blank - Request Form'!K391)","v":""},null,{"$f":"IF('Blank - Request Form'!N391=0,\"\",'Blank - Request Form'!N391)","v":""},null,null,null,{"$f":"IF(M153<>\"\",'Blank - Request Form'!$M$2,\"\")","v":""},{"$f":"IF('Blank - Request Form'!L391=0,\"\",'Blank - Request Form'!L391)","v":""},"",153]
[{"$f":"IF('Blank - Request Form'!E392=0,\"\",'Blank - Request Form'!E392)","v":""},{"$f":"IF('Blank - Request Form'!G392=0,\"\",'Blank - Request Form'!G392)","v":""},{"$f":"IF(OR('Blank - Request Form'!H392=\"0\",'Blank - Request Form'!H392=\"000\",'Blank - Request Form'!H392=0),\"\",'Blank - Request Form'!H392)","v":""},{"$f":"IF(OR('Blank - Request Form'!I392=\"0\",'Blank - Request Form'!I392=\"00000\",'Blank - Request Form'!I392=0),\"\",'Blank - Request Form'!I392)","v":""},{"$f":"IF(OR('Blank - Request Form'!J392=\"0\",'Blank - Request Form'!J392=\"00000\",'Blank - Request Form'!J392=0),\"\",'Blank - Request Form'!J392)","v":""},{"$f":"IF(OR('Blank - Request Form'!K392=\"0\",'Blank - Request Form'!K392=\"00000\",'Blank - Request Form'!K392=0),\"\",'Blank - Request Form'!K392)","v":""},null,{"$f":"IF('Blank - Request Form'!N392=0,\"\",'Blank - Request Form'!N392)","v":""},null,null,null,{"$f":"IF(M154<>\"\",'Blank - Request Form'!$M$2,\"\")","v":""},{"$f":"IF('Blank - Request Form'!L392=0,\"\",'Blank - Request Form'!L392)","v":""},"",154]
[{"$f":"IF('Blank - Request Form'!E393=0,\"\",'Blank - Request Form'!E393)","v":""},{"$f":"IF('Blank - Request Form'!G393=0,\"\",'Blank - Request Form'!G393)","v":""},{"$f":"IF(OR('Blank - Request Form'!H393=\"0\",'Blank - Request Form'!H393=\"000\",'Blank - Request Form'!H393=0),\"\",'Blank - Request Form'!H393)","v":""},{"$f":"IF(OR('Blank - Request Form'!I393=\"0\",'Blank - Request Form'!I393=\"00000\",'Blank - Request Form'!I393=0),\"\",'Blank - Request Form'!I393)","v":""},{"$f":"IF(OR('Blank - Request Form'!J393=\"0\",'Blank - Request Form'!J393=\"00000\",'Blank - Request Form'!J393=0),\"\",'Blank - Request Form'!J393)","v":""},{"$f":"IF(OR('Blank - Request Form'!K393=\"0\",'Blank - Request Form'!K393=\"00000\",'Blank - Request Form'!K393=0),\"\",'Blank - Request Form'!K393)","v":""},null,{"$f":"IF('Blank - Request Form'!N393=0,\"\",'Blank - Request Form'!N393)","v":""},null,null,null,{"$f":"IF(M155<>\"\",'Blank - Request Form'!$M$2,\"\")","v":""},{"$f":"IF('Blank - Request Form'!L393=0,\"\",'Blank - Request Form'!L393)","v":""},"",155]
[{"$f":"IF('Blank - Request Form'!E394=0,\"\",'Blank - Request Form'!E394)","v":""},{"$f":"IF('Blank - Request Form'!G394=0,\"\",'Blank - Request Form'!G394)","v":""},{"$f":"IF(OR('Blank - Request Form'!H394=\"0\",'Blank - Request Form'!H394=\"000\",'Blank - Request Form'!H394=0),\"\",'Blank - Request Form'!H394)","v":""},{"$f":"IF(OR('Blank - Request Form'!I394=\"0\",'Blank - Request Form'!I394=\"00000\",'Blank - Request Form'!I394=0),\"\",'Blank - Request Form'!I394)","v":""},{"$f":"IF(OR('Blank - Request Form'!J394=\"0\",'Blank - Request Form'!J394=\"00000\",'Blank - Request Form'!J394=0),\"\",'Blank - Request Form'!J394)","v":""},{"$f":"IF(OR('Blank - Request Form'!K394=\"0\",'Blank - Request Form'!K394=\"00000\",'Blank - Request Form'!K394=0),\"\",'Blank - Request Form'!K394)","v":""},null,{"$f":"IF('Blank - Request Form'!N394=0,\"\",'Blank - Request Form'!N394)","v":""},null,null,null,{"$f":"IF(M156<>\"\",'Blank - Request Form'!$M$2,\"\")","v":""},{"$f":"IF('Blank - Request Form'!L394=0,\"\",'Blank - Request Form'!L394)","v":""},"",156]
[{"$f":"IF('Blank - Request Form'!E395=0,\"\",'Blank - Request Form'!E395)","v":""},{"$f":"IF('Blank - Request Form'!G395=0,\"\",'Blank - Request Form'!G395)","v":""},{"$f":"IF(OR('Blank - Request Form'!H395=\"0\",'Blank - Request Form'!H395=\"000\",'Blank - Request Form'!H395=0),\"\",'Blank - Request Form'!H395)","v":""},{"$f":"IF(OR('Blank - Request Form'!I395=\"0\",'Blank - Request Form'!I395=\"00000\",'Blank - Request Form'!I395=0),\"\",'Blank - Request Form'!I395)","v":""},{"$f":"IF(OR('Blank - Request Form'!J395=\"0\",'Blank - Request Form'!J395=\"00000\",'Blank - Request Form'!J395=0),\"\",'Blank - Request Form'!J395)","v":""},{"$f":"IF(OR('Blank - Request Form'!K395=\"0\",'Blank - Request Form'!K395=\"00000\",'Blank - Request Form'!K395=0),\"\",'Blank - Request Form'!K395)","v":""},null,{"$f":"IF('Blank - Request Form'!N395=0,\"\",'Blank - Request Form'!N395)","v":""},null,null,null,{"$f":"IF(M157<>\"\",'Blank - Request Form'!$M$2,\"\")","v":""},{"$f":"IF('Blank - Request Form'!L395=0,\"\",'Blank - Request Form'!L395)","v":""},"",157]
[{"$f":"IF('Blank - Request Form'!E396=0,\"\",'Blank - Request Form'!E396)","v":""},{"$f":"IF('Blank - Request Form'!G396=0,\"\",'Blank - Request Form'!G396)","v":""},{"$f":"IF(OR('Blank - Request Form'!H396=\"0\",'Blank - Request Form'!H396=\"000\",'Blank - Request Form'!H396=0),\"\",'Blank - Request Form'!H396)","v":""},{"$f":"IF(OR('Blank - Request Form'!I396=\"0\",'Blank - Request Form'!I396=\"00000\",'Blank - Request Form'!I396=0),\"\",'Blank - Request Form'!I396)","v":""},{"$f":"IF(OR('Blank - Request Form'!J396=\"0\",'Blank - Request Form'!J396=\"00000\",'Blank - Request Form'!J396=0),\"\",'Blank - Request Form'!J396)","v":""},{"$f":"IF(OR('Blank - Request Form'!K396=\"0\",'Blank - Request Form'!K396=\"00000\",'Blank - Request Form'!K396=0),\"\",'Blank - Request Form'!K396)","v":""},null,{"$f":"IF('Blank - Request Form'!N396=0,\"\",'Blank - Request Form'!N396)","v":""},null,null,null,{"$f":"IF(M158<>\"\",'Blank - Request Form'!$M$2,\"\")","v":""},{"$f":"IF('Blank - Request Form'!L396=0,\"\",'Blank - Request Form'!L396)","v":""},"",158]
[{"$f":"IF('Blank - Request Form'!E397=0,\"\",'Blank - Request Form'!E397)","v":""},{"$f":"IF('Blank - Request Form'!G397=0,\"\",'Blank - Request Form'!G397)","v":""},{"$f":"IF(OR('Blank - Request Form'!H397=\"0\",'Blank - Request Form'!H397=\"000\",'Blank - Request Form'!H397=0),\"\",'Blank - Request Form'!H397)","v":""},{"$f":"IF(OR('Blank - Request Form'!I397=\"0\",'Blank - Request Form'!I397=\"00000\",'Blank - Request Form'!I397=0),\"\",'Blank - Request Form'!I397)","v":""},{"$f":"IF(OR('Blank - Request Form'!J397=\"0\",'Blank - Request Form'!J397=\"00000\",'Blank - Request Form'!J397=0),\"\",'Blank - Request Form'!J397)","v":""},{"$f":"IF(OR('Blank - Request Form'!K397=\"0\",'Blank - Request Form'!K397=\"00000\",'Blank - Request Form'!K397=0),\"\",'Blank - Request Form'!K397)","v":""},null,{"$f":"IF('Blank - Request Form'!N397=0,\"\",'Blank - Request Form'!N397)","v":""},null,null,null,{"$f":"IF(M159<>\"\",'Blank - Request Form'!$M$2,\"\")","v":""},{"$f":"IF('Blank - Request Form'!L397=0,\"\",'Blank - Request Form'!L397)","v":""},"",159]
[{"$f":"IF('Blank - Request Form'!E398=0,\"\",'Blank - Request Form'!E398)","v":""},{"$f":"IF('Blank - Request Form'!G398=0,\"\",'Blank - Request Form'!G398)","v":""},{"$f":"IF(OR('Blank - Request Form'!H398=\"0\",'Blank - Request Form'!H398=\"000\",'Blank - Request Form'!H398=0),\"\",'Blank - Request Form'!H398)","v":""},{"$f":"IF(OR('Blank - Request Form'!I398=\"0\",'Blank - Request Form'!I398=\"00000\",'Blank - Request Form'!I398=0),\"\",'Blank - Request Form'!I398)","v":""},{"$f":"IF(OR('Blank - Request Form'!J398=\"0\",'Blank - Request Form'!J398=\"00000\",'Blank - Request Form'!J398=0),\"\",'Blank - Request Form'!J398)","v":""},{"$f":"IF(OR('Blank - Request Form'!K398=\"0\",'Blank - Request Form'!K398=\"00000\",'Blank - Request Form'!K398=0),\"\",'Blank - Request Form'!K398)","v":""},null,{"$f":"IF('Blank - Request Form'!N398=0,\"\",'Blank - Request Form'!N398)","v":""},null,null,null,{"$f":"IF(M160<>\"\",'Blank - Request Form'!$M$2,\"\")","v":""},{"$f":"IF('Blank - Request Form'!L398=0,\"\",'Blank - Request Form'!L398)","v":""},"",160]
[{"$f":"IF('Blank - Request Form'!E399=0,\"\",'Blank - Request Form'!E399)","v":""},{"$f":"IF('Blank - Request Form'!G399=0,\"\",'Blank - Request Form'!G399)","v":""},{"$f":"IF(OR('Blank - Request Form'!H399=\"0\",'Blank - Request Form'!H399=\"000\",'Blank - Request Form'!H399=0),\"\",'Blank - Request Form'!H399)","v":""},{"$f":"IF(OR('Blank - Request Form'!I399=\"0\",'Blank - Request Form'!I399=\"00000\",'Blank - Request Form'!I399=0),\"\",'Blank - Request Form'!I399)","v":""},{"$f":"IF(OR('Blank - Request Form'!J399=\"0\",'Blank - Request Form'!J399=\"00000\",'Blank - Request Form'!J399=0),\"\",'Blank - Request Form'!J399)","v":""},{"$f":"IF(OR('Blank - Request Form'!K399=\"0\",'Blank - Request Form'!K399=\"00000\",'Blank - Request Form'!K399=0),\"\",'Blank - Request Form'!K399)","v":""},null,{"$f":"IF('Blank - Request Form'!N399=0,\"\",'Blank - Request Form'!N399)","v":""},null,null,null,{"$f":"IF(M161<>\"\",'Blank - Request Form'!$M$2,\"\")","v":""},{"$f":"IF('Blank - Request Form'!L399=0,\"\",'Blank - Request Form'!L399)","v":""},"",161]
[{"$f":"IF('Blank - Request Form'!E400=0,\"\",'Blank - Request Form'!E400)","v":""},{"$f":"IF('Blank - Request Form'!G400=0,\"\",'Blank - Request Form'!G400)","v":""},{"$f":"IF(OR('Blank - Request Form'!H400=\"0\",'Blank - Request Form'!H400=\"000\",'Blank - Request Form'!H400=0),\"\",'Blank - Request Form'!H400)","v":""},{"$f":"IF(OR('Blank - Request Form'!I400=\"0\",'Blank - Request Form'!I400=\"00000\",'Blank - Request Form'!I400=0),\"\",'Blank - Request Form'!I400)","v":""},{"$f":"IF(OR('Blank - Request Form'!J400=\"0\",'Blank - Request Form'!J400=\"00000\",'Blank - Request Form'!J400=0),\"\",'Blank - Request Form'!J400)","v":""},{"$f":"IF(OR('Blank - Request Form'!K400=\"0\",'Blank - Request Form'!K400=\"00000\",'Blank - Request Form'!K400=0),\"\",'Blank - Request Form'!K400)","v":""},null,{"$f":"IF('Blank - Request Form'!N400=0,\"\",'Blank - Request Form'!N400)","v":""},null,null,null,{"$f":"IF(M162<>\"\",'Blank - Request Form'!$M$2,\"\")","v":""},{"$f":"IF('Blank - Request Form'!L400=0,\"\",'Blank - Request Form'!L400)","v":""},"",162]
[{"$f":"IF('Blank - Request Form'!E401=0,\"\",'Blank - Request Form'!E401)","v":""},{"$f":"IF('Blank - Request Form'!G401=0,\"\",'Blank - Request Form'!G401)","v":""},{"$f":"IF(OR('Blank - Request Form'!H401=\"0\",'Blank - Request Form'!H401=\"000\",'Blank - Request Form'!H401=0),\"\",'Blank - Request Form'!H401)","v":""},{"$f":"IF(OR('Blank - Request Form'!I401=\"0\",'Blank - Request Form'!I401=\"00000\",'Blank - Request Form'!I401=0),\"\",'Blank - Request Form'!I401)","v":""},{"$f":"IF(OR('Blank - Request Form'!J401=\"0\",'Blank - Request Form'!J401=\"00000\",'Blank - Request Form'!J401=0),\"\",'Blank - Request Form'!J401)","v":""},{"$f":"IF(OR('Blank - Request Form'!K401=\"0\",'Blank - Request Form'!K401=\"00000\",'Blank - Request Form'!K401=0),\"\",'Blank - Request Form'!K401)","v":""},null,{"$f":"IF('Blank - Request Form'!N401=0,\"\",'Blank - Request Form'!N401)","v":""},null,null,null,{"$f":"IF(M163<>\"\",'Blank - Request Form'!$M$2,\"\")","v":""},{"$f":"IF('Blank - Request Form'!L401=0,\"\",'Blank - Request Form'!L401)","v":""},"",163]
[{"$f":"IF('Blank - Request Form'!E402=0,\"\",'Blank - Request Form'!E402)","v":""},{"$f":"IF('Blank - Request Form'!G402=0,\"\",'Blank - Request Form'!G402)","v":""},{"$f":"IF(OR('Blank - Request Form'!H402=\"0\",'Blank - Request Form'!H402=\"000\",'Blank - Request Form'!H402=0),\"\",'Blank - Request Form'!H402)","v":""},{"$f":"IF(OR('Blank - Request Form'!I402=\"0\",'Blank - Request Form'!I402=\"00000\",'Blank - Request Form'!I402=0),\"\",'Blank - Request Form'!I402)","v":""},{"$f":"IF(OR('Blank - Request Form'!J402=\"0\",'Blank - Request Form'!J402=\"00000\",'Blank - Request Form'!J402=0),\"\",'Blank - Request Form'!J402)","v":""},{"$f":"IF(OR('Blank - Request Form'!K402=\"0\",'Blank - Request Form'!K402=\"00000\",'Blank - Request Form'!K402=0),\"\",'Blank - Request Form'!K402)","v":""},null,{"$f":"IF('Blank - Request Form'!N402=0,\"\",'Blank - Request Form'!N402)","v":""},null,null,null,{"$f":"IF(M164<>\"\",'Blank - Request Form'!$M$2,\"\")","v":""},{"$f":"IF('Blank - Request Form'!L402=0,\"\",'Blank - Request Form'!L402)","v":""},"",164]
[{"$f":"IF('Blank - Request Form'!E403=0,\"\",'Blank - Request Form'!E403)","v":""},{"$f":"IF('Blank - Request Form'!G403=0,\"\",'Blank - Request Form'!G403)","v":""},{"$f":"IF(OR('Blank - Request Form'!H403=\"0\",'Blank - Request Form'!H403=\"000\",'Blank - Request Form'!H403=0),\"\",'Blank - Request Form'!H403)","v":""},{"$f":"IF(OR('Blank - Request Form'!I403=\"0\",'Blank - Request Form'!I403=\"00000\",'Blank - Request Form'!I403=0),\"\",'Blank - Request Form'!I403)","v":""},{"$f":"IF(OR('Blank - Request Form'!J403=\"0\",'Blank - Request Form'!J403=\"00000\",'Blank - Request Form'!J403=0),\"\",'Blank - Request Form'!J403)","v":""},{"$f":"IF(OR('Blank - Request Form'!K403=\"0\",'Blank - Request Form'!K403=\"00000\",'Blank - Request Form'!K403=0),\"\",'Blank - Request Form'!K403)","v":""},null,{"$f":"IF('Blank - Request Form'!N403=0,\"\",'Blank - Request Form'!N403)","v":""},null,null,null,{"$f":"IF(M165<>\"\",'Blank - Request Form'!$M$2,\"\")","v":""},{"$f":"IF('Blank - Request Form'!L403=0,\"\",'Blank - Request Form'!L403)","v":""},"",165]
[{"$f":"IF('Blank - Request Form'!E404=0,\"\",'Blank - Request Form'!E404)","v":""},{"$f":"IF('Blank - Request Form'!G404=0,\"\",'Blank - Request Form'!G404)","v":""},{"$f":"IF(OR('Blank - Request Form'!H404=\"0\",'Blank - Request Form'!H404=\"000\",'Blank - Request Form'!H404=0),\"\",'Blank - Request Form'!H404)","v":""},{"$f":"IF(OR('Blank - Request Form'!I404=\"0\",'Blank - Request Form'!I404=\"00000\",'Blank - Request Form'!I404=0),\"\",'Blank - Request Form'!I404)","v":""},{"$f":"IF(OR('Blank - Request Form'!J404=\"0\",'Blank - Request Form'!J404=\"00000\",'Blank - Request Form'!J404=0),\"\",'Blank - Request Form'!J404)","v":""},{"$f":"IF(OR('Blank - Request Form'!K404=\"0\",'Blank - Request Form'!K404=\"00000\",'Blank - Request Form'!K404=0),\"\",'Blank - Request Form'!K404)","v":""},null,{"$f":"IF('Blank - Request Form'!N404=0,\"\",'Blank - Request Form'!N404)","v":""},null,null,null,{"$f":"IF(M166<>\"\",'Blank - Request Form'!$M$2,\"\")","v":""},{"$f":"IF('Blank - Request Form'!L404=0,\"\",'Blank - Request Form'!L404)","v":""},"",166]
[{"$f":"IF('Blank - Request Form'!E405=0,\"\",'Blank - Request Form'!E405)","v":""},{"$f":"IF('Blank - Request Form'!G405=0,\"\",'Blank - Request Form'!G405)","v":""},{"$f":"IF(OR('Blank - Request Form'!H405=\"0\",'Blank - Request Form'!H405=\"000\",'Blank - Request Form'!H405=0),\"\",'Blank - Request Form'!H405)","v":""},{"$f":"IF(OR('Blank - Request Form'!I405=\"0\",'Blank - Request Form'!I405=\"00000\",'Blank - Request Form'!I405=0),\"\",'Blank - Request Form'!I405)","v":""},{"$f":"IF(OR('Blank - Request Form'!J405=\"0\",'Blank - Request Form'!J405=\"00000\",'Blank - Request Form'!J405=0),\"\",'Blank - Request Form'!J405)","v":""},{"$f":"IF(OR('Blank - Request Form'!K405=\"0\",'Blank - Request Form'!K405=\"00000\",'Blank - Request Form'!K405=0),\"\",'Blank - Request Form'!K405)","v":""},null,{"$f":"IF('Blank - Request Form'!N405=0,\"\",'Blank - Request Form'!N405)","v":""},null,null,null,{"$f":"IF(M167<>\"\",'Blank - Request Form'!$M$2,\"\")","v":""},{"$f":"IF('Blank - Request Form'!L405=0,\"\",'Blank - Request Form'!L405)","v":""},"",167]
[{"$f":"IF('Blank - Request Form'!E406=0,\"\",'Blank - Request Form'!E406)","v":""},{"$f":"IF('Blank - Request Form'!G406=0,\"\",'Blank - Request Form'!G406)","v":""},{"$f":"IF(OR('Blank - Request Form'!H406=\"0\",'Blank - Request Form'!H406=\"000\",'Blank - Request Form'!H406=0),\"\",'Blank - Request Form'!H406)","v":""},{"$f":"IF(OR('Blank - Request Form'!I406=\"0\",'Blank - Request Form'!I406=\"00000\",'Blank - Request Form'!I406=0),\"\",'Blank - Request Form'!I406)","v":""},{"$f":"IF(OR('Blank - Request Form'!J406=\"0\",'Blank - Request Form'!J406=\"00000\",'Blank - Request Form'!J406=0),\"\",'Blank - Request Form'!J406)","v":""},{"$f":"IF(OR('Blank - Request Form'!K406=\"0\",'Blank - Request Form'!K406=\"00000\",'Blank - Request Form'!K406=0),\"\",'Blank - Request Form'!K406)","v":""},null,{"$f":"IF('Blank - Request Form'!N406=0,\"\",'Blank - Request Form'!N406)","v":""},null,null,null,{"$f":"IF(M168<>\"\",'Blank - Request Form'!$M$2,\"\")","v":""},{"$f":"IF('Blank - Request Form'!L406=0,\"\",'Blank - Request Form'!L406)","v":""},"",168]
[{"$f":"IF('Blank - Request Form'!E407=0,\"\",'Blank - Request Form'!E407)","v":""},{"$f":"IF('Blank - Request Form'!G407=0,\"\",'Blank - Request Form'!G407)","v":""},{"$f":"IF(OR('Blank - Request Form'!H407=\"0\",'Blank - Request Form'!H407=\"000\",'Blank - Request Form'!H407=0),\"\",'Blank - Request Form'!H407)","v":""},{"$f":"IF(OR('Blank - Request Form'!I407=\"0\",'Blank - Request Form'!I407=\"00000\",'Blank - Request Form'!I407=0),\"\",'Blank - Request Form'!I407)","v":""},{"$f":"IF(OR('Blank - Request Form'!J407=\"0\",'Blank - Request Form'!J407=\"00000\",'Blank - Request Form'!J407=0),\"\",'Blank - Request Form'!J407)","v":""},{"$f":"IF(OR('Blank - Request Form'!K407=\"0\",'Blank - Request Form'!K407=\"00000\",'Blank - Request Form'!K407=0),\"\",'Blank - Request Form'!K407)","v":""},null,{"$f":"IF('Blank - Request Form'!N407=0,\"\",'Blank - Request Form'!N407)","v":""},null,null,null,{"$f":"IF(M169<>\"\",'Blank - Request Form'!$M$2,\"\")","v":""},{"$f":"IF('Blank - Request Form'!L407=0,\"\",'Blank - Request Form'!L407)","v":""},"",169]
[{"$f":"IF('Blank - Request Form'!E408=0,\"\",'Blank - Request Form'!E408)","v":""},{"$f":"IF('Blank - Request Form'!G408=0,\"\",'Blank - Request Form'!G408)","v":""},{"$f":"IF(OR('Blank - Request Form'!H408=\"0\",'Blank - Request Form'!H408=\"000\",'Blank - Request Form'!H408=0),\"\",'Blank - Request Form'!H408)","v":""},{"$f":"IF(OR('Blank - Request Form'!I408=\"0\",'Blank - Request Form'!I408=\"00000\",'Blank - Request Form'!I408=0),\"\",'Blank - Request Form'!I408)","v":""},{"$f":"IF(OR('Blank - Request Form'!J408=\"0\",'Blank - Request Form'!J408=\"00000\",'Blank - Request Form'!J408=0),\"\",'Blank - Request Form'!J408)","v":""},{"$f":"IF(OR('Blank - Request Form'!K408=\"0\",'Blank - Request Form'!K408=\"00000\",'Blank - Request Form'!K408=0),\"\",'Blank - Request Form'!K408)","v":""},null,{"$f":"IF('Blank - Request Form'!N408=0,\"\",'Blank - Request Form'!N408)","v":""},null,null,null,{"$f":"IF(M170<>\"\",'Blank - Request Form'!$M$2,\"\")","v":""},{"$f":"IF('Blank - Request Form'!L408=0,\"\",'Blank - Request Form'!L408)","v":""},"",170]
[{"$f":"IF('Blank - Request Form'!E409=0,\"\",'Blank - Request Form'!E409)","v":""},{"$f":"IF('Blank - Request Form'!G409=0,\"\",'Blank - Request Form'!G409)","v":""},{"$f":"IF(OR('Blank - Request Form'!H409=\"0\",'Blank - Request Form'!H409=\"000\",'Blank - Request Form'!H409=0),\"\",'Blank - Request Form'!H409)","v":""},{"$f":"IF(OR('Blank - Request Form'!I409=\"0\",'Blank - Request Form'!I409=\"00000\",'Blank - Request Form'!I409=0),\"\",'Blank - Request Form'!I409)","v":""},{"$f":"IF(OR('Blank - Request Form'!J409=\"0\",'Blank - Request Form'!J409=\"00000\",'Blank - Request Form'!J409=0),\"\",'Blank - Request Form'!J409)","v":""},{"$f":"IF(OR('Blank - Request Form'!K409=\"0\",'Blank - Request Form'!K409=\"00000\",'Blank - Request Form'!K409=0),\"\",'Blank - Request Form'!K409)","v":""},null,{"$f":"IF('Blank - Request Form'!N409=0,\"\",'Blank - Request Form'!N409)","v":""},null,null,null,{"$f":"IF(M171<>\"\",'Blank - Request Form'!$M$2,\"\")","v":""},{"$f":"IF('Blank - Request Form'!L409=0,\"\",'Blank - Request Form'!L409)","v":""},"",171]
[{"$f":"IF('Blank - Request Form'!E410=0,\"\",'Blank - Request Form'!E410)","v":""},{"$f":"IF('Blank - Request Form'!G410=0,\"\",'Blank - Request Form'!G410)","v":""},{"$f":"IF(OR('Blank - Request Form'!H410=\"0\",'Blank - Request Form'!H410=\"000\",'Blank - Request Form'!H410=0),\"\",'Blank - Request Form'!H410)","v":""},{"$f":"IF(OR('Blank - Request Form'!I410=\"0\",'Blank - Request Form'!I410=\"00000\",'Blank - Request Form'!I410=0),\"\",'Blank - Request Form'!I410)","v":""},{"$f":"IF(OR('Blank - Request Form'!J410=\"0\",'Blank - Request Form'!J410=\"00000\",'Blank - Request Form'!J410=0),\"\",'Blank - Request Form'!J410)","v":""},{"$f":"IF(OR('Blank - Request Form'!K410=\"0\",'Blank - Request Form'!K410=\"00000\",'Blank - Request Form'!K410=0),\"\",'Blank - Request Form'!K410)","v":""},null,{"$f":"IF('Blank - Request Form'!N410=0,\"\",'Blank - Request Form'!N410)","v":""},null,null,null,{"$f":"IF(M172<>\"\",'Blank - Request Form'!$M$2,\"\")","v":""},{"$f":"IF('Blank - Request Form'!L410=0,\"\",'Blank - Request Form'!L410)","v":""},"",172]
[{"$f":"IF('Blank - Request Form'!E411=0,\"\",'Blank - Request Form'!E411)","v":""},{"$f":"IF('Blank - Request Form'!G411=0,\"\",'Blank - Request Form'!G411)","v":""},{"$f":"IF(OR('Blank - Request Form'!H411=\"0\",'Blank - Request Form'!H411=\"000\",'Blank - Request Form'!H411=0),\"\",'Blank - Request Form'!H411)","v":""},{"$f":"IF(OR('Blank - Request Form'!I411=\"0\",'Blank - Request Form'!I411=\"00000\",'Blank - Request Form'!I411=0),\"\",'Blank - Request Form'!I411)","v":""},{"$f":"IF(OR('Blank - Request Form'!J411=\"0\",'Blank - Request Form'!J411=\"00000\",'Blank - Request Form'!J411=0),\"\",'Blank - Request Form'!J411)","v":""},{"$f":"IF(OR('Blank - Request Form'!K411=\"0\",'Blank - Request Form'!K411=\"00000\",'Blank - Request Form'!K411=0),\"\",'Blank - Request Form'!K411)","v":""},null,{"$f":"IF('Blank - Request Form'!N411=0,\"\",'Blank - Request Form'!N411)","v":""},null,null,null,{"$f":"IF(M173<>\"\",'Blank - Request Form'!$M$2,\"\")","v":""},{"$f":"IF('Blank - Request Form'!L411=0,\"\",'Blank - Request Form'!L411)","v":""},"",173]
[{"$f":"IF('Blank - Request Form'!E412=0,\"\",'Blank - Request Form'!E412)","v":""},{"$f":"IF('Blank - Request Form'!G412=0,\"\",'Blank - Request Form'!G412)","v":""},{"$f":"IF(OR('Blank - Request Form'!H412=\"0\",'Blank - Request Form'!H412=\"000\",'Blank - Request Form'!H412=0),\"\",'Blank - Request Form'!H412)","v":""},{"$f":"IF(OR('Blank - Request Form'!I412=\"0\",'Blank - Request Form'!I412=\"00000\",'Blank - Request Form'!I412=0),\"\",'Blank - Request Form'!I412)","v":""},{"$f":"IF(OR('Blank - Request Form'!J412=\"0\",'Blank - Request Form'!J412=\"00000\",'Blank - Request Form'!J412=0),\"\",'Blank - Request Form'!J412)","v":""},{"$f":"IF(OR('Blank - Request Form'!K412=\"0\",'Blank - Request Form'!K412=\"00000\",'Blank - Request Form'!K412=0),\"\",'Blank - Request Form'!K412)","v":""},null,{"$f":"IF('Blank - Request Form'!N412=0,\"\",'Blank - Request Form'!N412)","v":""},null,null,null,{"$f":"IF(M174<>\"\",'Blank - Request Form'!$M$2,\"\")","v":""},{"$f":"IF('Blank - Request Form'!L412=0,\"\",'Blank - Request Form'!L412)","v":""},"",174]
[{"$f":"IF('Blank - Request Form'!E413=0,\"\",'Blank - Request Form'!E413)","v":""},{"$f":"IF('Blank - Request Form'!G413=0,\"\",'Blank - Request Form'!G413)","v":""},{"$f":"IF(OR('Blank - Request Form'!H413=\"0\",'Blank - Request Form'!H413=\"000\",'Blank - Request Form'!H413=0),\"\",'Blank - Request Form'!H413)","v":""},{"$f":"IF(OR('Blank - Request Form'!I413=\"0\",'Blank - Request Form'!I413=\"00000\",'Blank - Request Form'!I413=0),\"\",'Blank - Request Form'!I413)","v":""},{"$f":"IF(OR('Blank - Request Form'!J413=\"0\",'Blank - Request Form'!J413=\"00000\",'Blank - Request Form'!J413=0),\"\",'Blank - Request Form'!J413)","v":""},{"$f":"IF(OR('Blank - Request Form'!K413=\"0\",'Blank - Request Form'!K413=\"00000\",'Blank - Request Form'!K413=0),\"\",'Blank - Request Form'!K413)","v":""},null,{"$f":"IF('Blank - Request Form'!N413=0,\"\",'Blank - Request Form'!N413)","v":""},null,null,null,{"$f":"IF(M175<>\"\",'Blank - Request Form'!$M$2,\"\")","v":""},{"$f":"IF('Blank - Request Form'!L413=0,\"\",'Blank - Request Form'!L413)","v":""},"",175]
[{"$f":"IF('Blank - Request Form'!E414=0,\"\",'Blank - Request Form'!E414)","v":""},{"$f":"IF('Blank - Request Form'!G414=0,\"\",'Blank - Request Form'!G414)","v":""},{"$f":"IF(OR('Blank - Request Form'!H414=\"0\",'Blank - Request Form'!H414=\"000\",'Blank - Request Form'!H414=0),\"\",'Blank - Request Form'!H414)","v":""},{"$f":"IF(OR('Blank - Request Form'!I414=\"0\",'Blank - Request Form'!I414=\"00000\",'Blank - Request Form'!I414=0),\"\",'Blank - Request Form'!I414)","v":""},{"$f":"IF(OR('Blank - Request Form'!J414=\"0\",'Blank - Request Form'!J414=\"00000\",'Blank - Request Form'!J414=0),\"\",'Blank - Request Form'!J414)","v":""},{"$f":"IF(OR('Blank - Request Form'!K414=\"0\",'Blank - Request Form'!K414=\"00000\",'Blank - Request Form'!K414=0),\"\",'Blank - Request Form'!K414)","v":""},null,{"$f":"IF('Blank - Request Form'!N414=0,\"\",'Blank - Request Form'!N414)","v":""},null,null,null,{"$f":"IF(M176<>\"\",'Blank - Request Form'!$M$2,\"\")","v":""},{"$f":"IF('Blank - Request Form'!L414=0,\"\",'Blank - Request Form'!L414)","v":""},"",176]
[{"$f":"IF('Blank - Request Form'!E415=0,\"\",'Blank - Request Form'!E415)","v":""},{"$f":"IF('Blank - Request Form'!G415=0,\"\",'Blank - Request Form'!G415)","v":""},{"$f":"IF(OR('Blank - Request Form'!H415=\"0\",'Blank - Request Form'!H415=\"000\",'Blank - Request Form'!H415=0),\"\",'Blank - Request Form'!H415)","v":""},{"$f":"IF(OR('Blank - Request Form'!I415=\"0\",'Blank - Request Form'!I415=\"00000\",'Blank - Request Form'!I415=0),\"\",'Blank - Request Form'!I415)","v":""},{"$f":"IF(OR('Blank - Request Form'!J415=\"0\",'Blank - Request Form'!J415=\"00000\",'Blank - Request Form'!J415=0),\"\",'Blank - Request Form'!J415)","v":""},{"$f":"IF(OR('Blank - Request Form'!K415=\"0\",'Blank - Request Form'!K415=\"00000\",'Blank - Request Form'!K415=0),\"\",'Blank - Request Form'!K415)","v":""},null,{"$f":"IF('Blank - Request Form'!N415=0,\"\",'Blank - Request Form'!N415)","v":""},null,null,null,{"$f":"IF(M177<>\"\",'Blank - Request Form'!$M$2,\"\")","v":""},{"$f":"IF('Blank - Request Form'!L415=0,\"\",'Blank - Request Form'!L415)","v":""},"",177]
[{"$f":"IF('Blank - Request Form'!E416=0,\"\",'Blank - Request Form'!E416)","v":""},{"$f":"IF('Blank - Request Form'!G416=0,\"\",'Blank - Request Form'!G416)","v":""},{"$f":"IF(OR('Blank - Request Form'!H416=\"0\",'Blank - Request Form'!H416=\"000\",'Blank - Request Form'!H416=0),\"\",'Blank - Request Form'!H416)","v":""},{"$f":"IF(OR('Blank - Request Form'!I416=\"0\",'Blank - Request Form'!I416=\"00000\",'Blank - Request Form'!I416=0),\"\",'Blank - Request Form'!I416)","v":""},{"$f":"IF(OR('Blank - Request Form'!J416=\"0\",'Blank - Request Form'!J416=\"00000\",'Blank - Request Form'!J416=0),\"\",'Blank - Request Form'!J416)","v":""},{"$f":"IF(OR('Blank - Request Form'!K416=\"0\",'Blank - Request Form'!K416=\"00000\",'Blank - Request Form'!K416=0),\"\",'Blank - Request Form'!K416)","v":""},null,{"$f":"IF('Blank - Request Form'!N416=0,\"\",'Blank - Request Form'!N416)","v":""},null,null,null,{"$f":"IF(M178<>\"\",'Blank - Request Form'!$M$2,\"\")","v":""},{"$f":"IF('Blank - Request Form'!L416=0,\"\",'Blank - Request Form'!L416)","v":""},"",178]
[{"$f":"IF('Blank - Request Form'!E417=0,\"\",'Blank - Request Form'!E417)","v":""},{"$f":"IF('Blank - Request Form'!G417=0,\"\",'Blank - Request Form'!G417)","v":""},{"$f":"IF(OR('Blank - Request Form'!H417=\"0\",'Blank - Request Form'!H417=\"000\",'Blank - Request Form'!H417=0),\"\",'Blank - Request Form'!H417)","v":""},{"$f":"IF(OR('Blank - Request Form'!I417=\"0\",'Blank - Request Form'!I417=\"00000\",'Blank - Request Form'!I417=0),\"\",'Blank - Request Form'!I417)","v":""},{"$f":"IF(OR('Blank - Request Form'!J417=\"0\",'Blank - Request Form'!J417=\"00000\",'Blank - Request Form'!J417=0),\"\",'Blank - Request Form'!J417)","v":""},{"$f":"IF(OR('Blank - Request Form'!K417=\"0\",'Blank - Request Form'!K417=\"00000\",'Blank - Request Form'!K417=0),\"\",'Blank - Request Form'!K417)","v":""},null,{"$f":"IF('Blank - Request Form'!N417=0,\"\",'Blank - Request Form'!N417)","v":""},null,null,null,{"$f":"IF(M179<>\"\",'Blank - Request Form'!$M$2,\"\")","v":""},{"$f":"IF('Blank - Request Form'!L417=0,\"\",'Blank - Request Form'!L417)","v":""},"",179]
[{"$f":"IF('Blank - Request Form'!E418=0,\"\",'Blank - Request Form'!E418)","v":""},{"$f":"IF('Blank - Request Form'!G418=0,\"\",'Blank - Request Form'!G418)","v":""},{"$f":"IF(OR('Blank - Request Form'!H418=\"0\",'Blank - Request Form'!H418=\"000\",'Blank - Request Form'!H418=0),\"\",'Blank - Request Form'!H418)","v":""},{"$f":"IF(OR('Blank - Request Form'!I418=\"0\",'Blank - Request Form'!I418=\"00000\",'Blank - Request Form'!I418=0),\"\",'Blank - Request Form'!I418)","v":""},{"$f":"IF(OR('Blank - Request Form'!J418=\"0\",'Blank - Request Form'!J418=\"00000\",'Blank - Request Form'!J418=0),\"\",'Blank - Request Form'!J418)","v":""},{"$f":"IF(OR('Blank - Request Form'!K418=\"0\",'Blank - Request Form'!K418=\"00000\",'Blank - Request Form'!K418=0),\"\",'Blank - Request Form'!K418)","v":""},null,{"$f":"IF('Blank - Request Form'!N418=0,\"\",'Blank - Request Form'!N418)","v":""},null,null,null,{"$f":"IF(M180<>\"\",'Blank - Request Form'!$M$2,\"\")","v":""},{"$f":"IF('Blank - Request Form'!L418=0,\"\",'Blank - Request Form'!L418)","v":""},"",180]
[{"$f":"IF('Blank - Request Form'!E419=0,\"\",'Blank - Request Form'!E419)","v":""},{"$f":"IF('Blank - Request Form'!G419=0,\"\",'Blank - Request Form'!G419)","v":""},{"$f":"IF(OR('Blank - Request Form'!H419=\"0\",'Blank - Request Form'!H419=\"000\",'Blank - Request Form'!H419=0),\"\",'Blank - Request Form'!H419)","v":""},{"$f":"IF(OR('Blank - Request Form'!I419=\"0\",'Blank - Request Form'!I419=\"00000\",'Blank - Request Form'!I419=0),\"\",'Blank - Request Form'!I419)","v":""},{"$f":"IF(OR('Blank - Request Form'!J419=\"0\",'Blank - Request Form'!J419=\"00000\",'Blank - Request Form'!J419=0),\"\",'Blank - Request Form'!J419)","v":""},{"$f":"IF(OR('Blank - Request Form'!K419=\"0\",'Blank - Request Form'!K419=\"00000\",'Blank - Request Form'!K419=0),\"\",'Blank - Request Form'!K419)","v":""},null,{"$f":"IF('Blank - Request Form'!N419=0,\"\",'Blank - Request Form'!N419)","v":""},null,null,null,{"$f":"IF(M181<>\"\",'Blank - Request Form'!$M$2,\"\")","v":""},{"$f":"IF('Blank - Request Form'!L419=0,\"\",'Blank - Request Form'!L419)","v":""},"",181]
[{"$f":"IF('Blank - Request Form'!E420=0,\"\",'Blank - Request Form'!E420)","v":""},{"$f":"IF('Blank - Request Form'!G420=0,\"\",'Blank - Request Form'!G420)","v":""},{"$f":"IF(OR('Blank - Request Form'!H420=\"0\",'Blank - Request Form'!H420=\"000\",'Blank - Request Form'!H420=0),\"\",'Blank - Request Form'!H420)","v":""},{"$f":"IF(OR('Blank - Request Form'!I420=\"0\",'Blank - Request Form'!I420=\"00000\",'Blank - Request Form'!I420=0),\"\",'Blank - Request Form'!I420)","v":""},{"$f":"IF(OR('Blank - Request Form'!J420=\"0\",'Blank - Request Form'!J420=\"00000\",'Blank - Request Form'!J420=0),\"\",'Blank - Request Form'!J420)","v":""},{"$f":"IF(OR('Blank - Request Form'!K420=\"0\",'Blank - Request Form'!K420=\"00000\",'Blank - Request Form'!K420=0),\"\",'Blank - Request Form'!K420)","v":""},null,{"$f":"IF('Blank - Request Form'!N420=0,\"\",'Blank - Request Form'!N420)","v":""},null,null,null,{"$f":"IF(M182<>\"\",'Blank - Request Form'!$M$2,\"\")","v":""},{"$f":"IF('Blank - Request Form'!L420=0,\"\",'Blank - Request Form'!L420)","v":""},"",182]
[{"$f":"IF('Blank - Request Form'!E421=0,\"\",'Blank - Request Form'!E421)","v":""},{"$f":"IF('Blank - Request Form'!G421=0,\"\",'Blank - Request Form'!G421)","v":""},{"$f":"IF(OR('Blank - Request Form'!H421=\"0\",'Blank - Request Form'!H421=\"000\",'Blank - Request Form'!H421=0),\"\",'Blank - Request Form'!H421)","v":""},{"$f":"IF(OR('Blank - Request Form'!I421=\"0\",'Blank - Request Form'!I421=\"00000\",'Blank - Request Form'!I421=0),\"\",'Blank - Request Form'!I421)","v":""},{"$f":"IF(OR('Blank - Request Form'!J421=\"0\",'Blank - Request Form'!J421=\"00000\",'Blank - Request Form'!J421=0),\"\",'Blank - Request Form'!J421)","v":""},{"$f":"IF(OR('Blank - Request Form'!K421=\"0\",'Blank - Request Form'!K421=\"00000\",'Blank - Request Form'!K421=0),\"\",'Blank - Request Form'!K421)","v":""},null,{"$f":"IF('Blank - Request Form'!N421=0,\"\",'Blank - Request Form'!N421)","v":""},null,null,null,{"$f":"IF(M183<>\"\",'Blank - Request Form'!$M$2,\"\")","v":""},{"$f":"IF('Blank - Request Form'!L421=0,\"\",'Blank - Request Form'!L421)","v":""},"",183]
[{"$f":"IF('Blank - Request Form'!E422=0,\"\",'Blank - Request Form'!E422)","v":""},{"$f":"IF('Blank - Request Form'!G422=0,\"\",'Blank - Request Form'!G422)","v":""},{"$f":"IF(OR('Blank - Request Form'!H422=\"0\",'Blank - Request Form'!H422=\"000\",'Blank - Request Form'!H422=0),\"\",'Blank - Request Form'!H422)","v":""},{"$f":"IF(OR('Blank - Request Form'!I422=\"0\",'Blank - Request Form'!I422=\"00000\",'Blank - Request Form'!I422=0),\"\",'Blank - Request Form'!I422)","v":""},{"$f":"IF(OR('Blank - Request Form'!J422=\"0\",'Blank - Request Form'!J422=\"00000\",'Blank - Request Form'!J422=0),\"\",'Blank - Request Form'!J422)","v":""},{"$f":"IF(OR('Blank - Request Form'!K422=\"0\",'Blank - Request Form'!K422=\"00000\",'Blank - Request Form'!K422=0),\"\",'Blank - Request Form'!K422)","v":""},null,{"$f":"IF('Blank - Request Form'!N422=0,\"\",'Blank - Request Form'!N422)","v":""},null,null,null,{"$f":"IF(M184<>\"\",'Blank - Request Form'!$M$2,\"\")","v":""},{"$f":"IF('Blank - Request Form'!L422=0,\"\",'Blank - Request Form'!L422)","v":""},"",184]
[{"$f":"IF('Blank - Request Form'!E423=0,\"\",'Blank - Request Form'!E423)","v":""},{"$f":"IF('Blank - Request Form'!G423=0,\"\",'Blank - Request Form'!G423)","v":""},{"$f":"IF(OR('Blank - Request Form'!H423=\"0\",'Blank - Request Form'!H423=\"000\",'Blank - Request Form'!H423=0),\"\",'Blank - Request Form'!H423)","v":""},{"$f":"IF(OR('Blank - Request Form'!I423=\"0\",'Blank - Request Form'!I423=\"00000\",'Blank - Request Form'!I423=0),\"\",'Blank - Request Form'!I423)","v":""},{"$f":"IF(OR('Blank - Request Form'!J423=\"0\",'Blank - Request Form'!J423=\"00000\",'Blank - Request Form'!J423=0),\"\",'Blank - Request Form'!J423)","v":""},{"$f":"IF(OR('Blank - Request Form'!K423=\"0\",'Blank - Request Form'!K423=\"00000\",'Blank - Request Form'!K423=0),\"\",'Blank - Request Form'!K423)","v":""},null,{"$f":"IF('Blank - Request Form'!N423=0,\"\",'Blank - Request Form'!N423)","v":""},null,null,null,{"$f":"IF(M185<>\"\",'Blank - Request Form'!$M$2,\"\")","v":""},{"$f":"IF('Blank - Request Form'!L423=0,\"\",'Blank - Request Form'!L423)","v":""},"",185]
[{"$f":"IF('Blank - Request Form'!E424=0,\"\",'Blank - Request Form'!E424)","v":""},{"$f":"IF('Blank - Request Form'!G424=0,\"\",'Blank - Request Form'!G424)","v":""},{"$f":"IF(OR('Blank - Request Form'!H424=\"0\",'Blank - Request Form'!H424=\"000\",'Blank - Request Form'!H424=0),\"\",'Blank - Request Form'!H424)","v":""},{"$f":"IF(OR('Blank - Request Form'!I424=\"0\",'Blank - Request Form'!I424=\"00000\",'Blank - Request Form'!I424=0),\"\",'Blank - Request Form'!I424)","v":""},{"$f":"IF(OR('Blank - Request Form'!J424=\"0\",'Blank - Request Form'!J424=\"00000\",'Blank - Request Form'!J424=0),\"\",'Blank - Request Form'!J424)","v":""},{"$f":"IF(OR('Blank - Request Form'!K424=\"0\",'Blank - Request Form'!K424=\"00000\",'Blank - Request Form'!K424=0),\"\",'Blank - Request Form'!K424)","v":""},null,{"$f":"IF('Blank - Request Form'!N424=0,\"\",'Blank - Request Form'!N424)","v":""},null,null,null,{"$f":"IF(M186<>\"\",'Blank - Request Form'!$M$2,\"\")","v":""},{"$f":"IF('Blank - Request Form'!L424=0,\"\",'Blank - Request Form'!L424)","v":""},"",186]
[{"$f":"IF('Blank - Request Form'!E425=0,\"\",'Blank - Request Form'!E425)","v":""},{"$f":"IF('Blank - Request Form'!G425=0,\"\",'Blank - Request Form'!G425)","v":""},{"$f":"IF(OR('Blank - Request Form'!H425=\"0\",'Blank - Request Form'!H425=\"000\",'Blank - Request Form'!H425=0),\"\",'Blank - Request Form'!H425)","v":""},{"$f":"IF(OR('Blank - Request Form'!I425=\"0\",'Blank - Request Form'!I425=\"00000\",'Blank - Request Form'!I425=0),\"\",'Blank - Request Form'!I425)","v":""},{"$f":"IF(OR('Blank - Request Form'!J425=\"0\",'Blank - Request Form'!J425=\"00000\",'Blank - Request Form'!J425=0),\"\",'Blank - Request Form'!J425)","v":""},{"$f":"IF(OR('Blank - Request Form'!K425=\"0\",'Blank - Request Form'!K425=\"00000\",'Blank - Request Form'!K425=0),\"\",'Blank - Request Form'!K425)","v":""},null,{"$f":"IF('Blank - Request Form'!N425=0,\"\",'Blank - Request Form'!N425)","v":""},null,null,null,{"$f":"IF(M187<>\"\",'Blank - Request Form'!$M$2,\"\")","v":""},{"$f":"IF('Blank - Request Form'!L425=0,\"\",'Blank - Request Form'!L425)","v":""},"",187]
[{"$f":"IF('Blank - Request Form'!E426=0,\"\",'Blank - Request Form'!E426)","v":""},{"$f":"IF('Blank - Request Form'!G426=0,\"\",'Blank - Request Form'!G426)","v":""},{"$f":"IF(OR('Blank - Request Form'!H426=\"0\",'Blank - Request Form'!H426=\"000\",'Blank - Request Form'!H426=0),\"\",'Blank - Request Form'!H426)","v":""},{"$f":"IF(OR('Blank - Request Form'!I426=\"0\",'Blank - Request Form'!I426=\"00000\",'Blank - Request Form'!I426=0),\"\",'Blank - Request Form'!I426)","v":""},{"$f":"IF(OR('Blank - Request Form'!J426=\"0\",'Blank - Request Form'!J426=\"00000\",'Blank - Request Form'!J426=0),\"\",'Blank - Request Form'!J426)","v":""},{"$f":"IF(OR('Blank - Request Form'!K426=\"0\",'Blank - Request Form'!K426=\"00000\",'Blank - Request Form'!K426=0),\"\",'Blank - Request Form'!K426)","v":""},null,{"$f":"IF('Blank - Request Form'!N426=0,\"\",'Blank - Request Form'!N426)","v":""},null,null,null,{"$f":"IF(M188<>\"\",'Blank - Request Form'!$M$2,\"\")","v":""},{"$f":"IF('Blank - Request Form'!L426=0,\"\",'Blank - Request Form'!L426)","v":""},"",188]
[{"$f":"IF('Blank - Request Form'!E427=0,\"\",'Blank - Request Form'!E427)","v":""},{"$f":"IF('Blank - Request Form'!G427=0,\"\",'Blank - Request Form'!G427)","v":""},{"$f":"IF(OR('Blank - Request Form'!H427=\"0\",'Blank - Request Form'!H427=\"000\",'Blank - Request Form'!H427=0),\"\",'Blank - Request Form'!H427)","v":""},{"$f":"IF(OR('Blank - Request Form'!I427=\"0\",'Blank - Request Form'!I427=\"00000\",'Blank - Request Form'!I427=0),\"\",'Blank - Request Form'!I427)","v":""},{"$f":"IF(OR('Blank - Request Form'!J427=\"0\",'Blank - Request Form'!J427=\"00000\",'Blank - Request Form'!J427=0),\"\",'Blank - Request Form'!J427)","v":""},{"$f":"IF(OR('Blank - Request Form'!K427=\"0\",'Blank - Request Form'!K427=\"00000\",'Blank - Request Form'!K427=0),\"\",'Blank - Request Form'!K427)","v":""},null,{"$f":"IF('Blank - Request Form'!N427=0,\"\",'Blank - Request Form'!N427)","v":""},null,null,null,{"$f":"IF(M189<>\"\",'Blank - Request Form'!$M$2,\"\")","v":""},{"$f":"IF('Blank - Request Form'!L427=0,\"\",'Blank - Request Form'!L427)","v":""},"",189]
[{"$f":"IF('Blank - Request Form'!E428=0,\"\",'Blank - Request Form'!E428)","v":""},{"$f":"IF('Blank - Request Form'!G428=0,\"\",'Blank - Request Form'!G428)","v":""},{"$f":"IF(OR('Blank - Request Form'!H428=\"0\",'Blank - Request Form'!H428=\"000\",'Blank - Request Form'!H428=0),\"\",'Blank - Request Form'!H428)","v":""},{"$f":"IF(OR('Blank - Request Form'!I428=\"0\",'Blank - Request Form'!I428=\"00000\",'Blank - Request Form'!I428=0),\"\",'Blank - Request Form'!I428)","v":""},{"$f":"IF(OR('Blank - Request Form'!J428=\"0\",'Blank - Request Form'!J428=\"00000\",'Blank - Request Form'!J428=0),\"\",'Blank - Request Form'!J428)","v":""},{"$f":"IF(OR('Blank - Request Form'!K428=\"0\",'Blank - Request Form'!K428=\"00000\",'Blank - Request Form'!K428=0),\"\",'Blank - Request Form'!K428)","v":""},null,{"$f":"IF('Blank - Request Form'!N428=0,\"\",'Blank - Request Form'!N428)","v":""},null,null,null,{"$f":"IF(M190<>\"\",'Blank - Request Form'!$M$2,\"\")","v":""},{"$f":"IF('Blank - Request Form'!L428=0,\"\",'Blank - Request Form'!L428)","v":""},"",190]
[{"$f":"IF('Blank - Request Form'!E429=0,\"\",'Blank - Request Form'!E429)","v":""},{"$f":"IF('Blank - Request Form'!G429=0,\"\",'Blank - Request Form'!G429)","v":""},{"$f":"IF(OR('Blank - Request Form'!H429=\"0\",'Blank - Request Form'!H429=\"000\",'Blank - Request Form'!H429=0),\"\",'Blank - Request Form'!H429)","v":""},{"$f":"IF(OR('Blank - Request Form'!I429=\"0\",'Blank - Request Form'!I429=\"00000\",'Blank - Request Form'!I429=0),\"\",'Blank - Request Form'!I429)","v":""},{"$f":"IF(OR('Blank - Request Form'!J429=\"0\",'Blank - Request Form'!J429=\"00000\",'Blank - Request Form'!J429=0),\"\",'Blank - Request Form'!J429)","v":""},{"$f":"IF(OR('Blank - Request Form'!K429=\"0\",'Blank - Request Form'!K429=\"00000\",'Blank - Request Form'!K429=0),\"\",'Blank - Request Form'!K429)","v":""},null,{"$f":"IF('Blank - Request Form'!N429=0,\"\",'Blank - Request Form'!N429)","v":""},null,null,null,{"$f":"IF(M191<>\"\",'Blank - Request Form'!$M$2,\"\")","v":""},{"$f":"IF('Blank - Request Form'!L429=0,\"\",'Blank - Request Form'!L429)","v":""},"",191]
[{"$f":"IF('Blank - Request Form'!E430=0,\"\",'Blank - Request Form'!E430)","v":""},{"$f":"IF('Blank - Request Form'!G430=0,\"\",'Blank - Request Form'!G430)","v":""},{"$f":"IF(OR('Blank - Request Form'!H430=\"0\",'Blank - Request Form'!H430=\"000\",'Blank - Request Form'!H430=0),\"\",'Blank - Request Form'!H430)","v":""},{"$f":"IF(OR('Blank - Request Form'!I430=\"0\",'Blank - Request Form'!I430=\"00000\",'Blank - Request Form'!I430=0),\"\",'Blank - Request Form'!I430)","v":""},{"$f":"IF(OR('Blank - Request Form'!J430=\"0\",'Blank - Request Form'!J430=\"00000\",'Blank - Request Form'!J430=0),\"\",'Blank - Request Form'!J430)","v":""},{"$f":"IF(OR('Blank - Request Form'!K430=\"0\",'Blank - Request Form'!K430=\"00000\",'Blank - Request Form'!K430=0),\"\",'Blank - Request Form'!K430)","v":""},null,{"$f":"IF('Blank - Request Form'!N430=0,\"\",'Blank - Request Form'!N430)","v":""},null,null,null,{"$f":"IF(M192<>\"\",'Blank - Request Form'!$M$2,\"\")","v":""},{"$f":"IF('Blank - Request Form'!L430=0,\"\",'Blank - Request Form'!L430)","v":""},"",192]
[{"$f":"IF('Blank - Request Form'!E431=0,\"\",'Blank - Request Form'!E431)","v":""},{"$f":"IF('Blank - Request Form'!G431=0,\"\",'Blank - Request Form'!G431)","v":""},{"$f":"IF(OR('Blank - Request Form'!H431=\"0\",'Blank - Request Form'!H431=\"000\",'Blank - Request Form'!H431=0),\"\",'Blank - Request Form'!H431)","v":""},{"$f":"IF(OR('Blank - Request Form'!I431=\"0\",'Blank - Request Form'!I431=\"00000\",'Blank - Request Form'!I431=0),\"\",'Blank - Request Form'!I431)","v":""},{"$f":"IF(OR('Blank - Request Form'!J431=\"0\",'Blank - Request Form'!J431=\"00000\",'Blank - Request Form'!J431=0),\"\",'Blank - Request Form'!J431)","v":""},{"$f":"IF(OR('Blank - Request Form'!K431=\"0\",'Blank - Request Form'!K431=\"00000\",'Blank - Request Form'!K431=0),\"\",'Blank - Request Form'!K431)","v":""},null,{"$f":"IF('Blank - Request Form'!N431=0,\"\",'Blank - Request Form'!N431)","v":""},null,null,null,{"$f":"IF(M193<>\"\",'Blank - Request Form'!$M$2,\"\")","v":""},{"$f":"IF('Blank - Request Form'!L431=0,\"\",'Blank - Request Form'!L431)","v":""},"",193]
[{"$f":"IF('Blank - Request Form'!E432=0,\"\",'Blank - Request Form'!E432)","v":""},{"$f":"IF('Blank - Request Form'!G432=0,\"\",'Blank - Request Form'!G432)","v":""},{"$f":"IF(OR('Blank - Request Form'!H432=\"0\",'Blank - Request Form'!H432=\"000\",'Blank - Request Form'!H432=0),\"\",'Blank - Request Form'!H432)","v":""},{"$f":"IF(OR('Blank - Request Form'!I432=\"0\",'Blank - Request Form'!I432=\"00000\",'Blank - Request Form'!I432=0),\"\",'Blank - Request Form'!I432)","v":""},{"$f":"IF(OR('Blank - Request Form'!J432=\"0\",'Blank - Request Form'!J432=\"00000\",'Blank - Request Form'!J432=0),\"\",'Blank - Request Form'!J432)","v":""},{"$f":"IF(OR('Blank - Request Form'!K432=\"0\",'Blank - Request Form'!K432=\"00000\",'Blank - Request Form'!K432=0),\"\",'Blank - Request Form'!K432)","v":""},null,{"$f":"IF('Blank - Request Form'!N432=0,\"\",'Blank - Request Form'!N432)","v":""},null,null,null,{"$f":"IF(M194<>\"\",'Blank - Request Form'!$M$2,\"\")","v":""},{"$f":"IF('Blank - Request Form'!L432=0,\"\",'Blank - Request Form'!L432)","v":""},{"$f":"IF(M194<>\"\",O194,\"\")","v":""},194]
[{"$f":"IF('Blank - Request Form'!E433=0,\"\",'Blank - Request Form'!E433)","v":""},{"$f":"IF('Blank - Request Form'!G433=0,\"\",'Blank - Request Form'!G433)","v":""},{"$f":"IF(OR('Blank - Request Form'!H433=\"0\",'Blank - Request Form'!H433=\"000\",'Blank - Request Form'!H433=0),\"\",'Blank - Request Form'!H433)","v":""},{"$f":"IF(OR('Blank - Request Form'!I433=\"0\",'Blank - Request Form'!I433=\"00000\",'Blank - Request Form'!I433=0),\"\",'Blank - Request Form'!I433)","v":""},{"$f":"IF(OR('Blank - Request Form'!J433=\"0\",'Blank - Request Form'!J433=\"00000\",'Blank - Request Form'!J433=0),\"\",'Blank - Request Form'!J433)","v":""},{"$f":"IF(OR('Blank - Request Form'!K433=\"0\",'Blank - Request Form'!K433=\"00000\",'Blank - Request Form'!K433=0),\"\",'Blank - Request Form'!K433)","v":""},null,{"$f":"IF('Blank - Request Form'!N433=0,\"\",'Blank - Request Form'!N433)","v":""},null,null,null,{"$f":"IF(M195<>\"\",'Blank - Request Form'!$M$2,\"\")","v":""},{"$f":"IF('Blank - Request Form'!L433=0,\"\",'Blank - Request Form'!L433)","v":""},"",195]
[{"$f":"IF('Blank - Request Form'!E434=0,\"\",'Blank - Request Form'!E434)","v":""},{"$f":"IF('Blank - Request Form'!G434=0,\"\",'Blank - Request Form'!G434)","v":""},{"$f":"IF(OR('Blank - Request Form'!H434=\"0\",'Blank - Request Form'!H434=\"000\",'Blank - Request Form'!H434=0),\"\",'Blank - Request Form'!H434)","v":""},{"$f":"IF(OR('Blank - Request Form'!I434=\"0\",'Blank - Request Form'!I434=\"00000\",'Blank - Request Form'!I434=0),\"\",'Blank - Request Form'!I434)","v":""},{"$f":"IF(OR('Blank - Request Form'!J434=\"0\",'Blank - Request Form'!J434=\"00000\",'Blank - Request Form'!J434=0),\"\",'Blank - Request Form'!J434)","v":""},{"$f":"IF(OR('Blank - Request Form'!K434=\"0\",'Blank - Request Form'!K434=\"00000\",'Blank - Request Form'!K434=0),\"\",'Blank - Request Form'!K434)","v":""},null,{"$f":"IF('Blank - Request Form'!N434=0,\"\",'Blank - Request Form'!N434)","v":""},null,null,null,{"$f":"IF(M196<>\"\",'Blank - Request Form'!$M$2,\"\")","v":""},{"$f":"IF('Blank - Request Form'!L434=0,\"\",'Blank - Request Form'!L434)","v":""},"",196]
[{"$f":"IF('Blank - Request Form'!E435=0,\"\",'Blank - Request Form'!E435)","v":""},{"$f":"IF('Blank - Request Form'!G435=0,\"\",'Blank - Request Form'!G435)","v":""},{"$f":"IF(OR('Blank - Request Form'!H435=\"0\",'Blank - Request Form'!H435=\"000\",'Blank - Request Form'!H435=0),\"\",'Blank - Request Form'!H435)","v":""},{"$f":"IF(OR('Blank - Request Form'!I435=\"0\",'Blank - Request Form'!I435=\"00000\",'Blank - Request Form'!I435=0),\"\",'Blank - Request Form'!I435)","v":""},{"$f":"IF(OR('Blank - Request Form'!J435=\"0\",'Blank - Request Form'!J435=\"00000\",'Blank - Request Form'!J435=0),\"\",'Blank - Request Form'!J435)","v":""},{"$f":"IF(OR('Blank - Request Form'!K435=\"0\",'Blank - Request Form'!K435=\"00000\",'Blank - Request Form'!K435=0),\"\",'Blank - Request Form'!K435)","v":""},null,{"$f":"IF('Blank - Request Form'!N435=0,\"\",'Blank - Request Form'!N435)","v":""},null,null,null,{"$f":"IF(M197<>\"\",'Blank - Request Form'!$M$2,\"\")","v":""},{"$f":"IF('Blank - Request Form'!L435=0,\"\",'Blank - Request Form'!L435)","v":""},"",197]
[{"$f":"IF('Blank - Request Form'!E436=0,\"\",'Blank - Request Form'!E436)","v":""},{"$f":"IF('Blank - Request Form'!G436=0,\"\",'Blank - Request Form'!G436)","v":""},{"$f":"IF(OR('Blank - Request Form'!H436=\"0\",'Blank - Request Form'!H436=\"000\",'Blank - Request Form'!H436=0),\"\",'Blank - Request Form'!H436)","v":""},{"$f":"IF(OR('Blank - Request Form'!I436=\"0\",'Blank - Request Form'!I436=\"00000\",'Blank - Request Form'!I436=0),\"\",'Blank - Request Form'!I436)","v":""},{"$f":"IF(OR('Blank - Request Form'!J436=\"0\",'Blank - Request Form'!J436=\"00000\",'Blank - Request Form'!J436=0),\"\",'Blank - Request Form'!J436)","v":""},{"$f":"IF(OR('Blank - Request Form'!K436=\"0\",'Blank - Request Form'!K436=\"00000\",'Blank - Request Form'!K436=0),\"\",'Blank - Request Form'!K436)","v":""},null,{"$f":"IF('Blank - Request Form'!N436=0,\"\",'Blank - Request Form'!N436)","v":""},null,null,null,{"$f":"IF(M198<>\"\",'Blank - Request Form'!$M$2,\"\")","v":""},{"$f":"IF('Blank - Request Form'!L436=0,\"\",'Blank - Request Form'!L436)","v":""},"",198]
[{"$f":"IF('Blank - Request Form'!E437=0,\"\",'Blank - Request Form'!E437)","v":""},{"$f":"IF('Blank - Request Form'!G437=0,\"\",'Blank - Request Form'!G437)","v":""},{"$f":"IF(OR('Blank - Request Form'!H437=\"0\",'Blank - Request Form'!H437=\"000\",'Blank - Request Form'!H437=0),\"\",'Blank - Request Form'!H437)","v":""},{"$f":"IF(OR('Blank - Request Form'!I437=\"0\",'Blank - Request Form'!I437=\"00000\",'Blank - Request Form'!I437=0),\"\",'Blank - Request Form'!I437)","v":""},{"$f":"IF(OR('Blank - Request Form'!J437=\"0\",'Blank - Request Form'!J437=\"00000\",'Blank - Request Form'!J437=0),\"\",'Blank - Request Form'!J437)","v":""},{"$f":"IF(OR('Blank - Request Form'!K437=\"0\",'Blank - Request Form'!K437=\"00000\",'Blank - Request Form'!K437=0),\"\",'Blank - Request Form'!K437)","v":""},null,{"$f":"IF('Blank - Request Form'!N437=0,\"\",'Blank - Request Form'!N437)","v":""},null,null,null,{"$f":"IF(M199<>\"\",'Blank - Request Form'!$M$2,\"\")","v":""},{"$f":"IF('Blank - Request Form'!L437=0,\"\",'Blank - Request Form'!L437)","v":""},"",199]
[{"$f":"IF('Blank - Request Form'!E438=0,\"\",'Blank - Request Form'!E438)","v":""},{"$f":"IF('Blank - Request Form'!G438=0,\"\",'Blank - Request Form'!G438)","v":""},{"$f":"IF(OR('Blank - Request Form'!H438=\"0\",'Blank - Request Form'!H438=\"000\",'Blank - Request Form'!H438=0),\"\",'Blank - Request Form'!H438)","v":""},{"$f":"IF(OR('Blank - Request Form'!I438=\"0\",'Blank - Request Form'!I438=\"00000\",'Blank - Request Form'!I438=0),\"\",'Blank - Request Form'!I438)","v":""},{"$f":"IF(OR('Blank - Request Form'!J438=\"0\",'Blank - Request Form'!J438=\"00000\",'Blank - Request Form'!J438=0),\"\",'Blank - Request Form'!J438)","v":""},{"$f":"IF(OR('Blank - Request Form'!K438=\"0\",'Blank - Request Form'!K438=\"00000\",'Blank - Request Form'!K438=0),\"\",'Blank - Request Form'!K438)","v":""},null,{"$f":"IF('Blank - Request Form'!N438=0,\"\",'Blank - Request Form'!N438)","v":""},null,null,null,{"$f":"IF(M200<>\"\",'Blank - Request Form'!$M$2,\"\")","v":""},{"$f":"IF('Blank - Request Form'!L438=0,\"\",'Blank - Request Form'!L438)","v":""},"",200]

{"sheet":"CICMP","index":2,"n_rows":201,"n_cols":16,"rows_kept":201,"cut":false,"hidden":true,"merged":[]}
[{"$f":"IF('Blank - Request Form'!$F$6=\"CICMP\",IF('Blank - Request Form'!D35=0,\"\",'Blank - Request Form'!D35),IF('Blank - Request Form'!$F$7=\"CICMP\",IF('Blank - Request Form'!M35=0,\"\",'Blank - Request Form'!M35),\"\"))","v":""},{"$f":"IF('Blank - Request Form'!$F$6=\"CICMP\",IF('Blank - Request Form'!E35=0,\"\",'Blank - Request Form'!E35),IF('Blank - Request Form'!$F$7=\"CICMP\",IF('Blank - Request Form'!N35=0,\"\",'Blank - Request Form'!N35),\"\"))","v":""},{"$f":"IF('Blank - Request Form'!$F$6=\"CICMP\",IF(OR('Blank - Request Form'!F35=\"000\",'Blank - Request Form'!F35=0),\"\",'Blank - Request Form'!F35),IF('Blank - Request Form'!$F$7=\"CICMP\",IF(OR('Blank - Request Form'!O35=\"000\",'Blank - Request Form'!O35=0),\"\",'Blank - Request Form'!O35),\"\"))","v":""},{"$f":"IF('Blank - Request Form'!$F$6=\"CICMP\",IF(OR('Blank - Request Form'!G35=\"0\",'Blank - Request Form'!G35=\"00000\",'Blank - Request Form'!G35=0),\"\",'Blank - Request Form'!G35),IF('Blank - Request Form'!$F$7=\"CICMP\",IF(OR('Blank - Request Form'!P35=\"0\",'Blank - Request Form'!P35=\"00000\",'Blank - Request Form'!P35=0),\"\",'Blank - Request Form'!P35),\"\"))","v":""},{"$f":"IF('Blank - Request Form'!$F$6=\"CICMP\",IF(OR('Blank - Request Form'!H35=\"0\",'Blank - Request Form'!H35=\"00000\",'Blank - Request Form'!H35=0),\"\",'Blank - Request Form'!H35),IF('Blank - Request Form'!$F$7=\"CICMP\",IF(OR('Blank - Request Form'!Q35=\"0\",'Blank - Request Form'!Q35=\"00000\",'Blank - Request Form'!Q35=0),\"\",'Blank - Request Form'!Q35),\"\"))","v":""},{"$f":"IF('Blank - Request Form'!$F$6=\"CICMP\",IF(OR('Blank - Request Form'!I35=\"0\",'Blank - Request Form'!I35=\"00000\",'Blank - Request Form'!I35=0),\"\",'Blank - Request Form'!I35),IF('Blank - Request Form'!$F$7=\"CICMP\",IF(OR('Blank - Request Form'!R35=\"0\",'Blank - Request Form'!R35=\"00000\",'Blank - Request Form'!R35=0),\"\",'Blank - Request Form'!R35),\"\"))","v":""},null,{"$f":"IF('Blank - Request Form'!$F$6=\"CICMP\",IF('Blank - Request Form'!K35=0,\"\",'Blank - Request Form'!K35),IF('Blank - Request Form'!$F$7=\"CICMP\",IF('Blank - Request Form'!T35=0,\"\",'Blank - Request Form'!T35),\"\"))","v":""},null,null,null,{"$f":"IF(M1<>\"\",'Blank - Request Form'!$M$2,\"\")","v":""},{"$f":"IF('Blank - Request Form'!$F$6=\"CICMP\",IF('Blank - Request Form'!J35=0,\"\",'Blank - Request Form'!J35),IF('Blank - Request Form'!$F$7=\"CICMP\",IF('Blank - Request Form'!S35=0,\"\",'Blank - Request Form'!S35),\"\"))","v":""},{"$f":"IF(M1<>\"\",O1,\"\")","v":""},1,"CICMP"]
[{"$f":"IF('Blank - Request Form'!$F$6=\"CICMP\",IF('Blank - Request Form'!D36=0,\"\",'Blank - Request Form'!D36),IF('Blank - Request Form'!$F$7=\"CICMP\",IF('Blank - Request Form'!M36=0,\"\",'Blank - Request Form'!M36),\"\"))","v":""},{"$f":"IF('Blank - Request Form'!$F$6=\"CICMP\",IF('Blank - Request Form'!E36=0,\"\",'Blank - Request Form'!E36),IF('Blank - Request Form'!$F$7=\"CICMP\",IF('Blank - Request Form'!N36=0,\"\",'Blank - Request Form'!N36),\"\"))","v":""},{"$f":"IF('Blank - Request Form'!$F$6=\"CICMP\",IF(OR('Blank - Request Form'!F36=\"000\",'Blank - Request Form'!F36=0),\"\",'Blank - Request Form'!F36),IF('Blank - Request Form'!$F$7=\"CICMP\",IF(OR('Blank - Request Form'!O36=\"000\",'Blank - Request Form'!O36=0),\"\",'Blank - Request Form'!O36),\"\"))","v":""},{"$f":"IF('Blank - Request Form'!$F$6=\"CICMP\",IF(OR('Blank - Request Form'!G36=\"0\",'Blank - Request Form'!G36=\"00000\",'Blank - Request Form'!G36=0),\"\",'Blank - Request Form'!G36),IF('Blank - Request Form'!$F$7=\"CICMP\",IF(OR('Blank - Request Form'!P36=\"0\",'Blank - Request Form'!P36=\"00000\",'Blank - Request Form'!P36=0),\"\",'Blank - Request Form'!P36),\"\"))","v":""},{"$f":"IF('Blank - Request Form'!$F$6=\"CICMP\",IF(OR('Blank - Request Form'!H36=\"0\",'Blank - Request Form'!H36=\"00000\",'Blank - Request Form'!H36=0),\"\",'Blank - Request Form'!H36),IF('Blank - Request Form'!$F$7=\"CICMP\",IF(OR('Blank - Request Form'!Q36=\"0\",'Blank - Request Form'!Q36=\"00000\",'Blank - Request Form'!Q36=0),\"\",'Blank - Request Form'!Q36),\"\"))","v":""},{"$f":"IF('Blank - Request Form'!$F$6=\"CICMP\",IF(OR('Blank - Request Form'!I36=\"0\",'Blank - Request Form'!I36=\"00000\",'Blank - Request Form'!I36=0),\"\",'Blank - Request Form'!I36),IF('Blank - Request Form'!$F$7=\"CICMP\",IF(OR('Blank - Request Form'!R36=\"0\",'Blank - Request Form'!R36=\"00000\",'Blank - Request Form'!R36=0),\"\",'Blank - Request Form'!R36),\"\"))","v":""},null,{"$f":"IF('Blank - Request Form'!$F$6=\"CICMP\",IF('Blank - Request Form'!K36=0,\"\",'Blank - Request Form'!K36),IF('Blank - Request Form'!$F$7=\"CICMP\",IF('Blank - Request Form'!T36=0,\"\",'Blank - Request Form'!T36),\"\"))","v":""},null,null,null,{"$f":"IF(M2<>\"\",'Blank - Request Form'!$M$2,\"\")","v":""},{"$f":"IF('Blank - Request Form'!$F$6=\"CICMP\",IF('Blank - Request Form'!J36=0,\"\",'Blank - Request Form'!J36),IF('Blank - Request Form'!$F$7=\"CICMP\",IF('Blank - Request Form'!S36=0,\"\",'Blank - Request Form'!S36),\"\"))","v":""},{"$f":"IF(M2<>\"\",O2,\"\")","v":""},2,{"$f":"LogNumber","v":0}]
[{"$f":"IF('Blank - Request Form'!$F$6=\"CICMP\",IF('Blank - Request Form'!D37=0,\"\",'Blank - Request Form'!D37),IF('Blank - Request Form'!$F$7=\"CICMP\",IF('Blank - Request Form'!M37=0,\"\",'Blank - Request Form'!M37),\"\"))","v":""},{"$f":"IF('Blank - Request Form'!$F$6=\"CICMP\",IF('Blank - Request Form'!E37=0,\"\",'Blank - Request Form'!E37),IF('Blank - Request Form'!$F$7=\"CICMP\",IF('Blank - Request Form'!N37=0,\"\",'Blank - Request Form'!N37),\"\"))","v":""},{"$f":"IF('Blank - Request Form'!$F$6=\"CICMP\",IF(OR('Blank - Request Form'!F37=\"000\",'Blank - Request Form'!F37=0),\"\",'Blank - Request Form'!F37),IF('Blank - Request Form'!$F$7=\"CICMP\",IF(OR('Blank - Request Form'!O37=\"000\",'Blank - Request Form'!O37=0),\"\",'Blank - Request Form'!O37),\"\"))","v":""},{"$f":"IF('Blank - Request Form'!$F$6=\"CICMP\",IF(OR('Blank - Request Form'!G37=\"0\",'Blank - Request Form'!G37=\"00000\",'Blank - Request Form'!G37=0),\"\",'Blank - Request Form'!G37),IF('Blank - Request Form'!$F$7=\"CICMP\",IF(OR('Blank - Request Form'!P37=\"0\",'Blank - Request Form'!P37=\"00000\",'Blank - Request Form'!P37=0),\"\",'Blank - Request Form'!P37),\"\"))","v":""},{"$f":"IF('Blank - Request Form'!$F$6=\"CICMP\",IF(OR('Blank - Request Form'!H37=\"0\",'Blank - Request Form'!H37=\"00000\",'Blank - Request Form'!H37=0),\"\",'Blank - Request Form'!H37),IF('Blank - Request Form'!$F$7=\"CICMP\",IF(OR('Blank - Request Form'!Q37=\"0\",'Blank - Request Form'!Q37=\"00000\",'Blank - Request Form'!Q37=0),\"\",'Blank - Request Form'!Q37),\"\"))","v":""},{"$f":"IF('Blank - Request Form'!$F$6=\"CICMP\",IF(OR('Blank - Request Form'!I37=\"0\",'Blank - Request Form'!I37=\"00000\",'Blank - Request Form'!I37=0),\"\",'Blank - Request Form'!I37),IF('Blank - Request Form'!$F$7=\"CICMP\",IF(OR('Blank - Request Form'!R37=\"0\",'Blank - Request Form'!R37=\"00000\",'Blank - Request Form'!R37=0),\"\",'Blank - Request Form'!R37),\"\"))","v":""},null,{"$f":"IF('Blank - Request Form'!$F$6=\"CICMP\",IF('Blank - Request Form'!K37=0,\"\",'Blank - Request Form'!K37),IF('Blank - Request Form'!$F$7=\"CICMP\",IF('Blank - Request Form'!T37=0,\"\",'Blank - Request Form'!T37),\"\"))","v":""},null,null,null,{"$f":"IF(M3<>\"\",'Blank - Request Form'!$M$2,\"\")","v":""},{"$f":"IF('Blank - Request Form'!$F$6=\"CICMP\",IF('Blank - Request Form'!J37=0,\"\",'Blank - Request Form'!J37),IF('Blank - Request Form'!$F$7=\"CICMP\",IF('Blank - Request Form'!S37=0,\"\",'Blank - Request Form'!S37),\"\"))","v":""},"",3]
[{"$f":"IF('Blank - Request Form'!$F$6=\"CICMP\",IF('Blank - Request Form'!D38=0,\"\",'Blank - Request Form'!D38),IF('Blank - Request Form'!$F$7=\"CICMP\",IF('Blank - Request Form'!M38=0,\"\",'Blank - Request Form'!M38),\"\"))","v":""},{"$f":"IF('Blank - Request Form'!$F$6=\"CICMP\",IF('Blank - Request Form'!E38=0,\"\",'Blank - Request Form'!E38),IF('Blank - Request Form'!$F$7=\"CICMP\",IF('Blank - Request Form'!N38=0,\"\",'Blank - Request Form'!N38),\"\"))","v":""},{"$f":"IF('Blank - Request Form'!$F$6=\"CICMP\",IF(OR('Blank - Request Form'!F38=\"000\",'Blank - Request Form'!F38=0),\"\",'Blank - Request Form'!F38),IF('Blank - Request Form'!$F$7=\"CICMP\",IF(OR('Blank - Request Form'!O38=\"000\",'Blank - Request Form'!O38=0),\"\",'Blank - Request Form'!O38),\"\"))","v":""},{"$f":"IF('Blank - Request Form'!$F$6=\"CICMP\",IF(OR('Blank - Request Form'!G38=\"0\",'Blank - Request Form'!G38=\"00000\",'Blank - Request Form'!G38=0),\"\",'Blank - Request Form'!G38),IF('Blank - Request Form'!$F$7=\"CICMP\",IF(OR('Blank - Request Form'!P38=\"0\",'Blank - Request Form'!P38=\"00000\",'Blank - Request Form'!P38=0),\"\",'Blank - Request Form'!P38),\"\"))","v":""},{"$f":"IF('Blank - Request Form'!$F$6=\"CICMP\",IF(OR('Blank - Request Form'!H38=\"0\",'Blank - Request Form'!H38=\"00000\",'Blank - Request Form'!H38=0),\"\",'Blank - Request Form'!H38),IF('Blank - Request Form'!$F$7=\"CICMP\",IF(OR('Blank - Request Form'!Q38=\"0\",'Blank - Request Form'!Q38=\"00000\",'Blank - Request Form'!Q38=0),\"\",'Blank - Request Form'!Q38),\"\"))","v":""},{"$f":"IF('Blank - Request Form'!$F$6=\"CICMP\",IF(OR('Blank - Request Form'!I38=\"0\",'Blank - Request Form'!I38=\"00000\",'Blank - Request Form'!I38=0),\"\",'Blank - Request Form'!I38),IF('Blank - Request Form'!$F$7=\"CICMP\",IF(OR('Blank - Request Form'!R38=\"0\",'Blank - Request Form'!R38=\"00000\",'Blank - Request Form'!R38=0),\"\",'Blank - Request Form'!R38),\"\"))","v":""},null,{"$f":"IF('Blank - Request Form'!$F$6=\"CICMP\",IF('Blank - Request Form'!K38=0,\"\",'Blank - Request Form'!K38),IF('Blank - Request Form'!$F$7=\"CICMP\",IF('Blank - Request Form'!T38=0,\"\",'Blank - Request Form'!T38),\"\"))","v":""},null,null,null,{"$f":"IF(M4<>\"\",'Blank - Request Form'!$M$2,\"\")","v":""},{"$f":"IF('Blank - Request Form'!$F$6=\"CICMP\",IF('Blank - Request Form'!J38=0,\"\",'Blank - Request Form'!J38),IF('Blank - Request Form'!$F$7=\"CICMP\",IF('Blank - Request Form'!S38=0,\"\",'Blank - Request Form'!S38),\"\"))","v":""},"",4]
[{"$f":"IF('Blank - Request Form'!$F$6=\"CICMP\",IF('Blank - Request Form'!D39=0,\"\",'Blank - Request Form'!D39),IF('Blank - Request Form'!$F$7=\"CICMP\",IF('Blank - Request Form'!M39=0,\"\",'Blank - Request Form'!M39),\"\"))","v":""},{"$f":"IF('Blank - Request Form'!$F$6=\"CICMP\",IF('Blank - Request Form'!E39=0,\"\",'Blank - Request Form'!E39),IF('Blank - Request Form'!$F$7=\"CICMP\",IF('Blank - Request Form'!N39=0,\"\",'Blank - Request Form'!N39),\"\"))","v":""},{"$f":"IF('Blank - Request Form'!$F$6=\"CICMP\",IF(OR('Blank - Request Form'!F39=\"000\",'Blank - Request Form'!F39=0),\"\",'Blank - Request Form'!F39),IF('Blank - Request Form'!$F$7=\"CICMP\",IF(OR('Blank - Request Form'!O39=\"000\",'Blank - Request Form'!O39=0),\"\",'Blank - Request Form'!O39),\"\"))","v":""},{"$f":"IF('Blank - Request Form'!$F$6=\"CICMP\",IF(OR('Blank - Request Form'!G39=\"0\",'Blank - Request Form'!G39=\"00000\",'Blank - Request Form'!G39=0),\"\",'Blank - Request Form'!G39),IF('Blank - Request Form'!$F$7=\"CICMP\",IF(OR('Blank - Request Form'!P39=\"0\",'Blank - Request Form'!P39=\"00000\",'Blank - Request Form'!P39=0),\"\",'Blank - Request Form'!P39),\"\"))","v":""},{"$f":"IF('Blank - Request Form'!$F$6=\"CICMP\",IF(OR('Blank - Request Form'!H39=\"0\",'Blank - Request Form'!H39=\"00000\",'Blank - Request Form'!H39=0),\"\",'Blank - Request Form'!H39),IF('Blank - Request Form'!$F$7=\"CICMP\",IF(OR('Blank - Request Form'!Q39=\"0\",'Blank - Request Form'!Q39=\"00000\",'Blank - Request Form'!Q39=0),\"\",'Blank - Request Form'!Q39),\"\"))","v":""},{"$f":"IF('Blank - Request Form'!$F$6=\"CICMP\",IF(OR('Blank - Request Form'!I39=\"0\",'Blank - Request Form'!I39=\"00000\",'Blank - Request Form'!I39=0),\"\",'Blank - Request Form'!I39),IF('Blank - Request Form'!$F$7=\"CICMP\",IF(OR('Blank - Request Form'!R39=\"0\",'Blank - Request Form'!R39=\"00000\",'Blank - Request Form'!R39=0),\"\",'Blank - Request Form'!R39),\"\"))","v":""},null,{"$f":"IF('Blank - Request Form'!$F$6=\"CICMP\",IF('Blank - Request Form'!K39=0,\"\",'Blank - Request Form'!K39),IF('Blank - Request Form'!$F$7=\"CICMP\",IF('Blank - Request Form'!T39=0,\"\",'Blank - Request Form'!T39),\"\"))","v":""},null,null,null,{"$f":"IF(M5<>\"\",'Blank - Request Form'!$M$2,\"\")","v":""},{"$f":"IF('Blank - Request Form'!$F$6=\"CICMP\",IF('Blank - Request Form'!J39=0,\"\",'Blank - Request Form'!J39),IF('Blank - Request Form'!$F$7=\"CICMP\",IF('Blank - Request Form'!S39=0,\"\",'Blank - Request Form'!S39),\"\"))","v":""},"",5]
[{"$f":"IF('Blank - Request Form'!$F$6=\"CICMP\",IF('Blank - Request Form'!D40=0,\"\",'Blank - Request Form'!D40),IF('Blank - Request Form'!$F$7=\"CICMP\",IF('Blank - Request Form'!M40=0,\"\",'Blank - Request Form'!M40),\"\"))","v":""},{"$f":"IF('Blank - Request Form'!$F$6=\"CICMP\",IF('Blank - Request Form'!E40=0,\"\",'Blank - Request Form'!E40),IF('Blank - Request Form'!$F$7=\"CICMP\",IF('Blank - Request Form'!N40=0,\"\",'Blank - Request Form'!N40),\"\"))","v":""},{"$f":"IF('Blank - Request Form'!$F$6=\"CICMP\",IF(OR('Blank - Request Form'!F40=\"000\",'Blank - Request Form'!F40=0),\"\",'Blank - Request Form'!F40),IF('Blank - Request Form'!$F$7=\"CICMP\",IF(OR('Blank - Request Form'!O40=\"000\",'Blank - Request Form'!O40=0),\"\",'Blank - Request Form'!O40),\"\"))","v":""},{"$f":"IF('Blank - Request Form'!$F$6=\"CICMP\",IF(OR('Blank - Request Form'!G40=\"0\",'Blank - Request Form'!G40=\"00000\",'Blank - Request Form'!G40=0),\"\",'Blank - Request Form'!G40),IF('Blank - Request Form'!$F$7=\"CICMP\",IF(OR('Blank - Request Form'!P40=\"0\",'Blank - Request Form'!P40=\"00000\",'Blank - Request Form'!P40=0),\"\",'Blank - Request Form'!P40),\"\"))","v":""},{"$f":"IF('Blank - Request Form'!$F$6=\"CICMP\",IF(OR('Blank - Request Form'!H40=\"0\",'Blank - Request Form'!H40=\"00000\",'Blank - Request Form'!H40=0),\"\",'Blank - Request Form'!H40),IF('Blank - Request Form'!$F$7=\"CICMP\",IF(OR('Blank - Request Form'!Q40=\"0\",'Blank - Request Form'!Q40=\"00000\",'Blank - Request Form'!Q40=0),\"\",'Blank - Request Form'!Q40),\"\"))","v":""},{"$f":"IF('Blank - Request Form'!$F$6=\"CICMP\",IF(OR('Blank - Request Form'!I40=\"0\",'Blank - Request Form'!I40=\"00000\",'Blank - Request Form'!I40=0),\"\",'Blank - Request Form'!I40),IF('Blank - Request Form'!$F$7=\"CICMP\",IF(OR('Blank - Request Form'!R40=\"0\",'Blank - Request Form'!R40=\"00000\",'Blank - Request Form'!R40=0),\"\",'Blank - Request Form'!R40),\"\"))","v":""},null,{"$f":"IF('Blank - Request Form'!$F$6=\"CICMP\",IF('Blank - Request Form'!K40=0,\"\",'Blank - Request Form'!K40),IF('Blank - Request Form'!$F$7=\"CICMP\",IF('Blank - Request Form'!T40=0,\"\",'Blank - Request Form'!T40),\"\"))","v":""},null,null,null,{"$f":"IF(M6<>\"\",'Blank - Request Form'!$M$2,\"\")","v":""},{"$f":"IF('Blank - Request Form'!$F$6=\"CICMP\",IF('Blank - Request Form'!J40=0,\"\",'Blank - Request Form'!J40),IF('Blank - Request Form'!$F$7=\"CICMP\",IF('Blank - Request Form'!S40=0,\"\",'Blank - Request Form'!S40),\"\"))","v":""},"",6]
[{"$f":"IF('Blank - Request Form'!$F$6=\"CICMP\",IF('Blank - Request Form'!D41=0,\"\",'Blank - Request Form'!D41),IF('Blank - Request Form'!$F$7=\"CICMP\",IF('Blank - Request Form'!M41=0,\"\",'Blank - Request Form'!M41),\"\"))","v":""},{"$f":"IF('Blank - Request Form'!$F$6=\"CICMP\",IF('Blank - Request Form'!E41=0,\"\",'Blank - Request Form'!E41),IF('Blank - Request Form'!$F$7=\"CICMP\",IF('Blank - Request Form'!N41=0,\"\",'Blank - Request Form'!N41),\"\"))","v":""},{"$f":"IF('Blank - Request Form'!$F$6=\"CICMP\",IF(OR('Blank - Request Form'!F41=\"000\",'Blank - Request Form'!F41=0),\"\",'Blank - Request Form'!F41),IF('Blank - Request Form'!$F$7=\"CICMP\",IF(OR('Blank - Request Form'!O41=\"000\",'Blank - Request Form'!O41=0),\"\",'Blank - Request Form'!O41),\"\"))","v":""},{"$f":"IF('Blank - Request Form'!$F$6=\"CICMP\",IF(OR('Blank - Request Form'!G41=\"0\",'Blank - Request Form'!G41=\"00000\",'Blank - Request Form'!G41=0),\"\",'Blank - Request Form'!G41),IF('Blank - Request Form'!$F$7=\"CICMP\",IF(OR('Blank - Request Form'!P41=\"0\",'Blank - Request Form'!P41=\"00000\",'Blank - Request Form'!P41=0),\"\",'Blank - Request Form'!P41),\"\"))","v":""},{"$f":"IF('Blank - Request Form'!$F$6=\"CICMP\",IF(OR('Blank - Request Form'!H41=\"0\",'Blank - Request Form'!H41=\"00000\",'Blank - Request Form'!H41=0),\"\",'Blank - Request Form'!H41),IF('Blank - Request Form'!$F$7=\"CICMP\",IF(OR('Blank - Request Form'!Q41=\"0\",'Blank - Request Form'!Q41=\"00000\",'Blank - Request Form'!Q41=0),\"\",'Blank - Request Form'!Q41),\"\"))","v":""},{"$f":"IF('Blank - Request Form'!$F$6=\"CICMP\",IF(OR('Blank - Request Form'!I41=\"0\",'Blank - Request Form'!I41=\"00000\",'Blank - Request Form'!I41=0),\"\",'Blank - Request Form'!I41),IF('Blank - Request Form'!$F$7=\"CICMP\",IF(OR('Blank - Request Form'!R41=\"0\",'Blank - Request Form'!R41=\"00000\",'Blank - Request Form'!R41=0),\"\",'Blank - Request Form'!R41),\"\"))","v":""},null,{"$f":"IF('Blank - Request Form'!$F$6=\"CICMP\",IF('Blank - Request Form'!K41=0,\"\",'Blank - Request Form'!K41),IF('Blank - Request Form'!$F$7=\"CICMP\",IF('Blank - Request Form'!T41=0,\"\",'Blank - Request Form'!T41),\"\"))","v":""},null,null,null,{"$f":"IF(M7<>\"\",'Blank - Request Form'!$M$2,\"\")","v":""},{"$f":"IF('Blank - Request Form'!$F$6=\"CICMP\",IF('Blank - Request Form'!J41=0,\"\",'Blank - Request Form'!J41),IF('Blank - Request Form'!$F$7=\"CICMP\",IF('Blank - Request Form'!S41=0,\"\",'Blank - Request Form'!S41),\"\"))","v":""},"",7]
[{"$f":"IF('Blank - Request Form'!$F$6=\"CICMP\",IF('Blank - Request Form'!D42=0,\"\",'Blank - Request Form'!D42),IF('Blank - Request Form'!$F$7=\"CICMP\",IF('Blank - Request Form'!M42=0,\"\",'Blank - Request Form'!M42),\"\"))","v":""},{"$f":"IF('Blank - Request Form'!$F$6=\"CICMP\",IF('Blank - Request Form'!E42=0,\"\",'Blank - Request Form'!E42),IF('Blank - Request Form'!$F$7=\"CICMP\",IF('Blank - Request Form'!N42=0,\"\",'Blank - Request Form'!N42),\"\"))","v":""},{"$f":"IF('Blank - Request Form'!$F$6=\"CICMP\",IF(OR('Blank - Request Form'!F42=\"000\",'Blank - Request Form'!F42=0),\"\",'Blank - Request Form'!F42),IF('Blank - Request Form'!$F$7=\"CICMP\",IF(OR('Blank - Request Form'!O42=\"000\",'Blank - Request Form'!O42=0),\"\",'Blank - Request Form'!O42),\"\"))","v":""},{"$f":"IF('Blank - Request Form'!$F$6=\"CICMP\",IF(OR('Blank - Request Form'!G42=\"0\",'Blank - Request Form'!G42=\"00000\",'Blank - Request Form'!G42=0),\"\",'Blank - Request Form'!G42),IF('Blank - Request Form'!$F$7=\"CICMP\",IF(OR('Blank - Request Form'!P42=\"0\",'Blank - Request Form'!P42=\"00000\",'Blank - Request Form'!P42=0),\"\",'Blank - Request Form'!P42),\"\"))","v":""},{"$f":"IF('Blank - Request Form'!$F$6=\"CICMP\",IF(OR('Blank - Request Form'!H42=\"0\",'Blank - Request Form'!H42=\"00000\",'Blank - Request Form'!H42=0),\"\",'Blank - Request Form'!H42),IF('Blank - Request Form'!$F$7=\"CICMP\",IF(OR('Blank - Request Form'!Q42=\"0\",'Blank - Request Form'!Q42=\"00000\",'Blank - Request Form'!Q42=0),\"\",'Blank - Request Form'!Q42),\"\"))","v":""},{"$f":"IF('Blank - Request Form'!$F$6=\"CICMP\",IF(OR('Blank - Request Form'!I42=\"0\",'Blank - Request Form'!I42=\"00000\",'Blank - Request Form'!I42=0),\"\",'Blank - Request Form'!I42),IF('Blank - Request Form'!$F$7=\"CICMP\",IF(OR('Blank - Request Form'!R42=\"0\",'Blank - Request Form'!R42=\"00000\",'Blank - Request Form'!R42=0),\"\",'Blank - Request Form'!R42),\"\"))","v":""},null,{"$f":"IF('Blank - Request Form'!$F$6=\"CICMP\",IF('Blank - Request Form'!K42=0,\"\",'Blank - Request Form'!K42),IF('Blank - Request Form'!$F$7=\"CICMP\",IF('Blank - Request Form'!T42=0,\"\",'Blank - Request Form'!T42),\"\"))","v":""},null,null,null,{"$f":"IF(M8<>\"\",'Blank - Request Form'!$M$2,\"\")","v":""},{"$f":"IF('Blank - Request Form'!$F$6=\"CICMP\",IF('Blank - Request Form'!J42=0,\"\",'Blank - Request Form'!J42),IF('Blank - Request Form'!$F$7=\"CICMP\",IF('Blank - Request Form'!S42=0,\"\",'Blank - Request Form'!S42),\"\"))","v":""},"",8]
[{"$f":"IF('Blank - Request Form'!$F$6=\"CICMP\",IF('Blank - Request Form'!D43=0,\"\",'Blank - Request Form'!D43),IF('Blank - Request Form'!$F$7=\"CICMP\",IF('Blank - Request Form'!M43=0,\"\",'Blank - Request Form'!M43),\"\"))","v":""},{"$f":"IF('Blank - Request Form'!$F$6=\"CICMP\",IF('Blank - Request Form'!E43=0,\"\",'Blank - Request Form'!E43),IF('Blank - Request Form'!$F$7=\"CICMP\",IF('Blank - Request Form'!N43=0,\"\",'Blank - Request Form'!N43),\"\"))","v":""},{"$f":"IF('Blank - Request Form'!$F$6=\"CICMP\",IF(OR('Blank - Request Form'!F43=\"000\",'Blank - Request Form'!F43=0),\"\",'Blank - Request Form'!F43),IF('Blank - Request Form'!$F$7=\"CICMP\",IF(OR('Blank - Request Form'!O43=\"000\",'Blank - Request Form'!O43=0),\"\",'Blank - Request Form'!O43),\"\"))","v":""},{"$f":"IF('Blank - Request Form'!$F$6=\"CICMP\",IF(OR('Blank - Request Form'!G43=\"0\",'Blank - Request Form'!G43=\"00000\",'Blank - Request Form'!G43=0),\"\",'Blank - Request Form'!G43),IF('Blank - Request Form'!$F$7=\"CICMP\",IF(OR('Blank - Request Form'!P43=\"0\",'Blank - Request Form'!P43=\"00000\",'Blank - Request Form'!P43=0),\"\",'Blank - Request Form'!P43),\"\"))","v":""},{"$f":"IF('Blank - Request Form'!$F$6=\"CICMP\",IF(OR('Blank - Request Form'!H43=\"0\",'Blank - Request Form'!H43=\"00000\",'Blank - Request Form'!H43=0),\"\",'Blank - Request Form'!H43),IF('Blank - Request Form'!$F$7=\"CICMP\",IF(OR('Blank - Request Form'!Q43=\"0\",'Blank - Request Form'!Q43=\"00000\",'Blank - Request Form'!Q43=0),\"\",'Blank - Request Form'!Q43),\"\"))","v":""},{"$f":"IF('Blank - Request Form'!$F$6=\"CICMP\",IF(OR('Blank - Request Form'!I43=\"0\",'Blank - Request Form'!I43=\"00000\",'Blank - Request Form'!I43=0),\"\",'Blank - Request Form'!I43),IF('Blank - Request Form'!$F$7=\"CICMP\",IF(OR('Blank - Request Form'!R43=\"0\",'Blank - Request Form'!R43=\"00000\",'Blank - Request Form'!R43=0),\"\",'Blank - Request Form'!R43),\"\"))","v":""},null,{"$f":"IF('Blank - Request Form'!$F$6=\"CICMP\",IF('Blank - Request Form'!K43=0,\"\",'Blank - Request Form'!K43),IF('Blank - Request Form'!$F$7=\"CICMP\",IF('Blank - Request Form'!T43=0,\"\",'Blank - Request Form'!T43),\"\"))","v":""},null,null,null,{"$f":"IF(M9<>\"\",'Blank - Request Form'!$M$2,\"\")","v":""},{"$f":"IF('Blank - Request Form'!$F$6=\"CICMP\",IF('Blank - Request Form'!J43=0,\"\",'Blank - Request Form'!J43),IF('Blank - Request Form'!$F$7=\"CICMP\",IF('Blank - Request Form'!S43=0,\"\",'Blank - Request Form'!S43),\"\"))","v":""},"",9]
[{"$f":"IF('Blank - Request Form'!$F$6=\"CICMP\",IF('Blank - Request Form'!D44=0,\"\",'Blank - Request Form'!D44),IF('Blank - Request Form'!$F$7=\"CICMP\",IF('Blank - Request Form'!M44=0,\"\",'Blank - Request Form'!M44),\"\"))","v":""},{"$f":"IF('Blank - Request Form'!$F$6=\"CICMP\",IF('Blank - Request Form'!E44=0,\"\",'Blank - Request Form'!E44),IF('Blank - Request Form'!$F$7=\"CICMP\",IF('Blank - Request Form'!N44=0,\"\",'Blank - Request Form'!N44),\"\"))","v":""},{"$f":"IF('Blank - Request Form'!$F$6=\"CICMP\",IF(OR('Blank - Request Form'!F44=\"000\",'Blank - Request Form'!F44=0),\"\",'Blank - Request Form'!F44),IF('Blank - Request Form'!$F$7=\"CICMP\",IF(OR('Blank - Request Form'!O44=\"000\",'Blank - Request Form'!O44=0),\"\",'Blank - Request Form'!O44),\"\"))","v":""},{"$f":"IF('Blank - Request Form'!$F$6=\"CICMP\",IF(OR('Blank - Request Form'!G44=\"0\",'Blank - Request Form'!G44=\"00000\",'Blank - Request Form'!G44=0),\"\",'Blank - Request Form'!G44),IF('Blank - Request Form'!$F$7=\"CICMP\",IF(OR('Blank - Request Form'!P44=\"0\",'Blank - Request Form'!P44=\"00000\",'Blank - Request Form'!P44=0),\"\",'Blank - Request Form'!P44),\"\"))","v":""},{"$f":"IF('Blank - Request Form'!$F$6=\"CICMP\",IF(OR('Blank - Request Form'!H44=\"0\",'Blank - Request Form'!H44=\"00000\",'Blank - Request Form'!H44=0),\"\",'Blank - Request Form'!H44),IF('Blank - Request Form'!$F$7=\"CICMP\",IF(OR('Blank - Request Form'!Q44=\"0\",'Blank - Request Form'!Q44=\"00000\",'Blank - Request Form'!Q44=0),\"\",'Blank - Request Form'!Q44),\"\"))","v":""},{"$f":"IF('Blank - Request Form'!$F$6=\"CICMP\",IF(OR('Blank - Request Form'!I44=\"0\",'Blank - Request Form'!I44=\"00000\",'Blank - Request Form'!I44=0),\"\",'Blank - Request Form'!I44),IF('Blank - Request Form'!$F$7=\"CICMP\",IF(OR('Blank - Request Form'!R44=\"0\",'Blank - Request Form'!R44=\"00000\",'Blank - Request Form'!R44=0),\"\",'Blank - Request Form'!R44),\"\"))","v":""},null,{"$f":"IF('Blank - Request Form'!$F$6=\"CICMP\",IF('Blank - Request Form'!K44=0,\"\",'Blank - Request Form'!K44),IF('Blank - Request Form'!$F$7=\"CICMP\",IF('Blank - Request Form'!T44=0,\"\",'Blank - Request Form'!T44),\"\"))","v":""},null,null,null,{"$f":"IF(M10<>\"\",'Blank - Request Form'!$M$2,\"\")","v":""},{"$f":"IF('Blank - Request Form'!$F$6=\"CICMP\",IF('Blank - Request Form'!J44=0,\"\",'Blank - Request Form'!J44),IF('Blank - Request Form'!$F$7=\"CICMP\",IF('Blank - Request Form'!S44=0,\"\",'Blank - Request Form'!S44),\"\"))","v":""},"",10]
[{"$f":"IF('Blank - Request Form'!$F$6=\"CICMP\",IF('Blank - Request Form'!D45=0,\"\",'Blank - Request Form'!D45),IF('Blank - Request Form'!$F$7=\"CICMP\",IF('Blank - Request Form'!M45=0,\"\",'Blank - Request Form'!M45),\"\"))","v":""},{"$f":"IF('Blank - Request Form'!$F$6=\"CICMP\",IF('Blank - Request Form'!E45=0,\"\",'Blank - Request Form'!E45),IF('Blank - Request Form'!$F$7=\"CICMP\",IF('Blank - Request Form'!N45=0,\"\",'Blank - Request Form'!N45),\"\"))","v":""},{"$f":"IF('Blank - Request Form'!$F$6=\"CICMP\",IF(OR('Blank - Request Form'!F45=\"000\",'Blank - Request Form'!F45=0),\"\",'Blank - Request Form'!F45),IF('Blank - Request Form'!$F$7=\"CICMP\",IF(OR('Blank - Request Form'!O45=\"000\",'Blank - Request Form'!O45=0),\"\",'Blank - Request Form'!O45),\"\"))","v":""},{"$f":"IF('Blank - Request Form'!$F$6=\"CICMP\",IF(OR('Blank - Request Form'!G45=\"0\",'Blank - Request Form'!G45=\"00000\",'Blank - Request Form'!G45=0),\"\",'Blank - Request Form'!G45),IF('Blank - Request Form'!$F$7=\"CICMP\",IF(OR('Blank - Request Form'!P45=\"0\",'Blank - Request Form'!P45=\"00000\",'Blank - Request Form'!P45=0),\"\",'Blank - Request Form'!P45),\"\"))","v":""},{"$f":"IF('Blank - Request Form'!$F$6=\"CICMP\",IF(OR('Blank - Request Form'!H45=\"0\",'Blank - Request Form'!H45=\"00000\",'Blank - Request Form'!H45=0),\"\",'Blank - Request Form'!H45),IF('Blank - Request Form'!$F$7=\"CICMP\",IF(OR('Blank - Request Form'!Q45=\"0\",'Blank - Request Form'!Q45=\"00000\",'Blank - Request Form'!Q45=0),\"\",'Blank - Request Form'!Q45),\"\"))","v":""},{"$f":"IF('Blank - Request Form'!$F$6=\"CICMP\",IF(OR('Blank - Request Form'!I45=\"0\",'Blank - Request Form'!I45=\"00000\",'Blank - Request Form'!I45=0),\"\",'Blank - Request Form'!I45),IF('Blank - Request Form'!$F$7=\"CICMP\",IF(OR('Blank - Request Form'!R45=\"0\",'Blank - Request Form'!R45=\"00000\",'Blank - Request Form'!R45=0),\"\",'Blank - Request Form'!R45),\"\"))","v":""},null,{"$f":"IF('Blank - Request Form'!$F$6=\"CICMP\",IF('Blank - Request Form'!K45=0,\"\",'Blank - Request Form'!K45),IF('Blank - Request Form'!$F$7=\"CICMP\",IF('Blank - Request Form'!T45=0,\"\",'Blank - Request Form'!T45),\"\"))","v":""},null,null,null,{"$f":"IF(M11<>\"\",'Blank - Request Form'!$M$2,\"\")","v":""},{"$f":"IF('Blank - Request Form'!$F$6=\"CICMP\",IF('Blank - Request Form'!J45=0,\"\",'Blank - Request Form'!J45),IF('Blank - Request Form'!$F$7=\"CICMP\",IF('Blank - Request Form'!S45=0,\"\",'Blank - Request Form'!S45),\"\"))","v":""},"",11]
[{"$f":"IF('Blank - Request Form'!$F$6=\"CICMP\",IF('Blank - Request Form'!D46=0,\"\",'Blank - Request Form'!D46),IF('Blank - Request Form'!$F$7=\"CICMP\",IF('Blank - Request Form'!M46=0,\"\",'Blank - Request Form'!M46),\"\"))","v":""},{"$f":"IF('Blank - Request Form'!$F$6=\"CICMP\",IF('Blank - Request Form'!E46=0,\"\",'Blank - Request Form'!E46),IF('Blank - Request Form'!$F$7=\"CICMP\",IF('Blank - Request Form'!N46=0,\"\",'Blank - Request Form'!N46),\"\"))","v":""},{"$f":"IF('Blank - Request Form'!$F$6=\"CICMP\",IF(OR('Blank - Request Form'!F46=\"000\",'Blank - Request Form'!F46=0),\"\",'Blank - Request Form'!F46),IF('Blank - Request Form'!$F$7=\"CICMP\",IF(OR('Blank - Request Form'!O46=\"000\",'Blank - Request Form'!O46=0),\"\",'Blank - Request Form'!O46),\"\"))","v":""},{"$f":"IF('Blank - Request Form'!$F$6=\"CICMP\",IF(OR('Blank - Request Form'!G46=\"0\",'Blank - Request Form'!G46=\"00000\",'Blank - Request Form'!G46=0),\"\",'Blank - Request Form'!G46),IF('Blank - Request Form'!$F$7=\"CICMP\",IF(OR('Blank - Request Form'!P46=\"0\",'Blank - Request Form'!P46=\"00000\",'Blank - Request Form'!P46=0),\"\",'Blank - Request Form'!P46),\"\"))","v":""},{"$f":"IF('Blank - Request Form'!$F$6=\"CICMP\",IF(OR('Blank - Request Form'!H46=\"0\",'Blank - Request Form'!H46=\"00000\",'Blank - Request Form'!H46=0),\"\",'Blank - Request Form'!H46),IF('Blank - Request Form'!$F$7=\"CICMP\",IF(OR('Blank - Request Form'!Q46=\"0\",'Blank - Request Form'!Q46=\"00000\",'Blank - Request Form'!Q46=0),\"\",'Blank - Request Form'!Q46),\"\"))","v":""},{"$f":"IF('Blank - Request Form'!$F$6=\"CICMP\",IF(OR('Blank - Request Form'!I46=\"0\",'Blank - Request Form'!I46=\"00000\",'Blank - Request Form'!I46=0),\"\",'Blank - Request Form'!I46),IF('Blank - Request Form'!$F$7=\"CICMP\",IF(OR('Blank - Request Form'!R46=\"0\",'Blank - Request Form'!R46=\"00000\",'Blank - Request Form'!R46=0),\"\",'Blank - Request Form'!R46),\"\"))","v":""},null,{"$f":"IF('Blank - Request Form'!$F$6=\"CICMP\",IF('Blank - Request Form'!K46=0,\"\",'Blank - Request Form'!K46),IF('Blank - Request Form'!$F$7=\"CICMP\",IF('Blank - Request Form'!T46=0,\"\",'Blank - Request Form'!T46),\"\"))","v":""},null,null,null,{"$f":"IF(M12<>\"\",'Blank - Request Form'!$M$2,\"\")","v":""},{"$f":"IF('Blank - Request Form'!$F$6=\"CICMP\",IF('Blank - Request Form'!J46=0,\"\",'Blank - Request Form'!J46),IF('Blank - Request Form'!$F$7=\"CICMP\",IF('Blank - Request Form'!S46=0,\"\",'Blank - Request Form'!S46),\"\"))","v":""},"",12]
[{"$f":"IF('Blank - Request Form'!$F$6=\"CICMP\",IF('Blank - Request Form'!D47=0,\"\",'Blank - Request Form'!D47),IF('Blank - Request Form'!$F$7=\"CICMP\",IF('Blank - Request Form'!M47=0,\"\",'Blank - Request Form'!M47),\"\"))","v":""},{"$f":"IF('Blank - Request Form'!$F$6=\"CICMP\",IF('Blank - Request Form'!E47=0,\"\",'Blank - Request Form'!E47),IF('Blank - Request Form'!$F$7=\"CICMP\",IF('Blank - Request Form'!N47=0,\"\",'Blank - Request Form'!N47),\"\"))","v":""},{"$f":"IF('Blank - Request Form'!$F$6=\"CICMP\",IF(OR('Blank - Request Form'!F47=\"000\",'Blank - Request Form'!F47=0),\"\",'Blank - Request Form'!F47),IF('Blank - Request Form'!$F$7=\"CICMP\",IF(OR('Blank - Request Form'!O47=\"000\",'Blank - Request Form'!O47=0),\"\",'Blank - Request Form'!O47),\"\"))","v":""},{"$f":"IF('Blank - Request Form'!$F$6=\"CICMP\",IF(OR('Blank - Request Form'!G47=\"0\",'Blank - Request Form'!G47=\"00000\",'Blank - Request Form'!G47=0),\"\",'Blank - Request Form'!G47),IF('Blank - Request Form'!$F$7=\"CICMP\",IF(OR('Blank - Request Form'!P47=\"0\",'Blank - Request Form'!P47=\"00000\",'Blank - Request Form'!P47=0),\"\",'Blank - Request Form'!P47),\"\"))","v":""},{"$f":"IF('Blank - Request Form'!$F$6=\"CICMP\",IF(OR('Blank - Request Form'!H47=\"0\",'Blank - Request Form'!H47=\"00000\",'Blank - Request Form'!H47=0),\"\",'Blank - Request Form'!H47),IF('Blank - Request Form'!$F$7=\"CICMP\",IF(OR('Blank - Request Form'!Q47=\"0\",'Blank - Request Form'!Q47=\"00000\",'Blank - Request Form'!Q47=0),\"\",'Blank - Request Form'!Q47),\"\"))","v":""},{"$f":"IF('Blank - Request Form'!$F$6=\"CICMP\",IF(OR('Blank - Request Form'!I47=\"0\",'Blank - Request Form'!I47=\"00000\",'Blank - Request Form'!I47=0),\"\",'Blank - Request Form'!I47),IF('Blank - Request Form'!$F$7=\"CICMP\",IF(OR('Blank - Request Form'!R47=\"0\",'Blank - Request Form'!R47=\"00000\",'Blank - Request Form'!R47=0),\"\",'Blank - Request Form'!R47),\"\"))","v":""},null,{"$f":"IF('Blank - Request Form'!$F$6=\"CICMP\",IF('Blank - Request Form'!K47=0,\"\",'Blank - Request Form'!K47),IF('Blank - Request Form'!$F$7=\"CICMP\",IF('Blank - Request Form'!T47=0,\"\",'Blank - Request Form'!T47),\"\"))","v":""},null,null,null,{"$f":"IF(M13<>\"\",'Blank - Request Form'!$M$2,\"\")","v":""},{"$f":"IF('Blank - Request Form'!$F$6=\"CICMP\",IF('Blank - Request Form'!J47=0,\"\",'Blank - Request Form'!J47),IF('Blank - Request Form'!$F$7=\"CICMP\",IF('Blank - Request Form'!S47=0,\"\",'Blank - Request Form'!S47),\"\"))","v":""},"",13]
[{"$f":"IF('Blank - Request Form'!$F$6=\"CICMP\",IF('Blank - Request Form'!D48=0,\"\",'Blank - Request Form'!D48),IF('Blank - Request Form'!$F$7=\"CICMP\",IF('Blank - Request Form'!M48=0,\"\",'Blank - Request Form'!M48),\"\"))","v":""},{"$f":"IF('Blank - Request Form'!$F$6=\"CICMP\",IF('Blank - Request Form'!E48=0,\"\",'Blank - Request Form'!E48),IF('Blank - Request Form'!$F$7=\"CICMP\",IF('Blank - Request Form'!N48=0,\"\",'Blank - Request Form'!N48),\"\"))","v":""},{"$f":"IF('Blank - Request Form'!$F$6=\"CICMP\",IF(OR('Blank - Request Form'!F48=\"000\",'Blank - Request Form'!F48=0),\"\",'Blank - Request Form'!F48),IF('Blank - Request Form'!$F$7=\"CICMP\",IF(OR('Blank - Request Form'!O48=\"000\",'Blank - Request Form'!O48=0),\"\",'Blank - Request Form'!O48),\"\"))","v":""},{"$f":"IF('Blank - Request Form'!$F$6=\"CICMP\",IF(OR('Blank - Request Form'!G48=\"0\",'Blank - Request Form'!G48=\"00000\",'Blank - Request Form'!G48=0),\"\",'Blank - Request Form'!G48),IF('Blank - Request Form'!$F$7=\"CICMP\",IF(OR('Blank - Request Form'!P48=\"0\",'Blank - Request Form'!P48=\"00000\",'Blank - Request Form'!P48=0),\"\",'Blank - Request Form'!P48),\"\"))","v":""},{"$f":"IF('Blank - Request Form'!$F$6=\"CICMP\",IF(OR('Blank - Request Form'!H48=\"0\",'Blank - Request Form'!H48=\"00000\",'Blank - Request Form'!H48=0),\"\",'Blank - Request Form'!H48),IF('Blank - Request Form'!$F$7=\"CICMP\",IF(OR('Blank - Request Form'!Q48=\"0\",'Blank - Request Form'!Q48=\"00000\",'Blank - Request Form'!Q48=0),\"\",'Blank - Request Form'!Q48),\"\"))","v":""},{"$f":"IF('Blank - Request Form'!$F$6=\"CICMP\",IF(OR('Blank - Request Form'!I48=\"0\",'Blank - Request Form'!I48=\"00000\",'Blank - Request Form'!I48=0),\"\",'Blank - Request Form'!I48),IF('Blank - Request Form'!$F$7=\"CICMP\",IF(OR('Blank - Request Form'!R48=\"0\",'Blank - Request Form'!R48=\"00000\",'Blank - Request Form'!R48=0),\"\",'Blank - Request Form'!R48),\"\"))","v":""},null,{"$f":"IF('Blank - Request Form'!$F$6=\"CICMP\",IF('Blank - Request Form'!K48=0,\"\",'Blank - Request Form'!K48),IF('Blank - Request Form'!$F$7=\"CICMP\",IF('Blank - Request Form'!T48=0,\"\",'Blank - Request Form'!T48),\"\"))","v":""},null,null,null,{"$f":"IF(M14<>\"\",'Blank - Request Form'!$M$2,\"\")","v":""},{"$f":"IF('Blank - Request Form'!$F$6=\"CICMP\",IF('Blank - Request Form'!J48=0,\"\",'Blank - Request Form'!J48),IF('Blank - Request Form'!$F$7=\"CICMP\",IF('Blank - Request Form'!S48=0,\"\",'Blank - Request Form'!S48),\"\"))","v":""},"",14]
[{"$f":"IF('Blank - Request Form'!$F$6=\"CICMP\",IF('Blank - Request Form'!D49=0,\"\",'Blank - Request Form'!D49),IF('Blank - Request Form'!$F$7=\"CICMP\",IF('Blank - Request Form'!M49=0,\"\",'Blank - Request Form'!M49),\"\"))","v":""},{"$f":"IF('Blank - Request Form'!$F$6=\"CICMP\",IF('Blank - Request Form'!E49=0,\"\",'Blank - Request Form'!E49),IF('Blank - Request Form'!$F$7=\"CICMP\",IF('Blank - Request Form'!N49=0,\"\",'Blank - Request Form'!N49),\"\"))","v":""},{"$f":"IF('Blank - Request Form'!$F$6=\"CICMP\",IF(OR('Blank - Request Form'!F49=\"000\",'Blank - Request Form'!F49=0),\"\",'Blank - Request Form'!F49),IF('Blank - Request Form'!$F$7=\"CICMP\",IF(OR('Blank - Request Form'!O49=\"000\",'Blank - Request Form'!O49=0),\"\",'Blank - Request Form'!O49),\"\"))","v":""},{"$f":"IF('Blank - Request Form'!$F$6=\"CICMP\",IF(OR('Blank - Request Form'!G49=\"0\",'Blank - Request Form'!G49=\"00000\",'Blank - Request Form'!G49=0),\"\",'Blank - Request Form'!G49),IF('Blank - Request Form'!$F$7=\"CICMP\",IF(OR('Blank - Request Form'!P49=\"0\",'Blank - Request Form'!P49=\"00000\",'Blank - Request Form'!P49=0),\"\",'Blank - Request Form'!P49),\"\"))","v":""},{"$f":"IF('Blank - Request Form'!$F$6=\"CICMP\",IF(OR('Blank - Request Form'!H49=\"0\",'Blank - Request Form'!H49=\"00000\",'Blank - Request Form'!H49=0),\"\",'Blank - Request Form'!H49),IF('Blank - Request Form'!$F$7=\"CICMP\",IF(OR('Blank - Request Form'!Q49=\"0\",'Blank - Request Form'!Q49=\"00000\",'Blank - Request Form'!Q49=0),\"\",'Blank - Request Form'!Q49),\"\"))","v":""},{"$f":"IF('Blank - Request Form'!$F$6=\"CICMP\",IF(OR('Blank - Request Form'!I49=\"0\",'Blank - Request Form'!I49=\"00000\",'Blank - Request Form'!I49=0),\"\",'Blank - Request Form'!I49),IF('Blank - Request Form'!$F$7=\"CICMP\",IF(OR('Blank - Request Form'!R49=\"0\",'Blank - Request Form'!R49=\"00000\",'Blank - Request Form'!R49=0),\"\",'Blank - Request Form'!R49),\"\"))","v":""},null,{"$f":"IF('Blank - Request Form'!$F$6=\"CICMP\",IF('Blank - Request Form'!K49=0,\"\",'Blank - Request Form'!K49),IF('Blank - Request Form'!$F$7=\"CICMP\",IF('Blank - Request Form'!T49=0,\"\",'Blank - Request Form'!T49),\"\"))","v":""},null,null,null,{"$f":"IF(M15<>\"\",'Blank - Request Form'!$M$2,\"\")","v":""},{"$f":"IF('Blank - Request Form'!$F$6=\"CICMP\",IF('Blank - Request Form'!J49=0,\"\",'Blank - Request Form'!J49),IF('Blank - Request Form'!$F$7=\"CICMP\",IF('Blank - Request Form'!S49=0,\"\",'Blank - Request Form'!S49),\"\"))","v":""},"",15]
[{"$f":"IF('Blank - Request Form'!$F$6=\"CICMP\",IF('Blank - Request Form'!D50=0,\"\",'Blank - Request Form'!D50),IF('Blank - Request Form'!$F$7=\"CICMP\",IF('Blank - Request Form'!M50=0,\"\",'Blank - Request Form'!M50),\"\"))","v":""},{"$f":"IF('Blank - Request Form'!$F$6=\"CICMP\",IF('Blank - Request Form'!E50=0,\"\",'Blank - Request Form'!E50),IF('Blank - Request Form'!$F$7=\"CICMP\",IF('Blank - Request Form'!N50=0,\"\",'Blank - Request Form'!N50),\"\"))","v":""},{"$f":"IF('Blank - Request Form'!$F$6=\"CICMP\",IF(OR('Blank - Request Form'!F50=\"000\",'Blank - Request Form'!F50=0),\"\",'Blank - Request Form'!F50),IF('Blank - Request Form'!$F$7=\"CICMP\",IF(OR('Blank - Request Form'!O50=\"000\",'Blank - Request Form'!O50=0),\"\",'Blank - Request Form'!O50),\"\"))","v":""},{"$f":"IF('Blank - Request Form'!$F$6=\"CICMP\",IF(OR('Blank - Request Form'!G50=\"0\",'Blank - Request Form'!G50=\"00000\",'Blank - Request Form'!G50=0),\"\",'Blank - Request Form'!G50),IF('Blank - Request Form'!$F$7=\"CICMP\",IF(OR('Blank - Request Form'!P50=\"0\",'Blank - Request Form'!P50=\"00000\",'Blank - Request Form'!P50=0),\"\",'Blank - Request Form'!P50),\"\"))","v":""},{"$f":"IF('Blank - Request Form'!$F$6=\"CICMP\",IF(OR('Blank - Request Form'!H50=\"0\",'Blank - Request Form'!H50=\"00000\",'Blank - Request Form'!H50=0),\"\",'Blank - Request Form'!H50),IF('Blank - Request Form'!$F$7=\"CICMP\",IF(OR('Blank - Request Form'!Q50=\"0\",'Blank - Request Form'!Q50=\"00000\",'Blank - Request Form'!Q50=0),\"\",'Blank - Request Form'!Q50),\"\"))","v":""},{"$f":"IF('Blank - Request Form'!$F$6=\"CICMP\",IF(OR('Blank - Request Form'!I50=\"0\",'Blank - Request Form'!I50=\"00000\",'Blank - Request Form'!I50=0),\"\",'Blank - Request Form'!I50),IF('Blank - Request Form'!$F$7=\"CICMP\",IF(OR('Blank - Request Form'!R50=\"0\",'Blank - Request Form'!R50=\"00000\",'Blank - Request Form'!R50=0),\"\",'Blank - Request Form'!R50),\"\"))","v":""},null,{"$f":"IF('Blank - Request Form'!$F$6=\"CICMP\",IF('Blank - Request Form'!K50=0,\"\",'Blank - Request Form'!K50),IF('Blank - Request Form'!$F$7=\"CICMP\",IF('Blank - Request Form'!T50=0,\"\",'Blank - Request Form'!T50),\"\"))","v":""},null,null,null,{"$f":"IF(M16<>\"\",'Blank - Request Form'!$M$2,\"\")","v":""},{"$f":"IF('Blank - Request Form'!$F$6=\"CICMP\",IF('Blank - Request Form'!J50=0,\"\",'Blank - Request Form'!J50),IF('Blank - Request Form'!$F$7=\"CICMP\",IF('Blank - Request Form'!S50=0,\"\",'Blank - Request Form'!S50),\"\"))","v":""},"",16]
[{"$f":"IF('Blank - Request Form'!$F$6=\"CICMP\",IF('Blank - Request Form'!D51=0,\"\",'Blank - Request Form'!D51),IF('Blank - Request Form'!$F$7=\"CICMP\",IF('Blank - Request Form'!M51=0,\"\",'Blank - Request Form'!M51),\"\"))","v":""},{"$f":"IF('Blank - Request Form'!$F$6=\"CICMP\",IF('Blank - Request Form'!E51=0,\"\",'Blank - Request Form'!E51),IF('Blank - Request Form'!$F$7=\"CICMP\",IF('Blank - Request Form'!N51=0,\"\",'Blank - Request Form'!N51),\"\"))","v":""},{"$f":"IF('Blank - Request Form'!$F$6=\"CICMP\",IF(OR('Blank - Request Form'!F51=\"000\",'Blank - Request Form'!F51=0),\"\",'Blank - Request Form'!F51),IF('Blank - Request Form'!$F$7=\"CICMP\",IF(OR('Blank - Request Form'!O51=\"000\",'Blank - Request Form'!O51=0),\"\",'Blank - Request Form'!O51),\"\"))","v":""},{"$f":"IF('Blank - Request Form'!$F$6=\"CICMP\",IF(OR('Blank - Request Form'!G51=\"0\",'Blank - Request Form'!G51=\"00000\",'Blank - Request Form'!G51=0),\"\",'Blank - Request Form'!G51),IF('Blank - Request Form'!$F$7=\"CICMP\",IF(OR('Blank - Request Form'!P51=\"0\",'Blank - Request Form'!P51=\"00000\",'Blank - Request Form'!P51=0),\"\",'Blank - Request Form'!P51),\"\"))","v":""},{"$f":"IF('Blank - Request Form'!$F$6=\"CICMP\",IF(OR('Blank - Request Form'!H51=\"0\",'Blank - Request Form'!H51=\"00000\",'Blank - Request Form'!H51=0),\"\",'Blank - Request Form'!H51),IF('Blank - Request Form'!$F$7=\"CICMP\",IF(OR('Blank - Request Form'!Q51=\"0\",'Blank - Request Form'!Q51=\"00000\",'Blank - Request Form'!Q51=0),\"\",'Blank - Request Form'!Q51),\"\"))","v":""},{"$f":"IF('Blank - Request Form'!$F$6=\"CICMP\",IF(OR('Blank - Request Form'!I51=\"0\",'Blank - Request Form'!I51=\"00000\",'Blank - Request Form'!I51=0),\"\",'Blank - Request Form'!I51),IF('Blank - Request Form'!$F$7=\"CICMP\",IF(OR('Blank - Request Form'!R51=\"0\",'Blank - Request Form'!R51=\"00000\",'Blank - Request Form'!R51=0),\"\",'Blank - Request Form'!R51),\"\"))","v":""},null,{"$f":"IF('Blank - Request Form'!$F$6=\"CICMP\",IF('Blank - Request Form'!K51=0,\"\",'Blank - Request Form'!K51),IF('Blank - Request Form'!$F$7=\"CICMP\",IF('Blank - Request Form'!T51=0,\"\",'Blank - Request Form'!T51),\"\"))","v":""},null,null,null,{"$f":"IF(M17<>\"\",'Blank - Request Form'!$M$2,\"\")","v":""},{"$f":"IF('Blank - Request Form'!$F$6=\"CICMP\",IF('Blank - Request Form'!J51=0,\"\",'Blank - Request Form'!J51),IF('Blank - Request Form'!$F$7=\"CICMP\",IF('Blank - Request Form'!S51=0,\"\",'Blank - Request Form'!S51),\"\"))","v":""},"",17]
[{"$f":"IF('Blank - Request Form'!$F$6=\"CICMP\",IF('Blank - Request Form'!D52=0,\"\",'Blank - Request Form'!D52),IF('Blank - Request Form'!$F$7=\"CICMP\",IF('Blank - Request Form'!M52=0,\"\",'Blank - Request Form'!M52),\"\"))","v":""},{"$f":"IF('Blank - Request Form'!$F$6=\"CICMP\",IF('Blank - Request Form'!E52=0,\"\",'Blank - Request Form'!E52),IF('Blank - Request Form'!$F$7=\"CICMP\",IF('Blank - Request Form'!N52=0,\"\",'Blank - Request Form'!N52),\"\"))","v":""},{"$f":"IF('Blank - Request Form'!$F$6=\"CICMP\",IF(OR('Blank - Request Form'!F52=\"000\",'Blank - Request Form'!F52=0),\"\",'Blank - Request Form'!F52),IF('Blank - Request Form'!$F$7=\"CICMP\",IF(OR('Blank - Request Form'!O52=\"000\",'Blank - Request Form'!O52=0),\"\",'Blank - Request Form'!O52),\"\"))","v":""},{"$f":"IF('Blank - Request Form'!$F$6=\"CICMP\",IF(OR('Blank - Request Form'!G52=\"0\",'Blank - Request Form'!G52=\"00000\",'Blank - Request Form'!G52=0),\"\",'Blank - Request Form'!G52),IF('Blank - Request Form'!$F$7=\"CICMP\",IF(OR('Blank - Request Form'!P52=\"0\",'Blank - Request Form'!P52=\"00000\",'Blank - Request Form'!P52=0),\"\",'Blank - Request Form'!P52),\"\"))","v":""},{"$f":"IF('Blank - Request Form'!$F$6=\"CICMP\",IF(OR('Blank - Request Form'!H52=\"0\",'Blank - Request Form'!H52=\"00000\",'Blank - Request Form'!H52=0),\"\",'Blank - Request Form'!H52),IF('Blank - Request Form'!$F$7=\"CICMP\",IF(OR('Blank - Request Form'!Q52=\"0\",'Blank - Request Form'!Q52=\"00000\",'Blank - Request Form'!Q52=0),\"\",'Blank - Request Form'!Q52),\"\"))","v":""},{"$f":"IF('Blank - Request Form'!$F$6=\"CICMP\",IF(OR('Blank - Request Form'!I52=\"0\",'Blank - Request Form'!I52=\"00000\",'Blank - Request Form'!I52=0),\"\",'Blank - Request Form'!I52),IF('Blank - Request Form'!$F$7=\"CICMP\",IF(OR('Blank - Request Form'!R52=\"0\",'Blank - Request Form'!R52=\"00000\",'Blank - Request Form'!R52=0),\"\",'Blank - Request Form'!R52),\"\"))","v":""},null,{"$f":"IF('Blank - Request Form'!$F$6=\"CICMP\",IF('Blank - Request Form'!K52=0,\"\",'Blank - Request Form'!K52),IF('Blank - Request Form'!$F$7=\"CICMP\",IF('Blank - Request Form'!T52=0,\"\",'Blank - Request Form'!T52),\"\"))","v":""},null,null,null,{"$f":"IF(M18<>\"\",'Blank - Request Form'!$M$2,\"\")","v":""},{"$f":"IF('Blank - Request Form'!$F$6=\"CICMP\",IF('Blank - Request Form'!J52=0,\"\",'Blank - Request Form'!J52),IF('Blank - Request Form'!$F$7=\"CICMP\",IF('Blank - Request Form'!S52=0,\"\",'Blank - Request Form'!S52),\"\"))","v":""},"",18]
[{"$f":"IF('Blank - Request Form'!$F$6=\"CICMP\",IF('Blank - Request Form'!D53=0,\"\",'Blank - Request Form'!D53),IF('Blank - Request Form'!$F$7=\"CICMP\",IF('Blank - Request Form'!M53=0,\"\",'Blank - Request Form'!M53),\"\"))","v":""},{"$f":"IF('Blank - Request Form'!$F$6=\"CICMP\",IF('Blank - Request Form'!E53=0,\"\",'Blank - Request Form'!E53),IF('Blank - Request Form'!$F$7=\"CICMP\",IF('Blank - Request Form'!N53=0,\"\",'Blank - Request Form'!N53),\"\"))","v":""},{"$f":"IF('Blank - Request Form'!$F$6=\"CICMP\",IF(OR('Blank - Request Form'!F53=\"000\",'Blank - Request Form'!F53=0),\"\",'Blank - Request Form'!F53),IF('Blank - Request Form'!$F$7=\"CICMP\",IF(OR('Blank - Request Form'!O53=\"000\",'Blank - Request Form'!O53=0),\"\",'Blank - Request Form'!O53),\"\"))","v":""},{"$f":"IF('Blank - Request Form'!$F$6=\"CICMP\",IF(OR('Blank - Request Form'!G53=\"0\",'Blank - Request Form'!G53=\"00000\",'Blank - Request Form'!G53=0),\"\",'Blank - Request Form'!G53),IF('Blank - Request Form'!$F$7=\"CICMP\",IF(OR('Blank - Request Form'!P53=\"0\",'Blank - Request Form'!P53=\"00000\",'Blank - Request Form'!P53=0),\"\",'Blank - Request Form'!P53),\"\"))","v":""},{"$f":"IF('Blank - Request Form'!$F$6=\"CICMP\",IF(OR('Blank - Request Form'!H53=\"0\",'Blank - Request Form'!H53=\"00000\",'Blank - Request Form'!H53=0),\"\",'Blank - Request Form'!H53),IF('Blank - Request Form'!$F$7=\"CICMP\",IF(OR('Blank - Request Form'!Q53=\"0\",'Blank - Request Form'!Q53=\"00000\",'Blank - Request Form'!Q53=0),\"\",'Blank - Request Form'!Q53),\"\"))","v":""},{"$f":"IF('Blank - Request Form'!$F$6=\"CICMP\",IF(OR('Blank - Request Form'!I53=\"0\",'Blank - Request Form'!I53=\"00000\",'Blank - Request Form'!I53=0),\"\",'Blank - Request Form'!I53),IF('Blank - Request Form'!$F$7=\"CICMP\",IF(OR('Blank - Request Form'!R53=\"0\",'Blank - Request Form'!R53=\"00000\",'Blank - Request Form'!R53=0),\"\",'Blank - Request Form'!R53),\"\"))","v":""},null,{"$f":"IF('Blank - Request Form'!$F$6=\"CICMP\",IF('Blank - Request Form'!K53=0,\"\",'Blank - Request Form'!K53),IF('Blank - Request Form'!$F$7=\"CICMP\",IF('Blank - Request Form'!T53=0,\"\",'Blank - Request Form'!T53),\"\"))","v":""},null,null,null,{"$f":"IF(M19<>\"\",'Blank - Request Form'!$M$2,\"\")","v":""},{"$f":"IF('Blank - Request Form'!$F$6=\"CICMP\",IF('Blank - Request Form'!J53=0,\"\",'Blank - Request Form'!J53),IF('Blank - Request Form'!$F$7=\"CICMP\",IF('Blank - Request Form'!S53=0,\"\",'Blank - Request Form'!S53),\"\"))","v":""},"",19]
[{"$f":"IF('Blank - Request Form'!$F$6=\"CICMP\",IF('Blank - Request Form'!D54=0,\"\",'Blank - Request Form'!D54),IF('Blank - Request Form'!$F$7=\"CICMP\",IF('Blank - Request Form'!M54=0,\"\",'Blank - Request Form'!M54),\"\"))","v":""},{"$f":"IF('Blank - Request Form'!$F$6=\"CICMP\",IF('Blank - Request Form'!E54=0,\"\",'Blank - Request Form'!E54),IF('Blank - Request Form'!$F$7=\"CICMP\",IF('Blank - Request Form'!N54=0,\"\",'Blank - Request Form'!N54),\"\"))","v":""},{"$f":"IF('Blank - Request Form'!$F$6=\"CICMP\",IF(OR('Blank - Request Form'!F54=\"000\",'Blank - Request Form'!F54=0),\"\",'Blank - Request Form'!F54),IF('Blank - Request Form'!$F$7=\"CICMP\",IF(OR('Blank - Request Form'!O54=\"000\",'Blank - Request Form'!O54=0),\"\",'Blank - Request Form'!O54),\"\"))","v":""},{"$f":"IF('Blank - Request Form'!$F$6=\"CICMP\",IF(OR('Blank - Request Form'!G54=\"0\",'Blank - Request Form'!G54=\"00000\",'Blank - Request Form'!G54=0),\"\",'Blank - Request Form'!G54),IF('Blank - Request Form'!$F$7=\"CICMP\",IF(OR('Blank - Request Form'!P54=\"0\",'Blank - Request Form'!P54=\"00000\",'Blank - Request Form'!P54=0),\"\",'Blank - Request Form'!P54),\"\"))","v":""},{"$f":"IF('Blank - Request Form'!$F$6=\"CICMP\",IF(OR('Blank - Request Form'!H54=\"0\",'Blank - Request Form'!H54=\"00000\",'Blank - Request Form'!H54=0),\"\",'Blank - Request Form'!H54),IF('Blank - Request Form'!$F$7=\"CICMP\",IF(OR('Blank - Request Form'!Q54=\"0\",'Blank - Request Form'!Q54=\"00000\",'Blank - Request Form'!Q54=0),\"\",'Blank - Request Form'!Q54),\"\"))","v":""},{"$f":"IF('Blank - Request Form'!$F$6=\"CICMP\",IF(OR('Blank - Request Form'!I54=\"0\",'Blank - Request Form'!I54=\"00000\",'Blank - Request Form'!I54=0),\"\",'Blank - Request Form'!I54),IF('Blank - Request Form'!$F$7=\"CICMP\",IF(OR('Blank - Request Form'!R54=\"0\",'Blank - Request Form'!R54=\"00000\",'Blank - Request Form'!R54=0),\"\",'Blank - Request Form'!R54),\"\"))","v":""},null,{"$f":"IF('Blank - Request Form'!$F$6=\"CICMP\",IF('Blank - Request Form'!K54=0,\"\",'Blank - Request Form'!K54),IF('Blank - Request Form'!$F$7=\"CICMP\",IF('Blank - Request Form'!T54=0,\"\",'Blank - Request Form'!T54),\"\"))","v":""},null,null,null,{"$f":"IF(M20<>\"\",'Blank - Request Form'!$M$2,\"\")","v":""},{"$f":"IF('Blank - Request Form'!$F$6=\"CICMP\",IF('Blank - Request Form'!J54=0,\"\",'Blank - Request Form'!J54),IF('Blank - Request Form'!$F$7=\"CICMP\",IF('Blank - Request Form'!S54=0,\"\",'Blank - Request Form'!S54),\"\"))","v":""},"",20]
[{"$f":"IF('Blank - Request Form'!$F$6=\"CICMP\",IF('Blank - Request Form'!D55=0,\"\",'Blank - Request Form'!D55),IF('Blank - Request Form'!$F$7=\"CICMP\",IF('Blank - Request Form'!M55=0,\"\",'Blank - Request Form'!M55),\"\"))","v":""},{"$f":"IF('Blank - Request Form'!$F$6=\"CICMP\",IF('Blank - Request Form'!E55=0,\"\",'Blank - Request Form'!E55),IF('Blank - Request Form'!$F$7=\"CICMP\",IF('Blank - Request Form'!N55=0,\"\",'Blank - Request Form'!N55),\"\"))","v":""},{"$f":"IF('Blank - Request Form'!$F$6=\"CICMP\",IF(OR('Blank - Request Form'!F55=\"000\",'Blank - Request Form'!F55=0),\"\",'Blank - Request Form'!F55),IF('Blank - Request Form'!$F$7=\"CICMP\",IF(OR('Blank - Request Form'!O55=\"000\",'Blank - Request Form'!O55=0),\"\",'Blank - Request Form'!O55),\"\"))","v":""},{"$f":"IF('Blank - Request Form'!$F$6=\"CICMP\",IF(OR('Blank - Request Form'!G55=\"0\",'Blank - Request Form'!G55=\"00000\",'Blank - Request Form'!G55=0),\"\",'Blank - Request Form'!G55),IF('Blank - Request Form'!$F$7=\"CICMP\",IF(OR('Blank - Request Form'!P55=\"0\",'Blank - Request Form'!P55=\"00000\",'Blank - Request Form'!P55=0),\"\",'Blank - Request Form'!P55),\"\"))","v":""},{"$f":"IF('Blank - Request Form'!$F$6=\"CICMP\",IF(OR('Blank - Request Form'!H55=\"0\",'Blank - Request Form'!H55=\"00000\",'Blank - Request Form'!H55=0),\"\",'Blank - Request Form'!H55),IF('Blank - Request Form'!$F$7=\"CICMP\",IF(OR('Blank - Request Form'!Q55=\"0\",'Blank - Request Form'!Q55=\"00000\",'Blank - Request Form'!Q55=0),\"\",'Blank - Request Form'!Q55),\"\"))","v":""},{"$f":"IF('Blank - Request Form'!$F$6=\"CICMP\",IF(OR('Blank - Request Form'!I55=\"0\",'Blank - Request Form'!I55=\"00000\",'Blank - Request Form'!I55=0),\"\",'Blank - Request Form'!I55),IF('Blank - Request Form'!$F$7=\"CICMP\",IF(OR('Blank - Request Form'!R55=\"0\",'Blank - Request Form'!R55=\"00000\",'Blank - Request Form'!R55=0),\"\",'Blank - Request Form'!R55),\"\"))","v":""},null,{"$f":"IF('Blank - Request Form'!$F$6=\"CICMP\",IF('Blank - Request Form'!K55=0,\"\",'Blank - Request Form'!K55),IF('Blank - Request Form'!$F$7=\"CICMP\",IF('Blank - Request Form'!T55=0,\"\",'Blank - Request Form'!T55),\"\"))","v":""},null,null,null,{"$f":"IF(M21<>\"\",'Blank - Request Form'!$M$2,\"\")","v":""},{"$f":"IF('Blank - Request Form'!$F$6=\"CICMP\",IF('Blank - Request Form'!J55=0,\"\",'Blank - Request Form'!J55),IF('Blank - Request Form'!$F$7=\"CICMP\",IF('Blank - Request Form'!S55=0,\"\",'Blank - Request Form'!S55),\"\"))","v":""},"",21]
[{"$f":"IF('Blank - Request Form'!$F$6=\"CICMP\",IF('Blank - Request Form'!D56=0,\"\",'Blank - Request Form'!D56),IF('Blank - Request Form'!$F$7=\"CICMP\",IF('Blank - Request Form'!M56=0,\"\",'Blank - Request Form'!M56),\"\"))","v":""},{"$f":"IF('Blank - Request Form'!$F$6=\"CICMP\",IF('Blank - Request Form'!E56=0,\"\",'Blank - Request Form'!E56),IF('Blank - Request Form'!$F$7=\"CICMP\",IF('Blank - Request Form'!N56=0,\"\",'Blank - Request Form'!N56),\"\"))","v":""},{"$f":"IF('Blank - Request Form'!$F$6=\"CICMP\",IF(OR('Blank - Request Form'!F56=\"000\",'Blank - Request Form'!F56=0),\"\",'Blank - Request Form'!F56),IF('Blank - Request Form'!$F$7=\"CICMP\",IF(OR('Blank - Request Form'!O56=\"000\",'Blank - Request Form'!O56=0),\"\",'Blank - Request Form'!O56),\"\"))","v":""},{"$f":"IF('Blank - Request Form'!$F$6=\"CICMP\",IF(OR('Blank - Request Form'!G56=\"0\",'Blank - Request Form'!G56=\"00000\",'Blank - Request Form'!G56=0),\"\",'Blank - Request Form'!G56),IF('Blank - Request Form'!$F$7=\"CICMP\",IF(OR('Blank - Request Form'!P56=\"0\",'Blank - Request Form'!P56=\"00000\",'Blank - Request Form'!P56=0),\"\",'Blank - Request Form'!P56),\"\"))","v":""},{"$f":"IF('Blank - Request Form'!$F$6=\"CICMP\",IF(OR('Blank - Request Form'!H56=\"0\",'Blank - Request Form'!H56=\"00000\",'Blank - Request Form'!H56=0),\"\",'Blank - Request Form'!H56),IF('Blank - Request Form'!$F$7=\"CICMP\",IF(OR('Blank - Request Form'!Q56=\"0\",'Blank - Request Form'!Q56=\"00000\",'Blank - Request Form'!Q56=0),\"\",'Blank - Request Form'!Q56),\"\"))","v":""},{"$f":"IF('Blank - Request Form'!$F$6=\"CICMP\",IF(OR('Blank - Request Form'!I56=\"0\",'Blank - Request Form'!I56=\"00000\",'Blank - Request Form'!I56=0),\"\",'Blank - Request Form'!I56),IF('Blank - Request Form'!$F$7=\"CICMP\",IF(OR('Blank - Request Form'!R56=\"0\",'Blank - Request Form'!R56=\"00000\",'Blank - Request Form'!R56=0),\"\",'Blank - Request Form'!R56),\"\"))","v":""},null,{"$f":"IF('Blank - Request Form'!$F$6=\"CICMP\",IF('Blank - Request Form'!K56=0,\"\",'Blank - Request Form'!K56),IF('Blank - Request Form'!$F$7=\"CICMP\",IF('Blank - Request Form'!T56=0,\"\",'Blank - Request Form'!T56),\"\"))","v":""},null,null,null,{"$f":"IF(M22<>\"\",'Blank - Request Form'!$M$2,\"\")","v":""},{"$f":"IF('Blank - Request Form'!$F$6=\"CICMP\",IF('Blank - Request Form'!J56=0,\"\",'Blank - Request Form'!J56),IF('Blank - Request Form'!$F$7=\"CICMP\",IF('Blank - Request Form'!S56=0,\"\",'Blank - Request Form'!S56),\"\"))","v":""},"",22]
[{"$f":"IF('Blank - Request Form'!$F$6=\"CICMP\",IF('Blank - Request Form'!D57=0,\"\",'Blank - Request Form'!D57),IF('Blank - Request Form'!$F$7=\"CICMP\",IF('Blank - Request Form'!M57=0,\"\",'Blank - Request Form'!M57),\"\"))","v":""},{"$f":"IF('Blank - Request Form'!$F$6=\"CICMP\",IF('Blank - Request Form'!E57=0,\"\",'Blank - Request Form'!E57),IF('Blank - Request Form'!$F$7=\"CICMP\",IF('Blank - Request Form'!N57=0,\"\",'Blank - Request Form'!N57),\"\"))","v":""},{"$f":"IF('Blank - Request Form'!$F$6=\"CICMP\",IF(OR('Blank - Request Form'!F57=\"000\",'Blank - Request Form'!F57=0),\"\",'Blank - Request Form'!F57),IF('Blank - Request Form'!$F$7=\"CICMP\",IF(OR('Blank - Request Form'!O57=\"000\",'Blank - Request Form'!O57=0),\"\",'Blank - Request Form'!O57),\"\"))","v":""},{"$f":"IF('Blank - Request Form'!$F$6=\"CICMP\",IF(OR('Blank - Request Form'!G57=\"0\",'Blank - Request Form'!G57=\"00000\",'Blank - Request Form'!G57=0),\"\",'Blank - Request Form'!G57),IF('Blank - Request Form'!$F$7=\"CICMP\",IF(OR('Blank - Request Form'!P57=\"0\",'Blank - Request Form'!P57=\"00000\",'Blank - Request Form'!P57=0),\"\",'Blank - Request Form'!P57),\"\"))","v":""},{"$f":"IF('Blank - Request Form'!$F$6=\"CICMP\",IF(OR('Blank - Request Form'!H57=\"0\",'Blank - Request Form'!H57=\"00000\",'Blank - Request Form'!H57=0),\"\",'Blank - Request Form'!H57),IF('Blank - Request Form'!$F$7=\"CICMP\",IF(OR('Blank - Request Form'!Q57=\"0\",'Blank - Request Form'!Q57=\"00000\",'Blank - Request Form'!Q57=0),\"\",'Blank - Request Form'!Q57),\"\"))","v":""},{"$f":"IF('Blank - Request Form'!$F$6=\"CICMP\",IF(OR('Blank - Request Form'!I57=\"0\",'Blank - Request Form'!I57=\"00000\",'Blank - Request Form'!I57=0),\"\",'Blank - Request Form'!I57),IF('Blank - Request Form'!$F$7=\"CICMP\",IF(OR('Blank - Request Form'!R57=\"0\",'Blank - Request Form'!R57=\"00000\",'Blank - Request Form'!R57=0),\"\",'Blank - Request Form'!R57),\"\"))","v":""},null,{"$f":"IF('Blank - Request Form'!$F$6=\"CICMP\",IF('Blank - Request Form'!K57=0,\"\",'Blank - Request Form'!K57),IF('Blank - Request Form'!$F$7=\"CICMP\",IF('Blank - Request Form'!T57=0,\"\",'Blank - Request Form'!T57),\"\"))","v":""},null,null,null,{"$f":"IF(M23<>\"\",'Blank - Request Form'!$M$2,\"\")","v":""},{"$f":"IF('Blank - Request Form'!$F$6=\"CICMP\",IF('Blank - Request Form'!J57=0,\"\",'Blank - Request Form'!J57),IF('Blank - Request Form'!$F$7=\"CICMP\",IF('Blank - Request Form'!S57=0,\"\",'Blank - Request Form'!S57),\"\"))","v":""},"",23]
[{"$f":"IF('Blank - Request Form'!$F$6=\"CICMP\",IF('Blank - Request Form'!D58=0,\"\",'Blank - Request Form'!D58),IF('Blank - Request Form'!$F$7=\"CICMP\",IF('Blank - Request Form'!M58=0,\"\",'Blank - Request Form'!M58),\"\"))","v":""},{"$f":"IF('Blank - Request Form'!$F$6=\"CICMP\",IF('Blank - Request Form'!E58=0,\"\",'Blank - Request Form'!E58),IF('Blank - Request Form'!$F$7=\"CICMP\",IF('Blank - Request Form'!N58=0,\"\",'Blank - Request Form'!N58),\"\"))","v":""},{"$f":"IF('Blank - Request Form'!$F$6=\"CICMP\",IF(OR('Blank - Request Form'!F58=\"000\",'Blank - Request Form'!F58=0),\"\",'Blank - Request Form'!F58),IF('Blank - Request Form'!$F$7=\"CICMP\",IF(OR('Blank - Request Form'!O58=\"000\",'Blank - Request Form'!O58=0),\"\",'Blank - Request Form'!O58),\"\"))","v":""},{"$f":"IF('Blank - Request Form'!$F$6=\"CICMP\",IF(OR('Blank - Request Form'!G58=\"0\",'Blank - Request Form'!G58=\"00000\",'Blank - Request Form'!G58=0),\"\",'Blank - Request Form'!G58),IF('Blank - Request Form'!$F$7=\"CICMP\",IF(OR('Blank - Request Form'!P58=\"0\",'Blank - Request Form'!P58=\"00000\",'Blank - Request Form'!P58=0),\"\",'Blank - Request Form'!P58),\"\"))","v":""},{"$f":"IF('Blank - Request Form'!$F$6=\"CICMP\",IF(OR('Blank - Request Form'!H58=\"0\",'Blank - Request Form'!H58=\"00000\",'Blank - Request Form'!H58=0),\"\",'Blank - Request Form'!H58),IF('Blank - Request Form'!$F$7=\"CICMP\",IF(OR('Blank - Request Form'!Q58=\"0\",'Blank - Request Form'!Q58=\"00000\",'Blank - Request Form'!Q58=0),\"\",'Blank - Request Form'!Q58),\"\"))","v":""},{"$f":"IF('Blank - Request Form'!$F$6=\"CICMP\",IF(OR('Blank - Request Form'!I58=\"0\",'Blank - Request Form'!I58=\"00000\",'Blank - Request Form'!I58=0),\"\",'Blank - Request Form'!I58),IF('Blank - Request Form'!$F$7=\"CICMP\",IF(OR('Blank - Request Form'!R58=\"0\",'Blank - Request Form'!R58=\"00000\",'Blank - Request Form'!R58=0),\"\",'Blank - Request Form'!R58),\"\"))","v":""},null,{"$f":"IF('Blank - Request Form'!$F$6=\"CICMP\",IF('Blank - Request Form'!K58=0,\"\",'Blank - Request Form'!K58),IF('Blank - Request Form'!$F$7=\"CICMP\",IF('Blank - Request Form'!T58=0,\"\",'Blank - Request Form'!T58),\"\"))","v":""},null,null,null,{"$f":"IF(M24<>\"\",'Blank - Request Form'!$M$2,\"\")","v":""},{"$f":"IF('Blank - Request Form'!$F$6=\"CICMP\",IF('Blank - Request Form'!J58=0,\"\",'Blank - Request Form'!J58),IF('Blank - Request Form'!$F$7=\"CICMP\",IF('Blank - Request Form'!S58=0,\"\",'Blank - Request Form'!S58),\"\"))","v":""},"",24]
[{"$f":"IF('Blank - Request Form'!$F$6=\"CICMP\",IF('Blank - Request Form'!D59=0,\"\",'Blank - Request Form'!D59),IF('Blank - Request Form'!$F$7=\"CICMP\",IF('Blank - Request Form'!M59=0,\"\",'Blank - Request Form'!M59),\"\"))","v":""},{"$f":"IF('Blank - Request Form'!$F$6=\"CICMP\",IF('Blank - Request Form'!E59=0,\"\",'Blank - Request Form'!E59),IF('Blank - Request Form'!$F$7=\"CICMP\",IF('Blank - Request Form'!N59=0,\"\",'Blank - Request Form'!N59),\"\"))","v":""},{"$f":"IF('Blank - Request Form'!$F$6=\"CICMP\",IF(OR('Blank - Request Form'!F59=\"000\",'Blank - Request Form'!F59=0),\"\",'Blank - Request Form'!F59),IF('Blank - Request Form'!$F$7=\"CICMP\",IF(OR('Blank - Request Form'!O59=\"000\",'Blank - Request Form'!O59=0),\"\",'Blank - Request Form'!O59),\"\"))","v":""},{"$f":"IF('Blank - Request Form'!$F$6=\"CICMP\",IF(OR('Blank - Request Form'!G59=\"0\",'Blank - Request Form'!G59=\"00000\",'Blank - Request Form'!G59=0),\"\",'Blank - Request Form'!G59),IF('Blank - Request Form'!$F$7=\"CICMP\",IF(OR('Blank - Request Form'!P59=\"0\",'Blank - Request Form'!P59=\"00000\",'Blank - Request Form'!P59=0),\"\",'Blank - Request Form'!P59),\"\"))","v":""},{"$f":"IF('Blank - Request Form'!$F$6=\"CICMP\",IF(OR('Blank - Request Form'!H59=\"0\",'Blank - Request Form'!H59=\"00000\",'Blank - Request Form'!H59=0),\"\",'Blank - Request Form'!H59),IF('Blank - Request Form'!$F$7=\"CICMP\",IF(OR('Blank - Request Form'!Q59=\"0\",'Blank - Request Form'!Q59=\"00000\",'Blank - Request Form'!Q59=0),\"\",'Blank - Request Form'!Q59),\"\"))","v":""},{"$f":"IF('Blank - Request Form'!$F$6=\"CICMP\",IF(OR('Blank - Request Form'!I59=\"0\",'Blank - Request Form'!I59=\"00000\",'Blank - Request Form'!I59=0),\"\",'Blank - Request Form'!I59),IF('Blank - Request Form'!$F$7=\"CICMP\",IF(OR('Blank - Request Form'!R59=\"0\",'Blank - Request Form'!R59=\"00000\",'Blank - Request Form'!R59=0),\"\",'Blank - Request Form'!R59),\"\"))","v":""},null,{"$f":"IF('Blank - Request Form'!$F$6=\"CICMP\",IF('Blank - Request Form'!K59=0,\"\",'Blank - Request Form'!K59),IF('Blank - Request Form'!$F$7=\"CICMP\",IF('Blank - Request Form'!T59=0,\"\",'Blank - Request Form'!T59),\"\"))","v":""},null,null,null,{"$f":"IF(M25<>\"\",'Blank - Request Form'!$M$2,\"\")","v":""},{"$f":"IF('Blank - Request Form'!$F$6=\"CICMP\",IF('Blank - Request Form'!J59=0,\"\",'Blank - Request Form'!J59),IF('Blank - Request Form'!$F$7=\"CICMP\",IF('Blank - Request Form'!S59=0,\"\",'Blank - Request Form'!S59),\"\"))","v":""},"",25]
[{"$f":"IF('Blank - Request Form'!$F$6=\"CICMP\",IF('Blank - Request Form'!D60=0,\"\",'Blank - Request Form'!D60),IF('Blank - Request Form'!$F$7=\"CICMP\",IF('Blank - Request Form'!M60=0,\"\",'Blank - Request Form'!M60),\"\"))","v":""},{"$f":"IF('Blank - Request Form'!$F$6=\"CICMP\",IF('Blank - Request Form'!E60=0,\"\",'Blank - Request Form'!E60),IF('Blank - Request Form'!$F$7=\"CICMP\",IF('Blank - Request Form'!N60=0,\"\",'Blank - Request Form'!N60),\"\"))","v":""},{"$f":"IF('Blank - Request Form'!$F$6=\"CICMP\",IF(OR('Blank - Request Form'!F60=\"000\",'Blank - Request Form'!F60=0),\"\",'Blank - Request Form'!F60),IF('Blank - Request Form'!$F$7=\"CICMP\",IF(OR('Blank - Request Form'!O60=\"000\",'Blank - Request Form'!O60=0),\"\",'Blank - Request Form'!O60),\"\"))","v":""},{"$f":"IF('Blank - Request Form'!$F$6=\"CICMP\",IF(OR('Blank - Request Form'!G60=\"0\",'Blank - Request Form'!G60=\"00000\",'Blank - Request Form'!G60=0),\"\",'Blank - Request Form'!G60),IF('Blank - Request Form'!$F$7=\"CICMP\",IF(OR('Blank - Request Form'!P60=\"0\",'Blank - Request Form'!P60=\"00000\",'Blank - Request Form'!P60=0),\"\",'Blank - Request Form'!P60),\"\"))","v":""},{"$f":"IF('Blank - Request Form'!$F$6=\"CICMP\",IF(OR('Blank - Request Form'!H60=\"0\",'Blank - Request Form'!H60=\"00000\",'Blank - Request Form'!H60=0),\"\",'Blank - Request Form'!H60),IF('Blank - Request Form'!$F$7=\"CICMP\",IF(OR('Blank - Request Form'!Q60=\"0\",'Blank - Request Form'!Q60=\"00000\",'Blank - Request Form'!Q60=0),\"\",'Blank - Request Form'!Q60),\"\"))","v":""},{"$f":"IF('Blank - Request Form'!$F$6=\"CICMP\",IF(OR('Blank - Request Form'!I60=\"0\",'Blank - Request Form'!I60=\"00000\",'Blank - Request Form'!I60=0),\"\",'Blank - Request Form'!I60),IF('Blank - Request Form'!$F$7=\"CICMP\",IF(OR('Blank - Request Form'!R60=\"0\",'Blank - Request Form'!R60=\"00000\",'Blank - Request Form'!R60=0),\"\",'Blank - Request Form'!R60),\"\"))","v":""},null,{"$f":"IF('Blank - Request Form'!$F$6=\"CICMP\",IF('Blank - Request Form'!K60=0,\"\",'Blank - Request Form'!K60),IF('Blank - Request Form'!$F$7=\"CICMP\",IF('Blank - Request Form'!T60=0,\"\",'Blank - Request Form'!T60),\"\"))","v":""},null,null,null,{"$f":"IF(M26<>\"\",'Blank - Request Form'!$M$2,\"\")","v":""},{"$f":"IF('Blank - Request Form'!$F$6=\"CICMP\",IF('Blank - Request Form'!J60=0,\"\",'Blank - Request Form'!J60),IF('Blank - Request Form'!$F$7=\"CICMP\",IF('Blank - Request Form'!S60=0,\"\",'Blank - Request Form'!S60),\"\"))","v":""},"",26]
[{"$f":"IF('Blank - Request Form'!$F$6=\"CICMP\",IF('Blank - Request Form'!D61=0,\"\",'Blank - Request Form'!D61),IF('Blank - Request Form'!$F$7=\"CICMP\",IF('Blank - Request Form'!M61=0,\"\",'Blank - Request Form'!M61),\"\"))","v":""},{"$f":"IF('Blank - Request Form'!$F$6=\"CICMP\",IF('Blank - Request Form'!E61=0,\"\",'Blank - Request Form'!E61),IF('Blank - Request Form'!$F$7=\"CICMP\",IF('Blank - Request Form'!N61=0,\"\",'Blank - Request Form'!N61),\"\"))","v":""},{"$f":"IF('Blank - Request Form'!$F$6=\"CICMP\",IF(OR('Blank - Request Form'!F61=\"000\",'Blank - Request Form'!F61=0),\"\",'Blank - Request Form'!F61),IF('Blank - Request Form'!$F$7=\"CICMP\",IF(OR('Blank - Request Form'!O61=\"000\",'Blank - Request Form'!O61=0),\"\",'Blank - Request Form'!O61),\"\"))","v":""},{"$f":"IF('Blank - Request Form'!$F$6=\"CICMP\",IF(OR('Blank - Request Form'!G61=\"0\",'Blank - Request Form'!G61=\"00000\",'Blank - Request Form'!G61=0),\"\",'Blank - Request Form'!G61),IF('Blank - Request Form'!$F$7=\"CICMP\",IF(OR('Blank - Request Form'!P61=\"0\",'Blank - Request Form'!P61=\"00000\",'Blank - Request Form'!P61=0),\"\",'Blank - Request Form'!P61),\"\"))","v":""},{"$f":"IF('Blank - Request Form'!$F$6=\"CICMP\",IF(OR('Blank - Request Form'!H61=\"0\",'Blank - Request Form'!H61=\"00000\",'Blank - Request Form'!H61=0),\"\",'Blank - Request Form'!H61),IF('Blank - Request Form'!$F$7=\"CICMP\",IF(OR('Blank - Request Form'!Q61=\"0\",'Blank - Request Form'!Q61=\"00000\",'Blank - Request Form'!Q61=0),\"\",'Blank - Request Form'!Q61),\"\"))","v":""},{"$f":"IF('Blank - Request Form'!$F$6=\"CICMP\",IF(OR('Blank - Request Form'!I61=\"0\",'Blank - Request Form'!I61=\"00000\",'Blank - Request Form'!I61=0),\"\",'Blank - Request Form'!I61),IF('Blank - Request Form'!$F$7=\"CICMP\",IF(OR('Blank - Request Form'!R61=\"0\",'Blank - Request Form'!R61=\"00000\",'Blank - Request Form'!R61=0),\"\",'Blank - Request Form'!R61),\"\"))","v":""},null,{"$f":"IF('Blank - Request Form'!$F$6=\"CICMP\",IF('Blank - Request Form'!K61=0,\"\",'Blank - Request Form'!K61),IF('Blank - Request Form'!$F$7=\"CICMP\",IF('Blank - Request Form'!T61=0,\"\",'Blank - Request Form'!T61),\"\"))","v":""},null,null,null,{"$f":"IF(M27<>\"\",'Blank - Request Form'!$M$2,\"\")","v":""},{"$f":"IF('Blank - Request Form'!$F$6=\"CICMP\",IF('Blank - Request Form'!J61=0,\"\",'Blank - Request Form'!J61),IF('Blank - Request Form'!$F$7=\"CICMP\",IF('Blank - Request Form'!S61=0,\"\",'Blank - Request Form'!S61),\"\"))","v":""},"",27]
[{"$f":"IF('Blank - Request Form'!$F$6=\"CICMP\",IF('Blank - Request Form'!D62=0,\"\",'Blank - Request Form'!D62),IF('Blank - Request Form'!$F$7=\"CICMP\",IF('Blank - Request Form'!M62=0,\"\",'Blank - Request Form'!M62),\"\"))","v":""},{"$f":"IF('Blank - Request Form'!$F$6=\"CICMP\",IF('Blank - Request Form'!E62=0,\"\",'Blank - Request Form'!E62),IF('Blank - Request Form'!$F$7=\"CICMP\",IF('Blank - Request Form'!N62=0,\"\",'Blank - Request Form'!N62),\"\"))","v":""},{"$f":"IF('Blank - Request Form'!$F$6=\"CICMP\",IF(OR('Blank - Request Form'!F62=\"000\",'Blank - Request Form'!F62=0),\"\",'Blank - Request Form'!F62),IF('Blank - Request Form'!$F$7=\"CICMP\",IF(OR('Blank - Request Form'!O62=\"000\",'Blank - Request Form'!O62=0),\"\",'Blank - Request Form'!O62),\"\"))","v":""},{"$f":"IF('Blank - Request Form'!$F$6=\"CICMP\",IF(OR('Blank - Request Form'!G62=\"0\",'Blank - Request Form'!G62=\"00000\",'Blank - Request Form'!G62=0),\"\",'Blank - Request Form'!G62),IF('Blank - Request Form'!$F$7=\"CICMP\",IF(OR('Blank - Request Form'!P62=\"0\",'Blank - Request Form'!P62=\"00000\",'Blank - Request Form'!P62=0),\"\",'Blank - Request Form'!P62),\"\"))","v":""},{"$f":"IF('Blank - Request Form'!$F$6=\"CICMP\",IF(OR('Blank - Request Form'!H62=\"0\",'Blank - Request Form'!H62=\"00000\",'Blank - Request Form'!H62=0),\"\",'Blank - Request Form'!H62),IF('Blank - Request Form'!$F$7=\"CICMP\",IF(OR('Blank - Request Form'!Q62=\"0\",'Blank - Request Form'!Q62=\"00000\",'Blank - Request Form'!Q62=0),\"\",'Blank - Request Form'!Q62),\"\"))","v":""},{"$f":"IF('Blank - Request Form'!$F$6=\"CICMP\",IF(OR('Blank - Request Form'!I62=\"0\",'Blank - Request Form'!I62=\"00000\",'Blank - Request Form'!I62=0),\"\",'Blank - Request Form'!I62),IF('Blank - Request Form'!$F$7=\"CICMP\",IF(OR('Blank - Request Form'!R62=\"0\",'Blank - Request Form'!R62=\"00000\",'Blank - Request Form'!R62=0),\"\",'Blank - Request Form'!R62),\"\"))","v":""},null,{"$f":"IF('Blank - Request Form'!$F$6=\"CICMP\",IF('Blank - Request Form'!K62=0,\"\",'Blank - Request Form'!K62),IF('Blank - Request Form'!$F$7=\"CICMP\",IF('Blank - Request Form'!T62=0,\"\",'Blank - Request Form'!T62),\"\"))","v":""},null,null,null,{"$f":"IF(M28<>\"\",'Blank - Request Form'!$M$2,\"\")","v":""},{"$f":"IF('Blank - Request Form'!$F$6=\"CICMP\",IF('Blank - Request Form'!J62=0,\"\",'Blank - Request Form'!J62),IF('Blank - Request Form'!$F$7=\"CICMP\",IF('Blank - Request Form'!S62=0,\"\",'Blank - Request Form'!S62),\"\"))","v":""},"",28]
[{"$f":"IF('Blank - Request Form'!$F$6=\"CICMP\",IF('Blank - Request Form'!D63=0,\"\",'Blank - Request Form'!D63),IF('Blank - Request Form'!$F$7=\"CICMP\",IF('Blank - Request Form'!M63=0,\"\",'Blank - Request Form'!M63),\"\"))","v":""},{"$f":"IF('Blank - Request Form'!$F$6=\"CICMP\",IF('Blank - Request Form'!E63=0,\"\",'Blank - Request Form'!E63),IF('Blank - Request Form'!$F$7=\"CICMP\",IF('Blank - Request Form'!N63=0,\"\",'Blank - Request Form'!N63),\"\"))","v":""},{"$f":"IF('Blank - Request Form'!$F$6=\"CICMP\",IF(OR('Blank - Request Form'!F63=\"000\",'Blank - Request Form'!F63=0),\"\",'Blank - Request Form'!F63),IF('Blank - Request Form'!$F$7=\"CICMP\",IF(OR('Blank - Request Form'!O63=\"000\",'Blank - Request Form'!O63=0),\"\",'Blank - Request Form'!O63),\"\"))","v":""},{"$f":"IF('Blank - Request Form'!$F$6=\"CICMP\",IF(OR('Blank - Request Form'!G63=\"0\",'Blank - Request Form'!G63=\"00000\",'Blank - Request Form'!G63=0),\"\",'Blank - Request Form'!G63),IF('Blank - Request Form'!$F$7=\"CICMP\",IF(OR('Blank - Request Form'!P63=\"0\",'Blank - Request Form'!P63=\"00000\",'Blank - Request Form'!P63=0),\"\",'Blank - Request Form'!P63),\"\"))","v":""},{"$f":"IF('Blank - Request Form'!$F$6=\"CICMP\",IF(OR('Blank - Request Form'!H63=\"0\",'Blank - Request Form'!H63=\"00000\",'Blank - Request Form'!H63=0),\"\",'Blank - Request Form'!H63),IF('Blank - Request Form'!$F$7=\"CICMP\",IF(OR('Blank - Request Form'!Q63=\"0\",'Blank - Request Form'!Q63=\"00000\",'Blank - Request Form'!Q63=0),\"\",'Blank - Request Form'!Q63),\"\"))","v":""},{"$f":"IF('Blank - Request Form'!$F$6=\"CICMP\",IF(OR('Blank - Request Form'!I63=\"0\",'Blank - Request Form'!I63=\"00000\",'Blank - Request Form'!I63=0),\"\",'Blank - Request Form'!I63),IF('Blank - Request Form'!$F$7=\"CICMP\",IF(OR('Blank - Request Form'!R63=\"0\",'Blank - Request Form'!R63=\"00000\",'Blank - Request Form'!R63=0),\"\",'Blank - Request Form'!R63),\"\"))","v":""},null,{"$f":"IF('Blank - Request Form'!$F$6=\"CICMP\",IF('Blank - Request Form'!K63=0,\"\",'Blank - Request Form'!K63),IF('Blank - Request Form'!$F$7=\"CICMP\",IF('Blank - Request Form'!T63=0,\"\",'Blank - Request Form'!T63),\"\"))","v":""},null,null,null,{"$f":"IF(M29<>\"\",'Blank - Request Form'!$M$2,\"\")","v":""},{"$f":"IF('Blank - Request Form'!$F$6=\"CICMP\",IF('Blank - Request Form'!J63=0,\"\",'Blank - Request Form'!J63),IF('Blank - Request Form'!$F$7=\"CICMP\",IF('Blank - Request Form'!S63=0,\"\",'Blank - Request Form'!S63),\"\"))","v":""},"",29]
[{"$f":"IF('Blank - Request Form'!$F$6=\"CICMP\",IF('Blank - Request Form'!D64=0,\"\",'Blank - Request Form'!D64),IF('Blank - Request Form'!$F$7=\"CICMP\",IF('Blank - Request Form'!M64=0,\"\",'Blank - Request Form'!M64),\"\"))","v":""},{"$f":"IF('Blank - Request Form'!$F$6=\"CICMP\",IF('Blank - Request Form'!E64=0,\"\",'Blank - Request Form'!E64),IF('Blank - Request Form'!$F$7=\"CICMP\",IF('Blank - Request Form'!N64=0,\"\",'Blank - Request Form'!N64),\"\"))","v":""},{"$f":"IF('Blank - Request Form'!$F$6=\"CICMP\",IF(OR('Blank - Request Form'!F64=\"000\",'Blank - Request Form'!F64=0),\"\",'Blank - Request Form'!F64),IF('Blank - Request Form'!$F$7=\"CICMP\",IF(OR('Blank - Request Form'!O64=\"000\",'Blank - Request Form'!O64=0),\"\",'Blank - Request Form'!O64),\"\"))","v":""},{"$f":"IF('Blank - Request Form'!$F$6=\"CICMP\",IF(OR('Blank - Request Form'!G64=\"0\",'Blank - Request Form'!G64=\"00000\",'Blank - Request Form'!G64=0),\"\",'Blank - Request Form'!G64),IF('Blank - Request Form'!$F$7=\"CICMP\",IF(OR('Blank - Request Form'!P64=\"0\",'Blank - Request Form'!P64=\"00000\",'Blank - Request Form'!P64=0),\"\",'Blank - Request Form'!P64),\"\"))","v":""},{"$f":"IF('Blank - Request Form'!$F$6=\"CICMP\",IF(OR('Blank - Request Form'!H64=\"0\",'Blank - Request Form'!H64=\"00000\",'Blank - Request Form'!H64=0),\"\",'Blank - Request Form'!H64),IF('Blank - Request Form'!$F$7=\"CICMP\",IF(OR('Blank - Request Form'!Q64=\"0\",'Blank - Request Form'!Q64=\"00000\",'Blank - Request Form'!Q64=0),\"\",'Blank - Request Form'!Q64),\"\"))","v":""},{"$f":"IF('Blank - Request Form'!$F$6=\"CICMP\",IF(OR('Blank - Request Form'!I64=\"0\",'Blank - Request Form'!I64=\"00000\",'Blank - Request Form'!I64=0),\"\",'Blank - Request Form'!I64),IF('Blank - Request Form'!$F$7=\"CICMP\",IF(OR('Blank - Request Form'!R64=\"0\",'Blank - Request Form'!R64=\"00000\",'Blank - Request Form'!R64=0),\"\",'Blank - Request Form'!R64),\"\"))","v":""},null,{"$f":"IF('Blank - Request Form'!$F$6=\"CICMP\",IF('Blank - Request Form'!K64=0,\"\",'Blank - Request Form'!K64),IF('Blank - Request Form'!$F$7=\"CICMP\",IF('Blank - Request Form'!T64=0,\"\",'Blank - Request Form'!T64),\"\"))","v":""},null,null,null,{"$f":"IF(M30<>\"\",'Blank - Request Form'!$M$2,\"\")","v":""},{"$f":"IF('Blank - Request Form'!$F$6=\"CICMP\",IF('Blank - Request Form'!J64=0,\"\",'Blank - Request Form'!J64),IF('Blank - Request Form'!$F$7=\"CICMP\",IF('Blank - Request Form'!S64=0,\"\",'Blank - Request Form'!S64),\"\"))","v":""},"",30]
[{"$f":"IF('Blank - Request Form'!$F$6=\"CICMP\",IF('Blank - Request Form'!D65=0,\"\",'Blank - Request Form'!D65),IF('Blank - Request Form'!$F$7=\"CICMP\",IF('Blank - Request Form'!M65=0,\"\",'Blank - Request Form'!M65),\"\"))","v":""},{"$f":"IF('Blank - Request Form'!$F$6=\"CICMP\",IF('Blank - Request Form'!E65=0,\"\",'Blank - Request Form'!E65),IF('Blank - Request Form'!$F$7=\"CICMP\",IF('Blank - Request Form'!N65=0,\"\",'Blank - Request Form'!N65),\"\"))","v":""},{"$f":"IF('Blank - Request Form'!$F$6=\"CICMP\",IF(OR('Blank - Request Form'!F65=\"000\",'Blank - Request Form'!F65=0),\"\",'Blank - Request Form'!F65),IF('Blank - Request Form'!$F$7=\"CICMP\",IF(OR('Blank - Request Form'!O65=\"000\",'Blank - Request Form'!O65=0),\"\",'Blank - Request Form'!O65),\"\"))","v":""},{"$f":"IF('Blank - Request Form'!$F$6=\"CICMP\",IF(OR('Blank - Request Form'!G65=\"0\",'Blank - Request Form'!G65=\"00000\",'Blank - Request Form'!G65=0),\"\",'Blank - Request Form'!G65),IF('Blank - Request Form'!$F$7=\"CICMP\",IF(OR('Blank - Request Form'!P65=\"0\",'Blank - Request Form'!P65=\"00000\",'Blank - Request Form'!P65=0),\"\",'Blank - Request Form'!P65),\"\"))","v":""},{"$f":"IF('Blank - Request Form'!$F$6=\"CICMP\",IF(OR('Blank - Request Form'!H65=\"0\",'Blank - Request Form'!H65=\"00000\",'Blank - Request Form'!H65=0),\"\",'Blank - Request Form'!H65),IF('Blank - Request Form'!$F$7=\"CICMP\",IF(OR('Blank - Request Form'!Q65=\"0\",'Blank - Request Form'!Q65=\"00000\",'Blank - Request Form'!Q65=0),\"\",'Blank - Request Form'!Q65),\"\"))","v":""},{"$f":"IF('Blank - Request Form'!$F$6=\"CICMP\",IF(OR('Blank - Request Form'!I65=\"0\",'Blank - Request Form'!I65=\"00000\",'Blank - Request Form'!I65=0),\"\",'Blank - Request Form'!I65),IF('Blank - Request Form'!$F$7=\"CICMP\",IF(OR('Blank - Request Form'!R65=\"0\",'Blank - Request Form'!R65=\"00000\",'Blank - Request Form'!R65=0),\"\",'Blank - Request Form'!R65),\"\"))","v":""},null,{"$f":"IF('Blank - Request Form'!$F$6=\"CICMP\",IF('Blank - Request Form'!K65=0,\"\",'Blank - Request Form'!K65),IF('Blank - Request Form'!$F$7=\"CICMP\",IF('Blank - Request Form'!T65=0,\"\",'Blank - Request Form'!T65),\"\"))","v":""},null,null,null,{"$f":"IF(M31<>\"\",'Blank - Request Form'!$M$2,\"\")","v":""},{"$f":"IF('Blank - Request Form'!$F$6=\"CICMP\",IF('Blank - Request Form'!J65=0,\"\",'Blank - Request Form'!J65),IF('Blank - Request Form'!$F$7=\"CICMP\",IF('Blank - Request Form'!S65=0,\"\",'Blank - Request Form'!S65),\"\"))","v":""},"",31]
[{"$f":"IF('Blank - Request Form'!$F$6=\"CICMP\",IF('Blank - Request Form'!D66=0,\"\",'Blank - Request Form'!D66),IF('Blank - Request Form'!$F$7=\"CICMP\",IF('Blank - Request Form'!M66=0,\"\",'Blank - Request Form'!M66),\"\"))","v":""},{"$f":"IF('Blank - Request Form'!$F$6=\"CICMP\",IF('Blank - Request Form'!E66=0,\"\",'Blank - Request Form'!E66),IF('Blank - Request Form'!$F$7=\"CICMP\",IF('Blank - Request Form'!N66=0,\"\",'Blank - Request Form'!N66),\"\"))","v":""},{"$f":"IF('Blank - Request Form'!$F$6=\"CICMP\",IF(OR('Blank - Request Form'!F66=\"000\",'Blank - Request Form'!F66=0),\"\",'Blank - Request Form'!F66),IF('Blank - Request Form'!$F$7=\"CICMP\",IF(OR('Blank - Request Form'!O66=\"000\",'Blank - Request Form'!O66=0),\"\",'Blank - Request Form'!O66),\"\"))","v":""},{"$f":"IF('Blank - Request Form'!$F$6=\"CICMP\",IF(OR('Blank - Request Form'!G66=\"0\",'Blank - Request Form'!G66=\"00000\",'Blank - Request Form'!G66=0),\"\",'Blank - Request Form'!G66),IF('Blank - Request Form'!$F$7=\"CICMP\",IF(OR('Blank - Request Form'!P66=\"0\",'Blank - Request Form'!P66=\"00000\",'Blank - Request Form'!P66=0),\"\",'Blank - Request Form'!P66),\"\"))","v":""},{"$f":"IF('Blank - Request Form'!$F$6=\"CICMP\",IF(OR('Blank - Request Form'!H66=\"0\",'Blank - Request Form'!H66=\"00000\",'Blank - Request Form'!H66=0),\"\",'Blank - Request Form'!H66),IF('Blank - Request Form'!$F$7=\"CICMP\",IF(OR('Blank - Request Form'!Q66=\"0\",'Blank - Request Form'!Q66=\"00000\",'Blank - Request Form'!Q66=0),\"\",'Blank - Request Form'!Q66),\"\"))","v":""},{"$f":"IF('Blank - Request Form'!$F$6=\"CICMP\",IF(OR('Blank - Request Form'!I66=\"0\",'Blank - Request Form'!I66=\"00000\",'Blank - Request Form'!I66=0),\"\",'Blank - Request Form'!I66),IF('Blank - Request Form'!$F$7=\"CICMP\",IF(OR('Blank - Request Form'!R66=\"0\",'Blank - Request Form'!R66=\"00000\",'Blank - Request Form'!R66=0),\"\",'Blank - Request Form'!R66),\"\"))","v":""},null,{"$f":"IF('Blank - Request Form'!$F$6=\"CICMP\",IF('Blank - Request Form'!K66=0,\"\",'Blank - Request Form'!K66),IF('Blank - Request Form'!$F$7=\"CICMP\",IF('Blank - Request Form'!T66=0,\"\",'Blank - Request Form'!T66),\"\"))","v":""},null,null,null,{"$f":"IF(M32<>\"\",'Blank - Request Form'!$M$2,\"\")","v":""},{"$f":"IF('Blank - Request Form'!$F$6=\"CICMP\",IF('Blank - Request Form'!J66=0,\"\",'Blank - Request Form'!J66),IF('Blank - Request Form'!$F$7=\"CICMP\",IF('Blank - Request Form'!S66=0,\"\",'Blank - Request Form'!S66),\"\"))","v":""},"",32]
[{"$f":"IF('Blank - Request Form'!$F$6=\"CICMP\",IF('Blank - Request Form'!D67=0,\"\",'Blank - Request Form'!D67),IF('Blank - Request Form'!$F$7=\"CICMP\",IF('Blank - Request Form'!M67=0,\"\",'Blank - Request Form'!M67),\"\"))","v":""},{"$f":"IF('Blank - Request Form'!$F$6=\"CICMP\",IF('Blank - Request Form'!E67=0,\"\",'Blank - Request Form'!E67),IF('Blank - Request Form'!$F$7=\"CICMP\",IF('Blank - Request Form'!N67=0,\"\",'Blank - Request Form'!N67),\"\"))","v":""},{"$f":"IF('Blank - Request Form'!$F$6=\"CICMP\",IF(OR('Blank - Request Form'!F67=\"000\",'Blank - Request Form'!F67=0),\"\",'Blank - Request Form'!F67),IF('Blank - Request Form'!$F$7=\"CICMP\",IF(OR('Blank - Request Form'!O67=\"000\",'Blank - Request Form'!O67=0),\"\",'Blank - Request Form'!O67),\"\"))","v":""},{"$f":"IF('Blank - Request Form'!$F$6=\"CICMP\",IF(OR('Blank - Request Form'!G67=\"0\",'Blank - Request Form'!G67=\"00000\",'Blank - Request Form'!G67=0),\"\",'Blank - Request Form'!G67),IF('Blank - Request Form'!$F$7=\"CICMP\",IF(OR('Blank - Request Form'!P67=\"0\",'Blank - Request Form'!P67=\"00000\",'Blank - Request Form'!P67=0),\"\",'Blank - Request Form'!P67),\"\"))","v":""},{"$f":"IF('Blank - Request Form'!$F$6=\"CICMP\",IF(OR('Blank - Request Form'!H67=\"0\",'Blank - Request Form'!H67=\"00000\",'Blank - Request Form'!H67=0),\"\",'Blank - Request Form'!H67),IF('Blank - Request Form'!$F$7=\"CICMP\",IF(OR('Blank - Request Form'!Q67=\"0\",'Blank - Request Form'!Q67=\"00000\",'Blank - Request Form'!Q67=0),\"\",'Blank - Request Form'!Q67),\"\"))","v":""},{"$f":"IF('Blank - Request Form'!$F$6=\"CICMP\",IF(OR('Blank - Request Form'!I67=\"0\",'Blank - Request Form'!I67=\"00000\",'Blank - Request Form'!I67=0),\"\",'Blank - Request Form'!I67),IF('Blank - Request Form'!$F$7=\"CICMP\",IF(OR('Blank - Request Form'!R67=\"0\",'Blank - Request Form'!R67=\"00000\",'Blank - Request Form'!R67=0),\"\",'Blank - Request Form'!R67),\"\"))","v":""},null,{"$f":"IF('Blank - Request Form'!$F$6=\"CICMP\",IF('Blank - Request Form'!K67=0,\"\",'Blank - Request Form'!K67),IF('Blank - Request Form'!$F$7=\"CICMP\",IF('Blank - Request Form'!T67=0,\"\",'Blank - Request Form'!T67),\"\"))","v":""},null,null,null,{"$f":"IF(M33<>\"\",'Blank - Request Form'!$M$2,\"\")","v":""},{"$f":"IF('Blank - Request Form'!$F$6=\"CICMP\",IF('Blank - Request Form'!J67=0,\"\",'Blank - Request Form'!J67),IF('Blank - Request Form'!$F$7=\"CICMP\",IF('Blank - Request Form'!S67=0,\"\",'Blank - Request Form'!S67),\"\"))","v":""},"",33]
[{"$f":"IF('Blank - Request Form'!$F$6=\"CICMP\",IF('Blank - Request Form'!D68=0,\"\",'Blank - Request Form'!D68),IF('Blank - Request Form'!$F$7=\"CICMP\",IF('Blank - Request Form'!M68=0,\"\",'Blank - Request Form'!M68),\"\"))","v":""},{"$f":"IF('Blank - Request Form'!$F$6=\"CICMP\",IF('Blank - Request Form'!E68=0,\"\",'Blank - Request Form'!E68),IF('Blank - Request Form'!$F$7=\"CICMP\",IF('Blank - Request Form'!N68=0,\"\",'Blank - Request Form'!N68),\"\"))","v":""},{"$f":"IF('Blank - Request Form'!$F$6=\"CICMP\",IF(OR('Blank - Request Form'!F68=\"000\",'Blank - Request Form'!F68=0),\"\",'Blank - Request Form'!F68),IF('Blank - Request Form'!$F$7=\"CICMP\",IF(OR('Blank - Request Form'!O68=\"000\",'Blank - Request Form'!O68=0),\"\",'Blank - Request Form'!O68),\"\"))","v":""},{"$f":"IF('Blank - Request Form'!$F$6=\"CICMP\",IF(OR('Blank - Request Form'!G68=\"0\",'Blank - Request Form'!G68=\"00000\",'Blank - Request Form'!G68=0),\"\",'Blank - Request Form'!G68),IF('Blank - Request Form'!$F$7=\"CICMP\",IF(OR('Blank - Request Form'!P68=\"0\",'Blank - Request Form'!P68=\"00000\",'Blank - Request Form'!P68=0),\"\",'Blank - Request Form'!P68),\"\"))","v":""},{"$f":"IF('Blank - Request Form'!$F$6=\"CICMP\",IF(OR('Blank - Request Form'!H68=\"0\",'Blank - Request Form'!H68=\"00000\",'Blank - Request Form'!H68=0),\"\",'Blank - Request Form'!H68),IF('Blank - Request Form'!$F$7=\"CICMP\",IF(OR('Blank - Request Form'!Q68=\"0\",'Blank - Request Form'!Q68=\"00000\",'Blank - Request Form'!Q68=0),\"\",'Blank - Request Form'!Q68),\"\"))","v":""},{"$f":"IF('Blank - Request Form'!$F$6=\"CICMP\",IF(OR('Blank - Request Form'!I68=\"0\",'Blank - Request Form'!I68=\"00000\",'Blank - Request Form'!I68=0),\"\",'Blank - Request Form'!I68),IF('Blank - Request Form'!$F$7=\"CICMP\",IF(OR('Blank - Request Form'!R68=\"0\",'Blank - Request Form'!R68=\"00000\",'Blank - Request Form'!R68=0),\"\",'Blank - Request Form'!R68),\"\"))","v":""},null,{"$f":"IF('Blank - Request Form'!$F$6=\"CICMP\",IF('Blank - Request Form'!K68=0,\"\",'Blank - Request Form'!K68),IF('Blank - Request Form'!$F$7=\"CICMP\",IF('Blank - Request Form'!T68=0,\"\",'Blank - Request Form'!T68),\"\"))","v":""},null,null,null,{"$f":"IF(M34<>\"\",'Blank - Request Form'!$M$2,\"\")","v":""},{"$f":"IF('Blank - Request Form'!$F$6=\"CICMP\",IF('Blank - Request Form'!J68=0,\"\",'Blank - Request Form'!J68),IF('Blank - Request Form'!$F$7=\"CICMP\",IF('Blank - Request Form'!S68=0,\"\",'Blank - Request Form'!S68),\"\"))","v":""},"",34]
[{"$f":"IF('Blank - Request Form'!$F$6=\"CICMP\",IF('Blank - Request Form'!D69=0,\"\",'Blank - Request Form'!D69),IF('Blank - Request Form'!$F$7=\"CICMP\",IF('Blank - Request Form'!M69=0,\"\",'Blank - Request Form'!M69),\"\"))","v":""},{"$f":"IF('Blank - Request Form'!$F$6=\"CICMP\",IF('Blank - Request Form'!E69=0,\"\",'Blank - Request Form'!E69),IF('Blank - Request Form'!$F$7=\"CICMP\",IF('Blank - Request Form'!N69=0,\"\",'Blank - Request Form'!N69),\"\"))","v":""},{"$f":"IF('Blank - Request Form'!$F$6=\"CICMP\",IF(OR('Blank - Request Form'!F69=\"000\",'Blank - Request Form'!F69=0),\"\",'Blank - Request Form'!F69),IF('Blank - Request Form'!$F$7=\"CICMP\",IF(OR('Blank - Request Form'!O69=\"000\",'Blank - Request Form'!O69=0),\"\",'Blank - Request Form'!O69),\"\"))","v":""},{"$f":"IF('Blank - Request Form'!$F$6=\"CICMP\",IF(OR('Blank - Request Form'!G69=\"0\",'Blank - Request Form'!G69=\"00000\",'Blank - Request Form'!G69=0),\"\",'Blank - Request Form'!G69),IF('Blank - Request Form'!$F$7=\"CICMP\",IF(OR('Blank - Request Form'!P69=\"0\",'Blank - Request Form'!P69=\"00000\",'Blank - Request Form'!P69=0),\"\",'Blank - Request Form'!P69),\"\"))","v":""},{"$f":"IF('Blank - Request Form'!$F$6=\"CICMP\",IF(OR('Blank - Request Form'!H69=\"0\",'Blank - Request Form'!H69=\"00000\",'Blank - Request Form'!H69=0),\"\",'Blank - Request Form'!H69),IF('Blank - Request Form'!$F$7=\"CICMP\",IF(OR('Blank - Request Form'!Q69=\"0\",'Blank - Request Form'!Q69=\"00000\",'Blank - Request Form'!Q69=0),\"\",'Blank - Request Form'!Q69),\"\"))","v":""},{"$f":"IF('Blank - Request Form'!$F$6=\"CICMP\",IF(OR('Blank - Request Form'!I69=\"0\",'Blank - Request Form'!I69=\"00000\",'Blank - Request Form'!I69=0),\"\",'Blank - Request Form'!I69),IF('Blank - Request Form'!$F$7=\"CICMP\",IF(OR('Blank - Request Form'!R69=\"0\",'Blank - Request Form'!R69=\"00000\",'Blank - Request Form'!R69=0),\"\",'Blank - Request Form'!R69),\"\"))","v":""},null,{"$f":"IF('Blank - Request Form'!$F$6=\"CICMP\",IF('Blank - Request Form'!K69=0,\"\",'Blank - Request Form'!K69),IF('Blank - Request Form'!$F$7=\"CICMP\",IF('Blank - Request Form'!T69=0,\"\",'Blank - Request Form'!T69),\"\"))","v":""},null,null,null,{"$f":"IF(M35<>\"\",'Blank - Request Form'!$M$2,\"\")","v":""},{"$f":"IF('Blank - Request Form'!$F$6=\"CICMP\",IF('Blank - Request Form'!J69=0,\"\",'Blank - Request Form'!J69),IF('Blank - Request Form'!$F$7=\"CICMP\",IF('Blank - Request Form'!S69=0,\"\",'Blank - Request Form'!S69),\"\"))","v":""},"",35]
[{"$f":"IF('Blank - Request Form'!$F$6=\"CICMP\",IF('Blank - Request Form'!D70=0,\"\",'Blank - Request Form'!D70),IF('Blank - Request Form'!$F$7=\"CICMP\",IF('Blank - Request Form'!M70=0,\"\",'Blank - Request Form'!M70),\"\"))","v":""},{"$f":"IF('Blank - Request Form'!$F$6=\"CICMP\",IF('Blank - Request Form'!E70=0,\"\",'Blank - Request Form'!E70),IF('Blank - Request Form'!$F$7=\"CICMP\",IF('Blank - Request Form'!N70=0,\"\",'Blank - Request Form'!N70),\"\"))","v":""},{"$f":"IF('Blank - Request Form'!$F$6=\"CICMP\",IF(OR('Blank - Request Form'!F70=\"000\",'Blank - Request Form'!F70=0),\"\",'Blank - Request Form'!F70),IF('Blank - Request Form'!$F$7=\"CICMP\",IF(OR('Blank - Request Form'!O70=\"000\",'Blank - Request Form'!O70=0),\"\",'Blank - Request Form'!O70),\"\"))","v":""},{"$f":"IF('Blank - Request Form'!$F$6=\"CICMP\",IF(OR('Blank - Request Form'!G70=\"0\",'Blank - Request Form'!G70=\"00000\",'Blank - Request Form'!G70=0),\"\",'Blank - Request Form'!G70),IF('Blank - Request Form'!$F$7=\"CICMP\",IF(OR('Blank - Request Form'!P70=\"0\",'Blank - Request Form'!P70=\"00000\",'Blank - Request Form'!P70=0),\"\",'Blank - Request Form'!P70),\"\"))","v":""},{"$f":"IF('Blank - Request Form'!$F$6=\"CICMP\",IF(OR('Blank - Request Form'!H70=\"0\",'Blank - Request Form'!H70=\"00000\",'Blank - Request Form'!H70=0),\"\",'Blank - Request Form'!H70),IF('Blank - Request Form'!$F$7=\"CICMP\",IF(OR('Blank - Request Form'!Q70=\"0\",'Blank - Request Form'!Q70=\"00000\",'Blank - Request Form'!Q70=0),\"\",'Blank - Request Form'!Q70),\"\"))","v":""},{"$f":"IF('Blank - Request Form'!$F$6=\"CICMP\",IF(OR('Blank - Request Form'!I70=\"0\",'Blank - Request Form'!I70=\"00000\",'Blank - Request Form'!I70=0),\"\",'Blank - Request Form'!I70),IF('Blank - Request Form'!$F$7=\"CICMP\",IF(OR('Blank - Request Form'!R70=\"0\",'Blank - Request Form'!R70=\"00000\",'Blank - Request Form'!R70=0),\"\",'Blank - Request Form'!R70),\"\"))","v":""},null,{"$f":"IF('Blank - Request Form'!$F$6=\"CICMP\",IF('Blank - Request Form'!K70=0,\"\",'Blank - Request Form'!K70),IF('Blank - Request Form'!$F$7=\"CICMP\",IF('Blank - Request Form'!T70=0,\"\",'Blank - Request Form'!T70),\"\"))","v":""},null,null,null,{"$f":"IF(M36<>\"\",'Blank - Request Form'!$M$2,\"\")","v":""},{"$f":"IF('Blank - Request Form'!$F$6=\"CICMP\",IF('Blank - Request Form'!J70=0,\"\",'Blank - Request Form'!J70),IF('Blank - Request Form'!$F$7=\"CICMP\",IF('Blank - Request Form'!S70=0,\"\",'Blank - Request Form'!S70),\"\"))","v":""},"",36]
[{"$f":"IF('Blank - Request Form'!$F$6=\"CICMP\",IF('Blank - Request Form'!D71=0,\"\",'Blank - Request Form'!D71),IF('Blank - Request Form'!$F$7=\"CICMP\",IF('Blank - Request Form'!M71=0,\"\",'Blank - Request Form'!M71),\"\"))","v":""},{"$f":"IF('Blank - Request Form'!$F$6=\"CICMP\",IF('Blank - Request Form'!E71=0,\"\",'Blank - Request Form'!E71),IF('Blank - Request Form'!$F$7=\"CICMP\",IF('Blank - Request Form'!N71=0,\"\",'Blank - Request Form'!N71),\"\"))","v":""},{"$f":"IF('Blank - Request Form'!$F$6=\"CICMP\",IF(OR('Blank - Request Form'!F71=\"000\",'Blank - Request Form'!F71=0),\"\",'Blank - Request Form'!F71),IF('Blank - Request Form'!$F$7=\"CICMP\",IF(OR('Blank - Request Form'!O71=\"000\",'Blank - Request Form'!O71=0),\"\",'Blank - Request Form'!O71),\"\"))","v":""},{"$f":"IF('Blank - Request Form'!$F$6=\"CICMP\",IF(OR('Blank - Request Form'!G71=\"0\",'Blank - Request Form'!G71=\"00000\",'Blank - Request Form'!G71=0),\"\",'Blank - Request Form'!G71),IF('Blank - Request Form'!$F$7=\"CICMP\",IF(OR('Blank - Request Form'!P71=\"0\",'Blank - Request Form'!P71=\"00000\",'Blank - Request Form'!P71=0),\"\",'Blank - Request Form'!P71),\"\"))","v":""},{"$f":"IF('Blank - Request Form'!$F$6=\"CICMP\",IF(OR('Blank - Request Form'!H71=\"0\",'Blank - Request Form'!H71=\"00000\",'Blank - Request Form'!H71=0),\"\",'Blank - Request Form'!H71),IF('Blank - Request Form'!$F$7=\"CICMP\",IF(OR('Blank - Request Form'!Q71=\"0\",'Blank - Request Form'!Q71=\"00000\",'Blank - Request Form'!Q71=0),\"\",'Blank - Request Form'!Q71),\"\"))","v":""},{"$f":"IF('Blank - Request Form'!$F$6=\"CICMP\",IF(OR('Blank - Request Form'!I71=\"0\",'Blank - Request Form'!I71=\"00000\",'Blank - Request Form'!I71=0),\"\",'Blank - Request Form'!I71),IF('Blank - Request Form'!$F$7=\"CICMP\",IF(OR('Blank - Request Form'!R71=\"0\",'Blank - Request Form'!R71=\"00000\",'Blank - Request Form'!R71=0),\"\",'Blank - Request Form'!R71),\"\"))","v":""},null,{"$f":"IF('Blank - Request Form'!$F$6=\"CICMP\",IF('Blank - Request Form'!K71=0,\"\",'Blank - Request Form'!K71),IF('Blank - Request Form'!$F$7=\"CICMP\",IF('Blank - Request Form'!T71=0,\"\",'Blank - Request Form'!T71),\"\"))","v":""},null,null,null,{"$f":"IF(M37<>\"\",'Blank - Request Form'!$M$2,\"\")","v":""},{"$f":"IF('Blank - Request Form'!$F$6=\"CICMP\",IF('Blank - Request Form'!J71=0,\"\",'Blank - Request Form'!J71),IF('Blank - Request Form'!$F$7=\"CICMP\",IF('Blank - Request Form'!S71=0,\"\",'Blank - Request Form'!S71),\"\"))","v":""},"",37]
[{"$f":"IF('Blank - Request Form'!$F$6=\"CICMP\",IF('Blank - Request Form'!D72=0,\"\",'Blank - Request Form'!D72),IF('Blank - Request Form'!$F$7=\"CICMP\",IF('Blank - Request Form'!M72=0,\"\",'Blank - Request Form'!M72),\"\"))","v":""},{"$f":"IF('Blank - Request Form'!$F$6=\"CICMP\",IF('Blank - Request Form'!E72=0,\"\",'Blank - Request Form'!E72),IF('Blank - Request Form'!$F$7=\"CICMP\",IF('Blank - Request Form'!N72=0,\"\",'Blank - Request Form'!N72),\"\"))","v":""},{"$f":"IF('Blank - Request Form'!$F$6=\"CICMP\",IF(OR('Blank - Request Form'!F72=\"000\",'Blank - Request Form'!F72=0),\"\",'Blank - Request Form'!F72),IF('Blank - Request Form'!$F$7=\"CICMP\",IF(OR('Blank - Request Form'!O72=\"000\",'Blank - Request Form'!O72=0),\"\",'Blank - Request Form'!O72),\"\"))","v":""},{"$f":"IF('Blank - Request Form'!$F$6=\"CICMP\",IF(OR('Blank - Request Form'!G72=\"0\",'Blank - Request Form'!G72=\"00000\",'Blank - Request Form'!G72=0),\"\",'Blank - Request Form'!G72),IF('Blank - Request Form'!$F$7=\"CICMP\",IF(OR('Blank - Request Form'!P72=\"0\",'Blank - Request Form'!P72=\"00000\",'Blank - Request Form'!P72=0),\"\",'Blank - Request Form'!P72),\"\"))","v":""},{"$f":"IF('Blank - Request Form'!$F$6=\"CICMP\",IF(OR('Blank - Request Form'!H72=\"0\",'Blank - Request Form'!H72=\"00000\",'Blank - Request Form'!H72=0),\"\",'Blank - Request Form'!H72),IF('Blank - Request Form'!$F$7=\"CICMP\",IF(OR('Blank - Request Form'!Q72=\"0\",'Blank - Request Form'!Q72=\"00000\",'Blank - Request Form'!Q72=0),\"\",'Blank - Request Form'!Q72),\"\"))","v":""},{"$f":"IF('Blank - Request Form'!$F$6=\"CICMP\",IF(OR('Blank - Request Form'!I72=\"0\",'Blank - Request Form'!I72=\"00000\",'Blank - Request Form'!I72=0),\"\",'Blank - Request Form'!I72),IF('Blank - Request Form'!$F$7=\"CICMP\",IF(OR('Blank - Request Form'!R72=\"0\",'Blank - Request Form'!R72=\"00000\",'Blank - Request Form'!R72=0),\"\",'Blank - Request Form'!R72),\"\"))","v":""},null,{"$f":"IF('Blank - Request Form'!$F$6=\"CICMP\",IF('Blank - Request Form'!K72=0,\"\",'Blank - Request Form'!K72),IF('Blank - Request Form'!$F$7=\"CICMP\",IF('Blank - Request Form'!T72=0,\"\",'Blank - Request Form'!T72),\"\"))","v":""},null,null,null,{"$f":"IF(M38<>\"\",'Blank - Request Form'!$M$2,\"\")","v":""},{"$f":"IF('Blank - Request Form'!$F$6=\"CICMP\",IF('Blank - Request Form'!J72=0,\"\",'Blank - Request Form'!J72),IF('Blank - Request Form'!$F$7=\"CICMP\",IF('Blank - Request Form'!S72=0,\"\",'Blank - Request Form'!S72),\"\"))","v":""},"",38]
[{"$f":"IF('Blank - Request Form'!$F$6=\"CICMP\",IF('Blank - Request Form'!D73=0,\"\",'Blank - Request Form'!D73),IF('Blank - Request Form'!$F$7=\"CICMP\",IF('Blank - Request Form'!M73=0,\"\",'Blank - Request Form'!M73),\"\"))","v":""},{"$f":"IF('Blank - Request Form'!$F$6=\"CICMP\",IF('Blank - Request Form'!E73=0,\"\",'Blank - Request Form'!E73),IF('Blank - Request Form'!$F$7=\"CICMP\",IF('Blank - Request Form'!N73=0,\"\",'Blank - Request Form'!N73),\"\"))","v":""},{"$f":"IF('Blank - Request Form'!$F$6=\"CICMP\",IF(OR('Blank - Request Form'!F73=\"000\",'Blank - Request Form'!F73=0),\"\",'Blank - Request Form'!F73),IF('Blank - Request Form'!$F$7=\"CICMP\",IF(OR('Blank - Request Form'!O73=\"000\",'Blank - Request Form'!O73=0),\"\",'Blank - Request Form'!O73),\"\"))","v":""},{"$f":"IF('Blank - Request Form'!$F$6=\"CICMP\",IF(OR('Blank - Request Form'!G73=\"0\",'Blank - Request Form'!G73=\"00000\",'Blank - Request Form'!G73=0),\"\",'Blank - Request Form'!G73),IF('Blank - Request Form'!$F$7=\"CICMP\",IF(OR('Blank - Request Form'!P73=\"0\",'Blank - Request Form'!P73=\"00000\",'Blank - Request Form'!P73=0),\"\",'Blank - Request Form'!P73),\"\"))","v":""},{"$f":"IF('Blank - Request Form'!$F$6=\"CICMP\",IF(OR('Blank - Request Form'!H73=\"0\",'Blank - Request Form'!H73=\"00000\",'Blank - Request Form'!H73=0),\"\",'Blank - Request Form'!H73),IF('Blank - Request Form'!$F$7=\"CICMP\",IF(OR('Blank - Request Form'!Q73=\"0\",'Blank - Request Form'!Q73=\"00000\",'Blank - Request Form'!Q73=0),\"\",'Blank - Request Form'!Q73),\"\"))","v":""},{"$f":"IF('Blank - Request Form'!$F$6=\"CICMP\",IF(OR('Blank - Request Form'!I73=\"0\",'Blank - Request Form'!I73=\"00000\",'Blank - Request Form'!I73=0),\"\",'Blank - Request Form'!I73),IF('Blank - Request Form'!$F$7=\"CICMP\",IF(OR('Blank - Request Form'!R73=\"0\",'Blank - Request Form'!R73=\"00000\",'Blank - Request Form'!R73=0),\"\",'Blank - Request Form'!R73),\"\"))","v":""},null,{"$f":"IF('Blank - Request Form'!$F$6=\"CICMP\",IF('Blank - Request Form'!K73=0,\"\",'Blank - Request Form'!K73),IF('Blank - Request Form'!$F$7=\"CICMP\",IF('Blank - Request Form'!T73=0,\"\",'Blank - Request Form'!T73),\"\"))","v":""},null,null,null,{"$f":"IF(M39<>\"\",'Blank - Request Form'!$M$2,\"\")","v":""},{"$f":"IF('Blank - Request Form'!$F$6=\"CICMP\",IF('Blank - Request Form'!J73=0,\"\",'Blank - Request Form'!J73),IF('Blank - Request Form'!$F$7=\"CICMP\",IF('Blank - Request Form'!S73=0,\"\",'Blank - Request Form'!S73),\"\"))","v":""},"",39]
[{"$f":"IF('Blank - Request Form'!$F$6=\"CICMP\",IF('Blank - Request Form'!D74=0,\"\",'Blank - Request Form'!D74),IF('Blank - Request Form'!$F$7=\"CICMP\",IF('Blank - Request Form'!M74=0,\"\",'Blank - Request Form'!M74),\"\"))","v":""},{"$f":"IF('Blank - Request Form'!$F$6=\"CICMP\",IF('Blank - Request Form'!E74=0,\"\",'Blank - Request Form'!E74),IF('Blank - Request Form'!$F$7=\"CICMP\",IF('Blank - Request Form'!N74=0,\"\",'Blank - Request Form'!N74),\"\"))","v":""},{"$f":"IF('Blank - Request Form'!$F$6=\"CICMP\",IF(OR('Blank - Request Form'!F74=\"000\",'Blank - Request Form'!F74=0),\"\",'Blank - Request Form'!F74),IF('Blank - Request Form'!$F$7=\"CICMP\",IF(OR('Blank - Request Form'!O74=\"000\",'Blank - Request Form'!O74=0),\"\",'Blank - Request Form'!O74),\"\"))","v":""},{"$f":"IF('Blank - Request Form'!$F$6=\"CICMP\",IF(OR('Blank - Request Form'!G74=\"0\",'Blank - Request Form'!G74=\"00000\",'Blank - Request Form'!G74=0),\"\",'Blank - Request Form'!G74),IF('Blank - Request Form'!$F$7=\"CICMP\",IF(OR('Blank - Request Form'!P74=\"0\",'Blank - Request Form'!P74=\"00000\",'Blank - Request Form'!P74=0),\"\",'Blank - Request Form'!P74),\"\"))","v":""},{"$f":"IF('Blank - Request Form'!$F$6=\"CICMP\",IF(OR('Blank - Request Form'!H74=\"0\",'Blank - Request Form'!H74=\"00000\",'Blank - Request Form'!H74=0),\"\",'Blank - Request Form'!H74),IF('Blank - Request Form'!$F$7=\"CICMP\",IF(OR('Blank - Request Form'!Q74=\"0\",'Blank - Request Form'!Q74=\"00000\",'Blank - Request Form'!Q74=0),\"\",'Blank - Request Form'!Q74),\"\"))","v":""},{"$f":"IF('Blank - Request Form'!$F$6=\"CICMP\",IF(OR('Blank - Request Form'!I74=\"0\",'Blank - Request Form'!I74=\"00000\",'Blank - Request Form'!I74=0),\"\",'Blank - Request Form'!I74),IF('Blank - Request Form'!$F$7=\"CICMP\",IF(OR('Blank - Request Form'!R74=\"0\",'Blank - Request Form'!R74=\"00000\",'Blank - Request Form'!R74=0),\"\",'Blank - Request Form'!R74),\"\"))","v":""},null,{"$f":"IF('Blank - Request Form'!$F$6=\"CICMP\",IF('Blank - Request Form'!K74=0,\"\",'Blank - Request Form'!K74),IF('Blank - Request Form'!$F$7=\"CICMP\",IF('Blank - Request Form'!T74=0,\"\",'Blank - Request Form'!T74),\"\"))","v":""},null,null,null,{"$f":"IF(M40<>\"\",'Blank - Request Form'!$M$2,\"\")","v":""},{"$f":"IF('Blank - Request Form'!$F$6=\"CICMP\",IF('Blank - Request Form'!J74=0,\"\",'Blank - Request Form'!J74),IF('Blank - Request Form'!$F$7=\"CICMP\",IF('Blank - Request Form'!S74=0,\"\",'Blank - Request Form'!S74),\"\"))","v":""},"",40]
[{"$f":"IF('Blank - Request Form'!$F$6=\"CICMP\",IF('Blank - Request Form'!D75=0,\"\",'Blank - Request Form'!D75),IF('Blank - Request Form'!$F$7=\"CICMP\",IF('Blank - Request Form'!M75=0,\"\",'Blank - Request Form'!M75),\"\"))","v":""},{"$f":"IF('Blank - Request Form'!$F$6=\"CICMP\",IF('Blank - Request Form'!E75=0,\"\",'Blank - Request Form'!E75),IF('Blank - Request Form'!$F$7=\"CICMP\",IF('Blank - Request Form'!N75=0,\"\",'Blank - Request Form'!N75),\"\"))","v":""},{"$f":"IF('Blank - Request Form'!$F$6=\"CICMP\",IF(OR('Blank - Request Form'!F75=\"000\",'Blank - Request Form'!F75=0),\"\",'Blank - Request Form'!F75),IF('Blank - Request Form'!$F$7=\"CICMP\",IF(OR('Blank - Request Form'!O75=\"000\",'Blank - Request Form'!O75=0),\"\",'Blank - Request Form'!O75),\"\"))","v":""},{"$f":"IF('Blank - Request Form'!$F$6=\"CICMP\",IF(OR('Blank - Request Form'!G75=\"0\",'Blank - Request Form'!G75=\"00000\",'Blank - Request Form'!G75=0),\"\",'Blank - Request Form'!G75),IF('Blank - Request Form'!$F$7=\"CICMP\",IF(OR('Blank - Request Form'!P75=\"0\",'Blank - Request Form'!P75=\"00000\",'Blank - Request Form'!P75=0),\"\",'Blank - Request Form'!P75),\"\"))","v":""},{"$f":"IF('Blank - Request Form'!$F$6=\"CICMP\",IF(OR('Blank - Request Form'!H75=\"0\",'Blank - Request Form'!H75=\"00000\",'Blank - Request Form'!H75=0),\"\",'Blank - Request Form'!H75),IF('Blank - Request Form'!$F$7=\"CICMP\",IF(OR('Blank - Request Form'!Q75=\"0\",'Blank - Request Form'!Q75=\"00000\",'Blank - Request Form'!Q75=0),\"\",'Blank - Request Form'!Q75),\"\"))","v":""},{"$f":"IF('Blank - Request Form'!$F$6=\"CICMP\",IF(OR('Blank - Request Form'!I75=\"0\",'Blank - Request Form'!I75=\"00000\",'Blank - Request Form'!I75=0),\"\",'Blank - Request Form'!I75),IF('Blank - Request Form'!$F$7=\"CICMP\",IF(OR('Blank - Request Form'!R75=\"0\",'Blank - Request Form'!R75=\"00000\",'Blank - Request Form'!R75=0),\"\",'Blank - Request Form'!R75),\"\"))","v":""},null,{"$f":"IF('Blank - Request Form'!$F$6=\"CICMP\",IF('Blank - Request Form'!K75=0,\"\",'Blank - Request Form'!K75),IF('Blank - Request Form'!$F$7=\"CICMP\",IF('Blank - Request Form'!T75=0,\"\",'Blank - Request Form'!T75),\"\"))","v":""},null,null,null,{"$f":"IF(M41<>\"\",'Blank - Request Form'!$M$2,\"\")","v":""},{"$f":"IF('Blank - Request Form'!$F$6=\"CICMP\",IF('Blank - Request Form'!J75=0,\"\",'Blank - Request Form'!J75),IF('Blank - Request Form'!$F$7=\"CICMP\",IF('Blank - Request Form'!S75=0,\"\",'Blank - Request Form'!S75),\"\"))","v":""},"",41]
[{"$f":"IF('Blank - Request Form'!$F$6=\"CICMP\",IF('Blank - Request Form'!D76=0,\"\",'Blank - Request Form'!D76),IF('Blank - Request Form'!$F$7=\"CICMP\",IF('Blank - Request Form'!M76=0,\"\",'Blank - Request Form'!M76),\"\"))","v":""},{"$f":"IF('Blank - Request Form'!$F$6=\"CICMP\",IF('Blank - Request Form'!E76=0,\"\",'Blank - Request Form'!E76),IF('Blank - Request Form'!$F$7=\"CICMP\",IF('Blank - Request Form'!N76=0,\"\",'Blank - Request Form'!N76),\"\"))","v":""},{"$f":"IF('Blank - Request Form'!$F$6=\"CICMP\",IF(OR('Blank - Request Form'!F76=\"000\",'Blank - Request Form'!F76=0),\"\",'Blank - Request Form'!F76),IF('Blank - Request Form'!$F$7=\"CICMP\",IF(OR('Blank - Request Form'!O76=\"000\",'Blank - Request Form'!O76=0),\"\",'Blank - Request Form'!O76),\"\"))","v":""},{"$f":"IF('Blank - Request Form'!$F$6=\"CICMP\",IF(OR('Blank - Request Form'!G76=\"0\",'Blank - Request Form'!G76=\"00000\",'Blank - Request Form'!G76=0),\"\",'Blank - Request Form'!G76),IF('Blank - Request Form'!$F$7=\"CICMP\",IF(OR('Blank - Request Form'!P76=\"0\",'Blank - Request Form'!P76=\"00000\",'Blank - Request Form'!P76=0),\"\",'Blank - Request Form'!P76),\"\"))","v":""},{"$f":"IF('Blank - Request Form'!$F$6=\"CICMP\",IF(OR('Blank - Request Form'!H76=\"0\",'Blank - Request Form'!H76=\"00000\",'Blank - Request Form'!H76=0),\"\",'Blank - Request Form'!H76),IF('Blank - Request Form'!$F$7=\"CICMP\",IF(OR('Blank - Request Form'!Q76=\"0\",'Blank - Request Form'!Q76=\"00000\",'Blank - Request Form'!Q76=0),\"\",'Blank - Request Form'!Q76),\"\"))","v":""},{"$f":"IF('Blank - Request Form'!$F$6=\"CICMP\",IF(OR('Blank - Request Form'!I76=\"0\",'Blank - Request Form'!I76=\"00000\",'Blank - Request Form'!I76=0),\"\",'Blank - Request Form'!I76),IF('Blank - Request Form'!$F$7=\"CICMP\",IF(OR('Blank - Request Form'!R76=\"0\",'Blank - Request Form'!R76=\"00000\",'Blank - Request Form'!R76=0),\"\",'Blank - Request Form'!R76),\"\"))","v":""},null,{"$f":"IF('Blank - Request Form'!$F$6=\"CICMP\",IF('Blank - Request Form'!K76=0,\"\",'Blank - Request Form'!K76),IF('Blank - Request Form'!$F$7=\"CICMP\",IF('Blank - Request Form'!T76=0,\"\",'Blank - Request Form'!T76),\"\"))","v":""},null,null,null,{"$f":"IF(M42<>\"\",'Blank - Request Form'!$M$2,\"\")","v":""},{"$f":"IF('Blank - Request Form'!$F$6=\"CICMP\",IF('Blank - Request Form'!J76=0,\"\",'Blank - Request Form'!J76),IF('Blank - Request Form'!$F$7=\"CICMP\",IF('Blank - Request Form'!S76=0,\"\",'Blank - Request Form'!S76),\"\"))","v":""},"",42]
[{"$f":"IF('Blank - Request Form'!$F$6=\"CICMP\",IF('Blank - Request Form'!D77=0,\"\",'Blank - Request Form'!D77),IF('Blank - Request Form'!$F$7=\"CICMP\",IF('Blank - Request Form'!M77=0,\"\",'Blank - Request Form'!M77),\"\"))","v":""},{"$f":"IF('Blank - Request Form'!$F$6=\"CICMP\",IF('Blank - Request Form'!E77=0,\"\",'Blank - Request Form'!E77),IF('Blank - Request Form'!$F$7=\"CICMP\",IF('Blank - Request Form'!N77=0,\"\",'Blank - Request Form'!N77),\"\"))","v":""},{"$f":"IF('Blank - Request Form'!$F$6=\"CICMP\",IF(OR('Blank - Request Form'!F77=\"000\",'Blank - Request Form'!F77=0),\"\",'Blank - Request Form'!F77),IF('Blank - Request Form'!$F$7=\"CICMP\",IF(OR('Blank - Request Form'!O77=\"000\",'Blank - Request Form'!O77=0),\"\",'Blank - Request Form'!O77),\"\"))","v":""},{"$f":"IF('Blank - Request Form'!$F$6=\"CICMP\",IF(OR('Blank - Request Form'!G77=\"0\",'Blank - Request Form'!G77=\"00000\",'Blank - Request Form'!G77=0),\"\",'Blank - Request Form'!G77),IF('Blank - Request Form'!$F$7=\"CICMP\",IF(OR('Blank - Request Form'!P77=\"0\",'Blank - Request Form'!P77=\"00000\",'Blank - Request Form'!P77=0),\"\",'Blank - Request Form'!P77),\"\"))","v":""},{"$f":"IF('Blank - Request Form'!$F$6=\"CICMP\",IF(OR('Blank - Request Form'!H77=\"0\",'Blank - Request Form'!H77=\"00000\",'Blank - Request Form'!H77=0),\"\",'Blank - Request Form'!H77),IF('Blank - Request Form'!$F$7=\"CICMP\",IF(OR('Blank - Request Form'!Q77=\"0\",'Blank - Request Form'!Q77=\"00000\",'Blank - Request Form'!Q77=0),\"\",'Blank - Request Form'!Q77),\"\"))","v":""},{"$f":"IF('Blank - Request Form'!$F$6=\"CICMP\",IF(OR('Blank - Request Form'!I77=\"0\",'Blank - Request Form'!I77=\"00000\",'Blank - Request Form'!I77=0),\"\",'Blank - Request Form'!I77),IF('Blank - Request Form'!$F$7=\"CICMP\",IF(OR('Blank - Request Form'!R77=\"0\",'Blank - Request Form'!R77=\"00000\",'Blank - Request Form'!R77=0),\"\",'Blank - Request Form'!R77),\"\"))","v":""},null,{"$f":"IF('Blank - Request Form'!$F$6=\"CICMP\",IF('Blank - Request Form'!K77=0,\"\",'Blank - Request Form'!K77),IF('Blank - Request Form'!$F$7=\"CICMP\",IF('Blank - Request Form'!T77=0,\"\",'Blank - Request Form'!T77),\"\"))","v":""},null,null,null,{"$f":"IF(M43<>\"\",'Blank - Request Form'!$M$2,\"\")","v":""},{"$f":"IF('Blank - Request Form'!$F$6=\"CICMP\",IF('Blank - Request Form'!J77=0,\"\",'Blank - Request Form'!J77),IF('Blank - Request Form'!$F$7=\"CICMP\",IF('Blank - Request Form'!S77=0,\"\",'Blank - Request Form'!S77),\"\"))","v":""},"",43]
[{"$f":"IF('Blank - Request Form'!$F$6=\"CICMP\",IF('Blank - Request Form'!D78=0,\"\",'Blank - Request Form'!D78),IF('Blank - Request Form'!$F$7=\"CICMP\",IF('Blank - Request Form'!M78=0,\"\",'Blank - Request Form'!M78),\"\"))","v":""},{"$f":"IF('Blank - Request Form'!$F$6=\"CICMP\",IF('Blank - Request Form'!E78=0,\"\",'Blank - Request Form'!E78),IF('Blank - Request Form'!$F$7=\"CICMP\",IF('Blank - Request Form'!N78=0,\"\",'Blank - Request Form'!N78),\"\"))","v":""},{"$f":"IF('Blank - Request Form'!$F$6=\"CICMP\",IF(OR('Blank - Request Form'!F78=\"000\",'Blank - Request Form'!F78=0),\"\",'Blank - Request Form'!F78),IF('Blank - Request Form'!$F$7=\"CICMP\",IF(OR('Blank - Request Form'!O78=\"000\",'Blank - Request Form'!O78=0),\"\",'Blank - Request Form'!O78),\"\"))","v":""},{"$f":"IF('Blank - Request Form'!$F$6=\"CICMP\",IF(OR('Blank - Request Form'!G78=\"0\",'Blank - Request Form'!G78=\"00000\",'Blank - Request Form'!G78=0),\"\",'Blank - Request Form'!G78),IF('Blank - Request Form'!$F$7=\"CICMP\",IF(OR('Blank - Request Form'!P78=\"0\",'Blank - Request Form'!P78=\"00000\",'Blank - Request Form'!P78=0),\"\",'Blank - Request Form'!P78),\"\"))","v":""},{"$f":"IF('Blank - Request Form'!$F$6=\"CICMP\",IF(OR('Blank - Request Form'!H78=\"0\",'Blank - Request Form'!H78=\"00000\",'Blank - Request Form'!H78=0),\"\",'Blank - Request Form'!H78),IF('Blank - Request Form'!$F$7=\"CICMP\",IF(OR('Blank - Request Form'!Q78=\"0\",'Blank - Request Form'!Q78=\"00000\",'Blank - Request Form'!Q78=0),\"\",'Blank - Request Form'!Q78),\"\"))","v":""},{"$f":"IF('Blank - Request Form'!$F$6=\"CICMP\",IF(OR('Blank - Request Form'!I78=\"0\",'Blank - Request Form'!I78=\"00000\",'Blank - Request Form'!I78=0),\"\",'Blank - Request Form'!I78),IF('Blank - Request Form'!$F$7=\"CICMP\",IF(OR('Blank - Request Form'!R78=\"0\",'Blank - Request Form'!R78=\"00000\",'Blank - Request Form'!R78=0),\"\",'Blank - Request Form'!R78),\"\"))","v":""},null,{"$f":"IF('Blank - Request Form'!$F$6=\"CICMP\",IF('Blank - Request Form'!K78=0,\"\",'Blank - Request Form'!K78),IF('Blank - Request Form'!$F$7=\"CICMP\",IF('Blank - Request Form'!T78=0,\"\",'Blank - Request Form'!T78),\"\"))","v":""},null,null,null,{"$f":"IF(M44<>\"\",'Blank - Request Form'!$M$2,\"\")","v":""},{"$f":"IF('Blank - Request Form'!$F$6=\"CICMP\",IF('Blank - Request Form'!J78=0,\"\",'Blank - Request Form'!J78),IF('Blank - Request Form'!$F$7=\"CICMP\",IF('Blank - Request Form'!S78=0,\"\",'Blank - Request Form'!S78),\"\"))","v":""},"",44]
[{"$f":"IF('Blank - Request Form'!$F$6=\"CICMP\",IF('Blank - Request Form'!D79=0,\"\",'Blank - Request Form'!D79),IF('Blank - Request Form'!$F$7=\"CICMP\",IF('Blank - Request Form'!M79=0,\"\",'Blank - Request Form'!M79),\"\"))","v":""},{"$f":"IF('Blank - Request Form'!$F$6=\"CICMP\",IF('Blank - Request Form'!E79=0,\"\",'Blank - Request Form'!E79),IF('Blank - Request Form'!$F$7=\"CICMP\",IF('Blank - Request Form'!N79=0,\"\",'Blank - Request Form'!N79),\"\"))","v":""},{"$f":"IF('Blank - Request Form'!$F$6=\"CICMP\",IF(OR('Blank - Request Form'!F79=\"000\",'Blank - Request Form'!F79=0),\"\",'Blank - Request Form'!F79),IF('Blank - Request Form'!$F$7=\"CICMP\",IF(OR('Blank - Request Form'!O79=\"000\",'Blank - Request Form'!O79=0),\"\",'Blank - Request Form'!O79),\"\"))","v":""},{"$f":"IF('Blank - Request Form'!$F$6=\"CICMP\",IF(OR('Blank - Request Form'!G79=\"0\",'Blank - Request Form'!G79=\"00000\",'Blank - Request Form'!G79=0),\"\",'Blank - Request Form'!G79),IF('Blank - Request Form'!$F$7=\"CICMP\",IF(OR('Blank - Request Form'!P79=\"0\",'Blank - Request Form'!P79=\"00000\",'Blank - Request Form'!P79=0),\"\",'Blank - Request Form'!P79),\"\"))","v":""},{"$f":"IF('Blank - Request Form'!$F$6=\"CICMP\",IF(OR('Blank - Request Form'!H79=\"0\",'Blank - Request Form'!H79=\"00000\",'Blank - Request Form'!H79=0),\"\",'Blank - Request Form'!H79),IF('Blank - Request Form'!$F$7=\"CICMP\",IF(OR('Blank - Request Form'!Q79=\"0\",'Blank - Request Form'!Q79=\"00000\",'Blank - Request Form'!Q79=0),\"\",'Blank - Request Form'!Q79),\"\"))","v":""},{"$f":"IF('Blank - Request Form'!$F$6=\"CICMP\",IF(OR('Blank - Request Form'!I79=\"0\",'Blank - Request Form'!I79=\"00000\",'Blank - Request Form'!I79=0),\"\",'Blank - Request Form'!I79),IF('Blank - Request Form'!$F$7=\"CICMP\",IF(OR('Blank - Request Form'!R79=\"0\",'Blank - Request Form'!R79=\"00000\",'Blank - Request Form'!R79=0),\"\",'Blank - Request Form'!R79),\"\"))","v":""},null,{"$f":"IF('Blank - Request Form'!$F$6=\"CICMP\",IF('Blank - Request Form'!K79=0,\"\",'Blank - Request Form'!K79),IF('Blank - Request Form'!$F$7=\"CICMP\",IF('Blank - Request Form'!T79=0,\"\",'Blank - Request Form'!T79),\"\"))","v":""},null,null,null,{"$f":"IF(M45<>\"\",'Blank - Request Form'!$M$2,\"\")","v":""},{"$f":"IF('Blank - Request Form'!$F$6=\"CICMP\",IF('Blank - Request Form'!J79=0,\"\",'Blank - Request Form'!J79),IF('Blank - Request Form'!$F$7=\"CICMP\",IF('Blank - Request Form'!S79=0,\"\",'Blank - Request Form'!S79),\"\"))","v":""},"",45]
[{"$f":"IF('Blank - Request Form'!$F$6=\"CICMP\",IF('Blank - Request Form'!D80=0,\"\",'Blank - Request Form'!D80),IF('Blank - Request Form'!$F$7=\"CICMP\",IF('Blank - Request Form'!M80=0,\"\",'Blank - Request Form'!M80),\"\"))","v":""},{"$f":"IF('Blank - Request Form'!$F$6=\"CICMP\",IF('Blank - Request Form'!E80=0,\"\",'Blank - Request Form'!E80),IF('Blank - Request Form'!$F$7=\"CICMP\",IF('Blank - Request Form'!N80=0,\"\",'Blank - Request Form'!N80),\"\"))","v":""},{"$f":"IF('Blank - Request Form'!$F$6=\"CICMP\",IF(OR('Blank - Request Form'!F80=\"000\",'Blank - Request Form'!F80=0),\"\",'Blank - Request Form'!F80),IF('Blank - Request Form'!$F$7=\"CICMP\",IF(OR('Blank - Request Form'!O80=\"000\",'Blank - Request Form'!O80=0),\"\",'Blank - Request Form'!O80),\"\"))","v":""},{"$f":"IF('Blank - Request Form'!$F$6=\"CICMP\",IF(OR('Blank - Request Form'!G80=\"0\",'Blank - Request Form'!G80=\"00000\",'Blank - Request Form'!G80=0),\"\",'Blank - Request Form'!G80),IF('Blank - Request Form'!$F$7=\"CICMP\",IF(OR('Blank - Request Form'!P80=\"0\",'Blank - Request Form'!P80=\"00000\",'Blank - Request Form'!P80=0),\"\",'Blank - Request Form'!P80),\"\"))","v":""},{"$f":"IF('Blank - Request Form'!$F$6=\"CICMP\",IF(OR('Blank - Request Form'!H80=\"0\",'Blank - Request Form'!H80=\"00000\",'Blank - Request Form'!H80=0),\"\",'Blank - Request Form'!H80),IF('Blank - Request Form'!$F$7=\"CICMP\",IF(OR('Blank - Request Form'!Q80=\"0\",'Blank - Request Form'!Q80=\"00000\",'Blank - Request Form'!Q80=0),\"\",'Blank - Request Form'!Q80),\"\"))","v":""},{"$f":"IF('Blank - Request Form'!$F$6=\"CICMP\",IF(OR('Blank - Request Form'!I80=\"0\",'Blank - Request Form'!I80=\"00000\",'Blank - Request Form'!I80=0),\"\",'Blank - Request Form'!I80),IF('Blank - Request Form'!$F$7=\"CICMP\",IF(OR('Blank - Request Form'!R80=\"0\",'Blank - Request Form'!R80=\"00000\",'Blank - Request Form'!R80=0),\"\",'Blank - Request Form'!R80),\"\"))","v":""},null,{"$f":"IF('Blank - Request Form'!$F$6=\"CICMP\",IF('Blank - Request Form'!K80=0,\"\",'Blank - Request Form'!K80),IF('Blank - Request Form'!$F$7=\"CICMP\",IF('Blank - Request Form'!T80=0,\"\",'Blank - Request Form'!T80),\"\"))","v":""},null,null,null,{"$f":"IF(M46<>\"\",'Blank - Request Form'!$M$2,\"\")","v":""},{"$f":"IF('Blank - Request Form'!$F$6=\"CICMP\",IF('Blank - Request Form'!J80=0,\"\",'Blank - Request Form'!J80),IF('Blank - Request Form'!$F$7=\"CICMP\",IF('Blank - Request Form'!S80=0,\"\",'Blank - Request Form'!S80),\"\"))","v":""},"",46]
[{"$f":"IF('Blank - Request Form'!$F$6=\"CICMP\",IF('Blank - Request Form'!D81=0,\"\",'Blank - Request Form'!D81),IF('Blank - Request Form'!$F$7=\"CICMP\",IF('Blank - Request Form'!M81=0,\"\",'Blank - Request Form'!M81),\"\"))","v":""},{"$f":"IF('Blank - Request Form'!$F$6=\"CICMP\",IF('Blank - Request Form'!E81=0,\"\",'Blank - Request Form'!E81),IF('Blank - Request Form'!$F$7=\"CICMP\",IF('Blank - Request Form'!N81=0,\"\",'Blank - Request Form'!N81),\"\"))","v":""},{"$f":"IF('Blank - Request Form'!$F$6=\"CICMP\",IF(OR('Blank - Request Form'!F81=\"000\",'Blank - Request Form'!F81=0),\"\",'Blank - Request Form'!F81),IF('Blank - Request Form'!$F$7=\"CICMP\",IF(OR('Blank - Request Form'!O81=\"000\",'Blank - Request Form'!O81=0),\"\",'Blank - Request Form'!O81),\"\"))","v":""},{"$f":"IF('Blank - Request Form'!$F$6=\"CICMP\",IF(OR('Blank - Request Form'!G81=\"0\",'Blank - Request Form'!G81=\"00000\",'Blank - Request Form'!G81=0),\"\",'Blank - Request Form'!G81),IF('Blank - Request Form'!$F$7=\"CICMP\",IF(OR('Blank - Request Form'!P81=\"0\",'Blank - Request Form'!P81=\"00000\",'Blank - Request Form'!P81=0),\"\",'Blank - Request Form'!P81),\"\"))","v":""},{"$f":"IF('Blank - Request Form'!$F$6=\"CICMP\",IF(OR('Blank - Request Form'!H81=\"0\",'Blank - Request Form'!H81=\"00000\",'Blank - Request Form'!H81=0),\"\",'Blank - Request Form'!H81),IF('Blank - Request Form'!$F$7=\"CICMP\",IF(OR('Blank - Request Form'!Q81=\"0\",'Blank - Request Form'!Q81=\"00000\",'Blank - Request Form'!Q81=0),\"\",'Blank - Request Form'!Q81),\"\"))","v":""},{"$f":"IF('Blank - Request Form'!$F$6=\"CICMP\",IF(OR('Blank - Request Form'!I81=\"0\",'Blank - Request Form'!I81=\"00000\",'Blank - Request Form'!I81=0),\"\",'Blank - Request Form'!I81),IF('Blank - Request Form'!$F$7=\"CICMP\",IF(OR('Blank - Request Form'!R81=\"0\",'Blank - Request Form'!R81=\"00000\",'Blank - Request Form'!R81=0),\"\",'Blank - Request Form'!R81),\"\"))","v":""},null,{"$f":"IF('Blank - Request Form'!$F$6=\"CICMP\",IF('Blank - Request Form'!K81=0,\"\",'Blank - Request Form'!K81),IF('Blank - Request Form'!$F$7=\"CICMP\",IF('Blank - Request Form'!T81=0,\"\",'Blank - Request Form'!T81),\"\"))","v":""},null,null,null,{"$f":"IF(M47<>\"\",'Blank - Request Form'!$M$2,\"\")","v":""},{"$f":"IF('Blank - Request Form'!$F$6=\"CICMP\",IF('Blank - Request Form'!J81=0,\"\",'Blank - Request Form'!J81),IF('Blank - Request Form'!$F$7=\"CICMP\",IF('Blank - Request Form'!S81=0,\"\",'Blank - Request Form'!S81),\"\"))","v":""},"",47]
[{"$f":"IF('Blank - Request Form'!$F$6=\"CICMP\",IF('Blank - Request Form'!D82=0,\"\",'Blank - Request Form'!D82),IF('Blank - Request Form'!$F$7=\"CICMP\",IF('Blank - Request Form'!M82=0,\"\",'Blank - Request Form'!M82),\"\"))","v":""},{"$f":"IF('Blank - Request Form'!$F$6=\"CICMP\",IF('Blank - Request Form'!E82=0,\"\",'Blank - Request Form'!E82),IF('Blank - Request Form'!$F$7=\"CICMP\",IF('Blank - Request Form'!N82=0,\"\",'Blank - Request Form'!N82),\"\"))","v":""},{"$f":"IF('Blank - Request Form'!$F$6=\"CICMP\",IF(OR('Blank - Request Form'!F82=\"000\",'Blank - Request Form'!F82=0),\"\",'Blank - Request Form'!F82),IF('Blank - Request Form'!$F$7=\"CICMP\",IF(OR('Blank - Request Form'!O82=\"000\",'Blank - Request Form'!O82=0),\"\",'Blank - Request Form'!O82),\"\"))","v":""},{"$f":"IF('Blank - Request Form'!$F$6=\"CICMP\",IF(OR('Blank - Request Form'!G82=\"0\",'Blank - Request Form'!G82=\"00000\",'Blank - Request Form'!G82=0),\"\",'Blank - Request Form'!G82),IF('Blank - Request Form'!$F$7=\"CICMP\",IF(OR('Blank - Request Form'!P82=\"0\",'Blank - Request Form'!P82=\"00000\",'Blank - Request Form'!P82=0),\"\",'Blank - Request Form'!P82),\"\"))","v":""},{"$f":"IF('Blank - Request Form'!$F$6=\"CICMP\",IF(OR('Blank - Request Form'!H82=\"0\",'Blank - Request Form'!H82=\"00000\",'Blank - Request Form'!H82=0),\"\",'Blank - Request Form'!H82),IF('Blank - Request Form'!$F$7=\"CICMP\",IF(OR('Blank - Request Form'!Q82=\"0\",'Blank - Request Form'!Q82=\"00000\",'Blank - Request Form'!Q82=0),\"\",'Blank - Request Form'!Q82),\"\"))","v":""},{"$f":"IF('Blank - Request Form'!$F$6=\"CICMP\",IF(OR('Blank - Request Form'!I82=\"0\",'Blank - Request Form'!I82=\"00000\",'Blank - Request Form'!I82=0),\"\",'Blank - Request Form'!I82),IF('Blank - Request Form'!$F$7=\"CICMP\",IF(OR('Blank - Request Form'!R82=\"0\",'Blank - Request Form'!R82=\"00000\",'Blank - Request Form'!R82=0),\"\",'Blank - Request Form'!R82),\"\"))","v":""},null,{"$f":"IF('Blank - Request Form'!$F$6=\"CICMP\",IF('Blank - Request Form'!K82=0,\"\",'Blank - Request Form'!K82),IF('Blank - Request Form'!$F$7=\"CICMP\",IF('Blank - Request Form'!T82=0,\"\",'Blank - Request Form'!T82),\"\"))","v":""},null,null,null,{"$f":"IF(M48<>\"\",'Blank - Request Form'!$M$2,\"\")","v":""},{"$f":"IF('Blank - Request Form'!$F$6=\"CICMP\",IF('Blank - Request Form'!J82=0,\"\",'Blank - Request Form'!J82),IF('Blank - Request Form'!$F$7=\"CICMP\",IF('Blank - Request Form'!S82=0,\"\",'Blank - Request Form'!S82),\"\"))","v":""},{"$f":"IF(M48<>\"\",O48,\"\")","v":""},48]
[{"$f":"IF('Blank - Request Form'!$F$6=\"CICMP\",IF('Blank - Request Form'!D83=0,\"\",'Blank - Request Form'!D83),IF('Blank - Request Form'!$F$7=\"CICMP\",IF('Blank - Request Form'!M83=0,\"\",'Blank - Request Form'!M83),\"\"))","v":""},{"$f":"IF('Blank - Request Form'!$F$6=\"CICMP\",IF('Blank - Request Form'!E83=0,\"\",'Blank - Request Form'!E83),IF('Blank - Request Form'!$F$7=\"CICMP\",IF('Blank - Request Form'!N83=0,\"\",'Blank - Request Form'!N83),\"\"))","v":""},{"$f":"IF('Blank - Request Form'!$F$6=\"CICMP\",IF(OR('Blank - Request Form'!F83=\"000\",'Blank - Request Form'!F83=0),\"\",'Blank - Request Form'!F83),IF('Blank - Request Form'!$F$7=\"CICMP\",IF(OR('Blank - Request Form'!O83=\"000\",'Blank - Request Form'!O83=0),\"\",'Blank - Request Form'!O83),\"\"))","v":""},{"$f":"IF('Blank - Request Form'!$F$6=\"CICMP\",IF(OR('Blank - Request Form'!G83=\"0\",'Blank - Request Form'!G83=\"00000\",'Blank - Request Form'!G83=0),\"\",'Blank - Request Form'!G83),IF('Blank - Request Form'!$F$7=\"CICMP\",IF(OR('Blank - Request Form'!P83=\"0\",'Blank - Request Form'!P83=\"00000\",'Blank - Request Form'!P83=0),\"\",'Blank - Request Form'!P83),\"\"))","v":""},{"$f":"IF('Blank - Request Form'!$F$6=\"CICMP\",IF(OR('Blank - Request Form'!H83=\"0\",'Blank - Request Form'!H83=\"00000\",'Blank - Request Form'!H83=0),\"\",'Blank - Request Form'!H83),IF('Blank - Request Form'!$F$7=\"CICMP\",IF(OR('Blank - Request Form'!Q83=\"0\",'Blank - Request Form'!Q83=\"00000\",'Blank - Request Form'!Q83=0),\"\",'Blank - Request Form'!Q83),\"\"))","v":""},{"$f":"IF('Blank - Request Form'!$F$6=\"CICMP\",IF(OR('Blank - Request Form'!I83=\"0\",'Blank - Request Form'!I83=\"00000\",'Blank - Request Form'!I83=0),\"\",'Blank - Request Form'!I83),IF('Blank - Request Form'!$F$7=\"CICMP\",IF(OR('Blank - Request Form'!R83=\"0\",'Blank - Request Form'!R83=\"00000\",'Blank - Request Form'!R83=0),\"\",'Blank - Request Form'!R83),\"\"))","v":""},null,{"$f":"IF('Blank - Request Form'!$F$6=\"CICMP\",IF('Blank - Request Form'!K83=0,\"\",'Blank - Request Form'!K83),IF('Blank - Request Form'!$F$7=\"CICMP\",IF('Blank - Request Form'!T83=0,\"\",'Blank - Request Form'!T83),\"\"))","v":""},null,null,null,{"$f":"IF(M49<>\"\",'Blank - Request Form'!$M$2,\"\")","v":""},{"$f":"IF('Blank - Request Form'!$F$6=\"CICMP\",IF('Blank - Request Form'!J83=0,\"\",'Blank - Request Form'!J83),IF('Blank - Request Form'!$F$7=\"CICMP\",IF('Blank - Request Form'!S83=0,\"\",'Blank - Request Form'!S83),\"\"))","v":""},"",49]
[{"$f":"IF('Blank - Request Form'!$F$6=\"CICMP\",IF('Blank - Request Form'!D84=0,\"\",'Blank - Request Form'!D84),IF('Blank - Request Form'!$F$7=\"CICMP\",IF('Blank - Request Form'!M84=0,\"\",'Blank - Request Form'!M84),\"\"))","v":""},{"$f":"IF('Blank - Request Form'!$F$6=\"CICMP\",IF('Blank - Request Form'!E84=0,\"\",'Blank - Request Form'!E84),IF('Blank - Request Form'!$F$7=\"CICMP\",IF('Blank - Request Form'!N84=0,\"\",'Blank - Request Form'!N84),\"\"))","v":""},{"$f":"IF('Blank - Request Form'!$F$6=\"CICMP\",IF(OR('Blank - Request Form'!F84=\"000\",'Blank - Request Form'!F84=0),\"\",'Blank - Request Form'!F84),IF('Blank - Request Form'!$F$7=\"CICMP\",IF(OR('Blank - Request Form'!O84=\"000\",'Blank - Request Form'!O84=0),\"\",'Blank - Request Form'!O84),\"\"))","v":""},{"$f":"IF('Blank - Request Form'!$F$6=\"CICMP\",IF(OR('Blank - Request Form'!G84=\"0\",'Blank - Request Form'!G84=\"00000\",'Blank - Request Form'!G84=0),\"\",'Blank - Request Form'!G84),IF('Blank - Request Form'!$F$7=\"CICMP\",IF(OR('Blank - Request Form'!P84=\"0\",'Blank - Request Form'!P84=\"00000\",'Blank - Request Form'!P84=0),\"\",'Blank - Request Form'!P84),\"\"))","v":""},{"$f":"IF('Blank - Request Form'!$F$6=\"CICMP\",IF(OR('Blank - Request Form'!H84=\"0\",'Blank - Request Form'!H84=\"00000\",'Blank - Request Form'!H84=0),\"\",'Blank - Request Form'!H84),IF('Blank - Request Form'!$F$7=\"CICMP\",IF(OR('Blank - Request Form'!Q84=\"0\",'Blank - Request Form'!Q84=\"00000\",'Blank - Request Form'!Q84=0),\"\",'Blank - Request Form'!Q84),\"\"))","v":""},{"$f":"IF('Blank - Request Form'!$F$6=\"CICMP\",IF(OR('Blank - Request Form'!I84=\"0\",'Blank - Request Form'!I84=\"00000\",'Blank - Request Form'!I84=0),\"\",'Blank - Request Form'!I84),IF('Blank - Request Form'!$F$7=\"CICMP\",IF(OR('Blank - Request Form'!R84=\"0\",'Blank - Request Form'!R84=\"00000\",'Blank - Request Form'!R84=0),\"\",'Blank - Request Form'!R84),\"\"))","v":""},null,{"$f":"IF('Blank - Request Form'!$F$6=\"CICMP\",IF('Blank - Request Form'!K84=0,\"\",'Blank - Request Form'!K84),IF('Blank - Request Form'!$F$7=\"CICMP\",IF('Blank - Request Form'!T84=0,\"\",'Blank - Request Form'!T84),\"\"))","v":""},null,null,null,{"$f":"IF(M50<>\"\",'Blank - Request Form'!$M$2,\"\")","v":""},{"$f":"IF('Blank - Request Form'!$F$6=\"CICMP\",IF('Blank - Request Form'!J84=0,\"\",'Blank - Request Form'!J84),IF('Blank - Request Form'!$F$7=\"CICMP\",IF('Blank - Request Form'!S84=0,\"\",'Blank - Request Form'!S84),\"\"))","v":""},"",50]
[{"$f":"IF('Blank - Request Form'!$F$6=\"CICMP\",IF('Blank - Request Form'!D85=0,\"\",'Blank - Request Form'!D85),IF('Blank - Request Form'!$F$7=\"CICMP\",IF('Blank - Request Form'!M85=0,\"\",'Blank - Request Form'!M85),\"\"))","v":""},{"$f":"IF('Blank - Request Form'!$F$6=\"CICMP\",IF('Blank - Request Form'!E85=0,\"\",'Blank - Request Form'!E85),IF('Blank - Request Form'!$F$7=\"CICMP\",IF('Blank - Request Form'!N85=0,\"\",'Blank - Request Form'!N85),\"\"))","v":""},{"$f":"IF('Blank - Request Form'!$F$6=\"CICMP\",IF(OR('Blank - Request Form'!F85=\"000\",'Blank - Request Form'!F85=0),\"\",'Blank - Request Form'!F85),IF('Blank - Request Form'!$F$7=\"CICMP\",IF(OR('Blank - Request Form'!O85=\"000\",'Blank - Request Form'!O85=0),\"\",'Blank - Request Form'!O85),\"\"))","v":""},{"$f":"IF('Blank - Request Form'!$F$6=\"CICMP\",IF(OR('Blank - Request Form'!G85=\"0\",'Blank - Request Form'!G85=\"00000\",'Blank - Request Form'!G85=0),\"\",'Blank - Request Form'!G85),IF('Blank - Request Form'!$F$7=\"CICMP\",IF(OR('Blank - Request Form'!P85=\"0\",'Blank - Request Form'!P85=\"00000\",'Blank - Request Form'!P85=0),\"\",'Blank - Request Form'!P85),\"\"))","v":""},{"$f":"IF('Blank - Request Form'!$F$6=\"CICMP\",IF(OR('Blank - Request Form'!H85=\"0\",'Blank - Request Form'!H85=\"00000\",'Blank - Request Form'!H85=0),\"\",'Blank - Request Form'!H85),IF('Blank - Request Form'!$F$7=\"CICMP\",IF(OR('Blank - Request Form'!Q85=\"0\",'Blank - Request Form'!Q85=\"00000\",'Blank - Request Form'!Q85=0),\"\",'Blank - Request Form'!Q85),\"\"))","v":""},{"$f":"IF('Blank - Request Form'!$F$6=\"CICMP\",IF(OR('Blank - Request Form'!I85=\"0\",'Blank - Request Form'!I85=\"00000\",'Blank - Request Form'!I85=0),\"\",'Blank - Request Form'!I85),IF('Blank - Request Form'!$F$7=\"CICMP\",IF(OR('Blank - Request Form'!R85=\"0\",'Blank - Request Form'!R85=\"00000\",'Blank - Request Form'!R85=0),\"\",'Blank - Request Form'!R85),\"\"))","v":""},null,{"$f":"IF('Blank - Request Form'!$F$6=\"CICMP\",IF('Blank - Request Form'!K85=0,\"\",'Blank - Request Form'!K85),IF('Blank - Request Form'!$F$7=\"CICMP\",IF('Blank - Request Form'!T85=0,\"\",'Blank - Request Form'!T85),\"\"))","v":""},null,null,null,{"$f":"IF(M51<>\"\",'Blank - Request Form'!$M$2,\"\")","v":""},{"$f":"IF('Blank - Request Form'!$F$6=\"CICMP\",IF('Blank - Request Form'!J85=0,\"\",'Blank - Request Form'!J85),IF('Blank - Request Form'!$F$7=\"CICMP\",IF('Blank - Request Form'!S85=0,\"\",'Blank - Request Form'!S85),\"\"))","v":""},"",51]
[{"$f":"IF('Blank - Request Form'!$F$6=\"CICMP\",IF('Blank - Request Form'!D86=0,\"\",'Blank - Request Form'!D86),IF('Blank - Request Form'!$F$7=\"CICMP\",IF('Blank - Request Form'!M86=0,\"\",'Blank - Request Form'!M86),\"\"))","v":""},{"$f":"IF('Blank - Request Form'!$F$6=\"CICMP\",IF('Blank - Request Form'!E86=0,\"\",'Blank - Request Form'!E86),IF('Blank - Request Form'!$F$7=\"CICMP\",IF('Blank - Request Form'!N86=0,\"\",'Blank - Request Form'!N86),\"\"))","v":""},{"$f":"IF('Blank - Request Form'!$F$6=\"CICMP\",IF(OR('Blank - Request Form'!F86=\"000\",'Blank - Request Form'!F86=0),\"\",'Blank - Request Form'!F86),IF('Blank - Request Form'!$F$7=\"CICMP\",IF(OR('Blank - Request Form'!O86=\"000\",'Blank - Request Form'!O86=0),\"\",'Blank - Request Form'!O86),\"\"))","v":""},{"$f":"IF('Blank - Request Form'!$F$6=\"CICMP\",IF(OR('Blank - Request Form'!G86=\"0\",'Blank - Request Form'!G86=\"00000\",'Blank - Request Form'!G86=0),\"\",'Blank - Request Form'!G86),IF('Blank - Request Form'!$F$7=\"CICMP\",IF(OR('Blank - Request Form'!P86=\"0\",'Blank - Request Form'!P86=\"00000\",'Blank - Request Form'!P86=0),\"\",'Blank - Request Form'!P86),\"\"))","v":""},{"$f":"IF('Blank - Request Form'!$F$6=\"CICMP\",IF(OR('Blank - Request Form'!H86=\"0\",'Blank - Request Form'!H86=\"00000\",'Blank - Request Form'!H86=0),\"\",'Blank - Request Form'!H86),IF('Blank - Request Form'!$F$7=\"CICMP\",IF(OR('Blank - Request Form'!Q86=\"0\",'Blank - Request Form'!Q86=\"00000\",'Blank - Request Form'!Q86=0),\"\",'Blank - Request Form'!Q86),\"\"))","v":""},{"$f":"IF('Blank - Request Form'!$F$6=\"CICMP\",IF(OR('Blank - Request Form'!I86=\"0\",'Blank - Request Form'!I86=\"00000\",'Blank - Request Form'!I86=0),\"\",'Blank - Request Form'!I86),IF('Blank - Request Form'!$F$7=\"CICMP\",IF(OR('Blank - Request Form'!R86=\"0\",'Blank - Request Form'!R86=\"00000\",'Blank - Request Form'!R86=0),\"\",'Blank - Request Form'!R86),\"\"))","v":""},null,{"$f":"IF('Blank - Request Form'!$F$6=\"CICMP\",IF('Blank - Request Form'!K86=0,\"\",'Blank - Request Form'!K86),IF('Blank - Request Form'!$F$7=\"CICMP\",IF('Blank - Request Form'!T86=0,\"\",'Blank - Request Form'!T86),\"\"))","v":""},null,null,null,{"$f":"IF(M52<>\"\",'Blank - Request Form'!$M$2,\"\")","v":""},{"$f":"IF('Blank - Request Form'!$F$6=\"CICMP\",IF('Blank - Request Form'!J86=0,\"\",'Blank - Request Form'!J86),IF('Blank - Request Form'!$F$7=\"CICMP\",IF('Blank - Request Form'!S86=0,\"\",'Blank - Request Form'!S86),\"\"))","v":""},"",52]
[{"$f":"IF('Blank - Request Form'!$F$6=\"CICMP\",IF('Blank - Request Form'!D87=0,\"\",'Blank - Request Form'!D87),IF('Blank - Request Form'!$F$7=\"CICMP\",IF('Blank - Request Form'!M87=0,\"\",'Blank - Request Form'!M87),\"\"))","v":""},{"$f":"IF('Blank - Request Form'!$F$6=\"CICMP\",IF('Blank - Request Form'!E87=0,\"\",'Blank - Request Form'!E87),IF('Blank - Request Form'!$F$7=\"CICMP\",IF('Blank - Request Form'!N87=0,\"\",'Blank - Request Form'!N87),\"\"))","v":""},{"$f":"IF('Blank - Request Form'!$F$6=\"CICMP\",IF(OR('Blank - Request Form'!F87=\"000\",'Blank - Request Form'!F87=0),\"\",'Blank - Request Form'!F87),IF('Blank - Request Form'!$F$7=\"CICMP\",IF(OR('Blank - Request Form'!O87=\"000\",'Blank - Request Form'!O87=0),\"\",'Blank - Request Form'!O87),\"\"))","v":""},{"$f":"IF('Blank - Request Form'!$F$6=\"CICMP\",IF(OR('Blank - Request Form'!G87=\"0\",'Blank - Request Form'!G87=\"00000\",'Blank - Request Form'!G87=0),\"\",'Blank - Request Form'!G87),IF('Blank - Request Form'!$F$7=\"CICMP\",IF(OR('Blank - Request Form'!P87=\"0\",'Blank - Request Form'!P87=\"00000\",'Blank - Request Form'!P87=0),\"\",'Blank - Request Form'!P87),\"\"))","v":""},{"$f":"IF('Blank - Request Form'!$F$6=\"CICMP\",IF(OR('Blank - Request Form'!H87=\"0\",'Blank - Request Form'!H87=\"00000\",'Blank - Request Form'!H87=0),\"\",'Blank - Request Form'!H87),IF('Blank - Request Form'!$F$7=\"CICMP\",IF(OR('Blank - Request Form'!Q87=\"0\",'Blank - Request Form'!Q87=\"00000\",'Blank - Request Form'!Q87=0),\"\",'Blank - Request Form'!Q87),\"\"))","v":""},{"$f":"IF('Blank - Request Form'!$F$6=\"CICMP\",IF(OR('Blank - Request Form'!I87=\"0\",'Blank - Request Form'!I87=\"00000\",'Blank - Request Form'!I87=0),\"\",'Blank - Request Form'!I87),IF('Blank - Request Form'!$F$7=\"CICMP\",IF(OR('Blank - Request Form'!R87=\"0\",'Blank - Request Form'!R87=\"00000\",'Blank - Request Form'!R87=0),\"\",'Blank - Request Form'!R87),\"\"))","v":""},null,{"$f":"IF('Blank - Request Form'!$F$6=\"CICMP\",IF('Blank - Request Form'!K87=0,\"\",'Blank - Request Form'!K87),IF('Blank - Request Form'!$F$7=\"CICMP\",IF('Blank - Request Form'!T87=0,\"\",'Blank - Request Form'!T87),\"\"))","v":""},null,null,null,{"$f":"IF(M53<>\"\",'Blank - Request Form'!$M$2,\"\")","v":""},{"$f":"IF('Blank - Request Form'!$F$6=\"CICMP\",IF('Blank - Request Form'!J87=0,\"\",'Blank - Request Form'!J87),IF('Blank - Request Form'!$F$7=\"CICMP\",IF('Blank - Request Form'!S87=0,\"\",'Blank - Request Form'!S87),\"\"))","v":""},"",53]
[{"$f":"IF('Blank - Request Form'!$F$6=\"CICMP\",IF('Blank - Request Form'!D88=0,\"\",'Blank - Request Form'!D88),IF('Blank - Request Form'!$F$7=\"CICMP\",IF('Blank - Request Form'!M88=0,\"\",'Blank - Request Form'!M88),\"\"))","v":""},{"$f":"IF('Blank - Request Form'!$F$6=\"CICMP\",IF('Blank - Request Form'!E88=0,\"\",'Blank - Request Form'!E88),IF('Blank - Request Form'!$F$7=\"CICMP\",IF('Blank - Request Form'!N88=0,\"\",'Blank - Request Form'!N88),\"\"))","v":""},{"$f":"IF('Blank - Request Form'!$F$6=\"CICMP\",IF(OR('Blank - Request Form'!F88=\"000\",'Blank - Request Form'!F88=0),\"\",'Blank - Request Form'!F88),IF('Blank - Request Form'!$F$7=\"CICMP\",IF(OR('Blank - Request Form'!O88=\"000\",'Blank - Request Form'!O88=0),\"\",'Blank - Request Form'!O88),\"\"))","v":""},{"$f":"IF('Blank - Request Form'!$F$6=\"CICMP\",IF(OR('Blank - Request Form'!G88=\"0\",'Blank - Request Form'!G88=\"00000\",'Blank - Request Form'!G88=0),\"\",'Blank - Request Form'!G88),IF('Blank - Request Form'!$F$7=\"CICMP\",IF(OR('Blank - Request Form'!P88=\"0\",'Blank - Request Form'!P88=\"00000\",'Blank - Request Form'!P88=0),\"\",'Blank - Request Form'!P88),\"\"))","v":""},{"$f":"IF('Blank - Request Form'!$F$6=\"CICMP\",IF(OR('Blank - Request Form'!H88=\"0\",'Blank - Request Form'!H88=\"00000\",'Blank - Request Form'!H88=0),\"\",'Blank - Request Form'!H88),IF('Blank - Request Form'!$F$7=\"CICMP\",IF(OR('Blank - Request Form'!Q88=\"0\",'Blank - Request Form'!Q88=\"00000\",'Blank - Request Form'!Q88=0),\"\",'Blank - Request Form'!Q88),\"\"))","v":""},{"$f":"IF('Blank - Request Form'!$F$6=\"CICMP\",IF(OR('Blank - Request Form'!I88=\"0\",'Blank - Request Form'!I88=\"00000\",'Blank - Request Form'!I88=0),\"\",'Blank - Request Form'!I88),IF('Blank - Request Form'!$F$7=\"CICMP\",IF(OR('Blank - Request Form'!R88=\"0\",'Blank - Request Form'!R88=\"00000\",'Blank - Request Form'!R88=0),\"\",'Blank - Request Form'!R88),\"\"))","v":""},null,{"$f":"IF('Blank - Request Form'!$F$6=\"CICMP\",IF('Blank - Request Form'!K88=0,\"\",'Blank - Request Form'!K88),IF('Blank - Request Form'!$F$7=\"CICMP\",IF('Blank - Request Form'!T88=0,\"\",'Blank - Request Form'!T88),\"\"))","v":""},null,null,null,{"$f":"IF(M54<>\"\",'Blank - Request Form'!$M$2,\"\")","v":""},{"$f":"IF('Blank - Request Form'!$F$6=\"CICMP\",IF('Blank - Request Form'!J88=0,\"\",'Blank - Request Form'!J88),IF('Blank - Request Form'!$F$7=\"CICMP\",IF('Blank - Request Form'!S88=0,\"\",'Blank - Request Form'!S88),\"\"))","v":""},"",54]
[{"$f":"IF('Blank - Request Form'!$F$6=\"CICMP\",IF('Blank - Request Form'!D89=0,\"\",'Blank - Request Form'!D89),IF('Blank - Request Form'!$F$7=\"CICMP\",IF('Blank - Request Form'!M89=0,\"\",'Blank - Request Form'!M89),\"\"))","v":""},{"$f":"IF('Blank - Request Form'!$F$6=\"CICMP\",IF('Blank - Request Form'!E89=0,\"\",'Blank - Request Form'!E89),IF('Blank - Request Form'!$F$7=\"CICMP\",IF('Blank - Request Form'!N89=0,\"\",'Blank - Request Form'!N89),\"\"))","v":""},{"$f":"IF('Blank - Request Form'!$F$6=\"CICMP\",IF(OR('Blank - Request Form'!F89=\"000\",'Blank - Request Form'!F89=0),\"\",'Blank - Request Form'!F89),IF('Blank - Request Form'!$F$7=\"CICMP\",IF(OR('Blank - Request Form'!O89=\"000\",'Blank - Request Form'!O89=0),\"\",'Blank - Request Form'!O89),\"\"))","v":""},{"$f":"IF('Blank - Request Form'!$F$6=\"CICMP\",IF(OR('Blank - Request Form'!G89=\"0\",'Blank - Request Form'!G89=\"00000\",'Blank - Request Form'!G89=0),\"\",'Blank - Request Form'!G89),IF('Blank - Request Form'!$F$7=\"CICMP\",IF(OR('Blank - Request Form'!P89=\"0\",'Blank - Request Form'!P89=\"00000\",'Blank - Request Form'!P89=0),\"\",'Blank - Request Form'!P89),\"\"))","v":""},{"$f":"IF('Blank - Request Form'!$F$6=\"CICMP\",IF(OR('Blank - Request Form'!H89=\"0\",'Blank - Request Form'!H89=\"00000\",'Blank - Request Form'!H89=0),\"\",'Blank - Request Form'!H89),IF('Blank - Request Form'!$F$7=\"CICMP\",IF(OR('Blank - Request Form'!Q89=\"0\",'Blank - Request Form'!Q89=\"00000\",'Blank - Request Form'!Q89=0),\"\",'Blank - Request Form'!Q89),\"\"))","v":""},{"$f":"IF('Blank - Request Form'!$F$6=\"CICMP\",IF(OR('Blank - Request Form'!I89=\"0\",'Blank - Request Form'!I89=\"00000\",'Blank - Request Form'!I89=0),\"\",'Blank - Request Form'!I89),IF('Blank - Request Form'!$F$7=\"CICMP\",IF(OR('Blank - Request Form'!R89=\"0\",'Blank - Request Form'!R89=\"00000\",'Blank - Request Form'!R89=0),\"\",'Blank - Request Form'!R89),\"\"))","v":""},null,{"$f":"IF('Blank - Request Form'!$F$6=\"CICMP\",IF('Blank - Request Form'!K89=0,\"\",'Blank - Request Form'!K89),IF('Blank - Request Form'!$F$7=\"CICMP\",IF('Blank - Request Form'!T89=0,\"\",'Blank - Request Form'!T89),\"\"))","v":""},null,null,null,{"$f":"IF(M55<>\"\",'Blank - Request Form'!$M$2,\"\")","v":""},{"$f":"IF('Blank - Request Form'!$F$6=\"CICMP\",IF('Blank - Request Form'!J89=0,\"\",'Blank - Request Form'!J89),IF('Blank - Request Form'!$F$7=\"CICMP\",IF('Blank - Request Form'!S89=0,\"\",'Blank - Request Form'!S89),\"\"))","v":""},"",55]
[{"$f":"IF('Blank - Request Form'!$F$6=\"CICMP\",IF('Blank - Request Form'!D90=0,\"\",'Blank - Request Form'!D90),IF('Blank - Request Form'!$F$7=\"CICMP\",IF('Blank - Request Form'!M90=0,\"\",'Blank - Request Form'!M90),\"\"))","v":""},{"$f":"IF('Blank - Request Form'!$F$6=\"CICMP\",IF('Blank - Request Form'!E90=0,\"\",'Blank - Request Form'!E90),IF('Blank - Request Form'!$F$7=\"CICMP\",IF('Blank - Request Form'!N90=0,\"\",'Blank - Request Form'!N90),\"\"))","v":""},{"$f":"IF('Blank - Request Form'!$F$6=\"CICMP\",IF(OR('Blank - Request Form'!F90=\"000\",'Blank - Request Form'!F90=0),\"\",'Blank - Request Form'!F90),IF('Blank - Request Form'!$F$7=\"CICMP\",IF(OR('Blank - Request Form'!O90=\"000\",'Blank - Request Form'!O90=0),\"\",'Blank - Request Form'!O90),\"\"))","v":""},{"$f":"IF('Blank - Request Form'!$F$6=\"CICMP\",IF(OR('Blank - Request Form'!G90=\"0\",'Blank - Request Form'!G90=\"00000\",'Blank - Request Form'!G90=0),\"\",'Blank - Request Form'!G90),IF('Blank - Request Form'!$F$7=\"CICMP\",IF(OR('Blank - Request Form'!P90=\"0\",'Blank - Request Form'!P90=\"00000\",'Blank - Request Form'!P90=0),\"\",'Blank - Request Form'!P90),\"\"))","v":""},{"$f":"IF('Blank - Request Form'!$F$6=\"CICMP\",IF(OR('Blank - Request Form'!H90=\"0\",'Blank - Request Form'!H90=\"00000\",'Blank - Request Form'!H90=0),\"\",'Blank - Request Form'!H90),IF('Blank - Request Form'!$F$7=\"CICMP\",IF(OR('Blank - Request Form'!Q90=\"0\",'Blank - Request Form'!Q90=\"00000\",'Blank - Request Form'!Q90=0),\"\",'Blank - Request Form'!Q90),\"\"))","v":""},{"$f":"IF('Blank - Request Form'!$F$6=\"CICMP\",IF(OR('Blank - Request Form'!I90=\"0\",'Blank - Request Form'!I90=\"00000\",'Blank - Request Form'!I90=0),\"\",'Blank - Request Form'!I90),IF('Blank - Request Form'!$F$7=\"CICMP\",IF(OR('Blank - Request Form'!R90=\"0\",'Blank - Request Form'!R90=\"00000\",'Blank - Request Form'!R90=0),\"\",'Blank - Request Form'!R90),\"\"))","v":""},null,{"$f":"IF('Blank - Request Form'!$F$6=\"CICMP\",IF('Blank - Request Form'!K90=0,\"\",'Blank - Request Form'!K90),IF('Blank - Request Form'!$F$7=\"CICMP\",IF('Blank - Request Form'!T90=0,\"\",'Blank - Request Form'!T90),\"\"))","v":""},null,null,null,{"$f":"IF(M56<>\"\",'Blank - Request Form'!$M$2,\"\")","v":""},{"$f":"IF('Blank - Request Form'!$F$6=\"CICMP\",IF('Blank - Request Form'!J90=0,\"\",'Blank - Request Form'!J90),IF('Blank - Request Form'!$F$7=\"CICMP\",IF('Blank - Request Form'!S90=0,\"\",'Blank - Request Form'!S90),\"\"))","v":""},"",56]
[{"$f":"IF('Blank - Request Form'!$F$6=\"CICMP\",IF('Blank - Request Form'!D91=0,\"\",'Blank - Request Form'!D91),IF('Blank - Request Form'!$F$7=\"CICMP\",IF('Blank - Request Form'!M91=0,\"\",'Blank - Request Form'!M91),\"\"))","v":""},{"$f":"IF('Blank - Request Form'!$F$6=\"CICMP\",IF('Blank - Request Form'!E91=0,\"\",'Blank - Request Form'!E91),IF('Blank - Request Form'!$F$7=\"CICMP\",IF('Blank - Request Form'!N91=0,\"\",'Blank - Request Form'!N91),\"\"))","v":""},{"$f":"IF('Blank - Request Form'!$F$6=\"CICMP\",IF(OR('Blank - Request Form'!F91=\"000\",'Blank - Request Form'!F91=0),\"\",'Blank - Request Form'!F91),IF('Blank - Request Form'!$F$7=\"CICMP\",IF(OR('Blank - Request Form'!O91=\"000\",'Blank - Request Form'!O91=0),\"\",'Blank - Request Form'!O91),\"\"))","v":""},{"$f":"IF('Blank - Request Form'!$F$6=\"CICMP\",IF(OR('Blank - Request Form'!G91=\"0\",'Blank - Request Form'!G91=\"00000\",'Blank - Request Form'!G91=0),\"\",'Blank - Request Form'!G91),IF('Blank - Request Form'!$F$7=\"CICMP\",IF(OR('Blank - Request Form'!P91=\"0\",'Blank - Request Form'!P91=\"00000\",'Blank - Request Form'!P91=0),\"\",'Blank - Request Form'!P91),\"\"))","v":""},{"$f":"IF('Blank - Request Form'!$F$6=\"CICMP\",IF(OR('Blank - Request Form'!H91=\"0\",'Blank - Request Form'!H91=\"00000\",'Blank - Request Form'!H91=0),\"\",'Blank - Request Form'!H91),IF('Blank - Request Form'!$F$7=\"CICMP\",IF(OR('Blank - Request Form'!Q91=\"0\",'Blank - Request Form'!Q91=\"00000\",'Blank - Request Form'!Q91=0),\"\",'Blank - Request Form'!Q91),\"\"))","v":""},{"$f":"IF('Blank - Request Form'!$F$6=\"CICMP\",IF(OR('Blank - Request Form'!I91=\"0\",'Blank - Request Form'!I91=\"00000\",'Blank - Request Form'!I91=0),\"\",'Blank - Request Form'!I91),IF('Blank - Request Form'!$F$7=\"CICMP\",IF(OR('Blank - Request Form'!R91=\"0\",'Blank - Request Form'!R91=\"00000\",'Blank - Request Form'!R91=0),\"\",'Blank - Request Form'!R91),\"\"))","v":""},null,{"$f":"IF('Blank - Request Form'!$F$6=\"CICMP\",IF('Blank - Request Form'!K91=0,\"\",'Blank - Request Form'!K91),IF('Blank - Request Form'!$F$7=\"CICMP\",IF('Blank - Request Form'!T91=0,\"\",'Blank - Request Form'!T91),\"\"))","v":""},null,null,null,{"$f":"IF(M57<>\"\",'Blank - Request Form'!$M$2,\"\")","v":""},{"$f":"IF('Blank - Request Form'!$F$6=\"CICMP\",IF('Blank - Request Form'!J91=0,\"\",'Blank - Request Form'!J91),IF('Blank - Request Form'!$F$7=\"CICMP\",IF('Blank - Request Form'!S91=0,\"\",'Blank - Request Form'!S91),\"\"))","v":""},"",57]
[{"$f":"IF('Blank - Request Form'!$F$6=\"CICMP\",IF('Blank - Request Form'!D92=0,\"\",'Blank - Request Form'!D92),IF('Blank - Request Form'!$F$7=\"CICMP\",IF('Blank - Request Form'!M92=0,\"\",'Blank - Request Form'!M92),\"\"))","v":""},{"$f":"IF('Blank - Request Form'!$F$6=\"CICMP\",IF('Blank - Request Form'!E92=0,\"\",'Blank - Request Form'!E92),IF('Blank - Request Form'!$F$7=\"CICMP\",IF('Blank - Request Form'!N92=0,\"\",'Blank - Request Form'!N92),\"\"))","v":""},{"$f":"IF('Blank - Request Form'!$F$6=\"CICMP\",IF(OR('Blank - Request Form'!F92=\"000\",'Blank - Request Form'!F92=0),\"\",'Blank - Request Form'!F92),IF('Blank - Request Form'!$F$7=\"CICMP\",IF(OR('Blank - Request Form'!O92=\"000\",'Blank - Request Form'!O92=0),\"\",'Blank - Request Form'!O92),\"\"))","v":""},{"$f":"IF('Blank - Request Form'!$F$6=\"CICMP\",IF(OR('Blank - Request Form'!G92=\"0\",'Blank - Request Form'!G92=\"00000\",'Blank - Request Form'!G92=0),\"\",'Blank - Request Form'!G92),IF('Blank - Request Form'!$F$7=\"CICMP\",IF(OR('Blank - Request Form'!P92=\"0\",'Blank - Request Form'!P92=\"00000\",'Blank - Request Form'!P92=0),\"\",'Blank - Request Form'!P92),\"\"))","v":""},{"$f":"IF('Blank - Request Form'!$F$6=\"CICMP\",IF(OR('Blank - Request Form'!H92=\"0\",'Blank - Request Form'!H92=\"00000\",'Blank - Request Form'!H92=0),\"\",'Blank - Request Form'!H92),IF('Blank - Request Form'!$F$7=\"CICMP\",IF(OR('Blank - Request Form'!Q92=\"0\",'Blank - Request Form'!Q92=\"00000\",'Blank - Request Form'!Q92=0),\"\",'Blank - Request Form'!Q92),\"\"))","v":""},{"$f":"IF('Blank - Request Form'!$F$6=\"CICMP\",IF(OR('Blank - Request Form'!I92=\"0\",'Blank - Request Form'!I92=\"00000\",'Blank - Request Form'!I92=0),\"\",'Blank - Request Form'!I92),IF('Blank - Request Form'!$F$7=\"CICMP\",IF(OR('Blank - Request Form'!R92=\"0\",'Blank - Request Form'!R92=\"00000\",'Blank - Request Form'!R92=0),\"\",'Blank - Request Form'!R92),\"\"))","v":""},null,{"$f":"IF('Blank - Request Form'!$F$6=\"CICMP\",IF('Blank - Request Form'!K92=0,\"\",'Blank - Request Form'!K92),IF('Blank - Request Form'!$F$7=\"CICMP\",IF('Blank - Request Form'!T92=0,\"\",'Blank - Request Form'!T92),\"\"))","v":""},null,null,null,{"$f":"IF(M58<>\"\",'Blank - Request Form'!$M$2,\"\")","v":""},{"$f":"IF('Blank - Request Form'!$F$6=\"CICMP\",IF('Blank - Request Form'!J92=0,\"\",'Blank - Request Form'!J92),IF('Blank - Request Form'!$F$7=\"CICMP\",IF('Blank - Request Form'!S92=0,\"\",'Blank - Request Form'!S92),\"\"))","v":""},"",58]
[{"$f":"IF('Blank - Request Form'!$F$6=\"CICMP\",IF('Blank - Request Form'!D93=0,\"\",'Blank - Request Form'!D93),IF('Blank - Request Form'!$F$7=\"CICMP\",IF('Blank - Request Form'!M93=0,\"\",'Blank - Request Form'!M93),\"\"))","v":""},{"$f":"IF('Blank - Request Form'!$F$6=\"CICMP\",IF('Blank - Request Form'!E93=0,\"\",'Blank - Request Form'!E93),IF('Blank - Request Form'!$F$7=\"CICMP\",IF('Blank - Request Form'!N93=0,\"\",'Blank - Request Form'!N93),\"\"))","v":""},{"$f":"IF('Blank - Request Form'!$F$6=\"CICMP\",IF(OR('Blank - Request Form'!F93=\"000\",'Blank - Request Form'!F93=0),\"\",'Blank - Request Form'!F93),IF('Blank - Request Form'!$F$7=\"CICMP\",IF(OR('Blank - Request Form'!O93=\"000\",'Blank - Request Form'!O93=0),\"\",'Blank - Request Form'!O93),\"\"))","v":""},{"$f":"IF('Blank - Request Form'!$F$6=\"CICMP\",IF(OR('Blank - Request Form'!G93=\"0\",'Blank - Request Form'!G93=\"00000\",'Blank - Request Form'!G93=0),\"\",'Blank - Request Form'!G93),IF('Blank - Request Form'!$F$7=\"CICMP\",IF(OR('Blank - Request Form'!P93=\"0\",'Blank - Request Form'!P93=\"00000\",'Blank - Request Form'!P93=0),\"\",'Blank - Request Form'!P93),\"\"))","v":""},{"$f":"IF('Blank - Request Form'!$F$6=\"CICMP\",IF(OR('Blank - Request Form'!H93=\"0\",'Blank - Request Form'!H93=\"00000\",'Blank - Request Form'!H93=0),\"\",'Blank - Request Form'!H93),IF('Blank - Request Form'!$F$7=\"CICMP\",IF(OR('Blank - Request Form'!Q93=\"0\",'Blank - Request Form'!Q93=\"00000\",'Blank - Request Form'!Q93=0),\"\",'Blank - Request Form'!Q93),\"\"))","v":""},{"$f":"IF('Blank - Request Form'!$F$6=\"CICMP\",IF(OR('Blank - Request Form'!I93=\"0\",'Blank - Request Form'!I93=\"00000\",'Blank - Request Form'!I93=0),\"\",'Blank - Request Form'!I93),IF('Blank - Request Form'!$F$7=\"CICMP\",IF(OR('Blank - Request Form'!R93=\"0\",'Blank - Request Form'!R93=\"00000\",'Blank - Request Form'!R93=0),\"\",'Blank - Request Form'!R93),\"\"))","v":""},null,{"$f":"IF('Blank - Request Form'!$F$6=\"CICMP\",IF('Blank - Request Form'!K93=0,\"\",'Blank - Request Form'!K93),IF('Blank - Request Form'!$F$7=\"CICMP\",IF('Blank - Request Form'!T93=0,\"\",'Blank - Request Form'!T93),\"\"))","v":""},null,null,null,{"$f":"IF(M59<>\"\",'Blank - Request Form'!$M$2,\"\")","v":""},{"$f":"IF('Blank - Request Form'!$F$6=\"CICMP\",IF('Blank - Request Form'!J93=0,\"\",'Blank - Request Form'!J93),IF('Blank - Request Form'!$F$7=\"CICMP\",IF('Blank - Request Form'!S93=0,\"\",'Blank - Request Form'!S93),\"\"))","v":""},"",59]
[{"$f":"IF('Blank - Request Form'!$F$6=\"CICMP\",IF('Blank - Request Form'!D94=0,\"\",'Blank - Request Form'!D94),IF('Blank - Request Form'!$F$7=\"CICMP\",IF('Blank - Request Form'!M94=0,\"\",'Blank - Request Form'!M94),\"\"))","v":""},{"$f":"IF('Blank - Request Form'!$F$6=\"CICMP\",IF('Blank - Request Form'!E94=0,\"\",'Blank - Request Form'!E94),IF('Blank - Request Form'!$F$7=\"CICMP\",IF('Blank - Request Form'!N94=0,\"\",'Blank - Request Form'!N94),\"\"))","v":""},{"$f":"IF('Blank - Request Form'!$F$6=\"CICMP\",IF(OR('Blank - Request Form'!F94=\"000\",'Blank - Request Form'!F94=0),\"\",'Blank - Request Form'!F94),IF('Blank - Request Form'!$F$7=\"CICMP\",IF(OR('Blank - Request Form'!O94=\"000\",'Blank - Request Form'!O94=0),\"\",'Blank - Request Form'!O94),\"\"))","v":""},{"$f":"IF('Blank - Request Form'!$F$6=\"CICMP\",IF(OR('Blank - Request Form'!G94=\"0\",'Blank - Request Form'!G94=\"00000\",'Blank - Request Form'!G94=0),\"\",'Blank - Request Form'!G94),IF('Blank - Request Form'!$F$7=\"CICMP\",IF(OR('Blank - Request Form'!P94=\"0\",'Blank - Request Form'!P94=\"00000\",'Blank - Request Form'!P94=0),\"\",'Blank - Request Form'!P94),\"\"))","v":""},{"$f":"IF('Blank - Request Form'!$F$6=\"CICMP\",IF(OR('Blank - Request Form'!H94=\"0\",'Blank - Request Form'!H94=\"00000\",'Blank - Request Form'!H94=0),\"\",'Blank - Request Form'!H94),IF('Blank - Request Form'!$F$7=\"CICMP\",IF(OR('Blank - Request Form'!Q94=\"0\",'Blank - Request Form'!Q94=\"00000\",'Blank - Request Form'!Q94=0),\"\",'Blank - Request Form'!Q94),\"\"))","v":""},{"$f":"IF('Blank - Request Form'!$F$6=\"CICMP\",IF(OR('Blank - Request Form'!I94=\"0\",'Blank - Request Form'!I94=\"00000\",'Blank - Request Form'!I94=0),\"\",'Blank - Request Form'!I94),IF('Blank - Request Form'!$F$7=\"CICMP\",IF(OR('Blank - Request Form'!R94=\"0\",'Blank - Request Form'!R94=\"00000\",'Blank - Request Form'!R94=0),\"\",'Blank - Request Form'!R94),\"\"))","v":""},null,{"$f":"IF('Blank - Request Form'!$F$6=\"CICMP\",IF('Blank - Request Form'!K94=0,\"\",'Blank - Request Form'!K94),IF('Blank - Request Form'!$F$7=\"CICMP\",IF('Blank - Request Form'!T94=0,\"\",'Blank - Request Form'!T94),\"\"))","v":""},null,null,null,{"$f":"IF(M60<>\"\",'Blank - Request Form'!$M$2,\"\")","v":""},{"$f":"IF('Blank - Request Form'!$F$6=\"CICMP\",IF('Blank - Request Form'!J94=0,\"\",'Blank - Request Form'!J94),IF('Blank - Request Form'!$F$7=\"CICMP\",IF('Blank - Request Form'!S94=0,\"\",'Blank - Request Form'!S94),\"\"))","v":""},"",60]
[{"$f":"IF('Blank - Request Form'!$F$6=\"CICMP\",IF('Blank - Request Form'!D95=0,\"\",'Blank - Request Form'!D95),IF('Blank - Request Form'!$F$7=\"CICMP\",IF('Blank - Request Form'!M95=0,\"\",'Blank - Request Form'!M95),\"\"))","v":""},{"$f":"IF('Blank - Request Form'!$F$6=\"CICMP\",IF('Blank - Request Form'!E95=0,\"\",'Blank - Request Form'!E95),IF('Blank - Request Form'!$F$7=\"CICMP\",IF('Blank - Request Form'!N95=0,\"\",'Blank - Request Form'!N95),\"\"))","v":""},{"$f":"IF('Blank - Request Form'!$F$6=\"CICMP\",IF(OR('Blank - Request Form'!F95=\"000\",'Blank - Request Form'!F95=0),\"\",'Blank - Request Form'!F95),IF('Blank - Request Form'!$F$7=\"CICMP\",IF(OR('Blank - Request Form'!O95=\"000\",'Blank - Request Form'!O95=0),\"\",'Blank - Request Form'!O95),\"\"))","v":""},{"$f":"IF('Blank - Request Form'!$F$6=\"CICMP\",IF(OR('Blank - Request Form'!G95=\"0\",'Blank - Request Form'!G95=\"00000\",'Blank - Request Form'!G95=0),\"\",'Blank - Request Form'!G95),IF('Blank - Request Form'!$F$7=\"CICMP\",IF(OR('Blank - Request Form'!P95=\"0\",'Blank - Request Form'!P95=\"00000\",'Blank - Request Form'!P95=0),\"\",'Blank - Request Form'!P95),\"\"))","v":""},{"$f":"IF('Blank - Request Form'!$F$6=\"CICMP\",IF(OR('Blank - Request Form'!H95=\"0\",'Blank - Request Form'!H95=\"00000\",'Blank - Request Form'!H95=0),\"\",'Blank - Request Form'!H95),IF('Blank - Request Form'!$F$7=\"CICMP\",IF(OR('Blank - Request Form'!Q95=\"0\",'Blank - Request Form'!Q95=\"00000\",'Blank - Request Form'!Q95=0),\"\",'Blank - Request Form'!Q95),\"\"))","v":""},{"$f":"IF('Blank - Request Form'!$F$6=\"CICMP\",IF(OR('Blank - Request Form'!I95=\"0\",'Blank - Request Form'!I95=\"00000\",'Blank - Request Form'!I95=0),\"\",'Blank - Request Form'!I95),IF('Blank - Request Form'!$F$7=\"CICMP\",IF(OR('Blank - Request Form'!R95=\"0\",'Blank - Request Form'!R95=\"00000\",'Blank - Request Form'!R95=0),\"\",'Blank - Request Form'!R95),\"\"))","v":""},null,{"$f":"IF('Blank - Request Form'!$F$6=\"CICMP\",IF('Blank - Request Form'!K95=0,\"\",'Blank - Request Form'!K95),IF('Blank - Request Form'!$F$7=\"CICMP\",IF('Blank - Request Form'!T95=0,\"\",'Blank - Request Form'!T95),\"\"))","v":""},null,null,null,{"$f":"IF(M61<>\"\",'Blank - Request Form'!$M$2,\"\")","v":""},{"$f":"IF('Blank - Request Form'!$F$6=\"CICMP\",IF('Blank - Request Form'!J95=0,\"\",'Blank - Request Form'!J95),IF('Blank - Request Form'!$F$7=\"CICMP\",IF('Blank - Request Form'!S95=0,\"\",'Blank - Request Form'!S95),\"\"))","v":""},"",61]
[{"$f":"IF('Blank - Request Form'!$F$6=\"CICMP\",IF('Blank - Request Form'!D96=0,\"\",'Blank - Request Form'!D96),IF('Blank - Request Form'!$F$7=\"CICMP\",IF('Blank - Request Form'!M96=0,\"\",'Blank - Request Form'!M96),\"\"))","v":""},{"$f":"IF('Blank - Request Form'!$F$6=\"CICMP\",IF('Blank - Request Form'!E96=0,\"\",'Blank - Request Form'!E96),IF('Blank - Request Form'!$F$7=\"CICMP\",IF('Blank - Request Form'!N96=0,\"\",'Blank - Request Form'!N96),\"\"))","v":""},{"$f":"IF('Blank - Request Form'!$F$6=\"CICMP\",IF(OR('Blank - Request Form'!F96=\"000\",'Blank - Request Form'!F96=0),\"\",'Blank - Request Form'!F96),IF('Blank - Request Form'!$F$7=\"CICMP\",IF(OR('Blank - Request Form'!O96=\"000\",'Blank - Request Form'!O96=0),\"\",'Blank - Request Form'!O96),\"\"))","v":""},{"$f":"IF('Blank - Request Form'!$F$6=\"CICMP\",IF(OR('Blank - Request Form'!G96=\"0\",'Blank - Request Form'!G96=\"00000\",'Blank - Request Form'!G96=0),\"\",'Blank - Request Form'!G96),IF('Blank - Request Form'!$F$7=\"CICMP\",IF(OR('Blank - Request Form'!P96=\"0\",'Blank - Request Form'!P96=\"00000\",'Blank - Request Form'!P96=0),\"\",'Blank - Request Form'!P96),\"\"))","v":""},{"$f":"IF('Blank - Request Form'!$F$6=\"CICMP\",IF(OR('Blank - Request Form'!H96=\"0\",'Blank - Request Form'!H96=\"00000\",'Blank - Request Form'!H96=0),\"\",'Blank - Request Form'!H96),IF('Blank - Request Form'!$F$7=\"CICMP\",IF(OR('Blank - Request Form'!Q96=\"0\",'Blank - Request Form'!Q96=\"00000\",'Blank - Request Form'!Q96=0),\"\",'Blank - Request Form'!Q96),\"\"))","v":""},{"$f":"IF('Blank - Request Form'!$F$6=\"CICMP\",IF(OR('Blank - Request Form'!I96=\"0\",'Blank - Request Form'!I96=\"00000\",'Blank - Request Form'!I96=0),\"\",'Blank - Request Form'!I96),IF('Blank - Request Form'!$F$7=\"CICMP\",IF(OR('Blank - Request Form'!R96=\"0\",'Blank - Request Form'!R96=\"00000\",'Blank - Request Form'!R96=0),\"\",'Blank - Request Form'!R96),\"\"))","v":""},null,{"$f":"IF('Blank - Request Form'!$F$6=\"CICMP\",IF('Blank - Request Form'!K96=0,\"\",'Blank - Request Form'!K96),IF('Blank - Request Form'!$F$7=\"CICMP\",IF('Blank - Request Form'!T96=0,\"\",'Blank - Request Form'!T96),\"\"))","v":""},null,null,null,{"$f":"IF(M62<>\"\",'Blank - Request Form'!$M$2,\"\")","v":""},{"$f":"IF('Blank - Request Form'!$F$6=\"CICMP\",IF('Blank - Request Form'!J96=0,\"\",'Blank - Request Form'!J96),IF('Blank - Request Form'!$F$7=\"CICMP\",IF('Blank - Request Form'!S96=0,\"\",'Blank - Request Form'!S96),\"\"))","v":""},"",62]
[{"$f":"IF('Blank - Request Form'!$F$6=\"CICMP\",IF('Blank - Request Form'!D97=0,\"\",'Blank - Request Form'!D97),IF('Blank - Request Form'!$F$7=\"CICMP\",IF('Blank - Request Form'!M97=0,\"\",'Blank - Request Form'!M97),\"\"))","v":""},{"$f":"IF('Blank - Request Form'!$F$6=\"CICMP\",IF('Blank - Request Form'!E97=0,\"\",'Blank - Request Form'!E97),IF('Blank - Request Form'!$F$7=\"CICMP\",IF('Blank - Request Form'!N97=0,\"\",'Blank - Request Form'!N97),\"\"))","v":""},{"$f":"IF('Blank - Request Form'!$F$6=\"CICMP\",IF(OR('Blank - Request Form'!F97=\"000\",'Blank - Request Form'!F97=0),\"\",'Blank - Request Form'!F97),IF('Blank - Request Form'!$F$7=\"CICMP\",IF(OR('Blank - Request Form'!O97=\"000\",'Blank - Request Form'!O97=0),\"\",'Blank - Request Form'!O97),\"\"))","v":""},{"$f":"IF('Blank - Request Form'!$F$6=\"CICMP\",IF(OR('Blank - Request Form'!G97=\"0\",'Blank - Request Form'!G97=\"00000\",'Blank - Request Form'!G97=0),\"\",'Blank - Request Form'!G97),IF('Blank - Request Form'!$F$7=\"CICMP\",IF(OR('Blank - Request Form'!P97=\"0\",'Blank - Request Form'!P97=\"00000\",'Blank - Request Form'!P97=0),\"\",'Blank - Request Form'!P97),\"\"))","v":""},{"$f":"IF('Blank - Request Form'!$F$6=\"CICMP\",IF(OR('Blank - Request Form'!H97=\"0\",'Blank - Request Form'!H97=\"00000\",'Blank - Request Form'!H97=0),\"\",'Blank - Request Form'!H97),IF('Blank - Request Form'!$F$7=\"CICMP\",IF(OR('Blank - Request Form'!Q97=\"0\",'Blank - Request Form'!Q97=\"00000\",'Blank - Request Form'!Q97=0),\"\",'Blank - Request Form'!Q97),\"\"))","v":""},{"$f":"IF('Blank - Request Form'!$F$6=\"CICMP\",IF(OR('Blank - Request Form'!I97=\"0\",'Blank - Request Form'!I97=\"00000\",'Blank - Request Form'!I97=0),\"\",'Blank - Request Form'!I97),IF('Blank - Request Form'!$F$7=\"CICMP\",IF(OR('Blank - Request Form'!R97=\"0\",'Blank - Request Form'!R97=\"00000\",'Blank - Request Form'!R97=0),\"\",'Blank - Request Form'!R97),\"\"))","v":""},null,{"$f":"IF('Blank - Request Form'!$F$6=\"CICMP\",IF('Blank - Request Form'!K97=0,\"\",'Blank - Request Form'!K97),IF('Blank - Request Form'!$F$7=\"CICMP\",IF('Blank - Request Form'!T97=0,\"\",'Blank - Request Form'!T97),\"\"))","v":""},null,null,null,{"$f":"IF(M63<>\"\",'Blank - Request Form'!$M$2,\"\")","v":""},{"$f":"IF('Blank - Request Form'!$F$6=\"CICMP\",IF('Blank - Request Form'!J97=0,\"\",'Blank - Request Form'!J97),IF('Blank - Request Form'!$F$7=\"CICMP\",IF('Blank - Request Form'!S97=0,\"\",'Blank - Request Form'!S97),\"\"))","v":""},"",63]
[{"$f":"IF('Blank - Request Form'!$F$6=\"CICMP\",IF('Blank - Request Form'!D98=0,\"\",'Blank - Request Form'!D98),IF('Blank - Request Form'!$F$7=\"CICMP\",IF('Blank - Request Form'!M98=0,\"\",'Blank - Request Form'!M98),\"\"))","v":""},{"$f":"IF('Blank - Request Form'!$F$6=\"CICMP\",IF('Blank - Request Form'!E98=0,\"\",'Blank - Request Form'!E98),IF('Blank - Request Form'!$F$7=\"CICMP\",IF('Blank - Request Form'!N98=0,\"\",'Blank - Request Form'!N98),\"\"))","v":""},{"$f":"IF('Blank - Request Form'!$F$6=\"CICMP\",IF(OR('Blank - Request Form'!F98=\"000\",'Blank - Request Form'!F98=0),\"\",'Blank - Request Form'!F98),IF('Blank - Request Form'!$F$7=\"CICMP\",IF(OR('Blank - Request Form'!O98=\"000\",'Blank - Request Form'!O98=0),\"\",'Blank - Request Form'!O98),\"\"))","v":""},{"$f":"IF('Blank - Request Form'!$F$6=\"CICMP\",IF(OR('Blank - Request Form'!G98=\"0\",'Blank - Request Form'!G98=\"00000\",'Blank - Request Form'!G98=0),\"\",'Blank - Request Form'!G98),IF('Blank - Request Form'!$F$7=\"CICMP\",IF(OR('Blank - Request Form'!P98=\"0\",'Blank - Request Form'!P98=\"00000\",'Blank - Request Form'!P98=0),\"\",'Blank - Request Form'!P98),\"\"))","v":""},{"$f":"IF('Blank - Request Form'!$F$6=\"CICMP\",IF(OR('Blank - Request Form'!H98=\"0\",'Blank - Request Form'!H98=\"00000\",'Blank - Request Form'!H98=0),\"\",'Blank - Request Form'!H98),IF('Blank - Request Form'!$F$7=\"CICMP\",IF(OR('Blank - Request Form'!Q98=\"0\",'Blank - Request Form'!Q98=\"00000\",'Blank - Request Form'!Q98=0),\"\",'Blank - Request Form'!Q98),\"\"))","v":""},{"$f":"IF('Blank - Request Form'!$F$6=\"CICMP\",IF(OR('Blank - Request Form'!I98=\"0\",'Blank - Request Form'!I98=\"00000\",'Blank - Request Form'!I98=0),\"\",'Blank - Request Form'!I98),IF('Blank - Request Form'!$F$7=\"CICMP\",IF(OR('Blank - Request Form'!R98=\"0\",'Blank - Request Form'!R98=\"00000\",'Blank - Request Form'!R98=0),\"\",'Blank - Request Form'!R98),\"\"))","v":""},null,{"$f":"IF('Blank - Request Form'!$F$6=\"CICMP\",IF('Blank - Request Form'!K98=0,\"\",'Blank - Request Form'!K98),IF('Blank - Request Form'!$F$7=\"CICMP\",IF('Blank - Request Form'!T98=0,\"\",'Blank - Request Form'!T98),\"\"))","v":""},null,null,null,{"$f":"IF(M64<>\"\",'Blank - Request Form'!$M$2,\"\")","v":""},{"$f":"IF('Blank - Request Form'!$F$6=\"CICMP\",IF('Blank - Request Form'!J98=0,\"\",'Blank - Request Form'!J98),IF('Blank - Request Form'!$F$7=\"CICMP\",IF('Blank - Request Form'!S98=0,\"\",'Blank - Request Form'!S98),\"\"))","v":""},"",64]
[{"$f":"IF('Blank - Request Form'!$F$6=\"CICMP\",IF('Blank - Request Form'!D99=0,\"\",'Blank - Request Form'!D99),IF('Blank - Request Form'!$F$7=\"CICMP\",IF('Blank - Request Form'!M99=0,\"\",'Blank - Request Form'!M99),\"\"))","v":""},{"$f":"IF('Blank - Request Form'!$F$6=\"CICMP\",IF('Blank - Request Form'!E99=0,\"\",'Blank - Request Form'!E99),IF('Blank - Request Form'!$F$7=\"CICMP\",IF('Blank - Request Form'!N99=0,\"\",'Blank - Request Form'!N99),\"\"))","v":""},{"$f":"IF('Blank - Request Form'!$F$6=\"CICMP\",IF(OR('Blank - Request Form'!F99=\"000\",'Blank - Request Form'!F99=0),\"\",'Blank - Request Form'!F99),IF('Blank - Request Form'!$F$7=\"CICMP\",IF(OR('Blank - Request Form'!O99=\"000\",'Blank - Request Form'!O99=0),\"\",'Blank - Request Form'!O99),\"\"))","v":""},{"$f":"IF('Blank - Request Form'!$F$6=\"CICMP\",IF(OR('Blank - Request Form'!G99=\"0\",'Blank - Request Form'!G99=\"00000\",'Blank - Request Form'!G99=0),\"\",'Blank - Request Form'!G99),IF('Blank - Request Form'!$F$7=\"CICMP\",IF(OR('Blank - Request Form'!P99=\"0\",'Blank - Request Form'!P99=\"00000\",'Blank - Request Form'!P99=0),\"\",'Blank - Request Form'!P99),\"\"))","v":""},{"$f":"IF('Blank - Request Form'!$F$6=\"CICMP\",IF(OR('Blank - Request Form'!H99=\"0\",'Blank - Request Form'!H99=\"00000\",'Blank - Request Form'!H99=0),\"\",'Blank - Request Form'!H99),IF('Blank - Request Form'!$F$7=\"CICMP\",IF(OR('Blank - Request Form'!Q99=\"0\",'Blank - Request Form'!Q99=\"00000\",'Blank - Request Form'!Q99=0),\"\",'Blank - Request Form'!Q99),\"\"))","v":""},{"$f":"IF('Blank - Request Form'!$F$6=\"CICMP\",IF(OR('Blank - Request Form'!I99=\"0\",'Blank - Request Form'!I99=\"00000\",'Blank - Request Form'!I99=0),\"\",'Blank - Request Form'!I99),IF('Blank - Request Form'!$F$7=\"CICMP\",IF(OR('Blank - Request Form'!R99=\"0\",'Blank - Request Form'!R99=\"00000\",'Blank - Request Form'!R99=0),\"\",'Blank - Request Form'!R99),\"\"))","v":""},null,{"$f":"IF('Blank - Request Form'!$F$6=\"CICMP\",IF('Blank - Request Form'!K99=0,\"\",'Blank - Request Form'!K99),IF('Blank - Request Form'!$F$7=\"CICMP\",IF('Blank - Request Form'!T99=0,\"\",'Blank - Request Form'!T99),\"\"))","v":""},null,null,null,{"$f":"IF(M65<>\"\",'Blank - Request Form'!$M$2,\"\")","v":""},{"$f":"IF('Blank - Request Form'!$F$6=\"CICMP\",IF('Blank - Request Form'!J99=0,\"\",'Blank - Request Form'!J99),IF('Blank - Request Form'!$F$7=\"CICMP\",IF('Blank - Request Form'!S99=0,\"\",'Blank - Request Form'!S99),\"\"))","v":""},"",65]
[{"$f":"IF('Blank - Request Form'!$F$6=\"CICMP\",IF('Blank - Request Form'!D100=0,\"\",'Blank - Request Form'!D100),IF('Blank - Request Form'!$F$7=\"CICMP\",IF('Blank - Request Form'!M100=0,\"\",'Blank - Request Form'!M100),\"\"))","v":""},{"$f":"IF('Blank - Request Form'!$F$6=\"CICMP\",IF('Blank - Request Form'!E100=0,\"\",'Blank - Request Form'!E100),IF('Blank - Request Form'!$F$7=\"CICMP\",IF('Blank - Request Form'!N100=0,\"\",'Blank - Request Form'!N100),\"\"))","v":""},{"$f":"IF('Blank - Request Form'!$F$6=\"CICMP\",IF(OR('Blank - Request Form'!F100=\"000\",'Blank - Request Form'!F100=0),\"\",'Blank - Request Form'!F100),IF('Blank - Request Form'!$F$7=\"CICMP\",IF(OR('Blank - Request Form'!O100=\"000\",'Blank - Request Form'!O100=0),\"\",'Blank - Request Form'!O100),\"\"))","v":""},{"$f":"IF('Blank - Request Form'!$F$6=\"CICMP\",IF(OR('Blank - Request Form'!G100=\"0\",'Blank - Request Form'!G100=\"00000\",'Blank - Request Form'!G100=0),\"\",'Blank - Request Form'!G100),IF('Blank - Request Form'!$F$7=\"CICMP\",IF(OR('Blank - Request Form'!P100=\"0\",'Blank - Request Form'!P100=\"00000\",'Blank - Request Form'!P100=0),\"\",'Blank - Request Form'!P100),\"\"))","v":""},{"$f":"IF('Blank - Request Form'!$F$6=\"CICMP\",IF(OR('Blank - Request Form'!H100=\"0\",'Blank - Request Form'!H100=\"00000\",'Blank - Request Form'!H100=0),\"\",'Blank - Request Form'!H100),IF('Blank - Request Form'!$F$7=\"CICMP\",IF(OR('Blank - Request Form'!Q100=\"0\",'Blank - Request Form'!Q100=\"00000\",'Blank - Request Form'!Q100=0),\"\",'Blank - Request Form'!Q100),\"\"))","v":""},{"$f":"IF('Blank - Request Form'!$F$6=\"CICMP\",IF(OR('Blank - Request Form'!I100=\"0\",'Blank - Request Form'!I100=\"00000\",'Blank - Request Form'!I100=0),\"\",'Blank - Request Form'!I100),IF('Blank - Request Form'!$F$7=\"CICMP\",IF(OR('Blank - Request Form'!R100=\"0\",'Blank - Request Form'!R100=\"00000\",'Blank - Request Form'!R100=0),\"\",'Blank - Request Form'!R100),\"\"))","v":""},null,{"$f":"IF('Blank - Request Form'!$F$6=\"CICMP\",IF('Blank - Request Form'!K100=0,\"\",'Blank - Request Form'!K100),IF('Blank - Request Form'!$F$7=\"CICMP\",IF('Blank - Request Form'!T100=0,\"\",'Blank - Request Form'!T100),\"\"))","v":""},null,null,null,{"$f":"IF(M66<>\"\",'Blank - Request Form'!$M$2,\"\")","v":""},{"$f":"IF('Blank - Request Form'!$F$6=\"CICMP\",IF('Blank - Request Form'!J100=0,\"\",'Blank - Request Form'!J100),IF('Blank - Request Form'!$F$7=\"CICMP\",IF('Blank - Request Form'!S100=0,\"\",'Blank - Request Form'!S100),\"\"))","v":""},"",66]
[{"$f":"IF('Blank - Request Form'!$F$6=\"CICMP\",IF('Blank - Request Form'!D101=0,\"\",'Blank - Request Form'!D101),IF('Blank - Request Form'!$F$7=\"CICMP\",IF('Blank - Request Form'!M101=0,\"\",'Blank - Request Form'!M101),\"\"))","v":""},{"$f":"IF('Blank - Request Form'!$F$6=\"CICMP\",IF('Blank - Request Form'!E101=0,\"\",'Blank - Request Form'!E101),IF('Blank - Request Form'!$F$7=\"CICMP\",IF('Blank - Request Form'!N101=0,\"\",'Blank - Request Form'!N101),\"\"))","v":""},{"$f":"IF('Blank - Request Form'!$F$6=\"CICMP\",IF(OR('Blank - Request Form'!F101=\"000\",'Blank - Request Form'!F101=0),\"\",'Blank - Request Form'!F101),IF('Blank - Request Form'!$F$7=\"CICMP\",IF(OR('Blank - Request Form'!O101=\"000\",'Blank - Request Form'!O101=0),\"\",'Blank - Request Form'!O101),\"\"))","v":""},{"$f":"IF('Blank - Request Form'!$F$6=\"CICMP\",IF(OR('Blank - Request Form'!G101=\"0\",'Blank - Request Form'!G101=\"00000\",'Blank - Request Form'!G101=0),\"\",'Blank - Request Form'!G101),IF('Blank - Request Form'!$F$7=\"CICMP\",IF(OR('Blank - Request Form'!P101=\"0\",'Blank - Request Form'!P101=\"00000\",'Blank - Request Form'!P101=0),\"\",'Blank - Request Form'!P101),\"\"))","v":""},{"$f":"IF('Blank - Request Form'!$F$6=\"CICMP\",IF(OR('Blank - Request Form'!H101=\"0\",'Blank - Request Form'!H101=\"00000\",'Blank - Request Form'!H101=0),\"\",'Blank - Request Form'!H101),IF('Blank - Request Form'!$F$7=\"CICMP\",IF(OR('Blank - Request Form'!Q101=\"0\",'Blank - Request Form'!Q101=\"00000\",'Blank - Request Form'!Q101=0),\"\",'Blank - Request Form'!Q101),\"\"))","v":""},{"$f":"IF('Blank - Request Form'!$F$6=\"CICMP\",IF(OR('Blank - Request Form'!I101=\"0\",'Blank - Request Form'!I101=\"00000\",'Blank - Request Form'!I101=0),\"\",'Blank - Request Form'!I101),IF('Blank - Request Form'!$F$7=\"CICMP\",IF(OR('Blank - Request Form'!R101=\"0\",'Blank - Request Form'!R101=\"00000\",'Blank - Request Form'!R101=0),\"\",'Blank - Request Form'!R101),\"\"))","v":""},null,{"$f":"IF('Blank - Request Form'!$F$6=\"CICMP\",IF('Blank - Request Form'!K101=0,\"\",'Blank - Request Form'!K101),IF('Blank - Request Form'!$F$7=\"CICMP\",IF('Blank - Request Form'!T101=0,\"\",'Blank - Request Form'!T101),\"\"))","v":""},null,null,null,{"$f":"IF(M67<>\"\",'Blank - Request Form'!$M$2,\"\")","v":""},{"$f":"IF('Blank - Request Form'!$F$6=\"CICMP\",IF('Blank - Request Form'!J101=0,\"\",'Blank - Request Form'!J101),IF('Blank - Request Form'!$F$7=\"CICMP\",IF('Blank - Request Form'!S101=0,\"\",'Blank - Request Form'!S101),\"\"))","v":""},"",67]
[{"$f":"IF('Blank - Request Form'!$F$6=\"CICMP\",IF('Blank - Request Form'!D102=0,\"\",'Blank - Request Form'!D102),IF('Blank - Request Form'!$F$7=\"CICMP\",IF('Blank - Request Form'!M102=0,\"\",'Blank - Request Form'!M102),\"\"))","v":""},{"$f":"IF('Blank - Request Form'!$F$6=\"CICMP\",IF('Blank - Request Form'!E102=0,\"\",'Blank - Request Form'!E102),IF('Blank - Request Form'!$F$7=\"CICMP\",IF('Blank - Request Form'!N102=0,\"\",'Blank - Request Form'!N102),\"\"))","v":""},{"$f":"IF('Blank - Request Form'!$F$6=\"CICMP\",IF(OR('Blank - Request Form'!F102=\"000\",'Blank - Request Form'!F102=0),\"\",'Blank - Request Form'!F102),IF('Blank - Request Form'!$F$7=\"CICMP\",IF(OR('Blank - Request Form'!O102=\"000\",'Blank - Request Form'!O102=0),\"\",'Blank - Request Form'!O102),\"\"))","v":""},{"$f":"IF('Blank - Request Form'!$F$6=\"CICMP\",IF(OR('Blank - Request Form'!G102=\"0\",'Blank - Request Form'!G102=\"00000\",'Blank - Request Form'!G102=0),\"\",'Blank - Request Form'!G102),IF('Blank - Request Form'!$F$7=\"CICMP\",IF(OR('Blank - Request Form'!P102=\"0\",'Blank - Request Form'!P102=\"00000\",'Blank - Request Form'!P102=0),\"\",'Blank - Request Form'!P102),\"\"))","v":""},{"$f":"IF('Blank - Request Form'!$F$6=\"CICMP\",IF(OR('Blank - Request Form'!H102=\"0\",'Blank - Request Form'!H102=\"00000\",'Blank - Request Form'!H102=0),\"\",'Blank - Request Form'!H102),IF('Blank - Request Form'!$F$7=\"CICMP\",IF(OR('Blank - Request Form'!Q102=\"0\",'Blank - Request Form'!Q102=\"00000\",'Blank - Request Form'!Q102=0),\"\",'Blank - Request Form'!Q102),\"\"))","v":""},{"$f":"IF('Blank - Request Form'!$F$6=\"CICMP\",IF(OR('Blank - Request Form'!I102=\"0\",'Blank - Request Form'!I102=\"00000\",'Blank - Request Form'!I102=0),\"\",'Blank - Request Form'!I102),IF('Blank - Request Form'!$F$7=\"CICMP\",IF(OR('Blank - Request Form'!R102=\"0\",'Blank - Request Form'!R102=\"00000\",'Blank - Request Form'!R102=0),\"\",'Blank - Request Form'!R102),\"\"))","v":""},null,{"$f":"IF('Blank - Request Form'!$F$6=\"CICMP\",IF('Blank - Request Form'!K102=0,\"\",'Blank - Request Form'!K102),IF('Blank - Request Form'!$F$7=\"CICMP\",IF('Blank - Request Form'!T102=0,\"\",'Blank - Request Form'!T102),\"\"))","v":""},null,null,null,{"$f":"IF(M68<>\"\",'Blank - Request Form'!$M$2,\"\")","v":""},{"$f":"IF('Blank - Request Form'!$F$6=\"CICMP\",IF('Blank - Request Form'!J102=0,\"\",'Blank - Request Form'!J102),IF('Blank - Request Form'!$F$7=\"CICMP\",IF('Blank - Request Form'!S102=0,\"\",'Blank - Request Form'!S102),\"\"))","v":""},"",68]
[{"$f":"IF('Blank - Request Form'!$F$6=\"CICMP\",IF('Blank - Request Form'!D103=0,\"\",'Blank - Request Form'!D103),IF('Blank - Request Form'!$F$7=\"CICMP\",IF('Blank - Request Form'!M103=0,\"\",'Blank - Request Form'!M103),\"\"))","v":""},{"$f":"IF('Blank - Request Form'!$F$6=\"CICMP\",IF('Blank - Request Form'!E103=0,\"\",'Blank - Request Form'!E103),IF('Blank - Request Form'!$F$7=\"CICMP\",IF('Blank - Request Form'!N103=0,\"\",'Blank - Request Form'!N103),\"\"))","v":""},{"$f":"IF('Blank - Request Form'!$F$6=\"CICMP\",IF(OR('Blank - Request Form'!F103=\"000\",'Blank - Request Form'!F103=0),\"\",'Blank - Request Form'!F103),IF('Blank - Request Form'!$F$7=\"CICMP\",IF(OR('Blank - Request Form'!O103=\"000\",'Blank - Request Form'!O103=0),\"\",'Blank - Request Form'!O103),\"\"))","v":""},{"$f":"IF('Blank - Request Form'!$F$6=\"CICMP\",IF(OR('Blank - Request Form'!G103=\"0\",'Blank - Request Form'!G103=\"00000\",'Blank - Request Form'!G103=0),\"\",'Blank - Request Form'!G103),IF('Blank - Request Form'!$F$7=\"CICMP\",IF(OR('Blank - Request Form'!P103=\"0\",'Blank - Request Form'!P103=\"00000\",'Blank - Request Form'!P103=0),\"\",'Blank - Request Form'!P103),\"\"))","v":""},{"$f":"IF('Blank - Request Form'!$F$6=\"CICMP\",IF(OR('Blank - Request Form'!H103=\"0\",'Blank - Request Form'!H103=\"00000\",'Blank - Request Form'!H103=0),\"\",'Blank - Request Form'!H103),IF('Blank - Request Form'!$F$7=\"CICMP\",IF(OR('Blank - Request Form'!Q103=\"0\",'Blank - Request Form'!Q103=\"00000\",'Blank - Request Form'!Q103=0),\"\",'Blank - Request Form'!Q103),\"\"))","v":""},{"$f":"IF('Blank - Request Form'!$F$6=\"CICMP\",IF(OR('Blank - Request Form'!I103=\"0\",'Blank - Request Form'!I103=\"00000\",'Blank - Request Form'!I103=0),\"\",'Blank - Request Form'!I103),IF('Blank - Request Form'!$F$7=\"CICMP\",IF(OR('Blank - Request Form'!R103=\"0\",'Blank - Request Form'!R103=\"00000\",'Blank - Request Form'!R103=0),\"\",'Blank - Request Form'!R103),\"\"))","v":""},null,{"$f":"IF('Blank - Request Form'!$F$6=\"CICMP\",IF('Blank - Request Form'!K103=0,\"\",'Blank - Request Form'!K103),IF('Blank - Request Form'!$F$7=\"CICMP\",IF('Blank - Request Form'!T103=0,\"\",'Blank - Request Form'!T103),\"\"))","v":""},null,null,null,{"$f":"IF(M69<>\"\",'Blank - Request Form'!$M$2,\"\")","v":""},{"$f":"IF('Blank - Request Form'!$F$6=\"CICMP\",IF('Blank - Request Form'!J103=0,\"\",'Blank - Request Form'!J103),IF('Blank - Request Form'!$F$7=\"CICMP\",IF('Blank - Request Form'!S103=0,\"\",'Blank - Request Form'!S103),\"\"))","v":""},"",69]
[{"$f":"IF('Blank - Request Form'!$F$6=\"CICMP\",IF('Blank - Request Form'!D104=0,\"\",'Blank - Request Form'!D104),IF('Blank - Request Form'!$F$7=\"CICMP\",IF('Blank - Request Form'!M104=0,\"\",'Blank - Request Form'!M104),\"\"))","v":""},{"$f":"IF('Blank - Request Form'!$F$6=\"CICMP\",IF('Blank - Request Form'!E104=0,\"\",'Blank - Request Form'!E104),IF('Blank - Request Form'!$F$7=\"CICMP\",IF('Blank - Request Form'!N104=0,\"\",'Blank - Request Form'!N104),\"\"))","v":""},{"$f":"IF('Blank - Request Form'!$F$6=\"CICMP\",IF(OR('Blank - Request Form'!F104=\"000\",'Blank - Request Form'!F104=0),\"\",'Blank - Request Form'!F104),IF('Blank - Request Form'!$F$7=\"CICMP\",IF(OR('Blank - Request Form'!O104=\"000\",'Blank - Request Form'!O104=0),\"\",'Blank - Request Form'!O104),\"\"))","v":""},{"$f":"IF('Blank - Request Form'!$F$6=\"CICMP\",IF(OR('Blank - Request Form'!G104=\"0\",'Blank - Request Form'!G104=\"00000\",'Blank - Request Form'!G104=0),\"\",'Blank - Request Form'!G104),IF('Blank - Request Form'!$F$7=\"CICMP\",IF(OR('Blank - Request Form'!P104=\"0\",'Blank - Request Form'!P104=\"00000\",'Blank - Request Form'!P104=0),\"\",'Blank - Request Form'!P104),\"\"))","v":""},{"$f":"IF('Blank - Request Form'!$F$6=\"CICMP\",IF(OR('Blank - Request Form'!H104=\"0\",'Blank - Request Form'!H104=\"00000\",'Blank - Request Form'!H104=0),\"\",'Blank - Request Form'!H104),IF('Blank - Request Form'!$F$7=\"CICMP\",IF(OR('Blank - Request Form'!Q104=\"0\",'Blank - Request Form'!Q104=\"00000\",'Blank - Request Form'!Q104=0),\"\",'Blank - Request Form'!Q104),\"\"))","v":""},{"$f":"IF('Blank - Request Form'!$F$6=\"CICMP\",IF(OR('Blank - Request Form'!I104=\"0\",'Blank - Request Form'!I104=\"00000\",'Blank - Request Form'!I104=0),\"\",'Blank - Request Form'!I104),IF('Blank - Request Form'!$F$7=\"CICMP\",IF(OR('Blank - Request Form'!R104=\"0\",'Blank - Request Form'!R104=\"00000\",'Blank - Request Form'!R104=0),\"\",'Blank - Request Form'!R104),\"\"))","v":""},null,{"$f":"IF('Blank - Request Form'!$F$6=\"CICMP\",IF('Blank - Request Form'!K104=0,\"\",'Blank - Request Form'!K104),IF('Blank - Request Form'!$F$7=\"CICMP\",IF('Blank - Request Form'!T104=0,\"\",'Blank - Request Form'!T104),\"\"))","v":""},null,null,null,{"$f":"IF(M70<>\"\",'Blank - Request Form'!$M$2,\"\")","v":""},{"$f":"IF('Blank - Request Form'!$F$6=\"CICMP\",IF('Blank - Request Form'!J104=0,\"\",'Blank - Request Form'!J104),IF('Blank - Request Form'!$F$7=\"CICMP\",IF('Blank - Request Form'!S104=0,\"\",'Blank - Request Form'!S104),\"\"))","v":""},"",70]
[{"$f":"IF('Blank - Request Form'!$F$6=\"CICMP\",IF('Blank - Request Form'!D105=0,\"\",'Blank - Request Form'!D105),IF('Blank - Request Form'!$F$7=\"CICMP\",IF('Blank - Request Form'!M105=0,\"\",'Blank - Request Form'!M105),\"\"))","v":""},{"$f":"IF('Blank - Request Form'!$F$6=\"CICMP\",IF('Blank - Request Form'!E105=0,\"\",'Blank - Request Form'!E105),IF('Blank - Request Form'!$F$7=\"CICMP\",IF('Blank - Request Form'!N105=0,\"\",'Blank - Request Form'!N105),\"\"))","v":""},{"$f":"IF('Blank - Request Form'!$F$6=\"CICMP\",IF(OR('Blank - Request Form'!F105=\"000\",'Blank - Request Form'!F105=0),\"\",'Blank - Request Form'!F105),IF('Blank - Request Form'!$F$7=\"CICMP\",IF(OR('Blank - Request Form'!O105=\"000\",'Blank - Request Form'!O105=0),\"\",'Blank - Request Form'!O105),\"\"))","v":""},{"$f":"IF('Blank - Request Form'!$F$6=\"CICMP\",IF(OR('Blank - Request Form'!G105=\"0\",'Blank - Request Form'!G105=\"00000\",'Blank - Request Form'!G105=0),\"\",'Blank - Request Form'!G105),IF('Blank - Request Form'!$F$7=\"CICMP\",IF(OR('Blank - Request Form'!P105=\"0\",'Blank - Request Form'!P105=\"00000\",'Blank - Request Form'!P105=0),\"\",'Blank - Request Form'!P105),\"\"))","v":""},{"$f":"IF('Blank - Request Form'!$F$6=\"CICMP\",IF(OR('Blank - Request Form'!H105=\"0\",'Blank - Request Form'!H105=\"00000\",'Blank - Request Form'!H105=0),\"\",'Blank - Request Form'!H105),IF('Blank - Request Form'!$F$7=\"CICMP\",IF(OR('Blank - Request Form'!Q105=\"0\",'Blank - Request Form'!Q105=\"00000\",'Blank - Request Form'!Q105=0),\"\",'Blank - Request Form'!Q105),\"\"))","v":""},{"$f":"IF('Blank - Request Form'!$F$6=\"CICMP\",IF(OR('Blank - Request Form'!I105=\"0\",'Blank - Request Form'!I105=\"00000\",'Blank - Request Form'!I105=0),\"\",'Blank - Request Form'!I105),IF('Blank - Request Form'!$F$7=\"CICMP\",IF(OR('Blank - Request Form'!R105=\"0\",'Blank - Request Form'!R105=\"00000\",'Blank - Request Form'!R105=0),\"\",'Blank - Request Form'!R105),\"\"))","v":""},null,{"$f":"IF('Blank - Request Form'!$F$6=\"CICMP\",IF('Blank - Request Form'!K105=0,\"\",'Blank - Request Form'!K105),IF('Blank - Request Form'!$F$7=\"CICMP\",IF('Blank - Request Form'!T105=0,\"\",'Blank - Request Form'!T105),\"\"))","v":""},null,null,null,{"$f":"IF(M71<>\"\",'Blank - Request Form'!$M$2,\"\")","v":""},{"$f":"IF('Blank - Request Form'!$F$6=\"CICMP\",IF('Blank - Request Form'!J105=0,\"\",'Blank - Request Form'!J105),IF('Blank - Request Form'!$F$7=\"CICMP\",IF('Blank - Request Form'!S105=0,\"\",'Blank - Request Form'!S105),\"\"))","v":""},"",71]
[{"$f":"IF('Blank - Request Form'!$F$6=\"CICMP\",IF('Blank - Request Form'!D106=0,\"\",'Blank - Request Form'!D106),IF('Blank - Request Form'!$F$7=\"CICMP\",IF('Blank - Request Form'!M106=0,\"\",'Blank - Request Form'!M106),\"\"))","v":""},{"$f":"IF('Blank - Request Form'!$F$6=\"CICMP\",IF('Blank - Request Form'!E106=0,\"\",'Blank - Request Form'!E106),IF('Blank - Request Form'!$F$7=\"CICMP\",IF('Blank - Request Form'!N106=0,\"\",'Blank - Request Form'!N106),\"\"))","v":""},{"$f":"IF('Blank - Request Form'!$F$6=\"CICMP\",IF(OR('Blank - Request Form'!F106=\"000\",'Blank - Request Form'!F106=0),\"\",'Blank - Request Form'!F106),IF('Blank - Request Form'!$F$7=\"CICMP\",IF(OR('Blank - Request Form'!O106=\"000\",'Blank - Request Form'!O106=0),\"\",'Blank - Request Form'!O106),\"\"))","v":""},{"$f":"IF('Blank - Request Form'!$F$6=\"CICMP\",IF(OR('Blank - Request Form'!G106=\"0\",'Blank - Request Form'!G106=\"00000\",'Blank - Request Form'!G106=0),\"\",'Blank - Request Form'!G106),IF('Blank - Request Form'!$F$7=\"CICMP\",IF(OR('Blank - Request Form'!P106=\"0\",'Blank - Request Form'!P106=\"00000\",'Blank - Request Form'!P106=0),\"\",'Blank - Request Form'!P106),\"\"))","v":""},{"$f":"IF('Blank - Request Form'!$F$6=\"CICMP\",IF(OR('Blank - Request Form'!H106=\"0\",'Blank - Request Form'!H106=\"00000\",'Blank - Request Form'!H106=0),\"\",'Blank - Request Form'!H106),IF('Blank - Request Form'!$F$7=\"CICMP\",IF(OR('Blank - Request Form'!Q106=\"0\",'Blank - Request Form'!Q106=\"00000\",'Blank - Request Form'!Q106=0),\"\",'Blank - Request Form'!Q106),\"\"))","v":""},{"$f":"IF('Blank - Request Form'!$F$6=\"CICMP\",IF(OR('Blank - Request Form'!I106=\"0\",'Blank - Request Form'!I106=\"00000\",'Blank - Request Form'!I106=0),\"\",'Blank - Request Form'!I106),IF('Blank - Request Form'!$F$7=\"CICMP\",IF(OR('Blank - Request Form'!R106=\"0\",'Blank - Request Form'!R106=\"00000\",'Blank - Request Form'!R106=0),\"\",'Blank - Request Form'!R106),\"\"))","v":""},null,{"$f":"IF('Blank - Request Form'!$F$6=\"CICMP\",IF('Blank - Request Form'!K106=0,\"\",'Blank - Request Form'!K106),IF('Blank - Request Form'!$F$7=\"CICMP\",IF('Blank - Request Form'!T106=0,\"\",'Blank - Request Form'!T106),\"\"))","v":""},null,null,null,{"$f":"IF(M72<>\"\",'Blank - Request Form'!$M$2,\"\")","v":""},{"$f":"IF('Blank - Request Form'!$F$6=\"CICMP\",IF('Blank - Request Form'!J106=0,\"\",'Blank - Request Form'!J106),IF('Blank - Request Form'!$F$7=\"CICMP\",IF('Blank - Request Form'!S106=0,\"\",'Blank - Request Form'!S106),\"\"))","v":""},"",72]
[{"$f":"IF('Blank - Request Form'!$F$6=\"CICMP\",IF('Blank - Request Form'!D107=0,\"\",'Blank - Request Form'!D107),IF('Blank - Request Form'!$F$7=\"CICMP\",IF('Blank - Request Form'!M107=0,\"\",'Blank - Request Form'!M107),\"\"))","v":""},{"$f":"IF('Blank - Request Form'!$F$6=\"CICMP\",IF('Blank - Request Form'!E107=0,\"\",'Blank - Request Form'!E107),IF('Blank - Request Form'!$F$7=\"CICMP\",IF('Blank - Request Form'!N107=0,\"\",'Blank - Request Form'!N107),\"\"))","v":""},{"$f":"IF('Blank - Request Form'!$F$6=\"CICMP\",IF(OR('Blank - Request Form'!F107=\"000\",'Blank - Request Form'!F107=0),\"\",'Blank - Request Form'!F107),IF('Blank - Request Form'!$F$7=\"CICMP\",IF(OR('Blank - Request Form'!O107=\"000\",'Blank - Request Form'!O107=0),\"\",'Blank - Request Form'!O107),\"\"))","v":""},{"$f":"IF('Blank - Request Form'!$F$6=\"CICMP\",IF(OR('Blank - Request Form'!G107=\"0\",'Blank - Request Form'!G107=\"00000\",'Blank - Request Form'!G107=0),\"\",'Blank - Request Form'!G107),IF('Blank - Request Form'!$F$7=\"CICMP\",IF(OR('Blank - Request Form'!P107=\"0\",'Blank - Request Form'!P107=\"00000\",'Blank - Request Form'!P107=0),\"\",'Blank - Request Form'!P107),\"\"))","v":""},{"$f":"IF('Blank - Request Form'!$F$6=\"CICMP\",IF(OR('Blank - Request Form'!H107=\"0\",'Blank - Request Form'!H107=\"00000\",'Blank - Request Form'!H107=0),\"\",'Blank - Request Form'!H107),IF('Blank - Request Form'!$F$7=\"CICMP\",IF(OR('Blank - Request Form'!Q107=\"0\",'Blank - Request Form'!Q107=\"00000\",'Blank - Request Form'!Q107=0),\"\",'Blank - Request Form'!Q107),\"\"))","v":""},{"$f":"IF('Blank - Request Form'!$F$6=\"CICMP\",IF(OR('Blank - Request Form'!I107=\"0\",'Blank - Request Form'!I107=\"00000\",'Blank - Request Form'!I107=0),\"\",'Blank - Request Form'!I107),IF('Blank - Request Form'!$F$7=\"CICMP\",IF(OR('Blank - Request Form'!R107=\"0\",'Blank - Request Form'!R107=\"00000\",'Blank - Request Form'!R107=0),\"\",'Blank - Request Form'!R107),\"\"))","v":""},null,{"$f":"IF('Blank - Request Form'!$F$6=\"CICMP\",IF('Blank - Request Form'!K107=0,\"\",'Blank - Request Form'!K107),IF('Blank - Request Form'!$F$7=\"CICMP\",IF('Blank - Request Form'!T107=0,\"\",'Blank - Request Form'!T107),\"\"))","v":""},null,null,null,{"$f":"IF(M73<>\"\",'Blank - Request Form'!$M$2,\"\")","v":""},{"$f":"IF('Blank - Request Form'!$F$6=\"CICMP\",IF('Blank - Request Form'!J107=0,\"\",'Blank - Request Form'!J107),IF('Blank - Request Form'!$F$7=\"CICMP\",IF('Blank - Request Form'!S107=0,\"\",'Blank - Request Form'!S107),\"\"))","v":""},"",73]
[{"$f":"IF('Blank - Request Form'!$F$6=\"CICMP\",IF('Blank - Request Form'!D108=0,\"\",'Blank - Request Form'!D108),IF('Blank - Request Form'!$F$7=\"CICMP\",IF('Blank - Request Form'!M108=0,\"\",'Blank - Request Form'!M108),\"\"))","v":""},{"$f":"IF('Blank - Request Form'!$F$6=\"CICMP\",IF('Blank - Request Form'!E108=0,\"\",'Blank - Request Form'!E108),IF('Blank - Request Form'!$F$7=\"CICMP\",IF('Blank - Request Form'!N108=0,\"\",'Blank - Request Form'!N108),\"\"))","v":""},{"$f":"IF('Blank - Request Form'!$F$6=\"CICMP\",IF(OR('Blank - Request Form'!F108=\"000\",'Blank - Request Form'!F108=0),\"\",'Blank - Request Form'!F108),IF('Blank - Request Form'!$F$7=\"CICMP\",IF(OR('Blank - Request Form'!O108=\"000\",'Blank - Request Form'!O108=0),\"\",'Blank - Request Form'!O108),\"\"))","v":""},{"$f":"IF('Blank - Request Form'!$F$6=\"CICMP\",IF(OR('Blank - Request Form'!G108=\"0\",'Blank - Request Form'!G108=\"00000\",'Blank - Request Form'!G108=0),\"\",'Blank - Request Form'!G108),IF('Blank - Request Form'!$F$7=\"CICMP\",IF(OR('Blank - Request Form'!P108=\"0\",'Blank - Request Form'!P108=\"00000\",'Blank - Request Form'!P108=0),\"\",'Blank - Request Form'!P108),\"\"))","v":""},{"$f":"IF('Blank - Request Form'!$F$6=\"CICMP\",IF(OR('Blank - Request Form'!H108=\"0\",'Blank - Request Form'!H108=\"00000\",'Blank - Request Form'!H108=0),\"\",'Blank - Request Form'!H108),IF('Blank - Request Form'!$F$7=\"CICMP\",IF(OR('Blank - Request Form'!Q108=\"0\",'Blank - Request Form'!Q108=\"00000\",'Blank - Request Form'!Q108=0),\"\",'Blank - Request Form'!Q108),\"\"))","v":""},{"$f":"IF('Blank - Request Form'!$F$6=\"CICMP\",IF(OR('Blank - Request Form'!I108=\"0\",'Blank - Request Form'!I108=\"00000\",'Blank - Request Form'!I108=0),\"\",'Blank - Request Form'!I108),IF('Blank - Request Form'!$F$7=\"CICMP\",IF(OR('Blank - Request Form'!R108=\"0\",'Blank - Request Form'!R108=\"00000\",'Blank - Request Form'!R108=0),\"\",'Blank - Request Form'!R108),\"\"))","v":""},null,{"$f":"IF('Blank - Request Form'!$F$6=\"CICMP\",IF('Blank - Request Form'!K108=0,\"\",'Blank - Request Form'!K108),IF('Blank - Request Form'!$F$7=\"CICMP\",IF('Blank - Request Form'!T108=0,\"\",'Blank - Request Form'!T108),\"\"))","v":""},null,null,null,{"$f":"IF(M74<>\"\",'Blank - Request Form'!$M$2,\"\")","v":""},{"$f":"IF('Blank - Request Form'!$F$6=\"CICMP\",IF('Blank - Request Form'!J108=0,\"\",'Blank - Request Form'!J108),IF('Blank - Request Form'!$F$7=\"CICMP\",IF('Blank - Request Form'!S108=0,\"\",'Blank - Request Form'!S108),\"\"))","v":""},"",74]
[{"$f":"IF('Blank - Request Form'!$F$6=\"CICMP\",IF('Blank - Request Form'!D109=0,\"\",'Blank - Request Form'!D109),IF('Blank - Request Form'!$F$7=\"CICMP\",IF('Blank - Request Form'!M109=0,\"\",'Blank - Request Form'!M109),\"\"))","v":""},{"$f":"IF('Blank - Request Form'!$F$6=\"CICMP\",IF('Blank - Request Form'!E109=0,\"\",'Blank - Request Form'!E109),IF('Blank - Request Form'!$F$7=\"CICMP\",IF('Blank - Request Form'!N109=0,\"\",'Blank - Request Form'!N109),\"\"))","v":""},{"$f":"IF('Blank - Request Form'!$F$6=\"CICMP\",IF(OR('Blank - Request Form'!F109=\"000\",'Blank - Request Form'!F109=0),\"\",'Blank - Request Form'!F109),IF('Blank - Request Form'!$F$7=\"CICMP\",IF(OR('Blank - Request Form'!O109=\"000\",'Blank - Request Form'!O109=0),\"\",'Blank - Request Form'!O109),\"\"))","v":""},{"$f":"IF('Blank - Request Form'!$F$6=\"CICMP\",IF(OR('Blank - Request Form'!G109=\"0\",'Blank - Request Form'!G109=\"00000\",'Blank - Request Form'!G109=0),\"\",'Blank - Request Form'!G109),IF('Blank - Request Form'!$F$7=\"CICMP\",IF(OR('Blank - Request Form'!P109=\"0\",'Blank - Request Form'!P109=\"00000\",'Blank - Request Form'!P109=0),\"\",'Blank - Request Form'!P109),\"\"))","v":""},{"$f":"IF('Blank - Request Form'!$F$6=\"CICMP\",IF(OR('Blank - Request Form'!H109=\"0\",'Blank - Request Form'!H109=\"00000\",'Blank - Request Form'!H109=0),\"\",'Blank - Request Form'!H109),IF('Blank - Request Form'!$F$7=\"CICMP\",IF(OR('Blank - Request Form'!Q109=\"0\",'Blank - Request Form'!Q109=\"00000\",'Blank - Request Form'!Q109=0),\"\",'Blank - Request Form'!Q109),\"\"))","v":""},{"$f":"IF('Blank - Request Form'!$F$6=\"CICMP\",IF(OR('Blank - Request Form'!I109=\"0\",'Blank - Request Form'!I109=\"00000\",'Blank - Request Form'!I109=0),\"\",'Blank - Request Form'!I109),IF('Blank - Request Form'!$F$7=\"CICMP\",IF(OR('Blank - Request Form'!R109=\"0\",'Blank - Request Form'!R109=\"00000\",'Blank - Request Form'!R109=0),\"\",'Blank - Request Form'!R109),\"\"))","v":""},null,{"$f":"IF('Blank - Request Form'!$F$6=\"CICMP\",IF('Blank - Request Form'!K109=0,\"\",'Blank - Request Form'!K109),IF('Blank - Request Form'!$F$7=\"CICMP\",IF('Blank - Request Form'!T109=0,\"\",'Blank - Request Form'!T109),\"\"))","v":""},null,null,null,{"$f":"IF(M75<>\"\",'Blank - Request Form'!$M$2,\"\")","v":""},{"$f":"IF('Blank - Request Form'!$F$6=\"CICMP\",IF('Blank - Request Form'!J109=0,\"\",'Blank - Request Form'!J109),IF('Blank - Request Form'!$F$7=\"CICMP\",IF('Blank - Request Form'!S109=0,\"\",'Blank - Request Form'!S109),\"\"))","v":""},"",75]
[{"$f":"IF('Blank - Request Form'!$F$6=\"CICMP\",IF('Blank - Request Form'!D110=0,\"\",'Blank - Request Form'!D110),IF('Blank - Request Form'!$F$7=\"CICMP\",IF('Blank - Request Form'!M110=0,\"\",'Blank - Request Form'!M110),\"\"))","v":""},{"$f":"IF('Blank - Request Form'!$F$6=\"CICMP\",IF('Blank - Request Form'!E110=0,\"\",'Blank - Request Form'!E110),IF('Blank - Request Form'!$F$7=\"CICMP\",IF('Blank - Request Form'!N110=0,\"\",'Blank - Request Form'!N110),\"\"))","v":""},{"$f":"IF('Blank - Request Form'!$F$6=\"CICMP\",IF(OR('Blank - Request Form'!F110=\"000\",'Blank - Request Form'!F110=0),\"\",'Blank - Request Form'!F110),IF('Blank - Request Form'!$F$7=\"CICMP\",IF(OR('Blank - Request Form'!O110=\"000\",'Blank - Request Form'!O110=0),\"\",'Blank - Request Form'!O110),\"\"))","v":""},{"$f":"IF('Blank - Request Form'!$F$6=\"CICMP\",IF(OR('Blank - Request Form'!G110=\"0\",'Blank - Request Form'!G110=\"00000\",'Blank - Request Form'!G110=0),\"\",'Blank - Request Form'!G110),IF('Blank - Request Form'!$F$7=\"CICMP\",IF(OR('Blank - Request Form'!P110=\"0\",'Blank - Request Form'!P110=\"00000\",'Blank - Request Form'!P110=0),\"\",'Blank - Request Form'!P110),\"\"))","v":""},{"$f":"IF('Blank - Request Form'!$F$6=\"CICMP\",IF(OR('Blank - Request Form'!H110=\"0\",'Blank - Request Form'!H110=\"00000\",'Blank - Request Form'!H110=0),\"\",'Blank - Request Form'!H110),IF('Blank - Request Form'!$F$7=\"CICMP\",IF(OR('Blank - Request Form'!Q110=\"0\",'Blank - Request Form'!Q110=\"00000\",'Blank - Request Form'!Q110=0),\"\",'Blank - Request Form'!Q110),\"\"))","v":""},{"$f":"IF('Blank - Request Form'!$F$6=\"CICMP\",IF(OR('Blank - Request Form'!I110=\"0\",'Blank - Request Form'!I110=\"00000\",'Blank - Request Form'!I110=0),\"\",'Blank - Request Form'!I110),IF('Blank - Request Form'!$F$7=\"CICMP\",IF(OR('Blank - Request Form'!R110=\"0\",'Blank - Request Form'!R110=\"00000\",'Blank - Request Form'!R110=0),\"\",'Blank - Request Form'!R110),\"\"))","v":""},null,{"$f":"IF('Blank - Request Form'!$F$6=\"CICMP\",IF('Blank - Request Form'!K110=0,\"\",'Blank - Request Form'!K110),IF('Blank - Request Form'!$F$7=\"CICMP\",IF('Blank - Request Form'!T110=0,\"\",'Blank - Request Form'!T110),\"\"))","v":""},null,null,null,{"$f":"IF(M76<>\"\",'Blank - Request Form'!$M$2,\"\")","v":""},{"$f":"IF('Blank - Request Form'!$F$6=\"CICMP\",IF('Blank - Request Form'!J110=0,\"\",'Blank - Request Form'!J110),IF('Blank - Request Form'!$F$7=\"CICMP\",IF('Blank - Request Form'!S110=0,\"\",'Blank - Request Form'!S110),\"\"))","v":""},"",76]
[{"$f":"IF('Blank - Request Form'!$F$6=\"CICMP\",IF('Blank - Request Form'!D111=0,\"\",'Blank - Request Form'!D111),IF('Blank - Request Form'!$F$7=\"CICMP\",IF('Blank - Request Form'!M111=0,\"\",'Blank - Request Form'!M111),\"\"))","v":""},{"$f":"IF('Blank - Request Form'!$F$6=\"CICMP\",IF('Blank - Request Form'!E111=0,\"\",'Blank - Request Form'!E111),IF('Blank - Request Form'!$F$7=\"CICMP\",IF('Blank - Request Form'!N111=0,\"\",'Blank - Request Form'!N111),\"\"))","v":""},{"$f":"IF('Blank - Request Form'!$F$6=\"CICMP\",IF(OR('Blank - Request Form'!F111=\"000\",'Blank - Request Form'!F111=0),\"\",'Blank - Request Form'!F111),IF('Blank - Request Form'!$F$7=\"CICMP\",IF(OR('Blank - Request Form'!O111=\"000\",'Blank - Request Form'!O111=0),\"\",'Blank - Request Form'!O111),\"\"))","v":""},{"$f":"IF('Blank - Request Form'!$F$6=\"CICMP\",IF(OR('Blank - Request Form'!G111=\"0\",'Blank - Request Form'!G111=\"00000\",'Blank - Request Form'!G111=0),\"\",'Blank - Request Form'!G111),IF('Blank - Request Form'!$F$7=\"CICMP\",IF(OR('Blank - Request Form'!P111=\"0\",'Blank - Request Form'!P111=\"00000\",'Blank - Request Form'!P111=0),\"\",'Blank - Request Form'!P111),\"\"))","v":""},{"$f":"IF('Blank - Request Form'!$F$6=\"CICMP\",IF(OR('Blank - Request Form'!H111=\"0\",'Blank - Request Form'!H111=\"00000\",'Blank - Request Form'!H111=0),\"\",'Blank - Request Form'!H111),IF('Blank - Request Form'!$F$7=\"CICMP\",IF(OR('Blank - Request Form'!Q111=\"0\",'Blank - Request Form'!Q111=\"00000\",'Blank - Request Form'!Q111=0),\"\",'Blank - Request Form'!Q111),\"\"))","v":""},{"$f":"IF('Blank - Request Form'!$F$6=\"CICMP\",IF(OR('Blank - Request Form'!I111=\"0\",'Blank - Request Form'!I111=\"00000\",'Blank - Request Form'!I111=0),\"\",'Blank - Request Form'!I111),IF('Blank - Request Form'!$F$7=\"CICMP\",IF(OR('Blank - Request Form'!R111=\"0\",'Blank - Request Form'!R111=\"00000\",'Blank - Request Form'!R111=0),\"\",'Blank - Request Form'!R111),\"\"))","v":""},null,{"$f":"IF('Blank - Request Form'!$F$6=\"CICMP\",IF('Blank - Request Form'!K111=0,\"\",'Blank - Request Form'!K111),IF('Blank - Request Form'!$F$7=\"CICMP\",IF('Blank - Request Form'!T111=0,\"\",'Blank - Request Form'!T111),\"\"))","v":""},null,null,null,{"$f":"IF(M77<>\"\",'Blank - Request Form'!$M$2,\"\")","v":""},{"$f":"IF('Blank - Request Form'!$F$6=\"CICMP\",IF('Blank - Request Form'!J111=0,\"\",'Blank - Request Form'!J111),IF('Blank - Request Form'!$F$7=\"CICMP\",IF('Blank - Request Form'!S111=0,\"\",'Blank - Request Form'!S111),\"\"))","v":""},"",77]
[{"$f":"IF('Blank - Request Form'!$F$6=\"CICMP\",IF('Blank - Request Form'!D112=0,\"\",'Blank - Request Form'!D112),IF('Blank - Request Form'!$F$7=\"CICMP\",IF('Blank - Request Form'!M112=0,\"\",'Blank - Request Form'!M112),\"\"))","v":""},{"$f":"IF('Blank - Request Form'!$F$6=\"CICMP\",IF('Blank - Request Form'!E112=0,\"\",'Blank - Request Form'!E112),IF('Blank - Request Form'!$F$7=\"CICMP\",IF('Blank - Request Form'!N112=0,\"\",'Blank - Request Form'!N112),\"\"))","v":""},{"$f":"IF('Blank - Request Form'!$F$6=\"CICMP\",IF(OR('Blank - Request Form'!F112=\"000\",'Blank - Request Form'!F112=0),\"\",'Blank - Request Form'!F112),IF('Blank - Request Form'!$F$7=\"CICMP\",IF(OR('Blank - Request Form'!O112=\"000\",'Blank - Request Form'!O112=0),\"\",'Blank - Request Form'!O112),\"\"))","v":""},{"$f":"IF('Blank - Request Form'!$F$6=\"CICMP\",IF(OR('Blank - Request Form'!G112=\"0\",'Blank - Request Form'!G112=\"00000\",'Blank - Request Form'!G112=0),\"\",'Blank - Request Form'!G112),IF('Blank - Request Form'!$F$7=\"CICMP\",IF(OR('Blank - Request Form'!P112=\"0\",'Blank - Request Form'!P112=\"00000\",'Blank - Request Form'!P112=0),\"\",'Blank - Request Form'!P112),\"\"))","v":""},{"$f":"IF('Blank - Request Form'!$F$6=\"CICMP\",IF(OR('Blank - Request Form'!H112=\"0\",'Blank - Request Form'!H112=\"00000\",'Blank - Request Form'!H112=0),\"\",'Blank - Request Form'!H112),IF('Blank - Request Form'!$F$7=\"CICMP\",IF(OR('Blank - Request Form'!Q112=\"0\",'Blank - Request Form'!Q112=\"00000\",'Blank - Request Form'!Q112=0),\"\",'Blank - Request Form'!Q112),\"\"))","v":""},{"$f":"IF('Blank - Request Form'!$F$6=\"CICMP\",IF(OR('Blank - Request Form'!I112=\"0\",'Blank - Request Form'!I112=\"00000\",'Blank - Request Form'!I112=0),\"\",'Blank - Request Form'!I112),IF('Blank - Request Form'!$F$7=\"CICMP\",IF(OR('Blank - Request Form'!R112=\"0\",'Blank - Request Form'!R112=\"00000\",'Blank - Request Form'!R112=0),\"\",'Blank - Request Form'!R112),\"\"))","v":""},null,{"$f":"IF('Blank - Request Form'!$F$6=\"CICMP\",IF('Blank - Request Form'!K112=0,\"\",'Blank - Request Form'!K112),IF('Blank - Request Form'!$F$7=\"CICMP\",IF('Blank - Request Form'!T112=0,\"\",'Blank - Request Form'!T112),\"\"))","v":""},null,null,null,{"$f":"IF(M78<>\"\",'Blank - Request Form'!$M$2,\"\")","v":""},{"$f":"IF('Blank - Request Form'!$F$6=\"CICMP\",IF('Blank - Request Form'!J112=0,\"\",'Blank - Request Form'!J112),IF('Blank - Request Form'!$F$7=\"CICMP\",IF('Blank - Request Form'!S112=0,\"\",'Blank - Request Form'!S112),\"\"))","v":""},"",78]
[{"$f":"IF('Blank - Request Form'!$F$6=\"CICMP\",IF('Blank - Request Form'!D113=0,\"\",'Blank - Request Form'!D113),IF('Blank - Request Form'!$F$7=\"CICMP\",IF('Blank - Request Form'!M113=0,\"\",'Blank - Request Form'!M113),\"\"))","v":""},{"$f":"IF('Blank - Request Form'!$F$6=\"CICMP\",IF('Blank - Request Form'!E113=0,\"\",'Blank - Request Form'!E113),IF('Blank - Request Form'!$F$7=\"CICMP\",IF('Blank - Request Form'!N113=0,\"\",'Blank - Request Form'!N113),\"\"))","v":""},{"$f":"IF('Blank - Request Form'!$F$6=\"CICMP\",IF(OR('Blank - Request Form'!F113=\"000\",'Blank - Request Form'!F113=0),\"\",'Blank - Request Form'!F113),IF('Blank - Request Form'!$F$7=\"CICMP\",IF(OR('Blank - Request Form'!O113=\"000\",'Blank - Request Form'!O113=0),\"\",'Blank - Request Form'!O113),\"\"))","v":""},{"$f":"IF('Blank - Request Form'!$F$6=\"CICMP\",IF(OR('Blank - Request Form'!G113=\"0\",'Blank - Request Form'!G113=\"00000\",'Blank - Request Form'!G113=0),\"\",'Blank - Request Form'!G113),IF('Blank - Request Form'!$F$7=\"CICMP\",IF(OR('Blank - Request Form'!P113=\"0\",'Blank - Request Form'!P113=\"00000\",'Blank - Request Form'!P113=0),\"\",'Blank - Request Form'!P113),\"\"))","v":""},{"$f":"IF('Blank - Request Form'!$F$6=\"CICMP\",IF(OR('Blank - Request Form'!H113=\"0\",'Blank - Request Form'!H113=\"00000\",'Blank - Request Form'!H113=0),\"\",'Blank - Request Form'!H113),IF('Blank - Request Form'!$F$7=\"CICMP\",IF(OR('Blank - Request Form'!Q113=\"0\",'Blank - Request Form'!Q113=\"00000\",'Blank - Request Form'!Q113=0),\"\",'Blank - Request Form'!Q113),\"\"))","v":""},{"$f":"IF('Blank - Request Form'!$F$6=\"CICMP\",IF(OR('Blank - Request Form'!I113=\"0\",'Blank - Request Form'!I113=\"00000\",'Blank - Request Form'!I113=0),\"\",'Blank - Request Form'!I113),IF('Blank - Request Form'!$F$7=\"CICMP\",IF(OR('Blank - Request Form'!R113=\"0\",'Blank - Request Form'!R113=\"00000\",'Blank - Request Form'!R113=0),\"\",'Blank - Request Form'!R113),\"\"))","v":""},null,{"$f":"IF('Blank - Request Form'!$F$6=\"CICMP\",IF('Blank - Request Form'!K113=0,\"\",'Blank - Request Form'!K113),IF('Blank - Request Form'!$F$7=\"CICMP\",IF('Blank - Request Form'!T113=0,\"\",'Blank - Request Form'!T113),\"\"))","v":""},null,null,null,{"$f":"IF(M79<>\"\",'Blank - Request Form'!$M$2,\"\")","v":""},{"$f":"IF('Blank - Request Form'!$F$6=\"CICMP\",IF('Blank - Request Form'!J113=0,\"\",'Blank - Request Form'!J113),IF('Blank - Request Form'!$F$7=\"CICMP\",IF('Blank - Request Form'!S113=0,\"\",'Blank - Request Form'!S113),\"\"))","v":""},"",79]
[{"$f":"IF('Blank - Request Form'!$F$6=\"CICMP\",IF('Blank - Request Form'!D114=0,\"\",'Blank - Request Form'!D114),IF('Blank - Request Form'!$F$7=\"CICMP\",IF('Blank - Request Form'!M114=0,\"\",'Blank - Request Form'!M114),\"\"))","v":""},{"$f":"IF('Blank - Request Form'!$F$6=\"CICMP\",IF('Blank - Request Form'!E114=0,\"\",'Blank - Request Form'!E114),IF('Blank - Request Form'!$F$7=\"CICMP\",IF('Blank - Request Form'!N114=0,\"\",'Blank - Request Form'!N114),\"\"))","v":""},{"$f":"IF('Blank - Request Form'!$F$6=\"CICMP\",IF(OR('Blank - Request Form'!F114=\"000\",'Blank - Request Form'!F114=0),\"\",'Blank - Request Form'!F114),IF('Blank - Request Form'!$F$7=\"CICMP\",IF(OR('Blank - Request Form'!O114=\"000\",'Blank - Request Form'!O114=0),\"\",'Blank - Request Form'!O114),\"\"))","v":""},{"$f":"IF('Blank - Request Form'!$F$6=\"CICMP\",IF(OR('Blank - Request Form'!G114=\"0\",'Blank - Request Form'!G114=\"00000\",'Blank - Request Form'!G114=0),\"\",'Blank - Request Form'!G114),IF('Blank - Request Form'!$F$7=\"CICMP\",IF(OR('Blank - Request Form'!P114=\"0\",'Blank - Request Form'!P114=\"00000\",'Blank - Request Form'!P114=0),\"\",'Blank - Request Form'!P114),\"\"))","v":""},{"$f":"IF('Blank - Request Form'!$F$6=\"CICMP\",IF(OR('Blank - Request Form'!H114=\"0\",'Blank - Request Form'!H114=\"00000\",'Blank - Request Form'!H114=0),\"\",'Blank - Request Form'!H114),IF('Blank - Request Form'!$F$7=\"CICMP\",IF(OR('Blank - Request Form'!Q114=\"0\",'Blank - Request Form'!Q114=\"00000\",'Blank - Request Form'!Q114=0),\"\",'Blank - Request Form'!Q114),\"\"))","v":""},{"$f":"IF('Blank - Request Form'!$F$6=\"CICMP\",IF(OR('Blank - Request Form'!I114=\"0\",'Blank - Request Form'!I114=\"00000\",'Blank - Request Form'!I114=0),\"\",'Blank - Request Form'!I114),IF('Blank - Request Form'!$F$7=\"CICMP\",IF(OR('Blank - Request Form'!R114=\"0\",'Blank - Request Form'!R114=\"00000\",'Blank - Request Form'!R114=0),\"\",'Blank - Request Form'!R114),\"\"))","v":""},null,{"$f":"IF('Blank - Request Form'!$F$6=\"CICMP\",IF('Blank - Request Form'!K114=0,\"\",'Blank - Request Form'!K114),IF('Blank - Request Form'!$F$7=\"CICMP\",IF('Blank - Request Form'!T114=0,\"\",'Blank - Request Form'!T114),\"\"))","v":""},null,null,null,{"$f":"IF(M80<>\"\",'Blank - Request Form'!$M$2,\"\")","v":""},{"$f":"IF('Blank - Request Form'!$F$6=\"CICMP\",IF('Blank - Request Form'!J114=0,\"\",'Blank - Request Form'!J114),IF('Blank - Request Form'!$F$7=\"CICMP\",IF('Blank - Request Form'!S114=0,\"\",'Blank - Request Form'!S114),\"\"))","v":""},"",80]
[{"$f":"IF('Blank - Request Form'!$F$6=\"CICMP\",IF('Blank - Request Form'!D115=0,\"\",'Blank - Request Form'!D115),IF('Blank - Request Form'!$F$7=\"CICMP\",IF('Blank - Request Form'!M115=0,\"\",'Blank - Request Form'!M115),\"\"))","v":""},{"$f":"IF('Blank - Request Form'!$F$6=\"CICMP\",IF('Blank - Request Form'!E115=0,\"\",'Blank - Request Form'!E115),IF('Blank - Request Form'!$F$7=\"CICMP\",IF('Blank - Request Form'!N115=0,\"\",'Blank - Request Form'!N115),\"\"))","v":""},{"$f":"IF('Blank - Request Form'!$F$6=\"CICMP\",IF(OR('Blank - Request Form'!F115=\"000\",'Blank - Request Form'!F115=0),\"\",'Blank - Request Form'!F115),IF('Blank - Request Form'!$F$7=\"CICMP\",IF(OR('Blank - Request Form'!O115=\"000\",'Blank - Request Form'!O115=0),\"\",'Blank - Request Form'!O115),\"\"))","v":""},{"$f":"IF('Blank - Request Form'!$F$6=\"CICMP\",IF(OR('Blank - Request Form'!G115=\"0\",'Blank - Request Form'!G115=\"00000\",'Blank - Request Form'!G115=0),\"\",'Blank - Request Form'!G115),IF('Blank - Request Form'!$F$7=\"CICMP\",IF(OR('Blank - Request Form'!P115=\"0\",'Blank - Request Form'!P115=\"00000\",'Blank - Request Form'!P115=0),\"\",'Blank - Request Form'!P115),\"\"))","v":""},{"$f":"IF('Blank - Request Form'!$F$6=\"CICMP\",IF(OR('Blank - Request Form'!H115=\"0\",'Blank - Request Form'!H115=\"00000\",'Blank - Request Form'!H115=0),\"\",'Blank - Request Form'!H115),IF('Blank - Request Form'!$F$7=\"CICMP\",IF(OR('Blank - Request Form'!Q115=\"0\",'Blank - Request Form'!Q115=\"00000\",'Blank - Request Form'!Q115=0),\"\",'Blank - Request Form'!Q115),\"\"))","v":""},{"$f":"IF('Blank - Request Form'!$F$6=\"CICMP\",IF(OR('Blank - Request Form'!I115=\"0\",'Blank - Request Form'!I115=\"00000\",'Blank - Request Form'!I115=0),\"\",'Blank - Request Form'!I115),IF('Blank - Request Form'!$F$7=\"CICMP\",IF(OR('Blank - Request Form'!R115=\"0\",'Blank - Request Form'!R115=\"00000\",'Blank - Request Form'!R115=0),\"\",'Blank - Request Form'!R115),\"\"))","v":""},null,{"$f":"IF('Blank - Request Form'!$F$6=\"CICMP\",IF('Blank - Request Form'!K115=0,\"\",'Blank - Request Form'!K115),IF('Blank - Request Form'!$F$7=\"CICMP\",IF('Blank - Request Form'!T115=0,\"\",'Blank - Request Form'!T115),\"\"))","v":""},null,null,null,{"$f":"IF(M81<>\"\",'Blank - Request Form'!$M$2,\"\")","v":""},{"$f":"IF('Blank - Request Form'!$F$6=\"CICMP\",IF('Blank - Request Form'!J115=0,\"\",'Blank - Request Form'!J115),IF('Blank - Request Form'!$F$7=\"CICMP\",IF('Blank - Request Form'!S115=0,\"\",'Blank - Request Form'!S115),\"\"))","v":""},"",81]
[{"$f":"IF('Blank - Request Form'!$F$6=\"CICMP\",IF('Blank - Request Form'!D116=0,\"\",'Blank - Request Form'!D116),IF('Blank - Request Form'!$F$7=\"CICMP\",IF('Blank - Request Form'!M116=0,\"\",'Blank - Request Form'!M116),\"\"))","v":""},{"$f":"IF('Blank - Request Form'!$F$6=\"CICMP\",IF('Blank - Request Form'!E116=0,\"\",'Blank - Request Form'!E116),IF('Blank - Request Form'!$F$7=\"CICMP\",IF('Blank - Request Form'!N116=0,\"\",'Blank - Request Form'!N116),\"\"))","v":""},{"$f":"IF('Blank - Request Form'!$F$6=\"CICMP\",IF(OR('Blank - Request Form'!F116=\"000\",'Blank - Request Form'!F116=0),\"\",'Blank - Request Form'!F116),IF('Blank - Request Form'!$F$7=\"CICMP\",IF(OR('Blank - Request Form'!O116=\"000\",'Blank - Request Form'!O116=0),\"\",'Blank - Request Form'!O116),\"\"))","v":""},{"$f":"IF('Blank - Request Form'!$F$6=\"CICMP\",IF(OR('Blank - Request Form'!G116=\"0\",'Blank - Request Form'!G116=\"00000\",'Blank - Request Form'!G116=0),\"\",'Blank - Request Form'!G116),IF('Blank - Request Form'!$F$7=\"CICMP\",IF(OR('Blank - Request Form'!P116=\"0\",'Blank - Request Form'!P116=\"00000\",'Blank - Request Form'!P116=0),\"\",'Blank - Request Form'!P116),\"\"))","v":""},{"$f":"IF('Blank - Request Form'!$F$6=\"CICMP\",IF(OR('Blank - Request Form'!H116=\"0\",'Blank - Request Form'!H116=\"00000\",'Blank - Request Form'!H116=0),\"\",'Blank - Request Form'!H116),IF('Blank - Request Form'!$F$7=\"CICMP\",IF(OR('Blank - Request Form'!Q116=\"0\",'Blank - Request Form'!Q116=\"00000\",'Blank - Request Form'!Q116=0),\"\",'Blank - Request Form'!Q116),\"\"))","v":""},{"$f":"IF('Blank - Request Form'!$F$6=\"CICMP\",IF(OR('Blank - Request Form'!I116=\"0\",'Blank - Request Form'!I116=\"00000\",'Blank - Request Form'!I116=0),\"\",'Blank - Request Form'!I116),IF('Blank - Request Form'!$F$7=\"CICMP\",IF(OR('Blank - Request Form'!R116=\"0\",'Blank - Request Form'!R116=\"00000\",'Blank - Request Form'!R116=0),\"\",'Blank - Request Form'!R116),\"\"))","v":""},null,{"$f":"IF('Blank - Request Form'!$F$6=\"CICMP\",IF('Blank - Request Form'!K116=0,\"\",'Blank - Request Form'!K116),IF('Blank - Request Form'!$F$7=\"CICMP\",IF('Blank - Request Form'!T116=0,\"\",'Blank - Request Form'!T116),\"\"))","v":""},null,null,null,{"$f":"IF(M82<>\"\",'Blank - Request Form'!$M$2,\"\")","v":""},{"$f":"IF('Blank - Request Form'!$F$6=\"CICMP\",IF('Blank - Request Form'!J116=0,\"\",'Blank - Request Form'!J116),IF('Blank - Request Form'!$F$7=\"CICMP\",IF('Blank - Request Form'!S116=0,\"\",'Blank - Request Form'!S116),\"\"))","v":""},"",82]
[{"$f":"IF('Blank - Request Form'!$F$6=\"CICMP\",IF('Blank - Request Form'!D117=0,\"\",'Blank - Request Form'!D117),IF('Blank - Request Form'!$F$7=\"CICMP\",IF('Blank - Request Form'!M117=0,\"\",'Blank - Request Form'!M117),\"\"))","v":""},{"$f":"IF('Blank - Request Form'!$F$6=\"CICMP\",IF('Blank - Request Form'!E117=0,\"\",'Blank - Request Form'!E117),IF('Blank - Request Form'!$F$7=\"CICMP\",IF('Blank - Request Form'!N117=0,\"\",'Blank - Request Form'!N117),\"\"))","v":""},{"$f":"IF('Blank - Request Form'!$F$6=\"CICMP\",IF(OR('Blank - Request Form'!F117=\"000\",'Blank - Request Form'!F117=0),\"\",'Blank - Request Form'!F117),IF('Blank - Request Form'!$F$7=\"CICMP\",IF(OR('Blank - Request Form'!O117=\"000\",'Blank - Request Form'!O117=0),\"\",'Blank - Request Form'!O117),\"\"))","v":""},{"$f":"IF('Blank - Request Form'!$F$6=\"CICMP\",IF(OR('Blank - Request Form'!G117=\"0\",'Blank - Request Form'!G117=\"00000\",'Blank - Request Form'!G117=0),\"\",'Blank - Request Form'!G117),IF('Blank - Request Form'!$F$7=\"CICMP\",IF(OR('Blank - Request Form'!P117=\"0\",'Blank - Request Form'!P117=\"00000\",'Blank - Request Form'!P117=0),\"\",'Blank - Request Form'!P117),\"\"))","v":""},{"$f":"IF('Blank - Request Form'!$F$6=\"CICMP\",IF(OR('Blank - Request Form'!H117=\"0\",'Blank - Request Form'!H117=\"00000\",'Blank - Request Form'!H117=0),\"\",'Blank - Request Form'!H117),IF('Blank - Request Form'!$F$7=\"CICMP\",IF(OR('Blank - Request Form'!Q117=\"0\",'Blank - Request Form'!Q117=\"00000\",'Blank - Request Form'!Q117=0),\"\",'Blank - Request Form'!Q117),\"\"))","v":""},{"$f":"IF('Blank - Request Form'!$F$6=\"CICMP\",IF(OR('Blank - Request Form'!I117=\"0\",'Blank - Request Form'!I117=\"00000\",'Blank - Request Form'!I117=0),\"\",'Blank - Request Form'!I117),IF('Blank - Request Form'!$F$7=\"CICMP\",IF(OR('Blank - Request Form'!R117=\"0\",'Blank - Request Form'!R117=\"00000\",'Blank - Request Form'!R117=0),\"\",'Blank - Request Form'!R117),\"\"))","v":""},null,{"$f":"IF('Blank - Request Form'!$F$6=\"CICMP\",IF('Blank - Request Form'!K117=0,\"\",'Blank - Request Form'!K117),IF('Blank - Request Form'!$F$7=\"CICMP\",IF('Blank - Request Form'!T117=0,\"\",'Blank - Request Form'!T117),\"\"))","v":""},null,null,null,{"$f":"IF(M83<>\"\",'Blank - Request Form'!$M$2,\"\")","v":""},{"$f":"IF('Blank - Request Form'!$F$6=\"CICMP\",IF('Blank - Request Form'!J117=0,\"\",'Blank - Request Form'!J117),IF('Blank - Request Form'!$F$7=\"CICMP\",IF('Blank - Request Form'!S117=0,\"\",'Blank - Request Form'!S117),\"\"))","v":""},"",83]
[{"$f":"IF('Blank - Request Form'!$F$6=\"CICMP\",IF('Blank - Request Form'!D118=0,\"\",'Blank - Request Form'!D118),IF('Blank - Request Form'!$F$7=\"CICMP\",IF('Blank - Request Form'!M118=0,\"\",'Blank - Request Form'!M118),\"\"))","v":""},{"$f":"IF('Blank - Request Form'!$F$6=\"CICMP\",IF('Blank - Request Form'!E118=0,\"\",'Blank - Request Form'!E118),IF('Blank - Request Form'!$F$7=\"CICMP\",IF('Blank - Request Form'!N118=0,\"\",'Blank - Request Form'!N118),\"\"))","v":""},{"$f":"IF('Blank - Request Form'!$F$6=\"CICMP\",IF(OR('Blank - Request Form'!F118=\"000\",'Blank - Request Form'!F118=0),\"\",'Blank - Request Form'!F118),IF('Blank - Request Form'!$F$7=\"CICMP\",IF(OR('Blank - Request Form'!O118=\"000\",'Blank - Request Form'!O118=0),\"\",'Blank - Request Form'!O118),\"\"))","v":""},{"$f":"IF('Blank - Request Form'!$F$6=\"CICMP\",IF(OR('Blank - Request Form'!G118=\"0\",'Blank - Request Form'!G118=\"00000\",'Blank - Request Form'!G118=0),\"\",'Blank - Request Form'!G118),IF('Blank - Request Form'!$F$7=\"CICMP\",IF(OR('Blank - Request Form'!P118=\"0\",'Blank - Request Form'!P118=\"00000\",'Blank - Request Form'!P118=0),\"\",'Blank - Request Form'!P118),\"\"))","v":""},{"$f":"IF('Blank - Request Form'!$F$6=\"CICMP\",IF(OR('Blank - Request Form'!H118=\"0\",'Blank - Request Form'!H118=\"00000\",'Blank - Request Form'!H118=0),\"\",'Blank - Request Form'!H118),IF('Blank - Request Form'!$F$7=\"CICMP\",IF(OR('Blank - Request Form'!Q118=\"0\",'Blank - Request Form'!Q118=\"00000\",'Blank - Request Form'!Q118=0),\"\",'Blank - Request Form'!Q118),\"\"))","v":""},{"$f":"IF('Blank - Request Form'!$F$6=\"CICMP\",IF(OR('Blank - Request Form'!I118=\"0\",'Blank - Request Form'!I118=\"00000\",'Blank - Request Form'!I118=0),\"\",'Blank - Request Form'!I118),IF('Blank - Request Form'!$F$7=\"CICMP\",IF(OR('Blank - Request Form'!R118=\"0\",'Blank - Request Form'!R118=\"00000\",'Blank - Request Form'!R118=0),\"\",'Blank - Request Form'!R118),\"\"))","v":""},null,{"$f":"IF('Blank - Request Form'!$F$6=\"CICMP\",IF('Blank - Request Form'!K118=0,\"\",'Blank - Request Form'!K118),IF('Blank - Request Form'!$F$7=\"CICMP\",IF('Blank - Request Form'!T118=0,\"\",'Blank - Request Form'!T118),\"\"))","v":""},null,null,null,{"$f":"IF(M84<>\"\",'Blank - Request Form'!$M$2,\"\")","v":""},{"$f":"IF('Blank - Request Form'!$F$6=\"CICMP\",IF('Blank - Request Form'!J118=0,\"\",'Blank - Request Form'!J118),IF('Blank - Request Form'!$F$7=\"CICMP\",IF('Blank - Request Form'!S118=0,\"\",'Blank - Request Form'!S118),\"\"))","v":""},"",84]
[{"$f":"IF('Blank - Request Form'!$F$6=\"CICMP\",IF('Blank - Request Form'!D119=0,\"\",'Blank - Request Form'!D119),IF('Blank - Request Form'!$F$7=\"CICMP\",IF('Blank - Request Form'!M119=0,\"\",'Blank - Request Form'!M119),\"\"))","v":""},{"$f":"IF('Blank - Request Form'!$F$6=\"CICMP\",IF('Blank - Request Form'!E119=0,\"\",'Blank - Request Form'!E119),IF('Blank - Request Form'!$F$7=\"CICMP\",IF('Blank - Request Form'!N119=0,\"\",'Blank - Request Form'!N119),\"\"))","v":""},{"$f":"IF('Blank - Request Form'!$F$6=\"CICMP\",IF(OR('Blank - Request Form'!F119=\"000\",'Blank - Request Form'!F119=0),\"\",'Blank - Request Form'!F119),IF('Blank - Request Form'!$F$7=\"CICMP\",IF(OR('Blank - Request Form'!O119=\"000\",'Blank - Request Form'!O119=0),\"\",'Blank - Request Form'!O119),\"\"))","v":""},{"$f":"IF('Blank - Request Form'!$F$6=\"CICMP\",IF(OR('Blank - Request Form'!G119=\"0\",'Blank - Request Form'!G119=\"00000\",'Blank - Request Form'!G119=0),\"\",'Blank - Request Form'!G119),IF('Blank - Request Form'!$F$7=\"CICMP\",IF(OR('Blank - Request Form'!P119=\"0\",'Blank - Request Form'!P119=\"00000\",'Blank - Request Form'!P119=0),\"\",'Blank - Request Form'!P119),\"\"))","v":""},{"$f":"IF('Blank - Request Form'!$F$6=\"CICMP\",IF(OR('Blank - Request Form'!H119=\"0\",'Blank - Request Form'!H119=\"00000\",'Blank - Request Form'!H119=0),\"\",'Blank - Request Form'!H119),IF('Blank - Request Form'!$F$7=\"CICMP\",IF(OR('Blank - Request Form'!Q119=\"0\",'Blank - Request Form'!Q119=\"00000\",'Blank - Request Form'!Q119=0),\"\",'Blank - Request Form'!Q119),\"\"))","v":""},{"$f":"IF('Blank - Request Form'!$F$6=\"CICMP\",IF(OR('Blank - Request Form'!I119=\"0\",'Blank - Request Form'!I119=\"00000\",'Blank - Request Form'!I119=0),\"\",'Blank - Request Form'!I119),IF('Blank - Request Form'!$F$7=\"CICMP\",IF(OR('Blank - Request Form'!R119=\"0\",'Blank - Request Form'!R119=\"00000\",'Blank - Request Form'!R119=0),\"\",'Blank - Request Form'!R119),\"\"))","v":""},null,{"$f":"IF('Blank - Request Form'!$F$6=\"CICMP\",IF('Blank - Request Form'!K119=0,\"\",'Blank - Request Form'!K119),IF('Blank - Request Form'!$F$7=\"CICMP\",IF('Blank - Request Form'!T119=0,\"\",'Blank - Request Form'!T119),\"\"))","v":""},null,null,null,{"$f":"IF(M85<>\"\",'Blank - Request Form'!$M$2,\"\")","v":""},{"$f":"IF('Blank - Request Form'!$F$6=\"CICMP\",IF('Blank - Request Form'!J119=0,\"\",'Blank - Request Form'!J119),IF('Blank - Request Form'!$F$7=\"CICMP\",IF('Blank - Request Form'!S119=0,\"\",'Blank - Request Form'!S119),\"\"))","v":""},"",85]
[{"$f":"IF('Blank - Request Form'!$F$6=\"CICMP\",IF('Blank - Request Form'!D120=0,\"\",'Blank - Request Form'!D120),IF('Blank - Request Form'!$F$7=\"CICMP\",IF('Blank - Request Form'!M120=0,\"\",'Blank - Request Form'!M120),\"\"))","v":""},{"$f":"IF('Blank - Request Form'!$F$6=\"CICMP\",IF('Blank - Request Form'!E120=0,\"\",'Blank - Request Form'!E120),IF('Blank - Request Form'!$F$7=\"CICMP\",IF('Blank - Request Form'!N120=0,\"\",'Blank - Request Form'!N120),\"\"))","v":""},{"$f":"IF('Blank - Request Form'!$F$6=\"CICMP\",IF(OR('Blank - Request Form'!F120=\"000\",'Blank - Request Form'!F120=0),\"\",'Blank - Request Form'!F120),IF('Blank - Request Form'!$F$7=\"CICMP\",IF(OR('Blank - Request Form'!O120=\"000\",'Blank - Request Form'!O120=0),\"\",'Blank - Request Form'!O120),\"\"))","v":""},{"$f":"IF('Blank - Request Form'!$F$6=\"CICMP\",IF(OR('Blank - Request Form'!G120=\"0\",'Blank - Request Form'!G120=\"00000\",'Blank - Request Form'!G120=0),\"\",'Blank - Request Form'!G120),IF('Blank - Request Form'!$F$7=\"CICMP\",IF(OR('Blank - Request Form'!P120=\"0\",'Blank - Request Form'!P120=\"00000\",'Blank - Request Form'!P120=0),\"\",'Blank - Request Form'!P120),\"\"))","v":""},{"$f":"IF('Blank - Request Form'!$F$6=\"CICMP\",IF(OR('Blank - Request Form'!H120=\"0\",'Blank - Request Form'!H120=\"00000\",'Blank - Request Form'!H120=0),\"\",'Blank - Request Form'!H120),IF('Blank - Request Form'!$F$7=\"CICMP\",IF(OR('Blank - Request Form'!Q120=\"0\",'Blank - Request Form'!Q120=\"00000\",'Blank - Request Form'!Q120=0),\"\",'Blank - Request Form'!Q120),\"\"))","v":""},{"$f":"IF('Blank - Request Form'!$F$6=\"CICMP\",IF(OR('Blank - Request Form'!I120=\"0\",'Blank - Request Form'!I120=\"00000\",'Blank - Request Form'!I120=0),\"\",'Blank - Request Form'!I120),IF('Blank - Request Form'!$F$7=\"CICMP\",IF(OR('Blank - Request Form'!R120=\"0\",'Blank - Request Form'!R120=\"00000\",'Blank - Request Form'!R120=0),\"\",'Blank - Request Form'!R120),\"\"))","v":""},null,{"$f":"IF('Blank - Request Form'!$F$6=\"CICMP\",IF('Blank - Request Form'!K120=0,\"\",'Blank - Request Form'!K120),IF('Blank - Request Form'!$F$7=\"CICMP\",IF('Blank - Request Form'!T120=0,\"\",'Blank - Request Form'!T120),\"\"))","v":""},null,null,null,{"$f":"IF(M86<>\"\",'Blank - Request Form'!$M$2,\"\")","v":""},{"$f":"IF('Blank - Request Form'!$F$6=\"CICMP\",IF('Blank - Request Form'!J120=0,\"\",'Blank - Request Form'!J120),IF('Blank - Request Form'!$F$7=\"CICMP\",IF('Blank - Request Form'!S120=0,\"\",'Blank - Request Form'!S120),\"\"))","v":""},"",86]
[{"$f":"IF('Blank - Request Form'!$F$6=\"CICMP\",IF('Blank - Request Form'!D121=0,\"\",'Blank - Request Form'!D121),IF('Blank - Request Form'!$F$7=\"CICMP\",IF('Blank - Request Form'!M121=0,\"\",'Blank - Request Form'!M121),\"\"))","v":""},{"$f":"IF('Blank - Request Form'!$F$6=\"CICMP\",IF('Blank - Request Form'!E121=0,\"\",'Blank - Request Form'!E121),IF('Blank - Request Form'!$F$7=\"CICMP\",IF('Blank - Request Form'!N121=0,\"\",'Blank - Request Form'!N121),\"\"))","v":""},{"$f":"IF('Blank - Request Form'!$F$6=\"CICMP\",IF(OR('Blank - Request Form'!F121=\"000\",'Blank - Request Form'!F121=0),\"\",'Blank - Request Form'!F121),IF('Blank - Request Form'!$F$7=\"CICMP\",IF(OR('Blank - Request Form'!O121=\"000\",'Blank - Request Form'!O121=0),\"\",'Blank - Request Form'!O121),\"\"))","v":""},{"$f":"IF('Blank - Request Form'!$F$6=\"CICMP\",IF(OR('Blank - Request Form'!G121=\"0\",'Blank - Request Form'!G121=\"00000\",'Blank - Request Form'!G121=0),\"\",'Blank - Request Form'!G121),IF('Blank - Request Form'!$F$7=\"CICMP\",IF(OR('Blank - Request Form'!P121=\"0\",'Blank - Request Form'!P121=\"00000\",'Blank - Request Form'!P121=0),\"\",'Blank - Request Form'!P121),\"\"))","v":""},{"$f":"IF('Blank - Request Form'!$F$6=\"CICMP\",IF(OR('Blank - Request Form'!H121=\"0\",'Blank - Request Form'!H121=\"00000\",'Blank - Request Form'!H121=0),\"\",'Blank - Request Form'!H121),IF('Blank - Request Form'!$F$7=\"CICMP\",IF(OR('Blank - Request Form'!Q121=\"0\",'Blank - Request Form'!Q121=\"00000\",'Blank - Request Form'!Q121=0),\"\",'Blank - Request Form'!Q121),\"\"))","v":""},{"$f":"IF('Blank - Request Form'!$F$6=\"CICMP\",IF(OR('Blank - Request Form'!I121=\"0\",'Blank - Request Form'!I121=\"00000\",'Blank - Request Form'!I121=0),\"\",'Blank - Request Form'!I121),IF('Blank - Request Form'!$F$7=\"CICMP\",IF(OR('Blank - Request Form'!R121=\"0\",'Blank - Request Form'!R121=\"00000\",'Blank - Request Form'!R121=0),\"\",'Blank - Request Form'!R121),\"\"))","v":""},null,{"$f":"IF('Blank - Request Form'!$F$6=\"CICMP\",IF('Blank - Request Form'!K121=0,\"\",'Blank - Request Form'!K121),IF('Blank - Request Form'!$F$7=\"CICMP\",IF('Blank - Request Form'!T121=0,\"\",'Blank - Request Form'!T121),\"\"))","v":""},null,null,null,{"$f":"IF(M87<>\"\",'Blank - Request Form'!$M$2,\"\")","v":""},{"$f":"IF('Blank - Request Form'!$F$6=\"CICMP\",IF('Blank - Request Form'!J121=0,\"\",'Blank - Request Form'!J121),IF('Blank - Request Form'!$F$7=\"CICMP\",IF('Blank - Request Form'!S121=0,\"\",'Blank - Request Form'!S121),\"\"))","v":""},"",87]
[{"$f":"IF('Blank - Request Form'!$F$6=\"CICMP\",IF('Blank - Request Form'!D122=0,\"\",'Blank - Request Form'!D122),IF('Blank - Request Form'!$F$7=\"CICMP\",IF('Blank - Request Form'!M122=0,\"\",'Blank - Request Form'!M122),\"\"))","v":""},{"$f":"IF('Blank - Request Form'!$F$6=\"CICMP\",IF('Blank - Request Form'!E122=0,\"\",'Blank - Request Form'!E122),IF('Blank - Request Form'!$F$7=\"CICMP\",IF('Blank - Request Form'!N122=0,\"\",'Blank - Request Form'!N122),\"\"))","v":""},{"$f":"IF('Blank - Request Form'!$F$6=\"CICMP\",IF(OR('Blank - Request Form'!F122=\"000\",'Blank - Request Form'!F122=0),\"\",'Blank - Request Form'!F122),IF('Blank - Request Form'!$F$7=\"CICMP\",IF(OR('Blank - Request Form'!O122=\"000\",'Blank - Request Form'!O122=0),\"\",'Blank - Request Form'!O122),\"\"))","v":""},{"$f":"IF('Blank - Request Form'!$F$6=\"CICMP\",IF(OR('Blank - Request Form'!G122=\"0\",'Blank - Request Form'!G122=\"00000\",'Blank - Request Form'!G122=0),\"\",'Blank - Request Form'!G122),IF('Blank - Request Form'!$F$7=\"CICMP\",IF(OR('Blank - Request Form'!P122=\"0\",'Blank - Request Form'!P122=\"00000\",'Blank - Request Form'!P122=0),\"\",'Blank - Request Form'!P122),\"\"))","v":""},{"$f":"IF('Blank - Request Form'!$F$6=\"CICMP\",IF(OR('Blank - Request Form'!H122=\"0\",'Blank - Request Form'!H122=\"00000\",'Blank - Request Form'!H122=0),\"\",'Blank - Request Form'!H122),IF('Blank - Request Form'!$F$7=\"CICMP\",IF(OR('Blank - Request Form'!Q122=\"0\",'Blank - Request Form'!Q122=\"00000\",'Blank - Request Form'!Q122=0),\"\",'Blank - Request Form'!Q122),\"\"))","v":""},{"$f":"IF('Blank - Request Form'!$F$6=\"CICMP\",IF(OR('Blank - Request Form'!I122=\"0\",'Blank - Request Form'!I122=\"00000\",'Blank - Request Form'!I122=0),\"\",'Blank - Request Form'!I122),IF('Blank - Request Form'!$F$7=\"CICMP\",IF(OR('Blank - Request Form'!R122=\"0\",'Blank - Request Form'!R122=\"00000\",'Blank - Request Form'!R122=0),\"\",'Blank - Request Form'!R122),\"\"))","v":""},null,{"$f":"IF('Blank - Request Form'!$F$6=\"CICMP\",IF('Blank - Request Form'!K122=0,\"\",'Blank - Request Form'!K122),IF('Blank - Request Form'!$F$7=\"CICMP\",IF('Blank - Request Form'!T122=0,\"\",'Blank - Request Form'!T122),\"\"))","v":""},null,null,null,{"$f":"IF(M88<>\"\",'Blank - Request Form'!$M$2,\"\")","v":""},{"$f":"IF('Blank - Request Form'!$F$6=\"CICMP\",IF('Blank - Request Form'!J122=0,\"\",'Blank - Request Form'!J122),IF('Blank - Request Form'!$F$7=\"CICMP\",IF('Blank - Request Form'!S122=0,\"\",'Blank - Request Form'!S122),\"\"))","v":""},"",88]
[{"$f":"IF('Blank - Request Form'!$F$6=\"CICMP\",IF('Blank - Request Form'!D123=0,\"\",'Blank - Request Form'!D123),IF('Blank - Request Form'!$F$7=\"CICMP\",IF('Blank - Request Form'!M123=0,\"\",'Blank - Request Form'!M123),\"\"))","v":""},{"$f":"IF('Blank - Request Form'!$F$6=\"CICMP\",IF('Blank - Request Form'!E123=0,\"\",'Blank - Request Form'!E123),IF('Blank - Request Form'!$F$7=\"CICMP\",IF('Blank - Request Form'!N123=0,\"\",'Blank - Request Form'!N123),\"\"))","v":""},{"$f":"IF('Blank - Request Form'!$F$6=\"CICMP\",IF(OR('Blank - Request Form'!F123=\"000\",'Blank - Request Form'!F123=0),\"\",'Blank - Request Form'!F123),IF('Blank - Request Form'!$F$7=\"CICMP\",IF(OR('Blank - Request Form'!O123=\"000\",'Blank - Request Form'!O123=0),\"\",'Blank - Request Form'!O123),\"\"))","v":""},{"$f":"IF('Blank - Request Form'!$F$6=\"CICMP\",IF(OR('Blank - Request Form'!G123=\"0\",'Blank - Request Form'!G123=\"00000\",'Blank - Request Form'!G123=0),\"\",'Blank - Request Form'!G123),IF('Blank - Request Form'!$F$7=\"CICMP\",IF(OR('Blank - Request Form'!P123=\"0\",'Blank - Request Form'!P123=\"00000\",'Blank - Request Form'!P123=0),\"\",'Blank - Request Form'!P123),\"\"))","v":""},{"$f":"IF('Blank - Request Form'!$F$6=\"CICMP\",IF(OR('Blank - Request Form'!H123=\"0\",'Blank - Request Form'!H123=\"00000\",'Blank - Request Form'!H123=0),\"\",'Blank - Request Form'!H123),IF('Blank - Request Form'!$F$7=\"CICMP\",IF(OR('Blank - Request Form'!Q123=\"0\",'Blank - Request Form'!Q123=\"00000\",'Blank - Request Form'!Q123=0),\"\",'Blank - Request Form'!Q123),\"\"))","v":""},{"$f":"IF('Blank - Request Form'!$F$6=\"CICMP\",IF(OR('Blank - Request Form'!I123=\"0\",'Blank - Request Form'!I123=\"00000\",'Blank - Request Form'!I123=0),\"\",'Blank - Request Form'!I123),IF('Blank - Request Form'!$F$7=\"CICMP\",IF(OR('Blank - Request Form'!R123=\"0\",'Blank - Request Form'!R123=\"00000\",'Blank - Request Form'!R123=0),\"\",'Blank - Request Form'!R123),\"\"))","v":""},null,{"$f":"IF('Blank - Request Form'!$F$6=\"CICMP\",IF('Blank - Request Form'!K123=0,\"\",'Blank - Request Form'!K123),IF('Blank - Request Form'!$F$7=\"CICMP\",IF('Blank - Request Form'!T123=0,\"\",'Blank - Request Form'!T123),\"\"))","v":""},null,null,null,{"$f":"IF(M89<>\"\",'Blank - Request Form'!$M$2,\"\")","v":""},{"$f":"IF('Blank - Request Form'!$F$6=\"CICMP\",IF('Blank - Request Form'!J123=0,\"\",'Blank - Request Form'!J123),IF('Blank - Request Form'!$F$7=\"CICMP\",IF('Blank - Request Form'!S123=0,\"\",'Blank - Request Form'!S123),\"\"))","v":""},"",89]
[{"$f":"IF('Blank - Request Form'!$F$6=\"CICMP\",IF('Blank - Request Form'!D124=0,\"\",'Blank - Request Form'!D124),IF('Blank - Request Form'!$F$7=\"CICMP\",IF('Blank - Request Form'!M124=0,\"\",'Blank - Request Form'!M124),\"\"))","v":""},{"$f":"IF('Blank - Request Form'!$F$6=\"CICMP\",IF('Blank - Request Form'!E124=0,\"\",'Blank - Request Form'!E124),IF('Blank - Request Form'!$F$7=\"CICMP\",IF('Blank - Request Form'!N124=0,\"\",'Blank - Request Form'!N124),\"\"))","v":""},{"$f":"IF('Blank - Request Form'!$F$6=\"CICMP\",IF(OR('Blank - Request Form'!F124=\"000\",'Blank - Request Form'!F124=0),\"\",'Blank - Request Form'!F124),IF('Blank - Request Form'!$F$7=\"CICMP\",IF(OR('Blank - Request Form'!O124=\"000\",'Blank - Request Form'!O124=0),\"\",'Blank - Request Form'!O124),\"\"))","v":""},{"$f":"IF('Blank - Request Form'!$F$6=\"CICMP\",IF(OR('Blank - Request Form'!G124=\"0\",'Blank - Request Form'!G124=\"00000\",'Blank - Request Form'!G124=0),\"\",'Blank - Request Form'!G124),IF('Blank - Request Form'!$F$7=\"CICMP\",IF(OR('Blank - Request Form'!P124=\"0\",'Blank - Request Form'!P124=\"00000\",'Blank - Request Form'!P124=0),\"\",'Blank - Request Form'!P124),\"\"))","v":""},{"$f":"IF('Blank - Request Form'!$F$6=\"CICMP\",IF(OR('Blank - Request Form'!H124=\"0\",'Blank - Request Form'!H124=\"00000\",'Blank - Request Form'!H124=0),\"\",'Blank - Request Form'!H124),IF('Blank - Request Form'!$F$7=\"CICMP\",IF(OR('Blank - Request Form'!Q124=\"0\",'Blank - Request Form'!Q124=\"00000\",'Blank - Request Form'!Q124=0),\"\",'Blank - Request Form'!Q124),\"\"))","v":""},{"$f":"IF('Blank - Request Form'!$F$6=\"CICMP\",IF(OR('Blank - Request Form'!I124=\"0\",'Blank - Request Form'!I124=\"00000\",'Blank - Request Form'!I124=0),\"\",'Blank - Request Form'!I124),IF('Blank - Request Form'!$F$7=\"CICMP\",IF(OR('Blank - Request Form'!R124=\"0\",'Blank - Request Form'!R124=\"00000\",'Blank - Request Form'!R124=0),\"\",'Blank - Request Form'!R124),\"\"))","v":""},null,{"$f":"IF('Blank - Request Form'!$F$6=\"CICMP\",IF('Blank - Request Form'!K124=0,\"\",'Blank - Request Form'!K124),IF('Blank - Request Form'!$F$7=\"CICMP\",IF('Blank - Request Form'!T124=0,\"\",'Blank - Request Form'!T124),\"\"))","v":""},null,null,null,{"$f":"IF(M90<>\"\",'Blank - Request Form'!$M$2,\"\")","v":""},{"$f":"IF('Blank - Request Form'!$F$6=\"CICMP\",IF('Blank - Request Form'!J124=0,\"\",'Blank - Request Form'!J124),IF('Blank - Request Form'!$F$7=\"CICMP\",IF('Blank - Request Form'!S124=0,\"\",'Blank - Request Form'!S124),\"\"))","v":""},"",90]
[{"$f":"IF('Blank - Request Form'!$F$6=\"CICMP\",IF('Blank - Request Form'!D125=0,\"\",'Blank - Request Form'!D125),IF('Blank - Request Form'!$F$7=\"CICMP\",IF('Blank - Request Form'!M125=0,\"\",'Blank - Request Form'!M125),\"\"))","v":""},{"$f":"IF('Blank - Request Form'!$F$6=\"CICMP\",IF('Blank - Request Form'!E125=0,\"\",'Blank - Request Form'!E125),IF('Blank - Request Form'!$F$7=\"CICMP\",IF('Blank - Request Form'!N125=0,\"\",'Blank - Request Form'!N125),\"\"))","v":""},{"$f":"IF('Blank - Request Form'!$F$6=\"CICMP\",IF(OR('Blank - Request Form'!F125=\"000\",'Blank - Request Form'!F125=0),\"\",'Blank - Request Form'!F125),IF('Blank - Request Form'!$F$7=\"CICMP\",IF(OR('Blank - Request Form'!O125=\"000\",'Blank - Request Form'!O125=0),\"\",'Blank - Request Form'!O125),\"\"))","v":""},{"$f":"IF('Blank - Request Form'!$F$6=\"CICMP\",IF(OR('Blank - Request Form'!G125=\"0\",'Blank - Request Form'!G125=\"00000\",'Blank - Request Form'!G125=0),\"\",'Blank - Request Form'!G125),IF('Blank - Request Form'!$F$7=\"CICMP\",IF(OR('Blank - Request Form'!P125=\"0\",'Blank - Request Form'!P125=\"00000\",'Blank - Request Form'!P125=0),\"\",'Blank - Request Form'!P125),\"\"))","v":""},{"$f":"IF('Blank - Request Form'!$F$6=\"CICMP\",IF(OR('Blank - Request Form'!H125=\"0\",'Blank - Request Form'!H125=\"00000\",'Blank - Request Form'!H125=0),\"\",'Blank - Request Form'!H125),IF('Blank - Request Form'!$F$7=\"CICMP\",IF(OR('Blank - Request Form'!Q125=\"0\",'Blank - Request Form'!Q125=\"00000\",'Blank - Request Form'!Q125=0),\"\",'Blank - Request Form'!Q125),\"\"))","v":""},{"$f":"IF('Blank - Request Form'!$F$6=\"CICMP\",IF(OR('Blank - Request Form'!I125=\"0\",'Blank - Request Form'!I125=\"00000\",'Blank - Request Form'!I125=0),\"\",'Blank - Request Form'!I125),IF('Blank - Request Form'!$F$7=\"CICMP\",IF(OR('Blank - Request Form'!R125=\"0\",'Blank - Request Form'!R125=\"00000\",'Blank - Request Form'!R125=0),\"\",'Blank - Request Form'!R125),\"\"))","v":""},null,{"$f":"IF('Blank - Request Form'!$F$6=\"CICMP\",IF('Blank - Request Form'!K125=0,\"\",'Blank - Request Form'!K125),IF('Blank - Request Form'!$F$7=\"CICMP\",IF('Blank - Request Form'!T125=0,\"\",'Blank - Request Form'!T125),\"\"))","v":""},null,null,null,{"$f":"IF(M91<>\"\",'Blank - Request Form'!$M$2,\"\")","v":""},{"$f":"IF('Blank - Request Form'!$F$6=\"CICMP\",IF('Blank - Request Form'!J125=0,\"\",'Blank - Request Form'!J125),IF('Blank - Request Form'!$F$7=\"CICMP\",IF('Blank - Request Form'!S125=0,\"\",'Blank - Request Form'!S125),\"\"))","v":""},"",91]
[{"$f":"IF('Blank - Request Form'!$F$6=\"CICMP\",IF('Blank - Request Form'!D126=0,\"\",'Blank - Request Form'!D126),IF('Blank - Request Form'!$F$7=\"CICMP\",IF('Blank - Request Form'!M126=0,\"\",'Blank - Request Form'!M126),\"\"))","v":""},{"$f":"IF('Blank - Request Form'!$F$6=\"CICMP\",IF('Blank - Request Form'!E126=0,\"\",'Blank - Request Form'!E126),IF('Blank - Request Form'!$F$7=\"CICMP\",IF('Blank - Request Form'!N126=0,\"\",'Blank - Request Form'!N126),\"\"))","v":""},{"$f":"IF('Blank - Request Form'!$F$6=\"CICMP\",IF(OR('Blank - Request Form'!F126=\"000\",'Blank - Request Form'!F126=0),\"\",'Blank - Request Form'!F126),IF('Blank - Request Form'!$F$7=\"CICMP\",IF(OR('Blank - Request Form'!O126=\"000\",'Blank - Request Form'!O126=0),\"\",'Blank - Request Form'!O126),\"\"))","v":""},{"$f":"IF('Blank - Request Form'!$F$6=\"CICMP\",IF(OR('Blank - Request Form'!G126=\"0\",'Blank - Request Form'!G126=\"00000\",'Blank - Request Form'!G126=0),\"\",'Blank - Request Form'!G126),IF('Blank - Request Form'!$F$7=\"CICMP\",IF(OR('Blank - Request Form'!P126=\"0\",'Blank - Request Form'!P126=\"00000\",'Blank - Request Form'!P126=0),\"\",'Blank - Request Form'!P126),\"\"))","v":""},{"$f":"IF('Blank - Request Form'!$F$6=\"CICMP\",IF(OR('Blank - Request Form'!H126=\"0\",'Blank - Request Form'!H126=\"00000\",'Blank - Request Form'!H126=0),\"\",'Blank - Request Form'!H126),IF('Blank - Request Form'!$F$7=\"CICMP\",IF(OR('Blank - Request Form'!Q126=\"0\",'Blank - Request Form'!Q126=\"00000\",'Blank - Request Form'!Q126=0),\"\",'Blank - Request Form'!Q126),\"\"))","v":""},{"$f":"IF('Blank - Request Form'!$F$6=\"CICMP\",IF(OR('Blank - Request Form'!I126=\"0\",'Blank - Request Form'!I126=\"00000\",'Blank - Request Form'!I126=0),\"\",'Blank - Request Form'!I126),IF('Blank - Request Form'!$F$7=\"CICMP\",IF(OR('Blank - Request Form'!R126=\"0\",'Blank - Request Form'!R126=\"00000\",'Blank - Request Form'!R126=0),\"\",'Blank - Request Form'!R126),\"\"))","v":""},null,{"$f":"IF('Blank - Request Form'!$F$6=\"CICMP\",IF('Blank - Request Form'!K126=0,\"\",'Blank - Request Form'!K126),IF('Blank - Request Form'!$F$7=\"CICMP\",IF('Blank - Request Form'!T126=0,\"\",'Blank - Request Form'!T126),\"\"))","v":""},null,null,null,{"$f":"IF(M92<>\"\",'Blank - Request Form'!$M$2,\"\")","v":""},{"$f":"IF('Blank - Request Form'!$F$6=\"CICMP\",IF('Blank - Request Form'!J126=0,\"\",'Blank - Request Form'!J126),IF('Blank - Request Form'!$F$7=\"CICMP\",IF('Blank - Request Form'!S126=0,\"\",'Blank - Request Form'!S126),\"\"))","v":""},"",92]
[{"$f":"IF('Blank - Request Form'!$F$6=\"CICMP\",IF('Blank - Request Form'!D127=0,\"\",'Blank - Request Form'!D127),IF('Blank - Request Form'!$F$7=\"CICMP\",IF('Blank - Request Form'!M127=0,\"\",'Blank - Request Form'!M127),\"\"))","v":""},{"$f":"IF('Blank - Request Form'!$F$6=\"CICMP\",IF('Blank - Request Form'!E127=0,\"\",'Blank - Request Form'!E127),IF('Blank - Request Form'!$F$7=\"CICMP\",IF('Blank - Request Form'!N127=0,\"\",'Blank - Request Form'!N127),\"\"))","v":""},{"$f":"IF('Blank - Request Form'!$F$6=\"CICMP\",IF(OR('Blank - Request Form'!F127=\"000\",'Blank - Request Form'!F127=0),\"\",'Blank - Request Form'!F127),IF('Blank - Request Form'!$F$7=\"CICMP\",IF(OR('Blank - Request Form'!O127=\"000\",'Blank - Request Form'!O127=0),\"\",'Blank - Request Form'!O127),\"\"))","v":""},{"$f":"IF('Blank - Request Form'!$F$6=\"CICMP\",IF(OR('Blank - Request Form'!G127=\"0\",'Blank - Request Form'!G127=\"00000\",'Blank - Request Form'!G127=0),\"\",'Blank - Request Form'!G127),IF('Blank - Request Form'!$F$7=\"CICMP\",IF(OR('Blank - Request Form'!P127=\"0\",'Blank - Request Form'!P127=\"00000\",'Blank - Request Form'!P127=0),\"\",'Blank - Request Form'!P127),\"\"))","v":""},{"$f":"IF('Blank - Request Form'!$F$6=\"CICMP\",IF(OR('Blank - Request Form'!H127=\"0\",'Blank - Request Form'!H127=\"00000\",'Blank - Request Form'!H127=0),\"\",'Blank - Request Form'!H127),IF('Blank - Request Form'!$F$7=\"CICMP\",IF(OR('Blank - Request Form'!Q127=\"0\",'Blank - Request Form'!Q127=\"00000\",'Blank - Request Form'!Q127=0),\"\",'Blank - Request Form'!Q127),\"\"))","v":""},{"$f":"IF('Blank - Request Form'!$F$6=\"CICMP\",IF(OR('Blank - Request Form'!I127=\"0\",'Blank - Request Form'!I127=\"00000\",'Blank - Request Form'!I127=0),\"\",'Blank - Request Form'!I127),IF('Blank - Request Form'!$F$7=\"CICMP\",IF(OR('Blank - Request Form'!R127=\"0\",'Blank - Request Form'!R127=\"00000\",'Blank - Request Form'!R127=0),\"\",'Blank - Request Form'!R127),\"\"))","v":""},null,{"$f":"IF('Blank - Request Form'!$F$6=\"CICMP\",IF('Blank - Request Form'!K127=0,\"\",'Blank - Request Form'!K127),IF('Blank - Request Form'!$F$7=\"CICMP\",IF('Blank - Request Form'!T127=0,\"\",'Blank - Request Form'!T127),\"\"))","v":""},null,null,null,{"$f":"IF(M93<>\"\",'Blank - Request Form'!$M$2,\"\")","v":""},{"$f":"IF('Blank - Request Form'!$F$6=\"CICMP\",IF('Blank - Request Form'!J127=0,\"\",'Blank - Request Form'!J127),IF('Blank - Request Form'!$F$7=\"CICMP\",IF('Blank - Request Form'!S127=0,\"\",'Blank - Request Form'!S127),\"\"))","v":""},"",93]
[{"$f":"IF('Blank - Request Form'!$F$6=\"CICMP\",IF('Blank - Request Form'!D128=0,\"\",'Blank - Request Form'!D128),IF('Blank - Request Form'!$F$7=\"CICMP\",IF('Blank - Request Form'!M128=0,\"\",'Blank - Request Form'!M128),\"\"))","v":""},{"$f":"IF('Blank - Request Form'!$F$6=\"CICMP\",IF('Blank - Request Form'!E128=0,\"\",'Blank - Request Form'!E128),IF('Blank - Request Form'!$F$7=\"CICMP\",IF('Blank - Request Form'!N128=0,\"\",'Blank - Request Form'!N128),\"\"))","v":""},{"$f":"IF('Blank - Request Form'!$F$6=\"CICMP\",IF(OR('Blank - Request Form'!F128=\"000\",'Blank - Request Form'!F128=0),\"\",'Blank - Request Form'!F128),IF('Blank - Request Form'!$F$7=\"CICMP\",IF(OR('Blank - Request Form'!O128=\"000\",'Blank - Request Form'!O128=0),\"\",'Blank - Request Form'!O128),\"\"))","v":""},{"$f":"IF('Blank - Request Form'!$F$6=\"CICMP\",IF(OR('Blank - Request Form'!G128=\"0\",'Blank - Request Form'!G128=\"00000\",'Blank - Request Form'!G128=0),\"\",'Blank - Request Form'!G128),IF('Blank - Request Form'!$F$7=\"CICMP\",IF(OR('Blank - Request Form'!P128=\"0\",'Blank - Request Form'!P128=\"00000\",'Blank - Request Form'!P128=0),\"\",'Blank - Request Form'!P128),\"\"))","v":""},{"$f":"IF('Blank - Request Form'!$F$6=\"CICMP\",IF(OR('Blank - Request Form'!H128=\"0\",'Blank - Request Form'!H128=\"00000\",'Blank - Request Form'!H128=0),\"\",'Blank - Request Form'!H128),IF('Blank - Request Form'!$F$7=\"CICMP\",IF(OR('Blank - Request Form'!Q128=\"0\",'Blank - Request Form'!Q128=\"00000\",'Blank - Request Form'!Q128=0),\"\",'Blank - Request Form'!Q128),\"\"))","v":""},{"$f":"IF('Blank - Request Form'!$F$6=\"CICMP\",IF(OR('Blank - Request Form'!I128=\"0\",'Blank - Request Form'!I128=\"00000\",'Blank - Request Form'!I128=0),\"\",'Blank - Request Form'!I128),IF('Blank - Request Form'!$F$7=\"CICMP\",IF(OR('Blank - Request Form'!R128=\"0\",'Blank - Request Form'!R128=\"00000\",'Blank - Request Form'!R128=0),\"\",'Blank - Request Form'!R128),\"\"))","v":""},null,{"$f":"IF('Blank - Request Form'!$F$6=\"CICMP\",IF('Blank - Request Form'!K128=0,\"\",'Blank - Request Form'!K128),IF('Blank - Request Form'!$F$7=\"CICMP\",IF('Blank - Request Form'!T128=0,\"\",'Blank - Request Form'!T128),\"\"))","v":""},null,null,null,{"$f":"IF(M94<>\"\",'Blank - Request Form'!$M$2,\"\")","v":""},{"$f":"IF('Blank - Request Form'!$F$6=\"CICMP\",IF('Blank - Request Form'!J128=0,\"\",'Blank - Request Form'!J128),IF('Blank - Request Form'!$F$7=\"CICMP\",IF('Blank - Request Form'!S128=0,\"\",'Blank - Request Form'!S128),\"\"))","v":""},"",94]
[{"$f":"IF('Blank - Request Form'!$F$6=\"CICMP\",IF('Blank - Request Form'!D129=0,\"\",'Blank - Request Form'!D129),IF('Blank - Request Form'!$F$7=\"CICMP\",IF('Blank - Request Form'!M129=0,\"\",'Blank - Request Form'!M129),\"\"))","v":""},{"$f":"IF('Blank - Request Form'!$F$6=\"CICMP\",IF('Blank - Request Form'!E129=0,\"\",'Blank - Request Form'!E129),IF('Blank - Request Form'!$F$7=\"CICMP\",IF('Blank - Request Form'!N129=0,\"\",'Blank - Request Form'!N129),\"\"))","v":""},{"$f":"IF('Blank - Request Form'!$F$6=\"CICMP\",IF(OR('Blank - Request Form'!F129=\"000\",'Blank - Request Form'!F129=0),\"\",'Blank - Request Form'!F129),IF('Blank - Request Form'!$F$7=\"CICMP\",IF(OR('Blank - Request Form'!O129=\"000\",'Blank - Request Form'!O129=0),\"\",'Blank - Request Form'!O129),\"\"))","v":""},{"$f":"IF('Blank - Request Form'!$F$6=\"CICMP\",IF(OR('Blank - Request Form'!G129=\"0\",'Blank - Request Form'!G129=\"00000\",'Blank - Request Form'!G129=0),\"\",'Blank - Request Form'!G129),IF('Blank - Request Form'!$F$7=\"CICMP\",IF(OR('Blank - Request Form'!P129=\"0\",'Blank - Request Form'!P129=\"00000\",'Blank - Request Form'!P129=0),\"\",'Blank - Request Form'!P129),\"\"))","v":""},{"$f":"IF('Blank - Request Form'!$F$6=\"CICMP\",IF(OR('Blank - Request Form'!H129=\"0\",'Blank - Request Form'!H129=\"00000\",'Blank - Request Form'!H129=0),\"\",'Blank - Request Form'!H129),IF('Blank - Request Form'!$F$7=\"CICMP\",IF(OR('Blank - Request Form'!Q129=\"0\",'Blank - Request Form'!Q129=\"00000\",'Blank - Request Form'!Q129=0),\"\",'Blank - Request Form'!Q129),\"\"))","v":""},{"$f":"IF('Blank - Request Form'!$F$6=\"CICMP\",IF(OR('Blank - Request Form'!I129=\"0\",'Blank - Request Form'!I129=\"00000\",'Blank - Request Form'!I129=0),\"\",'Blank - Request Form'!I129),IF('Blank - Request Form'!$F$7=\"CICMP\",IF(OR('Blank - Request Form'!R129=\"0\",'Blank - Request Form'!R129=\"00000\",'Blank - Request Form'!R129=0),\"\",'Blank - Request Form'!R129),\"\"))","v":""},null,{"$f":"IF('Blank - Request Form'!$F$6=\"CICMP\",IF('Blank - Request Form'!K129=0,\"\",'Blank - Request Form'!K129),IF('Blank - Request Form'!$F$7=\"CICMP\",IF('Blank - Request Form'!T129=0,\"\",'Blank - Request Form'!T129),\"\"))","v":""},null,null,null,{"$f":"IF(M95<>\"\",'Blank - Request Form'!$M$2,\"\")","v":""},{"$f":"IF('Blank - Request Form'!$F$6=\"CICMP\",IF('Blank - Request Form'!J129=0,\"\",'Blank - Request Form'!J129),IF('Blank - Request Form'!$F$7=\"CICMP\",IF('Blank - Request Form'!S129=0,\"\",'Blank - Request Form'!S129),\"\"))","v":""},"",95]
[{"$f":"IF('Blank - Request Form'!$F$6=\"CICMP\",IF('Blank - Request Form'!D130=0,\"\",'Blank - Request Form'!D130),IF('Blank - Request Form'!$F$7=\"CICMP\",IF('Blank - Request Form'!M130=0,\"\",'Blank - Request Form'!M130),\"\"))","v":""},{"$f":"IF('Blank - Request Form'!$F$6=\"CICMP\",IF('Blank - Request Form'!E130=0,\"\",'Blank - Request Form'!E130),IF('Blank - Request Form'!$F$7=\"CICMP\",IF('Blank - Request Form'!N130=0,\"\",'Blank - Request Form'!N130),\"\"))","v":""},{"$f":"IF('Blank - Request Form'!$F$6=\"CICMP\",IF(OR('Blank - Request Form'!F130=\"000\",'Blank - Request Form'!F130=0),\"\",'Blank - Request Form'!F130),IF('Blank - Request Form'!$F$7=\"CICMP\",IF(OR('Blank - Request Form'!O130=\"000\",'Blank - Request Form'!O130=0),\"\",'Blank - Request Form'!O130),\"\"))","v":""},{"$f":"IF('Blank - Request Form'!$F$6=\"CICMP\",IF(OR('Blank - Request Form'!G130=\"0\",'Blank - Request Form'!G130=\"00000\",'Blank - Request Form'!G130=0),\"\",'Blank - Request Form'!G130),IF('Blank - Request Form'!$F$7=\"CICMP\",IF(OR('Blank - Request Form'!P130=\"0\",'Blank - Request Form'!P130=\"00000\",'Blank - Request Form'!P130=0),\"\",'Blank - Request Form'!P130),\"\"))","v":""},{"$f":"IF('Blank - Request Form'!$F$6=\"CICMP\",IF(OR('Blank - Request Form'!H130=\"0\",'Blank - Request Form'!H130=\"00000\",'Blank - Request Form'!H130=0),\"\",'Blank - Request Form'!H130),IF('Blank - Request Form'!$F$7=\"CICMP\",IF(OR('Blank - Request Form'!Q130=\"0\",'Blank - Request Form'!Q130=\"00000\",'Blank - Request Form'!Q130=0),\"\",'Blank - Request Form'!Q130),\"\"))","v":""},{"$f":"IF('Blank - Request Form'!$F$6=\"CICMP\",IF(OR('Blank - Request Form'!I130=\"0\",'Blank - Request Form'!I130=\"00000\",'Blank - Request Form'!I130=0),\"\",'Blank - Request Form'!I130),IF('Blank - Request Form'!$F$7=\"CICMP\",IF(OR('Blank - Request Form'!R130=\"0\",'Blank - Request Form'!R130=\"00000\",'Blank - Request Form'!R130=0),\"\",'Blank - Request Form'!R130),\"\"))","v":""},null,{"$f":"IF('Blank - Request Form'!$F$6=\"CICMP\",IF('Blank - Request Form'!K130=0,\"\",'Blank - Request Form'!K130),IF('Blank - Request Form'!$F$7=\"CICMP\",IF('Blank - Request Form'!T130=0,\"\",'Blank - Request Form'!T130),\"\"))","v":""},null,null,null,{"$f":"IF(M96<>\"\",'Blank - Request Form'!$M$2,\"\")","v":""},{"$f":"IF('Blank - Request Form'!$F$6=\"CICMP\",IF('Blank - Request Form'!J130=0,\"\",'Blank - Request Form'!J130),IF('Blank - Request Form'!$F$7=\"CICMP\",IF('Blank - Request Form'!S130=0,\"\",'Blank - Request Form'!S130),\"\"))","v":""},"",96]
[{"$f":"IF('Blank - Request Form'!$F$6=\"CICMP\",IF('Blank - Request Form'!D131=0,\"\",'Blank - Request Form'!D131),IF('Blank - Request Form'!$F$7=\"CICMP\",IF('Blank - Request Form'!M131=0,\"\",'Blank - Request Form'!M131),\"\"))","v":""},{"$f":"IF('Blank - Request Form'!$F$6=\"CICMP\",IF('Blank - Request Form'!E131=0,\"\",'Blank - Request Form'!E131),IF('Blank - Request Form'!$F$7=\"CICMP\",IF('Blank - Request Form'!N131=0,\"\",'Blank - Request Form'!N131),\"\"))","v":""},{"$f":"IF('Blank - Request Form'!$F$6=\"CICMP\",IF(OR('Blank - Request Form'!F131=\"000\",'Blank - Request Form'!F131=0),\"\",'Blank - Request Form'!F131),IF('Blank - Request Form'!$F$7=\"CICMP\",IF(OR('Blank - Request Form'!O131=\"000\",'Blank - Request Form'!O131=0),\"\",'Blank - Request Form'!O131),\"\"))","v":""},{"$f":"IF('Blank - Request Form'!$F$6=\"CICMP\",IF(OR('Blank - Request Form'!G131=\"0\",'Blank - Request Form'!G131=\"00000\",'Blank - Request Form'!G131=0),\"\",'Blank - Request Form'!G131),IF('Blank - Request Form'!$F$7=\"CICMP\",IF(OR('Blank - Request Form'!P131=\"0\",'Blank - Request Form'!P131=\"00000\",'Blank - Request Form'!P131=0),\"\",'Blank - Request Form'!P131),\"\"))","v":""},{"$f":"IF('Blank - Request Form'!$F$6=\"CICMP\",IF(OR('Blank - Request Form'!H131=\"0\",'Blank - Request Form'!H131=\"00000\",'Blank - Request Form'!H131=0),\"\",'Blank - Request Form'!H131),IF('Blank - Request Form'!$F$7=\"CICMP\",IF(OR('Blank - Request Form'!Q131=\"0\",'Blank - Request Form'!Q131=\"00000\",'Blank - Request Form'!Q131=0),\"\",'Blank - Request Form'!Q131),\"\"))","v":""},{"$f":"IF('Blank - Request Form'!$F$6=\"CICMP\",IF(OR('Blank - Request Form'!I131=\"0\",'Blank - Request Form'!I131=\"00000\",'Blank - Request Form'!I131=0),\"\",'Blank - Request Form'!I131),IF('Blank - Request Form'!$F$7=\"CICMP\",IF(OR('Blank - Request Form'!R131=\"0\",'Blank - Request Form'!R131=\"00000\",'Blank - Request Form'!R131=0),\"\",'Blank - Request Form'!R131),\"\"))","v":""},null,{"$f":"IF('Blank - Request Form'!$F$6=\"CICMP\",IF('Blank - Request Form'!K131=0,\"\",'Blank - Request Form'!K131),IF('Blank - Request Form'!$F$7=\"CICMP\",IF('Blank - Request Form'!T131=0,\"\",'Blank - Request Form'!T131),\"\"))","v":""},null,null,null,{"$f":"IF(M97<>\"\",'Blank - Request Form'!$M$2,\"\")","v":""},{"$f":"IF('Blank - Request Form'!$F$6=\"CICMP\",IF('Blank - Request Form'!J131=0,\"\",'Blank - Request Form'!J131),IF('Blank - Request Form'!$F$7=\"CICMP\",IF('Blank - Request Form'!S131=0,\"\",'Blank - Request Form'!S131),\"\"))","v":""},"",97]
[{"$f":"IF('Blank - Request Form'!$F$6=\"CICMP\",IF('Blank - Request Form'!D132=0,\"\",'Blank - Request Form'!D132),IF('Blank - Request Form'!$F$7=\"CICMP\",IF('Blank - Request Form'!M132=0,\"\",'Blank - Request Form'!M132),\"\"))","v":""},{"$f":"IF('Blank - Request Form'!$F$6=\"CICMP\",IF('Blank - Request Form'!E132=0,\"\",'Blank - Request Form'!E132),IF('Blank - Request Form'!$F$7=\"CICMP\",IF('Blank - Request Form'!N132=0,\"\",'Blank - Request Form'!N132),\"\"))","v":""},{"$f":"IF('Blank - Request Form'!$F$6=\"CICMP\",IF(OR('Blank - Request Form'!F132=\"000\",'Blank - Request Form'!F132=0),\"\",'Blank - Request Form'!F132),IF('Blank - Request Form'!$F$7=\"CICMP\",IF(OR('Blank - Request Form'!O132=\"000\",'Blank - Request Form'!O132=0),\"\",'Blank - Request Form'!O132),\"\"))","v":""},{"$f":"IF('Blank - Request Form'!$F$6=\"CICMP\",IF(OR('Blank - Request Form'!G132=\"0\",'Blank - Request Form'!G132=\"00000\",'Blank - Request Form'!G132=0),\"\",'Blank - Request Form'!G132),IF('Blank - Request Form'!$F$7=\"CICMP\",IF(OR('Blank - Request Form'!P132=\"0\",'Blank - Request Form'!P132=\"00000\",'Blank - Request Form'!P132=0),\"\",'Blank - Request Form'!P132),\"\"))","v":""},{"$f":"IF('Blank - Request Form'!$F$6=\"CICMP\",IF(OR('Blank - Request Form'!H132=\"0\",'Blank - Request Form'!H132=\"00000\",'Blank - Request Form'!H132=0),\"\",'Blank - Request Form'!H132),IF('Blank - Request Form'!$F$7=\"CICMP\",IF(OR('Blank - Request Form'!Q132=\"0\",'Blank - Request Form'!Q132=\"00000\",'Blank - Request Form'!Q132=0),\"\",'Blank - Request Form'!Q132),\"\"))","v":""},{"$f":"IF('Blank - Request Form'!$F$6=\"CICMP\",IF(OR('Blank - Request Form'!I132=\"0\",'Blank - Request Form'!I132=\"00000\",'Blank - Request Form'!I132=0),\"\",'Blank - Request Form'!I132),IF('Blank - Request Form'!$F$7=\"CICMP\",IF(OR('Blank - Request Form'!R132=\"0\",'Blank - Request Form'!R132=\"00000\",'Blank - Request Form'!R132=0),\"\",'Blank - Request Form'!R132),\"\"))","v":""},null,{"$f":"IF('Blank - Request Form'!$F$6=\"CICMP\",IF('Blank - Request Form'!K132=0,\"\",'Blank - Request Form'!K132),IF('Blank - Request Form'!$F$7=\"CICMP\",IF('Blank - Request Form'!T132=0,\"\",'Blank - Request Form'!T132),\"\"))","v":""},null,null,null,{"$f":"IF(M98<>\"\",'Blank - Request Form'!$M$2,\"\")","v":""},{"$f":"IF('Blank - Request Form'!$F$6=\"CICMP\",IF('Blank - Request Form'!J132=0,\"\",'Blank - Request Form'!J132),IF('Blank - Request Form'!$F$7=\"CICMP\",IF('Blank - Request Form'!S132=0,\"\",'Blank - Request Form'!S132),\"\"))","v":""},"",98]
[{"$f":"IF('Blank - Request Form'!$F$6=\"CICMP\",IF('Blank - Request Form'!D133=0,\"\",'Blank - Request Form'!D133),IF('Blank - Request Form'!$F$7=\"CICMP\",IF('Blank - Request Form'!M133=0,\"\",'Blank - Request Form'!M133),\"\"))","v":""},{"$f":"IF('Blank - Request Form'!$F$6=\"CICMP\",IF('Blank - Request Form'!E133=0,\"\",'Blank - Request Form'!E133),IF('Blank - Request Form'!$F$7=\"CICMP\",IF('Blank - Request Form'!N133=0,\"\",'Blank - Request Form'!N133),\"\"))","v":""},{"$f":"IF('Blank - Request Form'!$F$6=\"CICMP\",IF(OR('Blank - Request Form'!F133=\"000\",'Blank - Request Form'!F133=0),\"\",'Blank - Request Form'!F133),IF('Blank - Request Form'!$F$7=\"CICMP\",IF(OR('Blank - Request Form'!O133=\"000\",'Blank - Request Form'!O133=0),\"\",'Blank - Request Form'!O133),\"\"))","v":""},{"$f":"IF('Blank - Request Form'!$F$6=\"CICMP\",IF(OR('Blank - Request Form'!G133=\"0\",'Blank - Request Form'!G133=\"00000\",'Blank - Request Form'!G133=0),\"\",'Blank - Request Form'!G133),IF('Blank - Request Form'!$F$7=\"CICMP\",IF(OR('Blank - Request Form'!P133=\"0\",'Blank - Request Form'!P133=\"00000\",'Blank - Request Form'!P133=0),\"\",'Blank - Request Form'!P133),\"\"))","v":""},{"$f":"IF('Blank - Request Form'!$F$6=\"CICMP\",IF(OR('Blank - Request Form'!H133=\"0\",'Blank - Request Form'!H133=\"00000\",'Blank - Request Form'!H133=0),\"\",'Blank - Request Form'!H133),IF('Blank - Request Form'!$F$7=\"CICMP\",IF(OR('Blank - Request Form'!Q133=\"0\",'Blank - Request Form'!Q133=\"00000\",'Blank - Request Form'!Q133=0),\"\",'Blank - Request Form'!Q133),\"\"))","v":""},{"$f":"IF('Blank - Request Form'!$F$6=\"CICMP\",IF(OR('Blank - Request Form'!I133=\"0\",'Blank - Request Form'!I133=\"00000\",'Blank - Request Form'!I133=0),\"\",'Blank - Request Form'!I133),IF('Blank - Request Form'!$F$7=\"CICMP\",IF(OR('Blank - Request Form'!R133=\"0\",'Blank - Request Form'!R133=\"00000\",'Blank - Request Form'!R133=0),\"\",'Blank - Request Form'!R133),\"\"))","v":""},null,{"$f":"IF('Blank - Request Form'!$F$6=\"CICMP\",IF('Blank - Request Form'!K133=0,\"\",'Blank - Request Form'!K133),IF('Blank - Request Form'!$F$7=\"CICMP\",IF('Blank - Request Form'!T133=0,\"\",'Blank - Request Form'!T133),\"\"))","v":""},null,null,null,{"$f":"IF(M99<>\"\",'Blank - Request Form'!$M$2,\"\")","v":""},{"$f":"IF('Blank - Request Form'!$F$6=\"CICMP\",IF('Blank - Request Form'!J133=0,\"\",'Blank - Request Form'!J133),IF('Blank - Request Form'!$F$7=\"CICMP\",IF('Blank - Request Form'!S133=0,\"\",'Blank - Request Form'!S133),\"\"))","v":""},"",99]
[{"$f":"IF('Blank - Request Form'!$F$6=\"CICMP\",IF('Blank - Request Form'!D134=0,\"\",'Blank - Request Form'!D134),IF('Blank - Request Form'!$F$7=\"CICMP\",IF('Blank - Request Form'!M134=0,\"\",'Blank - Request Form'!M134),\"\"))","v":""},{"$f":"IF('Blank - Request Form'!$F$6=\"CICMP\",IF('Blank - Request Form'!E134=0,\"\",'Blank - Request Form'!E134),IF('Blank - Request Form'!$F$7=\"CICMP\",IF('Blank - Request Form'!N134=0,\"\",'Blank - Request Form'!N134),\"\"))","v":""},{"$f":"IF('Blank - Request Form'!$F$6=\"CICMP\",IF(OR('Blank - Request Form'!F134=\"000\",'Blank - Request Form'!F134=0),\"\",'Blank - Request Form'!F134),IF('Blank - Request Form'!$F$7=\"CICMP\",IF(OR('Blank - Request Form'!O134=\"000\",'Blank - Request Form'!O134=0),\"\",'Blank - Request Form'!O134),\"\"))","v":""},{"$f":"IF('Blank - Request Form'!$F$6=\"CICMP\",IF(OR('Blank - Request Form'!G134=\"0\",'Blank - Request Form'!G134=\"00000\",'Blank - Request Form'!G134=0),\"\",'Blank - Request Form'!G134),IF('Blank - Request Form'!$F$7=\"CICMP\",IF(OR('Blank - Request Form'!P134=\"0\",'Blank - Request Form'!P134=\"00000\",'Blank - Request Form'!P134=0),\"\",'Blank - Request Form'!P134),\"\"))","v":""},{"$f":"IF('Blank - Request Form'!$F$6=\"CICMP\",IF(OR('Blank - Request Form'!H134=\"0\",'Blank - Request Form'!H134=\"00000\",'Blank - Request Form'!H134=0),\"\",'Blank - Request Form'!H134),IF('Blank - Request Form'!$F$7=\"CICMP\",IF(OR('Blank - Request Form'!Q134=\"0\",'Blank - Request Form'!Q134=\"00000\",'Blank - Request Form'!Q134=0),\"\",'Blank - Request Form'!Q134),\"\"))","v":""},{"$f":"IF('Blank - Request Form'!$F$6=\"CICMP\",IF(OR('Blank - Request Form'!I134=\"0\",'Blank - Request Form'!I134=\"00000\",'Blank - Request Form'!I134=0),\"\",'Blank - Request Form'!I134),IF('Blank - Request Form'!$F$7=\"CICMP\",IF(OR('Blank - Request Form'!R134=\"0\",'Blank - Request Form'!R134=\"00000\",'Blank - Request Form'!R134=0),\"\",'Blank - Request Form'!R134),\"\"))","v":""},null,{"$f":"IF('Blank - Request Form'!$F$6=\"CICMP\",IF('Blank - Request Form'!K134=0,\"\",'Blank - Request Form'!K134),IF('Blank - Request Form'!$F$7=\"CICMP\",IF('Blank - Request Form'!T134=0,\"\",'Blank - Request Form'!T134),\"\"))","v":""},null,null,null,{"$f":"IF(M100<>\"\",'Blank - Request Form'!$M$2,\"\")","v":""},{"$f":"IF('Blank - Request Form'!$F$6=\"CICMP\",IF('Blank - Request Form'!J134=0,\"\",'Blank - Request Form'!J134),IF('Blank - Request Form'!$F$7=\"CICMP\",IF('Blank - Request Form'!S134=0,\"\",'Blank - Request Form'!S134),\"\"))","v":""},"",100]
[{"$f":"IF('Blank - Request Form'!$F$6=\"CICMP\",IF('Blank - Request Form'!D135=0,\"\",'Blank - Request Form'!D135),IF('Blank - Request Form'!$F$7=\"CICMP\",IF('Blank - Request Form'!M135=0,\"\",'Blank - Request Form'!M135),\"\"))","v":""},{"$f":"IF('Blank - Request Form'!$F$6=\"CICMP\",IF('Blank - Request Form'!E135=0,\"\",'Blank - Request Form'!E135),IF('Blank - Request Form'!$F$7=\"CICMP\",IF('Blank - Request Form'!N135=0,\"\",'Blank - Request Form'!N135),\"\"))","v":""},{"$f":"IF('Blank - Request Form'!$F$6=\"CICMP\",IF(OR('Blank - Request Form'!F135=\"000\",'Blank - Request Form'!F135=0),\"\",'Blank - Request Form'!F135),IF('Blank - Request Form'!$F$7=\"CICMP\",IF(OR('Blank - Request Form'!O135=\"000\",'Blank - Request Form'!O135=0),\"\",'Blank - Request Form'!O135),\"\"))","v":""},{"$f":"IF('Blank - Request Form'!$F$6=\"CICMP\",IF(OR('Blank - Request Form'!G135=\"0\",'Blank - Request Form'!G135=\"00000\",'Blank - Request Form'!G135=0),\"\",'Blank - Request Form'!G135),IF('Blank - Request Form'!$F$7=\"CICMP\",IF(OR('Blank - Request Form'!P135=\"0\",'Blank - Request Form'!P135=\"00000\",'Blank - Request Form'!P135=0),\"\",'Blank - Request Form'!P135),\"\"))","v":""},{"$f":"IF('Blank - Request Form'!$F$6=\"CICMP\",IF(OR('Blank - Request Form'!H135=\"0\",'Blank - Request Form'!H135=\"00000\",'Blank - Request Form'!H135=0),\"\",'Blank - Request Form'!H135),IF('Blank - Request Form'!$F$7=\"CICMP\",IF(OR('Blank - Request Form'!Q135=\"0\",'Blank - Request Form'!Q135=\"00000\",'Blank - Request Form'!Q135=0),\"\",'Blank - Request Form'!Q135),\"\"))","v":""},{"$f":"IF('Blank - Request Form'!$F$6=\"CICMP\",IF(OR('Blank - Request Form'!I135=\"0\",'Blank - Request Form'!I135=\"00000\",'Blank - Request Form'!I135=0),\"\",'Blank - Request Form'!I135),IF('Blank - Request Form'!$F$7=\"CICMP\",IF(OR('Blank - Request Form'!R135=\"0\",'Blank - Request Form'!R135=\"00000\",'Blank - Request Form'!R135=0),\"\",'Blank - Request Form'!R135),\"\"))","v":""},null,{"$f":"IF('Blank - Request Form'!$F$6=\"CICMP\",IF('Blank - Request Form'!K135=0,\"\",'Blank - Request Form'!K135),IF('Blank - Request Form'!$F$7=\"CICMP\",IF('Blank - Request Form'!T135=0,\"\",'Blank - Request Form'!T135),\"\"))","v":""},null,null,null,{"$f":"IF(M101<>\"\",'Blank - Request Form'!$M$2,\"\")","v":""},{"$f":"IF('Blank - Request Form'!$F$6=\"CICMP\",IF('Blank - Request Form'!J135=0,\"\",'Blank - Request Form'!J135),IF('Blank - Request Form'!$F$7=\"CICMP\",IF('Blank - Request Form'!S135=0,\"\",'Blank - Request Form'!S135),\"\"))","v":""},"",101]
[{"$f":"IF('Blank - Request Form'!$F$6=\"CICMP\",IF('Blank - Request Form'!D136=0,\"\",'Blank - Request Form'!D136),IF('Blank - Request Form'!$F$7=\"CICMP\",IF('Blank - Request Form'!M136=0,\"\",'Blank - Request Form'!M136),\"\"))","v":""},{"$f":"IF('Blank - Request Form'!$F$6=\"CICMP\",IF('Blank - Request Form'!E136=0,\"\",'Blank - Request Form'!E136),IF('Blank - Request Form'!$F$7=\"CICMP\",IF('Blank - Request Form'!N136=0,\"\",'Blank - Request Form'!N136),\"\"))","v":""},{"$f":"IF('Blank - Request Form'!$F$6=\"CICMP\",IF(OR('Blank - Request Form'!F136=\"000\",'Blank - Request Form'!F136=0),\"\",'Blank - Request Form'!F136),IF('Blank - Request Form'!$F$7=\"CICMP\",IF(OR('Blank - Request Form'!O136=\"000\",'Blank - Request Form'!O136=0),\"\",'Blank - Request Form'!O136),\"\"))","v":""},{"$f":"IF('Blank - Request Form'!$F$6=\"CICMP\",IF(OR('Blank - Request Form'!G136=\"0\",'Blank - Request Form'!G136=\"00000\",'Blank - Request Form'!G136=0),\"\",'Blank - Request Form'!G136),IF('Blank - Request Form'!$F$7=\"CICMP\",IF(OR('Blank - Request Form'!P136=\"0\",'Blank - Request Form'!P136=\"00000\",'Blank - Request Form'!P136=0),\"\",'Blank - Request Form'!P136),\"\"))","v":""},{"$f":"IF('Blank - Request Form'!$F$6=\"CICMP\",IF(OR('Blank - Request Form'!H136=\"0\",'Blank - Request Form'!H136=\"00000\",'Blank - Request Form'!H136=0),\"\",'Blank - Request Form'!H136),IF('Blank - Request Form'!$F$7=\"CICMP\",IF(OR('Blank - Request Form'!Q136=\"0\",'Blank - Request Form'!Q136=\"00000\",'Blank - Request Form'!Q136=0),\"\",'Blank - Request Form'!Q136),\"\"))","v":""},{"$f":"IF('Blank - Request Form'!$F$6=\"CICMP\",IF(OR('Blank - Request Form'!I136=\"0\",'Blank - Request Form'!I136=\"00000\",'Blank - Request Form'!I136=0),\"\",'Blank - Request Form'!I136),IF('Blank - Request Form'!$F$7=\"CICMP\",IF(OR('Blank - Request Form'!R136=\"0\",'Blank - Request Form'!R136=\"00000\",'Blank - Request Form'!R136=0),\"\",'Blank - Request Form'!R136),\"\"))","v":""},null,{"$f":"IF('Blank - Request Form'!$F$6=\"CICMP\",IF('Blank - Request Form'!K136=0,\"\",'Blank - Request Form'!K136),IF('Blank - Request Form'!$F$7=\"CICMP\",IF('Blank - Request Form'!T136=0,\"\",'Blank - Request Form'!T136),\"\"))","v":""},null,null,null,{"$f":"IF(M102<>\"\",'Blank - Request Form'!$M$2,\"\")","v":""},{"$f":"IF('Blank - Request Form'!$F$6=\"CICMP\",IF('Blank - Request Form'!J136=0,\"\",'Blank - Request Form'!J136),IF('Blank - Request Form'!$F$7=\"CICMP\",IF('Blank - Request Form'!S136=0,\"\",'Blank - Request Form'!S136),\"\"))","v":""},"",102]
[{"$f":"IF('Blank - Request Form'!$F$6=\"CICMP\",IF('Blank - Request Form'!D137=0,\"\",'Blank - Request Form'!D137),IF('Blank - Request Form'!$F$7=\"CICMP\",IF('Blank - Request Form'!M137=0,\"\",'Blank - Request Form'!M137),\"\"))","v":""},{"$f":"IF('Blank - Request Form'!$F$6=\"CICMP\",IF('Blank - Request Form'!E137=0,\"\",'Blank - Request Form'!E137),IF('Blank - Request Form'!$F$7=\"CICMP\",IF('Blank - Request Form'!N137=0,\"\",'Blank - Request Form'!N137),\"\"))","v":""},{"$f":"IF('Blank - Request Form'!$F$6=\"CICMP\",IF(OR('Blank - Request Form'!F137=\"000\",'Blank - Request Form'!F137=0),\"\",'Blank - Request Form'!F137),IF('Blank - Request Form'!$F$7=\"CICMP\",IF(OR('Blank - Request Form'!O137=\"000\",'Blank - Request Form'!O137=0),\"\",'Blank - Request Form'!O137),\"\"))","v":""},{"$f":"IF('Blank - Request Form'!$F$6=\"CICMP\",IF(OR('Blank - Request Form'!G137=\"0\",'Blank - Request Form'!G137=\"00000\",'Blank - Request Form'!G137=0),\"\",'Blank - Request Form'!G137),IF('Blank - Request Form'!$F$7=\"CICMP\",IF(OR('Blank - Request Form'!P137=\"0\",'Blank - Request Form'!P137=\"00000\",'Blank - Request Form'!P137=0),\"\",'Blank - Request Form'!P137),\"\"))","v":""},{"$f":"IF('Blank - Request Form'!$F$6=\"CICMP\",IF(OR('Blank - Request Form'!H137=\"0\",'Blank - Request Form'!H137=\"00000\",'Blank - Request Form'!H137=0),\"\",'Blank - Request Form'!H137),IF('Blank - Request Form'!$F$7=\"CICMP\",IF(OR('Blank - Request Form'!Q137=\"0\",'Blank - Request Form'!Q137=\"00000\",'Blank - Request Form'!Q137=0),\"\",'Blank - Request Form'!Q137),\"\"))","v":""},{"$f":"IF('Blank - Request Form'!$F$6=\"CICMP\",IF(OR('Blank - Request Form'!I137=\"0\",'Blank - Request Form'!I137=\"00000\",'Blank - Request Form'!I137=0),\"\",'Blank - Request Form'!I137),IF('Blank - Request Form'!$F$7=\"CICMP\",IF(OR('Blank - Request Form'!R137=\"0\",'Blank - Request Form'!R137=\"00000\",'Blank - Request Form'!R137=0),\"\",'Blank - Request Form'!R137),\"\"))","v":""},null,{"$f":"IF('Blank - Request Form'!$F$6=\"CICMP\",IF('Blank - Request Form'!K137=0,\"\",'Blank - Request Form'!K137),IF('Blank - Request Form'!$F$7=\"CICMP\",IF('Blank - Request Form'!T137=0,\"\",'Blank - Request Form'!T137),\"\"))","v":""},null,null,null,{"$f":"IF(M103<>\"\",'Blank - Request Form'!$M$2,\"\")","v":""},{"$f":"IF('Blank - Request Form'!$F$6=\"CICMP\",IF('Blank - Request Form'!J137=0,\"\",'Blank - Request Form'!J137),IF('Blank - Request Form'!$F$7=\"CICMP\",IF('Blank - Request Form'!S137=0,\"\",'Blank - Request Form'!S137),\"\"))","v":""},"",103]
[{"$f":"IF('Blank - Request Form'!$F$6=\"CICMP\",IF('Blank - Request Form'!D138=0,\"\",'Blank - Request Form'!D138),IF('Blank - Request Form'!$F$7=\"CICMP\",IF('Blank - Request Form'!M138=0,\"\",'Blank - Request Form'!M138),\"\"))","v":""},{"$f":"IF('Blank - Request Form'!$F$6=\"CICMP\",IF('Blank - Request Form'!E138=0,\"\",'Blank - Request Form'!E138),IF('Blank - Request Form'!$F$7=\"CICMP\",IF('Blank - Request Form'!N138=0,\"\",'Blank - Request Form'!N138),\"\"))","v":""},{"$f":"IF('Blank - Request Form'!$F$6=\"CICMP\",IF(OR('Blank - Request Form'!F138=\"000\",'Blank - Request Form'!F138=0),\"\",'Blank - Request Form'!F138),IF('Blank - Request Form'!$F$7=\"CICMP\",IF(OR('Blank - Request Form'!O138=\"000\",'Blank - Request Form'!O138=0),\"\",'Blank - Request Form'!O138),\"\"))","v":""},{"$f":"IF('Blank - Request Form'!$F$6=\"CICMP\",IF(OR('Blank - Request Form'!G138=\"0\",'Blank - Request Form'!G138=\"00000\",'Blank - Request Form'!G138=0),\"\",'Blank - Request Form'!G138),IF('Blank - Request Form'!$F$7=\"CICMP\",IF(OR('Blank - Request Form'!P138=\"0\",'Blank - Request Form'!P138=\"00000\",'Blank - Request Form'!P138=0),\"\",'Blank - Request Form'!P138),\"\"))","v":""},{"$f":"IF('Blank - Request Form'!$F$6=\"CICMP\",IF(OR('Blank - Request Form'!H138=\"0\",'Blank - Request Form'!H138=\"00000\",'Blank - Request Form'!H138=0),\"\",'Blank - Request Form'!H138),IF('Blank - Request Form'!$F$7=\"CICMP\",IF(OR('Blank - Request Form'!Q138=\"0\",'Blank - Request Form'!Q138=\"00000\",'Blank - Request Form'!Q138=0),\"\",'Blank - Request Form'!Q138),\"\"))","v":""},{"$f":"IF('Blank - Request Form'!$F$6=\"CICMP\",IF(OR('Blank - Request Form'!I138=\"0\",'Blank - Request Form'!I138=\"00000\",'Blank - Request Form'!I138=0),\"\",'Blank - Request Form'!I138),IF('Blank - Request Form'!$F$7=\"CICMP\",IF(OR('Blank - Request Form'!R138=\"0\",'Blank - Request Form'!R138=\"00000\",'Blank - Request Form'!R138=0),\"\",'Blank - Request Form'!R138),\"\"))","v":""},null,{"$f":"IF('Blank - Request Form'!$F$6=\"CICMP\",IF('Blank - Request Form'!K138=0,\"\",'Blank - Request Form'!K138),IF('Blank - Request Form'!$F$7=\"CICMP\",IF('Blank - Request Form'!T138=0,\"\",'Blank - Request Form'!T138),\"\"))","v":""},null,null,null,{"$f":"IF(M104<>\"\",'Blank - Request Form'!$M$2,\"\")","v":""},{"$f":"IF('Blank - Request Form'!$F$6=\"CICMP\",IF('Blank - Request Form'!J138=0,\"\",'Blank - Request Form'!J138),IF('Blank - Request Form'!$F$7=\"CICMP\",IF('Blank - Request Form'!S138=0,\"\",'Blank - Request Form'!S138),\"\"))","v":""},"",104]
[{"$f":"IF('Blank - Request Form'!$F$6=\"CICMP\",IF('Blank - Request Form'!D139=0,\"\",'Blank - Request Form'!D139),IF('Blank - Request Form'!$F$7=\"CICMP\",IF('Blank - Request Form'!M139=0,\"\",'Blank - Request Form'!M139),\"\"))","v":""},{"$f":"IF('Blank - Request Form'!$F$6=\"CICMP\",IF('Blank - Request Form'!E139=0,\"\",'Blank - Request Form'!E139),IF('Blank - Request Form'!$F$7=\"CICMP\",IF('Blank - Request Form'!N139=0,\"\",'Blank - Request Form'!N139),\"\"))","v":""},{"$f":"IF('Blank - Request Form'!$F$6=\"CICMP\",IF(OR('Blank - Request Form'!F139=\"000\",'Blank - Request Form'!F139=0),\"\",'Blank - Request Form'!F139),IF('Blank - Request Form'!$F$7=\"CICMP\",IF(OR('Blank - Request Form'!O139=\"000\",'Blank - Request Form'!O139=0),\"\",'Blank - Request Form'!O139),\"\"))","v":""},{"$f":"IF('Blank - Request Form'!$F$6=\"CICMP\",IF(OR('Blank - Request Form'!G139=\"0\",'Blank - Request Form'!G139=\"00000\",'Blank - Request Form'!G139=0),\"\",'Blank - Request Form'!G139),IF('Blank - Request Form'!$F$7=\"CICMP\",IF(OR('Blank - Request Form'!P139=\"0\",'Blank - Request Form'!P139=\"00000\",'Blank - Request Form'!P139=0),\"\",'Blank - Request Form'!P139),\"\"))","v":""},{"$f":"IF('Blank - Request Form'!$F$6=\"CICMP\",IF(OR('Blank - Request Form'!H139=\"0\",'Blank - Request Form'!H139=\"00000\",'Blank - Request Form'!H139=0),\"\",'Blank - Request Form'!H139),IF('Blank - Request Form'!$F$7=\"CICMP\",IF(OR('Blank - Request Form'!Q139=\"0\",'Blank - Request Form'!Q139=\"00000\",'Blank - Request Form'!Q139=0),\"\",'Blank - Request Form'!Q139),\"\"))","v":""},{"$f":"IF('Blank - Request Form'!$F$6=\"CICMP\",IF(OR('Blank - Request Form'!I139=\"0\",'Blank - Request Form'!I139=\"00000\",'Blank - Request Form'!I139=0),\"\",'Blank - Request Form'!I139),IF('Blank - Request Form'!$F$7=\"CICMP\",IF(OR('Blank - Request Form'!R139=\"0\",'Blank - Request Form'!R139=\"00000\",'Blank - Request Form'!R139=0),\"\",'Blank - Request Form'!R139),\"\"))","v":""},null,{"$f":"IF('Blank - Request Form'!$F$6=\"CICMP\",IF('Blank - Request Form'!K139=0,\"\",'Blank - Request Form'!K139),IF('Blank - Request Form'!$F$7=\"CICMP\",IF('Blank - Request Form'!T139=0,\"\",'Blank - Request Form'!T139),\"\"))","v":""},null,null,null,{"$f":"IF(M105<>\"\",'Blank - Request Form'!$M$2,\"\")","v":""},{"$f":"IF('Blank - Request Form'!$F$6=\"CICMP\",IF('Blank - Request Form'!J139=0,\"\",'Blank - Request Form'!J139),IF('Blank - Request Form'!$F$7=\"CICMP\",IF('Blank - Request Form'!S139=0,\"\",'Blank - Request Form'!S139),\"\"))","v":""},"",105]
[{"$f":"IF('Blank - Request Form'!$F$6=\"CICMP\",IF('Blank - Request Form'!D140=0,\"\",'Blank - Request Form'!D140),IF('Blank - Request Form'!$F$7=\"CICMP\",IF('Blank - Request Form'!M140=0,\"\",'Blank - Request Form'!M140),\"\"))","v":""},{"$f":"IF('Blank - Request Form'!$F$6=\"CICMP\",IF('Blank - Request Form'!E140=0,\"\",'Blank - Request Form'!E140),IF('Blank - Request Form'!$F$7=\"CICMP\",IF('Blank - Request Form'!N140=0,\"\",'Blank - Request Form'!N140),\"\"))","v":""},{"$f":"IF('Blank - Request Form'!$F$6=\"CICMP\",IF(OR('Blank - Request Form'!F140=\"000\",'Blank - Request Form'!F140=0),\"\",'Blank - Request Form'!F140),IF('Blank - Request Form'!$F$7=\"CICMP\",IF(OR('Blank - Request Form'!O140=\"000\",'Blank - Request Form'!O140=0),\"\",'Blank - Request Form'!O140),\"\"))","v":""},{"$f":"IF('Blank - Request Form'!$F$6=\"CICMP\",IF(OR('Blank - Request Form'!G140=\"0\",'Blank - Request Form'!G140=\"00000\",'Blank - Request Form'!G140=0),\"\",'Blank - Request Form'!G140),IF('Blank - Request Form'!$F$7=\"CICMP\",IF(OR('Blank - Request Form'!P140=\"0\",'Blank - Request Form'!P140=\"00000\",'Blank - Request Form'!P140=0),\"\",'Blank - Request Form'!P140),\"\"))","v":""},{"$f":"IF('Blank - Request Form'!$F$6=\"CICMP\",IF(OR('Blank - Request Form'!H140=\"0\",'Blank - Request Form'!H140=\"00000\",'Blank - Request Form'!H140=0),\"\",'Blank - Request Form'!H140),IF('Blank - Request Form'!$F$7=\"CICMP\",IF(OR('Blank - Request Form'!Q140=\"0\",'Blank - Request Form'!Q140=\"00000\",'Blank - Request Form'!Q140=0),\"\",'Blank - Request Form'!Q140),\"\"))","v":""},{"$f":"IF('Blank - Request Form'!$F$6=\"CICMP\",IF(OR('Blank - Request Form'!I140=\"0\",'Blank - Request Form'!I140=\"00000\",'Blank - Request Form'!I140=0),\"\",'Blank - Request Form'!I140),IF('Blank - Request Form'!$F$7=\"CICMP\",IF(OR('Blank - Request Form'!R140=\"0\",'Blank - Request Form'!R140=\"00000\",'Blank - Request Form'!R140=0),\"\",'Blank - Request Form'!R140),\"\"))","v":""},null,{"$f":"IF('Blank - Request Form'!$F$6=\"CICMP\",IF('Blank - Request Form'!K140=0,\"\",'Blank - Request Form'!K140),IF('Blank - Request Form'!$F$7=\"CICMP\",IF('Blank - Request Form'!T140=0,\"\",'Blank - Request Form'!T140),\"\"))","v":""},null,null,null,{"$f":"IF(M106<>\"\",'Blank - Request Form'!$M$2,\"\")","v":""},{"$f":"IF('Blank - Request Form'!$F$6=\"CICMP\",IF('Blank - Request Form'!J140=0,\"\",'Blank - Request Form'!J140),IF('Blank - Request Form'!$F$7=\"CICMP\",IF('Blank - Request Form'!S140=0,\"\",'Blank - Request Form'!S140),\"\"))","v":""},"",106]
[{"$f":"IF('Blank - Request Form'!$F$6=\"CICMP\",IF('Blank - Request Form'!D141=0,\"\",'Blank - Request Form'!D141),IF('Blank - Request Form'!$F$7=\"CICMP\",IF('Blank - Request Form'!M141=0,\"\",'Blank - Request Form'!M141),\"\"))","v":""},{"$f":"IF('Blank - Request Form'!$F$6=\"CICMP\",IF('Blank - Request Form'!E141=0,\"\",'Blank - Request Form'!E141),IF('Blank - Request Form'!$F$7=\"CICMP\",IF('Blank - Request Form'!N141=0,\"\",'Blank - Request Form'!N141),\"\"))","v":""},{"$f":"IF('Blank - Request Form'!$F$6=\"CICMP\",IF(OR('Blank - Request Form'!F141=\"000\",'Blank - Request Form'!F141=0),\"\",'Blank - Request Form'!F141),IF('Blank - Request Form'!$F$7=\"CICMP\",IF(OR('Blank - Request Form'!O141=\"000\",'Blank - Request Form'!O141=0),\"\",'Blank - Request Form'!O141),\"\"))","v":""},{"$f":"IF('Blank - Request Form'!$F$6=\"CICMP\",IF(OR('Blank - Request Form'!G141=\"0\",'Blank - Request Form'!G141=\"00000\",'Blank - Request Form'!G141=0),\"\",'Blank - Request Form'!G141),IF('Blank - Request Form'!$F$7=\"CICMP\",IF(OR('Blank - Request Form'!P141=\"0\",'Blank - Request Form'!P141=\"00000\",'Blank - Request Form'!P141=0),\"\",'Blank - Request Form'!P141),\"\"))","v":""},{"$f":"IF('Blank - Request Form'!$F$6=\"CICMP\",IF(OR('Blank - Request Form'!H141=\"0\",'Blank - Request Form'!H141=\"00000\",'Blank - Request Form'!H141=0),\"\",'Blank - Request Form'!H141),IF('Blank - Request Form'!$F$7=\"CICMP\",IF(OR('Blank - Request Form'!Q141=\"0\",'Blank - Request Form'!Q141=\"00000\",'Blank - Request Form'!Q141=0),\"\",'Blank - Request Form'!Q141),\"\"))","v":""},{"$f":"IF('Blank - Request Form'!$F$6=\"CICMP\",IF(OR('Blank - Request Form'!I141=\"0\",'Blank - Request Form'!I141=\"00000\",'Blank - Request Form'!I141=0),\"\",'Blank - Request Form'!I141),IF('Blank - Request Form'!$F$7=\"CICMP\",IF(OR('Blank - Request Form'!R141=\"0\",'Blank - Request Form'!R141=\"00000\",'Blank - Request Form'!R141=0),\"\",'Blank - Request Form'!R141),\"\"))","v":""},null,{"$f":"IF('Blank - Request Form'!$F$6=\"CICMP\",IF('Blank - Request Form'!K141=0,\"\",'Blank - Request Form'!K141),IF('Blank - Request Form'!$F$7=\"CICMP\",IF('Blank - Request Form'!T141=0,\"\",'Blank - Request Form'!T141),\"\"))","v":""},null,null,null,{"$f":"IF(M107<>\"\",'Blank - Request Form'!$M$2,\"\")","v":""},{"$f":"IF('Blank - Request Form'!$F$6=\"CICMP\",IF('Blank - Request Form'!J141=0,\"\",'Blank - Request Form'!J141),IF('Blank - Request Form'!$F$7=\"CICMP\",IF('Blank - Request Form'!S141=0,\"\",'Blank - Request Form'!S141),\"\"))","v":""},"",107]
[{"$f":"IF('Blank - Request Form'!$F$6=\"CICMP\",IF('Blank - Request Form'!D142=0,\"\",'Blank - Request Form'!D142),IF('Blank - Request Form'!$F$7=\"CICMP\",IF('Blank - Request Form'!M142=0,\"\",'Blank - Request Form'!M142),\"\"))","v":""},{"$f":"IF('Blank - Request Form'!$F$6=\"CICMP\",IF('Blank - Request Form'!E142=0,\"\",'Blank - Request Form'!E142),IF('Blank - Request Form'!$F$7=\"CICMP\",IF('Blank - Request Form'!N142=0,\"\",'Blank - Request Form'!N142),\"\"))","v":""},{"$f":"IF('Blank - Request Form'!$F$6=\"CICMP\",IF(OR('Blank - Request Form'!F142=\"000\",'Blank - Request Form'!F142=0),\"\",'Blank - Request Form'!F142),IF('Blank - Request Form'!$F$7=\"CICMP\",IF(OR('Blank - Request Form'!O142=\"000\",'Blank - Request Form'!O142=0),\"\",'Blank - Request Form'!O142),\"\"))","v":""},{"$f":"IF('Blank - Request Form'!$F$6=\"CICMP\",IF(OR('Blank - Request Form'!G142=\"0\",'Blank - Request Form'!G142=\"00000\",'Blank - Request Form'!G142=0),\"\",'Blank - Request Form'!G142),IF('Blank - Request Form'!$F$7=\"CICMP\",IF(OR('Blank - Request Form'!P142=\"0\",'Blank - Request Form'!P142=\"00000\",'Blank - Request Form'!P142=0),\"\",'Blank - Request Form'!P142),\"\"))","v":""},{"$f":"IF('Blank - Request Form'!$F$6=\"CICMP\",IF(OR('Blank - Request Form'!H142=\"0\",'Blank - Request Form'!H142=\"00000\",'Blank - Request Form'!H142=0),\"\",'Blank - Request Form'!H142),IF('Blank - Request Form'!$F$7=\"CICMP\",IF(OR('Blank - Request Form'!Q142=\"0\",'Blank - Request Form'!Q142=\"00000\",'Blank - Request Form'!Q142=0),\"\",'Blank - Request Form'!Q142),\"\"))","v":""},{"$f":"IF('Blank - Request Form'!$F$6=\"CICMP\",IF(OR('Blank - Request Form'!I142=\"0\",'Blank - Request Form'!I142=\"00000\",'Blank - Request Form'!I142=0),\"\",'Blank - Request Form'!I142),IF('Blank - Request Form'!$F$7=\"CICMP\",IF(OR('Blank - Request Form'!R142=\"0\",'Blank - Request Form'!R142=\"00000\",'Blank - Request Form'!R142=0),\"\",'Blank - Request Form'!R142),\"\"))","v":""},null,{"$f":"IF('Blank - Request Form'!$F$6=\"CICMP\",IF('Blank - Request Form'!K142=0,\"\",'Blank - Request Form'!K142),IF('Blank - Request Form'!$F$7=\"CICMP\",IF('Blank - Request Form'!T142=0,\"\",'Blank - Request Form'!T142),\"\"))","v":""},null,null,null,{"$f":"IF(M108<>\"\",'Blank - Request Form'!$M$2,\"\")","v":""},{"$f":"IF('Blank - Request Form'!$F$6=\"CICMP\",IF('Blank - Request Form'!J142=0,\"\",'Blank - Request Form'!J142),IF('Blank - Request Form'!$F$7=\"CICMP\",IF('Blank - Request Form'!S142=0,\"\",'Blank - Request Form'!S142),\"\"))","v":""},"",108]
[{"$f":"IF('Blank - Request Form'!$F$6=\"CICMP\",IF('Blank - Request Form'!D143=0,\"\",'Blank - Request Form'!D143),IF('Blank - Request Form'!$F$7=\"CICMP\",IF('Blank - Request Form'!M143=0,\"\",'Blank - Request Form'!M143),\"\"))","v":""},{"$f":"IF('Blank - Request Form'!$F$6=\"CICMP\",IF('Blank - Request Form'!E143=0,\"\",'Blank - Request Form'!E143),IF('Blank - Request Form'!$F$7=\"CICMP\",IF('Blank - Request Form'!N143=0,\"\",'Blank - Request Form'!N143),\"\"))","v":""},{"$f":"IF('Blank - Request Form'!$F$6=\"CICMP\",IF(OR('Blank - Request Form'!F143=\"000\",'Blank - Request Form'!F143=0),\"\",'Blank - Request Form'!F143),IF('Blank - Request Form'!$F$7=\"CICMP\",IF(OR('Blank - Request Form'!O143=\"000\",'Blank - Request Form'!O143=0),\"\",'Blank - Request Form'!O143),\"\"))","v":""},{"$f":"IF('Blank - Request Form'!$F$6=\"CICMP\",IF(OR('Blank - Request Form'!G143=\"0\",'Blank - Request Form'!G143=\"00000\",'Blank - Request Form'!G143=0),\"\",'Blank - Request Form'!G143),IF('Blank - Request Form'!$F$7=\"CICMP\",IF(OR('Blank - Request Form'!P143=\"0\",'Blank - Request Form'!P143=\"00000\",'Blank - Request Form'!P143=0),\"\",'Blank - Request Form'!P143),\"\"))","v":""},{"$f":"IF('Blank - Request Form'!$F$6=\"CICMP\",IF(OR('Blank - Request Form'!H143=\"0\",'Blank - Request Form'!H143=\"00000\",'Blank - Request Form'!H143=0),\"\",'Blank - Request Form'!H143),IF('Blank - Request Form'!$F$7=\"CICMP\",IF(OR('Blank - Request Form'!Q143=\"0\",'Blank - Request Form'!Q143=\"00000\",'Blank - Request Form'!Q143=0),\"\",'Blank - Request Form'!Q143),\"\"))","v":""},{"$f":"IF('Blank - Request Form'!$F$6=\"CICMP\",IF(OR('Blank - Request Form'!I143=\"0\",'Blank - Request Form'!I143=\"00000\",'Blank - Request Form'!I143=0),\"\",'Blank - Request Form'!I143),IF('Blank - Request Form'!$F$7=\"CICMP\",IF(OR('Blank - Request Form'!R143=\"0\",'Blank - Request Form'!R143=\"00000\",'Blank - Request Form'!R143=0),\"\",'Blank - Request Form'!R143),\"\"))","v":""},null,{"$f":"IF('Blank - Request Form'!$F$6=\"CICMP\",IF('Blank - Request Form'!K143=0,\"\",'Blank - Request Form'!K143),IF('Blank - Request Form'!$F$7=\"CICMP\",IF('Blank - Request Form'!T143=0,\"\",'Blank - Request Form'!T143),\"\"))","v":""},null,null,null,{"$f":"IF(M109<>\"\",'Blank - Request Form'!$M$2,\"\")","v":""},{"$f":"IF('Blank - Request Form'!$F$6=\"CICMP\",IF('Blank - Request Form'!J143=0,\"\",'Blank - Request Form'!J143),IF('Blank - Request Form'!$F$7=\"CICMP\",IF('Blank - Request Form'!S143=0,\"\",'Blank - Request Form'!S143),\"\"))","v":""},"",109]
[{"$f":"IF('Blank - Request Form'!$F$6=\"CICMP\",IF('Blank - Request Form'!D144=0,\"\",'Blank - Request Form'!D144),IF('Blank - Request Form'!$F$7=\"CICMP\",IF('Blank - Request Form'!M144=0,\"\",'Blank - Request Form'!M144),\"\"))","v":""},{"$f":"IF('Blank - Request Form'!$F$6=\"CICMP\",IF('Blank - Request Form'!E144=0,\"\",'Blank - Request Form'!E144),IF('Blank - Request Form'!$F$7=\"CICMP\",IF('Blank - Request Form'!N144=0,\"\",'Blank - Request Form'!N144),\"\"))","v":""},{"$f":"IF('Blank - Request Form'!$F$6=\"CICMP\",IF(OR('Blank - Request Form'!F144=\"000\",'Blank - Request Form'!F144=0),\"\",'Blank - Request Form'!F144),IF('Blank - Request Form'!$F$7=\"CICMP\",IF(OR('Blank - Request Form'!O144=\"000\",'Blank - Request Form'!O144=0),\"\",'Blank - Request Form'!O144),\"\"))","v":""},{"$f":"IF('Blank - Request Form'!$F$6=\"CICMP\",IF(OR('Blank - Request Form'!G144=\"0\",'Blank - Request Form'!G144=\"00000\",'Blank - Request Form'!G144=0),\"\",'Blank - Request Form'!G144),IF('Blank - Request Form'!$F$7=\"CICMP\",IF(OR('Blank - Request Form'!P144=\"0\",'Blank - Request Form'!P144=\"00000\",'Blank - Request Form'!P144=0),\"\",'Blank - Request Form'!P144),\"\"))","v":""},{"$f":"IF('Blank - Request Form'!$F$6=\"CICMP\",IF(OR('Blank - Request Form'!H144=\"0\",'Blank - Request Form'!H144=\"00000\",'Blank - Request Form'!H144=0),\"\",'Blank - Request Form'!H144),IF('Blank - Request Form'!$F$7=\"CICMP\",IF(OR('Blank - Request Form'!Q144=\"0\",'Blank - Request Form'!Q144=\"00000\",'Blank - Request Form'!Q144=0),\"\",'Blank - Request Form'!Q144),\"\"))","v":""},{"$f":"IF('Blank - Request Form'!$F$6=\"CICMP\",IF(OR('Blank - Request Form'!I144=\"0\",'Blank - Request Form'!I144=\"00000\",'Blank - Request Form'!I144=0),\"\",'Blank - Request Form'!I144),IF('Blank - Request Form'!$F$7=\"CICMP\",IF(OR('Blank - Request Form'!R144=\"0\",'Blank - Request Form'!R144=\"00000\",'Blank - Request Form'!R144=0),\"\",'Blank - Request Form'!R144),\"\"))","v":""},null,{"$f":"IF('Blank - Request Form'!$F$6=\"CICMP\",IF('Blank - Request Form'!K144=0,\"\",'Blank - Request Form'!K144),IF('Blank - Request Form'!$F$7=\"CICMP\",IF('Blank - Request Form'!T144=0,\"\",'Blank - Request Form'!T144),\"\"))","v":""},null,null,null,{"$f":"IF(M110<>\"\",'Blank - Request Form'!$M$2,\"\")","v":""},{"$f":"IF('Blank - Request Form'!$F$6=\"CICMP\",IF('Blank - Request Form'!J144=0,\"\",'Blank - Request Form'!J144),IF('Blank - Request Form'!$F$7=\"CICMP\",IF('Blank - Request Form'!S144=0,\"\",'Blank - Request Form'!S144),\"\"))","v":""},"",110]
[{"$f":"IF('Blank - Request Form'!$F$6=\"CICMP\",IF('Blank - Request Form'!D145=0,\"\",'Blank - Request Form'!D145),IF('Blank - Request Form'!$F$7=\"CICMP\",IF('Blank - Request Form'!M145=0,\"\",'Blank - Request Form'!M145),\"\"))","v":""},{"$f":"IF('Blank - Request Form'!$F$6=\"CICMP\",IF('Blank - Request Form'!E145=0,\"\",'Blank - Request Form'!E145),IF('Blank - Request Form'!$F$7=\"CICMP\",IF('Blank - Request Form'!N145=0,\"\",'Blank - Request Form'!N145),\"\"))","v":""},{"$f":"IF('Blank - Request Form'!$F$6=\"CICMP\",IF(OR('Blank - Request Form'!F145=\"000\",'Blank - Request Form'!F145=0),\"\",'Blank - Request Form'!F145),IF('Blank - Request Form'!$F$7=\"CICMP\",IF(OR('Blank - Request Form'!O145=\"000\",'Blank - Request Form'!O145=0),\"\",'Blank - Request Form'!O145),\"\"))","v":""},{"$f":"IF('Blank - Request Form'!$F$6=\"CICMP\",IF(OR('Blank - Request Form'!G145=\"0\",'Blank - Request Form'!G145=\"00000\",'Blank - Request Form'!G145=0),\"\",'Blank - Request Form'!G145),IF('Blank - Request Form'!$F$7=\"CICMP\",IF(OR('Blank - Request Form'!P145=\"0\",'Blank - Request Form'!P145=\"00000\",'Blank - Request Form'!P145=0),\"\",'Blank - Request Form'!P145),\"\"))","v":""},{"$f":"IF('Blank - Request Form'!$F$6=\"CICMP\",IF(OR('Blank - Request Form'!H145=\"0\",'Blank - Request Form'!H145=\"00000\",'Blank - Request Form'!H145=0),\"\",'Blank - Request Form'!H145),IF('Blank - Request Form'!$F$7=\"CICMP\",IF(OR('Blank - Request Form'!Q145=\"0\",'Blank - Request Form'!Q145=\"00000\",'Blank - Request Form'!Q145=0),\"\",'Blank - Request Form'!Q145),\"\"))","v":""},{"$f":"IF('Blank - Request Form'!$F$6=\"CICMP\",IF(OR('Blank - Request Form'!I145=\"0\",'Blank - Request Form'!I145=\"00000\",'Blank - Request Form'!I145=0),\"\",'Blank - Request Form'!I145),IF('Blank - Request Form'!$F$7=\"CICMP\",IF(OR('Blank - Request Form'!R145=\"0\",'Blank - Request Form'!R145=\"00000\",'Blank - Request Form'!R145=0),\"\",'Blank - Request Form'!R145),\"\"))","v":""},null,{"$f":"IF('Blank - Request Form'!$F$6=\"CICMP\",IF('Blank - Request Form'!K145=0,\"\",'Blank - Request Form'!K145),IF('Blank - Request Form'!$F$7=\"CICMP\",IF('Blank - Request Form'!T145=0,\"\",'Blank - Request Form'!T145),\"\"))","v":""},null,null,null,{"$f":"IF(M111<>\"\",'Blank - Request Form'!$M$2,\"\")","v":""},{"$f":"IF('Blank - Request Form'!$F$6=\"CICMP\",IF('Blank - Request Form'!J145=0,\"\",'Blank - Request Form'!J145),IF('Blank - Request Form'!$F$7=\"CICMP\",IF('Blank - Request Form'!S145=0,\"\",'Blank - Request Form'!S145),\"\"))","v":""},"",111]
[{"$f":"IF('Blank - Request Form'!$F$6=\"CICMP\",IF('Blank - Request Form'!D146=0,\"\",'Blank - Request Form'!D146),IF('Blank - Request Form'!$F$7=\"CICMP\",IF('Blank - Request Form'!M146=0,\"\",'Blank - Request Form'!M146),\"\"))","v":""},{"$f":"IF('Blank - Request Form'!$F$6=\"CICMP\",IF('Blank - Request Form'!E146=0,\"\",'Blank - Request Form'!E146),IF('Blank - Request Form'!$F$7=\"CICMP\",IF('Blank - Request Form'!N146=0,\"\",'Blank - Request Form'!N146),\"\"))","v":""},{"$f":"IF('Blank - Request Form'!$F$6=\"CICMP\",IF(OR('Blank - Request Form'!F146=\"000\",'Blank - Request Form'!F146=0),\"\",'Blank - Request Form'!F146),IF('Blank - Request Form'!$F$7=\"CICMP\",IF(OR('Blank - Request Form'!O146=\"000\",'Blank - Request Form'!O146=0),\"\",'Blank - Request Form'!O146),\"\"))","v":""},{"$f":"IF('Blank - Request Form'!$F$6=\"CICMP\",IF(OR('Blank - Request Form'!G146=\"0\",'Blank - Request Form'!G146=\"00000\",'Blank - Request Form'!G146=0),\"\",'Blank - Request Form'!G146),IF('Blank - Request Form'!$F$7=\"CICMP\",IF(OR('Blank - Request Form'!P146=\"0\",'Blank - Request Form'!P146=\"00000\",'Blank - Request Form'!P146=0),\"\",'Blank - Request Form'!P146),\"\"))","v":""},{"$f":"IF('Blank - Request Form'!$F$6=\"CICMP\",IF(OR('Blank - Request Form'!H146=\"0\",'Blank - Request Form'!H146=\"00000\",'Blank - Request Form'!H146=0),\"\",'Blank - Request Form'!H146),IF('Blank - Request Form'!$F$7=\"CICMP\",IF(OR('Blank - Request Form'!Q146=\"0\",'Blank - Request Form'!Q146=\"00000\",'Blank - Request Form'!Q146=0),\"\",'Blank - Request Form'!Q146),\"\"))","v":""},{"$f":"IF('Blank - Request Form'!$F$6=\"CICMP\",IF(OR('Blank - Request Form'!I146=\"0\",'Blank - Request Form'!I146=\"00000\",'Blank - Request Form'!I146=0),\"\",'Blank - Request Form'!I146),IF('Blank - Request Form'!$F$7=\"CICMP\",IF(OR('Blank - Request Form'!R146=\"0\",'Blank - Request Form'!R146=\"00000\",'Blank - Request Form'!R146=0),\"\",'Blank - Request Form'!R146),\"\"))","v":""},null,{"$f":"IF('Blank - Request Form'!$F$6=\"CICMP\",IF('Blank - Request Form'!K146=0,\"\",'Blank - Request Form'!K146),IF('Blank - Request Form'!$F$7=\"CICMP\",IF('Blank - Request Form'!T146=0,\"\",'Blank - Request Form'!T146),\"\"))","v":""},null,null,null,{"$f":"IF(M112<>\"\",'Blank - Request Form'!$M$2,\"\")","v":""},{"$f":"IF('Blank - Request Form'!$F$6=\"CICMP\",IF('Blank - Request Form'!J146=0,\"\",'Blank - Request Form'!J146),IF('Blank - Request Form'!$F$7=\"CICMP\",IF('Blank - Request Form'!S146=0,\"\",'Blank - Request Form'!S146),\"\"))","v":""},{"$f":"IF(M112<>\"\",O112,\"\")","v":""},112]
[{"$f":"IF('Blank - Request Form'!$F$6=\"CICMP\",IF('Blank - Request Form'!D147=0,\"\",'Blank - Request Form'!D147),IF('Blank - Request Form'!$F$7=\"CICMP\",IF('Blank - Request Form'!M147=0,\"\",'Blank - Request Form'!M147),\"\"))","v":""},{"$f":"IF('Blank - Request Form'!$F$6=\"CICMP\",IF('Blank - Request Form'!E147=0,\"\",'Blank - Request Form'!E147),IF('Blank - Request Form'!$F$7=\"CICMP\",IF('Blank - Request Form'!N147=0,\"\",'Blank - Request Form'!N147),\"\"))","v":""},{"$f":"IF('Blank - Request Form'!$F$6=\"CICMP\",IF(OR('Blank - Request Form'!F147=\"000\",'Blank - Request Form'!F147=0),\"\",'Blank - Request Form'!F147),IF('Blank - Request Form'!$F$7=\"CICMP\",IF(OR('Blank - Request Form'!O147=\"000\",'Blank - Request Form'!O147=0),\"\",'Blank - Request Form'!O147),\"\"))","v":""},{"$f":"IF('Blank - Request Form'!$F$6=\"CICMP\",IF(OR('Blank - Request Form'!G147=\"0\",'Blank - Request Form'!G147=\"00000\",'Blank - Request Form'!G147=0),\"\",'Blank - Request Form'!G147),IF('Blank - Request Form'!$F$7=\"CICMP\",IF(OR('Blank - Request Form'!P147=\"0\",'Blank - Request Form'!P147=\"00000\",'Blank - Request Form'!P147=0),\"\",'Blank - Request Form'!P147),\"\"))","v":""},{"$f":"IF('Blank - Request Form'!$F$6=\"CICMP\",IF(OR('Blank - Request Form'!H147=\"0\",'Blank - Request Form'!H147=\"00000\",'Blank - Request Form'!H147=0),\"\",'Blank - Request Form'!H147),IF('Blank - Request Form'!$F$7=\"CICMP\",IF(OR('Blank - Request Form'!Q147=\"0\",'Blank - Request Form'!Q147=\"00000\",'Blank - Request Form'!Q147=0),\"\",'Blank - Request Form'!Q147),\"\"))","v":""},{"$f":"IF('Blank - Request Form'!$F$6=\"CICMP\",IF(OR('Blank - Request Form'!I147=\"0\",'Blank - Request Form'!I147=\"00000\",'Blank - Request Form'!I147=0),\"\",'Blank - Request Form'!I147),IF('Blank - Request Form'!$F$7=\"CICMP\",IF(OR('Blank - Request Form'!R147=\"0\",'Blank - Request Form'!R147=\"00000\",'Blank - Request Form'!R147=0),\"\",'Blank - Request Form'!R147),\"\"))","v":""},null,{"$f":"IF('Blank - Request Form'!$F$6=\"CICMP\",IF('Blank - Request Form'!K147=0,\"\",'Blank - Request Form'!K147),IF('Blank - Request Form'!$F$7=\"CICMP\",IF('Blank - Request Form'!T147=0,\"\",'Blank - Request Form'!T147),\"\"))","v":""},null,null,null,{"$f":"IF(M113<>\"\",'Blank - Request Form'!$M$2,\"\")","v":""},{"$f":"IF('Blank - Request Form'!$F$6=\"CICMP\",IF('Blank - Request Form'!J147=0,\"\",'Blank - Request Form'!J147),IF('Blank - Request Form'!$F$7=\"CICMP\",IF('Blank - Request Form'!S147=0,\"\",'Blank - Request Form'!S147),\"\"))","v":""},"",113]
[{"$f":"IF('Blank - Request Form'!$F$6=\"CICMP\",IF('Blank - Request Form'!D148=0,\"\",'Blank - Request Form'!D148),IF('Blank - Request Form'!$F$7=\"CICMP\",IF('Blank - Request Form'!M148=0,\"\",'Blank - Request Form'!M148),\"\"))","v":""},{"$f":"IF('Blank - Request Form'!$F$6=\"CICMP\",IF('Blank - Request Form'!E148=0,\"\",'Blank - Request Form'!E148),IF('Blank - Request Form'!$F$7=\"CICMP\",IF('Blank - Request Form'!N148=0,\"\",'Blank - Request Form'!N148),\"\"))","v":""},{"$f":"IF('Blank - Request Form'!$F$6=\"CICMP\",IF(OR('Blank - Request Form'!F148=\"000\",'Blank - Request Form'!F148=0),\"\",'Blank - Request Form'!F148),IF('Blank - Request Form'!$F$7=\"CICMP\",IF(OR('Blank - Request Form'!O148=\"000\",'Blank - Request Form'!O148=0),\"\",'Blank - Request Form'!O148),\"\"))","v":""},{"$f":"IF('Blank - Request Form'!$F$6=\"CICMP\",IF(OR('Blank - Request Form'!G148=\"0\",'Blank - Request Form'!G148=\"00000\",'Blank - Request Form'!G148=0),\"\",'Blank - Request Form'!G148),IF('Blank - Request Form'!$F$7=\"CICMP\",IF(OR('Blank - Request Form'!P148=\"0\",'Blank - Request Form'!P148=\"00000\",'Blank - Request Form'!P148=0),\"\",'Blank - Request Form'!P148),\"\"))","v":""},{"$f":"IF('Blank - Request Form'!$F$6=\"CICMP\",IF(OR('Blank - Request Form'!H148=\"0\",'Blank - Request Form'!H148=\"00000\",'Blank - Request Form'!H148=0),\"\",'Blank - Request Form'!H148),IF('Blank - Request Form'!$F$7=\"CICMP\",IF(OR('Blank - Request Form'!Q148=\"0\",'Blank - Request Form'!Q148=\"00000\",'Blank - Request Form'!Q148=0),\"\",'Blank - Request Form'!Q148),\"\"))","v":""},{"$f":"IF('Blank - Request Form'!$F$6=\"CICMP\",IF(OR('Blank - Request Form'!I148=\"0\",'Blank - Request Form'!I148=\"00000\",'Blank - Request Form'!I148=0),\"\",'Blank - Request Form'!I148),IF('Blank - Request Form'!$F$7=\"CICMP\",IF(OR('Blank - Request Form'!R148=\"0\",'Blank - Request Form'!R148=\"00000\",'Blank - Request Form'!R148=0),\"\",'Blank - Request Form'!R148),\"\"))","v":""},null,{"$f":"IF('Blank - Request Form'!$F$6=\"CICMP\",IF('Blank - Request Form'!K148=0,\"\",'Blank - Request Form'!K148),IF('Blank - Request Form'!$F$7=\"CICMP\",IF('Blank - Request Form'!T148=0,\"\",'Blank - Request Form'!T148),\"\"))","v":""},null,null,null,{"$f":"IF(M114<>\"\",'Blank - Request Form'!$M$2,\"\")","v":""},{"$f":"IF('Blank - Request Form'!$F$6=\"CICMP\",IF('Blank - Request Form'!J148=0,\"\",'Blank - Request Form'!J148),IF('Blank - Request Form'!$F$7=\"CICMP\",IF('Blank - Request Form'!S148=0,\"\",'Blank - Request Form'!S148),\"\"))","v":""},"",114]
[{"$f":"IF('Blank - Request Form'!$F$6=\"CICMP\",IF('Blank - Request Form'!D149=0,\"\",'Blank - Request Form'!D149),IF('Blank - Request Form'!$F$7=\"CICMP\",IF('Blank - Request Form'!M149=0,\"\",'Blank - Request Form'!M149),\"\"))","v":""},{"$f":"IF('Blank - Request Form'!$F$6=\"CICMP\",IF('Blank - Request Form'!E149=0,\"\",'Blank - Request Form'!E149),IF('Blank - Request Form'!$F$7=\"CICMP\",IF('Blank - Request Form'!N149=0,\"\",'Blank - Request Form'!N149),\"\"))","v":""},{"$f":"IF('Blank - Request Form'!$F$6=\"CICMP\",IF(OR('Blank - Request Form'!F149=\"000\",'Blank - Request Form'!F149=0),\"\",'Blank - Request Form'!F149),IF('Blank - Request Form'!$F$7=\"CICMP\",IF(OR('Blank - Request Form'!O149=\"000\",'Blank - Request Form'!O149=0),\"\",'Blank - Request Form'!O149),\"\"))","v":""},{"$f":"IF('Blank - Request Form'!$F$6=\"CICMP\",IF(OR('Blank - Request Form'!G149=\"0\",'Blank - Request Form'!G149=\"00000\",'Blank - Request Form'!G149=0),\"\",'Blank - Request Form'!G149),IF('Blank - Request Form'!$F$7=\"CICMP\",IF(OR('Blank - Request Form'!P149=\"0\",'Blank - Request Form'!P149=\"00000\",'Blank - Request Form'!P149=0),\"\",'Blank - Request Form'!P149),\"\"))","v":""},{"$f":"IF('Blank - Request Form'!$F$6=\"CICMP\",IF(OR('Blank - Request Form'!H149=\"0\",'Blank - Request Form'!H149=\"00000\",'Blank - Request Form'!H149=0),\"\",'Blank - Request Form'!H149),IF('Blank - Request Form'!$F$7=\"CICMP\",IF(OR('Blank - Request Form'!Q149=\"0\",'Blank - Request Form'!Q149=\"00000\",'Blank - Request Form'!Q149=0),\"\",'Blank - Request Form'!Q149),\"\"))","v":""},{"$f":"IF('Blank - Request Form'!$F$6=\"CICMP\",IF(OR('Blank - Request Form'!I149=\"0\",'Blank - Request Form'!I149=\"00000\",'Blank - Request Form'!I149=0),\"\",'Blank - Request Form'!I149),IF('Blank - Request Form'!$F$7=\"CICMP\",IF(OR('Blank - Request Form'!R149=\"0\",'Blank - Request Form'!R149=\"00000\",'Blank - Request Form'!R149=0),\"\",'Blank - Request Form'!R149),\"\"))","v":""},null,{"$f":"IF('Blank - Request Form'!$F$6=\"CICMP\",IF('Blank - Request Form'!K149=0,\"\",'Blank - Request Form'!K149),IF('Blank - Request Form'!$F$7=\"CICMP\",IF('Blank - Request Form'!T149=0,\"\",'Blank - Request Form'!T149),\"\"))","v":""},null,null,null,{"$f":"IF(M115<>\"\",'Blank - Request Form'!$M$2,\"\")","v":""},{"$f":"IF('Blank - Request Form'!$F$6=\"CICMP\",IF('Blank - Request Form'!J149=0,\"\",'Blank - Request Form'!J149),IF('Blank - Request Form'!$F$7=\"CICMP\",IF('Blank - Request Form'!S149=0,\"\",'Blank - Request Form'!S149),\"\"))","v":""},"",115]
[{"$f":"IF('Blank - Request Form'!$F$6=\"CICMP\",IF('Blank - Request Form'!D150=0,\"\",'Blank - Request Form'!D150),IF('Blank - Request Form'!$F$7=\"CICMP\",IF('Blank - Request Form'!M150=0,\"\",'Blank - Request Form'!M150),\"\"))","v":""},{"$f":"IF('Blank - Request Form'!$F$6=\"CICMP\",IF('Blank - Request Form'!E150=0,\"\",'Blank - Request Form'!E150),IF('Blank - Request Form'!$F$7=\"CICMP\",IF('Blank - Request Form'!N150=0,\"\",'Blank - Request Form'!N150),\"\"))","v":""},{"$f":"IF('Blank - Request Form'!$F$6=\"CICMP\",IF(OR('Blank - Request Form'!F150=\"000\",'Blank - Request Form'!F150=0),\"\",'Blank - Request Form'!F150),IF('Blank - Request Form'!$F$7=\"CICMP\",IF(OR('Blank - Request Form'!O150=\"000\",'Blank - Request Form'!O150=0),\"\",'Blank - Request Form'!O150),\"\"))","v":""},{"$f":"IF('Blank - Request Form'!$F$6=\"CICMP\",IF(OR('Blank - Request Form'!G150=\"0\",'Blank - Request Form'!G150=\"00000\",'Blank - Request Form'!G150=0),\"\",'Blank - Request Form'!G150),IF('Blank - Request Form'!$F$7=\"CICMP\",IF(OR('Blank - Request Form'!P150=\"0\",'Blank - Request Form'!P150=\"00000\",'Blank - Request Form'!P150=0),\"\",'Blank - Request Form'!P150),\"\"))","v":""},{"$f":"IF('Blank - Request Form'!$F$6=\"CICMP\",IF(OR('Blank - Request Form'!H150=\"0\",'Blank - Request Form'!H150=\"00000\",'Blank - Request Form'!H150=0),\"\",'Blank - Request Form'!H150),IF('Blank - Request Form'!$F$7=\"CICMP\",IF(OR('Blank - Request Form'!Q150=\"0\",'Blank - Request Form'!Q150=\"00000\",'Blank - Request Form'!Q150=0),\"\",'Blank - Request Form'!Q150),\"\"))","v":""},{"$f":"IF('Blank - Request Form'!$F$6=\"CICMP\",IF(OR('Blank - Request Form'!I150=\"0\",'Blank - Request Form'!I150=\"00000\",'Blank - Request Form'!I150=0),\"\",'Blank - Request Form'!I150),IF('Blank - Request Form'!$F$7=\"CICMP\",IF(OR('Blank - Request Form'!R150=\"0\",'Blank - Request Form'!R150=\"00000\",'Blank - Request Form'!R150=0),\"\",'Blank - Request Form'!R150),\"\"))","v":""},null,{"$f":"IF('Blank - Request Form'!$F$6=\"CICMP\",IF('Blank - Request Form'!K150=0,\"\",'Blank - Request Form'!K150),IF('Blank - Request Form'!$F$7=\"CICMP\",IF('Blank - Request Form'!T150=0,\"\",'Blank - Request Form'!T150),\"\"))","v":""},null,null,null,{"$f":"IF(M116<>\"\",'Blank - Request Form'!$M$2,\"\")","v":""},{"$f":"IF('Blank - Request Form'!$F$6=\"CICMP\",IF('Blank - Request Form'!J150=0,\"\",'Blank - Request Form'!J150),IF('Blank - Request Form'!$F$7=\"CICMP\",IF('Blank - Request Form'!S150=0,\"\",'Blank - Request Form'!S150),\"\"))","v":""},"",116]
[{"$f":"IF('Blank - Request Form'!$F$6=\"CICMP\",IF('Blank - Request Form'!D151=0,\"\",'Blank - Request Form'!D151),IF('Blank - Request Form'!$F$7=\"CICMP\",IF('Blank - Request Form'!M151=0,\"\",'Blank - Request Form'!M151),\"\"))","v":""},{"$f":"IF('Blank - Request Form'!$F$6=\"CICMP\",IF('Blank - Request Form'!E151=0,\"\",'Blank - Request Form'!E151),IF('Blank - Request Form'!$F$7=\"CICMP\",IF('Blank - Request Form'!N151=0,\"\",'Blank - Request Form'!N151),\"\"))","v":""},{"$f":"IF('Blank - Request Form'!$F$6=\"CICMP\",IF(OR('Blank - Request Form'!F151=\"000\",'Blank - Request Form'!F151=0),\"\",'Blank - Request Form'!F151),IF('Blank - Request Form'!$F$7=\"CICMP\",IF(OR('Blank - Request Form'!O151=\"000\",'Blank - Request Form'!O151=0),\"\",'Blank - Request Form'!O151),\"\"))","v":""},{"$f":"IF('Blank - Request Form'!$F$6=\"CICMP\",IF(OR('Blank - Request Form'!G151=\"0\",'Blank - Request Form'!G151=\"00000\",'Blank - Request Form'!G151=0),\"\",'Blank - Request Form'!G151),IF('Blank - Request Form'!$F$7=\"CICMP\",IF(OR('Blank - Request Form'!P151=\"0\",'Blank - Request Form'!P151=\"00000\",'Blank - Request Form'!P151=0),\"\",'Blank - Request Form'!P151),\"\"))","v":""},{"$f":"IF('Blank - Request Form'!$F$6=\"CICMP\",IF(OR('Blank - Request Form'!H151=\"0\",'Blank - Request Form'!H151=\"00000\",'Blank - Request Form'!H151=0),\"\",'Blank - Request Form'!H151),IF('Blank - Request Form'!$F$7=\"CICMP\",IF(OR('Blank - Request Form'!Q151=\"0\",'Blank - Request Form'!Q151=\"00000\",'Blank - Request Form'!Q151=0),\"\",'Blank - Request Form'!Q151),\"\"))","v":""},{"$f":"IF('Blank - Request Form'!$F$6=\"CICMP\",IF(OR('Blank - Request Form'!I151=\"0\",'Blank - Request Form'!I151=\"00000\",'Blank - Request Form'!I151=0),\"\",'Blank - Request Form'!I151),IF('Blank - Request Form'!$F$7=\"CICMP\",IF(OR('Blank - Request Form'!R151=\"0\",'Blank - Request Form'!R151=\"00000\",'Blank - Request Form'!R151=0),\"\",'Blank - Request Form'!R151),\"\"))","v":""},null,{"$f":"IF('Blank - Request Form'!$F$6=\"CICMP\",IF('Blank - Request Form'!K151=0,\"\",'Blank - Request Form'!K151),IF('Blank - Request Form'!$F$7=\"CICMP\",IF('Blank - Request Form'!T151=0,\"\",'Blank - Request Form'!T151),\"\"))","v":""},null,null,null,{"$f":"IF(M117<>\"\",'Blank - Request Form'!$M$2,\"\")","v":""},{"$f":"IF('Blank - Request Form'!$F$6=\"CICMP\",IF('Blank - Request Form'!J151=0,\"\",'Blank - Request Form'!J151),IF('Blank - Request Form'!$F$7=\"CICMP\",IF('Blank - Request Form'!S151=0,\"\",'Blank - Request Form'!S151),\"\"))","v":""},"",117]
[{"$f":"IF('Blank - Request Form'!$F$6=\"CICMP\",IF('Blank - Request Form'!D152=0,\"\",'Blank - Request Form'!D152),IF('Blank - Request Form'!$F$7=\"CICMP\",IF('Blank - Request Form'!M152=0,\"\",'Blank - Request Form'!M152),\"\"))","v":""},{"$f":"IF('Blank - Request Form'!$F$6=\"CICMP\",IF('Blank - Request Form'!E152=0,\"\",'Blank - Request Form'!E152),IF('Blank - Request Form'!$F$7=\"CICMP\",IF('Blank - Request Form'!N152=0,\"\",'Blank - Request Form'!N152),\"\"))","v":""},{"$f":"IF('Blank - Request Form'!$F$6=\"CICMP\",IF(OR('Blank - Request Form'!F152=\"000\",'Blank - Request Form'!F152=0),\"\",'Blank - Request Form'!F152),IF('Blank - Request Form'!$F$7=\"CICMP\",IF(OR('Blank - Request Form'!O152=\"000\",'Blank - Request Form'!O152=0),\"\",'Blank - Request Form'!O152),\"\"))","v":""},{"$f":"IF('Blank - Request Form'!$F$6=\"CICMP\",IF(OR('Blank - Request Form'!G152=\"0\",'Blank - Request Form'!G152=\"00000\",'Blank - Request Form'!G152=0),\"\",'Blank - Request Form'!G152),IF('Blank - Request Form'!$F$7=\"CICMP\",IF(OR('Blank - Request Form'!P152=\"0\",'Blank - Request Form'!P152=\"00000\",'Blank - Request Form'!P152=0),\"\",'Blank - Request Form'!P152),\"\"))","v":""},{"$f":"IF('Blank - Request Form'!$F$6=\"CICMP\",IF(OR('Blank - Request Form'!H152=\"0\",'Blank - Request Form'!H152=\"00000\",'Blank - Request Form'!H152=0),\"\",'Blank - Request Form'!H152),IF('Blank - Request Form'!$F$7=\"CICMP\",IF(OR('Blank - Request Form'!Q152=\"0\",'Blank - Request Form'!Q152=\"00000\",'Blank - Request Form'!Q152=0),\"\",'Blank - Request Form'!Q152),\"\"))","v":""},{"$f":"IF('Blank - Request Form'!$F$6=\"CICMP\",IF(OR('Blank - Request Form'!I152=\"0\",'Blank - Request Form'!I152=\"00000\",'Blank - Request Form'!I152=0),\"\",'Blank - Request Form'!I152),IF('Blank - Request Form'!$F$7=\"CICMP\",IF(OR('Blank - Request Form'!R152=\"0\",'Blank - Request Form'!R152=\"00000\",'Blank - Request Form'!R152=0),\"\",'Blank - Request Form'!R152),\"\"))","v":""},null,{"$f":"IF('Blank - Request Form'!$F$6=\"CICMP\",IF('Blank - Request Form'!K152=0,\"\",'Blank - Request Form'!K152),IF('Blank - Request Form'!$F$7=\"CICMP\",IF('Blank - Request Form'!T152=0,\"\",'Blank - Request Form'!T152),\"\"))","v":""},null,null,null,{"$f":"IF(M118<>\"\",'Blank - Request Form'!$M$2,\"\")","v":""},{"$f":"IF('Blank - Request Form'!$F$6=\"CICMP\",IF('Blank - Request Form'!J152=0,\"\",'Blank - Request Form'!J152),IF('Blank - Request Form'!$F$7=\"CICMP\",IF('Blank - Request Form'!S152=0,\"\",'Blank - Request Form'!S152),\"\"))","v":""},"",118]
[{"$f":"IF('Blank - Request Form'!$F$6=\"CICMP\",IF('Blank - Request Form'!D153=0,\"\",'Blank - Request Form'!D153),IF('Blank - Request Form'!$F$7=\"CICMP\",IF('Blank - Request Form'!M153=0,\"\",'Blank - Request Form'!M153),\"\"))","v":""},{"$f":"IF('Blank - Request Form'!$F$6=\"CICMP\",IF('Blank - Request Form'!E153=0,\"\",'Blank - Request Form'!E153),IF('Blank - Request Form'!$F$7=\"CICMP\",IF('Blank - Request Form'!N153=0,\"\",'Blank - Request Form'!N153),\"\"))","v":""},{"$f":"IF('Blank - Request Form'!$F$6=\"CICMP\",IF(OR('Blank - Request Form'!F153=\"000\",'Blank - Request Form'!F153=0),\"\",'Blank - Request Form'!F153),IF('Blank - Request Form'!$F$7=\"CICMP\",IF(OR('Blank - Request Form'!O153=\"000\",'Blank - Request Form'!O153=0),\"\",'Blank - Request Form'!O153),\"\"))","v":""},{"$f":"IF('Blank - Request Form'!$F$6=\"CICMP\",IF(OR('Blank - Request Form'!G153=\"0\",'Blank - Request Form'!G153=\"00000\",'Blank - Request Form'!G153=0),\"\",'Blank - Request Form'!G153),IF('Blank - Request Form'!$F$7=\"CICMP\",IF(OR('Blank - Request Form'!P153=\"0\",'Blank - Request Form'!P153=\"00000\",'Blank - Request Form'!P153=0),\"\",'Blank - Request Form'!P153),\"\"))","v":""},{"$f":"IF('Blank - Request Form'!$F$6=\"CICMP\",IF(OR('Blank - Request Form'!H153=\"0\",'Blank - Request Form'!H153=\"00000\",'Blank - Request Form'!H153=0),\"\",'Blank - Request Form'!H153),IF('Blank - Request Form'!$F$7=\"CICMP\",IF(OR('Blank - Request Form'!Q153=\"0\",'Blank - Request Form'!Q153=\"00000\",'Blank - Request Form'!Q153=0),\"\",'Blank - Request Form'!Q153),\"\"))","v":""},{"$f":"IF('Blank - Request Form'!$F$6=\"CICMP\",IF(OR('Blank - Request Form'!I153=\"0\",'Blank - Request Form'!I153=\"00000\",'Blank - Request Form'!I153=0),\"\",'Blank - Request Form'!I153),IF('Blank - Request Form'!$F$7=\"CICMP\",IF(OR('Blank - Request Form'!R153=\"0\",'Blank - Request Form'!R153=\"00000\",'Blank - Request Form'!R153=0),\"\",'Blank - Request Form'!R153),\"\"))","v":""},null,{"$f":"IF('Blank - Request Form'!$F$6=\"CICMP\",IF('Blank - Request Form'!K153=0,\"\",'Blank - Request Form'!K153),IF('Blank - Request Form'!$F$7=\"CICMP\",IF('Blank - Request Form'!T153=0,\"\",'Blank - Request Form'!T153),\"\"))","v":""},null,null,null,{"$f":"IF(M119<>\"\",'Blank - Request Form'!$M$2,\"\")","v":""},{"$f":"IF('Blank - Request Form'!$F$6=\"CICMP\",IF('Blank - Request Form'!J153=0,\"\",'Blank - Request Form'!J153),IF('Blank - Request Form'!$F$7=\"CICMP\",IF('Blank - Request Form'!S153=0,\"\",'Blank - Request Form'!S153),\"\"))","v":""},"",119]
[{"$f":"IF('Blank - Request Form'!$F$6=\"CICMP\",IF('Blank - Request Form'!D154=0,\"\",'Blank - Request Form'!D154),IF('Blank - Request Form'!$F$7=\"CICMP\",IF('Blank - Request Form'!M154=0,\"\",'Blank - Request Form'!M154),\"\"))","v":""},{"$f":"IF('Blank - Request Form'!$F$6=\"CICMP\",IF('Blank - Request Form'!E154=0,\"\",'Blank - Request Form'!E154),IF('Blank - Request Form'!$F$7=\"CICMP\",IF('Blank - Request Form'!N154=0,\"\",'Blank - Request Form'!N154),\"\"))","v":""},{"$f":"IF('Blank - Request Form'!$F$6=\"CICMP\",IF(OR('Blank - Request Form'!F154=\"000\",'Blank - Request Form'!F154=0),\"\",'Blank - Request Form'!F154),IF('Blank - Request Form'!$F$7=\"CICMP\",IF(OR('Blank - Request Form'!O154=\"000\",'Blank - Request Form'!O154=0),\"\",'Blank - Request Form'!O154),\"\"))","v":""},{"$f":"IF('Blank - Request Form'!$F$6=\"CICMP\",IF(OR('Blank - Request Form'!G154=\"0\",'Blank - Request Form'!G154=\"00000\",'Blank - Request Form'!G154=0),\"\",'Blank - Request Form'!G154),IF('Blank - Request Form'!$F$7=\"CICMP\",IF(OR('Blank - Request Form'!P154=\"0\",'Blank - Request Form'!P154=\"00000\",'Blank - Request Form'!P154=0),\"\",'Blank - Request Form'!P154),\"\"))","v":""},{"$f":"IF('Blank - Request Form'!$F$6=\"CICMP\",IF(OR('Blank - Request Form'!H154=\"0\",'Blank - Request Form'!H154=\"00000\",'Blank - Request Form'!H154=0),\"\",'Blank - Request Form'!H154),IF('Blank - Request Form'!$F$7=\"CICMP\",IF(OR('Blank - Request Form'!Q154=\"0\",'Blank - Request Form'!Q154=\"00000\",'Blank - Request Form'!Q154=0),\"\",'Blank - Request Form'!Q154),\"\"))","v":""},{"$f":"IF('Blank - Request Form'!$F$6=\"CICMP\",IF(OR('Blank - Request Form'!I154=\"0\",'Blank - Request Form'!I154=\"00000\",'Blank - Request Form'!I154=0),\"\",'Blank - Request Form'!I154),IF('Blank - Request Form'!$F$7=\"CICMP\",IF(OR('Blank - Request Form'!R154=\"0\",'Blank - Request Form'!R154=\"00000\",'Blank - Request Form'!R154=0),\"\",'Blank - Request Form'!R154),\"\"))","v":""},null,{"$f":"IF('Blank - Request Form'!$F$6=\"CICMP\",IF('Blank - Request Form'!K154=0,\"\",'Blank - Request Form'!K154),IF('Blank - Request Form'!$F$7=\"CICMP\",IF('Blank - Request Form'!T154=0,\"\",'Blank - Request Form'!T154),\"\"))","v":""},null,null,null,{"$f":"IF(M120<>\"\",'Blank - Request Form'!$M$2,\"\")","v":""},{"$f":"IF('Blank - Request Form'!$F$6=\"CICMP\",IF('Blank - Request Form'!J154=0,\"\",'Blank - Request Form'!J154),IF('Blank - Request Form'!$F$7=\"CICMP\",IF('Blank - Request Form'!S154=0,\"\",'Blank - Request Form'!S154),\"\"))","v":""},"",120]
[{"$f":"IF('Blank - Request Form'!$F$6=\"CICMP\",IF('Blank - Request Form'!D155=0,\"\",'Blank - Request Form'!D155),IF('Blank - Request Form'!$F$7=\"CICMP\",IF('Blank - Request Form'!M155=0,\"\",'Blank - Request Form'!M155),\"\"))","v":""},{"$f":"IF('Blank - Request Form'!$F$6=\"CICMP\",IF('Blank - Request Form'!E155=0,\"\",'Blank - Request Form'!E155),IF('Blank - Request Form'!$F$7=\"CICMP\",IF('Blank - Request Form'!N155=0,\"\",'Blank - Request Form'!N155),\"\"))","v":""},{"$f":"IF('Blank - Request Form'!$F$6=\"CICMP\",IF(OR('Blank - Request Form'!F155=\"000\",'Blank - Request Form'!F155=0),\"\",'Blank - Request Form'!F155),IF('Blank - Request Form'!$F$7=\"CICMP\",IF(OR('Blank - Request Form'!O155=\"000\",'Blank - Request Form'!O155=0),\"\",'Blank - Request Form'!O155),\"\"))","v":""},{"$f":"IF('Blank - Request Form'!$F$6=\"CICMP\",IF(OR('Blank - Request Form'!G155=\"0\",'Blank - Request Form'!G155=\"00000\",'Blank - Request Form'!G155=0),\"\",'Blank - Request Form'!G155),IF('Blank - Request Form'!$F$7=\"CICMP\",IF(OR('Blank - Request Form'!P155=\"0\",'Blank - Request Form'!P155=\"00000\",'Blank - Request Form'!P155=0),\"\",'Blank - Request Form'!P155),\"\"))","v":""},{"$f":"IF('Blank - Request Form'!$F$6=\"CICMP\",IF(OR('Blank - Request Form'!H155=\"0\",'Blank - Request Form'!H155=\"00000\",'Blank - Request Form'!H155=0),\"\",'Blank - Request Form'!H155),IF('Blank - Request Form'!$F$7=\"CICMP\",IF(OR('Blank - Request Form'!Q155=\"0\",'Blank - Request Form'!Q155=\"00000\",'Blank - Request Form'!Q155=0),\"\",'Blank - Request Form'!Q155),\"\"))","v":""},{"$f":"IF('Blank - Request Form'!$F$6=\"CICMP\",IF(OR('Blank - Request Form'!I155=\"0\",'Blank - Request Form'!I155=\"00000\",'Blank - Request Form'!I155=0),\"\",'Blank - Request Form'!I155),IF('Blank - Request Form'!$F$7=\"CICMP\",IF(OR('Blank - Request Form'!R155=\"0\",'Blank - Request Form'!R155=\"00000\",'Blank - Request Form'!R155=0),\"\",'Blank - Request Form'!R155),\"\"))","v":""},null,{"$f":"IF('Blank - Request Form'!$F$6=\"CICMP\",IF('Blank - Request Form'!K155=0,\"\",'Blank - Request Form'!K155),IF('Blank - Request Form'!$F$7=\"CICMP\",IF('Blank - Request Form'!T155=0,\"\",'Blank - Request Form'!T155),\"\"))","v":""},null,null,null,{"$f":"IF(M121<>\"\",'Blank - Request Form'!$M$2,\"\")","v":""},{"$f":"IF('Blank - Request Form'!$F$6=\"CICMP\",IF('Blank - Request Form'!J155=0,\"\",'Blank - Request Form'!J155),IF('Blank - Request Form'!$F$7=\"CICMP\",IF('Blank - Request Form'!S155=0,\"\",'Blank - Request Form'!S155),\"\"))","v":""},"",121]
[{"$f":"IF('Blank - Request Form'!$F$6=\"CICMP\",IF('Blank - Request Form'!D156=0,\"\",'Blank - Request Form'!D156),IF('Blank - Request Form'!$F$7=\"CICMP\",IF('Blank - Request Form'!M156=0,\"\",'Blank - Request Form'!M156),\"\"))","v":""},{"$f":"IF('Blank - Request Form'!$F$6=\"CICMP\",IF('Blank - Request Form'!E156=0,\"\",'Blank - Request Form'!E156),IF('Blank - Request Form'!$F$7=\"CICMP\",IF('Blank - Request Form'!N156=0,\"\",'Blank - Request Form'!N156),\"\"))","v":""},{"$f":"IF('Blank - Request Form'!$F$6=\"CICMP\",IF(OR('Blank - Request Form'!F156=\"000\",'Blank - Request Form'!F156=0),\"\",'Blank - Request Form'!F156),IF('Blank - Request Form'!$F$7=\"CICMP\",IF(OR('Blank - Request Form'!O156=\"000\",'Blank - Request Form'!O156=0),\"\",'Blank - Request Form'!O156),\"\"))","v":""},{"$f":"IF('Blank - Request Form'!$F$6=\"CICMP\",IF(OR('Blank - Request Form'!G156=\"0\",'Blank - Request Form'!G156=\"00000\",'Blank - Request Form'!G156=0),\"\",'Blank - Request Form'!G156),IF('Blank - Request Form'!$F$7=\"CICMP\",IF(OR('Blank - Request Form'!P156=\"0\",'Blank - Request Form'!P156=\"00000\",'Blank - Request Form'!P156=0),\"\",'Blank - Request Form'!P156),\"\"))","v":""},{"$f":"IF('Blank - Request Form'!$F$6=\"CICMP\",IF(OR('Blank - Request Form'!H156=\"0\",'Blank - Request Form'!H156=\"00000\",'Blank - Request Form'!H156=0),\"\",'Blank - Request Form'!H156),IF('Blank - Request Form'!$F$7=\"CICMP\",IF(OR('Blank - Request Form'!Q156=\"0\",'Blank - Request Form'!Q156=\"00000\",'Blank - Request Form'!Q156=0),\"\",'Blank - Request Form'!Q156),\"\"))","v":""},{"$f":"IF('Blank - Request Form'!$F$6=\"CICMP\",IF(OR('Blank - Request Form'!I156=\"0\",'Blank - Request Form'!I156=\"00000\",'Blank - Request Form'!I156=0),\"\",'Blank - Request Form'!I156),IF('Blank - Request Form'!$F$7=\"CICMP\",IF(OR('Blank - Request Form'!R156=\"0\",'Blank - Request Form'!R156=\"00000\",'Blank - Request Form'!R156=0),\"\",'Blank - Request Form'!R156),\"\"))","v":""},null,{"$f":"IF('Blank - Request Form'!$F$6=\"CICMP\",IF('Blank - Request Form'!K156=0,\"\",'Blank - Request Form'!K156),IF('Blank - Request Form'!$F$7=\"CICMP\",IF('Blank - Request Form'!T156=0,\"\",'Blank - Request Form'!T156),\"\"))","v":""},null,null,null,{"$f":"IF(M122<>\"\",'Blank - Request Form'!$M$2,\"\")","v":""},{"$f":"IF('Blank - Request Form'!$F$6=\"CICMP\",IF('Blank - Request Form'!J156=0,\"\",'Blank - Request Form'!J156),IF('Blank - Request Form'!$F$7=\"CICMP\",IF('Blank - Request Form'!S156=0,\"\",'Blank - Request Form'!S156),\"\"))","v":""},"",122]
[{"$f":"IF('Blank - Request Form'!$F$6=\"CICMP\",IF('Blank - Request Form'!D157=0,\"\",'Blank - Request Form'!D157),IF('Blank - Request Form'!$F$7=\"CICMP\",IF('Blank - Request Form'!M157=0,\"\",'Blank - Request Form'!M157),\"\"))","v":""},{"$f":"IF('Blank - Request Form'!$F$6=\"CICMP\",IF('Blank - Request Form'!E157=0,\"\",'Blank - Request Form'!E157),IF('Blank - Request Form'!$F$7=\"CICMP\",IF('Blank - Request Form'!N157=0,\"\",'Blank - Request Form'!N157),\"\"))","v":""},{"$f":"IF('Blank - Request Form'!$F$6=\"CICMP\",IF(OR('Blank - Request Form'!F157=\"000\",'Blank - Request Form'!F157=0),\"\",'Blank - Request Form'!F157),IF('Blank - Request Form'!$F$7=\"CICMP\",IF(OR('Blank - Request Form'!O157=\"000\",'Blank - Request Form'!O157=0),\"\",'Blank - Request Form'!O157),\"\"))","v":""},{"$f":"IF('Blank - Request Form'!$F$6=\"CICMP\",IF(OR('Blank - Request Form'!G157=\"0\",'Blank - Request Form'!G157=\"00000\",'Blank - Request Form'!G157=0),\"\",'Blank - Request Form'!G157),IF('Blank - Request Form'!$F$7=\"CICMP\",IF(OR('Blank - Request Form'!P157=\"0\",'Blank - Request Form'!P157=\"00000\",'Blank - Request Form'!P157=0),\"\",'Blank - Request Form'!P157),\"\"))","v":""},{"$f":"IF('Blank - Request Form'!$F$6=\"CICMP\",IF(OR('Blank - Request Form'!H157=\"0\",'Blank - Request Form'!H157=\"00000\",'Blank - Request Form'!H157=0),\"\",'Blank - Request Form'!H157),IF('Blank - Request Form'!$F$7=\"CICMP\",IF(OR('Blank - Request Form'!Q157=\"0\",'Blank - Request Form'!Q157=\"00000\",'Blank - Request Form'!Q157=0),\"\",'Blank - Request Form'!Q157),\"\"))","v":""},{"$f":"IF('Blank - Request Form'!$F$6=\"CICMP\",IF(OR('Blank - Request Form'!I157=\"0\",'Blank - Request Form'!I157=\"00000\",'Blank - Request Form'!I157=0),\"\",'Blank - Request Form'!I157),IF('Blank - Request Form'!$F$7=\"CICMP\",IF(OR('Blank - Request Form'!R157=\"0\",'Blank - Request Form'!R157=\"00000\",'Blank - Request Form'!R157=0),\"\",'Blank - Request Form'!R157),\"\"))","v":""},null,{"$f":"IF('Blank - Request Form'!$F$6=\"CICMP\",IF('Blank - Request Form'!K157=0,\"\",'Blank - Request Form'!K157),IF('Blank - Request Form'!$F$7=\"CICMP\",IF('Blank - Request Form'!T157=0,\"\",'Blank - Request Form'!T157),\"\"))","v":""},null,null,null,{"$f":"IF(M123<>\"\",'Blank - Request Form'!$M$2,\"\")","v":""},{"$f":"IF('Blank - Request Form'!$F$6=\"CICMP\",IF('Blank - Request Form'!J157=0,\"\",'Blank - Request Form'!J157),IF('Blank - Request Form'!$F$7=\"CICMP\",IF('Blank - Request Form'!S157=0,\"\",'Blank - Request Form'!S157),\"\"))","v":""},"",123]
[{"$f":"IF('Blank - Request Form'!$F$6=\"CICMP\",IF('Blank - Request Form'!D158=0,\"\",'Blank - Request Form'!D158),IF('Blank - Request Form'!$F$7=\"CICMP\",IF('Blank - Request Form'!M158=0,\"\",'Blank - Request Form'!M158),\"\"))","v":""},{"$f":"IF('Blank - Request Form'!$F$6=\"CICMP\",IF('Blank - Request Form'!E158=0,\"\",'Blank - Request Form'!E158),IF('Blank - Request Form'!$F$7=\"CICMP\",IF('Blank - Request Form'!N158=0,\"\",'Blank - Request Form'!N158),\"\"))","v":""},{"$f":"IF('Blank - Request Form'!$F$6=\"CICMP\",IF(OR('Blank - Request Form'!F158=\"000\",'Blank - Request Form'!F158=0),\"\",'Blank - Request Form'!F158),IF('Blank - Request Form'!$F$7=\"CICMP\",IF(OR('Blank - Request Form'!O158=\"000\",'Blank - Request Form'!O158=0),\"\",'Blank - Request Form'!O158),\"\"))","v":""},{"$f":"IF('Blank - Request Form'!$F$6=\"CICMP\",IF(OR('Blank - Request Form'!G158=\"0\",'Blank - Request Form'!G158=\"00000\",'Blank - Request Form'!G158=0),\"\",'Blank - Request Form'!G158),IF('Blank - Request Form'!$F$7=\"CICMP\",IF(OR('Blank - Request Form'!P158=\"0\",'Blank - Request Form'!P158=\"00000\",'Blank - Request Form'!P158=0),\"\",'Blank - Request Form'!P158),\"\"))","v":""},{"$f":"IF('Blank - Request Form'!$F$6=\"CICMP\",IF(OR('Blank - Request Form'!H158=\"0\",'Blank - Request Form'!H158=\"00000\",'Blank - Request Form'!H158=0),\"\",'Blank - Request Form'!H158),IF('Blank - Request Form'!$F$7=\"CICMP\",IF(OR('Blank - Request Form'!Q158=\"0\",'Blank - Request Form'!Q158=\"00000\",'Blank - Request Form'!Q158=0),\"\",'Blank - Request Form'!Q158),\"\"))","v":""},{"$f":"IF('Blank - Request Form'!$F$6=\"CICMP\",IF(OR('Blank - Request Form'!I158=\"0\",'Blank - Request Form'!I158=\"00000\",'Blank - Request Form'!I158=0),\"\",'Blank - Request Form'!I158),IF('Blank - Request Form'!$F$7=\"CICMP\",IF(OR('Blank - Request Form'!R158=\"0\",'Blank - Request Form'!R158=\"00000\",'Blank - Request Form'!R158=0),\"\",'Blank - Request Form'!R158),\"\"))","v":""},null,{"$f":"IF('Blank - Request Form'!$F$6=\"CICMP\",IF('Blank - Request Form'!K158=0,\"\",'Blank - Request Form'!K158),IF('Blank - Request Form'!$F$7=\"CICMP\",IF('Blank - Request Form'!T158=0,\"\",'Blank - Request Form'!T158),\"\"))","v":""},null,null,null,{"$f":"IF(M124<>\"\",'Blank - Request Form'!$M$2,\"\")","v":""},{"$f":"IF('Blank - Request Form'!$F$6=\"CICMP\",IF('Blank - Request Form'!J158=0,\"\",'Blank - Request Form'!J158),IF('Blank - Request Form'!$F$7=\"CICMP\",IF('Blank - Request Form'!S158=0,\"\",'Blank - Request Form'!S158),\"\"))","v":""},"",124]
[{"$f":"IF('Blank - Request Form'!$F$6=\"CICMP\",IF('Blank - Request Form'!D159=0,\"\",'Blank - Request Form'!D159),IF('Blank - Request Form'!$F$7=\"CICMP\",IF('Blank - Request Form'!M159=0,\"\",'Blank - Request Form'!M159),\"\"))","v":""},{"$f":"IF('Blank - Request Form'!$F$6=\"CICMP\",IF('Blank - Request Form'!E159=0,\"\",'Blank - Request Form'!E159),IF('Blank - Request Form'!$F$7=\"CICMP\",IF('Blank - Request Form'!N159=0,\"\",'Blank - Request Form'!N159),\"\"))","v":""},{"$f":"IF('Blank - Request Form'!$F$6=\"CICMP\",IF(OR('Blank - Request Form'!F159=\"000\",'Blank - Request Form'!F159=0),\"\",'Blank - Request Form'!F159),IF('Blank - Request Form'!$F$7=\"CICMP\",IF(OR('Blank - Request Form'!O159=\"000\",'Blank - Request Form'!O159=0),\"\",'Blank - Request Form'!O159),\"\"))","v":""},{"$f":"IF('Blank - Request Form'!$F$6=\"CICMP\",IF(OR('Blank - Request Form'!G159=\"0\",'Blank - Request Form'!G159=\"00000\",'Blank - Request Form'!G159=0),\"\",'Blank - Request Form'!G159),IF('Blank - Request Form'!$F$7=\"CICMP\",IF(OR('Blank - Request Form'!P159=\"0\",'Blank - Request Form'!P159=\"00000\",'Blank - Request Form'!P159=0),\"\",'Blank - Request Form'!P159),\"\"))","v":""},{"$f":"IF('Blank - Request Form'!$F$6=\"CICMP\",IF(OR('Blank - Request Form'!H159=\"0\",'Blank - Request Form'!H159=\"00000\",'Blank - Request Form'!H159=0),\"\",'Blank - Request Form'!H159),IF('Blank - Request Form'!$F$7=\"CICMP\",IF(OR('Blank - Request Form'!Q159=\"0\",'Blank - Request Form'!Q159=\"00000\",'Blank - Request Form'!Q159=0),\"\",'Blank - Request Form'!Q159),\"\"))","v":""},{"$f":"IF('Blank - Request Form'!$F$6=\"CICMP\",IF(OR('Blank - Request Form'!I159=\"0\",'Blank - Request Form'!I159=\"00000\",'Blank - Request Form'!I159=0),\"\",'Blank - Request Form'!I159),IF('Blank - Request Form'!$F$7=\"CICMP\",IF(OR('Blank - Request Form'!R159=\"0\",'Blank - Request Form'!R159=\"00000\",'Blank - Request Form'!R159=0),\"\",'Blank - Request Form'!R159),\"\"))","v":""},null,{"$f":"IF('Blank - Request Form'!$F$6=\"CICMP\",IF('Blank - Request Form'!K159=0,\"\",'Blank - Request Form'!K159),IF('Blank - Request Form'!$F$7=\"CICMP\",IF('Blank - Request Form'!T159=0,\"\",'Blank - Request Form'!T159),\"\"))","v":""},null,null,null,{"$f":"IF(M125<>\"\",'Blank - Request Form'!$M$2,\"\")","v":""},{"$f":"IF('Blank - Request Form'!$F$6=\"CICMP\",IF('Blank - Request Form'!J159=0,\"\",'Blank - Request Form'!J159),IF('Blank - Request Form'!$F$7=\"CICMP\",IF('Blank - Request Form'!S159=0,\"\",'Blank - Request Form'!S159),\"\"))","v":""},"",125]
[{"$f":"IF('Blank - Request Form'!$F$6=\"CICMP\",IF('Blank - Request Form'!D160=0,\"\",'Blank - Request Form'!D160),IF('Blank - Request Form'!$F$7=\"CICMP\",IF('Blank - Request Form'!M160=0,\"\",'Blank - Request Form'!M160),\"\"))","v":""},{"$f":"IF('Blank - Request Form'!$F$6=\"CICMP\",IF('Blank - Request Form'!E160=0,\"\",'Blank - Request Form'!E160),IF('Blank - Request Form'!$F$7=\"CICMP\",IF('Blank - Request Form'!N160=0,\"\",'Blank - Request Form'!N160),\"\"))","v":""},{"$f":"IF('Blank - Request Form'!$F$6=\"CICMP\",IF(OR('Blank - Request Form'!F160=\"000\",'Blank - Request Form'!F160=0),\"\",'Blank - Request Form'!F160),IF('Blank - Request Form'!$F$7=\"CICMP\",IF(OR('Blank - Request Form'!O160=\"000\",'Blank - Request Form'!O160=0),\"\",'Blank - Request Form'!O160),\"\"))","v":""},{"$f":"IF('Blank - Request Form'!$F$6=\"CICMP\",IF(OR('Blank - Request Form'!G160=\"0\",'Blank - Request Form'!G160=\"00000\",'Blank - Request Form'!G160=0),\"\",'Blank - Request Form'!G160),IF('Blank - Request Form'!$F$7=\"CICMP\",IF(OR('Blank - Request Form'!P160=\"0\",'Blank - Request Form'!P160=\"00000\",'Blank - Request Form'!P160=0),\"\",'Blank - Request Form'!P160),\"\"))","v":""},{"$f":"IF('Blank - Request Form'!$F$6=\"CICMP\",IF(OR('Blank - Request Form'!H160=\"0\",'Blank - Request Form'!H160=\"00000\",'Blank - Request Form'!H160=0),\"\",'Blank - Request Form'!H160),IF('Blank - Request Form'!$F$7=\"CICMP\",IF(OR('Blank - Request Form'!Q160=\"0\",'Blank - Request Form'!Q160=\"00000\",'Blank - Request Form'!Q160=0),\"\",'Blank - Request Form'!Q160),\"\"))","v":""},{"$f":"IF('Blank - Request Form'!$F$6=\"CICMP\",IF(OR('Blank - Request Form'!I160=\"0\",'Blank - Request Form'!I160=\"00000\",'Blank - Request Form'!I160=0),\"\",'Blank - Request Form'!I160),IF('Blank - Request Form'!$F$7=\"CICMP\",IF(OR('Blank - Request Form'!R160=\"0\",'Blank - Request Form'!R160=\"00000\",'Blank - Request Form'!R160=0),\"\",'Blank - Request Form'!R160),\"\"))","v":""},null,{"$f":"IF('Blank - Request Form'!$F$6=\"CICMP\",IF('Blank - Request Form'!K160=0,\"\",'Blank - Request Form'!K160),IF('Blank - Request Form'!$F$7=\"CICMP\",IF('Blank - Request Form'!T160=0,\"\",'Blank - Request Form'!T160),\"\"))","v":""},null,null,null,{"$f":"IF(M126<>\"\",'Blank - Request Form'!$M$2,\"\")","v":""},{"$f":"IF('Blank - Request Form'!$F$6=\"CICMP\",IF('Blank - Request Form'!J160=0,\"\",'Blank - Request Form'!J160),IF('Blank - Request Form'!$F$7=\"CICMP\",IF('Blank - Request Form'!S160=0,\"\",'Blank - Request Form'!S160),\"\"))","v":""},"",126]
[{"$f":"IF('Blank - Request Form'!$F$6=\"CICMP\",IF('Blank - Request Form'!D161=0,\"\",'Blank - Request Form'!D161),IF('Blank - Request Form'!$F$7=\"CICMP\",IF('Blank - Request Form'!M161=0,\"\",'Blank - Request Form'!M161),\"\"))","v":""},{"$f":"IF('Blank - Request Form'!$F$6=\"CICMP\",IF('Blank - Request Form'!E161=0,\"\",'Blank - Request Form'!E161),IF('Blank - Request Form'!$F$7=\"CICMP\",IF('Blank - Request Form'!N161=0,\"\",'Blank - Request Form'!N161),\"\"))","v":""},{"$f":"IF('Blank - Request Form'!$F$6=\"CICMP\",IF(OR('Blank - Request Form'!F161=\"000\",'Blank - Request Form'!F161=0),\"\",'Blank - Request Form'!F161),IF('Blank - Request Form'!$F$7=\"CICMP\",IF(OR('Blank - Request Form'!O161=\"000\",'Blank - Request Form'!O161=0),\"\",'Blank - Request Form'!O161),\"\"))","v":""},{"$f":"IF('Blank - Request Form'!$F$6=\"CICMP\",IF(OR('Blank - Request Form'!G161=\"0\",'Blank - Request Form'!G161=\"00000\",'Blank - Request Form'!G161=0),\"\",'Blank - Request Form'!G161),IF('Blank - Request Form'!$F$7=\"CICMP\",IF(OR('Blank - Request Form'!P161=\"0\",'Blank - Request Form'!P161=\"00000\",'Blank - Request Form'!P161=0),\"\",'Blank - Request Form'!P161),\"\"))","v":""},{"$f":"IF('Blank - Request Form'!$F$6=\"CICMP\",IF(OR('Blank - Request Form'!H161=\"0\",'Blank - Request Form'!H161=\"00000\",'Blank - Request Form'!H161=0),\"\",'Blank - Request Form'!H161),IF('Blank - Request Form'!$F$7=\"CICMP\",IF(OR('Blank - Request Form'!Q161=\"0\",'Blank - Request Form'!Q161=\"00000\",'Blank - Request Form'!Q161=0),\"\",'Blank - Request Form'!Q161),\"\"))","v":""},{"$f":"IF('Blank - Request Form'!$F$6=\"CICMP\",IF(OR('Blank - Request Form'!I161=\"0\",'Blank - Request Form'!I161=\"00000\",'Blank - Request Form'!I161=0),\"\",'Blank - Request Form'!I161),IF('Blank - Request Form'!$F$7=\"CICMP\",IF(OR('Blank - Request Form'!R161=\"0\",'Blank - Request Form'!R161=\"00000\",'Blank - Request Form'!R161=0),\"\",'Blank - Request Form'!R161),\"\"))","v":""},null,{"$f":"IF('Blank - Request Form'!$F$6=\"CICMP\",IF('Blank - Request Form'!K161=0,\"\",'Blank - Request Form'!K161),IF('Blank - Request Form'!$F$7=\"CICMP\",IF('Blank - Request Form'!T161=0,\"\",'Blank - Request Form'!T161),\"\"))","v":""},null,null,null,{"$f":"IF(M127<>\"\",'Blank - Request Form'!$M$2,\"\")","v":""},{"$f":"IF('Blank - Request Form'!$F$6=\"CICMP\",IF('Blank - Request Form'!J161=0,\"\",'Blank - Request Form'!J161),IF('Blank - Request Form'!$F$7=\"CICMP\",IF('Blank - Request Form'!S161=0,\"\",'Blank - Request Form'!S161),\"\"))","v":""},"",127]
[{"$f":"IF('Blank - Request Form'!$F$6=\"CICMP\",IF('Blank - Request Form'!D162=0,\"\",'Blank - Request Form'!D162),IF('Blank - Request Form'!$F$7=\"CICMP\",IF('Blank - Request Form'!M162=0,\"\",'Blank - Request Form'!M162),\"\"))","v":""},{"$f":"IF('Blank - Request Form'!$F$6=\"CICMP\",IF('Blank - Request Form'!E162=0,\"\",'Blank - Request Form'!E162),IF('Blank - Request Form'!$F$7=\"CICMP\",IF('Blank - Request Form'!N162=0,\"\",'Blank - Request Form'!N162),\"\"))","v":""},{"$f":"IF('Blank - Request Form'!$F$6=\"CICMP\",IF(OR('Blank - Request Form'!F162=\"000\",'Blank - Request Form'!F162=0),\"\",'Blank - Request Form'!F162),IF('Blank - Request Form'!$F$7=\"CICMP\",IF(OR('Blank - Request Form'!O162=\"000\",'Blank - Request Form'!O162=0),\"\",'Blank - Request Form'!O162),\"\"))","v":""},{"$f":"IF('Blank - Request Form'!$F$6=\"CICMP\",IF(OR('Blank - Request Form'!G162=\"0\",'Blank - Request Form'!G162=\"00000\",'Blank - Request Form'!G162=0),\"\",'Blank - Request Form'!G162),IF('Blank - Request Form'!$F$7=\"CICMP\",IF(OR('Blank - Request Form'!P162=\"0\",'Blank - Request Form'!P162=\"00000\",'Blank - Request Form'!P162=0),\"\",'Blank - Request Form'!P162),\"\"))","v":""},{"$f":"IF('Blank - Request Form'!$F$6=\"CICMP\",IF(OR('Blank - Request Form'!H162=\"0\",'Blank - Request Form'!H162=\"00000\",'Blank - Request Form'!H162=0),\"\",'Blank - Request Form'!H162),IF('Blank - Request Form'!$F$7=\"CICMP\",IF(OR('Blank - Request Form'!Q162=\"0\",'Blank - Request Form'!Q162=\"00000\",'Blank - Request Form'!Q162=0),\"\",'Blank - Request Form'!Q162),\"\"))","v":""},{"$f":"IF('Blank - Request Form'!$F$6=\"CICMP\",IF(OR('Blank - Request Form'!I162=\"0\",'Blank - Request Form'!I162=\"00000\",'Blank - Request Form'!I162=0),\"\",'Blank - Request Form'!I162),IF('Blank - Request Form'!$F$7=\"CICMP\",IF(OR('Blank - Request Form'!R162=\"0\",'Blank - Request Form'!R162=\"00000\",'Blank - Request Form'!R162=0),\"\",'Blank - Request Form'!R162),\"\"))","v":""},null,{"$f":"IF('Blank - Request Form'!$F$6=\"CICMP\",IF('Blank - Request Form'!K162=0,\"\",'Blank - Request Form'!K162),IF('Blank - Request Form'!$F$7=\"CICMP\",IF('Blank - Request Form'!T162=0,\"\",'Blank - Request Form'!T162),\"\"))","v":""},null,null,null,{"$f":"IF(M128<>\"\",'Blank - Request Form'!$M$2,\"\")","v":""},{"$f":"IF('Blank - Request Form'!$F$6=\"CICMP\",IF('Blank - Request Form'!J162=0,\"\",'Blank - Request Form'!J162),IF('Blank - Request Form'!$F$7=\"CICMP\",IF('Blank - Request Form'!S162=0,\"\",'Blank - Request Form'!S162),\"\"))","v":""},"",128]
[{"$f":"IF('Blank - Request Form'!$F$6=\"CICMP\",IF('Blank - Request Form'!D163=0,\"\",'Blank - Request Form'!D163),IF('Blank - Request Form'!$F$7=\"CICMP\",IF('Blank - Request Form'!M163=0,\"\",'Blank - Request Form'!M163),\"\"))","v":""},{"$f":"IF('Blank - Request Form'!$F$6=\"CICMP\",IF('Blank - Request Form'!E163=0,\"\",'Blank - Request Form'!E163),IF('Blank - Request Form'!$F$7=\"CICMP\",IF('Blank - Request Form'!N163=0,\"\",'Blank - Request Form'!N163),\"\"))","v":""},{"$f":"IF('Blank - Request Form'!$F$6=\"CICMP\",IF(OR('Blank - Request Form'!F163=\"000\",'Blank - Request Form'!F163=0),\"\",'Blank - Request Form'!F163),IF('Blank - Request Form'!$F$7=\"CICMP\",IF(OR('Blank - Request Form'!O163=\"000\",'Blank - Request Form'!O163=0),\"\",'Blank - Request Form'!O163),\"\"))","v":""},{"$f":"IF('Blank - Request Form'!$F$6=\"CICMP\",IF(OR('Blank - Request Form'!G163=\"0\",'Blank - Request Form'!G163=\"00000\",'Blank - Request Form'!G163=0),\"\",'Blank - Request Form'!G163),IF('Blank - Request Form'!$F$7=\"CICMP\",IF(OR('Blank - Request Form'!P163=\"0\",'Blank - Request Form'!P163=\"00000\",'Blank - Request Form'!P163=0),\"\",'Blank - Request Form'!P163),\"\"))","v":""},{"$f":"IF('Blank - Request Form'!$F$6=\"CICMP\",IF(OR('Blank - Request Form'!H163=\"0\",'Blank - Request Form'!H163=\"00000\",'Blank - Request Form'!H163=0),\"\",'Blank - Request Form'!H163),IF('Blank - Request Form'!$F$7=\"CICMP\",IF(OR('Blank - Request Form'!Q163=\"0\",'Blank - Request Form'!Q163=\"00000\",'Blank - Request Form'!Q163=0),\"\",'Blank - Request Form'!Q163),\"\"))","v":""},{"$f":"IF('Blank - Request Form'!$F$6=\"CICMP\",IF(OR('Blank - Request Form'!I163=\"0\",'Blank - Request Form'!I163=\"00000\",'Blank - Request Form'!I163=0),\"\",'Blank - Request Form'!I163),IF('Blank - Request Form'!$F$7=\"CICMP\",IF(OR('Blank - Request Form'!R163=\"0\",'Blank - Request Form'!R163=\"00000\",'Blank - Request Form'!R163=0),\"\",'Blank - Request Form'!R163),\"\"))","v":""},null,{"$f":"IF('Blank - Request Form'!$F$6=\"CICMP\",IF('Blank - Request Form'!K163=0,\"\",'Blank - Request Form'!K163),IF('Blank - Request Form'!$F$7=\"CICMP\",IF('Blank - Request Form'!T163=0,\"\",'Blank - Request Form'!T163),\"\"))","v":""},null,null,null,{"$f":"IF(M129<>\"\",'Blank - Request Form'!$M$2,\"\")","v":""},{"$f":"IF('Blank - Request Form'!$F$6=\"CICMP\",IF('Blank - Request Form'!J163=0,\"\",'Blank - Request Form'!J163),IF('Blank - Request Form'!$F$7=\"CICMP\",IF('Blank - Request Form'!S163=0,\"\",'Blank - Request Form'!S163),\"\"))","v":""},"",129]
[{"$f":"IF('Blank - Request Form'!$F$6=\"CICMP\",IF('Blank - Request Form'!D164=0,\"\",'Blank - Request Form'!D164),IF('Blank - Request Form'!$F$7=\"CICMP\",IF('Blank - Request Form'!M164=0,\"\",'Blank - Request Form'!M164),\"\"))","v":""},{"$f":"IF('Blank - Request Form'!$F$6=\"CICMP\",IF('Blank - Request Form'!E164=0,\"\",'Blank - Request Form'!E164),IF('Blank - Request Form'!$F$7=\"CICMP\",IF('Blank - Request Form'!N164=0,\"\",'Blank - Request Form'!N164),\"\"))","v":""},{"$f":"IF('Blank - Request Form'!$F$6=\"CICMP\",IF(OR('Blank - Request Form'!F164=\"000\",'Blank - Request Form'!F164=0),\"\",'Blank - Request Form'!F164),IF('Blank - Request Form'!$F$7=\"CICMP\",IF(OR('Blank - Request Form'!O164=\"000\",'Blank - Request Form'!O164=0),\"\",'Blank - Request Form'!O164),\"\"))","v":""},{"$f":"IF('Blank - Request Form'!$F$6=\"CICMP\",IF(OR('Blank - Request Form'!G164=\"0\",'Blank - Request Form'!G164=\"00000\",'Blank - Request Form'!G164=0),\"\",'Blank - Request Form'!G164),IF('Blank - Request Form'!$F$7=\"CICMP\",IF(OR('Blank - Request Form'!P164=\"0\",'Blank - Request Form'!P164=\"00000\",'Blank - Request Form'!P164=0),\"\",'Blank - Request Form'!P164),\"\"))","v":""},{"$f":"IF('Blank - Request Form'!$F$6=\"CICMP\",IF(OR('Blank - Request Form'!H164=\"0\",'Blank - Request Form'!H164=\"00000\",'Blank - Request Form'!H164=0),\"\",'Blank - Request Form'!H164),IF('Blank - Request Form'!$F$7=\"CICMP\",IF(OR('Blank - Request Form'!Q164=\"0\",'Blank - Request Form'!Q164=\"00000\",'Blank - Request Form'!Q164=0),\"\",'Blank - Request Form'!Q164),\"\"))","v":""},{"$f":"IF('Blank - Request Form'!$F$6=\"CICMP\",IF(OR('Blank - Request Form'!I164=\"0\",'Blank - Request Form'!I164=\"00000\",'Blank - Request Form'!I164=0),\"\",'Blank - Request Form'!I164),IF('Blank - Request Form'!$F$7=\"CICMP\",IF(OR('Blank - Request Form'!R164=\"0\",'Blank - Request Form'!R164=\"00000\",'Blank - Request Form'!R164=0),\"\",'Blank - Request Form'!R164),\"\"))","v":""},null,{"$f":"IF('Blank - Request Form'!$F$6=\"CICMP\",IF('Blank - Request Form'!K164=0,\"\",'Blank - Request Form'!K164),IF('Blank - Request Form'!$F$7=\"CICMP\",IF('Blank - Request Form'!T164=0,\"\",'Blank - Request Form'!T164),\"\"))","v":""},null,null,null,{"$f":"IF(M130<>\"\",'Blank - Request Form'!$M$2,\"\")","v":""},{"$f":"IF('Blank - Request Form'!$F$6=\"CICMP\",IF('Blank - Request Form'!J164=0,\"\",'Blank - Request Form'!J164),IF('Blank - Request Form'!$F$7=\"CICMP\",IF('Blank - Request Form'!S164=0,\"\",'Blank - Request Form'!S164),\"\"))","v":""},"",130]
[{"$f":"IF('Blank - Request Form'!$F$6=\"CICMP\",IF('Blank - Request Form'!D165=0,\"\",'Blank - Request Form'!D165),IF('Blank - Request Form'!$F$7=\"CICMP\",IF('Blank - Request Form'!M165=0,\"\",'Blank - Request Form'!M165),\"\"))","v":""},{"$f":"IF('Blank - Request Form'!$F$6=\"CICMP\",IF('Blank - Request Form'!E165=0,\"\",'Blank - Request Form'!E165),IF('Blank - Request Form'!$F$7=\"CICMP\",IF('Blank - Request Form'!N165=0,\"\",'Blank - Request Form'!N165),\"\"))","v":""},{"$f":"IF('Blank - Request Form'!$F$6=\"CICMP\",IF(OR('Blank - Request Form'!F165=\"000\",'Blank - Request Form'!F165=0),\"\",'Blank - Request Form'!F165),IF('Blank - Request Form'!$F$7=\"CICMP\",IF(OR('Blank - Request Form'!O165=\"000\",'Blank - Request Form'!O165=0),\"\",'Blank - Request Form'!O165),\"\"))","v":""},{"$f":"IF('Blank - Request Form'!$F$6=\"CICMP\",IF(OR('Blank - Request Form'!G165=\"0\",'Blank - Request Form'!G165=\"00000\",'Blank - Request Form'!G165=0),\"\",'Blank - Request Form'!G165),IF('Blank - Request Form'!$F$7=\"CICMP\",IF(OR('Blank - Request Form'!P165=\"0\",'Blank - Request Form'!P165=\"00000\",'Blank - Request Form'!P165=0),\"\",'Blank - Request Form'!P165),\"\"))","v":""},{"$f":"IF('Blank - Request Form'!$F$6=\"CICMP\",IF(OR('Blank - Request Form'!H165=\"0\",'Blank - Request Form'!H165=\"00000\",'Blank - Request Form'!H165=0),\"\",'Blank - Request Form'!H165),IF('Blank - Request Form'!$F$7=\"CICMP\",IF(OR('Blank - Request Form'!Q165=\"0\",'Blank - Request Form'!Q165=\"00000\",'Blank - Request Form'!Q165=0),\"\",'Blank - Request Form'!Q165),\"\"))","v":""},{"$f":"IF('Blank - Request Form'!$F$6=\"CICMP\",IF(OR('Blank - Request Form'!I165=\"0\",'Blank - Request Form'!I165=\"00000\",'Blank - Request Form'!I165=0),\"\",'Blank - Request Form'!I165),IF('Blank - Request Form'!$F$7=\"CICMP\",IF(OR('Blank - Request Form'!R165=\"0\",'Blank - Request Form'!R165=\"00000\",'Blank - Request Form'!R165=0),\"\",'Blank - Request Form'!R165),\"\"))","v":""},null,{"$f":"IF('Blank - Request Form'!$F$6=\"CICMP\",IF('Blank - Request Form'!K165=0,\"\",'Blank - Request Form'!K165),IF('Blank - Request Form'!$F$7=\"CICMP\",IF('Blank - Request Form'!T165=0,\"\",'Blank - Request Form'!T165),\"\"))","v":""},null,null,null,{"$f":"IF(M131<>\"\",'Blank - Request Form'!$M$2,\"\")","v":""},{"$f":"IF('Blank - Request Form'!$F$6=\"CICMP\",IF('Blank - Request Form'!J165=0,\"\",'Blank - Request Form'!J165),IF('Blank - Request Form'!$F$7=\"CICMP\",IF('Blank - Request Form'!S165=0,\"\",'Blank - Request Form'!S165),\"\"))","v":""},"",131]
[{"$f":"IF('Blank - Request Form'!$F$6=\"CICMP\",IF('Blank - Request Form'!D166=0,\"\",'Blank - Request Form'!D166),IF('Blank - Request Form'!$F$7=\"CICMP\",IF('Blank - Request Form'!M166=0,\"\",'Blank - Request Form'!M166),\"\"))","v":""},{"$f":"IF('Blank - Request Form'!$F$6=\"CICMP\",IF('Blank - Request Form'!E166=0,\"\",'Blank - Request Form'!E166),IF('Blank - Request Form'!$F$7=\"CICMP\",IF('Blank - Request Form'!N166=0,\"\",'Blank - Request Form'!N166),\"\"))","v":""},{"$f":"IF('Blank - Request Form'!$F$6=\"CICMP\",IF(OR('Blank - Request Form'!F166=\"000\",'Blank - Request Form'!F166=0),\"\",'Blank - Request Form'!F166),IF('Blank - Request Form'!$F$7=\"CICMP\",IF(OR('Blank - Request Form'!O166=\"000\",'Blank - Request Form'!O166=0),\"\",'Blank - Request Form'!O166),\"\"))","v":""},{"$f":"IF('Blank - Request Form'!$F$6=\"CICMP\",IF(OR('Blank - Request Form'!G166=\"0\",'Blank - Request Form'!G166=\"00000\",'Blank - Request Form'!G166=0),\"\",'Blank - Request Form'!G166),IF('Blank - Request Form'!$F$7=\"CICMP\",IF(OR('Blank - Request Form'!P166=\"0\",'Blank - Request Form'!P166=\"00000\",'Blank - Request Form'!P166=0),\"\",'Blank - Request Form'!P166),\"\"))","v":""},{"$f":"IF('Blank - Request Form'!$F$6=\"CICMP\",IF(OR('Blank - Request Form'!H166=\"0\",'Blank - Request Form'!H166=\"00000\",'Blank - Request Form'!H166=0),\"\",'Blank - Request Form'!H166),IF('Blank - Request Form'!$F$7=\"CICMP\",IF(OR('Blank - Request Form'!Q166=\"0\",'Blank - Request Form'!Q166=\"00000\",'Blank - Request Form'!Q166=0),\"\",'Blank - Request Form'!Q166),\"\"))","v":""},{"$f":"IF('Blank - Request Form'!$F$6=\"CICMP\",IF(OR('Blank - Request Form'!I166=\"0\",'Blank - Request Form'!I166=\"00000\",'Blank - Request Form'!I166=0),\"\",'Blank - Request Form'!I166),IF('Blank - Request Form'!$F$7=\"CICMP\",IF(OR('Blank - Request Form'!R166=\"0\",'Blank - Request Form'!R166=\"00000\",'Blank - Request Form'!R166=0),\"\",'Blank - Request Form'!R166),\"\"))","v":""},null,{"$f":"IF('Blank - Request Form'!$F$6=\"CICMP\",IF('Blank - Request Form'!K166=0,\"\",'Blank - Request Form'!K166),IF('Blank - Request Form'!$F$7=\"CICMP\",IF('Blank - Request Form'!T166=0,\"\",'Blank - Request Form'!T166),\"\"))","v":""},null,null,null,{"$f":"IF(M132<>\"\",'Blank - Request Form'!$M$2,\"\")","v":""},{"$f":"IF('Blank - Request Form'!$F$6=\"CICMP\",IF('Blank - Request Form'!J166=0,\"\",'Blank - Request Form'!J166),IF('Blank - Request Form'!$F$7=\"CICMP\",IF('Blank - Request Form'!S166=0,\"\",'Blank - Request Form'!S166),\"\"))","v":""},"",132]
[{"$f":"IF('Blank - Request Form'!$F$6=\"CICMP\",IF('Blank - Request Form'!D167=0,\"\",'Blank - Request Form'!D167),IF('Blank - Request Form'!$F$7=\"CICMP\",IF('Blank - Request Form'!M167=0,\"\",'Blank - Request Form'!M167),\"\"))","v":""},{"$f":"IF('Blank - Request Form'!$F$6=\"CICMP\",IF('Blank - Request Form'!E167=0,\"\",'Blank - Request Form'!E167),IF('Blank - Request Form'!$F$7=\"CICMP\",IF('Blank - Request Form'!N167=0,\"\",'Blank - Request Form'!N167),\"\"))","v":""},{"$f":"IF('Blank - Request Form'!$F$6=\"CICMP\",IF(OR('Blank - Request Form'!F167=\"000\",'Blank - Request Form'!F167=0),\"\",'Blank - Request Form'!F167),IF('Blank - Request Form'!$F$7=\"CICMP\",IF(OR('Blank - Request Form'!O167=\"000\",'Blank - Request Form'!O167=0),\"\",'Blank - Request Form'!O167),\"\"))","v":""},{"$f":"IF('Blank - Request Form'!$F$6=\"CICMP\",IF(OR('Blank - Request Form'!G167=\"0\",'Blank - Request Form'!G167=\"00000\",'Blank - Request Form'!G167=0),\"\",'Blank - Request Form'!G167),IF('Blank - Request Form'!$F$7=\"CICMP\",IF(OR('Blank - Request Form'!P167=\"0\",'Blank - Request Form'!P167=\"00000\",'Blank - Request Form'!P167=0),\"\",'Blank - Request Form'!P167),\"\"))","v":""},{"$f":"IF('Blank - Request Form'!$F$6=\"CICMP\",IF(OR('Blank - Request Form'!H167=\"0\",'Blank - Request Form'!H167=\"00000\",'Blank - Request Form'!H167=0),\"\",'Blank - Request Form'!H167),IF('Blank - Request Form'!$F$7=\"CICMP\",IF(OR('Blank - Request Form'!Q167=\"0\",'Blank - Request Form'!Q167=\"00000\",'Blank - Request Form'!Q167=0),\"\",'Blank - Request Form'!Q167),\"\"))","v":""},{"$f":"IF('Blank - Request Form'!$F$6=\"CICMP\",IF(OR('Blank - Request Form'!I167=\"0\",'Blank - Request Form'!I167=\"00000\",'Blank - Request Form'!I167=0),\"\",'Blank - Request Form'!I167),IF('Blank - Request Form'!$F$7=\"CICMP\",IF(OR('Blank - Request Form'!R167=\"0\",'Blank - Request Form'!R167=\"00000\",'Blank - Request Form'!R167=0),\"\",'Blank - Request Form'!R167),\"\"))","v":""},null,{"$f":"IF('Blank - Request Form'!$F$6=\"CICMP\",IF('Blank - Request Form'!K167=0,\"\",'Blank - Request Form'!K167),IF('Blank - Request Form'!$F$7=\"CICMP\",IF('Blank - Request Form'!T167=0,\"\",'Blank - Request Form'!T167),\"\"))","v":""},null,null,null,{"$f":"IF(M133<>\"\",'Blank - Request Form'!$M$2,\"\")","v":""},{"$f":"IF('Blank - Request Form'!$F$6=\"CICMP\",IF('Blank - Request Form'!J167=0,\"\",'Blank - Request Form'!J167),IF('Blank - Request Form'!$F$7=\"CICMP\",IF('Blank - Request Form'!S167=0,\"\",'Blank - Request Form'!S167),\"\"))","v":""},"",133]
[{"$f":"IF('Blank - Request Form'!$F$6=\"CICMP\",IF('Blank - Request Form'!D168=0,\"\",'Blank - Request Form'!D168),IF('Blank - Request Form'!$F$7=\"CICMP\",IF('Blank - Request Form'!M168=0,\"\",'Blank - Request Form'!M168),\"\"))","v":""},{"$f":"IF('Blank - Request Form'!$F$6=\"CICMP\",IF('Blank - Request Form'!E168=0,\"\",'Blank - Request Form'!E168),IF('Blank - Request Form'!$F$7=\"CICMP\",IF('Blank - Request Form'!N168=0,\"\",'Blank - Request Form'!N168),\"\"))","v":""},{"$f":"IF('Blank - Request Form'!$F$6=\"CICMP\",IF(OR('Blank - Request Form'!F168=\"000\",'Blank - Request Form'!F168=0),\"\",'Blank - Request Form'!F168),IF('Blank - Request Form'!$F$7=\"CICMP\",IF(OR('Blank - Request Form'!O168=\"000\",'Blank - Request Form'!O168=0),\"\",'Blank - Request Form'!O168),\"\"))","v":""},{"$f":"IF('Blank - Request Form'!$F$6=\"CICMP\",IF(OR('Blank - Request Form'!G168=\"0\",'Blank - Request Form'!G168=\"00000\",'Blank - Request Form'!G168=0),\"\",'Blank - Request Form'!G168),IF('Blank - Request Form'!$F$7=\"CICMP\",IF(OR('Blank - Request Form'!P168=\"0\",'Blank - Request Form'!P168=\"00000\",'Blank - Request Form'!P168=0),\"\",'Blank - Request Form'!P168),\"\"))","v":""},{"$f":"IF('Blank - Request Form'!$F$6=\"CICMP\",IF(OR('Blank - Request Form'!H168=\"0\",'Blank - Request Form'!H168=\"00000\",'Blank - Request Form'!H168=0),\"\",'Blank - Request Form'!H168),IF('Blank - Request Form'!$F$7=\"CICMP\",IF(OR('Blank - Request Form'!Q168=\"0\",'Blank - Request Form'!Q168=\"00000\",'Blank - Request Form'!Q168=0),\"\",'Blank - Request Form'!Q168),\"\"))","v":""},{"$f":"IF('Blank - Request Form'!$F$6=\"CICMP\",IF(OR('Blank - Request Form'!I168=\"0\",'Blank - Request Form'!I168=\"00000\",'Blank - Request Form'!I168=0),\"\",'Blank - Request Form'!I168),IF('Blank - Request Form'!$F$7=\"CICMP\",IF(OR('Blank - Request Form'!R168=\"0\",'Blank - Request Form'!R168=\"00000\",'Blank - Request Form'!R168=0),\"\",'Blank - Request Form'!R168),\"\"))","v":""},null,{"$f":"IF('Blank - Request Form'!$F$6=\"CICMP\",IF('Blank - Request Form'!K168=0,\"\",'Blank - Request Form'!K168),IF('Blank - Request Form'!$F$7=\"CICMP\",IF('Blank - Request Form'!T168=0,\"\",'Blank - Request Form'!T168),\"\"))","v":""},null,null,null,{"$f":"IF(M134<>\"\",'Blank - Request Form'!$M$2,\"\")","v":""},{"$f":"IF('Blank - Request Form'!$F$6=\"CICMP\",IF('Blank - Request Form'!J168=0,\"\",'Blank - Request Form'!J168),IF('Blank - Request Form'!$F$7=\"CICMP\",IF('Blank - Request Form'!S168=0,\"\",'Blank - Request Form'!S168),\"\"))","v":""},"",134]
[{"$f":"IF('Blank - Request Form'!$F$6=\"CICMP\",IF('Blank - Request Form'!D169=0,\"\",'Blank - Request Form'!D169),IF('Blank - Request Form'!$F$7=\"CICMP\",IF('Blank - Request Form'!M169=0,\"\",'Blank - Request Form'!M169),\"\"))","v":""},{"$f":"IF('Blank - Request Form'!$F$6=\"CICMP\",IF('Blank - Request Form'!E169=0,\"\",'Blank - Request Form'!E169),IF('Blank - Request Form'!$F$7=\"CICMP\",IF('Blank - Request Form'!N169=0,\"\",'Blank - Request Form'!N169),\"\"))","v":""},{"$f":"IF('Blank - Request Form'!$F$6=\"CICMP\",IF(OR('Blank - Request Form'!F169=\"000\",'Blank - Request Form'!F169=0),\"\",'Blank - Request Form'!F169),IF('Blank - Request Form'!$F$7=\"CICMP\",IF(OR('Blank - Request Form'!O169=\"000\",'Blank - Request Form'!O169=0),\"\",'Blank - Request Form'!O169),\"\"))","v":""},{"$f":"IF('Blank - Request Form'!$F$6=\"CICMP\",IF(OR('Blank - Request Form'!G169=\"0\",'Blank - Request Form'!G169=\"00000\",'Blank - Request Form'!G169=0),\"\",'Blank - Request Form'!G169),IF('Blank - Request Form'!$F$7=\"CICMP\",IF(OR('Blank - Request Form'!P169=\"0\",'Blank - Request Form'!P169=\"00000\",'Blank - Request Form'!P169=0),\"\",'Blank - Request Form'!P169),\"\"))","v":""},{"$f":"IF('Blank - Request Form'!$F$6=\"CICMP\",IF(OR('Blank - Request Form'!H169=\"0\",'Blank - Request Form'!H169=\"00000\",'Blank - Request Form'!H169=0),\"\",'Blank - Request Form'!H169),IF('Blank - Request Form'!$F$7=\"CICMP\",IF(OR('Blank - Request Form'!Q169=\"0\",'Blank - Request Form'!Q169=\"00000\",'Blank - Request Form'!Q169=0),\"\",'Blank - Request Form'!Q169),\"\"))","v":""},{"$f":"IF('Blank - Request Form'!$F$6=\"CICMP\",IF(OR('Blank - Request Form'!I169=\"0\",'Blank - Request Form'!I169=\"00000\",'Blank - Request Form'!I169=0),\"\",'Blank - Request Form'!I169),IF('Blank - Request Form'!$F$7=\"CICMP\",IF(OR('Blank - Request Form'!R169=\"0\",'Blank - Request Form'!R169=\"00000\",'Blank - Request Form'!R169=0),\"\",'Blank - Request Form'!R169),\"\"))","v":""},null,{"$f":"IF('Blank - Request Form'!$F$6=\"CICMP\",IF('Blank - Request Form'!K169=0,\"\",'Blank - Request Form'!K169),IF('Blank - Request Form'!$F$7=\"CICMP\",IF('Blank - Request Form'!T169=0,\"\",'Blank - Request Form'!T169),\"\"))","v":""},null,null,null,{"$f":"IF(M135<>\"\",'Blank - Request Form'!$M$2,\"\")","v":""},{"$f":"IF('Blank - Request Form'!$F$6=\"CICMP\",IF('Blank - Request Form'!J169=0,\"\",'Blank - Request Form'!J169),IF('Blank - Request Form'!$F$7=\"CICMP\",IF('Blank - Request Form'!S169=0,\"\",'Blank - Request Form'!S169),\"\"))","v":""},"",135]
[{"$f":"IF('Blank - Request Form'!$F$6=\"CICMP\",IF('Blank - Request Form'!D170=0,\"\",'Blank - Request Form'!D170),IF('Blank - Request Form'!$F$7=\"CICMP\",IF('Blank - Request Form'!M170=0,\"\",'Blank - Request Form'!M170),\"\"))","v":""},{"$f":"IF('Blank - Request Form'!$F$6=\"CICMP\",IF('Blank - Request Form'!E170=0,\"\",'Blank - Request Form'!E170),IF('Blank - Request Form'!$F$7=\"CICMP\",IF('Blank - Request Form'!N170=0,\"\",'Blank - Request Form'!N170),\"\"))","v":""},{"$f":"IF('Blank - Request Form'!$F$6=\"CICMP\",IF(OR('Blank - Request Form'!F170=\"000\",'Blank - Request Form'!F170=0),\"\",'Blank - Request Form'!F170),IF('Blank - Request Form'!$F$7=\"CICMP\",IF(OR('Blank - Request Form'!O170=\"000\",'Blank - Request Form'!O170=0),\"\",'Blank - Request Form'!O170),\"\"))","v":""},{"$f":"IF('Blank - Request Form'!$F$6=\"CICMP\",IF(OR('Blank - Request Form'!G170=\"0\",'Blank - Request Form'!G170=\"00000\",'Blank - Request Form'!G170=0),\"\",'Blank - Request Form'!G170),IF('Blank - Request Form'!$F$7=\"CICMP\",IF(OR('Blank - Request Form'!P170=\"0\",'Blank - Request Form'!P170=\"00000\",'Blank - Request Form'!P170=0),\"\",'Blank - Request Form'!P170),\"\"))","v":""},{"$f":"IF('Blank - Request Form'!$F$6=\"CICMP\",IF(OR('Blank - Request Form'!H170=\"0\",'Blank - Request Form'!H170=\"00000\",'Blank - Request Form'!H170=0),\"\",'Blank - Request Form'!H170),IF('Blank - Request Form'!$F$7=\"CICMP\",IF(OR('Blank - Request Form'!Q170=\"0\",'Blank - Request Form'!Q170=\"00000\",'Blank - Request Form'!Q170=0),\"\",'Blank - Request Form'!Q170),\"\"))","v":""},{"$f":"IF('Blank - Request Form'!$F$6=\"CICMP\",IF(OR('Blank - Request Form'!I170=\"0\",'Blank - Request Form'!I170=\"00000\",'Blank - Request Form'!I170=0),\"\",'Blank - Request Form'!I170),IF('Blank - Request Form'!$F$7=\"CICMP\",IF(OR('Blank - Request Form'!R170=\"0\",'Blank - Request Form'!R170=\"00000\",'Blank - Request Form'!R170=0),\"\",'Blank - Request Form'!R170),\"\"))","v":""},null,{"$f":"IF('Blank - Request Form'!$F$6=\"CICMP\",IF('Blank - Request Form'!K170=0,\"\",'Blank - Request Form'!K170),IF('Blank - Request Form'!$F$7=\"CICMP\",IF('Blank - Request Form'!T170=0,\"\",'Blank - Request Form'!T170),\"\"))","v":""},null,null,null,{"$f":"IF(M136<>\"\",'Blank - Request Form'!$M$2,\"\")","v":""},{"$f":"IF('Blank - Request Form'!$F$6=\"CICMP\",IF('Blank - Request Form'!J170=0,\"\",'Blank - Request Form'!J170),IF('Blank - Request Form'!$F$7=\"CICMP\",IF('Blank - Request Form'!S170=0,\"\",'Blank - Request Form'!S170),\"\"))","v":""},"",136]
[{"$f":"IF('Blank - Request Form'!$F$6=\"CICMP\",IF('Blank - Request Form'!D171=0,\"\",'Blank - Request Form'!D171),IF('Blank - Request Form'!$F$7=\"CICMP\",IF('Blank - Request Form'!M171=0,\"\",'Blank - Request Form'!M171),\"\"))","v":""},{"$f":"IF('Blank - Request Form'!$F$6=\"CICMP\",IF('Blank - Request Form'!E171=0,\"\",'Blank - Request Form'!E171),IF('Blank - Request Form'!$F$7=\"CICMP\",IF('Blank - Request Form'!N171=0,\"\",'Blank - Request Form'!N171),\"\"))","v":""},{"$f":"IF('Blank - Request Form'!$F$6=\"CICMP\",IF(OR('Blank - Request Form'!F171=\"000\",'Blank - Request Form'!F171=0),\"\",'Blank - Request Form'!F171),IF('Blank - Request Form'!$F$7=\"CICMP\",IF(OR('Blank - Request Form'!O171=\"000\",'Blank - Request Form'!O171=0),\"\",'Blank - Request Form'!O171),\"\"))","v":""},{"$f":"IF('Blank - Request Form'!$F$6=\"CICMP\",IF(OR('Blank - Request Form'!G171=\"0\",'Blank - Request Form'!G171=\"00000\",'Blank - Request Form'!G171=0),\"\",'Blank - Request Form'!G171),IF('Blank - Request Form'!$F$7=\"CICMP\",IF(OR('Blank - Request Form'!P171=\"0\",'Blank - Request Form'!P171=\"00000\",'Blank - Request Form'!P171=0),\"\",'Blank - Request Form'!P171),\"\"))","v":""},{"$f":"IF('Blank - Request Form'!$F$6=\"CICMP\",IF(OR('Blank - Request Form'!H171=\"0\",'Blank - Request Form'!H171=\"00000\",'Blank - Request Form'!H171=0),\"\",'Blank - Request Form'!H171),IF('Blank - Request Form'!$F$7=\"CICMP\",IF(OR('Blank - Request Form'!Q171=\"0\",'Blank - Request Form'!Q171=\"00000\",'Blank - Request Form'!Q171=0),\"\",'Blank - Request Form'!Q171),\"\"))","v":""},{"$f":"IF('Blank - Request Form'!$F$6=\"CICMP\",IF(OR('Blank - Request Form'!I171=\"0\",'Blank - Request Form'!I171=\"00000\",'Blank - Request Form'!I171=0),\"\",'Blank - Request Form'!I171),IF('Blank - Request Form'!$F$7=\"CICMP\",IF(OR('Blank - Request Form'!R171=\"0\",'Blank - Request Form'!R171=\"00000\",'Blank - Request Form'!R171=0),\"\",'Blank - Request Form'!R171),\"\"))","v":""},null,{"$f":"IF('Blank - Request Form'!$F$6=\"CICMP\",IF('Blank - Request Form'!K171=0,\"\",'Blank - Request Form'!K171),IF('Blank - Request Form'!$F$7=\"CICMP\",IF('Blank - Request Form'!T171=0,\"\",'Blank - Request Form'!T171),\"\"))","v":""},null,null,null,{"$f":"IF(M137<>\"\",'Blank - Request Form'!$M$2,\"\")","v":""},{"$f":"IF('Blank - Request Form'!$F$6=\"CICMP\",IF('Blank - Request Form'!J171=0,\"\",'Blank - Request Form'!J171),IF('Blank - Request Form'!$F$7=\"CICMP\",IF('Blank - Request Form'!S171=0,\"\",'Blank - Request Form'!S171),\"\"))","v":""},"",137]
[{"$f":"IF('Blank - Request Form'!$F$6=\"CICMP\",IF('Blank - Request Form'!D172=0,\"\",'Blank - Request Form'!D172),IF('Blank - Request Form'!$F$7=\"CICMP\",IF('Blank - Request Form'!M172=0,\"\",'Blank - Request Form'!M172),\"\"))","v":""},{"$f":"IF('Blank - Request Form'!$F$6=\"CICMP\",IF('Blank - Request Form'!E172=0,\"\",'Blank - Request Form'!E172),IF('Blank - Request Form'!$F$7=\"CICMP\",IF('Blank - Request Form'!N172=0,\"\",'Blank - Request Form'!N172),\"\"))","v":""},{"$f":"IF('Blank - Request Form'!$F$6=\"CICMP\",IF(OR('Blank - Request Form'!F172=\"000\",'Blank - Request Form'!F172=0),\"\",'Blank - Request Form'!F172),IF('Blank - Request Form'!$F$7=\"CICMP\",IF(OR('Blank - Request Form'!O172=\"000\",'Blank - Request Form'!O172=0),\"\",'Blank - Request Form'!O172),\"\"))","v":""},{"$f":"IF('Blank - Request Form'!$F$6=\"CICMP\",IF(OR('Blank - Request Form'!G172=\"0\",'Blank - Request Form'!G172=\"00000\",'Blank - Request Form'!G172=0),\"\",'Blank - Request Form'!G172),IF('Blank - Request Form'!$F$7=\"CICMP\",IF(OR('Blank - Request Form'!P172=\"0\",'Blank - Request Form'!P172=\"00000\",'Blank - Request Form'!P172=0),\"\",'Blank - Request Form'!P172),\"\"))","v":""},{"$f":"IF('Blank - Request Form'!$F$6=\"CICMP\",IF(OR('Blank - Request Form'!H172=\"0\",'Blank - Request Form'!H172=\"00000\",'Blank - Request Form'!H172=0),\"\",'Blank - Request Form'!H172),IF('Blank - Request Form'!$F$7=\"CICMP\",IF(OR('Blank - Request Form'!Q172=\"0\",'Blank - Request Form'!Q172=\"00000\",'Blank - Request Form'!Q172=0),\"\",'Blank - Request Form'!Q172),\"\"))","v":""},{"$f":"IF('Blank - Request Form'!$F$6=\"CICMP\",IF(OR('Blank - Request Form'!I172=\"0\",'Blank - Request Form'!I172=\"00000\",'Blank - Request Form'!I172=0),\"\",'Blank - Request Form'!I172),IF('Blank - Request Form'!$F$7=\"CICMP\",IF(OR('Blank - Request Form'!R172=\"0\",'Blank - Request Form'!R172=\"00000\",'Blank - Request Form'!R172=0),\"\",'Blank - Request Form'!R172),\"\"))","v":""},null,{"$f":"IF('Blank - Request Form'!$F$6=\"CICMP\",IF('Blank - Request Form'!K172=0,\"\",'Blank - Request Form'!K172),IF('Blank - Request Form'!$F$7=\"CICMP\",IF('Blank - Request Form'!T172=0,\"\",'Blank - Request Form'!T172),\"\"))","v":""},null,null,null,{"$f":"IF(M138<>\"\",'Blank - Request Form'!$M$2,\"\")","v":""},{"$f":"IF('Blank - Request Form'!$F$6=\"CICMP\",IF('Blank - Request Form'!J172=0,\"\",'Blank - Request Form'!J172),IF('Blank - Request Form'!$F$7=\"CICMP\",IF('Blank - Request Form'!S172=0,\"\",'Blank - Request Form'!S172),\"\"))","v":""},"",138]
[{"$f":"IF('Blank - Request Form'!$F$6=\"CICMP\",IF('Blank - Request Form'!D173=0,\"\",'Blank - Request Form'!D173),IF('Blank - Request Form'!$F$7=\"CICMP\",IF('Blank - Request Form'!M173=0,\"\",'Blank - Request Form'!M173),\"\"))","v":""},{"$f":"IF('Blank - Request Form'!$F$6=\"CICMP\",IF('Blank - Request Form'!E173=0,\"\",'Blank - Request Form'!E173),IF('Blank - Request Form'!$F$7=\"CICMP\",IF('Blank - Request Form'!N173=0,\"\",'Blank - Request Form'!N173),\"\"))","v":""},{"$f":"IF('Blank - Request Form'!$F$6=\"CICMP\",IF(OR('Blank - Request Form'!F173=\"000\",'Blank - Request Form'!F173=0),\"\",'Blank - Request Form'!F173),IF('Blank - Request Form'!$F$7=\"CICMP\",IF(OR('Blank - Request Form'!O173=\"000\",'Blank - Request Form'!O173=0),\"\",'Blank - Request Form'!O173),\"\"))","v":""},{"$f":"IF('Blank - Request Form'!$F$6=\"CICMP\",IF(OR('Blank - Request Form'!G173=\"0\",'Blank - Request Form'!G173=\"00000\",'Blank - Request Form'!G173=0),\"\",'Blank - Request Form'!G173),IF('Blank - Request Form'!$F$7=\"CICMP\",IF(OR('Blank - Request Form'!P173=\"0\",'Blank - Request Form'!P173=\"00000\",'Blank - Request Form'!P173=0),\"\",'Blank - Request Form'!P173),\"\"))","v":""},{"$f":"IF('Blank - Request Form'!$F$6=\"CICMP\",IF(OR('Blank - Request Form'!H173=\"0\",'Blank - Request Form'!H173=\"00000\",'Blank - Request Form'!H173=0),\"\",'Blank - Request Form'!H173),IF('Blank - Request Form'!$F$7=\"CICMP\",IF(OR('Blank - Request Form'!Q173=\"0\",'Blank - Request Form'!Q173=\"00000\",'Blank - Request Form'!Q173=0),\"\",'Blank - Request Form'!Q173),\"\"))","v":""},{"$f":"IF('Blank - Request Form'!$F$6=\"CICMP\",IF(OR('Blank - Request Form'!I173=\"0\",'Blank - Request Form'!I173=\"00000\",'Blank - Request Form'!I173=0),\"\",'Blank - Request Form'!I173),IF('Blank - Request Form'!$F$7=\"CICMP\",IF(OR('Blank - Request Form'!R173=\"0\",'Blank - Request Form'!R173=\"00000\",'Blank - Request Form'!R173=0),\"\",'Blank - Request Form'!R173),\"\"))","v":""},null,{"$f":"IF('Blank - Request Form'!$F$6=\"CICMP\",IF('Blank - Request Form'!K173=0,\"\",'Blank - Request Form'!K173),IF('Blank - Request Form'!$F$7=\"CICMP\",IF('Blank - Request Form'!T173=0,\"\",'Blank - Request Form'!T173),\"\"))","v":""},null,null,null,{"$f":"IF(M139<>\"\",'Blank - Request Form'!$M$2,\"\")","v":""},{"$f":"IF('Blank - Request Form'!$F$6=\"CICMP\",IF('Blank - Request Form'!J173=0,\"\",'Blank - Request Form'!J173),IF('Blank - Request Form'!$F$7=\"CICMP\",IF('Blank - Request Form'!S173=0,\"\",'Blank - Request Form'!S173),\"\"))","v":""},"",139]
[{"$f":"IF('Blank - Request Form'!$F$6=\"CICMP\",IF('Blank - Request Form'!D174=0,\"\",'Blank - Request Form'!D174),IF('Blank - Request Form'!$F$7=\"CICMP\",IF('Blank - Request Form'!M174=0,\"\",'Blank - Request Form'!M174),\"\"))","v":""},{"$f":"IF('Blank - Request Form'!$F$6=\"CICMP\",IF('Blank - Request Form'!E174=0,\"\",'Blank - Request Form'!E174),IF('Blank - Request Form'!$F$7=\"CICMP\",IF('Blank - Request Form'!N174=0,\"\",'Blank - Request Form'!N174),\"\"))","v":""},{"$f":"IF('Blank - Request Form'!$F$6=\"CICMP\",IF(OR('Blank - Request Form'!F174=\"000\",'Blank - Request Form'!F174=0),\"\",'Blank - Request Form'!F174),IF('Blank - Request Form'!$F$7=\"CICMP\",IF(OR('Blank - Request Form'!O174=\"000\",'Blank - Request Form'!O174=0),\"\",'Blank - Request Form'!O174),\"\"))","v":""},{"$f":"IF('Blank - Request Form'!$F$6=\"CICMP\",IF(OR('Blank - Request Form'!G174=\"0\",'Blank - Request Form'!G174=\"00000\",'Blank - Request Form'!G174=0),\"\",'Blank - Request Form'!G174),IF('Blank - Request Form'!$F$7=\"CICMP\",IF(OR('Blank - Request Form'!P174=\"0\",'Blank - Request Form'!P174=\"00000\",'Blank - Request Form'!P174=0),\"\",'Blank - Request Form'!P174),\"\"))","v":""},{"$f":"IF('Blank - Request Form'!$F$6=\"CICMP\",IF(OR('Blank - Request Form'!H174=\"0\",'Blank - Request Form'!H174=\"00000\",'Blank - Request Form'!H174=0),\"\",'Blank - Request Form'!H174),IF('Blank - Request Form'!$F$7=\"CICMP\",IF(OR('Blank - Request Form'!Q174=\"0\",'Blank - Request Form'!Q174=\"00000\",'Blank - Request Form'!Q174=0),\"\",'Blank - Request Form'!Q174),\"\"))","v":""},{"$f":"IF('Blank - Request Form'!$F$6=\"CICMP\",IF(OR('Blank - Request Form'!I174=\"0\",'Blank - Request Form'!I174=\"00000\",'Blank - Request Form'!I174=0),\"\",'Blank - Request Form'!I174),IF('Blank - Request Form'!$F$7=\"CICMP\",IF(OR('Blank - Request Form'!R174=\"0\",'Blank - Request Form'!R174=\"00000\",'Blank - Request Form'!R174=0),\"\",'Blank - Request Form'!R174),\"\"))","v":""},null,{"$f":"IF('Blank - Request Form'!$F$6=\"CICMP\",IF('Blank - Request Form'!K174=0,\"\",'Blank - Request Form'!K174),IF('Blank - Request Form'!$F$7=\"CICMP\",IF('Blank - Request Form'!T174=0,\"\",'Blank - Request Form'!T174),\"\"))","v":""},null,null,null,{"$f":"IF(M140<>\"\",'Blank - Request Form'!$M$2,\"\")","v":""},{"$f":"IF('Blank - Request Form'!$F$6=\"CICMP\",IF('Blank - Request Form'!J174=0,\"\",'Blank - Request Form'!J174),IF('Blank - Request Form'!$F$7=\"CICMP\",IF('Blank - Request Form'!S174=0,\"\",'Blank - Request Form'!S174),\"\"))","v":""},"",140]
[{"$f":"IF('Blank - Request Form'!$F$6=\"CICMP\",IF('Blank - Request Form'!D175=0,\"\",'Blank - Request Form'!D175),IF('Blank - Request Form'!$F$7=\"CICMP\",IF('Blank - Request Form'!M175=0,\"\",'Blank - Request Form'!M175),\"\"))","v":""},{"$f":"IF('Blank - Request Form'!$F$6=\"CICMP\",IF('Blank - Request Form'!E175=0,\"\",'Blank - Request Form'!E175),IF('Blank - Request Form'!$F$7=\"CICMP\",IF('Blank - Request Form'!N175=0,\"\",'Blank - Request Form'!N175),\"\"))","v":""},{"$f":"IF('Blank - Request Form'!$F$6=\"CICMP\",IF(OR('Blank - Request Form'!F175=\"000\",'Blank - Request Form'!F175=0),\"\",'Blank - Request Form'!F175),IF('Blank - Request Form'!$F$7=\"CICMP\",IF(OR('Blank - Request Form'!O175=\"000\",'Blank - Request Form'!O175=0),\"\",'Blank - Request Form'!O175),\"\"))","v":""},{"$f":"IF('Blank - Request Form'!$F$6=\"CICMP\",IF(OR('Blank - Request Form'!G175=\"0\",'Blank - Request Form'!G175=\"00000\",'Blank - Request Form'!G175=0),\"\",'Blank - Request Form'!G175),IF('Blank - Request Form'!$F$7=\"CICMP\",IF(OR('Blank - Request Form'!P175=\"0\",'Blank - Request Form'!P175=\"00000\",'Blank - Request Form'!P175=0),\"\",'Blank - Request Form'!P175),\"\"))","v":""},{"$f":"IF('Blank - Request Form'!$F$6=\"CICMP\",IF(OR('Blank - Request Form'!H175=\"0\",'Blank - Request Form'!H175=\"00000\",'Blank - Request Form'!H175=0),\"\",'Blank - Request Form'!H175),IF('Blank - Request Form'!$F$7=\"CICMP\",IF(OR('Blank - Request Form'!Q175=\"0\",'Blank - Request Form'!Q175=\"00000\",'Blank - Request Form'!Q175=0),\"\",'Blank - Request Form'!Q175),\"\"))","v":""},{"$f":"IF('Blank - Request Form'!$F$6=\"CICMP\",IF(OR('Blank - Request Form'!I175=\"0\",'Blank - Request Form'!I175=\"00000\",'Blank - Request Form'!I175=0),\"\",'Blank - Request Form'!I175),IF('Blank - Request Form'!$F$7=\"CICMP\",IF(OR('Blank - Request Form'!R175=\"0\",'Blank - Request Form'!R175=\"00000\",'Blank - Request Form'!R175=0),\"\",'Blank - Request Form'!R175),\"\"))","v":""},null,{"$f":"IF('Blank - Request Form'!$F$6=\"CICMP\",IF('Blank - Request Form'!K175=0,\"\",'Blank - Request Form'!K175),IF('Blank - Request Form'!$F$7=\"CICMP\",IF('Blank - Request Form'!T175=0,\"\",'Blank - Request Form'!T175),\"\"))","v":""},null,null,null,{"$f":"IF(M141<>\"\",'Blank - Request Form'!$M$2,\"\")","v":""},{"$f":"IF('Blank - Request Form'!$F$6=\"CICMP\",IF('Blank - Request Form'!J175=0,\"\",'Blank - Request Form'!J175),IF('Blank - Request Form'!$F$7=\"CICMP\",IF('Blank - Request Form'!S175=0,\"\",'Blank - Request Form'!S175),\"\"))","v":""},"",141]
[{"$f":"IF('Blank - Request Form'!$F$6=\"CICMP\",IF('Blank - Request Form'!D176=0,\"\",'Blank - Request Form'!D176),IF('Blank - Request Form'!$F$7=\"CICMP\",IF('Blank - Request Form'!M176=0,\"\",'Blank - Request Form'!M176),\"\"))","v":""},{"$f":"IF('Blank - Request Form'!$F$6=\"CICMP\",IF('Blank - Request Form'!E176=0,\"\",'Blank - Request Form'!E176),IF('Blank - Request Form'!$F$7=\"CICMP\",IF('Blank - Request Form'!N176=0,\"\",'Blank - Request Form'!N176),\"\"))","v":""},{"$f":"IF('Blank - Request Form'!$F$6=\"CICMP\",IF(OR('Blank - Request Form'!F176=\"000\",'Blank - Request Form'!F176=0),\"\",'Blank - Request Form'!F176),IF('Blank - Request Form'!$F$7=\"CICMP\",IF(OR('Blank - Request Form'!O176=\"000\",'Blank - Request Form'!O176=0),\"\",'Blank - Request Form'!O176),\"\"))","v":""},{"$f":"IF('Blank - Request Form'!$F$6=\"CICMP\",IF(OR('Blank - Request Form'!G176=\"0\",'Blank - Request Form'!G176=\"00000\",'Blank - Request Form'!G176=0),\"\",'Blank - Request Form'!G176),IF('Blank - Request Form'!$F$7=\"CICMP\",IF(OR('Blank - Request Form'!P176=\"0\",'Blank - Request Form'!P176=\"00000\",'Blank - Request Form'!P176=0),\"\",'Blank - Request Form'!P176),\"\"))","v":""},{"$f":"IF('Blank - Request Form'!$F$6=\"CICMP\",IF(OR('Blank - Request Form'!H176=\"0\",'Blank - Request Form'!H176=\"00000\",'Blank - Request Form'!H176=0),\"\",'Blank - Request Form'!H176),IF('Blank - Request Form'!$F$7=\"CICMP\",IF(OR('Blank - Request Form'!Q176=\"0\",'Blank - Request Form'!Q176=\"00000\",'Blank - Request Form'!Q176=0),\"\",'Blank - Request Form'!Q176),\"\"))","v":""},{"$f":"IF('Blank - Request Form'!$F$6=\"CICMP\",IF(OR('Blank - Request Form'!I176=\"0\",'Blank - Request Form'!I176=\"00000\",'Blank - Request Form'!I176=0),\"\",'Blank - Request Form'!I176),IF('Blank - Request Form'!$F$7=\"CICMP\",IF(OR('Blank - Request Form'!R176=\"0\",'Blank - Request Form'!R176=\"00000\",'Blank - Request Form'!R176=0),\"\",'Blank - Request Form'!R176),\"\"))","v":""},null,{"$f":"IF('Blank - Request Form'!$F$6=\"CICMP\",IF('Blank - Request Form'!K176=0,\"\",'Blank - Request Form'!K176),IF('Blank - Request Form'!$F$7=\"CICMP\",IF('Blank - Request Form'!T176=0,\"\",'Blank - Request Form'!T176),\"\"))","v":""},null,null,null,{"$f":"IF(M142<>\"\",'Blank - Request Form'!$M$2,\"\")","v":""},{"$f":"IF('Blank - Request Form'!$F$6=\"CICMP\",IF('Blank - Request Form'!J176=0,\"\",'Blank - Request Form'!J176),IF('Blank - Request Form'!$F$7=\"CICMP\",IF('Blank - Request Form'!S176=0,\"\",'Blank - Request Form'!S176),\"\"))","v":""},"",142]
[{"$f":"IF('Blank - Request Form'!$F$6=\"CICMP\",IF('Blank - Request Form'!D177=0,\"\",'Blank - Request Form'!D177),IF('Blank - Request Form'!$F$7=\"CICMP\",IF('Blank - Request Form'!M177=0,\"\",'Blank - Request Form'!M177),\"\"))","v":""},{"$f":"IF('Blank - Request Form'!$F$6=\"CICMP\",IF('Blank - Request Form'!E177=0,\"\",'Blank - Request Form'!E177),IF('Blank - Request Form'!$F$7=\"CICMP\",IF('Blank - Request Form'!N177=0,\"\",'Blank - Request Form'!N177),\"\"))","v":""},{"$f":"IF('Blank - Request Form'!$F$6=\"CICMP\",IF(OR('Blank - Request Form'!F177=\"000\",'Blank - Request Form'!F177=0),\"\",'Blank - Request Form'!F177),IF('Blank - Request Form'!$F$7=\"CICMP\",IF(OR('Blank - Request Form'!O177=\"000\",'Blank - Request Form'!O177=0),\"\",'Blank - Request Form'!O177),\"\"))","v":""},{"$f":"IF('Blank - Request Form'!$F$6=\"CICMP\",IF(OR('Blank - Request Form'!G177=\"0\",'Blank - Request Form'!G177=\"00000\",'Blank - Request Form'!G177=0),\"\",'Blank - Request Form'!G177),IF('Blank - Request Form'!$F$7=\"CICMP\",IF(OR('Blank - Request Form'!P177=\"0\",'Blank - Request Form'!P177=\"00000\",'Blank - Request Form'!P177=0),\"\",'Blank - Request Form'!P177),\"\"))","v":""},{"$f":"IF('Blank - Request Form'!$F$6=\"CICMP\",IF(OR('Blank - Request Form'!H177=\"0\",'Blank - Request Form'!H177=\"00000\",'Blank - Request Form'!H177=0),\"\",'Blank - Request Form'!H177),IF('Blank - Request Form'!$F$7=\"CICMP\",IF(OR('Blank - Request Form'!Q177=\"0\",'Blank - Request Form'!Q177=\"00000\",'Blank - Request Form'!Q177=0),\"\",'Blank - Request Form'!Q177),\"\"))","v":""},{"$f":"IF('Blank - Request Form'!$F$6=\"CICMP\",IF(OR('Blank - Request Form'!I177=\"0\",'Blank - Request Form'!I177=\"00000\",'Blank - Request Form'!I177=0),\"\",'Blank - Request Form'!I177),IF('Blank - Request Form'!$F$7=\"CICMP\",IF(OR('Blank - Request Form'!R177=\"0\",'Blank - Request Form'!R177=\"00000\",'Blank - Request Form'!R177=0),\"\",'Blank - Request Form'!R177),\"\"))","v":""},null,{"$f":"IF('Blank - Request Form'!$F$6=\"CICMP\",IF('Blank - Request Form'!K177=0,\"\",'Blank - Request Form'!K177),IF('Blank - Request Form'!$F$7=\"CICMP\",IF('Blank - Request Form'!T177=0,\"\",'Blank - Request Form'!T177),\"\"))","v":""},null,null,null,{"$f":"IF(M143<>\"\",'Blank - Request Form'!$M$2,\"\")","v":""},{"$f":"IF('Blank - Request Form'!$F$6=\"CICMP\",IF('Blank - Request Form'!J177=0,\"\",'Blank - Request Form'!J177),IF('Blank - Request Form'!$F$7=\"CICMP\",IF('Blank - Request Form'!S177=0,\"\",'Blank - Request Form'!S177),\"\"))","v":""},"",143]
[{"$f":"IF('Blank - Request Form'!$F$6=\"CICMP\",IF('Blank - Request Form'!D178=0,\"\",'Blank - Request Form'!D178),IF('Blank - Request Form'!$F$7=\"CICMP\",IF('Blank - Request Form'!M178=0,\"\",'Blank - Request Form'!M178),\"\"))","v":""},{"$f":"IF('Blank - Request Form'!$F$6=\"CICMP\",IF('Blank - Request Form'!E178=0,\"\",'Blank - Request Form'!E178),IF('Blank - Request Form'!$F$7=\"CICMP\",IF('Blank - Request Form'!N178=0,\"\",'Blank - Request Form'!N178),\"\"))","v":""},{"$f":"IF('Blank - Request Form'!$F$6=\"CICMP\",IF(OR('Blank - Request Form'!F178=\"000\",'Blank - Request Form'!F178=0),\"\",'Blank - Request Form'!F178),IF('Blank - Request Form'!$F$7=\"CICMP\",IF(OR('Blank - Request Form'!O178=\"000\",'Blank - Request Form'!O178=0),\"\",'Blank - Request Form'!O178),\"\"))","v":""},{"$f":"IF('Blank - Request Form'!$F$6=\"CICMP\",IF(OR('Blank - Request Form'!G178=\"0\",'Blank - Request Form'!G178=\"00000\",'Blank - Request Form'!G178=0),\"\",'Blank - Request Form'!G178),IF('Blank - Request Form'!$F$7=\"CICMP\",IF(OR('Blank - Request Form'!P178=\"0\",'Blank - Request Form'!P178=\"00000\",'Blank - Request Form'!P178=0),\"\",'Blank - Request Form'!P178),\"\"))","v":""},{"$f":"IF('Blank - Request Form'!$F$6=\"CICMP\",IF(OR('Blank - Request Form'!H178=\"0\",'Blank - Request Form'!H178=\"00000\",'Blank - Request Form'!H178=0),\"\",'Blank - Request Form'!H178),IF('Blank - Request Form'!$F$7=\"CICMP\",IF(OR('Blank - Request Form'!Q178=\"0\",'Blank - Request Form'!Q178=\"00000\",'Blank - Request Form'!Q178=0),\"\",'Blank - Request Form'!Q178),\"\"))","v":""},{"$f":"IF('Blank - Request Form'!$F$6=\"CICMP\",IF(OR('Blank - Request Form'!I178=\"0\",'Blank - Request Form'!I178=\"00000\",'Blank - Request Form'!I178=0),\"\",'Blank - Request Form'!I178),IF('Blank - Request Form'!$F$7=\"CICMP\",IF(OR('Blank - Request Form'!R178=\"0\",'Blank - Request Form'!R178=\"00000\",'Blank - Request Form'!R178=0),\"\",'Blank - Request Form'!R178),\"\"))","v":""},null,{"$f":"IF('Blank - Request Form'!$F$6=\"CICMP\",IF('Blank - Request Form'!K178=0,\"\",'Blank - Request Form'!K178),IF('Blank - Request Form'!$F$7=\"CICMP\",IF('Blank - Request Form'!T178=0,\"\",'Blank - Request Form'!T178),\"\"))","v":""},null,null,null,{"$f":"IF(M144<>\"\",'Blank - Request Form'!$M$2,\"\")","v":""},{"$f":"IF('Blank - Request Form'!$F$6=\"CICMP\",IF('Blank - Request Form'!J178=0,\"\",'Blank - Request Form'!J178),IF('Blank - Request Form'!$F$7=\"CICMP\",IF('Blank - Request Form'!S178=0,\"\",'Blank - Request Form'!S178),\"\"))","v":""},"",144]
[{"$f":"IF('Blank - Request Form'!$F$6=\"CICMP\",IF('Blank - Request Form'!D179=0,\"\",'Blank - Request Form'!D179),IF('Blank - Request Form'!$F$7=\"CICMP\",IF('Blank - Request Form'!M179=0,\"\",'Blank - Request Form'!M179),\"\"))","v":""},{"$f":"IF('Blank - Request Form'!$F$6=\"CICMP\",IF('Blank - Request Form'!E179=0,\"\",'Blank - Request Form'!E179),IF('Blank - Request Form'!$F$7=\"CICMP\",IF('Blank - Request Form'!N179=0,\"\",'Blank - Request Form'!N179),\"\"))","v":""},{"$f":"IF('Blank - Request Form'!$F$6=\"CICMP\",IF(OR('Blank - Request Form'!F179=\"000\",'Blank - Request Form'!F179=0),\"\",'Blank - Request Form'!F179),IF('Blank - Request Form'!$F$7=\"CICMP\",IF(OR('Blank - Request Form'!O179=\"000\",'Blank - Request Form'!O179=0),\"\",'Blank - Request Form'!O179),\"\"))","v":""},{"$f":"IF('Blank - Request Form'!$F$6=\"CICMP\",IF(OR('Blank - Request Form'!G179=\"0\",'Blank - Request Form'!G179=\"00000\",'Blank - Request Form'!G179=0),\"\",'Blank - Request Form'!G179),IF('Blank - Request Form'!$F$7=\"CICMP\",IF(OR('Blank - Request Form'!P179=\"0\",'Blank - Request Form'!P179=\"00000\",'Blank - Request Form'!P179=0),\"\",'Blank - Request Form'!P179),\"\"))","v":""},{"$f":"IF('Blank - Request Form'!$F$6=\"CICMP\",IF(OR('Blank - Request Form'!H179=\"0\",'Blank - Request Form'!H179=\"00000\",'Blank - Request Form'!H179=0),\"\",'Blank - Request Form'!H179),IF('Blank - Request Form'!$F$7=\"CICMP\",IF(OR('Blank - Request Form'!Q179=\"0\",'Blank - Request Form'!Q179=\"00000\",'Blank - Request Form'!Q179=0),\"\",'Blank - Request Form'!Q179),\"\"))","v":""},{"$f":"IF('Blank - Request Form'!$F$6=\"CICMP\",IF(OR('Blank - Request Form'!I179=\"0\",'Blank - Request Form'!I179=\"00000\",'Blank - Request Form'!I179=0),\"\",'Blank - Request Form'!I179),IF('Blank - Request Form'!$F$7=\"CICMP\",IF(OR('Blank - Request Form'!R179=\"0\",'Blank - Request Form'!R179=\"00000\",'Blank - Request Form'!R179=0),\"\",'Blank - Request Form'!R179),\"\"))","v":""},null,{"$f":"IF('Blank - Request Form'!$F$6=\"CICMP\",IF('Blank - Request Form'!K179=0,\"\",'Blank - Request Form'!K179),IF('Blank - Request Form'!$F$7=\"CICMP\",IF('Blank - Request Form'!T179=0,\"\",'Blank - Request Form'!T179),\"\"))","v":""},null,null,null,{"$f":"IF(M145<>\"\",'Blank - Request Form'!$M$2,\"\")","v":""},{"$f":"IF('Blank - Request Form'!$F$6=\"CICMP\",IF('Blank - Request Form'!J179=0,\"\",'Blank - Request Form'!J179),IF('Blank - Request Form'!$F$7=\"CICMP\",IF('Blank - Request Form'!S179=0,\"\",'Blank - Request Form'!S179),\"\"))","v":""},"",145]
[{"$f":"IF('Blank - Request Form'!$F$6=\"CICMP\",IF('Blank - Request Form'!D180=0,\"\",'Blank - Request Form'!D180),IF('Blank - Request Form'!$F$7=\"CICMP\",IF('Blank - Request Form'!M180=0,\"\",'Blank - Request Form'!M180),\"\"))","v":""},{"$f":"IF('Blank - Request Form'!$F$6=\"CICMP\",IF('Blank - Request Form'!E180=0,\"\",'Blank - Request Form'!E180),IF('Blank - Request Form'!$F$7=\"CICMP\",IF('Blank - Request Form'!N180=0,\"\",'Blank - Request Form'!N180),\"\"))","v":""},{"$f":"IF('Blank - Request Form'!$F$6=\"CICMP\",IF(OR('Blank - Request Form'!F180=\"000\",'Blank - Request Form'!F180=0),\"\",'Blank - Request Form'!F180),IF('Blank - Request Form'!$F$7=\"CICMP\",IF(OR('Blank - Request Form'!O180=\"000\",'Blank - Request Form'!O180=0),\"\",'Blank - Request Form'!O180),\"\"))","v":""},{"$f":"IF('Blank - Request Form'!$F$6=\"CICMP\",IF(OR('Blank - Request Form'!G180=\"0\",'Blank - Request Form'!G180=\"00000\",'Blank - Request Form'!G180=0),\"\",'Blank - Request Form'!G180),IF('Blank - Request Form'!$F$7=\"CICMP\",IF(OR('Blank - Request Form'!P180=\"0\",'Blank - Request Form'!P180=\"00000\",'Blank - Request Form'!P180=0),\"\",'Blank - Request Form'!P180),\"\"))","v":""},{"$f":"IF('Blank - Request Form'!$F$6=\"CICMP\",IF(OR('Blank - Request Form'!H180=\"0\",'Blank - Request Form'!H180=\"00000\",'Blank - Request Form'!H180=0),\"\",'Blank - Request Form'!H180),IF('Blank - Request Form'!$F$7=\"CICMP\",IF(OR('Blank - Request Form'!Q180=\"0\",'Blank - Request Form'!Q180=\"00000\",'Blank - Request Form'!Q180=0),\"\",'Blank - Request Form'!Q180),\"\"))","v":""},{"$f":"IF('Blank - Request Form'!$F$6=\"CICMP\",IF(OR('Blank - Request Form'!I180=\"0\",'Blank - Request Form'!I180=\"00000\",'Blank - Request Form'!I180=0),\"\",'Blank - Request Form'!I180),IF('Blank - Request Form'!$F$7=\"CICMP\",IF(OR('Blank - Request Form'!R180=\"0\",'Blank - Request Form'!R180=\"00000\",'Blank - Request Form'!R180=0),\"\",'Blank - Request Form'!R180),\"\"))","v":""},null,{"$f":"IF('Blank - Request Form'!$F$6=\"CICMP\",IF('Blank - Request Form'!K180=0,\"\",'Blank - Request Form'!K180),IF('Blank - Request Form'!$F$7=\"CICMP\",IF('Blank - Request Form'!T180=0,\"\",'Blank - Request Form'!T180),\"\"))","v":""},null,null,null,{"$f":"IF(M146<>\"\",'Blank - Request Form'!$M$2,\"\")","v":""},{"$f":"IF('Blank - Request Form'!$F$6=\"CICMP\",IF('Blank - Request Form'!J180=0,\"\",'Blank - Request Form'!J180),IF('Blank - Request Form'!$F$7=\"CICMP\",IF('Blank - Request Form'!S180=0,\"\",'Blank - Request Form'!S180),\"\"))","v":""},"",146]
[{"$f":"IF('Blank - Request Form'!$F$6=\"CICMP\",IF('Blank - Request Form'!D181=0,\"\",'Blank - Request Form'!D181),IF('Blank - Request Form'!$F$7=\"CICMP\",IF('Blank - Request Form'!M181=0,\"\",'Blank - Request Form'!M181),\"\"))","v":""},{"$f":"IF('Blank - Request Form'!$F$6=\"CICMP\",IF('Blank - Request Form'!E181=0,\"\",'Blank - Request Form'!E181),IF('Blank - Request Form'!$F$7=\"CICMP\",IF('Blank - Request Form'!N181=0,\"\",'Blank - Request Form'!N181),\"\"))","v":""},{"$f":"IF('Blank - Request Form'!$F$6=\"CICMP\",IF(OR('Blank - Request Form'!F181=\"000\",'Blank - Request Form'!F181=0),\"\",'Blank - Request Form'!F181),IF('Blank - Request Form'!$F$7=\"CICMP\",IF(OR('Blank - Request Form'!O181=\"000\",'Blank - Request Form'!O181=0),\"\",'Blank - Request Form'!O181),\"\"))","v":""},{"$f":"IF('Blank - Request Form'!$F$6=\"CICMP\",IF(OR('Blank - Request Form'!G181=\"0\",'Blank - Request Form'!G181=\"00000\",'Blank - Request Form'!G181=0),\"\",'Blank - Request Form'!G181),IF('Blank - Request Form'!$F$7=\"CICMP\",IF(OR('Blank - Request Form'!P181=\"0\",'Blank - Request Form'!P181=\"00000\",'Blank - Request Form'!P181=0),\"\",'Blank - Request Form'!P181),\"\"))","v":""},{"$f":"IF('Blank - Request Form'!$F$6=\"CICMP\",IF(OR('Blank - Request Form'!H181=\"0\",'Blank - Request Form'!H181=\"00000\",'Blank - Request Form'!H181=0),\"\",'Blank - Request Form'!H181),IF('Blank - Request Form'!$F$7=\"CICMP\",IF(OR('Blank - Request Form'!Q181=\"0\",'Blank - Request Form'!Q181=\"00000\",'Blank - Request Form'!Q181=0),\"\",'Blank - Request Form'!Q181),\"\"))","v":""},{"$f":"IF('Blank - Request Form'!$F$6=\"CICMP\",IF(OR('Blank - Request Form'!I181=\"0\",'Blank - Request Form'!I181=\"00000\",'Blank - Request Form'!I181=0),\"\",'Blank - Request Form'!I181),IF('Blank - Request Form'!$F$7=\"CICMP\",IF(OR('Blank - Request Form'!R181=\"0\",'Blank - Request Form'!R181=\"00000\",'Blank - Request Form'!R181=0),\"\",'Blank - Request Form'!R181),\"\"))","v":""},null,{"$f":"IF('Blank - Request Form'!$F$6=\"CICMP\",IF('Blank - Request Form'!K181=0,\"\",'Blank - Request Form'!K181),IF('Blank - Request Form'!$F$7=\"CICMP\",IF('Blank - Request Form'!T181=0,\"\",'Blank - Request Form'!T181),\"\"))","v":""},null,null,null,{"$f":"IF(M147<>\"\",'Blank - Request Form'!$M$2,\"\")","v":""},{"$f":"IF('Blank - Request Form'!$F$6=\"CICMP\",IF('Blank - Request Form'!J181=0,\"\",'Blank - Request Form'!J181),IF('Blank - Request Form'!$F$7=\"CICMP\",IF('Blank - Request Form'!S181=0,\"\",'Blank - Request Form'!S181),\"\"))","v":""},"",147]
[{"$f":"IF('Blank - Request Form'!$F$6=\"CICMP\",IF('Blank - Request Form'!D182=0,\"\",'Blank - Request Form'!D182),IF('Blank - Request Form'!$F$7=\"CICMP\",IF('Blank - Request Form'!M182=0,\"\",'Blank - Request Form'!M182),\"\"))","v":""},{"$f":"IF('Blank - Request Form'!$F$6=\"CICMP\",IF('Blank - Request Form'!E182=0,\"\",'Blank - Request Form'!E182),IF('Blank - Request Form'!$F$7=\"CICMP\",IF('Blank - Request Form'!N182=0,\"\",'Blank - Request Form'!N182),\"\"))","v":""},{"$f":"IF('Blank - Request Form'!$F$6=\"CICMP\",IF(OR('Blank - Request Form'!F182=\"000\",'Blank - Request Form'!F182=0),\"\",'Blank - Request Form'!F182),IF('Blank - Request Form'!$F$7=\"CICMP\",IF(OR('Blank - Request Form'!O182=\"000\",'Blank - Request Form'!O182=0),\"\",'Blank - Request Form'!O182),\"\"))","v":""},{"$f":"IF('Blank - Request Form'!$F$6=\"CICMP\",IF(OR('Blank - Request Form'!G182=\"0\",'Blank - Request Form'!G182=\"00000\",'Blank - Request Form'!G182=0),\"\",'Blank - Request Form'!G182),IF('Blank - Request Form'!$F$7=\"CICMP\",IF(OR('Blank - Request Form'!P182=\"0\",'Blank - Request Form'!P182=\"00000\",'Blank - Request Form'!P182=0),\"\",'Blank - Request Form'!P182),\"\"))","v":""},{"$f":"IF('Blank - Request Form'!$F$6=\"CICMP\",IF(OR('Blank - Request Form'!H182=\"0\",'Blank - Request Form'!H182=\"00000\",'Blank - Request Form'!H182=0),\"\",'Blank - Request Form'!H182),IF('Blank - Request Form'!$F$7=\"CICMP\",IF(OR('Blank - Request Form'!Q182=\"0\",'Blank - Request Form'!Q182=\"00000\",'Blank - Request Form'!Q182=0),\"\",'Blank - Request Form'!Q182),\"\"))","v":""},{"$f":"IF('Blank - Request Form'!$F$6=\"CICMP\",IF(OR('Blank - Request Form'!I182=\"0\",'Blank - Request Form'!I182=\"00000\",'Blank - Request Form'!I182=0),\"\",'Blank - Request Form'!I182),IF('Blank - Request Form'!$F$7=\"CICMP\",IF(OR('Blank - Request Form'!R182=\"0\",'Blank - Request Form'!R182=\"00000\",'Blank - Request Form'!R182=0),\"\",'Blank - Request Form'!R182),\"\"))","v":""},null,{"$f":"IF('Blank - Request Form'!$F$6=\"CICMP\",IF('Blank - Request Form'!K182=0,\"\",'Blank - Request Form'!K182),IF('Blank - Request Form'!$F$7=\"CICMP\",IF('Blank - Request Form'!T182=0,\"\",'Blank - Request Form'!T182),\"\"))","v":""},null,null,null,{"$f":"IF(M148<>\"\",'Blank - Request Form'!$M$2,\"\")","v":""},{"$f":"IF('Blank - Request Form'!$F$6=\"CICMP\",IF('Blank - Request Form'!J182=0,\"\",'Blank - Request Form'!J182),IF('Blank - Request Form'!$F$7=\"CICMP\",IF('Blank - Request Form'!S182=0,\"\",'Blank - Request Form'!S182),\"\"))","v":""},"",148]
[{"$f":"IF('Blank - Request Form'!$F$6=\"CICMP\",IF('Blank - Request Form'!D183=0,\"\",'Blank - Request Form'!D183),IF('Blank - Request Form'!$F$7=\"CICMP\",IF('Blank - Request Form'!M183=0,\"\",'Blank - Request Form'!M183),\"\"))","v":""},{"$f":"IF('Blank - Request Form'!$F$6=\"CICMP\",IF('Blank - Request Form'!E183=0,\"\",'Blank - Request Form'!E183),IF('Blank - Request Form'!$F$7=\"CICMP\",IF('Blank - Request Form'!N183=0,\"\",'Blank - Request Form'!N183),\"\"))","v":""},{"$f":"IF('Blank - Request Form'!$F$6=\"CICMP\",IF(OR('Blank - Request Form'!F183=\"000\",'Blank - Request Form'!F183=0),\"\",'Blank - Request Form'!F183),IF('Blank - Request Form'!$F$7=\"CICMP\",IF(OR('Blank - Request Form'!O183=\"000\",'Blank - Request Form'!O183=0),\"\",'Blank - Request Form'!O183),\"\"))","v":""},{"$f":"IF('Blank - Request Form'!$F$6=\"CICMP\",IF(OR('Blank - Request Form'!G183=\"0\",'Blank - Request Form'!G183=\"00000\",'Blank - Request Form'!G183=0),\"\",'Blank - Request Form'!G183),IF('Blank - Request Form'!$F$7=\"CICMP\",IF(OR('Blank - Request Form'!P183=\"0\",'Blank - Request Form'!P183=\"00000\",'Blank - Request Form'!P183=0),\"\",'Blank - Request Form'!P183),\"\"))","v":""},{"$f":"IF('Blank - Request Form'!$F$6=\"CICMP\",IF(OR('Blank - Request Form'!H183=\"0\",'Blank - Request Form'!H183=\"00000\",'Blank - Request Form'!H183=0),\"\",'Blank - Request Form'!H183),IF('Blank - Request Form'!$F$7=\"CICMP\",IF(OR('Blank - Request Form'!Q183=\"0\",'Blank - Request Form'!Q183=\"00000\",'Blank - Request Form'!Q183=0),\"\",'Blank - Request Form'!Q183),\"\"))","v":""},{"$f":"IF('Blank - Request Form'!$F$6=\"CICMP\",IF(OR('Blank - Request Form'!I183=\"0\",'Blank - Request Form'!I183=\"00000\",'Blank - Request Form'!I183=0),\"\",'Blank - Request Form'!I183),IF('Blank - Request Form'!$F$7=\"CICMP\",IF(OR('Blank - Request Form'!R183=\"0\",'Blank - Request Form'!R183=\"00000\",'Blank - Request Form'!R183=0),\"\",'Blank - Request Form'!R183),\"\"))","v":""},null,{"$f":"IF('Blank - Request Form'!$F$6=\"CICMP\",IF('Blank - Request Form'!K183=0,\"\",'Blank - Request Form'!K183),IF('Blank - Request Form'!$F$7=\"CICMP\",IF('Blank - Request Form'!T183=0,\"\",'Blank - Request Form'!T183),\"\"))","v":""},null,null,null,{"$f":"IF(M149<>\"\",'Blank - Request Form'!$M$2,\"\")","v":""},{"$f":"IF('Blank - Request Form'!$F$6=\"CICMP\",IF('Blank - Request Form'!J183=0,\"\",'Blank - Request Form'!J183),IF('Blank - Request Form'!$F$7=\"CICMP\",IF('Blank - Request Form'!S183=0,\"\",'Blank - Request Form'!S183),\"\"))","v":""},"",149]
[{"$f":"IF('Blank - Request Form'!$F$6=\"CICMP\",IF('Blank - Request Form'!D184=0,\"\",'Blank - Request Form'!D184),IF('Blank - Request Form'!$F$7=\"CICMP\",IF('Blank - Request Form'!M184=0,\"\",'Blank - Request Form'!M184),\"\"))","v":""},{"$f":"IF('Blank - Request Form'!$F$6=\"CICMP\",IF('Blank - Request Form'!E184=0,\"\",'Blank - Request Form'!E184),IF('Blank - Request Form'!$F$7=\"CICMP\",IF('Blank - Request Form'!N184=0,\"\",'Blank - Request Form'!N184),\"\"))","v":""},{"$f":"IF('Blank - Request Form'!$F$6=\"CICMP\",IF(OR('Blank - Request Form'!F184=\"000\",'Blank - Request Form'!F184=0),\"\",'Blank - Request Form'!F184),IF('Blank - Request Form'!$F$7=\"CICMP\",IF(OR('Blank - Request Form'!O184=\"000\",'Blank - Request Form'!O184=0),\"\",'Blank - Request Form'!O184),\"\"))","v":""},{"$f":"IF('Blank - Request Form'!$F$6=\"CICMP\",IF(OR('Blank - Request Form'!G184=\"0\",'Blank - Request Form'!G184=\"00000\",'Blank - Request Form'!G184=0),\"\",'Blank - Request Form'!G184),IF('Blank - Request Form'!$F$7=\"CICMP\",IF(OR('Blank - Request Form'!P184=\"0\",'Blank - Request Form'!P184=\"00000\",'Blank - Request Form'!P184=0),\"\",'Blank - Request Form'!P184),\"\"))","v":""},{"$f":"IF('Blank - Request Form'!$F$6=\"CICMP\",IF(OR('Blank - Request Form'!H184=\"0\",'Blank - Request Form'!H184=\"00000\",'Blank - Request Form'!H184=0),\"\",'Blank - Request Form'!H184),IF('Blank - Request Form'!$F$7=\"CICMP\",IF(OR('Blank - Request Form'!Q184=\"0\",'Blank - Request Form'!Q184=\"00000\",'Blank - Request Form'!Q184=0),\"\",'Blank - Request Form'!Q184),\"\"))","v":""},{"$f":"IF('Blank - Request Form'!$F$6=\"CICMP\",IF(OR('Blank - Request Form'!I184=\"0\",'Blank - Request Form'!I184=\"00000\",'Blank - Request Form'!I184=0),\"\",'Blank - Request Form'!I184),IF('Blank - Request Form'!$F$7=\"CICMP\",IF(OR('Blank - Request Form'!R184=\"0\",'Blank - Request Form'!R184=\"00000\",'Blank - Request Form'!R184=0),\"\",'Blank - Request Form'!R184),\"\"))","v":""},null,{"$f":"IF('Blank - Request Form'!$F$6=\"CICMP\",IF('Blank - Request Form'!K184=0,\"\",'Blank - Request Form'!K184),IF('Blank - Request Form'!$F$7=\"CICMP\",IF('Blank - Request Form'!T184=0,\"\",'Blank - Request Form'!T184),\"\"))","v":""},null,null,null,{"$f":"IF(M150<>\"\",'Blank - Request Form'!$M$2,\"\")","v":""},{"$f":"IF('Blank - Request Form'!$F$6=\"CICMP\",IF('Blank - Request Form'!J184=0,\"\",'Blank - Request Form'!J184),IF('Blank - Request Form'!$F$7=\"CICMP\",IF('Blank - Request Form'!S184=0,\"\",'Blank - Request Form'!S184),\"\"))","v":""},"",150]
[{"$f":"IF('Blank - Request Form'!$F$6=\"CICMP\",IF('Blank - Request Form'!D185=0,\"\",'Blank - Request Form'!D185),IF('Blank - Request Form'!$F$7=\"CICMP\",IF('Blank - Request Form'!M185=0,\"\",'Blank - Request Form'!M185),\"\"))","v":""},{"$f":"IF('Blank - Request Form'!$F$6=\"CICMP\",IF('Blank - Request Form'!E185=0,\"\",'Blank - Request Form'!E185),IF('Blank - Request Form'!$F$7=\"CICMP\",IF('Blank - Request Form'!N185=0,\"\",'Blank - Request Form'!N185),\"\"))","v":""},{"$f":"IF('Blank - Request Form'!$F$6=\"CICMP\",IF(OR('Blank - Request Form'!F185=\"000\",'Blank - Request Form'!F185=0),\"\",'Blank - Request Form'!F185),IF('Blank - Request Form'!$F$7=\"CICMP\",IF(OR('Blank - Request Form'!O185=\"000\",'Blank - Request Form'!O185=0),\"\",'Blank - Request Form'!O185),\"\"))","v":""},{"$f":"IF('Blank - Request Form'!$F$6=\"CICMP\",IF(OR('Blank - Request Form'!G185=\"0\",'Blank - Request Form'!G185=\"00000\",'Blank - Request Form'!G185=0),\"\",'Blank - Request Form'!G185),IF('Blank - Request Form'!$F$7=\"CICMP\",IF(OR('Blank - Request Form'!P185=\"0\",'Blank - Request Form'!P185=\"00000\",'Blank - Request Form'!P185=0),\"\",'Blank - Request Form'!P185),\"\"))","v":""},{"$f":"IF('Blank - Request Form'!$F$6=\"CICMP\",IF(OR('Blank - Request Form'!H185=\"0\",'Blank - Request Form'!H185=\"00000\",'Blank - Request Form'!H185=0),\"\",'Blank - Request Form'!H185),IF('Blank - Request Form'!$F$7=\"CICMP\",IF(OR('Blank - Request Form'!Q185=\"0\",'Blank - Request Form'!Q185=\"00000\",'Blank - Request Form'!Q185=0),\"\",'Blank - Request Form'!Q185),\"\"))","v":""},{"$f":"IF('Blank - Request Form'!$F$6=\"CICMP\",IF(OR('Blank - Request Form'!I185=\"0\",'Blank - Request Form'!I185=\"00000\",'Blank - Request Form'!I185=0),\"\",'Blank - Request Form'!I185),IF('Blank - Request Form'!$F$7=\"CICMP\",IF(OR('Blank - Request Form'!R185=\"0\",'Blank - Request Form'!R185=\"00000\",'Blank - Request Form'!R185=0),\"\",'Blank - Request Form'!R185),\"\"))","v":""},null,{"$f":"IF('Blank - Request Form'!$F$6=\"CICMP\",IF('Blank - Request Form'!K185=0,\"\",'Blank - Request Form'!K185),IF('Blank - Request Form'!$F$7=\"CICMP\",IF('Blank - Request Form'!T185=0,\"\",'Blank - Request Form'!T185),\"\"))","v":""},null,null,null,{"$f":"IF(M151<>\"\",'Blank - Request Form'!$M$2,\"\")","v":""},{"$f":"IF('Blank - Request Form'!$F$6=\"CICMP\",IF('Blank - Request Form'!J185=0,\"\",'Blank - Request Form'!J185),IF('Blank - Request Form'!$F$7=\"CICMP\",IF('Blank - Request Form'!S185=0,\"\",'Blank - Request Form'!S185),\"\"))","v":""},"",151]
[{"$f":"IF('Blank - Request Form'!$F$6=\"CICMP\",IF('Blank - Request Form'!D186=0,\"\",'Blank - Request Form'!D186),IF('Blank - Request Form'!$F$7=\"CICMP\",IF('Blank - Request Form'!M186=0,\"\",'Blank - Request Form'!M186),\"\"))","v":""},{"$f":"IF('Blank - Request Form'!$F$6=\"CICMP\",IF('Blank - Request Form'!E186=0,\"\",'Blank - Request Form'!E186),IF('Blank - Request Form'!$F$7=\"CICMP\",IF('Blank - Request Form'!N186=0,\"\",'Blank - Request Form'!N186),\"\"))","v":""},{"$f":"IF('Blank - Request Form'!$F$6=\"CICMP\",IF(OR('Blank - Request Form'!F186=\"000\",'Blank - Request Form'!F186=0),\"\",'Blank - Request Form'!F186),IF('Blank - Request Form'!$F$7=\"CICMP\",IF(OR('Blank - Request Form'!O186=\"000\",'Blank - Request Form'!O186=0),\"\",'Blank - Request Form'!O186),\"\"))","v":""},{"$f":"IF('Blank - Request Form'!$F$6=\"CICMP\",IF(OR('Blank - Request Form'!G186=\"0\",'Blank - Request Form'!G186=\"00000\",'Blank - Request Form'!G186=0),\"\",'Blank - Request Form'!G186),IF('Blank - Request Form'!$F$7=\"CICMP\",IF(OR('Blank - Request Form'!P186=\"0\",'Blank - Request Form'!P186=\"00000\",'Blank - Request Form'!P186=0),\"\",'Blank - Request Form'!P186),\"\"))","v":""},{"$f":"IF('Blank - Request Form'!$F$6=\"CICMP\",IF(OR('Blank - Request Form'!H186=\"0\",'Blank - Request Form'!H186=\"00000\",'Blank - Request Form'!H186=0),\"\",'Blank - Request Form'!H186),IF('Blank - Request Form'!$F$7=\"CICMP\",IF(OR('Blank - Request Form'!Q186=\"0\",'Blank - Request Form'!Q186=\"00000\",'Blank - Request Form'!Q186=0),\"\",'Blank - Request Form'!Q186),\"\"))","v":""},{"$f":"IF('Blank - Request Form'!$F$6=\"CICMP\",IF(OR('Blank - Request Form'!I186=\"0\",'Blank - Request Form'!I186=\"00000\",'Blank - Request Form'!I186=0),\"\",'Blank - Request Form'!I186),IF('Blank - Request Form'!$F$7=\"CICMP\",IF(OR('Blank - Request Form'!R186=\"0\",'Blank - Request Form'!R186=\"00000\",'Blank - Request Form'!R186=0),\"\",'Blank - Request Form'!R186),\"\"))","v":""},null,{"$f":"IF('Blank - Request Form'!$F$6=\"CICMP\",IF('Blank - Request Form'!K186=0,\"\",'Blank - Request Form'!K186),IF('Blank - Request Form'!$F$7=\"CICMP\",IF('Blank - Request Form'!T186=0,\"\",'Blank - Request Form'!T186),\"\"))","v":""},null,null,null,{"$f":"IF(M152<>\"\",'Blank - Request Form'!$M$2,\"\")","v":""},{"$f":"IF('Blank - Request Form'!$F$6=\"CICMP\",IF('Blank - Request Form'!J186=0,\"\",'Blank - Request Form'!J186),IF('Blank - Request Form'!$F$7=\"CICMP\",IF('Blank - Request Form'!S186=0,\"\",'Blank - Request Form'!S186),\"\"))","v":""},"",152]
[{"$f":"IF('Blank - Request Form'!$F$6=\"CICMP\",IF('Blank - Request Form'!D187=0,\"\",'Blank - Request Form'!D187),IF('Blank - Request Form'!$F$7=\"CICMP\",IF('Blank - Request Form'!M187=0,\"\",'Blank - Request Form'!M187),\"\"))","v":""},{"$f":"IF('Blank - Request Form'!$F$6=\"CICMP\",IF('Blank - Request Form'!E187=0,\"\",'Blank - Request Form'!E187),IF('Blank - Request Form'!$F$7=\"CICMP\",IF('Blank - Request Form'!N187=0,\"\",'Blank - Request Form'!N187),\"\"))","v":""},{"$f":"IF('Blank - Request Form'!$F$6=\"CICMP\",IF(OR('Blank - Request Form'!F187=\"000\",'Blank - Request Form'!F187=0),\"\",'Blank - Request Form'!F187),IF('Blank - Request Form'!$F$7=\"CICMP\",IF(OR('Blank - Request Form'!O187=\"000\",'Blank - Request Form'!O187=0),\"\",'Blank - Request Form'!O187),\"\"))","v":""},{"$f":"IF('Blank - Request Form'!$F$6=\"CICMP\",IF(OR('Blank - Request Form'!G187=\"0\",'Blank - Request Form'!G187=\"00000\",'Blank - Request Form'!G187=0),\"\",'Blank - Request Form'!G187),IF('Blank - Request Form'!$F$7=\"CICMP\",IF(OR('Blank - Request Form'!P187=\"0\",'Blank - Request Form'!P187=\"00000\",'Blank - Request Form'!P187=0),\"\",'Blank - Request Form'!P187),\"\"))","v":""},{"$f":"IF('Blank - Request Form'!$F$6=\"CICMP\",IF(OR('Blank - Request Form'!H187=\"0\",'Blank - Request Form'!H187=\"00000\",'Blank - Request Form'!H187=0),\"\",'Blank - Request Form'!H187),IF('Blank - Request Form'!$F$7=\"CICMP\",IF(OR('Blank - Request Form'!Q187=\"0\",'Blank - Request Form'!Q187=\"00000\",'Blank - Request Form'!Q187=0),\"\",'Blank - Request Form'!Q187),\"\"))","v":""},{"$f":"IF('Blank - Request Form'!$F$6=\"CICMP\",IF(OR('Blank - Request Form'!I187=\"0\",'Blank - Request Form'!I187=\"00000\",'Blank - Request Form'!I187=0),\"\",'Blank - Request Form'!I187),IF('Blank - Request Form'!$F$7=\"CICMP\",IF(OR('Blank - Request Form'!R187=\"0\",'Blank - Request Form'!R187=\"00000\",'Blank - Request Form'!R187=0),\"\",'Blank - Request Form'!R187),\"\"))","v":""},null,{"$f":"IF('Blank - Request Form'!$F$6=\"CICMP\",IF('Blank - Request Form'!K187=0,\"\",'Blank - Request Form'!K187),IF('Blank - Request Form'!$F$7=\"CICMP\",IF('Blank - Request Form'!T187=0,\"\",'Blank - Request Form'!T187),\"\"))","v":""},null,null,null,{"$f":"IF(M153<>\"\",'Blank - Request Form'!$M$2,\"\")","v":""},{"$f":"IF('Blank - Request Form'!$F$6=\"CICMP\",IF('Blank - Request Form'!J187=0,\"\",'Blank - Request Form'!J187),IF('Blank - Request Form'!$F$7=\"CICMP\",IF('Blank - Request Form'!S187=0,\"\",'Blank - Request Form'!S187),\"\"))","v":""},"",153]
[{"$f":"IF('Blank - Request Form'!$F$6=\"CICMP\",IF('Blank - Request Form'!D188=0,\"\",'Blank - Request Form'!D188),IF('Blank - Request Form'!$F$7=\"CICMP\",IF('Blank - Request Form'!M188=0,\"\",'Blank - Request Form'!M188),\"\"))","v":""},{"$f":"IF('Blank - Request Form'!$F$6=\"CICMP\",IF('Blank - Request Form'!E188=0,\"\",'Blank - Request Form'!E188),IF('Blank - Request Form'!$F$7=\"CICMP\",IF('Blank - Request Form'!N188=0,\"\",'Blank - Request Form'!N188),\"\"))","v":""},{"$f":"IF('Blank - Request Form'!$F$6=\"CICMP\",IF(OR('Blank - Request Form'!F188=\"000\",'Blank - Request Form'!F188=0),\"\",'Blank - Request Form'!F188),IF('Blank - Request Form'!$F$7=\"CICMP\",IF(OR('Blank - Request Form'!O188=\"000\",'Blank - Request Form'!O188=0),\"\",'Blank - Request Form'!O188),\"\"))","v":""},{"$f":"IF('Blank - Request Form'!$F$6=\"CICMP\",IF(OR('Blank - Request Form'!G188=\"0\",'Blank - Request Form'!G188=\"00000\",'Blank - Request Form'!G188=0),\"\",'Blank - Request Form'!G188),IF('Blank - Request Form'!$F$7=\"CICMP\",IF(OR('Blank - Request Form'!P188=\"0\",'Blank - Request Form'!P188=\"00000\",'Blank - Request Form'!P188=0),\"\",'Blank - Request Form'!P188),\"\"))","v":""},{"$f":"IF('Blank - Request Form'!$F$6=\"CICMP\",IF(OR('Blank - Request Form'!H188=\"0\",'Blank - Request Form'!H188=\"00000\",'Blank - Request Form'!H188=0),\"\",'Blank - Request Form'!H188),IF('Blank - Request Form'!$F$7=\"CICMP\",IF(OR('Blank - Request Form'!Q188=\"0\",'Blank - Request Form'!Q188=\"00000\",'Blank - Request Form'!Q188=0),\"\",'Blank - Request Form'!Q188),\"\"))","v":""},{"$f":"IF('Blank - Request Form'!$F$6=\"CICMP\",IF(OR('Blank - Request Form'!I188=\"0\",'Blank - Request Form'!I188=\"00000\",'Blank - Request Form'!I188=0),\"\",'Blank - Request Form'!I188),IF('Blank - Request Form'!$F$7=\"CICMP\",IF(OR('Blank - Request Form'!R188=\"0\",'Blank - Request Form'!R188=\"00000\",'Blank - Request Form'!R188=0),\"\",'Blank - Request Form'!R188),\"\"))","v":""},null,{"$f":"IF('Blank - Request Form'!$F$6=\"CICMP\",IF('Blank - Request Form'!K188=0,\"\",'Blank - Request Form'!K188),IF('Blank - Request Form'!$F$7=\"CICMP\",IF('Blank - Request Form'!T188=0,\"\",'Blank - Request Form'!T188),\"\"))","v":""},null,null,null,{"$f":"IF(M154<>\"\",'Blank - Request Form'!$M$2,\"\")","v":""},{"$f":"IF('Blank - Request Form'!$F$6=\"CICMP\",IF('Blank - Request Form'!J188=0,\"\",'Blank - Request Form'!J188),IF('Blank - Request Form'!$F$7=\"CICMP\",IF('Blank - Request Form'!S188=0,\"\",'Blank - Request Form'!S188),\"\"))","v":""},"",154]
[{"$f":"IF('Blank - Request Form'!$F$6=\"CICMP\",IF('Blank - Request Form'!D189=0,\"\",'Blank - Request Form'!D189),IF('Blank - Request Form'!$F$7=\"CICMP\",IF('Blank - Request Form'!M189=0,\"\",'Blank - Request Form'!M189),\"\"))","v":""},{"$f":"IF('Blank - Request Form'!$F$6=\"CICMP\",IF('Blank - Request Form'!E189=0,\"\",'Blank - Request Form'!E189),IF('Blank - Request Form'!$F$7=\"CICMP\",IF('Blank - Request Form'!N189=0,\"\",'Blank - Request Form'!N189),\"\"))","v":""},{"$f":"IF('Blank - Request Form'!$F$6=\"CICMP\",IF(OR('Blank - Request Form'!F189=\"000\",'Blank - Request Form'!F189=0),\"\",'Blank - Request Form'!F189),IF('Blank - Request Form'!$F$7=\"CICMP\",IF(OR('Blank - Request Form'!O189=\"000\",'Blank - Request Form'!O189=0),\"\",'Blank - Request Form'!O189),\"\"))","v":""},{"$f":"IF('Blank - Request Form'!$F$6=\"CICMP\",IF(OR('Blank - Request Form'!G189=\"0\",'Blank - Request Form'!G189=\"00000\",'Blank - Request Form'!G189=0),\"\",'Blank - Request Form'!G189),IF('Blank - Request Form'!$F$7=\"CICMP\",IF(OR('Blank - Request Form'!P189=\"0\",'Blank - Request Form'!P189=\"00000\",'Blank - Request Form'!P189=0),\"\",'Blank - Request Form'!P189),\"\"))","v":""},{"$f":"IF('Blank - Request Form'!$F$6=\"CICMP\",IF(OR('Blank - Request Form'!H189=\"0\",'Blank - Request Form'!H189=\"00000\",'Blank - Request Form'!H189=0),\"\",'Blank - Request Form'!H189),IF('Blank - Request Form'!$F$7=\"CICMP\",IF(OR('Blank - Request Form'!Q189=\"0\",'Blank - Request Form'!Q189=\"00000\",'Blank - Request Form'!Q189=0),\"\",'Blank - Request Form'!Q189),\"\"))","v":""},{"$f":"IF('Blank - Request Form'!$F$6=\"CICMP\",IF(OR('Blank - Request Form'!I189=\"0\",'Blank - Request Form'!I189=\"00000\",'Blank - Request Form'!I189=0),\"\",'Blank - Request Form'!I189),IF('Blank - Request Form'!$F$7=\"CICMP\",IF(OR('Blank - Request Form'!R189=\"0\",'Blank - Request Form'!R189=\"00000\",'Blank - Request Form'!R189=0),\"\",'Blank - Request Form'!R189),\"\"))","v":""},null,{"$f":"IF('Blank - Request Form'!$F$6=\"CICMP\",IF('Blank - Request Form'!K189=0,\"\",'Blank - Request Form'!K189),IF('Blank - Request Form'!$F$7=\"CICMP\",IF('Blank - Request Form'!T189=0,\"\",'Blank - Request Form'!T189),\"\"))","v":""},null,null,null,{"$f":"IF(M155<>\"\",'Blank - Request Form'!$M$2,\"\")","v":""},{"$f":"IF('Blank - Request Form'!$F$6=\"CICMP\",IF('Blank - Request Form'!J189=0,\"\",'Blank - Request Form'!J189),IF('Blank - Request Form'!$F$7=\"CICMP\",IF('Blank - Request Form'!S189=0,\"\",'Blank - Request Form'!S189),\"\"))","v":""},"",155]
[{"$f":"IF('Blank - Request Form'!$F$6=\"CICMP\",IF('Blank - Request Form'!D190=0,\"\",'Blank - Request Form'!D190),IF('Blank - Request Form'!$F$7=\"CICMP\",IF('Blank - Request Form'!M190=0,\"\",'Blank - Request Form'!M190),\"\"))","v":""},{"$f":"IF('Blank - Request Form'!$F$6=\"CICMP\",IF('Blank - Request Form'!E190=0,\"\",'Blank - Request Form'!E190),IF('Blank - Request Form'!$F$7=\"CICMP\",IF('Blank - Request Form'!N190=0,\"\",'Blank - Request Form'!N190),\"\"))","v":""},{"$f":"IF('Blank - Request Form'!$F$6=\"CICMP\",IF(OR('Blank - Request Form'!F190=\"000\",'Blank - Request Form'!F190=0),\"\",'Blank - Request Form'!F190),IF('Blank - Request Form'!$F$7=\"CICMP\",IF(OR('Blank - Request Form'!O190=\"000\",'Blank - Request Form'!O190=0),\"\",'Blank - Request Form'!O190),\"\"))","v":""},{"$f":"IF('Blank - Request Form'!$F$6=\"CICMP\",IF(OR('Blank - Request Form'!G190=\"0\",'Blank - Request Form'!G190=\"00000\",'Blank - Request Form'!G190=0),\"\",'Blank - Request Form'!G190),IF('Blank - Request Form'!$F$7=\"CICMP\",IF(OR('Blank - Request Form'!P190=\"0\",'Blank - Request Form'!P190=\"00000\",'Blank - Request Form'!P190=0),\"\",'Blank - Request Form'!P190),\"\"))","v":""},{"$f":"IF('Blank - Request Form'!$F$6=\"CICMP\",IF(OR('Blank - Request Form'!H190=\"0\",'Blank - Request Form'!H190=\"00000\",'Blank - Request Form'!H190=0),\"\",'Blank - Request Form'!H190),IF('Blank - Request Form'!$F$7=\"CICMP\",IF(OR('Blank - Request Form'!Q190=\"0\",'Blank - Request Form'!Q190=\"00000\",'Blank - Request Form'!Q190=0),\"\",'Blank - Request Form'!Q190),\"\"))","v":""},{"$f":"IF('Blank - Request Form'!$F$6=\"CICMP\",IF(OR('Blank - Request Form'!I190=\"0\",'Blank - Request Form'!I190=\"00000\",'Blank - Request Form'!I190=0),\"\",'Blank - Request Form'!I190),IF('Blank - Request Form'!$F$7=\"CICMP\",IF(OR('Blank - Request Form'!R190=\"0\",'Blank - Request Form'!R190=\"00000\",'Blank - Request Form'!R190=0),\"\",'Blank - Request Form'!R190),\"\"))","v":""},null,{"$f":"IF('Blank - Request Form'!$F$6=\"CICMP\",IF('Blank - Request Form'!K190=0,\"\",'Blank - Request Form'!K190),IF('Blank - Request Form'!$F$7=\"CICMP\",IF('Blank - Request Form'!T190=0,\"\",'Blank - Request Form'!T190),\"\"))","v":""},null,null,null,{"$f":"IF(M156<>\"\",'Blank - Request Form'!$M$2,\"\")","v":""},{"$f":"IF('Blank - Request Form'!$F$6=\"CICMP\",IF('Blank - Request Form'!J190=0,\"\",'Blank - Request Form'!J190),IF('Blank - Request Form'!$F$7=\"CICMP\",IF('Blank - Request Form'!S190=0,\"\",'Blank - Request Form'!S190),\"\"))","v":""},"",156]
[{"$f":"IF('Blank - Request Form'!$F$6=\"CICMP\",IF('Blank - Request Form'!D191=0,\"\",'Blank - Request Form'!D191),IF('Blank - Request Form'!$F$7=\"CICMP\",IF('Blank - Request Form'!M191=0,\"\",'Blank - Request Form'!M191),\"\"))","v":""},{"$f":"IF('Blank - Request Form'!$F$6=\"CICMP\",IF('Blank - Request Form'!E191=0,\"\",'Blank - Request Form'!E191),IF('Blank - Request Form'!$F$7=\"CICMP\",IF('Blank - Request Form'!N191=0,\"\",'Blank - Request Form'!N191),\"\"))","v":""},{"$f":"IF('Blank - Request Form'!$F$6=\"CICMP\",IF(OR('Blank - Request Form'!F191=\"000\",'Blank - Request Form'!F191=0),\"\",'Blank - Request Form'!F191),IF('Blank - Request Form'!$F$7=\"CICMP\",IF(OR('Blank - Request Form'!O191=\"000\",'Blank - Request Form'!O191=0),\"\",'Blank - Request Form'!O191),\"\"))","v":""},{"$f":"IF('Blank - Request Form'!$F$6=\"CICMP\",IF(OR('Blank - Request Form'!G191=\"0\",'Blank - Request Form'!G191=\"00000\",'Blank - Request Form'!G191=0),\"\",'Blank - Request Form'!G191),IF('Blank - Request Form'!$F$7=\"CICMP\",IF(OR('Blank - Request Form'!P191=\"0\",'Blank - Request Form'!P191=\"00000\",'Blank - Request Form'!P191=0),\"\",'Blank - Request Form'!P191),\"\"))","v":""},{"$f":"IF('Blank - Request Form'!$F$6=\"CICMP\",IF(OR('Blank - Request Form'!H191=\"0\",'Blank - Request Form'!H191=\"00000\",'Blank - Request Form'!H191=0),\"\",'Blank - Request Form'!H191),IF('Blank - Request Form'!$F$7=\"CICMP\",IF(OR('Blank - Request Form'!Q191=\"0\",'Blank - Request Form'!Q191=\"00000\",'Blank - Request Form'!Q191=0),\"\",'Blank - Request Form'!Q191),\"\"))","v":""},{"$f":"IF('Blank - Request Form'!$F$6=\"CICMP\",IF(OR('Blank - Request Form'!I191=\"0\",'Blank - Request Form'!I191=\"00000\",'Blank - Request Form'!I191=0),\"\",'Blank - Request Form'!I191),IF('Blank - Request Form'!$F$7=\"CICMP\",IF(OR('Blank - Request Form'!R191=\"0\",'Blank - Request Form'!R191=\"00000\",'Blank - Request Form'!R191=0),\"\",'Blank - Request Form'!R191),\"\"))","v":""},null,{"$f":"IF('Blank - Request Form'!$F$6=\"CICMP\",IF('Blank - Request Form'!K191=0,\"\",'Blank - Request Form'!K191),IF('Blank - Request Form'!$F$7=\"CICMP\",IF('Blank - Request Form'!T191=0,\"\",'Blank - Request Form'!T191),\"\"))","v":""},null,null,null,{"$f":"IF(M157<>\"\",'Blank - Request Form'!$M$2,\"\")","v":""},{"$f":"IF('Blank - Request Form'!$F$6=\"CICMP\",IF('Blank - Request Form'!J191=0,\"\",'Blank - Request Form'!J191),IF('Blank - Request Form'!$F$7=\"CICMP\",IF('Blank - Request Form'!S191=0,\"\",'Blank - Request Form'!S191),\"\"))","v":""},"",157]
[{"$f":"IF('Blank - Request Form'!$F$6=\"CICMP\",IF('Blank - Request Form'!D192=0,\"\",'Blank - Request Form'!D192),IF('Blank - Request Form'!$F$7=\"CICMP\",IF('Blank - Request Form'!M192=0,\"\",'Blank - Request Form'!M192),\"\"))","v":""},{"$f":"IF('Blank - Request Form'!$F$6=\"CICMP\",IF('Blank - Request Form'!E192=0,\"\",'Blank - Request Form'!E192),IF('Blank - Request Form'!$F$7=\"CICMP\",IF('Blank - Request Form'!N192=0,\"\",'Blank - Request Form'!N192),\"\"))","v":""},{"$f":"IF('Blank - Request Form'!$F$6=\"CICMP\",IF(OR('Blank - Request Form'!F192=\"000\",'Blank - Request Form'!F192=0),\"\",'Blank - Request Form'!F192),IF('Blank - Request Form'!$F$7=\"CICMP\",IF(OR('Blank - Request Form'!O192=\"000\",'Blank - Request Form'!O192=0),\"\",'Blank - Request Form'!O192),\"\"))","v":""},{"$f":"IF('Blank - Request Form'!$F$6=\"CICMP\",IF(OR('Blank - Request Form'!G192=\"0\",'Blank - Request Form'!G192=\"00000\",'Blank - Request Form'!G192=0),\"\",'Blank - Request Form'!G192),IF('Blank - Request Form'!$F$7=\"CICMP\",IF(OR('Blank - Request Form'!P192=\"0\",'Blank - Request Form'!P192=\"00000\",'Blank - Request Form'!P192=0),\"\",'Blank - Request Form'!P192),\"\"))","v":""},{"$f":"IF('Blank - Request Form'!$F$6=\"CICMP\",IF(OR('Blank - Request Form'!H192=\"0\",'Blank - Request Form'!H192=\"00000\",'Blank - Request Form'!H192=0),\"\",'Blank - Request Form'!H192),IF('Blank - Request Form'!$F$7=\"CICMP\",IF(OR('Blank - Request Form'!Q192=\"0\",'Blank - Request Form'!Q192=\"00000\",'Blank - Request Form'!Q192=0),\"\",'Blank - Request Form'!Q192),\"\"))","v":""},{"$f":"IF('Blank - Request Form'!$F$6=\"CICMP\",IF(OR('Blank - Request Form'!I192=\"0\",'Blank - Request Form'!I192=\"00000\",'Blank - Request Form'!I192=0),\"\",'Blank - Request Form'!I192),IF('Blank - Request Form'!$F$7=\"CICMP\",IF(OR('Blank - Request Form'!R192=\"0\",'Blank - Request Form'!R192=\"00000\",'Blank - Request Form'!R192=0),\"\",'Blank - Request Form'!R192),\"\"))","v":""},null,{"$f":"IF('Blank - Request Form'!$F$6=\"CICMP\",IF('Blank - Request Form'!K192=0,\"\",'Blank - Request Form'!K192),IF('Blank - Request Form'!$F$7=\"CICMP\",IF('Blank - Request Form'!T192=0,\"\",'Blank - Request Form'!T192),\"\"))","v":""},null,null,null,{"$f":"IF(M158<>\"\",'Blank - Request Form'!$M$2,\"\")","v":""},{"$f":"IF('Blank - Request Form'!$F$6=\"CICMP\",IF('Blank - Request Form'!J192=0,\"\",'Blank - Request Form'!J192),IF('Blank - Request Form'!$F$7=\"CICMP\",IF('Blank - Request Form'!S192=0,\"\",'Blank - Request Form'!S192),\"\"))","v":""},"",158]
[{"$f":"IF('Blank - Request Form'!$F$6=\"CICMP\",IF('Blank - Request Form'!D193=0,\"\",'Blank - Request Form'!D193),IF('Blank - Request Form'!$F$7=\"CICMP\",IF('Blank - Request Form'!M193=0,\"\",'Blank - Request Form'!M193),\"\"))","v":""},{"$f":"IF('Blank - Request Form'!$F$6=\"CICMP\",IF('Blank - Request Form'!E193=0,\"\",'Blank - Request Form'!E193),IF('Blank - Request Form'!$F$7=\"CICMP\",IF('Blank - Request Form'!N193=0,\"\",'Blank - Request Form'!N193),\"\"))","v":""},{"$f":"IF('Blank - Request Form'!$F$6=\"CICMP\",IF(OR('Blank - Request Form'!F193=\"000\",'Blank - Request Form'!F193=0),\"\",'Blank - Request Form'!F193),IF('Blank - Request Form'!$F$7=\"CICMP\",IF(OR('Blank - Request Form'!O193=\"000\",'Blank - Request Form'!O193=0),\"\",'Blank - Request Form'!O193),\"\"))","v":""},{"$f":"IF('Blank - Request Form'!$F$6=\"CICMP\",IF(OR('Blank - Request Form'!G193=\"0\",'Blank - Request Form'!G193=\"00000\",'Blank - Request Form'!G193=0),\"\",'Blank - Request Form'!G193),IF('Blank - Request Form'!$F$7=\"CICMP\",IF(OR('Blank - Request Form'!P193=\"0\",'Blank - Request Form'!P193=\"00000\",'Blank - Request Form'!P193=0),\"\",'Blank - Request Form'!P193),\"\"))","v":""},{"$f":"IF('Blank - Request Form'!$F$6=\"CICMP\",IF(OR('Blank - Request Form'!H193=\"0\",'Blank - Request Form'!H193=\"00000\",'Blank - Request Form'!H193=0),\"\",'Blank - Request Form'!H193),IF('Blank - Request Form'!$F$7=\"CICMP\",IF(OR('Blank - Request Form'!Q193=\"0\",'Blank - Request Form'!Q193=\"00000\",'Blank - Request Form'!Q193=0),\"\",'Blank - Request Form'!Q193),\"\"))","v":""},{"$f":"IF('Blank - Request Form'!$F$6=\"CICMP\",IF(OR('Blank - Request Form'!I193=\"0\",'Blank - Request Form'!I193=\"00000\",'Blank - Request Form'!I193=0),\"\",'Blank - Request Form'!I193),IF('Blank - Request Form'!$F$7=\"CICMP\",IF(OR('Blank - Request Form'!R193=\"0\",'Blank - Request Form'!R193=\"00000\",'Blank - Request Form'!R193=0),\"\",'Blank - Request Form'!R193),\"\"))","v":""},null,{"$f":"IF('Blank - Request Form'!$F$6=\"CICMP\",IF('Blank - Request Form'!K193=0,\"\",'Blank - Request Form'!K193),IF('Blank - Request Form'!$F$7=\"CICMP\",IF('Blank - Request Form'!T193=0,\"\",'Blank - Request Form'!T193),\"\"))","v":""},null,null,null,{"$f":"IF(M159<>\"\",'Blank - Request Form'!$M$2,\"\")","v":""},{"$f":"IF('Blank - Request Form'!$F$6=\"CICMP\",IF('Blank - Request Form'!J193=0,\"\",'Blank - Request Form'!J193),IF('Blank - Request Form'!$F$7=\"CICMP\",IF('Blank - Request Form'!S193=0,\"\",'Blank - Request Form'!S193),\"\"))","v":""},"",159]
[{"$f":"IF('Blank - Request Form'!$F$6=\"CICMP\",IF('Blank - Request Form'!D194=0,\"\",'Blank - Request Form'!D194),IF('Blank - Request Form'!$F$7=\"CICMP\",IF('Blank - Request Form'!M194=0,\"\",'Blank - Request Form'!M194),\"\"))","v":""},{"$f":"IF('Blank - Request Form'!$F$6=\"CICMP\",IF('Blank - Request Form'!E194=0,\"\",'Blank - Request Form'!E194),IF('Blank - Request Form'!$F$7=\"CICMP\",IF('Blank - Request Form'!N194=0,\"\",'Blank - Request Form'!N194),\"\"))","v":""},{"$f":"IF('Blank - Request Form'!$F$6=\"CICMP\",IF(OR('Blank - Request Form'!F194=\"000\",'Blank - Request Form'!F194=0),\"\",'Blank - Request Form'!F194),IF('Blank - Request Form'!$F$7=\"CICMP\",IF(OR('Blank - Request Form'!O194=\"000\",'Blank - Request Form'!O194=0),\"\",'Blank - Request Form'!O194),\"\"))","v":""},{"$f":"IF('Blank - Request Form'!$F$6=\"CICMP\",IF(OR('Blank - Request Form'!G194=\"0\",'Blank - Request Form'!G194=\"00000\",'Blank - Request Form'!G194=0),\"\",'Blank - Request Form'!G194),IF('Blank - Request Form'!$F$7=\"CICMP\",IF(OR('Blank - Request Form'!P194=\"0\",'Blank - Request Form'!P194=\"00000\",'Blank - Request Form'!P194=0),\"\",'Blank - Request Form'!P194),\"\"))","v":""},{"$f":"IF('Blank - Request Form'!$F$6=\"CICMP\",IF(OR('Blank - Request Form'!H194=\"0\",'Blank - Request Form'!H194=\"00000\",'Blank - Request Form'!H194=0),\"\",'Blank - Request Form'!H194),IF('Blank - Request Form'!$F$7=\"CICMP\",IF(OR('Blank - Request Form'!Q194=\"0\",'Blank - Request Form'!Q194=\"00000\",'Blank - Request Form'!Q194=0),\"\",'Blank - Request Form'!Q194),\"\"))","v":""},{"$f":"IF('Blank - Request Form'!$F$6=\"CICMP\",IF(OR('Blank - Request Form'!I194=\"0\",'Blank - Request Form'!I194=\"00000\",'Blank - Request Form'!I194=0),\"\",'Blank - Request Form'!I194),IF('Blank - Request Form'!$F$7=\"CICMP\",IF(OR('Blank - Request Form'!R194=\"0\",'Blank - Request Form'!R194=\"00000\",'Blank - Request Form'!R194=0),\"\",'Blank - Request Form'!R194),\"\"))","v":""},null,{"$f":"IF('Blank - Request Form'!$F$6=\"CICMP\",IF('Blank - Request Form'!K194=0,\"\",'Blank - Request Form'!K194),IF('Blank - Request Form'!$F$7=\"CICMP\",IF('Blank - Request Form'!T194=0,\"\",'Blank - Request Form'!T194),\"\"))","v":""},null,null,null,{"$f":"IF(M160<>\"\",'Blank - Request Form'!$M$2,\"\")","v":""},{"$f":"IF('Blank - Request Form'!$F$6=\"CICMP\",IF('Blank - Request Form'!J194=0,\"\",'Blank - Request Form'!J194),IF('Blank - Request Form'!$F$7=\"CICMP\",IF('Blank - Request Form'!S194=0,\"\",'Blank - Request Form'!S194),\"\"))","v":""},"",160]
[{"$f":"IF('Blank - Request Form'!$F$6=\"CICMP\",IF('Blank - Request Form'!D195=0,\"\",'Blank - Request Form'!D195),IF('Blank - Request Form'!$F$7=\"CICMP\",IF('Blank - Request Form'!M195=0,\"\",'Blank - Request Form'!M195),\"\"))","v":""},{"$f":"IF('Blank - Request Form'!$F$6=\"CICMP\",IF('Blank - Request Form'!E195=0,\"\",'Blank - Request Form'!E195),IF('Blank - Request Form'!$F$7=\"CICMP\",IF('Blank - Request Form'!N195=0,\"\",'Blank - Request Form'!N195),\"\"))","v":""},{"$f":"IF('Blank - Request Form'!$F$6=\"CICMP\",IF(OR('Blank - Request Form'!F195=\"000\",'Blank - Request Form'!F195=0),\"\",'Blank - Request Form'!F195),IF('Blank - Request Form'!$F$7=\"CICMP\",IF(OR('Blank - Request Form'!O195=\"000\",'Blank - Request Form'!O195=0),\"\",'Blank - Request Form'!O195),\"\"))","v":""},{"$f":"IF('Blank - Request Form'!$F$6=\"CICMP\",IF(OR('Blank - Request Form'!G195=\"0\",'Blank - Request Form'!G195=\"00000\",'Blank - Request Form'!G195=0),\"\",'Blank - Request Form'!G195),IF('Blank - Request Form'!$F$7=\"CICMP\",IF(OR('Blank - Request Form'!P195=\"0\",'Blank - Request Form'!P195=\"00000\",'Blank - Request Form'!P195=0),\"\",'Blank - Request Form'!P195),\"\"))","v":""},{"$f":"IF('Blank - Request Form'!$F$6=\"CICMP\",IF(OR('Blank - Request Form'!H195=\"0\",'Blank - Request Form'!H195=\"00000\",'Blank - Request Form'!H195=0),\"\",'Blank - Request Form'!H195),IF('Blank - Request Form'!$F$7=\"CICMP\",IF(OR('Blank - Request Form'!Q195=\"0\",'Blank - Request Form'!Q195=\"00000\",'Blank - Request Form'!Q195=0),\"\",'Blank - Request Form'!Q195),\"\"))","v":""},{"$f":"IF('Blank - Request Form'!$F$6=\"CICMP\",IF(OR('Blank - Request Form'!I195=\"0\",'Blank - Request Form'!I195=\"00000\",'Blank - Request Form'!I195=0),\"\",'Blank - Request Form'!I195),IF('Blank - Request Form'!$F$7=\"CICMP\",IF(OR('Blank - Request Form'!R195=\"0\",'Blank - Request Form'!R195=\"00000\",'Blank - Request Form'!R195=0),\"\",'Blank - Request Form'!R195),\"\"))","v":""},null,{"$f":"IF('Blank - Request Form'!$F$6=\"CICMP\",IF('Blank - Request Form'!K195=0,\"\",'Blank - Request Form'!K195),IF('Blank - Request Form'!$F$7=\"CICMP\",IF('Blank - Request Form'!T195=0,\"\",'Blank - Request Form'!T195),\"\"))","v":""},null,null,null,{"$f":"IF(M161<>\"\",'Blank - Request Form'!$M$2,\"\")","v":""},{"$f":"IF('Blank - Request Form'!$F$6=\"CICMP\",IF('Blank - Request Form'!J195=0,\"\",'Blank - Request Form'!J195),IF('Blank - Request Form'!$F$7=\"CICMP\",IF('Blank - Request Form'!S195=0,\"\",'Blank - Request Form'!S195),\"\"))","v":""},"",161]
[{"$f":"IF('Blank - Request Form'!$F$6=\"CICMP\",IF('Blank - Request Form'!D196=0,\"\",'Blank - Request Form'!D196),IF('Blank - Request Form'!$F$7=\"CICMP\",IF('Blank - Request Form'!M196=0,\"\",'Blank - Request Form'!M196),\"\"))","v":""},{"$f":"IF('Blank - Request Form'!$F$6=\"CICMP\",IF('Blank - Request Form'!E196=0,\"\",'Blank - Request Form'!E196),IF('Blank - Request Form'!$F$7=\"CICMP\",IF('Blank - Request Form'!N196=0,\"\",'Blank - Request Form'!N196),\"\"))","v":""},{"$f":"IF('Blank - Request Form'!$F$6=\"CICMP\",IF(OR('Blank - Request Form'!F196=\"000\",'Blank - Request Form'!F196=0),\"\",'Blank - Request Form'!F196),IF('Blank - Request Form'!$F$7=\"CICMP\",IF(OR('Blank - Request Form'!O196=\"000\",'Blank - Request Form'!O196=0),\"\",'Blank - Request Form'!O196),\"\"))","v":""},{"$f":"IF('Blank - Request Form'!$F$6=\"CICMP\",IF(OR('Blank - Request Form'!G196=\"0\",'Blank - Request Form'!G196=\"00000\",'Blank - Request Form'!G196=0),\"\",'Blank - Request Form'!G196),IF('Blank - Request Form'!$F$7=\"CICMP\",IF(OR('Blank - Request Form'!P196=\"0\",'Blank - Request Form'!P196=\"00000\",'Blank - Request Form'!P196=0),\"\",'Blank - Request Form'!P196),\"\"))","v":""},{"$f":"IF('Blank - Request Form'!$F$6=\"CICMP\",IF(OR('Blank - Request Form'!H196=\"0\",'Blank - Request Form'!H196=\"00000\",'Blank - Request Form'!H196=0),\"\",'Blank - Request Form'!H196),IF('Blank - Request Form'!$F$7=\"CICMP\",IF(OR('Blank - Request Form'!Q196=\"0\",'Blank - Request Form'!Q196=\"00000\",'Blank - Request Form'!Q196=0),\"\",'Blank - Request Form'!Q196),\"\"))","v":""},{"$f":"IF('Blank - Request Form'!$F$6=\"CICMP\",IF(OR('Blank - Request Form'!I196=\"0\",'Blank - Request Form'!I196=\"00000\",'Blank - Request Form'!I196=0),\"\",'Blank - Request Form'!I196),IF('Blank - Request Form'!$F$7=\"CICMP\",IF(OR('Blank - Request Form'!R196=\"0\",'Blank - Request Form'!R196=\"00000\",'Blank - Request Form'!R196=0),\"\",'Blank - Request Form'!R196),\"\"))","v":""},null,{"$f":"IF('Blank - Request Form'!$F$6=\"CICMP\",IF('Blank - Request Form'!K196=0,\"\",'Blank - Request Form'!K196),IF('Blank - Request Form'!$F$7=\"CICMP\",IF('Blank - Request Form'!T196=0,\"\",'Blank - Request Form'!T196),\"\"))","v":""},null,null,null,{"$f":"IF(M162<>\"\",'Blank - Request Form'!$M$2,\"\")","v":""},{"$f":"IF('Blank - Request Form'!$F$6=\"CICMP\",IF('Blank - Request Form'!J196=0,\"\",'Blank - Request Form'!J196),IF('Blank - Request Form'!$F$7=\"CICMP\",IF('Blank - Request Form'!S196=0,\"\",'Blank - Request Form'!S196),\"\"))","v":""},"",162]
[{"$f":"IF('Blank - Request Form'!$F$6=\"CICMP\",IF('Blank - Request Form'!D197=0,\"\",'Blank - Request Form'!D197),IF('Blank - Request Form'!$F$7=\"CICMP\",IF('Blank - Request Form'!M197=0,\"\",'Blank - Request Form'!M197),\"\"))","v":""},{"$f":"IF('Blank - Request Form'!$F$6=\"CICMP\",IF('Blank - Request Form'!E197=0,\"\",'Blank - Request Form'!E197),IF('Blank - Request Form'!$F$7=\"CICMP\",IF('Blank - Request Form'!N197=0,\"\",'Blank - Request Form'!N197),\"\"))","v":""},{"$f":"IF('Blank - Request Form'!$F$6=\"CICMP\",IF(OR('Blank - Request Form'!F197=\"000\",'Blank - Request Form'!F197=0),\"\",'Blank - Request Form'!F197),IF('Blank - Request Form'!$F$7=\"CICMP\",IF(OR('Blank - Request Form'!O197=\"000\",'Blank - Request Form'!O197=0),\"\",'Blank - Request Form'!O197),\"\"))","v":""},{"$f":"IF('Blank - Request Form'!$F$6=\"CICMP\",IF(OR('Blank - Request Form'!G197=\"0\",'Blank - Request Form'!G197=\"00000\",'Blank - Request Form'!G197=0),\"\",'Blank - Request Form'!G197),IF('Blank - Request Form'!$F$7=\"CICMP\",IF(OR('Blank - Request Form'!P197=\"0\",'Blank - Request Form'!P197=\"00000\",'Blank - Request Form'!P197=0),\"\",'Blank - Request Form'!P197),\"\"))","v":""},{"$f":"IF('Blank - Request Form'!$F$6=\"CICMP\",IF(OR('Blank - Request Form'!H197=\"0\",'Blank - Request Form'!H197=\"00000\",'Blank - Request Form'!H197=0),\"\",'Blank - Request Form'!H197),IF('Blank - Request Form'!$F$7=\"CICMP\",IF(OR('Blank - Request Form'!Q197=\"0\",'Blank - Request Form'!Q197=\"00000\",'Blank - Request Form'!Q197=0),\"\",'Blank - Request Form'!Q197),\"\"))","v":""},{"$f":"IF('Blank - Request Form'!$F$6=\"CICMP\",IF(OR('Blank - Request Form'!I197=\"0\",'Blank - Request Form'!I197=\"00000\",'Blank - Request Form'!I197=0),\"\",'Blank - Request Form'!I197),IF('Blank - Request Form'!$F$7=\"CICMP\",IF(OR('Blank - Request Form'!R197=\"0\",'Blank - Request Form'!R197=\"00000\",'Blank - Request Form'!R197=0),\"\",'Blank - Request Form'!R197),\"\"))","v":""},null,{"$f":"IF('Blank - Request Form'!$F$6=\"CICMP\",IF('Blank - Request Form'!K197=0,\"\",'Blank - Request Form'!K197),IF('Blank - Request Form'!$F$7=\"CICMP\",IF('Blank - Request Form'!T197=0,\"\",'Blank - Request Form'!T197),\"\"))","v":""},null,null,null,{"$f":"IF(M163<>\"\",'Blank - Request Form'!$M$2,\"\")","v":""},{"$f":"IF('Blank - Request Form'!$F$6=\"CICMP\",IF('Blank - Request Form'!J197=0,\"\",'Blank - Request Form'!J197),IF('Blank - Request Form'!$F$7=\"CICMP\",IF('Blank - Request Form'!S197=0,\"\",'Blank - Request Form'!S197),\"\"))","v":""},"",163]
[{"$f":"IF('Blank - Request Form'!$F$6=\"CICMP\",IF('Blank - Request Form'!D198=0,\"\",'Blank - Request Form'!D198),IF('Blank - Request Form'!$F$7=\"CICMP\",IF('Blank - Request Form'!M198=0,\"\",'Blank - Request Form'!M198),\"\"))","v":""},{"$f":"IF('Blank - Request Form'!$F$6=\"CICMP\",IF('Blank - Request Form'!E198=0,\"\",'Blank - Request Form'!E198),IF('Blank - Request Form'!$F$7=\"CICMP\",IF('Blank - Request Form'!N198=0,\"\",'Blank - Request Form'!N198),\"\"))","v":""},{"$f":"IF('Blank - Request Form'!$F$6=\"CICMP\",IF(OR('Blank - Request Form'!F198=\"000\",'Blank - Request Form'!F198=0),\"\",'Blank - Request Form'!F198),IF('Blank - Request Form'!$F$7=\"CICMP\",IF(OR('Blank - Request Form'!O198=\"000\",'Blank - Request Form'!O198=0),\"\",'Blank - Request Form'!O198),\"\"))","v":""},{"$f":"IF('Blank - Request Form'!$F$6=\"CICMP\",IF(OR('Blank - Request Form'!G198=\"0\",'Blank - Request Form'!G198=\"00000\",'Blank - Request Form'!G198=0),\"\",'Blank - Request Form'!G198),IF('Blank - Request Form'!$F$7=\"CICMP\",IF(OR('Blank - Request Form'!P198=\"0\",'Blank - Request Form'!P198=\"00000\",'Blank - Request Form'!P198=0),\"\",'Blank - Request Form'!P198),\"\"))","v":""},{"$f":"IF('Blank - Request Form'!$F$6=\"CICMP\",IF(OR('Blank - Request Form'!H198=\"0\",'Blank - Request Form'!H198=\"00000\",'Blank - Request Form'!H198=0),\"\",'Blank - Request Form'!H198),IF('Blank - Request Form'!$F$7=\"CICMP\",IF(OR('Blank - Request Form'!Q198=\"0\",'Blank - Request Form'!Q198=\"00000\",'Blank - Request Form'!Q198=0),\"\",'Blank - Request Form'!Q198),\"\"))","v":""},{"$f":"IF('Blank - Request Form'!$F$6=\"CICMP\",IF(OR('Blank - Request Form'!I198=\"0\",'Blank - Request Form'!I198=\"00000\",'Blank - Request Form'!I198=0),\"\",'Blank - Request Form'!I198),IF('Blank - Request Form'!$F$7=\"CICMP\",IF(OR('Blank - Request Form'!R198=\"0\",'Blank - Request Form'!R198=\"00000\",'Blank - Request Form'!R198=0),\"\",'Blank - Request Form'!R198),\"\"))","v":""},null,{"$f":"IF('Blank - Request Form'!$F$6=\"CICMP\",IF('Blank - Request Form'!K198=0,\"\",'Blank - Request Form'!K198),IF('Blank - Request Form'!$F$7=\"CICMP\",IF('Blank - Request Form'!T198=0,\"\",'Blank - Request Form'!T198),\"\"))","v":""},null,null,null,{"$f":"IF(M164<>\"\",'Blank - Request Form'!$M$2,\"\")","v":""},{"$f":"IF('Blank - Request Form'!$F$6=\"CICMP\",IF('Blank - Request Form'!J198=0,\"\",'Blank - Request Form'!J198),IF('Blank - Request Form'!$F$7=\"CICMP\",IF('Blank - Request Form'!S198=0,\"\",'Blank - Request Form'!S198),\"\"))","v":""},"",164]
[{"$f":"IF('Blank - Request Form'!$F$6=\"CICMP\",IF('Blank - Request Form'!D199=0,\"\",'Blank - Request Form'!D199),IF('Blank - Request Form'!$F$7=\"CICMP\",IF('Blank - Request Form'!M199=0,\"\",'Blank - Request Form'!M199),\"\"))","v":""},{"$f":"IF('Blank - Request Form'!$F$6=\"CICMP\",IF('Blank - Request Form'!E199=0,\"\",'Blank - Request Form'!E199),IF('Blank - Request Form'!$F$7=\"CICMP\",IF('Blank - Request Form'!N199=0,\"\",'Blank - Request Form'!N199),\"\"))","v":""},{"$f":"IF('Blank - Request Form'!$F$6=\"CICMP\",IF(OR('Blank - Request Form'!F199=\"000\",'Blank - Request Form'!F199=0),\"\",'Blank - Request Form'!F199),IF('Blank - Request Form'!$F$7=\"CICMP\",IF(OR('Blank - Request Form'!O199=\"000\",'Blank - Request Form'!O199=0),\"\",'Blank - Request Form'!O199),\"\"))","v":""},{"$f":"IF('Blank - Request Form'!$F$6=\"CICMP\",IF(OR('Blank - Request Form'!G199=\"0\",'Blank - Request Form'!G199=\"00000\",'Blank - Request Form'!G199=0),\"\",'Blank - Request Form'!G199),IF('Blank - Request Form'!$F$7=\"CICMP\",IF(OR('Blank - Request Form'!P199=\"0\",'Blank - Request Form'!P199=\"00000\",'Blank - Request Form'!P199=0),\"\",'Blank - Request Form'!P199),\"\"))","v":""},{"$f":"IF('Blank - Request Form'!$F$6=\"CICMP\",IF(OR('Blank - Request Form'!H199=\"0\",'Blank - Request Form'!H199=\"00000\",'Blank - Request Form'!H199=0),\"\",'Blank - Request Form'!H199),IF('Blank - Request Form'!$F$7=\"CICMP\",IF(OR('Blank - Request Form'!Q199=\"0\",'Blank - Request Form'!Q199=\"00000\",'Blank - Request Form'!Q199=0),\"\",'Blank - Request Form'!Q199),\"\"))","v":""},{"$f":"IF('Blank - Request Form'!$F$6=\"CICMP\",IF(OR('Blank - Request Form'!I199=\"0\",'Blank - Request Form'!I199=\"00000\",'Blank - Request Form'!I199=0),\"\",'Blank - Request Form'!I199),IF('Blank - Request Form'!$F$7=\"CICMP\",IF(OR('Blank - Request Form'!R199=\"0\",'Blank - Request Form'!R199=\"00000\",'Blank - Request Form'!R199=0),\"\",'Blank - Request Form'!R199),\"\"))","v":""},null,{"$f":"IF('Blank - Request Form'!$F$6=\"CICMP\",IF('Blank - Request Form'!K199=0,\"\",'Blank - Request Form'!K199),IF('Blank - Request Form'!$F$7=\"CICMP\",IF('Blank - Request Form'!T199=0,\"\",'Blank - Request Form'!T199),\"\"))","v":""},null,null,null,{"$f":"IF(M165<>\"\",'Blank - Request Form'!$M$2,\"\")","v":""},{"$f":"IF('Blank - Request Form'!$F$6=\"CICMP\",IF('Blank - Request Form'!J199=0,\"\",'Blank - Request Form'!J199),IF('Blank - Request Form'!$F$7=\"CICMP\",IF('Blank - Request Form'!S199=0,\"\",'Blank - Request Form'!S199),\"\"))","v":""},"",165]
[{"$f":"IF('Blank - Request Form'!$F$6=\"CICMP\",IF('Blank - Request Form'!D200=0,\"\",'Blank - Request Form'!D200),IF('Blank - Request Form'!$F$7=\"CICMP\",IF('Blank - Request Form'!M200=0,\"\",'Blank - Request Form'!M200),\"\"))","v":""},{"$f":"IF('Blank - Request Form'!$F$6=\"CICMP\",IF('Blank - Request Form'!E200=0,\"\",'Blank - Request Form'!E200),IF('Blank - Request Form'!$F$7=\"CICMP\",IF('Blank - Request Form'!N200=0,\"\",'Blank - Request Form'!N200),\"\"))","v":""},{"$f":"IF('Blank - Request Form'!$F$6=\"CICMP\",IF(OR('Blank - Request Form'!F200=\"000\",'Blank - Request Form'!F200=0),\"\",'Blank - Request Form'!F200),IF('Blank - Request Form'!$F$7=\"CICMP\",IF(OR('Blank - Request Form'!O200=\"000\",'Blank - Request Form'!O200=0),\"\",'Blank - Request Form'!O200),\"\"))","v":""},{"$f":"IF('Blank - Request Form'!$F$6=\"CICMP\",IF(OR('Blank - Request Form'!G200=\"0\",'Blank - Request Form'!G200=\"00000\",'Blank - Request Form'!G200=0),\"\",'Blank - Request Form'!G200),IF('Blank - Request Form'!$F$7=\"CICMP\",IF(OR('Blank - Request Form'!P200=\"0\",'Blank - Request Form'!P200=\"00000\",'Blank - Request Form'!P200=0),\"\",'Blank - Request Form'!P200),\"\"))","v":""},{"$f":"IF('Blank - Request Form'!$F$6=\"CICMP\",IF(OR('Blank - Request Form'!H200=\"0\",'Blank - Request Form'!H200=\"00000\",'Blank - Request Form'!H200=0),\"\",'Blank - Request Form'!H200),IF('Blank - Request Form'!$F$7=\"CICMP\",IF(OR('Blank - Request Form'!Q200=\"0\",'Blank - Request Form'!Q200=\"00000\",'Blank - Request Form'!Q200=0),\"\",'Blank - Request Form'!Q200),\"\"))","v":""},{"$f":"IF('Blank - Request Form'!$F$6=\"CICMP\",IF(OR('Blank - Request Form'!I200=\"0\",'Blank - Request Form'!I200=\"00000\",'Blank - Request Form'!I200=0),\"\",'Blank - Request Form'!I200),IF('Blank - Request Form'!$F$7=\"CICMP\",IF(OR('Blank - Request Form'!R200=\"0\",'Blank - Request Form'!R200=\"00000\",'Blank - Request Form'!R200=0),\"\",'Blank - Request Form'!R200),\"\"))","v":""},null,{"$f":"IF('Blank - Request Form'!$F$6=\"CICMP\",IF('Blank - Request Form'!K200=0,\"\",'Blank - Request Form'!K200),IF('Blank - Request Form'!$F$7=\"CICMP\",IF('Blank - Request Form'!T200=0,\"\",'Blank - Request Form'!T200),\"\"))","v":""},null,null,null,{"$f":"IF(M166<>\"\",'Blank - Request Form'!$M$2,\"\")","v":""},{"$f":"IF('Blank - Request Form'!$F$6=\"CICMP\",IF('Blank - Request Form'!J200=0,\"\",'Blank - Request Form'!J200),IF('Blank - Request Form'!$F$7=\"CICMP\",IF('Blank - Request Form'!S200=0,\"\",'Blank - Request Form'!S200),\"\"))","v":""},"",166]
[{"$f":"IF('Blank - Request Form'!$F$6=\"CICMP\",IF('Blank - Request Form'!D201=0,\"\",'Blank - Request Form'!D201),IF('Blank - Request Form'!$F$7=\"CICMP\",IF('Blank - Request Form'!M201=0,\"\",'Blank - Request Form'!M201),\"\"))","v":""},{"$f":"IF('Blank - Request Form'!$F$6=\"CICMP\",IF('Blank - Request Form'!E201=0,\"\",'Blank - Request Form'!E201),IF('Blank - Request Form'!$F$7=\"CICMP\",IF('Blank - Request Form'!N201=0,\"\",'Blank - Request Form'!N201),\"\"))","v":""},{"$f":"IF('Blank - Request Form'!$F$6=\"CICMP\",IF(OR('Blank - Request Form'!F201=\"000\",'Blank - Request Form'!F201=0),\"\",'Blank - Request Form'!F201),IF('Blank - Request Form'!$F$7=\"CICMP\",IF(OR('Blank - Request Form'!O201=\"000\",'Blank - Request Form'!O201=0),\"\",'Blank - Request Form'!O201),\"\"))","v":""},{"$f":"IF('Blank - Request Form'!$F$6=\"CICMP\",IF(OR('Blank - Request Form'!G201=\"0\",'Blank - Request Form'!G201=\"00000\",'Blank - Request Form'!G201=0),\"\",'Blank - Request Form'!G201),IF('Blank - Request Form'!$F$7=\"CICMP\",IF(OR('Blank - Request Form'!P201=\"0\",'Blank - Request Form'!P201=\"00000\",'Blank - Request Form'!P201=0),\"\",'Blank - Request Form'!P201),\"\"))","v":""},{"$f":"IF('Blank - Request Form'!$F$6=\"CICMP\",IF(OR('Blank - Request Form'!H201=\"0\",'Blank - Request Form'!H201=\"00000\",'Blank - Request Form'!H201=0),\"\",'Blank - Request Form'!H201),IF('Blank - Request Form'!$F$7=\"CICMP\",IF(OR('Blank - Request Form'!Q201=\"0\",'Blank - Request Form'!Q201=\"00000\",'Blank - Request Form'!Q201=0),\"\",'Blank - Request Form'!Q201),\"\"))","v":""},{"$f":"IF('Blank - Request Form'!$F$6=\"CICMP\",IF(OR('Blank - Request Form'!I201=\"0\",'Blank - Request Form'!I201=\"00000\",'Blank - Request Form'!I201=0),\"\",'Blank - Request Form'!I201),IF('Blank - Request Form'!$F$7=\"CICMP\",IF(OR('Blank - Request Form'!R201=\"0\",'Blank - Request Form'!R201=\"00000\",'Blank - Request Form'!R201=0),\"\",'Blank - Request Form'!R201),\"\"))","v":""},null,{"$f":"IF('Blank - Request Form'!$F$6=\"CICMP\",IF('Blank - Request Form'!K201=0,\"\",'Blank - Request Form'!K201),IF('Blank - Request Form'!$F$7=\"CICMP\",IF('Blank - Request Form'!T201=0,\"\",'Blank - Request Form'!T201),\"\"))","v":""},null,null,null,{"$f":"IF(M167<>\"\",'Blank - Request Form'!$M$2,\"\")","v":""},{"$f":"IF('Blank - Request Form'!$F$6=\"CICMP\",IF('Blank - Request Form'!J201=0,\"\",'Blank - Request Form'!J201),IF('Blank - Request Form'!$F$7=\"CICMP\",IF('Blank - Request Form'!S201=0,\"\",'Blank - Request Form'!S201),\"\"))","v":""},"",167]
[{"$f":"IF('Blank - Request Form'!$F$6=\"CICMP\",IF('Blank - Request Form'!D202=0,\"\",'Blank - Request Form'!D202),IF('Blank - Request Form'!$F$7=\"CICMP\",IF('Blank - Request Form'!M202=0,\"\",'Blank - Request Form'!M202),\"\"))","v":""},{"$f":"IF('Blank - Request Form'!$F$6=\"CICMP\",IF('Blank - Request Form'!E202=0,\"\",'Blank - Request Form'!E202),IF('Blank - Request Form'!$F$7=\"CICMP\",IF('Blank - Request Form'!N202=0,\"\",'Blank - Request Form'!N202),\"\"))","v":""},{"$f":"IF('Blank - Request Form'!$F$6=\"CICMP\",IF(OR('Blank - Request Form'!F202=\"000\",'Blank - Request Form'!F202=0),\"\",'Blank - Request Form'!F202),IF('Blank - Request Form'!$F$7=\"CICMP\",IF(OR('Blank - Request Form'!O202=\"000\",'Blank - Request Form'!O202=0),\"\",'Blank - Request Form'!O202),\"\"))","v":""},{"$f":"IF('Blank - Request Form'!$F$6=\"CICMP\",IF(OR('Blank - Request Form'!G202=\"0\",'Blank - Request Form'!G202=\"00000\",'Blank - Request Form'!G202=0),\"\",'Blank - Request Form'!G202),IF('Blank - Request Form'!$F$7=\"CICMP\",IF(OR('Blank - Request Form'!P202=\"0\",'Blank - Request Form'!P202=\"00000\",'Blank - Request Form'!P202=0),\"\",'Blank - Request Form'!P202),\"\"))","v":""},{"$f":"IF('Blank - Request Form'!$F$6=\"CICMP\",IF(OR('Blank - Request Form'!H202=\"0\",'Blank - Request Form'!H202=\"00000\",'Blank - Request Form'!H202=0),\"\",'Blank - Request Form'!H202),IF('Blank - Request Form'!$F$7=\"CICMP\",IF(OR('Blank - Request Form'!Q202=\"0\",'Blank - Request Form'!Q202=\"00000\",'Blank - Request Form'!Q202=0),\"\",'Blank - Request Form'!Q202),\"\"))","v":""},{"$f":"IF('Blank - Request Form'!$F$6=\"CICMP\",IF(OR('Blank - Request Form'!I202=\"0\",'Blank - Request Form'!I202=\"00000\",'Blank - Request Form'!I202=0),\"\",'Blank - Request Form'!I202),IF('Blank - Request Form'!$F$7=\"CICMP\",IF(OR('Blank - Request Form'!R202=\"0\",'Blank - Request Form'!R202=\"00000\",'Blank - Request Form'!R202=0),\"\",'Blank - Request Form'!R202),\"\"))","v":""},null,{"$f":"IF('Blank - Request Form'!$F$6=\"CICMP\",IF('Blank - Request Form'!K202=0,\"\",'Blank - Request Form'!K202),IF('Blank - Request Form'!$F$7=\"CICMP\",IF('Blank - Request Form'!T202=0,\"\",'Blank - Request Form'!T202),\"\"))","v":""},null,null,null,{"$f":"IF(M168<>\"\",'Blank - Request Form'!$M$2,\"\")","v":""},{"$f":"IF('Blank - Request Form'!$F$6=\"CICMP\",IF('Blank - Request Form'!J202=0,\"\",'Blank - Request Form'!J202),IF('Blank - Request Form'!$F$7=\"CICMP\",IF('Blank - Request Form'!S202=0,\"\",'Blank - Request Form'!S202),\"\"))","v":""},"",168]
[{"$f":"IF('Blank - Request Form'!$F$6=\"CICMP\",IF('Blank - Request Form'!D203=0,\"\",'Blank - Request Form'!D203),IF('Blank - Request Form'!$F$7=\"CICMP\",IF('Blank - Request Form'!M203=0,\"\",'Blank - Request Form'!M203),\"\"))","v":""},{"$f":"IF('Blank - Request Form'!$F$6=\"CICMP\",IF('Blank - Request Form'!E203=0,\"\",'Blank - Request Form'!E203),IF('Blank - Request Form'!$F$7=\"CICMP\",IF('Blank - Request Form'!N203=0,\"\",'Blank - Request Form'!N203),\"\"))","v":""},{"$f":"IF('Blank - Request Form'!$F$6=\"CICMP\",IF(OR('Blank - Request Form'!F203=\"000\",'Blank - Request Form'!F203=0),\"\",'Blank - Request Form'!F203),IF('Blank - Request Form'!$F$7=\"CICMP\",IF(OR('Blank - Request Form'!O203=\"000\",'Blank - Request Form'!O203=0),\"\",'Blank - Request Form'!O203),\"\"))","v":""},{"$f":"IF('Blank - Request Form'!$F$6=\"CICMP\",IF(OR('Blank - Request Form'!G203=\"0\",'Blank - Request Form'!G203=\"00000\",'Blank - Request Form'!G203=0),\"\",'Blank - Request Form'!G203),IF('Blank - Request Form'!$F$7=\"CICMP\",IF(OR('Blank - Request Form'!P203=\"0\",'Blank - Request Form'!P203=\"00000\",'Blank - Request Form'!P203=0),\"\",'Blank - Request Form'!P203),\"\"))","v":""},{"$f":"IF('Blank - Request Form'!$F$6=\"CICMP\",IF(OR('Blank - Request Form'!H203=\"0\",'Blank - Request Form'!H203=\"00000\",'Blank - Request Form'!H203=0),\"\",'Blank - Request Form'!H203),IF('Blank - Request Form'!$F$7=\"CICMP\",IF(OR('Blank - Request Form'!Q203=\"0\",'Blank - Request Form'!Q203=\"00000\",'Blank - Request Form'!Q203=0),\"\",'Blank - Request Form'!Q203),\"\"))","v":""},{"$f":"IF('Blank - Request Form'!$F$6=\"CICMP\",IF(OR('Blank - Request Form'!I203=\"0\",'Blank - Request Form'!I203=\"00000\",'Blank - Request Form'!I203=0),\"\",'Blank - Request Form'!I203),IF('Blank - Request Form'!$F$7=\"CICMP\",IF(OR('Blank - Request Form'!R203=\"0\",'Blank - Request Form'!R203=\"00000\",'Blank - Request Form'!R203=0),\"\",'Blank - Request Form'!R203),\"\"))","v":""},null,{"$f":"IF('Blank - Request Form'!$F$6=\"CICMP\",IF('Blank - Request Form'!K203=0,\"\",'Blank - Request Form'!K203),IF('Blank - Request Form'!$F$7=\"CICMP\",IF('Blank - Request Form'!T203=0,\"\",'Blank - Request Form'!T203),\"\"))","v":""},null,null,null,{"$f":"IF(M169<>\"\",'Blank - Request Form'!$M$2,\"\")","v":""},{"$f":"IF('Blank - Request Form'!$F$6=\"CICMP\",IF('Blank - Request Form'!J203=0,\"\",'Blank - Request Form'!J203),IF('Blank - Request Form'!$F$7=\"CICMP\",IF('Blank - Request Form'!S203=0,\"\",'Blank - Request Form'!S203),\"\"))","v":""},"",169]
[{"$f":"IF('Blank - Request Form'!$F$6=\"CICMP\",IF('Blank - Request Form'!D204=0,\"\",'Blank - Request Form'!D204),IF('Blank - Request Form'!$F$7=\"CICMP\",IF('Blank - Request Form'!M204=0,\"\",'Blank - Request Form'!M204),\"\"))","v":""},{"$f":"IF('Blank - Request Form'!$F$6=\"CICMP\",IF('Blank - Request Form'!E204=0,\"\",'Blank - Request Form'!E204),IF('Blank - Request Form'!$F$7=\"CICMP\",IF('Blank - Request Form'!N204=0,\"\",'Blank - Request Form'!N204),\"\"))","v":""},{"$f":"IF('Blank - Request Form'!$F$6=\"CICMP\",IF(OR('Blank - Request Form'!F204=\"000\",'Blank - Request Form'!F204=0),\"\",'Blank - Request Form'!F204),IF('Blank - Request Form'!$F$7=\"CICMP\",IF(OR('Blank - Request Form'!O204=\"000\",'Blank - Request Form'!O204=0),\"\",'Blank - Request Form'!O204),\"\"))","v":""},{"$f":"IF('Blank - Request Form'!$F$6=\"CICMP\",IF(OR('Blank - Request Form'!G204=\"0\",'Blank - Request Form'!G204=\"00000\",'Blank - Request Form'!G204=0),\"\",'Blank - Request Form'!G204),IF('Blank - Request Form'!$F$7=\"CICMP\",IF(OR('Blank - Request Form'!P204=\"0\",'Blank - Request Form'!P204=\"00000\",'Blank - Request Form'!P204=0),\"\",'Blank - Request Form'!P204),\"\"))","v":""},{"$f":"IF('Blank - Request Form'!$F$6=\"CICMP\",IF(OR('Blank - Request Form'!H204=\"0\",'Blank - Request Form'!H204=\"00000\",'Blank - Request Form'!H204=0),\"\",'Blank - Request Form'!H204),IF('Blank - Request Form'!$F$7=\"CICMP\",IF(OR('Blank - Request Form'!Q204=\"0\",'Blank - Request Form'!Q204=\"00000\",'Blank - Request Form'!Q204=0),\"\",'Blank - Request Form'!Q204),\"\"))","v":""},{"$f":"IF('Blank - Request Form'!$F$6=\"CICMP\",IF(OR('Blank - Request Form'!I204=\"0\",'Blank - Request Form'!I204=\"00000\",'Blank - Request Form'!I204=0),\"\",'Blank - Request Form'!I204),IF('Blank - Request Form'!$F$7=\"CICMP\",IF(OR('Blank - Request Form'!R204=\"0\",'Blank - Request Form'!R204=\"00000\",'Blank - Request Form'!R204=0),\"\",'Blank - Request Form'!R204),\"\"))","v":""},null,{"$f":"IF('Blank - Request Form'!$F$6=\"CICMP\",IF('Blank - Request Form'!K204=0,\"\",'Blank - Request Form'!K204),IF('Blank - Request Form'!$F$7=\"CICMP\",IF('Blank - Request Form'!T204=0,\"\",'Blank - Request Form'!T204),\"\"))","v":""},null,null,null,{"$f":"IF(M170<>\"\",'Blank - Request Form'!$M$2,\"\")","v":""},{"$f":"IF('Blank - Request Form'!$F$6=\"CICMP\",IF('Blank - Request Form'!J204=0,\"\",'Blank - Request Form'!J204),IF('Blank - Request Form'!$F$7=\"CICMP\",IF('Blank - Request Form'!S204=0,\"\",'Blank - Request Form'!S204),\"\"))","v":""},"",170]
[{"$f":"IF('Blank - Request Form'!$F$6=\"CICMP\",IF('Blank - Request Form'!D205=0,\"\",'Blank - Request Form'!D205),IF('Blank - Request Form'!$F$7=\"CICMP\",IF('Blank - Request Form'!M205=0,\"\",'Blank - Request Form'!M205),\"\"))","v":""},{"$f":"IF('Blank - Request Form'!$F$6=\"CICMP\",IF('Blank - Request Form'!E205=0,\"\",'Blank - Request Form'!E205),IF('Blank - Request Form'!$F$7=\"CICMP\",IF('Blank - Request Form'!N205=0,\"\",'Blank - Request Form'!N205),\"\"))","v":""},{"$f":"IF('Blank - Request Form'!$F$6=\"CICMP\",IF(OR('Blank - Request Form'!F205=\"000\",'Blank - Request Form'!F205=0),\"\",'Blank - Request Form'!F205),IF('Blank - Request Form'!$F$7=\"CICMP\",IF(OR('Blank - Request Form'!O205=\"000\",'Blank - Request Form'!O205=0),\"\",'Blank - Request Form'!O205),\"\"))","v":""},{"$f":"IF('Blank - Request Form'!$F$6=\"CICMP\",IF(OR('Blank - Request Form'!G205=\"0\",'Blank - Request Form'!G205=\"00000\",'Blank - Request Form'!G205=0),\"\",'Blank - Request Form'!G205),IF('Blank - Request Form'!$F$7=\"CICMP\",IF(OR('Blank - Request Form'!P205=\"0\",'Blank - Request Form'!P205=\"00000\",'Blank - Request Form'!P205=0),\"\",'Blank - Request Form'!P205),\"\"))","v":""},{"$f":"IF('Blank - Request Form'!$F$6=\"CICMP\",IF(OR('Blank - Request Form'!H205=\"0\",'Blank - Request Form'!H205=\"00000\",'Blank - Request Form'!H205=0),\"\",'Blank - Request Form'!H205),IF('Blank - Request Form'!$F$7=\"CICMP\",IF(OR('Blank - Request Form'!Q205=\"0\",'Blank - Request Form'!Q205=\"00000\",'Blank - Request Form'!Q205=0),\"\",'Blank - Request Form'!Q205),\"\"))","v":""},{"$f":"IF('Blank - Request Form'!$F$6=\"CICMP\",IF(OR('Blank - Request Form'!I205=\"0\",'Blank - Request Form'!I205=\"00000\",'Blank - Request Form'!I205=0),\"\",'Blank - Request Form'!I205),IF('Blank - Request Form'!$F$7=\"CICMP\",IF(OR('Blank - Request Form'!R205=\"0\",'Blank - Request Form'!R205=\"00000\",'Blank - Request Form'!R205=0),\"\",'Blank - Request Form'!R205),\"\"))","v":""},null,{"$f":"IF('Blank - Request Form'!$F$6=\"CICMP\",IF('Blank - Request Form'!K205=0,\"\",'Blank - Request Form'!K205),IF('Blank - Request Form'!$F$7=\"CICMP\",IF('Blank - Request Form'!T205=0,\"\",'Blank - Request Form'!T205),\"\"))","v":""},null,null,null,{"$f":"IF(M171<>\"\",'Blank - Request Form'!$M$2,\"\")","v":""},{"$f":"IF('Blank - Request Form'!$F$6=\"CICMP\",IF('Blank - Request Form'!J205=0,\"\",'Blank - Request Form'!J205),IF('Blank - Request Form'!$F$7=\"CICMP\",IF('Blank - Request Form'!S205=0,\"\",'Blank - Request Form'!S205),\"\"))","v":""},"",171]
[{"$f":"IF('Blank - Request Form'!$F$6=\"CICMP\",IF('Blank - Request Form'!D206=0,\"\",'Blank - Request Form'!D206),IF('Blank - Request Form'!$F$7=\"CICMP\",IF('Blank - Request Form'!M206=0,\"\",'Blank - Request Form'!M206),\"\"))","v":""},{"$f":"IF('Blank - Request Form'!$F$6=\"CICMP\",IF('Blank - Request Form'!E206=0,\"\",'Blank - Request Form'!E206),IF('Blank - Request Form'!$F$7=\"CICMP\",IF('Blank - Request Form'!N206=0,\"\",'Blank - Request Form'!N206),\"\"))","v":""},{"$f":"IF('Blank - Request Form'!$F$6=\"CICMP\",IF(OR('Blank - Request Form'!F206=\"000\",'Blank - Request Form'!F206=0),\"\",'Blank - Request Form'!F206),IF('Blank - Request Form'!$F$7=\"CICMP\",IF(OR('Blank - Request Form'!O206=\"000\",'Blank - Request Form'!O206=0),\"\",'Blank - Request Form'!O206),\"\"))","v":""},{"$f":"IF('Blank - Request Form'!$F$6=\"CICMP\",IF(OR('Blank - Request Form'!G206=\"0\",'Blank - Request Form'!G206=\"00000\",'Blank - Request Form'!G206=0),\"\",'Blank - Request Form'!G206),IF('Blank - Request Form'!$F$7=\"CICMP\",IF(OR('Blank - Request Form'!P206=\"0\",'Blank - Request Form'!P206=\"00000\",'Blank - Request Form'!P206=0),\"\",'Blank - Request Form'!P206),\"\"))","v":""},{"$f":"IF('Blank - Request Form'!$F$6=\"CICMP\",IF(OR('Blank - Request Form'!H206=\"0\",'Blank - Request Form'!H206=\"00000\",'Blank - Request Form'!H206=0),\"\",'Blank - Request Form'!H206),IF('Blank - Request Form'!$F$7=\"CICMP\",IF(OR('Blank - Request Form'!Q206=\"0\",'Blank - Request Form'!Q206=\"00000\",'Blank - Request Form'!Q206=0),\"\",'Blank - Request Form'!Q206),\"\"))","v":""},{"$f":"IF('Blank - Request Form'!$F$6=\"CICMP\",IF(OR('Blank - Request Form'!I206=\"0\",'Blank - Request Form'!I206=\"00000\",'Blank - Request Form'!I206=0),\"\",'Blank - Request Form'!I206),IF('Blank - Request Form'!$F$7=\"CICMP\",IF(OR('Blank - Request Form'!R206=\"0\",'Blank - Request Form'!R206=\"00000\",'Blank - Request Form'!R206=0),\"\",'Blank - Request Form'!R206),\"\"))","v":""},null,{"$f":"IF('Blank - Request Form'!$F$6=\"CICMP\",IF('Blank - Request Form'!K206=0,\"\",'Blank - Request Form'!K206),IF('Blank - Request Form'!$F$7=\"CICMP\",IF('Blank - Request Form'!T206=0,\"\",'Blank - Request Form'!T206),\"\"))","v":""},null,null,null,{"$f":"IF(M172<>\"\",'Blank - Request Form'!$M$2,\"\")","v":""},{"$f":"IF('Blank - Request Form'!$F$6=\"CICMP\",IF('Blank - Request Form'!J206=0,\"\",'Blank - Request Form'!J206),IF('Blank - Request Form'!$F$7=\"CICMP\",IF('Blank - Request Form'!S206=0,\"\",'Blank - Request Form'!S206),\"\"))","v":""},"",172]
[{"$f":"IF('Blank - Request Form'!$F$6=\"CICMP\",IF('Blank - Request Form'!D207=0,\"\",'Blank - Request Form'!D207),IF('Blank - Request Form'!$F$7=\"CICMP\",IF('Blank - Request Form'!M207=0,\"\",'Blank - Request Form'!M207),\"\"))","v":""},{"$f":"IF('Blank - Request Form'!$F$6=\"CICMP\",IF('Blank - Request Form'!E207=0,\"\",'Blank - Request Form'!E207),IF('Blank - Request Form'!$F$7=\"CICMP\",IF('Blank - Request Form'!N207=0,\"\",'Blank - Request Form'!N207),\"\"))","v":""},{"$f":"IF('Blank - Request Form'!$F$6=\"CICMP\",IF(OR('Blank - Request Form'!F207=\"000\",'Blank - Request Form'!F207=0),\"\",'Blank - Request Form'!F207),IF('Blank - Request Form'!$F$7=\"CICMP\",IF(OR('Blank - Request Form'!O207=\"000\",'Blank - Request Form'!O207=0),\"\",'Blank - Request Form'!O207),\"\"))","v":""},{"$f":"IF('Blank - Request Form'!$F$6=\"CICMP\",IF(OR('Blank - Request Form'!G207=\"0\",'Blank - Request Form'!G207=\"00000\",'Blank - Request Form'!G207=0),\"\",'Blank - Request Form'!G207),IF('Blank - Request Form'!$F$7=\"CICMP\",IF(OR('Blank - Request Form'!P207=\"0\",'Blank - Request Form'!P207=\"00000\",'Blank - Request Form'!P207=0),\"\",'Blank - Request Form'!P207),\"\"))","v":""},{"$f":"IF('Blank - Request Form'!$F$6=\"CICMP\",IF(OR('Blank - Request Form'!H207=\"0\",'Blank - Request Form'!H207=\"00000\",'Blank - Request Form'!H207=0),\"\",'Blank - Request Form'!H207),IF('Blank - Request Form'!$F$7=\"CICMP\",IF(OR('Blank - Request Form'!Q207=\"0\",'Blank - Request Form'!Q207=\"00000\",'Blank - Request Form'!Q207=0),\"\",'Blank - Request Form'!Q207),\"\"))","v":""},{"$f":"IF('Blank - Request Form'!$F$6=\"CICMP\",IF(OR('Blank - Request Form'!I207=\"0\",'Blank - Request Form'!I207=\"00000\",'Blank - Request Form'!I207=0),\"\",'Blank - Request Form'!I207),IF('Blank - Request Form'!$F$7=\"CICMP\",IF(OR('Blank - Request Form'!R207=\"0\",'Blank - Request Form'!R207=\"00000\",'Blank - Request Form'!R207=0),\"\",'Blank - Request Form'!R207),\"\"))","v":""},null,{"$f":"IF('Blank - Request Form'!$F$6=\"CICMP\",IF('Blank - Request Form'!K207=0,\"\",'Blank - Request Form'!K207),IF('Blank - Request Form'!$F$7=\"CICMP\",IF('Blank - Request Form'!T207=0,\"\",'Blank - Request Form'!T207),\"\"))","v":""},null,null,null,{"$f":"IF(M173<>\"\",'Blank - Request Form'!$M$2,\"\")","v":""},{"$f":"IF('Blank - Request Form'!$F$6=\"CICMP\",IF('Blank - Request Form'!J207=0,\"\",'Blank - Request Form'!J207),IF('Blank - Request Form'!$F$7=\"CICMP\",IF('Blank - Request Form'!S207=0,\"\",'Blank - Request Form'!S207),\"\"))","v":""},"",173]
[{"$f":"IF('Blank - Request Form'!$F$6=\"CICMP\",IF('Blank - Request Form'!D208=0,\"\",'Blank - Request Form'!D208),IF('Blank - Request Form'!$F$7=\"CICMP\",IF('Blank - Request Form'!M208=0,\"\",'Blank - Request Form'!M208),\"\"))","v":""},{"$f":"IF('Blank - Request Form'!$F$6=\"CICMP\",IF('Blank - Request Form'!E208=0,\"\",'Blank - Request Form'!E208),IF('Blank - Request Form'!$F$7=\"CICMP\",IF('Blank - Request Form'!N208=0,\"\",'Blank - Request Form'!N208),\"\"))","v":""},{"$f":"IF('Blank - Request Form'!$F$6=\"CICMP\",IF(OR('Blank - Request Form'!F208=\"000\",'Blank - Request Form'!F208=0),\"\",'Blank - Request Form'!F208),IF('Blank - Request Form'!$F$7=\"CICMP\",IF(OR('Blank - Request Form'!O208=\"000\",'Blank - Request Form'!O208=0),\"\",'Blank - Request Form'!O208),\"\"))","v":""},{"$f":"IF('Blank - Request Form'!$F$6=\"CICMP\",IF(OR('Blank - Request Form'!G208=\"0\",'Blank - Request Form'!G208=\"00000\",'Blank - Request Form'!G208=0),\"\",'Blank - Request Form'!G208),IF('Blank - Request Form'!$F$7=\"CICMP\",IF(OR('Blank - Request Form'!P208=\"0\",'Blank - Request Form'!P208=\"00000\",'Blank - Request Form'!P208=0),\"\",'Blank - Request Form'!P208),\"\"))","v":""},{"$f":"IF('Blank - Request Form'!$F$6=\"CICMP\",IF(OR('Blank - Request Form'!H208=\"0\",'Blank - Request Form'!H208=\"00000\",'Blank - Request Form'!H208=0),\"\",'Blank - Request Form'!H208),IF('Blank - Request Form'!$F$7=\"CICMP\",IF(OR('Blank - Request Form'!Q208=\"0\",'Blank - Request Form'!Q208=\"00000\",'Blank - Request Form'!Q208=0),\"\",'Blank - Request Form'!Q208),\"\"))","v":""},{"$f":"IF('Blank - Request Form'!$F$6=\"CICMP\",IF(OR('Blank - Request Form'!I208=\"0\",'Blank - Request Form'!I208=\"00000\",'Blank - Request Form'!I208=0),\"\",'Blank - Request Form'!I208),IF('Blank - Request Form'!$F$7=\"CICMP\",IF(OR('Blank - Request Form'!R208=\"0\",'Blank - Request Form'!R208=\"00000\",'Blank - Request Form'!R208=0),\"\",'Blank - Request Form'!R208),\"\"))","v":""},null,{"$f":"IF('Blank - Request Form'!$F$6=\"CICMP\",IF('Blank - Request Form'!K208=0,\"\",'Blank - Request Form'!K208),IF('Blank - Request Form'!$F$7=\"CICMP\",IF('Blank - Request Form'!T208=0,\"\",'Blank - Request Form'!T208),\"\"))","v":""},null,null,null,{"$f":"IF(M174<>\"\",'Blank - Request Form'!$M$2,\"\")","v":""},{"$f":"IF('Blank - Request Form'!$F$6=\"CICMP\",IF('Blank - Request Form'!J208=0,\"\",'Blank - Request Form'!J208),IF('Blank - Request Form'!$F$7=\"CICMP\",IF('Blank - Request Form'!S208=0,\"\",'Blank - Request Form'!S208),\"\"))","v":""},"",174]
[{"$f":"IF('Blank - Request Form'!$F$6=\"CICMP\",IF('Blank - Request Form'!D209=0,\"\",'Blank - Request Form'!D209),IF('Blank - Request Form'!$F$7=\"CICMP\",IF('Blank - Request Form'!M209=0,\"\",'Blank - Request Form'!M209),\"\"))","v":""},{"$f":"IF('Blank - Request Form'!$F$6=\"CICMP\",IF('Blank - Request Form'!E209=0,\"\",'Blank - Request Form'!E209),IF('Blank - Request Form'!$F$7=\"CICMP\",IF('Blank - Request Form'!N209=0,\"\",'Blank - Request Form'!N209),\"\"))","v":""},{"$f":"IF('Blank - Request Form'!$F$6=\"CICMP\",IF(OR('Blank - Request Form'!F209=\"000\",'Blank - Request Form'!F209=0),\"\",'Blank - Request Form'!F209),IF('Blank - Request Form'!$F$7=\"CICMP\",IF(OR('Blank - Request Form'!O209=\"000\",'Blank - Request Form'!O209=0),\"\",'Blank - Request Form'!O209),\"\"))","v":""},{"$f":"IF('Blank - Request Form'!$F$6=\"CICMP\",IF(OR('Blank - Request Form'!G209=\"0\",'Blank - Request Form'!G209=\"00000\",'Blank - Request Form'!G209=0),\"\",'Blank - Request Form'!G209),IF('Blank - Request Form'!$F$7=\"CICMP\",IF(OR('Blank - Request Form'!P209=\"0\",'Blank - Request Form'!P209=\"00000\",'Blank - Request Form'!P209=0),\"\",'Blank - Request Form'!P209),\"\"))","v":""},{"$f":"IF('Blank - Request Form'!$F$6=\"CICMP\",IF(OR('Blank - Request Form'!H209=\"0\",'Blank - Request Form'!H209=\"00000\",'Blank - Request Form'!H209=0),\"\",'Blank - Request Form'!H209),IF('Blank - Request Form'!$F$7=\"CICMP\",IF(OR('Blank - Request Form'!Q209=\"0\",'Blank - Request Form'!Q209=\"00000\",'Blank - Request Form'!Q209=0),\"\",'Blank - Request Form'!Q209),\"\"))","v":""},{"$f":"IF('Blank - Request Form'!$F$6=\"CICMP\",IF(OR('Blank - Request Form'!I209=\"0\",'Blank - Request Form'!I209=\"00000\",'Blank - Request Form'!I209=0),\"\",'Blank - Request Form'!I209),IF('Blank - Request Form'!$F$7=\"CICMP\",IF(OR('Blank - Request Form'!R209=\"0\",'Blank - Request Form'!R209=\"00000\",'Blank - Request Form'!R209=0),\"\",'Blank - Request Form'!R209),\"\"))","v":""},null,{"$f":"IF('Blank - Request Form'!$F$6=\"CICMP\",IF('Blank - Request Form'!K209=0,\"\",'Blank - Request Form'!K209),IF('Blank - Request Form'!$F$7=\"CICMP\",IF('Blank - Request Form'!T209=0,\"\",'Blank - Request Form'!T209),\"\"))","v":""},null,null,null,{"$f":"IF(M175<>\"\",'Blank - Request Form'!$M$2,\"\")","v":""},{"$f":"IF('Blank - Request Form'!$F$6=\"CICMP\",IF('Blank - Request Form'!J209=0,\"\",'Blank - Request Form'!J209),IF('Blank - Request Form'!$F$7=\"CICMP\",IF('Blank - Request Form'!S209=0,\"\",'Blank - Request Form'!S209),\"\"))","v":""},"",175]
[{"$f":"IF('Blank - Request Form'!$F$6=\"CICMP\",IF('Blank - Request Form'!D210=0,\"\",'Blank - Request Form'!D210),IF('Blank - Request Form'!$F$7=\"CICMP\",IF('Blank - Request Form'!M210=0,\"\",'Blank - Request Form'!M210),\"\"))","v":""},{"$f":"IF('Blank - Request Form'!$F$6=\"CICMP\",IF('Blank - Request Form'!E210=0,\"\",'Blank - Request Form'!E210),IF('Blank - Request Form'!$F$7=\"CICMP\",IF('Blank - Request Form'!N210=0,\"\",'Blank - Request Form'!N210),\"\"))","v":""},{"$f":"IF('Blank - Request Form'!$F$6=\"CICMP\",IF(OR('Blank - Request Form'!F210=\"000\",'Blank - Request Form'!F210=0),\"\",'Blank - Request Form'!F210),IF('Blank - Request Form'!$F$7=\"CICMP\",IF(OR('Blank - Request Form'!O210=\"000\",'Blank - Request Form'!O210=0),\"\",'Blank - Request Form'!O210),\"\"))","v":""},{"$f":"IF('Blank - Request Form'!$F$6=\"CICMP\",IF(OR('Blank - Request Form'!G210=\"0\",'Blank - Request Form'!G210=\"00000\",'Blank - Request Form'!G210=0),\"\",'Blank - Request Form'!G210),IF('Blank - Request Form'!$F$7=\"CICMP\",IF(OR('Blank - Request Form'!P210=\"0\",'Blank - Request Form'!P210=\"00000\",'Blank - Request Form'!P210=0),\"\",'Blank - Request Form'!P210),\"\"))","v":""},{"$f":"IF('Blank - Request Form'!$F$6=\"CICMP\",IF(OR('Blank - Request Form'!H210=\"0\",'Blank - Request Form'!H210=\"00000\",'Blank - Request Form'!H210=0),\"\",'Blank - Request Form'!H210),IF('Blank - Request Form'!$F$7=\"CICMP\",IF(OR('Blank - Request Form'!Q210=\"0\",'Blank - Request Form'!Q210=\"00000\",'Blank - Request Form'!Q210=0),\"\",'Blank - Request Form'!Q210),\"\"))","v":""},{"$f":"IF('Blank - Request Form'!$F$6=\"CICMP\",IF(OR('Blank - Request Form'!I210=\"0\",'Blank - Request Form'!I210=\"00000\",'Blank - Request Form'!I210=0),\"\",'Blank - Request Form'!I210),IF('Blank - Request Form'!$F$7=\"CICMP\",IF(OR('Blank - Request Form'!R210=\"0\",'Blank - Request Form'!R210=\"00000\",'Blank - Request Form'!R210=0),\"\",'Blank - Request Form'!R210),\"\"))","v":""},null,{"$f":"IF('Blank - Request Form'!$F$6=\"CICMP\",IF('Blank - Request Form'!K210=0,\"\",'Blank - Request Form'!K210),IF('Blank - Request Form'!$F$7=\"CICMP\",IF('Blank - Request Form'!T210=0,\"\",'Blank - Request Form'!T210),\"\"))","v":""},null,null,null,{"$f":"IF(M176<>\"\",'Blank - Request Form'!$M$2,\"\")","v":""},{"$f":"IF('Blank - Request Form'!$F$6=\"CICMP\",IF('Blank - Request Form'!J210=0,\"\",'Blank - Request Form'!J210),IF('Blank - Request Form'!$F$7=\"CICMP\",IF('Blank - Request Form'!S210=0,\"\",'Blank - Request Form'!S210),\"\"))","v":""},{"$f":"IF(M176<>\"\",O176,\"\")","v":""},176]
[{"$f":"IF('Blank - Request Form'!$F$6=\"CICMP\",IF('Blank - Request Form'!D211=0,\"\",'Blank - Request Form'!D211),IF('Blank - Request Form'!$F$7=\"CICMP\",IF('Blank - Request Form'!M211=0,\"\",'Blank - Request Form'!M211),\"\"))","v":""},{"$f":"IF('Blank - Request Form'!$F$6=\"CICMP\",IF('Blank - Request Form'!E211=0,\"\",'Blank - Request Form'!E211),IF('Blank - Request Form'!$F$7=\"CICMP\",IF('Blank - Request Form'!N211=0,\"\",'Blank - Request Form'!N211),\"\"))","v":""},{"$f":"IF('Blank - Request Form'!$F$6=\"CICMP\",IF(OR('Blank - Request Form'!F211=\"000\",'Blank - Request Form'!F211=0),\"\",'Blank - Request Form'!F211),IF('Blank - Request Form'!$F$7=\"CICMP\",IF(OR('Blank - Request Form'!O211=\"000\",'Blank - Request Form'!O211=0),\"\",'Blank - Request Form'!O211),\"\"))","v":""},{"$f":"IF('Blank - Request Form'!$F$6=\"CICMP\",IF(OR('Blank - Request Form'!G211=\"0\",'Blank - Request Form'!G211=\"00000\",'Blank - Request Form'!G211=0),\"\",'Blank - Request Form'!G211),IF('Blank - Request Form'!$F$7=\"CICMP\",IF(OR('Blank - Request Form'!P211=\"0\",'Blank - Request Form'!P211=\"00000\",'Blank - Request Form'!P211=0),\"\",'Blank - Request Form'!P211),\"\"))","v":""},{"$f":"IF('Blank - Request Form'!$F$6=\"CICMP\",IF(OR('Blank - Request Form'!H211=\"0\",'Blank - Request Form'!H211=\"00000\",'Blank - Request Form'!H211=0),\"\",'Blank - Request Form'!H211),IF('Blank - Request Form'!$F$7=\"CICMP\",IF(OR('Blank - Request Form'!Q211=\"0\",'Blank - Request Form'!Q211=\"00000\",'Blank - Request Form'!Q211=0),\"\",'Blank - Request Form'!Q211),\"\"))","v":""},{"$f":"IF('Blank - Request Form'!$F$6=\"CICMP\",IF(OR('Blank - Request Form'!I211=\"0\",'Blank - Request Form'!I211=\"00000\",'Blank - Request Form'!I211=0),\"\",'Blank - Request Form'!I211),IF('Blank - Request Form'!$F$7=\"CICMP\",IF(OR('Blank - Request Form'!R211=\"0\",'Blank - Request Form'!R211=\"00000\",'Blank - Request Form'!R211=0),\"\",'Blank - Request Form'!R211),\"\"))","v":""},null,{"$f":"IF('Blank - Request Form'!$F$6=\"CICMP\",IF('Blank - Request Form'!K211=0,\"\",'Blank - Request Form'!K211),IF('Blank - Request Form'!$F$7=\"CICMP\",IF('Blank - Request Form'!T211=0,\"\",'Blank - Request Form'!T211),\"\"))","v":""},null,null,null,{"$f":"IF(M177<>\"\",'Blank - Request Form'!$M$2,\"\")","v":""},{"$f":"IF('Blank - Request Form'!$F$6=\"CICMP\",IF('Blank - Request Form'!J211=0,\"\",'Blank - Request Form'!J211),IF('Blank - Request Form'!$F$7=\"CICMP\",IF('Blank - Request Form'!S211=0,\"\",'Blank - Request Form'!S211),\"\"))","v":""},"",177]
[{"$f":"IF('Blank - Request Form'!$F$6=\"CICMP\",IF('Blank - Request Form'!D212=0,\"\",'Blank - Request Form'!D212),IF('Blank - Request Form'!$F$7=\"CICMP\",IF('Blank - Request Form'!M212=0,\"\",'Blank - Request Form'!M212),\"\"))","v":""},{"$f":"IF('Blank - Request Form'!$F$6=\"CICMP\",IF('Blank - Request Form'!E212=0,\"\",'Blank - Request Form'!E212),IF('Blank - Request Form'!$F$7=\"CICMP\",IF('Blank - Request Form'!N212=0,\"\",'Blank - Request Form'!N212),\"\"))","v":""},{"$f":"IF('Blank - Request Form'!$F$6=\"CICMP\",IF(OR('Blank - Request Form'!F212=\"000\",'Blank - Request Form'!F212=0),\"\",'Blank - Request Form'!F212),IF('Blank - Request Form'!$F$7=\"CICMP\",IF(OR('Blank - Request Form'!O212=\"000\",'Blank - Request Form'!O212=0),\"\",'Blank - Request Form'!O212),\"\"))","v":""},{"$f":"IF('Blank - Request Form'!$F$6=\"CICMP\",IF(OR('Blank - Request Form'!G212=\"0\",'Blank - Request Form'!G212=\"00000\",'Blank - Request Form'!G212=0),\"\",'Blank - Request Form'!G212),IF('Blank - Request Form'!$F$7=\"CICMP\",IF(OR('Blank - Request Form'!P212=\"0\",'Blank - Request Form'!P212=\"00000\",'Blank - Request Form'!P212=0),\"\",'Blank - Request Form'!P212),\"\"))","v":""},{"$f":"IF('Blank - Request Form'!$F$6=\"CICMP\",IF(OR('Blank - Request Form'!H212=\"0\",'Blank - Request Form'!H212=\"00000\",'Blank - Request Form'!H212=0),\"\",'Blank - Request Form'!H212),IF('Blank - Request Form'!$F$7=\"CICMP\",IF(OR('Blank - Request Form'!Q212=\"0\",'Blank - Request Form'!Q212=\"00000\",'Blank - Request Form'!Q212=0),\"\",'Blank - Request Form'!Q212),\"\"))","v":""},{"$f":"IF('Blank - Request Form'!$F$6=\"CICMP\",IF(OR('Blank - Request Form'!I212=\"0\",'Blank - Request Form'!I212=\"00000\",'Blank - Request Form'!I212=0),\"\",'Blank - Request Form'!I212),IF('Blank - Request Form'!$F$7=\"CICMP\",IF(OR('Blank - Request Form'!R212=\"0\",'Blank - Request Form'!R212=\"00000\",'Blank - Request Form'!R212=0),\"\",'Blank - Request Form'!R212),\"\"))","v":""},null,{"$f":"IF('Blank - Request Form'!$F$6=\"CICMP\",IF('Blank - Request Form'!K212=0,\"\",'Blank - Request Form'!K212),IF('Blank - Request Form'!$F$7=\"CICMP\",IF('Blank - Request Form'!T212=0,\"\",'Blank - Request Form'!T212),\"\"))","v":""},null,null,null,{"$f":"IF(M178<>\"\",'Blank - Request Form'!$M$2,\"\")","v":""},{"$f":"IF('Blank - Request Form'!$F$6=\"CICMP\",IF('Blank - Request Form'!J212=0,\"\",'Blank - Request Form'!J212),IF('Blank - Request Form'!$F$7=\"CICMP\",IF('Blank - Request Form'!S212=0,\"\",'Blank - Request Form'!S212),\"\"))","v":""},"",178]
[{"$f":"IF('Blank - Request Form'!$F$6=\"CICMP\",IF('Blank - Request Form'!D213=0,\"\",'Blank - Request Form'!D213),IF('Blank - Request Form'!$F$7=\"CICMP\",IF('Blank - Request Form'!M213=0,\"\",'Blank - Request Form'!M213),\"\"))","v":""},{"$f":"IF('Blank - Request Form'!$F$6=\"CICMP\",IF('Blank - Request Form'!E213=0,\"\",'Blank - Request Form'!E213),IF('Blank - Request Form'!$F$7=\"CICMP\",IF('Blank - Request Form'!N213=0,\"\",'Blank - Request Form'!N213),\"\"))","v":""},{"$f":"IF('Blank - Request Form'!$F$6=\"CICMP\",IF(OR('Blank - Request Form'!F213=\"000\",'Blank - Request Form'!F213=0),\"\",'Blank - Request Form'!F213),IF('Blank - Request Form'!$F$7=\"CICMP\",IF(OR('Blank - Request Form'!O213=\"000\",'Blank - Request Form'!O213=0),\"\",'Blank - Request Form'!O213),\"\"))","v":""},{"$f":"IF('Blank - Request Form'!$F$6=\"CICMP\",IF(OR('Blank - Request Form'!G213=\"0\",'Blank - Request Form'!G213=\"00000\",'Blank - Request Form'!G213=0),\"\",'Blank - Request Form'!G213),IF('Blank - Request Form'!$F$7=\"CICMP\",IF(OR('Blank - Request Form'!P213=\"0\",'Blank - Request Form'!P213=\"00000\",'Blank - Request Form'!P213=0),\"\",'Blank - Request Form'!P213),\"\"))","v":""},{"$f":"IF('Blank - Request Form'!$F$6=\"CICMP\",IF(OR('Blank - Request Form'!H213=\"0\",'Blank - Request Form'!H213=\"00000\",'Blank - Request Form'!H213=0),\"\",'Blank - Request Form'!H213),IF('Blank - Request Form'!$F$7=\"CICMP\",IF(OR('Blank - Request Form'!Q213=\"0\",'Blank - Request Form'!Q213=\"00000\",'Blank - Request Form'!Q213=0),\"\",'Blank - Request Form'!Q213),\"\"))","v":""},{"$f":"IF('Blank - Request Form'!$F$6=\"CICMP\",IF(OR('Blank - Request Form'!I213=\"0\",'Blank - Request Form'!I213=\"00000\",'Blank - Request Form'!I213=0),\"\",'Blank - Request Form'!I213),IF('Blank - Request Form'!$F$7=\"CICMP\",IF(OR('Blank - Request Form'!R213=\"0\",'Blank - Request Form'!R213=\"00000\",'Blank - Request Form'!R213=0),\"\",'Blank - Request Form'!R213),\"\"))","v":""},null,{"$f":"IF('Blank - Request Form'!$F$6=\"CICMP\",IF('Blank - Request Form'!K213=0,\"\",'Blank - Request Form'!K213),IF('Blank - Request Form'!$F$7=\"CICMP\",IF('Blank - Request Form'!T213=0,\"\",'Blank - Request Form'!T213),\"\"))","v":""},null,null,null,{"$f":"IF(M179<>\"\",'Blank - Request Form'!$M$2,\"\")","v":""},{"$f":"IF('Blank - Request Form'!$F$6=\"CICMP\",IF('Blank - Request Form'!J213=0,\"\",'Blank - Request Form'!J213),IF('Blank - Request Form'!$F$7=\"CICMP\",IF('Blank - Request Form'!S213=0,\"\",'Blank - Request Form'!S213),\"\"))","v":""},"",179]
[{"$f":"IF('Blank - Request Form'!$F$6=\"CICMP\",IF('Blank - Request Form'!D214=0,\"\",'Blank - Request Form'!D214),IF('Blank - Request Form'!$F$7=\"CICMP\",IF('Blank - Request Form'!M214=0,\"\",'Blank - Request Form'!M214),\"\"))","v":""},{"$f":"IF('Blank - Request Form'!$F$6=\"CICMP\",IF('Blank - Request Form'!E214=0,\"\",'Blank - Request Form'!E214),IF('Blank - Request Form'!$F$7=\"CICMP\",IF('Blank - Request Form'!N214=0,\"\",'Blank - Request Form'!N214),\"\"))","v":""},{"$f":"IF('Blank - Request Form'!$F$6=\"CICMP\",IF(OR('Blank - Request Form'!F214=\"000\",'Blank - Request Form'!F214=0),\"\",'Blank - Request Form'!F214),IF('Blank - Request Form'!$F$7=\"CICMP\",IF(OR('Blank - Request Form'!O214=\"000\",'Blank - Request Form'!O214=0),\"\",'Blank - Request Form'!O214),\"\"))","v":""},{"$f":"IF('Blank - Request Form'!$F$6=\"CICMP\",IF(OR('Blank - Request Form'!G214=\"0\",'Blank - Request Form'!G214=\"00000\",'Blank - Request Form'!G214=0),\"\",'Blank - Request Form'!G214),IF('Blank - Request Form'!$F$7=\"CICMP\",IF(OR('Blank - Request Form'!P214=\"0\",'Blank - Request Form'!P214=\"00000\",'Blank - Request Form'!P214=0),\"\",'Blank - Request Form'!P214),\"\"))","v":""},{"$f":"IF('Blank - Request Form'!$F$6=\"CICMP\",IF(OR('Blank - Request Form'!H214=\"0\",'Blank - Request Form'!H214=\"00000\",'Blank - Request Form'!H214=0),\"\",'Blank - Request Form'!H214),IF('Blank - Request Form'!$F$7=\"CICMP\",IF(OR('Blank - Request Form'!Q214=\"0\",'Blank - Request Form'!Q214=\"00000\",'Blank - Request Form'!Q214=0),\"\",'Blank - Request Form'!Q214),\"\"))","v":""},{"$f":"IF('Blank - Request Form'!$F$6=\"CICMP\",IF(OR('Blank - Request Form'!I214=\"0\",'Blank - Request Form'!I214=\"00000\",'Blank - Request Form'!I214=0),\"\",'Blank - Request Form'!I214),IF('Blank - Request Form'!$F$7=\"CICMP\",IF(OR('Blank - Request Form'!R214=\"0\",'Blank - Request Form'!R214=\"00000\",'Blank - Request Form'!R214=0),\"\",'Blank - Request Form'!R214),\"\"))","v":""},null,{"$f":"IF('Blank - Request Form'!$F$6=\"CICMP\",IF('Blank - Request Form'!K214=0,\"\",'Blank - Request Form'!K214),IF('Blank - Request Form'!$F$7=\"CICMP\",IF('Blank - Request Form'!T214=0,\"\",'Blank - Request Form'!T214),\"\"))","v":""},null,null,null,{"$f":"IF(M180<>\"\",'Blank - Request Form'!$M$2,\"\")","v":""},{"$f":"IF('Blank - Request Form'!$F$6=\"CICMP\",IF('Blank - Request Form'!J214=0,\"\",'Blank - Request Form'!J214),IF('Blank - Request Form'!$F$7=\"CICMP\",IF('Blank - Request Form'!S214=0,\"\",'Blank - Request Form'!S214),\"\"))","v":""},"",180]
[{"$f":"IF('Blank - Request Form'!$F$6=\"CICMP\",IF('Blank - Request Form'!D215=0,\"\",'Blank - Request Form'!D215),IF('Blank - Request Form'!$F$7=\"CICMP\",IF('Blank - Request Form'!M215=0,\"\",'Blank - Request Form'!M215),\"\"))","v":""},{"$f":"IF('Blank - Request Form'!$F$6=\"CICMP\",IF('Blank - Request Form'!E215=0,\"\",'Blank - Request Form'!E215),IF('Blank - Request Form'!$F$7=\"CICMP\",IF('Blank - Request Form'!N215=0,\"\",'Blank - Request Form'!N215),\"\"))","v":""},{"$f":"IF('Blank - Request Form'!$F$6=\"CICMP\",IF(OR('Blank - Request Form'!F215=\"000\",'Blank - Request Form'!F215=0),\"\",'Blank - Request Form'!F215),IF('Blank - Request Form'!$F$7=\"CICMP\",IF(OR('Blank - Request Form'!O215=\"000\",'Blank - Request Form'!O215=0),\"\",'Blank - Request Form'!O215),\"\"))","v":""},{"$f":"IF('Blank - Request Form'!$F$6=\"CICMP\",IF(OR('Blank - Request Form'!G215=\"0\",'Blank - Request Form'!G215=\"00000\",'Blank - Request Form'!G215=0),\"\",'Blank - Request Form'!G215),IF('Blank - Request Form'!$F$7=\"CICMP\",IF(OR('Blank - Request Form'!P215=\"0\",'Blank - Request Form'!P215=\"00000\",'Blank - Request Form'!P215=0),\"\",'Blank - Request Form'!P215),\"\"))","v":""},{"$f":"IF('Blank - Request Form'!$F$6=\"CICMP\",IF(OR('Blank - Request Form'!H215=\"0\",'Blank - Request Form'!H215=\"00000\",'Blank - Request Form'!H215=0),\"\",'Blank - Request Form'!H215),IF('Blank - Request Form'!$F$7=\"CICMP\",IF(OR('Blank - Request Form'!Q215=\"0\",'Blank - Request Form'!Q215=\"00000\",'Blank - Request Form'!Q215=0),\"\",'Blank - Request Form'!Q215),\"\"))","v":""},{"$f":"IF('Blank - Request Form'!$F$6=\"CICMP\",IF(OR('Blank - Request Form'!I215=\"0\",'Blank - Request Form'!I215=\"00000\",'Blank - Request Form'!I215=0),\"\",'Blank - Request Form'!I215),IF('Blank - Request Form'!$F$7=\"CICMP\",IF(OR('Blank - Request Form'!R215=\"0\",'Blank - Request Form'!R215=\"00000\",'Blank - Request Form'!R215=0),\"\",'Blank - Request Form'!R215),\"\"))","v":""},null,{"$f":"IF('Blank - Request Form'!$F$6=\"CICMP\",IF('Blank - Request Form'!K215=0,\"\",'Blank - Request Form'!K215),IF('Blank - Request Form'!$F$7=\"CICMP\",IF('Blank - Request Form'!T215=0,\"\",'Blank - Request Form'!T215),\"\"))","v":""},null,null,null,{"$f":"IF(M181<>\"\",'Blank - Request Form'!$M$2,\"\")","v":""},{"$f":"IF('Blank - Request Form'!$F$6=\"CICMP\",IF('Blank - Request Form'!J215=0,\"\",'Blank - Request Form'!J215),IF('Blank - Request Form'!$F$7=\"CICMP\",IF('Blank - Request Form'!S215=0,\"\",'Blank - Request Form'!S215),\"\"))","v":""},"",181]
[{"$f":"IF('Blank - Request Form'!$F$6=\"CICMP\",IF('Blank - Request Form'!D216=0,\"\",'Blank - Request Form'!D216),IF('Blank - Request Form'!$F$7=\"CICMP\",IF('Blank - Request Form'!M216=0,\"\",'Blank - Request Form'!M216),\"\"))","v":""},{"$f":"IF('Blank - Request Form'!$F$6=\"CICMP\",IF('Blank - Request Form'!E216=0,\"\",'Blank - Request Form'!E216),IF('Blank - Request Form'!$F$7=\"CICMP\",IF('Blank - Request Form'!N216=0,\"\",'Blank - Request Form'!N216),\"\"))","v":""},{"$f":"IF('Blank - Request Form'!$F$6=\"CICMP\",IF(OR('Blank - Request Form'!F216=\"000\",'Blank - Request Form'!F216=0),\"\",'Blank - Request Form'!F216),IF('Blank - Request Form'!$F$7=\"CICMP\",IF(OR('Blank - Request Form'!O216=\"000\",'Blank - Request Form'!O216=0),\"\",'Blank - Request Form'!O216),\"\"))","v":""},{"$f":"IF('Blank - Request Form'!$F$6=\"CICMP\",IF(OR('Blank - Request Form'!G216=\"0\",'Blank - Request Form'!G216=\"00000\",'Blank - Request Form'!G216=0),\"\",'Blank - Request Form'!G216),IF('Blank - Request Form'!$F$7=\"CICMP\",IF(OR('Blank - Request Form'!P216=\"0\",'Blank - Request Form'!P216=\"00000\",'Blank - Request Form'!P216=0),\"\",'Blank - Request Form'!P216),\"\"))","v":""},{"$f":"IF('Blank - Request Form'!$F$6=\"CICMP\",IF(OR('Blank - Request Form'!H216=\"0\",'Blank - Request Form'!H216=\"00000\",'Blank - Request Form'!H216=0),\"\",'Blank - Request Form'!H216),IF('Blank - Request Form'!$F$7=\"CICMP\",IF(OR('Blank - Request Form'!Q216=\"0\",'Blank - Request Form'!Q216=\"00000\",'Blank - Request Form'!Q216=0),\"\",'Blank - Request Form'!Q216),\"\"))","v":""},{"$f":"IF('Blank - Request Form'!$F$6=\"CICMP\",IF(OR('Blank - Request Form'!I216=\"0\",'Blank - Request Form'!I216=\"00000\",'Blank - Request Form'!I216=0),\"\",'Blank - Request Form'!I216),IF('Blank - Request Form'!$F$7=\"CICMP\",IF(OR('Blank - Request Form'!R216=\"0\",'Blank - Request Form'!R216=\"00000\",'Blank - Request Form'!R216=0),\"\",'Blank - Request Form'!R216),\"\"))","v":""},null,{"$f":"IF('Blank - Request Form'!$F$6=\"CICMP\",IF('Blank - Request Form'!K216=0,\"\",'Blank - Request Form'!K216),IF('Blank - Request Form'!$F$7=\"CICMP\",IF('Blank - Request Form'!T216=0,\"\",'Blank - Request Form'!T216),\"\"))","v":""},null,null,null,{"$f":"IF(M182<>\"\",'Blank - Request Form'!$M$2,\"\")","v":""},{"$f":"IF('Blank - Request Form'!$F$6=\"CICMP\",IF('Blank - Request Form'!J216=0,\"\",'Blank - Request Form'!J216),IF('Blank - Request Form'!$F$7=\"CICMP\",IF('Blank - Request Form'!S216=0,\"\",'Blank - Request Form'!S216),\"\"))","v":""},"",182]
[{"$f":"IF('Blank - Request Form'!$F$6=\"CICMP\",IF('Blank - Request Form'!D217=0,\"\",'Blank - Request Form'!D217),IF('Blank - Request Form'!$F$7=\"CICMP\",IF('Blank - Request Form'!M217=0,\"\",'Blank - Request Form'!M217),\"\"))","v":""},{"$f":"IF('Blank - Request Form'!$F$6=\"CICMP\",IF('Blank - Request Form'!E217=0,\"\",'Blank - Request Form'!E217),IF('Blank - Request Form'!$F$7=\"CICMP\",IF('Blank - Request Form'!N217=0,\"\",'Blank - Request Form'!N217),\"\"))","v":""},{"$f":"IF('Blank - Request Form'!$F$6=\"CICMP\",IF(OR('Blank - Request Form'!F217=\"000\",'Blank - Request Form'!F217=0),\"\",'Blank - Request Form'!F217),IF('Blank - Request Form'!$F$7=\"CICMP\",IF(OR('Blank - Request Form'!O217=\"000\",'Blank - Request Form'!O217=0),\"\",'Blank - Request Form'!O217),\"\"))","v":""},{"$f":"IF('Blank - Request Form'!$F$6=\"CICMP\",IF(OR('Blank - Request Form'!G217=\"0\",'Blank - Request Form'!G217=\"00000\",'Blank - Request Form'!G217=0),\"\",'Blank - Request Form'!G217),IF('Blank - Request Form'!$F$7=\"CICMP\",IF(OR('Blank - Request Form'!P217=\"0\",'Blank - Request Form'!P217=\"00000\",'Blank - Request Form'!P217=0),\"\",'Blank - Request Form'!P217),\"\"))","v":""},{"$f":"IF('Blank - Request Form'!$F$6=\"CICMP\",IF(OR('Blank - Request Form'!H217=\"0\",'Blank - Request Form'!H217=\"00000\",'Blank - Request Form'!H217=0),\"\",'Blank - Request Form'!H217),IF('Blank - Request Form'!$F$7=\"CICMP\",IF(OR('Blank - Request Form'!Q217=\"0\",'Blank - Request Form'!Q217=\"00000\",'Blank - Request Form'!Q217=0),\"\",'Blank - Request Form'!Q217),\"\"))","v":""},{"$f":"IF('Blank - Request Form'!$F$6=\"CICMP\",IF(OR('Blank - Request Form'!I217=\"0\",'Blank - Request Form'!I217=\"00000\",'Blank - Request Form'!I217=0),\"\",'Blank - Request Form'!I217),IF('Blank - Request Form'!$F$7=\"CICMP\",IF(OR('Blank - Request Form'!R217=\"0\",'Blank - Request Form'!R217=\"00000\",'Blank - Request Form'!R217=0),\"\",'Blank - Request Form'!R217),\"\"))","v":""},null,{"$f":"IF('Blank - Request Form'!$F$6=\"CICMP\",IF('Blank - Request Form'!K217=0,\"\",'Blank - Request Form'!K217),IF('Blank - Request Form'!$F$7=\"CICMP\",IF('Blank - Request Form'!T217=0,\"\",'Blank - Request Form'!T217),\"\"))","v":""},null,null,null,{"$f":"IF(M183<>\"\",'Blank - Request Form'!$M$2,\"\")","v":""},{"$f":"IF('Blank - Request Form'!$F$6=\"CICMP\",IF('Blank - Request Form'!J217=0,\"\",'Blank - Request Form'!J217),IF('Blank - Request Form'!$F$7=\"CICMP\",IF('Blank - Request Form'!S217=0,\"\",'Blank - Request Form'!S217),\"\"))","v":""},"",183]
[{"$f":"IF('Blank - Request Form'!$F$6=\"CICMP\",IF('Blank - Request Form'!D218=0,\"\",'Blank - Request Form'!D218),IF('Blank - Request Form'!$F$7=\"CICMP\",IF('Blank - Request Form'!M218=0,\"\",'Blank - Request Form'!M218),\"\"))","v":""},{"$f":"IF('Blank - Request Form'!$F$6=\"CICMP\",IF('Blank - Request Form'!E218=0,\"\",'Blank - Request Form'!E218),IF('Blank - Request Form'!$F$7=\"CICMP\",IF('Blank - Request Form'!N218=0,\"\",'Blank - Request Form'!N218),\"\"))","v":""},{"$f":"IF('Blank - Request Form'!$F$6=\"CICMP\",IF(OR('Blank - Request Form'!F218=\"000\",'Blank - Request Form'!F218=0),\"\",'Blank - Request Form'!F218),IF('Blank - Request Form'!$F$7=\"CICMP\",IF(OR('Blank - Request Form'!O218=\"000\",'Blank - Request Form'!O218=0),\"\",'Blank - Request Form'!O218),\"\"))","v":""},{"$f":"IF('Blank - Request Form'!$F$6=\"CICMP\",IF(OR('Blank - Request Form'!G218=\"0\",'Blank - Request Form'!G218=\"00000\",'Blank - Request Form'!G218=0),\"\",'Blank - Request Form'!G218),IF('Blank - Request Form'!$F$7=\"CICMP\",IF(OR('Blank - Request Form'!P218=\"0\",'Blank - Request Form'!P218=\"00000\",'Blank - Request Form'!P218=0),\"\",'Blank - Request Form'!P218),\"\"))","v":""},{"$f":"IF('Blank - Request Form'!$F$6=\"CICMP\",IF(OR('Blank - Request Form'!H218=\"0\",'Blank - Request Form'!H218=\"00000\",'Blank - Request Form'!H218=0),\"\",'Blank - Request Form'!H218),IF('Blank - Request Form'!$F$7=\"CICMP\",IF(OR('Blank - Request Form'!Q218=\"0\",'Blank - Request Form'!Q218=\"00000\",'Blank - Request Form'!Q218=0),\"\",'Blank - Request Form'!Q218),\"\"))","v":""},{"$f":"IF('Blank - Request Form'!$F$6=\"CICMP\",IF(OR('Blank - Request Form'!I218=\"0\",'Blank - Request Form'!I218=\"00000\",'Blank - Request Form'!I218=0),\"\",'Blank - Request Form'!I218),IF('Blank - Request Form'!$F$7=\"CICMP\",IF(OR('Blank - Request Form'!R218=\"0\",'Blank - Request Form'!R218=\"00000\",'Blank - Request Form'!R218=0),\"\",'Blank - Request Form'!R218),\"\"))","v":""},null,{"$f":"IF('Blank - Request Form'!$F$6=\"CICMP\",IF('Blank - Request Form'!K218=0,\"\",'Blank - Request Form'!K218),IF('Blank - Request Form'!$F$7=\"CICMP\",IF('Blank - Request Form'!T218=0,\"\",'Blank - Request Form'!T218),\"\"))","v":""},null,null,null,{"$f":"IF(M184<>\"\",'Blank - Request Form'!$M$2,\"\")","v":""},{"$f":"IF('Blank - Request Form'!$F$6=\"CICMP\",IF('Blank - Request Form'!J218=0,\"\",'Blank - Request Form'!J218),IF('Blank - Request Form'!$F$7=\"CICMP\",IF('Blank - Request Form'!S218=0,\"\",'Blank - Request Form'!S218),\"\"))","v":""},"",184]
[{"$f":"IF('Blank - Request Form'!$F$6=\"CICMP\",IF('Blank - Request Form'!D219=0,\"\",'Blank - Request Form'!D219),IF('Blank - Request Form'!$F$7=\"CICMP\",IF('Blank - Request Form'!M219=0,\"\",'Blank - Request Form'!M219),\"\"))","v":""},{"$f":"IF('Blank - Request Form'!$F$6=\"CICMP\",IF('Blank - Request Form'!E219=0,\"\",'Blank - Request Form'!E219),IF('Blank - Request Form'!$F$7=\"CICMP\",IF('Blank - Request Form'!N219=0,\"\",'Blank - Request Form'!N219),\"\"))","v":""},{"$f":"IF('Blank - Request Form'!$F$6=\"CICMP\",IF(OR('Blank - Request Form'!F219=\"000\",'Blank - Request Form'!F219=0),\"\",'Blank - Request Form'!F219),IF('Blank - Request Form'!$F$7=\"CICMP\",IF(OR('Blank - Request Form'!O219=\"000\",'Blank - Request Form'!O219=0),\"\",'Blank - Request Form'!O219),\"\"))","v":""},{"$f":"IF('Blank - Request Form'!$F$6=\"CICMP\",IF(OR('Blank - Request Form'!G219=\"0\",'Blank - Request Form'!G219=\"00000\",'Blank - Request Form'!G219=0),\"\",'Blank - Request Form'!G219),IF('Blank - Request Form'!$F$7=\"CICMP\",IF(OR('Blank - Request Form'!P219=\"0\",'Blank - Request Form'!P219=\"00000\",'Blank - Request Form'!P219=0),\"\",'Blank - Request Form'!P219),\"\"))","v":""},{"$f":"IF('Blank - Request Form'!$F$6=\"CICMP\",IF(OR('Blank - Request Form'!H219=\"0\",'Blank - Request Form'!H219=\"00000\",'Blank - Request Form'!H219=0),\"\",'Blank - Request Form'!H219),IF('Blank - Request Form'!$F$7=\"CICMP\",IF(OR('Blank - Request Form'!Q219=\"0\",'Blank - Request Form'!Q219=\"00000\",'Blank - Request Form'!Q219=0),\"\",'Blank - Request Form'!Q219),\"\"))","v":""},{"$f":"IF('Blank - Request Form'!$F$6=\"CICMP\",IF(OR('Blank - Request Form'!I219=\"0\",'Blank - Request Form'!I219=\"00000\",'Blank - Request Form'!I219=0),\"\",'Blank - Request Form'!I219),IF('Blank - Request Form'!$F$7=\"CICMP\",IF(OR('Blank - Request Form'!R219=\"0\",'Blank - Request Form'!R219=\"00000\",'Blank - Request Form'!R219=0),\"\",'Blank - Request Form'!R219),\"\"))","v":""},null,{"$f":"IF('Blank - Request Form'!$F$6=\"CICMP\",IF('Blank - Request Form'!K219=0,\"\",'Blank - Request Form'!K219),IF('Blank - Request Form'!$F$7=\"CICMP\",IF('Blank - Request Form'!T219=0,\"\",'Blank - Request Form'!T219),\"\"))","v":""},null,null,null,{"$f":"IF(M185<>\"\",'Blank - Request Form'!$M$2,\"\")","v":""},{"$f":"IF('Blank - Request Form'!$F$6=\"CICMP\",IF('Blank - Request Form'!J219=0,\"\",'Blank - Request Form'!J219),IF('Blank - Request Form'!$F$7=\"CICMP\",IF('Blank - Request Form'!S219=0,\"\",'Blank - Request Form'!S219),\"\"))","v":""},"",185]
[{"$f":"IF('Blank - Request Form'!$F$6=\"CICMP\",IF('Blank - Request Form'!D220=0,\"\",'Blank - Request Form'!D220),IF('Blank - Request Form'!$F$7=\"CICMP\",IF('Blank - Request Form'!M220=0,\"\",'Blank - Request Form'!M220),\"\"))","v":""},{"$f":"IF('Blank - Request Form'!$F$6=\"CICMP\",IF('Blank - Request Form'!E220=0,\"\",'Blank - Request Form'!E220),IF('Blank - Request Form'!$F$7=\"CICMP\",IF('Blank - Request Form'!N220=0,\"\",'Blank - Request Form'!N220),\"\"))","v":""},{"$f":"IF('Blank - Request Form'!$F$6=\"CICMP\",IF(OR('Blank - Request Form'!F220=\"000\",'Blank - Request Form'!F220=0),\"\",'Blank - Request Form'!F220),IF('Blank - Request Form'!$F$7=\"CICMP\",IF(OR('Blank - Request Form'!O220=\"000\",'Blank - Request Form'!O220=0),\"\",'Blank - Request Form'!O220),\"\"))","v":""},{"$f":"IF('Blank - Request Form'!$F$6=\"CICMP\",IF(OR('Blank - Request Form'!G220=\"0\",'Blank - Request Form'!G220=\"00000\",'Blank - Request Form'!G220=0),\"\",'Blank - Request Form'!G220),IF('Blank - Request Form'!$F$7=\"CICMP\",IF(OR('Blank - Request Form'!P220=\"0\",'Blank - Request Form'!P220=\"00000\",'Blank - Request Form'!P220=0),\"\",'Blank - Request Form'!P220),\"\"))","v":""},{"$f":"IF('Blank - Request Form'!$F$6=\"CICMP\",IF(OR('Blank - Request Form'!H220=\"0\",'Blank - Request Form'!H220=\"00000\",'Blank - Request Form'!H220=0),\"\",'Blank - Request Form'!H220),IF('Blank - Request Form'!$F$7=\"CICMP\",IF(OR('Blank - Request Form'!Q220=\"0\",'Blank - Request Form'!Q220=\"00000\",'Blank - Request Form'!Q220=0),\"\",'Blank - Request Form'!Q220),\"\"))","v":""},{"$f":"IF('Blank - Request Form'!$F$6=\"CICMP\",IF(OR('Blank - Request Form'!I220=\"0\",'Blank - Request Form'!I220=\"00000\",'Blank - Request Form'!I220=0),\"\",'Blank - Request Form'!I220),IF('Blank - Request Form'!$F$7=\"CICMP\",IF(OR('Blank - Request Form'!R220=\"0\",'Blank - Request Form'!R220=\"00000\",'Blank - Request Form'!R220=0),\"\",'Blank - Request Form'!R220),\"\"))","v":""},null,{"$f":"IF('Blank - Request Form'!$F$6=\"CICMP\",IF('Blank - Request Form'!K220=0,\"\",'Blank - Request Form'!K220),IF('Blank - Request Form'!$F$7=\"CICMP\",IF('Blank - Request Form'!T220=0,\"\",'Blank - Request Form'!T220),\"\"))","v":""},null,null,null,{"$f":"IF(M186<>\"\",'Blank - Request Form'!$M$2,\"\")","v":""},{"$f":"IF('Blank - Request Form'!$F$6=\"CICMP\",IF('Blank - Request Form'!J220=0,\"\",'Blank - Request Form'!J220),IF('Blank - Request Form'!$F$7=\"CICMP\",IF('Blank - Request Form'!S220=0,\"\",'Blank - Request Form'!S220),\"\"))","v":""},"",186]
[{"$f":"IF('Blank - Request Form'!$F$6=\"CICMP\",IF('Blank - Request Form'!D221=0,\"\",'Blank - Request Form'!D221),IF('Blank - Request Form'!$F$7=\"CICMP\",IF('Blank - Request Form'!M221=0,\"\",'Blank - Request Form'!M221),\"\"))","v":""},{"$f":"IF('Blank - Request Form'!$F$6=\"CICMP\",IF('Blank - Request Form'!E221=0,\"\",'Blank - Request Form'!E221),IF('Blank - Request Form'!$F$7=\"CICMP\",IF('Blank - Request Form'!N221=0,\"\",'Blank - Request Form'!N221),\"\"))","v":""},{"$f":"IF('Blank - Request Form'!$F$6=\"CICMP\",IF(OR('Blank - Request Form'!F221=\"000\",'Blank - Request Form'!F221=0),\"\",'Blank - Request Form'!F221),IF('Blank - Request Form'!$F$7=\"CICMP\",IF(OR('Blank - Request Form'!O221=\"000\",'Blank - Request Form'!O221=0),\"\",'Blank - Request Form'!O221),\"\"))","v":""},{"$f":"IF('Blank - Request Form'!$F$6=\"CICMP\",IF(OR('Blank - Request Form'!G221=\"0\",'Blank - Request Form'!G221=\"00000\",'Blank - Request Form'!G221=0),\"\",'Blank - Request Form'!G221),IF('Blank - Request Form'!$F$7=\"CICMP\",IF(OR('Blank - Request Form'!P221=\"0\",'Blank - Request Form'!P221=\"00000\",'Blank - Request Form'!P221=0),\"\",'Blank - Request Form'!P221),\"\"))","v":""},{"$f":"IF('Blank - Request Form'!$F$6=\"CICMP\",IF(OR('Blank - Request Form'!H221=\"0\",'Blank - Request Form'!H221=\"00000\",'Blank - Request Form'!H221=0),\"\",'Blank - Request Form'!H221),IF('Blank - Request Form'!$F$7=\"CICMP\",IF(OR('Blank - Request Form'!Q221=\"0\",'Blank - Request Form'!Q221=\"00000\",'Blank - Request Form'!Q221=0),\"\",'Blank - Request Form'!Q221),\"\"))","v":""},{"$f":"IF('Blank - Request Form'!$F$6=\"CICMP\",IF(OR('Blank - Request Form'!I221=\"0\",'Blank - Request Form'!I221=\"00000\",'Blank - Request Form'!I221=0),\"\",'Blank - Request Form'!I221),IF('Blank - Request Form'!$F$7=\"CICMP\",IF(OR('Blank - Request Form'!R221=\"0\",'Blank - Request Form'!R221=\"00000\",'Blank - Request Form'!R221=0),\"\",'Blank - Request Form'!R221),\"\"))","v":""},null,{"$f":"IF('Blank - Request Form'!$F$6=\"CICMP\",IF('Blank - Request Form'!K221=0,\"\",'Blank - Request Form'!K221),IF('Blank - Request Form'!$F$7=\"CICMP\",IF('Blank - Request Form'!T221=0,\"\",'Blank - Request Form'!T221),\"\"))","v":""},null,null,null,{"$f":"IF(M187<>\"\",'Blank - Request Form'!$M$2,\"\")","v":""},{"$f":"IF('Blank - Request Form'!$F$6=\"CICMP\",IF('Blank - Request Form'!J221=0,\"\",'Blank - Request Form'!J221),IF('Blank - Request Form'!$F$7=\"CICMP\",IF('Blank - Request Form'!S221=0,\"\",'Blank - Request Form'!S221),\"\"))","v":""},"",187]
[{"$f":"IF('Blank - Request Form'!$F$6=\"CICMP\",IF('Blank - Request Form'!D222=0,\"\",'Blank - Request Form'!D222),IF('Blank - Request Form'!$F$7=\"CICMP\",IF('Blank - Request Form'!M222=0,\"\",'Blank - Request Form'!M222),\"\"))","v":""},{"$f":"IF('Blank - Request Form'!$F$6=\"CICMP\",IF('Blank - Request Form'!E222=0,\"\",'Blank - Request Form'!E222),IF('Blank - Request Form'!$F$7=\"CICMP\",IF('Blank - Request Form'!N222=0,\"\",'Blank - Request Form'!N222),\"\"))","v":""},{"$f":"IF('Blank - Request Form'!$F$6=\"CICMP\",IF(OR('Blank - Request Form'!F222=\"000\",'Blank - Request Form'!F222=0),\"\",'Blank - Request Form'!F222),IF('Blank - Request Form'!$F$7=\"CICMP\",IF(OR('Blank - Request Form'!O222=\"000\",'Blank - Request Form'!O222=0),\"\",'Blank - Request Form'!O222),\"\"))","v":""},{"$f":"IF('Blank - Request Form'!$F$6=\"CICMP\",IF(OR('Blank - Request Form'!G222=\"0\",'Blank - Request Form'!G222=\"00000\",'Blank - Request Form'!G222=0),\"\",'Blank - Request Form'!G222),IF('Blank - Request Form'!$F$7=\"CICMP\",IF(OR('Blank - Request Form'!P222=\"0\",'Blank - Request Form'!P222=\"00000\",'Blank - Request Form'!P222=0),\"\",'Blank - Request Form'!P222),\"\"))","v":""},{"$f":"IF('Blank - Request Form'!$F$6=\"CICMP\",IF(OR('Blank - Request Form'!H222=\"0\",'Blank - Request Form'!H222=\"00000\",'Blank - Request Form'!H222=0),\"\",'Blank - Request Form'!H222),IF('Blank - Request Form'!$F$7=\"CICMP\",IF(OR('Blank - Request Form'!Q222=\"0\",'Blank - Request Form'!Q222=\"00000\",'Blank - Request Form'!Q222=0),\"\",'Blank - Request Form'!Q222),\"\"))","v":""},{"$f":"IF('Blank - Request Form'!$F$6=\"CICMP\",IF(OR('Blank - Request Form'!I222=\"0\",'Blank - Request Form'!I222=\"00000\",'Blank - Request Form'!I222=0),\"\",'Blank - Request Form'!I222),IF('Blank - Request Form'!$F$7=\"CICMP\",IF(OR('Blank - Request Form'!R222=\"0\",'Blank - Request Form'!R222=\"00000\",'Blank - Request Form'!R222=0),\"\",'Blank - Request Form'!R222),\"\"))","v":""},null,{"$f":"IF('Blank - Request Form'!$F$6=\"CICMP\",IF('Blank - Request Form'!K222=0,\"\",'Blank - Request Form'!K222),IF('Blank - Request Form'!$F$7=\"CICMP\",IF('Blank - Request Form'!T222=0,\"\",'Blank - Request Form'!T222),\"\"))","v":""},null,null,null,{"$f":"IF(M188<>\"\",'Blank - Request Form'!$M$2,\"\")","v":""},{"$f":"IF('Blank - Request Form'!$F$6=\"CICMP\",IF('Blank - Request Form'!J222=0,\"\",'Blank - Request Form'!J222),IF('Blank - Request Form'!$F$7=\"CICMP\",IF('Blank - Request Form'!S222=0,\"\",'Blank - Request Form'!S222),\"\"))","v":""},"",188]
[{"$f":"IF('Blank - Request Form'!$F$6=\"CICMP\",IF('Blank - Request Form'!D223=0,\"\",'Blank - Request Form'!D223),IF('Blank - Request Form'!$F$7=\"CICMP\",IF('Blank - Request Form'!M223=0,\"\",'Blank - Request Form'!M223),\"\"))","v":""},{"$f":"IF('Blank - Request Form'!$F$6=\"CICMP\",IF('Blank - Request Form'!E223=0,\"\",'Blank - Request Form'!E223),IF('Blank - Request Form'!$F$7=\"CICMP\",IF('Blank - Request Form'!N223=0,\"\",'Blank - Request Form'!N223),\"\"))","v":""},{"$f":"IF('Blank - Request Form'!$F$6=\"CICMP\",IF(OR('Blank - Request Form'!F223=\"000\",'Blank - Request Form'!F223=0),\"\",'Blank - Request Form'!F223),IF('Blank - Request Form'!$F$7=\"CICMP\",IF(OR('Blank - Request Form'!O223=\"000\",'Blank - Request Form'!O223=0),\"\",'Blank - Request Form'!O223),\"\"))","v":""},{"$f":"IF('Blank - Request Form'!$F$6=\"CICMP\",IF(OR('Blank - Request Form'!G223=\"0\",'Blank - Request Form'!G223=\"00000\",'Blank - Request Form'!G223=0),\"\",'Blank - Request Form'!G223),IF('Blank - Request Form'!$F$7=\"CICMP\",IF(OR('Blank - Request Form'!P223=\"0\",'Blank - Request Form'!P223=\"00000\",'Blank - Request Form'!P223=0),\"\",'Blank - Request Form'!P223),\"\"))","v":""},{"$f":"IF('Blank - Request Form'!$F$6=\"CICMP\",IF(OR('Blank - Request Form'!H223=\"0\",'Blank - Request Form'!H223=\"00000\",'Blank - Request Form'!H223=0),\"\",'Blank - Request Form'!H223),IF('Blank - Request Form'!$F$7=\"CICMP\",IF(OR('Blank - Request Form'!Q223=\"0\",'Blank - Request Form'!Q223=\"00000\",'Blank - Request Form'!Q223=0),\"\",'Blank - Request Form'!Q223),\"\"))","v":""},{"$f":"IF('Blank - Request Form'!$F$6=\"CICMP\",IF(OR('Blank - Request Form'!I223=\"0\",'Blank - Request Form'!I223=\"00000\",'Blank - Request Form'!I223=0),\"\",'Blank - Request Form'!I223),IF('Blank - Request Form'!$F$7=\"CICMP\",IF(OR('Blank - Request Form'!R223=\"0\",'Blank - Request Form'!R223=\"00000\",'Blank - Request Form'!R223=0),\"\",'Blank - Request Form'!R223),\"\"))","v":""},null,{"$f":"IF('Blank - Request Form'!$F$6=\"CICMP\",IF('Blank - Request Form'!K223=0,\"\",'Blank - Request Form'!K223),IF('Blank - Request Form'!$F$7=\"CICMP\",IF('Blank - Request Form'!T223=0,\"\",'Blank - Request Form'!T223),\"\"))","v":""},null,null,null,{"$f":"IF(M189<>\"\",'Blank - Request Form'!$M$2,\"\")","v":""},{"$f":"IF('Blank - Request Form'!$F$6=\"CICMP\",IF('Blank - Request Form'!J223=0,\"\",'Blank - Request Form'!J223),IF('Blank - Request Form'!$F$7=\"CICMP\",IF('Blank - Request Form'!S223=0,\"\",'Blank - Request Form'!S223),\"\"))","v":""},"",189]
[{"$f":"IF('Blank - Request Form'!$F$6=\"CICMP\",IF('Blank - Request Form'!D224=0,\"\",'Blank - Request Form'!D224),IF('Blank - Request Form'!$F$7=\"CICMP\",IF('Blank - Request Form'!M224=0,\"\",'Blank - Request Form'!M224),\"\"))","v":""},{"$f":"IF('Blank - Request Form'!$F$6=\"CICMP\",IF('Blank - Request Form'!E224=0,\"\",'Blank - Request Form'!E224),IF('Blank - Request Form'!$F$7=\"CICMP\",IF('Blank - Request Form'!N224=0,\"\",'Blank - Request Form'!N224),\"\"))","v":""},{"$f":"IF('Blank - Request Form'!$F$6=\"CICMP\",IF(OR('Blank - Request Form'!F224=\"000\",'Blank - Request Form'!F224=0),\"\",'Blank - Request Form'!F224),IF('Blank - Request Form'!$F$7=\"CICMP\",IF(OR('Blank - Request Form'!O224=\"000\",'Blank - Request Form'!O224=0),\"\",'Blank - Request Form'!O224),\"\"))","v":""},{"$f":"IF('Blank - Request Form'!$F$6=\"CICMP\",IF(OR('Blank - Request Form'!G224=\"0\",'Blank - Request Form'!G224=\"00000\",'Blank - Request Form'!G224=0),\"\",'Blank - Request Form'!G224),IF('Blank - Request Form'!$F$7=\"CICMP\",IF(OR('Blank - Request Form'!P224=\"0\",'Blank - Request Form'!P224=\"00000\",'Blank - Request Form'!P224=0),\"\",'Blank - Request Form'!P224),\"\"))","v":""},{"$f":"IF('Blank - Request Form'!$F$6=\"CICMP\",IF(OR('Blank - Request Form'!H224=\"0\",'Blank - Request Form'!H224=\"00000\",'Blank - Request Form'!H224=0),\"\",'Blank - Request Form'!H224),IF('Blank - Request Form'!$F$7=\"CICMP\",IF(OR('Blank - Request Form'!Q224=\"0\",'Blank - Request Form'!Q224=\"00000\",'Blank - Request Form'!Q224=0),\"\",'Blank - Request Form'!Q224),\"\"))","v":""},{"$f":"IF('Blank - Request Form'!$F$6=\"CICMP\",IF(OR('Blank - Request Form'!I224=\"0\",'Blank - Request Form'!I224=\"00000\",'Blank - Request Form'!I224=0),\"\",'Blank - Request Form'!I224),IF('Blank - Request Form'!$F$7=\"CICMP\",IF(OR('Blank - Request Form'!R224=\"0\",'Blank - Request Form'!R224=\"00000\",'Blank - Request Form'!R224=0),\"\",'Blank - Request Form'!R224),\"\"))","v":""},null,{"$f":"IF('Blank - Request Form'!$F$6=\"CICMP\",IF('Blank - Request Form'!K224=0,\"\",'Blank - Request Form'!K224),IF('Blank - Request Form'!$F$7=\"CICMP\",IF('Blank - Request Form'!T224=0,\"\",'Blank - Request Form'!T224),\"\"))","v":""},null,null,null,{"$f":"IF(M190<>\"\",'Blank - Request Form'!$M$2,\"\")","v":""},{"$f":"IF('Blank - Request Form'!$F$6=\"CICMP\",IF('Blank - Request Form'!J224=0,\"\",'Blank - Request Form'!J224),IF('Blank - Request Form'!$F$7=\"CICMP\",IF('Blank - Request Form'!S224=0,\"\",'Blank - Request Form'!S224),\"\"))","v":""},"",190]
[{"$f":"IF('Blank - Request Form'!$F$6=\"CICMP\",IF('Blank - Request Form'!D225=0,\"\",'Blank - Request Form'!D225),IF('Blank - Request Form'!$F$7=\"CICMP\",IF('Blank - Request Form'!M225=0,\"\",'Blank - Request Form'!M225),\"\"))","v":""},{"$f":"IF('Blank - Request Form'!$F$6=\"CICMP\",IF('Blank - Request Form'!E225=0,\"\",'Blank - Request Form'!E225),IF('Blank - Request Form'!$F$7=\"CICMP\",IF('Blank - Request Form'!N225=0,\"\",'Blank - Request Form'!N225),\"\"))","v":""},{"$f":"IF('Blank - Request Form'!$F$6=\"CICMP\",IF(OR('Blank - Request Form'!F225=\"000\",'Blank - Request Form'!F225=0),\"\",'Blank - Request Form'!F225),IF('Blank - Request Form'!$F$7=\"CICMP\",IF(OR('Blank - Request Form'!O225=\"000\",'Blank - Request Form'!O225=0),\"\",'Blank - Request Form'!O225),\"\"))","v":""},{"$f":"IF('Blank - Request Form'!$F$6=\"CICMP\",IF(OR('Blank - Request Form'!G225=\"0\",'Blank - Request Form'!G225=\"00000\",'Blank - Request Form'!G225=0),\"\",'Blank - Request Form'!G225),IF('Blank - Request Form'!$F$7=\"CICMP\",IF(OR('Blank - Request Form'!P225=\"0\",'Blank - Request Form'!P225=\"00000\",'Blank - Request Form'!P225=0),\"\",'Blank - Request Form'!P225),\"\"))","v":""},{"$f":"IF('Blank - Request Form'!$F$6=\"CICMP\",IF(OR('Blank - Request Form'!H225=\"0\",'Blank - Request Form'!H225=\"00000\",'Blank - Request Form'!H225=0),\"\",'Blank - Request Form'!H225),IF('Blank - Request Form'!$F$7=\"CICMP\",IF(OR('Blank - Request Form'!Q225=\"0\",'Blank - Request Form'!Q225=\"00000\",'Blank - Request Form'!Q225=0),\"\",'Blank - Request Form'!Q225),\"\"))","v":""},{"$f":"IF('Blank - Request Form'!$F$6=\"CICMP\",IF(OR('Blank - Request Form'!I225=\"0\",'Blank - Request Form'!I225=\"00000\",'Blank - Request Form'!I225=0),\"\",'Blank - Request Form'!I225),IF('Blank - Request Form'!$F$7=\"CICMP\",IF(OR('Blank - Request Form'!R225=\"0\",'Blank - Request Form'!R225=\"00000\",'Blank - Request Form'!R225=0),\"\",'Blank - Request Form'!R225),\"\"))","v":""},null,{"$f":"IF('Blank - Request Form'!$F$6=\"CICMP\",IF('Blank - Request Form'!K225=0,\"\",'Blank - Request Form'!K225),IF('Blank - Request Form'!$F$7=\"CICMP\",IF('Blank - Request Form'!T225=0,\"\",'Blank - Request Form'!T225),\"\"))","v":""},null,null,null,{"$f":"IF(M191<>\"\",'Blank - Request Form'!$M$2,\"\")","v":""},{"$f":"IF('Blank - Request Form'!$F$6=\"CICMP\",IF('Blank - Request Form'!J225=0,\"\",'Blank - Request Form'!J225),IF('Blank - Request Form'!$F$7=\"CICMP\",IF('Blank - Request Form'!S225=0,\"\",'Blank - Request Form'!S225),\"\"))","v":""},"",191]
[{"$f":"IF('Blank - Request Form'!$F$6=\"CICMP\",IF('Blank - Request Form'!D226=0,\"\",'Blank - Request Form'!D226),IF('Blank - Request Form'!$F$7=\"CICMP\",IF('Blank - Request Form'!M226=0,\"\",'Blank - Request Form'!M226),\"\"))","v":""},{"$f":"IF('Blank - Request Form'!$F$6=\"CICMP\",IF('Blank - Request Form'!E226=0,\"\",'Blank - Request Form'!E226),IF('Blank - Request Form'!$F$7=\"CICMP\",IF('Blank - Request Form'!N226=0,\"\",'Blank - Request Form'!N226),\"\"))","v":""},{"$f":"IF('Blank - Request Form'!$F$6=\"CICMP\",IF(OR('Blank - Request Form'!F226=\"000\",'Blank - Request Form'!F226=0),\"\",'Blank - Request Form'!F226),IF('Blank - Request Form'!$F$7=\"CICMP\",IF(OR('Blank - Request Form'!O226=\"000\",'Blank - Request Form'!O226=0),\"\",'Blank - Request Form'!O226),\"\"))","v":""},{"$f":"IF('Blank - Request Form'!$F$6=\"CICMP\",IF(OR('Blank - Request Form'!G226=\"0\",'Blank - Request Form'!G226=\"00000\",'Blank - Request Form'!G226=0),\"\",'Blank - Request Form'!G226),IF('Blank - Request Form'!$F$7=\"CICMP\",IF(OR('Blank - Request Form'!P226=\"0\",'Blank - Request Form'!P226=\"00000\",'Blank - Request Form'!P226=0),\"\",'Blank - Request Form'!P226),\"\"))","v":""},{"$f":"IF('Blank - Request Form'!$F$6=\"CICMP\",IF(OR('Blank - Request Form'!H226=\"0\",'Blank - Request Form'!H226=\"00000\",'Blank - Request Form'!H226=0),\"\",'Blank - Request Form'!H226),IF('Blank - Request Form'!$F$7=\"CICMP\",IF(OR('Blank - Request Form'!Q226=\"0\",'Blank - Request Form'!Q226=\"00000\",'Blank - Request Form'!Q226=0),\"\",'Blank - Request Form'!Q226),\"\"))","v":""},{"$f":"IF('Blank - Request Form'!$F$6=\"CICMP\",IF(OR('Blank - Request Form'!I226=\"0\",'Blank - Request Form'!I226=\"00000\",'Blank - Request Form'!I226=0),\"\",'Blank - Request Form'!I226),IF('Blank - Request Form'!$F$7=\"CICMP\",IF(OR('Blank - Request Form'!R226=\"0\",'Blank - Request Form'!R226=\"00000\",'Blank - Request Form'!R226=0),\"\",'Blank - Request Form'!R226),\"\"))","v":""},null,{"$f":"IF('Blank - Request Form'!$F$6=\"CICMP\",IF('Blank - Request Form'!K226=0,\"\",'Blank - Request Form'!K226),IF('Blank - Request Form'!$F$7=\"CICMP\",IF('Blank - Request Form'!T226=0,\"\",'Blank - Request Form'!T226),\"\"))","v":""},null,null,null,{"$f":"IF(M192<>\"\",'Blank - Request Form'!$M$2,\"\")","v":""},{"$f":"IF('Blank - Request Form'!$F$6=\"CICMP\",IF('Blank - Request Form'!J226=0,\"\",'Blank - Request Form'!J226),IF('Blank - Request Form'!$F$7=\"CICMP\",IF('Blank - Request Form'!S226=0,\"\",'Blank - Request Form'!S226),\"\"))","v":""},"",192]
[{"$f":"IF('Blank - Request Form'!$F$6=\"CICMP\",IF('Blank - Request Form'!D227=0,\"\",'Blank - Request Form'!D227),IF('Blank - Request Form'!$F$7=\"CICMP\",IF('Blank - Request Form'!M227=0,\"\",'Blank - Request Form'!M227),\"\"))","v":""},{"$f":"IF('Blank - Request Form'!$F$6=\"CICMP\",IF('Blank - Request Form'!E227=0,\"\",'Blank - Request Form'!E227),IF('Blank - Request Form'!$F$7=\"CICMP\",IF('Blank - Request Form'!N227=0,\"\",'Blank - Request Form'!N227),\"\"))","v":""},{"$f":"IF('Blank - Request Form'!$F$6=\"CICMP\",IF(OR('Blank - Request Form'!F227=\"000\",'Blank - Request Form'!F227=0),\"\",'Blank - Request Form'!F227),IF('Blank - Request Form'!$F$7=\"CICMP\",IF(OR('Blank - Request Form'!O227=\"000\",'Blank - Request Form'!O227=0),\"\",'Blank - Request Form'!O227),\"\"))","v":""},{"$f":"IF('Blank - Request Form'!$F$6=\"CICMP\",IF(OR('Blank - Request Form'!G227=\"0\",'Blank - Request Form'!G227=\"00000\",'Blank - Request Form'!G227=0),\"\",'Blank - Request Form'!G227),IF('Blank - Request Form'!$F$7=\"CICMP\",IF(OR('Blank - Request Form'!P227=\"0\",'Blank - Request Form'!P227=\"00000\",'Blank - Request Form'!P227=0),\"\",'Blank - Request Form'!P227),\"\"))","v":""},{"$f":"IF('Blank - Request Form'!$F$6=\"CICMP\",IF(OR('Blank - Request Form'!H227=\"0\",'Blank - Request Form'!H227=\"00000\",'Blank - Request Form'!H227=0),\"\",'Blank - Request Form'!H227),IF('Blank - Request Form'!$F$7=\"CICMP\",IF(OR('Blank - Request Form'!Q227=\"0\",'Blank - Request Form'!Q227=\"00000\",'Blank - Request Form'!Q227=0),\"\",'Blank - Request Form'!Q227),\"\"))","v":""},{"$f":"IF('Blank - Request Form'!$F$6=\"CICMP\",IF(OR('Blank - Request Form'!I227=\"0\",'Blank - Request Form'!I227=\"00000\",'Blank - Request Form'!I227=0),\"\",'Blank - Request Form'!I227),IF('Blank - Request Form'!$F$7=\"CICMP\",IF(OR('Blank - Request Form'!R227=\"0\",'Blank - Request Form'!R227=\"00000\",'Blank - Request Form'!R227=0),\"\",'Blank - Request Form'!R227),\"\"))","v":""},null,{"$f":"IF('Blank - Request Form'!$F$6=\"CICMP\",IF('Blank - Request Form'!K227=0,\"\",'Blank - Request Form'!K227),IF('Blank - Request Form'!$F$7=\"CICMP\",IF('Blank - Request Form'!T227=0,\"\",'Blank - Request Form'!T227),\"\"))","v":""},null,null,null,{"$f":"IF(M193<>\"\",'Blank - Request Form'!$M$2,\"\")","v":""},{"$f":"IF('Blank - Request Form'!$F$6=\"CICMP\",IF('Blank - Request Form'!J227=0,\"\",'Blank - Request Form'!J227),IF('Blank - Request Form'!$F$7=\"CICMP\",IF('Blank - Request Form'!S227=0,\"\",'Blank - Request Form'!S227),\"\"))","v":""},"",193]
[{"$f":"IF('Blank - Request Form'!$F$6=\"CICMP\",IF('Blank - Request Form'!D228=0,\"\",'Blank - Request Form'!D228),IF('Blank - Request Form'!$F$7=\"CICMP\",IF('Blank - Request Form'!M228=0,\"\",'Blank - Request Form'!M228),\"\"))","v":""},{"$f":"IF('Blank - Request Form'!$F$6=\"CICMP\",IF('Blank - Request Form'!E228=0,\"\",'Blank - Request Form'!E228),IF('Blank - Request Form'!$F$7=\"CICMP\",IF('Blank - Request Form'!N228=0,\"\",'Blank - Request Form'!N228),\"\"))","v":""},{"$f":"IF('Blank - Request Form'!$F$6=\"CICMP\",IF(OR('Blank - Request Form'!F228=\"000\",'Blank - Request Form'!F228=0),\"\",'Blank - Request Form'!F228),IF('Blank - Request Form'!$F$7=\"CICMP\",IF(OR('Blank - Request Form'!O228=\"000\",'Blank - Request Form'!O228=0),\"\",'Blank - Request Form'!O228),\"\"))","v":""},{"$f":"IF('Blank - Request Form'!$F$6=\"CICMP\",IF(OR('Blank - Request Form'!G228=\"0\",'Blank - Request Form'!G228=\"00000\",'Blank - Request Form'!G228=0),\"\",'Blank - Request Form'!G228),IF('Blank - Request Form'!$F$7=\"CICMP\",IF(OR('Blank - Request Form'!P228=\"0\",'Blank - Request Form'!P228=\"00000\",'Blank - Request Form'!P228=0),\"\",'Blank - Request Form'!P228),\"\"))","v":""},{"$f":"IF('Blank - Request Form'!$F$6=\"CICMP\",IF(OR('Blank - Request Form'!H228=\"0\",'Blank - Request Form'!H228=\"00000\",'Blank - Request Form'!H228=0),\"\",'Blank - Request Form'!H228),IF('Blank - Request Form'!$F$7=\"CICMP\",IF(OR('Blank - Request Form'!Q228=\"0\",'Blank - Request Form'!Q228=\"00000\",'Blank - Request Form'!Q228=0),\"\",'Blank - Request Form'!Q228),\"\"))","v":""},{"$f":"IF('Blank - Request Form'!$F$6=\"CICMP\",IF(OR('Blank - Request Form'!I228=\"0\",'Blank - Request Form'!I228=\"00000\",'Blank - Request Form'!I228=0),\"\",'Blank - Request Form'!I228),IF('Blank - Request Form'!$F$7=\"CICMP\",IF(OR('Blank - Request Form'!R228=\"0\",'Blank - Request Form'!R228=\"00000\",'Blank - Request Form'!R228=0),\"\",'Blank - Request Form'!R228),\"\"))","v":""},null,{"$f":"IF('Blank - Request Form'!$F$6=\"CICMP\",IF('Blank - Request Form'!K228=0,\"\",'Blank - Request Form'!K228),IF('Blank - Request Form'!$F$7=\"CICMP\",IF('Blank - Request Form'!T228=0,\"\",'Blank - Request Form'!T228),\"\"))","v":""},null,null,null,{"$f":"IF(M194<>\"\",'Blank - Request Form'!$M$2,\"\")","v":""},{"$f":"IF('Blank - Request Form'!$F$6=\"CICMP\",IF('Blank - Request Form'!J228=0,\"\",'Blank - Request Form'!J228),IF('Blank - Request Form'!$F$7=\"CICMP\",IF('Blank - Request Form'!S228=0,\"\",'Blank - Request Form'!S228),\"\"))","v":""},"",194]
[{"$f":"IF('Blank - Request Form'!$F$6=\"CICMP\",IF('Blank - Request Form'!D229=0,\"\",'Blank - Request Form'!D229),IF('Blank - Request Form'!$F$7=\"CICMP\",IF('Blank - Request Form'!M229=0,\"\",'Blank - Request Form'!M229),\"\"))","v":""},{"$f":"IF('Blank - Request Form'!$F$6=\"CICMP\",IF('Blank - Request Form'!E229=0,\"\",'Blank - Request Form'!E229),IF('Blank - Request Form'!$F$7=\"CICMP\",IF('Blank - Request Form'!N229=0,\"\",'Blank - Request Form'!N229),\"\"))","v":""},{"$f":"IF('Blank - Request Form'!$F$6=\"CICMP\",IF(OR('Blank - Request Form'!F229=\"000\",'Blank - Request Form'!F229=0),\"\",'Blank - Request Form'!F229),IF('Blank - Request Form'!$F$7=\"CICMP\",IF(OR('Blank - Request Form'!O229=\"000\",'Blank - Request Form'!O229=0),\"\",'Blank - Request Form'!O229),\"\"))","v":""},{"$f":"IF('Blank - Request Form'!$F$6=\"CICMP\",IF(OR('Blank - Request Form'!G229=\"0\",'Blank - Request Form'!G229=\"00000\",'Blank - Request Form'!G229=0),\"\",'Blank - Request Form'!G229),IF('Blank - Request Form'!$F$7=\"CICMP\",IF(OR('Blank - Request Form'!P229=\"0\",'Blank - Request Form'!P229=\"00000\",'Blank - Request Form'!P229=0),\"\",'Blank - Request Form'!P229),\"\"))","v":""},{"$f":"IF('Blank - Request Form'!$F$6=\"CICMP\",IF(OR('Blank - Request Form'!H229=\"0\",'Blank - Request Form'!H229=\"00000\",'Blank - Request Form'!H229=0),\"\",'Blank - Request Form'!H229),IF('Blank - Request Form'!$F$7=\"CICMP\",IF(OR('Blank - Request Form'!Q229=\"0\",'Blank - Request Form'!Q229=\"00000\",'Blank - Request Form'!Q229=0),\"\",'Blank - Request Form'!Q229),\"\"))","v":""},{"$f":"IF('Blank - Request Form'!$F$6=\"CICMP\",IF(OR('Blank - Request Form'!I229=\"0\",'Blank - Request Form'!I229=\"00000\",'Blank - Request Form'!I229=0),\"\",'Blank - Request Form'!I229),IF('Blank - Request Form'!$F$7=\"CICMP\",IF(OR('Blank - Request Form'!R229=\"0\",'Blank - Request Form'!R229=\"00000\",'Blank - Request Form'!R229=0),\"\",'Blank - Request Form'!R229),\"\"))","v":""},null,{"$f":"IF('Blank - Request Form'!$F$6=\"CICMP\",IF('Blank - Request Form'!K229=0,\"\",'Blank - Request Form'!K229),IF('Blank - Request Form'!$F$7=\"CICMP\",IF('Blank - Request Form'!T229=0,\"\",'Blank - Request Form'!T229),\"\"))","v":""},null,null,null,{"$f":"IF(M195<>\"\",'Blank - Request Form'!$M$2,\"\")","v":""},{"$f":"IF('Blank - Request Form'!$F$6=\"CICMP\",IF('Blank - Request Form'!J229=0,\"\",'Blank - Request Form'!J229),IF('Blank - Request Form'!$F$7=\"CICMP\",IF('Blank - Request Form'!S229=0,\"\",'Blank - Request Form'!S229),\"\"))","v":""},"",195]
[{"$f":"IF('Blank - Request Form'!$F$6=\"CICMP\",IF('Blank - Request Form'!D230=0,\"\",'Blank - Request Form'!D230),IF('Blank - Request Form'!$F$7=\"CICMP\",IF('Blank - Request Form'!M230=0,\"\",'Blank - Request Form'!M230),\"\"))","v":""},{"$f":"IF('Blank - Request Form'!$F$6=\"CICMP\",IF('Blank - Request Form'!E230=0,\"\",'Blank - Request Form'!E230),IF('Blank - Request Form'!$F$7=\"CICMP\",IF('Blank - Request Form'!N230=0,\"\",'Blank - Request Form'!N230),\"\"))","v":""},{"$f":"IF('Blank - Request Form'!$F$6=\"CICMP\",IF(OR('Blank - Request Form'!F230=\"000\",'Blank - Request Form'!F230=0),\"\",'Blank - Request Form'!F230),IF('Blank - Request Form'!$F$7=\"CICMP\",IF(OR('Blank - Request Form'!O230=\"000\",'Blank - Request Form'!O230=0),\"\",'Blank - Request Form'!O230),\"\"))","v":""},{"$f":"IF('Blank - Request Form'!$F$6=\"CICMP\",IF(OR('Blank - Request Form'!G230=\"0\",'Blank - Request Form'!G230=\"00000\",'Blank - Request Form'!G230=0),\"\",'Blank - Request Form'!G230),IF('Blank - Request Form'!$F$7=\"CICMP\",IF(OR('Blank - Request Form'!P230=\"0\",'Blank - Request Form'!P230=\"00000\",'Blank - Request Form'!P230=0),\"\",'Blank - Request Form'!P230),\"\"))","v":""},{"$f":"IF('Blank - Request Form'!$F$6=\"CICMP\",IF(OR('Blank - Request Form'!H230=\"0\",'Blank - Request Form'!H230=\"00000\",'Blank - Request Form'!H230=0),\"\",'Blank - Request Form'!H230),IF('Blank - Request Form'!$F$7=\"CICMP\",IF(OR('Blank - Request Form'!Q230=\"0\",'Blank - Request Form'!Q230=\"00000\",'Blank - Request Form'!Q230=0),\"\",'Blank - Request Form'!Q230),\"\"))","v":""},{"$f":"IF('Blank - Request Form'!$F$6=\"CICMP\",IF(OR('Blank - Request Form'!I230=\"0\",'Blank - Request Form'!I230=\"00000\",'Blank - Request Form'!I230=0),\"\",'Blank - Request Form'!I230),IF('Blank - Request Form'!$F$7=\"CICMP\",IF(OR('Blank - Request Form'!R230=\"0\",'Blank - Request Form'!R230=\"00000\",'Blank - Request Form'!R230=0),\"\",'Blank - Request Form'!R230),\"\"))","v":""},null,{"$f":"IF('Blank - Request Form'!$F$6=\"CICMP\",IF('Blank - Request Form'!K230=0,\"\",'Blank - Request Form'!K230),IF('Blank - Request Form'!$F$7=\"CICMP\",IF('Blank - Request Form'!T230=0,\"\",'Blank - Request Form'!T230),\"\"))","v":""},null,null,null,{"$f":"IF(M196<>\"\",'Blank - Request Form'!$M$2,\"\")","v":""},{"$f":"IF('Blank - Request Form'!$F$6=\"CICMP\",IF('Blank - Request Form'!J230=0,\"\",'Blank - Request Form'!J230),IF('Blank - Request Form'!$F$7=\"CICMP\",IF('Blank - Request Form'!S230=0,\"\",'Blank - Request Form'!S230),\"\"))","v":""},"",196]
[{"$f":"IF('Blank - Request Form'!$F$6=\"CICMP\",IF('Blank - Request Form'!D231=0,\"\",'Blank - Request Form'!D231),IF('Blank - Request Form'!$F$7=\"CICMP\",IF('Blank - Request Form'!M231=0,\"\",'Blank - Request Form'!M231),\"\"))","v":""},{"$f":"IF('Blank - Request Form'!$F$6=\"CICMP\",IF('Blank - Request Form'!E231=0,\"\",'Blank - Request Form'!E231),IF('Blank - Request Form'!$F$7=\"CICMP\",IF('Blank - Request Form'!N231=0,\"\",'Blank - Request Form'!N231),\"\"))","v":""},{"$f":"IF('Blank - Request Form'!$F$6=\"CICMP\",IF(OR('Blank - Request Form'!F231=\"000\",'Blank - Request Form'!F231=0),\"\",'Blank - Request Form'!F231),IF('Blank - Request Form'!$F$7=\"CICMP\",IF(OR('Blank - Request Form'!O231=\"000\",'Blank - Request Form'!O231=0),\"\",'Blank - Request Form'!O231),\"\"))","v":""},{"$f":"IF('Blank - Request Form'!$F$6=\"CICMP\",IF(OR('Blank - Request Form'!G231=\"0\",'Blank - Request Form'!G231=\"00000\",'Blank - Request Form'!G231=0),\"\",'Blank - Request Form'!G231),IF('Blank - Request Form'!$F$7=\"CICMP\",IF(OR('Blank - Request Form'!P231=\"0\",'Blank - Request Form'!P231=\"00000\",'Blank - Request Form'!P231=0),\"\",'Blank - Request Form'!P231),\"\"))","v":""},{"$f":"IF('Blank - Request Form'!$F$6=\"CICMP\",IF(OR('Blank - Request Form'!H231=\"0\",'Blank - Request Form'!H231=\"00000\",'Blank - Request Form'!H231=0),\"\",'Blank - Request Form'!H231),IF('Blank - Request Form'!$F$7=\"CICMP\",IF(OR('Blank - Request Form'!Q231=\"0\",'Blank - Request Form'!Q231=\"00000\",'Blank - Request Form'!Q231=0),\"\",'Blank - Request Form'!Q231),\"\"))","v":""},{"$f":"IF('Blank - Request Form'!$F$6=\"CICMP\",IF(OR('Blank - Request Form'!I231=\"0\",'Blank - Request Form'!I231=\"00000\",'Blank - Request Form'!I231=0),\"\",'Blank - Request Form'!I231),IF('Blank - Request Form'!$F$7=\"CICMP\",IF(OR('Blank - Request Form'!R231=\"0\",'Blank - Request Form'!R231=\"00000\",'Blank - Request Form'!R231=0),\"\",'Blank - Request Form'!R231),\"\"))","v":""},null,{"$f":"IF('Blank - Request Form'!$F$6=\"CICMP\",IF('Blank - Request Form'!K231=0,\"\",'Blank - Request Form'!K231),IF('Blank - Request Form'!$F$7=\"CICMP\",IF('Blank - Request Form'!T231=0,\"\",'Blank - Request Form'!T231),\"\"))","v":""},null,null,null,{"$f":"IF(M197<>\"\",'Blank - Request Form'!$M$2,\"\")","v":""},{"$f":"IF('Blank - Request Form'!$F$6=\"CICMP\",IF('Blank - Request Form'!J231=0,\"\",'Blank - Request Form'!J231),IF('Blank - Request Form'!$F$7=\"CICMP\",IF('Blank - Request Form'!S231=0,\"\",'Blank - Request Form'!S231),\"\"))","v":""},"",197]
[{"$f":"IF('Blank - Request Form'!$F$6=\"CICMP\",IF('Blank - Request Form'!D232=0,\"\",'Blank - Request Form'!D232),IF('Blank - Request Form'!$F$7=\"CICMP\",IF('Blank - Request Form'!M232=0,\"\",'Blank - Request Form'!M232),\"\"))","v":""},{"$f":"IF('Blank - Request Form'!$F$6=\"CICMP\",IF('Blank - Request Form'!E232=0,\"\",'Blank - Request Form'!E232),IF('Blank - Request Form'!$F$7=\"CICMP\",IF('Blank - Request Form'!N232=0,\"\",'Blank - Request Form'!N232),\"\"))","v":""},{"$f":"IF('Blank - Request Form'!$F$6=\"CICMP\",IF(OR('Blank - Request Form'!F232=\"000\",'Blank - Request Form'!F232=0),\"\",'Blank - Request Form'!F232),IF('Blank - Request Form'!$F$7=\"CICMP\",IF(OR('Blank - Request Form'!O232=\"000\",'Blank - Request Form'!O232=0),\"\",'Blank - Request Form'!O232),\"\"))","v":""},{"$f":"IF('Blank - Request Form'!$F$6=\"CICMP\",IF(OR('Blank - Request Form'!G232=\"0\",'Blank - Request Form'!G232=\"00000\",'Blank - Request Form'!G232=0),\"\",'Blank - Request Form'!G232),IF('Blank - Request Form'!$F$7=\"CICMP\",IF(OR('Blank - Request Form'!P232=\"0\",'Blank - Request Form'!P232=\"00000\",'Blank - Request Form'!P232=0),\"\",'Blank - Request Form'!P232),\"\"))","v":""},{"$f":"IF('Blank - Request Form'!$F$6=\"CICMP\",IF(OR('Blank - Request Form'!H232=\"0\",'Blank - Request Form'!H232=\"00000\",'Blank - Request Form'!H232=0),\"\",'Blank - Request Form'!H232),IF('Blank - Request Form'!$F$7=\"CICMP\",IF(OR('Blank - Request Form'!Q232=\"0\",'Blank - Request Form'!Q232=\"00000\",'Blank - Request Form'!Q232=0),\"\",'Blank - Request Form'!Q232),\"\"))","v":""},{"$f":"IF('Blank - Request Form'!$F$6=\"CICMP\",IF(OR('Blank - Request Form'!I232=\"0\",'Blank - Request Form'!I232=\"00000\",'Blank - Request Form'!I232=0),\"\",'Blank - Request Form'!I232),IF('Blank - Request Form'!$F$7=\"CICMP\",IF(OR('Blank - Request Form'!R232=\"0\",'Blank - Request Form'!R232=\"00000\",'Blank - Request Form'!R232=0),\"\",'Blank - Request Form'!R232),\"\"))","v":""},null,{"$f":"IF('Blank - Request Form'!$F$6=\"CICMP\",IF('Blank - Request Form'!K232=0,\"\",'Blank - Request Form'!K232),IF('Blank - Request Form'!$F$7=\"CICMP\",IF('Blank - Request Form'!T232=0,\"\",'Blank - Request Form'!T232),\"\"))","v":""},null,null,null,{"$f":"IF(M198<>\"\",'Blank - Request Form'!$M$2,\"\")","v":""},{"$f":"IF('Blank - Request Form'!$F$6=\"CICMP\",IF('Blank - Request Form'!J232=0,\"\",'Blank - Request Form'!J232),IF('Blank - Request Form'!$F$7=\"CICMP\",IF('Blank - Request Form'!S232=0,\"\",'Blank - Request Form'!S232),\"\"))","v":""},"",198]
[{"$f":"IF('Blank - Request Form'!$F$6=\"CICMP\",IF('Blank - Request Form'!D233=0,\"\",'Blank - Request Form'!D233),IF('Blank - Request Form'!$F$7=\"CICMP\",IF('Blank - Request Form'!M233=0,\"\",'Blank - Request Form'!M233),\"\"))","v":""},{"$f":"IF('Blank - Request Form'!$F$6=\"CICMP\",IF('Blank - Request Form'!E233=0,\"\",'Blank - Request Form'!E233),IF('Blank - Request Form'!$F$7=\"CICMP\",IF('Blank - Request Form'!N233=0,\"\",'Blank - Request Form'!N233),\"\"))","v":""},{"$f":"IF('Blank - Request Form'!$F$6=\"CICMP\",IF(OR('Blank - Request Form'!F233=\"000\",'Blank - Request Form'!F233=0),\"\",'Blank - Request Form'!F233),IF('Blank - Request Form'!$F$7=\"CICMP\",IF(OR('Blank - Request Form'!O233=\"000\",'Blank - Request Form'!O233=0),\"\",'Blank - Request Form'!O233),\"\"))","v":""},{"$f":"IF('Blank - Request Form'!$F$6=\"CICMP\",IF(OR('Blank - Request Form'!G233=\"0\",'Blank - Request Form'!G233=\"00000\",'Blank - Request Form'!G233=0),\"\",'Blank - Request Form'!G233),IF('Blank - Request Form'!$F$7=\"CICMP\",IF(OR('Blank - Request Form'!P233=\"0\",'Blank - Request Form'!P233=\"00000\",'Blank - Request Form'!P233=0),\"\",'Blank - Request Form'!P233),\"\"))","v":""},{"$f":"IF('Blank - Request Form'!$F$6=\"CICMP\",IF(OR('Blank - Request Form'!H233=\"0\",'Blank - Request Form'!H233=\"00000\",'Blank - Request Form'!H233=0),\"\",'Blank - Request Form'!H233),IF('Blank - Request Form'!$F$7=\"CICMP\",IF(OR('Blank - Request Form'!Q233=\"0\",'Blank - Request Form'!Q233=\"00000\",'Blank - Request Form'!Q233=0),\"\",'Blank - Request Form'!Q233),\"\"))","v":""},{"$f":"IF('Blank - Request Form'!$F$6=\"CICMP\",IF(OR('Blank - Request Form'!I233=\"0\",'Blank - Request Form'!I233=\"00000\",'Blank - Request Form'!I233=0),\"\",'Blank - Request Form'!I233),IF('Blank - Request Form'!$F$7=\"CICMP\",IF(OR('Blank - Request Form'!R233=\"0\",'Blank - Request Form'!R233=\"00000\",'Blank - Request Form'!R233=0),\"\",'Blank - Request Form'!R233),\"\"))","v":""},null,{"$f":"IF('Blank - Request Form'!$F$6=\"CICMP\",IF('Blank - Request Form'!K233=0,\"\",'Blank - Request Form'!K233),IF('Blank - Request Form'!$F$7=\"CICMP\",IF('Blank - Request Form'!T233=0,\"\",'Blank - Request Form'!T233),\"\"))","v":""},null,null,null,{"$f":"IF(M199<>\"\",'Blank - Request Form'!$M$2,\"\")","v":""},{"$f":"IF('Blank - Request Form'!$F$6=\"CICMP\",IF('Blank - Request Form'!J233=0,\"\",'Blank - Request Form'!J233),IF('Blank - Request Form'!$F$7=\"CICMP\",IF('Blank - Request Form'!S233=0,\"\",'Blank - Request Form'!S233),\"\"))","v":""},{"$f":"IF(M199<>\"\",O199,\"\")","v":""},199]
[{"$f":"IF('Blank - Request Form'!$F$6=\"CICMP\",IF('Blank - Request Form'!D234=0,\"\",'Blank - Request Form'!D234),IF('Blank - Request Form'!$F$7=\"CICMP\",IF('Blank - Request Form'!M234=0,\"\",'Blank - Request Form'!M234),\"\"))","v":""},{"$f":"IF('Blank - Request Form'!$F$6=\"CICMP\",IF('Blank - Request Form'!E234=0,\"\",'Blank - Request Form'!E234),IF('Blank - Request Form'!$F$7=\"CICMP\",IF('Blank - Request Form'!N234=0,\"\",'Blank - Request Form'!N234),\"\"))","v":""},{"$f":"IF('Blank - Request Form'!$F$6=\"CICMP\",IF(OR('Blank - Request Form'!F234=\"000\",'Blank - Request Form'!F234=0),\"\",'Blank - Request Form'!F234),IF('Blank - Request Form'!$F$7=\"CICMP\",IF(OR('Blank - Request Form'!O234=\"000\",'Blank - Request Form'!O234=0),\"\",'Blank - Request Form'!O234),\"\"))","v":""},{"$f":"IF('Blank - Request Form'!$F$6=\"CICMP\",IF(OR('Blank - Request Form'!G234=\"0\",'Blank - Request Form'!G234=\"00000\",'Blank - Request Form'!G234=0),\"\",'Blank - Request Form'!G234),IF('Blank - Request Form'!$F$7=\"CICMP\",IF(OR('Blank - Request Form'!P234=\"0\",'Blank - Request Form'!P234=\"00000\",'Blank - Request Form'!P234=0),\"\",'Blank - Request Form'!P234),\"\"))","v":""},{"$f":"IF('Blank - Request Form'!$F$6=\"CICMP\",IF(OR('Blank - Request Form'!H234=\"0\",'Blank - Request Form'!H234=\"00000\",'Blank - Request Form'!H234=0),\"\",'Blank - Request Form'!H234),IF('Blank - Request Form'!$F$7=\"CICMP\",IF(OR('Blank - Request Form'!Q234=\"0\",'Blank - Request Form'!Q234=\"00000\",'Blank - Request Form'!Q234=0),\"\",'Blank - Request Form'!Q234),\"\"))","v":""},{"$f":"IF('Blank - Request Form'!$F$6=\"CICMP\",IF(OR('Blank - Request Form'!I234=\"0\",'Blank - Request Form'!I234=\"00000\",'Blank - Request Form'!I234=0),\"\",'Blank - Request Form'!I234),IF('Blank - Request Form'!$F$7=\"CICMP\",IF(OR('Blank - Request Form'!R234=\"0\",'Blank - Request Form'!R234=\"00000\",'Blank - Request Form'!R234=0),\"\",'Blank - Request Form'!R234),\"\"))","v":""},null,{"$f":"IF('Blank - Request Form'!$F$6=\"CICMP\",IF('Blank - Request Form'!K234=0,\"\",'Blank - Request Form'!K234),IF('Blank - Request Form'!$F$7=\"CICMP\",IF('Blank - Request Form'!T234=0,\"\",'Blank - Request Form'!T234),\"\"))","v":""},null,null,null,{"$f":"IF(M200<>\"\",'Blank - Request Form'!$M$2,\"\")","v":""},{"$f":"IF('Blank - Request Form'!$F$6=\"CICMP\",IF('Blank - Request Form'!J234=0,\"\",'Blank - Request Form'!J234),IF('Blank - Request Form'!$F$7=\"CICMP\",IF('Blank - Request Form'!S234=0,\"\",'Blank - Request Form'!S234),\"\"))","v":""},"",200]
[{"$f":"IF('Blank - Request Form'!$F$6=\"CICMP\",IF('Blank - Request Form'!D235=0,\"\",'Blank - Request Form'!D235),IF('Blank - Request Form'!$F$7=\"CICMP\",IF('Blank - Request Form'!M235=0,\"\",'Blank - Request Form'!M235),\"\"))","v":""},{"$f":"IF('Blank - Request Form'!$F$6=\"CICMP\",IF('Blank - Request Form'!E235=0,\"\",'Blank - Request Form'!E235),IF('Blank - Request Form'!$F$7=\"CICMP\",IF('Blank - Request Form'!N235=0,\"\",'Blank - Request Form'!N235),\"\"))","v":""},{"$f":"IF('Blank - Request Form'!$F$6=\"CICMP\",IF(OR('Blank - Request Form'!F235=\"000\",'Blank - Request Form'!F235=0),\"\",'Blank - Request Form'!F235),IF('Blank - Request Form'!$F$7=\"CICMP\",IF(OR('Blank - Request Form'!O235=\"000\",'Blank - Request Form'!O235=0),\"\",'Blank - Request Form'!O235),\"\"))","v":""},{"$f":"IF('Blank - Request Form'!$F$6=\"CICMP\",IF(OR('Blank - Request Form'!G235=\"0\",'Blank - Request Form'!G235=\"00000\",'Blank - Request Form'!G235=0),\"\",'Blank - Request Form'!G235),IF('Blank - Request Form'!$F$7=\"CICMP\",IF(OR('Blank - Request Form'!P235=\"0\",'Blank - Request Form'!P235=\"00000\",'Blank - Request Form'!P235=0),\"\",'Blank - Request Form'!P235),\"\"))","v":""},{"$f":"IF('Blank - Request Form'!$F$6=\"CICMP\",IF(OR('Blank - Request Form'!H235=\"0\",'Blank - Request Form'!H235=\"00000\",'Blank - Request Form'!H235=0),\"\",'Blank - Request Form'!H235),IF('Blank - Request Form'!$F$7=\"CICMP\",IF(OR('Blank - Request Form'!Q235=\"0\",'Blank - Request Form'!Q235=\"00000\",'Blank - Request Form'!Q235=0),\"\",'Blank - Request Form'!Q235),\"\"))","v":""},{"$f":"IF('Blank - Request Form'!$F$6=\"CICMP\",IF(OR('Blank - Request Form'!I235=\"0\",'Blank - Request Form'!I235=\"00000\",'Blank - Request Form'!I235=0),\"\",'Blank - Request Form'!I235),IF('Blank - Request Form'!$F$7=\"CICMP\",IF(OR('Blank - Request Form'!R235=\"0\",'Blank - Request Form'!R235=\"00000\",'Blank - Request Form'!R235=0),\"\",'Blank - Request Form'!R235),\"\"))","v":""},null,{"$f":"IF('Blank - Request Form'!$F$6=\"CICMP\",IF('Blank - Request Form'!K235=0,\"\",'Blank - Request Form'!K235),IF('Blank - Request Form'!$F$7=\"CICMP\",IF('Blank - Request Form'!T235=0,\"\",'Blank - Request Form'!T235),\"\"))","v":""},null,null,null,{"$f":"IF(M201<>\"\",'Blank - Request Form'!$M$2,\"\")","v":""},{"$f":"IF('Blank - Request Form'!$F$6=\"CICMP\",IF('Blank - Request Form'!J235=0,\"\",'Blank - Request Form'!J235),IF('Blank - Request Form'!$F$7=\"CICMP\",IF('Blank - Request Form'!S235=0,\"\",'Blank - Request Form'!S235),\"\"))","v":""},"",201]

{"sheet":"CICSA","index":3,"n_rows":201,"n_cols":16,"rows_kept":201,"cut":false,"hidden":true,"merged":[]}
[{"$f":"IF('Blank - Request Form'!$F$6=\"CICSA\",IF('Blank - Request Form'!D35=0,\"\",'Blank - Request Form'!D35),IF('Blank - Request Form'!$F$7=\"CICSA\",IF('Blank - Request Form'!M35=0,\"\",'Blank - Request Form'!M35),\"\"))","v":""},{"$f":"IF('Blank - Request Form'!$F$6=\"CICSA\",IF('Blank - Request Form'!E35=0,\"\",'Blank - Request Form'!E35),IF('Blank - Request Form'!$F$7=\"CICSA\",IF('Blank - Request Form'!N35=0,\"\",'Blank - Request Form'!N35),\"\"))","v":""},{"$f":"IF('Blank - Request Form'!$F$6=\"CICSA\",IF(OR('Blank - Request Form'!F35=\"000\",'Blank - Request Form'!F35=0),\"\",'Blank - Request Form'!F35),IF('Blank - Request Form'!$F$7=\"CICSA\",IF(OR('Blank - Request Form'!O35=\"000\",'Blank - Request Form'!O35=0),\"\",'Blank - Request Form'!O35),\"\"))","v":""},{"$f":"IF('Blank - Request Form'!$F$6=\"CICSA\",IF(OR('Blank - Request Form'!G35=\"0\",'Blank - Request Form'!G35=\"00000\",'Blank - Request Form'!G35=0),\"\",'Blank - Request Form'!G35),IF('Blank - Request Form'!$F$7=\"CICSA\",IF(OR('Blank - Request Form'!P35=\"0\",'Blank - Request Form'!P35=\"00000\",'Blank - Request Form'!P35=0),\"\",'Blank - Request Form'!P35),\"\"))","v":""},{"$f":"IF('Blank - Request Form'!$F$6=\"CICSA\",IF(OR('Blank - Request Form'!H35=\"0\",'Blank - Request Form'!H35=\"00000\",'Blank - Request Form'!H35=0),\"\",'Blank - Request Form'!H35),IF('Blank - Request Form'!$F$7=\"CICSA\",IF(OR('Blank - Request Form'!Q35=\"0\",'Blank - Request Form'!Q35=\"00000\",'Blank - Request Form'!Q35=0),\"\",'Blank - Request Form'!Q35),\"\"))","v":""},{"$f":"IF('Blank - Request Form'!$F$6=\"CICSA\",IF(OR('Blank - Request Form'!I35=\"0\",'Blank - Request Form'!I35=\"00000\",'Blank - Request Form'!I35=0),\"\",'Blank - Request Form'!I35),IF('Blank - Request Form'!$F$7=\"CICSA\",IF(OR('Blank - Request Form'!R35=\"0\",'Blank - Request Form'!R35=\"00000\",'Blank - Request Form'!R35=0),\"\",'Blank - Request Form'!R35),\"\"))","v":""},null,{"$f":"IF('Blank - Request Form'!$F$6=\"CICSA\",IF('Blank - Request Form'!K35=0,\"\",'Blank - Request Form'!K35),IF('Blank - Request Form'!$F$7=\"CICSA\",IF('Blank - Request Form'!T35=0,\"\",'Blank - Request Form'!T35),\"\"))","v":""},null,null,null,{"$f":"IF(M1<>\"\",'Blank - Request Form'!$M$2,\"\")","v":""},{"$f":"IF('Blank - Request Form'!$F$6=\"CICSA\",IF('Blank - Request Form'!J35=0,\"\",'Blank - Request Form'!J35),IF('Blank - Request Form'!$F$7=\"CICSA\",IF('Blank - Request Form'!S35=0,\"\",'Blank - Request Form'!S35),\"\"))","v":""},{"$f":"IF(M1<>\"\",O1,\"\")","v":""},1,"CICSA"]
[{"$f":"IF('Blank - Request Form'!$F$6=\"CICSA\",IF('Blank - Request Form'!D36=0,\"\",'Blank - Request Form'!D36),IF('Blank - Request Form'!$F$7=\"CICSA\",IF('Blank - Request Form'!M36=0,\"\",'Blank - Request Form'!M36),\"\"))","v":""},{"$f":"IF('Blank - Request Form'!$F$6=\"CICSA\",IF('Blank - Request Form'!E36=0,\"\",'Blank - Request Form'!E36),IF('Blank - Request Form'!$F$7=\"CICSA\",IF('Blank - Request Form'!N36=0,\"\",'Blank - Request Form'!N36),\"\"))","v":""},{"$f":"IF('Blank - Request Form'!$F$6=\"CICSA\",IF(OR('Blank - Request Form'!F36=\"000\",'Blank - Request Form'!F36=0),\"\",'Blank - Request Form'!F36),IF('Blank - Request Form'!$F$7=\"CICSA\",IF(OR('Blank - Request Form'!O36=\"000\",'Blank - Request Form'!O36=0),\"\",'Blank - Request Form'!O36),\"\"))","v":""},{"$f":"IF('Blank - Request Form'!$F$6=\"CICSA\",IF(OR('Blank - Request Form'!G36=\"0\",'Blank - Request Form'!G36=\"00000\",'Blank - Request Form'!G36=0),\"\",'Blank - Request Form'!G36),IF('Blank - Request Form'!$F$7=\"CICSA\",IF(OR('Blank - Request Form'!P36=\"0\",'Blank - Request Form'!P36=\"00000\",'Blank - Request Form'!P36=0),\"\",'Blank - Request Form'!P36),\"\"))","v":""},{"$f":"IF('Blank - Request Form'!$F$6=\"CICSA\",IF(OR('Blank - Request Form'!H36=\"0\",'Blank - Request Form'!H36=\"00000\",'Blank - Request Form'!H36=0),\"\",'Blank - Request Form'!H36),IF('Blank - Request Form'!$F$7=\"CICSA\",IF(OR('Blank - Request Form'!Q36=\"0\",'Blank - Request Form'!Q36=\"00000\",'Blank - Request Form'!Q36=0),\"\",'Blank - Request Form'!Q36),\"\"))","v":""},{"$f":"IF('Blank - Request Form'!$F$6=\"CICSA\",IF(OR('Blank - Request Form'!I36=\"0\",'Blank - Request Form'!I36=\"00000\",'Blank - Request Form'!I36=0),\"\",'Blank - Request Form'!I36),IF('Blank - Request Form'!$F$7=\"CICSA\",IF(OR('Blank - Request Form'!R36=\"0\",'Blank - Request Form'!R36=\"00000\",'Blank - Request Form'!R36=0),\"\",'Blank - Request Form'!R36),\"\"))","v":""},null,{"$f":"IF('Blank - Request Form'!$F$6=\"CICSA\",IF('Blank - Request Form'!K36=0,\"\",'Blank - Request Form'!K36),IF('Blank - Request Form'!$F$7=\"CICSA\",IF('Blank - Request Form'!T36=0,\"\",'Blank - Request Form'!T36),\"\"))","v":""},null,null,null,{"$f":"IF(M2<>\"\",'Blank - Request Form'!$M$2,\"\")","v":""},{"$f":"IF('Blank - Request Form'!$F$6=\"CICSA\",IF('Blank - Request Form'!J36=0,\"\",'Blank - Request Form'!J36),IF('Blank - Request Form'!$F$7=\"CICSA\",IF('Blank - Request Form'!S36=0,\"\",'Blank - Request Form'!S36),\"\"))","v":""},{"$f":"IF(M2<>\"\",O2,\"\")","v":""},2,{"$f":"LogNumber","v":0}]
[{"$f":"IF('Blank - Request Form'!$F$6=\"CICSA\",IF('Blank - Request Form'!D37=0,\"\",'Blank - Request Form'!D37),IF('Blank - Request Form'!$F$7=\"CICSA\",IF('Blank - Request Form'!M37=0,\"\",'Blank - Request Form'!M37),\"\"))","v":""},{"$f":"IF('Blank - Request Form'!$F$6=\"CICSA\",IF('Blank - Request Form'!E37=0,\"\",'Blank - Request Form'!E37),IF('Blank - Request Form'!$F$7=\"CICSA\",IF('Blank - Request Form'!N37=0,\"\",'Blank - Request Form'!N37),\"\"))","v":""},{"$f":"IF('Blank - Request Form'!$F$6=\"CICSA\",IF(OR('Blank - Request Form'!F37=\"000\",'Blank - Request Form'!F37=0),\"\",'Blank - Request Form'!F37),IF('Blank - Request Form'!$F$7=\"CICSA\",IF(OR('Blank - Request Form'!O37=\"000\",'Blank - Request Form'!O37=0),\"\",'Blank - Request Form'!O37),\"\"))","v":""},{"$f":"IF('Blank - Request Form'!$F$6=\"CICSA\",IF(OR('Blank - Request Form'!G37=\"0\",'Blank - Request Form'!G37=\"00000\",'Blank - Request Form'!G37=0),\"\",'Blank - Request Form'!G37),IF('Blank - Request Form'!$F$7=\"CICSA\",IF(OR('Blank - Request Form'!P37=\"0\",'Blank - Request Form'!P37=\"00000\",'Blank - Request Form'!P37=0),\"\",'Blank - Request Form'!P37),\"\"))","v":""},{"$f":"IF('Blank - Request Form'!$F$6=\"CICSA\",IF(OR('Blank - Request Form'!H37=\"0\",'Blank - Request Form'!H37=\"00000\",'Blank - Request Form'!H37=0),\"\",'Blank - Request Form'!H37),IF('Blank - Request Form'!$F$7=\"CICSA\",IF(OR('Blank - Request Form'!Q37=\"0\",'Blank - Request Form'!Q37=\"00000\",'Blank - Request Form'!Q37=0),\"\",'Blank - Request Form'!Q37),\"\"))","v":""},{"$f":"IF('Blank - Request Form'!$F$6=\"CICSA\",IF(OR('Blank - Request Form'!I37=\"0\",'Blank - Request Form'!I37=\"00000\",'Blank - Request Form'!I37=0),\"\",'Blank - Request Form'!I37),IF('Blank - Request Form'!$F$7=\"CICSA\",IF(OR('Blank - Request Form'!R37=\"0\",'Blank - Request Form'!R37=\"00000\",'Blank - Request Form'!R37=0),\"\",'Blank - Request Form'!R37),\"\"))","v":""},null,{"$f":"IF('Blank - Request Form'!$F$6=\"CICSA\",IF('Blank - Request Form'!K37=0,\"\",'Blank - Request Form'!K37),IF('Blank - Request Form'!$F$7=\"CICSA\",IF('Blank - Request Form'!T37=0,\"\",'Blank - Request Form'!T37),\"\"))","v":""},null,null,null,{"$f":"IF(M3<>\"\",'Blank - Request Form'!$M$2,\"\")","v":""},{"$f":"IF('Blank - Request Form'!$F$6=\"CICSA\",IF('Blank - Request Form'!J37=0,\"\",'Blank - Request Form'!J37),IF('Blank - Request Form'!$F$7=\"CICSA\",IF('Blank - Request Form'!S37=0,\"\",'Blank - Request Form'!S37),\"\"))","v":""},"",3]
[{"$f":"IF('Blank - Request Form'!$F$6=\"CICSA\",IF('Blank - Request Form'!D38=0,\"\",'Blank - Request Form'!D38),IF('Blank - Request Form'!$F$7=\"CICSA\",IF('Blank - Request Form'!M38=0,\"\",'Blank - Request Form'!M38),\"\"))","v":""},{"$f":"IF('Blank - Request Form'!$F$6=\"CICSA\",IF('Blank - Request Form'!E38=0,\"\",'Blank - Request Form'!E38),IF('Blank - Request Form'!$F$7=\"CICSA\",IF('Blank - Request Form'!N38=0,\"\",'Blank - Request Form'!N38),\"\"))","v":""},{"$f":"IF('Blank - Request Form'!$F$6=\"CICSA\",IF(OR('Blank - Request Form'!F38=\"000\",'Blank - Request Form'!F38=0),\"\",'Blank - Request Form'!F38),IF('Blank - Request Form'!$F$7=\"CICSA\",IF(OR('Blank - Request Form'!O38=\"000\",'Blank - Request Form'!O38=0),\"\",'Blank - Request Form'!O38),\"\"))","v":""},{"$f":"IF('Blank - Request Form'!$F$6=\"CICSA\",IF(OR('Blank - Request Form'!G38=\"0\",'Blank - Request Form'!G38=\"00000\",'Blank - Request Form'!G38=0),\"\",'Blank - Request Form'!G38),IF('Blank - Request Form'!$F$7=\"CICSA\",IF(OR('Blank - Request Form'!P38=\"0\",'Blank - Request Form'!P38=\"00000\",'Blank - Request Form'!P38=0),\"\",'Blank - Request Form'!P38),\"\"))","v":""},{"$f":"IF('Blank - Request Form'!$F$6=\"CICSA\",IF(OR('Blank - Request Form'!H38=\"0\",'Blank - Request Form'!H38=\"00000\",'Blank - Request Form'!H38=0),\"\",'Blank - Request Form'!H38),IF('Blank - Request Form'!$F$7=\"CICSA\",IF(OR('Blank - Request Form'!Q38=\"0\",'Blank - Request Form'!Q38=\"00000\",'Blank - Request Form'!Q38=0),\"\",'Blank - Request Form'!Q38),\"\"))","v":""},{"$f":"IF('Blank - Request Form'!$F$6=\"CICSA\",IF(OR('Blank - Request Form'!I38=\"0\",'Blank - Request Form'!I38=\"00000\",'Blank - Request Form'!I38=0),\"\",'Blank - Request Form'!I38),IF('Blank - Request Form'!$F$7=\"CICSA\",IF(OR('Blank - Request Form'!R38=\"0\",'Blank - Request Form'!R38=\"00000\",'Blank - Request Form'!R38=0),\"\",'Blank - Request Form'!R38),\"\"))","v":""},null,{"$f":"IF('Blank - Request Form'!$F$6=\"CICSA\",IF('Blank - Request Form'!K38=0,\"\",'Blank - Request Form'!K38),IF('Blank - Request Form'!$F$7=\"CICSA\",IF('Blank - Request Form'!T38=0,\"\",'Blank - Request Form'!T38),\"\"))","v":""},null,null,null,{"$f":"IF(M4<>\"\",'Blank - Request Form'!$M$2,\"\")","v":""},{"$f":"IF('Blank - Request Form'!$F$6=\"CICSA\",IF('Blank - Request Form'!J38=0,\"\",'Blank - Request Form'!J38),IF('Blank - Request Form'!$F$7=\"CICSA\",IF('Blank - Request Form'!S38=0,\"\",'Blank - Request Form'!S38),\"\"))","v":""},"",4]
[{"$f":"IF('Blank - Request Form'!$F$6=\"CICSA\",IF('Blank - Request Form'!D39=0,\"\",'Blank - Request Form'!D39),IF('Blank - Request Form'!$F$7=\"CICSA\",IF('Blank - Request Form'!M39=0,\"\",'Blank - Request Form'!M39),\"\"))","v":""},{"$f":"IF('Blank - Request Form'!$F$6=\"CICSA\",IF('Blank - Request Form'!E39=0,\"\",'Blank - Request Form'!E39),IF('Blank - Request Form'!$F$7=\"CICSA\",IF('Blank - Request Form'!N39=0,\"\",'Blank - Request Form'!N39),\"\"))","v":""},{"$f":"IF('Blank - Request Form'!$F$6=\"CICSA\",IF(OR('Blank - Request Form'!F39=\"000\",'Blank - Request Form'!F39=0),\"\",'Blank - Request Form'!F39),IF('Blank - Request Form'!$F$7=\"CICSA\",IF(OR('Blank - Request Form'!O39=\"000\",'Blank - Request Form'!O39=0),\"\",'Blank - Request Form'!O39),\"\"))","v":""},{"$f":"IF('Blank - Request Form'!$F$6=\"CICSA\",IF(OR('Blank - Request Form'!G39=\"0\",'Blank - Request Form'!G39=\"00000\",'Blank - Request Form'!G39=0),\"\",'Blank - Request Form'!G39),IF('Blank - Request Form'!$F$7=\"CICSA\",IF(OR('Blank - Request Form'!P39=\"0\",'Blank - Request Form'!P39=\"00000\",'Blank - Request Form'!P39=0),\"\",'Blank - Request Form'!P39),\"\"))","v":""},{"$f":"IF('Blank - Request Form'!$F$6=\"CICSA\",IF(OR('Blank - Request Form'!H39=\"0\",'Blank - Request Form'!H39=\"00000\",'Blank - Request Form'!H39=0),\"\",'Blank - Request Form'!H39),IF('Blank - Request Form'!$F$7=\"CICSA\",IF(OR('Blank - Request Form'!Q39=\"0\",'Blank - Request Form'!Q39=\"00000\",'Blank - Request Form'!Q39=0),\"\",'Blank - Request Form'!Q39),\"\"))","v":""},{"$f":"IF('Blank - Request Form'!$F$6=\"CICSA\",IF(OR('Blank - Request Form'!I39=\"0\",'Blank - Request Form'!I39=\"00000\",'Blank - Request Form'!I39=0),\"\",'Blank - Request Form'!I39),IF('Blank - Request Form'!$F$7=\"CICSA\",IF(OR('Blank - Request Form'!R39=\"0\",'Blank - Request Form'!R39=\"00000\",'Blank - Request Form'!R39=0),\"\",'Blank - Request Form'!R39),\"\"))","v":""},null,{"$f":"IF('Blank - Request Form'!$F$6=\"CICSA\",IF('Blank - Request Form'!K39=0,\"\",'Blank - Request Form'!K39),IF('Blank - Request Form'!$F$7=\"CICSA\",IF('Blank - Request Form'!T39=0,\"\",'Blank - Request Form'!T39),\"\"))","v":""},null,null,null,{"$f":"IF(M5<>\"\",'Blank - Request Form'!$M$2,\"\")","v":""},{"$f":"IF('Blank - Request Form'!$F$6=\"CICSA\",IF('Blank - Request Form'!J39=0,\"\",'Blank - Request Form'!J39),IF('Blank - Request Form'!$F$7=\"CICSA\",IF('Blank - Request Form'!S39=0,\"\",'Blank - Request Form'!S39),\"\"))","v":""},"",5]
[{"$f":"IF('Blank - Request Form'!$F$6=\"CICSA\",IF('Blank - Request Form'!D40=0,\"\",'Blank - Request Form'!D40),IF('Blank - Request Form'!$F$7=\"CICSA\",IF('Blank - Request Form'!M40=0,\"\",'Blank - Request Form'!M40),\"\"))","v":""},{"$f":"IF('Blank - Request Form'!$F$6=\"CICSA\",IF('Blank - Request Form'!E40=0,\"\",'Blank - Request Form'!E40),IF('Blank - Request Form'!$F$7=\"CICSA\",IF('Blank - Request Form'!N40=0,\"\",'Blank - Request Form'!N40),\"\"))","v":""},{"$f":"IF('Blank - Request Form'!$F$6=\"CICSA\",IF(OR('Blank - Request Form'!F40=\"000\",'Blank - Request Form'!F40=0),\"\",'Blank - Request Form'!F40),IF('Blank - Request Form'!$F$7=\"CICSA\",IF(OR('Blank - Request Form'!O40=\"000\",'Blank - Request Form'!O40=0),\"\",'Blank - Request Form'!O40),\"\"))","v":""},{"$f":"IF('Blank - Request Form'!$F$6=\"CICSA\",IF(OR('Blank - Request Form'!G40=\"0\",'Blank - Request Form'!G40=\"00000\",'Blank - Request Form'!G40=0),\"\",'Blank - Request Form'!G40),IF('Blank - Request Form'!$F$7=\"CICSA\",IF(OR('Blank - Request Form'!P40=\"0\",'Blank - Request Form'!P40=\"00000\",'Blank - Request Form'!P40=0),\"\",'Blank - Request Form'!P40),\"\"))","v":""},{"$f":"IF('Blank - Request Form'!$F$6=\"CICSA\",IF(OR('Blank - Request Form'!H40=\"0\",'Blank - Request Form'!H40=\"00000\",'Blank - Request Form'!H40=0),\"\",'Blank - Request Form'!H40),IF('Blank - Request Form'!$F$7=\"CICSA\",IF(OR('Blank - Request Form'!Q40=\"0\",'Blank - Request Form'!Q40=\"00000\",'Blank - Request Form'!Q40=0),\"\",'Blank - Request Form'!Q40),\"\"))","v":""},{"$f":"IF('Blank - Request Form'!$F$6=\"CICSA\",IF(OR('Blank - Request Form'!I40=\"0\",'Blank - Request Form'!I40=\"00000\",'Blank - Request Form'!I40=0),\"\",'Blank - Request Form'!I40),IF('Blank - Request Form'!$F$7=\"CICSA\",IF(OR('Blank - Request Form'!R40=\"0\",'Blank - Request Form'!R40=\"00000\",'Blank - Request Form'!R40=0),\"\",'Blank - Request Form'!R40),\"\"))","v":""},null,{"$f":"IF('Blank - Request Form'!$F$6=\"CICSA\",IF('Blank - Request Form'!K40=0,\"\",'Blank - Request Form'!K40),IF('Blank - Request Form'!$F$7=\"CICSA\",IF('Blank - Request Form'!T40=0,\"\",'Blank - Request Form'!T40),\"\"))","v":""},null,null,null,{"$f":"IF(M6<>\"\",'Blank - Request Form'!$M$2,\"\")","v":""},{"$f":"IF('Blank - Request Form'!$F$6=\"CICSA\",IF('Blank - Request Form'!J40=0,\"\",'Blank - Request Form'!J40),IF('Blank - Request Form'!$F$7=\"CICSA\",IF('Blank - Request Form'!S40=0,\"\",'Blank - Request Form'!S40),\"\"))","v":""},"",6]
[{"$f":"IF('Blank - Request Form'!$F$6=\"CICSA\",IF('Blank - Request Form'!D41=0,\"\",'Blank - Request Form'!D41),IF('Blank - Request Form'!$F$7=\"CICSA\",IF('Blank - Request Form'!M41=0,\"\",'Blank - Request Form'!M41),\"\"))","v":""},{"$f":"IF('Blank - Request Form'!$F$6=\"CICSA\",IF('Blank - Request Form'!E41=0,\"\",'Blank - Request Form'!E41),IF('Blank - Request Form'!$F$7=\"CICSA\",IF('Blank - Request Form'!N41=0,\"\",'Blank - Request Form'!N41),\"\"))","v":""},{"$f":"IF('Blank - Request Form'!$F$6=\"CICSA\",IF(OR('Blank - Request Form'!F41=\"000\",'Blank - Request Form'!F41=0),\"\",'Blank - Request Form'!F41),IF('Blank - Request Form'!$F$7=\"CICSA\",IF(OR('Blank - Request Form'!O41=\"000\",'Blank - Request Form'!O41=0),\"\",'Blank - Request Form'!O41),\"\"))","v":""},{"$f":"IF('Blank - Request Form'!$F$6=\"CICSA\",IF(OR('Blank - Request Form'!G41=\"0\",'Blank - Request Form'!G41=\"00000\",'Blank - Request Form'!G41=0),\"\",'Blank - Request Form'!G41),IF('Blank - Request Form'!$F$7=\"CICSA\",IF(OR('Blank - Request Form'!P41=\"0\",'Blank - Request Form'!P41=\"00000\",'Blank - Request Form'!P41=0),\"\",'Blank - Request Form'!P41),\"\"))","v":""},{"$f":"IF('Blank - Request Form'!$F$6=\"CICSA\",IF(OR('Blank - Request Form'!H41=\"0\",'Blank - Request Form'!H41=\"00000\",'Blank - Request Form'!H41=0),\"\",'Blank - Request Form'!H41),IF('Blank - Request Form'!$F$7=\"CICSA\",IF(OR('Blank - Request Form'!Q41=\"0\",'Blank - Request Form'!Q41=\"00000\",'Blank - Request Form'!Q41=0),\"\",'Blank - Request Form'!Q41),\"\"))","v":""},{"$f":"IF('Blank - Request Form'!$F$6=\"CICSA\",IF(OR('Blank - Request Form'!I41=\"0\",'Blank - Request Form'!I41=\"00000\",'Blank - Request Form'!I41=0),\"\",'Blank - Request Form'!I41),IF('Blank - Request Form'!$F$7=\"CICSA\",IF(OR('Blank - Request Form'!R41=\"0\",'Blank - Request Form'!R41=\"00000\",'Blank - Request Form'!R41=0),\"\",'Blank - Request Form'!R41),\"\"))","v":""},null,{"$f":"IF('Blank - Request Form'!$F$6=\"CICSA\",IF('Blank - Request Form'!K41=0,\"\",'Blank - Request Form'!K41),IF('Blank - Request Form'!$F$7=\"CICSA\",IF('Blank - Request Form'!T41=0,\"\",'Blank - Request Form'!T41),\"\"))","v":""},null,null,null,{"$f":"IF(M7<>\"\",'Blank - Request Form'!$M$2,\"\")","v":""},{"$f":"IF('Blank - Request Form'!$F$6=\"CICSA\",IF('Blank - Request Form'!J41=0,\"\",'Blank - Request Form'!J41),IF('Blank - Request Form'!$F$7=\"CICSA\",IF('Blank - Request Form'!S41=0,\"\",'Blank - Request Form'!S41),\"\"))","v":""},"",7]
[{"$f":"IF('Blank - Request Form'!$F$6=\"CICSA\",IF('Blank - Request Form'!D42=0,\"\",'Blank - Request Form'!D42),IF('Blank - Request Form'!$F$7=\"CICSA\",IF('Blank - Request Form'!M42=0,\"\",'Blank - Request Form'!M42),\"\"))","v":""},{"$f":"IF('Blank - Request Form'!$F$6=\"CICSA\",IF('Blank - Request Form'!E42=0,\"\",'Blank - Request Form'!E42),IF('Blank - Request Form'!$F$7=\"CICSA\",IF('Blank - Request Form'!N42=0,\"\",'Blank - Request Form'!N42),\"\"))","v":""},{"$f":"IF('Blank - Request Form'!$F$6=\"CICSA\",IF(OR('Blank - Request Form'!F42=\"000\",'Blank - Request Form'!F42=0),\"\",'Blank - Request Form'!F42),IF('Blank - Request Form'!$F$7=\"CICSA\",IF(OR('Blank - Request Form'!O42=\"000\",'Blank - Request Form'!O42=0),\"\",'Blank - Request Form'!O42),\"\"))","v":""},{"$f":"IF('Blank - Request Form'!$F$6=\"CICSA\",IF(OR('Blank - Request Form'!G42=\"0\",'Blank - Request Form'!G42=\"00000\",'Blank - Request Form'!G42=0),\"\",'Blank - Request Form'!G42),IF('Blank - Request Form'!$F$7=\"CICSA\",IF(OR('Blank - Request Form'!P42=\"0\",'Blank - Request Form'!P42=\"00000\",'Blank - Request Form'!P42=0),\"\",'Blank - Request Form'!P42),\"\"))","v":""},{"$f":"IF('Blank - Request Form'!$F$6=\"CICSA\",IF(OR('Blank - Request Form'!H42=\"0\",'Blank - Request Form'!H42=\"00000\",'Blank - Request Form'!H42=0),\"\",'Blank - Request Form'!H42),IF('Blank - Request Form'!$F$7=\"CICSA\",IF(OR('Blank - Request Form'!Q42=\"0\",'Blank - Request Form'!Q42=\"00000\",'Blank - Request Form'!Q42=0),\"\",'Blank - Request Form'!Q42),\"\"))","v":""},{"$f":"IF('Blank - Request Form'!$F$6=\"CICSA\",IF(OR('Blank - Request Form'!I42=\"0\",'Blank - Request Form'!I42=\"00000\",'Blank - Request Form'!I42=0),\"\",'Blank - Request Form'!I42),IF('Blank - Request Form'!$F$7=\"CICSA\",IF(OR('Blank - Request Form'!R42=\"0\",'Blank - Request Form'!R42=\"00000\",'Blank - Request Form'!R42=0),\"\",'Blank - Request Form'!R42),\"\"))","v":""},null,{"$f":"IF('Blank - Request Form'!$F$6=\"CICSA\",IF('Blank - Request Form'!K42=0,\"\",'Blank - Request Form'!K42),IF('Blank - Request Form'!$F$7=\"CICSA\",IF('Blank - Request Form'!T42=0,\"\",'Blank - Request Form'!T42),\"\"))","v":""},null,null,null,{"$f":"IF(M8<>\"\",'Blank - Request Form'!$M$2,\"\")","v":""},{"$f":"IF('Blank - Request Form'!$F$6=\"CICSA\",IF('Blank - Request Form'!J42=0,\"\",'Blank - Request Form'!J42),IF('Blank - Request Form'!$F$7=\"CICSA\",IF('Blank - Request Form'!S42=0,\"\",'Blank - Request Form'!S42),\"\"))","v":""},"",8]
[{"$f":"IF('Blank - Request Form'!$F$6=\"CICSA\",IF('Blank - Request Form'!D43=0,\"\",'Blank - Request Form'!D43),IF('Blank - Request Form'!$F$7=\"CICSA\",IF('Blank - Request Form'!M43=0,\"\",'Blank - Request Form'!M43),\"\"))","v":""},{"$f":"IF('Blank - Request Form'!$F$6=\"CICSA\",IF('Blank - Request Form'!E43=0,\"\",'Blank - Request Form'!E43),IF('Blank - Request Form'!$F$7=\"CICSA\",IF('Blank - Request Form'!N43=0,\"\",'Blank - Request Form'!N43),\"\"))","v":""},{"$f":"IF('Blank - Request Form'!$F$6=\"CICSA\",IF(OR('Blank - Request Form'!F43=\"000\",'Blank - Request Form'!F43=0),\"\",'Blank - Request Form'!F43),IF('Blank - Request Form'!$F$7=\"CICSA\",IF(OR('Blank - Request Form'!O43=\"000\",'Blank - Request Form'!O43=0),\"\",'Blank - Request Form'!O43),\"\"))","v":""},{"$f":"IF('Blank - Request Form'!$F$6=\"CICSA\",IF(OR('Blank - Request Form'!G43=\"0\",'Blank - Request Form'!G43=\"00000\",'Blank - Request Form'!G43=0),\"\",'Blank - Request Form'!G43),IF('Blank - Request Form'!$F$7=\"CICSA\",IF(OR('Blank - Request Form'!P43=\"0\",'Blank - Request Form'!P43=\"00000\",'Blank - Request Form'!P43=0),\"\",'Blank - Request Form'!P43),\"\"))","v":""},{"$f":"IF('Blank - Request Form'!$F$6=\"CICSA\",IF(OR('Blank - Request Form'!H43=\"0\",'Blank - Request Form'!H43=\"00000\",'Blank - Request Form'!H43=0),\"\",'Blank - Request Form'!H43),IF('Blank - Request Form'!$F$7=\"CICSA\",IF(OR('Blank - Request Form'!Q43=\"0\",'Blank - Request Form'!Q43=\"00000\",'Blank - Request Form'!Q43=0),\"\",'Blank - Request Form'!Q43),\"\"))","v":""},{"$f":"IF('Blank - Request Form'!$F$6=\"CICSA\",IF(OR('Blank - Request Form'!I43=\"0\",'Blank - Request Form'!I43=\"00000\",'Blank - Request Form'!I43=0),\"\",'Blank - Request Form'!I43),IF('Blank - Request Form'!$F$7=\"CICSA\",IF(OR('Blank - Request Form'!R43=\"0\",'Blank - Request Form'!R43=\"00000\",'Blank - Request Form'!R43=0),\"\",'Blank - Request Form'!R43),\"\"))","v":""},null,{"$f":"IF('Blank - Request Form'!$F$6=\"CICSA\",IF('Blank - Request Form'!K43=0,\"\",'Blank - Request Form'!K43),IF('Blank - Request Form'!$F$7=\"CICSA\",IF('Blank - Request Form'!T43=0,\"\",'Blank - Request Form'!T43),\"\"))","v":""},null,null,null,{"$f":"IF(M9<>\"\",'Blank - Request Form'!$M$2,\"\")","v":""},{"$f":"IF('Blank - Request Form'!$F$6=\"CICSA\",IF('Blank - Request Form'!J43=0,\"\",'Blank - Request Form'!J43),IF('Blank - Request Form'!$F$7=\"CICSA\",IF('Blank - Request Form'!S43=0,\"\",'Blank - Request Form'!S43),\"\"))","v":""},"",9]
[{"$f":"IF('Blank - Request Form'!$F$6=\"CICSA\",IF('Blank - Request Form'!D44=0,\"\",'Blank - Request Form'!D44),IF('Blank - Request Form'!$F$7=\"CICSA\",IF('Blank - Request Form'!M44=0,\"\",'Blank - Request Form'!M44),\"\"))","v":""},{"$f":"IF('Blank - Request Form'!$F$6=\"CICSA\",IF('Blank - Request Form'!E44=0,\"\",'Blank - Request Form'!E44),IF('Blank - Request Form'!$F$7=\"CICSA\",IF('Blank - Request Form'!N44=0,\"\",'Blank - Request Form'!N44),\"\"))","v":""},{"$f":"IF('Blank - Request Form'!$F$6=\"CICSA\",IF(OR('Blank - Request Form'!F44=\"000\",'Blank - Request Form'!F44=0),\"\",'Blank - Request Form'!F44),IF('Blank - Request Form'!$F$7=\"CICSA\",IF(OR('Blank - Request Form'!O44=\"000\",'Blank - Request Form'!O44=0),\"\",'Blank - Request Form'!O44),\"\"))","v":""},{"$f":"IF('Blank - Request Form'!$F$6=\"CICSA\",IF(OR('Blank - Request Form'!G44=\"0\",'Blank - Request Form'!G44=\"00000\",'Blank - Request Form'!G44=0),\"\",'Blank - Request Form'!G44),IF('Blank - Request Form'!$F$7=\"CICSA\",IF(OR('Blank - Request Form'!P44=\"0\",'Blank - Request Form'!P44=\"00000\",'Blank - Request Form'!P44=0),\"\",'Blank - Request Form'!P44),\"\"))","v":""},{"$f":"IF('Blank - Request Form'!$F$6=\"CICSA\",IF(OR('Blank - Request Form'!H44=\"0\",'Blank - Request Form'!H44=\"00000\",'Blank - Request Form'!H44=0),\"\",'Blank - Request Form'!H44),IF('Blank - Request Form'!$F$7=\"CICSA\",IF(OR('Blank - Request Form'!Q44=\"0\",'Blank - Request Form'!Q44=\"00000\",'Blank - Request Form'!Q44=0),\"\",'Blank - Request Form'!Q44),\"\"))","v":""},{"$f":"IF('Blank - Request Form'!$F$6=\"CICSA\",IF(OR('Blank - Request Form'!I44=\"0\",'Blank - Request Form'!I44=\"00000\",'Blank - Request Form'!I44=0),\"\",'Blank - Request Form'!I44),IF('Blank - Request Form'!$F$7=\"CICSA\",IF(OR('Blank - Request Form'!R44=\"0\",'Blank - Request Form'!R44=\"00000\",'Blank - Request Form'!R44=0),\"\",'Blank - Request Form'!R44),\"\"))","v":""},null,{"$f":"IF('Blank - Request Form'!$F$6=\"CICSA\",IF('Blank - Request Form'!K44=0,\"\",'Blank - Request Form'!K44),IF('Blank - Request Form'!$F$7=\"CICSA\",IF('Blank - Request Form'!T44=0,\"\",'Blank - Request Form'!T44),\"\"))","v":""},null,null,null,{"$f":"IF(M10<>\"\",'Blank - Request Form'!$M$2,\"\")","v":""},{"$f":"IF('Blank - Request Form'!$F$6=\"CICSA\",IF('Blank - Request Form'!J44=0,\"\",'Blank - Request Form'!J44),IF('Blank - Request Form'!$F$7=\"CICSA\",IF('Blank - Request Form'!S44=0,\"\",'Blank - Request Form'!S44),\"\"))","v":""},"",10]
[{"$f":"IF('Blank - Request Form'!$F$6=\"CICSA\",IF('Blank - Request Form'!D45=0,\"\",'Blank - Request Form'!D45),IF('Blank - Request Form'!$F$7=\"CICSA\",IF('Blank - Request Form'!M45=0,\"\",'Blank - Request Form'!M45),\"\"))","v":""},{"$f":"IF('Blank - Request Form'!$F$6=\"CICSA\",IF('Blank - Request Form'!E45=0,\"\",'Blank - Request Form'!E45),IF('Blank - Request Form'!$F$7=\"CICSA\",IF('Blank - Request Form'!N45=0,\"\",'Blank - Request Form'!N45),\"\"))","v":""},{"$f":"IF('Blank - Request Form'!$F$6=\"CICSA\",IF(OR('Blank - Request Form'!F45=\"000\",'Blank - Request Form'!F45=0),\"\",'Blank - Request Form'!F45),IF('Blank - Request Form'!$F$7=\"CICSA\",IF(OR('Blank - Request Form'!O45=\"000\",'Blank - Request Form'!O45=0),\"\",'Blank - Request Form'!O45),\"\"))","v":""},{"$f":"IF('Blank - Request Form'!$F$6=\"CICSA\",IF(OR('Blank - Request Form'!G45=\"0\",'Blank - Request Form'!G45=\"00000\",'Blank - Request Form'!G45=0),\"\",'Blank - Request Form'!G45),IF('Blank - Request Form'!$F$7=\"CICSA\",IF(OR('Blank - Request Form'!P45=\"0\",'Blank - Request Form'!P45=\"00000\",'Blank - Request Form'!P45=0),\"\",'Blank - Request Form'!P45),\"\"))","v":""},{"$f":"IF('Blank - Request Form'!$F$6=\"CICSA\",IF(OR('Blank - Request Form'!H45=\"0\",'Blank - Request Form'!H45=\"00000\",'Blank - Request Form'!H45=0),\"\",'Blank - Request Form'!H45),IF('Blank - Request Form'!$F$7=\"CICSA\",IF(OR('Blank - Request Form'!Q45=\"0\",'Blank - Request Form'!Q45=\"00000\",'Blank - Request Form'!Q45=0),\"\",'Blank - Request Form'!Q45),\"\"))","v":""},{"$f":"IF('Blank - Request Form'!$F$6=\"CICSA\",IF(OR('Blank - Request Form'!I45=\"0\",'Blank - Request Form'!I45=\"00000\",'Blank - Request Form'!I45=0),\"\",'Blank - Request Form'!I45),IF('Blank - Request Form'!$F$7=\"CICSA\",IF(OR('Blank - Request Form'!R45=\"0\",'Blank - Request Form'!R45=\"00000\",'Blank - Request Form'!R45=0),\"\",'Blank - Request Form'!R45),\"\"))","v":""},null,{"$f":"IF('Blank - Request Form'!$F$6=\"CICSA\",IF('Blank - Request Form'!K45=0,\"\",'Blank - Request Form'!K45),IF('Blank - Request Form'!$F$7=\"CICSA\",IF('Blank - Request Form'!T45=0,\"\",'Blank - Request Form'!T45),\"\"))","v":""},null,null,null,{"$f":"IF(M11<>\"\",'Blank - Request Form'!$M$2,\"\")","v":""},{"$f":"IF('Blank - Request Form'!$F$6=\"CICSA\",IF('Blank - Request Form'!J45=0,\"\",'Blank - Request Form'!J45),IF('Blank - Request Form'!$F$7=\"CICSA\",IF('Blank - Request Form'!S45=0,\"\",'Blank - Request Form'!S45),\"\"))","v":""},"",11]
[{"$f":"IF('Blank - Request Form'!$F$6=\"CICSA\",IF('Blank - Request Form'!D46=0,\"\",'Blank - Request Form'!D46),IF('Blank - Request Form'!$F$7=\"CICSA\",IF('Blank - Request Form'!M46=0,\"\",'Blank - Request Form'!M46),\"\"))","v":""},{"$f":"IF('Blank - Request Form'!$F$6=\"CICSA\",IF('Blank - Request Form'!E46=0,\"\",'Blank - Request Form'!E46),IF('Blank - Request Form'!$F$7=\"CICSA\",IF('Blank - Request Form'!N46=0,\"\",'Blank - Request Form'!N46),\"\"))","v":""},{"$f":"IF('Blank - Request Form'!$F$6=\"CICSA\",IF(OR('Blank - Request Form'!F46=\"000\",'Blank - Request Form'!F46=0),\"\",'Blank - Request Form'!F46),IF('Blank - Request Form'!$F$7=\"CICSA\",IF(OR('Blank - Request Form'!O46=\"000\",'Blank - Request Form'!O46=0),\"\",'Blank - Request Form'!O46),\"\"))","v":""},{"$f":"IF('Blank - Request Form'!$F$6=\"CICSA\",IF(OR('Blank - Request Form'!G46=\"0\",'Blank - Request Form'!G46=\"00000\",'Blank - Request Form'!G46=0),\"\",'Blank - Request Form'!G46),IF('Blank - Request Form'!$F$7=\"CICSA\",IF(OR('Blank - Request Form'!P46=\"0\",'Blank - Request Form'!P46=\"00000\",'Blank - Request Form'!P46=0),\"\",'Blank - Request Form'!P46),\"\"))","v":""},{"$f":"IF('Blank - Request Form'!$F$6=\"CICSA\",IF(OR('Blank - Request Form'!H46=\"0\",'Blank - Request Form'!H46=\"00000\",'Blank - Request Form'!H46=0),\"\",'Blank - Request Form'!H46),IF('Blank - Request Form'!$F$7=\"CICSA\",IF(OR('Blank - Request Form'!Q46=\"0\",'Blank - Request Form'!Q46=\"00000\",'Blank - Request Form'!Q46=0),\"\",'Blank - Request Form'!Q46),\"\"))","v":""},{"$f":"IF('Blank - Request Form'!$F$6=\"CICSA\",IF(OR('Blank - Request Form'!I46=\"0\",'Blank - Request Form'!I46=\"00000\",'Blank - Request Form'!I46=0),\"\",'Blank - Request Form'!I46),IF('Blank - Request Form'!$F$7=\"CICSA\",IF(OR('Blank - Request Form'!R46=\"0\",'Blank - Request Form'!R46=\"00000\",'Blank - Request Form'!R46=0),\"\",'Blank - Request Form'!R46),\"\"))","v":""},null,{"$f":"IF('Blank - Request Form'!$F$6=\"CICSA\",IF('Blank - Request Form'!K46=0,\"\",'Blank - Request Form'!K46),IF('Blank - Request Form'!$F$7=\"CICSA\",IF('Blank - Request Form'!T46=0,\"\",'Blank - Request Form'!T46),\"\"))","v":""},null,null,null,{"$f":"IF(M12<>\"\",'Blank - Request Form'!$M$2,\"\")","v":""},{"$f":"IF('Blank - Request Form'!$F$6=\"CICSA\",IF('Blank - Request Form'!J46=0,\"\",'Blank - Request Form'!J46),IF('Blank - Request Form'!$F$7=\"CICSA\",IF('Blank - Request Form'!S46=0,\"\",'Blank - Request Form'!S46),\"\"))","v":""},"",12]
[{"$f":"IF('Blank - Request Form'!$F$6=\"CICSA\",IF('Blank - Request Form'!D47=0,\"\",'Blank - Request Form'!D47),IF('Blank - Request Form'!$F$7=\"CICSA\",IF('Blank - Request Form'!M47=0,\"\",'Blank - Request Form'!M47),\"\"))","v":""},{"$f":"IF('Blank - Request Form'!$F$6=\"CICSA\",IF('Blank - Request Form'!E47=0,\"\",'Blank - Request Form'!E47),IF('Blank - Request Form'!$F$7=\"CICSA\",IF('Blank - Request Form'!N47=0,\"\",'Blank - Request Form'!N47),\"\"))","v":""},{"$f":"IF('Blank - Request Form'!$F$6=\"CICSA\",IF(OR('Blank - Request Form'!F47=\"000\",'Blank - Request Form'!F47=0),\"\",'Blank - Request Form'!F47),IF('Blank - Request Form'!$F$7=\"CICSA\",IF(OR('Blank - Request Form'!O47=\"000\",'Blank - Request Form'!O47=0),\"\",'Blank - Request Form'!O47),\"\"))","v":""},{"$f":"IF('Blank - Request Form'!$F$6=\"CICSA\",IF(OR('Blank - Request Form'!G47=\"0\",'Blank - Request Form'!G47=\"00000\",'Blank - Request Form'!G47=0),\"\",'Blank - Request Form'!G47),IF('Blank - Request Form'!$F$7=\"CICSA\",IF(OR('Blank - Request Form'!P47=\"0\",'Blank - Request Form'!P47=\"00000\",'Blank - Request Form'!P47=0),\"\",'Blank - Request Form'!P47),\"\"))","v":""},{"$f":"IF('Blank - Request Form'!$F$6=\"CICSA\",IF(OR('Blank - Request Form'!H47=\"0\",'Blank - Request Form'!H47=\"00000\",'Blank - Request Form'!H47=0),\"\",'Blank - Request Form'!H47),IF('Blank - Request Form'!$F$7=\"CICSA\",IF(OR('Blank - Request Form'!Q47=\"0\",'Blank - Request Form'!Q47=\"00000\",'Blank - Request Form'!Q47=0),\"\",'Blank - Request Form'!Q47),\"\"))","v":""},{"$f":"IF('Blank - Request Form'!$F$6=\"CICSA\",IF(OR('Blank - Request Form'!I47=\"0\",'Blank - Request Form'!I47=\"00000\",'Blank - Request Form'!I47=0),\"\",'Blank - Request Form'!I47),IF('Blank - Request Form'!$F$7=\"CICSA\",IF(OR('Blank - Request Form'!R47=\"0\",'Blank - Request Form'!R47=\"00000\",'Blank - Request Form'!R47=0),\"\",'Blank - Request Form'!R47),\"\"))","v":""},null,{"$f":"IF('Blank - Request Form'!$F$6=\"CICSA\",IF('Blank - Request Form'!K47=0,\"\",'Blank - Request Form'!K47),IF('Blank - Request Form'!$F$7=\"CICSA\",IF('Blank - Request Form'!T47=0,\"\",'Blank - Request Form'!T47),\"\"))","v":""},null,null,null,{"$f":"IF(M13<>\"\",'Blank - Request Form'!$M$2,\"\")","v":""},{"$f":"IF('Blank - Request Form'!$F$6=\"CICSA\",IF('Blank - Request Form'!J47=0,\"\",'Blank - Request Form'!J47),IF('Blank - Request Form'!$F$7=\"CICSA\",IF('Blank - Request Form'!S47=0,\"\",'Blank - Request Form'!S47),\"\"))","v":""},"",13]
[{"$f":"IF('Blank - Request Form'!$F$6=\"CICSA\",IF('Blank - Request Form'!D48=0,\"\",'Blank - Request Form'!D48),IF('Blank - Request Form'!$F$7=\"CICSA\",IF('Blank - Request Form'!M48=0,\"\",'Blank - Request Form'!M48),\"\"))","v":""},{"$f":"IF('Blank - Request Form'!$F$6=\"CICSA\",IF('Blank - Request Form'!E48=0,\"\",'Blank - Request Form'!E48),IF('Blank - Request Form'!$F$7=\"CICSA\",IF('Blank - Request Form'!N48=0,\"\",'Blank - Request Form'!N48),\"\"))","v":""},{"$f":"IF('Blank - Request Form'!$F$6=\"CICSA\",IF(OR('Blank - Request Form'!F48=\"000\",'Blank - Request Form'!F48=0),\"\",'Blank - Request Form'!F48),IF('Blank - Request Form'!$F$7=\"CICSA\",IF(OR('Blank - Request Form'!O48=\"000\",'Blank - Request Form'!O48=0),\"\",'Blank - Request Form'!O48),\"\"))","v":""},{"$f":"IF('Blank - Request Form'!$F$6=\"CICSA\",IF(OR('Blank - Request Form'!G48=\"0\",'Blank - Request Form'!G48=\"00000\",'Blank - Request Form'!G48=0),\"\",'Blank - Request Form'!G48),IF('Blank - Request Form'!$F$7=\"CICSA\",IF(OR('Blank - Request Form'!P48=\"0\",'Blank - Request Form'!P48=\"00000\",'Blank - Request Form'!P48=0),\"\",'Blank - Request Form'!P48),\"\"))","v":""},{"$f":"IF('Blank - Request Form'!$F$6=\"CICSA\",IF(OR('Blank - Request Form'!H48=\"0\",'Blank - Request Form'!H48=\"00000\",'Blank - Request Form'!H48=0),\"\",'Blank - Request Form'!H48),IF('Blank - Request Form'!$F$7=\"CICSA\",IF(OR('Blank - Request Form'!Q48=\"0\",'Blank - Request Form'!Q48=\"00000\",'Blank - Request Form'!Q48=0),\"\",'Blank - Request Form'!Q48),\"\"))","v":""},{"$f":"IF('Blank - Request Form'!$F$6=\"CICSA\",IF(OR('Blank - Request Form'!I48=\"0\",'Blank - Request Form'!I48=\"00000\",'Blank - Request Form'!I48=0),\"\",'Blank - Request Form'!I48),IF('Blank - Request Form'!$F$7=\"CICSA\",IF(OR('Blank - Request Form'!R48=\"0\",'Blank - Request Form'!R48=\"00000\",'Blank - Request Form'!R48=0),\"\",'Blank - Request Form'!R48),\"\"))","v":""},null,{"$f":"IF('Blank - Request Form'!$F$6=\"CICSA\",IF('Blank - Request Form'!K48=0,\"\",'Blank - Request Form'!K48),IF('Blank - Request Form'!$F$7=\"CICSA\",IF('Blank - Request Form'!T48=0,\"\",'Blank - Request Form'!T48),\"\"))","v":""},null,null,null,{"$f":"IF(M14<>\"\",'Blank - Request Form'!$M$2,\"\")","v":""},{"$f":"IF('Blank - Request Form'!$F$6=\"CICSA\",IF('Blank - Request Form'!J48=0,\"\",'Blank - Request Form'!J48),IF('Blank - Request Form'!$F$7=\"CICSA\",IF('Blank - Request Form'!S48=0,\"\",'Blank - Request Form'!S48),\"\"))","v":""},"",14]
[{"$f":"IF('Blank - Request Form'!$F$6=\"CICSA\",IF('Blank - Request Form'!D49=0,\"\",'Blank - Request Form'!D49),IF('Blank - Request Form'!$F$7=\"CICSA\",IF('Blank - Request Form'!M49=0,\"\",'Blank - Request Form'!M49),\"\"))","v":""},{"$f":"IF('Blank - Request Form'!$F$6=\"CICSA\",IF('Blank - Request Form'!E49=0,\"\",'Blank - Request Form'!E49),IF('Blank - Request Form'!$F$7=\"CICSA\",IF('Blank - Request Form'!N49=0,\"\",'Blank - Request Form'!N49),\"\"))","v":""},{"$f":"IF('Blank - Request Form'!$F$6=\"CICSA\",IF(OR('Blank - Request Form'!F49=\"000\",'Blank - Request Form'!F49=0),\"\",'Blank - Request Form'!F49),IF('Blank - Request Form'!$F$7=\"CICSA\",IF(OR('Blank - Request Form'!O49=\"000\",'Blank - Request Form'!O49=0),\"\",'Blank - Request Form'!O49),\"\"))","v":""},{"$f":"IF('Blank - Request Form'!$F$6=\"CICSA\",IF(OR('Blank - Request Form'!G49=\"0\",'Blank - Request Form'!G49=\"00000\",'Blank - Request Form'!G49=0),\"\",'Blank - Request Form'!G49),IF('Blank - Request Form'!$F$7=\"CICSA\",IF(OR('Blank - Request Form'!P49=\"0\",'Blank - Request Form'!P49=\"00000\",'Blank - Request Form'!P49=0),\"\",'Blank - Request Form'!P49),\"\"))","v":""},{"$f":"IF('Blank - Request Form'!$F$6=\"CICSA\",IF(OR('Blank - Request Form'!H49=\"0\",'Blank - Request Form'!H49=\"00000\",'Blank - Request Form'!H49=0),\"\",'Blank - Request Form'!H49),IF('Blank - Request Form'!$F$7=\"CICSA\",IF(OR('Blank - Request Form'!Q49=\"0\",'Blank - Request Form'!Q49=\"00000\",'Blank - Request Form'!Q49=0),\"\",'Blank - Request Form'!Q49),\"\"))","v":""},{"$f":"IF('Blank - Request Form'!$F$6=\"CICSA\",IF(OR('Blank - Request Form'!I49=\"0\",'Blank - Request Form'!I49=\"00000\",'Blank - Request Form'!I49=0),\"\",'Blank - Request Form'!I49),IF('Blank - Request Form'!$F$7=\"CICSA\",IF(OR('Blank - Request Form'!R49=\"0\",'Blank - Request Form'!R49=\"00000\",'Blank - Request Form'!R49=0),\"\",'Blank - Request Form'!R49),\"\"))","v":""},null,{"$f":"IF('Blank - Request Form'!$F$6=\"CICSA\",IF('Blank - Request Form'!K49=0,\"\",'Blank - Request Form'!K49),IF('Blank - Request Form'!$F$7=\"CICSA\",IF('Blank - Request Form'!T49=0,\"\",'Blank - Request Form'!T49),\"\"))","v":""},null,null,null,{"$f":"IF(M15<>\"\",'Blank - Request Form'!$M$2,\"\")","v":""},{"$f":"IF('Blank - Request Form'!$F$6=\"CICSA\",IF('Blank - Request Form'!J49=0,\"\",'Blank - Request Form'!J49),IF('Blank - Request Form'!$F$7=\"CICSA\",IF('Blank - Request Form'!S49=0,\"\",'Blank - Request Form'!S49),\"\"))","v":""},"",15]
[{"$f":"IF('Blank - Request Form'!$F$6=\"CICSA\",IF('Blank - Request Form'!D50=0,\"\",'Blank - Request Form'!D50),IF('Blank - Request Form'!$F$7=\"CICSA\",IF('Blank - Request Form'!M50=0,\"\",'Blank - Request Form'!M50),\"\"))","v":""},{"$f":"IF('Blank - Request Form'!$F$6=\"CICSA\",IF('Blank - Request Form'!E50=0,\"\",'Blank - Request Form'!E50),IF('Blank - Request Form'!$F$7=\"CICSA\",IF('Blank - Request Form'!N50=0,\"\",'Blank - Request Form'!N50),\"\"))","v":""},{"$f":"IF('Blank - Request Form'!$F$6=\"CICSA\",IF(OR('Blank - Request Form'!F50=\"000\",'Blank - Request Form'!F50=0),\"\",'Blank - Request Form'!F50),IF('Blank - Request Form'!$F$7=\"CICSA\",IF(OR('Blank - Request Form'!O50=\"000\",'Blank - Request Form'!O50=0),\"\",'Blank - Request Form'!O50),\"\"))","v":""},{"$f":"IF('Blank - Request Form'!$F$6=\"CICSA\",IF(OR('Blank - Request Form'!G50=\"0\",'Blank - Request Form'!G50=\"00000\",'Blank - Request Form'!G50=0),\"\",'Blank - Request Form'!G50),IF('Blank - Request Form'!$F$7=\"CICSA\",IF(OR('Blank - Request Form'!P50=\"0\",'Blank - Request Form'!P50=\"00000\",'Blank - Request Form'!P50=0),\"\",'Blank - Request Form'!P50),\"\"))","v":""},{"$f":"IF('Blank - Request Form'!$F$6=\"CICSA\",IF(OR('Blank - Request Form'!H50=\"0\",'Blank - Request Form'!H50=\"00000\",'Blank - Request Form'!H50=0),\"\",'Blank - Request Form'!H50),IF('Blank - Request Form'!$F$7=\"CICSA\",IF(OR('Blank - Request Form'!Q50=\"0\",'Blank - Request Form'!Q50=\"00000\",'Blank - Request Form'!Q50=0),\"\",'Blank - Request Form'!Q50),\"\"))","v":""},{"$f":"IF('Blank - Request Form'!$F$6=\"CICSA\",IF(OR('Blank - Request Form'!I50=\"0\",'Blank - Request Form'!I50=\"00000\",'Blank - Request Form'!I50=0),\"\",'Blank - Request Form'!I50),IF('Blank - Request Form'!$F$7=\"CICSA\",IF(OR('Blank - Request Form'!R50=\"0\",'Blank - Request Form'!R50=\"00000\",'Blank - Request Form'!R50=0),\"\",'Blank - Request Form'!R50),\"\"))","v":""},null,{"$f":"IF('Blank - Request Form'!$F$6=\"CICSA\",IF('Blank - Request Form'!K50=0,\"\",'Blank - Request Form'!K50),IF('Blank - Request Form'!$F$7=\"CICSA\",IF('Blank - Request Form'!T50=0,\"\",'Blank - Request Form'!T50),\"\"))","v":""},null,null,null,{"$f":"IF(M16<>\"\",'Blank - Request Form'!$M$2,\"\")","v":""},{"$f":"IF('Blank - Request Form'!$F$6=\"CICSA\",IF('Blank - Request Form'!J50=0,\"\",'Blank - Request Form'!J50),IF('Blank - Request Form'!$F$7=\"CICSA\",IF('Blank - Request Form'!S50=0,\"\",'Blank - Request Form'!S50),\"\"))","v":""},"",16]
[{"$f":"IF('Blank - Request Form'!$F$6=\"CICSA\",IF('Blank - Request Form'!D51=0,\"\",'Blank - Request Form'!D51),IF('Blank - Request Form'!$F$7=\"CICSA\",IF('Blank - Request Form'!M51=0,\"\",'Blank - Request Form'!M51),\"\"))","v":""},{"$f":"IF('Blank - Request Form'!$F$6=\"CICSA\",IF('Blank - Request Form'!E51=0,\"\",'Blank - Request Form'!E51),IF('Blank - Request Form'!$F$7=\"CICSA\",IF('Blank - Request Form'!N51=0,\"\",'Blank - Request Form'!N51),\"\"))","v":""},{"$f":"IF('Blank - Request Form'!$F$6=\"CICSA\",IF(OR('Blank - Request Form'!F51=\"000\",'Blank - Request Form'!F51=0),\"\",'Blank - Request Form'!F51),IF('Blank - Request Form'!$F$7=\"CICSA\",IF(OR('Blank - Request Form'!O51=\"000\",'Blank - Request Form'!O51=0),\"\",'Blank - Request Form'!O51),\"\"))","v":""},{"$f":"IF('Blank - Request Form'!$F$6=\"CICSA\",IF(OR('Blank - Request Form'!G51=\"0\",'Blank - Request Form'!G51=\"00000\",'Blank - Request Form'!G51=0),\"\",'Blank - Request Form'!G51),IF('Blank - Request Form'!$F$7=\"CICSA\",IF(OR('Blank - Request Form'!P51=\"0\",'Blank - Request Form'!P51=\"00000\",'Blank - Request Form'!P51=0),\"\",'Blank - Request Form'!P51),\"\"))","v":""},{"$f":"IF('Blank - Request Form'!$F$6=\"CICSA\",IF(OR('Blank - Request Form'!H51=\"0\",'Blank - Request Form'!H51=\"00000\",'Blank - Request Form'!H51=0),\"\",'Blank - Request Form'!H51),IF('Blank - Request Form'!$F$7=\"CICSA\",IF(OR('Blank - Request Form'!Q51=\"0\",'Blank - Request Form'!Q51=\"00000\",'Blank - Request Form'!Q51=0),\"\",'Blank - Request Form'!Q51),\"\"))","v":""},{"$f":"IF('Blank - Request Form'!$F$6=\"CICSA\",IF(OR('Blank - Request Form'!I51=\"0\",'Blank - Request Form'!I51=\"00000\",'Blank - Request Form'!I51=0),\"\",'Blank - Request Form'!I51),IF('Blank - Request Form'!$F$7=\"CICSA\",IF(OR('Blank - Request Form'!R51=\"0\",'Blank - Request Form'!R51=\"00000\",'Blank - Request Form'!R51=0),\"\",'Blank - Request Form'!R51),\"\"))","v":""},null,{"$f":"IF('Blank - Request Form'!$F$6=\"CICSA\",IF('Blank - Request Form'!K51=0,\"\",'Blank - Request Form'!K51),IF('Blank - Request Form'!$F$7=\"CICSA\",IF('Blank - Request Form'!T51=0,\"\",'Blank - Request Form'!T51),\"\"))","v":""},null,null,null,{"$f":"IF(M17<>\"\",'Blank - Request Form'!$M$2,\"\")","v":""},{"$f":"IF('Blank - Request Form'!$F$6=\"CICSA\",IF('Blank - Request Form'!J51=0,\"\",'Blank - Request Form'!J51),IF('Blank - Request Form'!$F$7=\"CICSA\",IF('Blank - Request Form'!S51=0,\"\",'Blank - Request Form'!S51),\"\"))","v":""},"",17]
[{"$f":"IF('Blank - Request Form'!$F$6=\"CICSA\",IF('Blank - Request Form'!D52=0,\"\",'Blank - Request Form'!D52),IF('Blank - Request Form'!$F$7=\"CICSA\",IF('Blank - Request Form'!M52=0,\"\",'Blank - Request Form'!M52),\"\"))","v":""},{"$f":"IF('Blank - Request Form'!$F$6=\"CICSA\",IF('Blank - Request Form'!E52=0,\"\",'Blank - Request Form'!E52),IF('Blank - Request Form'!$F$7=\"CICSA\",IF('Blank - Request Form'!N52=0,\"\",'Blank - Request Form'!N52),\"\"))","v":""},{"$f":"IF('Blank - Request Form'!$F$6=\"CICSA\",IF(OR('Blank - Request Form'!F52=\"000\",'Blank - Request Form'!F52=0),\"\",'Blank - Request Form'!F52),IF('Blank - Request Form'!$F$7=\"CICSA\",IF(OR('Blank - Request Form'!O52=\"000\",'Blank - Request Form'!O52=0),\"\",'Blank - Request Form'!O52),\"\"))","v":""},{"$f":"IF('Blank - Request Form'!$F$6=\"CICSA\",IF(OR('Blank - Request Form'!G52=\"0\",'Blank - Request Form'!G52=\"00000\",'Blank - Request Form'!G52=0),\"\",'Blank - Request Form'!G52),IF('Blank - Request Form'!$F$7=\"CICSA\",IF(OR('Blank - Request Form'!P52=\"0\",'Blank - Request Form'!P52=\"00000\",'Blank - Request Form'!P52=0),\"\",'Blank - Request Form'!P52),\"\"))","v":""},{"$f":"IF('Blank - Request Form'!$F$6=\"CICSA\",IF(OR('Blank - Request Form'!H52=\"0\",'Blank - Request Form'!H52=\"00000\",'Blank - Request Form'!H52=0),\"\",'Blank - Request Form'!H52),IF('Blank - Request Form'!$F$7=\"CICSA\",IF(OR('Blank - Request Form'!Q52=\"0\",'Blank - Request Form'!Q52=\"00000\",'Blank - Request Form'!Q52=0),\"\",'Blank - Request Form'!Q52),\"\"))","v":""},{"$f":"IF('Blank - Request Form'!$F$6=\"CICSA\",IF(OR('Blank - Request Form'!I52=\"0\",'Blank - Request Form'!I52=\"00000\",'Blank - Request Form'!I52=0),\"\",'Blank - Request Form'!I52),IF('Blank - Request Form'!$F$7=\"CICSA\",IF(OR('Blank - Request Form'!R52=\"0\",'Blank - Request Form'!R52=\"00000\",'Blank - Request Form'!R52=0),\"\",'Blank - Request Form'!R52),\"\"))","v":""},null,{"$f":"IF('Blank - Request Form'!$F$6=\"CICSA\",IF('Blank - Request Form'!K52=0,\"\",'Blank - Request Form'!K52),IF('Blank - Request Form'!$F$7=\"CICSA\",IF('Blank - Request Form'!T52=0,\"\",'Blank - Request Form'!T52),\"\"))","v":""},null,null,null,{"$f":"IF(M18<>\"\",'Blank - Request Form'!$M$2,\"\")","v":""},{"$f":"IF('Blank - Request Form'!$F$6=\"CICSA\",IF('Blank - Request Form'!J52=0,\"\",'Blank - Request Form'!J52),IF('Blank - Request Form'!$F$7=\"CICSA\",IF('Blank - Request Form'!S52=0,\"\",'Blank - Request Form'!S52),\"\"))","v":""},"",18]
[{"$f":"IF('Blank - Request Form'!$F$6=\"CICSA\",IF('Blank - Request Form'!D53=0,\"\",'Blank - Request Form'!D53),IF('Blank - Request Form'!$F$7=\"CICSA\",IF('Blank - Request Form'!M53=0,\"\",'Blank - Request Form'!M53),\"\"))","v":""},{"$f":"IF('Blank - Request Form'!$F$6=\"CICSA\",IF('Blank - Request Form'!E53=0,\"\",'Blank - Request Form'!E53),IF('Blank - Request Form'!$F$7=\"CICSA\",IF('Blank - Request Form'!N53=0,\"\",'Blank - Request Form'!N53),\"\"))","v":""},{"$f":"IF('Blank - Request Form'!$F$6=\"CICSA\",IF(OR('Blank - Request Form'!F53=\"000\",'Blank - Request Form'!F53=0),\"\",'Blank - Request Form'!F53),IF('Blank - Request Form'!$F$7=\"CICSA\",IF(OR('Blank - Request Form'!O53=\"000\",'Blank - Request Form'!O53=0),\"\",'Blank - Request Form'!O53),\"\"))","v":""},{"$f":"IF('Blank - Request Form'!$F$6=\"CICSA\",IF(OR('Blank - Request Form'!G53=\"0\",'Blank - Request Form'!G53=\"00000\",'Blank - Request Form'!G53=0),\"\",'Blank - Request Form'!G53),IF('Blank - Request Form'!$F$7=\"CICSA\",IF(OR('Blank - Request Form'!P53=\"0\",'Blank - Request Form'!P53=\"00000\",'Blank - Request Form'!P53=0),\"\",'Blank - Request Form'!P53),\"\"))","v":""},{"$f":"IF('Blank - Request Form'!$F$6=\"CICSA\",IF(OR('Blank - Request Form'!H53=\"0\",'Blank - Request Form'!H53=\"00000\",'Blank - Request Form'!H53=0),\"\",'Blank - Request Form'!H53),IF('Blank - Request Form'!$F$7=\"CICSA\",IF(OR('Blank - Request Form'!Q53=\"0\",'Blank - Request Form'!Q53=\"00000\",'Blank - Request Form'!Q53=0),\"\",'Blank - Request Form'!Q53),\"\"))","v":""},{"$f":"IF('Blank - Request Form'!$F$6=\"CICSA\",IF(OR('Blank - Request Form'!I53=\"0\",'Blank - Request Form'!I53=\"00000\",'Blank - Request Form'!I53=0),\"\",'Blank - Request Form'!I53),IF('Blank - Request Form'!$F$7=\"CICSA\",IF(OR('Blank - Request Form'!R53=\"0\",'Blank - Request Form'!R53=\"00000\",'Blank - Request Form'!R53=0),\"\",'Blank - Request Form'!R53),\"\"))","v":""},null,{"$f":"IF('Blank - Request Form'!$F$6=\"CICSA\",IF('Blank - Request Form'!K53=0,\"\",'Blank - Request Form'!K53),IF('Blank - Request Form'!$F$7=\"CICSA\",IF('Blank - Request Form'!T53=0,\"\",'Blank - Request Form'!T53),\"\"))","v":""},null,null,null,{"$f":"IF(M19<>\"\",'Blank - Request Form'!$M$2,\"\")","v":""},{"$f":"IF('Blank - Request Form'!$F$6=\"CICSA\",IF('Blank - Request Form'!J53=0,\"\",'Blank - Request Form'!J53),IF('Blank - Request Form'!$F$7=\"CICSA\",IF('Blank - Request Form'!S53=0,\"\",'Blank - Request Form'!S53),\"\"))","v":""},"",19]
[{"$f":"IF('Blank - Request Form'!$F$6=\"CICSA\",IF('Blank - Request Form'!D54=0,\"\",'Blank - Request Form'!D54),IF('Blank - Request Form'!$F$7=\"CICSA\",IF('Blank - Request Form'!M54=0,\"\",'Blank - Request Form'!M54),\"\"))","v":""},{"$f":"IF('Blank - Request Form'!$F$6=\"CICSA\",IF('Blank - Request Form'!E54=0,\"\",'Blank - Request Form'!E54),IF('Blank - Request Form'!$F$7=\"CICSA\",IF('Blank - Request Form'!N54=0,\"\",'Blank - Request Form'!N54),\"\"))","v":""},{"$f":"IF('Blank - Request Form'!$F$6=\"CICSA\",IF(OR('Blank - Request Form'!F54=\"000\",'Blank - Request Form'!F54=0),\"\",'Blank - Request Form'!F54),IF('Blank - Request Form'!$F$7=\"CICSA\",IF(OR('Blank - Request Form'!O54=\"000\",'Blank - Request Form'!O54=0),\"\",'Blank - Request Form'!O54),\"\"))","v":""},{"$f":"IF('Blank - Request Form'!$F$6=\"CICSA\",IF(OR('Blank - Request Form'!G54=\"0\",'Blank - Request Form'!G54=\"00000\",'Blank - Request Form'!G54=0),\"\",'Blank - Request Form'!G54),IF('Blank - Request Form'!$F$7=\"CICSA\",IF(OR('Blank - Request Form'!P54=\"0\",'Blank - Request Form'!P54=\"00000\",'Blank - Request Form'!P54=0),\"\",'Blank - Request Form'!P54),\"\"))","v":""},{"$f":"IF('Blank - Request Form'!$F$6=\"CICSA\",IF(OR('Blank - Request Form'!H54=\"0\",'Blank - Request Form'!H54=\"00000\",'Blank - Request Form'!H54=0),\"\",'Blank - Request Form'!H54),IF('Blank - Request Form'!$F$7=\"CICSA\",IF(OR('Blank - Request Form'!Q54=\"0\",'Blank - Request Form'!Q54=\"00000\",'Blank - Request Form'!Q54=0),\"\",'Blank - Request Form'!Q54),\"\"))","v":""},{"$f":"IF('Blank - Request Form'!$F$6=\"CICSA\",IF(OR('Blank - Request Form'!I54=\"0\",'Blank - Request Form'!I54=\"00000\",'Blank - Request Form'!I54=0),\"\",'Blank - Request Form'!I54),IF('Blank - Request Form'!$F$7=\"CICSA\",IF(OR('Blank - Request Form'!R54=\"0\",'Blank - Request Form'!R54=\"00000\",'Blank - Request Form'!R54=0),\"\",'Blank - Request Form'!R54),\"\"))","v":""},null,{"$f":"IF('Blank - Request Form'!$F$6=\"CICSA\",IF('Blank - Request Form'!K54=0,\"\",'Blank - Request Form'!K54),IF('Blank - Request Form'!$F$7=\"CICSA\",IF('Blank - Request Form'!T54=0,\"\",'Blank - Request Form'!T54),\"\"))","v":""},null,null,null,{"$f":"IF(M20<>\"\",'Blank - Request Form'!$M$2,\"\")","v":""},{"$f":"IF('Blank - Request Form'!$F$6=\"CICSA\",IF('Blank - Request Form'!J54=0,\"\",'Blank - Request Form'!J54),IF('Blank - Request Form'!$F$7=\"CICSA\",IF('Blank - Request Form'!S54=0,\"\",'Blank - Request Form'!S54),\"\"))","v":""},"",20]
[{"$f":"IF('Blank - Request Form'!$F$6=\"CICSA\",IF('Blank - Request Form'!D55=0,\"\",'Blank - Request Form'!D55),IF('Blank - Request Form'!$F$7=\"CICSA\",IF('Blank - Request Form'!M55=0,\"\",'Blank - Request Form'!M55),\"\"))","v":""},{"$f":"IF('Blank - Request Form'!$F$6=\"CICSA\",IF('Blank - Request Form'!E55=0,\"\",'Blank - Request Form'!E55),IF('Blank - Request Form'!$F$7=\"CICSA\",IF('Blank - Request Form'!N55=0,\"\",'Blank - Request Form'!N55),\"\"))","v":""},{"$f":"IF('Blank - Request Form'!$F$6=\"CICSA\",IF(OR('Blank - Request Form'!F55=\"000\",'Blank - Request Form'!F55=0),\"\",'Blank - Request Form'!F55),IF('Blank - Request Form'!$F$7=\"CICSA\",IF(OR('Blank - Request Form'!O55=\"000\",'Blank - Request Form'!O55=0),\"\",'Blank - Request Form'!O55),\"\"))","v":""},{"$f":"IF('Blank - Request Form'!$F$6=\"CICSA\",IF(OR('Blank - Request Form'!G55=\"0\",'Blank - Request Form'!G55=\"00000\",'Blank - Request Form'!G55=0),\"\",'Blank - Request Form'!G55),IF('Blank - Request Form'!$F$7=\"CICSA\",IF(OR('Blank - Request Form'!P55=\"0\",'Blank - Request Form'!P55=\"00000\",'Blank - Request Form'!P55=0),\"\",'Blank - Request Form'!P55),\"\"))","v":""},{"$f":"IF('Blank - Request Form'!$F$6=\"CICSA\",IF(OR('Blank - Request Form'!H55=\"0\",'Blank - Request Form'!H55=\"00000\",'Blank - Request Form'!H55=0),\"\",'Blank - Request Form'!H55),IF('Blank - Request Form'!$F$7=\"CICSA\",IF(OR('Blank - Request Form'!Q55=\"0\",'Blank - Request Form'!Q55=\"00000\",'Blank - Request Form'!Q55=0),\"\",'Blank - Request Form'!Q55),\"\"))","v":""},{"$f":"IF('Blank - Request Form'!$F$6=\"CICSA\",IF(OR('Blank - Request Form'!I55=\"0\",'Blank - Request Form'!I55=\"00000\",'Blank - Request Form'!I55=0),\"\",'Blank - Request Form'!I55),IF('Blank - Request Form'!$F$7=\"CICSA\",IF(OR('Blank - Request Form'!R55=\"0\",'Blank - Request Form'!R55=\"00000\",'Blank - Request Form'!R55=0),\"\",'Blank - Request Form'!R55),\"\"))","v":""},null,{"$f":"IF('Blank - Request Form'!$F$6=\"CICSA\",IF('Blank - Request Form'!K55=0,\"\",'Blank - Request Form'!K55),IF('Blank - Request Form'!$F$7=\"CICSA\",IF('Blank - Request Form'!T55=0,\"\",'Blank - Request Form'!T55),\"\"))","v":""},null,null,null,{"$f":"IF(M21<>\"\",'Blank - Request Form'!$M$2,\"\")","v":""},{"$f":"IF('Blank - Request Form'!$F$6=\"CICSA\",IF('Blank - Request Form'!J55=0,\"\",'Blank - Request Form'!J55),IF('Blank - Request Form'!$F$7=\"CICSA\",IF('Blank - Request Form'!S55=0,\"\",'Blank - Request Form'!S55),\"\"))","v":""},"",21]
[{"$f":"IF('Blank - Request Form'!$F$6=\"CICSA\",IF('Blank - Request Form'!D56=0,\"\",'Blank - Request Form'!D56),IF('Blank - Request Form'!$F$7=\"CICSA\",IF('Blank - Request Form'!M56=0,\"\",'Blank - Request Form'!M56),\"\"))","v":""},{"$f":"IF('Blank - Request Form'!$F$6=\"CICSA\",IF('Blank - Request Form'!E56=0,\"\",'Blank - Request Form'!E56),IF('Blank - Request Form'!$F$7=\"CICSA\",IF('Blank - Request Form'!N56=0,\"\",'Blank - Request Form'!N56),\"\"))","v":""},{"$f":"IF('Blank - Request Form'!$F$6=\"CICSA\",IF(OR('Blank - Request Form'!F56=\"000\",'Blank - Request Form'!F56=0),\"\",'Blank - Request Form'!F56),IF('Blank - Request Form'!$F$7=\"CICSA\",IF(OR('Blank - Request Form'!O56=\"000\",'Blank - Request Form'!O56=0),\"\",'Blank - Request Form'!O56),\"\"))","v":""},{"$f":"IF('Blank - Request Form'!$F$6=\"CICSA\",IF(OR('Blank - Request Form'!G56=\"0\",'Blank - Request Form'!G56=\"00000\",'Blank - Request Form'!G56=0),\"\",'Blank - Request Form'!G56),IF('Blank - Request Form'!$F$7=\"CICSA\",IF(OR('Blank - Request Form'!P56=\"0\",'Blank - Request Form'!P56=\"00000\",'Blank - Request Form'!P56=0),\"\",'Blank - Request Form'!P56),\"\"))","v":""},{"$f":"IF('Blank - Request Form'!$F$6=\"CICSA\",IF(OR('Blank - Request Form'!H56=\"0\",'Blank - Request Form'!H56=\"00000\",'Blank - Request Form'!H56=0),\"\",'Blank - Request Form'!H56),IF('Blank - Request Form'!$F$7=\"CICSA\",IF(OR('Blank - Request Form'!Q56=\"0\",'Blank - Request Form'!Q56=\"00000\",'Blank - Request Form'!Q56=0),\"\",'Blank - Request Form'!Q56),\"\"))","v":""},{"$f":"IF('Blank - Request Form'!$F$6=\"CICSA\",IF(OR('Blank - Request Form'!I56=\"0\",'Blank - Request Form'!I56=\"00000\",'Blank - Request Form'!I56=0),\"\",'Blank - Request Form'!I56),IF('Blank - Request Form'!$F$7=\"CICSA\",IF(OR('Blank - Request Form'!R56=\"0\",'Blank - Request Form'!R56=\"00000\",'Blank - Request Form'!R56=0),\"\",'Blank - Request Form'!R56),\"\"))","v":""},null,{"$f":"IF('Blank - Request Form'!$F$6=\"CICSA\",IF('Blank - Request Form'!K56=0,\"\",'Blank - Request Form'!K56),IF('Blank - Request Form'!$F$7=\"CICSA\",IF('Blank - Request Form'!T56=0,\"\",'Blank - Request Form'!T56),\"\"))","v":""},null,null,null,{"$f":"IF(M22<>\"\",'Blank - Request Form'!$M$2,\"\")","v":""},{"$f":"IF('Blank - Request Form'!$F$6=\"CICSA\",IF('Blank - Request Form'!J56=0,\"\",'Blank - Request Form'!J56),IF('Blank - Request Form'!$F$7=\"CICSA\",IF('Blank - Request Form'!S56=0,\"\",'Blank - Request Form'!S56),\"\"))","v":""},"",22]
[{"$f":"IF('Blank - Request Form'!$F$6=\"CICSA\",IF('Blank - Request Form'!D57=0,\"\",'Blank - Request Form'!D57),IF('Blank - Request Form'!$F$7=\"CICSA\",IF('Blank - Request Form'!M57=0,\"\",'Blank - Request Form'!M57),\"\"))","v":""},{"$f":"IF('Blank - Request Form'!$F$6=\"CICSA\",IF('Blank - Request Form'!E57=0,\"\",'Blank - Request Form'!E57),IF('Blank - Request Form'!$F$7=\"CICSA\",IF('Blank - Request Form'!N57=0,\"\",'Blank - Request Form'!N57),\"\"))","v":""},{"$f":"IF('Blank - Request Form'!$F$6=\"CICSA\",IF(OR('Blank - Request Form'!F57=\"000\",'Blank - Request Form'!F57=0),\"\",'Blank - Request Form'!F57),IF('Blank - Request Form'!$F$7=\"CICSA\",IF(OR('Blank - Request Form'!O57=\"000\",'Blank - Request Form'!O57=0),\"\",'Blank - Request Form'!O57),\"\"))","v":""},{"$f":"IF('Blank - Request Form'!$F$6=\"CICSA\",IF(OR('Blank - Request Form'!G57=\"0\",'Blank - Request Form'!G57=\"00000\",'Blank - Request Form'!G57=0),\"\",'Blank - Request Form'!G57),IF('Blank - Request Form'!$F$7=\"CICSA\",IF(OR('Blank - Request Form'!P57=\"0\",'Blank - Request Form'!P57=\"00000\",'Blank - Request Form'!P57=0),\"\",'Blank - Request Form'!P57),\"\"))","v":""},{"$f":"IF('Blank - Request Form'!$F$6=\"CICSA\",IF(OR('Blank - Request Form'!H57=\"0\",'Blank - Request Form'!H57=\"00000\",'Blank - Request Form'!H57=0),\"\",'Blank - Request Form'!H57),IF('Blank - Request Form'!$F$7=\"CICSA\",IF(OR('Blank - Request Form'!Q57=\"0\",'Blank - Request Form'!Q57=\"00000\",'Blank - Request Form'!Q57=0),\"\",'Blank - Request Form'!Q57),\"\"))","v":""},{"$f":"IF('Blank - Request Form'!$F$6=\"CICSA\",IF(OR('Blank - Request Form'!I57=\"0\",'Blank - Request Form'!I57=\"00000\",'Blank - Request Form'!I57=0),\"\",'Blank - Request Form'!I57),IF('Blank - Request Form'!$F$7=\"CICSA\",IF(OR('Blank - Request Form'!R57=\"0\",'Blank - Request Form'!R57=\"00000\",'Blank - Request Form'!R57=0),\"\",'Blank - Request Form'!R57),\"\"))","v":""},null,{"$f":"IF('Blank - Request Form'!$F$6=\"CICSA\",IF('Blank - Request Form'!K57=0,\"\",'Blank - Request Form'!K57),IF('Blank - Request Form'!$F$7=\"CICSA\",IF('Blank - Request Form'!T57=0,\"\",'Blank - Request Form'!T57),\"\"))","v":""},null,null,null,{"$f":"IF(M23<>\"\",'Blank - Request Form'!$M$2,\"\")","v":""},{"$f":"IF('Blank - Request Form'!$F$6=\"CICSA\",IF('Blank - Request Form'!J57=0,\"\",'Blank - Request Form'!J57),IF('Blank - Request Form'!$F$7=\"CICSA\",IF('Blank - Request Form'!S57=0,\"\",'Blank - Request Form'!S57),\"\"))","v":""},"",23]
[{"$f":"IF('Blank - Request Form'!$F$6=\"CICSA\",IF('Blank - Request Form'!D58=0,\"\",'Blank - Request Form'!D58),IF('Blank - Request Form'!$F$7=\"CICSA\",IF('Blank - Request Form'!M58=0,\"\",'Blank - Request Form'!M58),\"\"))","v":""},{"$f":"IF('Blank - Request Form'!$F$6=\"CICSA\",IF('Blank - Request Form'!E58=0,\"\",'Blank - Request Form'!E58),IF('Blank - Request Form'!$F$7=\"CICSA\",IF('Blank - Request Form'!N58=0,\"\",'Blank - Request Form'!N58),\"\"))","v":""},{"$f":"IF('Blank - Request Form'!$F$6=\"CICSA\",IF(OR('Blank - Request Form'!F58=\"000\",'Blank - Request Form'!F58=0),\"\",'Blank - Request Form'!F58),IF('Blank - Request Form'!$F$7=\"CICSA\",IF(OR('Blank - Request Form'!O58=\"000\",'Blank - Request Form'!O58=0),\"\",'Blank - Request Form'!O58),\"\"))","v":""},{"$f":"IF('Blank - Request Form'!$F$6=\"CICSA\",IF(OR('Blank - Request Form'!G58=\"0\",'Blank - Request Form'!G58=\"00000\",'Blank - Request Form'!G58=0),\"\",'Blank - Request Form'!G58),IF('Blank - Request Form'!$F$7=\"CICSA\",IF(OR('Blank - Request Form'!P58=\"0\",'Blank - Request Form'!P58=\"00000\",'Blank - Request Form'!P58=0),\"\",'Blank - Request Form'!P58),\"\"))","v":""},{"$f":"IF('Blank - Request Form'!$F$6=\"CICSA\",IF(OR('Blank - Request Form'!H58=\"0\",'Blank - Request Form'!H58=\"00000\",'Blank - Request Form'!H58=0),\"\",'Blank - Request Form'!H58),IF('Blank - Request Form'!$F$7=\"CICSA\",IF(OR('Blank - Request Form'!Q58=\"0\",'Blank - Request Form'!Q58=\"00000\",'Blank - Request Form'!Q58=0),\"\",'Blank - Request Form'!Q58),\"\"))","v":""},{"$f":"IF('Blank - Request Form'!$F$6=\"CICSA\",IF(OR('Blank - Request Form'!I58=\"0\",'Blank - Request Form'!I58=\"00000\",'Blank - Request Form'!I58=0),\"\",'Blank - Request Form'!I58),IF('Blank - Request Form'!$F$7=\"CICSA\",IF(OR('Blank - Request Form'!R58=\"0\",'Blank - Request Form'!R58=\"00000\",'Blank - Request Form'!R58=0),\"\",'Blank - Request Form'!R58),\"\"))","v":""},null,{"$f":"IF('Blank - Request Form'!$F$6=\"CICSA\",IF('Blank - Request Form'!K58=0,\"\",'Blank - Request Form'!K58),IF('Blank - Request Form'!$F$7=\"CICSA\",IF('Blank - Request Form'!T58=0,\"\",'Blank - Request Form'!T58),\"\"))","v":""},null,null,null,{"$f":"IF(M24<>\"\",'Blank - Request Form'!$M$2,\"\")","v":""},{"$f":"IF('Blank - Request Form'!$F$6=\"CICSA\",IF('Blank - Request Form'!J58=0,\"\",'Blank - Request Form'!J58),IF('Blank - Request Form'!$F$7=\"CICSA\",IF('Blank - Request Form'!S58=0,\"\",'Blank - Request Form'!S58),\"\"))","v":""},"",24]
[{"$f":"IF('Blank - Request Form'!$F$6=\"CICSA\",IF('Blank - Request Form'!D59=0,\"\",'Blank - Request Form'!D59),IF('Blank - Request Form'!$F$7=\"CICSA\",IF('Blank - Request Form'!M59=0,\"\",'Blank - Request Form'!M59),\"\"))","v":""},{"$f":"IF('Blank - Request Form'!$F$6=\"CICSA\",IF('Blank - Request Form'!E59=0,\"\",'Blank - Request Form'!E59),IF('Blank - Request Form'!$F$7=\"CICSA\",IF('Blank - Request Form'!N59=0,\"\",'Blank - Request Form'!N59),\"\"))","v":""},{"$f":"IF('Blank - Request Form'!$F$6=\"CICSA\",IF(OR('Blank - Request Form'!F59=\"000\",'Blank - Request Form'!F59=0),\"\",'Blank - Request Form'!F59),IF('Blank - Request Form'!$F$7=\"CICSA\",IF(OR('Blank - Request Form'!O59=\"000\",'Blank - Request Form'!O59=0),\"\",'Blank - Request Form'!O59),\"\"))","v":""},{"$f":"IF('Blank - Request Form'!$F$6=\"CICSA\",IF(OR('Blank - Request Form'!G59=\"0\",'Blank - Request Form'!G59=\"00000\",'Blank - Request Form'!G59=0),\"\",'Blank - Request Form'!G59),IF('Blank - Request Form'!$F$7=\"CICSA\",IF(OR('Blank - Request Form'!P59=\"0\",'Blank - Request Form'!P59=\"00000\",'Blank - Request Form'!P59=0),\"\",'Blank - Request Form'!P59),\"\"))","v":""},{"$f":"IF('Blank - Request Form'!$F$6=\"CICSA\",IF(OR('Blank - Request Form'!H59=\"0\",'Blank - Request Form'!H59=\"00000\",'Blank - Request Form'!H59=0),\"\",'Blank - Request Form'!H59),IF('Blank - Request Form'!$F$7=\"CICSA\",IF(OR('Blank - Request Form'!Q59=\"0\",'Blank - Request Form'!Q59=\"00000\",'Blank - Request Form'!Q59=0),\"\",'Blank - Request Form'!Q59),\"\"))","v":""},{"$f":"IF('Blank - Request Form'!$F$6=\"CICSA\",IF(OR('Blank - Request Form'!I59=\"0\",'Blank - Request Form'!I59=\"00000\",'Blank - Request Form'!I59=0),\"\",'Blank - Request Form'!I59),IF('Blank - Request Form'!$F$7=\"CICSA\",IF(OR('Blank - Request Form'!R59=\"0\",'Blank - Request Form'!R59=\"00000\",'Blank - Request Form'!R59=0),\"\",'Blank - Request Form'!R59),\"\"))","v":""},null,{"$f":"IF('Blank - Request Form'!$F$6=\"CICSA\",IF('Blank - Request Form'!K59=0,\"\",'Blank - Request Form'!K59),IF('Blank - Request Form'!$F$7=\"CICSA\",IF('Blank - Request Form'!T59=0,\"\",'Blank - Request Form'!T59),\"\"))","v":""},null,null,null,{"$f":"IF(M25<>\"\",'Blank - Request Form'!$M$2,\"\")","v":""},{"$f":"IF('Blank - Request Form'!$F$6=\"CICSA\",IF('Blank - Request Form'!J59=0,\"\",'Blank - Request Form'!J59),IF('Blank - Request Form'!$F$7=\"CICSA\",IF('Blank - Request Form'!S59=0,\"\",'Blank - Request Form'!S59),\"\"))","v":""},"",25]
[{"$f":"IF('Blank - Request Form'!$F$6=\"CICSA\",IF('Blank - Request Form'!D60=0,\"\",'Blank - Request Form'!D60),IF('Blank - Request Form'!$F$7=\"CICSA\",IF('Blank - Request Form'!M60=0,\"\",'Blank - Request Form'!M60),\"\"))","v":""},{"$f":"IF('Blank - Request Form'!$F$6=\"CICSA\",IF('Blank - Request Form'!E60=0,\"\",'Blank - Request Form'!E60),IF('Blank - Request Form'!$F$7=\"CICSA\",IF('Blank - Request Form'!N60=0,\"\",'Blank - Request Form'!N60),\"\"))","v":""},{"$f":"IF('Blank - Request Form'!$F$6=\"CICSA\",IF(OR('Blank - Request Form'!F60=\"000\",'Blank - Request Form'!F60=0),\"\",'Blank - Request Form'!F60),IF('Blank - Request Form'!$F$7=\"CICSA\",IF(OR('Blank - Request Form'!O60=\"000\",'Blank - Request Form'!O60=0),\"\",'Blank - Request Form'!O60),\"\"))","v":""},{"$f":"IF('Blank - Request Form'!$F$6=\"CICSA\",IF(OR('Blank - Request Form'!G60=\"0\",'Blank - Request Form'!G60=\"00000\",'Blank - Request Form'!G60=0),\"\",'Blank - Request Form'!G60),IF('Blank - Request Form'!$F$7=\"CICSA\",IF(OR('Blank - Request Form'!P60=\"0\",'Blank - Request Form'!P60=\"00000\",'Blank - Request Form'!P60=0),\"\",'Blank - Request Form'!P60),\"\"))","v":""},{"$f":"IF('Blank - Request Form'!$F$6=\"CICSA\",IF(OR('Blank - Request Form'!H60=\"0\",'Blank - Request Form'!H60=\"00000\",'Blank - Request Form'!H60=0),\"\",'Blank - Request Form'!H60),IF('Blank - Request Form'!$F$7=\"CICSA\",IF(OR('Blank - Request Form'!Q60=\"0\",'Blank - Request Form'!Q60=\"00000\",'Blank - Request Form'!Q60=0),\"\",'Blank - Request Form'!Q60),\"\"))","v":""},{"$f":"IF('Blank - Request Form'!$F$6=\"CICSA\",IF(OR('Blank - Request Form'!I60=\"0\",'Blank - Request Form'!I60=\"00000\",'Blank - Request Form'!I60=0),\"\",'Blank - Request Form'!I60),IF('Blank - Request Form'!$F$7=\"CICSA\",IF(OR('Blank - Request Form'!R60=\"0\",'Blank - Request Form'!R60=\"00000\",'Blank - Request Form'!R60=0),\"\",'Blank - Request Form'!R60),\"\"))","v":""},null,{"$f":"IF('Blank - Request Form'!$F$6=\"CICSA\",IF('Blank - Request Form'!K60=0,\"\",'Blank - Request Form'!K60),IF('Blank - Request Form'!$F$7=\"CICSA\",IF('Blank - Request Form'!T60=0,\"\",'Blank - Request Form'!T60),\"\"))","v":""},null,null,null,{"$f":"IF(M26<>\"\",'Blank - Request Form'!$M$2,\"\")","v":""},{"$f":"IF('Blank - Request Form'!$F$6=\"CICSA\",IF('Blank - Request Form'!J60=0,\"\",'Blank - Request Form'!J60),IF('Blank - Request Form'!$F$7=\"CICSA\",IF('Blank - Request Form'!S60=0,\"\",'Blank - Request Form'!S60),\"\"))","v":""},"",26]
[{"$f":"IF('Blank - Request Form'!$F$6=\"CICSA\",IF('Blank - Request Form'!D61=0,\"\",'Blank - Request Form'!D61),IF('Blank - Request Form'!$F$7=\"CICSA\",IF('Blank - Request Form'!M61=0,\"\",'Blank - Request Form'!M61),\"\"))","v":""},{"$f":"IF('Blank - Request Form'!$F$6=\"CICSA\",IF('Blank - Request Form'!E61=0,\"\",'Blank - Request Form'!E61),IF('Blank - Request Form'!$F$7=\"CICSA\",IF('Blank - Request Form'!N61=0,\"\",'Blank - Request Form'!N61),\"\"))","v":""},{"$f":"IF('Blank - Request Form'!$F$6=\"CICSA\",IF(OR('Blank - Request Form'!F61=\"000\",'Blank - Request Form'!F61=0),\"\",'Blank - Request Form'!F61),IF('Blank - Request Form'!$F$7=\"CICSA\",IF(OR('Blank - Request Form'!O61=\"000\",'Blank - Request Form'!O61=0),\"\",'Blank - Request Form'!O61),\"\"))","v":""},{"$f":"IF('Blank - Request Form'!$F$6=\"CICSA\",IF(OR('Blank - Request Form'!G61=\"0\",'Blank - Request Form'!G61=\"00000\",'Blank - Request Form'!G61=0),\"\",'Blank - Request Form'!G61),IF('Blank - Request Form'!$F$7=\"CICSA\",IF(OR('Blank - Request Form'!P61=\"0\",'Blank - Request Form'!P61=\"00000\",'Blank - Request Form'!P61=0),\"\",'Blank - Request Form'!P61),\"\"))","v":""},{"$f":"IF('Blank - Request Form'!$F$6=\"CICSA\",IF(OR('Blank - Request Form'!H61=\"0\",'Blank - Request Form'!H61=\"00000\",'Blank - Request Form'!H61=0),\"\",'Blank - Request Form'!H61),IF('Blank - Request Form'!$F$7=\"CICSA\",IF(OR('Blank - Request Form'!Q61=\"0\",'Blank - Request Form'!Q61=\"00000\",'Blank - Request Form'!Q61=0),\"\",'Blank - Request Form'!Q61),\"\"))","v":""},{"$f":"IF('Blank - Request Form'!$F$6=\"CICSA\",IF(OR('Blank - Request Form'!I61=\"0\",'Blank - Request Form'!I61=\"00000\",'Blank - Request Form'!I61=0),\"\",'Blank - Request Form'!I61),IF('Blank - Request Form'!$F$7=\"CICSA\",IF(OR('Blank - Request Form'!R61=\"0\",'Blank - Request Form'!R61=\"00000\",'Blank - Request Form'!R61=0),\"\",'Blank - Request Form'!R61),\"\"))","v":""},null,{"$f":"IF('Blank - Request Form'!$F$6=\"CICSA\",IF('Blank - Request Form'!K61=0,\"\",'Blank - Request Form'!K61),IF('Blank - Request Form'!$F$7=\"CICSA\",IF('Blank - Request Form'!T61=0,\"\",'Blank - Request Form'!T61),\"\"))","v":""},null,null,null,{"$f":"IF(M27<>\"\",'Blank - Request Form'!$M$2,\"\")","v":""},{"$f":"IF('Blank - Request Form'!$F$6=\"CICSA\",IF('Blank - Request Form'!J61=0,\"\",'Blank - Request Form'!J61),IF('Blank - Request Form'!$F$7=\"CICSA\",IF('Blank - Request Form'!S61=0,\"\",'Blank - Request Form'!S61),\"\"))","v":""},"",27]
[{"$f":"IF('Blank - Request Form'!$F$6=\"CICSA\",IF('Blank - Request Form'!D62=0,\"\",'Blank - Request Form'!D62),IF('Blank - Request Form'!$F$7=\"CICSA\",IF('Blank - Request Form'!M62=0,\"\",'Blank - Request Form'!M62),\"\"))","v":""},{"$f":"IF('Blank - Request Form'!$F$6=\"CICSA\",IF('Blank - Request Form'!E62=0,\"\",'Blank - Request Form'!E62),IF('Blank - Request Form'!$F$7=\"CICSA\",IF('Blank - Request Form'!N62=0,\"\",'Blank - Request Form'!N62),\"\"))","v":""},{"$f":"IF('Blank - Request Form'!$F$6=\"CICSA\",IF(OR('Blank - Request Form'!F62=\"000\",'Blank - Request Form'!F62=0),\"\",'Blank - Request Form'!F62),IF('Blank - Request Form'!$F$7=\"CICSA\",IF(OR('Blank - Request Form'!O62=\"000\",'Blank - Request Form'!O62=0),\"\",'Blank - Request Form'!O62),\"\"))","v":""},{"$f":"IF('Blank - Request Form'!$F$6=\"CICSA\",IF(OR('Blank - Request Form'!G62=\"0\",'Blank - Request Form'!G62=\"00000\",'Blank - Request Form'!G62=0),\"\",'Blank - Request Form'!G62),IF('Blank - Request Form'!$F$7=\"CICSA\",IF(OR('Blank - Request Form'!P62=\"0\",'Blank - Request Form'!P62=\"00000\",'Blank - Request Form'!P62=0),\"\",'Blank - Request Form'!P62),\"\"))","v":""},{"$f":"IF('Blank - Request Form'!$F$6=\"CICSA\",IF(OR('Blank - Request Form'!H62=\"0\",'Blank - Request Form'!H62=\"00000\",'Blank - Request Form'!H62=0),\"\",'Blank - Request Form'!H62),IF('Blank - Request Form'!$F$7=\"CICSA\",IF(OR('Blank - Request Form'!Q62=\"0\",'Blank - Request Form'!Q62=\"00000\",'Blank - Request Form'!Q62=0),\"\",'Blank - Request Form'!Q62),\"\"))","v":""},{"$f":"IF('Blank - Request Form'!$F$6=\"CICSA\",IF(OR('Blank - Request Form'!I62=\"0\",'Blank - Request Form'!I62=\"00000\",'Blank - Request Form'!I62=0),\"\",'Blank - Request Form'!I62),IF('Blank - Request Form'!$F$7=\"CICSA\",IF(OR('Blank - Request Form'!R62=\"0\",'Blank - Request Form'!R62=\"00000\",'Blank - Request Form'!R62=0),\"\",'Blank - Request Form'!R62),\"\"))","v":""},null,{"$f":"IF('Blank - Request Form'!$F$6=\"CICSA\",IF('Blank - Request Form'!K62=0,\"\",'Blank - Request Form'!K62),IF('Blank - Request Form'!$F$7=\"CICSA\",IF('Blank - Request Form'!T62=0,\"\",'Blank - Request Form'!T62),\"\"))","v":""},null,null,null,{"$f":"IF(M28<>\"\",'Blank - Request Form'!$M$2,\"\")","v":""},{"$f":"IF('Blank - Request Form'!$F$6=\"CICSA\",IF('Blank - Request Form'!J62=0,\"\",'Blank - Request Form'!J62),IF('Blank - Request Form'!$F$7=\"CICSA\",IF('Blank - Request Form'!S62=0,\"\",'Blank - Request Form'!S62),\"\"))","v":""},"",28]
[{"$f":"IF('Blank - Request Form'!$F$6=\"CICSA\",IF('Blank - Request Form'!D63=0,\"\",'Blank - Request Form'!D63),IF('Blank - Request Form'!$F$7=\"CICSA\",IF('Blank - Request Form'!M63=0,\"\",'Blank - Request Form'!M63),\"\"))","v":""},{"$f":"IF('Blank - Request Form'!$F$6=\"CICSA\",IF('Blank - Request Form'!E63=0,\"\",'Blank - Request Form'!E63),IF('Blank - Request Form'!$F$7=\"CICSA\",IF('Blank - Request Form'!N63=0,\"\",'Blank - Request Form'!N63),\"\"))","v":""},{"$f":"IF('Blank - Request Form'!$F$6=\"CICSA\",IF(OR('Blank - Request Form'!F63=\"000\",'Blank - Request Form'!F63=0),\"\",'Blank - Request Form'!F63),IF('Blank - Request Form'!$F$7=\"CICSA\",IF(OR('Blank - Request Form'!O63=\"000\",'Blank - Request Form'!O63=0),\"\",'Blank - Request Form'!O63),\"\"))","v":""},{"$f":"IF('Blank - Request Form'!$F$6=\"CICSA\",IF(OR('Blank - Request Form'!G63=\"0\",'Blank - Request Form'!G63=\"00000\",'Blank - Request Form'!G63=0),\"\",'Blank - Request Form'!G63),IF('Blank - Request Form'!$F$7=\"CICSA\",IF(OR('Blank - Request Form'!P63=\"0\",'Blank - Request Form'!P63=\"00000\",'Blank - Request Form'!P63=0),\"\",'Blank - Request Form'!P63),\"\"))","v":""},{"$f":"IF('Blank - Request Form'!$F$6=\"CICSA\",IF(OR('Blank - Request Form'!H63=\"0\",'Blank - Request Form'!H63=\"00000\",'Blank - Request Form'!H63=0),\"\",'Blank - Request Form'!H63),IF('Blank - Request Form'!$F$7=\"CICSA\",IF(OR('Blank - Request Form'!Q63=\"0\",'Blank - Request Form'!Q63=\"00000\",'Blank - Request Form'!Q63=0),\"\",'Blank - Request Form'!Q63),\"\"))","v":""},{"$f":"IF('Blank - Request Form'!$F$6=\"CICSA\",IF(OR('Blank - Request Form'!I63=\"0\",'Blank - Request Form'!I63=\"00000\",'Blank - Request Form'!I63=0),\"\",'Blank - Request Form'!I63),IF('Blank - Request Form'!$F$7=\"CICSA\",IF(OR('Blank - Request Form'!R63=\"0\",'Blank - Request Form'!R63=\"00000\",'Blank - Request Form'!R63=0),\"\",'Blank - Request Form'!R63),\"\"))","v":""},null,{"$f":"IF('Blank - Request Form'!$F$6=\"CICSA\",IF('Blank - Request Form'!K63=0,\"\",'Blank - Request Form'!K63),IF('Blank - Request Form'!$F$7=\"CICSA\",IF('Blank - Request Form'!T63=0,\"\",'Blank - Request Form'!T63),\"\"))","v":""},null,null,null,{"$f":"IF(M29<>\"\",'Blank - Request Form'!$M$2,\"\")","v":""},{"$f":"IF('Blank - Request Form'!$F$6=\"CICSA\",IF('Blank - Request Form'!J63=0,\"\",'Blank - Request Form'!J63),IF('Blank - Request Form'!$F$7=\"CICSA\",IF('Blank - Request Form'!S63=0,\"\",'Blank - Request Form'!S63),\"\"))","v":""},"",29]
[{"$f":"IF('Blank - Request Form'!$F$6=\"CICSA\",IF('Blank - Request Form'!D64=0,\"\",'Blank - Request Form'!D64),IF('Blank - Request Form'!$F$7=\"CICSA\",IF('Blank - Request Form'!M64=0,\"\",'Blank - Request Form'!M64),\"\"))","v":""},{"$f":"IF('Blank - Request Form'!$F$6=\"CICSA\",IF('Blank - Request Form'!E64=0,\"\",'Blank - Request Form'!E64),IF('Blank - Request Form'!$F$7=\"CICSA\",IF('Blank - Request Form'!N64=0,\"\",'Blank - Request Form'!N64),\"\"))","v":""},{"$f":"IF('Blank - Request Form'!$F$6=\"CICSA\",IF(OR('Blank - Request Form'!F64=\"000\",'Blank - Request Form'!F64=0),\"\",'Blank - Request Form'!F64),IF('Blank - Request Form'!$F$7=\"CICSA\",IF(OR('Blank - Request Form'!O64=\"000\",'Blank - Request Form'!O64=0),\"\",'Blank - Request Form'!O64),\"\"))","v":""},{"$f":"IF('Blank - Request Form'!$F$6=\"CICSA\",IF(OR('Blank - Request Form'!G64=\"0\",'Blank - Request Form'!G64=\"00000\",'Blank - Request Form'!G64=0),\"\",'Blank - Request Form'!G64),IF('Blank - Request Form'!$F$7=\"CICSA\",IF(OR('Blank - Request Form'!P64=\"0\",'Blank - Request Form'!P64=\"00000\",'Blank - Request Form'!P64=0),\"\",'Blank - Request Form'!P64),\"\"))","v":""},{"$f":"IF('Blank - Request Form'!$F$6=\"CICSA\",IF(OR('Blank - Request Form'!H64=\"0\",'Blank - Request Form'!H64=\"00000\",'Blank - Request Form'!H64=0),\"\",'Blank - Request Form'!H64),IF('Blank - Request Form'!$F$7=\"CICSA\",IF(OR('Blank - Request Form'!Q64=\"0\",'Blank - Request Form'!Q64=\"00000\",'Blank - Request Form'!Q64=0),\"\",'Blank - Request Form'!Q64),\"\"))","v":""},{"$f":"IF('Blank - Request Form'!$F$6=\"CICSA\",IF(OR('Blank - Request Form'!I64=\"0\",'Blank - Request Form'!I64=\"00000\",'Blank - Request Form'!I64=0),\"\",'Blank - Request Form'!I64),IF('Blank - Request Form'!$F$7=\"CICSA\",IF(OR('Blank - Request Form'!R64=\"0\",'Blank - Request Form'!R64=\"00000\",'Blank - Request Form'!R64=0),\"\",'Blank - Request Form'!R64),\"\"))","v":""},null,{"$f":"IF('Blank - Request Form'!$F$6=\"CICSA\",IF('Blank - Request Form'!K64=0,\"\",'Blank - Request Form'!K64),IF('Blank - Request Form'!$F$7=\"CICSA\",IF('Blank - Request Form'!T64=0,\"\",'Blank - Request Form'!T64),\"\"))","v":""},null,null,null,{"$f":"IF(M30<>\"\",'Blank - Request Form'!$M$2,\"\")","v":""},{"$f":"IF('Blank - Request Form'!$F$6=\"CICSA\",IF('Blank - Request Form'!J64=0,\"\",'Blank - Request Form'!J64),IF('Blank - Request Form'!$F$7=\"CICSA\",IF('Blank - Request Form'!S64=0,\"\",'Blank - Request Form'!S64),\"\"))","v":""},"",30]
[{"$f":"IF('Blank - Request Form'!$F$6=\"CICSA\",IF('Blank - Request Form'!D65=0,\"\",'Blank - Request Form'!D65),IF('Blank - Request Form'!$F$7=\"CICSA\",IF('Blank - Request Form'!M65=0,\"\",'Blank - Request Form'!M65),\"\"))","v":""},{"$f":"IF('Blank - Request Form'!$F$6=\"CICSA\",IF('Blank - Request Form'!E65=0,\"\",'Blank - Request Form'!E65),IF('Blank - Request Form'!$F$7=\"CICSA\",IF('Blank - Request Form'!N65=0,\"\",'Blank - Request Form'!N65),\"\"))","v":""},{"$f":"IF('Blank - Request Form'!$F$6=\"CICSA\",IF(OR('Blank - Request Form'!F65=\"000\",'Blank - Request Form'!F65=0),\"\",'Blank - Request Form'!F65),IF('Blank - Request Form'!$F$7=\"CICSA\",IF(OR('Blank - Request Form'!O65=\"000\",'Blank - Request Form'!O65=0),\"\",'Blank - Request Form'!O65),\"\"))","v":""},{"$f":"IF('Blank - Request Form'!$F$6=\"CICSA\",IF(OR('Blank - Request Form'!G65=\"0\",'Blank - Request Form'!G65=\"00000\",'Blank - Request Form'!G65=0),\"\",'Blank - Request Form'!G65),IF('Blank - Request Form'!$F$7=\"CICSA\",IF(OR('Blank - Request Form'!P65=\"0\",'Blank - Request Form'!P65=\"00000\",'Blank - Request Form'!P65=0),\"\",'Blank - Request Form'!P65),\"\"))","v":""},{"$f":"IF('Blank - Request Form'!$F$6=\"CICSA\",IF(OR('Blank - Request Form'!H65=\"0\",'Blank - Request Form'!H65=\"00000\",'Blank - Request Form'!H65=0),\"\",'Blank - Request Form'!H65),IF('Blank - Request Form'!$F$7=\"CICSA\",IF(OR('Blank - Request Form'!Q65=\"0\",'Blank - Request Form'!Q65=\"00000\",'Blank - Request Form'!Q65=0),\"\",'Blank - Request Form'!Q65),\"\"))","v":""},{"$f":"IF('Blank - Request Form'!$F$6=\"CICSA\",IF(OR('Blank - Request Form'!I65=\"0\",'Blank - Request Form'!I65=\"00000\",'Blank - Request Form'!I65=0),\"\",'Blank - Request Form'!I65),IF('Blank - Request Form'!$F$7=\"CICSA\",IF(OR('Blank - Request Form'!R65=\"0\",'Blank - Request Form'!R65=\"00000\",'Blank - Request Form'!R65=0),\"\",'Blank - Request Form'!R65),\"\"))","v":""},null,{"$f":"IF('Blank - Request Form'!$F$6=\"CICSA\",IF('Blank - Request Form'!K65=0,\"\",'Blank - Request Form'!K65),IF('Blank - Request Form'!$F$7=\"CICSA\",IF('Blank - Request Form'!T65=0,\"\",'Blank - Request Form'!T65),\"\"))","v":""},null,null,null,{"$f":"IF(M31<>\"\",'Blank - Request Form'!$M$2,\"\")","v":""},{"$f":"IF('Blank - Request Form'!$F$6=\"CICSA\",IF('Blank - Request Form'!J65=0,\"\",'Blank - Request Form'!J65),IF('Blank - Request Form'!$F$7=\"CICSA\",IF('Blank - Request Form'!S65=0,\"\",'Blank - Request Form'!S65),\"\"))","v":""},"",31]
[{"$f":"IF('Blank - Request Form'!$F$6=\"CICSA\",IF('Blank - Request Form'!D66=0,\"\",'Blank - Request Form'!D66),IF('Blank - Request Form'!$F$7=\"CICSA\",IF('Blank - Request Form'!M66=0,\"\",'Blank - Request Form'!M66),\"\"))","v":""},{"$f":"IF('Blank - Request Form'!$F$6=\"CICSA\",IF('Blank - Request Form'!E66=0,\"\",'Blank - Request Form'!E66),IF('Blank - Request Form'!$F$7=\"CICSA\",IF('Blank - Request Form'!N66=0,\"\",'Blank - Request Form'!N66),\"\"))","v":""},{"$f":"IF('Blank - Request Form'!$F$6=\"CICSA\",IF(OR('Blank - Request Form'!F66=\"000\",'Blank - Request Form'!F66=0),\"\",'Blank - Request Form'!F66),IF('Blank - Request Form'!$F$7=\"CICSA\",IF(OR('Blank - Request Form'!O66=\"000\",'Blank - Request Form'!O66=0),\"\",'Blank - Request Form'!O66),\"\"))","v":""},{"$f":"IF('Blank - Request Form'!$F$6=\"CICSA\",IF(OR('Blank - Request Form'!G66=\"0\",'Blank - Request Form'!G66=\"00000\",'Blank - Request Form'!G66=0),\"\",'Blank - Request Form'!G66),IF('Blank - Request Form'!$F$7=\"CICSA\",IF(OR('Blank - Request Form'!P66=\"0\",'Blank - Request Form'!P66=\"00000\",'Blank - Request Form'!P66=0),\"\",'Blank - Request Form'!P66),\"\"))","v":""},{"$f":"IF('Blank - Request Form'!$F$6=\"CICSA\",IF(OR('Blank - Request Form'!H66=\"0\",'Blank - Request Form'!H66=\"00000\",'Blank - Request Form'!H66=0),\"\",'Blank - Request Form'!H66),IF('Blank - Request Form'!$F$7=\"CICSA\",IF(OR('Blank - Request Form'!Q66=\"0\",'Blank - Request Form'!Q66=\"00000\",'Blank - Request Form'!Q66=0),\"\",'Blank - Request Form'!Q66),\"\"))","v":""},{"$f":"IF('Blank - Request Form'!$F$6=\"CICSA\",IF(OR('Blank - Request Form'!I66=\"0\",'Blank - Request Form'!I66=\"00000\",'Blank - Request Form'!I66=0),\"\",'Blank - Request Form'!I66),IF('Blank - Request Form'!$F$7=\"CICSA\",IF(OR('Blank - Request Form'!R66=\"0\",'Blank - Request Form'!R66=\"00000\",'Blank - Request Form'!R66=0),\"\",'Blank - Request Form'!R66),\"\"))","v":""},null,{"$f":"IF('Blank - Request Form'!$F$6=\"CICSA\",IF('Blank - Request Form'!K66=0,\"\",'Blank - Request Form'!K66),IF('Blank - Request Form'!$F$7=\"CICSA\",IF('Blank - Request Form'!T66=0,\"\",'Blank - Request Form'!T66),\"\"))","v":""},null,null,null,{"$f":"IF(M32<>\"\",'Blank - Request Form'!$M$2,\"\")","v":""},{"$f":"IF('Blank - Request Form'!$F$6=\"CICSA\",IF('Blank - Request Form'!J66=0,\"\",'Blank - Request Form'!J66),IF('Blank - Request Form'!$F$7=\"CICSA\",IF('Blank - Request Form'!S66=0,\"\",'Blank - Request Form'!S66),\"\"))","v":""},"",32]
[{"$f":"IF('Blank - Request Form'!$F$6=\"CICSA\",IF('Blank - Request Form'!D67=0,\"\",'Blank - Request Form'!D67),IF('Blank - Request Form'!$F$7=\"CICSA\",IF('Blank - Request Form'!M67=0,\"\",'Blank - Request Form'!M67),\"\"))","v":""},{"$f":"IF('Blank - Request Form'!$F$6=\"CICSA\",IF('Blank - Request Form'!E67=0,\"\",'Blank - Request Form'!E67),IF('Blank - Request Form'!$F$7=\"CICSA\",IF('Blank - Request Form'!N67=0,\"\",'Blank - Request Form'!N67),\"\"))","v":""},{"$f":"IF('Blank - Request Form'!$F$6=\"CICSA\",IF(OR('Blank - Request Form'!F67=\"000\",'Blank - Request Form'!F67=0),\"\",'Blank - Request Form'!F67),IF('Blank - Request Form'!$F$7=\"CICSA\",IF(OR('Blank - Request Form'!O67=\"000\",'Blank - Request Form'!O67=0),\"\",'Blank - Request Form'!O67),\"\"))","v":""},{"$f":"IF('Blank - Request Form'!$F$6=\"CICSA\",IF(OR('Blank - Request Form'!G67=\"0\",'Blank - Request Form'!G67=\"00000\",'Blank - Request Form'!G67=0),\"\",'Blank - Request Form'!G67),IF('Blank - Request Form'!$F$7=\"CICSA\",IF(OR('Blank - Request Form'!P67=\"0\",'Blank - Request Form'!P67=\"00000\",'Blank - Request Form'!P67=0),\"\",'Blank - Request Form'!P67),\"\"))","v":""},{"$f":"IF('Blank - Request Form'!$F$6=\"CICSA\",IF(OR('Blank - Request Form'!H67=\"0\",'Blank - Request Form'!H67=\"00000\",'Blank - Request Form'!H67=0),\"\",'Blank - Request Form'!H67),IF('Blank - Request Form'!$F$7=\"CICSA\",IF(OR('Blank - Request Form'!Q67=\"0\",'Blank - Request Form'!Q67=\"00000\",'Blank - Request Form'!Q67=0),\"\",'Blank - Request Form'!Q67),\"\"))","v":""},{"$f":"IF('Blank - Request Form'!$F$6=\"CICSA\",IF(OR('Blank - Request Form'!I67=\"0\",'Blank - Request Form'!I67=\"00000\",'Blank - Request Form'!I67=0),\"\",'Blank - Request Form'!I67),IF('Blank - Request Form'!$F$7=\"CICSA\",IF(OR('Blank - Request Form'!R67=\"0\",'Blank - Request Form'!R67=\"00000\",'Blank - Request Form'!R67=0),\"\",'Blank - Request Form'!R67),\"\"))","v":""},null,{"$f":"IF('Blank - Request Form'!$F$6=\"CICSA\",IF('Blank - Request Form'!K67=0,\"\",'Blank - Request Form'!K67),IF('Blank - Request Form'!$F$7=\"CICSA\",IF('Blank - Request Form'!T67=0,\"\",'Blank - Request Form'!T67),\"\"))","v":""},null,null,null,{"$f":"IF(M33<>\"\",'Blank - Request Form'!$M$2,\"\")","v":""},{"$f":"IF('Blank - Request Form'!$F$6=\"CICSA\",IF('Blank - Request Form'!J67=0,\"\",'Blank - Request Form'!J67),IF('Blank - Request Form'!$F$7=\"CICSA\",IF('Blank - Request Form'!S67=0,\"\",'Blank - Request Form'!S67),\"\"))","v":""},"",33]
[{"$f":"IF('Blank - Request Form'!$F$6=\"CICSA\",IF('Blank - Request Form'!D68=0,\"\",'Blank - Request Form'!D68),IF('Blank - Request Form'!$F$7=\"CICSA\",IF('Blank - Request Form'!M68=0,\"\",'Blank - Request Form'!M68),\"\"))","v":""},{"$f":"IF('Blank - Request Form'!$F$6=\"CICSA\",IF('Blank - Request Form'!E68=0,\"\",'Blank - Request Form'!E68),IF('Blank - Request Form'!$F$7=\"CICSA\",IF('Blank - Request Form'!N68=0,\"\",'Blank - Request Form'!N68),\"\"))","v":""},{"$f":"IF('Blank - Request Form'!$F$6=\"CICSA\",IF(OR('Blank - Request Form'!F68=\"000\",'Blank - Request Form'!F68=0),\"\",'Blank - Request Form'!F68),IF('Blank - Request Form'!$F$7=\"CICSA\",IF(OR('Blank - Request Form'!O68=\"000\",'Blank - Request Form'!O68=0),\"\",'Blank - Request Form'!O68),\"\"))","v":""},{"$f":"IF('Blank - Request Form'!$F$6=\"CICSA\",IF(OR('Blank - Request Form'!G68=\"0\",'Blank - Request Form'!G68=\"00000\",'Blank - Request Form'!G68=0),\"\",'Blank - Request Form'!G68),IF('Blank - Request Form'!$F$7=\"CICSA\",IF(OR('Blank - Request Form'!P68=\"0\",'Blank - Request Form'!P68=\"00000\",'Blank - Request Form'!P68=0),\"\",'Blank - Request Form'!P68),\"\"))","v":""},{"$f":"IF('Blank - Request Form'!$F$6=\"CICSA\",IF(OR('Blank - Request Form'!H68=\"0\",'Blank - Request Form'!H68=\"00000\",'Blank - Request Form'!H68=0),\"\",'Blank - Request Form'!H68),IF('Blank - Request Form'!$F$7=\"CICSA\",IF(OR('Blank - Request Form'!Q68=\"0\",'Blank - Request Form'!Q68=\"00000\",'Blank - Request Form'!Q68=0),\"\",'Blank - Request Form'!Q68),\"\"))","v":""},{"$f":"IF('Blank - Request Form'!$F$6=\"CICSA\",IF(OR('Blank - Request Form'!I68=\"0\",'Blank - Request Form'!I68=\"00000\",'Blank - Request Form'!I68=0),\"\",'Blank - Request Form'!I68),IF('Blank - Request Form'!$F$7=\"CICSA\",IF(OR('Blank - Request Form'!R68=\"0\",'Blank - Request Form'!R68=\"00000\",'Blank - Request Form'!R68=0),\"\",'Blank - Request Form'!R68),\"\"))","v":""},null,{"$f":"IF('Blank - Request Form'!$F$6=\"CICSA\",IF('Blank - Request Form'!K68=0,\"\",'Blank - Request Form'!K68),IF('Blank - Request Form'!$F$7=\"CICSA\",IF('Blank - Request Form'!T68=0,\"\",'Blank - Request Form'!T68),\"\"))","v":""},null,null,null,{"$f":"IF(M34<>\"\",'Blank - Request Form'!$M$2,\"\")","v":""},{"$f":"IF('Blank - Request Form'!$F$6=\"CICSA\",IF('Blank - Request Form'!J68=0,\"\",'Blank - Request Form'!J68),IF('Blank - Request Form'!$F$7=\"CICSA\",IF('Blank - Request Form'!S68=0,\"\",'Blank - Request Form'!S68),\"\"))","v":""},"",34]
[{"$f":"IF('Blank - Request Form'!$F$6=\"CICSA\",IF('Blank - Request Form'!D69=0,\"\",'Blank - Request Form'!D69),IF('Blank - Request Form'!$F$7=\"CICSA\",IF('Blank - Request Form'!M69=0,\"\",'Blank - Request Form'!M69),\"\"))","v":""},{"$f":"IF('Blank - Request Form'!$F$6=\"CICSA\",IF('Blank - Request Form'!E69=0,\"\",'Blank - Request Form'!E69),IF('Blank - Request Form'!$F$7=\"CICSA\",IF('Blank - Request Form'!N69=0,\"\",'Blank - Request Form'!N69),\"\"))","v":""},{"$f":"IF('Blank - Request Form'!$F$6=\"CICSA\",IF(OR('Blank - Request Form'!F69=\"000\",'Blank - Request Form'!F69=0),\"\",'Blank - Request Form'!F69),IF('Blank - Request Form'!$F$7=\"CICSA\",IF(OR('Blank - Request Form'!O69=\"000\",'Blank - Request Form'!O69=0),\"\",'Blank - Request Form'!O69),\"\"))","v":""},{"$f":"IF('Blank - Request Form'!$F$6=\"CICSA\",IF(OR('Blank - Request Form'!G69=\"0\",'Blank - Request Form'!G69=\"00000\",'Blank - Request Form'!G69=0),\"\",'Blank - Request Form'!G69),IF('Blank - Request Form'!$F$7=\"CICSA\",IF(OR('Blank - Request Form'!P69=\"0\",'Blank - Request Form'!P69=\"00000\",'Blank - Request Form'!P69=0),\"\",'Blank - Request Form'!P69),\"\"))","v":""},{"$f":"IF('Blank - Request Form'!$F$6=\"CICSA\",IF(OR('Blank - Request Form'!H69=\"0\",'Blank - Request Form'!H69=\"00000\",'Blank - Request Form'!H69=0),\"\",'Blank - Request Form'!H69),IF('Blank - Request Form'!$F$7=\"CICSA\",IF(OR('Blank - Request Form'!Q69=\"0\",'Blank - Request Form'!Q69=\"00000\",'Blank - Request Form'!Q69=0),\"\",'Blank - Request Form'!Q69),\"\"))","v":""},{"$f":"IF('Blank - Request Form'!$F$6=\"CICSA\",IF(OR('Blank - Request Form'!I69=\"0\",'Blank - Request Form'!I69=\"00000\",'Blank - Request Form'!I69=0),\"\",'Blank - Request Form'!I69),IF('Blank - Request Form'!$F$7=\"CICSA\",IF(OR('Blank - Request Form'!R69=\"0\",'Blank - Request Form'!R69=\"00000\",'Blank - Request Form'!R69=0),\"\",'Blank - Request Form'!R69),\"\"))","v":""},null,{"$f":"IF('Blank - Request Form'!$F$6=\"CICSA\",IF('Blank - Request Form'!K69=0,\"\",'Blank - Request Form'!K69),IF('Blank - Request Form'!$F$7=\"CICSA\",IF('Blank - Request Form'!T69=0,\"\",'Blank - Request Form'!T69),\"\"))","v":""},null,null,null,{"$f":"IF(M35<>\"\",'Blank - Request Form'!$M$2,\"\")","v":""},{"$f":"IF('Blank - Request Form'!$F$6=\"CICSA\",IF('Blank - Request Form'!J69=0,\"\",'Blank - Request Form'!J69),IF('Blank - Request Form'!$F$7=\"CICSA\",IF('Blank - Request Form'!S69=0,\"\",'Blank - Request Form'!S69),\"\"))","v":""},"",35]
[{"$f":"IF('Blank - Request Form'!$F$6=\"CICSA\",IF('Blank - Request Form'!D70=0,\"\",'Blank - Request Form'!D70),IF('Blank - Request Form'!$F$7=\"CICSA\",IF('Blank - Request Form'!M70=0,\"\",'Blank - Request Form'!M70),\"\"))","v":""},{"$f":"IF('Blank - Request Form'!$F$6=\"CICSA\",IF('Blank - Request Form'!E70=0,\"\",'Blank - Request Form'!E70),IF('Blank - Request Form'!$F$7=\"CICSA\",IF('Blank - Request Form'!N70=0,\"\",'Blank - Request Form'!N70),\"\"))","v":""},{"$f":"IF('Blank - Request Form'!$F$6=\"CICSA\",IF(OR('Blank - Request Form'!F70=\"000\",'Blank - Request Form'!F70=0),\"\",'Blank - Request Form'!F70),IF('Blank - Request Form'!$F$7=\"CICSA\",IF(OR('Blank - Request Form'!O70=\"000\",'Blank - Request Form'!O70=0),\"\",'Blank - Request Form'!O70),\"\"))","v":""},{"$f":"IF('Blank - Request Form'!$F$6=\"CICSA\",IF(OR('Blank - Request Form'!G70=\"0\",'Blank - Request Form'!G70=\"00000\",'Blank - Request Form'!G70=0),\"\",'Blank - Request Form'!G70),IF('Blank - Request Form'!$F$7=\"CICSA\",IF(OR('Blank - Request Form'!P70=\"0\",'Blank - Request Form'!P70=\"00000\",'Blank - Request Form'!P70=0),\"\",'Blank - Request Form'!P70),\"\"))","v":""},{"$f":"IF('Blank - Request Form'!$F$6=\"CICSA\",IF(OR('Blank - Request Form'!H70=\"0\",'Blank - Request Form'!H70=\"00000\",'Blank - Request Form'!H70=0),\"\",'Blank - Request Form'!H70),IF('Blank - Request Form'!$F$7=\"CICSA\",IF(OR('Blank - Request Form'!Q70=\"0\",'Blank - Request Form'!Q70=\"00000\",'Blank - Request Form'!Q70=0),\"\",'Blank - Request Form'!Q70),\"\"))","v":""},{"$f":"IF('Blank - Request Form'!$F$6=\"CICSA\",IF(OR('Blank - Request Form'!I70=\"0\",'Blank - Request Form'!I70=\"00000\",'Blank - Request Form'!I70=0),\"\",'Blank - Request Form'!I70),IF('Blank - Request Form'!$F$7=\"CICSA\",IF(OR('Blank - Request Form'!R70=\"0\",'Blank - Request Form'!R70=\"00000\",'Blank - Request Form'!R70=0),\"\",'Blank - Request Form'!R70),\"\"))","v":""},null,{"$f":"IF('Blank - Request Form'!$F$6=\"CICSA\",IF('Blank - Request Form'!K70=0,\"\",'Blank - Request Form'!K70),IF('Blank - Request Form'!$F$7=\"CICSA\",IF('Blank - Request Form'!T70=0,\"\",'Blank - Request Form'!T70),\"\"))","v":""},null,null,null,{"$f":"IF(M36<>\"\",'Blank - Request Form'!$M$2,\"\")","v":""},{"$f":"IF('Blank - Request Form'!$F$6=\"CICSA\",IF('Blank - Request Form'!J70=0,\"\",'Blank - Request Form'!J70),IF('Blank - Request Form'!$F$7=\"CICSA\",IF('Blank - Request Form'!S70=0,\"\",'Blank - Request Form'!S70),\"\"))","v":""},"",36]
[{"$f":"IF('Blank - Request Form'!$F$6=\"CICSA\",IF('Blank - Request Form'!D71=0,\"\",'Blank - Request Form'!D71),IF('Blank - Request Form'!$F$7=\"CICSA\",IF('Blank - Request Form'!M71=0,\"\",'Blank - Request Form'!M71),\"\"))","v":""},{"$f":"IF('Blank - Request Form'!$F$6=\"CICSA\",IF('Blank - Request Form'!E71=0,\"\",'Blank - Request Form'!E71),IF('Blank - Request Form'!$F$7=\"CICSA\",IF('Blank - Request Form'!N71=0,\"\",'Blank - Request Form'!N71),\"\"))","v":""},{"$f":"IF('Blank - Request Form'!$F$6=\"CICSA\",IF(OR('Blank - Request Form'!F71=\"000\",'Blank - Request Form'!F71=0),\"\",'Blank - Request Form'!F71),IF('Blank - Request Form'!$F$7=\"CICSA\",IF(OR('Blank - Request Form'!O71=\"000\",'Blank - Request Form'!O71=0),\"\",'Blank - Request Form'!O71),\"\"))","v":""},{"$f":"IF('Blank - Request Form'!$F$6=\"CICSA\",IF(OR('Blank - Request Form'!G71=\"0\",'Blank - Request Form'!G71=\"00000\",'Blank - Request Form'!G71=0),\"\",'Blank - Request Form'!G71),IF('Blank - Request Form'!$F$7=\"CICSA\",IF(OR('Blank - Request Form'!P71=\"0\",'Blank - Request Form'!P71=\"00000\",'Blank - Request Form'!P71=0),\"\",'Blank - Request Form'!P71),\"\"))","v":""},{"$f":"IF('Blank - Request Form'!$F$6=\"CICSA\",IF(OR('Blank - Request Form'!H71=\"0\",'Blank - Request Form'!H71=\"00000\",'Blank - Request Form'!H71=0),\"\",'Blank - Request Form'!H71),IF('Blank - Request Form'!$F$7=\"CICSA\",IF(OR('Blank - Request Form'!Q71=\"0\",'Blank - Request Form'!Q71=\"00000\",'Blank - Request Form'!Q71=0),\"\",'Blank - Request Form'!Q71),\"\"))","v":""},{"$f":"IF('Blank - Request Form'!$F$6=\"CICSA\",IF(OR('Blank - Request Form'!I71=\"0\",'Blank - Request Form'!I71=\"00000\",'Blank - Request Form'!I71=0),\"\",'Blank - Request Form'!I71),IF('Blank - Request Form'!$F$7=\"CICSA\",IF(OR('Blank - Request Form'!R71=\"0\",'Blank - Request Form'!R71=\"00000\",'Blank - Request Form'!R71=0),\"\",'Blank - Request Form'!R71),\"\"))","v":""},null,{"$f":"IF('Blank - Request Form'!$F$6=\"CICSA\",IF('Blank - Request Form'!K71=0,\"\",'Blank - Request Form'!K71),IF('Blank - Request Form'!$F$7=\"CICSA\",IF('Blank - Request Form'!T71=0,\"\",'Blank - Request Form'!T71),\"\"))","v":""},null,null,null,{"$f":"IF(M37<>\"\",'Blank - Request Form'!$M$2,\"\")","v":""},{"$f":"IF('Blank - Request Form'!$F$6=\"CICSA\",IF('Blank - Request Form'!J71=0,\"\",'Blank - Request Form'!J71),IF('Blank - Request Form'!$F$7=\"CICSA\",IF('Blank - Request Form'!S71=0,\"\",'Blank - Request Form'!S71),\"\"))","v":""},"",37]
[{"$f":"IF('Blank - Request Form'!$F$6=\"CICSA\",IF('Blank - Request Form'!D72=0,\"\",'Blank - Request Form'!D72),IF('Blank - Request Form'!$F$7=\"CICSA\",IF('Blank - Request Form'!M72=0,\"\",'Blank - Request Form'!M72),\"\"))","v":""},{"$f":"IF('Blank - Request Form'!$F$6=\"CICSA\",IF('Blank - Request Form'!E72=0,\"\",'Blank - Request Form'!E72),IF('Blank - Request Form'!$F$7=\"CICSA\",IF('Blank - Request Form'!N72=0,\"\",'Blank - Request Form'!N72),\"\"))","v":""},{"$f":"IF('Blank - Request Form'!$F$6=\"CICSA\",IF(OR('Blank - Request Form'!F72=\"000\",'Blank - Request Form'!F72=0),\"\",'Blank - Request Form'!F72),IF('Blank - Request Form'!$F$7=\"CICSA\",IF(OR('Blank - Request Form'!O72=\"000\",'Blank - Request Form'!O72=0),\"\",'Blank - Request Form'!O72),\"\"))","v":""},{"$f":"IF('Blank - Request Form'!$F$6=\"CICSA\",IF(OR('Blank - Request Form'!G72=\"0\",'Blank - Request Form'!G72=\"00000\",'Blank - Request Form'!G72=0),\"\",'Blank - Request Form'!G72),IF('Blank - Request Form'!$F$7=\"CICSA\",IF(OR('Blank - Request Form'!P72=\"0\",'Blank - Request Form'!P72=\"00000\",'Blank - Request Form'!P72=0),\"\",'Blank - Request Form'!P72),\"\"))","v":""},{"$f":"IF('Blank - Request Form'!$F$6=\"CICSA\",IF(OR('Blank - Request Form'!H72=\"0\",'Blank - Request Form'!H72=\"00000\",'Blank - Request Form'!H72=0),\"\",'Blank - Request Form'!H72),IF('Blank - Request Form'!$F$7=\"CICSA\",IF(OR('Blank - Request Form'!Q72=\"0\",'Blank - Request Form'!Q72=\"00000\",'Blank - Request Form'!Q72=0),\"\",'Blank - Request Form'!Q72),\"\"))","v":""},{"$f":"IF('Blank - Request Form'!$F$6=\"CICSA\",IF(OR('Blank - Request Form'!I72=\"0\",'Blank - Request Form'!I72=\"00000\",'Blank - Request Form'!I72=0),\"\",'Blank - Request Form'!I72),IF('Blank - Request Form'!$F$7=\"CICSA\",IF(OR('Blank - Request Form'!R72=\"0\",'Blank - Request Form'!R72=\"00000\",'Blank - Request Form'!R72=0),\"\",'Blank - Request Form'!R72),\"\"))","v":""},null,{"$f":"IF('Blank - Request Form'!$F$6=\"CICSA\",IF('Blank - Request Form'!K72=0,\"\",'Blank - Request Form'!K72),IF('Blank - Request Form'!$F$7=\"CICSA\",IF('Blank - Request Form'!T72=0,\"\",'Blank - Request Form'!T72),\"\"))","v":""},null,null,null,{"$f":"IF(M38<>\"\",'Blank - Request Form'!$M$2,\"\")","v":""},{"$f":"IF('Blank - Request Form'!$F$6=\"CICSA\",IF('Blank - Request Form'!J72=0,\"\",'Blank - Request Form'!J72),IF('Blank - Request Form'!$F$7=\"CICSA\",IF('Blank - Request Form'!S72=0,\"\",'Blank - Request Form'!S72),\"\"))","v":""},"",38]
[{"$f":"IF('Blank - Request Form'!$F$6=\"CICSA\",IF('Blank - Request Form'!D73=0,\"\",'Blank - Request Form'!D73),IF('Blank - Request Form'!$F$7=\"CICSA\",IF('Blank - Request Form'!M73=0,\"\",'Blank - Request Form'!M73),\"\"))","v":""},{"$f":"IF('Blank - Request Form'!$F$6=\"CICSA\",IF('Blank - Request Form'!E73=0,\"\",'Blank - Request Form'!E73),IF('Blank - Request Form'!$F$7=\"CICSA\",IF('Blank - Request Form'!N73=0,\"\",'Blank - Request Form'!N73),\"\"))","v":""},{"$f":"IF('Blank - Request Form'!$F$6=\"CICSA\",IF(OR('Blank - Request Form'!F73=\"000\",'Blank - Request Form'!F73=0),\"\",'Blank - Request Form'!F73),IF('Blank - Request Form'!$F$7=\"CICSA\",IF(OR('Blank - Request Form'!O73=\"000\",'Blank - Request Form'!O73=0),\"\",'Blank - Request Form'!O73),\"\"))","v":""},{"$f":"IF('Blank - Request Form'!$F$6=\"CICSA\",IF(OR('Blank - Request Form'!G73=\"0\",'Blank - Request Form'!G73=\"00000\",'Blank - Request Form'!G73=0),\"\",'Blank - Request Form'!G73),IF('Blank - Request Form'!$F$7=\"CICSA\",IF(OR('Blank - Request Form'!P73=\"0\",'Blank - Request Form'!P73=\"00000\",'Blank - Request Form'!P73=0),\"\",'Blank - Request Form'!P73),\"\"))","v":""},{"$f":"IF('Blank - Request Form'!$F$6=\"CICSA\",IF(OR('Blank - Request Form'!H73=\"0\",'Blank - Request Form'!H73=\"00000\",'Blank - Request Form'!H73=0),\"\",'Blank - Request Form'!H73),IF('Blank - Request Form'!$F$7=\"CICSA\",IF(OR('Blank - Request Form'!Q73=\"0\",'Blank - Request Form'!Q73=\"00000\",'Blank - Request Form'!Q73=0),\"\",'Blank - Request Form'!Q73),\"\"))","v":""},{"$f":"IF('Blank - Request Form'!$F$6=\"CICSA\",IF(OR('Blank - Request Form'!I73=\"0\",'Blank - Request Form'!I73=\"00000\",'Blank - Request Form'!I73=0),\"\",'Blank - Request Form'!I73),IF('Blank - Request Form'!$F$7=\"CICSA\",IF(OR('Blank - Request Form'!R73=\"0\",'Blank - Request Form'!R73=\"00000\",'Blank - Request Form'!R73=0),\"\",'Blank - Request Form'!R73),\"\"))","v":""},null,{"$f":"IF('Blank - Request Form'!$F$6=\"CICSA\",IF('Blank - Request Form'!K73=0,\"\",'Blank - Request Form'!K73),IF('Blank - Request Form'!$F$7=\"CICSA\",IF('Blank - Request Form'!T73=0,\"\",'Blank - Request Form'!T73),\"\"))","v":""},null,null,null,{"$f":"IF(M39<>\"\",'Blank - Request Form'!$M$2,\"\")","v":""},{"$f":"IF('Blank - Request Form'!$F$6=\"CICSA\",IF('Blank - Request Form'!J73=0,\"\",'Blank - Request Form'!J73),IF('Blank - Request Form'!$F$7=\"CICSA\",IF('Blank - Request Form'!S73=0,\"\",'Blank - Request Form'!S73),\"\"))","v":""},"",39]
[{"$f":"IF('Blank - Request Form'!$F$6=\"CICSA\",IF('Blank - Request Form'!D74=0,\"\",'Blank - Request Form'!D74),IF('Blank - Request Form'!$F$7=\"CICSA\",IF('Blank - Request Form'!M74=0,\"\",'Blank - Request Form'!M74),\"\"))","v":""},{"$f":"IF('Blank - Request Form'!$F$6=\"CICSA\",IF('Blank - Request Form'!E74=0,\"\",'Blank - Request Form'!E74),IF('Blank - Request Form'!$F$7=\"CICSA\",IF('Blank - Request Form'!N74=0,\"\",'Blank - Request Form'!N74),\"\"))","v":""},{"$f":"IF('Blank - Request Form'!$F$6=\"CICSA\",IF(OR('Blank - Request Form'!F74=\"000\",'Blank - Request Form'!F74=0),\"\",'Blank - Request Form'!F74),IF('Blank - Request Form'!$F$7=\"CICSA\",IF(OR('Blank - Request Form'!O74=\"000\",'Blank - Request Form'!O74=0),\"\",'Blank - Request Form'!O74),\"\"))","v":""},{"$f":"IF('Blank - Request Form'!$F$6=\"CICSA\",IF(OR('Blank - Request Form'!G74=\"0\",'Blank - Request Form'!G74=\"00000\",'Blank - Request Form'!G74=0),\"\",'Blank - Request Form'!G74),IF('Blank - Request Form'!$F$7=\"CICSA\",IF(OR('Blank - Request Form'!P74=\"0\",'Blank - Request Form'!P74=\"00000\",'Blank - Request Form'!P74=0),\"\",'Blank - Request Form'!P74),\"\"))","v":""},{"$f":"IF('Blank - Request Form'!$F$6=\"CICSA\",IF(OR('Blank - Request Form'!H74=\"0\",'Blank - Request Form'!H74=\"00000\",'Blank - Request Form'!H74=0),\"\",'Blank - Request Form'!H74),IF('Blank - Request Form'!$F$7=\"CICSA\",IF(OR('Blank - Request Form'!Q74=\"0\",'Blank - Request Form'!Q74=\"00000\",'Blank - Request Form'!Q74=0),\"\",'Blank - Request Form'!Q74),\"\"))","v":""},{"$f":"IF('Blank - Request Form'!$F$6=\"CICSA\",IF(OR('Blank - Request Form'!I74=\"0\",'Blank - Request Form'!I74=\"00000\",'Blank - Request Form'!I74=0),\"\",'Blank - Request Form'!I74),IF('Blank - Request Form'!$F$7=\"CICSA\",IF(OR('Blank - Request Form'!R74=\"0\",'Blank - Request Form'!R74=\"00000\",'Blank - Request Form'!R74=0),\"\",'Blank - Request Form'!R74),\"\"))","v":""},null,{"$f":"IF('Blank - Request Form'!$F$6=\"CICSA\",IF('Blank - Request Form'!K74=0,\"\",'Blank - Request Form'!K74),IF('Blank - Request Form'!$F$7=\"CICSA\",IF('Blank - Request Form'!T74=0,\"\",'Blank - Request Form'!T74),\"\"))","v":""},null,null,null,{"$f":"IF(M40<>\"\",'Blank - Request Form'!$M$2,\"\")","v":""},{"$f":"IF('Blank - Request Form'!$F$6=\"CICSA\",IF('Blank - Request Form'!J74=0,\"\",'Blank - Request Form'!J74),IF('Blank - Request Form'!$F$7=\"CICSA\",IF('Blank - Request Form'!S74=0,\"\",'Blank - Request Form'!S74),\"\"))","v":""},"",40]
[{"$f":"IF('Blank - Request Form'!$F$6=\"CICSA\",IF('Blank - Request Form'!D75=0,\"\",'Blank - Request Form'!D75),IF('Blank - Request Form'!$F$7=\"CICSA\",IF('Blank - Request Form'!M75=0,\"\",'Blank - Request Form'!M75),\"\"))","v":""},{"$f":"IF('Blank - Request Form'!$F$6=\"CICSA\",IF('Blank - Request Form'!E75=0,\"\",'Blank - Request Form'!E75),IF('Blank - Request Form'!$F$7=\"CICSA\",IF('Blank - Request Form'!N75=0,\"\",'Blank - Request Form'!N75),\"\"))","v":""},{"$f":"IF('Blank - Request Form'!$F$6=\"CICSA\",IF(OR('Blank - Request Form'!F75=\"000\",'Blank - Request Form'!F75=0),\"\",'Blank - Request Form'!F75),IF('Blank - Request Form'!$F$7=\"CICSA\",IF(OR('Blank - Request Form'!O75=\"000\",'Blank - Request Form'!O75=0),\"\",'Blank - Request Form'!O75),\"\"))","v":""},{"$f":"IF('Blank - Request Form'!$F$6=\"CICSA\",IF(OR('Blank - Request Form'!G75=\"0\",'Blank - Request Form'!G75=\"00000\",'Blank - Request Form'!G75=0),\"\",'Blank - Request Form'!G75),IF('Blank - Request Form'!$F$7=\"CICSA\",IF(OR('Blank - Request Form'!P75=\"0\",'Blank - Request Form'!P75=\"00000\",'Blank - Request Form'!P75=0),\"\",'Blank - Request Form'!P75),\"\"))","v":""},{"$f":"IF('Blank - Request Form'!$F$6=\"CICSA\",IF(OR('Blank - Request Form'!H75=\"0\",'Blank - Request Form'!H75=\"00000\",'Blank - Request Form'!H75=0),\"\",'Blank - Request Form'!H75),IF('Blank - Request Form'!$F$7=\"CICSA\",IF(OR('Blank - Request Form'!Q75=\"0\",'Blank - Request Form'!Q75=\"00000\",'Blank - Request Form'!Q75=0),\"\",'Blank - Request Form'!Q75),\"\"))","v":""},{"$f":"IF('Blank - Request Form'!$F$6=\"CICSA\",IF(OR('Blank - Request Form'!I75=\"0\",'Blank - Request Form'!I75=\"00000\",'Blank - Request Form'!I75=0),\"\",'Blank - Request Form'!I75),IF('Blank - Request Form'!$F$7=\"CICSA\",IF(OR('Blank - Request Form'!R75=\"0\",'Blank - Request Form'!R75=\"00000\",'Blank - Request Form'!R75=0),\"\",'Blank - Request Form'!R75),\"\"))","v":""},null,{"$f":"IF('Blank - Request Form'!$F$6=\"CICSA\",IF('Blank - Request Form'!K75=0,\"\",'Blank - Request Form'!K75),IF('Blank - Request Form'!$F$7=\"CICSA\",IF('Blank - Request Form'!T75=0,\"\",'Blank - Request Form'!T75),\"\"))","v":""},null,null,null,{"$f":"IF(M41<>\"\",'Blank - Request Form'!$M$2,\"\")","v":""},{"$f":"IF('Blank - Request Form'!$F$6=\"CICSA\",IF('Blank - Request Form'!J75=0,\"\",'Blank - Request Form'!J75),IF('Blank - Request Form'!$F$7=\"CICSA\",IF('Blank - Request Form'!S75=0,\"\",'Blank - Request Form'!S75),\"\"))","v":""},"",41]
[{"$f":"IF('Blank - Request Form'!$F$6=\"CICSA\",IF('Blank - Request Form'!D76=0,\"\",'Blank - Request Form'!D76),IF('Blank - Request Form'!$F$7=\"CICSA\",IF('Blank - Request Form'!M76=0,\"\",'Blank - Request Form'!M76),\"\"))","v":""},{"$f":"IF('Blank - Request Form'!$F$6=\"CICSA\",IF('Blank - Request Form'!E76=0,\"\",'Blank - Request Form'!E76),IF('Blank - Request Form'!$F$7=\"CICSA\",IF('Blank - Request Form'!N76=0,\"\",'Blank - Request Form'!N76),\"\"))","v":""},{"$f":"IF('Blank - Request Form'!$F$6=\"CICSA\",IF(OR('Blank - Request Form'!F76=\"000\",'Blank - Request Form'!F76=0),\"\",'Blank - Request Form'!F76),IF('Blank - Request Form'!$F$7=\"CICSA\",IF(OR('Blank - Request Form'!O76=\"000\",'Blank - Request Form'!O76=0),\"\",'Blank - Request Form'!O76),\"\"))","v":""},{"$f":"IF('Blank - Request Form'!$F$6=\"CICSA\",IF(OR('Blank - Request Form'!G76=\"0\",'Blank - Request Form'!G76=\"00000\",'Blank - Request Form'!G76=0),\"\",'Blank - Request Form'!G76),IF('Blank - Request Form'!$F$7=\"CICSA\",IF(OR('Blank - Request Form'!P76=\"0\",'Blank - Request Form'!P76=\"00000\",'Blank - Request Form'!P76=0),\"\",'Blank - Request Form'!P76),\"\"))","v":""},{"$f":"IF('Blank - Request Form'!$F$6=\"CICSA\",IF(OR('Blank - Request Form'!H76=\"0\",'Blank - Request Form'!H76=\"00000\",'Blank - Request Form'!H76=0),\"\",'Blank - Request Form'!H76),IF('Blank - Request Form'!$F$7=\"CICSA\",IF(OR('Blank - Request Form'!Q76=\"0\",'Blank - Request Form'!Q76=\"00000\",'Blank - Request Form'!Q76=0),\"\",'Blank - Request Form'!Q76),\"\"))","v":""},{"$f":"IF('Blank - Request Form'!$F$6=\"CICSA\",IF(OR('Blank - Request Form'!I76=\"0\",'Blank - Request Form'!I76=\"00000\",'Blank - Request Form'!I76=0),\"\",'Blank - Request Form'!I76),IF('Blank - Request Form'!$F$7=\"CICSA\",IF(OR('Blank - Request Form'!R76=\"0\",'Blank - Request Form'!R76=\"00000\",'Blank - Request Form'!R76=0),\"\",'Blank - Request Form'!R76),\"\"))","v":""},null,{"$f":"IF('Blank - Request Form'!$F$6=\"CICSA\",IF('Blank - Request Form'!K76=0,\"\",'Blank - Request Form'!K76),IF('Blank - Request Form'!$F$7=\"CICSA\",IF('Blank - Request Form'!T76=0,\"\",'Blank - Request Form'!T76),\"\"))","v":""},null,null,null,{"$f":"IF(M42<>\"\",'Blank - Request Form'!$M$2,\"\")","v":""},{"$f":"IF('Blank - Request Form'!$F$6=\"CICSA\",IF('Blank - Request Form'!J76=0,\"\",'Blank - Request Form'!J76),IF('Blank - Request Form'!$F$7=\"CICSA\",IF('Blank - Request Form'!S76=0,\"\",'Blank - Request Form'!S76),\"\"))","v":""},"",42]
[{"$f":"IF('Blank - Request Form'!$F$6=\"CICSA\",IF('Blank - Request Form'!D77=0,\"\",'Blank - Request Form'!D77),IF('Blank - Request Form'!$F$7=\"CICSA\",IF('Blank - Request Form'!M77=0,\"\",'Blank - Request Form'!M77),\"\"))","v":""},{"$f":"IF('Blank - Request Form'!$F$6=\"CICSA\",IF('Blank - Request Form'!E77=0,\"\",'Blank - Request Form'!E77),IF('Blank - Request Form'!$F$7=\"CICSA\",IF('Blank - Request Form'!N77=0,\"\",'Blank - Request Form'!N77),\"\"))","v":""},{"$f":"IF('Blank - Request Form'!$F$6=\"CICSA\",IF(OR('Blank - Request Form'!F77=\"000\",'Blank - Request Form'!F77=0),\"\",'Blank - Request Form'!F77),IF('Blank - Request Form'!$F$7=\"CICSA\",IF(OR('Blank - Request Form'!O77=\"000\",'Blank - Request Form'!O77=0),\"\",'Blank - Request Form'!O77),\"\"))","v":""},{"$f":"IF('Blank - Request Form'!$F$6=\"CICSA\",IF(OR('Blank - Request Form'!G77=\"0\",'Blank - Request Form'!G77=\"00000\",'Blank - Request Form'!G77=0),\"\",'Blank - Request Form'!G77),IF('Blank - Request Form'!$F$7=\"CICSA\",IF(OR('Blank - Request Form'!P77=\"0\",'Blank - Request Form'!P77=\"00000\",'Blank - Request Form'!P77=0),\"\",'Blank - Request Form'!P77),\"\"))","v":""},{"$f":"IF('Blank - Request Form'!$F$6=\"CICSA\",IF(OR('Blank - Request Form'!H77=\"0\",'Blank - Request Form'!H77=\"00000\",'Blank - Request Form'!H77=0),\"\",'Blank - Request Form'!H77),IF('Blank - Request Form'!$F$7=\"CICSA\",IF(OR('Blank - Request Form'!Q77=\"0\",'Blank - Request Form'!Q77=\"00000\",'Blank - Request Form'!Q77=0),\"\",'Blank - Request Form'!Q77),\"\"))","v":""},{"$f":"IF('Blank - Request Form'!$F$6=\"CICSA\",IF(OR('Blank - Request Form'!I77=\"0\",'Blank - Request Form'!I77=\"00000\",'Blank - Request Form'!I77=0),\"\",'Blank - Request Form'!I77),IF('Blank - Request Form'!$F$7=\"CICSA\",IF(OR('Blank - Request Form'!R77=\"0\",'Blank - Request Form'!R77=\"00000\",'Blank - Request Form'!R77=0),\"\",'Blank - Request Form'!R77),\"\"))","v":""},null,{"$f":"IF('Blank - Request Form'!$F$6=\"CICSA\",IF('Blank - Request Form'!K77=0,\"\",'Blank - Request Form'!K77),IF('Blank - Request Form'!$F$7=\"CICSA\",IF('Blank - Request Form'!T77=0,\"\",'Blank - Request Form'!T77),\"\"))","v":""},null,null,null,{"$f":"IF(M43<>\"\",'Blank - Request Form'!$M$2,\"\")","v":""},{"$f":"IF('Blank - Request Form'!$F$6=\"CICSA\",IF('Blank - Request Form'!J77=0,\"\",'Blank - Request Form'!J77),IF('Blank - Request Form'!$F$7=\"CICSA\",IF('Blank - Request Form'!S77=0,\"\",'Blank - Request Form'!S77),\"\"))","v":""},"",43]
[{"$f":"IF('Blank - Request Form'!$F$6=\"CICSA\",IF('Blank - Request Form'!D78=0,\"\",'Blank - Request Form'!D78),IF('Blank - Request Form'!$F$7=\"CICSA\",IF('Blank - Request Form'!M78=0,\"\",'Blank - Request Form'!M78),\"\"))","v":""},{"$f":"IF('Blank - Request Form'!$F$6=\"CICSA\",IF('Blank - Request Form'!E78=0,\"\",'Blank - Request Form'!E78),IF('Blank - Request Form'!$F$7=\"CICSA\",IF('Blank - Request Form'!N78=0,\"\",'Blank - Request Form'!N78),\"\"))","v":""},{"$f":"IF('Blank - Request Form'!$F$6=\"CICSA\",IF(OR('Blank - Request Form'!F78=\"000\",'Blank - Request Form'!F78=0),\"\",'Blank - Request Form'!F78),IF('Blank - Request Form'!$F$7=\"CICSA\",IF(OR('Blank - Request Form'!O78=\"000\",'Blank - Request Form'!O78=0),\"\",'Blank - Request Form'!O78),\"\"))","v":""},{"$f":"IF('Blank - Request Form'!$F$6=\"CICSA\",IF(OR('Blank - Request Form'!G78=\"0\",'Blank - Request Form'!G78=\"00000\",'Blank - Request Form'!G78=0),\"\",'Blank - Request Form'!G78),IF('Blank - Request Form'!$F$7=\"CICSA\",IF(OR('Blank - Request Form'!P78=\"0\",'Blank - Request Form'!P78=\"00000\",'Blank - Request Form'!P78=0),\"\",'Blank - Request Form'!P78),\"\"))","v":""},{"$f":"IF('Blank - Request Form'!$F$6=\"CICSA\",IF(OR('Blank - Request Form'!H78=\"0\",'Blank - Request Form'!H78=\"00000\",'Blank - Request Form'!H78=0),\"\",'Blank - Request Form'!H78),IF('Blank - Request Form'!$F$7=\"CICSA\",IF(OR('Blank - Request Form'!Q78=\"0\",'Blank - Request Form'!Q78=\"00000\",'Blank - Request Form'!Q78=0),\"\",'Blank - Request Form'!Q78),\"\"))","v":""},{"$f":"IF('Blank - Request Form'!$F$6=\"CICSA\",IF(OR('Blank - Request Form'!I78=\"0\",'Blank - Request Form'!I78=\"00000\",'Blank - Request Form'!I78=0),\"\",'Blank - Request Form'!I78),IF('Blank - Request Form'!$F$7=\"CICSA\",IF(OR('Blank - Request Form'!R78=\"0\",'Blank - Request Form'!R78=\"00000\",'Blank - Request Form'!R78=0),\"\",'Blank - Request Form'!R78),\"\"))","v":""},null,{"$f":"IF('Blank - Request Form'!$F$6=\"CICSA\",IF('Blank - Request Form'!K78=0,\"\",'Blank - Request Form'!K78),IF('Blank - Request Form'!$F$7=\"CICSA\",IF('Blank - Request Form'!T78=0,\"\",'Blank - Request Form'!T78),\"\"))","v":""},null,null,null,{"$f":"IF(M44<>\"\",'Blank - Request Form'!$M$2,\"\")","v":""},{"$f":"IF('Blank - Request Form'!$F$6=\"CICSA\",IF('Blank - Request Form'!J78=0,\"\",'Blank - Request Form'!J78),IF('Blank - Request Form'!$F$7=\"CICSA\",IF('Blank - Request Form'!S78=0,\"\",'Blank - Request Form'!S78),\"\"))","v":""},"",44]
[{"$f":"IF('Blank - Request Form'!$F$6=\"CICSA\",IF('Blank - Request Form'!D79=0,\"\",'Blank - Request Form'!D79),IF('Blank - Request Form'!$F$7=\"CICSA\",IF('Blank - Request Form'!M79=0,\"\",'Blank - Request Form'!M79),\"\"))","v":""},{"$f":"IF('Blank - Request Form'!$F$6=\"CICSA\",IF('Blank - Request Form'!E79=0,\"\",'Blank - Request Form'!E79),IF('Blank - Request Form'!$F$7=\"CICSA\",IF('Blank - Request Form'!N79=0,\"\",'Blank - Request Form'!N79),\"\"))","v":""},{"$f":"IF('Blank - Request Form'!$F$6=\"CICSA\",IF(OR('Blank - Request Form'!F79=\"000\",'Blank - Request Form'!F79=0),\"\",'Blank - Request Form'!F79),IF('Blank - Request Form'!$F$7=\"CICSA\",IF(OR('Blank - Request Form'!O79=\"000\",'Blank - Request Form'!O79=0),\"\",'Blank - Request Form'!O79),\"\"))","v":""},{"$f":"IF('Blank - Request Form'!$F$6=\"CICSA\",IF(OR('Blank - Request Form'!G79=\"0\",'Blank - Request Form'!G79=\"00000\",'Blank - Request Form'!G79=0),\"\",'Blank - Request Form'!G79),IF('Blank - Request Form'!$F$7=\"CICSA\",IF(OR('Blank - Request Form'!P79=\"0\",'Blank - Request Form'!P79=\"00000\",'Blank - Request Form'!P79=0),\"\",'Blank - Request Form'!P79),\"\"))","v":""},{"$f":"IF('Blank - Request Form'!$F$6=\"CICSA\",IF(OR('Blank - Request Form'!H79=\"0\",'Blank - Request Form'!H79=\"00000\",'Blank - Request Form'!H79=0),\"\",'Blank - Request Form'!H79),IF('Blank - Request Form'!$F$7=\"CICSA\",IF(OR('Blank - Request Form'!Q79=\"0\",'Blank - Request Form'!Q79=\"00000\",'Blank - Request Form'!Q79=0),\"\",'Blank - Request Form'!Q79),\"\"))","v":""},{"$f":"IF('Blank - Request Form'!$F$6=\"CICSA\",IF(OR('Blank - Request Form'!I79=\"0\",'Blank - Request Form'!I79=\"00000\",'Blank - Request Form'!I79=0),\"\",'Blank - Request Form'!I79),IF('Blank - Request Form'!$F$7=\"CICSA\",IF(OR('Blank - Request Form'!R79=\"0\",'Blank - Request Form'!R79=\"00000\",'Blank - Request Form'!R79=0),\"\",'Blank - Request Form'!R79),\"\"))","v":""},null,{"$f":"IF('Blank - Request Form'!$F$6=\"CICSA\",IF('Blank - Request Form'!K79=0,\"\",'Blank - Request Form'!K79),IF('Blank - Request Form'!$F$7=\"CICSA\",IF('Blank - Request Form'!T79=0,\"\",'Blank - Request Form'!T79),\"\"))","v":""},null,null,null,{"$f":"IF(M45<>\"\",'Blank - Request Form'!$M$2,\"\")","v":""},{"$f":"IF('Blank - Request Form'!$F$6=\"CICSA\",IF('Blank - Request Form'!J79=0,\"\",'Blank - Request Form'!J79),IF('Blank - Request Form'!$F$7=\"CICSA\",IF('Blank - Request Form'!S79=0,\"\",'Blank - Request Form'!S79),\"\"))","v":""},"",45]
[{"$f":"IF('Blank - Request Form'!$F$6=\"CICSA\",IF('Blank - Request Form'!D80=0,\"\",'Blank - Request Form'!D80),IF('Blank - Request Form'!$F$7=\"CICSA\",IF('Blank - Request Form'!M80=0,\"\",'Blank - Request Form'!M80),\"\"))","v":""},{"$f":"IF('Blank - Request Form'!$F$6=\"CICSA\",IF('Blank - Request Form'!E80=0,\"\",'Blank - Request Form'!E80),IF('Blank - Request Form'!$F$7=\"CICSA\",IF('Blank - Request Form'!N80=0,\"\",'Blank - Request Form'!N80),\"\"))","v":""},{"$f":"IF('Blank - Request Form'!$F$6=\"CICSA\",IF(OR('Blank - Request Form'!F80=\"000\",'Blank - Request Form'!F80=0),\"\",'Blank - Request Form'!F80),IF('Blank - Request Form'!$F$7=\"CICSA\",IF(OR('Blank - Request Form'!O80=\"000\",'Blank - Request Form'!O80=0),\"\",'Blank - Request Form'!O80),\"\"))","v":""},{"$f":"IF('Blank - Request Form'!$F$6=\"CICSA\",IF(OR('Blank - Request Form'!G80=\"0\",'Blank - Request Form'!G80=\"00000\",'Blank - Request Form'!G80=0),\"\",'Blank - Request Form'!G80),IF('Blank - Request Form'!$F$7=\"CICSA\",IF(OR('Blank - Request Form'!P80=\"0\",'Blank - Request Form'!P80=\"00000\",'Blank - Request Form'!P80=0),\"\",'Blank - Request Form'!P80),\"\"))","v":""},{"$f":"IF('Blank - Request Form'!$F$6=\"CICSA\",IF(OR('Blank - Request Form'!H80=\"0\",'Blank - Request Form'!H80=\"00000\",'Blank - Request Form'!H80=0),\"\",'Blank - Request Form'!H80),IF('Blank - Request Form'!$F$7=\"CICSA\",IF(OR('Blank - Request Form'!Q80=\"0\",'Blank - Request Form'!Q80=\"00000\",'Blank - Request Form'!Q80=0),\"\",'Blank - Request Form'!Q80),\"\"))","v":""},{"$f":"IF('Blank - Request Form'!$F$6=\"CICSA\",IF(OR('Blank - Request Form'!I80=\"0\",'Blank - Request Form'!I80=\"00000\",'Blank - Request Form'!I80=0),\"\",'Blank - Request Form'!I80),IF('Blank - Request Form'!$F$7=\"CICSA\",IF(OR('Blank - Request Form'!R80=\"0\",'Blank - Request Form'!R80=\"00000\",'Blank - Request Form'!R80=0),\"\",'Blank - Request Form'!R80),\"\"))","v":""},null,{"$f":"IF('Blank - Request Form'!$F$6=\"CICSA\",IF('Blank - Request Form'!K80=0,\"\",'Blank - Request Form'!K80),IF('Blank - Request Form'!$F$7=\"CICSA\",IF('Blank - Request Form'!T80=0,\"\",'Blank - Request Form'!T80),\"\"))","v":""},null,null,null,{"$f":"IF(M46<>\"\",'Blank - Request Form'!$M$2,\"\")","v":""},{"$f":"IF('Blank - Request Form'!$F$6=\"CICSA\",IF('Blank - Request Form'!J80=0,\"\",'Blank - Request Form'!J80),IF('Blank - Request Form'!$F$7=\"CICSA\",IF('Blank - Request Form'!S80=0,\"\",'Blank - Request Form'!S80),\"\"))","v":""},"",46]
[{"$f":"IF('Blank - Request Form'!$F$6=\"CICSA\",IF('Blank - Request Form'!D81=0,\"\",'Blank - Request Form'!D81),IF('Blank - Request Form'!$F$7=\"CICSA\",IF('Blank - Request Form'!M81=0,\"\",'Blank - Request Form'!M81),\"\"))","v":""},{"$f":"IF('Blank - Request Form'!$F$6=\"CICSA\",IF('Blank - Request Form'!E81=0,\"\",'Blank - Request Form'!E81),IF('Blank - Request Form'!$F$7=\"CICSA\",IF('Blank - Request Form'!N81=0,\"\",'Blank - Request Form'!N81),\"\"))","v":""},{"$f":"IF('Blank - Request Form'!$F$6=\"CICSA\",IF(OR('Blank - Request Form'!F81=\"000\",'Blank - Request Form'!F81=0),\"\",'Blank - Request Form'!F81),IF('Blank - Request Form'!$F$7=\"CICSA\",IF(OR('Blank - Request Form'!O81=\"000\",'Blank - Request Form'!O81=0),\"\",'Blank - Request Form'!O81),\"\"))","v":""},{"$f":"IF('Blank - Request Form'!$F$6=\"CICSA\",IF(OR('Blank - Request Form'!G81=\"0\",'Blank - Request Form'!G81=\"00000\",'Blank - Request Form'!G81=0),\"\",'Blank - Request Form'!G81),IF('Blank - Request Form'!$F$7=\"CICSA\",IF(OR('Blank - Request Form'!P81=\"0\",'Blank - Request Form'!P81=\"00000\",'Blank - Request Form'!P81=0),\"\",'Blank - Request Form'!P81),\"\"))","v":""},{"$f":"IF('Blank - Request Form'!$F$6=\"CICSA\",IF(OR('Blank - Request Form'!H81=\"0\",'Blank - Request Form'!H81=\"00000\",'Blank - Request Form'!H81=0),\"\",'Blank - Request Form'!H81),IF('Blank - Request Form'!$F$7=\"CICSA\",IF(OR('Blank - Request Form'!Q81=\"0\",'Blank - Request Form'!Q81=\"00000\",'Blank - Request Form'!Q81=0),\"\",'Blank - Request Form'!Q81),\"\"))","v":""},{"$f":"IF('Blank - Request Form'!$F$6=\"CICSA\",IF(OR('Blank - Request Form'!I81=\"0\",'Blank - Request Form'!I81=\"00000\",'Blank - Request Form'!I81=0),\"\",'Blank - Request Form'!I81),IF('Blank - Request Form'!$F$7=\"CICSA\",IF(OR('Blank - Request Form'!R81=\"0\",'Blank - Request Form'!R81=\"00000\",'Blank - Request Form'!R81=0),\"\",'Blank - Request Form'!R81),\"\"))","v":""},null,{"$f":"IF('Blank - Request Form'!$F$6=\"CICSA\",IF('Blank - Request Form'!K81=0,\"\",'Blank - Request Form'!K81),IF('Blank - Request Form'!$F$7=\"CICSA\",IF('Blank - Request Form'!T81=0,\"\",'Blank - Request Form'!T81),\"\"))","v":""},null,null,null,{"$f":"IF(M47<>\"\",'Blank - Request Form'!$M$2,\"\")","v":""},{"$f":"IF('Blank - Request Form'!$F$6=\"CICSA\",IF('Blank - Request Form'!J81=0,\"\",'Blank - Request Form'!J81),IF('Blank - Request Form'!$F$7=\"CICSA\",IF('Blank - Request Form'!S81=0,\"\",'Blank - Request Form'!S81),\"\"))","v":""},{"$f":"IF(M47<>\"\",O47,\"\")","v":""},47]
[{"$f":"IF('Blank - Request Form'!$F$6=\"CICSA\",IF('Blank - Request Form'!D82=0,\"\",'Blank - Request Form'!D82),IF('Blank - Request Form'!$F$7=\"CICSA\",IF('Blank - Request Form'!M82=0,\"\",'Blank - Request Form'!M82),\"\"))","v":""},{"$f":"IF('Blank - Request Form'!$F$6=\"CICSA\",IF('Blank - Request Form'!E82=0,\"\",'Blank - Request Form'!E82),IF('Blank - Request Form'!$F$7=\"CICSA\",IF('Blank - Request Form'!N82=0,\"\",'Blank - Request Form'!N82),\"\"))","v":""},{"$f":"IF('Blank - Request Form'!$F$6=\"CICSA\",IF(OR('Blank - Request Form'!F82=\"000\",'Blank - Request Form'!F82=0),\"\",'Blank - Request Form'!F82),IF('Blank - Request Form'!$F$7=\"CICSA\",IF(OR('Blank - Request Form'!O82=\"000\",'Blank - Request Form'!O82=0),\"\",'Blank - Request Form'!O82),\"\"))","v":""},{"$f":"IF('Blank - Request Form'!$F$6=\"CICSA\",IF(OR('Blank - Request Form'!G82=\"0\",'Blank - Request Form'!G82=\"00000\",'Blank - Request Form'!G82=0),\"\",'Blank - Request Form'!G82),IF('Blank - Request Form'!$F$7=\"CICSA\",IF(OR('Blank - Request Form'!P82=\"0\",'Blank - Request Form'!P82=\"00000\",'Blank - Request Form'!P82=0),\"\",'Blank - Request Form'!P82),\"\"))","v":""},{"$f":"IF('Blank - Request Form'!$F$6=\"CICSA\",IF(OR('Blank - Request Form'!H82=\"0\",'Blank - Request Form'!H82=\"00000\",'Blank - Request Form'!H82=0),\"\",'Blank - Request Form'!H82),IF('Blank - Request Form'!$F$7=\"CICSA\",IF(OR('Blank - Request Form'!Q82=\"0\",'Blank - Request Form'!Q82=\"00000\",'Blank - Request Form'!Q82=0),\"\",'Blank - Request Form'!Q82),\"\"))","v":""},{"$f":"IF('Blank - Request Form'!$F$6=\"CICSA\",IF(OR('Blank - Request Form'!I82=\"0\",'Blank - Request Form'!I82=\"00000\",'Blank - Request Form'!I82=0),\"\",'Blank - Request Form'!I82),IF('Blank - Request Form'!$F$7=\"CICSA\",IF(OR('Blank - Request Form'!R82=\"0\",'Blank - Request Form'!R82=\"00000\",'Blank - Request Form'!R82=0),\"\",'Blank - Request Form'!R82),\"\"))","v":""},null,{"$f":"IF('Blank - Request Form'!$F$6=\"CICSA\",IF('Blank - Request Form'!K82=0,\"\",'Blank - Request Form'!K82),IF('Blank - Request Form'!$F$7=\"CICSA\",IF('Blank - Request Form'!T82=0,\"\",'Blank - Request Form'!T82),\"\"))","v":""},null,null,null,{"$f":"IF(M48<>\"\",'Blank - Request Form'!$M$2,\"\")","v":""},{"$f":"IF('Blank - Request Form'!$F$6=\"CICSA\",IF('Blank - Request Form'!J82=0,\"\",'Blank - Request Form'!J82),IF('Blank - Request Form'!$F$7=\"CICSA\",IF('Blank - Request Form'!S82=0,\"\",'Blank - Request Form'!S82),\"\"))","v":""},"",48]
[{"$f":"IF('Blank - Request Form'!$F$6=\"CICSA\",IF('Blank - Request Form'!D83=0,\"\",'Blank - Request Form'!D83),IF('Blank - Request Form'!$F$7=\"CICSA\",IF('Blank - Request Form'!M83=0,\"\",'Blank - Request Form'!M83),\"\"))","v":""},{"$f":"IF('Blank - Request Form'!$F$6=\"CICSA\",IF('Blank - Request Form'!E83=0,\"\",'Blank - Request Form'!E83),IF('Blank - Request Form'!$F$7=\"CICSA\",IF('Blank - Request Form'!N83=0,\"\",'Blank - Request Form'!N83),\"\"))","v":""},{"$f":"IF('Blank - Request Form'!$F$6=\"CICSA\",IF(OR('Blank - Request Form'!F83=\"000\",'Blank - Request Form'!F83=0),\"\",'Blank - Request Form'!F83),IF('Blank - Request Form'!$F$7=\"CICSA\",IF(OR('Blank - Request Form'!O83=\"000\",'Blank - Request Form'!O83=0),\"\",'Blank - Request Form'!O83),\"\"))","v":""},{"$f":"IF('Blank - Request Form'!$F$6=\"CICSA\",IF(OR('Blank - Request Form'!G83=\"0\",'Blank - Request Form'!G83=\"00000\",'Blank - Request Form'!G83=0),\"\",'Blank - Request Form'!G83),IF('Blank - Request Form'!$F$7=\"CICSA\",IF(OR('Blank - Request Form'!P83=\"0\",'Blank - Request Form'!P83=\"00000\",'Blank - Request Form'!P83=0),\"\",'Blank - Request Form'!P83),\"\"))","v":""},{"$f":"IF('Blank - Request Form'!$F$6=\"CICSA\",IF(OR('Blank - Request Form'!H83=\"0\",'Blank - Request Form'!H83=\"00000\",'Blank - Request Form'!H83=0),\"\",'Blank - Request Form'!H83),IF('Blank - Request Form'!$F$7=\"CICSA\",IF(OR('Blank - Request Form'!Q83=\"0\",'Blank - Request Form'!Q83=\"00000\",'Blank - Request Form'!Q83=0),\"\",'Blank - Request Form'!Q83),\"\"))","v":""},{"$f":"IF('Blank - Request Form'!$F$6=\"CICSA\",IF(OR('Blank - Request Form'!I83=\"0\",'Blank - Request Form'!I83=\"00000\",'Blank - Request Form'!I83=0),\"\",'Blank - Request Form'!I83),IF('Blank - Request Form'!$F$7=\"CICSA\",IF(OR('Blank - Request Form'!R83=\"0\",'Blank - Request Form'!R83=\"00000\",'Blank - Request Form'!R83=0),\"\",'Blank - Request Form'!R83),\"\"))","v":""},null,{"$f":"IF('Blank - Request Form'!$F$6=\"CICSA\",IF('Blank - Request Form'!K83=0,\"\",'Blank - Request Form'!K83),IF('Blank - Request Form'!$F$7=\"CICSA\",IF('Blank - Request Form'!T83=0,\"\",'Blank - Request Form'!T83),\"\"))","v":""},null,null,null,{"$f":"IF(M49<>\"\",'Blank - Request Form'!$M$2,\"\")","v":""},{"$f":"IF('Blank - Request Form'!$F$6=\"CICSA\",IF('Blank - Request Form'!J83=0,\"\",'Blank - Request Form'!J83),IF('Blank - Request Form'!$F$7=\"CICSA\",IF('Blank - Request Form'!S83=0,\"\",'Blank - Request Form'!S83),\"\"))","v":""},"",49]
[{"$f":"IF('Blank - Request Form'!$F$6=\"CICSA\",IF('Blank - Request Form'!D84=0,\"\",'Blank - Request Form'!D84),IF('Blank - Request Form'!$F$7=\"CICSA\",IF('Blank - Request Form'!M84=0,\"\",'Blank - Request Form'!M84),\"\"))","v":""},{"$f":"IF('Blank - Request Form'!$F$6=\"CICSA\",IF('Blank - Request Form'!E84=0,\"\",'Blank - Request Form'!E84),IF('Blank - Request Form'!$F$7=\"CICSA\",IF('Blank - Request Form'!N84=0,\"\",'Blank - Request Form'!N84),\"\"))","v":""},{"$f":"IF('Blank - Request Form'!$F$6=\"CICSA\",IF(OR('Blank - Request Form'!F84=\"000\",'Blank - Request Form'!F84=0),\"\",'Blank - Request Form'!F84),IF('Blank - Request Form'!$F$7=\"CICSA\",IF(OR('Blank - Request Form'!O84=\"000\",'Blank - Request Form'!O84=0),\"\",'Blank - Request Form'!O84),\"\"))","v":""},{"$f":"IF('Blank - Request Form'!$F$6=\"CICSA\",IF(OR('Blank - Request Form'!G84=\"0\",'Blank - Request Form'!G84=\"00000\",'Blank - Request Form'!G84=0),\"\",'Blank - Request Form'!G84),IF('Blank - Request Form'!$F$7=\"CICSA\",IF(OR('Blank - Request Form'!P84=\"0\",'Blank - Request Form'!P84=\"00000\",'Blank - Request Form'!P84=0),\"\",'Blank - Request Form'!P84),\"\"))","v":""},{"$f":"IF('Blank - Request Form'!$F$6=\"CICSA\",IF(OR('Blank - Request Form'!H84=\"0\",'Blank - Request Form'!H84=\"00000\",'Blank - Request Form'!H84=0),\"\",'Blank - Request Form'!H84),IF('Blank - Request Form'!$F$7=\"CICSA\",IF(OR('Blank - Request Form'!Q84=\"0\",'Blank - Request Form'!Q84=\"00000\",'Blank - Request Form'!Q84=0),\"\",'Blank - Request Form'!Q84),\"\"))","v":""},{"$f":"IF('Blank - Request Form'!$F$6=\"CICSA\",IF(OR('Blank - Request Form'!I84=\"0\",'Blank - Request Form'!I84=\"00000\",'Blank - Request Form'!I84=0),\"\",'Blank - Request Form'!I84),IF('Blank - Request Form'!$F$7=\"CICSA\",IF(OR('Blank - Request Form'!R84=\"0\",'Blank - Request Form'!R84=\"00000\",'Blank - Request Form'!R84=0),\"\",'Blank - Request Form'!R84),\"\"))","v":""},null,{"$f":"IF('Blank - Request Form'!$F$6=\"CICSA\",IF('Blank - Request Form'!K84=0,\"\",'Blank - Request Form'!K84),IF('Blank - Request Form'!$F$7=\"CICSA\",IF('Blank - Request Form'!T84=0,\"\",'Blank - Request Form'!T84),\"\"))","v":""},null,null,null,{"$f":"IF(M50<>\"\",'Blank - Request Form'!$M$2,\"\")","v":""},{"$f":"IF('Blank - Request Form'!$F$6=\"CICSA\",IF('Blank - Request Form'!J84=0,\"\",'Blank - Request Form'!J84),IF('Blank - Request Form'!$F$7=\"CICSA\",IF('Blank - Request Form'!S84=0,\"\",'Blank - Request Form'!S84),\"\"))","v":""},"",50]
[{"$f":"IF('Blank - Request Form'!$F$6=\"CICSA\",IF('Blank - Request Form'!D85=0,\"\",'Blank - Request Form'!D85),IF('Blank - Request Form'!$F$7=\"CICSA\",IF('Blank - Request Form'!M85=0,\"\",'Blank - Request Form'!M85),\"\"))","v":""},{"$f":"IF('Blank - Request Form'!$F$6=\"CICSA\",IF('Blank - Request Form'!E85=0,\"\",'Blank - Request Form'!E85),IF('Blank - Request Form'!$F$7=\"CICSA\",IF('Blank - Request Form'!N85=0,\"\",'Blank - Request Form'!N85),\"\"))","v":""},{"$f":"IF('Blank - Request Form'!$F$6=\"CICSA\",IF(OR('Blank - Request Form'!F85=\"000\",'Blank - Request Form'!F85=0),\"\",'Blank - Request Form'!F85),IF('Blank - Request Form'!$F$7=\"CICSA\",IF(OR('Blank - Request Form'!O85=\"000\",'Blank - Request Form'!O85=0),\"\",'Blank - Request Form'!O85),\"\"))","v":""},{"$f":"IF('Blank - Request Form'!$F$6=\"CICSA\",IF(OR('Blank - Request Form'!G85=\"0\",'Blank - Request Form'!G85=\"00000\",'Blank - Request Form'!G85=0),\"\",'Blank - Request Form'!G85),IF('Blank - Request Form'!$F$7=\"CICSA\",IF(OR('Blank - Request Form'!P85=\"0\",'Blank - Request Form'!P85=\"00000\",'Blank - Request Form'!P85=0),\"\",'Blank - Request Form'!P85),\"\"))","v":""},{"$f":"IF('Blank - Request Form'!$F$6=\"CICSA\",IF(OR('Blank - Request Form'!H85=\"0\",'Blank - Request Form'!H85=\"00000\",'Blank - Request Form'!H85=0),\"\",'Blank - Request Form'!H85),IF('Blank - Request Form'!$F$7=\"CICSA\",IF(OR('Blank - Request Form'!Q85=\"0\",'Blank - Request Form'!Q85=\"00000\",'Blank - Request Form'!Q85=0),\"\",'Blank - Request Form'!Q85),\"\"))","v":""},{"$f":"IF('Blank - Request Form'!$F$6=\"CICSA\",IF(OR('Blank - Request Form'!I85=\"0\",'Blank - Request Form'!I85=\"00000\",'Blank - Request Form'!I85=0),\"\",'Blank - Request Form'!I85),IF('Blank - Request Form'!$F$7=\"CICSA\",IF(OR('Blank - Request Form'!R85=\"0\",'Blank - Request Form'!R85=\"00000\",'Blank - Request Form'!R85=0),\"\",'Blank - Request Form'!R85),\"\"))","v":""},null,{"$f":"IF('Blank - Request Form'!$F$6=\"CICSA\",IF('Blank - Request Form'!K85=0,\"\",'Blank - Request Form'!K85),IF('Blank - Request Form'!$F$7=\"CICSA\",IF('Blank - Request Form'!T85=0,\"\",'Blank - Request Form'!T85),\"\"))","v":""},null,null,null,{"$f":"IF(M51<>\"\",'Blank - Request Form'!$M$2,\"\")","v":""},{"$f":"IF('Blank - Request Form'!$F$6=\"CICSA\",IF('Blank - Request Form'!J85=0,\"\",'Blank - Request Form'!J85),IF('Blank - Request Form'!$F$7=\"CICSA\",IF('Blank - Request Form'!S85=0,\"\",'Blank - Request Form'!S85),\"\"))","v":""},"",51]
[{"$f":"IF('Blank - Request Form'!$F$6=\"CICSA\",IF('Blank - Request Form'!D86=0,\"\",'Blank - Request Form'!D86),IF('Blank - Request Form'!$F$7=\"CICSA\",IF('Blank - Request Form'!M86=0,\"\",'Blank - Request Form'!M86),\"\"))","v":""},{"$f":"IF('Blank - Request Form'!$F$6=\"CICSA\",IF('Blank - Request Form'!E86=0,\"\",'Blank - Request Form'!E86),IF('Blank - Request Form'!$F$7=\"CICSA\",IF('Blank - Request Form'!N86=0,\"\",'Blank - Request Form'!N86),\"\"))","v":""},{"$f":"IF('Blank - Request Form'!$F$6=\"CICSA\",IF(OR('Blank - Request Form'!F86=\"000\",'Blank - Request Form'!F86=0),\"\",'Blank - Request Form'!F86),IF('Blank - Request Form'!$F$7=\"CICSA\",IF(OR('Blank - Request Form'!O86=\"000\",'Blank - Request Form'!O86=0),\"\",'Blank - Request Form'!O86),\"\"))","v":""},{"$f":"IF('Blank - Request Form'!$F$6=\"CICSA\",IF(OR('Blank - Request Form'!G86=\"0\",'Blank - Request Form'!G86=\"00000\",'Blank - Request Form'!G86=0),\"\",'Blank - Request Form'!G86),IF('Blank - Request Form'!$F$7=\"CICSA\",IF(OR('Blank - Request Form'!P86=\"0\",'Blank - Request Form'!P86=\"00000\",'Blank - Request Form'!P86=0),\"\",'Blank - Request Form'!P86),\"\"))","v":""},{"$f":"IF('Blank - Request Form'!$F$6=\"CICSA\",IF(OR('Blank - Request Form'!H86=\"0\",'Blank - Request Form'!H86=\"00000\",'Blank - Request Form'!H86=0),\"\",'Blank - Request Form'!H86),IF('Blank - Request Form'!$F$7=\"CICSA\",IF(OR('Blank - Request Form'!Q86=\"0\",'Blank - Request Form'!Q86=\"00000\",'Blank - Request Form'!Q86=0),\"\",'Blank - Request Form'!Q86),\"\"))","v":""},{"$f":"IF('Blank - Request Form'!$F$6=\"CICSA\",IF(OR('Blank - Request Form'!I86=\"0\",'Blank - Request Form'!I86=\"00000\",'Blank - Request Form'!I86=0),\"\",'Blank - Request Form'!I86),IF('Blank - Request Form'!$F$7=\"CICSA\",IF(OR('Blank - Request Form'!R86=\"0\",'Blank - Request Form'!R86=\"00000\",'Blank - Request Form'!R86=0),\"\",'Blank - Request Form'!R86),\"\"))","v":""},null,{"$f":"IF('Blank - Request Form'!$F$6=\"CICSA\",IF('Blank - Request Form'!K86=0,\"\",'Blank - Request Form'!K86),IF('Blank - Request Form'!$F$7=\"CICSA\",IF('Blank - Request Form'!T86=0,\"\",'Blank - Request Form'!T86),\"\"))","v":""},null,null,null,{"$f":"IF(M52<>\"\",'Blank - Request Form'!$M$2,\"\")","v":""},{"$f":"IF('Blank - Request Form'!$F$6=\"CICSA\",IF('Blank - Request Form'!J86=0,\"\",'Blank - Request Form'!J86),IF('Blank - Request Form'!$F$7=\"CICSA\",IF('Blank - Request Form'!S86=0,\"\",'Blank - Request Form'!S86),\"\"))","v":""},"",52]
[{"$f":"IF('Blank - Request Form'!$F$6=\"CICSA\",IF('Blank - Request Form'!D87=0,\"\",'Blank - Request Form'!D87),IF('Blank - Request Form'!$F$7=\"CICSA\",IF('Blank - Request Form'!M87=0,\"\",'Blank - Request Form'!M87),\"\"))","v":""},{"$f":"IF('Blank - Request Form'!$F$6=\"CICSA\",IF('Blank - Request Form'!E87=0,\"\",'Blank - Request Form'!E87),IF('Blank - Request Form'!$F$7=\"CICSA\",IF('Blank - Request Form'!N87=0,\"\",'Blank - Request Form'!N87),\"\"))","v":""},{"$f":"IF('Blank - Request Form'!$F$6=\"CICSA\",IF(OR('Blank - Request Form'!F87=\"000\",'Blank - Request Form'!F87=0),\"\",'Blank - Request Form'!F87),IF('Blank - Request Form'!$F$7=\"CICSA\",IF(OR('Blank - Request Form'!O87=\"000\",'Blank - Request Form'!O87=0),\"\",'Blank - Request Form'!O87),\"\"))","v":""},{"$f":"IF('Blank - Request Form'!$F$6=\"CICSA\",IF(OR('Blank - Request Form'!G87=\"0\",'Blank - Request Form'!G87=\"00000\",'Blank - Request Form'!G87=0),\"\",'Blank - Request Form'!G87),IF('Blank - Request Form'!$F$7=\"CICSA\",IF(OR('Blank - Request Form'!P87=\"0\",'Blank - Request Form'!P87=\"00000\",'Blank - Request Form'!P87=0),\"\",'Blank - Request Form'!P87),\"\"))","v":""},{"$f":"IF('Blank - Request Form'!$F$6=\"CICSA\",IF(OR('Blank - Request Form'!H87=\"0\",'Blank - Request Form'!H87=\"00000\",'Blank - Request Form'!H87=0),\"\",'Blank - Request Form'!H87),IF('Blank - Request Form'!$F$7=\"CICSA\",IF(OR('Blank - Request Form'!Q87=\"0\",'Blank - Request Form'!Q87=\"00000\",'Blank - Request Form'!Q87=0),\"\",'Blank - Request Form'!Q87),\"\"))","v":""},{"$f":"IF('Blank - Request Form'!$F$6=\"CICSA\",IF(OR('Blank - Request Form'!I87=\"0\",'Blank - Request Form'!I87=\"00000\",'Blank - Request Form'!I87=0),\"\",'Blank - Request Form'!I87),IF('Blank - Request Form'!$F$7=\"CICSA\",IF(OR('Blank - Request Form'!R87=\"0\",'Blank - Request Form'!R87=\"00000\",'Blank - Request Form'!R87=0),\"\",'Blank - Request Form'!R87),\"\"))","v":""},null,{"$f":"IF('Blank - Request Form'!$F$6=\"CICSA\",IF('Blank - Request Form'!K87=0,\"\",'Blank - Request Form'!K87),IF('Blank - Request Form'!$F$7=\"CICSA\",IF('Blank - Request Form'!T87=0,\"\",'Blank - Request Form'!T87),\"\"))","v":""},null,null,null,{"$f":"IF(M53<>\"\",'Blank - Request Form'!$M$2,\"\")","v":""},{"$f":"IF('Blank - Request Form'!$F$6=\"CICSA\",IF('Blank - Request Form'!J87=0,\"\",'Blank - Request Form'!J87),IF('Blank - Request Form'!$F$7=\"CICSA\",IF('Blank - Request Form'!S87=0,\"\",'Blank - Request Form'!S87),\"\"))","v":""},"",53]
[{"$f":"IF('Blank - Request Form'!$F$6=\"CICSA\",IF('Blank - Request Form'!D88=0,\"\",'Blank - Request Form'!D88),IF('Blank - Request Form'!$F$7=\"CICSA\",IF('Blank - Request Form'!M88=0,\"\",'Blank - Request Form'!M88),\"\"))","v":""},{"$f":"IF('Blank - Request Form'!$F$6=\"CICSA\",IF('Blank - Request Form'!E88=0,\"\",'Blank - Request Form'!E88),IF('Blank - Request Form'!$F$7=\"CICSA\",IF('Blank - Request Form'!N88=0,\"\",'Blank - Request Form'!N88),\"\"))","v":""},{"$f":"IF('Blank - Request Form'!$F$6=\"CICSA\",IF(OR('Blank - Request Form'!F88=\"000\",'Blank - Request Form'!F88=0),\"\",'Blank - Request Form'!F88),IF('Blank - Request Form'!$F$7=\"CICSA\",IF(OR('Blank - Request Form'!O88=\"000\",'Blank - Request Form'!O88=0),\"\",'Blank - Request Form'!O88),\"\"))","v":""},{"$f":"IF('Blank - Request Form'!$F$6=\"CICSA\",IF(OR('Blank - Request Form'!G88=\"0\",'Blank - Request Form'!G88=\"00000\",'Blank - Request Form'!G88=0),\"\",'Blank - Request Form'!G88),IF('Blank - Request Form'!$F$7=\"CICSA\",IF(OR('Blank - Request Form'!P88=\"0\",'Blank - Request Form'!P88=\"00000\",'Blank - Request Form'!P88=0),\"\",'Blank - Request Form'!P88),\"\"))","v":""},{"$f":"IF('Blank - Request Form'!$F$6=\"CICSA\",IF(OR('Blank - Request Form'!H88=\"0\",'Blank - Request Form'!H88=\"00000\",'Blank - Request Form'!H88=0),\"\",'Blank - Request Form'!H88),IF('Blank - Request Form'!$F$7=\"CICSA\",IF(OR('Blank - Request Form'!Q88=\"0\",'Blank - Request Form'!Q88=\"00000\",'Blank - Request Form'!Q88=0),\"\",'Blank - Request Form'!Q88),\"\"))","v":""},{"$f":"IF('Blank - Request Form'!$F$6=\"CICSA\",IF(OR('Blank - Request Form'!I88=\"0\",'Blank - Request Form'!I88=\"00000\",'Blank - Request Form'!I88=0),\"\",'Blank - Request Form'!I88),IF('Blank - Request Form'!$F$7=\"CICSA\",IF(OR('Blank - Request Form'!R88=\"0\",'Blank - Request Form'!R88=\"00000\",'Blank - Request Form'!R88=0),\"\",'Blank - Request Form'!R88),\"\"))","v":""},null,{"$f":"IF('Blank - Request Form'!$F$6=\"CICSA\",IF('Blank - Request Form'!K88=0,\"\",'Blank - Request Form'!K88),IF('Blank - Request Form'!$F$7=\"CICSA\",IF('Blank - Request Form'!T88=0,\"\",'Blank - Request Form'!T88),\"\"))","v":""},null,null,null,{"$f":"IF(M54<>\"\",'Blank - Request Form'!$M$2,\"\")","v":""},{"$f":"IF('Blank - Request Form'!$F$6=\"CICSA\",IF('Blank - Request Form'!J88=0,\"\",'Blank - Request Form'!J88),IF('Blank - Request Form'!$F$7=\"CICSA\",IF('Blank - Request Form'!S88=0,\"\",'Blank - Request Form'!S88),\"\"))","v":""},"",54]
[{"$f":"IF('Blank - Request Form'!$F$6=\"CICSA\",IF('Blank - Request Form'!D89=0,\"\",'Blank - Request Form'!D89),IF('Blank - Request Form'!$F$7=\"CICSA\",IF('Blank - Request Form'!M89=0,\"\",'Blank - Request Form'!M89),\"\"))","v":""},{"$f":"IF('Blank - Request Form'!$F$6=\"CICSA\",IF('Blank - Request Form'!E89=0,\"\",'Blank - Request Form'!E89),IF('Blank - Request Form'!$F$7=\"CICSA\",IF('Blank - Request Form'!N89=0,\"\",'Blank - Request Form'!N89),\"\"))","v":""},{"$f":"IF('Blank - Request Form'!$F$6=\"CICSA\",IF(OR('Blank - Request Form'!F89=\"000\",'Blank - Request Form'!F89=0),\"\",'Blank - Request Form'!F89),IF('Blank - Request Form'!$F$7=\"CICSA\",IF(OR('Blank - Request Form'!O89=\"000\",'Blank - Request Form'!O89=0),\"\",'Blank - Request Form'!O89),\"\"))","v":""},{"$f":"IF('Blank - Request Form'!$F$6=\"CICSA\",IF(OR('Blank - Request Form'!G89=\"0\",'Blank - Request Form'!G89=\"00000\",'Blank - Request Form'!G89=0),\"\",'Blank - Request Form'!G89),IF('Blank - Request Form'!$F$7=\"CICSA\",IF(OR('Blank - Request Form'!P89=\"0\",'Blank - Request Form'!P89=\"00000\",'Blank - Request Form'!P89=0),\"\",'Blank - Request Form'!P89),\"\"))","v":""},{"$f":"IF('Blank - Request Form'!$F$6=\"CICSA\",IF(OR('Blank - Request Form'!H89=\"0\",'Blank - Request Form'!H89=\"00000\",'Blank - Request Form'!H89=0),\"\",'Blank - Request Form'!H89),IF('Blank - Request Form'!$F$7=\"CICSA\",IF(OR('Blank - Request Form'!Q89=\"0\",'Blank - Request Form'!Q89=\"00000\",'Blank - Request Form'!Q89=0),\"\",'Blank - Request Form'!Q89),\"\"))","v":""},{"$f":"IF('Blank - Request Form'!$F$6=\"CICSA\",IF(OR('Blank - Request Form'!I89=\"0\",'Blank - Request Form'!I89=\"00000\",'Blank - Request Form'!I89=0),\"\",'Blank - Request Form'!I89),IF('Blank - Request Form'!$F$7=\"CICSA\",IF(OR('Blank - Request Form'!R89=\"0\",'Blank - Request Form'!R89=\"00000\",'Blank - Request Form'!R89=0),\"\",'Blank - Request Form'!R89),\"\"))","v":""},null,{"$f":"IF('Blank - Request Form'!$F$6=\"CICSA\",IF('Blank - Request Form'!K89=0,\"\",'Blank - Request Form'!K89),IF('Blank - Request Form'!$F$7=\"CICSA\",IF('Blank - Request Form'!T89=0,\"\",'Blank - Request Form'!T89),\"\"))","v":""},null,null,null,{"$f":"IF(M55<>\"\",'Blank - Request Form'!$M$2,\"\")","v":""},{"$f":"IF('Blank - Request Form'!$F$6=\"CICSA\",IF('Blank - Request Form'!J89=0,\"\",'Blank - Request Form'!J89),IF('Blank - Request Form'!$F$7=\"CICSA\",IF('Blank - Request Form'!S89=0,\"\",'Blank - Request Form'!S89),\"\"))","v":""},"",55]
[{"$f":"IF('Blank - Request Form'!$F$6=\"CICSA\",IF('Blank - Request Form'!D90=0,\"\",'Blank - Request Form'!D90),IF('Blank - Request Form'!$F$7=\"CICSA\",IF('Blank - Request Form'!M90=0,\"\",'Blank - Request Form'!M90),\"\"))","v":""},{"$f":"IF('Blank - Request Form'!$F$6=\"CICSA\",IF('Blank - Request Form'!E90=0,\"\",'Blank - Request Form'!E90),IF('Blank - Request Form'!$F$7=\"CICSA\",IF('Blank - Request Form'!N90=0,\"\",'Blank - Request Form'!N90),\"\"))","v":""},{"$f":"IF('Blank - Request Form'!$F$6=\"CICSA\",IF(OR('Blank - Request Form'!F90=\"000\",'Blank - Request Form'!F90=0),\"\",'Blank - Request Form'!F90),IF('Blank - Request Form'!$F$7=\"CICSA\",IF(OR('Blank - Request Form'!O90=\"000\",'Blank - Request Form'!O90=0),\"\",'Blank - Request Form'!O90),\"\"))","v":""},{"$f":"IF('Blank - Request Form'!$F$6=\"CICSA\",IF(OR('Blank - Request Form'!G90=\"0\",'Blank - Request Form'!G90=\"00000\",'Blank - Request Form'!G90=0),\"\",'Blank - Request Form'!G90),IF('Blank - Request Form'!$F$7=\"CICSA\",IF(OR('Blank - Request Form'!P90=\"0\",'Blank - Request Form'!P90=\"00000\",'Blank - Request Form'!P90=0),\"\",'Blank - Request Form'!P90),\"\"))","v":""},{"$f":"IF('Blank - Request Form'!$F$6=\"CICSA\",IF(OR('Blank - Request Form'!H90=\"0\",'Blank - Request Form'!H90=\"00000\",'Blank - Request Form'!H90=0),\"\",'Blank - Request Form'!H90),IF('Blank - Request Form'!$F$7=\"CICSA\",IF(OR('Blank - Request Form'!Q90=\"0\",'Blank - Request Form'!Q90=\"00000\",'Blank - Request Form'!Q90=0),\"\",'Blank - Request Form'!Q90),\"\"))","v":""},{"$f":"IF('Blank - Request Form'!$F$6=\"CICSA\",IF(OR('Blank - Request Form'!I90=\"0\",'Blank - Request Form'!I90=\"00000\",'Blank - Request Form'!I90=0),\"\",'Blank - Request Form'!I90),IF('Blank - Request Form'!$F$7=\"CICSA\",IF(OR('Blank - Request Form'!R90=\"0\",'Blank - Request Form'!R90=\"00000\",'Blank - Request Form'!R90=0),\"\",'Blank - Request Form'!R90),\"\"))","v":""},null,{"$f":"IF('Blank - Request Form'!$F$6=\"CICSA\",IF('Blank - Request Form'!K90=0,\"\",'Blank - Request Form'!K90),IF('Blank - Request Form'!$F$7=\"CICSA\",IF('Blank - Request Form'!T90=0,\"\",'Blank - Request Form'!T90),\"\"))","v":""},null,null,null,{"$f":"IF(M56<>\"\",'Blank - Request Form'!$M$2,\"\")","v":""},{"$f":"IF('Blank - Request Form'!$F$6=\"CICSA\",IF('Blank - Request Form'!J90=0,\"\",'Blank - Request Form'!J90),IF('Blank - Request Form'!$F$7=\"CICSA\",IF('Blank - Request Form'!S90=0,\"\",'Blank - Request Form'!S90),\"\"))","v":""},"",56]
[{"$f":"IF('Blank - Request Form'!$F$6=\"CICSA\",IF('Blank - Request Form'!D91=0,\"\",'Blank - Request Form'!D91),IF('Blank - Request Form'!$F$7=\"CICSA\",IF('Blank - Request Form'!M91=0,\"\",'Blank - Request Form'!M91),\"\"))","v":""},{"$f":"IF('Blank - Request Form'!$F$6=\"CICSA\",IF('Blank - Request Form'!E91=0,\"\",'Blank - Request Form'!E91),IF('Blank - Request Form'!$F$7=\"CICSA\",IF('Blank - Request Form'!N91=0,\"\",'Blank - Request Form'!N91),\"\"))","v":""},{"$f":"IF('Blank - Request Form'!$F$6=\"CICSA\",IF(OR('Blank - Request Form'!F91=\"000\",'Blank - Request Form'!F91=0),\"\",'Blank - Request Form'!F91),IF('Blank - Request Form'!$F$7=\"CICSA\",IF(OR('Blank - Request Form'!O91=\"000\",'Blank - Request Form'!O91=0),\"\",'Blank - Request Form'!O91),\"\"))","v":""},{"$f":"IF('Blank - Request Form'!$F$6=\"CICSA\",IF(OR('Blank - Request Form'!G91=\"0\",'Blank - Request Form'!G91=\"00000\",'Blank - Request Form'!G91=0),\"\",'Blank - Request Form'!G91),IF('Blank - Request Form'!$F$7=\"CICSA\",IF(OR('Blank - Request Form'!P91=\"0\",'Blank - Request Form'!P91=\"00000\",'Blank - Request Form'!P91=0),\"\",'Blank - Request Form'!P91),\"\"))","v":""},{"$f":"IF('Blank - Request Form'!$F$6=\"CICSA\",IF(OR('Blank - Request Form'!H91=\"0\",'Blank - Request Form'!H91=\"00000\",'Blank - Request Form'!H91=0),\"\",'Blank - Request Form'!H91),IF('Blank - Request Form'!$F$7=\"CICSA\",IF(OR('Blank - Request Form'!Q91=\"0\",'Blank - Request Form'!Q91=\"00000\",'Blank - Request Form'!Q91=0),\"\",'Blank - Request Form'!Q91),\"\"))","v":""},{"$f":"IF('Blank - Request Form'!$F$6=\"CICSA\",IF(OR('Blank - Request Form'!I91=\"0\",'Blank - Request Form'!I91=\"00000\",'Blank - Request Form'!I91=0),\"\",'Blank - Request Form'!I91),IF('Blank - Request Form'!$F$7=\"CICSA\",IF(OR('Blank - Request Form'!R91=\"0\",'Blank - Request Form'!R91=\"00000\",'Blank - Request Form'!R91=0),\"\",'Blank - Request Form'!R91),\"\"))","v":""},null,{"$f":"IF('Blank - Request Form'!$F$6=\"CICSA\",IF('Blank - Request Form'!K91=0,\"\",'Blank - Request Form'!K91),IF('Blank - Request Form'!$F$7=\"CICSA\",IF('Blank - Request Form'!T91=0,\"\",'Blank - Request Form'!T91),\"\"))","v":""},null,null,null,{"$f":"IF(M57<>\"\",'Blank - Request Form'!$M$2,\"\")","v":""},{"$f":"IF('Blank - Request Form'!$F$6=\"CICSA\",IF('Blank - Request Form'!J91=0,\"\",'Blank - Request Form'!J91),IF('Blank - Request Form'!$F$7=\"CICSA\",IF('Blank - Request Form'!S91=0,\"\",'Blank - Request Form'!S91),\"\"))","v":""},"",57]
[{"$f":"IF('Blank - Request Form'!$F$6=\"CICSA\",IF('Blank - Request Form'!D92=0,\"\",'Blank - Request Form'!D92),IF('Blank - Request Form'!$F$7=\"CICSA\",IF('Blank - Request Form'!M92=0,\"\",'Blank - Request Form'!M92),\"\"))","v":""},{"$f":"IF('Blank - Request Form'!$F$6=\"CICSA\",IF('Blank - Request Form'!E92=0,\"\",'Blank - Request Form'!E92),IF('Blank - Request Form'!$F$7=\"CICSA\",IF('Blank - Request Form'!N92=0,\"\",'Blank - Request Form'!N92),\"\"))","v":""},{"$f":"IF('Blank - Request Form'!$F$6=\"CICSA\",IF(OR('Blank - Request Form'!F92=\"000\",'Blank - Request Form'!F92=0),\"\",'Blank - Request Form'!F92),IF('Blank - Request Form'!$F$7=\"CICSA\",IF(OR('Blank - Request Form'!O92=\"000\",'Blank - Request Form'!O92=0),\"\",'Blank - Request Form'!O92),\"\"))","v":""},{"$f":"IF('Blank - Request Form'!$F$6=\"CICSA\",IF(OR('Blank - Request Form'!G92=\"0\",'Blank - Request Form'!G92=\"00000\",'Blank - Request Form'!G92=0),\"\",'Blank - Request Form'!G92),IF('Blank - Request Form'!$F$7=\"CICSA\",IF(OR('Blank - Request Form'!P92=\"0\",'Blank - Request Form'!P92=\"00000\",'Blank - Request Form'!P92=0),\"\",'Blank - Request Form'!P92),\"\"))","v":""},{"$f":"IF('Blank - Request Form'!$F$6=\"CICSA\",IF(OR('Blank - Request Form'!H92=\"0\",'Blank - Request Form'!H92=\"00000\",'Blank - Request Form'!H92=0),\"\",'Blank - Request Form'!H92),IF('Blank - Request Form'!$F$7=\"CICSA\",IF(OR('Blank - Request Form'!Q92=\"0\",'Blank - Request Form'!Q92=\"00000\",'Blank - Request Form'!Q92=0),\"\",'Blank - Request Form'!Q92),\"\"))","v":""},{"$f":"IF('Blank - Request Form'!$F$6=\"CICSA\",IF(OR('Blank - Request Form'!I92=\"0\",'Blank - Request Form'!I92=\"00000\",'Blank - Request Form'!I92=0),\"\",'Blank - Request Form'!I92),IF('Blank - Request Form'!$F$7=\"CICSA\",IF(OR('Blank - Request Form'!R92=\"0\",'Blank - Request Form'!R92=\"00000\",'Blank - Request Form'!R92=0),\"\",'Blank - Request Form'!R92),\"\"))","v":""},null,{"$f":"IF('Blank - Request Form'!$F$6=\"CICSA\",IF('Blank - Request Form'!K92=0,\"\",'Blank - Request Form'!K92),IF('Blank - Request Form'!$F$7=\"CICSA\",IF('Blank - Request Form'!T92=0,\"\",'Blank - Request Form'!T92),\"\"))","v":""},null,null,null,{"$f":"IF(M58<>\"\",'Blank - Request Form'!$M$2,\"\")","v":""},{"$f":"IF('Blank - Request Form'!$F$6=\"CICSA\",IF('Blank - Request Form'!J92=0,\"\",'Blank - Request Form'!J92),IF('Blank - Request Form'!$F$7=\"CICSA\",IF('Blank - Request Form'!S92=0,\"\",'Blank - Request Form'!S92),\"\"))","v":""},"",58]
[{"$f":"IF('Blank - Request Form'!$F$6=\"CICSA\",IF('Blank - Request Form'!D93=0,\"\",'Blank - Request Form'!D93),IF('Blank - Request Form'!$F$7=\"CICSA\",IF('Blank - Request Form'!M93=0,\"\",'Blank - Request Form'!M93),\"\"))","v":""},{"$f":"IF('Blank - Request Form'!$F$6=\"CICSA\",IF('Blank - Request Form'!E93=0,\"\",'Blank - Request Form'!E93),IF('Blank - Request Form'!$F$7=\"CICSA\",IF('Blank - Request Form'!N93=0,\"\",'Blank - Request Form'!N93),\"\"))","v":""},{"$f":"IF('Blank - Request Form'!$F$6=\"CICSA\",IF(OR('Blank - Request Form'!F93=\"000\",'Blank - Request Form'!F93=0),\"\",'Blank - Request Form'!F93),IF('Blank - Request Form'!$F$7=\"CICSA\",IF(OR('Blank - Request Form'!O93=\"000\",'Blank - Request Form'!O93=0),\"\",'Blank - Request Form'!O93),\"\"))","v":""},{"$f":"IF('Blank - Request Form'!$F$6=\"CICSA\",IF(OR('Blank - Request Form'!G93=\"0\",'Blank - Request Form'!G93=\"00000\",'Blank - Request Form'!G93=0),\"\",'Blank - Request Form'!G93),IF('Blank - Request Form'!$F$7=\"CICSA\",IF(OR('Blank - Request Form'!P93=\"0\",'Blank - Request Form'!P93=\"00000\",'Blank - Request Form'!P93=0),\"\",'Blank - Request Form'!P93),\"\"))","v":""},{"$f":"IF('Blank - Request Form'!$F$6=\"CICSA\",IF(OR('Blank - Request Form'!H93=\"0\",'Blank - Request Form'!H93=\"00000\",'Blank - Request Form'!H93=0),\"\",'Blank - Request Form'!H93),IF('Blank - Request Form'!$F$7=\"CICSA\",IF(OR('Blank - Request Form'!Q93=\"0\",'Blank - Request Form'!Q93=\"00000\",'Blank - Request Form'!Q93=0),\"\",'Blank - Request Form'!Q93),\"\"))","v":""},{"$f":"IF('Blank - Request Form'!$F$6=\"CICSA\",IF(OR('Blank - Request Form'!I93=\"0\",'Blank - Request Form'!I93=\"00000\",'Blank - Request Form'!I93=0),\"\",'Blank - Request Form'!I93),IF('Blank - Request Form'!$F$7=\"CICSA\",IF(OR('Blank - Request Form'!R93=\"0\",'Blank - Request Form'!R93=\"00000\",'Blank - Request Form'!R93=0),\"\",'Blank - Request Form'!R93),\"\"))","v":""},null,{"$f":"IF('Blank - Request Form'!$F$6=\"CICSA\",IF('Blank - Request Form'!K93=0,\"\",'Blank - Request Form'!K93),IF('Blank - Request Form'!$F$7=\"CICSA\",IF('Blank - Request Form'!T93=0,\"\",'Blank - Request Form'!T93),\"\"))","v":""},null,null,null,{"$f":"IF(M59<>\"\",'Blank - Request Form'!$M$2,\"\")","v":""},{"$f":"IF('Blank - Request Form'!$F$6=\"CICSA\",IF('Blank - Request Form'!J93=0,\"\",'Blank - Request Form'!J93),IF('Blank - Request Form'!$F$7=\"CICSA\",IF('Blank - Request Form'!S93=0,\"\",'Blank - Request Form'!S93),\"\"))","v":""},"",59]
[{"$f":"IF('Blank - Request Form'!$F$6=\"CICSA\",IF('Blank - Request Form'!D94=0,\"\",'Blank - Request Form'!D94),IF('Blank - Request Form'!$F$7=\"CICSA\",IF('Blank - Request Form'!M94=0,\"\",'Blank - Request Form'!M94),\"\"))","v":""},{"$f":"IF('Blank - Request Form'!$F$6=\"CICSA\",IF('Blank - Request Form'!E94=0,\"\",'Blank - Request Form'!E94),IF('Blank - Request Form'!$F$7=\"CICSA\",IF('Blank - Request Form'!N94=0,\"\",'Blank - Request Form'!N94),\"\"))","v":""},{"$f":"IF('Blank - Request Form'!$F$6=\"CICSA\",IF(OR('Blank - Request Form'!F94=\"000\",'Blank - Request Form'!F94=0),\"\",'Blank - Request Form'!F94),IF('Blank - Request Form'!$F$7=\"CICSA\",IF(OR('Blank - Request Form'!O94=\"000\",'Blank - Request Form'!O94=0),\"\",'Blank - Request Form'!O94),\"\"))","v":""},{"$f":"IF('Blank - Request Form'!$F$6=\"CICSA\",IF(OR('Blank - Request Form'!G94=\"0\",'Blank - Request Form'!G94=\"00000\",'Blank - Request Form'!G94=0),\"\",'Blank - Request Form'!G94),IF('Blank - Request Form'!$F$7=\"CICSA\",IF(OR('Blank - Request Form'!P94=\"0\",'Blank - Request Form'!P94=\"00000\",'Blank - Request Form'!P94=0),\"\",'Blank - Request Form'!P94),\"\"))","v":""},{"$f":"IF('Blank - Request Form'!$F$6=\"CICSA\",IF(OR('Blank - Request Form'!H94=\"0\",'Blank - Request Form'!H94=\"00000\",'Blank - Request Form'!H94=0),\"\",'Blank - Request Form'!H94),IF('Blank - Request Form'!$F$7=\"CICSA\",IF(OR('Blank - Request Form'!Q94=\"0\",'Blank - Request Form'!Q94=\"00000\",'Blank - Request Form'!Q94=0),\"\",'Blank - Request Form'!Q94),\"\"))","v":""},{"$f":"IF('Blank - Request Form'!$F$6=\"CICSA\",IF(OR('Blank - Request Form'!I94=\"0\",'Blank - Request Form'!I94=\"00000\",'Blank - Request Form'!I94=0),\"\",'Blank - Request Form'!I94),IF('Blank - Request Form'!$F$7=\"CICSA\",IF(OR('Blank - Request Form'!R94=\"0\",'Blank - Request Form'!R94=\"00000\",'Blank - Request Form'!R94=0),\"\",'Blank - Request Form'!R94),\"\"))","v":""},null,{"$f":"IF('Blank - Request Form'!$F$6=\"CICSA\",IF('Blank - Request Form'!K94=0,\"\",'Blank - Request Form'!K94),IF('Blank - Request Form'!$F$7=\"CICSA\",IF('Blank - Request Form'!T94=0,\"\",'Blank - Request Form'!T94),\"\"))","v":""},null,null,null,{"$f":"IF(M60<>\"\",'Blank - Request Form'!$M$2,\"\")","v":""},{"$f":"IF('Blank - Request Form'!$F$6=\"CICSA\",IF('Blank - Request Form'!J94=0,\"\",'Blank - Request Form'!J94),IF('Blank - Request Form'!$F$7=\"CICSA\",IF('Blank - Request Form'!S94=0,\"\",'Blank - Request Form'!S94),\"\"))","v":""},"",60]
[{"$f":"IF('Blank - Request Form'!$F$6=\"CICSA\",IF('Blank - Request Form'!D95=0,\"\",'Blank - Request Form'!D95),IF('Blank - Request Form'!$F$7=\"CICSA\",IF('Blank - Request Form'!M95=0,\"\",'Blank - Request Form'!M95),\"\"))","v":""},{"$f":"IF('Blank - Request Form'!$F$6=\"CICSA\",IF('Blank - Request Form'!E95=0,\"\",'Blank - Request Form'!E95),IF('Blank - Request Form'!$F$7=\"CICSA\",IF('Blank - Request Form'!N95=0,\"\",'Blank - Request Form'!N95),\"\"))","v":""},{"$f":"IF('Blank - Request Form'!$F$6=\"CICSA\",IF(OR('Blank - Request Form'!F95=\"000\",'Blank - Request Form'!F95=0),\"\",'Blank - Request Form'!F95),IF('Blank - Request Form'!$F$7=\"CICSA\",IF(OR('Blank - Request Form'!O95=\"000\",'Blank - Request Form'!O95=0),\"\",'Blank - Request Form'!O95),\"\"))","v":""},{"$f":"IF('Blank - Request Form'!$F$6=\"CICSA\",IF(OR('Blank - Request Form'!G95=\"0\",'Blank - Request Form'!G95=\"00000\",'Blank - Request Form'!G95=0),\"\",'Blank - Request Form'!G95),IF('Blank - Request Form'!$F$7=\"CICSA\",IF(OR('Blank - Request Form'!P95=\"0\",'Blank - Request Form'!P95=\"00000\",'Blank - Request Form'!P95=0),\"\",'Blank - Request Form'!P95),\"\"))","v":""},{"$f":"IF('Blank - Request Form'!$F$6=\"CICSA\",IF(OR('Blank - Request Form'!H95=\"0\",'Blank - Request Form'!H95=\"00000\",'Blank - Request Form'!H95=0),\"\",'Blank - Request Form'!H95),IF('Blank - Request Form'!$F$7=\"CICSA\",IF(OR('Blank - Request Form'!Q95=\"0\",'Blank - Request Form'!Q95=\"00000\",'Blank - Request Form'!Q95=0),\"\",'Blank - Request Form'!Q95),\"\"))","v":""},{"$f":"IF('Blank - Request Form'!$F$6=\"CICSA\",IF(OR('Blank - Request Form'!I95=\"0\",'Blank - Request Form'!I95=\"00000\",'Blank - Request Form'!I95=0),\"\",'Blank - Request Form'!I95),IF('Blank - Request Form'!$F$7=\"CICSA\",IF(OR('Blank - Request Form'!R95=\"0\",'Blank - Request Form'!R95=\"00000\",'Blank - Request Form'!R95=0),\"\",'Blank - Request Form'!R95),\"\"))","v":""},null,{"$f":"IF('Blank - Request Form'!$F$6=\"CICSA\",IF('Blank - Request Form'!K95=0,\"\",'Blank - Request Form'!K95),IF('Blank - Request Form'!$F$7=\"CICSA\",IF('Blank - Request Form'!T95=0,\"\",'Blank - Request Form'!T95),\"\"))","v":""},null,null,null,{"$f":"IF(M61<>\"\",'Blank - Request Form'!$M$2,\"\")","v":""},{"$f":"IF('Blank - Request Form'!$F$6=\"CICSA\",IF('Blank - Request Form'!J95=0,\"\",'Blank - Request Form'!J95),IF('Blank - Request Form'!$F$7=\"CICSA\",IF('Blank - Request Form'!S95=0,\"\",'Blank - Request Form'!S95),\"\"))","v":""},"",61]
[{"$f":"IF('Blank - Request Form'!$F$6=\"CICSA\",IF('Blank - Request Form'!D96=0,\"\",'Blank - Request Form'!D96),IF('Blank - Request Form'!$F$7=\"CICSA\",IF('Blank - Request Form'!M96=0,\"\",'Blank - Request Form'!M96),\"\"))","v":""},{"$f":"IF('Blank - Request Form'!$F$6=\"CICSA\",IF('Blank - Request Form'!E96=0,\"\",'Blank - Request Form'!E96),IF('Blank - Request Form'!$F$7=\"CICSA\",IF('Blank - Request Form'!N96=0,\"\",'Blank - Request Form'!N96),\"\"))","v":""},{"$f":"IF('Blank - Request Form'!$F$6=\"CICSA\",IF(OR('Blank - Request Form'!F96=\"000\",'Blank - Request Form'!F96=0),\"\",'Blank - Request Form'!F96),IF('Blank - Request Form'!$F$7=\"CICSA\",IF(OR('Blank - Request Form'!O96=\"000\",'Blank - Request Form'!O96=0),\"\",'Blank - Request Form'!O96),\"\"))","v":""},{"$f":"IF('Blank - Request Form'!$F$6=\"CICSA\",IF(OR('Blank - Request Form'!G96=\"0\",'Blank - Request Form'!G96=\"00000\",'Blank - Request Form'!G96=0),\"\",'Blank - Request Form'!G96),IF('Blank - Request Form'!$F$7=\"CICSA\",IF(OR('Blank - Request Form'!P96=\"0\",'Blank - Request Form'!P96=\"00000\",'Blank - Request Form'!P96=0),\"\",'Blank - Request Form'!P96),\"\"))","v":""},{"$f":"IF('Blank - Request Form'!$F$6=\"CICSA\",IF(OR('Blank - Request Form'!H96=\"0\",'Blank - Request Form'!H96=\"00000\",'Blank - Request Form'!H96=0),\"\",'Blank - Request Form'!H96),IF('Blank - Request Form'!$F$7=\"CICSA\",IF(OR('Blank - Request Form'!Q96=\"0\",'Blank - Request Form'!Q96=\"00000\",'Blank - Request Form'!Q96=0),\"\",'Blank - Request Form'!Q96),\"\"))","v":""},{"$f":"IF('Blank - Request Form'!$F$6=\"CICSA\",IF(OR('Blank - Request Form'!I96=\"0\",'Blank - Request Form'!I96=\"00000\",'Blank - Request Form'!I96=0),\"\",'Blank - Request Form'!I96),IF('Blank - Request Form'!$F$7=\"CICSA\",IF(OR('Blank - Request Form'!R96=\"0\",'Blank - Request Form'!R96=\"00000\",'Blank - Request Form'!R96=0),\"\",'Blank - Request Form'!R96),\"\"))","v":""},null,{"$f":"IF('Blank - Request Form'!$F$6=\"CICSA\",IF('Blank - Request Form'!K96=0,\"\",'Blank - Request Form'!K96),IF('Blank - Request Form'!$F$7=\"CICSA\",IF('Blank - Request Form'!T96=0,\"\",'Blank - Request Form'!T96),\"\"))","v":""},null,null,null,{"$f":"IF(M62<>\"\",'Blank - Request Form'!$M$2,\"\")","v":""},{"$f":"IF('Blank - Request Form'!$F$6=\"CICSA\",IF('Blank - Request Form'!J96=0,\"\",'Blank - Request Form'!J96),IF('Blank - Request Form'!$F$7=\"CICSA\",IF('Blank - Request Form'!S96=0,\"\",'Blank - Request Form'!S96),\"\"))","v":""},"",62]
[{"$f":"IF('Blank - Request Form'!$F$6=\"CICSA\",IF('Blank - Request Form'!D97=0,\"\",'Blank - Request Form'!D97),IF('Blank - Request Form'!$F$7=\"CICSA\",IF('Blank - Request Form'!M97=0,\"\",'Blank - Request Form'!M97),\"\"))","v":""},{"$f":"IF('Blank - Request Form'!$F$6=\"CICSA\",IF('Blank - Request Form'!E97=0,\"\",'Blank - Request Form'!E97),IF('Blank - Request Form'!$F$7=\"CICSA\",IF('Blank - Request Form'!N97=0,\"\",'Blank - Request Form'!N97),\"\"))","v":""},{"$f":"IF('Blank - Request Form'!$F$6=\"CICSA\",IF(OR('Blank - Request Form'!F97=\"000\",'Blank - Request Form'!F97=0),\"\",'Blank - Request Form'!F97),IF('Blank - Request Form'!$F$7=\"CICSA\",IF(OR('Blank - Request Form'!O97=\"000\",'Blank - Request Form'!O97=0),\"\",'Blank - Request Form'!O97),\"\"))","v":""},{"$f":"IF('Blank - Request Form'!$F$6=\"CICSA\",IF(OR('Blank - Request Form'!G97=\"0\",'Blank - Request Form'!G97=\"00000\",'Blank - Request Form'!G97=0),\"\",'Blank - Request Form'!G97),IF('Blank - Request Form'!$F$7=\"CICSA\",IF(OR('Blank - Request Form'!P97=\"0\",'Blank - Request Form'!P97=\"00000\",'Blank - Request Form'!P97=0),\"\",'Blank - Request Form'!P97),\"\"))","v":""},{"$f":"IF('Blank - Request Form'!$F$6=\"CICSA\",IF(OR('Blank - Request Form'!H97=\"0\",'Blank - Request Form'!H97=\"00000\",'Blank - Request Form'!H97=0),\"\",'Blank - Request Form'!H97),IF('Blank - Request Form'!$F$7=\"CICSA\",IF(OR('Blank - Request Form'!Q97=\"0\",'Blank - Request Form'!Q97=\"00000\",'Blank - Request Form'!Q97=0),\"\",'Blank - Request Form'!Q97),\"\"))","v":""},{"$f":"IF('Blank - Request Form'!$F$6=\"CICSA\",IF(OR('Blank - Request Form'!I97=\"0\",'Blank - Request Form'!I97=\"00000\",'Blank - Request Form'!I97=0),\"\",'Blank - Request Form'!I97),IF('Blank - Request Form'!$F$7=\"CICSA\",IF(OR('Blank - Request Form'!R97=\"0\",'Blank - Request Form'!R97=\"00000\",'Blank - Request Form'!R97=0),\"\",'Blank - Request Form'!R97),\"\"))","v":""},null,{"$f":"IF('Blank - Request Form'!$F$6=\"CICSA\",IF('Blank - Request Form'!K97=0,\"\",'Blank - Request Form'!K97),IF('Blank - Request Form'!$F$7=\"CICSA\",IF('Blank - Request Form'!T97=0,\"\",'Blank - Request Form'!T97),\"\"))","v":""},null,null,null,{"$f":"IF(M63<>\"\",'Blank - Request Form'!$M$2,\"\")","v":""},{"$f":"IF('Blank - Request Form'!$F$6=\"CICSA\",IF('Blank - Request Form'!J97=0,\"\",'Blank - Request Form'!J97),IF('Blank - Request Form'!$F$7=\"CICSA\",IF('Blank - Request Form'!S97=0,\"\",'Blank - Request Form'!S97),\"\"))","v":""},"",63]
[{"$f":"IF('Blank - Request Form'!$F$6=\"CICSA\",IF('Blank - Request Form'!D98=0,\"\",'Blank - Request Form'!D98),IF('Blank - Request Form'!$F$7=\"CICSA\",IF('Blank - Request Form'!M98=0,\"\",'Blank - Request Form'!M98),\"\"))","v":""},{"$f":"IF('Blank - Request Form'!$F$6=\"CICSA\",IF('Blank - Request Form'!E98=0,\"\",'Blank - Request Form'!E98),IF('Blank - Request Form'!$F$7=\"CICSA\",IF('Blank - Request Form'!N98=0,\"\",'Blank - Request Form'!N98),\"\"))","v":""},{"$f":"IF('Blank - Request Form'!$F$6=\"CICSA\",IF(OR('Blank - Request Form'!F98=\"000\",'Blank - Request Form'!F98=0),\"\",'Blank - Request Form'!F98),IF('Blank - Request Form'!$F$7=\"CICSA\",IF(OR('Blank - Request Form'!O98=\"000\",'Blank - Request Form'!O98=0),\"\",'Blank - Request Form'!O98),\"\"))","v":""},{"$f":"IF('Blank - Request Form'!$F$6=\"CICSA\",IF(OR('Blank - Request Form'!G98=\"0\",'Blank - Request Form'!G98=\"00000\",'Blank - Request Form'!G98=0),\"\",'Blank - Request Form'!G98),IF('Blank - Request Form'!$F$7=\"CICSA\",IF(OR('Blank - Request Form'!P98=\"0\",'Blank - Request Form'!P98=\"00000\",'Blank - Request Form'!P98=0),\"\",'Blank - Request Form'!P98),\"\"))","v":""},{"$f":"IF('Blank - Request Form'!$F$6=\"CICSA\",IF(OR('Blank - Request Form'!H98=\"0\",'Blank - Request Form'!H98=\"00000\",'Blank - Request Form'!H98=0),\"\",'Blank - Request Form'!H98),IF('Blank - Request Form'!$F$7=\"CICSA\",IF(OR('Blank - Request Form'!Q98=\"0\",'Blank - Request Form'!Q98=\"00000\",'Blank - Request Form'!Q98=0),\"\",'Blank - Request Form'!Q98),\"\"))","v":""},{"$f":"IF('Blank - Request Form'!$F$6=\"CICSA\",IF(OR('Blank - Request Form'!I98=\"0\",'Blank - Request Form'!I98=\"00000\",'Blank - Request Form'!I98=0),\"\",'Blank - Request Form'!I98),IF('Blank - Request Form'!$F$7=\"CICSA\",IF(OR('Blank - Request Form'!R98=\"0\",'Blank - Request Form'!R98=\"00000\",'Blank - Request Form'!R98=0),\"\",'Blank - Request Form'!R98),\"\"))","v":""},null,{"$f":"IF('Blank - Request Form'!$F$6=\"CICSA\",IF('Blank - Request Form'!K98=0,\"\",'Blank - Request Form'!K98),IF('Blank - Request Form'!$F$7=\"CICSA\",IF('Blank - Request Form'!T98=0,\"\",'Blank - Request Form'!T98),\"\"))","v":""},null,null,null,{"$f":"IF(M64<>\"\",'Blank - Request Form'!$M$2,\"\")","v":""},{"$f":"IF('Blank - Request Form'!$F$6=\"CICSA\",IF('Blank - Request Form'!J98=0,\"\",'Blank - Request Form'!J98),IF('Blank - Request Form'!$F$7=\"CICSA\",IF('Blank - Request Form'!S98=0,\"\",'Blank - Request Form'!S98),\"\"))","v":""},"",64]
[{"$f":"IF('Blank - Request Form'!$F$6=\"CICSA\",IF('Blank - Request Form'!D99=0,\"\",'Blank - Request Form'!D99),IF('Blank - Request Form'!$F$7=\"CICSA\",IF('Blank - Request Form'!M99=0,\"\",'Blank - Request Form'!M99),\"\"))","v":""},{"$f":"IF('Blank - Request Form'!$F$6=\"CICSA\",IF('Blank - Request Form'!E99=0,\"\",'Blank - Request Form'!E99),IF('Blank - Request Form'!$F$7=\"CICSA\",IF('Blank - Request Form'!N99=0,\"\",'Blank - Request Form'!N99),\"\"))","v":""},{"$f":"IF('Blank - Request Form'!$F$6=\"CICSA\",IF(OR('Blank - Request Form'!F99=\"000\",'Blank - Request Form'!F99=0),\"\",'Blank - Request Form'!F99),IF('Blank - Request Form'!$F$7=\"CICSA\",IF(OR('Blank - Request Form'!O99=\"000\",'Blank - Request Form'!O99=0),\"\",'Blank - Request Form'!O99),\"\"))","v":""},{"$f":"IF('Blank - Request Form'!$F$6=\"CICSA\",IF(OR('Blank - Request Form'!G99=\"0\",'Blank - Request Form'!G99=\"00000\",'Blank - Request Form'!G99=0),\"\",'Blank - Request Form'!G99),IF('Blank - Request Form'!$F$7=\"CICSA\",IF(OR('Blank - Request Form'!P99=\"0\",'Blank - Request Form'!P99=\"00000\",'Blank - Request Form'!P99=0),\"\",'Blank - Request Form'!P99),\"\"))","v":""},{"$f":"IF('Blank - Request Form'!$F$6=\"CICSA\",IF(OR('Blank - Request Form'!H99=\"0\",'Blank - Request Form'!H99=\"00000\",'Blank - Request Form'!H99=0),\"\",'Blank - Request Form'!H99),IF('Blank - Request Form'!$F$7=\"CICSA\",IF(OR('Blank - Request Form'!Q99=\"0\",'Blank - Request Form'!Q99=\"00000\",'Blank - Request Form'!Q99=0),\"\",'Blank - Request Form'!Q99),\"\"))","v":""},{"$f":"IF('Blank - Request Form'!$F$6=\"CICSA\",IF(OR('Blank - Request Form'!I99=\"0\",'Blank - Request Form'!I99=\"00000\",'Blank - Request Form'!I99=0),\"\",'Blank - Request Form'!I99),IF('Blank - Request Form'!$F$7=\"CICSA\",IF(OR('Blank - Request Form'!R99=\"0\",'Blank - Request Form'!R99=\"00000\",'Blank - Request Form'!R99=0),\"\",'Blank - Request Form'!R99),\"\"))","v":""},null,{"$f":"IF('Blank - Request Form'!$F$6=\"CICSA\",IF('Blank - Request Form'!K99=0,\"\",'Blank - Request Form'!K99),IF('Blank - Request Form'!$F$7=\"CICSA\",IF('Blank - Request Form'!T99=0,\"\",'Blank - Request Form'!T99),\"\"))","v":""},null,null,null,{"$f":"IF(M65<>\"\",'Blank - Request Form'!$M$2,\"\")","v":""},{"$f":"IF('Blank - Request Form'!$F$6=\"CICSA\",IF('Blank - Request Form'!J99=0,\"\",'Blank - Request Form'!J99),IF('Blank - Request Form'!$F$7=\"CICSA\",IF('Blank - Request Form'!S99=0,\"\",'Blank - Request Form'!S99),\"\"))","v":""},"",65]
[{"$f":"IF('Blank - Request Form'!$F$6=\"CICSA\",IF('Blank - Request Form'!D100=0,\"\",'Blank - Request Form'!D100),IF('Blank - Request Form'!$F$7=\"CICSA\",IF('Blank - Request Form'!M100=0,\"\",'Blank - Request Form'!M100),\"\"))","v":""},{"$f":"IF('Blank - Request Form'!$F$6=\"CICSA\",IF('Blank - Request Form'!E100=0,\"\",'Blank - Request Form'!E100),IF('Blank - Request Form'!$F$7=\"CICSA\",IF('Blank - Request Form'!N100=0,\"\",'Blank - Request Form'!N100),\"\"))","v":""},{"$f":"IF('Blank - Request Form'!$F$6=\"CICSA\",IF(OR('Blank - Request Form'!F100=\"000\",'Blank - Request Form'!F100=0),\"\",'Blank - Request Form'!F100),IF('Blank - Request Form'!$F$7=\"CICSA\",IF(OR('Blank - Request Form'!O100=\"000\",'Blank - Request Form'!O100=0),\"\",'Blank - Request Form'!O100),\"\"))","v":""},{"$f":"IF('Blank - Request Form'!$F$6=\"CICSA\",IF(OR('Blank - Request Form'!G100=\"0\",'Blank - Request Form'!G100=\"00000\",'Blank - Request Form'!G100=0),\"\",'Blank - Request Form'!G100),IF('Blank - Request Form'!$F$7=\"CICSA\",IF(OR('Blank - Request Form'!P100=\"0\",'Blank - Request Form'!P100=\"00000\",'Blank - Request Form'!P100=0),\"\",'Blank - Request Form'!P100),\"\"))","v":""},{"$f":"IF('Blank - Request Form'!$F$6=\"CICSA\",IF(OR('Blank - Request Form'!H100=\"0\",'Blank - Request Form'!H100=\"00000\",'Blank - Request Form'!H100=0),\"\",'Blank - Request Form'!H100),IF('Blank - Request Form'!$F$7=\"CICSA\",IF(OR('Blank - Request Form'!Q100=\"0\",'Blank - Request Form'!Q100=\"00000\",'Blank - Request Form'!Q100=0),\"\",'Blank - Request Form'!Q100),\"\"))","v":""},{"$f":"IF('Blank - Request Form'!$F$6=\"CICSA\",IF(OR('Blank - Request Form'!I100=\"0\",'Blank - Request Form'!I100=\"00000\",'Blank - Request Form'!I100=0),\"\",'Blank - Request Form'!I100),IF('Blank - Request Form'!$F$7=\"CICSA\",IF(OR('Blank - Request Form'!R100=\"0\",'Blank - Request Form'!R100=\"00000\",'Blank - Request Form'!R100=0),\"\",'Blank - Request Form'!R100),\"\"))","v":""},null,{"$f":"IF('Blank - Request Form'!$F$6=\"CICSA\",IF('Blank - Request Form'!K100=0,\"\",'Blank - Request Form'!K100),IF('Blank - Request Form'!$F$7=\"CICSA\",IF('Blank - Request Form'!T100=0,\"\",'Blank - Request Form'!T100),\"\"))","v":""},null,null,null,{"$f":"IF(M66<>\"\",'Blank - Request Form'!$M$2,\"\")","v":""},{"$f":"IF('Blank - Request Form'!$F$6=\"CICSA\",IF('Blank - Request Form'!J100=0,\"\",'Blank - Request Form'!J100),IF('Blank - Request Form'!$F$7=\"CICSA\",IF('Blank - Request Form'!S100=0,\"\",'Blank - Request Form'!S100),\"\"))","v":""},"",66]
[{"$f":"IF('Blank - Request Form'!$F$6=\"CICSA\",IF('Blank - Request Form'!D101=0,\"\",'Blank - Request Form'!D101),IF('Blank - Request Form'!$F$7=\"CICSA\",IF('Blank - Request Form'!M101=0,\"\",'Blank - Request Form'!M101),\"\"))","v":""},{"$f":"IF('Blank - Request Form'!$F$6=\"CICSA\",IF('Blank - Request Form'!E101=0,\"\",'Blank - Request Form'!E101),IF('Blank - Request Form'!$F$7=\"CICSA\",IF('Blank - Request Form'!N101=0,\"\",'Blank - Request Form'!N101),\"\"))","v":""},{"$f":"IF('Blank - Request Form'!$F$6=\"CICSA\",IF(OR('Blank - Request Form'!F101=\"000\",'Blank - Request Form'!F101=0),\"\",'Blank - Request Form'!F101),IF('Blank - Request Form'!$F$7=\"CICSA\",IF(OR('Blank - Request Form'!O101=\"000\",'Blank - Request Form'!O101=0),\"\",'Blank - Request Form'!O101),\"\"))","v":""},{"$f":"IF('Blank - Request Form'!$F$6=\"CICSA\",IF(OR('Blank - Request Form'!G101=\"0\",'Blank - Request Form'!G101=\"00000\",'Blank - Request Form'!G101=0),\"\",'Blank - Request Form'!G101),IF('Blank - Request Form'!$F$7=\"CICSA\",IF(OR('Blank - Request Form'!P101=\"0\",'Blank - Request Form'!P101=\"00000\",'Blank - Request Form'!P101=0),\"\",'Blank - Request Form'!P101),\"\"))","v":""},{"$f":"IF('Blank - Request Form'!$F$6=\"CICSA\",IF(OR('Blank - Request Form'!H101=\"0\",'Blank - Request Form'!H101=\"00000\",'Blank - Request Form'!H101=0),\"\",'Blank - Request Form'!H101),IF('Blank - Request Form'!$F$7=\"CICSA\",IF(OR('Blank - Request Form'!Q101=\"0\",'Blank - Request Form'!Q101=\"00000\",'Blank - Request Form'!Q101=0),\"\",'Blank - Request Form'!Q101),\"\"))","v":""},{"$f":"IF('Blank - Request Form'!$F$6=\"CICSA\",IF(OR('Blank - Request Form'!I101=\"0\",'Blank - Request Form'!I101=\"00000\",'Blank - Request Form'!I101=0),\"\",'Blank - Request Form'!I101),IF('Blank - Request Form'!$F$7=\"CICSA\",IF(OR('Blank - Request Form'!R101=\"0\",'Blank - Request Form'!R101=\"00000\",'Blank - Request Form'!R101=0),\"\",'Blank - Request Form'!R101),\"\"))","v":""},null,{"$f":"IF('Blank - Request Form'!$F$6=\"CICSA\",IF('Blank - Request Form'!K101=0,\"\",'Blank - Request Form'!K101),IF('Blank - Request Form'!$F$7=\"CICSA\",IF('Blank - Request Form'!T101=0,\"\",'Blank - Request Form'!T101),\"\"))","v":""},null,null,null,{"$f":"IF(M67<>\"\",'Blank - Request Form'!$M$2,\"\")","v":""},{"$f":"IF('Blank - Request Form'!$F$6=\"CICSA\",IF('Blank - Request Form'!J101=0,\"\",'Blank - Request Form'!J101),IF('Blank - Request Form'!$F$7=\"CICSA\",IF('Blank - Request Form'!S101=0,\"\",'Blank - Request Form'!S101),\"\"))","v":""},"",67]
[{"$f":"IF('Blank - Request Form'!$F$6=\"CICSA\",IF('Blank - Request Form'!D102=0,\"\",'Blank - Request Form'!D102),IF('Blank - Request Form'!$F$7=\"CICSA\",IF('Blank - Request Form'!M102=0,\"\",'Blank - Request Form'!M102),\"\"))","v":""},{"$f":"IF('Blank - Request Form'!$F$6=\"CICSA\",IF('Blank - Request Form'!E102=0,\"\",'Blank - Request Form'!E102),IF('Blank - Request Form'!$F$7=\"CICSA\",IF('Blank - Request Form'!N102=0,\"\",'Blank - Request Form'!N102),\"\"))","v":""},{"$f":"IF('Blank - Request Form'!$F$6=\"CICSA\",IF(OR('Blank - Request Form'!F102=\"000\",'Blank - Request Form'!F102=0),\"\",'Blank - Request Form'!F102),IF('Blank - Request Form'!$F$7=\"CICSA\",IF(OR('Blank - Request Form'!O102=\"000\",'Blank - Request Form'!O102=0),\"\",'Blank - Request Form'!O102),\"\"))","v":""},{"$f":"IF('Blank - Request Form'!$F$6=\"CICSA\",IF(OR('Blank - Request Form'!G102=\"0\",'Blank - Request Form'!G102=\"00000\",'Blank - Request Form'!G102=0),\"\",'Blank - Request Form'!G102),IF('Blank - Request Form'!$F$7=\"CICSA\",IF(OR('Blank - Request Form'!P102=\"0\",'Blank - Request Form'!P102=\"00000\",'Blank - Request Form'!P102=0),\"\",'Blank - Request Form'!P102),\"\"))","v":""},{"$f":"IF('Blank - Request Form'!$F$6=\"CICSA\",IF(OR('Blank - Request Form'!H102=\"0\",'Blank - Request Form'!H102=\"00000\",'Blank - Request Form'!H102=0),\"\",'Blank - Request Form'!H102),IF('Blank - Request Form'!$F$7=\"CICSA\",IF(OR('Blank - Request Form'!Q102=\"0\",'Blank - Request Form'!Q102=\"00000\",'Blank - Request Form'!Q102=0),\"\",'Blank - Request Form'!Q102),\"\"))","v":""},{"$f":"IF('Blank - Request Form'!$F$6=\"CICSA\",IF(OR('Blank - Request Form'!I102=\"0\",'Blank - Request Form'!I102=\"00000\",'Blank - Request Form'!I102=0),\"\",'Blank - Request Form'!I102),IF('Blank - Request Form'!$F$7=\"CICSA\",IF(OR('Blank - Request Form'!R102=\"0\",'Blank - Request Form'!R102=\"00000\",'Blank - Request Form'!R102=0),\"\",'Blank - Request Form'!R102),\"\"))","v":""},null,{"$f":"IF('Blank - Request Form'!$F$6=\"CICSA\",IF('Blank - Request Form'!K102=0,\"\",'Blank - Request Form'!K102),IF('Blank - Request Form'!$F$7=\"CICSA\",IF('Blank - Request Form'!T102=0,\"\",'Blank - Request Form'!T102),\"\"))","v":""},null,null,null,{"$f":"IF(M68<>\"\",'Blank - Request Form'!$M$2,\"\")","v":""},{"$f":"IF('Blank - Request Form'!$F$6=\"CICSA\",IF('Blank - Request Form'!J102=0,\"\",'Blank - Request Form'!J102),IF('Blank - Request Form'!$F$7=\"CICSA\",IF('Blank - Request Form'!S102=0,\"\",'Blank - Request Form'!S102),\"\"))","v":""},"",68]
[{"$f":"IF('Blank - Request Form'!$F$6=\"CICSA\",IF('Blank - Request Form'!D103=0,\"\",'Blank - Request Form'!D103),IF('Blank - Request Form'!$F$7=\"CICSA\",IF('Blank - Request Form'!M103=0,\"\",'Blank - Request Form'!M103),\"\"))","v":""},{"$f":"IF('Blank - Request Form'!$F$6=\"CICSA\",IF('Blank - Request Form'!E103=0,\"\",'Blank - Request Form'!E103),IF('Blank - Request Form'!$F$7=\"CICSA\",IF('Blank - Request Form'!N103=0,\"\",'Blank - Request Form'!N103),\"\"))","v":""},{"$f":"IF('Blank - Request Form'!$F$6=\"CICSA\",IF(OR('Blank - Request Form'!F103=\"000\",'Blank - Request Form'!F103=0),\"\",'Blank - Request Form'!F103),IF('Blank - Request Form'!$F$7=\"CICSA\",IF(OR('Blank - Request Form'!O103=\"000\",'Blank - Request Form'!O103=0),\"\",'Blank - Request Form'!O103),\"\"))","v":""},{"$f":"IF('Blank - Request Form'!$F$6=\"CICSA\",IF(OR('Blank - Request Form'!G103=\"0\",'Blank - Request Form'!G103=\"00000\",'Blank - Request Form'!G103=0),\"\",'Blank - Request Form'!G103),IF('Blank - Request Form'!$F$7=\"CICSA\",IF(OR('Blank - Request Form'!P103=\"0\",'Blank - Request Form'!P103=\"00000\",'Blank - Request Form'!P103=0),\"\",'Blank - Request Form'!P103),\"\"))","v":""},{"$f":"IF('Blank - Request Form'!$F$6=\"CICSA\",IF(OR('Blank - Request Form'!H103=\"0\",'Blank - Request Form'!H103=\"00000\",'Blank - Request Form'!H103=0),\"\",'Blank - Request Form'!H103),IF('Blank - Request Form'!$F$7=\"CICSA\",IF(OR('Blank - Request Form'!Q103=\"0\",'Blank - Request Form'!Q103=\"00000\",'Blank - Request Form'!Q103=0),\"\",'Blank - Request Form'!Q103),\"\"))","v":""},{"$f":"IF('Blank - Request Form'!$F$6=\"CICSA\",IF(OR('Blank - Request Form'!I103=\"0\",'Blank - Request Form'!I103=\"00000\",'Blank - Request Form'!I103=0),\"\",'Blank - Request Form'!I103),IF('Blank - Request Form'!$F$7=\"CICSA\",IF(OR('Blank - Request Form'!R103=\"0\",'Blank - Request Form'!R103=\"00000\",'Blank - Request Form'!R103=0),\"\",'Blank - Request Form'!R103),\"\"))","v":""},null,{"$f":"IF('Blank - Request Form'!$F$6=\"CICSA\",IF('Blank - Request Form'!K103=0,\"\",'Blank - Request Form'!K103),IF('Blank - Request Form'!$F$7=\"CICSA\",IF('Blank - Request Form'!T103=0,\"\",'Blank - Request Form'!T103),\"\"))","v":""},null,null,null,{"$f":"IF(M69<>\"\",'Blank - Request Form'!$M$2,\"\")","v":""},{"$f":"IF('Blank - Request Form'!$F$6=\"CICSA\",IF('Blank - Request Form'!J103=0,\"\",'Blank - Request Form'!J103),IF('Blank - Request Form'!$F$7=\"CICSA\",IF('Blank - Request Form'!S103=0,\"\",'Blank - Request Form'!S103),\"\"))","v":""},"",69]
[{"$f":"IF('Blank - Request Form'!$F$6=\"CICSA\",IF('Blank - Request Form'!D104=0,\"\",'Blank - Request Form'!D104),IF('Blank - Request Form'!$F$7=\"CICSA\",IF('Blank - Request Form'!M104=0,\"\",'Blank - Request Form'!M104),\"\"))","v":""},{"$f":"IF('Blank - Request Form'!$F$6=\"CICSA\",IF('Blank - Request Form'!E104=0,\"\",'Blank - Request Form'!E104),IF('Blank - Request Form'!$F$7=\"CICSA\",IF('Blank - Request Form'!N104=0,\"\",'Blank - Request Form'!N104),\"\"))","v":""},{"$f":"IF('Blank - Request Form'!$F$6=\"CICSA\",IF(OR('Blank - Request Form'!F104=\"000\",'Blank - Request Form'!F104=0),\"\",'Blank - Request Form'!F104),IF('Blank - Request Form'!$F$7=\"CICSA\",IF(OR('Blank - Request Form'!O104=\"000\",'Blank - Request Form'!O104=0),\"\",'Blank - Request Form'!O104),\"\"))","v":""},{"$f":"IF('Blank - Request Form'!$F$6=\"CICSA\",IF(OR('Blank - Request Form'!G104=\"0\",'Blank - Request Form'!G104=\"00000\",'Blank - Request Form'!G104=0),\"\",'Blank - Request Form'!G104),IF('Blank - Request Form'!$F$7=\"CICSA\",IF(OR('Blank - Request Form'!P104=\"0\",'Blank - Request Form'!P104=\"00000\",'Blank - Request Form'!P104=0),\"\",'Blank - Request Form'!P104),\"\"))","v":""},{"$f":"IF('Blank - Request Form'!$F$6=\"CICSA\",IF(OR('Blank - Request Form'!H104=\"0\",'Blank - Request Form'!H104=\"00000\",'Blank - Request Form'!H104=0),\"\",'Blank - Request Form'!H104),IF('Blank - Request Form'!$F$7=\"CICSA\",IF(OR('Blank - Request Form'!Q104=\"0\",'Blank - Request Form'!Q104=\"00000\",'Blank - Request Form'!Q104=0),\"\",'Blank - Request Form'!Q104),\"\"))","v":""},{"$f":"IF('Blank - Request Form'!$F$6=\"CICSA\",IF(OR('Blank - Request Form'!I104=\"0\",'Blank - Request Form'!I104=\"00000\",'Blank - Request Form'!I104=0),\"\",'Blank - Request Form'!I104),IF('Blank - Request Form'!$F$7=\"CICSA\",IF(OR('Blank - Request Form'!R104=\"0\",'Blank - Request Form'!R104=\"00000\",'Blank - Request Form'!R104=0),\"\",'Blank - Request Form'!R104),\"\"))","v":""},null,{"$f":"IF('Blank - Request Form'!$F$6=\"CICSA\",IF('Blank - Request Form'!K104=0,\"\",'Blank - Request Form'!K104),IF('Blank - Request Form'!$F$7=\"CICSA\",IF('Blank - Request Form'!T104=0,\"\",'Blank - Request Form'!T104),\"\"))","v":""},null,null,null,{"$f":"IF(M70<>\"\",'Blank - Request Form'!$M$2,\"\")","v":""},{"$f":"IF('Blank - Request Form'!$F$6=\"CICSA\",IF('Blank - Request Form'!J104=0,\"\",'Blank - Request Form'!J104),IF('Blank - Request Form'!$F$7=\"CICSA\",IF('Blank - Request Form'!S104=0,\"\",'Blank - Request Form'!S104),\"\"))","v":""},"",70]
[{"$f":"IF('Blank - Request Form'!$F$6=\"CICSA\",IF('Blank - Request Form'!D105=0,\"\",'Blank - Request Form'!D105),IF('Blank - Request Form'!$F$7=\"CICSA\",IF('Blank - Request Form'!M105=0,\"\",'Blank - Request Form'!M105),\"\"))","v":""},{"$f":"IF('Blank - Request Form'!$F$6=\"CICSA\",IF('Blank - Request Form'!E105=0,\"\",'Blank - Request Form'!E105),IF('Blank - Request Form'!$F$7=\"CICSA\",IF('Blank - Request Form'!N105=0,\"\",'Blank - Request Form'!N105),\"\"))","v":""},{"$f":"IF('Blank - Request Form'!$F$6=\"CICSA\",IF(OR('Blank - Request Form'!F105=\"000\",'Blank - Request Form'!F105=0),\"\",'Blank - Request Form'!F105),IF('Blank - Request Form'!$F$7=\"CICSA\",IF(OR('Blank - Request Form'!O105=\"000\",'Blank - Request Form'!O105=0),\"\",'Blank - Request Form'!O105),\"\"))","v":""},{"$f":"IF('Blank - Request Form'!$F$6=\"CICSA\",IF(OR('Blank - Request Form'!G105=\"0\",'Blank - Request Form'!G105=\"00000\",'Blank - Request Form'!G105=0),\"\",'Blank - Request Form'!G105),IF('Blank - Request Form'!$F$7=\"CICSA\",IF(OR('Blank - Request Form'!P105=\"0\",'Blank - Request Form'!P105=\"00000\",'Blank - Request Form'!P105=0),\"\",'Blank - Request Form'!P105),\"\"))","v":""},{"$f":"IF('Blank - Request Form'!$F$6=\"CICSA\",IF(OR('Blank - Request Form'!H105=\"0\",'Blank - Request Form'!H105=\"00000\",'Blank - Request Form'!H105=0),\"\",'Blank - Request Form'!H105),IF('Blank - Request Form'!$F$7=\"CICSA\",IF(OR('Blank - Request Form'!Q105=\"0\",'Blank - Request Form'!Q105=\"00000\",'Blank - Request Form'!Q105=0),\"\",'Blank - Request Form'!Q105),\"\"))","v":""},{"$f":"IF('Blank - Request Form'!$F$6=\"CICSA\",IF(OR('Blank - Request Form'!I105=\"0\",'Blank - Request Form'!I105=\"00000\",'Blank - Request Form'!I105=0),\"\",'Blank - Request Form'!I105),IF('Blank - Request Form'!$F$7=\"CICSA\",IF(OR('Blank - Request Form'!R105=\"0\",'Blank - Request Form'!R105=\"00000\",'Blank - Request Form'!R105=0),\"\",'Blank - Request Form'!R105),\"\"))","v":""},null,{"$f":"IF('Blank - Request Form'!$F$6=\"CICSA\",IF('Blank - Request Form'!K105=0,\"\",'Blank - Request Form'!K105),IF('Blank - Request Form'!$F$7=\"CICSA\",IF('Blank - Request Form'!T105=0,\"\",'Blank - Request Form'!T105),\"\"))","v":""},null,null,null,{"$f":"IF(M71<>\"\",'Blank - Request Form'!$M$2,\"\")","v":""},{"$f":"IF('Blank - Request Form'!$F$6=\"CICSA\",IF('Blank - Request Form'!J105=0,\"\",'Blank - Request Form'!J105),IF('Blank - Request Form'!$F$7=\"CICSA\",IF('Blank - Request Form'!S105=0,\"\",'Blank - Request Form'!S105),\"\"))","v":""},"",71]
[{"$f":"IF('Blank - Request Form'!$F$6=\"CICSA\",IF('Blank - Request Form'!D106=0,\"\",'Blank - Request Form'!D106),IF('Blank - Request Form'!$F$7=\"CICSA\",IF('Blank - Request Form'!M106=0,\"\",'Blank - Request Form'!M106),\"\"))","v":""},{"$f":"IF('Blank - Request Form'!$F$6=\"CICSA\",IF('Blank - Request Form'!E106=0,\"\",'Blank - Request Form'!E106),IF('Blank - Request Form'!$F$7=\"CICSA\",IF('Blank - Request Form'!N106=0,\"\",'Blank - Request Form'!N106),\"\"))","v":""},{"$f":"IF('Blank - Request Form'!$F$6=\"CICSA\",IF(OR('Blank - Request Form'!F106=\"000\",'Blank - Request Form'!F106=0),\"\",'Blank - Request Form'!F106),IF('Blank - Request Form'!$F$7=\"CICSA\",IF(OR('Blank - Request Form'!O106=\"000\",'Blank - Request Form'!O106=0),\"\",'Blank - Request Form'!O106),\"\"))","v":""},{"$f":"IF('Blank - Request Form'!$F$6=\"CICSA\",IF(OR('Blank - Request Form'!G106=\"0\",'Blank - Request Form'!G106=\"00000\",'Blank - Request Form'!G106=0),\"\",'Blank - Request Form'!G106),IF('Blank - Request Form'!$F$7=\"CICSA\",IF(OR('Blank - Request Form'!P106=\"0\",'Blank - Request Form'!P106=\"00000\",'Blank - Request Form'!P106=0),\"\",'Blank - Request Form'!P106),\"\"))","v":""},{"$f":"IF('Blank - Request Form'!$F$6=\"CICSA\",IF(OR('Blank - Request Form'!H106=\"0\",'Blank - Request Form'!H106=\"00000\",'Blank - Request Form'!H106=0),\"\",'Blank - Request Form'!H106),IF('Blank - Request Form'!$F$7=\"CICSA\",IF(OR('Blank - Request Form'!Q106=\"0\",'Blank - Request Form'!Q106=\"00000\",'Blank - Request Form'!Q106=0),\"\",'Blank - Request Form'!Q106),\"\"))","v":""},{"$f":"IF('Blank - Request Form'!$F$6=\"CICSA\",IF(OR('Blank - Request Form'!I106=\"0\",'Blank - Request Form'!I106=\"00000\",'Blank - Request Form'!I106=0),\"\",'Blank - Request Form'!I106),IF('Blank - Request Form'!$F$7=\"CICSA\",IF(OR('Blank - Request Form'!R106=\"0\",'Blank - Request Form'!R106=\"00000\",'Blank - Request Form'!R106=0),\"\",'Blank - Request Form'!R106),\"\"))","v":""},null,{"$f":"IF('Blank - Request Form'!$F$6=\"CICSA\",IF('Blank - Request Form'!K106=0,\"\",'Blank - Request Form'!K106),IF('Blank - Request Form'!$F$7=\"CICSA\",IF('Blank - Request Form'!T106=0,\"\",'Blank - Request Form'!T106),\"\"))","v":""},null,null,null,{"$f":"IF(M72<>\"\",'Blank - Request Form'!$M$2,\"\")","v":""},{"$f":"IF('Blank - Request Form'!$F$6=\"CICSA\",IF('Blank - Request Form'!J106=0,\"\",'Blank - Request Form'!J106),IF('Blank - Request Form'!$F$7=\"CICSA\",IF('Blank - Request Form'!S106=0,\"\",'Blank - Request Form'!S106),\"\"))","v":""},"",72]
[{"$f":"IF('Blank - Request Form'!$F$6=\"CICSA\",IF('Blank - Request Form'!D107=0,\"\",'Blank - Request Form'!D107),IF('Blank - Request Form'!$F$7=\"CICSA\",IF('Blank - Request Form'!M107=0,\"\",'Blank - Request Form'!M107),\"\"))","v":""},{"$f":"IF('Blank - Request Form'!$F$6=\"CICSA\",IF('Blank - Request Form'!E107=0,\"\",'Blank - Request Form'!E107),IF('Blank - Request Form'!$F$7=\"CICSA\",IF('Blank - Request Form'!N107=0,\"\",'Blank - Request Form'!N107),\"\"))","v":""},{"$f":"IF('Blank - Request Form'!$F$6=\"CICSA\",IF(OR('Blank - Request Form'!F107=\"000\",'Blank - Request Form'!F107=0),\"\",'Blank - Request Form'!F107),IF('Blank - Request Form'!$F$7=\"CICSA\",IF(OR('Blank - Request Form'!O107=\"000\",'Blank - Request Form'!O107=0),\"\",'Blank - Request Form'!O107),\"\"))","v":""},{"$f":"IF('Blank - Request Form'!$F$6=\"CICSA\",IF(OR('Blank - Request Form'!G107=\"0\",'Blank - Request Form'!G107=\"00000\",'Blank - Request Form'!G107=0),\"\",'Blank - Request Form'!G107),IF('Blank - Request Form'!$F$7=\"CICSA\",IF(OR('Blank - Request Form'!P107=\"0\",'Blank - Request Form'!P107=\"00000\",'Blank - Request Form'!P107=0),\"\",'Blank - Request Form'!P107),\"\"))","v":""},{"$f":"IF('Blank - Request Form'!$F$6=\"CICSA\",IF(OR('Blank - Request Form'!H107=\"0\",'Blank - Request Form'!H107=\"00000\",'Blank - Request Form'!H107=0),\"\",'Blank - Request Form'!H107),IF('Blank - Request Form'!$F$7=\"CICSA\",IF(OR('Blank - Request Form'!Q107=\"0\",'Blank - Request Form'!Q107=\"00000\",'Blank - Request Form'!Q107=0),\"\",'Blank - Request Form'!Q107),\"\"))","v":""},{"$f":"IF('Blank - Request Form'!$F$6=\"CICSA\",IF(OR('Blank - Request Form'!I107=\"0\",'Blank - Request Form'!I107=\"00000\",'Blank - Request Form'!I107=0),\"\",'Blank - Request Form'!I107),IF('Blank - Request Form'!$F$7=\"CICSA\",IF(OR('Blank - Request Form'!R107=\"0\",'Blank - Request Form'!R107=\"00000\",'Blank - Request Form'!R107=0),\"\",'Blank - Request Form'!R107),\"\"))","v":""},null,{"$f":"IF('Blank - Request Form'!$F$6=\"CICSA\",IF('Blank - Request Form'!K107=0,\"\",'Blank - Request Form'!K107),IF('Blank - Request Form'!$F$7=\"CICSA\",IF('Blank - Request Form'!T107=0,\"\",'Blank - Request Form'!T107),\"\"))","v":""},null,null,null,{"$f":"IF(M73<>\"\",'Blank - Request Form'!$M$2,\"\")","v":""},{"$f":"IF('Blank - Request Form'!$F$6=\"CICSA\",IF('Blank - Request Form'!J107=0,\"\",'Blank - Request Form'!J107),IF('Blank - Request Form'!$F$7=\"CICSA\",IF('Blank - Request Form'!S107=0,\"\",'Blank - Request Form'!S107),\"\"))","v":""},"",73]
[{"$f":"IF('Blank - Request Form'!$F$6=\"CICSA\",IF('Blank - Request Form'!D108=0,\"\",'Blank - Request Form'!D108),IF('Blank - Request Form'!$F$7=\"CICSA\",IF('Blank - Request Form'!M108=0,\"\",'Blank - Request Form'!M108),\"\"))","v":""},{"$f":"IF('Blank - Request Form'!$F$6=\"CICSA\",IF('Blank - Request Form'!E108=0,\"\",'Blank - Request Form'!E108),IF('Blank - Request Form'!$F$7=\"CICSA\",IF('Blank - Request Form'!N108=0,\"\",'Blank - Request Form'!N108),\"\"))","v":""},{"$f":"IF('Blank - Request Form'!$F$6=\"CICSA\",IF(OR('Blank - Request Form'!F108=\"000\",'Blank - Request Form'!F108=0),\"\",'Blank - Request Form'!F108),IF('Blank - Request Form'!$F$7=\"CICSA\",IF(OR('Blank - Request Form'!O108=\"000\",'Blank - Request Form'!O108=0),\"\",'Blank - Request Form'!O108),\"\"))","v":""},{"$f":"IF('Blank - Request Form'!$F$6=\"CICSA\",IF(OR('Blank - Request Form'!G108=\"0\",'Blank - Request Form'!G108=\"00000\",'Blank - Request Form'!G108=0),\"\",'Blank - Request Form'!G108),IF('Blank - Request Form'!$F$7=\"CICSA\",IF(OR('Blank - Request Form'!P108=\"0\",'Blank - Request Form'!P108=\"00000\",'Blank - Request Form'!P108=0),\"\",'Blank - Request Form'!P108),\"\"))","v":""},{"$f":"IF('Blank - Request Form'!$F$6=\"CICSA\",IF(OR('Blank - Request Form'!H108=\"0\",'Blank - Request Form'!H108=\"00000\",'Blank - Request Form'!H108=0),\"\",'Blank - Request Form'!H108),IF('Blank - Request Form'!$F$7=\"CICSA\",IF(OR('Blank - Request Form'!Q108=\"0\",'Blank - Request Form'!Q108=\"00000\",'Blank - Request Form'!Q108=0),\"\",'Blank - Request Form'!Q108),\"\"))","v":""},{"$f":"IF('Blank - Request Form'!$F$6=\"CICSA\",IF(OR('Blank - Request Form'!I108=\"0\",'Blank - Request Form'!I108=\"00000\",'Blank - Request Form'!I108=0),\"\",'Blank - Request Form'!I108),IF('Blank - Request Form'!$F$7=\"CICSA\",IF(OR('Blank - Request Form'!R108=\"0\",'Blank - Request Form'!R108=\"00000\",'Blank - Request Form'!R108=0),\"\",'Blank - Request Form'!R108),\"\"))","v":""},null,{"$f":"IF('Blank - Request Form'!$F$6=\"CICSA\",IF('Blank - Request Form'!K108=0,\"\",'Blank - Request Form'!K108),IF('Blank - Request Form'!$F$7=\"CICSA\",IF('Blank - Request Form'!T108=0,\"\",'Blank - Request Form'!T108),\"\"))","v":""},null,null,null,{"$f":"IF(M74<>\"\",'Blank - Request Form'!$M$2,\"\")","v":""},{"$f":"IF('Blank - Request Form'!$F$6=\"CICSA\",IF('Blank - Request Form'!J108=0,\"\",'Blank - Request Form'!J108),IF('Blank - Request Form'!$F$7=\"CICSA\",IF('Blank - Request Form'!S108=0,\"\",'Blank - Request Form'!S108),\"\"))","v":""},"",74]
[{"$f":"IF('Blank - Request Form'!$F$6=\"CICSA\",IF('Blank - Request Form'!D109=0,\"\",'Blank - Request Form'!D109),IF('Blank - Request Form'!$F$7=\"CICSA\",IF('Blank - Request Form'!M109=0,\"\",'Blank - Request Form'!M109),\"\"))","v":""},{"$f":"IF('Blank - Request Form'!$F$6=\"CICSA\",IF('Blank - Request Form'!E109=0,\"\",'Blank - Request Form'!E109),IF('Blank - Request Form'!$F$7=\"CICSA\",IF('Blank - Request Form'!N109=0,\"\",'Blank - Request Form'!N109),\"\"))","v":""},{"$f":"IF('Blank - Request Form'!$F$6=\"CICSA\",IF(OR('Blank - Request Form'!F109=\"000\",'Blank - Request Form'!F109=0),\"\",'Blank - Request Form'!F109),IF('Blank - Request Form'!$F$7=\"CICSA\",IF(OR('Blank - Request Form'!O109=\"000\",'Blank - Request Form'!O109=0),\"\",'Blank - Request Form'!O109),\"\"))","v":""},{"$f":"IF('Blank - Request Form'!$F$6=\"CICSA\",IF(OR('Blank - Request Form'!G109=\"0\",'Blank - Request Form'!G109=\"00000\",'Blank - Request Form'!G109=0),\"\",'Blank - Request Form'!G109),IF('Blank - Request Form'!$F$7=\"CICSA\",IF(OR('Blank - Request Form'!P109=\"0\",'Blank - Request Form'!P109=\"00000\",'Blank - Request Form'!P109=0),\"\",'Blank - Request Form'!P109),\"\"))","v":""},{"$f":"IF('Blank - Request Form'!$F$6=\"CICSA\",IF(OR('Blank - Request Form'!H109=\"0\",'Blank - Request Form'!H109=\"00000\",'Blank - Request Form'!H109=0),\"\",'Blank - Request Form'!H109),IF('Blank - Request Form'!$F$7=\"CICSA\",IF(OR('Blank - Request Form'!Q109=\"0\",'Blank - Request Form'!Q109=\"00000\",'Blank - Request Form'!Q109=0),\"\",'Blank - Request Form'!Q109),\"\"))","v":""},{"$f":"IF('Blank - Request Form'!$F$6=\"CICSA\",IF(OR('Blank - Request Form'!I109=\"0\",'Blank - Request Form'!I109=\"00000\",'Blank - Request Form'!I109=0),\"\",'Blank - Request Form'!I109),IF('Blank - Request Form'!$F$7=\"CICSA\",IF(OR('Blank - Request Form'!R109=\"0\",'Blank - Request Form'!R109=\"00000\",'Blank - Request Form'!R109=0),\"\",'Blank - Request Form'!R109),\"\"))","v":""},null,{"$f":"IF('Blank - Request Form'!$F$6=\"CICSA\",IF('Blank - Request Form'!K109=0,\"\",'Blank - Request Form'!K109),IF('Blank - Request Form'!$F$7=\"CICSA\",IF('Blank - Request Form'!T109=0,\"\",'Blank - Request Form'!T109),\"\"))","v":""},null,null,null,{"$f":"IF(M75<>\"\",'Blank - Request Form'!$M$2,\"\")","v":""},{"$f":"IF('Blank - Request Form'!$F$6=\"CICSA\",IF('Blank - Request Form'!J109=0,\"\",'Blank - Request Form'!J109),IF('Blank - Request Form'!$F$7=\"CICSA\",IF('Blank - Request Form'!S109=0,\"\",'Blank - Request Form'!S109),\"\"))","v":""},"",75]
[{"$f":"IF('Blank - Request Form'!$F$6=\"CICSA\",IF('Blank - Request Form'!D110=0,\"\",'Blank - Request Form'!D110),IF('Blank - Request Form'!$F$7=\"CICSA\",IF('Blank - Request Form'!M110=0,\"\",'Blank - Request Form'!M110),\"\"))","v":""},{"$f":"IF('Blank - Request Form'!$F$6=\"CICSA\",IF('Blank - Request Form'!E110=0,\"\",'Blank - Request Form'!E110),IF('Blank - Request Form'!$F$7=\"CICSA\",IF('Blank - Request Form'!N110=0,\"\",'Blank - Request Form'!N110),\"\"))","v":""},{"$f":"IF('Blank - Request Form'!$F$6=\"CICSA\",IF(OR('Blank - Request Form'!F110=\"000\",'Blank - Request Form'!F110=0),\"\",'Blank - Request Form'!F110),IF('Blank - Request Form'!$F$7=\"CICSA\",IF(OR('Blank - Request Form'!O110=\"000\",'Blank - Request Form'!O110=0),\"\",'Blank - Request Form'!O110),\"\"))","v":""},{"$f":"IF('Blank - Request Form'!$F$6=\"CICSA\",IF(OR('Blank - Request Form'!G110=\"0\",'Blank - Request Form'!G110=\"00000\",'Blank - Request Form'!G110=0),\"\",'Blank - Request Form'!G110),IF('Blank - Request Form'!$F$7=\"CICSA\",IF(OR('Blank - Request Form'!P110=\"0\",'Blank - Request Form'!P110=\"00000\",'Blank - Request Form'!P110=0),\"\",'Blank - Request Form'!P110),\"\"))","v":""},{"$f":"IF('Blank - Request Form'!$F$6=\"CICSA\",IF(OR('Blank - Request Form'!H110=\"0\",'Blank - Request Form'!H110=\"00000\",'Blank - Request Form'!H110=0),\"\",'Blank - Request Form'!H110),IF('Blank - Request Form'!$F$7=\"CICSA\",IF(OR('Blank - Request Form'!Q110=\"0\",'Blank - Request Form'!Q110=\"00000\",'Blank - Request Form'!Q110=0),\"\",'Blank - Request Form'!Q110),\"\"))","v":""},{"$f":"IF('Blank - Request Form'!$F$6=\"CICSA\",IF(OR('Blank - Request Form'!I110=\"0\",'Blank - Request Form'!I110=\"00000\",'Blank - Request Form'!I110=0),\"\",'Blank - Request Form'!I110),IF('Blank - Request Form'!$F$7=\"CICSA\",IF(OR('Blank - Request Form'!R110=\"0\",'Blank - Request Form'!R110=\"00000\",'Blank - Request Form'!R110=0),\"\",'Blank - Request Form'!R110),\"\"))","v":""},null,{"$f":"IF('Blank - Request Form'!$F$6=\"CICSA\",IF('Blank - Request Form'!K110=0,\"\",'Blank - Request Form'!K110),IF('Blank - Request Form'!$F$7=\"CICSA\",IF('Blank - Request Form'!T110=0,\"\",'Blank - Request Form'!T110),\"\"))","v":""},null,null,null,{"$f":"IF(M76<>\"\",'Blank - Request Form'!$M$2,\"\")","v":""},{"$f":"IF('Blank - Request Form'!$F$6=\"CICSA\",IF('Blank - Request Form'!J110=0,\"\",'Blank - Request Form'!J110),IF('Blank - Request Form'!$F$7=\"CICSA\",IF('Blank - Request Form'!S110=0,\"\",'Blank - Request Form'!S110),\"\"))","v":""},"",76]
[{"$f":"IF('Blank - Request Form'!$F$6=\"CICSA\",IF('Blank - Request Form'!D111=0,\"\",'Blank - Request Form'!D111),IF('Blank - Request Form'!$F$7=\"CICSA\",IF('Blank - Request Form'!M111=0,\"\",'Blank - Request Form'!M111),\"\"))","v":""},{"$f":"IF('Blank - Request Form'!$F$6=\"CICSA\",IF('Blank - Request Form'!E111=0,\"\",'Blank - Request Form'!E111),IF('Blank - Request Form'!$F$7=\"CICSA\",IF('Blank - Request Form'!N111=0,\"\",'Blank - Request Form'!N111),\"\"))","v":""},{"$f":"IF('Blank - Request Form'!$F$6=\"CICSA\",IF(OR('Blank - Request Form'!F111=\"000\",'Blank - Request Form'!F111=0),\"\",'Blank - Request Form'!F111),IF('Blank - Request Form'!$F$7=\"CICSA\",IF(OR('Blank - Request Form'!O111=\"000\",'Blank - Request Form'!O111=0),\"\",'Blank - Request Form'!O111),\"\"))","v":""},{"$f":"IF('Blank - Request Form'!$F$6=\"CICSA\",IF(OR('Blank - Request Form'!G111=\"0\",'Blank - Request Form'!G111=\"00000\",'Blank - Request Form'!G111=0),\"\",'Blank - Request Form'!G111),IF('Blank - Request Form'!$F$7=\"CICSA\",IF(OR('Blank - Request Form'!P111=\"0\",'Blank - Request Form'!P111=\"00000\",'Blank - Request Form'!P111=0),\"\",'Blank - Request Form'!P111),\"\"))","v":""},{"$f":"IF('Blank - Request Form'!$F$6=\"CICSA\",IF(OR('Blank - Request Form'!H111=\"0\",'Blank - Request Form'!H111=\"00000\",'Blank - Request Form'!H111=0),\"\",'Blank - Request Form'!H111),IF('Blank - Request Form'!$F$7=\"CICSA\",IF(OR('Blank - Request Form'!Q111=\"0\",'Blank - Request Form'!Q111=\"00000\",'Blank - Request Form'!Q111=0),\"\",'Blank - Request Form'!Q111),\"\"))","v":""},{"$f":"IF('Blank - Request Form'!$F$6=\"CICSA\",IF(OR('Blank - Request Form'!I111=\"0\",'Blank - Request Form'!I111=\"00000\",'Blank - Request Form'!I111=0),\"\",'Blank - Request Form'!I111),IF('Blank - Request Form'!$F$7=\"CICSA\",IF(OR('Blank - Request Form'!R111=\"0\",'Blank - Request Form'!R111=\"00000\",'Blank - Request Form'!R111=0),\"\",'Blank - Request Form'!R111),\"\"))","v":""},null,{"$f":"IF('Blank - Request Form'!$F$6=\"CICSA\",IF('Blank - Request Form'!K111=0,\"\",'Blank - Request Form'!K111),IF('Blank - Request Form'!$F$7=\"CICSA\",IF('Blank - Request Form'!T111=0,\"\",'Blank - Request Form'!T111),\"\"))","v":""},null,null,null,{"$f":"IF(M77<>\"\",'Blank - Request Form'!$M$2,\"\")","v":""},{"$f":"IF('Blank - Request Form'!$F$6=\"CICSA\",IF('Blank - Request Form'!J111=0,\"\",'Blank - Request Form'!J111),IF('Blank - Request Form'!$F$7=\"CICSA\",IF('Blank - Request Form'!S111=0,\"\",'Blank - Request Form'!S111),\"\"))","v":""},"",77]
[{"$f":"IF('Blank - Request Form'!$F$6=\"CICSA\",IF('Blank - Request Form'!D112=0,\"\",'Blank - Request Form'!D112),IF('Blank - Request Form'!$F$7=\"CICSA\",IF('Blank - Request Form'!M112=0,\"\",'Blank - Request Form'!M112),\"\"))","v":""},{"$f":"IF('Blank - Request Form'!$F$6=\"CICSA\",IF('Blank - Request Form'!E112=0,\"\",'Blank - Request Form'!E112),IF('Blank - Request Form'!$F$7=\"CICSA\",IF('Blank - Request Form'!N112=0,\"\",'Blank - Request Form'!N112),\"\"))","v":""},{"$f":"IF('Blank - Request Form'!$F$6=\"CICSA\",IF(OR('Blank - Request Form'!F112=\"000\",'Blank - Request Form'!F112=0),\"\",'Blank - Request Form'!F112),IF('Blank - Request Form'!$F$7=\"CICSA\",IF(OR('Blank - Request Form'!O112=\"000\",'Blank - Request Form'!O112=0),\"\",'Blank - Request Form'!O112),\"\"))","v":""},{"$f":"IF('Blank - Request Form'!$F$6=\"CICSA\",IF(OR('Blank - Request Form'!G112=\"0\",'Blank - Request Form'!G112=\"00000\",'Blank - Request Form'!G112=0),\"\",'Blank - Request Form'!G112),IF('Blank - Request Form'!$F$7=\"CICSA\",IF(OR('Blank - Request Form'!P112=\"0\",'Blank - Request Form'!P112=\"00000\",'Blank - Request Form'!P112=0),\"\",'Blank - Request Form'!P112),\"\"))","v":""},{"$f":"IF('Blank - Request Form'!$F$6=\"CICSA\",IF(OR('Blank - Request Form'!H112=\"0\",'Blank - Request Form'!H112=\"00000\",'Blank - Request Form'!H112=0),\"\",'Blank - Request Form'!H112),IF('Blank - Request Form'!$F$7=\"CICSA\",IF(OR('Blank - Request Form'!Q112=\"0\",'Blank - Request Form'!Q112=\"00000\",'Blank - Request Form'!Q112=0),\"\",'Blank - Request Form'!Q112),\"\"))","v":""},{"$f":"IF('Blank - Request Form'!$F$6=\"CICSA\",IF(OR('Blank - Request Form'!I112=\"0\",'Blank - Request Form'!I112=\"00000\",'Blank - Request Form'!I112=0),\"\",'Blank - Request Form'!I112),IF('Blank - Request Form'!$F$7=\"CICSA\",IF(OR('Blank - Request Form'!R112=\"0\",'Blank - Request Form'!R112=\"00000\",'Blank - Request Form'!R112=0),\"\",'Blank - Request Form'!R112),\"\"))","v":""},null,{"$f":"IF('Blank - Request Form'!$F$6=\"CICSA\",IF('Blank - Request Form'!K112=0,\"\",'Blank - Request Form'!K112),IF('Blank - Request Form'!$F$7=\"CICSA\",IF('Blank - Request Form'!T112=0,\"\",'Blank - Request Form'!T112),\"\"))","v":""},null,null,null,{"$f":"IF(M78<>\"\",'Blank - Request Form'!$M$2,\"\")","v":""},{"$f":"IF('Blank - Request Form'!$F$6=\"CICSA\",IF('Blank - Request Form'!J112=0,\"\",'Blank - Request Form'!J112),IF('Blank - Request Form'!$F$7=\"CICSA\",IF('Blank - Request Form'!S112=0,\"\",'Blank - Request Form'!S112),\"\"))","v":""},"",78]
[{"$f":"IF('Blank - Request Form'!$F$6=\"CICSA\",IF('Blank - Request Form'!D113=0,\"\",'Blank - Request Form'!D113),IF('Blank - Request Form'!$F$7=\"CICSA\",IF('Blank - Request Form'!M113=0,\"\",'Blank - Request Form'!M113),\"\"))","v":""},{"$f":"IF('Blank - Request Form'!$F$6=\"CICSA\",IF('Blank - Request Form'!E113=0,\"\",'Blank - Request Form'!E113),IF('Blank - Request Form'!$F$7=\"CICSA\",IF('Blank - Request Form'!N113=0,\"\",'Blank - Request Form'!N113),\"\"))","v":""},{"$f":"IF('Blank - Request Form'!$F$6=\"CICSA\",IF(OR('Blank - Request Form'!F113=\"000\",'Blank - Request Form'!F113=0),\"\",'Blank - Request Form'!F113),IF('Blank - Request Form'!$F$7=\"CICSA\",IF(OR('Blank - Request Form'!O113=\"000\",'Blank - Request Form'!O113=0),\"\",'Blank - Request Form'!O113),\"\"))","v":""},{"$f":"IF('Blank - Request Form'!$F$6=\"CICSA\",IF(OR('Blank - Request Form'!G113=\"0\",'Blank - Request Form'!G113=\"00000\",'Blank - Request Form'!G113=0),\"\",'Blank - Request Form'!G113),IF('Blank - Request Form'!$F$7=\"CICSA\",IF(OR('Blank - Request Form'!P113=\"0\",'Blank - Request Form'!P113=\"00000\",'Blank - Request Form'!P113=0),\"\",'Blank - Request Form'!P113),\"\"))","v":""},{"$f":"IF('Blank - Request Form'!$F$6=\"CICSA\",IF(OR('Blank - Request Form'!H113=\"0\",'Blank - Request Form'!H113=\"00000\",'Blank - Request Form'!H113=0),\"\",'Blank - Request Form'!H113),IF('Blank - Request Form'!$F$7=\"CICSA\",IF(OR('Blank - Request Form'!Q113=\"0\",'Blank - Request Form'!Q113=\"00000\",'Blank - Request Form'!Q113=0),\"\",'Blank - Request Form'!Q113),\"\"))","v":""},{"$f":"IF('Blank - Request Form'!$F$6=\"CICSA\",IF(OR('Blank - Request Form'!I113=\"0\",'Blank - Request Form'!I113=\"00000\",'Blank - Request Form'!I113=0),\"\",'Blank - Request Form'!I113),IF('Blank - Request Form'!$F$7=\"CICSA\",IF(OR('Blank - Request Form'!R113=\"0\",'Blank - Request Form'!R113=\"00000\",'Blank - Request Form'!R113=0),\"\",'Blank - Request Form'!R113),\"\"))","v":""},null,{"$f":"IF('Blank - Request Form'!$F$6=\"CICSA\",IF('Blank - Request Form'!K113=0,\"\",'Blank - Request Form'!K113),IF('Blank - Request Form'!$F$7=\"CICSA\",IF('Blank - Request Form'!T113=0,\"\",'Blank - Request Form'!T113),\"\"))","v":""},null,null,null,{"$f":"IF(M79<>\"\",'Blank - Request Form'!$M$2,\"\")","v":""},{"$f":"IF('Blank - Request Form'!$F$6=\"CICSA\",IF('Blank - Request Form'!J113=0,\"\",'Blank - Request Form'!J113),IF('Blank - Request Form'!$F$7=\"CICSA\",IF('Blank - Request Form'!S113=0,\"\",'Blank - Request Form'!S113),\"\"))","v":""},"",79]
[{"$f":"IF('Blank - Request Form'!$F$6=\"CICSA\",IF('Blank - Request Form'!D114=0,\"\",'Blank - Request Form'!D114),IF('Blank - Request Form'!$F$7=\"CICSA\",IF('Blank - Request Form'!M114=0,\"\",'Blank - Request Form'!M114),\"\"))","v":""},{"$f":"IF('Blank - Request Form'!$F$6=\"CICSA\",IF('Blank - Request Form'!E114=0,\"\",'Blank - Request Form'!E114),IF('Blank - Request Form'!$F$7=\"CICSA\",IF('Blank - Request Form'!N114=0,\"\",'Blank - Request Form'!N114),\"\"))","v":""},{"$f":"IF('Blank - Request Form'!$F$6=\"CICSA\",IF(OR('Blank - Request Form'!F114=\"000\",'Blank - Request Form'!F114=0),\"\",'Blank - Request Form'!F114),IF('Blank - Request Form'!$F$7=\"CICSA\",IF(OR('Blank - Request Form'!O114=\"000\",'Blank - Request Form'!O114=0),\"\",'Blank - Request Form'!O114),\"\"))","v":""},{"$f":"IF('Blank - Request Form'!$F$6=\"CICSA\",IF(OR('Blank - Request Form'!G114=\"0\",'Blank - Request Form'!G114=\"00000\",'Blank - Request Form'!G114=0),\"\",'Blank - Request Form'!G114),IF('Blank - Request Form'!$F$7=\"CICSA\",IF(OR('Blank - Request Form'!P114=\"0\",'Blank - Request Form'!P114=\"00000\",'Blank - Request Form'!P114=0),\"\",'Blank - Request Form'!P114),\"\"))","v":""},{"$f":"IF('Blank - Request Form'!$F$6=\"CICSA\",IF(OR('Blank - Request Form'!H114=\"0\",'Blank - Request Form'!H114=\"00000\",'Blank - Request Form'!H114=0),\"\",'Blank - Request Form'!H114),IF('Blank - Request Form'!$F$7=\"CICSA\",IF(OR('Blank - Request Form'!Q114=\"0\",'Blank - Request Form'!Q114=\"00000\",'Blank - Request Form'!Q114=0),\"\",'Blank - Request Form'!Q114),\"\"))","v":""},{"$f":"IF('Blank - Request Form'!$F$6=\"CICSA\",IF(OR('Blank - Request Form'!I114=\"0\",'Blank - Request Form'!I114=\"00000\",'Blank - Request Form'!I114=0),\"\",'Blank - Request Form'!I114),IF('Blank - Request Form'!$F$7=\"CICSA\",IF(OR('Blank - Request Form'!R114=\"0\",'Blank - Request Form'!R114=\"00000\",'Blank - Request Form'!R114=0),\"\",'Blank - Request Form'!R114),\"\"))","v":""},null,{"$f":"IF('Blank - Request Form'!$F$6=\"CICSA\",IF('Blank - Request Form'!K114=0,\"\",'Blank - Request Form'!K114),IF('Blank - Request Form'!$F$7=\"CICSA\",IF('Blank - Request Form'!T114=0,\"\",'Blank - Request Form'!T114),\"\"))","v":""},null,null,null,{"$f":"IF(M80<>\"\",'Blank - Request Form'!$M$2,\"\")","v":""},{"$f":"IF('Blank - Request Form'!$F$6=\"CICSA\",IF('Blank - Request Form'!J114=0,\"\",'Blank - Request Form'!J114),IF('Blank - Request Form'!$F$7=\"CICSA\",IF('Blank - Request Form'!S114=0,\"\",'Blank - Request Form'!S114),\"\"))","v":""},"",80]
[{"$f":"IF('Blank - Request Form'!$F$6=\"CICSA\",IF('Blank - Request Form'!D115=0,\"\",'Blank - Request Form'!D115),IF('Blank - Request Form'!$F$7=\"CICSA\",IF('Blank - Request Form'!M115=0,\"\",'Blank - Request Form'!M115),\"\"))","v":""},{"$f":"IF('Blank - Request Form'!$F$6=\"CICSA\",IF('Blank - Request Form'!E115=0,\"\",'Blank - Request Form'!E115),IF('Blank - Request Form'!$F$7=\"CICSA\",IF('Blank - Request Form'!N115=0,\"\",'Blank - Request Form'!N115),\"\"))","v":""},{"$f":"IF('Blank - Request Form'!$F$6=\"CICSA\",IF(OR('Blank - Request Form'!F115=\"000\",'Blank - Request Form'!F115=0),\"\",'Blank - Request Form'!F115),IF('Blank - Request Form'!$F$7=\"CICSA\",IF(OR('Blank - Request Form'!O115=\"000\",'Blank - Request Form'!O115=0),\"\",'Blank - Request Form'!O115),\"\"))","v":""},{"$f":"IF('Blank - Request Form'!$F$6=\"CICSA\",IF(OR('Blank - Request Form'!G115=\"0\",'Blank - Request Form'!G115=\"00000\",'Blank - Request Form'!G115=0),\"\",'Blank - Request Form'!G115),IF('Blank - Request Form'!$F$7=\"CICSA\",IF(OR('Blank - Request Form'!P115=\"0\",'Blank - Request Form'!P115=\"00000\",'Blank - Request Form'!P115=0),\"\",'Blank - Request Form'!P115),\"\"))","v":""},{"$f":"IF('Blank - Request Form'!$F$6=\"CICSA\",IF(OR('Blank - Request Form'!H115=\"0\",'Blank - Request Form'!H115=\"00000\",'Blank - Request Form'!H115=0),\"\",'Blank - Request Form'!H115),IF('Blank - Request Form'!$F$7=\"CICSA\",IF(OR('Blank - Request Form'!Q115=\"0\",'Blank - Request Form'!Q115=\"00000\",'Blank - Request Form'!Q115=0),\"\",'Blank - Request Form'!Q115),\"\"))","v":""},{"$f":"IF('Blank - Request Form'!$F$6=\"CICSA\",IF(OR('Blank - Request Form'!I115=\"0\",'Blank - Request Form'!I115=\"00000\",'Blank - Request Form'!I115=0),\"\",'Blank - Request Form'!I115),IF('Blank - Request Form'!$F$7=\"CICSA\",IF(OR('Blank - Request Form'!R115=\"0\",'Blank - Request Form'!R115=\"00000\",'Blank - Request Form'!R115=0),\"\",'Blank - Request Form'!R115),\"\"))","v":""},null,{"$f":"IF('Blank - Request Form'!$F$6=\"CICSA\",IF('Blank - Request Form'!K115=0,\"\",'Blank - Request Form'!K115),IF('Blank - Request Form'!$F$7=\"CICSA\",IF('Blank - Request Form'!T115=0,\"\",'Blank - Request Form'!T115),\"\"))","v":""},null,null,null,{"$f":"IF(M81<>\"\",'Blank - Request Form'!$M$2,\"\")","v":""},{"$f":"IF('Blank - Request Form'!$F$6=\"CICSA\",IF('Blank - Request Form'!J115=0,\"\",'Blank - Request Form'!J115),IF('Blank - Request Form'!$F$7=\"CICSA\",IF('Blank - Request Form'!S115=0,\"\",'Blank - Request Form'!S115),\"\"))","v":""},"",81]
[{"$f":"IF('Blank - Request Form'!$F$6=\"CICSA\",IF('Blank - Request Form'!D116=0,\"\",'Blank - Request Form'!D116),IF('Blank - Request Form'!$F$7=\"CICSA\",IF('Blank - Request Form'!M116=0,\"\",'Blank - Request Form'!M116),\"\"))","v":""},{"$f":"IF('Blank - Request Form'!$F$6=\"CICSA\",IF('Blank - Request Form'!E116=0,\"\",'Blank - Request Form'!E116),IF('Blank - Request Form'!$F$7=\"CICSA\",IF('Blank - Request Form'!N116=0,\"\",'Blank - Request Form'!N116),\"\"))","v":""},{"$f":"IF('Blank - Request Form'!$F$6=\"CICSA\",IF(OR('Blank - Request Form'!F116=\"000\",'Blank - Request Form'!F116=0),\"\",'Blank - Request Form'!F116),IF('Blank - Request Form'!$F$7=\"CICSA\",IF(OR('Blank - Request Form'!O116=\"000\",'Blank - Request Form'!O116=0),\"\",'Blank - Request Form'!O116),\"\"))","v":""},{"$f":"IF('Blank - Request Form'!$F$6=\"CICSA\",IF(OR('Blank - Request Form'!G116=\"0\",'Blank - Request Form'!G116=\"00000\",'Blank - Request Form'!G116=0),\"\",'Blank - Request Form'!G116),IF('Blank - Request Form'!$F$7=\"CICSA\",IF(OR('Blank - Request Form'!P116=\"0\",'Blank - Request Form'!P116=\"00000\",'Blank - Request Form'!P116=0),\"\",'Blank - Request Form'!P116),\"\"))","v":""},{"$f":"IF('Blank - Request Form'!$F$6=\"CICSA\",IF(OR('Blank - Request Form'!H116=\"0\",'Blank - Request Form'!H116=\"00000\",'Blank - Request Form'!H116=0),\"\",'Blank - Request Form'!H116),IF('Blank - Request Form'!$F$7=\"CICSA\",IF(OR('Blank - Request Form'!Q116=\"0\",'Blank - Request Form'!Q116=\"00000\",'Blank - Request Form'!Q116=0),\"\",'Blank - Request Form'!Q116),\"\"))","v":""},{"$f":"IF('Blank - Request Form'!$F$6=\"CICSA\",IF(OR('Blank - Request Form'!I116=\"0\",'Blank - Request Form'!I116=\"00000\",'Blank - Request Form'!I116=0),\"\",'Blank - Request Form'!I116),IF('Blank - Request Form'!$F$7=\"CICSA\",IF(OR('Blank - Request Form'!R116=\"0\",'Blank - Request Form'!R116=\"00000\",'Blank - Request Form'!R116=0),\"\",'Blank - Request Form'!R116),\"\"))","v":""},null,{"$f":"IF('Blank - Request Form'!$F$6=\"CICSA\",IF('Blank - Request Form'!K116=0,\"\",'Blank - Request Form'!K116),IF('Blank - Request Form'!$F$7=\"CICSA\",IF('Blank - Request Form'!T116=0,\"\",'Blank - Request Form'!T116),\"\"))","v":""},null,null,null,{"$f":"IF(M82<>\"\",'Blank - Request Form'!$M$2,\"\")","v":""},{"$f":"IF('Blank - Request Form'!$F$6=\"CICSA\",IF('Blank - Request Form'!J116=0,\"\",'Blank - Request Form'!J116),IF('Blank - Request Form'!$F$7=\"CICSA\",IF('Blank - Request Form'!S116=0,\"\",'Blank - Request Form'!S116),\"\"))","v":""},"",82]
[{"$f":"IF('Blank - Request Form'!$F$6=\"CICSA\",IF('Blank - Request Form'!D117=0,\"\",'Blank - Request Form'!D117),IF('Blank - Request Form'!$F$7=\"CICSA\",IF('Blank - Request Form'!M117=0,\"\",'Blank - Request Form'!M117),\"\"))","v":""},{"$f":"IF('Blank - Request Form'!$F$6=\"CICSA\",IF('Blank - Request Form'!E117=0,\"\",'Blank - Request Form'!E117),IF('Blank - Request Form'!$F$7=\"CICSA\",IF('Blank - Request Form'!N117=0,\"\",'Blank - Request Form'!N117),\"\"))","v":""},{"$f":"IF('Blank - Request Form'!$F$6=\"CICSA\",IF(OR('Blank - Request Form'!F117=\"000\",'Blank - Request Form'!F117=0),\"\",'Blank - Request Form'!F117),IF('Blank - Request Form'!$F$7=\"CICSA\",IF(OR('Blank - Request Form'!O117=\"000\",'Blank - Request Form'!O117=0),\"\",'Blank - Request Form'!O117),\"\"))","v":""},{"$f":"IF('Blank - Request Form'!$F$6=\"CICSA\",IF(OR('Blank - Request Form'!G117=\"0\",'Blank - Request Form'!G117=\"00000\",'Blank - Request Form'!G117=0),\"\",'Blank - Request Form'!G117),IF('Blank - Request Form'!$F$7=\"CICSA\",IF(OR('Blank - Request Form'!P117=\"0\",'Blank - Request Form'!P117=\"00000\",'Blank - Request Form'!P117=0),\"\",'Blank - Request Form'!P117),\"\"))","v":""},{"$f":"IF('Blank - Request Form'!$F$6=\"CICSA\",IF(OR('Blank - Request Form'!H117=\"0\",'Blank - Request Form'!H117=\"00000\",'Blank - Request Form'!H117=0),\"\",'Blank - Request Form'!H117),IF('Blank - Request Form'!$F$7=\"CICSA\",IF(OR('Blank - Request Form'!Q117=\"0\",'Blank - Request Form'!Q117=\"00000\",'Blank - Request Form'!Q117=0),\"\",'Blank - Request Form'!Q117),\"\"))","v":""},{"$f":"IF('Blank - Request Form'!$F$6=\"CICSA\",IF(OR('Blank - Request Form'!I117=\"0\",'Blank - Request Form'!I117=\"00000\",'Blank - Request Form'!I117=0),\"\",'Blank - Request Form'!I117),IF('Blank - Request Form'!$F$7=\"CICSA\",IF(OR('Blank - Request Form'!R117=\"0\",'Blank - Request Form'!R117=\"00000\",'Blank - Request Form'!R117=0),\"\",'Blank - Request Form'!R117),\"\"))","v":""},null,{"$f":"IF('Blank - Request Form'!$F$6=\"CICSA\",IF('Blank - Request Form'!K117=0,\"\",'Blank - Request Form'!K117),IF('Blank - Request Form'!$F$7=\"CICSA\",IF('Blank - Request Form'!T117=0,\"\",'Blank - Request Form'!T117),\"\"))","v":""},null,null,null,{"$f":"IF(M83<>\"\",'Blank - Request Form'!$M$2,\"\")","v":""},{"$f":"IF('Blank - Request Form'!$F$6=\"CICSA\",IF('Blank - Request Form'!J117=0,\"\",'Blank - Request Form'!J117),IF('Blank - Request Form'!$F$7=\"CICSA\",IF('Blank - Request Form'!S117=0,\"\",'Blank - Request Form'!S117),\"\"))","v":""},"",83]
[{"$f":"IF('Blank - Request Form'!$F$6=\"CICSA\",IF('Blank - Request Form'!D118=0,\"\",'Blank - Request Form'!D118),IF('Blank - Request Form'!$F$7=\"CICSA\",IF('Blank - Request Form'!M118=0,\"\",'Blank - Request Form'!M118),\"\"))","v":""},{"$f":"IF('Blank - Request Form'!$F$6=\"CICSA\",IF('Blank - Request Form'!E118=0,\"\",'Blank - Request Form'!E118),IF('Blank - Request Form'!$F$7=\"CICSA\",IF('Blank - Request Form'!N118=0,\"\",'Blank - Request Form'!N118),\"\"))","v":""},{"$f":"IF('Blank - Request Form'!$F$6=\"CICSA\",IF(OR('Blank - Request Form'!F118=\"000\",'Blank - Request Form'!F118=0),\"\",'Blank - Request Form'!F118),IF('Blank - Request Form'!$F$7=\"CICSA\",IF(OR('Blank - Request Form'!O118=\"000\",'Blank - Request Form'!O118=0),\"\",'Blank - Request Form'!O118),\"\"))","v":""},{"$f":"IF('Blank - Request Form'!$F$6=\"CICSA\",IF(OR('Blank - Request Form'!G118=\"0\",'Blank - Request Form'!G118=\"00000\",'Blank - Request Form'!G118=0),\"\",'Blank - Request Form'!G118),IF('Blank - Request Form'!$F$7=\"CICSA\",IF(OR('Blank - Request Form'!P118=\"0\",'Blank - Request Form'!P118=\"00000\",'Blank - Request Form'!P118=0),\"\",'Blank - Request Form'!P118),\"\"))","v":""},{"$f":"IF('Blank - Request Form'!$F$6=\"CICSA\",IF(OR('Blank - Request Form'!H118=\"0\",'Blank - Request Form'!H118=\"00000\",'Blank - Request Form'!H118=0),\"\",'Blank - Request Form'!H118),IF('Blank - Request Form'!$F$7=\"CICSA\",IF(OR('Blank - Request Form'!Q118=\"0\",'Blank - Request Form'!Q118=\"00000\",'Blank - Request Form'!Q118=0),\"\",'Blank - Request Form'!Q118),\"\"))","v":""},{"$f":"IF('Blank - Request Form'!$F$6=\"CICSA\",IF(OR('Blank - Request Form'!I118=\"0\",'Blank - Request Form'!I118=\"00000\",'Blank - Request Form'!I118=0),\"\",'Blank - Request Form'!I118),IF('Blank - Request Form'!$F$7=\"CICSA\",IF(OR('Blank - Request Form'!R118=\"0\",'Blank - Request Form'!R118=\"00000\",'Blank - Request Form'!R118=0),\"\",'Blank - Request Form'!R118),\"\"))","v":""},null,{"$f":"IF('Blank - Request Form'!$F$6=\"CICSA\",IF('Blank - Request Form'!K118=0,\"\",'Blank - Request Form'!K118),IF('Blank - Request Form'!$F$7=\"CICSA\",IF('Blank - Request Form'!T118=0,\"\",'Blank - Request Form'!T118),\"\"))","v":""},null,null,null,{"$f":"IF(M84<>\"\",'Blank - Request Form'!$M$2,\"\")","v":""},{"$f":"IF('Blank - Request Form'!$F$6=\"CICSA\",IF('Blank - Request Form'!J118=0,\"\",'Blank - Request Form'!J118),IF('Blank - Request Form'!$F$7=\"CICSA\",IF('Blank - Request Form'!S118=0,\"\",'Blank - Request Form'!S118),\"\"))","v":""},"",84]
[{"$f":"IF('Blank - Request Form'!$F$6=\"CICSA\",IF('Blank - Request Form'!D119=0,\"\",'Blank - Request Form'!D119),IF('Blank - Request Form'!$F$7=\"CICSA\",IF('Blank - Request Form'!M119=0,\"\",'Blank - Request Form'!M119),\"\"))","v":""},{"$f":"IF('Blank - Request Form'!$F$6=\"CICSA\",IF('Blank - Request Form'!E119=0,\"\",'Blank - Request Form'!E119),IF('Blank - Request Form'!$F$7=\"CICSA\",IF('Blank - Request Form'!N119=0,\"\",'Blank - Request Form'!N119),\"\"))","v":""},{"$f":"IF('Blank - Request Form'!$F$6=\"CICSA\",IF(OR('Blank - Request Form'!F119=\"000\",'Blank - Request Form'!F119=0),\"\",'Blank - Request Form'!F119),IF('Blank - Request Form'!$F$7=\"CICSA\",IF(OR('Blank - Request Form'!O119=\"000\",'Blank - Request Form'!O119=0),\"\",'Blank - Request Form'!O119),\"\"))","v":""},{"$f":"IF('Blank - Request Form'!$F$6=\"CICSA\",IF(OR('Blank - Request Form'!G119=\"0\",'Blank - Request Form'!G119=\"00000\",'Blank - Request Form'!G119=0),\"\",'Blank - Request Form'!G119),IF('Blank - Request Form'!$F$7=\"CICSA\",IF(OR('Blank - Request Form'!P119=\"0\",'Blank - Request Form'!P119=\"00000\",'Blank - Request Form'!P119=0),\"\",'Blank - Request Form'!P119),\"\"))","v":""},{"$f":"IF('Blank - Request Form'!$F$6=\"CICSA\",IF(OR('Blank - Request Form'!H119=\"0\",'Blank - Request Form'!H119=\"00000\",'Blank - Request Form'!H119=0),\"\",'Blank - Request Form'!H119),IF('Blank - Request Form'!$F$7=\"CICSA\",IF(OR('Blank - Request Form'!Q119=\"0\",'Blank - Request Form'!Q119=\"00000\",'Blank - Request Form'!Q119=0),\"\",'Blank - Request Form'!Q119),\"\"))","v":""},{"$f":"IF('Blank - Request Form'!$F$6=\"CICSA\",IF(OR('Blank - Request Form'!I119=\"0\",'Blank - Request Form'!I119=\"00000\",'Blank - Request Form'!I119=0),\"\",'Blank - Request Form'!I119),IF('Blank - Request Form'!$F$7=\"CICSA\",IF(OR('Blank - Request Form'!R119=\"0\",'Blank - Request Form'!R119=\"00000\",'Blank - Request Form'!R119=0),\"\",'Blank - Request Form'!R119),\"\"))","v":""},null,{"$f":"IF('Blank - Request Form'!$F$6=\"CICSA\",IF('Blank - Request Form'!K119=0,\"\",'Blank - Request Form'!K119),IF('Blank - Request Form'!$F$7=\"CICSA\",IF('Blank - Request Form'!T119=0,\"\",'Blank - Request Form'!T119),\"\"))","v":""},null,null,null,{"$f":"IF(M85<>\"\",'Blank - Request Form'!$M$2,\"\")","v":""},{"$f":"IF('Blank - Request Form'!$F$6=\"CICSA\",IF('Blank - Request Form'!J119=0,\"\",'Blank - Request Form'!J119),IF('Blank - Request Form'!$F$7=\"CICSA\",IF('Blank - Request Form'!S119=0,\"\",'Blank - Request Form'!S119),\"\"))","v":""},"",85]
[{"$f":"IF('Blank - Request Form'!$F$6=\"CICSA\",IF('Blank - Request Form'!D120=0,\"\",'Blank - Request Form'!D120),IF('Blank - Request Form'!$F$7=\"CICSA\",IF('Blank - Request Form'!M120=0,\"\",'Blank - Request Form'!M120),\"\"))","v":""},{"$f":"IF('Blank - Request Form'!$F$6=\"CICSA\",IF('Blank - Request Form'!E120=0,\"\",'Blank - Request Form'!E120),IF('Blank - Request Form'!$F$7=\"CICSA\",IF('Blank - Request Form'!N120=0,\"\",'Blank - Request Form'!N120),\"\"))","v":""},{"$f":"IF('Blank - Request Form'!$F$6=\"CICSA\",IF(OR('Blank - Request Form'!F120=\"000\",'Blank - Request Form'!F120=0),\"\",'Blank - Request Form'!F120),IF('Blank - Request Form'!$F$7=\"CICSA\",IF(OR('Blank - Request Form'!O120=\"000\",'Blank - Request Form'!O120=0),\"\",'Blank - Request Form'!O120),\"\"))","v":""},{"$f":"IF('Blank - Request Form'!$F$6=\"CICSA\",IF(OR('Blank - Request Form'!G120=\"0\",'Blank - Request Form'!G120=\"00000\",'Blank - Request Form'!G120=0),\"\",'Blank - Request Form'!G120),IF('Blank - Request Form'!$F$7=\"CICSA\",IF(OR('Blank - Request Form'!P120=\"0\",'Blank - Request Form'!P120=\"00000\",'Blank - Request Form'!P120=0),\"\",'Blank - Request Form'!P120),\"\"))","v":""},{"$f":"IF('Blank - Request Form'!$F$6=\"CICSA\",IF(OR('Blank - Request Form'!H120=\"0\",'Blank - Request Form'!H120=\"00000\",'Blank - Request Form'!H120=0),\"\",'Blank - Request Form'!H120),IF('Blank - Request Form'!$F$7=\"CICSA\",IF(OR('Blank - Request Form'!Q120=\"0\",'Blank - Request Form'!Q120=\"00000\",'Blank - Request Form'!Q120=0),\"\",'Blank - Request Form'!Q120),\"\"))","v":""},{"$f":"IF('Blank - Request Form'!$F$6=\"CICSA\",IF(OR('Blank - Request Form'!I120=\"0\",'Blank - Request Form'!I120=\"00000\",'Blank - Request Form'!I120=0),\"\",'Blank - Request Form'!I120),IF('Blank - Request Form'!$F$7=\"CICSA\",IF(OR('Blank - Request Form'!R120=\"0\",'Blank - Request Form'!R120=\"00000\",'Blank - Request Form'!R120=0),\"\",'Blank - Request Form'!R120),\"\"))","v":""},null,{"$f":"IF('Blank - Request Form'!$F$6=\"CICSA\",IF('Blank - Request Form'!K120=0,\"\",'Blank - Request Form'!K120),IF('Blank - Request Form'!$F$7=\"CICSA\",IF('Blank - Request Form'!T120=0,\"\",'Blank - Request Form'!T120),\"\"))","v":""},null,null,null,{"$f":"IF(M86<>\"\",'Blank - Request Form'!$M$2,\"\")","v":""},{"$f":"IF('Blank - Request Form'!$F$6=\"CICSA\",IF('Blank - Request Form'!J120=0,\"\",'Blank - Request Form'!J120),IF('Blank - Request Form'!$F$7=\"CICSA\",IF('Blank - Request Form'!S120=0,\"\",'Blank - Request Form'!S120),\"\"))","v":""},"",86]
[{"$f":"IF('Blank - Request Form'!$F$6=\"CICSA\",IF('Blank - Request Form'!D121=0,\"\",'Blank - Request Form'!D121),IF('Blank - Request Form'!$F$7=\"CICSA\",IF('Blank - Request Form'!M121=0,\"\",'Blank - Request Form'!M121),\"\"))","v":""},{"$f":"IF('Blank - Request Form'!$F$6=\"CICSA\",IF('Blank - Request Form'!E121=0,\"\",'Blank - Request Form'!E121),IF('Blank - Request Form'!$F$7=\"CICSA\",IF('Blank - Request Form'!N121=0,\"\",'Blank - Request Form'!N121),\"\"))","v":""},{"$f":"IF('Blank - Request Form'!$F$6=\"CICSA\",IF(OR('Blank - Request Form'!F121=\"000\",'Blank - Request Form'!F121=0),\"\",'Blank - Request Form'!F121),IF('Blank - Request Form'!$F$7=\"CICSA\",IF(OR('Blank - Request Form'!O121=\"000\",'Blank - Request Form'!O121=0),\"\",'Blank - Request Form'!O121),\"\"))","v":""},{"$f":"IF('Blank - Request Form'!$F$6=\"CICSA\",IF(OR('Blank - Request Form'!G121=\"0\",'Blank - Request Form'!G121=\"00000\",'Blank - Request Form'!G121=0),\"\",'Blank - Request Form'!G121),IF('Blank - Request Form'!$F$7=\"CICSA\",IF(OR('Blank - Request Form'!P121=\"0\",'Blank - Request Form'!P121=\"00000\",'Blank - Request Form'!P121=0),\"\",'Blank - Request Form'!P121),\"\"))","v":""},{"$f":"IF('Blank - Request Form'!$F$6=\"CICSA\",IF(OR('Blank - Request Form'!H121=\"0\",'Blank - Request Form'!H121=\"00000\",'Blank - Request Form'!H121=0),\"\",'Blank - Request Form'!H121),IF('Blank - Request Form'!$F$7=\"CICSA\",IF(OR('Blank - Request Form'!Q121=\"0\",'Blank - Request Form'!Q121=\"00000\",'Blank - Request Form'!Q121=0),\"\",'Blank - Request Form'!Q121),\"\"))","v":""},{"$f":"IF('Blank - Request Form'!$F$6=\"CICSA\",IF(OR('Blank - Request Form'!I121=\"0\",'Blank - Request Form'!I121=\"00000\",'Blank - Request Form'!I121=0),\"\",'Blank - Request Form'!I121),IF('Blank - Request Form'!$F$7=\"CICSA\",IF(OR('Blank - Request Form'!R121=\"0\",'Blank - Request Form'!R121=\"00000\",'Blank - Request Form'!R121=0),\"\",'Blank - Request Form'!R121),\"\"))","v":""},null,{"$f":"IF('Blank - Request Form'!$F$6=\"CICSA\",IF('Blank - Request Form'!K121=0,\"\",'Blank - Request Form'!K121),IF('Blank - Request Form'!$F$7=\"CICSA\",IF('Blank - Request Form'!T121=0,\"\",'Blank - Request Form'!T121),\"\"))","v":""},null,null,null,{"$f":"IF(M87<>\"\",'Blank - Request Form'!$M$2,\"\")","v":""},{"$f":"IF('Blank - Request Form'!$F$6=\"CICSA\",IF('Blank - Request Form'!J121=0,\"\",'Blank - Request Form'!J121),IF('Blank - Request Form'!$F$7=\"CICSA\",IF('Blank - Request Form'!S121=0,\"\",'Blank - Request Form'!S121),\"\"))","v":""},"",87]
[{"$f":"IF('Blank - Request Form'!$F$6=\"CICSA\",IF('Blank - Request Form'!D122=0,\"\",'Blank - Request Form'!D122),IF('Blank - Request Form'!$F$7=\"CICSA\",IF('Blank - Request Form'!M122=0,\"\",'Blank - Request Form'!M122),\"\"))","v":""},{"$f":"IF('Blank - Request Form'!$F$6=\"CICSA\",IF('Blank - Request Form'!E122=0,\"\",'Blank - Request Form'!E122),IF('Blank - Request Form'!$F$7=\"CICSA\",IF('Blank - Request Form'!N122=0,\"\",'Blank - Request Form'!N122),\"\"))","v":""},{"$f":"IF('Blank - Request Form'!$F$6=\"CICSA\",IF(OR('Blank - Request Form'!F122=\"000\",'Blank - Request Form'!F122=0),\"\",'Blank - Request Form'!F122),IF('Blank - Request Form'!$F$7=\"CICSA\",IF(OR('Blank - Request Form'!O122=\"000\",'Blank - Request Form'!O122=0),\"\",'Blank - Request Form'!O122),\"\"))","v":""},{"$f":"IF('Blank - Request Form'!$F$6=\"CICSA\",IF(OR('Blank - Request Form'!G122=\"0\",'Blank - Request Form'!G122=\"00000\",'Blank - Request Form'!G122=0),\"\",'Blank - Request Form'!G122),IF('Blank - Request Form'!$F$7=\"CICSA\",IF(OR('Blank - Request Form'!P122=\"0\",'Blank - Request Form'!P122=\"00000\",'Blank - Request Form'!P122=0),\"\",'Blank - Request Form'!P122),\"\"))","v":""},{"$f":"IF('Blank - Request Form'!$F$6=\"CICSA\",IF(OR('Blank - Request Form'!H122=\"0\",'Blank - Request Form'!H122=\"00000\",'Blank - Request Form'!H122=0),\"\",'Blank - Request Form'!H122),IF('Blank - Request Form'!$F$7=\"CICSA\",IF(OR('Blank - Request Form'!Q122=\"0\",'Blank - Request Form'!Q122=\"00000\",'Blank - Request Form'!Q122=0),\"\",'Blank - Request Form'!Q122),\"\"))","v":""},{"$f":"IF('Blank - Request Form'!$F$6=\"CICSA\",IF(OR('Blank - Request Form'!I122=\"0\",'Blank - Request Form'!I122=\"00000\",'Blank - Request Form'!I122=0),\"\",'Blank - Request Form'!I122),IF('Blank - Request Form'!$F$7=\"CICSA\",IF(OR('Blank - Request Form'!R122=\"0\",'Blank - Request Form'!R122=\"00000\",'Blank - Request Form'!R122=0),\"\",'Blank - Request Form'!R122),\"\"))","v":""},null,{"$f":"IF('Blank - Request Form'!$F$6=\"CICSA\",IF('Blank - Request Form'!K122=0,\"\",'Blank - Request Form'!K122),IF('Blank - Request Form'!$F$7=\"CICSA\",IF('Blank - Request Form'!T122=0,\"\",'Blank - Request Form'!T122),\"\"))","v":""},null,null,null,{"$f":"IF(M88<>\"\",'Blank - Request Form'!$M$2,\"\")","v":""},{"$f":"IF('Blank - Request Form'!$F$6=\"CICSA\",IF('Blank - Request Form'!J122=0,\"\",'Blank - Request Form'!J122),IF('Blank - Request Form'!$F$7=\"CICSA\",IF('Blank - Request Form'!S122=0,\"\",'Blank - Request Form'!S122),\"\"))","v":""},"",88]
[{"$f":"IF('Blank - Request Form'!$F$6=\"CICSA\",IF('Blank - Request Form'!D123=0,\"\",'Blank - Request Form'!D123),IF('Blank - Request Form'!$F$7=\"CICSA\",IF('Blank - Request Form'!M123=0,\"\",'Blank - Request Form'!M123),\"\"))","v":""},{"$f":"IF('Blank - Request Form'!$F$6=\"CICSA\",IF('Blank - Request Form'!E123=0,\"\",'Blank - Request Form'!E123),IF('Blank - Request Form'!$F$7=\"CICSA\",IF('Blank - Request Form'!N123=0,\"\",'Blank - Request Form'!N123),\"\"))","v":""},{"$f":"IF('Blank - Request Form'!$F$6=\"CICSA\",IF(OR('Blank - Request Form'!F123=\"000\",'Blank - Request Form'!F123=0),\"\",'Blank - Request Form'!F123),IF('Blank - Request Form'!$F$7=\"CICSA\",IF(OR('Blank - Request Form'!O123=\"000\",'Blank - Request Form'!O123=0),\"\",'Blank - Request Form'!O123),\"\"))","v":""},{"$f":"IF('Blank - Request Form'!$F$6=\"CICSA\",IF(OR('Blank - Request Form'!G123=\"0\",'Blank - Request Form'!G123=\"00000\",'Blank - Request Form'!G123=0),\"\",'Blank - Request Form'!G123),IF('Blank - Request Form'!$F$7=\"CICSA\",IF(OR('Blank - Request Form'!P123=\"0\",'Blank - Request Form'!P123=\"00000\",'Blank - Request Form'!P123=0),\"\",'Blank - Request Form'!P123),\"\"))","v":""},{"$f":"IF('Blank - Request Form'!$F$6=\"CICSA\",IF(OR('Blank - Request Form'!H123=\"0\",'Blank - Request Form'!H123=\"00000\",'Blank - Request Form'!H123=0),\"\",'Blank - Request Form'!H123),IF('Blank - Request Form'!$F$7=\"CICSA\",IF(OR('Blank - Request Form'!Q123=\"0\",'Blank - Request Form'!Q123=\"00000\",'Blank - Request Form'!Q123=0),\"\",'Blank - Request Form'!Q123),\"\"))","v":""},{"$f":"IF('Blank - Request Form'!$F$6=\"CICSA\",IF(OR('Blank - Request Form'!I123=\"0\",'Blank - Request Form'!I123=\"00000\",'Blank - Request Form'!I123=0),\"\",'Blank - Request Form'!I123),IF('Blank - Request Form'!$F$7=\"CICSA\",IF(OR('Blank - Request Form'!R123=\"0\",'Blank - Request Form'!R123=\"00000\",'Blank - Request Form'!R123=0),\"\",'Blank - Request Form'!R123),\"\"))","v":""},null,{"$f":"IF('Blank - Request Form'!$F$6=\"CICSA\",IF('Blank - Request Form'!K123=0,\"\",'Blank - Request Form'!K123),IF('Blank - Request Form'!$F$7=\"CICSA\",IF('Blank - Request Form'!T123=0,\"\",'Blank - Request Form'!T123),\"\"))","v":""},null,null,null,{"$f":"IF(M89<>\"\",'Blank - Request Form'!$M$2,\"\")","v":""},{"$f":"IF('Blank - Request Form'!$F$6=\"CICSA\",IF('Blank - Request Form'!J123=0,\"\",'Blank - Request Form'!J123),IF('Blank - Request Form'!$F$7=\"CICSA\",IF('Blank - Request Form'!S123=0,\"\",'Blank - Request Form'!S123),\"\"))","v":""},"",89]
[{"$f":"IF('Blank - Request Form'!$F$6=\"CICSA\",IF('Blank - Request Form'!D124=0,\"\",'Blank - Request Form'!D124),IF('Blank - Request Form'!$F$7=\"CICSA\",IF('Blank - Request Form'!M124=0,\"\",'Blank - Request Form'!M124),\"\"))","v":""},{"$f":"IF('Blank - Request Form'!$F$6=\"CICSA\",IF('Blank - Request Form'!E124=0,\"\",'Blank - Request Form'!E124),IF('Blank - Request Form'!$F$7=\"CICSA\",IF('Blank - Request Form'!N124=0,\"\",'Blank - Request Form'!N124),\"\"))","v":""},{"$f":"IF('Blank - Request Form'!$F$6=\"CICSA\",IF(OR('Blank - Request Form'!F124=\"000\",'Blank - Request Form'!F124=0),\"\",'Blank - Request Form'!F124),IF('Blank - Request Form'!$F$7=\"CICSA\",IF(OR('Blank - Request Form'!O124=\"000\",'Blank - Request Form'!O124=0),\"\",'Blank - Request Form'!O124),\"\"))","v":""},{"$f":"IF('Blank - Request Form'!$F$6=\"CICSA\",IF(OR('Blank - Request Form'!G124=\"0\",'Blank - Request Form'!G124=\"00000\",'Blank - Request Form'!G124=0),\"\",'Blank - Request Form'!G124),IF('Blank - Request Form'!$F$7=\"CICSA\",IF(OR('Blank - Request Form'!P124=\"0\",'Blank - Request Form'!P124=\"00000\",'Blank - Request Form'!P124=0),\"\",'Blank - Request Form'!P124),\"\"))","v":""},{"$f":"IF('Blank - Request Form'!$F$6=\"CICSA\",IF(OR('Blank - Request Form'!H124=\"0\",'Blank - Request Form'!H124=\"00000\",'Blank - Request Form'!H124=0),\"\",'Blank - Request Form'!H124),IF('Blank - Request Form'!$F$7=\"CICSA\",IF(OR('Blank - Request Form'!Q124=\"0\",'Blank - Request Form'!Q124=\"00000\",'Blank - Request Form'!Q124=0),\"\",'Blank - Request Form'!Q124),\"\"))","v":""},{"$f":"IF('Blank - Request Form'!$F$6=\"CICSA\",IF(OR('Blank - Request Form'!I124=\"0\",'Blank - Request Form'!I124=\"00000\",'Blank - Request Form'!I124=0),\"\",'Blank - Request Form'!I124),IF('Blank - Request Form'!$F$7=\"CICSA\",IF(OR('Blank - Request Form'!R124=\"0\",'Blank - Request Form'!R124=\"00000\",'Blank - Request Form'!R124=0),\"\",'Blank - Request Form'!R124),\"\"))","v":""},null,{"$f":"IF('Blank - Request Form'!$F$6=\"CICSA\",IF('Blank - Request Form'!K124=0,\"\",'Blank - Request Form'!K124),IF('Blank - Request Form'!$F$7=\"CICSA\",IF('Blank - Request Form'!T124=0,\"\",'Blank - Request Form'!T124),\"\"))","v":""},null,null,null,{"$f":"IF(M90<>\"\",'Blank - Request Form'!$M$2,\"\")","v":""},{"$f":"IF('Blank - Request Form'!$F$6=\"CICSA\",IF('Blank - Request Form'!J124=0,\"\",'Blank - Request Form'!J124),IF('Blank - Request Form'!$F$7=\"CICSA\",IF('Blank - Request Form'!S124=0,\"\",'Blank - Request Form'!S124),\"\"))","v":""},"",90]
[{"$f":"IF('Blank - Request Form'!$F$6=\"CICSA\",IF('Blank - Request Form'!D125=0,\"\",'Blank - Request Form'!D125),IF('Blank - Request Form'!$F$7=\"CICSA\",IF('Blank - Request Form'!M125=0,\"\",'Blank - Request Form'!M125),\"\"))","v":""},{"$f":"IF('Blank - Request Form'!$F$6=\"CICSA\",IF('Blank - Request Form'!E125=0,\"\",'Blank - Request Form'!E125),IF('Blank - Request Form'!$F$7=\"CICSA\",IF('Blank - Request Form'!N125=0,\"\",'Blank - Request Form'!N125),\"\"))","v":""},{"$f":"IF('Blank - Request Form'!$F$6=\"CICSA\",IF(OR('Blank - Request Form'!F125=\"000\",'Blank - Request Form'!F125=0),\"\",'Blank - Request Form'!F125),IF('Blank - Request Form'!$F$7=\"CICSA\",IF(OR('Blank - Request Form'!O125=\"000\",'Blank - Request Form'!O125=0),\"\",'Blank - Request Form'!O125),\"\"))","v":""},{"$f":"IF('Blank - Request Form'!$F$6=\"CICSA\",IF(OR('Blank - Request Form'!G125=\"0\",'Blank - Request Form'!G125=\"00000\",'Blank - Request Form'!G125=0),\"\",'Blank - Request Form'!G125),IF('Blank - Request Form'!$F$7=\"CICSA\",IF(OR('Blank - Request Form'!P125=\"0\",'Blank - Request Form'!P125=\"00000\",'Blank - Request Form'!P125=0),\"\",'Blank - Request Form'!P125),\"\"))","v":""},{"$f":"IF('Blank - Request Form'!$F$6=\"CICSA\",IF(OR('Blank - Request Form'!H125=\"0\",'Blank - Request Form'!H125=\"00000\",'Blank - Request Form'!H125=0),\"\",'Blank - Request Form'!H125),IF('Blank - Request Form'!$F$7=\"CICSA\",IF(OR('Blank - Request Form'!Q125=\"0\",'Blank - Request Form'!Q125=\"00000\",'Blank - Request Form'!Q125=0),\"\",'Blank - Request Form'!Q125),\"\"))","v":""},{"$f":"IF('Blank - Request Form'!$F$6=\"CICSA\",IF(OR('Blank - Request Form'!I125=\"0\",'Blank - Request Form'!I125=\"00000\",'Blank - Request Form'!I125=0),\"\",'Blank - Request Form'!I125),IF('Blank - Request Form'!$F$7=\"CICSA\",IF(OR('Blank - Request Form'!R125=\"0\",'Blank - Request Form'!R125=\"00000\",'Blank - Request Form'!R125=0),\"\",'Blank - Request Form'!R125),\"\"))","v":""},null,{"$f":"IF('Blank - Request Form'!$F$6=\"CICSA\",IF('Blank - Request Form'!K125=0,\"\",'Blank - Request Form'!K125),IF('Blank - Request Form'!$F$7=\"CICSA\",IF('Blank - Request Form'!T125=0,\"\",'Blank - Request Form'!T125),\"\"))","v":""},null,null,null,{"$f":"IF(M91<>\"\",'Blank - Request Form'!$M$2,\"\")","v":""},{"$f":"IF('Blank - Request Form'!$F$6=\"CICSA\",IF('Blank - Request Form'!J125=0,\"\",'Blank - Request Form'!J125),IF('Blank - Request Form'!$F$7=\"CICSA\",IF('Blank - Request Form'!S125=0,\"\",'Blank - Request Form'!S125),\"\"))","v":""},"",91]
[{"$f":"IF('Blank - Request Form'!$F$6=\"CICSA\",IF('Blank - Request Form'!D126=0,\"\",'Blank - Request Form'!D126),IF('Blank - Request Form'!$F$7=\"CICSA\",IF('Blank - Request Form'!M126=0,\"\",'Blank - Request Form'!M126),\"\"))","v":""},{"$f":"IF('Blank - Request Form'!$F$6=\"CICSA\",IF('Blank - Request Form'!E126=0,\"\",'Blank - Request Form'!E126),IF('Blank - Request Form'!$F$7=\"CICSA\",IF('Blank - Request Form'!N126=0,\"\",'Blank - Request Form'!N126),\"\"))","v":""},{"$f":"IF('Blank - Request Form'!$F$6=\"CICSA\",IF(OR('Blank - Request Form'!F126=\"000\",'Blank - Request Form'!F126=0),\"\",'Blank - Request Form'!F126),IF('Blank - Request Form'!$F$7=\"CICSA\",IF(OR('Blank - Request Form'!O126=\"000\",'Blank - Request Form'!O126=0),\"\",'Blank - Request Form'!O126),\"\"))","v":""},{"$f":"IF('Blank - Request Form'!$F$6=\"CICSA\",IF(OR('Blank - Request Form'!G126=\"0\",'Blank - Request Form'!G126=\"00000\",'Blank - Request Form'!G126=0),\"\",'Blank - Request Form'!G126),IF('Blank - Request Form'!$F$7=\"CICSA\",IF(OR('Blank - Request Form'!P126=\"0\",'Blank - Request Form'!P126=\"00000\",'Blank - Request Form'!P126=0),\"\",'Blank - Request Form'!P126),\"\"))","v":""},{"$f":"IF('Blank - Request Form'!$F$6=\"CICSA\",IF(OR('Blank - Request Form'!H126=\"0\",'Blank - Request Form'!H126=\"00000\",'Blank - Request Form'!H126=0),\"\",'Blank - Request Form'!H126),IF('Blank - Request Form'!$F$7=\"CICSA\",IF(OR('Blank - Request Form'!Q126=\"0\",'Blank - Request Form'!Q126=\"00000\",'Blank - Request Form'!Q126=0),\"\",'Blank - Request Form'!Q126),\"\"))","v":""},{"$f":"IF('Blank - Request Form'!$F$6=\"CICSA\",IF(OR('Blank - Request Form'!I126=\"0\",'Blank - Request Form'!I126=\"00000\",'Blank - Request Form'!I126=0),\"\",'Blank - Request Form'!I126),IF('Blank - Request Form'!$F$7=\"CICSA\",IF(OR('Blank - Request Form'!R126=\"0\",'Blank - Request Form'!R126=\"00000\",'Blank - Request Form'!R126=0),\"\",'Blank - Request Form'!R126),\"\"))","v":""},null,{"$f":"IF('Blank - Request Form'!$F$6=\"CICSA\",IF('Blank - Request Form'!K126=0,\"\",'Blank - Request Form'!K126),IF('Blank - Request Form'!$F$7=\"CICSA\",IF('Blank - Request Form'!T126=0,\"\",'Blank - Request Form'!T126),\"\"))","v":""},null,null,null,{"$f":"IF(M92<>\"\",'Blank - Request Form'!$M$2,\"\")","v":""},{"$f":"IF('Blank - Request Form'!$F$6=\"CICSA\",IF('Blank - Request Form'!J126=0,\"\",'Blank - Request Form'!J126),IF('Blank - Request Form'!$F$7=\"CICSA\",IF('Blank - Request Form'!S126=0,\"\",'Blank - Request Form'!S126),\"\"))","v":""},"",92]
[{"$f":"IF('Blank - Request Form'!$F$6=\"CICSA\",IF('Blank - Request Form'!D127=0,\"\",'Blank - Request Form'!D127),IF('Blank - Request Form'!$F$7=\"CICSA\",IF('Blank - Request Form'!M127=0,\"\",'Blank - Request Form'!M127),\"\"))","v":""},{"$f":"IF('Blank - Request Form'!$F$6=\"CICSA\",IF('Blank - Request Form'!E127=0,\"\",'Blank - Request Form'!E127),IF('Blank - Request Form'!$F$7=\"CICSA\",IF('Blank - Request Form'!N127=0,\"\",'Blank - Request Form'!N127),\"\"))","v":""},{"$f":"IF('Blank - Request Form'!$F$6=\"CICSA\",IF(OR('Blank - Request Form'!F127=\"000\",'Blank - Request Form'!F127=0),\"\",'Blank - Request Form'!F127),IF('Blank - Request Form'!$F$7=\"CICSA\",IF(OR('Blank - Request Form'!O127=\"000\",'Blank - Request Form'!O127=0),\"\",'Blank - Request Form'!O127),\"\"))","v":""},{"$f":"IF('Blank - Request Form'!$F$6=\"CICSA\",IF(OR('Blank - Request Form'!G127=\"0\",'Blank - Request Form'!G127=\"00000\",'Blank - Request Form'!G127=0),\"\",'Blank - Request Form'!G127),IF('Blank - Request Form'!$F$7=\"CICSA\",IF(OR('Blank - Request Form'!P127=\"0\",'Blank - Request Form'!P127=\"00000\",'Blank - Request Form'!P127=0),\"\",'Blank - Request Form'!P127),\"\"))","v":""},{"$f":"IF('Blank - Request Form'!$F$6=\"CICSA\",IF(OR('Blank - Request Form'!H127=\"0\",'Blank - Request Form'!H127=\"00000\",'Blank - Request Form'!H127=0),\"\",'Blank - Request Form'!H127),IF('Blank - Request Form'!$F$7=\"CICSA\",IF(OR('Blank - Request Form'!Q127=\"0\",'Blank - Request Form'!Q127=\"00000\",'Blank - Request Form'!Q127=0),\"\",'Blank - Request Form'!Q127),\"\"))","v":""},{"$f":"IF('Blank - Request Form'!$F$6=\"CICSA\",IF(OR('Blank - Request Form'!I127=\"0\",'Blank - Request Form'!I127=\"00000\",'Blank - Request Form'!I127=0),\"\",'Blank - Request Form'!I127),IF('Blank - Request Form'!$F$7=\"CICSA\",IF(OR('Blank - Request Form'!R127=\"0\",'Blank - Request Form'!R127=\"00000\",'Blank - Request Form'!R127=0),\"\",'Blank - Request Form'!R127),\"\"))","v":""},null,{"$f":"IF('Blank - Request Form'!$F$6=\"CICSA\",IF('Blank - Request Form'!K127=0,\"\",'Blank - Request Form'!K127),IF('Blank - Request Form'!$F$7=\"CICSA\",IF('Blank - Request Form'!T127=0,\"\",'Blank - Request Form'!T127),\"\"))","v":""},null,null,null,{"$f":"IF(M93<>\"\",'Blank - Request Form'!$M$2,\"\")","v":""},{"$f":"IF('Blank - Request Form'!$F$6=\"CICSA\",IF('Blank - Request Form'!J127=0,\"\",'Blank - Request Form'!J127),IF('Blank - Request Form'!$F$7=\"CICSA\",IF('Blank - Request Form'!S127=0,\"\",'Blank - Request Form'!S127),\"\"))","v":""},"",93]
[{"$f":"IF('Blank - Request Form'!$F$6=\"CICSA\",IF('Blank - Request Form'!D128=0,\"\",'Blank - Request Form'!D128),IF('Blank - Request Form'!$F$7=\"CICSA\",IF('Blank - Request Form'!M128=0,\"\",'Blank - Request Form'!M128),\"\"))","v":""},{"$f":"IF('Blank - Request Form'!$F$6=\"CICSA\",IF('Blank - Request Form'!E128=0,\"\",'Blank - Request Form'!E128),IF('Blank - Request Form'!$F$7=\"CICSA\",IF('Blank - Request Form'!N128=0,\"\",'Blank - Request Form'!N128),\"\"))","v":""},{"$f":"IF('Blank - Request Form'!$F$6=\"CICSA\",IF(OR('Blank - Request Form'!F128=\"000\",'Blank - Request Form'!F128=0),\"\",'Blank - Request Form'!F128),IF('Blank - Request Form'!$F$7=\"CICSA\",IF(OR('Blank - Request Form'!O128=\"000\",'Blank - Request Form'!O128=0),\"\",'Blank - Request Form'!O128),\"\"))","v":""},{"$f":"IF('Blank - Request Form'!$F$6=\"CICSA\",IF(OR('Blank - Request Form'!G128=\"0\",'Blank - Request Form'!G128=\"00000\",'Blank - Request Form'!G128=0),\"\",'Blank - Request Form'!G128),IF('Blank - Request Form'!$F$7=\"CICSA\",IF(OR('Blank - Request Form'!P128=\"0\",'Blank - Request Form'!P128=\"00000\",'Blank - Request Form'!P128=0),\"\",'Blank - Request Form'!P128),\"\"))","v":""},{"$f":"IF('Blank - Request Form'!$F$6=\"CICSA\",IF(OR('Blank - Request Form'!H128=\"0\",'Blank - Request Form'!H128=\"00000\",'Blank - Request Form'!H128=0),\"\",'Blank - Request Form'!H128),IF('Blank - Request Form'!$F$7=\"CICSA\",IF(OR('Blank - Request Form'!Q128=\"0\",'Blank - Request Form'!Q128=\"00000\",'Blank - Request Form'!Q128=0),\"\",'Blank - Request Form'!Q128),\"\"))","v":""},{"$f":"IF('Blank - Request Form'!$F$6=\"CICSA\",IF(OR('Blank - Request Form'!I128=\"0\",'Blank - Request Form'!I128=\"00000\",'Blank - Request Form'!I128=0),\"\",'Blank - Request Form'!I128),IF('Blank - Request Form'!$F$7=\"CICSA\",IF(OR('Blank - Request Form'!R128=\"0\",'Blank - Request Form'!R128=\"00000\",'Blank - Request Form'!R128=0),\"\",'Blank - Request Form'!R128),\"\"))","v":""},null,{"$f":"IF('Blank - Request Form'!$F$6=\"CICSA\",IF('Blank - Request Form'!K128=0,\"\",'Blank - Request Form'!K128),IF('Blank - Request Form'!$F$7=\"CICSA\",IF('Blank - Request Form'!T128=0,\"\",'Blank - Request Form'!T128),\"\"))","v":""},null,null,null,{"$f":"IF(M94<>\"\",'Blank - Request Form'!$M$2,\"\")","v":""},{"$f":"IF('Blank - Request Form'!$F$6=\"CICSA\",IF('Blank - Request Form'!J128=0,\"\",'Blank - Request Form'!J128),IF('Blank - Request Form'!$F$7=\"CICSA\",IF('Blank - Request Form'!S128=0,\"\",'Blank - Request Form'!S128),\"\"))","v":""},"",94]
[{"$f":"IF('Blank - Request Form'!$F$6=\"CICSA\",IF('Blank - Request Form'!D129=0,\"\",'Blank - Request Form'!D129),IF('Blank - Request Form'!$F$7=\"CICSA\",IF('Blank - Request Form'!M129=0,\"\",'Blank - Request Form'!M129),\"\"))","v":""},{"$f":"IF('Blank - Request Form'!$F$6=\"CICSA\",IF('Blank - Request Form'!E129=0,\"\",'Blank - Request Form'!E129),IF('Blank - Request Form'!$F$7=\"CICSA\",IF('Blank - Request Form'!N129=0,\"\",'Blank - Request Form'!N129),\"\"))","v":""},{"$f":"IF('Blank - Request Form'!$F$6=\"CICSA\",IF(OR('Blank - Request Form'!F129=\"000\",'Blank - Request Form'!F129=0),\"\",'Blank - Request Form'!F129),IF('Blank - Request Form'!$F$7=\"CICSA\",IF(OR('Blank - Request Form'!O129=\"000\",'Blank - Request Form'!O129=0),\"\",'Blank - Request Form'!O129),\"\"))","v":""},{"$f":"IF('Blank - Request Form'!$F$6=\"CICSA\",IF(OR('Blank - Request Form'!G129=\"0\",'Blank - Request Form'!G129=\"00000\",'Blank - Request Form'!G129=0),\"\",'Blank - Request Form'!G129),IF('Blank - Request Form'!$F$7=\"CICSA\",IF(OR('Blank - Request Form'!P129=\"0\",'Blank - Request Form'!P129=\"00000\",'Blank - Request Form'!P129=0),\"\",'Blank - Request Form'!P129),\"\"))","v":""},{"$f":"IF('Blank - Request Form'!$F$6=\"CICSA\",IF(OR('Blank - Request Form'!H129=\"0\",'Blank - Request Form'!H129=\"00000\",'Blank - Request Form'!H129=0),\"\",'Blank - Request Form'!H129),IF('Blank - Request Form'!$F$7=\"CICSA\",IF(OR('Blank - Request Form'!Q129=\"0\",'Blank - Request Form'!Q129=\"00000\",'Blank - Request Form'!Q129=0),\"\",'Blank - Request Form'!Q129),\"\"))","v":""},{"$f":"IF('Blank - Request Form'!$F$6=\"CICSA\",IF(OR('Blank - Request Form'!I129=\"0\",'Blank - Request Form'!I129=\"00000\",'Blank - Request Form'!I129=0),\"\",'Blank - Request Form'!I129),IF('Blank - Request Form'!$F$7=\"CICSA\",IF(OR('Blank - Request Form'!R129=\"0\",'Blank - Request Form'!R129=\"00000\",'Blank - Request Form'!R129=0),\"\",'Blank - Request Form'!R129),\"\"))","v":""},null,{"$f":"IF('Blank - Request Form'!$F$6=\"CICSA\",IF('Blank - Request Form'!K129=0,\"\",'Blank - Request Form'!K129),IF('Blank - Request Form'!$F$7=\"CICSA\",IF('Blank - Request Form'!T129=0,\"\",'Blank - Request Form'!T129),\"\"))","v":""},null,null,null,{"$f":"IF(M95<>\"\",'Blank - Request Form'!$M$2,\"\")","v":""},{"$f":"IF('Blank - Request Form'!$F$6=\"CICSA\",IF('Blank - Request Form'!J129=0,\"\",'Blank - Request Form'!J129),IF('Blank - Request Form'!$F$7=\"CICSA\",IF('Blank - Request Form'!S129=0,\"\",'Blank - Request Form'!S129),\"\"))","v":""},"",95]
[{"$f":"IF('Blank - Request Form'!$F$6=\"CICSA\",IF('Blank - Request Form'!D130=0,\"\",'Blank - Request Form'!D130),IF('Blank - Request Form'!$F$7=\"CICSA\",IF('Blank - Request Form'!M130=0,\"\",'Blank - Request Form'!M130),\"\"))","v":""},{"$f":"IF('Blank - Request Form'!$F$6=\"CICSA\",IF('Blank - Request Form'!E130=0,\"\",'Blank - Request Form'!E130),IF('Blank - Request Form'!$F$7=\"CICSA\",IF('Blank - Request Form'!N130=0,\"\",'Blank - Request Form'!N130),\"\"))","v":""},{"$f":"IF('Blank - Request Form'!$F$6=\"CICSA\",IF(OR('Blank - Request Form'!F130=\"000\",'Blank - Request Form'!F130=0),\"\",'Blank - Request Form'!F130),IF('Blank - Request Form'!$F$7=\"CICSA\",IF(OR('Blank - Request Form'!O130=\"000\",'Blank - Request Form'!O130=0),\"\",'Blank - Request Form'!O130),\"\"))","v":""},{"$f":"IF('Blank - Request Form'!$F$6=\"CICSA\",IF(OR('Blank - Request Form'!G130=\"0\",'Blank - Request Form'!G130=\"00000\",'Blank - Request Form'!G130=0),\"\",'Blank - Request Form'!G130),IF('Blank - Request Form'!$F$7=\"CICSA\",IF(OR('Blank - Request Form'!P130=\"0\",'Blank - Request Form'!P130=\"00000\",'Blank - Request Form'!P130=0),\"\",'Blank - Request Form'!P130),\"\"))","v":""},{"$f":"IF('Blank - Request Form'!$F$6=\"CICSA\",IF(OR('Blank - Request Form'!H130=\"0\",'Blank - Request Form'!H130=\"00000\",'Blank - Request Form'!H130=0),\"\",'Blank - Request Form'!H130),IF('Blank - Request Form'!$F$7=\"CICSA\",IF(OR('Blank - Request Form'!Q130=\"0\",'Blank - Request Form'!Q130=\"00000\",'Blank - Request Form'!Q130=0),\"\",'Blank - Request Form'!Q130),\"\"))","v":""},{"$f":"IF('Blank - Request Form'!$F$6=\"CICSA\",IF(OR('Blank - Request Form'!I130=\"0\",'Blank - Request Form'!I130=\"00000\",'Blank - Request Form'!I130=0),\"\",'Blank - Request Form'!I130),IF('Blank - Request Form'!$F$7=\"CICSA\",IF(OR('Blank - Request Form'!R130=\"0\",'Blank - Request Form'!R130=\"00000\",'Blank - Request Form'!R130=0),\"\",'Blank - Request Form'!R130),\"\"))","v":""},null,{"$f":"IF('Blank - Request Form'!$F$6=\"CICSA\",IF('Blank - Request Form'!K130=0,\"\",'Blank - Request Form'!K130),IF('Blank - Request Form'!$F$7=\"CICSA\",IF('Blank - Request Form'!T130=0,\"\",'Blank - Request Form'!T130),\"\"))","v":""},null,null,null,{"$f":"IF(M96<>\"\",'Blank - Request Form'!$M$2,\"\")","v":""},{"$f":"IF('Blank - Request Form'!$F$6=\"CICSA\",IF('Blank - Request Form'!J130=0,\"\",'Blank - Request Form'!J130),IF('Blank - Request Form'!$F$7=\"CICSA\",IF('Blank - Request Form'!S130=0,\"\",'Blank - Request Form'!S130),\"\"))","v":""},"",96]
[{"$f":"IF('Blank - Request Form'!$F$6=\"CICSA\",IF('Blank - Request Form'!D131=0,\"\",'Blank - Request Form'!D131),IF('Blank - Request Form'!$F$7=\"CICSA\",IF('Blank - Request Form'!M131=0,\"\",'Blank - Request Form'!M131),\"\"))","v":""},{"$f":"IF('Blank - Request Form'!$F$6=\"CICSA\",IF('Blank - Request Form'!E131=0,\"\",'Blank - Request Form'!E131),IF('Blank - Request Form'!$F$7=\"CICSA\",IF('Blank - Request Form'!N131=0,\"\",'Blank - Request Form'!N131),\"\"))","v":""},{"$f":"IF('Blank - Request Form'!$F$6=\"CICSA\",IF(OR('Blank - Request Form'!F131=\"000\",'Blank - Request Form'!F131=0),\"\",'Blank - Request Form'!F131),IF('Blank - Request Form'!$F$7=\"CICSA\",IF(OR('Blank - Request Form'!O131=\"000\",'Blank - Request Form'!O131=0),\"\",'Blank - Request Form'!O131),\"\"))","v":""},{"$f":"IF('Blank - Request Form'!$F$6=\"CICSA\",IF(OR('Blank - Request Form'!G131=\"0\",'Blank - Request Form'!G131=\"00000\",'Blank - Request Form'!G131=0),\"\",'Blank - Request Form'!G131),IF('Blank - Request Form'!$F$7=\"CICSA\",IF(OR('Blank - Request Form'!P131=\"0\",'Blank - Request Form'!P131=\"00000\",'Blank - Request Form'!P131=0),\"\",'Blank - Request Form'!P131),\"\"))","v":""},{"$f":"IF('Blank - Request Form'!$F$6=\"CICSA\",IF(OR('Blank - Request Form'!H131=\"0\",'Blank - Request Form'!H131=\"00000\",'Blank - Request Form'!H131=0),\"\",'Blank - Request Form'!H131),IF('Blank - Request Form'!$F$7=\"CICSA\",IF(OR('Blank - Request Form'!Q131=\"0\",'Blank - Request Form'!Q131=\"00000\",'Blank - Request Form'!Q131=0),\"\",'Blank - Request Form'!Q131),\"\"))","v":""},{"$f":"IF('Blank - Request Form'!$F$6=\"CICSA\",IF(OR('Blank - Request Form'!I131=\"0\",'Blank - Request Form'!I131=\"00000\",'Blank - Request Form'!I131=0),\"\",'Blank - Request Form'!I131),IF('Blank - Request Form'!$F$7=\"CICSA\",IF(OR('Blank - Request Form'!R131=\"0\",'Blank - Request Form'!R131=\"00000\",'Blank - Request Form'!R131=0),\"\",'Blank - Request Form'!R131),\"\"))","v":""},null,{"$f":"IF('Blank - Request Form'!$F$6=\"CICSA\",IF('Blank - Request Form'!K131=0,\"\",'Blank - Request Form'!K131),IF('Blank - Request Form'!$F$7=\"CICSA\",IF('Blank - Request Form'!T131=0,\"\",'Blank - Request Form'!T131),\"\"))","v":""},null,null,null,{"$f":"IF(M97<>\"\",'Blank - Request Form'!$M$2,\"\")","v":""},{"$f":"IF('Blank - Request Form'!$F$6=\"CICSA\",IF('Blank - Request Form'!J131=0,\"\",'Blank - Request Form'!J131),IF('Blank - Request Form'!$F$7=\"CICSA\",IF('Blank - Request Form'!S131=0,\"\",'Blank - Request Form'!S131),\"\"))","v":""},"",97]
[{"$f":"IF('Blank - Request Form'!$F$6=\"CICSA\",IF('Blank - Request Form'!D132=0,\"\",'Blank - Request Form'!D132),IF('Blank - Request Form'!$F$7=\"CICSA\",IF('Blank - Request Form'!M132=0,\"\",'Blank - Request Form'!M132),\"\"))","v":""},{"$f":"IF('Blank - Request Form'!$F$6=\"CICSA\",IF('Blank - Request Form'!E132=0,\"\",'Blank - Request Form'!E132),IF('Blank - Request Form'!$F$7=\"CICSA\",IF('Blank - Request Form'!N132=0,\"\",'Blank - Request Form'!N132),\"\"))","v":""},{"$f":"IF('Blank - Request Form'!$F$6=\"CICSA\",IF(OR('Blank - Request Form'!F132=\"000\",'Blank - Request Form'!F132=0),\"\",'Blank - Request Form'!F132),IF('Blank - Request Form'!$F$7=\"CICSA\",IF(OR('Blank - Request Form'!O132=\"000\",'Blank - Request Form'!O132=0),\"\",'Blank - Request Form'!O132),\"\"))","v":""},{"$f":"IF('Blank - Request Form'!$F$6=\"CICSA\",IF(OR('Blank - Request Form'!G132=\"0\",'Blank - Request Form'!G132=\"00000\",'Blank - Request Form'!G132=0),\"\",'Blank - Request Form'!G132),IF('Blank - Request Form'!$F$7=\"CICSA\",IF(OR('Blank - Request Form'!P132=\"0\",'Blank - Request Form'!P132=\"00000\",'Blank - Request Form'!P132=0),\"\",'Blank - Request Form'!P132),\"\"))","v":""},{"$f":"IF('Blank - Request Form'!$F$6=\"CICSA\",IF(OR('Blank - Request Form'!H132=\"0\",'Blank - Request Form'!H132=\"00000\",'Blank - Request Form'!H132=0),\"\",'Blank - Request Form'!H132),IF('Blank - Request Form'!$F$7=\"CICSA\",IF(OR('Blank - Request Form'!Q132=\"0\",'Blank - Request Form'!Q132=\"00000\",'Blank - Request Form'!Q132=0),\"\",'Blank - Request Form'!Q132),\"\"))","v":""},{"$f":"IF('Blank - Request Form'!$F$6=\"CICSA\",IF(OR('Blank - Request Form'!I132=\"0\",'Blank - Request Form'!I132=\"00000\",'Blank - Request Form'!I132=0),\"\",'Blank - Request Form'!I132),IF('Blank - Request Form'!$F$7=\"CICSA\",IF(OR('Blank - Request Form'!R132=\"0\",'Blank - Request Form'!R132=\"00000\",'Blank - Request Form'!R132=0),\"\",'Blank - Request Form'!R132),\"\"))","v":""},null,{"$f":"IF('Blank - Request Form'!$F$6=\"CICSA\",IF('Blank - Request Form'!K132=0,\"\",'Blank - Request Form'!K132),IF('Blank - Request Form'!$F$7=\"CICSA\",IF('Blank - Request Form'!T132=0,\"\",'Blank - Request Form'!T132),\"\"))","v":""},null,null,null,{"$f":"IF(M98<>\"\",'Blank - Request Form'!$M$2,\"\")","v":""},{"$f":"IF('Blank - Request Form'!$F$6=\"CICSA\",IF('Blank - Request Form'!J132=0,\"\",'Blank - Request Form'!J132),IF('Blank - Request Form'!$F$7=\"CICSA\",IF('Blank - Request Form'!S132=0,\"\",'Blank - Request Form'!S132),\"\"))","v":""},"",98]
[{"$f":"IF('Blank - Request Form'!$F$6=\"CICSA\",IF('Blank - Request Form'!D133=0,\"\",'Blank - Request Form'!D133),IF('Blank - Request Form'!$F$7=\"CICSA\",IF('Blank - Request Form'!M133=0,\"\",'Blank - Request Form'!M133),\"\"))","v":""},{"$f":"IF('Blank - Request Form'!$F$6=\"CICSA\",IF('Blank - Request Form'!E133=0,\"\",'Blank - Request Form'!E133),IF('Blank - Request Form'!$F$7=\"CICSA\",IF('Blank - Request Form'!N133=0,\"\",'Blank - Request Form'!N133),\"\"))","v":""},{"$f":"IF('Blank - Request Form'!$F$6=\"CICSA\",IF(OR('Blank - Request Form'!F133=\"000\",'Blank - Request Form'!F133=0),\"\",'Blank - Request Form'!F133),IF('Blank - Request Form'!$F$7=\"CICSA\",IF(OR('Blank - Request Form'!O133=\"000\",'Blank - Request Form'!O133=0),\"\",'Blank - Request Form'!O133),\"\"))","v":""},{"$f":"IF('Blank - Request Form'!$F$6=\"CICSA\",IF(OR('Blank - Request Form'!G133=\"0\",'Blank - Request Form'!G133=\"00000\",'Blank - Request Form'!G133=0),\"\",'Blank - Request Form'!G133),IF('Blank - Request Form'!$F$7=\"CICSA\",IF(OR('Blank - Request Form'!P133=\"0\",'Blank - Request Form'!P133=\"00000\",'Blank - Request Form'!P133=0),\"\",'Blank - Request Form'!P133),\"\"))","v":""},{"$f":"IF('Blank - Request Form'!$F$6=\"CICSA\",IF(OR('Blank - Request Form'!H133=\"0\",'Blank - Request Form'!H133=\"00000\",'Blank - Request Form'!H133=0),\"\",'Blank - Request Form'!H133),IF('Blank - Request Form'!$F$7=\"CICSA\",IF(OR('Blank - Request Form'!Q133=\"0\",'Blank - Request Form'!Q133=\"00000\",'Blank - Request Form'!Q133=0),\"\",'Blank - Request Form'!Q133),\"\"))","v":""},{"$f":"IF('Blank - Request Form'!$F$6=\"CICSA\",IF(OR('Blank - Request Form'!I133=\"0\",'Blank - Request Form'!I133=\"00000\",'Blank - Request Form'!I133=0),\"\",'Blank - Request Form'!I133),IF('Blank - Request Form'!$F$7=\"CICSA\",IF(OR('Blank - Request Form'!R133=\"0\",'Blank - Request Form'!R133=\"00000\",'Blank - Request Form'!R133=0),\"\",'Blank - Request Form'!R133),\"\"))","v":""},null,{"$f":"IF('Blank - Request Form'!$F$6=\"CICSA\",IF('Blank - Request Form'!K133=0,\"\",'Blank - Request Form'!K133),IF('Blank - Request Form'!$F$7=\"CICSA\",IF('Blank - Request Form'!T133=0,\"\",'Blank - Request Form'!T133),\"\"))","v":""},null,null,null,{"$f":"IF(M99<>\"\",'Blank - Request Form'!$M$2,\"\")","v":""},{"$f":"IF('Blank - Request Form'!$F$6=\"CICSA\",IF('Blank - Request Form'!J133=0,\"\",'Blank - Request Form'!J133),IF('Blank - Request Form'!$F$7=\"CICSA\",IF('Blank - Request Form'!S133=0,\"\",'Blank - Request Form'!S133),\"\"))","v":""},"",99]
[{"$f":"IF('Blank - Request Form'!$F$6=\"CICSA\",IF('Blank - Request Form'!D134=0,\"\",'Blank - Request Form'!D134),IF('Blank - Request Form'!$F$7=\"CICSA\",IF('Blank - Request Form'!M134=0,\"\",'Blank - Request Form'!M134),\"\"))","v":""},{"$f":"IF('Blank - Request Form'!$F$6=\"CICSA\",IF('Blank - Request Form'!E134=0,\"\",'Blank - Request Form'!E134),IF('Blank - Request Form'!$F$7=\"CICSA\",IF('Blank - Request Form'!N134=0,\"\",'Blank - Request Form'!N134),\"\"))","v":""},{"$f":"IF('Blank - Request Form'!$F$6=\"CICSA\",IF(OR('Blank - Request Form'!F134=\"000\",'Blank - Request Form'!F134=0),\"\",'Blank - Request Form'!F134),IF('Blank - Request Form'!$F$7=\"CICSA\",IF(OR('Blank - Request Form'!O134=\"000\",'Blank - Request Form'!O134=0),\"\",'Blank - Request Form'!O134),\"\"))","v":""},{"$f":"IF('Blank - Request Form'!$F$6=\"CICSA\",IF(OR('Blank - Request Form'!G134=\"0\",'Blank - Request Form'!G134=\"00000\",'Blank - Request Form'!G134=0),\"\",'Blank - Request Form'!G134),IF('Blank - Request Form'!$F$7=\"CICSA\",IF(OR('Blank - Request Form'!P134=\"0\",'Blank - Request Form'!P134=\"00000\",'Blank - Request Form'!P134=0),\"\",'Blank - Request Form'!P134),\"\"))","v":""},{"$f":"IF('Blank - Request Form'!$F$6=\"CICSA\",IF(OR('Blank - Request Form'!H134=\"0\",'Blank - Request Form'!H134=\"00000\",'Blank - Request Form'!H134=0),\"\",'Blank - Request Form'!H134),IF('Blank - Request Form'!$F$7=\"CICSA\",IF(OR('Blank - Request Form'!Q134=\"0\",'Blank - Request Form'!Q134=\"00000\",'Blank - Request Form'!Q134=0),\"\",'Blank - Request Form'!Q134),\"\"))","v":""},{"$f":"IF('Blank - Request Form'!$F$6=\"CICSA\",IF(OR('Blank - Request Form'!I134=\"0\",'Blank - Request Form'!I134=\"00000\",'Blank - Request Form'!I134=0),\"\",'Blank - Request Form'!I134),IF('Blank - Request Form'!$F$7=\"CICSA\",IF(OR('Blank - Request Form'!R134=\"0\",'Blank - Request Form'!R134=\"00000\",'Blank - Request Form'!R134=0),\"\",'Blank - Request Form'!R134),\"\"))","v":""},null,{"$f":"IF('Blank - Request Form'!$F$6=\"CICSA\",IF('Blank - Request Form'!K134=0,\"\",'Blank - Request Form'!K134),IF('Blank - Request Form'!$F$7=\"CICSA\",IF('Blank - Request Form'!T134=0,\"\",'Blank - Request Form'!T134),\"\"))","v":""},null,null,null,{"$f":"IF(M100<>\"\",'Blank - Request Form'!$M$2,\"\")","v":""},{"$f":"IF('Blank - Request Form'!$F$6=\"CICSA\",IF('Blank - Request Form'!J134=0,\"\",'Blank - Request Form'!J134),IF('Blank - Request Form'!$F$7=\"CICSA\",IF('Blank - Request Form'!S134=0,\"\",'Blank - Request Form'!S134),\"\"))","v":""},"",100]
[{"$f":"IF('Blank - Request Form'!$F$6=\"CICSA\",IF('Blank - Request Form'!D135=0,\"\",'Blank - Request Form'!D135),IF('Blank - Request Form'!$F$7=\"CICSA\",IF('Blank - Request Form'!M135=0,\"\",'Blank - Request Form'!M135),\"\"))","v":""},{"$f":"IF('Blank - Request Form'!$F$6=\"CICSA\",IF('Blank - Request Form'!E135=0,\"\",'Blank - Request Form'!E135),IF('Blank - Request Form'!$F$7=\"CICSA\",IF('Blank - Request Form'!N135=0,\"\",'Blank - Request Form'!N135),\"\"))","v":""},{"$f":"IF('Blank - Request Form'!$F$6=\"CICSA\",IF(OR('Blank - Request Form'!F135=\"000\",'Blank - Request Form'!F135=0),\"\",'Blank - Request Form'!F135),IF('Blank - Request Form'!$F$7=\"CICSA\",IF(OR('Blank - Request Form'!O135=\"000\",'Blank - Request Form'!O135=0),\"\",'Blank - Request Form'!O135),\"\"))","v":""},{"$f":"IF('Blank - Request Form'!$F$6=\"CICSA\",IF(OR('Blank - Request Form'!G135=\"0\",'Blank - Request Form'!G135=\"00000\",'Blank - Request Form'!G135=0),\"\",'Blank - Request Form'!G135),IF('Blank - Request Form'!$F$7=\"CICSA\",IF(OR('Blank - Request Form'!P135=\"0\",'Blank - Request Form'!P135=\"00000\",'Blank - Request Form'!P135=0),\"\",'Blank - Request Form'!P135),\"\"))","v":""},{"$f":"IF('Blank - Request Form'!$F$6=\"CICSA\",IF(OR('Blank - Request Form'!H135=\"0\",'Blank - Request Form'!H135=\"00000\",'Blank - Request Form'!H135=0),\"\",'Blank - Request Form'!H135),IF('Blank - Request Form'!$F$7=\"CICSA\",IF(OR('Blank - Request Form'!Q135=\"0\",'Blank - Request Form'!Q135=\"00000\",'Blank - Request Form'!Q135=0),\"\",'Blank - Request Form'!Q135),\"\"))","v":""},{"$f":"IF('Blank - Request Form'!$F$6=\"CICSA\",IF(OR('Blank - Request Form'!I135=\"0\",'Blank - Request Form'!I135=\"00000\",'Blank - Request Form'!I135=0),\"\",'Blank - Request Form'!I135),IF('Blank - Request Form'!$F$7=\"CICSA\",IF(OR('Blank - Request Form'!R135=\"0\",'Blank - Request Form'!R135=\"00000\",'Blank - Request Form'!R135=0),\"\",'Blank - Request Form'!R135),\"\"))","v":""},null,{"$f":"IF('Blank - Request Form'!$F$6=\"CICSA\",IF('Blank - Request Form'!K135=0,\"\",'Blank - Request Form'!K135),IF('Blank - Request Form'!$F$7=\"CICSA\",IF('Blank - Request Form'!T135=0,\"\",'Blank - Request Form'!T135),\"\"))","v":""},null,null,null,{"$f":"IF(M101<>\"\",'Blank - Request Form'!$M$2,\"\")","v":""},{"$f":"IF('Blank - Request Form'!$F$6=\"CICSA\",IF('Blank - Request Form'!J135=0,\"\",'Blank - Request Form'!J135),IF('Blank - Request Form'!$F$7=\"CICSA\",IF('Blank - Request Form'!S135=0,\"\",'Blank - Request Form'!S135),\"\"))","v":""},"",101]
[{"$f":"IF('Blank - Request Form'!$F$6=\"CICSA\",IF('Blank - Request Form'!D136=0,\"\",'Blank - Request Form'!D136),IF('Blank - Request Form'!$F$7=\"CICSA\",IF('Blank - Request Form'!M136=0,\"\",'Blank - Request Form'!M136),\"\"))","v":""},{"$f":"IF('Blank - Request Form'!$F$6=\"CICSA\",IF('Blank - Request Form'!E136=0,\"\",'Blank - Request Form'!E136),IF('Blank - Request Form'!$F$7=\"CICSA\",IF('Blank - Request Form'!N136=0,\"\",'Blank - Request Form'!N136),\"\"))","v":""},{"$f":"IF('Blank - Request Form'!$F$6=\"CICSA\",IF(OR('Blank - Request Form'!F136=\"000\",'Blank - Request Form'!F136=0),\"\",'Blank - Request Form'!F136),IF('Blank - Request Form'!$F$7=\"CICSA\",IF(OR('Blank - Request Form'!O136=\"000\",'Blank - Request Form'!O136=0),\"\",'Blank - Request Form'!O136),\"\"))","v":""},{"$f":"IF('Blank - Request Form'!$F$6=\"CICSA\",IF(OR('Blank - Request Form'!G136=\"0\",'Blank - Request Form'!G136=\"00000\",'Blank - Request Form'!G136=0),\"\",'Blank - Request Form'!G136),IF('Blank - Request Form'!$F$7=\"CICSA\",IF(OR('Blank - Request Form'!P136=\"0\",'Blank - Request Form'!P136=\"00000\",'Blank - Request Form'!P136=0),\"\",'Blank - Request Form'!P136),\"\"))","v":""},{"$f":"IF('Blank - Request Form'!$F$6=\"CICSA\",IF(OR('Blank - Request Form'!H136=\"0\",'Blank - Request Form'!H136=\"00000\",'Blank - Request Form'!H136=0),\"\",'Blank - Request Form'!H136),IF('Blank - Request Form'!$F$7=\"CICSA\",IF(OR('Blank - Request Form'!Q136=\"0\",'Blank - Request Form'!Q136=\"00000\",'Blank - Request Form'!Q136=0),\"\",'Blank - Request Form'!Q136),\"\"))","v":""},{"$f":"IF('Blank - Request Form'!$F$6=\"CICSA\",IF(OR('Blank - Request Form'!I136=\"0\",'Blank - Request Form'!I136=\"00000\",'Blank - Request Form'!I136=0),\"\",'Blank - Request Form'!I136),IF('Blank - Request Form'!$F$7=\"CICSA\",IF(OR('Blank - Request Form'!R136=\"0\",'Blank - Request Form'!R136=\"00000\",'Blank - Request Form'!R136=0),\"\",'Blank - Request Form'!R136),\"\"))","v":""},null,{"$f":"IF('Blank - Request Form'!$F$6=\"CICSA\",IF('Blank - Request Form'!K136=0,\"\",'Blank - Request Form'!K136),IF('Blank - Request Form'!$F$7=\"CICSA\",IF('Blank - Request Form'!T136=0,\"\",'Blank - Request Form'!T136),\"\"))","v":""},null,null,null,{"$f":"IF(M102<>\"\",'Blank - Request Form'!$M$2,\"\")","v":""},{"$f":"IF('Blank - Request Form'!$F$6=\"CICSA\",IF('Blank - Request Form'!J136=0,\"\",'Blank - Request Form'!J136),IF('Blank - Request Form'!$F$7=\"CICSA\",IF('Blank - Request Form'!S136=0,\"\",'Blank - Request Form'!S136),\"\"))","v":""},"",102]
[{"$f":"IF('Blank - Request Form'!$F$6=\"CICSA\",IF('Blank - Request Form'!D137=0,\"\",'Blank - Request Form'!D137),IF('Blank - Request Form'!$F$7=\"CICSA\",IF('Blank - Request Form'!M137=0,\"\",'Blank - Request Form'!M137),\"\"))","v":""},{"$f":"IF('Blank - Request Form'!$F$6=\"CICSA\",IF('Blank - Request Form'!E137=0,\"\",'Blank - Request Form'!E137),IF('Blank - Request Form'!$F$7=\"CICSA\",IF('Blank - Request Form'!N137=0,\"\",'Blank - Request Form'!N137),\"\"))","v":""},{"$f":"IF('Blank - Request Form'!$F$6=\"CICSA\",IF(OR('Blank - Request Form'!F137=\"000\",'Blank - Request Form'!F137=0),\"\",'Blank - Request Form'!F137),IF('Blank - Request Form'!$F$7=\"CICSA\",IF(OR('Blank - Request Form'!O137=\"000\",'Blank - Request Form'!O137=0),\"\",'Blank - Request Form'!O137),\"\"))","v":""},{"$f":"IF('Blank - Request Form'!$F$6=\"CICSA\",IF(OR('Blank - Request Form'!G137=\"0\",'Blank - Request Form'!G137=\"00000\",'Blank - Request Form'!G137=0),\"\",'Blank - Request Form'!G137),IF('Blank - Request Form'!$F$7=\"CICSA\",IF(OR('Blank - Request Form'!P137=\"0\",'Blank - Request Form'!P137=\"00000\",'Blank - Request Form'!P137=0),\"\",'Blank - Request Form'!P137),\"\"))","v":""},{"$f":"IF('Blank - Request Form'!$F$6=\"CICSA\",IF(OR('Blank - Request Form'!H137=\"0\",'Blank - Request Form'!H137=\"00000\",'Blank - Request Form'!H137=0),\"\",'Blank - Request Form'!H137),IF('Blank - Request Form'!$F$7=\"CICSA\",IF(OR('Blank - Request Form'!Q137=\"0\",'Blank - Request Form'!Q137=\"00000\",'Blank - Request Form'!Q137=0),\"\",'Blank - Request Form'!Q137),\"\"))","v":""},{"$f":"IF('Blank - Request Form'!$F$6=\"CICSA\",IF(OR('Blank - Request Form'!I137=\"0\",'Blank - Request Form'!I137=\"00000\",'Blank - Request Form'!I137=0),\"\",'Blank - Request Form'!I137),IF('Blank - Request Form'!$F$7=\"CICSA\",IF(OR('Blank - Request Form'!R137=\"0\",'Blank - Request Form'!R137=\"00000\",'Blank - Request Form'!R137=0),\"\",'Blank - Request Form'!R137),\"\"))","v":""},null,{"$f":"IF('Blank - Request Form'!$F$6=\"CICSA\",IF('Blank - Request Form'!K137=0,\"\",'Blank - Request Form'!K137),IF('Blank - Request Form'!$F$7=\"CICSA\",IF('Blank - Request Form'!T137=0,\"\",'Blank - Request Form'!T137),\"\"))","v":""},null,null,null,{"$f":"IF(M103<>\"\",'Blank - Request Form'!$M$2,\"\")","v":""},{"$f":"IF('Blank - Request Form'!$F$6=\"CICSA\",IF('Blank - Request Form'!J137=0,\"\",'Blank - Request Form'!J137),IF('Blank - Request Form'!$F$7=\"CICSA\",IF('Blank - Request Form'!S137=0,\"\",'Blank - Request Form'!S137),\"\"))","v":""},"",103]
[{"$f":"IF('Blank - Request Form'!$F$6=\"CICSA\",IF('Blank - Request Form'!D138=0,\"\",'Blank - Request Form'!D138),IF('Blank - Request Form'!$F$7=\"CICSA\",IF('Blank - Request Form'!M138=0,\"\",'Blank - Request Form'!M138),\"\"))","v":""},{"$f":"IF('Blank - Request Form'!$F$6=\"CICSA\",IF('Blank - Request Form'!E138=0,\"\",'Blank - Request Form'!E138),IF('Blank - Request Form'!$F$7=\"CICSA\",IF('Blank - Request Form'!N138=0,\"\",'Blank - Request Form'!N138),\"\"))","v":""},{"$f":"IF('Blank - Request Form'!$F$6=\"CICSA\",IF(OR('Blank - Request Form'!F138=\"000\",'Blank - Request Form'!F138=0),\"\",'Blank - Request Form'!F138),IF('Blank - Request Form'!$F$7=\"CICSA\",IF(OR('Blank - Request Form'!O138=\"000\",'Blank - Request Form'!O138=0),\"\",'Blank - Request Form'!O138),\"\"))","v":""},{"$f":"IF('Blank - Request Form'!$F$6=\"CICSA\",IF(OR('Blank - Request Form'!G138=\"0\",'Blank - Request Form'!G138=\"00000\",'Blank - Request Form'!G138=0),\"\",'Blank - Request Form'!G138),IF('Blank - Request Form'!$F$7=\"CICSA\",IF(OR('Blank - Request Form'!P138=\"0\",'Blank - Request Form'!P138=\"00000\",'Blank - Request Form'!P138=0),\"\",'Blank - Request Form'!P138),\"\"))","v":""},{"$f":"IF('Blank - Request Form'!$F$6=\"CICSA\",IF(OR('Blank - Request Form'!H138=\"0\",'Blank - Request Form'!H138=\"00000\",'Blank - Request Form'!H138=0),\"\",'Blank - Request Form'!H138),IF('Blank - Request Form'!$F$7=\"CICSA\",IF(OR('Blank - Request Form'!Q138=\"0\",'Blank - Request Form'!Q138=\"00000\",'Blank - Request Form'!Q138=0),\"\",'Blank - Request Form'!Q138),\"\"))","v":""},{"$f":"IF('Blank - Request Form'!$F$6=\"CICSA\",IF(OR('Blank - Request Form'!I138=\"0\",'Blank - Request Form'!I138=\"00000\",'Blank - Request Form'!I138=0),\"\",'Blank - Request Form'!I138),IF('Blank - Request Form'!$F$7=\"CICSA\",IF(OR('Blank - Request Form'!R138=\"0\",'Blank - Request Form'!R138=\"00000\",'Blank - Request Form'!R138=0),\"\",'Blank - Request Form'!R138),\"\"))","v":""},null,{"$f":"IF('Blank - Request Form'!$F$6=\"CICSA\",IF('Blank - Request Form'!K138=0,\"\",'Blank - Request Form'!K138),IF('Blank - Request Form'!$F$7=\"CICSA\",IF('Blank - Request Form'!T138=0,\"\",'Blank - Request Form'!T138),\"\"))","v":""},null,null,null,{"$f":"IF(M104<>\"\",'Blank - Request Form'!$M$2,\"\")","v":""},{"$f":"IF('Blank - Request Form'!$F$6=\"CICSA\",IF('Blank - Request Form'!J138=0,\"\",'Blank - Request Form'!J138),IF('Blank - Request Form'!$F$7=\"CICSA\",IF('Blank - Request Form'!S138=0,\"\",'Blank - Request Form'!S138),\"\"))","v":""},"",104]
[{"$f":"IF('Blank - Request Form'!$F$6=\"CICSA\",IF('Blank - Request Form'!D139=0,\"\",'Blank - Request Form'!D139),IF('Blank - Request Form'!$F$7=\"CICSA\",IF('Blank - Request Form'!M139=0,\"\",'Blank - Request Form'!M139),\"\"))","v":""},{"$f":"IF('Blank - Request Form'!$F$6=\"CICSA\",IF('Blank - Request Form'!E139=0,\"\",'Blank - Request Form'!E139),IF('Blank - Request Form'!$F$7=\"CICSA\",IF('Blank - Request Form'!N139=0,\"\",'Blank - Request Form'!N139),\"\"))","v":""},{"$f":"IF('Blank - Request Form'!$F$6=\"CICSA\",IF(OR('Blank - Request Form'!F139=\"000\",'Blank - Request Form'!F139=0),\"\",'Blank - Request Form'!F139),IF('Blank - Request Form'!$F$7=\"CICSA\",IF(OR('Blank - Request Form'!O139=\"000\",'Blank - Request Form'!O139=0),\"\",'Blank - Request Form'!O139),\"\"))","v":""},{"$f":"IF('Blank - Request Form'!$F$6=\"CICSA\",IF(OR('Blank - Request Form'!G139=\"0\",'Blank - Request Form'!G139=\"00000\",'Blank - Request Form'!G139=0),\"\",'Blank - Request Form'!G139),IF('Blank - Request Form'!$F$7=\"CICSA\",IF(OR('Blank - Request Form'!P139=\"0\",'Blank - Request Form'!P139=\"00000\",'Blank - Request Form'!P139=0),\"\",'Blank - Request Form'!P139),\"\"))","v":""},{"$f":"IF('Blank - Request Form'!$F$6=\"CICSA\",IF(OR('Blank - Request Form'!H139=\"0\",'Blank - Request Form'!H139=\"00000\",'Blank - Request Form'!H139=0),\"\",'Blank - Request Form'!H139),IF('Blank - Request Form'!$F$7=\"CICSA\",IF(OR('Blank - Request Form'!Q139=\"0\",'Blank - Request Form'!Q139=\"00000\",'Blank - Request Form'!Q139=0),\"\",'Blank - Request Form'!Q139),\"\"))","v":""},{"$f":"IF('Blank - Request Form'!$F$6=\"CICSA\",IF(OR('Blank - Request Form'!I139=\"0\",'Blank - Request Form'!I139=\"00000\",'Blank - Request Form'!I139=0),\"\",'Blank - Request Form'!I139),IF('Blank - Request Form'!$F$7=\"CICSA\",IF(OR('Blank - Request Form'!R139=\"0\",'Blank - Request Form'!R139=\"00000\",'Blank - Request Form'!R139=0),\"\",'Blank - Request Form'!R139),\"\"))","v":""},null,{"$f":"IF('Blank - Request Form'!$F$6=\"CICSA\",IF('Blank - Request Form'!K139=0,\"\",'Blank - Request Form'!K139),IF('Blank - Request Form'!$F$7=\"CICSA\",IF('Blank - Request Form'!T139=0,\"\",'Blank - Request Form'!T139),\"\"))","v":""},null,null,null,{"$f":"IF(M105<>\"\",'Blank - Request Form'!$M$2,\"\")","v":""},{"$f":"IF('Blank - Request Form'!$F$6=\"CICSA\",IF('Blank - Request Form'!J139=0,\"\",'Blank - Request Form'!J139),IF('Blank - Request Form'!$F$7=\"CICSA\",IF('Blank - Request Form'!S139=0,\"\",'Blank - Request Form'!S139),\"\"))","v":""},"",105]
[{"$f":"IF('Blank - Request Form'!$F$6=\"CICSA\",IF('Blank - Request Form'!D140=0,\"\",'Blank - Request Form'!D140),IF('Blank - Request Form'!$F$7=\"CICSA\",IF('Blank - Request Form'!M140=0,\"\",'Blank - Request Form'!M140),\"\"))","v":""},{"$f":"IF('Blank - Request Form'!$F$6=\"CICSA\",IF('Blank - Request Form'!E140=0,\"\",'Blank - Request Form'!E140),IF('Blank - Request Form'!$F$7=\"CICSA\",IF('Blank - Request Form'!N140=0,\"\",'Blank - Request Form'!N140),\"\"))","v":""},{"$f":"IF('Blank - Request Form'!$F$6=\"CICSA\",IF(OR('Blank - Request Form'!F140=\"000\",'Blank - Request Form'!F140=0),\"\",'Blank - Request Form'!F140),IF('Blank - Request Form'!$F$7=\"CICSA\",IF(OR('Blank - Request Form'!O140=\"000\",'Blank - Request Form'!O140=0),\"\",'Blank - Request Form'!O140),\"\"))","v":""},{"$f":"IF('Blank - Request Form'!$F$6=\"CICSA\",IF(OR('Blank - Request Form'!G140=\"0\",'Blank - Request Form'!G140=\"00000\",'Blank - Request Form'!G140=0),\"\",'Blank - Request Form'!G140),IF('Blank - Request Form'!$F$7=\"CICSA\",IF(OR('Blank - Request Form'!P140=\"0\",'Blank - Request Form'!P140=\"00000\",'Blank - Request Form'!P140=0),\"\",'Blank - Request Form'!P140),\"\"))","v":""},{"$f":"IF('Blank - Request Form'!$F$6=\"CICSA\",IF(OR('Blank - Request Form'!H140=\"0\",'Blank - Request Form'!H140=\"00000\",'Blank - Request Form'!H140=0),\"\",'Blank - Request Form'!H140),IF('Blank - Request Form'!$F$7=\"CICSA\",IF(OR('Blank - Request Form'!Q140=\"0\",'Blank - Request Form'!Q140=\"00000\",'Blank - Request Form'!Q140=0),\"\",'Blank - Request Form'!Q140),\"\"))","v":""},{"$f":"IF('Blank - Request Form'!$F$6=\"CICSA\",IF(OR('Blank - Request Form'!I140=\"0\",'Blank - Request Form'!I140=\"00000\",'Blank - Request Form'!I140=0),\"\",'Blank - Request Form'!I140),IF('Blank - Request Form'!$F$7=\"CICSA\",IF(OR('Blank - Request Form'!R140=\"0\",'Blank - Request Form'!R140=\"00000\",'Blank - Request Form'!R140=0),\"\",'Blank - Request Form'!R140),\"\"))","v":""},null,{"$f":"IF('Blank - Request Form'!$F$6=\"CICSA\",IF('Blank - Request Form'!K140=0,\"\",'Blank - Request Form'!K140),IF('Blank - Request Form'!$F$7=\"CICSA\",IF('Blank - Request Form'!T140=0,\"\",'Blank - Request Form'!T140),\"\"))","v":""},null,null,null,{"$f":"IF(M106<>\"\",'Blank - Request Form'!$M$2,\"\")","v":""},{"$f":"IF('Blank - Request Form'!$F$6=\"CICSA\",IF('Blank - Request Form'!J140=0,\"\",'Blank - Request Form'!J140),IF('Blank - Request Form'!$F$7=\"CICSA\",IF('Blank - Request Form'!S140=0,\"\",'Blank - Request Form'!S140),\"\"))","v":""},"",106]
[{"$f":"IF('Blank - Request Form'!$F$6=\"CICSA\",IF('Blank - Request Form'!D141=0,\"\",'Blank - Request Form'!D141),IF('Blank - Request Form'!$F$7=\"CICSA\",IF('Blank - Request Form'!M141=0,\"\",'Blank - Request Form'!M141),\"\"))","v":""},{"$f":"IF('Blank - Request Form'!$F$6=\"CICSA\",IF('Blank - Request Form'!E141=0,\"\",'Blank - Request Form'!E141),IF('Blank - Request Form'!$F$7=\"CICSA\",IF('Blank - Request Form'!N141=0,\"\",'Blank - Request Form'!N141),\"\"))","v":""},{"$f":"IF('Blank - Request Form'!$F$6=\"CICSA\",IF(OR('Blank - Request Form'!F141=\"000\",'Blank - Request Form'!F141=0),\"\",'Blank - Request Form'!F141),IF('Blank - Request Form'!$F$7=\"CICSA\",IF(OR('Blank - Request Form'!O141=\"000\",'Blank - Request Form'!O141=0),\"\",'Blank - Request Form'!O141),\"\"))","v":""},{"$f":"IF('Blank - Request Form'!$F$6=\"CICSA\",IF(OR('Blank - Request Form'!G141=\"0\",'Blank - Request Form'!G141=\"00000\",'Blank - Request Form'!G141=0),\"\",'Blank - Request Form'!G141),IF('Blank - Request Form'!$F$7=\"CICSA\",IF(OR('Blank - Request Form'!P141=\"0\",'Blank - Request Form'!P141=\"00000\",'Blank - Request Form'!P141=0),\"\",'Blank - Request Form'!P141),\"\"))","v":""},{"$f":"IF('Blank - Request Form'!$F$6=\"CICSA\",IF(OR('Blank - Request Form'!H141=\"0\",'Blank - Request Form'!H141=\"00000\",'Blank - Request Form'!H141=0),\"\",'Blank - Request Form'!H141),IF('Blank - Request Form'!$F$7=\"CICSA\",IF(OR('Blank - Request Form'!Q141=\"0\",'Blank - Request Form'!Q141=\"00000\",'Blank - Request Form'!Q141=0),\"\",'Blank - Request Form'!Q141),\"\"))","v":""},{"$f":"IF('Blank - Request Form'!$F$6=\"CICSA\",IF(OR('Blank - Request Form'!I141=\"0\",'Blank - Request Form'!I141=\"00000\",'Blank - Request Form'!I141=0),\"\",'Blank - Request Form'!I141),IF('Blank - Request Form'!$F$7=\"CICSA\",IF(OR('Blank - Request Form'!R141=\"0\",'Blank - Request Form'!R141=\"00000\",'Blank - Request Form'!R141=0),\"\",'Blank - Request Form'!R141),\"\"))","v":""},null,{"$f":"IF('Blank - Request Form'!$F$6=\"CICSA\",IF('Blank - Request Form'!K141=0,\"\",'Blank - Request Form'!K141),IF('Blank - Request Form'!$F$7=\"CICSA\",IF('Blank - Request Form'!T141=0,\"\",'Blank - Request Form'!T141),\"\"))","v":""},null,null,null,{"$f":"IF(M107<>\"\",'Blank - Request Form'!$M$2,\"\")","v":""},{"$f":"IF('Blank - Request Form'!$F$6=\"CICSA\",IF('Blank - Request Form'!J141=0,\"\",'Blank - Request Form'!J141),IF('Blank - Request Form'!$F$7=\"CICSA\",IF('Blank - Request Form'!S141=0,\"\",'Blank - Request Form'!S141),\"\"))","v":""},"",107]
[{"$f":"IF('Blank - Request Form'!$F$6=\"CICSA\",IF('Blank - Request Form'!D142=0,\"\",'Blank - Request Form'!D142),IF('Blank - Request Form'!$F$7=\"CICSA\",IF('Blank - Request Form'!M142=0,\"\",'Blank - Request Form'!M142),\"\"))","v":""},{"$f":"IF('Blank - Request Form'!$F$6=\"CICSA\",IF('Blank - Request Form'!E142=0,\"\",'Blank - Request Form'!E142),IF('Blank - Request Form'!$F$7=\"CICSA\",IF('Blank - Request Form'!N142=0,\"\",'Blank - Request Form'!N142),\"\"))","v":""},{"$f":"IF('Blank - Request Form'!$F$6=\"CICSA\",IF(OR('Blank - Request Form'!F142=\"000\",'Blank - Request Form'!F142=0),\"\",'Blank - Request Form'!F142),IF('Blank - Request Form'!$F$7=\"CICSA\",IF(OR('Blank - Request Form'!O142=\"000\",'Blank - Request Form'!O142=0),\"\",'Blank - Request Form'!O142),\"\"))","v":""},{"$f":"IF('Blank - Request Form'!$F$6=\"CICSA\",IF(OR('Blank - Request Form'!G142=\"0\",'Blank - Request Form'!G142=\"00000\",'Blank - Request Form'!G142=0),\"\",'Blank - Request Form'!G142),IF('Blank - Request Form'!$F$7=\"CICSA\",IF(OR('Blank - Request Form'!P142=\"0\",'Blank - Request Form'!P142=\"00000\",'Blank - Request Form'!P142=0),\"\",'Blank - Request Form'!P142),\"\"))","v":""},{"$f":"IF('Blank - Request Form'!$F$6=\"CICSA\",IF(OR('Blank - Request Form'!H142=\"0\",'Blank - Request Form'!H142=\"00000\",'Blank - Request Form'!H142=0),\"\",'Blank - Request Form'!H142),IF('Blank - Request Form'!$F$7=\"CICSA\",IF(OR('Blank - Request Form'!Q142=\"0\",'Blank - Request Form'!Q142=\"00000\",'Blank - Request Form'!Q142=0),\"\",'Blank - Request Form'!Q142),\"\"))","v":""},{"$f":"IF('Blank - Request Form'!$F$6=\"CICSA\",IF(OR('Blank - Request Form'!I142=\"0\",'Blank - Request Form'!I142=\"00000\",'Blank - Request Form'!I142=0),\"\",'Blank - Request Form'!I142),IF('Blank - Request Form'!$F$7=\"CICSA\",IF(OR('Blank - Request Form'!R142=\"0\",'Blank - Request Form'!R142=\"00000\",'Blank - Request Form'!R142=0),\"\",'Blank - Request Form'!R142),\"\"))","v":""},null,{"$f":"IF('Blank - Request Form'!$F$6=\"CICSA\",IF('Blank - Request Form'!K142=0,\"\",'Blank - Request Form'!K142),IF('Blank - Request Form'!$F$7=\"CICSA\",IF('Blank - Request Form'!T142=0,\"\",'Blank - Request Form'!T142),\"\"))","v":""},null,null,null,{"$f":"IF(M108<>\"\",'Blank - Request Form'!$M$2,\"\")","v":""},{"$f":"IF('Blank - Request Form'!$F$6=\"CICSA\",IF('Blank - Request Form'!J142=0,\"\",'Blank - Request Form'!J142),IF('Blank - Request Form'!$F$7=\"CICSA\",IF('Blank - Request Form'!S142=0,\"\",'Blank - Request Form'!S142),\"\"))","v":""},"",108]
[{"$f":"IF('Blank - Request Form'!$F$6=\"CICSA\",IF('Blank - Request Form'!D143=0,\"\",'Blank - Request Form'!D143),IF('Blank - Request Form'!$F$7=\"CICSA\",IF('Blank - Request Form'!M143=0,\"\",'Blank - Request Form'!M143),\"\"))","v":""},{"$f":"IF('Blank - Request Form'!$F$6=\"CICSA\",IF('Blank - Request Form'!E143=0,\"\",'Blank - Request Form'!E143),IF('Blank - Request Form'!$F$7=\"CICSA\",IF('Blank - Request Form'!N143=0,\"\",'Blank - Request Form'!N143),\"\"))","v":""},{"$f":"IF('Blank - Request Form'!$F$6=\"CICSA\",IF(OR('Blank - Request Form'!F143=\"000\",'Blank - Request Form'!F143=0),\"\",'Blank - Request Form'!F143),IF('Blank - Request Form'!$F$7=\"CICSA\",IF(OR('Blank - Request Form'!O143=\"000\",'Blank - Request Form'!O143=0),\"\",'Blank - Request Form'!O143),\"\"))","v":""},{"$f":"IF('Blank - Request Form'!$F$6=\"CICSA\",IF(OR('Blank - Request Form'!G143=\"0\",'Blank - Request Form'!G143=\"00000\",'Blank - Request Form'!G143=0),\"\",'Blank - Request Form'!G143),IF('Blank - Request Form'!$F$7=\"CICSA\",IF(OR('Blank - Request Form'!P143=\"0\",'Blank - Request Form'!P143=\"00000\",'Blank - Request Form'!P143=0),\"\",'Blank - Request Form'!P143),\"\"))","v":""},{"$f":"IF('Blank - Request Form'!$F$6=\"CICSA\",IF(OR('Blank - Request Form'!H143=\"0\",'Blank - Request Form'!H143=\"00000\",'Blank - Request Form'!H143=0),\"\",'Blank - Request Form'!H143),IF('Blank - Request Form'!$F$7=\"CICSA\",IF(OR('Blank - Request Form'!Q143=\"0\",'Blank - Request Form'!Q143=\"00000\",'Blank - Request Form'!Q143=0),\"\",'Blank - Request Form'!Q143),\"\"))","v":""},{"$f":"IF('Blank - Request Form'!$F$6=\"CICSA\",IF(OR('Blank - Request Form'!I143=\"0\",'Blank - Request Form'!I143=\"00000\",'Blank - Request Form'!I143=0),\"\",'Blank - Request Form'!I143),IF('Blank - Request Form'!$F$7=\"CICSA\",IF(OR('Blank - Request Form'!R143=\"0\",'Blank - Request Form'!R143=\"00000\",'Blank - Request Form'!R143=0),\"\",'Blank - Request Form'!R143),\"\"))","v":""},null,{"$f":"IF('Blank - Request Form'!$F$6=\"CICSA\",IF('Blank - Request Form'!K143=0,\"\",'Blank - Request Form'!K143),IF('Blank - Request Form'!$F$7=\"CICSA\",IF('Blank - Request Form'!T143=0,\"\",'Blank - Request Form'!T143),\"\"))","v":""},null,null,null,{"$f":"IF(M109<>\"\",'Blank - Request Form'!$M$2,\"\")","v":""},{"$f":"IF('Blank - Request Form'!$F$6=\"CICSA\",IF('Blank - Request Form'!J143=0,\"\",'Blank - Request Form'!J143),IF('Blank - Request Form'!$F$7=\"CICSA\",IF('Blank - Request Form'!S143=0,\"\",'Blank - Request Form'!S143),\"\"))","v":""},"",109]
[{"$f":"IF('Blank - Request Form'!$F$6=\"CICSA\",IF('Blank - Request Form'!D144=0,\"\",'Blank - Request Form'!D144),IF('Blank - Request Form'!$F$7=\"CICSA\",IF('Blank - Request Form'!M144=0,\"\",'Blank - Request Form'!M144),\"\"))","v":""},{"$f":"IF('Blank - Request Form'!$F$6=\"CICSA\",IF('Blank - Request Form'!E144=0,\"\",'Blank - Request Form'!E144),IF('Blank - Request Form'!$F$7=\"CICSA\",IF('Blank - Request Form'!N144=0,\"\",'Blank - Request Form'!N144),\"\"))","v":""},{"$f":"IF('Blank - Request Form'!$F$6=\"CICSA\",IF(OR('Blank - Request Form'!F144=\"000\",'Blank - Request Form'!F144=0),\"\",'Blank - Request Form'!F144),IF('Blank - Request Form'!$F$7=\"CICSA\",IF(OR('Blank - Request Form'!O144=\"000\",'Blank - Request Form'!O144=0),\"\",'Blank - Request Form'!O144),\"\"))","v":""},{"$f":"IF('Blank - Request Form'!$F$6=\"CICSA\",IF(OR('Blank - Request Form'!G144=\"0\",'Blank - Request Form'!G144=\"00000\",'Blank - Request Form'!G144=0),\"\",'Blank - Request Form'!G144),IF('Blank - Request Form'!$F$7=\"CICSA\",IF(OR('Blank - Request Form'!P144=\"0\",'Blank - Request Form'!P144=\"00000\",'Blank - Request Form'!P144=0),\"\",'Blank - Request Form'!P144),\"\"))","v":""},{"$f":"IF('Blank - Request Form'!$F$6=\"CICSA\",IF(OR('Blank - Request Form'!H144=\"0\",'Blank - Request Form'!H144=\"00000\",'Blank - Request Form'!H144=0),\"\",'Blank - Request Form'!H144),IF('Blank - Request Form'!$F$7=\"CICSA\",IF(OR('Blank - Request Form'!Q144=\"0\",'Blank - Request Form'!Q144=\"00000\",'Blank - Request Form'!Q144=0),\"\",'Blank - Request Form'!Q144),\"\"))","v":""},{"$f":"IF('Blank - Request Form'!$F$6=\"CICSA\",IF(OR('Blank - Request Form'!I144=\"0\",'Blank - Request Form'!I144=\"00000\",'Blank - Request Form'!I144=0),\"\",'Blank - Request Form'!I144),IF('Blank - Request Form'!$F$7=\"CICSA\",IF(OR('Blank - Request Form'!R144=\"0\",'Blank - Request Form'!R144=\"00000\",'Blank - Request Form'!R144=0),\"\",'Blank - Request Form'!R144),\"\"))","v":""},null,{"$f":"IF('Blank - Request Form'!$F$6=\"CICSA\",IF('Blank - Request Form'!K144=0,\"\",'Blank - Request Form'!K144),IF('Blank - Request Form'!$F$7=\"CICSA\",IF('Blank - Request Form'!T144=0,\"\",'Blank - Request Form'!T144),\"\"))","v":""},null,null,null,{"$f":"IF(M110<>\"\",'Blank - Request Form'!$M$2,\"\")","v":""},{"$f":"IF('Blank - Request Form'!$F$6=\"CICSA\",IF('Blank - Request Form'!J144=0,\"\",'Blank - Request Form'!J144),IF('Blank - Request Form'!$F$7=\"CICSA\",IF('Blank - Request Form'!S144=0,\"\",'Blank - Request Form'!S144),\"\"))","v":""},"",110]
[{"$f":"IF('Blank - Request Form'!$F$6=\"CICSA\",IF('Blank - Request Form'!D145=0,\"\",'Blank - Request Form'!D145),IF('Blank - Request Form'!$F$7=\"CICSA\",IF('Blank - Request Form'!M145=0,\"\",'Blank - Request Form'!M145),\"\"))","v":""},{"$f":"IF('Blank - Request Form'!$F$6=\"CICSA\",IF('Blank - Request Form'!E145=0,\"\",'Blank - Request Form'!E145),IF('Blank - Request Form'!$F$7=\"CICSA\",IF('Blank - Request Form'!N145=0,\"\",'Blank - Request Form'!N145),\"\"))","v":""},{"$f":"IF('Blank - Request Form'!$F$6=\"CICSA\",IF(OR('Blank - Request Form'!F145=\"000\",'Blank - Request Form'!F145=0),\"\",'Blank - Request Form'!F145),IF('Blank - Request Form'!$F$7=\"CICSA\",IF(OR('Blank - Request Form'!O145=\"000\",'Blank - Request Form'!O145=0),\"\",'Blank - Request Form'!O145),\"\"))","v":""},{"$f":"IF('Blank - Request Form'!$F$6=\"CICSA\",IF(OR('Blank - Request Form'!G145=\"0\",'Blank - Request Form'!G145=\"00000\",'Blank - Request Form'!G145=0),\"\",'Blank - Request Form'!G145),IF('Blank - Request Form'!$F$7=\"CICSA\",IF(OR('Blank - Request Form'!P145=\"0\",'Blank - Request Form'!P145=\"00000\",'Blank - Request Form'!P145=0),\"\",'Blank - Request Form'!P145),\"\"))","v":""},{"$f":"IF('Blank - Request Form'!$F$6=\"CICSA\",IF(OR('Blank - Request Form'!H145=\"0\",'Blank - Request Form'!H145=\"00000\",'Blank - Request Form'!H145=0),\"\",'Blank - Request Form'!H145),IF('Blank - Request Form'!$F$7=\"CICSA\",IF(OR('Blank - Request Form'!Q145=\"0\",'Blank - Request Form'!Q145=\"00000\",'Blank - Request Form'!Q145=0),\"\",'Blank - Request Form'!Q145),\"\"))","v":""},{"$f":"IF('Blank - Request Form'!$F$6=\"CICSA\",IF(OR('Blank - Request Form'!I145=\"0\",'Blank - Request Form'!I145=\"00000\",'Blank - Request Form'!I145=0),\"\",'Blank - Request Form'!I145),IF('Blank - Request Form'!$F$7=\"CICSA\",IF(OR('Blank - Request Form'!R145=\"0\",'Blank - Request Form'!R145=\"00000\",'Blank - Request Form'!R145=0),\"\",'Blank - Request Form'!R145),\"\"))","v":""},null,{"$f":"IF('Blank - Request Form'!$F$6=\"CICSA\",IF('Blank - Request Form'!K145=0,\"\",'Blank - Request Form'!K145),IF('Blank - Request Form'!$F$7=\"CICSA\",IF('Blank - Request Form'!T145=0,\"\",'Blank - Request Form'!T145),\"\"))","v":""},null,null,null,{"$f":"IF(M111<>\"\",'Blank - Request Form'!$M$2,\"\")","v":""},{"$f":"IF('Blank - Request Form'!$F$6=\"CICSA\",IF('Blank - Request Form'!J145=0,\"\",'Blank - Request Form'!J145),IF('Blank - Request Form'!$F$7=\"CICSA\",IF('Blank - Request Form'!S145=0,\"\",'Blank - Request Form'!S145),\"\"))","v":""},{"$f":"IF(M111<>\"\",O111,\"\")","v":""},111]
[{"$f":"IF('Blank - Request Form'!$F$6=\"CICSA\",IF('Blank - Request Form'!D146=0,\"\",'Blank - Request Form'!D146),IF('Blank - Request Form'!$F$7=\"CICSA\",IF('Blank - Request Form'!M146=0,\"\",'Blank - Request Form'!M146),\"\"))","v":""},{"$f":"IF('Blank - Request Form'!$F$6=\"CICSA\",IF('Blank - Request Form'!E146=0,\"\",'Blank - Request Form'!E146),IF('Blank - Request Form'!$F$7=\"CICSA\",IF('Blank - Request Form'!N146=0,\"\",'Blank - Request Form'!N146),\"\"))","v":""},{"$f":"IF('Blank - Request Form'!$F$6=\"CICSA\",IF(OR('Blank - Request Form'!F146=\"000\",'Blank - Request Form'!F146=0),\"\",'Blank - Request Form'!F146),IF('Blank - Request Form'!$F$7=\"CICSA\",IF(OR('Blank - Request Form'!O146=\"000\",'Blank - Request Form'!O146=0),\"\",'Blank - Request Form'!O146),\"\"))","v":""},{"$f":"IF('Blank - Request Form'!$F$6=\"CICSA\",IF(OR('Blank - Request Form'!G146=\"0\",'Blank - Request Form'!G146=\"00000\",'Blank - Request Form'!G146=0),\"\",'Blank - Request Form'!G146),IF('Blank - Request Form'!$F$7=\"CICSA\",IF(OR('Blank - Request Form'!P146=\"0\",'Blank - Request Form'!P146=\"00000\",'Blank - Request Form'!P146=0),\"\",'Blank - Request Form'!P146),\"\"))","v":""},{"$f":"IF('Blank - Request Form'!$F$6=\"CICSA\",IF(OR('Blank - Request Form'!H146=\"0\",'Blank - Request Form'!H146=\"00000\",'Blank - Request Form'!H146=0),\"\",'Blank - Request Form'!H146),IF('Blank - Request Form'!$F$7=\"CICSA\",IF(OR('Blank - Request Form'!Q146=\"0\",'Blank - Request Form'!Q146=\"00000\",'Blank - Request Form'!Q146=0),\"\",'Blank - Request Form'!Q146),\"\"))","v":""},{"$f":"IF('Blank - Request Form'!$F$6=\"CICSA\",IF(OR('Blank - Request Form'!I146=\"0\",'Blank - Request Form'!I146=\"00000\",'Blank - Request Form'!I146=0),\"\",'Blank - Request Form'!I146),IF('Blank - Request Form'!$F$7=\"CICSA\",IF(OR('Blank - Request Form'!R146=\"0\",'Blank - Request Form'!R146=\"00000\",'Blank - Request Form'!R146=0),\"\",'Blank - Request Form'!R146),\"\"))","v":""},null,{"$f":"IF('Blank - Request Form'!$F$6=\"CICSA\",IF('Blank - Request Form'!K146=0,\"\",'Blank - Request Form'!K146),IF('Blank - Request Form'!$F$7=\"CICSA\",IF('Blank - Request Form'!T146=0,\"\",'Blank - Request Form'!T146),\"\"))","v":""},null,null,null,{"$f":"IF(M112<>\"\",'Blank - Request Form'!$M$2,\"\")","v":""},{"$f":"IF('Blank - Request Form'!$F$6=\"CICSA\",IF('Blank - Request Form'!J146=0,\"\",'Blank - Request Form'!J146),IF('Blank - Request Form'!$F$7=\"CICSA\",IF('Blank - Request Form'!S146=0,\"\",'Blank - Request Form'!S146),\"\"))","v":""},"",112]
[{"$f":"IF('Blank - Request Form'!$F$6=\"CICSA\",IF('Blank - Request Form'!D147=0,\"\",'Blank - Request Form'!D147),IF('Blank - Request Form'!$F$7=\"CICSA\",IF('Blank - Request Form'!M147=0,\"\",'Blank - Request Form'!M147),\"\"))","v":""},{"$f":"IF('Blank - Request Form'!$F$6=\"CICSA\",IF('Blank - Request Form'!E147=0,\"\",'Blank - Request Form'!E147),IF('Blank - Request Form'!$F$7=\"CICSA\",IF('Blank - Request Form'!N147=0,\"\",'Blank - Request Form'!N147),\"\"))","v":""},{"$f":"IF('Blank - Request Form'!$F$6=\"CICSA\",IF(OR('Blank - Request Form'!F147=\"000\",'Blank - Request Form'!F147=0),\"\",'Blank - Request Form'!F147),IF('Blank - Request Form'!$F$7=\"CICSA\",IF(OR('Blank - Request Form'!O147=\"000\",'Blank - Request Form'!O147=0),\"\",'Blank - Request Form'!O147),\"\"))","v":""},{"$f":"IF('Blank - Request Form'!$F$6=\"CICSA\",IF(OR('Blank - Request Form'!G147=\"0\",'Blank - Request Form'!G147=\"00000\",'Blank - Request Form'!G147=0),\"\",'Blank - Request Form'!G147),IF('Blank - Request Form'!$F$7=\"CICSA\",IF(OR('Blank - Request Form'!P147=\"0\",'Blank - Request Form'!P147=\"00000\",'Blank - Request Form'!P147=0),\"\",'Blank - Request Form'!P147),\"\"))","v":""},{"$f":"IF('Blank - Request Form'!$F$6=\"CICSA\",IF(OR('Blank - Request Form'!H147=\"0\",'Blank - Request Form'!H147=\"00000\",'Blank - Request Form'!H147=0),\"\",'Blank - Request Form'!H147),IF('Blank - Request Form'!$F$7=\"CICSA\",IF(OR('Blank - Request Form'!Q147=\"0\",'Blank - Request Form'!Q147=\"00000\",'Blank - Request Form'!Q147=0),\"\",'Blank - Request Form'!Q147),\"\"))","v":""},{"$f":"IF('Blank - Request Form'!$F$6=\"CICSA\",IF(OR('Blank - Request Form'!I147=\"0\",'Blank - Request Form'!I147=\"00000\",'Blank - Request Form'!I147=0),\"\",'Blank - Request Form'!I147),IF('Blank - Request Form'!$F$7=\"CICSA\",IF(OR('Blank - Request Form'!R147=\"0\",'Blank - Request Form'!R147=\"00000\",'Blank - Request Form'!R147=0),\"\",'Blank - Request Form'!R147),\"\"))","v":""},null,{"$f":"IF('Blank - Request Form'!$F$6=\"CICSA\",IF('Blank - Request Form'!K147=0,\"\",'Blank - Request Form'!K147),IF('Blank - Request Form'!$F$7=\"CICSA\",IF('Blank - Request Form'!T147=0,\"\",'Blank - Request Form'!T147),\"\"))","v":""},null,null,null,{"$f":"IF(M113<>\"\",'Blank - Request Form'!$M$2,\"\")","v":""},{"$f":"IF('Blank - Request Form'!$F$6=\"CICSA\",IF('Blank - Request Form'!J147=0,\"\",'Blank - Request Form'!J147),IF('Blank - Request Form'!$F$7=\"CICSA\",IF('Blank - Request Form'!S147=0,\"\",'Blank - Request Form'!S147),\"\"))","v":""},"",113]
[{"$f":"IF('Blank - Request Form'!$F$6=\"CICSA\",IF('Blank - Request Form'!D148=0,\"\",'Blank - Request Form'!D148),IF('Blank - Request Form'!$F$7=\"CICSA\",IF('Blank - Request Form'!M148=0,\"\",'Blank - Request Form'!M148),\"\"))","v":""},{"$f":"IF('Blank - Request Form'!$F$6=\"CICSA\",IF('Blank - Request Form'!E148=0,\"\",'Blank - Request Form'!E148),IF('Blank - Request Form'!$F$7=\"CICSA\",IF('Blank - Request Form'!N148=0,\"\",'Blank - Request Form'!N148),\"\"))","v":""},{"$f":"IF('Blank - Request Form'!$F$6=\"CICSA\",IF(OR('Blank - Request Form'!F148=\"000\",'Blank - Request Form'!F148=0),\"\",'Blank - Request Form'!F148),IF('Blank - Request Form'!$F$7=\"CICSA\",IF(OR('Blank - Request Form'!O148=\"000\",'Blank - Request Form'!O148=0),\"\",'Blank - Request Form'!O148),\"\"))","v":""},{"$f":"IF('Blank - Request Form'!$F$6=\"CICSA\",IF(OR('Blank - Request Form'!G148=\"0\",'Blank - Request Form'!G148=\"00000\",'Blank - Request Form'!G148=0),\"\",'Blank - Request Form'!G148),IF('Blank - Request Form'!$F$7=\"CICSA\",IF(OR('Blank - Request Form'!P148=\"0\",'Blank - Request Form'!P148=\"00000\",'Blank - Request Form'!P148=0),\"\",'Blank - Request Form'!P148),\"\"))","v":""},{"$f":"IF('Blank - Request Form'!$F$6=\"CICSA\",IF(OR('Blank - Request Form'!H148=\"0\",'Blank - Request Form'!H148=\"00000\",'Blank - Request Form'!H148=0),\"\",'Blank - Request Form'!H148),IF('Blank - Request Form'!$F$7=\"CICSA\",IF(OR('Blank - Request Form'!Q148=\"0\",'Blank - Request Form'!Q148=\"00000\",'Blank - Request Form'!Q148=0),\"\",'Blank - Request Form'!Q148),\"\"))","v":""},{"$f":"IF('Blank - Request Form'!$F$6=\"CICSA\",IF(OR('Blank - Request Form'!I148=\"0\",'Blank - Request Form'!I148=\"00000\",'Blank - Request Form'!I148=0),\"\",'Blank - Request Form'!I148),IF('Blank - Request Form'!$F$7=\"CICSA\",IF(OR('Blank - Request Form'!R148=\"0\",'Blank - Request Form'!R148=\"00000\",'Blank - Request Form'!R148=0),\"\",'Blank - Request Form'!R148),\"\"))","v":""},null,{"$f":"IF('Blank - Request Form'!$F$6=\"CICSA\",IF('Blank - Request Form'!K148=0,\"\",'Blank - Request Form'!K148),IF('Blank - Request Form'!$F$7=\"CICSA\",IF('Blank - Request Form'!T148=0,\"\",'Blank - Request Form'!T148),\"\"))","v":""},null,null,null,{"$f":"IF(M114<>\"\",'Blank - Request Form'!$M$2,\"\")","v":""},{"$f":"IF('Blank - Request Form'!$F$6=\"CICSA\",IF('Blank - Request Form'!J148=0,\"\",'Blank - Request Form'!J148),IF('Blank - Request Form'!$F$7=\"CICSA\",IF('Blank - Request Form'!S148=0,\"\",'Blank - Request Form'!S148),\"\"))","v":""},"",114]
[{"$f":"IF('Blank - Request Form'!$F$6=\"CICSA\",IF('Blank - Request Form'!D149=0,\"\",'Blank - Request Form'!D149),IF('Blank - Request Form'!$F$7=\"CICSA\",IF('Blank - Request Form'!M149=0,\"\",'Blank - Request Form'!M149),\"\"))","v":""},{"$f":"IF('Blank - Request Form'!$F$6=\"CICSA\",IF('Blank - Request Form'!E149=0,\"\",'Blank - Request Form'!E149),IF('Blank - Request Form'!$F$7=\"CICSA\",IF('Blank - Request Form'!N149=0,\"\",'Blank - Request Form'!N149),\"\"))","v":""},{"$f":"IF('Blank - Request Form'!$F$6=\"CICSA\",IF(OR('Blank - Request Form'!F149=\"000\",'Blank - Request Form'!F149=0),\"\",'Blank - Request Form'!F149),IF('Blank - Request Form'!$F$7=\"CICSA\",IF(OR('Blank - Request Form'!O149=\"000\",'Blank - Request Form'!O149=0),\"\",'Blank - Request Form'!O149),\"\"))","v":""},{"$f":"IF('Blank - Request Form'!$F$6=\"CICSA\",IF(OR('Blank - Request Form'!G149=\"0\",'Blank - Request Form'!G149=\"00000\",'Blank - Request Form'!G149=0),\"\",'Blank - Request Form'!G149),IF('Blank - Request Form'!$F$7=\"CICSA\",IF(OR('Blank - Request Form'!P149=\"0\",'Blank - Request Form'!P149=\"00000\",'Blank - Request Form'!P149=0),\"\",'Blank - Request Form'!P149),\"\"))","v":""},{"$f":"IF('Blank - Request Form'!$F$6=\"CICSA\",IF(OR('Blank - Request Form'!H149=\"0\",'Blank - Request Form'!H149=\"00000\",'Blank - Request Form'!H149=0),\"\",'Blank - Request Form'!H149),IF('Blank - Request Form'!$F$7=\"CICSA\",IF(OR('Blank - Request Form'!Q149=\"0\",'Blank - Request Form'!Q149=\"00000\",'Blank - Request Form'!Q149=0),\"\",'Blank - Request Form'!Q149),\"\"))","v":""},{"$f":"IF('Blank - Request Form'!$F$6=\"CICSA\",IF(OR('Blank - Request Form'!I149=\"0\",'Blank - Request Form'!I149=\"00000\",'Blank - Request Form'!I149=0),\"\",'Blank - Request Form'!I149),IF('Blank - Request Form'!$F$7=\"CICSA\",IF(OR('Blank - Request Form'!R149=\"0\",'Blank - Request Form'!R149=\"00000\",'Blank - Request Form'!R149=0),\"\",'Blank - Request Form'!R149),\"\"))","v":""},null,{"$f":"IF('Blank - Request Form'!$F$6=\"CICSA\",IF('Blank - Request Form'!K149=0,\"\",'Blank - Request Form'!K149),IF('Blank - Request Form'!$F$7=\"CICSA\",IF('Blank - Request Form'!T149=0,\"\",'Blank - Request Form'!T149),\"\"))","v":""},null,null,null,{"$f":"IF(M115<>\"\",'Blank - Request Form'!$M$2,\"\")","v":""},{"$f":"IF('Blank - Request Form'!$F$6=\"CICSA\",IF('Blank - Request Form'!J149=0,\"\",'Blank - Request Form'!J149),IF('Blank - Request Form'!$F$7=\"CICSA\",IF('Blank - Request Form'!S149=0,\"\",'Blank - Request Form'!S149),\"\"))","v":""},"",115]
[{"$f":"IF('Blank - Request Form'!$F$6=\"CICSA\",IF('Blank - Request Form'!D150=0,\"\",'Blank - Request Form'!D150),IF('Blank - Request Form'!$F$7=\"CICSA\",IF('Blank - Request Form'!M150=0,\"\",'Blank - Request Form'!M150),\"\"))","v":""},{"$f":"IF('Blank - Request Form'!$F$6=\"CICSA\",IF('Blank - Request Form'!E150=0,\"\",'Blank - Request Form'!E150),IF('Blank - Request Form'!$F$7=\"CICSA\",IF('Blank - Request Form'!N150=0,\"\",'Blank - Request Form'!N150),\"\"))","v":""},{"$f":"IF('Blank - Request Form'!$F$6=\"CICSA\",IF(OR('Blank - Request Form'!F150=\"000\",'Blank - Request Form'!F150=0),\"\",'Blank - Request Form'!F150),IF('Blank - Request Form'!$F$7=\"CICSA\",IF(OR('Blank - Request Form'!O150=\"000\",'Blank - Request Form'!O150=0),\"\",'Blank - Request Form'!O150),\"\"))","v":""},{"$f":"IF('Blank - Request Form'!$F$6=\"CICSA\",IF(OR('Blank - Request Form'!G150=\"0\",'Blank - Request Form'!G150=\"00000\",'Blank - Request Form'!G150=0),\"\",'Blank - Request Form'!G150),IF('Blank - Request Form'!$F$7=\"CICSA\",IF(OR('Blank - Request Form'!P150=\"0\",'Blank - Request Form'!P150=\"00000\",'Blank - Request Form'!P150=0),\"\",'Blank - Request Form'!P150),\"\"))","v":""},{"$f":"IF('Blank - Request Form'!$F$6=\"CICSA\",IF(OR('Blank - Request Form'!H150=\"0\",'Blank - Request Form'!H150=\"00000\",'Blank - Request Form'!H150=0),\"\",'Blank - Request Form'!H150),IF('Blank - Request Form'!$F$7=\"CICSA\",IF(OR('Blank - Request Form'!Q150=\"0\",'Blank - Request Form'!Q150=\"00000\",'Blank - Request Form'!Q150=0),\"\",'Blank - Request Form'!Q150),\"\"))","v":""},{"$f":"IF('Blank - Request Form'!$F$6=\"CICSA\",IF(OR('Blank - Request Form'!I150=\"0\",'Blank - Request Form'!I150=\"00000\",'Blank - Request Form'!I150=0),\"\",'Blank - Request Form'!I150),IF('Blank - Request Form'!$F$7=\"CICSA\",IF(OR('Blank - Request Form'!R150=\"0\",'Blank - Request Form'!R150=\"00000\",'Blank - Request Form'!R150=0),\"\",'Blank - Request Form'!R150),\"\"))","v":""},null,{"$f":"IF('Blank - Request Form'!$F$6=\"CICSA\",IF('Blank - Request Form'!K150=0,\"\",'Blank - Request Form'!K150),IF('Blank - Request Form'!$F$7=\"CICSA\",IF('Blank - Request Form'!T150=0,\"\",'Blank - Request Form'!T150),\"\"))","v":""},null,null,null,{"$f":"IF(M116<>\"\",'Blank - Request Form'!$M$2,\"\")","v":""},{"$f":"IF('Blank - Request Form'!$F$6=\"CICSA\",IF('Blank - Request Form'!J150=0,\"\",'Blank - Request Form'!J150),IF('Blank - Request Form'!$F$7=\"CICSA\",IF('Blank - Request Form'!S150=0,\"\",'Blank - Request Form'!S150),\"\"))","v":""},"",116]
[{"$f":"IF('Blank - Request Form'!$F$6=\"CICSA\",IF('Blank - Request Form'!D151=0,\"\",'Blank - Request Form'!D151),IF('Blank - Request Form'!$F$7=\"CICSA\",IF('Blank - Request Form'!M151=0,\"\",'Blank - Request Form'!M151),\"\"))","v":""},{"$f":"IF('Blank - Request Form'!$F$6=\"CICSA\",IF('Blank - Request Form'!E151=0,\"\",'Blank - Request Form'!E151),IF('Blank - Request Form'!$F$7=\"CICSA\",IF('Blank - Request Form'!N151=0,\"\",'Blank - Request Form'!N151),\"\"))","v":""},{"$f":"IF('Blank - Request Form'!$F$6=\"CICSA\",IF(OR('Blank - Request Form'!F151=\"000\",'Blank - Request Form'!F151=0),\"\",'Blank - Request Form'!F151),IF('Blank - Request Form'!$F$7=\"CICSA\",IF(OR('Blank - Request Form'!O151=\"000\",'Blank - Request Form'!O151=0),\"\",'Blank - Request Form'!O151),\"\"))","v":""},{"$f":"IF('Blank - Request Form'!$F$6=\"CICSA\",IF(OR('Blank - Request Form'!G151=\"0\",'Blank - Request Form'!G151=\"00000\",'Blank - Request Form'!G151=0),\"\",'Blank - Request Form'!G151),IF('Blank - Request Form'!$F$7=\"CICSA\",IF(OR('Blank - Request Form'!P151=\"0\",'Blank - Request Form'!P151=\"00000\",'Blank - Request Form'!P151=0),\"\",'Blank - Request Form'!P151),\"\"))","v":""},{"$f":"IF('Blank - Request Form'!$F$6=\"CICSA\",IF(OR('Blank - Request Form'!H151=\"0\",'Blank - Request Form'!H151=\"00000\",'Blank - Request Form'!H151=0),\"\",'Blank - Request Form'!H151),IF('Blank - Request Form'!$F$7=\"CICSA\",IF(OR('Blank - Request Form'!Q151=\"0\",'Blank - Request Form'!Q151=\"00000\",'Blank - Request Form'!Q151=0),\"\",'Blank - Request Form'!Q151),\"\"))","v":""},{"$f":"IF('Blank - Request Form'!$F$6=\"CICSA\",IF(OR('Blank - Request Form'!I151=\"0\",'Blank - Request Form'!I151=\"00000\",'Blank - Request Form'!I151=0),\"\",'Blank - Request Form'!I151),IF('Blank - Request Form'!$F$7=\"CICSA\",IF(OR('Blank - Request Form'!R151=\"0\",'Blank - Request Form'!R151=\"00000\",'Blank - Request Form'!R151=0),\"\",'Blank - Request Form'!R151),\"\"))","v":""},null,{"$f":"IF('Blank - Request Form'!$F$6=\"CICSA\",IF('Blank - Request Form'!K151=0,\"\",'Blank - Request Form'!K151),IF('Blank - Request Form'!$F$7=\"CICSA\",IF('Blank - Request Form'!T151=0,\"\",'Blank - Request Form'!T151),\"\"))","v":""},null,null,null,{"$f":"IF(M117<>\"\",'Blank - Request Form'!$M$2,\"\")","v":""},{"$f":"IF('Blank - Request Form'!$F$6=\"CICSA\",IF('Blank - Request Form'!J151=0,\"\",'Blank - Request Form'!J151),IF('Blank - Request Form'!$F$7=\"CICSA\",IF('Blank - Request Form'!S151=0,\"\",'Blank - Request Form'!S151),\"\"))","v":""},"",117]
[{"$f":"IF('Blank - Request Form'!$F$6=\"CICSA\",IF('Blank - Request Form'!D152=0,\"\",'Blank - Request Form'!D152),IF('Blank - Request Form'!$F$7=\"CICSA\",IF('Blank - Request Form'!M152=0,\"\",'Blank - Request Form'!M152),\"\"))","v":""},{"$f":"IF('Blank - Request Form'!$F$6=\"CICSA\",IF('Blank - Request Form'!E152=0,\"\",'Blank - Request Form'!E152),IF('Blank - Request Form'!$F$7=\"CICSA\",IF('Blank - Request Form'!N152=0,\"\",'Blank - Request Form'!N152),\"\"))","v":""},{"$f":"IF('Blank - Request Form'!$F$6=\"CICSA\",IF(OR('Blank - Request Form'!F152=\"000\",'Blank - Request Form'!F152=0),\"\",'Blank - Request Form'!F152),IF('Blank - Request Form'!$F$7=\"CICSA\",IF(OR('Blank - Request Form'!O152=\"000\",'Blank - Request Form'!O152=0),\"\",'Blank - Request Form'!O152),\"\"))","v":""},{"$f":"IF('Blank - Request Form'!$F$6=\"CICSA\",IF(OR('Blank - Request Form'!G152=\"0\",'Blank - Request Form'!G152=\"00000\",'Blank - Request Form'!G152=0),\"\",'Blank - Request Form'!G152),IF('Blank - Request Form'!$F$7=\"CICSA\",IF(OR('Blank - Request Form'!P152=\"0\",'Blank - Request Form'!P152=\"00000\",'Blank - Request Form'!P152=0),\"\",'Blank - Request Form'!P152),\"\"))","v":""},{"$f":"IF('Blank - Request Form'!$F$6=\"CICSA\",IF(OR('Blank - Request Form'!H152=\"0\",'Blank - Request Form'!H152=\"00000\",'Blank - Request Form'!H152=0),\"\",'Blank - Request Form'!H152),IF('Blank - Request Form'!$F$7=\"CICSA\",IF(OR('Blank - Request Form'!Q152=\"0\",'Blank - Request Form'!Q152=\"00000\",'Blank - Request Form'!Q152=0),\"\",'Blank - Request Form'!Q152),\"\"))","v":""},{"$f":"IF('Blank - Request Form'!$F$6=\"CICSA\",IF(OR('Blank - Request Form'!I152=\"0\",'Blank - Request Form'!I152=\"00000\",'Blank - Request Form'!I152=0),\"\",'Blank - Request Form'!I152),IF('Blank - Request Form'!$F$7=\"CICSA\",IF(OR('Blank - Request Form'!R152=\"0\",'Blank - Request Form'!R152=\"00000\",'Blank - Request Form'!R152=0),\"\",'Blank - Request Form'!R152),\"\"))","v":""},null,{"$f":"IF('Blank - Request Form'!$F$6=\"CICSA\",IF('Blank - Request Form'!K152=0,\"\",'Blank - Request Form'!K152),IF('Blank - Request Form'!$F$7=\"CICSA\",IF('Blank - Request Form'!T152=0,\"\",'Blank - Request Form'!T152),\"\"))","v":""},null,null,null,{"$f":"IF(M118<>\"\",'Blank - Request Form'!$M$2,\"\")","v":""},{"$f":"IF('Blank - Request Form'!$F$6=\"CICSA\",IF('Blank - Request Form'!J152=0,\"\",'Blank - Request Form'!J152),IF('Blank - Request Form'!$F$7=\"CICSA\",IF('Blank - Request Form'!S152=0,\"\",'Blank - Request Form'!S152),\"\"))","v":""},"",118]
[{"$f":"IF('Blank - Request Form'!$F$6=\"CICSA\",IF('Blank - Request Form'!D153=0,\"\",'Blank - Request Form'!D153),IF('Blank - Request Form'!$F$7=\"CICSA\",IF('Blank - Request Form'!M153=0,\"\",'Blank - Request Form'!M153),\"\"))","v":""},{"$f":"IF('Blank - Request Form'!$F$6=\"CICSA\",IF('Blank - Request Form'!E153=0,\"\",'Blank - Request Form'!E153),IF('Blank - Request Form'!$F$7=\"CICSA\",IF('Blank - Request Form'!N153=0,\"\",'Blank - Request Form'!N153),\"\"))","v":""},{"$f":"IF('Blank - Request Form'!$F$6=\"CICSA\",IF(OR('Blank - Request Form'!F153=\"000\",'Blank - Request Form'!F153=0),\"\",'Blank - Request Form'!F153),IF('Blank - Request Form'!$F$7=\"CICSA\",IF(OR('Blank - Request Form'!O153=\"000\",'Blank - Request Form'!O153=0),\"\",'Blank - Request Form'!O153),\"\"))","v":""},{"$f":"IF('Blank - Request Form'!$F$6=\"CICSA\",IF(OR('Blank - Request Form'!G153=\"0\",'Blank - Request Form'!G153=\"00000\",'Blank - Request Form'!G153=0),\"\",'Blank - Request Form'!G153),IF('Blank - Request Form'!$F$7=\"CICSA\",IF(OR('Blank - Request Form'!P153=\"0\",'Blank - Request Form'!P153=\"00000\",'Blank - Request Form'!P153=0),\"\",'Blank - Request Form'!P153),\"\"))","v":""},{"$f":"IF('Blank - Request Form'!$F$6=\"CICSA\",IF(OR('Blank - Request Form'!H153=\"0\",'Blank - Request Form'!H153=\"00000\",'Blank - Request Form'!H153=0),\"\",'Blank - Request Form'!H153),IF('Blank - Request Form'!$F$7=\"CICSA\",IF(OR('Blank - Request Form'!Q153=\"0\",'Blank - Request Form'!Q153=\"00000\",'Blank - Request Form'!Q153=0),\"\",'Blank - Request Form'!Q153),\"\"))","v":""},{"$f":"IF('Blank - Request Form'!$F$6=\"CICSA\",IF(OR('Blank - Request Form'!I153=\"0\",'Blank - Request Form'!I153=\"00000\",'Blank - Request Form'!I153=0),\"\",'Blank - Request Form'!I153),IF('Blank - Request Form'!$F$7=\"CICSA\",IF(OR('Blank - Request Form'!R153=\"0\",'Blank - Request Form'!R153=\"00000\",'Blank - Request Form'!R153=0),\"\",'Blank - Request Form'!R153),\"\"))","v":""},null,{"$f":"IF('Blank - Request Form'!$F$6=\"CICSA\",IF('Blank - Request Form'!K153=0,\"\",'Blank - Request Form'!K153),IF('Blank - Request Form'!$F$7=\"CICSA\",IF('Blank - Request Form'!T153=0,\"\",'Blank - Request Form'!T153),\"\"))","v":""},null,null,null,{"$f":"IF(M119<>\"\",'Blank - Request Form'!$M$2,\"\")","v":""},{"$f":"IF('Blank - Request Form'!$F$6=\"CICSA\",IF('Blank - Request Form'!J153=0,\"\",'Blank - Request Form'!J153),IF('Blank - Request Form'!$F$7=\"CICSA\",IF('Blank - Request Form'!S153=0,\"\",'Blank - Request Form'!S153),\"\"))","v":""},"",119]
[{"$f":"IF('Blank - Request Form'!$F$6=\"CICSA\",IF('Blank - Request Form'!D154=0,\"\",'Blank - Request Form'!D154),IF('Blank - Request Form'!$F$7=\"CICSA\",IF('Blank - Request Form'!M154=0,\"\",'Blank - Request Form'!M154),\"\"))","v":""},{"$f":"IF('Blank - Request Form'!$F$6=\"CICSA\",IF('Blank - Request Form'!E154=0,\"\",'Blank - Request Form'!E154),IF('Blank - Request Form'!$F$7=\"CICSA\",IF('Blank - Request Form'!N154=0,\"\",'Blank - Request Form'!N154),\"\"))","v":""},{"$f":"IF('Blank - Request Form'!$F$6=\"CICSA\",IF(OR('Blank - Request Form'!F154=\"000\",'Blank - Request Form'!F154=0),\"\",'Blank - Request Form'!F154),IF('Blank - Request Form'!$F$7=\"CICSA\",IF(OR('Blank - Request Form'!O154=\"000\",'Blank - Request Form'!O154=0),\"\",'Blank - Request Form'!O154),\"\"))","v":""},{"$f":"IF('Blank - Request Form'!$F$6=\"CICSA\",IF(OR('Blank - Request Form'!G154=\"0\",'Blank - Request Form'!G154=\"00000\",'Blank - Request Form'!G154=0),\"\",'Blank - Request Form'!G154),IF('Blank - Request Form'!$F$7=\"CICSA\",IF(OR('Blank - Request Form'!P154=\"0\",'Blank - Request Form'!P154=\"00000\",'Blank - Request Form'!P154=0),\"\",'Blank - Request Form'!P154),\"\"))","v":""},{"$f":"IF('Blank - Request Form'!$F$6=\"CICSA\",IF(OR('Blank - Request Form'!H154=\"0\",'Blank - Request Form'!H154=\"00000\",'Blank - Request Form'!H154=0),\"\",'Blank - Request Form'!H154),IF('Blank - Request Form'!$F$7=\"CICSA\",IF(OR('Blank - Request Form'!Q154=\"0\",'Blank - Request Form'!Q154=\"00000\",'Blank - Request Form'!Q154=0),\"\",'Blank - Request Form'!Q154),\"\"))","v":""},{"$f":"IF('Blank - Request Form'!$F$6=\"CICSA\",IF(OR('Blank - Request Form'!I154=\"0\",'Blank - Request Form'!I154=\"00000\",'Blank - Request Form'!I154=0),\"\",'Blank - Request Form'!I154),IF('Blank - Request Form'!$F$7=\"CICSA\",IF(OR('Blank - Request Form'!R154=\"0\",'Blank - Request Form'!R154=\"00000\",'Blank - Request Form'!R154=0),\"\",'Blank - Request Form'!R154),\"\"))","v":""},null,{"$f":"IF('Blank - Request Form'!$F$6=\"CICSA\",IF('Blank - Request Form'!K154=0,\"\",'Blank - Request Form'!K154),IF('Blank - Request Form'!$F$7=\"CICSA\",IF('Blank - Request Form'!T154=0,\"\",'Blank - Request Form'!T154),\"\"))","v":""},null,null,null,{"$f":"IF(M120<>\"\",'Blank - Request Form'!$M$2,\"\")","v":""},{"$f":"IF('Blank - Request Form'!$F$6=\"CICSA\",IF('Blank - Request Form'!J154=0,\"\",'Blank - Request Form'!J154),IF('Blank - Request Form'!$F$7=\"CICSA\",IF('Blank - Request Form'!S154=0,\"\",'Blank - Request Form'!S154),\"\"))","v":""},"",120]
[{"$f":"IF('Blank - Request Form'!$F$6=\"CICSA\",IF('Blank - Request Form'!D155=0,\"\",'Blank - Request Form'!D155),IF('Blank - Request Form'!$F$7=\"CICSA\",IF('Blank - Request Form'!M155=0,\"\",'Blank - Request Form'!M155),\"\"))","v":""},{"$f":"IF('Blank - Request Form'!$F$6=\"CICSA\",IF('Blank - Request Form'!E155=0,\"\",'Blank - Request Form'!E155),IF('Blank - Request Form'!$F$7=\"CICSA\",IF('Blank - Request Form'!N155=0,\"\",'Blank - Request Form'!N155),\"\"))","v":""},{"$f":"IF('Blank - Request Form'!$F$6=\"CICSA\",IF(OR('Blank - Request Form'!F155=\"000\",'Blank - Request Form'!F155=0),\"\",'Blank - Request Form'!F155),IF('Blank - Request Form'!$F$7=\"CICSA\",IF(OR('Blank - Request Form'!O155=\"000\",'Blank - Request Form'!O155=0),\"\",'Blank - Request Form'!O155),\"\"))","v":""},{"$f":"IF('Blank - Request Form'!$F$6=\"CICSA\",IF(OR('Blank - Request Form'!G155=\"0\",'Blank - Request Form'!G155=\"00000\",'Blank - Request Form'!G155=0),\"\",'Blank - Request Form'!G155),IF('Blank - Request Form'!$F$7=\"CICSA\",IF(OR('Blank - Request Form'!P155=\"0\",'Blank - Request Form'!P155=\"00000\",'Blank - Request Form'!P155=0),\"\",'Blank - Request Form'!P155),\"\"))","v":""},{"$f":"IF('Blank - Request Form'!$F$6=\"CICSA\",IF(OR('Blank - Request Form'!H155=\"0\",'Blank - Request Form'!H155=\"00000\",'Blank - Request Form'!H155=0),\"\",'Blank - Request Form'!H155),IF('Blank - Request Form'!$F$7=\"CICSA\",IF(OR('Blank - Request Form'!Q155=\"0\",'Blank - Request Form'!Q155=\"00000\",'Blank - Request Form'!Q155=0),\"\",'Blank - Request Form'!Q155),\"\"))","v":""},{"$f":"IF('Blank - Request Form'!$F$6=\"CICSA\",IF(OR('Blank - Request Form'!I155=\"0\",'Blank - Request Form'!I155=\"00000\",'Blank - Request Form'!I155=0),\"\",'Blank - Request Form'!I155),IF('Blank - Request Form'!$F$7=\"CICSA\",IF(OR('Blank - Request Form'!R155=\"0\",'Blank - Request Form'!R155=\"00000\",'Blank - Request Form'!R155=0),\"\",'Blank - Request Form'!R155),\"\"))","v":""},null,{"$f":"IF('Blank - Request Form'!$F$6=\"CICSA\",IF('Blank - Request Form'!K155=0,\"\",'Blank - Request Form'!K155),IF('Blank - Request Form'!$F$7=\"CICSA\",IF('Blank - Request Form'!T155=0,\"\",'Blank - Request Form'!T155),\"\"))","v":""},null,null,null,{"$f":"IF(M121<>\"\",'Blank - Request Form'!$M$2,\"\")","v":""},{"$f":"IF('Blank - Request Form'!$F$6=\"CICSA\",IF('Blank - Request Form'!J155=0,\"\",'Blank - Request Form'!J155),IF('Blank - Request Form'!$F$7=\"CICSA\",IF('Blank - Request Form'!S155=0,\"\",'Blank - Request Form'!S155),\"\"))","v":""},"",121]
[{"$f":"IF('Blank - Request Form'!$F$6=\"CICSA\",IF('Blank - Request Form'!D156=0,\"\",'Blank - Request Form'!D156),IF('Blank - Request Form'!$F$7=\"CICSA\",IF('Blank - Request Form'!M156=0,\"\",'Blank - Request Form'!M156),\"\"))","v":""},{"$f":"IF('Blank - Request Form'!$F$6=\"CICSA\",IF('Blank - Request Form'!E156=0,\"\",'Blank - Request Form'!E156),IF('Blank - Request Form'!$F$7=\"CICSA\",IF('Blank - Request Form'!N156=0,\"\",'Blank - Request Form'!N156),\"\"))","v":""},{"$f":"IF('Blank - Request Form'!$F$6=\"CICSA\",IF(OR('Blank - Request Form'!F156=\"000\",'Blank - Request Form'!F156=0),\"\",'Blank - Request Form'!F156),IF('Blank - Request Form'!$F$7=\"CICSA\",IF(OR('Blank - Request Form'!O156=\"000\",'Blank - Request Form'!O156=0),\"\",'Blank - Request Form'!O156),\"\"))","v":""},{"$f":"IF('Blank - Request Form'!$F$6=\"CICSA\",IF(OR('Blank - Request Form'!G156=\"0\",'Blank - Request Form'!G156=\"00000\",'Blank - Request Form'!G156=0),\"\",'Blank - Request Form'!G156),IF('Blank - Request Form'!$F$7=\"CICSA\",IF(OR('Blank - Request Form'!P156=\"0\",'Blank - Request Form'!P156=\"00000\",'Blank - Request Form'!P156=0),\"\",'Blank - Request Form'!P156),\"\"))","v":""},{"$f":"IF('Blank - Request Form'!$F$6=\"CICSA\",IF(OR('Blank - Request Form'!H156=\"0\",'Blank - Request Form'!H156=\"00000\",'Blank - Request Form'!H156=0),\"\",'Blank - Request Form'!H156),IF('Blank - Request Form'!$F$7=\"CICSA\",IF(OR('Blank - Request Form'!Q156=\"0\",'Blank - Request Form'!Q156=\"00000\",'Blank - Request Form'!Q156=0),\"\",'Blank - Request Form'!Q156),\"\"))","v":""},{"$f":"IF('Blank - Request Form'!$F$6=\"CICSA\",IF(OR('Blank - Request Form'!I156=\"0\",'Blank - Request Form'!I156=\"00000\",'Blank - Request Form'!I156=0),\"\",'Blank - Request Form'!I156),IF('Blank - Request Form'!$F$7=\"CICSA\",IF(OR('Blank - Request Form'!R156=\"0\",'Blank - Request Form'!R156=\"00000\",'Blank - Request Form'!R156=0),\"\",'Blank - Request Form'!R156),\"\"))","v":""},null,{"$f":"IF('Blank - Request Form'!$F$6=\"CICSA\",IF('Blank - Request Form'!K156=0,\"\",'Blank - Request Form'!K156),IF('Blank - Request Form'!$F$7=\"CICSA\",IF('Blank - Request Form'!T156=0,\"\",'Blank - Request Form'!T156),\"\"))","v":""},null,null,null,{"$f":"IF(M122<>\"\",'Blank - Request Form'!$M$2,\"\")","v":""},{"$f":"IF('Blank - Request Form'!$F$6=\"CICSA\",IF('Blank - Request Form'!J156=0,\"\",'Blank - Request Form'!J156),IF('Blank - Request Form'!$F$7=\"CICSA\",IF('Blank - Request Form'!S156=0,\"\",'Blank - Request Form'!S156),\"\"))","v":""},"",122]
[{"$f":"IF('Blank - Request Form'!$F$6=\"CICSA\",IF('Blank - Request Form'!D157=0,\"\",'Blank - Request Form'!D157),IF('Blank - Request Form'!$F$7=\"CICSA\",IF('Blank - Request Form'!M157=0,\"\",'Blank - Request Form'!M157),\"\"))","v":""},{"$f":"IF('Blank - Request Form'!$F$6=\"CICSA\",IF('Blank - Request Form'!E157=0,\"\",'Blank - Request Form'!E157),IF('Blank - Request Form'!$F$7=\"CICSA\",IF('Blank - Request Form'!N157=0,\"\",'Blank - Request Form'!N157),\"\"))","v":""},{"$f":"IF('Blank - Request Form'!$F$6=\"CICSA\",IF(OR('Blank - Request Form'!F157=\"000\",'Blank - Request Form'!F157=0),\"\",'Blank - Request Form'!F157),IF('Blank - Request Form'!$F$7=\"CICSA\",IF(OR('Blank - Request Form'!O157=\"000\",'Blank - Request Form'!O157=0),\"\",'Blank - Request Form'!O157),\"\"))","v":""},{"$f":"IF('Blank - Request Form'!$F$6=\"CICSA\",IF(OR('Blank - Request Form'!G157=\"0\",'Blank - Request Form'!G157=\"00000\",'Blank - Request Form'!G157=0),\"\",'Blank - Request Form'!G157),IF('Blank - Request Form'!$F$7=\"CICSA\",IF(OR('Blank - Request Form'!P157=\"0\",'Blank - Request Form'!P157=\"00000\",'Blank - Request Form'!P157=0),\"\",'Blank - Request Form'!P157),\"\"))","v":""},{"$f":"IF('Blank - Request Form'!$F$6=\"CICSA\",IF(OR('Blank - Request Form'!H157=\"0\",'Blank - Request Form'!H157=\"00000\",'Blank - Request Form'!H157=0),\"\",'Blank - Request Form'!H157),IF('Blank - Request Form'!$F$7=\"CICSA\",IF(OR('Blank - Request Form'!Q157=\"0\",'Blank - Request Form'!Q157=\"00000\",'Blank - Request Form'!Q157=0),\"\",'Blank - Request Form'!Q157),\"\"))","v":""},{"$f":"IF('Blank - Request Form'!$F$6=\"CICSA\",IF(OR('Blank - Request Form'!I157=\"0\",'Blank - Request Form'!I157=\"00000\",'Blank - Request Form'!I157=0),\"\",'Blank - Request Form'!I157),IF('Blank - Request Form'!$F$7=\"CICSA\",IF(OR('Blank - Request Form'!R157=\"0\",'Blank - Request Form'!R157=\"00000\",'Blank - Request Form'!R157=0),\"\",'Blank - Request Form'!R157),\"\"))","v":""},null,{"$f":"IF('Blank - Request Form'!$F$6=\"CICSA\",IF('Blank - Request Form'!K157=0,\"\",'Blank - Request Form'!K157),IF('Blank - Request Form'!$F$7=\"CICSA\",IF('Blank - Request Form'!T157=0,\"\",'Blank - Request Form'!T157),\"\"))","v":""},null,null,null,{"$f":"IF(M123<>\"\",'Blank - Request Form'!$M$2,\"\")","v":""},{"$f":"IF('Blank - Request Form'!$F$6=\"CICSA\",IF('Blank - Request Form'!J157=0,\"\",'Blank - Request Form'!J157),IF('Blank - Request Form'!$F$7=\"CICSA\",IF('Blank - Request Form'!S157=0,\"\",'Blank - Request Form'!S157),\"\"))","v":""},"",123]
[{"$f":"IF('Blank - Request Form'!$F$6=\"CICSA\",IF('Blank - Request Form'!D158=0,\"\",'Blank - Request Form'!D158),IF('Blank - Request Form'!$F$7=\"CICSA\",IF('Blank - Request Form'!M158=0,\"\",'Blank - Request Form'!M158),\"\"))","v":""},{"$f":"IF('Blank - Request Form'!$F$6=\"CICSA\",IF('Blank - Request Form'!E158=0,\"\",'Blank - Request Form'!E158),IF('Blank - Request Form'!$F$7=\"CICSA\",IF('Blank - Request Form'!N158=0,\"\",'Blank - Request Form'!N158),\"\"))","v":""},{"$f":"IF('Blank - Request Form'!$F$6=\"CICSA\",IF(OR('Blank - Request Form'!F158=\"000\",'Blank - Request Form'!F158=0),\"\",'Blank - Request Form'!F158),IF('Blank - Request Form'!$F$7=\"CICSA\",IF(OR('Blank - Request Form'!O158=\"000\",'Blank - Request Form'!O158=0),\"\",'Blank - Request Form'!O158),\"\"))","v":""},{"$f":"IF('Blank - Request Form'!$F$6=\"CICSA\",IF(OR('Blank - Request Form'!G158=\"0\",'Blank - Request Form'!G158=\"00000\",'Blank - Request Form'!G158=0),\"\",'Blank - Request Form'!G158),IF('Blank - Request Form'!$F$7=\"CICSA\",IF(OR('Blank - Request Form'!P158=\"0\",'Blank - Request Form'!P158=\"00000\",'Blank - Request Form'!P158=0),\"\",'Blank - Request Form'!P158),\"\"))","v":""},{"$f":"IF('Blank - Request Form'!$F$6=\"CICSA\",IF(OR('Blank - Request Form'!H158=\"0\",'Blank - Request Form'!H158=\"00000\",'Blank - Request Form'!H158=0),\"\",'Blank - Request Form'!H158),IF('Blank - Request Form'!$F$7=\"CICSA\",IF(OR('Blank - Request Form'!Q158=\"0\",'Blank - Request Form'!Q158=\"00000\",'Blank - Request Form'!Q158=0),\"\",'Blank - Request Form'!Q158),\"\"))","v":""},{"$f":"IF('Blank - Request Form'!$F$6=\"CICSA\",IF(OR('Blank - Request Form'!I158=\"0\",'Blank - Request Form'!I158=\"00000\",'Blank - Request Form'!I158=0),\"\",'Blank - Request Form'!I158),IF('Blank - Request Form'!$F$7=\"CICSA\",IF(OR('Blank - Request Form'!R158=\"0\",'Blank - Request Form'!R158=\"00000\",'Blank - Request Form'!R158=0),\"\",'Blank - Request Form'!R158),\"\"))","v":""},null,{"$f":"IF('Blank - Request Form'!$F$6=\"CICSA\",IF('Blank - Request Form'!K158=0,\"\",'Blank - Request Form'!K158),IF('Blank - Request Form'!$F$7=\"CICSA\",IF('Blank - Request Form'!T158=0,\"\",'Blank - Request Form'!T158),\"\"))","v":""},null,null,null,{"$f":"IF(M124<>\"\",'Blank - Request Form'!$M$2,\"\")","v":""},{"$f":"IF('Blank - Request Form'!$F$6=\"CICSA\",IF('Blank - Request Form'!J158=0,\"\",'Blank - Request Form'!J158),IF('Blank - Request Form'!$F$7=\"CICSA\",IF('Blank - Request Form'!S158=0,\"\",'Blank - Request Form'!S158),\"\"))","v":""},"",124]
[{"$f":"IF('Blank - Request Form'!$F$6=\"CICSA\",IF('Blank - Request Form'!D159=0,\"\",'Blank - Request Form'!D159),IF('Blank - Request Form'!$F$7=\"CICSA\",IF('Blank - Request Form'!M159=0,\"\",'Blank - Request Form'!M159),\"\"))","v":""},{"$f":"IF('Blank - Request Form'!$F$6=\"CICSA\",IF('Blank - Request Form'!E159=0,\"\",'Blank - Request Form'!E159),IF('Blank - Request Form'!$F$7=\"CICSA\",IF('Blank - Request Form'!N159=0,\"\",'Blank - Request Form'!N159),\"\"))","v":""},{"$f":"IF('Blank - Request Form'!$F$6=\"CICSA\",IF(OR('Blank - Request Form'!F159=\"000\",'Blank - Request Form'!F159=0),\"\",'Blank - Request Form'!F159),IF('Blank - Request Form'!$F$7=\"CICSA\",IF(OR('Blank - Request Form'!O159=\"000\",'Blank - Request Form'!O159=0),\"\",'Blank - Request Form'!O159),\"\"))","v":""},{"$f":"IF('Blank - Request Form'!$F$6=\"CICSA\",IF(OR('Blank - Request Form'!G159=\"0\",'Blank - Request Form'!G159=\"00000\",'Blank - Request Form'!G159=0),\"\",'Blank - Request Form'!G159),IF('Blank - Request Form'!$F$7=\"CICSA\",IF(OR('Blank - Request Form'!P159=\"0\",'Blank - Request Form'!P159=\"00000\",'Blank - Request Form'!P159=0),\"\",'Blank - Request Form'!P159),\"\"))","v":""},{"$f":"IF('Blank - Request Form'!$F$6=\"CICSA\",IF(OR('Blank - Request Form'!H159=\"0\",'Blank - Request Form'!H159=\"00000\",'Blank - Request Form'!H159=0),\"\",'Blank - Request Form'!H159),IF('Blank - Request Form'!$F$7=\"CICSA\",IF(OR('Blank - Request Form'!Q159=\"0\",'Blank - Request Form'!Q159=\"00000\",'Blank - Request Form'!Q159=0),\"\",'Blank - Request Form'!Q159),\"\"))","v":""},{"$f":"IF('Blank - Request Form'!$F$6=\"CICSA\",IF(OR('Blank - Request Form'!I159=\"0\",'Blank - Request Form'!I159=\"00000\",'Blank - Request Form'!I159=0),\"\",'Blank - Request Form'!I159),IF('Blank - Request Form'!$F$7=\"CICSA\",IF(OR('Blank - Request Form'!R159=\"0\",'Blank - Request Form'!R159=\"00000\",'Blank - Request Form'!R159=0),\"\",'Blank - Request Form'!R159),\"\"))","v":""},null,{"$f":"IF('Blank - Request Form'!$F$6=\"CICSA\",IF('Blank - Request Form'!K159=0,\"\",'Blank - Request Form'!K159),IF('Blank - Request Form'!$F$7=\"CICSA\",IF('Blank - Request Form'!T159=0,\"\",'Blank - Request Form'!T159),\"\"))","v":""},null,null,null,{"$f":"IF(M125<>\"\",'Blank - Request Form'!$M$2,\"\")","v":""},{"$f":"IF('Blank - Request Form'!$F$6=\"CICSA\",IF('Blank - Request Form'!J159=0,\"\",'Blank - Request Form'!J159),IF('Blank - Request Form'!$F$7=\"CICSA\",IF('Blank - Request Form'!S159=0,\"\",'Blank - Request Form'!S159),\"\"))","v":""},"",125]
[{"$f":"IF('Blank - Request Form'!$F$6=\"CICSA\",IF('Blank - Request Form'!D160=0,\"\",'Blank - Request Form'!D160),IF('Blank - Request Form'!$F$7=\"CICSA\",IF('Blank - Request Form'!M160=0,\"\",'Blank - Request Form'!M160),\"\"))","v":""},{"$f":"IF('Blank - Request Form'!$F$6=\"CICSA\",IF('Blank - Request Form'!E160=0,\"\",'Blank - Request Form'!E160),IF('Blank - Request Form'!$F$7=\"CICSA\",IF('Blank - Request Form'!N160=0,\"\",'Blank - Request Form'!N160),\"\"))","v":""},{"$f":"IF('Blank - Request Form'!$F$6=\"CICSA\",IF(OR('Blank - Request Form'!F160=\"000\",'Blank - Request Form'!F160=0),\"\",'Blank - Request Form'!F160),IF('Blank - Request Form'!$F$7=\"CICSA\",IF(OR('Blank - Request Form'!O160=\"000\",'Blank - Request Form'!O160=0),\"\",'Blank - Request Form'!O160),\"\"))","v":""},{"$f":"IF('Blank - Request Form'!$F$6=\"CICSA\",IF(OR('Blank - Request Form'!G160=\"0\",'Blank - Request Form'!G160=\"00000\",'Blank - Request Form'!G160=0),\"\",'Blank - Request Form'!G160),IF('Blank - Request Form'!$F$7=\"CICSA\",IF(OR('Blank - Request Form'!P160=\"0\",'Blank - Request Form'!P160=\"00000\",'Blank - Request Form'!P160=0),\"\",'Blank - Request Form'!P160),\"\"))","v":""},{"$f":"IF('Blank - Request Form'!$F$6=\"CICSA\",IF(OR('Blank - Request Form'!H160=\"0\",'Blank - Request Form'!H160=\"00000\",'Blank - Request Form'!H160=0),\"\",'Blank - Request Form'!H160),IF('Blank - Request Form'!$F$7=\"CICSA\",IF(OR('Blank - Request Form'!Q160=\"0\",'Blank - Request Form'!Q160=\"00000\",'Blank - Request Form'!Q160=0),\"\",'Blank - Request Form'!Q160),\"\"))","v":""},{"$f":"IF('Blank - Request Form'!$F$6=\"CICSA\",IF(OR('Blank - Request Form'!I160=\"0\",'Blank - Request Form'!I160=\"00000\",'Blank - Request Form'!I160=0),\"\",'Blank - Request Form'!I160),IF('Blank - Request Form'!$F$7=\"CICSA\",IF(OR('Blank - Request Form'!R160=\"0\",'Blank - Request Form'!R160=\"00000\",'Blank - Request Form'!R160=0),\"\",'Blank - Request Form'!R160),\"\"))","v":""},null,{"$f":"IF('Blank - Request Form'!$F$6=\"CICSA\",IF('Blank - Request Form'!K160=0,\"\",'Blank - Request Form'!K160),IF('Blank - Request Form'!$F$7=\"CICSA\",IF('Blank - Request Form'!T160=0,\"\",'Blank - Request Form'!T160),\"\"))","v":""},null,null,null,{"$f":"IF(M126<>\"\",'Blank - Request Form'!$M$2,\"\")","v":""},{"$f":"IF('Blank - Request Form'!$F$6=\"CICSA\",IF('Blank - Request Form'!J160=0,\"\",'Blank - Request Form'!J160),IF('Blank - Request Form'!$F$7=\"CICSA\",IF('Blank - Request Form'!S160=0,\"\",'Blank - Request Form'!S160),\"\"))","v":""},"",126]
[{"$f":"IF('Blank - Request Form'!$F$6=\"CICSA\",IF('Blank - Request Form'!D161=0,\"\",'Blank - Request Form'!D161),IF('Blank - Request Form'!$F$7=\"CICSA\",IF('Blank - Request Form'!M161=0,\"\",'Blank - Request Form'!M161),\"\"))","v":""},{"$f":"IF('Blank - Request Form'!$F$6=\"CICSA\",IF('Blank - Request Form'!E161=0,\"\",'Blank - Request Form'!E161),IF('Blank - Request Form'!$F$7=\"CICSA\",IF('Blank - Request Form'!N161=0,\"\",'Blank - Request Form'!N161),\"\"))","v":""},{"$f":"IF('Blank - Request Form'!$F$6=\"CICSA\",IF(OR('Blank - Request Form'!F161=\"000\",'Blank - Request Form'!F161=0),\"\",'Blank - Request Form'!F161),IF('Blank - Request Form'!$F$7=\"CICSA\",IF(OR('Blank - Request Form'!O161=\"000\",'Blank - Request Form'!O161=0),\"\",'Blank - Request Form'!O161),\"\"))","v":""},{"$f":"IF('Blank - Request Form'!$F$6=\"CICSA\",IF(OR('Blank - Request Form'!G161=\"0\",'Blank - Request Form'!G161=\"00000\",'Blank - Request Form'!G161=0),\"\",'Blank - Request Form'!G161),IF('Blank - Request Form'!$F$7=\"CICSA\",IF(OR('Blank - Request Form'!P161=\"0\",'Blank - Request Form'!P161=\"00000\",'Blank - Request Form'!P161=0),\"\",'Blank - Request Form'!P161),\"\"))","v":""},{"$f":"IF('Blank - Request Form'!$F$6=\"CICSA\",IF(OR('Blank - Request Form'!H161=\"0\",'Blank - Request Form'!H161=\"00000\",'Blank - Request Form'!H161=0),\"\",'Blank - Request Form'!H161),IF('Blank - Request Form'!$F$7=\"CICSA\",IF(OR('Blank - Request Form'!Q161=\"0\",'Blank - Request Form'!Q161=\"00000\",'Blank - Request Form'!Q161=0),\"\",'Blank - Request Form'!Q161),\"\"))","v":""},{"$f":"IF('Blank - Request Form'!$F$6=\"CICSA\",IF(OR('Blank - Request Form'!I161=\"0\",'Blank - Request Form'!I161=\"00000\",'Blank - Request Form'!I161=0),\"\",'Blank - Request Form'!I161),IF('Blank - Request Form'!$F$7=\"CICSA\",IF(OR('Blank - Request Form'!R161=\"0\",'Blank - Request Form'!R161=\"00000\",'Blank - Request Form'!R161=0),\"\",'Blank - Request Form'!R161),\"\"))","v":""},null,{"$f":"IF('Blank - Request Form'!$F$6=\"CICSA\",IF('Blank - Request Form'!K161=0,\"\",'Blank - Request Form'!K161),IF('Blank - Request Form'!$F$7=\"CICSA\",IF('Blank - Request Form'!T161=0,\"\",'Blank - Request Form'!T161),\"\"))","v":""},null,null,null,{"$f":"IF(M127<>\"\",'Blank - Request Form'!$M$2,\"\")","v":""},{"$f":"IF('Blank - Request Form'!$F$6=\"CICSA\",IF('Blank - Request Form'!J161=0,\"\",'Blank - Request Form'!J161),IF('Blank - Request Form'!$F$7=\"CICSA\",IF('Blank - Request Form'!S161=0,\"\",'Blank - Request Form'!S161),\"\"))","v":""},"",127]
[{"$f":"IF('Blank - Request Form'!$F$6=\"CICSA\",IF('Blank - Request Form'!D162=0,\"\",'Blank - Request Form'!D162),IF('Blank - Request Form'!$F$7=\"CICSA\",IF('Blank - Request Form'!M162=0,\"\",'Blank - Request Form'!M162),\"\"))","v":""},{"$f":"IF('Blank - Request Form'!$F$6=\"CICSA\",IF('Blank - Request Form'!E162=0,\"\",'Blank - Request Form'!E162),IF('Blank - Request Form'!$F$7=\"CICSA\",IF('Blank - Request Form'!N162=0,\"\",'Blank - Request Form'!N162),\"\"))","v":""},{"$f":"IF('Blank - Request Form'!$F$6=\"CICSA\",IF(OR('Blank - Request Form'!F162=\"000\",'Blank - Request Form'!F162=0),\"\",'Blank - Request Form'!F162),IF('Blank - Request Form'!$F$7=\"CICSA\",IF(OR('Blank - Request Form'!O162=\"000\",'Blank - Request Form'!O162=0),\"\",'Blank - Request Form'!O162),\"\"))","v":""},{"$f":"IF('Blank - Request Form'!$F$6=\"CICSA\",IF(OR('Blank - Request Form'!G162=\"0\",'Blank - Request Form'!G162=\"00000\",'Blank - Request Form'!G162=0),\"\",'Blank - Request Form'!G162),IF('Blank - Request Form'!$F$7=\"CICSA\",IF(OR('Blank - Request Form'!P162=\"0\",'Blank - Request Form'!P162=\"00000\",'Blank - Request Form'!P162=0),\"\",'Blank - Request Form'!P162),\"\"))","v":""},{"$f":"IF('Blank - Request Form'!$F$6=\"CICSA\",IF(OR('Blank - Request Form'!H162=\"0\",'Blank - Request Form'!H162=\"00000\",'Blank - Request Form'!H162=0),\"\",'Blank - Request Form'!H162),IF('Blank - Request Form'!$F$7=\"CICSA\",IF(OR('Blank - Request Form'!Q162=\"0\",'Blank - Request Form'!Q162=\"00000\",'Blank - Request Form'!Q162=0),\"\",'Blank - Request Form'!Q162),\"\"))","v":""},{"$f":"IF('Blank - Request Form'!$F$6=\"CICSA\",IF(OR('Blank - Request Form'!I162=\"0\",'Blank - Request Form'!I162=\"00000\",'Blank - Request Form'!I162=0),\"\",'Blank - Request Form'!I162),IF('Blank - Request Form'!$F$7=\"CICSA\",IF(OR('Blank - Request Form'!R162=\"0\",'Blank - Request Form'!R162=\"00000\",'Blank - Request Form'!R162=0),\"\",'Blank - Request Form'!R162),\"\"))","v":""},null,{"$f":"IF('Blank - Request Form'!$F$6=\"CICSA\",IF('Blank - Request Form'!K162=0,\"\",'Blank - Request Form'!K162),IF('Blank - Request Form'!$F$7=\"CICSA\",IF('Blank - Request Form'!T162=0,\"\",'Blank - Request Form'!T162),\"\"))","v":""},null,null,null,{"$f":"IF(M128<>\"\",'Blank - Request Form'!$M$2,\"\")","v":""},{"$f":"IF('Blank - Request Form'!$F$6=\"CICSA\",IF('Blank - Request Form'!J162=0,\"\",'Blank - Request Form'!J162),IF('Blank - Request Form'!$F$7=\"CICSA\",IF('Blank - Request Form'!S162=0,\"\",'Blank - Request Form'!S162),\"\"))","v":""},"",128]
[{"$f":"IF('Blank - Request Form'!$F$6=\"CICSA\",IF('Blank - Request Form'!D163=0,\"\",'Blank - Request Form'!D163),IF('Blank - Request Form'!$F$7=\"CICSA\",IF('Blank - Request Form'!M163=0,\"\",'Blank - Request Form'!M163),\"\"))","v":""},{"$f":"IF('Blank - Request Form'!$F$6=\"CICSA\",IF('Blank - Request Form'!E163=0,\"\",'Blank - Request Form'!E163),IF('Blank - Request Form'!$F$7=\"CICSA\",IF('Blank - Request Form'!N163=0,\"\",'Blank - Request Form'!N163),\"\"))","v":""},{"$f":"IF('Blank - Request Form'!$F$6=\"CICSA\",IF(OR('Blank - Request Form'!F163=\"000\",'Blank - Request Form'!F163=0),\"\",'Blank - Request Form'!F163),IF('Blank - Request Form'!$F$7=\"CICSA\",IF(OR('Blank - Request Form'!O163=\"000\",'Blank - Request Form'!O163=0),\"\",'Blank - Request Form'!O163),\"\"))","v":""},{"$f":"IF('Blank - Request Form'!$F$6=\"CICSA\",IF(OR('Blank - Request Form'!G163=\"0\",'Blank - Request Form'!G163=\"00000\",'Blank - Request Form'!G163=0),\"\",'Blank - Request Form'!G163),IF('Blank - Request Form'!$F$7=\"CICSA\",IF(OR('Blank - Request Form'!P163=\"0\",'Blank - Request Form'!P163=\"00000\",'Blank - Request Form'!P163=0),\"\",'Blank - Request Form'!P163),\"\"))","v":""},{"$f":"IF('Blank - Request Form'!$F$6=\"CICSA\",IF(OR('Blank - Request Form'!H163=\"0\",'Blank - Request Form'!H163=\"00000\",'Blank - Request Form'!H163=0),\"\",'Blank - Request Form'!H163),IF('Blank - Request Form'!$F$7=\"CICSA\",IF(OR('Blank - Request Form'!Q163=\"0\",'Blank - Request Form'!Q163=\"00000\",'Blank - Request Form'!Q163=0),\"\",'Blank - Request Form'!Q163),\"\"))","v":""},{"$f":"IF('Blank - Request Form'!$F$6=\"CICSA\",IF(OR('Blank - Request Form'!I163=\"0\",'Blank - Request Form'!I163=\"00000\",'Blank - Request Form'!I163=0),\"\",'Blank - Request Form'!I163),IF('Blank - Request Form'!$F$7=\"CICSA\",IF(OR('Blank - Request Form'!R163=\"0\",'Blank - Request Form'!R163=\"00000\",'Blank - Request Form'!R163=0),\"\",'Blank - Request Form'!R163),\"\"))","v":""},null,{"$f":"IF('Blank - Request Form'!$F$6=\"CICSA\",IF('Blank - Request Form'!K163=0,\"\",'Blank - Request Form'!K163),IF('Blank - Request Form'!$F$7=\"CICSA\",IF('Blank - Request Form'!T163=0,\"\",'Blank - Request Form'!T163),\"\"))","v":""},null,null,null,{"$f":"IF(M129<>\"\",'Blank - Request Form'!$M$2,\"\")","v":""},{"$f":"IF('Blank - Request Form'!$F$6=\"CICSA\",IF('Blank - Request Form'!J163=0,\"\",'Blank - Request Form'!J163),IF('Blank - Request Form'!$F$7=\"CICSA\",IF('Blank - Request Form'!S163=0,\"\",'Blank - Request Form'!S163),\"\"))","v":""},"",129]
[{"$f":"IF('Blank - Request Form'!$F$6=\"CICSA\",IF('Blank - Request Form'!D164=0,\"\",'Blank - Request Form'!D164),IF('Blank - Request Form'!$F$7=\"CICSA\",IF('Blank - Request Form'!M164=0,\"\",'Blank - Request Form'!M164),\"\"))","v":""},{"$f":"IF('Blank - Request Form'!$F$6=\"CICSA\",IF('Blank - Request Form'!E164=0,\"\",'Blank - Request Form'!E164),IF('Blank - Request Form'!$F$7=\"CICSA\",IF('Blank - Request Form'!N164=0,\"\",'Blank - Request Form'!N164),\"\"))","v":""},{"$f":"IF('Blank - Request Form'!$F$6=\"CICSA\",IF(OR('Blank - Request Form'!F164=\"000\",'Blank - Request Form'!F164=0),\"\",'Blank - Request Form'!F164),IF('Blank - Request Form'!$F$7=\"CICSA\",IF(OR('Blank - Request Form'!O164=\"000\",'Blank - Request Form'!O164=0),\"\",'Blank - Request Form'!O164),\"\"))","v":""},{"$f":"IF('Blank - Request Form'!$F$6=\"CICSA\",IF(OR('Blank - Request Form'!G164=\"0\",'Blank - Request Form'!G164=\"00000\",'Blank - Request Form'!G164=0),\"\",'Blank - Request Form'!G164),IF('Blank - Request Form'!$F$7=\"CICSA\",IF(OR('Blank - Request Form'!P164=\"0\",'Blank - Request Form'!P164=\"00000\",'Blank - Request Form'!P164=0),\"\",'Blank - Request Form'!P164),\"\"))","v":""},{"$f":"IF('Blank - Request Form'!$F$6=\"CICSA\",IF(OR('Blank - Request Form'!H164=\"0\",'Blank - Request Form'!H164=\"00000\",'Blank - Request Form'!H164=0),\"\",'Blank - Request Form'!H164),IF('Blank - Request Form'!$F$7=\"CICSA\",IF(OR('Blank - Request Form'!Q164=\"0\",'Blank - Request Form'!Q164=\"00000\",'Blank - Request Form'!Q164=0),\"\",'Blank - Request Form'!Q164),\"\"))","v":""},{"$f":"IF('Blank - Request Form'!$F$6=\"CICSA\",IF(OR('Blank - Request Form'!I164=\"0\",'Blank - Request Form'!I164=\"00000\",'Blank - Request Form'!I164=0),\"\",'Blank - Request Form'!I164),IF('Blank - Request Form'!$F$7=\"CICSA\",IF(OR('Blank - Request Form'!R164=\"0\",'Blank - Request Form'!R164=\"00000\",'Blank - Request Form'!R164=0),\"\",'Blank - Request Form'!R164),\"\"))","v":""},null,{"$f":"IF('Blank - Request Form'!$F$6=\"CICSA\",IF('Blank - Request Form'!K164=0,\"\",'Blank - Request Form'!K164),IF('Blank - Request Form'!$F$7=\"CICSA\",IF('Blank - Request Form'!T164=0,\"\",'Blank - Request Form'!T164),\"\"))","v":""},null,null,null,{"$f":"IF(M130<>\"\",'Blank - Request Form'!$M$2,\"\")","v":""},{"$f":"IF('Blank - Request Form'!$F$6=\"CICSA\",IF('Blank - Request Form'!J164=0,\"\",'Blank - Request Form'!J164),IF('Blank - Request Form'!$F$7=\"CICSA\",IF('Blank - Request Form'!S164=0,\"\",'Blank - Request Form'!S164),\"\"))","v":""},"",130]
[{"$f":"IF('Blank - Request Form'!$F$6=\"CICSA\",IF('Blank - Request Form'!D165=0,\"\",'Blank - Request Form'!D165),IF('Blank - Request Form'!$F$7=\"CICSA\",IF('Blank - Request Form'!M165=0,\"\",'Blank - Request Form'!M165),\"\"))","v":""},{"$f":"IF('Blank - Request Form'!$F$6=\"CICSA\",IF('Blank - Request Form'!E165=0,\"\",'Blank - Request Form'!E165),IF('Blank - Request Form'!$F$7=\"CICSA\",IF('Blank - Request Form'!N165=0,\"\",'Blank - Request Form'!N165),\"\"))","v":""},{"$f":"IF('Blank - Request Form'!$F$6=\"CICSA\",IF(OR('Blank - Request Form'!F165=\"000\",'Blank - Request Form'!F165=0),\"\",'Blank - Request Form'!F165),IF('Blank - Request Form'!$F$7=\"CICSA\",IF(OR('Blank - Request Form'!O165=\"000\",'Blank - Request Form'!O165=0),\"\",'Blank - Request Form'!O165),\"\"))","v":""},{"$f":"IF('Blank - Request Form'!$F$6=\"CICSA\",IF(OR('Blank - Request Form'!G165=\"0\",'Blank - Request Form'!G165=\"00000\",'Blank - Request Form'!G165=0),\"\",'Blank - Request Form'!G165),IF('Blank - Request Form'!$F$7=\"CICSA\",IF(OR('Blank - Request Form'!P165=\"0\",'Blank - Request Form'!P165=\"00000\",'Blank - Request Form'!P165=0),\"\",'Blank - Request Form'!P165),\"\"))","v":""},{"$f":"IF('Blank - Request Form'!$F$6=\"CICSA\",IF(OR('Blank - Request Form'!H165=\"0\",'Blank - Request Form'!H165=\"00000\",'Blank - Request Form'!H165=0),\"\",'Blank - Request Form'!H165),IF('Blank - Request Form'!$F$7=\"CICSA\",IF(OR('Blank - Request Form'!Q165=\"0\",'Blank - Request Form'!Q165=\"00000\",'Blank - Request Form'!Q165=0),\"\",'Blank - Request Form'!Q165),\"\"))","v":""},{"$f":"IF('Blank - Request Form'!$F$6=\"CICSA\",IF(OR('Blank - Request Form'!I165=\"0\",'Blank - Request Form'!I165=\"00000\",'Blank - Request Form'!I165=0),\"\",'Blank - Request Form'!I165),IF('Blank - Request Form'!$F$7=\"CICSA\",IF(OR('Blank - Request Form'!R165=\"0\",'Blank - Request Form'!R165=\"00000\",'Blank - Request Form'!R165=0),\"\",'Blank - Request Form'!R165),\"\"))","v":""},null,{"$f":"IF('Blank - Request Form'!$F$6=\"CICSA\",IF('Blank - Request Form'!K165=0,\"\",'Blank - Request Form'!K165),IF('Blank - Request Form'!$F$7=\"CICSA\",IF('Blank - Request Form'!T165=0,\"\",'Blank - Request Form'!T165),\"\"))","v":""},null,null,null,{"$f":"IF(M131<>\"\",'Blank - Request Form'!$M$2,\"\")","v":""},{"$f":"IF('Blank - Request Form'!$F$6=\"CICSA\",IF('Blank - Request Form'!J165=0,\"\",'Blank - Request Form'!J165),IF('Blank - Request Form'!$F$7=\"CICSA\",IF('Blank - Request Form'!S165=0,\"\",'Blank - Request Form'!S165),\"\"))","v":""},"",131]
[{"$f":"IF('Blank - Request Form'!$F$6=\"CICSA\",IF('Blank - Request Form'!D166=0,\"\",'Blank - Request Form'!D166),IF('Blank - Request Form'!$F$7=\"CICSA\",IF('Blank - Request Form'!M166=0,\"\",'Blank - Request Form'!M166),\"\"))","v":""},{"$f":"IF('Blank - Request Form'!$F$6=\"CICSA\",IF('Blank - Request Form'!E166=0,\"\",'Blank - Request Form'!E166),IF('Blank - Request Form'!$F$7=\"CICSA\",IF('Blank - Request Form'!N166=0,\"\",'Blank - Request Form'!N166),\"\"))","v":""},{"$f":"IF('Blank - Request Form'!$F$6=\"CICSA\",IF(OR('Blank - Request Form'!F166=\"000\",'Blank - Request Form'!F166=0),\"\",'Blank - Request Form'!F166),IF('Blank - Request Form'!$F$7=\"CICSA\",IF(OR('Blank - Request Form'!O166=\"000\",'Blank - Request Form'!O166=0),\"\",'Blank - Request Form'!O166),\"\"))","v":""},{"$f":"IF('Blank - Request Form'!$F$6=\"CICSA\",IF(OR('Blank - Request Form'!G166=\"0\",'Blank - Request Form'!G166=\"00000\",'Blank - Request Form'!G166=0),\"\",'Blank - Request Form'!G166),IF('Blank - Request Form'!$F$7=\"CICSA\",IF(OR('Blank - Request Form'!P166=\"0\",'Blank - Request Form'!P166=\"00000\",'Blank - Request Form'!P166=0),\"\",'Blank - Request Form'!P166),\"\"))","v":""},{"$f":"IF('Blank - Request Form'!$F$6=\"CICSA\",IF(OR('Blank - Request Form'!H166=\"0\",'Blank - Request Form'!H166=\"00000\",'Blank - Request Form'!H166=0),\"\",'Blank - Request Form'!H166),IF('Blank - Request Form'!$F$7=\"CICSA\",IF(OR('Blank - Request Form'!Q166=\"0\",'Blank - Request Form'!Q166=\"00000\",'Blank - Request Form'!Q166=0),\"\",'Blank - Request Form'!Q166),\"\"))","v":""},{"$f":"IF('Blank - Request Form'!$F$6=\"CICSA\",IF(OR('Blank - Request Form'!I166=\"0\",'Blank - Request Form'!I166=\"00000\",'Blank - Request Form'!I166=0),\"\",'Blank - Request Form'!I166),IF('Blank - Request Form'!$F$7=\"CICSA\",IF(OR('Blank - Request Form'!R166=\"0\",'Blank - Request Form'!R166=\"00000\",'Blank - Request Form'!R166=0),\"\",'Blank - Request Form'!R166),\"\"))","v":""},null,{"$f":"IF('Blank - Request Form'!$F$6=\"CICSA\",IF('Blank - Request Form'!K166=0,\"\",'Blank - Request Form'!K166),IF('Blank - Request Form'!$F$7=\"CICSA\",IF('Blank - Request Form'!T166=0,\"\",'Blank - Request Form'!T166),\"\"))","v":""},null,null,null,{"$f":"IF(M132<>\"\",'Blank - Request Form'!$M$2,\"\")","v":""},{"$f":"IF('Blank - Request Form'!$F$6=\"CICSA\",IF('Blank - Request Form'!J166=0,\"\",'Blank - Request Form'!J166),IF('Blank - Request Form'!$F$7=\"CICSA\",IF('Blank - Request Form'!S166=0,\"\",'Blank - Request Form'!S166),\"\"))","v":""},"",132]
[{"$f":"IF('Blank - Request Form'!$F$6=\"CICSA\",IF('Blank - Request Form'!D167=0,\"\",'Blank - Request Form'!D167),IF('Blank - Request Form'!$F$7=\"CICSA\",IF('Blank - Request Form'!M167=0,\"\",'Blank - Request Form'!M167),\"\"))","v":""},{"$f":"IF('Blank - Request Form'!$F$6=\"CICSA\",IF('Blank - Request Form'!E167=0,\"\",'Blank - Request Form'!E167),IF('Blank - Request Form'!$F$7=\"CICSA\",IF('Blank - Request Form'!N167=0,\"\",'Blank - Request Form'!N167),\"\"))","v":""},{"$f":"IF('Blank - Request Form'!$F$6=\"CICSA\",IF(OR('Blank - Request Form'!F167=\"000\",'Blank - Request Form'!F167=0),\"\",'Blank - Request Form'!F167),IF('Blank - Request Form'!$F$7=\"CICSA\",IF(OR('Blank - Request Form'!O167=\"000\",'Blank - Request Form'!O167=0),\"\",'Blank - Request Form'!O167),\"\"))","v":""},{"$f":"IF('Blank - Request Form'!$F$6=\"CICSA\",IF(OR('Blank - Request Form'!G167=\"0\",'Blank - Request Form'!G167=\"00000\",'Blank - Request Form'!G167=0),\"\",'Blank - Request Form'!G167),IF('Blank - Request Form'!$F$7=\"CICSA\",IF(OR('Blank - Request Form'!P167=\"0\",'Blank - Request Form'!P167=\"00000\",'Blank - Request Form'!P167=0),\"\",'Blank - Request Form'!P167),\"\"))","v":""},{"$f":"IF('Blank - Request Form'!$F$6=\"CICSA\",IF(OR('Blank - Request Form'!H167=\"0\",'Blank - Request Form'!H167=\"00000\",'Blank - Request Form'!H167=0),\"\",'Blank - Request Form'!H167),IF('Blank - Request Form'!$F$7=\"CICSA\",IF(OR('Blank - Request Form'!Q167=\"0\",'Blank - Request Form'!Q167=\"00000\",'Blank - Request Form'!Q167=0),\"\",'Blank - Request Form'!Q167),\"\"))","v":""},{"$f":"IF('Blank - Request Form'!$F$6=\"CICSA\",IF(OR('Blank - Request Form'!I167=\"0\",'Blank - Request Form'!I167=\"00000\",'Blank - Request Form'!I167=0),\"\",'Blank - Request Form'!I167),IF('Blank - Request Form'!$F$7=\"CICSA\",IF(OR('Blank - Request Form'!R167=\"0\",'Blank - Request Form'!R167=\"00000\",'Blank - Request Form'!R167=0),\"\",'Blank - Request Form'!R167),\"\"))","v":""},null,{"$f":"IF('Blank - Request Form'!$F$6=\"CICSA\",IF('Blank - Request Form'!K167=0,\"\",'Blank - Request Form'!K167),IF('Blank - Request Form'!$F$7=\"CICSA\",IF('Blank - Request Form'!T167=0,\"\",'Blank - Request Form'!T167),\"\"))","v":""},null,null,null,{"$f":"IF(M133<>\"\",'Blank - Request Form'!$M$2,\"\")","v":""},{"$f":"IF('Blank - Request Form'!$F$6=\"CICSA\",IF('Blank - Request Form'!J167=0,\"\",'Blank - Request Form'!J167),IF('Blank - Request Form'!$F$7=\"CICSA\",IF('Blank - Request Form'!S167=0,\"\",'Blank - Request Form'!S167),\"\"))","v":""},"",133]
[{"$f":"IF('Blank - Request Form'!$F$6=\"CICSA\",IF('Blank - Request Form'!D168=0,\"\",'Blank - Request Form'!D168),IF('Blank - Request Form'!$F$7=\"CICSA\",IF('Blank - Request Form'!M168=0,\"\",'Blank - Request Form'!M168),\"\"))","v":""},{"$f":"IF('Blank - Request Form'!$F$6=\"CICSA\",IF('Blank - Request Form'!E168=0,\"\",'Blank - Request Form'!E168),IF('Blank - Request Form'!$F$7=\"CICSA\",IF('Blank - Request Form'!N168=0,\"\",'Blank - Request Form'!N168),\"\"))","v":""},{"$f":"IF('Blank - Request Form'!$F$6=\"CICSA\",IF(OR('Blank - Request Form'!F168=\"000\",'Blank - Request Form'!F168=0),\"\",'Blank - Request Form'!F168),IF('Blank - Request Form'!$F$7=\"CICSA\",IF(OR('Blank - Request Form'!O168=\"000\",'Blank - Request Form'!O168=0),\"\",'Blank - Request Form'!O168),\"\"))","v":""},{"$f":"IF('Blank - Request Form'!$F$6=\"CICSA\",IF(OR('Blank - Request Form'!G168=\"0\",'Blank - Request Form'!G168=\"00000\",'Blank - Request Form'!G168=0),\"\",'Blank - Request Form'!G168),IF('Blank - Request Form'!$F$7=\"CICSA\",IF(OR('Blank - Request Form'!P168=\"0\",'Blank - Request Form'!P168=\"00000\",'Blank - Request Form'!P168=0),\"\",'Blank - Request Form'!P168),\"\"))","v":""},{"$f":"IF('Blank - Request Form'!$F$6=\"CICSA\",IF(OR('Blank - Request Form'!H168=\"0\",'Blank - Request Form'!H168=\"00000\",'Blank - Request Form'!H168=0),\"\",'Blank - Request Form'!H168),IF('Blank - Request Form'!$F$7=\"CICSA\",IF(OR('Blank - Request Form'!Q168=\"0\",'Blank - Request Form'!Q168=\"00000\",'Blank - Request Form'!Q168=0),\"\",'Blank - Request Form'!Q168),\"\"))","v":""},{"$f":"IF('Blank - Request Form'!$F$6=\"CICSA\",IF(OR('Blank - Request Form'!I168=\"0\",'Blank - Request Form'!I168=\"00000\",'Blank - Request Form'!I168=0),\"\",'Blank - Request Form'!I168),IF('Blank - Request Form'!$F$7=\"CICSA\",IF(OR('Blank - Request Form'!R168=\"0\",'Blank - Request Form'!R168=\"00000\",'Blank - Request Form'!R168=0),\"\",'Blank - Request Form'!R168),\"\"))","v":""},null,{"$f":"IF('Blank - Request Form'!$F$6=\"CICSA\",IF('Blank - Request Form'!K168=0,\"\",'Blank - Request Form'!K168),IF('Blank - Request Form'!$F$7=\"CICSA\",IF('Blank - Request Form'!T168=0,\"\",'Blank - Request Form'!T168),\"\"))","v":""},null,null,null,{"$f":"IF(M134<>\"\",'Blank - Request Form'!$M$2,\"\")","v":""},{"$f":"IF('Blank - Request Form'!$F$6=\"CICSA\",IF('Blank - Request Form'!J168=0,\"\",'Blank - Request Form'!J168),IF('Blank - Request Form'!$F$7=\"CICSA\",IF('Blank - Request Form'!S168=0,\"\",'Blank - Request Form'!S168),\"\"))","v":""},"",134]
[{"$f":"IF('Blank - Request Form'!$F$6=\"CICSA\",IF('Blank - Request Form'!D169=0,\"\",'Blank - Request Form'!D169),IF('Blank - Request Form'!$F$7=\"CICSA\",IF('Blank - Request Form'!M169=0,\"\",'Blank - Request Form'!M169),\"\"))","v":""},{"$f":"IF('Blank - Request Form'!$F$6=\"CICSA\",IF('Blank - Request Form'!E169=0,\"\",'Blank - Request Form'!E169),IF('Blank - Request Form'!$F$7=\"CICSA\",IF('Blank - Request Form'!N169=0,\"\",'Blank - Request Form'!N169),\"\"))","v":""},{"$f":"IF('Blank - Request Form'!$F$6=\"CICSA\",IF(OR('Blank - Request Form'!F169=\"000\",'Blank - Request Form'!F169=0),\"\",'Blank - Request Form'!F169),IF('Blank - Request Form'!$F$7=\"CICSA\",IF(OR('Blank - Request Form'!O169=\"000\",'Blank - Request Form'!O169=0),\"\",'Blank - Request Form'!O169),\"\"))","v":""},{"$f":"IF('Blank - Request Form'!$F$6=\"CICSA\",IF(OR('Blank - Request Form'!G169=\"0\",'Blank - Request Form'!G169=\"00000\",'Blank - Request Form'!G169=0),\"\",'Blank - Request Form'!G169),IF('Blank - Request Form'!$F$7=\"CICSA\",IF(OR('Blank - Request Form'!P169=\"0\",'Blank - Request Form'!P169=\"00000\",'Blank - Request Form'!P169=0),\"\",'Blank - Request Form'!P169),\"\"))","v":""},{"$f":"IF('Blank - Request Form'!$F$6=\"CICSA\",IF(OR('Blank - Request Form'!H169=\"0\",'Blank - Request Form'!H169=\"00000\",'Blank - Request Form'!H169=0),\"\",'Blank - Request Form'!H169),IF('Blank - Request Form'!$F$7=\"CICSA\",IF(OR('Blank - Request Form'!Q169=\"0\",'Blank - Request Form'!Q169=\"00000\",'Blank - Request Form'!Q169=0),\"\",'Blank - Request Form'!Q169),\"\"))","v":""},{"$f":"IF('Blank - Request Form'!$F$6=\"CICSA\",IF(OR('Blank - Request Form'!I169=\"0\",'Blank - Request Form'!I169=\"00000\",'Blank - Request Form'!I169=0),\"\",'Blank - Request Form'!I169),IF('Blank - Request Form'!$F$7=\"CICSA\",IF(OR('Blank - Request Form'!R169=\"0\",'Blank - Request Form'!R169=\"00000\",'Blank - Request Form'!R169=0),\"\",'Blank - Request Form'!R169),\"\"))","v":""},null,{"$f":"IF('Blank - Request Form'!$F$6=\"CICSA\",IF('Blank - Request Form'!K169=0,\"\",'Blank - Request Form'!K169),IF('Blank - Request Form'!$F$7=\"CICSA\",IF('Blank - Request Form'!T169=0,\"\",'Blank - Request Form'!T169),\"\"))","v":""},null,null,null,{"$f":"IF(M135<>\"\",'Blank - Request Form'!$M$2,\"\")","v":""},{"$f":"IF('Blank - Request Form'!$F$6=\"CICSA\",IF('Blank - Request Form'!J169=0,\"\",'Blank - Request Form'!J169),IF('Blank - Request Form'!$F$7=\"CICSA\",IF('Blank - Request Form'!S169=0,\"\",'Blank - Request Form'!S169),\"\"))","v":""},"",135]
[{"$f":"IF('Blank - Request Form'!$F$6=\"CICSA\",IF('Blank - Request Form'!D170=0,\"\",'Blank - Request Form'!D170),IF('Blank - Request Form'!$F$7=\"CICSA\",IF('Blank - Request Form'!M170=0,\"\",'Blank - Request Form'!M170),\"\"))","v":""},{"$f":"IF('Blank - Request Form'!$F$6=\"CICSA\",IF('Blank - Request Form'!E170=0,\"\",'Blank - Request Form'!E170),IF('Blank - Request Form'!$F$7=\"CICSA\",IF('Blank - Request Form'!N170=0,\"\",'Blank - Request Form'!N170),\"\"))","v":""},{"$f":"IF('Blank - Request Form'!$F$6=\"CICSA\",IF(OR('Blank - Request Form'!F170=\"000\",'Blank - Request Form'!F170=0),\"\",'Blank - Request Form'!F170),IF('Blank - Request Form'!$F$7=\"CICSA\",IF(OR('Blank - Request Form'!O170=\"000\",'Blank - Request Form'!O170=0),\"\",'Blank - Request Form'!O170),\"\"))","v":""},{"$f":"IF('Blank - Request Form'!$F$6=\"CICSA\",IF(OR('Blank - Request Form'!G170=\"0\",'Blank - Request Form'!G170=\"00000\",'Blank - Request Form'!G170=0),\"\",'Blank - Request Form'!G170),IF('Blank - Request Form'!$F$7=\"CICSA\",IF(OR('Blank - Request Form'!P170=\"0\",'Blank - Request Form'!P170=\"00000\",'Blank - Request Form'!P170=0),\"\",'Blank - Request Form'!P170),\"\"))","v":""},{"$f":"IF('Blank - Request Form'!$F$6=\"CICSA\",IF(OR('Blank - Request Form'!H170=\"0\",'Blank - Request Form'!H170=\"00000\",'Blank - Request Form'!H170=0),\"\",'Blank - Request Form'!H170),IF('Blank - Request Form'!$F$7=\"CICSA\",IF(OR('Blank - Request Form'!Q170=\"0\",'Blank - Request Form'!Q170=\"00000\",'Blank - Request Form'!Q170=0),\"\",'Blank - Request Form'!Q170),\"\"))","v":""},{"$f":"IF('Blank - Request Form'!$F$6=\"CICSA\",IF(OR('Blank - Request Form'!I170=\"0\",'Blank - Request Form'!I170=\"00000\",'Blank - Request Form'!I170=0),\"\",'Blank - Request Form'!I170),IF('Blank - Request Form'!$F$7=\"CICSA\",IF(OR('Blank - Request Form'!R170=\"0\",'Blank - Request Form'!R170=\"00000\",'Blank - Request Form'!R170=0),\"\",'Blank - Request Form'!R170),\"\"))","v":""},null,{"$f":"IF('Blank - Request Form'!$F$6=\"CICSA\",IF('Blank - Request Form'!K170=0,\"\",'Blank - Request Form'!K170),IF('Blank - Request Form'!$F$7=\"CICSA\",IF('Blank - Request Form'!T170=0,\"\",'Blank - Request Form'!T170),\"\"))","v":""},null,null,null,{"$f":"IF(M136<>\"\",'Blank - Request Form'!$M$2,\"\")","v":""},{"$f":"IF('Blank - Request Form'!$F$6=\"CICSA\",IF('Blank - Request Form'!J170=0,\"\",'Blank - Request Form'!J170),IF('Blank - Request Form'!$F$7=\"CICSA\",IF('Blank - Request Form'!S170=0,\"\",'Blank - Request Form'!S170),\"\"))","v":""},"",136]
[{"$f":"IF('Blank - Request Form'!$F$6=\"CICSA\",IF('Blank - Request Form'!D171=0,\"\",'Blank - Request Form'!D171),IF('Blank - Request Form'!$F$7=\"CICSA\",IF('Blank - Request Form'!M171=0,\"\",'Blank - Request Form'!M171),\"\"))","v":""},{"$f":"IF('Blank - Request Form'!$F$6=\"CICSA\",IF('Blank - Request Form'!E171=0,\"\",'Blank - Request Form'!E171),IF('Blank - Request Form'!$F$7=\"CICSA\",IF('Blank - Request Form'!N171=0,\"\",'Blank - Request Form'!N171),\"\"))","v":""},{"$f":"IF('Blank - Request Form'!$F$6=\"CICSA\",IF(OR('Blank - Request Form'!F171=\"000\",'Blank - Request Form'!F171=0),\"\",'Blank - Request Form'!F171),IF('Blank - Request Form'!$F$7=\"CICSA\",IF(OR('Blank - Request Form'!O171=\"000\",'Blank - Request Form'!O171=0),\"\",'Blank - Request Form'!O171),\"\"))","v":""},{"$f":"IF('Blank - Request Form'!$F$6=\"CICSA\",IF(OR('Blank - Request Form'!G171=\"0\",'Blank - Request Form'!G171=\"00000\",'Blank - Request Form'!G171=0),\"\",'Blank - Request Form'!G171),IF('Blank - Request Form'!$F$7=\"CICSA\",IF(OR('Blank - Request Form'!P171=\"0\",'Blank - Request Form'!P171=\"00000\",'Blank - Request Form'!P171=0),\"\",'Blank - Request Form'!P171),\"\"))","v":""},{"$f":"IF('Blank - Request Form'!$F$6=\"CICSA\",IF(OR('Blank - Request Form'!H171=\"0\",'Blank - Request Form'!H171=\"00000\",'Blank - Request Form'!H171=0),\"\",'Blank - Request Form'!H171),IF('Blank - Request Form'!$F$7=\"CICSA\",IF(OR('Blank - Request Form'!Q171=\"0\",'Blank - Request Form'!Q171=\"00000\",'Blank - Request Form'!Q171=0),\"\",'Blank - Request Form'!Q171),\"\"))","v":""},{"$f":"IF('Blank - Request Form'!$F$6=\"CICSA\",IF(OR('Blank - Request Form'!I171=\"0\",'Blank - Request Form'!I171=\"00000\",'Blank - Request Form'!I171=0),\"\",'Blank - Request Form'!I171),IF('Blank - Request Form'!$F$7=\"CICSA\",IF(OR('Blank - Request Form'!R171=\"0\",'Blank - Request Form'!R171=\"00000\",'Blank - Request Form'!R171=0),\"\",'Blank - Request Form'!R171),\"\"))","v":""},null,{"$f":"IF('Blank - Request Form'!$F$6=\"CICSA\",IF('Blank - Request Form'!K171=0,\"\",'Blank - Request Form'!K171),IF('Blank - Request Form'!$F$7=\"CICSA\",IF('Blank - Request Form'!T171=0,\"\",'Blank - Request Form'!T171),\"\"))","v":""},null,null,null,{"$f":"IF(M137<>\"\",'Blank - Request Form'!$M$2,\"\")","v":""},{"$f":"IF('Blank - Request Form'!$F$6=\"CICSA\",IF('Blank - Request Form'!J171=0,\"\",'Blank - Request Form'!J171),IF('Blank - Request Form'!$F$7=\"CICSA\",IF('Blank - Request Form'!S171=0,\"\",'Blank - Request Form'!S171),\"\"))","v":""},"",137]
[{"$f":"IF('Blank - Request Form'!$F$6=\"CICSA\",IF('Blank - Request Form'!D172=0,\"\",'Blank - Request Form'!D172),IF('Blank - Request Form'!$F$7=\"CICSA\",IF('Blank - Request Form'!M172=0,\"\",'Blank - Request Form'!M172),\"\"))","v":""},{"$f":"IF('Blank - Request Form'!$F$6=\"CICSA\",IF('Blank - Request Form'!E172=0,\"\",'Blank - Request Form'!E172),IF('Blank - Request Form'!$F$7=\"CICSA\",IF('Blank - Request Form'!N172=0,\"\",'Blank - Request Form'!N172),\"\"))","v":""},{"$f":"IF('Blank - Request Form'!$F$6=\"CICSA\",IF(OR('Blank - Request Form'!F172=\"000\",'Blank - Request Form'!F172=0),\"\",'Blank - Request Form'!F172),IF('Blank - Request Form'!$F$7=\"CICSA\",IF(OR('Blank - Request Form'!O172=\"000\",'Blank - Request Form'!O172=0),\"\",'Blank - Request Form'!O172),\"\"))","v":""},{"$f":"IF('Blank - Request Form'!$F$6=\"CICSA\",IF(OR('Blank - Request Form'!G172=\"0\",'Blank - Request Form'!G172=\"00000\",'Blank - Request Form'!G172=0),\"\",'Blank - Request Form'!G172),IF('Blank - Request Form'!$F$7=\"CICSA\",IF(OR('Blank - Request Form'!P172=\"0\",'Blank - Request Form'!P172=\"00000\",'Blank - Request Form'!P172=0),\"\",'Blank - Request Form'!P172),\"\"))","v":""},{"$f":"IF('Blank - Request Form'!$F$6=\"CICSA\",IF(OR('Blank - Request Form'!H172=\"0\",'Blank - Request Form'!H172=\"00000\",'Blank - Request Form'!H172=0),\"\",'Blank - Request Form'!H172),IF('Blank - Request Form'!$F$7=\"CICSA\",IF(OR('Blank - Request Form'!Q172=\"0\",'Blank - Request Form'!Q172=\"00000\",'Blank - Request Form'!Q172=0),\"\",'Blank - Request Form'!Q172),\"\"))","v":""},{"$f":"IF('Blank - Request Form'!$F$6=\"CICSA\",IF(OR('Blank - Request Form'!I172=\"0\",'Blank - Request Form'!I172=\"00000\",'Blank - Request Form'!I172=0),\"\",'Blank - Request Form'!I172),IF('Blank - Request Form'!$F$7=\"CICSA\",IF(OR('Blank - Request Form'!R172=\"0\",'Blank - Request Form'!R172=\"00000\",'Blank - Request Form'!R172=0),\"\",'Blank - Request Form'!R172),\"\"))","v":""},null,{"$f":"IF('Blank - Request Form'!$F$6=\"CICSA\",IF('Blank - Request Form'!K172=0,\"\",'Blank - Request Form'!K172),IF('Blank - Request Form'!$F$7=\"CICSA\",IF('Blank - Request Form'!T172=0,\"\",'Blank - Request Form'!T172),\"\"))","v":""},null,null,null,{"$f":"IF(M138<>\"\",'Blank - Request Form'!$M$2,\"\")","v":""},{"$f":"IF('Blank - Request Form'!$F$6=\"CICSA\",IF('Blank - Request Form'!J172=0,\"\",'Blank - Request Form'!J172),IF('Blank - Request Form'!$F$7=\"CICSA\",IF('Blank - Request Form'!S172=0,\"\",'Blank - Request Form'!S172),\"\"))","v":""},"",138]
[{"$f":"IF('Blank - Request Form'!$F$6=\"CICSA\",IF('Blank - Request Form'!D173=0,\"\",'Blank - Request Form'!D173),IF('Blank - Request Form'!$F$7=\"CICSA\",IF('Blank - Request Form'!M173=0,\"\",'Blank - Request Form'!M173),\"\"))","v":""},{"$f":"IF('Blank - Request Form'!$F$6=\"CICSA\",IF('Blank - Request Form'!E173=0,\"\",'Blank - Request Form'!E173),IF('Blank - Request Form'!$F$7=\"CICSA\",IF('Blank - Request Form'!N173=0,\"\",'Blank - Request Form'!N173),\"\"))","v":""},{"$f":"IF('Blank - Request Form'!$F$6=\"CICSA\",IF(OR('Blank - Request Form'!F173=\"000\",'Blank - Request Form'!F173=0),\"\",'Blank - Request Form'!F173),IF('Blank - Request Form'!$F$7=\"CICSA\",IF(OR('Blank - Request Form'!O173=\"000\",'Blank - Request Form'!O173=0),\"\",'Blank - Request Form'!O173),\"\"))","v":""},{"$f":"IF('Blank - Request Form'!$F$6=\"CICSA\",IF(OR('Blank - Request Form'!G173=\"0\",'Blank - Request Form'!G173=\"00000\",'Blank - Request Form'!G173=0),\"\",'Blank - Request Form'!G173),IF('Blank - Request Form'!$F$7=\"CICSA\",IF(OR('Blank - Request Form'!P173=\"0\",'Blank - Request Form'!P173=\"00000\",'Blank - Request Form'!P173=0),\"\",'Blank - Request Form'!P173),\"\"))","v":""},{"$f":"IF('Blank - Request Form'!$F$6=\"CICSA\",IF(OR('Blank - Request Form'!H173=\"0\",'Blank - Request Form'!H173=\"00000\",'Blank - Request Form'!H173=0),\"\",'Blank - Request Form'!H173),IF('Blank - Request Form'!$F$7=\"CICSA\",IF(OR('Blank - Request Form'!Q173=\"0\",'Blank - Request Form'!Q173=\"00000\",'Blank - Request Form'!Q173=0),\"\",'Blank - Request Form'!Q173),\"\"))","v":""},{"$f":"IF('Blank - Request Form'!$F$6=\"CICSA\",IF(OR('Blank - Request Form'!I173=\"0\",'Blank - Request Form'!I173=\"00000\",'Blank - Request Form'!I173=0),\"\",'Blank - Request Form'!I173),IF('Blank - Request Form'!$F$7=\"CICSA\",IF(OR('Blank - Request Form'!R173=\"0\",'Blank - Request Form'!R173=\"00000\",'Blank - Request Form'!R173=0),\"\",'Blank - Request Form'!R173),\"\"))","v":""},null,{"$f":"IF('Blank - Request Form'!$F$6=\"CICSA\",IF('Blank - Request Form'!K173=0,\"\",'Blank - Request Form'!K173),IF('Blank - Request Form'!$F$7=\"CICSA\",IF('Blank - Request Form'!T173=0,\"\",'Blank - Request Form'!T173),\"\"))","v":""},null,null,null,{"$f":"IF(M139<>\"\",'Blank - Request Form'!$M$2,\"\")","v":""},{"$f":"IF('Blank - Request Form'!$F$6=\"CICSA\",IF('Blank - Request Form'!J173=0,\"\",'Blank - Request Form'!J173),IF('Blank - Request Form'!$F$7=\"CICSA\",IF('Blank - Request Form'!S173=0,\"\",'Blank - Request Form'!S173),\"\"))","v":""},"",139]
[{"$f":"IF('Blank - Request Form'!$F$6=\"CICSA\",IF('Blank - Request Form'!D174=0,\"\",'Blank - Request Form'!D174),IF('Blank - Request Form'!$F$7=\"CICSA\",IF('Blank - Request Form'!M174=0,\"\",'Blank - Request Form'!M174),\"\"))","v":""},{"$f":"IF('Blank - Request Form'!$F$6=\"CICSA\",IF('Blank - Request Form'!E174=0,\"\",'Blank - Request Form'!E174),IF('Blank - Request Form'!$F$7=\"CICSA\",IF('Blank - Request Form'!N174=0,\"\",'Blank - Request Form'!N174),\"\"))","v":""},{"$f":"IF('Blank - Request Form'!$F$6=\"CICSA\",IF(OR('Blank - Request Form'!F174=\"000\",'Blank - Request Form'!F174=0),\"\",'Blank - Request Form'!F174),IF('Blank - Request Form'!$F$7=\"CICSA\",IF(OR('Blank - Request Form'!O174=\"000\",'Blank - Request Form'!O174=0),\"\",'Blank - Request Form'!O174),\"\"))","v":""},{"$f":"IF('Blank - Request Form'!$F$6=\"CICSA\",IF(OR('Blank - Request Form'!G174=\"0\",'Blank - Request Form'!G174=\"00000\",'Blank - Request Form'!G174=0),\"\",'Blank - Request Form'!G174),IF('Blank - Request Form'!$F$7=\"CICSA\",IF(OR('Blank - Request Form'!P174=\"0\",'Blank - Request Form'!P174=\"00000\",'Blank - Request Form'!P174=0),\"\",'Blank - Request Form'!P174),\"\"))","v":""},{"$f":"IF('Blank - Request Form'!$F$6=\"CICSA\",IF(OR('Blank - Request Form'!H174=\"0\",'Blank - Request Form'!H174=\"00000\",'Blank - Request Form'!H174=0),\"\",'Blank - Request Form'!H174),IF('Blank - Request Form'!$F$7=\"CICSA\",IF(OR('Blank - Request Form'!Q174=\"0\",'Blank - Request Form'!Q174=\"00000\",'Blank - Request Form'!Q174=0),\"\",'Blank - Request Form'!Q174),\"\"))","v":""},{"$f":"IF('Blank - Request Form'!$F$6=\"CICSA\",IF(OR('Blank - Request Form'!I174=\"0\",'Blank - Request Form'!I174=\"00000\",'Blank - Request Form'!I174=0),\"\",'Blank - Request Form'!I174),IF('Blank - Request Form'!$F$7=\"CICSA\",IF(OR('Blank - Request Form'!R174=\"0\",'Blank - Request Form'!R174=\"00000\",'Blank - Request Form'!R174=0),\"\",'Blank - Request Form'!R174),\"\"))","v":""},null,{"$f":"IF('Blank - Request Form'!$F$6=\"CICSA\",IF('Blank - Request Form'!K174=0,\"\",'Blank - Request Form'!K174),IF('Blank - Request Form'!$F$7=\"CICSA\",IF('Blank - Request Form'!T174=0,\"\",'Blank - Request Form'!T174),\"\"))","v":""},null,null,null,{"$f":"IF(M140<>\"\",'Blank - Request Form'!$M$2,\"\")","v":""},{"$f":"IF('Blank - Request Form'!$F$6=\"CICSA\",IF('Blank - Request Form'!J174=0,\"\",'Blank - Request Form'!J174),IF('Blank - Request Form'!$F$7=\"CICSA\",IF('Blank - Request Form'!S174=0,\"\",'Blank - Request Form'!S174),\"\"))","v":""},"",140]
[{"$f":"IF('Blank - Request Form'!$F$6=\"CICSA\",IF('Blank - Request Form'!D175=0,\"\",'Blank - Request Form'!D175),IF('Blank - Request Form'!$F$7=\"CICSA\",IF('Blank - Request Form'!M175=0,\"\",'Blank - Request Form'!M175),\"\"))","v":""},{"$f":"IF('Blank - Request Form'!$F$6=\"CICSA\",IF('Blank - Request Form'!E175=0,\"\",'Blank - Request Form'!E175),IF('Blank - Request Form'!$F$7=\"CICSA\",IF('Blank - Request Form'!N175=0,\"\",'Blank - Request Form'!N175),\"\"))","v":""},{"$f":"IF('Blank - Request Form'!$F$6=\"CICSA\",IF(OR('Blank - Request Form'!F175=\"000\",'Blank - Request Form'!F175=0),\"\",'Blank - Request Form'!F175),IF('Blank - Request Form'!$F$7=\"CICSA\",IF(OR('Blank - Request Form'!O175=\"000\",'Blank - Request Form'!O175=0),\"\",'Blank - Request Form'!O175),\"\"))","v":""},{"$f":"IF('Blank - Request Form'!$F$6=\"CICSA\",IF(OR('Blank - Request Form'!G175=\"0\",'Blank - Request Form'!G175=\"00000\",'Blank - Request Form'!G175=0),\"\",'Blank - Request Form'!G175),IF('Blank - Request Form'!$F$7=\"CICSA\",IF(OR('Blank - Request Form'!P175=\"0\",'Blank - Request Form'!P175=\"00000\",'Blank - Request Form'!P175=0),\"\",'Blank - Request Form'!P175),\"\"))","v":""},{"$f":"IF('Blank - Request Form'!$F$6=\"CICSA\",IF(OR('Blank - Request Form'!H175=\"0\",'Blank - Request Form'!H175=\"00000\",'Blank - Request Form'!H175=0),\"\",'Blank - Request Form'!H175),IF('Blank - Request Form'!$F$7=\"CICSA\",IF(OR('Blank - Request Form'!Q175=\"0\",'Blank - Request Form'!Q175=\"00000\",'Blank - Request Form'!Q175=0),\"\",'Blank - Request Form'!Q175),\"\"))","v":""},{"$f":"IF('Blank - Request Form'!$F$6=\"CICSA\",IF(OR('Blank - Request Form'!I175=\"0\",'Blank - Request Form'!I175=\"00000\",'Blank - Request Form'!I175=0),\"\",'Blank - Request Form'!I175),IF('Blank - Request Form'!$F$7=\"CICSA\",IF(OR('Blank - Request Form'!R175=\"0\",'Blank - Request Form'!R175=\"00000\",'Blank - Request Form'!R175=0),\"\",'Blank - Request Form'!R175),\"\"))","v":""},null,{"$f":"IF('Blank - Request Form'!$F$6=\"CICSA\",IF('Blank - Request Form'!K175=0,\"\",'Blank - Request Form'!K175),IF('Blank - Request Form'!$F$7=\"CICSA\",IF('Blank - Request Form'!T175=0,\"\",'Blank - Request Form'!T175),\"\"))","v":""},null,null,null,{"$f":"IF(M141<>\"\",'Blank - Request Form'!$M$2,\"\")","v":""},{"$f":"IF('Blank - Request Form'!$F$6=\"CICSA\",IF('Blank - Request Form'!J175=0,\"\",'Blank - Request Form'!J175),IF('Blank - Request Form'!$F$7=\"CICSA\",IF('Blank - Request Form'!S175=0,\"\",'Blank - Request Form'!S175),\"\"))","v":""},"",141]
[{"$f":"IF('Blank - Request Form'!$F$6=\"CICSA\",IF('Blank - Request Form'!D176=0,\"\",'Blank - Request Form'!D176),IF('Blank - Request Form'!$F$7=\"CICSA\",IF('Blank - Request Form'!M176=0,\"\",'Blank - Request Form'!M176),\"\"))","v":""},{"$f":"IF('Blank - Request Form'!$F$6=\"CICSA\",IF('Blank - Request Form'!E176=0,\"\",'Blank - Request Form'!E176),IF('Blank - Request Form'!$F$7=\"CICSA\",IF('Blank - Request Form'!N176=0,\"\",'Blank - Request Form'!N176),\"\"))","v":""},{"$f":"IF('Blank - Request Form'!$F$6=\"CICSA\",IF(OR('Blank - Request Form'!F176=\"000\",'Blank - Request Form'!F176=0),\"\",'Blank - Request Form'!F176),IF('Blank - Request Form'!$F$7=\"CICSA\",IF(OR('Blank - Request Form'!O176=\"000\",'Blank - Request Form'!O176=0),\"\",'Blank - Request Form'!O176),\"\"))","v":""},{"$f":"IF('Blank - Request Form'!$F$6=\"CICSA\",IF(OR('Blank - Request Form'!G176=\"0\",'Blank - Request Form'!G176=\"00000\",'Blank - Request Form'!G176=0),\"\",'Blank - Request Form'!G176),IF('Blank - Request Form'!$F$7=\"CICSA\",IF(OR('Blank - Request Form'!P176=\"0\",'Blank - Request Form'!P176=\"00000\",'Blank - Request Form'!P176=0),\"\",'Blank - Request Form'!P176),\"\"))","v":""},{"$f":"IF('Blank - Request Form'!$F$6=\"CICSA\",IF(OR('Blank - Request Form'!H176=\"0\",'Blank - Request Form'!H176=\"00000\",'Blank - Request Form'!H176=0),\"\",'Blank - Request Form'!H176),IF('Blank - Request Form'!$F$7=\"CICSA\",IF(OR('Blank - Request Form'!Q176=\"0\",'Blank - Request Form'!Q176=\"00000\",'Blank - Request Form'!Q176=0),\"\",'Blank - Request Form'!Q176),\"\"))","v":""},{"$f":"IF('Blank - Request Form'!$F$6=\"CICSA\",IF(OR('Blank - Request Form'!I176=\"0\",'Blank - Request Form'!I176=\"00000\",'Blank - Request Form'!I176=0),\"\",'Blank - Request Form'!I176),IF('Blank - Request Form'!$F$7=\"CICSA\",IF(OR('Blank - Request Form'!R176=\"0\",'Blank - Request Form'!R176=\"00000\",'Blank - Request Form'!R176=0),\"\",'Blank - Request Form'!R176),\"\"))","v":""},null,{"$f":"IF('Blank - Request Form'!$F$6=\"CICSA\",IF('Blank - Request Form'!K176=0,\"\",'Blank - Request Form'!K176),IF('Blank - Request Form'!$F$7=\"CICSA\",IF('Blank - Request Form'!T176=0,\"\",'Blank - Request Form'!T176),\"\"))","v":""},null,null,null,{"$f":"IF(M142<>\"\",'Blank - Request Form'!$M$2,\"\")","v":""},{"$f":"IF('Blank - Request Form'!$F$6=\"CICSA\",IF('Blank - Request Form'!J176=0,\"\",'Blank - Request Form'!J176),IF('Blank - Request Form'!$F$7=\"CICSA\",IF('Blank - Request Form'!S176=0,\"\",'Blank - Request Form'!S176),\"\"))","v":""},"",142]
[{"$f":"IF('Blank - Request Form'!$F$6=\"CICSA\",IF('Blank - Request Form'!D177=0,\"\",'Blank - Request Form'!D177),IF('Blank - Request Form'!$F$7=\"CICSA\",IF('Blank - Request Form'!M177=0,\"\",'Blank - Request Form'!M177),\"\"))","v":""},{"$f":"IF('Blank - Request Form'!$F$6=\"CICSA\",IF('Blank - Request Form'!E177=0,\"\",'Blank - Request Form'!E177),IF('Blank - Request Form'!$F$7=\"CICSA\",IF('Blank - Request Form'!N177=0,\"\",'Blank - Request Form'!N177),\"\"))","v":""},{"$f":"IF('Blank - Request Form'!$F$6=\"CICSA\",IF(OR('Blank - Request Form'!F177=\"000\",'Blank - Request Form'!F177=0),\"\",'Blank - Request Form'!F177),IF('Blank - Request Form'!$F$7=\"CICSA\",IF(OR('Blank - Request Form'!O177=\"000\",'Blank - Request Form'!O177=0),\"\",'Blank - Request Form'!O177),\"\"))","v":""},{"$f":"IF('Blank - Request Form'!$F$6=\"CICSA\",IF(OR('Blank - Request Form'!G177=\"0\",'Blank - Request Form'!G177=\"00000\",'Blank - Request Form'!G177=0),\"\",'Blank - Request Form'!G177),IF('Blank - Request Form'!$F$7=\"CICSA\",IF(OR('Blank - Request Form'!P177=\"0\",'Blank - Request Form'!P177=\"00000\",'Blank - Request Form'!P177=0),\"\",'Blank - Request Form'!P177),\"\"))","v":""},{"$f":"IF('Blank - Request Form'!$F$6=\"CICSA\",IF(OR('Blank - Request Form'!H177=\"0\",'Blank - Request Form'!H177=\"00000\",'Blank - Request Form'!H177=0),\"\",'Blank - Request Form'!H177),IF('Blank - Request Form'!$F$7=\"CICSA\",IF(OR('Blank - Request Form'!Q177=\"0\",'Blank - Request Form'!Q177=\"00000\",'Blank - Request Form'!Q177=0),\"\",'Blank - Request Form'!Q177),\"\"))","v":""},{"$f":"IF('Blank - Request Form'!$F$6=\"CICSA\",IF(OR('Blank - Request Form'!I177=\"0\",'Blank - Request Form'!I177=\"00000\",'Blank - Request Form'!I177=0),\"\",'Blank - Request Form'!I177),IF('Blank - Request Form'!$F$7=\"CICSA\",IF(OR('Blank - Request Form'!R177=\"0\",'Blank - Request Form'!R177=\"00000\",'Blank - Request Form'!R177=0),\"\",'Blank - Request Form'!R177),\"\"))","v":""},null,{"$f":"IF('Blank - Request Form'!$F$6=\"CICSA\",IF('Blank - Request Form'!K177=0,\"\",'Blank - Request Form'!K177),IF('Blank - Request Form'!$F$7=\"CICSA\",IF('Blank - Request Form'!T177=0,\"\",'Blank - Request Form'!T177),\"\"))","v":""},null,null,null,{"$f":"IF(M143<>\"\",'Blank - Request Form'!$M$2,\"\")","v":""},{"$f":"IF('Blank - Request Form'!$F$6=\"CICSA\",IF('Blank - Request Form'!J177=0,\"\",'Blank - Request Form'!J177),IF('Blank - Request Form'!$F$7=\"CICSA\",IF('Blank - Request Form'!S177=0,\"\",'Blank - Request Form'!S177),\"\"))","v":""},"",143]
[{"$f":"IF('Blank - Request Form'!$F$6=\"CICSA\",IF('Blank - Request Form'!D178=0,\"\",'Blank - Request Form'!D178),IF('Blank - Request Form'!$F$7=\"CICSA\",IF('Blank - Request Form'!M178=0,\"\",'Blank - Request Form'!M178),\"\"))","v":""},{"$f":"IF('Blank - Request Form'!$F$6=\"CICSA\",IF('Blank - Request Form'!E178=0,\"\",'Blank - Request Form'!E178),IF('Blank - Request Form'!$F$7=\"CICSA\",IF('Blank - Request Form'!N178=0,\"\",'Blank - Request Form'!N178),\"\"))","v":""},{"$f":"IF('Blank - Request Form'!$F$6=\"CICSA\",IF(OR('Blank - Request Form'!F178=\"000\",'Blank - Request Form'!F178=0),\"\",'Blank - Request Form'!F178),IF('Blank - Request Form'!$F$7=\"CICSA\",IF(OR('Blank - Request Form'!O178=\"000\",'Blank - Request Form'!O178=0),\"\",'Blank - Request Form'!O178),\"\"))","v":""},{"$f":"IF('Blank - Request Form'!$F$6=\"CICSA\",IF(OR('Blank - Request Form'!G178=\"0\",'Blank - Request Form'!G178=\"00000\",'Blank - Request Form'!G178=0),\"\",'Blank - Request Form'!G178),IF('Blank - Request Form'!$F$7=\"CICSA\",IF(OR('Blank - Request Form'!P178=\"0\",'Blank - Request Form'!P178=\"00000\",'Blank - Request Form'!P178=0),\"\",'Blank - Request Form'!P178),\"\"))","v":""},{"$f":"IF('Blank - Request Form'!$F$6=\"CICSA\",IF(OR('Blank - Request Form'!H178=\"0\",'Blank - Request Form'!H178=\"00000\",'Blank - Request Form'!H178=0),\"\",'Blank - Request Form'!H178),IF('Blank - Request Form'!$F$7=\"CICSA\",IF(OR('Blank - Request Form'!Q178=\"0\",'Blank - Request Form'!Q178=\"00000\",'Blank - Request Form'!Q178=0),\"\",'Blank - Request Form'!Q178),\"\"))","v":""},{"$f":"IF('Blank - Request Form'!$F$6=\"CICSA\",IF(OR('Blank - Request Form'!I178=\"0\",'Blank - Request Form'!I178=\"00000\",'Blank - Request Form'!I178=0),\"\",'Blank - Request Form'!I178),IF('Blank - Request Form'!$F$7=\"CICSA\",IF(OR('Blank - Request Form'!R178=\"0\",'Blank - Request Form'!R178=\"00000\",'Blank - Request Form'!R178=0),\"\",'Blank - Request Form'!R178),\"\"))","v":""},null,{"$f":"IF('Blank - Request Form'!$F$6=\"CICSA\",IF('Blank - Request Form'!K178=0,\"\",'Blank - Request Form'!K178),IF('Blank - Request Form'!$F$7=\"CICSA\",IF('Blank - Request Form'!T178=0,\"\",'Blank - Request Form'!T178),\"\"))","v":""},null,null,null,{"$f":"IF(M144<>\"\",'Blank - Request Form'!$M$2,\"\")","v":""},{"$f":"IF('Blank - Request Form'!$F$6=\"CICSA\",IF('Blank - Request Form'!J178=0,\"\",'Blank - Request Form'!J178),IF('Blank - Request Form'!$F$7=\"CICSA\",IF('Blank - Request Form'!S178=0,\"\",'Blank - Request Form'!S178),\"\"))","v":""},"",144]
[{"$f":"IF('Blank - Request Form'!$F$6=\"CICSA\",IF('Blank - Request Form'!D179=0,\"\",'Blank - Request Form'!D179),IF('Blank - Request Form'!$F$7=\"CICSA\",IF('Blank - Request Form'!M179=0,\"\",'Blank - Request Form'!M179),\"\"))","v":""},{"$f":"IF('Blank - Request Form'!$F$6=\"CICSA\",IF('Blank - Request Form'!E179=0,\"\",'Blank - Request Form'!E179),IF('Blank - Request Form'!$F$7=\"CICSA\",IF('Blank - Request Form'!N179=0,\"\",'Blank - Request Form'!N179),\"\"))","v":""},{"$f":"IF('Blank - Request Form'!$F$6=\"CICSA\",IF(OR('Blank - Request Form'!F179=\"000\",'Blank - Request Form'!F179=0),\"\",'Blank - Request Form'!F179),IF('Blank - Request Form'!$F$7=\"CICSA\",IF(OR('Blank - Request Form'!O179=\"000\",'Blank - Request Form'!O179=0),\"\",'Blank - Request Form'!O179),\"\"))","v":""},{"$f":"IF('Blank - Request Form'!$F$6=\"CICSA\",IF(OR('Blank - Request Form'!G179=\"0\",'Blank - Request Form'!G179=\"00000\",'Blank - Request Form'!G179=0),\"\",'Blank - Request Form'!G179),IF('Blank - Request Form'!$F$7=\"CICSA\",IF(OR('Blank - Request Form'!P179=\"0\",'Blank - Request Form'!P179=\"00000\",'Blank - Request Form'!P179=0),\"\",'Blank - Request Form'!P179),\"\"))","v":""},{"$f":"IF('Blank - Request Form'!$F$6=\"CICSA\",IF(OR('Blank - Request Form'!H179=\"0\",'Blank - Request Form'!H179=\"00000\",'Blank - Request Form'!H179=0),\"\",'Blank - Request Form'!H179),IF('Blank - Request Form'!$F$7=\"CICSA\",IF(OR('Blank - Request Form'!Q179=\"0\",'Blank - Request Form'!Q179=\"00000\",'Blank - Request Form'!Q179=0),\"\",'Blank - Request Form'!Q179),\"\"))","v":""},{"$f":"IF('Blank - Request Form'!$F$6=\"CICSA\",IF(OR('Blank - Request Form'!I179=\"0\",'Blank - Request Form'!I179=\"00000\",'Blank - Request Form'!I179=0),\"\",'Blank - Request Form'!I179),IF('Blank - Request Form'!$F$7=\"CICSA\",IF(OR('Blank - Request Form'!R179=\"0\",'Blank - Request Form'!R179=\"00000\",'Blank - Request Form'!R179=0),\"\",'Blank - Request Form'!R179),\"\"))","v":""},null,{"$f":"IF('Blank - Request Form'!$F$6=\"CICSA\",IF('Blank - Request Form'!K179=0,\"\",'Blank - Request Form'!K179),IF('Blank - Request Form'!$F$7=\"CICSA\",IF('Blank - Request Form'!T179=0,\"\",'Blank - Request Form'!T179),\"\"))","v":""},null,null,null,{"$f":"IF(M145<>\"\",'Blank - Request Form'!$M$2,\"\")","v":""},{"$f":"IF('Blank - Request Form'!$F$6=\"CICSA\",IF('Blank - Request Form'!J179=0,\"\",'Blank - Request Form'!J179),IF('Blank - Request Form'!$F$7=\"CICSA\",IF('Blank - Request Form'!S179=0,\"\",'Blank - Request Form'!S179),\"\"))","v":""},"",145]
[{"$f":"IF('Blank - Request Form'!$F$6=\"CICSA\",IF('Blank - Request Form'!D180=0,\"\",'Blank - Request Form'!D180),IF('Blank - Request Form'!$F$7=\"CICSA\",IF('Blank - Request Form'!M180=0,\"\",'Blank - Request Form'!M180),\"\"))","v":""},{"$f":"IF('Blank - Request Form'!$F$6=\"CICSA\",IF('Blank - Request Form'!E180=0,\"\",'Blank - Request Form'!E180),IF('Blank - Request Form'!$F$7=\"CICSA\",IF('Blank - Request Form'!N180=0,\"\",'Blank - Request Form'!N180),\"\"))","v":""},{"$f":"IF('Blank - Request Form'!$F$6=\"CICSA\",IF(OR('Blank - Request Form'!F180=\"000\",'Blank - Request Form'!F180=0),\"\",'Blank - Request Form'!F180),IF('Blank - Request Form'!$F$7=\"CICSA\",IF(OR('Blank - Request Form'!O180=\"000\",'Blank - Request Form'!O180=0),\"\",'Blank - Request Form'!O180),\"\"))","v":""},{"$f":"IF('Blank - Request Form'!$F$6=\"CICSA\",IF(OR('Blank - Request Form'!G180=\"0\",'Blank - Request Form'!G180=\"00000\",'Blank - Request Form'!G180=0),\"\",'Blank - Request Form'!G180),IF('Blank - Request Form'!$F$7=\"CICSA\",IF(OR('Blank - Request Form'!P180=\"0\",'Blank - Request Form'!P180=\"00000\",'Blank - Request Form'!P180=0),\"\",'Blank - Request Form'!P180),\"\"))","v":""},{"$f":"IF('Blank - Request Form'!$F$6=\"CICSA\",IF(OR('Blank - Request Form'!H180=\"0\",'Blank - Request Form'!H180=\"00000\",'Blank - Request Form'!H180=0),\"\",'Blank - Request Form'!H180),IF('Blank - Request Form'!$F$7=\"CICSA\",IF(OR('Blank - Request Form'!Q180=\"0\",'Blank - Request Form'!Q180=\"00000\",'Blank - Request Form'!Q180=0),\"\",'Blank - Request Form'!Q180),\"\"))","v":""},{"$f":"IF('Blank - Request Form'!$F$6=\"CICSA\",IF(OR('Blank - Request Form'!I180=\"0\",'Blank - Request Form'!I180=\"00000\",'Blank - Request Form'!I180=0),\"\",'Blank - Request Form'!I180),IF('Blank - Request Form'!$F$7=\"CICSA\",IF(OR('Blank - Request Form'!R180=\"0\",'Blank - Request Form'!R180=\"00000\",'Blank - Request Form'!R180=0),\"\",'Blank - Request Form'!R180),\"\"))","v":""},null,{"$f":"IF('Blank - Request Form'!$F$6=\"CICSA\",IF('Blank - Request Form'!K180=0,\"\",'Blank - Request Form'!K180),IF('Blank - Request Form'!$F$7=\"CICSA\",IF('Blank - Request Form'!T180=0,\"\",'Blank - Request Form'!T180),\"\"))","v":""},null,null,null,{"$f":"IF(M146<>\"\",'Blank - Request Form'!$M$2,\"\")","v":""},{"$f":"IF('Blank - Request Form'!$F$6=\"CICSA\",IF('Blank - Request Form'!J180=0,\"\",'Blank - Request Form'!J180),IF('Blank - Request Form'!$F$7=\"CICSA\",IF('Blank - Request Form'!S180=0,\"\",'Blank - Request Form'!S180),\"\"))","v":""},"",146]
[{"$f":"IF('Blank - Request Form'!$F$6=\"CICSA\",IF('Blank - Request Form'!D181=0,\"\",'Blank - Request Form'!D181),IF('Blank - Request Form'!$F$7=\"CICSA\",IF('Blank - Request Form'!M181=0,\"\",'Blank - Request Form'!M181),\"\"))","v":""},{"$f":"IF('Blank - Request Form'!$F$6=\"CICSA\",IF('Blank - Request Form'!E181=0,\"\",'Blank - Request Form'!E181),IF('Blank - Request Form'!$F$7=\"CICSA\",IF('Blank - Request Form'!N181=0,\"\",'Blank - Request Form'!N181),\"\"))","v":""},{"$f":"IF('Blank - Request Form'!$F$6=\"CICSA\",IF(OR('Blank - Request Form'!F181=\"000\",'Blank - Request Form'!F181=0),\"\",'Blank - Request Form'!F181),IF('Blank - Request Form'!$F$7=\"CICSA\",IF(OR('Blank - Request Form'!O181=\"000\",'Blank - Request Form'!O181=0),\"\",'Blank - Request Form'!O181),\"\"))","v":""},{"$f":"IF('Blank - Request Form'!$F$6=\"CICSA\",IF(OR('Blank - Request Form'!G181=\"0\",'Blank - Request Form'!G181=\"00000\",'Blank - Request Form'!G181=0),\"\",'Blank - Request Form'!G181),IF('Blank - Request Form'!$F$7=\"CICSA\",IF(OR('Blank - Request Form'!P181=\"0\",'Blank - Request Form'!P181=\"00000\",'Blank - Request Form'!P181=0),\"\",'Blank - Request Form'!P181),\"\"))","v":""},{"$f":"IF('Blank - Request Form'!$F$6=\"CICSA\",IF(OR('Blank - Request Form'!H181=\"0\",'Blank - Request Form'!H181=\"00000\",'Blank - Request Form'!H181=0),\"\",'Blank - Request Form'!H181),IF('Blank - Request Form'!$F$7=\"CICSA\",IF(OR('Blank - Request Form'!Q181=\"0\",'Blank - Request Form'!Q181=\"00000\",'Blank - Request Form'!Q181=0),\"\",'Blank - Request Form'!Q181),\"\"))","v":""},{"$f":"IF('Blank - Request Form'!$F$6=\"CICSA\",IF(OR('Blank - Request Form'!I181=\"0\",'Blank - Request Form'!I181=\"00000\",'Blank - Request Form'!I181=0),\"\",'Blank - Request Form'!I181),IF('Blank - Request Form'!$F$7=\"CICSA\",IF(OR('Blank - Request Form'!R181=\"0\",'Blank - Request Form'!R181=\"00000\",'Blank - Request Form'!R181=0),\"\",'Blank - Request Form'!R181),\"\"))","v":""},null,{"$f":"IF('Blank - Request Form'!$F$6=\"CICSA\",IF('Blank - Request Form'!K181=0,\"\",'Blank - Request Form'!K181),IF('Blank - Request Form'!$F$7=\"CICSA\",IF('Blank - Request Form'!T181=0,\"\",'Blank - Request Form'!T181),\"\"))","v":""},null,null,null,{"$f":"IF(M147<>\"\",'Blank - Request Form'!$M$2,\"\")","v":""},{"$f":"IF('Blank - Request Form'!$F$6=\"CICSA\",IF('Blank - Request Form'!J181=0,\"\",'Blank - Request Form'!J181),IF('Blank - Request Form'!$F$7=\"CICSA\",IF('Blank - Request Form'!S181=0,\"\",'Blank - Request Form'!S181),\"\"))","v":""},"",147]
[{"$f":"IF('Blank - Request Form'!$F$6=\"CICSA\",IF('Blank - Request Form'!D182=0,\"\",'Blank - Request Form'!D182),IF('Blank - Request Form'!$F$7=\"CICSA\",IF('Blank - Request Form'!M182=0,\"\",'Blank - Request Form'!M182),\"\"))","v":""},{"$f":"IF('Blank - Request Form'!$F$6=\"CICSA\",IF('Blank - Request Form'!E182=0,\"\",'Blank - Request Form'!E182),IF('Blank - Request Form'!$F$7=\"CICSA\",IF('Blank - Request Form'!N182=0,\"\",'Blank - Request Form'!N182),\"\"))","v":""},{"$f":"IF('Blank - Request Form'!$F$6=\"CICSA\",IF(OR('Blank - Request Form'!F182=\"000\",'Blank - Request Form'!F182=0),\"\",'Blank - Request Form'!F182),IF('Blank - Request Form'!$F$7=\"CICSA\",IF(OR('Blank - Request Form'!O182=\"000\",'Blank - Request Form'!O182=0),\"\",'Blank - Request Form'!O182),\"\"))","v":""},{"$f":"IF('Blank - Request Form'!$F$6=\"CICSA\",IF(OR('Blank - Request Form'!G182=\"0\",'Blank - Request Form'!G182=\"00000\",'Blank - Request Form'!G182=0),\"\",'Blank - Request Form'!G182),IF('Blank - Request Form'!$F$7=\"CICSA\",IF(OR('Blank - Request Form'!P182=\"0\",'Blank - Request Form'!P182=\"00000\",'Blank - Request Form'!P182=0),\"\",'Blank - Request Form'!P182),\"\"))","v":""},{"$f":"IF('Blank - Request Form'!$F$6=\"CICSA\",IF(OR('Blank - Request Form'!H182=\"0\",'Blank - Request Form'!H182=\"00000\",'Blank - Request Form'!H182=0),\"\",'Blank - Request Form'!H182),IF('Blank - Request Form'!$F$7=\"CICSA\",IF(OR('Blank - Request Form'!Q182=\"0\",'Blank - Request Form'!Q182=\"00000\",'Blank - Request Form'!Q182=0),\"\",'Blank - Request Form'!Q182),\"\"))","v":""},{"$f":"IF('Blank - Request Form'!$F$6=\"CICSA\",IF(OR('Blank - Request Form'!I182=\"0\",'Blank - Request Form'!I182=\"00000\",'Blank - Request Form'!I182=0),\"\",'Blank - Request Form'!I182),IF('Blank - Request Form'!$F$7=\"CICSA\",IF(OR('Blank - Request Form'!R182=\"0\",'Blank - Request Form'!R182=\"00000\",'Blank - Request Form'!R182=0),\"\",'Blank - Request Form'!R182),\"\"))","v":""},null,{"$f":"IF('Blank - Request Form'!$F$6=\"CICSA\",IF('Blank - Request Form'!K182=0,\"\",'Blank - Request Form'!K182),IF('Blank - Request Form'!$F$7=\"CICSA\",IF('Blank - Request Form'!T182=0,\"\",'Blank - Request Form'!T182),\"\"))","v":""},null,null,null,{"$f":"IF(M148<>\"\",'Blank - Request Form'!$M$2,\"\")","v":""},{"$f":"IF('Blank - Request Form'!$F$6=\"CICSA\",IF('Blank - Request Form'!J182=0,\"\",'Blank - Request Form'!J182),IF('Blank - Request Form'!$F$7=\"CICSA\",IF('Blank - Request Form'!S182=0,\"\",'Blank - Request Form'!S182),\"\"))","v":""},"",148]
[{"$f":"IF('Blank - Request Form'!$F$6=\"CICSA\",IF('Blank - Request Form'!D183=0,\"\",'Blank - Request Form'!D183),IF('Blank - Request Form'!$F$7=\"CICSA\",IF('Blank - Request Form'!M183=0,\"\",'Blank - Request Form'!M183),\"\"))","v":""},{"$f":"IF('Blank - Request Form'!$F$6=\"CICSA\",IF('Blank - Request Form'!E183=0,\"\",'Blank - Request Form'!E183),IF('Blank - Request Form'!$F$7=\"CICSA\",IF('Blank - Request Form'!N183=0,\"\",'Blank - Request Form'!N183),\"\"))","v":""},{"$f":"IF('Blank - Request Form'!$F$6=\"CICSA\",IF(OR('Blank - Request Form'!F183=\"000\",'Blank - Request Form'!F183=0),\"\",'Blank - Request Form'!F183),IF('Blank - Request Form'!$F$7=\"CICSA\",IF(OR('Blank - Request Form'!O183=\"000\",'Blank - Request Form'!O183=0),\"\",'Blank - Request Form'!O183),\"\"))","v":""},{"$f":"IF('Blank - Request Form'!$F$6=\"CICSA\",IF(OR('Blank - Request Form'!G183=\"0\",'Blank - Request Form'!G183=\"00000\",'Blank - Request Form'!G183=0),\"\",'Blank - Request Form'!G183),IF('Blank - Request Form'!$F$7=\"CICSA\",IF(OR('Blank - Request Form'!P183=\"0\",'Blank - Request Form'!P183=\"00000\",'Blank - Request Form'!P183=0),\"\",'Blank - Request Form'!P183),\"\"))","v":""},{"$f":"IF('Blank - Request Form'!$F$6=\"CICSA\",IF(OR('Blank - Request Form'!H183=\"0\",'Blank - Request Form'!H183=\"00000\",'Blank - Request Form'!H183=0),\"\",'Blank - Request Form'!H183),IF('Blank - Request Form'!$F$7=\"CICSA\",IF(OR('Blank - Request Form'!Q183=\"0\",'Blank - Request Form'!Q183=\"00000\",'Blank - Request Form'!Q183=0),\"\",'Blank - Request Form'!Q183),\"\"))","v":""},{"$f":"IF('Blank - Request Form'!$F$6=\"CICSA\",IF(OR('Blank - Request Form'!I183=\"0\",'Blank - Request Form'!I183=\"00000\",'Blank - Request Form'!I183=0),\"\",'Blank - Request Form'!I183),IF('Blank - Request Form'!$F$7=\"CICSA\",IF(OR('Blank - Request Form'!R183=\"0\",'Blank - Request Form'!R183=\"00000\",'Blank - Request Form'!R183=0),\"\",'Blank - Request Form'!R183),\"\"))","v":""},null,{"$f":"IF('Blank - Request Form'!$F$6=\"CICSA\",IF('Blank - Request Form'!K183=0,\"\",'Blank - Request Form'!K183),IF('Blank - Request Form'!$F$7=\"CICSA\",IF('Blank - Request Form'!T183=0,\"\",'Blank - Request Form'!T183),\"\"))","v":""},null,null,null,{"$f":"IF(M149<>\"\",'Blank - Request Form'!$M$2,\"\")","v":""},{"$f":"IF('Blank - Request Form'!$F$6=\"CICSA\",IF('Blank - Request Form'!J183=0,\"\",'Blank - Request Form'!J183),IF('Blank - Request Form'!$F$7=\"CICSA\",IF('Blank - Request Form'!S183=0,\"\",'Blank - Request Form'!S183),\"\"))","v":""},"",149]
[{"$f":"IF('Blank - Request Form'!$F$6=\"CICSA\",IF('Blank - Request Form'!D184=0,\"\",'Blank - Request Form'!D184),IF('Blank - Request Form'!$F$7=\"CICSA\",IF('Blank - Request Form'!M184=0,\"\",'Blank - Request Form'!M184),\"\"))","v":""},{"$f":"IF('Blank - Request Form'!$F$6=\"CICSA\",IF('Blank - Request Form'!E184=0,\"\",'Blank - Request Form'!E184),IF('Blank - Request Form'!$F$7=\"CICSA\",IF('Blank - Request Form'!N184=0,\"\",'Blank - Request Form'!N184),\"\"))","v":""},{"$f":"IF('Blank - Request Form'!$F$6=\"CICSA\",IF(OR('Blank - Request Form'!F184=\"000\",'Blank - Request Form'!F184=0),\"\",'Blank - Request Form'!F184),IF('Blank - Request Form'!$F$7=\"CICSA\",IF(OR('Blank - Request Form'!O184=\"000\",'Blank - Request Form'!O184=0),\"\",'Blank - Request Form'!O184),\"\"))","v":""},{"$f":"IF('Blank - Request Form'!$F$6=\"CICSA\",IF(OR('Blank - Request Form'!G184=\"0\",'Blank - Request Form'!G184=\"00000\",'Blank - Request Form'!G184=0),\"\",'Blank - Request Form'!G184),IF('Blank - Request Form'!$F$7=\"CICSA\",IF(OR('Blank - Request Form'!P184=\"0\",'Blank - Request Form'!P184=\"00000\",'Blank - Request Form'!P184=0),\"\",'Blank - Request Form'!P184),\"\"))","v":""},{"$f":"IF('Blank - Request Form'!$F$6=\"CICSA\",IF(OR('Blank - Request Form'!H184=\"0\",'Blank - Request Form'!H184=\"00000\",'Blank - Request Form'!H184=0),\"\",'Blank - Request Form'!H184),IF('Blank - Request Form'!$F$7=\"CICSA\",IF(OR('Blank - Request Form'!Q184=\"0\",'Blank - Request Form'!Q184=\"00000\",'Blank - Request Form'!Q184=0),\"\",'Blank - Request Form'!Q184),\"\"))","v":""},{"$f":"IF('Blank - Request Form'!$F$6=\"CICSA\",IF(OR('Blank - Request Form'!I184=\"0\",'Blank - Request Form'!I184=\"00000\",'Blank - Request Form'!I184=0),\"\",'Blank - Request Form'!I184),IF('Blank - Request Form'!$F$7=\"CICSA\",IF(OR('Blank - Request Form'!R184=\"0\",'Blank - Request Form'!R184=\"00000\",'Blank - Request Form'!R184=0),\"\",'Blank - Request Form'!R184),\"\"))","v":""},null,{"$f":"IF('Blank - Request Form'!$F$6=\"CICSA\",IF('Blank - Request Form'!K184=0,\"\",'Blank - Request Form'!K184),IF('Blank - Request Form'!$F$7=\"CICSA\",IF('Blank - Request Form'!T184=0,\"\",'Blank - Request Form'!T184),\"\"))","v":""},null,null,null,{"$f":"IF(M150<>\"\",'Blank - Request Form'!$M$2,\"\")","v":""},{"$f":"IF('Blank - Request Form'!$F$6=\"CICSA\",IF('Blank - Request Form'!J184=0,\"\",'Blank - Request Form'!J184),IF('Blank - Request Form'!$F$7=\"CICSA\",IF('Blank - Request Form'!S184=0,\"\",'Blank - Request Form'!S184),\"\"))","v":""},"",150]
[{"$f":"IF('Blank - Request Form'!$F$6=\"CICSA\",IF('Blank - Request Form'!D185=0,\"\",'Blank - Request Form'!D185),IF('Blank - Request Form'!$F$7=\"CICSA\",IF('Blank - Request Form'!M185=0,\"\",'Blank - Request Form'!M185),\"\"))","v":""},{"$f":"IF('Blank - Request Form'!$F$6=\"CICSA\",IF('Blank - Request Form'!E185=0,\"\",'Blank - Request Form'!E185),IF('Blank - Request Form'!$F$7=\"CICSA\",IF('Blank - Request Form'!N185=0,\"\",'Blank - Request Form'!N185),\"\"))","v":""},{"$f":"IF('Blank - Request Form'!$F$6=\"CICSA\",IF(OR('Blank - Request Form'!F185=\"000\",'Blank - Request Form'!F185=0),\"\",'Blank - Request Form'!F185),IF('Blank - Request Form'!$F$7=\"CICSA\",IF(OR('Blank - Request Form'!O185=\"000\",'Blank - Request Form'!O185=0),\"\",'Blank - Request Form'!O185),\"\"))","v":""},{"$f":"IF('Blank - Request Form'!$F$6=\"CICSA\",IF(OR('Blank - Request Form'!G185=\"0\",'Blank - Request Form'!G185=\"00000\",'Blank - Request Form'!G185=0),\"\",'Blank - Request Form'!G185),IF('Blank - Request Form'!$F$7=\"CICSA\",IF(OR('Blank - Request Form'!P185=\"0\",'Blank - Request Form'!P185=\"00000\",'Blank - Request Form'!P185=0),\"\",'Blank - Request Form'!P185),\"\"))","v":""},{"$f":"IF('Blank - Request Form'!$F$6=\"CICSA\",IF(OR('Blank - Request Form'!H185=\"0\",'Blank - Request Form'!H185=\"00000\",'Blank - Request Form'!H185=0),\"\",'Blank - Request Form'!H185),IF('Blank - Request Form'!$F$7=\"CICSA\",IF(OR('Blank - Request Form'!Q185=\"0\",'Blank - Request Form'!Q185=\"00000\",'Blank - Request Form'!Q185=0),\"\",'Blank - Request Form'!Q185),\"\"))","v":""},{"$f":"IF('Blank - Request Form'!$F$6=\"CICSA\",IF(OR('Blank - Request Form'!I185=\"0\",'Blank - Request Form'!I185=\"00000\",'Blank - Request Form'!I185=0),\"\",'Blank - Request Form'!I185),IF('Blank - Request Form'!$F$7=\"CICSA\",IF(OR('Blank - Request Form'!R185=\"0\",'Blank - Request Form'!R185=\"00000\",'Blank - Request Form'!R185=0),\"\",'Blank - Request Form'!R185),\"\"))","v":""},null,{"$f":"IF('Blank - Request Form'!$F$6=\"CICSA\",IF('Blank - Request Form'!K185=0,\"\",'Blank - Request Form'!K185),IF('Blank - Request Form'!$F$7=\"CICSA\",IF('Blank - Request Form'!T185=0,\"\",'Blank - Request Form'!T185),\"\"))","v":""},null,null,null,{"$f":"IF(M151<>\"\",'Blank - Request Form'!$M$2,\"\")","v":""},{"$f":"IF('Blank - Request Form'!$F$6=\"CICSA\",IF('Blank - Request Form'!J185=0,\"\",'Blank - Request Form'!J185),IF('Blank - Request Form'!$F$7=\"CICSA\",IF('Blank - Request Form'!S185=0,\"\",'Blank - Request Form'!S185),\"\"))","v":""},"",151]
[{"$f":"IF('Blank - Request Form'!$F$6=\"CICSA\",IF('Blank - Request Form'!D186=0,\"\",'Blank - Request Form'!D186),IF('Blank - Request Form'!$F$7=\"CICSA\",IF('Blank - Request Form'!M186=0,\"\",'Blank - Request Form'!M186),\"\"))","v":""},{"$f":"IF('Blank - Request Form'!$F$6=\"CICSA\",IF('Blank - Request Form'!E186=0,\"\",'Blank - Request Form'!E186),IF('Blank - Request Form'!$F$7=\"CICSA\",IF('Blank - Request Form'!N186=0,\"\",'Blank - Request Form'!N186),\"\"))","v":""},{"$f":"IF('Blank - Request Form'!$F$6=\"CICSA\",IF(OR('Blank - Request Form'!F186=\"000\",'Blank - Request Form'!F186=0),\"\",'Blank - Request Form'!F186),IF('Blank - Request Form'!$F$7=\"CICSA\",IF(OR('Blank - Request Form'!O186=\"000\",'Blank - Request Form'!O186=0),\"\",'Blank - Request Form'!O186),\"\"))","v":""},{"$f":"IF('Blank - Request Form'!$F$6=\"CICSA\",IF(OR('Blank - Request Form'!G186=\"0\",'Blank - Request Form'!G186=\"00000\",'Blank - Request Form'!G186=0),\"\",'Blank - Request Form'!G186),IF('Blank - Request Form'!$F$7=\"CICSA\",IF(OR('Blank - Request Form'!P186=\"0\",'Blank - Request Form'!P186=\"00000\",'Blank - Request Form'!P186=0),\"\",'Blank - Request Form'!P186),\"\"))","v":""},{"$f":"IF('Blank - Request Form'!$F$6=\"CICSA\",IF(OR('Blank - Request Form'!H186=\"0\",'Blank - Request Form'!H186=\"00000\",'Blank - Request Form'!H186=0),\"\",'Blank - Request Form'!H186),IF('Blank - Request Form'!$F$7=\"CICSA\",IF(OR('Blank - Request Form'!Q186=\"0\",'Blank - Request Form'!Q186=\"00000\",'Blank - Request Form'!Q186=0),\"\",'Blank - Request Form'!Q186),\"\"))","v":""},{"$f":"IF('Blank - Request Form'!$F$6=\"CICSA\",IF(OR('Blank - Request Form'!I186=\"0\",'Blank - Request Form'!I186=\"00000\",'Blank - Request Form'!I186=0),\"\",'Blank - Request Form'!I186),IF('Blank - Request Form'!$F$7=\"CICSA\",IF(OR('Blank - Request Form'!R186=\"0\",'Blank - Request Form'!R186=\"00000\",'Blank - Request Form'!R186=0),\"\",'Blank - Request Form'!R186),\"\"))","v":""},null,{"$f":"IF('Blank - Request Form'!$F$6=\"CICSA\",IF('Blank - Request Form'!K186=0,\"\",'Blank - Request Form'!K186),IF('Blank - Request Form'!$F$7=\"CICSA\",IF('Blank - Request Form'!T186=0,\"\",'Blank - Request Form'!T186),\"\"))","v":""},null,null,null,{"$f":"IF(M152<>\"\",'Blank - Request Form'!$M$2,\"\")","v":""},{"$f":"IF('Blank - Request Form'!$F$6=\"CICSA\",IF('Blank - Request Form'!J186=0,\"\",'Blank - Request Form'!J186),IF('Blank - Request Form'!$F$7=\"CICSA\",IF('Blank - Request Form'!S186=0,\"\",'Blank - Request Form'!S186),\"\"))","v":""},"",152]
[{"$f":"IF('Blank - Request Form'!$F$6=\"CICSA\",IF('Blank - Request Form'!D187=0,\"\",'Blank - Request Form'!D187),IF('Blank - Request Form'!$F$7=\"CICSA\",IF('Blank - Request Form'!M187=0,\"\",'Blank - Request Form'!M187),\"\"))","v":""},{"$f":"IF('Blank - Request Form'!$F$6=\"CICSA\",IF('Blank - Request Form'!E187=0,\"\",'Blank - Request Form'!E187),IF('Blank - Request Form'!$F$7=\"CICSA\",IF('Blank - Request Form'!N187=0,\"\",'Blank - Request Form'!N187),\"\"))","v":""},{"$f":"IF('Blank - Request Form'!$F$6=\"CICSA\",IF(OR('Blank - Request Form'!F187=\"000\",'Blank - Request Form'!F187=0),\"\",'Blank - Request Form'!F187),IF('Blank - Request Form'!$F$7=\"CICSA\",IF(OR('Blank - Request Form'!O187=\"000\",'Blank - Request Form'!O187=0),\"\",'Blank - Request Form'!O187),\"\"))","v":""},{"$f":"IF('Blank - Request Form'!$F$6=\"CICSA\",IF(OR('Blank - Request Form'!G187=\"0\",'Blank - Request Form'!G187=\"00000\",'Blank - Request Form'!G187=0),\"\",'Blank - Request Form'!G187),IF('Blank - Request Form'!$F$7=\"CICSA\",IF(OR('Blank - Request Form'!P187=\"0\",'Blank - Request Form'!P187=\"00000\",'Blank - Request Form'!P187=0),\"\",'Blank - Request Form'!P187),\"\"))","v":""},{"$f":"IF('Blank - Request Form'!$F$6=\"CICSA\",IF(OR('Blank - Request Form'!H187=\"0\",'Blank - Request Form'!H187=\"00000\",'Blank - Request Form'!H187=0),\"\",'Blank - Request Form'!H187),IF('Blank - Request Form'!$F$7=\"CICSA\",IF(OR('Blank - Request Form'!Q187=\"0\",'Blank - Request Form'!Q187=\"00000\",'Blank - Request Form'!Q187=0),\"\",'Blank - Request Form'!Q187),\"\"))","v":""},{"$f":"IF('Blank - Request Form'!$F$6=\"CICSA\",IF(OR('Blank - Request Form'!I187=\"0\",'Blank - Request Form'!I187=\"00000\",'Blank - Request Form'!I187=0),\"\",'Blank - Request Form'!I187),IF('Blank - Request Form'!$F$7=\"CICSA\",IF(OR('Blank - Request Form'!R187=\"0\",'Blank - Request Form'!R187=\"00000\",'Blank - Request Form'!R187=0),\"\",'Blank - Request Form'!R187),\"\"))","v":""},null,{"$f":"IF('Blank - Request Form'!$F$6=\"CICSA\",IF('Blank - Request Form'!K187=0,\"\",'Blank - Request Form'!K187),IF('Blank - Request Form'!$F$7=\"CICSA\",IF('Blank - Request Form'!T187=0,\"\",'Blank - Request Form'!T187),\"\"))","v":""},null,null,null,{"$f":"IF(M153<>\"\",'Blank - Request Form'!$M$2,\"\")","v":""},{"$f":"IF('Blank - Request Form'!$F$6=\"CICSA\",IF('Blank - Request Form'!J187=0,\"\",'Blank - Request Form'!J187),IF('Blank - Request Form'!$F$7=\"CICSA\",IF('Blank - Request Form'!S187=0,\"\",'Blank - Request Form'!S187),\"\"))","v":""},"",153]
[{"$f":"IF('Blank - Request Form'!$F$6=\"CICSA\",IF('Blank - Request Form'!D188=0,\"\",'Blank - Request Form'!D188),IF('Blank - Request Form'!$F$7=\"CICSA\",IF('Blank - Request Form'!M188=0,\"\",'Blank - Request Form'!M188),\"\"))","v":""},{"$f":"IF('Blank - Request Form'!$F$6=\"CICSA\",IF('Blank - Request Form'!E188=0,\"\",'Blank - Request Form'!E188),IF('Blank - Request Form'!$F$7=\"CICSA\",IF('Blank - Request Form'!N188=0,\"\",'Blank - Request Form'!N188),\"\"))","v":""},{"$f":"IF('Blank - Request Form'!$F$6=\"CICSA\",IF(OR('Blank - Request Form'!F188=\"000\",'Blank - Request Form'!F188=0),\"\",'Blank - Request Form'!F188),IF('Blank - Request Form'!$F$7=\"CICSA\",IF(OR('Blank - Request Form'!O188=\"000\",'Blank - Request Form'!O188=0),\"\",'Blank - Request Form'!O188),\"\"))","v":""},{"$f":"IF('Blank - Request Form'!$F$6=\"CICSA\",IF(OR('Blank - Request Form'!G188=\"0\",'Blank - Request Form'!G188=\"00000\",'Blank - Request Form'!G188=0),\"\",'Blank - Request Form'!G188),IF('Blank - Request Form'!$F$7=\"CICSA\",IF(OR('Blank - Request Form'!P188=\"0\",'Blank - Request Form'!P188=\"00000\",'Blank - Request Form'!P188=0),\"\",'Blank - Request Form'!P188),\"\"))","v":""},{"$f":"IF('Blank - Request Form'!$F$6=\"CICSA\",IF(OR('Blank - Request Form'!H188=\"0\",'Blank - Request Form'!H188=\"00000\",'Blank - Request Form'!H188=0),\"\",'Blank - Request Form'!H188),IF('Blank - Request Form'!$F$7=\"CICSA\",IF(OR('Blank - Request Form'!Q188=\"0\",'Blank - Request Form'!Q188=\"00000\",'Blank - Request Form'!Q188=0),\"\",'Blank - Request Form'!Q188),\"\"))","v":""},{"$f":"IF('Blank - Request Form'!$F$6=\"CICSA\",IF(OR('Blank - Request Form'!I188=\"0\",'Blank - Request Form'!I188=\"00000\",'Blank - Request Form'!I188=0),\"\",'Blank - Request Form'!I188),IF('Blank - Request Form'!$F$7=\"CICSA\",IF(OR('Blank - Request Form'!R188=\"0\",'Blank - Request Form'!R188=\"00000\",'Blank - Request Form'!R188=0),\"\",'Blank - Request Form'!R188),\"\"))","v":""},null,{"$f":"IF('Blank - Request Form'!$F$6=\"CICSA\",IF('Blank - Request Form'!K188=0,\"\",'Blank - Request Form'!K188),IF('Blank - Request Form'!$F$7=\"CICSA\",IF('Blank - Request Form'!T188=0,\"\",'Blank - Request Form'!T188),\"\"))","v":""},null,null,null,{"$f":"IF(M154<>\"\",'Blank - Request Form'!$M$2,\"\")","v":""},{"$f":"IF('Blank - Request Form'!$F$6=\"CICSA\",IF('Blank - Request Form'!J188=0,\"\",'Blank - Request Form'!J188),IF('Blank - Request Form'!$F$7=\"CICSA\",IF('Blank - Request Form'!S188=0,\"\",'Blank - Request Form'!S188),\"\"))","v":""},"",154]
[{"$f":"IF('Blank - Request Form'!$F$6=\"CICSA\",IF('Blank - Request Form'!D189=0,\"\",'Blank - Request Form'!D189),IF('Blank - Request Form'!$F$7=\"CICSA\",IF('Blank - Request Form'!M189=0,\"\",'Blank - Request Form'!M189),\"\"))","v":""},{"$f":"IF('Blank - Request Form'!$F$6=\"CICSA\",IF('Blank - Request Form'!E189=0,\"\",'Blank - Request Form'!E189),IF('Blank - Request Form'!$F$7=\"CICSA\",IF('Blank - Request Form'!N189=0,\"\",'Blank - Request Form'!N189),\"\"))","v":""},{"$f":"IF('Blank - Request Form'!$F$6=\"CICSA\",IF(OR('Blank - Request Form'!F189=\"000\",'Blank - Request Form'!F189=0),\"\",'Blank - Request Form'!F189),IF('Blank - Request Form'!$F$7=\"CICSA\",IF(OR('Blank - Request Form'!O189=\"000\",'Blank - Request Form'!O189=0),\"\",'Blank - Request Form'!O189),\"\"))","v":""},{"$f":"IF('Blank - Request Form'!$F$6=\"CICSA\",IF(OR('Blank - Request Form'!G189=\"0\",'Blank - Request Form'!G189=\"00000\",'Blank - Request Form'!G189=0),\"\",'Blank - Request Form'!G189),IF('Blank - Request Form'!$F$7=\"CICSA\",IF(OR('Blank - Request Form'!P189=\"0\",'Blank - Request Form'!P189=\"00000\",'Blank - Request Form'!P189=0),\"\",'Blank - Request Form'!P189),\"\"))","v":""},{"$f":"IF('Blank - Request Form'!$F$6=\"CICSA\",IF(OR('Blank - Request Form'!H189=\"0\",'Blank - Request Form'!H189=\"00000\",'Blank - Request Form'!H189=0),\"\",'Blank - Request Form'!H189),IF('Blank - Request Form'!$F$7=\"CICSA\",IF(OR('Blank - Request Form'!Q189=\"0\",'Blank - Request Form'!Q189=\"00000\",'Blank - Request Form'!Q189=0),\"\",'Blank - Request Form'!Q189),\"\"))","v":""},{"$f":"IF('Blank - Request Form'!$F$6=\"CICSA\",IF(OR('Blank - Request Form'!I189=\"0\",'Blank - Request Form'!I189=\"00000\",'Blank - Request Form'!I189=0),\"\",'Blank - Request Form'!I189),IF('Blank - Request Form'!$F$7=\"CICSA\",IF(OR('Blank - Request Form'!R189=\"0\",'Blank - Request Form'!R189=\"00000\",'Blank - Request Form'!R189=0),\"\",'Blank - Request Form'!R189),\"\"))","v":""},null,{"$f":"IF('Blank - Request Form'!$F$6=\"CICSA\",IF('Blank - Request Form'!K189=0,\"\",'Blank - Request Form'!K189),IF('Blank - Request Form'!$F$7=\"CICSA\",IF('Blank - Request Form'!T189=0,\"\",'Blank - Request Form'!T189),\"\"))","v":""},null,null,null,{"$f":"IF(M155<>\"\",'Blank - Request Form'!$M$2,\"\")","v":""},{"$f":"IF('Blank - Request Form'!$F$6=\"CICSA\",IF('Blank - Request Form'!J189=0,\"\",'Blank - Request Form'!J189),IF('Blank - Request Form'!$F$7=\"CICSA\",IF('Blank - Request Form'!S189=0,\"\",'Blank - Request Form'!S189),\"\"))","v":""},"",155]
[{"$f":"IF('Blank - Request Form'!$F$6=\"CICSA\",IF('Blank - Request Form'!D190=0,\"\",'Blank - Request Form'!D190),IF('Blank - Request Form'!$F$7=\"CICSA\",IF('Blank - Request Form'!M190=0,\"\",'Blank - Request Form'!M190),\"\"))","v":""},{"$f":"IF('Blank - Request Form'!$F$6=\"CICSA\",IF('Blank - Request Form'!E190=0,\"\",'Blank - Request Form'!E190),IF('Blank - Request Form'!$F$7=\"CICSA\",IF('Blank - Request Form'!N190=0,\"\",'Blank - Request Form'!N190),\"\"))","v":""},{"$f":"IF('Blank - Request Form'!$F$6=\"CICSA\",IF(OR('Blank - Request Form'!F190=\"000\",'Blank - Request Form'!F190=0),\"\",'Blank - Request Form'!F190),IF('Blank - Request Form'!$F$7=\"CICSA\",IF(OR('Blank - Request Form'!O190=\"000\",'Blank - Request Form'!O190=0),\"\",'Blank - Request Form'!O190),\"\"))","v":""},{"$f":"IF('Blank - Request Form'!$F$6=\"CICSA\",IF(OR('Blank - Request Form'!G190=\"0\",'Blank - Request Form'!G190=\"00000\",'Blank - Request Form'!G190=0),\"\",'Blank - Request Form'!G190),IF('Blank - Request Form'!$F$7=\"CICSA\",IF(OR('Blank - Request Form'!P190=\"0\",'Blank - Request Form'!P190=\"00000\",'Blank - Request Form'!P190=0),\"\",'Blank - Request Form'!P190),\"\"))","v":""},{"$f":"IF('Blank - Request Form'!$F$6=\"CICSA\",IF(OR('Blank - Request Form'!H190=\"0\",'Blank - Request Form'!H190=\"00000\",'Blank - Request Form'!H190=0),\"\",'Blank - Request Form'!H190),IF('Blank - Request Form'!$F$7=\"CICSA\",IF(OR('Blank - Request Form'!Q190=\"0\",'Blank - Request Form'!Q190=\"00000\",'Blank - Request Form'!Q190=0),\"\",'Blank - Request Form'!Q190),\"\"))","v":""},{"$f":"IF('Blank - Request Form'!$F$6=\"CICSA\",IF(OR('Blank - Request Form'!I190=\"0\",'Blank - Request Form'!I190=\"00000\",'Blank - Request Form'!I190=0),\"\",'Blank - Request Form'!I190),IF('Blank - Request Form'!$F$7=\"CICSA\",IF(OR('Blank - Request Form'!R190=\"0\",'Blank - Request Form'!R190=\"00000\",'Blank - Request Form'!R190=0),\"\",'Blank - Request Form'!R190),\"\"))","v":""},null,{"$f":"IF('Blank - Request Form'!$F$6=\"CICSA\",IF('Blank - Request Form'!K190=0,\"\",'Blank - Request Form'!K190),IF('Blank - Request Form'!$F$7=\"CICSA\",IF('Blank - Request Form'!T190=0,\"\",'Blank - Request Form'!T190),\"\"))","v":""},null,null,null,{"$f":"IF(M156<>\"\",'Blank - Request Form'!$M$2,\"\")","v":""},{"$f":"IF('Blank - Request Form'!$F$6=\"CICSA\",IF('Blank - Request Form'!J190=0,\"\",'Blank - Request Form'!J190),IF('Blank - Request Form'!$F$7=\"CICSA\",IF('Blank - Request Form'!S190=0,\"\",'Blank - Request Form'!S190),\"\"))","v":""},"",156]
[{"$f":"IF('Blank - Request Form'!$F$6=\"CICSA\",IF('Blank - Request Form'!D191=0,\"\",'Blank - Request Form'!D191),IF('Blank - Request Form'!$F$7=\"CICSA\",IF('Blank - Request Form'!M191=0,\"\",'Blank - Request Form'!M191),\"\"))","v":""},{"$f":"IF('Blank - Request Form'!$F$6=\"CICSA\",IF('Blank - Request Form'!E191=0,\"\",'Blank - Request Form'!E191),IF('Blank - Request Form'!$F$7=\"CICSA\",IF('Blank - Request Form'!N191=0,\"\",'Blank - Request Form'!N191),\"\"))","v":""},{"$f":"IF('Blank - Request Form'!$F$6=\"CICSA\",IF(OR('Blank - Request Form'!F191=\"000\",'Blank - Request Form'!F191=0),\"\",'Blank - Request Form'!F191),IF('Blank - Request Form'!$F$7=\"CICSA\",IF(OR('Blank - Request Form'!O191=\"000\",'Blank - Request Form'!O191=0),\"\",'Blank - Request Form'!O191),\"\"))","v":""},{"$f":"IF('Blank - Request Form'!$F$6=\"CICSA\",IF(OR('Blank - Request Form'!G191=\"0\",'Blank - Request Form'!G191=\"00000\",'Blank - Request Form'!G191=0),\"\",'Blank - Request Form'!G191),IF('Blank - Request Form'!$F$7=\"CICSA\",IF(OR('Blank - Request Form'!P191=\"0\",'Blank - Request Form'!P191=\"00000\",'Blank - Request Form'!P191=0),\"\",'Blank - Request Form'!P191),\"\"))","v":""},{"$f":"IF('Blank - Request Form'!$F$6=\"CICSA\",IF(OR('Blank - Request Form'!H191=\"0\",'Blank - Request Form'!H191=\"00000\",'Blank - Request Form'!H191=0),\"\",'Blank - Request Form'!H191),IF('Blank - Request Form'!$F$7=\"CICSA\",IF(OR('Blank - Request Form'!Q191=\"0\",'Blank - Request Form'!Q191=\"00000\",'Blank - Request Form'!Q191=0),\"\",'Blank - Request Form'!Q191),\"\"))","v":""},{"$f":"IF('Blank - Request Form'!$F$6=\"CICSA\",IF(OR('Blank - Request Form'!I191=\"0\",'Blank - Request Form'!I191=\"00000\",'Blank - Request Form'!I191=0),\"\",'Blank - Request Form'!I191),IF('Blank - Request Form'!$F$7=\"CICSA\",IF(OR('Blank - Request Form'!R191=\"0\",'Blank - Request Form'!R191=\"00000\",'Blank - Request Form'!R191=0),\"\",'Blank - Request Form'!R191),\"\"))","v":""},null,{"$f":"IF('Blank - Request Form'!$F$6=\"CICSA\",IF('Blank - Request Form'!K191=0,\"\",'Blank - Request Form'!K191),IF('Blank - Request Form'!$F$7=\"CICSA\",IF('Blank - Request Form'!T191=0,\"\",'Blank - Request Form'!T191),\"\"))","v":""},null,null,null,{"$f":"IF(M157<>\"\",'Blank - Request Form'!$M$2,\"\")","v":""},{"$f":"IF('Blank - Request Form'!$F$6=\"CICSA\",IF('Blank - Request Form'!J191=0,\"\",'Blank - Request Form'!J191),IF('Blank - Request Form'!$F$7=\"CICSA\",IF('Blank - Request Form'!S191=0,\"\",'Blank - Request Form'!S191),\"\"))","v":""},"",157]
[{"$f":"IF('Blank - Request Form'!$F$6=\"CICSA\",IF('Blank - Request Form'!D192=0,\"\",'Blank - Request Form'!D192),IF('Blank - Request Form'!$F$7=\"CICSA\",IF('Blank - Request Form'!M192=0,\"\",'Blank - Request Form'!M192),\"\"))","v":""},{"$f":"IF('Blank - Request Form'!$F$6=\"CICSA\",IF('Blank - Request Form'!E192=0,\"\",'Blank - Request Form'!E192),IF('Blank - Request Form'!$F$7=\"CICSA\",IF('Blank - Request Form'!N192=0,\"\",'Blank - Request Form'!N192),\"\"))","v":""},{"$f":"IF('Blank - Request Form'!$F$6=\"CICSA\",IF(OR('Blank - Request Form'!F192=\"000\",'Blank - Request Form'!F192=0),\"\",'Blank - Request Form'!F192),IF('Blank - Request Form'!$F$7=\"CICSA\",IF(OR('Blank - Request Form'!O192=\"000\",'Blank - Request Form'!O192=0),\"\",'Blank - Request Form'!O192),\"\"))","v":""},{"$f":"IF('Blank - Request Form'!$F$6=\"CICSA\",IF(OR('Blank - Request Form'!G192=\"0\",'Blank - Request Form'!G192=\"00000\",'Blank - Request Form'!G192=0),\"\",'Blank - Request Form'!G192),IF('Blank - Request Form'!$F$7=\"CICSA\",IF(OR('Blank - Request Form'!P192=\"0\",'Blank - Request Form'!P192=\"00000\",'Blank - Request Form'!P192=0),\"\",'Blank - Request Form'!P192),\"\"))","v":""},{"$f":"IF('Blank - Request Form'!$F$6=\"CICSA\",IF(OR('Blank - Request Form'!H192=\"0\",'Blank - Request Form'!H192=\"00000\",'Blank - Request Form'!H192=0),\"\",'Blank - Request Form'!H192),IF('Blank - Request Form'!$F$7=\"CICSA\",IF(OR('Blank - Request Form'!Q192=\"0\",'Blank - Request Form'!Q192=\"00000\",'Blank - Request Form'!Q192=0),\"\",'Blank - Request Form'!Q192),\"\"))","v":""},{"$f":"IF('Blank - Request Form'!$F$6=\"CICSA\",IF(OR('Blank - Request Form'!I192=\"0\",'Blank - Request Form'!I192=\"00000\",'Blank - Request Form'!I192=0),\"\",'Blank - Request Form'!I192),IF('Blank - Request Form'!$F$7=\"CICSA\",IF(OR('Blank - Request Form'!R192=\"0\",'Blank - Request Form'!R192=\"00000\",'Blank - Request Form'!R192=0),\"\",'Blank - Request Form'!R192),\"\"))","v":""},null,{"$f":"IF('Blank - Request Form'!$F$6=\"CICSA\",IF('Blank - Request Form'!K192=0,\"\",'Blank - Request Form'!K192),IF('Blank - Request Form'!$F$7=\"CICSA\",IF('Blank - Request Form'!T192=0,\"\",'Blank - Request Form'!T192),\"\"))","v":""},null,null,null,{"$f":"IF(M158<>\"\",'Blank - Request Form'!$M$2,\"\")","v":""},{"$f":"IF('Blank - Request Form'!$F$6=\"CICSA\",IF('Blank - Request Form'!J192=0,\"\",'Blank - Request Form'!J192),IF('Blank - Request Form'!$F$7=\"CICSA\",IF('Blank - Request Form'!S192=0,\"\",'Blank - Request Form'!S192),\"\"))","v":""},"",158]
[{"$f":"IF('Blank - Request Form'!$F$6=\"CICSA\",IF('Blank - Request Form'!D193=0,\"\",'Blank - Request Form'!D193),IF('Blank - Request Form'!$F$7=\"CICSA\",IF('Blank - Request Form'!M193=0,\"\",'Blank - Request Form'!M193),\"\"))","v":""},{"$f":"IF('Blank - Request Form'!$F$6=\"CICSA\",IF('Blank - Request Form'!E193=0,\"\",'Blank - Request Form'!E193),IF('Blank - Request Form'!$F$7=\"CICSA\",IF('Blank - Request Form'!N193=0,\"\",'Blank - Request Form'!N193),\"\"))","v":""},{"$f":"IF('Blank - Request Form'!$F$6=\"CICSA\",IF(OR('Blank - Request Form'!F193=\"000\",'Blank - Request Form'!F193=0),\"\",'Blank - Request Form'!F193),IF('Blank - Request Form'!$F$7=\"CICSA\",IF(OR('Blank - Request Form'!O193=\"000\",'Blank - Request Form'!O193=0),\"\",'Blank - Request Form'!O193),\"\"))","v":""},{"$f":"IF('Blank - Request Form'!$F$6=\"CICSA\",IF(OR('Blank - Request Form'!G193=\"0\",'Blank - Request Form'!G193=\"00000\",'Blank - Request Form'!G193=0),\"\",'Blank - Request Form'!G193),IF('Blank - Request Form'!$F$7=\"CICSA\",IF(OR('Blank - Request Form'!P193=\"0\",'Blank - Request Form'!P193=\"00000\",'Blank - Request Form'!P193=0),\"\",'Blank - Request Form'!P193),\"\"))","v":""},{"$f":"IF('Blank - Request Form'!$F$6=\"CICSA\",IF(OR('Blank - Request Form'!H193=\"0\",'Blank - Request Form'!H193=\"00000\",'Blank - Request Form'!H193=0),\"\",'Blank - Request Form'!H193),IF('Blank - Request Form'!$F$7=\"CICSA\",IF(OR('Blank - Request Form'!Q193=\"0\",'Blank - Request Form'!Q193=\"00000\",'Blank - Request Form'!Q193=0),\"\",'Blank - Request Form'!Q193),\"\"))","v":""},{"$f":"IF('Blank - Request Form'!$F$6=\"CICSA\",IF(OR('Blank - Request Form'!I193=\"0\",'Blank - Request Form'!I193=\"00000\",'Blank - Request Form'!I193=0),\"\",'Blank - Request Form'!I193),IF('Blank - Request Form'!$F$7=\"CICSA\",IF(OR('Blank - Request Form'!R193=\"0\",'Blank - Request Form'!R193=\"00000\",'Blank - Request Form'!R193=0),\"\",'Blank - Request Form'!R193),\"\"))","v":""},null,{"$f":"IF('Blank - Request Form'!$F$6=\"CICSA\",IF('Blank - Request Form'!K193=0,\"\",'Blank - Request Form'!K193),IF('Blank - Request Form'!$F$7=\"CICSA\",IF('Blank - Request Form'!T193=0,\"\",'Blank - Request Form'!T193),\"\"))","v":""},null,null,null,{"$f":"IF(M159<>\"\",'Blank - Request Form'!$M$2,\"\")","v":""},{"$f":"IF('Blank - Request Form'!$F$6=\"CICSA\",IF('Blank - Request Form'!J193=0,\"\",'Blank - Request Form'!J193),IF('Blank - Request Form'!$F$7=\"CICSA\",IF('Blank - Request Form'!S193=0,\"\",'Blank - Request Form'!S193),\"\"))","v":""},"",159]
[{"$f":"IF('Blank - Request Form'!$F$6=\"CICSA\",IF('Blank - Request Form'!D194=0,\"\",'Blank - Request Form'!D194),IF('Blank - Request Form'!$F$7=\"CICSA\",IF('Blank - Request Form'!M194=0,\"\",'Blank - Request Form'!M194),\"\"))","v":""},{"$f":"IF('Blank - Request Form'!$F$6=\"CICSA\",IF('Blank - Request Form'!E194=0,\"\",'Blank - Request Form'!E194),IF('Blank - Request Form'!$F$7=\"CICSA\",IF('Blank - Request Form'!N194=0,\"\",'Blank - Request Form'!N194),\"\"))","v":""},{"$f":"IF('Blank - Request Form'!$F$6=\"CICSA\",IF(OR('Blank - Request Form'!F194=\"000\",'Blank - Request Form'!F194=0),\"\",'Blank - Request Form'!F194),IF('Blank - Request Form'!$F$7=\"CICSA\",IF(OR('Blank - Request Form'!O194=\"000\",'Blank - Request Form'!O194=0),\"\",'Blank - Request Form'!O194),\"\"))","v":""},{"$f":"IF('Blank - Request Form'!$F$6=\"CICSA\",IF(OR('Blank - Request Form'!G194=\"0\",'Blank - Request Form'!G194=\"00000\",'Blank - Request Form'!G194=0),\"\",'Blank - Request Form'!G194),IF('Blank - Request Form'!$F$7=\"CICSA\",IF(OR('Blank - Request Form'!P194=\"0\",'Blank - Request Form'!P194=\"00000\",'Blank - Request Form'!P194=0),\"\",'Blank - Request Form'!P194),\"\"))","v":""},{"$f":"IF('Blank - Request Form'!$F$6=\"CICSA\",IF(OR('Blank - Request Form'!H194=\"0\",'Blank - Request Form'!H194=\"00000\",'Blank - Request Form'!H194=0),\"\",'Blank - Request Form'!H194),IF('Blank - Request Form'!$F$7=\"CICSA\",IF(OR('Blank - Request Form'!Q194=\"0\",'Blank - Request Form'!Q194=\"00000\",'Blank - Request Form'!Q194=0),\"\",'Blank - Request Form'!Q194),\"\"))","v":""},{"$f":"IF('Blank - Request Form'!$F$6=\"CICSA\",IF(OR('Blank - Request Form'!I194=\"0\",'Blank - Request Form'!I194=\"00000\",'Blank - Request Form'!I194=0),\"\",'Blank - Request Form'!I194),IF('Blank - Request Form'!$F$7=\"CICSA\",IF(OR('Blank - Request Form'!R194=\"0\",'Blank - Request Form'!R194=\"00000\",'Blank - Request Form'!R194=0),\"\",'Blank - Request Form'!R194),\"\"))","v":""},null,{"$f":"IF('Blank - Request Form'!$F$6=\"CICSA\",IF('Blank - Request Form'!K194=0,\"\",'Blank - Request Form'!K194),IF('Blank - Request Form'!$F$7=\"CICSA\",IF('Blank - Request Form'!T194=0,\"\",'Blank - Request Form'!T194),\"\"))","v":""},null,null,null,{"$f":"IF(M160<>\"\",'Blank - Request Form'!$M$2,\"\")","v":""},{"$f":"IF('Blank - Request Form'!$F$6=\"CICSA\",IF('Blank - Request Form'!J194=0,\"\",'Blank - Request Form'!J194),IF('Blank - Request Form'!$F$7=\"CICSA\",IF('Blank - Request Form'!S194=0,\"\",'Blank - Request Form'!S194),\"\"))","v":""},"",160]
[{"$f":"IF('Blank - Request Form'!$F$6=\"CICSA\",IF('Blank - Request Form'!D195=0,\"\",'Blank - Request Form'!D195),IF('Blank - Request Form'!$F$7=\"CICSA\",IF('Blank - Request Form'!M195=0,\"\",'Blank - Request Form'!M195),\"\"))","v":""},{"$f":"IF('Blank - Request Form'!$F$6=\"CICSA\",IF('Blank - Request Form'!E195=0,\"\",'Blank - Request Form'!E195),IF('Blank - Request Form'!$F$7=\"CICSA\",IF('Blank - Request Form'!N195=0,\"\",'Blank - Request Form'!N195),\"\"))","v":""},{"$f":"IF('Blank - Request Form'!$F$6=\"CICSA\",IF(OR('Blank - Request Form'!F195=\"000\",'Blank - Request Form'!F195=0),\"\",'Blank - Request Form'!F195),IF('Blank - Request Form'!$F$7=\"CICSA\",IF(OR('Blank - Request Form'!O195=\"000\",'Blank - Request Form'!O195=0),\"\",'Blank - Request Form'!O195),\"\"))","v":""},{"$f":"IF('Blank - Request Form'!$F$6=\"CICSA\",IF(OR('Blank - Request Form'!G195=\"0\",'Blank - Request Form'!G195=\"00000\",'Blank - Request Form'!G195=0),\"\",'Blank - Request Form'!G195),IF('Blank - Request Form'!$F$7=\"CICSA\",IF(OR('Blank - Request Form'!P195=\"0\",'Blank - Request Form'!P195=\"00000\",'Blank - Request Form'!P195=0),\"\",'Blank - Request Form'!P195),\"\"))","v":""},{"$f":"IF('Blank - Request Form'!$F$6=\"CICSA\",IF(OR('Blank - Request Form'!H195=\"0\",'Blank - Request Form'!H195=\"00000\",'Blank - Request Form'!H195=0),\"\",'Blank - Request Form'!H195),IF('Blank - Request Form'!$F$7=\"CICSA\",IF(OR('Blank - Request Form'!Q195=\"0\",'Blank - Request Form'!Q195=\"00000\",'Blank - Request Form'!Q195=0),\"\",'Blank - Request Form'!Q195),\"\"))","v":""},{"$f":"IF('Blank - Request Form'!$F$6=\"CICSA\",IF(OR('Blank - Request Form'!I195=\"0\",'Blank - Request Form'!I195=\"00000\",'Blank - Request Form'!I195=0),\"\",'Blank - Request Form'!I195),IF('Blank - Request Form'!$F$7=\"CICSA\",IF(OR('Blank - Request Form'!R195=\"0\",'Blank - Request Form'!R195=\"00000\",'Blank - Request Form'!R195=0),\"\",'Blank - Request Form'!R195),\"\"))","v":""},null,{"$f":"IF('Blank - Request Form'!$F$6=\"CICSA\",IF('Blank - Request Form'!K195=0,\"\",'Blank - Request Form'!K195),IF('Blank - Request Form'!$F$7=\"CICSA\",IF('Blank - Request Form'!T195=0,\"\",'Blank - Request Form'!T195),\"\"))","v":""},null,null,null,{"$f":"IF(M161<>\"\",'Blank - Request Form'!$M$2,\"\")","v":""},{"$f":"IF('Blank - Request Form'!$F$6=\"CICSA\",IF('Blank - Request Form'!J195=0,\"\",'Blank - Request Form'!J195),IF('Blank - Request Form'!$F$7=\"CICSA\",IF('Blank - Request Form'!S195=0,\"\",'Blank - Request Form'!S195),\"\"))","v":""},"",161]
[{"$f":"IF('Blank - Request Form'!$F$6=\"CICSA\",IF('Blank - Request Form'!D196=0,\"\",'Blank - Request Form'!D196),IF('Blank - Request Form'!$F$7=\"CICSA\",IF('Blank - Request Form'!M196=0,\"\",'Blank - Request Form'!M196),\"\"))","v":""},{"$f":"IF('Blank - Request Form'!$F$6=\"CICSA\",IF('Blank - Request Form'!E196=0,\"\",'Blank - Request Form'!E196),IF('Blank - Request Form'!$F$7=\"CICSA\",IF('Blank - Request Form'!N196=0,\"\",'Blank - Request Form'!N196),\"\"))","v":""},{"$f":"IF('Blank - Request Form'!$F$6=\"CICSA\",IF(OR('Blank - Request Form'!F196=\"000\",'Blank - Request Form'!F196=0),\"\",'Blank - Request Form'!F196),IF('Blank - Request Form'!$F$7=\"CICSA\",IF(OR('Blank - Request Form'!O196=\"000\",'Blank - Request Form'!O196=0),\"\",'Blank - Request Form'!O196),\"\"))","v":""},{"$f":"IF('Blank - Request Form'!$F$6=\"CICSA\",IF(OR('Blank - Request Form'!G196=\"0\",'Blank - Request Form'!G196=\"00000\",'Blank - Request Form'!G196=0),\"\",'Blank - Request Form'!G196),IF('Blank - Request Form'!$F$7=\"CICSA\",IF(OR('Blank - Request Form'!P196=\"0\",'Blank - Request Form'!P196=\"00000\",'Blank - Request Form'!P196=0),\"\",'Blank - Request Form'!P196),\"\"))","v":""},{"$f":"IF('Blank - Request Form'!$F$6=\"CICSA\",IF(OR('Blank - Request Form'!H196=\"0\",'Blank - Request Form'!H196=\"00000\",'Blank - Request Form'!H196=0),\"\",'Blank - Request Form'!H196),IF('Blank - Request Form'!$F$7=\"CICSA\",IF(OR('Blank - Request Form'!Q196=\"0\",'Blank - Request Form'!Q196=\"00000\",'Blank - Request Form'!Q196=0),\"\",'Blank - Request Form'!Q196),\"\"))","v":""},{"$f":"IF('Blank - Request Form'!$F$6=\"CICSA\",IF(OR('Blank - Request Form'!I196=\"0\",'Blank - Request Form'!I196=\"00000\",'Blank - Request Form'!I196=0),\"\",'Blank - Request Form'!I196),IF('Blank - Request Form'!$F$7=\"CICSA\",IF(OR('Blank - Request Form'!R196=\"0\",'Blank - Request Form'!R196=\"00000\",'Blank - Request Form'!R196=0),\"\",'Blank - Request Form'!R196),\"\"))","v":""},null,{"$f":"IF('Blank - Request Form'!$F$6=\"CICSA\",IF('Blank - Request Form'!K196=0,\"\",'Blank - Request Form'!K196),IF('Blank - Request Form'!$F$7=\"CICSA\",IF('Blank - Request Form'!T196=0,\"\",'Blank - Request Form'!T196),\"\"))","v":""},null,null,null,{"$f":"IF(M162<>\"\",'Blank - Request Form'!$M$2,\"\")","v":""},{"$f":"IF('Blank - Request Form'!$F$6=\"CICSA\",IF('Blank - Request Form'!J196=0,\"\",'Blank - Request Form'!J196),IF('Blank - Request Form'!$F$7=\"CICSA\",IF('Blank - Request Form'!S196=0,\"\",'Blank - Request Form'!S196),\"\"))","v":""},"",162]
[{"$f":"IF('Blank - Request Form'!$F$6=\"CICSA\",IF('Blank - Request Form'!D197=0,\"\",'Blank - Request Form'!D197),IF('Blank - Request Form'!$F$7=\"CICSA\",IF('Blank - Request Form'!M197=0,\"\",'Blank - Request Form'!M197),\"\"))","v":""},{"$f":"IF('Blank - Request Form'!$F$6=\"CICSA\",IF('Blank - Request Form'!E197=0,\"\",'Blank - Request Form'!E197),IF('Blank - Request Form'!$F$7=\"CICSA\",IF('Blank - Request Form'!N197=0,\"\",'Blank - Request Form'!N197),\"\"))","v":""},{"$f":"IF('Blank - Request Form'!$F$6=\"CICSA\",IF(OR('Blank - Request Form'!F197=\"000\",'Blank - Request Form'!F197=0),\"\",'Blank - Request Form'!F197),IF('Blank - Request Form'!$F$7=\"CICSA\",IF(OR('Blank - Request Form'!O197=\"000\",'Blank - Request Form'!O197=0),\"\",'Blank - Request Form'!O197),\"\"))","v":""},{"$f":"IF('Blank - Request Form'!$F$6=\"CICSA\",IF(OR('Blank - Request Form'!G197=\"0\",'Blank - Request Form'!G197=\"00000\",'Blank - Request Form'!G197=0),\"\",'Blank - Request Form'!G197),IF('Blank - Request Form'!$F$7=\"CICSA\",IF(OR('Blank - Request Form'!P197=\"0\",'Blank - Request Form'!P197=\"00000\",'Blank - Request Form'!P197=0),\"\",'Blank - Request Form'!P197),\"\"))","v":""},{"$f":"IF('Blank - Request Form'!$F$6=\"CICSA\",IF(OR('Blank - Request Form'!H197=\"0\",'Blank - Request Form'!H197=\"00000\",'Blank - Request Form'!H197=0),\"\",'Blank - Request Form'!H197),IF('Blank - Request Form'!$F$7=\"CICSA\",IF(OR('Blank - Request Form'!Q197=\"0\",'Blank - Request Form'!Q197=\"00000\",'Blank - Request Form'!Q197=0),\"\",'Blank - Request Form'!Q197),\"\"))","v":""},{"$f":"IF('Blank - Request Form'!$F$6=\"CICSA\",IF(OR('Blank - Request Form'!I197=\"0\",'Blank - Request Form'!I197=\"00000\",'Blank - Request Form'!I197=0),\"\",'Blank - Request Form'!I197),IF('Blank - Request Form'!$F$7=\"CICSA\",IF(OR('Blank - Request Form'!R197=\"0\",'Blank - Request Form'!R197=\"00000\",'Blank - Request Form'!R197=0),\"\",'Blank - Request Form'!R197),\"\"))","v":""},null,{"$f":"IF('Blank - Request Form'!$F$6=\"CICSA\",IF('Blank - Request Form'!K197=0,\"\",'Blank - Request Form'!K197),IF('Blank - Request Form'!$F$7=\"CICSA\",IF('Blank - Request Form'!T197=0,\"\",'Blank - Request Form'!T197),\"\"))","v":""},null,null,null,{"$f":"IF(M163<>\"\",'Blank - Request Form'!$M$2,\"\")","v":""},{"$f":"IF('Blank - Request Form'!$F$6=\"CICSA\",IF('Blank - Request Form'!J197=0,\"\",'Blank - Request Form'!J197),IF('Blank - Request Form'!$F$7=\"CICSA\",IF('Blank - Request Form'!S197=0,\"\",'Blank - Request Form'!S197),\"\"))","v":""},"",163]
[{"$f":"IF('Blank - Request Form'!$F$6=\"CICSA\",IF('Blank - Request Form'!D198=0,\"\",'Blank - Request Form'!D198),IF('Blank - Request Form'!$F$7=\"CICSA\",IF('Blank - Request Form'!M198=0,\"\",'Blank - Request Form'!M198),\"\"))","v":""},{"$f":"IF('Blank - Request Form'!$F$6=\"CICSA\",IF('Blank - Request Form'!E198=0,\"\",'Blank - Request Form'!E198),IF('Blank - Request Form'!$F$7=\"CICSA\",IF('Blank - Request Form'!N198=0,\"\",'Blank - Request Form'!N198),\"\"))","v":""},{"$f":"IF('Blank - Request Form'!$F$6=\"CICSA\",IF(OR('Blank - Request Form'!F198=\"000\",'Blank - Request Form'!F198=0),\"\",'Blank - Request Form'!F198),IF('Blank - Request Form'!$F$7=\"CICSA\",IF(OR('Blank - Request Form'!O198=\"000\",'Blank - Request Form'!O198=0),\"\",'Blank - Request Form'!O198),\"\"))","v":""},{"$f":"IF('Blank - Request Form'!$F$6=\"CICSA\",IF(OR('Blank - Request Form'!G198=\"0\",'Blank - Request Form'!G198=\"00000\",'Blank - Request Form'!G198=0),\"\",'Blank - Request Form'!G198),IF('Blank - Request Form'!$F$7=\"CICSA\",IF(OR('Blank - Request Form'!P198=\"0\",'Blank - Request Form'!P198=\"00000\",'Blank - Request Form'!P198=0),\"\",'Blank - Request Form'!P198),\"\"))","v":""},{"$f":"IF('Blank - Request Form'!$F$6=\"CICSA\",IF(OR('Blank - Request Form'!H198=\"0\",'Blank - Request Form'!H198=\"00000\",'Blank - Request Form'!H198=0),\"\",'Blank - Request Form'!H198),IF('Blank - Request Form'!$F$7=\"CICSA\",IF(OR('Blank - Request Form'!Q198=\"0\",'Blank - Request Form'!Q198=\"00000\",'Blank - Request Form'!Q198=0),\"\",'Blank - Request Form'!Q198),\"\"))","v":""},{"$f":"IF('Blank - Request Form'!$F$6=\"CICSA\",IF(OR('Blank - Request Form'!I198=\"0\",'Blank - Request Form'!I198=\"00000\",'Blank - Request Form'!I198=0),\"\",'Blank - Request Form'!I198),IF('Blank - Request Form'!$F$7=\"CICSA\",IF(OR('Blank - Request Form'!R198=\"0\",'Blank - Request Form'!R198=\"00000\",'Blank - Request Form'!R198=0),\"\",'Blank - Request Form'!R198),\"\"))","v":""},null,{"$f":"IF('Blank - Request Form'!$F$6=\"CICSA\",IF('Blank - Request Form'!K198=0,\"\",'Blank - Request Form'!K198),IF('Blank - Request Form'!$F$7=\"CICSA\",IF('Blank - Request Form'!T198=0,\"\",'Blank - Request Form'!T198),\"\"))","v":""},null,null,null,{"$f":"IF(M164<>\"\",'Blank - Request Form'!$M$2,\"\")","v":""},{"$f":"IF('Blank - Request Form'!$F$6=\"CICSA\",IF('Blank - Request Form'!J198=0,\"\",'Blank - Request Form'!J198),IF('Blank - Request Form'!$F$7=\"CICSA\",IF('Blank - Request Form'!S198=0,\"\",'Blank - Request Form'!S198),\"\"))","v":""},"",164]
[{"$f":"IF('Blank - Request Form'!$F$6=\"CICSA\",IF('Blank - Request Form'!D199=0,\"\",'Blank - Request Form'!D199),IF('Blank - Request Form'!$F$7=\"CICSA\",IF('Blank - Request Form'!M199=0,\"\",'Blank - Request Form'!M199),\"\"))","v":""},{"$f":"IF('Blank - Request Form'!$F$6=\"CICSA\",IF('Blank - Request Form'!E199=0,\"\",'Blank - Request Form'!E199),IF('Blank - Request Form'!$F$7=\"CICSA\",IF('Blank - Request Form'!N199=0,\"\",'Blank - Request Form'!N199),\"\"))","v":""},{"$f":"IF('Blank - Request Form'!$F$6=\"CICSA\",IF(OR('Blank - Request Form'!F199=\"000\",'Blank - Request Form'!F199=0),\"\",'Blank - Request Form'!F199),IF('Blank - Request Form'!$F$7=\"CICSA\",IF(OR('Blank - Request Form'!O199=\"000\",'Blank - Request Form'!O199=0),\"\",'Blank - Request Form'!O199),\"\"))","v":""},{"$f":"IF('Blank - Request Form'!$F$6=\"CICSA\",IF(OR('Blank - Request Form'!G199=\"0\",'Blank - Request Form'!G199=\"00000\",'Blank - Request Form'!G199=0),\"\",'Blank - Request Form'!G199),IF('Blank - Request Form'!$F$7=\"CICSA\",IF(OR('Blank - Request Form'!P199=\"0\",'Blank - Request Form'!P199=\"00000\",'Blank - Request Form'!P199=0),\"\",'Blank - Request Form'!P199),\"\"))","v":""},{"$f":"IF('Blank - Request Form'!$F$6=\"CICSA\",IF(OR('Blank - Request Form'!H199=\"0\",'Blank - Request Form'!H199=\"00000\",'Blank - Request Form'!H199=0),\"\",'Blank - Request Form'!H199),IF('Blank - Request Form'!$F$7=\"CICSA\",IF(OR('Blank - Request Form'!Q199=\"0\",'Blank - Request Form'!Q199=\"00000\",'Blank - Request Form'!Q199=0),\"\",'Blank - Request Form'!Q199),\"\"))","v":""},{"$f":"IF('Blank - Request Form'!$F$6=\"CICSA\",IF(OR('Blank - Request Form'!I199=\"0\",'Blank - Request Form'!I199=\"00000\",'Blank - Request Form'!I199=0),\"\",'Blank - Request Form'!I199),IF('Blank - Request Form'!$F$7=\"CICSA\",IF(OR('Blank - Request Form'!R199=\"0\",'Blank - Request Form'!R199=\"00000\",'Blank - Request Form'!R199=0),\"\",'Blank - Request Form'!R199),\"\"))","v":""},null,{"$f":"IF('Blank - Request Form'!$F$6=\"CICSA\",IF('Blank - Request Form'!K199=0,\"\",'Blank - Request Form'!K199),IF('Blank - Request Form'!$F$7=\"CICSA\",IF('Blank - Request Form'!T199=0,\"\",'Blank - Request Form'!T199),\"\"))","v":""},null,null,null,{"$f":"IF(M165<>\"\",'Blank - Request Form'!$M$2,\"\")","v":""},{"$f":"IF('Blank - Request Form'!$F$6=\"CICSA\",IF('Blank - Request Form'!J199=0,\"\",'Blank - Request Form'!J199),IF('Blank - Request Form'!$F$7=\"CICSA\",IF('Blank - Request Form'!S199=0,\"\",'Blank - Request Form'!S199),\"\"))","v":""},"",165]
[{"$f":"IF('Blank - Request Form'!$F$6=\"CICSA\",IF('Blank - Request Form'!D200=0,\"\",'Blank - Request Form'!D200),IF('Blank - Request Form'!$F$7=\"CICSA\",IF('Blank - Request Form'!M200=0,\"\",'Blank - Request Form'!M200),\"\"))","v":""},{"$f":"IF('Blank - Request Form'!$F$6=\"CICSA\",IF('Blank - Request Form'!E200=0,\"\",'Blank - Request Form'!E200),IF('Blank - Request Form'!$F$7=\"CICSA\",IF('Blank - Request Form'!N200=0,\"\",'Blank - Request Form'!N200),\"\"))","v":""},{"$f":"IF('Blank - Request Form'!$F$6=\"CICSA\",IF(OR('Blank - Request Form'!F200=\"000\",'Blank - Request Form'!F200=0),\"\",'Blank - Request Form'!F200),IF('Blank - Request Form'!$F$7=\"CICSA\",IF(OR('Blank - Request Form'!O200=\"000\",'Blank - Request Form'!O200=0),\"\",'Blank - Request Form'!O200),\"\"))","v":""},{"$f":"IF('Blank - Request Form'!$F$6=\"CICSA\",IF(OR('Blank - Request Form'!G200=\"0\",'Blank - Request Form'!G200=\"00000\",'Blank - Request Form'!G200=0),\"\",'Blank - Request Form'!G200),IF('Blank - Request Form'!$F$7=\"CICSA\",IF(OR('Blank - Request Form'!P200=\"0\",'Blank - Request Form'!P200=\"00000\",'Blank - Request Form'!P200=0),\"\",'Blank - Request Form'!P200),\"\"))","v":""},{"$f":"IF('Blank - Request Form'!$F$6=\"CICSA\",IF(OR('Blank - Request Form'!H200=\"0\",'Blank - Request Form'!H200=\"00000\",'Blank - Request Form'!H200=0),\"\",'Blank - Request Form'!H200),IF('Blank - Request Form'!$F$7=\"CICSA\",IF(OR('Blank - Request Form'!Q200=\"0\",'Blank - Request Form'!Q200=\"00000\",'Blank - Request Form'!Q200=0),\"\",'Blank - Request Form'!Q200),\"\"))","v":""},{"$f":"IF('Blank - Request Form'!$F$6=\"CICSA\",IF(OR('Blank - Request Form'!I200=\"0\",'Blank - Request Form'!I200=\"00000\",'Blank - Request Form'!I200=0),\"\",'Blank - Request Form'!I200),IF('Blank - Request Form'!$F$7=\"CICSA\",IF(OR('Blank - Request Form'!R200=\"0\",'Blank - Request Form'!R200=\"00000\",'Blank - Request Form'!R200=0),\"\",'Blank - Request Form'!R200),\"\"))","v":""},null,{"$f":"IF('Blank - Request Form'!$F$6=\"CICSA\",IF('Blank - Request Form'!K200=0,\"\",'Blank - Request Form'!K200),IF('Blank - Request Form'!$F$7=\"CICSA\",IF('Blank - Request Form'!T200=0,\"\",'Blank - Request Form'!T200),\"\"))","v":""},null,null,null,{"$f":"IF(M166<>\"\",'Blank - Request Form'!$M$2,\"\")","v":""},{"$f":"IF('Blank - Request Form'!$F$6=\"CICSA\",IF('Blank - Request Form'!J200=0,\"\",'Blank - Request Form'!J200),IF('Blank - Request Form'!$F$7=\"CICSA\",IF('Blank - Request Form'!S200=0,\"\",'Blank - Request Form'!S200),\"\"))","v":""},"",166]
[{"$f":"IF('Blank - Request Form'!$F$6=\"CICSA\",IF('Blank - Request Form'!D201=0,\"\",'Blank - Request Form'!D201),IF('Blank - Request Form'!$F$7=\"CICSA\",IF('Blank - Request Form'!M201=0,\"\",'Blank - Request Form'!M201),\"\"))","v":""},{"$f":"IF('Blank - Request Form'!$F$6=\"CICSA\",IF('Blank - Request Form'!E201=0,\"\",'Blank - Request Form'!E201),IF('Blank - Request Form'!$F$7=\"CICSA\",IF('Blank - Request Form'!N201=0,\"\",'Blank - Request Form'!N201),\"\"))","v":""},{"$f":"IF('Blank - Request Form'!$F$6=\"CICSA\",IF(OR('Blank - Request Form'!F201=\"000\",'Blank - Request Form'!F201=0),\"\",'Blank - Request Form'!F201),IF('Blank - Request Form'!$F$7=\"CICSA\",IF(OR('Blank - Request Form'!O201=\"000\",'Blank - Request Form'!O201=0),\"\",'Blank - Request Form'!O201),\"\"))","v":""},{"$f":"IF('Blank - Request Form'!$F$6=\"CICSA\",IF(OR('Blank - Request Form'!G201=\"0\",'Blank - Request Form'!G201=\"00000\",'Blank - Request Form'!G201=0),\"\",'Blank - Request Form'!G201),IF('Blank - Request Form'!$F$7=\"CICSA\",IF(OR('Blank - Request Form'!P201=\"0\",'Blank - Request Form'!P201=\"00000\",'Blank - Request Form'!P201=0),\"\",'Blank - Request Form'!P201),\"\"))","v":""},{"$f":"IF('Blank - Request Form'!$F$6=\"CICSA\",IF(OR('Blank - Request Form'!H201=\"0\",'Blank - Request Form'!H201=\"00000\",'Blank - Request Form'!H201=0),\"\",'Blank - Request Form'!H201),IF('Blank - Request Form'!$F$7=\"CICSA\",IF(OR('Blank - Request Form'!Q201=\"0\",'Blank - Request Form'!Q201=\"00000\",'Blank - Request Form'!Q201=0),\"\",'Blank - Request Form'!Q201),\"\"))","v":""},{"$f":"IF('Blank - Request Form'!$F$6=\"CICSA\",IF(OR('Blank - Request Form'!I201=\"0\",'Blank - Request Form'!I201=\"00000\",'Blank - Request Form'!I201=0),\"\",'Blank - Request Form'!I201),IF('Blank - Request Form'!$F$7=\"CICSA\",IF(OR('Blank - Request Form'!R201=\"0\",'Blank - Request Form'!R201=\"00000\",'Blank - Request Form'!R201=0),\"\",'Blank - Request Form'!R201),\"\"))","v":""},null,{"$f":"IF('Blank - Request Form'!$F$6=\"CICSA\",IF('Blank - Request Form'!K201=0,\"\",'Blank - Request Form'!K201),IF('Blank - Request Form'!$F$7=\"CICSA\",IF('Blank - Request Form'!T201=0,\"\",'Blank - Request Form'!T201),\"\"))","v":""},null,null,null,{"$f":"IF(M167<>\"\",'Blank - Request Form'!$M$2,\"\")","v":""},{"$f":"IF('Blank - Request Form'!$F$6=\"CICSA\",IF('Blank - Request Form'!J201=0,\"\",'Blank - Request Form'!J201),IF('Blank - Request Form'!$F$7=\"CICSA\",IF('Blank - Request Form'!S201=0,\"\",'Blank - Request Form'!S201),\"\"))","v":""},"",167]
[{"$f":"IF('Blank - Request Form'!$F$6=\"CICSA\",IF('Blank - Request Form'!D202=0,\"\",'Blank - Request Form'!D202),IF('Blank - Request Form'!$F$7=\"CICSA\",IF('Blank - Request Form'!M202=0,\"\",'Blank - Request Form'!M202),\"\"))","v":""},{"$f":"IF('Blank - Request Form'!$F$6=\"CICSA\",IF('Blank - Request Form'!E202=0,\"\",'Blank - Request Form'!E202),IF('Blank - Request Form'!$F$7=\"CICSA\",IF('Blank - Request Form'!N202=0,\"\",'Blank - Request Form'!N202),\"\"))","v":""},{"$f":"IF('Blank - Request Form'!$F$6=\"CICSA\",IF(OR('Blank - Request Form'!F202=\"000\",'Blank - Request Form'!F202=0),\"\",'Blank - Request Form'!F202),IF('Blank - Request Form'!$F$7=\"CICSA\",IF(OR('Blank - Request Form'!O202=\"000\",'Blank - Request Form'!O202=0),\"\",'Blank - Request Form'!O202),\"\"))","v":""},{"$f":"IF('Blank - Request Form'!$F$6=\"CICSA\",IF(OR('Blank - Request Form'!G202=\"0\",'Blank - Request Form'!G202=\"00000\",'Blank - Request Form'!G202=0),\"\",'Blank - Request Form'!G202),IF('Blank - Request Form'!$F$7=\"CICSA\",IF(OR('Blank - Request Form'!P202=\"0\",'Blank - Request Form'!P202=\"00000\",'Blank - Request Form'!P202=0),\"\",'Blank - Request Form'!P202),\"\"))","v":""},{"$f":"IF('Blank - Request Form'!$F$6=\"CICSA\",IF(OR('Blank - Request Form'!H202=\"0\",'Blank - Request Form'!H202=\"00000\",'Blank - Request Form'!H202=0),\"\",'Blank - Request Form'!H202),IF('Blank - Request Form'!$F$7=\"CICSA\",IF(OR('Blank - Request Form'!Q202=\"0\",'Blank - Request Form'!Q202=\"00000\",'Blank - Request Form'!Q202=0),\"\",'Blank - Request Form'!Q202),\"\"))","v":""},{"$f":"IF('Blank - Request Form'!$F$6=\"CICSA\",IF(OR('Blank - Request Form'!I202=\"0\",'Blank - Request Form'!I202=\"00000\",'Blank - Request Form'!I202=0),\"\",'Blank - Request Form'!I202),IF('Blank - Request Form'!$F$7=\"CICSA\",IF(OR('Blank - Request Form'!R202=\"0\",'Blank - Request Form'!R202=\"00000\",'Blank - Request Form'!R202=0),\"\",'Blank - Request Form'!R202),\"\"))","v":""},null,{"$f":"IF('Blank - Request Form'!$F$6=\"CICSA\",IF('Blank - Request Form'!K202=0,\"\",'Blank - Request Form'!K202),IF('Blank - Request Form'!$F$7=\"CICSA\",IF('Blank - Request Form'!T202=0,\"\",'Blank - Request Form'!T202),\"\"))","v":""},null,null,null,{"$f":"IF(M168<>\"\",'Blank - Request Form'!$M$2,\"\")","v":""},{"$f":"IF('Blank - Request Form'!$F$6=\"CICSA\",IF('Blank - Request Form'!J202=0,\"\",'Blank - Request Form'!J202),IF('Blank - Request Form'!$F$7=\"CICSA\",IF('Blank - Request Form'!S202=0,\"\",'Blank - Request Form'!S202),\"\"))","v":""},"",168]
[{"$f":"IF('Blank - Request Form'!$F$6=\"CICSA\",IF('Blank - Request Form'!D203=0,\"\",'Blank - Request Form'!D203),IF('Blank - Request Form'!$F$7=\"CICSA\",IF('Blank - Request Form'!M203=0,\"\",'Blank - Request Form'!M203),\"\"))","v":""},{"$f":"IF('Blank - Request Form'!$F$6=\"CICSA\",IF('Blank - Request Form'!E203=0,\"\",'Blank - Request Form'!E203),IF('Blank - Request Form'!$F$7=\"CICSA\",IF('Blank - Request Form'!N203=0,\"\",'Blank - Request Form'!N203),\"\"))","v":""},{"$f":"IF('Blank - Request Form'!$F$6=\"CICSA\",IF(OR('Blank - Request Form'!F203=\"000\",'Blank - Request Form'!F203=0),\"\",'Blank - Request Form'!F203),IF('Blank - Request Form'!$F$7=\"CICSA\",IF(OR('Blank - Request Form'!O203=\"000\",'Blank - Request Form'!O203=0),\"\",'Blank - Request Form'!O203),\"\"))","v":""},{"$f":"IF('Blank - Request Form'!$F$6=\"CICSA\",IF(OR('Blank - Request Form'!G203=\"0\",'Blank - Request Form'!G203=\"00000\",'Blank - Request Form'!G203=0),\"\",'Blank - Request Form'!G203),IF('Blank - Request Form'!$F$7=\"CICSA\",IF(OR('Blank - Request Form'!P203=\"0\",'Blank - Request Form'!P203=\"00000\",'Blank - Request Form'!P203=0),\"\",'Blank - Request Form'!P203),\"\"))","v":""},{"$f":"IF('Blank - Request Form'!$F$6=\"CICSA\",IF(OR('Blank - Request Form'!H203=\"0\",'Blank - Request Form'!H203=\"00000\",'Blank - Request Form'!H203=0),\"\",'Blank - Request Form'!H203),IF('Blank - Request Form'!$F$7=\"CICSA\",IF(OR('Blank - Request Form'!Q203=\"0\",'Blank - Request Form'!Q203=\"00000\",'Blank - Request Form'!Q203=0),\"\",'Blank - Request Form'!Q203),\"\"))","v":""},{"$f":"IF('Blank - Request Form'!$F$6=\"CICSA\",IF(OR('Blank - Request Form'!I203=\"0\",'Blank - Request Form'!I203=\"00000\",'Blank - Request Form'!I203=0),\"\",'Blank - Request Form'!I203),IF('Blank - Request Form'!$F$7=\"CICSA\",IF(OR('Blank - Request Form'!R203=\"0\",'Blank - Request Form'!R203=\"00000\",'Blank - Request Form'!R203=0),\"\",'Blank - Request Form'!R203),\"\"))","v":""},null,{"$f":"IF('Blank - Request Form'!$F$6=\"CICSA\",IF('Blank - Request Form'!K203=0,\"\",'Blank - Request Form'!K203),IF('Blank - Request Form'!$F$7=\"CICSA\",IF('Blank - Request Form'!T203=0,\"\",'Blank - Request Form'!T203),\"\"))","v":""},null,null,null,{"$f":"IF(M169<>\"\",'Blank - Request Form'!$M$2,\"\")","v":""},{"$f":"IF('Blank - Request Form'!$F$6=\"CICSA\",IF('Blank - Request Form'!J203=0,\"\",'Blank - Request Form'!J203),IF('Blank - Request Form'!$F$7=\"CICSA\",IF('Blank - Request Form'!S203=0,\"\",'Blank - Request Form'!S203),\"\"))","v":""},"",169]
[{"$f":"IF('Blank - Request Form'!$F$6=\"CICSA\",IF('Blank - Request Form'!D204=0,\"\",'Blank - Request Form'!D204),IF('Blank - Request Form'!$F$7=\"CICSA\",IF('Blank - Request Form'!M204=0,\"\",'Blank - Request Form'!M204),\"\"))","v":""},{"$f":"IF('Blank - Request Form'!$F$6=\"CICSA\",IF('Blank - Request Form'!E204=0,\"\",'Blank - Request Form'!E204),IF('Blank - Request Form'!$F$7=\"CICSA\",IF('Blank - Request Form'!N204=0,\"\",'Blank - Request Form'!N204),\"\"))","v":""},{"$f":"IF('Blank - Request Form'!$F$6=\"CICSA\",IF(OR('Blank - Request Form'!F204=\"000\",'Blank - Request Form'!F204=0),\"\",'Blank - Request Form'!F204),IF('Blank - Request Form'!$F$7=\"CICSA\",IF(OR('Blank - Request Form'!O204=\"000\",'Blank - Request Form'!O204=0),\"\",'Blank - Request Form'!O204),\"\"))","v":""},{"$f":"IF('Blank - Request Form'!$F$6=\"CICSA\",IF(OR('Blank - Request Form'!G204=\"0\",'Blank - Request Form'!G204=\"00000\",'Blank - Request Form'!G204=0),\"\",'Blank - Request Form'!G204),IF('Blank - Request Form'!$F$7=\"CICSA\",IF(OR('Blank - Request Form'!P204=\"0\",'Blank - Request Form'!P204=\"00000\",'Blank - Request Form'!P204=0),\"\",'Blank - Request Form'!P204),\"\"))","v":""},{"$f":"IF('Blank - Request Form'!$F$6=\"CICSA\",IF(OR('Blank - Request Form'!H204=\"0\",'Blank - Request Form'!H204=\"00000\",'Blank - Request Form'!H204=0),\"\",'Blank - Request Form'!H204),IF('Blank - Request Form'!$F$7=\"CICSA\",IF(OR('Blank - Request Form'!Q204=\"0\",'Blank - Request Form'!Q204=\"00000\",'Blank - Request Form'!Q204=0),\"\",'Blank - Request Form'!Q204),\"\"))","v":""},{"$f":"IF('Blank - Request Form'!$F$6=\"CICSA\",IF(OR('Blank - Request Form'!I204=\"0\",'Blank - Request Form'!I204=\"00000\",'Blank - Request Form'!I204=0),\"\",'Blank - Request Form'!I204),IF('Blank - Request Form'!$F$7=\"CICSA\",IF(OR('Blank - Request Form'!R204=\"0\",'Blank - Request Form'!R204=\"00000\",'Blank - Request Form'!R204=0),\"\",'Blank - Request Form'!R204),\"\"))","v":""},null,{"$f":"IF('Blank - Request Form'!$F$6=\"CICSA\",IF('Blank - Request Form'!K204=0,\"\",'Blank - Request Form'!K204),IF('Blank - Request Form'!$F$7=\"CICSA\",IF('Blank - Request Form'!T204=0,\"\",'Blank - Request Form'!T204),\"\"))","v":""},null,null,null,{"$f":"IF(M170<>\"\",'Blank - Request Form'!$M$2,\"\")","v":""},{"$f":"IF('Blank - Request Form'!$F$6=\"CICSA\",IF('Blank - Request Form'!J204=0,\"\",'Blank - Request Form'!J204),IF('Blank - Request Form'!$F$7=\"CICSA\",IF('Blank - Request Form'!S204=0,\"\",'Blank - Request Form'!S204),\"\"))","v":""},"",170]
[{"$f":"IF('Blank - Request Form'!$F$6=\"CICSA\",IF('Blank - Request Form'!D205=0,\"\",'Blank - Request Form'!D205),IF('Blank - Request Form'!$F$7=\"CICSA\",IF('Blank - Request Form'!M205=0,\"\",'Blank - Request Form'!M205),\"\"))","v":""},{"$f":"IF('Blank - Request Form'!$F$6=\"CICSA\",IF('Blank - Request Form'!E205=0,\"\",'Blank - Request Form'!E205),IF('Blank - Request Form'!$F$7=\"CICSA\",IF('Blank - Request Form'!N205=0,\"\",'Blank - Request Form'!N205),\"\"))","v":""},{"$f":"IF('Blank - Request Form'!$F$6=\"CICSA\",IF(OR('Blank - Request Form'!F205=\"000\",'Blank - Request Form'!F205=0),\"\",'Blank - Request Form'!F205),IF('Blank - Request Form'!$F$7=\"CICSA\",IF(OR('Blank - Request Form'!O205=\"000\",'Blank - Request Form'!O205=0),\"\",'Blank - Request Form'!O205),\"\"))","v":""},{"$f":"IF('Blank - Request Form'!$F$6=\"CICSA\",IF(OR('Blank - Request Form'!G205=\"0\",'Blank - Request Form'!G205=\"00000\",'Blank - Request Form'!G205=0),\"\",'Blank - Request Form'!G205),IF('Blank - Request Form'!$F$7=\"CICSA\",IF(OR('Blank - Request Form'!P205=\"0\",'Blank - Request Form'!P205=\"00000\",'Blank - Request Form'!P205=0),\"\",'Blank - Request Form'!P205),\"\"))","v":""},{"$f":"IF('Blank - Request Form'!$F$6=\"CICSA\",IF(OR('Blank - Request Form'!H205=\"0\",'Blank - Request Form'!H205=\"00000\",'Blank - Request Form'!H205=0),\"\",'Blank - Request Form'!H205),IF('Blank - Request Form'!$F$7=\"CICSA\",IF(OR('Blank - Request Form'!Q205=\"0\",'Blank - Request Form'!Q205=\"00000\",'Blank - Request Form'!Q205=0),\"\",'Blank - Request Form'!Q205),\"\"))","v":""},{"$f":"IF('Blank - Request Form'!$F$6=\"CICSA\",IF(OR('Blank - Request Form'!I205=\"0\",'Blank - Request Form'!I205=\"00000\",'Blank - Request Form'!I205=0),\"\",'Blank - Request Form'!I205),IF('Blank - Request Form'!$F$7=\"CICSA\",IF(OR('Blank - Request Form'!R205=\"0\",'Blank - Request Form'!R205=\"00000\",'Blank - Request Form'!R205=0),\"\",'Blank - Request Form'!R205),\"\"))","v":""},null,{"$f":"IF('Blank - Request Form'!$F$6=\"CICSA\",IF('Blank - Request Form'!K205=0,\"\",'Blank - Request Form'!K205),IF('Blank - Request Form'!$F$7=\"CICSA\",IF('Blank - Request Form'!T205=0,\"\",'Blank - Request Form'!T205),\"\"))","v":""},null,null,null,{"$f":"IF(M171<>\"\",'Blank - Request Form'!$M$2,\"\")","v":""},{"$f":"IF('Blank - Request Form'!$F$6=\"CICSA\",IF('Blank - Request Form'!J205=0,\"\",'Blank - Request Form'!J205),IF('Blank - Request Form'!$F$7=\"CICSA\",IF('Blank - Request Form'!S205=0,\"\",'Blank - Request Form'!S205),\"\"))","v":""},"",171]
[{"$f":"IF('Blank - Request Form'!$F$6=\"CICSA\",IF('Blank - Request Form'!D206=0,\"\",'Blank - Request Form'!D206),IF('Blank - Request Form'!$F$7=\"CICSA\",IF('Blank - Request Form'!M206=0,\"\",'Blank - Request Form'!M206),\"\"))","v":""},{"$f":"IF('Blank - Request Form'!$F$6=\"CICSA\",IF('Blank - Request Form'!E206=0,\"\",'Blank - Request Form'!E206),IF('Blank - Request Form'!$F$7=\"CICSA\",IF('Blank - Request Form'!N206=0,\"\",'Blank - Request Form'!N206),\"\"))","v":""},{"$f":"IF('Blank - Request Form'!$F$6=\"CICSA\",IF(OR('Blank - Request Form'!F206=\"000\",'Blank - Request Form'!F206=0),\"\",'Blank - Request Form'!F206),IF('Blank - Request Form'!$F$7=\"CICSA\",IF(OR('Blank - Request Form'!O206=\"000\",'Blank - Request Form'!O206=0),\"\",'Blank - Request Form'!O206),\"\"))","v":""},{"$f":"IF('Blank - Request Form'!$F$6=\"CICSA\",IF(OR('Blank - Request Form'!G206=\"0\",'Blank - Request Form'!G206=\"00000\",'Blank - Request Form'!G206=0),\"\",'Blank - Request Form'!G206),IF('Blank - Request Form'!$F$7=\"CICSA\",IF(OR('Blank - Request Form'!P206=\"0\",'Blank - Request Form'!P206=\"00000\",'Blank - Request Form'!P206=0),\"\",'Blank - Request Form'!P206),\"\"))","v":""},{"$f":"IF('Blank - Request Form'!$F$6=\"CICSA\",IF(OR('Blank - Request Form'!H206=\"0\",'Blank - Request Form'!H206=\"00000\",'Blank - Request Form'!H206=0),\"\",'Blank - Request Form'!H206),IF('Blank - Request Form'!$F$7=\"CICSA\",IF(OR('Blank - Request Form'!Q206=\"0\",'Blank - Request Form'!Q206=\"00000\",'Blank - Request Form'!Q206=0),\"\",'Blank - Request Form'!Q206),\"\"))","v":""},{"$f":"IF('Blank - Request Form'!$F$6=\"CICSA\",IF(OR('Blank - Request Form'!I206=\"0\",'Blank - Request Form'!I206=\"00000\",'Blank - Request Form'!I206=0),\"\",'Blank - Request Form'!I206),IF('Blank - Request Form'!$F$7=\"CICSA\",IF(OR('Blank - Request Form'!R206=\"0\",'Blank - Request Form'!R206=\"00000\",'Blank - Request Form'!R206=0),\"\",'Blank - Request Form'!R206),\"\"))","v":""},null,{"$f":"IF('Blank - Request Form'!$F$6=\"CICSA\",IF('Blank - Request Form'!K206=0,\"\",'Blank - Request Form'!K206),IF('Blank - Request Form'!$F$7=\"CICSA\",IF('Blank - Request Form'!T206=0,\"\",'Blank - Request Form'!T206),\"\"))","v":""},null,null,null,{"$f":"IF(M172<>\"\",'Blank - Request Form'!$M$2,\"\")","v":""},{"$f":"IF('Blank - Request Form'!$F$6=\"CICSA\",IF('Blank - Request Form'!J206=0,\"\",'Blank - Request Form'!J206),IF('Blank - Request Form'!$F$7=\"CICSA\",IF('Blank - Request Form'!S206=0,\"\",'Blank - Request Form'!S206),\"\"))","v":""},"",172]
[{"$f":"IF('Blank - Request Form'!$F$6=\"CICSA\",IF('Blank - Request Form'!D207=0,\"\",'Blank - Request Form'!D207),IF('Blank - Request Form'!$F$7=\"CICSA\",IF('Blank - Request Form'!M207=0,\"\",'Blank - Request Form'!M207),\"\"))","v":""},{"$f":"IF('Blank - Request Form'!$F$6=\"CICSA\",IF('Blank - Request Form'!E207=0,\"\",'Blank - Request Form'!E207),IF('Blank - Request Form'!$F$7=\"CICSA\",IF('Blank - Request Form'!N207=0,\"\",'Blank - Request Form'!N207),\"\"))","v":""},{"$f":"IF('Blank - Request Form'!$F$6=\"CICSA\",IF(OR('Blank - Request Form'!F207=\"000\",'Blank - Request Form'!F207=0),\"\",'Blank - Request Form'!F207),IF('Blank - Request Form'!$F$7=\"CICSA\",IF(OR('Blank - Request Form'!O207=\"000\",'Blank - Request Form'!O207=0),\"\",'Blank - Request Form'!O207),\"\"))","v":""},{"$f":"IF('Blank - Request Form'!$F$6=\"CICSA\",IF(OR('Blank - Request Form'!G207=\"0\",'Blank - Request Form'!G207=\"00000\",'Blank - Request Form'!G207=0),\"\",'Blank - Request Form'!G207),IF('Blank - Request Form'!$F$7=\"CICSA\",IF(OR('Blank - Request Form'!P207=\"0\",'Blank - Request Form'!P207=\"00000\",'Blank - Request Form'!P207=0),\"\",'Blank - Request Form'!P207),\"\"))","v":""},{"$f":"IF('Blank - Request Form'!$F$6=\"CICSA\",IF(OR('Blank - Request Form'!H207=\"0\",'Blank - Request Form'!H207=\"00000\",'Blank - Request Form'!H207=0),\"\",'Blank - Request Form'!H207),IF('Blank - Request Form'!$F$7=\"CICSA\",IF(OR('Blank - Request Form'!Q207=\"0\",'Blank - Request Form'!Q207=\"00000\",'Blank - Request Form'!Q207=0),\"\",'Blank - Request Form'!Q207),\"\"))","v":""},{"$f":"IF('Blank - Request Form'!$F$6=\"CICSA\",IF(OR('Blank - Request Form'!I207=\"0\",'Blank - Request Form'!I207=\"00000\",'Blank - Request Form'!I207=0),\"\",'Blank - Request Form'!I207),IF('Blank - Request Form'!$F$7=\"CICSA\",IF(OR('Blank - Request Form'!R207=\"0\",'Blank - Request Form'!R207=\"00000\",'Blank - Request Form'!R207=0),\"\",'Blank - Request Form'!R207),\"\"))","v":""},null,{"$f":"IF('Blank - Request Form'!$F$6=\"CICSA\",IF('Blank - Request Form'!K207=0,\"\",'Blank - Request Form'!K207),IF('Blank - Request Form'!$F$7=\"CICSA\",IF('Blank - Request Form'!T207=0,\"\",'Blank - Request Form'!T207),\"\"))","v":""},null,null,null,{"$f":"IF(M173<>\"\",'Blank - Request Form'!$M$2,\"\")","v":""},{"$f":"IF('Blank - Request Form'!$F$6=\"CICSA\",IF('Blank - Request Form'!J207=0,\"\",'Blank - Request Form'!J207),IF('Blank - Request Form'!$F$7=\"CICSA\",IF('Blank - Request Form'!S207=0,\"\",'Blank - Request Form'!S207),\"\"))","v":""},"",173]
[{"$f":"IF('Blank - Request Form'!$F$6=\"CICSA\",IF('Blank - Request Form'!D208=0,\"\",'Blank - Request Form'!D208),IF('Blank - Request Form'!$F$7=\"CICSA\",IF('Blank - Request Form'!M208=0,\"\",'Blank - Request Form'!M208),\"\"))","v":""},{"$f":"IF('Blank - Request Form'!$F$6=\"CICSA\",IF('Blank - Request Form'!E208=0,\"\",'Blank - Request Form'!E208),IF('Blank - Request Form'!$F$7=\"CICSA\",IF('Blank - Request Form'!N208=0,\"\",'Blank - Request Form'!N208),\"\"))","v":""},{"$f":"IF('Blank - Request Form'!$F$6=\"CICSA\",IF(OR('Blank - Request Form'!F208=\"000\",'Blank - Request Form'!F208=0),\"\",'Blank - Request Form'!F208),IF('Blank - Request Form'!$F$7=\"CICSA\",IF(OR('Blank - Request Form'!O208=\"000\",'Blank - Request Form'!O208=0),\"\",'Blank - Request Form'!O208),\"\"))","v":""},{"$f":"IF('Blank - Request Form'!$F$6=\"CICSA\",IF(OR('Blank - Request Form'!G208=\"0\",'Blank - Request Form'!G208=\"00000\",'Blank - Request Form'!G208=0),\"\",'Blank - Request Form'!G208),IF('Blank - Request Form'!$F$7=\"CICSA\",IF(OR('Blank - Request Form'!P208=\"0\",'Blank - Request Form'!P208=\"00000\",'Blank - Request Form'!P208=0),\"\",'Blank - Request Form'!P208),\"\"))","v":""},{"$f":"IF('Blank - Request Form'!$F$6=\"CICSA\",IF(OR('Blank - Request Form'!H208=\"0\",'Blank - Request Form'!H208=\"00000\",'Blank - Request Form'!H208=0),\"\",'Blank - Request Form'!H208),IF('Blank - Request Form'!$F$7=\"CICSA\",IF(OR('Blank - Request Form'!Q208=\"0\",'Blank - Request Form'!Q208=\"00000\",'Blank - Request Form'!Q208=0),\"\",'Blank - Request Form'!Q208),\"\"))","v":""},{"$f":"IF('Blank - Request Form'!$F$6=\"CICSA\",IF(OR('Blank - Request Form'!I208=\"0\",'Blank - Request Form'!I208=\"00000\",'Blank - Request Form'!I208=0),\"\",'Blank - Request Form'!I208),IF('Blank - Request Form'!$F$7=\"CICSA\",IF(OR('Blank - Request Form'!R208=\"0\",'Blank - Request Form'!R208=\"00000\",'Blank - Request Form'!R208=0),\"\",'Blank - Request Form'!R208),\"\"))","v":""},null,{"$f":"IF('Blank - Request Form'!$F$6=\"CICSA\",IF('Blank - Request Form'!K208=0,\"\",'Blank - Request Form'!K208),IF('Blank - Request Form'!$F$7=\"CICSA\",IF('Blank - Request Form'!T208=0,\"\",'Blank - Request Form'!T208),\"\"))","v":""},null,null,null,{"$f":"IF(M174<>\"\",'Blank - Request Form'!$M$2,\"\")","v":""},{"$f":"IF('Blank - Request Form'!$F$6=\"CICSA\",IF('Blank - Request Form'!J208=0,\"\",'Blank - Request Form'!J208),IF('Blank - Request Form'!$F$7=\"CICSA\",IF('Blank - Request Form'!S208=0,\"\",'Blank - Request Form'!S208),\"\"))","v":""},"",174]
[{"$f":"IF('Blank - Request Form'!$F$6=\"CICSA\",IF('Blank - Request Form'!D209=0,\"\",'Blank - Request Form'!D209),IF('Blank - Request Form'!$F$7=\"CICSA\",IF('Blank - Request Form'!M209=0,\"\",'Blank - Request Form'!M209),\"\"))","v":""},{"$f":"IF('Blank - Request Form'!$F$6=\"CICSA\",IF('Blank - Request Form'!E209=0,\"\",'Blank - Request Form'!E209),IF('Blank - Request Form'!$F$7=\"CICSA\",IF('Blank - Request Form'!N209=0,\"\",'Blank - Request Form'!N209),\"\"))","v":""},{"$f":"IF('Blank - Request Form'!$F$6=\"CICSA\",IF(OR('Blank - Request Form'!F209=\"000\",'Blank - Request Form'!F209=0),\"\",'Blank - Request Form'!F209),IF('Blank - Request Form'!$F$7=\"CICSA\",IF(OR('Blank - Request Form'!O209=\"000\",'Blank - Request Form'!O209=0),\"\",'Blank - Request Form'!O209),\"\"))","v":""},{"$f":"IF('Blank - Request Form'!$F$6=\"CICSA\",IF(OR('Blank - Request Form'!G209=\"0\",'Blank - Request Form'!G209=\"00000\",'Blank - Request Form'!G209=0),\"\",'Blank - Request Form'!G209),IF('Blank - Request Form'!$F$7=\"CICSA\",IF(OR('Blank - Request Form'!P209=\"0\",'Blank - Request Form'!P209=\"00000\",'Blank - Request Form'!P209=0),\"\",'Blank - Request Form'!P209),\"\"))","v":""},{"$f":"IF('Blank - Request Form'!$F$6=\"CICSA\",IF(OR('Blank - Request Form'!H209=\"0\",'Blank - Request Form'!H209=\"00000\",'Blank - Request Form'!H209=0),\"\",'Blank - Request Form'!H209),IF('Blank - Request Form'!$F$7=\"CICSA\",IF(OR('Blank - Request Form'!Q209=\"0\",'Blank - Request Form'!Q209=\"00000\",'Blank - Request Form'!Q209=0),\"\",'Blank - Request Form'!Q209),\"\"))","v":""},{"$f":"IF('Blank - Request Form'!$F$6=\"CICSA\",IF(OR('Blank - Request Form'!I209=\"0\",'Blank - Request Form'!I209=\"00000\",'Blank - Request Form'!I209=0),\"\",'Blank - Request Form'!I209),IF('Blank - Request Form'!$F$7=\"CICSA\",IF(OR('Blank - Request Form'!R209=\"0\",'Blank - Request Form'!R209=\"00000\",'Blank - Request Form'!R209=0),\"\",'Blank - Request Form'!R209),\"\"))","v":""},null,{"$f":"IF('Blank - Request Form'!$F$6=\"CICSA\",IF('Blank - Request Form'!K209=0,\"\",'Blank - Request Form'!K209),IF('Blank - Request Form'!$F$7=\"CICSA\",IF('Blank - Request Form'!T209=0,\"\",'Blank - Request Form'!T209),\"\"))","v":""},null,null,null,{"$f":"IF(M175<>\"\",'Blank - Request Form'!$M$2,\"\")","v":""},{"$f":"IF('Blank - Request Form'!$F$6=\"CICSA\",IF('Blank - Request Form'!J209=0,\"\",'Blank - Request Form'!J209),IF('Blank - Request Form'!$F$7=\"CICSA\",IF('Blank - Request Form'!S209=0,\"\",'Blank - Request Form'!S209),\"\"))","v":""},{"$f":"IF(M175<>\"\",O175,\"\")","v":""},175]
[{"$f":"IF('Blank - Request Form'!$F$6=\"CICSA\",IF('Blank - Request Form'!D210=0,\"\",'Blank - Request Form'!D210),IF('Blank - Request Form'!$F$7=\"CICSA\",IF('Blank - Request Form'!M210=0,\"\",'Blank - Request Form'!M210),\"\"))","v":""},{"$f":"IF('Blank - Request Form'!$F$6=\"CICSA\",IF('Blank - Request Form'!E210=0,\"\",'Blank - Request Form'!E210),IF('Blank - Request Form'!$F$7=\"CICSA\",IF('Blank - Request Form'!N210=0,\"\",'Blank - Request Form'!N210),\"\"))","v":""},{"$f":"IF('Blank - Request Form'!$F$6=\"CICSA\",IF(OR('Blank - Request Form'!F210=\"000\",'Blank - Request Form'!F210=0),\"\",'Blank - Request Form'!F210),IF('Blank - Request Form'!$F$7=\"CICSA\",IF(OR('Blank - Request Form'!O210=\"000\",'Blank - Request Form'!O210=0),\"\",'Blank - Request Form'!O210),\"\"))","v":""},{"$f":"IF('Blank - Request Form'!$F$6=\"CICSA\",IF(OR('Blank - Request Form'!G210=\"0\",'Blank - Request Form'!G210=\"00000\",'Blank - Request Form'!G210=0),\"\",'Blank - Request Form'!G210),IF('Blank - Request Form'!$F$7=\"CICSA\",IF(OR('Blank - Request Form'!P210=\"0\",'Blank - Request Form'!P210=\"00000\",'Blank - Request Form'!P210=0),\"\",'Blank - Request Form'!P210),\"\"))","v":""},{"$f":"IF('Blank - Request Form'!$F$6=\"CICSA\",IF(OR('Blank - Request Form'!H210=\"0\",'Blank - Request Form'!H210=\"00000\",'Blank - Request Form'!H210=0),\"\",'Blank - Request Form'!H210),IF('Blank - Request Form'!$F$7=\"CICSA\",IF(OR('Blank - Request Form'!Q210=\"0\",'Blank - Request Form'!Q210=\"00000\",'Blank - Request Form'!Q210=0),\"\",'Blank - Request Form'!Q210),\"\"))","v":""},{"$f":"IF('Blank - Request Form'!$F$6=\"CICSA\",IF(OR('Blank - Request Form'!I210=\"0\",'Blank - Request Form'!I210=\"00000\",'Blank - Request Form'!I210=0),\"\",'Blank - Request Form'!I210),IF('Blank - Request Form'!$F$7=\"CICSA\",IF(OR('Blank - Request Form'!R210=\"0\",'Blank - Request Form'!R210=\"00000\",'Blank - Request Form'!R210=0),\"\",'Blank - Request Form'!R210),\"\"))","v":""},null,{"$f":"IF('Blank - Request Form'!$F$6=\"CICSA\",IF('Blank - Request Form'!K210=0,\"\",'Blank - Request Form'!K210),IF('Blank - Request Form'!$F$7=\"CICSA\",IF('Blank - Request Form'!T210=0,\"\",'Blank - Request Form'!T210),\"\"))","v":""},null,null,null,{"$f":"IF(M176<>\"\",'Blank - Request Form'!$M$2,\"\")","v":""},{"$f":"IF('Blank - Request Form'!$F$6=\"CICSA\",IF('Blank - Request Form'!J210=0,\"\",'Blank - Request Form'!J210),IF('Blank - Request Form'!$F$7=\"CICSA\",IF('Blank - Request Form'!S210=0,\"\",'Blank - Request Form'!S210),\"\"))","v":""},"",176]
[{"$f":"IF('Blank - Request Form'!$F$6=\"CICSA\",IF('Blank - Request Form'!D211=0,\"\",'Blank - Request Form'!D211),IF('Blank - Request Form'!$F$7=\"CICSA\",IF('Blank - Request Form'!M211=0,\"\",'Blank - Request Form'!M211),\"\"))","v":""},{"$f":"IF('Blank - Request Form'!$F$6=\"CICSA\",IF('Blank - Request Form'!E211=0,\"\",'Blank - Request Form'!E211),IF('Blank - Request Form'!$F$7=\"CICSA\",IF('Blank - Request Form'!N211=0,\"\",'Blank - Request Form'!N211),\"\"))","v":""},{"$f":"IF('Blank - Request Form'!$F$6=\"CICSA\",IF(OR('Blank - Request Form'!F211=\"000\",'Blank - Request Form'!F211=0),\"\",'Blank - Request Form'!F211),IF('Blank - Request Form'!$F$7=\"CICSA\",IF(OR('Blank - Request Form'!O211=\"000\",'Blank - Request Form'!O211=0),\"\",'Blank - Request Form'!O211),\"\"))","v":""},{"$f":"IF('Blank - Request Form'!$F$6=\"CICSA\",IF(OR('Blank - Request Form'!G211=\"0\",'Blank - Request Form'!G211=\"00000\",'Blank - Request Form'!G211=0),\"\",'Blank - Request Form'!G211),IF('Blank - Request Form'!$F$7=\"CICSA\",IF(OR('Blank - Request Form'!P211=\"0\",'Blank - Request Form'!P211=\"00000\",'Blank - Request Form'!P211=0),\"\",'Blank - Request Form'!P211),\"\"))","v":""},{"$f":"IF('Blank - Request Form'!$F$6=\"CICSA\",IF(OR('Blank - Request Form'!H211=\"0\",'Blank - Request Form'!H211=\"00000\",'Blank - Request Form'!H211=0),\"\",'Blank - Request Form'!H211),IF('Blank - Request Form'!$F$7=\"CICSA\",IF(OR('Blank - Request Form'!Q211=\"0\",'Blank - Request Form'!Q211=\"00000\",'Blank - Request Form'!Q211=0),\"\",'Blank - Request Form'!Q211),\"\"))","v":""},{"$f":"IF('Blank - Request Form'!$F$6=\"CICSA\",IF(OR('Blank - Request Form'!I211=\"0\",'Blank - Request Form'!I211=\"00000\",'Blank - Request Form'!I211=0),\"\",'Blank - Request Form'!I211),IF('Blank - Request Form'!$F$7=\"CICSA\",IF(OR('Blank - Request Form'!R211=\"0\",'Blank - Request Form'!R211=\"00000\",'Blank - Request Form'!R211=0),\"\",'Blank - Request Form'!R211),\"\"))","v":""},null,{"$f":"IF('Blank - Request Form'!$F$6=\"CICSA\",IF('Blank - Request Form'!K211=0,\"\",'Blank - Request Form'!K211),IF('Blank - Request Form'!$F$7=\"CICSA\",IF('Blank - Request Form'!T211=0,\"\",'Blank - Request Form'!T211),\"\"))","v":""},null,null,null,{"$f":"IF(M177<>\"\",'Blank - Request Form'!$M$2,\"\")","v":""},{"$f":"IF('Blank - Request Form'!$F$6=\"CICSA\",IF('Blank - Request Form'!J211=0,\"\",'Blank - Request Form'!J211),IF('Blank - Request Form'!$F$7=\"CICSA\",IF('Blank - Request Form'!S211=0,\"\",'Blank - Request Form'!S211),\"\"))","v":""},"",177]
[{"$f":"IF('Blank - Request Form'!$F$6=\"CICSA\",IF('Blank - Request Form'!D212=0,\"\",'Blank - Request Form'!D212),IF('Blank - Request Form'!$F$7=\"CICSA\",IF('Blank - Request Form'!M212=0,\"\",'Blank - Request Form'!M212),\"\"))","v":""},{"$f":"IF('Blank - Request Form'!$F$6=\"CICSA\",IF('Blank - Request Form'!E212=0,\"\",'Blank - Request Form'!E212),IF('Blank - Request Form'!$F$7=\"CICSA\",IF('Blank - Request Form'!N212=0,\"\",'Blank - Request Form'!N212),\"\"))","v":""},{"$f":"IF('Blank - Request Form'!$F$6=\"CICSA\",IF(OR('Blank - Request Form'!F212=\"000\",'Blank - Request Form'!F212=0),\"\",'Blank - Request Form'!F212),IF('Blank - Request Form'!$F$7=\"CICSA\",IF(OR('Blank - Request Form'!O212=\"000\",'Blank - Request Form'!O212=0),\"\",'Blank - Request Form'!O212),\"\"))","v":""},{"$f":"IF('Blank - Request Form'!$F$6=\"CICSA\",IF(OR('Blank - Request Form'!G212=\"0\",'Blank - Request Form'!G212=\"00000\",'Blank - Request Form'!G212=0),\"\",'Blank - Request Form'!G212),IF('Blank - Request Form'!$F$7=\"CICSA\",IF(OR('Blank - Request Form'!P212=\"0\",'Blank - Request Form'!P212=\"00000\",'Blank - Request Form'!P212=0),\"\",'Blank - Request Form'!P212),\"\"))","v":""},{"$f":"IF('Blank - Request Form'!$F$6=\"CICSA\",IF(OR('Blank - Request Form'!H212=\"0\",'Blank - Request Form'!H212=\"00000\",'Blank - Request Form'!H212=0),\"\",'Blank - Request Form'!H212),IF('Blank - Request Form'!$F$7=\"CICSA\",IF(OR('Blank - Request Form'!Q212=\"0\",'Blank - Request Form'!Q212=\"00000\",'Blank - Request Form'!Q212=0),\"\",'Blank - Request Form'!Q212),\"\"))","v":""},{"$f":"IF('Blank - Request Form'!$F$6=\"CICSA\",IF(OR('Blank - Request Form'!I212=\"0\",'Blank - Request Form'!I212=\"00000\",'Blank - Request Form'!I212=0),\"\",'Blank - Request Form'!I212),IF('Blank - Request Form'!$F$7=\"CICSA\",IF(OR('Blank - Request Form'!R212=\"0\",'Blank - Request Form'!R212=\"00000\",'Blank - Request Form'!R212=0),\"\",'Blank - Request Form'!R212),\"\"))","v":""},null,{"$f":"IF('Blank - Request Form'!$F$6=\"CICSA\",IF('Blank - Request Form'!K212=0,\"\",'Blank - Request Form'!K212),IF('Blank - Request Form'!$F$7=\"CICSA\",IF('Blank - Request Form'!T212=0,\"\",'Blank - Request Form'!T212),\"\"))","v":""},null,null,null,{"$f":"IF(M178<>\"\",'Blank - Request Form'!$M$2,\"\")","v":""},{"$f":"IF('Blank - Request Form'!$F$6=\"CICSA\",IF('Blank - Request Form'!J212=0,\"\",'Blank - Request Form'!J212),IF('Blank - Request Form'!$F$7=\"CICSA\",IF('Blank - Request Form'!S212=0,\"\",'Blank - Request Form'!S212),\"\"))","v":""},"",178]
[{"$f":"IF('Blank - Request Form'!$F$6=\"CICSA\",IF('Blank - Request Form'!D213=0,\"\",'Blank - Request Form'!D213),IF('Blank - Request Form'!$F$7=\"CICSA\",IF('Blank - Request Form'!M213=0,\"\",'Blank - Request Form'!M213),\"\"))","v":""},{"$f":"IF('Blank - Request Form'!$F$6=\"CICSA\",IF('Blank - Request Form'!E213=0,\"\",'Blank - Request Form'!E213),IF('Blank - Request Form'!$F$7=\"CICSA\",IF('Blank - Request Form'!N213=0,\"\",'Blank - Request Form'!N213),\"\"))","v":""},{"$f":"IF('Blank - Request Form'!$F$6=\"CICSA\",IF(OR('Blank - Request Form'!F213=\"000\",'Blank - Request Form'!F213=0),\"\",'Blank - Request Form'!F213),IF('Blank - Request Form'!$F$7=\"CICSA\",IF(OR('Blank - Request Form'!O213=\"000\",'Blank - Request Form'!O213=0),\"\",'Blank - Request Form'!O213),\"\"))","v":""},{"$f":"IF('Blank - Request Form'!$F$6=\"CICSA\",IF(OR('Blank - Request Form'!G213=\"0\",'Blank - Request Form'!G213=\"00000\",'Blank - Request Form'!G213=0),\"\",'Blank - Request Form'!G213),IF('Blank - Request Form'!$F$7=\"CICSA\",IF(OR('Blank - Request Form'!P213=\"0\",'Blank - Request Form'!P213=\"00000\",'Blank - Request Form'!P213=0),\"\",'Blank - Request Form'!P213),\"\"))","v":""},{"$f":"IF('Blank - Request Form'!$F$6=\"CICSA\",IF(OR('Blank - Request Form'!H213=\"0\",'Blank - Request Form'!H213=\"00000\",'Blank - Request Form'!H213=0),\"\",'Blank - Request Form'!H213),IF('Blank - Request Form'!$F$7=\"CICSA\",IF(OR('Blank - Request Form'!Q213=\"0\",'Blank - Request Form'!Q213=\"00000\",'Blank - Request Form'!Q213=0),\"\",'Blank - Request Form'!Q213),\"\"))","v":""},{"$f":"IF('Blank - Request Form'!$F$6=\"CICSA\",IF(OR('Blank - Request Form'!I213=\"0\",'Blank - Request Form'!I213=\"00000\",'Blank - Request Form'!I213=0),\"\",'Blank - Request Form'!I213),IF('Blank - Request Form'!$F$7=\"CICSA\",IF(OR('Blank - Request Form'!R213=\"0\",'Blank - Request Form'!R213=\"00000\",'Blank - Request Form'!R213=0),\"\",'Blank - Request Form'!R213),\"\"))","v":""},null,{"$f":"IF('Blank - Request Form'!$F$6=\"CICSA\",IF('Blank - Request Form'!K213=0,\"\",'Blank - Request Form'!K213),IF('Blank - Request Form'!$F$7=\"CICSA\",IF('Blank - Request Form'!T213=0,\"\",'Blank - Request Form'!T213),\"\"))","v":""},null,null,null,{"$f":"IF(M179<>\"\",'Blank - Request Form'!$M$2,\"\")","v":""},{"$f":"IF('Blank - Request Form'!$F$6=\"CICSA\",IF('Blank - Request Form'!J213=0,\"\",'Blank - Request Form'!J213),IF('Blank - Request Form'!$F$7=\"CICSA\",IF('Blank - Request Form'!S213=0,\"\",'Blank - Request Form'!S213),\"\"))","v":""},"",179]
[{"$f":"IF('Blank - Request Form'!$F$6=\"CICSA\",IF('Blank - Request Form'!D214=0,\"\",'Blank - Request Form'!D214),IF('Blank - Request Form'!$F$7=\"CICSA\",IF('Blank - Request Form'!M214=0,\"\",'Blank - Request Form'!M214),\"\"))","v":""},{"$f":"IF('Blank - Request Form'!$F$6=\"CICSA\",IF('Blank - Request Form'!E214=0,\"\",'Blank - Request Form'!E214),IF('Blank - Request Form'!$F$7=\"CICSA\",IF('Blank - Request Form'!N214=0,\"\",'Blank - Request Form'!N214),\"\"))","v":""},{"$f":"IF('Blank - Request Form'!$F$6=\"CICSA\",IF(OR('Blank - Request Form'!F214=\"000\",'Blank - Request Form'!F214=0),\"\",'Blank - Request Form'!F214),IF('Blank - Request Form'!$F$7=\"CICSA\",IF(OR('Blank - Request Form'!O214=\"000\",'Blank - Request Form'!O214=0),\"\",'Blank - Request Form'!O214),\"\"))","v":""},{"$f":"IF('Blank - Request Form'!$F$6=\"CICSA\",IF(OR('Blank - Request Form'!G214=\"0\",'Blank - Request Form'!G214=\"00000\",'Blank - Request Form'!G214=0),\"\",'Blank - Request Form'!G214),IF('Blank - Request Form'!$F$7=\"CICSA\",IF(OR('Blank - Request Form'!P214=\"0\",'Blank - Request Form'!P214=\"00000\",'Blank - Request Form'!P214=0),\"\",'Blank - Request Form'!P214),\"\"))","v":""},{"$f":"IF('Blank - Request Form'!$F$6=\"CICSA\",IF(OR('Blank - Request Form'!H214=\"0\",'Blank - Request Form'!H214=\"00000\",'Blank - Request Form'!H214=0),\"\",'Blank - Request Form'!H214),IF('Blank - Request Form'!$F$7=\"CICSA\",IF(OR('Blank - Request Form'!Q214=\"0\",'Blank - Request Form'!Q214=\"00000\",'Blank - Request Form'!Q214=0),\"\",'Blank - Request Form'!Q214),\"\"))","v":""},{"$f":"IF('Blank - Request Form'!$F$6=\"CICSA\",IF(OR('Blank - Request Form'!I214=\"0\",'Blank - Request Form'!I214=\"00000\",'Blank - Request Form'!I214=0),\"\",'Blank - Request Form'!I214),IF('Blank - Request Form'!$F$7=\"CICSA\",IF(OR('Blank - Request Form'!R214=\"0\",'Blank - Request Form'!R214=\"00000\",'Blank - Request Form'!R214=0),\"\",'Blank - Request Form'!R214),\"\"))","v":""},null,{"$f":"IF('Blank - Request Form'!$F$6=\"CICSA\",IF('Blank - Request Form'!K214=0,\"\",'Blank - Request Form'!K214),IF('Blank - Request Form'!$F$7=\"CICSA\",IF('Blank - Request Form'!T214=0,\"\",'Blank - Request Form'!T214),\"\"))","v":""},null,null,null,{"$f":"IF(M180<>\"\",'Blank - Request Form'!$M$2,\"\")","v":""},{"$f":"IF('Blank - Request Form'!$F$6=\"CICSA\",IF('Blank - Request Form'!J214=0,\"\",'Blank - Request Form'!J214),IF('Blank - Request Form'!$F$7=\"CICSA\",IF('Blank - Request Form'!S214=0,\"\",'Blank - Request Form'!S214),\"\"))","v":""},"",180]
[{"$f":"IF('Blank - Request Form'!$F$6=\"CICSA\",IF('Blank - Request Form'!D215=0,\"\",'Blank - Request Form'!D215),IF('Blank - Request Form'!$F$7=\"CICSA\",IF('Blank - Request Form'!M215=0,\"\",'Blank - Request Form'!M215),\"\"))","v":""},{"$f":"IF('Blank - Request Form'!$F$6=\"CICSA\",IF('Blank - Request Form'!E215=0,\"\",'Blank - Request Form'!E215),IF('Blank - Request Form'!$F$7=\"CICSA\",IF('Blank - Request Form'!N215=0,\"\",'Blank - Request Form'!N215),\"\"))","v":""},{"$f":"IF('Blank - Request Form'!$F$6=\"CICSA\",IF(OR('Blank - Request Form'!F215=\"000\",'Blank - Request Form'!F215=0),\"\",'Blank - Request Form'!F215),IF('Blank - Request Form'!$F$7=\"CICSA\",IF(OR('Blank - Request Form'!O215=\"000\",'Blank - Request Form'!O215=0),\"\",'Blank - Request Form'!O215),\"\"))","v":""},{"$f":"IF('Blank - Request Form'!$F$6=\"CICSA\",IF(OR('Blank - Request Form'!G215=\"0\",'Blank - Request Form'!G215=\"00000\",'Blank - Request Form'!G215=0),\"\",'Blank - Request Form'!G215),IF('Blank - Request Form'!$F$7=\"CICSA\",IF(OR('Blank - Request Form'!P215=\"0\",'Blank - Request Form'!P215=\"00000\",'Blank - Request Form'!P215=0),\"\",'Blank - Request Form'!P215),\"\"))","v":""},{"$f":"IF('Blank - Request Form'!$F$6=\"CICSA\",IF(OR('Blank - Request Form'!H215=\"0\",'Blank - Request Form'!H215=\"00000\",'Blank - Request Form'!H215=0),\"\",'Blank - Request Form'!H215),IF('Blank - Request Form'!$F$7=\"CICSA\",IF(OR('Blank - Request Form'!Q215=\"0\",'Blank - Request Form'!Q215=\"00000\",'Blank - Request Form'!Q215=0),\"\",'Blank - Request Form'!Q215),\"\"))","v":""},{"$f":"IF('Blank - Request Form'!$F$6=\"CICSA\",IF(OR('Blank - Request Form'!I215=\"0\",'Blank - Request Form'!I215=\"00000\",'Blank - Request Form'!I215=0),\"\",'Blank - Request Form'!I215),IF('Blank - Request Form'!$F$7=\"CICSA\",IF(OR('Blank - Request Form'!R215=\"0\",'Blank - Request Form'!R215=\"00000\",'Blank - Request Form'!R215=0),\"\",'Blank - Request Form'!R215),\"\"))","v":""},null,{"$f":"IF('Blank - Request Form'!$F$6=\"CICSA\",IF('Blank - Request Form'!K215=0,\"\",'Blank - Request Form'!K215),IF('Blank - Request Form'!$F$7=\"CICSA\",IF('Blank - Request Form'!T215=0,\"\",'Blank - Request Form'!T215),\"\"))","v":""},null,null,null,{"$f":"IF(M181<>\"\",'Blank - Request Form'!$M$2,\"\")","v":""},{"$f":"IF('Blank - Request Form'!$F$6=\"CICSA\",IF('Blank - Request Form'!J215=0,\"\",'Blank - Request Form'!J215),IF('Blank - Request Form'!$F$7=\"CICSA\",IF('Blank - Request Form'!S215=0,\"\",'Blank - Request Form'!S215),\"\"))","v":""},"",181]
[{"$f":"IF('Blank - Request Form'!$F$6=\"CICSA\",IF('Blank - Request Form'!D216=0,\"\",'Blank - Request Form'!D216),IF('Blank - Request Form'!$F$7=\"CICSA\",IF('Blank - Request Form'!M216=0,\"\",'Blank - Request Form'!M216),\"\"))","v":""},{"$f":"IF('Blank - Request Form'!$F$6=\"CICSA\",IF('Blank - Request Form'!E216=0,\"\",'Blank - Request Form'!E216),IF('Blank - Request Form'!$F$7=\"CICSA\",IF('Blank - Request Form'!N216=0,\"\",'Blank - Request Form'!N216),\"\"))","v":""},{"$f":"IF('Blank - Request Form'!$F$6=\"CICSA\",IF(OR('Blank - Request Form'!F216=\"000\",'Blank - Request Form'!F216=0),\"\",'Blank - Request Form'!F216),IF('Blank - Request Form'!$F$7=\"CICSA\",IF(OR('Blank - Request Form'!O216=\"000\",'Blank - Request Form'!O216=0),\"\",'Blank - Request Form'!O216),\"\"))","v":""},{"$f":"IF('Blank - Request Form'!$F$6=\"CICSA\",IF(OR('Blank - Request Form'!G216=\"0\",'Blank - Request Form'!G216=\"00000\",'Blank - Request Form'!G216=0),\"\",'Blank - Request Form'!G216),IF('Blank - Request Form'!$F$7=\"CICSA\",IF(OR('Blank - Request Form'!P216=\"0\",'Blank - Request Form'!P216=\"00000\",'Blank - Request Form'!P216=0),\"\",'Blank - Request Form'!P216),\"\"))","v":""},{"$f":"IF('Blank - Request Form'!$F$6=\"CICSA\",IF(OR('Blank - Request Form'!H216=\"0\",'Blank - Request Form'!H216=\"00000\",'Blank - Request Form'!H216=0),\"\",'Blank - Request Form'!H216),IF('Blank - Request Form'!$F$7=\"CICSA\",IF(OR('Blank - Request Form'!Q216=\"0\",'Blank - Request Form'!Q216=\"00000\",'Blank - Request Form'!Q216=0),\"\",'Blank - Request Form'!Q216),\"\"))","v":""},{"$f":"IF('Blank - Request Form'!$F$6=\"CICSA\",IF(OR('Blank - Request Form'!I216=\"0\",'Blank - Request Form'!I216=\"00000\",'Blank - Request Form'!I216=0),\"\",'Blank - Request Form'!I216),IF('Blank - Request Form'!$F$7=\"CICSA\",IF(OR('Blank - Request Form'!R216=\"0\",'Blank - Request Form'!R216=\"00000\",'Blank - Request Form'!R216=0),\"\",'Blank - Request Form'!R216),\"\"))","v":""},null,{"$f":"IF('Blank - Request Form'!$F$6=\"CICSA\",IF('Blank - Request Form'!K216=0,\"\",'Blank - Request Form'!K216),IF('Blank - Request Form'!$F$7=\"CICSA\",IF('Blank - Request Form'!T216=0,\"\",'Blank - Request Form'!T216),\"\"))","v":""},null,null,null,{"$f":"IF(M182<>\"\",'Blank - Request Form'!$M$2,\"\")","v":""},{"$f":"IF('Blank - Request Form'!$F$6=\"CICSA\",IF('Blank - Request Form'!J216=0,\"\",'Blank - Request Form'!J216),IF('Blank - Request Form'!$F$7=\"CICSA\",IF('Blank - Request Form'!S216=0,\"\",'Blank - Request Form'!S216),\"\"))","v":""},"",182]
[{"$f":"IF('Blank - Request Form'!$F$6=\"CICSA\",IF('Blank - Request Form'!D217=0,\"\",'Blank - Request Form'!D217),IF('Blank - Request Form'!$F$7=\"CICSA\",IF('Blank - Request Form'!M217=0,\"\",'Blank - Request Form'!M217),\"\"))","v":""},{"$f":"IF('Blank - Request Form'!$F$6=\"CICSA\",IF('Blank - Request Form'!E217=0,\"\",'Blank - Request Form'!E217),IF('Blank - Request Form'!$F$7=\"CICSA\",IF('Blank - Request Form'!N217=0,\"\",'Blank - Request Form'!N217),\"\"))","v":""},{"$f":"IF('Blank - Request Form'!$F$6=\"CICSA\",IF(OR('Blank - Request Form'!F217=\"000\",'Blank - Request Form'!F217=0),\"\",'Blank - Request Form'!F217),IF('Blank - Request Form'!$F$7=\"CICSA\",IF(OR('Blank - Request Form'!O217=\"000\",'Blank - Request Form'!O217=0),\"\",'Blank - Request Form'!O217),\"\"))","v":""},{"$f":"IF('Blank - Request Form'!$F$6=\"CICSA\",IF(OR('Blank - Request Form'!G217=\"0\",'Blank - Request Form'!G217=\"00000\",'Blank - Request Form'!G217=0),\"\",'Blank - Request Form'!G217),IF('Blank - Request Form'!$F$7=\"CICSA\",IF(OR('Blank - Request Form'!P217=\"0\",'Blank - Request Form'!P217=\"00000\",'Blank - Request Form'!P217=0),\"\",'Blank - Request Form'!P217),\"\"))","v":""},{"$f":"IF('Blank - Request Form'!$F$6=\"CICSA\",IF(OR('Blank - Request Form'!H217=\"0\",'Blank - Request Form'!H217=\"00000\",'Blank - Request Form'!H217=0),\"\",'Blank - Request Form'!H217),IF('Blank - Request Form'!$F$7=\"CICSA\",IF(OR('Blank - Request Form'!Q217=\"0\",'Blank - Request Form'!Q217=\"00000\",'Blank - Request Form'!Q217=0),\"\",'Blank - Request Form'!Q217),\"\"))","v":""},{"$f":"IF('Blank - Request Form'!$F$6=\"CICSA\",IF(OR('Blank - Request Form'!I217=\"0\",'Blank - Request Form'!I217=\"00000\",'Blank - Request Form'!I217=0),\"\",'Blank - Request Form'!I217),IF('Blank - Request Form'!$F$7=\"CICSA\",IF(OR('Blank - Request Form'!R217=\"0\",'Blank - Request Form'!R217=\"00000\",'Blank - Request Form'!R217=0),\"\",'Blank - Request Form'!R217),\"\"))","v":""},null,{"$f":"IF('Blank - Request Form'!$F$6=\"CICSA\",IF('Blank - Request Form'!K217=0,\"\",'Blank - Request Form'!K217),IF('Blank - Request Form'!$F$7=\"CICSA\",IF('Blank - Request Form'!T217=0,\"\",'Blank - Request Form'!T217),\"\"))","v":""},null,null,null,{"$f":"IF(M183<>\"\",'Blank - Request Form'!$M$2,\"\")","v":""},{"$f":"IF('Blank - Request Form'!$F$6=\"CICSA\",IF('Blank - Request Form'!J217=0,\"\",'Blank - Request Form'!J217),IF('Blank - Request Form'!$F$7=\"CICSA\",IF('Blank - Request Form'!S217=0,\"\",'Blank - Request Form'!S217),\"\"))","v":""},"",183]
[{"$f":"IF('Blank - Request Form'!$F$6=\"CICSA\",IF('Blank - Request Form'!D218=0,\"\",'Blank - Request Form'!D218),IF('Blank - Request Form'!$F$7=\"CICSA\",IF('Blank - Request Form'!M218=0,\"\",'Blank - Request Form'!M218),\"\"))","v":""},{"$f":"IF('Blank - Request Form'!$F$6=\"CICSA\",IF('Blank - Request Form'!E218=0,\"\",'Blank - Request Form'!E218),IF('Blank - Request Form'!$F$7=\"CICSA\",IF('Blank - Request Form'!N218=0,\"\",'Blank - Request Form'!N218),\"\"))","v":""},{"$f":"IF('Blank - Request Form'!$F$6=\"CICSA\",IF(OR('Blank - Request Form'!F218=\"000\",'Blank - Request Form'!F218=0),\"\",'Blank - Request Form'!F218),IF('Blank - Request Form'!$F$7=\"CICSA\",IF(OR('Blank - Request Form'!O218=\"000\",'Blank - Request Form'!O218=0),\"\",'Blank - Request Form'!O218),\"\"))","v":""},{"$f":"IF('Blank - Request Form'!$F$6=\"CICSA\",IF(OR('Blank - Request Form'!G218=\"0\",'Blank - Request Form'!G218=\"00000\",'Blank - Request Form'!G218=0),\"\",'Blank - Request Form'!G218),IF('Blank - Request Form'!$F$7=\"CICSA\",IF(OR('Blank - Request Form'!P218=\"0\",'Blank - Request Form'!P218=\"00000\",'Blank - Request Form'!P218=0),\"\",'Blank - Request Form'!P218),\"\"))","v":""},{"$f":"IF('Blank - Request Form'!$F$6=\"CICSA\",IF(OR('Blank - Request Form'!H218=\"0\",'Blank - Request Form'!H218=\"00000\",'Blank - Request Form'!H218=0),\"\",'Blank - Request Form'!H218),IF('Blank - Request Form'!$F$7=\"CICSA\",IF(OR('Blank - Request Form'!Q218=\"0\",'Blank - Request Form'!Q218=\"00000\",'Blank - Request Form'!Q218=0),\"\",'Blank - Request Form'!Q218),\"\"))","v":""},{"$f":"IF('Blank - Request Form'!$F$6=\"CICSA\",IF(OR('Blank - Request Form'!I218=\"0\",'Blank - Request Form'!I218=\"00000\",'Blank - Request Form'!I218=0),\"\",'Blank - Request Form'!I218),IF('Blank - Request Form'!$F$7=\"CICSA\",IF(OR('Blank - Request Form'!R218=\"0\",'Blank - Request Form'!R218=\"00000\",'Blank - Request Form'!R218=0),\"\",'Blank - Request Form'!R218),\"\"))","v":""},null,{"$f":"IF('Blank - Request Form'!$F$6=\"CICSA\",IF('Blank - Request Form'!K218=0,\"\",'Blank - Request Form'!K218),IF('Blank - Request Form'!$F$7=\"CICSA\",IF('Blank - Request Form'!T218=0,\"\",'Blank - Request Form'!T218),\"\"))","v":""},null,null,null,{"$f":"IF(M184<>\"\",'Blank - Request Form'!$M$2,\"\")","v":""},{"$f":"IF('Blank - Request Form'!$F$6=\"CICSA\",IF('Blank - Request Form'!J218=0,\"\",'Blank - Request Form'!J218),IF('Blank - Request Form'!$F$7=\"CICSA\",IF('Blank - Request Form'!S218=0,\"\",'Blank - Request Form'!S218),\"\"))","v":""},"",184]
[{"$f":"IF('Blank - Request Form'!$F$6=\"CICSA\",IF('Blank - Request Form'!D219=0,\"\",'Blank - Request Form'!D219),IF('Blank - Request Form'!$F$7=\"CICSA\",IF('Blank - Request Form'!M219=0,\"\",'Blank - Request Form'!M219),\"\"))","v":""},{"$f":"IF('Blank - Request Form'!$F$6=\"CICSA\",IF('Blank - Request Form'!E219=0,\"\",'Blank - Request Form'!E219),IF('Blank - Request Form'!$F$7=\"CICSA\",IF('Blank - Request Form'!N219=0,\"\",'Blank - Request Form'!N219),\"\"))","v":""},{"$f":"IF('Blank - Request Form'!$F$6=\"CICSA\",IF(OR('Blank - Request Form'!F219=\"000\",'Blank - Request Form'!F219=0),\"\",'Blank - Request Form'!F219),IF('Blank - Request Form'!$F$7=\"CICSA\",IF(OR('Blank - Request Form'!O219=\"000\",'Blank - Request Form'!O219=0),\"\",'Blank - Request Form'!O219),\"\"))","v":""},{"$f":"IF('Blank - Request Form'!$F$6=\"CICSA\",IF(OR('Blank - Request Form'!G219=\"0\",'Blank - Request Form'!G219=\"00000\",'Blank - Request Form'!G219=0),\"\",'Blank - Request Form'!G219),IF('Blank - Request Form'!$F$7=\"CICSA\",IF(OR('Blank - Request Form'!P219=\"0\",'Blank - Request Form'!P219=\"00000\",'Blank - Request Form'!P219=0),\"\",'Blank - Request Form'!P219),\"\"))","v":""},{"$f":"IF('Blank - Request Form'!$F$6=\"CICSA\",IF(OR('Blank - Request Form'!H219=\"0\",'Blank - Request Form'!H219=\"00000\",'Blank - Request Form'!H219=0),\"\",'Blank - Request Form'!H219),IF('Blank - Request Form'!$F$7=\"CICSA\",IF(OR('Blank - Request Form'!Q219=\"0\",'Blank - Request Form'!Q219=\"00000\",'Blank - Request Form'!Q219=0),\"\",'Blank - Request Form'!Q219),\"\"))","v":""},{"$f":"IF('Blank - Request Form'!$F$6=\"CICSA\",IF(OR('Blank - Request Form'!I219=\"0\",'Blank - Request Form'!I219=\"00000\",'Blank - Request Form'!I219=0),\"\",'Blank - Request Form'!I219),IF('Blank - Request Form'!$F$7=\"CICSA\",IF(OR('Blank - Request Form'!R219=\"0\",'Blank - Request Form'!R219=\"00000\",'Blank - Request Form'!R219=0),\"\",'Blank - Request Form'!R219),\"\"))","v":""},null,{"$f":"IF('Blank - Request Form'!$F$6=\"CICSA\",IF('Blank - Request Form'!K219=0,\"\",'Blank - Request Form'!K219),IF('Blank - Request Form'!$F$7=\"CICSA\",IF('Blank - Request Form'!T219=0,\"\",'Blank - Request Form'!T219),\"\"))","v":""},null,null,null,{"$f":"IF(M185<>\"\",'Blank - Request Form'!$M$2,\"\")","v":""},{"$f":"IF('Blank - Request Form'!$F$6=\"CICSA\",IF('Blank - Request Form'!J219=0,\"\",'Blank - Request Form'!J219),IF('Blank - Request Form'!$F$7=\"CICSA\",IF('Blank - Request Form'!S219=0,\"\",'Blank - Request Form'!S219),\"\"))","v":""},"",185]
[{"$f":"IF('Blank - Request Form'!$F$6=\"CICSA\",IF('Blank - Request Form'!D220=0,\"\",'Blank - Request Form'!D220),IF('Blank - Request Form'!$F$7=\"CICSA\",IF('Blank - Request Form'!M220=0,\"\",'Blank - Request Form'!M220),\"\"))","v":""},{"$f":"IF('Blank - Request Form'!$F$6=\"CICSA\",IF('Blank - Request Form'!E220=0,\"\",'Blank - Request Form'!E220),IF('Blank - Request Form'!$F$7=\"CICSA\",IF('Blank - Request Form'!N220=0,\"\",'Blank - Request Form'!N220),\"\"))","v":""},{"$f":"IF('Blank - Request Form'!$F$6=\"CICSA\",IF(OR('Blank - Request Form'!F220=\"000\",'Blank - Request Form'!F220=0),\"\",'Blank - Request Form'!F220),IF('Blank - Request Form'!$F$7=\"CICSA\",IF(OR('Blank - Request Form'!O220=\"000\",'Blank - Request Form'!O220=0),\"\",'Blank - Request Form'!O220),\"\"))","v":""},{"$f":"IF('Blank - Request Form'!$F$6=\"CICSA\",IF(OR('Blank - Request Form'!G220=\"0\",'Blank - Request Form'!G220=\"00000\",'Blank - Request Form'!G220=0),\"\",'Blank - Request Form'!G220),IF('Blank - Request Form'!$F$7=\"CICSA\",IF(OR('Blank - Request Form'!P220=\"0\",'Blank - Request Form'!P220=\"00000\",'Blank - Request Form'!P220=0),\"\",'Blank - Request Form'!P220),\"\"))","v":""},{"$f":"IF('Blank - Request Form'!$F$6=\"CICSA\",IF(OR('Blank - Request Form'!H220=\"0\",'Blank - Request Form'!H220=\"00000\",'Blank - Request Form'!H220=0),\"\",'Blank - Request Form'!H220),IF('Blank - Request Form'!$F$7=\"CICSA\",IF(OR('Blank - Request Form'!Q220=\"0\",'Blank - Request Form'!Q220=\"00000\",'Blank - Request Form'!Q220=0),\"\",'Blank - Request Form'!Q220),\"\"))","v":""},{"$f":"IF('Blank - Request Form'!$F$6=\"CICSA\",IF(OR('Blank - Request Form'!I220=\"0\",'Blank - Request Form'!I220=\"00000\",'Blank - Request Form'!I220=0),\"\",'Blank - Request Form'!I220),IF('Blank - Request Form'!$F$7=\"CICSA\",IF(OR('Blank - Request Form'!R220=\"0\",'Blank - Request Form'!R220=\"00000\",'Blank - Request Form'!R220=0),\"\",'Blank - Request Form'!R220),\"\"))","v":""},null,{"$f":"IF('Blank - Request Form'!$F$6=\"CICSA\",IF('Blank - Request Form'!K220=0,\"\",'Blank - Request Form'!K220),IF('Blank - Request Form'!$F$7=\"CICSA\",IF('Blank - Request Form'!T220=0,\"\",'Blank - Request Form'!T220),\"\"))","v":""},null,null,null,{"$f":"IF(M186<>\"\",'Blank - Request Form'!$M$2,\"\")","v":""},{"$f":"IF('Blank - Request Form'!$F$6=\"CICSA\",IF('Blank - Request Form'!J220=0,\"\",'Blank - Request Form'!J220),IF('Blank - Request Form'!$F$7=\"CICSA\",IF('Blank - Request Form'!S220=0,\"\",'Blank - Request Form'!S220),\"\"))","v":""},"",186]
[{"$f":"IF('Blank - Request Form'!$F$6=\"CICSA\",IF('Blank - Request Form'!D221=0,\"\",'Blank - Request Form'!D221),IF('Blank - Request Form'!$F$7=\"CICSA\",IF('Blank - Request Form'!M221=0,\"\",'Blank - Request Form'!M221),\"\"))","v":""},{"$f":"IF('Blank - Request Form'!$F$6=\"CICSA\",IF('Blank - Request Form'!E221=0,\"\",'Blank - Request Form'!E221),IF('Blank - Request Form'!$F$7=\"CICSA\",IF('Blank - Request Form'!N221=0,\"\",'Blank - Request Form'!N221),\"\"))","v":""},{"$f":"IF('Blank - Request Form'!$F$6=\"CICSA\",IF(OR('Blank - Request Form'!F221=\"000\",'Blank - Request Form'!F221=0),\"\",'Blank - Request Form'!F221),IF('Blank - Request Form'!$F$7=\"CICSA\",IF(OR('Blank - Request Form'!O221=\"000\",'Blank - Request Form'!O221=0),\"\",'Blank - Request Form'!O221),\"\"))","v":""},{"$f":"IF('Blank - Request Form'!$F$6=\"CICSA\",IF(OR('Blank - Request Form'!G221=\"0\",'Blank - Request Form'!G221=\"00000\",'Blank - Request Form'!G221=0),\"\",'Blank - Request Form'!G221),IF('Blank - Request Form'!$F$7=\"CICSA\",IF(OR('Blank - Request Form'!P221=\"0\",'Blank - Request Form'!P221=\"00000\",'Blank - Request Form'!P221=0),\"\",'Blank - Request Form'!P221),\"\"))","v":""},{"$f":"IF('Blank - Request Form'!$F$6=\"CICSA\",IF(OR('Blank - Request Form'!H221=\"0\",'Blank - Request Form'!H221=\"00000\",'Blank - Request Form'!H221=0),\"\",'Blank - Request Form'!H221),IF('Blank - Request Form'!$F$7=\"CICSA\",IF(OR('Blank - Request Form'!Q221=\"0\",'Blank - Request Form'!Q221=\"00000\",'Blank - Request Form'!Q221=0),\"\",'Blank - Request Form'!Q221),\"\"))","v":""},{"$f":"IF('Blank - Request Form'!$F$6=\"CICSA\",IF(OR('Blank - Request Form'!I221=\"0\",'Blank - Request Form'!I221=\"00000\",'Blank - Request Form'!I221=0),\"\",'Blank - Request Form'!I221),IF('Blank - Request Form'!$F$7=\"CICSA\",IF(OR('Blank - Request Form'!R221=\"0\",'Blank - Request Form'!R221=\"00000\",'Blank - Request Form'!R221=0),\"\",'Blank - Request Form'!R221),\"\"))","v":""},null,{"$f":"IF('Blank - Request Form'!$F$6=\"CICSA\",IF('Blank - Request Form'!K221=0,\"\",'Blank - Request Form'!K221),IF('Blank - Request Form'!$F$7=\"CICSA\",IF('Blank - Request Form'!T221=0,\"\",'Blank - Request Form'!T221),\"\"))","v":""},null,null,null,{"$f":"IF(M187<>\"\",'Blank - Request Form'!$M$2,\"\")","v":""},{"$f":"IF('Blank - Request Form'!$F$6=\"CICSA\",IF('Blank - Request Form'!J221=0,\"\",'Blank - Request Form'!J221),IF('Blank - Request Form'!$F$7=\"CICSA\",IF('Blank - Request Form'!S221=0,\"\",'Blank - Request Form'!S221),\"\"))","v":""},"",187]
[{"$f":"IF('Blank - Request Form'!$F$6=\"CICSA\",IF('Blank - Request Form'!D222=0,\"\",'Blank - Request Form'!D222),IF('Blank - Request Form'!$F$7=\"CICSA\",IF('Blank - Request Form'!M222=0,\"\",'Blank - Request Form'!M222),\"\"))","v":""},{"$f":"IF('Blank - Request Form'!$F$6=\"CICSA\",IF('Blank - Request Form'!E222=0,\"\",'Blank - Request Form'!E222),IF('Blank - Request Form'!$F$7=\"CICSA\",IF('Blank - Request Form'!N222=0,\"\",'Blank - Request Form'!N222),\"\"))","v":""},{"$f":"IF('Blank - Request Form'!$F$6=\"CICSA\",IF(OR('Blank - Request Form'!F222=\"000\",'Blank - Request Form'!F222=0),\"\",'Blank - Request Form'!F222),IF('Blank - Request Form'!$F$7=\"CICSA\",IF(OR('Blank - Request Form'!O222=\"000\",'Blank - Request Form'!O222=0),\"\",'Blank - Request Form'!O222),\"\"))","v":""},{"$f":"IF('Blank - Request Form'!$F$6=\"CICSA\",IF(OR('Blank - Request Form'!G222=\"0\",'Blank - Request Form'!G222=\"00000\",'Blank - Request Form'!G222=0),\"\",'Blank - Request Form'!G222),IF('Blank - Request Form'!$F$7=\"CICSA\",IF(OR('Blank - Request Form'!P222=\"0\",'Blank - Request Form'!P222=\"00000\",'Blank - Request Form'!P222=0),\"\",'Blank - Request Form'!P222),\"\"))","v":""},{"$f":"IF('Blank - Request Form'!$F$6=\"CICSA\",IF(OR('Blank - Request Form'!H222=\"0\",'Blank - Request Form'!H222=\"00000\",'Blank - Request Form'!H222=0),\"\",'Blank - Request Form'!H222),IF('Blank - Request Form'!$F$7=\"CICSA\",IF(OR('Blank - Request Form'!Q222=\"0\",'Blank - Request Form'!Q222=\"00000\",'Blank - Request Form'!Q222=0),\"\",'Blank - Request Form'!Q222),\"\"))","v":""},{"$f":"IF('Blank - Request Form'!$F$6=\"CICSA\",IF(OR('Blank - Request Form'!I222=\"0\",'Blank - Request Form'!I222=\"00000\",'Blank - Request Form'!I222=0),\"\",'Blank - Request Form'!I222),IF('Blank - Request Form'!$F$7=\"CICSA\",IF(OR('Blank - Request Form'!R222=\"0\",'Blank - Request Form'!R222=\"00000\",'Blank - Request Form'!R222=0),\"\",'Blank - Request Form'!R222),\"\"))","v":""},null,{"$f":"IF('Blank - Request Form'!$F$6=\"CICSA\",IF('Blank - Request Form'!K222=0,\"\",'Blank - Request Form'!K222),IF('Blank - Request Form'!$F$7=\"CICSA\",IF('Blank - Request Form'!T222=0,\"\",'Blank - Request Form'!T222),\"\"))","v":""},null,null,null,{"$f":"IF(M188<>\"\",'Blank - Request Form'!$M$2,\"\")","v":""},{"$f":"IF('Blank - Request Form'!$F$6=\"CICSA\",IF('Blank - Request Form'!J222=0,\"\",'Blank - Request Form'!J222),IF('Blank - Request Form'!$F$7=\"CICSA\",IF('Blank - Request Form'!S222=0,\"\",'Blank - Request Form'!S222),\"\"))","v":""},"",188]
[{"$f":"IF('Blank - Request Form'!$F$6=\"CICSA\",IF('Blank - Request Form'!D223=0,\"\",'Blank - Request Form'!D223),IF('Blank - Request Form'!$F$7=\"CICSA\",IF('Blank - Request Form'!M223=0,\"\",'Blank - Request Form'!M223),\"\"))","v":""},{"$f":"IF('Blank - Request Form'!$F$6=\"CICSA\",IF('Blank - Request Form'!E223=0,\"\",'Blank - Request Form'!E223),IF('Blank - Request Form'!$F$7=\"CICSA\",IF('Blank - Request Form'!N223=0,\"\",'Blank - Request Form'!N223),\"\"))","v":""},{"$f":"IF('Blank - Request Form'!$F$6=\"CICSA\",IF(OR('Blank - Request Form'!F223=\"000\",'Blank - Request Form'!F223=0),\"\",'Blank - Request Form'!F223),IF('Blank - Request Form'!$F$7=\"CICSA\",IF(OR('Blank - Request Form'!O223=\"000\",'Blank - Request Form'!O223=0),\"\",'Blank - Request Form'!O223),\"\"))","v":""},{"$f":"IF('Blank - Request Form'!$F$6=\"CICSA\",IF(OR('Blank - Request Form'!G223=\"0\",'Blank - Request Form'!G223=\"00000\",'Blank - Request Form'!G223=0),\"\",'Blank - Request Form'!G223),IF('Blank - Request Form'!$F$7=\"CICSA\",IF(OR('Blank - Request Form'!P223=\"0\",'Blank - Request Form'!P223=\"00000\",'Blank - Request Form'!P223=0),\"\",'Blank - Request Form'!P223),\"\"))","v":""},{"$f":"IF('Blank - Request Form'!$F$6=\"CICSA\",IF(OR('Blank - Request Form'!H223=\"0\",'Blank - Request Form'!H223=\"00000\",'Blank - Request Form'!H223=0),\"\",'Blank - Request Form'!H223),IF('Blank - Request Form'!$F$7=\"CICSA\",IF(OR('Blank - Request Form'!Q223=\"0\",'Blank - Request Form'!Q223=\"00000\",'Blank - Request Form'!Q223=0),\"\",'Blank - Request Form'!Q223),\"\"))","v":""},{"$f":"IF('Blank - Request Form'!$F$6=\"CICSA\",IF(OR('Blank - Request Form'!I223=\"0\",'Blank - Request Form'!I223=\"00000\",'Blank - Request Form'!I223=0),\"\",'Blank - Request Form'!I223),IF('Blank - Request Form'!$F$7=\"CICSA\",IF(OR('Blank - Request Form'!R223=\"0\",'Blank - Request Form'!R223=\"00000\",'Blank - Request Form'!R223=0),\"\",'Blank - Request Form'!R223),\"\"))","v":""},null,{"$f":"IF('Blank - Request Form'!$F$6=\"CICSA\",IF('Blank - Request Form'!K223=0,\"\",'Blank - Request Form'!K223),IF('Blank - Request Form'!$F$7=\"CICSA\",IF('Blank - Request Form'!T223=0,\"\",'Blank - Request Form'!T223),\"\"))","v":""},null,null,null,{"$f":"IF(M189<>\"\",'Blank - Request Form'!$M$2,\"\")","v":""},{"$f":"IF('Blank - Request Form'!$F$6=\"CICSA\",IF('Blank - Request Form'!J223=0,\"\",'Blank - Request Form'!J223),IF('Blank - Request Form'!$F$7=\"CICSA\",IF('Blank - Request Form'!S223=0,\"\",'Blank - Request Form'!S223),\"\"))","v":""},"",189]
[{"$f":"IF('Blank - Request Form'!$F$6=\"CICSA\",IF('Blank - Request Form'!D224=0,\"\",'Blank - Request Form'!D224),IF('Blank - Request Form'!$F$7=\"CICSA\",IF('Blank - Request Form'!M224=0,\"\",'Blank - Request Form'!M224),\"\"))","v":""},{"$f":"IF('Blank - Request Form'!$F$6=\"CICSA\",IF('Blank - Request Form'!E224=0,\"\",'Blank - Request Form'!E224),IF('Blank - Request Form'!$F$7=\"CICSA\",IF('Blank - Request Form'!N224=0,\"\",'Blank - Request Form'!N224),\"\"))","v":""},{"$f":"IF('Blank - Request Form'!$F$6=\"CICSA\",IF(OR('Blank - Request Form'!F224=\"000\",'Blank - Request Form'!F224=0),\"\",'Blank - Request Form'!F224),IF('Blank - Request Form'!$F$7=\"CICSA\",IF(OR('Blank - Request Form'!O224=\"000\",'Blank - Request Form'!O224=0),\"\",'Blank - Request Form'!O224),\"\"))","v":""},{"$f":"IF('Blank - Request Form'!$F$6=\"CICSA\",IF(OR('Blank - Request Form'!G224=\"0\",'Blank - Request Form'!G224=\"00000\",'Blank - Request Form'!G224=0),\"\",'Blank - Request Form'!G224),IF('Blank - Request Form'!$F$7=\"CICSA\",IF(OR('Blank - Request Form'!P224=\"0\",'Blank - Request Form'!P224=\"00000\",'Blank - Request Form'!P224=0),\"\",'Blank - Request Form'!P224),\"\"))","v":""},{"$f":"IF('Blank - Request Form'!$F$6=\"CICSA\",IF(OR('Blank - Request Form'!H224=\"0\",'Blank - Request Form'!H224=\"00000\",'Blank - Request Form'!H224=0),\"\",'Blank - Request Form'!H224),IF('Blank - Request Form'!$F$7=\"CICSA\",IF(OR('Blank - Request Form'!Q224=\"0\",'Blank - Request Form'!Q224=\"00000\",'Blank - Request Form'!Q224=0),\"\",'Blank - Request Form'!Q224),\"\"))","v":""},{"$f":"IF('Blank - Request Form'!$F$6=\"CICSA\",IF(OR('Blank - Request Form'!I224=\"0\",'Blank - Request Form'!I224=\"00000\",'Blank - Request Form'!I224=0),\"\",'Blank - Request Form'!I224),IF('Blank - Request Form'!$F$7=\"CICSA\",IF(OR('Blank - Request Form'!R224=\"0\",'Blank - Request Form'!R224=\"00000\",'Blank - Request Form'!R224=0),\"\",'Blank - Request Form'!R224),\"\"))","v":""},null,{"$f":"IF('Blank - Request Form'!$F$6=\"CICSA\",IF('Blank - Request Form'!K224=0,\"\",'Blank - Request Form'!K224),IF('Blank - Request Form'!$F$7=\"CICSA\",IF('Blank - Request Form'!T224=0,\"\",'Blank - Request Form'!T224),\"\"))","v":""},null,null,null,{"$f":"IF(M190<>\"\",'Blank - Request Form'!$M$2,\"\")","v":""},{"$f":"IF('Blank - Request Form'!$F$6=\"CICSA\",IF('Blank - Request Form'!J224=0,\"\",'Blank - Request Form'!J224),IF('Blank - Request Form'!$F$7=\"CICSA\",IF('Blank - Request Form'!S224=0,\"\",'Blank - Request Form'!S224),\"\"))","v":""},"",190]
[{"$f":"IF('Blank - Request Form'!$F$6=\"CICSA\",IF('Blank - Request Form'!D225=0,\"\",'Blank - Request Form'!D225),IF('Blank - Request Form'!$F$7=\"CICSA\",IF('Blank - Request Form'!M225=0,\"\",'Blank - Request Form'!M225),\"\"))","v":""},{"$f":"IF('Blank - Request Form'!$F$6=\"CICSA\",IF('Blank - Request Form'!E225=0,\"\",'Blank - Request Form'!E225),IF('Blank - Request Form'!$F$7=\"CICSA\",IF('Blank - Request Form'!N225=0,\"\",'Blank - Request Form'!N225),\"\"))","v":""},{"$f":"IF('Blank - Request Form'!$F$6=\"CICSA\",IF(OR('Blank - Request Form'!F225=\"000\",'Blank - Request Form'!F225=0),\"\",'Blank - Request Form'!F225),IF('Blank - Request Form'!$F$7=\"CICSA\",IF(OR('Blank - Request Form'!O225=\"000\",'Blank - Request Form'!O225=0),\"\",'Blank - Request Form'!O225),\"\"))","v":""},{"$f":"IF('Blank - Request Form'!$F$6=\"CICSA\",IF(OR('Blank - Request Form'!G225=\"0\",'Blank - Request Form'!G225=\"00000\",'Blank - Request Form'!G225=0),\"\",'Blank - Request Form'!G225),IF('Blank - Request Form'!$F$7=\"CICSA\",IF(OR('Blank - Request Form'!P225=\"0\",'Blank - Request Form'!P225=\"00000\",'Blank - Request Form'!P225=0),\"\",'Blank - Request Form'!P225),\"\"))","v":""},{"$f":"IF('Blank - Request Form'!$F$6=\"CICSA\",IF(OR('Blank - Request Form'!H225=\"0\",'Blank - Request Form'!H225=\"00000\",'Blank - Request Form'!H225=0),\"\",'Blank - Request Form'!H225),IF('Blank - Request Form'!$F$7=\"CICSA\",IF(OR('Blank - Request Form'!Q225=\"0\",'Blank - Request Form'!Q225=\"00000\",'Blank - Request Form'!Q225=0),\"\",'Blank - Request Form'!Q225),\"\"))","v":""},{"$f":"IF('Blank - Request Form'!$F$6=\"CICSA\",IF(OR('Blank - Request Form'!I225=\"0\",'Blank - Request Form'!I225=\"00000\",'Blank - Request Form'!I225=0),\"\",'Blank - Request Form'!I225),IF('Blank - Request Form'!$F$7=\"CICSA\",IF(OR('Blank - Request Form'!R225=\"0\",'Blank - Request Form'!R225=\"00000\",'Blank - Request Form'!R225=0),\"\",'Blank - Request Form'!R225),\"\"))","v":""},null,{"$f":"IF('Blank - Request Form'!$F$6=\"CICSA\",IF('Blank - Request Form'!K225=0,\"\",'Blank - Request Form'!K225),IF('Blank - Request Form'!$F$7=\"CICSA\",IF('Blank - Request Form'!T225=0,\"\",'Blank - Request Form'!T225),\"\"))","v":""},null,null,null,{"$f":"IF(M191<>\"\",'Blank - Request Form'!$M$2,\"\")","v":""},{"$f":"IF('Blank - Request Form'!$F$6=\"CICSA\",IF('Blank - Request Form'!J225=0,\"\",'Blank - Request Form'!J225),IF('Blank - Request Form'!$F$7=\"CICSA\",IF('Blank - Request Form'!S225=0,\"\",'Blank - Request Form'!S225),\"\"))","v":""},"",191]
[{"$f":"IF('Blank - Request Form'!$F$6=\"CICSA\",IF('Blank - Request Form'!D226=0,\"\",'Blank - Request Form'!D226),IF('Blank - Request Form'!$F$7=\"CICSA\",IF('Blank - Request Form'!M226=0,\"\",'Blank - Request Form'!M226),\"\"))","v":""},{"$f":"IF('Blank - Request Form'!$F$6=\"CICSA\",IF('Blank - Request Form'!E226=0,\"\",'Blank - Request Form'!E226),IF('Blank - Request Form'!$F$7=\"CICSA\",IF('Blank - Request Form'!N226=0,\"\",'Blank - Request Form'!N226),\"\"))","v":""},{"$f":"IF('Blank - Request Form'!$F$6=\"CICSA\",IF(OR('Blank - Request Form'!F226=\"000\",'Blank - Request Form'!F226=0),\"\",'Blank - Request Form'!F226),IF('Blank - Request Form'!$F$7=\"CICSA\",IF(OR('Blank - Request Form'!O226=\"000\",'Blank - Request Form'!O226=0),\"\",'Blank - Request Form'!O226),\"\"))","v":""},{"$f":"IF('Blank - Request Form'!$F$6=\"CICSA\",IF(OR('Blank - Request Form'!G226=\"0\",'Blank - Request Form'!G226=\"00000\",'Blank - Request Form'!G226=0),\"\",'Blank - Request Form'!G226),IF('Blank - Request Form'!$F$7=\"CICSA\",IF(OR('Blank - Request Form'!P226=\"0\",'Blank - Request Form'!P226=\"00000\",'Blank - Request Form'!P226=0),\"\",'Blank - Request Form'!P226),\"\"))","v":""},{"$f":"IF('Blank - Request Form'!$F$6=\"CICSA\",IF(OR('Blank - Request Form'!H226=\"0\",'Blank - Request Form'!H226=\"00000\",'Blank - Request Form'!H226=0),\"\",'Blank - Request Form'!H226),IF('Blank - Request Form'!$F$7=\"CICSA\",IF(OR('Blank - Request Form'!Q226=\"0\",'Blank - Request Form'!Q226=\"00000\",'Blank - Request Form'!Q226=0),\"\",'Blank - Request Form'!Q226),\"\"))","v":""},{"$f":"IF('Blank - Request Form'!$F$6=\"CICSA\",IF(OR('Blank - Request Form'!I226=\"0\",'Blank - Request Form'!I226=\"00000\",'Blank - Request Form'!I226=0),\"\",'Blank - Request Form'!I226),IF('Blank - Request Form'!$F$7=\"CICSA\",IF(OR('Blank - Request Form'!R226=\"0\",'Blank - Request Form'!R226=\"00000\",'Blank - Request Form'!R226=0),\"\",'Blank - Request Form'!R226),\"\"))","v":""},null,{"$f":"IF('Blank - Request Form'!$F$6=\"CICSA\",IF('Blank - Request Form'!K226=0,\"\",'Blank - Request Form'!K226),IF('Blank - Request Form'!$F$7=\"CICSA\",IF('Blank - Request Form'!T226=0,\"\",'Blank - Request Form'!T226),\"\"))","v":""},null,null,null,{"$f":"IF(M192<>\"\",'Blank - Request Form'!$M$2,\"\")","v":""},{"$f":"IF('Blank - Request Form'!$F$6=\"CICSA\",IF('Blank - Request Form'!J226=0,\"\",'Blank - Request Form'!J226),IF('Blank - Request Form'!$F$7=\"CICSA\",IF('Blank - Request Form'!S226=0,\"\",'Blank - Request Form'!S226),\"\"))","v":""},"",192]
[{"$f":"IF('Blank - Request Form'!$F$6=\"CICSA\",IF('Blank - Request Form'!D227=0,\"\",'Blank - Request Form'!D227),IF('Blank - Request Form'!$F$7=\"CICSA\",IF('Blank - Request Form'!M227=0,\"\",'Blank - Request Form'!M227),\"\"))","v":""},{"$f":"IF('Blank - Request Form'!$F$6=\"CICSA\",IF('Blank - Request Form'!E227=0,\"\",'Blank - Request Form'!E227),IF('Blank - Request Form'!$F$7=\"CICSA\",IF('Blank - Request Form'!N227=0,\"\",'Blank - Request Form'!N227),\"\"))","v":""},{"$f":"IF('Blank - Request Form'!$F$6=\"CICSA\",IF(OR('Blank - Request Form'!F227=\"000\",'Blank - Request Form'!F227=0),\"\",'Blank - Request Form'!F227),IF('Blank - Request Form'!$F$7=\"CICSA\",IF(OR('Blank - Request Form'!O227=\"000\",'Blank - Request Form'!O227=0),\"\",'Blank - Request Form'!O227),\"\"))","v":""},{"$f":"IF('Blank - Request Form'!$F$6=\"CICSA\",IF(OR('Blank - Request Form'!G227=\"0\",'Blank - Request Form'!G227=\"00000\",'Blank - Request Form'!G227=0),\"\",'Blank - Request Form'!G227),IF('Blank - Request Form'!$F$7=\"CICSA\",IF(OR('Blank - Request Form'!P227=\"0\",'Blank - Request Form'!P227=\"00000\",'Blank - Request Form'!P227=0),\"\",'Blank - Request Form'!P227),\"\"))","v":""},{"$f":"IF('Blank - Request Form'!$F$6=\"CICSA\",IF(OR('Blank - Request Form'!H227=\"0\",'Blank - Request Form'!H227=\"00000\",'Blank - Request Form'!H227=0),\"\",'Blank - Request Form'!H227),IF('Blank - Request Form'!$F$7=\"CICSA\",IF(OR('Blank - Request Form'!Q227=\"0\",'Blank - Request Form'!Q227=\"00000\",'Blank - Request Form'!Q227=0),\"\",'Blank - Request Form'!Q227),\"\"))","v":""},{"$f":"IF('Blank - Request Form'!$F$6=\"CICSA\",IF(OR('Blank - Request Form'!I227=\"0\",'Blank - Request Form'!I227=\"00000\",'Blank - Request Form'!I227=0),\"\",'Blank - Request Form'!I227),IF('Blank - Request Form'!$F$7=\"CICSA\",IF(OR('Blank - Request Form'!R227=\"0\",'Blank - Request Form'!R227=\"00000\",'Blank - Request Form'!R227=0),\"\",'Blank - Request Form'!R227),\"\"))","v":""},null,{"$f":"IF('Blank - Request Form'!$F$6=\"CICSA\",IF('Blank - Request Form'!K227=0,\"\",'Blank - Request Form'!K227),IF('Blank - Request Form'!$F$7=\"CICSA\",IF('Blank - Request Form'!T227=0,\"\",'Blank - Request Form'!T227),\"\"))","v":""},null,null,null,{"$f":"IF(M193<>\"\",'Blank - Request Form'!$M$2,\"\")","v":""},{"$f":"IF('Blank - Request Form'!$F$6=\"CICSA\",IF('Blank - Request Form'!J227=0,\"\",'Blank - Request Form'!J227),IF('Blank - Request Form'!$F$7=\"CICSA\",IF('Blank - Request Form'!S227=0,\"\",'Blank - Request Form'!S227),\"\"))","v":""},"",193]
[{"$f":"IF('Blank - Request Form'!$F$6=\"CICSA\",IF('Blank - Request Form'!D228=0,\"\",'Blank - Request Form'!D228),IF('Blank - Request Form'!$F$7=\"CICSA\",IF('Blank - Request Form'!M228=0,\"\",'Blank - Request Form'!M228),\"\"))","v":""},{"$f":"IF('Blank - Request Form'!$F$6=\"CICSA\",IF('Blank - Request Form'!E228=0,\"\",'Blank - Request Form'!E228),IF('Blank - Request Form'!$F$7=\"CICSA\",IF('Blank - Request Form'!N228=0,\"\",'Blank - Request Form'!N228),\"\"))","v":""},{"$f":"IF('Blank - Request Form'!$F$6=\"CICSA\",IF(OR('Blank - Request Form'!F228=\"000\",'Blank - Request Form'!F228=0),\"\",'Blank - Request Form'!F228),IF('Blank - Request Form'!$F$7=\"CICSA\",IF(OR('Blank - Request Form'!O228=\"000\",'Blank - Request Form'!O228=0),\"\",'Blank - Request Form'!O228),\"\"))","v":""},{"$f":"IF('Blank - Request Form'!$F$6=\"CICSA\",IF(OR('Blank - Request Form'!G228=\"0\",'Blank - Request Form'!G228=\"00000\",'Blank - Request Form'!G228=0),\"\",'Blank - Request Form'!G228),IF('Blank - Request Form'!$F$7=\"CICSA\",IF(OR('Blank - Request Form'!P228=\"0\",'Blank - Request Form'!P228=\"00000\",'Blank - Request Form'!P228=0),\"\",'Blank - Request Form'!P228),\"\"))","v":""},{"$f":"IF('Blank - Request Form'!$F$6=\"CICSA\",IF(OR('Blank - Request Form'!H228=\"0\",'Blank - Request Form'!H228=\"00000\",'Blank - Request Form'!H228=0),\"\",'Blank - Request Form'!H228),IF('Blank - Request Form'!$F$7=\"CICSA\",IF(OR('Blank - Request Form'!Q228=\"0\",'Blank - Request Form'!Q228=\"00000\",'Blank - Request Form'!Q228=0),\"\",'Blank - Request Form'!Q228),\"\"))","v":""},{"$f":"IF('Blank - Request Form'!$F$6=\"CICSA\",IF(OR('Blank - Request Form'!I228=\"0\",'Blank - Request Form'!I228=\"00000\",'Blank - Request Form'!I228=0),\"\",'Blank - Request Form'!I228),IF('Blank - Request Form'!$F$7=\"CICSA\",IF(OR('Blank - Request Form'!R228=\"0\",'Blank - Request Form'!R228=\"00000\",'Blank - Request Form'!R228=0),\"\",'Blank - Request Form'!R228),\"\"))","v":""},null,{"$f":"IF('Blank - Request Form'!$F$6=\"CICSA\",IF('Blank - Request Form'!K228=0,\"\",'Blank - Request Form'!K228),IF('Blank - Request Form'!$F$7=\"CICSA\",IF('Blank - Request Form'!T228=0,\"\",'Blank - Request Form'!T228),\"\"))","v":""},null,null,null,{"$f":"IF(M194<>\"\",'Blank - Request Form'!$M$2,\"\")","v":""},{"$f":"IF('Blank - Request Form'!$F$6=\"CICSA\",IF('Blank - Request Form'!J228=0,\"\",'Blank - Request Form'!J228),IF('Blank - Request Form'!$F$7=\"CICSA\",IF('Blank - Request Form'!S228=0,\"\",'Blank - Request Form'!S228),\"\"))","v":""},"",194]
[{"$f":"IF('Blank - Request Form'!$F$6=\"CICSA\",IF('Blank - Request Form'!D229=0,\"\",'Blank - Request Form'!D229),IF('Blank - Request Form'!$F$7=\"CICSA\",IF('Blank - Request Form'!M229=0,\"\",'Blank - Request Form'!M229),\"\"))","v":""},{"$f":"IF('Blank - Request Form'!$F$6=\"CICSA\",IF('Blank - Request Form'!E229=0,\"\",'Blank - Request Form'!E229),IF('Blank - Request Form'!$F$7=\"CICSA\",IF('Blank - Request Form'!N229=0,\"\",'Blank - Request Form'!N229),\"\"))","v":""},{"$f":"IF('Blank - Request Form'!$F$6=\"CICSA\",IF(OR('Blank - Request Form'!F229=\"000\",'Blank - Request Form'!F229=0),\"\",'Blank - Request Form'!F229),IF('Blank - Request Form'!$F$7=\"CICSA\",IF(OR('Blank - Request Form'!O229=\"000\",'Blank - Request Form'!O229=0),\"\",'Blank - Request Form'!O229),\"\"))","v":""},{"$f":"IF('Blank - Request Form'!$F$6=\"CICSA\",IF(OR('Blank - Request Form'!G229=\"0\",'Blank - Request Form'!G229=\"00000\",'Blank - Request Form'!G229=0),\"\",'Blank - Request Form'!G229),IF('Blank - Request Form'!$F$7=\"CICSA\",IF(OR('Blank - Request Form'!P229=\"0\",'Blank - Request Form'!P229=\"00000\",'Blank - Request Form'!P229=0),\"\",'Blank - Request Form'!P229),\"\"))","v":""},{"$f":"IF('Blank - Request Form'!$F$6=\"CICSA\",IF(OR('Blank - Request Form'!H229=\"0\",'Blank - Request Form'!H229=\"00000\",'Blank - Request Form'!H229=0),\"\",'Blank - Request Form'!H229),IF('Blank - Request Form'!$F$7=\"CICSA\",IF(OR('Blank - Request Form'!Q229=\"0\",'Blank - Request Form'!Q229=\"00000\",'Blank - Request Form'!Q229=0),\"\",'Blank - Request Form'!Q229),\"\"))","v":""},{"$f":"IF('Blank - Request Form'!$F$6=\"CICSA\",IF(OR('Blank - Request Form'!I229=\"0\",'Blank - Request Form'!I229=\"00000\",'Blank - Request Form'!I229=0),\"\",'Blank - Request Form'!I229),IF('Blank - Request Form'!$F$7=\"CICSA\",IF(OR('Blank - Request Form'!R229=\"0\",'Blank - Request Form'!R229=\"00000\",'Blank - Request Form'!R229=0),\"\",'Blank - Request Form'!R229),\"\"))","v":""},null,{"$f":"IF('Blank - Request Form'!$F$6=\"CICSA\",IF('Blank - Request Form'!K229=0,\"\",'Blank - Request Form'!K229),IF('Blank - Request Form'!$F$7=\"CICSA\",IF('Blank - Request Form'!T229=0,\"\",'Blank - Request Form'!T229),\"\"))","v":""},null,null,null,{"$f":"IF(M195<>\"\",'Blank - Request Form'!$M$2,\"\")","v":""},{"$f":"IF('Blank - Request Form'!$F$6=\"CICSA\",IF('Blank - Request Form'!J229=0,\"\",'Blank - Request Form'!J229),IF('Blank - Request Form'!$F$7=\"CICSA\",IF('Blank - Request Form'!S229=0,\"\",'Blank - Request Form'!S229),\"\"))","v":""},"",195]
[{"$f":"IF('Blank - Request Form'!$F$6=\"CICSA\",IF('Blank - Request Form'!D230=0,\"\",'Blank - Request Form'!D230),IF('Blank - Request Form'!$F$7=\"CICSA\",IF('Blank - Request Form'!M230=0,\"\",'Blank - Request Form'!M230),\"\"))","v":""},{"$f":"IF('Blank - Request Form'!$F$6=\"CICSA\",IF('Blank - Request Form'!E230=0,\"\",'Blank - Request Form'!E230),IF('Blank - Request Form'!$F$7=\"CICSA\",IF('Blank - Request Form'!N230=0,\"\",'Blank - Request Form'!N230),\"\"))","v":""},{"$f":"IF('Blank - Request Form'!$F$6=\"CICSA\",IF(OR('Blank - Request Form'!F230=\"000\",'Blank - Request Form'!F230=0),\"\",'Blank - Request Form'!F230),IF('Blank - Request Form'!$F$7=\"CICSA\",IF(OR('Blank - Request Form'!O230=\"000\",'Blank - Request Form'!O230=0),\"\",'Blank - Request Form'!O230),\"\"))","v":""},{"$f":"IF('Blank - Request Form'!$F$6=\"CICSA\",IF(OR('Blank - Request Form'!G230=\"0\",'Blank - Request Form'!G230=\"00000\",'Blank - Request Form'!G230=0),\"\",'Blank - Request Form'!G230),IF('Blank - Request Form'!$F$7=\"CICSA\",IF(OR('Blank - Request Form'!P230=\"0\",'Blank - Request Form'!P230=\"00000\",'Blank - Request Form'!P230=0),\"\",'Blank - Request Form'!P230),\"\"))","v":""},{"$f":"IF('Blank - Request Form'!$F$6=\"CICSA\",IF(OR('Blank - Request Form'!H230=\"0\",'Blank - Request Form'!H230=\"00000\",'Blank - Request Form'!H230=0),\"\",'Blank - Request Form'!H230),IF('Blank - Request Form'!$F$7=\"CICSA\",IF(OR('Blank - Request Form'!Q230=\"0\",'Blank - Request Form'!Q230=\"00000\",'Blank - Request Form'!Q230=0),\"\",'Blank - Request Form'!Q230),\"\"))","v":""},{"$f":"IF('Blank - Request Form'!$F$6=\"CICSA\",IF(OR('Blank - Request Form'!I230=\"0\",'Blank - Request Form'!I230=\"00000\",'Blank - Request Form'!I230=0),\"\",'Blank - Request Form'!I230),IF('Blank - Request Form'!$F$7=\"CICSA\",IF(OR('Blank - Request Form'!R230=\"0\",'Blank - Request Form'!R230=\"00000\",'Blank - Request Form'!R230=0),\"\",'Blank - Request Form'!R230),\"\"))","v":""},null,{"$f":"IF('Blank - Request Form'!$F$6=\"CICSA\",IF('Blank - Request Form'!K230=0,\"\",'Blank - Request Form'!K230),IF('Blank - Request Form'!$F$7=\"CICSA\",IF('Blank - Request Form'!T230=0,\"\",'Blank - Request Form'!T230),\"\"))","v":""},null,null,null,{"$f":"IF(M196<>\"\",'Blank - Request Form'!$M$2,\"\")","v":""},{"$f":"IF('Blank - Request Form'!$F$6=\"CICSA\",IF('Blank - Request Form'!J230=0,\"\",'Blank - Request Form'!J230),IF('Blank - Request Form'!$F$7=\"CICSA\",IF('Blank - Request Form'!S230=0,\"\",'Blank - Request Form'!S230),\"\"))","v":""},"",196]
[{"$f":"IF('Blank - Request Form'!$F$6=\"CICSA\",IF('Blank - Request Form'!D231=0,\"\",'Blank - Request Form'!D231),IF('Blank - Request Form'!$F$7=\"CICSA\",IF('Blank - Request Form'!M231=0,\"\",'Blank - Request Form'!M231),\"\"))","v":""},{"$f":"IF('Blank - Request Form'!$F$6=\"CICSA\",IF('Blank - Request Form'!E231=0,\"\",'Blank - Request Form'!E231),IF('Blank - Request Form'!$F$7=\"CICSA\",IF('Blank - Request Form'!N231=0,\"\",'Blank - Request Form'!N231),\"\"))","v":""},{"$f":"IF('Blank - Request Form'!$F$6=\"CICSA\",IF(OR('Blank - Request Form'!F231=\"000\",'Blank - Request Form'!F231=0),\"\",'Blank - Request Form'!F231),IF('Blank - Request Form'!$F$7=\"CICSA\",IF(OR('Blank - Request Form'!O231=\"000\",'Blank - Request Form'!O231=0),\"\",'Blank - Request Form'!O231),\"\"))","v":""},{"$f":"IF('Blank - Request Form'!$F$6=\"CICSA\",IF(OR('Blank - Request Form'!G231=\"0\",'Blank - Request Form'!G231=\"00000\",'Blank - Request Form'!G231=0),\"\",'Blank - Request Form'!G231),IF('Blank - Request Form'!$F$7=\"CICSA\",IF(OR('Blank - Request Form'!P231=\"0\",'Blank - Request Form'!P231=\"00000\",'Blank - Request Form'!P231=0),\"\",'Blank - Request Form'!P231),\"\"))","v":""},{"$f":"IF('Blank - Request Form'!$F$6=\"CICSA\",IF(OR('Blank - Request Form'!H231=\"0\",'Blank - Request Form'!H231=\"00000\",'Blank - Request Form'!H231=0),\"\",'Blank - Request Form'!H231),IF('Blank - Request Form'!$F$7=\"CICSA\",IF(OR('Blank - Request Form'!Q231=\"0\",'Blank - Request Form'!Q231=\"00000\",'Blank - Request Form'!Q231=0),\"\",'Blank - Request Form'!Q231),\"\"))","v":""},{"$f":"IF('Blank - Request Form'!$F$6=\"CICSA\",IF(OR('Blank - Request Form'!I231=\"0\",'Blank - Request Form'!I231=\"00000\",'Blank - Request Form'!I231=0),\"\",'Blank - Request Form'!I231),IF('Blank - Request Form'!$F$7=\"CICSA\",IF(OR('Blank - Request Form'!R231=\"0\",'Blank - Request Form'!R231=\"00000\",'Blank - Request Form'!R231=0),\"\",'Blank - Request Form'!R231),\"\"))","v":""},null,{"$f":"IF('Blank - Request Form'!$F$6=\"CICSA\",IF('Blank - Request Form'!K231=0,\"\",'Blank - Request Form'!K231),IF('Blank - Request Form'!$F$7=\"CICSA\",IF('Blank - Request Form'!T231=0,\"\",'Blank - Request Form'!T231),\"\"))","v":""},null,null,null,{"$f":"IF(M197<>\"\",'Blank - Request Form'!$M$2,\"\")","v":""},{"$f":"IF('Blank - Request Form'!$F$6=\"CICSA\",IF('Blank - Request Form'!J231=0,\"\",'Blank - Request Form'!J231),IF('Blank - Request Form'!$F$7=\"CICSA\",IF('Blank - Request Form'!S231=0,\"\",'Blank - Request Form'!S231),\"\"))","v":""},"",197]
[{"$f":"IF('Blank - Request Form'!$F$6=\"CICSA\",IF('Blank - Request Form'!D232=0,\"\",'Blank - Request Form'!D232),IF('Blank - Request Form'!$F$7=\"CICSA\",IF('Blank - Request Form'!M232=0,\"\",'Blank - Request Form'!M232),\"\"))","v":""},{"$f":"IF('Blank - Request Form'!$F$6=\"CICSA\",IF('Blank - Request Form'!E232=0,\"\",'Blank - Request Form'!E232),IF('Blank - Request Form'!$F$7=\"CICSA\",IF('Blank - Request Form'!N232=0,\"\",'Blank - Request Form'!N232),\"\"))","v":""},{"$f":"IF('Blank - Request Form'!$F$6=\"CICSA\",IF(OR('Blank - Request Form'!F232=\"000\",'Blank - Request Form'!F232=0),\"\",'Blank - Request Form'!F232),IF('Blank - Request Form'!$F$7=\"CICSA\",IF(OR('Blank - Request Form'!O232=\"000\",'Blank - Request Form'!O232=0),\"\",'Blank - Request Form'!O232),\"\"))","v":""},{"$f":"IF('Blank - Request Form'!$F$6=\"CICSA\",IF(OR('Blank - Request Form'!G232=\"0\",'Blank - Request Form'!G232=\"00000\",'Blank - Request Form'!G232=0),\"\",'Blank - Request Form'!G232),IF('Blank - Request Form'!$F$7=\"CICSA\",IF(OR('Blank - Request Form'!P232=\"0\",'Blank - Request Form'!P232=\"00000\",'Blank - Request Form'!P232=0),\"\",'Blank - Request Form'!P232),\"\"))","v":""},{"$f":"IF('Blank - Request Form'!$F$6=\"CICSA\",IF(OR('Blank - Request Form'!H232=\"0\",'Blank - Request Form'!H232=\"00000\",'Blank - Request Form'!H232=0),\"\",'Blank - Request Form'!H232),IF('Blank - Request Form'!$F$7=\"CICSA\",IF(OR('Blank - Request Form'!Q232=\"0\",'Blank - Request Form'!Q232=\"00000\",'Blank - Request Form'!Q232=0),\"\",'Blank - Request Form'!Q232),\"\"))","v":""},{"$f":"IF('Blank - Request Form'!$F$6=\"CICSA\",IF(OR('Blank - Request Form'!I232=\"0\",'Blank - Request Form'!I232=\"00000\",'Blank - Request Form'!I232=0),\"\",'Blank - Request Form'!I232),IF('Blank - Request Form'!$F$7=\"CICSA\",IF(OR('Blank - Request Form'!R232=\"0\",'Blank - Request Form'!R232=\"00000\",'Blank - Request Form'!R232=0),\"\",'Blank - Request Form'!R232),\"\"))","v":""},null,{"$f":"IF('Blank - Request Form'!$F$6=\"CICSA\",IF('Blank - Request Form'!K232=0,\"\",'Blank - Request Form'!K232),IF('Blank - Request Form'!$F$7=\"CICSA\",IF('Blank - Request Form'!T232=0,\"\",'Blank - Request Form'!T232),\"\"))","v":""},null,null,null,{"$f":"IF(M198<>\"\",'Blank - Request Form'!$M$2,\"\")","v":""},{"$f":"IF('Blank - Request Form'!$F$6=\"CICSA\",IF('Blank - Request Form'!J232=0,\"\",'Blank - Request Form'!J232),IF('Blank - Request Form'!$F$7=\"CICSA\",IF('Blank - Request Form'!S232=0,\"\",'Blank - Request Form'!S232),\"\"))","v":""},"",198]
[{"$f":"IF('Blank - Request Form'!$F$6=\"CICSA\",IF('Blank - Request Form'!D233=0,\"\",'Blank - Request Form'!D233),IF('Blank - Request Form'!$F$7=\"CICSA\",IF('Blank - Request Form'!M233=0,\"\",'Blank - Request Form'!M233),\"\"))","v":""},{"$f":"IF('Blank - Request Form'!$F$6=\"CICSA\",IF('Blank - Request Form'!E233=0,\"\",'Blank - Request Form'!E233),IF('Blank - Request Form'!$F$7=\"CICSA\",IF('Blank - Request Form'!N233=0,\"\",'Blank - Request Form'!N233),\"\"))","v":""},{"$f":"IF('Blank - Request Form'!$F$6=\"CICSA\",IF(OR('Blank - Request Form'!F233=\"000\",'Blank - Request Form'!F233=0),\"\",'Blank - Request Form'!F233),IF('Blank - Request Form'!$F$7=\"CICSA\",IF(OR('Blank - Request Form'!O233=\"000\",'Blank - Request Form'!O233=0),\"\",'Blank - Request Form'!O233),\"\"))","v":""},{"$f":"IF('Blank - Request Form'!$F$6=\"CICSA\",IF(OR('Blank - Request Form'!G233=\"0\",'Blank - Request Form'!G233=\"00000\",'Blank - Request Form'!G233=0),\"\",'Blank - Request Form'!G233),IF('Blank - Request Form'!$F$7=\"CICSA\",IF(OR('Blank - Request Form'!P233=\"0\",'Blank - Request Form'!P233=\"00000\",'Blank - Request Form'!P233=0),\"\",'Blank - Request Form'!P233),\"\"))","v":""},{"$f":"IF('Blank - Request Form'!$F$6=\"CICSA\",IF(OR('Blank - Request Form'!H233=\"0\",'Blank - Request Form'!H233=\"00000\",'Blank - Request Form'!H233=0),\"\",'Blank - Request Form'!H233),IF('Blank - Request Form'!$F$7=\"CICSA\",IF(OR('Blank - Request Form'!Q233=\"0\",'Blank - Request Form'!Q233=\"00000\",'Blank - Request Form'!Q233=0),\"\",'Blank - Request Form'!Q233),\"\"))","v":""},{"$f":"IF('Blank - Request Form'!$F$6=\"CICSA\",IF(OR('Blank - Request Form'!I233=\"0\",'Blank - Request Form'!I233=\"00000\",'Blank - Request Form'!I233=0),\"\",'Blank - Request Form'!I233),IF('Blank - Request Form'!$F$7=\"CICSA\",IF(OR('Blank - Request Form'!R233=\"0\",'Blank - Request Form'!R233=\"00000\",'Blank - Request Form'!R233=0),\"\",'Blank - Request Form'!R233),\"\"))","v":""},null,{"$f":"IF('Blank - Request Form'!$F$6=\"CICSA\",IF('Blank - Request Form'!K233=0,\"\",'Blank - Request Form'!K233),IF('Blank - Request Form'!$F$7=\"CICSA\",IF('Blank - Request Form'!T233=0,\"\",'Blank - Request Form'!T233),\"\"))","v":""},null,null,null,{"$f":"IF(M199<>\"\",'Blank - Request Form'!$M$2,\"\")","v":""},{"$f":"IF('Blank - Request Form'!$F$6=\"CICSA\",IF('Blank - Request Form'!J233=0,\"\",'Blank - Request Form'!J233),IF('Blank - Request Form'!$F$7=\"CICSA\",IF('Blank - Request Form'!S233=0,\"\",'Blank - Request Form'!S233),\"\"))","v":""},"",199]
[{"$f":"IF('Blank - Request Form'!$F$6=\"CICSA\",IF('Blank - Request Form'!D234=0,\"\",'Blank - Request Form'!D234),IF('Blank - Request Form'!$F$7=\"CICSA\",IF('Blank - Request Form'!M234=0,\"\",'Blank - Request Form'!M234),\"\"))","v":""},{"$f":"IF('Blank - Request Form'!$F$6=\"CICSA\",IF('Blank - Request Form'!E234=0,\"\",'Blank - Request Form'!E234),IF('Blank - Request Form'!$F$7=\"CICSA\",IF('Blank - Request Form'!N234=0,\"\",'Blank - Request Form'!N234),\"\"))","v":""},{"$f":"IF('Blank - Request Form'!$F$6=\"CICSA\",IF(OR('Blank - Request Form'!F234=\"000\",'Blank - Request Form'!F234=0),\"\",'Blank - Request Form'!F234),IF('Blank - Request Form'!$F$7=\"CICSA\",IF(OR('Blank - Request Form'!O234=\"000\",'Blank - Request Form'!O234=0),\"\",'Blank - Request Form'!O234),\"\"))","v":""},{"$f":"IF('Blank - Request Form'!$F$6=\"CICSA\",IF(OR('Blank - Request Form'!G234=\"0\",'Blank - Request Form'!G234=\"00000\",'Blank - Request Form'!G234=0),\"\",'Blank - Request Form'!G234),IF('Blank - Request Form'!$F$7=\"CICSA\",IF(OR('Blank - Request Form'!P234=\"0\",'Blank - Request Form'!P234=\"00000\",'Blank - Request Form'!P234=0),\"\",'Blank - Request Form'!P234),\"\"))","v":""},{"$f":"IF('Blank - Request Form'!$F$6=\"CICSA\",IF(OR('Blank - Request Form'!H234=\"0\",'Blank - Request Form'!H234=\"00000\",'Blank - Request Form'!H234=0),\"\",'Blank - Request Form'!H234),IF('Blank - Request Form'!$F$7=\"CICSA\",IF(OR('Blank - Request Form'!Q234=\"0\",'Blank - Request Form'!Q234=\"00000\",'Blank - Request Form'!Q234=0),\"\",'Blank - Request Form'!Q234),\"\"))","v":""},{"$f":"IF('Blank - Request Form'!$F$6=\"CICSA\",IF(OR('Blank - Request Form'!I234=\"0\",'Blank - Request Form'!I234=\"00000\",'Blank - Request Form'!I234=0),\"\",'Blank - Request Form'!I234),IF('Blank - Request Form'!$F$7=\"CICSA\",IF(OR('Blank - Request Form'!R234=\"0\",'Blank - Request Form'!R234=\"00000\",'Blank - Request Form'!R234=0),\"\",'Blank - Request Form'!R234),\"\"))","v":""},null,{"$f":"IF('Blank - Request Form'!$F$6=\"CICSA\",IF('Blank - Request Form'!K234=0,\"\",'Blank - Request Form'!K234),IF('Blank - Request Form'!$F$7=\"CICSA\",IF('Blank - Request Form'!T234=0,\"\",'Blank - Request Form'!T234),\"\"))","v":""},null,null,null,{"$f":"IF(M200<>\"\",'Blank - Request Form'!$M$2,\"\")","v":""},{"$f":"IF('Blank - Request Form'!$F$6=\"CICSA\",IF('Blank - Request Form'!J234=0,\"\",'Blank - Request Form'!J234),IF('Blank - Request Form'!$F$7=\"CICSA\",IF('Blank - Request Form'!S234=0,\"\",'Blank - Request Form'!S234),\"\"))","v":""},"",200]
[{"$f":"IF('Blank - Request Form'!$F$6=\"CICSA\",IF('Blank - Request Form'!D235=0,\"\",'Blank - Request Form'!D235),IF('Blank - Request Form'!$F$7=\"CICSA\",IF('Blank - Request Form'!M235=0,\"\",'Blank - Request Form'!M235),\"\"))","v":""},{"$f":"IF('Blank - Request Form'!$F$6=\"CICSA\",IF('Blank - Request Form'!E235=0,\"\",'Blank - Request Form'!E235),IF('Blank - Request Form'!$F$7=\"CICSA\",IF('Blank - Request Form'!N235=0,\"\",'Blank - Request Form'!N235),\"\"))","v":""},{"$f":"IF('Blank - Request Form'!$F$6=\"CICSA\",IF(OR('Blank - Request Form'!F235=\"000\",'Blank - Request Form'!F235=0),\"\",'Blank - Request Form'!F235),IF('Blank - Request Form'!$F$7=\"CICSA\",IF(OR('Blank - Request Form'!O235=\"000\",'Blank - Request Form'!O235=0),\"\",'Blank - Request Form'!O235),\"\"))","v":""},{"$f":"IF('Blank - Request Form'!$F$6=\"CICSA\",IF(OR('Blank - Request Form'!G235=\"0\",'Blank - Request Form'!G235=\"00000\",'Blank - Request Form'!G235=0),\"\",'Blank - Request Form'!G235),IF('Blank - Request Form'!$F$7=\"CICSA\",IF(OR('Blank - Request Form'!P235=\"0\",'Blank - Request Form'!P235=\"00000\",'Blank - Request Form'!P235=0),\"\",'Blank - Request Form'!P235),\"\"))","v":""},{"$f":"IF('Blank - Request Form'!$F$6=\"CICSA\",IF(OR('Blank - Request Form'!H235=\"0\",'Blank - Request Form'!H235=\"00000\",'Blank - Request Form'!H235=0),\"\",'Blank - Request Form'!H235),IF('Blank - Request Form'!$F$7=\"CICSA\",IF(OR('Blank - Request Form'!Q235=\"0\",'Blank - Request Form'!Q235=\"00000\",'Blank - Request Form'!Q235=0),\"\",'Blank - Request Form'!Q235),\"\"))","v":""},{"$f":"IF('Blank - Request Form'!$F$6=\"CICSA\",IF(OR('Blank - Request Form'!I235=\"0\",'Blank - Request Form'!I235=\"00000\",'Blank - Request Form'!I235=0),\"\",'Blank - Request Form'!I235),IF('Blank - Request Form'!$F$7=\"CICSA\",IF(OR('Blank - Request Form'!R235=\"0\",'Blank - Request Form'!R235=\"00000\",'Blank - Request Form'!R235=0),\"\",'Blank - Request Form'!R235),\"\"))","v":""},null,{"$f":"IF('Blank - Request Form'!$F$6=\"CICSA\",IF('Blank - Request Form'!K235=0,\"\",'Blank - Request Form'!K235),IF('Blank - Request Form'!$F$7=\"CICSA\",IF('Blank - Request Form'!T235=0,\"\",'Blank - Request Form'!T235),\"\"))","v":""},null,null,null,{"$f":"IF(M201<>\"\",'Blank - Request Form'!$M$2,\"\")","v":""},{"$f":"IF('Blank - Request Form'!$F$6=\"CICSA\",IF('Blank - Request Form'!J235=0,\"\",'Blank - Request Form'!J235),IF('Blank - Request Form'!$F$7=\"CICSA\",IF('Blank - Request Form'!S235=0,\"\",'Blank - Request Form'!S235),\"\"))","v":""},"",201]

{"sheet":"UGC","index":4,"n_rows":201,"n_cols":16,"rows_kept":201,"cut":false,"hidden":true,"merged":[]}
[{"$f":"IF('Blank - Request Form'!$F$6=\"CIUGC\",IF('Blank - Request Form'!D35=0,\"\",'Blank - Request Form'!D35),IF('Blank - Request Form'!$F$7=\"CIUGC\",IF('Blank - Request Form'!M35=0,\"\",'Blank - Request Form'!M35),\"\"))","v":""},{"$f":"IF('Blank - Request Form'!$F$6=\"CIUGC\",IF('Blank - Request Form'!E35=0,\"\",'Blank - Request Form'!E35),IF('Blank - Request Form'!$F$7=\"CIUGC\",IF('Blank - Request Form'!N35=0,\"\",'Blank - Request Form'!N35),\"\"))","v":""},{"$f":"IF('Blank - Request Form'!$F$6=\"CIUGC\",IF(OR('Blank - Request Form'!F35=\"000\",'Blank - Request Form'!F35=0),\"\",'Blank - Request Form'!F35),IF('Blank - Request Form'!$F$7=\"CIUGC\",IF(OR('Blank - Request Form'!O35=\"000\",'Blank - Request Form'!O35=0),\"\",'Blank - Request Form'!O35),\"\"))","v":""},{"$f":"IF('Blank - Request Form'!$F$6=\"CIUGC\",IF(OR('Blank - Request Form'!G35=\"0\",'Blank - Request Form'!G35=\"00000\",'Blank - Request Form'!G35=0),\"\",'Blank - Request Form'!G35),IF('Blank - Request Form'!$F$7=\"CIUGC\",IF(OR('Blank - Request Form'!P35=\"0\",'Blank - Request Form'!P35=\"00000\",'Blank - Request Form'!P35=0),\"\",'Blank - Request Form'!P35),\"\"))","v":""},{"$f":"IF('Blank - Request Form'!$F$6=\"CIUGC\",IF(OR('Blank - Request Form'!H35=\"0\",'Blank - Request Form'!H35=\"00000\",'Blank - Request Form'!H35=0),\"\",'Blank - Request Form'!H35),IF('Blank - Request Form'!$F$7=\"CIUGC\",IF(OR('Blank - Request Form'!Q35=\"0\",'Blank - Request Form'!Q35=\"00000\",'Blank - Request Form'!Q35=0),\"\",'Blank - Request Form'!Q35),\"\"))","v":""},{"$f":"IF('Blank - Request Form'!$F$6=\"CIUGC\",IF(OR('Blank - Request Form'!I35=\"0\",'Blank - Request Form'!I35=\"00000\",'Blank - Request Form'!I35=0),\"\",'Blank - Request Form'!I35),IF('Blank - Request Form'!$F$7=\"CIUGC\",IF(OR('Blank - Request Form'!R35=\"0\",'Blank - Request Form'!R35=\"00000\",'Blank - Request Form'!R35=0),\"\",'Blank - Request Form'!R35),\"\"))","v":""},null,{"$f":"IF('Blank - Request Form'!$F$6=\"CIUGC\",IF('Blank - Request Form'!K35=0,\"\",'Blank - Request Form'!K35),IF('Blank - Request Form'!$F$7=\"CIUGC\",IF('Blank - Request Form'!T35=0,\"\",'Blank - Request Form'!T35),\"\"))","v":""},null,null,null,{"$f":"IF(M1<>\"\",'Blank - Request Form'!$M$2,\"\")","v":""},{"$f":"IF('Blank - Request Form'!$F$6=\"CIUGC\",IF('Blank - Request Form'!J35=0,\"\",'Blank - Request Form'!J35),IF('Blank - Request Form'!$F$7=\"CIUGC\",IF('Blank - Request Form'!S35=0,\"\",'Blank - Request Form'!S35),\"\"))","v":""},{"$f":"IF(M1<>\"\",O1,\"\")","v":""},1,"CIUGC"]
[{"$f":"IF('Blank - Request Form'!$F$6=\"CIUGC\",IF('Blank - Request Form'!D36=0,\"\",'Blank - Request Form'!D36),IF('Blank - Request Form'!$F$7=\"CIUGC\",IF('Blank - Request Form'!M36=0,\"\",'Blank - Request Form'!M36),\"\"))","v":""},{"$f":"IF('Blank - Request Form'!$F$6=\"CIUGC\",IF('Blank - Request Form'!E36=0,\"\",'Blank - Request Form'!E36),IF('Blank - Request Form'!$F$7=\"CIUGC\",IF('Blank - Request Form'!N36=0,\"\",'Blank - Request Form'!N36),\"\"))","v":""},{"$f":"IF('Blank - Request Form'!$F$6=\"CIUGC\",IF(OR('Blank - Request Form'!F36=\"000\",'Blank - Request Form'!F36=0),\"\",'Blank - Request Form'!F36),IF('Blank - Request Form'!$F$7=\"CIUGC\",IF(OR('Blank - Request Form'!O36=\"000\",'Blank - Request Form'!O36=0),\"\",'Blank - Request Form'!O36),\"\"))","v":""},{"$f":"IF('Blank - Request Form'!$F$6=\"CIUGC\",IF(OR('Blank - Request Form'!G36=\"0\",'Blank - Request Form'!G36=\"00000\",'Blank - Request Form'!G36=0),\"\",'Blank - Request Form'!G36),IF('Blank - Request Form'!$F$7=\"CIUGC\",IF(OR('Blank - Request Form'!P36=\"0\",'Blank - Request Form'!P36=\"00000\",'Blank - Request Form'!P36=0),\"\",'Blank - Request Form'!P36),\"\"))","v":""},{"$f":"IF('Blank - Request Form'!$F$6=\"CIUGC\",IF(OR('Blank - Request Form'!H36=\"0\",'Blank - Request Form'!H36=\"00000\",'Blank - Request Form'!H36=0),\"\",'Blank - Request Form'!H36),IF('Blank - Request Form'!$F$7=\"CIUGC\",IF(OR('Blank - Request Form'!Q36=\"0\",'Blank - Request Form'!Q36=\"00000\",'Blank - Request Form'!Q36=0),\"\",'Blank - Request Form'!Q36),\"\"))","v":""},{"$f":"IF('Blank - Request Form'!$F$6=\"CIUGC\",IF(OR('Blank - Request Form'!I36=\"0\",'Blank - Request Form'!I36=\"00000\",'Blank - Request Form'!I36=0),\"\",'Blank - Request Form'!I36),IF('Blank - Request Form'!$F$7=\"CIUGC\",IF(OR('Blank - Request Form'!R36=\"0\",'Blank - Request Form'!R36=\"00000\",'Blank - Request Form'!R36=0),\"\",'Blank - Request Form'!R36),\"\"))","v":""},null,{"$f":"IF('Blank - Request Form'!$F$6=\"CIUGC\",IF('Blank - Request Form'!K36=0,\"\",'Blank - Request Form'!K36),IF('Blank - Request Form'!$F$7=\"CIUGC\",IF('Blank - Request Form'!T36=0,\"\",'Blank - Request Form'!T36),\"\"))","v":""},null,null,null,{"$f":"IF(M2<>\"\",'Blank - Request Form'!$M$2,\"\")","v":""},{"$f":"IF('Blank - Request Form'!$F$6=\"CIUGC\",IF('Blank - Request Form'!J36=0,\"\",'Blank - Request Form'!J36),IF('Blank - Request Form'!$F$7=\"CIUGC\",IF('Blank - Request Form'!S36=0,\"\",'Blank - Request Form'!S36),\"\"))","v":""},{"$f":"IF(M2<>\"\",O2,\"\")","v":""},2,{"$f":"LogNumber","v":0}]
[{"$f":"IF('Blank - Request Form'!$F$6=\"CIUGC\",IF('Blank - Request Form'!D37=0,\"\",'Blank - Request Form'!D37),IF('Blank - Request Form'!$F$7=\"CIUGC\",IF('Blank - Request Form'!M37=0,\"\",'Blank - Request Form'!M37),\"\"))","v":""},{"$f":"IF('Blank - Request Form'!$F$6=\"CIUGC\",IF('Blank - Request Form'!E37=0,\"\",'Blank - Request Form'!E37),IF('Blank - Request Form'!$F$7=\"CIUGC\",IF('Blank - Request Form'!N37=0,\"\",'Blank - Request Form'!N37),\"\"))","v":""},{"$f":"IF('Blank - Request Form'!$F$6=\"CIUGC\",IF(OR('Blank - Request Form'!F37=\"000\",'Blank - Request Form'!F37=0),\"\",'Blank - Request Form'!F37),IF('Blank - Request Form'!$F$7=\"CIUGC\",IF(OR('Blank - Request Form'!O37=\"000\",'Blank - Request Form'!O37=0),\"\",'Blank - Request Form'!O37),\"\"))","v":""},{"$f":"IF('Blank - Request Form'!$F$6=\"CIUGC\",IF(OR('Blank - Request Form'!G37=\"0\",'Blank - Request Form'!G37=\"00000\",'Blank - Request Form'!G37=0),\"\",'Blank - Request Form'!G37),IF('Blank - Request Form'!$F$7=\"CIUGC\",IF(OR('Blank - Request Form'!P37=\"0\",'Blank - Request Form'!P37=\"00000\",'Blank - Request Form'!P37=0),\"\",'Blank - Request Form'!P37),\"\"))","v":""},{"$f":"IF('Blank - Request Form'!$F$6=\"CIUGC\",IF(OR('Blank - Request Form'!H37=\"0\",'Blank - Request Form'!H37=\"00000\",'Blank - Request Form'!H37=0),\"\",'Blank - Request Form'!H37),IF('Blank - Request Form'!$F$7=\"CIUGC\",IF(OR('Blank - Request Form'!Q37=\"0\",'Blank - Request Form'!Q37=\"00000\",'Blank - Request Form'!Q37=0),\"\",'Blank - Request Form'!Q37),\"\"))","v":""},{"$f":"IF('Blank - Request Form'!$F$6=\"CIUGC\",IF(OR('Blank - Request Form'!I37=\"0\",'Blank - Request Form'!I37=\"00000\",'Blank - Request Form'!I37=0),\"\",'Blank - Request Form'!I37),IF('Blank - Request Form'!$F$7=\"CIUGC\",IF(OR('Blank - Request Form'!R37=\"0\",'Blank - Request Form'!R37=\"00000\",'Blank - Request Form'!R37=0),\"\",'Blank - Request Form'!R37),\"\"))","v":""},null,{"$f":"IF('Blank - Request Form'!$F$6=\"CIUGC\",IF('Blank - Request Form'!K37=0,\"\",'Blank - Request Form'!K37),IF('Blank - Request Form'!$F$7=\"CIUGC\",IF('Blank - Request Form'!T37=0,\"\",'Blank - Request Form'!T37),\"\"))","v":""},null,null,null,{"$f":"IF(M3<>\"\",'Blank - Request Form'!$M$2,\"\")","v":""},{"$f":"IF('Blank - Request Form'!$F$6=\"CIUGC\",IF('Blank - Request Form'!J37=0,\"\",'Blank - Request Form'!J37),IF('Blank - Request Form'!$F$7=\"CIUGC\",IF('Blank - Request Form'!S37=0,\"\",'Blank - Request Form'!S37),\"\"))","v":""},"",3]
[{"$f":"IF('Blank - Request Form'!$F$6=\"CIUGC\",IF('Blank - Request Form'!D38=0,\"\",'Blank - Request Form'!D38),IF('Blank - Request Form'!$F$7=\"CIUGC\",IF('Blank - Request Form'!M38=0,\"\",'Blank - Request Form'!M38),\"\"))","v":""},{"$f":"IF('Blank - Request Form'!$F$6=\"CIUGC\",IF('Blank - Request Form'!E38=0,\"\",'Blank - Request Form'!E38),IF('Blank - Request Form'!$F$7=\"CIUGC\",IF('Blank - Request Form'!N38=0,\"\",'Blank - Request Form'!N38),\"\"))","v":""},{"$f":"IF('Blank - Request Form'!$F$6=\"CIUGC\",IF(OR('Blank - Request Form'!F38=\"000\",'Blank - Request Form'!F38=0),\"\",'Blank - Request Form'!F38),IF('Blank - Request Form'!$F$7=\"CIUGC\",IF(OR('Blank - Request Form'!O38=\"000\",'Blank - Request Form'!O38=0),\"\",'Blank - Request Form'!O38),\"\"))","v":""},{"$f":"IF('Blank - Request Form'!$F$6=\"CIUGC\",IF(OR('Blank - Request Form'!G38=\"0\",'Blank - Request Form'!G38=\"00000\",'Blank - Request Form'!G38=0),\"\",'Blank - Request Form'!G38),IF('Blank - Request Form'!$F$7=\"CIUGC\",IF(OR('Blank - Request Form'!P38=\"0\",'Blank - Request Form'!P38=\"00000\",'Blank - Request Form'!P38=0),\"\",'Blank - Request Form'!P38),\"\"))","v":""},{"$f":"IF('Blank - Request Form'!$F$6=\"CIUGC\",IF(OR('Blank - Request Form'!H38=\"0\",'Blank - Request Form'!H38=\"00000\",'Blank - Request Form'!H38=0),\"\",'Blank - Request Form'!H38),IF('Blank - Request Form'!$F$7=\"CIUGC\",IF(OR('Blank - Request Form'!Q38=\"0\",'Blank - Request Form'!Q38=\"00000\",'Blank - Request Form'!Q38=0),\"\",'Blank - Request Form'!Q38),\"\"))","v":""},{"$f":"IF('Blank - Request Form'!$F$6=\"CIUGC\",IF(OR('Blank - Request Form'!I38=\"0\",'Blank - Request Form'!I38=\"00000\",'Blank - Request Form'!I38=0),\"\",'Blank - Request Form'!I38),IF('Blank - Request Form'!$F$7=\"CIUGC\",IF(OR('Blank - Request Form'!R38=\"0\",'Blank - Request Form'!R38=\"00000\",'Blank - Request Form'!R38=0),\"\",'Blank - Request Form'!R38),\"\"))","v":""},null,{"$f":"IF('Blank - Request Form'!$F$6=\"CIUGC\",IF('Blank - Request Form'!K38=0,\"\",'Blank - Request Form'!K38),IF('Blank - Request Form'!$F$7=\"CIUGC\",IF('Blank - Request Form'!T38=0,\"\",'Blank - Request Form'!T38),\"\"))","v":""},null,null,null,{"$f":"IF(M4<>\"\",'Blank - Request Form'!$M$2,\"\")","v":""},{"$f":"IF('Blank - Request Form'!$F$6=\"CIUGC\",IF('Blank - Request Form'!J38=0,\"\",'Blank - Request Form'!J38),IF('Blank - Request Form'!$F$7=\"CIUGC\",IF('Blank - Request Form'!S38=0,\"\",'Blank - Request Form'!S38),\"\"))","v":""},"",4]
[{"$f":"IF('Blank - Request Form'!$F$6=\"CIUGC\",IF('Blank - Request Form'!D39=0,\"\",'Blank - Request Form'!D39),IF('Blank - Request Form'!$F$7=\"CIUGC\",IF('Blank - Request Form'!M39=0,\"\",'Blank - Request Form'!M39),\"\"))","v":""},{"$f":"IF('Blank - Request Form'!$F$6=\"CIUGC\",IF('Blank - Request Form'!E39=0,\"\",'Blank - Request Form'!E39),IF('Blank - Request Form'!$F$7=\"CIUGC\",IF('Blank - Request Form'!N39=0,\"\",'Blank - Request Form'!N39),\"\"))","v":""},{"$f":"IF('Blank - Request Form'!$F$6=\"CIUGC\",IF(OR('Blank - Request Form'!F39=\"000\",'Blank - Request Form'!F39=0),\"\",'Blank - Request Form'!F39),IF('Blank - Request Form'!$F$7=\"CIUGC\",IF(OR('Blank - Request Form'!O39=\"000\",'Blank - Request Form'!O39=0),\"\",'Blank - Request Form'!O39),\"\"))","v":""},{"$f":"IF('Blank - Request Form'!$F$6=\"CIUGC\",IF(OR('Blank - Request Form'!G39=\"0\",'Blank - Request Form'!G39=\"00000\",'Blank - Request Form'!G39=0),\"\",'Blank - Request Form'!G39),IF('Blank - Request Form'!$F$7=\"CIUGC\",IF(OR('Blank - Request Form'!P39=\"0\",'Blank - Request Form'!P39=\"00000\",'Blank - Request Form'!P39=0),\"\",'Blank - Request Form'!P39),\"\"))","v":""},{"$f":"IF('Blank - Request Form'!$F$6=\"CIUGC\",IF(OR('Blank - Request Form'!H39=\"0\",'Blank - Request Form'!H39=\"00000\",'Blank - Request Form'!H39=0),\"\",'Blank - Request Form'!H39),IF('Blank - Request Form'!$F$7=\"CIUGC\",IF(OR('Blank - Request Form'!Q39=\"0\",'Blank - Request Form'!Q39=\"00000\",'Blank - Request Form'!Q39=0),\"\",'Blank - Request Form'!Q39),\"\"))","v":""},{"$f":"IF('Blank - Request Form'!$F$6=\"CIUGC\",IF(OR('Blank - Request Form'!I39=\"0\",'Blank - Request Form'!I39=\"00000\",'Blank - Request Form'!I39=0),\"\",'Blank - Request Form'!I39),IF('Blank - Request Form'!$F$7=\"CIUGC\",IF(OR('Blank - Request Form'!R39=\"0\",'Blank - Request Form'!R39=\"00000\",'Blank - Request Form'!R39=0),\"\",'Blank - Request Form'!R39),\"\"))","v":""},null,{"$f":"IF('Blank - Request Form'!$F$6=\"CIUGC\",IF('Blank - Request Form'!K39=0,\"\",'Blank - Request Form'!K39),IF('Blank - Request Form'!$F$7=\"CIUGC\",IF('Blank - Request Form'!T39=0,\"\",'Blank - Request Form'!T39),\"\"))","v":""},null,null,null,{"$f":"IF(M5<>\"\",'Blank - Request Form'!$M$2,\"\")","v":""},{"$f":"IF('Blank - Request Form'!$F$6=\"CIUGC\",IF('Blank - Request Form'!J39=0,\"\",'Blank - Request Form'!J39),IF('Blank - Request Form'!$F$7=\"CIUGC\",IF('Blank - Request Form'!S39=0,\"\",'Blank - Request Form'!S39),\"\"))","v":""},"",5]
[{"$f":"IF('Blank - Request Form'!$F$6=\"CIUGC\",IF('Blank - Request Form'!D40=0,\"\",'Blank - Request Form'!D40),IF('Blank - Request Form'!$F$7=\"CIUGC\",IF('Blank - Request Form'!M40=0,\"\",'Blank - Request Form'!M40),\"\"))","v":""},{"$f":"IF('Blank - Request Form'!$F$6=\"CIUGC\",IF('Blank - Request Form'!E40=0,\"\",'Blank - Request Form'!E40),IF('Blank - Request Form'!$F$7=\"CIUGC\",IF('Blank - Request Form'!N40=0,\"\",'Blank - Request Form'!N40),\"\"))","v":""},{"$f":"IF('Blank - Request Form'!$F$6=\"CIUGC\",IF(OR('Blank - Request Form'!F40=\"000\",'Blank - Request Form'!F40=0),\"\",'Blank - Request Form'!F40),IF('Blank - Request Form'!$F$7=\"CIUGC\",IF(OR('Blank - Request Form'!O40=\"000\",'Blank - Request Form'!O40=0),\"\",'Blank - Request Form'!O40),\"\"))","v":""},{"$f":"IF('Blank - Request Form'!$F$6=\"CIUGC\",IF(OR('Blank - Request Form'!G40=\"0\",'Blank - Request Form'!G40=\"00000\",'Blank - Request Form'!G40=0),\"\",'Blank - Request Form'!G40),IF('Blank - Request Form'!$F$7=\"CIUGC\",IF(OR('Blank - Request Form'!P40=\"0\",'Blank - Request Form'!P40=\"00000\",'Blank - Request Form'!P40=0),\"\",'Blank - Request Form'!P40),\"\"))","v":""},{"$f":"IF('Blank - Request Form'!$F$6=\"CIUGC\",IF(OR('Blank - Request Form'!H40=\"0\",'Blank - Request Form'!H40=\"00000\",'Blank - Request Form'!H40=0),\"\",'Blank - Request Form'!H40),IF('Blank - Request Form'!$F$7=\"CIUGC\",IF(OR('Blank - Request Form'!Q40=\"0\",'Blank - Request Form'!Q40=\"00000\",'Blank - Request Form'!Q40=0),\"\",'Blank - Request Form'!Q40),\"\"))","v":""},{"$f":"IF('Blank - Request Form'!$F$6=\"CIUGC\",IF(OR('Blank - Request Form'!I40=\"0\",'Blank - Request Form'!I40=\"00000\",'Blank - Request Form'!I40=0),\"\",'Blank - Request Form'!I40),IF('Blank - Request Form'!$F$7=\"CIUGC\",IF(OR('Blank - Request Form'!R40=\"0\",'Blank - Request Form'!R40=\"00000\",'Blank - Request Form'!R40=0),\"\",'Blank - Request Form'!R40),\"\"))","v":""},null,{"$f":"IF('Blank - Request Form'!$F$6=\"CIUGC\",IF('Blank - Request Form'!K40=0,\"\",'Blank - Request Form'!K40),IF('Blank - Request Form'!$F$7=\"CIUGC\",IF('Blank - Request Form'!T40=0,\"\",'Blank - Request Form'!T40),\"\"))","v":""},null,null,null,{"$f":"IF(M6<>\"\",'Blank - Request Form'!$M$2,\"\")","v":""},{"$f":"IF('Blank - Request Form'!$F$6=\"CIUGC\",IF('Blank - Request Form'!J40=0,\"\",'Blank - Request Form'!J40),IF('Blank - Request Form'!$F$7=\"CIUGC\",IF('Blank - Request Form'!S40=0,\"\",'Blank - Request Form'!S40),\"\"))","v":""},"",6]
[{"$f":"IF('Blank - Request Form'!$F$6=\"CIUGC\",IF('Blank - Request Form'!D41=0,\"\",'Blank - Request Form'!D41),IF('Blank - Request Form'!$F$7=\"CIUGC\",IF('Blank - Request Form'!M41=0,\"\",'Blank - Request Form'!M41),\"\"))","v":""},{"$f":"IF('Blank - Request Form'!$F$6=\"CIUGC\",IF('Blank - Request Form'!E41=0,\"\",'Blank - Request Form'!E41),IF('Blank - Request Form'!$F$7=\"CIUGC\",IF('Blank - Request Form'!N41=0,\"\",'Blank - Request Form'!N41),\"\"))","v":""},{"$f":"IF('Blank - Request Form'!$F$6=\"CIUGC\",IF(OR('Blank - Request Form'!F41=\"000\",'Blank - Request Form'!F41=0),\"\",'Blank - Request Form'!F41),IF('Blank - Request Form'!$F$7=\"CIUGC\",IF(OR('Blank - Request Form'!O41=\"000\",'Blank - Request Form'!O41=0),\"\",'Blank - Request Form'!O41),\"\"))","v":""},{"$f":"IF('Blank - Request Form'!$F$6=\"CIUGC\",IF(OR('Blank - Request Form'!G41=\"0\",'Blank - Request Form'!G41=\"00000\",'Blank - Request Form'!G41=0),\"\",'Blank - Request Form'!G41),IF('Blank - Request Form'!$F$7=\"CIUGC\",IF(OR('Blank - Request Form'!P41=\"0\",'Blank - Request Form'!P41=\"00000\",'Blank - Request Form'!P41=0),\"\",'Blank - Request Form'!P41),\"\"))","v":""},{"$f":"IF('Blank - Request Form'!$F$6=\"CIUGC\",IF(OR('Blank - Request Form'!H41=\"0\",'Blank - Request Form'!H41=\"00000\",'Blank - Request Form'!H41=0),\"\",'Blank - Request Form'!H41),IF('Blank - Request Form'!$F$7=\"CIUGC\",IF(OR('Blank - Request Form'!Q41=\"0\",'Blank - Request Form'!Q41=\"00000\",'Blank - Request Form'!Q41=0),\"\",'Blank - Request Form'!Q41),\"\"))","v":""},{"$f":"IF('Blank - Request Form'!$F$6=\"CIUGC\",IF(OR('Blank - Request Form'!I41=\"0\",'Blank - Request Form'!I41=\"00000\",'Blank - Request Form'!I41=0),\"\",'Blank - Request Form'!I41),IF('Blank - Request Form'!$F$7=\"CIUGC\",IF(OR('Blank - Request Form'!R41=\"0\",'Blank - Request Form'!R41=\"00000\",'Blank - Request Form'!R41=0),\"\",'Blank - Request Form'!R41),\"\"))","v":""},null,{"$f":"IF('Blank - Request Form'!$F$6=\"CIUGC\",IF('Blank - Request Form'!K41=0,\"\",'Blank - Request Form'!K41),IF('Blank - Request Form'!$F$7=\"CIUGC\",IF('Blank - Request Form'!T41=0,\"\",'Blank - Request Form'!T41),\"\"))","v":""},null,null,null,{"$f":"IF(M7<>\"\",'Blank - Request Form'!$M$2,\"\")","v":""},{"$f":"IF('Blank - Request Form'!$F$6=\"CIUGC\",IF('Blank - Request Form'!J41=0,\"\",'Blank - Request Form'!J41),IF('Blank - Request Form'!$F$7=\"CIUGC\",IF('Blank - Request Form'!S41=0,\"\",'Blank - Request Form'!S41),\"\"))","v":""},"",7]
[{"$f":"IF('Blank - Request Form'!$F$6=\"CIUGC\",IF('Blank - Request Form'!D42=0,\"\",'Blank - Request Form'!D42),IF('Blank - Request Form'!$F$7=\"CIUGC\",IF('Blank - Request Form'!M42=0,\"\",'Blank - Request Form'!M42),\"\"))","v":""},{"$f":"IF('Blank - Request Form'!$F$6=\"CIUGC\",IF('Blank - Request Form'!E42=0,\"\",'Blank - Request Form'!E42),IF('Blank - Request Form'!$F$7=\"CIUGC\",IF('Blank - Request Form'!N42=0,\"\",'Blank - Request Form'!N42),\"\"))","v":""},{"$f":"IF('Blank - Request Form'!$F$6=\"CIUGC\",IF(OR('Blank - Request Form'!F42=\"000\",'Blank - Request Form'!F42=0),\"\",'Blank - Request Form'!F42),IF('Blank - Request Form'!$F$7=\"CIUGC\",IF(OR('Blank - Request Form'!O42=\"000\",'Blank - Request Form'!O42=0),\"\",'Blank - Request Form'!O42),\"\"))","v":""},{"$f":"IF('Blank - Request Form'!$F$6=\"CIUGC\",IF(OR('Blank - Request Form'!G42=\"0\",'Blank - Request Form'!G42=\"00000\",'Blank - Request Form'!G42=0),\"\",'Blank - Request Form'!G42),IF('Blank - Request Form'!$F$7=\"CIUGC\",IF(OR('Blank - Request Form'!P42=\"0\",'Blank - Request Form'!P42=\"00000\",'Blank - Request Form'!P42=0),\"\",'Blank - Request Form'!P42),\"\"))","v":""},{"$f":"IF('Blank - Request Form'!$F$6=\"CIUGC\",IF(OR('Blank - Request Form'!H42=\"0\",'Blank - Request Form'!H42=\"00000\",'Blank - Request Form'!H42=0),\"\",'Blank - Request Form'!H42),IF('Blank - Request Form'!$F$7=\"CIUGC\",IF(OR('Blank - Request Form'!Q42=\"0\",'Blank - Request Form'!Q42=\"00000\",'Blank - Request Form'!Q42=0),\"\",'Blank - Request Form'!Q42),\"\"))","v":""},{"$f":"IF('Blank - Request Form'!$F$6=\"CIUGC\",IF(OR('Blank - Request Form'!I42=\"0\",'Blank - Request Form'!I42=\"00000\",'Blank - Request Form'!I42=0),\"\",'Blank - Request Form'!I42),IF('Blank - Request Form'!$F$7=\"CIUGC\",IF(OR('Blank - Request Form'!R42=\"0\",'Blank - Request Form'!R42=\"00000\",'Blank - Request Form'!R42=0),\"\",'Blank - Request Form'!R42),\"\"))","v":""},null,{"$f":"IF('Blank - Request Form'!$F$6=\"CIUGC\",IF('Blank - Request Form'!K42=0,\"\",'Blank - Request Form'!K42),IF('Blank - Request Form'!$F$7=\"CIUGC\",IF('Blank - Request Form'!T42=0,\"\",'Blank - Request Form'!T42),\"\"))","v":""},null,null,null,{"$f":"IF(M8<>\"\",'Blank - Request Form'!$M$2,\"\")","v":""},{"$f":"IF('Blank - Request Form'!$F$6=\"CIUGC\",IF('Blank - Request Form'!J42=0,\"\",'Blank - Request Form'!J42),IF('Blank - Request Form'!$F$7=\"CIUGC\",IF('Blank - Request Form'!S42=0,\"\",'Blank - Request Form'!S42),\"\"))","v":""},"",8]
[{"$f":"IF('Blank - Request Form'!$F$6=\"CIUGC\",IF('Blank - Request Form'!D43=0,\"\",'Blank - Request Form'!D43),IF('Blank - Request Form'!$F$7=\"CIUGC\",IF('Blank - Request Form'!M43=0,\"\",'Blank - Request Form'!M43),\"\"))","v":""},{"$f":"IF('Blank - Request Form'!$F$6=\"CIUGC\",IF('Blank - Request Form'!E43=0,\"\",'Blank - Request Form'!E43),IF('Blank - Request Form'!$F$7=\"CIUGC\",IF('Blank - Request Form'!N43=0,\"\",'Blank - Request Form'!N43),\"\"))","v":""},{"$f":"IF('Blank - Request Form'!$F$6=\"CIUGC\",IF(OR('Blank - Request Form'!F43=\"000\",'Blank - Request Form'!F43=0),\"\",'Blank - Request Form'!F43),IF('Blank - Request Form'!$F$7=\"CIUGC\",IF(OR('Blank - Request Form'!O43=\"000\",'Blank - Request Form'!O43=0),\"\",'Blank - Request Form'!O43),\"\"))","v":""},{"$f":"IF('Blank - Request Form'!$F$6=\"CIUGC\",IF(OR('Blank - Request Form'!G43=\"0\",'Blank - Request Form'!G43=\"00000\",'Blank - Request Form'!G43=0),\"\",'Blank - Request Form'!G43),IF('Blank - Request Form'!$F$7=\"CIUGC\",IF(OR('Blank - Request Form'!P43=\"0\",'Blank - Request Form'!P43=\"00000\",'Blank - Request Form'!P43=0),\"\",'Blank - Request Form'!P43),\"\"))","v":""},{"$f":"IF('Blank - Request Form'!$F$6=\"CIUGC\",IF(OR('Blank - Request Form'!H43=\"0\",'Blank - Request Form'!H43=\"00000\",'Blank - Request Form'!H43=0),\"\",'Blank - Request Form'!H43),IF('Blank - Request Form'!$F$7=\"CIUGC\",IF(OR('Blank - Request Form'!Q43=\"0\",'Blank - Request Form'!Q43=\"00000\",'Blank - Request Form'!Q43=0),\"\",'Blank - Request Form'!Q43),\"\"))","v":""},{"$f":"IF('Blank - Request Form'!$F$6=\"CIUGC\",IF(OR('Blank - Request Form'!I43=\"0\",'Blank - Request Form'!I43=\"00000\",'Blank - Request Form'!I43=0),\"\",'Blank - Request Form'!I43),IF('Blank - Request Form'!$F$7=\"CIUGC\",IF(OR('Blank - Request Form'!R43=\"0\",'Blank - Request Form'!R43=\"00000\",'Blank - Request Form'!R43=0),\"\",'Blank - Request Form'!R43),\"\"))","v":""},null,{"$f":"IF('Blank - Request Form'!$F$6=\"CIUGC\",IF('Blank - Request Form'!K43=0,\"\",'Blank - Request Form'!K43),IF('Blank - Request Form'!$F$7=\"CIUGC\",IF('Blank - Request Form'!T43=0,\"\",'Blank - Request Form'!T43),\"\"))","v":""},null,null,null,{"$f":"IF(M9<>\"\",'Blank - Request Form'!$M$2,\"\")","v":""},{"$f":"IF('Blank - Request Form'!$F$6=\"CIUGC\",IF('Blank - Request Form'!J43=0,\"\",'Blank - Request Form'!J43),IF('Blank - Request Form'!$F$7=\"CIUGC\",IF('Blank - Request Form'!S43=0,\"\",'Blank - Request Form'!S43),\"\"))","v":""},"",9]
[{"$f":"IF('Blank - Request Form'!$F$6=\"CIUGC\",IF('Blank - Request Form'!D44=0,\"\",'Blank - Request Form'!D44),IF('Blank - Request Form'!$F$7=\"CIUGC\",IF('Blank - Request Form'!M44=0,\"\",'Blank - Request Form'!M44),\"\"))","v":""},{"$f":"IF('Blank - Request Form'!$F$6=\"CIUGC\",IF('Blank - Request Form'!E44=0,\"\",'Blank - Request Form'!E44),IF('Blank - Request Form'!$F$7=\"CIUGC\",IF('Blank - Request Form'!N44=0,\"\",'Blank - Request Form'!N44),\"\"))","v":""},{"$f":"IF('Blank - Request Form'!$F$6=\"CIUGC\",IF(OR('Blank - Request Form'!F44=\"000\",'Blank - Request Form'!F44=0),\"\",'Blank - Request Form'!F44),IF('Blank - Request Form'!$F$7=\"CIUGC\",IF(OR('Blank - Request Form'!O44=\"000\",'Blank - Request Form'!O44=0),\"\",'Blank - Request Form'!O44),\"\"))","v":""},{"$f":"IF('Blank - Request Form'!$F$6=\"CIUGC\",IF(OR('Blank - Request Form'!G44=\"0\",'Blank - Request Form'!G44=\"00000\",'Blank - Request Form'!G44=0),\"\",'Blank - Request Form'!G44),IF('Blank - Request Form'!$F$7=\"CIUGC\",IF(OR('Blank - Request Form'!P44=\"0\",'Blank - Request Form'!P44=\"00000\",'Blank - Request Form'!P44=0),\"\",'Blank - Request Form'!P44),\"\"))","v":""},{"$f":"IF('Blank - Request Form'!$F$6=\"CIUGC\",IF(OR('Blank - Request Form'!H44=\"0\",'Blank - Request Form'!H44=\"00000\",'Blank - Request Form'!H44=0),\"\",'Blank - Request Form'!H44),IF('Blank - Request Form'!$F$7=\"CIUGC\",IF(OR('Blank - Request Form'!Q44=\"0\",'Blank - Request Form'!Q44=\"00000\",'Blank - Request Form'!Q44=0),\"\",'Blank - Request Form'!Q44),\"\"))","v":""},{"$f":"IF('Blank - Request Form'!$F$6=\"CIUGC\",IF(OR('Blank - Request Form'!I44=\"0\",'Blank - Request Form'!I44=\"00000\",'Blank - Request Form'!I44=0),\"\",'Blank - Request Form'!I44),IF('Blank - Request Form'!$F$7=\"CIUGC\",IF(OR('Blank - Request Form'!R44=\"0\",'Blank - Request Form'!R44=\"00000\",'Blank - Request Form'!R44=0),\"\",'Blank - Request Form'!R44),\"\"))","v":""},null,{"$f":"IF('Blank - Request Form'!$F$6=\"CIUGC\",IF('Blank - Request Form'!K44=0,\"\",'Blank - Request Form'!K44),IF('Blank - Request Form'!$F$7=\"CIUGC\",IF('Blank - Request Form'!T44=0,\"\",'Blank - Request Form'!T44),\"\"))","v":""},null,null,null,{"$f":"IF(M10<>\"\",'Blank - Request Form'!$M$2,\"\")","v":""},{"$f":"IF('Blank - Request Form'!$F$6=\"CIUGC\",IF('Blank - Request Form'!J44=0,\"\",'Blank - Request Form'!J44),IF('Blank - Request Form'!$F$7=\"CIUGC\",IF('Blank - Request Form'!S44=0,\"\",'Blank - Request Form'!S44),\"\"))","v":""},"",10]
[{"$f":"IF('Blank - Request Form'!$F$6=\"CIUGC\",IF('Blank - Request Form'!D45=0,\"\",'Blank - Request Form'!D45),IF('Blank - Request Form'!$F$7=\"CIUGC\",IF('Blank - Request Form'!M45=0,\"\",'Blank - Request Form'!M45),\"\"))","v":""},{"$f":"IF('Blank - Request Form'!$F$6=\"CIUGC\",IF('Blank - Request Form'!E45=0,\"\",'Blank - Request Form'!E45),IF('Blank - Request Form'!$F$7=\"CIUGC\",IF('Blank - Request Form'!N45=0,\"\",'Blank - Request Form'!N45),\"\"))","v":""},{"$f":"IF('Blank - Request Form'!$F$6=\"CIUGC\",IF(OR('Blank - Request Form'!F45=\"000\",'Blank - Request Form'!F45=0),\"\",'Blank - Request Form'!F45),IF('Blank - Request Form'!$F$7=\"CIUGC\",IF(OR('Blank - Request Form'!O45=\"000\",'Blank - Request Form'!O45=0),\"\",'Blank - Request Form'!O45),\"\"))","v":""},{"$f":"IF('Blank - Request Form'!$F$6=\"CIUGC\",IF(OR('Blank - Request Form'!G45=\"0\",'Blank - Request Form'!G45=\"00000\",'Blank - Request Form'!G45=0),\"\",'Blank - Request Form'!G45),IF('Blank - Request Form'!$F$7=\"CIUGC\",IF(OR('Blank - Request Form'!P45=\"0\",'Blank - Request Form'!P45=\"00000\",'Blank - Request Form'!P45=0),\"\",'Blank - Request Form'!P45),\"\"))","v":""},{"$f":"IF('Blank - Request Form'!$F$6=\"CIUGC\",IF(OR('Blank - Request Form'!H45=\"0\",'Blank - Request Form'!H45=\"00000\",'Blank - Request Form'!H45=0),\"\",'Blank - Request Form'!H45),IF('Blank - Request Form'!$F$7=\"CIUGC\",IF(OR('Blank - Request Form'!Q45=\"0\",'Blank - Request Form'!Q45=\"00000\",'Blank - Request Form'!Q45=0),\"\",'Blank - Request Form'!Q45),\"\"))","v":""},{"$f":"IF('Blank - Request Form'!$F$6=\"CIUGC\",IF(OR('Blank - Request Form'!I45=\"0\",'Blank - Request Form'!I45=\"00000\",'Blank - Request Form'!I45=0),\"\",'Blank - Request Form'!I45),IF('Blank - Request Form'!$F$7=\"CIUGC\",IF(OR('Blank - Request Form'!R45=\"0\",'Blank - Request Form'!R45=\"00000\",'Blank - Request Form'!R45=0),\"\",'Blank - Request Form'!R45),\"\"))","v":""},null,{"$f":"IF('Blank - Request Form'!$F$6=\"CIUGC\",IF('Blank - Request Form'!K45=0,\"\",'Blank - Request Form'!K45),IF('Blank - Request Form'!$F$7=\"CIUGC\",IF('Blank - Request Form'!T45=0,\"\",'Blank - Request Form'!T45),\"\"))","v":""},null,null,null,{"$f":"IF(M11<>\"\",'Blank - Request Form'!$M$2,\"\")","v":""},{"$f":"IF('Blank - Request Form'!$F$6=\"CIUGC\",IF('Blank - Request Form'!J45=0,\"\",'Blank - Request Form'!J45),IF('Blank - Request Form'!$F$7=\"CIUGC\",IF('Blank - Request Form'!S45=0,\"\",'Blank - Request Form'!S45),\"\"))","v":""},"",11]
[{"$f":"IF('Blank - Request Form'!$F$6=\"CIUGC\",IF('Blank - Request Form'!D46=0,\"\",'Blank - Request Form'!D46),IF('Blank - Request Form'!$F$7=\"CIUGC\",IF('Blank - Request Form'!M46=0,\"\",'Blank - Request Form'!M46),\"\"))","v":""},{"$f":"IF('Blank - Request Form'!$F$6=\"CIUGC\",IF('Blank - Request Form'!E46=0,\"\",'Blank - Request Form'!E46),IF('Blank - Request Form'!$F$7=\"CIUGC\",IF('Blank - Request Form'!N46=0,\"\",'Blank - Request Form'!N46),\"\"))","v":""},{"$f":"IF('Blank - Request Form'!$F$6=\"CIUGC\",IF(OR('Blank - Request Form'!F46=\"000\",'Blank - Request Form'!F46=0),\"\",'Blank - Request Form'!F46),IF('Blank - Request Form'!$F$7=\"CIUGC\",IF(OR('Blank - Request Form'!O46=\"000\",'Blank - Request Form'!O46=0),\"\",'Blank - Request Form'!O46),\"\"))","v":""},{"$f":"IF('Blank - Request Form'!$F$6=\"CIUGC\",IF(OR('Blank - Request Form'!G46=\"0\",'Blank - Request Form'!G46=\"00000\",'Blank - Request Form'!G46=0),\"\",'Blank - Request Form'!G46),IF('Blank - Request Form'!$F$7=\"CIUGC\",IF(OR('Blank - Request Form'!P46=\"0\",'Blank - Request Form'!P46=\"00000\",'Blank - Request Form'!P46=0),\"\",'Blank - Request Form'!P46),\"\"))","v":""},{"$f":"IF('Blank - Request Form'!$F$6=\"CIUGC\",IF(OR('Blank - Request Form'!H46=\"0\",'Blank - Request Form'!H46=\"00000\",'Blank - Request Form'!H46=0),\"\",'Blank - Request Form'!H46),IF('Blank - Request Form'!$F$7=\"CIUGC\",IF(OR('Blank - Request Form'!Q46=\"0\",'Blank - Request Form'!Q46=\"00000\",'Blank - Request Form'!Q46=0),\"\",'Blank - Request Form'!Q46),\"\"))","v":""},{"$f":"IF('Blank - Request Form'!$F$6=\"CIUGC\",IF(OR('Blank - Request Form'!I46=\"0\",'Blank - Request Form'!I46=\"00000\",'Blank - Request Form'!I46=0),\"\",'Blank - Request Form'!I46),IF('Blank - Request Form'!$F$7=\"CIUGC\",IF(OR('Blank - Request Form'!R46=\"0\",'Blank - Request Form'!R46=\"00000\",'Blank - Request Form'!R46=0),\"\",'Blank - Request Form'!R46),\"\"))","v":""},null,{"$f":"IF('Blank - Request Form'!$F$6=\"CIUGC\",IF('Blank - Request Form'!K46=0,\"\",'Blank - Request Form'!K46),IF('Blank - Request Form'!$F$7=\"CIUGC\",IF('Blank - Request Form'!T46=0,\"\",'Blank - Request Form'!T46),\"\"))","v":""},null,null,null,{"$f":"IF(M12<>\"\",'Blank - Request Form'!$M$2,\"\")","v":""},{"$f":"IF('Blank - Request Form'!$F$6=\"CIUGC\",IF('Blank - Request Form'!J46=0,\"\",'Blank - Request Form'!J46),IF('Blank - Request Form'!$F$7=\"CIUGC\",IF('Blank - Request Form'!S46=0,\"\",'Blank - Request Form'!S46),\"\"))","v":""},"",12]
[{"$f":"IF('Blank - Request Form'!$F$6=\"CIUGC\",IF('Blank - Request Form'!D47=0,\"\",'Blank - Request Form'!D47),IF('Blank - Request Form'!$F$7=\"CIUGC\",IF('Blank - Request Form'!M47=0,\"\",'Blank - Request Form'!M47),\"\"))","v":""},{"$f":"IF('Blank - Request Form'!$F$6=\"CIUGC\",IF('Blank - Request Form'!E47=0,\"\",'Blank - Request Form'!E47),IF('Blank - Request Form'!$F$7=\"CIUGC\",IF('Blank - Request Form'!N47=0,\"\",'Blank - Request Form'!N47),\"\"))","v":""},{"$f":"IF('Blank - Request Form'!$F$6=\"CIUGC\",IF(OR('Blank - Request Form'!F47=\"000\",'Blank - Request Form'!F47=0),\"\",'Blank - Request Form'!F47),IF('Blank - Request Form'!$F$7=\"CIUGC\",IF(OR('Blank - Request Form'!O47=\"000\",'Blank - Request Form'!O47=0),\"\",'Blank - Request Form'!O47),\"\"))","v":""},{"$f":"IF('Blank - Request Form'!$F$6=\"CIUGC\",IF(OR('Blank - Request Form'!G47=\"0\",'Blank - Request Form'!G47=\"00000\",'Blank - Request Form'!G47=0),\"\",'Blank - Request Form'!G47),IF('Blank - Request Form'!$F$7=\"CIUGC\",IF(OR('Blank - Request Form'!P47=\"0\",'Blank - Request Form'!P47=\"00000\",'Blank - Request Form'!P47=0),\"\",'Blank - Request Form'!P47),\"\"))","v":""},{"$f":"IF('Blank - Request Form'!$F$6=\"CIUGC\",IF(OR('Blank - Request Form'!H47=\"0\",'Blank - Request Form'!H47=\"00000\",'Blank - Request Form'!H47=0),\"\",'Blank - Request Form'!H47),IF('Blank - Request Form'!$F$7=\"CIUGC\",IF(OR('Blank - Request Form'!Q47=\"0\",'Blank - Request Form'!Q47=\"00000\",'Blank - Request Form'!Q47=0),\"\",'Blank - Request Form'!Q47),\"\"))","v":""},{"$f":"IF('Blank - Request Form'!$F$6=\"CIUGC\",IF(OR('Blank - Request Form'!I47=\"0\",'Blank - Request Form'!I47=\"00000\",'Blank - Request Form'!I47=0),\"\",'Blank - Request Form'!I47),IF('Blank - Request Form'!$F$7=\"CIUGC\",IF(OR('Blank - Request Form'!R47=\"0\",'Blank - Request Form'!R47=\"00000\",'Blank - Request Form'!R47=0),\"\",'Blank - Request Form'!R47),\"\"))","v":""},null,{"$f":"IF('Blank - Request Form'!$F$6=\"CIUGC\",IF('Blank - Request Form'!K47=0,\"\",'Blank - Request Form'!K47),IF('Blank - Request Form'!$F$7=\"CIUGC\",IF('Blank - Request Form'!T47=0,\"\",'Blank - Request Form'!T47),\"\"))","v":""},null,null,null,{"$f":"IF(M13<>\"\",'Blank - Request Form'!$M$2,\"\")","v":""},{"$f":"IF('Blank - Request Form'!$F$6=\"CIUGC\",IF('Blank - Request Form'!J47=0,\"\",'Blank - Request Form'!J47),IF('Blank - Request Form'!$F$7=\"CIUGC\",IF('Blank - Request Form'!S47=0,\"\",'Blank - Request Form'!S47),\"\"))","v":""},"",13]
[{"$f":"IF('Blank - Request Form'!$F$6=\"CIUGC\",IF('Blank - Request Form'!D48=0,\"\",'Blank - Request Form'!D48),IF('Blank - Request Form'!$F$7=\"CIUGC\",IF('Blank - Request Form'!M48=0,\"\",'Blank - Request Form'!M48),\"\"))","v":""},{"$f":"IF('Blank - Request Form'!$F$6=\"CIUGC\",IF('Blank - Request Form'!E48=0,\"\",'Blank - Request Form'!E48),IF('Blank - Request Form'!$F$7=\"CIUGC\",IF('Blank - Request Form'!N48=0,\"\",'Blank - Request Form'!N48),\"\"))","v":""},{"$f":"IF('Blank - Request Form'!$F$6=\"CIUGC\",IF(OR('Blank - Request Form'!F48=\"000\",'Blank - Request Form'!F48=0),\"\",'Blank - Request Form'!F48),IF('Blank - Request Form'!$F$7=\"CIUGC\",IF(OR('Blank - Request Form'!O48=\"000\",'Blank - Request Form'!O48=0),\"\",'Blank - Request Form'!O48),\"\"))","v":""},{"$f":"IF('Blank - Request Form'!$F$6=\"CIUGC\",IF(OR('Blank - Request Form'!G48=\"0\",'Blank - Request Form'!G48=\"00000\",'Blank - Request Form'!G48=0),\"\",'Blank - Request Form'!G48),IF('Blank - Request Form'!$F$7=\"CIUGC\",IF(OR('Blank - Request Form'!P48=\"0\",'Blank - Request Form'!P48=\"00000\",'Blank - Request Form'!P48=0),\"\",'Blank - Request Form'!P48),\"\"))","v":""},{"$f":"IF('Blank - Request Form'!$F$6=\"CIUGC\",IF(OR('Blank - Request Form'!H48=\"0\",'Blank - Request Form'!H48=\"00000\",'Blank - Request Form'!H48=0),\"\",'Blank - Request Form'!H48),IF('Blank - Request Form'!$F$7=\"CIUGC\",IF(OR('Blank - Request Form'!Q48=\"0\",'Blank - Request Form'!Q48=\"00000\",'Blank - Request Form'!Q48=0),\"\",'Blank - Request Form'!Q48),\"\"))","v":""},{"$f":"IF('Blank - Request Form'!$F$6=\"CIUGC\",IF(OR('Blank - Request Form'!I48=\"0\",'Blank - Request Form'!I48=\"00000\",'Blank - Request Form'!I48=0),\"\",'Blank - Request Form'!I48),IF('Blank - Request Form'!$F$7=\"CIUGC\",IF(OR('Blank - Request Form'!R48=\"0\",'Blank - Request Form'!R48=\"00000\",'Blank - Request Form'!R48=0),\"\",'Blank - Request Form'!R48),\"\"))","v":""},null,{"$f":"IF('Blank - Request Form'!$F$6=\"CIUGC\",IF('Blank - Request Form'!K48=0,\"\",'Blank - Request Form'!K48),IF('Blank - Request Form'!$F$7=\"CIUGC\",IF('Blank - Request Form'!T48=0,\"\",'Blank - Request Form'!T48),\"\"))","v":""},null,null,null,{"$f":"IF(M14<>\"\",'Blank - Request Form'!$M$2,\"\")","v":""},{"$f":"IF('Blank - Request Form'!$F$6=\"CIUGC\",IF('Blank - Request Form'!J48=0,\"\",'Blank - Request Form'!J48),IF('Blank - Request Form'!$F$7=\"CIUGC\",IF('Blank - Request Form'!S48=0,\"\",'Blank - Request Form'!S48),\"\"))","v":""},"",14]
[{"$f":"IF('Blank - Request Form'!$F$6=\"CIUGC\",IF('Blank - Request Form'!D49=0,\"\",'Blank - Request Form'!D49),IF('Blank - Request Form'!$F$7=\"CIUGC\",IF('Blank - Request Form'!M49=0,\"\",'Blank - Request Form'!M49),\"\"))","v":""},{"$f":"IF('Blank - Request Form'!$F$6=\"CIUGC\",IF('Blank - Request Form'!E49=0,\"\",'Blank - Request Form'!E49),IF('Blank - Request Form'!$F$7=\"CIUGC\",IF('Blank - Request Form'!N49=0,\"\",'Blank - Request Form'!N49),\"\"))","v":""},{"$f":"IF('Blank - Request Form'!$F$6=\"CIUGC\",IF(OR('Blank - Request Form'!F49=\"000\",'Blank - Request Form'!F49=0),\"\",'Blank - Request Form'!F49),IF('Blank - Request Form'!$F$7=\"CIUGC\",IF(OR('Blank - Request Form'!O49=\"000\",'Blank - Request Form'!O49=0),\"\",'Blank - Request Form'!O49),\"\"))","v":""},{"$f":"IF('Blank - Request Form'!$F$6=\"CIUGC\",IF(OR('Blank - Request Form'!G49=\"0\",'Blank - Request Form'!G49=\"00000\",'Blank - Request Form'!G49=0),\"\",'Blank - Request Form'!G49),IF('Blank - Request Form'!$F$7=\"CIUGC\",IF(OR('Blank - Request Form'!P49=\"0\",'Blank - Request Form'!P49=\"00000\",'Blank - Request Form'!P49=0),\"\",'Blank - Request Form'!P49),\"\"))","v":""},{"$f":"IF('Blank - Request Form'!$F$6=\"CIUGC\",IF(OR('Blank - Request Form'!H49=\"0\",'Blank - Request Form'!H49=\"00000\",'Blank - Request Form'!H49=0),\"\",'Blank - Request Form'!H49),IF('Blank - Request Form'!$F$7=\"CIUGC\",IF(OR('Blank - Request Form'!Q49=\"0\",'Blank - Request Form'!Q49=\"00000\",'Blank - Request Form'!Q49=0),\"\",'Blank - Request Form'!Q49),\"\"))","v":""},{"$f":"IF('Blank - Request Form'!$F$6=\"CIUGC\",IF(OR('Blank - Request Form'!I49=\"0\",'Blank - Request Form'!I49=\"00000\",'Blank - Request Form'!I49=0),\"\",'Blank - Request Form'!I49),IF('Blank - Request Form'!$F$7=\"CIUGC\",IF(OR('Blank - Request Form'!R49=\"0\",'Blank - Request Form'!R49=\"00000\",'Blank - Request Form'!R49=0),\"\",'Blank - Request Form'!R49),\"\"))","v":""},null,{"$f":"IF('Blank - Request Form'!$F$6=\"CIUGC\",IF('Blank - Request Form'!K49=0,\"\",'Blank - Request Form'!K49),IF('Blank - Request Form'!$F$7=\"CIUGC\",IF('Blank - Request Form'!T49=0,\"\",'Blank - Request Form'!T49),\"\"))","v":""},null,null,null,{"$f":"IF(M15<>\"\",'Blank - Request Form'!$M$2,\"\")","v":""},{"$f":"IF('Blank - Request Form'!$F$6=\"CIUGC\",IF('Blank - Request Form'!J49=0,\"\",'Blank - Request Form'!J49),IF('Blank - Request Form'!$F$7=\"CIUGC\",IF('Blank - Request Form'!S49=0,\"\",'Blank - Request Form'!S49),\"\"))","v":""},"",15]
[{"$f":"IF('Blank - Request Form'!$F$6=\"CIUGC\",IF('Blank - Request Form'!D50=0,\"\",'Blank - Request Form'!D50),IF('Blank - Request Form'!$F$7=\"CIUGC\",IF('Blank - Request Form'!M50=0,\"\",'Blank - Request Form'!M50),\"\"))","v":""},{"$f":"IF('Blank - Request Form'!$F$6=\"CIUGC\",IF('Blank - Request Form'!E50=0,\"\",'Blank - Request Form'!E50),IF('Blank - Request Form'!$F$7=\"CIUGC\",IF('Blank - Request Form'!N50=0,\"\",'Blank - Request Form'!N50),\"\"))","v":""},{"$f":"IF('Blank - Request Form'!$F$6=\"CIUGC\",IF(OR('Blank - Request Form'!F50=\"000\",'Blank - Request Form'!F50=0),\"\",'Blank - Request Form'!F50),IF('Blank - Request Form'!$F$7=\"CIUGC\",IF(OR('Blank - Request Form'!O50=\"000\",'Blank - Request Form'!O50=0),\"\",'Blank - Request Form'!O50),\"\"))","v":""},{"$f":"IF('Blank - Request Form'!$F$6=\"CIUGC\",IF(OR('Blank - Request Form'!G50=\"0\",'Blank - Request Form'!G50=\"00000\",'Blank - Request Form'!G50=0),\"\",'Blank - Request Form'!G50),IF('Blank - Request Form'!$F$7=\"CIUGC\",IF(OR('Blank - Request Form'!P50=\"0\",'Blank - Request Form'!P50=\"00000\",'Blank - Request Form'!P50=0),\"\",'Blank - Request Form'!P50),\"\"))","v":""},{"$f":"IF('Blank - Request Form'!$F$6=\"CIUGC\",IF(OR('Blank - Request Form'!H50=\"0\",'Blank - Request Form'!H50=\"00000\",'Blank - Request Form'!H50=0),\"\",'Blank - Request Form'!H50),IF('Blank - Request Form'!$F$7=\"CIUGC\",IF(OR('Blank - Request Form'!Q50=\"0\",'Blank - Request Form'!Q50=\"00000\",'Blank - Request Form'!Q50=0),\"\",'Blank - Request Form'!Q50),\"\"))","v":""},{"$f":"IF('Blank - Request Form'!$F$6=\"CIUGC\",IF(OR('Blank - Request Form'!I50=\"0\",'Blank - Request Form'!I50=\"00000\",'Blank - Request Form'!I50=0),\"\",'Blank - Request Form'!I50),IF('Blank - Request Form'!$F$7=\"CIUGC\",IF(OR('Blank - Request Form'!R50=\"0\",'Blank - Request Form'!R50=\"00000\",'Blank - Request Form'!R50=0),\"\",'Blank - Request Form'!R50),\"\"))","v":""},null,{"$f":"IF('Blank - Request Form'!$F$6=\"CIUGC\",IF('Blank - Request Form'!K50=0,\"\",'Blank - Request Form'!K50),IF('Blank - Request Form'!$F$7=\"CIUGC\",IF('Blank - Request Form'!T50=0,\"\",'Blank - Request Form'!T50),\"\"))","v":""},null,null,null,{"$f":"IF(M16<>\"\",'Blank - Request Form'!$M$2,\"\")","v":""},{"$f":"IF('Blank - Request Form'!$F$6=\"CIUGC\",IF('Blank - Request Form'!J50=0,\"\",'Blank - Request Form'!J50),IF('Blank - Request Form'!$F$7=\"CIUGC\",IF('Blank - Request Form'!S50=0,\"\",'Blank - Request Form'!S50),\"\"))","v":""},"",16]
[{"$f":"IF('Blank - Request Form'!$F$6=\"CIUGC\",IF('Blank - Request Form'!D51=0,\"\",'Blank - Request Form'!D51),IF('Blank - Request Form'!$F$7=\"CIUGC\",IF('Blank - Request Form'!M51=0,\"\",'Blank - Request Form'!M51),\"\"))","v":""},{"$f":"IF('Blank - Request Form'!$F$6=\"CIUGC\",IF('Blank - Request Form'!E51=0,\"\",'Blank - Request Form'!E51),IF('Blank - Request Form'!$F$7=\"CIUGC\",IF('Blank - Request Form'!N51=0,\"\",'Blank - Request Form'!N51),\"\"))","v":""},{"$f":"IF('Blank - Request Form'!$F$6=\"CIUGC\",IF(OR('Blank - Request Form'!F51=\"000\",'Blank - Request Form'!F51=0),\"\",'Blank - Request Form'!F51),IF('Blank - Request Form'!$F$7=\"CIUGC\",IF(OR('Blank - Request Form'!O51=\"000\",'Blank - Request Form'!O51=0),\"\",'Blank - Request Form'!O51),\"\"))","v":""},{"$f":"IF('Blank - Request Form'!$F$6=\"CIUGC\",IF(OR('Blank - Request Form'!G51=\"0\",'Blank - Request Form'!G51=\"00000\",'Blank - Request Form'!G51=0),\"\",'Blank - Request Form'!G51),IF('Blank - Request Form'!$F$7=\"CIUGC\",IF(OR('Blank - Request Form'!P51=\"0\",'Blank - Request Form'!P51=\"00000\",'Blank - Request Form'!P51=0),\"\",'Blank - Request Form'!P51),\"\"))","v":""},{"$f":"IF('Blank - Request Form'!$F$6=\"CIUGC\",IF(OR('Blank - Request Form'!H51=\"0\",'Blank - Request Form'!H51=\"00000\",'Blank - Request Form'!H51=0),\"\",'Blank - Request Form'!H51),IF('Blank - Request Form'!$F$7=\"CIUGC\",IF(OR('Blank - Request Form'!Q51=\"0\",'Blank - Request Form'!Q51=\"00000\",'Blank - Request Form'!Q51=0),\"\",'Blank - Request Form'!Q51),\"\"))","v":""},{"$f":"IF('Blank - Request Form'!$F$6=\"CIUGC\",IF(OR('Blank - Request Form'!I51=\"0\",'Blank - Request Form'!I51=\"00000\",'Blank - Request Form'!I51=0),\"\",'Blank - Request Form'!I51),IF('Blank - Request Form'!$F$7=\"CIUGC\",IF(OR('Blank - Request Form'!R51=\"0\",'Blank - Request Form'!R51=\"00000\",'Blank - Request Form'!R51=0),\"\",'Blank - Request Form'!R51),\"\"))","v":""},null,{"$f":"IF('Blank - Request Form'!$F$6=\"CIUGC\",IF('Blank - Request Form'!K51=0,\"\",'Blank - Request Form'!K51),IF('Blank - Request Form'!$F$7=\"CIUGC\",IF('Blank - Request Form'!T51=0,\"\",'Blank - Request Form'!T51),\"\"))","v":""},null,null,null,{"$f":"IF(M17<>\"\",'Blank - Request Form'!$M$2,\"\")","v":""},{"$f":"IF('Blank - Request Form'!$F$6=\"CIUGC\",IF('Blank - Request Form'!J51=0,\"\",'Blank - Request Form'!J51),IF('Blank - Request Form'!$F$7=\"CIUGC\",IF('Blank - Request Form'!S51=0,\"\",'Blank - Request Form'!S51),\"\"))","v":""},"",17]
[{"$f":"IF('Blank - Request Form'!$F$6=\"CIUGC\",IF('Blank - Request Form'!D52=0,\"\",'Blank - Request Form'!D52),IF('Blank - Request Form'!$F$7=\"CIUGC\",IF('Blank - Request Form'!M52=0,\"\",'Blank - Request Form'!M52),\"\"))","v":""},{"$f":"IF('Blank - Request Form'!$F$6=\"CIUGC\",IF('Blank - Request Form'!E52=0,\"\",'Blank - Request Form'!E52),IF('Blank - Request Form'!$F$7=\"CIUGC\",IF('Blank - Request Form'!N52=0,\"\",'Blank - Request Form'!N52),\"\"))","v":""},{"$f":"IF('Blank - Request Form'!$F$6=\"CIUGC\",IF(OR('Blank - Request Form'!F52=\"000\",'Blank - Request Form'!F52=0),\"\",'Blank - Request Form'!F52),IF('Blank - Request Form'!$F$7=\"CIUGC\",IF(OR('Blank - Request Form'!O52=\"000\",'Blank - Request Form'!O52=0),\"\",'Blank - Request Form'!O52),\"\"))","v":""},{"$f":"IF('Blank - Request Form'!$F$6=\"CIUGC\",IF(OR('Blank - Request Form'!G52=\"0\",'Blank - Request Form'!G52=\"00000\",'Blank - Request Form'!G52=0),\"\",'Blank - Request Form'!G52),IF('Blank - Request Form'!$F$7=\"CIUGC\",IF(OR('Blank - Request Form'!P52=\"0\",'Blank - Request Form'!P52=\"00000\",'Blank - Request Form'!P52=0),\"\",'Blank - Request Form'!P52),\"\"))","v":""},{"$f":"IF('Blank - Request Form'!$F$6=\"CIUGC\",IF(OR('Blank - Request Form'!H52=\"0\",'Blank - Request Form'!H52=\"00000\",'Blank - Request Form'!H52=0),\"\",'Blank - Request Form'!H52),IF('Blank - Request Form'!$F$7=\"CIUGC\",IF(OR('Blank - Request Form'!Q52=\"0\",'Blank - Request Form'!Q52=\"00000\",'Blank - Request Form'!Q52=0),\"\",'Blank - Request Form'!Q52),\"\"))","v":""},{"$f":"IF('Blank - Request Form'!$F$6=\"CIUGC\",IF(OR('Blank - Request Form'!I52=\"0\",'Blank - Request Form'!I52=\"00000\",'Blank - Request Form'!I52=0),\"\",'Blank - Request Form'!I52),IF('Blank - Request Form'!$F$7=\"CIUGC\",IF(OR('Blank - Request Form'!R52=\"0\",'Blank - Request Form'!R52=\"00000\",'Blank - Request Form'!R52=0),\"\",'Blank - Request Form'!R52),\"\"))","v":""},null,{"$f":"IF('Blank - Request Form'!$F$6=\"CIUGC\",IF('Blank - Request Form'!K52=0,\"\",'Blank - Request Form'!K52),IF('Blank - Request Form'!$F$7=\"CIUGC\",IF('Blank - Request Form'!T52=0,\"\",'Blank - Request Form'!T52),\"\"))","v":""},null,null,null,{"$f":"IF(M18<>\"\",'Blank - Request Form'!$M$2,\"\")","v":""},{"$f":"IF('Blank - Request Form'!$F$6=\"CIUGC\",IF('Blank - Request Form'!J52=0,\"\",'Blank - Request Form'!J52),IF('Blank - Request Form'!$F$7=\"CIUGC\",IF('Blank - Request Form'!S52=0,\"\",'Blank - Request Form'!S52),\"\"))","v":""},"",18]
[{"$f":"IF('Blank - Request Form'!$F$6=\"CIUGC\",IF('Blank - Request Form'!D53=0,\"\",'Blank - Request Form'!D53),IF('Blank - Request Form'!$F$7=\"CIUGC\",IF('Blank - Request Form'!M53=0,\"\",'Blank - Request Form'!M53),\"\"))","v":""},{"$f":"IF('Blank - Request Form'!$F$6=\"CIUGC\",IF('Blank - Request Form'!E53=0,\"\",'Blank - Request Form'!E53),IF('Blank - Request Form'!$F$7=\"CIUGC\",IF('Blank - Request Form'!N53=0,\"\",'Blank - Request Form'!N53),\"\"))","v":""},{"$f":"IF('Blank - Request Form'!$F$6=\"CIUGC\",IF(OR('Blank - Request Form'!F53=\"000\",'Blank - Request Form'!F53=0),\"\",'Blank - Request Form'!F53),IF('Blank - Request Form'!$F$7=\"CIUGC\",IF(OR('Blank - Request Form'!O53=\"000\",'Blank - Request Form'!O53=0),\"\",'Blank - Request Form'!O53),\"\"))","v":""},{"$f":"IF('Blank - Request Form'!$F$6=\"CIUGC\",IF(OR('Blank - Request Form'!G53=\"0\",'Blank - Request Form'!G53=\"00000\",'Blank - Request Form'!G53=0),\"\",'Blank - Request Form'!G53),IF('Blank - Request Form'!$F$7=\"CIUGC\",IF(OR('Blank - Request Form'!P53=\"0\",'Blank - Request Form'!P53=\"00000\",'Blank - Request Form'!P53=0),\"\",'Blank - Request Form'!P53),\"\"))","v":""},{"$f":"IF('Blank - Request Form'!$F$6=\"CIUGC\",IF(OR('Blank - Request Form'!H53=\"0\",'Blank - Request Form'!H53=\"00000\",'Blank - Request Form'!H53=0),\"\",'Blank - Request Form'!H53),IF('Blank - Request Form'!$F$7=\"CIUGC\",IF(OR('Blank - Request Form'!Q53=\"0\",'Blank - Request Form'!Q53=\"00000\",'Blank - Request Form'!Q53=0),\"\",'Blank - Request Form'!Q53),\"\"))","v":""},{"$f":"IF('Blank - Request Form'!$F$6=\"CIUGC\",IF(OR('Blank - Request Form'!I53=\"0\",'Blank - Request Form'!I53=\"00000\",'Blank - Request Form'!I53=0),\"\",'Blank - Request Form'!I53),IF('Blank - Request Form'!$F$7=\"CIUGC\",IF(OR('Blank - Request Form'!R53=\"0\",'Blank - Request Form'!R53=\"00000\",'Blank - Request Form'!R53=0),\"\",'Blank - Request Form'!R53),\"\"))","v":""},null,{"$f":"IF('Blank - Request Form'!$F$6=\"CIUGC\",IF('Blank - Request Form'!K53=0,\"\",'Blank - Request Form'!K53),IF('Blank - Request Form'!$F$7=\"CIUGC\",IF('Blank - Request Form'!T53=0,\"\",'Blank - Request Form'!T53),\"\"))","v":""},null,null,null,{"$f":"IF(M19<>\"\",'Blank - Request Form'!$M$2,\"\")","v":""},{"$f":"IF('Blank - Request Form'!$F$6=\"CIUGC\",IF('Blank - Request Form'!J53=0,\"\",'Blank - Request Form'!J53),IF('Blank - Request Form'!$F$7=\"CIUGC\",IF('Blank - Request Form'!S53=0,\"\",'Blank - Request Form'!S53),\"\"))","v":""},"",19]
[{"$f":"IF('Blank - Request Form'!$F$6=\"CIUGC\",IF('Blank - Request Form'!D54=0,\"\",'Blank - Request Form'!D54),IF('Blank - Request Form'!$F$7=\"CIUGC\",IF('Blank - Request Form'!M54=0,\"\",'Blank - Request Form'!M54),\"\"))","v":""},{"$f":"IF('Blank - Request Form'!$F$6=\"CIUGC\",IF('Blank - Request Form'!E54=0,\"\",'Blank - Request Form'!E54),IF('Blank - Request Form'!$F$7=\"CIUGC\",IF('Blank - Request Form'!N54=0,\"\",'Blank - Request Form'!N54),\"\"))","v":""},{"$f":"IF('Blank - Request Form'!$F$6=\"CIUGC\",IF(OR('Blank - Request Form'!F54=\"000\",'Blank - Request Form'!F54=0),\"\",'Blank - Request Form'!F54),IF('Blank - Request Form'!$F$7=\"CIUGC\",IF(OR('Blank - Request Form'!O54=\"000\",'Blank - Request Form'!O54=0),\"\",'Blank - Request Form'!O54),\"\"))","v":""},{"$f":"IF('Blank - Request Form'!$F$6=\"CIUGC\",IF(OR('Blank - Request Form'!G54=\"0\",'Blank - Request Form'!G54=\"00000\",'Blank - Request Form'!G54=0),\"\",'Blank - Request Form'!G54),IF('Blank - Request Form'!$F$7=\"CIUGC\",IF(OR('Blank - Request Form'!P54=\"0\",'Blank - Request Form'!P54=\"00000\",'Blank - Request Form'!P54=0),\"\",'Blank - Request Form'!P54),\"\"))","v":""},{"$f":"IF('Blank - Request Form'!$F$6=\"CIUGC\",IF(OR('Blank - Request Form'!H54=\"0\",'Blank - Request Form'!H54=\"00000\",'Blank - Request Form'!H54=0),\"\",'Blank - Request Form'!H54),IF('Blank - Request Form'!$F$7=\"CIUGC\",IF(OR('Blank - Request Form'!Q54=\"0\",'Blank - Request Form'!Q54=\"00000\",'Blank - Request Form'!Q54=0),\"\",'Blank - Request Form'!Q54),\"\"))","v":""},{"$f":"IF('Blank - Request Form'!$F$6=\"CIUGC\",IF(OR('Blank - Request Form'!I54=\"0\",'Blank - Request Form'!I54=\"00000\",'Blank - Request Form'!I54=0),\"\",'Blank - Request Form'!I54),IF('Blank - Request Form'!$F$7=\"CIUGC\",IF(OR('Blank - Request Form'!R54=\"0\",'Blank - Request Form'!R54=\"00000\",'Blank - Request Form'!R54=0),\"\",'Blank - Request Form'!R54),\"\"))","v":""},null,{"$f":"IF('Blank - Request Form'!$F$6=\"CIUGC\",IF('Blank - Request Form'!K54=0,\"\",'Blank - Request Form'!K54),IF('Blank - Request Form'!$F$7=\"CIUGC\",IF('Blank - Request Form'!T54=0,\"\",'Blank - Request Form'!T54),\"\"))","v":""},null,null,null,{"$f":"IF(M20<>\"\",'Blank - Request Form'!$M$2,\"\")","v":""},{"$f":"IF('Blank - Request Form'!$F$6=\"CIUGC\",IF('Blank - Request Form'!J54=0,\"\",'Blank - Request Form'!J54),IF('Blank - Request Form'!$F$7=\"CIUGC\",IF('Blank - Request Form'!S54=0,\"\",'Blank - Request Form'!S54),\"\"))","v":""},"",20]
[{"$f":"IF('Blank - Request Form'!$F$6=\"CIUGC\",IF('Blank - Request Form'!D55=0,\"\",'Blank - Request Form'!D55),IF('Blank - Request Form'!$F$7=\"CIUGC\",IF('Blank - Request Form'!M55=0,\"\",'Blank - Request Form'!M55),\"\"))","v":""},{"$f":"IF('Blank - Request Form'!$F$6=\"CIUGC\",IF('Blank - Request Form'!E55=0,\"\",'Blank - Request Form'!E55),IF('Blank - Request Form'!$F$7=\"CIUGC\",IF('Blank - Request Form'!N55=0,\"\",'Blank - Request Form'!N55),\"\"))","v":""},{"$f":"IF('Blank - Request Form'!$F$6=\"CIUGC\",IF(OR('Blank - Request Form'!F55=\"000\",'Blank - Request Form'!F55=0),\"\",'Blank - Request Form'!F55),IF('Blank - Request Form'!$F$7=\"CIUGC\",IF(OR('Blank - Request Form'!O55=\"000\",'Blank - Request Form'!O55=0),\"\",'Blank - Request Form'!O55),\"\"))","v":""},{"$f":"IF('Blank - Request Form'!$F$6=\"CIUGC\",IF(OR('Blank - Request Form'!G55=\"0\",'Blank - Request Form'!G55=\"00000\",'Blank - Request Form'!G55=0),\"\",'Blank - Request Form'!G55),IF('Blank - Request Form'!$F$7=\"CIUGC\",IF(OR('Blank - Request Form'!P55=\"0\",'Blank - Request Form'!P55=\"00000\",'Blank - Request Form'!P55=0),\"\",'Blank - Request Form'!P55),\"\"))","v":""},{"$f":"IF('Blank - Request Form'!$F$6=\"CIUGC\",IF(OR('Blank - Request Form'!H55=\"0\",'Blank - Request Form'!H55=\"00000\",'Blank - Request Form'!H55=0),\"\",'Blank - Request Form'!H55),IF('Blank - Request Form'!$F$7=\"CIUGC\",IF(OR('Blank - Request Form'!Q55=\"0\",'Blank - Request Form'!Q55=\"00000\",'Blank - Request Form'!Q55=0),\"\",'Blank - Request Form'!Q55),\"\"))","v":""},{"$f":"IF('Blank - Request Form'!$F$6=\"CIUGC\",IF(OR('Blank - Request Form'!I55=\"0\",'Blank - Request Form'!I55=\"00000\",'Blank - Request Form'!I55=0),\"\",'Blank - Request Form'!I55),IF('Blank - Request Form'!$F$7=\"CIUGC\",IF(OR('Blank - Request Form'!R55=\"0\",'Blank - Request Form'!R55=\"00000\",'Blank - Request Form'!R55=0),\"\",'Blank - Request Form'!R55),\"\"))","v":""},null,{"$f":"IF('Blank - Request Form'!$F$6=\"CIUGC\",IF('Blank - Request Form'!K55=0,\"\",'Blank - Request Form'!K55),IF('Blank - Request Form'!$F$7=\"CIUGC\",IF('Blank - Request Form'!T55=0,\"\",'Blank - Request Form'!T55),\"\"))","v":""},null,null,null,{"$f":"IF(M21<>\"\",'Blank - Request Form'!$M$2,\"\")","v":""},{"$f":"IF('Blank - Request Form'!$F$6=\"CIUGC\",IF('Blank - Request Form'!J55=0,\"\",'Blank - Request Form'!J55),IF('Blank - Request Form'!$F$7=\"CIUGC\",IF('Blank - Request Form'!S55=0,\"\",'Blank - Request Form'!S55),\"\"))","v":""},"",21]
[{"$f":"IF('Blank - Request Form'!$F$6=\"CIUGC\",IF('Blank - Request Form'!D56=0,\"\",'Blank - Request Form'!D56),IF('Blank - Request Form'!$F$7=\"CIUGC\",IF('Blank - Request Form'!M56=0,\"\",'Blank - Request Form'!M56),\"\"))","v":""},{"$f":"IF('Blank - Request Form'!$F$6=\"CIUGC\",IF('Blank - Request Form'!E56=0,\"\",'Blank - Request Form'!E56),IF('Blank - Request Form'!$F$7=\"CIUGC\",IF('Blank - Request Form'!N56=0,\"\",'Blank - Request Form'!N56),\"\"))","v":""},{"$f":"IF('Blank - Request Form'!$F$6=\"CIUGC\",IF(OR('Blank - Request Form'!F56=\"000\",'Blank - Request Form'!F56=0),\"\",'Blank - Request Form'!F56),IF('Blank - Request Form'!$F$7=\"CIUGC\",IF(OR('Blank - Request Form'!O56=\"000\",'Blank - Request Form'!O56=0),\"\",'Blank - Request Form'!O56),\"\"))","v":""},{"$f":"IF('Blank - Request Form'!$F$6=\"CIUGC\",IF(OR('Blank - Request Form'!G56=\"0\",'Blank - Request Form'!G56=\"00000\",'Blank - Request Form'!G56=0),\"\",'Blank - Request Form'!G56),IF('Blank - Request Form'!$F$7=\"CIUGC\",IF(OR('Blank - Request Form'!P56=\"0\",'Blank - Request Form'!P56=\"00000\",'Blank - Request Form'!P56=0),\"\",'Blank - Request Form'!P56),\"\"))","v":""},{"$f":"IF('Blank - Request Form'!$F$6=\"CIUGC\",IF(OR('Blank - Request Form'!H56=\"0\",'Blank - Request Form'!H56=\"00000\",'Blank - Request Form'!H56=0),\"\",'Blank - Request Form'!H56),IF('Blank - Request Form'!$F$7=\"CIUGC\",IF(OR('Blank - Request Form'!Q56=\"0\",'Blank - Request Form'!Q56=\"00000\",'Blank - Request Form'!Q56=0),\"\",'Blank - Request Form'!Q56),\"\"))","v":""},{"$f":"IF('Blank - Request Form'!$F$6=\"CIUGC\",IF(OR('Blank - Request Form'!I56=\"0\",'Blank - Request Form'!I56=\"00000\",'Blank - Request Form'!I56=0),\"\",'Blank - Request Form'!I56),IF('Blank - Request Form'!$F$7=\"CIUGC\",IF(OR('Blank - Request Form'!R56=\"0\",'Blank - Request Form'!R56=\"00000\",'Blank - Request Form'!R56=0),\"\",'Blank - Request Form'!R56),\"\"))","v":""},null,{"$f":"IF('Blank - Request Form'!$F$6=\"CIUGC\",IF('Blank - Request Form'!K56=0,\"\",'Blank - Request Form'!K56),IF('Blank - Request Form'!$F$7=\"CIUGC\",IF('Blank - Request Form'!T56=0,\"\",'Blank - Request Form'!T56),\"\"))","v":""},null,null,null,{"$f":"IF(M22<>\"\",'Blank - Request Form'!$M$2,\"\")","v":""},{"$f":"IF('Blank - Request Form'!$F$6=\"CIUGC\",IF('Blank - Request Form'!J56=0,\"\",'Blank - Request Form'!J56),IF('Blank - Request Form'!$F$7=\"CIUGC\",IF('Blank - Request Form'!S56=0,\"\",'Blank - Request Form'!S56),\"\"))","v":""},"",22]
[{"$f":"IF('Blank - Request Form'!$F$6=\"CIUGC\",IF('Blank - Request Form'!D57=0,\"\",'Blank - Request Form'!D57),IF('Blank - Request Form'!$F$7=\"CIUGC\",IF('Blank - Request Form'!M57=0,\"\",'Blank - Request Form'!M57),\"\"))","v":""},{"$f":"IF('Blank - Request Form'!$F$6=\"CIUGC\",IF('Blank - Request Form'!E57=0,\"\",'Blank - Request Form'!E57),IF('Blank - Request Form'!$F$7=\"CIUGC\",IF('Blank - Request Form'!N57=0,\"\",'Blank - Request Form'!N57),\"\"))","v":""},{"$f":"IF('Blank - Request Form'!$F$6=\"CIUGC\",IF(OR('Blank - Request Form'!F57=\"000\",'Blank - Request Form'!F57=0),\"\",'Blank - Request Form'!F57),IF('Blank - Request Form'!$F$7=\"CIUGC\",IF(OR('Blank - Request Form'!O57=\"000\",'Blank - Request Form'!O57=0),\"\",'Blank - Request Form'!O57),\"\"))","v":""},{"$f":"IF('Blank - Request Form'!$F$6=\"CIUGC\",IF(OR('Blank - Request Form'!G57=\"0\",'Blank - Request Form'!G57=\"00000\",'Blank - Request Form'!G57=0),\"\",'Blank - Request Form'!G57),IF('Blank - Request Form'!$F$7=\"CIUGC\",IF(OR('Blank - Request Form'!P57=\"0\",'Blank - Request Form'!P57=\"00000\",'Blank - Request Form'!P57=0),\"\",'Blank - Request Form'!P57),\"\"))","v":""},{"$f":"IF('Blank - Request Form'!$F$6=\"CIUGC\",IF(OR('Blank - Request Form'!H57=\"0\",'Blank - Request Form'!H57=\"00000\",'Blank - Request Form'!H57=0),\"\",'Blank - Request Form'!H57),IF('Blank - Request Form'!$F$7=\"CIUGC\",IF(OR('Blank - Request Form'!Q57=\"0\",'Blank - Request Form'!Q57=\"00000\",'Blank - Request Form'!Q57=0),\"\",'Blank - Request Form'!Q57),\"\"))","v":""},{"$f":"IF('Blank - Request Form'!$F$6=\"CIUGC\",IF(OR('Blank - Request Form'!I57=\"0\",'Blank - Request Form'!I57=\"00000\",'Blank - Request Form'!I57=0),\"\",'Blank - Request Form'!I57),IF('Blank - Request Form'!$F$7=\"CIUGC\",IF(OR('Blank - Request Form'!R57=\"0\",'Blank - Request Form'!R57=\"00000\",'Blank - Request Form'!R57=0),\"\",'Blank - Request Form'!R57),\"\"))","v":""},null,{"$f":"IF('Blank - Request Form'!$F$6=\"CIUGC\",IF('Blank - Request Form'!K57=0,\"\",'Blank - Request Form'!K57),IF('Blank - Request Form'!$F$7=\"CIUGC\",IF('Blank - Request Form'!T57=0,\"\",'Blank - Request Form'!T57),\"\"))","v":""},null,null,null,{"$f":"IF(M23<>\"\",'Blank - Request Form'!$M$2,\"\")","v":""},{"$f":"IF('Blank - Request Form'!$F$6=\"CIUGC\",IF('Blank - Request Form'!J57=0,\"\",'Blank - Request Form'!J57),IF('Blank - Request Form'!$F$7=\"CIUGC\",IF('Blank - Request Form'!S57=0,\"\",'Blank - Request Form'!S57),\"\"))","v":""},"",23]
[{"$f":"IF('Blank - Request Form'!$F$6=\"CIUGC\",IF('Blank - Request Form'!D58=0,\"\",'Blank - Request Form'!D58),IF('Blank - Request Form'!$F$7=\"CIUGC\",IF('Blank - Request Form'!M58=0,\"\",'Blank - Request Form'!M58),\"\"))","v":""},{"$f":"IF('Blank - Request Form'!$F$6=\"CIUGC\",IF('Blank - Request Form'!E58=0,\"\",'Blank - Request Form'!E58),IF('Blank - Request Form'!$F$7=\"CIUGC\",IF('Blank - Request Form'!N58=0,\"\",'Blank - Request Form'!N58),\"\"))","v":""},{"$f":"IF('Blank - Request Form'!$F$6=\"CIUGC\",IF(OR('Blank - Request Form'!F58=\"000\",'Blank - Request Form'!F58=0),\"\",'Blank - Request Form'!F58),IF('Blank - Request Form'!$F$7=\"CIUGC\",IF(OR('Blank - Request Form'!O58=\"000\",'Blank - Request Form'!O58=0),\"\",'Blank - Request Form'!O58),\"\"))","v":""},{"$f":"IF('Blank - Request Form'!$F$6=\"CIUGC\",IF(OR('Blank - Request Form'!G58=\"0\",'Blank - Request Form'!G58=\"00000\",'Blank - Request Form'!G58=0),\"\",'Blank - Request Form'!G58),IF('Blank - Request Form'!$F$7=\"CIUGC\",IF(OR('Blank - Request Form'!P58=\"0\",'Blank - Request Form'!P58=\"00000\",'Blank - Request Form'!P58=0),\"\",'Blank - Request Form'!P58),\"\"))","v":""},{"$f":"IF('Blank - Request Form'!$F$6=\"CIUGC\",IF(OR('Blank - Request Form'!H58=\"0\",'Blank - Request Form'!H58=\"00000\",'Blank - Request Form'!H58=0),\"\",'Blank - Request Form'!H58),IF('Blank - Request Form'!$F$7=\"CIUGC\",IF(OR('Blank - Request Form'!Q58=\"0\",'Blank - Request Form'!Q58=\"00000\",'Blank - Request Form'!Q58=0),\"\",'Blank - Request Form'!Q58),\"\"))","v":""},{"$f":"IF('Blank - Request Form'!$F$6=\"CIUGC\",IF(OR('Blank - Request Form'!I58=\"0\",'Blank - Request Form'!I58=\"00000\",'Blank - Request Form'!I58=0),\"\",'Blank - Request Form'!I58),IF('Blank - Request Form'!$F$7=\"CIUGC\",IF(OR('Blank - Request Form'!R58=\"0\",'Blank - Request Form'!R58=\"00000\",'Blank - Request Form'!R58=0),\"\",'Blank - Request Form'!R58),\"\"))","v":""},null,{"$f":"IF('Blank - Request Form'!$F$6=\"CIUGC\",IF('Blank - Request Form'!K58=0,\"\",'Blank - Request Form'!K58),IF('Blank - Request Form'!$F$7=\"CIUGC\",IF('Blank - Request Form'!T58=0,\"\",'Blank - Request Form'!T58),\"\"))","v":""},null,null,null,{"$f":"IF(M24<>\"\",'Blank - Request Form'!$M$2,\"\")","v":""},{"$f":"IF('Blank - Request Form'!$F$6=\"CIUGC\",IF('Blank - Request Form'!J58=0,\"\",'Blank - Request Form'!J58),IF('Blank - Request Form'!$F$7=\"CIUGC\",IF('Blank - Request Form'!S58=0,\"\",'Blank - Request Form'!S58),\"\"))","v":""},"",24]
[{"$f":"IF('Blank - Request Form'!$F$6=\"CIUGC\",IF('Blank - Request Form'!D59=0,\"\",'Blank - Request Form'!D59),IF('Blank - Request Form'!$F$7=\"CIUGC\",IF('Blank - Request Form'!M59=0,\"\",'Blank - Request Form'!M59),\"\"))","v":""},{"$f":"IF('Blank - Request Form'!$F$6=\"CIUGC\",IF('Blank - Request Form'!E59=0,\"\",'Blank - Request Form'!E59),IF('Blank - Request Form'!$F$7=\"CIUGC\",IF('Blank - Request Form'!N59=0,\"\",'Blank - Request Form'!N59),\"\"))","v":""},{"$f":"IF('Blank - Request Form'!$F$6=\"CIUGC\",IF(OR('Blank - Request Form'!F59=\"000\",'Blank - Request Form'!F59=0),\"\",'Blank - Request Form'!F59),IF('Blank - Request Form'!$F$7=\"CIUGC\",IF(OR('Blank - Request Form'!O59=\"000\",'Blank - Request Form'!O59=0),\"\",'Blank - Request Form'!O59),\"\"))","v":""},{"$f":"IF('Blank - Request Form'!$F$6=\"CIUGC\",IF(OR('Blank - Request Form'!G59=\"0\",'Blank - Request Form'!G59=\"00000\",'Blank - Request Form'!G59=0),\"\",'Blank - Request Form'!G59),IF('Blank - Request Form'!$F$7=\"CIUGC\",IF(OR('Blank - Request Form'!P59=\"0\",'Blank - Request Form'!P59=\"00000\",'Blank - Request Form'!P59=0),\"\",'Blank - Request Form'!P59),\"\"))","v":""},{"$f":"IF('Blank - Request Form'!$F$6=\"CIUGC\",IF(OR('Blank - Request Form'!H59=\"0\",'Blank - Request Form'!H59=\"00000\",'Blank - Request Form'!H59=0),\"\",'Blank - Request Form'!H59),IF('Blank - Request Form'!$F$7=\"CIUGC\",IF(OR('Blank - Request Form'!Q59=\"0\",'Blank - Request Form'!Q59=\"00000\",'Blank - Request Form'!Q59=0),\"\",'Blank - Request Form'!Q59),\"\"))","v":""},{"$f":"IF('Blank - Request Form'!$F$6=\"CIUGC\",IF(OR('Blank - Request Form'!I59=\"0\",'Blank - Request Form'!I59=\"00000\",'Blank - Request Form'!I59=0),\"\",'Blank - Request Form'!I59),IF('Blank - Request Form'!$F$7=\"CIUGC\",IF(OR('Blank - Request Form'!R59=\"0\",'Blank - Request Form'!R59=\"00000\",'Blank - Request Form'!R59=0),\"\",'Blank - Request Form'!R59),\"\"))","v":""},null,{"$f":"IF('Blank - Request Form'!$F$6=\"CIUGC\",IF('Blank - Request Form'!K59=0,\"\",'Blank - Request Form'!K59),IF('Blank - Request Form'!$F$7=\"CIUGC\",IF('Blank - Request Form'!T59=0,\"\",'Blank - Request Form'!T59),\"\"))","v":""},null,null,null,{"$f":"IF(M25<>\"\",'Blank - Request Form'!$M$2,\"\")","v":""},{"$f":"IF('Blank - Request Form'!$F$6=\"CIUGC\",IF('Blank - Request Form'!J59=0,\"\",'Blank - Request Form'!J59),IF('Blank - Request Form'!$F$7=\"CIUGC\",IF('Blank - Request Form'!S59=0,\"\",'Blank - Request Form'!S59),\"\"))","v":""},"",25]
[{"$f":"IF('Blank - Request Form'!$F$6=\"CIUGC\",IF('Blank - Request Form'!D60=0,\"\",'Blank - Request Form'!D60),IF('Blank - Request Form'!$F$7=\"CIUGC\",IF('Blank - Request Form'!M60=0,\"\",'Blank - Request Form'!M60),\"\"))","v":""},{"$f":"IF('Blank - Request Form'!$F$6=\"CIUGC\",IF('Blank - Request Form'!E60=0,\"\",'Blank - Request Form'!E60),IF('Blank - Request Form'!$F$7=\"CIUGC\",IF('Blank - Request Form'!N60=0,\"\",'Blank - Request Form'!N60),\"\"))","v":""},{"$f":"IF('Blank - Request Form'!$F$6=\"CIUGC\",IF(OR('Blank - Request Form'!F60=\"000\",'Blank - Request Form'!F60=0),\"\",'Blank - Request Form'!F60),IF('Blank - Request Form'!$F$7=\"CIUGC\",IF(OR('Blank - Request Form'!O60=\"000\",'Blank - Request Form'!O60=0),\"\",'Blank - Request Form'!O60),\"\"))","v":""},{"$f":"IF('Blank - Request Form'!$F$6=\"CIUGC\",IF(OR('Blank - Request Form'!G60=\"0\",'Blank - Request Form'!G60=\"00000\",'Blank - Request Form'!G60=0),\"\",'Blank - Request Form'!G60),IF('Blank - Request Form'!$F$7=\"CIUGC\",IF(OR('Blank - Request Form'!P60=\"0\",'Blank - Request Form'!P60=\"00000\",'Blank - Request Form'!P60=0),\"\",'Blank - Request Form'!P60),\"\"))","v":""},{"$f":"IF('Blank - Request Form'!$F$6=\"CIUGC\",IF(OR('Blank - Request Form'!H60=\"0\",'Blank - Request Form'!H60=\"00000\",'Blank - Request Form'!H60=0),\"\",'Blank - Request Form'!H60),IF('Blank - Request Form'!$F$7=\"CIUGC\",IF(OR('Blank - Request Form'!Q60=\"0\",'Blank - Request Form'!Q60=\"00000\",'Blank - Request Form'!Q60=0),\"\",'Blank - Request Form'!Q60),\"\"))","v":""},{"$f":"IF('Blank - Request Form'!$F$6=\"CIUGC\",IF(OR('Blank - Request Form'!I60=\"0\",'Blank - Request Form'!I60=\"00000\",'Blank - Request Form'!I60=0),\"\",'Blank - Request Form'!I60),IF('Blank - Request Form'!$F$7=\"CIUGC\",IF(OR('Blank - Request Form'!R60=\"0\",'Blank - Request Form'!R60=\"00000\",'Blank - Request Form'!R60=0),\"\",'Blank - Request Form'!R60),\"\"))","v":""},null,{"$f":"IF('Blank - Request Form'!$F$6=\"CIUGC\",IF('Blank - Request Form'!K60=0,\"\",'Blank - Request Form'!K60),IF('Blank - Request Form'!$F$7=\"CIUGC\",IF('Blank - Request Form'!T60=0,\"\",'Blank - Request Form'!T60),\"\"))","v":""},null,null,null,{"$f":"IF(M26<>\"\",'Blank - Request Form'!$M$2,\"\")","v":""},{"$f":"IF('Blank - Request Form'!$F$6=\"CIUGC\",IF('Blank - Request Form'!J60=0,\"\",'Blank - Request Form'!J60),IF('Blank - Request Form'!$F$7=\"CIUGC\",IF('Blank - Request Form'!S60=0,\"\",'Blank - Request Form'!S60),\"\"))","v":""},"",26]
[{"$f":"IF('Blank - Request Form'!$F$6=\"CIUGC\",IF('Blank - Request Form'!D61=0,\"\",'Blank - Request Form'!D61),IF('Blank - Request Form'!$F$7=\"CIUGC\",IF('Blank - Request Form'!M61=0,\"\",'Blank - Request Form'!M61),\"\"))","v":""},{"$f":"IF('Blank - Request Form'!$F$6=\"CIUGC\",IF('Blank - Request Form'!E61=0,\"\",'Blank - Request Form'!E61),IF('Blank - Request Form'!$F$7=\"CIUGC\",IF('Blank - Request Form'!N61=0,\"\",'Blank - Request Form'!N61),\"\"))","v":""},{"$f":"IF('Blank - Request Form'!$F$6=\"CIUGC\",IF(OR('Blank - Request Form'!F61=\"000\",'Blank - Request Form'!F61=0),\"\",'Blank - Request Form'!F61),IF('Blank - Request Form'!$F$7=\"CIUGC\",IF(OR('Blank - Request Form'!O61=\"000\",'Blank - Request Form'!O61=0),\"\",'Blank - Request Form'!O61),\"\"))","v":""},{"$f":"IF('Blank - Request Form'!$F$6=\"CIUGC\",IF(OR('Blank - Request Form'!G61=\"0\",'Blank - Request Form'!G61=\"00000\",'Blank - Request Form'!G61=0),\"\",'Blank - Request Form'!G61),IF('Blank - Request Form'!$F$7=\"CIUGC\",IF(OR('Blank - Request Form'!P61=\"0\",'Blank - Request Form'!P61=\"00000\",'Blank - Request Form'!P61=0),\"\",'Blank - Request Form'!P61),\"\"))","v":""},{"$f":"IF('Blank - Request Form'!$F$6=\"CIUGC\",IF(OR('Blank - Request Form'!H61=\"0\",'Blank - Request Form'!H61=\"00000\",'Blank - Request Form'!H61=0),\"\",'Blank - Request Form'!H61),IF('Blank - Request Form'!$F$7=\"CIUGC\",IF(OR('Blank - Request Form'!Q61=\"0\",'Blank - Request Form'!Q61=\"00000\",'Blank - Request Form'!Q61=0),\"\",'Blank - Request Form'!Q61),\"\"))","v":""},{"$f":"IF('Blank - Request Form'!$F$6=\"CIUGC\",IF(OR('Blank - Request Form'!I61=\"0\",'Blank - Request Form'!I61=\"00000\",'Blank - Request Form'!I61=0),\"\",'Blank - Request Form'!I61),IF('Blank - Request Form'!$F$7=\"CIUGC\",IF(OR('Blank - Request Form'!R61=\"0\",'Blank - Request Form'!R61=\"00000\",'Blank - Request Form'!R61=0),\"\",'Blank - Request Form'!R61),\"\"))","v":""},null,{"$f":"IF('Blank - Request Form'!$F$6=\"CIUGC\",IF('Blank - Request Form'!K61=0,\"\",'Blank - Request Form'!K61),IF('Blank - Request Form'!$F$7=\"CIUGC\",IF('Blank - Request Form'!T61=0,\"\",'Blank - Request Form'!T61),\"\"))","v":""},null,null,null,{"$f":"IF(M27<>\"\",'Blank - Request Form'!$M$2,\"\")","v":""},{"$f":"IF('Blank - Request Form'!$F$6=\"CIUGC\",IF('Blank - Request Form'!J61=0,\"\",'Blank - Request Form'!J61),IF('Blank - Request Form'!$F$7=\"CIUGC\",IF('Blank - Request Form'!S61=0,\"\",'Blank - Request Form'!S61),\"\"))","v":""},"",27]
[{"$f":"IF('Blank - Request Form'!$F$6=\"CIUGC\",IF('Blank - Request Form'!D62=0,\"\",'Blank - Request Form'!D62),IF('Blank - Request Form'!$F$7=\"CIUGC\",IF('Blank - Request Form'!M62=0,\"\",'Blank - Request Form'!M62),\"\"))","v":""},{"$f":"IF('Blank - Request Form'!$F$6=\"CIUGC\",IF('Blank - Request Form'!E62=0,\"\",'Blank - Request Form'!E62),IF('Blank - Request Form'!$F$7=\"CIUGC\",IF('Blank - Request Form'!N62=0,\"\",'Blank - Request Form'!N62),\"\"))","v":""},{"$f":"IF('Blank - Request Form'!$F$6=\"CIUGC\",IF(OR('Blank - Request Form'!F62=\"000\",'Blank - Request Form'!F62=0),\"\",'Blank - Request Form'!F62),IF('Blank - Request Form'!$F$7=\"CIUGC\",IF(OR('Blank - Request Form'!O62=\"000\",'Blank - Request Form'!O62=0),\"\",'Blank - Request Form'!O62),\"\"))","v":""},{"$f":"IF('Blank - Request Form'!$F$6=\"CIUGC\",IF(OR('Blank - Request Form'!G62=\"0\",'Blank - Request Form'!G62=\"00000\",'Blank - Request Form'!G62=0),\"\",'Blank - Request Form'!G62),IF('Blank - Request Form'!$F$7=\"CIUGC\",IF(OR('Blank - Request Form'!P62=\"0\",'Blank - Request Form'!P62=\"00000\",'Blank - Request Form'!P62=0),\"\",'Blank - Request Form'!P62),\"\"))","v":""},{"$f":"IF('Blank - Request Form'!$F$6=\"CIUGC\",IF(OR('Blank - Request Form'!H62=\"0\",'Blank - Request Form'!H62=\"00000\",'Blank - Request Form'!H62=0),\"\",'Blank - Request Form'!H62),IF('Blank - Request Form'!$F$7=\"CIUGC\",IF(OR('Blank - Request Form'!Q62=\"0\",'Blank - Request Form'!Q62=\"00000\",'Blank - Request Form'!Q62=0),\"\",'Blank - Request Form'!Q62),\"\"))","v":""},{"$f":"IF('Blank - Request Form'!$F$6=\"CIUGC\",IF(OR('Blank - Request Form'!I62=\"0\",'Blank - Request Form'!I62=\"00000\",'Blank - Request Form'!I62=0),\"\",'Blank - Request Form'!I62),IF('Blank - Request Form'!$F$7=\"CIUGC\",IF(OR('Blank - Request Form'!R62=\"0\",'Blank - Request Form'!R62=\"00000\",'Blank - Request Form'!R62=0),\"\",'Blank - Request Form'!R62),\"\"))","v":""},null,{"$f":"IF('Blank - Request Form'!$F$6=\"CIUGC\",IF('Blank - Request Form'!K62=0,\"\",'Blank - Request Form'!K62),IF('Blank - Request Form'!$F$7=\"CIUGC\",IF('Blank - Request Form'!T62=0,\"\",'Blank - Request Form'!T62),\"\"))","v":""},null,null,null,{"$f":"IF(M28<>\"\",'Blank - Request Form'!$M$2,\"\")","v":""},{"$f":"IF('Blank - Request Form'!$F$6=\"CIUGC\",IF('Blank - Request Form'!J62=0,\"\",'Blank - Request Form'!J62),IF('Blank - Request Form'!$F$7=\"CIUGC\",IF('Blank - Request Form'!S62=0,\"\",'Blank - Request Form'!S62),\"\"))","v":""},"",28]
[{"$f":"IF('Blank - Request Form'!$F$6=\"CIUGC\",IF('Blank - Request Form'!D63=0,\"\",'Blank - Request Form'!D63),IF('Blank - Request Form'!$F$7=\"CIUGC\",IF('Blank - Request Form'!M63=0,\"\",'Blank - Request Form'!M63),\"\"))","v":""},{"$f":"IF('Blank - Request Form'!$F$6=\"CIUGC\",IF('Blank - Request Form'!E63=0,\"\",'Blank - Request Form'!E63),IF('Blank - Request Form'!$F$7=\"CIUGC\",IF('Blank - Request Form'!N63=0,\"\",'Blank - Request Form'!N63),\"\"))","v":""},{"$f":"IF('Blank - Request Form'!$F$6=\"CIUGC\",IF(OR('Blank - Request Form'!F63=\"000\",'Blank - Request Form'!F63=0),\"\",'Blank - Request Form'!F63),IF('Blank - Request Form'!$F$7=\"CIUGC\",IF(OR('Blank - Request Form'!O63=\"000\",'Blank - Request Form'!O63=0),\"\",'Blank - Request Form'!O63),\"\"))","v":""},{"$f":"IF('Blank - Request Form'!$F$6=\"CIUGC\",IF(OR('Blank - Request Form'!G63=\"0\",'Blank - Request Form'!G63=\"00000\",'Blank - Request Form'!G63=0),\"\",'Blank - Request Form'!G63),IF('Blank - Request Form'!$F$7=\"CIUGC\",IF(OR('Blank - Request Form'!P63=\"0\",'Blank - Request Form'!P63=\"00000\",'Blank - Request Form'!P63=0),\"\",'Blank - Request Form'!P63),\"\"))","v":""},{"$f":"IF('Blank - Request Form'!$F$6=\"CIUGC\",IF(OR('Blank - Request Form'!H63=\"0\",'Blank - Request Form'!H63=\"00000\",'Blank - Request Form'!H63=0),\"\",'Blank - Request Form'!H63),IF('Blank - Request Form'!$F$7=\"CIUGC\",IF(OR('Blank - Request Form'!Q63=\"0\",'Blank - Request Form'!Q63=\"00000\",'Blank - Request Form'!Q63=0),\"\",'Blank - Request Form'!Q63),\"\"))","v":""},{"$f":"IF('Blank - Request Form'!$F$6=\"CIUGC\",IF(OR('Blank - Request Form'!I63=\"0\",'Blank - Request Form'!I63=\"00000\",'Blank - Request Form'!I63=0),\"\",'Blank - Request Form'!I63),IF('Blank - Request Form'!$F$7=\"CIUGC\",IF(OR('Blank - Request Form'!R63=\"0\",'Blank - Request Form'!R63=\"00000\",'Blank - Request Form'!R63=0),\"\",'Blank - Request Form'!R63),\"\"))","v":""},null,{"$f":"IF('Blank - Request Form'!$F$6=\"CIUGC\",IF('Blank - Request Form'!K63=0,\"\",'Blank - Request Form'!K63),IF('Blank - Request Form'!$F$7=\"CIUGC\",IF('Blank - Request Form'!T63=0,\"\",'Blank - Request Form'!T63),\"\"))","v":""},null,null,null,{"$f":"IF(M29<>\"\",'Blank - Request Form'!$M$2,\"\")","v":""},{"$f":"IF('Blank - Request Form'!$F$6=\"CIUGC\",IF('Blank - Request Form'!J63=0,\"\",'Blank - Request Form'!J63),IF('Blank - Request Form'!$F$7=\"CIUGC\",IF('Blank - Request Form'!S63=0,\"\",'Blank - Request Form'!S63),\"\"))","v":""},"",29]
[{"$f":"IF('Blank - Request Form'!$F$6=\"CIUGC\",IF('Blank - Request Form'!D64=0,\"\",'Blank - Request Form'!D64),IF('Blank - Request Form'!$F$7=\"CIUGC\",IF('Blank - Request Form'!M64=0,\"\",'Blank - Request Form'!M64),\"\"))","v":""},{"$f":"IF('Blank - Request Form'!$F$6=\"CIUGC\",IF('Blank - Request Form'!E64=0,\"\",'Blank - Request Form'!E64),IF('Blank - Request Form'!$F$7=\"CIUGC\",IF('Blank - Request Form'!N64=0,\"\",'Blank - Request Form'!N64),\"\"))","v":""},{"$f":"IF('Blank - Request Form'!$F$6=\"CIUGC\",IF(OR('Blank - Request Form'!F64=\"000\",'Blank - Request Form'!F64=0),\"\",'Blank - Request Form'!F64),IF('Blank - Request Form'!$F$7=\"CIUGC\",IF(OR('Blank - Request Form'!O64=\"000\",'Blank - Request Form'!O64=0),\"\",'Blank - Request Form'!O64),\"\"))","v":""},{"$f":"IF('Blank - Request Form'!$F$6=\"CIUGC\",IF(OR('Blank - Request Form'!G64=\"0\",'Blank - Request Form'!G64=\"00000\",'Blank - Request Form'!G64=0),\"\",'Blank - Request Form'!G64),IF('Blank - Request Form'!$F$7=\"CIUGC\",IF(OR('Blank - Request Form'!P64=\"0\",'Blank - Request Form'!P64=\"00000\",'Blank - Request Form'!P64=0),\"\",'Blank - Request Form'!P64),\"\"))","v":""},{"$f":"IF('Blank - Request Form'!$F$6=\"CIUGC\",IF(OR('Blank - Request Form'!H64=\"0\",'Blank - Request Form'!H64=\"00000\",'Blank - Request Form'!H64=0),\"\",'Blank - Request Form'!H64),IF('Blank - Request Form'!$F$7=\"CIUGC\",IF(OR('Blank - Request Form'!Q64=\"0\",'Blank - Request Form'!Q64=\"00000\",'Blank - Request Form'!Q64=0),\"\",'Blank - Request Form'!Q64),\"\"))","v":""},{"$f":"IF('Blank - Request Form'!$F$6=\"CIUGC\",IF(OR('Blank - Request Form'!I64=\"0\",'Blank - Request Form'!I64=\"00000\",'Blank - Request Form'!I64=0),\"\",'Blank - Request Form'!I64),IF('Blank - Request Form'!$F$7=\"CIUGC\",IF(OR('Blank - Request Form'!R64=\"0\",'Blank - Request Form'!R64=\"00000\",'Blank - Request Form'!R64=0),\"\",'Blank - Request Form'!R64),\"\"))","v":""},null,{"$f":"IF('Blank - Request Form'!$F$6=\"CIUGC\",IF('Blank - Request Form'!K64=0,\"\",'Blank - Request Form'!K64),IF('Blank - Request Form'!$F$7=\"CIUGC\",IF('Blank - Request Form'!T64=0,\"\",'Blank - Request Form'!T64),\"\"))","v":""},null,null,null,{"$f":"IF(M30<>\"\",'Blank - Request Form'!$M$2,\"\")","v":""},{"$f":"IF('Blank - Request Form'!$F$6=\"CIUGC\",IF('Blank - Request Form'!J64=0,\"\",'Blank - Request Form'!J64),IF('Blank - Request Form'!$F$7=\"CIUGC\",IF('Blank - Request Form'!S64=0,\"\",'Blank - Request Form'!S64),\"\"))","v":""},"",30]
[{"$f":"IF('Blank - Request Form'!$F$6=\"CIUGC\",IF('Blank - Request Form'!D65=0,\"\",'Blank - Request Form'!D65),IF('Blank - Request Form'!$F$7=\"CIUGC\",IF('Blank - Request Form'!M65=0,\"\",'Blank - Request Form'!M65),\"\"))","v":""},{"$f":"IF('Blank - Request Form'!$F$6=\"CIUGC\",IF('Blank - Request Form'!E65=0,\"\",'Blank - Request Form'!E65),IF('Blank - Request Form'!$F$7=\"CIUGC\",IF('Blank - Request Form'!N65=0,\"\",'Blank - Request Form'!N65),\"\"))","v":""},{"$f":"IF('Blank - Request Form'!$F$6=\"CIUGC\",IF(OR('Blank - Request Form'!F65=\"000\",'Blank - Request Form'!F65=0),\"\",'Blank - Request Form'!F65),IF('Blank - Request Form'!$F$7=\"CIUGC\",IF(OR('Blank - Request Form'!O65=\"000\",'Blank - Request Form'!O65=0),\"\",'Blank - Request Form'!O65),\"\"))","v":""},{"$f":"IF('Blank - Request Form'!$F$6=\"CIUGC\",IF(OR('Blank - Request Form'!G65=\"0\",'Blank - Request Form'!G65=\"00000\",'Blank - Request Form'!G65=0),\"\",'Blank - Request Form'!G65),IF('Blank - Request Form'!$F$7=\"CIUGC\",IF(OR('Blank - Request Form'!P65=\"0\",'Blank - Request Form'!P65=\"00000\",'Blank - Request Form'!P65=0),\"\",'Blank - Request Form'!P65),\"\"))","v":""},{"$f":"IF('Blank - Request Form'!$F$6=\"CIUGC\",IF(OR('Blank - Request Form'!H65=\"0\",'Blank - Request Form'!H65=\"00000\",'Blank - Request Form'!H65=0),\"\",'Blank - Request Form'!H65),IF('Blank - Request Form'!$F$7=\"CIUGC\",IF(OR('Blank - Request Form'!Q65=\"0\",'Blank - Request Form'!Q65=\"00000\",'Blank - Request Form'!Q65=0),\"\",'Blank - Request Form'!Q65),\"\"))","v":""},{"$f":"IF('Blank - Request Form'!$F$6=\"CIUGC\",IF(OR('Blank - Request Form'!I65=\"0\",'Blank - Request Form'!I65=\"00000\",'Blank - Request Form'!I65=0),\"\",'Blank - Request Form'!I65),IF('Blank - Request Form'!$F$7=\"CIUGC\",IF(OR('Blank - Request Form'!R65=\"0\",'Blank - Request Form'!R65=\"00000\",'Blank - Request Form'!R65=0),\"\",'Blank - Request Form'!R65),\"\"))","v":""},null,{"$f":"IF('Blank - Request Form'!$F$6=\"CIUGC\",IF('Blank - Request Form'!K65=0,\"\",'Blank - Request Form'!K65),IF('Blank - Request Form'!$F$7=\"CIUGC\",IF('Blank - Request Form'!T65=0,\"\",'Blank - Request Form'!T65),\"\"))","v":""},null,null,null,{"$f":"IF(M31<>\"\",'Blank - Request Form'!$M$2,\"\")","v":""},{"$f":"IF('Blank - Request Form'!$F$6=\"CIUGC\",IF('Blank - Request Form'!J65=0,\"\",'Blank - Request Form'!J65),IF('Blank - Request Form'!$F$7=\"CIUGC\",IF('Blank - Request Form'!S65=0,\"\",'Blank - Request Form'!S65),\"\"))","v":""},"",31]
[{"$f":"IF('Blank - Request Form'!$F$6=\"CIUGC\",IF('Blank - Request Form'!D66=0,\"\",'Blank - Request Form'!D66),IF('Blank - Request Form'!$F$7=\"CIUGC\",IF('Blank - Request Form'!M66=0,\"\",'Blank - Request Form'!M66),\"\"))","v":""},{"$f":"IF('Blank - Request Form'!$F$6=\"CIUGC\",IF('Blank - Request Form'!E66=0,\"\",'Blank - Request Form'!E66),IF('Blank - Request Form'!$F$7=\"CIUGC\",IF('Blank - Request Form'!N66=0,\"\",'Blank - Request Form'!N66),\"\"))","v":""},{"$f":"IF('Blank - Request Form'!$F$6=\"CIUGC\",IF(OR('Blank - Request Form'!F66=\"000\",'Blank - Request Form'!F66=0),\"\",'Blank - Request Form'!F66),IF('Blank - Request Form'!$F$7=\"CIUGC\",IF(OR('Blank - Request Form'!O66=\"000\",'Blank - Request Form'!O66=0),\"\",'Blank - Request Form'!O66),\"\"))","v":""},{"$f":"IF('Blank - Request Form'!$F$6=\"CIUGC\",IF(OR('Blank - Request Form'!G66=\"0\",'Blank - Request Form'!G66=\"00000\",'Blank - Request Form'!G66=0),\"\",'Blank - Request Form'!G66),IF('Blank - Request Form'!$F$7=\"CIUGC\",IF(OR('Blank - Request Form'!P66=\"0\",'Blank - Request Form'!P66=\"00000\",'Blank - Request Form'!P66=0),\"\",'Blank - Request Form'!P66),\"\"))","v":""},{"$f":"IF('Blank - Request Form'!$F$6=\"CIUGC\",IF(OR('Blank - Request Form'!H66=\"0\",'Blank - Request Form'!H66=\"00000\",'Blank - Request Form'!H66=0),\"\",'Blank - Request Form'!H66),IF('Blank - Request Form'!$F$7=\"CIUGC\",IF(OR('Blank - Request Form'!Q66=\"0\",'Blank - Request Form'!Q66=\"00000\",'Blank - Request Form'!Q66=0),\"\",'Blank - Request Form'!Q66),\"\"))","v":""},{"$f":"IF('Blank - Request Form'!$F$6=\"CIUGC\",IF(OR('Blank - Request Form'!I66=\"0\",'Blank - Request Form'!I66=\"00000\",'Blank - Request Form'!I66=0),\"\",'Blank - Request Form'!I66),IF('Blank - Request Form'!$F$7=\"CIUGC\",IF(OR('Blank - Request Form'!R66=\"0\",'Blank - Request Form'!R66=\"00000\",'Blank - Request Form'!R66=0),\"\",'Blank - Request Form'!R66),\"\"))","v":""},null,{"$f":"IF('Blank - Request Form'!$F$6=\"CIUGC\",IF('Blank - Request Form'!K66=0,\"\",'Blank - Request Form'!K66),IF('Blank - Request Form'!$F$7=\"CIUGC\",IF('Blank - Request Form'!T66=0,\"\",'Blank - Request Form'!T66),\"\"))","v":""},null,null,null,{"$f":"IF(M32<>\"\",'Blank - Request Form'!$M$2,\"\")","v":""},{"$f":"IF('Blank - Request Form'!$F$6=\"CIUGC\",IF('Blank - Request Form'!J66=0,\"\",'Blank - Request Form'!J66),IF('Blank - Request Form'!$F$7=\"CIUGC\",IF('Blank - Request Form'!S66=0,\"\",'Blank - Request Form'!S66),\"\"))","v":""},"",32]
[{"$f":"IF('Blank - Request Form'!$F$6=\"CIUGC\",IF('Blank - Request Form'!D67=0,\"\",'Blank - Request Form'!D67),IF('Blank - Request Form'!$F$7=\"CIUGC\",IF('Blank - Request Form'!M67=0,\"\",'Blank - Request Form'!M67),\"\"))","v":""},{"$f":"IF('Blank - Request Form'!$F$6=\"CIUGC\",IF('Blank - Request Form'!E67=0,\"\",'Blank - Request Form'!E67),IF('Blank - Request Form'!$F$7=\"CIUGC\",IF('Blank - Request Form'!N67=0,\"\",'Blank - Request Form'!N67),\"\"))","v":""},{"$f":"IF('Blank - Request Form'!$F$6=\"CIUGC\",IF(OR('Blank - Request Form'!F67=\"000\",'Blank - Request Form'!F67=0),\"\",'Blank - Request Form'!F67),IF('Blank - Request Form'!$F$7=\"CIUGC\",IF(OR('Blank - Request Form'!O67=\"000\",'Blank - Request Form'!O67=0),\"\",'Blank - Request Form'!O67),\"\"))","v":""},{"$f":"IF('Blank - Request Form'!$F$6=\"CIUGC\",IF(OR('Blank - Request Form'!G67=\"0\",'Blank - Request Form'!G67=\"00000\",'Blank - Request Form'!G67=0),\"\",'Blank - Request Form'!G67),IF('Blank - Request Form'!$F$7=\"CIUGC\",IF(OR('Blank - Request Form'!P67=\"0\",'Blank - Request Form'!P67=\"00000\",'Blank - Request Form'!P67=0),\"\",'Blank - Request Form'!P67),\"\"))","v":""},{"$f":"IF('Blank - Request Form'!$F$6=\"CIUGC\",IF(OR('Blank - Request Form'!H67=\"0\",'Blank - Request Form'!H67=\"00000\",'Blank - Request Form'!H67=0),\"\",'Blank - Request Form'!H67),IF('Blank - Request Form'!$F$7=\"CIUGC\",IF(OR('Blank - Request Form'!Q67=\"0\",'Blank - Request Form'!Q67=\"00000\",'Blank - Request Form'!Q67=0),\"\",'Blank - Request Form'!Q67),\"\"))","v":""},{"$f":"IF('Blank - Request Form'!$F$6=\"CIUGC\",IF(OR('Blank - Request Form'!I67=\"0\",'Blank - Request Form'!I67=\"00000\",'Blank - Request Form'!I67=0),\"\",'Blank - Request Form'!I67),IF('Blank - Request Form'!$F$7=\"CIUGC\",IF(OR('Blank - Request Form'!R67=\"0\",'Blank - Request Form'!R67=\"00000\",'Blank - Request Form'!R67=0),\"\",'Blank - Request Form'!R67),\"\"))","v":""},null,{"$f":"IF('Blank - Request Form'!$F$6=\"CIUGC\",IF('Blank - Request Form'!K67=0,\"\",'Blank - Request Form'!K67),IF('Blank - Request Form'!$F$7=\"CIUGC\",IF('Blank - Request Form'!T67=0,\"\",'Blank - Request Form'!T67),\"\"))","v":""},null,null,null,{"$f":"IF(M33<>\"\",'Blank - Request Form'!$M$2,\"\")","v":""},{"$f":"IF('Blank - Request Form'!$F$6=\"CIUGC\",IF('Blank - Request Form'!J67=0,\"\",'Blank - Request Form'!J67),IF('Blank - Request Form'!$F$7=\"CIUGC\",IF('Blank - Request Form'!S67=0,\"\",'Blank - Request Form'!S67),\"\"))","v":""},"",33]
[{"$f":"IF('Blank - Request Form'!$F$6=\"CIUGC\",IF('Blank - Request Form'!D68=0,\"\",'Blank - Request Form'!D68),IF('Blank - Request Form'!$F$7=\"CIUGC\",IF('Blank - Request Form'!M68=0,\"\",'Blank - Request Form'!M68),\"\"))","v":""},{"$f":"IF('Blank - Request Form'!$F$6=\"CIUGC\",IF('Blank - Request Form'!E68=0,\"\",'Blank - Request Form'!E68),IF('Blank - Request Form'!$F$7=\"CIUGC\",IF('Blank - Request Form'!N68=0,\"\",'Blank - Request Form'!N68),\"\"))","v":""},{"$f":"IF('Blank - Request Form'!$F$6=\"CIUGC\",IF(OR('Blank - Request Form'!F68=\"000\",'Blank - Request Form'!F68=0),\"\",'Blank - Request Form'!F68),IF('Blank - Request Form'!$F$7=\"CIUGC\",IF(OR('Blank - Request Form'!O68=\"000\",'Blank - Request Form'!O68=0),\"\",'Blank - Request Form'!O68),\"\"))","v":""},{"$f":"IF('Blank - Request Form'!$F$6=\"CIUGC\",IF(OR('Blank - Request Form'!G68=\"0\",'Blank - Request Form'!G68=\"00000\",'Blank - Request Form'!G68=0),\"\",'Blank - Request Form'!G68),IF('Blank - Request Form'!$F$7=\"CIUGC\",IF(OR('Blank - Request Form'!P68=\"0\",'Blank - Request Form'!P68=\"00000\",'Blank - Request Form'!P68=0),\"\",'Blank - Request Form'!P68),\"\"))","v":""},{"$f":"IF('Blank - Request Form'!$F$6=\"CIUGC\",IF(OR('Blank - Request Form'!H68=\"0\",'Blank - Request Form'!H68=\"00000\",'Blank - Request Form'!H68=0),\"\",'Blank - Request Form'!H68),IF('Blank - Request Form'!$F$7=\"CIUGC\",IF(OR('Blank - Request Form'!Q68=\"0\",'Blank - Request Form'!Q68=\"00000\",'Blank - Request Form'!Q68=0),\"\",'Blank - Request Form'!Q68),\"\"))","v":""},{"$f":"IF('Blank - Request Form'!$F$6=\"CIUGC\",IF(OR('Blank - Request Form'!I68=\"0\",'Blank - Request Form'!I68=\"00000\",'Blank - Request Form'!I68=0),\"\",'Blank - Request Form'!I68),IF('Blank - Request Form'!$F$7=\"CIUGC\",IF(OR('Blank - Request Form'!R68=\"0\",'Blank - Request Form'!R68=\"00000\",'Blank - Request Form'!R68=0),\"\",'Blank - Request Form'!R68),\"\"))","v":""},null,{"$f":"IF('Blank - Request Form'!$F$6=\"CIUGC\",IF('Blank - Request Form'!K68=0,\"\",'Blank - Request Form'!K68),IF('Blank - Request Form'!$F$7=\"CIUGC\",IF('Blank - Request Form'!T68=0,\"\",'Blank - Request Form'!T68),\"\"))","v":""},null,null,null,{"$f":"IF(M34<>\"\",'Blank - Request Form'!$M$2,\"\")","v":""},{"$f":"IF('Blank - Request Form'!$F$6=\"CIUGC\",IF('Blank - Request Form'!J68=0,\"\",'Blank - Request Form'!J68),IF('Blank - Request Form'!$F$7=\"CIUGC\",IF('Blank - Request Form'!S68=0,\"\",'Blank - Request Form'!S68),\"\"))","v":""},"",34]
[{"$f":"IF('Blank - Request Form'!$F$6=\"CIUGC\",IF('Blank - Request Form'!D69=0,\"\",'Blank - Request Form'!D69),IF('Blank - Request Form'!$F$7=\"CIUGC\",IF('Blank - Request Form'!M69=0,\"\",'Blank - Request Form'!M69),\"\"))","v":""},{"$f":"IF('Blank - Request Form'!$F$6=\"CIUGC\",IF('Blank - Request Form'!E69=0,\"\",'Blank - Request Form'!E69),IF('Blank - Request Form'!$F$7=\"CIUGC\",IF('Blank - Request Form'!N69=0,\"\",'Blank - Request Form'!N69),\"\"))","v":""},{"$f":"IF('Blank - Request Form'!$F$6=\"CIUGC\",IF(OR('Blank - Request Form'!F69=\"000\",'Blank - Request Form'!F69=0),\"\",'Blank - Request Form'!F69),IF('Blank - Request Form'!$F$7=\"CIUGC\",IF(OR('Blank - Request Form'!O69=\"000\",'Blank - Request Form'!O69=0),\"\",'Blank - Request Form'!O69),\"\"))","v":""},{"$f":"IF('Blank - Request Form'!$F$6=\"CIUGC\",IF(OR('Blank - Request Form'!G69=\"0\",'Blank - Request Form'!G69=\"00000\",'Blank - Request Form'!G69=0),\"\",'Blank - Request Form'!G69),IF('Blank - Request Form'!$F$7=\"CIUGC\",IF(OR('Blank - Request Form'!P69=\"0\",'Blank - Request Form'!P69=\"00000\",'Blank - Request Form'!P69=0),\"\",'Blank - Request Form'!P69),\"\"))","v":""},{"$f":"IF('Blank - Request Form'!$F$6=\"CIUGC\",IF(OR('Blank - Request Form'!H69=\"0\",'Blank - Request Form'!H69=\"00000\",'Blank - Request Form'!H69=0),\"\",'Blank - Request Form'!H69),IF('Blank - Request Form'!$F$7=\"CIUGC\",IF(OR('Blank - Request Form'!Q69=\"0\",'Blank - Request Form'!Q69=\"00000\",'Blank - Request Form'!Q69=0),\"\",'Blank - Request Form'!Q69),\"\"))","v":""},{"$f":"IF('Blank - Request Form'!$F$6=\"CIUGC\",IF(OR('Blank - Request Form'!I69=\"0\",'Blank - Request Form'!I69=\"00000\",'Blank - Request Form'!I69=0),\"\",'Blank - Request Form'!I69),IF('Blank - Request Form'!$F$7=\"CIUGC\",IF(OR('Blank - Request Form'!R69=\"0\",'Blank - Request Form'!R69=\"00000\",'Blank - Request Form'!R69=0),\"\",'Blank - Request Form'!R69),\"\"))","v":""},null,{"$f":"IF('Blank - Request Form'!$F$6=\"CIUGC\",IF('Blank - Request Form'!K69=0,\"\",'Blank - Request Form'!K69),IF('Blank - Request Form'!$F$7=\"CIUGC\",IF('Blank - Request Form'!T69=0,\"\",'Blank - Request Form'!T69),\"\"))","v":""},null,null,null,{"$f":"IF(M35<>\"\",'Blank - Request Form'!$M$2,\"\")","v":""},{"$f":"IF('Blank - Request Form'!$F$6=\"CIUGC\",IF('Blank - Request Form'!J69=0,\"\",'Blank - Request Form'!J69),IF('Blank - Request Form'!$F$7=\"CIUGC\",IF('Blank - Request Form'!S69=0,\"\",'Blank - Request Form'!S69),\"\"))","v":""},"",35]
[{"$f":"IF('Blank - Request Form'!$F$6=\"CIUGC\",IF('Blank - Request Form'!D70=0,\"\",'Blank - Request Form'!D70),IF('Blank - Request Form'!$F$7=\"CIUGC\",IF('Blank - Request Form'!M70=0,\"\",'Blank - Request Form'!M70),\"\"))","v":""},{"$f":"IF('Blank - Request Form'!$F$6=\"CIUGC\",IF('Blank - Request Form'!E70=0,\"\",'Blank - Request Form'!E70),IF('Blank - Request Form'!$F$7=\"CIUGC\",IF('Blank - Request Form'!N70=0,\"\",'Blank - Request Form'!N70),\"\"))","v":""},{"$f":"IF('Blank - Request Form'!$F$6=\"CIUGC\",IF(OR('Blank - Request Form'!F70=\"000\",'Blank - Request Form'!F70=0),\"\",'Blank - Request Form'!F70),IF('Blank - Request Form'!$F$7=\"CIUGC\",IF(OR('Blank - Request Form'!O70=\"000\",'Blank - Request Form'!O70=0),\"\",'Blank - Request Form'!O70),\"\"))","v":""},{"$f":"IF('Blank - Request Form'!$F$6=\"CIUGC\",IF(OR('Blank - Request Form'!G70=\"0\",'Blank - Request Form'!G70=\"00000\",'Blank - Request Form'!G70=0),\"\",'Blank - Request Form'!G70),IF('Blank - Request Form'!$F$7=\"CIUGC\",IF(OR('Blank - Request Form'!P70=\"0\",'Blank - Request Form'!P70=\"00000\",'Blank - Request Form'!P70=0),\"\",'Blank - Request Form'!P70),\"\"))","v":""},{"$f":"IF('Blank - Request Form'!$F$6=\"CIUGC\",IF(OR('Blank - Request Form'!H70=\"0\",'Blank - Request Form'!H70=\"00000\",'Blank - Request Form'!H70=0),\"\",'Blank - Request Form'!H70),IF('Blank - Request Form'!$F$7=\"CIUGC\",IF(OR('Blank - Request Form'!Q70=\"0\",'Blank - Request Form'!Q70=\"00000\",'Blank - Request Form'!Q70=0),\"\",'Blank - Request Form'!Q70),\"\"))","v":""},{"$f":"IF('Blank - Request Form'!$F$6=\"CIUGC\",IF(OR('Blank - Request Form'!I70=\"0\",'Blank - Request Form'!I70=\"00000\",'Blank - Request Form'!I70=0),\"\",'Blank - Request Form'!I70),IF('Blank - Request Form'!$F$7=\"CIUGC\",IF(OR('Blank - Request Form'!R70=\"0\",'Blank - Request Form'!R70=\"00000\",'Blank - Request Form'!R70=0),\"\",'Blank - Request Form'!R70),\"\"))","v":""},null,{"$f":"IF('Blank - Request Form'!$F$6=\"CIUGC\",IF('Blank - Request Form'!K70=0,\"\",'Blank - Request Form'!K70),IF('Blank - Request Form'!$F$7=\"CIUGC\",IF('Blank - Request Form'!T70=0,\"\",'Blank - Request Form'!T70),\"\"))","v":""},null,null,null,{"$f":"IF(M36<>\"\",'Blank - Request Form'!$M$2,\"\")","v":""},{"$f":"IF('Blank - Request Form'!$F$6=\"CIUGC\",IF('Blank - Request Form'!J70=0,\"\",'Blank - Request Form'!J70),IF('Blank - Request Form'!$F$7=\"CIUGC\",IF('Blank - Request Form'!S70=0,\"\",'Blank - Request Form'!S70),\"\"))","v":""},"",36]
[{"$f":"IF('Blank - Request Form'!$F$6=\"CIUGC\",IF('Blank - Request Form'!D71=0,\"\",'Blank - Request Form'!D71),IF('Blank - Request Form'!$F$7=\"CIUGC\",IF('Blank - Request Form'!M71=0,\"\",'Blank - Request Form'!M71),\"\"))","v":""},{"$f":"IF('Blank - Request Form'!$F$6=\"CIUGC\",IF('Blank - Request Form'!E71=0,\"\",'Blank - Request Form'!E71),IF('Blank - Request Form'!$F$7=\"CIUGC\",IF('Blank - Request Form'!N71=0,\"\",'Blank - Request Form'!N71),\"\"))","v":""},{"$f":"IF('Blank - Request Form'!$F$6=\"CIUGC\",IF(OR('Blank - Request Form'!F71=\"000\",'Blank - Request Form'!F71=0),\"\",'Blank - Request Form'!F71),IF('Blank - Request Form'!$F$7=\"CIUGC\",IF(OR('Blank - Request Form'!O71=\"000\",'Blank - Request Form'!O71=0),\"\",'Blank - Request Form'!O71),\"\"))","v":""},{"$f":"IF('Blank - Request Form'!$F$6=\"CIUGC\",IF(OR('Blank - Request Form'!G71=\"0\",'Blank - Request Form'!G71=\"00000\",'Blank - Request Form'!G71=0),\"\",'Blank - Request Form'!G71),IF('Blank - Request Form'!$F$7=\"CIUGC\",IF(OR('Blank - Request Form'!P71=\"0\",'Blank - Request Form'!P71=\"00000\",'Blank - Request Form'!P71=0),\"\",'Blank - Request Form'!P71),\"\"))","v":""},{"$f":"IF('Blank - Request Form'!$F$6=\"CIUGC\",IF(OR('Blank - Request Form'!H71=\"0\",'Blank - Request Form'!H71=\"00000\",'Blank - Request Form'!H71=0),\"\",'Blank - Request Form'!H71),IF('Blank - Request Form'!$F$7=\"CIUGC\",IF(OR('Blank - Request Form'!Q71=\"0\",'Blank - Request Form'!Q71=\"00000\",'Blank - Request Form'!Q71=0),\"\",'Blank - Request Form'!Q71),\"\"))","v":""},{"$f":"IF('Blank - Request Form'!$F$6=\"CIUGC\",IF(OR('Blank - Request Form'!I71=\"0\",'Blank - Request Form'!I71=\"00000\",'Blank - Request Form'!I71=0),\"\",'Blank - Request Form'!I71),IF('Blank - Request Form'!$F$7=\"CIUGC\",IF(OR('Blank - Request Form'!R71=\"0\",'Blank - Request Form'!R71=\"00000\",'Blank - Request Form'!R71=0),\"\",'Blank - Request Form'!R71),\"\"))","v":""},null,{"$f":"IF('Blank - Request Form'!$F$6=\"CIUGC\",IF('Blank - Request Form'!K71=0,\"\",'Blank - Request Form'!K71),IF('Blank - Request Form'!$F$7=\"CIUGC\",IF('Blank - Request Form'!T71=0,\"\",'Blank - Request Form'!T71),\"\"))","v":""},null,null,null,{"$f":"IF(M37<>\"\",'Blank - Request Form'!$M$2,\"\")","v":""},{"$f":"IF('Blank - Request Form'!$F$6=\"CIUGC\",IF('Blank - Request Form'!J71=0,\"\",'Blank - Request Form'!J71),IF('Blank - Request Form'!$F$7=\"CIUGC\",IF('Blank - Request Form'!S71=0,\"\",'Blank - Request Form'!S71),\"\"))","v":""},"",37]
[{"$f":"IF('Blank - Request Form'!$F$6=\"CIUGC\",IF('Blank - Request Form'!D72=0,\"\",'Blank - Request Form'!D72),IF('Blank - Request Form'!$F$7=\"CIUGC\",IF('Blank - Request Form'!M72=0,\"\",'Blank - Request Form'!M72),\"\"))","v":""},{"$f":"IF('Blank - Request Form'!$F$6=\"CIUGC\",IF('Blank - Request Form'!E72=0,\"\",'Blank - Request Form'!E72),IF('Blank - Request Form'!$F$7=\"CIUGC\",IF('Blank - Request Form'!N72=0,\"\",'Blank - Request Form'!N72),\"\"))","v":""},{"$f":"IF('Blank - Request Form'!$F$6=\"CIUGC\",IF(OR('Blank - Request Form'!F72=\"000\",'Blank - Request Form'!F72=0),\"\",'Blank - Request Form'!F72),IF('Blank - Request Form'!$F$7=\"CIUGC\",IF(OR('Blank - Request Form'!O72=\"000\",'Blank - Request Form'!O72=0),\"\",'Blank - Request Form'!O72),\"\"))","v":""},{"$f":"IF('Blank - Request Form'!$F$6=\"CIUGC\",IF(OR('Blank - Request Form'!G72=\"0\",'Blank - Request Form'!G72=\"00000\",'Blank - Request Form'!G72=0),\"\",'Blank - Request Form'!G72),IF('Blank - Request Form'!$F$7=\"CIUGC\",IF(OR('Blank - Request Form'!P72=\"0\",'Blank - Request Form'!P72=\"00000\",'Blank - Request Form'!P72=0),\"\",'Blank - Request Form'!P72),\"\"))","v":""},{"$f":"IF('Blank - Request Form'!$F$6=\"CIUGC\",IF(OR('Blank - Request Form'!H72=\"0\",'Blank - Request Form'!H72=\"00000\",'Blank - Request Form'!H72=0),\"\",'Blank - Request Form'!H72),IF('Blank - Request Form'!$F$7=\"CIUGC\",IF(OR('Blank - Request Form'!Q72=\"0\",'Blank - Request Form'!Q72=\"00000\",'Blank - Request Form'!Q72=0),\"\",'Blank - Request Form'!Q72),\"\"))","v":""},{"$f":"IF('Blank - Request Form'!$F$6=\"CIUGC\",IF(OR('Blank - Request Form'!I72=\"0\",'Blank - Request Form'!I72=\"00000\",'Blank - Request Form'!I72=0),\"\",'Blank - Request Form'!I72),IF('Blank - Request Form'!$F$7=\"CIUGC\",IF(OR('Blank - Request Form'!R72=\"0\",'Blank - Request Form'!R72=\"00000\",'Blank - Request Form'!R72=0),\"\",'Blank - Request Form'!R72),\"\"))","v":""},null,{"$f":"IF('Blank - Request Form'!$F$6=\"CIUGC\",IF('Blank - Request Form'!K72=0,\"\",'Blank - Request Form'!K72),IF('Blank - Request Form'!$F$7=\"CIUGC\",IF('Blank - Request Form'!T72=0,\"\",'Blank - Request Form'!T72),\"\"))","v":""},null,null,null,{"$f":"IF(M38<>\"\",'Blank - Request Form'!$M$2,\"\")","v":""},{"$f":"IF('Blank - Request Form'!$F$6=\"CIUGC\",IF('Blank - Request Form'!J72=0,\"\",'Blank - Request Form'!J72),IF('Blank - Request Form'!$F$7=\"CIUGC\",IF('Blank - Request Form'!S72=0,\"\",'Blank - Request Form'!S72),\"\"))","v":""},"",38]
[{"$f":"IF('Blank - Request Form'!$F$6=\"CIUGC\",IF('Blank - Request Form'!D73=0,\"\",'Blank - Request Form'!D73),IF('Blank - Request Form'!$F$7=\"CIUGC\",IF('Blank - Request Form'!M73=0,\"\",'Blank - Request Form'!M73),\"\"))","v":""},{"$f":"IF('Blank - Request Form'!$F$6=\"CIUGC\",IF('Blank - Request Form'!E73=0,\"\",'Blank - Request Form'!E73),IF('Blank - Request Form'!$F$7=\"CIUGC\",IF('Blank - Request Form'!N73=0,\"\",'Blank - Request Form'!N73),\"\"))","v":""},{"$f":"IF('Blank - Request Form'!$F$6=\"CIUGC\",IF(OR('Blank - Request Form'!F73=\"000\",'Blank - Request Form'!F73=0),\"\",'Blank - Request Form'!F73),IF('Blank - Request Form'!$F$7=\"CIUGC\",IF(OR('Blank - Request Form'!O73=\"000\",'Blank - Request Form'!O73=0),\"\",'Blank - Request Form'!O73),\"\"))","v":""},{"$f":"IF('Blank - Request Form'!$F$6=\"CIUGC\",IF(OR('Blank - Request Form'!G73=\"0\",'Blank - Request Form'!G73=\"00000\",'Blank - Request Form'!G73=0),\"\",'Blank - Request Form'!G73),IF('Blank - Request Form'!$F$7=\"CIUGC\",IF(OR('Blank - Request Form'!P73=\"0\",'Blank - Request Form'!P73=\"00000\",'Blank - Request Form'!P73=0),\"\",'Blank - Request Form'!P73),\"\"))","v":""},{"$f":"IF('Blank - Request Form'!$F$6=\"CIUGC\",IF(OR('Blank - Request Form'!H73=\"0\",'Blank - Request Form'!H73=\"00000\",'Blank - Request Form'!H73=0),\"\",'Blank - Request Form'!H73),IF('Blank - Request Form'!$F$7=\"CIUGC\",IF(OR('Blank - Request Form'!Q73=\"0\",'Blank - Request Form'!Q73=\"00000\",'Blank - Request Form'!Q73=0),\"\",'Blank - Request Form'!Q73),\"\"))","v":""},{"$f":"IF('Blank - Request Form'!$F$6=\"CIUGC\",IF(OR('Blank - Request Form'!I73=\"0\",'Blank - Request Form'!I73=\"00000\",'Blank - Request Form'!I73=0),\"\",'Blank - Request Form'!I73),IF('Blank - Request Form'!$F$7=\"CIUGC\",IF(OR('Blank - Request Form'!R73=\"0\",'Blank - Request Form'!R73=\"00000\",'Blank - Request Form'!R73=0),\"\",'Blank - Request Form'!R73),\"\"))","v":""},null,{"$f":"IF('Blank - Request Form'!$F$6=\"CIUGC\",IF('Blank - Request Form'!K73=0,\"\",'Blank - Request Form'!K73),IF('Blank - Request Form'!$F$7=\"CIUGC\",IF('Blank - Request Form'!T73=0,\"\",'Blank - Request Form'!T73),\"\"))","v":""},null,null,null,{"$f":"IF(M39<>\"\",'Blank - Request Form'!$M$2,\"\")","v":""},{"$f":"IF('Blank - Request Form'!$F$6=\"CIUGC\",IF('Blank - Request Form'!J73=0,\"\",'Blank - Request Form'!J73),IF('Blank - Request Form'!$F$7=\"CIUGC\",IF('Blank - Request Form'!S73=0,\"\",'Blank - Request Form'!S73),\"\"))","v":""},"",39]
[{"$f":"IF('Blank - Request Form'!$F$6=\"CIUGC\",IF('Blank - Request Form'!D74=0,\"\",'Blank - Request Form'!D74),IF('Blank - Request Form'!$F$7=\"CIUGC\",IF('Blank - Request Form'!M74=0,\"\",'Blank - Request Form'!M74),\"\"))","v":""},{"$f":"IF('Blank - Request Form'!$F$6=\"CIUGC\",IF('Blank - Request Form'!E74=0,\"\",'Blank - Request Form'!E74),IF('Blank - Request Form'!$F$7=\"CIUGC\",IF('Blank - Request Form'!N74=0,\"\",'Blank - Request Form'!N74),\"\"))","v":""},{"$f":"IF('Blank - Request Form'!$F$6=\"CIUGC\",IF(OR('Blank - Request Form'!F74=\"000\",'Blank - Request Form'!F74=0),\"\",'Blank - Request Form'!F74),IF('Blank - Request Form'!$F$7=\"CIUGC\",IF(OR('Blank - Request Form'!O74=\"000\",'Blank - Request Form'!O74=0),\"\",'Blank - Request Form'!O74),\"\"))","v":""},{"$f":"IF('Blank - Request Form'!$F$6=\"CIUGC\",IF(OR('Blank - Request Form'!G74=\"0\",'Blank - Request Form'!G74=\"00000\",'Blank - Request Form'!G74=0),\"\",'Blank - Request Form'!G74),IF('Blank - Request Form'!$F$7=\"CIUGC\",IF(OR('Blank - Request Form'!P74=\"0\",'Blank - Request Form'!P74=\"00000\",'Blank - Request Form'!P74=0),\"\",'Blank - Request Form'!P74),\"\"))","v":""},{"$f":"IF('Blank - Request Form'!$F$6=\"CIUGC\",IF(OR('Blank - Request Form'!H74=\"0\",'Blank - Request Form'!H74=\"00000\",'Blank - Request Form'!H74=0),\"\",'Blank - Request Form'!H74),IF('Blank - Request Form'!$F$7=\"CIUGC\",IF(OR('Blank - Request Form'!Q74=\"0\",'Blank - Request Form'!Q74=\"00000\",'Blank - Request Form'!Q74=0),\"\",'Blank - Request Form'!Q74),\"\"))","v":""},{"$f":"IF('Blank - Request Form'!$F$6=\"CIUGC\",IF(OR('Blank - Request Form'!I74=\"0\",'Blank - Request Form'!I74=\"00000\",'Blank - Request Form'!I74=0),\"\",'Blank - Request Form'!I74),IF('Blank - Request Form'!$F$7=\"CIUGC\",IF(OR('Blank - Request Form'!R74=\"0\",'Blank - Request Form'!R74=\"00000\",'Blank - Request Form'!R74=0),\"\",'Blank - Request Form'!R74),\"\"))","v":""},null,{"$f":"IF('Blank - Request Form'!$F$6=\"CIUGC\",IF('Blank - Request Form'!K74=0,\"\",'Blank - Request Form'!K74),IF('Blank - Request Form'!$F$7=\"CIUGC\",IF('Blank - Request Form'!T74=0,\"\",'Blank - Request Form'!T74),\"\"))","v":""},null,null,null,{"$f":"IF(M40<>\"\",'Blank - Request Form'!$M$2,\"\")","v":""},{"$f":"IF('Blank - Request Form'!$F$6=\"CIUGC\",IF('Blank - Request Form'!J74=0,\"\",'Blank - Request Form'!J74),IF('Blank - Request Form'!$F$7=\"CIUGC\",IF('Blank - Request Form'!S74=0,\"\",'Blank - Request Form'!S74),\"\"))","v":""},"",40]
[{"$f":"IF('Blank - Request Form'!$F$6=\"CIUGC\",IF('Blank - Request Form'!D75=0,\"\",'Blank - Request Form'!D75),IF('Blank - Request Form'!$F$7=\"CIUGC\",IF('Blank - Request Form'!M75=0,\"\",'Blank - Request Form'!M75),\"\"))","v":""},{"$f":"IF('Blank - Request Form'!$F$6=\"CIUGC\",IF('Blank - Request Form'!E75=0,\"\",'Blank - Request Form'!E75),IF('Blank - Request Form'!$F$7=\"CIUGC\",IF('Blank - Request Form'!N75=0,\"\",'Blank - Request Form'!N75),\"\"))","v":""},{"$f":"IF('Blank - Request Form'!$F$6=\"CIUGC\",IF(OR('Blank - Request Form'!F75=\"000\",'Blank - Request Form'!F75=0),\"\",'Blank - Request Form'!F75),IF('Blank - Request Form'!$F$7=\"CIUGC\",IF(OR('Blank - Request Form'!O75=\"000\",'Blank - Request Form'!O75=0),\"\",'Blank - Request Form'!O75),\"\"))","v":""},{"$f":"IF('Blank - Request Form'!$F$6=\"CIUGC\",IF(OR('Blank - Request Form'!G75=\"0\",'Blank - Request Form'!G75=\"00000\",'Blank - Request Form'!G75=0),\"\",'Blank - Request Form'!G75),IF('Blank - Request Form'!$F$7=\"CIUGC\",IF(OR('Blank - Request Form'!P75=\"0\",'Blank - Request Form'!P75=\"00000\",'Blank - Request Form'!P75=0),\"\",'Blank - Request Form'!P75),\"\"))","v":""},{"$f":"IF('Blank - Request Form'!$F$6=\"CIUGC\",IF(OR('Blank - Request Form'!H75=\"0\",'Blank - Request Form'!H75=\"00000\",'Blank - Request Form'!H75=0),\"\",'Blank - Request Form'!H75),IF('Blank - Request Form'!$F$7=\"CIUGC\",IF(OR('Blank - Request Form'!Q75=\"0\",'Blank - Request Form'!Q75=\"00000\",'Blank - Request Form'!Q75=0),\"\",'Blank - Request Form'!Q75),\"\"))","v":""},{"$f":"IF('Blank - Request Form'!$F$6=\"CIUGC\",IF(OR('Blank - Request Form'!I75=\"0\",'Blank - Request Form'!I75=\"00000\",'Blank - Request Form'!I75=0),\"\",'Blank - Request Form'!I75),IF('Blank - Request Form'!$F$7=\"CIUGC\",IF(OR('Blank - Request Form'!R75=\"0\",'Blank - Request Form'!R75=\"00000\",'Blank - Request Form'!R75=0),\"\",'Blank - Request Form'!R75),\"\"))","v":""},null,{"$f":"IF('Blank - Request Form'!$F$6=\"CIUGC\",IF('Blank - Request Form'!K75=0,\"\",'Blank - Request Form'!K75),IF('Blank - Request Form'!$F$7=\"CIUGC\",IF('Blank - Request Form'!T75=0,\"\",'Blank - Request Form'!T75),\"\"))","v":""},null,null,null,{"$f":"IF(M41<>\"\",'Blank - Request Form'!$M$2,\"\")","v":""},{"$f":"IF('Blank - Request Form'!$F$6=\"CIUGC\",IF('Blank - Request Form'!J75=0,\"\",'Blank - Request Form'!J75),IF('Blank - Request Form'!$F$7=\"CIUGC\",IF('Blank - Request Form'!S75=0,\"\",'Blank - Request Form'!S75),\"\"))","v":""},"",41]
[{"$f":"IF('Blank - Request Form'!$F$6=\"CIUGC\",IF('Blank - Request Form'!D76=0,\"\",'Blank - Request Form'!D76),IF('Blank - Request Form'!$F$7=\"CIUGC\",IF('Blank - Request Form'!M76=0,\"\",'Blank - Request Form'!M76),\"\"))","v":""},{"$f":"IF('Blank - Request Form'!$F$6=\"CIUGC\",IF('Blank - Request Form'!E76=0,\"\",'Blank - Request Form'!E76),IF('Blank - Request Form'!$F$7=\"CIUGC\",IF('Blank - Request Form'!N76=0,\"\",'Blank - Request Form'!N76),\"\"))","v":""},{"$f":"IF('Blank - Request Form'!$F$6=\"CIUGC\",IF(OR('Blank - Request Form'!F76=\"000\",'Blank - Request Form'!F76=0),\"\",'Blank - Request Form'!F76),IF('Blank - Request Form'!$F$7=\"CIUGC\",IF(OR('Blank - Request Form'!O76=\"000\",'Blank - Request Form'!O76=0),\"\",'Blank - Request Form'!O76),\"\"))","v":""},{"$f":"IF('Blank - Request Form'!$F$6=\"CIUGC\",IF(OR('Blank - Request Form'!G76=\"0\",'Blank - Request Form'!G76=\"00000\",'Blank - Request Form'!G76=0),\"\",'Blank - Request Form'!G76),IF('Blank - Request Form'!$F$7=\"CIUGC\",IF(OR('Blank - Request Form'!P76=\"0\",'Blank - Request Form'!P76=\"00000\",'Blank - Request Form'!P76=0),\"\",'Blank - Request Form'!P76),\"\"))","v":""},{"$f":"IF('Blank - Request Form'!$F$6=\"CIUGC\",IF(OR('Blank - Request Form'!H76=\"0\",'Blank - Request Form'!H76=\"00000\",'Blank - Request Form'!H76=0),\"\",'Blank - Request Form'!H76),IF('Blank - Request Form'!$F$7=\"CIUGC\",IF(OR('Blank - Request Form'!Q76=\"0\",'Blank - Request Form'!Q76=\"00000\",'Blank - Request Form'!Q76=0),\"\",'Blank - Request Form'!Q76),\"\"))","v":""},{"$f":"IF('Blank - Request Form'!$F$6=\"CIUGC\",IF(OR('Blank - Request Form'!I76=\"0\",'Blank - Request Form'!I76=\"00000\",'Blank - Request Form'!I76=0),\"\",'Blank - Request Form'!I76),IF('Blank - Request Form'!$F$7=\"CIUGC\",IF(OR('Blank - Request Form'!R76=\"0\",'Blank - Request Form'!R76=\"00000\",'Blank - Request Form'!R76=0),\"\",'Blank - Request Form'!R76),\"\"))","v":""},null,{"$f":"IF('Blank - Request Form'!$F$6=\"CIUGC\",IF('Blank - Request Form'!K76=0,\"\",'Blank - Request Form'!K76),IF('Blank - Request Form'!$F$7=\"CIUGC\",IF('Blank - Request Form'!T76=0,\"\",'Blank - Request Form'!T76),\"\"))","v":""},null,null,null,{"$f":"IF(M42<>\"\",'Blank - Request Form'!$M$2,\"\")","v":""},{"$f":"IF('Blank - Request Form'!$F$6=\"CIUGC\",IF('Blank - Request Form'!J76=0,\"\",'Blank - Request Form'!J76),IF('Blank - Request Form'!$F$7=\"CIUGC\",IF('Blank - Request Form'!S76=0,\"\",'Blank - Request Form'!S76),\"\"))","v":""},"",42]
[{"$f":"IF('Blank - Request Form'!$F$6=\"CIUGC\",IF('Blank - Request Form'!D77=0,\"\",'Blank - Request Form'!D77),IF('Blank - Request Form'!$F$7=\"CIUGC\",IF('Blank - Request Form'!M77=0,\"\",'Blank - Request Form'!M77),\"\"))","v":""},{"$f":"IF('Blank - Request Form'!$F$6=\"CIUGC\",IF('Blank - Request Form'!E77=0,\"\",'Blank - Request Form'!E77),IF('Blank - Request Form'!$F$7=\"CIUGC\",IF('Blank - Request Form'!N77=0,\"\",'Blank - Request Form'!N77),\"\"))","v":""},{"$f":"IF('Blank - Request Form'!$F$6=\"CIUGC\",IF(OR('Blank - Request Form'!F77=\"000\",'Blank - Request Form'!F77=0),\"\",'Blank - Request Form'!F77),IF('Blank - Request Form'!$F$7=\"CIUGC\",IF(OR('Blank - Request Form'!O77=\"000\",'Blank - Request Form'!O77=0),\"\",'Blank - Request Form'!O77),\"\"))","v":""},{"$f":"IF('Blank - Request Form'!$F$6=\"CIUGC\",IF(OR('Blank - Request Form'!G77=\"0\",'Blank - Request Form'!G77=\"00000\",'Blank - Request Form'!G77=0),\"\",'Blank - Request Form'!G77),IF('Blank - Request Form'!$F$7=\"CIUGC\",IF(OR('Blank - Request Form'!P77=\"0\",'Blank - Request Form'!P77=\"00000\",'Blank - Request Form'!P77=0),\"\",'Blank - Request Form'!P77),\"\"))","v":""},{"$f":"IF('Blank - Request Form'!$F$6=\"CIUGC\",IF(OR('Blank - Request Form'!H77=\"0\",'Blank - Request Form'!H77=\"00000\",'Blank - Request Form'!H77=0),\"\",'Blank - Request Form'!H77),IF('Blank - Request Form'!$F$7=\"CIUGC\",IF(OR('Blank - Request Form'!Q77=\"0\",'Blank - Request Form'!Q77=\"00000\",'Blank - Request Form'!Q77=0),\"\",'Blank - Request Form'!Q77),\"\"))","v":""},{"$f":"IF('Blank - Request Form'!$F$6=\"CIUGC\",IF(OR('Blank - Request Form'!I77=\"0\",'Blank - Request Form'!I77=\"00000\",'Blank - Request Form'!I77=0),\"\",'Blank - Request Form'!I77),IF('Blank - Request Form'!$F$7=\"CIUGC\",IF(OR('Blank - Request Form'!R77=\"0\",'Blank - Request Form'!R77=\"00000\",'Blank - Request Form'!R77=0),\"\",'Blank - Request Form'!R77),\"\"))","v":""},null,{"$f":"IF('Blank - Request Form'!$F$6=\"CIUGC\",IF('Blank - Request Form'!K77=0,\"\",'Blank - Request Form'!K77),IF('Blank - Request Form'!$F$7=\"CIUGC\",IF('Blank - Request Form'!T77=0,\"\",'Blank - Request Form'!T77),\"\"))","v":""},null,null,null,{"$f":"IF(M43<>\"\",'Blank - Request Form'!$M$2,\"\")","v":""},{"$f":"IF('Blank - Request Form'!$F$6=\"CIUGC\",IF('Blank - Request Form'!J77=0,\"\",'Blank - Request Form'!J77),IF('Blank - Request Form'!$F$7=\"CIUGC\",IF('Blank - Request Form'!S77=0,\"\",'Blank - Request Form'!S77),\"\"))","v":""},"",43]
[{"$f":"IF('Blank - Request Form'!$F$6=\"CIUGC\",IF('Blank - Request Form'!D78=0,\"\",'Blank - Request Form'!D78),IF('Blank - Request Form'!$F$7=\"CIUGC\",IF('Blank - Request Form'!M78=0,\"\",'Blank - Request Form'!M78),\"\"))","v":""},{"$f":"IF('Blank - Request Form'!$F$6=\"CIUGC\",IF('Blank - Request Form'!E78=0,\"\",'Blank - Request Form'!E78),IF('Blank - Request Form'!$F$7=\"CIUGC\",IF('Blank - Request Form'!N78=0,\"\",'Blank - Request Form'!N78),\"\"))","v":""},{"$f":"IF('Blank - Request Form'!$F$6=\"CIUGC\",IF(OR('Blank - Request Form'!F78=\"000\",'Blank - Request Form'!F78=0),\"\",'Blank - Request Form'!F78),IF('Blank - Request Form'!$F$7=\"CIUGC\",IF(OR('Blank - Request Form'!O78=\"000\",'Blank - Request Form'!O78=0),\"\",'Blank - Request Form'!O78),\"\"))","v":""},{"$f":"IF('Blank - Request Form'!$F$6=\"CIUGC\",IF(OR('Blank - Request Form'!G78=\"0\",'Blank - Request Form'!G78=\"00000\",'Blank - Request Form'!G78=0),\"\",'Blank - Request Form'!G78),IF('Blank - Request Form'!$F$7=\"CIUGC\",IF(OR('Blank - Request Form'!P78=\"0\",'Blank - Request Form'!P78=\"00000\",'Blank - Request Form'!P78=0),\"\",'Blank - Request Form'!P78),\"\"))","v":""},{"$f":"IF('Blank - Request Form'!$F$6=\"CIUGC\",IF(OR('Blank - Request Form'!H78=\"0\",'Blank - Request Form'!H78=\"00000\",'Blank - Request Form'!H78=0),\"\",'Blank - Request Form'!H78),IF('Blank - Request Form'!$F$7=\"CIUGC\",IF(OR('Blank - Request Form'!Q78=\"0\",'Blank - Request Form'!Q78=\"00000\",'Blank - Request Form'!Q78=0),\"\",'Blank - Request Form'!Q78),\"\"))","v":""},{"$f":"IF('Blank - Request Form'!$F$6=\"CIUGC\",IF(OR('Blank - Request Form'!I78=\"0\",'Blank - Request Form'!I78=\"00000\",'Blank - Request Form'!I78=0),\"\",'Blank - Request Form'!I78),IF('Blank - Request Form'!$F$7=\"CIUGC\",IF(OR('Blank - Request Form'!R78=\"0\",'Blank - Request Form'!R78=\"00000\",'Blank - Request Form'!R78=0),\"\",'Blank - Request Form'!R78),\"\"))","v":""},null,{"$f":"IF('Blank - Request Form'!$F$6=\"CIUGC\",IF('Blank - Request Form'!K78=0,\"\",'Blank - Request Form'!K78),IF('Blank - Request Form'!$F$7=\"CIUGC\",IF('Blank - Request Form'!T78=0,\"\",'Blank - Request Form'!T78),\"\"))","v":""},null,null,null,{"$f":"IF(M44<>\"\",'Blank - Request Form'!$M$2,\"\")","v":""},{"$f":"IF('Blank - Request Form'!$F$6=\"CIUGC\",IF('Blank - Request Form'!J78=0,\"\",'Blank - Request Form'!J78),IF('Blank - Request Form'!$F$7=\"CIUGC\",IF('Blank - Request Form'!S78=0,\"\",'Blank - Request Form'!S78),\"\"))","v":""},"",44]
[{"$f":"IF('Blank - Request Form'!$F$6=\"CIUGC\",IF('Blank - Request Form'!D79=0,\"\",'Blank - Request Form'!D79),IF('Blank - Request Form'!$F$7=\"CIUGC\",IF('Blank - Request Form'!M79=0,\"\",'Blank - Request Form'!M79),\"\"))","v":""},{"$f":"IF('Blank - Request Form'!$F$6=\"CIUGC\",IF('Blank - Request Form'!E79=0,\"\",'Blank - Request Form'!E79),IF('Blank - Request Form'!$F$7=\"CIUGC\",IF('Blank - Request Form'!N79=0,\"\",'Blank - Request Form'!N79),\"\"))","v":""},{"$f":"IF('Blank - Request Form'!$F$6=\"CIUGC\",IF(OR('Blank - Request Form'!F79=\"000\",'Blank - Request Form'!F79=0),\"\",'Blank - Request Form'!F79),IF('Blank - Request Form'!$F$7=\"CIUGC\",IF(OR('Blank - Request Form'!O79=\"000\",'Blank - Request Form'!O79=0),\"\",'Blank - Request Form'!O79),\"\"))","v":""},{"$f":"IF('Blank - Request Form'!$F$6=\"CIUGC\",IF(OR('Blank - Request Form'!G79=\"0\",'Blank - Request Form'!G79=\"00000\",'Blank - Request Form'!G79=0),\"\",'Blank - Request Form'!G79),IF('Blank - Request Form'!$F$7=\"CIUGC\",IF(OR('Blank - Request Form'!P79=\"0\",'Blank - Request Form'!P79=\"00000\",'Blank - Request Form'!P79=0),\"\",'Blank - Request Form'!P79),\"\"))","v":""},{"$f":"IF('Blank - Request Form'!$F$6=\"CIUGC\",IF(OR('Blank - Request Form'!H79=\"0\",'Blank - Request Form'!H79=\"00000\",'Blank - Request Form'!H79=0),\"\",'Blank - Request Form'!H79),IF('Blank - Request Form'!$F$7=\"CIUGC\",IF(OR('Blank - Request Form'!Q79=\"0\",'Blank - Request Form'!Q79=\"00000\",'Blank - Request Form'!Q79=0),\"\",'Blank - Request Form'!Q79),\"\"))","v":""},{"$f":"IF('Blank - Request Form'!$F$6=\"CIUGC\",IF(OR('Blank - Request Form'!I79=\"0\",'Blank - Request Form'!I79=\"00000\",'Blank - Request Form'!I79=0),\"\",'Blank - Request Form'!I79),IF('Blank - Request Form'!$F$7=\"CIUGC\",IF(OR('Blank - Request Form'!R79=\"0\",'Blank - Request Form'!R79=\"00000\",'Blank - Request Form'!R79=0),\"\",'Blank - Request Form'!R79),\"\"))","v":""},null,{"$f":"IF('Blank - Request Form'!$F$6=\"CIUGC\",IF('Blank - Request Form'!K79=0,\"\",'Blank - Request Form'!K79),IF('Blank - Request Form'!$F$7=\"CIUGC\",IF('Blank - Request Form'!T79=0,\"\",'Blank - Request Form'!T79),\"\"))","v":""},null,null,null,{"$f":"IF(M45<>\"\",'Blank - Request Form'!$M$2,\"\")","v":""},{"$f":"IF('Blank - Request Form'!$F$6=\"CIUGC\",IF('Blank - Request Form'!J79=0,\"\",'Blank - Request Form'!J79),IF('Blank - Request Form'!$F$7=\"CIUGC\",IF('Blank - Request Form'!S79=0,\"\",'Blank - Request Form'!S79),\"\"))","v":""},"",45]
[{"$f":"IF('Blank - Request Form'!$F$6=\"CIUGC\",IF('Blank - Request Form'!D80=0,\"\",'Blank - Request Form'!D80),IF('Blank - Request Form'!$F$7=\"CIUGC\",IF('Blank - Request Form'!M80=0,\"\",'Blank - Request Form'!M80),\"\"))","v":""},{"$f":"IF('Blank - Request Form'!$F$6=\"CIUGC\",IF('Blank - Request Form'!E80=0,\"\",'Blank - Request Form'!E80),IF('Blank - Request Form'!$F$7=\"CIUGC\",IF('Blank - Request Form'!N80=0,\"\",'Blank - Request Form'!N80),\"\"))","v":""},{"$f":"IF('Blank - Request Form'!$F$6=\"CIUGC\",IF(OR('Blank - Request Form'!F80=\"000\",'Blank - Request Form'!F80=0),\"\",'Blank - Request Form'!F80),IF('Blank - Request Form'!$F$7=\"CIUGC\",IF(OR('Blank - Request Form'!O80=\"000\",'Blank - Request Form'!O80=0),\"\",'Blank - Request Form'!O80),\"\"))","v":""},{"$f":"IF('Blank - Request Form'!$F$6=\"CIUGC\",IF(OR('Blank - Request Form'!G80=\"0\",'Blank - Request Form'!G80=\"00000\",'Blank - Request Form'!G80=0),\"\",'Blank - Request Form'!G80),IF('Blank - Request Form'!$F$7=\"CIUGC\",IF(OR('Blank - Request Form'!P80=\"0\",'Blank - Request Form'!P80=\"00000\",'Blank - Request Form'!P80=0),\"\",'Blank - Request Form'!P80),\"\"))","v":""},{"$f":"IF('Blank - Request Form'!$F$6=\"CIUGC\",IF(OR('Blank - Request Form'!H80=\"0\",'Blank - Request Form'!H80=\"00000\",'Blank - Request Form'!H80=0),\"\",'Blank - Request Form'!H80),IF('Blank - Request Form'!$F$7=\"CIUGC\",IF(OR('Blank - Request Form'!Q80=\"0\",'Blank - Request Form'!Q80=\"00000\",'Blank - Request Form'!Q80=0),\"\",'Blank - Request Form'!Q80),\"\"))","v":""},{"$f":"IF('Blank - Request Form'!$F$6=\"CIUGC\",IF(OR('Blank - Request Form'!I80=\"0\",'Blank - Request Form'!I80=\"00000\",'Blank - Request Form'!I80=0),\"\",'Blank - Request Form'!I80),IF('Blank - Request Form'!$F$7=\"CIUGC\",IF(OR('Blank - Request Form'!R80=\"0\",'Blank - Request Form'!R80=\"00000\",'Blank - Request Form'!R80=0),\"\",'Blank - Request Form'!R80),\"\"))","v":""},null,{"$f":"IF('Blank - Request Form'!$F$6=\"CIUGC\",IF('Blank - Request Form'!K80=0,\"\",'Blank - Request Form'!K80),IF('Blank - Request Form'!$F$7=\"CIUGC\",IF('Blank - Request Form'!T80=0,\"\",'Blank - Request Form'!T80),\"\"))","v":""},null,null,null,{"$f":"IF(M46<>\"\",'Blank - Request Form'!$M$2,\"\")","v":""},{"$f":"IF('Blank - Request Form'!$F$6=\"CIUGC\",IF('Blank - Request Form'!J80=0,\"\",'Blank - Request Form'!J80),IF('Blank - Request Form'!$F$7=\"CIUGC\",IF('Blank - Request Form'!S80=0,\"\",'Blank - Request Form'!S80),\"\"))","v":""},{"$f":"IF(M46<>\"\",O46,\"\")","v":""},46]
[{"$f":"IF('Blank - Request Form'!$F$6=\"CIUGC\",IF('Blank - Request Form'!D81=0,\"\",'Blank - Request Form'!D81),IF('Blank - Request Form'!$F$7=\"CIUGC\",IF('Blank - Request Form'!M81=0,\"\",'Blank - Request Form'!M81),\"\"))","v":""},{"$f":"IF('Blank - Request Form'!$F$6=\"CIUGC\",IF('Blank - Request Form'!E81=0,\"\",'Blank - Request Form'!E81),IF('Blank - Request Form'!$F$7=\"CIUGC\",IF('Blank - Request Form'!N81=0,\"\",'Blank - Request Form'!N81),\"\"))","v":""},{"$f":"IF('Blank - Request Form'!$F$6=\"CIUGC\",IF(OR('Blank - Request Form'!F81=\"000\",'Blank - Request Form'!F81=0),\"\",'Blank - Request Form'!F81),IF('Blank - Request Form'!$F$7=\"CIUGC\",IF(OR('Blank - Request Form'!O81=\"000\",'Blank - Request Form'!O81=0),\"\",'Blank - Request Form'!O81),\"\"))","v":""},{"$f":"IF('Blank - Request Form'!$F$6=\"CIUGC\",IF(OR('Blank - Request Form'!G81=\"0\",'Blank - Request Form'!G81=\"00000\",'Blank - Request Form'!G81=0),\"\",'Blank - Request Form'!G81),IF('Blank - Request Form'!$F$7=\"CIUGC\",IF(OR('Blank - Request Form'!P81=\"0\",'Blank - Request Form'!P81=\"00000\",'Blank - Request Form'!P81=0),\"\",'Blank - Request Form'!P81),\"\"))","v":""},{"$f":"IF('Blank - Request Form'!$F$6=\"CIUGC\",IF(OR('Blank - Request Form'!H81=\"0\",'Blank - Request Form'!H81=\"00000\",'Blank - Request Form'!H81=0),\"\",'Blank - Request Form'!H81),IF('Blank - Request Form'!$F$7=\"CIUGC\",IF(OR('Blank - Request Form'!Q81=\"0\",'Blank - Request Form'!Q81=\"00000\",'Blank - Request Form'!Q81=0),\"\",'Blank - Request Form'!Q81),\"\"))","v":""},{"$f":"IF('Blank - Request Form'!$F$6=\"CIUGC\",IF(OR('Blank - Request Form'!I81=\"0\",'Blank - Request Form'!I81=\"00000\",'Blank - Request Form'!I81=0),\"\",'Blank - Request Form'!I81),IF('Blank - Request Form'!$F$7=\"CIUGC\",IF(OR('Blank - Request Form'!R81=\"0\",'Blank - Request Form'!R81=\"00000\",'Blank - Request Form'!R81=0),\"\",'Blank - Request Form'!R81),\"\"))","v":""},null,{"$f":"IF('Blank - Request Form'!$F$6=\"CIUGC\",IF('Blank - Request Form'!K81=0,\"\",'Blank - Request Form'!K81),IF('Blank - Request Form'!$F$7=\"CIUGC\",IF('Blank - Request Form'!T81=0,\"\",'Blank - Request Form'!T81),\"\"))","v":""},null,null,null,{"$f":"IF(M47<>\"\",'Blank - Request Form'!$M$2,\"\")","v":""},{"$f":"IF('Blank - Request Form'!$F$6=\"CIUGC\",IF('Blank - Request Form'!J81=0,\"\",'Blank - Request Form'!J81),IF('Blank - Request Form'!$F$7=\"CIUGC\",IF('Blank - Request Form'!S81=0,\"\",'Blank - Request Form'!S81),\"\"))","v":""},"",47]
[{"$f":"IF('Blank - Request Form'!$F$6=\"CIUGC\",IF('Blank - Request Form'!D82=0,\"\",'Blank - Request Form'!D82),IF('Blank - Request Form'!$F$7=\"CIUGC\",IF('Blank - Request Form'!M82=0,\"\",'Blank - Request Form'!M82),\"\"))","v":""},{"$f":"IF('Blank - Request Form'!$F$6=\"CIUGC\",IF('Blank - Request Form'!E82=0,\"\",'Blank - Request Form'!E82),IF('Blank - Request Form'!$F$7=\"CIUGC\",IF('Blank - Request Form'!N82=0,\"\",'Blank - Request Form'!N82),\"\"))","v":""},{"$f":"IF('Blank - Request Form'!$F$6=\"CIUGC\",IF(OR('Blank - Request Form'!F82=\"000\",'Blank - Request Form'!F82=0),\"\",'Blank - Request Form'!F82),IF('Blank - Request Form'!$F$7=\"CIUGC\",IF(OR('Blank - Request Form'!O82=\"000\",'Blank - Request Form'!O82=0),\"\",'Blank - Request Form'!O82),\"\"))","v":""},{"$f":"IF('Blank - Request Form'!$F$6=\"CIUGC\",IF(OR('Blank - Request Form'!G82=\"0\",'Blank - Request Form'!G82=\"00000\",'Blank - Request Form'!G82=0),\"\",'Blank - Request Form'!G82),IF('Blank - Request Form'!$F$7=\"CIUGC\",IF(OR('Blank - Request Form'!P82=\"0\",'Blank - Request Form'!P82=\"00000\",'Blank - Request Form'!P82=0),\"\",'Blank - Request Form'!P82),\"\"))","v":""},{"$f":"IF('Blank - Request Form'!$F$6=\"CIUGC\",IF(OR('Blank - Request Form'!H82=\"0\",'Blank - Request Form'!H82=\"00000\",'Blank - Request Form'!H82=0),\"\",'Blank - Request Form'!H82),IF('Blank - Request Form'!$F$7=\"CIUGC\",IF(OR('Blank - Request Form'!Q82=\"0\",'Blank - Request Form'!Q82=\"00000\",'Blank - Request Form'!Q82=0),\"\",'Blank - Request Form'!Q82),\"\"))","v":""},{"$f":"IF('Blank - Request Form'!$F$6=\"CIUGC\",IF(OR('Blank - Request Form'!I82=\"0\",'Blank - Request Form'!I82=\"00000\",'Blank - Request Form'!I82=0),\"\",'Blank - Request Form'!I82),IF('Blank - Request Form'!$F$7=\"CIUGC\",IF(OR('Blank - Request Form'!R82=\"0\",'Blank - Request Form'!R82=\"00000\",'Blank - Request Form'!R82=0),\"\",'Blank - Request Form'!R82),\"\"))","v":""},null,{"$f":"IF('Blank - Request Form'!$F$6=\"CIUGC\",IF('Blank - Request Form'!K82=0,\"\",'Blank - Request Form'!K82),IF('Blank - Request Form'!$F$7=\"CIUGC\",IF('Blank - Request Form'!T82=0,\"\",'Blank - Request Form'!T82),\"\"))","v":""},null,null,null,{"$f":"IF(M48<>\"\",'Blank - Request Form'!$M$2,\"\")","v":""},{"$f":"IF('Blank - Request Form'!$F$6=\"CIUGC\",IF('Blank - Request Form'!J82=0,\"\",'Blank - Request Form'!J82),IF('Blank - Request Form'!$F$7=\"CIUGC\",IF('Blank - Request Form'!S82=0,\"\",'Blank - Request Form'!S82),\"\"))","v":""},"",48]
[{"$f":"IF('Blank - Request Form'!$F$6=\"CIUGC\",IF('Blank - Request Form'!D83=0,\"\",'Blank - Request Form'!D83),IF('Blank - Request Form'!$F$7=\"CIUGC\",IF('Blank - Request Form'!M83=0,\"\",'Blank - Request Form'!M83),\"\"))","v":""},{"$f":"IF('Blank - Request Form'!$F$6=\"CIUGC\",IF('Blank - Request Form'!E83=0,\"\",'Blank - Request Form'!E83),IF('Blank - Request Form'!$F$7=\"CIUGC\",IF('Blank - Request Form'!N83=0,\"\",'Blank - Request Form'!N83),\"\"))","v":""},{"$f":"IF('Blank - Request Form'!$F$6=\"CIUGC\",IF(OR('Blank - Request Form'!F83=\"000\",'Blank - Request Form'!F83=0),\"\",'Blank - Request Form'!F83),IF('Blank - Request Form'!$F$7=\"CIUGC\",IF(OR('Blank - Request Form'!O83=\"000\",'Blank - Request Form'!O83=0),\"\",'Blank - Request Form'!O83),\"\"))","v":""},{"$f":"IF('Blank - Request Form'!$F$6=\"CIUGC\",IF(OR('Blank - Request Form'!G83=\"0\",'Blank - Request Form'!G83=\"00000\",'Blank - Request Form'!G83=0),\"\",'Blank - Request Form'!G83),IF('Blank - Request Form'!$F$7=\"CIUGC\",IF(OR('Blank - Request Form'!P83=\"0\",'Blank - Request Form'!P83=\"00000\",'Blank - Request Form'!P83=0),\"\",'Blank - Request Form'!P83),\"\"))","v":""},{"$f":"IF('Blank - Request Form'!$F$6=\"CIUGC\",IF(OR('Blank - Request Form'!H83=\"0\",'Blank - Request Form'!H83=\"00000\",'Blank - Request Form'!H83=0),\"\",'Blank - Request Form'!H83),IF('Blank - Request Form'!$F$7=\"CIUGC\",IF(OR('Blank - Request Form'!Q83=\"0\",'Blank - Request Form'!Q83=\"00000\",'Blank - Request Form'!Q83=0),\"\",'Blank - Request Form'!Q83),\"\"))","v":""},{"$f":"IF('Blank - Request Form'!$F$6=\"CIUGC\",IF(OR('Blank - Request Form'!I83=\"0\",'Blank - Request Form'!I83=\"00000\",'Blank - Request Form'!I83=0),\"\",'Blank - Request Form'!I83),IF('Blank - Request Form'!$F$7=\"CIUGC\",IF(OR('Blank - Request Form'!R83=\"0\",'Blank - Request Form'!R83=\"00000\",'Blank - Request Form'!R83=0),\"\",'Blank - Request Form'!R83),\"\"))","v":""},null,{"$f":"IF('Blank - Request Form'!$F$6=\"CIUGC\",IF('Blank - Request Form'!K83=0,\"\",'Blank - Request Form'!K83),IF('Blank - Request Form'!$F$7=\"CIUGC\",IF('Blank - Request Form'!T83=0,\"\",'Blank - Request Form'!T83),\"\"))","v":""},null,null,null,{"$f":"IF(M49<>\"\",'Blank - Request Form'!$M$2,\"\")","v":""},{"$f":"IF('Blank - Request Form'!$F$6=\"CIUGC\",IF('Blank - Request Form'!J83=0,\"\",'Blank - Request Form'!J83),IF('Blank - Request Form'!$F$7=\"CIUGC\",IF('Blank - Request Form'!S83=0,\"\",'Blank - Request Form'!S83),\"\"))","v":""},"",49]
[{"$f":"IF('Blank - Request Form'!$F$6=\"CIUGC\",IF('Blank - Request Form'!D84=0,\"\",'Blank - Request Form'!D84),IF('Blank - Request Form'!$F$7=\"CIUGC\",IF('Blank - Request Form'!M84=0,\"\",'Blank - Request Form'!M84),\"\"))","v":""},{"$f":"IF('Blank - Request Form'!$F$6=\"CIUGC\",IF('Blank - Request Form'!E84=0,\"\",'Blank - Request Form'!E84),IF('Blank - Request Form'!$F$7=\"CIUGC\",IF('Blank - Request Form'!N84=0,\"\",'Blank - Request Form'!N84),\"\"))","v":""},{"$f":"IF('Blank - Request Form'!$F$6=\"CIUGC\",IF(OR('Blank - Request Form'!F84=\"000\",'Blank - Request Form'!F84=0),\"\",'Blank - Request Form'!F84),IF('Blank - Request Form'!$F$7=\"CIUGC\",IF(OR('Blank - Request Form'!O84=\"000\",'Blank - Request Form'!O84=0),\"\",'Blank - Request Form'!O84),\"\"))","v":""},{"$f":"IF('Blank - Request Form'!$F$6=\"CIUGC\",IF(OR('Blank - Request Form'!G84=\"0\",'Blank - Request Form'!G84=\"00000\",'Blank - Request Form'!G84=0),\"\",'Blank - Request Form'!G84),IF('Blank - Request Form'!$F$7=\"CIUGC\",IF(OR('Blank - Request Form'!P84=\"0\",'Blank - Request Form'!P84=\"00000\",'Blank - Request Form'!P84=0),\"\",'Blank - Request Form'!P84),\"\"))","v":""},{"$f":"IF('Blank - Request Form'!$F$6=\"CIUGC\",IF(OR('Blank - Request Form'!H84=\"0\",'Blank - Request Form'!H84=\"00000\",'Blank - Request Form'!H84=0),\"\",'Blank - Request Form'!H84),IF('Blank - Request Form'!$F$7=\"CIUGC\",IF(OR('Blank - Request Form'!Q84=\"0\",'Blank - Request Form'!Q84=\"00000\",'Blank - Request Form'!Q84=0),\"\",'Blank - Request Form'!Q84),\"\"))","v":""},{"$f":"IF('Blank - Request Form'!$F$6=\"CIUGC\",IF(OR('Blank - Request Form'!I84=\"0\",'Blank - Request Form'!I84=\"00000\",'Blank - Request Form'!I84=0),\"\",'Blank - Request Form'!I84),IF('Blank - Request Form'!$F$7=\"CIUGC\",IF(OR('Blank - Request Form'!R84=\"0\",'Blank - Request Form'!R84=\"00000\",'Blank - Request Form'!R84=0),\"\",'Blank - Request Form'!R84),\"\"))","v":""},null,{"$f":"IF('Blank - Request Form'!$F$6=\"CIUGC\",IF('Blank - Request Form'!K84=0,\"\",'Blank - Request Form'!K84),IF('Blank - Request Form'!$F$7=\"CIUGC\",IF('Blank - Request Form'!T84=0,\"\",'Blank - Request Form'!T84),\"\"))","v":""},null,null,null,{"$f":"IF(M50<>\"\",'Blank - Request Form'!$M$2,\"\")","v":""},{"$f":"IF('Blank - Request Form'!$F$6=\"CIUGC\",IF('Blank - Request Form'!J84=0,\"\",'Blank - Request Form'!J84),IF('Blank - Request Form'!$F$7=\"CIUGC\",IF('Blank - Request Form'!S84=0,\"\",'Blank - Request Form'!S84),\"\"))","v":""},"",50]
[{"$f":"IF('Blank - Request Form'!$F$6=\"CIUGC\",IF('Blank - Request Form'!D85=0,\"\",'Blank - Request Form'!D85),IF('Blank - Request Form'!$F$7=\"CIUGC\",IF('Blank - Request Form'!M85=0,\"\",'Blank - Request Form'!M85),\"\"))","v":""},{"$f":"IF('Blank - Request Form'!$F$6=\"CIUGC\",IF('Blank - Request Form'!E85=0,\"\",'Blank - Request Form'!E85),IF('Blank - Request Form'!$F$7=\"CIUGC\",IF('Blank - Request Form'!N85=0,\"\",'Blank - Request Form'!N85),\"\"))","v":""},{"$f":"IF('Blank - Request Form'!$F$6=\"CIUGC\",IF(OR('Blank - Request Form'!F85=\"000\",'Blank - Request Form'!F85=0),\"\",'Blank - Request Form'!F85),IF('Blank - Request Form'!$F$7=\"CIUGC\",IF(OR('Blank - Request Form'!O85=\"000\",'Blank - Request Form'!O85=0),\"\",'Blank - Request Form'!O85),\"\"))","v":""},{"$f":"IF('Blank - Request Form'!$F$6=\"CIUGC\",IF(OR('Blank - Request Form'!G85=\"0\",'Blank - Request Form'!G85=\"00000\",'Blank - Request Form'!G85=0),\"\",'Blank - Request Form'!G85),IF('Blank - Request Form'!$F$7=\"CIUGC\",IF(OR('Blank - Request Form'!P85=\"0\",'Blank - Request Form'!P85=\"00000\",'Blank - Request Form'!P85=0),\"\",'Blank - Request Form'!P85),\"\"))","v":""},{"$f":"IF('Blank - Request Form'!$F$6=\"CIUGC\",IF(OR('Blank - Request Form'!H85=\"0\",'Blank - Request Form'!H85=\"00000\",'Blank - Request Form'!H85=0),\"\",'Blank - Request Form'!H85),IF('Blank - Request Form'!$F$7=\"CIUGC\",IF(OR('Blank - Request Form'!Q85=\"0\",'Blank - Request Form'!Q85=\"00000\",'Blank - Request Form'!Q85=0),\"\",'Blank - Request Form'!Q85),\"\"))","v":""},{"$f":"IF('Blank - Request Form'!$F$6=\"CIUGC\",IF(OR('Blank - Request Form'!I85=\"0\",'Blank - Request Form'!I85=\"00000\",'Blank - Request Form'!I85=0),\"\",'Blank - Request Form'!I85),IF('Blank - Request Form'!$F$7=\"CIUGC\",IF(OR('Blank - Request Form'!R85=\"0\",'Blank - Request Form'!R85=\"00000\",'Blank - Request Form'!R85=0),\"\",'Blank - Request Form'!R85),\"\"))","v":""},null,{"$f":"IF('Blank - Request Form'!$F$6=\"CIUGC\",IF('Blank - Request Form'!K85=0,\"\",'Blank - Request Form'!K85),IF('Blank - Request Form'!$F$7=\"CIUGC\",IF('Blank - Request Form'!T85=0,\"\",'Blank - Request Form'!T85),\"\"))","v":""},null,null,null,{"$f":"IF(M51<>\"\",'Blank - Request Form'!$M$2,\"\")","v":""},{"$f":"IF('Blank - Request Form'!$F$6=\"CIUGC\",IF('Blank - Request Form'!J85=0,\"\",'Blank - Request Form'!J85),IF('Blank - Request Form'!$F$7=\"CIUGC\",IF('Blank - Request Form'!S85=0,\"\",'Blank - Request Form'!S85),\"\"))","v":""},"",51]
[{"$f":"IF('Blank - Request Form'!$F$6=\"CIUGC\",IF('Blank - Request Form'!D86=0,\"\",'Blank - Request Form'!D86),IF('Blank - Request Form'!$F$7=\"CIUGC\",IF('Blank - Request Form'!M86=0,\"\",'Blank - Request Form'!M86),\"\"))","v":""},{"$f":"IF('Blank - Request Form'!$F$6=\"CIUGC\",IF('Blank - Request Form'!E86=0,\"\",'Blank - Request Form'!E86),IF('Blank - Request Form'!$F$7=\"CIUGC\",IF('Blank - Request Form'!N86=0,\"\",'Blank - Request Form'!N86),\"\"))","v":""},{"$f":"IF('Blank - Request Form'!$F$6=\"CIUGC\",IF(OR('Blank - Request Form'!F86=\"000\",'Blank - Request Form'!F86=0),\"\",'Blank - Request Form'!F86),IF('Blank - Request Form'!$F$7=\"CIUGC\",IF(OR('Blank - Request Form'!O86=\"000\",'Blank - Request Form'!O86=0),\"\",'Blank - Request Form'!O86),\"\"))","v":""},{"$f":"IF('Blank - Request Form'!$F$6=\"CIUGC\",IF(OR('Blank - Request Form'!G86=\"0\",'Blank - Request Form'!G86=\"00000\",'Blank - Request Form'!G86=0),\"\",'Blank - Request Form'!G86),IF('Blank - Request Form'!$F$7=\"CIUGC\",IF(OR('Blank - Request Form'!P86=\"0\",'Blank - Request Form'!P86=\"00000\",'Blank - Request Form'!P86=0),\"\",'Blank - Request Form'!P86),\"\"))","v":""},{"$f":"IF('Blank - Request Form'!$F$6=\"CIUGC\",IF(OR('Blank - Request Form'!H86=\"0\",'Blank - Request Form'!H86=\"00000\",'Blank - Request Form'!H86=0),\"\",'Blank - Request Form'!H86),IF('Blank - Request Form'!$F$7=\"CIUGC\",IF(OR('Blank - Request Form'!Q86=\"0\",'Blank - Request Form'!Q86=\"00000\",'Blank - Request Form'!Q86=0),\"\",'Blank - Request Form'!Q86),\"\"))","v":""},{"$f":"IF('Blank - Request Form'!$F$6=\"CIUGC\",IF(OR('Blank - Request Form'!I86=\"0\",'Blank - Request Form'!I86=\"00000\",'Blank - Request Form'!I86=0),\"\",'Blank - Request Form'!I86),IF('Blank - Request Form'!$F$7=\"CIUGC\",IF(OR('Blank - Request Form'!R86=\"0\",'Blank - Request Form'!R86=\"00000\",'Blank - Request Form'!R86=0),\"\",'Blank - Request Form'!R86),\"\"))","v":""},null,{"$f":"IF('Blank - Request Form'!$F$6=\"CIUGC\",IF('Blank - Request Form'!K86=0,\"\",'Blank - Request Form'!K86),IF('Blank - Request Form'!$F$7=\"CIUGC\",IF('Blank - Request Form'!T86=0,\"\",'Blank - Request Form'!T86),\"\"))","v":""},null,null,null,{"$f":"IF(M52<>\"\",'Blank - Request Form'!$M$2,\"\")","v":""},{"$f":"IF('Blank - Request Form'!$F$6=\"CIUGC\",IF('Blank - Request Form'!J86=0,\"\",'Blank - Request Form'!J86),IF('Blank - Request Form'!$F$7=\"CIUGC\",IF('Blank - Request Form'!S86=0,\"\",'Blank - Request Form'!S86),\"\"))","v":""},"",52]
[{"$f":"IF('Blank - Request Form'!$F$6=\"CIUGC\",IF('Blank - Request Form'!D87=0,\"\",'Blank - Request Form'!D87),IF('Blank - Request Form'!$F$7=\"CIUGC\",IF('Blank - Request Form'!M87=0,\"\",'Blank - Request Form'!M87),\"\"))","v":""},{"$f":"IF('Blank - Request Form'!$F$6=\"CIUGC\",IF('Blank - Request Form'!E87=0,\"\",'Blank - Request Form'!E87),IF('Blank - Request Form'!$F$7=\"CIUGC\",IF('Blank - Request Form'!N87=0,\"\",'Blank - Request Form'!N87),\"\"))","v":""},{"$f":"IF('Blank - Request Form'!$F$6=\"CIUGC\",IF(OR('Blank - Request Form'!F87=\"000\",'Blank - Request Form'!F87=0),\"\",'Blank - Request Form'!F87),IF('Blank - Request Form'!$F$7=\"CIUGC\",IF(OR('Blank - Request Form'!O87=\"000\",'Blank - Request Form'!O87=0),\"\",'Blank - Request Form'!O87),\"\"))","v":""},{"$f":"IF('Blank - Request Form'!$F$6=\"CIUGC\",IF(OR('Blank - Request Form'!G87=\"0\",'Blank - Request Form'!G87=\"00000\",'Blank - Request Form'!G87=0),\"\",'Blank - Request Form'!G87),IF('Blank - Request Form'!$F$7=\"CIUGC\",IF(OR('Blank - Request Form'!P87=\"0\",'Blank - Request Form'!P87=\"00000\",'Blank - Request Form'!P87=0),\"\",'Blank - Request Form'!P87),\"\"))","v":""},{"$f":"IF('Blank - Request Form'!$F$6=\"CIUGC\",IF(OR('Blank - Request Form'!H87=\"0\",'Blank - Request Form'!H87=\"00000\",'Blank - Request Form'!H87=0),\"\",'Blank - Request Form'!H87),IF('Blank - Request Form'!$F$7=\"CIUGC\",IF(OR('Blank - Request Form'!Q87=\"0\",'Blank - Request Form'!Q87=\"00000\",'Blank - Request Form'!Q87=0),\"\",'Blank - Request Form'!Q87),\"\"))","v":""},{"$f":"IF('Blank - Request Form'!$F$6=\"CIUGC\",IF(OR('Blank - Request Form'!I87=\"0\",'Blank - Request Form'!I87=\"00000\",'Blank - Request Form'!I87=0),\"\",'Blank - Request Form'!I87),IF('Blank - Request Form'!$F$7=\"CIUGC\",IF(OR('Blank - Request Form'!R87=\"0\",'Blank - Request Form'!R87=\"00000\",'Blank - Request Form'!R87=0),\"\",'Blank - Request Form'!R87),\"\"))","v":""},null,{"$f":"IF('Blank - Request Form'!$F$6=\"CIUGC\",IF('Blank - Request Form'!K87=0,\"\",'Blank - Request Form'!K87),IF('Blank - Request Form'!$F$7=\"CIUGC\",IF('Blank - Request Form'!T87=0,\"\",'Blank - Request Form'!T87),\"\"))","v":""},null,null,null,{"$f":"IF(M53<>\"\",'Blank - Request Form'!$M$2,\"\")","v":""},{"$f":"IF('Blank - Request Form'!$F$6=\"CIUGC\",IF('Blank - Request Form'!J87=0,\"\",'Blank - Request Form'!J87),IF('Blank - Request Form'!$F$7=\"CIUGC\",IF('Blank - Request Form'!S87=0,\"\",'Blank - Request Form'!S87),\"\"))","v":""},"",53]
[{"$f":"IF('Blank - Request Form'!$F$6=\"CIUGC\",IF('Blank - Request Form'!D88=0,\"\",'Blank - Request Form'!D88),IF('Blank - Request Form'!$F$7=\"CIUGC\",IF('Blank - Request Form'!M88=0,\"\",'Blank - Request Form'!M88),\"\"))","v":""},{"$f":"IF('Blank - Request Form'!$F$6=\"CIUGC\",IF('Blank - Request Form'!E88=0,\"\",'Blank - Request Form'!E88),IF('Blank - Request Form'!$F$7=\"CIUGC\",IF('Blank - Request Form'!N88=0,\"\",'Blank - Request Form'!N88),\"\"))","v":""},{"$f":"IF('Blank - Request Form'!$F$6=\"CIUGC\",IF(OR('Blank - Request Form'!F88=\"000\",'Blank - Request Form'!F88=0),\"\",'Blank - Request Form'!F88),IF('Blank - Request Form'!$F$7=\"CIUGC\",IF(OR('Blank - Request Form'!O88=\"000\",'Blank - Request Form'!O88=0),\"\",'Blank - Request Form'!O88),\"\"))","v":""},{"$f":"IF('Blank - Request Form'!$F$6=\"CIUGC\",IF(OR('Blank - Request Form'!G88=\"0\",'Blank - Request Form'!G88=\"00000\",'Blank - Request Form'!G88=0),\"\",'Blank - Request Form'!G88),IF('Blank - Request Form'!$F$7=\"CIUGC\",IF(OR('Blank - Request Form'!P88=\"0\",'Blank - Request Form'!P88=\"00000\",'Blank - Request Form'!P88=0),\"\",'Blank - Request Form'!P88),\"\"))","v":""},{"$f":"IF('Blank - Request Form'!$F$6=\"CIUGC\",IF(OR('Blank - Request Form'!H88=\"0\",'Blank - Request Form'!H88=\"00000\",'Blank - Request Form'!H88=0),\"\",'Blank - Request Form'!H88),IF('Blank - Request Form'!$F$7=\"CIUGC\",IF(OR('Blank - Request Form'!Q88=\"0\",'Blank - Request Form'!Q88=\"00000\",'Blank - Request Form'!Q88=0),\"\",'Blank - Request Form'!Q88),\"\"))","v":""},{"$f":"IF('Blank - Request Form'!$F$6=\"CIUGC\",IF(OR('Blank - Request Form'!I88=\"0\",'Blank - Request Form'!I88=\"00000\",'Blank - Request Form'!I88=0),\"\",'Blank - Request Form'!I88),IF('Blank - Request Form'!$F$7=\"CIUGC\",IF(OR('Blank - Request Form'!R88=\"0\",'Blank - Request Form'!R88=\"00000\",'Blank - Request Form'!R88=0),\"\",'Blank - Request Form'!R88),\"\"))","v":""},null,{"$f":"IF('Blank - Request Form'!$F$6=\"CIUGC\",IF('Blank - Request Form'!K88=0,\"\",'Blank - Request Form'!K88),IF('Blank - Request Form'!$F$7=\"CIUGC\",IF('Blank - Request Form'!T88=0,\"\",'Blank - Request Form'!T88),\"\"))","v":""},null,null,null,{"$f":"IF(M54<>\"\",'Blank - Request Form'!$M$2,\"\")","v":""},{"$f":"IF('Blank - Request Form'!$F$6=\"CIUGC\",IF('Blank - Request Form'!J88=0,\"\",'Blank - Request Form'!J88),IF('Blank - Request Form'!$F$7=\"CIUGC\",IF('Blank - Request Form'!S88=0,\"\",'Blank - Request Form'!S88),\"\"))","v":""},"",54]
[{"$f":"IF('Blank - Request Form'!$F$6=\"CIUGC\",IF('Blank - Request Form'!D89=0,\"\",'Blank - Request Form'!D89),IF('Blank - Request Form'!$F$7=\"CIUGC\",IF('Blank - Request Form'!M89=0,\"\",'Blank - Request Form'!M89),\"\"))","v":""},{"$f":"IF('Blank - Request Form'!$F$6=\"CIUGC\",IF('Blank - Request Form'!E89=0,\"\",'Blank - Request Form'!E89),IF('Blank - Request Form'!$F$7=\"CIUGC\",IF('Blank - Request Form'!N89=0,\"\",'Blank - Request Form'!N89),\"\"))","v":""},{"$f":"IF('Blank - Request Form'!$F$6=\"CIUGC\",IF(OR('Blank - Request Form'!F89=\"000\",'Blank - Request Form'!F89=0),\"\",'Blank - Request Form'!F89),IF('Blank - Request Form'!$F$7=\"CIUGC\",IF(OR('Blank - Request Form'!O89=\"000\",'Blank - Request Form'!O89=0),\"\",'Blank - Request Form'!O89),\"\"))","v":""},{"$f":"IF('Blank - Request Form'!$F$6=\"CIUGC\",IF(OR('Blank - Request Form'!G89=\"0\",'Blank - Request Form'!G89=\"00000\",'Blank - Request Form'!G89=0),\"\",'Blank - Request Form'!G89),IF('Blank - Request Form'!$F$7=\"CIUGC\",IF(OR('Blank - Request Form'!P89=\"0\",'Blank - Request Form'!P89=\"00000\",'Blank - Request Form'!P89=0),\"\",'Blank - Request Form'!P89),\"\"))","v":""},{"$f":"IF('Blank - Request Form'!$F$6=\"CIUGC\",IF(OR('Blank - Request Form'!H89=\"0\",'Blank - Request Form'!H89=\"00000\",'Blank - Request Form'!H89=0),\"\",'Blank - Request Form'!H89),IF('Blank - Request Form'!$F$7=\"CIUGC\",IF(OR('Blank - Request Form'!Q89=\"0\",'Blank - Request Form'!Q89=\"00000\",'Blank - Request Form'!Q89=0),\"\",'Blank - Request Form'!Q89),\"\"))","v":""},{"$f":"IF('Blank - Request Form'!$F$6=\"CIUGC\",IF(OR('Blank - Request Form'!I89=\"0\",'Blank - Request Form'!I89=\"00000\",'Blank - Request Form'!I89=0),\"\",'Blank - Request Form'!I89),IF('Blank - Request Form'!$F$7=\"CIUGC\",IF(OR('Blank - Request Form'!R89=\"0\",'Blank - Request Form'!R89=\"00000\",'Blank - Request Form'!R89=0),\"\",'Blank - Request Form'!R89),\"\"))","v":""},null,{"$f":"IF('Blank - Request Form'!$F$6=\"CIUGC\",IF('Blank - Request Form'!K89=0,\"\",'Blank - Request Form'!K89),IF('Blank - Request Form'!$F$7=\"CIUGC\",IF('Blank - Request Form'!T89=0,\"\",'Blank - Request Form'!T89),\"\"))","v":""},null,null,null,{"$f":"IF(M55<>\"\",'Blank - Request Form'!$M$2,\"\")","v":""},{"$f":"IF('Blank - Request Form'!$F$6=\"CIUGC\",IF('Blank - Request Form'!J89=0,\"\",'Blank - Request Form'!J89),IF('Blank - Request Form'!$F$7=\"CIUGC\",IF('Blank - Request Form'!S89=0,\"\",'Blank - Request Form'!S89),\"\"))","v":""},"",55]
[{"$f":"IF('Blank - Request Form'!$F$6=\"CIUGC\",IF('Blank - Request Form'!D90=0,\"\",'Blank - Request Form'!D90),IF('Blank - Request Form'!$F$7=\"CIUGC\",IF('Blank - Request Form'!M90=0,\"\",'Blank - Request Form'!M90),\"\"))","v":""},{"$f":"IF('Blank - Request Form'!$F$6=\"CIUGC\",IF('Blank - Request Form'!E90=0,\"\",'Blank - Request Form'!E90),IF('Blank - Request Form'!$F$7=\"CIUGC\",IF('Blank - Request Form'!N90=0,\"\",'Blank - Request Form'!N90),\"\"))","v":""},{"$f":"IF('Blank - Request Form'!$F$6=\"CIUGC\",IF(OR('Blank - Request Form'!F90=\"000\",'Blank - Request Form'!F90=0),\"\",'Blank - Request Form'!F90),IF('Blank - Request Form'!$F$7=\"CIUGC\",IF(OR('Blank - Request Form'!O90=\"000\",'Blank - Request Form'!O90=0),\"\",'Blank - Request Form'!O90),\"\"))","v":""},{"$f":"IF('Blank - Request Form'!$F$6=\"CIUGC\",IF(OR('Blank - Request Form'!G90=\"0\",'Blank - Request Form'!G90=\"00000\",'Blank - Request Form'!G90=0),\"\",'Blank - Request Form'!G90),IF('Blank - Request Form'!$F$7=\"CIUGC\",IF(OR('Blank - Request Form'!P90=\"0\",'Blank - Request Form'!P90=\"00000\",'Blank - Request Form'!P90=0),\"\",'Blank - Request Form'!P90),\"\"))","v":""},{"$f":"IF('Blank - Request Form'!$F$6=\"CIUGC\",IF(OR('Blank - Request Form'!H90=\"0\",'Blank - Request Form'!H90=\"00000\",'Blank - Request Form'!H90=0),\"\",'Blank - Request Form'!H90),IF('Blank - Request Form'!$F$7=\"CIUGC\",IF(OR('Blank - Request Form'!Q90=\"0\",'Blank - Request Form'!Q90=\"00000\",'Blank - Request Form'!Q90=0),\"\",'Blank - Request Form'!Q90),\"\"))","v":""},{"$f":"IF('Blank - Request Form'!$F$6=\"CIUGC\",IF(OR('Blank - Request Form'!I90=\"0\",'Blank - Request Form'!I90=\"00000\",'Blank - Request Form'!I90=0),\"\",'Blank - Request Form'!I90),IF('Blank - Request Form'!$F$7=\"CIUGC\",IF(OR('Blank - Request Form'!R90=\"0\",'Blank - Request Form'!R90=\"00000\",'Blank - Request Form'!R90=0),\"\",'Blank - Request Form'!R90),\"\"))","v":""},null,{"$f":"IF('Blank - Request Form'!$F$6=\"CIUGC\",IF('Blank - Request Form'!K90=0,\"\",'Blank - Request Form'!K90),IF('Blank - Request Form'!$F$7=\"CIUGC\",IF('Blank - Request Form'!T90=0,\"\",'Blank - Request Form'!T90),\"\"))","v":""},null,null,null,{"$f":"IF(M56<>\"\",'Blank - Request Form'!$M$2,\"\")","v":""},{"$f":"IF('Blank - Request Form'!$F$6=\"CIUGC\",IF('Blank - Request Form'!J90=0,\"\",'Blank - Request Form'!J90),IF('Blank - Request Form'!$F$7=\"CIUGC\",IF('Blank - Request Form'!S90=0,\"\",'Blank - Request Form'!S90),\"\"))","v":""},"",56]
[{"$f":"IF('Blank - Request Form'!$F$6=\"CIUGC\",IF('Blank - Request Form'!D91=0,\"\",'Blank - Request Form'!D91),IF('Blank - Request Form'!$F$7=\"CIUGC\",IF('Blank - Request Form'!M91=0,\"\",'Blank - Request Form'!M91),\"\"))","v":""},{"$f":"IF('Blank - Request Form'!$F$6=\"CIUGC\",IF('Blank - Request Form'!E91=0,\"\",'Blank - Request Form'!E91),IF('Blank - Request Form'!$F$7=\"CIUGC\",IF('Blank - Request Form'!N91=0,\"\",'Blank - Request Form'!N91),\"\"))","v":""},{"$f":"IF('Blank - Request Form'!$F$6=\"CIUGC\",IF(OR('Blank - Request Form'!F91=\"000\",'Blank - Request Form'!F91=0),\"\",'Blank - Request Form'!F91),IF('Blank - Request Form'!$F$7=\"CIUGC\",IF(OR('Blank - Request Form'!O91=\"000\",'Blank - Request Form'!O91=0),\"\",'Blank - Request Form'!O91),\"\"))","v":""},{"$f":"IF('Blank - Request Form'!$F$6=\"CIUGC\",IF(OR('Blank - Request Form'!G91=\"0\",'Blank - Request Form'!G91=\"00000\",'Blank - Request Form'!G91=0),\"\",'Blank - Request Form'!G91),IF('Blank - Request Form'!$F$7=\"CIUGC\",IF(OR('Blank - Request Form'!P91=\"0\",'Blank - Request Form'!P91=\"00000\",'Blank - Request Form'!P91=0),\"\",'Blank - Request Form'!P91),\"\"))","v":""},{"$f":"IF('Blank - Request Form'!$F$6=\"CIUGC\",IF(OR('Blank - Request Form'!H91=\"0\",'Blank - Request Form'!H91=\"00000\",'Blank - Request Form'!H91=0),\"\",'Blank - Request Form'!H91),IF('Blank - Request Form'!$F$7=\"CIUGC\",IF(OR('Blank - Request Form'!Q91=\"0\",'Blank - Request Form'!Q91=\"00000\",'Blank - Request Form'!Q91=0),\"\",'Blank - Request Form'!Q91),\"\"))","v":""},{"$f":"IF('Blank - Request Form'!$F$6=\"CIUGC\",IF(OR('Blank - Request Form'!I91=\"0\",'Blank - Request Form'!I91=\"00000\",'Blank - Request Form'!I91=0),\"\",'Blank - Request Form'!I91),IF('Blank - Request Form'!$F$7=\"CIUGC\",IF(OR('Blank - Request Form'!R91=\"0\",'Blank - Request Form'!R91=\"00000\",'Blank - Request Form'!R91=0),\"\",'Blank - Request Form'!R91),\"\"))","v":""},null,{"$f":"IF('Blank - Request Form'!$F$6=\"CIUGC\",IF('Blank - Request Form'!K91=0,\"\",'Blank - Request Form'!K91),IF('Blank - Request Form'!$F$7=\"CIUGC\",IF('Blank - Request Form'!T91=0,\"\",'Blank - Request Form'!T91),\"\"))","v":""},null,null,null,{"$f":"IF(M57<>\"\",'Blank - Request Form'!$M$2,\"\")","v":""},{"$f":"IF('Blank - Request Form'!$F$6=\"CIUGC\",IF('Blank - Request Form'!J91=0,\"\",'Blank - Request Form'!J91),IF('Blank - Request Form'!$F$7=\"CIUGC\",IF('Blank - Request Form'!S91=0,\"\",'Blank - Request Form'!S91),\"\"))","v":""},"",57]
[{"$f":"IF('Blank - Request Form'!$F$6=\"CIUGC\",IF('Blank - Request Form'!D92=0,\"\",'Blank - Request Form'!D92),IF('Blank - Request Form'!$F$7=\"CIUGC\",IF('Blank - Request Form'!M92=0,\"\",'Blank - Request Form'!M92),\"\"))","v":""},{"$f":"IF('Blank - Request Form'!$F$6=\"CIUGC\",IF('Blank - Request Form'!E92=0,\"\",'Blank - Request Form'!E92),IF('Blank - Request Form'!$F$7=\"CIUGC\",IF('Blank - Request Form'!N92=0,\"\",'Blank - Request Form'!N92),\"\"))","v":""},{"$f":"IF('Blank - Request Form'!$F$6=\"CIUGC\",IF(OR('Blank - Request Form'!F92=\"000\",'Blank - Request Form'!F92=0),\"\",'Blank - Request Form'!F92),IF('Blank - Request Form'!$F$7=\"CIUGC\",IF(OR('Blank - Request Form'!O92=\"000\",'Blank - Request Form'!O92=0),\"\",'Blank - Request Form'!O92),\"\"))","v":""},{"$f":"IF('Blank - Request Form'!$F$6=\"CIUGC\",IF(OR('Blank - Request Form'!G92=\"0\",'Blank - Request Form'!G92=\"00000\",'Blank - Request Form'!G92=0),\"\",'Blank - Request Form'!G92),IF('Blank - Request Form'!$F$7=\"CIUGC\",IF(OR('Blank - Request Form'!P92=\"0\",'Blank - Request Form'!P92=\"00000\",'Blank - Request Form'!P92=0),\"\",'Blank - Request Form'!P92),\"\"))","v":""},{"$f":"IF('Blank - Request Form'!$F$6=\"CIUGC\",IF(OR('Blank - Request Form'!H92=\"0\",'Blank - Request Form'!H92=\"00000\",'Blank - Request Form'!H92=0),\"\",'Blank - Request Form'!H92),IF('Blank - Request Form'!$F$7=\"CIUGC\",IF(OR('Blank - Request Form'!Q92=\"0\",'Blank - Request Form'!Q92=\"00000\",'Blank - Request Form'!Q92=0),\"\",'Blank - Request Form'!Q92),\"\"))","v":""},{"$f":"IF('Blank - Request Form'!$F$6=\"CIUGC\",IF(OR('Blank - Request Form'!I92=\"0\",'Blank - Request Form'!I92=\"00000\",'Blank - Request Form'!I92=0),\"\",'Blank - Request Form'!I92),IF('Blank - Request Form'!$F$7=\"CIUGC\",IF(OR('Blank - Request Form'!R92=\"0\",'Blank - Request Form'!R92=\"00000\",'Blank - Request Form'!R92=0),\"\",'Blank - Request Form'!R92),\"\"))","v":""},null,{"$f":"IF('Blank - Request Form'!$F$6=\"CIUGC\",IF('Blank - Request Form'!K92=0,\"\",'Blank - Request Form'!K92),IF('Blank - Request Form'!$F$7=\"CIUGC\",IF('Blank - Request Form'!T92=0,\"\",'Blank - Request Form'!T92),\"\"))","v":""},null,null,null,{"$f":"IF(M58<>\"\",'Blank - Request Form'!$M$2,\"\")","v":""},{"$f":"IF('Blank - Request Form'!$F$6=\"CIUGC\",IF('Blank - Request Form'!J92=0,\"\",'Blank - Request Form'!J92),IF('Blank - Request Form'!$F$7=\"CIUGC\",IF('Blank - Request Form'!S92=0,\"\",'Blank - Request Form'!S92),\"\"))","v":""},"",58]
[{"$f":"IF('Blank - Request Form'!$F$6=\"CIUGC\",IF('Blank - Request Form'!D93=0,\"\",'Blank - Request Form'!D93),IF('Blank - Request Form'!$F$7=\"CIUGC\",IF('Blank - Request Form'!M93=0,\"\",'Blank - Request Form'!M93),\"\"))","v":""},{"$f":"IF('Blank - Request Form'!$F$6=\"CIUGC\",IF('Blank - Request Form'!E93=0,\"\",'Blank - Request Form'!E93),IF('Blank - Request Form'!$F$7=\"CIUGC\",IF('Blank - Request Form'!N93=0,\"\",'Blank - Request Form'!N93),\"\"))","v":""},{"$f":"IF('Blank - Request Form'!$F$6=\"CIUGC\",IF(OR('Blank - Request Form'!F93=\"000\",'Blank - Request Form'!F93=0),\"\",'Blank - Request Form'!F93),IF('Blank - Request Form'!$F$7=\"CIUGC\",IF(OR('Blank - Request Form'!O93=\"000\",'Blank - Request Form'!O93=0),\"\",'Blank - Request Form'!O93),\"\"))","v":""},{"$f":"IF('Blank - Request Form'!$F$6=\"CIUGC\",IF(OR('Blank - Request Form'!G93=\"0\",'Blank - Request Form'!G93=\"00000\",'Blank - Request Form'!G93=0),\"\",'Blank - Request Form'!G93),IF('Blank - Request Form'!$F$7=\"CIUGC\",IF(OR('Blank - Request Form'!P93=\"0\",'Blank - Request Form'!P93=\"00000\",'Blank - Request Form'!P93=0),\"\",'Blank - Request Form'!P93),\"\"))","v":""},{"$f":"IF('Blank - Request Form'!$F$6=\"CIUGC\",IF(OR('Blank - Request Form'!H93=\"0\",'Blank - Request Form'!H93=\"00000\",'Blank - Request Form'!H93=0),\"\",'Blank - Request Form'!H93),IF('Blank - Request Form'!$F$7=\"CIUGC\",IF(OR('Blank - Request Form'!Q93=\"0\",'Blank - Request Form'!Q93=\"00000\",'Blank - Request Form'!Q93=0),\"\",'Blank - Request Form'!Q93),\"\"))","v":""},{"$f":"IF('Blank - Request Form'!$F$6=\"CIUGC\",IF(OR('Blank - Request Form'!I93=\"0\",'Blank - Request Form'!I93=\"00000\",'Blank - Request Form'!I93=0),\"\",'Blank - Request Form'!I93),IF('Blank - Request Form'!$F$7=\"CIUGC\",IF(OR('Blank - Request Form'!R93=\"0\",'Blank - Request Form'!R93=\"00000\",'Blank - Request Form'!R93=0),\"\",'Blank - Request Form'!R93),\"\"))","v":""},null,{"$f":"IF('Blank - Request Form'!$F$6=\"CIUGC\",IF('Blank - Request Form'!K93=0,\"\",'Blank - Request Form'!K93),IF('Blank - Request Form'!$F$7=\"CIUGC\",IF('Blank - Request Form'!T93=0,\"\",'Blank - Request Form'!T93),\"\"))","v":""},null,null,null,{"$f":"IF(M59<>\"\",'Blank - Request Form'!$M$2,\"\")","v":""},{"$f":"IF('Blank - Request Form'!$F$6=\"CIUGC\",IF('Blank - Request Form'!J93=0,\"\",'Blank - Request Form'!J93),IF('Blank - Request Form'!$F$7=\"CIUGC\",IF('Blank - Request Form'!S93=0,\"\",'Blank - Request Form'!S93),\"\"))","v":""},"",59]
[{"$f":"IF('Blank - Request Form'!$F$6=\"CIUGC\",IF('Blank - Request Form'!D94=0,\"\",'Blank - Request Form'!D94),IF('Blank - Request Form'!$F$7=\"CIUGC\",IF('Blank - Request Form'!M94=0,\"\",'Blank - Request Form'!M94),\"\"))","v":""},{"$f":"IF('Blank - Request Form'!$F$6=\"CIUGC\",IF('Blank - Request Form'!E94=0,\"\",'Blank - Request Form'!E94),IF('Blank - Request Form'!$F$7=\"CIUGC\",IF('Blank - Request Form'!N94=0,\"\",'Blank - Request Form'!N94),\"\"))","v":""},{"$f":"IF('Blank - Request Form'!$F$6=\"CIUGC\",IF(OR('Blank - Request Form'!F94=\"000\",'Blank - Request Form'!F94=0),\"\",'Blank - Request Form'!F94),IF('Blank - Request Form'!$F$7=\"CIUGC\",IF(OR('Blank - Request Form'!O94=\"000\",'Blank - Request Form'!O94=0),\"\",'Blank - Request Form'!O94),\"\"))","v":""},{"$f":"IF('Blank - Request Form'!$F$6=\"CIUGC\",IF(OR('Blank - Request Form'!G94=\"0\",'Blank - Request Form'!G94=\"00000\",'Blank - Request Form'!G94=0),\"\",'Blank - Request Form'!G94),IF('Blank - Request Form'!$F$7=\"CIUGC\",IF(OR('Blank - Request Form'!P94=\"0\",'Blank - Request Form'!P94=\"00000\",'Blank - Request Form'!P94=0),\"\",'Blank - Request Form'!P94),\"\"))","v":""},{"$f":"IF('Blank - Request Form'!$F$6=\"CIUGC\",IF(OR('Blank - Request Form'!H94=\"0\",'Blank - Request Form'!H94=\"00000\",'Blank - Request Form'!H94=0),\"\",'Blank - Request Form'!H94),IF('Blank - Request Form'!$F$7=\"CIUGC\",IF(OR('Blank - Request Form'!Q94=\"0\",'Blank - Request Form'!Q94=\"00000\",'Blank - Request Form'!Q94=0),\"\",'Blank - Request Form'!Q94),\"\"))","v":""},{"$f":"IF('Blank - Request Form'!$F$6=\"CIUGC\",IF(OR('Blank - Request Form'!I94=\"0\",'Blank - Request Form'!I94=\"00000\",'Blank - Request Form'!I94=0),\"\",'Blank - Request Form'!I94),IF('Blank - Request Form'!$F$7=\"CIUGC\",IF(OR('Blank - Request Form'!R94=\"0\",'Blank - Request Form'!R94=\"00000\",'Blank - Request Form'!R94=0),\"\",'Blank - Request Form'!R94),\"\"))","v":""},null,{"$f":"IF('Blank - Request Form'!$F$6=\"CIUGC\",IF('Blank - Request Form'!K94=0,\"\",'Blank - Request Form'!K94),IF('Blank - Request Form'!$F$7=\"CIUGC\",IF('Blank - Request Form'!T94=0,\"\",'Blank - Request Form'!T94),\"\"))","v":""},null,null,null,{"$f":"IF(M60<>\"\",'Blank - Request Form'!$M$2,\"\")","v":""},{"$f":"IF('Blank - Request Form'!$F$6=\"CIUGC\",IF('Blank - Request Form'!J94=0,\"\",'Blank - Request Form'!J94),IF('Blank - Request Form'!$F$7=\"CIUGC\",IF('Blank - Request Form'!S94=0,\"\",'Blank - Request Form'!S94),\"\"))","v":""},"",60]
[{"$f":"IF('Blank - Request Form'!$F$6=\"CIUGC\",IF('Blank - Request Form'!D95=0,\"\",'Blank - Request Form'!D95),IF('Blank - Request Form'!$F$7=\"CIUGC\",IF('Blank - Request Form'!M95=0,\"\",'Blank - Request Form'!M95),\"\"))","v":""},{"$f":"IF('Blank - Request Form'!$F$6=\"CIUGC\",IF('Blank - Request Form'!E95=0,\"\",'Blank - Request Form'!E95),IF('Blank - Request Form'!$F$7=\"CIUGC\",IF('Blank - Request Form'!N95=0,\"\",'Blank - Request Form'!N95),\"\"))","v":""},{"$f":"IF('Blank - Request Form'!$F$6=\"CIUGC\",IF(OR('Blank - Request Form'!F95=\"000\",'Blank - Request Form'!F95=0),\"\",'Blank - Request Form'!F95),IF('Blank - Request Form'!$F$7=\"CIUGC\",IF(OR('Blank - Request Form'!O95=\"000\",'Blank - Request Form'!O95=0),\"\",'Blank - Request Form'!O95),\"\"))","v":""},{"$f":"IF('Blank - Request Form'!$F$6=\"CIUGC\",IF(OR('Blank - Request Form'!G95=\"0\",'Blank - Request Form'!G95=\"00000\",'Blank - Request Form'!G95=0),\"\",'Blank - Request Form'!G95),IF('Blank - Request Form'!$F$7=\"CIUGC\",IF(OR('Blank - Request Form'!P95=\"0\",'Blank - Request Form'!P95=\"00000\",'Blank - Request Form'!P95=0),\"\",'Blank - Request Form'!P95),\"\"))","v":""},{"$f":"IF('Blank - Request Form'!$F$6=\"CIUGC\",IF(OR('Blank - Request Form'!H95=\"0\",'Blank - Request Form'!H95=\"00000\",'Blank - Request Form'!H95=0),\"\",'Blank - Request Form'!H95),IF('Blank - Request Form'!$F$7=\"CIUGC\",IF(OR('Blank - Request Form'!Q95=\"0\",'Blank - Request Form'!Q95=\"00000\",'Blank - Request Form'!Q95=0),\"\",'Blank - Request Form'!Q95),\"\"))","v":""},{"$f":"IF('Blank - Request Form'!$F$6=\"CIUGC\",IF(OR('Blank - Request Form'!I95=\"0\",'Blank - Request Form'!I95=\"00000\",'Blank - Request Form'!I95=0),\"\",'Blank - Request Form'!I95),IF('Blank - Request Form'!$F$7=\"CIUGC\",IF(OR('Blank - Request Form'!R95=\"0\",'Blank - Request Form'!R95=\"00000\",'Blank - Request Form'!R95=0),\"\",'Blank - Request Form'!R95),\"\"))","v":""},null,{"$f":"IF('Blank - Request Form'!$F$6=\"CIUGC\",IF('Blank - Request Form'!K95=0,\"\",'Blank - Request Form'!K95),IF('Blank - Request Form'!$F$7=\"CIUGC\",IF('Blank - Request Form'!T95=0,\"\",'Blank - Request Form'!T95),\"\"))","v":""},null,null,null,{"$f":"IF(M61<>\"\",'Blank - Request Form'!$M$2,\"\")","v":""},{"$f":"IF('Blank - Request Form'!$F$6=\"CIUGC\",IF('Blank - Request Form'!J95=0,\"\",'Blank - Request Form'!J95),IF('Blank - Request Form'!$F$7=\"CIUGC\",IF('Blank - Request Form'!S95=0,\"\",'Blank - Request Form'!S95),\"\"))","v":""},"",61]
[{"$f":"IF('Blank - Request Form'!$F$6=\"CIUGC\",IF('Blank - Request Form'!D96=0,\"\",'Blank - Request Form'!D96),IF('Blank - Request Form'!$F$7=\"CIUGC\",IF('Blank - Request Form'!M96=0,\"\",'Blank - Request Form'!M96),\"\"))","v":""},{"$f":"IF('Blank - Request Form'!$F$6=\"CIUGC\",IF('Blank - Request Form'!E96=0,\"\",'Blank - Request Form'!E96),IF('Blank - Request Form'!$F$7=\"CIUGC\",IF('Blank - Request Form'!N96=0,\"\",'Blank - Request Form'!N96),\"\"))","v":""},{"$f":"IF('Blank - Request Form'!$F$6=\"CIUGC\",IF(OR('Blank - Request Form'!F96=\"000\",'Blank - Request Form'!F96=0),\"\",'Blank - Request Form'!F96),IF('Blank - Request Form'!$F$7=\"CIUGC\",IF(OR('Blank - Request Form'!O96=\"000\",'Blank - Request Form'!O96=0),\"\",'Blank - Request Form'!O96),\"\"))","v":""},{"$f":"IF('Blank - Request Form'!$F$6=\"CIUGC\",IF(OR('Blank - Request Form'!G96=\"0\",'Blank - Request Form'!G96=\"00000\",'Blank - Request Form'!G96=0),\"\",'Blank - Request Form'!G96),IF('Blank - Request Form'!$F$7=\"CIUGC\",IF(OR('Blank - Request Form'!P96=\"0\",'Blank - Request Form'!P96=\"00000\",'Blank - Request Form'!P96=0),\"\",'Blank - Request Form'!P96),\"\"))","v":""},{"$f":"IF('Blank - Request Form'!$F$6=\"CIUGC\",IF(OR('Blank - Request Form'!H96=\"0\",'Blank - Request Form'!H96=\"00000\",'Blank - Request Form'!H96=0),\"\",'Blank - Request Form'!H96),IF('Blank - Request Form'!$F$7=\"CIUGC\",IF(OR('Blank - Request Form'!Q96=\"0\",'Blank - Request Form'!Q96=\"00000\",'Blank - Request Form'!Q96=0),\"\",'Blank - Request Form'!Q96),\"\"))","v":""},{"$f":"IF('Blank - Request Form'!$F$6=\"CIUGC\",IF(OR('Blank - Request Form'!I96=\"0\",'Blank - Request Form'!I96=\"00000\",'Blank - Request Form'!I96=0),\"\",'Blank - Request Form'!I96),IF('Blank - Request Form'!$F$7=\"CIUGC\",IF(OR('Blank - Request Form'!R96=\"0\",'Blank - Request Form'!R96=\"00000\",'Blank - Request Form'!R96=0),\"\",'Blank - Request Form'!R96),\"\"))","v":""},null,{"$f":"IF('Blank - Request Form'!$F$6=\"CIUGC\",IF('Blank - Request Form'!K96=0,\"\",'Blank - Request Form'!K96),IF('Blank - Request Form'!$F$7=\"CIUGC\",IF('Blank - Request Form'!T96=0,\"\",'Blank - Request Form'!T96),\"\"))","v":""},null,null,null,{"$f":"IF(M62<>\"\",'Blank - Request Form'!$M$2,\"\")","v":""},{"$f":"IF('Blank - Request Form'!$F$6=\"CIUGC\",IF('Blank - Request Form'!J96=0,\"\",'Blank - Request Form'!J96),IF('Blank - Request Form'!$F$7=\"CIUGC\",IF('Blank - Request Form'!S96=0,\"\",'Blank - Request Form'!S96),\"\"))","v":""},"",62]
[{"$f":"IF('Blank - Request Form'!$F$6=\"CIUGC\",IF('Blank - Request Form'!D97=0,\"\",'Blank - Request Form'!D97),IF('Blank - Request Form'!$F$7=\"CIUGC\",IF('Blank - Request Form'!M97=0,\"\",'Blank - Request Form'!M97),\"\"))","v":""},{"$f":"IF('Blank - Request Form'!$F$6=\"CIUGC\",IF('Blank - Request Form'!E97=0,\"\",'Blank - Request Form'!E97),IF('Blank - Request Form'!$F$7=\"CIUGC\",IF('Blank - Request Form'!N97=0,\"\",'Blank - Request Form'!N97),\"\"))","v":""},{"$f":"IF('Blank - Request Form'!$F$6=\"CIUGC\",IF(OR('Blank - Request Form'!F97=\"000\",'Blank - Request Form'!F97=0),\"\",'Blank - Request Form'!F97),IF('Blank - Request Form'!$F$7=\"CIUGC\",IF(OR('Blank - Request Form'!O97=\"000\",'Blank - Request Form'!O97=0),\"\",'Blank - Request Form'!O97),\"\"))","v":""},{"$f":"IF('Blank - Request Form'!$F$6=\"CIUGC\",IF(OR('Blank - Request Form'!G97=\"0\",'Blank - Request Form'!G97=\"00000\",'Blank - Request Form'!G97=0),\"\",'Blank - Request Form'!G97),IF('Blank - Request Form'!$F$7=\"CIUGC\",IF(OR('Blank - Request Form'!P97=\"0\",'Blank - Request Form'!P97=\"00000\",'Blank - Request Form'!P97=0),\"\",'Blank - Request Form'!P97),\"\"))","v":""},{"$f":"IF('Blank - Request Form'!$F$6=\"CIUGC\",IF(OR('Blank - Request Form'!H97=\"0\",'Blank - Request Form'!H97=\"00000\",'Blank - Request Form'!H97=0),\"\",'Blank - Request Form'!H97),IF('Blank - Request Form'!$F$7=\"CIUGC\",IF(OR('Blank - Request Form'!Q97=\"0\",'Blank - Request Form'!Q97=\"00000\",'Blank - Request Form'!Q97=0),\"\",'Blank - Request Form'!Q97),\"\"))","v":""},{"$f":"IF('Blank - Request Form'!$F$6=\"CIUGC\",IF(OR('Blank - Request Form'!I97=\"0\",'Blank - Request Form'!I97=\"00000\",'Blank - Request Form'!I97=0),\"\",'Blank - Request Form'!I97),IF('Blank - Request Form'!$F$7=\"CIUGC\",IF(OR('Blank - Request Form'!R97=\"0\",'Blank - Request Form'!R97=\"00000\",'Blank - Request Form'!R97=0),\"\",'Blank - Request Form'!R97),\"\"))","v":""},null,{"$f":"IF('Blank - Request Form'!$F$6=\"CIUGC\",IF('Blank - Request Form'!K97=0,\"\",'Blank - Request Form'!K97),IF('Blank - Request Form'!$F$7=\"CIUGC\",IF('Blank - Request Form'!T97=0,\"\",'Blank - Request Form'!T97),\"\"))","v":""},null,null,null,{"$f":"IF(M63<>\"\",'Blank - Request Form'!$M$2,\"\")","v":""},{"$f":"IF('Blank - Request Form'!$F$6=\"CIUGC\",IF('Blank - Request Form'!J97=0,\"\",'Blank - Request Form'!J97),IF('Blank - Request Form'!$F$7=\"CIUGC\",IF('Blank - Request Form'!S97=0,\"\",'Blank - Request Form'!S97),\"\"))","v":""},"",63]
[{"$f":"IF('Blank - Request Form'!$F$6=\"CIUGC\",IF('Blank - Request Form'!D98=0,\"\",'Blank - Request Form'!D98),IF('Blank - Request Form'!$F$7=\"CIUGC\",IF('Blank - Request Form'!M98=0,\"\",'Blank - Request Form'!M98),\"\"))","v":""},{"$f":"IF('Blank - Request Form'!$F$6=\"CIUGC\",IF('Blank - Request Form'!E98=0,\"\",'Blank - Request Form'!E98),IF('Blank - Request Form'!$F$7=\"CIUGC\",IF('Blank - Request Form'!N98=0,\"\",'Blank - Request Form'!N98),\"\"))","v":""},{"$f":"IF('Blank - Request Form'!$F$6=\"CIUGC\",IF(OR('Blank - Request Form'!F98=\"000\",'Blank - Request Form'!F98=0),\"\",'Blank - Request Form'!F98),IF('Blank - Request Form'!$F$7=\"CIUGC\",IF(OR('Blank - Request Form'!O98=\"000\",'Blank - Request Form'!O98=0),\"\",'Blank - Request Form'!O98),\"\"))","v":""},{"$f":"IF('Blank - Request Form'!$F$6=\"CIUGC\",IF(OR('Blank - Request Form'!G98=\"0\",'Blank - Request Form'!G98=\"00000\",'Blank - Request Form'!G98=0),\"\",'Blank - Request Form'!G98),IF('Blank - Request Form'!$F$7=\"CIUGC\",IF(OR('Blank - Request Form'!P98=\"0\",'Blank - Request Form'!P98=\"00000\",'Blank - Request Form'!P98=0),\"\",'Blank - Request Form'!P98),\"\"))","v":""},{"$f":"IF('Blank - Request Form'!$F$6=\"CIUGC\",IF(OR('Blank - Request Form'!H98=\"0\",'Blank - Request Form'!H98=\"00000\",'Blank - Request Form'!H98=0),\"\",'Blank - Request Form'!H98),IF('Blank - Request Form'!$F$7=\"CIUGC\",IF(OR('Blank - Request Form'!Q98=\"0\",'Blank - Request Form'!Q98=\"00000\",'Blank - Request Form'!Q98=0),\"\",'Blank - Request Form'!Q98),\"\"))","v":""},{"$f":"IF('Blank - Request Form'!$F$6=\"CIUGC\",IF(OR('Blank - Request Form'!I98=\"0\",'Blank - Request Form'!I98=\"00000\",'Blank - Request Form'!I98=0),\"\",'Blank - Request Form'!I98),IF('Blank - Request Form'!$F$7=\"CIUGC\",IF(OR('Blank - Request Form'!R98=\"0\",'Blank - Request Form'!R98=\"00000\",'Blank - Request Form'!R98=0),\"\",'Blank - Request Form'!R98),\"\"))","v":""},null,{"$f":"IF('Blank - Request Form'!$F$6=\"CIUGC\",IF('Blank - Request Form'!K98=0,\"\",'Blank - Request Form'!K98),IF('Blank - Request Form'!$F$7=\"CIUGC\",IF('Blank - Request Form'!T98=0,\"\",'Blank - Request Form'!T98),\"\"))","v":""},null,null,null,{"$f":"IF(M64<>\"\",'Blank - Request Form'!$M$2,\"\")","v":""},{"$f":"IF('Blank - Request Form'!$F$6=\"CIUGC\",IF('Blank - Request Form'!J98=0,\"\",'Blank - Request Form'!J98),IF('Blank - Request Form'!$F$7=\"CIUGC\",IF('Blank - Request Form'!S98=0,\"\",'Blank - Request Form'!S98),\"\"))","v":""},"",64]
[{"$f":"IF('Blank - Request Form'!$F$6=\"CIUGC\",IF('Blank - Request Form'!D99=0,\"\",'Blank - Request Form'!D99),IF('Blank - Request Form'!$F$7=\"CIUGC\",IF('Blank - Request Form'!M99=0,\"\",'Blank - Request Form'!M99),\"\"))","v":""},{"$f":"IF('Blank - Request Form'!$F$6=\"CIUGC\",IF('Blank - Request Form'!E99=0,\"\",'Blank - Request Form'!E99),IF('Blank - Request Form'!$F$7=\"CIUGC\",IF('Blank - Request Form'!N99=0,\"\",'Blank - Request Form'!N99),\"\"))","v":""},{"$f":"IF('Blank - Request Form'!$F$6=\"CIUGC\",IF(OR('Blank - Request Form'!F99=\"000\",'Blank - Request Form'!F99=0),\"\",'Blank - Request Form'!F99),IF('Blank - Request Form'!$F$7=\"CIUGC\",IF(OR('Blank - Request Form'!O99=\"000\",'Blank - Request Form'!O99=0),\"\",'Blank - Request Form'!O99),\"\"))","v":""},{"$f":"IF('Blank - Request Form'!$F$6=\"CIUGC\",IF(OR('Blank - Request Form'!G99=\"0\",'Blank - Request Form'!G99=\"00000\",'Blank - Request Form'!G99=0),\"\",'Blank - Request Form'!G99),IF('Blank - Request Form'!$F$7=\"CIUGC\",IF(OR('Blank - Request Form'!P99=\"0\",'Blank - Request Form'!P99=\"00000\",'Blank - Request Form'!P99=0),\"\",'Blank - Request Form'!P99),\"\"))","v":""},{"$f":"IF('Blank - Request Form'!$F$6=\"CIUGC\",IF(OR('Blank - Request Form'!H99=\"0\",'Blank - Request Form'!H99=\"00000\",'Blank - Request Form'!H99=0),\"\",'Blank - Request Form'!H99),IF('Blank - Request Form'!$F$7=\"CIUGC\",IF(OR('Blank - Request Form'!Q99=\"0\",'Blank - Request Form'!Q99=\"00000\",'Blank - Request Form'!Q99=0),\"\",'Blank - Request Form'!Q99),\"\"))","v":""},{"$f":"IF('Blank - Request Form'!$F$6=\"CIUGC\",IF(OR('Blank - Request Form'!I99=\"0\",'Blank - Request Form'!I99=\"00000\",'Blank - Request Form'!I99=0),\"\",'Blank - Request Form'!I99),IF('Blank - Request Form'!$F$7=\"CIUGC\",IF(OR('Blank - Request Form'!R99=\"0\",'Blank - Request Form'!R99=\"00000\",'Blank - Request Form'!R99=0),\"\",'Blank - Request Form'!R99),\"\"))","v":""},null,{"$f":"IF('Blank - Request Form'!$F$6=\"CIUGC\",IF('Blank - Request Form'!K99=0,\"\",'Blank - Request Form'!K99),IF('Blank - Request Form'!$F$7=\"CIUGC\",IF('Blank - Request Form'!T99=0,\"\",'Blank - Request Form'!T99),\"\"))","v":""},null,null,null,{"$f":"IF(M65<>\"\",'Blank - Request Form'!$M$2,\"\")","v":""},{"$f":"IF('Blank - Request Form'!$F$6=\"CIUGC\",IF('Blank - Request Form'!J99=0,\"\",'Blank - Request Form'!J99),IF('Blank - Request Form'!$F$7=\"CIUGC\",IF('Blank - Request Form'!S99=0,\"\",'Blank - Request Form'!S99),\"\"))","v":""},"",65]
[{"$f":"IF('Blank - Request Form'!$F$6=\"CIUGC\",IF('Blank - Request Form'!D100=0,\"\",'Blank - Request Form'!D100),IF('Blank - Request Form'!$F$7=\"CIUGC\",IF('Blank - Request Form'!M100=0,\"\",'Blank - Request Form'!M100),\"\"))","v":""},{"$f":"IF('Blank - Request Form'!$F$6=\"CIUGC\",IF('Blank - Request Form'!E100=0,\"\",'Blank - Request Form'!E100),IF('Blank - Request Form'!$F$7=\"CIUGC\",IF('Blank - Request Form'!N100=0,\"\",'Blank - Request Form'!N100),\"\"))","v":""},{"$f":"IF('Blank - Request Form'!$F$6=\"CIUGC\",IF(OR('Blank - Request Form'!F100=\"000\",'Blank - Request Form'!F100=0),\"\",'Blank - Request Form'!F100),IF('Blank - Request Form'!$F$7=\"CIUGC\",IF(OR('Blank - Request Form'!O100=\"000\",'Blank - Request Form'!O100=0),\"\",'Blank - Request Form'!O100),\"\"))","v":""},{"$f":"IF('Blank - Request Form'!$F$6=\"CIUGC\",IF(OR('Blank - Request Form'!G100=\"0\",'Blank - Request Form'!G100=\"00000\",'Blank - Request Form'!G100=0),\"\",'Blank - Request Form'!G100),IF('Blank - Request Form'!$F$7=\"CIUGC\",IF(OR('Blank - Request Form'!P100=\"0\",'Blank - Request Form'!P100=\"00000\",'Blank - Request Form'!P100=0),\"\",'Blank - Request Form'!P100),\"\"))","v":""},{"$f":"IF('Blank - Request Form'!$F$6=\"CIUGC\",IF(OR('Blank - Request Form'!H100=\"0\",'Blank - Request Form'!H100=\"00000\",'Blank - Request Form'!H100=0),\"\",'Blank - Request Form'!H100),IF('Blank - Request Form'!$F$7=\"CIUGC\",IF(OR('Blank - Request Form'!Q100=\"0\",'Blank - Request Form'!Q100=\"00000\",'Blank - Request Form'!Q100=0),\"\",'Blank - Request Form'!Q100),\"\"))","v":""},{"$f":"IF('Blank - Request Form'!$F$6=\"CIUGC\",IF(OR('Blank - Request Form'!I100=\"0\",'Blank - Request Form'!I100=\"00000\",'Blank - Request Form'!I100=0),\"\",'Blank - Request Form'!I100),IF('Blank - Request Form'!$F$7=\"CIUGC\",IF(OR('Blank - Request Form'!R100=\"0\",'Blank - Request Form'!R100=\"00000\",'Blank - Request Form'!R100=0),\"\",'Blank - Request Form'!R100),\"\"))","v":""},null,{"$f":"IF('Blank - Request Form'!$F$6=\"CIUGC\",IF('Blank - Request Form'!K100=0,\"\",'Blank - Request Form'!K100),IF('Blank - Request Form'!$F$7=\"CIUGC\",IF('Blank - Request Form'!T100=0,\"\",'Blank - Request Form'!T100),\"\"))","v":""},null,null,null,{"$f":"IF(M66<>\"\",'Blank - Request Form'!$M$2,\"\")","v":""},{"$f":"IF('Blank - Request Form'!$F$6=\"CIUGC\",IF('Blank - Request Form'!J100=0,\"\",'Blank - Request Form'!J100),IF('Blank - Request Form'!$F$7=\"CIUGC\",IF('Blank - Request Form'!S100=0,\"\",'Blank - Request Form'!S100),\"\"))","v":""},"",66]
[{"$f":"IF('Blank - Request Form'!$F$6=\"CIUGC\",IF('Blank - Request Form'!D101=0,\"\",'Blank - Request Form'!D101),IF('Blank - Request Form'!$F$7=\"CIUGC\",IF('Blank - Request Form'!M101=0,\"\",'Blank - Request Form'!M101),\"\"))","v":""},{"$f":"IF('Blank - Request Form'!$F$6=\"CIUGC\",IF('Blank - Request Form'!E101=0,\"\",'Blank - Request Form'!E101),IF('Blank - Request Form'!$F$7=\"CIUGC\",IF('Blank - Request Form'!N101=0,\"\",'Blank - Request Form'!N101),\"\"))","v":""},{"$f":"IF('Blank - Request Form'!$F$6=\"CIUGC\",IF(OR('Blank - Request Form'!F101=\"000\",'Blank - Request Form'!F101=0),\"\",'Blank - Request Form'!F101),IF('Blank - Request Form'!$F$7=\"CIUGC\",IF(OR('Blank - Request Form'!O101=\"000\",'Blank - Request Form'!O101=0),\"\",'Blank - Request Form'!O101),\"\"))","v":""},{"$f":"IF('Blank - Request Form'!$F$6=\"CIUGC\",IF(OR('Blank - Request Form'!G101=\"0\",'Blank - Request Form'!G101=\"00000\",'Blank - Request Form'!G101=0),\"\",'Blank - Request Form'!G101),IF('Blank - Request Form'!$F$7=\"CIUGC\",IF(OR('Blank - Request Form'!P101=\"0\",'Blank - Request Form'!P101=\"00000\",'Blank - Request Form'!P101=0),\"\",'Blank - Request Form'!P101),\"\"))","v":""},{"$f":"IF('Blank - Request Form'!$F$6=\"CIUGC\",IF(OR('Blank - Request Form'!H101=\"0\",'Blank - Request Form'!H101=\"00000\",'Blank - Request Form'!H101=0),\"\",'Blank - Request Form'!H101),IF('Blank - Request Form'!$F$7=\"CIUGC\",IF(OR('Blank - Request Form'!Q101=\"0\",'Blank - Request Form'!Q101=\"00000\",'Blank - Request Form'!Q101=0),\"\",'Blank - Request Form'!Q101),\"\"))","v":""},{"$f":"IF('Blank - Request Form'!$F$6=\"CIUGC\",IF(OR('Blank - Request Form'!I101=\"0\",'Blank - Request Form'!I101=\"00000\",'Blank - Request Form'!I101=0),\"\",'Blank - Request Form'!I101),IF('Blank - Request Form'!$F$7=\"CIUGC\",IF(OR('Blank - Request Form'!R101=\"0\",'Blank - Request Form'!R101=\"00000\",'Blank - Request Form'!R101=0),\"\",'Blank - Request Form'!R101),\"\"))","v":""},null,{"$f":"IF('Blank - Request Form'!$F$6=\"CIUGC\",IF('Blank - Request Form'!K101=0,\"\",'Blank - Request Form'!K101),IF('Blank - Request Form'!$F$7=\"CIUGC\",IF('Blank - Request Form'!T101=0,\"\",'Blank - Request Form'!T101),\"\"))","v":""},null,null,null,{"$f":"IF(M67<>\"\",'Blank - Request Form'!$M$2,\"\")","v":""},{"$f":"IF('Blank - Request Form'!$F$6=\"CIUGC\",IF('Blank - Request Form'!J101=0,\"\",'Blank - Request Form'!J101),IF('Blank - Request Form'!$F$7=\"CIUGC\",IF('Blank - Request Form'!S101=0,\"\",'Blank - Request Form'!S101),\"\"))","v":""},"",67]
[{"$f":"IF('Blank - Request Form'!$F$6=\"CIUGC\",IF('Blank - Request Form'!D102=0,\"\",'Blank - Request Form'!D102),IF('Blank - Request Form'!$F$7=\"CIUGC\",IF('Blank - Request Form'!M102=0,\"\",'Blank - Request Form'!M102),\"\"))","v":""},{"$f":"IF('Blank - Request Form'!$F$6=\"CIUGC\",IF('Blank - Request Form'!E102=0,\"\",'Blank - Request Form'!E102),IF('Blank - Request Form'!$F$7=\"CIUGC\",IF('Blank - Request Form'!N102=0,\"\",'Blank - Request Form'!N102),\"\"))","v":""},{"$f":"IF('Blank - Request Form'!$F$6=\"CIUGC\",IF(OR('Blank - Request Form'!F102=\"000\",'Blank - Request Form'!F102=0),\"\",'Blank - Request Form'!F102),IF('Blank - Request Form'!$F$7=\"CIUGC\",IF(OR('Blank - Request Form'!O102=\"000\",'Blank - Request Form'!O102=0),\"\",'Blank - Request Form'!O102),\"\"))","v":""},{"$f":"IF('Blank - Request Form'!$F$6=\"CIUGC\",IF(OR('Blank - Request Form'!G102=\"0\",'Blank - Request Form'!G102=\"00000\",'Blank - Request Form'!G102=0),\"\",'Blank - Request Form'!G102),IF('Blank - Request Form'!$F$7=\"CIUGC\",IF(OR('Blank - Request Form'!P102=\"0\",'Blank - Request Form'!P102=\"00000\",'Blank - Request Form'!P102=0),\"\",'Blank - Request Form'!P102),\"\"))","v":""},{"$f":"IF('Blank - Request Form'!$F$6=\"CIUGC\",IF(OR('Blank - Request Form'!H102=\"0\",'Blank - Request Form'!H102=\"00000\",'Blank - Request Form'!H102=0),\"\",'Blank - Request Form'!H102),IF('Blank - Request Form'!$F$7=\"CIUGC\",IF(OR('Blank - Request Form'!Q102=\"0\",'Blank - Request Form'!Q102=\"00000\",'Blank - Request Form'!Q102=0),\"\",'Blank - Request Form'!Q102),\"\"))","v":""},{"$f":"IF('Blank - Request Form'!$F$6=\"CIUGC\",IF(OR('Blank - Request Form'!I102=\"0\",'Blank - Request Form'!I102=\"00000\",'Blank - Request Form'!I102=0),\"\",'Blank - Request Form'!I102),IF('Blank - Request Form'!$F$7=\"CIUGC\",IF(OR('Blank - Request Form'!R102=\"0\",'Blank - Request Form'!R102=\"00000\",'Blank - Request Form'!R102=0),\"\",'Blank - Request Form'!R102),\"\"))","v":""},null,{"$f":"IF('Blank - Request Form'!$F$6=\"CIUGC\",IF('Blank - Request Form'!K102=0,\"\",'Blank - Request Form'!K102),IF('Blank - Request Form'!$F$7=\"CIUGC\",IF('Blank - Request Form'!T102=0,\"\",'Blank - Request Form'!T102),\"\"))","v":""},null,null,null,{"$f":"IF(M68<>\"\",'Blank - Request Form'!$M$2,\"\")","v":""},{"$f":"IF('Blank - Request Form'!$F$6=\"CIUGC\",IF('Blank - Request Form'!J102=0,\"\",'Blank - Request Form'!J102),IF('Blank - Request Form'!$F$7=\"CIUGC\",IF('Blank - Request Form'!S102=0,\"\",'Blank - Request Form'!S102),\"\"))","v":""},"",68]
[{"$f":"IF('Blank - Request Form'!$F$6=\"CIUGC\",IF('Blank - Request Form'!D103=0,\"\",'Blank - Request Form'!D103),IF('Blank - Request Form'!$F$7=\"CIUGC\",IF('Blank - Request Form'!M103=0,\"\",'Blank - Request Form'!M103),\"\"))","v":""},{"$f":"IF('Blank - Request Form'!$F$6=\"CIUGC\",IF('Blank - Request Form'!E103=0,\"\",'Blank - Request Form'!E103),IF('Blank - Request Form'!$F$7=\"CIUGC\",IF('Blank - Request Form'!N103=0,\"\",'Blank - Request Form'!N103),\"\"))","v":""},{"$f":"IF('Blank - Request Form'!$F$6=\"CIUGC\",IF(OR('Blank - Request Form'!F103=\"000\",'Blank - Request Form'!F103=0),\"\",'Blank - Request Form'!F103),IF('Blank - Request Form'!$F$7=\"CIUGC\",IF(OR('Blank - Request Form'!O103=\"000\",'Blank - Request Form'!O103=0),\"\",'Blank - Request Form'!O103),\"\"))","v":""},{"$f":"IF('Blank - Request Form'!$F$6=\"CIUGC\",IF(OR('Blank - Request Form'!G103=\"0\",'Blank - Request Form'!G103=\"00000\",'Blank - Request Form'!G103=0),\"\",'Blank - Request Form'!G103),IF('Blank - Request Form'!$F$7=\"CIUGC\",IF(OR('Blank - Request Form'!P103=\"0\",'Blank - Request Form'!P103=\"00000\",'Blank - Request Form'!P103=0),\"\",'Blank - Request Form'!P103),\"\"))","v":""},{"$f":"IF('Blank - Request Form'!$F$6=\"CIUGC\",IF(OR('Blank - Request Form'!H103=\"0\",'Blank - Request Form'!H103=\"00000\",'Blank - Request Form'!H103=0),\"\",'Blank - Request Form'!H103),IF('Blank - Request Form'!$F$7=\"CIUGC\",IF(OR('Blank - Request Form'!Q103=\"0\",'Blank - Request Form'!Q103=\"00000\",'Blank - Request Form'!Q103=0),\"\",'Blank - Request Form'!Q103),\"\"))","v":""},{"$f":"IF('Blank - Request Form'!$F$6=\"CIUGC\",IF(OR('Blank - Request Form'!I103=\"0\",'Blank - Request Form'!I103=\"00000\",'Blank - Request Form'!I103=0),\"\",'Blank - Request Form'!I103),IF('Blank - Request Form'!$F$7=\"CIUGC\",IF(OR('Blank - Request Form'!R103=\"0\",'Blank - Request Form'!R103=\"00000\",'Blank - Request Form'!R103=0),\"\",'Blank - Request Form'!R103),\"\"))","v":""},null,{"$f":"IF('Blank - Request Form'!$F$6=\"CIUGC\",IF('Blank - Request Form'!K103=0,\"\",'Blank - Request Form'!K103),IF('Blank - Request Form'!$F$7=\"CIUGC\",IF('Blank - Request Form'!T103=0,\"\",'Blank - Request Form'!T103),\"\"))","v":""},null,null,null,{"$f":"IF(M69<>\"\",'Blank - Request Form'!$M$2,\"\")","v":""},{"$f":"IF('Blank - Request Form'!$F$6=\"CIUGC\",IF('Blank - Request Form'!J103=0,\"\",'Blank - Request Form'!J103),IF('Blank - Request Form'!$F$7=\"CIUGC\",IF('Blank - Request Form'!S103=0,\"\",'Blank - Request Form'!S103),\"\"))","v":""},"",69]
[{"$f":"IF('Blank - Request Form'!$F$6=\"CIUGC\",IF('Blank - Request Form'!D104=0,\"\",'Blank - Request Form'!D104),IF('Blank - Request Form'!$F$7=\"CIUGC\",IF('Blank - Request Form'!M104=0,\"\",'Blank - Request Form'!M104),\"\"))","v":""},{"$f":"IF('Blank - Request Form'!$F$6=\"CIUGC\",IF('Blank - Request Form'!E104=0,\"\",'Blank - Request Form'!E104),IF('Blank - Request Form'!$F$7=\"CIUGC\",IF('Blank - Request Form'!N104=0,\"\",'Blank - Request Form'!N104),\"\"))","v":""},{"$f":"IF('Blank - Request Form'!$F$6=\"CIUGC\",IF(OR('Blank - Request Form'!F104=\"000\",'Blank - Request Form'!F104=0),\"\",'Blank - Request Form'!F104),IF('Blank - Request Form'!$F$7=\"CIUGC\",IF(OR('Blank - Request Form'!O104=\"000\",'Blank - Request Form'!O104=0),\"\",'Blank - Request Form'!O104),\"\"))","v":""},{"$f":"IF('Blank - Request Form'!$F$6=\"CIUGC\",IF(OR('Blank - Request Form'!G104=\"0\",'Blank - Request Form'!G104=\"00000\",'Blank - Request Form'!G104=0),\"\",'Blank - Request Form'!G104),IF('Blank - Request Form'!$F$7=\"CIUGC\",IF(OR('Blank - Request Form'!P104=\"0\",'Blank - Request Form'!P104=\"00000\",'Blank - Request Form'!P104=0),\"\",'Blank - Request Form'!P104),\"\"))","v":""},{"$f":"IF('Blank - Request Form'!$F$6=\"CIUGC\",IF(OR('Blank - Request Form'!H104=\"0\",'Blank - Request Form'!H104=\"00000\",'Blank - Request Form'!H104=0),\"\",'Blank - Request Form'!H104),IF('Blank - Request Form'!$F$7=\"CIUGC\",IF(OR('Blank - Request Form'!Q104=\"0\",'Blank - Request Form'!Q104=\"00000\",'Blank - Request Form'!Q104=0),\"\",'Blank - Request Form'!Q104),\"\"))","v":""},{"$f":"IF('Blank - Request Form'!$F$6=\"CIUGC\",IF(OR('Blank - Request Form'!I104=\"0\",'Blank - Request Form'!I104=\"00000\",'Blank - Request Form'!I104=0),\"\",'Blank - Request Form'!I104),IF('Blank - Request Form'!$F$7=\"CIUGC\",IF(OR('Blank - Request Form'!R104=\"0\",'Blank - Request Form'!R104=\"00000\",'Blank - Request Form'!R104=0),\"\",'Blank - Request Form'!R104),\"\"))","v":""},null,{"$f":"IF('Blank - Request Form'!$F$6=\"CIUGC\",IF('Blank - Request Form'!K104=0,\"\",'Blank - Request Form'!K104),IF('Blank - Request Form'!$F$7=\"CIUGC\",IF('Blank - Request Form'!T104=0,\"\",'Blank - Request Form'!T104),\"\"))","v":""},null,null,null,{"$f":"IF(M70<>\"\",'Blank - Request Form'!$M$2,\"\")","v":""},{"$f":"IF('Blank - Request Form'!$F$6=\"CIUGC\",IF('Blank - Request Form'!J104=0,\"\",'Blank - Request Form'!J104),IF('Blank - Request Form'!$F$7=\"CIUGC\",IF('Blank - Request Form'!S104=0,\"\",'Blank - Request Form'!S104),\"\"))","v":""},"",70]
[{"$f":"IF('Blank - Request Form'!$F$6=\"CIUGC\",IF('Blank - Request Form'!D105=0,\"\",'Blank - Request Form'!D105),IF('Blank - Request Form'!$F$7=\"CIUGC\",IF('Blank - Request Form'!M105=0,\"\",'Blank - Request Form'!M105),\"\"))","v":""},{"$f":"IF('Blank - Request Form'!$F$6=\"CIUGC\",IF('Blank - Request Form'!E105=0,\"\",'Blank - Request Form'!E105),IF('Blank - Request Form'!$F$7=\"CIUGC\",IF('Blank - Request Form'!N105=0,\"\",'Blank - Request Form'!N105),\"\"))","v":""},{"$f":"IF('Blank - Request Form'!$F$6=\"CIUGC\",IF(OR('Blank - Request Form'!F105=\"000\",'Blank - Request Form'!F105=0),\"\",'Blank - Request Form'!F105),IF('Blank - Request Form'!$F$7=\"CIUGC\",IF(OR('Blank - Request Form'!O105=\"000\",'Blank - Request Form'!O105=0),\"\",'Blank - Request Form'!O105),\"\"))","v":""},{"$f":"IF('Blank - Request Form'!$F$6=\"CIUGC\",IF(OR('Blank - Request Form'!G105=\"0\",'Blank - Request Form'!G105=\"00000\",'Blank - Request Form'!G105=0),\"\",'Blank - Request Form'!G105),IF('Blank - Request Form'!$F$7=\"CIUGC\",IF(OR('Blank - Request Form'!P105=\"0\",'Blank - Request Form'!P105=\"00000\",'Blank - Request Form'!P105=0),\"\",'Blank - Request Form'!P105),\"\"))","v":""},{"$f":"IF('Blank - Request Form'!$F$6=\"CIUGC\",IF(OR('Blank - Request Form'!H105=\"0\",'Blank - Request Form'!H105=\"00000\",'Blank - Request Form'!H105=0),\"\",'Blank - Request Form'!H105),IF('Blank - Request Form'!$F$7=\"CIUGC\",IF(OR('Blank - Request Form'!Q105=\"0\",'Blank - Request Form'!Q105=\"00000\",'Blank - Request Form'!Q105=0),\"\",'Blank - Request Form'!Q105),\"\"))","v":""},{"$f":"IF('Blank - Request Form'!$F$6=\"CIUGC\",IF(OR('Blank - Request Form'!I105=\"0\",'Blank - Request Form'!I105=\"00000\",'Blank - Request Form'!I105=0),\"\",'Blank - Request Form'!I105),IF('Blank - Request Form'!$F$7=\"CIUGC\",IF(OR('Blank - Request Form'!R105=\"0\",'Blank - Request Form'!R105=\"00000\",'Blank - Request Form'!R105=0),\"\",'Blank - Request Form'!R105),\"\"))","v":""},null,{"$f":"IF('Blank - Request Form'!$F$6=\"CIUGC\",IF('Blank - Request Form'!K105=0,\"\",'Blank - Request Form'!K105),IF('Blank - Request Form'!$F$7=\"CIUGC\",IF('Blank - Request Form'!T105=0,\"\",'Blank - Request Form'!T105),\"\"))","v":""},null,null,null,{"$f":"IF(M71<>\"\",'Blank - Request Form'!$M$2,\"\")","v":""},{"$f":"IF('Blank - Request Form'!$F$6=\"CIUGC\",IF('Blank - Request Form'!J105=0,\"\",'Blank - Request Form'!J105),IF('Blank - Request Form'!$F$7=\"CIUGC\",IF('Blank - Request Form'!S105=0,\"\",'Blank - Request Form'!S105),\"\"))","v":""},"",71]
[{"$f":"IF('Blank - Request Form'!$F$6=\"CIUGC\",IF('Blank - Request Form'!D106=0,\"\",'Blank - Request Form'!D106),IF('Blank - Request Form'!$F$7=\"CIUGC\",IF('Blank - Request Form'!M106=0,\"\",'Blank - Request Form'!M106),\"\"))","v":""},{"$f":"IF('Blank - Request Form'!$F$6=\"CIUGC\",IF('Blank - Request Form'!E106=0,\"\",'Blank - Request Form'!E106),IF('Blank - Request Form'!$F$7=\"CIUGC\",IF('Blank - Request Form'!N106=0,\"\",'Blank - Request Form'!N106),\"\"))","v":""},{"$f":"IF('Blank - Request Form'!$F$6=\"CIUGC\",IF(OR('Blank - Request Form'!F106=\"000\",'Blank - Request Form'!F106=0),\"\",'Blank - Request Form'!F106),IF('Blank - Request Form'!$F$7=\"CIUGC\",IF(OR('Blank - Request Form'!O106=\"000\",'Blank - Request Form'!O106=0),\"\",'Blank - Request Form'!O106),\"\"))","v":""},{"$f":"IF('Blank - Request Form'!$F$6=\"CIUGC\",IF(OR('Blank - Request Form'!G106=\"0\",'Blank - Request Form'!G106=\"00000\",'Blank - Request Form'!G106=0),\"\",'Blank - Request Form'!G106),IF('Blank - Request Form'!$F$7=\"CIUGC\",IF(OR('Blank - Request Form'!P106=\"0\",'Blank - Request Form'!P106=\"00000\",'Blank - Request Form'!P106=0),\"\",'Blank - Request Form'!P106),\"\"))","v":""},{"$f":"IF('Blank - Request Form'!$F$6=\"CIUGC\",IF(OR('Blank - Request Form'!H106=\"0\",'Blank - Request Form'!H106=\"00000\",'Blank - Request Form'!H106=0),\"\",'Blank - Request Form'!H106),IF('Blank - Request Form'!$F$7=\"CIUGC\",IF(OR('Blank - Request Form'!Q106=\"0\",'Blank - Request Form'!Q106=\"00000\",'Blank - Request Form'!Q106=0),\"\",'Blank - Request Form'!Q106),\"\"))","v":""},{"$f":"IF('Blank - Request Form'!$F$6=\"CIUGC\",IF(OR('Blank - Request Form'!I106=\"0\",'Blank - Request Form'!I106=\"00000\",'Blank - Request Form'!I106=0),\"\",'Blank - Request Form'!I106),IF('Blank - Request Form'!$F$7=\"CIUGC\",IF(OR('Blank - Request Form'!R106=\"0\",'Blank - Request Form'!R106=\"00000\",'Blank - Request Form'!R106=0),\"\",'Blank - Request Form'!R106),\"\"))","v":""},null,{"$f":"IF('Blank - Request Form'!$F$6=\"CIUGC\",IF('Blank - Request Form'!K106=0,\"\",'Blank - Request Form'!K106),IF('Blank - Request Form'!$F$7=\"CIUGC\",IF('Blank - Request Form'!T106=0,\"\",'Blank - Request Form'!T106),\"\"))","v":""},null,null,null,{"$f":"IF(M72<>\"\",'Blank - Request Form'!$M$2,\"\")","v":""},{"$f":"IF('Blank - Request Form'!$F$6=\"CIUGC\",IF('Blank - Request Form'!J106=0,\"\",'Blank - Request Form'!J106),IF('Blank - Request Form'!$F$7=\"CIUGC\",IF('Blank - Request Form'!S106=0,\"\",'Blank - Request Form'!S106),\"\"))","v":""},"",72]
[{"$f":"IF('Blank - Request Form'!$F$6=\"CIUGC\",IF('Blank - Request Form'!D107=0,\"\",'Blank - Request Form'!D107),IF('Blank - Request Form'!$F$7=\"CIUGC\",IF('Blank - Request Form'!M107=0,\"\",'Blank - Request Form'!M107),\"\"))","v":""},{"$f":"IF('Blank - Request Form'!$F$6=\"CIUGC\",IF('Blank - Request Form'!E107=0,\"\",'Blank - Request Form'!E107),IF('Blank - Request Form'!$F$7=\"CIUGC\",IF('Blank - Request Form'!N107=0,\"\",'Blank - Request Form'!N107),\"\"))","v":""},{"$f":"IF('Blank - Request Form'!$F$6=\"CIUGC\",IF(OR('Blank - Request Form'!F107=\"000\",'Blank - Request Form'!F107=0),\"\",'Blank - Request Form'!F107),IF('Blank - Request Form'!$F$7=\"CIUGC\",IF(OR('Blank - Request Form'!O107=\"000\",'Blank - Request Form'!O107=0),\"\",'Blank - Request Form'!O107),\"\"))","v":""},{"$f":"IF('Blank - Request Form'!$F$6=\"CIUGC\",IF(OR('Blank - Request Form'!G107=\"0\",'Blank - Request Form'!G107=\"00000\",'Blank - Request Form'!G107=0),\"\",'Blank - Request Form'!G107),IF('Blank - Request Form'!$F$7=\"CIUGC\",IF(OR('Blank - Request Form'!P107=\"0\",'Blank - Request Form'!P107=\"00000\",'Blank - Request Form'!P107=0),\"\",'Blank - Request Form'!P107),\"\"))","v":""},{"$f":"IF('Blank - Request Form'!$F$6=\"CIUGC\",IF(OR('Blank - Request Form'!H107=\"0\",'Blank - Request Form'!H107=\"00000\",'Blank - Request Form'!H107=0),\"\",'Blank - Request Form'!H107),IF('Blank - Request Form'!$F$7=\"CIUGC\",IF(OR('Blank - Request Form'!Q107=\"0\",'Blank - Request Form'!Q107=\"00000\",'Blank - Request Form'!Q107=0),\"\",'Blank - Request Form'!Q107),\"\"))","v":""},{"$f":"IF('Blank - Request Form'!$F$6=\"CIUGC\",IF(OR('Blank - Request Form'!I107=\"0\",'Blank - Request Form'!I107=\"00000\",'Blank - Request Form'!I107=0),\"\",'Blank - Request Form'!I107),IF('Blank - Request Form'!$F$7=\"CIUGC\",IF(OR('Blank - Request Form'!R107=\"0\",'Blank - Request Form'!R107=\"00000\",'Blank - Request Form'!R107=0),\"\",'Blank - Request Form'!R107),\"\"))","v":""},null,{"$f":"IF('Blank - Request Form'!$F$6=\"CIUGC\",IF('Blank - Request Form'!K107=0,\"\",'Blank - Request Form'!K107),IF('Blank - Request Form'!$F$7=\"CIUGC\",IF('Blank - Request Form'!T107=0,\"\",'Blank - Request Form'!T107),\"\"))","v":""},null,null,null,{"$f":"IF(M73<>\"\",'Blank - Request Form'!$M$2,\"\")","v":""},{"$f":"IF('Blank - Request Form'!$F$6=\"CIUGC\",IF('Blank - Request Form'!J107=0,\"\",'Blank - Request Form'!J107),IF('Blank - Request Form'!$F$7=\"CIUGC\",IF('Blank - Request Form'!S107=0,\"\",'Blank - Request Form'!S107),\"\"))","v":""},"",73]
[{"$f":"IF('Blank - Request Form'!$F$6=\"CIUGC\",IF('Blank - Request Form'!D108=0,\"\",'Blank - Request Form'!D108),IF('Blank - Request Form'!$F$7=\"CIUGC\",IF('Blank - Request Form'!M108=0,\"\",'Blank - Request Form'!M108),\"\"))","v":""},{"$f":"IF('Blank - Request Form'!$F$6=\"CIUGC\",IF('Blank - Request Form'!E108=0,\"\",'Blank - Request Form'!E108),IF('Blank - Request Form'!$F$7=\"CIUGC\",IF('Blank - Request Form'!N108=0,\"\",'Blank - Request Form'!N108),\"\"))","v":""},{"$f":"IF('Blank - Request Form'!$F$6=\"CIUGC\",IF(OR('Blank - Request Form'!F108=\"000\",'Blank - Request Form'!F108=0),\"\",'Blank - Request Form'!F108),IF('Blank - Request Form'!$F$7=\"CIUGC\",IF(OR('Blank - Request Form'!O108=\"000\",'Blank - Request Form'!O108=0),\"\",'Blank - Request Form'!O108),\"\"))","v":""},{"$f":"IF('Blank - Request Form'!$F$6=\"CIUGC\",IF(OR('Blank - Request Form'!G108=\"0\",'Blank - Request Form'!G108=\"00000\",'Blank - Request Form'!G108=0),\"\",'Blank - Request Form'!G108),IF('Blank - Request Form'!$F$7=\"CIUGC\",IF(OR('Blank - Request Form'!P108=\"0\",'Blank - Request Form'!P108=\"00000\",'Blank - Request Form'!P108=0),\"\",'Blank - Request Form'!P108),\"\"))","v":""},{"$f":"IF('Blank - Request Form'!$F$6=\"CIUGC\",IF(OR('Blank - Request Form'!H108=\"0\",'Blank - Request Form'!H108=\"00000\",'Blank - Request Form'!H108=0),\"\",'Blank - Request Form'!H108),IF('Blank - Request Form'!$F$7=\"CIUGC\",IF(OR('Blank - Request Form'!Q108=\"0\",'Blank - Request Form'!Q108=\"00000\",'Blank - Request Form'!Q108=0),\"\",'Blank - Request Form'!Q108),\"\"))","v":""},{"$f":"IF('Blank - Request Form'!$F$6=\"CIUGC\",IF(OR('Blank - Request Form'!I108=\"0\",'Blank - Request Form'!I108=\"00000\",'Blank - Request Form'!I108=0),\"\",'Blank - Request Form'!I108),IF('Blank - Request Form'!$F$7=\"CIUGC\",IF(OR('Blank - Request Form'!R108=\"0\",'Blank - Request Form'!R108=\"00000\",'Blank - Request Form'!R108=0),\"\",'Blank - Request Form'!R108),\"\"))","v":""},null,{"$f":"IF('Blank - Request Form'!$F$6=\"CIUGC\",IF('Blank - Request Form'!K108=0,\"\",'Blank - Request Form'!K108),IF('Blank - Request Form'!$F$7=\"CIUGC\",IF('Blank - Request Form'!T108=0,\"\",'Blank - Request Form'!T108),\"\"))","v":""},null,null,null,{"$f":"IF(M74<>\"\",'Blank - Request Form'!$M$2,\"\")","v":""},{"$f":"IF('Blank - Request Form'!$F$6=\"CIUGC\",IF('Blank - Request Form'!J108=0,\"\",'Blank - Request Form'!J108),IF('Blank - Request Form'!$F$7=\"CIUGC\",IF('Blank - Request Form'!S108=0,\"\",'Blank - Request Form'!S108),\"\"))","v":""},"",74]
[{"$f":"IF('Blank - Request Form'!$F$6=\"CIUGC\",IF('Blank - Request Form'!D109=0,\"\",'Blank - Request Form'!D109),IF('Blank - Request Form'!$F$7=\"CIUGC\",IF('Blank - Request Form'!M109=0,\"\",'Blank - Request Form'!M109),\"\"))","v":""},{"$f":"IF('Blank - Request Form'!$F$6=\"CIUGC\",IF('Blank - Request Form'!E109=0,\"\",'Blank - Request Form'!E109),IF('Blank - Request Form'!$F$7=\"CIUGC\",IF('Blank - Request Form'!N109=0,\"\",'Blank - Request Form'!N109),\"\"))","v":""},{"$f":"IF('Blank - Request Form'!$F$6=\"CIUGC\",IF(OR('Blank - Request Form'!F109=\"000\",'Blank - Request Form'!F109=0),\"\",'Blank - Request Form'!F109),IF('Blank - Request Form'!$F$7=\"CIUGC\",IF(OR('Blank - Request Form'!O109=\"000\",'Blank - Request Form'!O109=0),\"\",'Blank - Request Form'!O109),\"\"))","v":""},{"$f":"IF('Blank - Request Form'!$F$6=\"CIUGC\",IF(OR('Blank - Request Form'!G109=\"0\",'Blank - Request Form'!G109=\"00000\",'Blank - Request Form'!G109=0),\"\",'Blank - Request Form'!G109),IF('Blank - Request Form'!$F$7=\"CIUGC\",IF(OR('Blank - Request Form'!P109=\"0\",'Blank - Request Form'!P109=\"00000\",'Blank - Request Form'!P109=0),\"\",'Blank - Request Form'!P109),\"\"))","v":""},{"$f":"IF('Blank - Request Form'!$F$6=\"CIUGC\",IF(OR('Blank - Request Form'!H109=\"0\",'Blank - Request Form'!H109=\"00000\",'Blank - Request Form'!H109=0),\"\",'Blank - Request Form'!H109),IF('Blank - Request Form'!$F$7=\"CIUGC\",IF(OR('Blank - Request Form'!Q109=\"0\",'Blank - Request Form'!Q109=\"00000\",'Blank - Request Form'!Q109=0),\"\",'Blank - Request Form'!Q109),\"\"))","v":""},{"$f":"IF('Blank - Request Form'!$F$6=\"CIUGC\",IF(OR('Blank - Request Form'!I109=\"0\",'Blank - Request Form'!I109=\"00000\",'Blank - Request Form'!I109=0),\"\",'Blank - Request Form'!I109),IF('Blank - Request Form'!$F$7=\"CIUGC\",IF(OR('Blank - Request Form'!R109=\"0\",'Blank - Request Form'!R109=\"00000\",'Blank - Request Form'!R109=0),\"\",'Blank - Request Form'!R109),\"\"))","v":""},null,{"$f":"IF('Blank - Request Form'!$F$6=\"CIUGC\",IF('Blank - Request Form'!K109=0,\"\",'Blank - Request Form'!K109),IF('Blank - Request Form'!$F$7=\"CIUGC\",IF('Blank - Request Form'!T109=0,\"\",'Blank - Request Form'!T109),\"\"))","v":""},null,null,null,{"$f":"IF(M75<>\"\",'Blank - Request Form'!$M$2,\"\")","v":""},{"$f":"IF('Blank - Request Form'!$F$6=\"CIUGC\",IF('Blank - Request Form'!J109=0,\"\",'Blank - Request Form'!J109),IF('Blank - Request Form'!$F$7=\"CIUGC\",IF('Blank - Request Form'!S109=0,\"\",'Blank - Request Form'!S109),\"\"))","v":""},"",75]
[{"$f":"IF('Blank - Request Form'!$F$6=\"CIUGC\",IF('Blank - Request Form'!D110=0,\"\",'Blank - Request Form'!D110),IF('Blank - Request Form'!$F$7=\"CIUGC\",IF('Blank - Request Form'!M110=0,\"\",'Blank - Request Form'!M110),\"\"))","v":""},{"$f":"IF('Blank - Request Form'!$F$6=\"CIUGC\",IF('Blank - Request Form'!E110=0,\"\",'Blank - Request Form'!E110),IF('Blank - Request Form'!$F$7=\"CIUGC\",IF('Blank - Request Form'!N110=0,\"\",'Blank - Request Form'!N110),\"\"))","v":""},{"$f":"IF('Blank - Request Form'!$F$6=\"CIUGC\",IF(OR('Blank - Request Form'!F110=\"000\",'Blank - Request Form'!F110=0),\"\",'Blank - Request Form'!F110),IF('Blank - Request Form'!$F$7=\"CIUGC\",IF(OR('Blank - Request Form'!O110=\"000\",'Blank - Request Form'!O110=0),\"\",'Blank - Request Form'!O110),\"\"))","v":""},{"$f":"IF('Blank - Request Form'!$F$6=\"CIUGC\",IF(OR('Blank - Request Form'!G110=\"0\",'Blank - Request Form'!G110=\"00000\",'Blank - Request Form'!G110=0),\"\",'Blank - Request Form'!G110),IF('Blank - Request Form'!$F$7=\"CIUGC\",IF(OR('Blank - Request Form'!P110=\"0\",'Blank - Request Form'!P110=\"00000\",'Blank - Request Form'!P110=0),\"\",'Blank - Request Form'!P110),\"\"))","v":""},{"$f":"IF('Blank - Request Form'!$F$6=\"CIUGC\",IF(OR('Blank - Request Form'!H110=\"0\",'Blank - Request Form'!H110=\"00000\",'Blank - Request Form'!H110=0),\"\",'Blank - Request Form'!H110),IF('Blank - Request Form'!$F$7=\"CIUGC\",IF(OR('Blank - Request Form'!Q110=\"0\",'Blank - Request Form'!Q110=\"00000\",'Blank - Request Form'!Q110=0),\"\",'Blank - Request Form'!Q110),\"\"))","v":""},{"$f":"IF('Blank - Request Form'!$F$6=\"CIUGC\",IF(OR('Blank - Request Form'!I110=\"0\",'Blank - Request Form'!I110=\"00000\",'Blank - Request Form'!I110=0),\"\",'Blank - Request Form'!I110),IF('Blank - Request Form'!$F$7=\"CIUGC\",IF(OR('Blank - Request Form'!R110=\"0\",'Blank - Request Form'!R110=\"00000\",'Blank - Request Form'!R110=0),\"\",'Blank - Request Form'!R110),\"\"))","v":""},null,{"$f":"IF('Blank - Request Form'!$F$6=\"CIUGC\",IF('Blank - Request Form'!K110=0,\"\",'Blank - Request Form'!K110),IF('Blank - Request Form'!$F$7=\"CIUGC\",IF('Blank - Request Form'!T110=0,\"\",'Blank - Request Form'!T110),\"\"))","v":""},null,null,null,{"$f":"IF(M76<>\"\",'Blank - Request Form'!$M$2,\"\")","v":""},{"$f":"IF('Blank - Request Form'!$F$6=\"CIUGC\",IF('Blank - Request Form'!J110=0,\"\",'Blank - Request Form'!J110),IF('Blank - Request Form'!$F$7=\"CIUGC\",IF('Blank - Request Form'!S110=0,\"\",'Blank - Request Form'!S110),\"\"))","v":""},"",76]
[{"$f":"IF('Blank - Request Form'!$F$6=\"CIUGC\",IF('Blank - Request Form'!D111=0,\"\",'Blank - Request Form'!D111),IF('Blank - Request Form'!$F$7=\"CIUGC\",IF('Blank - Request Form'!M111=0,\"\",'Blank - Request Form'!M111),\"\"))","v":""},{"$f":"IF('Blank - Request Form'!$F$6=\"CIUGC\",IF('Blank - Request Form'!E111=0,\"\",'Blank - Request Form'!E111),IF('Blank - Request Form'!$F$7=\"CIUGC\",IF('Blank - Request Form'!N111=0,\"\",'Blank - Request Form'!N111),\"\"))","v":""},{"$f":"IF('Blank - Request Form'!$F$6=\"CIUGC\",IF(OR('Blank - Request Form'!F111=\"000\",'Blank - Request Form'!F111=0),\"\",'Blank - Request Form'!F111),IF('Blank - Request Form'!$F$7=\"CIUGC\",IF(OR('Blank - Request Form'!O111=\"000\",'Blank - Request Form'!O111=0),\"\",'Blank - Request Form'!O111),\"\"))","v":""},{"$f":"IF('Blank - Request Form'!$F$6=\"CIUGC\",IF(OR('Blank - Request Form'!G111=\"0\",'Blank - Request Form'!G111=\"00000\",'Blank - Request Form'!G111=0),\"\",'Blank - Request Form'!G111),IF('Blank - Request Form'!$F$7=\"CIUGC\",IF(OR('Blank - Request Form'!P111=\"0\",'Blank - Request Form'!P111=\"00000\",'Blank - Request Form'!P111=0),\"\",'Blank - Request Form'!P111),\"\"))","v":""},{"$f":"IF('Blank - Request Form'!$F$6=\"CIUGC\",IF(OR('Blank - Request Form'!H111=\"0\",'Blank - Request Form'!H111=\"00000\",'Blank - Request Form'!H111=0),\"\",'Blank - Request Form'!H111),IF('Blank - Request Form'!$F$7=\"CIUGC\",IF(OR('Blank - Request Form'!Q111=\"0\",'Blank - Request Form'!Q111=\"00000\",'Blank - Request Form'!Q111=0),\"\",'Blank - Request Form'!Q111),\"\"))","v":""},{"$f":"IF('Blank - Request Form'!$F$6=\"CIUGC\",IF(OR('Blank - Request Form'!I111=\"0\",'Blank - Request Form'!I111=\"00000\",'Blank - Request Form'!I111=0),\"\",'Blank - Request Form'!I111),IF('Blank - Request Form'!$F$7=\"CIUGC\",IF(OR('Blank - Request Form'!R111=\"0\",'Blank - Request Form'!R111=\"00000\",'Blank - Request Form'!R111=0),\"\",'Blank - Request Form'!R111),\"\"))","v":""},null,{"$f":"IF('Blank - Request Form'!$F$6=\"CIUGC\",IF('Blank - Request Form'!K111=0,\"\",'Blank - Request Form'!K111),IF('Blank - Request Form'!$F$7=\"CIUGC\",IF('Blank - Request Form'!T111=0,\"\",'Blank - Request Form'!T111),\"\"))","v":""},null,null,null,{"$f":"IF(M77<>\"\",'Blank - Request Form'!$M$2,\"\")","v":""},{"$f":"IF('Blank - Request Form'!$F$6=\"CIUGC\",IF('Blank - Request Form'!J111=0,\"\",'Blank - Request Form'!J111),IF('Blank - Request Form'!$F$7=\"CIUGC\",IF('Blank - Request Form'!S111=0,\"\",'Blank - Request Form'!S111),\"\"))","v":""},"",77]
[{"$f":"IF('Blank - Request Form'!$F$6=\"CIUGC\",IF('Blank - Request Form'!D112=0,\"\",'Blank - Request Form'!D112),IF('Blank - Request Form'!$F$7=\"CIUGC\",IF('Blank - Request Form'!M112=0,\"\",'Blank - Request Form'!M112),\"\"))","v":""},{"$f":"IF('Blank - Request Form'!$F$6=\"CIUGC\",IF('Blank - Request Form'!E112=0,\"\",'Blank - Request Form'!E112),IF('Blank - Request Form'!$F$7=\"CIUGC\",IF('Blank - Request Form'!N112=0,\"\",'Blank - Request Form'!N112),\"\"))","v":""},{"$f":"IF('Blank - Request Form'!$F$6=\"CIUGC\",IF(OR('Blank - Request Form'!F112=\"000\",'Blank - Request Form'!F112=0),\"\",'Blank - Request Form'!F112),IF('Blank - Request Form'!$F$7=\"CIUGC\",IF(OR('Blank - Request Form'!O112=\"000\",'Blank - Request Form'!O112=0),\"\",'Blank - Request Form'!O112),\"\"))","v":""},{"$f":"IF('Blank - Request Form'!$F$6=\"CIUGC\",IF(OR('Blank - Request Form'!G112=\"0\",'Blank - Request Form'!G112=\"00000\",'Blank - Request Form'!G112=0),\"\",'Blank - Request Form'!G112),IF('Blank - Request Form'!$F$7=\"CIUGC\",IF(OR('Blank - Request Form'!P112=\"0\",'Blank - Request Form'!P112=\"00000\",'Blank - Request Form'!P112=0),\"\",'Blank - Request Form'!P112),\"\"))","v":""},{"$f":"IF('Blank - Request Form'!$F$6=\"CIUGC\",IF(OR('Blank - Request Form'!H112=\"0\",'Blank - Request Form'!H112=\"00000\",'Blank - Request Form'!H112=0),\"\",'Blank - Request Form'!H112),IF('Blank - Request Form'!$F$7=\"CIUGC\",IF(OR('Blank - Request Form'!Q112=\"0\",'Blank - Request Form'!Q112=\"00000\",'Blank - Request Form'!Q112=0),\"\",'Blank - Request Form'!Q112),\"\"))","v":""},{"$f":"IF('Blank - Request Form'!$F$6=\"CIUGC\",IF(OR('Blank - Request Form'!I112=\"0\",'Blank - Request Form'!I112=\"00000\",'Blank - Request Form'!I112=0),\"\",'Blank - Request Form'!I112),IF('Blank - Request Form'!$F$7=\"CIUGC\",IF(OR('Blank - Request Form'!R112=\"0\",'Blank - Request Form'!R112=\"00000\",'Blank - Request Form'!R112=0),\"\",'Blank - Request Form'!R112),\"\"))","v":""},null,{"$f":"IF('Blank - Request Form'!$F$6=\"CIUGC\",IF('Blank - Request Form'!K112=0,\"\",'Blank - Request Form'!K112),IF('Blank - Request Form'!$F$7=\"CIUGC\",IF('Blank - Request Form'!T112=0,\"\",'Blank - Request Form'!T112),\"\"))","v":""},null,null,null,{"$f":"IF(M78<>\"\",'Blank - Request Form'!$M$2,\"\")","v":""},{"$f":"IF('Blank - Request Form'!$F$6=\"CIUGC\",IF('Blank - Request Form'!J112=0,\"\",'Blank - Request Form'!J112),IF('Blank - Request Form'!$F$7=\"CIUGC\",IF('Blank - Request Form'!S112=0,\"\",'Blank - Request Form'!S112),\"\"))","v":""},"",78]
[{"$f":"IF('Blank - Request Form'!$F$6=\"CIUGC\",IF('Blank - Request Form'!D113=0,\"\",'Blank - Request Form'!D113),IF('Blank - Request Form'!$F$7=\"CIUGC\",IF('Blank - Request Form'!M113=0,\"\",'Blank - Request Form'!M113),\"\"))","v":""},{"$f":"IF('Blank - Request Form'!$F$6=\"CIUGC\",IF('Blank - Request Form'!E113=0,\"\",'Blank - Request Form'!E113),IF('Blank - Request Form'!$F$7=\"CIUGC\",IF('Blank - Request Form'!N113=0,\"\",'Blank - Request Form'!N113),\"\"))","v":""},{"$f":"IF('Blank - Request Form'!$F$6=\"CIUGC\",IF(OR('Blank - Request Form'!F113=\"000\",'Blank - Request Form'!F113=0),\"\",'Blank - Request Form'!F113),IF('Blank - Request Form'!$F$7=\"CIUGC\",IF(OR('Blank - Request Form'!O113=\"000\",'Blank - Request Form'!O113=0),\"\",'Blank - Request Form'!O113),\"\"))","v":""},{"$f":"IF('Blank - Request Form'!$F$6=\"CIUGC\",IF(OR('Blank - Request Form'!G113=\"0\",'Blank - Request Form'!G113=\"00000\",'Blank - Request Form'!G113=0),\"\",'Blank - Request Form'!G113),IF('Blank - Request Form'!$F$7=\"CIUGC\",IF(OR('Blank - Request Form'!P113=\"0\",'Blank - Request Form'!P113=\"00000\",'Blank - Request Form'!P113=0),\"\",'Blank - Request Form'!P113),\"\"))","v":""},{"$f":"IF('Blank - Request Form'!$F$6=\"CIUGC\",IF(OR('Blank - Request Form'!H113=\"0\",'Blank - Request Form'!H113=\"00000\",'Blank - Request Form'!H113=0),\"\",'Blank - Request Form'!H113),IF('Blank - Request Form'!$F$7=\"CIUGC\",IF(OR('Blank - Request Form'!Q113=\"0\",'Blank - Request Form'!Q113=\"00000\",'Blank - Request Form'!Q113=0),\"\",'Blank - Request Form'!Q113),\"\"))","v":""},{"$f":"IF('Blank - Request Form'!$F$6=\"CIUGC\",IF(OR('Blank - Request Form'!I113=\"0\",'Blank - Request Form'!I113=\"00000\",'Blank - Request Form'!I113=0),\"\",'Blank - Request Form'!I113),IF('Blank - Request Form'!$F$7=\"CIUGC\",IF(OR('Blank - Request Form'!R113=\"0\",'Blank - Request Form'!R113=\"00000\",'Blank - Request Form'!R113=0),\"\",'Blank - Request Form'!R113),\"\"))","v":""},null,{"$f":"IF('Blank - Request Form'!$F$6=\"CIUGC\",IF('Blank - Request Form'!K113=0,\"\",'Blank - Request Form'!K113),IF('Blank - Request Form'!$F$7=\"CIUGC\",IF('Blank - Request Form'!T113=0,\"\",'Blank - Request Form'!T113),\"\"))","v":""},null,null,null,{"$f":"IF(M79<>\"\",'Blank - Request Form'!$M$2,\"\")","v":""},{"$f":"IF('Blank - Request Form'!$F$6=\"CIUGC\",IF('Blank - Request Form'!J113=0,\"\",'Blank - Request Form'!J113),IF('Blank - Request Form'!$F$7=\"CIUGC\",IF('Blank - Request Form'!S113=0,\"\",'Blank - Request Form'!S113),\"\"))","v":""},"",79]
[{"$f":"IF('Blank - Request Form'!$F$6=\"CIUGC\",IF('Blank - Request Form'!D114=0,\"\",'Blank - Request Form'!D114),IF('Blank - Request Form'!$F$7=\"CIUGC\",IF('Blank - Request Form'!M114=0,\"\",'Blank - Request Form'!M114),\"\"))","v":""},{"$f":"IF('Blank - Request Form'!$F$6=\"CIUGC\",IF('Blank - Request Form'!E114=0,\"\",'Blank - Request Form'!E114),IF('Blank - Request Form'!$F$7=\"CIUGC\",IF('Blank - Request Form'!N114=0,\"\",'Blank - Request Form'!N114),\"\"))","v":""},{"$f":"IF('Blank - Request Form'!$F$6=\"CIUGC\",IF(OR('Blank - Request Form'!F114=\"000\",'Blank - Request Form'!F114=0),\"\",'Blank - Request Form'!F114),IF('Blank - Request Form'!$F$7=\"CIUGC\",IF(OR('Blank - Request Form'!O114=\"000\",'Blank - Request Form'!O114=0),\"\",'Blank - Request Form'!O114),\"\"))","v":""},{"$f":"IF('Blank - Request Form'!$F$6=\"CIUGC\",IF(OR('Blank - Request Form'!G114=\"0\",'Blank - Request Form'!G114=\"00000\",'Blank - Request Form'!G114=0),\"\",'Blank - Request Form'!G114),IF('Blank - Request Form'!$F$7=\"CIUGC\",IF(OR('Blank - Request Form'!P114=\"0\",'Blank - Request Form'!P114=\"00000\",'Blank - Request Form'!P114=0),\"\",'Blank - Request Form'!P114),\"\"))","v":""},{"$f":"IF('Blank - Request Form'!$F$6=\"CIUGC\",IF(OR('Blank - Request Form'!H114=\"0\",'Blank - Request Form'!H114=\"00000\",'Blank - Request Form'!H114=0),\"\",'Blank - Request Form'!H114),IF('Blank - Request Form'!$F$7=\"CIUGC\",IF(OR('Blank - Request Form'!Q114=\"0\",'Blank - Request Form'!Q114=\"00000\",'Blank - Request Form'!Q114=0),\"\",'Blank - Request Form'!Q114),\"\"))","v":""},{"$f":"IF('Blank - Request Form'!$F$6=\"CIUGC\",IF(OR('Blank - Request Form'!I114=\"0\",'Blank - Request Form'!I114=\"00000\",'Blank - Request Form'!I114=0),\"\",'Blank - Request Form'!I114),IF('Blank - Request Form'!$F$7=\"CIUGC\",IF(OR('Blank - Request Form'!R114=\"0\",'Blank - Request Form'!R114=\"00000\",'Blank - Request Form'!R114=0),\"\",'Blank - Request Form'!R114),\"\"))","v":""},null,{"$f":"IF('Blank - Request Form'!$F$6=\"CIUGC\",IF('Blank - Request Form'!K114=0,\"\",'Blank - Request Form'!K114),IF('Blank - Request Form'!$F$7=\"CIUGC\",IF('Blank - Request Form'!T114=0,\"\",'Blank - Request Form'!T114),\"\"))","v":""},null,null,null,{"$f":"IF(M80<>\"\",'Blank - Request Form'!$M$2,\"\")","v":""},{"$f":"IF('Blank - Request Form'!$F$6=\"CIUGC\",IF('Blank - Request Form'!J114=0,\"\",'Blank - Request Form'!J114),IF('Blank - Request Form'!$F$7=\"CIUGC\",IF('Blank - Request Form'!S114=0,\"\",'Blank - Request Form'!S114),\"\"))","v":""},"",80]
[{"$f":"IF('Blank - Request Form'!$F$6=\"CIUGC\",IF('Blank - Request Form'!D115=0,\"\",'Blank - Request Form'!D115),IF('Blank - Request Form'!$F$7=\"CIUGC\",IF('Blank - Request Form'!M115=0,\"\",'Blank - Request Form'!M115),\"\"))","v":""},{"$f":"IF('Blank - Request Form'!$F$6=\"CIUGC\",IF('Blank - Request Form'!E115=0,\"\",'Blank - Request Form'!E115),IF('Blank - Request Form'!$F$7=\"CIUGC\",IF('Blank - Request Form'!N115=0,\"\",'Blank - Request Form'!N115),\"\"))","v":""},{"$f":"IF('Blank - Request Form'!$F$6=\"CIUGC\",IF(OR('Blank - Request Form'!F115=\"000\",'Blank - Request Form'!F115=0),\"\",'Blank - Request Form'!F115),IF('Blank - Request Form'!$F$7=\"CIUGC\",IF(OR('Blank - Request Form'!O115=\"000\",'Blank - Request Form'!O115=0),\"\",'Blank - Request Form'!O115),\"\"))","v":""},{"$f":"IF('Blank - Request Form'!$F$6=\"CIUGC\",IF(OR('Blank - Request Form'!G115=\"0\",'Blank - Request Form'!G115=\"00000\",'Blank - Request Form'!G115=0),\"\",'Blank - Request Form'!G115),IF('Blank - Request Form'!$F$7=\"CIUGC\",IF(OR('Blank - Request Form'!P115=\"0\",'Blank - Request Form'!P115=\"00000\",'Blank - Request Form'!P115=0),\"\",'Blank - Request Form'!P115),\"\"))","v":""},{"$f":"IF('Blank - Request Form'!$F$6=\"CIUGC\",IF(OR('Blank - Request Form'!H115=\"0\",'Blank - Request Form'!H115=\"00000\",'Blank - Request Form'!H115=0),\"\",'Blank - Request Form'!H115),IF('Blank - Request Form'!$F$7=\"CIUGC\",IF(OR('Blank - Request Form'!Q115=\"0\",'Blank - Request Form'!Q115=\"00000\",'Blank - Request Form'!Q115=0),\"\",'Blank - Request Form'!Q115),\"\"))","v":""},{"$f":"IF('Blank - Request Form'!$F$6=\"CIUGC\",IF(OR('Blank - Request Form'!I115=\"0\",'Blank - Request Form'!I115=\"00000\",'Blank - Request Form'!I115=0),\"\",'Blank - Request Form'!I115),IF('Blank - Request Form'!$F$7=\"CIUGC\",IF(OR('Blank - Request Form'!R115=\"0\",'Blank - Request Form'!R115=\"00000\",'Blank - Request Form'!R115=0),\"\",'Blank - Request Form'!R115),\"\"))","v":""},null,{"$f":"IF('Blank - Request Form'!$F$6=\"CIUGC\",IF('Blank - Request Form'!K115=0,\"\",'Blank - Request Form'!K115),IF('Blank - Request Form'!$F$7=\"CIUGC\",IF('Blank - Request Form'!T115=0,\"\",'Blank - Request Form'!T115),\"\"))","v":""},null,null,null,{"$f":"IF(M81<>\"\",'Blank - Request Form'!$M$2,\"\")","v":""},{"$f":"IF('Blank - Request Form'!$F$6=\"CIUGC\",IF('Blank - Request Form'!J115=0,\"\",'Blank - Request Form'!J115),IF('Blank - Request Form'!$F$7=\"CIUGC\",IF('Blank - Request Form'!S115=0,\"\",'Blank - Request Form'!S115),\"\"))","v":""},"",81]
[{"$f":"IF('Blank - Request Form'!$F$6=\"CIUGC\",IF('Blank - Request Form'!D116=0,\"\",'Blank - Request Form'!D116),IF('Blank - Request Form'!$F$7=\"CIUGC\",IF('Blank - Request Form'!M116=0,\"\",'Blank - Request Form'!M116),\"\"))","v":""},{"$f":"IF('Blank - Request Form'!$F$6=\"CIUGC\",IF('Blank - Request Form'!E116=0,\"\",'Blank - Request Form'!E116),IF('Blank - Request Form'!$F$7=\"CIUGC\",IF('Blank - Request Form'!N116=0,\"\",'Blank - Request Form'!N116),\"\"))","v":""},{"$f":"IF('Blank - Request Form'!$F$6=\"CIUGC\",IF(OR('Blank - Request Form'!F116=\"000\",'Blank - Request Form'!F116=0),\"\",'Blank - Request Form'!F116),IF('Blank - Request Form'!$F$7=\"CIUGC\",IF(OR('Blank - Request Form'!O116=\"000\",'Blank - Request Form'!O116=0),\"\",'Blank - Request Form'!O116),\"\"))","v":""},{"$f":"IF('Blank - Request Form'!$F$6=\"CIUGC\",IF(OR('Blank - Request Form'!G116=\"0\",'Blank - Request Form'!G116=\"00000\",'Blank - Request Form'!G116=0),\"\",'Blank - Request Form'!G116),IF('Blank - Request Form'!$F$7=\"CIUGC\",IF(OR('Blank - Request Form'!P116=\"0\",'Blank - Request Form'!P116=\"00000\",'Blank - Request Form'!P116=0),\"\",'Blank - Request Form'!P116),\"\"))","v":""},{"$f":"IF('Blank - Request Form'!$F$6=\"CIUGC\",IF(OR('Blank - Request Form'!H116=\"0\",'Blank - Request Form'!H116=\"00000\",'Blank - Request Form'!H116=0),\"\",'Blank - Request Form'!H116),IF('Blank - Request Form'!$F$7=\"CIUGC\",IF(OR('Blank - Request Form'!Q116=\"0\",'Blank - Request Form'!Q116=\"00000\",'Blank - Request Form'!Q116=0),\"\",'Blank - Request Form'!Q116),\"\"))","v":""},{"$f":"IF('Blank - Request Form'!$F$6=\"CIUGC\",IF(OR('Blank - Request Form'!I116=\"0\",'Blank - Request Form'!I116=\"00000\",'Blank - Request Form'!I116=0),\"\",'Blank - Request Form'!I116),IF('Blank - Request Form'!$F$7=\"CIUGC\",IF(OR('Blank - Request Form'!R116=\"0\",'Blank - Request Form'!R116=\"00000\",'Blank - Request Form'!R116=0),\"\",'Blank - Request Form'!R116),\"\"))","v":""},null,{"$f":"IF('Blank - Request Form'!$F$6=\"CIUGC\",IF('Blank - Request Form'!K116=0,\"\",'Blank - Request Form'!K116),IF('Blank - Request Form'!$F$7=\"CIUGC\",IF('Blank - Request Form'!T116=0,\"\",'Blank - Request Form'!T116),\"\"))","v":""},null,null,null,{"$f":"IF(M82<>\"\",'Blank - Request Form'!$M$2,\"\")","v":""},{"$f":"IF('Blank - Request Form'!$F$6=\"CIUGC\",IF('Blank - Request Form'!J116=0,\"\",'Blank - Request Form'!J116),IF('Blank - Request Form'!$F$7=\"CIUGC\",IF('Blank - Request Form'!S116=0,\"\",'Blank - Request Form'!S116),\"\"))","v":""},"",82]
[{"$f":"IF('Blank - Request Form'!$F$6=\"CIUGC\",IF('Blank - Request Form'!D117=0,\"\",'Blank - Request Form'!D117),IF('Blank - Request Form'!$F$7=\"CIUGC\",IF('Blank - Request Form'!M117=0,\"\",'Blank - Request Form'!M117),\"\"))","v":""},{"$f":"IF('Blank - Request Form'!$F$6=\"CIUGC\",IF('Blank - Request Form'!E117=0,\"\",'Blank - Request Form'!E117),IF('Blank - Request Form'!$F$7=\"CIUGC\",IF('Blank - Request Form'!N117=0,\"\",'Blank - Request Form'!N117),\"\"))","v":""},{"$f":"IF('Blank - Request Form'!$F$6=\"CIUGC\",IF(OR('Blank - Request Form'!F117=\"000\",'Blank - Request Form'!F117=0),\"\",'Blank - Request Form'!F117),IF('Blank - Request Form'!$F$7=\"CIUGC\",IF(OR('Blank - Request Form'!O117=\"000\",'Blank - Request Form'!O117=0),\"\",'Blank - Request Form'!O117),\"\"))","v":""},{"$f":"IF('Blank - Request Form'!$F$6=\"CIUGC\",IF(OR('Blank - Request Form'!G117=\"0\",'Blank - Request Form'!G117=\"00000\",'Blank - Request Form'!G117=0),\"\",'Blank - Request Form'!G117),IF('Blank - Request Form'!$F$7=\"CIUGC\",IF(OR('Blank - Request Form'!P117=\"0\",'Blank - Request Form'!P117=\"00000\",'Blank - Request Form'!P117=0),\"\",'Blank - Request Form'!P117),\"\"))","v":""},{"$f":"IF('Blank - Request Form'!$F$6=\"CIUGC\",IF(OR('Blank - Request Form'!H117=\"0\",'Blank - Request Form'!H117=\"00000\",'Blank - Request Form'!H117=0),\"\",'Blank - Request Form'!H117),IF('Blank - Request Form'!$F$7=\"CIUGC\",IF(OR('Blank - Request Form'!Q117=\"0\",'Blank - Request Form'!Q117=\"00000\",'Blank - Request Form'!Q117=0),\"\",'Blank - Request Form'!Q117),\"\"))","v":""},{"$f":"IF('Blank - Request Form'!$F$6=\"CIUGC\",IF(OR('Blank - Request Form'!I117=\"0\",'Blank - Request Form'!I117=\"00000\",'Blank - Request Form'!I117=0),\"\",'Blank - Request Form'!I117),IF('Blank - Request Form'!$F$7=\"CIUGC\",IF(OR('Blank - Request Form'!R117=\"0\",'Blank - Request Form'!R117=\"00000\",'Blank - Request Form'!R117=0),\"\",'Blank - Request Form'!R117),\"\"))","v":""},null,{"$f":"IF('Blank - Request Form'!$F$6=\"CIUGC\",IF('Blank - Request Form'!K117=0,\"\",'Blank - Request Form'!K117),IF('Blank - Request Form'!$F$7=\"CIUGC\",IF('Blank - Request Form'!T117=0,\"\",'Blank - Request Form'!T117),\"\"))","v":""},null,null,null,{"$f":"IF(M83<>\"\",'Blank - Request Form'!$M$2,\"\")","v":""},{"$f":"IF('Blank - Request Form'!$F$6=\"CIUGC\",IF('Blank - Request Form'!J117=0,\"\",'Blank - Request Form'!J117),IF('Blank - Request Form'!$F$7=\"CIUGC\",IF('Blank - Request Form'!S117=0,\"\",'Blank - Request Form'!S117),\"\"))","v":""},"",83]
[{"$f":"IF('Blank - Request Form'!$F$6=\"CIUGC\",IF('Blank - Request Form'!D118=0,\"\",'Blank - Request Form'!D118),IF('Blank - Request Form'!$F$7=\"CIUGC\",IF('Blank - Request Form'!M118=0,\"\",'Blank - Request Form'!M118),\"\"))","v":""},{"$f":"IF('Blank - Request Form'!$F$6=\"CIUGC\",IF('Blank - Request Form'!E118=0,\"\",'Blank - Request Form'!E118),IF('Blank - Request Form'!$F$7=\"CIUGC\",IF('Blank - Request Form'!N118=0,\"\",'Blank - Request Form'!N118),\"\"))","v":""},{"$f":"IF('Blank - Request Form'!$F$6=\"CIUGC\",IF(OR('Blank - Request Form'!F118=\"000\",'Blank - Request Form'!F118=0),\"\",'Blank - Request Form'!F118),IF('Blank - Request Form'!$F$7=\"CIUGC\",IF(OR('Blank - Request Form'!O118=\"000\",'Blank - Request Form'!O118=0),\"\",'Blank - Request Form'!O118),\"\"))","v":""},{"$f":"IF('Blank - Request Form'!$F$6=\"CIUGC\",IF(OR('Blank - Request Form'!G118=\"0\",'Blank - Request Form'!G118=\"00000\",'Blank - Request Form'!G118=0),\"\",'Blank - Request Form'!G118),IF('Blank - Request Form'!$F$7=\"CIUGC\",IF(OR('Blank - Request Form'!P118=\"0\",'Blank - Request Form'!P118=\"00000\",'Blank - Request Form'!P118=0),\"\",'Blank - Request Form'!P118),\"\"))","v":""},{"$f":"IF('Blank - Request Form'!$F$6=\"CIUGC\",IF(OR('Blank - Request Form'!H118=\"0\",'Blank - Request Form'!H118=\"00000\",'Blank - Request Form'!H118=0),\"\",'Blank - Request Form'!H118),IF('Blank - Request Form'!$F$7=\"CIUGC\",IF(OR('Blank - Request Form'!Q118=\"0\",'Blank - Request Form'!Q118=\"00000\",'Blank - Request Form'!Q118=0),\"\",'Blank - Request Form'!Q118),\"\"))","v":""},{"$f":"IF('Blank - Request Form'!$F$6=\"CIUGC\",IF(OR('Blank - Request Form'!I118=\"0\",'Blank - Request Form'!I118=\"00000\",'Blank - Request Form'!I118=0),\"\",'Blank - Request Form'!I118),IF('Blank - Request Form'!$F$7=\"CIUGC\",IF(OR('Blank - Request Form'!R118=\"0\",'Blank - Request Form'!R118=\"00000\",'Blank - Request Form'!R118=0),\"\",'Blank - Request Form'!R118),\"\"))","v":""},null,{"$f":"IF('Blank - Request Form'!$F$6=\"CIUGC\",IF('Blank - Request Form'!K118=0,\"\",'Blank - Request Form'!K118),IF('Blank - Request Form'!$F$7=\"CIUGC\",IF('Blank - Request Form'!T118=0,\"\",'Blank - Request Form'!T118),\"\"))","v":""},null,null,null,{"$f":"IF(M84<>\"\",'Blank - Request Form'!$M$2,\"\")","v":""},{"$f":"IF('Blank - Request Form'!$F$6=\"CIUGC\",IF('Blank - Request Form'!J118=0,\"\",'Blank - Request Form'!J118),IF('Blank - Request Form'!$F$7=\"CIUGC\",IF('Blank - Request Form'!S118=0,\"\",'Blank - Request Form'!S118),\"\"))","v":""},"",84]
[{"$f":"IF('Blank - Request Form'!$F$6=\"CIUGC\",IF('Blank - Request Form'!D119=0,\"\",'Blank - Request Form'!D119),IF('Blank - Request Form'!$F$7=\"CIUGC\",IF('Blank - Request Form'!M119=0,\"\",'Blank - Request Form'!M119),\"\"))","v":""},{"$f":"IF('Blank - Request Form'!$F$6=\"CIUGC\",IF('Blank - Request Form'!E119=0,\"\",'Blank - Request Form'!E119),IF('Blank - Request Form'!$F$7=\"CIUGC\",IF('Blank - Request Form'!N119=0,\"\",'Blank - Request Form'!N119),\"\"))","v":""},{"$f":"IF('Blank - Request Form'!$F$6=\"CIUGC\",IF(OR('Blank - Request Form'!F119=\"000\",'Blank - Request Form'!F119=0),\"\",'Blank - Request Form'!F119),IF('Blank - Request Form'!$F$7=\"CIUGC\",IF(OR('Blank - Request Form'!O119=\"000\",'Blank - Request Form'!O119=0),\"\",'Blank - Request Form'!O119),\"\"))","v":""},{"$f":"IF('Blank - Request Form'!$F$6=\"CIUGC\",IF(OR('Blank - Request Form'!G119=\"0\",'Blank - Request Form'!G119=\"00000\",'Blank - Request Form'!G119=0),\"\",'Blank - Request Form'!G119),IF('Blank - Request Form'!$F$7=\"CIUGC\",IF(OR('Blank - Request Form'!P119=\"0\",'Blank - Request Form'!P119=\"00000\",'Blank - Request Form'!P119=0),\"\",'Blank - Request Form'!P119),\"\"))","v":""},{"$f":"IF('Blank - Request Form'!$F$6=\"CIUGC\",IF(OR('Blank - Request Form'!H119=\"0\",'Blank - Request Form'!H119=\"00000\",'Blank - Request Form'!H119=0),\"\",'Blank - Request Form'!H119),IF('Blank - Request Form'!$F$7=\"CIUGC\",IF(OR('Blank - Request Form'!Q119=\"0\",'Blank - Request Form'!Q119=\"00000\",'Blank - Request Form'!Q119=0),\"\",'Blank - Request Form'!Q119),\"\"))","v":""},{"$f":"IF('Blank - Request Form'!$F$6=\"CIUGC\",IF(OR('Blank - Request Form'!I119=\"0\",'Blank - Request Form'!I119=\"00000\",'Blank - Request Form'!I119=0),\"\",'Blank - Request Form'!I119),IF('Blank - Request Form'!$F$7=\"CIUGC\",IF(OR('Blank - Request Form'!R119=\"0\",'Blank - Request Form'!R119=\"00000\",'Blank - Request Form'!R119=0),\"\",'Blank - Request Form'!R119),\"\"))","v":""},null,{"$f":"IF('Blank - Request Form'!$F$6=\"CIUGC\",IF('Blank - Request Form'!K119=0,\"\",'Blank - Request Form'!K119),IF('Blank - Request Form'!$F$7=\"CIUGC\",IF('Blank - Request Form'!T119=0,\"\",'Blank - Request Form'!T119),\"\"))","v":""},null,null,null,{"$f":"IF(M85<>\"\",'Blank - Request Form'!$M$2,\"\")","v":""},{"$f":"IF('Blank - Request Form'!$F$6=\"CIUGC\",IF('Blank - Request Form'!J119=0,\"\",'Blank - Request Form'!J119),IF('Blank - Request Form'!$F$7=\"CIUGC\",IF('Blank - Request Form'!S119=0,\"\",'Blank - Request Form'!S119),\"\"))","v":""},"",85]
[{"$f":"IF('Blank - Request Form'!$F$6=\"CIUGC\",IF('Blank - Request Form'!D120=0,\"\",'Blank - Request Form'!D120),IF('Blank - Request Form'!$F$7=\"CIUGC\",IF('Blank - Request Form'!M120=0,\"\",'Blank - Request Form'!M120),\"\"))","v":""},{"$f":"IF('Blank - Request Form'!$F$6=\"CIUGC\",IF('Blank - Request Form'!E120=0,\"\",'Blank - Request Form'!E120),IF('Blank - Request Form'!$F$7=\"CIUGC\",IF('Blank - Request Form'!N120=0,\"\",'Blank - Request Form'!N120),\"\"))","v":""},{"$f":"IF('Blank - Request Form'!$F$6=\"CIUGC\",IF(OR('Blank - Request Form'!F120=\"000\",'Blank - Request Form'!F120=0),\"\",'Blank - Request Form'!F120),IF('Blank - Request Form'!$F$7=\"CIUGC\",IF(OR('Blank - Request Form'!O120=\"000\",'Blank - Request Form'!O120=0),\"\",'Blank - Request Form'!O120),\"\"))","v":""},{"$f":"IF('Blank - Request Form'!$F$6=\"CIUGC\",IF(OR('Blank - Request Form'!G120=\"0\",'Blank - Request Form'!G120=\"00000\",'Blank - Request Form'!G120=0),\"\",'Blank - Request Form'!G120),IF('Blank - Request Form'!$F$7=\"CIUGC\",IF(OR('Blank - Request Form'!P120=\"0\",'Blank - Request Form'!P120=\"00000\",'Blank - Request Form'!P120=0),\"\",'Blank - Request Form'!P120),\"\"))","v":""},{"$f":"IF('Blank - Request Form'!$F$6=\"CIUGC\",IF(OR('Blank - Request Form'!H120=\"0\",'Blank - Request Form'!H120=\"00000\",'Blank - Request Form'!H120=0),\"\",'Blank - Request Form'!H120),IF('Blank - Request Form'!$F$7=\"CIUGC\",IF(OR('Blank - Request Form'!Q120=\"0\",'Blank - Request Form'!Q120=\"00000\",'Blank - Request Form'!Q120=0),\"\",'Blank - Request Form'!Q120),\"\"))","v":""},{"$f":"IF('Blank - Request Form'!$F$6=\"CIUGC\",IF(OR('Blank - Request Form'!I120=\"0\",'Blank - Request Form'!I120=\"00000\",'Blank - Request Form'!I120=0),\"\",'Blank - Request Form'!I120),IF('Blank - Request Form'!$F$7=\"CIUGC\",IF(OR('Blank - Request Form'!R120=\"0\",'Blank - Request Form'!R120=\"00000\",'Blank - Request Form'!R120=0),\"\",'Blank - Request Form'!R120),\"\"))","v":""},null,{"$f":"IF('Blank - Request Form'!$F$6=\"CIUGC\",IF('Blank - Request Form'!K120=0,\"\",'Blank - Request Form'!K120),IF('Blank - Request Form'!$F$7=\"CIUGC\",IF('Blank - Request Form'!T120=0,\"\",'Blank - Request Form'!T120),\"\"))","v":""},null,null,null,{"$f":"IF(M86<>\"\",'Blank - Request Form'!$M$2,\"\")","v":""},{"$f":"IF('Blank - Request Form'!$F$6=\"CIUGC\",IF('Blank - Request Form'!J120=0,\"\",'Blank - Request Form'!J120),IF('Blank - Request Form'!$F$7=\"CIUGC\",IF('Blank - Request Form'!S120=0,\"\",'Blank - Request Form'!S120),\"\"))","v":""},"",86]
[{"$f":"IF('Blank - Request Form'!$F$6=\"CIUGC\",IF('Blank - Request Form'!D121=0,\"\",'Blank - Request Form'!D121),IF('Blank - Request Form'!$F$7=\"CIUGC\",IF('Blank - Request Form'!M121=0,\"\",'Blank - Request Form'!M121),\"\"))","v":""},{"$f":"IF('Blank - Request Form'!$F$6=\"CIUGC\",IF('Blank - Request Form'!E121=0,\"\",'Blank - Request Form'!E121),IF('Blank - Request Form'!$F$7=\"CIUGC\",IF('Blank - Request Form'!N121=0,\"\",'Blank - Request Form'!N121),\"\"))","v":""},{"$f":"IF('Blank - Request Form'!$F$6=\"CIUGC\",IF(OR('Blank - Request Form'!F121=\"000\",'Blank - Request Form'!F121=0),\"\",'Blank - Request Form'!F121),IF('Blank - Request Form'!$F$7=\"CIUGC\",IF(OR('Blank - Request Form'!O121=\"000\",'Blank - Request Form'!O121=0),\"\",'Blank - Request Form'!O121),\"\"))","v":""},{"$f":"IF('Blank - Request Form'!$F$6=\"CIUGC\",IF(OR('Blank - Request Form'!G121=\"0\",'Blank - Request Form'!G121=\"00000\",'Blank - Request Form'!G121=0),\"\",'Blank - Request Form'!G121),IF('Blank - Request Form'!$F$7=\"CIUGC\",IF(OR('Blank - Request Form'!P121=\"0\",'Blank - Request Form'!P121=\"00000\",'Blank - Request Form'!P121=0),\"\",'Blank - Request Form'!P121),\"\"))","v":""},{"$f":"IF('Blank - Request Form'!$F$6=\"CIUGC\",IF(OR('Blank - Request Form'!H121=\"0\",'Blank - Request Form'!H121=\"00000\",'Blank - Request Form'!H121=0),\"\",'Blank - Request Form'!H121),IF('Blank - Request Form'!$F$7=\"CIUGC\",IF(OR('Blank - Request Form'!Q121=\"0\",'Blank - Request Form'!Q121=\"00000\",'Blank - Request Form'!Q121=0),\"\",'Blank - Request Form'!Q121),\"\"))","v":""},{"$f":"IF('Blank - Request Form'!$F$6=\"CIUGC\",IF(OR('Blank - Request Form'!I121=\"0\",'Blank - Request Form'!I121=\"00000\",'Blank - Request Form'!I121=0),\"\",'Blank - Request Form'!I121),IF('Blank - Request Form'!$F$7=\"CIUGC\",IF(OR('Blank - Request Form'!R121=\"0\",'Blank - Request Form'!R121=\"00000\",'Blank - Request Form'!R121=0),\"\",'Blank - Request Form'!R121),\"\"))","v":""},null,{"$f":"IF('Blank - Request Form'!$F$6=\"CIUGC\",IF('Blank - Request Form'!K121=0,\"\",'Blank - Request Form'!K121),IF('Blank - Request Form'!$F$7=\"CIUGC\",IF('Blank - Request Form'!T121=0,\"\",'Blank - Request Form'!T121),\"\"))","v":""},null,null,null,{"$f":"IF(M87<>\"\",'Blank - Request Form'!$M$2,\"\")","v":""},{"$f":"IF('Blank - Request Form'!$F$6=\"CIUGC\",IF('Blank - Request Form'!J121=0,\"\",'Blank - Request Form'!J121),IF('Blank - Request Form'!$F$7=\"CIUGC\",IF('Blank - Request Form'!S121=0,\"\",'Blank - Request Form'!S121),\"\"))","v":""},"",87]
[{"$f":"IF('Blank - Request Form'!$F$6=\"CIUGC\",IF('Blank - Request Form'!D122=0,\"\",'Blank - Request Form'!D122),IF('Blank - Request Form'!$F$7=\"CIUGC\",IF('Blank - Request Form'!M122=0,\"\",'Blank - Request Form'!M122),\"\"))","v":""},{"$f":"IF('Blank - Request Form'!$F$6=\"CIUGC\",IF('Blank - Request Form'!E122=0,\"\",'Blank - Request Form'!E122),IF('Blank - Request Form'!$F$7=\"CIUGC\",IF('Blank - Request Form'!N122=0,\"\",'Blank - Request Form'!N122),\"\"))","v":""},{"$f":"IF('Blank - Request Form'!$F$6=\"CIUGC\",IF(OR('Blank - Request Form'!F122=\"000\",'Blank - Request Form'!F122=0),\"\",'Blank - Request Form'!F122),IF('Blank - Request Form'!$F$7=\"CIUGC\",IF(OR('Blank - Request Form'!O122=\"000\",'Blank - Request Form'!O122=0),\"\",'Blank - Request Form'!O122),\"\"))","v":""},{"$f":"IF('Blank - Request Form'!$F$6=\"CIUGC\",IF(OR('Blank - Request Form'!G122=\"0\",'Blank - Request Form'!G122=\"00000\",'Blank - Request Form'!G122=0),\"\",'Blank - Request Form'!G122),IF('Blank - Request Form'!$F$7=\"CIUGC\",IF(OR('Blank - Request Form'!P122=\"0\",'Blank - Request Form'!P122=\"00000\",'Blank - Request Form'!P122=0),\"\",'Blank - Request Form'!P122),\"\"))","v":""},{"$f":"IF('Blank - Request Form'!$F$6=\"CIUGC\",IF(OR('Blank - Request Form'!H122=\"0\",'Blank - Request Form'!H122=\"00000\",'Blank - Request Form'!H122=0),\"\",'Blank - Request Form'!H122),IF('Blank - Request Form'!$F$7=\"CIUGC\",IF(OR('Blank - Request Form'!Q122=\"0\",'Blank - Request Form'!Q122=\"00000\",'Blank - Request Form'!Q122=0),\"\",'Blank - Request Form'!Q122),\"\"))","v":""},{"$f":"IF('Blank - Request Form'!$F$6=\"CIUGC\",IF(OR('Blank - Request Form'!I122=\"0\",'Blank - Request Form'!I122=\"00000\",'Blank - Request Form'!I122=0),\"\",'Blank - Request Form'!I122),IF('Blank - Request Form'!$F$7=\"CIUGC\",IF(OR('Blank - Request Form'!R122=\"0\",'Blank - Request Form'!R122=\"00000\",'Blank - Request Form'!R122=0),\"\",'Blank - Request Form'!R122),\"\"))","v":""},null,{"$f":"IF('Blank - Request Form'!$F$6=\"CIUGC\",IF('Blank - Request Form'!K122=0,\"\",'Blank - Request Form'!K122),IF('Blank - Request Form'!$F$7=\"CIUGC\",IF('Blank - Request Form'!T122=0,\"\",'Blank - Request Form'!T122),\"\"))","v":""},null,null,null,{"$f":"IF(M88<>\"\",'Blank - Request Form'!$M$2,\"\")","v":""},{"$f":"IF('Blank - Request Form'!$F$6=\"CIUGC\",IF('Blank - Request Form'!J122=0,\"\",'Blank - Request Form'!J122),IF('Blank - Request Form'!$F$7=\"CIUGC\",IF('Blank - Request Form'!S122=0,\"\",'Blank - Request Form'!S122),\"\"))","v":""},"",88]
[{"$f":"IF('Blank - Request Form'!$F$6=\"CIUGC\",IF('Blank - Request Form'!D123=0,\"\",'Blank - Request Form'!D123),IF('Blank - Request Form'!$F$7=\"CIUGC\",IF('Blank - Request Form'!M123=0,\"\",'Blank - Request Form'!M123),\"\"))","v":""},{"$f":"IF('Blank - Request Form'!$F$6=\"CIUGC\",IF('Blank - Request Form'!E123=0,\"\",'Blank - Request Form'!E123),IF('Blank - Request Form'!$F$7=\"CIUGC\",IF('Blank - Request Form'!N123=0,\"\",'Blank - Request Form'!N123),\"\"))","v":""},{"$f":"IF('Blank - Request Form'!$F$6=\"CIUGC\",IF(OR('Blank - Request Form'!F123=\"000\",'Blank - Request Form'!F123=0),\"\",'Blank - Request Form'!F123),IF('Blank - Request Form'!$F$7=\"CIUGC\",IF(OR('Blank - Request Form'!O123=\"000\",'Blank - Request Form'!O123=0),\"\",'Blank - Request Form'!O123),\"\"))","v":""},{"$f":"IF('Blank - Request Form'!$F$6=\"CIUGC\",IF(OR('Blank - Request Form'!G123=\"0\",'Blank - Request Form'!G123=\"00000\",'Blank - Request Form'!G123=0),\"\",'Blank - Request Form'!G123),IF('Blank - Request Form'!$F$7=\"CIUGC\",IF(OR('Blank - Request Form'!P123=\"0\",'Blank - Request Form'!P123=\"00000\",'Blank - Request Form'!P123=0),\"\",'Blank - Request Form'!P123),\"\"))","v":""},{"$f":"IF('Blank - Request Form'!$F$6=\"CIUGC\",IF(OR('Blank - Request Form'!H123=\"0\",'Blank - Request Form'!H123=\"00000\",'Blank - Request Form'!H123=0),\"\",'Blank - Request Form'!H123),IF('Blank - Request Form'!$F$7=\"CIUGC\",IF(OR('Blank - Request Form'!Q123=\"0\",'Blank - Request Form'!Q123=\"00000\",'Blank - Request Form'!Q123=0),\"\",'Blank - Request Form'!Q123),\"\"))","v":""},{"$f":"IF('Blank - Request Form'!$F$6=\"CIUGC\",IF(OR('Blank - Request Form'!I123=\"0\",'Blank - Request Form'!I123=\"00000\",'Blank - Request Form'!I123=0),\"\",'Blank - Request Form'!I123),IF('Blank - Request Form'!$F$7=\"CIUGC\",IF(OR('Blank - Request Form'!R123=\"0\",'Blank - Request Form'!R123=\"00000\",'Blank - Request Form'!R123=0),\"\",'Blank - Request Form'!R123),\"\"))","v":""},null,{"$f":"IF('Blank - Request Form'!$F$6=\"CIUGC\",IF('Blank - Request Form'!K123=0,\"\",'Blank - Request Form'!K123),IF('Blank - Request Form'!$F$7=\"CIUGC\",IF('Blank - Request Form'!T123=0,\"\",'Blank - Request Form'!T123),\"\"))","v":""},null,null,null,{"$f":"IF(M89<>\"\",'Blank - Request Form'!$M$2,\"\")","v":""},{"$f":"IF('Blank - Request Form'!$F$6=\"CIUGC\",IF('Blank - Request Form'!J123=0,\"\",'Blank - Request Form'!J123),IF('Blank - Request Form'!$F$7=\"CIUGC\",IF('Blank - Request Form'!S123=0,\"\",'Blank - Request Form'!S123),\"\"))","v":""},"",89]
[{"$f":"IF('Blank - Request Form'!$F$6=\"CIUGC\",IF('Blank - Request Form'!D124=0,\"\",'Blank - Request Form'!D124),IF('Blank - Request Form'!$F$7=\"CIUGC\",IF('Blank - Request Form'!M124=0,\"\",'Blank - Request Form'!M124),\"\"))","v":""},{"$f":"IF('Blank - Request Form'!$F$6=\"CIUGC\",IF('Blank - Request Form'!E124=0,\"\",'Blank - Request Form'!E124),IF('Blank - Request Form'!$F$7=\"CIUGC\",IF('Blank - Request Form'!N124=0,\"\",'Blank - Request Form'!N124),\"\"))","v":""},{"$f":"IF('Blank - Request Form'!$F$6=\"CIUGC\",IF(OR('Blank - Request Form'!F124=\"000\",'Blank - Request Form'!F124=0),\"\",'Blank - Request Form'!F124),IF('Blank - Request Form'!$F$7=\"CIUGC\",IF(OR('Blank - Request Form'!O124=\"000\",'Blank - Request Form'!O124=0),\"\",'Blank - Request Form'!O124),\"\"))","v":""},{"$f":"IF('Blank - Request Form'!$F$6=\"CIUGC\",IF(OR('Blank - Request Form'!G124=\"0\",'Blank - Request Form'!G124=\"00000\",'Blank - Request Form'!G124=0),\"\",'Blank - Request Form'!G124),IF('Blank - Request Form'!$F$7=\"CIUGC\",IF(OR('Blank - Request Form'!P124=\"0\",'Blank - Request Form'!P124=\"00000\",'Blank - Request Form'!P124=0),\"\",'Blank - Request Form'!P124),\"\"))","v":""},{"$f":"IF('Blank - Request Form'!$F$6=\"CIUGC\",IF(OR('Blank - Request Form'!H124=\"0\",'Blank - Request Form'!H124=\"00000\",'Blank - Request Form'!H124=0),\"\",'Blank - Request Form'!H124),IF('Blank - Request Form'!$F$7=\"CIUGC\",IF(OR('Blank - Request Form'!Q124=\"0\",'Blank - Request Form'!Q124=\"00000\",'Blank - Request Form'!Q124=0),\"\",'Blank - Request Form'!Q124),\"\"))","v":""},{"$f":"IF('Blank - Request Form'!$F$6=\"CIUGC\",IF(OR('Blank - Request Form'!I124=\"0\",'Blank - Request Form'!I124=\"00000\",'Blank - Request Form'!I124=0),\"\",'Blank - Request Form'!I124),IF('Blank - Request Form'!$F$7=\"CIUGC\",IF(OR('Blank - Request Form'!R124=\"0\",'Blank - Request Form'!R124=\"00000\",'Blank - Request Form'!R124=0),\"\",'Blank - Request Form'!R124),\"\"))","v":""},null,{"$f":"IF('Blank - Request Form'!$F$6=\"CIUGC\",IF('Blank - Request Form'!K124=0,\"\",'Blank - Request Form'!K124),IF('Blank - Request Form'!$F$7=\"CIUGC\",IF('Blank - Request Form'!T124=0,\"\",'Blank - Request Form'!T124),\"\"))","v":""},null,null,null,{"$f":"IF(M90<>\"\",'Blank - Request Form'!$M$2,\"\")","v":""},{"$f":"IF('Blank - Request Form'!$F$6=\"CIUGC\",IF('Blank - Request Form'!J124=0,\"\",'Blank - Request Form'!J124),IF('Blank - Request Form'!$F$7=\"CIUGC\",IF('Blank - Request Form'!S124=0,\"\",'Blank - Request Form'!S124),\"\"))","v":""},"",90]
[{"$f":"IF('Blank - Request Form'!$F$6=\"CIUGC\",IF('Blank - Request Form'!D125=0,\"\",'Blank - Request Form'!D125),IF('Blank - Request Form'!$F$7=\"CIUGC\",IF('Blank - Request Form'!M125=0,\"\",'Blank - Request Form'!M125),\"\"))","v":""},{"$f":"IF('Blank - Request Form'!$F$6=\"CIUGC\",IF('Blank - Request Form'!E125=0,\"\",'Blank - Request Form'!E125),IF('Blank - Request Form'!$F$7=\"CIUGC\",IF('Blank - Request Form'!N125=0,\"\",'Blank - Request Form'!N125),\"\"))","v":""},{"$f":"IF('Blank - Request Form'!$F$6=\"CIUGC\",IF(OR('Blank - Request Form'!F125=\"000\",'Blank - Request Form'!F125=0),\"\",'Blank - Request Form'!F125),IF('Blank - Request Form'!$F$7=\"CIUGC\",IF(OR('Blank - Request Form'!O125=\"000\",'Blank - Request Form'!O125=0),\"\",'Blank - Request Form'!O125),\"\"))","v":""},{"$f":"IF('Blank - Request Form'!$F$6=\"CIUGC\",IF(OR('Blank - Request Form'!G125=\"0\",'Blank - Request Form'!G125=\"00000\",'Blank - Request Form'!G125=0),\"\",'Blank - Request Form'!G125),IF('Blank - Request Form'!$F$7=\"CIUGC\",IF(OR('Blank - Request Form'!P125=\"0\",'Blank - Request Form'!P125=\"00000\",'Blank - Request Form'!P125=0),\"\",'Blank - Request Form'!P125),\"\"))","v":""},{"$f":"IF('Blank - Request Form'!$F$6=\"CIUGC\",IF(OR('Blank - Request Form'!H125=\"0\",'Blank - Request Form'!H125=\"00000\",'Blank - Request Form'!H125=0),\"\",'Blank - Request Form'!H125),IF('Blank - Request Form'!$F$7=\"CIUGC\",IF(OR('Blank - Request Form'!Q125=\"0\",'Blank - Request Form'!Q125=\"00000\",'Blank - Request Form'!Q125=0),\"\",'Blank - Request Form'!Q125),\"\"))","v":""},{"$f":"IF('Blank - Request Form'!$F$6=\"CIUGC\",IF(OR('Blank - Request Form'!I125=\"0\",'Blank - Request Form'!I125=\"00000\",'Blank - Request Form'!I125=0),\"\",'Blank - Request Form'!I125),IF('Blank - Request Form'!$F$7=\"CIUGC\",IF(OR('Blank - Request Form'!R125=\"0\",'Blank - Request Form'!R125=\"00000\",'Blank - Request Form'!R125=0),\"\",'Blank - Request Form'!R125),\"\"))","v":""},null,{"$f":"IF('Blank - Request Form'!$F$6=\"CIUGC\",IF('Blank - Request Form'!K125=0,\"\",'Blank - Request Form'!K125),IF('Blank - Request Form'!$F$7=\"CIUGC\",IF('Blank - Request Form'!T125=0,\"\",'Blank - Request Form'!T125),\"\"))","v":""},null,null,null,{"$f":"IF(M91<>\"\",'Blank - Request Form'!$M$2,\"\")","v":""},{"$f":"IF('Blank - Request Form'!$F$6=\"CIUGC\",IF('Blank - Request Form'!J125=0,\"\",'Blank - Request Form'!J125),IF('Blank - Request Form'!$F$7=\"CIUGC\",IF('Blank - Request Form'!S125=0,\"\",'Blank - Request Form'!S125),\"\"))","v":""},"",91]
[{"$f":"IF('Blank - Request Form'!$F$6=\"CIUGC\",IF('Blank - Request Form'!D126=0,\"\",'Blank - Request Form'!D126),IF('Blank - Request Form'!$F$7=\"CIUGC\",IF('Blank - Request Form'!M126=0,\"\",'Blank - Request Form'!M126),\"\"))","v":""},{"$f":"IF('Blank - Request Form'!$F$6=\"CIUGC\",IF('Blank - Request Form'!E126=0,\"\",'Blank - Request Form'!E126),IF('Blank - Request Form'!$F$7=\"CIUGC\",IF('Blank - Request Form'!N126=0,\"\",'Blank - Request Form'!N126),\"\"))","v":""},{"$f":"IF('Blank - Request Form'!$F$6=\"CIUGC\",IF(OR('Blank - Request Form'!F126=\"000\",'Blank - Request Form'!F126=0),\"\",'Blank - Request Form'!F126),IF('Blank - Request Form'!$F$7=\"CIUGC\",IF(OR('Blank - Request Form'!O126=\"000\",'Blank - Request Form'!O126=0),\"\",'Blank - Request Form'!O126),\"\"))","v":""},{"$f":"IF('Blank - Request Form'!$F$6=\"CIUGC\",IF(OR('Blank - Request Form'!G126=\"0\",'Blank - Request Form'!G126=\"00000\",'Blank - Request Form'!G126=0),\"\",'Blank - Request Form'!G126),IF('Blank - Request Form'!$F$7=\"CIUGC\",IF(OR('Blank - Request Form'!P126=\"0\",'Blank - Request Form'!P126=\"00000\",'Blank - Request Form'!P126=0),\"\",'Blank - Request Form'!P126),\"\"))","v":""},{"$f":"IF('Blank - Request Form'!$F$6=\"CIUGC\",IF(OR('Blank - Request Form'!H126=\"0\",'Blank - Request Form'!H126=\"00000\",'Blank - Request Form'!H126=0),\"\",'Blank - Request Form'!H126),IF('Blank - Request Form'!$F$7=\"CIUGC\",IF(OR('Blank - Request Form'!Q126=\"0\",'Blank - Request Form'!Q126=\"00000\",'Blank - Request Form'!Q126=0),\"\",'Blank - Request Form'!Q126),\"\"))","v":""},{"$f":"IF('Blank - Request Form'!$F$6=\"CIUGC\",IF(OR('Blank - Request Form'!I126=\"0\",'Blank - Request Form'!I126=\"00000\",'Blank - Request Form'!I126=0),\"\",'Blank - Request Form'!I126),IF('Blank - Request Form'!$F$7=\"CIUGC\",IF(OR('Blank - Request Form'!R126=\"0\",'Blank - Request Form'!R126=\"00000\",'Blank - Request Form'!R126=0),\"\",'Blank - Request Form'!R126),\"\"))","v":""},null,{"$f":"IF('Blank - Request Form'!$F$6=\"CIUGC\",IF('Blank - Request Form'!K126=0,\"\",'Blank - Request Form'!K126),IF('Blank - Request Form'!$F$7=\"CIUGC\",IF('Blank - Request Form'!T126=0,\"\",'Blank - Request Form'!T126),\"\"))","v":""},null,null,null,{"$f":"IF(M92<>\"\",'Blank - Request Form'!$M$2,\"\")","v":""},{"$f":"IF('Blank - Request Form'!$F$6=\"CIUGC\",IF('Blank - Request Form'!J126=0,\"\",'Blank - Request Form'!J126),IF('Blank - Request Form'!$F$7=\"CIUGC\",IF('Blank - Request Form'!S126=0,\"\",'Blank - Request Form'!S126),\"\"))","v":""},"",92]
[{"$f":"IF('Blank - Request Form'!$F$6=\"CIUGC\",IF('Blank - Request Form'!D127=0,\"\",'Blank - Request Form'!D127),IF('Blank - Request Form'!$F$7=\"CIUGC\",IF('Blank - Request Form'!M127=0,\"\",'Blank - Request Form'!M127),\"\"))","v":""},{"$f":"IF('Blank - Request Form'!$F$6=\"CIUGC\",IF('Blank - Request Form'!E127=0,\"\",'Blank - Request Form'!E127),IF('Blank - Request Form'!$F$7=\"CIUGC\",IF('Blank - Request Form'!N127=0,\"\",'Blank - Request Form'!N127),\"\"))","v":""},{"$f":"IF('Blank - Request Form'!$F$6=\"CIUGC\",IF(OR('Blank - Request Form'!F127=\"000\",'Blank - Request Form'!F127=0),\"\",'Blank - Request Form'!F127),IF('Blank - Request Form'!$F$7=\"CIUGC\",IF(OR('Blank - Request Form'!O127=\"000\",'Blank - Request Form'!O127=0),\"\",'Blank - Request Form'!O127),\"\"))","v":""},{"$f":"IF('Blank - Request Form'!$F$6=\"CIUGC\",IF(OR('Blank - Request Form'!G127=\"0\",'Blank - Request Form'!G127=\"00000\",'Blank - Request Form'!G127=0),\"\",'Blank - Request Form'!G127),IF('Blank - Request Form'!$F$7=\"CIUGC\",IF(OR('Blank - Request Form'!P127=\"0\",'Blank - Request Form'!P127=\"00000\",'Blank - Request Form'!P127=0),\"\",'Blank - Request Form'!P127),\"\"))","v":""},{"$f":"IF('Blank - Request Form'!$F$6=\"CIUGC\",IF(OR('Blank - Request Form'!H127=\"0\",'Blank - Request Form'!H127=\"00000\",'Blank - Request Form'!H127=0),\"\",'Blank - Request Form'!H127),IF('Blank - Request Form'!$F$7=\"CIUGC\",IF(OR('Blank - Request Form'!Q127=\"0\",'Blank - Request Form'!Q127=\"00000\",'Blank - Request Form'!Q127=0),\"\",'Blank - Request Form'!Q127),\"\"))","v":""},{"$f":"IF('Blank - Request Form'!$F$6=\"CIUGC\",IF(OR('Blank - Request Form'!I127=\"0\",'Blank - Request Form'!I127=\"00000\",'Blank - Request Form'!I127=0),\"\",'Blank - Request Form'!I127),IF('Blank - Request Form'!$F$7=\"CIUGC\",IF(OR('Blank - Request Form'!R127=\"0\",'Blank - Request Form'!R127=\"00000\",'Blank - Request Form'!R127=0),\"\",'Blank - Request Form'!R127),\"\"))","v":""},null,{"$f":"IF('Blank - Request Form'!$F$6=\"CIUGC\",IF('Blank - Request Form'!K127=0,\"\",'Blank - Request Form'!K127),IF('Blank - Request Form'!$F$7=\"CIUGC\",IF('Blank - Request Form'!T127=0,\"\",'Blank - Request Form'!T127),\"\"))","v":""},null,null,null,{"$f":"IF(M93<>\"\",'Blank - Request Form'!$M$2,\"\")","v":""},{"$f":"IF('Blank - Request Form'!$F$6=\"CIUGC\",IF('Blank - Request Form'!J127=0,\"\",'Blank - Request Form'!J127),IF('Blank - Request Form'!$F$7=\"CIUGC\",IF('Blank - Request Form'!S127=0,\"\",'Blank - Request Form'!S127),\"\"))","v":""},"",93]
[{"$f":"IF('Blank - Request Form'!$F$6=\"CIUGC\",IF('Blank - Request Form'!D128=0,\"\",'Blank - Request Form'!D128),IF('Blank - Request Form'!$F$7=\"CIUGC\",IF('Blank - Request Form'!M128=0,\"\",'Blank - Request Form'!M128),\"\"))","v":""},{"$f":"IF('Blank - Request Form'!$F$6=\"CIUGC\",IF('Blank - Request Form'!E128=0,\"\",'Blank - Request Form'!E128),IF('Blank - Request Form'!$F$7=\"CIUGC\",IF('Blank - Request Form'!N128=0,\"\",'Blank - Request Form'!N128),\"\"))","v":""},{"$f":"IF('Blank - Request Form'!$F$6=\"CIUGC\",IF(OR('Blank - Request Form'!F128=\"000\",'Blank - Request Form'!F128=0),\"\",'Blank - Request Form'!F128),IF('Blank - Request Form'!$F$7=\"CIUGC\",IF(OR('Blank - Request Form'!O128=\"000\",'Blank - Request Form'!O128=0),\"\",'Blank - Request Form'!O128),\"\"))","v":""},{"$f":"IF('Blank - Request Form'!$F$6=\"CIUGC\",IF(OR('Blank - Request Form'!G128=\"0\",'Blank - Request Form'!G128=\"00000\",'Blank - Request Form'!G128=0),\"\",'Blank - Request Form'!G128),IF('Blank - Request Form'!$F$7=\"CIUGC\",IF(OR('Blank - Request Form'!P128=\"0\",'Blank - Request Form'!P128=\"00000\",'Blank - Request Form'!P128=0),\"\",'Blank - Request Form'!P128),\"\"))","v":""},{"$f":"IF('Blank - Request Form'!$F$6=\"CIUGC\",IF(OR('Blank - Request Form'!H128=\"0\",'Blank - Request Form'!H128=\"00000\",'Blank - Request Form'!H128=0),\"\",'Blank - Request Form'!H128),IF('Blank - Request Form'!$F$7=\"CIUGC\",IF(OR('Blank - Request Form'!Q128=\"0\",'Blank - Request Form'!Q128=\"00000\",'Blank - Request Form'!Q128=0),\"\",'Blank - Request Form'!Q128),\"\"))","v":""},{"$f":"IF('Blank - Request Form'!$F$6=\"CIUGC\",IF(OR('Blank - Request Form'!I128=\"0\",'Blank - Request Form'!I128=\"00000\",'Blank - Request Form'!I128=0),\"\",'Blank - Request Form'!I128),IF('Blank - Request Form'!$F$7=\"CIUGC\",IF(OR('Blank - Request Form'!R128=\"0\",'Blank - Request Form'!R128=\"00000\",'Blank - Request Form'!R128=0),\"\",'Blank - Request Form'!R128),\"\"))","v":""},null,{"$f":"IF('Blank - Request Form'!$F$6=\"CIUGC\",IF('Blank - Request Form'!K128=0,\"\",'Blank - Request Form'!K128),IF('Blank - Request Form'!$F$7=\"CIUGC\",IF('Blank - Request Form'!T128=0,\"\",'Blank - Request Form'!T128),\"\"))","v":""},null,null,null,{"$f":"IF(M94<>\"\",'Blank - Request Form'!$M$2,\"\")","v":""},{"$f":"IF('Blank - Request Form'!$F$6=\"CIUGC\",IF('Blank - Request Form'!J128=0,\"\",'Blank - Request Form'!J128),IF('Blank - Request Form'!$F$7=\"CIUGC\",IF('Blank - Request Form'!S128=0,\"\",'Blank - Request Form'!S128),\"\"))","v":""},"",94]
[{"$f":"IF('Blank - Request Form'!$F$6=\"CIUGC\",IF('Blank - Request Form'!D129=0,\"\",'Blank - Request Form'!D129),IF('Blank - Request Form'!$F$7=\"CIUGC\",IF('Blank - Request Form'!M129=0,\"\",'Blank - Request Form'!M129),\"\"))","v":""},{"$f":"IF('Blank - Request Form'!$F$6=\"CIUGC\",IF('Blank - Request Form'!E129=0,\"\",'Blank - Request Form'!E129),IF('Blank - Request Form'!$F$7=\"CIUGC\",IF('Blank - Request Form'!N129=0,\"\",'Blank - Request Form'!N129),\"\"))","v":""},{"$f":"IF('Blank - Request Form'!$F$6=\"CIUGC\",IF(OR('Blank - Request Form'!F129=\"000\",'Blank - Request Form'!F129=0),\"\",'Blank - Request Form'!F129),IF('Blank - Request Form'!$F$7=\"CIUGC\",IF(OR('Blank - Request Form'!O129=\"000\",'Blank - Request Form'!O129=0),\"\",'Blank - Request Form'!O129),\"\"))","v":""},{"$f":"IF('Blank - Request Form'!$F$6=\"CIUGC\",IF(OR('Blank - Request Form'!G129=\"0\",'Blank - Request Form'!G129=\"00000\",'Blank - Request Form'!G129=0),\"\",'Blank - Request Form'!G129),IF('Blank - Request Form'!$F$7=\"CIUGC\",IF(OR('Blank - Request Form'!P129=\"0\",'Blank - Request Form'!P129=\"00000\",'Blank - Request Form'!P129=0),\"\",'Blank - Request Form'!P129),\"\"))","v":""},{"$f":"IF('Blank - Request Form'!$F$6=\"CIUGC\",IF(OR('Blank - Request Form'!H129=\"0\",'Blank - Request Form'!H129=\"00000\",'Blank - Request Form'!H129=0),\"\",'Blank - Request Form'!H129),IF('Blank - Request Form'!$F$7=\"CIUGC\",IF(OR('Blank - Request Form'!Q129=\"0\",'Blank - Request Form'!Q129=\"00000\",'Blank - Request Form'!Q129=0),\"\",'Blank - Request Form'!Q129),\"\"))","v":""},{"$f":"IF('Blank - Request Form'!$F$6=\"CIUGC\",IF(OR('Blank - Request Form'!I129=\"0\",'Blank - Request Form'!I129=\"00000\",'Blank - Request Form'!I129=0),\"\",'Blank - Request Form'!I129),IF('Blank - Request Form'!$F$7=\"CIUGC\",IF(OR('Blank - Request Form'!R129=\"0\",'Blank - Request Form'!R129=\"00000\",'Blank - Request Form'!R129=0),\"\",'Blank - Request Form'!R129),\"\"))","v":""},null,{"$f":"IF('Blank - Request Form'!$F$6=\"CIUGC\",IF('Blank - Request Form'!K129=0,\"\",'Blank - Request Form'!K129),IF('Blank - Request Form'!$F$7=\"CIUGC\",IF('Blank - Request Form'!T129=0,\"\",'Blank - Request Form'!T129),\"\"))","v":""},null,null,null,{"$f":"IF(M95<>\"\",'Blank - Request Form'!$M$2,\"\")","v":""},{"$f":"IF('Blank - Request Form'!$F$6=\"CIUGC\",IF('Blank - Request Form'!J129=0,\"\",'Blank - Request Form'!J129),IF('Blank - Request Form'!$F$7=\"CIUGC\",IF('Blank - Request Form'!S129=0,\"\",'Blank - Request Form'!S129),\"\"))","v":""},"",95]
[{"$f":"IF('Blank - Request Form'!$F$6=\"CIUGC\",IF('Blank - Request Form'!D130=0,\"\",'Blank - Request Form'!D130),IF('Blank - Request Form'!$F$7=\"CIUGC\",IF('Blank - Request Form'!M130=0,\"\",'Blank - Request Form'!M130),\"\"))","v":""},{"$f":"IF('Blank - Request Form'!$F$6=\"CIUGC\",IF('Blank - Request Form'!E130=0,\"\",'Blank - Request Form'!E130),IF('Blank - Request Form'!$F$7=\"CIUGC\",IF('Blank - Request Form'!N130=0,\"\",'Blank - Request Form'!N130),\"\"))","v":""},{"$f":"IF('Blank - Request Form'!$F$6=\"CIUGC\",IF(OR('Blank - Request Form'!F130=\"000\",'Blank - Request Form'!F130=0),\"\",'Blank - Request Form'!F130),IF('Blank - Request Form'!$F$7=\"CIUGC\",IF(OR('Blank - Request Form'!O130=\"000\",'Blank - Request Form'!O130=0),\"\",'Blank - Request Form'!O130),\"\"))","v":""},{"$f":"IF('Blank - Request Form'!$F$6=\"CIUGC\",IF(OR('Blank - Request Form'!G130=\"0\",'Blank - Request Form'!G130=\"00000\",'Blank - Request Form'!G130=0),\"\",'Blank - Request Form'!G130),IF('Blank - Request Form'!$F$7=\"CIUGC\",IF(OR('Blank - Request Form'!P130=\"0\",'Blank - Request Form'!P130=\"00000\",'Blank - Request Form'!P130=0),\"\",'Blank - Request Form'!P130),\"\"))","v":""},{"$f":"IF('Blank - Request Form'!$F$6=\"CIUGC\",IF(OR('Blank - Request Form'!H130=\"0\",'Blank - Request Form'!H130=\"00000\",'Blank - Request Form'!H130=0),\"\",'Blank - Request Form'!H130),IF('Blank - Request Form'!$F$7=\"CIUGC\",IF(OR('Blank - Request Form'!Q130=\"0\",'Blank - Request Form'!Q130=\"00000\",'Blank - Request Form'!Q130=0),\"\",'Blank - Request Form'!Q130),\"\"))","v":""},{"$f":"IF('Blank - Request Form'!$F$6=\"CIUGC\",IF(OR('Blank - Request Form'!I130=\"0\",'Blank - Request Form'!I130=\"00000\",'Blank - Request Form'!I130=0),\"\",'Blank - Request Form'!I130),IF('Blank - Request Form'!$F$7=\"CIUGC\",IF(OR('Blank - Request Form'!R130=\"0\",'Blank - Request Form'!R130=\"00000\",'Blank - Request Form'!R130=0),\"\",'Blank - Request Form'!R130),\"\"))","v":""},null,{"$f":"IF('Blank - Request Form'!$F$6=\"CIUGC\",IF('Blank - Request Form'!K130=0,\"\",'Blank - Request Form'!K130),IF('Blank - Request Form'!$F$7=\"CIUGC\",IF('Blank - Request Form'!T130=0,\"\",'Blank - Request Form'!T130),\"\"))","v":""},null,null,null,{"$f":"IF(M96<>\"\",'Blank - Request Form'!$M$2,\"\")","v":""},{"$f":"IF('Blank - Request Form'!$F$6=\"CIUGC\",IF('Blank - Request Form'!J130=0,\"\",'Blank - Request Form'!J130),IF('Blank - Request Form'!$F$7=\"CIUGC\",IF('Blank - Request Form'!S130=0,\"\",'Blank - Request Form'!S130),\"\"))","v":""},"",96]
[{"$f":"IF('Blank - Request Form'!$F$6=\"CIUGC\",IF('Blank - Request Form'!D131=0,\"\",'Blank - Request Form'!D131),IF('Blank - Request Form'!$F$7=\"CIUGC\",IF('Blank - Request Form'!M131=0,\"\",'Blank - Request Form'!M131),\"\"))","v":""},{"$f":"IF('Blank - Request Form'!$F$6=\"CIUGC\",IF('Blank - Request Form'!E131=0,\"\",'Blank - Request Form'!E131),IF('Blank - Request Form'!$F$7=\"CIUGC\",IF('Blank - Request Form'!N131=0,\"\",'Blank - Request Form'!N131),\"\"))","v":""},{"$f":"IF('Blank - Request Form'!$F$6=\"CIUGC\",IF(OR('Blank - Request Form'!F131=\"000\",'Blank - Request Form'!F131=0),\"\",'Blank - Request Form'!F131),IF('Blank - Request Form'!$F$7=\"CIUGC\",IF(OR('Blank - Request Form'!O131=\"000\",'Blank - Request Form'!O131=0),\"\",'Blank - Request Form'!O131),\"\"))","v":""},{"$f":"IF('Blank - Request Form'!$F$6=\"CIUGC\",IF(OR('Blank - Request Form'!G131=\"0\",'Blank - Request Form'!G131=\"00000\",'Blank - Request Form'!G131=0),\"\",'Blank - Request Form'!G131),IF('Blank - Request Form'!$F$7=\"CIUGC\",IF(OR('Blank - Request Form'!P131=\"0\",'Blank - Request Form'!P131=\"00000\",'Blank - Request Form'!P131=0),\"\",'Blank - Request Form'!P131),\"\"))","v":""},{"$f":"IF('Blank - Request Form'!$F$6=\"CIUGC\",IF(OR('Blank - Request Form'!H131=\"0\",'Blank - Request Form'!H131=\"00000\",'Blank - Request Form'!H131=0),\"\",'Blank - Request Form'!H131),IF('Blank - Request Form'!$F$7=\"CIUGC\",IF(OR('Blank - Request Form'!Q131=\"0\",'Blank - Request Form'!Q131=\"00000\",'Blank - Request Form'!Q131=0),\"\",'Blank - Request Form'!Q131),\"\"))","v":""},{"$f":"IF('Blank - Request Form'!$F$6=\"CIUGC\",IF(OR('Blank - Request Form'!I131=\"0\",'Blank - Request Form'!I131=\"00000\",'Blank - Request Form'!I131=0),\"\",'Blank - Request Form'!I131),IF('Blank - Request Form'!$F$7=\"CIUGC\",IF(OR('Blank - Request Form'!R131=\"0\",'Blank - Request Form'!R131=\"00000\",'Blank - Request Form'!R131=0),\"\",'Blank - Request Form'!R131),\"\"))","v":""},null,{"$f":"IF('Blank - Request Form'!$F$6=\"CIUGC\",IF('Blank - Request Form'!K131=0,\"\",'Blank - Request Form'!K131),IF('Blank - Request Form'!$F$7=\"CIUGC\",IF('Blank - Request Form'!T131=0,\"\",'Blank - Request Form'!T131),\"\"))","v":""},null,null,null,{"$f":"IF(M97<>\"\",'Blank - Request Form'!$M$2,\"\")","v":""},{"$f":"IF('Blank - Request Form'!$F$6=\"CIUGC\",IF('Blank - Request Form'!J131=0,\"\",'Blank - Request Form'!J131),IF('Blank - Request Form'!$F$7=\"CIUGC\",IF('Blank - Request Form'!S131=0,\"\",'Blank - Request Form'!S131),\"\"))","v":""},"",97]
[{"$f":"IF('Blank - Request Form'!$F$6=\"CIUGC\",IF('Blank - Request Form'!D132=0,\"\",'Blank - Request Form'!D132),IF('Blank - Request Form'!$F$7=\"CIUGC\",IF('Blank - Request Form'!M132=0,\"\",'Blank - Request Form'!M132),\"\"))","v":""},{"$f":"IF('Blank - Request Form'!$F$6=\"CIUGC\",IF('Blank - Request Form'!E132=0,\"\",'Blank - Request Form'!E132),IF('Blank - Request Form'!$F$7=\"CIUGC\",IF('Blank - Request Form'!N132=0,\"\",'Blank - Request Form'!N132),\"\"))","v":""},{"$f":"IF('Blank - Request Form'!$F$6=\"CIUGC\",IF(OR('Blank - Request Form'!F132=\"000\",'Blank - Request Form'!F132=0),\"\",'Blank - Request Form'!F132),IF('Blank - Request Form'!$F$7=\"CIUGC\",IF(OR('Blank - Request Form'!O132=\"000\",'Blank - Request Form'!O132=0),\"\",'Blank - Request Form'!O132),\"\"))","v":""},{"$f":"IF('Blank - Request Form'!$F$6=\"CIUGC\",IF(OR('Blank - Request Form'!G132=\"0\",'Blank - Request Form'!G132=\"00000\",'Blank - Request Form'!G132=0),\"\",'Blank - Request Form'!G132),IF('Blank - Request Form'!$F$7=\"CIUGC\",IF(OR('Blank - Request Form'!P132=\"0\",'Blank - Request Form'!P132=\"00000\",'Blank - Request Form'!P132=0),\"\",'Blank - Request Form'!P132),\"\"))","v":""},{"$f":"IF('Blank - Request Form'!$F$6=\"CIUGC\",IF(OR('Blank - Request Form'!H132=\"0\",'Blank - Request Form'!H132=\"00000\",'Blank - Request Form'!H132=0),\"\",'Blank - Request Form'!H132),IF('Blank - Request Form'!$F$7=\"CIUGC\",IF(OR('Blank - Request Form'!Q132=\"0\",'Blank - Request Form'!Q132=\"00000\",'Blank - Request Form'!Q132=0),\"\",'Blank - Request Form'!Q132),\"\"))","v":""},{"$f":"IF('Blank - Request Form'!$F$6=\"CIUGC\",IF(OR('Blank - Request Form'!I132=\"0\",'Blank - Request Form'!I132=\"00000\",'Blank - Request Form'!I132=0),\"\",'Blank - Request Form'!I132),IF('Blank - Request Form'!$F$7=\"CIUGC\",IF(OR('Blank - Request Form'!R132=\"0\",'Blank - Request Form'!R132=\"00000\",'Blank - Request Form'!R132=0),\"\",'Blank - Request Form'!R132),\"\"))","v":""},null,{"$f":"IF('Blank - Request Form'!$F$6=\"CIUGC\",IF('Blank - Request Form'!K132=0,\"\",'Blank - Request Form'!K132),IF('Blank - Request Form'!$F$7=\"CIUGC\",IF('Blank - Request Form'!T132=0,\"\",'Blank - Request Form'!T132),\"\"))","v":""},null,null,null,{"$f":"IF(M98<>\"\",'Blank - Request Form'!$M$2,\"\")","v":""},{"$f":"IF('Blank - Request Form'!$F$6=\"CIUGC\",IF('Blank - Request Form'!J132=0,\"\",'Blank - Request Form'!J132),IF('Blank - Request Form'!$F$7=\"CIUGC\",IF('Blank - Request Form'!S132=0,\"\",'Blank - Request Form'!S132),\"\"))","v":""},"",98]
[{"$f":"IF('Blank - Request Form'!$F$6=\"CIUGC\",IF('Blank - Request Form'!D133=0,\"\",'Blank - Request Form'!D133),IF('Blank - Request Form'!$F$7=\"CIUGC\",IF('Blank - Request Form'!M133=0,\"\",'Blank - Request Form'!M133),\"\"))","v":""},{"$f":"IF('Blank - Request Form'!$F$6=\"CIUGC\",IF('Blank - Request Form'!E133=0,\"\",'Blank - Request Form'!E133),IF('Blank - Request Form'!$F$7=\"CIUGC\",IF('Blank - Request Form'!N133=0,\"\",'Blank - Request Form'!N133),\"\"))","v":""},{"$f":"IF('Blank - Request Form'!$F$6=\"CIUGC\",IF(OR('Blank - Request Form'!F133=\"000\",'Blank - Request Form'!F133=0),\"\",'Blank - Request Form'!F133),IF('Blank - Request Form'!$F$7=\"CIUGC\",IF(OR('Blank - Request Form'!O133=\"000\",'Blank - Request Form'!O133=0),\"\",'Blank - Request Form'!O133),\"\"))","v":""},{"$f":"IF('Blank - Request Form'!$F$6=\"CIUGC\",IF(OR('Blank - Request Form'!G133=\"0\",'Blank - Request Form'!G133=\"00000\",'Blank - Request Form'!G133=0),\"\",'Blank - Request Form'!G133),IF('Blank - Request Form'!$F$7=\"CIUGC\",IF(OR('Blank - Request Form'!P133=\"0\",'Blank - Request Form'!P133=\"00000\",'Blank - Request Form'!P133=0),\"\",'Blank - Request Form'!P133),\"\"))","v":""},{"$f":"IF('Blank - Request Form'!$F$6=\"CIUGC\",IF(OR('Blank - Request Form'!H133=\"0\",'Blank - Request Form'!H133=\"00000\",'Blank - Request Form'!H133=0),\"\",'Blank - Request Form'!H133),IF('Blank - Request Form'!$F$7=\"CIUGC\",IF(OR('Blank - Request Form'!Q133=\"0\",'Blank - Request Form'!Q133=\"00000\",'Blank - Request Form'!Q133=0),\"\",'Blank - Request Form'!Q133),\"\"))","v":""},{"$f":"IF('Blank - Request Form'!$F$6=\"CIUGC\",IF(OR('Blank - Request Form'!I133=\"0\",'Blank - Request Form'!I133=\"00000\",'Blank - Request Form'!I133=0),\"\",'Blank - Request Form'!I133),IF('Blank - Request Form'!$F$7=\"CIUGC\",IF(OR('Blank - Request Form'!R133=\"0\",'Blank - Request Form'!R133=\"00000\",'Blank - Request Form'!R133=0),\"\",'Blank - Request Form'!R133),\"\"))","v":""},null,{"$f":"IF('Blank - Request Form'!$F$6=\"CIUGC\",IF('Blank - Request Form'!K133=0,\"\",'Blank - Request Form'!K133),IF('Blank - Request Form'!$F$7=\"CIUGC\",IF('Blank - Request Form'!T133=0,\"\",'Blank - Request Form'!T133),\"\"))","v":""},null,null,null,{"$f":"IF(M99<>\"\",'Blank - Request Form'!$M$2,\"\")","v":""},{"$f":"IF('Blank - Request Form'!$F$6=\"CIUGC\",IF('Blank - Request Form'!J133=0,\"\",'Blank - Request Form'!J133),IF('Blank - Request Form'!$F$7=\"CIUGC\",IF('Blank - Request Form'!S133=0,\"\",'Blank - Request Form'!S133),\"\"))","v":""},"",99]
[{"$f":"IF('Blank - Request Form'!$F$6=\"CIUGC\",IF('Blank - Request Form'!D134=0,\"\",'Blank - Request Form'!D134),IF('Blank - Request Form'!$F$7=\"CIUGC\",IF('Blank - Request Form'!M134=0,\"\",'Blank - Request Form'!M134),\"\"))","v":""},{"$f":"IF('Blank - Request Form'!$F$6=\"CIUGC\",IF('Blank - Request Form'!E134=0,\"\",'Blank - Request Form'!E134),IF('Blank - Request Form'!$F$7=\"CIUGC\",IF('Blank - Request Form'!N134=0,\"\",'Blank - Request Form'!N134),\"\"))","v":""},{"$f":"IF('Blank - Request Form'!$F$6=\"CIUGC\",IF(OR('Blank - Request Form'!F134=\"000\",'Blank - Request Form'!F134=0),\"\",'Blank - Request Form'!F134),IF('Blank - Request Form'!$F$7=\"CIUGC\",IF(OR('Blank - Request Form'!O134=\"000\",'Blank - Request Form'!O134=0),\"\",'Blank - Request Form'!O134),\"\"))","v":""},{"$f":"IF('Blank - Request Form'!$F$6=\"CIUGC\",IF(OR('Blank - Request Form'!G134=\"0\",'Blank - Request Form'!G134=\"00000\",'Blank - Request Form'!G134=0),\"\",'Blank - Request Form'!G134),IF('Blank - Request Form'!$F$7=\"CIUGC\",IF(OR('Blank - Request Form'!P134=\"0\",'Blank - Request Form'!P134=\"00000\",'Blank - Request Form'!P134=0),\"\",'Blank - Request Form'!P134),\"\"))","v":""},{"$f":"IF('Blank - Request Form'!$F$6=\"CIUGC\",IF(OR('Blank - Request Form'!H134=\"0\",'Blank - Request Form'!H134=\"00000\",'Blank - Request Form'!H134=0),\"\",'Blank - Request Form'!H134),IF('Blank - Request Form'!$F$7=\"CIUGC\",IF(OR('Blank - Request Form'!Q134=\"0\",'Blank - Request Form'!Q134=\"00000\",'Blank - Request Form'!Q134=0),\"\",'Blank - Request Form'!Q134),\"\"))","v":""},{"$f":"IF('Blank - Request Form'!$F$6=\"CIUGC\",IF(OR('Blank - Request Form'!I134=\"0\",'Blank - Request Form'!I134=\"00000\",'Blank - Request Form'!I134=0),\"\",'Blank - Request Form'!I134),IF('Blank - Request Form'!$F$7=\"CIUGC\",IF(OR('Blank - Request Form'!R134=\"0\",'Blank - Request Form'!R134=\"00000\",'Blank - Request Form'!R134=0),\"\",'Blank - Request Form'!R134),\"\"))","v":""},null,{"$f":"IF('Blank - Request Form'!$F$6=\"CIUGC\",IF('Blank - Request Form'!K134=0,\"\",'Blank - Request Form'!K134),IF('Blank - Request Form'!$F$7=\"CIUGC\",IF('Blank - Request Form'!T134=0,\"\",'Blank - Request Form'!T134),\"\"))","v":""},null,null,null,{"$f":"IF(M100<>\"\",'Blank - Request Form'!$M$2,\"\")","v":""},{"$f":"IF('Blank - Request Form'!$F$6=\"CIUGC\",IF('Blank - Request Form'!J134=0,\"\",'Blank - Request Form'!J134),IF('Blank - Request Form'!$F$7=\"CIUGC\",IF('Blank - Request Form'!S134=0,\"\",'Blank - Request Form'!S134),\"\"))","v":""},"",100]
[{"$f":"IF('Blank - Request Form'!$F$6=\"CIUGC\",IF('Blank - Request Form'!D135=0,\"\",'Blank - Request Form'!D135),IF('Blank - Request Form'!$F$7=\"CIUGC\",IF('Blank - Request Form'!M135=0,\"\",'Blank - Request Form'!M135),\"\"))","v":""},{"$f":"IF('Blank - Request Form'!$F$6=\"CIUGC\",IF('Blank - Request Form'!E135=0,\"\",'Blank - Request Form'!E135),IF('Blank - Request Form'!$F$7=\"CIUGC\",IF('Blank - Request Form'!N135=0,\"\",'Blank - Request Form'!N135),\"\"))","v":""},{"$f":"IF('Blank - Request Form'!$F$6=\"CIUGC\",IF(OR('Blank - Request Form'!F135=\"000\",'Blank - Request Form'!F135=0),\"\",'Blank - Request Form'!F135),IF('Blank - Request Form'!$F$7=\"CIUGC\",IF(OR('Blank - Request Form'!O135=\"000\",'Blank - Request Form'!O135=0),\"\",'Blank - Request Form'!O135),\"\"))","v":""},{"$f":"IF('Blank - Request Form'!$F$6=\"CIUGC\",IF(OR('Blank - Request Form'!G135=\"0\",'Blank - Request Form'!G135=\"00000\",'Blank - Request Form'!G135=0),\"\",'Blank - Request Form'!G135),IF('Blank - Request Form'!$F$7=\"CIUGC\",IF(OR('Blank - Request Form'!P135=\"0\",'Blank - Request Form'!P135=\"00000\",'Blank - Request Form'!P135=0),\"\",'Blank - Request Form'!P135),\"\"))","v":""},{"$f":"IF('Blank - Request Form'!$F$6=\"CIUGC\",IF(OR('Blank - Request Form'!H135=\"0\",'Blank - Request Form'!H135=\"00000\",'Blank - Request Form'!H135=0),\"\",'Blank - Request Form'!H135),IF('Blank - Request Form'!$F$7=\"CIUGC\",IF(OR('Blank - Request Form'!Q135=\"0\",'Blank - Request Form'!Q135=\"00000\",'Blank - Request Form'!Q135=0),\"\",'Blank - Request Form'!Q135),\"\"))","v":""},{"$f":"IF('Blank - Request Form'!$F$6=\"CIUGC\",IF(OR('Blank - Request Form'!I135=\"0\",'Blank - Request Form'!I135=\"00000\",'Blank - Request Form'!I135=0),\"\",'Blank - Request Form'!I135),IF('Blank - Request Form'!$F$7=\"CIUGC\",IF(OR('Blank - Request Form'!R135=\"0\",'Blank - Request Form'!R135=\"00000\",'Blank - Request Form'!R135=0),\"\",'Blank - Request Form'!R135),\"\"))","v":""},null,{"$f":"IF('Blank - Request Form'!$F$6=\"CIUGC\",IF('Blank - Request Form'!K135=0,\"\",'Blank - Request Form'!K135),IF('Blank - Request Form'!$F$7=\"CIUGC\",IF('Blank - Request Form'!T135=0,\"\",'Blank - Request Form'!T135),\"\"))","v":""},null,null,null,{"$f":"IF(M101<>\"\",'Blank - Request Form'!$M$2,\"\")","v":""},{"$f":"IF('Blank - Request Form'!$F$6=\"CIUGC\",IF('Blank - Request Form'!J135=0,\"\",'Blank - Request Form'!J135),IF('Blank - Request Form'!$F$7=\"CIUGC\",IF('Blank - Request Form'!S135=0,\"\",'Blank - Request Form'!S135),\"\"))","v":""},"",101]
[{"$f":"IF('Blank - Request Form'!$F$6=\"CIUGC\",IF('Blank - Request Form'!D136=0,\"\",'Blank - Request Form'!D136),IF('Blank - Request Form'!$F$7=\"CIUGC\",IF('Blank - Request Form'!M136=0,\"\",'Blank - Request Form'!M136),\"\"))","v":""},{"$f":"IF('Blank - Request Form'!$F$6=\"CIUGC\",IF('Blank - Request Form'!E136=0,\"\",'Blank - Request Form'!E136),IF('Blank - Request Form'!$F$7=\"CIUGC\",IF('Blank - Request Form'!N136=0,\"\",'Blank - Request Form'!N136),\"\"))","v":""},{"$f":"IF('Blank - Request Form'!$F$6=\"CIUGC\",IF(OR('Blank - Request Form'!F136=\"000\",'Blank - Request Form'!F136=0),\"\",'Blank - Request Form'!F136),IF('Blank - Request Form'!$F$7=\"CIUGC\",IF(OR('Blank - Request Form'!O136=\"000\",'Blank - Request Form'!O136=0),\"\",'Blank - Request Form'!O136),\"\"))","v":""},{"$f":"IF('Blank - Request Form'!$F$6=\"CIUGC\",IF(OR('Blank - Request Form'!G136=\"0\",'Blank - Request Form'!G136=\"00000\",'Blank - Request Form'!G136=0),\"\",'Blank - Request Form'!G136),IF('Blank - Request Form'!$F$7=\"CIUGC\",IF(OR('Blank - Request Form'!P136=\"0\",'Blank - Request Form'!P136=\"00000\",'Blank - Request Form'!P136=0),\"\",'Blank - Request Form'!P136),\"\"))","v":""},{"$f":"IF('Blank - Request Form'!$F$6=\"CIUGC\",IF(OR('Blank - Request Form'!H136=\"0\",'Blank - Request Form'!H136=\"00000\",'Blank - Request Form'!H136=0),\"\",'Blank - Request Form'!H136),IF('Blank - Request Form'!$F$7=\"CIUGC\",IF(OR('Blank - Request Form'!Q136=\"0\",'Blank - Request Form'!Q136=\"00000\",'Blank - Request Form'!Q136=0),\"\",'Blank - Request Form'!Q136),\"\"))","v":""},{"$f":"IF('Blank - Request Form'!$F$6=\"CIUGC\",IF(OR('Blank - Request Form'!I136=\"0\",'Blank - Request Form'!I136=\"00000\",'Blank - Request Form'!I136=0),\"\",'Blank - Request Form'!I136),IF('Blank - Request Form'!$F$7=\"CIUGC\",IF(OR('Blank - Request Form'!R136=\"0\",'Blank - Request Form'!R136=\"00000\",'Blank - Request Form'!R136=0),\"\",'Blank - Request Form'!R136),\"\"))","v":""},null,{"$f":"IF('Blank - Request Form'!$F$6=\"CIUGC\",IF('Blank - Request Form'!K136=0,\"\",'Blank - Request Form'!K136),IF('Blank - Request Form'!$F$7=\"CIUGC\",IF('Blank - Request Form'!T136=0,\"\",'Blank - Request Form'!T136),\"\"))","v":""},null,null,null,{"$f":"IF(M102<>\"\",'Blank - Request Form'!$M$2,\"\")","v":""},{"$f":"IF('Blank - Request Form'!$F$6=\"CIUGC\",IF('Blank - Request Form'!J136=0,\"\",'Blank - Request Form'!J136),IF('Blank - Request Form'!$F$7=\"CIUGC\",IF('Blank - Request Form'!S136=0,\"\",'Blank - Request Form'!S136),\"\"))","v":""},"",102]
[{"$f":"IF('Blank - Request Form'!$F$6=\"CIUGC\",IF('Blank - Request Form'!D137=0,\"\",'Blank - Request Form'!D137),IF('Blank - Request Form'!$F$7=\"CIUGC\",IF('Blank - Request Form'!M137=0,\"\",'Blank - Request Form'!M137),\"\"))","v":""},{"$f":"IF('Blank - Request Form'!$F$6=\"CIUGC\",IF('Blank - Request Form'!E137=0,\"\",'Blank - Request Form'!E137),IF('Blank - Request Form'!$F$7=\"CIUGC\",IF('Blank - Request Form'!N137=0,\"\",'Blank - Request Form'!N137),\"\"))","v":""},{"$f":"IF('Blank - Request Form'!$F$6=\"CIUGC\",IF(OR('Blank - Request Form'!F137=\"000\",'Blank - Request Form'!F137=0),\"\",'Blank - Request Form'!F137),IF('Blank - Request Form'!$F$7=\"CIUGC\",IF(OR('Blank - Request Form'!O137=\"000\",'Blank - Request Form'!O137=0),\"\",'Blank - Request Form'!O137),\"\"))","v":""},{"$f":"IF('Blank - Request Form'!$F$6=\"CIUGC\",IF(OR('Blank - Request Form'!G137=\"0\",'Blank - Request Form'!G137=\"00000\",'Blank - Request Form'!G137=0),\"\",'Blank - Request Form'!G137),IF('Blank - Request Form'!$F$7=\"CIUGC\",IF(OR('Blank - Request Form'!P137=\"0\",'Blank - Request Form'!P137=\"00000\",'Blank - Request Form'!P137=0),\"\",'Blank - Request Form'!P137),\"\"))","v":""},{"$f":"IF('Blank - Request Form'!$F$6=\"CIUGC\",IF(OR('Blank - Request Form'!H137=\"0\",'Blank - Request Form'!H137=\"00000\",'Blank - Request Form'!H137=0),\"\",'Blank - Request Form'!H137),IF('Blank - Request Form'!$F$7=\"CIUGC\",IF(OR('Blank - Request Form'!Q137=\"0\",'Blank - Request Form'!Q137=\"00000\",'Blank - Request Form'!Q137=0),\"\",'Blank - Request Form'!Q137),\"\"))","v":""},{"$f":"IF('Blank - Request Form'!$F$6=\"CIUGC\",IF(OR('Blank - Request Form'!I137=\"0\",'Blank - Request Form'!I137=\"00000\",'Blank - Request Form'!I137=0),\"\",'Blank - Request Form'!I137),IF('Blank - Request Form'!$F$7=\"CIUGC\",IF(OR('Blank - Request Form'!R137=\"0\",'Blank - Request Form'!R137=\"00000\",'Blank - Request Form'!R137=0),\"\",'Blank - Request Form'!R137),\"\"))","v":""},null,{"$f":"IF('Blank - Request Form'!$F$6=\"CIUGC\",IF('Blank - Request Form'!K137=0,\"\",'Blank - Request Form'!K137),IF('Blank - Request Form'!$F$7=\"CIUGC\",IF('Blank - Request Form'!T137=0,\"\",'Blank - Request Form'!T137),\"\"))","v":""},null,null,null,{"$f":"IF(M103<>\"\",'Blank - Request Form'!$M$2,\"\")","v":""},{"$f":"IF('Blank - Request Form'!$F$6=\"CIUGC\",IF('Blank - Request Form'!J137=0,\"\",'Blank - Request Form'!J137),IF('Blank - Request Form'!$F$7=\"CIUGC\",IF('Blank - Request Form'!S137=0,\"\",'Blank - Request Form'!S137),\"\"))","v":""},"",103]
[{"$f":"IF('Blank - Request Form'!$F$6=\"CIUGC\",IF('Blank - Request Form'!D138=0,\"\",'Blank - Request Form'!D138),IF('Blank - Request Form'!$F$7=\"CIUGC\",IF('Blank - Request Form'!M138=0,\"\",'Blank - Request Form'!M138),\"\"))","v":""},{"$f":"IF('Blank - Request Form'!$F$6=\"CIUGC\",IF('Blank - Request Form'!E138=0,\"\",'Blank - Request Form'!E138),IF('Blank - Request Form'!$F$7=\"CIUGC\",IF('Blank - Request Form'!N138=0,\"\",'Blank - Request Form'!N138),\"\"))","v":""},{"$f":"IF('Blank - Request Form'!$F$6=\"CIUGC\",IF(OR('Blank - Request Form'!F138=\"000\",'Blank - Request Form'!F138=0),\"\",'Blank - Request Form'!F138),IF('Blank - Request Form'!$F$7=\"CIUGC\",IF(OR('Blank - Request Form'!O138=\"000\",'Blank - Request Form'!O138=0),\"\",'Blank - Request Form'!O138),\"\"))","v":""},{"$f":"IF('Blank - Request Form'!$F$6=\"CIUGC\",IF(OR('Blank - Request Form'!G138=\"0\",'Blank - Request Form'!G138=\"00000\",'Blank - Request Form'!G138=0),\"\",'Blank - Request Form'!G138),IF('Blank - Request Form'!$F$7=\"CIUGC\",IF(OR('Blank - Request Form'!P138=\"0\",'Blank - Request Form'!P138=\"00000\",'Blank - Request Form'!P138=0),\"\",'Blank - Request Form'!P138),\"\"))","v":""},{"$f":"IF('Blank - Request Form'!$F$6=\"CIUGC\",IF(OR('Blank - Request Form'!H138=\"0\",'Blank - Request Form'!H138=\"00000\",'Blank - Request Form'!H138=0),\"\",'Blank - Request Form'!H138),IF('Blank - Request Form'!$F$7=\"CIUGC\",IF(OR('Blank - Request Form'!Q138=\"0\",'Blank - Request Form'!Q138=\"00000\",'Blank - Request Form'!Q138=0),\"\",'Blank - Request Form'!Q138),\"\"))","v":""},{"$f":"IF('Blank - Request Form'!$F$6=\"CIUGC\",IF(OR('Blank - Request Form'!I138=\"0\",'Blank - Request Form'!I138=\"00000\",'Blank - Request Form'!I138=0),\"\",'Blank - Request Form'!I138),IF('Blank - Request Form'!$F$7=\"CIUGC\",IF(OR('Blank - Request Form'!R138=\"0\",'Blank - Request Form'!R138=\"00000\",'Blank - Request Form'!R138=0),\"\",'Blank - Request Form'!R138),\"\"))","v":""},null,{"$f":"IF('Blank - Request Form'!$F$6=\"CIUGC\",IF('Blank - Request Form'!K138=0,\"\",'Blank - Request Form'!K138),IF('Blank - Request Form'!$F$7=\"CIUGC\",IF('Blank - Request Form'!T138=0,\"\",'Blank - Request Form'!T138),\"\"))","v":""},null,null,null,{"$f":"IF(M104<>\"\",'Blank - Request Form'!$M$2,\"\")","v":""},{"$f":"IF('Blank - Request Form'!$F$6=\"CIUGC\",IF('Blank - Request Form'!J138=0,\"\",'Blank - Request Form'!J138),IF('Blank - Request Form'!$F$7=\"CIUGC\",IF('Blank - Request Form'!S138=0,\"\",'Blank - Request Form'!S138),\"\"))","v":""},"",104]
[{"$f":"IF('Blank - Request Form'!$F$6=\"CIUGC\",IF('Blank - Request Form'!D139=0,\"\",'Blank - Request Form'!D139),IF('Blank - Request Form'!$F$7=\"CIUGC\",IF('Blank - Request Form'!M139=0,\"\",'Blank - Request Form'!M139),\"\"))","v":""},{"$f":"IF('Blank - Request Form'!$F$6=\"CIUGC\",IF('Blank - Request Form'!E139=0,\"\",'Blank - Request Form'!E139),IF('Blank - Request Form'!$F$7=\"CIUGC\",IF('Blank - Request Form'!N139=0,\"\",'Blank - Request Form'!N139),\"\"))","v":""},{"$f":"IF('Blank - Request Form'!$F$6=\"CIUGC\",IF(OR('Blank - Request Form'!F139=\"000\",'Blank - Request Form'!F139=0),\"\",'Blank - Request Form'!F139),IF('Blank - Request Form'!$F$7=\"CIUGC\",IF(OR('Blank - Request Form'!O139=\"000\",'Blank - Request Form'!O139=0),\"\",'Blank - Request Form'!O139),\"\"))","v":""},{"$f":"IF('Blank - Request Form'!$F$6=\"CIUGC\",IF(OR('Blank - Request Form'!G139=\"0\",'Blank - Request Form'!G139=\"00000\",'Blank - Request Form'!G139=0),\"\",'Blank - Request Form'!G139),IF('Blank - Request Form'!$F$7=\"CIUGC\",IF(OR('Blank - Request Form'!P139=\"0\",'Blank - Request Form'!P139=\"00000\",'Blank - Request Form'!P139=0),\"\",'Blank - Request Form'!P139),\"\"))","v":""},{"$f":"IF('Blank - Request Form'!$F$6=\"CIUGC\",IF(OR('Blank - Request Form'!H139=\"0\",'Blank - Request Form'!H139=\"00000\",'Blank - Request Form'!H139=0),\"\",'Blank - Request Form'!H139),IF('Blank - Request Form'!$F$7=\"CIUGC\",IF(OR('Blank - Request Form'!Q139=\"0\",'Blank - Request Form'!Q139=\"00000\",'Blank - Request Form'!Q139=0),\"\",'Blank - Request Form'!Q139),\"\"))","v":""},{"$f":"IF('Blank - Request Form'!$F$6=\"CIUGC\",IF(OR('Blank - Request Form'!I139=\"0\",'Blank - Request Form'!I139=\"00000\",'Blank - Request Form'!I139=0),\"\",'Blank - Request Form'!I139),IF('Blank - Request Form'!$F$7=\"CIUGC\",IF(OR('Blank - Request Form'!R139=\"0\",'Blank - Request Form'!R139=\"00000\",'Blank - Request Form'!R139=0),\"\",'Blank - Request Form'!R139),\"\"))","v":""},null,{"$f":"IF('Blank - Request Form'!$F$6=\"CIUGC\",IF('Blank - Request Form'!K139=0,\"\",'Blank - Request Form'!K139),IF('Blank - Request Form'!$F$7=\"CIUGC\",IF('Blank - Request Form'!T139=0,\"\",'Blank - Request Form'!T139),\"\"))","v":""},null,null,null,{"$f":"IF(M105<>\"\",'Blank - Request Form'!$M$2,\"\")","v":""},{"$f":"IF('Blank - Request Form'!$F$6=\"CIUGC\",IF('Blank - Request Form'!J139=0,\"\",'Blank - Request Form'!J139),IF('Blank - Request Form'!$F$7=\"CIUGC\",IF('Blank - Request Form'!S139=0,\"\",'Blank - Request Form'!S139),\"\"))","v":""},"",105]
[{"$f":"IF('Blank - Request Form'!$F$6=\"CIUGC\",IF('Blank - Request Form'!D140=0,\"\",'Blank - Request Form'!D140),IF('Blank - Request Form'!$F$7=\"CIUGC\",IF('Blank - Request Form'!M140=0,\"\",'Blank - Request Form'!M140),\"\"))","v":""},{"$f":"IF('Blank - Request Form'!$F$6=\"CIUGC\",IF('Blank - Request Form'!E140=0,\"\",'Blank - Request Form'!E140),IF('Blank - Request Form'!$F$7=\"CIUGC\",IF('Blank - Request Form'!N140=0,\"\",'Blank - Request Form'!N140),\"\"))","v":""},{"$f":"IF('Blank - Request Form'!$F$6=\"CIUGC\",IF(OR('Blank - Request Form'!F140=\"000\",'Blank - Request Form'!F140=0),\"\",'Blank - Request Form'!F140),IF('Blank - Request Form'!$F$7=\"CIUGC\",IF(OR('Blank - Request Form'!O140=\"000\",'Blank - Request Form'!O140=0),\"\",'Blank - Request Form'!O140),\"\"))","v":""},{"$f":"IF('Blank - Request Form'!$F$6=\"CIUGC\",IF(OR('Blank - Request Form'!G140=\"0\",'Blank - Request Form'!G140=\"00000\",'Blank - Request Form'!G140=0),\"\",'Blank - Request Form'!G140),IF('Blank - Request Form'!$F$7=\"CIUGC\",IF(OR('Blank - Request Form'!P140=\"0\",'Blank - Request Form'!P140=\"00000\",'Blank - Request Form'!P140=0),\"\",'Blank - Request Form'!P140),\"\"))","v":""},{"$f":"IF('Blank - Request Form'!$F$6=\"CIUGC\",IF(OR('Blank - Request Form'!H140=\"0\",'Blank - Request Form'!H140=\"00000\",'Blank - Request Form'!H140=0),\"\",'Blank - Request Form'!H140),IF('Blank - Request Form'!$F$7=\"CIUGC\",IF(OR('Blank - Request Form'!Q140=\"0\",'Blank - Request Form'!Q140=\"00000\",'Blank - Request Form'!Q140=0),\"\",'Blank - Request Form'!Q140),\"\"))","v":""},{"$f":"IF('Blank - Request Form'!$F$6=\"CIUGC\",IF(OR('Blank - Request Form'!I140=\"0\",'Blank - Request Form'!I140=\"00000\",'Blank - Request Form'!I140=0),\"\",'Blank - Request Form'!I140),IF('Blank - Request Form'!$F$7=\"CIUGC\",IF(OR('Blank - Request Form'!R140=\"0\",'Blank - Request Form'!R140=\"00000\",'Blank - Request Form'!R140=0),\"\",'Blank - Request Form'!R140),\"\"))","v":""},null,{"$f":"IF('Blank - Request Form'!$F$6=\"CIUGC\",IF('Blank - Request Form'!K140=0,\"\",'Blank - Request Form'!K140),IF('Blank - Request Form'!$F$7=\"CIUGC\",IF('Blank - Request Form'!T140=0,\"\",'Blank - Request Form'!T140),\"\"))","v":""},null,null,null,{"$f":"IF(M106<>\"\",'Blank - Request Form'!$M$2,\"\")","v":""},{"$f":"IF('Blank - Request Form'!$F$6=\"CIUGC\",IF('Blank - Request Form'!J140=0,\"\",'Blank - Request Form'!J140),IF('Blank - Request Form'!$F$7=\"CIUGC\",IF('Blank - Request Form'!S140=0,\"\",'Blank - Request Form'!S140),\"\"))","v":""},"",106]
[{"$f":"IF('Blank - Request Form'!$F$6=\"CIUGC\",IF('Blank - Request Form'!D141=0,\"\",'Blank - Request Form'!D141),IF('Blank - Request Form'!$F$7=\"CIUGC\",IF('Blank - Request Form'!M141=0,\"\",'Blank - Request Form'!M141),\"\"))","v":""},{"$f":"IF('Blank - Request Form'!$F$6=\"CIUGC\",IF('Blank - Request Form'!E141=0,\"\",'Blank - Request Form'!E141),IF('Blank - Request Form'!$F$7=\"CIUGC\",IF('Blank - Request Form'!N141=0,\"\",'Blank - Request Form'!N141),\"\"))","v":""},{"$f":"IF('Blank - Request Form'!$F$6=\"CIUGC\",IF(OR('Blank - Request Form'!F141=\"000\",'Blank - Request Form'!F141=0),\"\",'Blank - Request Form'!F141),IF('Blank - Request Form'!$F$7=\"CIUGC\",IF(OR('Blank - Request Form'!O141=\"000\",'Blank - Request Form'!O141=0),\"\",'Blank - Request Form'!O141),\"\"))","v":""},{"$f":"IF('Blank - Request Form'!$F$6=\"CIUGC\",IF(OR('Blank - Request Form'!G141=\"0\",'Blank - Request Form'!G141=\"00000\",'Blank - Request Form'!G141=0),\"\",'Blank - Request Form'!G141),IF('Blank - Request Form'!$F$7=\"CIUGC\",IF(OR('Blank - Request Form'!P141=\"0\",'Blank - Request Form'!P141=\"00000\",'Blank - Request Form'!P141=0),\"\",'Blank - Request Form'!P141),\"\"))","v":""},{"$f":"IF('Blank - Request Form'!$F$6=\"CIUGC\",IF(OR('Blank - Request Form'!H141=\"0\",'Blank - Request Form'!H141=\"00000\",'Blank - Request Form'!H141=0),\"\",'Blank - Request Form'!H141),IF('Blank - Request Form'!$F$7=\"CIUGC\",IF(OR('Blank - Request Form'!Q141=\"0\",'Blank - Request Form'!Q141=\"00000\",'Blank - Request Form'!Q141=0),\"\",'Blank - Request Form'!Q141),\"\"))","v":""},{"$f":"IF('Blank - Request Form'!$F$6=\"CIUGC\",IF(OR('Blank - Request Form'!I141=\"0\",'Blank - Request Form'!I141=\"00000\",'Blank - Request Form'!I141=0),\"\",'Blank - Request Form'!I141),IF('Blank - Request Form'!$F$7=\"CIUGC\",IF(OR('Blank - Request Form'!R141=\"0\",'Blank - Request Form'!R141=\"00000\",'Blank - Request Form'!R141=0),\"\",'Blank - Request Form'!R141),\"\"))","v":""},null,{"$f":"IF('Blank - Request Form'!$F$6=\"CIUGC\",IF('Blank - Request Form'!K141=0,\"\",'Blank - Request Form'!K141),IF('Blank - Request Form'!$F$7=\"CIUGC\",IF('Blank - Request Form'!T141=0,\"\",'Blank - Request Form'!T141),\"\"))","v":""},null,null,null,{"$f":"IF(M107<>\"\",'Blank - Request Form'!$M$2,\"\")","v":""},{"$f":"IF('Blank - Request Form'!$F$6=\"CIUGC\",IF('Blank - Request Form'!J141=0,\"\",'Blank - Request Form'!J141),IF('Blank - Request Form'!$F$7=\"CIUGC\",IF('Blank - Request Form'!S141=0,\"\",'Blank - Request Form'!S141),\"\"))","v":""},"",107]
[{"$f":"IF('Blank - Request Form'!$F$6=\"CIUGC\",IF('Blank - Request Form'!D142=0,\"\",'Blank - Request Form'!D142),IF('Blank - Request Form'!$F$7=\"CIUGC\",IF('Blank - Request Form'!M142=0,\"\",'Blank - Request Form'!M142),\"\"))","v":""},{"$f":"IF('Blank - Request Form'!$F$6=\"CIUGC\",IF('Blank - Request Form'!E142=0,\"\",'Blank - Request Form'!E142),IF('Blank - Request Form'!$F$7=\"CIUGC\",IF('Blank - Request Form'!N142=0,\"\",'Blank - Request Form'!N142),\"\"))","v":""},{"$f":"IF('Blank - Request Form'!$F$6=\"CIUGC\",IF(OR('Blank - Request Form'!F142=\"000\",'Blank - Request Form'!F142=0),\"\",'Blank - Request Form'!F142),IF('Blank - Request Form'!$F$7=\"CIUGC\",IF(OR('Blank - Request Form'!O142=\"000\",'Blank - Request Form'!O142=0),\"\",'Blank - Request Form'!O142),\"\"))","v":""},{"$f":"IF('Blank - Request Form'!$F$6=\"CIUGC\",IF(OR('Blank - Request Form'!G142=\"0\",'Blank - Request Form'!G142=\"00000\",'Blank - Request Form'!G142=0),\"\",'Blank - Request Form'!G142),IF('Blank - Request Form'!$F$7=\"CIUGC\",IF(OR('Blank - Request Form'!P142=\"0\",'Blank - Request Form'!P142=\"00000\",'Blank - Request Form'!P142=0),\"\",'Blank - Request Form'!P142),\"\"))","v":""},{"$f":"IF('Blank - Request Form'!$F$6=\"CIUGC\",IF(OR('Blank - Request Form'!H142=\"0\",'Blank - Request Form'!H142=\"00000\",'Blank - Request Form'!H142=0),\"\",'Blank - Request Form'!H142),IF('Blank - Request Form'!$F$7=\"CIUGC\",IF(OR('Blank - Request Form'!Q142=\"0\",'Blank - Request Form'!Q142=\"00000\",'Blank - Request Form'!Q142=0),\"\",'Blank - Request Form'!Q142),\"\"))","v":""},{"$f":"IF('Blank - Request Form'!$F$6=\"CIUGC\",IF(OR('Blank - Request Form'!I142=\"0\",'Blank - Request Form'!I142=\"00000\",'Blank - Request Form'!I142=0),\"\",'Blank - Request Form'!I142),IF('Blank - Request Form'!$F$7=\"CIUGC\",IF(OR('Blank - Request Form'!R142=\"0\",'Blank - Request Form'!R142=\"00000\",'Blank - Request Form'!R142=0),\"\",'Blank - Request Form'!R142),\"\"))","v":""},null,{"$f":"IF('Blank - Request Form'!$F$6=\"CIUGC\",IF('Blank - Request Form'!K142=0,\"\",'Blank - Request Form'!K142),IF('Blank - Request Form'!$F$7=\"CIUGC\",IF('Blank - Request Form'!T142=0,\"\",'Blank - Request Form'!T142),\"\"))","v":""},null,null,null,{"$f":"IF(M108<>\"\",'Blank - Request Form'!$M$2,\"\")","v":""},{"$f":"IF('Blank - Request Form'!$F$6=\"CIUGC\",IF('Blank - Request Form'!J142=0,\"\",'Blank - Request Form'!J142),IF('Blank - Request Form'!$F$7=\"CIUGC\",IF('Blank - Request Form'!S142=0,\"\",'Blank - Request Form'!S142),\"\"))","v":""},"",108]
[{"$f":"IF('Blank - Request Form'!$F$6=\"CIUGC\",IF('Blank - Request Form'!D143=0,\"\",'Blank - Request Form'!D143),IF('Blank - Request Form'!$F$7=\"CIUGC\",IF('Blank - Request Form'!M143=0,\"\",'Blank - Request Form'!M143),\"\"))","v":""},{"$f":"IF('Blank - Request Form'!$F$6=\"CIUGC\",IF('Blank - Request Form'!E143=0,\"\",'Blank - Request Form'!E143),IF('Blank - Request Form'!$F$7=\"CIUGC\",IF('Blank - Request Form'!N143=0,\"\",'Blank - Request Form'!N143),\"\"))","v":""},{"$f":"IF('Blank - Request Form'!$F$6=\"CIUGC\",IF(OR('Blank - Request Form'!F143=\"000\",'Blank - Request Form'!F143=0),\"\",'Blank - Request Form'!F143),IF('Blank - Request Form'!$F$7=\"CIUGC\",IF(OR('Blank - Request Form'!O143=\"000\",'Blank - Request Form'!O143=0),\"\",'Blank - Request Form'!O143),\"\"))","v":""},{"$f":"IF('Blank - Request Form'!$F$6=\"CIUGC\",IF(OR('Blank - Request Form'!G143=\"0\",'Blank - Request Form'!G143=\"00000\",'Blank - Request Form'!G143=0),\"\",'Blank - Request Form'!G143),IF('Blank - Request Form'!$F$7=\"CIUGC\",IF(OR('Blank - Request Form'!P143=\"0\",'Blank - Request Form'!P143=\"00000\",'Blank - Request Form'!P143=0),\"\",'Blank - Request Form'!P143),\"\"))","v":""},{"$f":"IF('Blank - Request Form'!$F$6=\"CIUGC\",IF(OR('Blank - Request Form'!H143=\"0\",'Blank - Request Form'!H143=\"00000\",'Blank - Request Form'!H143=0),\"\",'Blank - Request Form'!H143),IF('Blank - Request Form'!$F$7=\"CIUGC\",IF(OR('Blank - Request Form'!Q143=\"0\",'Blank - Request Form'!Q143=\"00000\",'Blank - Request Form'!Q143=0),\"\",'Blank - Request Form'!Q143),\"\"))","v":""},{"$f":"IF('Blank - Request Form'!$F$6=\"CIUGC\",IF(OR('Blank - Request Form'!I143=\"0\",'Blank - Request Form'!I143=\"00000\",'Blank - Request Form'!I143=0),\"\",'Blank - Request Form'!I143),IF('Blank - Request Form'!$F$7=\"CIUGC\",IF(OR('Blank - Request Form'!R143=\"0\",'Blank - Request Form'!R143=\"00000\",'Blank - Request Form'!R143=0),\"\",'Blank - Request Form'!R143),\"\"))","v":""},null,{"$f":"IF('Blank - Request Form'!$F$6=\"CIUGC\",IF('Blank - Request Form'!K143=0,\"\",'Blank - Request Form'!K143),IF('Blank - Request Form'!$F$7=\"CIUGC\",IF('Blank - Request Form'!T143=0,\"\",'Blank - Request Form'!T143),\"\"))","v":""},null,null,null,{"$f":"IF(M109<>\"\",'Blank - Request Form'!$M$2,\"\")","v":""},{"$f":"IF('Blank - Request Form'!$F$6=\"CIUGC\",IF('Blank - Request Form'!J143=0,\"\",'Blank - Request Form'!J143),IF('Blank - Request Form'!$F$7=\"CIUGC\",IF('Blank - Request Form'!S143=0,\"\",'Blank - Request Form'!S143),\"\"))","v":""},"",109]
[{"$f":"IF('Blank - Request Form'!$F$6=\"CIUGC\",IF('Blank - Request Form'!D144=0,\"\",'Blank - Request Form'!D144),IF('Blank - Request Form'!$F$7=\"CIUGC\",IF('Blank - Request Form'!M144=0,\"\",'Blank - Request Form'!M144),\"\"))","v":""},{"$f":"IF('Blank - Request Form'!$F$6=\"CIUGC\",IF('Blank - Request Form'!E144=0,\"\",'Blank - Request Form'!E144),IF('Blank - Request Form'!$F$7=\"CIUGC\",IF('Blank - Request Form'!N144=0,\"\",'Blank - Request Form'!N144),\"\"))","v":""},{"$f":"IF('Blank - Request Form'!$F$6=\"CIUGC\",IF(OR('Blank - Request Form'!F144=\"000\",'Blank - Request Form'!F144=0),\"\",'Blank - Request Form'!F144),IF('Blank - Request Form'!$F$7=\"CIUGC\",IF(OR('Blank - Request Form'!O144=\"000\",'Blank - Request Form'!O144=0),\"\",'Blank - Request Form'!O144),\"\"))","v":""},{"$f":"IF('Blank - Request Form'!$F$6=\"CIUGC\",IF(OR('Blank - Request Form'!G144=\"0\",'Blank - Request Form'!G144=\"00000\",'Blank - Request Form'!G144=0),\"\",'Blank - Request Form'!G144),IF('Blank - Request Form'!$F$7=\"CIUGC\",IF(OR('Blank - Request Form'!P144=\"0\",'Blank - Request Form'!P144=\"00000\",'Blank - Request Form'!P144=0),\"\",'Blank - Request Form'!P144),\"\"))","v":""},{"$f":"IF('Blank - Request Form'!$F$6=\"CIUGC\",IF(OR('Blank - Request Form'!H144=\"0\",'Blank - Request Form'!H144=\"00000\",'Blank - Request Form'!H144=0),\"\",'Blank - Request Form'!H144),IF('Blank - Request Form'!$F$7=\"CIUGC\",IF(OR('Blank - Request Form'!Q144=\"0\",'Blank - Request Form'!Q144=\"00000\",'Blank - Request Form'!Q144=0),\"\",'Blank - Request Form'!Q144),\"\"))","v":""},{"$f":"IF('Blank - Request Form'!$F$6=\"CIUGC\",IF(OR('Blank - Request Form'!I144=\"0\",'Blank - Request Form'!I144=\"00000\",'Blank - Request Form'!I144=0),\"\",'Blank - Request Form'!I144),IF('Blank - Request Form'!$F$7=\"CIUGC\",IF(OR('Blank - Request Form'!R144=\"0\",'Blank - Request Form'!R144=\"00000\",'Blank - Request Form'!R144=0),\"\",'Blank - Request Form'!R144),\"\"))","v":""},null,{"$f":"IF('Blank - Request Form'!$F$6=\"CIUGC\",IF('Blank - Request Form'!K144=0,\"\",'Blank - Request Form'!K144),IF('Blank - Request Form'!$F$7=\"CIUGC\",IF('Blank - Request Form'!T144=0,\"\",'Blank - Request Form'!T144),\"\"))","v":""},null,null,null,{"$f":"IF(M110<>\"\",'Blank - Request Form'!$M$2,\"\")","v":""},{"$f":"IF('Blank - Request Form'!$F$6=\"CIUGC\",IF('Blank - Request Form'!J144=0,\"\",'Blank - Request Form'!J144),IF('Blank - Request Form'!$F$7=\"CIUGC\",IF('Blank - Request Form'!S144=0,\"\",'Blank - Request Form'!S144),\"\"))","v":""},{"$f":"IF(M110<>\"\",O110,\"\")","v":""},110]
[{"$f":"IF('Blank - Request Form'!$F$6=\"CIUGC\",IF('Blank - Request Form'!D145=0,\"\",'Blank - Request Form'!D145),IF('Blank - Request Form'!$F$7=\"CIUGC\",IF('Blank - Request Form'!M145=0,\"\",'Blank - Request Form'!M145),\"\"))","v":""},{"$f":"IF('Blank - Request Form'!$F$6=\"CIUGC\",IF('Blank - Request Form'!E145=0,\"\",'Blank - Request Form'!E145),IF('Blank - Request Form'!$F$7=\"CIUGC\",IF('Blank - Request Form'!N145=0,\"\",'Blank - Request Form'!N145),\"\"))","v":""},{"$f":"IF('Blank - Request Form'!$F$6=\"CIUGC\",IF(OR('Blank - Request Form'!F145=\"000\",'Blank - Request Form'!F145=0),\"\",'Blank - Request Form'!F145),IF('Blank - Request Form'!$F$7=\"CIUGC\",IF(OR('Blank - Request Form'!O145=\"000\",'Blank - Request Form'!O145=0),\"\",'Blank - Request Form'!O145),\"\"))","v":""},{"$f":"IF('Blank - Request Form'!$F$6=\"CIUGC\",IF(OR('Blank - Request Form'!G145=\"0\",'Blank - Request Form'!G145=\"00000\",'Blank - Request Form'!G145=0),\"\",'Blank - Request Form'!G145),IF('Blank - Request Form'!$F$7=\"CIUGC\",IF(OR('Blank - Request Form'!P145=\"0\",'Blank - Request Form'!P145=\"00000\",'Blank - Request Form'!P145=0),\"\",'Blank - Request Form'!P145),\"\"))","v":""},{"$f":"IF('Blank - Request Form'!$F$6=\"CIUGC\",IF(OR('Blank - Request Form'!H145=\"0\",'Blank - Request Form'!H145=\"00000\",'Blank - Request Form'!H145=0),\"\",'Blank - Request Form'!H145),IF('Blank - Request Form'!$F$7=\"CIUGC\",IF(OR('Blank - Request Form'!Q145=\"0\",'Blank - Request Form'!Q145=\"00000\",'Blank - Request Form'!Q145=0),\"\",'Blank - Request Form'!Q145),\"\"))","v":""},{"$f":"IF('Blank - Request Form'!$F$6=\"CIUGC\",IF(OR('Blank - Request Form'!I145=\"0\",'Blank - Request Form'!I145=\"00000\",'Blank - Request Form'!I145=0),\"\",'Blank - Request Form'!I145),IF('Blank - Request Form'!$F$7=\"CIUGC\",IF(OR('Blank - Request Form'!R145=\"0\",'Blank - Request Form'!R145=\"00000\",'Blank - Request Form'!R145=0),\"\",'Blank - Request Form'!R145),\"\"))","v":""},null,{"$f":"IF('Blank - Request Form'!$F$6=\"CIUGC\",IF('Blank - Request Form'!K145=0,\"\",'Blank - Request Form'!K145),IF('Blank - Request Form'!$F$7=\"CIUGC\",IF('Blank - Request Form'!T145=0,\"\",'Blank - Request Form'!T145),\"\"))","v":""},null,null,null,{"$f":"IF(M111<>\"\",'Blank - Request Form'!$M$2,\"\")","v":""},{"$f":"IF('Blank - Request Form'!$F$6=\"CIUGC\",IF('Blank - Request Form'!J145=0,\"\",'Blank - Request Form'!J145),IF('Blank - Request Form'!$F$7=\"CIUGC\",IF('Blank - Request Form'!S145=0,\"\",'Blank - Request Form'!S145),\"\"))","v":""},"",111]
[{"$f":"IF('Blank - Request Form'!$F$6=\"CIUGC\",IF('Blank - Request Form'!D146=0,\"\",'Blank - Request Form'!D146),IF('Blank - Request Form'!$F$7=\"CIUGC\",IF('Blank - Request Form'!M146=0,\"\",'Blank - Request Form'!M146),\"\"))","v":""},{"$f":"IF('Blank - Request Form'!$F$6=\"CIUGC\",IF('Blank - Request Form'!E146=0,\"\",'Blank - Request Form'!E146),IF('Blank - Request Form'!$F$7=\"CIUGC\",IF('Blank - Request Form'!N146=0,\"\",'Blank - Request Form'!N146),\"\"))","v":""},{"$f":"IF('Blank - Request Form'!$F$6=\"CIUGC\",IF(OR('Blank - Request Form'!F146=\"000\",'Blank - Request Form'!F146=0),\"\",'Blank - Request Form'!F146),IF('Blank - Request Form'!$F$7=\"CIUGC\",IF(OR('Blank - Request Form'!O146=\"000\",'Blank - Request Form'!O146=0),\"\",'Blank - Request Form'!O146),\"\"))","v":""},{"$f":"IF('Blank - Request Form'!$F$6=\"CIUGC\",IF(OR('Blank - Request Form'!G146=\"0\",'Blank - Request Form'!G146=\"00000\",'Blank - Request Form'!G146=0),\"\",'Blank - Request Form'!G146),IF('Blank - Request Form'!$F$7=\"CIUGC\",IF(OR('Blank - Request Form'!P146=\"0\",'Blank - Request Form'!P146=\"00000\",'Blank - Request Form'!P146=0),\"\",'Blank - Request Form'!P146),\"\"))","v":""},{"$f":"IF('Blank - Request Form'!$F$6=\"CIUGC\",IF(OR('Blank - Request Form'!H146=\"0\",'Blank - Request Form'!H146=\"00000\",'Blank - Request Form'!H146=0),\"\",'Blank - Request Form'!H146),IF('Blank - Request Form'!$F$7=\"CIUGC\",IF(OR('Blank - Request Form'!Q146=\"0\",'Blank - Request Form'!Q146=\"00000\",'Blank - Request Form'!Q146=0),\"\",'Blank - Request Form'!Q146),\"\"))","v":""},{"$f":"IF('Blank - Request Form'!$F$6=\"CIUGC\",IF(OR('Blank - Request Form'!I146=\"0\",'Blank - Request Form'!I146=\"00000\",'Blank - Request Form'!I146=0),\"\",'Blank - Request Form'!I146),IF('Blank - Request Form'!$F$7=\"CIUGC\",IF(OR('Blank - Request Form'!R146=\"0\",'Blank - Request Form'!R146=\"00000\",'Blank - Request Form'!R146=0),\"\",'Blank - Request Form'!R146),\"\"))","v":""},null,{"$f":"IF('Blank - Request Form'!$F$6=\"CIUGC\",IF('Blank - Request Form'!K146=0,\"\",'Blank - Request Form'!K146),IF('Blank - Request Form'!$F$7=\"CIUGC\",IF('Blank - Request Form'!T146=0,\"\",'Blank - Request Form'!T146),\"\"))","v":""},null,null,null,{"$f":"IF(M112<>\"\",'Blank - Request Form'!$M$2,\"\")","v":""},{"$f":"IF('Blank - Request Form'!$F$6=\"CIUGC\",IF('Blank - Request Form'!J146=0,\"\",'Blank - Request Form'!J146),IF('Blank - Request Form'!$F$7=\"CIUGC\",IF('Blank - Request Form'!S146=0,\"\",'Blank - Request Form'!S146),\"\"))","v":""},"",112]
[{"$f":"IF('Blank - Request Form'!$F$6=\"CIUGC\",IF('Blank - Request Form'!D147=0,\"\",'Blank - Request Form'!D147),IF('Blank - Request Form'!$F$7=\"CIUGC\",IF('Blank - Request Form'!M147=0,\"\",'Blank - Request Form'!M147),\"\"))","v":""},{"$f":"IF('Blank - Request Form'!$F$6=\"CIUGC\",IF('Blank - Request Form'!E147=0,\"\",'Blank - Request Form'!E147),IF('Blank - Request Form'!$F$7=\"CIUGC\",IF('Blank - Request Form'!N147=0,\"\",'Blank - Request Form'!N147),\"\"))","v":""},{"$f":"IF('Blank - Request Form'!$F$6=\"CIUGC\",IF(OR('Blank - Request Form'!F147=\"000\",'Blank - Request Form'!F147=0),\"\",'Blank - Request Form'!F147),IF('Blank - Request Form'!$F$7=\"CIUGC\",IF(OR('Blank - Request Form'!O147=\"000\",'Blank - Request Form'!O147=0),\"\",'Blank - Request Form'!O147),\"\"))","v":""},{"$f":"IF('Blank - Request Form'!$F$6=\"CIUGC\",IF(OR('Blank - Request Form'!G147=\"0\",'Blank - Request Form'!G147=\"00000\",'Blank - Request Form'!G147=0),\"\",'Blank - Request Form'!G147),IF('Blank - Request Form'!$F$7=\"CIUGC\",IF(OR('Blank - Request Form'!P147=\"0\",'Blank - Request Form'!P147=\"00000\",'Blank - Request Form'!P147=0),\"\",'Blank - Request Form'!P147),\"\"))","v":""},{"$f":"IF('Blank - Request Form'!$F$6=\"CIUGC\",IF(OR('Blank - Request Form'!H147=\"0\",'Blank - Request Form'!H147=\"00000\",'Blank - Request Form'!H147=0),\"\",'Blank - Request Form'!H147),IF('Blank - Request Form'!$F$7=\"CIUGC\",IF(OR('Blank - Request Form'!Q147=\"0\",'Blank - Request Form'!Q147=\"00000\",'Blank - Request Form'!Q147=0),\"\",'Blank - Request Form'!Q147),\"\"))","v":""},{"$f":"IF('Blank - Request Form'!$F$6=\"CIUGC\",IF(OR('Blank - Request Form'!I147=\"0\",'Blank - Request Form'!I147=\"00000\",'Blank - Request Form'!I147=0),\"\",'Blank - Request Form'!I147),IF('Blank - Request Form'!$F$7=\"CIUGC\",IF(OR('Blank - Request Form'!R147=\"0\",'Blank - Request Form'!R147=\"00000\",'Blank - Request Form'!R147=0),\"\",'Blank - Request Form'!R147),\"\"))","v":""},null,{"$f":"IF('Blank - Request Form'!$F$6=\"CIUGC\",IF('Blank - Request Form'!K147=0,\"\",'Blank - Request Form'!K147),IF('Blank - Request Form'!$F$7=\"CIUGC\",IF('Blank - Request Form'!T147=0,\"\",'Blank - Request Form'!T147),\"\"))","v":""},null,null,null,{"$f":"IF(M113<>\"\",'Blank - Request Form'!$M$2,\"\")","v":""},{"$f":"IF('Blank - Request Form'!$F$6=\"CIUGC\",IF('Blank - Request Form'!J147=0,\"\",'Blank - Request Form'!J147),IF('Blank - Request Form'!$F$7=\"CIUGC\",IF('Blank - Request Form'!S147=0,\"\",'Blank - Request Form'!S147),\"\"))","v":""},"",113]
[{"$f":"IF('Blank - Request Form'!$F$6=\"CIUGC\",IF('Blank - Request Form'!D148=0,\"\",'Blank - Request Form'!D148),IF('Blank - Request Form'!$F$7=\"CIUGC\",IF('Blank - Request Form'!M148=0,\"\",'Blank - Request Form'!M148),\"\"))","v":""},{"$f":"IF('Blank - Request Form'!$F$6=\"CIUGC\",IF('Blank - Request Form'!E148=0,\"\",'Blank - Request Form'!E148),IF('Blank - Request Form'!$F$7=\"CIUGC\",IF('Blank - Request Form'!N148=0,\"\",'Blank - Request Form'!N148),\"\"))","v":""},{"$f":"IF('Blank - Request Form'!$F$6=\"CIUGC\",IF(OR('Blank - Request Form'!F148=\"000\",'Blank - Request Form'!F148=0),\"\",'Blank - Request Form'!F148),IF('Blank - Request Form'!$F$7=\"CIUGC\",IF(OR('Blank - Request Form'!O148=\"000\",'Blank - Request Form'!O148=0),\"\",'Blank - Request Form'!O148),\"\"))","v":""},{"$f":"IF('Blank - Request Form'!$F$6=\"CIUGC\",IF(OR('Blank - Request Form'!G148=\"0\",'Blank - Request Form'!G148=\"00000\",'Blank - Request Form'!G148=0),\"\",'Blank - Request Form'!G148),IF('Blank - Request Form'!$F$7=\"CIUGC\",IF(OR('Blank - Request Form'!P148=\"0\",'Blank - Request Form'!P148=\"00000\",'Blank - Request Form'!P148=0),\"\",'Blank - Request Form'!P148),\"\"))","v":""},{"$f":"IF('Blank - Request Form'!$F$6=\"CIUGC\",IF(OR('Blank - Request Form'!H148=\"0\",'Blank - Request Form'!H148=\"00000\",'Blank - Request Form'!H148=0),\"\",'Blank - Request Form'!H148),IF('Blank - Request Form'!$F$7=\"CIUGC\",IF(OR('Blank - Request Form'!Q148=\"0\",'Blank - Request Form'!Q148=\"00000\",'Blank - Request Form'!Q148=0),\"\",'Blank - Request Form'!Q148),\"\"))","v":""},{"$f":"IF('Blank - Request Form'!$F$6=\"CIUGC\",IF(OR('Blank - Request Form'!I148=\"0\",'Blank - Request Form'!I148=\"00000\",'Blank - Request Form'!I148=0),\"\",'Blank - Request Form'!I148),IF('Blank - Request Form'!$F$7=\"CIUGC\",IF(OR('Blank - Request Form'!R148=\"0\",'Blank - Request Form'!R148=\"00000\",'Blank - Request Form'!R148=0),\"\",'Blank - Request Form'!R148),\"\"))","v":""},null,{"$f":"IF('Blank - Request Form'!$F$6=\"CIUGC\",IF('Blank - Request Form'!K148=0,\"\",'Blank - Request Form'!K148),IF('Blank - Request Form'!$F$7=\"CIUGC\",IF('Blank - Request Form'!T148=0,\"\",'Blank - Request Form'!T148),\"\"))","v":""},null,null,null,{"$f":"IF(M114<>\"\",'Blank - Request Form'!$M$2,\"\")","v":""},{"$f":"IF('Blank - Request Form'!$F$6=\"CIUGC\",IF('Blank - Request Form'!J148=0,\"\",'Blank - Request Form'!J148),IF('Blank - Request Form'!$F$7=\"CIUGC\",IF('Blank - Request Form'!S148=0,\"\",'Blank - Request Form'!S148),\"\"))","v":""},"",114]
[{"$f":"IF('Blank - Request Form'!$F$6=\"CIUGC\",IF('Blank - Request Form'!D149=0,\"\",'Blank - Request Form'!D149),IF('Blank - Request Form'!$F$7=\"CIUGC\",IF('Blank - Request Form'!M149=0,\"\",'Blank - Request Form'!M149),\"\"))","v":""},{"$f":"IF('Blank - Request Form'!$F$6=\"CIUGC\",IF('Blank - Request Form'!E149=0,\"\",'Blank - Request Form'!E149),IF('Blank - Request Form'!$F$7=\"CIUGC\",IF('Blank - Request Form'!N149=0,\"\",'Blank - Request Form'!N149),\"\"))","v":""},{"$f":"IF('Blank - Request Form'!$F$6=\"CIUGC\",IF(OR('Blank - Request Form'!F149=\"000\",'Blank - Request Form'!F149=0),\"\",'Blank - Request Form'!F149),IF('Blank - Request Form'!$F$7=\"CIUGC\",IF(OR('Blank - Request Form'!O149=\"000\",'Blank - Request Form'!O149=0),\"\",'Blank - Request Form'!O149),\"\"))","v":""},{"$f":"IF('Blank - Request Form'!$F$6=\"CIUGC\",IF(OR('Blank - Request Form'!G149=\"0\",'Blank - Request Form'!G149=\"00000\",'Blank - Request Form'!G149=0),\"\",'Blank - Request Form'!G149),IF('Blank - Request Form'!$F$7=\"CIUGC\",IF(OR('Blank - Request Form'!P149=\"0\",'Blank - Request Form'!P149=\"00000\",'Blank - Request Form'!P149=0),\"\",'Blank - Request Form'!P149),\"\"))","v":""},{"$f":"IF('Blank - Request Form'!$F$6=\"CIUGC\",IF(OR('Blank - Request Form'!H149=\"0\",'Blank - Request Form'!H149=\"00000\",'Blank - Request Form'!H149=0),\"\",'Blank - Request Form'!H149),IF('Blank - Request Form'!$F$7=\"CIUGC\",IF(OR('Blank - Request Form'!Q149=\"0\",'Blank - Request Form'!Q149=\"00000\",'Blank - Request Form'!Q149=0),\"\",'Blank - Request Form'!Q149),\"\"))","v":""},{"$f":"IF('Blank - Request Form'!$F$6=\"CIUGC\",IF(OR('Blank - Request Form'!I149=\"0\",'Blank - Request Form'!I149=\"00000\",'Blank - Request Form'!I149=0),\"\",'Blank - Request Form'!I149),IF('Blank - Request Form'!$F$7=\"CIUGC\",IF(OR('Blank - Request Form'!R149=\"0\",'Blank - Request Form'!R149=\"00000\",'Blank - Request Form'!R149=0),\"\",'Blank - Request Form'!R149),\"\"))","v":""},null,{"$f":"IF('Blank - Request Form'!$F$6=\"CIUGC\",IF('Blank - Request Form'!K149=0,\"\",'Blank - Request Form'!K149),IF('Blank - Request Form'!$F$7=\"CIUGC\",IF('Blank - Request Form'!T149=0,\"\",'Blank - Request Form'!T149),\"\"))","v":""},null,null,null,{"$f":"IF(M115<>\"\",'Blank - Request Form'!$M$2,\"\")","v":""},{"$f":"IF('Blank - Request Form'!$F$6=\"CIUGC\",IF('Blank - Request Form'!J149=0,\"\",'Blank - Request Form'!J149),IF('Blank - Request Form'!$F$7=\"CIUGC\",IF('Blank - Request Form'!S149=0,\"\",'Blank - Request Form'!S149),\"\"))","v":""},"",115]
[{"$f":"IF('Blank - Request Form'!$F$6=\"CIUGC\",IF('Blank - Request Form'!D150=0,\"\",'Blank - Request Form'!D150),IF('Blank - Request Form'!$F$7=\"CIUGC\",IF('Blank - Request Form'!M150=0,\"\",'Blank - Request Form'!M150),\"\"))","v":""},{"$f":"IF('Blank - Request Form'!$F$6=\"CIUGC\",IF('Blank - Request Form'!E150=0,\"\",'Blank - Request Form'!E150),IF('Blank - Request Form'!$F$7=\"CIUGC\",IF('Blank - Request Form'!N150=0,\"\",'Blank - Request Form'!N150),\"\"))","v":""},{"$f":"IF('Blank - Request Form'!$F$6=\"CIUGC\",IF(OR('Blank - Request Form'!F150=\"000\",'Blank - Request Form'!F150=0),\"\",'Blank - Request Form'!F150),IF('Blank - Request Form'!$F$7=\"CIUGC\",IF(OR('Blank - Request Form'!O150=\"000\",'Blank - Request Form'!O150=0),\"\",'Blank - Request Form'!O150),\"\"))","v":""},{"$f":"IF('Blank - Request Form'!$F$6=\"CIUGC\",IF(OR('Blank - Request Form'!G150=\"0\",'Blank - Request Form'!G150=\"00000\",'Blank - Request Form'!G150=0),\"\",'Blank - Request Form'!G150),IF('Blank - Request Form'!$F$7=\"CIUGC\",IF(OR('Blank - Request Form'!P150=\"0\",'Blank - Request Form'!P150=\"00000\",'Blank - Request Form'!P150=0),\"\",'Blank - Request Form'!P150),\"\"))","v":""},{"$f":"IF('Blank - Request Form'!$F$6=\"CIUGC\",IF(OR('Blank - Request Form'!H150=\"0\",'Blank - Request Form'!H150=\"00000\",'Blank - Request Form'!H150=0),\"\",'Blank - Request Form'!H150),IF('Blank - Request Form'!$F$7=\"CIUGC\",IF(OR('Blank - Request Form'!Q150=\"0\",'Blank - Request Form'!Q150=\"00000\",'Blank - Request Form'!Q150=0),\"\",'Blank - Request Form'!Q150),\"\"))","v":""},{"$f":"IF('Blank - Request Form'!$F$6=\"CIUGC\",IF(OR('Blank - Request Form'!I150=\"0\",'Blank - Request Form'!I150=\"00000\",'Blank - Request Form'!I150=0),\"\",'Blank - Request Form'!I150),IF('Blank - Request Form'!$F$7=\"CIUGC\",IF(OR('Blank - Request Form'!R150=\"0\",'Blank - Request Form'!R150=\"00000\",'Blank - Request Form'!R150=0),\"\",'Blank - Request Form'!R150),\"\"))","v":""},null,{"$f":"IF('Blank - Request Form'!$F$6=\"CIUGC\",IF('Blank - Request Form'!K150=0,\"\",'Blank - Request Form'!K150),IF('Blank - Request Form'!$F$7=\"CIUGC\",IF('Blank - Request Form'!T150=0,\"\",'Blank - Request Form'!T150),\"\"))","v":""},null,null,null,{"$f":"IF(M116<>\"\",'Blank - Request Form'!$M$2,\"\")","v":""},{"$f":"IF('Blank - Request Form'!$F$6=\"CIUGC\",IF('Blank - Request Form'!J150=0,\"\",'Blank - Request Form'!J150),IF('Blank - Request Form'!$F$7=\"CIUGC\",IF('Blank - Request Form'!S150=0,\"\",'Blank - Request Form'!S150),\"\"))","v":""},"",116]
[{"$f":"IF('Blank - Request Form'!$F$6=\"CIUGC\",IF('Blank - Request Form'!D151=0,\"\",'Blank - Request Form'!D151),IF('Blank - Request Form'!$F$7=\"CIUGC\",IF('Blank - Request Form'!M151=0,\"\",'Blank - Request Form'!M151),\"\"))","v":""},{"$f":"IF('Blank - Request Form'!$F$6=\"CIUGC\",IF('Blank - Request Form'!E151=0,\"\",'Blank - Request Form'!E151),IF('Blank - Request Form'!$F$7=\"CIUGC\",IF('Blank - Request Form'!N151=0,\"\",'Blank - Request Form'!N151),\"\"))","v":""},{"$f":"IF('Blank - Request Form'!$F$6=\"CIUGC\",IF(OR('Blank - Request Form'!F151=\"000\",'Blank - Request Form'!F151=0),\"\",'Blank - Request Form'!F151),IF('Blank - Request Form'!$F$7=\"CIUGC\",IF(OR('Blank - Request Form'!O151=\"000\",'Blank - Request Form'!O151=0),\"\",'Blank - Request Form'!O151),\"\"))","v":""},{"$f":"IF('Blank - Request Form'!$F$6=\"CIUGC\",IF(OR('Blank - Request Form'!G151=\"0\",'Blank - Request Form'!G151=\"00000\",'Blank - Request Form'!G151=0),\"\",'Blank - Request Form'!G151),IF('Blank - Request Form'!$F$7=\"CIUGC\",IF(OR('Blank - Request Form'!P151=\"0\",'Blank - Request Form'!P151=\"00000\",'Blank - Request Form'!P151=0),\"\",'Blank - Request Form'!P151),\"\"))","v":""},{"$f":"IF('Blank - Request Form'!$F$6=\"CIUGC\",IF(OR('Blank - Request Form'!H151=\"0\",'Blank - Request Form'!H151=\"00000\",'Blank - Request Form'!H151=0),\"\",'Blank - Request Form'!H151),IF('Blank - Request Form'!$F$7=\"CIUGC\",IF(OR('Blank - Request Form'!Q151=\"0\",'Blank - Request Form'!Q151=\"00000\",'Blank - Request Form'!Q151=0),\"\",'Blank - Request Form'!Q151),\"\"))","v":""},{"$f":"IF('Blank - Request Form'!$F$6=\"CIUGC\",IF(OR('Blank - Request Form'!I151=\"0\",'Blank - Request Form'!I151=\"00000\",'Blank - Request Form'!I151=0),\"\",'Blank - Request Form'!I151),IF('Blank - Request Form'!$F$7=\"CIUGC\",IF(OR('Blank - Request Form'!R151=\"0\",'Blank - Request Form'!R151=\"00000\",'Blank - Request Form'!R151=0),\"\",'Blank - Request Form'!R151),\"\"))","v":""},null,{"$f":"IF('Blank - Request Form'!$F$6=\"CIUGC\",IF('Blank - Request Form'!K151=0,\"\",'Blank - Request Form'!K151),IF('Blank - Request Form'!$F$7=\"CIUGC\",IF('Blank - Request Form'!T151=0,\"\",'Blank - Request Form'!T151),\"\"))","v":""},null,null,null,{"$f":"IF(M117<>\"\",'Blank - Request Form'!$M$2,\"\")","v":""},{"$f":"IF('Blank - Request Form'!$F$6=\"CIUGC\",IF('Blank - Request Form'!J151=0,\"\",'Blank - Request Form'!J151),IF('Blank - Request Form'!$F$7=\"CIUGC\",IF('Blank - Request Form'!S151=0,\"\",'Blank - Request Form'!S151),\"\"))","v":""},"",117]
[{"$f":"IF('Blank - Request Form'!$F$6=\"CIUGC\",IF('Blank - Request Form'!D152=0,\"\",'Blank - Request Form'!D152),IF('Blank - Request Form'!$F$7=\"CIUGC\",IF('Blank - Request Form'!M152=0,\"\",'Blank - Request Form'!M152),\"\"))","v":""},{"$f":"IF('Blank - Request Form'!$F$6=\"CIUGC\",IF('Blank - Request Form'!E152=0,\"\",'Blank - Request Form'!E152),IF('Blank - Request Form'!$F$7=\"CIUGC\",IF('Blank - Request Form'!N152=0,\"\",'Blank - Request Form'!N152),\"\"))","v":""},{"$f":"IF('Blank - Request Form'!$F$6=\"CIUGC\",IF(OR('Blank - Request Form'!F152=\"000\",'Blank - Request Form'!F152=0),\"\",'Blank - Request Form'!F152),IF('Blank - Request Form'!$F$7=\"CIUGC\",IF(OR('Blank - Request Form'!O152=\"000\",'Blank - Request Form'!O152=0),\"\",'Blank - Request Form'!O152),\"\"))","v":""},{"$f":"IF('Blank - Request Form'!$F$6=\"CIUGC\",IF(OR('Blank - Request Form'!G152=\"0\",'Blank - Request Form'!G152=\"00000\",'Blank - Request Form'!G152=0),\"\",'Blank - Request Form'!G152),IF('Blank - Request Form'!$F$7=\"CIUGC\",IF(OR('Blank - Request Form'!P152=\"0\",'Blank - Request Form'!P152=\"00000\",'Blank - Request Form'!P152=0),\"\",'Blank - Request Form'!P152),\"\"))","v":""},{"$f":"IF('Blank - Request Form'!$F$6=\"CIUGC\",IF(OR('Blank - Request Form'!H152=\"0\",'Blank - Request Form'!H152=\"00000\",'Blank - Request Form'!H152=0),\"\",'Blank - Request Form'!H152),IF('Blank - Request Form'!$F$7=\"CIUGC\",IF(OR('Blank - Request Form'!Q152=\"0\",'Blank - Request Form'!Q152=\"00000\",'Blank - Request Form'!Q152=0),\"\",'Blank - Request Form'!Q152),\"\"))","v":""},{"$f":"IF('Blank - Request Form'!$F$6=\"CIUGC\",IF(OR('Blank - Request Form'!I152=\"0\",'Blank - Request Form'!I152=\"00000\",'Blank - Request Form'!I152=0),\"\",'Blank - Request Form'!I152),IF('Blank - Request Form'!$F$7=\"CIUGC\",IF(OR('Blank - Request Form'!R152=\"0\",'Blank - Request Form'!R152=\"00000\",'Blank - Request Form'!R152=0),\"\",'Blank - Request Form'!R152),\"\"))","v":""},null,{"$f":"IF('Blank - Request Form'!$F$6=\"CIUGC\",IF('Blank - Request Form'!K152=0,\"\",'Blank - Request Form'!K152),IF('Blank - Request Form'!$F$7=\"CIUGC\",IF('Blank - Request Form'!T152=0,\"\",'Blank - Request Form'!T152),\"\"))","v":""},null,null,null,{"$f":"IF(M118<>\"\",'Blank - Request Form'!$M$2,\"\")","v":""},{"$f":"IF('Blank - Request Form'!$F$6=\"CIUGC\",IF('Blank - Request Form'!J152=0,\"\",'Blank - Request Form'!J152),IF('Blank - Request Form'!$F$7=\"CIUGC\",IF('Blank - Request Form'!S152=0,\"\",'Blank - Request Form'!S152),\"\"))","v":""},"",118]
[{"$f":"IF('Blank - Request Form'!$F$6=\"CIUGC\",IF('Blank - Request Form'!D153=0,\"\",'Blank - Request Form'!D153),IF('Blank - Request Form'!$F$7=\"CIUGC\",IF('Blank - Request Form'!M153=0,\"\",'Blank - Request Form'!M153),\"\"))","v":""},{"$f":"IF('Blank - Request Form'!$F$6=\"CIUGC\",IF('Blank - Request Form'!E153=0,\"\",'Blank - Request Form'!E153),IF('Blank - Request Form'!$F$7=\"CIUGC\",IF('Blank - Request Form'!N153=0,\"\",'Blank - Request Form'!N153),\"\"))","v":""},{"$f":"IF('Blank - Request Form'!$F$6=\"CIUGC\",IF(OR('Blank - Request Form'!F153=\"000\",'Blank - Request Form'!F153=0),\"\",'Blank - Request Form'!F153),IF('Blank - Request Form'!$F$7=\"CIUGC\",IF(OR('Blank - Request Form'!O153=\"000\",'Blank - Request Form'!O153=0),\"\",'Blank - Request Form'!O153),\"\"))","v":""},{"$f":"IF('Blank - Request Form'!$F$6=\"CIUGC\",IF(OR('Blank - Request Form'!G153=\"0\",'Blank - Request Form'!G153=\"00000\",'Blank - Request Form'!G153=0),\"\",'Blank - Request Form'!G153),IF('Blank - Request Form'!$F$7=\"CIUGC\",IF(OR('Blank - Request Form'!P153=\"0\",'Blank - Request Form'!P153=\"00000\",'Blank - Request Form'!P153=0),\"\",'Blank - Request Form'!P153),\"\"))","v":""},{"$f":"IF('Blank - Request Form'!$F$6=\"CIUGC\",IF(OR('Blank - Request Form'!H153=\"0\",'Blank - Request Form'!H153=\"00000\",'Blank - Request Form'!H153=0),\"\",'Blank - Request Form'!H153),IF('Blank - Request Form'!$F$7=\"CIUGC\",IF(OR('Blank - Request Form'!Q153=\"0\",'Blank - Request Form'!Q153=\"00000\",'Blank - Request Form'!Q153=0),\"\",'Blank - Request Form'!Q153),\"\"))","v":""},{"$f":"IF('Blank - Request Form'!$F$6=\"CIUGC\",IF(OR('Blank - Request Form'!I153=\"0\",'Blank - Request Form'!I153=\"00000\",'Blank - Request Form'!I153=0),\"\",'Blank - Request Form'!I153),IF('Blank - Request Form'!$F$7=\"CIUGC\",IF(OR('Blank - Request Form'!R153=\"0\",'Blank - Request Form'!R153=\"00000\",'Blank - Request Form'!R153=0),\"\",'Blank - Request Form'!R153),\"\"))","v":""},null,{"$f":"IF('Blank - Request Form'!$F$6=\"CIUGC\",IF('Blank - Request Form'!K153=0,\"\",'Blank - Request Form'!K153),IF('Blank - Request Form'!$F$7=\"CIUGC\",IF('Blank - Request Form'!T153=0,\"\",'Blank - Request Form'!T153),\"\"))","v":""},null,null,null,{"$f":"IF(M119<>\"\",'Blank - Request Form'!$M$2,\"\")","v":""},{"$f":"IF('Blank - Request Form'!$F$6=\"CIUGC\",IF('Blank - Request Form'!J153=0,\"\",'Blank - Request Form'!J153),IF('Blank - Request Form'!$F$7=\"CIUGC\",IF('Blank - Request Form'!S153=0,\"\",'Blank - Request Form'!S153),\"\"))","v":""},"",119]
[{"$f":"IF('Blank - Request Form'!$F$6=\"CIUGC\",IF('Blank - Request Form'!D154=0,\"\",'Blank - Request Form'!D154),IF('Blank - Request Form'!$F$7=\"CIUGC\",IF('Blank - Request Form'!M154=0,\"\",'Blank - Request Form'!M154),\"\"))","v":""},{"$f":"IF('Blank - Request Form'!$F$6=\"CIUGC\",IF('Blank - Request Form'!E154=0,\"\",'Blank - Request Form'!E154),IF('Blank - Request Form'!$F$7=\"CIUGC\",IF('Blank - Request Form'!N154=0,\"\",'Blank - Request Form'!N154),\"\"))","v":""},{"$f":"IF('Blank - Request Form'!$F$6=\"CIUGC\",IF(OR('Blank - Request Form'!F154=\"000\",'Blank - Request Form'!F154=0),\"\",'Blank - Request Form'!F154),IF('Blank - Request Form'!$F$7=\"CIUGC\",IF(OR('Blank - Request Form'!O154=\"000\",'Blank - Request Form'!O154=0),\"\",'Blank - Request Form'!O154),\"\"))","v":""},{"$f":"IF('Blank - Request Form'!$F$6=\"CIUGC\",IF(OR('Blank - Request Form'!G154=\"0\",'Blank - Request Form'!G154=\"00000\",'Blank - Request Form'!G154=0),\"\",'Blank - Request Form'!G154),IF('Blank - Request Form'!$F$7=\"CIUGC\",IF(OR('Blank - Request Form'!P154=\"0\",'Blank - Request Form'!P154=\"00000\",'Blank - Request Form'!P154=0),\"\",'Blank - Request Form'!P154),\"\"))","v":""},{"$f":"IF('Blank - Request Form'!$F$6=\"CIUGC\",IF(OR('Blank - Request Form'!H154=\"0\",'Blank - Request Form'!H154=\"00000\",'Blank - Request Form'!H154=0),\"\",'Blank - Request Form'!H154),IF('Blank - Request Form'!$F$7=\"CIUGC\",IF(OR('Blank - Request Form'!Q154=\"0\",'Blank - Request Form'!Q154=\"00000\",'Blank - Request Form'!Q154=0),\"\",'Blank - Request Form'!Q154),\"\"))","v":""},{"$f":"IF('Blank - Request Form'!$F$6=\"CIUGC\",IF(OR('Blank - Request Form'!I154=\"0\",'Blank - Request Form'!I154=\"00000\",'Blank - Request Form'!I154=0),\"\",'Blank - Request Form'!I154),IF('Blank - Request Form'!$F$7=\"CIUGC\",IF(OR('Blank - Request Form'!R154=\"0\",'Blank - Request Form'!R154=\"00000\",'Blank - Request Form'!R154=0),\"\",'Blank - Request Form'!R154),\"\"))","v":""},null,{"$f":"IF('Blank - Request Form'!$F$6=\"CIUGC\",IF('Blank - Request Form'!K154=0,\"\",'Blank - Request Form'!K154),IF('Blank - Request Form'!$F$7=\"CIUGC\",IF('Blank - Request Form'!T154=0,\"\",'Blank - Request Form'!T154),\"\"))","v":""},null,null,null,{"$f":"IF(M120<>\"\",'Blank - Request Form'!$M$2,\"\")","v":""},{"$f":"IF('Blank - Request Form'!$F$6=\"CIUGC\",IF('Blank - Request Form'!J154=0,\"\",'Blank - Request Form'!J154),IF('Blank - Request Form'!$F$7=\"CIUGC\",IF('Blank - Request Form'!S154=0,\"\",'Blank - Request Form'!S154),\"\"))","v":""},"",120]
[{"$f":"IF('Blank - Request Form'!$F$6=\"CIUGC\",IF('Blank - Request Form'!D155=0,\"\",'Blank - Request Form'!D155),IF('Blank - Request Form'!$F$7=\"CIUGC\",IF('Blank - Request Form'!M155=0,\"\",'Blank - Request Form'!M155),\"\"))","v":""},{"$f":"IF('Blank - Request Form'!$F$6=\"CIUGC\",IF('Blank - Request Form'!E155=0,\"\",'Blank - Request Form'!E155),IF('Blank - Request Form'!$F$7=\"CIUGC\",IF('Blank - Request Form'!N155=0,\"\",'Blank - Request Form'!N155),\"\"))","v":""},{"$f":"IF('Blank - Request Form'!$F$6=\"CIUGC\",IF(OR('Blank - Request Form'!F155=\"000\",'Blank - Request Form'!F155=0),\"\",'Blank - Request Form'!F155),IF('Blank - Request Form'!$F$7=\"CIUGC\",IF(OR('Blank - Request Form'!O155=\"000\",'Blank - Request Form'!O155=0),\"\",'Blank - Request Form'!O155),\"\"))","v":""},{"$f":"IF('Blank - Request Form'!$F$6=\"CIUGC\",IF(OR('Blank - Request Form'!G155=\"0\",'Blank - Request Form'!G155=\"00000\",'Blank - Request Form'!G155=0),\"\",'Blank - Request Form'!G155),IF('Blank - Request Form'!$F$7=\"CIUGC\",IF(OR('Blank - Request Form'!P155=\"0\",'Blank - Request Form'!P155=\"00000\",'Blank - Request Form'!P155=0),\"\",'Blank - Request Form'!P155),\"\"))","v":""},{"$f":"IF('Blank - Request Form'!$F$6=\"CIUGC\",IF(OR('Blank - Request Form'!H155=\"0\",'Blank - Request Form'!H155=\"00000\",'Blank - Request Form'!H155=0),\"\",'Blank - Request Form'!H155),IF('Blank - Request Form'!$F$7=\"CIUGC\",IF(OR('Blank - Request Form'!Q155=\"0\",'Blank - Request Form'!Q155=\"00000\",'Blank - Request Form'!Q155=0),\"\",'Blank - Request Form'!Q155),\"\"))","v":""},{"$f":"IF('Blank - Request Form'!$F$6=\"CIUGC\",IF(OR('Blank - Request Form'!I155=\"0\",'Blank - Request Form'!I155=\"00000\",'Blank - Request Form'!I155=0),\"\",'Blank - Request Form'!I155),IF('Blank - Request Form'!$F$7=\"CIUGC\",IF(OR('Blank - Request Form'!R155=\"0\",'Blank - Request Form'!R155=\"00000\",'Blank - Request Form'!R155=0),\"\",'Blank - Request Form'!R155),\"\"))","v":""},null,{"$f":"IF('Blank - Request Form'!$F$6=\"CIUGC\",IF('Blank - Request Form'!K155=0,\"\",'Blank - Request Form'!K155),IF('Blank - Request Form'!$F$7=\"CIUGC\",IF('Blank - Request Form'!T155=0,\"\",'Blank - Request Form'!T155),\"\"))","v":""},null,null,null,{"$f":"IF(M121<>\"\",'Blank - Request Form'!$M$2,\"\")","v":""},{"$f":"IF('Blank - Request Form'!$F$6=\"CIUGC\",IF('Blank - Request Form'!J155=0,\"\",'Blank - Request Form'!J155),IF('Blank - Request Form'!$F$7=\"CIUGC\",IF('Blank - Request Form'!S155=0,\"\",'Blank - Request Form'!S155),\"\"))","v":""},"",121]
[{"$f":"IF('Blank - Request Form'!$F$6=\"CIUGC\",IF('Blank - Request Form'!D156=0,\"\",'Blank - Request Form'!D156),IF('Blank - Request Form'!$F$7=\"CIUGC\",IF('Blank - Request Form'!M156=0,\"\",'Blank - Request Form'!M156),\"\"))","v":""},{"$f":"IF('Blank - Request Form'!$F$6=\"CIUGC\",IF('Blank - Request Form'!E156=0,\"\",'Blank - Request Form'!E156),IF('Blank - Request Form'!$F$7=\"CIUGC\",IF('Blank - Request Form'!N156=0,\"\",'Blank - Request Form'!N156),\"\"))","v":""},{"$f":"IF('Blank - Request Form'!$F$6=\"CIUGC\",IF(OR('Blank - Request Form'!F156=\"000\",'Blank - Request Form'!F156=0),\"\",'Blank - Request Form'!F156),IF('Blank - Request Form'!$F$7=\"CIUGC\",IF(OR('Blank - Request Form'!O156=\"000\",'Blank - Request Form'!O156=0),\"\",'Blank - Request Form'!O156),\"\"))","v":""},{"$f":"IF('Blank - Request Form'!$F$6=\"CIUGC\",IF(OR('Blank - Request Form'!G156=\"0\",'Blank - Request Form'!G156=\"00000\",'Blank - Request Form'!G156=0),\"\",'Blank - Request Form'!G156),IF('Blank - Request Form'!$F$7=\"CIUGC\",IF(OR('Blank - Request Form'!P156=\"0\",'Blank - Request Form'!P156=\"00000\",'Blank - Request Form'!P156=0),\"\",'Blank - Request Form'!P156),\"\"))","v":""},{"$f":"IF('Blank - Request Form'!$F$6=\"CIUGC\",IF(OR('Blank - Request Form'!H156=\"0\",'Blank - Request Form'!H156=\"00000\",'Blank - Request Form'!H156=0),\"\",'Blank - Request Form'!H156),IF('Blank - Request Form'!$F$7=\"CIUGC\",IF(OR('Blank - Request Form'!Q156=\"0\",'Blank - Request Form'!Q156=\"00000\",'Blank - Request Form'!Q156=0),\"\",'Blank - Request Form'!Q156),\"\"))","v":""},{"$f":"IF('Blank - Request Form'!$F$6=\"CIUGC\",IF(OR('Blank - Request Form'!I156=\"0\",'Blank - Request Form'!I156=\"00000\",'Blank - Request Form'!I156=0),\"\",'Blank - Request Form'!I156),IF('Blank - Request Form'!$F$7=\"CIUGC\",IF(OR('Blank - Request Form'!R156=\"0\",'Blank - Request Form'!R156=\"00000\",'Blank - Request Form'!R156=0),\"\",'Blank - Request Form'!R156),\"\"))","v":""},null,{"$f":"IF('Blank - Request Form'!$F$6=\"CIUGC\",IF('Blank - Request Form'!K156=0,\"\",'Blank - Request Form'!K156),IF('Blank - Request Form'!$F$7=\"CIUGC\",IF('Blank - Request Form'!T156=0,\"\",'Blank - Request Form'!T156),\"\"))","v":""},null,null,null,{"$f":"IF(M122<>\"\",'Blank - Request Form'!$M$2,\"\")","v":""},{"$f":"IF('Blank - Request Form'!$F$6=\"CIUGC\",IF('Blank - Request Form'!J156=0,\"\",'Blank - Request Form'!J156),IF('Blank - Request Form'!$F$7=\"CIUGC\",IF('Blank - Request Form'!S156=0,\"\",'Blank - Request Form'!S156),\"\"))","v":""},"",122]
[{"$f":"IF('Blank - Request Form'!$F$6=\"CIUGC\",IF('Blank - Request Form'!D157=0,\"\",'Blank - Request Form'!D157),IF('Blank - Request Form'!$F$7=\"CIUGC\",IF('Blank - Request Form'!M157=0,\"\",'Blank - Request Form'!M157),\"\"))","v":""},{"$f":"IF('Blank - Request Form'!$F$6=\"CIUGC\",IF('Blank - Request Form'!E157=0,\"\",'Blank - Request Form'!E157),IF('Blank - Request Form'!$F$7=\"CIUGC\",IF('Blank - Request Form'!N157=0,\"\",'Blank - Request Form'!N157),\"\"))","v":""},{"$f":"IF('Blank - Request Form'!$F$6=\"CIUGC\",IF(OR('Blank - Request Form'!F157=\"000\",'Blank - Request Form'!F157=0),\"\",'Blank - Request Form'!F157),IF('Blank - Request Form'!$F$7=\"CIUGC\",IF(OR('Blank - Request Form'!O157=\"000\",'Blank - Request Form'!O157=0),\"\",'Blank - Request Form'!O157),\"\"))","v":""},{"$f":"IF('Blank - Request Form'!$F$6=\"CIUGC\",IF(OR('Blank - Request Form'!G157=\"0\",'Blank - Request Form'!G157=\"00000\",'Blank - Request Form'!G157=0),\"\",'Blank - Request Form'!G157),IF('Blank - Request Form'!$F$7=\"CIUGC\",IF(OR('Blank - Request Form'!P157=\"0\",'Blank - Request Form'!P157=\"00000\",'Blank - Request Form'!P157=0),\"\",'Blank - Request Form'!P157),\"\"))","v":""},{"$f":"IF('Blank - Request Form'!$F$6=\"CIUGC\",IF(OR('Blank - Request Form'!H157=\"0\",'Blank - Request Form'!H157=\"00000\",'Blank - Request Form'!H157=0),\"\",'Blank - Request Form'!H157),IF('Blank - Request Form'!$F$7=\"CIUGC\",IF(OR('Blank - Request Form'!Q157=\"0\",'Blank - Request Form'!Q157=\"00000\",'Blank - Request Form'!Q157=0),\"\",'Blank - Request Form'!Q157),\"\"))","v":""},{"$f":"IF('Blank - Request Form'!$F$6=\"CIUGC\",IF(OR('Blank - Request Form'!I157=\"0\",'Blank - Request Form'!I157=\"00000\",'Blank - Request Form'!I157=0),\"\",'Blank - Request Form'!I157),IF('Blank - Request Form'!$F$7=\"CIUGC\",IF(OR('Blank - Request Form'!R157=\"0\",'Blank - Request Form'!R157=\"00000\",'Blank - Request Form'!R157=0),\"\",'Blank - Request Form'!R157),\"\"))","v":""},null,{"$f":"IF('Blank - Request Form'!$F$6=\"CIUGC\",IF('Blank - Request Form'!K157=0,\"\",'Blank - Request Form'!K157),IF('Blank - Request Form'!$F$7=\"CIUGC\",IF('Blank - Request Form'!T157=0,\"\",'Blank - Request Form'!T157),\"\"))","v":""},null,null,null,{"$f":"IF(M123<>\"\",'Blank - Request Form'!$M$2,\"\")","v":""},{"$f":"IF('Blank - Request Form'!$F$6=\"CIUGC\",IF('Blank - Request Form'!J157=0,\"\",'Blank - Request Form'!J157),IF('Blank - Request Form'!$F$7=\"CIUGC\",IF('Blank - Request Form'!S157=0,\"\",'Blank - Request Form'!S157),\"\"))","v":""},"",123]
[{"$f":"IF('Blank - Request Form'!$F$6=\"CIUGC\",IF('Blank - Request Form'!D158=0,\"\",'Blank - Request Form'!D158),IF('Blank - Request Form'!$F$7=\"CIUGC\",IF('Blank - Request Form'!M158=0,\"\",'Blank - Request Form'!M158),\"\"))","v":""},{"$f":"IF('Blank - Request Form'!$F$6=\"CIUGC\",IF('Blank - Request Form'!E158=0,\"\",'Blank - Request Form'!E158),IF('Blank - Request Form'!$F$7=\"CIUGC\",IF('Blank - Request Form'!N158=0,\"\",'Blank - Request Form'!N158),\"\"))","v":""},{"$f":"IF('Blank - Request Form'!$F$6=\"CIUGC\",IF(OR('Blank - Request Form'!F158=\"000\",'Blank - Request Form'!F158=0),\"\",'Blank - Request Form'!F158),IF('Blank - Request Form'!$F$7=\"CIUGC\",IF(OR('Blank - Request Form'!O158=\"000\",'Blank - Request Form'!O158=0),\"\",'Blank - Request Form'!O158),\"\"))","v":""},{"$f":"IF('Blank - Request Form'!$F$6=\"CIUGC\",IF(OR('Blank - Request Form'!G158=\"0\",'Blank - Request Form'!G158=\"00000\",'Blank - Request Form'!G158=0),\"\",'Blank - Request Form'!G158),IF('Blank - Request Form'!$F$7=\"CIUGC\",IF(OR('Blank - Request Form'!P158=\"0\",'Blank - Request Form'!P158=\"00000\",'Blank - Request Form'!P158=0),\"\",'Blank - Request Form'!P158),\"\"))","v":""},{"$f":"IF('Blank - Request Form'!$F$6=\"CIUGC\",IF(OR('Blank - Request Form'!H158=\"0\",'Blank - Request Form'!H158=\"00000\",'Blank - Request Form'!H158=0),\"\",'Blank - Request Form'!H158),IF('Blank - Request Form'!$F$7=\"CIUGC\",IF(OR('Blank - Request Form'!Q158=\"0\",'Blank - Request Form'!Q158=\"00000\",'Blank - Request Form'!Q158=0),\"\",'Blank - Request Form'!Q158),\"\"))","v":""},{"$f":"IF('Blank - Request Form'!$F$6=\"CIUGC\",IF(OR('Blank - Request Form'!I158=\"0\",'Blank - Request Form'!I158=\"00000\",'Blank - Request Form'!I158=0),\"\",'Blank - Request Form'!I158),IF('Blank - Request Form'!$F$7=\"CIUGC\",IF(OR('Blank - Request Form'!R158=\"0\",'Blank - Request Form'!R158=\"00000\",'Blank - Request Form'!R158=0),\"\",'Blank - Request Form'!R158),\"\"))","v":""},null,{"$f":"IF('Blank - Request Form'!$F$6=\"CIUGC\",IF('Blank - Request Form'!K158=0,\"\",'Blank - Request Form'!K158),IF('Blank - Request Form'!$F$7=\"CIUGC\",IF('Blank - Request Form'!T158=0,\"\",'Blank - Request Form'!T158),\"\"))","v":""},null,null,null,{"$f":"IF(M124<>\"\",'Blank - Request Form'!$M$2,\"\")","v":""},{"$f":"IF('Blank - Request Form'!$F$6=\"CIUGC\",IF('Blank - Request Form'!J158=0,\"\",'Blank - Request Form'!J158),IF('Blank - Request Form'!$F$7=\"CIUGC\",IF('Blank - Request Form'!S158=0,\"\",'Blank - Request Form'!S158),\"\"))","v":""},"",124]
[{"$f":"IF('Blank - Request Form'!$F$6=\"CIUGC\",IF('Blank - Request Form'!D159=0,\"\",'Blank - Request Form'!D159),IF('Blank - Request Form'!$F$7=\"CIUGC\",IF('Blank - Request Form'!M159=0,\"\",'Blank - Request Form'!M159),\"\"))","v":""},{"$f":"IF('Blank - Request Form'!$F$6=\"CIUGC\",IF('Blank - Request Form'!E159=0,\"\",'Blank - Request Form'!E159),IF('Blank - Request Form'!$F$7=\"CIUGC\",IF('Blank - Request Form'!N159=0,\"\",'Blank - Request Form'!N159),\"\"))","v":""},{"$f":"IF('Blank - Request Form'!$F$6=\"CIUGC\",IF(OR('Blank - Request Form'!F159=\"000\",'Blank - Request Form'!F159=0),\"\",'Blank - Request Form'!F159),IF('Blank - Request Form'!$F$7=\"CIUGC\",IF(OR('Blank - Request Form'!O159=\"000\",'Blank - Request Form'!O159=0),\"\",'Blank - Request Form'!O159),\"\"))","v":""},{"$f":"IF('Blank - Request Form'!$F$6=\"CIUGC\",IF(OR('Blank - Request Form'!G159=\"0\",'Blank - Request Form'!G159=\"00000\",'Blank - Request Form'!G159=0),\"\",'Blank - Request Form'!G159),IF('Blank - Request Form'!$F$7=\"CIUGC\",IF(OR('Blank - Request Form'!P159=\"0\",'Blank - Request Form'!P159=\"00000\",'Blank - Request Form'!P159=0),\"\",'Blank - Request Form'!P159),\"\"))","v":""},{"$f":"IF('Blank - Request Form'!$F$6=\"CIUGC\",IF(OR('Blank - Request Form'!H159=\"0\",'Blank - Request Form'!H159=\"00000\",'Blank - Request Form'!H159=0),\"\",'Blank - Request Form'!H159),IF('Blank - Request Form'!$F$7=\"CIUGC\",IF(OR('Blank - Request Form'!Q159=\"0\",'Blank - Request Form'!Q159=\"00000\",'Blank - Request Form'!Q159=0),\"\",'Blank - Request Form'!Q159),\"\"))","v":""},{"$f":"IF('Blank - Request Form'!$F$6=\"CIUGC\",IF(OR('Blank - Request Form'!I159=\"0\",'Blank - Request Form'!I159=\"00000\",'Blank - Request Form'!I159=0),\"\",'Blank - Request Form'!I159),IF('Blank - Request Form'!$F$7=\"CIUGC\",IF(OR('Blank - Request Form'!R159=\"0\",'Blank - Request Form'!R159=\"00000\",'Blank - Request Form'!R159=0),\"\",'Blank - Request Form'!R159),\"\"))","v":""},null,{"$f":"IF('Blank - Request Form'!$F$6=\"CIUGC\",IF('Blank - Request Form'!K159=0,\"\",'Blank - Request Form'!K159),IF('Blank - Request Form'!$F$7=\"CIUGC\",IF('Blank - Request Form'!T159=0,\"\",'Blank - Request Form'!T159),\"\"))","v":""},null,null,null,{"$f":"IF(M125<>\"\",'Blank - Request Form'!$M$2,\"\")","v":""},{"$f":"IF('Blank - Request Form'!$F$6=\"CIUGC\",IF('Blank - Request Form'!J159=0,\"\",'Blank - Request Form'!J159),IF('Blank - Request Form'!$F$7=\"CIUGC\",IF('Blank - Request Form'!S159=0,\"\",'Blank - Request Form'!S159),\"\"))","v":""},"",125]
[{"$f":"IF('Blank - Request Form'!$F$6=\"CIUGC\",IF('Blank - Request Form'!D160=0,\"\",'Blank - Request Form'!D160),IF('Blank - Request Form'!$F$7=\"CIUGC\",IF('Blank - Request Form'!M160=0,\"\",'Blank - Request Form'!M160),\"\"))","v":""},{"$f":"IF('Blank - Request Form'!$F$6=\"CIUGC\",IF('Blank - Request Form'!E160=0,\"\",'Blank - Request Form'!E160),IF('Blank - Request Form'!$F$7=\"CIUGC\",IF('Blank - Request Form'!N160=0,\"\",'Blank - Request Form'!N160),\"\"))","v":""},{"$f":"IF('Blank - Request Form'!$F$6=\"CIUGC\",IF(OR('Blank - Request Form'!F160=\"000\",'Blank - Request Form'!F160=0),\"\",'Blank - Request Form'!F160),IF('Blank - Request Form'!$F$7=\"CIUGC\",IF(OR('Blank - Request Form'!O160=\"000\",'Blank - Request Form'!O160=0),\"\",'Blank - Request Form'!O160),\"\"))","v":""},{"$f":"IF('Blank - Request Form'!$F$6=\"CIUGC\",IF(OR('Blank - Request Form'!G160=\"0\",'Blank - Request Form'!G160=\"00000\",'Blank - Request Form'!G160=0),\"\",'Blank - Request Form'!G160),IF('Blank - Request Form'!$F$7=\"CIUGC\",IF(OR('Blank - Request Form'!P160=\"0\",'Blank - Request Form'!P160=\"00000\",'Blank - Request Form'!P160=0),\"\",'Blank - Request Form'!P160),\"\"))","v":""},{"$f":"IF('Blank - Request Form'!$F$6=\"CIUGC\",IF(OR('Blank - Request Form'!H160=\"0\",'Blank - Request Form'!H160=\"00000\",'Blank - Request Form'!H160=0),\"\",'Blank - Request Form'!H160),IF('Blank - Request Form'!$F$7=\"CIUGC\",IF(OR('Blank - Request Form'!Q160=\"0\",'Blank - Request Form'!Q160=\"00000\",'Blank - Request Form'!Q160=0),\"\",'Blank - Request Form'!Q160),\"\"))","v":""},{"$f":"IF('Blank - Request Form'!$F$6=\"CIUGC\",IF(OR('Blank - Request Form'!I160=\"0\",'Blank - Request Form'!I160=\"00000\",'Blank - Request Form'!I160=0),\"\",'Blank - Request Form'!I160),IF('Blank - Request Form'!$F$7=\"CIUGC\",IF(OR('Blank - Request Form'!R160=\"0\",'Blank - Request Form'!R160=\"00000\",'Blank - Request Form'!R160=0),\"\",'Blank - Request Form'!R160),\"\"))","v":""},null,{"$f":"IF('Blank - Request Form'!$F$6=\"CIUGC\",IF('Blank - Request Form'!K160=0,\"\",'Blank - Request Form'!K160),IF('Blank - Request Form'!$F$7=\"CIUGC\",IF('Blank - Request Form'!T160=0,\"\",'Blank - Request Form'!T160),\"\"))","v":""},null,null,null,{"$f":"IF(M126<>\"\",'Blank - Request Form'!$M$2,\"\")","v":""},{"$f":"IF('Blank - Request Form'!$F$6=\"CIUGC\",IF('Blank - Request Form'!J160=0,\"\",'Blank - Request Form'!J160),IF('Blank - Request Form'!$F$7=\"CIUGC\",IF('Blank - Request Form'!S160=0,\"\",'Blank - Request Form'!S160),\"\"))","v":""},"",126]
[{"$f":"IF('Blank - Request Form'!$F$6=\"CIUGC\",IF('Blank - Request Form'!D161=0,\"\",'Blank - Request Form'!D161),IF('Blank - Request Form'!$F$7=\"CIUGC\",IF('Blank - Request Form'!M161=0,\"\",'Blank - Request Form'!M161),\"\"))","v":""},{"$f":"IF('Blank - Request Form'!$F$6=\"CIUGC\",IF('Blank - Request Form'!E161=0,\"\",'Blank - Request Form'!E161),IF('Blank - Request Form'!$F$7=\"CIUGC\",IF('Blank - Request Form'!N161=0,\"\",'Blank - Request Form'!N161),\"\"))","v":""},{"$f":"IF('Blank - Request Form'!$F$6=\"CIUGC\",IF(OR('Blank - Request Form'!F161=\"000\",'Blank - Request Form'!F161=0),\"\",'Blank - Request Form'!F161),IF('Blank - Request Form'!$F$7=\"CIUGC\",IF(OR('Blank - Request Form'!O161=\"000\",'Blank - Request Form'!O161=0),\"\",'Blank - Request Form'!O161),\"\"))","v":""},{"$f":"IF('Blank - Request Form'!$F$6=\"CIUGC\",IF(OR('Blank - Request Form'!G161=\"0\",'Blank - Request Form'!G161=\"00000\",'Blank - Request Form'!G161=0),\"\",'Blank - Request Form'!G161),IF('Blank - Request Form'!$F$7=\"CIUGC\",IF(OR('Blank - Request Form'!P161=\"0\",'Blank - Request Form'!P161=\"00000\",'Blank - Request Form'!P161=0),\"\",'Blank - Request Form'!P161),\"\"))","v":""},{"$f":"IF('Blank - Request Form'!$F$6=\"CIUGC\",IF(OR('Blank - Request Form'!H161=\"0\",'Blank - Request Form'!H161=\"00000\",'Blank - Request Form'!H161=0),\"\",'Blank - Request Form'!H161),IF('Blank - Request Form'!$F$7=\"CIUGC\",IF(OR('Blank - Request Form'!Q161=\"0\",'Blank - Request Form'!Q161=\"00000\",'Blank - Request Form'!Q161=0),\"\",'Blank - Request Form'!Q161),\"\"))","v":""},{"$f":"IF('Blank - Request Form'!$F$6=\"CIUGC\",IF(OR('Blank - Request Form'!I161=\"0\",'Blank - Request Form'!I161=\"00000\",'Blank - Request Form'!I161=0),\"\",'Blank - Request Form'!I161),IF('Blank - Request Form'!$F$7=\"CIUGC\",IF(OR('Blank - Request Form'!R161=\"0\",'Blank - Request Form'!R161=\"00000\",'Blank - Request Form'!R161=0),\"\",'Blank - Request Form'!R161),\"\"))","v":""},null,{"$f":"IF('Blank - Request Form'!$F$6=\"CIUGC\",IF('Blank - Request Form'!K161=0,\"\",'Blank - Request Form'!K161),IF('Blank - Request Form'!$F$7=\"CIUGC\",IF('Blank - Request Form'!T161=0,\"\",'Blank - Request Form'!T161),\"\"))","v":""},null,null,null,{"$f":"IF(M127<>\"\",'Blank - Request Form'!$M$2,\"\")","v":""},{"$f":"IF('Blank - Request Form'!$F$6=\"CIUGC\",IF('Blank - Request Form'!J161=0,\"\",'Blank - Request Form'!J161),IF('Blank - Request Form'!$F$7=\"CIUGC\",IF('Blank - Request Form'!S161=0,\"\",'Blank - Request Form'!S161),\"\"))","v":""},"",127]
[{"$f":"IF('Blank - Request Form'!$F$6=\"CIUGC\",IF('Blank - Request Form'!D162=0,\"\",'Blank - Request Form'!D162),IF('Blank - Request Form'!$F$7=\"CIUGC\",IF('Blank - Request Form'!M162=0,\"\",'Blank - Request Form'!M162),\"\"))","v":""},{"$f":"IF('Blank - Request Form'!$F$6=\"CIUGC\",IF('Blank - Request Form'!E162=0,\"\",'Blank - Request Form'!E162),IF('Blank - Request Form'!$F$7=\"CIUGC\",IF('Blank - Request Form'!N162=0,\"\",'Blank - Request Form'!N162),\"\"))","v":""},{"$f":"IF('Blank - Request Form'!$F$6=\"CIUGC\",IF(OR('Blank - Request Form'!F162=\"000\",'Blank - Request Form'!F162=0),\"\",'Blank - Request Form'!F162),IF('Blank - Request Form'!$F$7=\"CIUGC\",IF(OR('Blank - Request Form'!O162=\"000\",'Blank - Request Form'!O162=0),\"\",'Blank - Request Form'!O162),\"\"))","v":""},{"$f":"IF('Blank - Request Form'!$F$6=\"CIUGC\",IF(OR('Blank - Request Form'!G162=\"0\",'Blank - Request Form'!G162=\"00000\",'Blank - Request Form'!G162=0),\"\",'Blank - Request Form'!G162),IF('Blank - Request Form'!$F$7=\"CIUGC\",IF(OR('Blank - Request Form'!P162=\"0\",'Blank - Request Form'!P162=\"00000\",'Blank - Request Form'!P162=0),\"\",'Blank - Request Form'!P162),\"\"))","v":""},{"$f":"IF('Blank - Request Form'!$F$6=\"CIUGC\",IF(OR('Blank - Request Form'!H162=\"0\",'Blank - Request Form'!H162=\"00000\",'Blank - Request Form'!H162=0),\"\",'Blank - Request Form'!H162),IF('Blank - Request Form'!$F$7=\"CIUGC\",IF(OR('Blank - Request Form'!Q162=\"0\",'Blank - Request Form'!Q162=\"00000\",'Blank - Request Form'!Q162=0),\"\",'Blank - Request Form'!Q162),\"\"))","v":""},{"$f":"IF('Blank - Request Form'!$F$6=\"CIUGC\",IF(OR('Blank - Request Form'!I162=\"0\",'Blank - Request Form'!I162=\"00000\",'Blank - Request Form'!I162=0),\"\",'Blank - Request Form'!I162),IF('Blank - Request Form'!$F$7=\"CIUGC\",IF(OR('Blank - Request Form'!R162=\"0\",'Blank - Request Form'!R162=\"00000\",'Blank - Request Form'!R162=0),\"\",'Blank - Request Form'!R162),\"\"))","v":""},null,{"$f":"IF('Blank - Request Form'!$F$6=\"CIUGC\",IF('Blank - Request Form'!K162=0,\"\",'Blank - Request Form'!K162),IF('Blank - Request Form'!$F$7=\"CIUGC\",IF('Blank - Request Form'!T162=0,\"\",'Blank - Request Form'!T162),\"\"))","v":""},null,null,null,{"$f":"IF(M128<>\"\",'Blank - Request Form'!$M$2,\"\")","v":""},{"$f":"IF('Blank - Request Form'!$F$6=\"CIUGC\",IF('Blank - Request Form'!J162=0,\"\",'Blank - Request Form'!J162),IF('Blank - Request Form'!$F$7=\"CIUGC\",IF('Blank - Request Form'!S162=0,\"\",'Blank - Request Form'!S162),\"\"))","v":""},"",128]
[{"$f":"IF('Blank - Request Form'!$F$6=\"CIUGC\",IF('Blank - Request Form'!D163=0,\"\",'Blank - Request Form'!D163),IF('Blank - Request Form'!$F$7=\"CIUGC\",IF('Blank - Request Form'!M163=0,\"\",'Blank - Request Form'!M163),\"\"))","v":""},{"$f":"IF('Blank - Request Form'!$F$6=\"CIUGC\",IF('Blank - Request Form'!E163=0,\"\",'Blank - Request Form'!E163),IF('Blank - Request Form'!$F$7=\"CIUGC\",IF('Blank - Request Form'!N163=0,\"\",'Blank - Request Form'!N163),\"\"))","v":""},{"$f":"IF('Blank - Request Form'!$F$6=\"CIUGC\",IF(OR('Blank - Request Form'!F163=\"000\",'Blank - Request Form'!F163=0),\"\",'Blank - Request Form'!F163),IF('Blank - Request Form'!$F$7=\"CIUGC\",IF(OR('Blank - Request Form'!O163=\"000\",'Blank - Request Form'!O163=0),\"\",'Blank - Request Form'!O163),\"\"))","v":""},{"$f":"IF('Blank - Request Form'!$F$6=\"CIUGC\",IF(OR('Blank - Request Form'!G163=\"0\",'Blank - Request Form'!G163=\"00000\",'Blank - Request Form'!G163=0),\"\",'Blank - Request Form'!G163),IF('Blank - Request Form'!$F$7=\"CIUGC\",IF(OR('Blank - Request Form'!P163=\"0\",'Blank - Request Form'!P163=\"00000\",'Blank - Request Form'!P163=0),\"\",'Blank - Request Form'!P163),\"\"))","v":""},{"$f":"IF('Blank - Request Form'!$F$6=\"CIUGC\",IF(OR('Blank - Request Form'!H163=\"0\",'Blank - Request Form'!H163=\"00000\",'Blank - Request Form'!H163=0),\"\",'Blank - Request Form'!H163),IF('Blank - Request Form'!$F$7=\"CIUGC\",IF(OR('Blank - Request Form'!Q163=\"0\",'Blank - Request Form'!Q163=\"00000\",'Blank - Request Form'!Q163=0),\"\",'Blank - Request Form'!Q163),\"\"))","v":""},{"$f":"IF('Blank - Request Form'!$F$6=\"CIUGC\",IF(OR('Blank - Request Form'!I163=\"0\",'Blank - Request Form'!I163=\"00000\",'Blank - Request Form'!I163=0),\"\",'Blank - Request Form'!I163),IF('Blank - Request Form'!$F$7=\"CIUGC\",IF(OR('Blank - Request Form'!R163=\"0\",'Blank - Request Form'!R163=\"00000\",'Blank - Request Form'!R163=0),\"\",'Blank - Request Form'!R163),\"\"))","v":""},null,{"$f":"IF('Blank - Request Form'!$F$6=\"CIUGC\",IF('Blank - Request Form'!K163=0,\"\",'Blank - Request Form'!K163),IF('Blank - Request Form'!$F$7=\"CIUGC\",IF('Blank - Request Form'!T163=0,\"\",'Blank - Request Form'!T163),\"\"))","v":""},null,null,null,{"$f":"IF(M129<>\"\",'Blank - Request Form'!$M$2,\"\")","v":""},{"$f":"IF('Blank - Request Form'!$F$6=\"CIUGC\",IF('Blank - Request Form'!J163=0,\"\",'Blank - Request Form'!J163),IF('Blank - Request Form'!$F$7=\"CIUGC\",IF('Blank - Request Form'!S163=0,\"\",'Blank - Request Form'!S163),\"\"))","v":""},"",129]
[{"$f":"IF('Blank - Request Form'!$F$6=\"CIUGC\",IF('Blank - Request Form'!D164=0,\"\",'Blank - Request Form'!D164),IF('Blank - Request Form'!$F$7=\"CIUGC\",IF('Blank - Request Form'!M164=0,\"\",'Blank - Request Form'!M164),\"\"))","v":""},{"$f":"IF('Blank - Request Form'!$F$6=\"CIUGC\",IF('Blank - Request Form'!E164=0,\"\",'Blank - Request Form'!E164),IF('Blank - Request Form'!$F$7=\"CIUGC\",IF('Blank - Request Form'!N164=0,\"\",'Blank - Request Form'!N164),\"\"))","v":""},{"$f":"IF('Blank - Request Form'!$F$6=\"CIUGC\",IF(OR('Blank - Request Form'!F164=\"000\",'Blank - Request Form'!F164=0),\"\",'Blank - Request Form'!F164),IF('Blank - Request Form'!$F$7=\"CIUGC\",IF(OR('Blank - Request Form'!O164=\"000\",'Blank - Request Form'!O164=0),\"\",'Blank - Request Form'!O164),\"\"))","v":""},{"$f":"IF('Blank - Request Form'!$F$6=\"CIUGC\",IF(OR('Blank - Request Form'!G164=\"0\",'Blank - Request Form'!G164=\"00000\",'Blank - Request Form'!G164=0),\"\",'Blank - Request Form'!G164),IF('Blank - Request Form'!$F$7=\"CIUGC\",IF(OR('Blank - Request Form'!P164=\"0\",'Blank - Request Form'!P164=\"00000\",'Blank - Request Form'!P164=0),\"\",'Blank - Request Form'!P164),\"\"))","v":""},{"$f":"IF('Blank - Request Form'!$F$6=\"CIUGC\",IF(OR('Blank - Request Form'!H164=\"0\",'Blank - Request Form'!H164=\"00000\",'Blank - Request Form'!H164=0),\"\",'Blank - Request Form'!H164),IF('Blank - Request Form'!$F$7=\"CIUGC\",IF(OR('Blank - Request Form'!Q164=\"0\",'Blank - Request Form'!Q164=\"00000\",'Blank - Request Form'!Q164=0),\"\",'Blank - Request Form'!Q164),\"\"))","v":""},{"$f":"IF('Blank - Request Form'!$F$6=\"CIUGC\",IF(OR('Blank - Request Form'!I164=\"0\",'Blank - Request Form'!I164=\"00000\",'Blank - Request Form'!I164=0),\"\",'Blank - Request Form'!I164),IF('Blank - Request Form'!$F$7=\"CIUGC\",IF(OR('Blank - Request Form'!R164=\"0\",'Blank - Request Form'!R164=\"00000\",'Blank - Request Form'!R164=0),\"\",'Blank - Request Form'!R164),\"\"))","v":""},null,{"$f":"IF('Blank - Request Form'!$F$6=\"CIUGC\",IF('Blank - Request Form'!K164=0,\"\",'Blank - Request Form'!K164),IF('Blank - Request Form'!$F$7=\"CIUGC\",IF('Blank - Request Form'!T164=0,\"\",'Blank - Request Form'!T164),\"\"))","v":""},null,null,null,{"$f":"IF(M130<>\"\",'Blank - Request Form'!$M$2,\"\")","v":""},{"$f":"IF('Blank - Request Form'!$F$6=\"CIUGC\",IF('Blank - Request Form'!J164=0,\"\",'Blank - Request Form'!J164),IF('Blank - Request Form'!$F$7=\"CIUGC\",IF('Blank - Request Form'!S164=0,\"\",'Blank - Request Form'!S164),\"\"))","v":""},"",130]
[{"$f":"IF('Blank - Request Form'!$F$6=\"CIUGC\",IF('Blank - Request Form'!D165=0,\"\",'Blank - Request Form'!D165),IF('Blank - Request Form'!$F$7=\"CIUGC\",IF('Blank - Request Form'!M165=0,\"\",'Blank - Request Form'!M165),\"\"))","v":""},{"$f":"IF('Blank - Request Form'!$F$6=\"CIUGC\",IF('Blank - Request Form'!E165=0,\"\",'Blank - Request Form'!E165),IF('Blank - Request Form'!$F$7=\"CIUGC\",IF('Blank - Request Form'!N165=0,\"\",'Blank - Request Form'!N165),\"\"))","v":""},{"$f":"IF('Blank - Request Form'!$F$6=\"CIUGC\",IF(OR('Blank - Request Form'!F165=\"000\",'Blank - Request Form'!F165=0),\"\",'Blank - Request Form'!F165),IF('Blank - Request Form'!$F$7=\"CIUGC\",IF(OR('Blank - Request Form'!O165=\"000\",'Blank - Request Form'!O165=0),\"\",'Blank - Request Form'!O165),\"\"))","v":""},{"$f":"IF('Blank - Request Form'!$F$6=\"CIUGC\",IF(OR('Blank - Request Form'!G165=\"0\",'Blank - Request Form'!G165=\"00000\",'Blank - Request Form'!G165=0),\"\",'Blank - Request Form'!G165),IF('Blank - Request Form'!$F$7=\"CIUGC\",IF(OR('Blank - Request Form'!P165=\"0\",'Blank - Request Form'!P165=\"00000\",'Blank - Request Form'!P165=0),\"\",'Blank - Request Form'!P165),\"\"))","v":""},{"$f":"IF('Blank - Request Form'!$F$6=\"CIUGC\",IF(OR('Blank - Request Form'!H165=\"0\",'Blank - Request Form'!H165=\"00000\",'Blank - Request Form'!H165=0),\"\",'Blank - Request Form'!H165),IF('Blank - Request Form'!$F$7=\"CIUGC\",IF(OR('Blank - Request Form'!Q165=\"0\",'Blank - Request Form'!Q165=\"00000\",'Blank - Request Form'!Q165=0),\"\",'Blank - Request Form'!Q165),\"\"))","v":""},{"$f":"IF('Blank - Request Form'!$F$6=\"CIUGC\",IF(OR('Blank - Request Form'!I165=\"0\",'Blank - Request Form'!I165=\"00000\",'Blank - Request Form'!I165=0),\"\",'Blank - Request Form'!I165),IF('Blank - Request Form'!$F$7=\"CIUGC\",IF(OR('Blank - Request Form'!R165=\"0\",'Blank - Request Form'!R165=\"00000\",'Blank - Request Form'!R165=0),\"\",'Blank - Request Form'!R165),\"\"))","v":""},null,{"$f":"IF('Blank - Request Form'!$F$6=\"CIUGC\",IF('Blank - Request Form'!K165=0,\"\",'Blank - Request Form'!K165),IF('Blank - Request Form'!$F$7=\"CIUGC\",IF('Blank - Request Form'!T165=0,\"\",'Blank - Request Form'!T165),\"\"))","v":""},null,null,null,{"$f":"IF(M131<>\"\",'Blank - Request Form'!$M$2,\"\")","v":""},{"$f":"IF('Blank - Request Form'!$F$6=\"CIUGC\",IF('Blank - Request Form'!J165=0,\"\",'Blank - Request Form'!J165),IF('Blank - Request Form'!$F$7=\"CIUGC\",IF('Blank - Request Form'!S165=0,\"\",'Blank - Request Form'!S165),\"\"))","v":""},"",131]
[{"$f":"IF('Blank - Request Form'!$F$6=\"CIUGC\",IF('Blank - Request Form'!D166=0,\"\",'Blank - Request Form'!D166),IF('Blank - Request Form'!$F$7=\"CIUGC\",IF('Blank - Request Form'!M166=0,\"\",'Blank - Request Form'!M166),\"\"))","v":""},{"$f":"IF('Blank - Request Form'!$F$6=\"CIUGC\",IF('Blank - Request Form'!E166=0,\"\",'Blank - Request Form'!E166),IF('Blank - Request Form'!$F$7=\"CIUGC\",IF('Blank - Request Form'!N166=0,\"\",'Blank - Request Form'!N166),\"\"))","v":""},{"$f":"IF('Blank - Request Form'!$F$6=\"CIUGC\",IF(OR('Blank - Request Form'!F166=\"000\",'Blank - Request Form'!F166=0),\"\",'Blank - Request Form'!F166),IF('Blank - Request Form'!$F$7=\"CIUGC\",IF(OR('Blank - Request Form'!O166=\"000\",'Blank - Request Form'!O166=0),\"\",'Blank - Request Form'!O166),\"\"))","v":""},{"$f":"IF('Blank - Request Form'!$F$6=\"CIUGC\",IF(OR('Blank - Request Form'!G166=\"0\",'Blank - Request Form'!G166=\"00000\",'Blank - Request Form'!G166=0),\"\",'Blank - Request Form'!G166),IF('Blank - Request Form'!$F$7=\"CIUGC\",IF(OR('Blank - Request Form'!P166=\"0\",'Blank - Request Form'!P166=\"00000\",'Blank - Request Form'!P166=0),\"\",'Blank - Request Form'!P166),\"\"))","v":""},{"$f":"IF('Blank - Request Form'!$F$6=\"CIUGC\",IF(OR('Blank - Request Form'!H166=\"0\",'Blank - Request Form'!H166=\"00000\",'Blank - Request Form'!H166=0),\"\",'Blank - Request Form'!H166),IF('Blank - Request Form'!$F$7=\"CIUGC\",IF(OR('Blank - Request Form'!Q166=\"0\",'Blank - Request Form'!Q166=\"00000\",'Blank - Request Form'!Q166=0),\"\",'Blank - Request Form'!Q166),\"\"))","v":""},{"$f":"IF('Blank - Request Form'!$F$6=\"CIUGC\",IF(OR('Blank - Request Form'!I166=\"0\",'Blank - Request Form'!I166=\"00000\",'Blank - Request Form'!I166=0),\"\",'Blank - Request Form'!I166),IF('Blank - Request Form'!$F$7=\"CIUGC\",IF(OR('Blank - Request Form'!R166=\"0\",'Blank - Request Form'!R166=\"00000\",'Blank - Request Form'!R166=0),\"\",'Blank - Request Form'!R166),\"\"))","v":""},null,{"$f":"IF('Blank - Request Form'!$F$6=\"CIUGC\",IF('Blank - Request Form'!K166=0,\"\",'Blank - Request Form'!K166),IF('Blank - Request Form'!$F$7=\"CIUGC\",IF('Blank - Request Form'!T166=0,\"\",'Blank - Request Form'!T166),\"\"))","v":""},null,null,null,{"$f":"IF(M132<>\"\",'Blank - Request Form'!$M$2,\"\")","v":""},{"$f":"IF('Blank - Request Form'!$F$6=\"CIUGC\",IF('Blank - Request Form'!J166=0,\"\",'Blank - Request Form'!J166),IF('Blank - Request Form'!$F$7=\"CIUGC\",IF('Blank - Request Form'!S166=0,\"\",'Blank - Request Form'!S166),\"\"))","v":""},"",132]
[{"$f":"IF('Blank - Request Form'!$F$6=\"CIUGC\",IF('Blank - Request Form'!D167=0,\"\",'Blank - Request Form'!D167),IF('Blank - Request Form'!$F$7=\"CIUGC\",IF('Blank - Request Form'!M167=0,\"\",'Blank - Request Form'!M167),\"\"))","v":""},{"$f":"IF('Blank - Request Form'!$F$6=\"CIUGC\",IF('Blank - Request Form'!E167=0,\"\",'Blank - Request Form'!E167),IF('Blank - Request Form'!$F$7=\"CIUGC\",IF('Blank - Request Form'!N167=0,\"\",'Blank - Request Form'!N167),\"\"))","v":""},{"$f":"IF('Blank - Request Form'!$F$6=\"CIUGC\",IF(OR('Blank - Request Form'!F167=\"000\",'Blank - Request Form'!F167=0),\"\",'Blank - Request Form'!F167),IF('Blank - Request Form'!$F$7=\"CIUGC\",IF(OR('Blank - Request Form'!O167=\"000\",'Blank - Request Form'!O167=0),\"\",'Blank - Request Form'!O167),\"\"))","v":""},{"$f":"IF('Blank - Request Form'!$F$6=\"CIUGC\",IF(OR('Blank - Request Form'!G167=\"0\",'Blank - Request Form'!G167=\"00000\",'Blank - Request Form'!G167=0),\"\",'Blank - Request Form'!G167),IF('Blank - Request Form'!$F$7=\"CIUGC\",IF(OR('Blank - Request Form'!P167=\"0\",'Blank - Request Form'!P167=\"00000\",'Blank - Request Form'!P167=0),\"\",'Blank - Request Form'!P167),\"\"))","v":""},{"$f":"IF('Blank - Request Form'!$F$6=\"CIUGC\",IF(OR('Blank - Request Form'!H167=\"0\",'Blank - Request Form'!H167=\"00000\",'Blank - Request Form'!H167=0),\"\",'Blank - Request Form'!H167),IF('Blank - Request Form'!$F$7=\"CIUGC\",IF(OR('Blank - Request Form'!Q167=\"0\",'Blank - Request Form'!Q167=\"00000\",'Blank - Request Form'!Q167=0),\"\",'Blank - Request Form'!Q167),\"\"))","v":""},{"$f":"IF('Blank - Request Form'!$F$6=\"CIUGC\",IF(OR('Blank - Request Form'!I167=\"0\",'Blank - Request Form'!I167=\"00000\",'Blank - Request Form'!I167=0),\"\",'Blank - Request Form'!I167),IF('Blank - Request Form'!$F$7=\"CIUGC\",IF(OR('Blank - Request Form'!R167=\"0\",'Blank - Request Form'!R167=\"00000\",'Blank - Request Form'!R167=0),\"\",'Blank - Request Form'!R167),\"\"))","v":""},null,{"$f":"IF('Blank - Request Form'!$F$6=\"CIUGC\",IF('Blank - Request Form'!K167=0,\"\",'Blank - Request Form'!K167),IF('Blank - Request Form'!$F$7=\"CIUGC\",IF('Blank - Request Form'!T167=0,\"\",'Blank - Request Form'!T167),\"\"))","v":""},null,null,null,{"$f":"IF(M133<>\"\",'Blank - Request Form'!$M$2,\"\")","v":""},{"$f":"IF('Blank - Request Form'!$F$6=\"CIUGC\",IF('Blank - Request Form'!J167=0,\"\",'Blank - Request Form'!J167),IF('Blank - Request Form'!$F$7=\"CIUGC\",IF('Blank - Request Form'!S167=0,\"\",'Blank - Request Form'!S167),\"\"))","v":""},"",133]
[{"$f":"IF('Blank - Request Form'!$F$6=\"CIUGC\",IF('Blank - Request Form'!D168=0,\"\",'Blank - Request Form'!D168),IF('Blank - Request Form'!$F$7=\"CIUGC\",IF('Blank - Request Form'!M168=0,\"\",'Blank - Request Form'!M168),\"\"))","v":""},{"$f":"IF('Blank - Request Form'!$F$6=\"CIUGC\",IF('Blank - Request Form'!E168=0,\"\",'Blank - Request Form'!E168),IF('Blank - Request Form'!$F$7=\"CIUGC\",IF('Blank - Request Form'!N168=0,\"\",'Blank - Request Form'!N168),\"\"))","v":""},{"$f":"IF('Blank - Request Form'!$F$6=\"CIUGC\",IF(OR('Blank - Request Form'!F168=\"000\",'Blank - Request Form'!F168=0),\"\",'Blank - Request Form'!F168),IF('Blank - Request Form'!$F$7=\"CIUGC\",IF(OR('Blank - Request Form'!O168=\"000\",'Blank - Request Form'!O168=0),\"\",'Blank - Request Form'!O168),\"\"))","v":""},{"$f":"IF('Blank - Request Form'!$F$6=\"CIUGC\",IF(OR('Blank - Request Form'!G168=\"0\",'Blank - Request Form'!G168=\"00000\",'Blank - Request Form'!G168=0),\"\",'Blank - Request Form'!G168),IF('Blank - Request Form'!$F$7=\"CIUGC\",IF(OR('Blank - Request Form'!P168=\"0\",'Blank - Request Form'!P168=\"00000\",'Blank - Request Form'!P168=0),\"\",'Blank - Request Form'!P168),\"\"))","v":""},{"$f":"IF('Blank - Request Form'!$F$6=\"CIUGC\",IF(OR('Blank - Request Form'!H168=\"0\",'Blank - Request Form'!H168=\"00000\",'Blank - Request Form'!H168=0),\"\",'Blank - Request Form'!H168),IF('Blank - Request Form'!$F$7=\"CIUGC\",IF(OR('Blank - Request Form'!Q168=\"0\",'Blank - Request Form'!Q168=\"00000\",'Blank - Request Form'!Q168=0),\"\",'Blank - Request Form'!Q168),\"\"))","v":""},{"$f":"IF('Blank - Request Form'!$F$6=\"CIUGC\",IF(OR('Blank - Request Form'!I168=\"0\",'Blank - Request Form'!I168=\"00000\",'Blank - Request Form'!I168=0),\"\",'Blank - Request Form'!I168),IF('Blank - Request Form'!$F$7=\"CIUGC\",IF(OR('Blank - Request Form'!R168=\"0\",'Blank - Request Form'!R168=\"00000\",'Blank - Request Form'!R168=0),\"\",'Blank - Request Form'!R168),\"\"))","v":""},null,{"$f":"IF('Blank - Request Form'!$F$6=\"CIUGC\",IF('Blank - Request Form'!K168=0,\"\",'Blank - Request Form'!K168),IF('Blank - Request Form'!$F$7=\"CIUGC\",IF('Blank - Request Form'!T168=0,\"\",'Blank - Request Form'!T168),\"\"))","v":""},null,null,null,{"$f":"IF(M134<>\"\",'Blank - Request Form'!$M$2,\"\")","v":""},{"$f":"IF('Blank - Request Form'!$F$6=\"CIUGC\",IF('Blank - Request Form'!J168=0,\"\",'Blank - Request Form'!J168),IF('Blank - Request Form'!$F$7=\"CIUGC\",IF('Blank - Request Form'!S168=0,\"\",'Blank - Request Form'!S168),\"\"))","v":""},"",134]
[{"$f":"IF('Blank - Request Form'!$F$6=\"CIUGC\",IF('Blank - Request Form'!D169=0,\"\",'Blank - Request Form'!D169),IF('Blank - Request Form'!$F$7=\"CIUGC\",IF('Blank - Request Form'!M169=0,\"\",'Blank - Request Form'!M169),\"\"))","v":""},{"$f":"IF('Blank - Request Form'!$F$6=\"CIUGC\",IF('Blank - Request Form'!E169=0,\"\",'Blank - Request Form'!E169),IF('Blank - Request Form'!$F$7=\"CIUGC\",IF('Blank - Request Form'!N169=0,\"\",'Blank - Request Form'!N169),\"\"))","v":""},{"$f":"IF('Blank - Request Form'!$F$6=\"CIUGC\",IF(OR('Blank - Request Form'!F169=\"000\",'Blank - Request Form'!F169=0),\"\",'Blank - Request Form'!F169),IF('Blank - Request Form'!$F$7=\"CIUGC\",IF(OR('Blank - Request Form'!O169=\"000\",'Blank - Request Form'!O169=0),\"\",'Blank - Request Form'!O169),\"\"))","v":""},{"$f":"IF('Blank - Request Form'!$F$6=\"CIUGC\",IF(OR('Blank - Request Form'!G169=\"0\",'Blank - Request Form'!G169=\"00000\",'Blank - Request Form'!G169=0),\"\",'Blank - Request Form'!G169),IF('Blank - Request Form'!$F$7=\"CIUGC\",IF(OR('Blank - Request Form'!P169=\"0\",'Blank - Request Form'!P169=\"00000\",'Blank - Request Form'!P169=0),\"\",'Blank - Request Form'!P169),\"\"))","v":""},{"$f":"IF('Blank - Request Form'!$F$6=\"CIUGC\",IF(OR('Blank - Request Form'!H169=\"0\",'Blank - Request Form'!H169=\"00000\",'Blank - Request Form'!H169=0),\"\",'Blank - Request Form'!H169),IF('Blank - Request Form'!$F$7=\"CIUGC\",IF(OR('Blank - Request Form'!Q169=\"0\",'Blank - Request Form'!Q169=\"00000\",'Blank - Request Form'!Q169=0),\"\",'Blank - Request Form'!Q169),\"\"))","v":""},{"$f":"IF('Blank - Request Form'!$F$6=\"CIUGC\",IF(OR('Blank - Request Form'!I169=\"0\",'Blank - Request Form'!I169=\"00000\",'Blank - Request Form'!I169=0),\"\",'Blank - Request Form'!I169),IF('Blank - Request Form'!$F$7=\"CIUGC\",IF(OR('Blank - Request Form'!R169=\"0\",'Blank - Request Form'!R169=\"00000\",'Blank - Request Form'!R169=0),\"\",'Blank - Request Form'!R169),\"\"))","v":""},null,{"$f":"IF('Blank - Request Form'!$F$6=\"CIUGC\",IF('Blank - Request Form'!K169=0,\"\",'Blank - Request Form'!K169),IF('Blank - Request Form'!$F$7=\"CIUGC\",IF('Blank - Request Form'!T169=0,\"\",'Blank - Request Form'!T169),\"\"))","v":""},null,null,null,{"$f":"IF(M135<>\"\",'Blank - Request Form'!$M$2,\"\")","v":""},{"$f":"IF('Blank - Request Form'!$F$6=\"CIUGC\",IF('Blank - Request Form'!J169=0,\"\",'Blank - Request Form'!J169),IF('Blank - Request Form'!$F$7=\"CIUGC\",IF('Blank - Request Form'!S169=0,\"\",'Blank - Request Form'!S169),\"\"))","v":""},"",135]
[{"$f":"IF('Blank - Request Form'!$F$6=\"CIUGC\",IF('Blank - Request Form'!D170=0,\"\",'Blank - Request Form'!D170),IF('Blank - Request Form'!$F$7=\"CIUGC\",IF('Blank - Request Form'!M170=0,\"\",'Blank - Request Form'!M170),\"\"))","v":""},{"$f":"IF('Blank - Request Form'!$F$6=\"CIUGC\",IF('Blank - Request Form'!E170=0,\"\",'Blank - Request Form'!E170),IF('Blank - Request Form'!$F$7=\"CIUGC\",IF('Blank - Request Form'!N170=0,\"\",'Blank - Request Form'!N170),\"\"))","v":""},{"$f":"IF('Blank - Request Form'!$F$6=\"CIUGC\",IF(OR('Blank - Request Form'!F170=\"000\",'Blank - Request Form'!F170=0),\"\",'Blank - Request Form'!F170),IF('Blank - Request Form'!$F$7=\"CIUGC\",IF(OR('Blank - Request Form'!O170=\"000\",'Blank - Request Form'!O170=0),\"\",'Blank - Request Form'!O170),\"\"))","v":""},{"$f":"IF('Blank - Request Form'!$F$6=\"CIUGC\",IF(OR('Blank - Request Form'!G170=\"0\",'Blank - Request Form'!G170=\"00000\",'Blank - Request Form'!G170=0),\"\",'Blank - Request Form'!G170),IF('Blank - Request Form'!$F$7=\"CIUGC\",IF(OR('Blank - Request Form'!P170=\"0\",'Blank - Request Form'!P170=\"00000\",'Blank - Request Form'!P170=0),\"\",'Blank - Request Form'!P170),\"\"))","v":""},{"$f":"IF('Blank - Request Form'!$F$6=\"CIUGC\",IF(OR('Blank - Request Form'!H170=\"0\",'Blank - Request Form'!H170=\"00000\",'Blank - Request Form'!H170=0),\"\",'Blank - Request Form'!H170),IF('Blank - Request Form'!$F$7=\"CIUGC\",IF(OR('Blank - Request Form'!Q170=\"0\",'Blank - Request Form'!Q170=\"00000\",'Blank - Request Form'!Q170=0),\"\",'Blank - Request Form'!Q170),\"\"))","v":""},{"$f":"IF('Blank - Request Form'!$F$6=\"CIUGC\",IF(OR('Blank - Request Form'!I170=\"0\",'Blank - Request Form'!I170=\"00000\",'Blank - Request Form'!I170=0),\"\",'Blank - Request Form'!I170),IF('Blank - Request Form'!$F$7=\"CIUGC\",IF(OR('Blank - Request Form'!R170=\"0\",'Blank - Request Form'!R170=\"00000\",'Blank - Request Form'!R170=0),\"\",'Blank - Request Form'!R170),\"\"))","v":""},null,{"$f":"IF('Blank - Request Form'!$F$6=\"CIUGC\",IF('Blank - Request Form'!K170=0,\"\",'Blank - Request Form'!K170),IF('Blank - Request Form'!$F$7=\"CIUGC\",IF('Blank - Request Form'!T170=0,\"\",'Blank - Request Form'!T170),\"\"))","v":""},null,null,null,{"$f":"IF(M136<>\"\",'Blank - Request Form'!$M$2,\"\")","v":""},{"$f":"IF('Blank - Request Form'!$F$6=\"CIUGC\",IF('Blank - Request Form'!J170=0,\"\",'Blank - Request Form'!J170),IF('Blank - Request Form'!$F$7=\"CIUGC\",IF('Blank - Request Form'!S170=0,\"\",'Blank - Request Form'!S170),\"\"))","v":""},"",136]
[{"$f":"IF('Blank - Request Form'!$F$6=\"CIUGC\",IF('Blank - Request Form'!D171=0,\"\",'Blank - Request Form'!D171),IF('Blank - Request Form'!$F$7=\"CIUGC\",IF('Blank - Request Form'!M171=0,\"\",'Blank - Request Form'!M171),\"\"))","v":""},{"$f":"IF('Blank - Request Form'!$F$6=\"CIUGC\",IF('Blank - Request Form'!E171=0,\"\",'Blank - Request Form'!E171),IF('Blank - Request Form'!$F$7=\"CIUGC\",IF('Blank - Request Form'!N171=0,\"\",'Blank - Request Form'!N171),\"\"))","v":""},{"$f":"IF('Blank - Request Form'!$F$6=\"CIUGC\",IF(OR('Blank - Request Form'!F171=\"000\",'Blank - Request Form'!F171=0),\"\",'Blank - Request Form'!F171),IF('Blank - Request Form'!$F$7=\"CIUGC\",IF(OR('Blank - Request Form'!O171=\"000\",'Blank - Request Form'!O171=0),\"\",'Blank - Request Form'!O171),\"\"))","v":""},{"$f":"IF('Blank - Request Form'!$F$6=\"CIUGC\",IF(OR('Blank - Request Form'!G171=\"0\",'Blank - Request Form'!G171=\"00000\",'Blank - Request Form'!G171=0),\"\",'Blank - Request Form'!G171),IF('Blank - Request Form'!$F$7=\"CIUGC\",IF(OR('Blank - Request Form'!P171=\"0\",'Blank - Request Form'!P171=\"00000\",'Blank - Request Form'!P171=0),\"\",'Blank - Request Form'!P171),\"\"))","v":""},{"$f":"IF('Blank - Request Form'!$F$6=\"CIUGC\",IF(OR('Blank - Request Form'!H171=\"0\",'Blank - Request Form'!H171=\"00000\",'Blank - Request Form'!H171=0),\"\",'Blank - Request Form'!H171),IF('Blank - Request Form'!$F$7=\"CIUGC\",IF(OR('Blank - Request Form'!Q171=\"0\",'Blank - Request Form'!Q171=\"00000\",'Blank - Request Form'!Q171=0),\"\",'Blank - Request Form'!Q171),\"\"))","v":""},{"$f":"IF('Blank - Request Form'!$F$6=\"CIUGC\",IF(OR('Blank - Request Form'!I171=\"0\",'Blank - Request Form'!I171=\"00000\",'Blank - Request Form'!I171=0),\"\",'Blank - Request Form'!I171),IF('Blank - Request Form'!$F$7=\"CIUGC\",IF(OR('Blank - Request Form'!R171=\"0\",'Blank - Request Form'!R171=\"00000\",'Blank - Request Form'!R171=0),\"\",'Blank - Request Form'!R171),\"\"))","v":""},null,{"$f":"IF('Blank - Request Form'!$F$6=\"CIUGC\",IF('Blank - Request Form'!K171=0,\"\",'Blank - Request Form'!K171),IF('Blank - Request Form'!$F$7=\"CIUGC\",IF('Blank - Request Form'!T171=0,\"\",'Blank - Request Form'!T171),\"\"))","v":""},null,null,null,{"$f":"IF(M137<>\"\",'Blank - Request Form'!$M$2,\"\")","v":""},{"$f":"IF('Blank - Request Form'!$F$6=\"CIUGC\",IF('Blank - Request Form'!J171=0,\"\",'Blank - Request Form'!J171),IF('Blank - Request Form'!$F$7=\"CIUGC\",IF('Blank - Request Form'!S171=0,\"\",'Blank - Request Form'!S171),\"\"))","v":""},"",137]
[{"$f":"IF('Blank - Request Form'!$F$6=\"CIUGC\",IF('Blank - Request Form'!D172=0,\"\",'Blank - Request Form'!D172),IF('Blank - Request Form'!$F$7=\"CIUGC\",IF('Blank - Request Form'!M172=0,\"\",'Blank - Request Form'!M172),\"\"))","v":""},{"$f":"IF('Blank - Request Form'!$F$6=\"CIUGC\",IF('Blank - Request Form'!E172=0,\"\",'Blank - Request Form'!E172),IF('Blank - Request Form'!$F$7=\"CIUGC\",IF('Blank - Request Form'!N172=0,\"\",'Blank - Request Form'!N172),\"\"))","v":""},{"$f":"IF('Blank - Request Form'!$F$6=\"CIUGC\",IF(OR('Blank - Request Form'!F172=\"000\",'Blank - Request Form'!F172=0),\"\",'Blank - Request Form'!F172),IF('Blank - Request Form'!$F$7=\"CIUGC\",IF(OR('Blank - Request Form'!O172=\"000\",'Blank - Request Form'!O172=0),\"\",'Blank - Request Form'!O172),\"\"))","v":""},{"$f":"IF('Blank - Request Form'!$F$6=\"CIUGC\",IF(OR('Blank - Request Form'!G172=\"0\",'Blank - Request Form'!G172=\"00000\",'Blank - Request Form'!G172=0),\"\",'Blank - Request Form'!G172),IF('Blank - Request Form'!$F$7=\"CIUGC\",IF(OR('Blank - Request Form'!P172=\"0\",'Blank - Request Form'!P172=\"00000\",'Blank - Request Form'!P172=0),\"\",'Blank - Request Form'!P172),\"\"))","v":""},{"$f":"IF('Blank - Request Form'!$F$6=\"CIUGC\",IF(OR('Blank - Request Form'!H172=\"0\",'Blank - Request Form'!H172=\"00000\",'Blank - Request Form'!H172=0),\"\",'Blank - Request Form'!H172),IF('Blank - Request Form'!$F$7=\"CIUGC\",IF(OR('Blank - Request Form'!Q172=\"0\",'Blank - Request Form'!Q172=\"00000\",'Blank - Request Form'!Q172=0),\"\",'Blank - Request Form'!Q172),\"\"))","v":""},{"$f":"IF('Blank - Request Form'!$F$6=\"CIUGC\",IF(OR('Blank - Request Form'!I172=\"0\",'Blank - Request Form'!I172=\"00000\",'Blank - Request Form'!I172=0),\"\",'Blank - Request Form'!I172),IF('Blank - Request Form'!$F$7=\"CIUGC\",IF(OR('Blank - Request Form'!R172=\"0\",'Blank - Request Form'!R172=\"00000\",'Blank - Request Form'!R172=0),\"\",'Blank - Request Form'!R172),\"\"))","v":""},null,{"$f":"IF('Blank - Request Form'!$F$6=\"CIUGC\",IF('Blank - Request Form'!K172=0,\"\",'Blank - Request Form'!K172),IF('Blank - Request Form'!$F$7=\"CIUGC\",IF('Blank - Request Form'!T172=0,\"\",'Blank - Request Form'!T172),\"\"))","v":""},null,null,null,{"$f":"IF(M138<>\"\",'Blank - Request Form'!$M$2,\"\")","v":""},{"$f":"IF('Blank - Request Form'!$F$6=\"CIUGC\",IF('Blank - Request Form'!J172=0,\"\",'Blank - Request Form'!J172),IF('Blank - Request Form'!$F$7=\"CIUGC\",IF('Blank - Request Form'!S172=0,\"\",'Blank - Request Form'!S172),\"\"))","v":""},"",138]
[{"$f":"IF('Blank - Request Form'!$F$6=\"CIUGC\",IF('Blank - Request Form'!D173=0,\"\",'Blank - Request Form'!D173),IF('Blank - Request Form'!$F$7=\"CIUGC\",IF('Blank - Request Form'!M173=0,\"\",'Blank - Request Form'!M173),\"\"))","v":""},{"$f":"IF('Blank - Request Form'!$F$6=\"CIUGC\",IF('Blank - Request Form'!E173=0,\"\",'Blank - Request Form'!E173),IF('Blank - Request Form'!$F$7=\"CIUGC\",IF('Blank - Request Form'!N173=0,\"\",'Blank - Request Form'!N173),\"\"))","v":""},{"$f":"IF('Blank - Request Form'!$F$6=\"CIUGC\",IF(OR('Blank - Request Form'!F173=\"000\",'Blank - Request Form'!F173=0),\"\",'Blank - Request Form'!F173),IF('Blank - Request Form'!$F$7=\"CIUGC\",IF(OR('Blank - Request Form'!O173=\"000\",'Blank - Request Form'!O173=0),\"\",'Blank - Request Form'!O173),\"\"))","v":""},{"$f":"IF('Blank - Request Form'!$F$6=\"CIUGC\",IF(OR('Blank - Request Form'!G173=\"0\",'Blank - Request Form'!G173=\"00000\",'Blank - Request Form'!G173=0),\"\",'Blank - Request Form'!G173),IF('Blank - Request Form'!$F$7=\"CIUGC\",IF(OR('Blank - Request Form'!P173=\"0\",'Blank - Request Form'!P173=\"00000\",'Blank - Request Form'!P173=0),\"\",'Blank - Request Form'!P173),\"\"))","v":""},{"$f":"IF('Blank - Request Form'!$F$6=\"CIUGC\",IF(OR('Blank - Request Form'!H173=\"0\",'Blank - Request Form'!H173=\"00000\",'Blank - Request Form'!H173=0),\"\",'Blank - Request Form'!H173),IF('Blank - Request Form'!$F$7=\"CIUGC\",IF(OR('Blank - Request Form'!Q173=\"0\",'Blank - Request Form'!Q173=\"00000\",'Blank - Request Form'!Q173=0),\"\",'Blank - Request Form'!Q173),\"\"))","v":""},{"$f":"IF('Blank - Request Form'!$F$6=\"CIUGC\",IF(OR('Blank - Request Form'!I173=\"0\",'Blank - Request Form'!I173=\"00000\",'Blank - Request Form'!I173=0),\"\",'Blank - Request Form'!I173),IF('Blank - Request Form'!$F$7=\"CIUGC\",IF(OR('Blank - Request Form'!R173=\"0\",'Blank - Request Form'!R173=\"00000\",'Blank - Request Form'!R173=0),\"\",'Blank - Request Form'!R173),\"\"))","v":""},null,{"$f":"IF('Blank - Request Form'!$F$6=\"CIUGC\",IF('Blank - Request Form'!K173=0,\"\",'Blank - Request Form'!K173),IF('Blank - Request Form'!$F$7=\"CIUGC\",IF('Blank - Request Form'!T173=0,\"\",'Blank - Request Form'!T173),\"\"))","v":""},null,null,null,{"$f":"IF(M139<>\"\",'Blank - Request Form'!$M$2,\"\")","v":""},{"$f":"IF('Blank - Request Form'!$F$6=\"CIUGC\",IF('Blank - Request Form'!J173=0,\"\",'Blank - Request Form'!J173),IF('Blank - Request Form'!$F$7=\"CIUGC\",IF('Blank - Request Form'!S173=0,\"\",'Blank - Request Form'!S173),\"\"))","v":""},"",139]
[{"$f":"IF('Blank - Request Form'!$F$6=\"CIUGC\",IF('Blank - Request Form'!D174=0,\"\",'Blank - Request Form'!D174),IF('Blank - Request Form'!$F$7=\"CIUGC\",IF('Blank - Request Form'!M174=0,\"\",'Blank - Request Form'!M174),\"\"))","v":""},{"$f":"IF('Blank - Request Form'!$F$6=\"CIUGC\",IF('Blank - Request Form'!E174=0,\"\",'Blank - Request Form'!E174),IF('Blank - Request Form'!$F$7=\"CIUGC\",IF('Blank - Request Form'!N174=0,\"\",'Blank - Request Form'!N174),\"\"))","v":""},{"$f":"IF('Blank - Request Form'!$F$6=\"CIUGC\",IF(OR('Blank - Request Form'!F174=\"000\",'Blank - Request Form'!F174=0),\"\",'Blank - Request Form'!F174),IF('Blank - Request Form'!$F$7=\"CIUGC\",IF(OR('Blank - Request Form'!O174=\"000\",'Blank - Request Form'!O174=0),\"\",'Blank - Request Form'!O174),\"\"))","v":""},{"$f":"IF('Blank - Request Form'!$F$6=\"CIUGC\",IF(OR('Blank - Request Form'!G174=\"0\",'Blank - Request Form'!G174=\"00000\",'Blank - Request Form'!G174=0),\"\",'Blank - Request Form'!G174),IF('Blank - Request Form'!$F$7=\"CIUGC\",IF(OR('Blank - Request Form'!P174=\"0\",'Blank - Request Form'!P174=\"00000\",'Blank - Request Form'!P174=0),\"\",'Blank - Request Form'!P174),\"\"))","v":""},{"$f":"IF('Blank - Request Form'!$F$6=\"CIUGC\",IF(OR('Blank - Request Form'!H174=\"0\",'Blank - Request Form'!H174=\"00000\",'Blank - Request Form'!H174=0),\"\",'Blank - Request Form'!H174),IF('Blank - Request Form'!$F$7=\"CIUGC\",IF(OR('Blank - Request Form'!Q174=\"0\",'Blank - Request Form'!Q174=\"00000\",'Blank - Request Form'!Q174=0),\"\",'Blank - Request Form'!Q174),\"\"))","v":""},{"$f":"IF('Blank - Request Form'!$F$6=\"CIUGC\",IF(OR('Blank - Request Form'!I174=\"0\",'Blank - Request Form'!I174=\"00000\",'Blank - Request Form'!I174=0),\"\",'Blank - Request Form'!I174),IF('Blank - Request Form'!$F$7=\"CIUGC\",IF(OR('Blank - Request Form'!R174=\"0\",'Blank - Request Form'!R174=\"00000\",'Blank - Request Form'!R174=0),\"\",'Blank - Request Form'!R174),\"\"))","v":""},null,{"$f":"IF('Blank - Request Form'!$F$6=\"CIUGC\",IF('Blank - Request Form'!K174=0,\"\",'Blank - Request Form'!K174),IF('Blank - Request Form'!$F$7=\"CIUGC\",IF('Blank - Request Form'!T174=0,\"\",'Blank - Request Form'!T174),\"\"))","v":""},null,null,null,{"$f":"IF(M140<>\"\",'Blank - Request Form'!$M$2,\"\")","v":""},{"$f":"IF('Blank - Request Form'!$F$6=\"CIUGC\",IF('Blank - Request Form'!J174=0,\"\",'Blank - Request Form'!J174),IF('Blank - Request Form'!$F$7=\"CIUGC\",IF('Blank - Request Form'!S174=0,\"\",'Blank - Request Form'!S174),\"\"))","v":""},"",140]
[{"$f":"IF('Blank - Request Form'!$F$6=\"CIUGC\",IF('Blank - Request Form'!D175=0,\"\",'Blank - Request Form'!D175),IF('Blank - Request Form'!$F$7=\"CIUGC\",IF('Blank - Request Form'!M175=0,\"\",'Blank - Request Form'!M175),\"\"))","v":""},{"$f":"IF('Blank - Request Form'!$F$6=\"CIUGC\",IF('Blank - Request Form'!E175=0,\"\",'Blank - Request Form'!E175),IF('Blank - Request Form'!$F$7=\"CIUGC\",IF('Blank - Request Form'!N175=0,\"\",'Blank - Request Form'!N175),\"\"))","v":""},{"$f":"IF('Blank - Request Form'!$F$6=\"CIUGC\",IF(OR('Blank - Request Form'!F175=\"000\",'Blank - Request Form'!F175=0),\"\",'Blank - Request Form'!F175),IF('Blank - Request Form'!$F$7=\"CIUGC\",IF(OR('Blank - Request Form'!O175=\"000\",'Blank - Request Form'!O175=0),\"\",'Blank - Request Form'!O175),\"\"))","v":""},{"$f":"IF('Blank - Request Form'!$F$6=\"CIUGC\",IF(OR('Blank - Request Form'!G175=\"0\",'Blank - Request Form'!G175=\"00000\",'Blank - Request Form'!G175=0),\"\",'Blank - Request Form'!G175),IF('Blank - Request Form'!$F$7=\"CIUGC\",IF(OR('Blank - Request Form'!P175=\"0\",'Blank - Request Form'!P175=\"00000\",'Blank - Request Form'!P175=0),\"\",'Blank - Request Form'!P175),\"\"))","v":""},{"$f":"IF('Blank - Request Form'!$F$6=\"CIUGC\",IF(OR('Blank - Request Form'!H175=\"0\",'Blank - Request Form'!H175=\"00000\",'Blank - Request Form'!H175=0),\"\",'Blank - Request Form'!H175),IF('Blank - Request Form'!$F$7=\"CIUGC\",IF(OR('Blank - Request Form'!Q175=\"0\",'Blank - Request Form'!Q175=\"00000\",'Blank - Request Form'!Q175=0),\"\",'Blank - Request Form'!Q175),\"\"))","v":""},{"$f":"IF('Blank - Request Form'!$F$6=\"CIUGC\",IF(OR('Blank - Request Form'!I175=\"0\",'Blank - Request Form'!I175=\"00000\",'Blank - Request Form'!I175=0),\"\",'Blank - Request Form'!I175),IF('Blank - Request Form'!$F$7=\"CIUGC\",IF(OR('Blank - Request Form'!R175=\"0\",'Blank - Request Form'!R175=\"00000\",'Blank - Request Form'!R175=0),\"\",'Blank - Request Form'!R175),\"\"))","v":""},null,{"$f":"IF('Blank - Request Form'!$F$6=\"CIUGC\",IF('Blank - Request Form'!K175=0,\"\",'Blank - Request Form'!K175),IF('Blank - Request Form'!$F$7=\"CIUGC\",IF('Blank - Request Form'!T175=0,\"\",'Blank - Request Form'!T175),\"\"))","v":""},null,null,null,{"$f":"IF(M141<>\"\",'Blank - Request Form'!$M$2,\"\")","v":""},{"$f":"IF('Blank - Request Form'!$F$6=\"CIUGC\",IF('Blank - Request Form'!J175=0,\"\",'Blank - Request Form'!J175),IF('Blank - Request Form'!$F$7=\"CIUGC\",IF('Blank - Request Form'!S175=0,\"\",'Blank - Request Form'!S175),\"\"))","v":""},"",141]
[{"$f":"IF('Blank - Request Form'!$F$6=\"CIUGC\",IF('Blank - Request Form'!D176=0,\"\",'Blank - Request Form'!D176),IF('Blank - Request Form'!$F$7=\"CIUGC\",IF('Blank - Request Form'!M176=0,\"\",'Blank - Request Form'!M176),\"\"))","v":""},{"$f":"IF('Blank - Request Form'!$F$6=\"CIUGC\",IF('Blank - Request Form'!E176=0,\"\",'Blank - Request Form'!E176),IF('Blank - Request Form'!$F$7=\"CIUGC\",IF('Blank - Request Form'!N176=0,\"\",'Blank - Request Form'!N176),\"\"))","v":""},{"$f":"IF('Blank - Request Form'!$F$6=\"CIUGC\",IF(OR('Blank - Request Form'!F176=\"000\",'Blank - Request Form'!F176=0),\"\",'Blank - Request Form'!F176),IF('Blank - Request Form'!$F$7=\"CIUGC\",IF(OR('Blank - Request Form'!O176=\"000\",'Blank - Request Form'!O176=0),\"\",'Blank - Request Form'!O176),\"\"))","v":""},{"$f":"IF('Blank - Request Form'!$F$6=\"CIUGC\",IF(OR('Blank - Request Form'!G176=\"0\",'Blank - Request Form'!G176=\"00000\",'Blank - Request Form'!G176=0),\"\",'Blank - Request Form'!G176),IF('Blank - Request Form'!$F$7=\"CIUGC\",IF(OR('Blank - Request Form'!P176=\"0\",'Blank - Request Form'!P176=\"00000\",'Blank - Request Form'!P176=0),\"\",'Blank - Request Form'!P176),\"\"))","v":""},{"$f":"IF('Blank - Request Form'!$F$6=\"CIUGC\",IF(OR('Blank - Request Form'!H176=\"0\",'Blank - Request Form'!H176=\"00000\",'Blank - Request Form'!H176=0),\"\",'Blank - Request Form'!H176),IF('Blank - Request Form'!$F$7=\"CIUGC\",IF(OR('Blank - Request Form'!Q176=\"0\",'Blank - Request Form'!Q176=\"00000\",'Blank - Request Form'!Q176=0),\"\",'Blank - Request Form'!Q176),\"\"))","v":""},{"$f":"IF('Blank - Request Form'!$F$6=\"CIUGC\",IF(OR('Blank - Request Form'!I176=\"0\",'Blank - Request Form'!I176=\"00000\",'Blank - Request Form'!I176=0),\"\",'Blank - Request Form'!I176),IF('Blank - Request Form'!$F$7=\"CIUGC\",IF(OR('Blank - Request Form'!R176=\"0\",'Blank - Request Form'!R176=\"00000\",'Blank - Request Form'!R176=0),\"\",'Blank - Request Form'!R176),\"\"))","v":""},null,{"$f":"IF('Blank - Request Form'!$F$6=\"CIUGC\",IF('Blank - Request Form'!K176=0,\"\",'Blank - Request Form'!K176),IF('Blank - Request Form'!$F$7=\"CIUGC\",IF('Blank - Request Form'!T176=0,\"\",'Blank - Request Form'!T176),\"\"))","v":""},null,null,null,{"$f":"IF(M142<>\"\",'Blank - Request Form'!$M$2,\"\")","v":""},{"$f":"IF('Blank - Request Form'!$F$6=\"CIUGC\",IF('Blank - Request Form'!J176=0,\"\",'Blank - Request Form'!J176),IF('Blank - Request Form'!$F$7=\"CIUGC\",IF('Blank - Request Form'!S176=0,\"\",'Blank - Request Form'!S176),\"\"))","v":""},"",142]
[{"$f":"IF('Blank - Request Form'!$F$6=\"CIUGC\",IF('Blank - Request Form'!D177=0,\"\",'Blank - Request Form'!D177),IF('Blank - Request Form'!$F$7=\"CIUGC\",IF('Blank - Request Form'!M177=0,\"\",'Blank - Request Form'!M177),\"\"))","v":""},{"$f":"IF('Blank - Request Form'!$F$6=\"CIUGC\",IF('Blank - Request Form'!E177=0,\"\",'Blank - Request Form'!E177),IF('Blank - Request Form'!$F$7=\"CIUGC\",IF('Blank - Request Form'!N177=0,\"\",'Blank - Request Form'!N177),\"\"))","v":""},{"$f":"IF('Blank - Request Form'!$F$6=\"CIUGC\",IF(OR('Blank - Request Form'!F177=\"000\",'Blank - Request Form'!F177=0),\"\",'Blank - Request Form'!F177),IF('Blank - Request Form'!$F$7=\"CIUGC\",IF(OR('Blank - Request Form'!O177=\"000\",'Blank - Request Form'!O177=0),\"\",'Blank - Request Form'!O177),\"\"))","v":""},{"$f":"IF('Blank - Request Form'!$F$6=\"CIUGC\",IF(OR('Blank - Request Form'!G177=\"0\",'Blank - Request Form'!G177=\"00000\",'Blank - Request Form'!G177=0),\"\",'Blank - Request Form'!G177),IF('Blank - Request Form'!$F$7=\"CIUGC\",IF(OR('Blank - Request Form'!P177=\"0\",'Blank - Request Form'!P177=\"00000\",'Blank - Request Form'!P177=0),\"\",'Blank - Request Form'!P177),\"\"))","v":""},{"$f":"IF('Blank - Request Form'!$F$6=\"CIUGC\",IF(OR('Blank - Request Form'!H177=\"0\",'Blank - Request Form'!H177=\"00000\",'Blank - Request Form'!H177=0),\"\",'Blank - Request Form'!H177),IF('Blank - Request Form'!$F$7=\"CIUGC\",IF(OR('Blank - Request Form'!Q177=\"0\",'Blank - Request Form'!Q177=\"00000\",'Blank - Request Form'!Q177=0),\"\",'Blank - Request Form'!Q177),\"\"))","v":""},{"$f":"IF('Blank - Request Form'!$F$6=\"CIUGC\",IF(OR('Blank - Request Form'!I177=\"0\",'Blank - Request Form'!I177=\"00000\",'Blank - Request Form'!I177=0),\"\",'Blank - Request Form'!I177),IF('Blank - Request Form'!$F$7=\"CIUGC\",IF(OR('Blank - Request Form'!R177=\"0\",'Blank - Request Form'!R177=\"00000\",'Blank - Request Form'!R177=0),\"\",'Blank - Request Form'!R177),\"\"))","v":""},null,{"$f":"IF('Blank - Request Form'!$F$6=\"CIUGC\",IF('Blank - Request Form'!K177=0,\"\",'Blank - Request Form'!K177),IF('Blank - Request Form'!$F$7=\"CIUGC\",IF('Blank - Request Form'!T177=0,\"\",'Blank - Request Form'!T177),\"\"))","v":""},null,null,null,{"$f":"IF(M143<>\"\",'Blank - Request Form'!$M$2,\"\")","v":""},{"$f":"IF('Blank - Request Form'!$F$6=\"CIUGC\",IF('Blank - Request Form'!J177=0,\"\",'Blank - Request Form'!J177),IF('Blank - Request Form'!$F$7=\"CIUGC\",IF('Blank - Request Form'!S177=0,\"\",'Blank - Request Form'!S177),\"\"))","v":""},"",143]
[{"$f":"IF('Blank - Request Form'!$F$6=\"CIUGC\",IF('Blank - Request Form'!D178=0,\"\",'Blank - Request Form'!D178),IF('Blank - Request Form'!$F$7=\"CIUGC\",IF('Blank - Request Form'!M178=0,\"\",'Blank - Request Form'!M178),\"\"))","v":""},{"$f":"IF('Blank - Request Form'!$F$6=\"CIUGC\",IF('Blank - Request Form'!E178=0,\"\",'Blank - Request Form'!E178),IF('Blank - Request Form'!$F$7=\"CIUGC\",IF('Blank - Request Form'!N178=0,\"\",'Blank - Request Form'!N178),\"\"))","v":""},{"$f":"IF('Blank - Request Form'!$F$6=\"CIUGC\",IF(OR('Blank - Request Form'!F178=\"000\",'Blank - Request Form'!F178=0),\"\",'Blank - Request Form'!F178),IF('Blank - Request Form'!$F$7=\"CIUGC\",IF(OR('Blank - Request Form'!O178=\"000\",'Blank - Request Form'!O178=0),\"\",'Blank - Request Form'!O178),\"\"))","v":""},{"$f":"IF('Blank - Request Form'!$F$6=\"CIUGC\",IF(OR('Blank - Request Form'!G178=\"0\",'Blank - Request Form'!G178=\"00000\",'Blank - Request Form'!G178=0),\"\",'Blank - Request Form'!G178),IF('Blank - Request Form'!$F$7=\"CIUGC\",IF(OR('Blank - Request Form'!P178=\"0\",'Blank - Request Form'!P178=\"00000\",'Blank - Request Form'!P178=0),\"\",'Blank - Request Form'!P178),\"\"))","v":""},{"$f":"IF('Blank - Request Form'!$F$6=\"CIUGC\",IF(OR('Blank - Request Form'!H178=\"0\",'Blank - Request Form'!H178=\"00000\",'Blank - Request Form'!H178=0),\"\",'Blank - Request Form'!H178),IF('Blank - Request Form'!$F$7=\"CIUGC\",IF(OR('Blank - Request Form'!Q178=\"0\",'Blank - Request Form'!Q178=\"00000\",'Blank - Request Form'!Q178=0),\"\",'Blank - Request Form'!Q178),\"\"))","v":""},{"$f":"IF('Blank - Request Form'!$F$6=\"CIUGC\",IF(OR('Blank - Request Form'!I178=\"0\",'Blank - Request Form'!I178=\"00000\",'Blank - Request Form'!I178=0),\"\",'Blank - Request Form'!I178),IF('Blank - Request Form'!$F$7=\"CIUGC\",IF(OR('Blank - Request Form'!R178=\"0\",'Blank - Request Form'!R178=\"00000\",'Blank - Request Form'!R178=0),\"\",'Blank - Request Form'!R178),\"\"))","v":""},null,{"$f":"IF('Blank - Request Form'!$F$6=\"CIUGC\",IF('Blank - Request Form'!K178=0,\"\",'Blank - Request Form'!K178),IF('Blank - Request Form'!$F$7=\"CIUGC\",IF('Blank - Request Form'!T178=0,\"\",'Blank - Request Form'!T178),\"\"))","v":""},null,null,null,{"$f":"IF(M144<>\"\",'Blank - Request Form'!$M$2,\"\")","v":""},{"$f":"IF('Blank - Request Form'!$F$6=\"CIUGC\",IF('Blank - Request Form'!J178=0,\"\",'Blank - Request Form'!J178),IF('Blank - Request Form'!$F$7=\"CIUGC\",IF('Blank - Request Form'!S178=0,\"\",'Blank - Request Form'!S178),\"\"))","v":""},"",144]
[{"$f":"IF('Blank - Request Form'!$F$6=\"CIUGC\",IF('Blank - Request Form'!D179=0,\"\",'Blank - Request Form'!D179),IF('Blank - Request Form'!$F$7=\"CIUGC\",IF('Blank - Request Form'!M179=0,\"\",'Blank - Request Form'!M179),\"\"))","v":""},{"$f":"IF('Blank - Request Form'!$F$6=\"CIUGC\",IF('Blank - Request Form'!E179=0,\"\",'Blank - Request Form'!E179),IF('Blank - Request Form'!$F$7=\"CIUGC\",IF('Blank - Request Form'!N179=0,\"\",'Blank - Request Form'!N179),\"\"))","v":""},{"$f":"IF('Blank - Request Form'!$F$6=\"CIUGC\",IF(OR('Blank - Request Form'!F179=\"000\",'Blank - Request Form'!F179=0),\"\",'Blank - Request Form'!F179),IF('Blank - Request Form'!$F$7=\"CIUGC\",IF(OR('Blank - Request Form'!O179=\"000\",'Blank - Request Form'!O179=0),\"\",'Blank - Request Form'!O179),\"\"))","v":""},{"$f":"IF('Blank - Request Form'!$F$6=\"CIUGC\",IF(OR('Blank - Request Form'!G179=\"0\",'Blank - Request Form'!G179=\"00000\",'Blank - Request Form'!G179=0),\"\",'Blank - Request Form'!G179),IF('Blank - Request Form'!$F$7=\"CIUGC\",IF(OR('Blank - Request Form'!P179=\"0\",'Blank - Request Form'!P179=\"00000\",'Blank - Request Form'!P179=0),\"\",'Blank - Request Form'!P179),\"\"))","v":""},{"$f":"IF('Blank - Request Form'!$F$6=\"CIUGC\",IF(OR('Blank - Request Form'!H179=\"0\",'Blank - Request Form'!H179=\"00000\",'Blank - Request Form'!H179=0),\"\",'Blank - Request Form'!H179),IF('Blank - Request Form'!$F$7=\"CIUGC\",IF(OR('Blank - Request Form'!Q179=\"0\",'Blank - Request Form'!Q179=\"00000\",'Blank - Request Form'!Q179=0),\"\",'Blank - Request Form'!Q179),\"\"))","v":""},{"$f":"IF('Blank - Request Form'!$F$6=\"CIUGC\",IF(OR('Blank - Request Form'!I179=\"0\",'Blank - Request Form'!I179=\"00000\",'Blank - Request Form'!I179=0),\"\",'Blank - Request Form'!I179),IF('Blank - Request Form'!$F$7=\"CIUGC\",IF(OR('Blank - Request Form'!R179=\"0\",'Blank - Request Form'!R179=\"00000\",'Blank - Request Form'!R179=0),\"\",'Blank - Request Form'!R179),\"\"))","v":""},null,{"$f":"IF('Blank - Request Form'!$F$6=\"CIUGC\",IF('Blank - Request Form'!K179=0,\"\",'Blank - Request Form'!K179),IF('Blank - Request Form'!$F$7=\"CIUGC\",IF('Blank - Request Form'!T179=0,\"\",'Blank - Request Form'!T179),\"\"))","v":""},null,null,null,{"$f":"IF(M145<>\"\",'Blank - Request Form'!$M$2,\"\")","v":""},{"$f":"IF('Blank - Request Form'!$F$6=\"CIUGC\",IF('Blank - Request Form'!J179=0,\"\",'Blank - Request Form'!J179),IF('Blank - Request Form'!$F$7=\"CIUGC\",IF('Blank - Request Form'!S179=0,\"\",'Blank - Request Form'!S179),\"\"))","v":""},"",145]
[{"$f":"IF('Blank - Request Form'!$F$6=\"CIUGC\",IF('Blank - Request Form'!D180=0,\"\",'Blank - Request Form'!D180),IF('Blank - Request Form'!$F$7=\"CIUGC\",IF('Blank - Request Form'!M180=0,\"\",'Blank - Request Form'!M180),\"\"))","v":""},{"$f":"IF('Blank - Request Form'!$F$6=\"CIUGC\",IF('Blank - Request Form'!E180=0,\"\",'Blank - Request Form'!E180),IF('Blank - Request Form'!$F$7=\"CIUGC\",IF('Blank - Request Form'!N180=0,\"\",'Blank - Request Form'!N180),\"\"))","v":""},{"$f":"IF('Blank - Request Form'!$F$6=\"CIUGC\",IF(OR('Blank - Request Form'!F180=\"000\",'Blank - Request Form'!F180=0),\"\",'Blank - Request Form'!F180),IF('Blank - Request Form'!$F$7=\"CIUGC\",IF(OR('Blank - Request Form'!O180=\"000\",'Blank - Request Form'!O180=0),\"\",'Blank - Request Form'!O180),\"\"))","v":""},{"$f":"IF('Blank - Request Form'!$F$6=\"CIUGC\",IF(OR('Blank - Request Form'!G180=\"0\",'Blank - Request Form'!G180=\"00000\",'Blank - Request Form'!G180=0),\"\",'Blank - Request Form'!G180),IF('Blank - Request Form'!$F$7=\"CIUGC\",IF(OR('Blank - Request Form'!P180=\"0\",'Blank - Request Form'!P180=\"00000\",'Blank - Request Form'!P180=0),\"\",'Blank - Request Form'!P180),\"\"))","v":""},{"$f":"IF('Blank - Request Form'!$F$6=\"CIUGC\",IF(OR('Blank - Request Form'!H180=\"0\",'Blank - Request Form'!H180=\"00000\",'Blank - Request Form'!H180=0),\"\",'Blank - Request Form'!H180),IF('Blank - Request Form'!$F$7=\"CIUGC\",IF(OR('Blank - Request Form'!Q180=\"0\",'Blank - Request Form'!Q180=\"00000\",'Blank - Request Form'!Q180=0),\"\",'Blank - Request Form'!Q180),\"\"))","v":""},{"$f":"IF('Blank - Request Form'!$F$6=\"CIUGC\",IF(OR('Blank - Request Form'!I180=\"0\",'Blank - Request Form'!I180=\"00000\",'Blank - Request Form'!I180=0),\"\",'Blank - Request Form'!I180),IF('Blank - Request Form'!$F$7=\"CIUGC\",IF(OR('Blank - Request Form'!R180=\"0\",'Blank - Request Form'!R180=\"00000\",'Blank - Request Form'!R180=0),\"\",'Blank - Request Form'!R180),\"\"))","v":""},null,{"$f":"IF('Blank - Request Form'!$F$6=\"CIUGC\",IF('Blank - Request Form'!K180=0,\"\",'Blank - Request Form'!K180),IF('Blank - Request Form'!$F$7=\"CIUGC\",IF('Blank - Request Form'!T180=0,\"\",'Blank - Request Form'!T180),\"\"))","v":""},null,null,null,{"$f":"IF(M146<>\"\",'Blank - Request Form'!$M$2,\"\")","v":""},{"$f":"IF('Blank - Request Form'!$F$6=\"CIUGC\",IF('Blank - Request Form'!J180=0,\"\",'Blank - Request Form'!J180),IF('Blank - Request Form'!$F$7=\"CIUGC\",IF('Blank - Request Form'!S180=0,\"\",'Blank - Request Form'!S180),\"\"))","v":""},"",146]
[{"$f":"IF('Blank - Request Form'!$F$6=\"CIUGC\",IF('Blank - Request Form'!D181=0,\"\",'Blank - Request Form'!D181),IF('Blank - Request Form'!$F$7=\"CIUGC\",IF('Blank - Request Form'!M181=0,\"\",'Blank - Request Form'!M181),\"\"))","v":""},{"$f":"IF('Blank - Request Form'!$F$6=\"CIUGC\",IF('Blank - Request Form'!E181=0,\"\",'Blank - Request Form'!E181),IF('Blank - Request Form'!$F$7=\"CIUGC\",IF('Blank - Request Form'!N181=0,\"\",'Blank - Request Form'!N181),\"\"))","v":""},{"$f":"IF('Blank - Request Form'!$F$6=\"CIUGC\",IF(OR('Blank - Request Form'!F181=\"000\",'Blank - Request Form'!F181=0),\"\",'Blank - Request Form'!F181),IF('Blank - Request Form'!$F$7=\"CIUGC\",IF(OR('Blank - Request Form'!O181=\"000\",'Blank - Request Form'!O181=0),\"\",'Blank - Request Form'!O181),\"\"))","v":""},{"$f":"IF('Blank - Request Form'!$F$6=\"CIUGC\",IF(OR('Blank - Request Form'!G181=\"0\",'Blank - Request Form'!G181=\"00000\",'Blank - Request Form'!G181=0),\"\",'Blank - Request Form'!G181),IF('Blank - Request Form'!$F$7=\"CIUGC\",IF(OR('Blank - Request Form'!P181=\"0\",'Blank - Request Form'!P181=\"00000\",'Blank - Request Form'!P181=0),\"\",'Blank - Request Form'!P181),\"\"))","v":""},{"$f":"IF('Blank - Request Form'!$F$6=\"CIUGC\",IF(OR('Blank - Request Form'!H181=\"0\",'Blank - Request Form'!H181=\"00000\",'Blank - Request Form'!H181=0),\"\",'Blank - Request Form'!H181),IF('Blank - Request Form'!$F$7=\"CIUGC\",IF(OR('Blank - Request Form'!Q181=\"0\",'Blank - Request Form'!Q181=\"00000\",'Blank - Request Form'!Q181=0),\"\",'Blank - Request Form'!Q181),\"\"))","v":""},{"$f":"IF('Blank - Request Form'!$F$6=\"CIUGC\",IF(OR('Blank - Request Form'!I181=\"0\",'Blank - Request Form'!I181=\"00000\",'Blank - Request Form'!I181=0),\"\",'Blank - Request Form'!I181),IF('Blank - Request Form'!$F$7=\"CIUGC\",IF(OR('Blank - Request Form'!R181=\"0\",'Blank - Request Form'!R181=\"00000\",'Blank - Request Form'!R181=0),\"\",'Blank - Request Form'!R181),\"\"))","v":""},null,{"$f":"IF('Blank - Request Form'!$F$6=\"CIUGC\",IF('Blank - Request Form'!K181=0,\"\",'Blank - Request Form'!K181),IF('Blank - Request Form'!$F$7=\"CIUGC\",IF('Blank - Request Form'!T181=0,\"\",'Blank - Request Form'!T181),\"\"))","v":""},null,null,null,{"$f":"IF(M147<>\"\",'Blank - Request Form'!$M$2,\"\")","v":""},{"$f":"IF('Blank - Request Form'!$F$6=\"CIUGC\",IF('Blank - Request Form'!J181=0,\"\",'Blank - Request Form'!J181),IF('Blank - Request Form'!$F$7=\"CIUGC\",IF('Blank - Request Form'!S181=0,\"\",'Blank - Request Form'!S181),\"\"))","v":""},"",147]
[{"$f":"IF('Blank - Request Form'!$F$6=\"CIUGC\",IF('Blank - Request Form'!D182=0,\"\",'Blank - Request Form'!D182),IF('Blank - Request Form'!$F$7=\"CIUGC\",IF('Blank - Request Form'!M182=0,\"\",'Blank - Request Form'!M182),\"\"))","v":""},{"$f":"IF('Blank - Request Form'!$F$6=\"CIUGC\",IF('Blank - Request Form'!E182=0,\"\",'Blank - Request Form'!E182),IF('Blank - Request Form'!$F$7=\"CIUGC\",IF('Blank - Request Form'!N182=0,\"\",'Blank - Request Form'!N182),\"\"))","v":""},{"$f":"IF('Blank - Request Form'!$F$6=\"CIUGC\",IF(OR('Blank - Request Form'!F182=\"000\",'Blank - Request Form'!F182=0),\"\",'Blank - Request Form'!F182),IF('Blank - Request Form'!$F$7=\"CIUGC\",IF(OR('Blank - Request Form'!O182=\"000\",'Blank - Request Form'!O182=0),\"\",'Blank - Request Form'!O182),\"\"))","v":""},{"$f":"IF('Blank - Request Form'!$F$6=\"CIUGC\",IF(OR('Blank - Request Form'!G182=\"0\",'Blank - Request Form'!G182=\"00000\",'Blank - Request Form'!G182=0),\"\",'Blank - Request Form'!G182),IF('Blank - Request Form'!$F$7=\"CIUGC\",IF(OR('Blank - Request Form'!P182=\"0\",'Blank - Request Form'!P182=\"00000\",'Blank - Request Form'!P182=0),\"\",'Blank - Request Form'!P182),\"\"))","v":""},{"$f":"IF('Blank - Request Form'!$F$6=\"CIUGC\",IF(OR('Blank - Request Form'!H182=\"0\",'Blank - Request Form'!H182=\"00000\",'Blank - Request Form'!H182=0),\"\",'Blank - Request Form'!H182),IF('Blank - Request Form'!$F$7=\"CIUGC\",IF(OR('Blank - Request Form'!Q182=\"0\",'Blank - Request Form'!Q182=\"00000\",'Blank - Request Form'!Q182=0),\"\",'Blank - Request Form'!Q182),\"\"))","v":""},{"$f":"IF('Blank - Request Form'!$F$6=\"CIUGC\",IF(OR('Blank - Request Form'!I182=\"0\",'Blank - Request Form'!I182=\"00000\",'Blank - Request Form'!I182=0),\"\",'Blank - Request Form'!I182),IF('Blank - Request Form'!$F$7=\"CIUGC\",IF(OR('Blank - Request Form'!R182=\"0\",'Blank - Request Form'!R182=\"00000\",'Blank - Request Form'!R182=0),\"\",'Blank - Request Form'!R182),\"\"))","v":""},null,{"$f":"IF('Blank - Request Form'!$F$6=\"CIUGC\",IF('Blank - Request Form'!K182=0,\"\",'Blank - Request Form'!K182),IF('Blank - Request Form'!$F$7=\"CIUGC\",IF('Blank - Request Form'!T182=0,\"\",'Blank - Request Form'!T182),\"\"))","v":""},null,null,null,{"$f":"IF(M148<>\"\",'Blank - Request Form'!$M$2,\"\")","v":""},{"$f":"IF('Blank - Request Form'!$F$6=\"CIUGC\",IF('Blank - Request Form'!J182=0,\"\",'Blank - Request Form'!J182),IF('Blank - Request Form'!$F$7=\"CIUGC\",IF('Blank - Request Form'!S182=0,\"\",'Blank - Request Form'!S182),\"\"))","v":""},"",148]
[{"$f":"IF('Blank - Request Form'!$F$6=\"CIUGC\",IF('Blank - Request Form'!D183=0,\"\",'Blank - Request Form'!D183),IF('Blank - Request Form'!$F$7=\"CIUGC\",IF('Blank - Request Form'!M183=0,\"\",'Blank - Request Form'!M183),\"\"))","v":""},{"$f":"IF('Blank - Request Form'!$F$6=\"CIUGC\",IF('Blank - Request Form'!E183=0,\"\",'Blank - Request Form'!E183),IF('Blank - Request Form'!$F$7=\"CIUGC\",IF('Blank - Request Form'!N183=0,\"\",'Blank - Request Form'!N183),\"\"))","v":""},{"$f":"IF('Blank - Request Form'!$F$6=\"CIUGC\",IF(OR('Blank - Request Form'!F183=\"000\",'Blank - Request Form'!F183=0),\"\",'Blank - Request Form'!F183),IF('Blank - Request Form'!$F$7=\"CIUGC\",IF(OR('Blank - Request Form'!O183=\"000\",'Blank - Request Form'!O183=0),\"\",'Blank - Request Form'!O183),\"\"))","v":""},{"$f":"IF('Blank - Request Form'!$F$6=\"CIUGC\",IF(OR('Blank - Request Form'!G183=\"0\",'Blank - Request Form'!G183=\"00000\",'Blank - Request Form'!G183=0),\"\",'Blank - Request Form'!G183),IF('Blank - Request Form'!$F$7=\"CIUGC\",IF(OR('Blank - Request Form'!P183=\"0\",'Blank - Request Form'!P183=\"00000\",'Blank - Request Form'!P183=0),\"\",'Blank - Request Form'!P183),\"\"))","v":""},{"$f":"IF('Blank - Request Form'!$F$6=\"CIUGC\",IF(OR('Blank - Request Form'!H183=\"0\",'Blank - Request Form'!H183=\"00000\",'Blank - Request Form'!H183=0),\"\",'Blank - Request Form'!H183),IF('Blank - Request Form'!$F$7=\"CIUGC\",IF(OR('Blank - Request Form'!Q183=\"0\",'Blank - Request Form'!Q183=\"00000\",'Blank - Request Form'!Q183=0),\"\",'Blank - Request Form'!Q183),\"\"))","v":""},{"$f":"IF('Blank - Request Form'!$F$6=\"CIUGC\",IF(OR('Blank - Request Form'!I183=\"0\",'Blank - Request Form'!I183=\"00000\",'Blank - Request Form'!I183=0),\"\",'Blank - Request Form'!I183),IF('Blank - Request Form'!$F$7=\"CIUGC\",IF(OR('Blank - Request Form'!R183=\"0\",'Blank - Request Form'!R183=\"00000\",'Blank - Request Form'!R183=0),\"\",'Blank - Request Form'!R183),\"\"))","v":""},null,{"$f":"IF('Blank - Request Form'!$F$6=\"CIUGC\",IF('Blank - Request Form'!K183=0,\"\",'Blank - Request Form'!K183),IF('Blank - Request Form'!$F$7=\"CIUGC\",IF('Blank - Request Form'!T183=0,\"\",'Blank - Request Form'!T183),\"\"))","v":""},null,null,null,{"$f":"IF(M149<>\"\",'Blank - Request Form'!$M$2,\"\")","v":""},{"$f":"IF('Blank - Request Form'!$F$6=\"CIUGC\",IF('Blank - Request Form'!J183=0,\"\",'Blank - Request Form'!J183),IF('Blank - Request Form'!$F$7=\"CIUGC\",IF('Blank - Request Form'!S183=0,\"\",'Blank - Request Form'!S183),\"\"))","v":""},"",149]
[{"$f":"IF('Blank - Request Form'!$F$6=\"CIUGC\",IF('Blank - Request Form'!D184=0,\"\",'Blank - Request Form'!D184),IF('Blank - Request Form'!$F$7=\"CIUGC\",IF('Blank - Request Form'!M184=0,\"\",'Blank - Request Form'!M184),\"\"))","v":""},{"$f":"IF('Blank - Request Form'!$F$6=\"CIUGC\",IF('Blank - Request Form'!E184=0,\"\",'Blank - Request Form'!E184),IF('Blank - Request Form'!$F$7=\"CIUGC\",IF('Blank - Request Form'!N184=0,\"\",'Blank - Request Form'!N184),\"\"))","v":""},{"$f":"IF('Blank - Request Form'!$F$6=\"CIUGC\",IF(OR('Blank - Request Form'!F184=\"000\",'Blank - Request Form'!F184=0),\"\",'Blank - Request Form'!F184),IF('Blank - Request Form'!$F$7=\"CIUGC\",IF(OR('Blank - Request Form'!O184=\"000\",'Blank - Request Form'!O184=0),\"\",'Blank - Request Form'!O184),\"\"))","v":""},{"$f":"IF('Blank - Request Form'!$F$6=\"CIUGC\",IF(OR('Blank - Request Form'!G184=\"0\",'Blank - Request Form'!G184=\"00000\",'Blank - Request Form'!G184=0),\"\",'Blank - Request Form'!G184),IF('Blank - Request Form'!$F$7=\"CIUGC\",IF(OR('Blank - Request Form'!P184=\"0\",'Blank - Request Form'!P184=\"00000\",'Blank - Request Form'!P184=0),\"\",'Blank - Request Form'!P184),\"\"))","v":""},{"$f":"IF('Blank - Request Form'!$F$6=\"CIUGC\",IF(OR('Blank - Request Form'!H184=\"0\",'Blank - Request Form'!H184=\"00000\",'Blank - Request Form'!H184=0),\"\",'Blank - Request Form'!H184),IF('Blank - Request Form'!$F$7=\"CIUGC\",IF(OR('Blank - Request Form'!Q184=\"0\",'Blank - Request Form'!Q184=\"00000\",'Blank - Request Form'!Q184=0),\"\",'Blank - Request Form'!Q184),\"\"))","v":""},{"$f":"IF('Blank - Request Form'!$F$6=\"CIUGC\",IF(OR('Blank - Request Form'!I184=\"0\",'Blank - Request Form'!I184=\"00000\",'Blank - Request Form'!I184=0),\"\",'Blank - Request Form'!I184),IF('Blank - Request Form'!$F$7=\"CIUGC\",IF(OR('Blank - Request Form'!R184=\"0\",'Blank - Request Form'!R184=\"00000\",'Blank - Request Form'!R184=0),\"\",'Blank - Request Form'!R184),\"\"))","v":""},null,{"$f":"IF('Blank - Request Form'!$F$6=\"CIUGC\",IF('Blank - Request Form'!K184=0,\"\",'Blank - Request Form'!K184),IF('Blank - Request Form'!$F$7=\"CIUGC\",IF('Blank - Request Form'!T184=0,\"\",'Blank - Request Form'!T184),\"\"))","v":""},null,null,null,{"$f":"IF(M150<>\"\",'Blank - Request Form'!$M$2,\"\")","v":""},{"$f":"IF('Blank - Request Form'!$F$6=\"CIUGC\",IF('Blank - Request Form'!J184=0,\"\",'Blank - Request Form'!J184),IF('Blank - Request Form'!$F$7=\"CIUGC\",IF('Blank - Request Form'!S184=0,\"\",'Blank - Request Form'!S184),\"\"))","v":""},"",150]
[{"$f":"IF('Blank - Request Form'!$F$6=\"CIUGC\",IF('Blank - Request Form'!D185=0,\"\",'Blank - Request Form'!D185),IF('Blank - Request Form'!$F$7=\"CIUGC\",IF('Blank - Request Form'!M185=0,\"\",'Blank - Request Form'!M185),\"\"))","v":""},{"$f":"IF('Blank - Request Form'!$F$6=\"CIUGC\",IF('Blank - Request Form'!E185=0,\"\",'Blank - Request Form'!E185),IF('Blank - Request Form'!$F$7=\"CIUGC\",IF('Blank - Request Form'!N185=0,\"\",'Blank - Request Form'!N185),\"\"))","v":""},{"$f":"IF('Blank - Request Form'!$F$6=\"CIUGC\",IF(OR('Blank - Request Form'!F185=\"000\",'Blank - Request Form'!F185=0),\"\",'Blank - Request Form'!F185),IF('Blank - Request Form'!$F$7=\"CIUGC\",IF(OR('Blank - Request Form'!O185=\"000\",'Blank - Request Form'!O185=0),\"\",'Blank - Request Form'!O185),\"\"))","v":""},{"$f":"IF('Blank - Request Form'!$F$6=\"CIUGC\",IF(OR('Blank - Request Form'!G185=\"0\",'Blank - Request Form'!G185=\"00000\",'Blank - Request Form'!G185=0),\"\",'Blank - Request Form'!G185),IF('Blank - Request Form'!$F$7=\"CIUGC\",IF(OR('Blank - Request Form'!P185=\"0\",'Blank - Request Form'!P185=\"00000\",'Blank - Request Form'!P185=0),\"\",'Blank - Request Form'!P185),\"\"))","v":""},{"$f":"IF('Blank - Request Form'!$F$6=\"CIUGC\",IF(OR('Blank - Request Form'!H185=\"0\",'Blank - Request Form'!H185=\"00000\",'Blank - Request Form'!H185=0),\"\",'Blank - Request Form'!H185),IF('Blank - Request Form'!$F$7=\"CIUGC\",IF(OR('Blank - Request Form'!Q185=\"0\",'Blank - Request Form'!Q185=\"00000\",'Blank - Request Form'!Q185=0),\"\",'Blank - Request Form'!Q185),\"\"))","v":""},{"$f":"IF('Blank - Request Form'!$F$6=\"CIUGC\",IF(OR('Blank - Request Form'!I185=\"0\",'Blank - Request Form'!I185=\"00000\",'Blank - Request Form'!I185=0),\"\",'Blank - Request Form'!I185),IF('Blank - Request Form'!$F$7=\"CIUGC\",IF(OR('Blank - Request Form'!R185=\"0\",'Blank - Request Form'!R185=\"00000\",'Blank - Request Form'!R185=0),\"\",'Blank - Request Form'!R185),\"\"))","v":""},null,{"$f":"IF('Blank - Request Form'!$F$6=\"CIUGC\",IF('Blank - Request Form'!K185=0,\"\",'Blank - Request Form'!K185),IF('Blank - Request Form'!$F$7=\"CIUGC\",IF('Blank - Request Form'!T185=0,\"\",'Blank - Request Form'!T185),\"\"))","v":""},null,null,null,{"$f":"IF(M151<>\"\",'Blank - Request Form'!$M$2,\"\")","v":""},{"$f":"IF('Blank - Request Form'!$F$6=\"CIUGC\",IF('Blank - Request Form'!J185=0,\"\",'Blank - Request Form'!J185),IF('Blank - Request Form'!$F$7=\"CIUGC\",IF('Blank - Request Form'!S185=0,\"\",'Blank - Request Form'!S185),\"\"))","v":""},"",151]
[{"$f":"IF('Blank - Request Form'!$F$6=\"CIUGC\",IF('Blank - Request Form'!D186=0,\"\",'Blank - Request Form'!D186),IF('Blank - Request Form'!$F$7=\"CIUGC\",IF('Blank - Request Form'!M186=0,\"\",'Blank - Request Form'!M186),\"\"))","v":""},{"$f":"IF('Blank - Request Form'!$F$6=\"CIUGC\",IF('Blank - Request Form'!E186=0,\"\",'Blank - Request Form'!E186),IF('Blank - Request Form'!$F$7=\"CIUGC\",IF('Blank - Request Form'!N186=0,\"\",'Blank - Request Form'!N186),\"\"))","v":""},{"$f":"IF('Blank - Request Form'!$F$6=\"CIUGC\",IF(OR('Blank - Request Form'!F186=\"000\",'Blank - Request Form'!F186=0),\"\",'Blank - Request Form'!F186),IF('Blank - Request Form'!$F$7=\"CIUGC\",IF(OR('Blank - Request Form'!O186=\"000\",'Blank - Request Form'!O186=0),\"\",'Blank - Request Form'!O186),\"\"))","v":""},{"$f":"IF('Blank - Request Form'!$F$6=\"CIUGC\",IF(OR('Blank - Request Form'!G186=\"0\",'Blank - Request Form'!G186=\"00000\",'Blank - Request Form'!G186=0),\"\",'Blank - Request Form'!G186),IF('Blank - Request Form'!$F$7=\"CIUGC\",IF(OR('Blank - Request Form'!P186=\"0\",'Blank - Request Form'!P186=\"00000\",'Blank - Request Form'!P186=0),\"\",'Blank - Request Form'!P186),\"\"))","v":""},{"$f":"IF('Blank - Request Form'!$F$6=\"CIUGC\",IF(OR('Blank - Request Form'!H186=\"0\",'Blank - Request Form'!H186=\"00000\",'Blank - Request Form'!H186=0),\"\",'Blank - Request Form'!H186),IF('Blank - Request Form'!$F$7=\"CIUGC\",IF(OR('Blank - Request Form'!Q186=\"0\",'Blank - Request Form'!Q186=\"00000\",'Blank - Request Form'!Q186=0),\"\",'Blank - Request Form'!Q186),\"\"))","v":""},{"$f":"IF('Blank - Request Form'!$F$6=\"CIUGC\",IF(OR('Blank - Request Form'!I186=\"0\",'Blank - Request Form'!I186=\"00000\",'Blank - Request Form'!I186=0),\"\",'Blank - Request Form'!I186),IF('Blank - Request Form'!$F$7=\"CIUGC\",IF(OR('Blank - Request Form'!R186=\"0\",'Blank - Request Form'!R186=\"00000\",'Blank - Request Form'!R186=0),\"\",'Blank - Request Form'!R186),\"\"))","v":""},null,{"$f":"IF('Blank - Request Form'!$F$6=\"CIUGC\",IF('Blank - Request Form'!K186=0,\"\",'Blank - Request Form'!K186),IF('Blank - Request Form'!$F$7=\"CIUGC\",IF('Blank - Request Form'!T186=0,\"\",'Blank - Request Form'!T186),\"\"))","v":""},null,null,null,{"$f":"IF(M152<>\"\",'Blank - Request Form'!$M$2,\"\")","v":""},{"$f":"IF('Blank - Request Form'!$F$6=\"CIUGC\",IF('Blank - Request Form'!J186=0,\"\",'Blank - Request Form'!J186),IF('Blank - Request Form'!$F$7=\"CIUGC\",IF('Blank - Request Form'!S186=0,\"\",'Blank - Request Form'!S186),\"\"))","v":""},"",152]
[{"$f":"IF('Blank - Request Form'!$F$6=\"CIUGC\",IF('Blank - Request Form'!D187=0,\"\",'Blank - Request Form'!D187),IF('Blank - Request Form'!$F$7=\"CIUGC\",IF('Blank - Request Form'!M187=0,\"\",'Blank - Request Form'!M187),\"\"))","v":""},{"$f":"IF('Blank - Request Form'!$F$6=\"CIUGC\",IF('Blank - Request Form'!E187=0,\"\",'Blank - Request Form'!E187),IF('Blank - Request Form'!$F$7=\"CIUGC\",IF('Blank - Request Form'!N187=0,\"\",'Blank - Request Form'!N187),\"\"))","v":""},{"$f":"IF('Blank - Request Form'!$F$6=\"CIUGC\",IF(OR('Blank - Request Form'!F187=\"000\",'Blank - Request Form'!F187=0),\"\",'Blank - Request Form'!F187),IF('Blank - Request Form'!$F$7=\"CIUGC\",IF(OR('Blank - Request Form'!O187=\"000\",'Blank - Request Form'!O187=0),\"\",'Blank - Request Form'!O187),\"\"))","v":""},{"$f":"IF('Blank - Request Form'!$F$6=\"CIUGC\",IF(OR('Blank - Request Form'!G187=\"0\",'Blank - Request Form'!G187=\"00000\",'Blank - Request Form'!G187=0),\"\",'Blank - Request Form'!G187),IF('Blank - Request Form'!$F$7=\"CIUGC\",IF(OR('Blank - Request Form'!P187=\"0\",'Blank - Request Form'!P187=\"00000\",'Blank - Request Form'!P187=0),\"\",'Blank - Request Form'!P187),\"\"))","v":""},{"$f":"IF('Blank - Request Form'!$F$6=\"CIUGC\",IF(OR('Blank - Request Form'!H187=\"0\",'Blank - Request Form'!H187=\"00000\",'Blank - Request Form'!H187=0),\"\",'Blank - Request Form'!H187),IF('Blank - Request Form'!$F$7=\"CIUGC\",IF(OR('Blank - Request Form'!Q187=\"0\",'Blank - Request Form'!Q187=\"00000\",'Blank - Request Form'!Q187=0),\"\",'Blank - Request Form'!Q187),\"\"))","v":""},{"$f":"IF('Blank - Request Form'!$F$6=\"CIUGC\",IF(OR('Blank - Request Form'!I187=\"0\",'Blank - Request Form'!I187=\"00000\",'Blank - Request Form'!I187=0),\"\",'Blank - Request Form'!I187),IF('Blank - Request Form'!$F$7=\"CIUGC\",IF(OR('Blank - Request Form'!R187=\"0\",'Blank - Request Form'!R187=\"00000\",'Blank - Request Form'!R187=0),\"\",'Blank - Request Form'!R187),\"\"))","v":""},null,{"$f":"IF('Blank - Request Form'!$F$6=\"CIUGC\",IF('Blank - Request Form'!K187=0,\"\",'Blank - Request Form'!K187),IF('Blank - Request Form'!$F$7=\"CIUGC\",IF('Blank - Request Form'!T187=0,\"\",'Blank - Request Form'!T187),\"\"))","v":""},null,null,null,{"$f":"IF(M153<>\"\",'Blank - Request Form'!$M$2,\"\")","v":""},{"$f":"IF('Blank - Request Form'!$F$6=\"CIUGC\",IF('Blank - Request Form'!J187=0,\"\",'Blank - Request Form'!J187),IF('Blank - Request Form'!$F$7=\"CIUGC\",IF('Blank - Request Form'!S187=0,\"\",'Blank - Request Form'!S187),\"\"))","v":""},"",153]
[{"$f":"IF('Blank - Request Form'!$F$6=\"CIUGC\",IF('Blank - Request Form'!D188=0,\"\",'Blank - Request Form'!D188),IF('Blank - Request Form'!$F$7=\"CIUGC\",IF('Blank - Request Form'!M188=0,\"\",'Blank - Request Form'!M188),\"\"))","v":""},{"$f":"IF('Blank - Request Form'!$F$6=\"CIUGC\",IF('Blank - Request Form'!E188=0,\"\",'Blank - Request Form'!E188),IF('Blank - Request Form'!$F$7=\"CIUGC\",IF('Blank - Request Form'!N188=0,\"\",'Blank - Request Form'!N188),\"\"))","v":""},{"$f":"IF('Blank - Request Form'!$F$6=\"CIUGC\",IF(OR('Blank - Request Form'!F188=\"000\",'Blank - Request Form'!F188=0),\"\",'Blank - Request Form'!F188),IF('Blank - Request Form'!$F$7=\"CIUGC\",IF(OR('Blank - Request Form'!O188=\"000\",'Blank - Request Form'!O188=0),\"\",'Blank - Request Form'!O188),\"\"))","v":""},{"$f":"IF('Blank - Request Form'!$F$6=\"CIUGC\",IF(OR('Blank - Request Form'!G188=\"0\",'Blank - Request Form'!G188=\"00000\",'Blank - Request Form'!G188=0),\"\",'Blank - Request Form'!G188),IF('Blank - Request Form'!$F$7=\"CIUGC\",IF(OR('Blank - Request Form'!P188=\"0\",'Blank - Request Form'!P188=\"00000\",'Blank - Request Form'!P188=0),\"\",'Blank - Request Form'!P188),\"\"))","v":""},{"$f":"IF('Blank - Request Form'!$F$6=\"CIUGC\",IF(OR('Blank - Request Form'!H188=\"0\",'Blank - Request Form'!H188=\"00000\",'Blank - Request Form'!H188=0),\"\",'Blank - Request Form'!H188),IF('Blank - Request Form'!$F$7=\"CIUGC\",IF(OR('Blank - Request Form'!Q188=\"0\",'Blank - Request Form'!Q188=\"00000\",'Blank - Request Form'!Q188=0),\"\",'Blank - Request Form'!Q188),\"\"))","v":""},{"$f":"IF('Blank - Request Form'!$F$6=\"CIUGC\",IF(OR('Blank - Request Form'!I188=\"0\",'Blank - Request Form'!I188=\"00000\",'Blank - Request Form'!I188=0),\"\",'Blank - Request Form'!I188),IF('Blank - Request Form'!$F$7=\"CIUGC\",IF(OR('Blank - Request Form'!R188=\"0\",'Blank - Request Form'!R188=\"00000\",'Blank - Request Form'!R188=0),\"\",'Blank - Request Form'!R188),\"\"))","v":""},null,{"$f":"IF('Blank - Request Form'!$F$6=\"CIUGC\",IF('Blank - Request Form'!K188=0,\"\",'Blank - Request Form'!K188),IF('Blank - Request Form'!$F$7=\"CIUGC\",IF('Blank - Request Form'!T188=0,\"\",'Blank - Request Form'!T188),\"\"))","v":""},null,null,null,{"$f":"IF(M154<>\"\",'Blank - Request Form'!$M$2,\"\")","v":""},{"$f":"IF('Blank - Request Form'!$F$6=\"CIUGC\",IF('Blank - Request Form'!J188=0,\"\",'Blank - Request Form'!J188),IF('Blank - Request Form'!$F$7=\"CIUGC\",IF('Blank - Request Form'!S188=0,\"\",'Blank - Request Form'!S188),\"\"))","v":""},"",154]
[{"$f":"IF('Blank - Request Form'!$F$6=\"CIUGC\",IF('Blank - Request Form'!D189=0,\"\",'Blank - Request Form'!D189),IF('Blank - Request Form'!$F$7=\"CIUGC\",IF('Blank - Request Form'!M189=0,\"\",'Blank - Request Form'!M189),\"\"))","v":""},{"$f":"IF('Blank - Request Form'!$F$6=\"CIUGC\",IF('Blank - Request Form'!E189=0,\"\",'Blank - Request Form'!E189),IF('Blank - Request Form'!$F$7=\"CIUGC\",IF('Blank - Request Form'!N189=0,\"\",'Blank - Request Form'!N189),\"\"))","v":""},{"$f":"IF('Blank - Request Form'!$F$6=\"CIUGC\",IF(OR('Blank - Request Form'!F189=\"000\",'Blank - Request Form'!F189=0),\"\",'Blank - Request Form'!F189),IF('Blank - Request Form'!$F$7=\"CIUGC\",IF(OR('Blank - Request Form'!O189=\"000\",'Blank - Request Form'!O189=0),\"\",'Blank - Request Form'!O189),\"\"))","v":""},{"$f":"IF('Blank - Request Form'!$F$6=\"CIUGC\",IF(OR('Blank - Request Form'!G189=\"0\",'Blank - Request Form'!G189=\"00000\",'Blank - Request Form'!G189=0),\"\",'Blank - Request Form'!G189),IF('Blank - Request Form'!$F$7=\"CIUGC\",IF(OR('Blank - Request Form'!P189=\"0\",'Blank - Request Form'!P189=\"00000\",'Blank - Request Form'!P189=0),\"\",'Blank - Request Form'!P189),\"\"))","v":""},{"$f":"IF('Blank - Request Form'!$F$6=\"CIUGC\",IF(OR('Blank - Request Form'!H189=\"0\",'Blank - Request Form'!H189=\"00000\",'Blank - Request Form'!H189=0),\"\",'Blank - Request Form'!H189),IF('Blank - Request Form'!$F$7=\"CIUGC\",IF(OR('Blank - Request Form'!Q189=\"0\",'Blank - Request Form'!Q189=\"00000\",'Blank - Request Form'!Q189=0),\"\",'Blank - Request Form'!Q189),\"\"))","v":""},{"$f":"IF('Blank - Request Form'!$F$6=\"CIUGC\",IF(OR('Blank - Request Form'!I189=\"0\",'Blank - Request Form'!I189=\"00000\",'Blank - Request Form'!I189=0),\"\",'Blank - Request Form'!I189),IF('Blank - Request Form'!$F$7=\"CIUGC\",IF(OR('Blank - Request Form'!R189=\"0\",'Blank - Request Form'!R189=\"00000\",'Blank - Request Form'!R189=0),\"\",'Blank - Request Form'!R189),\"\"))","v":""},null,{"$f":"IF('Blank - Request Form'!$F$6=\"CIUGC\",IF('Blank - Request Form'!K189=0,\"\",'Blank - Request Form'!K189),IF('Blank - Request Form'!$F$7=\"CIUGC\",IF('Blank - Request Form'!T189=0,\"\",'Blank - Request Form'!T189),\"\"))","v":""},null,null,null,{"$f":"IF(M155<>\"\",'Blank - Request Form'!$M$2,\"\")","v":""},{"$f":"IF('Blank - Request Form'!$F$6=\"CIUGC\",IF('Blank - Request Form'!J189=0,\"\",'Blank - Request Form'!J189),IF('Blank - Request Form'!$F$7=\"CIUGC\",IF('Blank - Request Form'!S189=0,\"\",'Blank - Request Form'!S189),\"\"))","v":""},"",155]
[{"$f":"IF('Blank - Request Form'!$F$6=\"CIUGC\",IF('Blank - Request Form'!D190=0,\"\",'Blank - Request Form'!D190),IF('Blank - Request Form'!$F$7=\"CIUGC\",IF('Blank - Request Form'!M190=0,\"\",'Blank - Request Form'!M190),\"\"))","v":""},{"$f":"IF('Blank - Request Form'!$F$6=\"CIUGC\",IF('Blank - Request Form'!E190=0,\"\",'Blank - Request Form'!E190),IF('Blank - Request Form'!$F$7=\"CIUGC\",IF('Blank - Request Form'!N190=0,\"\",'Blank - Request Form'!N190),\"\"))","v":""},{"$f":"IF('Blank - Request Form'!$F$6=\"CIUGC\",IF(OR('Blank - Request Form'!F190=\"000\",'Blank - Request Form'!F190=0),\"\",'Blank - Request Form'!F190),IF('Blank - Request Form'!$F$7=\"CIUGC\",IF(OR('Blank - Request Form'!O190=\"000\",'Blank - Request Form'!O190=0),\"\",'Blank - Request Form'!O190),\"\"))","v":""},{"$f":"IF('Blank - Request Form'!$F$6=\"CIUGC\",IF(OR('Blank - Request Form'!G190=\"0\",'Blank - Request Form'!G190=\"00000\",'Blank - Request Form'!G190=0),\"\",'Blank - Request Form'!G190),IF('Blank - Request Form'!$F$7=\"CIUGC\",IF(OR('Blank - Request Form'!P190=\"0\",'Blank - Request Form'!P190=\"00000\",'Blank - Request Form'!P190=0),\"\",'Blank - Request Form'!P190),\"\"))","v":""},{"$f":"IF('Blank - Request Form'!$F$6=\"CIUGC\",IF(OR('Blank - Request Form'!H190=\"0\",'Blank - Request Form'!H190=\"00000\",'Blank - Request Form'!H190=0),\"\",'Blank - Request Form'!H190),IF('Blank - Request Form'!$F$7=\"CIUGC\",IF(OR('Blank - Request Form'!Q190=\"0\",'Blank - Request Form'!Q190=\"00000\",'Blank - Request Form'!Q190=0),\"\",'Blank - Request Form'!Q190),\"\"))","v":""},{"$f":"IF('Blank - Request Form'!$F$6=\"CIUGC\",IF(OR('Blank - Request Form'!I190=\"0\",'Blank - Request Form'!I190=\"00000\",'Blank - Request Form'!I190=0),\"\",'Blank - Request Form'!I190),IF('Blank - Request Form'!$F$7=\"CIUGC\",IF(OR('Blank - Request Form'!R190=\"0\",'Blank - Request Form'!R190=\"00000\",'Blank - Request Form'!R190=0),\"\",'Blank - Request Form'!R190),\"\"))","v":""},null,{"$f":"IF('Blank - Request Form'!$F$6=\"CIUGC\",IF('Blank - Request Form'!K190=0,\"\",'Blank - Request Form'!K190),IF('Blank - Request Form'!$F$7=\"CIUGC\",IF('Blank - Request Form'!T190=0,\"\",'Blank - Request Form'!T190),\"\"))","v":""},null,null,null,{"$f":"IF(M156<>\"\",'Blank - Request Form'!$M$2,\"\")","v":""},{"$f":"IF('Blank - Request Form'!$F$6=\"CIUGC\",IF('Blank - Request Form'!J190=0,\"\",'Blank - Request Form'!J190),IF('Blank - Request Form'!$F$7=\"CIUGC\",IF('Blank - Request Form'!S190=0,\"\",'Blank - Request Form'!S190),\"\"))","v":""},"",156]
[{"$f":"IF('Blank - Request Form'!$F$6=\"CIUGC\",IF('Blank - Request Form'!D191=0,\"\",'Blank - Request Form'!D191),IF('Blank - Request Form'!$F$7=\"CIUGC\",IF('Blank - Request Form'!M191=0,\"\",'Blank - Request Form'!M191),\"\"))","v":""},{"$f":"IF('Blank - Request Form'!$F$6=\"CIUGC\",IF('Blank - Request Form'!E191=0,\"\",'Blank - Request Form'!E191),IF('Blank - Request Form'!$F$7=\"CIUGC\",IF('Blank - Request Form'!N191=0,\"\",'Blank - Request Form'!N191),\"\"))","v":""},{"$f":"IF('Blank - Request Form'!$F$6=\"CIUGC\",IF(OR('Blank - Request Form'!F191=\"000\",'Blank - Request Form'!F191=0),\"\",'Blank - Request Form'!F191),IF('Blank - Request Form'!$F$7=\"CIUGC\",IF(OR('Blank - Request Form'!O191=\"000\",'Blank - Request Form'!O191=0),\"\",'Blank - Request Form'!O191),\"\"))","v":""},{"$f":"IF('Blank - Request Form'!$F$6=\"CIUGC\",IF(OR('Blank - Request Form'!G191=\"0\",'Blank - Request Form'!G191=\"00000\",'Blank - Request Form'!G191=0),\"\",'Blank - Request Form'!G191),IF('Blank - Request Form'!$F$7=\"CIUGC\",IF(OR('Blank - Request Form'!P191=\"0\",'Blank - Request Form'!P191=\"00000\",'Blank - Request Form'!P191=0),\"\",'Blank - Request Form'!P191),\"\"))","v":""},{"$f":"IF('Blank - Request Form'!$F$6=\"CIUGC\",IF(OR('Blank - Request Form'!H191=\"0\",'Blank - Request Form'!H191=\"00000\",'Blank - Request Form'!H191=0),\"\",'Blank - Request Form'!H191),IF('Blank - Request Form'!$F$7=\"CIUGC\",IF(OR('Blank - Request Form'!Q191=\"0\",'Blank - Request Form'!Q191=\"00000\",'Blank - Request Form'!Q191=0),\"\",'Blank - Request Form'!Q191),\"\"))","v":""},{"$f":"IF('Blank - Request Form'!$F$6=\"CIUGC\",IF(OR('Blank - Request Form'!I191=\"0\",'Blank - Request Form'!I191=\"00000\",'Blank - Request Form'!I191=0),\"\",'Blank - Request Form'!I191),IF('Blank - Request Form'!$F$7=\"CIUGC\",IF(OR('Blank - Request Form'!R191=\"0\",'Blank - Request Form'!R191=\"00000\",'Blank - Request Form'!R191=0),\"\",'Blank - Request Form'!R191),\"\"))","v":""},null,{"$f":"IF('Blank - Request Form'!$F$6=\"CIUGC\",IF('Blank - Request Form'!K191=0,\"\",'Blank - Request Form'!K191),IF('Blank - Request Form'!$F$7=\"CIUGC\",IF('Blank - Request Form'!T191=0,\"\",'Blank - Request Form'!T191),\"\"))","v":""},null,null,null,{"$f":"IF(M157<>\"\",'Blank - Request Form'!$M$2,\"\")","v":""},{"$f":"IF('Blank - Request Form'!$F$6=\"CIUGC\",IF('Blank - Request Form'!J191=0,\"\",'Blank - Request Form'!J191),IF('Blank - Request Form'!$F$7=\"CIUGC\",IF('Blank - Request Form'!S191=0,\"\",'Blank - Request Form'!S191),\"\"))","v":""},"",157]
[{"$f":"IF('Blank - Request Form'!$F$6=\"CIUGC\",IF('Blank - Request Form'!D192=0,\"\",'Blank - Request Form'!D192),IF('Blank - Request Form'!$F$7=\"CIUGC\",IF('Blank - Request Form'!M192=0,\"\",'Blank - Request Form'!M192),\"\"))","v":""},{"$f":"IF('Blank - Request Form'!$F$6=\"CIUGC\",IF('Blank - Request Form'!E192=0,\"\",'Blank - Request Form'!E192),IF('Blank - Request Form'!$F$7=\"CIUGC\",IF('Blank - Request Form'!N192=0,\"\",'Blank - Request Form'!N192),\"\"))","v":""},{"$f":"IF('Blank - Request Form'!$F$6=\"CIUGC\",IF(OR('Blank - Request Form'!F192=\"000\",'Blank - Request Form'!F192=0),\"\",'Blank - Request Form'!F192),IF('Blank - Request Form'!$F$7=\"CIUGC\",IF(OR('Blank - Request Form'!O192=\"000\",'Blank - Request Form'!O192=0),\"\",'Blank - Request Form'!O192),\"\"))","v":""},{"$f":"IF('Blank - Request Form'!$F$6=\"CIUGC\",IF(OR('Blank - Request Form'!G192=\"0\",'Blank - Request Form'!G192=\"00000\",'Blank - Request Form'!G192=0),\"\",'Blank - Request Form'!G192),IF('Blank - Request Form'!$F$7=\"CIUGC\",IF(OR('Blank - Request Form'!P192=\"0\",'Blank - Request Form'!P192=\"00000\",'Blank - Request Form'!P192=0),\"\",'Blank - Request Form'!P192),\"\"))","v":""},{"$f":"IF('Blank - Request Form'!$F$6=\"CIUGC\",IF(OR('Blank - Request Form'!H192=\"0\",'Blank - Request Form'!H192=\"00000\",'Blank - Request Form'!H192=0),\"\",'Blank - Request Form'!H192),IF('Blank - Request Form'!$F$7=\"CIUGC\",IF(OR('Blank - Request Form'!Q192=\"0\",'Blank - Request Form'!Q192=\"00000\",'Blank - Request Form'!Q192=0),\"\",'Blank - Request Form'!Q192),\"\"))","v":""},{"$f":"IF('Blank - Request Form'!$F$6=\"CIUGC\",IF(OR('Blank - Request Form'!I192=\"0\",'Blank - Request Form'!I192=\"00000\",'Blank - Request Form'!I192=0),\"\",'Blank - Request Form'!I192),IF('Blank - Request Form'!$F$7=\"CIUGC\",IF(OR('Blank - Request Form'!R192=\"0\",'Blank - Request Form'!R192=\"00000\",'Blank - Request Form'!R192=0),\"\",'Blank - Request Form'!R192),\"\"))","v":""},null,{"$f":"IF('Blank - Request Form'!$F$6=\"CIUGC\",IF('Blank - Request Form'!K192=0,\"\",'Blank - Request Form'!K192),IF('Blank - Request Form'!$F$7=\"CIUGC\",IF('Blank - Request Form'!T192=0,\"\",'Blank - Request Form'!T192),\"\"))","v":""},null,null,null,{"$f":"IF(M158<>\"\",'Blank - Request Form'!$M$2,\"\")","v":""},{"$f":"IF('Blank - Request Form'!$F$6=\"CIUGC\",IF('Blank - Request Form'!J192=0,\"\",'Blank - Request Form'!J192),IF('Blank - Request Form'!$F$7=\"CIUGC\",IF('Blank - Request Form'!S192=0,\"\",'Blank - Request Form'!S192),\"\"))","v":""},"",158]
[{"$f":"IF('Blank - Request Form'!$F$6=\"CIUGC\",IF('Blank - Request Form'!D193=0,\"\",'Blank - Request Form'!D193),IF('Blank - Request Form'!$F$7=\"CIUGC\",IF('Blank - Request Form'!M193=0,\"\",'Blank - Request Form'!M193),\"\"))","v":""},{"$f":"IF('Blank - Request Form'!$F$6=\"CIUGC\",IF('Blank - Request Form'!E193=0,\"\",'Blank - Request Form'!E193),IF('Blank - Request Form'!$F$7=\"CIUGC\",IF('Blank - Request Form'!N193=0,\"\",'Blank - Request Form'!N193),\"\"))","v":""},{"$f":"IF('Blank - Request Form'!$F$6=\"CIUGC\",IF(OR('Blank - Request Form'!F193=\"000\",'Blank - Request Form'!F193=0),\"\",'Blank - Request Form'!F193),IF('Blank - Request Form'!$F$7=\"CIUGC\",IF(OR('Blank - Request Form'!O193=\"000\",'Blank - Request Form'!O193=0),\"\",'Blank - Request Form'!O193),\"\"))","v":""},{"$f":"IF('Blank - Request Form'!$F$6=\"CIUGC\",IF(OR('Blank - Request Form'!G193=\"0\",'Blank - Request Form'!G193=\"00000\",'Blank - Request Form'!G193=0),\"\",'Blank - Request Form'!G193),IF('Blank - Request Form'!$F$7=\"CIUGC\",IF(OR('Blank - Request Form'!P193=\"0\",'Blank - Request Form'!P193=\"00000\",'Blank - Request Form'!P193=0),\"\",'Blank - Request Form'!P193),\"\"))","v":""},{"$f":"IF('Blank - Request Form'!$F$6=\"CIUGC\",IF(OR('Blank - Request Form'!H193=\"0\",'Blank - Request Form'!H193=\"00000\",'Blank - Request Form'!H193=0),\"\",'Blank - Request Form'!H193),IF('Blank - Request Form'!$F$7=\"CIUGC\",IF(OR('Blank - Request Form'!Q193=\"0\",'Blank - Request Form'!Q193=\"00000\",'Blank - Request Form'!Q193=0),\"\",'Blank - Request Form'!Q193),\"\"))","v":""},{"$f":"IF('Blank - Request Form'!$F$6=\"CIUGC\",IF(OR('Blank - Request Form'!I193=\"0\",'Blank - Request Form'!I193=\"00000\",'Blank - Request Form'!I193=0),\"\",'Blank - Request Form'!I193),IF('Blank - Request Form'!$F$7=\"CIUGC\",IF(OR('Blank - Request Form'!R193=\"0\",'Blank - Request Form'!R193=\"00000\",'Blank - Request Form'!R193=0),\"\",'Blank - Request Form'!R193),\"\"))","v":""},null,{"$f":"IF('Blank - Request Form'!$F$6=\"CIUGC\",IF('Blank - Request Form'!K193=0,\"\",'Blank - Request Form'!K193),IF('Blank - Request Form'!$F$7=\"CIUGC\",IF('Blank - Request Form'!T193=0,\"\",'Blank - Request Form'!T193),\"\"))","v":""},null,null,null,{"$f":"IF(M159<>\"\",'Blank - Request Form'!$M$2,\"\")","v":""},{"$f":"IF('Blank - Request Form'!$F$6=\"CIUGC\",IF('Blank - Request Form'!J193=0,\"\",'Blank - Request Form'!J193),IF('Blank - Request Form'!$F$7=\"CIUGC\",IF('Blank - Request Form'!S193=0,\"\",'Blank - Request Form'!S193),\"\"))","v":""},"",159]
[{"$f":"IF('Blank - Request Form'!$F$6=\"CIUGC\",IF('Blank - Request Form'!D194=0,\"\",'Blank - Request Form'!D194),IF('Blank - Request Form'!$F$7=\"CIUGC\",IF('Blank - Request Form'!M194=0,\"\",'Blank - Request Form'!M194),\"\"))","v":""},{"$f":"IF('Blank - Request Form'!$F$6=\"CIUGC\",IF('Blank - Request Form'!E194=0,\"\",'Blank - Request Form'!E194),IF('Blank - Request Form'!$F$7=\"CIUGC\",IF('Blank - Request Form'!N194=0,\"\",'Blank - Request Form'!N194),\"\"))","v":""},{"$f":"IF('Blank - Request Form'!$F$6=\"CIUGC\",IF(OR('Blank - Request Form'!F194=\"000\",'Blank - Request Form'!F194=0),\"\",'Blank - Request Form'!F194),IF('Blank - Request Form'!$F$7=\"CIUGC\",IF(OR('Blank - Request Form'!O194=\"000\",'Blank - Request Form'!O194=0),\"\",'Blank - Request Form'!O194),\"\"))","v":""},{"$f":"IF('Blank - Request Form'!$F$6=\"CIUGC\",IF(OR('Blank - Request Form'!G194=\"0\",'Blank - Request Form'!G194=\"00000\",'Blank - Request Form'!G194=0),\"\",'Blank - Request Form'!G194),IF('Blank - Request Form'!$F$7=\"CIUGC\",IF(OR('Blank - Request Form'!P194=\"0\",'Blank - Request Form'!P194=\"00000\",'Blank - Request Form'!P194=0),\"\",'Blank - Request Form'!P194),\"\"))","v":""},{"$f":"IF('Blank - Request Form'!$F$6=\"CIUGC\",IF(OR('Blank - Request Form'!H194=\"0\",'Blank - Request Form'!H194=\"00000\",'Blank - Request Form'!H194=0),\"\",'Blank - Request Form'!H194),IF('Blank - Request Form'!$F$7=\"CIUGC\",IF(OR('Blank - Request Form'!Q194=\"0\",'Blank - Request Form'!Q194=\"00000\",'Blank - Request Form'!Q194=0),\"\",'Blank - Request Form'!Q194),\"\"))","v":""},{"$f":"IF('Blank - Request Form'!$F$6=\"CIUGC\",IF(OR('Blank - Request Form'!I194=\"0\",'Blank - Request Form'!I194=\"00000\",'Blank - Request Form'!I194=0),\"\",'Blank - Request Form'!I194),IF('Blank - Request Form'!$F$7=\"CIUGC\",IF(OR('Blank - Request Form'!R194=\"0\",'Blank - Request Form'!R194=\"00000\",'Blank - Request Form'!R194=0),\"\",'Blank - Request Form'!R194),\"\"))","v":""},null,{"$f":"IF('Blank - Request Form'!$F$6=\"CIUGC\",IF('Blank - Request Form'!K194=0,\"\",'Blank - Request Form'!K194),IF('Blank - Request Form'!$F$7=\"CIUGC\",IF('Blank - Request Form'!T194=0,\"\",'Blank - Request Form'!T194),\"\"))","v":""},null,null,null,{"$f":"IF(M160<>\"\",'Blank - Request Form'!$M$2,\"\")","v":""},{"$f":"IF('Blank - Request Form'!$F$6=\"CIUGC\",IF('Blank - Request Form'!J194=0,\"\",'Blank - Request Form'!J194),IF('Blank - Request Form'!$F$7=\"CIUGC\",IF('Blank - Request Form'!S194=0,\"\",'Blank - Request Form'!S194),\"\"))","v":""},"",160]
[{"$f":"IF('Blank - Request Form'!$F$6=\"CIUGC\",IF('Blank - Request Form'!D195=0,\"\",'Blank - Request Form'!D195),IF('Blank - Request Form'!$F$7=\"CIUGC\",IF('Blank - Request Form'!M195=0,\"\",'Blank - Request Form'!M195),\"\"))","v":""},{"$f":"IF('Blank - Request Form'!$F$6=\"CIUGC\",IF('Blank - Request Form'!E195=0,\"\",'Blank - Request Form'!E195),IF('Blank - Request Form'!$F$7=\"CIUGC\",IF('Blank - Request Form'!N195=0,\"\",'Blank - Request Form'!N195),\"\"))","v":""},{"$f":"IF('Blank - Request Form'!$F$6=\"CIUGC\",IF(OR('Blank - Request Form'!F195=\"000\",'Blank - Request Form'!F195=0),\"\",'Blank - Request Form'!F195),IF('Blank - Request Form'!$F$7=\"CIUGC\",IF(OR('Blank - Request Form'!O195=\"000\",'Blank - Request Form'!O195=0),\"\",'Blank - Request Form'!O195),\"\"))","v":""},{"$f":"IF('Blank - Request Form'!$F$6=\"CIUGC\",IF(OR('Blank - Request Form'!G195=\"0\",'Blank - Request Form'!G195=\"00000\",'Blank - Request Form'!G195=0),\"\",'Blank - Request Form'!G195),IF('Blank - Request Form'!$F$7=\"CIUGC\",IF(OR('Blank - Request Form'!P195=\"0\",'Blank - Request Form'!P195=\"00000\",'Blank - Request Form'!P195=0),\"\",'Blank - Request Form'!P195),\"\"))","v":""},{"$f":"IF('Blank - Request Form'!$F$6=\"CIUGC\",IF(OR('Blank - Request Form'!H195=\"0\",'Blank - Request Form'!H195=\"00000\",'Blank - Request Form'!H195=0),\"\",'Blank - Request Form'!H195),IF('Blank - Request Form'!$F$7=\"CIUGC\",IF(OR('Blank - Request Form'!Q195=\"0\",'Blank - Request Form'!Q195=\"00000\",'Blank - Request Form'!Q195=0),\"\",'Blank - Request Form'!Q195),\"\"))","v":""},{"$f":"IF('Blank - Request Form'!$F$6=\"CIUGC\",IF(OR('Blank - Request Form'!I195=\"0\",'Blank - Request Form'!I195=\"00000\",'Blank - Request Form'!I195=0),\"\",'Blank - Request Form'!I195),IF('Blank - Request Form'!$F$7=\"CIUGC\",IF(OR('Blank - Request Form'!R195=\"0\",'Blank - Request Form'!R195=\"00000\",'Blank - Request Form'!R195=0),\"\",'Blank - Request Form'!R195),\"\"))","v":""},null,{"$f":"IF('Blank - Request Form'!$F$6=\"CIUGC\",IF('Blank - Request Form'!K195=0,\"\",'Blank - Request Form'!K195),IF('Blank - Request Form'!$F$7=\"CIUGC\",IF('Blank - Request Form'!T195=0,\"\",'Blank - Request Form'!T195),\"\"))","v":""},null,null,null,{"$f":"IF(M161<>\"\",'Blank - Request Form'!$M$2,\"\")","v":""},{"$f":"IF('Blank - Request Form'!$F$6=\"CIUGC\",IF('Blank - Request Form'!J195=0,\"\",'Blank - Request Form'!J195),IF('Blank - Request Form'!$F$7=\"CIUGC\",IF('Blank - Request Form'!S195=0,\"\",'Blank - Request Form'!S195),\"\"))","v":""},"",161]
[{"$f":"IF('Blank - Request Form'!$F$6=\"CIUGC\",IF('Blank - Request Form'!D196=0,\"\",'Blank - Request Form'!D196),IF('Blank - Request Form'!$F$7=\"CIUGC\",IF('Blank - Request Form'!M196=0,\"\",'Blank - Request Form'!M196),\"\"))","v":""},{"$f":"IF('Blank - Request Form'!$F$6=\"CIUGC\",IF('Blank - Request Form'!E196=0,\"\",'Blank - Request Form'!E196),IF('Blank - Request Form'!$F$7=\"CIUGC\",IF('Blank - Request Form'!N196=0,\"\",'Blank - Request Form'!N196),\"\"))","v":""},{"$f":"IF('Blank - Request Form'!$F$6=\"CIUGC\",IF(OR('Blank - Request Form'!F196=\"000\",'Blank - Request Form'!F196=0),\"\",'Blank - Request Form'!F196),IF('Blank - Request Form'!$F$7=\"CIUGC\",IF(OR('Blank - Request Form'!O196=\"000\",'Blank - Request Form'!O196=0),\"\",'Blank - Request Form'!O196),\"\"))","v":""},{"$f":"IF('Blank - Request Form'!$F$6=\"CIUGC\",IF(OR('Blank - Request Form'!G196=\"0\",'Blank - Request Form'!G196=\"00000\",'Blank - Request Form'!G196=0),\"\",'Blank - Request Form'!G196),IF('Blank - Request Form'!$F$7=\"CIUGC\",IF(OR('Blank - Request Form'!P196=\"0\",'Blank - Request Form'!P196=\"00000\",'Blank - Request Form'!P196=0),\"\",'Blank - Request Form'!P196),\"\"))","v":""},{"$f":"IF('Blank - Request Form'!$F$6=\"CIUGC\",IF(OR('Blank - Request Form'!H196=\"0\",'Blank - Request Form'!H196=\"00000\",'Blank - Request Form'!H196=0),\"\",'Blank - Request Form'!H196),IF('Blank - Request Form'!$F$7=\"CIUGC\",IF(OR('Blank - Request Form'!Q196=\"0\",'Blank - Request Form'!Q196=\"00000\",'Blank - Request Form'!Q196=0),\"\",'Blank - Request Form'!Q196),\"\"))","v":""},{"$f":"IF('Blank - Request Form'!$F$6=\"CIUGC\",IF(OR('Blank - Request Form'!I196=\"0\",'Blank - Request Form'!I196=\"00000\",'Blank - Request Form'!I196=0),\"\",'Blank - Request Form'!I196),IF('Blank - Request Form'!$F$7=\"CIUGC\",IF(OR('Blank - Request Form'!R196=\"0\",'Blank - Request Form'!R196=\"00000\",'Blank - Request Form'!R196=0),\"\",'Blank - Request Form'!R196),\"\"))","v":""},null,{"$f":"IF('Blank - Request Form'!$F$6=\"CIUGC\",IF('Blank - Request Form'!K196=0,\"\",'Blank - Request Form'!K196),IF('Blank - Request Form'!$F$7=\"CIUGC\",IF('Blank - Request Form'!T196=0,\"\",'Blank - Request Form'!T196),\"\"))","v":""},null,null,null,{"$f":"IF(M162<>\"\",'Blank - Request Form'!$M$2,\"\")","v":""},{"$f":"IF('Blank - Request Form'!$F$6=\"CIUGC\",IF('Blank - Request Form'!J196=0,\"\",'Blank - Request Form'!J196),IF('Blank - Request Form'!$F$7=\"CIUGC\",IF('Blank - Request Form'!S196=0,\"\",'Blank - Request Form'!S196),\"\"))","v":""},"",162]
[{"$f":"IF('Blank - Request Form'!$F$6=\"CIUGC\",IF('Blank - Request Form'!D197=0,\"\",'Blank - Request Form'!D197),IF('Blank - Request Form'!$F$7=\"CIUGC\",IF('Blank - Request Form'!M197=0,\"\",'Blank - Request Form'!M197),\"\"))","v":""},{"$f":"IF('Blank - Request Form'!$F$6=\"CIUGC\",IF('Blank - Request Form'!E197=0,\"\",'Blank - Request Form'!E197),IF('Blank - Request Form'!$F$7=\"CIUGC\",IF('Blank - Request Form'!N197=0,\"\",'Blank - Request Form'!N197),\"\"))","v":""},{"$f":"IF('Blank - Request Form'!$F$6=\"CIUGC\",IF(OR('Blank - Request Form'!F197=\"000\",'Blank - Request Form'!F197=0),\"\",'Blank - Request Form'!F197),IF('Blank - Request Form'!$F$7=\"CIUGC\",IF(OR('Blank - Request Form'!O197=\"000\",'Blank - Request Form'!O197=0),\"\",'Blank - Request Form'!O197),\"\"))","v":""},{"$f":"IF('Blank - Request Form'!$F$6=\"CIUGC\",IF(OR('Blank - Request Form'!G197=\"0\",'Blank - Request Form'!G197=\"00000\",'Blank - Request Form'!G197=0),\"\",'Blank - Request Form'!G197),IF('Blank - Request Form'!$F$7=\"CIUGC\",IF(OR('Blank - Request Form'!P197=\"0\",'Blank - Request Form'!P197=\"00000\",'Blank - Request Form'!P197=0),\"\",'Blank - Request Form'!P197),\"\"))","v":""},{"$f":"IF('Blank - Request Form'!$F$6=\"CIUGC\",IF(OR('Blank - Request Form'!H197=\"0\",'Blank - Request Form'!H197=\"00000\",'Blank - Request Form'!H197=0),\"\",'Blank - Request Form'!H197),IF('Blank - Request Form'!$F$7=\"CIUGC\",IF(OR('Blank - Request Form'!Q197=\"0\",'Blank - Request Form'!Q197=\"00000\",'Blank - Request Form'!Q197=0),\"\",'Blank - Request Form'!Q197),\"\"))","v":""},{"$f":"IF('Blank - Request Form'!$F$6=\"CIUGC\",IF(OR('Blank - Request Form'!I197=\"0\",'Blank - Request Form'!I197=\"00000\",'Blank - Request Form'!I197=0),\"\",'Blank - Request Form'!I197),IF('Blank - Request Form'!$F$7=\"CIUGC\",IF(OR('Blank - Request Form'!R197=\"0\",'Blank - Request Form'!R197=\"00000\",'Blank - Request Form'!R197=0),\"\",'Blank - Request Form'!R197),\"\"))","v":""},null,{"$f":"IF('Blank - Request Form'!$F$6=\"CIUGC\",IF('Blank - Request Form'!K197=0,\"\",'Blank - Request Form'!K197),IF('Blank - Request Form'!$F$7=\"CIUGC\",IF('Blank - Request Form'!T197=0,\"\",'Blank - Request Form'!T197),\"\"))","v":""},null,null,null,{"$f":"IF(M163<>\"\",'Blank - Request Form'!$M$2,\"\")","v":""},{"$f":"IF('Blank - Request Form'!$F$6=\"CIUGC\",IF('Blank - Request Form'!J197=0,\"\",'Blank - Request Form'!J197),IF('Blank - Request Form'!$F$7=\"CIUGC\",IF('Blank - Request Form'!S197=0,\"\",'Blank - Request Form'!S197),\"\"))","v":""},"",163]
[{"$f":"IF('Blank - Request Form'!$F$6=\"CIUGC\",IF('Blank - Request Form'!D198=0,\"\",'Blank - Request Form'!D198),IF('Blank - Request Form'!$F$7=\"CIUGC\",IF('Blank - Request Form'!M198=0,\"\",'Blank - Request Form'!M198),\"\"))","v":""},{"$f":"IF('Blank - Request Form'!$F$6=\"CIUGC\",IF('Blank - Request Form'!E198=0,\"\",'Blank - Request Form'!E198),IF('Blank - Request Form'!$F$7=\"CIUGC\",IF('Blank - Request Form'!N198=0,\"\",'Blank - Request Form'!N198),\"\"))","v":""},{"$f":"IF('Blank - Request Form'!$F$6=\"CIUGC\",IF(OR('Blank - Request Form'!F198=\"000\",'Blank - Request Form'!F198=0),\"\",'Blank - Request Form'!F198),IF('Blank - Request Form'!$F$7=\"CIUGC\",IF(OR('Blank - Request Form'!O198=\"000\",'Blank - Request Form'!O198=0),\"\",'Blank - Request Form'!O198),\"\"))","v":""},{"$f":"IF('Blank - Request Form'!$F$6=\"CIUGC\",IF(OR('Blank - Request Form'!G198=\"0\",'Blank - Request Form'!G198=\"00000\",'Blank - Request Form'!G198=0),\"\",'Blank - Request Form'!G198),IF('Blank - Request Form'!$F$7=\"CIUGC\",IF(OR('Blank - Request Form'!P198=\"0\",'Blank - Request Form'!P198=\"00000\",'Blank - Request Form'!P198=0),\"\",'Blank - Request Form'!P198),\"\"))","v":""},{"$f":"IF('Blank - Request Form'!$F$6=\"CIUGC\",IF(OR('Blank - Request Form'!H198=\"0\",'Blank - Request Form'!H198=\"00000\",'Blank - Request Form'!H198=0),\"\",'Blank - Request Form'!H198),IF('Blank - Request Form'!$F$7=\"CIUGC\",IF(OR('Blank - Request Form'!Q198=\"0\",'Blank - Request Form'!Q198=\"00000\",'Blank - Request Form'!Q198=0),\"\",'Blank - Request Form'!Q198),\"\"))","v":""},{"$f":"IF('Blank - Request Form'!$F$6=\"CIUGC\",IF(OR('Blank - Request Form'!I198=\"0\",'Blank - Request Form'!I198=\"00000\",'Blank - Request Form'!I198=0),\"\",'Blank - Request Form'!I198),IF('Blank - Request Form'!$F$7=\"CIUGC\",IF(OR('Blank - Request Form'!R198=\"0\",'Blank - Request Form'!R198=\"00000\",'Blank - Request Form'!R198=0),\"\",'Blank - Request Form'!R198),\"\"))","v":""},null,{"$f":"IF('Blank - Request Form'!$F$6=\"CIUGC\",IF('Blank - Request Form'!K198=0,\"\",'Blank - Request Form'!K198),IF('Blank - Request Form'!$F$7=\"CIUGC\",IF('Blank - Request Form'!T198=0,\"\",'Blank - Request Form'!T198),\"\"))","v":""},null,null,null,{"$f":"IF(M164<>\"\",'Blank - Request Form'!$M$2,\"\")","v":""},{"$f":"IF('Blank - Request Form'!$F$6=\"CIUGC\",IF('Blank - Request Form'!J198=0,\"\",'Blank - Request Form'!J198),IF('Blank - Request Form'!$F$7=\"CIUGC\",IF('Blank - Request Form'!S198=0,\"\",'Blank - Request Form'!S198),\"\"))","v":""},"",164]
[{"$f":"IF('Blank - Request Form'!$F$6=\"CIUGC\",IF('Blank - Request Form'!D199=0,\"\",'Blank - Request Form'!D199),IF('Blank - Request Form'!$F$7=\"CIUGC\",IF('Blank - Request Form'!M199=0,\"\",'Blank - Request Form'!M199),\"\"))","v":""},{"$f":"IF('Blank - Request Form'!$F$6=\"CIUGC\",IF('Blank - Request Form'!E199=0,\"\",'Blank - Request Form'!E199),IF('Blank - Request Form'!$F$7=\"CIUGC\",IF('Blank - Request Form'!N199=0,\"\",'Blank - Request Form'!N199),\"\"))","v":""},{"$f":"IF('Blank - Request Form'!$F$6=\"CIUGC\",IF(OR('Blank - Request Form'!F199=\"000\",'Blank - Request Form'!F199=0),\"\",'Blank - Request Form'!F199),IF('Blank - Request Form'!$F$7=\"CIUGC\",IF(OR('Blank - Request Form'!O199=\"000\",'Blank - Request Form'!O199=0),\"\",'Blank - Request Form'!O199),\"\"))","v":""},{"$f":"IF('Blank - Request Form'!$F$6=\"CIUGC\",IF(OR('Blank - Request Form'!G199=\"0\",'Blank - Request Form'!G199=\"00000\",'Blank - Request Form'!G199=0),\"\",'Blank - Request Form'!G199),IF('Blank - Request Form'!$F$7=\"CIUGC\",IF(OR('Blank - Request Form'!P199=\"0\",'Blank - Request Form'!P199=\"00000\",'Blank - Request Form'!P199=0),\"\",'Blank - Request Form'!P199),\"\"))","v":""},{"$f":"IF('Blank - Request Form'!$F$6=\"CIUGC\",IF(OR('Blank - Request Form'!H199=\"0\",'Blank - Request Form'!H199=\"00000\",'Blank - Request Form'!H199=0),\"\",'Blank - Request Form'!H199),IF('Blank - Request Form'!$F$7=\"CIUGC\",IF(OR('Blank - Request Form'!Q199=\"0\",'Blank - Request Form'!Q199=\"00000\",'Blank - Request Form'!Q199=0),\"\",'Blank - Request Form'!Q199),\"\"))","v":""},{"$f":"IF('Blank - Request Form'!$F$6=\"CIUGC\",IF(OR('Blank - Request Form'!I199=\"0\",'Blank - Request Form'!I199=\"00000\",'Blank - Request Form'!I199=0),\"\",'Blank - Request Form'!I199),IF('Blank - Request Form'!$F$7=\"CIUGC\",IF(OR('Blank - Request Form'!R199=\"0\",'Blank - Request Form'!R199=\"00000\",'Blank - Request Form'!R199=0),\"\",'Blank - Request Form'!R199),\"\"))","v":""},null,{"$f":"IF('Blank - Request Form'!$F$6=\"CIUGC\",IF('Blank - Request Form'!K199=0,\"\",'Blank - Request Form'!K199),IF('Blank - Request Form'!$F$7=\"CIUGC\",IF('Blank - Request Form'!T199=0,\"\",'Blank - Request Form'!T199),\"\"))","v":""},null,null,null,{"$f":"IF(M165<>\"\",'Blank - Request Form'!$M$2,\"\")","v":""},{"$f":"IF('Blank - Request Form'!$F$6=\"CIUGC\",IF('Blank - Request Form'!J199=0,\"\",'Blank - Request Form'!J199),IF('Blank - Request Form'!$F$7=\"CIUGC\",IF('Blank - Request Form'!S199=0,\"\",'Blank - Request Form'!S199),\"\"))","v":""},"",165]
[{"$f":"IF('Blank - Request Form'!$F$6=\"CIUGC\",IF('Blank - Request Form'!D200=0,\"\",'Blank - Request Form'!D200),IF('Blank - Request Form'!$F$7=\"CIUGC\",IF('Blank - Request Form'!M200=0,\"\",'Blank - Request Form'!M200),\"\"))","v":""},{"$f":"IF('Blank - Request Form'!$F$6=\"CIUGC\",IF('Blank - Request Form'!E200=0,\"\",'Blank - Request Form'!E200),IF('Blank - Request Form'!$F$7=\"CIUGC\",IF('Blank - Request Form'!N200=0,\"\",'Blank - Request Form'!N200),\"\"))","v":""},{"$f":"IF('Blank - Request Form'!$F$6=\"CIUGC\",IF(OR('Blank - Request Form'!F200=\"000\",'Blank - Request Form'!F200=0),\"\",'Blank - Request Form'!F200),IF('Blank - Request Form'!$F$7=\"CIUGC\",IF(OR('Blank - Request Form'!O200=\"000\",'Blank - Request Form'!O200=0),\"\",'Blank - Request Form'!O200),\"\"))","v":""},{"$f":"IF('Blank - Request Form'!$F$6=\"CIUGC\",IF(OR('Blank - Request Form'!G200=\"0\",'Blank - Request Form'!G200=\"00000\",'Blank - Request Form'!G200=0),\"\",'Blank - Request Form'!G200),IF('Blank - Request Form'!$F$7=\"CIUGC\",IF(OR('Blank - Request Form'!P200=\"0\",'Blank - Request Form'!P200=\"00000\",'Blank - Request Form'!P200=0),\"\",'Blank - Request Form'!P200),\"\"))","v":""},{"$f":"IF('Blank - Request Form'!$F$6=\"CIUGC\",IF(OR('Blank - Request Form'!H200=\"0\",'Blank - Request Form'!H200=\"00000\",'Blank - Request Form'!H200=0),\"\",'Blank - Request Form'!H200),IF('Blank - Request Form'!$F$7=\"CIUGC\",IF(OR('Blank - Request Form'!Q200=\"0\",'Blank - Request Form'!Q200=\"00000\",'Blank - Request Form'!Q200=0),\"\",'Blank - Request Form'!Q200),\"\"))","v":""},{"$f":"IF('Blank - Request Form'!$F$6=\"CIUGC\",IF(OR('Blank - Request Form'!I200=\"0\",'Blank - Request Form'!I200=\"00000\",'Blank - Request Form'!I200=0),\"\",'Blank - Request Form'!I200),IF('Blank - Request Form'!$F$7=\"CIUGC\",IF(OR('Blank - Request Form'!R200=\"0\",'Blank - Request Form'!R200=\"00000\",'Blank - Request Form'!R200=0),\"\",'Blank - Request Form'!R200),\"\"))","v":""},null,{"$f":"IF('Blank - Request Form'!$F$6=\"CIUGC\",IF('Blank - Request Form'!K200=0,\"\",'Blank - Request Form'!K200),IF('Blank - Request Form'!$F$7=\"CIUGC\",IF('Blank - Request Form'!T200=0,\"\",'Blank - Request Form'!T200),\"\"))","v":""},null,null,null,{"$f":"IF(M166<>\"\",'Blank - Request Form'!$M$2,\"\")","v":""},{"$f":"IF('Blank - Request Form'!$F$6=\"CIUGC\",IF('Blank - Request Form'!J200=0,\"\",'Blank - Request Form'!J200),IF('Blank - Request Form'!$F$7=\"CIUGC\",IF('Blank - Request Form'!S200=0,\"\",'Blank - Request Form'!S200),\"\"))","v":""},"",166]
[{"$f":"IF('Blank - Request Form'!$F$6=\"CIUGC\",IF('Blank - Request Form'!D201=0,\"\",'Blank - Request Form'!D201),IF('Blank - Request Form'!$F$7=\"CIUGC\",IF('Blank - Request Form'!M201=0,\"\",'Blank - Request Form'!M201),\"\"))","v":""},{"$f":"IF('Blank - Request Form'!$F$6=\"CIUGC\",IF('Blank - Request Form'!E201=0,\"\",'Blank - Request Form'!E201),IF('Blank - Request Form'!$F$7=\"CIUGC\",IF('Blank - Request Form'!N201=0,\"\",'Blank - Request Form'!N201),\"\"))","v":""},{"$f":"IF('Blank - Request Form'!$F$6=\"CIUGC\",IF(OR('Blank - Request Form'!F201=\"000\",'Blank - Request Form'!F201=0),\"\",'Blank - Request Form'!F201),IF('Blank - Request Form'!$F$7=\"CIUGC\",IF(OR('Blank - Request Form'!O201=\"000\",'Blank - Request Form'!O201=0),\"\",'Blank - Request Form'!O201),\"\"))","v":""},{"$f":"IF('Blank - Request Form'!$F$6=\"CIUGC\",IF(OR('Blank - Request Form'!G201=\"0\",'Blank - Request Form'!G201=\"00000\",'Blank - Request Form'!G201=0),\"\",'Blank - Request Form'!G201),IF('Blank - Request Form'!$F$7=\"CIUGC\",IF(OR('Blank - Request Form'!P201=\"0\",'Blank - Request Form'!P201=\"00000\",'Blank - Request Form'!P201=0),\"\",'Blank - Request Form'!P201),\"\"))","v":""},{"$f":"IF('Blank - Request Form'!$F$6=\"CIUGC\",IF(OR('Blank - Request Form'!H201=\"0\",'Blank - Request Form'!H201=\"00000\",'Blank - Request Form'!H201=0),\"\",'Blank - Request Form'!H201),IF('Blank - Request Form'!$F$7=\"CIUGC\",IF(OR('Blank - Request Form'!Q201=\"0\",'Blank - Request Form'!Q201=\"00000\",'Blank - Request Form'!Q201=0),\"\",'Blank - Request Form'!Q201),\"\"))","v":""},{"$f":"IF('Blank - Request Form'!$F$6=\"CIUGC\",IF(OR('Blank - Request Form'!I201=\"0\",'Blank - Request Form'!I201=\"00000\",'Blank - Request Form'!I201=0),\"\",'Blank - Request Form'!I201),IF('Blank - Request Form'!$F$7=\"CIUGC\",IF(OR('Blank - Request Form'!R201=\"0\",'Blank - Request Form'!R201=\"00000\",'Blank - Request Form'!R201=0),\"\",'Blank - Request Form'!R201),\"\"))","v":""},null,{"$f":"IF('Blank - Request Form'!$F$6=\"CIUGC\",IF('Blank - Request Form'!K201=0,\"\",'Blank - Request Form'!K201),IF('Blank - Request Form'!$F$7=\"CIUGC\",IF('Blank - Request Form'!T201=0,\"\",'Blank - Request Form'!T201),\"\"))","v":""},null,null,null,{"$f":"IF(M167<>\"\",'Blank - Request Form'!$M$2,\"\")","v":""},{"$f":"IF('Blank - Request Form'!$F$6=\"CIUGC\",IF('Blank - Request Form'!J201=0,\"\",'Blank - Request Form'!J201),IF('Blank - Request Form'!$F$7=\"CIUGC\",IF('Blank - Request Form'!S201=0,\"\",'Blank - Request Form'!S201),\"\"))","v":""},"",167]
[{"$f":"IF('Blank - Request Form'!$F$6=\"CIUGC\",IF('Blank - Request Form'!D202=0,\"\",'Blank - Request Form'!D202),IF('Blank - Request Form'!$F$7=\"CIUGC\",IF('Blank - Request Form'!M202=0,\"\",'Blank - Request Form'!M202),\"\"))","v":""},{"$f":"IF('Blank - Request Form'!$F$6=\"CIUGC\",IF('Blank - Request Form'!E202=0,\"\",'Blank - Request Form'!E202),IF('Blank - Request Form'!$F$7=\"CIUGC\",IF('Blank - Request Form'!N202=0,\"\",'Blank - Request Form'!N202),\"\"))","v":""},{"$f":"IF('Blank - Request Form'!$F$6=\"CIUGC\",IF(OR('Blank - Request Form'!F202=\"000\",'Blank - Request Form'!F202=0),\"\",'Blank - Request Form'!F202),IF('Blank - Request Form'!$F$7=\"CIUGC\",IF(OR('Blank - Request Form'!O202=\"000\",'Blank - Request Form'!O202=0),\"\",'Blank - Request Form'!O202),\"\"))","v":""},{"$f":"IF('Blank - Request Form'!$F$6=\"CIUGC\",IF(OR('Blank - Request Form'!G202=\"0\",'Blank - Request Form'!G202=\"00000\",'Blank - Request Form'!G202=0),\"\",'Blank - Request Form'!G202),IF('Blank - Request Form'!$F$7=\"CIUGC\",IF(OR('Blank - Request Form'!P202=\"0\",'Blank - Request Form'!P202=\"00000\",'Blank - Request Form'!P202=0),\"\",'Blank - Request Form'!P202),\"\"))","v":""},{"$f":"IF('Blank - Request Form'!$F$6=\"CIUGC\",IF(OR('Blank - Request Form'!H202=\"0\",'Blank - Request Form'!H202=\"00000\",'Blank - Request Form'!H202=0),\"\",'Blank - Request Form'!H202),IF('Blank - Request Form'!$F$7=\"CIUGC\",IF(OR('Blank - Request Form'!Q202=\"0\",'Blank - Request Form'!Q202=\"00000\",'Blank - Request Form'!Q202=0),\"\",'Blank - Request Form'!Q202),\"\"))","v":""},{"$f":"IF('Blank - Request Form'!$F$6=\"CIUGC\",IF(OR('Blank - Request Form'!I202=\"0\",'Blank - Request Form'!I202=\"00000\",'Blank - Request Form'!I202=0),\"\",'Blank - Request Form'!I202),IF('Blank - Request Form'!$F$7=\"CIUGC\",IF(OR('Blank - Request Form'!R202=\"0\",'Blank - Request Form'!R202=\"00000\",'Blank - Request Form'!R202=0),\"\",'Blank - Request Form'!R202),\"\"))","v":""},null,{"$f":"IF('Blank - Request Form'!$F$6=\"CIUGC\",IF('Blank - Request Form'!K202=0,\"\",'Blank - Request Form'!K202),IF('Blank - Request Form'!$F$7=\"CIUGC\",IF('Blank - Request Form'!T202=0,\"\",'Blank - Request Form'!T202),\"\"))","v":""},null,null,null,{"$f":"IF(M168<>\"\",'Blank - Request Form'!$M$2,\"\")","v":""},{"$f":"IF('Blank - Request Form'!$F$6=\"CIUGC\",IF('Blank - Request Form'!J202=0,\"\",'Blank - Request Form'!J202),IF('Blank - Request Form'!$F$7=\"CIUGC\",IF('Blank - Request Form'!S202=0,\"\",'Blank - Request Form'!S202),\"\"))","v":""},"",168]
[{"$f":"IF('Blank - Request Form'!$F$6=\"CIUGC\",IF('Blank - Request Form'!D203=0,\"\",'Blank - Request Form'!D203),IF('Blank - Request Form'!$F$7=\"CIUGC\",IF('Blank - Request Form'!M203=0,\"\",'Blank - Request Form'!M203),\"\"))","v":""},{"$f":"IF('Blank - Request Form'!$F$6=\"CIUGC\",IF('Blank - Request Form'!E203=0,\"\",'Blank - Request Form'!E203),IF('Blank - Request Form'!$F$7=\"CIUGC\",IF('Blank - Request Form'!N203=0,\"\",'Blank - Request Form'!N203),\"\"))","v":""},{"$f":"IF('Blank - Request Form'!$F$6=\"CIUGC\",IF(OR('Blank - Request Form'!F203=\"000\",'Blank - Request Form'!F203=0),\"\",'Blank - Request Form'!F203),IF('Blank - Request Form'!$F$7=\"CIUGC\",IF(OR('Blank - Request Form'!O203=\"000\",'Blank - Request Form'!O203=0),\"\",'Blank - Request Form'!O203),\"\"))","v":""},{"$f":"IF('Blank - Request Form'!$F$6=\"CIUGC\",IF(OR('Blank - Request Form'!G203=\"0\",'Blank - Request Form'!G203=\"00000\",'Blank - Request Form'!G203=0),\"\",'Blank - Request Form'!G203),IF('Blank - Request Form'!$F$7=\"CIUGC\",IF(OR('Blank - Request Form'!P203=\"0\",'Blank - Request Form'!P203=\"00000\",'Blank - Request Form'!P203=0),\"\",'Blank - Request Form'!P203),\"\"))","v":""},{"$f":"IF('Blank - Request Form'!$F$6=\"CIUGC\",IF(OR('Blank - Request Form'!H203=\"0\",'Blank - Request Form'!H203=\"00000\",'Blank - Request Form'!H203=0),\"\",'Blank - Request Form'!H203),IF('Blank - Request Form'!$F$7=\"CIUGC\",IF(OR('Blank - Request Form'!Q203=\"0\",'Blank - Request Form'!Q203=\"00000\",'Blank - Request Form'!Q203=0),\"\",'Blank - Request Form'!Q203),\"\"))","v":""},{"$f":"IF('Blank - Request Form'!$F$6=\"CIUGC\",IF(OR('Blank - Request Form'!I203=\"0\",'Blank - Request Form'!I203=\"00000\",'Blank - Request Form'!I203=0),\"\",'Blank - Request Form'!I203),IF('Blank - Request Form'!$F$7=\"CIUGC\",IF(OR('Blank - Request Form'!R203=\"0\",'Blank - Request Form'!R203=\"00000\",'Blank - Request Form'!R203=0),\"\",'Blank - Request Form'!R203),\"\"))","v":""},null,{"$f":"IF('Blank - Request Form'!$F$6=\"CIUGC\",IF('Blank - Request Form'!K203=0,\"\",'Blank - Request Form'!K203),IF('Blank - Request Form'!$F$7=\"CIUGC\",IF('Blank - Request Form'!T203=0,\"\",'Blank - Request Form'!T203),\"\"))","v":""},null,null,null,{"$f":"IF(M169<>\"\",'Blank - Request Form'!$M$2,\"\")","v":""},{"$f":"IF('Blank - Request Form'!$F$6=\"CIUGC\",IF('Blank - Request Form'!J203=0,\"\",'Blank - Request Form'!J203),IF('Blank - Request Form'!$F$7=\"CIUGC\",IF('Blank - Request Form'!S203=0,\"\",'Blank - Request Form'!S203),\"\"))","v":""},"",169]
[{"$f":"IF('Blank - Request Form'!$F$6=\"CIUGC\",IF('Blank - Request Form'!D204=0,\"\",'Blank - Request Form'!D204),IF('Blank - Request Form'!$F$7=\"CIUGC\",IF('Blank - Request Form'!M204=0,\"\",'Blank - Request Form'!M204),\"\"))","v":""},{"$f":"IF('Blank - Request Form'!$F$6=\"CIUGC\",IF('Blank - Request Form'!E204=0,\"\",'Blank - Request Form'!E204),IF('Blank - Request Form'!$F$7=\"CIUGC\",IF('Blank - Request Form'!N204=0,\"\",'Blank - Request Form'!N204),\"\"))","v":""},{"$f":"IF('Blank - Request Form'!$F$6=\"CIUGC\",IF(OR('Blank - Request Form'!F204=\"000\",'Blank - Request Form'!F204=0),\"\",'Blank - Request Form'!F204),IF('Blank - Request Form'!$F$7=\"CIUGC\",IF(OR('Blank - Request Form'!O204=\"000\",'Blank - Request Form'!O204=0),\"\",'Blank - Request Form'!O204),\"\"))","v":""},{"$f":"IF('Blank - Request Form'!$F$6=\"CIUGC\",IF(OR('Blank - Request Form'!G204=\"0\",'Blank - Request Form'!G204=\"00000\",'Blank - Request Form'!G204=0),\"\",'Blank - Request Form'!G204),IF('Blank - Request Form'!$F$7=\"CIUGC\",IF(OR('Blank - Request Form'!P204=\"0\",'Blank - Request Form'!P204=\"00000\",'Blank - Request Form'!P204=0),\"\",'Blank - Request Form'!P204),\"\"))","v":""},{"$f":"IF('Blank - Request Form'!$F$6=\"CIUGC\",IF(OR('Blank - Request Form'!H204=\"0\",'Blank - Request Form'!H204=\"00000\",'Blank - Request Form'!H204=0),\"\",'Blank - Request Form'!H204),IF('Blank - Request Form'!$F$7=\"CIUGC\",IF(OR('Blank - Request Form'!Q204=\"0\",'Blank - Request Form'!Q204=\"00000\",'Blank - Request Form'!Q204=0),\"\",'Blank - Request Form'!Q204),\"\"))","v":""},{"$f":"IF('Blank - Request Form'!$F$6=\"CIUGC\",IF(OR('Blank - Request Form'!I204=\"0\",'Blank - Request Form'!I204=\"00000\",'Blank - Request Form'!I204=0),\"\",'Blank - Request Form'!I204),IF('Blank - Request Form'!$F$7=\"CIUGC\",IF(OR('Blank - Request Form'!R204=\"0\",'Blank - Request Form'!R204=\"00000\",'Blank - Request Form'!R204=0),\"\",'Blank - Request Form'!R204),\"\"))","v":""},null,{"$f":"IF('Blank - Request Form'!$F$6=\"CIUGC\",IF('Blank - Request Form'!K204=0,\"\",'Blank - Request Form'!K204),IF('Blank - Request Form'!$F$7=\"CIUGC\",IF('Blank - Request Form'!T204=0,\"\",'Blank - Request Form'!T204),\"\"))","v":""},null,null,null,{"$f":"IF(M170<>\"\",'Blank - Request Form'!$M$2,\"\")","v":""},{"$f":"IF('Blank - Request Form'!$F$6=\"CIUGC\",IF('Blank - Request Form'!J204=0,\"\",'Blank - Request Form'!J204),IF('Blank - Request Form'!$F$7=\"CIUGC\",IF('Blank - Request Form'!S204=0,\"\",'Blank - Request Form'!S204),\"\"))","v":""},"",170]
[{"$f":"IF('Blank - Request Form'!$F$6=\"CIUGC\",IF('Blank - Request Form'!D205=0,\"\",'Blank - Request Form'!D205),IF('Blank - Request Form'!$F$7=\"CIUGC\",IF('Blank - Request Form'!M205=0,\"\",'Blank - Request Form'!M205),\"\"))","v":""},{"$f":"IF('Blank - Request Form'!$F$6=\"CIUGC\",IF('Blank - Request Form'!E205=0,\"\",'Blank - Request Form'!E205),IF('Blank - Request Form'!$F$7=\"CIUGC\",IF('Blank - Request Form'!N205=0,\"\",'Blank - Request Form'!N205),\"\"))","v":""},{"$f":"IF('Blank - Request Form'!$F$6=\"CIUGC\",IF(OR('Blank - Request Form'!F205=\"000\",'Blank - Request Form'!F205=0),\"\",'Blank - Request Form'!F205),IF('Blank - Request Form'!$F$7=\"CIUGC\",IF(OR('Blank - Request Form'!O205=\"000\",'Blank - Request Form'!O205=0),\"\",'Blank - Request Form'!O205),\"\"))","v":""},{"$f":"IF('Blank - Request Form'!$F$6=\"CIUGC\",IF(OR('Blank - Request Form'!G205=\"0\",'Blank - Request Form'!G205=\"00000\",'Blank - Request Form'!G205=0),\"\",'Blank - Request Form'!G205),IF('Blank - Request Form'!$F$7=\"CIUGC\",IF(OR('Blank - Request Form'!P205=\"0\",'Blank - Request Form'!P205=\"00000\",'Blank - Request Form'!P205=0),\"\",'Blank - Request Form'!P205),\"\"))","v":""},{"$f":"IF('Blank - Request Form'!$F$6=\"CIUGC\",IF(OR('Blank - Request Form'!H205=\"0\",'Blank - Request Form'!H205=\"00000\",'Blank - Request Form'!H205=0),\"\",'Blank - Request Form'!H205),IF('Blank - Request Form'!$F$7=\"CIUGC\",IF(OR('Blank - Request Form'!Q205=\"0\",'Blank - Request Form'!Q205=\"00000\",'Blank - Request Form'!Q205=0),\"\",'Blank - Request Form'!Q205),\"\"))","v":""},{"$f":"IF('Blank - Request Form'!$F$6=\"CIUGC\",IF(OR('Blank - Request Form'!I205=\"0\",'Blank - Request Form'!I205=\"00000\",'Blank - Request Form'!I205=0),\"\",'Blank - Request Form'!I205),IF('Blank - Request Form'!$F$7=\"CIUGC\",IF(OR('Blank - Request Form'!R205=\"0\",'Blank - Request Form'!R205=\"00000\",'Blank - Request Form'!R205=0),\"\",'Blank - Request Form'!R205),\"\"))","v":""},null,{"$f":"IF('Blank - Request Form'!$F$6=\"CIUGC\",IF('Blank - Request Form'!K205=0,\"\",'Blank - Request Form'!K205),IF('Blank - Request Form'!$F$7=\"CIUGC\",IF('Blank - Request Form'!T205=0,\"\",'Blank - Request Form'!T205),\"\"))","v":""},null,null,null,{"$f":"IF(M171<>\"\",'Blank - Request Form'!$M$2,\"\")","v":""},{"$f":"IF('Blank - Request Form'!$F$6=\"CIUGC\",IF('Blank - Request Form'!J205=0,\"\",'Blank - Request Form'!J205),IF('Blank - Request Form'!$F$7=\"CIUGC\",IF('Blank - Request Form'!S205=0,\"\",'Blank - Request Form'!S205),\"\"))","v":""},"",171]
[{"$f":"IF('Blank - Request Form'!$F$6=\"CIUGC\",IF('Blank - Request Form'!D206=0,\"\",'Blank - Request Form'!D206),IF('Blank - Request Form'!$F$7=\"CIUGC\",IF('Blank - Request Form'!M206=0,\"\",'Blank - Request Form'!M206),\"\"))","v":""},{"$f":"IF('Blank - Request Form'!$F$6=\"CIUGC\",IF('Blank - Request Form'!E206=0,\"\",'Blank - Request Form'!E206),IF('Blank - Request Form'!$F$7=\"CIUGC\",IF('Blank - Request Form'!N206=0,\"\",'Blank - Request Form'!N206),\"\"))","v":""},{"$f":"IF('Blank - Request Form'!$F$6=\"CIUGC\",IF(OR('Blank - Request Form'!F206=\"000\",'Blank - Request Form'!F206=0),\"\",'Blank - Request Form'!F206),IF('Blank - Request Form'!$F$7=\"CIUGC\",IF(OR('Blank - Request Form'!O206=\"000\",'Blank - Request Form'!O206=0),\"\",'Blank - Request Form'!O206),\"\"))","v":""},{"$f":"IF('Blank - Request Form'!$F$6=\"CIUGC\",IF(OR('Blank - Request Form'!G206=\"0\",'Blank - Request Form'!G206=\"00000\",'Blank - Request Form'!G206=0),\"\",'Blank - Request Form'!G206),IF('Blank - Request Form'!$F$7=\"CIUGC\",IF(OR('Blank - Request Form'!P206=\"0\",'Blank - Request Form'!P206=\"00000\",'Blank - Request Form'!P206=0),\"\",'Blank - Request Form'!P206),\"\"))","v":""},{"$f":"IF('Blank - Request Form'!$F$6=\"CIUGC\",IF(OR('Blank - Request Form'!H206=\"0\",'Blank - Request Form'!H206=\"00000\",'Blank - Request Form'!H206=0),\"\",'Blank - Request Form'!H206),IF('Blank - Request Form'!$F$7=\"CIUGC\",IF(OR('Blank - Request Form'!Q206=\"0\",'Blank - Request Form'!Q206=\"00000\",'Blank - Request Form'!Q206=0),\"\",'Blank - Request Form'!Q206),\"\"))","v":""},{"$f":"IF('Blank - Request Form'!$F$6=\"CIUGC\",IF(OR('Blank - Request Form'!I206=\"0\",'Blank - Request Form'!I206=\"00000\",'Blank - Request Form'!I206=0),\"\",'Blank - Request Form'!I206),IF('Blank - Request Form'!$F$7=\"CIUGC\",IF(OR('Blank - Request Form'!R206=\"0\",'Blank - Request Form'!R206=\"00000\",'Blank - Request Form'!R206=0),\"\",'Blank - Request Form'!R206),\"\"))","v":""},null,{"$f":"IF('Blank - Request Form'!$F$6=\"CIUGC\",IF('Blank - Request Form'!K206=0,\"\",'Blank - Request Form'!K206),IF('Blank - Request Form'!$F$7=\"CIUGC\",IF('Blank - Request Form'!T206=0,\"\",'Blank - Request Form'!T206),\"\"))","v":""},null,null,null,{"$f":"IF(M172<>\"\",'Blank - Request Form'!$M$2,\"\")","v":""},{"$f":"IF('Blank - Request Form'!$F$6=\"CIUGC\",IF('Blank - Request Form'!J206=0,\"\",'Blank - Request Form'!J206),IF('Blank - Request Form'!$F$7=\"CIUGC\",IF('Blank - Request Form'!S206=0,\"\",'Blank - Request Form'!S206),\"\"))","v":""},"",172]
[{"$f":"IF('Blank - Request Form'!$F$6=\"CIUGC\",IF('Blank - Request Form'!D207=0,\"\",'Blank - Request Form'!D207),IF('Blank - Request Form'!$F$7=\"CIUGC\",IF('Blank - Request Form'!M207=0,\"\",'Blank - Request Form'!M207),\"\"))","v":""},{"$f":"IF('Blank - Request Form'!$F$6=\"CIUGC\",IF('Blank - Request Form'!E207=0,\"\",'Blank - Request Form'!E207),IF('Blank - Request Form'!$F$7=\"CIUGC\",IF('Blank - Request Form'!N207=0,\"\",'Blank - Request Form'!N207),\"\"))","v":""},{"$f":"IF('Blank - Request Form'!$F$6=\"CIUGC\",IF(OR('Blank - Request Form'!F207=\"000\",'Blank - Request Form'!F207=0),\"\",'Blank - Request Form'!F207),IF('Blank - Request Form'!$F$7=\"CIUGC\",IF(OR('Blank - Request Form'!O207=\"000\",'Blank - Request Form'!O207=0),\"\",'Blank - Request Form'!O207),\"\"))","v":""},{"$f":"IF('Blank - Request Form'!$F$6=\"CIUGC\",IF(OR('Blank - Request Form'!G207=\"0\",'Blank - Request Form'!G207=\"00000\",'Blank - Request Form'!G207=0),\"\",'Blank - Request Form'!G207),IF('Blank - Request Form'!$F$7=\"CIUGC\",IF(OR('Blank - Request Form'!P207=\"0\",'Blank - Request Form'!P207=\"00000\",'Blank - Request Form'!P207=0),\"\",'Blank - Request Form'!P207),\"\"))","v":""},{"$f":"IF('Blank - Request Form'!$F$6=\"CIUGC\",IF(OR('Blank - Request Form'!H207=\"0\",'Blank - Request Form'!H207=\"00000\",'Blank - Request Form'!H207=0),\"\",'Blank - Request Form'!H207),IF('Blank - Request Form'!$F$7=\"CIUGC\",IF(OR('Blank - Request Form'!Q207=\"0\",'Blank - Request Form'!Q207=\"00000\",'Blank - Request Form'!Q207=0),\"\",'Blank - Request Form'!Q207),\"\"))","v":""},{"$f":"IF('Blank - Request Form'!$F$6=\"CIUGC\",IF(OR('Blank - Request Form'!I207=\"0\",'Blank - Request Form'!I207=\"00000\",'Blank - Request Form'!I207=0),\"\",'Blank - Request Form'!I207),IF('Blank - Request Form'!$F$7=\"CIUGC\",IF(OR('Blank - Request Form'!R207=\"0\",'Blank - Request Form'!R207=\"00000\",'Blank - Request Form'!R207=0),\"\",'Blank - Request Form'!R207),\"\"))","v":""},null,{"$f":"IF('Blank - Request Form'!$F$6=\"CIUGC\",IF('Blank - Request Form'!K207=0,\"\",'Blank - Request Form'!K207),IF('Blank - Request Form'!$F$7=\"CIUGC\",IF('Blank - Request Form'!T207=0,\"\",'Blank - Request Form'!T207),\"\"))","v":""},null,null,null,{"$f":"IF(M173<>\"\",'Blank - Request Form'!$M$2,\"\")","v":""},{"$f":"IF('Blank - Request Form'!$F$6=\"CIUGC\",IF('Blank - Request Form'!J207=0,\"\",'Blank - Request Form'!J207),IF('Blank - Request Form'!$F$7=\"CIUGC\",IF('Blank - Request Form'!S207=0,\"\",'Blank - Request Form'!S207),\"\"))","v":""},"",173]
[{"$f":"IF('Blank - Request Form'!$F$6=\"CIUGC\",IF('Blank - Request Form'!D208=0,\"\",'Blank - Request Form'!D208),IF('Blank - Request Form'!$F$7=\"CIUGC\",IF('Blank - Request Form'!M208=0,\"\",'Blank - Request Form'!M208),\"\"))","v":""},{"$f":"IF('Blank - Request Form'!$F$6=\"CIUGC\",IF('Blank - Request Form'!E208=0,\"\",'Blank - Request Form'!E208),IF('Blank - Request Form'!$F$7=\"CIUGC\",IF('Blank - Request Form'!N208=0,\"\",'Blank - Request Form'!N208),\"\"))","v":""},{"$f":"IF('Blank - Request Form'!$F$6=\"CIUGC\",IF(OR('Blank - Request Form'!F208=\"000\",'Blank - Request Form'!F208=0),\"\",'Blank - Request Form'!F208),IF('Blank - Request Form'!$F$7=\"CIUGC\",IF(OR('Blank - Request Form'!O208=\"000\",'Blank - Request Form'!O208=0),\"\",'Blank - Request Form'!O208),\"\"))","v":""},{"$f":"IF('Blank - Request Form'!$F$6=\"CIUGC\",IF(OR('Blank - Request Form'!G208=\"0\",'Blank - Request Form'!G208=\"00000\",'Blank - Request Form'!G208=0),\"\",'Blank - Request Form'!G208),IF('Blank - Request Form'!$F$7=\"CIUGC\",IF(OR('Blank - Request Form'!P208=\"0\",'Blank - Request Form'!P208=\"00000\",'Blank - Request Form'!P208=0),\"\",'Blank - Request Form'!P208),\"\"))","v":""},{"$f":"IF('Blank - Request Form'!$F$6=\"CIUGC\",IF(OR('Blank - Request Form'!H208=\"0\",'Blank - Request Form'!H208=\"00000\",'Blank - Request Form'!H208=0),\"\",'Blank - Request Form'!H208),IF('Blank - Request Form'!$F$7=\"CIUGC\",IF(OR('Blank - Request Form'!Q208=\"0\",'Blank - Request Form'!Q208=\"00000\",'Blank - Request Form'!Q208=0),\"\",'Blank - Request Form'!Q208),\"\"))","v":""},{"$f":"IF('Blank - Request Form'!$F$6=\"CIUGC\",IF(OR('Blank - Request Form'!I208=\"0\",'Blank - Request Form'!I208=\"00000\",'Blank - Request Form'!I208=0),\"\",'Blank - Request Form'!I208),IF('Blank - Request Form'!$F$7=\"CIUGC\",IF(OR('Blank - Request Form'!R208=\"0\",'Blank - Request Form'!R208=\"00000\",'Blank - Request Form'!R208=0),\"\",'Blank - Request Form'!R208),\"\"))","v":""},null,{"$f":"IF('Blank - Request Form'!$F$6=\"CIUGC\",IF('Blank - Request Form'!K208=0,\"\",'Blank - Request Form'!K208),IF('Blank - Request Form'!$F$7=\"CIUGC\",IF('Blank - Request Form'!T208=0,\"\",'Blank - Request Form'!T208),\"\"))","v":""},null,null,null,{"$f":"IF(M174<>\"\",'Blank - Request Form'!$M$2,\"\")","v":""},{"$f":"IF('Blank - Request Form'!$F$6=\"CIUGC\",IF('Blank - Request Form'!J208=0,\"\",'Blank - Request Form'!J208),IF('Blank - Request Form'!$F$7=\"CIUGC\",IF('Blank - Request Form'!S208=0,\"\",'Blank - Request Form'!S208),\"\"))","v":""},{"$f":"IF(M174<>\"\",O174,\"\")","v":""},174]
[{"$f":"IF('Blank - Request Form'!$F$6=\"CIUGC\",IF('Blank - Request Form'!D209=0,\"\",'Blank - Request Form'!D209),IF('Blank - Request Form'!$F$7=\"CIUGC\",IF('Blank - Request Form'!M209=0,\"\",'Blank - Request Form'!M209),\"\"))","v":""},{"$f":"IF('Blank - Request Form'!$F$6=\"CIUGC\",IF('Blank - Request Form'!E209=0,\"\",'Blank - Request Form'!E209),IF('Blank - Request Form'!$F$7=\"CIUGC\",IF('Blank - Request Form'!N209=0,\"\",'Blank - Request Form'!N209),\"\"))","v":""},{"$f":"IF('Blank - Request Form'!$F$6=\"CIUGC\",IF(OR('Blank - Request Form'!F209=\"000\",'Blank - Request Form'!F209=0),\"\",'Blank - Request Form'!F209),IF('Blank - Request Form'!$F$7=\"CIUGC\",IF(OR('Blank - Request Form'!O209=\"000\",'Blank - Request Form'!O209=0),\"\",'Blank - Request Form'!O209),\"\"))","v":""},{"$f":"IF('Blank - Request Form'!$F$6=\"CIUGC\",IF(OR('Blank - Request Form'!G209=\"0\",'Blank - Request Form'!G209=\"00000\",'Blank - Request Form'!G209=0),\"\",'Blank - Request Form'!G209),IF('Blank - Request Form'!$F$7=\"CIUGC\",IF(OR('Blank - Request Form'!P209=\"0\",'Blank - Request Form'!P209=\"00000\",'Blank - Request Form'!P209=0),\"\",'Blank - Request Form'!P209),\"\"))","v":""},{"$f":"IF('Blank - Request Form'!$F$6=\"CIUGC\",IF(OR('Blank - Request Form'!H209=\"0\",'Blank - Request Form'!H209=\"00000\",'Blank - Request Form'!H209=0),\"\",'Blank - Request Form'!H209),IF('Blank - Request Form'!$F$7=\"CIUGC\",IF(OR('Blank - Request Form'!Q209=\"0\",'Blank - Request Form'!Q209=\"00000\",'Blank - Request Form'!Q209=0),\"\",'Blank - Request Form'!Q209),\"\"))","v":""},{"$f":"IF('Blank - Request Form'!$F$6=\"CIUGC\",IF(OR('Blank - Request Form'!I209=\"0\",'Blank - Request Form'!I209=\"00000\",'Blank - Request Form'!I209=0),\"\",'Blank - Request Form'!I209),IF('Blank - Request Form'!$F$7=\"CIUGC\",IF(OR('Blank - Request Form'!R209=\"0\",'Blank - Request Form'!R209=\"00000\",'Blank - Request Form'!R209=0),\"\",'Blank - Request Form'!R209),\"\"))","v":""},null,{"$f":"IF('Blank - Request Form'!$F$6=\"CIUGC\",IF('Blank - Request Form'!K209=0,\"\",'Blank - Request Form'!K209),IF('Blank - Request Form'!$F$7=\"CIUGC\",IF('Blank - Request Form'!T209=0,\"\",'Blank - Request Form'!T209),\"\"))","v":""},null,null,null,{"$f":"IF(M175<>\"\",'Blank - Request Form'!$M$2,\"\")","v":""},{"$f":"IF('Blank - Request Form'!$F$6=\"CIUGC\",IF('Blank - Request Form'!J209=0,\"\",'Blank - Request Form'!J209),IF('Blank - Request Form'!$F$7=\"CIUGC\",IF('Blank - Request Form'!S209=0,\"\",'Blank - Request Form'!S209),\"\"))","v":""},"",175]
[{"$f":"IF('Blank - Request Form'!$F$6=\"CIUGC\",IF('Blank - Request Form'!D210=0,\"\",'Blank - Request Form'!D210),IF('Blank - Request Form'!$F$7=\"CIUGC\",IF('Blank - Request Form'!M210=0,\"\",'Blank - Request Form'!M210),\"\"))","v":""},{"$f":"IF('Blank - Request Form'!$F$6=\"CIUGC\",IF('Blank - Request Form'!E210=0,\"\",'Blank - Request Form'!E210),IF('Blank - Request Form'!$F$7=\"CIUGC\",IF('Blank - Request Form'!N210=0,\"\",'Blank - Request Form'!N210),\"\"))","v":""},{"$f":"IF('Blank - Request Form'!$F$6=\"CIUGC\",IF(OR('Blank - Request Form'!F210=\"000\",'Blank - Request Form'!F210=0),\"\",'Blank - Request Form'!F210),IF('Blank - Request Form'!$F$7=\"CIUGC\",IF(OR('Blank - Request Form'!O210=\"000\",'Blank - Request Form'!O210=0),\"\",'Blank - Request Form'!O210),\"\"))","v":""},{"$f":"IF('Blank - Request Form'!$F$6=\"CIUGC\",IF(OR('Blank - Request Form'!G210=\"0\",'Blank - Request Form'!G210=\"00000\",'Blank - Request Form'!G210=0),\"\",'Blank - Request Form'!G210),IF('Blank - Request Form'!$F$7=\"CIUGC\",IF(OR('Blank - Request Form'!P210=\"0\",'Blank - Request Form'!P210=\"00000\",'Blank - Request Form'!P210=0),\"\",'Blank - Request Form'!P210),\"\"))","v":""},{"$f":"IF('Blank - Request Form'!$F$6=\"CIUGC\",IF(OR('Blank - Request Form'!H210=\"0\",'Blank - Request Form'!H210=\"00000\",'Blank - Request Form'!H210=0),\"\",'Blank - Request Form'!H210),IF('Blank - Request Form'!$F$7=\"CIUGC\",IF(OR('Blank - Request Form'!Q210=\"0\",'Blank - Request Form'!Q210=\"00000\",'Blank - Request Form'!Q210=0),\"\",'Blank - Request Form'!Q210),\"\"))","v":""},{"$f":"IF('Blank - Request Form'!$F$6=\"CIUGC\",IF(OR('Blank - Request Form'!I210=\"0\",'Blank - Request Form'!I210=\"00000\",'Blank - Request Form'!I210=0),\"\",'Blank - Request Form'!I210),IF('Blank - Request Form'!$F$7=\"CIUGC\",IF(OR('Blank - Request Form'!R210=\"0\",'Blank - Request Form'!R210=\"00000\",'Blank - Request Form'!R210=0),\"\",'Blank - Request Form'!R210),\"\"))","v":""},null,{"$f":"IF('Blank - Request Form'!$F$6=\"CIUGC\",IF('Blank - Request Form'!K210=0,\"\",'Blank - Request Form'!K210),IF('Blank - Request Form'!$F$7=\"CIUGC\",IF('Blank - Request Form'!T210=0,\"\",'Blank - Request Form'!T210),\"\"))","v":""},null,null,null,{"$f":"IF(M176<>\"\",'Blank - Request Form'!$M$2,\"\")","v":""},{"$f":"IF('Blank - Request Form'!$F$6=\"CIUGC\",IF('Blank - Request Form'!J210=0,\"\",'Blank - Request Form'!J210),IF('Blank - Request Form'!$F$7=\"CIUGC\",IF('Blank - Request Form'!S210=0,\"\",'Blank - Request Form'!S210),\"\"))","v":""},"",176]
[{"$f":"IF('Blank - Request Form'!$F$6=\"CIUGC\",IF('Blank - Request Form'!D211=0,\"\",'Blank - Request Form'!D211),IF('Blank - Request Form'!$F$7=\"CIUGC\",IF('Blank - Request Form'!M211=0,\"\",'Blank - Request Form'!M211),\"\"))","v":""},{"$f":"IF('Blank - Request Form'!$F$6=\"CIUGC\",IF('Blank - Request Form'!E211=0,\"\",'Blank - Request Form'!E211),IF('Blank - Request Form'!$F$7=\"CIUGC\",IF('Blank - Request Form'!N211=0,\"\",'Blank - Request Form'!N211),\"\"))","v":""},{"$f":"IF('Blank - Request Form'!$F$6=\"CIUGC\",IF(OR('Blank - Request Form'!F211=\"000\",'Blank - Request Form'!F211=0),\"\",'Blank - Request Form'!F211),IF('Blank - Request Form'!$F$7=\"CIUGC\",IF(OR('Blank - Request Form'!O211=\"000\",'Blank - Request Form'!O211=0),\"\",'Blank - Request Form'!O211),\"\"))","v":""},{"$f":"IF('Blank - Request Form'!$F$6=\"CIUGC\",IF(OR('Blank - Request Form'!G211=\"0\",'Blank - Request Form'!G211=\"00000\",'Blank - Request Form'!G211=0),\"\",'Blank - Request Form'!G211),IF('Blank - Request Form'!$F$7=\"CIUGC\",IF(OR('Blank - Request Form'!P211=\"0\",'Blank - Request Form'!P211=\"00000\",'Blank - Request Form'!P211=0),\"\",'Blank - Request Form'!P211),\"\"))","v":""},{"$f":"IF('Blank - Request Form'!$F$6=\"CIUGC\",IF(OR('Blank - Request Form'!H211=\"0\",'Blank - Request Form'!H211=\"00000\",'Blank - Request Form'!H211=0),\"\",'Blank - Request Form'!H211),IF('Blank - Request Form'!$F$7=\"CIUGC\",IF(OR('Blank - Request Form'!Q211=\"0\",'Blank - Request Form'!Q211=\"00000\",'Blank - Request Form'!Q211=0),\"\",'Blank - Request Form'!Q211),\"\"))","v":""},{"$f":"IF('Blank - Request Form'!$F$6=\"CIUGC\",IF(OR('Blank - Request Form'!I211=\"0\",'Blank - Request Form'!I211=\"00000\",'Blank - Request Form'!I211=0),\"\",'Blank - Request Form'!I211),IF('Blank - Request Form'!$F$7=\"CIUGC\",IF(OR('Blank - Request Form'!R211=\"0\",'Blank - Request Form'!R211=\"00000\",'Blank - Request Form'!R211=0),\"\",'Blank - Request Form'!R211),\"\"))","v":""},null,{"$f":"IF('Blank - Request Form'!$F$6=\"CIUGC\",IF('Blank - Request Form'!K211=0,\"\",'Blank - Request Form'!K211),IF('Blank - Request Form'!$F$7=\"CIUGC\",IF('Blank - Request Form'!T211=0,\"\",'Blank - Request Form'!T211),\"\"))","v":""},null,null,null,{"$f":"IF(M177<>\"\",'Blank - Request Form'!$M$2,\"\")","v":""},{"$f":"IF('Blank - Request Form'!$F$6=\"CIUGC\",IF('Blank - Request Form'!J211=0,\"\",'Blank - Request Form'!J211),IF('Blank - Request Form'!$F$7=\"CIUGC\",IF('Blank - Request Form'!S211=0,\"\",'Blank - Request Form'!S211),\"\"))","v":""},"",177]
[{"$f":"IF('Blank - Request Form'!$F$6=\"CIUGC\",IF('Blank - Request Form'!D212=0,\"\",'Blank - Request Form'!D212),IF('Blank - Request Form'!$F$7=\"CIUGC\",IF('Blank - Request Form'!M212=0,\"\",'Blank - Request Form'!M212),\"\"))","v":""},{"$f":"IF('Blank - Request Form'!$F$6=\"CIUGC\",IF('Blank - Request Form'!E212=0,\"\",'Blank - Request Form'!E212),IF('Blank - Request Form'!$F$7=\"CIUGC\",IF('Blank - Request Form'!N212=0,\"\",'Blank - Request Form'!N212),\"\"))","v":""},{"$f":"IF('Blank - Request Form'!$F$6=\"CIUGC\",IF(OR('Blank - Request Form'!F212=\"000\",'Blank - Request Form'!F212=0),\"\",'Blank - Request Form'!F212),IF('Blank - Request Form'!$F$7=\"CIUGC\",IF(OR('Blank - Request Form'!O212=\"000\",'Blank - Request Form'!O212=0),\"\",'Blank - Request Form'!O212),\"\"))","v":""},{"$f":"IF('Blank - Request Form'!$F$6=\"CIUGC\",IF(OR('Blank - Request Form'!G212=\"0\",'Blank - Request Form'!G212=\"00000\",'Blank - Request Form'!G212=0),\"\",'Blank - Request Form'!G212),IF('Blank - Request Form'!$F$7=\"CIUGC\",IF(OR('Blank - Request Form'!P212=\"0\",'Blank - Request Form'!P212=\"00000\",'Blank - Request Form'!P212=0),\"\",'Blank - Request Form'!P212),\"\"))","v":""},{"$f":"IF('Blank - Request Form'!$F$6=\"CIUGC\",IF(OR('Blank - Request Form'!H212=\"0\",'Blank - Request Form'!H212=\"00000\",'Blank - Request Form'!H212=0),\"\",'Blank - Request Form'!H212),IF('Blank - Request Form'!$F$7=\"CIUGC\",IF(OR('Blank - Request Form'!Q212=\"0\",'Blank - Request Form'!Q212=\"00000\",'Blank - Request Form'!Q212=0),\"\",'Blank - Request Form'!Q212),\"\"))","v":""},{"$f":"IF('Blank - Request Form'!$F$6=\"CIUGC\",IF(OR('Blank - Request Form'!I212=\"0\",'Blank - Request Form'!I212=\"00000\",'Blank - Request Form'!I212=0),\"\",'Blank - Request Form'!I212),IF('Blank - Request Form'!$F$7=\"CIUGC\",IF(OR('Blank - Request Form'!R212=\"0\",'Blank - Request Form'!R212=\"00000\",'Blank - Request Form'!R212=0),\"\",'Blank - Request Form'!R212),\"\"))","v":""},null,{"$f":"IF('Blank - Request Form'!$F$6=\"CIUGC\",IF('Blank - Request Form'!K212=0,\"\",'Blank - Request Form'!K212),IF('Blank - Request Form'!$F$7=\"CIUGC\",IF('Blank - Request Form'!T212=0,\"\",'Blank - Request Form'!T212),\"\"))","v":""},null,null,null,{"$f":"IF(M178<>\"\",'Blank - Request Form'!$M$2,\"\")","v":""},{"$f":"IF('Blank - Request Form'!$F$6=\"CIUGC\",IF('Blank - Request Form'!J212=0,\"\",'Blank - Request Form'!J212),IF('Blank - Request Form'!$F$7=\"CIUGC\",IF('Blank - Request Form'!S212=0,\"\",'Blank - Request Form'!S212),\"\"))","v":""},"",178]
[{"$f":"IF('Blank - Request Form'!$F$6=\"CIUGC\",IF('Blank - Request Form'!D213=0,\"\",'Blank - Request Form'!D213),IF('Blank - Request Form'!$F$7=\"CIUGC\",IF('Blank - Request Form'!M213=0,\"\",'Blank - Request Form'!M213),\"\"))","v":""},{"$f":"IF('Blank - Request Form'!$F$6=\"CIUGC\",IF('Blank - Request Form'!E213=0,\"\",'Blank - Request Form'!E213),IF('Blank - Request Form'!$F$7=\"CIUGC\",IF('Blank - Request Form'!N213=0,\"\",'Blank - Request Form'!N213),\"\"))","v":""},{"$f":"IF('Blank - Request Form'!$F$6=\"CIUGC\",IF(OR('Blank - Request Form'!F213=\"000\",'Blank - Request Form'!F213=0),\"\",'Blank - Request Form'!F213),IF('Blank - Request Form'!$F$7=\"CIUGC\",IF(OR('Blank - Request Form'!O213=\"000\",'Blank - Request Form'!O213=0),\"\",'Blank - Request Form'!O213),\"\"))","v":""},{"$f":"IF('Blank - Request Form'!$F$6=\"CIUGC\",IF(OR('Blank - Request Form'!G213=\"0\",'Blank - Request Form'!G213=\"00000\",'Blank - Request Form'!G213=0),\"\",'Blank - Request Form'!G213),IF('Blank - Request Form'!$F$7=\"CIUGC\",IF(OR('Blank - Request Form'!P213=\"0\",'Blank - Request Form'!P213=\"00000\",'Blank - Request Form'!P213=0),\"\",'Blank - Request Form'!P213),\"\"))","v":""},{"$f":"IF('Blank - Request Form'!$F$6=\"CIUGC\",IF(OR('Blank - Request Form'!H213=\"0\",'Blank - Request Form'!H213=\"00000\",'Blank - Request Form'!H213=0),\"\",'Blank - Request Form'!H213),IF('Blank - Request Form'!$F$7=\"CIUGC\",IF(OR('Blank - Request Form'!Q213=\"0\",'Blank - Request Form'!Q213=\"00000\",'Blank - Request Form'!Q213=0),\"\",'Blank - Request Form'!Q213),\"\"))","v":""},{"$f":"IF('Blank - Request Form'!$F$6=\"CIUGC\",IF(OR('Blank - Request Form'!I213=\"0\",'Blank - Request Form'!I213=\"00000\",'Blank - Request Form'!I213=0),\"\",'Blank - Request Form'!I213),IF('Blank - Request Form'!$F$7=\"CIUGC\",IF(OR('Blank - Request Form'!R213=\"0\",'Blank - Request Form'!R213=\"00000\",'Blank - Request Form'!R213=0),\"\",'Blank - Request Form'!R213),\"\"))","v":""},null,{"$f":"IF('Blank - Request Form'!$F$6=\"CIUGC\",IF('Blank - Request Form'!K213=0,\"\",'Blank - Request Form'!K213),IF('Blank - Request Form'!$F$7=\"CIUGC\",IF('Blank - Request Form'!T213=0,\"\",'Blank - Request Form'!T213),\"\"))","v":""},null,null,null,{"$f":"IF(M179<>\"\",'Blank - Request Form'!$M$2,\"\")","v":""},{"$f":"IF('Blank - Request Form'!$F$6=\"CIUGC\",IF('Blank - Request Form'!J213=0,\"\",'Blank - Request Form'!J213),IF('Blank - Request Form'!$F$7=\"CIUGC\",IF('Blank - Request Form'!S213=0,\"\",'Blank - Request Form'!S213),\"\"))","v":""},"",179]
[{"$f":"IF('Blank - Request Form'!$F$6=\"CIUGC\",IF('Blank - Request Form'!D214=0,\"\",'Blank - Request Form'!D214),IF('Blank - Request Form'!$F$7=\"CIUGC\",IF('Blank - Request Form'!M214=0,\"\",'Blank - Request Form'!M214),\"\"))","v":""},{"$f":"IF('Blank - Request Form'!$F$6=\"CIUGC\",IF('Blank - Request Form'!E214=0,\"\",'Blank - Request Form'!E214),IF('Blank - Request Form'!$F$7=\"CIUGC\",IF('Blank - Request Form'!N214=0,\"\",'Blank - Request Form'!N214),\"\"))","v":""},{"$f":"IF('Blank - Request Form'!$F$6=\"CIUGC\",IF(OR('Blank - Request Form'!F214=\"000\",'Blank - Request Form'!F214=0),\"\",'Blank - Request Form'!F214),IF('Blank - Request Form'!$F$7=\"CIUGC\",IF(OR('Blank - Request Form'!O214=\"000\",'Blank - Request Form'!O214=0),\"\",'Blank - Request Form'!O214),\"\"))","v":""},{"$f":"IF('Blank - Request Form'!$F$6=\"CIUGC\",IF(OR('Blank - Request Form'!G214=\"0\",'Blank - Request Form'!G214=\"00000\",'Blank - Request Form'!G214=0),\"\",'Blank - Request Form'!G214),IF('Blank - Request Form'!$F$7=\"CIUGC\",IF(OR('Blank - Request Form'!P214=\"0\",'Blank - Request Form'!P214=\"00000\",'Blank - Request Form'!P214=0),\"\",'Blank - Request Form'!P214),\"\"))","v":""},{"$f":"IF('Blank - Request Form'!$F$6=\"CIUGC\",IF(OR('Blank - Request Form'!H214=\"0\",'Blank - Request Form'!H214=\"00000\",'Blank - Request Form'!H214=0),\"\",'Blank - Request Form'!H214),IF('Blank - Request Form'!$F$7=\"CIUGC\",IF(OR('Blank - Request Form'!Q214=\"0\",'Blank - Request Form'!Q214=\"00000\",'Blank - Request Form'!Q214=0),\"\",'Blank - Request Form'!Q214),\"\"))","v":""},{"$f":"IF('Blank - Request Form'!$F$6=\"CIUGC\",IF(OR('Blank - Request Form'!I214=\"0\",'Blank - Request Form'!I214=\"00000\",'Blank - Request Form'!I214=0),\"\",'Blank - Request Form'!I214),IF('Blank - Request Form'!$F$7=\"CIUGC\",IF(OR('Blank - Request Form'!R214=\"0\",'Blank - Request Form'!R214=\"00000\",'Blank - Request Form'!R214=0),\"\",'Blank - Request Form'!R214),\"\"))","v":""},null,{"$f":"IF('Blank - Request Form'!$F$6=\"CIUGC\",IF('Blank - Request Form'!K214=0,\"\",'Blank - Request Form'!K214),IF('Blank - Request Form'!$F$7=\"CIUGC\",IF('Blank - Request Form'!T214=0,\"\",'Blank - Request Form'!T214),\"\"))","v":""},null,null,null,{"$f":"IF(M180<>\"\",'Blank - Request Form'!$M$2,\"\")","v":""},{"$f":"IF('Blank - Request Form'!$F$6=\"CIUGC\",IF('Blank - Request Form'!J214=0,\"\",'Blank - Request Form'!J214),IF('Blank - Request Form'!$F$7=\"CIUGC\",IF('Blank - Request Form'!S214=0,\"\",'Blank - Request Form'!S214),\"\"))","v":""},"",180]
[{"$f":"IF('Blank - Request Form'!$F$6=\"CIUGC\",IF('Blank - Request Form'!D215=0,\"\",'Blank - Request Form'!D215),IF('Blank - Request Form'!$F$7=\"CIUGC\",IF('Blank - Request Form'!M215=0,\"\",'Blank - Request Form'!M215),\"\"))","v":""},{"$f":"IF('Blank - Request Form'!$F$6=\"CIUGC\",IF('Blank - Request Form'!E215=0,\"\",'Blank - Request Form'!E215),IF('Blank - Request Form'!$F$7=\"CIUGC\",IF('Blank - Request Form'!N215=0,\"\",'Blank - Request Form'!N215),\"\"))","v":""},{"$f":"IF('Blank - Request Form'!$F$6=\"CIUGC\",IF(OR('Blank - Request Form'!F215=\"000\",'Blank - Request Form'!F215=0),\"\",'Blank - Request Form'!F215),IF('Blank - Request Form'!$F$7=\"CIUGC\",IF(OR('Blank - Request Form'!O215=\"000\",'Blank - Request Form'!O215=0),\"\",'Blank - Request Form'!O215),\"\"))","v":""},{"$f":"IF('Blank - Request Form'!$F$6=\"CIUGC\",IF(OR('Blank - Request Form'!G215=\"0\",'Blank - Request Form'!G215=\"00000\",'Blank - Request Form'!G215=0),\"\",'Blank - Request Form'!G215),IF('Blank - Request Form'!$F$7=\"CIUGC\",IF(OR('Blank - Request Form'!P215=\"0\",'Blank - Request Form'!P215=\"00000\",'Blank - Request Form'!P215=0),\"\",'Blank - Request Form'!P215),\"\"))","v":""},{"$f":"IF('Blank - Request Form'!$F$6=\"CIUGC\",IF(OR('Blank - Request Form'!H215=\"0\",'Blank - Request Form'!H215=\"00000\",'Blank - Request Form'!H215=0),\"\",'Blank - Request Form'!H215),IF('Blank - Request Form'!$F$7=\"CIUGC\",IF(OR('Blank - Request Form'!Q215=\"0\",'Blank - Request Form'!Q215=\"00000\",'Blank - Request Form'!Q215=0),\"\",'Blank - Request Form'!Q215),\"\"))","v":""},{"$f":"IF('Blank - Request Form'!$F$6=\"CIUGC\",IF(OR('Blank - Request Form'!I215=\"0\",'Blank - Request Form'!I215=\"00000\",'Blank - Request Form'!I215=0),\"\",'Blank - Request Form'!I215),IF('Blank - Request Form'!$F$7=\"CIUGC\",IF(OR('Blank - Request Form'!R215=\"0\",'Blank - Request Form'!R215=\"00000\",'Blank - Request Form'!R215=0),\"\",'Blank - Request Form'!R215),\"\"))","v":""},null,{"$f":"IF('Blank - Request Form'!$F$6=\"CIUGC\",IF('Blank - Request Form'!K215=0,\"\",'Blank - Request Form'!K215),IF('Blank - Request Form'!$F$7=\"CIUGC\",IF('Blank - Request Form'!T215=0,\"\",'Blank - Request Form'!T215),\"\"))","v":""},null,null,null,{"$f":"IF(M181<>\"\",'Blank - Request Form'!$M$2,\"\")","v":""},{"$f":"IF('Blank - Request Form'!$F$6=\"CIUGC\",IF('Blank - Request Form'!J215=0,\"\",'Blank - Request Form'!J215),IF('Blank - Request Form'!$F$7=\"CIUGC\",IF('Blank - Request Form'!S215=0,\"\",'Blank - Request Form'!S215),\"\"))","v":""},"",181]
[{"$f":"IF('Blank - Request Form'!$F$6=\"CIUGC\",IF('Blank - Request Form'!D216=0,\"\",'Blank - Request Form'!D216),IF('Blank - Request Form'!$F$7=\"CIUGC\",IF('Blank - Request Form'!M216=0,\"\",'Blank - Request Form'!M216),\"\"))","v":""},{"$f":"IF('Blank - Request Form'!$F$6=\"CIUGC\",IF('Blank - Request Form'!E216=0,\"\",'Blank - Request Form'!E216),IF('Blank - Request Form'!$F$7=\"CIUGC\",IF('Blank - Request Form'!N216=0,\"\",'Blank - Request Form'!N216),\"\"))","v":""},{"$f":"IF('Blank - Request Form'!$F$6=\"CIUGC\",IF(OR('Blank - Request Form'!F216=\"000\",'Blank - Request Form'!F216=0),\"\",'Blank - Request Form'!F216),IF('Blank - Request Form'!$F$7=\"CIUGC\",IF(OR('Blank - Request Form'!O216=\"000\",'Blank - Request Form'!O216=0),\"\",'Blank - Request Form'!O216),\"\"))","v":""},{"$f":"IF('Blank - Request Form'!$F$6=\"CIUGC\",IF(OR('Blank - Request Form'!G216=\"0\",'Blank - Request Form'!G216=\"00000\",'Blank - Request Form'!G216=0),\"\",'Blank - Request Form'!G216),IF('Blank - Request Form'!$F$7=\"CIUGC\",IF(OR('Blank - Request Form'!P216=\"0\",'Blank - Request Form'!P216=\"00000\",'Blank - Request Form'!P216=0),\"\",'Blank - Request Form'!P216),\"\"))","v":""},{"$f":"IF('Blank - Request Form'!$F$6=\"CIUGC\",IF(OR('Blank - Request Form'!H216=\"0\",'Blank - Request Form'!H216=\"00000\",'Blank - Request Form'!H216=0),\"\",'Blank - Request Form'!H216),IF('Blank - Request Form'!$F$7=\"CIUGC\",IF(OR('Blank - Request Form'!Q216=\"0\",'Blank - Request Form'!Q216=\"00000\",'Blank - Request Form'!Q216=0),\"\",'Blank - Request Form'!Q216),\"\"))","v":""},{"$f":"IF('Blank - Request Form'!$F$6=\"CIUGC\",IF(OR('Blank - Request Form'!I216=\"0\",'Blank - Request Form'!I216=\"00000\",'Blank - Request Form'!I216=0),\"\",'Blank - Request Form'!I216),IF('Blank - Request Form'!$F$7=\"CIUGC\",IF(OR('Blank - Request Form'!R216=\"0\",'Blank - Request Form'!R216=\"00000\",'Blank - Request Form'!R216=0),\"\",'Blank - Request Form'!R216),\"\"))","v":""},null,{"$f":"IF('Blank - Request Form'!$F$6=\"CIUGC\",IF('Blank - Request Form'!K216=0,\"\",'Blank - Request Form'!K216),IF('Blank - Request Form'!$F$7=\"CIUGC\",IF('Blank - Request Form'!T216=0,\"\",'Blank - Request Form'!T216),\"\"))","v":""},null,null,null,{"$f":"IF(M182<>\"\",'Blank - Request Form'!$M$2,\"\")","v":""},{"$f":"IF('Blank - Request Form'!$F$6=\"CIUGC\",IF('Blank - Request Form'!J216=0,\"\",'Blank - Request Form'!J216),IF('Blank - Request Form'!$F$7=\"CIUGC\",IF('Blank - Request Form'!S216=0,\"\",'Blank - Request Form'!S216),\"\"))","v":""},"",182]
[{"$f":"IF('Blank - Request Form'!$F$6=\"CIUGC\",IF('Blank - Request Form'!D217=0,\"\",'Blank - Request Form'!D217),IF('Blank - Request Form'!$F$7=\"CIUGC\",IF('Blank - Request Form'!M217=0,\"\",'Blank - Request Form'!M217),\"\"))","v":""},{"$f":"IF('Blank - Request Form'!$F$6=\"CIUGC\",IF('Blank - Request Form'!E217=0,\"\",'Blank - Request Form'!E217),IF('Blank - Request Form'!$F$7=\"CIUGC\",IF('Blank - Request Form'!N217=0,\"\",'Blank - Request Form'!N217),\"\"))","v":""},{"$f":"IF('Blank - Request Form'!$F$6=\"CIUGC\",IF(OR('Blank - Request Form'!F217=\"000\",'Blank - Request Form'!F217=0),\"\",'Blank - Request Form'!F217),IF('Blank - Request Form'!$F$7=\"CIUGC\",IF(OR('Blank - Request Form'!O217=\"000\",'Blank - Request Form'!O217=0),\"\",'Blank - Request Form'!O217),\"\"))","v":""},{"$f":"IF('Blank - Request Form'!$F$6=\"CIUGC\",IF(OR('Blank - Request Form'!G217=\"0\",'Blank - Request Form'!G217=\"00000\",'Blank - Request Form'!G217=0),\"\",'Blank - Request Form'!G217),IF('Blank - Request Form'!$F$7=\"CIUGC\",IF(OR('Blank - Request Form'!P217=\"0\",'Blank - Request Form'!P217=\"00000\",'Blank - Request Form'!P217=0),\"\",'Blank - Request Form'!P217),\"\"))","v":""},{"$f":"IF('Blank - Request Form'!$F$6=\"CIUGC\",IF(OR('Blank - Request Form'!H217=\"0\",'Blank - Request Form'!H217=\"00000\",'Blank - Request Form'!H217=0),\"\",'Blank - Request Form'!H217),IF('Blank - Request Form'!$F$7=\"CIUGC\",IF(OR('Blank - Request Form'!Q217=\"0\",'Blank - Request Form'!Q217=\"00000\",'Blank - Request Form'!Q217=0),\"\",'Blank - Request Form'!Q217),\"\"))","v":""},{"$f":"IF('Blank - Request Form'!$F$6=\"CIUGC\",IF(OR('Blank - Request Form'!I217=\"0\",'Blank - Request Form'!I217=\"00000\",'Blank - Request Form'!I217=0),\"\",'Blank - Request Form'!I217),IF('Blank - Request Form'!$F$7=\"CIUGC\",IF(OR('Blank - Request Form'!R217=\"0\",'Blank - Request Form'!R217=\"00000\",'Blank - Request Form'!R217=0),\"\",'Blank - Request Form'!R217),\"\"))","v":""},null,{"$f":"IF('Blank - Request Form'!$F$6=\"CIUGC\",IF('Blank - Request Form'!K217=0,\"\",'Blank - Request Form'!K217),IF('Blank - Request Form'!$F$7=\"CIUGC\",IF('Blank - Request Form'!T217=0,\"\",'Blank - Request Form'!T217),\"\"))","v":""},null,null,null,{"$f":"IF(M183<>\"\",'Blank - Request Form'!$M$2,\"\")","v":""},{"$f":"IF('Blank - Request Form'!$F$6=\"CIUGC\",IF('Blank - Request Form'!J217=0,\"\",'Blank - Request Form'!J217),IF('Blank - Request Form'!$F$7=\"CIUGC\",IF('Blank - Request Form'!S217=0,\"\",'Blank - Request Form'!S217),\"\"))","v":""},"",183]
[{"$f":"IF('Blank - Request Form'!$F$6=\"CIUGC\",IF('Blank - Request Form'!D218=0,\"\",'Blank - Request Form'!D218),IF('Blank - Request Form'!$F$7=\"CIUGC\",IF('Blank - Request Form'!M218=0,\"\",'Blank - Request Form'!M218),\"\"))","v":""},{"$f":"IF('Blank - Request Form'!$F$6=\"CIUGC\",IF('Blank - Request Form'!E218=0,\"\",'Blank - Request Form'!E218),IF('Blank - Request Form'!$F$7=\"CIUGC\",IF('Blank - Request Form'!N218=0,\"\",'Blank - Request Form'!N218),\"\"))","v":""},{"$f":"IF('Blank - Request Form'!$F$6=\"CIUGC\",IF(OR('Blank - Request Form'!F218=\"000\",'Blank - Request Form'!F218=0),\"\",'Blank - Request Form'!F218),IF('Blank - Request Form'!$F$7=\"CIUGC\",IF(OR('Blank - Request Form'!O218=\"000\",'Blank - Request Form'!O218=0),\"\",'Blank - Request Form'!O218),\"\"))","v":""},{"$f":"IF('Blank - Request Form'!$F$6=\"CIUGC\",IF(OR('Blank - Request Form'!G218=\"0\",'Blank - Request Form'!G218=\"00000\",'Blank - Request Form'!G218=0),\"\",'Blank - Request Form'!G218),IF('Blank - Request Form'!$F$7=\"CIUGC\",IF(OR('Blank - Request Form'!P218=\"0\",'Blank - Request Form'!P218=\"00000\",'Blank - Request Form'!P218=0),\"\",'Blank - Request Form'!P218),\"\"))","v":""},{"$f":"IF('Blank - Request Form'!$F$6=\"CIUGC\",IF(OR('Blank - Request Form'!H218=\"0\",'Blank - Request Form'!H218=\"00000\",'Blank - Request Form'!H218=0),\"\",'Blank - Request Form'!H218),IF('Blank - Request Form'!$F$7=\"CIUGC\",IF(OR('Blank - Request Form'!Q218=\"0\",'Blank - Request Form'!Q218=\"00000\",'Blank - Request Form'!Q218=0),\"\",'Blank - Request Form'!Q218),\"\"))","v":""},{"$f":"IF('Blank - Request Form'!$F$6=\"CIUGC\",IF(OR('Blank - Request Form'!I218=\"0\",'Blank - Request Form'!I218=\"00000\",'Blank - Request Form'!I218=0),\"\",'Blank - Request Form'!I218),IF('Blank - Request Form'!$F$7=\"CIUGC\",IF(OR('Blank - Request Form'!R218=\"0\",'Blank - Request Form'!R218=\"00000\",'Blank - Request Form'!R218=0),\"\",'Blank - Request Form'!R218),\"\"))","v":""},null,{"$f":"IF('Blank - Request Form'!$F$6=\"CIUGC\",IF('Blank - Request Form'!K218=0,\"\",'Blank - Request Form'!K218),IF('Blank - Request Form'!$F$7=\"CIUGC\",IF('Blank - Request Form'!T218=0,\"\",'Blank - Request Form'!T218),\"\"))","v":""},null,null,null,{"$f":"IF(M184<>\"\",'Blank - Request Form'!$M$2,\"\")","v":""},{"$f":"IF('Blank - Request Form'!$F$6=\"CIUGC\",IF('Blank - Request Form'!J218=0,\"\",'Blank - Request Form'!J218),IF('Blank - Request Form'!$F$7=\"CIUGC\",IF('Blank - Request Form'!S218=0,\"\",'Blank - Request Form'!S218),\"\"))","v":""},"",184]
[{"$f":"IF('Blank - Request Form'!$F$6=\"CIUGC\",IF('Blank - Request Form'!D219=0,\"\",'Blank - Request Form'!D219),IF('Blank - Request Form'!$F$7=\"CIUGC\",IF('Blank - Request Form'!M219=0,\"\",'Blank - Request Form'!M219),\"\"))","v":""},{"$f":"IF('Blank - Request Form'!$F$6=\"CIUGC\",IF('Blank - Request Form'!E219=0,\"\",'Blank - Request Form'!E219),IF('Blank - Request Form'!$F$7=\"CIUGC\",IF('Blank - Request Form'!N219=0,\"\",'Blank - Request Form'!N219),\"\"))","v":""},{"$f":"IF('Blank - Request Form'!$F$6=\"CIUGC\",IF(OR('Blank - Request Form'!F219=\"000\",'Blank - Request Form'!F219=0),\"\",'Blank - Request Form'!F219),IF('Blank - Request Form'!$F$7=\"CIUGC\",IF(OR('Blank - Request Form'!O219=\"000\",'Blank - Request Form'!O219=0),\"\",'Blank - Request Form'!O219),\"\"))","v":""},{"$f":"IF('Blank - Request Form'!$F$6=\"CIUGC\",IF(OR('Blank - Request Form'!G219=\"0\",'Blank - Request Form'!G219=\"00000\",'Blank - Request Form'!G219=0),\"\",'Blank - Request Form'!G219),IF('Blank - Request Form'!$F$7=\"CIUGC\",IF(OR('Blank - Request Form'!P219=\"0\",'Blank - Request Form'!P219=\"00000\",'Blank - Request Form'!P219=0),\"\",'Blank - Request Form'!P219),\"\"))","v":""},{"$f":"IF('Blank - Request Form'!$F$6=\"CIUGC\",IF(OR('Blank - Request Form'!H219=\"0\",'Blank - Request Form'!H219=\"00000\",'Blank - Request Form'!H219=0),\"\",'Blank - Request Form'!H219),IF('Blank - Request Form'!$F$7=\"CIUGC\",IF(OR('Blank - Request Form'!Q219=\"0\",'Blank - Request Form'!Q219=\"00000\",'Blank - Request Form'!Q219=0),\"\",'Blank - Request Form'!Q219),\"\"))","v":""},{"$f":"IF('Blank - Request Form'!$F$6=\"CIUGC\",IF(OR('Blank - Request Form'!I219=\"0\",'Blank - Request Form'!I219=\"00000\",'Blank - Request Form'!I219=0),\"\",'Blank - Request Form'!I219),IF('Blank - Request Form'!$F$7=\"CIUGC\",IF(OR('Blank - Request Form'!R219=\"0\",'Blank - Request Form'!R219=\"00000\",'Blank - Request Form'!R219=0),\"\",'Blank - Request Form'!R219),\"\"))","v":""},null,{"$f":"IF('Blank - Request Form'!$F$6=\"CIUGC\",IF('Blank - Request Form'!K219=0,\"\",'Blank - Request Form'!K219),IF('Blank - Request Form'!$F$7=\"CIUGC\",IF('Blank - Request Form'!T219=0,\"\",'Blank - Request Form'!T219),\"\"))","v":""},null,null,null,{"$f":"IF(M185<>\"\",'Blank - Request Form'!$M$2,\"\")","v":""},{"$f":"IF('Blank - Request Form'!$F$6=\"CIUGC\",IF('Blank - Request Form'!J219=0,\"\",'Blank - Request Form'!J219),IF('Blank - Request Form'!$F$7=\"CIUGC\",IF('Blank - Request Form'!S219=0,\"\",'Blank - Request Form'!S219),\"\"))","v":""},"",185]
[{"$f":"IF('Blank - Request Form'!$F$6=\"CIUGC\",IF('Blank - Request Form'!D220=0,\"\",'Blank - Request Form'!D220),IF('Blank - Request Form'!$F$7=\"CIUGC\",IF('Blank - Request Form'!M220=0,\"\",'Blank - Request Form'!M220),\"\"))","v":""},{"$f":"IF('Blank - Request Form'!$F$6=\"CIUGC\",IF('Blank - Request Form'!E220=0,\"\",'Blank - Request Form'!E220),IF('Blank - Request Form'!$F$7=\"CIUGC\",IF('Blank - Request Form'!N220=0,\"\",'Blank - Request Form'!N220),\"\"))","v":""},{"$f":"IF('Blank - Request Form'!$F$6=\"CIUGC\",IF(OR('Blank - Request Form'!F220=\"000\",'Blank - Request Form'!F220=0),\"\",'Blank - Request Form'!F220),IF('Blank - Request Form'!$F$7=\"CIUGC\",IF(OR('Blank - Request Form'!O220=\"000\",'Blank - Request Form'!O220=0),\"\",'Blank - Request Form'!O220),\"\"))","v":""},{"$f":"IF('Blank - Request Form'!$F$6=\"CIUGC\",IF(OR('Blank - Request Form'!G220=\"0\",'Blank - Request Form'!G220=\"00000\",'Blank - Request Form'!G220=0),\"\",'Blank - Request Form'!G220),IF('Blank - Request Form'!$F$7=\"CIUGC\",IF(OR('Blank - Request Form'!P220=\"0\",'Blank - Request Form'!P220=\"00000\",'Blank - Request Form'!P220=0),\"\",'Blank - Request Form'!P220),\"\"))","v":""},{"$f":"IF('Blank - Request Form'!$F$6=\"CIUGC\",IF(OR('Blank - Request Form'!H220=\"0\",'Blank - Request Form'!H220=\"00000\",'Blank - Request Form'!H220=0),\"\",'Blank - Request Form'!H220),IF('Blank - Request Form'!$F$7=\"CIUGC\",IF(OR('Blank - Request Form'!Q220=\"0\",'Blank - Request Form'!Q220=\"00000\",'Blank - Request Form'!Q220=0),\"\",'Blank - Request Form'!Q220),\"\"))","v":""},{"$f":"IF('Blank - Request Form'!$F$6=\"CIUGC\",IF(OR('Blank - Request Form'!I220=\"0\",'Blank - Request Form'!I220=\"00000\",'Blank - Request Form'!I220=0),\"\",'Blank - Request Form'!I220),IF('Blank - Request Form'!$F$7=\"CIUGC\",IF(OR('Blank - Request Form'!R220=\"0\",'Blank - Request Form'!R220=\"00000\",'Blank - Request Form'!R220=0),\"\",'Blank - Request Form'!R220),\"\"))","v":""},null,{"$f":"IF('Blank - Request Form'!$F$6=\"CIUGC\",IF('Blank - Request Form'!K220=0,\"\",'Blank - Request Form'!K220),IF('Blank - Request Form'!$F$7=\"CIUGC\",IF('Blank - Request Form'!T220=0,\"\",'Blank - Request Form'!T220),\"\"))","v":""},null,null,null,{"$f":"IF(M186<>\"\",'Blank - Request Form'!$M$2,\"\")","v":""},{"$f":"IF('Blank - Request Form'!$F$6=\"CIUGC\",IF('Blank - Request Form'!J220=0,\"\",'Blank - Request Form'!J220),IF('Blank - Request Form'!$F$7=\"CIUGC\",IF('Blank - Request Form'!S220=0,\"\",'Blank - Request Form'!S220),\"\"))","v":""},"",186]
[{"$f":"IF('Blank - Request Form'!$F$6=\"CIUGC\",IF('Blank - Request Form'!D221=0,\"\",'Blank - Request Form'!D221),IF('Blank - Request Form'!$F$7=\"CIUGC\",IF('Blank - Request Form'!M221=0,\"\",'Blank - Request Form'!M221),\"\"))","v":""},{"$f":"IF('Blank - Request Form'!$F$6=\"CIUGC\",IF('Blank - Request Form'!E221=0,\"\",'Blank - Request Form'!E221),IF('Blank - Request Form'!$F$7=\"CIUGC\",IF('Blank - Request Form'!N221=0,\"\",'Blank - Request Form'!N221),\"\"))","v":""},{"$f":"IF('Blank - Request Form'!$F$6=\"CIUGC\",IF(OR('Blank - Request Form'!F221=\"000\",'Blank - Request Form'!F221=0),\"\",'Blank - Request Form'!F221),IF('Blank - Request Form'!$F$7=\"CIUGC\",IF(OR('Blank - Request Form'!O221=\"000\",'Blank - Request Form'!O221=0),\"\",'Blank - Request Form'!O221),\"\"))","v":""},{"$f":"IF('Blank - Request Form'!$F$6=\"CIUGC\",IF(OR('Blank - Request Form'!G221=\"0\",'Blank - Request Form'!G221=\"00000\",'Blank - Request Form'!G221=0),\"\",'Blank - Request Form'!G221),IF('Blank - Request Form'!$F$7=\"CIUGC\",IF(OR('Blank - Request Form'!P221=\"0\",'Blank - Request Form'!P221=\"00000\",'Blank - Request Form'!P221=0),\"\",'Blank - Request Form'!P221),\"\"))","v":""},{"$f":"IF('Blank - Request Form'!$F$6=\"CIUGC\",IF(OR('Blank - Request Form'!H221=\"0\",'Blank - Request Form'!H221=\"00000\",'Blank - Request Form'!H221=0),\"\",'Blank - Request Form'!H221),IF('Blank - Request Form'!$F$7=\"CIUGC\",IF(OR('Blank - Request Form'!Q221=\"0\",'Blank - Request Form'!Q221=\"00000\",'Blank - Request Form'!Q221=0),\"\",'Blank - Request Form'!Q221),\"\"))","v":""},{"$f":"IF('Blank - Request Form'!$F$6=\"CIUGC\",IF(OR('Blank - Request Form'!I221=\"0\",'Blank - Request Form'!I221=\"00000\",'Blank - Request Form'!I221=0),\"\",'Blank - Request Form'!I221),IF('Blank - Request Form'!$F$7=\"CIUGC\",IF(OR('Blank - Request Form'!R221=\"0\",'Blank - Request Form'!R221=\"00000\",'Blank - Request Form'!R221=0),\"\",'Blank - Request Form'!R221),\"\"))","v":""},null,{"$f":"IF('Blank - Request Form'!$F$6=\"CIUGC\",IF('Blank - Request Form'!K221=0,\"\",'Blank - Request Form'!K221),IF('Blank - Request Form'!$F$7=\"CIUGC\",IF('Blank - Request Form'!T221=0,\"\",'Blank - Request Form'!T221),\"\"))","v":""},null,null,null,{"$f":"IF(M187<>\"\",'Blank - Request Form'!$M$2,\"\")","v":""},{"$f":"IF('Blank - Request Form'!$F$6=\"CIUGC\",IF('Blank - Request Form'!J221=0,\"\",'Blank - Request Form'!J221),IF('Blank - Request Form'!$F$7=\"CIUGC\",IF('Blank - Request Form'!S221=0,\"\",'Blank - Request Form'!S221),\"\"))","v":""},"",187]
[{"$f":"IF('Blank - Request Form'!$F$6=\"CIUGC\",IF('Blank - Request Form'!D222=0,\"\",'Blank - Request Form'!D222),IF('Blank - Request Form'!$F$7=\"CIUGC\",IF('Blank - Request Form'!M222=0,\"\",'Blank - Request Form'!M222),\"\"))","v":""},{"$f":"IF('Blank - Request Form'!$F$6=\"CIUGC\",IF('Blank - Request Form'!E222=0,\"\",'Blank - Request Form'!E222),IF('Blank - Request Form'!$F$7=\"CIUGC\",IF('Blank - Request Form'!N222=0,\"\",'Blank - Request Form'!N222),\"\"))","v":""},{"$f":"IF('Blank - Request Form'!$F$6=\"CIUGC\",IF(OR('Blank - Request Form'!F222=\"000\",'Blank - Request Form'!F222=0),\"\",'Blank - Request Form'!F222),IF('Blank - Request Form'!$F$7=\"CIUGC\",IF(OR('Blank - Request Form'!O222=\"000\",'Blank - Request Form'!O222=0),\"\",'Blank - Request Form'!O222),\"\"))","v":""},{"$f":"IF('Blank - Request Form'!$F$6=\"CIUGC\",IF(OR('Blank - Request Form'!G222=\"0\",'Blank - Request Form'!G222=\"00000\",'Blank - Request Form'!G222=0),\"\",'Blank - Request Form'!G222),IF('Blank - Request Form'!$F$7=\"CIUGC\",IF(OR('Blank - Request Form'!P222=\"0\",'Blank - Request Form'!P222=\"00000\",'Blank - Request Form'!P222=0),\"\",'Blank - Request Form'!P222),\"\"))","v":""},{"$f":"IF('Blank - Request Form'!$F$6=\"CIUGC\",IF(OR('Blank - Request Form'!H222=\"0\",'Blank - Request Form'!H222=\"00000\",'Blank - Request Form'!H222=0),\"\",'Blank - Request Form'!H222),IF('Blank - Request Form'!$F$7=\"CIUGC\",IF(OR('Blank - Request Form'!Q222=\"0\",'Blank - Request Form'!Q222=\"00000\",'Blank - Request Form'!Q222=0),\"\",'Blank - Request Form'!Q222),\"\"))","v":""},{"$f":"IF('Blank - Request Form'!$F$6=\"CIUGC\",IF(OR('Blank - Request Form'!I222=\"0\",'Blank - Request Form'!I222=\"00000\",'Blank - Request Form'!I222=0),\"\",'Blank - Request Form'!I222),IF('Blank - Request Form'!$F$7=\"CIUGC\",IF(OR('Blank - Request Form'!R222=\"0\",'Blank - Request Form'!R222=\"00000\",'Blank - Request Form'!R222=0),\"\",'Blank - Request Form'!R222),\"\"))","v":""},null,{"$f":"IF('Blank - Request Form'!$F$6=\"CIUGC\",IF('Blank - Request Form'!K222=0,\"\",'Blank - Request Form'!K222),IF('Blank - Request Form'!$F$7=\"CIUGC\",IF('Blank - Request Form'!T222=0,\"\",'Blank - Request Form'!T222),\"\"))","v":""},null,null,null,{"$f":"IF(M188<>\"\",'Blank - Request Form'!$M$2,\"\")","v":""},{"$f":"IF('Blank - Request Form'!$F$6=\"CIUGC\",IF('Blank - Request Form'!J222=0,\"\",'Blank - Request Form'!J222),IF('Blank - Request Form'!$F$7=\"CIUGC\",IF('Blank - Request Form'!S222=0,\"\",'Blank - Request Form'!S222),\"\"))","v":""},"",188]
[{"$f":"IF('Blank - Request Form'!$F$6=\"CIUGC\",IF('Blank - Request Form'!D223=0,\"\",'Blank - Request Form'!D223),IF('Blank - Request Form'!$F$7=\"CIUGC\",IF('Blank - Request Form'!M223=0,\"\",'Blank - Request Form'!M223),\"\"))","v":""},{"$f":"IF('Blank - Request Form'!$F$6=\"CIUGC\",IF('Blank - Request Form'!E223=0,\"\",'Blank - Request Form'!E223),IF('Blank - Request Form'!$F$7=\"CIUGC\",IF('Blank - Request Form'!N223=0,\"\",'Blank - Request Form'!N223),\"\"))","v":""},{"$f":"IF('Blank - Request Form'!$F$6=\"CIUGC\",IF(OR('Blank - Request Form'!F223=\"000\",'Blank - Request Form'!F223=0),\"\",'Blank - Request Form'!F223),IF('Blank - Request Form'!$F$7=\"CIUGC\",IF(OR('Blank - Request Form'!O223=\"000\",'Blank - Request Form'!O223=0),\"\",'Blank - Request Form'!O223),\"\"))","v":""},{"$f":"IF('Blank - Request Form'!$F$6=\"CIUGC\",IF(OR('Blank - Request Form'!G223=\"0\",'Blank - Request Form'!G223=\"00000\",'Blank - Request Form'!G223=0),\"\",'Blank - Request Form'!G223),IF('Blank - Request Form'!$F$7=\"CIUGC\",IF(OR('Blank - Request Form'!P223=\"0\",'Blank - Request Form'!P223=\"00000\",'Blank - Request Form'!P223=0),\"\",'Blank - Request Form'!P223),\"\"))","v":""},{"$f":"IF('Blank - Request Form'!$F$6=\"CIUGC\",IF(OR('Blank - Request Form'!H223=\"0\",'Blank - Request Form'!H223=\"00000\",'Blank - Request Form'!H223=0),\"\",'Blank - Request Form'!H223),IF('Blank - Request Form'!$F$7=\"CIUGC\",IF(OR('Blank - Request Form'!Q223=\"0\",'Blank - Request Form'!Q223=\"00000\",'Blank - Request Form'!Q223=0),\"\",'Blank - Request Form'!Q223),\"\"))","v":""},{"$f":"IF('Blank - Request Form'!$F$6=\"CIUGC\",IF(OR('Blank - Request Form'!I223=\"0\",'Blank - Request Form'!I223=\"00000\",'Blank - Request Form'!I223=0),\"\",'Blank - Request Form'!I223),IF('Blank - Request Form'!$F$7=\"CIUGC\",IF(OR('Blank - Request Form'!R223=\"0\",'Blank - Request Form'!R223=\"00000\",'Blank - Request Form'!R223=0),\"\",'Blank - Request Form'!R223),\"\"))","v":""},null,{"$f":"IF('Blank - Request Form'!$F$6=\"CIUGC\",IF('Blank - Request Form'!K223=0,\"\",'Blank - Request Form'!K223),IF('Blank - Request Form'!$F$7=\"CIUGC\",IF('Blank - Request Form'!T223=0,\"\",'Blank - Request Form'!T223),\"\"))","v":""},null,null,null,{"$f":"IF(M189<>\"\",'Blank - Request Form'!$M$2,\"\")","v":""},{"$f":"IF('Blank - Request Form'!$F$6=\"CIUGC\",IF('Blank - Request Form'!J223=0,\"\",'Blank - Request Form'!J223),IF('Blank - Request Form'!$F$7=\"CIUGC\",IF('Blank - Request Form'!S223=0,\"\",'Blank - Request Form'!S223),\"\"))","v":""},"",189]
[{"$f":"IF('Blank - Request Form'!$F$6=\"CIUGC\",IF('Blank - Request Form'!D224=0,\"\",'Blank - Request Form'!D224),IF('Blank - Request Form'!$F$7=\"CIUGC\",IF('Blank - Request Form'!M224=0,\"\",'Blank - Request Form'!M224),\"\"))","v":""},{"$f":"IF('Blank - Request Form'!$F$6=\"CIUGC\",IF('Blank - Request Form'!E224=0,\"\",'Blank - Request Form'!E224),IF('Blank - Request Form'!$F$7=\"CIUGC\",IF('Blank - Request Form'!N224=0,\"\",'Blank - Request Form'!N224),\"\"))","v":""},{"$f":"IF('Blank - Request Form'!$F$6=\"CIUGC\",IF(OR('Blank - Request Form'!F224=\"000\",'Blank - Request Form'!F224=0),\"\",'Blank - Request Form'!F224),IF('Blank - Request Form'!$F$7=\"CIUGC\",IF(OR('Blank - Request Form'!O224=\"000\",'Blank - Request Form'!O224=0),\"\",'Blank - Request Form'!O224),\"\"))","v":""},{"$f":"IF('Blank - Request Form'!$F$6=\"CIUGC\",IF(OR('Blank - Request Form'!G224=\"0\",'Blank - Request Form'!G224=\"00000\",'Blank - Request Form'!G224=0),\"\",'Blank - Request Form'!G224),IF('Blank - Request Form'!$F$7=\"CIUGC\",IF(OR('Blank - Request Form'!P224=\"0\",'Blank - Request Form'!P224=\"00000\",'Blank - Request Form'!P224=0),\"\",'Blank - Request Form'!P224),\"\"))","v":""},{"$f":"IF('Blank - Request Form'!$F$6=\"CIUGC\",IF(OR('Blank - Request Form'!H224=\"0\",'Blank - Request Form'!H224=\"00000\",'Blank - Request Form'!H224=0),\"\",'Blank - Request Form'!H224),IF('Blank - Request Form'!$F$7=\"CIUGC\",IF(OR('Blank - Request Form'!Q224=\"0\",'Blank - Request Form'!Q224=\"00000\",'Blank - Request Form'!Q224=0),\"\",'Blank - Request Form'!Q224),\"\"))","v":""},{"$f":"IF('Blank - Request Form'!$F$6=\"CIUGC\",IF(OR('Blank - Request Form'!I224=\"0\",'Blank - Request Form'!I224=\"00000\",'Blank - Request Form'!I224=0),\"\",'Blank - Request Form'!I224),IF('Blank - Request Form'!$F$7=\"CIUGC\",IF(OR('Blank - Request Form'!R224=\"0\",'Blank - Request Form'!R224=\"00000\",'Blank - Request Form'!R224=0),\"\",'Blank - Request Form'!R224),\"\"))","v":""},null,{"$f":"IF('Blank - Request Form'!$F$6=\"CIUGC\",IF('Blank - Request Form'!K224=0,\"\",'Blank - Request Form'!K224),IF('Blank - Request Form'!$F$7=\"CIUGC\",IF('Blank - Request Form'!T224=0,\"\",'Blank - Request Form'!T224),\"\"))","v":""},null,null,null,{"$f":"IF(M190<>\"\",'Blank - Request Form'!$M$2,\"\")","v":""},{"$f":"IF('Blank - Request Form'!$F$6=\"CIUGC\",IF('Blank - Request Form'!J224=0,\"\",'Blank - Request Form'!J224),IF('Blank - Request Form'!$F$7=\"CIUGC\",IF('Blank - Request Form'!S224=0,\"\",'Blank - Request Form'!S224),\"\"))","v":""},"",190]
[{"$f":"IF('Blank - Request Form'!$F$6=\"CIUGC\",IF('Blank - Request Form'!D225=0,\"\",'Blank - Request Form'!D225),IF('Blank - Request Form'!$F$7=\"CIUGC\",IF('Blank - Request Form'!M225=0,\"\",'Blank - Request Form'!M225),\"\"))","v":""},{"$f":"IF('Blank - Request Form'!$F$6=\"CIUGC\",IF('Blank - Request Form'!E225=0,\"\",'Blank - Request Form'!E225),IF('Blank - Request Form'!$F$7=\"CIUGC\",IF('Blank - Request Form'!N225=0,\"\",'Blank - Request Form'!N225),\"\"))","v":""},{"$f":"IF('Blank - Request Form'!$F$6=\"CIUGC\",IF(OR('Blank - Request Form'!F225=\"000\",'Blank - Request Form'!F225=0),\"\",'Blank - Request Form'!F225),IF('Blank - Request Form'!$F$7=\"CIUGC\",IF(OR('Blank - Request Form'!O225=\"000\",'Blank - Request Form'!O225=0),\"\",'Blank - Request Form'!O225),\"\"))","v":""},{"$f":"IF('Blank - Request Form'!$F$6=\"CIUGC\",IF(OR('Blank - Request Form'!G225=\"0\",'Blank - Request Form'!G225=\"00000\",'Blank - Request Form'!G225=0),\"\",'Blank - Request Form'!G225),IF('Blank - Request Form'!$F$7=\"CIUGC\",IF(OR('Blank - Request Form'!P225=\"0\",'Blank - Request Form'!P225=\"00000\",'Blank - Request Form'!P225=0),\"\",'Blank - Request Form'!P225),\"\"))","v":""},{"$f":"IF('Blank - Request Form'!$F$6=\"CIUGC\",IF(OR('Blank - Request Form'!H225=\"0\",'Blank - Request Form'!H225=\"00000\",'Blank - Request Form'!H225=0),\"\",'Blank - Request Form'!H225),IF('Blank - Request Form'!$F$7=\"CIUGC\",IF(OR('Blank - Request Form'!Q225=\"0\",'Blank - Request Form'!Q225=\"00000\",'Blank - Request Form'!Q225=0),\"\",'Blank - Request Form'!Q225),\"\"))","v":""},{"$f":"IF('Blank - Request Form'!$F$6=\"CIUGC\",IF(OR('Blank - Request Form'!I225=\"0\",'Blank - Request Form'!I225=\"00000\",'Blank - Request Form'!I225=0),\"\",'Blank - Request Form'!I225),IF('Blank - Request Form'!$F$7=\"CIUGC\",IF(OR('Blank - Request Form'!R225=\"0\",'Blank - Request Form'!R225=\"00000\",'Blank - Request Form'!R225=0),\"\",'Blank - Request Form'!R225),\"\"))","v":""},null,{"$f":"IF('Blank - Request Form'!$F$6=\"CIUGC\",IF('Blank - Request Form'!K225=0,\"\",'Blank - Request Form'!K225),IF('Blank - Request Form'!$F$7=\"CIUGC\",IF('Blank - Request Form'!T225=0,\"\",'Blank - Request Form'!T225),\"\"))","v":""},null,null,null,{"$f":"IF(M191<>\"\",'Blank - Request Form'!$M$2,\"\")","v":""},{"$f":"IF('Blank - Request Form'!$F$6=\"CIUGC\",IF('Blank - Request Form'!J225=0,\"\",'Blank - Request Form'!J225),IF('Blank - Request Form'!$F$7=\"CIUGC\",IF('Blank - Request Form'!S225=0,\"\",'Blank - Request Form'!S225),\"\"))","v":""},"",191]
[{"$f":"IF('Blank - Request Form'!$F$6=\"CIUGC\",IF('Blank - Request Form'!D226=0,\"\",'Blank - Request Form'!D226),IF('Blank - Request Form'!$F$7=\"CIUGC\",IF('Blank - Request Form'!M226=0,\"\",'Blank - Request Form'!M226),\"\"))","v":""},{"$f":"IF('Blank - Request Form'!$F$6=\"CIUGC\",IF('Blank - Request Form'!E226=0,\"\",'Blank - Request Form'!E226),IF('Blank - Request Form'!$F$7=\"CIUGC\",IF('Blank - Request Form'!N226=0,\"\",'Blank - Request Form'!N226),\"\"))","v":""},{"$f":"IF('Blank - Request Form'!$F$6=\"CIUGC\",IF(OR('Blank - Request Form'!F226=\"000\",'Blank - Request Form'!F226=0),\"\",'Blank - Request Form'!F226),IF('Blank - Request Form'!$F$7=\"CIUGC\",IF(OR('Blank - Request Form'!O226=\"000\",'Blank - Request Form'!O226=0),\"\",'Blank - Request Form'!O226),\"\"))","v":""},{"$f":"IF('Blank - Request Form'!$F$6=\"CIUGC\",IF(OR('Blank - Request Form'!G226=\"0\",'Blank - Request Form'!G226=\"00000\",'Blank - Request Form'!G226=0),\"\",'Blank - Request Form'!G226),IF('Blank - Request Form'!$F$7=\"CIUGC\",IF(OR('Blank - Request Form'!P226=\"0\",'Blank - Request Form'!P226=\"00000\",'Blank - Request Form'!P226=0),\"\",'Blank - Request Form'!P226),\"\"))","v":""},{"$f":"IF('Blank - Request Form'!$F$6=\"CIUGC\",IF(OR('Blank - Request Form'!H226=\"0\",'Blank - Request Form'!H226=\"00000\",'Blank - Request Form'!H226=0),\"\",'Blank - Request Form'!H226),IF('Blank - Request Form'!$F$7=\"CIUGC\",IF(OR('Blank - Request Form'!Q226=\"0\",'Blank - Request Form'!Q226=\"00000\",'Blank - Request Form'!Q226=0),\"\",'Blank - Request Form'!Q226),\"\"))","v":""},{"$f":"IF('Blank - Request Form'!$F$6=\"CIUGC\",IF(OR('Blank - Request Form'!I226=\"0\",'Blank - Request Form'!I226=\"00000\",'Blank - Request Form'!I226=0),\"\",'Blank - Request Form'!I226),IF('Blank - Request Form'!$F$7=\"CIUGC\",IF(OR('Blank - Request Form'!R226=\"0\",'Blank - Request Form'!R226=\"00000\",'Blank - Request Form'!R226=0),\"\",'Blank - Request Form'!R226),\"\"))","v":""},null,{"$f":"IF('Blank - Request Form'!$F$6=\"CIUGC\",IF('Blank - Request Form'!K226=0,\"\",'Blank - Request Form'!K226),IF('Blank - Request Form'!$F$7=\"CIUGC\",IF('Blank - Request Form'!T226=0,\"\",'Blank - Request Form'!T226),\"\"))","v":""},null,null,null,{"$f":"IF(M192<>\"\",'Blank - Request Form'!$M$2,\"\")","v":""},{"$f":"IF('Blank - Request Form'!$F$6=\"CIUGC\",IF('Blank - Request Form'!J226=0,\"\",'Blank - Request Form'!J226),IF('Blank - Request Form'!$F$7=\"CIUGC\",IF('Blank - Request Form'!S226=0,\"\",'Blank - Request Form'!S226),\"\"))","v":""},"",192]
[{"$f":"IF('Blank - Request Form'!$F$6=\"CIUGC\",IF('Blank - Request Form'!D227=0,\"\",'Blank - Request Form'!D227),IF('Blank - Request Form'!$F$7=\"CIUGC\",IF('Blank - Request Form'!M227=0,\"\",'Blank - Request Form'!M227),\"\"))","v":""},{"$f":"IF('Blank - Request Form'!$F$6=\"CIUGC\",IF('Blank - Request Form'!E227=0,\"\",'Blank - Request Form'!E227),IF('Blank - Request Form'!$F$7=\"CIUGC\",IF('Blank - Request Form'!N227=0,\"\",'Blank - Request Form'!N227),\"\"))","v":""},{"$f":"IF('Blank - Request Form'!$F$6=\"CIUGC\",IF(OR('Blank - Request Form'!F227=\"000\",'Blank - Request Form'!F227=0),\"\",'Blank - Request Form'!F227),IF('Blank - Request Form'!$F$7=\"CIUGC\",IF(OR('Blank - Request Form'!O227=\"000\",'Blank - Request Form'!O227=0),\"\",'Blank - Request Form'!O227),\"\"))","v":""},{"$f":"IF('Blank - Request Form'!$F$6=\"CIUGC\",IF(OR('Blank - Request Form'!G227=\"0\",'Blank - Request Form'!G227=\"00000\",'Blank - Request Form'!G227=0),\"\",'Blank - Request Form'!G227),IF('Blank - Request Form'!$F$7=\"CIUGC\",IF(OR('Blank - Request Form'!P227=\"0\",'Blank - Request Form'!P227=\"00000\",'Blank - Request Form'!P227=0),\"\",'Blank - Request Form'!P227),\"\"))","v":""},{"$f":"IF('Blank - Request Form'!$F$6=\"CIUGC\",IF(OR('Blank - Request Form'!H227=\"0\",'Blank - Request Form'!H227=\"00000\",'Blank - Request Form'!H227=0),\"\",'Blank - Request Form'!H227),IF('Blank - Request Form'!$F$7=\"CIUGC\",IF(OR('Blank - Request Form'!Q227=\"0\",'Blank - Request Form'!Q227=\"00000\",'Blank - Request Form'!Q227=0),\"\",'Blank - Request Form'!Q227),\"\"))","v":""},{"$f":"IF('Blank - Request Form'!$F$6=\"CIUGC\",IF(OR('Blank - Request Form'!I227=\"0\",'Blank - Request Form'!I227=\"00000\",'Blank - Request Form'!I227=0),\"\",'Blank - Request Form'!I227),IF('Blank - Request Form'!$F$7=\"CIUGC\",IF(OR('Blank - Request Form'!R227=\"0\",'Blank - Request Form'!R227=\"00000\",'Blank - Request Form'!R227=0),\"\",'Blank - Request Form'!R227),\"\"))","v":""},null,{"$f":"IF('Blank - Request Form'!$F$6=\"CIUGC\",IF('Blank - Request Form'!K227=0,\"\",'Blank - Request Form'!K227),IF('Blank - Request Form'!$F$7=\"CIUGC\",IF('Blank - Request Form'!T227=0,\"\",'Blank - Request Form'!T227),\"\"))","v":""},null,null,null,{"$f":"IF(M193<>\"\",'Blank - Request Form'!$M$2,\"\")","v":""},{"$f":"IF('Blank - Request Form'!$F$6=\"CIUGC\",IF('Blank - Request Form'!J227=0,\"\",'Blank - Request Form'!J227),IF('Blank - Request Form'!$F$7=\"CIUGC\",IF('Blank - Request Form'!S227=0,\"\",'Blank - Request Form'!S227),\"\"))","v":""},"",193]
[{"$f":"IF('Blank - Request Form'!$F$6=\"CIUGC\",IF('Blank - Request Form'!D228=0,\"\",'Blank - Request Form'!D228),IF('Blank - Request Form'!$F$7=\"CIUGC\",IF('Blank - Request Form'!M228=0,\"\",'Blank - Request Form'!M228),\"\"))","v":""},{"$f":"IF('Blank - Request Form'!$F$6=\"CIUGC\",IF('Blank - Request Form'!E228=0,\"\",'Blank - Request Form'!E228),IF('Blank - Request Form'!$F$7=\"CIUGC\",IF('Blank - Request Form'!N228=0,\"\",'Blank - Request Form'!N228),\"\"))","v":""},{"$f":"IF('Blank - Request Form'!$F$6=\"CIUGC\",IF(OR('Blank - Request Form'!F228=\"000\",'Blank - Request Form'!F228=0),\"\",'Blank - Request Form'!F228),IF('Blank - Request Form'!$F$7=\"CIUGC\",IF(OR('Blank - Request Form'!O228=\"000\",'Blank - Request Form'!O228=0),\"\",'Blank - Request Form'!O228),\"\"))","v":""},{"$f":"IF('Blank - Request Form'!$F$6=\"CIUGC\",IF(OR('Blank - Request Form'!G228=\"0\",'Blank - Request Form'!G228=\"00000\",'Blank - Request Form'!G228=0),\"\",'Blank - Request Form'!G228),IF('Blank - Request Form'!$F$7=\"CIUGC\",IF(OR('Blank - Request Form'!P228=\"0\",'Blank - Request Form'!P228=\"00000\",'Blank - Request Form'!P228=0),\"\",'Blank - Request Form'!P228),\"\"))","v":""},{"$f":"IF('Blank - Request Form'!$F$6=\"CIUGC\",IF(OR('Blank - Request Form'!H228=\"0\",'Blank - Request Form'!H228=\"00000\",'Blank - Request Form'!H228=0),\"\",'Blank - Request Form'!H228),IF('Blank - Request Form'!$F$7=\"CIUGC\",IF(OR('Blank - Request Form'!Q228=\"0\",'Blank - Request Form'!Q228=\"00000\",'Blank - Request Form'!Q228=0),\"\",'Blank - Request Form'!Q228),\"\"))","v":""},{"$f":"IF('Blank - Request Form'!$F$6=\"CIUGC\",IF(OR('Blank - Request Form'!I228=\"0\",'Blank - Request Form'!I228=\"00000\",'Blank - Request Form'!I228=0),\"\",'Blank - Request Form'!I228),IF('Blank - Request Form'!$F$7=\"CIUGC\",IF(OR('Blank - Request Form'!R228=\"0\",'Blank - Request Form'!R228=\"00000\",'Blank - Request Form'!R228=0),\"\",'Blank - Request Form'!R228),\"\"))","v":""},null,{"$f":"IF('Blank - Request Form'!$F$6=\"CIUGC\",IF('Blank - Request Form'!K228=0,\"\",'Blank - Request Form'!K228),IF('Blank - Request Form'!$F$7=\"CIUGC\",IF('Blank - Request Form'!T228=0,\"\",'Blank - Request Form'!T228),\"\"))","v":""},null,null,null,{"$f":"IF(M194<>\"\",'Blank - Request Form'!$M$2,\"\")","v":""},{"$f":"IF('Blank - Request Form'!$F$6=\"CIUGC\",IF('Blank - Request Form'!J228=0,\"\",'Blank - Request Form'!J228),IF('Blank - Request Form'!$F$7=\"CIUGC\",IF('Blank - Request Form'!S228=0,\"\",'Blank - Request Form'!S228),\"\"))","v":""},"",194]
[{"$f":"IF('Blank - Request Form'!$F$6=\"CIUGC\",IF('Blank - Request Form'!D229=0,\"\",'Blank - Request Form'!D229),IF('Blank - Request Form'!$F$7=\"CIUGC\",IF('Blank - Request Form'!M229=0,\"\",'Blank - Request Form'!M229),\"\"))","v":""},{"$f":"IF('Blank - Request Form'!$F$6=\"CIUGC\",IF('Blank - Request Form'!E229=0,\"\",'Blank - Request Form'!E229),IF('Blank - Request Form'!$F$7=\"CIUGC\",IF('Blank - Request Form'!N229=0,\"\",'Blank - Request Form'!N229),\"\"))","v":""},{"$f":"IF('Blank - Request Form'!$F$6=\"CIUGC\",IF(OR('Blank - Request Form'!F229=\"000\",'Blank - Request Form'!F229=0),\"\",'Blank - Request Form'!F229),IF('Blank - Request Form'!$F$7=\"CIUGC\",IF(OR('Blank - Request Form'!O229=\"000\",'Blank - Request Form'!O229=0),\"\",'Blank - Request Form'!O229),\"\"))","v":""},{"$f":"IF('Blank - Request Form'!$F$6=\"CIUGC\",IF(OR('Blank - Request Form'!G229=\"0\",'Blank - Request Form'!G229=\"00000\",'Blank - Request Form'!G229=0),\"\",'Blank - Request Form'!G229),IF('Blank - Request Form'!$F$7=\"CIUGC\",IF(OR('Blank - Request Form'!P229=\"0\",'Blank - Request Form'!P229=\"00000\",'Blank - Request Form'!P229=0),\"\",'Blank - Request Form'!P229),\"\"))","v":""},{"$f":"IF('Blank - Request Form'!$F$6=\"CIUGC\",IF(OR('Blank - Request Form'!H229=\"0\",'Blank - Request Form'!H229=\"00000\",'Blank - Request Form'!H229=0),\"\",'Blank - Request Form'!H229),IF('Blank - Request Form'!$F$7=\"CIUGC\",IF(OR('Blank - Request Form'!Q229=\"0\",'Blank - Request Form'!Q229=\"00000\",'Blank - Request Form'!Q229=0),\"\",'Blank - Request Form'!Q229),\"\"))","v":""},{"$f":"IF('Blank - Request Form'!$F$6=\"CIUGC\",IF(OR('Blank - Request Form'!I229=\"0\",'Blank - Request Form'!I229=\"00000\",'Blank - Request Form'!I229=0),\"\",'Blank - Request Form'!I229),IF('Blank - Request Form'!$F$7=\"CIUGC\",IF(OR('Blank - Request Form'!R229=\"0\",'Blank - Request Form'!R229=\"00000\",'Blank - Request Form'!R229=0),\"\",'Blank - Request Form'!R229),\"\"))","v":""},null,{"$f":"IF('Blank - Request Form'!$F$6=\"CIUGC\",IF('Blank - Request Form'!K229=0,\"\",'Blank - Request Form'!K229),IF('Blank - Request Form'!$F$7=\"CIUGC\",IF('Blank - Request Form'!T229=0,\"\",'Blank - Request Form'!T229),\"\"))","v":""},null,null,null,{"$f":"IF(M195<>\"\",'Blank - Request Form'!$M$2,\"\")","v":""},{"$f":"IF('Blank - Request Form'!$F$6=\"CIUGC\",IF('Blank - Request Form'!J229=0,\"\",'Blank - Request Form'!J229),IF('Blank - Request Form'!$F$7=\"CIUGC\",IF('Blank - Request Form'!S229=0,\"\",'Blank - Request Form'!S229),\"\"))","v":""},"",195]
[{"$f":"IF('Blank - Request Form'!$F$6=\"CIUGC\",IF('Blank - Request Form'!D230=0,\"\",'Blank - Request Form'!D230),IF('Blank - Request Form'!$F$7=\"CIUGC\",IF('Blank - Request Form'!M230=0,\"\",'Blank - Request Form'!M230),\"\"))","v":""},{"$f":"IF('Blank - Request Form'!$F$6=\"CIUGC\",IF('Blank - Request Form'!E230=0,\"\",'Blank - Request Form'!E230),IF('Blank - Request Form'!$F$7=\"CIUGC\",IF('Blank - Request Form'!N230=0,\"\",'Blank - Request Form'!N230),\"\"))","v":""},{"$f":"IF('Blank - Request Form'!$F$6=\"CIUGC\",IF(OR('Blank - Request Form'!F230=\"000\",'Blank - Request Form'!F230=0),\"\",'Blank - Request Form'!F230),IF('Blank - Request Form'!$F$7=\"CIUGC\",IF(OR('Blank - Request Form'!O230=\"000\",'Blank - Request Form'!O230=0),\"\",'Blank - Request Form'!O230),\"\"))","v":""},{"$f":"IF('Blank - Request Form'!$F$6=\"CIUGC\",IF(OR('Blank - Request Form'!G230=\"0\",'Blank - Request Form'!G230=\"00000\",'Blank - Request Form'!G230=0),\"\",'Blank - Request Form'!G230),IF('Blank - Request Form'!$F$7=\"CIUGC\",IF(OR('Blank - Request Form'!P230=\"0\",'Blank - Request Form'!P230=\"00000\",'Blank - Request Form'!P230=0),\"\",'Blank - Request Form'!P230),\"\"))","v":""},{"$f":"IF('Blank - Request Form'!$F$6=\"CIUGC\",IF(OR('Blank - Request Form'!H230=\"0\",'Blank - Request Form'!H230=\"00000\",'Blank - Request Form'!H230=0),\"\",'Blank - Request Form'!H230),IF('Blank - Request Form'!$F$7=\"CIUGC\",IF(OR('Blank - Request Form'!Q230=\"0\",'Blank - Request Form'!Q230=\"00000\",'Blank - Request Form'!Q230=0),\"\",'Blank - Request Form'!Q230),\"\"))","v":""},{"$f":"IF('Blank - Request Form'!$F$6=\"CIUGC\",IF(OR('Blank - Request Form'!I230=\"0\",'Blank - Request Form'!I230=\"00000\",'Blank - Request Form'!I230=0),\"\",'Blank - Request Form'!I230),IF('Blank - Request Form'!$F$7=\"CIUGC\",IF(OR('Blank - Request Form'!R230=\"0\",'Blank - Request Form'!R230=\"00000\",'Blank - Request Form'!R230=0),\"\",'Blank - Request Form'!R230),\"\"))","v":""},null,{"$f":"IF('Blank - Request Form'!$F$6=\"CIUGC\",IF('Blank - Request Form'!K230=0,\"\",'Blank - Request Form'!K230),IF('Blank - Request Form'!$F$7=\"CIUGC\",IF('Blank - Request Form'!T230=0,\"\",'Blank - Request Form'!T230),\"\"))","v":""},null,null,null,{"$f":"IF(M196<>\"\",'Blank - Request Form'!$M$2,\"\")","v":""},{"$f":"IF('Blank - Request Form'!$F$6=\"CIUGC\",IF('Blank - Request Form'!J230=0,\"\",'Blank - Request Form'!J230),IF('Blank - Request Form'!$F$7=\"CIUGC\",IF('Blank - Request Form'!S230=0,\"\",'Blank - Request Form'!S230),\"\"))","v":""},"",196]
[{"$f":"IF('Blank - Request Form'!$F$6=\"CIUGC\",IF('Blank - Request Form'!D231=0,\"\",'Blank - Request Form'!D231),IF('Blank - Request Form'!$F$7=\"CIUGC\",IF('Blank - Request Form'!M231=0,\"\",'Blank - Request Form'!M231),\"\"))","v":""},{"$f":"IF('Blank - Request Form'!$F$6=\"CIUGC\",IF('Blank - Request Form'!E231=0,\"\",'Blank - Request Form'!E231),IF('Blank - Request Form'!$F$7=\"CIUGC\",IF('Blank - Request Form'!N231=0,\"\",'Blank - Request Form'!N231),\"\"))","v":""},{"$f":"IF('Blank - Request Form'!$F$6=\"CIUGC\",IF(OR('Blank - Request Form'!F231=\"000\",'Blank - Request Form'!F231=0),\"\",'Blank - Request Form'!F231),IF('Blank - Request Form'!$F$7=\"CIUGC\",IF(OR('Blank - Request Form'!O231=\"000\",'Blank - Request Form'!O231=0),\"\",'Blank - Request Form'!O231),\"\"))","v":""},{"$f":"IF('Blank - Request Form'!$F$6=\"CIUGC\",IF(OR('Blank - Request Form'!G231=\"0\",'Blank - Request Form'!G231=\"00000\",'Blank - Request Form'!G231=0),\"\",'Blank - Request Form'!G231),IF('Blank - Request Form'!$F$7=\"CIUGC\",IF(OR('Blank - Request Form'!P231=\"0\",'Blank - Request Form'!P231=\"00000\",'Blank - Request Form'!P231=0),\"\",'Blank - Request Form'!P231),\"\"))","v":""},{"$f":"IF('Blank - Request Form'!$F$6=\"CIUGC\",IF(OR('Blank - Request Form'!H231=\"0\",'Blank - Request Form'!H231=\"00000\",'Blank - Request Form'!H231=0),\"\",'Blank - Request Form'!H231),IF('Blank - Request Form'!$F$7=\"CIUGC\",IF(OR('Blank - Request Form'!Q231=\"0\",'Blank - Request Form'!Q231=\"00000\",'Blank - Request Form'!Q231=0),\"\",'Blank - Request Form'!Q231),\"\"))","v":""},{"$f":"IF('Blank - Request Form'!$F$6=\"CIUGC\",IF(OR('Blank - Request Form'!I231=\"0\",'Blank - Request Form'!I231=\"00000\",'Blank - Request Form'!I231=0),\"\",'Blank - Request Form'!I231),IF('Blank - Request Form'!$F$7=\"CIUGC\",IF(OR('Blank - Request Form'!R231=\"0\",'Blank - Request Form'!R231=\"00000\",'Blank - Request Form'!R231=0),\"\",'Blank - Request Form'!R231),\"\"))","v":""},null,{"$f":"IF('Blank - Request Form'!$F$6=\"CIUGC\",IF('Blank - Request Form'!K231=0,\"\",'Blank - Request Form'!K231),IF('Blank - Request Form'!$F$7=\"CIUGC\",IF('Blank - Request Form'!T231=0,\"\",'Blank - Request Form'!T231),\"\"))","v":""},null,null,null,{"$f":"IF(M197<>\"\",'Blank - Request Form'!$M$2,\"\")","v":""},{"$f":"IF('Blank - Request Form'!$F$6=\"CIUGC\",IF('Blank - Request Form'!J231=0,\"\",'Blank - Request Form'!J231),IF('Blank - Request Form'!$F$7=\"CIUGC\",IF('Blank - Request Form'!S231=0,\"\",'Blank - Request Form'!S231),\"\"))","v":""},"",197]
[{"$f":"IF('Blank - Request Form'!$F$6=\"CIUGC\",IF('Blank - Request Form'!D232=0,\"\",'Blank - Request Form'!D232),IF('Blank - Request Form'!$F$7=\"CIUGC\",IF('Blank - Request Form'!M232=0,\"\",'Blank - Request Form'!M232),\"\"))","v":""},{"$f":"IF('Blank - Request Form'!$F$6=\"CIUGC\",IF('Blank - Request Form'!E232=0,\"\",'Blank - Request Form'!E232),IF('Blank - Request Form'!$F$7=\"CIUGC\",IF('Blank - Request Form'!N232=0,\"\",'Blank - Request Form'!N232),\"\"))","v":""},{"$f":"IF('Blank - Request Form'!$F$6=\"CIUGC\",IF(OR('Blank - Request Form'!F232=\"000\",'Blank - Request Form'!F232=0),\"\",'Blank - Request Form'!F232),IF('Blank - Request Form'!$F$7=\"CIUGC\",IF(OR('Blank - Request Form'!O232=\"000\",'Blank - Request Form'!O232=0),\"\",'Blank - Request Form'!O232),\"\"))","v":""},{"$f":"IF('Blank - Request Form'!$F$6=\"CIUGC\",IF(OR('Blank - Request Form'!G232=\"0\",'Blank - Request Form'!G232=\"00000\",'Blank - Request Form'!G232=0),\"\",'Blank - Request Form'!G232),IF('Blank - Request Form'!$F$7=\"CIUGC\",IF(OR('Blank - Request Form'!P232=\"0\",'Blank - Request Form'!P232=\"00000\",'Blank - Request Form'!P232=0),\"\",'Blank - Request Form'!P232),\"\"))","v":""},{"$f":"IF('Blank - Request Form'!$F$6=\"CIUGC\",IF(OR('Blank - Request Form'!H232=\"0\",'Blank - Request Form'!H232=\"00000\",'Blank - Request Form'!H232=0),\"\",'Blank - Request Form'!H232),IF('Blank - Request Form'!$F$7=\"CIUGC\",IF(OR('Blank - Request Form'!Q232=\"0\",'Blank - Request Form'!Q232=\"00000\",'Blank - Request Form'!Q232=0),\"\",'Blank - Request Form'!Q232),\"\"))","v":""},{"$f":"IF('Blank - Request Form'!$F$6=\"CIUGC\",IF(OR('Blank - Request Form'!I232=\"0\",'Blank - Request Form'!I232=\"00000\",'Blank - Request Form'!I232=0),\"\",'Blank - Request Form'!I232),IF('Blank - Request Form'!$F$7=\"CIUGC\",IF(OR('Blank - Request Form'!R232=\"0\",'Blank - Request Form'!R232=\"00000\",'Blank - Request Form'!R232=0),\"\",'Blank - Request Form'!R232),\"\"))","v":""},null,{"$f":"IF('Blank - Request Form'!$F$6=\"CIUGC\",IF('Blank - Request Form'!K232=0,\"\",'Blank - Request Form'!K232),IF('Blank - Request Form'!$F$7=\"CIUGC\",IF('Blank - Request Form'!T232=0,\"\",'Blank - Request Form'!T232),\"\"))","v":""},null,null,null,{"$f":"IF(M198<>\"\",'Blank - Request Form'!$M$2,\"\")","v":""},{"$f":"IF('Blank - Request Form'!$F$6=\"CIUGC\",IF('Blank - Request Form'!J232=0,\"\",'Blank - Request Form'!J232),IF('Blank - Request Form'!$F$7=\"CIUGC\",IF('Blank - Request Form'!S232=0,\"\",'Blank - Request Form'!S232),\"\"))","v":""},"",198]
[{"$f":"IF('Blank - Request Form'!$F$6=\"CIUGC\",IF('Blank - Request Form'!D233=0,\"\",'Blank - Request Form'!D233),IF('Blank - Request Form'!$F$7=\"CIUGC\",IF('Blank - Request Form'!M233=0,\"\",'Blank - Request Form'!M233),\"\"))","v":""},{"$f":"IF('Blank - Request Form'!$F$6=\"CIUGC\",IF('Blank - Request Form'!E233=0,\"\",'Blank - Request Form'!E233),IF('Blank - Request Form'!$F$7=\"CIUGC\",IF('Blank - Request Form'!N233=0,\"\",'Blank - Request Form'!N233),\"\"))","v":""},{"$f":"IF('Blank - Request Form'!$F$6=\"CIUGC\",IF(OR('Blank - Request Form'!F233=\"000\",'Blank - Request Form'!F233=0),\"\",'Blank - Request Form'!F233),IF('Blank - Request Form'!$F$7=\"CIUGC\",IF(OR('Blank - Request Form'!O233=\"000\",'Blank - Request Form'!O233=0),\"\",'Blank - Request Form'!O233),\"\"))","v":""},{"$f":"IF('Blank - Request Form'!$F$6=\"CIUGC\",IF(OR('Blank - Request Form'!G233=\"0\",'Blank - Request Form'!G233=\"00000\",'Blank - Request Form'!G233=0),\"\",'Blank - Request Form'!G233),IF('Blank - Request Form'!$F$7=\"CIUGC\",IF(OR('Blank - Request Form'!P233=\"0\",'Blank - Request Form'!P233=\"00000\",'Blank - Request Form'!P233=0),\"\",'Blank - Request Form'!P233),\"\"))","v":""},{"$f":"IF('Blank - Request Form'!$F$6=\"CIUGC\",IF(OR('Blank - Request Form'!H233=\"0\",'Blank - Request Form'!H233=\"00000\",'Blank - Request Form'!H233=0),\"\",'Blank - Request Form'!H233),IF('Blank - Request Form'!$F$7=\"CIUGC\",IF(OR('Blank - Request Form'!Q233=\"0\",'Blank - Request Form'!Q233=\"00000\",'Blank - Request Form'!Q233=0),\"\",'Blank - Request Form'!Q233),\"\"))","v":""},{"$f":"IF('Blank - Request Form'!$F$6=\"CIUGC\",IF(OR('Blank - Request Form'!I233=\"0\",'Blank - Request Form'!I233=\"00000\",'Blank - Request Form'!I233=0),\"\",'Blank - Request Form'!I233),IF('Blank - Request Form'!$F$7=\"CIUGC\",IF(OR('Blank - Request Form'!R233=\"0\",'Blank - Request Form'!R233=\"00000\",'Blank - Request Form'!R233=0),\"\",'Blank - Request Form'!R233),\"\"))","v":""},null,{"$f":"IF('Blank - Request Form'!$F$6=\"CIUGC\",IF('Blank - Request Form'!K233=0,\"\",'Blank - Request Form'!K233),IF('Blank - Request Form'!$F$7=\"CIUGC\",IF('Blank - Request Form'!T233=0,\"\",'Blank - Request Form'!T233),\"\"))","v":""},null,null,null,{"$f":"IF(M199<>\"\",'Blank - Request Form'!$M$2,\"\")","v":""},{"$f":"IF('Blank - Request Form'!$F$6=\"CIUGC\",IF('Blank - Request Form'!J233=0,\"\",'Blank - Request Form'!J233),IF('Blank - Request Form'!$F$7=\"CIUGC\",IF('Blank - Request Form'!S233=0,\"\",'Blank - Request Form'!S233),\"\"))","v":""},"",199]
[{"$f":"IF('Blank - Request Form'!$F$6=\"CIUGC\",IF('Blank - Request Form'!D234=0,\"\",'Blank - Request Form'!D234),IF('Blank - Request Form'!$F$7=\"CIUGC\",IF('Blank - Request Form'!M234=0,\"\",'Blank - Request Form'!M234),\"\"))","v":""},{"$f":"IF('Blank - Request Form'!$F$6=\"CIUGC\",IF('Blank - Request Form'!E234=0,\"\",'Blank - Request Form'!E234),IF('Blank - Request Form'!$F$7=\"CIUGC\",IF('Blank - Request Form'!N234=0,\"\",'Blank - Request Form'!N234),\"\"))","v":""},{"$f":"IF('Blank - Request Form'!$F$6=\"CIUGC\",IF(OR('Blank - Request Form'!F234=\"000\",'Blank - Request Form'!F234=0),\"\",'Blank - Request Form'!F234),IF('Blank - Request Form'!$F$7=\"CIUGC\",IF(OR('Blank - Request Form'!O234=\"000\",'Blank - Request Form'!O234=0),\"\",'Blank - Request Form'!O234),\"\"))","v":""},{"$f":"IF('Blank - Request Form'!$F$6=\"CIUGC\",IF(OR('Blank - Request Form'!G234=\"0\",'Blank - Request Form'!G234=\"00000\",'Blank - Request Form'!G234=0),\"\",'Blank - Request Form'!G234),IF('Blank - Request Form'!$F$7=\"CIUGC\",IF(OR('Blank - Request Form'!P234=\"0\",'Blank - Request Form'!P234=\"00000\",'Blank - Request Form'!P234=0),\"\",'Blank - Request Form'!P234),\"\"))","v":""},{"$f":"IF('Blank - Request Form'!$F$6=\"CIUGC\",IF(OR('Blank - Request Form'!H234=\"0\",'Blank - Request Form'!H234=\"00000\",'Blank - Request Form'!H234=0),\"\",'Blank - Request Form'!H234),IF('Blank - Request Form'!$F$7=\"CIUGC\",IF(OR('Blank - Request Form'!Q234=\"0\",'Blank - Request Form'!Q234=\"00000\",'Blank - Request Form'!Q234=0),\"\",'Blank - Request Form'!Q234),\"\"))","v":""},{"$f":"IF('Blank - Request Form'!$F$6=\"CIUGC\",IF(OR('Blank - Request Form'!I234=\"0\",'Blank - Request Form'!I234=\"00000\",'Blank - Request Form'!I234=0),\"\",'Blank - Request Form'!I234),IF('Blank - Request Form'!$F$7=\"CIUGC\",IF(OR('Blank - Request Form'!R234=\"0\",'Blank - Request Form'!R234=\"00000\",'Blank - Request Form'!R234=0),\"\",'Blank - Request Form'!R234),\"\"))","v":""},null,{"$f":"IF('Blank - Request Form'!$F$6=\"CIUGC\",IF('Blank - Request Form'!K234=0,\"\",'Blank - Request Form'!K234),IF('Blank - Request Form'!$F$7=\"CIUGC\",IF('Blank - Request Form'!T234=0,\"\",'Blank - Request Form'!T234),\"\"))","v":""},null,null,null,{"$f":"IF(M200<>\"\",'Blank - Request Form'!$M$2,\"\")","v":""},{"$f":"IF('Blank - Request Form'!$F$6=\"CIUGC\",IF('Blank - Request Form'!J234=0,\"\",'Blank - Request Form'!J234),IF('Blank - Request Form'!$F$7=\"CIUGC\",IF('Blank - Request Form'!S234=0,\"\",'Blank - Request Form'!S234),\"\"))","v":""},"",200]
[{"$f":"IF('Blank - Request Form'!$F$6=\"CIUGC\",IF('Blank - Request Form'!D235=0,\"\",'Blank - Request Form'!D235),IF('Blank - Request Form'!$F$7=\"CIUGC\",IF('Blank - Request Form'!M235=0,\"\",'Blank - Request Form'!M235),\"\"))","v":""},{"$f":"IF('Blank - Request Form'!$F$6=\"CIUGC\",IF('Blank - Request Form'!E235=0,\"\",'Blank - Request Form'!E235),IF('Blank - Request Form'!$F$7=\"CIUGC\",IF('Blank - Request Form'!N235=0,\"\",'Blank - Request Form'!N235),\"\"))","v":""},{"$f":"IF('Blank - Request Form'!$F$6=\"CIUGC\",IF(OR('Blank - Request Form'!F235=\"000\",'Blank - Request Form'!F235=0),\"\",'Blank - Request Form'!F235),IF('Blank - Request Form'!$F$7=\"CIUGC\",IF(OR('Blank - Request Form'!O235=\"000\",'Blank - Request Form'!O235=0),\"\",'Blank - Request Form'!O235),\"\"))","v":""},{"$f":"IF('Blank - Request Form'!$F$6=\"CIUGC\",IF(OR('Blank - Request Form'!G235=\"0\",'Blank - Request Form'!G235=\"00000\",'Blank - Request Form'!G235=0),\"\",'Blank - Request Form'!G235),IF('Blank - Request Form'!$F$7=\"CIUGC\",IF(OR('Blank - Request Form'!P235=\"0\",'Blank - Request Form'!P235=\"00000\",'Blank - Request Form'!P235=0),\"\",'Blank - Request Form'!P235),\"\"))","v":""},{"$f":"IF('Blank - Request Form'!$F$6=\"CIUGC\",IF(OR('Blank - Request Form'!H235=\"0\",'Blank - Request Form'!H235=\"00000\",'Blank - Request Form'!H235=0),\"\",'Blank - Request Form'!H235),IF('Blank - Request Form'!$F$7=\"CIUGC\",IF(OR('Blank - Request Form'!Q235=\"0\",'Blank - Request Form'!Q235=\"00000\",'Blank - Request Form'!Q235=0),\"\",'Blank - Request Form'!Q235),\"\"))","v":""},{"$f":"IF('Blank - Request Form'!$F$6=\"CIUGC\",IF(OR('Blank - Request Form'!I235=\"0\",'Blank - Request Form'!I235=\"00000\",'Blank - Request Form'!I235=0),\"\",'Blank - Request Form'!I235),IF('Blank - Request Form'!$F$7=\"CIUGC\",IF(OR('Blank - Request Form'!R235=\"0\",'Blank - Request Form'!R235=\"00000\",'Blank - Request Form'!R235=0),\"\",'Blank - Request Form'!R235),\"\"))","v":""},null,{"$f":"IF('Blank - Request Form'!$F$6=\"CIUGC\",IF('Blank - Request Form'!K235=0,\"\",'Blank - Request Form'!K235),IF('Blank - Request Form'!$F$7=\"CIUGC\",IF('Blank - Request Form'!T235=0,\"\",'Blank - Request Form'!T235),\"\"))","v":""},null,null,null,{"$f":"IF(M201<>\"\",'Blank - Request Form'!$M$2,\"\")","v":""},{"$f":"IF('Blank - Request Form'!$F$6=\"CIUGC\",IF('Blank - Request Form'!J235=0,\"\",'Blank - Request Form'!J235),IF('Blank - Request Form'!$F$7=\"CIUGC\",IF('Blank - Request Form'!S235=0,\"\",'Blank - Request Form'!S235),\"\"))","v":""},"",201]

{"sheet":"ASI","index":5,"n_rows":201,"n_cols":16,"rows_kept":201,"cut":false,"hidden":true,"merged":[]}
[{"$f":"IF('Blank - Request Form'!$F$6=\"CIASI\",IF('Blank - Request Form'!D35=0,\"\",'Blank - Request Form'!D35),IF('Blank - Request Form'!$F$7=\"CIASI\",IF('Blank - Request Form'!M35=0,\"\",'Blank - Request Form'!M35),\"\"))","v":""},{"$f":"IF('Blank - Request Form'!$F$6=\"CIASI\",IF('Blank - Request Form'!E35=0,\"\",'Blank - Request Form'!E35),IF('Blank - Request Form'!$F$7=\"CIASI\",IF('Blank - Request Form'!N35=0,\"\",'Blank - Request Form'!N35),\"\"))","v":""},{"$f":"IF('Blank - Request Form'!$F$6=\"CIASI\",IF(OR('Blank - Request Form'!F35=\"000\",'Blank - Request Form'!F35=0),\"\",'Blank - Request Form'!F35),IF('Blank - Request Form'!$F$7=\"CIASI\",IF(OR('Blank - Request Form'!O35=\"000\",'Blank - Request Form'!O35=0),\"\",'Blank - Request Form'!O35),\"\"))","v":""},{"$f":"IF('Blank - Request Form'!$F$6=\"CIASI\",IF(OR('Blank - Request Form'!G35=\"0\",'Blank - Request Form'!G35=\"00000\",'Blank - Request Form'!G35=0),\"\",'Blank - Request Form'!G35),IF('Blank - Request Form'!$F$7=\"CIASI\",IF(OR('Blank - Request Form'!P35=\"0\",'Blank - Request Form'!P35=\"00000\",'Blank - Request Form'!P35=0),\"\",'Blank - Request Form'!P35),\"\"))","v":""},{"$f":"IF('Blank - Request Form'!$F$6=\"CIASI\",IF(OR('Blank - Request Form'!H35=\"0\",'Blank - Request Form'!H35=\"00000\",'Blank - Request Form'!H35=0),\"\",'Blank - Request Form'!H35),IF('Blank - Request Form'!$F$7=\"CIASI\",IF(OR('Blank - Request Form'!Q35=\"0\",'Blank - Request Form'!Q35=\"00000\",'Blank - Request Form'!Q35=0),\"\",'Blank - Request Form'!Q35),\"\"))","v":""},{"$f":"IF('Blank - Request Form'!$F$6=\"CIASI\",IF(OR('Blank - Request Form'!I35=\"0\",'Blank - Request Form'!I35=\"00000\",'Blank - Request Form'!I35=0),\"\",'Blank - Request Form'!I35),IF('Blank - Request Form'!$F$7=\"CIASI\",IF(OR('Blank - Request Form'!R35=\"0\",'Blank - Request Form'!R35=\"00000\",'Blank - Request Form'!R35=0),\"\",'Blank - Request Form'!R35),\"\"))","v":""},null,{"$f":"IF('Blank - Request Form'!$F$6=\"CIASI\",IF('Blank - Request Form'!K35=0,\"\",'Blank - Request Form'!K35),IF('Blank - Request Form'!$F$7=\"CIASI\",IF('Blank - Request Form'!T35=0,\"\",'Blank - Request Form'!T35),\"\"))","v":""},null,null,null,{"$f":"IF(M1<>\"\",'Blank - Request Form'!$M$2,\"\")","v":""},{"$f":"IF('Blank - Request Form'!$F$6=\"CIASI\",IF('Blank - Request Form'!J35=0,\"\",'Blank - Request Form'!J35),IF('Blank - Request Form'!$F$7=\"CIASI\",IF('Blank - Request Form'!S35=0,\"\",'Blank - Request Form'!S35),\"\"))","v":""},{"$f":"IF(M1<>\"\",O1,\"\")","v":""},1,"CIASI"]
[{"$f":"IF('Blank - Request Form'!$F$6=\"CIASI\",IF('Blank - Request Form'!D36=0,\"\",'Blank - Request Form'!D36),IF('Blank - Request Form'!$F$7=\"CIASI\",IF('Blank - Request Form'!M36=0,\"\",'Blank - Request Form'!M36),\"\"))","v":""},{"$f":"IF('Blank - Request Form'!$F$6=\"CIASI\",IF('Blank - Request Form'!E36=0,\"\",'Blank - Request Form'!E36),IF('Blank - Request Form'!$F$7=\"CIASI\",IF('Blank - Request Form'!N36=0,\"\",'Blank - Request Form'!N36),\"\"))","v":""},{"$f":"IF('Blank - Request Form'!$F$6=\"CIASI\",IF(OR('Blank - Request Form'!F36=\"000\",'Blank - Request Form'!F36=0),\"\",'Blank - Request Form'!F36),IF('Blank - Request Form'!$F$7=\"CIASI\",IF(OR('Blank - Request Form'!O36=\"000\",'Blank - Request Form'!O36=0),\"\",'Blank - Request Form'!O36),\"\"))","v":""},{"$f":"IF('Blank - Request Form'!$F$6=\"CIASI\",IF(OR('Blank - Request Form'!G36=\"0\",'Blank - Request Form'!G36=\"00000\",'Blank - Request Form'!G36=0),\"\",'Blank - Request Form'!G36),IF('Blank - Request Form'!$F$7=\"CIASI\",IF(OR('Blank - Request Form'!P36=\"0\",'Blank - Request Form'!P36=\"00000\",'Blank - Request Form'!P36=0),\"\",'Blank - Request Form'!P36),\"\"))","v":""},{"$f":"IF('Blank - Request Form'!$F$6=\"CIASI\",IF(OR('Blank - Request Form'!H36=\"0\",'Blank - Request Form'!H36=\"00000\",'Blank - Request Form'!H36=0),\"\",'Blank - Request Form'!H36),IF('Blank - Request Form'!$F$7=\"CIASI\",IF(OR('Blank - Request Form'!Q36=\"0\",'Blank - Request Form'!Q36=\"00000\",'Blank - Request Form'!Q36=0),\"\",'Blank - Request Form'!Q36),\"\"))","v":""},{"$f":"IF('Blank - Request Form'!$F$6=\"CIASI\",IF(OR('Blank - Request Form'!I36=\"0\",'Blank - Request Form'!I36=\"00000\",'Blank - Request Form'!I36=0),\"\",'Blank - Request Form'!I36),IF('Blank - Request Form'!$F$7=\"CIASI\",IF(OR('Blank - Request Form'!R36=\"0\",'Blank - Request Form'!R36=\"00000\",'Blank - Request Form'!R36=0),\"\",'Blank - Request Form'!R36),\"\"))","v":""},null,{"$f":"IF('Blank - Request Form'!$F$6=\"CIASI\",IF('Blank - Request Form'!K36=0,\"\",'Blank - Request Form'!K36),IF('Blank - Request Form'!$F$7=\"CIASI\",IF('Blank - Request Form'!T36=0,\"\",'Blank - Request Form'!T36),\"\"))","v":""},null,null,null,{"$f":"IF(M2<>\"\",'Blank - Request Form'!$M$2,\"\")","v":""},{"$f":"IF('Blank - Request Form'!$F$6=\"CIASI\",IF('Blank - Request Form'!J36=0,\"\",'Blank - Request Form'!J36),IF('Blank - Request Form'!$F$7=\"CIASI\",IF('Blank - Request Form'!S36=0,\"\",'Blank - Request Form'!S36),\"\"))","v":""},{"$f":"IF(M2<>\"\",O2,\"\")","v":""},2,{"$f":"LogNumber","v":0}]
[{"$f":"IF('Blank - Request Form'!$F$6=\"CIASI\",IF('Blank - Request Form'!D37=0,\"\",'Blank - Request Form'!D37),IF('Blank - Request Form'!$F$7=\"CIASI\",IF('Blank - Request Form'!M37=0,\"\",'Blank - Request Form'!M37),\"\"))","v":""},{"$f":"IF('Blank - Request Form'!$F$6=\"CIASI\",IF('Blank - Request Form'!E37=0,\"\",'Blank - Request Form'!E37),IF('Blank - Request Form'!$F$7=\"CIASI\",IF('Blank - Request Form'!N37=0,\"\",'Blank - Request Form'!N37),\"\"))","v":""},{"$f":"IF('Blank - Request Form'!$F$6=\"CIASI\",IF(OR('Blank - Request Form'!F37=\"000\",'Blank - Request Form'!F37=0),\"\",'Blank - Request Form'!F37),IF('Blank - Request Form'!$F$7=\"CIASI\",IF(OR('Blank - Request Form'!O37=\"000\",'Blank - Request Form'!O37=0),\"\",'Blank - Request Form'!O37),\"\"))","v":""},{"$f":"IF('Blank - Request Form'!$F$6=\"CIASI\",IF(OR('Blank - Request Form'!G37=\"0\",'Blank - Request Form'!G37=\"00000\",'Blank - Request Form'!G37=0),\"\",'Blank - Request Form'!G37),IF('Blank - Request Form'!$F$7=\"CIASI\",IF(OR('Blank - Request Form'!P37=\"0\",'Blank - Request Form'!P37=\"00000\",'Blank - Request Form'!P37=0),\"\",'Blank - Request Form'!P37),\"\"))","v":""},{"$f":"IF('Blank - Request Form'!$F$6=\"CIASI\",IF(OR('Blank - Request Form'!H37=\"0\",'Blank - Request Form'!H37=\"00000\",'Blank - Request Form'!H37=0),\"\",'Blank - Request Form'!H37),IF('Blank - Request Form'!$F$7=\"CIASI\",IF(OR('Blank - Request Form'!Q37=\"0\",'Blank - Request Form'!Q37=\"00000\",'Blank - Request Form'!Q37=0),\"\",'Blank - Request Form'!Q37),\"\"))","v":""},{"$f":"IF('Blank - Request Form'!$F$6=\"CIASI\",IF(OR('Blank - Request Form'!I37=\"0\",'Blank - Request Form'!I37=\"00000\",'Blank - Request Form'!I37=0),\"\",'Blank - Request Form'!I37),IF('Blank - Request Form'!$F$7=\"CIASI\",IF(OR('Blank - Request Form'!R37=\"0\",'Blank - Request Form'!R37=\"00000\",'Blank - Request Form'!R37=0),\"\",'Blank - Request Form'!R37),\"\"))","v":""},null,{"$f":"IF('Blank - Request Form'!$F$6=\"CIASI\",IF('Blank - Request Form'!K37=0,\"\",'Blank - Request Form'!K37),IF('Blank - Request Form'!$F$7=\"CIASI\",IF('Blank - Request Form'!T37=0,\"\",'Blank - Request Form'!T37),\"\"))","v":""},null,null,null,{"$f":"IF(M3<>\"\",'Blank - Request Form'!$M$2,\"\")","v":""},{"$f":"IF('Blank - Request Form'!$F$6=\"CIASI\",IF('Blank - Request Form'!J37=0,\"\",'Blank - Request Form'!J37),IF('Blank - Request Form'!$F$7=\"CIASI\",IF('Blank - Request Form'!S37=0,\"\",'Blank - Request Form'!S37),\"\"))","v":""},"",3]
[{"$f":"IF('Blank - Request Form'!$F$6=\"CIASI\",IF('Blank - Request Form'!D38=0,\"\",'Blank - Request Form'!D38),IF('Blank - Request Form'!$F$7=\"CIASI\",IF('Blank - Request Form'!M38=0,\"\",'Blank - Request Form'!M38),\"\"))","v":""},{"$f":"IF('Blank - Request Form'!$F$6=\"CIASI\",IF('Blank - Request Form'!E38=0,\"\",'Blank - Request Form'!E38),IF('Blank - Request Form'!$F$7=\"CIASI\",IF('Blank - Request Form'!N38=0,\"\",'Blank - Request Form'!N38),\"\"))","v":""},{"$f":"IF('Blank - Request Form'!$F$6=\"CIASI\",IF(OR('Blank - Request Form'!F38=\"000\",'Blank - Request Form'!F38=0),\"\",'Blank - Request Form'!F38),IF('Blank - Request Form'!$F$7=\"CIASI\",IF(OR('Blank - Request Form'!O38=\"000\",'Blank - Request Form'!O38=0),\"\",'Blank - Request Form'!O38),\"\"))","v":""},{"$f":"IF('Blank - Request Form'!$F$6=\"CIASI\",IF(OR('Blank - Request Form'!G38=\"0\",'Blank - Request Form'!G38=\"00000\",'Blank - Request Form'!G38=0),\"\",'Blank - Request Form'!G38),IF('Blank - Request Form'!$F$7=\"CIASI\",IF(OR('Blank - Request Form'!P38=\"0\",'Blank - Request Form'!P38=\"00000\",'Blank - Request Form'!P38=0),\"\",'Blank - Request Form'!P38),\"\"))","v":""},{"$f":"IF('Blank - Request Form'!$F$6=\"CIASI\",IF(OR('Blank - Request Form'!H38=\"0\",'Blank - Request Form'!H38=\"00000\",'Blank - Request Form'!H38=0),\"\",'Blank - Request Form'!H38),IF('Blank - Request Form'!$F$7=\"CIASI\",IF(OR('Blank - Request Form'!Q38=\"0\",'Blank - Request Form'!Q38=\"00000\",'Blank - Request Form'!Q38=0),\"\",'Blank - Request Form'!Q38),\"\"))","v":""},{"$f":"IF('Blank - Request Form'!$F$6=\"CIASI\",IF(OR('Blank - Request Form'!I38=\"0\",'Blank - Request Form'!I38=\"00000\",'Blank - Request Form'!I38=0),\"\",'Blank - Request Form'!I38),IF('Blank - Request Form'!$F$7=\"CIASI\",IF(OR('Blank - Request Form'!R38=\"0\",'Blank - Request Form'!R38=\"00000\",'Blank - Request Form'!R38=0),\"\",'Blank - Request Form'!R38),\"\"))","v":""},null,{"$f":"IF('Blank - Request Form'!$F$6=\"CIASI\",IF('Blank - Request Form'!K38=0,\"\",'Blank - Request Form'!K38),IF('Blank - Request Form'!$F$7=\"CIASI\",IF('Blank - Request Form'!T38=0,\"\",'Blank - Request Form'!T38),\"\"))","v":""},null,null,null,{"$f":"IF(M4<>\"\",'Blank - Request Form'!$M$2,\"\")","v":""},{"$f":"IF('Blank - Request Form'!$F$6=\"CIASI\",IF('Blank - Request Form'!J38=0,\"\",'Blank - Request Form'!J38),IF('Blank - Request Form'!$F$7=\"CIASI\",IF('Blank - Request Form'!S38=0,\"\",'Blank - Request Form'!S38),\"\"))","v":""},"",4]
[{"$f":"IF('Blank - Request Form'!$F$6=\"CIASI\",IF('Blank - Request Form'!D39=0,\"\",'Blank - Request Form'!D39),IF('Blank - Request Form'!$F$7=\"CIASI\",IF('Blank - Request Form'!M39=0,\"\",'Blank - Request Form'!M39),\"\"))","v":""},{"$f":"IF('Blank - Request Form'!$F$6=\"CIASI\",IF('Blank - Request Form'!E39=0,\"\",'Blank - Request Form'!E39),IF('Blank - Request Form'!$F$7=\"CIASI\",IF('Blank - Request Form'!N39=0,\"\",'Blank - Request Form'!N39),\"\"))","v":""},{"$f":"IF('Blank - Request Form'!$F$6=\"CIASI\",IF(OR('Blank - Request Form'!F39=\"000\",'Blank - Request Form'!F39=0),\"\",'Blank - Request Form'!F39),IF('Blank - Request Form'!$F$7=\"CIASI\",IF(OR('Blank - Request Form'!O39=\"000\",'Blank - Request Form'!O39=0),\"\",'Blank - Request Form'!O39),\"\"))","v":""},{"$f":"IF('Blank - Request Form'!$F$6=\"CIASI\",IF(OR('Blank - Request Form'!G39=\"0\",'Blank - Request Form'!G39=\"00000\",'Blank - Request Form'!G39=0),\"\",'Blank - Request Form'!G39),IF('Blank - Request Form'!$F$7=\"CIASI\",IF(OR('Blank - Request Form'!P39=\"0\",'Blank - Request Form'!P39=\"00000\",'Blank - Request Form'!P39=0),\"\",'Blank - Request Form'!P39),\"\"))","v":""},{"$f":"IF('Blank - Request Form'!$F$6=\"CIASI\",IF(OR('Blank - Request Form'!H39=\"0\",'Blank - Request Form'!H39=\"00000\",'Blank - Request Form'!H39=0),\"\",'Blank - Request Form'!H39),IF('Blank - Request Form'!$F$7=\"CIASI\",IF(OR('Blank - Request Form'!Q39=\"0\",'Blank - Request Form'!Q39=\"00000\",'Blank - Request Form'!Q39=0),\"\",'Blank - Request Form'!Q39),\"\"))","v":""},{"$f":"IF('Blank - Request Form'!$F$6=\"CIASI\",IF(OR('Blank - Request Form'!I39=\"0\",'Blank - Request Form'!I39=\"00000\",'Blank - Request Form'!I39=0),\"\",'Blank - Request Form'!I39),IF('Blank - Request Form'!$F$7=\"CIASI\",IF(OR('Blank - Request Form'!R39=\"0\",'Blank - Request Form'!R39=\"00000\",'Blank - Request Form'!R39=0),\"\",'Blank - Request Form'!R39),\"\"))","v":""},null,{"$f":"IF('Blank - Request Form'!$F$6=\"CIASI\",IF('Blank - Request Form'!K39=0,\"\",'Blank - Request Form'!K39),IF('Blank - Request Form'!$F$7=\"CIASI\",IF('Blank - Request Form'!T39=0,\"\",'Blank - Request Form'!T39),\"\"))","v":""},null,null,null,{"$f":"IF(M5<>\"\",'Blank - Request Form'!$M$2,\"\")","v":""},{"$f":"IF('Blank - Request Form'!$F$6=\"CIASI\",IF('Blank - Request Form'!J39=0,\"\",'Blank - Request Form'!J39),IF('Blank - Request Form'!$F$7=\"CIASI\",IF('Blank - Request Form'!S39=0,\"\",'Blank - Request Form'!S39),\"\"))","v":""},"",5]
[{"$f":"IF('Blank - Request Form'!$F$6=\"CIASI\",IF('Blank - Request Form'!D40=0,\"\",'Blank - Request Form'!D40),IF('Blank - Request Form'!$F$7=\"CIASI\",IF('Blank - Request Form'!M40=0,\"\",'Blank - Request Form'!M40),\"\"))","v":""},{"$f":"IF('Blank - Request Form'!$F$6=\"CIASI\",IF('Blank - Request Form'!E40=0,\"\",'Blank - Request Form'!E40),IF('Blank - Request Form'!$F$7=\"CIASI\",IF('Blank - Request Form'!N40=0,\"\",'Blank - Request Form'!N40),\"\"))","v":""},{"$f":"IF('Blank - Request Form'!$F$6=\"CIASI\",IF(OR('Blank - Request Form'!F40=\"000\",'Blank - Request Form'!F40=0),\"\",'Blank - Request Form'!F40),IF('Blank - Request Form'!$F$7=\"CIASI\",IF(OR('Blank - Request Form'!O40=\"000\",'Blank - Request Form'!O40=0),\"\",'Blank - Request Form'!O40),\"\"))","v":""},{"$f":"IF('Blank - Request Form'!$F$6=\"CIASI\",IF(OR('Blank - Request Form'!G40=\"0\",'Blank - Request Form'!G40=\"00000\",'Blank - Request Form'!G40=0),\"\",'Blank - Request Form'!G40),IF('Blank - Request Form'!$F$7=\"CIASI\",IF(OR('Blank - Request Form'!P40=\"0\",'Blank - Request Form'!P40=\"00000\",'Blank - Request Form'!P40=0),\"\",'Blank - Request Form'!P40),\"\"))","v":""},{"$f":"IF('Blank - Request Form'!$F$6=\"CIASI\",IF(OR('Blank - Request Form'!H40=\"0\",'Blank - Request Form'!H40=\"00000\",'Blank - Request Form'!H40=0),\"\",'Blank - Request Form'!H40),IF('Blank - Request Form'!$F$7=\"CIASI\",IF(OR('Blank - Request Form'!Q40=\"0\",'Blank - Request Form'!Q40=\"00000\",'Blank - Request Form'!Q40=0),\"\",'Blank - Request Form'!Q40),\"\"))","v":""},{"$f":"IF('Blank - Request Form'!$F$6=\"CIASI\",IF(OR('Blank - Request Form'!I40=\"0\",'Blank - Request Form'!I40=\"00000\",'Blank - Request Form'!I40=0),\"\",'Blank - Request Form'!I40),IF('Blank - Request Form'!$F$7=\"CIASI\",IF(OR('Blank - Request Form'!R40=\"0\",'Blank - Request Form'!R40=\"00000\",'Blank - Request Form'!R40=0),\"\",'Blank - Request Form'!R40),\"\"))","v":""},null,{"$f":"IF('Blank - Request Form'!$F$6=\"CIASI\",IF('Blank - Request Form'!K40=0,\"\",'Blank - Request Form'!K40),IF('Blank - Request Form'!$F$7=\"CIASI\",IF('Blank - Request Form'!T40=0,\"\",'Blank - Request Form'!T40),\"\"))","v":""},null,null,null,{"$f":"IF(M6<>\"\",'Blank - Request Form'!$M$2,\"\")","v":""},{"$f":"IF('Blank - Request Form'!$F$6=\"CIASI\",IF('Blank - Request Form'!J40=0,\"\",'Blank - Request Form'!J40),IF('Blank - Request Form'!$F$7=\"CIASI\",IF('Blank - Request Form'!S40=0,\"\",'Blank - Request Form'!S40),\"\"))","v":""},"",6]
[{"$f":"IF('Blank - Request Form'!$F$6=\"CIASI\",IF('Blank - Request Form'!D41=0,\"\",'Blank - Request Form'!D41),IF('Blank - Request Form'!$F$7=\"CIASI\",IF('Blank - Request Form'!M41=0,\"\",'Blank - Request Form'!M41),\"\"))","v":""},{"$f":"IF('Blank - Request Form'!$F$6=\"CIASI\",IF('Blank - Request Form'!E41=0,\"\",'Blank - Request Form'!E41),IF('Blank - Request Form'!$F$7=\"CIASI\",IF('Blank - Request Form'!N41=0,\"\",'Blank - Request Form'!N41),\"\"))","v":""},{"$f":"IF('Blank - Request Form'!$F$6=\"CIASI\",IF(OR('Blank - Request Form'!F41=\"000\",'Blank - Request Form'!F41=0),\"\",'Blank - Request Form'!F41),IF('Blank - Request Form'!$F$7=\"CIASI\",IF(OR('Blank - Request Form'!O41=\"000\",'Blank - Request Form'!O41=0),\"\",'Blank - Request Form'!O41),\"\"))","v":""},{"$f":"IF('Blank - Request Form'!$F$6=\"CIASI\",IF(OR('Blank - Request Form'!G41=\"0\",'Blank - Request Form'!G41=\"00000\",'Blank - Request Form'!G41=0),\"\",'Blank - Request Form'!G41),IF('Blank - Request Form'!$F$7=\"CIASI\",IF(OR('Blank - Request Form'!P41=\"0\",'Blank - Request Form'!P41=\"00000\",'Blank - Request Form'!P41=0),\"\",'Blank - Request Form'!P41),\"\"))","v":""},{"$f":"IF('Blank - Request Form'!$F$6=\"CIASI\",IF(OR('Blank - Request Form'!H41=\"0\",'Blank - Request Form'!H41=\"00000\",'Blank - Request Form'!H41=0),\"\",'Blank - Request Form'!H41),IF('Blank - Request Form'!$F$7=\"CIASI\",IF(OR('Blank - Request Form'!Q41=\"0\",'Blank - Request Form'!Q41=\"00000\",'Blank - Request Form'!Q41=0),\"\",'Blank - Request Form'!Q41),\"\"))","v":""},{"$f":"IF('Blank - Request Form'!$F$6=\"CIASI\",IF(OR('Blank - Request Form'!I41=\"0\",'Blank - Request Form'!I41=\"00000\",'Blank - Request Form'!I41=0),\"\",'Blank - Request Form'!I41),IF('Blank - Request Form'!$F$7=\"CIASI\",IF(OR('Blank - Request Form'!R41=\"0\",'Blank - Request Form'!R41=\"00000\",'Blank - Request Form'!R41=0),\"\",'Blank - Request Form'!R41),\"\"))","v":""},null,{"$f":"IF('Blank - Request Form'!$F$6=\"CIASI\",IF('Blank - Request Form'!K41=0,\"\",'Blank - Request Form'!K41),IF('Blank - Request Form'!$F$7=\"CIASI\",IF('Blank - Request Form'!T41=0,\"\",'Blank - Request Form'!T41),\"\"))","v":""},null,null,null,{"$f":"IF(M7<>\"\",'Blank - Request Form'!$M$2,\"\")","v":""},{"$f":"IF('Blank - Request Form'!$F$6=\"CIASI\",IF('Blank - Request Form'!J41=0,\"\",'Blank - Request Form'!J41),IF('Blank - Request Form'!$F$7=\"CIASI\",IF('Blank - Request Form'!S41=0,\"\",'Blank - Request Form'!S41),\"\"))","v":""},"",7]
[{"$f":"IF('Blank - Request Form'!$F$6=\"CIASI\",IF('Blank - Request Form'!D42=0,\"\",'Blank - Request Form'!D42),IF('Blank - Request Form'!$F$7=\"CIASI\",IF('Blank - Request Form'!M42=0,\"\",'Blank - Request Form'!M42),\"\"))","v":""},{"$f":"IF('Blank - Request Form'!$F$6=\"CIASI\",IF('Blank - Request Form'!E42=0,\"\",'Blank - Request Form'!E42),IF('Blank - Request Form'!$F$7=\"CIASI\",IF('Blank - Request Form'!N42=0,\"\",'Blank - Request Form'!N42),\"\"))","v":""},{"$f":"IF('Blank - Request Form'!$F$6=\"CIASI\",IF(OR('Blank - Request Form'!F42=\"000\",'Blank - Request Form'!F42=0),\"\",'Blank - Request Form'!F42),IF('Blank - Request Form'!$F$7=\"CIASI\",IF(OR('Blank - Request Form'!O42=\"000\",'Blank - Request Form'!O42=0),\"\",'Blank - Request Form'!O42),\"\"))","v":""},{"$f":"IF('Blank - Request Form'!$F$6=\"CIASI\",IF(OR('Blank - Request Form'!G42=\"0\",'Blank - Request Form'!G42=\"00000\",'Blank - Request Form'!G42=0),\"\",'Blank - Request Form'!G42),IF('Blank - Request Form'!$F$7=\"CIASI\",IF(OR('Blank - Request Form'!P42=\"0\",'Blank - Request Form'!P42=\"00000\",'Blank - Request Form'!P42=0),\"\",'Blank - Request Form'!P42),\"\"))","v":""},{"$f":"IF('Blank - Request Form'!$F$6=\"CIASI\",IF(OR('Blank - Request Form'!H42=\"0\",'Blank - Request Form'!H42=\"00000\",'Blank - Request Form'!H42=0),\"\",'Blank - Request Form'!H42),IF('Blank - Request Form'!$F$7=\"CIASI\",IF(OR('Blank - Request Form'!Q42=\"0\",'Blank - Request Form'!Q42=\"00000\",'Blank - Request Form'!Q42=0),\"\",'Blank - Request Form'!Q42),\"\"))","v":""},{"$f":"IF('Blank - Request Form'!$F$6=\"CIASI\",IF(OR('Blank - Request Form'!I42=\"0\",'Blank - Request Form'!I42=\"00000\",'Blank - Request Form'!I42=0),\"\",'Blank - Request Form'!I42),IF('Blank - Request Form'!$F$7=\"CIASI\",IF(OR('Blank - Request Form'!R42=\"0\",'Blank - Request Form'!R42=\"00000\",'Blank - Request Form'!R42=0),\"\",'Blank - Request Form'!R42),\"\"))","v":""},null,{"$f":"IF('Blank - Request Form'!$F$6=\"CIASI\",IF('Blank - Request Form'!K42=0,\"\",'Blank - Request Form'!K42),IF('Blank - Request Form'!$F$7=\"CIASI\",IF('Blank - Request Form'!T42=0,\"\",'Blank - Request Form'!T42),\"\"))","v":""},null,null,null,{"$f":"IF(M8<>\"\",'Blank - Request Form'!$M$2,\"\")","v":""},{"$f":"IF('Blank - Request Form'!$F$6=\"CIASI\",IF('Blank - Request Form'!J42=0,\"\",'Blank - Request Form'!J42),IF('Blank - Request Form'!$F$7=\"CIASI\",IF('Blank - Request Form'!S42=0,\"\",'Blank - Request Form'!S42),\"\"))","v":""},"",8]
[{"$f":"IF('Blank - Request Form'!$F$6=\"CIASI\",IF('Blank - Request Form'!D43=0,\"\",'Blank - Request Form'!D43),IF('Blank - Request Form'!$F$7=\"CIASI\",IF('Blank - Request Form'!M43=0,\"\",'Blank - Request Form'!M43),\"\"))","v":""},{"$f":"IF('Blank - Request Form'!$F$6=\"CIASI\",IF('Blank - Request Form'!E43=0,\"\",'Blank - Request Form'!E43),IF('Blank - Request Form'!$F$7=\"CIASI\",IF('Blank - Request Form'!N43=0,\"\",'Blank - Request Form'!N43),\"\"))","v":""},{"$f":"IF('Blank - Request Form'!$F$6=\"CIASI\",IF(OR('Blank - Request Form'!F43=\"000\",'Blank - Request Form'!F43=0),\"\",'Blank - Request Form'!F43),IF('Blank - Request Form'!$F$7=\"CIASI\",IF(OR('Blank - Request Form'!O43=\"000\",'Blank - Request Form'!O43=0),\"\",'Blank - Request Form'!O43),\"\"))","v":""},{"$f":"IF('Blank - Request Form'!$F$6=\"CIASI\",IF(OR('Blank - Request Form'!G43=\"0\",'Blank - Request Form'!G43=\"00000\",'Blank - Request Form'!G43=0),\"\",'Blank - Request Form'!G43),IF('Blank - Request Form'!$F$7=\"CIASI\",IF(OR('Blank - Request Form'!P43=\"0\",'Blank - Request Form'!P43=\"00000\",'Blank - Request Form'!P43=0),\"\",'Blank - Request Form'!P43),\"\"))","v":""},{"$f":"IF('Blank - Request Form'!$F$6=\"CIASI\",IF(OR('Blank - Request Form'!H43=\"0\",'Blank - Request Form'!H43=\"00000\",'Blank - Request Form'!H43=0),\"\",'Blank - Request Form'!H43),IF('Blank - Request Form'!$F$7=\"CIASI\",IF(OR('Blank - Request Form'!Q43=\"0\",'Blank - Request Form'!Q43=\"00000\",'Blank - Request Form'!Q43=0),\"\",'Blank - Request Form'!Q43),\"\"))","v":""},{"$f":"IF('Blank - Request Form'!$F$6=\"CIASI\",IF(OR('Blank - Request Form'!I43=\"0\",'Blank - Request Form'!I43=\"00000\",'Blank - Request Form'!I43=0),\"\",'Blank - Request Form'!I43),IF('Blank - Request Form'!$F$7=\"CIASI\",IF(OR('Blank - Request Form'!R43=\"0\",'Blank - Request Form'!R43=\"00000\",'Blank - Request Form'!R43=0),\"\",'Blank - Request Form'!R43),\"\"))","v":""},null,{"$f":"IF('Blank - Request Form'!$F$6=\"CIASI\",IF('Blank - Request Form'!K43=0,\"\",'Blank - Request Form'!K43),IF('Blank - Request Form'!$F$7=\"CIASI\",IF('Blank - Request Form'!T43=0,\"\",'Blank - Request Form'!T43),\"\"))","v":""},null,null,null,{"$f":"IF(M9<>\"\",'Blank - Request Form'!$M$2,\"\")","v":""},{"$f":"IF('Blank - Request Form'!$F$6=\"CIASI\",IF('Blank - Request Form'!J43=0,\"\",'Blank - Request Form'!J43),IF('Blank - Request Form'!$F$7=\"CIASI\",IF('Blank - Request Form'!S43=0,\"\",'Blank - Request Form'!S43),\"\"))","v":""},"",9]
[{"$f":"IF('Blank - Request Form'!$F$6=\"CIASI\",IF('Blank - Request Form'!D44=0,\"\",'Blank - Request Form'!D44),IF('Blank - Request Form'!$F$7=\"CIASI\",IF('Blank - Request Form'!M44=0,\"\",'Blank - Request Form'!M44),\"\"))","v":""},{"$f":"IF('Blank - Request Form'!$F$6=\"CIASI\",IF('Blank - Request Form'!E44=0,\"\",'Blank - Request Form'!E44),IF('Blank - Request Form'!$F$7=\"CIASI\",IF('Blank - Request Form'!N44=0,\"\",'Blank - Request Form'!N44),\"\"))","v":""},{"$f":"IF('Blank - Request Form'!$F$6=\"CIASI\",IF(OR('Blank - Request Form'!F44=\"000\",'Blank - Request Form'!F44=0),\"\",'Blank - Request Form'!F44),IF('Blank - Request Form'!$F$7=\"CIASI\",IF(OR('Blank - Request Form'!O44=\"000\",'Blank - Request Form'!O44=0),\"\",'Blank - Request Form'!O44),\"\"))","v":""},{"$f":"IF('Blank - Request Form'!$F$6=\"CIASI\",IF(OR('Blank - Request Form'!G44=\"0\",'Blank - Request Form'!G44=\"00000\",'Blank - Request Form'!G44=0),\"\",'Blank - Request Form'!G44),IF('Blank - Request Form'!$F$7=\"CIASI\",IF(OR('Blank - Request Form'!P44=\"0\",'Blank - Request Form'!P44=\"00000\",'Blank - Request Form'!P44=0),\"\",'Blank - Request Form'!P44),\"\"))","v":""},{"$f":"IF('Blank - Request Form'!$F$6=\"CIASI\",IF(OR('Blank - Request Form'!H44=\"0\",'Blank - Request Form'!H44=\"00000\",'Blank - Request Form'!H44=0),\"\",'Blank - Request Form'!H44),IF('Blank - Request Form'!$F$7=\"CIASI\",IF(OR('Blank - Request Form'!Q44=\"0\",'Blank - Request Form'!Q44=\"00000\",'Blank - Request Form'!Q44=0),\"\",'Blank - Request Form'!Q44),\"\"))","v":""},{"$f":"IF('Blank - Request Form'!$F$6=\"CIASI\",IF(OR('Blank - Request Form'!I44=\"0\",'Blank - Request Form'!I44=\"00000\",'Blank - Request Form'!I44=0),\"\",'Blank - Request Form'!I44),IF('Blank - Request Form'!$F$7=\"CIASI\",IF(OR('Blank - Request Form'!R44=\"0\",'Blank - Request Form'!R44=\"00000\",'Blank - Request Form'!R44=0),\"\",'Blank - Request Form'!R44),\"\"))","v":""},null,{"$f":"IF('Blank - Request Form'!$F$6=\"CIASI\",IF('Blank - Request Form'!K44=0,\"\",'Blank - Request Form'!K44),IF('Blank - Request Form'!$F$7=\"CIASI\",IF('Blank - Request Form'!T44=0,\"\",'Blank - Request Form'!T44),\"\"))","v":""},null,null,null,{"$f":"IF(M10<>\"\",'Blank - Request Form'!$M$2,\"\")","v":""},{"$f":"IF('Blank - Request Form'!$F$6=\"CIASI\",IF('Blank - Request Form'!J44=0,\"\",'Blank - Request Form'!J44),IF('Blank - Request Form'!$F$7=\"CIASI\",IF('Blank - Request Form'!S44=0,\"\",'Blank - Request Form'!S44),\"\"))","v":""},"",10]
[{"$f":"IF('Blank - Request Form'!$F$6=\"CIASI\",IF('Blank - Request Form'!D45=0,\"\",'Blank - Request Form'!D45),IF('Blank - Request Form'!$F$7=\"CIASI\",IF('Blank - Request Form'!M45=0,\"\",'Blank - Request Form'!M45),\"\"))","v":""},{"$f":"IF('Blank - Request Form'!$F$6=\"CIASI\",IF('Blank - Request Form'!E45=0,\"\",'Blank - Request Form'!E45),IF('Blank - Request Form'!$F$7=\"CIASI\",IF('Blank - Request Form'!N45=0,\"\",'Blank - Request Form'!N45),\"\"))","v":""},{"$f":"IF('Blank - Request Form'!$F$6=\"CIASI\",IF(OR('Blank - Request Form'!F45=\"000\",'Blank - Request Form'!F45=0),\"\",'Blank - Request Form'!F45),IF('Blank - Request Form'!$F$7=\"CIASI\",IF(OR('Blank - Request Form'!O45=\"000\",'Blank - Request Form'!O45=0),\"\",'Blank - Request Form'!O45),\"\"))","v":""},{"$f":"IF('Blank - Request Form'!$F$6=\"CIASI\",IF(OR('Blank - Request Form'!G45=\"0\",'Blank - Request Form'!G45=\"00000\",'Blank - Request Form'!G45=0),\"\",'Blank - Request Form'!G45),IF('Blank - Request Form'!$F$7=\"CIASI\",IF(OR('Blank - Request Form'!P45=\"0\",'Blank - Request Form'!P45=\"00000\",'Blank - Request Form'!P45=0),\"\",'Blank - Request Form'!P45),\"\"))","v":""},{"$f":"IF('Blank - Request Form'!$F$6=\"CIASI\",IF(OR('Blank - Request Form'!H45=\"0\",'Blank - Request Form'!H45=\"00000\",'Blank - Request Form'!H45=0),\"\",'Blank - Request Form'!H45),IF('Blank - Request Form'!$F$7=\"CIASI\",IF(OR('Blank - Request Form'!Q45=\"0\",'Blank - Request Form'!Q45=\"00000\",'Blank - Request Form'!Q45=0),\"\",'Blank - Request Form'!Q45),\"\"))","v":""},{"$f":"IF('Blank - Request Form'!$F$6=\"CIASI\",IF(OR('Blank - Request Form'!I45=\"0\",'Blank - Request Form'!I45=\"00000\",'Blank - Request Form'!I45=0),\"\",'Blank - Request Form'!I45),IF('Blank - Request Form'!$F$7=\"CIASI\",IF(OR('Blank - Request Form'!R45=\"0\",'Blank - Request Form'!R45=\"00000\",'Blank - Request Form'!R45=0),\"\",'Blank - Request Form'!R45),\"\"))","v":""},null,{"$f":"IF('Blank - Request Form'!$F$6=\"CIASI\",IF('Blank - Request Form'!K45=0,\"\",'Blank - Request Form'!K45),IF('Blank - Request Form'!$F$7=\"CIASI\",IF('Blank - Request Form'!T45=0,\"\",'Blank - Request Form'!T45),\"\"))","v":""},null,null,null,{"$f":"IF(M11<>\"\",'Blank - Request Form'!$M$2,\"\")","v":""},{"$f":"IF('Blank - Request Form'!$F$6=\"CIASI\",IF('Blank - Request Form'!J45=0,\"\",'Blank - Request Form'!J45),IF('Blank - Request Form'!$F$7=\"CIASI\",IF('Blank - Request Form'!S45=0,\"\",'Blank - Request Form'!S45),\"\"))","v":""},"",11]
[{"$f":"IF('Blank - Request Form'!$F$6=\"CIASI\",IF('Blank - Request Form'!D46=0,\"\",'Blank - Request Form'!D46),IF('Blank - Request Form'!$F$7=\"CIASI\",IF('Blank - Request Form'!M46=0,\"\",'Blank - Request Form'!M46),\"\"))","v":""},{"$f":"IF('Blank - Request Form'!$F$6=\"CIASI\",IF('Blank - Request Form'!E46=0,\"\",'Blank - Request Form'!E46),IF('Blank - Request Form'!$F$7=\"CIASI\",IF('Blank - Request Form'!N46=0,\"\",'Blank - Request Form'!N46),\"\"))","v":""},{"$f":"IF('Blank - Request Form'!$F$6=\"CIASI\",IF(OR('Blank - Request Form'!F46=\"000\",'Blank - Request Form'!F46=0),\"\",'Blank - Request Form'!F46),IF('Blank - Request Form'!$F$7=\"CIASI\",IF(OR('Blank - Request Form'!O46=\"000\",'Blank - Request Form'!O46=0),\"\",'Blank - Request Form'!O46),\"\"))","v":""},{"$f":"IF('Blank - Request Form'!$F$6=\"CIASI\",IF(OR('Blank - Request Form'!G46=\"0\",'Blank - Request Form'!G46=\"00000\",'Blank - Request Form'!G46=0),\"\",'Blank - Request Form'!G46),IF('Blank - Request Form'!$F$7=\"CIASI\",IF(OR('Blank - Request Form'!P46=\"0\",'Blank - Request Form'!P46=\"00000\",'Blank - Request Form'!P46=0),\"\",'Blank - Request Form'!P46),\"\"))","v":""},{"$f":"IF('Blank - Request Form'!$F$6=\"CIASI\",IF(OR('Blank - Request Form'!H46=\"0\",'Blank - Request Form'!H46=\"00000\",'Blank - Request Form'!H46=0),\"\",'Blank - Request Form'!H46),IF('Blank - Request Form'!$F$7=\"CIASI\",IF(OR('Blank - Request Form'!Q46=\"0\",'Blank - Request Form'!Q46=\"00000\",'Blank - Request Form'!Q46=0),\"\",'Blank - Request Form'!Q46),\"\"))","v":""},{"$f":"IF('Blank - Request Form'!$F$6=\"CIASI\",IF(OR('Blank - Request Form'!I46=\"0\",'Blank - Request Form'!I46=\"00000\",'Blank - Request Form'!I46=0),\"\",'Blank - Request Form'!I46),IF('Blank - Request Form'!$F$7=\"CIASI\",IF(OR('Blank - Request Form'!R46=\"0\",'Blank - Request Form'!R46=\"00000\",'Blank - Request Form'!R46=0),\"\",'Blank - Request Form'!R46),\"\"))","v":""},null,{"$f":"IF('Blank - Request Form'!$F$6=\"CIASI\",IF('Blank - Request Form'!K46=0,\"\",'Blank - Request Form'!K46),IF('Blank - Request Form'!$F$7=\"CIASI\",IF('Blank - Request Form'!T46=0,\"\",'Blank - Request Form'!T46),\"\"))","v":""},null,null,null,{"$f":"IF(M12<>\"\",'Blank - Request Form'!$M$2,\"\")","v":""},{"$f":"IF('Blank - Request Form'!$F$6=\"CIASI\",IF('Blank - Request Form'!J46=0,\"\",'Blank - Request Form'!J46),IF('Blank - Request Form'!$F$7=\"CIASI\",IF('Blank - Request Form'!S46=0,\"\",'Blank - Request Form'!S46),\"\"))","v":""},"",12]
[{"$f":"IF('Blank - Request Form'!$F$6=\"CIASI\",IF('Blank - Request Form'!D47=0,\"\",'Blank - Request Form'!D47),IF('Blank - Request Form'!$F$7=\"CIASI\",IF('Blank - Request Form'!M47=0,\"\",'Blank - Request Form'!M47),\"\"))","v":""},{"$f":"IF('Blank - Request Form'!$F$6=\"CIASI\",IF('Blank - Request Form'!E47=0,\"\",'Blank - Request Form'!E47),IF('Blank - Request Form'!$F$7=\"CIASI\",IF('Blank - Request Form'!N47=0,\"\",'Blank - Request Form'!N47),\"\"))","v":""},{"$f":"IF('Blank - Request Form'!$F$6=\"CIASI\",IF(OR('Blank - Request Form'!F47=\"000\",'Blank - Request Form'!F47=0),\"\",'Blank - Request Form'!F47),IF('Blank - Request Form'!$F$7=\"CIASI\",IF(OR('Blank - Request Form'!O47=\"000\",'Blank - Request Form'!O47=0),\"\",'Blank - Request Form'!O47),\"\"))","v":""},{"$f":"IF('Blank - Request Form'!$F$6=\"CIASI\",IF(OR('Blank - Request Form'!G47=\"0\",'Blank - Request Form'!G47=\"00000\",'Blank - Request Form'!G47=0),\"\",'Blank - Request Form'!G47),IF('Blank - Request Form'!$F$7=\"CIASI\",IF(OR('Blank - Request Form'!P47=\"0\",'Blank - Request Form'!P47=\"00000\",'Blank - Request Form'!P47=0),\"\",'Blank - Request Form'!P47),\"\"))","v":""},{"$f":"IF('Blank - Request Form'!$F$6=\"CIASI\",IF(OR('Blank - Request Form'!H47=\"0\",'Blank - Request Form'!H47=\"00000\",'Blank - Request Form'!H47=0),\"\",'Blank - Request Form'!H47),IF('Blank - Request Form'!$F$7=\"CIASI\",IF(OR('Blank - Request Form'!Q47=\"0\",'Blank - Request Form'!Q47=\"00000\",'Blank - Request Form'!Q47=0),\"\",'Blank - Request Form'!Q47),\"\"))","v":""},{"$f":"IF('Blank - Request Form'!$F$6=\"CIASI\",IF(OR('Blank - Request Form'!I47=\"0\",'Blank - Request Form'!I47=\"00000\",'Blank - Request Form'!I47=0),\"\",'Blank - Request Form'!I47),IF('Blank - Request Form'!$F$7=\"CIASI\",IF(OR('Blank - Request Form'!R47=\"0\",'Blank - Request Form'!R47=\"00000\",'Blank - Request Form'!R47=0),\"\",'Blank - Request Form'!R47),\"\"))","v":""},null,{"$f":"IF('Blank - Request Form'!$F$6=\"CIASI\",IF('Blank - Request Form'!K47=0,\"\",'Blank - Request Form'!K47),IF('Blank - Request Form'!$F$7=\"CIASI\",IF('Blank - Request Form'!T47=0,\"\",'Blank - Request Form'!T47),\"\"))","v":""},null,null,null,{"$f":"IF(M13<>\"\",'Blank - Request Form'!$M$2,\"\")","v":""},{"$f":"IF('Blank - Request Form'!$F$6=\"CIASI\",IF('Blank - Request Form'!J47=0,\"\",'Blank - Request Form'!J47),IF('Blank - Request Form'!$F$7=\"CIASI\",IF('Blank - Request Form'!S47=0,\"\",'Blank - Request Form'!S47),\"\"))","v":""},"",13]
[{"$f":"IF('Blank - Request Form'!$F$6=\"CIASI\",IF('Blank - Request Form'!D48=0,\"\",'Blank - Request Form'!D48),IF('Blank - Request Form'!$F$7=\"CIASI\",IF('Blank - Request Form'!M48=0,\"\",'Blank - Request Form'!M48),\"\"))","v":""},{"$f":"IF('Blank - Request Form'!$F$6=\"CIASI\",IF('Blank - Request Form'!E48=0,\"\",'Blank - Request Form'!E48),IF('Blank - Request Form'!$F$7=\"CIASI\",IF('Blank - Request Form'!N48=0,\"\",'Blank - Request Form'!N48),\"\"))","v":""},{"$f":"IF('Blank - Request Form'!$F$6=\"CIASI\",IF(OR('Blank - Request Form'!F48=\"000\",'Blank - Request Form'!F48=0),\"\",'Blank - Request Form'!F48),IF('Blank - Request Form'!$F$7=\"CIASI\",IF(OR('Blank - Request Form'!O48=\"000\",'Blank - Request Form'!O48=0),\"\",'Blank - Request Form'!O48),\"\"))","v":""},{"$f":"IF('Blank - Request Form'!$F$6=\"CIASI\",IF(OR('Blank - Request Form'!G48=\"0\",'Blank - Request Form'!G48=\"00000\",'Blank - Request Form'!G48=0),\"\",'Blank - Request Form'!G48),IF('Blank - Request Form'!$F$7=\"CIASI\",IF(OR('Blank - Request Form'!P48=\"0\",'Blank - Request Form'!P48=\"00000\",'Blank - Request Form'!P48=0),\"\",'Blank - Request Form'!P48),\"\"))","v":""},{"$f":"IF('Blank - Request Form'!$F$6=\"CIASI\",IF(OR('Blank - Request Form'!H48=\"0\",'Blank - Request Form'!H48=\"00000\",'Blank - Request Form'!H48=0),\"\",'Blank - Request Form'!H48),IF('Blank - Request Form'!$F$7=\"CIASI\",IF(OR('Blank - Request Form'!Q48=\"0\",'Blank - Request Form'!Q48=\"00000\",'Blank - Request Form'!Q48=0),\"\",'Blank - Request Form'!Q48),\"\"))","v":""},{"$f":"IF('Blank - Request Form'!$F$6=\"CIASI\",IF(OR('Blank - Request Form'!I48=\"0\",'Blank - Request Form'!I48=\"00000\",'Blank - Request Form'!I48=0),\"\",'Blank - Request Form'!I48),IF('Blank - Request Form'!$F$7=\"CIASI\",IF(OR('Blank - Request Form'!R48=\"0\",'Blank - Request Form'!R48=\"00000\",'Blank - Request Form'!R48=0),\"\",'Blank - Request Form'!R48),\"\"))","v":""},null,{"$f":"IF('Blank - Request Form'!$F$6=\"CIASI\",IF('Blank - Request Form'!K48=0,\"\",'Blank - Request Form'!K48),IF('Blank - Request Form'!$F$7=\"CIASI\",IF('Blank - Request Form'!T48=0,\"\",'Blank - Request Form'!T48),\"\"))","v":""},null,null,null,{"$f":"IF(M14<>\"\",'Blank - Request Form'!$M$2,\"\")","v":""},{"$f":"IF('Blank - Request Form'!$F$6=\"CIASI\",IF('Blank - Request Form'!J48=0,\"\",'Blank - Request Form'!J48),IF('Blank - Request Form'!$F$7=\"CIASI\",IF('Blank - Request Form'!S48=0,\"\",'Blank - Request Form'!S48),\"\"))","v":""},"",14]
[{"$f":"IF('Blank - Request Form'!$F$6=\"CIASI\",IF('Blank - Request Form'!D49=0,\"\",'Blank - Request Form'!D49),IF('Blank - Request Form'!$F$7=\"CIASI\",IF('Blank - Request Form'!M49=0,\"\",'Blank - Request Form'!M49),\"\"))","v":""},{"$f":"IF('Blank - Request Form'!$F$6=\"CIASI\",IF('Blank - Request Form'!E49=0,\"\",'Blank - Request Form'!E49),IF('Blank - Request Form'!$F$7=\"CIASI\",IF('Blank - Request Form'!N49=0,\"\",'Blank - Request Form'!N49),\"\"))","v":""},{"$f":"IF('Blank - Request Form'!$F$6=\"CIASI\",IF(OR('Blank - Request Form'!F49=\"000\",'Blank - Request Form'!F49=0),\"\",'Blank - Request Form'!F49),IF('Blank - Request Form'!$F$7=\"CIASI\",IF(OR('Blank - Request Form'!O49=\"000\",'Blank - Request Form'!O49=0),\"\",'Blank - Request Form'!O49),\"\"))","v":""},{"$f":"IF('Blank - Request Form'!$F$6=\"CIASI\",IF(OR('Blank - Request Form'!G49=\"0\",'Blank - Request Form'!G49=\"00000\",'Blank - Request Form'!G49=0),\"\",'Blank - Request Form'!G49),IF('Blank - Request Form'!$F$7=\"CIASI\",IF(OR('Blank - Request Form'!P49=\"0\",'Blank - Request Form'!P49=\"00000\",'Blank - Request Form'!P49=0),\"\",'Blank - Request Form'!P49),\"\"))","v":""},{"$f":"IF('Blank - Request Form'!$F$6=\"CIASI\",IF(OR('Blank - Request Form'!H49=\"0\",'Blank - Request Form'!H49=\"00000\",'Blank - Request Form'!H49=0),\"\",'Blank - Request Form'!H49),IF('Blank - Request Form'!$F$7=\"CIASI\",IF(OR('Blank - Request Form'!Q49=\"0\",'Blank - Request Form'!Q49=\"00000\",'Blank - Request Form'!Q49=0),\"\",'Blank - Request Form'!Q49),\"\"))","v":""},{"$f":"IF('Blank - Request Form'!$F$6=\"CIASI\",IF(OR('Blank - Request Form'!I49=\"0\",'Blank - Request Form'!I49=\"00000\",'Blank - Request Form'!I49=0),\"\",'Blank - Request Form'!I49),IF('Blank - Request Form'!$F$7=\"CIASI\",IF(OR('Blank - Request Form'!R49=\"0\",'Blank - Request Form'!R49=\"00000\",'Blank - Request Form'!R49=0),\"\",'Blank - Request Form'!R49),\"\"))","v":""},null,{"$f":"IF('Blank - Request Form'!$F$6=\"CIASI\",IF('Blank - Request Form'!K49=0,\"\",'Blank - Request Form'!K49),IF('Blank - Request Form'!$F$7=\"CIASI\",IF('Blank - Request Form'!T49=0,\"\",'Blank - Request Form'!T49),\"\"))","v":""},null,null,null,{"$f":"IF(M15<>\"\",'Blank - Request Form'!$M$2,\"\")","v":""},{"$f":"IF('Blank - Request Form'!$F$6=\"CIASI\",IF('Blank - Request Form'!J49=0,\"\",'Blank - Request Form'!J49),IF('Blank - Request Form'!$F$7=\"CIASI\",IF('Blank - Request Form'!S49=0,\"\",'Blank - Request Form'!S49),\"\"))","v":""},"",15]
[{"$f":"IF('Blank - Request Form'!$F$6=\"CIASI\",IF('Blank - Request Form'!D50=0,\"\",'Blank - Request Form'!D50),IF('Blank - Request Form'!$F$7=\"CIASI\",IF('Blank - Request Form'!M50=0,\"\",'Blank - Request Form'!M50),\"\"))","v":""},{"$f":"IF('Blank - Request Form'!$F$6=\"CIASI\",IF('Blank - Request Form'!E50=0,\"\",'Blank - Request Form'!E50),IF('Blank - Request Form'!$F$7=\"CIASI\",IF('Blank - Request Form'!N50=0,\"\",'Blank - Request Form'!N50),\"\"))","v":""},{"$f":"IF('Blank - Request Form'!$F$6=\"CIASI\",IF(OR('Blank - Request Form'!F50=\"000\",'Blank - Request Form'!F50=0),\"\",'Blank - Request Form'!F50),IF('Blank - Request Form'!$F$7=\"CIASI\",IF(OR('Blank - Request Form'!O50=\"000\",'Blank - Request Form'!O50=0),\"\",'Blank - Request Form'!O50),\"\"))","v":""},{"$f":"IF('Blank - Request Form'!$F$6=\"CIASI\",IF(OR('Blank - Request Form'!G50=\"0\",'Blank - Request Form'!G50=\"00000\",'Blank - Request Form'!G50=0),\"\",'Blank - Request Form'!G50),IF('Blank - Request Form'!$F$7=\"CIASI\",IF(OR('Blank - Request Form'!P50=\"0\",'Blank - Request Form'!P50=\"00000\",'Blank - Request Form'!P50=0),\"\",'Blank - Request Form'!P50),\"\"))","v":""},{"$f":"IF('Blank - Request Form'!$F$6=\"CIASI\",IF(OR('Blank - Request Form'!H50=\"0\",'Blank - Request Form'!H50=\"00000\",'Blank - Request Form'!H50=0),\"\",'Blank - Request Form'!H50),IF('Blank - Request Form'!$F$7=\"CIASI\",IF(OR('Blank - Request Form'!Q50=\"0\",'Blank - Request Form'!Q50=\"00000\",'Blank - Request Form'!Q50=0),\"\",'Blank - Request Form'!Q50),\"\"))","v":""},{"$f":"IF('Blank - Request Form'!$F$6=\"CIASI\",IF(OR('Blank - Request Form'!I50=\"0\",'Blank - Request Form'!I50=\"00000\",'Blank - Request Form'!I50=0),\"\",'Blank - Request Form'!I50),IF('Blank - Request Form'!$F$7=\"CIASI\",IF(OR('Blank - Request Form'!R50=\"0\",'Blank - Request Form'!R50=\"00000\",'Blank - Request Form'!R50=0),\"\",'Blank - Request Form'!R50),\"\"))","v":""},null,{"$f":"IF('Blank - Request Form'!$F$6=\"CIASI\",IF('Blank - Request Form'!K50=0,\"\",'Blank - Request Form'!K50),IF('Blank - Request Form'!$F$7=\"CIASI\",IF('Blank - Request Form'!T50=0,\"\",'Blank - Request Form'!T50),\"\"))","v":""},null,null,null,{"$f":"IF(M16<>\"\",'Blank - Request Form'!$M$2,\"\")","v":""},{"$f":"IF('Blank - Request Form'!$F$6=\"CIASI\",IF('Blank - Request Form'!J50=0,\"\",'Blank - Request Form'!J50),IF('Blank - Request Form'!$F$7=\"CIASI\",IF('Blank - Request Form'!S50=0,\"\",'Blank - Request Form'!S50),\"\"))","v":""},"",16]
[{"$f":"IF('Blank - Request Form'!$F$6=\"CIASI\",IF('Blank - Request Form'!D51=0,\"\",'Blank - Request Form'!D51),IF('Blank - Request Form'!$F$7=\"CIASI\",IF('Blank - Request Form'!M51=0,\"\",'Blank - Request Form'!M51),\"\"))","v":""},{"$f":"IF('Blank - Request Form'!$F$6=\"CIASI\",IF('Blank - Request Form'!E51=0,\"\",'Blank - Request Form'!E51),IF('Blank - Request Form'!$F$7=\"CIASI\",IF('Blank - Request Form'!N51=0,\"\",'Blank - Request Form'!N51),\"\"))","v":""},{"$f":"IF('Blank - Request Form'!$F$6=\"CIASI\",IF(OR('Blank - Request Form'!F51=\"000\",'Blank - Request Form'!F51=0),\"\",'Blank - Request Form'!F51),IF('Blank - Request Form'!$F$7=\"CIASI\",IF(OR('Blank - Request Form'!O51=\"000\",'Blank - Request Form'!O51=0),\"\",'Blank - Request Form'!O51),\"\"))","v":""},{"$f":"IF('Blank - Request Form'!$F$6=\"CIASI\",IF(OR('Blank - Request Form'!G51=\"0\",'Blank - Request Form'!G51=\"00000\",'Blank - Request Form'!G51=0),\"\",'Blank - Request Form'!G51),IF('Blank - Request Form'!$F$7=\"CIASI\",IF(OR('Blank - Request Form'!P51=\"0\",'Blank - Request Form'!P51=\"00000\",'Blank - Request Form'!P51=0),\"\",'Blank - Request Form'!P51),\"\"))","v":""},{"$f":"IF('Blank - Request Form'!$F$6=\"CIASI\",IF(OR('Blank - Request Form'!H51=\"0\",'Blank - Request Form'!H51=\"00000\",'Blank - Request Form'!H51=0),\"\",'Blank - Request Form'!H51),IF('Blank - Request Form'!$F$7=\"CIASI\",IF(OR('Blank - Request Form'!Q51=\"0\",'Blank - Request Form'!Q51=\"00000\",'Blank - Request Form'!Q51=0),\"\",'Blank - Request Form'!Q51),\"\"))","v":""},{"$f":"IF('Blank - Request Form'!$F$6=\"CIASI\",IF(OR('Blank - Request Form'!I51=\"0\",'Blank - Request Form'!I51=\"00000\",'Blank - Request Form'!I51=0),\"\",'Blank - Request Form'!I51),IF('Blank - Request Form'!$F$7=\"CIASI\",IF(OR('Blank - Request Form'!R51=\"0\",'Blank - Request Form'!R51=\"00000\",'Blank - Request Form'!R51=0),\"\",'Blank - Request Form'!R51),\"\"))","v":""},null,{"$f":"IF('Blank - Request Form'!$F$6=\"CIASI\",IF('Blank - Request Form'!K51=0,\"\",'Blank - Request Form'!K51),IF('Blank - Request Form'!$F$7=\"CIASI\",IF('Blank - Request Form'!T51=0,\"\",'Blank - Request Form'!T51),\"\"))","v":""},null,null,null,{"$f":"IF(M17<>\"\",'Blank - Request Form'!$M$2,\"\")","v":""},{"$f":"IF('Blank - Request Form'!$F$6=\"CIASI\",IF('Blank - Request Form'!J51=0,\"\",'Blank - Request Form'!J51),IF('Blank - Request Form'!$F$7=\"CIASI\",IF('Blank - Request Form'!S51=0,\"\",'Blank - Request Form'!S51),\"\"))","v":""},"",17]
[{"$f":"IF('Blank - Request Form'!$F$6=\"CIASI\",IF('Blank - Request Form'!D52=0,\"\",'Blank - Request Form'!D52),IF('Blank - Request Form'!$F$7=\"CIASI\",IF('Blank - Request Form'!M52=0,\"\",'Blank - Request Form'!M52),\"\"))","v":""},{"$f":"IF('Blank - Request Form'!$F$6=\"CIASI\",IF('Blank - Request Form'!E52=0,\"\",'Blank - Request Form'!E52),IF('Blank - Request Form'!$F$7=\"CIASI\",IF('Blank - Request Form'!N52=0,\"\",'Blank - Request Form'!N52),\"\"))","v":""},{"$f":"IF('Blank - Request Form'!$F$6=\"CIASI\",IF(OR('Blank - Request Form'!F52=\"000\",'Blank - Request Form'!F52=0),\"\",'Blank - Request Form'!F52),IF('Blank - Request Form'!$F$7=\"CIASI\",IF(OR('Blank - Request Form'!O52=\"000\",'Blank - Request Form'!O52=0),\"\",'Blank - Request Form'!O52),\"\"))","v":""},{"$f":"IF('Blank - Request Form'!$F$6=\"CIASI\",IF(OR('Blank - Request Form'!G52=\"0\",'Blank - Request Form'!G52=\"00000\",'Blank - Request Form'!G52=0),\"\",'Blank - Request Form'!G52),IF('Blank - Request Form'!$F$7=\"CIASI\",IF(OR('Blank - Request Form'!P52=\"0\",'Blank - Request Form'!P52=\"00000\",'Blank - Request Form'!P52=0),\"\",'Blank - Request Form'!P52),\"\"))","v":""},{"$f":"IF('Blank - Request Form'!$F$6=\"CIASI\",IF(OR('Blank - Request Form'!H52=\"0\",'Blank - Request Form'!H52=\"00000\",'Blank - Request Form'!H52=0),\"\",'Blank - Request Form'!H52),IF('Blank - Request Form'!$F$7=\"CIASI\",IF(OR('Blank - Request Form'!Q52=\"0\",'Blank - Request Form'!Q52=\"00000\",'Blank - Request Form'!Q52=0),\"\",'Blank - Request Form'!Q52),\"\"))","v":""},{"$f":"IF('Blank - Request Form'!$F$6=\"CIASI\",IF(OR('Blank - Request Form'!I52=\"0\",'Blank - Request Form'!I52=\"00000\",'Blank - Request Form'!I52=0),\"\",'Blank - Request Form'!I52),IF('Blank - Request Form'!$F$7=\"CIASI\",IF(OR('Blank - Request Form'!R52=\"0\",'Blank - Request Form'!R52=\"00000\",'Blank - Request Form'!R52=0),\"\",'Blank - Request Form'!R52),\"\"))","v":""},null,{"$f":"IF('Blank - Request Form'!$F$6=\"CIASI\",IF('Blank - Request Form'!K52=0,\"\",'Blank - Request Form'!K52),IF('Blank - Request Form'!$F$7=\"CIASI\",IF('Blank - Request Form'!T52=0,\"\",'Blank - Request Form'!T52),\"\"))","v":""},null,null,null,{"$f":"IF(M18<>\"\",'Blank - Request Form'!$M$2,\"\")","v":""},{"$f":"IF('Blank - Request Form'!$F$6=\"CIASI\",IF('Blank - Request Form'!J52=0,\"\",'Blank - Request Form'!J52),IF('Blank - Request Form'!$F$7=\"CIASI\",IF('Blank - Request Form'!S52=0,\"\",'Blank - Request Form'!S52),\"\"))","v":""},"",18]
[{"$f":"IF('Blank - Request Form'!$F$6=\"CIASI\",IF('Blank - Request Form'!D53=0,\"\",'Blank - Request Form'!D53),IF('Blank - Request Form'!$F$7=\"CIASI\",IF('Blank - Request Form'!M53=0,\"\",'Blank - Request Form'!M53),\"\"))","v":""},{"$f":"IF('Blank - Request Form'!$F$6=\"CIASI\",IF('Blank - Request Form'!E53=0,\"\",'Blank - Request Form'!E53),IF('Blank - Request Form'!$F$7=\"CIASI\",IF('Blank - Request Form'!N53=0,\"\",'Blank - Request Form'!N53),\"\"))","v":""},{"$f":"IF('Blank - Request Form'!$F$6=\"CIASI\",IF(OR('Blank - Request Form'!F53=\"000\",'Blank - Request Form'!F53=0),\"\",'Blank - Request Form'!F53),IF('Blank - Request Form'!$F$7=\"CIASI\",IF(OR('Blank - Request Form'!O53=\"000\",'Blank - Request Form'!O53=0),\"\",'Blank - Request Form'!O53),\"\"))","v":""},{"$f":"IF('Blank - Request Form'!$F$6=\"CIASI\",IF(OR('Blank - Request Form'!G53=\"0\",'Blank - Request Form'!G53=\"00000\",'Blank - Request Form'!G53=0),\"\",'Blank - Request Form'!G53),IF('Blank - Request Form'!$F$7=\"CIASI\",IF(OR('Blank - Request Form'!P53=\"0\",'Blank - Request Form'!P53=\"00000\",'Blank - Request Form'!P53=0),\"\",'Blank - Request Form'!P53),\"\"))","v":""},{"$f":"IF('Blank - Request Form'!$F$6=\"CIASI\",IF(OR('Blank - Request Form'!H53=\"0\",'Blank - Request Form'!H53=\"00000\",'Blank - Request Form'!H53=0),\"\",'Blank - Request Form'!H53),IF('Blank - Request Form'!$F$7=\"CIASI\",IF(OR('Blank - Request Form'!Q53=\"0\",'Blank - Request Form'!Q53=\"00000\",'Blank - Request Form'!Q53=0),\"\",'Blank - Request Form'!Q53),\"\"))","v":""},{"$f":"IF('Blank - Request Form'!$F$6=\"CIASI\",IF(OR('Blank - Request Form'!I53=\"0\",'Blank - Request Form'!I53=\"00000\",'Blank - Request Form'!I53=0),\"\",'Blank - Request Form'!I53),IF('Blank - Request Form'!$F$7=\"CIASI\",IF(OR('Blank - Request Form'!R53=\"0\",'Blank - Request Form'!R53=\"00000\",'Blank - Request Form'!R53=0),\"\",'Blank - Request Form'!R53),\"\"))","v":""},null,{"$f":"IF('Blank - Request Form'!$F$6=\"CIASI\",IF('Blank - Request Form'!K53=0,\"\",'Blank - Request Form'!K53),IF('Blank - Request Form'!$F$7=\"CIASI\",IF('Blank - Request Form'!T53=0,\"\",'Blank - Request Form'!T53),\"\"))","v":""},null,null,null,{"$f":"IF(M19<>\"\",'Blank - Request Form'!$M$2,\"\")","v":""},{"$f":"IF('Blank - Request Form'!$F$6=\"CIASI\",IF('Blank - Request Form'!J53=0,\"\",'Blank - Request Form'!J53),IF('Blank - Request Form'!$F$7=\"CIASI\",IF('Blank - Request Form'!S53=0,\"\",'Blank - Request Form'!S53),\"\"))","v":""},"",19]
[{"$f":"IF('Blank - Request Form'!$F$6=\"CIASI\",IF('Blank - Request Form'!D54=0,\"\",'Blank - Request Form'!D54),IF('Blank - Request Form'!$F$7=\"CIASI\",IF('Blank - Request Form'!M54=0,\"\",'Blank - Request Form'!M54),\"\"))","v":""},{"$f":"IF('Blank - Request Form'!$F$6=\"CIASI\",IF('Blank - Request Form'!E54=0,\"\",'Blank - Request Form'!E54),IF('Blank - Request Form'!$F$7=\"CIASI\",IF('Blank - Request Form'!N54=0,\"\",'Blank - Request Form'!N54),\"\"))","v":""},{"$f":"IF('Blank - Request Form'!$F$6=\"CIASI\",IF(OR('Blank - Request Form'!F54=\"000\",'Blank - Request Form'!F54=0),\"\",'Blank - Request Form'!F54),IF('Blank - Request Form'!$F$7=\"CIASI\",IF(OR('Blank - Request Form'!O54=\"000\",'Blank - Request Form'!O54=0),\"\",'Blank - Request Form'!O54),\"\"))","v":""},{"$f":"IF('Blank - Request Form'!$F$6=\"CIASI\",IF(OR('Blank - Request Form'!G54=\"0\",'Blank - Request Form'!G54=\"00000\",'Blank - Request Form'!G54=0),\"\",'Blank - Request Form'!G54),IF('Blank - Request Form'!$F$7=\"CIASI\",IF(OR('Blank - Request Form'!P54=\"0\",'Blank - Request Form'!P54=\"00000\",'Blank - Request Form'!P54=0),\"\",'Blank - Request Form'!P54),\"\"))","v":""},{"$f":"IF('Blank - Request Form'!$F$6=\"CIASI\",IF(OR('Blank - Request Form'!H54=\"0\",'Blank - Request Form'!H54=\"00000\",'Blank - Request Form'!H54=0),\"\",'Blank - Request Form'!H54),IF('Blank - Request Form'!$F$7=\"CIASI\",IF(OR('Blank - Request Form'!Q54=\"0\",'Blank - Request Form'!Q54=\"00000\",'Blank - Request Form'!Q54=0),\"\",'Blank - Request Form'!Q54),\"\"))","v":""},{"$f":"IF('Blank - Request Form'!$F$6=\"CIASI\",IF(OR('Blank - Request Form'!I54=\"0\",'Blank - Request Form'!I54=\"00000\",'Blank - Request Form'!I54=0),\"\",'Blank - Request Form'!I54),IF('Blank - Request Form'!$F$7=\"CIASI\",IF(OR('Blank - Request Form'!R54=\"0\",'Blank - Request Form'!R54=\"00000\",'Blank - Request Form'!R54=0),\"\",'Blank - Request Form'!R54),\"\"))","v":""},null,{"$f":"IF('Blank - Request Form'!$F$6=\"CIASI\",IF('Blank - Request Form'!K54=0,\"\",'Blank - Request Form'!K54),IF('Blank - Request Form'!$F$7=\"CIASI\",IF('Blank - Request Form'!T54=0,\"\",'Blank - Request Form'!T54),\"\"))","v":""},null,null,null,{"$f":"IF(M20<>\"\",'Blank - Request Form'!$M$2,\"\")","v":""},{"$f":"IF('Blank - Request Form'!$F$6=\"CIASI\",IF('Blank - Request Form'!J54=0,\"\",'Blank - Request Form'!J54),IF('Blank - Request Form'!$F$7=\"CIASI\",IF('Blank - Request Form'!S54=0,\"\",'Blank - Request Form'!S54),\"\"))","v":""},"",20]
[{"$f":"IF('Blank - Request Form'!$F$6=\"CIASI\",IF('Blank - Request Form'!D55=0,\"\",'Blank - Request Form'!D55),IF('Blank - Request Form'!$F$7=\"CIASI\",IF('Blank - Request Form'!M55=0,\"\",'Blank - Request Form'!M55),\"\"))","v":""},{"$f":"IF('Blank - Request Form'!$F$6=\"CIASI\",IF('Blank - Request Form'!E55=0,\"\",'Blank - Request Form'!E55),IF('Blank - Request Form'!$F$7=\"CIASI\",IF('Blank - Request Form'!N55=0,\"\",'Blank - Request Form'!N55),\"\"))","v":""},{"$f":"IF('Blank - Request Form'!$F$6=\"CIASI\",IF(OR('Blank - Request Form'!F55=\"000\",'Blank - Request Form'!F55=0),\"\",'Blank - Request Form'!F55),IF('Blank - Request Form'!$F$7=\"CIASI\",IF(OR('Blank - Request Form'!O55=\"000\",'Blank - Request Form'!O55=0),\"\",'Blank - Request Form'!O55),\"\"))","v":""},{"$f":"IF('Blank - Request Form'!$F$6=\"CIASI\",IF(OR('Blank - Request Form'!G55=\"0\",'Blank - Request Form'!G55=\"00000\",'Blank - Request Form'!G55=0),\"\",'Blank - Request Form'!G55),IF('Blank - Request Form'!$F$7=\"CIASI\",IF(OR('Blank - Request Form'!P55=\"0\",'Blank - Request Form'!P55=\"00000\",'Blank - Request Form'!P55=0),\"\",'Blank - Request Form'!P55),\"\"))","v":""},{"$f":"IF('Blank - Request Form'!$F$6=\"CIASI\",IF(OR('Blank - Request Form'!H55=\"0\",'Blank - Request Form'!H55=\"00000\",'Blank - Request Form'!H55=0),\"\",'Blank - Request Form'!H55),IF('Blank - Request Form'!$F$7=\"CIASI\",IF(OR('Blank - Request Form'!Q55=\"0\",'Blank - Request Form'!Q55=\"00000\",'Blank - Request Form'!Q55=0),\"\",'Blank - Request Form'!Q55),\"\"))","v":""},{"$f":"IF('Blank - Request Form'!$F$6=\"CIASI\",IF(OR('Blank - Request Form'!I55=\"0\",'Blank - Request Form'!I55=\"00000\",'Blank - Request Form'!I55=0),\"\",'Blank - Request Form'!I55),IF('Blank - Request Form'!$F$7=\"CIASI\",IF(OR('Blank - Request Form'!R55=\"0\",'Blank - Request Form'!R55=\"00000\",'Blank - Request Form'!R55=0),\"\",'Blank - Request Form'!R55),\"\"))","v":""},null,{"$f":"IF('Blank - Request Form'!$F$6=\"CIASI\",IF('Blank - Request Form'!K55=0,\"\",'Blank - Request Form'!K55),IF('Blank - Request Form'!$F$7=\"CIASI\",IF('Blank - Request Form'!T55=0,\"\",'Blank - Request Form'!T55),\"\"))","v":""},null,null,null,{"$f":"IF(M21<>\"\",'Blank - Request Form'!$M$2,\"\")","v":""},{"$f":"IF('Blank - Request Form'!$F$6=\"CIASI\",IF('Blank - Request Form'!J55=0,\"\",'Blank - Request Form'!J55),IF('Blank - Request Form'!$F$7=\"CIASI\",IF('Blank - Request Form'!S55=0,\"\",'Blank - Request Form'!S55),\"\"))","v":""},"",21]
[{"$f":"IF('Blank - Request Form'!$F$6=\"CIASI\",IF('Blank - Request Form'!D56=0,\"\",'Blank - Request Form'!D56),IF('Blank - Request Form'!$F$7=\"CIASI\",IF('Blank - Request Form'!M56=0,\"\",'Blank - Request Form'!M56),\"\"))","v":""},{"$f":"IF('Blank - Request Form'!$F$6=\"CIASI\",IF('Blank - Request Form'!E56=0,\"\",'Blank - Request Form'!E56),IF('Blank - Request Form'!$F$7=\"CIASI\",IF('Blank - Request Form'!N56=0,\"\",'Blank - Request Form'!N56),\"\"))","v":""},{"$f":"IF('Blank - Request Form'!$F$6=\"CIASI\",IF(OR('Blank - Request Form'!F56=\"000\",'Blank - Request Form'!F56=0),\"\",'Blank - Request Form'!F56),IF('Blank - Request Form'!$F$7=\"CIASI\",IF(OR('Blank - Request Form'!O56=\"000\",'Blank - Request Form'!O56=0),\"\",'Blank - Request Form'!O56),\"\"))","v":""},{"$f":"IF('Blank - Request Form'!$F$6=\"CIASI\",IF(OR('Blank - Request Form'!G56=\"0\",'Blank - Request Form'!G56=\"00000\",'Blank - Request Form'!G56=0),\"\",'Blank - Request Form'!G56),IF('Blank - Request Form'!$F$7=\"CIASI\",IF(OR('Blank - Request Form'!P56=\"0\",'Blank - Request Form'!P56=\"00000\",'Blank - Request Form'!P56=0),\"\",'Blank - Request Form'!P56),\"\"))","v":""},{"$f":"IF('Blank - Request Form'!$F$6=\"CIASI\",IF(OR('Blank - Request Form'!H56=\"0\",'Blank - Request Form'!H56=\"00000\",'Blank - Request Form'!H56=0),\"\",'Blank - Request Form'!H56),IF('Blank - Request Form'!$F$7=\"CIASI\",IF(OR('Blank - Request Form'!Q56=\"0\",'Blank - Request Form'!Q56=\"00000\",'Blank - Request Form'!Q56=0),\"\",'Blank - Request Form'!Q56),\"\"))","v":""},{"$f":"IF('Blank - Request Form'!$F$6=\"CIASI\",IF(OR('Blank - Request Form'!I56=\"0\",'Blank - Request Form'!I56=\"00000\",'Blank - Request Form'!I56=0),\"\",'Blank - Request Form'!I56),IF('Blank - Request Form'!$F$7=\"CIASI\",IF(OR('Blank - Request Form'!R56=\"0\",'Blank - Request Form'!R56=\"00000\",'Blank - Request Form'!R56=0),\"\",'Blank - Request Form'!R56),\"\"))","v":""},null,{"$f":"IF('Blank - Request Form'!$F$6=\"CIASI\",IF('Blank - Request Form'!K56=0,\"\",'Blank - Request Form'!K56),IF('Blank - Request Form'!$F$7=\"CIASI\",IF('Blank - Request Form'!T56=0,\"\",'Blank - Request Form'!T56),\"\"))","v":""},null,null,null,{"$f":"IF(M22<>\"\",'Blank - Request Form'!$M$2,\"\")","v":""},{"$f":"IF('Blank - Request Form'!$F$6=\"CIASI\",IF('Blank - Request Form'!J56=0,\"\",'Blank - Request Form'!J56),IF('Blank - Request Form'!$F$7=\"CIASI\",IF('Blank - Request Form'!S56=0,\"\",'Blank - Request Form'!S56),\"\"))","v":""},"",22]
[{"$f":"IF('Blank - Request Form'!$F$6=\"CIASI\",IF('Blank - Request Form'!D57=0,\"\",'Blank - Request Form'!D57),IF('Blank - Request Form'!$F$7=\"CIASI\",IF('Blank - Request Form'!M57=0,\"\",'Blank - Request Form'!M57),\"\"))","v":""},{"$f":"IF('Blank - Request Form'!$F$6=\"CIASI\",IF('Blank - Request Form'!E57=0,\"\",'Blank - Request Form'!E57),IF('Blank - Request Form'!$F$7=\"CIASI\",IF('Blank - Request Form'!N57=0,\"\",'Blank - Request Form'!N57),\"\"))","v":""},{"$f":"IF('Blank - Request Form'!$F$6=\"CIASI\",IF(OR('Blank - Request Form'!F57=\"000\",'Blank - Request Form'!F57=0),\"\",'Blank - Request Form'!F57),IF('Blank - Request Form'!$F$7=\"CIASI\",IF(OR('Blank - Request Form'!O57=\"000\",'Blank - Request Form'!O57=0),\"\",'Blank - Request Form'!O57),\"\"))","v":""},{"$f":"IF('Blank - Request Form'!$F$6=\"CIASI\",IF(OR('Blank - Request Form'!G57=\"0\",'Blank - Request Form'!G57=\"00000\",'Blank - Request Form'!G57=0),\"\",'Blank - Request Form'!G57),IF('Blank - Request Form'!$F$7=\"CIASI\",IF(OR('Blank - Request Form'!P57=\"0\",'Blank - Request Form'!P57=\"00000\",'Blank - Request Form'!P57=0),\"\",'Blank - Request Form'!P57),\"\"))","v":""},{"$f":"IF('Blank - Request Form'!$F$6=\"CIASI\",IF(OR('Blank - Request Form'!H57=\"0\",'Blank - Request Form'!H57=\"00000\",'Blank - Request Form'!H57=0),\"\",'Blank - Request Form'!H57),IF('Blank - Request Form'!$F$7=\"CIASI\",IF(OR('Blank - Request Form'!Q57=\"0\",'Blank - Request Form'!Q57=\"00000\",'Blank - Request Form'!Q57=0),\"\",'Blank - Request Form'!Q57),\"\"))","v":""},{"$f":"IF('Blank - Request Form'!$F$6=\"CIASI\",IF(OR('Blank - Request Form'!I57=\"0\",'Blank - Request Form'!I57=\"00000\",'Blank - Request Form'!I57=0),\"\",'Blank - Request Form'!I57),IF('Blank - Request Form'!$F$7=\"CIASI\",IF(OR('Blank - Request Form'!R57=\"0\",'Blank - Request Form'!R57=\"00000\",'Blank - Request Form'!R57=0),\"\",'Blank - Request Form'!R57),\"\"))","v":""},null,{"$f":"IF('Blank - Request Form'!$F$6=\"CIASI\",IF('Blank - Request Form'!K57=0,\"\",'Blank - Request Form'!K57),IF('Blank - Request Form'!$F$7=\"CIASI\",IF('Blank - Request Form'!T57=0,\"\",'Blank - Request Form'!T57),\"\"))","v":""},null,null,null,{"$f":"IF(M23<>\"\",'Blank - Request Form'!$M$2,\"\")","v":""},{"$f":"IF('Blank - Request Form'!$F$6=\"CIASI\",IF('Blank - Request Form'!J57=0,\"\",'Blank - Request Form'!J57),IF('Blank - Request Form'!$F$7=\"CIASI\",IF('Blank - Request Form'!S57=0,\"\",'Blank - Request Form'!S57),\"\"))","v":""},"",23]
[{"$f":"IF('Blank - Request Form'!$F$6=\"CIASI\",IF('Blank - Request Form'!D58=0,\"\",'Blank - Request Form'!D58),IF('Blank - Request Form'!$F$7=\"CIASI\",IF('Blank - Request Form'!M58=0,\"\",'Blank - Request Form'!M58),\"\"))","v":""},{"$f":"IF('Blank - Request Form'!$F$6=\"CIASI\",IF('Blank - Request Form'!E58=0,\"\",'Blank - Request Form'!E58),IF('Blank - Request Form'!$F$7=\"CIASI\",IF('Blank - Request Form'!N58=0,\"\",'Blank - Request Form'!N58),\"\"))","v":""},{"$f":"IF('Blank - Request Form'!$F$6=\"CIASI\",IF(OR('Blank - Request Form'!F58=\"000\",'Blank - Request Form'!F58=0),\"\",'Blank - Request Form'!F58),IF('Blank - Request Form'!$F$7=\"CIASI\",IF(OR('Blank - Request Form'!O58=\"000\",'Blank - Request Form'!O58=0),\"\",'Blank - Request Form'!O58),\"\"))","v":""},{"$f":"IF('Blank - Request Form'!$F$6=\"CIASI\",IF(OR('Blank - Request Form'!G58=\"0\",'Blank - Request Form'!G58=\"00000\",'Blank - Request Form'!G58=0),\"\",'Blank - Request Form'!G58),IF('Blank - Request Form'!$F$7=\"CIASI\",IF(OR('Blank - Request Form'!P58=\"0\",'Blank - Request Form'!P58=\"00000\",'Blank - Request Form'!P58=0),\"\",'Blank - Request Form'!P58),\"\"))","v":""},{"$f":"IF('Blank - Request Form'!$F$6=\"CIASI\",IF(OR('Blank - Request Form'!H58=\"0\",'Blank - Request Form'!H58=\"00000\",'Blank - Request Form'!H58=0),\"\",'Blank - Request Form'!H58),IF('Blank - Request Form'!$F$7=\"CIASI\",IF(OR('Blank - Request Form'!Q58=\"0\",'Blank - Request Form'!Q58=\"00000\",'Blank - Request Form'!Q58=0),\"\",'Blank - Request Form'!Q58),\"\"))","v":""},{"$f":"IF('Blank - Request Form'!$F$6=\"CIASI\",IF(OR('Blank - Request Form'!I58=\"0\",'Blank - Request Form'!I58=\"00000\",'Blank - Request Form'!I58=0),\"\",'Blank - Request Form'!I58),IF('Blank - Request Form'!$F$7=\"CIASI\",IF(OR('Blank - Request Form'!R58=\"0\",'Blank - Request Form'!R58=\"00000\",'Blank - Request Form'!R58=0),\"\",'Blank - Request Form'!R58),\"\"))","v":""},null,{"$f":"IF('Blank - Request Form'!$F$6=\"CIASI\",IF('Blank - Request Form'!K58=0,\"\",'Blank - Request Form'!K58),IF('Blank - Request Form'!$F$7=\"CIASI\",IF('Blank - Request Form'!T58=0,\"\",'Blank - Request Form'!T58),\"\"))","v":""},null,null,null,{"$f":"IF(M24<>\"\",'Blank - Request Form'!$M$2,\"\")","v":""},{"$f":"IF('Blank - Request Form'!$F$6=\"CIASI\",IF('Blank - Request Form'!J58=0,\"\",'Blank - Request Form'!J58),IF('Blank - Request Form'!$F$7=\"CIASI\",IF('Blank - Request Form'!S58=0,\"\",'Blank - Request Form'!S58),\"\"))","v":""},"",24]
[{"$f":"IF('Blank - Request Form'!$F$6=\"CIASI\",IF('Blank - Request Form'!D59=0,\"\",'Blank - Request Form'!D59),IF('Blank - Request Form'!$F$7=\"CIASI\",IF('Blank - Request Form'!M59=0,\"\",'Blank - Request Form'!M59),\"\"))","v":""},{"$f":"IF('Blank - Request Form'!$F$6=\"CIASI\",IF('Blank - Request Form'!E59=0,\"\",'Blank - Request Form'!E59),IF('Blank - Request Form'!$F$7=\"CIASI\",IF('Blank - Request Form'!N59=0,\"\",'Blank - Request Form'!N59),\"\"))","v":""},{"$f":"IF('Blank - Request Form'!$F$6=\"CIASI\",IF(OR('Blank - Request Form'!F59=\"000\",'Blank - Request Form'!F59=0),\"\",'Blank - Request Form'!F59),IF('Blank - Request Form'!$F$7=\"CIASI\",IF(OR('Blank - Request Form'!O59=\"000\",'Blank - Request Form'!O59=0),\"\",'Blank - Request Form'!O59),\"\"))","v":""},{"$f":"IF('Blank - Request Form'!$F$6=\"CIASI\",IF(OR('Blank - Request Form'!G59=\"0\",'Blank - Request Form'!G59=\"00000\",'Blank - Request Form'!G59=0),\"\",'Blank - Request Form'!G59),IF('Blank - Request Form'!$F$7=\"CIASI\",IF(OR('Blank - Request Form'!P59=\"0\",'Blank - Request Form'!P59=\"00000\",'Blank - Request Form'!P59=0),\"\",'Blank - Request Form'!P59),\"\"))","v":""},{"$f":"IF('Blank - Request Form'!$F$6=\"CIASI\",IF(OR('Blank - Request Form'!H59=\"0\",'Blank - Request Form'!H59=\"00000\",'Blank - Request Form'!H59=0),\"\",'Blank - Request Form'!H59),IF('Blank - Request Form'!$F$7=\"CIASI\",IF(OR('Blank - Request Form'!Q59=\"0\",'Blank - Request Form'!Q59=\"00000\",'Blank - Request Form'!Q59=0),\"\",'Blank - Request Form'!Q59),\"\"))","v":""},{"$f":"IF('Blank - Request Form'!$F$6=\"CIASI\",IF(OR('Blank - Request Form'!I59=\"0\",'Blank - Request Form'!I59=\"00000\",'Blank - Request Form'!I59=0),\"\",'Blank - Request Form'!I59),IF('Blank - Request Form'!$F$7=\"CIASI\",IF(OR('Blank - Request Form'!R59=\"0\",'Blank - Request Form'!R59=\"00000\",'Blank - Request Form'!R59=0),\"\",'Blank - Request Form'!R59),\"\"))","v":""},null,{"$f":"IF('Blank - Request Form'!$F$6=\"CIASI\",IF('Blank - Request Form'!K59=0,\"\",'Blank - Request Form'!K59),IF('Blank - Request Form'!$F$7=\"CIASI\",IF('Blank - Request Form'!T59=0,\"\",'Blank - Request Form'!T59),\"\"))","v":""},null,null,null,{"$f":"IF(M25<>\"\",'Blank - Request Form'!$M$2,\"\")","v":""},{"$f":"IF('Blank - Request Form'!$F$6=\"CIASI\",IF('Blank - Request Form'!J59=0,\"\",'Blank - Request Form'!J59),IF('Blank - Request Form'!$F$7=\"CIASI\",IF('Blank - Request Form'!S59=0,\"\",'Blank - Request Form'!S59),\"\"))","v":""},"",25]
[{"$f":"IF('Blank - Request Form'!$F$6=\"CIASI\",IF('Blank - Request Form'!D60=0,\"\",'Blank - Request Form'!D60),IF('Blank - Request Form'!$F$7=\"CIASI\",IF('Blank - Request Form'!M60=0,\"\",'Blank - Request Form'!M60),\"\"))","v":""},{"$f":"IF('Blank - Request Form'!$F$6=\"CIASI\",IF('Blank - Request Form'!E60=0,\"\",'Blank - Request Form'!E60),IF('Blank - Request Form'!$F$7=\"CIASI\",IF('Blank - Request Form'!N60=0,\"\",'Blank - Request Form'!N60),\"\"))","v":""},{"$f":"IF('Blank - Request Form'!$F$6=\"CIASI\",IF(OR('Blank - Request Form'!F60=\"000\",'Blank - Request Form'!F60=0),\"\",'Blank - Request Form'!F60),IF('Blank - Request Form'!$F$7=\"CIASI\",IF(OR('Blank - Request Form'!O60=\"000\",'Blank - Request Form'!O60=0),\"\",'Blank - Request Form'!O60),\"\"))","v":""},{"$f":"IF('Blank - Request Form'!$F$6=\"CIASI\",IF(OR('Blank - Request Form'!G60=\"0\",'Blank - Request Form'!G60=\"00000\",'Blank - Request Form'!G60=0),\"\",'Blank - Request Form'!G60),IF('Blank - Request Form'!$F$7=\"CIASI\",IF(OR('Blank - Request Form'!P60=\"0\",'Blank - Request Form'!P60=\"00000\",'Blank - Request Form'!P60=0),\"\",'Blank - Request Form'!P60),\"\"))","v":""},{"$f":"IF('Blank - Request Form'!$F$6=\"CIASI\",IF(OR('Blank - Request Form'!H60=\"0\",'Blank - Request Form'!H60=\"00000\",'Blank - Request Form'!H60=0),\"\",'Blank - Request Form'!H60),IF('Blank - Request Form'!$F$7=\"CIASI\",IF(OR('Blank - Request Form'!Q60=\"0\",'Blank - Request Form'!Q60=\"00000\",'Blank - Request Form'!Q60=0),\"\",'Blank - Request Form'!Q60),\"\"))","v":""},{"$f":"IF('Blank - Request Form'!$F$6=\"CIASI\",IF(OR('Blank - Request Form'!I60=\"0\",'Blank - Request Form'!I60=\"00000\",'Blank - Request Form'!I60=0),\"\",'Blank - Request Form'!I60),IF('Blank - Request Form'!$F$7=\"CIASI\",IF(OR('Blank - Request Form'!R60=\"0\",'Blank - Request Form'!R60=\"00000\",'Blank - Request Form'!R60=0),\"\",'Blank - Request Form'!R60),\"\"))","v":""},null,{"$f":"IF('Blank - Request Form'!$F$6=\"CIASI\",IF('Blank - Request Form'!K60=0,\"\",'Blank - Request Form'!K60),IF('Blank - Request Form'!$F$7=\"CIASI\",IF('Blank - Request Form'!T60=0,\"\",'Blank - Request Form'!T60),\"\"))","v":""},null,null,null,{"$f":"IF(M26<>\"\",'Blank - Request Form'!$M$2,\"\")","v":""},{"$f":"IF('Blank - Request Form'!$F$6=\"CIASI\",IF('Blank - Request Form'!J60=0,\"\",'Blank - Request Form'!J60),IF('Blank - Request Form'!$F$7=\"CIASI\",IF('Blank - Request Form'!S60=0,\"\",'Blank - Request Form'!S60),\"\"))","v":""},"",26]
[{"$f":"IF('Blank - Request Form'!$F$6=\"CIASI\",IF('Blank - Request Form'!D61=0,\"\",'Blank - Request Form'!D61),IF('Blank - Request Form'!$F$7=\"CIASI\",IF('Blank - Request Form'!M61=0,\"\",'Blank - Request Form'!M61),\"\"))","v":""},{"$f":"IF('Blank - Request Form'!$F$6=\"CIASI\",IF('Blank - Request Form'!E61=0,\"\",'Blank - Request Form'!E61),IF('Blank - Request Form'!$F$7=\"CIASI\",IF('Blank - Request Form'!N61=0,\"\",'Blank - Request Form'!N61),\"\"))","v":""},{"$f":"IF('Blank - Request Form'!$F$6=\"CIASI\",IF(OR('Blank - Request Form'!F61=\"000\",'Blank - Request Form'!F61=0),\"\",'Blank - Request Form'!F61),IF('Blank - Request Form'!$F$7=\"CIASI\",IF(OR('Blank - Request Form'!O61=\"000\",'Blank - Request Form'!O61=0),\"\",'Blank - Request Form'!O61),\"\"))","v":""},{"$f":"IF('Blank - Request Form'!$F$6=\"CIASI\",IF(OR('Blank - Request Form'!G61=\"0\",'Blank - Request Form'!G61=\"00000\",'Blank - Request Form'!G61=0),\"\",'Blank - Request Form'!G61),IF('Blank - Request Form'!$F$7=\"CIASI\",IF(OR('Blank - Request Form'!P61=\"0\",'Blank - Request Form'!P61=\"00000\",'Blank - Request Form'!P61=0),\"\",'Blank - Request Form'!P61),\"\"))","v":""},{"$f":"IF('Blank - Request Form'!$F$6=\"CIASI\",IF(OR('Blank - Request Form'!H61=\"0\",'Blank - Request Form'!H61=\"00000\",'Blank - Request Form'!H61=0),\"\",'Blank - Request Form'!H61),IF('Blank - Request Form'!$F$7=\"CIASI\",IF(OR('Blank - Request Form'!Q61=\"0\",'Blank - Request Form'!Q61=\"00000\",'Blank - Request Form'!Q61=0),\"\",'Blank - Request Form'!Q61),\"\"))","v":""},{"$f":"IF('Blank - Request Form'!$F$6=\"CIASI\",IF(OR('Blank - Request Form'!I61=\"0\",'Blank - Request Form'!I61=\"00000\",'Blank - Request Form'!I61=0),\"\",'Blank - Request Form'!I61),IF('Blank - Request Form'!$F$7=\"CIASI\",IF(OR('Blank - Request Form'!R61=\"0\",'Blank - Request Form'!R61=\"00000\",'Blank - Request Form'!R61=0),\"\",'Blank - Request Form'!R61),\"\"))","v":""},null,{"$f":"IF('Blank - Request Form'!$F$6=\"CIASI\",IF('Blank - Request Form'!K61=0,\"\",'Blank - Request Form'!K61),IF('Blank - Request Form'!$F$7=\"CIASI\",IF('Blank - Request Form'!T61=0,\"\",'Blank - Request Form'!T61),\"\"))","v":""},null,null,null,{"$f":"IF(M27<>\"\",'Blank - Request Form'!$M$2,\"\")","v":""},{"$f":"IF('Blank - Request Form'!$F$6=\"CIASI\",IF('Blank - Request Form'!J61=0,\"\",'Blank - Request Form'!J61),IF('Blank - Request Form'!$F$7=\"CIASI\",IF('Blank - Request Form'!S61=0,\"\",'Blank - Request Form'!S61),\"\"))","v":""},"",27]
[{"$f":"IF('Blank - Request Form'!$F$6=\"CIASI\",IF('Blank - Request Form'!D62=0,\"\",'Blank - Request Form'!D62),IF('Blank - Request Form'!$F$7=\"CIASI\",IF('Blank - Request Form'!M62=0,\"\",'Blank - Request Form'!M62),\"\"))","v":""},{"$f":"IF('Blank - Request Form'!$F$6=\"CIASI\",IF('Blank - Request Form'!E62=0,\"\",'Blank - Request Form'!E62),IF('Blank - Request Form'!$F$7=\"CIASI\",IF('Blank - Request Form'!N62=0,\"\",'Blank - Request Form'!N62),\"\"))","v":""},{"$f":"IF('Blank - Request Form'!$F$6=\"CIASI\",IF(OR('Blank - Request Form'!F62=\"000\",'Blank - Request Form'!F62=0),\"\",'Blank - Request Form'!F62),IF('Blank - Request Form'!$F$7=\"CIASI\",IF(OR('Blank - Request Form'!O62=\"000\",'Blank - Request Form'!O62=0),\"\",'Blank - Request Form'!O62),\"\"))","v":""},{"$f":"IF('Blank - Request Form'!$F$6=\"CIASI\",IF(OR('Blank - Request Form'!G62=\"0\",'Blank - Request Form'!G62=\"00000\",'Blank - Request Form'!G62=0),\"\",'Blank - Request Form'!G62),IF('Blank - Request Form'!$F$7=\"CIASI\",IF(OR('Blank - Request Form'!P62=\"0\",'Blank - Request Form'!P62=\"00000\",'Blank - Request Form'!P62=0),\"\",'Blank - Request Form'!P62),\"\"))","v":""},{"$f":"IF('Blank - Request Form'!$F$6=\"CIASI\",IF(OR('Blank - Request Form'!H62=\"0\",'Blank - Request Form'!H62=\"00000\",'Blank - Request Form'!H62=0),\"\",'Blank - Request Form'!H62),IF('Blank - Request Form'!$F$7=\"CIASI\",IF(OR('Blank - Request Form'!Q62=\"0\",'Blank - Request Form'!Q62=\"00000\",'Blank - Request Form'!Q62=0),\"\",'Blank - Request Form'!Q62),\"\"))","v":""},{"$f":"IF('Blank - Request Form'!$F$6=\"CIASI\",IF(OR('Blank - Request Form'!I62=\"0\",'Blank - Request Form'!I62=\"00000\",'Blank - Request Form'!I62=0),\"\",'Blank - Request Form'!I62),IF('Blank - Request Form'!$F$7=\"CIASI\",IF(OR('Blank - Request Form'!R62=\"0\",'Blank - Request Form'!R62=\"00000\",'Blank - Request Form'!R62=0),\"\",'Blank - Request Form'!R62),\"\"))","v":""},null,{"$f":"IF('Blank - Request Form'!$F$6=\"CIASI\",IF('Blank - Request Form'!K62=0,\"\",'Blank - Request Form'!K62),IF('Blank - Request Form'!$F$7=\"CIASI\",IF('Blank - Request Form'!T62=0,\"\",'Blank - Request Form'!T62),\"\"))","v":""},null,null,null,{"$f":"IF(M28<>\"\",'Blank - Request Form'!$M$2,\"\")","v":""},{"$f":"IF('Blank - Request Form'!$F$6=\"CIASI\",IF('Blank - Request Form'!J62=0,\"\",'Blank - Request Form'!J62),IF('Blank - Request Form'!$F$7=\"CIASI\",IF('Blank - Request Form'!S62=0,\"\",'Blank - Request Form'!S62),\"\"))","v":""},"",28]
[{"$f":"IF('Blank - Request Form'!$F$6=\"CIASI\",IF('Blank - Request Form'!D63=0,\"\",'Blank - Request Form'!D63),IF('Blank - Request Form'!$F$7=\"CIASI\",IF('Blank - Request Form'!M63=0,\"\",'Blank - Request Form'!M63),\"\"))","v":""},{"$f":"IF('Blank - Request Form'!$F$6=\"CIASI\",IF('Blank - Request Form'!E63=0,\"\",'Blank - Request Form'!E63),IF('Blank - Request Form'!$F$7=\"CIASI\",IF('Blank - Request Form'!N63=0,\"\",'Blank - Request Form'!N63),\"\"))","v":""},{"$f":"IF('Blank - Request Form'!$F$6=\"CIASI\",IF(OR('Blank - Request Form'!F63=\"000\",'Blank - Request Form'!F63=0),\"\",'Blank - Request Form'!F63),IF('Blank - Request Form'!$F$7=\"CIASI\",IF(OR('Blank - Request Form'!O63=\"000\",'Blank - Request Form'!O63=0),\"\",'Blank - Request Form'!O63),\"\"))","v":""},{"$f":"IF('Blank - Request Form'!$F$6=\"CIASI\",IF(OR('Blank - Request Form'!G63=\"0\",'Blank - Request Form'!G63=\"00000\",'Blank - Request Form'!G63=0),\"\",'Blank - Request Form'!G63),IF('Blank - Request Form'!$F$7=\"CIASI\",IF(OR('Blank - Request Form'!P63=\"0\",'Blank - Request Form'!P63=\"00000\",'Blank - Request Form'!P63=0),\"\",'Blank - Request Form'!P63),\"\"))","v":""},{"$f":"IF('Blank - Request Form'!$F$6=\"CIASI\",IF(OR('Blank - Request Form'!H63=\"0\",'Blank - Request Form'!H63=\"00000\",'Blank - Request Form'!H63=0),\"\",'Blank - Request Form'!H63),IF('Blank - Request Form'!$F$7=\"CIASI\",IF(OR('Blank - Request Form'!Q63=\"0\",'Blank - Request Form'!Q63=\"00000\",'Blank - Request Form'!Q63=0),\"\",'Blank - Request Form'!Q63),\"\"))","v":""},{"$f":"IF('Blank - Request Form'!$F$6=\"CIASI\",IF(OR('Blank - Request Form'!I63=\"0\",'Blank - Request Form'!I63=\"00000\",'Blank - Request Form'!I63=0),\"\",'Blank - Request Form'!I63),IF('Blank - Request Form'!$F$7=\"CIASI\",IF(OR('Blank - Request Form'!R63=\"0\",'Blank - Request Form'!R63=\"00000\",'Blank - Request Form'!R63=0),\"\",'Blank - Request Form'!R63),\"\"))","v":""},null,{"$f":"IF('Blank - Request Form'!$F$6=\"CIASI\",IF('Blank - Request Form'!K63=0,\"\",'Blank - Request Form'!K63),IF('Blank - Request Form'!$F$7=\"CIASI\",IF('Blank - Request Form'!T63=0,\"\",'Blank - Request Form'!T63),\"\"))","v":""},null,null,null,{"$f":"IF(M29<>\"\",'Blank - Request Form'!$M$2,\"\")","v":""},{"$f":"IF('Blank - Request Form'!$F$6=\"CIASI\",IF('Blank - Request Form'!J63=0,\"\",'Blank - Request Form'!J63),IF('Blank - Request Form'!$F$7=\"CIASI\",IF('Blank - Request Form'!S63=0,\"\",'Blank - Request Form'!S63),\"\"))","v":""},"",29]
[{"$f":"IF('Blank - Request Form'!$F$6=\"CIASI\",IF('Blank - Request Form'!D64=0,\"\",'Blank - Request Form'!D64),IF('Blank - Request Form'!$F$7=\"CIASI\",IF('Blank - Request Form'!M64=0,\"\",'Blank - Request Form'!M64),\"\"))","v":""},{"$f":"IF('Blank - Request Form'!$F$6=\"CIASI\",IF('Blank - Request Form'!E64=0,\"\",'Blank - Request Form'!E64),IF('Blank - Request Form'!$F$7=\"CIASI\",IF('Blank - Request Form'!N64=0,\"\",'Blank - Request Form'!N64),\"\"))","v":""},{"$f":"IF('Blank - Request Form'!$F$6=\"CIASI\",IF(OR('Blank - Request Form'!F64=\"000\",'Blank - Request Form'!F64=0),\"\",'Blank - Request Form'!F64),IF('Blank - Request Form'!$F$7=\"CIASI\",IF(OR('Blank - Request Form'!O64=\"000\",'Blank - Request Form'!O64=0),\"\",'Blank - Request Form'!O64),\"\"))","v":""},{"$f":"IF('Blank - Request Form'!$F$6=\"CIASI\",IF(OR('Blank - Request Form'!G64=\"0\",'Blank - Request Form'!G64=\"00000\",'Blank - Request Form'!G64=0),\"\",'Blank - Request Form'!G64),IF('Blank - Request Form'!$F$7=\"CIASI\",IF(OR('Blank - Request Form'!P64=\"0\",'Blank - Request Form'!P64=\"00000\",'Blank - Request Form'!P64=0),\"\",'Blank - Request Form'!P64),\"\"))","v":""},{"$f":"IF('Blank - Request Form'!$F$6=\"CIASI\",IF(OR('Blank - Request Form'!H64=\"0\",'Blank - Request Form'!H64=\"00000\",'Blank - Request Form'!H64=0),\"\",'Blank - Request Form'!H64),IF('Blank - Request Form'!$F$7=\"CIASI\",IF(OR('Blank - Request Form'!Q64=\"0\",'Blank - Request Form'!Q64=\"00000\",'Blank - Request Form'!Q64=0),\"\",'Blank - Request Form'!Q64),\"\"))","v":""},{"$f":"IF('Blank - Request Form'!$F$6=\"CIASI\",IF(OR('Blank - Request Form'!I64=\"0\",'Blank - Request Form'!I64=\"00000\",'Blank - Request Form'!I64=0),\"\",'Blank - Request Form'!I64),IF('Blank - Request Form'!$F$7=\"CIASI\",IF(OR('Blank - Request Form'!R64=\"0\",'Blank - Request Form'!R64=\"00000\",'Blank - Request Form'!R64=0),\"\",'Blank - Request Form'!R64),\"\"))","v":""},null,{"$f":"IF('Blank - Request Form'!$F$6=\"CIASI\",IF('Blank - Request Form'!K64=0,\"\",'Blank - Request Form'!K64),IF('Blank - Request Form'!$F$7=\"CIASI\",IF('Blank - Request Form'!T64=0,\"\",'Blank - Request Form'!T64),\"\"))","v":""},null,null,null,{"$f":"IF(M30<>\"\",'Blank - Request Form'!$M$2,\"\")","v":""},{"$f":"IF('Blank - Request Form'!$F$6=\"CIASI\",IF('Blank - Request Form'!J64=0,\"\",'Blank - Request Form'!J64),IF('Blank - Request Form'!$F$7=\"CIASI\",IF('Blank - Request Form'!S64=0,\"\",'Blank - Request Form'!S64),\"\"))","v":""},"",30]
[{"$f":"IF('Blank - Request Form'!$F$6=\"CIASI\",IF('Blank - Request Form'!D65=0,\"\",'Blank - Request Form'!D65),IF('Blank - Request Form'!$F$7=\"CIASI\",IF('Blank - Request Form'!M65=0,\"\",'Blank - Request Form'!M65),\"\"))","v":""},{"$f":"IF('Blank - Request Form'!$F$6=\"CIASI\",IF('Blank - Request Form'!E65=0,\"\",'Blank - Request Form'!E65),IF('Blank - Request Form'!$F$7=\"CIASI\",IF('Blank - Request Form'!N65=0,\"\",'Blank - Request Form'!N65),\"\"))","v":""},{"$f":"IF('Blank - Request Form'!$F$6=\"CIASI\",IF(OR('Blank - Request Form'!F65=\"000\",'Blank - Request Form'!F65=0),\"\",'Blank - Request Form'!F65),IF('Blank - Request Form'!$F$7=\"CIASI\",IF(OR('Blank - Request Form'!O65=\"000\",'Blank - Request Form'!O65=0),\"\",'Blank - Request Form'!O65),\"\"))","v":""},{"$f":"IF('Blank - Request Form'!$F$6=\"CIASI\",IF(OR('Blank - Request Form'!G65=\"0\",'Blank - Request Form'!G65=\"00000\",'Blank - Request Form'!G65=0),\"\",'Blank - Request Form'!G65),IF('Blank - Request Form'!$F$7=\"CIASI\",IF(OR('Blank - Request Form'!P65=\"0\",'Blank - Request Form'!P65=\"00000\",'Blank - Request Form'!P65=0),\"\",'Blank - Request Form'!P65),\"\"))","v":""},{"$f":"IF('Blank - Request Form'!$F$6=\"CIASI\",IF(OR('Blank - Request Form'!H65=\"0\",'Blank - Request Form'!H65=\"00000\",'Blank - Request Form'!H65=0),\"\",'Blank - Request Form'!H65),IF('Blank - Request Form'!$F$7=\"CIASI\",IF(OR('Blank - Request Form'!Q65=\"0\",'Blank - Request Form'!Q65=\"00000\",'Blank - Request Form'!Q65=0),\"\",'Blank - Request Form'!Q65),\"\"))","v":""},{"$f":"IF('Blank - Request Form'!$F$6=\"CIASI\",IF(OR('Blank - Request Form'!I65=\"0\",'Blank - Request Form'!I65=\"00000\",'Blank - Request Form'!I65=0),\"\",'Blank - Request Form'!I65),IF('Blank - Request Form'!$F$7=\"CIASI\",IF(OR('Blank - Request Form'!R65=\"0\",'Blank - Request Form'!R65=\"00000\",'Blank - Request Form'!R65=0),\"\",'Blank - Request Form'!R65),\"\"))","v":""},null,{"$f":"IF('Blank - Request Form'!$F$6=\"CIASI\",IF('Blank - Request Form'!K65=0,\"\",'Blank - Request Form'!K65),IF('Blank - Request Form'!$F$7=\"CIASI\",IF('Blank - Request Form'!T65=0,\"\",'Blank - Request Form'!T65),\"\"))","v":""},null,null,null,{"$f":"IF(M31<>\"\",'Blank - Request Form'!$M$2,\"\")","v":""},{"$f":"IF('Blank - Request Form'!$F$6=\"CIASI\",IF('Blank - Request Form'!J65=0,\"\",'Blank - Request Form'!J65),IF('Blank - Request Form'!$F$7=\"CIASI\",IF('Blank - Request Form'!S65=0,\"\",'Blank - Request Form'!S65),\"\"))","v":""},"",31]
[{"$f":"IF('Blank - Request Form'!$F$6=\"CIASI\",IF('Blank - Request Form'!D66=0,\"\",'Blank - Request Form'!D66),IF('Blank - Request Form'!$F$7=\"CIASI\",IF('Blank - Request Form'!M66=0,\"\",'Blank - Request Form'!M66),\"\"))","v":""},{"$f":"IF('Blank - Request Form'!$F$6=\"CIASI\",IF('Blank - Request Form'!E66=0,\"\",'Blank - Request Form'!E66),IF('Blank - Request Form'!$F$7=\"CIASI\",IF('Blank - Request Form'!N66=0,\"\",'Blank - Request Form'!N66),\"\"))","v":""},{"$f":"IF('Blank - Request Form'!$F$6=\"CIASI\",IF(OR('Blank - Request Form'!F66=\"000\",'Blank - Request Form'!F66=0),\"\",'Blank - Request Form'!F66),IF('Blank - Request Form'!$F$7=\"CIASI\",IF(OR('Blank - Request Form'!O66=\"000\",'Blank - Request Form'!O66=0),\"\",'Blank - Request Form'!O66),\"\"))","v":""},{"$f":"IF('Blank - Request Form'!$F$6=\"CIASI\",IF(OR('Blank - Request Form'!G66=\"0\",'Blank - Request Form'!G66=\"00000\",'Blank - Request Form'!G66=0),\"\",'Blank - Request Form'!G66),IF('Blank - Request Form'!$F$7=\"CIASI\",IF(OR('Blank - Request Form'!P66=\"0\",'Blank - Request Form'!P66=\"00000\",'Blank - Request Form'!P66=0),\"\",'Blank - Request Form'!P66),\"\"))","v":""},{"$f":"IF('Blank - Request Form'!$F$6=\"CIASI\",IF(OR('Blank - Request Form'!H66=\"0\",'Blank - Request Form'!H66=\"00000\",'Blank - Request Form'!H66=0),\"\",'Blank - Request Form'!H66),IF('Blank - Request Form'!$F$7=\"CIASI\",IF(OR('Blank - Request Form'!Q66=\"0\",'Blank - Request Form'!Q66=\"00000\",'Blank - Request Form'!Q66=0),\"\",'Blank - Request Form'!Q66),\"\"))","v":""},{"$f":"IF('Blank - Request Form'!$F$6=\"CIASI\",IF(OR('Blank - Request Form'!I66=\"0\",'Blank - Request Form'!I66=\"00000\",'Blank - Request Form'!I66=0),\"\",'Blank - Request Form'!I66),IF('Blank - Request Form'!$F$7=\"CIASI\",IF(OR('Blank - Request Form'!R66=\"0\",'Blank - Request Form'!R66=\"00000\",'Blank - Request Form'!R66=0),\"\",'Blank - Request Form'!R66),\"\"))","v":""},null,{"$f":"IF('Blank - Request Form'!$F$6=\"CIASI\",IF('Blank - Request Form'!K66=0,\"\",'Blank - Request Form'!K66),IF('Blank - Request Form'!$F$7=\"CIASI\",IF('Blank - Request Form'!T66=0,\"\",'Blank - Request Form'!T66),\"\"))","v":""},null,null,null,{"$f":"IF(M32<>\"\",'Blank - Request Form'!$M$2,\"\")","v":""},{"$f":"IF('Blank - Request Form'!$F$6=\"CIASI\",IF('Blank - Request Form'!J66=0,\"\",'Blank - Request Form'!J66),IF('Blank - Request Form'!$F$7=\"CIASI\",IF('Blank - Request Form'!S66=0,\"\",'Blank - Request Form'!S66),\"\"))","v":""},"",32]
[{"$f":"IF('Blank - Request Form'!$F$6=\"CIASI\",IF('Blank - Request Form'!D67=0,\"\",'Blank - Request Form'!D67),IF('Blank - Request Form'!$F$7=\"CIASI\",IF('Blank - Request Form'!M67=0,\"\",'Blank - Request Form'!M67),\"\"))","v":""},{"$f":"IF('Blank - Request Form'!$F$6=\"CIASI\",IF('Blank - Request Form'!E67=0,\"\",'Blank - Request Form'!E67),IF('Blank - Request Form'!$F$7=\"CIASI\",IF('Blank - Request Form'!N67=0,\"\",'Blank - Request Form'!N67),\"\"))","v":""},{"$f":"IF('Blank - Request Form'!$F$6=\"CIASI\",IF(OR('Blank - Request Form'!F67=\"000\",'Blank - Request Form'!F67=0),\"\",'Blank - Request Form'!F67),IF('Blank - Request Form'!$F$7=\"CIASI\",IF(OR('Blank - Request Form'!O67=\"000\",'Blank - Request Form'!O67=0),\"\",'Blank - Request Form'!O67),\"\"))","v":""},{"$f":"IF('Blank - Request Form'!$F$6=\"CIASI\",IF(OR('Blank - Request Form'!G67=\"0\",'Blank - Request Form'!G67=\"00000\",'Blank - Request Form'!G67=0),\"\",'Blank - Request Form'!G67),IF('Blank - Request Form'!$F$7=\"CIASI\",IF(OR('Blank - Request Form'!P67=\"0\",'Blank - Request Form'!P67=\"00000\",'Blank - Request Form'!P67=0),\"\",'Blank - Request Form'!P67),\"\"))","v":""},{"$f":"IF('Blank - Request Form'!$F$6=\"CIASI\",IF(OR('Blank - Request Form'!H67=\"0\",'Blank - Request Form'!H67=\"00000\",'Blank - Request Form'!H67=0),\"\",'Blank - Request Form'!H67),IF('Blank - Request Form'!$F$7=\"CIASI\",IF(OR('Blank - Request Form'!Q67=\"0\",'Blank - Request Form'!Q67=\"00000\",'Blank - Request Form'!Q67=0),\"\",'Blank - Request Form'!Q67),\"\"))","v":""},{"$f":"IF('Blank - Request Form'!$F$6=\"CIASI\",IF(OR('Blank - Request Form'!I67=\"0\",'Blank - Request Form'!I67=\"00000\",'Blank - Request Form'!I67=0),\"\",'Blank - Request Form'!I67),IF('Blank - Request Form'!$F$7=\"CIASI\",IF(OR('Blank - Request Form'!R67=\"0\",'Blank - Request Form'!R67=\"00000\",'Blank - Request Form'!R67=0),\"\",'Blank - Request Form'!R67),\"\"))","v":""},null,{"$f":"IF('Blank - Request Form'!$F$6=\"CIASI\",IF('Blank - Request Form'!K67=0,\"\",'Blank - Request Form'!K67),IF('Blank - Request Form'!$F$7=\"CIASI\",IF('Blank - Request Form'!T67=0,\"\",'Blank - Request Form'!T67),\"\"))","v":""},null,null,null,{"$f":"IF(M33<>\"\",'Blank - Request Form'!$M$2,\"\")","v":""},{"$f":"IF('Blank - Request Form'!$F$6=\"CIASI\",IF('Blank - Request Form'!J67=0,\"\",'Blank - Request Form'!J67),IF('Blank - Request Form'!$F$7=\"CIASI\",IF('Blank - Request Form'!S67=0,\"\",'Blank - Request Form'!S67),\"\"))","v":""},"",33]
[{"$f":"IF('Blank - Request Form'!$F$6=\"CIASI\",IF('Blank - Request Form'!D68=0,\"\",'Blank - Request Form'!D68),IF('Blank - Request Form'!$F$7=\"CIASI\",IF('Blank - Request Form'!M68=0,\"\",'Blank - Request Form'!M68),\"\"))","v":""},{"$f":"IF('Blank - Request Form'!$F$6=\"CIASI\",IF('Blank - Request Form'!E68=0,\"\",'Blank - Request Form'!E68),IF('Blank - Request Form'!$F$7=\"CIASI\",IF('Blank - Request Form'!N68=0,\"\",'Blank - Request Form'!N68),\"\"))","v":""},{"$f":"IF('Blank - Request Form'!$F$6=\"CIASI\",IF(OR('Blank - Request Form'!F68=\"000\",'Blank - Request Form'!F68=0),\"\",'Blank - Request Form'!F68),IF('Blank - Request Form'!$F$7=\"CIASI\",IF(OR('Blank - Request Form'!O68=\"000\",'Blank - Request Form'!O68=0),\"\",'Blank - Request Form'!O68),\"\"))","v":""},{"$f":"IF('Blank - Request Form'!$F$6=\"CIASI\",IF(OR('Blank - Request Form'!G68=\"0\",'Blank - Request Form'!G68=\"00000\",'Blank - Request Form'!G68=0),\"\",'Blank - Request Form'!G68),IF('Blank - Request Form'!$F$7=\"CIASI\",IF(OR('Blank - Request Form'!P68=\"0\",'Blank - Request Form'!P68=\"00000\",'Blank - Request Form'!P68=0),\"\",'Blank - Request Form'!P68),\"\"))","v":""},{"$f":"IF('Blank - Request Form'!$F$6=\"CIASI\",IF(OR('Blank - Request Form'!H68=\"0\",'Blank - Request Form'!H68=\"00000\",'Blank - Request Form'!H68=0),\"\",'Blank - Request Form'!H68),IF('Blank - Request Form'!$F$7=\"CIASI\",IF(OR('Blank - Request Form'!Q68=\"0\",'Blank - Request Form'!Q68=\"00000\",'Blank - Request Form'!Q68=0),\"\",'Blank - Request Form'!Q68),\"\"))","v":""},{"$f":"IF('Blank - Request Form'!$F$6=\"CIASI\",IF(OR('Blank - Request Form'!I68=\"0\",'Blank - Request Form'!I68=\"00000\",'Blank - Request Form'!I68=0),\"\",'Blank - Request Form'!I68),IF('Blank - Request Form'!$F$7=\"CIASI\",IF(OR('Blank - Request Form'!R68=\"0\",'Blank - Request Form'!R68=\"00000\",'Blank - Request Form'!R68=0),\"\",'Blank - Request Form'!R68),\"\"))","v":""},null,{"$f":"IF('Blank - Request Form'!$F$6=\"CIASI\",IF('Blank - Request Form'!K68=0,\"\",'Blank - Request Form'!K68),IF('Blank - Request Form'!$F$7=\"CIASI\",IF('Blank - Request Form'!T68=0,\"\",'Blank - Request Form'!T68),\"\"))","v":""},null,null,null,{"$f":"IF(M34<>\"\",'Blank - Request Form'!$M$2,\"\")","v":""},{"$f":"IF('Blank - Request Form'!$F$6=\"CIASI\",IF('Blank - Request Form'!J68=0,\"\",'Blank - Request Form'!J68),IF('Blank - Request Form'!$F$7=\"CIASI\",IF('Blank - Request Form'!S68=0,\"\",'Blank - Request Form'!S68),\"\"))","v":""},"",34]
[{"$f":"IF('Blank - Request Form'!$F$6=\"CIASI\",IF('Blank - Request Form'!D69=0,\"\",'Blank - Request Form'!D69),IF('Blank - Request Form'!$F$7=\"CIASI\",IF('Blank - Request Form'!M69=0,\"\",'Blank - Request Form'!M69),\"\"))","v":""},{"$f":"IF('Blank - Request Form'!$F$6=\"CIASI\",IF('Blank - Request Form'!E69=0,\"\",'Blank - Request Form'!E69),IF('Blank - Request Form'!$F$7=\"CIASI\",IF('Blank - Request Form'!N69=0,\"\",'Blank - Request Form'!N69),\"\"))","v":""},{"$f":"IF('Blank - Request Form'!$F$6=\"CIASI\",IF(OR('Blank - Request Form'!F69=\"000\",'Blank - Request Form'!F69=0),\"\",'Blank - Request Form'!F69),IF('Blank - Request Form'!$F$7=\"CIASI\",IF(OR('Blank - Request Form'!O69=\"000\",'Blank - Request Form'!O69=0),\"\",'Blank - Request Form'!O69),\"\"))","v":""},{"$f":"IF('Blank - Request Form'!$F$6=\"CIASI\",IF(OR('Blank - Request Form'!G69=\"0\",'Blank - Request Form'!G69=\"00000\",'Blank - Request Form'!G69=0),\"\",'Blank - Request Form'!G69),IF('Blank - Request Form'!$F$7=\"CIASI\",IF(OR('Blank - Request Form'!P69=\"0\",'Blank - Request Form'!P69=\"00000\",'Blank - Request Form'!P69=0),\"\",'Blank - Request Form'!P69),\"\"))","v":""},{"$f":"IF('Blank - Request Form'!$F$6=\"CIASI\",IF(OR('Blank - Request Form'!H69=\"0\",'Blank - Request Form'!H69=\"00000\",'Blank - Request Form'!H69=0),\"\",'Blank - Request Form'!H69),IF('Blank - Request Form'!$F$7=\"CIASI\",IF(OR('Blank - Request Form'!Q69=\"0\",'Blank - Request Form'!Q69=\"00000\",'Blank - Request Form'!Q69=0),\"\",'Blank - Request Form'!Q69),\"\"))","v":""},{"$f":"IF('Blank - Request Form'!$F$6=\"CIASI\",IF(OR('Blank - Request Form'!I69=\"0\",'Blank - Request Form'!I69=\"00000\",'Blank - Request Form'!I69=0),\"\",'Blank - Request Form'!I69),IF('Blank - Request Form'!$F$7=\"CIASI\",IF(OR('Blank - Request Form'!R69=\"0\",'Blank - Request Form'!R69=\"00000\",'Blank - Request Form'!R69=0),\"\",'Blank - Request Form'!R69),\"\"))","v":""},null,{"$f":"IF('Blank - Request Form'!$F$6=\"CIASI\",IF('Blank - Request Form'!K69=0,\"\",'Blank - Request Form'!K69),IF('Blank - Request Form'!$F$7=\"CIASI\",IF('Blank - Request Form'!T69=0,\"\",'Blank - Request Form'!T69),\"\"))","v":""},null,null,null,{"$f":"IF(M35<>\"\",'Blank - Request Form'!$M$2,\"\")","v":""},{"$f":"IF('Blank - Request Form'!$F$6=\"CIASI\",IF('Blank - Request Form'!J69=0,\"\",'Blank - Request Form'!J69),IF('Blank - Request Form'!$F$7=\"CIASI\",IF('Blank - Request Form'!S69=0,\"\",'Blank - Request Form'!S69),\"\"))","v":""},"",35]
[{"$f":"IF('Blank - Request Form'!$F$6=\"CIASI\",IF('Blank - Request Form'!D70=0,\"\",'Blank - Request Form'!D70),IF('Blank - Request Form'!$F$7=\"CIASI\",IF('Blank - Request Form'!M70=0,\"\",'Blank - Request Form'!M70),\"\"))","v":""},{"$f":"IF('Blank - Request Form'!$F$6=\"CIASI\",IF('Blank - Request Form'!E70=0,\"\",'Blank - Request Form'!E70),IF('Blank - Request Form'!$F$7=\"CIASI\",IF('Blank - Request Form'!N70=0,\"\",'Blank - Request Form'!N70),\"\"))","v":""},{"$f":"IF('Blank - Request Form'!$F$6=\"CIASI\",IF(OR('Blank - Request Form'!F70=\"000\",'Blank - Request Form'!F70=0),\"\",'Blank - Request Form'!F70),IF('Blank - Request Form'!$F$7=\"CIASI\",IF(OR('Blank - Request Form'!O70=\"000\",'Blank - Request Form'!O70=0),\"\",'Blank - Request Form'!O70),\"\"))","v":""},{"$f":"IF('Blank - Request Form'!$F$6=\"CIASI\",IF(OR('Blank - Request Form'!G70=\"0\",'Blank - Request Form'!G70=\"00000\",'Blank - Request Form'!G70=0),\"\",'Blank - Request Form'!G70),IF('Blank - Request Form'!$F$7=\"CIASI\",IF(OR('Blank - Request Form'!P70=\"0\",'Blank - Request Form'!P70=\"00000\",'Blank - Request Form'!P70=0),\"\",'Blank - Request Form'!P70),\"\"))","v":""},{"$f":"IF('Blank - Request Form'!$F$6=\"CIASI\",IF(OR('Blank - Request Form'!H70=\"0\",'Blank - Request Form'!H70=\"00000\",'Blank - Request Form'!H70=0),\"\",'Blank - Request Form'!H70),IF('Blank - Request Form'!$F$7=\"CIASI\",IF(OR('Blank - Request Form'!Q70=\"0\",'Blank - Request Form'!Q70=\"00000\",'Blank - Request Form'!Q70=0),\"\",'Blank - Request Form'!Q70),\"\"))","v":""},{"$f":"IF('Blank - Request Form'!$F$6=\"CIASI\",IF(OR('Blank - Request Form'!I70=\"0\",'Blank - Request Form'!I70=\"00000\",'Blank - Request Form'!I70=0),\"\",'Blank - Request Form'!I70),IF('Blank - Request Form'!$F$7=\"CIASI\",IF(OR('Blank - Request Form'!R70=\"0\",'Blank - Request Form'!R70=\"00000\",'Blank - Request Form'!R70=0),\"\",'Blank - Request Form'!R70),\"\"))","v":""},null,{"$f":"IF('Blank - Request Form'!$F$6=\"CIASI\",IF('Blank - Request Form'!K70=0,\"\",'Blank - Request Form'!K70),IF('Blank - Request Form'!$F$7=\"CIASI\",IF('Blank - Request Form'!T70=0,\"\",'Blank - Request Form'!T70),\"\"))","v":""},null,null,null,{"$f":"IF(M36<>\"\",'Blank - Request Form'!$M$2,\"\")","v":""},{"$f":"IF('Blank - Request Form'!$F$6=\"CIASI\",IF('Blank - Request Form'!J70=0,\"\",'Blank - Request Form'!J70),IF('Blank - Request Form'!$F$7=\"CIASI\",IF('Blank - Request Form'!S70=0,\"\",'Blank - Request Form'!S70),\"\"))","v":""},"",36]
[{"$f":"IF('Blank - Request Form'!$F$6=\"CIASI\",IF('Blank - Request Form'!D71=0,\"\",'Blank - Request Form'!D71),IF('Blank - Request Form'!$F$7=\"CIASI\",IF('Blank - Request Form'!M71=0,\"\",'Blank - Request Form'!M71),\"\"))","v":""},{"$f":"IF('Blank - Request Form'!$F$6=\"CIASI\",IF('Blank - Request Form'!E71=0,\"\",'Blank - Request Form'!E71),IF('Blank - Request Form'!$F$7=\"CIASI\",IF('Blank - Request Form'!N71=0,\"\",'Blank - Request Form'!N71),\"\"))","v":""},{"$f":"IF('Blank - Request Form'!$F$6=\"CIASI\",IF(OR('Blank - Request Form'!F71=\"000\",'Blank - Request Form'!F71=0),\"\",'Blank - Request Form'!F71),IF('Blank - Request Form'!$F$7=\"CIASI\",IF(OR('Blank - Request Form'!O71=\"000\",'Blank - Request Form'!O71=0),\"\",'Blank - Request Form'!O71),\"\"))","v":""},{"$f":"IF('Blank - Request Form'!$F$6=\"CIASI\",IF(OR('Blank - Request Form'!G71=\"0\",'Blank - Request Form'!G71=\"00000\",'Blank - Request Form'!G71=0),\"\",'Blank - Request Form'!G71),IF('Blank - Request Form'!$F$7=\"CIASI\",IF(OR('Blank - Request Form'!P71=\"0\",'Blank - Request Form'!P71=\"00000\",'Blank - Request Form'!P71=0),\"\",'Blank - Request Form'!P71),\"\"))","v":""},{"$f":"IF('Blank - Request Form'!$F$6=\"CIASI\",IF(OR('Blank - Request Form'!H71=\"0\",'Blank - Request Form'!H71=\"00000\",'Blank - Request Form'!H71=0),\"\",'Blank - Request Form'!H71),IF('Blank - Request Form'!$F$7=\"CIASI\",IF(OR('Blank - Request Form'!Q71=\"0\",'Blank - Request Form'!Q71=\"00000\",'Blank - Request Form'!Q71=0),\"\",'Blank - Request Form'!Q71),\"\"))","v":""},{"$f":"IF('Blank - Request Form'!$F$6=\"CIASI\",IF(OR('Blank - Request Form'!I71=\"0\",'Blank - Request Form'!I71=\"00000\",'Blank - Request Form'!I71=0),\"\",'Blank - Request Form'!I71),IF('Blank - Request Form'!$F$7=\"CIASI\",IF(OR('Blank - Request Form'!R71=\"0\",'Blank - Request Form'!R71=\"00000\",'Blank - Request Form'!R71=0),\"\",'Blank - Request Form'!R71),\"\"))","v":""},null,{"$f":"IF('Blank - Request Form'!$F$6=\"CIASI\",IF('Blank - Request Form'!K71=0,\"\",'Blank - Request Form'!K71),IF('Blank - Request Form'!$F$7=\"CIASI\",IF('Blank - Request Form'!T71=0,\"\",'Blank - Request Form'!T71),\"\"))","v":""},null,null,null,{"$f":"IF(M37<>\"\",'Blank - Request Form'!$M$2,\"\")","v":""},{"$f":"IF('Blank - Request Form'!$F$6=\"CIASI\",IF('Blank - Request Form'!J71=0,\"\",'Blank - Request Form'!J71),IF('Blank - Request Form'!$F$7=\"CIASI\",IF('Blank - Request Form'!S71=0,\"\",'Blank - Request Form'!S71),\"\"))","v":""},"",37]
[{"$f":"IF('Blank - Request Form'!$F$6=\"CIASI\",IF('Blank - Request Form'!D72=0,\"\",'Blank - Request Form'!D72),IF('Blank - Request Form'!$F$7=\"CIASI\",IF('Blank - Request Form'!M72=0,\"\",'Blank - Request Form'!M72),\"\"))","v":""},{"$f":"IF('Blank - Request Form'!$F$6=\"CIASI\",IF('Blank - Request Form'!E72=0,\"\",'Blank - Request Form'!E72),IF('Blank - Request Form'!$F$7=\"CIASI\",IF('Blank - Request Form'!N72=0,\"\",'Blank - Request Form'!N72),\"\"))","v":""},{"$f":"IF('Blank - Request Form'!$F$6=\"CIASI\",IF(OR('Blank - Request Form'!F72=\"000\",'Blank - Request Form'!F72=0),\"\",'Blank - Request Form'!F72),IF('Blank - Request Form'!$F$7=\"CIASI\",IF(OR('Blank - Request Form'!O72=\"000\",'Blank - Request Form'!O72=0),\"\",'Blank - Request Form'!O72),\"\"))","v":""},{"$f":"IF('Blank - Request Form'!$F$6=\"CIASI\",IF(OR('Blank - Request Form'!G72=\"0\",'Blank - Request Form'!G72=\"00000\",'Blank - Request Form'!G72=0),\"\",'Blank - Request Form'!G72),IF('Blank - Request Form'!$F$7=\"CIASI\",IF(OR('Blank - Request Form'!P72=\"0\",'Blank - Request Form'!P72=\"00000\",'Blank - Request Form'!P72=0),\"\",'Blank - Request Form'!P72),\"\"))","v":""},{"$f":"IF('Blank - Request Form'!$F$6=\"CIASI\",IF(OR('Blank - Request Form'!H72=\"0\",'Blank - Request Form'!H72=\"00000\",'Blank - Request Form'!H72=0),\"\",'Blank - Request Form'!H72),IF('Blank - Request Form'!$F$7=\"CIASI\",IF(OR('Blank - Request Form'!Q72=\"0\",'Blank - Request Form'!Q72=\"00000\",'Blank - Request Form'!Q72=0),\"\",'Blank - Request Form'!Q72),\"\"))","v":""},{"$f":"IF('Blank - Request Form'!$F$6=\"CIASI\",IF(OR('Blank - Request Form'!I72=\"0\",'Blank - Request Form'!I72=\"00000\",'Blank - Request Form'!I72=0),\"\",'Blank - Request Form'!I72),IF('Blank - Request Form'!$F$7=\"CIASI\",IF(OR('Blank - Request Form'!R72=\"0\",'Blank - Request Form'!R72=\"00000\",'Blank - Request Form'!R72=0),\"\",'Blank - Request Form'!R72),\"\"))","v":""},null,{"$f":"IF('Blank - Request Form'!$F$6=\"CIASI\",IF('Blank - Request Form'!K72=0,\"\",'Blank - Request Form'!K72),IF('Blank - Request Form'!$F$7=\"CIASI\",IF('Blank - Request Form'!T72=0,\"\",'Blank - Request Form'!T72),\"\"))","v":""},null,null,null,{"$f":"IF(M38<>\"\",'Blank - Request Form'!$M$2,\"\")","v":""},{"$f":"IF('Blank - Request Form'!$F$6=\"CIASI\",IF('Blank - Request Form'!J72=0,\"\",'Blank - Request Form'!J72),IF('Blank - Request Form'!$F$7=\"CIASI\",IF('Blank - Request Form'!S72=0,\"\",'Blank - Request Form'!S72),\"\"))","v":""},"",38]
[{"$f":"IF('Blank - Request Form'!$F$6=\"CIASI\",IF('Blank - Request Form'!D73=0,\"\",'Blank - Request Form'!D73),IF('Blank - Request Form'!$F$7=\"CIASI\",IF('Blank - Request Form'!M73=0,\"\",'Blank - Request Form'!M73),\"\"))","v":""},{"$f":"IF('Blank - Request Form'!$F$6=\"CIASI\",IF('Blank - Request Form'!E73=0,\"\",'Blank - Request Form'!E73),IF('Blank - Request Form'!$F$7=\"CIASI\",IF('Blank - Request Form'!N73=0,\"\",'Blank - Request Form'!N73),\"\"))","v":""},{"$f":"IF('Blank - Request Form'!$F$6=\"CIASI\",IF(OR('Blank - Request Form'!F73=\"000\",'Blank - Request Form'!F73=0),\"\",'Blank - Request Form'!F73),IF('Blank - Request Form'!$F$7=\"CIASI\",IF(OR('Blank - Request Form'!O73=\"000\",'Blank - Request Form'!O73=0),\"\",'Blank - Request Form'!O73),\"\"))","v":""},{"$f":"IF('Blank - Request Form'!$F$6=\"CIASI\",IF(OR('Blank - Request Form'!G73=\"0\",'Blank - Request Form'!G73=\"00000\",'Blank - Request Form'!G73=0),\"\",'Blank - Request Form'!G73),IF('Blank - Request Form'!$F$7=\"CIASI\",IF(OR('Blank - Request Form'!P73=\"0\",'Blank - Request Form'!P73=\"00000\",'Blank - Request Form'!P73=0),\"\",'Blank - Request Form'!P73),\"\"))","v":""},{"$f":"IF('Blank - Request Form'!$F$6=\"CIASI\",IF(OR('Blank - Request Form'!H73=\"0\",'Blank - Request Form'!H73=\"00000\",'Blank - Request Form'!H73=0),\"\",'Blank - Request Form'!H73),IF('Blank - Request Form'!$F$7=\"CIASI\",IF(OR('Blank - Request Form'!Q73=\"0\",'Blank - Request Form'!Q73=\"00000\",'Blank - Request Form'!Q73=0),\"\",'Blank - Request Form'!Q73),\"\"))","v":""},{"$f":"IF('Blank - Request Form'!$F$6=\"CIASI\",IF(OR('Blank - Request Form'!I73=\"0\",'Blank - Request Form'!I73=\"00000\",'Blank - Request Form'!I73=0),\"\",'Blank - Request Form'!I73),IF('Blank - Request Form'!$F$7=\"CIASI\",IF(OR('Blank - Request Form'!R73=\"0\",'Blank - Request Form'!R73=\"00000\",'Blank - Request Form'!R73=0),\"\",'Blank - Request Form'!R73),\"\"))","v":""},null,{"$f":"IF('Blank - Request Form'!$F$6=\"CIASI\",IF('Blank - Request Form'!K73=0,\"\",'Blank - Request Form'!K73),IF('Blank - Request Form'!$F$7=\"CIASI\",IF('Blank - Request Form'!T73=0,\"\",'Blank - Request Form'!T73),\"\"))","v":""},null,null,null,{"$f":"IF(M39<>\"\",'Blank - Request Form'!$M$2,\"\")","v":""},{"$f":"IF('Blank - Request Form'!$F$6=\"CIASI\",IF('Blank - Request Form'!J73=0,\"\",'Blank - Request Form'!J73),IF('Blank - Request Form'!$F$7=\"CIASI\",IF('Blank - Request Form'!S73=0,\"\",'Blank - Request Form'!S73),\"\"))","v":""},"",39]
[{"$f":"IF('Blank - Request Form'!$F$6=\"CIASI\",IF('Blank - Request Form'!D74=0,\"\",'Blank - Request Form'!D74),IF('Blank - Request Form'!$F$7=\"CIASI\",IF('Blank - Request Form'!M74=0,\"\",'Blank - Request Form'!M74),\"\"))","v":""},{"$f":"IF('Blank - Request Form'!$F$6=\"CIASI\",IF('Blank - Request Form'!E74=0,\"\",'Blank - Request Form'!E74),IF('Blank - Request Form'!$F$7=\"CIASI\",IF('Blank - Request Form'!N74=0,\"\",'Blank - Request Form'!N74),\"\"))","v":""},{"$f":"IF('Blank - Request Form'!$F$6=\"CIASI\",IF(OR('Blank - Request Form'!F74=\"000\",'Blank - Request Form'!F74=0),\"\",'Blank - Request Form'!F74),IF('Blank - Request Form'!$F$7=\"CIASI\",IF(OR('Blank - Request Form'!O74=\"000\",'Blank - Request Form'!O74=0),\"\",'Blank - Request Form'!O74),\"\"))","v":""},{"$f":"IF('Blank - Request Form'!$F$6=\"CIASI\",IF(OR('Blank - Request Form'!G74=\"0\",'Blank - Request Form'!G74=\"00000\",'Blank - Request Form'!G74=0),\"\",'Blank - Request Form'!G74),IF('Blank - Request Form'!$F$7=\"CIASI\",IF(OR('Blank - Request Form'!P74=\"0\",'Blank - Request Form'!P74=\"00000\",'Blank - Request Form'!P74=0),\"\",'Blank - Request Form'!P74),\"\"))","v":""},{"$f":"IF('Blank - Request Form'!$F$6=\"CIASI\",IF(OR('Blank - Request Form'!H74=\"0\",'Blank - Request Form'!H74=\"00000\",'Blank - Request Form'!H74=0),\"\",'Blank - Request Form'!H74),IF('Blank - Request Form'!$F$7=\"CIASI\",IF(OR('Blank - Request Form'!Q74=\"0\",'Blank - Request Form'!Q74=\"00000\",'Blank - Request Form'!Q74=0),\"\",'Blank - Request Form'!Q74),\"\"))","v":""},{"$f":"IF('Blank - Request Form'!$F$6=\"CIASI\",IF(OR('Blank - Request Form'!I74=\"0\",'Blank - Request Form'!I74=\"00000\",'Blank - Request Form'!I74=0),\"\",'Blank - Request Form'!I74),IF('Blank - Request Form'!$F$7=\"CIASI\",IF(OR('Blank - Request Form'!R74=\"0\",'Blank - Request Form'!R74=\"00000\",'Blank - Request Form'!R74=0),\"\",'Blank - Request Form'!R74),\"\"))","v":""},null,{"$f":"IF('Blank - Request Form'!$F$6=\"CIASI\",IF('Blank - Request Form'!K74=0,\"\",'Blank - Request Form'!K74),IF('Blank - Request Form'!$F$7=\"CIASI\",IF('Blank - Request Form'!T74=0,\"\",'Blank - Request Form'!T74),\"\"))","v":""},null,null,null,{"$f":"IF(M40<>\"\",'Blank - Request Form'!$M$2,\"\")","v":""},{"$f":"IF('Blank - Request Form'!$F$6=\"CIASI\",IF('Blank - Request Form'!J74=0,\"\",'Blank - Request Form'!J74),IF('Blank - Request Form'!$F$7=\"CIASI\",IF('Blank - Request Form'!S74=0,\"\",'Blank - Request Form'!S74),\"\"))","v":""},"",40]
[{"$f":"IF('Blank - Request Form'!$F$6=\"CIASI\",IF('Blank - Request Form'!D75=0,\"\",'Blank - Request Form'!D75),IF('Blank - Request Form'!$F$7=\"CIASI\",IF('Blank - Request Form'!M75=0,\"\",'Blank - Request Form'!M75),\"\"))","v":""},{"$f":"IF('Blank - Request Form'!$F$6=\"CIASI\",IF('Blank - Request Form'!E75=0,\"\",'Blank - Request Form'!E75),IF('Blank - Request Form'!$F$7=\"CIASI\",IF('Blank - Request Form'!N75=0,\"\",'Blank - Request Form'!N75),\"\"))","v":""},{"$f":"IF('Blank - Request Form'!$F$6=\"CIASI\",IF(OR('Blank - Request Form'!F75=\"000\",'Blank - Request Form'!F75=0),\"\",'Blank - Request Form'!F75),IF('Blank - Request Form'!$F$7=\"CIASI\",IF(OR('Blank - Request Form'!O75=\"000\",'Blank - Request Form'!O75=0),\"\",'Blank - Request Form'!O75),\"\"))","v":""},{"$f":"IF('Blank - Request Form'!$F$6=\"CIASI\",IF(OR('Blank - Request Form'!G75=\"0\",'Blank - Request Form'!G75=\"00000\",'Blank - Request Form'!G75=0),\"\",'Blank - Request Form'!G75),IF('Blank - Request Form'!$F$7=\"CIASI\",IF(OR('Blank - Request Form'!P75=\"0\",'Blank - Request Form'!P75=\"00000\",'Blank - Request Form'!P75=0),\"\",'Blank - Request Form'!P75),\"\"))","v":""},{"$f":"IF('Blank - Request Form'!$F$6=\"CIASI\",IF(OR('Blank - Request Form'!H75=\"0\",'Blank - Request Form'!H75=\"00000\",'Blank - Request Form'!H75=0),\"\",'Blank - Request Form'!H75),IF('Blank - Request Form'!$F$7=\"CIASI\",IF(OR('Blank - Request Form'!Q75=\"0\",'Blank - Request Form'!Q75=\"00000\",'Blank - Request Form'!Q75=0),\"\",'Blank - Request Form'!Q75),\"\"))","v":""},{"$f":"IF('Blank - Request Form'!$F$6=\"CIASI\",IF(OR('Blank - Request Form'!I75=\"0\",'Blank - Request Form'!I75=\"00000\",'Blank - Request Form'!I75=0),\"\",'Blank - Request Form'!I75),IF('Blank - Request Form'!$F$7=\"CIASI\",IF(OR('Blank - Request Form'!R75=\"0\",'Blank - Request Form'!R75=\"00000\",'Blank - Request Form'!R75=0),\"\",'Blank - Request Form'!R75),\"\"))","v":""},null,{"$f":"IF('Blank - Request Form'!$F$6=\"CIASI\",IF('Blank - Request Form'!K75=0,\"\",'Blank - Request Form'!K75),IF('Blank - Request Form'!$F$7=\"CIASI\",IF('Blank - Request Form'!T75=0,\"\",'Blank - Request Form'!T75),\"\"))","v":""},null,null,null,{"$f":"IF(M41<>\"\",'Blank - Request Form'!$M$2,\"\")","v":""},{"$f":"IF('Blank - Request Form'!$F$6=\"CIASI\",IF('Blank - Request Form'!J75=0,\"\",'Blank - Request Form'!J75),IF('Blank - Request Form'!$F$7=\"CIASI\",IF('Blank - Request Form'!S75=0,\"\",'Blank - Request Form'!S75),\"\"))","v":""},"",41]
[{"$f":"IF('Blank - Request Form'!$F$6=\"CIASI\",IF('Blank - Request Form'!D76=0,\"\",'Blank - Request Form'!D76),IF('Blank - Request Form'!$F$7=\"CIASI\",IF('Blank - Request Form'!M76=0,\"\",'Blank - Request Form'!M76),\"\"))","v":""},{"$f":"IF('Blank - Request Form'!$F$6=\"CIASI\",IF('Blank - Request Form'!E76=0,\"\",'Blank - Request Form'!E76),IF('Blank - Request Form'!$F$7=\"CIASI\",IF('Blank - Request Form'!N76=0,\"\",'Blank - Request Form'!N76),\"\"))","v":""},{"$f":"IF('Blank - Request Form'!$F$6=\"CIASI\",IF(OR('Blank - Request Form'!F76=\"000\",'Blank - Request Form'!F76=0),\"\",'Blank - Request Form'!F76),IF('Blank - Request Form'!$F$7=\"CIASI\",IF(OR('Blank - Request Form'!O76=\"000\",'Blank - Request Form'!O76=0),\"\",'Blank - Request Form'!O76),\"\"))","v":""},{"$f":"IF('Blank - Request Form'!$F$6=\"CIASI\",IF(OR('Blank - Request Form'!G76=\"0\",'Blank - Request Form'!G76=\"00000\",'Blank - Request Form'!G76=0),\"\",'Blank - Request Form'!G76),IF('Blank - Request Form'!$F$7=\"CIASI\",IF(OR('Blank - Request Form'!P76=\"0\",'Blank - Request Form'!P76=\"00000\",'Blank - Request Form'!P76=0),\"\",'Blank - Request Form'!P76),\"\"))","v":""},{"$f":"IF('Blank - Request Form'!$F$6=\"CIASI\",IF(OR('Blank - Request Form'!H76=\"0\",'Blank - Request Form'!H76=\"00000\",'Blank - Request Form'!H76=0),\"\",'Blank - Request Form'!H76),IF('Blank - Request Form'!$F$7=\"CIASI\",IF(OR('Blank - Request Form'!Q76=\"0\",'Blank - Request Form'!Q76=\"00000\",'Blank - Request Form'!Q76=0),\"\",'Blank - Request Form'!Q76),\"\"))","v":""},{"$f":"IF('Blank - Request Form'!$F$6=\"CIASI\",IF(OR('Blank - Request Form'!I76=\"0\",'Blank - Request Form'!I76=\"00000\",'Blank - Request Form'!I76=0),\"\",'Blank - Request Form'!I76),IF('Blank - Request Form'!$F$7=\"CIASI\",IF(OR('Blank - Request Form'!R76=\"0\",'Blank - Request Form'!R76=\"00000\",'Blank - Request Form'!R76=0),\"\",'Blank - Request Form'!R76),\"\"))","v":""},null,{"$f":"IF('Blank - Request Form'!$F$6=\"CIASI\",IF('Blank - Request Form'!K76=0,\"\",'Blank - Request Form'!K76),IF('Blank - Request Form'!$F$7=\"CIASI\",IF('Blank - Request Form'!T76=0,\"\",'Blank - Request Form'!T76),\"\"))","v":""},null,null,null,{"$f":"IF(M42<>\"\",'Blank - Request Form'!$M$2,\"\")","v":""},{"$f":"IF('Blank - Request Form'!$F$6=\"CIASI\",IF('Blank - Request Form'!J76=0,\"\",'Blank - Request Form'!J76),IF('Blank - Request Form'!$F$7=\"CIASI\",IF('Blank - Request Form'!S76=0,\"\",'Blank - Request Form'!S76),\"\"))","v":""},"",42]
[{"$f":"IF('Blank - Request Form'!$F$6=\"CIASI\",IF('Blank - Request Form'!D77=0,\"\",'Blank - Request Form'!D77),IF('Blank - Request Form'!$F$7=\"CIASI\",IF('Blank - Request Form'!M77=0,\"\",'Blank - Request Form'!M77),\"\"))","v":""},{"$f":"IF('Blank - Request Form'!$F$6=\"CIASI\",IF('Blank - Request Form'!E77=0,\"\",'Blank - Request Form'!E77),IF('Blank - Request Form'!$F$7=\"CIASI\",IF('Blank - Request Form'!N77=0,\"\",'Blank - Request Form'!N77),\"\"))","v":""},{"$f":"IF('Blank - Request Form'!$F$6=\"CIASI\",IF(OR('Blank - Request Form'!F77=\"000\",'Blank - Request Form'!F77=0),\"\",'Blank - Request Form'!F77),IF('Blank - Request Form'!$F$7=\"CIASI\",IF(OR('Blank - Request Form'!O77=\"000\",'Blank - Request Form'!O77=0),\"\",'Blank - Request Form'!O77),\"\"))","v":""},{"$f":"IF('Blank - Request Form'!$F$6=\"CIASI\",IF(OR('Blank - Request Form'!G77=\"0\",'Blank - Request Form'!G77=\"00000\",'Blank - Request Form'!G77=0),\"\",'Blank - Request Form'!G77),IF('Blank - Request Form'!$F$7=\"CIASI\",IF(OR('Blank - Request Form'!P77=\"0\",'Blank - Request Form'!P77=\"00000\",'Blank - Request Form'!P77=0),\"\",'Blank - Request Form'!P77),\"\"))","v":""},{"$f":"IF('Blank - Request Form'!$F$6=\"CIASI\",IF(OR('Blank - Request Form'!H77=\"0\",'Blank - Request Form'!H77=\"00000\",'Blank - Request Form'!H77=0),\"\",'Blank - Request Form'!H77),IF('Blank - Request Form'!$F$7=\"CIASI\",IF(OR('Blank - Request Form'!Q77=\"0\",'Blank - Request Form'!Q77=\"00000\",'Blank - Request Form'!Q77=0),\"\",'Blank - Request Form'!Q77),\"\"))","v":""},{"$f":"IF('Blank - Request Form'!$F$6=\"CIASI\",IF(OR('Blank - Request Form'!I77=\"0\",'Blank - Request Form'!I77=\"00000\",'Blank - Request Form'!I77=0),\"\",'Blank - Request Form'!I77),IF('Blank - Request Form'!$F$7=\"CIASI\",IF(OR('Blank - Request Form'!R77=\"0\",'Blank - Request Form'!R77=\"00000\",'Blank - Request Form'!R77=0),\"\",'Blank - Request Form'!R77),\"\"))","v":""},null,{"$f":"IF('Blank - Request Form'!$F$6=\"CIASI\",IF('Blank - Request Form'!K77=0,\"\",'Blank - Request Form'!K77),IF('Blank - Request Form'!$F$7=\"CIASI\",IF('Blank - Request Form'!T77=0,\"\",'Blank - Request Form'!T77),\"\"))","v":""},null,null,null,{"$f":"IF(M43<>\"\",'Blank - Request Form'!$M$2,\"\")","v":""},{"$f":"IF('Blank - Request Form'!$F$6=\"CIASI\",IF('Blank - Request Form'!J77=0,\"\",'Blank - Request Form'!J77),IF('Blank - Request Form'!$F$7=\"CIASI\",IF('Blank - Request Form'!S77=0,\"\",'Blank - Request Form'!S77),\"\"))","v":""},"",43]
[{"$f":"IF('Blank - Request Form'!$F$6=\"CIASI\",IF('Blank - Request Form'!D78=0,\"\",'Blank - Request Form'!D78),IF('Blank - Request Form'!$F$7=\"CIASI\",IF('Blank - Request Form'!M78=0,\"\",'Blank - Request Form'!M78),\"\"))","v":""},{"$f":"IF('Blank - Request Form'!$F$6=\"CIASI\",IF('Blank - Request Form'!E78=0,\"\",'Blank - Request Form'!E78),IF('Blank - Request Form'!$F$7=\"CIASI\",IF('Blank - Request Form'!N78=0,\"\",'Blank - Request Form'!N78),\"\"))","v":""},{"$f":"IF('Blank - Request Form'!$F$6=\"CIASI\",IF(OR('Blank - Request Form'!F78=\"000\",'Blank - Request Form'!F78=0),\"\",'Blank - Request Form'!F78),IF('Blank - Request Form'!$F$7=\"CIASI\",IF(OR('Blank - Request Form'!O78=\"000\",'Blank - Request Form'!O78=0),\"\",'Blank - Request Form'!O78),\"\"))","v":""},{"$f":"IF('Blank - Request Form'!$F$6=\"CIASI\",IF(OR('Blank - Request Form'!G78=\"0\",'Blank - Request Form'!G78=\"00000\",'Blank - Request Form'!G78=0),\"\",'Blank - Request Form'!G78),IF('Blank - Request Form'!$F$7=\"CIASI\",IF(OR('Blank - Request Form'!P78=\"0\",'Blank - Request Form'!P78=\"00000\",'Blank - Request Form'!P78=0),\"\",'Blank - Request Form'!P78),\"\"))","v":""},{"$f":"IF('Blank - Request Form'!$F$6=\"CIASI\",IF(OR('Blank - Request Form'!H78=\"0\",'Blank - Request Form'!H78=\"00000\",'Blank - Request Form'!H78=0),\"\",'Blank - Request Form'!H78),IF('Blank - Request Form'!$F$7=\"CIASI\",IF(OR('Blank - Request Form'!Q78=\"0\",'Blank - Request Form'!Q78=\"00000\",'Blank - Request Form'!Q78=0),\"\",'Blank - Request Form'!Q78),\"\"))","v":""},{"$f":"IF('Blank - Request Form'!$F$6=\"CIASI\",IF(OR('Blank - Request Form'!I78=\"0\",'Blank - Request Form'!I78=\"00000\",'Blank - Request Form'!I78=0),\"\",'Blank - Request Form'!I78),IF('Blank - Request Form'!$F$7=\"CIASI\",IF(OR('Blank - Request Form'!R78=\"0\",'Blank - Request Form'!R78=\"00000\",'Blank - Request Form'!R78=0),\"\",'Blank - Request Form'!R78),\"\"))","v":""},null,{"$f":"IF('Blank - Request Form'!$F$6=\"CIASI\",IF('Blank - Request Form'!K78=0,\"\",'Blank - Request Form'!K78),IF('Blank - Request Form'!$F$7=\"CIASI\",IF('Blank - Request Form'!T78=0,\"\",'Blank - Request Form'!T78),\"\"))","v":""},null,null,null,{"$f":"IF(M44<>\"\",'Blank - Request Form'!$M$2,\"\")","v":""},{"$f":"IF('Blank - Request Form'!$F$6=\"CIASI\",IF('Blank - Request Form'!J78=0,\"\",'Blank - Request Form'!J78),IF('Blank - Request Form'!$F$7=\"CIASI\",IF('Blank - Request Form'!S78=0,\"\",'Blank - Request Form'!S78),\"\"))","v":""},"",44]
[{"$f":"IF('Blank - Request Form'!$F$6=\"CIASI\",IF('Blank - Request Form'!D79=0,\"\",'Blank - Request Form'!D79),IF('Blank - Request Form'!$F$7=\"CIASI\",IF('Blank - Request Form'!M79=0,\"\",'Blank - Request Form'!M79),\"\"))","v":""},{"$f":"IF('Blank - Request Form'!$F$6=\"CIASI\",IF('Blank - Request Form'!E79=0,\"\",'Blank - Request Form'!E79),IF('Blank - Request Form'!$F$7=\"CIASI\",IF('Blank - Request Form'!N79=0,\"\",'Blank - Request Form'!N79),\"\"))","v":""},{"$f":"IF('Blank - Request Form'!$F$6=\"CIASI\",IF(OR('Blank - Request Form'!F79=\"000\",'Blank - Request Form'!F79=0),\"\",'Blank - Request Form'!F79),IF('Blank - Request Form'!$F$7=\"CIASI\",IF(OR('Blank - Request Form'!O79=\"000\",'Blank - Request Form'!O79=0),\"\",'Blank - Request Form'!O79),\"\"))","v":""},{"$f":"IF('Blank - Request Form'!$F$6=\"CIASI\",IF(OR('Blank - Request Form'!G79=\"0\",'Blank - Request Form'!G79=\"00000\",'Blank - Request Form'!G79=0),\"\",'Blank - Request Form'!G79),IF('Blank - Request Form'!$F$7=\"CIASI\",IF(OR('Blank - Request Form'!P79=\"0\",'Blank - Request Form'!P79=\"00000\",'Blank - Request Form'!P79=0),\"\",'Blank - Request Form'!P79),\"\"))","v":""},{"$f":"IF('Blank - Request Form'!$F$6=\"CIASI\",IF(OR('Blank - Request Form'!H79=\"0\",'Blank - Request Form'!H79=\"00000\",'Blank - Request Form'!H79=0),\"\",'Blank - Request Form'!H79),IF('Blank - Request Form'!$F$7=\"CIASI\",IF(OR('Blank - Request Form'!Q79=\"0\",'Blank - Request Form'!Q79=\"00000\",'Blank - Request Form'!Q79=0),\"\",'Blank - Request Form'!Q79),\"\"))","v":""},{"$f":"IF('Blank - Request Form'!$F$6=\"CIASI\",IF(OR('Blank - Request Form'!I79=\"0\",'Blank - Request Form'!I79=\"00000\",'Blank - Request Form'!I79=0),\"\",'Blank - Request Form'!I79),IF('Blank - Request Form'!$F$7=\"CIASI\",IF(OR('Blank - Request Form'!R79=\"0\",'Blank - Request Form'!R79=\"00000\",'Blank - Request Form'!R79=0),\"\",'Blank - Request Form'!R79),\"\"))","v":""},null,{"$f":"IF('Blank - Request Form'!$F$6=\"CIASI\",IF('Blank - Request Form'!K79=0,\"\",'Blank - Request Form'!K79),IF('Blank - Request Form'!$F$7=\"CIASI\",IF('Blank - Request Form'!T79=0,\"\",'Blank - Request Form'!T79),\"\"))","v":""},null,null,null,{"$f":"IF(M45<>\"\",'Blank - Request Form'!$M$2,\"\")","v":""},{"$f":"IF('Blank - Request Form'!$F$6=\"CIASI\",IF('Blank - Request Form'!J79=0,\"\",'Blank - Request Form'!J79),IF('Blank - Request Form'!$F$7=\"CIASI\",IF('Blank - Request Form'!S79=0,\"\",'Blank - Request Form'!S79),\"\"))","v":""},{"$f":"IF(M45<>\"\",O45,\"\")","v":""},45]
[{"$f":"IF('Blank - Request Form'!$F$6=\"CIASI\",IF('Blank - Request Form'!D80=0,\"\",'Blank - Request Form'!D80),IF('Blank - Request Form'!$F$7=\"CIASI\",IF('Blank - Request Form'!M80=0,\"\",'Blank - Request Form'!M80),\"\"))","v":""},{"$f":"IF('Blank - Request Form'!$F$6=\"CIASI\",IF('Blank - Request Form'!E80=0,\"\",'Blank - Request Form'!E80),IF('Blank - Request Form'!$F$7=\"CIASI\",IF('Blank - Request Form'!N80=0,\"\",'Blank - Request Form'!N80),\"\"))","v":""},{"$f":"IF('Blank - Request Form'!$F$6=\"CIASI\",IF(OR('Blank - Request Form'!F80=\"000\",'Blank - Request Form'!F80=0),\"\",'Blank - Request Form'!F80),IF('Blank - Request Form'!$F$7=\"CIASI\",IF(OR('Blank - Request Form'!O80=\"000\",'Blank - Request Form'!O80=0),\"\",'Blank - Request Form'!O80),\"\"))","v":""},{"$f":"IF('Blank - Request Form'!$F$6=\"CIASI\",IF(OR('Blank - Request Form'!G80=\"0\",'Blank - Request Form'!G80=\"00000\",'Blank - Request Form'!G80=0),\"\",'Blank - Request Form'!G80),IF('Blank - Request Form'!$F$7=\"CIASI\",IF(OR('Blank - Request Form'!P80=\"0\",'Blank - Request Form'!P80=\"00000\",'Blank - Request Form'!P80=0),\"\",'Blank - Request Form'!P80),\"\"))","v":""},{"$f":"IF('Blank - Request Form'!$F$6=\"CIASI\",IF(OR('Blank - Request Form'!H80=\"0\",'Blank - Request Form'!H80=\"00000\",'Blank - Request Form'!H80=0),\"\",'Blank - Request Form'!H80),IF('Blank - Request Form'!$F$7=\"CIASI\",IF(OR('Blank - Request Form'!Q80=\"0\",'Blank - Request Form'!Q80=\"00000\",'Blank - Request Form'!Q80=0),\"\",'Blank - Request Form'!Q80),\"\"))","v":""},{"$f":"IF('Blank - Request Form'!$F$6=\"CIASI\",IF(OR('Blank - Request Form'!I80=\"0\",'Blank - Request Form'!I80=\"00000\",'Blank - Request Form'!I80=0),\"\",'Blank - Request Form'!I80),IF('Blank - Request Form'!$F$7=\"CIASI\",IF(OR('Blank - Request Form'!R80=\"0\",'Blank - Request Form'!R80=\"00000\",'Blank - Request Form'!R80=0),\"\",'Blank - Request Form'!R80),\"\"))","v":""},null,{"$f":"IF('Blank - Request Form'!$F$6=\"CIASI\",IF('Blank - Request Form'!K80=0,\"\",'Blank - Request Form'!K80),IF('Blank - Request Form'!$F$7=\"CIASI\",IF('Blank - Request Form'!T80=0,\"\",'Blank - Request Form'!T80),\"\"))","v":""},null,null,null,{"$f":"IF(M46<>\"\",'Blank - Request Form'!$M$2,\"\")","v":""},{"$f":"IF('Blank - Request Form'!$F$6=\"CIASI\",IF('Blank - Request Form'!J80=0,\"\",'Blank - Request Form'!J80),IF('Blank - Request Form'!$F$7=\"CIASI\",IF('Blank - Request Form'!S80=0,\"\",'Blank - Request Form'!S80),\"\"))","v":""},"",46]
[{"$f":"IF('Blank - Request Form'!$F$6=\"CIASI\",IF('Blank - Request Form'!D81=0,\"\",'Blank - Request Form'!D81),IF('Blank - Request Form'!$F$7=\"CIASI\",IF('Blank - Request Form'!M81=0,\"\",'Blank - Request Form'!M81),\"\"))","v":""},{"$f":"IF('Blank - Request Form'!$F$6=\"CIASI\",IF('Blank - Request Form'!E81=0,\"\",'Blank - Request Form'!E81),IF('Blank - Request Form'!$F$7=\"CIASI\",IF('Blank - Request Form'!N81=0,\"\",'Blank - Request Form'!N81),\"\"))","v":""},{"$f":"IF('Blank - Request Form'!$F$6=\"CIASI\",IF(OR('Blank - Request Form'!F81=\"000\",'Blank - Request Form'!F81=0),\"\",'Blank - Request Form'!F81),IF('Blank - Request Form'!$F$7=\"CIASI\",IF(OR('Blank - Request Form'!O81=\"000\",'Blank - Request Form'!O81=0),\"\",'Blank - Request Form'!O81),\"\"))","v":""},{"$f":"IF('Blank - Request Form'!$F$6=\"CIASI\",IF(OR('Blank - Request Form'!G81=\"0\",'Blank - Request Form'!G81=\"00000\",'Blank - Request Form'!G81=0),\"\",'Blank - Request Form'!G81),IF('Blank - Request Form'!$F$7=\"CIASI\",IF(OR('Blank - Request Form'!P81=\"0\",'Blank - Request Form'!P81=\"00000\",'Blank - Request Form'!P81=0),\"\",'Blank - Request Form'!P81),\"\"))","v":""},{"$f":"IF('Blank - Request Form'!$F$6=\"CIASI\",IF(OR('Blank - Request Form'!H81=\"0\",'Blank - Request Form'!H81=\"00000\",'Blank - Request Form'!H81=0),\"\",'Blank - Request Form'!H81),IF('Blank - Request Form'!$F$7=\"CIASI\",IF(OR('Blank - Request Form'!Q81=\"0\",'Blank - Request Form'!Q81=\"00000\",'Blank - Request Form'!Q81=0),\"\",'Blank - Request Form'!Q81),\"\"))","v":""},{"$f":"IF('Blank - Request Form'!$F$6=\"CIASI\",IF(OR('Blank - Request Form'!I81=\"0\",'Blank - Request Form'!I81=\"00000\",'Blank - Request Form'!I81=0),\"\",'Blank - Request Form'!I81),IF('Blank - Request Form'!$F$7=\"CIASI\",IF(OR('Blank - Request Form'!R81=\"0\",'Blank - Request Form'!R81=\"00000\",'Blank - Request Form'!R81=0),\"\",'Blank - Request Form'!R81),\"\"))","v":""},null,{"$f":"IF('Blank - Request Form'!$F$6=\"CIASI\",IF('Blank - Request Form'!K81=0,\"\",'Blank - Request Form'!K81),IF('Blank - Request Form'!$F$7=\"CIASI\",IF('Blank - Request Form'!T81=0,\"\",'Blank - Request Form'!T81),\"\"))","v":""},null,null,null,{"$f":"IF(M47<>\"\",'Blank - Request Form'!$M$2,\"\")","v":""},{"$f":"IF('Blank - Request Form'!$F$6=\"CIASI\",IF('Blank - Request Form'!J81=0,\"\",'Blank - Request Form'!J81),IF('Blank - Request Form'!$F$7=\"CIASI\",IF('Blank - Request Form'!S81=0,\"\",'Blank - Request Form'!S81),\"\"))","v":""},"",47]
[{"$f":"IF('Blank - Request Form'!$F$6=\"CIASI\",IF('Blank - Request Form'!D82=0,\"\",'Blank - Request Form'!D82),IF('Blank - Request Form'!$F$7=\"CIASI\",IF('Blank - Request Form'!M82=0,\"\",'Blank - Request Form'!M82),\"\"))","v":""},{"$f":"IF('Blank - Request Form'!$F$6=\"CIASI\",IF('Blank - Request Form'!E82=0,\"\",'Blank - Request Form'!E82),IF('Blank - Request Form'!$F$7=\"CIASI\",IF('Blank - Request Form'!N82=0,\"\",'Blank - Request Form'!N82),\"\"))","v":""},{"$f":"IF('Blank - Request Form'!$F$6=\"CIASI\",IF(OR('Blank - Request Form'!F82=\"000\",'Blank - Request Form'!F82=0),\"\",'Blank - Request Form'!F82),IF('Blank - Request Form'!$F$7=\"CIASI\",IF(OR('Blank - Request Form'!O82=\"000\",'Blank - Request Form'!O82=0),\"\",'Blank - Request Form'!O82),\"\"))","v":""},{"$f":"IF('Blank - Request Form'!$F$6=\"CIASI\",IF(OR('Blank - Request Form'!G82=\"0\",'Blank - Request Form'!G82=\"00000\",'Blank - Request Form'!G82=0),\"\",'Blank - Request Form'!G82),IF('Blank - Request Form'!$F$7=\"CIASI\",IF(OR('Blank - Request Form'!P82=\"0\",'Blank - Request Form'!P82=\"00000\",'Blank - Request Form'!P82=0),\"\",'Blank - Request Form'!P82),\"\"))","v":""},{"$f":"IF('Blank - Request Form'!$F$6=\"CIASI\",IF(OR('Blank - Request Form'!H82=\"0\",'Blank - Request Form'!H82=\"00000\",'Blank - Request Form'!H82=0),\"\",'Blank - Request Form'!H82),IF('Blank - Request Form'!$F$7=\"CIASI\",IF(OR('Blank - Request Form'!Q82=\"0\",'Blank - Request Form'!Q82=\"00000\",'Blank - Request Form'!Q82=0),\"\",'Blank - Request Form'!Q82),\"\"))","v":""},{"$f":"IF('Blank - Request Form'!$F$6=\"CIASI\",IF(OR('Blank - Request Form'!I82=\"0\",'Blank - Request Form'!I82=\"00000\",'Blank - Request Form'!I82=0),\"\",'Blank - Request Form'!I82),IF('Blank - Request Form'!$F$7=\"CIASI\",IF(OR('Blank - Request Form'!R82=\"0\",'Blank - Request Form'!R82=\"00000\",'Blank - Request Form'!R82=0),\"\",'Blank - Request Form'!R82),\"\"))","v":""},null,{"$f":"IF('Blank - Request Form'!$F$6=\"CIASI\",IF('Blank - Request Form'!K82=0,\"\",'Blank - Request Form'!K82),IF('Blank - Request Form'!$F$7=\"CIASI\",IF('Blank - Request Form'!T82=0,\"\",'Blank - Request Form'!T82),\"\"))","v":""},null,null,null,{"$f":"IF(M48<>\"\",'Blank - Request Form'!$M$2,\"\")","v":""},{"$f":"IF('Blank - Request Form'!$F$6=\"CIASI\",IF('Blank - Request Form'!J82=0,\"\",'Blank - Request Form'!J82),IF('Blank - Request Form'!$F$7=\"CIASI\",IF('Blank - Request Form'!S82=0,\"\",'Blank - Request Form'!S82),\"\"))","v":""},"",48]
[{"$f":"IF('Blank - Request Form'!$F$6=\"CIASI\",IF('Blank - Request Form'!D83=0,\"\",'Blank - Request Form'!D83),IF('Blank - Request Form'!$F$7=\"CIASI\",IF('Blank - Request Form'!M83=0,\"\",'Blank - Request Form'!M83),\"\"))","v":""},{"$f":"IF('Blank - Request Form'!$F$6=\"CIASI\",IF('Blank - Request Form'!E83=0,\"\",'Blank - Request Form'!E83),IF('Blank - Request Form'!$F$7=\"CIASI\",IF('Blank - Request Form'!N83=0,\"\",'Blank - Request Form'!N83),\"\"))","v":""},{"$f":"IF('Blank - Request Form'!$F$6=\"CIASI\",IF(OR('Blank - Request Form'!F83=\"000\",'Blank - Request Form'!F83=0),\"\",'Blank - Request Form'!F83),IF('Blank - Request Form'!$F$7=\"CIASI\",IF(OR('Blank - Request Form'!O83=\"000\",'Blank - Request Form'!O83=0),\"\",'Blank - Request Form'!O83),\"\"))","v":""},{"$f":"IF('Blank - Request Form'!$F$6=\"CIASI\",IF(OR('Blank - Request Form'!G83=\"0\",'Blank - Request Form'!G83=\"00000\",'Blank - Request Form'!G83=0),\"\",'Blank - Request Form'!G83),IF('Blank - Request Form'!$F$7=\"CIASI\",IF(OR('Blank - Request Form'!P83=\"0\",'Blank - Request Form'!P83=\"00000\",'Blank - Request Form'!P83=0),\"\",'Blank - Request Form'!P83),\"\"))","v":""},{"$f":"IF('Blank - Request Form'!$F$6=\"CIASI\",IF(OR('Blank - Request Form'!H83=\"0\",'Blank - Request Form'!H83=\"00000\",'Blank - Request Form'!H83=0),\"\",'Blank - Request Form'!H83),IF('Blank - Request Form'!$F$7=\"CIASI\",IF(OR('Blank - Request Form'!Q83=\"0\",'Blank - Request Form'!Q83=\"00000\",'Blank - Request Form'!Q83=0),\"\",'Blank - Request Form'!Q83),\"\"))","v":""},{"$f":"IF('Blank - Request Form'!$F$6=\"CIASI\",IF(OR('Blank - Request Form'!I83=\"0\",'Blank - Request Form'!I83=\"00000\",'Blank - Request Form'!I83=0),\"\",'Blank - Request Form'!I83),IF('Blank - Request Form'!$F$7=\"CIASI\",IF(OR('Blank - Request Form'!R83=\"0\",'Blank - Request Form'!R83=\"00000\",'Blank - Request Form'!R83=0),\"\",'Blank - Request Form'!R83),\"\"))","v":""},null,{"$f":"IF('Blank - Request Form'!$F$6=\"CIASI\",IF('Blank - Request Form'!K83=0,\"\",'Blank - Request Form'!K83),IF('Blank - Request Form'!$F$7=\"CIASI\",IF('Blank - Request Form'!T83=0,\"\",'Blank - Request Form'!T83),\"\"))","v":""},null,null,null,{"$f":"IF(M49<>\"\",'Blank - Request Form'!$M$2,\"\")","v":""},{"$f":"IF('Blank - Request Form'!$F$6=\"CIASI\",IF('Blank - Request Form'!J83=0,\"\",'Blank - Request Form'!J83),IF('Blank - Request Form'!$F$7=\"CIASI\",IF('Blank - Request Form'!S83=0,\"\",'Blank - Request Form'!S83),\"\"))","v":""},"",49]
[{"$f":"IF('Blank - Request Form'!$F$6=\"CIASI\",IF('Blank - Request Form'!D84=0,\"\",'Blank - Request Form'!D84),IF('Blank - Request Form'!$F$7=\"CIASI\",IF('Blank - Request Form'!M84=0,\"\",'Blank - Request Form'!M84),\"\"))","v":""},{"$f":"IF('Blank - Request Form'!$F$6=\"CIASI\",IF('Blank - Request Form'!E84=0,\"\",'Blank - Request Form'!E84),IF('Blank - Request Form'!$F$7=\"CIASI\",IF('Blank - Request Form'!N84=0,\"\",'Blank - Request Form'!N84),\"\"))","v":""},{"$f":"IF('Blank - Request Form'!$F$6=\"CIASI\",IF(OR('Blank - Request Form'!F84=\"000\",'Blank - Request Form'!F84=0),\"\",'Blank - Request Form'!F84),IF('Blank - Request Form'!$F$7=\"CIASI\",IF(OR('Blank - Request Form'!O84=\"000\",'Blank - Request Form'!O84=0),\"\",'Blank - Request Form'!O84),\"\"))","v":""},{"$f":"IF('Blank - Request Form'!$F$6=\"CIASI\",IF(OR('Blank - Request Form'!G84=\"0\",'Blank - Request Form'!G84=\"00000\",'Blank - Request Form'!G84=0),\"\",'Blank - Request Form'!G84),IF('Blank - Request Form'!$F$7=\"CIASI\",IF(OR('Blank - Request Form'!P84=\"0\",'Blank - Request Form'!P84=\"00000\",'Blank - Request Form'!P84=0),\"\",'Blank - Request Form'!P84),\"\"))","v":""},{"$f":"IF('Blank - Request Form'!$F$6=\"CIASI\",IF(OR('Blank - Request Form'!H84=\"0\",'Blank - Request Form'!H84=\"00000\",'Blank - Request Form'!H84=0),\"\",'Blank - Request Form'!H84),IF('Blank - Request Form'!$F$7=\"CIASI\",IF(OR('Blank - Request Form'!Q84=\"0\",'Blank - Request Form'!Q84=\"00000\",'Blank - Request Form'!Q84=0),\"\",'Blank - Request Form'!Q84),\"\"))","v":""},{"$f":"IF('Blank - Request Form'!$F$6=\"CIASI\",IF(OR('Blank - Request Form'!I84=\"0\",'Blank - Request Form'!I84=\"00000\",'Blank - Request Form'!I84=0),\"\",'Blank - Request Form'!I84),IF('Blank - Request Form'!$F$7=\"CIASI\",IF(OR('Blank - Request Form'!R84=\"0\",'Blank - Request Form'!R84=\"00000\",'Blank - Request Form'!R84=0),\"\",'Blank - Request Form'!R84),\"\"))","v":""},null,{"$f":"IF('Blank - Request Form'!$F$6=\"CIASI\",IF('Blank - Request Form'!K84=0,\"\",'Blank - Request Form'!K84),IF('Blank - Request Form'!$F$7=\"CIASI\",IF('Blank - Request Form'!T84=0,\"\",'Blank - Request Form'!T84),\"\"))","v":""},null,null,null,{"$f":"IF(M50<>\"\",'Blank - Request Form'!$M$2,\"\")","v":""},{"$f":"IF('Blank - Request Form'!$F$6=\"CIASI\",IF('Blank - Request Form'!J84=0,\"\",'Blank - Request Form'!J84),IF('Blank - Request Form'!$F$7=\"CIASI\",IF('Blank - Request Form'!S84=0,\"\",'Blank - Request Form'!S84),\"\"))","v":""},"",50]
[{"$f":"IF('Blank - Request Form'!$F$6=\"CIASI\",IF('Blank - Request Form'!D85=0,\"\",'Blank - Request Form'!D85),IF('Blank - Request Form'!$F$7=\"CIASI\",IF('Blank - Request Form'!M85=0,\"\",'Blank - Request Form'!M85),\"\"))","v":""},{"$f":"IF('Blank - Request Form'!$F$6=\"CIASI\",IF('Blank - Request Form'!E85=0,\"\",'Blank - Request Form'!E85),IF('Blank - Request Form'!$F$7=\"CIASI\",IF('Blank - Request Form'!N85=0,\"\",'Blank - Request Form'!N85),\"\"))","v":""},{"$f":"IF('Blank - Request Form'!$F$6=\"CIASI\",IF(OR('Blank - Request Form'!F85=\"000\",'Blank - Request Form'!F85=0),\"\",'Blank - Request Form'!F85),IF('Blank - Request Form'!$F$7=\"CIASI\",IF(OR('Blank - Request Form'!O85=\"000\",'Blank - Request Form'!O85=0),\"\",'Blank - Request Form'!O85),\"\"))","v":""},{"$f":"IF('Blank - Request Form'!$F$6=\"CIASI\",IF(OR('Blank - Request Form'!G85=\"0\",'Blank - Request Form'!G85=\"00000\",'Blank - Request Form'!G85=0),\"\",'Blank - Request Form'!G85),IF('Blank - Request Form'!$F$7=\"CIASI\",IF(OR('Blank - Request Form'!P85=\"0\",'Blank - Request Form'!P85=\"00000\",'Blank - Request Form'!P85=0),\"\",'Blank - Request Form'!P85),\"\"))","v":""},{"$f":"IF('Blank - Request Form'!$F$6=\"CIASI\",IF(OR('Blank - Request Form'!H85=\"0\",'Blank - Request Form'!H85=\"00000\",'Blank - Request Form'!H85=0),\"\",'Blank - Request Form'!H85),IF('Blank - Request Form'!$F$7=\"CIASI\",IF(OR('Blank - Request Form'!Q85=\"0\",'Blank - Request Form'!Q85=\"00000\",'Blank - Request Form'!Q85=0),\"\",'Blank - Request Form'!Q85),\"\"))","v":""},{"$f":"IF('Blank - Request Form'!$F$6=\"CIASI\",IF(OR('Blank - Request Form'!I85=\"0\",'Blank - Request Form'!I85=\"00000\",'Blank - Request Form'!I85=0),\"\",'Blank - Request Form'!I85),IF('Blank - Request Form'!$F$7=\"CIASI\",IF(OR('Blank - Request Form'!R85=\"0\",'Blank - Request Form'!R85=\"00000\",'Blank - Request Form'!R85=0),\"\",'Blank - Request Form'!R85),\"\"))","v":""},null,{"$f":"IF('Blank - Request Form'!$F$6=\"CIASI\",IF('Blank - Request Form'!K85=0,\"\",'Blank - Request Form'!K85),IF('Blank - Request Form'!$F$7=\"CIASI\",IF('Blank - Request Form'!T85=0,\"\",'Blank - Request Form'!T85),\"\"))","v":""},null,null,null,{"$f":"IF(M51<>\"\",'Blank - Request Form'!$M$2,\"\")","v":""},{"$f":"IF('Blank - Request Form'!$F$6=\"CIASI\",IF('Blank - Request Form'!J85=0,\"\",'Blank - Request Form'!J85),IF('Blank - Request Form'!$F$7=\"CIASI\",IF('Blank - Request Form'!S85=0,\"\",'Blank - Request Form'!S85),\"\"))","v":""},"",51]
[{"$f":"IF('Blank - Request Form'!$F$6=\"CIASI\",IF('Blank - Request Form'!D86=0,\"\",'Blank - Request Form'!D86),IF('Blank - Request Form'!$F$7=\"CIASI\",IF('Blank - Request Form'!M86=0,\"\",'Blank - Request Form'!M86),\"\"))","v":""},{"$f":"IF('Blank - Request Form'!$F$6=\"CIASI\",IF('Blank - Request Form'!E86=0,\"\",'Blank - Request Form'!E86),IF('Blank - Request Form'!$F$7=\"CIASI\",IF('Blank - Request Form'!N86=0,\"\",'Blank - Request Form'!N86),\"\"))","v":""},{"$f":"IF('Blank - Request Form'!$F$6=\"CIASI\",IF(OR('Blank - Request Form'!F86=\"000\",'Blank - Request Form'!F86=0),\"\",'Blank - Request Form'!F86),IF('Blank - Request Form'!$F$7=\"CIASI\",IF(OR('Blank - Request Form'!O86=\"000\",'Blank - Request Form'!O86=0),\"\",'Blank - Request Form'!O86),\"\"))","v":""},{"$f":"IF('Blank - Request Form'!$F$6=\"CIASI\",IF(OR('Blank - Request Form'!G86=\"0\",'Blank - Request Form'!G86=\"00000\",'Blank - Request Form'!G86=0),\"\",'Blank - Request Form'!G86),IF('Blank - Request Form'!$F$7=\"CIASI\",IF(OR('Blank - Request Form'!P86=\"0\",'Blank - Request Form'!P86=\"00000\",'Blank - Request Form'!P86=0),\"\",'Blank - Request Form'!P86),\"\"))","v":""},{"$f":"IF('Blank - Request Form'!$F$6=\"CIASI\",IF(OR('Blank - Request Form'!H86=\"0\",'Blank - Request Form'!H86=\"00000\",'Blank - Request Form'!H86=0),\"\",'Blank - Request Form'!H86),IF('Blank - Request Form'!$F$7=\"CIASI\",IF(OR('Blank - Request Form'!Q86=\"0\",'Blank - Request Form'!Q86=\"00000\",'Blank - Request Form'!Q86=0),\"\",'Blank - Request Form'!Q86),\"\"))","v":""},{"$f":"IF('Blank - Request Form'!$F$6=\"CIASI\",IF(OR('Blank - Request Form'!I86=\"0\",'Blank - Request Form'!I86=\"00000\",'Blank - Request Form'!I86=0),\"\",'Blank - Request Form'!I86),IF('Blank - Request Form'!$F$7=\"CIASI\",IF(OR('Blank - Request Form'!R86=\"0\",'Blank - Request Form'!R86=\"00000\",'Blank - Request Form'!R86=0),\"\",'Blank - Request Form'!R86),\"\"))","v":""},null,{"$f":"IF('Blank - Request Form'!$F$6=\"CIASI\",IF('Blank - Request Form'!K86=0,\"\",'Blank - Request Form'!K86),IF('Blank - Request Form'!$F$7=\"CIASI\",IF('Blank - Request Form'!T86=0,\"\",'Blank - Request Form'!T86),\"\"))","v":""},null,null,null,{"$f":"IF(M52<>\"\",'Blank - Request Form'!$M$2,\"\")","v":""},{"$f":"IF('Blank - Request Form'!$F$6=\"CIASI\",IF('Blank - Request Form'!J86=0,\"\",'Blank - Request Form'!J86),IF('Blank - Request Form'!$F$7=\"CIASI\",IF('Blank - Request Form'!S86=0,\"\",'Blank - Request Form'!S86),\"\"))","v":""},"",52]
[{"$f":"IF('Blank - Request Form'!$F$6=\"CIASI\",IF('Blank - Request Form'!D87=0,\"\",'Blank - Request Form'!D87),IF('Blank - Request Form'!$F$7=\"CIASI\",IF('Blank - Request Form'!M87=0,\"\",'Blank - Request Form'!M87),\"\"))","v":""},{"$f":"IF('Blank - Request Form'!$F$6=\"CIASI\",IF('Blank - Request Form'!E87=0,\"\",'Blank - Request Form'!E87),IF('Blank - Request Form'!$F$7=\"CIASI\",IF('Blank - Request Form'!N87=0,\"\",'Blank - Request Form'!N87),\"\"))","v":""},{"$f":"IF('Blank - Request Form'!$F$6=\"CIASI\",IF(OR('Blank - Request Form'!F87=\"000\",'Blank - Request Form'!F87=0),\"\",'Blank - Request Form'!F87),IF('Blank - Request Form'!$F$7=\"CIASI\",IF(OR('Blank - Request Form'!O87=\"000\",'Blank - Request Form'!O87=0),\"\",'Blank - Request Form'!O87),\"\"))","v":""},{"$f":"IF('Blank - Request Form'!$F$6=\"CIASI\",IF(OR('Blank - Request Form'!G87=\"0\",'Blank - Request Form'!G87=\"00000\",'Blank - Request Form'!G87=0),\"\",'Blank - Request Form'!G87),IF('Blank - Request Form'!$F$7=\"CIASI\",IF(OR('Blank - Request Form'!P87=\"0\",'Blank - Request Form'!P87=\"00000\",'Blank - Request Form'!P87=0),\"\",'Blank - Request Form'!P87),\"\"))","v":""},{"$f":"IF('Blank - Request Form'!$F$6=\"CIASI\",IF(OR('Blank - Request Form'!H87=\"0\",'Blank - Request Form'!H87=\"00000\",'Blank - Request Form'!H87=0),\"\",'Blank - Request Form'!H87),IF('Blank - Request Form'!$F$7=\"CIASI\",IF(OR('Blank - Request Form'!Q87=\"0\",'Blank - Request Form'!Q87=\"00000\",'Blank - Request Form'!Q87=0),\"\",'Blank - Request Form'!Q87),\"\"))","v":""},{"$f":"IF('Blank - Request Form'!$F$6=\"CIASI\",IF(OR('Blank - Request Form'!I87=\"0\",'Blank - Request Form'!I87=\"00000\",'Blank - Request Form'!I87=0),\"\",'Blank - Request Form'!I87),IF('Blank - Request Form'!$F$7=\"CIASI\",IF(OR('Blank - Request Form'!R87=\"0\",'Blank - Request Form'!R87=\"00000\",'Blank - Request Form'!R87=0),\"\",'Blank - Request Form'!R87),\"\"))","v":""},null,{"$f":"IF('Blank - Request Form'!$F$6=\"CIASI\",IF('Blank - Request Form'!K87=0,\"\",'Blank - Request Form'!K87),IF('Blank - Request Form'!$F$7=\"CIASI\",IF('Blank - Request Form'!T87=0,\"\",'Blank - Request Form'!T87),\"\"))","v":""},null,null,null,{"$f":"IF(M53<>\"\",'Blank - Request Form'!$M$2,\"\")","v":""},{"$f":"IF('Blank - Request Form'!$F$6=\"CIASI\",IF('Blank - Request Form'!J87=0,\"\",'Blank - Request Form'!J87),IF('Blank - Request Form'!$F$7=\"CIASI\",IF('Blank - Request Form'!S87=0,\"\",'Blank - Request Form'!S87),\"\"))","v":""},"",53]
[{"$f":"IF('Blank - Request Form'!$F$6=\"CIASI\",IF('Blank - Request Form'!D88=0,\"\",'Blank - Request Form'!D88),IF('Blank - Request Form'!$F$7=\"CIASI\",IF('Blank - Request Form'!M88=0,\"\",'Blank - Request Form'!M88),\"\"))","v":""},{"$f":"IF('Blank - Request Form'!$F$6=\"CIASI\",IF('Blank - Request Form'!E88=0,\"\",'Blank - Request Form'!E88),IF('Blank - Request Form'!$F$7=\"CIASI\",IF('Blank - Request Form'!N88=0,\"\",'Blank - Request Form'!N88),\"\"))","v":""},{"$f":"IF('Blank - Request Form'!$F$6=\"CIASI\",IF(OR('Blank - Request Form'!F88=\"000\",'Blank - Request Form'!F88=0),\"\",'Blank - Request Form'!F88),IF('Blank - Request Form'!$F$7=\"CIASI\",IF(OR('Blank - Request Form'!O88=\"000\",'Blank - Request Form'!O88=0),\"\",'Blank - Request Form'!O88),\"\"))","v":""},{"$f":"IF('Blank - Request Form'!$F$6=\"CIASI\",IF(OR('Blank - Request Form'!G88=\"0\",'Blank - Request Form'!G88=\"00000\",'Blank - Request Form'!G88=0),\"\",'Blank - Request Form'!G88),IF('Blank - Request Form'!$F$7=\"CIASI\",IF(OR('Blank - Request Form'!P88=\"0\",'Blank - Request Form'!P88=\"00000\",'Blank - Request Form'!P88=0),\"\",'Blank - Request Form'!P88),\"\"))","v":""},{"$f":"IF('Blank - Request Form'!$F$6=\"CIASI\",IF(OR('Blank - Request Form'!H88=\"0\",'Blank - Request Form'!H88=\"00000\",'Blank - Request Form'!H88=0),\"\",'Blank - Request Form'!H88),IF('Blank - Request Form'!$F$7=\"CIASI\",IF(OR('Blank - Request Form'!Q88=\"0\",'Blank - Request Form'!Q88=\"00000\",'Blank - Request Form'!Q88=0),\"\",'Blank - Request Form'!Q88),\"\"))","v":""},{"$f":"IF('Blank - Request Form'!$F$6=\"CIASI\",IF(OR('Blank - Request Form'!I88=\"0\",'Blank - Request Form'!I88=\"00000\",'Blank - Request Form'!I88=0),\"\",'Blank - Request Form'!I88),IF('Blank - Request Form'!$F$7=\"CIASI\",IF(OR('Blank - Request Form'!R88=\"0\",'Blank - Request Form'!R88=\"00000\",'Blank - Request Form'!R88=0),\"\",'Blank - Request Form'!R88),\"\"))","v":""},null,{"$f":"IF('Blank - Request Form'!$F$6=\"CIASI\",IF('Blank - Request Form'!K88=0,\"\",'Blank - Request Form'!K88),IF('Blank - Request Form'!$F$7=\"CIASI\",IF('Blank - Request Form'!T88=0,\"\",'Blank - Request Form'!T88),\"\"))","v":""},null,null,null,{"$f":"IF(M54<>\"\",'Blank - Request Form'!$M$2,\"\")","v":""},{"$f":"IF('Blank - Request Form'!$F$6=\"CIASI\",IF('Blank - Request Form'!J88=0,\"\",'Blank - Request Form'!J88),IF('Blank - Request Form'!$F$7=\"CIASI\",IF('Blank - Request Form'!S88=0,\"\",'Blank - Request Form'!S88),\"\"))","v":""},"",54]
[{"$f":"IF('Blank - Request Form'!$F$6=\"CIASI\",IF('Blank - Request Form'!D89=0,\"\",'Blank - Request Form'!D89),IF('Blank - Request Form'!$F$7=\"CIASI\",IF('Blank - Request Form'!M89=0,\"\",'Blank - Request Form'!M89),\"\"))","v":""},{"$f":"IF('Blank - Request Form'!$F$6=\"CIASI\",IF('Blank - Request Form'!E89=0,\"\",'Blank - Request Form'!E89),IF('Blank - Request Form'!$F$7=\"CIASI\",IF('Blank - Request Form'!N89=0,\"\",'Blank - Request Form'!N89),\"\"))","v":""},{"$f":"IF('Blank - Request Form'!$F$6=\"CIASI\",IF(OR('Blank - Request Form'!F89=\"000\",'Blank - Request Form'!F89=0),\"\",'Blank - Request Form'!F89),IF('Blank - Request Form'!$F$7=\"CIASI\",IF(OR('Blank - Request Form'!O89=\"000\",'Blank - Request Form'!O89=0),\"\",'Blank - Request Form'!O89),\"\"))","v":""},{"$f":"IF('Blank - Request Form'!$F$6=\"CIASI\",IF(OR('Blank - Request Form'!G89=\"0\",'Blank - Request Form'!G89=\"00000\",'Blank - Request Form'!G89=0),\"\",'Blank - Request Form'!G89),IF('Blank - Request Form'!$F$7=\"CIASI\",IF(OR('Blank - Request Form'!P89=\"0\",'Blank - Request Form'!P89=\"00000\",'Blank - Request Form'!P89=0),\"\",'Blank - Request Form'!P89),\"\"))","v":""},{"$f":"IF('Blank - Request Form'!$F$6=\"CIASI\",IF(OR('Blank - Request Form'!H89=\"0\",'Blank - Request Form'!H89=\"00000\",'Blank - Request Form'!H89=0),\"\",'Blank - Request Form'!H89),IF('Blank - Request Form'!$F$7=\"CIASI\",IF(OR('Blank - Request Form'!Q89=\"0\",'Blank - Request Form'!Q89=\"00000\",'Blank - Request Form'!Q89=0),\"\",'Blank - Request Form'!Q89),\"\"))","v":""},{"$f":"IF('Blank - Request Form'!$F$6=\"CIASI\",IF(OR('Blank - Request Form'!I89=\"0\",'Blank - Request Form'!I89=\"00000\",'Blank - Request Form'!I89=0),\"\",'Blank - Request Form'!I89),IF('Blank - Request Form'!$F$7=\"CIASI\",IF(OR('Blank - Request Form'!R89=\"0\",'Blank - Request Form'!R89=\"00000\",'Blank - Request Form'!R89=0),\"\",'Blank - Request Form'!R89),\"\"))","v":""},null,{"$f":"IF('Blank - Request Form'!$F$6=\"CIASI\",IF('Blank - Request Form'!K89=0,\"\",'Blank - Request Form'!K89),IF('Blank - Request Form'!$F$7=\"CIASI\",IF('Blank - Request Form'!T89=0,\"\",'Blank - Request Form'!T89),\"\"))","v":""},null,null,null,{"$f":"IF(M55<>\"\",'Blank - Request Form'!$M$2,\"\")","v":""},{"$f":"IF('Blank - Request Form'!$F$6=\"CIASI\",IF('Blank - Request Form'!J89=0,\"\",'Blank - Request Form'!J89),IF('Blank - Request Form'!$F$7=\"CIASI\",IF('Blank - Request Form'!S89=0,\"\",'Blank - Request Form'!S89),\"\"))","v":""},"",55]
[{"$f":"IF('Blank - Request Form'!$F$6=\"CIASI\",IF('Blank - Request Form'!D90=0,\"\",'Blank - Request Form'!D90),IF('Blank - Request Form'!$F$7=\"CIASI\",IF('Blank - Request Form'!M90=0,\"\",'Blank - Request Form'!M90),\"\"))","v":""},{"$f":"IF('Blank - Request Form'!$F$6=\"CIASI\",IF('Blank - Request Form'!E90=0,\"\",'Blank - Request Form'!E90),IF('Blank - Request Form'!$F$7=\"CIASI\",IF('Blank - Request Form'!N90=0,\"\",'Blank - Request Form'!N90),\"\"))","v":""},{"$f":"IF('Blank - Request Form'!$F$6=\"CIASI\",IF(OR('Blank - Request Form'!F90=\"000\",'Blank - Request Form'!F90=0),\"\",'Blank - Request Form'!F90),IF('Blank - Request Form'!$F$7=\"CIASI\",IF(OR('Blank - Request Form'!O90=\"000\",'Blank - Request Form'!O90=0),\"\",'Blank - Request Form'!O90),\"\"))","v":""},{"$f":"IF('Blank - Request Form'!$F$6=\"CIASI\",IF(OR('Blank - Request Form'!G90=\"0\",'Blank - Request Form'!G90=\"00000\",'Blank - Request Form'!G90=0),\"\",'Blank - Request Form'!G90),IF('Blank - Request Form'!$F$7=\"CIASI\",IF(OR('Blank - Request Form'!P90=\"0\",'Blank - Request Form'!P90=\"00000\",'Blank - Request Form'!P90=0),\"\",'Blank - Request Form'!P90),\"\"))","v":""},{"$f":"IF('Blank - Request Form'!$F$6=\"CIASI\",IF(OR('Blank - Request Form'!H90=\"0\",'Blank - Request Form'!H90=\"00000\",'Blank - Request Form'!H90=0),\"\",'Blank - Request Form'!H90),IF('Blank - Request Form'!$F$7=\"CIASI\",IF(OR('Blank - Request Form'!Q90=\"0\",'Blank - Request Form'!Q90=\"00000\",'Blank - Request Form'!Q90=0),\"\",'Blank - Request Form'!Q90),\"\"))","v":""},{"$f":"IF('Blank - Request Form'!$F$6=\"CIASI\",IF(OR('Blank - Request Form'!I90=\"0\",'Blank - Request Form'!I90=\"00000\",'Blank - Request Form'!I90=0),\"\",'Blank - Request Form'!I90),IF('Blank - Request Form'!$F$7=\"CIASI\",IF(OR('Blank - Request Form'!R90=\"0\",'Blank - Request Form'!R90=\"00000\",'Blank - Request Form'!R90=0),\"\",'Blank - Request Form'!R90),\"\"))","v":""},null,{"$f":"IF('Blank - Request Form'!$F$6=\"CIASI\",IF('Blank - Request Form'!K90=0,\"\",'Blank - Request Form'!K90),IF('Blank - Request Form'!$F$7=\"CIASI\",IF('Blank - Request Form'!T90=0,\"\",'Blank - Request Form'!T90),\"\"))","v":""},null,null,null,{"$f":"IF(M56<>\"\",'Blank - Request Form'!$M$2,\"\")","v":""},{"$f":"IF('Blank - Request Form'!$F$6=\"CIASI\",IF('Blank - Request Form'!J90=0,\"\",'Blank - Request Form'!J90),IF('Blank - Request Form'!$F$7=\"CIASI\",IF('Blank - Request Form'!S90=0,\"\",'Blank - Request Form'!S90),\"\"))","v":""},"",56]
[{"$f":"IF('Blank - Request Form'!$F$6=\"CIASI\",IF('Blank - Request Form'!D91=0,\"\",'Blank - Request Form'!D91),IF('Blank - Request Form'!$F$7=\"CIASI\",IF('Blank - Request Form'!M91=0,\"\",'Blank - Request Form'!M91),\"\"))","v":""},{"$f":"IF('Blank - Request Form'!$F$6=\"CIASI\",IF('Blank - Request Form'!E91=0,\"\",'Blank - Request Form'!E91),IF('Blank - Request Form'!$F$7=\"CIASI\",IF('Blank - Request Form'!N91=0,\"\",'Blank - Request Form'!N91),\"\"))","v":""},{"$f":"IF('Blank - Request Form'!$F$6=\"CIASI\",IF(OR('Blank - Request Form'!F91=\"000\",'Blank - Request Form'!F91=0),\"\",'Blank - Request Form'!F91),IF('Blank - Request Form'!$F$7=\"CIASI\",IF(OR('Blank - Request Form'!O91=\"000\",'Blank - Request Form'!O91=0),\"\",'Blank - Request Form'!O91),\"\"))","v":""},{"$f":"IF('Blank - Request Form'!$F$6=\"CIASI\",IF(OR('Blank - Request Form'!G91=\"0\",'Blank - Request Form'!G91=\"00000\",'Blank - Request Form'!G91=0),\"\",'Blank - Request Form'!G91),IF('Blank - Request Form'!$F$7=\"CIASI\",IF(OR('Blank - Request Form'!P91=\"0\",'Blank - Request Form'!P91=\"00000\",'Blank - Request Form'!P91=0),\"\",'Blank - Request Form'!P91),\"\"))","v":""},{"$f":"IF('Blank - Request Form'!$F$6=\"CIASI\",IF(OR('Blank - Request Form'!H91=\"0\",'Blank - Request Form'!H91=\"00000\",'Blank - Request Form'!H91=0),\"\",'Blank - Request Form'!H91),IF('Blank - Request Form'!$F$7=\"CIASI\",IF(OR('Blank - Request Form'!Q91=\"0\",'Blank - Request Form'!Q91=\"00000\",'Blank - Request Form'!Q91=0),\"\",'Blank - Request Form'!Q91),\"\"))","v":""},{"$f":"IF('Blank - Request Form'!$F$6=\"CIASI\",IF(OR('Blank - Request Form'!I91=\"0\",'Blank - Request Form'!I91=\"00000\",'Blank - Request Form'!I91=0),\"\",'Blank - Request Form'!I91),IF('Blank - Request Form'!$F$7=\"CIASI\",IF(OR('Blank - Request Form'!R91=\"0\",'Blank - Request Form'!R91=\"00000\",'Blank - Request Form'!R91=0),\"\",'Blank - Request Form'!R91),\"\"))","v":""},null,{"$f":"IF('Blank - Request Form'!$F$6=\"CIASI\",IF('Blank - Request Form'!K91=0,\"\",'Blank - Request Form'!K91),IF('Blank - Request Form'!$F$7=\"CIASI\",IF('Blank - Request Form'!T91=0,\"\",'Blank - Request Form'!T91),\"\"))","v":""},null,null,null,{"$f":"IF(M57<>\"\",'Blank - Request Form'!$M$2,\"\")","v":""},{"$f":"IF('Blank - Request Form'!$F$6=\"CIASI\",IF('Blank - Request Form'!J91=0,\"\",'Blank - Request Form'!J91),IF('Blank - Request Form'!$F$7=\"CIASI\",IF('Blank - Request Form'!S91=0,\"\",'Blank - Request Form'!S91),\"\"))","v":""},"",57]
[{"$f":"IF('Blank - Request Form'!$F$6=\"CIASI\",IF('Blank - Request Form'!D92=0,\"\",'Blank - Request Form'!D92),IF('Blank - Request Form'!$F$7=\"CIASI\",IF('Blank - Request Form'!M92=0,\"\",'Blank - Request Form'!M92),\"\"))","v":""},{"$f":"IF('Blank - Request Form'!$F$6=\"CIASI\",IF('Blank - Request Form'!E92=0,\"\",'Blank - Request Form'!E92),IF('Blank - Request Form'!$F$7=\"CIASI\",IF('Blank - Request Form'!N92=0,\"\",'Blank - Request Form'!N92),\"\"))","v":""},{"$f":"IF('Blank - Request Form'!$F$6=\"CIASI\",IF(OR('Blank - Request Form'!F92=\"000\",'Blank - Request Form'!F92=0),\"\",'Blank - Request Form'!F92),IF('Blank - Request Form'!$F$7=\"CIASI\",IF(OR('Blank - Request Form'!O92=\"000\",'Blank - Request Form'!O92=0),\"\",'Blank - Request Form'!O92),\"\"))","v":""},{"$f":"IF('Blank - Request Form'!$F$6=\"CIASI\",IF(OR('Blank - Request Form'!G92=\"0\",'Blank - Request Form'!G92=\"00000\",'Blank - Request Form'!G92=0),\"\",'Blank - Request Form'!G92),IF('Blank - Request Form'!$F$7=\"CIASI\",IF(OR('Blank - Request Form'!P92=\"0\",'Blank - Request Form'!P92=\"00000\",'Blank - Request Form'!P92=0),\"\",'Blank - Request Form'!P92),\"\"))","v":""},{"$f":"IF('Blank - Request Form'!$F$6=\"CIASI\",IF(OR('Blank - Request Form'!H92=\"0\",'Blank - Request Form'!H92=\"00000\",'Blank - Request Form'!H92=0),\"\",'Blank - Request Form'!H92),IF('Blank - Request Form'!$F$7=\"CIASI\",IF(OR('Blank - Request Form'!Q92=\"0\",'Blank - Request Form'!Q92=\"00000\",'Blank - Request Form'!Q92=0),\"\",'Blank - Request Form'!Q92),\"\"))","v":""},{"$f":"IF('Blank - Request Form'!$F$6=\"CIASI\",IF(OR('Blank - Request Form'!I92=\"0\",'Blank - Request Form'!I92=\"00000\",'Blank - Request Form'!I92=0),\"\",'Blank - Request Form'!I92),IF('Blank - Request Form'!$F$7=\"CIASI\",IF(OR('Blank - Request Form'!R92=\"0\",'Blank - Request Form'!R92=\"00000\",'Blank - Request Form'!R92=0),\"\",'Blank - Request Form'!R92),\"\"))","v":""},null,{"$f":"IF('Blank - Request Form'!$F$6=\"CIASI\",IF('Blank - Request Form'!K92=0,\"\",'Blank - Request Form'!K92),IF('Blank - Request Form'!$F$7=\"CIASI\",IF('Blank - Request Form'!T92=0,\"\",'Blank - Request Form'!T92),\"\"))","v":""},null,null,null,{"$f":"IF(M58<>\"\",'Blank - Request Form'!$M$2,\"\")","v":""},{"$f":"IF('Blank - Request Form'!$F$6=\"CIASI\",IF('Blank - Request Form'!J92=0,\"\",'Blank - Request Form'!J92),IF('Blank - Request Form'!$F$7=\"CIASI\",IF('Blank - Request Form'!S92=0,\"\",'Blank - Request Form'!S92),\"\"))","v":""},"",58]
[{"$f":"IF('Blank - Request Form'!$F$6=\"CIASI\",IF('Blank - Request Form'!D93=0,\"\",'Blank - Request Form'!D93),IF('Blank - Request Form'!$F$7=\"CIASI\",IF('Blank - Request Form'!M93=0,\"\",'Blank - Request Form'!M93),\"\"))","v":""},{"$f":"IF('Blank - Request Form'!$F$6=\"CIASI\",IF('Blank - Request Form'!E93=0,\"\",'Blank - Request Form'!E93),IF('Blank - Request Form'!$F$7=\"CIASI\",IF('Blank - Request Form'!N93=0,\"\",'Blank - Request Form'!N93),\"\"))","v":""},{"$f":"IF('Blank - Request Form'!$F$6=\"CIASI\",IF(OR('Blank - Request Form'!F93=\"000\",'Blank - Request Form'!F93=0),\"\",'Blank - Request Form'!F93),IF('Blank - Request Form'!$F$7=\"CIASI\",IF(OR('Blank - Request Form'!O93=\"000\",'Blank - Request Form'!O93=0),\"\",'Blank - Request Form'!O93),\"\"))","v":""},{"$f":"IF('Blank - Request Form'!$F$6=\"CIASI\",IF(OR('Blank - Request Form'!G93=\"0\",'Blank - Request Form'!G93=\"00000\",'Blank - Request Form'!G93=0),\"\",'Blank - Request Form'!G93),IF('Blank - Request Form'!$F$7=\"CIASI\",IF(OR('Blank - Request Form'!P93=\"0\",'Blank - Request Form'!P93=\"00000\",'Blank - Request Form'!P93=0),\"\",'Blank - Request Form'!P93),\"\"))","v":""},{"$f":"IF('Blank - Request Form'!$F$6=\"CIASI\",IF(OR('Blank - Request Form'!H93=\"0\",'Blank - Request Form'!H93=\"00000\",'Blank - Request Form'!H93=0),\"\",'Blank - Request Form'!H93),IF('Blank - Request Form'!$F$7=\"CIASI\",IF(OR('Blank - Request Form'!Q93=\"0\",'Blank - Request Form'!Q93=\"00000\",'Blank - Request Form'!Q93=0),\"\",'Blank - Request Form'!Q93),\"\"))","v":""},{"$f":"IF('Blank - Request Form'!$F$6=\"CIASI\",IF(OR('Blank - Request Form'!I93=\"0\",'Blank - Request Form'!I93=\"00000\",'Blank - Request Form'!I93=0),\"\",'Blank - Request Form'!I93),IF('Blank - Request Form'!$F$7=\"CIASI\",IF(OR('Blank - Request Form'!R93=\"0\",'Blank - Request Form'!R93=\"00000\",'Blank - Request Form'!R93=0),\"\",'Blank - Request Form'!R93),\"\"))","v":""},null,{"$f":"IF('Blank - Request Form'!$F$6=\"CIASI\",IF('Blank - Request Form'!K93=0,\"\",'Blank - Request Form'!K93),IF('Blank - Request Form'!$F$7=\"CIASI\",IF('Blank - Request Form'!T93=0,\"\",'Blank - Request Form'!T93),\"\"))","v":""},null,null,null,{"$f":"IF(M59<>\"\",'Blank - Request Form'!$M$2,\"\")","v":""},{"$f":"IF('Blank - Request Form'!$F$6=\"CIASI\",IF('Blank - Request Form'!J93=0,\"\",'Blank - Request Form'!J93),IF('Blank - Request Form'!$F$7=\"CIASI\",IF('Blank - Request Form'!S93=0,\"\",'Blank - Request Form'!S93),\"\"))","v":""},"",59]
[{"$f":"IF('Blank - Request Form'!$F$6=\"CIASI\",IF('Blank - Request Form'!D94=0,\"\",'Blank - Request Form'!D94),IF('Blank - Request Form'!$F$7=\"CIASI\",IF('Blank - Request Form'!M94=0,\"\",'Blank - Request Form'!M94),\"\"))","v":""},{"$f":"IF('Blank - Request Form'!$F$6=\"CIASI\",IF('Blank - Request Form'!E94=0,\"\",'Blank - Request Form'!E94),IF('Blank - Request Form'!$F$7=\"CIASI\",IF('Blank - Request Form'!N94=0,\"\",'Blank - Request Form'!N94),\"\"))","v":""},{"$f":"IF('Blank - Request Form'!$F$6=\"CIASI\",IF(OR('Blank - Request Form'!F94=\"000\",'Blank - Request Form'!F94=0),\"\",'Blank - Request Form'!F94),IF('Blank - Request Form'!$F$7=\"CIASI\",IF(OR('Blank - Request Form'!O94=\"000\",'Blank - Request Form'!O94=0),\"\",'Blank - Request Form'!O94),\"\"))","v":""},{"$f":"IF('Blank - Request Form'!$F$6=\"CIASI\",IF(OR('Blank - Request Form'!G94=\"0\",'Blank - Request Form'!G94=\"00000\",'Blank - Request Form'!G94=0),\"\",'Blank - Request Form'!G94),IF('Blank - Request Form'!$F$7=\"CIASI\",IF(OR('Blank - Request Form'!P94=\"0\",'Blank - Request Form'!P94=\"00000\",'Blank - Request Form'!P94=0),\"\",'Blank - Request Form'!P94),\"\"))","v":""},{"$f":"IF('Blank - Request Form'!$F$6=\"CIASI\",IF(OR('Blank - Request Form'!H94=\"0\",'Blank - Request Form'!H94=\"00000\",'Blank - Request Form'!H94=0),\"\",'Blank - Request Form'!H94),IF('Blank - Request Form'!$F$7=\"CIASI\",IF(OR('Blank - Request Form'!Q94=\"0\",'Blank - Request Form'!Q94=\"00000\",'Blank - Request Form'!Q94=0),\"\",'Blank - Request Form'!Q94),\"\"))","v":""},{"$f":"IF('Blank - Request Form'!$F$6=\"CIASI\",IF(OR('Blank - Request Form'!I94=\"0\",'Blank - Request Form'!I94=\"00000\",'Blank - Request Form'!I94=0),\"\",'Blank - Request Form'!I94),IF('Blank - Request Form'!$F$7=\"CIASI\",IF(OR('Blank - Request Form'!R94=\"0\",'Blank - Request Form'!R94=\"00000\",'Blank - Request Form'!R94=0),\"\",'Blank - Request Form'!R94),\"\"))","v":""},null,{"$f":"IF('Blank - Request Form'!$F$6=\"CIASI\",IF('Blank - Request Form'!K94=0,\"\",'Blank - Request Form'!K94),IF('Blank - Request Form'!$F$7=\"CIASI\",IF('Blank - Request Form'!T94=0,\"\",'Blank - Request Form'!T94),\"\"))","v":""},null,null,null,{"$f":"IF(M60<>\"\",'Blank - Request Form'!$M$2,\"\")","v":""},{"$f":"IF('Blank - Request Form'!$F$6=\"CIASI\",IF('Blank - Request Form'!J94=0,\"\",'Blank - Request Form'!J94),IF('Blank - Request Form'!$F$7=\"CIASI\",IF('Blank - Request Form'!S94=0,\"\",'Blank - Request Form'!S94),\"\"))","v":""},"",60]
[{"$f":"IF('Blank - Request Form'!$F$6=\"CIASI\",IF('Blank - Request Form'!D95=0,\"\",'Blank - Request Form'!D95),IF('Blank - Request Form'!$F$7=\"CIASI\",IF('Blank - Request Form'!M95=0,\"\",'Blank - Request Form'!M95),\"\"))","v":""},{"$f":"IF('Blank - Request Form'!$F$6=\"CIASI\",IF('Blank - Request Form'!E95=0,\"\",'Blank - Request Form'!E95),IF('Blank - Request Form'!$F$7=\"CIASI\",IF('Blank - Request Form'!N95=0,\"\",'Blank - Request Form'!N95),\"\"))","v":""},{"$f":"IF('Blank - Request Form'!$F$6=\"CIASI\",IF(OR('Blank - Request Form'!F95=\"000\",'Blank - Request Form'!F95=0),\"\",'Blank - Request Form'!F95),IF('Blank - Request Form'!$F$7=\"CIASI\",IF(OR('Blank - Request Form'!O95=\"000\",'Blank - Request Form'!O95=0),\"\",'Blank - Request Form'!O95),\"\"))","v":""},{"$f":"IF('Blank - Request Form'!$F$6=\"CIASI\",IF(OR('Blank - Request Form'!G95=\"0\",'Blank - Request Form'!G95=\"00000\",'Blank - Request Form'!G95=0),\"\",'Blank - Request Form'!G95),IF('Blank - Request Form'!$F$7=\"CIASI\",IF(OR('Blank - Request Form'!P95=\"0\",'Blank - Request Form'!P95=\"00000\",'Blank - Request Form'!P95=0),\"\",'Blank - Request Form'!P95),\"\"))","v":""},{"$f":"IF('Blank - Request Form'!$F$6=\"CIASI\",IF(OR('Blank - Request Form'!H95=\"0\",'Blank - Request Form'!H95=\"00000\",'Blank - Request Form'!H95=0),\"\",'Blank - Request Form'!H95),IF('Blank - Request Form'!$F$7=\"CIASI\",IF(OR('Blank - Request Form'!Q95=\"0\",'Blank - Request Form'!Q95=\"00000\",'Blank - Request Form'!Q95=0),\"\",'Blank - Request Form'!Q95),\"\"))","v":""},{"$f":"IF('Blank - Request Form'!$F$6=\"CIASI\",IF(OR('Blank - Request Form'!I95=\"0\",'Blank - Request Form'!I95=\"00000\",'Blank - Request Form'!I95=0),\"\",'Blank - Request Form'!I95),IF('Blank - Request Form'!$F$7=\"CIASI\",IF(OR('Blank - Request Form'!R95=\"0\",'Blank - Request Form'!R95=\"00000\",'Blank - Request Form'!R95=0),\"\",'Blank - Request Form'!R95),\"\"))","v":""},null,{"$f":"IF('Blank - Request Form'!$F$6=\"CIASI\",IF('Blank - Request Form'!K95=0,\"\",'Blank - Request Form'!K95),IF('Blank - Request Form'!$F$7=\"CIASI\",IF('Blank - Request Form'!T95=0,\"\",'Blank - Request Form'!T95),\"\"))","v":""},null,null,null,{"$f":"IF(M61<>\"\",'Blank - Request Form'!$M$2,\"\")","v":""},{"$f":"IF('Blank - Request Form'!$F$6=\"CIASI\",IF('Blank - Request Form'!J95=0,\"\",'Blank - Request Form'!J95),IF('Blank - Request Form'!$F$7=\"CIASI\",IF('Blank - Request Form'!S95=0,\"\",'Blank - Request Form'!S95),\"\"))","v":""},"",61]
[{"$f":"IF('Blank - Request Form'!$F$6=\"CIASI\",IF('Blank - Request Form'!D96=0,\"\",'Blank - Request Form'!D96),IF('Blank - Request Form'!$F$7=\"CIASI\",IF('Blank - Request Form'!M96=0,\"\",'Blank - Request Form'!M96),\"\"))","v":""},{"$f":"IF('Blank - Request Form'!$F$6=\"CIASI\",IF('Blank - Request Form'!E96=0,\"\",'Blank - Request Form'!E96),IF('Blank - Request Form'!$F$7=\"CIASI\",IF('Blank - Request Form'!N96=0,\"\",'Blank - Request Form'!N96),\"\"))","v":""},{"$f":"IF('Blank - Request Form'!$F$6=\"CIASI\",IF(OR('Blank - Request Form'!F96=\"000\",'Blank - Request Form'!F96=0),\"\",'Blank - Request Form'!F96),IF('Blank - Request Form'!$F$7=\"CIASI\",IF(OR('Blank - Request Form'!O96=\"000\",'Blank - Request Form'!O96=0),\"\",'Blank - Request Form'!O96),\"\"))","v":""},{"$f":"IF('Blank - Request Form'!$F$6=\"CIASI\",IF(OR('Blank - Request Form'!G96=\"0\",'Blank - Request Form'!G96=\"00000\",'Blank - Request Form'!G96=0),\"\",'Blank - Request Form'!G96),IF('Blank - Request Form'!$F$7=\"CIASI\",IF(OR('Blank - Request Form'!P96=\"0\",'Blank - Request Form'!P96=\"00000\",'Blank - Request Form'!P96=0),\"\",'Blank - Request Form'!P96),\"\"))","v":""},{"$f":"IF('Blank - Request Form'!$F$6=\"CIASI\",IF(OR('Blank - Request Form'!H96=\"0\",'Blank - Request Form'!H96=\"00000\",'Blank - Request Form'!H96=0),\"\",'Blank - Request Form'!H96),IF('Blank - Request Form'!$F$7=\"CIASI\",IF(OR('Blank - Request Form'!Q96=\"0\",'Blank - Request Form'!Q96=\"00000\",'Blank - Request Form'!Q96=0),\"\",'Blank - Request Form'!Q96),\"\"))","v":""},{"$f":"IF('Blank - Request Form'!$F$6=\"CIASI\",IF(OR('Blank - Request Form'!I96=\"0\",'Blank - Request Form'!I96=\"00000\",'Blank - Request Form'!I96=0),\"\",'Blank - Request Form'!I96),IF('Blank - Request Form'!$F$7=\"CIASI\",IF(OR('Blank - Request Form'!R96=\"0\",'Blank - Request Form'!R96=\"00000\",'Blank - Request Form'!R96=0),\"\",'Blank - Request Form'!R96),\"\"))","v":""},null,{"$f":"IF('Blank - Request Form'!$F$6=\"CIASI\",IF('Blank - Request Form'!K96=0,\"\",'Blank - Request Form'!K96),IF('Blank - Request Form'!$F$7=\"CIASI\",IF('Blank - Request Form'!T96=0,\"\",'Blank - Request Form'!T96),\"\"))","v":""},null,null,null,{"$f":"IF(M62<>\"\",'Blank - Request Form'!$M$2,\"\")","v":""},{"$f":"IF('Blank - Request Form'!$F$6=\"CIASI\",IF('Blank - Request Form'!J96=0,\"\",'Blank - Request Form'!J96),IF('Blank - Request Form'!$F$7=\"CIASI\",IF('Blank - Request Form'!S96=0,\"\",'Blank - Request Form'!S96),\"\"))","v":""},"",62]
[{"$f":"IF('Blank - Request Form'!$F$6=\"CIASI\",IF('Blank - Request Form'!D97=0,\"\",'Blank - Request Form'!D97),IF('Blank - Request Form'!$F$7=\"CIASI\",IF('Blank - Request Form'!M97=0,\"\",'Blank - Request Form'!M97),\"\"))","v":""},{"$f":"IF('Blank - Request Form'!$F$6=\"CIASI\",IF('Blank - Request Form'!E97=0,\"\",'Blank - Request Form'!E97),IF('Blank - Request Form'!$F$7=\"CIASI\",IF('Blank - Request Form'!N97=0,\"\",'Blank - Request Form'!N97),\"\"))","v":""},{"$f":"IF('Blank - Request Form'!$F$6=\"CIASI\",IF(OR('Blank - Request Form'!F97=\"000\",'Blank - Request Form'!F97=0),\"\",'Blank - Request Form'!F97),IF('Blank - Request Form'!$F$7=\"CIASI\",IF(OR('Blank - Request Form'!O97=\"000\",'Blank - Request Form'!O97=0),\"\",'Blank - Request Form'!O97),\"\"))","v":""},{"$f":"IF('Blank - Request Form'!$F$6=\"CIASI\",IF(OR('Blank - Request Form'!G97=\"0\",'Blank - Request Form'!G97=\"00000\",'Blank - Request Form'!G97=0),\"\",'Blank - Request Form'!G97),IF('Blank - Request Form'!$F$7=\"CIASI\",IF(OR('Blank - Request Form'!P97=\"0\",'Blank - Request Form'!P97=\"00000\",'Blank - Request Form'!P97=0),\"\",'Blank - Request Form'!P97),\"\"))","v":""},{"$f":"IF('Blank - Request Form'!$F$6=\"CIASI\",IF(OR('Blank - Request Form'!H97=\"0\",'Blank - Request Form'!H97=\"00000\",'Blank - Request Form'!H97=0),\"\",'Blank - Request Form'!H97),IF('Blank - Request Form'!$F$7=\"CIASI\",IF(OR('Blank - Request Form'!Q97=\"0\",'Blank - Request Form'!Q97=\"00000\",'Blank - Request Form'!Q97=0),\"\",'Blank - Request Form'!Q97),\"\"))","v":""},{"$f":"IF('Blank - Request Form'!$F$6=\"CIASI\",IF(OR('Blank - Request Form'!I97=\"0\",'Blank - Request Form'!I97=\"00000\",'Blank - Request Form'!I97=0),\"\",'Blank - Request Form'!I97),IF('Blank - Request Form'!$F$7=\"CIASI\",IF(OR('Blank - Request Form'!R97=\"0\",'Blank - Request Form'!R97=\"00000\",'Blank - Request Form'!R97=0),\"\",'Blank - Request Form'!R97),\"\"))","v":""},null,{"$f":"IF('Blank - Request Form'!$F$6=\"CIASI\",IF('Blank - Request Form'!K97=0,\"\",'Blank - Request Form'!K97),IF('Blank - Request Form'!$F$7=\"CIASI\",IF('Blank - Request Form'!T97=0,\"\",'Blank - Request Form'!T97),\"\"))","v":""},null,null,null,{"$f":"IF(M63<>\"\",'Blank - Request Form'!$M$2,\"\")","v":""},{"$f":"IF('Blank - Request Form'!$F$6=\"CIASI\",IF('Blank - Request Form'!J97=0,\"\",'Blank - Request Form'!J97),IF('Blank - Request Form'!$F$7=\"CIASI\",IF('Blank - Request Form'!S97=0,\"\",'Blank - Request Form'!S97),\"\"))","v":""},"",63]
[{"$f":"IF('Blank - Request Form'!$F$6=\"CIASI\",IF('Blank - Request Form'!D98=0,\"\",'Blank - Request Form'!D98),IF('Blank - Request Form'!$F$7=\"CIASI\",IF('Blank - Request Form'!M98=0,\"\",'Blank - Request Form'!M98),\"\"))","v":""},{"$f":"IF('Blank - Request Form'!$F$6=\"CIASI\",IF('Blank - Request Form'!E98=0,\"\",'Blank - Request Form'!E98),IF('Blank - Request Form'!$F$7=\"CIASI\",IF('Blank - Request Form'!N98=0,\"\",'Blank - Request Form'!N98),\"\"))","v":""},{"$f":"IF('Blank - Request Form'!$F$6=\"CIASI\",IF(OR('Blank - Request Form'!F98=\"000\",'Blank - Request Form'!F98=0),\"\",'Blank - Request Form'!F98),IF('Blank - Request Form'!$F$7=\"CIASI\",IF(OR('Blank - Request Form'!O98=\"000\",'Blank - Request Form'!O98=0),\"\",'Blank - Request Form'!O98),\"\"))","v":""},{"$f":"IF('Blank - Request Form'!$F$6=\"CIASI\",IF(OR('Blank - Request Form'!G98=\"0\",'Blank - Request Form'!G98=\"00000\",'Blank - Request Form'!G98=0),\"\",'Blank - Request Form'!G98),IF('Blank - Request Form'!$F$7=\"CIASI\",IF(OR('Blank - Request Form'!P98=\"0\",'Blank - Request Form'!P98=\"00000\",'Blank - Request Form'!P98=0),\"\",'Blank - Request Form'!P98),\"\"))","v":""},{"$f":"IF('Blank - Request Form'!$F$6=\"CIASI\",IF(OR('Blank - Request Form'!H98=\"0\",'Blank - Request Form'!H98=\"00000\",'Blank - Request Form'!H98=0),\"\",'Blank - Request Form'!H98),IF('Blank - Request Form'!$F$7=\"CIASI\",IF(OR('Blank - Request Form'!Q98=\"0\",'Blank - Request Form'!Q98=\"00000\",'Blank - Request Form'!Q98=0),\"\",'Blank - Request Form'!Q98),\"\"))","v":""},{"$f":"IF('Blank - Request Form'!$F$6=\"CIASI\",IF(OR('Blank - Request Form'!I98=\"0\",'Blank - Request Form'!I98=\"00000\",'Blank - Request Form'!I98=0),\"\",'Blank - Request Form'!I98),IF('Blank - Request Form'!$F$7=\"CIASI\",IF(OR('Blank - Request Form'!R98=\"0\",'Blank - Request Form'!R98=\"00000\",'Blank - Request Form'!R98=0),\"\",'Blank - Request Form'!R98),\"\"))","v":""},null,{"$f":"IF('Blank - Request Form'!$F$6=\"CIASI\",IF('Blank - Request Form'!K98=0,\"\",'Blank - Request Form'!K98),IF('Blank - Request Form'!$F$7=\"CIASI\",IF('Blank - Request Form'!T98=0,\"\",'Blank - Request Form'!T98),\"\"))","v":""},null,null,null,{"$f":"IF(M64<>\"\",'Blank - Request Form'!$M$2,\"\")","v":""},{"$f":"IF('Blank - Request Form'!$F$6=\"CIASI\",IF('Blank - Request Form'!J98=0,\"\",'Blank - Request Form'!J98),IF('Blank - Request Form'!$F$7=\"CIASI\",IF('Blank - Request Form'!S98=0,\"\",'Blank - Request Form'!S98),\"\"))","v":""},"",64]
[{"$f":"IF('Blank - Request Form'!$F$6=\"CIASI\",IF('Blank - Request Form'!D99=0,\"\",'Blank - Request Form'!D99),IF('Blank - Request Form'!$F$7=\"CIASI\",IF('Blank - Request Form'!M99=0,\"\",'Blank - Request Form'!M99),\"\"))","v":""},{"$f":"IF('Blank - Request Form'!$F$6=\"CIASI\",IF('Blank - Request Form'!E99=0,\"\",'Blank - Request Form'!E99),IF('Blank - Request Form'!$F$7=\"CIASI\",IF('Blank - Request Form'!N99=0,\"\",'Blank - Request Form'!N99),\"\"))","v":""},{"$f":"IF('Blank - Request Form'!$F$6=\"CIASI\",IF(OR('Blank - Request Form'!F99=\"000\",'Blank - Request Form'!F99=0),\"\",'Blank - Request Form'!F99),IF('Blank - Request Form'!$F$7=\"CIASI\",IF(OR('Blank - Request Form'!O99=\"000\",'Blank - Request Form'!O99=0),\"\",'Blank - Request Form'!O99),\"\"))","v":""},{"$f":"IF('Blank - Request Form'!$F$6=\"CIASI\",IF(OR('Blank - Request Form'!G99=\"0\",'Blank - Request Form'!G99=\"00000\",'Blank - Request Form'!G99=0),\"\",'Blank - Request Form'!G99),IF('Blank - Request Form'!$F$7=\"CIASI\",IF(OR('Blank - Request Form'!P99=\"0\",'Blank - Request Form'!P99=\"00000\",'Blank - Request Form'!P99=0),\"\",'Blank - Request Form'!P99),\"\"))","v":""},{"$f":"IF('Blank - Request Form'!$F$6=\"CIASI\",IF(OR('Blank - Request Form'!H99=\"0\",'Blank - Request Form'!H99=\"00000\",'Blank - Request Form'!H99=0),\"\",'Blank - Request Form'!H99),IF('Blank - Request Form'!$F$7=\"CIASI\",IF(OR('Blank - Request Form'!Q99=\"0\",'Blank - Request Form'!Q99=\"00000\",'Blank - Request Form'!Q99=0),\"\",'Blank - Request Form'!Q99),\"\"))","v":""},{"$f":"IF('Blank - Request Form'!$F$6=\"CIASI\",IF(OR('Blank - Request Form'!I99=\"0\",'Blank - Request Form'!I99=\"00000\",'Blank - Request Form'!I99=0),\"\",'Blank - Request Form'!I99),IF('Blank - Request Form'!$F$7=\"CIASI\",IF(OR('Blank - Request Form'!R99=\"0\",'Blank - Request Form'!R99=\"00000\",'Blank - Request Form'!R99=0),\"\",'Blank - Request Form'!R99),\"\"))","v":""},null,{"$f":"IF('Blank - Request Form'!$F$6=\"CIASI\",IF('Blank - Request Form'!K99=0,\"\",'Blank - Request Form'!K99),IF('Blank - Request Form'!$F$7=\"CIASI\",IF('Blank - Request Form'!T99=0,\"\",'Blank - Request Form'!T99),\"\"))","v":""},null,null,null,{"$f":"IF(M65<>\"\",'Blank - Request Form'!$M$2,\"\")","v":""},{"$f":"IF('Blank - Request Form'!$F$6=\"CIASI\",IF('Blank - Request Form'!J99=0,\"\",'Blank - Request Form'!J99),IF('Blank - Request Form'!$F$7=\"CIASI\",IF('Blank - Request Form'!S99=0,\"\",'Blank - Request Form'!S99),\"\"))","v":""},"",65]
[{"$f":"IF('Blank - Request Form'!$F$6=\"CIASI\",IF('Blank - Request Form'!D100=0,\"\",'Blank - Request Form'!D100),IF('Blank - Request Form'!$F$7=\"CIASI\",IF('Blank - Request Form'!M100=0,\"\",'Blank - Request Form'!M100),\"\"))","v":""},{"$f":"IF('Blank - Request Form'!$F$6=\"CIASI\",IF('Blank - Request Form'!E100=0,\"\",'Blank - Request Form'!E100),IF('Blank - Request Form'!$F$7=\"CIASI\",IF('Blank - Request Form'!N100=0,\"\",'Blank - Request Form'!N100),\"\"))","v":""},{"$f":"IF('Blank - Request Form'!$F$6=\"CIASI\",IF(OR('Blank - Request Form'!F100=\"000\",'Blank - Request Form'!F100=0),\"\",'Blank - Request Form'!F100),IF('Blank - Request Form'!$F$7=\"CIASI\",IF(OR('Blank - Request Form'!O100=\"000\",'Blank - Request Form'!O100=0),\"\",'Blank - Request Form'!O100),\"\"))","v":""},{"$f":"IF('Blank - Request Form'!$F$6=\"CIASI\",IF(OR('Blank - Request Form'!G100=\"0\",'Blank - Request Form'!G100=\"00000\",'Blank - Request Form'!G100=0),\"\",'Blank - Request Form'!G100),IF('Blank - Request Form'!$F$7=\"CIASI\",IF(OR('Blank - Request Form'!P100=\"0\",'Blank - Request Form'!P100=\"00000\",'Blank - Request Form'!P100=0),\"\",'Blank - Request Form'!P100),\"\"))","v":""},{"$f":"IF('Blank - Request Form'!$F$6=\"CIASI\",IF(OR('Blank - Request Form'!H100=\"0\",'Blank - Request Form'!H100=\"00000\",'Blank - Request Form'!H100=0),\"\",'Blank - Request Form'!H100),IF('Blank - Request Form'!$F$7=\"CIASI\",IF(OR('Blank - Request Form'!Q100=\"0\",'Blank - Request Form'!Q100=\"00000\",'Blank - Request Form'!Q100=0),\"\",'Blank - Request Form'!Q100),\"\"))","v":""},{"$f":"IF('Blank - Request Form'!$F$6=\"CIASI\",IF(OR('Blank - Request Form'!I100=\"0\",'Blank - Request Form'!I100=\"00000\",'Blank - Request Form'!I100=0),\"\",'Blank - Request Form'!I100),IF('Blank - Request Form'!$F$7=\"CIASI\",IF(OR('Blank - Request Form'!R100=\"0\",'Blank - Request Form'!R100=\"00000\",'Blank - Request Form'!R100=0),\"\",'Blank - Request Form'!R100),\"\"))","v":""},null,{"$f":"IF('Blank - Request Form'!$F$6=\"CIASI\",IF('Blank - Request Form'!K100=0,\"\",'Blank - Request Form'!K100),IF('Blank - Request Form'!$F$7=\"CIASI\",IF('Blank - Request Form'!T100=0,\"\",'Blank - Request Form'!T100),\"\"))","v":""},null,null,null,{"$f":"IF(M66<>\"\",'Blank - Request Form'!$M$2,\"\")","v":""},{"$f":"IF('Blank - Request Form'!$F$6=\"CIASI\",IF('Blank - Request Form'!J100=0,\"\",'Blank - Request Form'!J100),IF('Blank - Request Form'!$F$7=\"CIASI\",IF('Blank - Request Form'!S100=0,\"\",'Blank - Request Form'!S100),\"\"))","v":""},"",66]
[{"$f":"IF('Blank - Request Form'!$F$6=\"CIASI\",IF('Blank - Request Form'!D101=0,\"\",'Blank - Request Form'!D101),IF('Blank - Request Form'!$F$7=\"CIASI\",IF('Blank - Request Form'!M101=0,\"\",'Blank - Request Form'!M101),\"\"))","v":""},{"$f":"IF('Blank - Request Form'!$F$6=\"CIASI\",IF('Blank - Request Form'!E101=0,\"\",'Blank - Request Form'!E101),IF('Blank - Request Form'!$F$7=\"CIASI\",IF('Blank - Request Form'!N101=0,\"\",'Blank - Request Form'!N101),\"\"))","v":""},{"$f":"IF('Blank - Request Form'!$F$6=\"CIASI\",IF(OR('Blank - Request Form'!F101=\"000\",'Blank - Request Form'!F101=0),\"\",'Blank - Request Form'!F101),IF('Blank - Request Form'!$F$7=\"CIASI\",IF(OR('Blank - Request Form'!O101=\"000\",'Blank - Request Form'!O101=0),\"\",'Blank - Request Form'!O101),\"\"))","v":""},{"$f":"IF('Blank - Request Form'!$F$6=\"CIASI\",IF(OR('Blank - Request Form'!G101=\"0\",'Blank - Request Form'!G101=\"00000\",'Blank - Request Form'!G101=0),\"\",'Blank - Request Form'!G101),IF('Blank - Request Form'!$F$7=\"CIASI\",IF(OR('Blank - Request Form'!P101=\"0\",'Blank - Request Form'!P101=\"00000\",'Blank - Request Form'!P101=0),\"\",'Blank - Request Form'!P101),\"\"))","v":""},{"$f":"IF('Blank - Request Form'!$F$6=\"CIASI\",IF(OR('Blank - Request Form'!H101=\"0\",'Blank - Request Form'!H101=\"00000\",'Blank - Request Form'!H101=0),\"\",'Blank - Request Form'!H101),IF('Blank - Request Form'!$F$7=\"CIASI\",IF(OR('Blank - Request Form'!Q101=\"0\",'Blank - Request Form'!Q101=\"00000\",'Blank - Request Form'!Q101=0),\"\",'Blank - Request Form'!Q101),\"\"))","v":""},{"$f":"IF('Blank - Request Form'!$F$6=\"CIASI\",IF(OR('Blank - Request Form'!I101=\"0\",'Blank - Request Form'!I101=\"00000\",'Blank - Request Form'!I101=0),\"\",'Blank - Request Form'!I101),IF('Blank - Request Form'!$F$7=\"CIASI\",IF(OR('Blank - Request Form'!R101=\"0\",'Blank - Request Form'!R101=\"00000\",'Blank - Request Form'!R101=0),\"\",'Blank - Request Form'!R101),\"\"))","v":""},null,{"$f":"IF('Blank - Request Form'!$F$6=\"CIASI\",IF('Blank - Request Form'!K101=0,\"\",'Blank - Request Form'!K101),IF('Blank - Request Form'!$F$7=\"CIASI\",IF('Blank - Request Form'!T101=0,\"\",'Blank - Request Form'!T101),\"\"))","v":""},null,null,null,{"$f":"IF(M67<>\"\",'Blank - Request Form'!$M$2,\"\")","v":""},{"$f":"IF('Blank - Request Form'!$F$6=\"CIASI\",IF('Blank - Request Form'!J101=0,\"\",'Blank - Request Form'!J101),IF('Blank - Request Form'!$F$7=\"CIASI\",IF('Blank - Request Form'!S101=0,\"\",'Blank - Request Form'!S101),\"\"))","v":""},"",67]
[{"$f":"IF('Blank - Request Form'!$F$6=\"CIASI\",IF('Blank - Request Form'!D102=0,\"\",'Blank - Request Form'!D102),IF('Blank - Request Form'!$F$7=\"CIASI\",IF('Blank - Request Form'!M102=0,\"\",'Blank - Request Form'!M102),\"\"))","v":""},{"$f":"IF('Blank - Request Form'!$F$6=\"CIASI\",IF('Blank - Request Form'!E102=0,\"\",'Blank - Request Form'!E102),IF('Blank - Request Form'!$F$7=\"CIASI\",IF('Blank - Request Form'!N102=0,\"\",'Blank - Request Form'!N102),\"\"))","v":""},{"$f":"IF('Blank - Request Form'!$F$6=\"CIASI\",IF(OR('Blank - Request Form'!F102=\"000\",'Blank - Request Form'!F102=0),\"\",'Blank - Request Form'!F102),IF('Blank - Request Form'!$F$7=\"CIASI\",IF(OR('Blank - Request Form'!O102=\"000\",'Blank - Request Form'!O102=0),\"\",'Blank - Request Form'!O102),\"\"))","v":""},{"$f":"IF('Blank - Request Form'!$F$6=\"CIASI\",IF(OR('Blank - Request Form'!G102=\"0\",'Blank - Request Form'!G102=\"00000\",'Blank - Request Form'!G102=0),\"\",'Blank - Request Form'!G102),IF('Blank - Request Form'!$F$7=\"CIASI\",IF(OR('Blank - Request Form'!P102=\"0\",'Blank - Request Form'!P102=\"00000\",'Blank - Request Form'!P102=0),\"\",'Blank - Request Form'!P102),\"\"))","v":""},{"$f":"IF('Blank - Request Form'!$F$6=\"CIASI\",IF(OR('Blank - Request Form'!H102=\"0\",'Blank - Request Form'!H102=\"00000\",'Blank - Request Form'!H102=0),\"\",'Blank - Request Form'!H102),IF('Blank - Request Form'!$F$7=\"CIASI\",IF(OR('Blank - Request Form'!Q102=\"0\",'Blank - Request Form'!Q102=\"00000\",'Blank - Request Form'!Q102=0),\"\",'Blank - Request Form'!Q102),\"\"))","v":""},{"$f":"IF('Blank - Request Form'!$F$6=\"CIASI\",IF(OR('Blank - Request Form'!I102=\"0\",'Blank - Request Form'!I102=\"00000\",'Blank - Request Form'!I102=0),\"\",'Blank - Request Form'!I102),IF('Blank - Request Form'!$F$7=\"CIASI\",IF(OR('Blank - Request Form'!R102=\"0\",'Blank - Request Form'!R102=\"00000\",'Blank - Request Form'!R102=0),\"\",'Blank - Request Form'!R102),\"\"))","v":""},null,{"$f":"IF('Blank - Request Form'!$F$6=\"CIASI\",IF('Blank - Request Form'!K102=0,\"\",'Blank - Request Form'!K102),IF('Blank - Request Form'!$F$7=\"CIASI\",IF('Blank - Request Form'!T102=0,\"\",'Blank - Request Form'!T102),\"\"))","v":""},null,null,null,{"$f":"IF(M68<>\"\",'Blank - Request Form'!$M$2,\"\")","v":""},{"$f":"IF('Blank - Request Form'!$F$6=\"CIASI\",IF('Blank - Request Form'!J102=0,\"\",'Blank - Request Form'!J102),IF('Blank - Request Form'!$F$7=\"CIASI\",IF('Blank - Request Form'!S102=0,\"\",'Blank - Request Form'!S102),\"\"))","v":""},"",68]
[{"$f":"IF('Blank - Request Form'!$F$6=\"CIASI\",IF('Blank - Request Form'!D103=0,\"\",'Blank - Request Form'!D103),IF('Blank - Request Form'!$F$7=\"CIASI\",IF('Blank - Request Form'!M103=0,\"\",'Blank - Request Form'!M103),\"\"))","v":""},{"$f":"IF('Blank - Request Form'!$F$6=\"CIASI\",IF('Blank - Request Form'!E103=0,\"\",'Blank - Request Form'!E103),IF('Blank - Request Form'!$F$7=\"CIASI\",IF('Blank - Request Form'!N103=0,\"\",'Blank - Request Form'!N103),\"\"))","v":""},{"$f":"IF('Blank - Request Form'!$F$6=\"CIASI\",IF(OR('Blank - Request Form'!F103=\"000\",'Blank - Request Form'!F103=0),\"\",'Blank - Request Form'!F103),IF('Blank - Request Form'!$F$7=\"CIASI\",IF(OR('Blank - Request Form'!O103=\"000\",'Blank - Request Form'!O103=0),\"\",'Blank - Request Form'!O103),\"\"))","v":""},{"$f":"IF('Blank - Request Form'!$F$6=\"CIASI\",IF(OR('Blank - Request Form'!G103=\"0\",'Blank - Request Form'!G103=\"00000\",'Blank - Request Form'!G103=0),\"\",'Blank - Request Form'!G103),IF('Blank - Request Form'!$F$7=\"CIASI\",IF(OR('Blank - Request Form'!P103=\"0\",'Blank - Request Form'!P103=\"00000\",'Blank - Request Form'!P103=0),\"\",'Blank - Request Form'!P103),\"\"))","v":""},{"$f":"IF('Blank - Request Form'!$F$6=\"CIASI\",IF(OR('Blank - Request Form'!H103=\"0\",'Blank - Request Form'!H103=\"00000\",'Blank - Request Form'!H103=0),\"\",'Blank - Request Form'!H103),IF('Blank - Request Form'!$F$7=\"CIASI\",IF(OR('Blank - Request Form'!Q103=\"0\",'Blank - Request Form'!Q103=\"00000\",'Blank - Request Form'!Q103=0),\"\",'Blank - Request Form'!Q103),\"\"))","v":""},{"$f":"IF('Blank - Request Form'!$F$6=\"CIASI\",IF(OR('Blank - Request Form'!I103=\"0\",'Blank - Request Form'!I103=\"00000\",'Blank - Request Form'!I103=0),\"\",'Blank - Request Form'!I103),IF('Blank - Request Form'!$F$7=\"CIASI\",IF(OR('Blank - Request Form'!R103=\"0\",'Blank - Request Form'!R103=\"00000\",'Blank - Request Form'!R103=0),\"\",'Blank - Request Form'!R103),\"\"))","v":""},null,{"$f":"IF('Blank - Request Form'!$F$6=\"CIASI\",IF('Blank - Request Form'!K103=0,\"\",'Blank - Request Form'!K103),IF('Blank - Request Form'!$F$7=\"CIASI\",IF('Blank - Request Form'!T103=0,\"\",'Blank - Request Form'!T103),\"\"))","v":""},null,null,null,{"$f":"IF(M69<>\"\",'Blank - Request Form'!$M$2,\"\")","v":""},{"$f":"IF('Blank - Request Form'!$F$6=\"CIASI\",IF('Blank - Request Form'!J103=0,\"\",'Blank - Request Form'!J103),IF('Blank - Request Form'!$F$7=\"CIASI\",IF('Blank - Request Form'!S103=0,\"\",'Blank - Request Form'!S103),\"\"))","v":""},"",69]
[{"$f":"IF('Blank - Request Form'!$F$6=\"CIASI\",IF('Blank - Request Form'!D104=0,\"\",'Blank - Request Form'!D104),IF('Blank - Request Form'!$F$7=\"CIASI\",IF('Blank - Request Form'!M104=0,\"\",'Blank - Request Form'!M104),\"\"))","v":""},{"$f":"IF('Blank - Request Form'!$F$6=\"CIASI\",IF('Blank - Request Form'!E104=0,\"\",'Blank - Request Form'!E104),IF('Blank - Request Form'!$F$7=\"CIASI\",IF('Blank - Request Form'!N104=0,\"\",'Blank - Request Form'!N104),\"\"))","v":""},{"$f":"IF('Blank - Request Form'!$F$6=\"CIASI\",IF(OR('Blank - Request Form'!F104=\"000\",'Blank - Request Form'!F104=0),\"\",'Blank - Request Form'!F104),IF('Blank - Request Form'!$F$7=\"CIASI\",IF(OR('Blank - Request Form'!O104=\"000\",'Blank - Request Form'!O104=0),\"\",'Blank - Request Form'!O104),\"\"))","v":""},{"$f":"IF('Blank - Request Form'!$F$6=\"CIASI\",IF(OR('Blank - Request Form'!G104=\"0\",'Blank - Request Form'!G104=\"00000\",'Blank - Request Form'!G104=0),\"\",'Blank - Request Form'!G104),IF('Blank - Request Form'!$F$7=\"CIASI\",IF(OR('Blank - Request Form'!P104=\"0\",'Blank - Request Form'!P104=\"00000\",'Blank - Request Form'!P104=0),\"\",'Blank - Request Form'!P104),\"\"))","v":""},{"$f":"IF('Blank - Request Form'!$F$6=\"CIASI\",IF(OR('Blank - Request Form'!H104=\"0\",'Blank - Request Form'!H104=\"00000\",'Blank - Request Form'!H104=0),\"\",'Blank - Request Form'!H104),IF('Blank - Request Form'!$F$7=\"CIASI\",IF(OR('Blank - Request Form'!Q104=\"0\",'Blank - Request Form'!Q104=\"00000\",'Blank - Request Form'!Q104=0),\"\",'Blank - Request Form'!Q104),\"\"))","v":""},{"$f":"IF('Blank - Request Form'!$F$6=\"CIASI\",IF(OR('Blank - Request Form'!I104=\"0\",'Blank - Request Form'!I104=\"00000\",'Blank - Request Form'!I104=0),\"\",'Blank - Request Form'!I104),IF('Blank - Request Form'!$F$7=\"CIASI\",IF(OR('Blank - Request Form'!R104=\"0\",'Blank - Request Form'!R104=\"00000\",'Blank - Request Form'!R104=0),\"\",'Blank - Request Form'!R104),\"\"))","v":""},null,{"$f":"IF('Blank - Request Form'!$F$6=\"CIASI\",IF('Blank - Request Form'!K104=0,\"\",'Blank - Request Form'!K104),IF('Blank - Request Form'!$F$7=\"CIASI\",IF('Blank - Request Form'!T104=0,\"\",'Blank - Request Form'!T104),\"\"))","v":""},null,null,null,{"$f":"IF(M70<>\"\",'Blank - Request Form'!$M$2,\"\")","v":""},{"$f":"IF('Blank - Request Form'!$F$6=\"CIASI\",IF('Blank - Request Form'!J104=0,\"\",'Blank - Request Form'!J104),IF('Blank - Request Form'!$F$7=\"CIASI\",IF('Blank - Request Form'!S104=0,\"\",'Blank - Request Form'!S104),\"\"))","v":""},"",70]
[{"$f":"IF('Blank - Request Form'!$F$6=\"CIASI\",IF('Blank - Request Form'!D105=0,\"\",'Blank - Request Form'!D105),IF('Blank - Request Form'!$F$7=\"CIASI\",IF('Blank - Request Form'!M105=0,\"\",'Blank - Request Form'!M105),\"\"))","v":""},{"$f":"IF('Blank - Request Form'!$F$6=\"CIASI\",IF('Blank - Request Form'!E105=0,\"\",'Blank - Request Form'!E105),IF('Blank - Request Form'!$F$7=\"CIASI\",IF('Blank - Request Form'!N105=0,\"\",'Blank - Request Form'!N105),\"\"))","v":""},{"$f":"IF('Blank - Request Form'!$F$6=\"CIASI\",IF(OR('Blank - Request Form'!F105=\"000\",'Blank - Request Form'!F105=0),\"\",'Blank - Request Form'!F105),IF('Blank - Request Form'!$F$7=\"CIASI\",IF(OR('Blank - Request Form'!O105=\"000\",'Blank - Request Form'!O105=0),\"\",'Blank - Request Form'!O105),\"\"))","v":""},{"$f":"IF('Blank - Request Form'!$F$6=\"CIASI\",IF(OR('Blank - Request Form'!G105=\"0\",'Blank - Request Form'!G105=\"00000\",'Blank - Request Form'!G105=0),\"\",'Blank - Request Form'!G105),IF('Blank - Request Form'!$F$7=\"CIASI\",IF(OR('Blank - Request Form'!P105=\"0\",'Blank - Request Form'!P105=\"00000\",'Blank - Request Form'!P105=0),\"\",'Blank - Request Form'!P105),\"\"))","v":""},{"$f":"IF('Blank - Request Form'!$F$6=\"CIASI\",IF(OR('Blank - Request Form'!H105=\"0\",'Blank - Request Form'!H105=\"00000\",'Blank - Request Form'!H105=0),\"\",'Blank - Request Form'!H105),IF('Blank - Request Form'!$F$7=\"CIASI\",IF(OR('Blank - Request Form'!Q105=\"0\",'Blank - Request Form'!Q105=\"00000\",'Blank - Request Form'!Q105=0),\"\",'Blank - Request Form'!Q105),\"\"))","v":""},{"$f":"IF('Blank - Request Form'!$F$6=\"CIASI\",IF(OR('Blank - Request Form'!I105=\"0\",'Blank - Request Form'!I105=\"00000\",'Blank - Request Form'!I105=0),\"\",'Blank - Request Form'!I105),IF('Blank - Request Form'!$F$7=\"CIASI\",IF(OR('Blank - Request Form'!R105=\"0\",'Blank - Request Form'!R105=\"00000\",'Blank - Request Form'!R105=0),\"\",'Blank - Request Form'!R105),\"\"))","v":""},null,{"$f":"IF('Blank - Request Form'!$F$6=\"CIASI\",IF('Blank - Request Form'!K105=0,\"\",'Blank - Request Form'!K105),IF('Blank - Request Form'!$F$7=\"CIASI\",IF('Blank - Request Form'!T105=0,\"\",'Blank - Request Form'!T105),\"\"))","v":""},null,null,null,{"$f":"IF(M71<>\"\",'Blank - Request Form'!$M$2,\"\")","v":""},{"$f":"IF('Blank - Request Form'!$F$6=\"CIASI\",IF('Blank - Request Form'!J105=0,\"\",'Blank - Request Form'!J105),IF('Blank - Request Form'!$F$7=\"CIASI\",IF('Blank - Request Form'!S105=0,\"\",'Blank - Request Form'!S105),\"\"))","v":""},"",71]
[{"$f":"IF('Blank - Request Form'!$F$6=\"CIASI\",IF('Blank - Request Form'!D106=0,\"\",'Blank - Request Form'!D106),IF('Blank - Request Form'!$F$7=\"CIASI\",IF('Blank - Request Form'!M106=0,\"\",'Blank - Request Form'!M106),\"\"))","v":""},{"$f":"IF('Blank - Request Form'!$F$6=\"CIASI\",IF('Blank - Request Form'!E106=0,\"\",'Blank - Request Form'!E106),IF('Blank - Request Form'!$F$7=\"CIASI\",IF('Blank - Request Form'!N106=0,\"\",'Blank - Request Form'!N106),\"\"))","v":""},{"$f":"IF('Blank - Request Form'!$F$6=\"CIASI\",IF(OR('Blank - Request Form'!F106=\"000\",'Blank - Request Form'!F106=0),\"\",'Blank - Request Form'!F106),IF('Blank - Request Form'!$F$7=\"CIASI\",IF(OR('Blank - Request Form'!O106=\"000\",'Blank - Request Form'!O106=0),\"\",'Blank - Request Form'!O106),\"\"))","v":""},{"$f":"IF('Blank - Request Form'!$F$6=\"CIASI\",IF(OR('Blank - Request Form'!G106=\"0\",'Blank - Request Form'!G106=\"00000\",'Blank - Request Form'!G106=0),\"\",'Blank - Request Form'!G106),IF('Blank - Request Form'!$F$7=\"CIASI\",IF(OR('Blank - Request Form'!P106=\"0\",'Blank - Request Form'!P106=\"00000\",'Blank - Request Form'!P106=0),\"\",'Blank - Request Form'!P106),\"\"))","v":""},{"$f":"IF('Blank - Request Form'!$F$6=\"CIASI\",IF(OR('Blank - Request Form'!H106=\"0\",'Blank - Request Form'!H106=\"00000\",'Blank - Request Form'!H106=0),\"\",'Blank - Request Form'!H106),IF('Blank - Request Form'!$F$7=\"CIASI\",IF(OR('Blank - Request Form'!Q106=\"0\",'Blank - Request Form'!Q106=\"00000\",'Blank - Request Form'!Q106=0),\"\",'Blank - Request Form'!Q106),\"\"))","v":""},{"$f":"IF('Blank - Request Form'!$F$6=\"CIASI\",IF(OR('Blank - Request Form'!I106=\"0\",'Blank - Request Form'!I106=\"00000\",'Blank - Request Form'!I106=0),\"\",'Blank - Request Form'!I106),IF('Blank - Request Form'!$F$7=\"CIASI\",IF(OR('Blank - Request Form'!R106=\"0\",'Blank - Request Form'!R106=\"00000\",'Blank - Request Form'!R106=0),\"\",'Blank - Request Form'!R106),\"\"))","v":""},null,{"$f":"IF('Blank - Request Form'!$F$6=\"CIASI\",IF('Blank - Request Form'!K106=0,\"\",'Blank - Request Form'!K106),IF('Blank - Request Form'!$F$7=\"CIASI\",IF('Blank - Request Form'!T106=0,\"\",'Blank - Request Form'!T106),\"\"))","v":""},null,null,null,{"$f":"IF(M72<>\"\",'Blank - Request Form'!$M$2,\"\")","v":""},{"$f":"IF('Blank - Request Form'!$F$6=\"CIASI\",IF('Blank - Request Form'!J106=0,\"\",'Blank - Request Form'!J106),IF('Blank - Request Form'!$F$7=\"CIASI\",IF('Blank - Request Form'!S106=0,\"\",'Blank - Request Form'!S106),\"\"))","v":""},"",72]
[{"$f":"IF('Blank - Request Form'!$F$6=\"CIASI\",IF('Blank - Request Form'!D107=0,\"\",'Blank - Request Form'!D107),IF('Blank - Request Form'!$F$7=\"CIASI\",IF('Blank - Request Form'!M107=0,\"\",'Blank - Request Form'!M107),\"\"))","v":""},{"$f":"IF('Blank - Request Form'!$F$6=\"CIASI\",IF('Blank - Request Form'!E107=0,\"\",'Blank - Request Form'!E107),IF('Blank - Request Form'!$F$7=\"CIASI\",IF('Blank - Request Form'!N107=0,\"\",'Blank - Request Form'!N107),\"\"))","v":""},{"$f":"IF('Blank - Request Form'!$F$6=\"CIASI\",IF(OR('Blank - Request Form'!F107=\"000\",'Blank - Request Form'!F107=0),\"\",'Blank - Request Form'!F107),IF('Blank - Request Form'!$F$7=\"CIASI\",IF(OR('Blank - Request Form'!O107=\"000\",'Blank - Request Form'!O107=0),\"\",'Blank - Request Form'!O107),\"\"))","v":""},{"$f":"IF('Blank - Request Form'!$F$6=\"CIASI\",IF(OR('Blank - Request Form'!G107=\"0\",'Blank - Request Form'!G107=\"00000\",'Blank - Request Form'!G107=0),\"\",'Blank - Request Form'!G107),IF('Blank - Request Form'!$F$7=\"CIASI\",IF(OR('Blank - Request Form'!P107=\"0\",'Blank - Request Form'!P107=\"00000\",'Blank - Request Form'!P107=0),\"\",'Blank - Request Form'!P107),\"\"))","v":""},{"$f":"IF('Blank - Request Form'!$F$6=\"CIASI\",IF(OR('Blank - Request Form'!H107=\"0\",'Blank - Request Form'!H107=\"00000\",'Blank - Request Form'!H107=0),\"\",'Blank - Request Form'!H107),IF('Blank - Request Form'!$F$7=\"CIASI\",IF(OR('Blank - Request Form'!Q107=\"0\",'Blank - Request Form'!Q107=\"00000\",'Blank - Request Form'!Q107=0),\"\",'Blank - Request Form'!Q107),\"\"))","v":""},{"$f":"IF('Blank - Request Form'!$F$6=\"CIASI\",IF(OR('Blank - Request Form'!I107=\"0\",'Blank - Request Form'!I107=\"00000\",'Blank - Request Form'!I107=0),\"\",'Blank - Request Form'!I107),IF('Blank - Request Form'!$F$7=\"CIASI\",IF(OR('Blank - Request Form'!R107=\"0\",'Blank - Request Form'!R107=\"00000\",'Blank - Request Form'!R107=0),\"\",'Blank - Request Form'!R107),\"\"))","v":""},null,{"$f":"IF('Blank - Request Form'!$F$6=\"CIASI\",IF('Blank - Request Form'!K107=0,\"\",'Blank - Request Form'!K107),IF('Blank - Request Form'!$F$7=\"CIASI\",IF('Blank - Request Form'!T107=0,\"\",'Blank - Request Form'!T107),\"\"))","v":""},null,null,null,{"$f":"IF(M73<>\"\",'Blank - Request Form'!$M$2,\"\")","v":""},{"$f":"IF('Blank - Request Form'!$F$6=\"CIASI\",IF('Blank - Request Form'!J107=0,\"\",'Blank - Request Form'!J107),IF('Blank - Request Form'!$F$7=\"CIASI\",IF('Blank - Request Form'!S107=0,\"\",'Blank - Request Form'!S107),\"\"))","v":""},"",73]
[{"$f":"IF('Blank - Request Form'!$F$6=\"CIASI\",IF('Blank - Request Form'!D108=0,\"\",'Blank - Request Form'!D108),IF('Blank - Request Form'!$F$7=\"CIASI\",IF('Blank - Request Form'!M108=0,\"\",'Blank - Request Form'!M108),\"\"))","v":""},{"$f":"IF('Blank - Request Form'!$F$6=\"CIASI\",IF('Blank - Request Form'!E108=0,\"\",'Blank - Request Form'!E108),IF('Blank - Request Form'!$F$7=\"CIASI\",IF('Blank - Request Form'!N108=0,\"\",'Blank - Request Form'!N108),\"\"))","v":""},{"$f":"IF('Blank - Request Form'!$F$6=\"CIASI\",IF(OR('Blank - Request Form'!F108=\"000\",'Blank - Request Form'!F108=0),\"\",'Blank - Request Form'!F108),IF('Blank - Request Form'!$F$7=\"CIASI\",IF(OR('Blank - Request Form'!O108=\"000\",'Blank - Request Form'!O108=0),\"\",'Blank - Request Form'!O108),\"\"))","v":""},{"$f":"IF('Blank - Request Form'!$F$6=\"CIASI\",IF(OR('Blank - Request Form'!G108=\"0\",'Blank - Request Form'!G108=\"00000\",'Blank - Request Form'!G108=0),\"\",'Blank - Request Form'!G108),IF('Blank - Request Form'!$F$7=\"CIASI\",IF(OR('Blank - Request Form'!P108=\"0\",'Blank - Request Form'!P108=\"00000\",'Blank - Request Form'!P108=0),\"\",'Blank - Request Form'!P108),\"\"))","v":""},{"$f":"IF('Blank - Request Form'!$F$6=\"CIASI\",IF(OR('Blank - Request Form'!H108=\"0\",'Blank - Request Form'!H108=\"00000\",'Blank - Request Form'!H108=0),\"\",'Blank - Request Form'!H108),IF('Blank - Request Form'!$F$7=\"CIASI\",IF(OR('Blank - Request Form'!Q108=\"0\",'Blank - Request Form'!Q108=\"00000\",'Blank - Request Form'!Q108=0),\"\",'Blank - Request Form'!Q108),\"\"))","v":""},{"$f":"IF('Blank - Request Form'!$F$6=\"CIASI\",IF(OR('Blank - Request Form'!I108=\"0\",'Blank - Request Form'!I108=\"00000\",'Blank - Request Form'!I108=0),\"\",'Blank - Request Form'!I108),IF('Blank - Request Form'!$F$7=\"CIASI\",IF(OR('Blank - Request Form'!R108=\"0\",'Blank - Request Form'!R108=\"00000\",'Blank - Request Form'!R108=0),\"\",'Blank - Request Form'!R108),\"\"))","v":""},null,{"$f":"IF('Blank - Request Form'!$F$6=\"CIASI\",IF('Blank - Request Form'!K108=0,\"\",'Blank - Request Form'!K108),IF('Blank - Request Form'!$F$7=\"CIASI\",IF('Blank - Request Form'!T108=0,\"\",'Blank - Request Form'!T108),\"\"))","v":""},null,null,null,{"$f":"IF(M74<>\"\",'Blank - Request Form'!$M$2,\"\")","v":""},{"$f":"IF('Blank - Request Form'!$F$6=\"CIASI\",IF('Blank - Request Form'!J108=0,\"\",'Blank - Request Form'!J108),IF('Blank - Request Form'!$F$7=\"CIASI\",IF('Blank - Request Form'!S108=0,\"\",'Blank - Request Form'!S108),\"\"))","v":""},"",74]
[{"$f":"IF('Blank - Request Form'!$F$6=\"CIASI\",IF('Blank - Request Form'!D109=0,\"\",'Blank - Request Form'!D109),IF('Blank - Request Form'!$F$7=\"CIASI\",IF('Blank - Request Form'!M109=0,\"\",'Blank - Request Form'!M109),\"\"))","v":""},{"$f":"IF('Blank - Request Form'!$F$6=\"CIASI\",IF('Blank - Request Form'!E109=0,\"\",'Blank - Request Form'!E109),IF('Blank - Request Form'!$F$7=\"CIASI\",IF('Blank - Request Form'!N109=0,\"\",'Blank - Request Form'!N109),\"\"))","v":""},{"$f":"IF('Blank - Request Form'!$F$6=\"CIASI\",IF(OR('Blank - Request Form'!F109=\"000\",'Blank - Request Form'!F109=0),\"\",'Blank - Request Form'!F109),IF('Blank - Request Form'!$F$7=\"CIASI\",IF(OR('Blank - Request Form'!O109=\"000\",'Blank - Request Form'!O109=0),\"\",'Blank - Request Form'!O109),\"\"))","v":""},{"$f":"IF('Blank - Request Form'!$F$6=\"CIASI\",IF(OR('Blank - Request Form'!G109=\"0\",'Blank - Request Form'!G109=\"00000\",'Blank - Request Form'!G109=0),\"\",'Blank - Request Form'!G109),IF('Blank - Request Form'!$F$7=\"CIASI\",IF(OR('Blank - Request Form'!P109=\"0\",'Blank - Request Form'!P109=\"00000\",'Blank - Request Form'!P109=0),\"\",'Blank - Request Form'!P109),\"\"))","v":""},{"$f":"IF('Blank - Request Form'!$F$6=\"CIASI\",IF(OR('Blank - Request Form'!H109=\"0\",'Blank - Request Form'!H109=\"00000\",'Blank - Request Form'!H109=0),\"\",'Blank - Request Form'!H109),IF('Blank - Request Form'!$F$7=\"CIASI\",IF(OR('Blank - Request Form'!Q109=\"0\",'Blank - Request Form'!Q109=\"00000\",'Blank - Request Form'!Q109=0),\"\",'Blank - Request Form'!Q109),\"\"))","v":""},{"$f":"IF('Blank - Request Form'!$F$6=\"CIASI\",IF(OR('Blank - Request Form'!I109=\"0\",'Blank - Request Form'!I109=\"00000\",'Blank - Request Form'!I109=0),\"\",'Blank - Request Form'!I109),IF('Blank - Request Form'!$F$7=\"CIASI\",IF(OR('Blank - Request Form'!R109=\"0\",'Blank - Request Form'!R109=\"00000\",'Blank - Request Form'!R109=0),\"\",'Blank - Request Form'!R109),\"\"))","v":""},null,{"$f":"IF('Blank - Request Form'!$F$6=\"CIASI\",IF('Blank - Request Form'!K109=0,\"\",'Blank - Request Form'!K109),IF('Blank - Request Form'!$F$7=\"CIASI\",IF('Blank - Request Form'!T109=0,\"\",'Blank - Request Form'!T109),\"\"))","v":""},null,null,null,{"$f":"IF(M75<>\"\",'Blank - Request Form'!$M$2,\"\")","v":""},{"$f":"IF('Blank - Request Form'!$F$6=\"CIASI\",IF('Blank - Request Form'!J109=0,\"\",'Blank - Request Form'!J109),IF('Blank - Request Form'!$F$7=\"CIASI\",IF('Blank - Request Form'!S109=0,\"\",'Blank - Request Form'!S109),\"\"))","v":""},"",75]
[{"$f":"IF('Blank - Request Form'!$F$6=\"CIASI\",IF('Blank - Request Form'!D110=0,\"\",'Blank - Request Form'!D110),IF('Blank - Request Form'!$F$7=\"CIASI\",IF('Blank - Request Form'!M110=0,\"\",'Blank - Request Form'!M110),\"\"))","v":""},{"$f":"IF('Blank - Request Form'!$F$6=\"CIASI\",IF('Blank - Request Form'!E110=0,\"\",'Blank - Request Form'!E110),IF('Blank - Request Form'!$F$7=\"CIASI\",IF('Blank - Request Form'!N110=0,\"\",'Blank - Request Form'!N110),\"\"))","v":""},{"$f":"IF('Blank - Request Form'!$F$6=\"CIASI\",IF(OR('Blank - Request Form'!F110=\"000\",'Blank - Request Form'!F110=0),\"\",'Blank - Request Form'!F110),IF('Blank - Request Form'!$F$7=\"CIASI\",IF(OR('Blank - Request Form'!O110=\"000\",'Blank - Request Form'!O110=0),\"\",'Blank - Request Form'!O110),\"\"))","v":""},{"$f":"IF('Blank - Request Form'!$F$6=\"CIASI\",IF(OR('Blank - Request Form'!G110=\"0\",'Blank - Request Form'!G110=\"00000\",'Blank - Request Form'!G110=0),\"\",'Blank - Request Form'!G110),IF('Blank - Request Form'!$F$7=\"CIASI\",IF(OR('Blank - Request Form'!P110=\"0\",'Blank - Request Form'!P110=\"00000\",'Blank - Request Form'!P110=0),\"\",'Blank - Request Form'!P110),\"\"))","v":""},{"$f":"IF('Blank - Request Form'!$F$6=\"CIASI\",IF(OR('Blank - Request Form'!H110=\"0\",'Blank - Request Form'!H110=\"00000\",'Blank - Request Form'!H110=0),\"\",'Blank - Request Form'!H110),IF('Blank - Request Form'!$F$7=\"CIASI\",IF(OR('Blank - Request Form'!Q110=\"0\",'Blank - Request Form'!Q110=\"00000\",'Blank - Request Form'!Q110=0),\"\",'Blank - Request Form'!Q110),\"\"))","v":""},{"$f":"IF('Blank - Request Form'!$F$6=\"CIASI\",IF(OR('Blank - Request Form'!I110=\"0\",'Blank - Request Form'!I110=\"00000\",'Blank - Request Form'!I110=0),\"\",'Blank - Request Form'!I110),IF('Blank - Request Form'!$F$7=\"CIASI\",IF(OR('Blank - Request Form'!R110=\"0\",'Blank - Request Form'!R110=\"00000\",'Blank - Request Form'!R110=0),\"\",'Blank - Request Form'!R110),\"\"))","v":""},null,{"$f":"IF('Blank - Request Form'!$F$6=\"CIASI\",IF('Blank - Request Form'!K110=0,\"\",'Blank - Request Form'!K110),IF('Blank - Request Form'!$F$7=\"CIASI\",IF('Blank - Request Form'!T110=0,\"\",'Blank - Request Form'!T110),\"\"))","v":""},null,null,null,{"$f":"IF(M76<>\"\",'Blank - Request Form'!$M$2,\"\")","v":""},{"$f":"IF('Blank - Request Form'!$F$6=\"CIASI\",IF('Blank - Request Form'!J110=0,\"\",'Blank - Request Form'!J110),IF('Blank - Request Form'!$F$7=\"CIASI\",IF('Blank - Request Form'!S110=0,\"\",'Blank - Request Form'!S110),\"\"))","v":""},"",76]
[{"$f":"IF('Blank - Request Form'!$F$6=\"CIASI\",IF('Blank - Request Form'!D111=0,\"\",'Blank - Request Form'!D111),IF('Blank - Request Form'!$F$7=\"CIASI\",IF('Blank - Request Form'!M111=0,\"\",'Blank - Request Form'!M111),\"\"))","v":""},{"$f":"IF('Blank - Request Form'!$F$6=\"CIASI\",IF('Blank - Request Form'!E111=0,\"\",'Blank - Request Form'!E111),IF('Blank - Request Form'!$F$7=\"CIASI\",IF('Blank - Request Form'!N111=0,\"\",'Blank - Request Form'!N111),\"\"))","v":""},{"$f":"IF('Blank - Request Form'!$F$6=\"CIASI\",IF(OR('Blank - Request Form'!F111=\"000\",'Blank - Request Form'!F111=0),\"\",'Blank - Request Form'!F111),IF('Blank - Request Form'!$F$7=\"CIASI\",IF(OR('Blank - Request Form'!O111=\"000\",'Blank - Request Form'!O111=0),\"\",'Blank - Request Form'!O111),\"\"))","v":""},{"$f":"IF('Blank - Request Form'!$F$6=\"CIASI\",IF(OR('Blank - Request Form'!G111=\"0\",'Blank - Request Form'!G111=\"00000\",'Blank - Request Form'!G111=0),\"\",'Blank - Request Form'!G111),IF('Blank - Request Form'!$F$7=\"CIASI\",IF(OR('Blank - Request Form'!P111=\"0\",'Blank - Request Form'!P111=\"00000\",'Blank - Request Form'!P111=0),\"\",'Blank - Request Form'!P111),\"\"))","v":""},{"$f":"IF('Blank - Request Form'!$F$6=\"CIASI\",IF(OR('Blank - Request Form'!H111=\"0\",'Blank - Request Form'!H111=\"00000\",'Blank - Request Form'!H111=0),\"\",'Blank - Request Form'!H111),IF('Blank - Request Form'!$F$7=\"CIASI\",IF(OR('Blank - Request Form'!Q111=\"0\",'Blank - Request Form'!Q111=\"00000\",'Blank - Request Form'!Q111=0),\"\",'Blank - Request Form'!Q111),\"\"))","v":""},{"$f":"IF('Blank - Request Form'!$F$6=\"CIASI\",IF(OR('Blank - Request Form'!I111=\"0\",'Blank - Request Form'!I111=\"00000\",'Blank - Request Form'!I111=0),\"\",'Blank - Request Form'!I111),IF('Blank - Request Form'!$F$7=\"CIASI\",IF(OR('Blank - Request Form'!R111=\"0\",'Blank - Request Form'!R111=\"00000\",'Blank - Request Form'!R111=0),\"\",'Blank - Request Form'!R111),\"\"))","v":""},null,{"$f":"IF('Blank - Request Form'!$F$6=\"CIASI\",IF('Blank - Request Form'!K111=0,\"\",'Blank - Request Form'!K111),IF('Blank - Request Form'!$F$7=\"CIASI\",IF('Blank - Request Form'!T111=0,\"\",'Blank - Request Form'!T111),\"\"))","v":""},null,null,null,{"$f":"IF(M77<>\"\",'Blank - Request Form'!$M$2,\"\")","v":""},{"$f":"IF('Blank - Request Form'!$F$6=\"CIASI\",IF('Blank - Request Form'!J111=0,\"\",'Blank - Request Form'!J111),IF('Blank - Request Form'!$F$7=\"CIASI\",IF('Blank - Request Form'!S111=0,\"\",'Blank - Request Form'!S111),\"\"))","v":""},"",77]
[{"$f":"IF('Blank - Request Form'!$F$6=\"CIASI\",IF('Blank - Request Form'!D112=0,\"\",'Blank - Request Form'!D112),IF('Blank - Request Form'!$F$7=\"CIASI\",IF('Blank - Request Form'!M112=0,\"\",'Blank - Request Form'!M112),\"\"))","v":""},{"$f":"IF('Blank - Request Form'!$F$6=\"CIASI\",IF('Blank - Request Form'!E112=0,\"\",'Blank - Request Form'!E112),IF('Blank - Request Form'!$F$7=\"CIASI\",IF('Blank - Request Form'!N112=0,\"\",'Blank - Request Form'!N112),\"\"))","v":""},{"$f":"IF('Blank - Request Form'!$F$6=\"CIASI\",IF(OR('Blank - Request Form'!F112=\"000\",'Blank - Request Form'!F112=0),\"\",'Blank - Request Form'!F112),IF('Blank - Request Form'!$F$7=\"CIASI\",IF(OR('Blank - Request Form'!O112=\"000\",'Blank - Request Form'!O112=0),\"\",'Blank - Request Form'!O112),\"\"))","v":""},{"$f":"IF('Blank - Request Form'!$F$6=\"CIASI\",IF(OR('Blank - Request Form'!G112=\"0\",'Blank - Request Form'!G112=\"00000\",'Blank - Request Form'!G112=0),\"\",'Blank - Request Form'!G112),IF('Blank - Request Form'!$F$7=\"CIASI\",IF(OR('Blank - Request Form'!P112=\"0\",'Blank - Request Form'!P112=\"00000\",'Blank - Request Form'!P112=0),\"\",'Blank - Request Form'!P112),\"\"))","v":""},{"$f":"IF('Blank - Request Form'!$F$6=\"CIASI\",IF(OR('Blank - Request Form'!H112=\"0\",'Blank - Request Form'!H112=\"00000\",'Blank - Request Form'!H112=0),\"\",'Blank - Request Form'!H112),IF('Blank - Request Form'!$F$7=\"CIASI\",IF(OR('Blank - Request Form'!Q112=\"0\",'Blank - Request Form'!Q112=\"00000\",'Blank - Request Form'!Q112=0),\"\",'Blank - Request Form'!Q112),\"\"))","v":""},{"$f":"IF('Blank - Request Form'!$F$6=\"CIASI\",IF(OR('Blank - Request Form'!I112=\"0\",'Blank - Request Form'!I112=\"00000\",'Blank - Request Form'!I112=0),\"\",'Blank - Request Form'!I112),IF('Blank - Request Form'!$F$7=\"CIASI\",IF(OR('Blank - Request Form'!R112=\"0\",'Blank - Request Form'!R112=\"00000\",'Blank - Request Form'!R112=0),\"\",'Blank - Request Form'!R112),\"\"))","v":""},null,{"$f":"IF('Blank - Request Form'!$F$6=\"CIASI\",IF('Blank - Request Form'!K112=0,\"\",'Blank - Request Form'!K112),IF('Blank - Request Form'!$F$7=\"CIASI\",IF('Blank - Request Form'!T112=0,\"\",'Blank - Request Form'!T112),\"\"))","v":""},null,null,null,{"$f":"IF(M78<>\"\",'Blank - Request Form'!$M$2,\"\")","v":""},{"$f":"IF('Blank - Request Form'!$F$6=\"CIASI\",IF('Blank - Request Form'!J112=0,\"\",'Blank - Request Form'!J112),IF('Blank - Request Form'!$F$7=\"CIASI\",IF('Blank - Request Form'!S112=0,\"\",'Blank - Request Form'!S112),\"\"))","v":""},"",78]
[{"$f":"IF('Blank - Request Form'!$F$6=\"CIASI\",IF('Blank - Request Form'!D113=0,\"\",'Blank - Request Form'!D113),IF('Blank - Request Form'!$F$7=\"CIASI\",IF('Blank - Request Form'!M113=0,\"\",'Blank - Request Form'!M113),\"\"))","v":""},{"$f":"IF('Blank - Request Form'!$F$6=\"CIASI\",IF('Blank - Request Form'!E113=0,\"\",'Blank - Request Form'!E113),IF('Blank - Request Form'!$F$7=\"CIASI\",IF('Blank - Request Form'!N113=0,\"\",'Blank - Request Form'!N113),\"\"))","v":""},{"$f":"IF('Blank - Request Form'!$F$6=\"CIASI\",IF(OR('Blank - Request Form'!F113=\"000\",'Blank - Request Form'!F113=0),\"\",'Blank - Request Form'!F113),IF('Blank - Request Form'!$F$7=\"CIASI\",IF(OR('Blank - Request Form'!O113=\"000\",'Blank - Request Form'!O113=0),\"\",'Blank - Request Form'!O113),\"\"))","v":""},{"$f":"IF('Blank - Request Form'!$F$6=\"CIASI\",IF(OR('Blank - Request Form'!G113=\"0\",'Blank - Request Form'!G113=\"00000\",'Blank - Request Form'!G113=0),\"\",'Blank - Request Form'!G113),IF('Blank - Request Form'!$F$7=\"CIASI\",IF(OR('Blank - Request Form'!P113=\"0\",'Blank - Request Form'!P113=\"00000\",'Blank - Request Form'!P113=0),\"\",'Blank - Request Form'!P113),\"\"))","v":""},{"$f":"IF('Blank - Request Form'!$F$6=\"CIASI\",IF(OR('Blank - Request Form'!H113=\"0\",'Blank - Request Form'!H113=\"00000\",'Blank - Request Form'!H113=0),\"\",'Blank - Request Form'!H113),IF('Blank - Request Form'!$F$7=\"CIASI\",IF(OR('Blank - Request Form'!Q113=\"0\",'Blank - Request Form'!Q113=\"00000\",'Blank - Request Form'!Q113=0),\"\",'Blank - Request Form'!Q113),\"\"))","v":""},{"$f":"IF('Blank - Request Form'!$F$6=\"CIASI\",IF(OR('Blank - Request Form'!I113=\"0\",'Blank - Request Form'!I113=\"00000\",'Blank - Request Form'!I113=0),\"\",'Blank - Request Form'!I113),IF('Blank - Request Form'!$F$7=\"CIASI\",IF(OR('Blank - Request Form'!R113=\"0\",'Blank - Request Form'!R113=\"00000\",'Blank - Request Form'!R113=0),\"\",'Blank - Request Form'!R113),\"\"))","v":""},null,{"$f":"IF('Blank - Request Form'!$F$6=\"CIASI\",IF('Blank - Request Form'!K113=0,\"\",'Blank - Request Form'!K113),IF('Blank - Request Form'!$F$7=\"CIASI\",IF('Blank - Request Form'!T113=0,\"\",'Blank - Request Form'!T113),\"\"))","v":""},null,null,null,{"$f":"IF(M79<>\"\",'Blank - Request Form'!$M$2,\"\")","v":""},{"$f":"IF('Blank - Request Form'!$F$6=\"CIASI\",IF('Blank - Request Form'!J113=0,\"\",'Blank - Request Form'!J113),IF('Blank - Request Form'!$F$7=\"CIASI\",IF('Blank - Request Form'!S113=0,\"\",'Blank - Request Form'!S113),\"\"))","v":""},"",79]
[{"$f":"IF('Blank - Request Form'!$F$6=\"CIASI\",IF('Blank - Request Form'!D114=0,\"\",'Blank - Request Form'!D114),IF('Blank - Request Form'!$F$7=\"CIASI\",IF('Blank - Request Form'!M114=0,\"\",'Blank - Request Form'!M114),\"\"))","v":""},{"$f":"IF('Blank - Request Form'!$F$6=\"CIASI\",IF('Blank - Request Form'!E114=0,\"\",'Blank - Request Form'!E114),IF('Blank - Request Form'!$F$7=\"CIASI\",IF('Blank - Request Form'!N114=0,\"\",'Blank - Request Form'!N114),\"\"))","v":""},{"$f":"IF('Blank - Request Form'!$F$6=\"CIASI\",IF(OR('Blank - Request Form'!F114=\"000\",'Blank - Request Form'!F114=0),\"\",'Blank - Request Form'!F114),IF('Blank - Request Form'!$F$7=\"CIASI\",IF(OR('Blank - Request Form'!O114=\"000\",'Blank - Request Form'!O114=0),\"\",'Blank - Request Form'!O114),\"\"))","v":""},{"$f":"IF('Blank - Request Form'!$F$6=\"CIASI\",IF(OR('Blank - Request Form'!G114=\"0\",'Blank - Request Form'!G114=\"00000\",'Blank - Request Form'!G114=0),\"\",'Blank - Request Form'!G114),IF('Blank - Request Form'!$F$7=\"CIASI\",IF(OR('Blank - Request Form'!P114=\"0\",'Blank - Request Form'!P114=\"00000\",'Blank - Request Form'!P114=0),\"\",'Blank - Request Form'!P114),\"\"))","v":""},{"$f":"IF('Blank - Request Form'!$F$6=\"CIASI\",IF(OR('Blank - Request Form'!H114=\"0\",'Blank - Request Form'!H114=\"00000\",'Blank - Request Form'!H114=0),\"\",'Blank - Request Form'!H114),IF('Blank - Request Form'!$F$7=\"CIASI\",IF(OR('Blank - Request Form'!Q114=\"0\",'Blank - Request Form'!Q114=\"00000\",'Blank - Request Form'!Q114=0),\"\",'Blank - Request Form'!Q114),\"\"))","v":""},{"$f":"IF('Blank - Request Form'!$F$6=\"CIASI\",IF(OR('Blank - Request Form'!I114=\"0\",'Blank - Request Form'!I114=\"00000\",'Blank - Request Form'!I114=0),\"\",'Blank - Request Form'!I114),IF('Blank - Request Form'!$F$7=\"CIASI\",IF(OR('Blank - Request Form'!R114=\"0\",'Blank - Request Form'!R114=\"00000\",'Blank - Request Form'!R114=0),\"\",'Blank - Request Form'!R114),\"\"))","v":""},null,{"$f":"IF('Blank - Request Form'!$F$6=\"CIASI\",IF('Blank - Request Form'!K114=0,\"\",'Blank - Request Form'!K114),IF('Blank - Request Form'!$F$7=\"CIASI\",IF('Blank - Request Form'!T114=0,\"\",'Blank - Request Form'!T114),\"\"))","v":""},null,null,null,{"$f":"IF(M80<>\"\",'Blank - Request Form'!$M$2,\"\")","v":""},{"$f":"IF('Blank - Request Form'!$F$6=\"CIASI\",IF('Blank - Request Form'!J114=0,\"\",'Blank - Request Form'!J114),IF('Blank - Request Form'!$F$7=\"CIASI\",IF('Blank - Request Form'!S114=0,\"\",'Blank - Request Form'!S114),\"\"))","v":""},"",80]
[{"$f":"IF('Blank - Request Form'!$F$6=\"CIASI\",IF('Blank - Request Form'!D115=0,\"\",'Blank - Request Form'!D115),IF('Blank - Request Form'!$F$7=\"CIASI\",IF('Blank - Request Form'!M115=0,\"\",'Blank - Request Form'!M115),\"\"))","v":""},{"$f":"IF('Blank - Request Form'!$F$6=\"CIASI\",IF('Blank - Request Form'!E115=0,\"\",'Blank - Request Form'!E115),IF('Blank - Request Form'!$F$7=\"CIASI\",IF('Blank - Request Form'!N115=0,\"\",'Blank - Request Form'!N115),\"\"))","v":""},{"$f":"IF('Blank - Request Form'!$F$6=\"CIASI\",IF(OR('Blank - Request Form'!F115=\"000\",'Blank - Request Form'!F115=0),\"\",'Blank - Request Form'!F115),IF('Blank - Request Form'!$F$7=\"CIASI\",IF(OR('Blank - Request Form'!O115=\"000\",'Blank - Request Form'!O115=0),\"\",'Blank - Request Form'!O115),\"\"))","v":""},{"$f":"IF('Blank - Request Form'!$F$6=\"CIASI\",IF(OR('Blank - Request Form'!G115=\"0\",'Blank - Request Form'!G115=\"00000\",'Blank - Request Form'!G115=0),\"\",'Blank - Request Form'!G115),IF('Blank - Request Form'!$F$7=\"CIASI\",IF(OR('Blank - Request Form'!P115=\"0\",'Blank - Request Form'!P115=\"00000\",'Blank - Request Form'!P115=0),\"\",'Blank - Request Form'!P115),\"\"))","v":""},{"$f":"IF('Blank - Request Form'!$F$6=\"CIASI\",IF(OR('Blank - Request Form'!H115=\"0\",'Blank - Request Form'!H115=\"00000\",'Blank - Request Form'!H115=0),\"\",'Blank - Request Form'!H115),IF('Blank - Request Form'!$F$7=\"CIASI\",IF(OR('Blank - Request Form'!Q115=\"0\",'Blank - Request Form'!Q115=\"00000\",'Blank - Request Form'!Q115=0),\"\",'Blank - Request Form'!Q115),\"\"))","v":""},{"$f":"IF('Blank - Request Form'!$F$6=\"CIASI\",IF(OR('Blank - Request Form'!I115=\"0\",'Blank - Request Form'!I115=\"00000\",'Blank - Request Form'!I115=0),\"\",'Blank - Request Form'!I115),IF('Blank - Request Form'!$F$7=\"CIASI\",IF(OR('Blank - Request Form'!R115=\"0\",'Blank - Request Form'!R115=\"00000\",'Blank - Request Form'!R115=0),\"\",'Blank - Request Form'!R115),\"\"))","v":""},null,{"$f":"IF('Blank - Request Form'!$F$6=\"CIASI\",IF('Blank - Request Form'!K115=0,\"\",'Blank - Request Form'!K115),IF('Blank - Request Form'!$F$7=\"CIASI\",IF('Blank - Request Form'!T115=0,\"\",'Blank - Request Form'!T115),\"\"))","v":""},null,null,null,{"$f":"IF(M81<>\"\",'Blank - Request Form'!$M$2,\"\")","v":""},{"$f":"IF('Blank - Request Form'!$F$6=\"CIASI\",IF('Blank - Request Form'!J115=0,\"\",'Blank - Request Form'!J115),IF('Blank - Request Form'!$F$7=\"CIASI\",IF('Blank - Request Form'!S115=0,\"\",'Blank - Request Form'!S115),\"\"))","v":""},"",81]
[{"$f":"IF('Blank - Request Form'!$F$6=\"CIASI\",IF('Blank - Request Form'!D116=0,\"\",'Blank - Request Form'!D116),IF('Blank - Request Form'!$F$7=\"CIASI\",IF('Blank - Request Form'!M116=0,\"\",'Blank - Request Form'!M116),\"\"))","v":""},{"$f":"IF('Blank - Request Form'!$F$6=\"CIASI\",IF('Blank - Request Form'!E116=0,\"\",'Blank - Request Form'!E116),IF('Blank - Request Form'!$F$7=\"CIASI\",IF('Blank - Request Form'!N116=0,\"\",'Blank - Request Form'!N116),\"\"))","v":""},{"$f":"IF('Blank - Request Form'!$F$6=\"CIASI\",IF(OR('Blank - Request Form'!F116=\"000\",'Blank - Request Form'!F116=0),\"\",'Blank - Request Form'!F116),IF('Blank - Request Form'!$F$7=\"CIASI\",IF(OR('Blank - Request Form'!O116=\"000\",'Blank - Request Form'!O116=0),\"\",'Blank - Request Form'!O116),\"\"))","v":""},{"$f":"IF('Blank - Request Form'!$F$6=\"CIASI\",IF(OR('Blank - Request Form'!G116=\"0\",'Blank - Request Form'!G116=\"00000\",'Blank - Request Form'!G116=0),\"\",'Blank - Request Form'!G116),IF('Blank - Request Form'!$F$7=\"CIASI\",IF(OR('Blank - Request Form'!P116=\"0\",'Blank - Request Form'!P116=\"00000\",'Blank - Request Form'!P116=0),\"\",'Blank - Request Form'!P116),\"\"))","v":""},{"$f":"IF('Blank - Request Form'!$F$6=\"CIASI\",IF(OR('Blank - Request Form'!H116=\"0\",'Blank - Request Form'!H116=\"00000\",'Blank - Request Form'!H116=0),\"\",'Blank - Request Form'!H116),IF('Blank - Request Form'!$F$7=\"CIASI\",IF(OR('Blank - Request Form'!Q116=\"0\",'Blank - Request Form'!Q116=\"00000\",'Blank - Request Form'!Q116=0),\"\",'Blank - Request Form'!Q116),\"\"))","v":""},{"$f":"IF('Blank - Request Form'!$F$6=\"CIASI\",IF(OR('Blank - Request Form'!I116=\"0\",'Blank - Request Form'!I116=\"00000\",'Blank - Request Form'!I116=0),\"\",'Blank - Request Form'!I116),IF('Blank - Request Form'!$F$7=\"CIASI\",IF(OR('Blank - Request Form'!R116=\"0\",'Blank - Request Form'!R116=\"00000\",'Blank - Request Form'!R116=0),\"\",'Blank - Request Form'!R116),\"\"))","v":""},null,{"$f":"IF('Blank - Request Form'!$F$6=\"CIASI\",IF('Blank - Request Form'!K116=0,\"\",'Blank - Request Form'!K116),IF('Blank - Request Form'!$F$7=\"CIASI\",IF('Blank - Request Form'!T116=0,\"\",'Blank - Request Form'!T116),\"\"))","v":""},null,null,null,{"$f":"IF(M82<>\"\",'Blank - Request Form'!$M$2,\"\")","v":""},{"$f":"IF('Blank - Request Form'!$F$6=\"CIASI\",IF('Blank - Request Form'!J116=0,\"\",'Blank - Request Form'!J116),IF('Blank - Request Form'!$F$7=\"CIASI\",IF('Blank - Request Form'!S116=0,\"\",'Blank - Request Form'!S116),\"\"))","v":""},"",82]
[{"$f":"IF('Blank - Request Form'!$F$6=\"CIASI\",IF('Blank - Request Form'!D117=0,\"\",'Blank - Request Form'!D117),IF('Blank - Request Form'!$F$7=\"CIASI\",IF('Blank - Request Form'!M117=0,\"\",'Blank - Request Form'!M117),\"\"))","v":""},{"$f":"IF('Blank - Request Form'!$F$6=\"CIASI\",IF('Blank - Request Form'!E117=0,\"\",'Blank - Request Form'!E117),IF('Blank - Request Form'!$F$7=\"CIASI\",IF('Blank - Request Form'!N117=0,\"\",'Blank - Request Form'!N117),\"\"))","v":""},{"$f":"IF('Blank - Request Form'!$F$6=\"CIASI\",IF(OR('Blank - Request Form'!F117=\"000\",'Blank - Request Form'!F117=0),\"\",'Blank - Request Form'!F117),IF('Blank - Request Form'!$F$7=\"CIASI\",IF(OR('Blank - Request Form'!O117=\"000\",'Blank - Request Form'!O117=0),\"\",'Blank - Request Form'!O117),\"\"))","v":""},{"$f":"IF('Blank - Request Form'!$F$6=\"CIASI\",IF(OR('Blank - Request Form'!G117=\"0\",'Blank - Request Form'!G117=\"00000\",'Blank - Request Form'!G117=0),\"\",'Blank - Request Form'!G117),IF('Blank - Request Form'!$F$7=\"CIASI\",IF(OR('Blank - Request Form'!P117=\"0\",'Blank - Request Form'!P117=\"00000\",'Blank - Request Form'!P117=0),\"\",'Blank - Request Form'!P117),\"\"))","v":""},{"$f":"IF('Blank - Request Form'!$F$6=\"CIASI\",IF(OR('Blank - Request Form'!H117=\"0\",'Blank - Request Form'!H117=\"00000\",'Blank - Request Form'!H117=0),\"\",'Blank - Request Form'!H117),IF('Blank - Request Form'!$F$7=\"CIASI\",IF(OR('Blank - Request Form'!Q117=\"0\",'Blank - Request Form'!Q117=\"00000\",'Blank - Request Form'!Q117=0),\"\",'Blank - Request Form'!Q117),\"\"))","v":""},{"$f":"IF('Blank - Request Form'!$F$6=\"CIASI\",IF(OR('Blank - Request Form'!I117=\"0\",'Blank - Request Form'!I117=\"00000\",'Blank - Request Form'!I117=0),\"\",'Blank - Request Form'!I117),IF('Blank - Request Form'!$F$7=\"CIASI\",IF(OR('Blank - Request Form'!R117=\"0\",'Blank - Request Form'!R117=\"00000\",'Blank - Request Form'!R117=0),\"\",'Blank - Request Form'!R117),\"\"))","v":""},null,{"$f":"IF('Blank - Request Form'!$F$6=\"CIASI\",IF('Blank - Request Form'!K117=0,\"\",'Blank - Request Form'!K117),IF('Blank - Request Form'!$F$7=\"CIASI\",IF('Blank - Request Form'!T117=0,\"\",'Blank - Request Form'!T117),\"\"))","v":""},null,null,null,{"$f":"IF(M83<>\"\",'Blank - Request Form'!$M$2,\"\")","v":""},{"$f":"IF('Blank - Request Form'!$F$6=\"CIASI\",IF('Blank - Request Form'!J117=0,\"\",'Blank - Request Form'!J117),IF('Blank - Request Form'!$F$7=\"CIASI\",IF('Blank - Request Form'!S117=0,\"\",'Blank - Request Form'!S117),\"\"))","v":""},"",83]
[{"$f":"IF('Blank - Request Form'!$F$6=\"CIASI\",IF('Blank - Request Form'!D118=0,\"\",'Blank - Request Form'!D118),IF('Blank - Request Form'!$F$7=\"CIASI\",IF('Blank - Request Form'!M118=0,\"\",'Blank - Request Form'!M118),\"\"))","v":""},{"$f":"IF('Blank - Request Form'!$F$6=\"CIASI\",IF('Blank - Request Form'!E118=0,\"\",'Blank - Request Form'!E118),IF('Blank - Request Form'!$F$7=\"CIASI\",IF('Blank - Request Form'!N118=0,\"\",'Blank - Request Form'!N118),\"\"))","v":""},{"$f":"IF('Blank - Request Form'!$F$6=\"CIASI\",IF(OR('Blank - Request Form'!F118=\"000\",'Blank - Request Form'!F118=0),\"\",'Blank - Request Form'!F118),IF('Blank - Request Form'!$F$7=\"CIASI\",IF(OR('Blank - Request Form'!O118=\"000\",'Blank - Request Form'!O118=0),\"\",'Blank - Request Form'!O118),\"\"))","v":""},{"$f":"IF('Blank - Request Form'!$F$6=\"CIASI\",IF(OR('Blank - Request Form'!G118=\"0\",'Blank - Request Form'!G118=\"00000\",'Blank - Request Form'!G118=0),\"\",'Blank - Request Form'!G118),IF('Blank - Request Form'!$F$7=\"CIASI\",IF(OR('Blank - Request Form'!P118=\"0\",'Blank - Request Form'!P118=\"00000\",'Blank - Request Form'!P118=0),\"\",'Blank - Request Form'!P118),\"\"))","v":""},{"$f":"IF('Blank - Request Form'!$F$6=\"CIASI\",IF(OR('Blank - Request Form'!H118=\"0\",'Blank - Request Form'!H118=\"00000\",'Blank - Request Form'!H118=0),\"\",'Blank - Request Form'!H118),IF('Blank - Request Form'!$F$7=\"CIASI\",IF(OR('Blank - Request Form'!Q118=\"0\",'Blank - Request Form'!Q118=\"00000\",'Blank - Request Form'!Q118=0),\"\",'Blank - Request Form'!Q118),\"\"))","v":""},{"$f":"IF('Blank - Request Form'!$F$6=\"CIASI\",IF(OR('Blank - Request Form'!I118=\"0\",'Blank - Request Form'!I118=\"00000\",'Blank - Request Form'!I118=0),\"\",'Blank - Request Form'!I118),IF('Blank - Request Form'!$F$7=\"CIASI\",IF(OR('Blank - Request Form'!R118=\"0\",'Blank - Request Form'!R118=\"00000\",'Blank - Request Form'!R118=0),\"\",'Blank - Request Form'!R118),\"\"))","v":""},null,{"$f":"IF('Blank - Request Form'!$F$6=\"CIASI\",IF('Blank - Request Form'!K118=0,\"\",'Blank - Request Form'!K118),IF('Blank - Request Form'!$F$7=\"CIASI\",IF('Blank - Request Form'!T118=0,\"\",'Blank - Request Form'!T118),\"\"))","v":""},null,null,null,{"$f":"IF(M84<>\"\",'Blank - Request Form'!$M$2,\"\")","v":""},{"$f":"IF('Blank - Request Form'!$F$6=\"CIASI\",IF('Blank - Request Form'!J118=0,\"\",'Blank - Request Form'!J118),IF('Blank - Request Form'!$F$7=\"CIASI\",IF('Blank - Request Form'!S118=0,\"\",'Blank - Request Form'!S118),\"\"))","v":""},"",84]
[{"$f":"IF('Blank - Request Form'!$F$6=\"CIASI\",IF('Blank - Request Form'!D119=0,\"\",'Blank - Request Form'!D119),IF('Blank - Request Form'!$F$7=\"CIASI\",IF('Blank - Request Form'!M119=0,\"\",'Blank - Request Form'!M119),\"\"))","v":""},{"$f":"IF('Blank - Request Form'!$F$6=\"CIASI\",IF('Blank - Request Form'!E119=0,\"\",'Blank - Request Form'!E119),IF('Blank - Request Form'!$F$7=\"CIASI\",IF('Blank - Request Form'!N119=0,\"\",'Blank - Request Form'!N119),\"\"))","v":""},{"$f":"IF('Blank - Request Form'!$F$6=\"CIASI\",IF(OR('Blank - Request Form'!F119=\"000\",'Blank - Request Form'!F119=0),\"\",'Blank - Request Form'!F119),IF('Blank - Request Form'!$F$7=\"CIASI\",IF(OR('Blank - Request Form'!O119=\"000\",'Blank - Request Form'!O119=0),\"\",'Blank - Request Form'!O119),\"\"))","v":""},{"$f":"IF('Blank - Request Form'!$F$6=\"CIASI\",IF(OR('Blank - Request Form'!G119=\"0\",'Blank - Request Form'!G119=\"00000\",'Blank - Request Form'!G119=0),\"\",'Blank - Request Form'!G119),IF('Blank - Request Form'!$F$7=\"CIASI\",IF(OR('Blank - Request Form'!P119=\"0\",'Blank - Request Form'!P119=\"00000\",'Blank - Request Form'!P119=0),\"\",'Blank - Request Form'!P119),\"\"))","v":""},{"$f":"IF('Blank - Request Form'!$F$6=\"CIASI\",IF(OR('Blank - Request Form'!H119=\"0\",'Blank - Request Form'!H119=\"00000\",'Blank - Request Form'!H119=0),\"\",'Blank - Request Form'!H119),IF('Blank - Request Form'!$F$7=\"CIASI\",IF(OR('Blank - Request Form'!Q119=\"0\",'Blank - Request Form'!Q119=\"00000\",'Blank - Request Form'!Q119=0),\"\",'Blank - Request Form'!Q119),\"\"))","v":""},{"$f":"IF('Blank - Request Form'!$F$6=\"CIASI\",IF(OR('Blank - Request Form'!I119=\"0\",'Blank - Request Form'!I119=\"00000\",'Blank - Request Form'!I119=0),\"\",'Blank - Request Form'!I119),IF('Blank - Request Form'!$F$7=\"CIASI\",IF(OR('Blank - Request Form'!R119=\"0\",'Blank - Request Form'!R119=\"00000\",'Blank - Request Form'!R119=0),\"\",'Blank - Request Form'!R119),\"\"))","v":""},null,{"$f":"IF('Blank - Request Form'!$F$6=\"CIASI\",IF('Blank - Request Form'!K119=0,\"\",'Blank - Request Form'!K119),IF('Blank - Request Form'!$F$7=\"CIASI\",IF('Blank - Request Form'!T119=0,\"\",'Blank - Request Form'!T119),\"\"))","v":""},null,null,null,{"$f":"IF(M85<>\"\",'Blank - Request Form'!$M$2,\"\")","v":""},{"$f":"IF('Blank - Request Form'!$F$6=\"CIASI\",IF('Blank - Request Form'!J119=0,\"\",'Blank - Request Form'!J119),IF('Blank - Request Form'!$F$7=\"CIASI\",IF('Blank - Request Form'!S119=0,\"\",'Blank - Request Form'!S119),\"\"))","v":""},"",85]
[{"$f":"IF('Blank - Request Form'!$F$6=\"CIASI\",IF('Blank - Request Form'!D120=0,\"\",'Blank - Request Form'!D120),IF('Blank - Request Form'!$F$7=\"CIASI\",IF('Blank - Request Form'!M120=0,\"\",'Blank - Request Form'!M120),\"\"))","v":""},{"$f":"IF('Blank - Request Form'!$F$6=\"CIASI\",IF('Blank - Request Form'!E120=0,\"\",'Blank - Request Form'!E120),IF('Blank - Request Form'!$F$7=\"CIASI\",IF('Blank - Request Form'!N120=0,\"\",'Blank - Request Form'!N120),\"\"))","v":""},{"$f":"IF('Blank - Request Form'!$F$6=\"CIASI\",IF(OR('Blank - Request Form'!F120=\"000\",'Blank - Request Form'!F120=0),\"\",'Blank - Request Form'!F120),IF('Blank - Request Form'!$F$7=\"CIASI\",IF(OR('Blank - Request Form'!O120=\"000\",'Blank - Request Form'!O120=0),\"\",'Blank - Request Form'!O120),\"\"))","v":""},{"$f":"IF('Blank - Request Form'!$F$6=\"CIASI\",IF(OR('Blank - Request Form'!G120=\"0\",'Blank - Request Form'!G120=\"00000\",'Blank - Request Form'!G120=0),\"\",'Blank - Request Form'!G120),IF('Blank - Request Form'!$F$7=\"CIASI\",IF(OR('Blank - Request Form'!P120=\"0\",'Blank - Request Form'!P120=\"00000\",'Blank - Request Form'!P120=0),\"\",'Blank - Request Form'!P120),\"\"))","v":""},{"$f":"IF('Blank - Request Form'!$F$6=\"CIASI\",IF(OR('Blank - Request Form'!H120=\"0\",'Blank - Request Form'!H120=\"00000\",'Blank - Request Form'!H120=0),\"\",'Blank - Request Form'!H120),IF('Blank - Request Form'!$F$7=\"CIASI\",IF(OR('Blank - Request Form'!Q120=\"0\",'Blank - Request Form'!Q120=\"00000\",'Blank - Request Form'!Q120=0),\"\",'Blank - Request Form'!Q120),\"\"))","v":""},{"$f":"IF('Blank - Request Form'!$F$6=\"CIASI\",IF(OR('Blank - Request Form'!I120=\"0\",'Blank - Request Form'!I120=\"00000\",'Blank - Request Form'!I120=0),\"\",'Blank - Request Form'!I120),IF('Blank - Request Form'!$F$7=\"CIASI\",IF(OR('Blank - Request Form'!R120=\"0\",'Blank - Request Form'!R120=\"00000\",'Blank - Request Form'!R120=0),\"\",'Blank - Request Form'!R120),\"\"))","v":""},null,{"$f":"IF('Blank - Request Form'!$F$6=\"CIASI\",IF('Blank - Request Form'!K120=0,\"\",'Blank - Request Form'!K120),IF('Blank - Request Form'!$F$7=\"CIASI\",IF('Blank - Request Form'!T120=0,\"\",'Blank - Request Form'!T120),\"\"))","v":""},null,null,null,{"$f":"IF(M86<>\"\",'Blank - Request Form'!$M$2,\"\")","v":""},{"$f":"IF('Blank - Request Form'!$F$6=\"CIASI\",IF('Blank - Request Form'!J120=0,\"\",'Blank - Request Form'!J120),IF('Blank - Request Form'!$F$7=\"CIASI\",IF('Blank - Request Form'!S120=0,\"\",'Blank - Request Form'!S120),\"\"))","v":""},"",86]
[{"$f":"IF('Blank - Request Form'!$F$6=\"CIASI\",IF('Blank - Request Form'!D121=0,\"\",'Blank - Request Form'!D121),IF('Blank - Request Form'!$F$7=\"CIASI\",IF('Blank - Request Form'!M121=0,\"\",'Blank - Request Form'!M121),\"\"))","v":""},{"$f":"IF('Blank - Request Form'!$F$6=\"CIASI\",IF('Blank - Request Form'!E121=0,\"\",'Blank - Request Form'!E121),IF('Blank - Request Form'!$F$7=\"CIASI\",IF('Blank - Request Form'!N121=0,\"\",'Blank - Request Form'!N121),\"\"))","v":""},{"$f":"IF('Blank - Request Form'!$F$6=\"CIASI\",IF(OR('Blank - Request Form'!F121=\"000\",'Blank - Request Form'!F121=0),\"\",'Blank - Request Form'!F121),IF('Blank - Request Form'!$F$7=\"CIASI\",IF(OR('Blank - Request Form'!O121=\"000\",'Blank - Request Form'!O121=0),\"\",'Blank - Request Form'!O121),\"\"))","v":""},{"$f":"IF('Blank - Request Form'!$F$6=\"CIASI\",IF(OR('Blank - Request Form'!G121=\"0\",'Blank - Request Form'!G121=\"00000\",'Blank - Request Form'!G121=0),\"\",'Blank - Request Form'!G121),IF('Blank - Request Form'!$F$7=\"CIASI\",IF(OR('Blank - Request Form'!P121=\"0\",'Blank - Request Form'!P121=\"00000\",'Blank - Request Form'!P121=0),\"\",'Blank - Request Form'!P121),\"\"))","v":""},{"$f":"IF('Blank - Request Form'!$F$6=\"CIASI\",IF(OR('Blank - Request Form'!H121=\"0\",'Blank - Request Form'!H121=\"00000\",'Blank - Request Form'!H121=0),\"\",'Blank - Request Form'!H121),IF('Blank - Request Form'!$F$7=\"CIASI\",IF(OR('Blank - Request Form'!Q121=\"0\",'Blank - Request Form'!Q121=\"00000\",'Blank - Request Form'!Q121=0),\"\",'Blank - Request Form'!Q121),\"\"))","v":""},{"$f":"IF('Blank - Request Form'!$F$6=\"CIASI\",IF(OR('Blank - Request Form'!I121=\"0\",'Blank - Request Form'!I121=\"00000\",'Blank - Request Form'!I121=0),\"\",'Blank - Request Form'!I121),IF('Blank - Request Form'!$F$7=\"CIASI\",IF(OR('Blank - Request Form'!R121=\"0\",'Blank - Request Form'!R121=\"00000\",'Blank - Request Form'!R121=0),\"\",'Blank - Request Form'!R121),\"\"))","v":""},null,{"$f":"IF('Blank - Request Form'!$F$6=\"CIASI\",IF('Blank - Request Form'!K121=0,\"\",'Blank - Request Form'!K121),IF('Blank - Request Form'!$F$7=\"CIASI\",IF('Blank - Request Form'!T121=0,\"\",'Blank - Request Form'!T121),\"\"))","v":""},null,null,null,{"$f":"IF(M87<>\"\",'Blank - Request Form'!$M$2,\"\")","v":""},{"$f":"IF('Blank - Request Form'!$F$6=\"CIASI\",IF('Blank - Request Form'!J121=0,\"\",'Blank - Request Form'!J121),IF('Blank - Request Form'!$F$7=\"CIASI\",IF('Blank - Request Form'!S121=0,\"\",'Blank - Request Form'!S121),\"\"))","v":""},"",87]
[{"$f":"IF('Blank - Request Form'!$F$6=\"CIASI\",IF('Blank - Request Form'!D122=0,\"\",'Blank - Request Form'!D122),IF('Blank - Request Form'!$F$7=\"CIASI\",IF('Blank - Request Form'!M122=0,\"\",'Blank - Request Form'!M122),\"\"))","v":""},{"$f":"IF('Blank - Request Form'!$F$6=\"CIASI\",IF('Blank - Request Form'!E122=0,\"\",'Blank - Request Form'!E122),IF('Blank - Request Form'!$F$7=\"CIASI\",IF('Blank - Request Form'!N122=0,\"\",'Blank - Request Form'!N122),\"\"))","v":""},{"$f":"IF('Blank - Request Form'!$F$6=\"CIASI\",IF(OR('Blank - Request Form'!F122=\"000\",'Blank - Request Form'!F122=0),\"\",'Blank - Request Form'!F122),IF('Blank - Request Form'!$F$7=\"CIASI\",IF(OR('Blank - Request Form'!O122=\"000\",'Blank - Request Form'!O122=0),\"\",'Blank - Request Form'!O122),\"\"))","v":""},{"$f":"IF('Blank - Request Form'!$F$6=\"CIASI\",IF(OR('Blank - Request Form'!G122=\"0\",'Blank - Request Form'!G122=\"00000\",'Blank - Request Form'!G122=0),\"\",'Blank - Request Form'!G122),IF('Blank - Request Form'!$F$7=\"CIASI\",IF(OR('Blank - Request Form'!P122=\"0\",'Blank - Request Form'!P122=\"00000\",'Blank - Request Form'!P122=0),\"\",'Blank - Request Form'!P122),\"\"))","v":""},{"$f":"IF('Blank - Request Form'!$F$6=\"CIASI\",IF(OR('Blank - Request Form'!H122=\"0\",'Blank - Request Form'!H122=\"00000\",'Blank - Request Form'!H122=0),\"\",'Blank - Request Form'!H122),IF('Blank - Request Form'!$F$7=\"CIASI\",IF(OR('Blank - Request Form'!Q122=\"0\",'Blank - Request Form'!Q122=\"00000\",'Blank - Request Form'!Q122=0),\"\",'Blank - Request Form'!Q122),\"\"))","v":""},{"$f":"IF('Blank - Request Form'!$F$6=\"CIASI\",IF(OR('Blank - Request Form'!I122=\"0\",'Blank - Request Form'!I122=\"00000\",'Blank - Request Form'!I122=0),\"\",'Blank - Request Form'!I122),IF('Blank - Request Form'!$F$7=\"CIASI\",IF(OR('Blank - Request Form'!R122=\"0\",'Blank - Request Form'!R122=\"00000\",'Blank - Request Form'!R122=0),\"\",'Blank - Request Form'!R122),\"\"))","v":""},null,{"$f":"IF('Blank - Request Form'!$F$6=\"CIASI\",IF('Blank - Request Form'!K122=0,\"\",'Blank - Request Form'!K122),IF('Blank - Request Form'!$F$7=\"CIASI\",IF('Blank - Request Form'!T122=0,\"\",'Blank - Request Form'!T122),\"\"))","v":""},null,null,null,{"$f":"IF(M88<>\"\",'Blank - Request Form'!$M$2,\"\")","v":""},{"$f":"IF('Blank - Request Form'!$F$6=\"CIASI\",IF('Blank - Request Form'!J122=0,\"\",'Blank - Request Form'!J122),IF('Blank - Request Form'!$F$7=\"CIASI\",IF('Blank - Request Form'!S122=0,\"\",'Blank - Request Form'!S122),\"\"))","v":""},"",88]
[{"$f":"IF('Blank - Request Form'!$F$6=\"CIASI\",IF('Blank - Request Form'!D123=0,\"\",'Blank - Request Form'!D123),IF('Blank - Request Form'!$F$7=\"CIASI\",IF('Blank - Request Form'!M123=0,\"\",'Blank - Request Form'!M123),\"\"))","v":""},{"$f":"IF('Blank - Request Form'!$F$6=\"CIASI\",IF('Blank - Request Form'!E123=0,\"\",'Blank - Request Form'!E123),IF('Blank - Request Form'!$F$7=\"CIASI\",IF('Blank - Request Form'!N123=0,\"\",'Blank - Request Form'!N123),\"\"))","v":""},{"$f":"IF('Blank - Request Form'!$F$6=\"CIASI\",IF(OR('Blank - Request Form'!F123=\"000\",'Blank - Request Form'!F123=0),\"\",'Blank - Request Form'!F123),IF('Blank - Request Form'!$F$7=\"CIASI\",IF(OR('Blank - Request Form'!O123=\"000\",'Blank - Request Form'!O123=0),\"\",'Blank - Request Form'!O123),\"\"))","v":""},{"$f":"IF('Blank - Request Form'!$F$6=\"CIASI\",IF(OR('Blank - Request Form'!G123=\"0\",'Blank - Request Form'!G123=\"00000\",'Blank - Request Form'!G123=0),\"\",'Blank - Request Form'!G123),IF('Blank - Request Form'!$F$7=\"CIASI\",IF(OR('Blank - Request Form'!P123=\"0\",'Blank - Request Form'!P123=\"00000\",'Blank - Request Form'!P123=0),\"\",'Blank - Request Form'!P123),\"\"))","v":""},{"$f":"IF('Blank - Request Form'!$F$6=\"CIASI\",IF(OR('Blank - Request Form'!H123=\"0\",'Blank - Request Form'!H123=\"00000\",'Blank - Request Form'!H123=0),\"\",'Blank - Request Form'!H123),IF('Blank - Request Form'!$F$7=\"CIASI\",IF(OR('Blank - Request Form'!Q123=\"0\",'Blank - Request Form'!Q123=\"00000\",'Blank - Request Form'!Q123=0),\"\",'Blank - Request Form'!Q123),\"\"))","v":""},{"$f":"IF('Blank - Request Form'!$F$6=\"CIASI\",IF(OR('Blank - Request Form'!I123=\"0\",'Blank - Request Form'!I123=\"00000\",'Blank - Request Form'!I123=0),\"\",'Blank - Request Form'!I123),IF('Blank - Request Form'!$F$7=\"CIASI\",IF(OR('Blank - Request Form'!R123=\"0\",'Blank - Request Form'!R123=\"00000\",'Blank - Request Form'!R123=0),\"\",'Blank - Request Form'!R123),\"\"))","v":""},null,{"$f":"IF('Blank - Request Form'!$F$6=\"CIASI\",IF('Blank - Request Form'!K123=0,\"\",'Blank - Request Form'!K123),IF('Blank - Request Form'!$F$7=\"CIASI\",IF('Blank - Request Form'!T123=0,\"\",'Blank - Request Form'!T123),\"\"))","v":""},null,null,null,{"$f":"IF(M89<>\"\",'Blank - Request Form'!$M$2,\"\")","v":""},{"$f":"IF('Blank - Request Form'!$F$6=\"CIASI\",IF('Blank - Request Form'!J123=0,\"\",'Blank - Request Form'!J123),IF('Blank - Request Form'!$F$7=\"CIASI\",IF('Blank - Request Form'!S123=0,\"\",'Blank - Request Form'!S123),\"\"))","v":""},"",89]
[{"$f":"IF('Blank - Request Form'!$F$6=\"CIASI\",IF('Blank - Request Form'!D124=0,\"\",'Blank - Request Form'!D124),IF('Blank - Request Form'!$F$7=\"CIASI\",IF('Blank - Request Form'!M124=0,\"\",'Blank - Request Form'!M124),\"\"))","v":""},{"$f":"IF('Blank - Request Form'!$F$6=\"CIASI\",IF('Blank - Request Form'!E124=0,\"\",'Blank - Request Form'!E124),IF('Blank - Request Form'!$F$7=\"CIASI\",IF('Blank - Request Form'!N124=0,\"\",'Blank - Request Form'!N124),\"\"))","v":""},{"$f":"IF('Blank - Request Form'!$F$6=\"CIASI\",IF(OR('Blank - Request Form'!F124=\"000\",'Blank - Request Form'!F124=0),\"\",'Blank - Request Form'!F124),IF('Blank - Request Form'!$F$7=\"CIASI\",IF(OR('Blank - Request Form'!O124=\"000\",'Blank - Request Form'!O124=0),\"\",'Blank - Request Form'!O124),\"\"))","v":""},{"$f":"IF('Blank - Request Form'!$F$6=\"CIASI\",IF(OR('Blank - Request Form'!G124=\"0\",'Blank - Request Form'!G124=\"00000\",'Blank - Request Form'!G124=0),\"\",'Blank - Request Form'!G124),IF('Blank - Request Form'!$F$7=\"CIASI\",IF(OR('Blank - Request Form'!P124=\"0\",'Blank - Request Form'!P124=\"00000\",'Blank - Request Form'!P124=0),\"\",'Blank - Request Form'!P124),\"\"))","v":""},{"$f":"IF('Blank - Request Form'!$F$6=\"CIASI\",IF(OR('Blank - Request Form'!H124=\"0\",'Blank - Request Form'!H124=\"00000\",'Blank - Request Form'!H124=0),\"\",'Blank - Request Form'!H124),IF('Blank - Request Form'!$F$7=\"CIASI\",IF(OR('Blank - Request Form'!Q124=\"0\",'Blank - Request Form'!Q124=\"00000\",'Blank - Request Form'!Q124=0),\"\",'Blank - Request Form'!Q124),\"\"))","v":""},{"$f":"IF('Blank - Request Form'!$F$6=\"CIASI\",IF(OR('Blank - Request Form'!I124=\"0\",'Blank - Request Form'!I124=\"00000\",'Blank - Request Form'!I124=0),\"\",'Blank - Request Form'!I124),IF('Blank - Request Form'!$F$7=\"CIASI\",IF(OR('Blank - Request Form'!R124=\"0\",'Blank - Request Form'!R124=\"00000\",'Blank - Request Form'!R124=0),\"\",'Blank - Request Form'!R124),\"\"))","v":""},null,{"$f":"IF('Blank - Request Form'!$F$6=\"CIASI\",IF('Blank - Request Form'!K124=0,\"\",'Blank - Request Form'!K124),IF('Blank - Request Form'!$F$7=\"CIASI\",IF('Blank - Request Form'!T124=0,\"\",'Blank - Request Form'!T124),\"\"))","v":""},null,null,null,{"$f":"IF(M90<>\"\",'Blank - Request Form'!$M$2,\"\")","v":""},{"$f":"IF('Blank - Request Form'!$F$6=\"CIASI\",IF('Blank - Request Form'!J124=0,\"\",'Blank - Request Form'!J124),IF('Blank - Request Form'!$F$7=\"CIASI\",IF('Blank - Request Form'!S124=0,\"\",'Blank - Request Form'!S124),\"\"))","v":""},"",90]
[{"$f":"IF('Blank - Request Form'!$F$6=\"CIASI\",IF('Blank - Request Form'!D125=0,\"\",'Blank - Request Form'!D125),IF('Blank - Request Form'!$F$7=\"CIASI\",IF('Blank - Request Form'!M125=0,\"\",'Blank - Request Form'!M125),\"\"))","v":""},{"$f":"IF('Blank - Request Form'!$F$6=\"CIASI\",IF('Blank - Request Form'!E125=0,\"\",'Blank - Request Form'!E125),IF('Blank - Request Form'!$F$7=\"CIASI\",IF('Blank - Request Form'!N125=0,\"\",'Blank - Request Form'!N125),\"\"))","v":""},{"$f":"IF('Blank - Request Form'!$F$6=\"CIASI\",IF(OR('Blank - Request Form'!F125=\"000\",'Blank - Request Form'!F125=0),\"\",'Blank - Request Form'!F125),IF('Blank - Request Form'!$F$7=\"CIASI\",IF(OR('Blank - Request Form'!O125=\"000\",'Blank - Request Form'!O125=0),\"\",'Blank - Request Form'!O125),\"\"))","v":""},{"$f":"IF('Blank - Request Form'!$F$6=\"CIASI\",IF(OR('Blank - Request Form'!G125=\"0\",'Blank - Request Form'!G125=\"00000\",'Blank - Request Form'!G125=0),\"\",'Blank - Request Form'!G125),IF('Blank - Request Form'!$F$7=\"CIASI\",IF(OR('Blank - Request Form'!P125=\"0\",'Blank - Request Form'!P125=\"00000\",'Blank - Request Form'!P125=0),\"\",'Blank - Request Form'!P125),\"\"))","v":""},{"$f":"IF('Blank - Request Form'!$F$6=\"CIASI\",IF(OR('Blank - Request Form'!H125=\"0\",'Blank - Request Form'!H125=\"00000\",'Blank - Request Form'!H125=0),\"\",'Blank - Request Form'!H125),IF('Blank - Request Form'!$F$7=\"CIASI\",IF(OR('Blank - Request Form'!Q125=\"0\",'Blank - Request Form'!Q125=\"00000\",'Blank - Request Form'!Q125=0),\"\",'Blank - Request Form'!Q125),\"\"))","v":""},{"$f":"IF('Blank - Request Form'!$F$6=\"CIASI\",IF(OR('Blank - Request Form'!I125=\"0\",'Blank - Request Form'!I125=\"00000\",'Blank - Request Form'!I125=0),\"\",'Blank - Request Form'!I125),IF('Blank - Request Form'!$F$7=\"CIASI\",IF(OR('Blank - Request Form'!R125=\"0\",'Blank - Request Form'!R125=\"00000\",'Blank - Request Form'!R125=0),\"\",'Blank - Request Form'!R125),\"\"))","v":""},null,{"$f":"IF('Blank - Request Form'!$F$6=\"CIASI\",IF('Blank - Request Form'!K125=0,\"\",'Blank - Request Form'!K125),IF('Blank - Request Form'!$F$7=\"CIASI\",IF('Blank - Request Form'!T125=0,\"\",'Blank - Request Form'!T125),\"\"))","v":""},null,null,null,{"$f":"IF(M91<>\"\",'Blank - Request Form'!$M$2,\"\")","v":""},{"$f":"IF('Blank - Request Form'!$F$6=\"CIASI\",IF('Blank - Request Form'!J125=0,\"\",'Blank - Request Form'!J125),IF('Blank - Request Form'!$F$7=\"CIASI\",IF('Blank - Request Form'!S125=0,\"\",'Blank - Request Form'!S125),\"\"))","v":""},"",91]
[{"$f":"IF('Blank - Request Form'!$F$6=\"CIASI\",IF('Blank - Request Form'!D126=0,\"\",'Blank - Request Form'!D126),IF('Blank - Request Form'!$F$7=\"CIASI\",IF('Blank - Request Form'!M126=0,\"\",'Blank - Request Form'!M126),\"\"))","v":""},{"$f":"IF('Blank - Request Form'!$F$6=\"CIASI\",IF('Blank - Request Form'!E126=0,\"\",'Blank - Request Form'!E126),IF('Blank - Request Form'!$F$7=\"CIASI\",IF('Blank - Request Form'!N126=0,\"\",'Blank - Request Form'!N126),\"\"))","v":""},{"$f":"IF('Blank - Request Form'!$F$6=\"CIASI\",IF(OR('Blank - Request Form'!F126=\"000\",'Blank - Request Form'!F126=0),\"\",'Blank - Request Form'!F126),IF('Blank - Request Form'!$F$7=\"CIASI\",IF(OR('Blank - Request Form'!O126=\"000\",'Blank - Request Form'!O126=0),\"\",'Blank - Request Form'!O126),\"\"))","v":""},{"$f":"IF('Blank - Request Form'!$F$6=\"CIASI\",IF(OR('Blank - Request Form'!G126=\"0\",'Blank - Request Form'!G126=\"00000\",'Blank - Request Form'!G126=0),\"\",'Blank - Request Form'!G126),IF('Blank - Request Form'!$F$7=\"CIASI\",IF(OR('Blank - Request Form'!P126=\"0\",'Blank - Request Form'!P126=\"00000\",'Blank - Request Form'!P126=0),\"\",'Blank - Request Form'!P126),\"\"))","v":""},{"$f":"IF('Blank - Request Form'!$F$6=\"CIASI\",IF(OR('Blank - Request Form'!H126=\"0\",'Blank - Request Form'!H126=\"00000\",'Blank - Request Form'!H126=0),\"\",'Blank - Request Form'!H126),IF('Blank - Request Form'!$F$7=\"CIASI\",IF(OR('Blank - Request Form'!Q126=\"0\",'Blank - Request Form'!Q126=\"00000\",'Blank - Request Form'!Q126=0),\"\",'Blank - Request Form'!Q126),\"\"))","v":""},{"$f":"IF('Blank - Request Form'!$F$6=\"CIASI\",IF(OR('Blank - Request Form'!I126=\"0\",'Blank - Request Form'!I126=\"00000\",'Blank - Request Form'!I126=0),\"\",'Blank - Request Form'!I126),IF('Blank - Request Form'!$F$7=\"CIASI\",IF(OR('Blank - Request Form'!R126=\"0\",'Blank - Request Form'!R126=\"00000\",'Blank - Request Form'!R126=0),\"\",'Blank - Request Form'!R126),\"\"))","v":""},null,{"$f":"IF('Blank - Request Form'!$F$6=\"CIASI\",IF('Blank - Request Form'!K126=0,\"\",'Blank - Request Form'!K126),IF('Blank - Request Form'!$F$7=\"CIASI\",IF('Blank - Request Form'!T126=0,\"\",'Blank - Request Form'!T126),\"\"))","v":""},null,null,null,{"$f":"IF(M92<>\"\",'Blank - Request Form'!$M$2,\"\")","v":""},{"$f":"IF('Blank - Request Form'!$F$6=\"CIASI\",IF('Blank - Request Form'!J126=0,\"\",'Blank - Request Form'!J126),IF('Blank - Request Form'!$F$7=\"CIASI\",IF('Blank - Request Form'!S126=0,\"\",'Blank - Request Form'!S126),\"\"))","v":""},"",92]
[{"$f":"IF('Blank - Request Form'!$F$6=\"CIASI\",IF('Blank - Request Form'!D127=0,\"\",'Blank - Request Form'!D127),IF('Blank - Request Form'!$F$7=\"CIASI\",IF('Blank - Request Form'!M127=0,\"\",'Blank - Request Form'!M127),\"\"))","v":""},{"$f":"IF('Blank - Request Form'!$F$6=\"CIASI\",IF('Blank - Request Form'!E127=0,\"\",'Blank - Request Form'!E127),IF('Blank - Request Form'!$F$7=\"CIASI\",IF('Blank - Request Form'!N127=0,\"\",'Blank - Request Form'!N127),\"\"))","v":""},{"$f":"IF('Blank - Request Form'!$F$6=\"CIASI\",IF(OR('Blank - Request Form'!F127=\"000\",'Blank - Request Form'!F127=0),\"\",'Blank - Request Form'!F127),IF('Blank - Request Form'!$F$7=\"CIASI\",IF(OR('Blank - Request Form'!O127=\"000\",'Blank - Request Form'!O127=0),\"\",'Blank - Request Form'!O127),\"\"))","v":""},{"$f":"IF('Blank - Request Form'!$F$6=\"CIASI\",IF(OR('Blank - Request Form'!G127=\"0\",'Blank - Request Form'!G127=\"00000\",'Blank - Request Form'!G127=0),\"\",'Blank - Request Form'!G127),IF('Blank - Request Form'!$F$7=\"CIASI\",IF(OR('Blank - Request Form'!P127=\"0\",'Blank - Request Form'!P127=\"00000\",'Blank - Request Form'!P127=0),\"\",'Blank - Request Form'!P127),\"\"))","v":""},{"$f":"IF('Blank - Request Form'!$F$6=\"CIASI\",IF(OR('Blank - Request Form'!H127=\"0\",'Blank - Request Form'!H127=\"00000\",'Blank - Request Form'!H127=0),\"\",'Blank - Request Form'!H127),IF('Blank - Request Form'!$F$7=\"CIASI\",IF(OR('Blank - Request Form'!Q127=\"0\",'Blank - Request Form'!Q127=\"00000\",'Blank - Request Form'!Q127=0),\"\",'Blank - Request Form'!Q127),\"\"))","v":""},{"$f":"IF('Blank - Request Form'!$F$6=\"CIASI\",IF(OR('Blank - Request Form'!I127=\"0\",'Blank - Request Form'!I127=\"00000\",'Blank - Request Form'!I127=0),\"\",'Blank - Request Form'!I127),IF('Blank - Request Form'!$F$7=\"CIASI\",IF(OR('Blank - Request Form'!R127=\"0\",'Blank - Request Form'!R127=\"00000\",'Blank - Request Form'!R127=0),\"\",'Blank - Request Form'!R127),\"\"))","v":""},null,{"$f":"IF('Blank - Request Form'!$F$6=\"CIASI\",IF('Blank - Request Form'!K127=0,\"\",'Blank - Request Form'!K127),IF('Blank - Request Form'!$F$7=\"CIASI\",IF('Blank - Request Form'!T127=0,\"\",'Blank - Request Form'!T127),\"\"))","v":""},null,null,null,{"$f":"IF(M93<>\"\",'Blank - Request Form'!$M$2,\"\")","v":""},{"$f":"IF('Blank - Request Form'!$F$6=\"CIASI\",IF('Blank - Request Form'!J127=0,\"\",'Blank - Request Form'!J127),IF('Blank - Request Form'!$F$7=\"CIASI\",IF('Blank - Request Form'!S127=0,\"\",'Blank - Request Form'!S127),\"\"))","v":""},"",93]
[{"$f":"IF('Blank - Request Form'!$F$6=\"CIASI\",IF('Blank - Request Form'!D128=0,\"\",'Blank - Request Form'!D128),IF('Blank - Request Form'!$F$7=\"CIASI\",IF('Blank - Request Form'!M128=0,\"\",'Blank - Request Form'!M128),\"\"))","v":""},{"$f":"IF('Blank - Request Form'!$F$6=\"CIASI\",IF('Blank - Request Form'!E128=0,\"\",'Blank - Request Form'!E128),IF('Blank - Request Form'!$F$7=\"CIASI\",IF('Blank - Request Form'!N128=0,\"\",'Blank - Request Form'!N128),\"\"))","v":""},{"$f":"IF('Blank - Request Form'!$F$6=\"CIASI\",IF(OR('Blank - Request Form'!F128=\"000\",'Blank - Request Form'!F128=0),\"\",'Blank - Request Form'!F128),IF('Blank - Request Form'!$F$7=\"CIASI\",IF(OR('Blank - Request Form'!O128=\"000\",'Blank - Request Form'!O128=0),\"\",'Blank - Request Form'!O128),\"\"))","v":""},{"$f":"IF('Blank - Request Form'!$F$6=\"CIASI\",IF(OR('Blank - Request Form'!G128=\"0\",'Blank - Request Form'!G128=\"00000\",'Blank - Request Form'!G128=0),\"\",'Blank - Request Form'!G128),IF('Blank - Request Form'!$F$7=\"CIASI\",IF(OR('Blank - Request Form'!P128=\"0\",'Blank - Request Form'!P128=\"00000\",'Blank - Request Form'!P128=0),\"\",'Blank - Request Form'!P128),\"\"))","v":""},{"$f":"IF('Blank - Request Form'!$F$6=\"CIASI\",IF(OR('Blank - Request Form'!H128=\"0\",'Blank - Request Form'!H128=\"00000\",'Blank - Request Form'!H128=0),\"\",'Blank - Request Form'!H128),IF('Blank - Request Form'!$F$7=\"CIASI\",IF(OR('Blank - Request Form'!Q128=\"0\",'Blank - Request Form'!Q128=\"00000\",'Blank - Request Form'!Q128=0),\"\",'Blank - Request Form'!Q128),\"\"))","v":""},{"$f":"IF('Blank - Request Form'!$F$6=\"CIASI\",IF(OR('Blank - Request Form'!I128=\"0\",'Blank - Request Form'!I128=\"00000\",'Blank - Request Form'!I128=0),\"\",'Blank - Request Form'!I128),IF('Blank - Request Form'!$F$7=\"CIASI\",IF(OR('Blank - Request Form'!R128=\"0\",'Blank - Request Form'!R128=\"00000\",'Blank - Request Form'!R128=0),\"\",'Blank - Request Form'!R128),\"\"))","v":""},null,{"$f":"IF('Blank - Request Form'!$F$6=\"CIASI\",IF('Blank - Request Form'!K128=0,\"\",'Blank - Request Form'!K128),IF('Blank - Request Form'!$F$7=\"CIASI\",IF('Blank - Request Form'!T128=0,\"\",'Blank - Request Form'!T128),\"\"))","v":""},null,null,null,{"$f":"IF(M94<>\"\",'Blank - Request Form'!$M$2,\"\")","v":""},{"$f":"IF('Blank - Request Form'!$F$6=\"CIASI\",IF('Blank - Request Form'!J128=0,\"\",'Blank - Request Form'!J128),IF('Blank - Request Form'!$F$7=\"CIASI\",IF('Blank - Request Form'!S128=0,\"\",'Blank - Request Form'!S128),\"\"))","v":""},"",94]
[{"$f":"IF('Blank - Request Form'!$F$6=\"CIASI\",IF('Blank - Request Form'!D129=0,\"\",'Blank - Request Form'!D129),IF('Blank - Request Form'!$F$7=\"CIASI\",IF('Blank - Request Form'!M129=0,\"\",'Blank - Request Form'!M129),\"\"))","v":""},{"$f":"IF('Blank - Request Form'!$F$6=\"CIASI\",IF('Blank - Request Form'!E129=0,\"\",'Blank - Request Form'!E129),IF('Blank - Request Form'!$F$7=\"CIASI\",IF('Blank - Request Form'!N129=0,\"\",'Blank - Request Form'!N129),\"\"))","v":""},{"$f":"IF('Blank - Request Form'!$F$6=\"CIASI\",IF(OR('Blank - Request Form'!F129=\"000\",'Blank - Request Form'!F129=0),\"\",'Blank - Request Form'!F129),IF('Blank - Request Form'!$F$7=\"CIASI\",IF(OR('Blank - Request Form'!O129=\"000\",'Blank - Request Form'!O129=0),\"\",'Blank - Request Form'!O129),\"\"))","v":""},{"$f":"IF('Blank - Request Form'!$F$6=\"CIASI\",IF(OR('Blank - Request Form'!G129=\"0\",'Blank - Request Form'!G129=\"00000\",'Blank - Request Form'!G129=0),\"\",'Blank - Request Form'!G129),IF('Blank - Request Form'!$F$7=\"CIASI\",IF(OR('Blank - Request Form'!P129=\"0\",'Blank - Request Form'!P129=\"00000\",'Blank - Request Form'!P129=0),\"\",'Blank - Request Form'!P129),\"\"))","v":""},{"$f":"IF('Blank - Request Form'!$F$6=\"CIASI\",IF(OR('Blank - Request Form'!H129=\"0\",'Blank - Request Form'!H129=\"00000\",'Blank - Request Form'!H129=0),\"\",'Blank - Request Form'!H129),IF('Blank - Request Form'!$F$7=\"CIASI\",IF(OR('Blank - Request Form'!Q129=\"0\",'Blank - Request Form'!Q129=\"00000\",'Blank - Request Form'!Q129=0),\"\",'Blank - Request Form'!Q129),\"\"))","v":""},{"$f":"IF('Blank - Request Form'!$F$6=\"CIASI\",IF(OR('Blank - Request Form'!I129=\"0\",'Blank - Request Form'!I129=\"00000\",'Blank - Request Form'!I129=0),\"\",'Blank - Request Form'!I129),IF('Blank - Request Form'!$F$7=\"CIASI\",IF(OR('Blank - Request Form'!R129=\"0\",'Blank - Request Form'!R129=\"00000\",'Blank - Request Form'!R129=0),\"\",'Blank - Request Form'!R129),\"\"))","v":""},null,{"$f":"IF('Blank - Request Form'!$F$6=\"CIASI\",IF('Blank - Request Form'!K129=0,\"\",'Blank - Request Form'!K129),IF('Blank - Request Form'!$F$7=\"CIASI\",IF('Blank - Request Form'!T129=0,\"\",'Blank - Request Form'!T129),\"\"))","v":""},null,null,null,{"$f":"IF(M95<>\"\",'Blank - Request Form'!$M$2,\"\")","v":""},{"$f":"IF('Blank - Request Form'!$F$6=\"CIASI\",IF('Blank - Request Form'!J129=0,\"\",'Blank - Request Form'!J129),IF('Blank - Request Form'!$F$7=\"CIASI\",IF('Blank - Request Form'!S129=0,\"\",'Blank - Request Form'!S129),\"\"))","v":""},"",95]
[{"$f":"IF('Blank - Request Form'!$F$6=\"CIASI\",IF('Blank - Request Form'!D130=0,\"\",'Blank - Request Form'!D130),IF('Blank - Request Form'!$F$7=\"CIASI\",IF('Blank - Request Form'!M130=0,\"\",'Blank - Request Form'!M130),\"\"))","v":""},{"$f":"IF('Blank - Request Form'!$F$6=\"CIASI\",IF('Blank - Request Form'!E130=0,\"\",'Blank - Request Form'!E130),IF('Blank - Request Form'!$F$7=\"CIASI\",IF('Blank - Request Form'!N130=0,\"\",'Blank - Request Form'!N130),\"\"))","v":""},{"$f":"IF('Blank - Request Form'!$F$6=\"CIASI\",IF(OR('Blank - Request Form'!F130=\"000\",'Blank - Request Form'!F130=0),\"\",'Blank - Request Form'!F130),IF('Blank - Request Form'!$F$7=\"CIASI\",IF(OR('Blank - Request Form'!O130=\"000\",'Blank - Request Form'!O130=0),\"\",'Blank - Request Form'!O130),\"\"))","v":""},{"$f":"IF('Blank - Request Form'!$F$6=\"CIASI\",IF(OR('Blank - Request Form'!G130=\"0\",'Blank - Request Form'!G130=\"00000\",'Blank - Request Form'!G130=0),\"\",'Blank - Request Form'!G130),IF('Blank - Request Form'!$F$7=\"CIASI\",IF(OR('Blank - Request Form'!P130=\"0\",'Blank - Request Form'!P130=\"00000\",'Blank - Request Form'!P130=0),\"\",'Blank - Request Form'!P130),\"\"))","v":""},{"$f":"IF('Blank - Request Form'!$F$6=\"CIASI\",IF(OR('Blank - Request Form'!H130=\"0\",'Blank - Request Form'!H130=\"00000\",'Blank - Request Form'!H130=0),\"\",'Blank - Request Form'!H130),IF('Blank - Request Form'!$F$7=\"CIASI\",IF(OR('Blank - Request Form'!Q130=\"0\",'Blank - Request Form'!Q130=\"00000\",'Blank - Request Form'!Q130=0),\"\",'Blank - Request Form'!Q130),\"\"))","v":""},{"$f":"IF('Blank - Request Form'!$F$6=\"CIASI\",IF(OR('Blank - Request Form'!I130=\"0\",'Blank - Request Form'!I130=\"00000\",'Blank - Request Form'!I130=0),\"\",'Blank - Request Form'!I130),IF('Blank - Request Form'!$F$7=\"CIASI\",IF(OR('Blank - Request Form'!R130=\"0\",'Blank - Request Form'!R130=\"00000\",'Blank - Request Form'!R130=0),\"\",'Blank - Request Form'!R130),\"\"))","v":""},null,{"$f":"IF('Blank - Request Form'!$F$6=\"CIASI\",IF('Blank - Request Form'!K130=0,\"\",'Blank - Request Form'!K130),IF('Blank - Request Form'!$F$7=\"CIASI\",IF('Blank - Request Form'!T130=0,\"\",'Blank - Request Form'!T130),\"\"))","v":""},null,null,null,{"$f":"IF(M96<>\"\",'Blank - Request Form'!$M$2,\"\")","v":""},{"$f":"IF('Blank - Request Form'!$F$6=\"CIASI\",IF('Blank - Request Form'!J130=0,\"\",'Blank - Request Form'!J130),IF('Blank - Request Form'!$F$7=\"CIASI\",IF('Blank - Request Form'!S130=0,\"\",'Blank - Request Form'!S130),\"\"))","v":""},"",96]
[{"$f":"IF('Blank - Request Form'!$F$6=\"CIASI\",IF('Blank - Request Form'!D131=0,\"\",'Blank - Request Form'!D131),IF('Blank - Request Form'!$F$7=\"CIASI\",IF('Blank - Request Form'!M131=0,\"\",'Blank - Request Form'!M131),\"\"))","v":""},{"$f":"IF('Blank - Request Form'!$F$6=\"CIASI\",IF('Blank - Request Form'!E131=0,\"\",'Blank - Request Form'!E131),IF('Blank - Request Form'!$F$7=\"CIASI\",IF('Blank - Request Form'!N131=0,\"\",'Blank - Request Form'!N131),\"\"))","v":""},{"$f":"IF('Blank - Request Form'!$F$6=\"CIASI\",IF(OR('Blank - Request Form'!F131=\"000\",'Blank - Request Form'!F131=0),\"\",'Blank - Request Form'!F131),IF('Blank - Request Form'!$F$7=\"CIASI\",IF(OR('Blank - Request Form'!O131=\"000\",'Blank - Request Form'!O131=0),\"\",'Blank - Request Form'!O131),\"\"))","v":""},{"$f":"IF('Blank - Request Form'!$F$6=\"CIASI\",IF(OR('Blank - Request Form'!G131=\"0\",'Blank - Request Form'!G131=\"00000\",'Blank - Request Form'!G131=0),\"\",'Blank - Request Form'!G131),IF('Blank - Request Form'!$F$7=\"CIASI\",IF(OR('Blank - Request Form'!P131=\"0\",'Blank - Request Form'!P131=\"00000\",'Blank - Request Form'!P131=0),\"\",'Blank - Request Form'!P131),\"\"))","v":""},{"$f":"IF('Blank - Request Form'!$F$6=\"CIASI\",IF(OR('Blank - Request Form'!H131=\"0\",'Blank - Request Form'!H131=\"00000\",'Blank - Request Form'!H131=0),\"\",'Blank - Request Form'!H131),IF('Blank - Request Form'!$F$7=\"CIASI\",IF(OR('Blank - Request Form'!Q131=\"0\",'Blank - Request Form'!Q131=\"00000\",'Blank - Request Form'!Q131=0),\"\",'Blank - Request Form'!Q131),\"\"))","v":""},{"$f":"IF('Blank - Request Form'!$F$6=\"CIASI\",IF(OR('Blank - Request Form'!I131=\"0\",'Blank - Request Form'!I131=\"00000\",'Blank - Request Form'!I131=0),\"\",'Blank - Request Form'!I131),IF('Blank - Request Form'!$F$7=\"CIASI\",IF(OR('Blank - Request Form'!R131=\"0\",'Blank - Request Form'!R131=\"00000\",'Blank - Request Form'!R131=0),\"\",'Blank - Request Form'!R131),\"\"))","v":""},null,{"$f":"IF('Blank - Request Form'!$F$6=\"CIASI\",IF('Blank - Request Form'!K131=0,\"\",'Blank - Request Form'!K131),IF('Blank - Request Form'!$F$7=\"CIASI\",IF('Blank - Request Form'!T131=0,\"\",'Blank - Request Form'!T131),\"\"))","v":""},null,null,null,{"$f":"IF(M97<>\"\",'Blank - Request Form'!$M$2,\"\")","v":""},{"$f":"IF('Blank - Request Form'!$F$6=\"CIASI\",IF('Blank - Request Form'!J131=0,\"\",'Blank - Request Form'!J131),IF('Blank - Request Form'!$F$7=\"CIASI\",IF('Blank - Request Form'!S131=0,\"\",'Blank - Request Form'!S131),\"\"))","v":""},"",97]
[{"$f":"IF('Blank - Request Form'!$F$6=\"CIASI\",IF('Blank - Request Form'!D132=0,\"\",'Blank - Request Form'!D132),IF('Blank - Request Form'!$F$7=\"CIASI\",IF('Blank - Request Form'!M132=0,\"\",'Blank - Request Form'!M132),\"\"))","v":""},{"$f":"IF('Blank - Request Form'!$F$6=\"CIASI\",IF('Blank - Request Form'!E132=0,\"\",'Blank - Request Form'!E132),IF('Blank - Request Form'!$F$7=\"CIASI\",IF('Blank - Request Form'!N132=0,\"\",'Blank - Request Form'!N132),\"\"))","v":""},{"$f":"IF('Blank - Request Form'!$F$6=\"CIASI\",IF(OR('Blank - Request Form'!F132=\"000\",'Blank - Request Form'!F132=0),\"\",'Blank - Request Form'!F132),IF('Blank - Request Form'!$F$7=\"CIASI\",IF(OR('Blank - Request Form'!O132=\"000\",'Blank - Request Form'!O132=0),\"\",'Blank - Request Form'!O132),\"\"))","v":""},{"$f":"IF('Blank - Request Form'!$F$6=\"CIASI\",IF(OR('Blank - Request Form'!G132=\"0\",'Blank - Request Form'!G132=\"00000\",'Blank - Request Form'!G132=0),\"\",'Blank - Request Form'!G132),IF('Blank - Request Form'!$F$7=\"CIASI\",IF(OR('Blank - Request Form'!P132=\"0\",'Blank - Request Form'!P132=\"00000\",'Blank - Request Form'!P132=0),\"\",'Blank - Request Form'!P132),\"\"))","v":""},{"$f":"IF('Blank - Request Form'!$F$6=\"CIASI\",IF(OR('Blank - Request Form'!H132=\"0\",'Blank - Request Form'!H132=\"00000\",'Blank - Request Form'!H132=0),\"\",'Blank - Request Form'!H132),IF('Blank - Request Form'!$F$7=\"CIASI\",IF(OR('Blank - Request Form'!Q132=\"0\",'Blank - Request Form'!Q132=\"00000\",'Blank - Request Form'!Q132=0),\"\",'Blank - Request Form'!Q132),\"\"))","v":""},{"$f":"IF('Blank - Request Form'!$F$6=\"CIASI\",IF(OR('Blank - Request Form'!I132=\"0\",'Blank - Request Form'!I132=\"00000\",'Blank - Request Form'!I132=0),\"\",'Blank - Request Form'!I132),IF('Blank - Request Form'!$F$7=\"CIASI\",IF(OR('Blank - Request Form'!R132=\"0\",'Blank - Request Form'!R132=\"00000\",'Blank - Request Form'!R132=0),\"\",'Blank - Request Form'!R132),\"\"))","v":""},null,{"$f":"IF('Blank - Request Form'!$F$6=\"CIASI\",IF('Blank - Request Form'!K132=0,\"\",'Blank - Request Form'!K132),IF('Blank - Request Form'!$F$7=\"CIASI\",IF('Blank - Request Form'!T132=0,\"\",'Blank - Request Form'!T132),\"\"))","v":""},null,null,null,{"$f":"IF(M98<>\"\",'Blank - Request Form'!$M$2,\"\")","v":""},{"$f":"IF('Blank - Request Form'!$F$6=\"CIASI\",IF('Blank - Request Form'!J132=0,\"\",'Blank - Request Form'!J132),IF('Blank - Request Form'!$F$7=\"CIASI\",IF('Blank - Request Form'!S132=0,\"\",'Blank - Request Form'!S132),\"\"))","v":""},"",98]
[{"$f":"IF('Blank - Request Form'!$F$6=\"CIASI\",IF('Blank - Request Form'!D133=0,\"\",'Blank - Request Form'!D133),IF('Blank - Request Form'!$F$7=\"CIASI\",IF('Blank - Request Form'!M133=0,\"\",'Blank - Request Form'!M133),\"\"))","v":""},{"$f":"IF('Blank - Request Form'!$F$6=\"CIASI\",IF('Blank - Request Form'!E133=0,\"\",'Blank - Request Form'!E133),IF('Blank - Request Form'!$F$7=\"CIASI\",IF('Blank - Request Form'!N133=0,\"\",'Blank - Request Form'!N133),\"\"))","v":""},{"$f":"IF('Blank - Request Form'!$F$6=\"CIASI\",IF(OR('Blank - Request Form'!F133=\"000\",'Blank - Request Form'!F133=0),\"\",'Blank - Request Form'!F133),IF('Blank - Request Form'!$F$7=\"CIASI\",IF(OR('Blank - Request Form'!O133=\"000\",'Blank - Request Form'!O133=0),\"\",'Blank - Request Form'!O133),\"\"))","v":""},{"$f":"IF('Blank - Request Form'!$F$6=\"CIASI\",IF(OR('Blank - Request Form'!G133=\"0\",'Blank - Request Form'!G133=\"00000\",'Blank - Request Form'!G133=0),\"\",'Blank - Request Form'!G133),IF('Blank - Request Form'!$F$7=\"CIASI\",IF(OR('Blank - Request Form'!P133=\"0\",'Blank - Request Form'!P133=\"00000\",'Blank - Request Form'!P133=0),\"\",'Blank - Request Form'!P133),\"\"))","v":""},{"$f":"IF('Blank - Request Form'!$F$6=\"CIASI\",IF(OR('Blank - Request Form'!H133=\"0\",'Blank - Request Form'!H133=\"00000\",'Blank - Request Form'!H133=0),\"\",'Blank - Request Form'!H133),IF('Blank - Request Form'!$F$7=\"CIASI\",IF(OR('Blank - Request Form'!Q133=\"0\",'Blank - Request Form'!Q133=\"00000\",'Blank - Request Form'!Q133=0),\"\",'Blank - Request Form'!Q133),\"\"))","v":""},{"$f":"IF('Blank - Request Form'!$F$6=\"CIASI\",IF(OR('Blank - Request Form'!I133=\"0\",'Blank - Request Form'!I133=\"00000\",'Blank - Request Form'!I133=0),\"\",'Blank - Request Form'!I133),IF('Blank - Request Form'!$F$7=\"CIASI\",IF(OR('Blank - Request Form'!R133=\"0\",'Blank - Request Form'!R133=\"00000\",'Blank - Request Form'!R133=0),\"\",'Blank - Request Form'!R133),\"\"))","v":""},null,{"$f":"IF('Blank - Request Form'!$F$6=\"CIASI\",IF('Blank - Request Form'!K133=0,\"\",'Blank - Request Form'!K133),IF('Blank - Request Form'!$F$7=\"CIASI\",IF('Blank - Request Form'!T133=0,\"\",'Blank - Request Form'!T133),\"\"))","v":""},null,null,null,{"$f":"IF(M99<>\"\",'Blank - Request Form'!$M$2,\"\")","v":""},{"$f":"IF('Blank - Request Form'!$F$6=\"CIASI\",IF('Blank - Request Form'!J133=0,\"\",'Blank - Request Form'!J133),IF('Blank - Request Form'!$F$7=\"CIASI\",IF('Blank - Request Form'!S133=0,\"\",'Blank - Request Form'!S133),\"\"))","v":""},"",99]
[{"$f":"IF('Blank - Request Form'!$F$6=\"CIASI\",IF('Blank - Request Form'!D134=0,\"\",'Blank - Request Form'!D134),IF('Blank - Request Form'!$F$7=\"CIASI\",IF('Blank - Request Form'!M134=0,\"\",'Blank - Request Form'!M134),\"\"))","v":""},{"$f":"IF('Blank - Request Form'!$F$6=\"CIASI\",IF('Blank - Request Form'!E134=0,\"\",'Blank - Request Form'!E134),IF('Blank - Request Form'!$F$7=\"CIASI\",IF('Blank - Request Form'!N134=0,\"\",'Blank - Request Form'!N134),\"\"))","v":""},{"$f":"IF('Blank - Request Form'!$F$6=\"CIASI\",IF(OR('Blank - Request Form'!F134=\"000\",'Blank - Request Form'!F134=0),\"\",'Blank - Request Form'!F134),IF('Blank - Request Form'!$F$7=\"CIASI\",IF(OR('Blank - Request Form'!O134=\"000\",'Blank - Request Form'!O134=0),\"\",'Blank - Request Form'!O134),\"\"))","v":""},{"$f":"IF('Blank - Request Form'!$F$6=\"CIASI\",IF(OR('Blank - Request Form'!G134=\"0\",'Blank - Request Form'!G134=\"00000\",'Blank - Request Form'!G134=0),\"\",'Blank - Request Form'!G134),IF('Blank - Request Form'!$F$7=\"CIASI\",IF(OR('Blank - Request Form'!P134=\"0\",'Blank - Request Form'!P134=\"00000\",'Blank - Request Form'!P134=0),\"\",'Blank - Request Form'!P134),\"\"))","v":""},{"$f":"IF('Blank - Request Form'!$F$6=\"CIASI\",IF(OR('Blank - Request Form'!H134=\"0\",'Blank - Request Form'!H134=\"00000\",'Blank - Request Form'!H134=0),\"\",'Blank - Request Form'!H134),IF('Blank - Request Form'!$F$7=\"CIASI\",IF(OR('Blank - Request Form'!Q134=\"0\",'Blank - Request Form'!Q134=\"00000\",'Blank - Request Form'!Q134=0),\"\",'Blank - Request Form'!Q134),\"\"))","v":""},{"$f":"IF('Blank - Request Form'!$F$6=\"CIASI\",IF(OR('Blank - Request Form'!I134=\"0\",'Blank - Request Form'!I134=\"00000\",'Blank - Request Form'!I134=0),\"\",'Blank - Request Form'!I134),IF('Blank - Request Form'!$F$7=\"CIASI\",IF(OR('Blank - Request Form'!R134=\"0\",'Blank - Request Form'!R134=\"00000\",'Blank - Request Form'!R134=0),\"\",'Blank - Request Form'!R134),\"\"))","v":""},null,{"$f":"IF('Blank - Request Form'!$F$6=\"CIASI\",IF('Blank - Request Form'!K134=0,\"\",'Blank - Request Form'!K134),IF('Blank - Request Form'!$F$7=\"CIASI\",IF('Blank - Request Form'!T134=0,\"\",'Blank - Request Form'!T134),\"\"))","v":""},null,null,null,{"$f":"IF(M100<>\"\",'Blank - Request Form'!$M$2,\"\")","v":""},{"$f":"IF('Blank - Request Form'!$F$6=\"CIASI\",IF('Blank - Request Form'!J134=0,\"\",'Blank - Request Form'!J134),IF('Blank - Request Form'!$F$7=\"CIASI\",IF('Blank - Request Form'!S134=0,\"\",'Blank - Request Form'!S134),\"\"))","v":""},"",100]
[{"$f":"IF('Blank - Request Form'!$F$6=\"CIASI\",IF('Blank - Request Form'!D135=0,\"\",'Blank - Request Form'!D135),IF('Blank - Request Form'!$F$7=\"CIASI\",IF('Blank - Request Form'!M135=0,\"\",'Blank - Request Form'!M135),\"\"))","v":""},{"$f":"IF('Blank - Request Form'!$F$6=\"CIASI\",IF('Blank - Request Form'!E135=0,\"\",'Blank - Request Form'!E135),IF('Blank - Request Form'!$F$7=\"CIASI\",IF('Blank - Request Form'!N135=0,\"\",'Blank - Request Form'!N135),\"\"))","v":""},{"$f":"IF('Blank - Request Form'!$F$6=\"CIASI\",IF(OR('Blank - Request Form'!F135=\"000\",'Blank - Request Form'!F135=0),\"\",'Blank - Request Form'!F135),IF('Blank - Request Form'!$F$7=\"CIASI\",IF(OR('Blank - Request Form'!O135=\"000\",'Blank - Request Form'!O135=0),\"\",'Blank - Request Form'!O135),\"\"))","v":""},{"$f":"IF('Blank - Request Form'!$F$6=\"CIASI\",IF(OR('Blank - Request Form'!G135=\"0\",'Blank - Request Form'!G135=\"00000\",'Blank - Request Form'!G135=0),\"\",'Blank - Request Form'!G135),IF('Blank - Request Form'!$F$7=\"CIASI\",IF(OR('Blank - Request Form'!P135=\"0\",'Blank - Request Form'!P135=\"00000\",'Blank - Request Form'!P135=0),\"\",'Blank - Request Form'!P135),\"\"))","v":""},{"$f":"IF('Blank - Request Form'!$F$6=\"CIASI\",IF(OR('Blank - Request Form'!H135=\"0\",'Blank - Request Form'!H135=\"00000\",'Blank - Request Form'!H135=0),\"\",'Blank - Request Form'!H135),IF('Blank - Request Form'!$F$7=\"CIASI\",IF(OR('Blank - Request Form'!Q135=\"0\",'Blank - Request Form'!Q135=\"00000\",'Blank - Request Form'!Q135=0),\"\",'Blank - Request Form'!Q135),\"\"))","v":""},{"$f":"IF('Blank - Request Form'!$F$6=\"CIASI\",IF(OR('Blank - Request Form'!I135=\"0\",'Blank - Request Form'!I135=\"00000\",'Blank - Request Form'!I135=0),\"\",'Blank - Request Form'!I135),IF('Blank - Request Form'!$F$7=\"CIASI\",IF(OR('Blank - Request Form'!R135=\"0\",'Blank - Request Form'!R135=\"00000\",'Blank - Request Form'!R135=0),\"\",'Blank - Request Form'!R135),\"\"))","v":""},null,{"$f":"IF('Blank - Request Form'!$F$6=\"CIASI\",IF('Blank - Request Form'!K135=0,\"\",'Blank - Request Form'!K135),IF('Blank - Request Form'!$F$7=\"CIASI\",IF('Blank - Request Form'!T135=0,\"\",'Blank - Request Form'!T135),\"\"))","v":""},null,null,null,{"$f":"IF(M101<>\"\",'Blank - Request Form'!$M$2,\"\")","v":""},{"$f":"IF('Blank - Request Form'!$F$6=\"CIASI\",IF('Blank - Request Form'!J135=0,\"\",'Blank - Request Form'!J135),IF('Blank - Request Form'!$F$7=\"CIASI\",IF('Blank - Request Form'!S135=0,\"\",'Blank - Request Form'!S135),\"\"))","v":""},"",101]
[{"$f":"IF('Blank - Request Form'!$F$6=\"CIASI\",IF('Blank - Request Form'!D136=0,\"\",'Blank - Request Form'!D136),IF('Blank - Request Form'!$F$7=\"CIASI\",IF('Blank - Request Form'!M136=0,\"\",'Blank - Request Form'!M136),\"\"))","v":""},{"$f":"IF('Blank - Request Form'!$F$6=\"CIASI\",IF('Blank - Request Form'!E136=0,\"\",'Blank - Request Form'!E136),IF('Blank - Request Form'!$F$7=\"CIASI\",IF('Blank - Request Form'!N136=0,\"\",'Blank - Request Form'!N136),\"\"))","v":""},{"$f":"IF('Blank - Request Form'!$F$6=\"CIASI\",IF(OR('Blank - Request Form'!F136=\"000\",'Blank - Request Form'!F136=0),\"\",'Blank - Request Form'!F136),IF('Blank - Request Form'!$F$7=\"CIASI\",IF(OR('Blank - Request Form'!O136=\"000\",'Blank - Request Form'!O136=0),\"\",'Blank - Request Form'!O136),\"\"))","v":""},{"$f":"IF('Blank - Request Form'!$F$6=\"CIASI\",IF(OR('Blank - Request Form'!G136=\"0\",'Blank - Request Form'!G136=\"00000\",'Blank - Request Form'!G136=0),\"\",'Blank - Request Form'!G136),IF('Blank - Request Form'!$F$7=\"CIASI\",IF(OR('Blank - Request Form'!P136=\"0\",'Blank - Request Form'!P136=\"00000\",'Blank - Request Form'!P136=0),\"\",'Blank - Request Form'!P136),\"\"))","v":""},{"$f":"IF('Blank - Request Form'!$F$6=\"CIASI\",IF(OR('Blank - Request Form'!H136=\"0\",'Blank - Request Form'!H136=\"00000\",'Blank - Request Form'!H136=0),\"\",'Blank - Request Form'!H136),IF('Blank - Request Form'!$F$7=\"CIASI\",IF(OR('Blank - Request Form'!Q136=\"0\",'Blank - Request Form'!Q136=\"00000\",'Blank - Request Form'!Q136=0),\"\",'Blank - Request Form'!Q136),\"\"))","v":""},{"$f":"IF('Blank - Request Form'!$F$6=\"CIASI\",IF(OR('Blank - Request Form'!I136=\"0\",'Blank - Request Form'!I136=\"00000\",'Blank - Request Form'!I136=0),\"\",'Blank - Request Form'!I136),IF('Blank - Request Form'!$F$7=\"CIASI\",IF(OR('Blank - Request Form'!R136=\"0\",'Blank - Request Form'!R136=\"00000\",'Blank - Request Form'!R136=0),\"\",'Blank - Request Form'!R136),\"\"))","v":""},null,{"$f":"IF('Blank - Request Form'!$F$6=\"CIASI\",IF('Blank - Request Form'!K136=0,\"\",'Blank - Request Form'!K136),IF('Blank - Request Form'!$F$7=\"CIASI\",IF('Blank - Request Form'!T136=0,\"\",'Blank - Request Form'!T136),\"\"))","v":""},null,null,null,{"$f":"IF(M102<>\"\",'Blank - Request Form'!$M$2,\"\")","v":""},{"$f":"IF('Blank - Request Form'!$F$6=\"CIASI\",IF('Blank - Request Form'!J136=0,\"\",'Blank - Request Form'!J136),IF('Blank - Request Form'!$F$7=\"CIASI\",IF('Blank - Request Form'!S136=0,\"\",'Blank - Request Form'!S136),\"\"))","v":""},"",102]
[{"$f":"IF('Blank - Request Form'!$F$6=\"CIASI\",IF('Blank - Request Form'!D137=0,\"\",'Blank - Request Form'!D137),IF('Blank - Request Form'!$F$7=\"CIASI\",IF('Blank - Request Form'!M137=0,\"\",'Blank - Request Form'!M137),\"\"))","v":""},{"$f":"IF('Blank - Request Form'!$F$6=\"CIASI\",IF('Blank - Request Form'!E137=0,\"\",'Blank - Request Form'!E137),IF('Blank - Request Form'!$F$7=\"CIASI\",IF('Blank - Request Form'!N137=0,\"\",'Blank - Request Form'!N137),\"\"))","v":""},{"$f":"IF('Blank - Request Form'!$F$6=\"CIASI\",IF(OR('Blank - Request Form'!F137=\"000\",'Blank - Request Form'!F137=0),\"\",'Blank - Request Form'!F137),IF('Blank - Request Form'!$F$7=\"CIASI\",IF(OR('Blank - Request Form'!O137=\"000\",'Blank - Request Form'!O137=0),\"\",'Blank - Request Form'!O137),\"\"))","v":""},{"$f":"IF('Blank - Request Form'!$F$6=\"CIASI\",IF(OR('Blank - Request Form'!G137=\"0\",'Blank - Request Form'!G137=\"00000\",'Blank - Request Form'!G137=0),\"\",'Blank - Request Form'!G137),IF('Blank - Request Form'!$F$7=\"CIASI\",IF(OR('Blank - Request Form'!P137=\"0\",'Blank - Request Form'!P137=\"00000\",'Blank - Request Form'!P137=0),\"\",'Blank - Request Form'!P137),\"\"))","v":""},{"$f":"IF('Blank - Request Form'!$F$6=\"CIASI\",IF(OR('Blank - Request Form'!H137=\"0\",'Blank - Request Form'!H137=\"00000\",'Blank - Request Form'!H137=0),\"\",'Blank - Request Form'!H137),IF('Blank - Request Form'!$F$7=\"CIASI\",IF(OR('Blank - Request Form'!Q137=\"0\",'Blank - Request Form'!Q137=\"00000\",'Blank - Request Form'!Q137=0),\"\",'Blank - Request Form'!Q137),\"\"))","v":""},{"$f":"IF('Blank - Request Form'!$F$6=\"CIASI\",IF(OR('Blank - Request Form'!I137=\"0\",'Blank - Request Form'!I137=\"00000\",'Blank - Request Form'!I137=0),\"\",'Blank - Request Form'!I137),IF('Blank - Request Form'!$F$7=\"CIASI\",IF(OR('Blank - Request Form'!R137=\"0\",'Blank - Request Form'!R137=\"00000\",'Blank - Request Form'!R137=0),\"\",'Blank - Request Form'!R137),\"\"))","v":""},null,{"$f":"IF('Blank - Request Form'!$F$6=\"CIASI\",IF('Blank - Request Form'!K137=0,\"\",'Blank - Request Form'!K137),IF('Blank - Request Form'!$F$7=\"CIASI\",IF('Blank - Request Form'!T137=0,\"\",'Blank - Request Form'!T137),\"\"))","v":""},null,null,null,{"$f":"IF(M103<>\"\",'Blank - Request Form'!$M$2,\"\")","v":""},{"$f":"IF('Blank - Request Form'!$F$6=\"CIASI\",IF('Blank - Request Form'!J137=0,\"\",'Blank - Request Form'!J137),IF('Blank - Request Form'!$F$7=\"CIASI\",IF('Blank - Request Form'!S137=0,\"\",'Blank - Request Form'!S137),\"\"))","v":""},"",103]
[{"$f":"IF('Blank - Request Form'!$F$6=\"CIASI\",IF('Blank - Request Form'!D138=0,\"\",'Blank - Request Form'!D138),IF('Blank - Request Form'!$F$7=\"CIASI\",IF('Blank - Request Form'!M138=0,\"\",'Blank - Request Form'!M138),\"\"))","v":""},{"$f":"IF('Blank - Request Form'!$F$6=\"CIASI\",IF('Blank - Request Form'!E138=0,\"\",'Blank - Request Form'!E138),IF('Blank - Request Form'!$F$7=\"CIASI\",IF('Blank - Request Form'!N138=0,\"\",'Blank - Request Form'!N138),\"\"))","v":""},{"$f":"IF('Blank - Request Form'!$F$6=\"CIASI\",IF(OR('Blank - Request Form'!F138=\"000\",'Blank - Request Form'!F138=0),\"\",'Blank - Request Form'!F138),IF('Blank - Request Form'!$F$7=\"CIASI\",IF(OR('Blank - Request Form'!O138=\"000\",'Blank - Request Form'!O138=0),\"\",'Blank - Request Form'!O138),\"\"))","v":""},{"$f":"IF('Blank - Request Form'!$F$6=\"CIASI\",IF(OR('Blank - Request Form'!G138=\"0\",'Blank - Request Form'!G138=\"00000\",'Blank - Request Form'!G138=0),\"\",'Blank - Request Form'!G138),IF('Blank - Request Form'!$F$7=\"CIASI\",IF(OR('Blank - Request Form'!P138=\"0\",'Blank - Request Form'!P138=\"00000\",'Blank - Request Form'!P138=0),\"\",'Blank - Request Form'!P138),\"\"))","v":""},{"$f":"IF('Blank - Request Form'!$F$6=\"CIASI\",IF(OR('Blank - Request Form'!H138=\"0\",'Blank - Request Form'!H138=\"00000\",'Blank - Request Form'!H138=0),\"\",'Blank - Request Form'!H138),IF('Blank - Request Form'!$F$7=\"CIASI\",IF(OR('Blank - Request Form'!Q138=\"0\",'Blank - Request Form'!Q138=\"00000\",'Blank - Request Form'!Q138=0),\"\",'Blank - Request Form'!Q138),\"\"))","v":""},{"$f":"IF('Blank - Request Form'!$F$6=\"CIASI\",IF(OR('Blank - Request Form'!I138=\"0\",'Blank - Request Form'!I138=\"00000\",'Blank - Request Form'!I138=0),\"\",'Blank - Request Form'!I138),IF('Blank - Request Form'!$F$7=\"CIASI\",IF(OR('Blank - Request Form'!R138=\"0\",'Blank - Request Form'!R138=\"00000\",'Blank - Request Form'!R138=0),\"\",'Blank - Request Form'!R138),\"\"))","v":""},null,{"$f":"IF('Blank - Request Form'!$F$6=\"CIASI\",IF('Blank - Request Form'!K138=0,\"\",'Blank - Request Form'!K138),IF('Blank - Request Form'!$F$7=\"CIASI\",IF('Blank - Request Form'!T138=0,\"\",'Blank - Request Form'!T138),\"\"))","v":""},null,null,null,{"$f":"IF(M104<>\"\",'Blank - Request Form'!$M$2,\"\")","v":""},{"$f":"IF('Blank - Request Form'!$F$6=\"CIASI\",IF('Blank - Request Form'!J138=0,\"\",'Blank - Request Form'!J138),IF('Blank - Request Form'!$F$7=\"CIASI\",IF('Blank - Request Form'!S138=0,\"\",'Blank - Request Form'!S138),\"\"))","v":""},"",104]
[{"$f":"IF('Blank - Request Form'!$F$6=\"CIASI\",IF('Blank - Request Form'!D139=0,\"\",'Blank - Request Form'!D139),IF('Blank - Request Form'!$F$7=\"CIASI\",IF('Blank - Request Form'!M139=0,\"\",'Blank - Request Form'!M139),\"\"))","v":""},{"$f":"IF('Blank - Request Form'!$F$6=\"CIASI\",IF('Blank - Request Form'!E139=0,\"\",'Blank - Request Form'!E139),IF('Blank - Request Form'!$F$7=\"CIASI\",IF('Blank - Request Form'!N139=0,\"\",'Blank - Request Form'!N139),\"\"))","v":""},{"$f":"IF('Blank - Request Form'!$F$6=\"CIASI\",IF(OR('Blank - Request Form'!F139=\"000\",'Blank - Request Form'!F139=0),\"\",'Blank - Request Form'!F139),IF('Blank - Request Form'!$F$7=\"CIASI\",IF(OR('Blank - Request Form'!O139=\"000\",'Blank - Request Form'!O139=0),\"\",'Blank - Request Form'!O139),\"\"))","v":""},{"$f":"IF('Blank - Request Form'!$F$6=\"CIASI\",IF(OR('Blank - Request Form'!G139=\"0\",'Blank - Request Form'!G139=\"00000\",'Blank - Request Form'!G139=0),\"\",'Blank - Request Form'!G139),IF('Blank - Request Form'!$F$7=\"CIASI\",IF(OR('Blank - Request Form'!P139=\"0\",'Blank - Request Form'!P139=\"00000\",'Blank - Request Form'!P139=0),\"\",'Blank - Request Form'!P139),\"\"))","v":""},{"$f":"IF('Blank - Request Form'!$F$6=\"CIASI\",IF(OR('Blank - Request Form'!H139=\"0\",'Blank - Request Form'!H139=\"00000\",'Blank - Request Form'!H139=0),\"\",'Blank - Request Form'!H139),IF('Blank - Request Form'!$F$7=\"CIASI\",IF(OR('Blank - Request Form'!Q139=\"0\",'Blank - Request Form'!Q139=\"00000\",'Blank - Request Form'!Q139=0),\"\",'Blank - Request Form'!Q139),\"\"))","v":""},{"$f":"IF('Blank - Request Form'!$F$6=\"CIASI\",IF(OR('Blank - Request Form'!I139=\"0\",'Blank - Request Form'!I139=\"00000\",'Blank - Request Form'!I139=0),\"\",'Blank - Request Form'!I139),IF('Blank - Request Form'!$F$7=\"CIASI\",IF(OR('Blank - Request Form'!R139=\"0\",'Blank - Request Form'!R139=\"00000\",'Blank - Request Form'!R139=0),\"\",'Blank - Request Form'!R139),\"\"))","v":""},null,{"$f":"IF('Blank - Request Form'!$F$6=\"CIASI\",IF('Blank - Request Form'!K139=0,\"\",'Blank - Request Form'!K139),IF('Blank - Request Form'!$F$7=\"CIASI\",IF('Blank - Request Form'!T139=0,\"\",'Blank - Request Form'!T139),\"\"))","v":""},null,null,null,{"$f":"IF(M105<>\"\",'Blank - Request Form'!$M$2,\"\")","v":""},{"$f":"IF('Blank - Request Form'!$F$6=\"CIASI\",IF('Blank - Request Form'!J139=0,\"\",'Blank - Request Form'!J139),IF('Blank - Request Form'!$F$7=\"CIASI\",IF('Blank - Request Form'!S139=0,\"\",'Blank - Request Form'!S139),\"\"))","v":""},"",105]
[{"$f":"IF('Blank - Request Form'!$F$6=\"CIASI\",IF('Blank - Request Form'!D140=0,\"\",'Blank - Request Form'!D140),IF('Blank - Request Form'!$F$7=\"CIASI\",IF('Blank - Request Form'!M140=0,\"\",'Blank - Request Form'!M140),\"\"))","v":""},{"$f":"IF('Blank - Request Form'!$F$6=\"CIASI\",IF('Blank - Request Form'!E140=0,\"\",'Blank - Request Form'!E140),IF('Blank - Request Form'!$F$7=\"CIASI\",IF('Blank - Request Form'!N140=0,\"\",'Blank - Request Form'!N140),\"\"))","v":""},{"$f":"IF('Blank - Request Form'!$F$6=\"CIASI\",IF(OR('Blank - Request Form'!F140=\"000\",'Blank - Request Form'!F140=0),\"\",'Blank - Request Form'!F140),IF('Blank - Request Form'!$F$7=\"CIASI\",IF(OR('Blank - Request Form'!O140=\"000\",'Blank - Request Form'!O140=0),\"\",'Blank - Request Form'!O140),\"\"))","v":""},{"$f":"IF('Blank - Request Form'!$F$6=\"CIASI\",IF(OR('Blank - Request Form'!G140=\"0\",'Blank - Request Form'!G140=\"00000\",'Blank - Request Form'!G140=0),\"\",'Blank - Request Form'!G140),IF('Blank - Request Form'!$F$7=\"CIASI\",IF(OR('Blank - Request Form'!P140=\"0\",'Blank - Request Form'!P140=\"00000\",'Blank - Request Form'!P140=0),\"\",'Blank - Request Form'!P140),\"\"))","v":""},{"$f":"IF('Blank - Request Form'!$F$6=\"CIASI\",IF(OR('Blank - Request Form'!H140=\"0\",'Blank - Request Form'!H140=\"00000\",'Blank - Request Form'!H140=0),\"\",'Blank - Request Form'!H140),IF('Blank - Request Form'!$F$7=\"CIASI\",IF(OR('Blank - Request Form'!Q140=\"0\",'Blank - Request Form'!Q140=\"00000\",'Blank - Request Form'!Q140=0),\"\",'Blank - Request Form'!Q140),\"\"))","v":""},{"$f":"IF('Blank - Request Form'!$F$6=\"CIASI\",IF(OR('Blank - Request Form'!I140=\"0\",'Blank - Request Form'!I140=\"00000\",'Blank - Request Form'!I140=0),\"\",'Blank - Request Form'!I140),IF('Blank - Request Form'!$F$7=\"CIASI\",IF(OR('Blank - Request Form'!R140=\"0\",'Blank - Request Form'!R140=\"00000\",'Blank - Request Form'!R140=0),\"\",'Blank - Request Form'!R140),\"\"))","v":""},null,{"$f":"IF('Blank - Request Form'!$F$6=\"CIASI\",IF('Blank - Request Form'!K140=0,\"\",'Blank - Request Form'!K140),IF('Blank - Request Form'!$F$7=\"CIASI\",IF('Blank - Request Form'!T140=0,\"\",'Blank - Request Form'!T140),\"\"))","v":""},null,null,null,{"$f":"IF(M106<>\"\",'Blank - Request Form'!$M$2,\"\")","v":""},{"$f":"IF('Blank - Request Form'!$F$6=\"CIASI\",IF('Blank - Request Form'!J140=0,\"\",'Blank - Request Form'!J140),IF('Blank - Request Form'!$F$7=\"CIASI\",IF('Blank - Request Form'!S140=0,\"\",'Blank - Request Form'!S140),\"\"))","v":""},"",106]
[{"$f":"IF('Blank - Request Form'!$F$6=\"CIASI\",IF('Blank - Request Form'!D141=0,\"\",'Blank - Request Form'!D141),IF('Blank - Request Form'!$F$7=\"CIASI\",IF('Blank - Request Form'!M141=0,\"\",'Blank - Request Form'!M141),\"\"))","v":""},{"$f":"IF('Blank - Request Form'!$F$6=\"CIASI\",IF('Blank - Request Form'!E141=0,\"\",'Blank - Request Form'!E141),IF('Blank - Request Form'!$F$7=\"CIASI\",IF('Blank - Request Form'!N141=0,\"\",'Blank - Request Form'!N141),\"\"))","v":""},{"$f":"IF('Blank - Request Form'!$F$6=\"CIASI\",IF(OR('Blank - Request Form'!F141=\"000\",'Blank - Request Form'!F141=0),\"\",'Blank - Request Form'!F141),IF('Blank - Request Form'!$F$7=\"CIASI\",IF(OR('Blank - Request Form'!O141=\"000\",'Blank - Request Form'!O141=0),\"\",'Blank - Request Form'!O141),\"\"))","v":""},{"$f":"IF('Blank - Request Form'!$F$6=\"CIASI\",IF(OR('Blank - Request Form'!G141=\"0\",'Blank - Request Form'!G141=\"00000\",'Blank - Request Form'!G141=0),\"\",'Blank - Request Form'!G141),IF('Blank - Request Form'!$F$7=\"CIASI\",IF(OR('Blank - Request Form'!P141=\"0\",'Blank - Request Form'!P141=\"00000\",'Blank - Request Form'!P141=0),\"\",'Blank - Request Form'!P141),\"\"))","v":""},{"$f":"IF('Blank - Request Form'!$F$6=\"CIASI\",IF(OR('Blank - Request Form'!H141=\"0\",'Blank - Request Form'!H141=\"00000\",'Blank - Request Form'!H141=0),\"\",'Blank - Request Form'!H141),IF('Blank - Request Form'!$F$7=\"CIASI\",IF(OR('Blank - Request Form'!Q141=\"0\",'Blank - Request Form'!Q141=\"00000\",'Blank - Request Form'!Q141=0),\"\",'Blank - Request Form'!Q141),\"\"))","v":""},{"$f":"IF('Blank - Request Form'!$F$6=\"CIASI\",IF(OR('Blank - Request Form'!I141=\"0\",'Blank - Request Form'!I141=\"00000\",'Blank - Request Form'!I141=0),\"\",'Blank - Request Form'!I141),IF('Blank - Request Form'!$F$7=\"CIASI\",IF(OR('Blank - Request Form'!R141=\"0\",'Blank - Request Form'!R141=\"00000\",'Blank - Request Form'!R141=0),\"\",'Blank - Request Form'!R141),\"\"))","v":""},null,{"$f":"IF('Blank - Request Form'!$F$6=\"CIASI\",IF('Blank - Request Form'!K141=0,\"\",'Blank - Request Form'!K141),IF('Blank - Request Form'!$F$7=\"CIASI\",IF('Blank - Request Form'!T141=0,\"\",'Blank - Request Form'!T141),\"\"))","v":""},null,null,null,{"$f":"IF(M107<>\"\",'Blank - Request Form'!$M$2,\"\")","v":""},{"$f":"IF('Blank - Request Form'!$F$6=\"CIASI\",IF('Blank - Request Form'!J141=0,\"\",'Blank - Request Form'!J141),IF('Blank - Request Form'!$F$7=\"CIASI\",IF('Blank - Request Form'!S141=0,\"\",'Blank - Request Form'!S141),\"\"))","v":""},"",107]
[{"$f":"IF('Blank - Request Form'!$F$6=\"CIASI\",IF('Blank - Request Form'!D142=0,\"\",'Blank - Request Form'!D142),IF('Blank - Request Form'!$F$7=\"CIASI\",IF('Blank - Request Form'!M142=0,\"\",'Blank - Request Form'!M142),\"\"))","v":""},{"$f":"IF('Blank - Request Form'!$F$6=\"CIASI\",IF('Blank - Request Form'!E142=0,\"\",'Blank - Request Form'!E142),IF('Blank - Request Form'!$F$7=\"CIASI\",IF('Blank - Request Form'!N142=0,\"\",'Blank - Request Form'!N142),\"\"))","v":""},{"$f":"IF('Blank - Request Form'!$F$6=\"CIASI\",IF(OR('Blank - Request Form'!F142=\"000\",'Blank - Request Form'!F142=0),\"\",'Blank - Request Form'!F142),IF('Blank - Request Form'!$F$7=\"CIASI\",IF(OR('Blank - Request Form'!O142=\"000\",'Blank - Request Form'!O142=0),\"\",'Blank - Request Form'!O142),\"\"))","v":""},{"$f":"IF('Blank - Request Form'!$F$6=\"CIASI\",IF(OR('Blank - Request Form'!G142=\"0\",'Blank - Request Form'!G142=\"00000\",'Blank - Request Form'!G142=0),\"\",'Blank - Request Form'!G142),IF('Blank - Request Form'!$F$7=\"CIASI\",IF(OR('Blank - Request Form'!P142=\"0\",'Blank - Request Form'!P142=\"00000\",'Blank - Request Form'!P142=0),\"\",'Blank - Request Form'!P142),\"\"))","v":""},{"$f":"IF('Blank - Request Form'!$F$6=\"CIASI\",IF(OR('Blank - Request Form'!H142=\"0\",'Blank - Request Form'!H142=\"00000\",'Blank - Request Form'!H142=0),\"\",'Blank - Request Form'!H142),IF('Blank - Request Form'!$F$7=\"CIASI\",IF(OR('Blank - Request Form'!Q142=\"0\",'Blank - Request Form'!Q142=\"00000\",'Blank - Request Form'!Q142=0),\"\",'Blank - Request Form'!Q142),\"\"))","v":""},{"$f":"IF('Blank - Request Form'!$F$6=\"CIASI\",IF(OR('Blank - Request Form'!I142=\"0\",'Blank - Request Form'!I142=\"00000\",'Blank - Request Form'!I142=0),\"\",'Blank - Request Form'!I142),IF('Blank - Request Form'!$F$7=\"CIASI\",IF(OR('Blank - Request Form'!R142=\"0\",'Blank - Request Form'!R142=\"00000\",'Blank - Request Form'!R142=0),\"\",'Blank - Request Form'!R142),\"\"))","v":""},null,{"$f":"IF('Blank - Request Form'!$F$6=\"CIASI\",IF('Blank - Request Form'!K142=0,\"\",'Blank - Request Form'!K142),IF('Blank - Request Form'!$F$7=\"CIASI\",IF('Blank - Request Form'!T142=0,\"\",'Blank - Request Form'!T142),\"\"))","v":""},null,null,null,{"$f":"IF(M108<>\"\",'Blank - Request Form'!$M$2,\"\")","v":""},{"$f":"IF('Blank - Request Form'!$F$6=\"CIASI\",IF('Blank - Request Form'!J142=0,\"\",'Blank - Request Form'!J142),IF('Blank - Request Form'!$F$7=\"CIASI\",IF('Blank - Request Form'!S142=0,\"\",'Blank - Request Form'!S142),\"\"))","v":""},"",108]
[{"$f":"IF('Blank - Request Form'!$F$6=\"CIASI\",IF('Blank - Request Form'!D143=0,\"\",'Blank - Request Form'!D143),IF('Blank - Request Form'!$F$7=\"CIASI\",IF('Blank - Request Form'!M143=0,\"\",'Blank - Request Form'!M143),\"\"))","v":""},{"$f":"IF('Blank - Request Form'!$F$6=\"CIASI\",IF('Blank - Request Form'!E143=0,\"\",'Blank - Request Form'!E143),IF('Blank - Request Form'!$F$7=\"CIASI\",IF('Blank - Request Form'!N143=0,\"\",'Blank - Request Form'!N143),\"\"))","v":""},{"$f":"IF('Blank - Request Form'!$F$6=\"CIASI\",IF(OR('Blank - Request Form'!F143=\"000\",'Blank - Request Form'!F143=0),\"\",'Blank - Request Form'!F143),IF('Blank - Request Form'!$F$7=\"CIASI\",IF(OR('Blank - Request Form'!O143=\"000\",'Blank - Request Form'!O143=0),\"\",'Blank - Request Form'!O143),\"\"))","v":""},{"$f":"IF('Blank - Request Form'!$F$6=\"CIASI\",IF(OR('Blank - Request Form'!G143=\"0\",'Blank - Request Form'!G143=\"00000\",'Blank - Request Form'!G143=0),\"\",'Blank - Request Form'!G143),IF('Blank - Request Form'!$F$7=\"CIASI\",IF(OR('Blank - Request Form'!P143=\"0\",'Blank - Request Form'!P143=\"00000\",'Blank - Request Form'!P143=0),\"\",'Blank - Request Form'!P143),\"\"))","v":""},{"$f":"IF('Blank - Request Form'!$F$6=\"CIASI\",IF(OR('Blank - Request Form'!H143=\"0\",'Blank - Request Form'!H143=\"00000\",'Blank - Request Form'!H143=0),\"\",'Blank - Request Form'!H143),IF('Blank - Request Form'!$F$7=\"CIASI\",IF(OR('Blank - Request Form'!Q143=\"0\",'Blank - Request Form'!Q143=\"00000\",'Blank - Request Form'!Q143=0),\"\",'Blank - Request Form'!Q143),\"\"))","v":""},{"$f":"IF('Blank - Request Form'!$F$6=\"CIASI\",IF(OR('Blank - Request Form'!I143=\"0\",'Blank - Request Form'!I143=\"00000\",'Blank - Request Form'!I143=0),\"\",'Blank - Request Form'!I143),IF('Blank - Request Form'!$F$7=\"CIASI\",IF(OR('Blank - Request Form'!R143=\"0\",'Blank - Request Form'!R143=\"00000\",'Blank - Request Form'!R143=0),\"\",'Blank - Request Form'!R143),\"\"))","v":""},null,{"$f":"IF('Blank - Request Form'!$F$6=\"CIASI\",IF('Blank - Request Form'!K143=0,\"\",'Blank - Request Form'!K143),IF('Blank - Request Form'!$F$7=\"CIASI\",IF('Blank - Request Form'!T143=0,\"\",'Blank - Request Form'!T143),\"\"))","v":""},null,null,null,{"$f":"IF(M109<>\"\",'Blank - Request Form'!$M$2,\"\")","v":""},{"$f":"IF('Blank - Request Form'!$F$6=\"CIASI\",IF('Blank - Request Form'!J143=0,\"\",'Blank - Request Form'!J143),IF('Blank - Request Form'!$F$7=\"CIASI\",IF('Blank - Request Form'!S143=0,\"\",'Blank - Request Form'!S143),\"\"))","v":""},{"$f":"IF(M109<>\"\",O109,\"\")","v":""},109]
[{"$f":"IF('Blank - Request Form'!$F$6=\"CIASI\",IF('Blank - Request Form'!D144=0,\"\",'Blank - Request Form'!D144),IF('Blank - Request Form'!$F$7=\"CIASI\",IF('Blank - Request Form'!M144=0,\"\",'Blank - Request Form'!M144),\"\"))","v":""},{"$f":"IF('Blank - Request Form'!$F$6=\"CIASI\",IF('Blank - Request Form'!E144=0,\"\",'Blank - Request Form'!E144),IF('Blank - Request Form'!$F$7=\"CIASI\",IF('Blank - Request Form'!N144=0,\"\",'Blank - Request Form'!N144),\"\"))","v":""},{"$f":"IF('Blank - Request Form'!$F$6=\"CIASI\",IF(OR('Blank - Request Form'!F144=\"000\",'Blank - Request Form'!F144=0),\"\",'Blank - Request Form'!F144),IF('Blank - Request Form'!$F$7=\"CIASI\",IF(OR('Blank - Request Form'!O144=\"000\",'Blank - Request Form'!O144=0),\"\",'Blank - Request Form'!O144),\"\"))","v":""},{"$f":"IF('Blank - Request Form'!$F$6=\"CIASI\",IF(OR('Blank - Request Form'!G144=\"0\",'Blank - Request Form'!G144=\"00000\",'Blank - Request Form'!G144=0),\"\",'Blank - Request Form'!G144),IF('Blank - Request Form'!$F$7=\"CIASI\",IF(OR('Blank - Request Form'!P144=\"0\",'Blank - Request Form'!P144=\"00000\",'Blank - Request Form'!P144=0),\"\",'Blank - Request Form'!P144),\"\"))","v":""},{"$f":"IF('Blank - Request Form'!$F$6=\"CIASI\",IF(OR('Blank - Request Form'!H144=\"0\",'Blank - Request Form'!H144=\"00000\",'Blank - Request Form'!H144=0),\"\",'Blank - Request Form'!H144),IF('Blank - Request Form'!$F$7=\"CIASI\",IF(OR('Blank - Request Form'!Q144=\"0\",'Blank - Request Form'!Q144=\"00000\",'Blank - Request Form'!Q144=0),\"\",'Blank - Request Form'!Q144),\"\"))","v":""},{"$f":"IF('Blank - Request Form'!$F$6=\"CIASI\",IF(OR('Blank - Request Form'!I144=\"0\",'Blank - Request Form'!I144=\"00000\",'Blank - Request Form'!I144=0),\"\",'Blank - Request Form'!I144),IF('Blank - Request Form'!$F$7=\"CIASI\",IF(OR('Blank - Request Form'!R144=\"0\",'Blank - Request Form'!R144=\"00000\",'Blank - Request Form'!R144=0),\"\",'Blank - Request Form'!R144),\"\"))","v":""},null,{"$f":"IF('Blank - Request Form'!$F$6=\"CIASI\",IF('Blank - Request Form'!K144=0,\"\",'Blank - Request Form'!K144),IF('Blank - Request Form'!$F$7=\"CIASI\",IF('Blank - Request Form'!T144=0,\"\",'Blank - Request Form'!T144),\"\"))","v":""},null,null,null,{"$f":"IF(M110<>\"\",'Blank - Request Form'!$M$2,\"\")","v":""},{"$f":"IF('Blank - Request Form'!$F$6=\"CIASI\",IF('Blank - Request Form'!J144=0,\"\",'Blank - Request Form'!J144),IF('Blank - Request Form'!$F$7=\"CIASI\",IF('Blank - Request Form'!S144=0,\"\",'Blank - Request Form'!S144),\"\"))","v":""},"",110]
[{"$f":"IF('Blank - Request Form'!$F$6=\"CIASI\",IF('Blank - Request Form'!D145=0,\"\",'Blank - Request Form'!D145),IF('Blank - Request Form'!$F$7=\"CIASI\",IF('Blank - Request Form'!M145=0,\"\",'Blank - Request Form'!M145),\"\"))","v":""},{"$f":"IF('Blank - Request Form'!$F$6=\"CIASI\",IF('Blank - Request Form'!E145=0,\"\",'Blank - Request Form'!E145),IF('Blank - Request Form'!$F$7=\"CIASI\",IF('Blank - Request Form'!N145=0,\"\",'Blank - Request Form'!N145),\"\"))","v":""},{"$f":"IF('Blank - Request Form'!$F$6=\"CIASI\",IF(OR('Blank - Request Form'!F145=\"000\",'Blank - Request Form'!F145=0),\"\",'Blank - Request Form'!F145),IF('Blank - Request Form'!$F$7=\"CIASI\",IF(OR('Blank - Request Form'!O145=\"000\",'Blank - Request Form'!O145=0),\"\",'Blank - Request Form'!O145),\"\"))","v":""},{"$f":"IF('Blank - Request Form'!$F$6=\"CIASI\",IF(OR('Blank - Request Form'!G145=\"0\",'Blank - Request Form'!G145=\"00000\",'Blank - Request Form'!G145=0),\"\",'Blank - Request Form'!G145),IF('Blank - Request Form'!$F$7=\"CIASI\",IF(OR('Blank - Request Form'!P145=\"0\",'Blank - Request Form'!P145=\"00000\",'Blank - Request Form'!P145=0),\"\",'Blank - Request Form'!P145),\"\"))","v":""},{"$f":"IF('Blank - Request Form'!$F$6=\"CIASI\",IF(OR('Blank - Request Form'!H145=\"0\",'Blank - Request Form'!H145=\"00000\",'Blank - Request Form'!H145=0),\"\",'Blank - Request Form'!H145),IF('Blank - Request Form'!$F$7=\"CIASI\",IF(OR('Blank - Request Form'!Q145=\"0\",'Blank - Request Form'!Q145=\"00000\",'Blank - Request Form'!Q145=0),\"\",'Blank - Request Form'!Q145),\"\"))","v":""},{"$f":"IF('Blank - Request Form'!$F$6=\"CIASI\",IF(OR('Blank - Request Form'!I145=\"0\",'Blank - Request Form'!I145=\"00000\",'Blank - Request Form'!I145=0),\"\",'Blank - Request Form'!I145),IF('Blank - Request Form'!$F$7=\"CIASI\",IF(OR('Blank - Request Form'!R145=\"0\",'Blank - Request Form'!R145=\"00000\",'Blank - Request Form'!R145=0),\"\",'Blank - Request Form'!R145),\"\"))","v":""},null,{"$f":"IF('Blank - Request Form'!$F$6=\"CIASI\",IF('Blank - Request Form'!K145=0,\"\",'Blank - Request Form'!K145),IF('Blank - Request Form'!$F$7=\"CIASI\",IF('Blank - Request Form'!T145=0,\"\",'Blank - Request Form'!T145),\"\"))","v":""},null,null,null,{"$f":"IF(M111<>\"\",'Blank - Request Form'!$M$2,\"\")","v":""},{"$f":"IF('Blank - Request Form'!$F$6=\"CIASI\",IF('Blank - Request Form'!J145=0,\"\",'Blank - Request Form'!J145),IF('Blank - Request Form'!$F$7=\"CIASI\",IF('Blank - Request Form'!S145=0,\"\",'Blank - Request Form'!S145),\"\"))","v":""},"",111]
[{"$f":"IF('Blank - Request Form'!$F$6=\"CIASI\",IF('Blank - Request Form'!D146=0,\"\",'Blank - Request Form'!D146),IF('Blank - Request Form'!$F$7=\"CIASI\",IF('Blank - Request Form'!M146=0,\"\",'Blank - Request Form'!M146),\"\"))","v":""},{"$f":"IF('Blank - Request Form'!$F$6=\"CIASI\",IF('Blank - Request Form'!E146=0,\"\",'Blank - Request Form'!E146),IF('Blank - Request Form'!$F$7=\"CIASI\",IF('Blank - Request Form'!N146=0,\"\",'Blank - Request Form'!N146),\"\"))","v":""},{"$f":"IF('Blank - Request Form'!$F$6=\"CIASI\",IF(OR('Blank - Request Form'!F146=\"000\",'Blank - Request Form'!F146=0),\"\",'Blank - Request Form'!F146),IF('Blank - Request Form'!$F$7=\"CIASI\",IF(OR('Blank - Request Form'!O146=\"000\",'Blank - Request Form'!O146=0),\"\",'Blank - Request Form'!O146),\"\"))","v":""},{"$f":"IF('Blank - Request Form'!$F$6=\"CIASI\",IF(OR('Blank - Request Form'!G146=\"0\",'Blank - Request Form'!G146=\"00000\",'Blank - Request Form'!G146=0),\"\",'Blank - Request Form'!G146),IF('Blank - Request Form'!$F$7=\"CIASI\",IF(OR('Blank - Request Form'!P146=\"0\",'Blank - Request Form'!P146=\"00000\",'Blank - Request Form'!P146=0),\"\",'Blank - Request Form'!P146),\"\"))","v":""},{"$f":"IF('Blank - Request Form'!$F$6=\"CIASI\",IF(OR('Blank - Request Form'!H146=\"0\",'Blank - Request Form'!H146=\"00000\",'Blank - Request Form'!H146=0),\"\",'Blank - Request Form'!H146),IF('Blank - Request Form'!$F$7=\"CIASI\",IF(OR('Blank - Request Form'!Q146=\"0\",'Blank - Request Form'!Q146=\"00000\",'Blank - Request Form'!Q146=0),\"\",'Blank - Request Form'!Q146),\"\"))","v":""},{"$f":"IF('Blank - Request Form'!$F$6=\"CIASI\",IF(OR('Blank - Request Form'!I146=\"0\",'Blank - Request Form'!I146=\"00000\",'Blank - Request Form'!I146=0),\"\",'Blank - Request Form'!I146),IF('Blank - Request Form'!$F$7=\"CIASI\",IF(OR('Blank - Request Form'!R146=\"0\",'Blank - Request Form'!R146=\"00000\",'Blank - Request Form'!R146=0),\"\",'Blank - Request Form'!R146),\"\"))","v":""},null,{"$f":"IF('Blank - Request Form'!$F$6=\"CIASI\",IF('Blank - Request Form'!K146=0,\"\",'Blank - Request Form'!K146),IF('Blank - Request Form'!$F$7=\"CIASI\",IF('Blank - Request Form'!T146=0,\"\",'Blank - Request Form'!T146),\"\"))","v":""},null,null,null,{"$f":"IF(M112<>\"\",'Blank - Request Form'!$M$2,\"\")","v":""},{"$f":"IF('Blank - Request Form'!$F$6=\"CIASI\",IF('Blank - Request Form'!J146=0,\"\",'Blank - Request Form'!J146),IF('Blank - Request Form'!$F$7=\"CIASI\",IF('Blank - Request Form'!S146=0,\"\",'Blank - Request Form'!S146),\"\"))","v":""},"",112]
[{"$f":"IF('Blank - Request Form'!$F$6=\"CIASI\",IF('Blank - Request Form'!D147=0,\"\",'Blank - Request Form'!D147),IF('Blank - Request Form'!$F$7=\"CIASI\",IF('Blank - Request Form'!M147=0,\"\",'Blank - Request Form'!M147),\"\"))","v":""},{"$f":"IF('Blank - Request Form'!$F$6=\"CIASI\",IF('Blank - Request Form'!E147=0,\"\",'Blank - Request Form'!E147),IF('Blank - Request Form'!$F$7=\"CIASI\",IF('Blank - Request Form'!N147=0,\"\",'Blank - Request Form'!N147),\"\"))","v":""},{"$f":"IF('Blank - Request Form'!$F$6=\"CIASI\",IF(OR('Blank - Request Form'!F147=\"000\",'Blank - Request Form'!F147=0),\"\",'Blank - Request Form'!F147),IF('Blank - Request Form'!$F$7=\"CIASI\",IF(OR('Blank - Request Form'!O147=\"000\",'Blank - Request Form'!O147=0),\"\",'Blank - Request Form'!O147),\"\"))","v":""},{"$f":"IF('Blank - Request Form'!$F$6=\"CIASI\",IF(OR('Blank - Request Form'!G147=\"0\",'Blank - Request Form'!G147=\"00000\",'Blank - Request Form'!G147=0),\"\",'Blank - Request Form'!G147),IF('Blank - Request Form'!$F$7=\"CIASI\",IF(OR('Blank - Request Form'!P147=\"0\",'Blank - Request Form'!P147=\"00000\",'Blank - Request Form'!P147=0),\"\",'Blank - Request Form'!P147),\"\"))","v":""},{"$f":"IF('Blank - Request Form'!$F$6=\"CIASI\",IF(OR('Blank - Request Form'!H147=\"0\",'Blank - Request Form'!H147=\"00000\",'Blank - Request Form'!H147=0),\"\",'Blank - Request Form'!H147),IF('Blank - Request Form'!$F$7=\"CIASI\",IF(OR('Blank - Request Form'!Q147=\"0\",'Blank - Request Form'!Q147=\"00000\",'Blank - Request Form'!Q147=0),\"\",'Blank - Request Form'!Q147),\"\"))","v":""},{"$f":"IF('Blank - Request Form'!$F$6=\"CIASI\",IF(OR('Blank - Request Form'!I147=\"0\",'Blank - Request Form'!I147=\"00000\",'Blank - Request Form'!I147=0),\"\",'Blank - Request Form'!I147),IF('Blank - Request Form'!$F$7=\"CIASI\",IF(OR('Blank - Request Form'!R147=\"0\",'Blank - Request Form'!R147=\"00000\",'Blank - Request Form'!R147=0),\"\",'Blank - Request Form'!R147),\"\"))","v":""},null,{"$f":"IF('Blank - Request Form'!$F$6=\"CIASI\",IF('Blank - Request Form'!K147=0,\"\",'Blank - Request Form'!K147),IF('Blank - Request Form'!$F$7=\"CIASI\",IF('Blank - Request Form'!T147=0,\"\",'Blank - Request Form'!T147),\"\"))","v":""},null,null,null,{"$f":"IF(M113<>\"\",'Blank - Request Form'!$M$2,\"\")","v":""},{"$f":"IF('Blank - Request Form'!$F$6=\"CIASI\",IF('Blank - Request Form'!J147=0,\"\",'Blank - Request Form'!J147),IF('Blank - Request Form'!$F$7=\"CIASI\",IF('Blank - Request Form'!S147=0,\"\",'Blank - Request Form'!S147),\"\"))","v":""},"",113]
[{"$f":"IF('Blank - Request Form'!$F$6=\"CIASI\",IF('Blank - Request Form'!D148=0,\"\",'Blank - Request Form'!D148),IF('Blank - Request Form'!$F$7=\"CIASI\",IF('Blank - Request Form'!M148=0,\"\",'Blank - Request Form'!M148),\"\"))","v":""},{"$f":"IF('Blank - Request Form'!$F$6=\"CIASI\",IF('Blank - Request Form'!E148=0,\"\",'Blank - Request Form'!E148),IF('Blank - Request Form'!$F$7=\"CIASI\",IF('Blank - Request Form'!N148=0,\"\",'Blank - Request Form'!N148),\"\"))","v":""},{"$f":"IF('Blank - Request Form'!$F$6=\"CIASI\",IF(OR('Blank - Request Form'!F148=\"000\",'Blank - Request Form'!F148=0),\"\",'Blank - Request Form'!F148),IF('Blank - Request Form'!$F$7=\"CIASI\",IF(OR('Blank - Request Form'!O148=\"000\",'Blank - Request Form'!O148=0),\"\",'Blank - Request Form'!O148),\"\"))","v":""},{"$f":"IF('Blank - Request Form'!$F$6=\"CIASI\",IF(OR('Blank - Request Form'!G148=\"0\",'Blank - Request Form'!G148=\"00000\",'Blank - Request Form'!G148=0),\"\",'Blank - Request Form'!G148),IF('Blank - Request Form'!$F$7=\"CIASI\",IF(OR('Blank - Request Form'!P148=\"0\",'Blank - Request Form'!P148=\"00000\",'Blank - Request Form'!P148=0),\"\",'Blank - Request Form'!P148),\"\"))","v":""},{"$f":"IF('Blank - Request Form'!$F$6=\"CIASI\",IF(OR('Blank - Request Form'!H148=\"0\",'Blank - Request Form'!H148=\"00000\",'Blank - Request Form'!H148=0),\"\",'Blank - Request Form'!H148),IF('Blank - Request Form'!$F$7=\"CIASI\",IF(OR('Blank - Request Form'!Q148=\"0\",'Blank - Request Form'!Q148=\"00000\",'Blank - Request Form'!Q148=0),\"\",'Blank - Request Form'!Q148),\"\"))","v":""},{"$f":"IF('Blank - Request Form'!$F$6=\"CIASI\",IF(OR('Blank - Request Form'!I148=\"0\",'Blank - Request Form'!I148=\"00000\",'Blank - Request Form'!I148=0),\"\",'Blank - Request Form'!I148),IF('Blank - Request Form'!$F$7=\"CIASI\",IF(OR('Blank - Request Form'!R148=\"0\",'Blank - Request Form'!R148=\"00000\",'Blank - Request Form'!R148=0),\"\",'Blank - Request Form'!R148),\"\"))","v":""},null,{"$f":"IF('Blank - Request Form'!$F$6=\"CIASI\",IF('Blank - Request Form'!K148=0,\"\",'Blank - Request Form'!K148),IF('Blank - Request Form'!$F$7=\"CIASI\",IF('Blank - Request Form'!T148=0,\"\",'Blank - Request Form'!T148),\"\"))","v":""},null,null,null,{"$f":"IF(M114<>\"\",'Blank - Request Form'!$M$2,\"\")","v":""},{"$f":"IF('Blank - Request Form'!$F$6=\"CIASI\",IF('Blank - Request Form'!J148=0,\"\",'Blank - Request Form'!J148),IF('Blank - Request Form'!$F$7=\"CIASI\",IF('Blank - Request Form'!S148=0,\"\",'Blank - Request Form'!S148),\"\"))","v":""},"",114]
[{"$f":"IF('Blank - Request Form'!$F$6=\"CIASI\",IF('Blank - Request Form'!D149=0,\"\",'Blank - Request Form'!D149),IF('Blank - Request Form'!$F$7=\"CIASI\",IF('Blank - Request Form'!M149=0,\"\",'Blank - Request Form'!M149),\"\"))","v":""},{"$f":"IF('Blank - Request Form'!$F$6=\"CIASI\",IF('Blank - Request Form'!E149=0,\"\",'Blank - Request Form'!E149),IF('Blank - Request Form'!$F$7=\"CIASI\",IF('Blank - Request Form'!N149=0,\"\",'Blank - Request Form'!N149),\"\"))","v":""},{"$f":"IF('Blank - Request Form'!$F$6=\"CIASI\",IF(OR('Blank - Request Form'!F149=\"000\",'Blank - Request Form'!F149=0),\"\",'Blank - Request Form'!F149),IF('Blank - Request Form'!$F$7=\"CIASI\",IF(OR('Blank - Request Form'!O149=\"000\",'Blank - Request Form'!O149=0),\"\",'Blank - Request Form'!O149),\"\"))","v":""},{"$f":"IF('Blank - Request Form'!$F$6=\"CIASI\",IF(OR('Blank - Request Form'!G149=\"0\",'Blank - Request Form'!G149=\"00000\",'Blank - Request Form'!G149=0),\"\",'Blank - Request Form'!G149),IF('Blank - Request Form'!$F$7=\"CIASI\",IF(OR('Blank - Request Form'!P149=\"0\",'Blank - Request Form'!P149=\"00000\",'Blank - Request Form'!P149=0),\"\",'Blank - Request Form'!P149),\"\"))","v":""},{"$f":"IF('Blank - Request Form'!$F$6=\"CIASI\",IF(OR('Blank - Request Form'!H149=\"0\",'Blank - Request Form'!H149=\"00000\",'Blank - Request Form'!H149=0),\"\",'Blank - Request Form'!H149),IF('Blank - Request Form'!$F$7=\"CIASI\",IF(OR('Blank - Request Form'!Q149=\"0\",'Blank - Request Form'!Q149=\"00000\",'Blank - Request Form'!Q149=0),\"\",'Blank - Request Form'!Q149),\"\"))","v":""},{"$f":"IF('Blank - Request Form'!$F$6=\"CIASI\",IF(OR('Blank - Request Form'!I149=\"0\",'Blank - Request Form'!I149=\"00000\",'Blank - Request Form'!I149=0),\"\",'Blank - Request Form'!I149),IF('Blank - Request Form'!$F$7=\"CIASI\",IF(OR('Blank - Request Form'!R149=\"0\",'Blank - Request Form'!R149=\"00000\",'Blank - Request Form'!R149=0),\"\",'Blank - Request Form'!R149),\"\"))","v":""},null,{"$f":"IF('Blank - Request Form'!$F$6=\"CIASI\",IF('Blank - Request Form'!K149=0,\"\",'Blank - Request Form'!K149),IF('Blank - Request Form'!$F$7=\"CIASI\",IF('Blank - Request Form'!T149=0,\"\",'Blank - Request Form'!T149),\"\"))","v":""},null,null,null,{"$f":"IF(M115<>\"\",'Blank - Request Form'!$M$2,\"\")","v":""},{"$f":"IF('Blank - Request Form'!$F$6=\"CIASI\",IF('Blank - Request Form'!J149=0,\"\",'Blank - Request Form'!J149),IF('Blank - Request Form'!$F$7=\"CIASI\",IF('Blank - Request Form'!S149=0,\"\",'Blank - Request Form'!S149),\"\"))","v":""},"",115]
[{"$f":"IF('Blank - Request Form'!$F$6=\"CIASI\",IF('Blank - Request Form'!D150=0,\"\",'Blank - Request Form'!D150),IF('Blank - Request Form'!$F$7=\"CIASI\",IF('Blank - Request Form'!M150=0,\"\",'Blank - Request Form'!M150),\"\"))","v":""},{"$f":"IF('Blank - Request Form'!$F$6=\"CIASI\",IF('Blank - Request Form'!E150=0,\"\",'Blank - Request Form'!E150),IF('Blank - Request Form'!$F$7=\"CIASI\",IF('Blank - Request Form'!N150=0,\"\",'Blank - Request Form'!N150),\"\"))","v":""},{"$f":"IF('Blank - Request Form'!$F$6=\"CIASI\",IF(OR('Blank - Request Form'!F150=\"000\",'Blank - Request Form'!F150=0),\"\",'Blank - Request Form'!F150),IF('Blank - Request Form'!$F$7=\"CIASI\",IF(OR('Blank - Request Form'!O150=\"000\",'Blank - Request Form'!O150=0),\"\",'Blank - Request Form'!O150),\"\"))","v":""},{"$f":"IF('Blank - Request Form'!$F$6=\"CIASI\",IF(OR('Blank - Request Form'!G150=\"0\",'Blank - Request Form'!G150=\"00000\",'Blank - Request Form'!G150=0),\"\",'Blank - Request Form'!G150),IF('Blank - Request Form'!$F$7=\"CIASI\",IF(OR('Blank - Request Form'!P150=\"0\",'Blank - Request Form'!P150=\"00000\",'Blank - Request Form'!P150=0),\"\",'Blank - Request Form'!P150),\"\"))","v":""},{"$f":"IF('Blank - Request Form'!$F$6=\"CIASI\",IF(OR('Blank - Request Form'!H150=\"0\",'Blank - Request Form'!H150=\"00000\",'Blank - Request Form'!H150=0),\"\",'Blank - Request Form'!H150),IF('Blank - Request Form'!$F$7=\"CIASI\",IF(OR('Blank - Request Form'!Q150=\"0\",'Blank - Request Form'!Q150=\"00000\",'Blank - Request Form'!Q150=0),\"\",'Blank - Request Form'!Q150),\"\"))","v":""},{"$f":"IF('Blank - Request Form'!$F$6=\"CIASI\",IF(OR('Blank - Request Form'!I150=\"0\",'Blank - Request Form'!I150=\"00000\",'Blank - Request Form'!I150=0),\"\",'Blank - Request Form'!I150),IF('Blank - Request Form'!$F$7=\"CIASI\",IF(OR('Blank - Request Form'!R150=\"0\",'Blank - Request Form'!R150=\"00000\",'Blank - Request Form'!R150=0),\"\",'Blank - Request Form'!R150),\"\"))","v":""},null,{"$f":"IF('Blank - Request Form'!$F$6=\"CIASI\",IF('Blank - Request Form'!K150=0,\"\",'Blank - Request Form'!K150),IF('Blank - Request Form'!$F$7=\"CIASI\",IF('Blank - Request Form'!T150=0,\"\",'Blank - Request Form'!T150),\"\"))","v":""},null,null,null,{"$f":"IF(M116<>\"\",'Blank - Request Form'!$M$2,\"\")","v":""},{"$f":"IF('Blank - Request Form'!$F$6=\"CIASI\",IF('Blank - Request Form'!J150=0,\"\",'Blank - Request Form'!J150),IF('Blank - Request Form'!$F$7=\"CIASI\",IF('Blank - Request Form'!S150=0,\"\",'Blank - Request Form'!S150),\"\"))","v":""},"",116]
[{"$f":"IF('Blank - Request Form'!$F$6=\"CIASI\",IF('Blank - Request Form'!D151=0,\"\",'Blank - Request Form'!D151),IF('Blank - Request Form'!$F$7=\"CIASI\",IF('Blank - Request Form'!M151=0,\"\",'Blank - Request Form'!M151),\"\"))","v":""},{"$f":"IF('Blank - Request Form'!$F$6=\"CIASI\",IF('Blank - Request Form'!E151=0,\"\",'Blank - Request Form'!E151),IF('Blank - Request Form'!$F$7=\"CIASI\",IF('Blank - Request Form'!N151=0,\"\",'Blank - Request Form'!N151),\"\"))","v":""},{"$f":"IF('Blank - Request Form'!$F$6=\"CIASI\",IF(OR('Blank - Request Form'!F151=\"000\",'Blank - Request Form'!F151=0),\"\",'Blank - Request Form'!F151),IF('Blank - Request Form'!$F$7=\"CIASI\",IF(OR('Blank - Request Form'!O151=\"000\",'Blank - Request Form'!O151=0),\"\",'Blank - Request Form'!O151),\"\"))","v":""},{"$f":"IF('Blank - Request Form'!$F$6=\"CIASI\",IF(OR('Blank - Request Form'!G151=\"0\",'Blank - Request Form'!G151=\"00000\",'Blank - Request Form'!G151=0),\"\",'Blank - Request Form'!G151),IF('Blank - Request Form'!$F$7=\"CIASI\",IF(OR('Blank - Request Form'!P151=\"0\",'Blank - Request Form'!P151=\"00000\",'Blank - Request Form'!P151=0),\"\",'Blank - Request Form'!P151),\"\"))","v":""},{"$f":"IF('Blank - Request Form'!$F$6=\"CIASI\",IF(OR('Blank - Request Form'!H151=\"0\",'Blank - Request Form'!H151=\"00000\",'Blank - Request Form'!H151=0),\"\",'Blank - Request Form'!H151),IF('Blank - Request Form'!$F$7=\"CIASI\",IF(OR('Blank - Request Form'!Q151=\"0\",'Blank - Request Form'!Q151=\"00000\",'Blank - Request Form'!Q151=0),\"\",'Blank - Request Form'!Q151),\"\"))","v":""},{"$f":"IF('Blank - Request Form'!$F$6=\"CIASI\",IF(OR('Blank - Request Form'!I151=\"0\",'Blank - Request Form'!I151=\"00000\",'Blank - Request Form'!I151=0),\"\",'Blank - Request Form'!I151),IF('Blank - Request Form'!$F$7=\"CIASI\",IF(OR('Blank - Request Form'!R151=\"0\",'Blank - Request Form'!R151=\"00000\",'Blank - Request Form'!R151=0),\"\",'Blank - Request Form'!R151),\"\"))","v":""},null,{"$f":"IF('Blank - Request Form'!$F$6=\"CIASI\",IF('Blank - Request Form'!K151=0,\"\",'Blank - Request Form'!K151),IF('Blank - Request Form'!$F$7=\"CIASI\",IF('Blank - Request Form'!T151=0,\"\",'Blank - Request Form'!T151),\"\"))","v":""},null,null,null,{"$f":"IF(M117<>\"\",'Blank - Request Form'!$M$2,\"\")","v":""},{"$f":"IF('Blank - Request Form'!$F$6=\"CIASI\",IF('Blank - Request Form'!J151=0,\"\",'Blank - Request Form'!J151),IF('Blank - Request Form'!$F$7=\"CIASI\",IF('Blank - Request Form'!S151=0,\"\",'Blank - Request Form'!S151),\"\"))","v":""},"",117]
[{"$f":"IF('Blank - Request Form'!$F$6=\"CIASI\",IF('Blank - Request Form'!D152=0,\"\",'Blank - Request Form'!D152),IF('Blank - Request Form'!$F$7=\"CIASI\",IF('Blank - Request Form'!M152=0,\"\",'Blank - Request Form'!M152),\"\"))","v":""},{"$f":"IF('Blank - Request Form'!$F$6=\"CIASI\",IF('Blank - Request Form'!E152=0,\"\",'Blank - Request Form'!E152),IF('Blank - Request Form'!$F$7=\"CIASI\",IF('Blank - Request Form'!N152=0,\"\",'Blank - Request Form'!N152),\"\"))","v":""},{"$f":"IF('Blank - Request Form'!$F$6=\"CIASI\",IF(OR('Blank - Request Form'!F152=\"000\",'Blank - Request Form'!F152=0),\"\",'Blank - Request Form'!F152),IF('Blank - Request Form'!$F$7=\"CIASI\",IF(OR('Blank - Request Form'!O152=\"000\",'Blank - Request Form'!O152=0),\"\",'Blank - Request Form'!O152),\"\"))","v":""},{"$f":"IF('Blank - Request Form'!$F$6=\"CIASI\",IF(OR('Blank - Request Form'!G152=\"0\",'Blank - Request Form'!G152=\"00000\",'Blank - Request Form'!G152=0),\"\",'Blank - Request Form'!G152),IF('Blank - Request Form'!$F$7=\"CIASI\",IF(OR('Blank - Request Form'!P152=\"0\",'Blank - Request Form'!P152=\"00000\",'Blank - Request Form'!P152=0),\"\",'Blank - Request Form'!P152),\"\"))","v":""},{"$f":"IF('Blank - Request Form'!$F$6=\"CIASI\",IF(OR('Blank - Request Form'!H152=\"0\",'Blank - Request Form'!H152=\"00000\",'Blank - Request Form'!H152=0),\"\",'Blank - Request Form'!H152),IF('Blank - Request Form'!$F$7=\"CIASI\",IF(OR('Blank - Request Form'!Q152=\"0\",'Blank - Request Form'!Q152=\"00000\",'Blank - Request Form'!Q152=0),\"\",'Blank - Request Form'!Q152),\"\"))","v":""},{"$f":"IF('Blank - Request Form'!$F$6=\"CIASI\",IF(OR('Blank - Request Form'!I152=\"0\",'Blank - Request Form'!I152=\"00000\",'Blank - Request Form'!I152=0),\"\",'Blank - Request Form'!I152),IF('Blank - Request Form'!$F$7=\"CIASI\",IF(OR('Blank - Request Form'!R152=\"0\",'Blank - Request Form'!R152=\"00000\",'Blank - Request Form'!R152=0),\"\",'Blank - Request Form'!R152),\"\"))","v":""},null,{"$f":"IF('Blank - Request Form'!$F$6=\"CIASI\",IF('Blank - Request Form'!K152=0,\"\",'Blank - Request Form'!K152),IF('Blank - Request Form'!$F$7=\"CIASI\",IF('Blank - Request Form'!T152=0,\"\",'Blank - Request Form'!T152),\"\"))","v":""},null,null,null,{"$f":"IF(M118<>\"\",'Blank - Request Form'!$M$2,\"\")","v":""},{"$f":"IF('Blank - Request Form'!$F$6=\"CIASI\",IF('Blank - Request Form'!J152=0,\"\",'Blank - Request Form'!J152),IF('Blank - Request Form'!$F$7=\"CIASI\",IF('Blank - Request Form'!S152=0,\"\",'Blank - Request Form'!S152),\"\"))","v":""},"",118]
[{"$f":"IF('Blank - Request Form'!$F$6=\"CIASI\",IF('Blank - Request Form'!D153=0,\"\",'Blank - Request Form'!D153),IF('Blank - Request Form'!$F$7=\"CIASI\",IF('Blank - Request Form'!M153=0,\"\",'Blank - Request Form'!M153),\"\"))","v":""},{"$f":"IF('Blank - Request Form'!$F$6=\"CIASI\",IF('Blank - Request Form'!E153=0,\"\",'Blank - Request Form'!E153),IF('Blank - Request Form'!$F$7=\"CIASI\",IF('Blank - Request Form'!N153=0,\"\",'Blank - Request Form'!N153),\"\"))","v":""},{"$f":"IF('Blank - Request Form'!$F$6=\"CIASI\",IF(OR('Blank - Request Form'!F153=\"000\",'Blank - Request Form'!F153=0),\"\",'Blank - Request Form'!F153),IF('Blank - Request Form'!$F$7=\"CIASI\",IF(OR('Blank - Request Form'!O153=\"000\",'Blank - Request Form'!O153=0),\"\",'Blank - Request Form'!O153),\"\"))","v":""},{"$f":"IF('Blank - Request Form'!$F$6=\"CIASI\",IF(OR('Blank - Request Form'!G153=\"0\",'Blank - Request Form'!G153=\"00000\",'Blank - Request Form'!G153=0),\"\",'Blank - Request Form'!G153),IF('Blank - Request Form'!$F$7=\"CIASI\",IF(OR('Blank - Request Form'!P153=\"0\",'Blank - Request Form'!P153=\"00000\",'Blank - Request Form'!P153=0),\"\",'Blank - Request Form'!P153),\"\"))","v":""},{"$f":"IF('Blank - Request Form'!$F$6=\"CIASI\",IF(OR('Blank - Request Form'!H153=\"0\",'Blank - Request Form'!H153=\"00000\",'Blank - Request Form'!H153=0),\"\",'Blank - Request Form'!H153),IF('Blank - Request Form'!$F$7=\"CIASI\",IF(OR('Blank - Request Form'!Q153=\"0\",'Blank - Request Form'!Q153=\"00000\",'Blank - Request Form'!Q153=0),\"\",'Blank - Request Form'!Q153),\"\"))","v":""},{"$f":"IF('Blank - Request Form'!$F$6=\"CIASI\",IF(OR('Blank - Request Form'!I153=\"0\",'Blank - Request Form'!I153=\"00000\",'Blank - Request Form'!I153=0),\"\",'Blank - Request Form'!I153),IF('Blank - Request Form'!$F$7=\"CIASI\",IF(OR('Blank - Request Form'!R153=\"0\",'Blank - Request Form'!R153=\"00000\",'Blank - Request Form'!R153=0),\"\",'Blank - Request Form'!R153),\"\"))","v":""},null,{"$f":"IF('Blank - Request Form'!$F$6=\"CIASI\",IF('Blank - Request Form'!K153=0,\"\",'Blank - Request Form'!K153),IF('Blank - Request Form'!$F$7=\"CIASI\",IF('Blank - Request Form'!T153=0,\"\",'Blank - Request Form'!T153),\"\"))","v":""},null,null,null,{"$f":"IF(M119<>\"\",'Blank - Request Form'!$M$2,\"\")","v":""},{"$f":"IF('Blank - Request Form'!$F$6=\"CIASI\",IF('Blank - Request Form'!J153=0,\"\",'Blank - Request Form'!J153),IF('Blank - Request Form'!$F$7=\"CIASI\",IF('Blank - Request Form'!S153=0,\"\",'Blank - Request Form'!S153),\"\"))","v":""},"",119]
[{"$f":"IF('Blank - Request Form'!$F$6=\"CIASI\",IF('Blank - Request Form'!D154=0,\"\",'Blank - Request Form'!D154),IF('Blank - Request Form'!$F$7=\"CIASI\",IF('Blank - Request Form'!M154=0,\"\",'Blank - Request Form'!M154),\"\"))","v":""},{"$f":"IF('Blank - Request Form'!$F$6=\"CIASI\",IF('Blank - Request Form'!E154=0,\"\",'Blank - Request Form'!E154),IF('Blank - Request Form'!$F$7=\"CIASI\",IF('Blank - Request Form'!N154=0,\"\",'Blank - Request Form'!N154),\"\"))","v":""},{"$f":"IF('Blank - Request Form'!$F$6=\"CIASI\",IF(OR('Blank - Request Form'!F154=\"000\",'Blank - Request Form'!F154=0),\"\",'Blank - Request Form'!F154),IF('Blank - Request Form'!$F$7=\"CIASI\",IF(OR('Blank - Request Form'!O154=\"000\",'Blank - Request Form'!O154=0),\"\",'Blank - Request Form'!O154),\"\"))","v":""},{"$f":"IF('Blank - Request Form'!$F$6=\"CIASI\",IF(OR('Blank - Request Form'!G154=\"0\",'Blank - Request Form'!G154=\"00000\",'Blank - Request Form'!G154=0),\"\",'Blank - Request Form'!G154),IF('Blank - Request Form'!$F$7=\"CIASI\",IF(OR('Blank - Request Form'!P154=\"0\",'Blank - Request Form'!P154=\"00000\",'Blank - Request Form'!P154=0),\"\",'Blank - Request Form'!P154),\"\"))","v":""},{"$f":"IF('Blank - Request Form'!$F$6=\"CIASI\",IF(OR('Blank - Request Form'!H154=\"0\",'Blank - Request Form'!H154=\"00000\",'Blank - Request Form'!H154=0),\"\",'Blank - Request Form'!H154),IF('Blank - Request Form'!$F$7=\"CIASI\",IF(OR('Blank - Request Form'!Q154=\"0\",'Blank - Request Form'!Q154=\"00000\",'Blank - Request Form'!Q154=0),\"\",'Blank - Request Form'!Q154),\"\"))","v":""},{"$f":"IF('Blank - Request Form'!$F$6=\"CIASI\",IF(OR('Blank - Request Form'!I154=\"0\",'Blank - Request Form'!I154=\"00000\",'Blank - Request Form'!I154=0),\"\",'Blank - Request Form'!I154),IF('Blank - Request Form'!$F$7=\"CIASI\",IF(OR('Blank - Request Form'!R154=\"0\",'Blank - Request Form'!R154=\"00000\",'Blank - Request Form'!R154=0),\"\",'Blank - Request Form'!R154),\"\"))","v":""},null,{"$f":"IF('Blank - Request Form'!$F$6=\"CIASI\",IF('Blank - Request Form'!K154=0,\"\",'Blank - Request Form'!K154),IF('Blank - Request Form'!$F$7=\"CIASI\",IF('Blank - Request Form'!T154=0,\"\",'Blank - Request Form'!T154),\"\"))","v":""},null,null,null,{"$f":"IF(M120<>\"\",'Blank - Request Form'!$M$2,\"\")","v":""},{"$f":"IF('Blank - Request Form'!$F$6=\"CIASI\",IF('Blank - Request Form'!J154=0,\"\",'Blank - Request Form'!J154),IF('Blank - Request Form'!$F$7=\"CIASI\",IF('Blank - Request Form'!S154=0,\"\",'Blank - Request Form'!S154),\"\"))","v":""},"",120]
[{"$f":"IF('Blank - Request Form'!$F$6=\"CIASI\",IF('Blank - Request Form'!D155=0,\"\",'Blank - Request Form'!D155),IF('Blank - Request Form'!$F$7=\"CIASI\",IF('Blank - Request Form'!M155=0,\"\",'Blank - Request Form'!M155),\"\"))","v":""},{"$f":"IF('Blank - Request Form'!$F$6=\"CIASI\",IF('Blank - Request Form'!E155=0,\"\",'Blank - Request Form'!E155),IF('Blank - Request Form'!$F$7=\"CIASI\",IF('Blank - Request Form'!N155=0,\"\",'Blank - Request Form'!N155),\"\"))","v":""},{"$f":"IF('Blank - Request Form'!$F$6=\"CIASI\",IF(OR('Blank - Request Form'!F155=\"000\",'Blank - Request Form'!F155=0),\"\",'Blank - Request Form'!F155),IF('Blank - Request Form'!$F$7=\"CIASI\",IF(OR('Blank - Request Form'!O155=\"000\",'Blank - Request Form'!O155=0),\"\",'Blank - Request Form'!O155),\"\"))","v":""},{"$f":"IF('Blank - Request Form'!$F$6=\"CIASI\",IF(OR('Blank - Request Form'!G155=\"0\",'Blank - Request Form'!G155=\"00000\",'Blank - Request Form'!G155=0),\"\",'Blank - Request Form'!G155),IF('Blank - Request Form'!$F$7=\"CIASI\",IF(OR('Blank - Request Form'!P155=\"0\",'Blank - Request Form'!P155=\"00000\",'Blank - Request Form'!P155=0),\"\",'Blank - Request Form'!P155),\"\"))","v":""},{"$f":"IF('Blank - Request Form'!$F$6=\"CIASI\",IF(OR('Blank - Request Form'!H155=\"0\",'Blank - Request Form'!H155=\"00000\",'Blank - Request Form'!H155=0),\"\",'Blank - Request Form'!H155),IF('Blank - Request Form'!$F$7=\"CIASI\",IF(OR('Blank - Request Form'!Q155=\"0\",'Blank - Request Form'!Q155=\"00000\",'Blank - Request Form'!Q155=0),\"\",'Blank - Request Form'!Q155),\"\"))","v":""},{"$f":"IF('Blank - Request Form'!$F$6=\"CIASI\",IF(OR('Blank - Request Form'!I155=\"0\",'Blank - Request Form'!I155=\"00000\",'Blank - Request Form'!I155=0),\"\",'Blank - Request Form'!I155),IF('Blank - Request Form'!$F$7=\"CIASI\",IF(OR('Blank - Request Form'!R155=\"0\",'Blank - Request Form'!R155=\"00000\",'Blank - Request Form'!R155=0),\"\",'Blank - Request Form'!R155),\"\"))","v":""},null,{"$f":"IF('Blank - Request Form'!$F$6=\"CIASI\",IF('Blank - Request Form'!K155=0,\"\",'Blank - Request Form'!K155),IF('Blank - Request Form'!$F$7=\"CIASI\",IF('Blank - Request Form'!T155=0,\"\",'Blank - Request Form'!T155),\"\"))","v":""},null,null,null,{"$f":"IF(M121<>\"\",'Blank - Request Form'!$M$2,\"\")","v":""},{"$f":"IF('Blank - Request Form'!$F$6=\"CIASI\",IF('Blank - Request Form'!J155=0,\"\",'Blank - Request Form'!J155),IF('Blank - Request Form'!$F$7=\"CIASI\",IF('Blank - Request Form'!S155=0,\"\",'Blank - Request Form'!S155),\"\"))","v":""},"",121]
[{"$f":"IF('Blank - Request Form'!$F$6=\"CIASI\",IF('Blank - Request Form'!D156=0,\"\",'Blank - Request Form'!D156),IF('Blank - Request Form'!$F$7=\"CIASI\",IF('Blank - Request Form'!M156=0,\"\",'Blank - Request Form'!M156),\"\"))","v":""},{"$f":"IF('Blank - Request Form'!$F$6=\"CIASI\",IF('Blank - Request Form'!E156=0,\"\",'Blank - Request Form'!E156),IF('Blank - Request Form'!$F$7=\"CIASI\",IF('Blank - Request Form'!N156=0,\"\",'Blank - Request Form'!N156),\"\"))","v":""},{"$f":"IF('Blank - Request Form'!$F$6=\"CIASI\",IF(OR('Blank - Request Form'!F156=\"000\",'Blank - Request Form'!F156=0),\"\",'Blank - Request Form'!F156),IF('Blank - Request Form'!$F$7=\"CIASI\",IF(OR('Blank - Request Form'!O156=\"000\",'Blank - Request Form'!O156=0),\"\",'Blank - Request Form'!O156),\"\"))","v":""},{"$f":"IF('Blank - Request Form'!$F$6=\"CIASI\",IF(OR('Blank - Request Form'!G156=\"0\",'Blank - Request Form'!G156=\"00000\",'Blank - Request Form'!G156=0),\"\",'Blank - Request Form'!G156),IF('Blank - Request Form'!$F$7=\"CIASI\",IF(OR('Blank - Request Form'!P156=\"0\",'Blank - Request Form'!P156=\"00000\",'Blank - Request Form'!P156=0),\"\",'Blank - Request Form'!P156),\"\"))","v":""},{"$f":"IF('Blank - Request Form'!$F$6=\"CIASI\",IF(OR('Blank - Request Form'!H156=\"0\",'Blank - Request Form'!H156=\"00000\",'Blank - Request Form'!H156=0),\"\",'Blank - Request Form'!H156),IF('Blank - Request Form'!$F$7=\"CIASI\",IF(OR('Blank - Request Form'!Q156=\"0\",'Blank - Request Form'!Q156=\"00000\",'Blank - Request Form'!Q156=0),\"\",'Blank - Request Form'!Q156),\"\"))","v":""},{"$f":"IF('Blank - Request Form'!$F$6=\"CIASI\",IF(OR('Blank - Request Form'!I156=\"0\",'Blank - Request Form'!I156=\"00000\",'Blank - Request Form'!I156=0),\"\",'Blank - Request Form'!I156),IF('Blank - Request Form'!$F$7=\"CIASI\",IF(OR('Blank - Request Form'!R156=\"0\",'Blank - Request Form'!R156=\"00000\",'Blank - Request Form'!R156=0),\"\",'Blank - Request Form'!R156),\"\"))","v":""},null,{"$f":"IF('Blank - Request Form'!$F$6=\"CIASI\",IF('Blank - Request Form'!K156=0,\"\",'Blank - Request Form'!K156),IF('Blank - Request Form'!$F$7=\"CIASI\",IF('Blank - Request Form'!T156=0,\"\",'Blank - Request Form'!T156),\"\"))","v":""},null,null,null,{"$f":"IF(M122<>\"\",'Blank - Request Form'!$M$2,\"\")","v":""},{"$f":"IF('Blank - Request Form'!$F$6=\"CIASI\",IF('Blank - Request Form'!J156=0,\"\",'Blank - Request Form'!J156),IF('Blank - Request Form'!$F$7=\"CIASI\",IF('Blank - Request Form'!S156=0,\"\",'Blank - Request Form'!S156),\"\"))","v":""},"",122]
[{"$f":"IF('Blank - Request Form'!$F$6=\"CIASI\",IF('Blank - Request Form'!D157=0,\"\",'Blank - Request Form'!D157),IF('Blank - Request Form'!$F$7=\"CIASI\",IF('Blank - Request Form'!M157=0,\"\",'Blank - Request Form'!M157),\"\"))","v":""},{"$f":"IF('Blank - Request Form'!$F$6=\"CIASI\",IF('Blank - Request Form'!E157=0,\"\",'Blank - Request Form'!E157),IF('Blank - Request Form'!$F$7=\"CIASI\",IF('Blank - Request Form'!N157=0,\"\",'Blank - Request Form'!N157),\"\"))","v":""},{"$f":"IF('Blank - Request Form'!$F$6=\"CIASI\",IF(OR('Blank - Request Form'!F157=\"000\",'Blank - Request Form'!F157=0),\"\",'Blank - Request Form'!F157),IF('Blank - Request Form'!$F$7=\"CIASI\",IF(OR('Blank - Request Form'!O157=\"000\",'Blank - Request Form'!O157=0),\"\",'Blank - Request Form'!O157),\"\"))","v":""},{"$f":"IF('Blank - Request Form'!$F$6=\"CIASI\",IF(OR('Blank - Request Form'!G157=\"0\",'Blank - Request Form'!G157=\"00000\",'Blank - Request Form'!G157=0),\"\",'Blank - Request Form'!G157),IF('Blank - Request Form'!$F$7=\"CIASI\",IF(OR('Blank - Request Form'!P157=\"0\",'Blank - Request Form'!P157=\"00000\",'Blank - Request Form'!P157=0),\"\",'Blank - Request Form'!P157),\"\"))","v":""},{"$f":"IF('Blank - Request Form'!$F$6=\"CIASI\",IF(OR('Blank - Request Form'!H157=\"0\",'Blank - Request Form'!H157=\"00000\",'Blank - Request Form'!H157=0),\"\",'Blank - Request Form'!H157),IF('Blank - Request Form'!$F$7=\"CIASI\",IF(OR('Blank - Request Form'!Q157=\"0\",'Blank - Request Form'!Q157=\"00000\",'Blank - Request Form'!Q157=0),\"\",'Blank - Request Form'!Q157),\"\"))","v":""},{"$f":"IF('Blank - Request Form'!$F$6=\"CIASI\",IF(OR('Blank - Request Form'!I157=\"0\",'Blank - Request Form'!I157=\"00000\",'Blank - Request Form'!I157=0),\"\",'Blank - Request Form'!I157),IF('Blank - Request Form'!$F$7=\"CIASI\",IF(OR('Blank - Request Form'!R157=\"0\",'Blank - Request Form'!R157=\"00000\",'Blank - Request Form'!R157=0),\"\",'Blank - Request Form'!R157),\"\"))","v":""},null,{"$f":"IF('Blank - Request Form'!$F$6=\"CIASI\",IF('Blank - Request Form'!K157=0,\"\",'Blank - Request Form'!K157),IF('Blank - Request Form'!$F$7=\"CIASI\",IF('Blank - Request Form'!T157=0,\"\",'Blank - Request Form'!T157),\"\"))","v":""},null,null,null,{"$f":"IF(M123<>\"\",'Blank - Request Form'!$M$2,\"\")","v":""},{"$f":"IF('Blank - Request Form'!$F$6=\"CIASI\",IF('Blank - Request Form'!J157=0,\"\",'Blank - Request Form'!J157),IF('Blank - Request Form'!$F$7=\"CIASI\",IF('Blank - Request Form'!S157=0,\"\",'Blank - Request Form'!S157),\"\"))","v":""},"",123]
[{"$f":"IF('Blank - Request Form'!$F$6=\"CIASI\",IF('Blank - Request Form'!D158=0,\"\",'Blank - Request Form'!D158),IF('Blank - Request Form'!$F$7=\"CIASI\",IF('Blank - Request Form'!M158=0,\"\",'Blank - Request Form'!M158),\"\"))","v":""},{"$f":"IF('Blank - Request Form'!$F$6=\"CIASI\",IF('Blank - Request Form'!E158=0,\"\",'Blank - Request Form'!E158),IF('Blank - Request Form'!$F$7=\"CIASI\",IF('Blank - Request Form'!N158=0,\"\",'Blank - Request Form'!N158),\"\"))","v":""},{"$f":"IF('Blank - Request Form'!$F$6=\"CIASI\",IF(OR('Blank - Request Form'!F158=\"000\",'Blank - Request Form'!F158=0),\"\",'Blank - Request Form'!F158),IF('Blank - Request Form'!$F$7=\"CIASI\",IF(OR('Blank - Request Form'!O158=\"000\",'Blank - Request Form'!O158=0),\"\",'Blank - Request Form'!O158),\"\"))","v":""},{"$f":"IF('Blank - Request Form'!$F$6=\"CIASI\",IF(OR('Blank - Request Form'!G158=\"0\",'Blank - Request Form'!G158=\"00000\",'Blank - Request Form'!G158=0),\"\",'Blank - Request Form'!G158),IF('Blank - Request Form'!$F$7=\"CIASI\",IF(OR('Blank - Request Form'!P158=\"0\",'Blank - Request Form'!P158=\"00000\",'Blank - Request Form'!P158=0),\"\",'Blank - Request Form'!P158),\"\"))","v":""},{"$f":"IF('Blank - Request Form'!$F$6=\"CIASI\",IF(OR('Blank - Request Form'!H158=\"0\",'Blank - Request Form'!H158=\"00000\",'Blank - Request Form'!H158=0),\"\",'Blank - Request Form'!H158),IF('Blank - Request Form'!$F$7=\"CIASI\",IF(OR('Blank - Request Form'!Q158=\"0\",'Blank - Request Form'!Q158=\"00000\",'Blank - Request Form'!Q158=0),\"\",'Blank - Request Form'!Q158),\"\"))","v":""},{"$f":"IF('Blank - Request Form'!$F$6=\"CIASI\",IF(OR('Blank - Request Form'!I158=\"0\",'Blank - Request Form'!I158=\"00000\",'Blank - Request Form'!I158=0),\"\",'Blank - Request Form'!I158),IF('Blank - Request Form'!$F$7=\"CIASI\",IF(OR('Blank - Request Form'!R158=\"0\",'Blank - Request Form'!R158=\"00000\",'Blank - Request Form'!R158=0),\"\",'Blank - Request Form'!R158),\"\"))","v":""},null,{"$f":"IF('Blank - Request Form'!$F$6=\"CIASI\",IF('Blank - Request Form'!K158=0,\"\",'Blank - Request Form'!K158),IF('Blank - Request Form'!$F$7=\"CIASI\",IF('Blank - Request Form'!T158=0,\"\",'Blank - Request Form'!T158),\"\"))","v":""},null,null,null,{"$f":"IF(M124<>\"\",'Blank - Request Form'!$M$2,\"\")","v":""},{"$f":"IF('Blank - Request Form'!$F$6=\"CIASI\",IF('Blank - Request Form'!J158=0,\"\",'Blank - Request Form'!J158),IF('Blank - Request Form'!$F$7=\"CIASI\",IF('Blank - Request Form'!S158=0,\"\",'Blank - Request Form'!S158),\"\"))","v":""},"",124]
[{"$f":"IF('Blank - Request Form'!$F$6=\"CIASI\",IF('Blank - Request Form'!D159=0,\"\",'Blank - Request Form'!D159),IF('Blank - Request Form'!$F$7=\"CIASI\",IF('Blank - Request Form'!M159=0,\"\",'Blank - Request Form'!M159),\"\"))","v":""},{"$f":"IF('Blank - Request Form'!$F$6=\"CIASI\",IF('Blank - Request Form'!E159=0,\"\",'Blank - Request Form'!E159),IF('Blank - Request Form'!$F$7=\"CIASI\",IF('Blank - Request Form'!N159=0,\"\",'Blank - Request Form'!N159),\"\"))","v":""},{"$f":"IF('Blank - Request Form'!$F$6=\"CIASI\",IF(OR('Blank - Request Form'!F159=\"000\",'Blank - Request Form'!F159=0),\"\",'Blank - Request Form'!F159),IF('Blank - Request Form'!$F$7=\"CIASI\",IF(OR('Blank - Request Form'!O159=\"000\",'Blank - Request Form'!O159=0),\"\",'Blank - Request Form'!O159),\"\"))","v":""},{"$f":"IF('Blank - Request Form'!$F$6=\"CIASI\",IF(OR('Blank - Request Form'!G159=\"0\",'Blank - Request Form'!G159=\"00000\",'Blank - Request Form'!G159=0),\"\",'Blank - Request Form'!G159),IF('Blank - Request Form'!$F$7=\"CIASI\",IF(OR('Blank - Request Form'!P159=\"0\",'Blank - Request Form'!P159=\"00000\",'Blank - Request Form'!P159=0),\"\",'Blank - Request Form'!P159),\"\"))","v":""},{"$f":"IF('Blank - Request Form'!$F$6=\"CIASI\",IF(OR('Blank - Request Form'!H159=\"0\",'Blank - Request Form'!H159=\"00000\",'Blank - Request Form'!H159=0),\"\",'Blank - Request Form'!H159),IF('Blank - Request Form'!$F$7=\"CIASI\",IF(OR('Blank - Request Form'!Q159=\"0\",'Blank - Request Form'!Q159=\"00000\",'Blank - Request Form'!Q159=0),\"\",'Blank - Request Form'!Q159),\"\"))","v":""},{"$f":"IF('Blank - Request Form'!$F$6=\"CIASI\",IF(OR('Blank - Request Form'!I159=\"0\",'Blank - Request Form'!I159=\"00000\",'Blank - Request Form'!I159=0),\"\",'Blank - Request Form'!I159),IF('Blank - Request Form'!$F$7=\"CIASI\",IF(OR('Blank - Request Form'!R159=\"0\",'Blank - Request Form'!R159=\"00000\",'Blank - Request Form'!R159=0),\"\",'Blank - Request Form'!R159),\"\"))","v":""},null,{"$f":"IF('Blank - Request Form'!$F$6=\"CIASI\",IF('Blank - Request Form'!K159=0,\"\",'Blank - Request Form'!K159),IF('Blank - Request Form'!$F$7=\"CIASI\",IF('Blank - Request Form'!T159=0,\"\",'Blank - Request Form'!T159),\"\"))","v":""},null,null,null,{"$f":"IF(M125<>\"\",'Blank - Request Form'!$M$2,\"\")","v":""},{"$f":"IF('Blank - Request Form'!$F$6=\"CIASI\",IF('Blank - Request Form'!J159=0,\"\",'Blank - Request Form'!J159),IF('Blank - Request Form'!$F$7=\"CIASI\",IF('Blank - Request Form'!S159=0,\"\",'Blank - Request Form'!S159),\"\"))","v":""},"",125]
[{"$f":"IF('Blank - Request Form'!$F$6=\"CIASI\",IF('Blank - Request Form'!D160=0,\"\",'Blank - Request Form'!D160),IF('Blank - Request Form'!$F$7=\"CIASI\",IF('Blank - Request Form'!M160=0,\"\",'Blank - Request Form'!M160),\"\"))","v":""},{"$f":"IF('Blank - Request Form'!$F$6=\"CIASI\",IF('Blank - Request Form'!E160=0,\"\",'Blank - Request Form'!E160),IF('Blank - Request Form'!$F$7=\"CIASI\",IF('Blank - Request Form'!N160=0,\"\",'Blank - Request Form'!N160),\"\"))","v":""},{"$f":"IF('Blank - Request Form'!$F$6=\"CIASI\",IF(OR('Blank - Request Form'!F160=\"000\",'Blank - Request Form'!F160=0),\"\",'Blank - Request Form'!F160),IF('Blank - Request Form'!$F$7=\"CIASI\",IF(OR('Blank - Request Form'!O160=\"000\",'Blank - Request Form'!O160=0),\"\",'Blank - Request Form'!O160),\"\"))","v":""},{"$f":"IF('Blank - Request Form'!$F$6=\"CIASI\",IF(OR('Blank - Request Form'!G160=\"0\",'Blank - Request Form'!G160=\"00000\",'Blank - Request Form'!G160=0),\"\",'Blank - Request Form'!G160),IF('Blank - Request Form'!$F$7=\"CIASI\",IF(OR('Blank - Request Form'!P160=\"0\",'Blank - Request Form'!P160=\"00000\",'Blank - Request Form'!P160=0),\"\",'Blank - Request Form'!P160),\"\"))","v":""},{"$f":"IF('Blank - Request Form'!$F$6=\"CIASI\",IF(OR('Blank - Request Form'!H160=\"0\",'Blank - Request Form'!H160=\"00000\",'Blank - Request Form'!H160=0),\"\",'Blank - Request Form'!H160),IF('Blank - Request Form'!$F$7=\"CIASI\",IF(OR('Blank - Request Form'!Q160=\"0\",'Blank - Request Form'!Q160=\"00000\",'Blank - Request Form'!Q160=0),\"\",'Blank - Request Form'!Q160),\"\"))","v":""},{"$f":"IF('Blank - Request Form'!$F$6=\"CIASI\",IF(OR('Blank - Request Form'!I160=\"0\",'Blank - Request Form'!I160=\"00000\",'Blank - Request Form'!I160=0),\"\",'Blank - Request Form'!I160),IF('Blank - Request Form'!$F$7=\"CIASI\",IF(OR('Blank - Request Form'!R160=\"0\",'Blank - Request Form'!R160=\"00000\",'Blank - Request Form'!R160=0),\"\",'Blank - Request Form'!R160),\"\"))","v":""},null,{"$f":"IF('Blank - Request Form'!$F$6=\"CIASI\",IF('Blank - Request Form'!K160=0,\"\",'Blank - Request Form'!K160),IF('Blank - Request Form'!$F$7=\"CIASI\",IF('Blank - Request Form'!T160=0,\"\",'Blank - Request Form'!T160),\"\"))","v":""},null,null,null,{"$f":"IF(M126<>\"\",'Blank - Request Form'!$M$2,\"\")","v":""},{"$f":"IF('Blank - Request Form'!$F$6=\"CIASI\",IF('Blank - Request Form'!J160=0,\"\",'Blank - Request Form'!J160),IF('Blank - Request Form'!$F$7=\"CIASI\",IF('Blank - Request Form'!S160=0,\"\",'Blank - Request Form'!S160),\"\"))","v":""},"",126]
[{"$f":"IF('Blank - Request Form'!$F$6=\"CIASI\",IF('Blank - Request Form'!D161=0,\"\",'Blank - Request Form'!D161),IF('Blank - Request Form'!$F$7=\"CIASI\",IF('Blank - Request Form'!M161=0,\"\",'Blank - Request Form'!M161),\"\"))","v":""},{"$f":"IF('Blank - Request Form'!$F$6=\"CIASI\",IF('Blank - Request Form'!E161=0,\"\",'Blank - Request Form'!E161),IF('Blank - Request Form'!$F$7=\"CIASI\",IF('Blank - Request Form'!N161=0,\"\",'Blank - Request Form'!N161),\"\"))","v":""},{"$f":"IF('Blank - Request Form'!$F$6=\"CIASI\",IF(OR('Blank - Request Form'!F161=\"000\",'Blank - Request Form'!F161=0),\"\",'Blank - Request Form'!F161),IF('Blank - Request Form'!$F$7=\"CIASI\",IF(OR('Blank - Request Form'!O161=\"000\",'Blank - Request Form'!O161=0),\"\",'Blank - Request Form'!O161),\"\"))","v":""},{"$f":"IF('Blank - Request Form'!$F$6=\"CIASI\",IF(OR('Blank - Request Form'!G161=\"0\",'Blank - Request Form'!G161=\"00000\",'Blank - Request Form'!G161=0),\"\",'Blank - Request Form'!G161),IF('Blank - Request Form'!$F$7=\"CIASI\",IF(OR('Blank - Request Form'!P161=\"0\",'Blank - Request Form'!P161=\"00000\",'Blank - Request Form'!P161=0),\"\",'Blank - Request Form'!P161),\"\"))","v":""},{"$f":"IF('Blank - Request Form'!$F$6=\"CIASI\",IF(OR('Blank - Request Form'!H161=\"0\",'Blank - Request Form'!H161=\"00000\",'Blank - Request Form'!H161=0),\"\",'Blank - Request Form'!H161),IF('Blank - Request Form'!$F$7=\"CIASI\",IF(OR('Blank - Request Form'!Q161=\"0\",'Blank - Request Form'!Q161=\"00000\",'Blank - Request Form'!Q161=0),\"\",'Blank - Request Form'!Q161),\"\"))","v":""},{"$f":"IF('Blank - Request Form'!$F$6=\"CIASI\",IF(OR('Blank - Request Form'!I161=\"0\",'Blank - Request Form'!I161=\"00000\",'Blank - Request Form'!I161=0),\"\",'Blank - Request Form'!I161),IF('Blank - Request Form'!$F$7=\"CIASI\",IF(OR('Blank - Request Form'!R161=\"0\",'Blank - Request Form'!R161=\"00000\",'Blank - Request Form'!R161=0),\"\",'Blank - Request Form'!R161),\"\"))","v":""},null,{"$f":"IF('Blank - Request Form'!$F$6=\"CIASI\",IF('Blank - Request Form'!K161=0,\"\",'Blank - Request Form'!K161),IF('Blank - Request Form'!$F$7=\"CIASI\",IF('Blank - Request Form'!T161=0,\"\",'Blank - Request Form'!T161),\"\"))","v":""},null,null,null,{"$f":"IF(M127<>\"\",'Blank - Request Form'!$M$2,\"\")","v":""},{"$f":"IF('Blank - Request Form'!$F$6=\"CIASI\",IF('Blank - Request Form'!J161=0,\"\",'Blank - Request Form'!J161),IF('Blank - Request Form'!$F$7=\"CIASI\",IF('Blank - Request Form'!S161=0,\"\",'Blank - Request Form'!S161),\"\"))","v":""},"",127]
[{"$f":"IF('Blank - Request Form'!$F$6=\"CIASI\",IF('Blank - Request Form'!D162=0,\"\",'Blank - Request Form'!D162),IF('Blank - Request Form'!$F$7=\"CIASI\",IF('Blank - Request Form'!M162=0,\"\",'Blank - Request Form'!M162),\"\"))","v":""},{"$f":"IF('Blank - Request Form'!$F$6=\"CIASI\",IF('Blank - Request Form'!E162=0,\"\",'Blank - Request Form'!E162),IF('Blank - Request Form'!$F$7=\"CIASI\",IF('Blank - Request Form'!N162=0,\"\",'Blank - Request Form'!N162),\"\"))","v":""},{"$f":"IF('Blank - Request Form'!$F$6=\"CIASI\",IF(OR('Blank - Request Form'!F162=\"000\",'Blank - Request Form'!F162=0),\"\",'Blank - Request Form'!F162),IF('Blank - Request Form'!$F$7=\"CIASI\",IF(OR('Blank - Request Form'!O162=\"000\",'Blank - Request Form'!O162=0),\"\",'Blank - Request Form'!O162),\"\"))","v":""},{"$f":"IF('Blank - Request Form'!$F$6=\"CIASI\",IF(OR('Blank - Request Form'!G162=\"0\",'Blank - Request Form'!G162=\"00000\",'Blank - Request Form'!G162=0),\"\",'Blank - Request Form'!G162),IF('Blank - Request Form'!$F$7=\"CIASI\",IF(OR('Blank - Request Form'!P162=\"0\",'Blank - Request Form'!P162=\"00000\",'Blank - Request Form'!P162=0),\"\",'Blank - Request Form'!P162),\"\"))","v":""},{"$f":"IF('Blank - Request Form'!$F$6=\"CIASI\",IF(OR('Blank - Request Form'!H162=\"0\",'Blank - Request Form'!H162=\"00000\",'Blank - Request Form'!H162=0),\"\",'Blank - Request Form'!H162),IF('Blank - Request Form'!$F$7=\"CIASI\",IF(OR('Blank - Request Form'!Q162=\"0\",'Blank - Request Form'!Q162=\"00000\",'Blank - Request Form'!Q162=0),\"\",'Blank - Request Form'!Q162),\"\"))","v":""},{"$f":"IF('Blank - Request Form'!$F$6=\"CIASI\",IF(OR('Blank - Request Form'!I162=\"0\",'Blank - Request Form'!I162=\"00000\",'Blank - Request Form'!I162=0),\"\",'Blank - Request Form'!I162),IF('Blank - Request Form'!$F$7=\"CIASI\",IF(OR('Blank - Request Form'!R162=\"0\",'Blank - Request Form'!R162=\"00000\",'Blank - Request Form'!R162=0),\"\",'Blank - Request Form'!R162),\"\"))","v":""},null,{"$f":"IF('Blank - Request Form'!$F$6=\"CIASI\",IF('Blank - Request Form'!K162=0,\"\",'Blank - Request Form'!K162),IF('Blank - Request Form'!$F$7=\"CIASI\",IF('Blank - Request Form'!T162=0,\"\",'Blank - Request Form'!T162),\"\"))","v":""},null,null,null,{"$f":"IF(M128<>\"\",'Blank - Request Form'!$M$2,\"\")","v":""},{"$f":"IF('Blank - Request Form'!$F$6=\"CIASI\",IF('Blank - Request Form'!J162=0,\"\",'Blank - Request Form'!J162),IF('Blank - Request Form'!$F$7=\"CIASI\",IF('Blank - Request Form'!S162=0,\"\",'Blank - Request Form'!S162),\"\"))","v":""},"",128]
[{"$f":"IF('Blank - Request Form'!$F$6=\"CIASI\",IF('Blank - Request Form'!D163=0,\"\",'Blank - Request Form'!D163),IF('Blank - Request Form'!$F$7=\"CIASI\",IF('Blank - Request Form'!M163=0,\"\",'Blank - Request Form'!M163),\"\"))","v":""},{"$f":"IF('Blank - Request Form'!$F$6=\"CIASI\",IF('Blank - Request Form'!E163=0,\"\",'Blank - Request Form'!E163),IF('Blank - Request Form'!$F$7=\"CIASI\",IF('Blank - Request Form'!N163=0,\"\",'Blank - Request Form'!N163),\"\"))","v":""},{"$f":"IF('Blank - Request Form'!$F$6=\"CIASI\",IF(OR('Blank - Request Form'!F163=\"000\",'Blank - Request Form'!F163=0),\"\",'Blank - Request Form'!F163),IF('Blank - Request Form'!$F$7=\"CIASI\",IF(OR('Blank - Request Form'!O163=\"000\",'Blank - Request Form'!O163=0),\"\",'Blank - Request Form'!O163),\"\"))","v":""},{"$f":"IF('Blank - Request Form'!$F$6=\"CIASI\",IF(OR('Blank - Request Form'!G163=\"0\",'Blank - Request Form'!G163=\"00000\",'Blank - Request Form'!G163=0),\"\",'Blank - Request Form'!G163),IF('Blank - Request Form'!$F$7=\"CIASI\",IF(OR('Blank - Request Form'!P163=\"0\",'Blank - Request Form'!P163=\"00000\",'Blank - Request Form'!P163=0),\"\",'Blank - Request Form'!P163),\"\"))","v":""},{"$f":"IF('Blank - Request Form'!$F$6=\"CIASI\",IF(OR('Blank - Request Form'!H163=\"0\",'Blank - Request Form'!H163=\"00000\",'Blank - Request Form'!H163=0),\"\",'Blank - Request Form'!H163),IF('Blank - Request Form'!$F$7=\"CIASI\",IF(OR('Blank - Request Form'!Q163=\"0\",'Blank - Request Form'!Q163=\"00000\",'Blank - Request Form'!Q163=0),\"\",'Blank - Request Form'!Q163),\"\"))","v":""},{"$f":"IF('Blank - Request Form'!$F$6=\"CIASI\",IF(OR('Blank - Request Form'!I163=\"0\",'Blank - Request Form'!I163=\"00000\",'Blank - Request Form'!I163=0),\"\",'Blank - Request Form'!I163),IF('Blank - Request Form'!$F$7=\"CIASI\",IF(OR('Blank - Request Form'!R163=\"0\",'Blank - Request Form'!R163=\"00000\",'Blank - Request Form'!R163=0),\"\",'Blank - Request Form'!R163),\"\"))","v":""},null,{"$f":"IF('Blank - Request Form'!$F$6=\"CIASI\",IF('Blank - Request Form'!K163=0,\"\",'Blank - Request Form'!K163),IF('Blank - Request Form'!$F$7=\"CIASI\",IF('Blank - Request Form'!T163=0,\"\",'Blank - Request Form'!T163),\"\"))","v":""},null,null,null,{"$f":"IF(M129<>\"\",'Blank - Request Form'!$M$2,\"\")","v":""},{"$f":"IF('Blank - Request Form'!$F$6=\"CIASI\",IF('Blank - Request Form'!J163=0,\"\",'Blank - Request Form'!J163),IF('Blank - Request Form'!$F$7=\"CIASI\",IF('Blank - Request Form'!S163=0,\"\",'Blank - Request Form'!S163),\"\"))","v":""},"",129]
[{"$f":"IF('Blank - Request Form'!$F$6=\"CIASI\",IF('Blank - Request Form'!D164=0,\"\",'Blank - Request Form'!D164),IF('Blank - Request Form'!$F$7=\"CIASI\",IF('Blank - Request Form'!M164=0,\"\",'Blank - Request Form'!M164),\"\"))","v":""},{"$f":"IF('Blank - Request Form'!$F$6=\"CIASI\",IF('Blank - Request Form'!E164=0,\"\",'Blank - Request Form'!E164),IF('Blank - Request Form'!$F$7=\"CIASI\",IF('Blank - Request Form'!N164=0,\"\",'Blank - Request Form'!N164),\"\"))","v":""},{"$f":"IF('Blank - Request Form'!$F$6=\"CIASI\",IF(OR('Blank - Request Form'!F164=\"000\",'Blank - Request Form'!F164=0),\"\",'Blank - Request Form'!F164),IF('Blank - Request Form'!$F$7=\"CIASI\",IF(OR('Blank - Request Form'!O164=\"000\",'Blank - Request Form'!O164=0),\"\",'Blank - Request Form'!O164),\"\"))","v":""},{"$f":"IF('Blank - Request Form'!$F$6=\"CIASI\",IF(OR('Blank - Request Form'!G164=\"0\",'Blank - Request Form'!G164=\"00000\",'Blank - Request Form'!G164=0),\"\",'Blank - Request Form'!G164),IF('Blank - Request Form'!$F$7=\"CIASI\",IF(OR('Blank - Request Form'!P164=\"0\",'Blank - Request Form'!P164=\"00000\",'Blank - Request Form'!P164=0),\"\",'Blank - Request Form'!P164),\"\"))","v":""},{"$f":"IF('Blank - Request Form'!$F$6=\"CIASI\",IF(OR('Blank - Request Form'!H164=\"0\",'Blank - Request Form'!H164=\"00000\",'Blank - Request Form'!H164=0),\"\",'Blank - Request Form'!H164),IF('Blank - Request Form'!$F$7=\"CIASI\",IF(OR('Blank - Request Form'!Q164=\"0\",'Blank - Request Form'!Q164=\"00000\",'Blank - Request Form'!Q164=0),\"\",'Blank - Request Form'!Q164),\"\"))","v":""},{"$f":"IF('Blank - Request Form'!$F$6=\"CIASI\",IF(OR('Blank - Request Form'!I164=\"0\",'Blank - Request Form'!I164=\"00000\",'Blank - Request Form'!I164=0),\"\",'Blank - Request Form'!I164),IF('Blank - Request Form'!$F$7=\"CIASI\",IF(OR('Blank - Request Form'!R164=\"0\",'Blank - Request Form'!R164=\"00000\",'Blank - Request Form'!R164=0),\"\",'Blank - Request Form'!R164),\"\"))","v":""},null,{"$f":"IF('Blank - Request Form'!$F$6=\"CIASI\",IF('Blank - Request Form'!K164=0,\"\",'Blank - Request Form'!K164),IF('Blank - Request Form'!$F$7=\"CIASI\",IF('Blank - Request Form'!T164=0,\"\",'Blank - Request Form'!T164),\"\"))","v":""},null,null,null,{"$f":"IF(M130<>\"\",'Blank - Request Form'!$M$2,\"\")","v":""},{"$f":"IF('Blank - Request Form'!$F$6=\"CIASI\",IF('Blank - Request Form'!J164=0,\"\",'Blank - Request Form'!J164),IF('Blank - Request Form'!$F$7=\"CIASI\",IF('Blank - Request Form'!S164=0,\"\",'Blank - Request Form'!S164),\"\"))","v":""},"",130]
[{"$f":"IF('Blank - Request Form'!$F$6=\"CIASI\",IF('Blank - Request Form'!D165=0,\"\",'Blank - Request Form'!D165),IF('Blank - Request Form'!$F$7=\"CIASI\",IF('Blank - Request Form'!M165=0,\"\",'Blank - Request Form'!M165),\"\"))","v":""},{"$f":"IF('Blank - Request Form'!$F$6=\"CIASI\",IF('Blank - Request Form'!E165=0,\"\",'Blank - Request Form'!E165),IF('Blank - Request Form'!$F$7=\"CIASI\",IF('Blank - Request Form'!N165=0,\"\",'Blank - Request Form'!N165),\"\"))","v":""},{"$f":"IF('Blank - Request Form'!$F$6=\"CIASI\",IF(OR('Blank - Request Form'!F165=\"000\",'Blank - Request Form'!F165=0),\"\",'Blank - Request Form'!F165),IF('Blank - Request Form'!$F$7=\"CIASI\",IF(OR('Blank - Request Form'!O165=\"000\",'Blank - Request Form'!O165=0),\"\",'Blank - Request Form'!O165),\"\"))","v":""},{"$f":"IF('Blank - Request Form'!$F$6=\"CIASI\",IF(OR('Blank - Request Form'!G165=\"0\",'Blank - Request Form'!G165=\"00000\",'Blank - Request Form'!G165=0),\"\",'Blank - Request Form'!G165),IF('Blank - Request Form'!$F$7=\"CIASI\",IF(OR('Blank - Request Form'!P165=\"0\",'Blank - Request Form'!P165=\"00000\",'Blank - Request Form'!P165=0),\"\",'Blank - Request Form'!P165),\"\"))","v":""},{"$f":"IF('Blank - Request Form'!$F$6=\"CIASI\",IF(OR('Blank - Request Form'!H165=\"0\",'Blank - Request Form'!H165=\"00000\",'Blank - Request Form'!H165=0),\"\",'Blank - Request Form'!H165),IF('Blank - Request Form'!$F$7=\"CIASI\",IF(OR('Blank - Request Form'!Q165=\"0\",'Blank - Request Form'!Q165=\"00000\",'Blank - Request Form'!Q165=0),\"\",'Blank - Request Form'!Q165),\"\"))","v":""},{"$f":"IF('Blank - Request Form'!$F$6=\"CIASI\",IF(OR('Blank - Request Form'!I165=\"0\",'Blank - Request Form'!I165=\"00000\",'Blank - Request Form'!I165=0),\"\",'Blank - Request Form'!I165),IF('Blank - Request Form'!$F$7=\"CIASI\",IF(OR('Blank - Request Form'!R165=\"0\",'Blank - Request Form'!R165=\"00000\",'Blank - Request Form'!R165=0),\"\",'Blank - Request Form'!R165),\"\"))","v":""},null,{"$f":"IF('Blank - Request Form'!$F$6=\"CIASI\",IF('Blank - Request Form'!K165=0,\"\",'Blank - Request Form'!K165),IF('Blank - Request Form'!$F$7=\"CIASI\",IF('Blank - Request Form'!T165=0,\"\",'Blank - Request Form'!T165),\"\"))","v":""},null,null,null,{"$f":"IF(M131<>\"\",'Blank - Request Form'!$M$2,\"\")","v":""},{"$f":"IF('Blank - Request Form'!$F$6=\"CIASI\",IF('Blank - Request Form'!J165=0,\"\",'Blank - Request Form'!J165),IF('Blank - Request Form'!$F$7=\"CIASI\",IF('Blank - Request Form'!S165=0,\"\",'Blank - Request Form'!S165),\"\"))","v":""},"",131]
[{"$f":"IF('Blank - Request Form'!$F$6=\"CIASI\",IF('Blank - Request Form'!D166=0,\"\",'Blank - Request Form'!D166),IF('Blank - Request Form'!$F$7=\"CIASI\",IF('Blank - Request Form'!M166=0,\"\",'Blank - Request Form'!M166),\"\"))","v":""},{"$f":"IF('Blank - Request Form'!$F$6=\"CIASI\",IF('Blank - Request Form'!E166=0,\"\",'Blank - Request Form'!E166),IF('Blank - Request Form'!$F$7=\"CIASI\",IF('Blank - Request Form'!N166=0,\"\",'Blank - Request Form'!N166),\"\"))","v":""},{"$f":"IF('Blank - Request Form'!$F$6=\"CIASI\",IF(OR('Blank - Request Form'!F166=\"000\",'Blank - Request Form'!F166=0),\"\",'Blank - Request Form'!F166),IF('Blank - Request Form'!$F$7=\"CIASI\",IF(OR('Blank - Request Form'!O166=\"000\",'Blank - Request Form'!O166=0),\"\",'Blank - Request Form'!O166),\"\"))","v":""},{"$f":"IF('Blank - Request Form'!$F$6=\"CIASI\",IF(OR('Blank - Request Form'!G166=\"0\",'Blank - Request Form'!G166=\"00000\",'Blank - Request Form'!G166=0),\"\",'Blank - Request Form'!G166),IF('Blank - Request Form'!$F$7=\"CIASI\",IF(OR('Blank - Request Form'!P166=\"0\",'Blank - Request Form'!P166=\"00000\",'Blank - Request Form'!P166=0),\"\",'Blank - Request Form'!P166),\"\"))","v":""},{"$f":"IF('Blank - Request Form'!$F$6=\"CIASI\",IF(OR('Blank - Request Form'!H166=\"0\",'Blank - Request Form'!H166=\"00000\",'Blank - Request Form'!H166=0),\"\",'Blank - Request Form'!H166),IF('Blank - Request Form'!$F$7=\"CIASI\",IF(OR('Blank - Request Form'!Q166=\"0\",'Blank - Request Form'!Q166=\"00000\",'Blank - Request Form'!Q166=0),\"\",'Blank - Request Form'!Q166),\"\"))","v":""},{"$f":"IF('Blank - Request Form'!$F$6=\"CIASI\",IF(OR('Blank - Request Form'!I166=\"0\",'Blank - Request Form'!I166=\"00000\",'Blank - Request Form'!I166=0),\"\",'Blank - Request Form'!I166),IF('Blank - Request Form'!$F$7=\"CIASI\",IF(OR('Blank - Request Form'!R166=\"0\",'Blank - Request Form'!R166=\"00000\",'Blank - Request Form'!R166=0),\"\",'Blank - Request Form'!R166),\"\"))","v":""},null,{"$f":"IF('Blank - Request Form'!$F$6=\"CIASI\",IF('Blank - Request Form'!K166=0,\"\",'Blank - Request Form'!K166),IF('Blank - Request Form'!$F$7=\"CIASI\",IF('Blank - Request Form'!T166=0,\"\",'Blank - Request Form'!T166),\"\"))","v":""},null,null,null,{"$f":"IF(M132<>\"\",'Blank - Request Form'!$M$2,\"\")","v":""},{"$f":"IF('Blank - Request Form'!$F$6=\"CIASI\",IF('Blank - Request Form'!J166=0,\"\",'Blank - Request Form'!J166),IF('Blank - Request Form'!$F$7=\"CIASI\",IF('Blank - Request Form'!S166=0,\"\",'Blank - Request Form'!S166),\"\"))","v":""},"",132]
[{"$f":"IF('Blank - Request Form'!$F$6=\"CIASI\",IF('Blank - Request Form'!D167=0,\"\",'Blank - Request Form'!D167),IF('Blank - Request Form'!$F$7=\"CIASI\",IF('Blank - Request Form'!M167=0,\"\",'Blank - Request Form'!M167),\"\"))","v":""},{"$f":"IF('Blank - Request Form'!$F$6=\"CIASI\",IF('Blank - Request Form'!E167=0,\"\",'Blank - Request Form'!E167),IF('Blank - Request Form'!$F$7=\"CIASI\",IF('Blank - Request Form'!N167=0,\"\",'Blank - Request Form'!N167),\"\"))","v":""},{"$f":"IF('Blank - Request Form'!$F$6=\"CIASI\",IF(OR('Blank - Request Form'!F167=\"000\",'Blank - Request Form'!F167=0),\"\",'Blank - Request Form'!F167),IF('Blank - Request Form'!$F$7=\"CIASI\",IF(OR('Blank - Request Form'!O167=\"000\",'Blank - Request Form'!O167=0),\"\",'Blank - Request Form'!O167),\"\"))","v":""},{"$f":"IF('Blank - Request Form'!$F$6=\"CIASI\",IF(OR('Blank - Request Form'!G167=\"0\",'Blank - Request Form'!G167=\"00000\",'Blank - Request Form'!G167=0),\"\",'Blank - Request Form'!G167),IF('Blank - Request Form'!$F$7=\"CIASI\",IF(OR('Blank - Request Form'!P167=\"0\",'Blank - Request Form'!P167=\"00000\",'Blank - Request Form'!P167=0),\"\",'Blank - Request Form'!P167),\"\"))","v":""},{"$f":"IF('Blank - Request Form'!$F$6=\"CIASI\",IF(OR('Blank - Request Form'!H167=\"0\",'Blank - Request Form'!H167=\"00000\",'Blank - Request Form'!H167=0),\"\",'Blank - Request Form'!H167),IF('Blank - Request Form'!$F$7=\"CIASI\",IF(OR('Blank - Request Form'!Q167=\"0\",'Blank - Request Form'!Q167=\"00000\",'Blank - Request Form'!Q167=0),\"\",'Blank - Request Form'!Q167),\"\"))","v":""},{"$f":"IF('Blank - Request Form'!$F$6=\"CIASI\",IF(OR('Blank - Request Form'!I167=\"0\",'Blank - Request Form'!I167=\"00000\",'Blank - Request Form'!I167=0),\"\",'Blank - Request Form'!I167),IF('Blank - Request Form'!$F$7=\"CIASI\",IF(OR('Blank - Request Form'!R167=\"0\",'Blank - Request Form'!R167=\"00000\",'Blank - Request Form'!R167=0),\"\",'Blank - Request Form'!R167),\"\"))","v":""},null,{"$f":"IF('Blank - Request Form'!$F$6=\"CIASI\",IF('Blank - Request Form'!K167=0,\"\",'Blank - Request Form'!K167),IF('Blank - Request Form'!$F$7=\"CIASI\",IF('Blank - Request Form'!T167=0,\"\",'Blank - Request Form'!T167),\"\"))","v":""},null,null,null,{"$f":"IF(M133<>\"\",'Blank - Request Form'!$M$2,\"\")","v":""},{"$f":"IF('Blank - Request Form'!$F$6=\"CIASI\",IF('Blank - Request Form'!J167=0,\"\",'Blank - Request Form'!J167),IF('Blank - Request Form'!$F$7=\"CIASI\",IF('Blank - Request Form'!S167=0,\"\",'Blank - Request Form'!S167),\"\"))","v":""},"",133]
[{"$f":"IF('Blank - Request Form'!$F$6=\"CIASI\",IF('Blank - Request Form'!D168=0,\"\",'Blank - Request Form'!D168),IF('Blank - Request Form'!$F$7=\"CIASI\",IF('Blank - Request Form'!M168=0,\"\",'Blank - Request Form'!M168),\"\"))","v":""},{"$f":"IF('Blank - Request Form'!$F$6=\"CIASI\",IF('Blank - Request Form'!E168=0,\"\",'Blank - Request Form'!E168),IF('Blank - Request Form'!$F$7=\"CIASI\",IF('Blank - Request Form'!N168=0,\"\",'Blank - Request Form'!N168),\"\"))","v":""},{"$f":"IF('Blank - Request Form'!$F$6=\"CIASI\",IF(OR('Blank - Request Form'!F168=\"000\",'Blank - Request Form'!F168=0),\"\",'Blank - Request Form'!F168),IF('Blank - Request Form'!$F$7=\"CIASI\",IF(OR('Blank - Request Form'!O168=\"000\",'Blank - Request Form'!O168=0),\"\",'Blank - Request Form'!O168),\"\"))","v":""},{"$f":"IF('Blank - Request Form'!$F$6=\"CIASI\",IF(OR('Blank - Request Form'!G168=\"0\",'Blank - Request Form'!G168=\"00000\",'Blank - Request Form'!G168=0),\"\",'Blank - Request Form'!G168),IF('Blank - Request Form'!$F$7=\"CIASI\",IF(OR('Blank - Request Form'!P168=\"0\",'Blank - Request Form'!P168=\"00000\",'Blank - Request Form'!P168=0),\"\",'Blank - Request Form'!P168),\"\"))","v":""},{"$f":"IF('Blank - Request Form'!$F$6=\"CIASI\",IF(OR('Blank - Request Form'!H168=\"0\",'Blank - Request Form'!H168=\"00000\",'Blank - Request Form'!H168=0),\"\",'Blank - Request Form'!H168),IF('Blank - Request Form'!$F$7=\"CIASI\",IF(OR('Blank - Request Form'!Q168=\"0\",'Blank - Request Form'!Q168=\"00000\",'Blank - Request Form'!Q168=0),\"\",'Blank - Request Form'!Q168),\"\"))","v":""},{"$f":"IF('Blank - Request Form'!$F$6=\"CIASI\",IF(OR('Blank - Request Form'!I168=\"0\",'Blank - Request Form'!I168=\"00000\",'Blank - Request Form'!I168=0),\"\",'Blank - Request Form'!I168),IF('Blank - Request Form'!$F$7=\"CIASI\",IF(OR('Blank - Request Form'!R168=\"0\",'Blank - Request Form'!R168=\"00000\",'Blank - Request Form'!R168=0),\"\",'Blank - Request Form'!R168),\"\"))","v":""},null,{"$f":"IF('Blank - Request Form'!$F$6=\"CIASI\",IF('Blank - Request Form'!K168=0,\"\",'Blank - Request Form'!K168),IF('Blank - Request Form'!$F$7=\"CIASI\",IF('Blank - Request Form'!T168=0,\"\",'Blank - Request Form'!T168),\"\"))","v":""},null,null,null,{"$f":"IF(M134<>\"\",'Blank - Request Form'!$M$2,\"\")","v":""},{"$f":"IF('Blank - Request Form'!$F$6=\"CIASI\",IF('Blank - Request Form'!J168=0,\"\",'Blank - Request Form'!J168),IF('Blank - Request Form'!$F$7=\"CIASI\",IF('Blank - Request Form'!S168=0,\"\",'Blank - Request Form'!S168),\"\"))","v":""},"",134]
[{"$f":"IF('Blank - Request Form'!$F$6=\"CIASI\",IF('Blank - Request Form'!D169=0,\"\",'Blank - Request Form'!D169),IF('Blank - Request Form'!$F$7=\"CIASI\",IF('Blank - Request Form'!M169=0,\"\",'Blank - Request Form'!M169),\"\"))","v":""},{"$f":"IF('Blank - Request Form'!$F$6=\"CIASI\",IF('Blank - Request Form'!E169=0,\"\",'Blank - Request Form'!E169),IF('Blank - Request Form'!$F$7=\"CIASI\",IF('Blank - Request Form'!N169=0,\"\",'Blank - Request Form'!N169),\"\"))","v":""},{"$f":"IF('Blank - Request Form'!$F$6=\"CIASI\",IF(OR('Blank - Request Form'!F169=\"000\",'Blank - Request Form'!F169=0),\"\",'Blank - Request Form'!F169),IF('Blank - Request Form'!$F$7=\"CIASI\",IF(OR('Blank - Request Form'!O169=\"000\",'Blank - Request Form'!O169=0),\"\",'Blank - Request Form'!O169),\"\"))","v":""},{"$f":"IF('Blank - Request Form'!$F$6=\"CIASI\",IF(OR('Blank - Request Form'!G169=\"0\",'Blank - Request Form'!G169=\"00000\",'Blank - Request Form'!G169=0),\"\",'Blank - Request Form'!G169),IF('Blank - Request Form'!$F$7=\"CIASI\",IF(OR('Blank - Request Form'!P169=\"0\",'Blank - Request Form'!P169=\"00000\",'Blank - Request Form'!P169=0),\"\",'Blank - Request Form'!P169),\"\"))","v":""},{"$f":"IF('Blank - Request Form'!$F$6=\"CIASI\",IF(OR('Blank - Request Form'!H169=\"0\",'Blank - Request Form'!H169=\"00000\",'Blank - Request Form'!H169=0),\"\",'Blank - Request Form'!H169),IF('Blank - Request Form'!$F$7=\"CIASI\",IF(OR('Blank - Request Form'!Q169=\"0\",'Blank - Request Form'!Q169=\"00000\",'Blank - Request Form'!Q169=0),\"\",'Blank - Request Form'!Q169),\"\"))","v":""},{"$f":"IF('Blank - Request Form'!$F$6=\"CIASI\",IF(OR('Blank - Request Form'!I169=\"0\",'Blank - Request Form'!I169=\"00000\",'Blank - Request Form'!I169=0),\"\",'Blank - Request Form'!I169),IF('Blank - Request Form'!$F$7=\"CIASI\",IF(OR('Blank - Request Form'!R169=\"0\",'Blank - Request Form'!R169=\"00000\",'Blank - Request Form'!R169=0),\"\",'Blank - Request Form'!R169),\"\"))","v":""},null,{"$f":"IF('Blank - Request Form'!$F$6=\"CIASI\",IF('Blank - Request Form'!K169=0,\"\",'Blank - Request Form'!K169),IF('Blank - Request Form'!$F$7=\"CIASI\",IF('Blank - Request Form'!T169=0,\"\",'Blank - Request Form'!T169),\"\"))","v":""},null,null,null,{"$f":"IF(M135<>\"\",'Blank - Request Form'!$M$2,\"\")","v":""},{"$f":"IF('Blank - Request Form'!$F$6=\"CIASI\",IF('Blank - Request Form'!J169=0,\"\",'Blank - Request Form'!J169),IF('Blank - Request Form'!$F$7=\"CIASI\",IF('Blank - Request Form'!S169=0,\"\",'Blank - Request Form'!S169),\"\"))","v":""},"",135]
[{"$f":"IF('Blank - Request Form'!$F$6=\"CIASI\",IF('Blank - Request Form'!D170=0,\"\",'Blank - Request Form'!D170),IF('Blank - Request Form'!$F$7=\"CIASI\",IF('Blank - Request Form'!M170=0,\"\",'Blank - Request Form'!M170),\"\"))","v":""},{"$f":"IF('Blank - Request Form'!$F$6=\"CIASI\",IF('Blank - Request Form'!E170=0,\"\",'Blank - Request Form'!E170),IF('Blank - Request Form'!$F$7=\"CIASI\",IF('Blank - Request Form'!N170=0,\"\",'Blank - Request Form'!N170),\"\"))","v":""},{"$f":"IF('Blank - Request Form'!$F$6=\"CIASI\",IF(OR('Blank - Request Form'!F170=\"000\",'Blank - Request Form'!F170=0),\"\",'Blank - Request Form'!F170),IF('Blank - Request Form'!$F$7=\"CIASI\",IF(OR('Blank - Request Form'!O170=\"000\",'Blank - Request Form'!O170=0),\"\",'Blank - Request Form'!O170),\"\"))","v":""},{"$f":"IF('Blank - Request Form'!$F$6=\"CIASI\",IF(OR('Blank - Request Form'!G170=\"0\",'Blank - Request Form'!G170=\"00000\",'Blank - Request Form'!G170=0),\"\",'Blank - Request Form'!G170),IF('Blank - Request Form'!$F$7=\"CIASI\",IF(OR('Blank - Request Form'!P170=\"0\",'Blank - Request Form'!P170=\"00000\",'Blank - Request Form'!P170=0),\"\",'Blank - Request Form'!P170),\"\"))","v":""},{"$f":"IF('Blank - Request Form'!$F$6=\"CIASI\",IF(OR('Blank - Request Form'!H170=\"0\",'Blank - Request Form'!H170=\"00000\",'Blank - Request Form'!H170=0),\"\",'Blank - Request Form'!H170),IF('Blank - Request Form'!$F$7=\"CIASI\",IF(OR('Blank - Request Form'!Q170=\"0\",'Blank - Request Form'!Q170=\"00000\",'Blank - Request Form'!Q170=0),\"\",'Blank - Request Form'!Q170),\"\"))","v":""},{"$f":"IF('Blank - Request Form'!$F$6=\"CIASI\",IF(OR('Blank - Request Form'!I170=\"0\",'Blank - Request Form'!I170=\"00000\",'Blank - Request Form'!I170=0),\"\",'Blank - Request Form'!I170),IF('Blank - Request Form'!$F$7=\"CIASI\",IF(OR('Blank - Request Form'!R170=\"0\",'Blank - Request Form'!R170=\"00000\",'Blank - Request Form'!R170=0),\"\",'Blank - Request Form'!R170),\"\"))","v":""},null,{"$f":"IF('Blank - Request Form'!$F$6=\"CIASI\",IF('Blank - Request Form'!K170=0,\"\",'Blank - Request Form'!K170),IF('Blank - Request Form'!$F$7=\"CIASI\",IF('Blank - Request Form'!T170=0,\"\",'Blank - Request Form'!T170),\"\"))","v":""},null,null,null,{"$f":"IF(M136<>\"\",'Blank - Request Form'!$M$2,\"\")","v":""},{"$f":"IF('Blank - Request Form'!$F$6=\"CIASI\",IF('Blank - Request Form'!J170=0,\"\",'Blank - Request Form'!J170),IF('Blank - Request Form'!$F$7=\"CIASI\",IF('Blank - Request Form'!S170=0,\"\",'Blank - Request Form'!S170),\"\"))","v":""},"",136]
[{"$f":"IF('Blank - Request Form'!$F$6=\"CIASI\",IF('Blank - Request Form'!D171=0,\"\",'Blank - Request Form'!D171),IF('Blank - Request Form'!$F$7=\"CIASI\",IF('Blank - Request Form'!M171=0,\"\",'Blank - Request Form'!M171),\"\"))","v":""},{"$f":"IF('Blank - Request Form'!$F$6=\"CIASI\",IF('Blank - Request Form'!E171=0,\"\",'Blank - Request Form'!E171),IF('Blank - Request Form'!$F$7=\"CIASI\",IF('Blank - Request Form'!N171=0,\"\",'Blank - Request Form'!N171),\"\"))","v":""},{"$f":"IF('Blank - Request Form'!$F$6=\"CIASI\",IF(OR('Blank - Request Form'!F171=\"000\",'Blank - Request Form'!F171=0),\"\",'Blank - Request Form'!F171),IF('Blank - Request Form'!$F$7=\"CIASI\",IF(OR('Blank - Request Form'!O171=\"000\",'Blank - Request Form'!O171=0),\"\",'Blank - Request Form'!O171),\"\"))","v":""},{"$f":"IF('Blank - Request Form'!$F$6=\"CIASI\",IF(OR('Blank - Request Form'!G171=\"0\",'Blank - Request Form'!G171=\"00000\",'Blank - Request Form'!G171=0),\"\",'Blank - Request Form'!G171),IF('Blank - Request Form'!$F$7=\"CIASI\",IF(OR('Blank - Request Form'!P171=\"0\",'Blank - Request Form'!P171=\"00000\",'Blank - Request Form'!P171=0),\"\",'Blank - Request Form'!P171),\"\"))","v":""},{"$f":"IF('Blank - Request Form'!$F$6=\"CIASI\",IF(OR('Blank - Request Form'!H171=\"0\",'Blank - Request Form'!H171=\"00000\",'Blank - Request Form'!H171=0),\"\",'Blank - Request Form'!H171),IF('Blank - Request Form'!$F$7=\"CIASI\",IF(OR('Blank - Request Form'!Q171=\"0\",'Blank - Request Form'!Q171=\"00000\",'Blank - Request Form'!Q171=0),\"\",'Blank - Request Form'!Q171),\"\"))","v":""},{"$f":"IF('Blank - Request Form'!$F$6=\"CIASI\",IF(OR('Blank - Request Form'!I171=\"0\",'Blank - Request Form'!I171=\"00000\",'Blank - Request Form'!I171=0),\"\",'Blank - Request Form'!I171),IF('Blank - Request Form'!$F$7=\"CIASI\",IF(OR('Blank - Request Form'!R171=\"0\",'Blank - Request Form'!R171=\"00000\",'Blank - Request Form'!R171=0),\"\",'Blank - Request Form'!R171),\"\"))","v":""},null,{"$f":"IF('Blank - Request Form'!$F$6=\"CIASI\",IF('Blank - Request Form'!K171=0,\"\",'Blank - Request Form'!K171),IF('Blank - Request Form'!$F$7=\"CIASI\",IF('Blank - Request Form'!T171=0,\"\",'Blank - Request Form'!T171),\"\"))","v":""},null,null,null,{"$f":"IF(M137<>\"\",'Blank - Request Form'!$M$2,\"\")","v":""},{"$f":"IF('Blank - Request Form'!$F$6=\"CIASI\",IF('Blank - Request Form'!J171=0,\"\",'Blank - Request Form'!J171),IF('Blank - Request Form'!$F$7=\"CIASI\",IF('Blank - Request Form'!S171=0,\"\",'Blank - Request Form'!S171),\"\"))","v":""},"",137]
[{"$f":"IF('Blank - Request Form'!$F$6=\"CIASI\",IF('Blank - Request Form'!D172=0,\"\",'Blank - Request Form'!D172),IF('Blank - Request Form'!$F$7=\"CIASI\",IF('Blank - Request Form'!M172=0,\"\",'Blank - Request Form'!M172),\"\"))","v":""},{"$f":"IF('Blank - Request Form'!$F$6=\"CIASI\",IF('Blank - Request Form'!E172=0,\"\",'Blank - Request Form'!E172),IF('Blank - Request Form'!$F$7=\"CIASI\",IF('Blank - Request Form'!N172=0,\"\",'Blank - Request Form'!N172),\"\"))","v":""},{"$f":"IF('Blank - Request Form'!$F$6=\"CIASI\",IF(OR('Blank - Request Form'!F172=\"000\",'Blank - Request Form'!F172=0),\"\",'Blank - Request Form'!F172),IF('Blank - Request Form'!$F$7=\"CIASI\",IF(OR('Blank - Request Form'!O172=\"000\",'Blank - Request Form'!O172=0),\"\",'Blank - Request Form'!O172),\"\"))","v":""},{"$f":"IF('Blank - Request Form'!$F$6=\"CIASI\",IF(OR('Blank - Request Form'!G172=\"0\",'Blank - Request Form'!G172=\"00000\",'Blank - Request Form'!G172=0),\"\",'Blank - Request Form'!G172),IF('Blank - Request Form'!$F$7=\"CIASI\",IF(OR('Blank - Request Form'!P172=\"0\",'Blank - Request Form'!P172=\"00000\",'Blank - Request Form'!P172=0),\"\",'Blank - Request Form'!P172),\"\"))","v":""},{"$f":"IF('Blank - Request Form'!$F$6=\"CIASI\",IF(OR('Blank - Request Form'!H172=\"0\",'Blank - Request Form'!H172=\"00000\",'Blank - Request Form'!H172=0),\"\",'Blank - Request Form'!H172),IF('Blank - Request Form'!$F$7=\"CIASI\",IF(OR('Blank - Request Form'!Q172=\"0\",'Blank - Request Form'!Q172=\"00000\",'Blank - Request Form'!Q172=0),\"\",'Blank - Request Form'!Q172),\"\"))","v":""},{"$f":"IF('Blank - Request Form'!$F$6=\"CIASI\",IF(OR('Blank - Request Form'!I172=\"0\",'Blank - Request Form'!I172=\"00000\",'Blank - Request Form'!I172=0),\"\",'Blank - Request Form'!I172),IF('Blank - Request Form'!$F$7=\"CIASI\",IF(OR('Blank - Request Form'!R172=\"0\",'Blank - Request Form'!R172=\"00000\",'Blank - Request Form'!R172=0),\"\",'Blank - Request Form'!R172),\"\"))","v":""},null,{"$f":"IF('Blank - Request Form'!$F$6=\"CIASI\",IF('Blank - Request Form'!K172=0,\"\",'Blank - Request Form'!K172),IF('Blank - Request Form'!$F$7=\"CIASI\",IF('Blank - Request Form'!T172=0,\"\",'Blank - Request Form'!T172),\"\"))","v":""},null,null,null,{"$f":"IF(M138<>\"\",'Blank - Request Form'!$M$2,\"\")","v":""},{"$f":"IF('Blank - Request Form'!$F$6=\"CIASI\",IF('Blank - Request Form'!J172=0,\"\",'Blank - Request Form'!J172),IF('Blank - Request Form'!$F$7=\"CIASI\",IF('Blank - Request Form'!S172=0,\"\",'Blank - Request Form'!S172),\"\"))","v":""},"",138]
[{"$f":"IF('Blank - Request Form'!$F$6=\"CIASI\",IF('Blank - Request Form'!D173=0,\"\",'Blank - Request Form'!D173),IF('Blank - Request Form'!$F$7=\"CIASI\",IF('Blank - Request Form'!M173=0,\"\",'Blank - Request Form'!M173),\"\"))","v":""},{"$f":"IF('Blank - Request Form'!$F$6=\"CIASI\",IF('Blank - Request Form'!E173=0,\"\",'Blank - Request Form'!E173),IF('Blank - Request Form'!$F$7=\"CIASI\",IF('Blank - Request Form'!N173=0,\"\",'Blank - Request Form'!N173),\"\"))","v":""},{"$f":"IF('Blank - Request Form'!$F$6=\"CIASI\",IF(OR('Blank - Request Form'!F173=\"000\",'Blank - Request Form'!F173=0),\"\",'Blank - Request Form'!F173),IF('Blank - Request Form'!$F$7=\"CIASI\",IF(OR('Blank - Request Form'!O173=\"000\",'Blank - Request Form'!O173=0),\"\",'Blank - Request Form'!O173),\"\"))","v":""},{"$f":"IF('Blank - Request Form'!$F$6=\"CIASI\",IF(OR('Blank - Request Form'!G173=\"0\",'Blank - Request Form'!G173=\"00000\",'Blank - Request Form'!G173=0),\"\",'Blank - Request Form'!G173),IF('Blank - Request Form'!$F$7=\"CIASI\",IF(OR('Blank - Request Form'!P173=\"0\",'Blank - Request Form'!P173=\"00000\",'Blank - Request Form'!P173=0),\"\",'Blank - Request Form'!P173),\"\"))","v":""},{"$f":"IF('Blank - Request Form'!$F$6=\"CIASI\",IF(OR('Blank - Request Form'!H173=\"0\",'Blank - Request Form'!H173=\"00000\",'Blank - Request Form'!H173=0),\"\",'Blank - Request Form'!H173),IF('Blank - Request Form'!$F$7=\"CIASI\",IF(OR('Blank - Request Form'!Q173=\"0\",'Blank - Request Form'!Q173=\"00000\",'Blank - Request Form'!Q173=0),\"\",'Blank - Request Form'!Q173),\"\"))","v":""},{"$f":"IF('Blank - Request Form'!$F$6=\"CIASI\",IF(OR('Blank - Request Form'!I173=\"0\",'Blank - Request Form'!I173=\"00000\",'Blank - Request Form'!I173=0),\"\",'Blank - Request Form'!I173),IF('Blank - Request Form'!$F$7=\"CIASI\",IF(OR('Blank - Request Form'!R173=\"0\",'Blank - Request Form'!R173=\"00000\",'Blank - Request Form'!R173=0),\"\",'Blank - Request Form'!R173),\"\"))","v":""},null,{"$f":"IF('Blank - Request Form'!$F$6=\"CIASI\",IF('Blank - Request Form'!K173=0,\"\",'Blank - Request Form'!K173),IF('Blank - Request Form'!$F$7=\"CIASI\",IF('Blank - Request Form'!T173=0,\"\",'Blank - Request Form'!T173),\"\"))","v":""},null,null,null,{"$f":"IF(M139<>\"\",'Blank - Request Form'!$M$2,\"\")","v":""},{"$f":"IF('Blank - Request Form'!$F$6=\"CIASI\",IF('Blank - Request Form'!J173=0,\"\",'Blank - Request Form'!J173),IF('Blank - Request Form'!$F$7=\"CIASI\",IF('Blank - Request Form'!S173=0,\"\",'Blank - Request Form'!S173),\"\"))","v":""},"",139]
[{"$f":"IF('Blank - Request Form'!$F$6=\"CIASI\",IF('Blank - Request Form'!D174=0,\"\",'Blank - Request Form'!D174),IF('Blank - Request Form'!$F$7=\"CIASI\",IF('Blank - Request Form'!M174=0,\"\",'Blank - Request Form'!M174),\"\"))","v":""},{"$f":"IF('Blank - Request Form'!$F$6=\"CIASI\",IF('Blank - Request Form'!E174=0,\"\",'Blank - Request Form'!E174),IF('Blank - Request Form'!$F$7=\"CIASI\",IF('Blank - Request Form'!N174=0,\"\",'Blank - Request Form'!N174),\"\"))","v":""},{"$f":"IF('Blank - Request Form'!$F$6=\"CIASI\",IF(OR('Blank - Request Form'!F174=\"000\",'Blank - Request Form'!F174=0),\"\",'Blank - Request Form'!F174),IF('Blank - Request Form'!$F$7=\"CIASI\",IF(OR('Blank - Request Form'!O174=\"000\",'Blank - Request Form'!O174=0),\"\",'Blank - Request Form'!O174),\"\"))","v":""},{"$f":"IF('Blank - Request Form'!$F$6=\"CIASI\",IF(OR('Blank - Request Form'!G174=\"0\",'Blank - Request Form'!G174=\"00000\",'Blank - Request Form'!G174=0),\"\",'Blank - Request Form'!G174),IF('Blank - Request Form'!$F$7=\"CIASI\",IF(OR('Blank - Request Form'!P174=\"0\",'Blank - Request Form'!P174=\"00000\",'Blank - Request Form'!P174=0),\"\",'Blank - Request Form'!P174),\"\"))","v":""},{"$f":"IF('Blank - Request Form'!$F$6=\"CIASI\",IF(OR('Blank - Request Form'!H174=\"0\",'Blank - Request Form'!H174=\"00000\",'Blank - Request Form'!H174=0),\"\",'Blank - Request Form'!H174),IF('Blank - Request Form'!$F$7=\"CIASI\",IF(OR('Blank - Request Form'!Q174=\"0\",'Blank - Request Form'!Q174=\"00000\",'Blank - Request Form'!Q174=0),\"\",'Blank - Request Form'!Q174),\"\"))","v":""},{"$f":"IF('Blank - Request Form'!$F$6=\"CIASI\",IF(OR('Blank - Request Form'!I174=\"0\",'Blank - Request Form'!I174=\"00000\",'Blank - Request Form'!I174=0),\"\",'Blank - Request Form'!I174),IF('Blank - Request Form'!$F$7=\"CIASI\",IF(OR('Blank - Request Form'!R174=\"0\",'Blank - Request Form'!R174=\"00000\",'Blank - Request Form'!R174=0),\"\",'Blank - Request Form'!R174),\"\"))","v":""},null,{"$f":"IF('Blank - Request Form'!$F$6=\"CIASI\",IF('Blank - Request Form'!K174=0,\"\",'Blank - Request Form'!K174),IF('Blank - Request Form'!$F$7=\"CIASI\",IF('Blank - Request Form'!T174=0,\"\",'Blank - Request Form'!T174),\"\"))","v":""},null,null,null,{"$f":"IF(M140<>\"\",'Blank - Request Form'!$M$2,\"\")","v":""},{"$f":"IF('Blank - Request Form'!$F$6=\"CIASI\",IF('Blank - Request Form'!J174=0,\"\",'Blank - Request Form'!J174),IF('Blank - Request Form'!$F$7=\"CIASI\",IF('Blank - Request Form'!S174=0,\"\",'Blank - Request Form'!S174),\"\"))","v":""},"",140]
[{"$f":"IF('Blank - Request Form'!$F$6=\"CIASI\",IF('Blank - Request Form'!D175=0,\"\",'Blank - Request Form'!D175),IF('Blank - Request Form'!$F$7=\"CIASI\",IF('Blank - Request Form'!M175=0,\"\",'Blank - Request Form'!M175),\"\"))","v":""},{"$f":"IF('Blank - Request Form'!$F$6=\"CIASI\",IF('Blank - Request Form'!E175=0,\"\",'Blank - Request Form'!E175),IF('Blank - Request Form'!$F$7=\"CIASI\",IF('Blank - Request Form'!N175=0,\"\",'Blank - Request Form'!N175),\"\"))","v":""},{"$f":"IF('Blank - Request Form'!$F$6=\"CIASI\",IF(OR('Blank - Request Form'!F175=\"000\",'Blank - Request Form'!F175=0),\"\",'Blank - Request Form'!F175),IF('Blank - Request Form'!$F$7=\"CIASI\",IF(OR('Blank - Request Form'!O175=\"000\",'Blank - Request Form'!O175=0),\"\",'Blank - Request Form'!O175),\"\"))","v":""},{"$f":"IF('Blank - Request Form'!$F$6=\"CIASI\",IF(OR('Blank - Request Form'!G175=\"0\",'Blank - Request Form'!G175=\"00000\",'Blank - Request Form'!G175=0),\"\",'Blank - Request Form'!G175),IF('Blank - Request Form'!$F$7=\"CIASI\",IF(OR('Blank - Request Form'!P175=\"0\",'Blank - Request Form'!P175=\"00000\",'Blank - Request Form'!P175=0),\"\",'Blank - Request Form'!P175),\"\"))","v":""},{"$f":"IF('Blank - Request Form'!$F$6=\"CIASI\",IF(OR('Blank - Request Form'!H175=\"0\",'Blank - Request Form'!H175=\"00000\",'Blank - Request Form'!H175=0),\"\",'Blank - Request Form'!H175),IF('Blank - Request Form'!$F$7=\"CIASI\",IF(OR('Blank - Request Form'!Q175=\"0\",'Blank - Request Form'!Q175=\"00000\",'Blank - Request Form'!Q175=0),\"\",'Blank - Request Form'!Q175),\"\"))","v":""},{"$f":"IF('Blank - Request Form'!$F$6=\"CIASI\",IF(OR('Blank - Request Form'!I175=\"0\",'Blank - Request Form'!I175=\"00000\",'Blank - Request Form'!I175=0),\"\",'Blank - Request Form'!I175),IF('Blank - Request Form'!$F$7=\"CIASI\",IF(OR('Blank - Request Form'!R175=\"0\",'Blank - Request Form'!R175=\"00000\",'Blank - Request Form'!R175=0),\"\",'Blank - Request Form'!R175),\"\"))","v":""},null,{"$f":"IF('Blank - Request Form'!$F$6=\"CIASI\",IF('Blank - Request Form'!K175=0,\"\",'Blank - Request Form'!K175),IF('Blank - Request Form'!$F$7=\"CIASI\",IF('Blank - Request Form'!T175=0,\"\",'Blank - Request Form'!T175),\"\"))","v":""},null,null,null,{"$f":"IF(M141<>\"\",'Blank - Request Form'!$M$2,\"\")","v":""},{"$f":"IF('Blank - Request Form'!$F$6=\"CIASI\",IF('Blank - Request Form'!J175=0,\"\",'Blank - Request Form'!J175),IF('Blank - Request Form'!$F$7=\"CIASI\",IF('Blank - Request Form'!S175=0,\"\",'Blank - Request Form'!S175),\"\"))","v":""},"",141]
[{"$f":"IF('Blank - Request Form'!$F$6=\"CIASI\",IF('Blank - Request Form'!D176=0,\"\",'Blank - Request Form'!D176),IF('Blank - Request Form'!$F$7=\"CIASI\",IF('Blank - Request Form'!M176=0,\"\",'Blank - Request Form'!M176),\"\"))","v":""},{"$f":"IF('Blank - Request Form'!$F$6=\"CIASI\",IF('Blank - Request Form'!E176=0,\"\",'Blank - Request Form'!E176),IF('Blank - Request Form'!$F$7=\"CIASI\",IF('Blank - Request Form'!N176=0,\"\",'Blank - Request Form'!N176),\"\"))","v":""},{"$f":"IF('Blank - Request Form'!$F$6=\"CIASI\",IF(OR('Blank - Request Form'!F176=\"000\",'Blank - Request Form'!F176=0),\"\",'Blank - Request Form'!F176),IF('Blank - Request Form'!$F$7=\"CIASI\",IF(OR('Blank - Request Form'!O176=\"000\",'Blank - Request Form'!O176=0),\"\",'Blank - Request Form'!O176),\"\"))","v":""},{"$f":"IF('Blank - Request Form'!$F$6=\"CIASI\",IF(OR('Blank - Request Form'!G176=\"0\",'Blank - Request Form'!G176=\"00000\",'Blank - Request Form'!G176=0),\"\",'Blank - Request Form'!G176),IF('Blank - Request Form'!$F$7=\"CIASI\",IF(OR('Blank - Request Form'!P176=\"0\",'Blank - Request Form'!P176=\"00000\",'Blank - Request Form'!P176=0),\"\",'Blank - Request Form'!P176),\"\"))","v":""},{"$f":"IF('Blank - Request Form'!$F$6=\"CIASI\",IF(OR('Blank - Request Form'!H176=\"0\",'Blank - Request Form'!H176=\"00000\",'Blank - Request Form'!H176=0),\"\",'Blank - Request Form'!H176),IF('Blank - Request Form'!$F$7=\"CIASI\",IF(OR('Blank - Request Form'!Q176=\"0\",'Blank - Request Form'!Q176=\"00000\",'Blank - Request Form'!Q176=0),\"\",'Blank - Request Form'!Q176),\"\"))","v":""},{"$f":"IF('Blank - Request Form'!$F$6=\"CIASI\",IF(OR('Blank - Request Form'!I176=\"0\",'Blank - Request Form'!I176=\"00000\",'Blank - Request Form'!I176=0),\"\",'Blank - Request Form'!I176),IF('Blank - Request Form'!$F$7=\"CIASI\",IF(OR('Blank - Request Form'!R176=\"0\",'Blank - Request Form'!R176=\"00000\",'Blank - Request Form'!R176=0),\"\",'Blank - Request Form'!R176),\"\"))","v":""},null,{"$f":"IF('Blank - Request Form'!$F$6=\"CIASI\",IF('Blank - Request Form'!K176=0,\"\",'Blank - Request Form'!K176),IF('Blank - Request Form'!$F$7=\"CIASI\",IF('Blank - Request Form'!T176=0,\"\",'Blank - Request Form'!T176),\"\"))","v":""},null,null,null,{"$f":"IF(M142<>\"\",'Blank - Request Form'!$M$2,\"\")","v":""},{"$f":"IF('Blank - Request Form'!$F$6=\"CIASI\",IF('Blank - Request Form'!J176=0,\"\",'Blank - Request Form'!J176),IF('Blank - Request Form'!$F$7=\"CIASI\",IF('Blank - Request Form'!S176=0,\"\",'Blank - Request Form'!S176),\"\"))","v":""},"",142]
[{"$f":"IF('Blank - Request Form'!$F$6=\"CIASI\",IF('Blank - Request Form'!D177=0,\"\",'Blank - Request Form'!D177),IF('Blank - Request Form'!$F$7=\"CIASI\",IF('Blank - Request Form'!M177=0,\"\",'Blank - Request Form'!M177),\"\"))","v":""},{"$f":"IF('Blank - Request Form'!$F$6=\"CIASI\",IF('Blank - Request Form'!E177=0,\"\",'Blank - Request Form'!E177),IF('Blank - Request Form'!$F$7=\"CIASI\",IF('Blank - Request Form'!N177=0,\"\",'Blank - Request Form'!N177),\"\"))","v":""},{"$f":"IF('Blank - Request Form'!$F$6=\"CIASI\",IF(OR('Blank - Request Form'!F177=\"000\",'Blank - Request Form'!F177=0),\"\",'Blank - Request Form'!F177),IF('Blank - Request Form'!$F$7=\"CIASI\",IF(OR('Blank - Request Form'!O177=\"000\",'Blank - Request Form'!O177=0),\"\",'Blank - Request Form'!O177),\"\"))","v":""},{"$f":"IF('Blank - Request Form'!$F$6=\"CIASI\",IF(OR('Blank - Request Form'!G177=\"0\",'Blank - Request Form'!G177=\"00000\",'Blank - Request Form'!G177=0),\"\",'Blank - Request Form'!G177),IF('Blank - Request Form'!$F$7=\"CIASI\",IF(OR('Blank - Request Form'!P177=\"0\",'Blank - Request Form'!P177=\"00000\",'Blank - Request Form'!P177=0),\"\",'Blank - Request Form'!P177),\"\"))","v":""},{"$f":"IF('Blank - Request Form'!$F$6=\"CIASI\",IF(OR('Blank - Request Form'!H177=\"0\",'Blank - Request Form'!H177=\"00000\",'Blank - Request Form'!H177=0),\"\",'Blank - Request Form'!H177),IF('Blank - Request Form'!$F$7=\"CIASI\",IF(OR('Blank - Request Form'!Q177=\"0\",'Blank - Request Form'!Q177=\"00000\",'Blank - Request Form'!Q177=0),\"\",'Blank - Request Form'!Q177),\"\"))","v":""},{"$f":"IF('Blank - Request Form'!$F$6=\"CIASI\",IF(OR('Blank - Request Form'!I177=\"0\",'Blank - Request Form'!I177=\"00000\",'Blank - Request Form'!I177=0),\"\",'Blank - Request Form'!I177),IF('Blank - Request Form'!$F$7=\"CIASI\",IF(OR('Blank - Request Form'!R177=\"0\",'Blank - Request Form'!R177=\"00000\",'Blank - Request Form'!R177=0),\"\",'Blank - Request Form'!R177),\"\"))","v":""},null,{"$f":"IF('Blank - Request Form'!$F$6=\"CIASI\",IF('Blank - Request Form'!K177=0,\"\",'Blank - Request Form'!K177),IF('Blank - Request Form'!$F$7=\"CIASI\",IF('Blank - Request Form'!T177=0,\"\",'Blank - Request Form'!T177),\"\"))","v":""},null,null,null,{"$f":"IF(M143<>\"\",'Blank - Request Form'!$M$2,\"\")","v":""},{"$f":"IF('Blank - Request Form'!$F$6=\"CIASI\",IF('Blank - Request Form'!J177=0,\"\",'Blank - Request Form'!J177),IF('Blank - Request Form'!$F$7=\"CIASI\",IF('Blank - Request Form'!S177=0,\"\",'Blank - Request Form'!S177),\"\"))","v":""},"",143]
[{"$f":"IF('Blank - Request Form'!$F$6=\"CIASI\",IF('Blank - Request Form'!D178=0,\"\",'Blank - Request Form'!D178),IF('Blank - Request Form'!$F$7=\"CIASI\",IF('Blank - Request Form'!M178=0,\"\",'Blank - Request Form'!M178),\"\"))","v":""},{"$f":"IF('Blank - Request Form'!$F$6=\"CIASI\",IF('Blank - Request Form'!E178=0,\"\",'Blank - Request Form'!E178),IF('Blank - Request Form'!$F$7=\"CIASI\",IF('Blank - Request Form'!N178=0,\"\",'Blank - Request Form'!N178),\"\"))","v":""},{"$f":"IF('Blank - Request Form'!$F$6=\"CIASI\",IF(OR('Blank - Request Form'!F178=\"000\",'Blank - Request Form'!F178=0),\"\",'Blank - Request Form'!F178),IF('Blank - Request Form'!$F$7=\"CIASI\",IF(OR('Blank - Request Form'!O178=\"000\",'Blank - Request Form'!O178=0),\"\",'Blank - Request Form'!O178),\"\"))","v":""},{"$f":"IF('Blank - Request Form'!$F$6=\"CIASI\",IF(OR('Blank - Request Form'!G178=\"0\",'Blank - Request Form'!G178=\"00000\",'Blank - Request Form'!G178=0),\"\",'Blank - Request Form'!G178),IF('Blank - Request Form'!$F$7=\"CIASI\",IF(OR('Blank - Request Form'!P178=\"0\",'Blank - Request Form'!P178=\"00000\",'Blank - Request Form'!P178=0),\"\",'Blank - Request Form'!P178),\"\"))","v":""},{"$f":"IF('Blank - Request Form'!$F$6=\"CIASI\",IF(OR('Blank - Request Form'!H178=\"0\",'Blank - Request Form'!H178=\"00000\",'Blank - Request Form'!H178=0),\"\",'Blank - Request Form'!H178),IF('Blank - Request Form'!$F$7=\"CIASI\",IF(OR('Blank - Request Form'!Q178=\"0\",'Blank - Request Form'!Q178=\"00000\",'Blank - Request Form'!Q178=0),\"\",'Blank - Request Form'!Q178),\"\"))","v":""},{"$f":"IF('Blank - Request Form'!$F$6=\"CIASI\",IF(OR('Blank - Request Form'!I178=\"0\",'Blank - Request Form'!I178=\"00000\",'Blank - Request Form'!I178=0),\"\",'Blank - Request Form'!I178),IF('Blank - Request Form'!$F$7=\"CIASI\",IF(OR('Blank - Request Form'!R178=\"0\",'Blank - Request Form'!R178=\"00000\",'Blank - Request Form'!R178=0),\"\",'Blank - Request Form'!R178),\"\"))","v":""},null,{"$f":"IF('Blank - Request Form'!$F$6=\"CIASI\",IF('Blank - Request Form'!K178=0,\"\",'Blank - Request Form'!K178),IF('Blank - Request Form'!$F$7=\"CIASI\",IF('Blank - Request Form'!T178=0,\"\",'Blank - Request Form'!T178),\"\"))","v":""},null,null,null,{"$f":"IF(M144<>\"\",'Blank - Request Form'!$M$2,\"\")","v":""},{"$f":"IF('Blank - Request Form'!$F$6=\"CIASI\",IF('Blank - Request Form'!J178=0,\"\",'Blank - Request Form'!J178),IF('Blank - Request Form'!$F$7=\"CIASI\",IF('Blank - Request Form'!S178=0,\"\",'Blank - Request Form'!S178),\"\"))","v":""},"",144]
[{"$f":"IF('Blank - Request Form'!$F$6=\"CIASI\",IF('Blank - Request Form'!D179=0,\"\",'Blank - Request Form'!D179),IF('Blank - Request Form'!$F$7=\"CIASI\",IF('Blank - Request Form'!M179=0,\"\",'Blank - Request Form'!M179),\"\"))","v":""},{"$f":"IF('Blank - Request Form'!$F$6=\"CIASI\",IF('Blank - Request Form'!E179=0,\"\",'Blank - Request Form'!E179),IF('Blank - Request Form'!$F$7=\"CIASI\",IF('Blank - Request Form'!N179=0,\"\",'Blank - Request Form'!N179),\"\"))","v":""},{"$f":"IF('Blank - Request Form'!$F$6=\"CIASI\",IF(OR('Blank - Request Form'!F179=\"000\",'Blank - Request Form'!F179=0),\"\",'Blank - Request Form'!F179),IF('Blank - Request Form'!$F$7=\"CIASI\",IF(OR('Blank - Request Form'!O179=\"000\",'Blank - Request Form'!O179=0),\"\",'Blank - Request Form'!O179),\"\"))","v":""},{"$f":"IF('Blank - Request Form'!$F$6=\"CIASI\",IF(OR('Blank - Request Form'!G179=\"0\",'Blank - Request Form'!G179=\"00000\",'Blank - Request Form'!G179=0),\"\",'Blank - Request Form'!G179),IF('Blank - Request Form'!$F$7=\"CIASI\",IF(OR('Blank - Request Form'!P179=\"0\",'Blank - Request Form'!P179=\"00000\",'Blank - Request Form'!P179=0),\"\",'Blank - Request Form'!P179),\"\"))","v":""},{"$f":"IF('Blank - Request Form'!$F$6=\"CIASI\",IF(OR('Blank - Request Form'!H179=\"0\",'Blank - Request Form'!H179=\"00000\",'Blank - Request Form'!H179=0),\"\",'Blank - Request Form'!H179),IF('Blank - Request Form'!$F$7=\"CIASI\",IF(OR('Blank - Request Form'!Q179=\"0\",'Blank - Request Form'!Q179=\"00000\",'Blank - Request Form'!Q179=0),\"\",'Blank - Request Form'!Q179),\"\"))","v":""},{"$f":"IF('Blank - Request Form'!$F$6=\"CIASI\",IF(OR('Blank - Request Form'!I179=\"0\",'Blank - Request Form'!I179=\"00000\",'Blank - Request Form'!I179=0),\"\",'Blank - Request Form'!I179),IF('Blank - Request Form'!$F$7=\"CIASI\",IF(OR('Blank - Request Form'!R179=\"0\",'Blank - Request Form'!R179=\"00000\",'Blank - Request Form'!R179=0),\"\",'Blank - Request Form'!R179),\"\"))","v":""},null,{"$f":"IF('Blank - Request Form'!$F$6=\"CIASI\",IF('Blank - Request Form'!K179=0,\"\",'Blank - Request Form'!K179),IF('Blank - Request Form'!$F$7=\"CIASI\",IF('Blank - Request Form'!T179=0,\"\",'Blank - Request Form'!T179),\"\"))","v":""},null,null,null,{"$f":"IF(M145<>\"\",'Blank - Request Form'!$M$2,\"\")","v":""},{"$f":"IF('Blank - Request Form'!$F$6=\"CIASI\",IF('Blank - Request Form'!J179=0,\"\",'Blank - Request Form'!J179),IF('Blank - Request Form'!$F$7=\"CIASI\",IF('Blank - Request Form'!S179=0,\"\",'Blank - Request Form'!S179),\"\"))","v":""},"",145]
[{"$f":"IF('Blank - Request Form'!$F$6=\"CIASI\",IF('Blank - Request Form'!D180=0,\"\",'Blank - Request Form'!D180),IF('Blank - Request Form'!$F$7=\"CIASI\",IF('Blank - Request Form'!M180=0,\"\",'Blank - Request Form'!M180),\"\"))","v":""},{"$f":"IF('Blank - Request Form'!$F$6=\"CIASI\",IF('Blank - Request Form'!E180=0,\"\",'Blank - Request Form'!E180),IF('Blank - Request Form'!$F$7=\"CIASI\",IF('Blank - Request Form'!N180=0,\"\",'Blank - Request Form'!N180),\"\"))","v":""},{"$f":"IF('Blank - Request Form'!$F$6=\"CIASI\",IF(OR('Blank - Request Form'!F180=\"000\",'Blank - Request Form'!F180=0),\"\",'Blank - Request Form'!F180),IF('Blank - Request Form'!$F$7=\"CIASI\",IF(OR('Blank - Request Form'!O180=\"000\",'Blank - Request Form'!O180=0),\"\",'Blank - Request Form'!O180),\"\"))","v":""},{"$f":"IF('Blank - Request Form'!$F$6=\"CIASI\",IF(OR('Blank - Request Form'!G180=\"0\",'Blank - Request Form'!G180=\"00000\",'Blank - Request Form'!G180=0),\"\",'Blank - Request Form'!G180),IF('Blank - Request Form'!$F$7=\"CIASI\",IF(OR('Blank - Request Form'!P180=\"0\",'Blank - Request Form'!P180=\"00000\",'Blank - Request Form'!P180=0),\"\",'Blank - Request Form'!P180),\"\"))","v":""},{"$f":"IF('Blank - Request Form'!$F$6=\"CIASI\",IF(OR('Blank - Request Form'!H180=\"0\",'Blank - Request Form'!H180=\"00000\",'Blank - Request Form'!H180=0),\"\",'Blank - Request Form'!H180),IF('Blank - Request Form'!$F$7=\"CIASI\",IF(OR('Blank - Request Form'!Q180=\"0\",'Blank - Request Form'!Q180=\"00000\",'Blank - Request Form'!Q180=0),\"\",'Blank - Request Form'!Q180),\"\"))","v":""},{"$f":"IF('Blank - Request Form'!$F$6=\"CIASI\",IF(OR('Blank - Request Form'!I180=\"0\",'Blank - Request Form'!I180=\"00000\",'Blank - Request Form'!I180=0),\"\",'Blank - Request Form'!I180),IF('Blank - Request Form'!$F$7=\"CIASI\",IF(OR('Blank - Request Form'!R180=\"0\",'Blank - Request Form'!R180=\"00000\",'Blank - Request Form'!R180=0),\"\",'Blank - Request Form'!R180),\"\"))","v":""},null,{"$f":"IF('Blank - Request Form'!$F$6=\"CIASI\",IF('Blank - Request Form'!K180=0,\"\",'Blank - Request Form'!K180),IF('Blank - Request Form'!$F$7=\"CIASI\",IF('Blank - Request Form'!T180=0,\"\",'Blank - Request Form'!T180),\"\"))","v":""},null,null,null,{"$f":"IF(M146<>\"\",'Blank - Request Form'!$M$2,\"\")","v":""},{"$f":"IF('Blank - Request Form'!$F$6=\"CIASI\",IF('Blank - Request Form'!J180=0,\"\",'Blank - Request Form'!J180),IF('Blank - Request Form'!$F$7=\"CIASI\",IF('Blank - Request Form'!S180=0,\"\",'Blank - Request Form'!S180),\"\"))","v":""},"",146]
[{"$f":"IF('Blank - Request Form'!$F$6=\"CIASI\",IF('Blank - Request Form'!D181=0,\"\",'Blank - Request Form'!D181),IF('Blank - Request Form'!$F$7=\"CIASI\",IF('Blank - Request Form'!M181=0,\"\",'Blank - Request Form'!M181),\"\"))","v":""},{"$f":"IF('Blank - Request Form'!$F$6=\"CIASI\",IF('Blank - Request Form'!E181=0,\"\",'Blank - Request Form'!E181),IF('Blank - Request Form'!$F$7=\"CIASI\",IF('Blank - Request Form'!N181=0,\"\",'Blank - Request Form'!N181),\"\"))","v":""},{"$f":"IF('Blank - Request Form'!$F$6=\"CIASI\",IF(OR('Blank - Request Form'!F181=\"000\",'Blank - Request Form'!F181=0),\"\",'Blank - Request Form'!F181),IF('Blank - Request Form'!$F$7=\"CIASI\",IF(OR('Blank - Request Form'!O181=\"000\",'Blank - Request Form'!O181=0),\"\",'Blank - Request Form'!O181),\"\"))","v":""},{"$f":"IF('Blank - Request Form'!$F$6=\"CIASI\",IF(OR('Blank - Request Form'!G181=\"0\",'Blank - Request Form'!G181=\"00000\",'Blank - Request Form'!G181=0),\"\",'Blank - Request Form'!G181),IF('Blank - Request Form'!$F$7=\"CIASI\",IF(OR('Blank - Request Form'!P181=\"0\",'Blank - Request Form'!P181=\"00000\",'Blank - Request Form'!P181=0),\"\",'Blank - Request Form'!P181),\"\"))","v":""},{"$f":"IF('Blank - Request Form'!$F$6=\"CIASI\",IF(OR('Blank - Request Form'!H181=\"0\",'Blank - Request Form'!H181=\"00000\",'Blank - Request Form'!H181=0),\"\",'Blank - Request Form'!H181),IF('Blank - Request Form'!$F$7=\"CIASI\",IF(OR('Blank - Request Form'!Q181=\"0\",'Blank - Request Form'!Q181=\"00000\",'Blank - Request Form'!Q181=0),\"\",'Blank - Request Form'!Q181),\"\"))","v":""},{"$f":"IF('Blank - Request Form'!$F$6=\"CIASI\",IF(OR('Blank - Request Form'!I181=\"0\",'Blank - Request Form'!I181=\"00000\",'Blank - Request Form'!I181=0),\"\",'Blank - Request Form'!I181),IF('Blank - Request Form'!$F$7=\"CIASI\",IF(OR('Blank - Request Form'!R181=\"0\",'Blank - Request Form'!R181=\"00000\",'Blank - Request Form'!R181=0),\"\",'Blank - Request Form'!R181),\"\"))","v":""},null,{"$f":"IF('Blank - Request Form'!$F$6=\"CIASI\",IF('Blank - Request Form'!K181=0,\"\",'Blank - Request Form'!K181),IF('Blank - Request Form'!$F$7=\"CIASI\",IF('Blank - Request Form'!T181=0,\"\",'Blank - Request Form'!T181),\"\"))","v":""},null,null,null,{"$f":"IF(M147<>\"\",'Blank - Request Form'!$M$2,\"\")","v":""},{"$f":"IF('Blank - Request Form'!$F$6=\"CIASI\",IF('Blank - Request Form'!J181=0,\"\",'Blank - Request Form'!J181),IF('Blank - Request Form'!$F$7=\"CIASI\",IF('Blank - Request Form'!S181=0,\"\",'Blank - Request Form'!S181),\"\"))","v":""},"",147]
[{"$f":"IF('Blank - Request Form'!$F$6=\"CIASI\",IF('Blank - Request Form'!D182=0,\"\",'Blank - Request Form'!D182),IF('Blank - Request Form'!$F$7=\"CIASI\",IF('Blank - Request Form'!M182=0,\"\",'Blank - Request Form'!M182),\"\"))","v":""},{"$f":"IF('Blank - Request Form'!$F$6=\"CIASI\",IF('Blank - Request Form'!E182=0,\"\",'Blank - Request Form'!E182),IF('Blank - Request Form'!$F$7=\"CIASI\",IF('Blank - Request Form'!N182=0,\"\",'Blank - Request Form'!N182),\"\"))","v":""},{"$f":"IF('Blank - Request Form'!$F$6=\"CIASI\",IF(OR('Blank - Request Form'!F182=\"000\",'Blank - Request Form'!F182=0),\"\",'Blank - Request Form'!F182),IF('Blank - Request Form'!$F$7=\"CIASI\",IF(OR('Blank - Request Form'!O182=\"000\",'Blank - Request Form'!O182=0),\"\",'Blank - Request Form'!O182),\"\"))","v":""},{"$f":"IF('Blank - Request Form'!$F$6=\"CIASI\",IF(OR('Blank - Request Form'!G182=\"0\",'Blank - Request Form'!G182=\"00000\",'Blank - Request Form'!G182=0),\"\",'Blank - Request Form'!G182),IF('Blank - Request Form'!$F$7=\"CIASI\",IF(OR('Blank - Request Form'!P182=\"0\",'Blank - Request Form'!P182=\"00000\",'Blank - Request Form'!P182=0),\"\",'Blank - Request Form'!P182),\"\"))","v":""},{"$f":"IF('Blank - Request Form'!$F$6=\"CIASI\",IF(OR('Blank - Request Form'!H182=\"0\",'Blank - Request Form'!H182=\"00000\",'Blank - Request Form'!H182=0),\"\",'Blank - Request Form'!H182),IF('Blank - Request Form'!$F$7=\"CIASI\",IF(OR('Blank - Request Form'!Q182=\"0\",'Blank - Request Form'!Q182=\"00000\",'Blank - Request Form'!Q182=0),\"\",'Blank - Request Form'!Q182),\"\"))","v":""},{"$f":"IF('Blank - Request Form'!$F$6=\"CIASI\",IF(OR('Blank - Request Form'!I182=\"0\",'Blank - Request Form'!I182=\"00000\",'Blank - Request Form'!I182=0),\"\",'Blank - Request Form'!I182),IF('Blank - Request Form'!$F$7=\"CIASI\",IF(OR('Blank - Request Form'!R182=\"0\",'Blank - Request Form'!R182=\"00000\",'Blank - Request Form'!R182=0),\"\",'Blank - Request Form'!R182),\"\"))","v":""},null,{"$f":"IF('Blank - Request Form'!$F$6=\"CIASI\",IF('Blank - Request Form'!K182=0,\"\",'Blank - Request Form'!K182),IF('Blank - Request Form'!$F$7=\"CIASI\",IF('Blank - Request Form'!T182=0,\"\",'Blank - Request Form'!T182),\"\"))","v":""},null,null,null,{"$f":"IF(M148<>\"\",'Blank - Request Form'!$M$2,\"\")","v":""},{"$f":"IF('Blank - Request Form'!$F$6=\"CIASI\",IF('Blank - Request Form'!J182=0,\"\",'Blank - Request Form'!J182),IF('Blank - Request Form'!$F$7=\"CIASI\",IF('Blank - Request Form'!S182=0,\"\",'Blank - Request Form'!S182),\"\"))","v":""},"",148]
[{"$f":"IF('Blank - Request Form'!$F$6=\"CIASI\",IF('Blank - Request Form'!D183=0,\"\",'Blank - Request Form'!D183),IF('Blank - Request Form'!$F$7=\"CIASI\",IF('Blank - Request Form'!M183=0,\"\",'Blank - Request Form'!M183),\"\"))","v":""},{"$f":"IF('Blank - Request Form'!$F$6=\"CIASI\",IF('Blank - Request Form'!E183=0,\"\",'Blank - Request Form'!E183),IF('Blank - Request Form'!$F$7=\"CIASI\",IF('Blank - Request Form'!N183=0,\"\",'Blank - Request Form'!N183),\"\"))","v":""},{"$f":"IF('Blank - Request Form'!$F$6=\"CIASI\",IF(OR('Blank - Request Form'!F183=\"000\",'Blank - Request Form'!F183=0),\"\",'Blank - Request Form'!F183),IF('Blank - Request Form'!$F$7=\"CIASI\",IF(OR('Blank - Request Form'!O183=\"000\",'Blank - Request Form'!O183=0),\"\",'Blank - Request Form'!O183),\"\"))","v":""},{"$f":"IF('Blank - Request Form'!$F$6=\"CIASI\",IF(OR('Blank - Request Form'!G183=\"0\",'Blank - Request Form'!G183=\"00000\",'Blank - Request Form'!G183=0),\"\",'Blank - Request Form'!G183),IF('Blank - Request Form'!$F$7=\"CIASI\",IF(OR('Blank - Request Form'!P183=\"0\",'Blank - Request Form'!P183=\"00000\",'Blank - Request Form'!P183=0),\"\",'Blank - Request Form'!P183),\"\"))","v":""},{"$f":"IF('Blank - Request Form'!$F$6=\"CIASI\",IF(OR('Blank - Request Form'!H183=\"0\",'Blank - Request Form'!H183=\"00000\",'Blank - Request Form'!H183=0),\"\",'Blank - Request Form'!H183),IF('Blank - Request Form'!$F$7=\"CIASI\",IF(OR('Blank - Request Form'!Q183=\"0\",'Blank - Request Form'!Q183=\"00000\",'Blank - Request Form'!Q183=0),\"\",'Blank - Request Form'!Q183),\"\"))","v":""},{"$f":"IF('Blank - Request Form'!$F$6=\"CIASI\",IF(OR('Blank - Request Form'!I183=\"0\",'Blank - Request Form'!I183=\"00000\",'Blank - Request Form'!I183=0),\"\",'Blank - Request Form'!I183),IF('Blank - Request Form'!$F$7=\"CIASI\",IF(OR('Blank - Request Form'!R183=\"0\",'Blank - Request Form'!R183=\"00000\",'Blank - Request Form'!R183=0),\"\",'Blank - Request Form'!R183),\"\"))","v":""},null,{"$f":"IF('Blank - Request Form'!$F$6=\"CIASI\",IF('Blank - Request Form'!K183=0,\"\",'Blank - Request Form'!K183),IF('Blank - Request Form'!$F$7=\"CIASI\",IF('Blank - Request Form'!T183=0,\"\",'Blank - Request Form'!T183),\"\"))","v":""},null,null,null,{"$f":"IF(M149<>\"\",'Blank - Request Form'!$M$2,\"\")","v":""},{"$f":"IF('Blank - Request Form'!$F$6=\"CIASI\",IF('Blank - Request Form'!J183=0,\"\",'Blank - Request Form'!J183),IF('Blank - Request Form'!$F$7=\"CIASI\",IF('Blank - Request Form'!S183=0,\"\",'Blank - Request Form'!S183),\"\"))","v":""},"",149]
[{"$f":"IF('Blank - Request Form'!$F$6=\"CIASI\",IF('Blank - Request Form'!D184=0,\"\",'Blank - Request Form'!D184),IF('Blank - Request Form'!$F$7=\"CIASI\",IF('Blank - Request Form'!M184=0,\"\",'Blank - Request Form'!M184),\"\"))","v":""},{"$f":"IF('Blank - Request Form'!$F$6=\"CIASI\",IF('Blank - Request Form'!E184=0,\"\",'Blank - Request Form'!E184),IF('Blank - Request Form'!$F$7=\"CIASI\",IF('Blank - Request Form'!N184=0,\"\",'Blank - Request Form'!N184),\"\"))","v":""},{"$f":"IF('Blank - Request Form'!$F$6=\"CIASI\",IF(OR('Blank - Request Form'!F184=\"000\",'Blank - Request Form'!F184=0),\"\",'Blank - Request Form'!F184),IF('Blank - Request Form'!$F$7=\"CIASI\",IF(OR('Blank - Request Form'!O184=\"000\",'Blank - Request Form'!O184=0),\"\",'Blank - Request Form'!O184),\"\"))","v":""},{"$f":"IF('Blank - Request Form'!$F$6=\"CIASI\",IF(OR('Blank - Request Form'!G184=\"0\",'Blank - Request Form'!G184=\"00000\",'Blank - Request Form'!G184=0),\"\",'Blank - Request Form'!G184),IF('Blank - Request Form'!$F$7=\"CIASI\",IF(OR('Blank - Request Form'!P184=\"0\",'Blank - Request Form'!P184=\"00000\",'Blank - Request Form'!P184=0),\"\",'Blank - Request Form'!P184),\"\"))","v":""},{"$f":"IF('Blank - Request Form'!$F$6=\"CIASI\",IF(OR('Blank - Request Form'!H184=\"0\",'Blank - Request Form'!H184=\"00000\",'Blank - Request Form'!H184=0),\"\",'Blank - Request Form'!H184),IF('Blank - Request Form'!$F$7=\"CIASI\",IF(OR('Blank - Request Form'!Q184=\"0\",'Blank - Request Form'!Q184=\"00000\",'Blank - Request Form'!Q184=0),\"\",'Blank - Request Form'!Q184),\"\"))","v":""},{"$f":"IF('Blank - Request Form'!$F$6=\"CIASI\",IF(OR('Blank - Request Form'!I184=\"0\",'Blank - Request Form'!I184=\"00000\",'Blank - Request Form'!I184=0),\"\",'Blank - Request Form'!I184),IF('Blank - Request Form'!$F$7=\"CIASI\",IF(OR('Blank - Request Form'!R184=\"0\",'Blank - Request Form'!R184=\"00000\",'Blank - Request Form'!R184=0),\"\",'Blank - Request Form'!R184),\"\"))","v":""},null,{"$f":"IF('Blank - Request Form'!$F$6=\"CIASI\",IF('Blank - Request Form'!K184=0,\"\",'Blank - Request Form'!K184),IF('Blank - Request Form'!$F$7=\"CIASI\",IF('Blank - Request Form'!T184=0,\"\",'Blank - Request Form'!T184),\"\"))","v":""},null,null,null,{"$f":"IF(M150<>\"\",'Blank - Request Form'!$M$2,\"\")","v":""},{"$f":"IF('Blank - Request Form'!$F$6=\"CIASI\",IF('Blank - Request Form'!J184=0,\"\",'Blank - Request Form'!J184),IF('Blank - Request Form'!$F$7=\"CIASI\",IF('Blank - Request Form'!S184=0,\"\",'Blank - Request Form'!S184),\"\"))","v":""},"",150]
[{"$f":"IF('Blank - Request Form'!$F$6=\"CIASI\",IF('Blank - Request Form'!D185=0,\"\",'Blank - Request Form'!D185),IF('Blank - Request Form'!$F$7=\"CIASI\",IF('Blank - Request Form'!M185=0,\"\",'Blank - Request Form'!M185),\"\"))","v":""},{"$f":"IF('Blank - Request Form'!$F$6=\"CIASI\",IF('Blank - Request Form'!E185=0,\"\",'Blank - Request Form'!E185),IF('Blank - Request Form'!$F$7=\"CIASI\",IF('Blank - Request Form'!N185=0,\"\",'Blank - Request Form'!N185),\"\"))","v":""},{"$f":"IF('Blank - Request Form'!$F$6=\"CIASI\",IF(OR('Blank - Request Form'!F185=\"000\",'Blank - Request Form'!F185=0),\"\",'Blank - Request Form'!F185),IF('Blank - Request Form'!$F$7=\"CIASI\",IF(OR('Blank - Request Form'!O185=\"000\",'Blank - Request Form'!O185=0),\"\",'Blank - Request Form'!O185),\"\"))","v":""},{"$f":"IF('Blank - Request Form'!$F$6=\"CIASI\",IF(OR('Blank - Request Form'!G185=\"0\",'Blank - Request Form'!G185=\"00000\",'Blank - Request Form'!G185=0),\"\",'Blank - Request Form'!G185),IF('Blank - Request Form'!$F$7=\"CIASI\",IF(OR('Blank - Request Form'!P185=\"0\",'Blank - Request Form'!P185=\"00000\",'Blank - Request Form'!P185=0),\"\",'Blank - Request Form'!P185),\"\"))","v":""},{"$f":"IF('Blank - Request Form'!$F$6=\"CIASI\",IF(OR('Blank - Request Form'!H185=\"0\",'Blank - Request Form'!H185=\"00000\",'Blank - Request Form'!H185=0),\"\",'Blank - Request Form'!H185),IF('Blank - Request Form'!$F$7=\"CIASI\",IF(OR('Blank - Request Form'!Q185=\"0\",'Blank - Request Form'!Q185=\"00000\",'Blank - Request Form'!Q185=0),\"\",'Blank - Request Form'!Q185),\"\"))","v":""},{"$f":"IF('Blank - Request Form'!$F$6=\"CIASI\",IF(OR('Blank - Request Form'!I185=\"0\",'Blank - Request Form'!I185=\"00000\",'Blank - Request Form'!I185=0),\"\",'Blank - Request Form'!I185),IF('Blank - Request Form'!$F$7=\"CIASI\",IF(OR('Blank - Request Form'!R185=\"0\",'Blank - Request Form'!R185=\"00000\",'Blank - Request Form'!R185=0),\"\",'Blank - Request Form'!R185),\"\"))","v":""},null,{"$f":"IF('Blank - Request Form'!$F$6=\"CIASI\",IF('Blank - Request Form'!K185=0,\"\",'Blank - Request Form'!K185),IF('Blank - Request Form'!$F$7=\"CIASI\",IF('Blank - Request Form'!T185=0,\"\",'Blank - Request Form'!T185),\"\"))","v":""},null,null,null,{"$f":"IF(M151<>\"\",'Blank - Request Form'!$M$2,\"\")","v":""},{"$f":"IF('Blank - Request Form'!$F$6=\"CIASI\",IF('Blank - Request Form'!J185=0,\"\",'Blank - Request Form'!J185),IF('Blank - Request Form'!$F$7=\"CIASI\",IF('Blank - Request Form'!S185=0,\"\",'Blank - Request Form'!S185),\"\"))","v":""},"",151]
[{"$f":"IF('Blank - Request Form'!$F$6=\"CIASI\",IF('Blank - Request Form'!D186=0,\"\",'Blank - Request Form'!D186),IF('Blank - Request Form'!$F$7=\"CIASI\",IF('Blank - Request Form'!M186=0,\"\",'Blank - Request Form'!M186),\"\"))","v":""},{"$f":"IF('Blank - Request Form'!$F$6=\"CIASI\",IF('Blank - Request Form'!E186=0,\"\",'Blank - Request Form'!E186),IF('Blank - Request Form'!$F$7=\"CIASI\",IF('Blank - Request Form'!N186=0,\"\",'Blank - Request Form'!N186),\"\"))","v":""},{"$f":"IF('Blank - Request Form'!$F$6=\"CIASI\",IF(OR('Blank - Request Form'!F186=\"000\",'Blank - Request Form'!F186=0),\"\",'Blank - Request Form'!F186),IF('Blank - Request Form'!$F$7=\"CIASI\",IF(OR('Blank - Request Form'!O186=\"000\",'Blank - Request Form'!O186=0),\"\",'Blank - Request Form'!O186),\"\"))","v":""},{"$f":"IF('Blank - Request Form'!$F$6=\"CIASI\",IF(OR('Blank - Request Form'!G186=\"0\",'Blank - Request Form'!G186=\"00000\",'Blank - Request Form'!G186=0),\"\",'Blank - Request Form'!G186),IF('Blank - Request Form'!$F$7=\"CIASI\",IF(OR('Blank - Request Form'!P186=\"0\",'Blank - Request Form'!P186=\"00000\",'Blank - Request Form'!P186=0),\"\",'Blank - Request Form'!P186),\"\"))","v":""},{"$f":"IF('Blank - Request Form'!$F$6=\"CIASI\",IF(OR('Blank - Request Form'!H186=\"0\",'Blank - Request Form'!H186=\"00000\",'Blank - Request Form'!H186=0),\"\",'Blank - Request Form'!H186),IF('Blank - Request Form'!$F$7=\"CIASI\",IF(OR('Blank - Request Form'!Q186=\"0\",'Blank - Request Form'!Q186=\"00000\",'Blank - Request Form'!Q186=0),\"\",'Blank - Request Form'!Q186),\"\"))","v":""},{"$f":"IF('Blank - Request Form'!$F$6=\"CIASI\",IF(OR('Blank - Request Form'!I186=\"0\",'Blank - Request Form'!I186=\"00000\",'Blank - Request Form'!I186=0),\"\",'Blank - Request Form'!I186),IF('Blank - Request Form'!$F$7=\"CIASI\",IF(OR('Blank - Request Form'!R186=\"0\",'Blank - Request Form'!R186=\"00000\",'Blank - Request Form'!R186=0),\"\",'Blank - Request Form'!R186),\"\"))","v":""},null,{"$f":"IF('Blank - Request Form'!$F$6=\"CIASI\",IF('Blank - Request Form'!K186=0,\"\",'Blank - Request Form'!K186),IF('Blank - Request Form'!$F$7=\"CIASI\",IF('Blank - Request Form'!T186=0,\"\",'Blank - Request Form'!T186),\"\"))","v":""},null,null,null,{"$f":"IF(M152<>\"\",'Blank - Request Form'!$M$2,\"\")","v":""},{"$f":"IF('Blank - Request Form'!$F$6=\"CIASI\",IF('Blank - Request Form'!J186=0,\"\",'Blank - Request Form'!J186),IF('Blank - Request Form'!$F$7=\"CIASI\",IF('Blank - Request Form'!S186=0,\"\",'Blank - Request Form'!S186),\"\"))","v":""},"",152]
[{"$f":"IF('Blank - Request Form'!$F$6=\"CIASI\",IF('Blank - Request Form'!D187=0,\"\",'Blank - Request Form'!D187),IF('Blank - Request Form'!$F$7=\"CIASI\",IF('Blank - Request Form'!M187=0,\"\",'Blank - Request Form'!M187),\"\"))","v":""},{"$f":"IF('Blank - Request Form'!$F$6=\"CIASI\",IF('Blank - Request Form'!E187=0,\"\",'Blank - Request Form'!E187),IF('Blank - Request Form'!$F$7=\"CIASI\",IF('Blank - Request Form'!N187=0,\"\",'Blank - Request Form'!N187),\"\"))","v":""},{"$f":"IF('Blank - Request Form'!$F$6=\"CIASI\",IF(OR('Blank - Request Form'!F187=\"000\",'Blank - Request Form'!F187=0),\"\",'Blank - Request Form'!F187),IF('Blank - Request Form'!$F$7=\"CIASI\",IF(OR('Blank - Request Form'!O187=\"000\",'Blank - Request Form'!O187=0),\"\",'Blank - Request Form'!O187),\"\"))","v":""},{"$f":"IF('Blank - Request Form'!$F$6=\"CIASI\",IF(OR('Blank - Request Form'!G187=\"0\",'Blank - Request Form'!G187=\"00000\",'Blank - Request Form'!G187=0),\"\",'Blank - Request Form'!G187),IF('Blank - Request Form'!$F$7=\"CIASI\",IF(OR('Blank - Request Form'!P187=\"0\",'Blank - Request Form'!P187=\"00000\",'Blank - Request Form'!P187=0),\"\",'Blank - Request Form'!P187),\"\"))","v":""},{"$f":"IF('Blank - Request Form'!$F$6=\"CIASI\",IF(OR('Blank - Request Form'!H187=\"0\",'Blank - Request Form'!H187=\"00000\",'Blank - Request Form'!H187=0),\"\",'Blank - Request Form'!H187),IF('Blank - Request Form'!$F$7=\"CIASI\",IF(OR('Blank - Request Form'!Q187=\"0\",'Blank - Request Form'!Q187=\"00000\",'Blank - Request Form'!Q187=0),\"\",'Blank - Request Form'!Q187),\"\"))","v":""},{"$f":"IF('Blank - Request Form'!$F$6=\"CIASI\",IF(OR('Blank - Request Form'!I187=\"0\",'Blank - Request Form'!I187=\"00000\",'Blank - Request Form'!I187=0),\"\",'Blank - Request Form'!I187),IF('Blank - Request Form'!$F$7=\"CIASI\",IF(OR('Blank - Request Form'!R187=\"0\",'Blank - Request Form'!R187=\"00000\",'Blank - Request Form'!R187=0),\"\",'Blank - Request Form'!R187),\"\"))","v":""},null,{"$f":"IF('Blank - Request Form'!$F$6=\"CIASI\",IF('Blank - Request Form'!K187=0,\"\",'Blank - Request Form'!K187),IF('Blank - Request Form'!$F$7=\"CIASI\",IF('Blank - Request Form'!T187=0,\"\",'Blank - Request Form'!T187),\"\"))","v":""},null,null,null,{"$f":"IF(M153<>\"\",'Blank - Request Form'!$M$2,\"\")","v":""},{"$f":"IF('Blank - Request Form'!$F$6=\"CIASI\",IF('Blank - Request Form'!J187=0,\"\",'Blank - Request Form'!J187),IF('Blank - Request Form'!$F$7=\"CIASI\",IF('Blank - Request Form'!S187=0,\"\",'Blank - Request Form'!S187),\"\"))","v":""},"",153]
[{"$f":"IF('Blank - Request Form'!$F$6=\"CIASI\",IF('Blank - Request Form'!D188=0,\"\",'Blank - Request Form'!D188),IF('Blank - Request Form'!$F$7=\"CIASI\",IF('Blank - Request Form'!M188=0,\"\",'Blank - Request Form'!M188),\"\"))","v":""},{"$f":"IF('Blank - Request Form'!$F$6=\"CIASI\",IF('Blank - Request Form'!E188=0,\"\",'Blank - Request Form'!E188),IF('Blank - Request Form'!$F$7=\"CIASI\",IF('Blank - Request Form'!N188=0,\"\",'Blank - Request Form'!N188),\"\"))","v":""},{"$f":"IF('Blank - Request Form'!$F$6=\"CIASI\",IF(OR('Blank - Request Form'!F188=\"000\",'Blank - Request Form'!F188=0),\"\",'Blank - Request Form'!F188),IF('Blank - Request Form'!$F$7=\"CIASI\",IF(OR('Blank - Request Form'!O188=\"000\",'Blank - Request Form'!O188=0),\"\",'Blank - Request Form'!O188),\"\"))","v":""},{"$f":"IF('Blank - Request Form'!$F$6=\"CIASI\",IF(OR('Blank - Request Form'!G188=\"0\",'Blank - Request Form'!G188=\"00000\",'Blank - Request Form'!G188=0),\"\",'Blank - Request Form'!G188),IF('Blank - Request Form'!$F$7=\"CIASI\",IF(OR('Blank - Request Form'!P188=\"0\",'Blank - Request Form'!P188=\"00000\",'Blank - Request Form'!P188=0),\"\",'Blank - Request Form'!P188),\"\"))","v":""},{"$f":"IF('Blank - Request Form'!$F$6=\"CIASI\",IF(OR('Blank - Request Form'!H188=\"0\",'Blank - Request Form'!H188=\"00000\",'Blank - Request Form'!H188=0),\"\",'Blank - Request Form'!H188),IF('Blank - Request Form'!$F$7=\"CIASI\",IF(OR('Blank - Request Form'!Q188=\"0\",'Blank - Request Form'!Q188=\"00000\",'Blank - Request Form'!Q188=0),\"\",'Blank - Request Form'!Q188),\"\"))","v":""},{"$f":"IF('Blank - Request Form'!$F$6=\"CIASI\",IF(OR('Blank - Request Form'!I188=\"0\",'Blank - Request Form'!I188=\"00000\",'Blank - Request Form'!I188=0),\"\",'Blank - Request Form'!I188),IF('Blank - Request Form'!$F$7=\"CIASI\",IF(OR('Blank - Request Form'!R188=\"0\",'Blank - Request Form'!R188=\"00000\",'Blank - Request Form'!R188=0),\"\",'Blank - Request Form'!R188),\"\"))","v":""},null,{"$f":"IF('Blank - Request Form'!$F$6=\"CIASI\",IF('Blank - Request Form'!K188=0,\"\",'Blank - Request Form'!K188),IF('Blank - Request Form'!$F$7=\"CIASI\",IF('Blank - Request Form'!T188=0,\"\",'Blank - Request Form'!T188),\"\"))","v":""},null,null,null,{"$f":"IF(M154<>\"\",'Blank - Request Form'!$M$2,\"\")","v":""},{"$f":"IF('Blank - Request Form'!$F$6=\"CIASI\",IF('Blank - Request Form'!J188=0,\"\",'Blank - Request Form'!J188),IF('Blank - Request Form'!$F$7=\"CIASI\",IF('Blank - Request Form'!S188=0,\"\",'Blank - Request Form'!S188),\"\"))","v":""},"",154]
[{"$f":"IF('Blank - Request Form'!$F$6=\"CIASI\",IF('Blank - Request Form'!D189=0,\"\",'Blank - Request Form'!D189),IF('Blank - Request Form'!$F$7=\"CIASI\",IF('Blank - Request Form'!M189=0,\"\",'Blank - Request Form'!M189),\"\"))","v":""},{"$f":"IF('Blank - Request Form'!$F$6=\"CIASI\",IF('Blank - Request Form'!E189=0,\"\",'Blank - Request Form'!E189),IF('Blank - Request Form'!$F$7=\"CIASI\",IF('Blank - Request Form'!N189=0,\"\",'Blank - Request Form'!N189),\"\"))","v":""},{"$f":"IF('Blank - Request Form'!$F$6=\"CIASI\",IF(OR('Blank - Request Form'!F189=\"000\",'Blank - Request Form'!F189=0),\"\",'Blank - Request Form'!F189),IF('Blank - Request Form'!$F$7=\"CIASI\",IF(OR('Blank - Request Form'!O189=\"000\",'Blank - Request Form'!O189=0),\"\",'Blank - Request Form'!O189),\"\"))","v":""},{"$f":"IF('Blank - Request Form'!$F$6=\"CIASI\",IF(OR('Blank - Request Form'!G189=\"0\",'Blank - Request Form'!G189=\"00000\",'Blank - Request Form'!G189=0),\"\",'Blank - Request Form'!G189),IF('Blank - Request Form'!$F$7=\"CIASI\",IF(OR('Blank - Request Form'!P189=\"0\",'Blank - Request Form'!P189=\"00000\",'Blank - Request Form'!P189=0),\"\",'Blank - Request Form'!P189),\"\"))","v":""},{"$f":"IF('Blank - Request Form'!$F$6=\"CIASI\",IF(OR('Blank - Request Form'!H189=\"0\",'Blank - Request Form'!H189=\"00000\",'Blank - Request Form'!H189=0),\"\",'Blank - Request Form'!H189),IF('Blank - Request Form'!$F$7=\"CIASI\",IF(OR('Blank - Request Form'!Q189=\"0\",'Blank - Request Form'!Q189=\"00000\",'Blank - Request Form'!Q189=0),\"\",'Blank - Request Form'!Q189),\"\"))","v":""},{"$f":"IF('Blank - Request Form'!$F$6=\"CIASI\",IF(OR('Blank - Request Form'!I189=\"0\",'Blank - Request Form'!I189=\"00000\",'Blank - Request Form'!I189=0),\"\",'Blank - Request Form'!I189),IF('Blank - Request Form'!$F$7=\"CIASI\",IF(OR('Blank - Request Form'!R189=\"0\",'Blank - Request Form'!R189=\"00000\",'Blank - Request Form'!R189=0),\"\",'Blank - Request Form'!R189),\"\"))","v":""},null,{"$f":"IF('Blank - Request Form'!$F$6=\"CIASI\",IF('Blank - Request Form'!K189=0,\"\",'Blank - Request Form'!K189),IF('Blank - Request Form'!$F$7=\"CIASI\",IF('Blank - Request Form'!T189=0,\"\",'Blank - Request Form'!T189),\"\"))","v":""},null,null,null,{"$f":"IF(M155<>\"\",'Blank - Request Form'!$M$2,\"\")","v":""},{"$f":"IF('Blank - Request Form'!$F$6=\"CIASI\",IF('Blank - Request Form'!J189=0,\"\",'Blank - Request Form'!J189),IF('Blank - Request Form'!$F$7=\"CIASI\",IF('Blank - Request Form'!S189=0,\"\",'Blank - Request Form'!S189),\"\"))","v":""},"",155]
[{"$f":"IF('Blank - Request Form'!$F$6=\"CIASI\",IF('Blank - Request Form'!D190=0,\"\",'Blank - Request Form'!D190),IF('Blank - Request Form'!$F$7=\"CIASI\",IF('Blank - Request Form'!M190=0,\"\",'Blank - Request Form'!M190),\"\"))","v":""},{"$f":"IF('Blank - Request Form'!$F$6=\"CIASI\",IF('Blank - Request Form'!E190=0,\"\",'Blank - Request Form'!E190),IF('Blank - Request Form'!$F$7=\"CIASI\",IF('Blank - Request Form'!N190=0,\"\",'Blank - Request Form'!N190),\"\"))","v":""},{"$f":"IF('Blank - Request Form'!$F$6=\"CIASI\",IF(OR('Blank - Request Form'!F190=\"000\",'Blank - Request Form'!F190=0),\"\",'Blank - Request Form'!F190),IF('Blank - Request Form'!$F$7=\"CIASI\",IF(OR('Blank - Request Form'!O190=\"000\",'Blank - Request Form'!O190=0),\"\",'Blank - Request Form'!O190),\"\"))","v":""},{"$f":"IF('Blank - Request Form'!$F$6=\"CIASI\",IF(OR('Blank - Request Form'!G190=\"0\",'Blank - Request Form'!G190=\"00000\",'Blank - Request Form'!G190=0),\"\",'Blank - Request Form'!G190),IF('Blank - Request Form'!$F$7=\"CIASI\",IF(OR('Blank - Request Form'!P190=\"0\",'Blank - Request Form'!P190=\"00000\",'Blank - Request Form'!P190=0),\"\",'Blank - Request Form'!P190),\"\"))","v":""},{"$f":"IF('Blank - Request Form'!$F$6=\"CIASI\",IF(OR('Blank - Request Form'!H190=\"0\",'Blank - Request Form'!H190=\"00000\",'Blank - Request Form'!H190=0),\"\",'Blank - Request Form'!H190),IF('Blank - Request Form'!$F$7=\"CIASI\",IF(OR('Blank - Request Form'!Q190=\"0\",'Blank - Request Form'!Q190=\"00000\",'Blank - Request Form'!Q190=0),\"\",'Blank - Request Form'!Q190),\"\"))","v":""},{"$f":"IF('Blank - Request Form'!$F$6=\"CIASI\",IF(OR('Blank - Request Form'!I190=\"0\",'Blank - Request Form'!I190=\"00000\",'Blank - Request Form'!I190=0),\"\",'Blank - Request Form'!I190),IF('Blank - Request Form'!$F$7=\"CIASI\",IF(OR('Blank - Request Form'!R190=\"0\",'Blank - Request Form'!R190=\"00000\",'Blank - Request Form'!R190=0),\"\",'Blank - Request Form'!R190),\"\"))","v":""},null,{"$f":"IF('Blank - Request Form'!$F$6=\"CIASI\",IF('Blank - Request Form'!K190=0,\"\",'Blank - Request Form'!K190),IF('Blank - Request Form'!$F$7=\"CIASI\",IF('Blank - Request Form'!T190=0,\"\",'Blank - Request Form'!T190),\"\"))","v":""},null,null,null,{"$f":"IF(M156<>\"\",'Blank - Request Form'!$M$2,\"\")","v":""},{"$f":"IF('Blank - Request Form'!$F$6=\"CIASI\",IF('Blank - Request Form'!J190=0,\"\",'Blank - Request Form'!J190),IF('Blank - Request Form'!$F$7=\"CIASI\",IF('Blank - Request Form'!S190=0,\"\",'Blank - Request Form'!S190),\"\"))","v":""},"",156]
[{"$f":"IF('Blank - Request Form'!$F$6=\"CIASI\",IF('Blank - Request Form'!D191=0,\"\",'Blank - Request Form'!D191),IF('Blank - Request Form'!$F$7=\"CIASI\",IF('Blank - Request Form'!M191=0,\"\",'Blank - Request Form'!M191),\"\"))","v":""},{"$f":"IF('Blank - Request Form'!$F$6=\"CIASI\",IF('Blank - Request Form'!E191=0,\"\",'Blank - Request Form'!E191),IF('Blank - Request Form'!$F$7=\"CIASI\",IF('Blank - Request Form'!N191=0,\"\",'Blank - Request Form'!N191),\"\"))","v":""},{"$f":"IF('Blank - Request Form'!$F$6=\"CIASI\",IF(OR('Blank - Request Form'!F191=\"000\",'Blank - Request Form'!F191=0),\"\",'Blank - Request Form'!F191),IF('Blank - Request Form'!$F$7=\"CIASI\",IF(OR('Blank - Request Form'!O191=\"000\",'Blank - Request Form'!O191=0),\"\",'Blank - Request Form'!O191),\"\"))","v":""},{"$f":"IF('Blank - Request Form'!$F$6=\"CIASI\",IF(OR('Blank - Request Form'!G191=\"0\",'Blank - Request Form'!G191=\"00000\",'Blank - Request Form'!G191=0),\"\",'Blank - Request Form'!G191),IF('Blank - Request Form'!$F$7=\"CIASI\",IF(OR('Blank - Request Form'!P191=\"0\",'Blank - Request Form'!P191=\"00000\",'Blank - Request Form'!P191=0),\"\",'Blank - Request Form'!P191),\"\"))","v":""},{"$f":"IF('Blank - Request Form'!$F$6=\"CIASI\",IF(OR('Blank - Request Form'!H191=\"0\",'Blank - Request Form'!H191=\"00000\",'Blank - Request Form'!H191=0),\"\",'Blank - Request Form'!H191),IF('Blank - Request Form'!$F$7=\"CIASI\",IF(OR('Blank - Request Form'!Q191=\"0\",'Blank - Request Form'!Q191=\"00000\",'Blank - Request Form'!Q191=0),\"\",'Blank - Request Form'!Q191),\"\"))","v":""},{"$f":"IF('Blank - Request Form'!$F$6=\"CIASI\",IF(OR('Blank - Request Form'!I191=\"0\",'Blank - Request Form'!I191=\"00000\",'Blank - Request Form'!I191=0),\"\",'Blank - Request Form'!I191),IF('Blank - Request Form'!$F$7=\"CIASI\",IF(OR('Blank - Request Form'!R191=\"0\",'Blank - Request Form'!R191=\"00000\",'Blank - Request Form'!R191=0),\"\",'Blank - Request Form'!R191),\"\"))","v":""},null,{"$f":"IF('Blank - Request Form'!$F$6=\"CIASI\",IF('Blank - Request Form'!K191=0,\"\",'Blank - Request Form'!K191),IF('Blank - Request Form'!$F$7=\"CIASI\",IF('Blank - Request Form'!T191=0,\"\",'Blank - Request Form'!T191),\"\"))","v":""},null,null,null,{"$f":"IF(M157<>\"\",'Blank - Request Form'!$M$2,\"\")","v":""},{"$f":"IF('Blank - Request Form'!$F$6=\"CIASI\",IF('Blank - Request Form'!J191=0,\"\",'Blank - Request Form'!J191),IF('Blank - Request Form'!$F$7=\"CIASI\",IF('Blank - Request Form'!S191=0,\"\",'Blank - Request Form'!S191),\"\"))","v":""},"",157]
[{"$f":"IF('Blank - Request Form'!$F$6=\"CIASI\",IF('Blank - Request Form'!D192=0,\"\",'Blank - Request Form'!D192),IF('Blank - Request Form'!$F$7=\"CIASI\",IF('Blank - Request Form'!M192=0,\"\",'Blank - Request Form'!M192),\"\"))","v":""},{"$f":"IF('Blank - Request Form'!$F$6=\"CIASI\",IF('Blank - Request Form'!E192=0,\"\",'Blank - Request Form'!E192),IF('Blank - Request Form'!$F$7=\"CIASI\",IF('Blank - Request Form'!N192=0,\"\",'Blank - Request Form'!N192),\"\"))","v":""},{"$f":"IF('Blank - Request Form'!$F$6=\"CIASI\",IF(OR('Blank - Request Form'!F192=\"000\",'Blank - Request Form'!F192=0),\"\",'Blank - Request Form'!F192),IF('Blank - Request Form'!$F$7=\"CIASI\",IF(OR('Blank - Request Form'!O192=\"000\",'Blank - Request Form'!O192=0),\"\",'Blank - Request Form'!O192),\"\"))","v":""},{"$f":"IF('Blank - Request Form'!$F$6=\"CIASI\",IF(OR('Blank - Request Form'!G192=\"0\",'Blank - Request Form'!G192=\"00000\",'Blank - Request Form'!G192=0),\"\",'Blank - Request Form'!G192),IF('Blank - Request Form'!$F$7=\"CIASI\",IF(OR('Blank - Request Form'!P192=\"0\",'Blank - Request Form'!P192=\"00000\",'Blank - Request Form'!P192=0),\"\",'Blank - Request Form'!P192),\"\"))","v":""},{"$f":"IF('Blank - Request Form'!$F$6=\"CIASI\",IF(OR('Blank - Request Form'!H192=\"0\",'Blank - Request Form'!H192=\"00000\",'Blank - Request Form'!H192=0),\"\",'Blank - Request Form'!H192),IF('Blank - Request Form'!$F$7=\"CIASI\",IF(OR('Blank - Request Form'!Q192=\"0\",'Blank - Request Form'!Q192=\"00000\",'Blank - Request Form'!Q192=0),\"\",'Blank - Request Form'!Q192),\"\"))","v":""},{"$f":"IF('Blank - Request Form'!$F$6=\"CIASI\",IF(OR('Blank - Request Form'!I192=\"0\",'Blank - Request Form'!I192=\"00000\",'Blank - Request Form'!I192=0),\"\",'Blank - Request Form'!I192),IF('Blank - Request Form'!$F$7=\"CIASI\",IF(OR('Blank - Request Form'!R192=\"0\",'Blank - Request Form'!R192=\"00000\",'Blank - Request Form'!R192=0),\"\",'Blank - Request Form'!R192),\"\"))","v":""},null,{"$f":"IF('Blank - Request Form'!$F$6=\"CIASI\",IF('Blank - Request Form'!K192=0,\"\",'Blank - Request Form'!K192),IF('Blank - Request Form'!$F$7=\"CIASI\",IF('Blank - Request Form'!T192=0,\"\",'Blank - Request Form'!T192),\"\"))","v":""},null,null,null,{"$f":"IF(M158<>\"\",'Blank - Request Form'!$M$2,\"\")","v":""},{"$f":"IF('Blank - Request Form'!$F$6=\"CIASI\",IF('Blank - Request Form'!J192=0,\"\",'Blank - Request Form'!J192),IF('Blank - Request Form'!$F$7=\"CIASI\",IF('Blank - Request Form'!S192=0,\"\",'Blank - Request Form'!S192),\"\"))","v":""},"",158]
[{"$f":"IF('Blank - Request Form'!$F$6=\"CIASI\",IF('Blank - Request Form'!D193=0,\"\",'Blank - Request Form'!D193),IF('Blank - Request Form'!$F$7=\"CIASI\",IF('Blank - Request Form'!M193=0,\"\",'Blank - Request Form'!M193),\"\"))","v":""},{"$f":"IF('Blank - Request Form'!$F$6=\"CIASI\",IF('Blank - Request Form'!E193=0,\"\",'Blank - Request Form'!E193),IF('Blank - Request Form'!$F$7=\"CIASI\",IF('Blank - Request Form'!N193=0,\"\",'Blank - Request Form'!N193),\"\"))","v":""},{"$f":"IF('Blank - Request Form'!$F$6=\"CIASI\",IF(OR('Blank - Request Form'!F193=\"000\",'Blank - Request Form'!F193=0),\"\",'Blank - Request Form'!F193),IF('Blank - Request Form'!$F$7=\"CIASI\",IF(OR('Blank - Request Form'!O193=\"000\",'Blank - Request Form'!O193=0),\"\",'Blank - Request Form'!O193),\"\"))","v":""},{"$f":"IF('Blank - Request Form'!$F$6=\"CIASI\",IF(OR('Blank - Request Form'!G193=\"0\",'Blank - Request Form'!G193=\"00000\",'Blank - Request Form'!G193=0),\"\",'Blank - Request Form'!G193),IF('Blank - Request Form'!$F$7=\"CIASI\",IF(OR('Blank - Request Form'!P193=\"0\",'Blank - Request Form'!P193=\"00000\",'Blank - Request Form'!P193=0),\"\",'Blank - Request Form'!P193),\"\"))","v":""},{"$f":"IF('Blank - Request Form'!$F$6=\"CIASI\",IF(OR('Blank - Request Form'!H193=\"0\",'Blank - Request Form'!H193=\"00000\",'Blank - Request Form'!H193=0),\"\",'Blank - Request Form'!H193),IF('Blank - Request Form'!$F$7=\"CIASI\",IF(OR('Blank - Request Form'!Q193=\"0\",'Blank - Request Form'!Q193=\"00000\",'Blank - Request Form'!Q193=0),\"\",'Blank - Request Form'!Q193),\"\"))","v":""},{"$f":"IF('Blank - Request Form'!$F$6=\"CIASI\",IF(OR('Blank - Request Form'!I193=\"0\",'Blank - Request Form'!I193=\"00000\",'Blank - Request Form'!I193=0),\"\",'Blank - Request Form'!I193),IF('Blank - Request Form'!$F$7=\"CIASI\",IF(OR('Blank - Request Form'!R193=\"0\",'Blank - Request Form'!R193=\"00000\",'Blank - Request Form'!R193=0),\"\",'Blank - Request Form'!R193),\"\"))","v":""},null,{"$f":"IF('Blank - Request Form'!$F$6=\"CIASI\",IF('Blank - Request Form'!K193=0,\"\",'Blank - Request Form'!K193),IF('Blank - Request Form'!$F$7=\"CIASI\",IF('Blank - Request Form'!T193=0,\"\",'Blank - Request Form'!T193),\"\"))","v":""},null,null,null,{"$f":"IF(M159<>\"\",'Blank - Request Form'!$M$2,\"\")","v":""},{"$f":"IF('Blank - Request Form'!$F$6=\"CIASI\",IF('Blank - Request Form'!J193=0,\"\",'Blank - Request Form'!J193),IF('Blank - Request Form'!$F$7=\"CIASI\",IF('Blank - Request Form'!S193=0,\"\",'Blank - Request Form'!S193),\"\"))","v":""},"",159]
[{"$f":"IF('Blank - Request Form'!$F$6=\"CIASI\",IF('Blank - Request Form'!D194=0,\"\",'Blank - Request Form'!D194),IF('Blank - Request Form'!$F$7=\"CIASI\",IF('Blank - Request Form'!M194=0,\"\",'Blank - Request Form'!M194),\"\"))","v":""},{"$f":"IF('Blank - Request Form'!$F$6=\"CIASI\",IF('Blank - Request Form'!E194=0,\"\",'Blank - Request Form'!E194),IF('Blank - Request Form'!$F$7=\"CIASI\",IF('Blank - Request Form'!N194=0,\"\",'Blank - Request Form'!N194),\"\"))","v":""},{"$f":"IF('Blank - Request Form'!$F$6=\"CIASI\",IF(OR('Blank - Request Form'!F194=\"000\",'Blank - Request Form'!F194=0),\"\",'Blank - Request Form'!F194),IF('Blank - Request Form'!$F$7=\"CIASI\",IF(OR('Blank - Request Form'!O194=\"000\",'Blank - Request Form'!O194=0),\"\",'Blank - Request Form'!O194),\"\"))","v":""},{"$f":"IF('Blank - Request Form'!$F$6=\"CIASI\",IF(OR('Blank - Request Form'!G194=\"0\",'Blank - Request Form'!G194=\"00000\",'Blank - Request Form'!G194=0),\"\",'Blank - Request Form'!G194),IF('Blank - Request Form'!$F$7=\"CIASI\",IF(OR('Blank - Request Form'!P194=\"0\",'Blank - Request Form'!P194=\"00000\",'Blank - Request Form'!P194=0),\"\",'Blank - Request Form'!P194),\"\"))","v":""},{"$f":"IF('Blank - Request Form'!$F$6=\"CIASI\",IF(OR('Blank - Request Form'!H194=\"0\",'Blank - Request Form'!H194=\"00000\",'Blank - Request Form'!H194=0),\"\",'Blank - Request Form'!H194),IF('Blank - Request Form'!$F$7=\"CIASI\",IF(OR('Blank - Request Form'!Q194=\"0\",'Blank - Request Form'!Q194=\"00000\",'Blank - Request Form'!Q194=0),\"\",'Blank - Request Form'!Q194),\"\"))","v":""},{"$f":"IF('Blank - Request Form'!$F$6=\"CIASI\",IF(OR('Blank - Request Form'!I194=\"0\",'Blank - Request Form'!I194=\"00000\",'Blank - Request Form'!I194=0),\"\",'Blank - Request Form'!I194),IF('Blank - Request Form'!$F$7=\"CIASI\",IF(OR('Blank - Request Form'!R194=\"0\",'Blank - Request Form'!R194=\"00000\",'Blank - Request Form'!R194=0),\"\",'Blank - Request Form'!R194),\"\"))","v":""},null,{"$f":"IF('Blank - Request Form'!$F$6=\"CIASI\",IF('Blank - Request Form'!K194=0,\"\",'Blank - Request Form'!K194),IF('Blank - Request Form'!$F$7=\"CIASI\",IF('Blank - Request Form'!T194=0,\"\",'Blank - Request Form'!T194),\"\"))","v":""},null,null,null,{"$f":"IF(M160<>\"\",'Blank - Request Form'!$M$2,\"\")","v":""},{"$f":"IF('Blank - Request Form'!$F$6=\"CIASI\",IF('Blank - Request Form'!J194=0,\"\",'Blank - Request Form'!J194),IF('Blank - Request Form'!$F$7=\"CIASI\",IF('Blank - Request Form'!S194=0,\"\",'Blank - Request Form'!S194),\"\"))","v":""},"",160]
[{"$f":"IF('Blank - Request Form'!$F$6=\"CIASI\",IF('Blank - Request Form'!D195=0,\"\",'Blank - Request Form'!D195),IF('Blank - Request Form'!$F$7=\"CIASI\",IF('Blank - Request Form'!M195=0,\"\",'Blank - Request Form'!M195),\"\"))","v":""},{"$f":"IF('Blank - Request Form'!$F$6=\"CIASI\",IF('Blank - Request Form'!E195=0,\"\",'Blank - Request Form'!E195),IF('Blank - Request Form'!$F$7=\"CIASI\",IF('Blank - Request Form'!N195=0,\"\",'Blank - Request Form'!N195),\"\"))","v":""},{"$f":"IF('Blank - Request Form'!$F$6=\"CIASI\",IF(OR('Blank - Request Form'!F195=\"000\",'Blank - Request Form'!F195=0),\"\",'Blank - Request Form'!F195),IF('Blank - Request Form'!$F$7=\"CIASI\",IF(OR('Blank - Request Form'!O195=\"000\",'Blank - Request Form'!O195=0),\"\",'Blank - Request Form'!O195),\"\"))","v":""},{"$f":"IF('Blank - Request Form'!$F$6=\"CIASI\",IF(OR('Blank - Request Form'!G195=\"0\",'Blank - Request Form'!G195=\"00000\",'Blank - Request Form'!G195=0),\"\",'Blank - Request Form'!G195),IF('Blank - Request Form'!$F$7=\"CIASI\",IF(OR('Blank - Request Form'!P195=\"0\",'Blank - Request Form'!P195=\"00000\",'Blank - Request Form'!P195=0),\"\",'Blank - Request Form'!P195),\"\"))","v":""},{"$f":"IF('Blank - Request Form'!$F$6=\"CIASI\",IF(OR('Blank - Request Form'!H195=\"0\",'Blank - Request Form'!H195=\"00000\",'Blank - Request Form'!H195=0),\"\",'Blank - Request Form'!H195),IF('Blank - Request Form'!$F$7=\"CIASI\",IF(OR('Blank - Request Form'!Q195=\"0\",'Blank - Request Form'!Q195=\"00000\",'Blank - Request Form'!Q195=0),\"\",'Blank - Request Form'!Q195),\"\"))","v":""},{"$f":"IF('Blank - Request Form'!$F$6=\"CIASI\",IF(OR('Blank - Request Form'!I195=\"0\",'Blank - Request Form'!I195=\"00000\",'Blank - Request Form'!I195=0),\"\",'Blank - Request Form'!I195),IF('Blank - Request Form'!$F$7=\"CIASI\",IF(OR('Blank - Request Form'!R195=\"0\",'Blank - Request Form'!R195=\"00000\",'Blank - Request Form'!R195=0),\"\",'Blank - Request Form'!R195),\"\"))","v":""},null,{"$f":"IF('Blank - Request Form'!$F$6=\"CIASI\",IF('Blank - Request Form'!K195=0,\"\",'Blank - Request Form'!K195),IF('Blank - Request Form'!$F$7=\"CIASI\",IF('Blank - Request Form'!T195=0,\"\",'Blank - Request Form'!T195),\"\"))","v":""},null,null,null,{"$f":"IF(M161<>\"\",'Blank - Request Form'!$M$2,\"\")","v":""},{"$f":"IF('Blank - Request Form'!$F$6=\"CIASI\",IF('Blank - Request Form'!J195=0,\"\",'Blank - Request Form'!J195),IF('Blank - Request Form'!$F$7=\"CIASI\",IF('Blank - Request Form'!S195=0,\"\",'Blank - Request Form'!S195),\"\"))","v":""},"",161]
[{"$f":"IF('Blank - Request Form'!$F$6=\"CIASI\",IF('Blank - Request Form'!D196=0,\"\",'Blank - Request Form'!D196),IF('Blank - Request Form'!$F$7=\"CIASI\",IF('Blank - Request Form'!M196=0,\"\",'Blank - Request Form'!M196),\"\"))","v":""},{"$f":"IF('Blank - Request Form'!$F$6=\"CIASI\",IF('Blank - Request Form'!E196=0,\"\",'Blank - Request Form'!E196),IF('Blank - Request Form'!$F$7=\"CIASI\",IF('Blank - Request Form'!N196=0,\"\",'Blank - Request Form'!N196),\"\"))","v":""},{"$f":"IF('Blank - Request Form'!$F$6=\"CIASI\",IF(OR('Blank - Request Form'!F196=\"000\",'Blank - Request Form'!F196=0),\"\",'Blank - Request Form'!F196),IF('Blank - Request Form'!$F$7=\"CIASI\",IF(OR('Blank - Request Form'!O196=\"000\",'Blank - Request Form'!O196=0),\"\",'Blank - Request Form'!O196),\"\"))","v":""},{"$f":"IF('Blank - Request Form'!$F$6=\"CIASI\",IF(OR('Blank - Request Form'!G196=\"0\",'Blank - Request Form'!G196=\"00000\",'Blank - Request Form'!G196=0),\"\",'Blank - Request Form'!G196),IF('Blank - Request Form'!$F$7=\"CIASI\",IF(OR('Blank - Request Form'!P196=\"0\",'Blank - Request Form'!P196=\"00000\",'Blank - Request Form'!P196=0),\"\",'Blank - Request Form'!P196),\"\"))","v":""},{"$f":"IF('Blank - Request Form'!$F$6=\"CIASI\",IF(OR('Blank - Request Form'!H196=\"0\",'Blank - Request Form'!H196=\"00000\",'Blank - Request Form'!H196=0),\"\",'Blank - Request Form'!H196),IF('Blank - Request Form'!$F$7=\"CIASI\",IF(OR('Blank - Request Form'!Q196=\"0\",'Blank - Request Form'!Q196=\"00000\",'Blank - Request Form'!Q196=0),\"\",'Blank - Request Form'!Q196),\"\"))","v":""},{"$f":"IF('Blank - Request Form'!$F$6=\"CIASI\",IF(OR('Blank - Request Form'!I196=\"0\",'Blank - Request Form'!I196=\"00000\",'Blank - Request Form'!I196=0),\"\",'Blank - Request Form'!I196),IF('Blank - Request Form'!$F$7=\"CIASI\",IF(OR('Blank - Request Form'!R196=\"0\",'Blank - Request Form'!R196=\"00000\",'Blank - Request Form'!R196=0),\"\",'Blank - Request Form'!R196),\"\"))","v":""},null,{"$f":"IF('Blank - Request Form'!$F$6=\"CIASI\",IF('Blank - Request Form'!K196=0,\"\",'Blank - Request Form'!K196),IF('Blank - Request Form'!$F$7=\"CIASI\",IF('Blank - Request Form'!T196=0,\"\",'Blank - Request Form'!T196),\"\"))","v":""},null,null,null,{"$f":"IF(M162<>\"\",'Blank - Request Form'!$M$2,\"\")","v":""},{"$f":"IF('Blank - Request Form'!$F$6=\"CIASI\",IF('Blank - Request Form'!J196=0,\"\",'Blank - Request Form'!J196),IF('Blank - Request Form'!$F$7=\"CIASI\",IF('Blank - Request Form'!S196=0,\"\",'Blank - Request Form'!S196),\"\"))","v":""},"",162]
[{"$f":"IF('Blank - Request Form'!$F$6=\"CIASI\",IF('Blank - Request Form'!D197=0,\"\",'Blank - Request Form'!D197),IF('Blank - Request Form'!$F$7=\"CIASI\",IF('Blank - Request Form'!M197=0,\"\",'Blank - Request Form'!M197),\"\"))","v":""},{"$f":"IF('Blank - Request Form'!$F$6=\"CIASI\",IF('Blank - Request Form'!E197=0,\"\",'Blank - Request Form'!E197),IF('Blank - Request Form'!$F$7=\"CIASI\",IF('Blank - Request Form'!N197=0,\"\",'Blank - Request Form'!N197),\"\"))","v":""},{"$f":"IF('Blank - Request Form'!$F$6=\"CIASI\",IF(OR('Blank - Request Form'!F197=\"000\",'Blank - Request Form'!F197=0),\"\",'Blank - Request Form'!F197),IF('Blank - Request Form'!$F$7=\"CIASI\",IF(OR('Blank - Request Form'!O197=\"000\",'Blank - Request Form'!O197=0),\"\",'Blank - Request Form'!O197),\"\"))","v":""},{"$f":"IF('Blank - Request Form'!$F$6=\"CIASI\",IF(OR('Blank - Request Form'!G197=\"0\",'Blank - Request Form'!G197=\"00000\",'Blank - Request Form'!G197=0),\"\",'Blank - Request Form'!G197),IF('Blank - Request Form'!$F$7=\"CIASI\",IF(OR('Blank - Request Form'!P197=\"0\",'Blank - Request Form'!P197=\"00000\",'Blank - Request Form'!P197=0),\"\",'Blank - Request Form'!P197),\"\"))","v":""},{"$f":"IF('Blank - Request Form'!$F$6=\"CIASI\",IF(OR('Blank - Request Form'!H197=\"0\",'Blank - Request Form'!H197=\"00000\",'Blank - Request Form'!H197=0),\"\",'Blank - Request Form'!H197),IF('Blank - Request Form'!$F$7=\"CIASI\",IF(OR('Blank - Request Form'!Q197=\"0\",'Blank - Request Form'!Q197=\"00000\",'Blank - Request Form'!Q197=0),\"\",'Blank - Request Form'!Q197),\"\"))","v":""},{"$f":"IF('Blank - Request Form'!$F$6=\"CIASI\",IF(OR('Blank - Request Form'!I197=\"0\",'Blank - Request Form'!I197=\"00000\",'Blank - Request Form'!I197=0),\"\",'Blank - Request Form'!I197),IF('Blank - Request Form'!$F$7=\"CIASI\",IF(OR('Blank - Request Form'!R197=\"0\",'Blank - Request Form'!R197=\"00000\",'Blank - Request Form'!R197=0),\"\",'Blank - Request Form'!R197),\"\"))","v":""},null,{"$f":"IF('Blank - Request Form'!$F$6=\"CIASI\",IF('Blank - Request Form'!K197=0,\"\",'Blank - Request Form'!K197),IF('Blank - Request Form'!$F$7=\"CIASI\",IF('Blank - Request Form'!T197=0,\"\",'Blank - Request Form'!T197),\"\"))","v":""},null,null,null,{"$f":"IF(M163<>\"\",'Blank - Request Form'!$M$2,\"\")","v":""},{"$f":"IF('Blank - Request Form'!$F$6=\"CIASI\",IF('Blank - Request Form'!J197=0,\"\",'Blank - Request Form'!J197),IF('Blank - Request Form'!$F$7=\"CIASI\",IF('Blank - Request Form'!S197=0,\"\",'Blank - Request Form'!S197),\"\"))","v":""},"",163]
[{"$f":"IF('Blank - Request Form'!$F$6=\"CIASI\",IF('Blank - Request Form'!D198=0,\"\",'Blank - Request Form'!D198),IF('Blank - Request Form'!$F$7=\"CIASI\",IF('Blank - Request Form'!M198=0,\"\",'Blank - Request Form'!M198),\"\"))","v":""},{"$f":"IF('Blank - Request Form'!$F$6=\"CIASI\",IF('Blank - Request Form'!E198=0,\"\",'Blank - Request Form'!E198),IF('Blank - Request Form'!$F$7=\"CIASI\",IF('Blank - Request Form'!N198=0,\"\",'Blank - Request Form'!N198),\"\"))","v":""},{"$f":"IF('Blank - Request Form'!$F$6=\"CIASI\",IF(OR('Blank - Request Form'!F198=\"000\",'Blank - Request Form'!F198=0),\"\",'Blank - Request Form'!F198),IF('Blank - Request Form'!$F$7=\"CIASI\",IF(OR('Blank - Request Form'!O198=\"000\",'Blank - Request Form'!O198=0),\"\",'Blank - Request Form'!O198),\"\"))","v":""},{"$f":"IF('Blank - Request Form'!$F$6=\"CIASI\",IF(OR('Blank - Request Form'!G198=\"0\",'Blank - Request Form'!G198=\"00000\",'Blank - Request Form'!G198=0),\"\",'Blank - Request Form'!G198),IF('Blank - Request Form'!$F$7=\"CIASI\",IF(OR('Blank - Request Form'!P198=\"0\",'Blank - Request Form'!P198=\"00000\",'Blank - Request Form'!P198=0),\"\",'Blank - Request Form'!P198),\"\"))","v":""},{"$f":"IF('Blank - Request Form'!$F$6=\"CIASI\",IF(OR('Blank - Request Form'!H198=\"0\",'Blank - Request Form'!H198=\"00000\",'Blank - Request Form'!H198=0),\"\",'Blank - Request Form'!H198),IF('Blank - Request Form'!$F$7=\"CIASI\",IF(OR('Blank - Request Form'!Q198=\"0\",'Blank - Request Form'!Q198=\"00000\",'Blank - Request Form'!Q198=0),\"\",'Blank - Request Form'!Q198),\"\"))","v":""},{"$f":"IF('Blank - Request Form'!$F$6=\"CIASI\",IF(OR('Blank - Request Form'!I198=\"0\",'Blank - Request Form'!I198=\"00000\",'Blank - Request Form'!I198=0),\"\",'Blank - Request Form'!I198),IF('Blank - Request Form'!$F$7=\"CIASI\",IF(OR('Blank - Request Form'!R198=\"0\",'Blank - Request Form'!R198=\"00000\",'Blank - Request Form'!R198=0),\"\",'Blank - Request Form'!R198),\"\"))","v":""},null,{"$f":"IF('Blank - Request Form'!$F$6=\"CIASI\",IF('Blank - Request Form'!K198=0,\"\",'Blank - Request Form'!K198),IF('Blank - Request Form'!$F$7=\"CIASI\",IF('Blank - Request Form'!T198=0,\"\",'Blank - Request Form'!T198),\"\"))","v":""},null,null,null,{"$f":"IF(M164<>\"\",'Blank - Request Form'!$M$2,\"\")","v":""},{"$f":"IF('Blank - Request Form'!$F$6=\"CIASI\",IF('Blank - Request Form'!J198=0,\"\",'Blank - Request Form'!J198),IF('Blank - Request Form'!$F$7=\"CIASI\",IF('Blank - Request Form'!S198=0,\"\",'Blank - Request Form'!S198),\"\"))","v":""},"",164]
[{"$f":"IF('Blank - Request Form'!$F$6=\"CIASI\",IF('Blank - Request Form'!D199=0,\"\",'Blank - Request Form'!D199),IF('Blank - Request Form'!$F$7=\"CIASI\",IF('Blank - Request Form'!M199=0,\"\",'Blank - Request Form'!M199),\"\"))","v":""},{"$f":"IF('Blank - Request Form'!$F$6=\"CIASI\",IF('Blank - Request Form'!E199=0,\"\",'Blank - Request Form'!E199),IF('Blank - Request Form'!$F$7=\"CIASI\",IF('Blank - Request Form'!N199=0,\"\",'Blank - Request Form'!N199),\"\"))","v":""},{"$f":"IF('Blank - Request Form'!$F$6=\"CIASI\",IF(OR('Blank - Request Form'!F199=\"000\",'Blank - Request Form'!F199=0),\"\",'Blank - Request Form'!F199),IF('Blank - Request Form'!$F$7=\"CIASI\",IF(OR('Blank - Request Form'!O199=\"000\",'Blank - Request Form'!O199=0),\"\",'Blank - Request Form'!O199),\"\"))","v":""},{"$f":"IF('Blank - Request Form'!$F$6=\"CIASI\",IF(OR('Blank - Request Form'!G199=\"0\",'Blank - Request Form'!G199=\"00000\",'Blank - Request Form'!G199=0),\"\",'Blank - Request Form'!G199),IF('Blank - Request Form'!$F$7=\"CIASI\",IF(OR('Blank - Request Form'!P199=\"0\",'Blank - Request Form'!P199=\"00000\",'Blank - Request Form'!P199=0),\"\",'Blank - Request Form'!P199),\"\"))","v":""},{"$f":"IF('Blank - Request Form'!$F$6=\"CIASI\",IF(OR('Blank - Request Form'!H199=\"0\",'Blank - Request Form'!H199=\"00000\",'Blank - Request Form'!H199=0),\"\",'Blank - Request Form'!H199),IF('Blank - Request Form'!$F$7=\"CIASI\",IF(OR('Blank - Request Form'!Q199=\"0\",'Blank - Request Form'!Q199=\"00000\",'Blank - Request Form'!Q199=0),\"\",'Blank - Request Form'!Q199),\"\"))","v":""},{"$f":"IF('Blank - Request Form'!$F$6=\"CIASI\",IF(OR('Blank - Request Form'!I199=\"0\",'Blank - Request Form'!I199=\"00000\",'Blank - Request Form'!I199=0),\"\",'Blank - Request Form'!I199),IF('Blank - Request Form'!$F$7=\"CIASI\",IF(OR('Blank - Request Form'!R199=\"0\",'Blank - Request Form'!R199=\"00000\",'Blank - Request Form'!R199=0),\"\",'Blank - Request Form'!R199),\"\"))","v":""},null,{"$f":"IF('Blank - Request Form'!$F$6=\"CIASI\",IF('Blank - Request Form'!K199=0,\"\",'Blank - Request Form'!K199),IF('Blank - Request Form'!$F$7=\"CIASI\",IF('Blank - Request Form'!T199=0,\"\",'Blank - Request Form'!T199),\"\"))","v":""},null,null,null,{"$f":"IF(M165<>\"\",'Blank - Request Form'!$M$2,\"\")","v":""},{"$f":"IF('Blank - Request Form'!$F$6=\"CIASI\",IF('Blank - Request Form'!J199=0,\"\",'Blank - Request Form'!J199),IF('Blank - Request Form'!$F$7=\"CIASI\",IF('Blank - Request Form'!S199=0,\"\",'Blank - Request Form'!S199),\"\"))","v":""},"",165]
[{"$f":"IF('Blank - Request Form'!$F$6=\"CIASI\",IF('Blank - Request Form'!D200=0,\"\",'Blank - Request Form'!D200),IF('Blank - Request Form'!$F$7=\"CIASI\",IF('Blank - Request Form'!M200=0,\"\",'Blank - Request Form'!M200),\"\"))","v":""},{"$f":"IF('Blank - Request Form'!$F$6=\"CIASI\",IF('Blank - Request Form'!E200=0,\"\",'Blank - Request Form'!E200),IF('Blank - Request Form'!$F$7=\"CIASI\",IF('Blank - Request Form'!N200=0,\"\",'Blank - Request Form'!N200),\"\"))","v":""},{"$f":"IF('Blank - Request Form'!$F$6=\"CIASI\",IF(OR('Blank - Request Form'!F200=\"000\",'Blank - Request Form'!F200=0),\"\",'Blank - Request Form'!F200),IF('Blank - Request Form'!$F$7=\"CIASI\",IF(OR('Blank - Request Form'!O200=\"000\",'Blank - Request Form'!O200=0),\"\",'Blank - Request Form'!O200),\"\"))","v":""},{"$f":"IF('Blank - Request Form'!$F$6=\"CIASI\",IF(OR('Blank - Request Form'!G200=\"0\",'Blank - Request Form'!G200=\"00000\",'Blank - Request Form'!G200=0),\"\",'Blank - Request Form'!G200),IF('Blank - Request Form'!$F$7=\"CIASI\",IF(OR('Blank - Request Form'!P200=\"0\",'Blank - Request Form'!P200=\"00000\",'Blank - Request Form'!P200=0),\"\",'Blank - Request Form'!P200),\"\"))","v":""},{"$f":"IF('Blank - Request Form'!$F$6=\"CIASI\",IF(OR('Blank - Request Form'!H200=\"0\",'Blank - Request Form'!H200=\"00000\",'Blank - Request Form'!H200=0),\"\",'Blank - Request Form'!H200),IF('Blank - Request Form'!$F$7=\"CIASI\",IF(OR('Blank - Request Form'!Q200=\"0\",'Blank - Request Form'!Q200=\"00000\",'Blank - Request Form'!Q200=0),\"\",'Blank - Request Form'!Q200),\"\"))","v":""},{"$f":"IF('Blank - Request Form'!$F$6=\"CIASI\",IF(OR('Blank - Request Form'!I200=\"0\",'Blank - Request Form'!I200=\"00000\",'Blank - Request Form'!I200=0),\"\",'Blank - Request Form'!I200),IF('Blank - Request Form'!$F$7=\"CIASI\",IF(OR('Blank - Request Form'!R200=\"0\",'Blank - Request Form'!R200=\"00000\",'Blank - Request Form'!R200=0),\"\",'Blank - Request Form'!R200),\"\"))","v":""},null,{"$f":"IF('Blank - Request Form'!$F$6=\"CIASI\",IF('Blank - Request Form'!K200=0,\"\",'Blank - Request Form'!K200),IF('Blank - Request Form'!$F$7=\"CIASI\",IF('Blank - Request Form'!T200=0,\"\",'Blank - Request Form'!T200),\"\"))","v":""},null,null,null,{"$f":"IF(M166<>\"\",'Blank - Request Form'!$M$2,\"\")","v":""},{"$f":"IF('Blank - Request Form'!$F$6=\"CIASI\",IF('Blank - Request Form'!J200=0,\"\",'Blank - Request Form'!J200),IF('Blank - Request Form'!$F$7=\"CIASI\",IF('Blank - Request Form'!S200=0,\"\",'Blank - Request Form'!S200),\"\"))","v":""},"",166]
[{"$f":"IF('Blank - Request Form'!$F$6=\"CIASI\",IF('Blank - Request Form'!D201=0,\"\",'Blank - Request Form'!D201),IF('Blank - Request Form'!$F$7=\"CIASI\",IF('Blank - Request Form'!M201=0,\"\",'Blank - Request Form'!M201),\"\"))","v":""},{"$f":"IF('Blank - Request Form'!$F$6=\"CIASI\",IF('Blank - Request Form'!E201=0,\"\",'Blank - Request Form'!E201),IF('Blank - Request Form'!$F$7=\"CIASI\",IF('Blank - Request Form'!N201=0,\"\",'Blank - Request Form'!N201),\"\"))","v":""},{"$f":"IF('Blank - Request Form'!$F$6=\"CIASI\",IF(OR('Blank - Request Form'!F201=\"000\",'Blank - Request Form'!F201=0),\"\",'Blank - Request Form'!F201),IF('Blank - Request Form'!$F$7=\"CIASI\",IF(OR('Blank - Request Form'!O201=\"000\",'Blank - Request Form'!O201=0),\"\",'Blank - Request Form'!O201),\"\"))","v":""},{"$f":"IF('Blank - Request Form'!$F$6=\"CIASI\",IF(OR('Blank - Request Form'!G201=\"0\",'Blank - Request Form'!G201=\"00000\",'Blank - Request Form'!G201=0),\"\",'Blank - Request Form'!G201),IF('Blank - Request Form'!$F$7=\"CIASI\",IF(OR('Blank - Request Form'!P201=\"0\",'Blank - Request Form'!P201=\"00000\",'Blank - Request Form'!P201=0),\"\",'Blank - Request Form'!P201),\"\"))","v":""},{"$f":"IF('Blank - Request Form'!$F$6=\"CIASI\",IF(OR('Blank - Request Form'!H201=\"0\",'Blank - Request Form'!H201=\"00000\",'Blank - Request Form'!H201=0),\"\",'Blank - Request Form'!H201),IF('Blank - Request Form'!$F$7=\"CIASI\",IF(OR('Blank - Request Form'!Q201=\"0\",'Blank - Request Form'!Q201=\"00000\",'Blank - Request Form'!Q201=0),\"\",'Blank - Request Form'!Q201),\"\"))","v":""},{"$f":"IF('Blank - Request Form'!$F$6=\"CIASI\",IF(OR('Blank - Request Form'!I201=\"0\",'Blank - Request Form'!I201=\"00000\",'Blank - Request Form'!I201=0),\"\",'Blank - Request Form'!I201),IF('Blank - Request Form'!$F$7=\"CIASI\",IF(OR('Blank - Request Form'!R201=\"0\",'Blank - Request Form'!R201=\"00000\",'Blank - Request Form'!R201=0),\"\",'Blank - Request Form'!R201),\"\"))","v":""},null,{"$f":"IF('Blank - Request Form'!$F$6=\"CIASI\",IF('Blank - Request Form'!K201=0,\"\",'Blank - Request Form'!K201),IF('Blank - Request Form'!$F$7=\"CIASI\",IF('Blank - Request Form'!T201=0,\"\",'Blank - Request Form'!T201),\"\"))","v":""},null,null,null,{"$f":"IF(M167<>\"\",'Blank - Request Form'!$M$2,\"\")","v":""},{"$f":"IF('Blank - Request Form'!$F$6=\"CIASI\",IF('Blank - Request Form'!J201=0,\"\",'Blank - Request Form'!J201),IF('Blank - Request Form'!$F$7=\"CIASI\",IF('Blank - Request Form'!S201=0,\"\",'Blank - Request Form'!S201),\"\"))","v":""},"",167]
[{"$f":"IF('Blank - Request Form'!$F$6=\"CIASI\",IF('Blank - Request Form'!D202=0,\"\",'Blank - Request Form'!D202),IF('Blank - Request Form'!$F$7=\"CIASI\",IF('Blank - Request Form'!M202=0,\"\",'Blank - Request Form'!M202),\"\"))","v":""},{"$f":"IF('Blank - Request Form'!$F$6=\"CIASI\",IF('Blank - Request Form'!E202=0,\"\",'Blank - Request Form'!E202),IF('Blank - Request Form'!$F$7=\"CIASI\",IF('Blank - Request Form'!N202=0,\"\",'Blank - Request Form'!N202),\"\"))","v":""},{"$f":"IF('Blank - Request Form'!$F$6=\"CIASI\",IF(OR('Blank - Request Form'!F202=\"000\",'Blank - Request Form'!F202=0),\"\",'Blank - Request Form'!F202),IF('Blank - Request Form'!$F$7=\"CIASI\",IF(OR('Blank - Request Form'!O202=\"000\",'Blank - Request Form'!O202=0),\"\",'Blank - Request Form'!O202),\"\"))","v":""},{"$f":"IF('Blank - Request Form'!$F$6=\"CIASI\",IF(OR('Blank - Request Form'!G202=\"0\",'Blank - Request Form'!G202=\"00000\",'Blank - Request Form'!G202=0),\"\",'Blank - Request Form'!G202),IF('Blank - Request Form'!$F$7=\"CIASI\",IF(OR('Blank - Request Form'!P202=\"0\",'Blank - Request Form'!P202=\"00000\",'Blank - Request Form'!P202=0),\"\",'Blank - Request Form'!P202),\"\"))","v":""},{"$f":"IF('Blank - Request Form'!$F$6=\"CIASI\",IF(OR('Blank - Request Form'!H202=\"0\",'Blank - Request Form'!H202=\"00000\",'Blank - Request Form'!H202=0),\"\",'Blank - Request Form'!H202),IF('Blank - Request Form'!$F$7=\"CIASI\",IF(OR('Blank - Request Form'!Q202=\"0\",'Blank - Request Form'!Q202=\"00000\",'Blank - Request Form'!Q202=0),\"\",'Blank - Request Form'!Q202),\"\"))","v":""},{"$f":"IF('Blank - Request Form'!$F$6=\"CIASI\",IF(OR('Blank - Request Form'!I202=\"0\",'Blank - Request Form'!I202=\"00000\",'Blank - Request Form'!I202=0),\"\",'Blank - Request Form'!I202),IF('Blank - Request Form'!$F$7=\"CIASI\",IF(OR('Blank - Request Form'!R202=\"0\",'Blank - Request Form'!R202=\"00000\",'Blank - Request Form'!R202=0),\"\",'Blank - Request Form'!R202),\"\"))","v":""},null,{"$f":"IF('Blank - Request Form'!$F$6=\"CIASI\",IF('Blank - Request Form'!K202=0,\"\",'Blank - Request Form'!K202),IF('Blank - Request Form'!$F$7=\"CIASI\",IF('Blank - Request Form'!T202=0,\"\",'Blank - Request Form'!T202),\"\"))","v":""},null,null,null,{"$f":"IF(M168<>\"\",'Blank - Request Form'!$M$2,\"\")","v":""},{"$f":"IF('Blank - Request Form'!$F$6=\"CIASI\",IF('Blank - Request Form'!J202=0,\"\",'Blank - Request Form'!J202),IF('Blank - Request Form'!$F$7=\"CIASI\",IF('Blank - Request Form'!S202=0,\"\",'Blank - Request Form'!S202),\"\"))","v":""},"",168]
[{"$f":"IF('Blank - Request Form'!$F$6=\"CIASI\",IF('Blank - Request Form'!D203=0,\"\",'Blank - Request Form'!D203),IF('Blank - Request Form'!$F$7=\"CIASI\",IF('Blank - Request Form'!M203=0,\"\",'Blank - Request Form'!M203),\"\"))","v":""},{"$f":"IF('Blank - Request Form'!$F$6=\"CIASI\",IF('Blank - Request Form'!E203=0,\"\",'Blank - Request Form'!E203),IF('Blank - Request Form'!$F$7=\"CIASI\",IF('Blank - Request Form'!N203=0,\"\",'Blank - Request Form'!N203),\"\"))","v":""},{"$f":"IF('Blank - Request Form'!$F$6=\"CIASI\",IF(OR('Blank - Request Form'!F203=\"000\",'Blank - Request Form'!F203=0),\"\",'Blank - Request Form'!F203),IF('Blank - Request Form'!$F$7=\"CIASI\",IF(OR('Blank - Request Form'!O203=\"000\",'Blank - Request Form'!O203=0),\"\",'Blank - Request Form'!O203),\"\"))","v":""},{"$f":"IF('Blank - Request Form'!$F$6=\"CIASI\",IF(OR('Blank - Request Form'!G203=\"0\",'Blank - Request Form'!G203=\"00000\",'Blank - Request Form'!G203=0),\"\",'Blank - Request Form'!G203),IF('Blank - Request Form'!$F$7=\"CIASI\",IF(OR('Blank - Request Form'!P203=\"0\",'Blank - Request Form'!P203=\"00000\",'Blank - Request Form'!P203=0),\"\",'Blank - Request Form'!P203),\"\"))","v":""},{"$f":"IF('Blank - Request Form'!$F$6=\"CIASI\",IF(OR('Blank - Request Form'!H203=\"0\",'Blank - Request Form'!H203=\"00000\",'Blank - Request Form'!H203=0),\"\",'Blank - Request Form'!H203),IF('Blank - Request Form'!$F$7=\"CIASI\",IF(OR('Blank - Request Form'!Q203=\"0\",'Blank - Request Form'!Q203=\"00000\",'Blank - Request Form'!Q203=0),\"\",'Blank - Request Form'!Q203),\"\"))","v":""},{"$f":"IF('Blank - Request Form'!$F$6=\"CIASI\",IF(OR('Blank - Request Form'!I203=\"0\",'Blank - Request Form'!I203=\"00000\",'Blank - Request Form'!I203=0),\"\",'Blank - Request Form'!I203),IF('Blank - Request Form'!$F$7=\"CIASI\",IF(OR('Blank - Request Form'!R203=\"0\",'Blank - Request Form'!R203=\"00000\",'Blank - Request Form'!R203=0),\"\",'Blank - Request Form'!R203),\"\"))","v":""},null,{"$f":"IF('Blank - Request Form'!$F$6=\"CIASI\",IF('Blank - Request Form'!K203=0,\"\",'Blank - Request Form'!K203),IF('Blank - Request Form'!$F$7=\"CIASI\",IF('Blank - Request Form'!T203=0,\"\",'Blank - Request Form'!T203),\"\"))","v":""},null,null,null,{"$f":"IF(M169<>\"\",'Blank - Request Form'!$M$2,\"\")","v":""},{"$f":"IF('Blank - Request Form'!$F$6=\"CIASI\",IF('Blank - Request Form'!J203=0,\"\",'Blank - Request Form'!J203),IF('Blank - Request Form'!$F$7=\"CIASI\",IF('Blank - Request Form'!S203=0,\"\",'Blank - Request Form'!S203),\"\"))","v":""},"",169]
[{"$f":"IF('Blank - Request Form'!$F$6=\"CIASI\",IF('Blank - Request Form'!D204=0,\"\",'Blank - Request Form'!D204),IF('Blank - Request Form'!$F$7=\"CIASI\",IF('Blank - Request Form'!M204=0,\"\",'Blank - Request Form'!M204),\"\"))","v":""},{"$f":"IF('Blank - Request Form'!$F$6=\"CIASI\",IF('Blank - Request Form'!E204=0,\"\",'Blank - Request Form'!E204),IF('Blank - Request Form'!$F$7=\"CIASI\",IF('Blank - Request Form'!N204=0,\"\",'Blank - Request Form'!N204),\"\"))","v":""},{"$f":"IF('Blank - Request Form'!$F$6=\"CIASI\",IF(OR('Blank - Request Form'!F204=\"000\",'Blank - Request Form'!F204=0),\"\",'Blank - Request Form'!F204),IF('Blank - Request Form'!$F$7=\"CIASI\",IF(OR('Blank - Request Form'!O204=\"000\",'Blank - Request Form'!O204=0),\"\",'Blank - Request Form'!O204),\"\"))","v":""},{"$f":"IF('Blank - Request Form'!$F$6=\"CIASI\",IF(OR('Blank - Request Form'!G204=\"0\",'Blank - Request Form'!G204=\"00000\",'Blank - Request Form'!G204=0),\"\",'Blank - Request Form'!G204),IF('Blank - Request Form'!$F$7=\"CIASI\",IF(OR('Blank - Request Form'!P204=\"0\",'Blank - Request Form'!P204=\"00000\",'Blank - Request Form'!P204=0),\"\",'Blank - Request Form'!P204),\"\"))","v":""},{"$f":"IF('Blank - Request Form'!$F$6=\"CIASI\",IF(OR('Blank - Request Form'!H204=\"0\",'Blank - Request Form'!H204=\"00000\",'Blank - Request Form'!H204=0),\"\",'Blank - Request Form'!H204),IF('Blank - Request Form'!$F$7=\"CIASI\",IF(OR('Blank - Request Form'!Q204=\"0\",'Blank - Request Form'!Q204=\"00000\",'Blank - Request Form'!Q204=0),\"\",'Blank - Request Form'!Q204),\"\"))","v":""},{"$f":"IF('Blank - Request Form'!$F$6=\"CIASI\",IF(OR('Blank - Request Form'!I204=\"0\",'Blank - Request Form'!I204=\"00000\",'Blank - Request Form'!I204=0),\"\",'Blank - Request Form'!I204),IF('Blank - Request Form'!$F$7=\"CIASI\",IF(OR('Blank - Request Form'!R204=\"0\",'Blank - Request Form'!R204=\"00000\",'Blank - Request Form'!R204=0),\"\",'Blank - Request Form'!R204),\"\"))","v":""},null,{"$f":"IF('Blank - Request Form'!$F$6=\"CIASI\",IF('Blank - Request Form'!K204=0,\"\",'Blank - Request Form'!K204),IF('Blank - Request Form'!$F$7=\"CIASI\",IF('Blank - Request Form'!T204=0,\"\",'Blank - Request Form'!T204),\"\"))","v":""},null,null,null,{"$f":"IF(M170<>\"\",'Blank - Request Form'!$M$2,\"\")","v":""},{"$f":"IF('Blank - Request Form'!$F$6=\"CIASI\",IF('Blank - Request Form'!J204=0,\"\",'Blank - Request Form'!J204),IF('Blank - Request Form'!$F$7=\"CIASI\",IF('Blank - Request Form'!S204=0,\"\",'Blank - Request Form'!S204),\"\"))","v":""},"",170]
[{"$f":"IF('Blank - Request Form'!$F$6=\"CIASI\",IF('Blank - Request Form'!D205=0,\"\",'Blank - Request Form'!D205),IF('Blank - Request Form'!$F$7=\"CIASI\",IF('Blank - Request Form'!M205=0,\"\",'Blank - Request Form'!M205),\"\"))","v":""},{"$f":"IF('Blank - Request Form'!$F$6=\"CIASI\",IF('Blank - Request Form'!E205=0,\"\",'Blank - Request Form'!E205),IF('Blank - Request Form'!$F$7=\"CIASI\",IF('Blank - Request Form'!N205=0,\"\",'Blank - Request Form'!N205),\"\"))","v":""},{"$f":"IF('Blank - Request Form'!$F$6=\"CIASI\",IF(OR('Blank - Request Form'!F205=\"000\",'Blank - Request Form'!F205=0),\"\",'Blank - Request Form'!F205),IF('Blank - Request Form'!$F$7=\"CIASI\",IF(OR('Blank - Request Form'!O205=\"000\",'Blank - Request Form'!O205=0),\"\",'Blank - Request Form'!O205),\"\"))","v":""},{"$f":"IF('Blank - Request Form'!$F$6=\"CIASI\",IF(OR('Blank - Request Form'!G205=\"0\",'Blank - Request Form'!G205=\"00000\",'Blank - Request Form'!G205=0),\"\",'Blank - Request Form'!G205),IF('Blank - Request Form'!$F$7=\"CIASI\",IF(OR('Blank - Request Form'!P205=\"0\",'Blank - Request Form'!P205=\"00000\",'Blank - Request Form'!P205=0),\"\",'Blank - Request Form'!P205),\"\"))","v":""},{"$f":"IF('Blank - Request Form'!$F$6=\"CIASI\",IF(OR('Blank - Request Form'!H205=\"0\",'Blank - Request Form'!H205=\"00000\",'Blank - Request Form'!H205=0),\"\",'Blank - Request Form'!H205),IF('Blank - Request Form'!$F$7=\"CIASI\",IF(OR('Blank - Request Form'!Q205=\"0\",'Blank - Request Form'!Q205=\"00000\",'Blank - Request Form'!Q205=0),\"\",'Blank - Request Form'!Q205),\"\"))","v":""},{"$f":"IF('Blank - Request Form'!$F$6=\"CIASI\",IF(OR('Blank - Request Form'!I205=\"0\",'Blank - Request Form'!I205=\"00000\",'Blank - Request Form'!I205=0),\"\",'Blank - Request Form'!I205),IF('Blank - Request Form'!$F$7=\"CIASI\",IF(OR('Blank - Request Form'!R205=\"0\",'Blank - Request Form'!R205=\"00000\",'Blank - Request Form'!R205=0),\"\",'Blank - Request Form'!R205),\"\"))","v":""},null,{"$f":"IF('Blank - Request Form'!$F$6=\"CIASI\",IF('Blank - Request Form'!K205=0,\"\",'Blank - Request Form'!K205),IF('Blank - Request Form'!$F$7=\"CIASI\",IF('Blank - Request Form'!T205=0,\"\",'Blank - Request Form'!T205),\"\"))","v":""},null,null,null,{"$f":"IF(M171<>\"\",'Blank - Request Form'!$M$2,\"\")","v":""},{"$f":"IF('Blank - Request Form'!$F$6=\"CIASI\",IF('Blank - Request Form'!J205=0,\"\",'Blank - Request Form'!J205),IF('Blank - Request Form'!$F$7=\"CIASI\",IF('Blank - Request Form'!S205=0,\"\",'Blank - Request Form'!S205),\"\"))","v":""},"",171]
[{"$f":"IF('Blank - Request Form'!$F$6=\"CIASI\",IF('Blank - Request Form'!D206=0,\"\",'Blank - Request Form'!D206),IF('Blank - Request Form'!$F$7=\"CIASI\",IF('Blank - Request Form'!M206=0,\"\",'Blank - Request Form'!M206),\"\"))","v":""},{"$f":"IF('Blank - Request Form'!$F$6=\"CIASI\",IF('Blank - Request Form'!E206=0,\"\",'Blank - Request Form'!E206),IF('Blank - Request Form'!$F$7=\"CIASI\",IF('Blank - Request Form'!N206=0,\"\",'Blank - Request Form'!N206),\"\"))","v":""},{"$f":"IF('Blank - Request Form'!$F$6=\"CIASI\",IF(OR('Blank - Request Form'!F206=\"000\",'Blank - Request Form'!F206=0),\"\",'Blank - Request Form'!F206),IF('Blank - Request Form'!$F$7=\"CIASI\",IF(OR('Blank - Request Form'!O206=\"000\",'Blank - Request Form'!O206=0),\"\",'Blank - Request Form'!O206),\"\"))","v":""},{"$f":"IF('Blank - Request Form'!$F$6=\"CIASI\",IF(OR('Blank - Request Form'!G206=\"0\",'Blank - Request Form'!G206=\"00000\",'Blank - Request Form'!G206=0),\"\",'Blank - Request Form'!G206),IF('Blank - Request Form'!$F$7=\"CIASI\",IF(OR('Blank - Request Form'!P206=\"0\",'Blank - Request Form'!P206=\"00000\",'Blank - Request Form'!P206=0),\"\",'Blank - Request Form'!P206),\"\"))","v":""},{"$f":"IF('Blank - Request Form'!$F$6=\"CIASI\",IF(OR('Blank - Request Form'!H206=\"0\",'Blank - Request Form'!H206=\"00000\",'Blank - Request Form'!H206=0),\"\",'Blank - Request Form'!H206),IF('Blank - Request Form'!$F$7=\"CIASI\",IF(OR('Blank - Request Form'!Q206=\"0\",'Blank - Request Form'!Q206=\"00000\",'Blank - Request Form'!Q206=0),\"\",'Blank - Request Form'!Q206),\"\"))","v":""},{"$f":"IF('Blank - Request Form'!$F$6=\"CIASI\",IF(OR('Blank - Request Form'!I206=\"0\",'Blank - Request Form'!I206=\"00000\",'Blank - Request Form'!I206=0),\"\",'Blank - Request Form'!I206),IF('Blank - Request Form'!$F$7=\"CIASI\",IF(OR('Blank - Request Form'!R206=\"0\",'Blank - Request Form'!R206=\"00000\",'Blank - Request Form'!R206=0),\"\",'Blank - Request Form'!R206),\"\"))","v":""},null,{"$f":"IF('Blank - Request Form'!$F$6=\"CIASI\",IF('Blank - Request Form'!K206=0,\"\",'Blank - Request Form'!K206),IF('Blank - Request Form'!$F$7=\"CIASI\",IF('Blank - Request Form'!T206=0,\"\",'Blank - Request Form'!T206),\"\"))","v":""},null,null,null,{"$f":"IF(M172<>\"\",'Blank - Request Form'!$M$2,\"\")","v":""},{"$f":"IF('Blank - Request Form'!$F$6=\"CIASI\",IF('Blank - Request Form'!J206=0,\"\",'Blank - Request Form'!J206),IF('Blank - Request Form'!$F$7=\"CIASI\",IF('Blank - Request Form'!S206=0,\"\",'Blank - Request Form'!S206),\"\"))","v":""},"",172]
[{"$f":"IF('Blank - Request Form'!$F$6=\"CIASI\",IF('Blank - Request Form'!D207=0,\"\",'Blank - Request Form'!D207),IF('Blank - Request Form'!$F$7=\"CIASI\",IF('Blank - Request Form'!M207=0,\"\",'Blank - Request Form'!M207),\"\"))","v":""},{"$f":"IF('Blank - Request Form'!$F$6=\"CIASI\",IF('Blank - Request Form'!E207=0,\"\",'Blank - Request Form'!E207),IF('Blank - Request Form'!$F$7=\"CIASI\",IF('Blank - Request Form'!N207=0,\"\",'Blank - Request Form'!N207),\"\"))","v":""},{"$f":"IF('Blank - Request Form'!$F$6=\"CIASI\",IF(OR('Blank - Request Form'!F207=\"000\",'Blank - Request Form'!F207=0),\"\",'Blank - Request Form'!F207),IF('Blank - Request Form'!$F$7=\"CIASI\",IF(OR('Blank - Request Form'!O207=\"000\",'Blank - Request Form'!O207=0),\"\",'Blank - Request Form'!O207),\"\"))","v":""},{"$f":"IF('Blank - Request Form'!$F$6=\"CIASI\",IF(OR('Blank - Request Form'!G207=\"0\",'Blank - Request Form'!G207=\"00000\",'Blank - Request Form'!G207=0),\"\",'Blank - Request Form'!G207),IF('Blank - Request Form'!$F$7=\"CIASI\",IF(OR('Blank - Request Form'!P207=\"0\",'Blank - Request Form'!P207=\"00000\",'Blank - Request Form'!P207=0),\"\",'Blank - Request Form'!P207),\"\"))","v":""},{"$f":"IF('Blank - Request Form'!$F$6=\"CIASI\",IF(OR('Blank - Request Form'!H207=\"0\",'Blank - Request Form'!H207=\"00000\",'Blank - Request Form'!H207=0),\"\",'Blank - Request Form'!H207),IF('Blank - Request Form'!$F$7=\"CIASI\",IF(OR('Blank - Request Form'!Q207=\"0\",'Blank - Request Form'!Q207=\"00000\",'Blank - Request Form'!Q207=0),\"\",'Blank - Request Form'!Q207),\"\"))","v":""},{"$f":"IF('Blank - Request Form'!$F$6=\"CIASI\",IF(OR('Blank - Request Form'!I207=\"0\",'Blank - Request Form'!I207=\"00000\",'Blank - Request Form'!I207=0),\"\",'Blank - Request Form'!I207),IF('Blank - Request Form'!$F$7=\"CIASI\",IF(OR('Blank - Request Form'!R207=\"0\",'Blank - Request Form'!R207=\"00000\",'Blank - Request Form'!R207=0),\"\",'Blank - Request Form'!R207),\"\"))","v":""},null,{"$f":"IF('Blank - Request Form'!$F$6=\"CIASI\",IF('Blank - Request Form'!K207=0,\"\",'Blank - Request Form'!K207),IF('Blank - Request Form'!$F$7=\"CIASI\",IF('Blank - Request Form'!T207=0,\"\",'Blank - Request Form'!T207),\"\"))","v":""},null,null,null,{"$f":"IF(M173<>\"\",'Blank - Request Form'!$M$2,\"\")","v":""},{"$f":"IF('Blank - Request Form'!$F$6=\"CIASI\",IF('Blank - Request Form'!J207=0,\"\",'Blank - Request Form'!J207),IF('Blank - Request Form'!$F$7=\"CIASI\",IF('Blank - Request Form'!S207=0,\"\",'Blank - Request Form'!S207),\"\"))","v":""},{"$f":"IF(M173<>\"\",O173,\"\")","v":""},173]
[{"$f":"IF('Blank - Request Form'!$F$6=\"CIASI\",IF('Blank - Request Form'!D208=0,\"\",'Blank - Request Form'!D208),IF('Blank - Request Form'!$F$7=\"CIASI\",IF('Blank - Request Form'!M208=0,\"\",'Blank - Request Form'!M208),\"\"))","v":""},{"$f":"IF('Blank - Request Form'!$F$6=\"CIASI\",IF('Blank - Request Form'!E208=0,\"\",'Blank - Request Form'!E208),IF('Blank - Request Form'!$F$7=\"CIASI\",IF('Blank - Request Form'!N208=0,\"\",'Blank - Request Form'!N208),\"\"))","v":""},{"$f":"IF('Blank - Request Form'!$F$6=\"CIASI\",IF(OR('Blank - Request Form'!F208=\"000\",'Blank - Request Form'!F208=0),\"\",'Blank - Request Form'!F208),IF('Blank - Request Form'!$F$7=\"CIASI\",IF(OR('Blank - Request Form'!O208=\"000\",'Blank - Request Form'!O208=0),\"\",'Blank - Request Form'!O208),\"\"))","v":""},{"$f":"IF('Blank - Request Form'!$F$6=\"CIASI\",IF(OR('Blank - Request Form'!G208=\"0\",'Blank - Request Form'!G208=\"00000\",'Blank - Request Form'!G208=0),\"\",'Blank - Request Form'!G208),IF('Blank - Request Form'!$F$7=\"CIASI\",IF(OR('Blank - Request Form'!P208=\"0\",'Blank - Request Form'!P208=\"00000\",'Blank - Request Form'!P208=0),\"\",'Blank - Request Form'!P208),\"\"))","v":""},{"$f":"IF('Blank - Request Form'!$F$6=\"CIASI\",IF(OR('Blank - Request Form'!H208=\"0\",'Blank - Request Form'!H208=\"00000\",'Blank - Request Form'!H208=0),\"\",'Blank - Request Form'!H208),IF('Blank - Request Form'!$F$7=\"CIASI\",IF(OR('Blank - Request Form'!Q208=\"0\",'Blank - Request Form'!Q208=\"00000\",'Blank - Request Form'!Q208=0),\"\",'Blank - Request Form'!Q208),\"\"))","v":""},{"$f":"IF('Blank - Request Form'!$F$6=\"CIASI\",IF(OR('Blank - Request Form'!I208=\"0\",'Blank - Request Form'!I208=\"00000\",'Blank - Request Form'!I208=0),\"\",'Blank - Request Form'!I208),IF('Blank - Request Form'!$F$7=\"CIASI\",IF(OR('Blank - Request Form'!R208=\"0\",'Blank - Request Form'!R208=\"00000\",'Blank - Request Form'!R208=0),\"\",'Blank - Request Form'!R208),\"\"))","v":""},null,{"$f":"IF('Blank - Request Form'!$F$6=\"CIASI\",IF('Blank - Request Form'!K208=0,\"\",'Blank - Request Form'!K208),IF('Blank - Request Form'!$F$7=\"CIASI\",IF('Blank - Request Form'!T208=0,\"\",'Blank - Request Form'!T208),\"\"))","v":""},null,null,null,{"$f":"IF(M174<>\"\",'Blank - Request Form'!$M$2,\"\")","v":""},{"$f":"IF('Blank - Request Form'!$F$6=\"CIASI\",IF('Blank - Request Form'!J208=0,\"\",'Blank - Request Form'!J208),IF('Blank - Request Form'!$F$7=\"CIASI\",IF('Blank - Request Form'!S208=0,\"\",'Blank - Request Form'!S208),\"\"))","v":""},"",174]
[{"$f":"IF('Blank - Request Form'!$F$6=\"CIASI\",IF('Blank - Request Form'!D209=0,\"\",'Blank - Request Form'!D209),IF('Blank - Request Form'!$F$7=\"CIASI\",IF('Blank - Request Form'!M209=0,\"\",'Blank - Request Form'!M209),\"\"))","v":""},{"$f":"IF('Blank - Request Form'!$F$6=\"CIASI\",IF('Blank - Request Form'!E209=0,\"\",'Blank - Request Form'!E209),IF('Blank - Request Form'!$F$7=\"CIASI\",IF('Blank - Request Form'!N209=0,\"\",'Blank - Request Form'!N209),\"\"))","v":""},{"$f":"IF('Blank - Request Form'!$F$6=\"CIASI\",IF(OR('Blank - Request Form'!F209=\"000\",'Blank - Request Form'!F209=0),\"\",'Blank - Request Form'!F209),IF('Blank - Request Form'!$F$7=\"CIASI\",IF(OR('Blank - Request Form'!O209=\"000\",'Blank - Request Form'!O209=0),\"\",'Blank - Request Form'!O209),\"\"))","v":""},{"$f":"IF('Blank - Request Form'!$F$6=\"CIASI\",IF(OR('Blank - Request Form'!G209=\"0\",'Blank - Request Form'!G209=\"00000\",'Blank - Request Form'!G209=0),\"\",'Blank - Request Form'!G209),IF('Blank - Request Form'!$F$7=\"CIASI\",IF(OR('Blank - Request Form'!P209=\"0\",'Blank - Request Form'!P209=\"00000\",'Blank - Request Form'!P209=0),\"\",'Blank - Request Form'!P209),\"\"))","v":""},{"$f":"IF('Blank - Request Form'!$F$6=\"CIASI\",IF(OR('Blank - Request Form'!H209=\"0\",'Blank - Request Form'!H209=\"00000\",'Blank - Request Form'!H209=0),\"\",'Blank - Request Form'!H209),IF('Blank - Request Form'!$F$7=\"CIASI\",IF(OR('Blank - Request Form'!Q209=\"0\",'Blank - Request Form'!Q209=\"00000\",'Blank - Request Form'!Q209=0),\"\",'Blank - Request Form'!Q209),\"\"))","v":""},{"$f":"IF('Blank - Request Form'!$F$6=\"CIASI\",IF(OR('Blank - Request Form'!I209=\"0\",'Blank - Request Form'!I209=\"00000\",'Blank - Request Form'!I209=0),\"\",'Blank - Request Form'!I209),IF('Blank - Request Form'!$F$7=\"CIASI\",IF(OR('Blank - Request Form'!R209=\"0\",'Blank - Request Form'!R209=\"00000\",'Blank - Request Form'!R209=0),\"\",'Blank - Request Form'!R209),\"\"))","v":""},null,{"$f":"IF('Blank - Request Form'!$F$6=\"CIASI\",IF('Blank - Request Form'!K209=0,\"\",'Blank - Request Form'!K209),IF('Blank - Request Form'!$F$7=\"CIASI\",IF('Blank - Request Form'!T209=0,\"\",'Blank - Request Form'!T209),\"\"))","v":""},null,null,null,{"$f":"IF(M175<>\"\",'Blank - Request Form'!$M$2,\"\")","v":""},{"$f":"IF('Blank - Request Form'!$F$6=\"CIASI\",IF('Blank - Request Form'!J209=0,\"\",'Blank - Request Form'!J209),IF('Blank - Request Form'!$F$7=\"CIASI\",IF('Blank - Request Form'!S209=0,\"\",'Blank - Request Form'!S209),\"\"))","v":""},"",175]
[{"$f":"IF('Blank - Request Form'!$F$6=\"CIASI\",IF('Blank - Request Form'!D210=0,\"\",'Blank - Request Form'!D210),IF('Blank - Request Form'!$F$7=\"CIASI\",IF('Blank - Request Form'!M210=0,\"\",'Blank - Request Form'!M210),\"\"))","v":""},{"$f":"IF('Blank - Request Form'!$F$6=\"CIASI\",IF('Blank - Request Form'!E210=0,\"\",'Blank - Request Form'!E210),IF('Blank - Request Form'!$F$7=\"CIASI\",IF('Blank - Request Form'!N210=0,\"\",'Blank - Request Form'!N210),\"\"))","v":""},{"$f":"IF('Blank - Request Form'!$F$6=\"CIASI\",IF(OR('Blank - Request Form'!F210=\"000\",'Blank - Request Form'!F210=0),\"\",'Blank - Request Form'!F210),IF('Blank - Request Form'!$F$7=\"CIASI\",IF(OR('Blank - Request Form'!O210=\"000\",'Blank - Request Form'!O210=0),\"\",'Blank - Request Form'!O210),\"\"))","v":""},{"$f":"IF('Blank - Request Form'!$F$6=\"CIASI\",IF(OR('Blank - Request Form'!G210=\"0\",'Blank - Request Form'!G210=\"00000\",'Blank - Request Form'!G210=0),\"\",'Blank - Request Form'!G210),IF('Blank - Request Form'!$F$7=\"CIASI\",IF(OR('Blank - Request Form'!P210=\"0\",'Blank - Request Form'!P210=\"00000\",'Blank - Request Form'!P210=0),\"\",'Blank - Request Form'!P210),\"\"))","v":""},{"$f":"IF('Blank - Request Form'!$F$6=\"CIASI\",IF(OR('Blank - Request Form'!H210=\"0\",'Blank - Request Form'!H210=\"00000\",'Blank - Request Form'!H210=0),\"\",'Blank - Request Form'!H210),IF('Blank - Request Form'!$F$7=\"CIASI\",IF(OR('Blank - Request Form'!Q210=\"0\",'Blank - Request Form'!Q210=\"00000\",'Blank - Request Form'!Q210=0),\"\",'Blank - Request Form'!Q210),\"\"))","v":""},{"$f":"IF('Blank - Request Form'!$F$6=\"CIASI\",IF(OR('Blank - Request Form'!I210=\"0\",'Blank - Request Form'!I210=\"00000\",'Blank - Request Form'!I210=0),\"\",'Blank - Request Form'!I210),IF('Blank - Request Form'!$F$7=\"CIASI\",IF(OR('Blank - Request Form'!R210=\"0\",'Blank - Request Form'!R210=\"00000\",'Blank - Request Form'!R210=0),\"\",'Blank - Request Form'!R210),\"\"))","v":""},null,{"$f":"IF('Blank - Request Form'!$F$6=\"CIASI\",IF('Blank - Request Form'!K210=0,\"\",'Blank - Request Form'!K210),IF('Blank - Request Form'!$F$7=\"CIASI\",IF('Blank - Request Form'!T210=0,\"\",'Blank - Request Form'!T210),\"\"))","v":""},null,null,null,{"$f":"IF(M176<>\"\",'Blank - Request Form'!$M$2,\"\")","v":""},{"$f":"IF('Blank - Request Form'!$F$6=\"CIASI\",IF('Blank - Request Form'!J210=0,\"\",'Blank - Request Form'!J210),IF('Blank - Request Form'!$F$7=\"CIASI\",IF('Blank - Request Form'!S210=0,\"\",'Blank - Request Form'!S210),\"\"))","v":""},"",176]
[{"$f":"IF('Blank - Request Form'!$F$6=\"CIASI\",IF('Blank - Request Form'!D211=0,\"\",'Blank - Request Form'!D211),IF('Blank - Request Form'!$F$7=\"CIASI\",IF('Blank - Request Form'!M211=0,\"\",'Blank - Request Form'!M211),\"\"))","v":""},{"$f":"IF('Blank - Request Form'!$F$6=\"CIASI\",IF('Blank - Request Form'!E211=0,\"\",'Blank - Request Form'!E211),IF('Blank - Request Form'!$F$7=\"CIASI\",IF('Blank - Request Form'!N211=0,\"\",'Blank - Request Form'!N211),\"\"))","v":""},{"$f":"IF('Blank - Request Form'!$F$6=\"CIASI\",IF(OR('Blank - Request Form'!F211=\"000\",'Blank - Request Form'!F211=0),\"\",'Blank - Request Form'!F211),IF('Blank - Request Form'!$F$7=\"CIASI\",IF(OR('Blank - Request Form'!O211=\"000\",'Blank - Request Form'!O211=0),\"\",'Blank - Request Form'!O211),\"\"))","v":""},{"$f":"IF('Blank - Request Form'!$F$6=\"CIASI\",IF(OR('Blank - Request Form'!G211=\"0\",'Blank - Request Form'!G211=\"00000\",'Blank - Request Form'!G211=0),\"\",'Blank - Request Form'!G211),IF('Blank - Request Form'!$F$7=\"CIASI\",IF(OR('Blank - Request Form'!P211=\"0\",'Blank - Request Form'!P211=\"00000\",'Blank - Request Form'!P211=0),\"\",'Blank - Request Form'!P211),\"\"))","v":""},{"$f":"IF('Blank - Request Form'!$F$6=\"CIASI\",IF(OR('Blank - Request Form'!H211=\"0\",'Blank - Request Form'!H211=\"00000\",'Blank - Request Form'!H211=0),\"\",'Blank - Request Form'!H211),IF('Blank - Request Form'!$F$7=\"CIASI\",IF(OR('Blank - Request Form'!Q211=\"0\",'Blank - Request Form'!Q211=\"00000\",'Blank - Request Form'!Q211=0),\"\",'Blank - Request Form'!Q211),\"\"))","v":""},{"$f":"IF('Blank - Request Form'!$F$6=\"CIASI\",IF(OR('Blank - Request Form'!I211=\"0\",'Blank - Request Form'!I211=\"00000\",'Blank - Request Form'!I211=0),\"\",'Blank - Request Form'!I211),IF('Blank - Request Form'!$F$7=\"CIASI\",IF(OR('Blank - Request Form'!R211=\"0\",'Blank - Request Form'!R211=\"00000\",'Blank - Request Form'!R211=0),\"\",'Blank - Request Form'!R211),\"\"))","v":""},null,{"$f":"IF('Blank - Request Form'!$F$6=\"CIASI\",IF('Blank - Request Form'!K211=0,\"\",'Blank - Request Form'!K211),IF('Blank - Request Form'!$F$7=\"CIASI\",IF('Blank - Request Form'!T211=0,\"\",'Blank - Request Form'!T211),\"\"))","v":""},null,null,null,{"$f":"IF(M177<>\"\",'Blank - Request Form'!$M$2,\"\")","v":""},{"$f":"IF('Blank - Request Form'!$F$6=\"CIASI\",IF('Blank - Request Form'!J211=0,\"\",'Blank - Request Form'!J211),IF('Blank - Request Form'!$F$7=\"CIASI\",IF('Blank - Request Form'!S211=0,\"\",'Blank - Request Form'!S211),\"\"))","v":""},"",177]
[{"$f":"IF('Blank - Request Form'!$F$6=\"CIASI\",IF('Blank - Request Form'!D212=0,\"\",'Blank - Request Form'!D212),IF('Blank - Request Form'!$F$7=\"CIASI\",IF('Blank - Request Form'!M212=0,\"\",'Blank - Request Form'!M212),\"\"))","v":""},{"$f":"IF('Blank - Request Form'!$F$6=\"CIASI\",IF('Blank - Request Form'!E212=0,\"\",'Blank - Request Form'!E212),IF('Blank - Request Form'!$F$7=\"CIASI\",IF('Blank - Request Form'!N212=0,\"\",'Blank - Request Form'!N212),\"\"))","v":""},{"$f":"IF('Blank - Request Form'!$F$6=\"CIASI\",IF(OR('Blank - Request Form'!F212=\"000\",'Blank - Request Form'!F212=0),\"\",'Blank - Request Form'!F212),IF('Blank - Request Form'!$F$7=\"CIASI\",IF(OR('Blank - Request Form'!O212=\"000\",'Blank - Request Form'!O212=0),\"\",'Blank - Request Form'!O212),\"\"))","v":""},{"$f":"IF('Blank - Request Form'!$F$6=\"CIASI\",IF(OR('Blank - Request Form'!G212=\"0\",'Blank - Request Form'!G212=\"00000\",'Blank - Request Form'!G212=0),\"\",'Blank - Request Form'!G212),IF('Blank - Request Form'!$F$7=\"CIASI\",IF(OR('Blank - Request Form'!P212=\"0\",'Blank - Request Form'!P212=\"00000\",'Blank - Request Form'!P212=0),\"\",'Blank - Request Form'!P212),\"\"))","v":""},{"$f":"IF('Blank - Request Form'!$F$6=\"CIASI\",IF(OR('Blank - Request Form'!H212=\"0\",'Blank - Request Form'!H212=\"00000\",'Blank - Request Form'!H212=0),\"\",'Blank - Request Form'!H212),IF('Blank - Request Form'!$F$7=\"CIASI\",IF(OR('Blank - Request Form'!Q212=\"0\",'Blank - Request Form'!Q212=\"00000\",'Blank - Request Form'!Q212=0),\"\",'Blank - Request Form'!Q212),\"\"))","v":""},{"$f":"IF('Blank - Request Form'!$F$6=\"CIASI\",IF(OR('Blank - Request Form'!I212=\"0\",'Blank - Request Form'!I212=\"00000\",'Blank - Request Form'!I212=0),\"\",'Blank - Request Form'!I212),IF('Blank - Request Form'!$F$7=\"CIASI\",IF(OR('Blank - Request Form'!R212=\"0\",'Blank - Request Form'!R212=\"00000\",'Blank - Request Form'!R212=0),\"\",'Blank - Request Form'!R212),\"\"))","v":""},null,{"$f":"IF('Blank - Request Form'!$F$6=\"CIASI\",IF('Blank - Request Form'!K212=0,\"\",'Blank - Request Form'!K212),IF('Blank - Request Form'!$F$7=\"CIASI\",IF('Blank - Request Form'!T212=0,\"\",'Blank - Request Form'!T212),\"\"))","v":""},null,null,null,{"$f":"IF(M178<>\"\",'Blank - Request Form'!$M$2,\"\")","v":""},{"$f":"IF('Blank - Request Form'!$F$6=\"CIASI\",IF('Blank - Request Form'!J212=0,\"\",'Blank - Request Form'!J212),IF('Blank - Request Form'!$F$7=\"CIASI\",IF('Blank - Request Form'!S212=0,\"\",'Blank - Request Form'!S212),\"\"))","v":""},"",178]
[{"$f":"IF('Blank - Request Form'!$F$6=\"CIASI\",IF('Blank - Request Form'!D213=0,\"\",'Blank - Request Form'!D213),IF('Blank - Request Form'!$F$7=\"CIASI\",IF('Blank - Request Form'!M213=0,\"\",'Blank - Request Form'!M213),\"\"))","v":""},{"$f":"IF('Blank - Request Form'!$F$6=\"CIASI\",IF('Blank - Request Form'!E213=0,\"\",'Blank - Request Form'!E213),IF('Blank - Request Form'!$F$7=\"CIASI\",IF('Blank - Request Form'!N213=0,\"\",'Blank - Request Form'!N213),\"\"))","v":""},{"$f":"IF('Blank - Request Form'!$F$6=\"CIASI\",IF(OR('Blank - Request Form'!F213=\"000\",'Blank - Request Form'!F213=0),\"\",'Blank - Request Form'!F213),IF('Blank - Request Form'!$F$7=\"CIASI\",IF(OR('Blank - Request Form'!O213=\"000\",'Blank - Request Form'!O213=0),\"\",'Blank - Request Form'!O213),\"\"))","v":""},{"$f":"IF('Blank - Request Form'!$F$6=\"CIASI\",IF(OR('Blank - Request Form'!G213=\"0\",'Blank - Request Form'!G213=\"00000\",'Blank - Request Form'!G213=0),\"\",'Blank - Request Form'!G213),IF('Blank - Request Form'!$F$7=\"CIASI\",IF(OR('Blank - Request Form'!P213=\"0\",'Blank - Request Form'!P213=\"00000\",'Blank - Request Form'!P213=0),\"\",'Blank - Request Form'!P213),\"\"))","v":""},{"$f":"IF('Blank - Request Form'!$F$6=\"CIASI\",IF(OR('Blank - Request Form'!H213=\"0\",'Blank - Request Form'!H213=\"00000\",'Blank - Request Form'!H213=0),\"\",'Blank - Request Form'!H213),IF('Blank - Request Form'!$F$7=\"CIASI\",IF(OR('Blank - Request Form'!Q213=\"0\",'Blank - Request Form'!Q213=\"00000\",'Blank - Request Form'!Q213=0),\"\",'Blank - Request Form'!Q213),\"\"))","v":""},{"$f":"IF('Blank - Request Form'!$F$6=\"CIASI\",IF(OR('Blank - Request Form'!I213=\"0\",'Blank - Request Form'!I213=\"00000\",'Blank - Request Form'!I213=0),\"\",'Blank - Request Form'!I213),IF('Blank - Request Form'!$F$7=\"CIASI\",IF(OR('Blank - Request Form'!R213=\"0\",'Blank - Request Form'!R213=\"00000\",'Blank - Request Form'!R213=0),\"\",'Blank - Request Form'!R213),\"\"))","v":""},null,{"$f":"IF('Blank - Request Form'!$F$6=\"CIASI\",IF('Blank - Request Form'!K213=0,\"\",'Blank - Request Form'!K213),IF('Blank - Request Form'!$F$7=\"CIASI\",IF('Blank - Request Form'!T213=0,\"\",'Blank - Request Form'!T213),\"\"))","v":""},null,null,null,{"$f":"IF(M179<>\"\",'Blank - Request Form'!$M$2,\"\")","v":""},{"$f":"IF('Blank - Request Form'!$F$6=\"CIASI\",IF('Blank - Request Form'!J213=0,\"\",'Blank - Request Form'!J213),IF('Blank - Request Form'!$F$7=\"CIASI\",IF('Blank - Request Form'!S213=0,\"\",'Blank - Request Form'!S213),\"\"))","v":""},"",179]
[{"$f":"IF('Blank - Request Form'!$F$6=\"CIASI\",IF('Blank - Request Form'!D214=0,\"\",'Blank - Request Form'!D214),IF('Blank - Request Form'!$F$7=\"CIASI\",IF('Blank - Request Form'!M214=0,\"\",'Blank - Request Form'!M214),\"\"))","v":""},{"$f":"IF('Blank - Request Form'!$F$6=\"CIASI\",IF('Blank - Request Form'!E214=0,\"\",'Blank - Request Form'!E214),IF('Blank - Request Form'!$F$7=\"CIASI\",IF('Blank - Request Form'!N214=0,\"\",'Blank - Request Form'!N214),\"\"))","v":""},{"$f":"IF('Blank - Request Form'!$F$6=\"CIASI\",IF(OR('Blank - Request Form'!F214=\"000\",'Blank - Request Form'!F214=0),\"\",'Blank - Request Form'!F214),IF('Blank - Request Form'!$F$7=\"CIASI\",IF(OR('Blank - Request Form'!O214=\"000\",'Blank - Request Form'!O214=0),\"\",'Blank - Request Form'!O214),\"\"))","v":""},{"$f":"IF('Blank - Request Form'!$F$6=\"CIASI\",IF(OR('Blank - Request Form'!G214=\"0\",'Blank - Request Form'!G214=\"00000\",'Blank - Request Form'!G214=0),\"\",'Blank - Request Form'!G214),IF('Blank - Request Form'!$F$7=\"CIASI\",IF(OR('Blank - Request Form'!P214=\"0\",'Blank - Request Form'!P214=\"00000\",'Blank - Request Form'!P214=0),\"\",'Blank - Request Form'!P214),\"\"))","v":""},{"$f":"IF('Blank - Request Form'!$F$6=\"CIASI\",IF(OR('Blank - Request Form'!H214=\"0\",'Blank - Request Form'!H214=\"00000\",'Blank - Request Form'!H214=0),\"\",'Blank - Request Form'!H214),IF('Blank - Request Form'!$F$7=\"CIASI\",IF(OR('Blank - Request Form'!Q214=\"0\",'Blank - Request Form'!Q214=\"00000\",'Blank - Request Form'!Q214=0),\"\",'Blank - Request Form'!Q214),\"\"))","v":""},{"$f":"IF('Blank - Request Form'!$F$6=\"CIASI\",IF(OR('Blank - Request Form'!I214=\"0\",'Blank - Request Form'!I214=\"00000\",'Blank - Request Form'!I214=0),\"\",'Blank - Request Form'!I214),IF('Blank - Request Form'!$F$7=\"CIASI\",IF(OR('Blank - Request Form'!R214=\"0\",'Blank - Request Form'!R214=\"00000\",'Blank - Request Form'!R214=0),\"\",'Blank - Request Form'!R214),\"\"))","v":""},null,{"$f":"IF('Blank - Request Form'!$F$6=\"CIASI\",IF('Blank - Request Form'!K214=0,\"\",'Blank - Request Form'!K214),IF('Blank - Request Form'!$F$7=\"CIASI\",IF('Blank - Request Form'!T214=0,\"\",'Blank - Request Form'!T214),\"\"))","v":""},null,null,null,{"$f":"IF(M180<>\"\",'Blank - Request Form'!$M$2,\"\")","v":""},{"$f":"IF('Blank - Request Form'!$F$6=\"CIASI\",IF('Blank - Request Form'!J214=0,\"\",'Blank - Request Form'!J214),IF('Blank - Request Form'!$F$7=\"CIASI\",IF('Blank - Request Form'!S214=0,\"\",'Blank - Request Form'!S214),\"\"))","v":""},"",180]
[{"$f":"IF('Blank - Request Form'!$F$6=\"CIASI\",IF('Blank - Request Form'!D215=0,\"\",'Blank - Request Form'!D215),IF('Blank - Request Form'!$F$7=\"CIASI\",IF('Blank - Request Form'!M215=0,\"\",'Blank - Request Form'!M215),\"\"))","v":""},{"$f":"IF('Blank - Request Form'!$F$6=\"CIASI\",IF('Blank - Request Form'!E215=0,\"\",'Blank - Request Form'!E215),IF('Blank - Request Form'!$F$7=\"CIASI\",IF('Blank - Request Form'!N215=0,\"\",'Blank - Request Form'!N215),\"\"))","v":""},{"$f":"IF('Blank - Request Form'!$F$6=\"CIASI\",IF(OR('Blank - Request Form'!F215=\"000\",'Blank - Request Form'!F215=0),\"\",'Blank - Request Form'!F215),IF('Blank - Request Form'!$F$7=\"CIASI\",IF(OR('Blank - Request Form'!O215=\"000\",'Blank - Request Form'!O215=0),\"\",'Blank - Request Form'!O215),\"\"))","v":""},{"$f":"IF('Blank - Request Form'!$F$6=\"CIASI\",IF(OR('Blank - Request Form'!G215=\"0\",'Blank - Request Form'!G215=\"00000\",'Blank - Request Form'!G215=0),\"\",'Blank - Request Form'!G215),IF('Blank - Request Form'!$F$7=\"CIASI\",IF(OR('Blank - Request Form'!P215=\"0\",'Blank - Request Form'!P215=\"00000\",'Blank - Request Form'!P215=0),\"\",'Blank - Request Form'!P215),\"\"))","v":""},{"$f":"IF('Blank - Request Form'!$F$6=\"CIASI\",IF(OR('Blank - Request Form'!H215=\"0\",'Blank - Request Form'!H215=\"00000\",'Blank - Request Form'!H215=0),\"\",'Blank - Request Form'!H215),IF('Blank - Request Form'!$F$7=\"CIASI\",IF(OR('Blank - Request Form'!Q215=\"0\",'Blank - Request Form'!Q215=\"00000\",'Blank - Request Form'!Q215=0),\"\",'Blank - Request Form'!Q215),\"\"))","v":""},{"$f":"IF('Blank - Request Form'!$F$6=\"CIASI\",IF(OR('Blank - Request Form'!I215=\"0\",'Blank - Request Form'!I215=\"00000\",'Blank - Request Form'!I215=0),\"\",'Blank - Request Form'!I215),IF('Blank - Request Form'!$F$7=\"CIASI\",IF(OR('Blank - Request Form'!R215=\"0\",'Blank - Request Form'!R215=\"00000\",'Blank - Request Form'!R215=0),\"\",'Blank - Request Form'!R215),\"\"))","v":""},null,{"$f":"IF('Blank - Request Form'!$F$6=\"CIASI\",IF('Blank - Request Form'!K215=0,\"\",'Blank - Request Form'!K215),IF('Blank - Request Form'!$F$7=\"CIASI\",IF('Blank - Request Form'!T215=0,\"\",'Blank - Request Form'!T215),\"\"))","v":""},null,null,null,{"$f":"IF(M181<>\"\",'Blank - Request Form'!$M$2,\"\")","v":""},{"$f":"IF('Blank - Request Form'!$F$6=\"CIASI\",IF('Blank - Request Form'!J215=0,\"\",'Blank - Request Form'!J215),IF('Blank - Request Form'!$F$7=\"CIASI\",IF('Blank - Request Form'!S215=0,\"\",'Blank - Request Form'!S215),\"\"))","v":""},"",181]
[{"$f":"IF('Blank - Request Form'!$F$6=\"CIASI\",IF('Blank - Request Form'!D216=0,\"\",'Blank - Request Form'!D216),IF('Blank - Request Form'!$F$7=\"CIASI\",IF('Blank - Request Form'!M216=0,\"\",'Blank - Request Form'!M216),\"\"))","v":""},{"$f":"IF('Blank - Request Form'!$F$6=\"CIASI\",IF('Blank - Request Form'!E216=0,\"\",'Blank - Request Form'!E216),IF('Blank - Request Form'!$F$7=\"CIASI\",IF('Blank - Request Form'!N216=0,\"\",'Blank - Request Form'!N216),\"\"))","v":""},{"$f":"IF('Blank - Request Form'!$F$6=\"CIASI\",IF(OR('Blank - Request Form'!F216=\"000\",'Blank - Request Form'!F216=0),\"\",'Blank - Request Form'!F216),IF('Blank - Request Form'!$F$7=\"CIASI\",IF(OR('Blank - Request Form'!O216=\"000\",'Blank - Request Form'!O216=0),\"\",'Blank - Request Form'!O216),\"\"))","v":""},{"$f":"IF('Blank - Request Form'!$F$6=\"CIASI\",IF(OR('Blank - Request Form'!G216=\"0\",'Blank - Request Form'!G216=\"00000\",'Blank - Request Form'!G216=0),\"\",'Blank - Request Form'!G216),IF('Blank - Request Form'!$F$7=\"CIASI\",IF(OR('Blank - Request Form'!P216=\"0\",'Blank - Request Form'!P216=\"00000\",'Blank - Request Form'!P216=0),\"\",'Blank - Request Form'!P216),\"\"))","v":""},{"$f":"IF('Blank - Request Form'!$F$6=\"CIASI\",IF(OR('Blank - Request Form'!H216=\"0\",'Blank - Request Form'!H216=\"00000\",'Blank - Request Form'!H216=0),\"\",'Blank - Request Form'!H216),IF('Blank - Request Form'!$F$7=\"CIASI\",IF(OR('Blank - Request Form'!Q216=\"0\",'Blank - Request Form'!Q216=\"00000\",'Blank - Request Form'!Q216=0),\"\",'Blank - Request Form'!Q216),\"\"))","v":""},{"$f":"IF('Blank - Request Form'!$F$6=\"CIASI\",IF(OR('Blank - Request Form'!I216=\"0\",'Blank - Request Form'!I216=\"00000\",'Blank - Request Form'!I216=0),\"\",'Blank - Request Form'!I216),IF('Blank - Request Form'!$F$7=\"CIASI\",IF(OR('Blank - Request Form'!R216=\"0\",'Blank - Request Form'!R216=\"00000\",'Blank - Request Form'!R216=0),\"\",'Blank - Request Form'!R216),\"\"))","v":""},null,{"$f":"IF('Blank - Request Form'!$F$6=\"CIASI\",IF('Blank - Request Form'!K216=0,\"\",'Blank - Request Form'!K216),IF('Blank - Request Form'!$F$7=\"CIASI\",IF('Blank - Request Form'!T216=0,\"\",'Blank - Request Form'!T216),\"\"))","v":""},null,null,null,{"$f":"IF(M182<>\"\",'Blank - Request Form'!$M$2,\"\")","v":""},{"$f":"IF('Blank - Request Form'!$F$6=\"CIASI\",IF('Blank - Request Form'!J216=0,\"\",'Blank - Request Form'!J216),IF('Blank - Request Form'!$F$7=\"CIASI\",IF('Blank - Request Form'!S216=0,\"\",'Blank - Request Form'!S216),\"\"))","v":""},"",182]
[{"$f":"IF('Blank - Request Form'!$F$6=\"CIASI\",IF('Blank - Request Form'!D217=0,\"\",'Blank - Request Form'!D217),IF('Blank - Request Form'!$F$7=\"CIASI\",IF('Blank - Request Form'!M217=0,\"\",'Blank - Request Form'!M217),\"\"))","v":""},{"$f":"IF('Blank - Request Form'!$F$6=\"CIASI\",IF('Blank - Request Form'!E217=0,\"\",'Blank - Request Form'!E217),IF('Blank - Request Form'!$F$7=\"CIASI\",IF('Blank - Request Form'!N217=0,\"\",'Blank - Request Form'!N217),\"\"))","v":""},{"$f":"IF('Blank - Request Form'!$F$6=\"CIASI\",IF(OR('Blank - Request Form'!F217=\"000\",'Blank - Request Form'!F217=0),\"\",'Blank - Request Form'!F217),IF('Blank - Request Form'!$F$7=\"CIASI\",IF(OR('Blank - Request Form'!O217=\"000\",'Blank - Request Form'!O217=0),\"\",'Blank - Request Form'!O217),\"\"))","v":""},{"$f":"IF('Blank - Request Form'!$F$6=\"CIASI\",IF(OR('Blank - Request Form'!G217=\"0\",'Blank - Request Form'!G217=\"00000\",'Blank - Request Form'!G217=0),\"\",'Blank - Request Form'!G217),IF('Blank - Request Form'!$F$7=\"CIASI\",IF(OR('Blank - Request Form'!P217=\"0\",'Blank - Request Form'!P217=\"00000\",'Blank - Request Form'!P217=0),\"\",'Blank - Request Form'!P217),\"\"))","v":""},{"$f":"IF('Blank - Request Form'!$F$6=\"CIASI\",IF(OR('Blank - Request Form'!H217=\"0\",'Blank - Request Form'!H217=\"00000\",'Blank - Request Form'!H217=0),\"\",'Blank - Request Form'!H217),IF('Blank - Request Form'!$F$7=\"CIASI\",IF(OR('Blank - Request Form'!Q217=\"0\",'Blank - Request Form'!Q217=\"00000\",'Blank - Request Form'!Q217=0),\"\",'Blank - Request Form'!Q217),\"\"))","v":""},{"$f":"IF('Blank - Request Form'!$F$6=\"CIASI\",IF(OR('Blank - Request Form'!I217=\"0\",'Blank - Request Form'!I217=\"00000\",'Blank - Request Form'!I217=0),\"\",'Blank - Request Form'!I217),IF('Blank - Request Form'!$F$7=\"CIASI\",IF(OR('Blank - Request Form'!R217=\"0\",'Blank - Request Form'!R217=\"00000\",'Blank - Request Form'!R217=0),\"\",'Blank - Request Form'!R217),\"\"))","v":""},null,{"$f":"IF('Blank - Request Form'!$F$6=\"CIASI\",IF('Blank - Request Form'!K217=0,\"\",'Blank - Request Form'!K217),IF('Blank - Request Form'!$F$7=\"CIASI\",IF('Blank - Request Form'!T217=0,\"\",'Blank - Request Form'!T217),\"\"))","v":""},null,null,null,{"$f":"IF(M183<>\"\",'Blank - Request Form'!$M$2,\"\")","v":""},{"$f":"IF('Blank - Request Form'!$F$6=\"CIASI\",IF('Blank - Request Form'!J217=0,\"\",'Blank - Request Form'!J217),IF('Blank - Request Form'!$F$7=\"CIASI\",IF('Blank - Request Form'!S217=0,\"\",'Blank - Request Form'!S217),\"\"))","v":""},"",183]
[{"$f":"IF('Blank - Request Form'!$F$6=\"CIASI\",IF('Blank - Request Form'!D218=0,\"\",'Blank - Request Form'!D218),IF('Blank - Request Form'!$F$7=\"CIASI\",IF('Blank - Request Form'!M218=0,\"\",'Blank - Request Form'!M218),\"\"))","v":""},{"$f":"IF('Blank - Request Form'!$F$6=\"CIASI\",IF('Blank - Request Form'!E218=0,\"\",'Blank - Request Form'!E218),IF('Blank - Request Form'!$F$7=\"CIASI\",IF('Blank - Request Form'!N218=0,\"\",'Blank - Request Form'!N218),\"\"))","v":""},{"$f":"IF('Blank - Request Form'!$F$6=\"CIASI\",IF(OR('Blank - Request Form'!F218=\"000\",'Blank - Request Form'!F218=0),\"\",'Blank - Request Form'!F218),IF('Blank - Request Form'!$F$7=\"CIASI\",IF(OR('Blank - Request Form'!O218=\"000\",'Blank - Request Form'!O218=0),\"\",'Blank - Request Form'!O218),\"\"))","v":""},{"$f":"IF('Blank - Request Form'!$F$6=\"CIASI\",IF(OR('Blank - Request Form'!G218=\"0\",'Blank - Request Form'!G218=\"00000\",'Blank - Request Form'!G218=0),\"\",'Blank - Request Form'!G218),IF('Blank - Request Form'!$F$7=\"CIASI\",IF(OR('Blank - Request Form'!P218=\"0\",'Blank - Request Form'!P218=\"00000\",'Blank - Request Form'!P218=0),\"\",'Blank - Request Form'!P218),\"\"))","v":""},{"$f":"IF('Blank - Request Form'!$F$6=\"CIASI\",IF(OR('Blank - Request Form'!H218=\"0\",'Blank - Request Form'!H218=\"00000\",'Blank - Request Form'!H218=0),\"\",'Blank - Request Form'!H218),IF('Blank - Request Form'!$F$7=\"CIASI\",IF(OR('Blank - Request Form'!Q218=\"0\",'Blank - Request Form'!Q218=\"00000\",'Blank - Request Form'!Q218=0),\"\",'Blank - Request Form'!Q218),\"\"))","v":""},{"$f":"IF('Blank - Request Form'!$F$6=\"CIASI\",IF(OR('Blank - Request Form'!I218=\"0\",'Blank - Request Form'!I218=\"00000\",'Blank - Request Form'!I218=0),\"\",'Blank - Request Form'!I218),IF('Blank - Request Form'!$F$7=\"CIASI\",IF(OR('Blank - Request Form'!R218=\"0\",'Blank - Request Form'!R218=\"00000\",'Blank - Request Form'!R218=0),\"\",'Blank - Request Form'!R218),\"\"))","v":""},null,{"$f":"IF('Blank - Request Form'!$F$6=\"CIASI\",IF('Blank - Request Form'!K218=0,\"\",'Blank - Request Form'!K218),IF('Blank - Request Form'!$F$7=\"CIASI\",IF('Blank - Request Form'!T218=0,\"\",'Blank - Request Form'!T218),\"\"))","v":""},null,null,null,{"$f":"IF(M184<>\"\",'Blank - Request Form'!$M$2,\"\")","v":""},{"$f":"IF('Blank - Request Form'!$F$6=\"CIASI\",IF('Blank - Request Form'!J218=0,\"\",'Blank - Request Form'!J218),IF('Blank - Request Form'!$F$7=\"CIASI\",IF('Blank - Request Form'!S218=0,\"\",'Blank - Request Form'!S218),\"\"))","v":""},"",184]
[{"$f":"IF('Blank - Request Form'!$F$6=\"CIASI\",IF('Blank - Request Form'!D219=0,\"\",'Blank - Request Form'!D219),IF('Blank - Request Form'!$F$7=\"CIASI\",IF('Blank - Request Form'!M219=0,\"\",'Blank - Request Form'!M219),\"\"))","v":""},{"$f":"IF('Blank - Request Form'!$F$6=\"CIASI\",IF('Blank - Request Form'!E219=0,\"\",'Blank - Request Form'!E219),IF('Blank - Request Form'!$F$7=\"CIASI\",IF('Blank - Request Form'!N219=0,\"\",'Blank - Request Form'!N219),\"\"))","v":""},{"$f":"IF('Blank - Request Form'!$F$6=\"CIASI\",IF(OR('Blank - Request Form'!F219=\"000\",'Blank - Request Form'!F219=0),\"\",'Blank - Request Form'!F219),IF('Blank - Request Form'!$F$7=\"CIASI\",IF(OR('Blank - Request Form'!O219=\"000\",'Blank - Request Form'!O219=0),\"\",'Blank - Request Form'!O219),\"\"))","v":""},{"$f":"IF('Blank - Request Form'!$F$6=\"CIASI\",IF(OR('Blank - Request Form'!G219=\"0\",'Blank - Request Form'!G219=\"00000\",'Blank - Request Form'!G219=0),\"\",'Blank - Request Form'!G219),IF('Blank - Request Form'!$F$7=\"CIASI\",IF(OR('Blank - Request Form'!P219=\"0\",'Blank - Request Form'!P219=\"00000\",'Blank - Request Form'!P219=0),\"\",'Blank - Request Form'!P219),\"\"))","v":""},{"$f":"IF('Blank - Request Form'!$F$6=\"CIASI\",IF(OR('Blank - Request Form'!H219=\"0\",'Blank - Request Form'!H219=\"00000\",'Blank - Request Form'!H219=0),\"\",'Blank - Request Form'!H219),IF('Blank - Request Form'!$F$7=\"CIASI\",IF(OR('Blank - Request Form'!Q219=\"0\",'Blank - Request Form'!Q219=\"00000\",'Blank - Request Form'!Q219=0),\"\",'Blank - Request Form'!Q219),\"\"))","v":""},{"$f":"IF('Blank - Request Form'!$F$6=\"CIASI\",IF(OR('Blank - Request Form'!I219=\"0\",'Blank - Request Form'!I219=\"00000\",'Blank - Request Form'!I219=0),\"\",'Blank - Request Form'!I219),IF('Blank - Request Form'!$F$7=\"CIASI\",IF(OR('Blank - Request Form'!R219=\"0\",'Blank - Request Form'!R219=\"00000\",'Blank - Request Form'!R219=0),\"\",'Blank - Request Form'!R219),\"\"))","v":""},null,{"$f":"IF('Blank - Request Form'!$F$6=\"CIASI\",IF('Blank - Request Form'!K219=0,\"\",'Blank - Request Form'!K219),IF('Blank - Request Form'!$F$7=\"CIASI\",IF('Blank - Request Form'!T219=0,\"\",'Blank - Request Form'!T219),\"\"))","v":""},null,null,null,{"$f":"IF(M185<>\"\",'Blank - Request Form'!$M$2,\"\")","v":""},{"$f":"IF('Blank - Request Form'!$F$6=\"CIASI\",IF('Blank - Request Form'!J219=0,\"\",'Blank - Request Form'!J219),IF('Blank - Request Form'!$F$7=\"CIASI\",IF('Blank - Request Form'!S219=0,\"\",'Blank - Request Form'!S219),\"\"))","v":""},"",185]
[{"$f":"IF('Blank - Request Form'!$F$6=\"CIASI\",IF('Blank - Request Form'!D220=0,\"\",'Blank - Request Form'!D220),IF('Blank - Request Form'!$F$7=\"CIASI\",IF('Blank - Request Form'!M220=0,\"\",'Blank - Request Form'!M220),\"\"))","v":""},{"$f":"IF('Blank - Request Form'!$F$6=\"CIASI\",IF('Blank - Request Form'!E220=0,\"\",'Blank - Request Form'!E220),IF('Blank - Request Form'!$F$7=\"CIASI\",IF('Blank - Request Form'!N220=0,\"\",'Blank - Request Form'!N220),\"\"))","v":""},{"$f":"IF('Blank - Request Form'!$F$6=\"CIASI\",IF(OR('Blank - Request Form'!F220=\"000\",'Blank - Request Form'!F220=0),\"\",'Blank - Request Form'!F220),IF('Blank - Request Form'!$F$7=\"CIASI\",IF(OR('Blank - Request Form'!O220=\"000\",'Blank - Request Form'!O220=0),\"\",'Blank - Request Form'!O220),\"\"))","v":""},{"$f":"IF('Blank - Request Form'!$F$6=\"CIASI\",IF(OR('Blank - Request Form'!G220=\"0\",'Blank - Request Form'!G220=\"00000\",'Blank - Request Form'!G220=0),\"\",'Blank - Request Form'!G220),IF('Blank - Request Form'!$F$7=\"CIASI\",IF(OR('Blank - Request Form'!P220=\"0\",'Blank - Request Form'!P220=\"00000\",'Blank - Request Form'!P220=0),\"\",'Blank - Request Form'!P220),\"\"))","v":""},{"$f":"IF('Blank - Request Form'!$F$6=\"CIASI\",IF(OR('Blank - Request Form'!H220=\"0\",'Blank - Request Form'!H220=\"00000\",'Blank - Request Form'!H220=0),\"\",'Blank - Request Form'!H220),IF('Blank - Request Form'!$F$7=\"CIASI\",IF(OR('Blank - Request Form'!Q220=\"0\",'Blank - Request Form'!Q220=\"00000\",'Blank - Request Form'!Q220=0),\"\",'Blank - Request Form'!Q220),\"\"))","v":""},{"$f":"IF('Blank - Request Form'!$F$6=\"CIASI\",IF(OR('Blank - Request Form'!I220=\"0\",'Blank - Request Form'!I220=\"00000\",'Blank - Request Form'!I220=0),\"\",'Blank - Request Form'!I220),IF('Blank - Request Form'!$F$7=\"CIASI\",IF(OR('Blank - Request Form'!R220=\"0\",'Blank - Request Form'!R220=\"00000\",'Blank - Request Form'!R220=0),\"\",'Blank - Request Form'!R220),\"\"))","v":""},null,{"$f":"IF('Blank - Request Form'!$F$6=\"CIASI\",IF('Blank - Request Form'!K220=0,\"\",'Blank - Request Form'!K220),IF('Blank - Request Form'!$F$7=\"CIASI\",IF('Blank - Request Form'!T220=0,\"\",'Blank - Request Form'!T220),\"\"))","v":""},null,null,null,{"$f":"IF(M186<>\"\",'Blank - Request Form'!$M$2,\"\")","v":""},{"$f":"IF('Blank - Request Form'!$F$6=\"CIASI\",IF('Blank - Request Form'!J220=0,\"\",'Blank - Request Form'!J220),IF('Blank - Request Form'!$F$7=\"CIASI\",IF('Blank - Request Form'!S220=0,\"\",'Blank - Request Form'!S220),\"\"))","v":""},"",186]
[{"$f":"IF('Blank - Request Form'!$F$6=\"CIASI\",IF('Blank - Request Form'!D221=0,\"\",'Blank - Request Form'!D221),IF('Blank - Request Form'!$F$7=\"CIASI\",IF('Blank - Request Form'!M221=0,\"\",'Blank - Request Form'!M221),\"\"))","v":""},{"$f":"IF('Blank - Request Form'!$F$6=\"CIASI\",IF('Blank - Request Form'!E221=0,\"\",'Blank - Request Form'!E221),IF('Blank - Request Form'!$F$7=\"CIASI\",IF('Blank - Request Form'!N221=0,\"\",'Blank - Request Form'!N221),\"\"))","v":""},{"$f":"IF('Blank - Request Form'!$F$6=\"CIASI\",IF(OR('Blank - Request Form'!F221=\"000\",'Blank - Request Form'!F221=0),\"\",'Blank - Request Form'!F221),IF('Blank - Request Form'!$F$7=\"CIASI\",IF(OR('Blank - Request Form'!O221=\"000\",'Blank - Request Form'!O221=0),\"\",'Blank - Request Form'!O221),\"\"))","v":""},{"$f":"IF('Blank - Request Form'!$F$6=\"CIASI\",IF(OR('Blank - Request Form'!G221=\"0\",'Blank - Request Form'!G221=\"00000\",'Blank - Request Form'!G221=0),\"\",'Blank - Request Form'!G221),IF('Blank - Request Form'!$F$7=\"CIASI\",IF(OR('Blank - Request Form'!P221=\"0\",'Blank - Request Form'!P221=\"00000\",'Blank - Request Form'!P221=0),\"\",'Blank - Request Form'!P221),\"\"))","v":""},{"$f":"IF('Blank - Request Form'!$F$6=\"CIASI\",IF(OR('Blank - Request Form'!H221=\"0\",'Blank - Request Form'!H221=\"00000\",'Blank - Request Form'!H221=0),\"\",'Blank - Request Form'!H221),IF('Blank - Request Form'!$F$7=\"CIASI\",IF(OR('Blank - Request Form'!Q221=\"0\",'Blank - Request Form'!Q221=\"00000\",'Blank - Request Form'!Q221=0),\"\",'Blank - Request Form'!Q221),\"\"))","v":""},{"$f":"IF('Blank - Request Form'!$F$6=\"CIASI\",IF(OR('Blank - Request Form'!I221=\"0\",'Blank - Request Form'!I221=\"00000\",'Blank - Request Form'!I221=0),\"\",'Blank - Request Form'!I221),IF('Blank - Request Form'!$F$7=\"CIASI\",IF(OR('Blank - Request Form'!R221=\"0\",'Blank - Request Form'!R221=\"00000\",'Blank - Request Form'!R221=0),\"\",'Blank - Request Form'!R221),\"\"))","v":""},null,{"$f":"IF('Blank - Request Form'!$F$6=\"CIASI\",IF('Blank - Request Form'!K221=0,\"\",'Blank - Request Form'!K221),IF('Blank - Request Form'!$F$7=\"CIASI\",IF('Blank - Request Form'!T221=0,\"\",'Blank - Request Form'!T221),\"\"))","v":""},null,null,null,{"$f":"IF(M187<>\"\",'Blank - Request Form'!$M$2,\"\")","v":""},{"$f":"IF('Blank - Request Form'!$F$6=\"CIASI\",IF('Blank - Request Form'!J221=0,\"\",'Blank - Request Form'!J221),IF('Blank - Request Form'!$F$7=\"CIASI\",IF('Blank - Request Form'!S221=0,\"\",'Blank - Request Form'!S221),\"\"))","v":""},"",187]
[{"$f":"IF('Blank - Request Form'!$F$6=\"CIASI\",IF('Blank - Request Form'!D222=0,\"\",'Blank - Request Form'!D222),IF('Blank - Request Form'!$F$7=\"CIASI\",IF('Blank - Request Form'!M222=0,\"\",'Blank - Request Form'!M222),\"\"))","v":""},{"$f":"IF('Blank - Request Form'!$F$6=\"CIASI\",IF('Blank - Request Form'!E222=0,\"\",'Blank - Request Form'!E222),IF('Blank - Request Form'!$F$7=\"CIASI\",IF('Blank - Request Form'!N222=0,\"\",'Blank - Request Form'!N222),\"\"))","v":""},{"$f":"IF('Blank - Request Form'!$F$6=\"CIASI\",IF(OR('Blank - Request Form'!F222=\"000\",'Blank - Request Form'!F222=0),\"\",'Blank - Request Form'!F222),IF('Blank - Request Form'!$F$7=\"CIASI\",IF(OR('Blank - Request Form'!O222=\"000\",'Blank - Request Form'!O222=0),\"\",'Blank - Request Form'!O222),\"\"))","v":""},{"$f":"IF('Blank - Request Form'!$F$6=\"CIASI\",IF(OR('Blank - Request Form'!G222=\"0\",'Blank - Request Form'!G222=\"00000\",'Blank - Request Form'!G222=0),\"\",'Blank - Request Form'!G222),IF('Blank - Request Form'!$F$7=\"CIASI\",IF(OR('Blank - Request Form'!P222=\"0\",'Blank - Request Form'!P222=\"00000\",'Blank - Request Form'!P222=0),\"\",'Blank - Request Form'!P222),\"\"))","v":""},{"$f":"IF('Blank - Request Form'!$F$6=\"CIASI\",IF(OR('Blank - Request Form'!H222=\"0\",'Blank - Request Form'!H222=\"00000\",'Blank - Request Form'!H222=0),\"\",'Blank - Request Form'!H222),IF('Blank - Request Form'!$F$7=\"CIASI\",IF(OR('Blank - Request Form'!Q222=\"0\",'Blank - Request Form'!Q222=\"00000\",'Blank - Request Form'!Q222=0),\"\",'Blank - Request Form'!Q222),\"\"))","v":""},{"$f":"IF('Blank - Request Form'!$F$6=\"CIASI\",IF(OR('Blank - Request Form'!I222=\"0\",'Blank - Request Form'!I222=\"00000\",'Blank - Request Form'!I222=0),\"\",'Blank - Request Form'!I222),IF('Blank - Request Form'!$F$7=\"CIASI\",IF(OR('Blank - Request Form'!R222=\"0\",'Blank - Request Form'!R222=\"00000\",'Blank - Request Form'!R222=0),\"\",'Blank - Request Form'!R222),\"\"))","v":""},null,{"$f":"IF('Blank - Request Form'!$F$6=\"CIASI\",IF('Blank - Request Form'!K222=0,\"\",'Blank - Request Form'!K222),IF('Blank - Request Form'!$F$7=\"CIASI\",IF('Blank - Request Form'!T222=0,\"\",'Blank - Request Form'!T222),\"\"))","v":""},null,null,null,{"$f":"IF(M188<>\"\",'Blank - Request Form'!$M$2,\"\")","v":""},{"$f":"IF('Blank - Request Form'!$F$6=\"CIASI\",IF('Blank - Request Form'!J222=0,\"\",'Blank - Request Form'!J222),IF('Blank - Request Form'!$F$7=\"CIASI\",IF('Blank - Request Form'!S222=0,\"\",'Blank - Request Form'!S222),\"\"))","v":""},"",188]
[{"$f":"IF('Blank - Request Form'!$F$6=\"CIASI\",IF('Blank - Request Form'!D223=0,\"\",'Blank - Request Form'!D223),IF('Blank - Request Form'!$F$7=\"CIASI\",IF('Blank - Request Form'!M223=0,\"\",'Blank - Request Form'!M223),\"\"))","v":""},{"$f":"IF('Blank - Request Form'!$F$6=\"CIASI\",IF('Blank - Request Form'!E223=0,\"\",'Blank - Request Form'!E223),IF('Blank - Request Form'!$F$7=\"CIASI\",IF('Blank - Request Form'!N223=0,\"\",'Blank - Request Form'!N223),\"\"))","v":""},{"$f":"IF('Blank - Request Form'!$F$6=\"CIASI\",IF(OR('Blank - Request Form'!F223=\"000\",'Blank - Request Form'!F223=0),\"\",'Blank - Request Form'!F223),IF('Blank - Request Form'!$F$7=\"CIASI\",IF(OR('Blank - Request Form'!O223=\"000\",'Blank - Request Form'!O223=0),\"\",'Blank - Request Form'!O223),\"\"))","v":""},{"$f":"IF('Blank - Request Form'!$F$6=\"CIASI\",IF(OR('Blank - Request Form'!G223=\"0\",'Blank - Request Form'!G223=\"00000\",'Blank - Request Form'!G223=0),\"\",'Blank - Request Form'!G223),IF('Blank - Request Form'!$F$7=\"CIASI\",IF(OR('Blank - Request Form'!P223=\"0\",'Blank - Request Form'!P223=\"00000\",'Blank - Request Form'!P223=0),\"\",'Blank - Request Form'!P223),\"\"))","v":""},{"$f":"IF('Blank - Request Form'!$F$6=\"CIASI\",IF(OR('Blank - Request Form'!H223=\"0\",'Blank - Request Form'!H223=\"00000\",'Blank - Request Form'!H223=0),\"\",'Blank - Request Form'!H223),IF('Blank - Request Form'!$F$7=\"CIASI\",IF(OR('Blank - Request Form'!Q223=\"0\",'Blank - Request Form'!Q223=\"00000\",'Blank - Request Form'!Q223=0),\"\",'Blank - Request Form'!Q223),\"\"))","v":""},{"$f":"IF('Blank - Request Form'!$F$6=\"CIASI\",IF(OR('Blank - Request Form'!I223=\"0\",'Blank - Request Form'!I223=\"00000\",'Blank - Request Form'!I223=0),\"\",'Blank - Request Form'!I223),IF('Blank - Request Form'!$F$7=\"CIASI\",IF(OR('Blank - Request Form'!R223=\"0\",'Blank - Request Form'!R223=\"00000\",'Blank - Request Form'!R223=0),\"\",'Blank - Request Form'!R223),\"\"))","v":""},null,{"$f":"IF('Blank - Request Form'!$F$6=\"CIASI\",IF('Blank - Request Form'!K223=0,\"\",'Blank - Request Form'!K223),IF('Blank - Request Form'!$F$7=\"CIASI\",IF('Blank - Request Form'!T223=0,\"\",'Blank - Request Form'!T223),\"\"))","v":""},null,null,null,{"$f":"IF(M189<>\"\",'Blank - Request Form'!$M$2,\"\")","v":""},{"$f":"IF('Blank - Request Form'!$F$6=\"CIASI\",IF('Blank - Request Form'!J223=0,\"\",'Blank - Request Form'!J223),IF('Blank - Request Form'!$F$7=\"CIASI\",IF('Blank - Request Form'!S223=0,\"\",'Blank - Request Form'!S223),\"\"))","v":""},"",189]
[{"$f":"IF('Blank - Request Form'!$F$6=\"CIASI\",IF('Blank - Request Form'!D224=0,\"\",'Blank - Request Form'!D224),IF('Blank - Request Form'!$F$7=\"CIASI\",IF('Blank - Request Form'!M224=0,\"\",'Blank - Request Form'!M224),\"\"))","v":""},{"$f":"IF('Blank - Request Form'!$F$6=\"CIASI\",IF('Blank - Request Form'!E224=0,\"\",'Blank - Request Form'!E224),IF('Blank - Request Form'!$F$7=\"CIASI\",IF('Blank - Request Form'!N224=0,\"\",'Blank - Request Form'!N224),\"\"))","v":""},{"$f":"IF('Blank - Request Form'!$F$6=\"CIASI\",IF(OR('Blank - Request Form'!F224=\"000\",'Blank - Request Form'!F224=0),\"\",'Blank - Request Form'!F224),IF('Blank - Request Form'!$F$7=\"CIASI\",IF(OR('Blank - Request Form'!O224=\"000\",'Blank - Request Form'!O224=0),\"\",'Blank - Request Form'!O224),\"\"))","v":""},{"$f":"IF('Blank - Request Form'!$F$6=\"CIASI\",IF(OR('Blank - Request Form'!G224=\"0\",'Blank - Request Form'!G224=\"00000\",'Blank - Request Form'!G224=0),\"\",'Blank - Request Form'!G224),IF('Blank - Request Form'!$F$7=\"CIASI\",IF(OR('Blank - Request Form'!P224=\"0\",'Blank - Request Form'!P224=\"00000\",'Blank - Request Form'!P224=0),\"\",'Blank - Request Form'!P224),\"\"))","v":""},{"$f":"IF('Blank - Request Form'!$F$6=\"CIASI\",IF(OR('Blank - Request Form'!H224=\"0\",'Blank - Request Form'!H224=\"00000\",'Blank - Request Form'!H224=0),\"\",'Blank - Request Form'!H224),IF('Blank - Request Form'!$F$7=\"CIASI\",IF(OR('Blank - Request Form'!Q224=\"0\",'Blank - Request Form'!Q224=\"00000\",'Blank - Request Form'!Q224=0),\"\",'Blank - Request Form'!Q224),\"\"))","v":""},{"$f":"IF('Blank - Request Form'!$F$6=\"CIASI\",IF(OR('Blank - Request Form'!I224=\"0\",'Blank - Request Form'!I224=\"00000\",'Blank - Request Form'!I224=0),\"\",'Blank - Request Form'!I224),IF('Blank - Request Form'!$F$7=\"CIASI\",IF(OR('Blank - Request Form'!R224=\"0\",'Blank - Request Form'!R224=\"00000\",'Blank - Request Form'!R224=0),\"\",'Blank - Request Form'!R224),\"\"))","v":""},null,{"$f":"IF('Blank - Request Form'!$F$6=\"CIASI\",IF('Blank - Request Form'!K224=0,\"\",'Blank - Request Form'!K224),IF('Blank - Request Form'!$F$7=\"CIASI\",IF('Blank - Request Form'!T224=0,\"\",'Blank - Request Form'!T224),\"\"))","v":""},null,null,null,{"$f":"IF(M190<>\"\",'Blank - Request Form'!$M$2,\"\")","v":""},{"$f":"IF('Blank - Request Form'!$F$6=\"CIASI\",IF('Blank - Request Form'!J224=0,\"\",'Blank - Request Form'!J224),IF('Blank - Request Form'!$F$7=\"CIASI\",IF('Blank - Request Form'!S224=0,\"\",'Blank - Request Form'!S224),\"\"))","v":""},"",190]
[{"$f":"IF('Blank - Request Form'!$F$6=\"CIASI\",IF('Blank - Request Form'!D225=0,\"\",'Blank - Request Form'!D225),IF('Blank - Request Form'!$F$7=\"CIASI\",IF('Blank - Request Form'!M225=0,\"\",'Blank - Request Form'!M225),\"\"))","v":""},{"$f":"IF('Blank - Request Form'!$F$6=\"CIASI\",IF('Blank - Request Form'!E225=0,\"\",'Blank - Request Form'!E225),IF('Blank - Request Form'!$F$7=\"CIASI\",IF('Blank - Request Form'!N225=0,\"\",'Blank - Request Form'!N225),\"\"))","v":""},{"$f":"IF('Blank - Request Form'!$F$6=\"CIASI\",IF(OR('Blank - Request Form'!F225=\"000\",'Blank - Request Form'!F225=0),\"\",'Blank - Request Form'!F225),IF('Blank - Request Form'!$F$7=\"CIASI\",IF(OR('Blank - Request Form'!O225=\"000\",'Blank - Request Form'!O225=0),\"\",'Blank - Request Form'!O225),\"\"))","v":""},{"$f":"IF('Blank - Request Form'!$F$6=\"CIASI\",IF(OR('Blank - Request Form'!G225=\"0\",'Blank - Request Form'!G225=\"00000\",'Blank - Request Form'!G225=0),\"\",'Blank - Request Form'!G225),IF('Blank - Request Form'!$F$7=\"CIASI\",IF(OR('Blank - Request Form'!P225=\"0\",'Blank - Request Form'!P225=\"00000\",'Blank - Request Form'!P225=0),\"\",'Blank - Request Form'!P225),\"\"))","v":""},{"$f":"IF('Blank - Request Form'!$F$6=\"CIASI\",IF(OR('Blank - Request Form'!H225=\"0\",'Blank - Request Form'!H225=\"00000\",'Blank - Request Form'!H225=0),\"\",'Blank - Request Form'!H225),IF('Blank - Request Form'!$F$7=\"CIASI\",IF(OR('Blank - Request Form'!Q225=\"0\",'Blank - Request Form'!Q225=\"00000\",'Blank - Request Form'!Q225=0),\"\",'Blank - Request Form'!Q225),\"\"))","v":""},{"$f":"IF('Blank - Request Form'!$F$6=\"CIASI\",IF(OR('Blank - Request Form'!I225=\"0\",'Blank - Request Form'!I225=\"00000\",'Blank - Request Form'!I225=0),\"\",'Blank - Request Form'!I225),IF('Blank - Request Form'!$F$7=\"CIASI\",IF(OR('Blank - Request Form'!R225=\"0\",'Blank - Request Form'!R225=\"00000\",'Blank - Request Form'!R225=0),\"\",'Blank - Request Form'!R225),\"\"))","v":""},null,{"$f":"IF('Blank - Request Form'!$F$6=\"CIASI\",IF('Blank - Request Form'!K225=0,\"\",'Blank - Request Form'!K225),IF('Blank - Request Form'!$F$7=\"CIASI\",IF('Blank - Request Form'!T225=0,\"\",'Blank - Request Form'!T225),\"\"))","v":""},null,null,null,{"$f":"IF(M191<>\"\",'Blank - Request Form'!$M$2,\"\")","v":""},{"$f":"IF('Blank - Request Form'!$F$6=\"CIASI\",IF('Blank - Request Form'!J225=0,\"\",'Blank - Request Form'!J225),IF('Blank - Request Form'!$F$7=\"CIASI\",IF('Blank - Request Form'!S225=0,\"\",'Blank - Request Form'!S225),\"\"))","v":""},"",191]
[{"$f":"IF('Blank - Request Form'!$F$6=\"CIASI\",IF('Blank - Request Form'!D226=0,\"\",'Blank - Request Form'!D226),IF('Blank - Request Form'!$F$7=\"CIASI\",IF('Blank - Request Form'!M226=0,\"\",'Blank - Request Form'!M226),\"\"))","v":""},{"$f":"IF('Blank - Request Form'!$F$6=\"CIASI\",IF('Blank - Request Form'!E226=0,\"\",'Blank - Request Form'!E226),IF('Blank - Request Form'!$F$7=\"CIASI\",IF('Blank - Request Form'!N226=0,\"\",'Blank - Request Form'!N226),\"\"))","v":""},{"$f":"IF('Blank - Request Form'!$F$6=\"CIASI\",IF(OR('Blank - Request Form'!F226=\"000\",'Blank - Request Form'!F226=0),\"\",'Blank - Request Form'!F226),IF('Blank - Request Form'!$F$7=\"CIASI\",IF(OR('Blank - Request Form'!O226=\"000\",'Blank - Request Form'!O226=0),\"\",'Blank - Request Form'!O226),\"\"))","v":""},{"$f":"IF('Blank - Request Form'!$F$6=\"CIASI\",IF(OR('Blank - Request Form'!G226=\"0\",'Blank - Request Form'!G226=\"00000\",'Blank - Request Form'!G226=0),\"\",'Blank - Request Form'!G226),IF('Blank - Request Form'!$F$7=\"CIASI\",IF(OR('Blank - Request Form'!P226=\"0\",'Blank - Request Form'!P226=\"00000\",'Blank - Request Form'!P226=0),\"\",'Blank - Request Form'!P226),\"\"))","v":""},{"$f":"IF('Blank - Request Form'!$F$6=\"CIASI\",IF(OR('Blank - Request Form'!H226=\"0\",'Blank - Request Form'!H226=\"00000\",'Blank - Request Form'!H226=0),\"\",'Blank - Request Form'!H226),IF('Blank - Request Form'!$F$7=\"CIASI\",IF(OR('Blank - Request Form'!Q226=\"0\",'Blank - Request Form'!Q226=\"00000\",'Blank - Request Form'!Q226=0),\"\",'Blank - Request Form'!Q226),\"\"))","v":""},{"$f":"IF('Blank - Request Form'!$F$6=\"CIASI\",IF(OR('Blank - Request Form'!I226=\"0\",'Blank - Request Form'!I226=\"00000\",'Blank - Request Form'!I226=0),\"\",'Blank - Request Form'!I226),IF('Blank - Request Form'!$F$7=\"CIASI\",IF(OR('Blank - Request Form'!R226=\"0\",'Blank - Request Form'!R226=\"00000\",'Blank - Request Form'!R226=0),\"\",'Blank - Request Form'!R226),\"\"))","v":""},null,{"$f":"IF('Blank - Request Form'!$F$6=\"CIASI\",IF('Blank - Request Form'!K226=0,\"\",'Blank - Request Form'!K226),IF('Blank - Request Form'!$F$7=\"CIASI\",IF('Blank - Request Form'!T226=0,\"\",'Blank - Request Form'!T226),\"\"))","v":""},null,null,null,{"$f":"IF(M192<>\"\",'Blank - Request Form'!$M$2,\"\")","v":""},{"$f":"IF('Blank - Request Form'!$F$6=\"CIASI\",IF('Blank - Request Form'!J226=0,\"\",'Blank - Request Form'!J226),IF('Blank - Request Form'!$F$7=\"CIASI\",IF('Blank - Request Form'!S226=0,\"\",'Blank - Request Form'!S226),\"\"))","v":""},"",192]
[{"$f":"IF('Blank - Request Form'!$F$6=\"CIASI\",IF('Blank - Request Form'!D227=0,\"\",'Blank - Request Form'!D227),IF('Blank - Request Form'!$F$7=\"CIASI\",IF('Blank - Request Form'!M227=0,\"\",'Blank - Request Form'!M227),\"\"))","v":""},{"$f":"IF('Blank - Request Form'!$F$6=\"CIASI\",IF('Blank - Request Form'!E227=0,\"\",'Blank - Request Form'!E227),IF('Blank - Request Form'!$F$7=\"CIASI\",IF('Blank - Request Form'!N227=0,\"\",'Blank - Request Form'!N227),\"\"))","v":""},{"$f":"IF('Blank - Request Form'!$F$6=\"CIASI\",IF(OR('Blank - Request Form'!F227=\"000\",'Blank - Request Form'!F227=0),\"\",'Blank - Request Form'!F227),IF('Blank - Request Form'!$F$7=\"CIASI\",IF(OR('Blank - Request Form'!O227=\"000\",'Blank - Request Form'!O227=0),\"\",'Blank - Request Form'!O227),\"\"))","v":""},{"$f":"IF('Blank - Request Form'!$F$6=\"CIASI\",IF(OR('Blank - Request Form'!G227=\"0\",'Blank - Request Form'!G227=\"00000\",'Blank - Request Form'!G227=0),\"\",'Blank - Request Form'!G227),IF('Blank - Request Form'!$F$7=\"CIASI\",IF(OR('Blank - Request Form'!P227=\"0\",'Blank - Request Form'!P227=\"00000\",'Blank - Request Form'!P227=0),\"\",'Blank - Request Form'!P227),\"\"))","v":""},{"$f":"IF('Blank - Request Form'!$F$6=\"CIASI\",IF(OR('Blank - Request Form'!H227=\"0\",'Blank - Request Form'!H227=\"00000\",'Blank - Request Form'!H227=0),\"\",'Blank - Request Form'!H227),IF('Blank - Request Form'!$F$7=\"CIASI\",IF(OR('Blank - Request Form'!Q227=\"0\",'Blank - Request Form'!Q227=\"00000\",'Blank - Request Form'!Q227=0),\"\",'Blank - Request Form'!Q227),\"\"))","v":""},{"$f":"IF('Blank - Request Form'!$F$6=\"CIASI\",IF(OR('Blank - Request Form'!I227=\"0\",'Blank - Request Form'!I227=\"00000\",'Blank - Request Form'!I227=0),\"\",'Blank - Request Form'!I227),IF('Blank - Request Form'!$F$7=\"CIASI\",IF(OR('Blank - Request Form'!R227=\"0\",'Blank - Request Form'!R227=\"00000\",'Blank - Request Form'!R227=0),\"\",'Blank - Request Form'!R227),\"\"))","v":""},null,{"$f":"IF('Blank - Request Form'!$F$6=\"CIASI\",IF('Blank - Request Form'!K227=0,\"\",'Blank - Request Form'!K227),IF('Blank - Request Form'!$F$7=\"CIASI\",IF('Blank - Request Form'!T227=0,\"\",'Blank - Request Form'!T227),\"\"))","v":""},null,null,null,{"$f":"IF(M193<>\"\",'Blank - Request Form'!$M$2,\"\")","v":""},{"$f":"IF('Blank - Request Form'!$F$6=\"CIASI\",IF('Blank - Request Form'!J227=0,\"\",'Blank - Request Form'!J227),IF('Blank - Request Form'!$F$7=\"CIASI\",IF('Blank - Request Form'!S227=0,\"\",'Blank - Request Form'!S227),\"\"))","v":""},"",193]
[{"$f":"IF('Blank - Request Form'!$F$6=\"CIASI\",IF('Blank - Request Form'!D228=0,\"\",'Blank - Request Form'!D228),IF('Blank - Request Form'!$F$7=\"CIASI\",IF('Blank - Request Form'!M228=0,\"\",'Blank - Request Form'!M228),\"\"))","v":""},{"$f":"IF('Blank - Request Form'!$F$6=\"CIASI\",IF('Blank - Request Form'!E228=0,\"\",'Blank - Request Form'!E228),IF('Blank - Request Form'!$F$7=\"CIASI\",IF('Blank - Request Form'!N228=0,\"\",'Blank - Request Form'!N228),\"\"))","v":""},{"$f":"IF('Blank - Request Form'!$F$6=\"CIASI\",IF(OR('Blank - Request Form'!F228=\"000\",'Blank - Request Form'!F228=0),\"\",'Blank - Request Form'!F228),IF('Blank - Request Form'!$F$7=\"CIASI\",IF(OR('Blank - Request Form'!O228=\"000\",'Blank - Request Form'!O228=0),\"\",'Blank - Request Form'!O228),\"\"))","v":""},{"$f":"IF('Blank - Request Form'!$F$6=\"CIASI\",IF(OR('Blank - Request Form'!G228=\"0\",'Blank - Request Form'!G228=\"00000\",'Blank - Request Form'!G228=0),\"\",'Blank - Request Form'!G228),IF('Blank - Request Form'!$F$7=\"CIASI\",IF(OR('Blank - Request Form'!P228=\"0\",'Blank - Request Form'!P228=\"00000\",'Blank - Request Form'!P228=0),\"\",'Blank - Request Form'!P228),\"\"))","v":""},{"$f":"IF('Blank - Request Form'!$F$6=\"CIASI\",IF(OR('Blank - Request Form'!H228=\"0\",'Blank - Request Form'!H228=\"00000\",'Blank - Request Form'!H228=0),\"\",'Blank - Request Form'!H228),IF('Blank - Request Form'!$F$7=\"CIASI\",IF(OR('Blank - Request Form'!Q228=\"0\",'Blank - Request Form'!Q228=\"00000\",'Blank - Request Form'!Q228=0),\"\",'Blank - Request Form'!Q228),\"\"))","v":""},{"$f":"IF('Blank - Request Form'!$F$6=\"CIASI\",IF(OR('Blank - Request Form'!I228=\"0\",'Blank - Request Form'!I228=\"00000\",'Blank - Request Form'!I228=0),\"\",'Blank - Request Form'!I228),IF('Blank - Request Form'!$F$7=\"CIASI\",IF(OR('Blank - Request Form'!R228=\"0\",'Blank - Request Form'!R228=\"00000\",'Blank - Request Form'!R228=0),\"\",'Blank - Request Form'!R228),\"\"))","v":""},null,{"$f":"IF('Blank - Request Form'!$F$6=\"CIASI\",IF('Blank - Request Form'!K228=0,\"\",'Blank - Request Form'!K228),IF('Blank - Request Form'!$F$7=\"CIASI\",IF('Blank - Request Form'!T228=0,\"\",'Blank - Request Form'!T228),\"\"))","v":""},null,null,null,{"$f":"IF(M194<>\"\",'Blank - Request Form'!$M$2,\"\")","v":""},{"$f":"IF('Blank - Request Form'!$F$6=\"CIASI\",IF('Blank - Request Form'!J228=0,\"\",'Blank - Request Form'!J228),IF('Blank - Request Form'!$F$7=\"CIASI\",IF('Blank - Request Form'!S228=0,\"\",'Blank - Request Form'!S228),\"\"))","v":""},"",194]
[{"$f":"IF('Blank - Request Form'!$F$6=\"CIASI\",IF('Blank - Request Form'!D229=0,\"\",'Blank - Request Form'!D229),IF('Blank - Request Form'!$F$7=\"CIASI\",IF('Blank - Request Form'!M229=0,\"\",'Blank - Request Form'!M229),\"\"))","v":""},{"$f":"IF('Blank - Request Form'!$F$6=\"CIASI\",IF('Blank - Request Form'!E229=0,\"\",'Blank - Request Form'!E229),IF('Blank - Request Form'!$F$7=\"CIASI\",IF('Blank - Request Form'!N229=0,\"\",'Blank - Request Form'!N229),\"\"))","v":""},{"$f":"IF('Blank - Request Form'!$F$6=\"CIASI\",IF(OR('Blank - Request Form'!F229=\"000\",'Blank - Request Form'!F229=0),\"\",'Blank - Request Form'!F229),IF('Blank - Request Form'!$F$7=\"CIASI\",IF(OR('Blank - Request Form'!O229=\"000\",'Blank - Request Form'!O229=0),\"\",'Blank - Request Form'!O229),\"\"))","v":""},{"$f":"IF('Blank - Request Form'!$F$6=\"CIASI\",IF(OR('Blank - Request Form'!G229=\"0\",'Blank - Request Form'!G229=\"00000\",'Blank - Request Form'!G229=0),\"\",'Blank - Request Form'!G229),IF('Blank - Request Form'!$F$7=\"CIASI\",IF(OR('Blank - Request Form'!P229=\"0\",'Blank - Request Form'!P229=\"00000\",'Blank - Request Form'!P229=0),\"\",'Blank - Request Form'!P229),\"\"))","v":""},{"$f":"IF('Blank - Request Form'!$F$6=\"CIASI\",IF(OR('Blank - Request Form'!H229=\"0\",'Blank - Request Form'!H229=\"00000\",'Blank - Request Form'!H229=0),\"\",'Blank - Request Form'!H229),IF('Blank - Request Form'!$F$7=\"CIASI\",IF(OR('Blank - Request Form'!Q229=\"0\",'Blank - Request Form'!Q229=\"00000\",'Blank - Request Form'!Q229=0),\"\",'Blank - Request Form'!Q229),\"\"))","v":""},{"$f":"IF('Blank - Request Form'!$F$6=\"CIASI\",IF(OR('Blank - Request Form'!I229=\"0\",'Blank - Request Form'!I229=\"00000\",'Blank - Request Form'!I229=0),\"\",'Blank - Request Form'!I229),IF('Blank - Request Form'!$F$7=\"CIASI\",IF(OR('Blank - Request Form'!R229=\"0\",'Blank - Request Form'!R229=\"00000\",'Blank - Request Form'!R229=0),\"\",'Blank - Request Form'!R229),\"\"))","v":""},null,{"$f":"IF('Blank - Request Form'!$F$6=\"CIASI\",IF('Blank - Request Form'!K229=0,\"\",'Blank - Request Form'!K229),IF('Blank - Request Form'!$F$7=\"CIASI\",IF('Blank - Request Form'!T229=0,\"\",'Blank - Request Form'!T229),\"\"))","v":""},null,null,null,{"$f":"IF(M195<>\"\",'Blank - Request Form'!$M$2,\"\")","v":""},{"$f":"IF('Blank - Request Form'!$F$6=\"CIASI\",IF('Blank - Request Form'!J229=0,\"\",'Blank - Request Form'!J229),IF('Blank - Request Form'!$F$7=\"CIASI\",IF('Blank - Request Form'!S229=0,\"\",'Blank - Request Form'!S229),\"\"))","v":""},"",195]
[{"$f":"IF('Blank - Request Form'!$F$6=\"CIASI\",IF('Blank - Request Form'!D230=0,\"\",'Blank - Request Form'!D230),IF('Blank - Request Form'!$F$7=\"CIASI\",IF('Blank - Request Form'!M230=0,\"\",'Blank - Request Form'!M230),\"\"))","v":""},{"$f":"IF('Blank - Request Form'!$F$6=\"CIASI\",IF('Blank - Request Form'!E230=0,\"\",'Blank - Request Form'!E230),IF('Blank - Request Form'!$F$7=\"CIASI\",IF('Blank - Request Form'!N230=0,\"\",'Blank - Request Form'!N230),\"\"))","v":""},{"$f":"IF('Blank - Request Form'!$F$6=\"CIASI\",IF(OR('Blank - Request Form'!F230=\"000\",'Blank - Request Form'!F230=0),\"\",'Blank - Request Form'!F230),IF('Blank - Request Form'!$F$7=\"CIASI\",IF(OR('Blank - Request Form'!O230=\"000\",'Blank - Request Form'!O230=0),\"\",'Blank - Request Form'!O230),\"\"))","v":""},{"$f":"IF('Blank - Request Form'!$F$6=\"CIASI\",IF(OR('Blank - Request Form'!G230=\"0\",'Blank - Request Form'!G230=\"00000\",'Blank - Request Form'!G230=0),\"\",'Blank - Request Form'!G230),IF('Blank - Request Form'!$F$7=\"CIASI\",IF(OR('Blank - Request Form'!P230=\"0\",'Blank - Request Form'!P230=\"00000\",'Blank - Request Form'!P230=0),\"\",'Blank - Request Form'!P230),\"\"))","v":""},{"$f":"IF('Blank - Request Form'!$F$6=\"CIASI\",IF(OR('Blank - Request Form'!H230=\"0\",'Blank - Request Form'!H230=\"00000\",'Blank - Request Form'!H230=0),\"\",'Blank - Request Form'!H230),IF('Blank - Request Form'!$F$7=\"CIASI\",IF(OR('Blank - Request Form'!Q230=\"0\",'Blank - Request Form'!Q230=\"00000\",'Blank - Request Form'!Q230=0),\"\",'Blank - Request Form'!Q230),\"\"))","v":""},{"$f":"IF('Blank - Request Form'!$F$6=\"CIASI\",IF(OR('Blank - Request Form'!I230=\"0\",'Blank - Request Form'!I230=\"00000\",'Blank - Request Form'!I230=0),\"\",'Blank - Request Form'!I230),IF('Blank - Request Form'!$F$7=\"CIASI\",IF(OR('Blank - Request Form'!R230=\"0\",'Blank - Request Form'!R230=\"00000\",'Blank - Request Form'!R230=0),\"\",'Blank - Request Form'!R230),\"\"))","v":""},null,{"$f":"IF('Blank - Request Form'!$F$6=\"CIASI\",IF('Blank - Request Form'!K230=0,\"\",'Blank - Request Form'!K230),IF('Blank - Request Form'!$F$7=\"CIASI\",IF('Blank - Request Form'!T230=0,\"\",'Blank - Request Form'!T230),\"\"))","v":""},null,null,null,{"$f":"IF(M196<>\"\",'Blank - Request Form'!$M$2,\"\")","v":""},{"$f":"IF('Blank - Request Form'!$F$6=\"CIASI\",IF('Blank - Request Form'!J230=0,\"\",'Blank - Request Form'!J230),IF('Blank - Request Form'!$F$7=\"CIASI\",IF('Blank - Request Form'!S230=0,\"\",'Blank - Request Form'!S230),\"\"))","v":""},"",196]
[{"$f":"IF('Blank - Request Form'!$F$6=\"CIASI\",IF('Blank - Request Form'!D231=0,\"\",'Blank - Request Form'!D231),IF('Blank - Request Form'!$F$7=\"CIASI\",IF('Blank - Request Form'!M231=0,\"\",'Blank - Request Form'!M231),\"\"))","v":""},{"$f":"IF('Blank - Request Form'!$F$6=\"CIASI\",IF('Blank - Request Form'!E231=0,\"\",'Blank - Request Form'!E231),IF('Blank - Request Form'!$F$7=\"CIASI\",IF('Blank - Request Form'!N231=0,\"\",'Blank - Request Form'!N231),\"\"))","v":""},{"$f":"IF('Blank - Request Form'!$F$6=\"CIASI\",IF(OR('Blank - Request Form'!F231=\"000\",'Blank - Request Form'!F231=0),\"\",'Blank - Request Form'!F231),IF('Blank - Request Form'!$F$7=\"CIASI\",IF(OR('Blank - Request Form'!O231=\"000\",'Blank - Request Form'!O231=0),\"\",'Blank - Request Form'!O231),\"\"))","v":""},{"$f":"IF('Blank - Request Form'!$F$6=\"CIASI\",IF(OR('Blank - Request Form'!G231=\"0\",'Blank - Request Form'!G231=\"00000\",'Blank - Request Form'!G231=0),\"\",'Blank - Request Form'!G231),IF('Blank - Request Form'!$F$7=\"CIASI\",IF(OR('Blank - Request Form'!P231=\"0\",'Blank - Request Form'!P231=\"00000\",'Blank - Request Form'!P231=0),\"\",'Blank - Request Form'!P231),\"\"))","v":""},{"$f":"IF('Blank - Request Form'!$F$6=\"CIASI\",IF(OR('Blank - Request Form'!H231=\"0\",'Blank - Request Form'!H231=\"00000\",'Blank - Request Form'!H231=0),\"\",'Blank - Request Form'!H231),IF('Blank - Request Form'!$F$7=\"CIASI\",IF(OR('Blank - Request Form'!Q231=\"0\",'Blank - Request Form'!Q231=\"00000\",'Blank - Request Form'!Q231=0),\"\",'Blank - Request Form'!Q231),\"\"))","v":""},{"$f":"IF('Blank - Request Form'!$F$6=\"CIASI\",IF(OR('Blank - Request Form'!I231=\"0\",'Blank - Request Form'!I231=\"00000\",'Blank - Request Form'!I231=0),\"\",'Blank - Request Form'!I231),IF('Blank - Request Form'!$F$7=\"CIASI\",IF(OR('Blank - Request Form'!R231=\"0\",'Blank - Request Form'!R231=\"00000\",'Blank - Request Form'!R231=0),\"\",'Blank - Request Form'!R231),\"\"))","v":""},null,{"$f":"IF('Blank - Request Form'!$F$6=\"CIASI\",IF('Blank - Request Form'!K231=0,\"\",'Blank - Request Form'!K231),IF('Blank - Request Form'!$F$7=\"CIASI\",IF('Blank - Request Form'!T231=0,\"\",'Blank - Request Form'!T231),\"\"))","v":""},null,null,null,{"$f":"IF(M197<>\"\",'Blank - Request Form'!$M$2,\"\")","v":""},{"$f":"IF('Blank - Request Form'!$F$6=\"CIASI\",IF('Blank - Request Form'!J231=0,\"\",'Blank - Request Form'!J231),IF('Blank - Request Form'!$F$7=\"CIASI\",IF('Blank - Request Form'!S231=0,\"\",'Blank - Request Form'!S231),\"\"))","v":""},"",197]
[{"$f":"IF('Blank - Request Form'!$F$6=\"CIASI\",IF('Blank - Request Form'!D232=0,\"\",'Blank - Request Form'!D232),IF('Blank - Request Form'!$F$7=\"CIASI\",IF('Blank - Request Form'!M232=0,\"\",'Blank - Request Form'!M232),\"\"))","v":""},{"$f":"IF('Blank - Request Form'!$F$6=\"CIASI\",IF('Blank - Request Form'!E232=0,\"\",'Blank - Request Form'!E232),IF('Blank - Request Form'!$F$7=\"CIASI\",IF('Blank - Request Form'!N232=0,\"\",'Blank - Request Form'!N232),\"\"))","v":""},{"$f":"IF('Blank - Request Form'!$F$6=\"CIASI\",IF(OR('Blank - Request Form'!F232=\"000\",'Blank - Request Form'!F232=0),\"\",'Blank - Request Form'!F232),IF('Blank - Request Form'!$F$7=\"CIASI\",IF(OR('Blank - Request Form'!O232=\"000\",'Blank - Request Form'!O232=0),\"\",'Blank - Request Form'!O232),\"\"))","v":""},{"$f":"IF('Blank - Request Form'!$F$6=\"CIASI\",IF(OR('Blank - Request Form'!G232=\"0\",'Blank - Request Form'!G232=\"00000\",'Blank - Request Form'!G232=0),\"\",'Blank - Request Form'!G232),IF('Blank - Request Form'!$F$7=\"CIASI\",IF(OR('Blank - Request Form'!P232=\"0\",'Blank - Request Form'!P232=\"00000\",'Blank - Request Form'!P232=0),\"\",'Blank - Request Form'!P232),\"\"))","v":""},{"$f":"IF('Blank - Request Form'!$F$6=\"CIASI\",IF(OR('Blank - Request Form'!H232=\"0\",'Blank - Request Form'!H232=\"00000\",'Blank - Request Form'!H232=0),\"\",'Blank - Request Form'!H232),IF('Blank - Request Form'!$F$7=\"CIASI\",IF(OR('Blank - Request Form'!Q232=\"0\",'Blank - Request Form'!Q232=\"00000\",'Blank - Request Form'!Q232=0),\"\",'Blank - Request Form'!Q232),\"\"))","v":""},{"$f":"IF('Blank - Request Form'!$F$6=\"CIASI\",IF(OR('Blank - Request Form'!I232=\"0\",'Blank - Request Form'!I232=\"00000\",'Blank - Request Form'!I232=0),\"\",'Blank - Request Form'!I232),IF('Blank - Request Form'!$F$7=\"CIASI\",IF(OR('Blank - Request Form'!R232=\"0\",'Blank - Request Form'!R232=\"00000\",'Blank - Request Form'!R232=0),\"\",'Blank - Request Form'!R232),\"\"))","v":""},null,{"$f":"IF('Blank - Request Form'!$F$6=\"CIASI\",IF('Blank - Request Form'!K232=0,\"\",'Blank - Request Form'!K232),IF('Blank - Request Form'!$F$7=\"CIASI\",IF('Blank - Request Form'!T232=0,\"\",'Blank - Request Form'!T232),\"\"))","v":""},null,null,null,{"$f":"IF(M198<>\"\",'Blank - Request Form'!$M$2,\"\")","v":""},{"$f":"IF('Blank - Request Form'!$F$6=\"CIASI\",IF('Blank - Request Form'!J232=0,\"\",'Blank - Request Form'!J232),IF('Blank - Request Form'!$F$7=\"CIASI\",IF('Blank - Request Form'!S232=0,\"\",'Blank - Request Form'!S232),\"\"))","v":""},"",198]
[{"$f":"IF('Blank - Request Form'!$F$6=\"CIASI\",IF('Blank - Request Form'!D233=0,\"\",'Blank - Request Form'!D233),IF('Blank - Request Form'!$F$7=\"CIASI\",IF('Blank - Request Form'!M233=0,\"\",'Blank - Request Form'!M233),\"\"))","v":""},{"$f":"IF('Blank - Request Form'!$F$6=\"CIASI\",IF('Blank - Request Form'!E233=0,\"\",'Blank - Request Form'!E233),IF('Blank - Request Form'!$F$7=\"CIASI\",IF('Blank - Request Form'!N233=0,\"\",'Blank - Request Form'!N233),\"\"))","v":""},{"$f":"IF('Blank - Request Form'!$F$6=\"CIASI\",IF(OR('Blank - Request Form'!F233=\"000\",'Blank - Request Form'!F233=0),\"\",'Blank - Request Form'!F233),IF('Blank - Request Form'!$F$7=\"CIASI\",IF(OR('Blank - Request Form'!O233=\"000\",'Blank - Request Form'!O233=0),\"\",'Blank - Request Form'!O233),\"\"))","v":""},{"$f":"IF('Blank - Request Form'!$F$6=\"CIASI\",IF(OR('Blank - Request Form'!G233=\"0\",'Blank - Request Form'!G233=\"00000\",'Blank - Request Form'!G233=0),\"\",'Blank - Request Form'!G233),IF('Blank - Request Form'!$F$7=\"CIASI\",IF(OR('Blank - Request Form'!P233=\"0\",'Blank - Request Form'!P233=\"00000\",'Blank - Request Form'!P233=0),\"\",'Blank - Request Form'!P233),\"\"))","v":""},{"$f":"IF('Blank - Request Form'!$F$6=\"CIASI\",IF(OR('Blank - Request Form'!H233=\"0\",'Blank - Request Form'!H233=\"00000\",'Blank - Request Form'!H233=0),\"\",'Blank - Request Form'!H233),IF('Blank - Request Form'!$F$7=\"CIASI\",IF(OR('Blank - Request Form'!Q233=\"0\",'Blank - Request Form'!Q233=\"00000\",'Blank - Request Form'!Q233=0),\"\",'Blank - Request Form'!Q233),\"\"))","v":""},{"$f":"IF('Blank - Request Form'!$F$6=\"CIASI\",IF(OR('Blank - Request Form'!I233=\"0\",'Blank - Request Form'!I233=\"00000\",'Blank - Request Form'!I233=0),\"\",'Blank - Request Form'!I233),IF('Blank - Request Form'!$F$7=\"CIASI\",IF(OR('Blank - Request Form'!R233=\"0\",'Blank - Request Form'!R233=\"00000\",'Blank - Request Form'!R233=0),\"\",'Blank - Request Form'!R233),\"\"))","v":""},null,{"$f":"IF('Blank - Request Form'!$F$6=\"CIASI\",IF('Blank - Request Form'!K233=0,\"\",'Blank - Request Form'!K233),IF('Blank - Request Form'!$F$7=\"CIASI\",IF('Blank - Request Form'!T233=0,\"\",'Blank - Request Form'!T233),\"\"))","v":""},null,null,null,{"$f":"IF(M199<>\"\",'Blank - Request Form'!$M$2,\"\")","v":""},{"$f":"IF('Blank - Request Form'!$F$6=\"CIASI\",IF('Blank - Request Form'!J233=0,\"\",'Blank - Request Form'!J233),IF('Blank - Request Form'!$F$7=\"CIASI\",IF('Blank - Request Form'!S233=0,\"\",'Blank - Request Form'!S233),\"\"))","v":""},"",199]
[{"$f":"IF('Blank - Request Form'!$F$6=\"CIASI\",IF('Blank - Request Form'!D234=0,\"\",'Blank - Request Form'!D234),IF('Blank - Request Form'!$F$7=\"CIASI\",IF('Blank - Request Form'!M234=0,\"\",'Blank - Request Form'!M234),\"\"))","v":""},{"$f":"IF('Blank - Request Form'!$F$6=\"CIASI\",IF('Blank - Request Form'!E234=0,\"\",'Blank - Request Form'!E234),IF('Blank - Request Form'!$F$7=\"CIASI\",IF('Blank - Request Form'!N234=0,\"\",'Blank - Request Form'!N234),\"\"))","v":""},{"$f":"IF('Blank - Request Form'!$F$6=\"CIASI\",IF(OR('Blank - Request Form'!F234=\"000\",'Blank - Request Form'!F234=0),\"\",'Blank - Request Form'!F234),IF('Blank - Request Form'!$F$7=\"CIASI\",IF(OR('Blank - Request Form'!O234=\"000\",'Blank - Request Form'!O234=0),\"\",'Blank - Request Form'!O234),\"\"))","v":""},{"$f":"IF('Blank - Request Form'!$F$6=\"CIASI\",IF(OR('Blank - Request Form'!G234=\"0\",'Blank - Request Form'!G234=\"00000\",'Blank - Request Form'!G234=0),\"\",'Blank - Request Form'!G234),IF('Blank - Request Form'!$F$7=\"CIASI\",IF(OR('Blank - Request Form'!P234=\"0\",'Blank - Request Form'!P234=\"00000\",'Blank - Request Form'!P234=0),\"\",'Blank - Request Form'!P234),\"\"))","v":""},{"$f":"IF('Blank - Request Form'!$F$6=\"CIASI\",IF(OR('Blank - Request Form'!H234=\"0\",'Blank - Request Form'!H234=\"00000\",'Blank - Request Form'!H234=0),\"\",'Blank - Request Form'!H234),IF('Blank - Request Form'!$F$7=\"CIASI\",IF(OR('Blank - Request Form'!Q234=\"0\",'Blank - Request Form'!Q234=\"00000\",'Blank - Request Form'!Q234=0),\"\",'Blank - Request Form'!Q234),\"\"))","v":""},{"$f":"IF('Blank - Request Form'!$F$6=\"CIASI\",IF(OR('Blank - Request Form'!I234=\"0\",'Blank - Request Form'!I234=\"00000\",'Blank - Request Form'!I234=0),\"\",'Blank - Request Form'!I234),IF('Blank - Request Form'!$F$7=\"CIASI\",IF(OR('Blank - Request Form'!R234=\"0\",'Blank - Request Form'!R234=\"00000\",'Blank - Request Form'!R234=0),\"\",'Blank - Request Form'!R234),\"\"))","v":""},null,{"$f":"IF('Blank - Request Form'!$F$6=\"CIASI\",IF('Blank - Request Form'!K234=0,\"\",'Blank - Request Form'!K234),IF('Blank - Request Form'!$F$7=\"CIASI\",IF('Blank - Request Form'!T234=0,\"\",'Blank - Request Form'!T234),\"\"))","v":""},null,null,null,{"$f":"IF(M200<>\"\",'Blank - Request Form'!$M$2,\"\")","v":""},{"$f":"IF('Blank - Request Form'!$F$6=\"CIASI\",IF('Blank - Request Form'!J234=0,\"\",'Blank - Request Form'!J234),IF('Blank - Request Form'!$F$7=\"CIASI\",IF('Blank - Request Form'!S234=0,\"\",'Blank - Request Form'!S234),\"\"))","v":""},"",200]
[{"$f":"IF('Blank - Request Form'!$F$6=\"CIASI\",IF('Blank - Request Form'!D235=0,\"\",'Blank - Request Form'!D235),IF('Blank - Request Form'!$F$7=\"CIASI\",IF('Blank - Request Form'!M235=0,\"\",'Blank - Request Form'!M235),\"\"))","v":""},{"$f":"IF('Blank - Request Form'!$F$6=\"CIASI\",IF('Blank - Request Form'!E235=0,\"\",'Blank - Request Form'!E235),IF('Blank - Request Form'!$F$7=\"CIASI\",IF('Blank - Request Form'!N235=0,\"\",'Blank - Request Form'!N235),\"\"))","v":""},{"$f":"IF('Blank - Request Form'!$F$6=\"CIASI\",IF(OR('Blank - Request Form'!F235=\"000\",'Blank - Request Form'!F235=0),\"\",'Blank - Request Form'!F235),IF('Blank - Request Form'!$F$7=\"CIASI\",IF(OR('Blank - Request Form'!O235=\"000\",'Blank - Request Form'!O235=0),\"\",'Blank - Request Form'!O235),\"\"))","v":""},{"$f":"IF('Blank - Request Form'!$F$6=\"CIASI\",IF(OR('Blank - Request Form'!G235=\"0\",'Blank - Request Form'!G235=\"00000\",'Blank - Request Form'!G235=0),\"\",'Blank - Request Form'!G235),IF('Blank - Request Form'!$F$7=\"CIASI\",IF(OR('Blank - Request Form'!P235=\"0\",'Blank - Request Form'!P235=\"00000\",'Blank - Request Form'!P235=0),\"\",'Blank - Request Form'!P235),\"\"))","v":""},{"$f":"IF('Blank - Request Form'!$F$6=\"CIASI\",IF(OR('Blank - Request Form'!H235=\"0\",'Blank - Request Form'!H235=\"00000\",'Blank - Request Form'!H235=0),\"\",'Blank - Request Form'!H235),IF('Blank - Request Form'!$F$7=\"CIASI\",IF(OR('Blank - Request Form'!Q235=\"0\",'Blank - Request Form'!Q235=\"00000\",'Blank - Request Form'!Q235=0),\"\",'Blank - Request Form'!Q235),\"\"))","v":""},{"$f":"IF('Blank - Request Form'!$F$6=\"CIASI\",IF(OR('Blank - Request Form'!I235=\"0\",'Blank - Request Form'!I235=\"00000\",'Blank - Request Form'!I235=0),\"\",'Blank - Request Form'!I235),IF('Blank - Request Form'!$F$7=\"CIASI\",IF(OR('Blank - Request Form'!R235=\"0\",'Blank - Request Form'!R235=\"00000\",'Blank - Request Form'!R235=0),\"\",'Blank - Request Form'!R235),\"\"))","v":""},null,{"$f":"IF('Blank - Request Form'!$F$6=\"CIASI\",IF('Blank - Request Form'!K235=0,\"\",'Blank - Request Form'!K235),IF('Blank - Request Form'!$F$7=\"CIASI\",IF('Blank - Request Form'!T235=0,\"\",'Blank - Request Form'!T235),\"\"))","v":""},null,null,null,{"$f":"IF(M201<>\"\",'Blank - Request Form'!$M$2,\"\")","v":""},{"$f":"IF('Blank - Request Form'!$F$6=\"CIASI\",IF('Blank - Request Form'!J235=0,\"\",'Blank - Request Form'!J235),IF('Blank - Request Form'!$F$7=\"CIASI\",IF('Blank - Request Form'!S235=0,\"\",'Blank - Request Form'!S235),\"\"))","v":""},"",201]

{"sheet":"Foundation","index":6,"n_rows":201,"n_cols":16,"rows_kept":201,"cut":false,"hidden":true,"merged":[]}
[{"$f":"IF('Blank - Request Form'!$F$6=\"CIFDN\",IF('Blank - Request Form'!D35=0,\"\",'Blank - Request Form'!D35),IF('Blank - Request Form'!$F$7=\"CIFDN\",IF('Blank - Request Form'!M35=0,\"\",'Blank - Request Form'!M35),\"\"))","v":""},{"$f":"IF('Blank - Request Form'!$F$6=\"CIFDN\",IF('Blank - Request Form'!E35=0,\"\",'Blank - Request Form'!E35),IF('Blank - Request Form'!$F$7=\"CIFDN\",IF('Blank - Request Form'!N35=0,\"\",'Blank - Request Form'!N35),\"\"))","v":""},{"$f":"IF('Blank - Request Form'!$F$6=\"CIFDN\",IF(OR('Blank - Request Form'!F35=\"000\",'Blank - Request Form'!F35=0),\"\",'Blank - Request Form'!F35),IF('Blank - Request Form'!$F$7=\"CIFDN\",IF(OR('Blank - Request Form'!O35=\"000\",'Blank - Request Form'!O35=0),\"\",'Blank - Request Form'!O35),\"\"))","v":""},{"$f":"IF('Blank - Request Form'!$F$6=\"CIFDN\",IF(OR('Blank - Request Form'!G35=\"0\",'Blank - Request Form'!G35=\"00000\",'Blank - Request Form'!G35=0),\"\",'Blank - Request Form'!G35),IF('Blank - Request Form'!$F$7=\"CIFDN\",IF(OR('Blank - Request Form'!P35=\"0\",'Blank - Request Form'!P35=\"00000\",'Blank - Request Form'!P35=0),\"\",'Blank - Request Form'!P35),\"\"))","v":""},{"$f":"IF('Blank - Request Form'!$F$6=\"CIFDN\",IF(OR('Blank - Request Form'!H35=\"0\",'Blank - Request Form'!H35=\"00000\",'Blank - Request Form'!H35=0),\"\",'Blank - Request Form'!H35),IF('Blank - Request Form'!$F$7=\"CIFDN\",IF(OR('Blank - Request Form'!Q35=\"0\",'Blank - Request Form'!Q35=\"00000\",'Blank - Request Form'!Q35=0),\"\",'Blank - Request Form'!Q35),\"\"))","v":""},{"$f":"IF('Blank - Request Form'!$F$6=\"CIFDN\",IF(OR('Blank - Request Form'!I35=\"0\",'Blank - Request Form'!I35=\"00000\",'Blank - Request Form'!I35=0),\"\",'Blank - Request Form'!I35),IF('Blank - Request Form'!$F$7=\"CIFDN\",IF(OR('Blank - Request Form'!R35=\"0\",'Blank - Request Form'!R35=\"00000\",'Blank - Request Form'!R35=0),\"\",'Blank - Request Form'!R35),\"\"))","v":""},null,{"$f":"IF('Blank - Request Form'!$F$6=\"CIFDN\",IF('Blank - Request Form'!K35=0,\"\",'Blank - Request Form'!K35),IF('Blank - Request Form'!$F$7=\"CIFDN\",IF('Blank - Request Form'!T35=0,\"\",'Blank - Request Form'!T35),\"\"))","v":""},null,null,null,{"$f":"IF(M1<>\"\",'Blank - Request Form'!$M$2,\"\")","v":""},{"$f":"IF('Blank - Request Form'!$F$6=\"CIFDN\",IF('Blank - Request Form'!J35=0,\"\",'Blank - Request Form'!J35),IF('Blank - Request Form'!$F$7=\"CIFDN\",IF('Blank - Request Form'!S35=0,\"\",'Blank - Request Form'!S35),\"\"))","v":""},{"$f":"IF(M1<>\"\",O1,\"\")","v":""},1,"CIFDN"]
[{"$f":"IF('Blank - Request Form'!$F$6=\"CIFDN\",IF('Blank - Request Form'!D36=0,\"\",'Blank - Request Form'!D36),IF('Blank - Request Form'!$F$7=\"CIFDN\",IF('Blank - Request Form'!M36=0,\"\",'Blank - Request Form'!M36),\"\"))","v":""},{"$f":"IF('Blank - Request Form'!$F$6=\"CIFDN\",IF('Blank - Request Form'!E36=0,\"\",'Blank - Request Form'!E36),IF('Blank - Request Form'!$F$7=\"CIFDN\",IF('Blank - Request Form'!N36=0,\"\",'Blank - Request Form'!N36),\"\"))","v":""},{"$f":"IF('Blank - Request Form'!$F$6=\"CIFDN\",IF(OR('Blank - Request Form'!F36=\"000\",'Blank - Request Form'!F36=0),\"\",'Blank - Request Form'!F36),IF('Blank - Request Form'!$F$7=\"CIFDN\",IF(OR('Blank - Request Form'!O36=\"000\",'Blank - Request Form'!O36=0),\"\",'Blank - Request Form'!O36),\"\"))","v":""},{"$f":"IF('Blank - Request Form'!$F$6=\"CIFDN\",IF(OR('Blank - Request Form'!G36=\"0\",'Blank - Request Form'!G36=\"00000\",'Blank - Request Form'!G36=0),\"\",'Blank - Request Form'!G36),IF('Blank - Request Form'!$F$7=\"CIFDN\",IF(OR('Blank - Request Form'!P36=\"0\",'Blank - Request Form'!P36=\"00000\",'Blank - Request Form'!P36=0),\"\",'Blank - Request Form'!P36),\"\"))","v":""},{"$f":"IF('Blank - Request Form'!$F$6=\"CIFDN\",IF(OR('Blank - Request Form'!H36=\"0\",'Blank - Request Form'!H36=\"00000\",'Blank - Request Form'!H36=0),\"\",'Blank - Request Form'!H36),IF('Blank - Request Form'!$F$7=\"CIFDN\",IF(OR('Blank - Request Form'!Q36=\"0\",'Blank - Request Form'!Q36=\"00000\",'Blank - Request Form'!Q36=0),\"\",'Blank - Request Form'!Q36),\"\"))","v":""},{"$f":"IF('Blank - Request Form'!$F$6=\"CIFDN\",IF(OR('Blank - Request Form'!I36=\"0\",'Blank - Request Form'!I36=\"00000\",'Blank - Request Form'!I36=0),\"\",'Blank - Request Form'!I36),IF('Blank - Request Form'!$F$7=\"CIFDN\",IF(OR('Blank - Request Form'!R36=\"0\",'Blank - Request Form'!R36=\"00000\",'Blank - Request Form'!R36=0),\"\",'Blank - Request Form'!R36),\"\"))","v":""},null,{"$f":"IF('Blank - Request Form'!$F$6=\"CIFDN\",IF('Blank - Request Form'!K36=0,\"\",'Blank - Request Form'!K36),IF('Blank - Request Form'!$F$7=\"CIFDN\",IF('Blank - Request Form'!T36=0,\"\",'Blank - Request Form'!T36),\"\"))","v":""},null,null,null,{"$f":"IF(M2<>\"\",'Blank - Request Form'!$M$2,\"\")","v":""},{"$f":"IF('Blank - Request Form'!$F$6=\"CIFDN\",IF('Blank - Request Form'!J36=0,\"\",'Blank - Request Form'!J36),IF('Blank - Request Form'!$F$7=\"CIFDN\",IF('Blank - Request Form'!S36=0,\"\",'Blank - Request Form'!S36),\"\"))","v":""},{"$f":"IF(M2<>\"\",O2,\"\")","v":""},2,{"$f":"LogNumber","v":0}]
[{"$f":"IF('Blank - Request Form'!$F$6=\"CIFDN\",IF('Blank - Request Form'!D37=0,\"\",'Blank - Request Form'!D37),IF('Blank - Request Form'!$F$7=\"CIFDN\",IF('Blank - Request Form'!M37=0,\"\",'Blank - Request Form'!M37),\"\"))","v":""},{"$f":"IF('Blank - Request Form'!$F$6=\"CIFDN\",IF('Blank - Request Form'!E37=0,\"\",'Blank - Request Form'!E37),IF('Blank - Request Form'!$F$7=\"CIFDN\",IF('Blank - Request Form'!N37=0,\"\",'Blank - Request Form'!N37),\"\"))","v":""},{"$f":"IF('Blank - Request Form'!$F$6=\"CIFDN\",IF(OR('Blank - Request Form'!F37=\"000\",'Blank - Request Form'!F37=0),\"\",'Blank - Request Form'!F37),IF('Blank - Request Form'!$F$7=\"CIFDN\",IF(OR('Blank - Request Form'!O37=\"000\",'Blank - Request Form'!O37=0),\"\",'Blank - Request Form'!O37),\"\"))","v":""},{"$f":"IF('Blank - Request Form'!$F$6=\"CIFDN\",IF(OR('Blank - Request Form'!G37=\"0\",'Blank - Request Form'!G37=\"00000\",'Blank - Request Form'!G37=0),\"\",'Blank - Request Form'!G37),IF('Blank - Request Form'!$F$7=\"CIFDN\",IF(OR('Blank - Request Form'!P37=\"0\",'Blank - Request Form'!P37=\"00000\",'Blank - Request Form'!P37=0),\"\",'Blank - Request Form'!P37),\"\"))","v":""},{"$f":"IF('Blank - Request Form'!$F$6=\"CIFDN\",IF(OR('Blank - Request Form'!H37=\"0\",'Blank - Request Form'!H37=\"00000\",'Blank - Request Form'!H37=0),\"\",'Blank - Request Form'!H37),IF('Blank - Request Form'!$F$7=\"CIFDN\",IF(OR('Blank - Request Form'!Q37=\"0\",'Blank - Request Form'!Q37=\"00000\",'Blank - Request Form'!Q37=0),\"\",'Blank - Request Form'!Q37),\"\"))","v":""},{"$f":"IF('Blank - Request Form'!$F$6=\"CIFDN\",IF(OR('Blank - Request Form'!I37=\"0\",'Blank - Request Form'!I37=\"00000\",'Blank - Request Form'!I37=0),\"\",'Blank - Request Form'!I37),IF('Blank - Request Form'!$F$7=\"CIFDN\",IF(OR('Blank - Request Form'!R37=\"0\",'Blank - Request Form'!R37=\"00000\",'Blank - Request Form'!R37=0),\"\",'Blank - Request Form'!R37),\"\"))","v":""},null,{"$f":"IF('Blank - Request Form'!$F$6=\"CIFDN\",IF('Blank - Request Form'!K37=0,\"\",'Blank - Request Form'!K37),IF('Blank - Request Form'!$F$7=\"CIFDN\",IF('Blank - Request Form'!T37=0,\"\",'Blank - Request Form'!T37),\"\"))","v":""},null,null,null,{"$f":"IF(M3<>\"\",'Blank - Request Form'!$M$2,\"\")","v":""},{"$f":"IF('Blank - Request Form'!$F$6=\"CIFDN\",IF('Blank - Request Form'!J37=0,\"\",'Blank - Request Form'!J37),IF('Blank - Request Form'!$F$7=\"CIFDN\",IF('Blank - Request Form'!S37=0,\"\",'Blank - Request Form'!S37),\"\"))","v":""},"",3]
[{"$f":"IF('Blank - Request Form'!$F$6=\"CIFDN\",IF('Blank - Request Form'!D38=0,\"\",'Blank - Request Form'!D38),IF('Blank - Request Form'!$F$7=\"CIFDN\",IF('Blank - Request Form'!M38=0,\"\",'Blank - Request Form'!M38),\"\"))","v":""},{"$f":"IF('Blank - Request Form'!$F$6=\"CIFDN\",IF('Blank - Request Form'!E38=0,\"\",'Blank - Request Form'!E38),IF('Blank - Request Form'!$F$7=\"CIFDN\",IF('Blank - Request Form'!N38=0,\"\",'Blank - Request Form'!N38),\"\"))","v":""},{"$f":"IF('Blank - Request Form'!$F$6=\"CIFDN\",IF(OR('Blank - Request Form'!F38=\"000\",'Blank - Request Form'!F38=0),\"\",'Blank - Request Form'!F38),IF('Blank - Request Form'!$F$7=\"CIFDN\",IF(OR('Blank - Request Form'!O38=\"000\",'Blank - Request Form'!O38=0),\"\",'Blank - Request Form'!O38),\"\"))","v":""},{"$f":"IF('Blank - Request Form'!$F$6=\"CIFDN\",IF(OR('Blank - Request Form'!G38=\"0\",'Blank - Request Form'!G38=\"00000\",'Blank - Request Form'!G38=0),\"\",'Blank - Request Form'!G38),IF('Blank - Request Form'!$F$7=\"CIFDN\",IF(OR('Blank - Request Form'!P38=\"0\",'Blank - Request Form'!P38=\"00000\",'Blank - Request Form'!P38=0),\"\",'Blank - Request Form'!P38),\"\"))","v":""},{"$f":"IF('Blank - Request Form'!$F$6=\"CIFDN\",IF(OR('Blank - Request Form'!H38=\"0\",'Blank - Request Form'!H38=\"00000\",'Blank - Request Form'!H38=0),\"\",'Blank - Request Form'!H38),IF('Blank - Request Form'!$F$7=\"CIFDN\",IF(OR('Blank - Request Form'!Q38=\"0\",'Blank - Request Form'!Q38=\"00000\",'Blank - Request Form'!Q38=0),\"\",'Blank - Request Form'!Q38),\"\"))","v":""},{"$f":"IF('Blank - Request Form'!$F$6=\"CIFDN\",IF(OR('Blank - Request Form'!I38=\"0\",'Blank - Request Form'!I38=\"00000\",'Blank - Request Form'!I38=0),\"\",'Blank - Request Form'!I38),IF('Blank - Request Form'!$F$7=\"CIFDN\",IF(OR('Blank - Request Form'!R38=\"0\",'Blank - Request Form'!R38=\"00000\",'Blank - Request Form'!R38=0),\"\",'Blank - Request Form'!R38),\"\"))","v":""},null,{"$f":"IF('Blank - Request Form'!$F$6=\"CIFDN\",IF('Blank - Request Form'!K38=0,\"\",'Blank - Request Form'!K38),IF('Blank - Request Form'!$F$7=\"CIFDN\",IF('Blank - Request Form'!T38=0,\"\",'Blank - Request Form'!T38),\"\"))","v":""},null,null,null,{"$f":"IF(M4<>\"\",'Blank - Request Form'!$M$2,\"\")","v":""},{"$f":"IF('Blank - Request Form'!$F$6=\"CIFDN\",IF('Blank - Request Form'!J38=0,\"\",'Blank - Request Form'!J38),IF('Blank - Request Form'!$F$7=\"CIFDN\",IF('Blank - Request Form'!S38=0,\"\",'Blank - Request Form'!S38),\"\"))","v":""},"",4]
[{"$f":"IF('Blank - Request Form'!$F$6=\"CIFDN\",IF('Blank - Request Form'!D39=0,\"\",'Blank - Request Form'!D39),IF('Blank - Request Form'!$F$7=\"CIFDN\",IF('Blank - Request Form'!M39=0,\"\",'Blank - Request Form'!M39),\"\"))","v":""},{"$f":"IF('Blank - Request Form'!$F$6=\"CIFDN\",IF('Blank - Request Form'!E39=0,\"\",'Blank - Request Form'!E39),IF('Blank - Request Form'!$F$7=\"CIFDN\",IF('Blank - Request Form'!N39=0,\"\",'Blank - Request Form'!N39),\"\"))","v":""},{"$f":"IF('Blank - Request Form'!$F$6=\"CIFDN\",IF(OR('Blank - Request Form'!F39=\"000\",'Blank - Request Form'!F39=0),\"\",'Blank - Request Form'!F39),IF('Blank - Request Form'!$F$7=\"CIFDN\",IF(OR('Blank - Request Form'!O39=\"000\",'Blank - Request Form'!O39=0),\"\",'Blank - Request Form'!O39),\"\"))","v":""},{"$f":"IF('Blank - Request Form'!$F$6=\"CIFDN\",IF(OR('Blank - Request Form'!G39=\"0\",'Blank - Request Form'!G39=\"00000\",'Blank - Request Form'!G39=0),\"\",'Blank - Request Form'!G39),IF('Blank - Request Form'!$F$7=\"CIFDN\",IF(OR('Blank - Request Form'!P39=\"0\",'Blank - Request Form'!P39=\"00000\",'Blank - Request Form'!P39=0),\"\",'Blank - Request Form'!P39),\"\"))","v":""},{"$f":"IF('Blank - Request Form'!$F$6=\"CIFDN\",IF(OR('Blank - Request Form'!H39=\"0\",'Blank - Request Form'!H39=\"00000\",'Blank - Request Form'!H39=0),\"\",'Blank - Request Form'!H39),IF('Blank - Request Form'!$F$7=\"CIFDN\",IF(OR('Blank - Request Form'!Q39=\"0\",'Blank - Request Form'!Q39=\"00000\",'Blank - Request Form'!Q39=0),\"\",'Blank - Request Form'!Q39),\"\"))","v":""},{"$f":"IF('Blank - Request Form'!$F$6=\"CIFDN\",IF(OR('Blank - Request Form'!I39=\"0\",'Blank - Request Form'!I39=\"00000\",'Blank - Request Form'!I39=0),\"\",'Blank - Request Form'!I39),IF('Blank - Request Form'!$F$7=\"CIFDN\",IF(OR('Blank - Request Form'!R39=\"0\",'Blank - Request Form'!R39=\"00000\",'Blank - Request Form'!R39=0),\"\",'Blank - Request Form'!R39),\"\"))","v":""},null,{"$f":"IF('Blank - Request Form'!$F$6=\"CIFDN\",IF('Blank - Request Form'!K39=0,\"\",'Blank - Request Form'!K39),IF('Blank - Request Form'!$F$7=\"CIFDN\",IF('Blank - Request Form'!T39=0,\"\",'Blank - Request Form'!T39),\"\"))","v":""},null,null,null,{"$f":"IF(M5<>\"\",'Blank - Request Form'!$M$2,\"\")","v":""},{"$f":"IF('Blank - Request Form'!$F$6=\"CIFDN\",IF('Blank - Request Form'!J39=0,\"\",'Blank - Request Form'!J39),IF('Blank - Request Form'!$F$7=\"CIFDN\",IF('Blank - Request Form'!S39=0,\"\",'Blank - Request Form'!S39),\"\"))","v":""},"",5]
[{"$f":"IF('Blank - Request Form'!$F$6=\"CIFDN\",IF('Blank - Request Form'!D40=0,\"\",'Blank - Request Form'!D40),IF('Blank - Request Form'!$F$7=\"CIFDN\",IF('Blank - Request Form'!M40=0,\"\",'Blank - Request Form'!M40),\"\"))","v":""},{"$f":"IF('Blank - Request Form'!$F$6=\"CIFDN\",IF('Blank - Request Form'!E40=0,\"\",'Blank - Request Form'!E40),IF('Blank - Request Form'!$F$7=\"CIFDN\",IF('Blank - Request Form'!N40=0,\"\",'Blank - Request Form'!N40),\"\"))","v":""},{"$f":"IF('Blank - Request Form'!$F$6=\"CIFDN\",IF(OR('Blank - Request Form'!F40=\"000\",'Blank - Request Form'!F40=0),\"\",'Blank - Request Form'!F40),IF('Blank - Request Form'!$F$7=\"CIFDN\",IF(OR('Blank - Request Form'!O40=\"000\",'Blank - Request Form'!O40=0),\"\",'Blank - Request Form'!O40),\"\"))","v":""},{"$f":"IF('Blank - Request Form'!$F$6=\"CIFDN\",IF(OR('Blank - Request Form'!G40=\"0\",'Blank - Request Form'!G40=\"00000\",'Blank - Request Form'!G40=0),\"\",'Blank - Request Form'!G40),IF('Blank - Request Form'!$F$7=\"CIFDN\",IF(OR('Blank - Request Form'!P40=\"0\",'Blank - Request Form'!P40=\"00000\",'Blank - Request Form'!P40=0),\"\",'Blank - Request Form'!P40),\"\"))","v":""},{"$f":"IF('Blank - Request Form'!$F$6=\"CIFDN\",IF(OR('Blank - Request Form'!H40=\"0\",'Blank - Request Form'!H40=\"00000\",'Blank - Request Form'!H40=0),\"\",'Blank - Request Form'!H40),IF('Blank - Request Form'!$F$7=\"CIFDN\",IF(OR('Blank - Request Form'!Q40=\"0\",'Blank - Request Form'!Q40=\"00000\",'Blank - Request Form'!Q40=0),\"\",'Blank - Request Form'!Q40),\"\"))","v":""},{"$f":"IF('Blank - Request Form'!$F$6=\"CIFDN\",IF(OR('Blank - Request Form'!I40=\"0\",'Blank - Request Form'!I40=\"00000\",'Blank - Request Form'!I40=0),\"\",'Blank - Request Form'!I40),IF('Blank - Request Form'!$F$7=\"CIFDN\",IF(OR('Blank - Request Form'!R40=\"0\",'Blank - Request Form'!R40=\"00000\",'Blank - Request Form'!R40=0),\"\",'Blank - Request Form'!R40),\"\"))","v":""},null,{"$f":"IF('Blank - Request Form'!$F$6=\"CIFDN\",IF('Blank - Request Form'!K40=0,\"\",'Blank - Request Form'!K40),IF('Blank - Request Form'!$F$7=\"CIFDN\",IF('Blank - Request Form'!T40=0,\"\",'Blank - Request Form'!T40),\"\"))","v":""},null,null,null,{"$f":"IF(M6<>\"\",'Blank - Request Form'!$M$2,\"\")","v":""},{"$f":"IF('Blank - Request Form'!$F$6=\"CIFDN\",IF('Blank - Request Form'!J40=0,\"\",'Blank - Request Form'!J40),IF('Blank - Request Form'!$F$7=\"CIFDN\",IF('Blank - Request Form'!S40=0,\"\",'Blank - Request Form'!S40),\"\"))","v":""},"",6]
[{"$f":"IF('Blank - Request Form'!$F$6=\"CIFDN\",IF('Blank - Request Form'!D41=0,\"\",'Blank - Request Form'!D41),IF('Blank - Request Form'!$F$7=\"CIFDN\",IF('Blank - Request Form'!M41=0,\"\",'Blank - Request Form'!M41),\"\"))","v":""},{"$f":"IF('Blank - Request Form'!$F$6=\"CIFDN\",IF('Blank - Request Form'!E41=0,\"\",'Blank - Request Form'!E41),IF('Blank - Request Form'!$F$7=\"CIFDN\",IF('Blank - Request Form'!N41=0,\"\",'Blank - Request Form'!N41),\"\"))","v":""},{"$f":"IF('Blank - Request Form'!$F$6=\"CIFDN\",IF(OR('Blank - Request Form'!F41=\"000\",'Blank - Request Form'!F41=0),\"\",'Blank - Request Form'!F41),IF('Blank - Request Form'!$F$7=\"CIFDN\",IF(OR('Blank - Request Form'!O41=\"000\",'Blank - Request Form'!O41=0),\"\",'Blank - Request Form'!O41),\"\"))","v":""},{"$f":"IF('Blank - Request Form'!$F$6=\"CIFDN\",IF(OR('Blank - Request Form'!G41=\"0\",'Blank - Request Form'!G41=\"00000\",'Blank - Request Form'!G41=0),\"\",'Blank - Request Form'!G41),IF('Blank - Request Form'!$F$7=\"CIFDN\",IF(OR('Blank - Request Form'!P41=\"0\",'Blank - Request Form'!P41=\"00000\",'Blank - Request Form'!P41=0),\"\",'Blank - Request Form'!P41),\"\"))","v":""},{"$f":"IF('Blank - Request Form'!$F$6=\"CIFDN\",IF(OR('Blank - Request Form'!H41=\"0\",'Blank - Request Form'!H41=\"00000\",'Blank - Request Form'!H41=0),\"\",'Blank - Request Form'!H41),IF('Blank - Request Form'!$F$7=\"CIFDN\",IF(OR('Blank - Request Form'!Q41=\"0\",'Blank - Request Form'!Q41=\"00000\",'Blank - Request Form'!Q41=0),\"\",'Blank - Request Form'!Q41),\"\"))","v":""},{"$f":"IF('Blank - Request Form'!$F$6=\"CIFDN\",IF(OR('Blank - Request Form'!I41=\"0\",'Blank - Request Form'!I41=\"00000\",'Blank - Request Form'!I41=0),\"\",'Blank - Request Form'!I41),IF('Blank - Request Form'!$F$7=\"CIFDN\",IF(OR('Blank - Request Form'!R41=\"0\",'Blank - Request Form'!R41=\"00000\",'Blank - Request Form'!R41=0),\"\",'Blank - Request Form'!R41),\"\"))","v":""},null,{"$f":"IF('Blank - Request Form'!$F$6=\"CIFDN\",IF('Blank - Request Form'!K41=0,\"\",'Blank - Request Form'!K41),IF('Blank - Request Form'!$F$7=\"CIFDN\",IF('Blank - Request Form'!T41=0,\"\",'Blank - Request Form'!T41),\"\"))","v":""},null,null,null,{"$f":"IF(M7<>\"\",'Blank - Request Form'!$M$2,\"\")","v":""},{"$f":"IF('Blank - Request Form'!$F$6=\"CIFDN\",IF('Blank - Request Form'!J41=0,\"\",'Blank - Request Form'!J41),IF('Blank - Request Form'!$F$7=\"CIFDN\",IF('Blank - Request Form'!S41=0,\"\",'Blank - Request Form'!S41),\"\"))","v":""},"",7]
[{"$f":"IF('Blank - Request Form'!$F$6=\"CIFDN\",IF('Blank - Request Form'!D42=0,\"\",'Blank - Request Form'!D42),IF('Blank - Request Form'!$F$7=\"CIFDN\",IF('Blank - Request Form'!M42=0,\"\",'Blank - Request Form'!M42),\"\"))","v":""},{"$f":"IF('Blank - Request Form'!$F$6=\"CIFDN\",IF('Blank - Request Form'!E42=0,\"\",'Blank - Request Form'!E42),IF('Blank - Request Form'!$F$7=\"CIFDN\",IF('Blank - Request Form'!N42=0,\"\",'Blank - Request Form'!N42),\"\"))","v":""},{"$f":"IF('Blank - Request Form'!$F$6=\"CIFDN\",IF(OR('Blank - Request Form'!F42=\"000\",'Blank - Request Form'!F42=0),\"\",'Blank - Request Form'!F42),IF('Blank - Request Form'!$F$7=\"CIFDN\",IF(OR('Blank - Request Form'!O42=\"000\",'Blank - Request Form'!O42=0),\"\",'Blank - Request Form'!O42),\"\"))","v":""},{"$f":"IF('Blank - Request Form'!$F$6=\"CIFDN\",IF(OR('Blank - Request Form'!G42=\"0\",'Blank - Request Form'!G42=\"00000\",'Blank - Request Form'!G42=0),\"\",'Blank - Request Form'!G42),IF('Blank - Request Form'!$F$7=\"CIFDN\",IF(OR('Blank - Request Form'!P42=\"0\",'Blank - Request Form'!P42=\"00000\",'Blank - Request Form'!P42=0),\"\",'Blank - Request Form'!P42),\"\"))","v":""},{"$f":"IF('Blank - Request Form'!$F$6=\"CIFDN\",IF(OR('Blank - Request Form'!H42=\"0\",'Blank - Request Form'!H42=\"00000\",'Blank - Request Form'!H42=0),\"\",'Blank - Request Form'!H42),IF('Blank - Request Form'!$F$7=\"CIFDN\",IF(OR('Blank - Request Form'!Q42=\"0\",'Blank - Request Form'!Q42=\"00000\",'Blank - Request Form'!Q42=0),\"\",'Blank - Request Form'!Q42),\"\"))","v":""},{"$f":"IF('Blank - Request Form'!$F$6=\"CIFDN\",IF(OR('Blank - Request Form'!I42=\"0\",'Blank - Request Form'!I42=\"00000\",'Blank - Request Form'!I42=0),\"\",'Blank - Request Form'!I42),IF('Blank - Request Form'!$F$7=\"CIFDN\",IF(OR('Blank - Request Form'!R42=\"0\",'Blank - Request Form'!R42=\"00000\",'Blank - Request Form'!R42=0),\"\",'Blank - Request Form'!R42),\"\"))","v":""},null,{"$f":"IF('Blank - Request Form'!$F$6=\"CIFDN\",IF('Blank - Request Form'!K42=0,\"\",'Blank - Request Form'!K42),IF('Blank - Request Form'!$F$7=\"CIFDN\",IF('Blank - Request Form'!T42=0,\"\",'Blank - Request Form'!T42),\"\"))","v":""},null,null,null,{"$f":"IF(M8<>\"\",'Blank - Request Form'!$M$2,\"\")","v":""},{"$f":"IF('Blank - Request Form'!$F$6=\"CIFDN\",IF('Blank - Request Form'!J42=0,\"\",'Blank - Request Form'!J42),IF('Blank - Request Form'!$F$7=\"CIFDN\",IF('Blank - Request Form'!S42=0,\"\",'Blank - Request Form'!S42),\"\"))","v":""},"",8]
[{"$f":"IF('Blank - Request Form'!$F$6=\"CIFDN\",IF('Blank - Request Form'!D43=0,\"\",'Blank - Request Form'!D43),IF('Blank - Request Form'!$F$7=\"CIFDN\",IF('Blank - Request Form'!M43=0,\"\",'Blank - Request Form'!M43),\"\"))","v":""},{"$f":"IF('Blank - Request Form'!$F$6=\"CIFDN\",IF('Blank - Request Form'!E43=0,\"\",'Blank - Request Form'!E43),IF('Blank - Request Form'!$F$7=\"CIFDN\",IF('Blank - Request Form'!N43=0,\"\",'Blank - Request Form'!N43),\"\"))","v":""},{"$f":"IF('Blank - Request Form'!$F$6=\"CIFDN\",IF(OR('Blank - Request Form'!F43=\"000\",'Blank - Request Form'!F43=0),\"\",'Blank - Request Form'!F43),IF('Blank - Request Form'!$F$7=\"CIFDN\",IF(OR('Blank - Request Form'!O43=\"000\",'Blank - Request Form'!O43=0),\"\",'Blank - Request Form'!O43),\"\"))","v":""},{"$f":"IF('Blank - Request Form'!$F$6=\"CIFDN\",IF(OR('Blank - Request Form'!G43=\"0\",'Blank - Request Form'!G43=\"00000\",'Blank - Request Form'!G43=0),\"\",'Blank - Request Form'!G43),IF('Blank - Request Form'!$F$7=\"CIFDN\",IF(OR('Blank - Request Form'!P43=\"0\",'Blank - Request Form'!P43=\"00000\",'Blank - Request Form'!P43=0),\"\",'Blank - Request Form'!P43),\"\"))","v":""},{"$f":"IF('Blank - Request Form'!$F$6=\"CIFDN\",IF(OR('Blank - Request Form'!H43=\"0\",'Blank - Request Form'!H43=\"00000\",'Blank - Request Form'!H43=0),\"\",'Blank - Request Form'!H43),IF('Blank - Request Form'!$F$7=\"CIFDN\",IF(OR('Blank - Request Form'!Q43=\"0\",'Blank - Request Form'!Q43=\"00000\",'Blank - Request Form'!Q43=0),\"\",'Blank - Request Form'!Q43),\"\"))","v":""},{"$f":"IF('Blank - Request Form'!$F$6=\"CIFDN\",IF(OR('Blank - Request Form'!I43=\"0\",'Blank - Request Form'!I43=\"00000\",'Blank - Request Form'!I43=0),\"\",'Blank - Request Form'!I43),IF('Blank - Request Form'!$F$7=\"CIFDN\",IF(OR('Blank - Request Form'!R43=\"0\",'Blank - Request Form'!R43=\"00000\",'Blank - Request Form'!R43=0),\"\",'Blank - Request Form'!R43),\"\"))","v":""},null,{"$f":"IF('Blank - Request Form'!$F$6=\"CIFDN\",IF('Blank - Request Form'!K43=0,\"\",'Blank - Request Form'!K43),IF('Blank - Request Form'!$F$7=\"CIFDN\",IF('Blank - Request Form'!T43=0,\"\",'Blank - Request Form'!T43),\"\"))","v":""},null,null,null,{"$f":"IF(M9<>\"\",'Blank - Request Form'!$M$2,\"\")","v":""},{"$f":"IF('Blank - Request Form'!$F$6=\"CIFDN\",IF('Blank - Request Form'!J43=0,\"\",'Blank - Request Form'!J43),IF('Blank - Request Form'!$F$7=\"CIFDN\",IF('Blank - Request Form'!S43=0,\"\",'Blank - Request Form'!S43),\"\"))","v":""},"",9]
[{"$f":"IF('Blank - Request Form'!$F$6=\"CIFDN\",IF('Blank - Request Form'!D44=0,\"\",'Blank - Request Form'!D44),IF('Blank - Request Form'!$F$7=\"CIFDN\",IF('Blank - Request Form'!M44=0,\"\",'Blank - Request Form'!M44),\"\"))","v":""},{"$f":"IF('Blank - Request Form'!$F$6=\"CIFDN\",IF('Blank - Request Form'!E44=0,\"\",'Blank - Request Form'!E44),IF('Blank - Request Form'!$F$7=\"CIFDN\",IF('Blank - Request Form'!N44=0,\"\",'Blank - Request Form'!N44),\"\"))","v":""},{"$f":"IF('Blank - Request Form'!$F$6=\"CIFDN\",IF(OR('Blank - Request Form'!F44=\"000\",'Blank - Request Form'!F44=0),\"\",'Blank - Request Form'!F44),IF('Blank - Request Form'!$F$7=\"CIFDN\",IF(OR('Blank - Request Form'!O44=\"000\",'Blank - Request Form'!O44=0),\"\",'Blank - Request Form'!O44),\"\"))","v":""},{"$f":"IF('Blank - Request Form'!$F$6=\"CIFDN\",IF(OR('Blank - Request Form'!G44=\"0\",'Blank - Request Form'!G44=\"00000\",'Blank - Request Form'!G44=0),\"\",'Blank - Request Form'!G44),IF('Blank - Request Form'!$F$7=\"CIFDN\",IF(OR('Blank - Request Form'!P44=\"0\",'Blank - Request Form'!P44=\"00000\",'Blank - Request Form'!P44=0),\"\",'Blank - Request Form'!P44),\"\"))","v":""},{"$f":"IF('Blank - Request Form'!$F$6=\"CIFDN\",IF(OR('Blank - Request Form'!H44=\"0\",'Blank - Request Form'!H44=\"00000\",'Blank - Request Form'!H44=0),\"\",'Blank - Request Form'!H44),IF('Blank - Request Form'!$F$7=\"CIFDN\",IF(OR('Blank - Request Form'!Q44=\"0\",'Blank - Request Form'!Q44=\"00000\",'Blank - Request Form'!Q44=0),\"\",'Blank - Request Form'!Q44),\"\"))","v":""},{"$f":"IF('Blank - Request Form'!$F$6=\"CIFDN\",IF(OR('Blank - Request Form'!I44=\"0\",'Blank - Request Form'!I44=\"00000\",'Blank - Request Form'!I44=0),\"\",'Blank - Request Form'!I44),IF('Blank - Request Form'!$F$7=\"CIFDN\",IF(OR('Blank - Request Form'!R44=\"0\",'Blank - Request Form'!R44=\"00000\",'Blank - Request Form'!R44=0),\"\",'Blank - Request Form'!R44),\"\"))","v":""},null,{"$f":"IF('Blank - Request Form'!$F$6=\"CIFDN\",IF('Blank - Request Form'!K44=0,\"\",'Blank - Request Form'!K44),IF('Blank - Request Form'!$F$7=\"CIFDN\",IF('Blank - Request Form'!T44=0,\"\",'Blank - Request Form'!T44),\"\"))","v":""},null,null,null,{"$f":"IF(M10<>\"\",'Blank - Request Form'!$M$2,\"\")","v":""},{"$f":"IF('Blank - Request Form'!$F$6=\"CIFDN\",IF('Blank - Request Form'!J44=0,\"\",'Blank - Request Form'!J44),IF('Blank - Request Form'!$F$7=\"CIFDN\",IF('Blank - Request Form'!S44=0,\"\",'Blank - Request Form'!S44),\"\"))","v":""},"",10]
[{"$f":"IF('Blank - Request Form'!$F$6=\"CIFDN\",IF('Blank - Request Form'!D45=0,\"\",'Blank - Request Form'!D45),IF('Blank - Request Form'!$F$7=\"CIFDN\",IF('Blank - Request Form'!M45=0,\"\",'Blank - Request Form'!M45),\"\"))","v":""},{"$f":"IF('Blank - Request Form'!$F$6=\"CIFDN\",IF('Blank - Request Form'!E45=0,\"\",'Blank - Request Form'!E45),IF('Blank - Request Form'!$F$7=\"CIFDN\",IF('Blank - Request Form'!N45=0,\"\",'Blank - Request Form'!N45),\"\"))","v":""},{"$f":"IF('Blank - Request Form'!$F$6=\"CIFDN\",IF(OR('Blank - Request Form'!F45=\"000\",'Blank - Request Form'!F45=0),\"\",'Blank - Request Form'!F45),IF('Blank - Request Form'!$F$7=\"CIFDN\",IF(OR('Blank - Request Form'!O45=\"000\",'Blank - Request Form'!O45=0),\"\",'Blank - Request Form'!O45),\"\"))","v":""},{"$f":"IF('Blank - Request Form'!$F$6=\"CIFDN\",IF(OR('Blank - Request Form'!G45=\"0\",'Blank - Request Form'!G45=\"00000\",'Blank - Request Form'!G45=0),\"\",'Blank - Request Form'!G45),IF('Blank - Request Form'!$F$7=\"CIFDN\",IF(OR('Blank - Request Form'!P45=\"0\",'Blank - Request Form'!P45=\"00000\",'Blank - Request Form'!P45=0),\"\",'Blank - Request Form'!P45),\"\"))","v":""},{"$f":"IF('Blank - Request Form'!$F$6=\"CIFDN\",IF(OR('Blank - Request Form'!H45=\"0\",'Blank - Request Form'!H45=\"00000\",'Blank - Request Form'!H45=0),\"\",'Blank - Request Form'!H45),IF('Blank - Request Form'!$F$7=\"CIFDN\",IF(OR('Blank - Request Form'!Q45=\"0\",'Blank - Request Form'!Q45=\"00000\",'Blank - Request Form'!Q45=0),\"\",'Blank - Request Form'!Q45),\"\"))","v":""},{"$f":"IF('Blank - Request Form'!$F$6=\"CIFDN\",IF(OR('Blank - Request Form'!I45=\"0\",'Blank - Request Form'!I45=\"00000\",'Blank - Request Form'!I45=0),\"\",'Blank - Request Form'!I45),IF('Blank - Request Form'!$F$7=\"CIFDN\",IF(OR('Blank - Request Form'!R45=\"0\",'Blank - Request Form'!R45=\"00000\",'Blank - Request Form'!R45=0),\"\",'Blank - Request Form'!R45),\"\"))","v":""},null,{"$f":"IF('Blank - Request Form'!$F$6=\"CIFDN\",IF('Blank - Request Form'!K45=0,\"\",'Blank - Request Form'!K45),IF('Blank - Request Form'!$F$7=\"CIFDN\",IF('Blank - Request Form'!T45=0,\"\",'Blank - Request Form'!T45),\"\"))","v":""},null,null,null,{"$f":"IF(M11<>\"\",'Blank - Request Form'!$M$2,\"\")","v":""},{"$f":"IF('Blank - Request Form'!$F$6=\"CIFDN\",IF('Blank - Request Form'!J45=0,\"\",'Blank - Request Form'!J45),IF('Blank - Request Form'!$F$7=\"CIFDN\",IF('Blank - Request Form'!S45=0,\"\",'Blank - Request Form'!S45),\"\"))","v":""},"",11]
[{"$f":"IF('Blank - Request Form'!$F$6=\"CIFDN\",IF('Blank - Request Form'!D46=0,\"\",'Blank - Request Form'!D46),IF('Blank - Request Form'!$F$7=\"CIFDN\",IF('Blank - Request Form'!M46=0,\"\",'Blank - Request Form'!M46),\"\"))","v":""},{"$f":"IF('Blank - Request Form'!$F$6=\"CIFDN\",IF('Blank - Request Form'!E46=0,\"\",'Blank - Request Form'!E46),IF('Blank - Request Form'!$F$7=\"CIFDN\",IF('Blank - Request Form'!N46=0,\"\",'Blank - Request Form'!N46),\"\"))","v":""},{"$f":"IF('Blank - Request Form'!$F$6=\"CIFDN\",IF(OR('Blank - Request Form'!F46=\"000\",'Blank - Request Form'!F46=0),\"\",'Blank - Request Form'!F46),IF('Blank - Request Form'!$F$7=\"CIFDN\",IF(OR('Blank - Request Form'!O46=\"000\",'Blank - Request Form'!O46=0),\"\",'Blank - Request Form'!O46),\"\"))","v":""},{"$f":"IF('Blank - Request Form'!$F$6=\"CIFDN\",IF(OR('Blank - Request Form'!G46=\"0\",'Blank - Request Form'!G46=\"00000\",'Blank - Request Form'!G46=0),\"\",'Blank - Request Form'!G46),IF('Blank - Request Form'!$F$7=\"CIFDN\",IF(OR('Blank - Request Form'!P46=\"0\",'Blank - Request Form'!P46=\"00000\",'Blank - Request Form'!P46=0),\"\",'Blank - Request Form'!P46),\"\"))","v":""},{"$f":"IF('Blank - Request Form'!$F$6=\"CIFDN\",IF(OR('Blank - Request Form'!H46=\"0\",'Blank - Request Form'!H46=\"00000\",'Blank - Request Form'!H46=0),\"\",'Blank - Request Form'!H46),IF('Blank - Request Form'!$F$7=\"CIFDN\",IF(OR('Blank - Request Form'!Q46=\"0\",'Blank - Request Form'!Q46=\"00000\",'Blank - Request Form'!Q46=0),\"\",'Blank - Request Form'!Q46),\"\"))","v":""},{"$f":"IF('Blank - Request Form'!$F$6=\"CIFDN\",IF(OR('Blank - Request Form'!I46=\"0\",'Blank - Request Form'!I46=\"00000\",'Blank - Request Form'!I46=0),\"\",'Blank - Request Form'!I46),IF('Blank - Request Form'!$F$7=\"CIFDN\",IF(OR('Blank - Request Form'!R46=\"0\",'Blank - Request Form'!R46=\"00000\",'Blank - Request Form'!R46=0),\"\",'Blank - Request Form'!R46),\"\"))","v":""},null,{"$f":"IF('Blank - Request Form'!$F$6=\"CIFDN\",IF('Blank - Request Form'!K46=0,\"\",'Blank - Request Form'!K46),IF('Blank - Request Form'!$F$7=\"CIFDN\",IF('Blank - Request Form'!T46=0,\"\",'Blank - Request Form'!T46),\"\"))","v":""},null,null,null,{"$f":"IF(M12<>\"\",'Blank - Request Form'!$M$2,\"\")","v":""},{"$f":"IF('Blank - Request Form'!$F$6=\"CIFDN\",IF('Blank - Request Form'!J46=0,\"\",'Blank - Request Form'!J46),IF('Blank - Request Form'!$F$7=\"CIFDN\",IF('Blank - Request Form'!S46=0,\"\",'Blank - Request Form'!S46),\"\"))","v":""},"",12]
[{"$f":"IF('Blank - Request Form'!$F$6=\"CIFDN\",IF('Blank - Request Form'!D47=0,\"\",'Blank - Request Form'!D47),IF('Blank - Request Form'!$F$7=\"CIFDN\",IF('Blank - Request Form'!M47=0,\"\",'Blank - Request Form'!M47),\"\"))","v":""},{"$f":"IF('Blank - Request Form'!$F$6=\"CIFDN\",IF('Blank - Request Form'!E47=0,\"\",'Blank - Request Form'!E47),IF('Blank - Request Form'!$F$7=\"CIFDN\",IF('Blank - Request Form'!N47=0,\"\",'Blank - Request Form'!N47),\"\"))","v":""},{"$f":"IF('Blank - Request Form'!$F$6=\"CIFDN\",IF(OR('Blank - Request Form'!F47=\"000\",'Blank - Request Form'!F47=0),\"\",'Blank - Request Form'!F47),IF('Blank - Request Form'!$F$7=\"CIFDN\",IF(OR('Blank - Request Form'!O47=\"000\",'Blank - Request Form'!O47=0),\"\",'Blank - Request Form'!O47),\"\"))","v":""},{"$f":"IF('Blank - Request Form'!$F$6=\"CIFDN\",IF(OR('Blank - Request Form'!G47=\"0\",'Blank - Request Form'!G47=\"00000\",'Blank - Request Form'!G47=0),\"\",'Blank - Request Form'!G47),IF('Blank - Request Form'!$F$7=\"CIFDN\",IF(OR('Blank - Request Form'!P47=\"0\",'Blank - Request Form'!P47=\"00000\",'Blank - Request Form'!P47=0),\"\",'Blank - Request Form'!P47),\"\"))","v":""},{"$f":"IF('Blank - Request Form'!$F$6=\"CIFDN\",IF(OR('Blank - Request Form'!H47=\"0\",'Blank - Request Form'!H47=\"00000\",'Blank - Request Form'!H47=0),\"\",'Blank - Request Form'!H47),IF('Blank - Request Form'!$F$7=\"CIFDN\",IF(OR('Blank - Request Form'!Q47=\"0\",'Blank - Request Form'!Q47=\"00000\",'Blank - Request Form'!Q47=0),\"\",'Blank - Request Form'!Q47),\"\"))","v":""},{"$f":"IF('Blank - Request Form'!$F$6=\"CIFDN\",IF(OR('Blank - Request Form'!I47=\"0\",'Blank - Request Form'!I47=\"00000\",'Blank - Request Form'!I47=0),\"\",'Blank - Request Form'!I47),IF('Blank - Request Form'!$F$7=\"CIFDN\",IF(OR('Blank - Request Form'!R47=\"0\",'Blank - Request Form'!R47=\"00000\",'Blank - Request Form'!R47=0),\"\",'Blank - Request Form'!R47),\"\"))","v":""},null,{"$f":"IF('Blank - Request Form'!$F$6=\"CIFDN\",IF('Blank - Request Form'!K47=0,\"\",'Blank - Request Form'!K47),IF('Blank - Request Form'!$F$7=\"CIFDN\",IF('Blank - Request Form'!T47=0,\"\",'Blank - Request Form'!T47),\"\"))","v":""},null,null,null,{"$f":"IF(M13<>\"\",'Blank - Request Form'!$M$2,\"\")","v":""},{"$f":"IF('Blank - Request Form'!$F$6=\"CIFDN\",IF('Blank - Request Form'!J47=0,\"\",'Blank - Request Form'!J47),IF('Blank - Request Form'!$F$7=\"CIFDN\",IF('Blank - Request Form'!S47=0,\"\",'Blank - Request Form'!S47),\"\"))","v":""},"",13]
[{"$f":"IF('Blank - Request Form'!$F$6=\"CIFDN\",IF('Blank - Request Form'!D48=0,\"\",'Blank - Request Form'!D48),IF('Blank - Request Form'!$F$7=\"CIFDN\",IF('Blank - Request Form'!M48=0,\"\",'Blank - Request Form'!M48),\"\"))","v":""},{"$f":"IF('Blank - Request Form'!$F$6=\"CIFDN\",IF('Blank - Request Form'!E48=0,\"\",'Blank - Request Form'!E48),IF('Blank - Request Form'!$F$7=\"CIFDN\",IF('Blank - Request Form'!N48=0,\"\",'Blank - Request Form'!N48),\"\"))","v":""},{"$f":"IF('Blank - Request Form'!$F$6=\"CIFDN\",IF(OR('Blank - Request Form'!F48=\"000\",'Blank - Request Form'!F48=0),\"\",'Blank - Request Form'!F48),IF('Blank - Request Form'!$F$7=\"CIFDN\",IF(OR('Blank - Request Form'!O48=\"000\",'Blank - Request Form'!O48=0),\"\",'Blank - Request Form'!O48),\"\"))","v":""},{"$f":"IF('Blank - Request Form'!$F$6=\"CIFDN\",IF(OR('Blank - Request Form'!G48=\"0\",'Blank - Request Form'!G48=\"00000\",'Blank - Request Form'!G48=0),\"\",'Blank - Request Form'!G48),IF('Blank - Request Form'!$F$7=\"CIFDN\",IF(OR('Blank - Request Form'!P48=\"0\",'Blank - Request Form'!P48=\"00000\",'Blank - Request Form'!P48=0),\"\",'Blank - Request Form'!P48),\"\"))","v":""},{"$f":"IF('Blank - Request Form'!$F$6=\"CIFDN\",IF(OR('Blank - Request Form'!H48=\"0\",'Blank - Request Form'!H48=\"00000\",'Blank - Request Form'!H48=0),\"\",'Blank - Request Form'!H48),IF('Blank - Request Form'!$F$7=\"CIFDN\",IF(OR('Blank - Request Form'!Q48=\"0\",'Blank - Request Form'!Q48=\"00000\",'Blank - Request Form'!Q48=0),\"\",'Blank - Request Form'!Q48),\"\"))","v":""},{"$f":"IF('Blank - Request Form'!$F$6=\"CIFDN\",IF(OR('Blank - Request Form'!I48=\"0\",'Blank - Request Form'!I48=\"00000\",'Blank - Request Form'!I48=0),\"\",'Blank - Request Form'!I48),IF('Blank - Request Form'!$F$7=\"CIFDN\",IF(OR('Blank - Request Form'!R48=\"0\",'Blank - Request Form'!R48=\"00000\",'Blank - Request Form'!R48=0),\"\",'Blank - Request Form'!R48),\"\"))","v":""},null,{"$f":"IF('Blank - Request Form'!$F$6=\"CIFDN\",IF('Blank - Request Form'!K48=0,\"\",'Blank - Request Form'!K48),IF('Blank - Request Form'!$F$7=\"CIFDN\",IF('Blank - Request Form'!T48=0,\"\",'Blank - Request Form'!T48),\"\"))","v":""},null,null,null,{"$f":"IF(M14<>\"\",'Blank - Request Form'!$M$2,\"\")","v":""},{"$f":"IF('Blank - Request Form'!$F$6=\"CIFDN\",IF('Blank - Request Form'!J48=0,\"\",'Blank - Request Form'!J48),IF('Blank - Request Form'!$F$7=\"CIFDN\",IF('Blank - Request Form'!S48=0,\"\",'Blank - Request Form'!S48),\"\"))","v":""},"",14]
[{"$f":"IF('Blank - Request Form'!$F$6=\"CIFDN\",IF('Blank - Request Form'!D49=0,\"\",'Blank - Request Form'!D49),IF('Blank - Request Form'!$F$7=\"CIFDN\",IF('Blank - Request Form'!M49=0,\"\",'Blank - Request Form'!M49),\"\"))","v":""},{"$f":"IF('Blank - Request Form'!$F$6=\"CIFDN\",IF('Blank - Request Form'!E49=0,\"\",'Blank - Request Form'!E49),IF('Blank - Request Form'!$F$7=\"CIFDN\",IF('Blank - Request Form'!N49=0,\"\",'Blank - Request Form'!N49),\"\"))","v":""},{"$f":"IF('Blank - Request Form'!$F$6=\"CIFDN\",IF(OR('Blank - Request Form'!F49=\"000\",'Blank - Request Form'!F49=0),\"\",'Blank - Request Form'!F49),IF('Blank - Request Form'!$F$7=\"CIFDN\",IF(OR('Blank - Request Form'!O49=\"000\",'Blank - Request Form'!O49=0),\"\",'Blank - Request Form'!O49),\"\"))","v":""},{"$f":"IF('Blank - Request Form'!$F$6=\"CIFDN\",IF(OR('Blank - Request Form'!G49=\"0\",'Blank - Request Form'!G49=\"00000\",'Blank - Request Form'!G49=0),\"\",'Blank - Request Form'!G49),IF('Blank - Request Form'!$F$7=\"CIFDN\",IF(OR('Blank - Request Form'!P49=\"0\",'Blank - Request Form'!P49=\"00000\",'Blank - Request Form'!P49=0),\"\",'Blank - Request Form'!P49),\"\"))","v":""},{"$f":"IF('Blank - Request Form'!$F$6=\"CIFDN\",IF(OR('Blank - Request Form'!H49=\"0\",'Blank - Request Form'!H49=\"00000\",'Blank - Request Form'!H49=0),\"\",'Blank - Request Form'!H49),IF('Blank - Request Form'!$F$7=\"CIFDN\",IF(OR('Blank - Request Form'!Q49=\"0\",'Blank - Request Form'!Q49=\"00000\",'Blank - Request Form'!Q49=0),\"\",'Blank - Request Form'!Q49),\"\"))","v":""},{"$f":"IF('Blank - Request Form'!$F$6=\"CIFDN\",IF(OR('Blank - Request Form'!I49=\"0\",'Blank - Request Form'!I49=\"00000\",'Blank - Request Form'!I49=0),\"\",'Blank - Request Form'!I49),IF('Blank - Request Form'!$F$7=\"CIFDN\",IF(OR('Blank - Request Form'!R49=\"0\",'Blank - Request Form'!R49=\"00000\",'Blank - Request Form'!R49=0),\"\",'Blank - Request Form'!R49),\"\"))","v":""},null,{"$f":"IF('Blank - Request Form'!$F$6=\"CIFDN\",IF('Blank - Request Form'!K49=0,\"\",'Blank - Request Form'!K49),IF('Blank - Request Form'!$F$7=\"CIFDN\",IF('Blank - Request Form'!T49=0,\"\",'Blank - Request Form'!T49),\"\"))","v":""},null,null,null,{"$f":"IF(M15<>\"\",'Blank - Request Form'!$M$2,\"\")","v":""},{"$f":"IF('Blank - Request Form'!$F$6=\"CIFDN\",IF('Blank - Request Form'!J49=0,\"\",'Blank - Request Form'!J49),IF('Blank - Request Form'!$F$7=\"CIFDN\",IF('Blank - Request Form'!S49=0,\"\",'Blank - Request Form'!S49),\"\"))","v":""},"",15]
[{"$f":"IF('Blank - Request Form'!$F$6=\"CIFDN\",IF('Blank - Request Form'!D50=0,\"\",'Blank - Request Form'!D50),IF('Blank - Request Form'!$F$7=\"CIFDN\",IF('Blank - Request Form'!M50=0,\"\",'Blank - Request Form'!M50),\"\"))","v":""},{"$f":"IF('Blank - Request Form'!$F$6=\"CIFDN\",IF('Blank - Request Form'!E50=0,\"\",'Blank - Request Form'!E50),IF('Blank - Request Form'!$F$7=\"CIFDN\",IF('Blank - Request Form'!N50=0,\"\",'Blank - Request Form'!N50),\"\"))","v":""},{"$f":"IF('Blank - Request Form'!$F$6=\"CIFDN\",IF(OR('Blank - Request Form'!F50=\"000\",'Blank - Request Form'!F50=0),\"\",'Blank - Request Form'!F50),IF('Blank - Request Form'!$F$7=\"CIFDN\",IF(OR('Blank - Request Form'!O50=\"000\",'Blank - Request Form'!O50=0),\"\",'Blank - Request Form'!O50),\"\"))","v":""},{"$f":"IF('Blank - Request Form'!$F$6=\"CIFDN\",IF(OR('Blank - Request Form'!G50=\"0\",'Blank - Request Form'!G50=\"00000\",'Blank - Request Form'!G50=0),\"\",'Blank - Request Form'!G50),IF('Blank - Request Form'!$F$7=\"CIFDN\",IF(OR('Blank - Request Form'!P50=\"0\",'Blank - Request Form'!P50=\"00000\",'Blank - Request Form'!P50=0),\"\",'Blank - Request Form'!P50),\"\"))","v":""},{"$f":"IF('Blank - Request Form'!$F$6=\"CIFDN\",IF(OR('Blank - Request Form'!H50=\"0\",'Blank - Request Form'!H50=\"00000\",'Blank - Request Form'!H50=0),\"\",'Blank - Request Form'!H50),IF('Blank - Request Form'!$F$7=\"CIFDN\",IF(OR('Blank - Request Form'!Q50=\"0\",'Blank - Request Form'!Q50=\"00000\",'Blank - Request Form'!Q50=0),\"\",'Blank - Request Form'!Q50),\"\"))","v":""},{"$f":"IF('Blank - Request Form'!$F$6=\"CIFDN\",IF(OR('Blank - Request Form'!I50=\"0\",'Blank - Request Form'!I50=\"00000\",'Blank - Request Form'!I50=0),\"\",'Blank - Request Form'!I50),IF('Blank - Request Form'!$F$7=\"CIFDN\",IF(OR('Blank - Request Form'!R50=\"0\",'Blank - Request Form'!R50=\"00000\",'Blank - Request Form'!R50=0),\"\",'Blank - Request Form'!R50),\"\"))","v":""},null,{"$f":"IF('Blank - Request Form'!$F$6=\"CIFDN\",IF('Blank - Request Form'!K50=0,\"\",'Blank - Request Form'!K50),IF('Blank - Request Form'!$F$7=\"CIFDN\",IF('Blank - Request Form'!T50=0,\"\",'Blank - Request Form'!T50),\"\"))","v":""},null,null,null,{"$f":"IF(M16<>\"\",'Blank - Request Form'!$M$2,\"\")","v":""},{"$f":"IF('Blank - Request Form'!$F$6=\"CIFDN\",IF('Blank - Request Form'!J50=0,\"\",'Blank - Request Form'!J50),IF('Blank - Request Form'!$F$7=\"CIFDN\",IF('Blank - Request Form'!S50=0,\"\",'Blank - Request Form'!S50),\"\"))","v":""},"",16]
[{"$f":"IF('Blank - Request Form'!$F$6=\"CIFDN\",IF('Blank - Request Form'!D51=0,\"\",'Blank - Request Form'!D51),IF('Blank - Request Form'!$F$7=\"CIFDN\",IF('Blank - Request Form'!M51=0,\"\",'Blank - Request Form'!M51),\"\"))","v":""},{"$f":"IF('Blank - Request Form'!$F$6=\"CIFDN\",IF('Blank - Request Form'!E51=0,\"\",'Blank - Request Form'!E51),IF('Blank - Request Form'!$F$7=\"CIFDN\",IF('Blank - Request Form'!N51=0,\"\",'Blank - Request Form'!N51),\"\"))","v":""},{"$f":"IF('Blank - Request Form'!$F$6=\"CIFDN\",IF(OR('Blank - Request Form'!F51=\"000\",'Blank - Request Form'!F51=0),\"\",'Blank - Request Form'!F51),IF('Blank - Request Form'!$F$7=\"CIFDN\",IF(OR('Blank - Request Form'!O51=\"000\",'Blank - Request Form'!O51=0),\"\",'Blank - Request Form'!O51),\"\"))","v":""},{"$f":"IF('Blank - Request Form'!$F$6=\"CIFDN\",IF(OR('Blank - Request Form'!G51=\"0\",'Blank - Request Form'!G51=\"00000\",'Blank - Request Form'!G51=0),\"\",'Blank - Request Form'!G51),IF('Blank - Request Form'!$F$7=\"CIFDN\",IF(OR('Blank - Request Form'!P51=\"0\",'Blank - Request Form'!P51=\"00000\",'Blank - Request Form'!P51=0),\"\",'Blank - Request Form'!P51),\"\"))","v":""},{"$f":"IF('Blank - Request Form'!$F$6=\"CIFDN\",IF(OR('Blank - Request Form'!H51=\"0\",'Blank - Request Form'!H51=\"00000\",'Blank - Request Form'!H51=0),\"\",'Blank - Request Form'!H51),IF('Blank - Request Form'!$F$7=\"CIFDN\",IF(OR('Blank - Request Form'!Q51=\"0\",'Blank - Request Form'!Q51=\"00000\",'Blank - Request Form'!Q51=0),\"\",'Blank - Request Form'!Q51),\"\"))","v":""},{"$f":"IF('Blank - Request Form'!$F$6=\"CIFDN\",IF(OR('Blank - Request Form'!I51=\"0\",'Blank - Request Form'!I51=\"00000\",'Blank - Request Form'!I51=0),\"\",'Blank - Request Form'!I51),IF('Blank - Request Form'!$F$7=\"CIFDN\",IF(OR('Blank - Request Form'!R51=\"0\",'Blank - Request Form'!R51=\"00000\",'Blank - Request Form'!R51=0),\"\",'Blank - Request Form'!R51),\"\"))","v":""},null,{"$f":"IF('Blank - Request Form'!$F$6=\"CIFDN\",IF('Blank - Request Form'!K51=0,\"\",'Blank - Request Form'!K51),IF('Blank - Request Form'!$F$7=\"CIFDN\",IF('Blank - Request Form'!T51=0,\"\",'Blank - Request Form'!T51),\"\"))","v":""},null,null,null,{"$f":"IF(M17<>\"\",'Blank - Request Form'!$M$2,\"\")","v":""},{"$f":"IF('Blank - Request Form'!$F$6=\"CIFDN\",IF('Blank - Request Form'!J51=0,\"\",'Blank - Request Form'!J51),IF('Blank - Request Form'!$F$7=\"CIFDN\",IF('Blank - Request Form'!S51=0,\"\",'Blank - Request Form'!S51),\"\"))","v":""},"",17]
[{"$f":"IF('Blank - Request Form'!$F$6=\"CIFDN\",IF('Blank - Request Form'!D52=0,\"\",'Blank - Request Form'!D52),IF('Blank - Request Form'!$F$7=\"CIFDN\",IF('Blank - Request Form'!M52=0,\"\",'Blank - Request Form'!M52),\"\"))","v":""},{"$f":"IF('Blank - Request Form'!$F$6=\"CIFDN\",IF('Blank - Request Form'!E52=0,\"\",'Blank - Request Form'!E52),IF('Blank - Request Form'!$F$7=\"CIFDN\",IF('Blank - Request Form'!N52=0,\"\",'Blank - Request Form'!N52),\"\"))","v":""},{"$f":"IF('Blank - Request Form'!$F$6=\"CIFDN\",IF(OR('Blank - Request Form'!F52=\"000\",'Blank - Request Form'!F52=0),\"\",'Blank - Request Form'!F52),IF('Blank - Request Form'!$F$7=\"CIFDN\",IF(OR('Blank - Request Form'!O52=\"000\",'Blank - Request Form'!O52=0),\"\",'Blank - Request Form'!O52),\"\"))","v":""},{"$f":"IF('Blank - Request Form'!$F$6=\"CIFDN\",IF(OR('Blank - Request Form'!G52=\"0\",'Blank - Request Form'!G52=\"00000\",'Blank - Request Form'!G52=0),\"\",'Blank - Request Form'!G52),IF('Blank - Request Form'!$F$7=\"CIFDN\",IF(OR('Blank - Request Form'!P52=\"0\",'Blank - Request Form'!P52=\"00000\",'Blank - Request Form'!P52=0),\"\",'Blank - Request Form'!P52),\"\"))","v":""},{"$f":"IF('Blank - Request Form'!$F$6=\"CIFDN\",IF(OR('Blank - Request Form'!H52=\"0\",'Blank - Request Form'!H52=\"00000\",'Blank - Request Form'!H52=0),\"\",'Blank - Request Form'!H52),IF('Blank - Request Form'!$F$7=\"CIFDN\",IF(OR('Blank - Request Form'!Q52=\"0\",'Blank - Request Form'!Q52=\"00000\",'Blank - Request Form'!Q52=0),\"\",'Blank - Request Form'!Q52),\"\"))","v":""},{"$f":"IF('Blank - Request Form'!$F$6=\"CIFDN\",IF(OR('Blank - Request Form'!I52=\"0\",'Blank - Request Form'!I52=\"00000\",'Blank - Request Form'!I52=0),\"\",'Blank - Request Form'!I52),IF('Blank - Request Form'!$F$7=\"CIFDN\",IF(OR('Blank - Request Form'!R52=\"0\",'Blank - Request Form'!R52=\"00000\",'Blank - Request Form'!R52=0),\"\",'Blank - Request Form'!R52),\"\"))","v":""},null,{"$f":"IF('Blank - Request Form'!$F$6=\"CIFDN\",IF('Blank - Request Form'!K52=0,\"\",'Blank - Request Form'!K52),IF('Blank - Request Form'!$F$7=\"CIFDN\",IF('Blank - Request Form'!T52=0,\"\",'Blank - Request Form'!T52),\"\"))","v":""},null,null,null,{"$f":"IF(M18<>\"\",'Blank - Request Form'!$M$2,\"\")","v":""},{"$f":"IF('Blank - Request Form'!$F$6=\"CIFDN\",IF('Blank - Request Form'!J52=0,\"\",'Blank - Request Form'!J52),IF('Blank - Request Form'!$F$7=\"CIFDN\",IF('Blank - Request Form'!S52=0,\"\",'Blank - Request Form'!S52),\"\"))","v":""},"",18]
[{"$f":"IF('Blank - Request Form'!$F$6=\"CIFDN\",IF('Blank - Request Form'!D53=0,\"\",'Blank - Request Form'!D53),IF('Blank - Request Form'!$F$7=\"CIFDN\",IF('Blank - Request Form'!M53=0,\"\",'Blank - Request Form'!M53),\"\"))","v":""},{"$f":"IF('Blank - Request Form'!$F$6=\"CIFDN\",IF('Blank - Request Form'!E53=0,\"\",'Blank - Request Form'!E53),IF('Blank - Request Form'!$F$7=\"CIFDN\",IF('Blank - Request Form'!N53=0,\"\",'Blank - Request Form'!N53),\"\"))","v":""},{"$f":"IF('Blank - Request Form'!$F$6=\"CIFDN\",IF(OR('Blank - Request Form'!F53=\"000\",'Blank - Request Form'!F53=0),\"\",'Blank - Request Form'!F53),IF('Blank - Request Form'!$F$7=\"CIFDN\",IF(OR('Blank - Request Form'!O53=\"000\",'Blank - Request Form'!O53=0),\"\",'Blank - Request Form'!O53),\"\"))","v":""},{"$f":"IF('Blank - Request Form'!$F$6=\"CIFDN\",IF(OR('Blank - Request Form'!G53=\"0\",'Blank - Request Form'!G53=\"00000\",'Blank - Request Form'!G53=0),\"\",'Blank - Request Form'!G53),IF('Blank - Request Form'!$F$7=\"CIFDN\",IF(OR('Blank - Request Form'!P53=\"0\",'Blank - Request Form'!P53=\"00000\",'Blank - Request Form'!P53=0),\"\",'Blank - Request Form'!P53),\"\"))","v":""},{"$f":"IF('Blank - Request Form'!$F$6=\"CIFDN\",IF(OR('Blank - Request Form'!H53=\"0\",'Blank - Request Form'!H53=\"00000\",'Blank - Request Form'!H53=0),\"\",'Blank - Request Form'!H53),IF('Blank - Request Form'!$F$7=\"CIFDN\",IF(OR('Blank - Request Form'!Q53=\"0\",'Blank - Request Form'!Q53=\"00000\",'Blank - Request Form'!Q53=0),\"\",'Blank - Request Form'!Q53),\"\"))","v":""},{"$f":"IF('Blank - Request Form'!$F$6=\"CIFDN\",IF(OR('Blank - Request Form'!I53=\"0\",'Blank - Request Form'!I53=\"00000\",'Blank - Request Form'!I53=0),\"\",'Blank - Request Form'!I53),IF('Blank - Request Form'!$F$7=\"CIFDN\",IF(OR('Blank - Request Form'!R53=\"0\",'Blank - Request Form'!R53=\"00000\",'Blank - Request Form'!R53=0),\"\",'Blank - Request Form'!R53),\"\"))","v":""},null,{"$f":"IF('Blank - Request Form'!$F$6=\"CIFDN\",IF('Blank - Request Form'!K53=0,\"\",'Blank - Request Form'!K53),IF('Blank - Request Form'!$F$7=\"CIFDN\",IF('Blank - Request Form'!T53=0,\"\",'Blank - Request Form'!T53),\"\"))","v":""},null,null,null,{"$f":"IF(M19<>\"\",'Blank - Request Form'!$M$2,\"\")","v":""},{"$f":"IF('Blank - Request Form'!$F$6=\"CIFDN\",IF('Blank - Request Form'!J53=0,\"\",'Blank - Request Form'!J53),IF('Blank - Request Form'!$F$7=\"CIFDN\",IF('Blank - Request Form'!S53=0,\"\",'Blank - Request Form'!S53),\"\"))","v":""},"",19]
[{"$f":"IF('Blank - Request Form'!$F$6=\"CIFDN\",IF('Blank - Request Form'!D54=0,\"\",'Blank - Request Form'!D54),IF('Blank - Request Form'!$F$7=\"CIFDN\",IF('Blank - Request Form'!M54=0,\"\",'Blank - Request Form'!M54),\"\"))","v":""},{"$f":"IF('Blank - Request Form'!$F$6=\"CIFDN\",IF('Blank - Request Form'!E54=0,\"\",'Blank - Request Form'!E54),IF('Blank - Request Form'!$F$7=\"CIFDN\",IF('Blank - Request Form'!N54=0,\"\",'Blank - Request Form'!N54),\"\"))","v":""},{"$f":"IF('Blank - Request Form'!$F$6=\"CIFDN\",IF(OR('Blank - Request Form'!F54=\"000\",'Blank - Request Form'!F54=0),\"\",'Blank - Request Form'!F54),IF('Blank - Request Form'!$F$7=\"CIFDN\",IF(OR('Blank - Request Form'!O54=\"000\",'Blank - Request Form'!O54=0),\"\",'Blank - Request Form'!O54),\"\"))","v":""},{"$f":"IF('Blank - Request Form'!$F$6=\"CIFDN\",IF(OR('Blank - Request Form'!G54=\"0\",'Blank - Request Form'!G54=\"00000\",'Blank - Request Form'!G54=0),\"\",'Blank - Request Form'!G54),IF('Blank - Request Form'!$F$7=\"CIFDN\",IF(OR('Blank - Request Form'!P54=\"0\",'Blank - Request Form'!P54=\"00000\",'Blank - Request Form'!P54=0),\"\",'Blank - Request Form'!P54),\"\"))","v":""},{"$f":"IF('Blank - Request Form'!$F$6=\"CIFDN\",IF(OR('Blank - Request Form'!H54=\"0\",'Blank - Request Form'!H54=\"00000\",'Blank - Request Form'!H54=0),\"\",'Blank - Request Form'!H54),IF('Blank - Request Form'!$F$7=\"CIFDN\",IF(OR('Blank - Request Form'!Q54=\"0\",'Blank - Request Form'!Q54=\"00000\",'Blank - Request Form'!Q54=0),\"\",'Blank - Request Form'!Q54),\"\"))","v":""},{"$f":"IF('Blank - Request Form'!$F$6=\"CIFDN\",IF(OR('Blank - Request Form'!I54=\"0\",'Blank - Request Form'!I54=\"00000\",'Blank - Request Form'!I54=0),\"\",'Blank - Request Form'!I54),IF('Blank - Request Form'!$F$7=\"CIFDN\",IF(OR('Blank - Request Form'!R54=\"0\",'Blank - Request Form'!R54=\"00000\",'Blank - Request Form'!R54=0),\"\",'Blank - Request Form'!R54),\"\"))","v":""},null,{"$f":"IF('Blank - Request Form'!$F$6=\"CIFDN\",IF('Blank - Request Form'!K54=0,\"\",'Blank - Request Form'!K54),IF('Blank - Request Form'!$F$7=\"CIFDN\",IF('Blank - Request Form'!T54=0,\"\",'Blank - Request Form'!T54),\"\"))","v":""},null,null,null,{"$f":"IF(M20<>\"\",'Blank - Request Form'!$M$2,\"\")","v":""},{"$f":"IF('Blank - Request Form'!$F$6=\"CIFDN\",IF('Blank - Request Form'!J54=0,\"\",'Blank - Request Form'!J54),IF('Blank - Request Form'!$F$7=\"CIFDN\",IF('Blank - Request Form'!S54=0,\"\",'Blank - Request Form'!S54),\"\"))","v":""},"",20]
[{"$f":"IF('Blank - Request Form'!$F$6=\"CIFDN\",IF('Blank - Request Form'!D55=0,\"\",'Blank - Request Form'!D55),IF('Blank - Request Form'!$F$7=\"CIFDN\",IF('Blank - Request Form'!M55=0,\"\",'Blank - Request Form'!M55),\"\"))","v":""},{"$f":"IF('Blank - Request Form'!$F$6=\"CIFDN\",IF('Blank - Request Form'!E55=0,\"\",'Blank - Request Form'!E55),IF('Blank - Request Form'!$F$7=\"CIFDN\",IF('Blank - Request Form'!N55=0,\"\",'Blank - Request Form'!N55),\"\"))","v":""},{"$f":"IF('Blank - Request Form'!$F$6=\"CIFDN\",IF(OR('Blank - Request Form'!F55=\"000\",'Blank - Request Form'!F55=0),\"\",'Blank - Request Form'!F55),IF('Blank - Request Form'!$F$7=\"CIFDN\",IF(OR('Blank - Request Form'!O55=\"000\",'Blank - Request Form'!O55=0),\"\",'Blank - Request Form'!O55),\"\"))","v":""},{"$f":"IF('Blank - Request Form'!$F$6=\"CIFDN\",IF(OR('Blank - Request Form'!G55=\"0\",'Blank - Request Form'!G55=\"00000\",'Blank - Request Form'!G55=0),\"\",'Blank - Request Form'!G55),IF('Blank - Request Form'!$F$7=\"CIFDN\",IF(OR('Blank - Request Form'!P55=\"0\",'Blank - Request Form'!P55=\"00000\",'Blank - Request Form'!P55=0),\"\",'Blank - Request Form'!P55),\"\"))","v":""},{"$f":"IF('Blank - Request Form'!$F$6=\"CIFDN\",IF(OR('Blank - Request Form'!H55=\"0\",'Blank - Request Form'!H55=\"00000\",'Blank - Request Form'!H55=0),\"\",'Blank - Request Form'!H55),IF('Blank - Request Form'!$F$7=\"CIFDN\",IF(OR('Blank - Request Form'!Q55=\"0\",'Blank - Request Form'!Q55=\"00000\",'Blank - Request Form'!Q55=0),\"\",'Blank - Request Form'!Q55),\"\"))","v":""},{"$f":"IF('Blank - Request Form'!$F$6=\"CIFDN\",IF(OR('Blank - Request Form'!I55=\"0\",'Blank - Request Form'!I55=\"00000\",'Blank - Request Form'!I55=0),\"\",'Blank - Request Form'!I55),IF('Blank - Request Form'!$F$7=\"CIFDN\",IF(OR('Blank - Request Form'!R55=\"0\",'Blank - Request Form'!R55=\"00000\",'Blank - Request Form'!R55=0),\"\",'Blank - Request Form'!R55),\"\"))","v":""},null,{"$f":"IF('Blank - Request Form'!$F$6=\"CIFDN\",IF('Blank - Request Form'!K55=0,\"\",'Blank - Request Form'!K55),IF('Blank - Request Form'!$F$7=\"CIFDN\",IF('Blank - Request Form'!T55=0,\"\",'Blank - Request Form'!T55),\"\"))","v":""},null,null,null,{"$f":"IF(M21<>\"\",'Blank - Request Form'!$M$2,\"\")","v":""},{"$f":"IF('Blank - Request Form'!$F$6=\"CIFDN\",IF('Blank - Request Form'!J55=0,\"\",'Blank - Request Form'!J55),IF('Blank - Request Form'!$F$7=\"CIFDN\",IF('Blank - Request Form'!S55=0,\"\",'Blank - Request Form'!S55),\"\"))","v":""},"",21]
[{"$f":"IF('Blank - Request Form'!$F$6=\"CIFDN\",IF('Blank - Request Form'!D56=0,\"\",'Blank - Request Form'!D56),IF('Blank - Request Form'!$F$7=\"CIFDN\",IF('Blank - Request Form'!M56=0,\"\",'Blank - Request Form'!M56),\"\"))","v":""},{"$f":"IF('Blank - Request Form'!$F$6=\"CIFDN\",IF('Blank - Request Form'!E56=0,\"\",'Blank - Request Form'!E56),IF('Blank - Request Form'!$F$7=\"CIFDN\",IF('Blank - Request Form'!N56=0,\"\",'Blank - Request Form'!N56),\"\"))","v":""},{"$f":"IF('Blank - Request Form'!$F$6=\"CIFDN\",IF(OR('Blank - Request Form'!F56=\"000\",'Blank - Request Form'!F56=0),\"\",'Blank - Request Form'!F56),IF('Blank - Request Form'!$F$7=\"CIFDN\",IF(OR('Blank - Request Form'!O56=\"000\",'Blank - Request Form'!O56=0),\"\",'Blank - Request Form'!O56),\"\"))","v":""},{"$f":"IF('Blank - Request Form'!$F$6=\"CIFDN\",IF(OR('Blank - Request Form'!G56=\"0\",'Blank - Request Form'!G56=\"00000\",'Blank - Request Form'!G56=0),\"\",'Blank - Request Form'!G56),IF('Blank - Request Form'!$F$7=\"CIFDN\",IF(OR('Blank - Request Form'!P56=\"0\",'Blank - Request Form'!P56=\"00000\",'Blank - Request Form'!P56=0),\"\",'Blank - Request Form'!P56),\"\"))","v":""},{"$f":"IF('Blank - Request Form'!$F$6=\"CIFDN\",IF(OR('Blank - Request Form'!H56=\"0\",'Blank - Request Form'!H56=\"00000\",'Blank - Request Form'!H56=0),\"\",'Blank - Request Form'!H56),IF('Blank - Request Form'!$F$7=\"CIFDN\",IF(OR('Blank - Request Form'!Q56=\"0\",'Blank - Request Form'!Q56=\"00000\",'Blank - Request Form'!Q56=0),\"\",'Blank - Request Form'!Q56),\"\"))","v":""},{"$f":"IF('Blank - Request Form'!$F$6=\"CIFDN\",IF(OR('Blank - Request Form'!I56=\"0\",'Blank - Request Form'!I56=\"00000\",'Blank - Request Form'!I56=0),\"\",'Blank - Request Form'!I56),IF('Blank - Request Form'!$F$7=\"CIFDN\",IF(OR('Blank - Request Form'!R56=\"0\",'Blank - Request Form'!R56=\"00000\",'Blank - Request Form'!R56=0),\"\",'Blank - Request Form'!R56),\"\"))","v":""},null,{"$f":"IF('Blank - Request Form'!$F$6=\"CIFDN\",IF('Blank - Request Form'!K56=0,\"\",'Blank - Request Form'!K56),IF('Blank - Request Form'!$F$7=\"CIFDN\",IF('Blank - Request Form'!T56=0,\"\",'Blank - Request Form'!T56),\"\"))","v":""},null,null,null,{"$f":"IF(M22<>\"\",'Blank - Request Form'!$M$2,\"\")","v":""},{"$f":"IF('Blank - Request Form'!$F$6=\"CIFDN\",IF('Blank - Request Form'!J56=0,\"\",'Blank - Request Form'!J56),IF('Blank - Request Form'!$F$7=\"CIFDN\",IF('Blank - Request Form'!S56=0,\"\",'Blank - Request Form'!S56),\"\"))","v":""},"",22]
[{"$f":"IF('Blank - Request Form'!$F$6=\"CIFDN\",IF('Blank - Request Form'!D57=0,\"\",'Blank - Request Form'!D57),IF('Blank - Request Form'!$F$7=\"CIFDN\",IF('Blank - Request Form'!M57=0,\"\",'Blank - Request Form'!M57),\"\"))","v":""},{"$f":"IF('Blank - Request Form'!$F$6=\"CIFDN\",IF('Blank - Request Form'!E57=0,\"\",'Blank - Request Form'!E57),IF('Blank - Request Form'!$F$7=\"CIFDN\",IF('Blank - Request Form'!N57=0,\"\",'Blank - Request Form'!N57),\"\"))","v":""},{"$f":"IF('Blank - Request Form'!$F$6=\"CIFDN\",IF(OR('Blank - Request Form'!F57=\"000\",'Blank - Request Form'!F57=0),\"\",'Blank - Request Form'!F57),IF('Blank - Request Form'!$F$7=\"CIFDN\",IF(OR('Blank - Request Form'!O57=\"000\",'Blank - Request Form'!O57=0),\"\",'Blank - Request Form'!O57),\"\"))","v":""},{"$f":"IF('Blank - Request Form'!$F$6=\"CIFDN\",IF(OR('Blank - Request Form'!G57=\"0\",'Blank - Request Form'!G57=\"00000\",'Blank - Request Form'!G57=0),\"\",'Blank - Request Form'!G57),IF('Blank - Request Form'!$F$7=\"CIFDN\",IF(OR('Blank - Request Form'!P57=\"0\",'Blank - Request Form'!P57=\"00000\",'Blank - Request Form'!P57=0),\"\",'Blank - Request Form'!P57),\"\"))","v":""},{"$f":"IF('Blank - Request Form'!$F$6=\"CIFDN\",IF(OR('Blank - Request Form'!H57=\"0\",'Blank - Request Form'!H57=\"00000\",'Blank - Request Form'!H57=0),\"\",'Blank - Request Form'!H57),IF('Blank - Request Form'!$F$7=\"CIFDN\",IF(OR('Blank - Request Form'!Q57=\"0\",'Blank - Request Form'!Q57=\"00000\",'Blank - Request Form'!Q57=0),\"\",'Blank - Request Form'!Q57),\"\"))","v":""},{"$f":"IF('Blank - Request Form'!$F$6=\"CIFDN\",IF(OR('Blank - Request Form'!I57=\"0\",'Blank - Request Form'!I57=\"00000\",'Blank - Request Form'!I57=0),\"\",'Blank - Request Form'!I57),IF('Blank - Request Form'!$F$7=\"CIFDN\",IF(OR('Blank - Request Form'!R57=\"0\",'Blank - Request Form'!R57=\"00000\",'Blank - Request Form'!R57=0),\"\",'Blank - Request Form'!R57),\"\"))","v":""},null,{"$f":"IF('Blank - Request Form'!$F$6=\"CIFDN\",IF('Blank - Request Form'!K57=0,\"\",'Blank - Request Form'!K57),IF('Blank - Request Form'!$F$7=\"CIFDN\",IF('Blank - Request Form'!T57=0,\"\",'Blank - Request Form'!T57),\"\"))","v":""},null,null,null,{"$f":"IF(M23<>\"\",'Blank - Request Form'!$M$2,\"\")","v":""},{"$f":"IF('Blank - Request Form'!$F$6=\"CIFDN\",IF('Blank - Request Form'!J57=0,\"\",'Blank - Request Form'!J57),IF('Blank - Request Form'!$F$7=\"CIFDN\",IF('Blank - Request Form'!S57=0,\"\",'Blank - Request Form'!S57),\"\"))","v":""},"",23]
[{"$f":"IF('Blank - Request Form'!$F$6=\"CIFDN\",IF('Blank - Request Form'!D58=0,\"\",'Blank - Request Form'!D58),IF('Blank - Request Form'!$F$7=\"CIFDN\",IF('Blank - Request Form'!M58=0,\"\",'Blank - Request Form'!M58),\"\"))","v":""},{"$f":"IF('Blank - Request Form'!$F$6=\"CIFDN\",IF('Blank - Request Form'!E58=0,\"\",'Blank - Request Form'!E58),IF('Blank - Request Form'!$F$7=\"CIFDN\",IF('Blank - Request Form'!N58=0,\"\",'Blank - Request Form'!N58),\"\"))","v":""},{"$f":"IF('Blank - Request Form'!$F$6=\"CIFDN\",IF(OR('Blank - Request Form'!F58=\"000\",'Blank - Request Form'!F58=0),\"\",'Blank - Request Form'!F58),IF('Blank - Request Form'!$F$7=\"CIFDN\",IF(OR('Blank - Request Form'!O58=\"000\",'Blank - Request Form'!O58=0),\"\",'Blank - Request Form'!O58),\"\"))","v":""},{"$f":"IF('Blank - Request Form'!$F$6=\"CIFDN\",IF(OR('Blank - Request Form'!G58=\"0\",'Blank - Request Form'!G58=\"00000\",'Blank - Request Form'!G58=0),\"\",'Blank - Request Form'!G58),IF('Blank - Request Form'!$F$7=\"CIFDN\",IF(OR('Blank - Request Form'!P58=\"0\",'Blank - Request Form'!P58=\"00000\",'Blank - Request Form'!P58=0),\"\",'Blank - Request Form'!P58),\"\"))","v":""},{"$f":"IF('Blank - Request Form'!$F$6=\"CIFDN\",IF(OR('Blank - Request Form'!H58=\"0\",'Blank - Request Form'!H58=\"00000\",'Blank - Request Form'!H58=0),\"\",'Blank - Request Form'!H58),IF('Blank - Request Form'!$F$7=\"CIFDN\",IF(OR('Blank - Request Form'!Q58=\"0\",'Blank - Request Form'!Q58=\"00000\",'Blank - Request Form'!Q58=0),\"\",'Blank - Request Form'!Q58),\"\"))","v":""},{"$f":"IF('Blank - Request Form'!$F$6=\"CIFDN\",IF(OR('Blank - Request Form'!I58=\"0\",'Blank - Request Form'!I58=\"00000\",'Blank - Request Form'!I58=0),\"\",'Blank - Request Form'!I58),IF('Blank - Request Form'!$F$7=\"CIFDN\",IF(OR('Blank - Request Form'!R58=\"0\",'Blank - Request Form'!R58=\"00000\",'Blank - Request Form'!R58=0),\"\",'Blank - Request Form'!R58),\"\"))","v":""},null,{"$f":"IF('Blank - Request Form'!$F$6=\"CIFDN\",IF('Blank - Request Form'!K58=0,\"\",'Blank - Request Form'!K58),IF('Blank - Request Form'!$F$7=\"CIFDN\",IF('Blank - Request Form'!T58=0,\"\",'Blank - Request Form'!T58),\"\"))","v":""},null,null,null,{"$f":"IF(M24<>\"\",'Blank - Request Form'!$M$2,\"\")","v":""},{"$f":"IF('Blank - Request Form'!$F$6=\"CIFDN\",IF('Blank - Request Form'!J58=0,\"\",'Blank - Request Form'!J58),IF('Blank - Request Form'!$F$7=\"CIFDN\",IF('Blank - Request Form'!S58=0,\"\",'Blank - Request Form'!S58),\"\"))","v":""},"",24]
[{"$f":"IF('Blank - Request Form'!$F$6=\"CIFDN\",IF('Blank - Request Form'!D59=0,\"\",'Blank - Request Form'!D59),IF('Blank - Request Form'!$F$7=\"CIFDN\",IF('Blank - Request Form'!M59=0,\"\",'Blank - Request Form'!M59),\"\"))","v":""},{"$f":"IF('Blank - Request Form'!$F$6=\"CIFDN\",IF('Blank - Request Form'!E59=0,\"\",'Blank - Request Form'!E59),IF('Blank - Request Form'!$F$7=\"CIFDN\",IF('Blank - Request Form'!N59=0,\"\",'Blank - Request Form'!N59),\"\"))","v":""},{"$f":"IF('Blank - Request Form'!$F$6=\"CIFDN\",IF(OR('Blank - Request Form'!F59=\"000\",'Blank - Request Form'!F59=0),\"\",'Blank - Request Form'!F59),IF('Blank - Request Form'!$F$7=\"CIFDN\",IF(OR('Blank - Request Form'!O59=\"000\",'Blank - Request Form'!O59=0),\"\",'Blank - Request Form'!O59),\"\"))","v":""},{"$f":"IF('Blank - Request Form'!$F$6=\"CIFDN\",IF(OR('Blank - Request Form'!G59=\"0\",'Blank - Request Form'!G59=\"00000\",'Blank - Request Form'!G59=0),\"\",'Blank - Request Form'!G59),IF('Blank - Request Form'!$F$7=\"CIFDN\",IF(OR('Blank - Request Form'!P59=\"0\",'Blank - Request Form'!P59=\"00000\",'Blank - Request Form'!P59=0),\"\",'Blank - Request Form'!P59),\"\"))","v":""},{"$f":"IF('Blank - Request Form'!$F$6=\"CIFDN\",IF(OR('Blank - Request Form'!H59=\"0\",'Blank - Request Form'!H59=\"00000\",'Blank - Request Form'!H59=0),\"\",'Blank - Request Form'!H59),IF('Blank - Request Form'!$F$7=\"CIFDN\",IF(OR('Blank - Request Form'!Q59=\"0\",'Blank - Request Form'!Q59=\"00000\",'Blank - Request Form'!Q59=0),\"\",'Blank - Request Form'!Q59),\"\"))","v":""},{"$f":"IF('Blank - Request Form'!$F$6=\"CIFDN\",IF(OR('Blank - Request Form'!I59=\"0\",'Blank - Request Form'!I59=\"00000\",'Blank - Request Form'!I59=0),\"\",'Blank - Request Form'!I59),IF('Blank - Request Form'!$F$7=\"CIFDN\",IF(OR('Blank - Request Form'!R59=\"0\",'Blank - Request Form'!R59=\"00000\",'Blank - Request Form'!R59=0),\"\",'Blank - Request Form'!R59),\"\"))","v":""},null,{"$f":"IF('Blank - Request Form'!$F$6=\"CIFDN\",IF('Blank - Request Form'!K59=0,\"\",'Blank - Request Form'!K59),IF('Blank - Request Form'!$F$7=\"CIFDN\",IF('Blank - Request Form'!T59=0,\"\",'Blank - Request Form'!T59),\"\"))","v":""},null,null,null,{"$f":"IF(M25<>\"\",'Blank - Request Form'!$M$2,\"\")","v":""},{"$f":"IF('Blank - Request Form'!$F$6=\"CIFDN\",IF('Blank - Request Form'!J59=0,\"\",'Blank - Request Form'!J59),IF('Blank - Request Form'!$F$7=\"CIFDN\",IF('Blank - Request Form'!S59=0,\"\",'Blank - Request Form'!S59),\"\"))","v":""},"",25]
[{"$f":"IF('Blank - Request Form'!$F$6=\"CIFDN\",IF('Blank - Request Form'!D60=0,\"\",'Blank - Request Form'!D60),IF('Blank - Request Form'!$F$7=\"CIFDN\",IF('Blank - Request Form'!M60=0,\"\",'Blank - Request Form'!M60),\"\"))","v":""},{"$f":"IF('Blank - Request Form'!$F$6=\"CIFDN\",IF('Blank - Request Form'!E60=0,\"\",'Blank - Request Form'!E60),IF('Blank - Request Form'!$F$7=\"CIFDN\",IF('Blank - Request Form'!N60=0,\"\",'Blank - Request Form'!N60),\"\"))","v":""},{"$f":"IF('Blank - Request Form'!$F$6=\"CIFDN\",IF(OR('Blank - Request Form'!F60=\"000\",'Blank - Request Form'!F60=0),\"\",'Blank - Request Form'!F60),IF('Blank - Request Form'!$F$7=\"CIFDN\",IF(OR('Blank - Request Form'!O60=\"000\",'Blank - Request Form'!O60=0),\"\",'Blank - Request Form'!O60),\"\"))","v":""},{"$f":"IF('Blank - Request Form'!$F$6=\"CIFDN\",IF(OR('Blank - Request Form'!G60=\"0\",'Blank - Request Form'!G60=\"00000\",'Blank - Request Form'!G60=0),\"\",'Blank - Request Form'!G60),IF('Blank - Request Form'!$F$7=\"CIFDN\",IF(OR('Blank - Request Form'!P60=\"0\",'Blank - Request Form'!P60=\"00000\",'Blank - Request Form'!P60=0),\"\",'Blank - Request Form'!P60),\"\"))","v":""},{"$f":"IF('Blank - Request Form'!$F$6=\"CIFDN\",IF(OR('Blank - Request Form'!H60=\"0\",'Blank - Request Form'!H60=\"00000\",'Blank - Request Form'!H60=0),\"\",'Blank - Request Form'!H60),IF('Blank - Request Form'!$F$7=\"CIFDN\",IF(OR('Blank - Request Form'!Q60=\"0\",'Blank - Request Form'!Q60=\"00000\",'Blank - Request Form'!Q60=0),\"\",'Blank - Request Form'!Q60),\"\"))","v":""},{"$f":"IF('Blank - Request Form'!$F$6=\"CIFDN\",IF(OR('Blank - Request Form'!I60=\"0\",'Blank - Request Form'!I60=\"00000\",'Blank - Request Form'!I60=0),\"\",'Blank - Request Form'!I60),IF('Blank - Request Form'!$F$7=\"CIFDN\",IF(OR('Blank - Request Form'!R60=\"0\",'Blank - Request Form'!R60=\"00000\",'Blank - Request Form'!R60=0),\"\",'Blank - Request Form'!R60),\"\"))","v":""},null,{"$f":"IF('Blank - Request Form'!$F$6=\"CIFDN\",IF('Blank - Request Form'!K60=0,\"\",'Blank - Request Form'!K60),IF('Blank - Request Form'!$F$7=\"CIFDN\",IF('Blank - Request Form'!T60=0,\"\",'Blank - Request Form'!T60),\"\"))","v":""},null,null,null,{"$f":"IF(M26<>\"\",'Blank - Request Form'!$M$2,\"\")","v":""},{"$f":"IF('Blank - Request Form'!$F$6=\"CIFDN\",IF('Blank - Request Form'!J60=0,\"\",'Blank - Request Form'!J60),IF('Blank - Request Form'!$F$7=\"CIFDN\",IF('Blank - Request Form'!S60=0,\"\",'Blank - Request Form'!S60),\"\"))","v":""},"",26]
[{"$f":"IF('Blank - Request Form'!$F$6=\"CIFDN\",IF('Blank - Request Form'!D61=0,\"\",'Blank - Request Form'!D61),IF('Blank - Request Form'!$F$7=\"CIFDN\",IF('Blank - Request Form'!M61=0,\"\",'Blank - Request Form'!M61),\"\"))","v":""},{"$f":"IF('Blank - Request Form'!$F$6=\"CIFDN\",IF('Blank - Request Form'!E61=0,\"\",'Blank - Request Form'!E61),IF('Blank - Request Form'!$F$7=\"CIFDN\",IF('Blank - Request Form'!N61=0,\"\",'Blank - Request Form'!N61),\"\"))","v":""},{"$f":"IF('Blank - Request Form'!$F$6=\"CIFDN\",IF(OR('Blank - Request Form'!F61=\"000\",'Blank - Request Form'!F61=0),\"\",'Blank - Request Form'!F61),IF('Blank - Request Form'!$F$7=\"CIFDN\",IF(OR('Blank - Request Form'!O61=\"000\",'Blank - Request Form'!O61=0),\"\",'Blank - Request Form'!O61),\"\"))","v":""},{"$f":"IF('Blank - Request Form'!$F$6=\"CIFDN\",IF(OR('Blank - Request Form'!G61=\"0\",'Blank - Request Form'!G61=\"00000\",'Blank - Request Form'!G61=0),\"\",'Blank - Request Form'!G61),IF('Blank - Request Form'!$F$7=\"CIFDN\",IF(OR('Blank - Request Form'!P61=\"0\",'Blank - Request Form'!P61=\"00000\",'Blank - Request Form'!P61=0),\"\",'Blank - Request Form'!P61),\"\"))","v":""},{"$f":"IF('Blank - Request Form'!$F$6=\"CIFDN\",IF(OR('Blank - Request Form'!H61=\"0\",'Blank - Request Form'!H61=\"00000\",'Blank - Request Form'!H61=0),\"\",'Blank - Request Form'!H61),IF('Blank - Request Form'!$F$7=\"CIFDN\",IF(OR('Blank - Request Form'!Q61=\"0\",'Blank - Request Form'!Q61=\"00000\",'Blank - Request Form'!Q61=0),\"\",'Blank - Request Form'!Q61),\"\"))","v":""},{"$f":"IF('Blank - Request Form'!$F$6=\"CIFDN\",IF(OR('Blank - Request Form'!I61=\"0\",'Blank - Request Form'!I61=\"00000\",'Blank - Request Form'!I61=0),\"\",'Blank - Request Form'!I61),IF('Blank - Request Form'!$F$7=\"CIFDN\",IF(OR('Blank - Request Form'!R61=\"0\",'Blank - Request Form'!R61=\"00000\",'Blank - Request Form'!R61=0),\"\",'Blank - Request Form'!R61),\"\"))","v":""},null,{"$f":"IF('Blank - Request Form'!$F$6=\"CIFDN\",IF('Blank - Request Form'!K61=0,\"\",'Blank - Request Form'!K61),IF('Blank - Request Form'!$F$7=\"CIFDN\",IF('Blank - Request Form'!T61=0,\"\",'Blank - Request Form'!T61),\"\"))","v":""},null,null,null,{"$f":"IF(M27<>\"\",'Blank - Request Form'!$M$2,\"\")","v":""},{"$f":"IF('Blank - Request Form'!$F$6=\"CIFDN\",IF('Blank - Request Form'!J61=0,\"\",'Blank - Request Form'!J61),IF('Blank - Request Form'!$F$7=\"CIFDN\",IF('Blank - Request Form'!S61=0,\"\",'Blank - Request Form'!S61),\"\"))","v":""},"",27]
[{"$f":"IF('Blank - Request Form'!$F$6=\"CIFDN\",IF('Blank - Request Form'!D62=0,\"\",'Blank - Request Form'!D62),IF('Blank - Request Form'!$F$7=\"CIFDN\",IF('Blank - Request Form'!M62=0,\"\",'Blank - Request Form'!M62),\"\"))","v":""},{"$f":"IF('Blank - Request Form'!$F$6=\"CIFDN\",IF('Blank - Request Form'!E62=0,\"\",'Blank - Request Form'!E62),IF('Blank - Request Form'!$F$7=\"CIFDN\",IF('Blank - Request Form'!N62=0,\"\",'Blank - Request Form'!N62),\"\"))","v":""},{"$f":"IF('Blank - Request Form'!$F$6=\"CIFDN\",IF(OR('Blank - Request Form'!F62=\"000\",'Blank - Request Form'!F62=0),\"\",'Blank - Request Form'!F62),IF('Blank - Request Form'!$F$7=\"CIFDN\",IF(OR('Blank - Request Form'!O62=\"000\",'Blank - Request Form'!O62=0),\"\",'Blank - Request Form'!O62),\"\"))","v":""},{"$f":"IF('Blank - Request Form'!$F$6=\"CIFDN\",IF(OR('Blank - Request Form'!G62=\"0\",'Blank - Request Form'!G62=\"00000\",'Blank - Request Form'!G62=0),\"\",'Blank - Request Form'!G62),IF('Blank - Request Form'!$F$7=\"CIFDN\",IF(OR('Blank - Request Form'!P62=\"0\",'Blank - Request Form'!P62=\"00000\",'Blank - Request Form'!P62=0),\"\",'Blank - Request Form'!P62),\"\"))","v":""},{"$f":"IF('Blank - Request Form'!$F$6=\"CIFDN\",IF(OR('Blank - Request Form'!H62=\"0\",'Blank - Request Form'!H62=\"00000\",'Blank - Request Form'!H62=0),\"\",'Blank - Request Form'!H62),IF('Blank - Request Form'!$F$7=\"CIFDN\",IF(OR('Blank - Request Form'!Q62=\"0\",'Blank - Request Form'!Q62=\"00000\",'Blank - Request Form'!Q62=0),\"\",'Blank - Request Form'!Q62),\"\"))","v":""},{"$f":"IF('Blank - Request Form'!$F$6=\"CIFDN\",IF(OR('Blank - Request Form'!I62=\"0\",'Blank - Request Form'!I62=\"00000\",'Blank - Request Form'!I62=0),\"\",'Blank - Request Form'!I62),IF('Blank - Request Form'!$F$7=\"CIFDN\",IF(OR('Blank - Request Form'!R62=\"0\",'Blank - Request Form'!R62=\"00000\",'Blank - Request Form'!R62=0),\"\",'Blank - Request Form'!R62),\"\"))","v":""},null,{"$f":"IF('Blank - Request Form'!$F$6=\"CIFDN\",IF('Blank - Request Form'!K62=0,\"\",'Blank - Request Form'!K62),IF('Blank - Request Form'!$F$7=\"CIFDN\",IF('Blank - Request Form'!T62=0,\"\",'Blank - Request Form'!T62),\"\"))","v":""},null,null,null,{"$f":"IF(M28<>\"\",'Blank - Request Form'!$M$2,\"\")","v":""},{"$f":"IF('Blank - Request Form'!$F$6=\"CIFDN\",IF('Blank - Request Form'!J62=0,\"\",'Blank - Request Form'!J62),IF('Blank - Request Form'!$F$7=\"CIFDN\",IF('Blank - Request Form'!S62=0,\"\",'Blank - Request Form'!S62),\"\"))","v":""},"",28]
[{"$f":"IF('Blank - Request Form'!$F$6=\"CIFDN\",IF('Blank - Request Form'!D63=0,\"\",'Blank - Request Form'!D63),IF('Blank - Request Form'!$F$7=\"CIFDN\",IF('Blank - Request Form'!M63=0,\"\",'Blank - Request Form'!M63),\"\"))","v":""},{"$f":"IF('Blank - Request Form'!$F$6=\"CIFDN\",IF('Blank - Request Form'!E63=0,\"\",'Blank - Request Form'!E63),IF('Blank - Request Form'!$F$7=\"CIFDN\",IF('Blank - Request Form'!N63=0,\"\",'Blank - Request Form'!N63),\"\"))","v":""},{"$f":"IF('Blank - Request Form'!$F$6=\"CIFDN\",IF(OR('Blank - Request Form'!F63=\"000\",'Blank - Request Form'!F63=0),\"\",'Blank - Request Form'!F63),IF('Blank - Request Form'!$F$7=\"CIFDN\",IF(OR('Blank - Request Form'!O63=\"000\",'Blank - Request Form'!O63=0),\"\",'Blank - Request Form'!O63),\"\"))","v":""},{"$f":"IF('Blank - Request Form'!$F$6=\"CIFDN\",IF(OR('Blank - Request Form'!G63=\"0\",'Blank - Request Form'!G63=\"00000\",'Blank - Request Form'!G63=0),\"\",'Blank - Request Form'!G63),IF('Blank - Request Form'!$F$7=\"CIFDN\",IF(OR('Blank - Request Form'!P63=\"0\",'Blank - Request Form'!P63=\"00000\",'Blank - Request Form'!P63=0),\"\",'Blank - Request Form'!P63),\"\"))","v":""},{"$f":"IF('Blank - Request Form'!$F$6=\"CIFDN\",IF(OR('Blank - Request Form'!H63=\"0\",'Blank - Request Form'!H63=\"00000\",'Blank - Request Form'!H63=0),\"\",'Blank - Request Form'!H63),IF('Blank - Request Form'!$F$7=\"CIFDN\",IF(OR('Blank - Request Form'!Q63=\"0\",'Blank - Request Form'!Q63=\"00000\",'Blank - Request Form'!Q63=0),\"\",'Blank - Request Form'!Q63),\"\"))","v":""},{"$f":"IF('Blank - Request Form'!$F$6=\"CIFDN\",IF(OR('Blank - Request Form'!I63=\"0\",'Blank - Request Form'!I63=\"00000\",'Blank - Request Form'!I63=0),\"\",'Blank - Request Form'!I63),IF('Blank - Request Form'!$F$7=\"CIFDN\",IF(OR('Blank - Request Form'!R63=\"0\",'Blank - Request Form'!R63=\"00000\",'Blank - Request Form'!R63=0),\"\",'Blank - Request Form'!R63),\"\"))","v":""},null,{"$f":"IF('Blank - Request Form'!$F$6=\"CIFDN\",IF('Blank - Request Form'!K63=0,\"\",'Blank - Request Form'!K63),IF('Blank - Request Form'!$F$7=\"CIFDN\",IF('Blank - Request Form'!T63=0,\"\",'Blank - Request Form'!T63),\"\"))","v":""},null,null,null,{"$f":"IF(M29<>\"\",'Blank - Request Form'!$M$2,\"\")","v":""},{"$f":"IF('Blank - Request Form'!$F$6=\"CIFDN\",IF('Blank - Request Form'!J63=0,\"\",'Blank - Request Form'!J63),IF('Blank - Request Form'!$F$7=\"CIFDN\",IF('Blank - Request Form'!S63=0,\"\",'Blank - Request Form'!S63),\"\"))","v":""},"",29]
[{"$f":"IF('Blank - Request Form'!$F$6=\"CIFDN\",IF('Blank - Request Form'!D64=0,\"\",'Blank - Request Form'!D64),IF('Blank - Request Form'!$F$7=\"CIFDN\",IF('Blank - Request Form'!M64=0,\"\",'Blank - Request Form'!M64),\"\"))","v":""},{"$f":"IF('Blank - Request Form'!$F$6=\"CIFDN\",IF('Blank - Request Form'!E64=0,\"\",'Blank - Request Form'!E64),IF('Blank - Request Form'!$F$7=\"CIFDN\",IF('Blank - Request Form'!N64=0,\"\",'Blank - Request Form'!N64),\"\"))","v":""},{"$f":"IF('Blank - Request Form'!$F$6=\"CIFDN\",IF(OR('Blank - Request Form'!F64=\"000\",'Blank - Request Form'!F64=0),\"\",'Blank - Request Form'!F64),IF('Blank - Request Form'!$F$7=\"CIFDN\",IF(OR('Blank - Request Form'!O64=\"000\",'Blank - Request Form'!O64=0),\"\",'Blank - Request Form'!O64),\"\"))","v":""},{"$f":"IF('Blank - Request Form'!$F$6=\"CIFDN\",IF(OR('Blank - Request Form'!G64=\"0\",'Blank - Request Form'!G64=\"00000\",'Blank - Request Form'!G64=0),\"\",'Blank - Request Form'!G64),IF('Blank - Request Form'!$F$7=\"CIFDN\",IF(OR('Blank - Request Form'!P64=\"0\",'Blank - Request Form'!P64=\"00000\",'Blank - Request Form'!P64=0),\"\",'Blank - Request Form'!P64),\"\"))","v":""},{"$f":"IF('Blank - Request Form'!$F$6=\"CIFDN\",IF(OR('Blank - Request Form'!H64=\"0\",'Blank - Request Form'!H64=\"00000\",'Blank - Request Form'!H64=0),\"\",'Blank - Request Form'!H64),IF('Blank - Request Form'!$F$7=\"CIFDN\",IF(OR('Blank - Request Form'!Q64=\"0\",'Blank - Request Form'!Q64=\"00000\",'Blank - Request Form'!Q64=0),\"\",'Blank - Request Form'!Q64),\"\"))","v":""},{"$f":"IF('Blank - Request Form'!$F$6=\"CIFDN\",IF(OR('Blank - Request Form'!I64=\"0\",'Blank - Request Form'!I64=\"00000\",'Blank - Request Form'!I64=0),\"\",'Blank - Request Form'!I64),IF('Blank - Request Form'!$F$7=\"CIFDN\",IF(OR('Blank - Request Form'!R64=\"0\",'Blank - Request Form'!R64=\"00000\",'Blank - Request Form'!R64=0),\"\",'Blank - Request Form'!R64),\"\"))","v":""},null,{"$f":"IF('Blank - Request Form'!$F$6=\"CIFDN\",IF('Blank - Request Form'!K64=0,\"\",'Blank - Request Form'!K64),IF('Blank - Request Form'!$F$7=\"CIFDN\",IF('Blank - Request Form'!T64=0,\"\",'Blank - Request Form'!T64),\"\"))","v":""},null,null,null,{"$f":"IF(M30<>\"\",'Blank - Request Form'!$M$2,\"\")","v":""},{"$f":"IF('Blank - Request Form'!$F$6=\"CIFDN\",IF('Blank - Request Form'!J64=0,\"\",'Blank - Request Form'!J64),IF('Blank - Request Form'!$F$7=\"CIFDN\",IF('Blank - Request Form'!S64=0,\"\",'Blank - Request Form'!S64),\"\"))","v":""},"",30]
[{"$f":"IF('Blank - Request Form'!$F$6=\"CIFDN\",IF('Blank - Request Form'!D65=0,\"\",'Blank - Request Form'!D65),IF('Blank - Request Form'!$F$7=\"CIFDN\",IF('Blank - Request Form'!M65=0,\"\",'Blank - Request Form'!M65),\"\"))","v":""},{"$f":"IF('Blank - Request Form'!$F$6=\"CIFDN\",IF('Blank - Request Form'!E65=0,\"\",'Blank - Request Form'!E65),IF('Blank - Request Form'!$F$7=\"CIFDN\",IF('Blank - Request Form'!N65=0,\"\",'Blank - Request Form'!N65),\"\"))","v":""},{"$f":"IF('Blank - Request Form'!$F$6=\"CIFDN\",IF(OR('Blank - Request Form'!F65=\"000\",'Blank - Request Form'!F65=0),\"\",'Blank - Request Form'!F65),IF('Blank - Request Form'!$F$7=\"CIFDN\",IF(OR('Blank - Request Form'!O65=\"000\",'Blank - Request Form'!O65=0),\"\",'Blank - Request Form'!O65),\"\"))","v":""},{"$f":"IF('Blank - Request Form'!$F$6=\"CIFDN\",IF(OR('Blank - Request Form'!G65=\"0\",'Blank - Request Form'!G65=\"00000\",'Blank - Request Form'!G65=0),\"\",'Blank - Request Form'!G65),IF('Blank - Request Form'!$F$7=\"CIFDN\",IF(OR('Blank - Request Form'!P65=\"0\",'Blank - Request Form'!P65=\"00000\",'Blank - Request Form'!P65=0),\"\",'Blank - Request Form'!P65),\"\"))","v":""},{"$f":"IF('Blank - Request Form'!$F$6=\"CIFDN\",IF(OR('Blank - Request Form'!H65=\"0\",'Blank - Request Form'!H65=\"00000\",'Blank - Request Form'!H65=0),\"\",'Blank - Request Form'!H65),IF('Blank - Request Form'!$F$7=\"CIFDN\",IF(OR('Blank - Request Form'!Q65=\"0\",'Blank - Request Form'!Q65=\"00000\",'Blank - Request Form'!Q65=0),\"\",'Blank - Request Form'!Q65),\"\"))","v":""},{"$f":"IF('Blank - Request Form'!$F$6=\"CIFDN\",IF(OR('Blank - Request Form'!I65=\"0\",'Blank - Request Form'!I65=\"00000\",'Blank - Request Form'!I65=0),\"\",'Blank - Request Form'!I65),IF('Blank - Request Form'!$F$7=\"CIFDN\",IF(OR('Blank - Request Form'!R65=\"0\",'Blank - Request Form'!R65=\"00000\",'Blank - Request Form'!R65=0),\"\",'Blank - Request Form'!R65),\"\"))","v":""},null,{"$f":"IF('Blank - Request Form'!$F$6=\"CIFDN\",IF('Blank - Request Form'!K65=0,\"\",'Blank - Request Form'!K65),IF('Blank - Request Form'!$F$7=\"CIFDN\",IF('Blank - Request Form'!T65=0,\"\",'Blank - Request Form'!T65),\"\"))","v":""},null,null,null,{"$f":"IF(M31<>\"\",'Blank - Request Form'!$M$2,\"\")","v":""},{"$f":"IF('Blank - Request Form'!$F$6=\"CIFDN\",IF('Blank - Request Form'!J65=0,\"\",'Blank - Request Form'!J65),IF('Blank - Request Form'!$F$7=\"CIFDN\",IF('Blank - Request Form'!S65=0,\"\",'Blank - Request Form'!S65),\"\"))","v":""},"",31]
[{"$f":"IF('Blank - Request Form'!$F$6=\"CIFDN\",IF('Blank - Request Form'!D66=0,\"\",'Blank - Request Form'!D66),IF('Blank - Request Form'!$F$7=\"CIFDN\",IF('Blank - Request Form'!M66=0,\"\",'Blank - Request Form'!M66),\"\"))","v":""},{"$f":"IF('Blank - Request Form'!$F$6=\"CIFDN\",IF('Blank - Request Form'!E66=0,\"\",'Blank - Request Form'!E66),IF('Blank - Request Form'!$F$7=\"CIFDN\",IF('Blank - Request Form'!N66=0,\"\",'Blank - Request Form'!N66),\"\"))","v":""},{"$f":"IF('Blank - Request Form'!$F$6=\"CIFDN\",IF(OR('Blank - Request Form'!F66=\"000\",'Blank - Request Form'!F66=0),\"\",'Blank - Request Form'!F66),IF('Blank - Request Form'!$F$7=\"CIFDN\",IF(OR('Blank - Request Form'!O66=\"000\",'Blank - Request Form'!O66=0),\"\",'Blank - Request Form'!O66),\"\"))","v":""},{"$f":"IF('Blank - Request Form'!$F$6=\"CIFDN\",IF(OR('Blank - Request Form'!G66=\"0\",'Blank - Request Form'!G66=\"00000\",'Blank - Request Form'!G66=0),\"\",'Blank - Request Form'!G66),IF('Blank - Request Form'!$F$7=\"CIFDN\",IF(OR('Blank - Request Form'!P66=\"0\",'Blank - Request Form'!P66=\"00000\",'Blank - Request Form'!P66=0),\"\",'Blank - Request Form'!P66),\"\"))","v":""},{"$f":"IF('Blank - Request Form'!$F$6=\"CIFDN\",IF(OR('Blank - Request Form'!H66=\"0\",'Blank - Request Form'!H66=\"00000\",'Blank - Request Form'!H66=0),\"\",'Blank - Request Form'!H66),IF('Blank - Request Form'!$F$7=\"CIFDN\",IF(OR('Blank - Request Form'!Q66=\"0\",'Blank - Request Form'!Q66=\"00000\",'Blank - Request Form'!Q66=0),\"\",'Blank - Request Form'!Q66),\"\"))","v":""},{"$f":"IF('Blank - Request Form'!$F$6=\"CIFDN\",IF(OR('Blank - Request Form'!I66=\"0\",'Blank - Request Form'!I66=\"00000\",'Blank - Request Form'!I66=0),\"\",'Blank - Request Form'!I66),IF('Blank - Request Form'!$F$7=\"CIFDN\",IF(OR('Blank - Request Form'!R66=\"0\",'Blank - Request Form'!R66=\"00000\",'Blank - Request Form'!R66=0),\"\",'Blank - Request Form'!R66),\"\"))","v":""},null,{"$f":"IF('Blank - Request Form'!$F$6=\"CIFDN\",IF('Blank - Request Form'!K66=0,\"\",'Blank - Request Form'!K66),IF('Blank - Request Form'!$F$7=\"CIFDN\",IF('Blank - Request Form'!T66=0,\"\",'Blank - Request Form'!T66),\"\"))","v":""},null,null,null,{"$f":"IF(M32<>\"\",'Blank - Request Form'!$M$2,\"\")","v":""},{"$f":"IF('Blank - Request Form'!$F$6=\"CIFDN\",IF('Blank - Request Form'!J66=0,\"\",'Blank - Request Form'!J66),IF('Blank - Request Form'!$F$7=\"CIFDN\",IF('Blank - Request Form'!S66=0,\"\",'Blank - Request Form'!S66),\"\"))","v":""},"",32]
[{"$f":"IF('Blank - Request Form'!$F$6=\"CIFDN\",IF('Blank - Request Form'!D67=0,\"\",'Blank - Request Form'!D67),IF('Blank - Request Form'!$F$7=\"CIFDN\",IF('Blank - Request Form'!M67=0,\"\",'Blank - Request Form'!M67),\"\"))","v":""},{"$f":"IF('Blank - Request Form'!$F$6=\"CIFDN\",IF('Blank - Request Form'!E67=0,\"\",'Blank - Request Form'!E67),IF('Blank - Request Form'!$F$7=\"CIFDN\",IF('Blank - Request Form'!N67=0,\"\",'Blank - Request Form'!N67),\"\"))","v":""},{"$f":"IF('Blank - Request Form'!$F$6=\"CIFDN\",IF(OR('Blank - Request Form'!F67=\"000\",'Blank - Request Form'!F67=0),\"\",'Blank - Request Form'!F67),IF('Blank - Request Form'!$F$7=\"CIFDN\",IF(OR('Blank - Request Form'!O67=\"000\",'Blank - Request Form'!O67=0),\"\",'Blank - Request Form'!O67),\"\"))","v":""},{"$f":"IF('Blank - Request Form'!$F$6=\"CIFDN\",IF(OR('Blank - Request Form'!G67=\"0\",'Blank - Request Form'!G67=\"00000\",'Blank - Request Form'!G67=0),\"\",'Blank - Request Form'!G67),IF('Blank - Request Form'!$F$7=\"CIFDN\",IF(OR('Blank - Request Form'!P67=\"0\",'Blank - Request Form'!P67=\"00000\",'Blank - Request Form'!P67=0),\"\",'Blank - Request Form'!P67),\"\"))","v":""},{"$f":"IF('Blank - Request Form'!$F$6=\"CIFDN\",IF(OR('Blank - Request Form'!H67=\"0\",'Blank - Request Form'!H67=\"00000\",'Blank - Request Form'!H67=0),\"\",'Blank - Request Form'!H67),IF('Blank - Request Form'!$F$7=\"CIFDN\",IF(OR('Blank - Request Form'!Q67=\"0\",'Blank - Request Form'!Q67=\"00000\",'Blank - Request Form'!Q67=0),\"\",'Blank - Request Form'!Q67),\"\"))","v":""},{"$f":"IF('Blank - Request Form'!$F$6=\"CIFDN\",IF(OR('Blank - Request Form'!I67=\"0\",'Blank - Request Form'!I67=\"00000\",'Blank - Request Form'!I67=0),\"\",'Blank - Request Form'!I67),IF('Blank - Request Form'!$F$7=\"CIFDN\",IF(OR('Blank - Request Form'!R67=\"0\",'Blank - Request Form'!R67=\"00000\",'Blank - Request Form'!R67=0),\"\",'Blank - Request Form'!R67),\"\"))","v":""},null,{"$f":"IF('Blank - Request Form'!$F$6=\"CIFDN\",IF('Blank - Request Form'!K67=0,\"\",'Blank - Request Form'!K67),IF('Blank - Request Form'!$F$7=\"CIFDN\",IF('Blank - Request Form'!T67=0,\"\",'Blank - Request Form'!T67),\"\"))","v":""},null,null,null,{"$f":"IF(M33<>\"\",'Blank - Request Form'!$M$2,\"\")","v":""},{"$f":"IF('Blank - Request Form'!$F$6=\"CIFDN\",IF('Blank - Request Form'!J67=0,\"\",'Blank - Request Form'!J67),IF('Blank - Request Form'!$F$7=\"CIFDN\",IF('Blank - Request Form'!S67=0,\"\",'Blank - Request Form'!S67),\"\"))","v":""},"",33]
[{"$f":"IF('Blank - Request Form'!$F$6=\"CIFDN\",IF('Blank - Request Form'!D68=0,\"\",'Blank - Request Form'!D68),IF('Blank - Request Form'!$F$7=\"CIFDN\",IF('Blank - Request Form'!M68=0,\"\",'Blank - Request Form'!M68),\"\"))","v":""},{"$f":"IF('Blank - Request Form'!$F$6=\"CIFDN\",IF('Blank - Request Form'!E68=0,\"\",'Blank - Request Form'!E68),IF('Blank - Request Form'!$F$7=\"CIFDN\",IF('Blank - Request Form'!N68=0,\"\",'Blank - Request Form'!N68),\"\"))","v":""},{"$f":"IF('Blank - Request Form'!$F$6=\"CIFDN\",IF(OR('Blank - Request Form'!F68=\"000\",'Blank - Request Form'!F68=0),\"\",'Blank - Request Form'!F68),IF('Blank - Request Form'!$F$7=\"CIFDN\",IF(OR('Blank - Request Form'!O68=\"000\",'Blank - Request Form'!O68=0),\"\",'Blank - Request Form'!O68),\"\"))","v":""},{"$f":"IF('Blank - Request Form'!$F$6=\"CIFDN\",IF(OR('Blank - Request Form'!G68=\"0\",'Blank - Request Form'!G68=\"00000\",'Blank - Request Form'!G68=0),\"\",'Blank - Request Form'!G68),IF('Blank - Request Form'!$F$7=\"CIFDN\",IF(OR('Blank - Request Form'!P68=\"0\",'Blank - Request Form'!P68=\"00000\",'Blank - Request Form'!P68=0),\"\",'Blank - Request Form'!P68),\"\"))","v":""},{"$f":"IF('Blank - Request Form'!$F$6=\"CIFDN\",IF(OR('Blank - Request Form'!H68=\"0\",'Blank - Request Form'!H68=\"00000\",'Blank - Request Form'!H68=0),\"\",'Blank - Request Form'!H68),IF('Blank - Request Form'!$F$7=\"CIFDN\",IF(OR('Blank - Request Form'!Q68=\"0\",'Blank - Request Form'!Q68=\"00000\",'Blank - Request Form'!Q68=0),\"\",'Blank - Request Form'!Q68),\"\"))","v":""},{"$f":"IF('Blank - Request Form'!$F$6=\"CIFDN\",IF(OR('Blank - Request Form'!I68=\"0\",'Blank - Request Form'!I68=\"00000\",'Blank - Request Form'!I68=0),\"\",'Blank - Request Form'!I68),IF('Blank - Request Form'!$F$7=\"CIFDN\",IF(OR('Blank - Request Form'!R68=\"0\",'Blank - Request Form'!R68=\"00000\",'Blank - Request Form'!R68=0),\"\",'Blank - Request Form'!R68),\"\"))","v":""},null,{"$f":"IF('Blank - Request Form'!$F$6=\"CIFDN\",IF('Blank - Request Form'!K68=0,\"\",'Blank - Request Form'!K68),IF('Blank - Request Form'!$F$7=\"CIFDN\",IF('Blank - Request Form'!T68=0,\"\",'Blank - Request Form'!T68),\"\"))","v":""},null,null,null,{"$f":"IF(M34<>\"\",'Blank - Request Form'!$M$2,\"\")","v":""},{"$f":"IF('Blank - Request Form'!$F$6=\"CIFDN\",IF('Blank - Request Form'!J68=0,\"\",'Blank - Request Form'!J68),IF('Blank - Request Form'!$F$7=\"CIFDN\",IF('Blank - Request Form'!S68=0,\"\",'Blank - Request Form'!S68),\"\"))","v":""},"",34]
[{"$f":"IF('Blank - Request Form'!$F$6=\"CIFDN\",IF('Blank - Request Form'!D69=0,\"\",'Blank - Request Form'!D69),IF('Blank - Request Form'!$F$7=\"CIFDN\",IF('Blank - Request Form'!M69=0,\"\",'Blank - Request Form'!M69),\"\"))","v":""},{"$f":"IF('Blank - Request Form'!$F$6=\"CIFDN\",IF('Blank - Request Form'!E69=0,\"\",'Blank - Request Form'!E69),IF('Blank - Request Form'!$F$7=\"CIFDN\",IF('Blank - Request Form'!N69=0,\"\",'Blank - Request Form'!N69),\"\"))","v":""},{"$f":"IF('Blank - Request Form'!$F$6=\"CIFDN\",IF(OR('Blank - Request Form'!F69=\"000\",'Blank - Request Form'!F69=0),\"\",'Blank - Request Form'!F69),IF('Blank - Request Form'!$F$7=\"CIFDN\",IF(OR('Blank - Request Form'!O69=\"000\",'Blank - Request Form'!O69=0),\"\",'Blank - Request Form'!O69),\"\"))","v":""},{"$f":"IF('Blank - Request Form'!$F$6=\"CIFDN\",IF(OR('Blank - Request Form'!G69=\"0\",'Blank - Request Form'!G69=\"00000\",'Blank - Request Form'!G69=0),\"\",'Blank - Request Form'!G69),IF('Blank - Request Form'!$F$7=\"CIFDN\",IF(OR('Blank - Request Form'!P69=\"0\",'Blank - Request Form'!P69=\"00000\",'Blank - Request Form'!P69=0),\"\",'Blank - Request Form'!P69),\"\"))","v":""},{"$f":"IF('Blank - Request Form'!$F$6=\"CIFDN\",IF(OR('Blank - Request Form'!H69=\"0\",'Blank - Request Form'!H69=\"00000\",'Blank - Request Form'!H69=0),\"\",'Blank - Request Form'!H69),IF('Blank - Request Form'!$F$7=\"CIFDN\",IF(OR('Blank - Request Form'!Q69=\"0\",'Blank - Request Form'!Q69=\"00000\",'Blank - Request Form'!Q69=0),\"\",'Blank - Request Form'!Q69),\"\"))","v":""},{"$f":"IF('Blank - Request Form'!$F$6=\"CIFDN\",IF(OR('Blank - Request Form'!I69=\"0\",'Blank - Request Form'!I69=\"00000\",'Blank - Request Form'!I69=0),\"\",'Blank - Request Form'!I69),IF('Blank - Request Form'!$F$7=\"CIFDN\",IF(OR('Blank - Request Form'!R69=\"0\",'Blank - Request Form'!R69=\"00000\",'Blank - Request Form'!R69=0),\"\",'Blank - Request Form'!R69),\"\"))","v":""},null,{"$f":"IF('Blank - Request Form'!$F$6=\"CIFDN\",IF('Blank - Request Form'!K69=0,\"\",'Blank - Request Form'!K69),IF('Blank - Request Form'!$F$7=\"CIFDN\",IF('Blank - Request Form'!T69=0,\"\",'Blank - Request Form'!T69),\"\"))","v":""},null,null,null,{"$f":"IF(M35<>\"\",'Blank - Request Form'!$M$2,\"\")","v":""},{"$f":"IF('Blank - Request Form'!$F$6=\"CIFDN\",IF('Blank - Request Form'!J69=0,\"\",'Blank - Request Form'!J69),IF('Blank - Request Form'!$F$7=\"CIFDN\",IF('Blank - Request Form'!S69=0,\"\",'Blank - Request Form'!S69),\"\"))","v":""},"",35]
[{"$f":"IF('Blank - Request Form'!$F$6=\"CIFDN\",IF('Blank - Request Form'!D70=0,\"\",'Blank - Request Form'!D70),IF('Blank - Request Form'!$F$7=\"CIFDN\",IF('Blank - Request Form'!M70=0,\"\",'Blank - Request Form'!M70),\"\"))","v":""},{"$f":"IF('Blank - Request Form'!$F$6=\"CIFDN\",IF('Blank - Request Form'!E70=0,\"\",'Blank - Request Form'!E70),IF('Blank - Request Form'!$F$7=\"CIFDN\",IF('Blank - Request Form'!N70=0,\"\",'Blank - Request Form'!N70),\"\"))","v":""},{"$f":"IF('Blank - Request Form'!$F$6=\"CIFDN\",IF(OR('Blank - Request Form'!F70=\"000\",'Blank - Request Form'!F70=0),\"\",'Blank - Request Form'!F70),IF('Blank - Request Form'!$F$7=\"CIFDN\",IF(OR('Blank - Request Form'!O70=\"000\",'Blank - Request Form'!O70=0),\"\",'Blank - Request Form'!O70),\"\"))","v":""},{"$f":"IF('Blank - Request Form'!$F$6=\"CIFDN\",IF(OR('Blank - Request Form'!G70=\"0\",'Blank - Request Form'!G70=\"00000\",'Blank - Request Form'!G70=0),\"\",'Blank - Request Form'!G70),IF('Blank - Request Form'!$F$7=\"CIFDN\",IF(OR('Blank - Request Form'!P70=\"0\",'Blank - Request Form'!P70=\"00000\",'Blank - Request Form'!P70=0),\"\",'Blank - Request Form'!P70),\"\"))","v":""},{"$f":"IF('Blank - Request Form'!$F$6=\"CIFDN\",IF(OR('Blank - Request Form'!H70=\"0\",'Blank - Request Form'!H70=\"00000\",'Blank - Request Form'!H70=0),\"\",'Blank - Request Form'!H70),IF('Blank - Request Form'!$F$7=\"CIFDN\",IF(OR('Blank - Request Form'!Q70=\"0\",'Blank - Request Form'!Q70=\"00000\",'Blank - Request Form'!Q70=0),\"\",'Blank - Request Form'!Q70),\"\"))","v":""},{"$f":"IF('Blank - Request Form'!$F$6=\"CIFDN\",IF(OR('Blank - Request Form'!I70=\"0\",'Blank - Request Form'!I70=\"00000\",'Blank - Request Form'!I70=0),\"\",'Blank - Request Form'!I70),IF('Blank - Request Form'!$F$7=\"CIFDN\",IF(OR('Blank - Request Form'!R70=\"0\",'Blank - Request Form'!R70=\"00000\",'Blank - Request Form'!R70=0),\"\",'Blank - Request Form'!R70),\"\"))","v":""},null,{"$f":"IF('Blank - Request Form'!$F$6=\"CIFDN\",IF('Blank - Request Form'!K70=0,\"\",'Blank - Request Form'!K70),IF('Blank - Request Form'!$F$7=\"CIFDN\",IF('Blank - Request Form'!T70=0,\"\",'Blank - Request Form'!T70),\"\"))","v":""},null,null,null,{"$f":"IF(M36<>\"\",'Blank - Request Form'!$M$2,\"\")","v":""},{"$f":"IF('Blank - Request Form'!$F$6=\"CIFDN\",IF('Blank - Request Form'!J70=0,\"\",'Blank - Request Form'!J70),IF('Blank - Request Form'!$F$7=\"CIFDN\",IF('Blank - Request Form'!S70=0,\"\",'Blank - Request Form'!S70),\"\"))","v":""},"",36]
[{"$f":"IF('Blank - Request Form'!$F$6=\"CIFDN\",IF('Blank - Request Form'!D71=0,\"\",'Blank - Request Form'!D71),IF('Blank - Request Form'!$F$7=\"CIFDN\",IF('Blank - Request Form'!M71=0,\"\",'Blank - Request Form'!M71),\"\"))","v":""},{"$f":"IF('Blank - Request Form'!$F$6=\"CIFDN\",IF('Blank - Request Form'!E71=0,\"\",'Blank - Request Form'!E71),IF('Blank - Request Form'!$F$7=\"CIFDN\",IF('Blank - Request Form'!N71=0,\"\",'Blank - Request Form'!N71),\"\"))","v":""},{"$f":"IF('Blank - Request Form'!$F$6=\"CIFDN\",IF(OR('Blank - Request Form'!F71=\"000\",'Blank - Request Form'!F71=0),\"\",'Blank - Request Form'!F71),IF('Blank - Request Form'!$F$7=\"CIFDN\",IF(OR('Blank - Request Form'!O71=\"000\",'Blank - Request Form'!O71=0),\"\",'Blank - Request Form'!O71),\"\"))","v":""},{"$f":"IF('Blank - Request Form'!$F$6=\"CIFDN\",IF(OR('Blank - Request Form'!G71=\"0\",'Blank - Request Form'!G71=\"00000\",'Blank - Request Form'!G71=0),\"\",'Blank - Request Form'!G71),IF('Blank - Request Form'!$F$7=\"CIFDN\",IF(OR('Blank - Request Form'!P71=\"0\",'Blank - Request Form'!P71=\"00000\",'Blank - Request Form'!P71=0),\"\",'Blank - Request Form'!P71),\"\"))","v":""},{"$f":"IF('Blank - Request Form'!$F$6=\"CIFDN\",IF(OR('Blank - Request Form'!H71=\"0\",'Blank - Request Form'!H71=\"00000\",'Blank - Request Form'!H71=0),\"\",'Blank - Request Form'!H71),IF('Blank - Request Form'!$F$7=\"CIFDN\",IF(OR('Blank - Request Form'!Q71=\"0\",'Blank - Request Form'!Q71=\"00000\",'Blank - Request Form'!Q71=0),\"\",'Blank - Request Form'!Q71),\"\"))","v":""},{"$f":"IF('Blank - Request Form'!$F$6=\"CIFDN\",IF(OR('Blank - Request Form'!I71=\"0\",'Blank - Request Form'!I71=\"00000\",'Blank - Request Form'!I71=0),\"\",'Blank - Request Form'!I71),IF('Blank - Request Form'!$F$7=\"CIFDN\",IF(OR('Blank - Request Form'!R71=\"0\",'Blank - Request Form'!R71=\"00000\",'Blank - Request Form'!R71=0),\"\",'Blank - Request Form'!R71),\"\"))","v":""},null,{"$f":"IF('Blank - Request Form'!$F$6=\"CIFDN\",IF('Blank - Request Form'!K71=0,\"\",'Blank - Request Form'!K71),IF('Blank - Request Form'!$F$7=\"CIFDN\",IF('Blank - Request Form'!T71=0,\"\",'Blank - Request Form'!T71),\"\"))","v":""},null,null,null,{"$f":"IF(M37<>\"\",'Blank - Request Form'!$M$2,\"\")","v":""},{"$f":"IF('Blank - Request Form'!$F$6=\"CIFDN\",IF('Blank - Request Form'!J71=0,\"\",'Blank - Request Form'!J71),IF('Blank - Request Form'!$F$7=\"CIFDN\",IF('Blank - Request Form'!S71=0,\"\",'Blank - Request Form'!S71),\"\"))","v":""},"",37]
[{"$f":"IF('Blank - Request Form'!$F$6=\"CIFDN\",IF('Blank - Request Form'!D72=0,\"\",'Blank - Request Form'!D72),IF('Blank - Request Form'!$F$7=\"CIFDN\",IF('Blank - Request Form'!M72=0,\"\",'Blank - Request Form'!M72),\"\"))","v":""},{"$f":"IF('Blank - Request Form'!$F$6=\"CIFDN\",IF('Blank - Request Form'!E72=0,\"\",'Blank - Request Form'!E72),IF('Blank - Request Form'!$F$7=\"CIFDN\",IF('Blank - Request Form'!N72=0,\"\",'Blank - Request Form'!N72),\"\"))","v":""},{"$f":"IF('Blank - Request Form'!$F$6=\"CIFDN\",IF(OR('Blank - Request Form'!F72=\"000\",'Blank - Request Form'!F72=0),\"\",'Blank - Request Form'!F72),IF('Blank - Request Form'!$F$7=\"CIFDN\",IF(OR('Blank - Request Form'!O72=\"000\",'Blank - Request Form'!O72=0),\"\",'Blank - Request Form'!O72),\"\"))","v":""},{"$f":"IF('Blank - Request Form'!$F$6=\"CIFDN\",IF(OR('Blank - Request Form'!G72=\"0\",'Blank - Request Form'!G72=\"00000\",'Blank - Request Form'!G72=0),\"\",'Blank - Request Form'!G72),IF('Blank - Request Form'!$F$7=\"CIFDN\",IF(OR('Blank - Request Form'!P72=\"0\",'Blank - Request Form'!P72=\"00000\",'Blank - Request Form'!P72=0),\"\",'Blank - Request Form'!P72),\"\"))","v":""},{"$f":"IF('Blank - Request Form'!$F$6=\"CIFDN\",IF(OR('Blank - Request Form'!H72=\"0\",'Blank - Request Form'!H72=\"00000\",'Blank - Request Form'!H72=0),\"\",'Blank - Request Form'!H72),IF('Blank - Request Form'!$F$7=\"CIFDN\",IF(OR('Blank - Request Form'!Q72=\"0\",'Blank - Request Form'!Q72=\"00000\",'Blank - Request Form'!Q72=0),\"\",'Blank - Request Form'!Q72),\"\"))","v":""},{"$f":"IF('Blank - Request Form'!$F$6=\"CIFDN\",IF(OR('Blank - Request Form'!I72=\"0\",'Blank - Request Form'!I72=\"00000\",'Blank - Request Form'!I72=0),\"\",'Blank - Request Form'!I72),IF('Blank - Request Form'!$F$7=\"CIFDN\",IF(OR('Blank - Request Form'!R72=\"0\",'Blank - Request Form'!R72=\"00000\",'Blank - Request Form'!R72=0),\"\",'Blank - Request Form'!R72),\"\"))","v":""},null,{"$f":"IF('Blank - Request Form'!$F$6=\"CIFDN\",IF('Blank - Request Form'!K72=0,\"\",'Blank - Request Form'!K72),IF('Blank - Request Form'!$F$7=\"CIFDN\",IF('Blank - Request Form'!T72=0,\"\",'Blank - Request Form'!T72),\"\"))","v":""},null,null,null,{"$f":"IF(M38<>\"\",'Blank - Request Form'!$M$2,\"\")","v":""},{"$f":"IF('Blank - Request Form'!$F$6=\"CIFDN\",IF('Blank - Request Form'!J72=0,\"\",'Blank - Request Form'!J72),IF('Blank - Request Form'!$F$7=\"CIFDN\",IF('Blank - Request Form'!S72=0,\"\",'Blank - Request Form'!S72),\"\"))","v":""},"",38]
[{"$f":"IF('Blank - Request Form'!$F$6=\"CIFDN\",IF('Blank - Request Form'!D73=0,\"\",'Blank - Request Form'!D73),IF('Blank - Request Form'!$F$7=\"CIFDN\",IF('Blank - Request Form'!M73=0,\"\",'Blank - Request Form'!M73),\"\"))","v":""},{"$f":"IF('Blank - Request Form'!$F$6=\"CIFDN\",IF('Blank - Request Form'!E73=0,\"\",'Blank - Request Form'!E73),IF('Blank - Request Form'!$F$7=\"CIFDN\",IF('Blank - Request Form'!N73=0,\"\",'Blank - Request Form'!N73),\"\"))","v":""},{"$f":"IF('Blank - Request Form'!$F$6=\"CIFDN\",IF(OR('Blank - Request Form'!F73=\"000\",'Blank - Request Form'!F73=0),\"\",'Blank - Request Form'!F73),IF('Blank - Request Form'!$F$7=\"CIFDN\",IF(OR('Blank - Request Form'!O73=\"000\",'Blank - Request Form'!O73=0),\"\",'Blank - Request Form'!O73),\"\"))","v":""},{"$f":"IF('Blank - Request Form'!$F$6=\"CIFDN\",IF(OR('Blank - Request Form'!G73=\"0\",'Blank - Request Form'!G73=\"00000\",'Blank - Request Form'!G73=0),\"\",'Blank - Request Form'!G73),IF('Blank - Request Form'!$F$7=\"CIFDN\",IF(OR('Blank - Request Form'!P73=\"0\",'Blank - Request Form'!P73=\"00000\",'Blank - Request Form'!P73=0),\"\",'Blank - Request Form'!P73),\"\"))","v":""},{"$f":"IF('Blank - Request Form'!$F$6=\"CIFDN\",IF(OR('Blank - Request Form'!H73=\"0\",'Blank - Request Form'!H73=\"00000\",'Blank - Request Form'!H73=0),\"\",'Blank - Request Form'!H73),IF('Blank - Request Form'!$F$7=\"CIFDN\",IF(OR('Blank - Request Form'!Q73=\"0\",'Blank - Request Form'!Q73=\"00000\",'Blank - Request Form'!Q73=0),\"\",'Blank - Request Form'!Q73),\"\"))","v":""},{"$f":"IF('Blank - Request Form'!$F$6=\"CIFDN\",IF(OR('Blank - Request Form'!I73=\"0\",'Blank - Request Form'!I73=\"00000\",'Blank - Request Form'!I73=0),\"\",'Blank - Request Form'!I73),IF('Blank - Request Form'!$F$7=\"CIFDN\",IF(OR('Blank - Request Form'!R73=\"0\",'Blank - Request Form'!R73=\"00000\",'Blank - Request Form'!R73=0),\"\",'Blank - Request Form'!R73),\"\"))","v":""},null,{"$f":"IF('Blank - Request Form'!$F$6=\"CIFDN\",IF('Blank - Request Form'!K73=0,\"\",'Blank - Request Form'!K73),IF('Blank - Request Form'!$F$7=\"CIFDN\",IF('Blank - Request Form'!T73=0,\"\",'Blank - Request Form'!T73),\"\"))","v":""},null,null,null,{"$f":"IF(M39<>\"\",'Blank - Request Form'!$M$2,\"\")","v":""},{"$f":"IF('Blank - Request Form'!$F$6=\"CIFDN\",IF('Blank - Request Form'!J73=0,\"\",'Blank - Request Form'!J73),IF('Blank - Request Form'!$F$7=\"CIFDN\",IF('Blank - Request Form'!S73=0,\"\",'Blank - Request Form'!S73),\"\"))","v":""},"",39]
[{"$f":"IF('Blank - Request Form'!$F$6=\"CIFDN\",IF('Blank - Request Form'!D74=0,\"\",'Blank - Request Form'!D74),IF('Blank - Request Form'!$F$7=\"CIFDN\",IF('Blank - Request Form'!M74=0,\"\",'Blank - Request Form'!M74),\"\"))","v":""},{"$f":"IF('Blank - Request Form'!$F$6=\"CIFDN\",IF('Blank - Request Form'!E74=0,\"\",'Blank - Request Form'!E74),IF('Blank - Request Form'!$F$7=\"CIFDN\",IF('Blank - Request Form'!N74=0,\"\",'Blank - Request Form'!N74),\"\"))","v":""},{"$f":"IF('Blank - Request Form'!$F$6=\"CIFDN\",IF(OR('Blank - Request Form'!F74=\"000\",'Blank - Request Form'!F74=0),\"\",'Blank - Request Form'!F74),IF('Blank - Request Form'!$F$7=\"CIFDN\",IF(OR('Blank - Request Form'!O74=\"000\",'Blank - Request Form'!O74=0),\"\",'Blank - Request Form'!O74),\"\"))","v":""},{"$f":"IF('Blank - Request Form'!$F$6=\"CIFDN\",IF(OR('Blank - Request Form'!G74=\"0\",'Blank - Request Form'!G74=\"00000\",'Blank - Request Form'!G74=0),\"\",'Blank - Request Form'!G74),IF('Blank - Request Form'!$F$7=\"CIFDN\",IF(OR('Blank - Request Form'!P74=\"0\",'Blank - Request Form'!P74=\"00000\",'Blank - Request Form'!P74=0),\"\",'Blank - Request Form'!P74),\"\"))","v":""},{"$f":"IF('Blank - Request Form'!$F$6=\"CIFDN\",IF(OR('Blank - Request Form'!H74=\"0\",'Blank - Request Form'!H74=\"00000\",'Blank - Request Form'!H74=0),\"\",'Blank - Request Form'!H74),IF('Blank - Request Form'!$F$7=\"CIFDN\",IF(OR('Blank - Request Form'!Q74=\"0\",'Blank - Request Form'!Q74=\"00000\",'Blank - Request Form'!Q74=0),\"\",'Blank - Request Form'!Q74),\"\"))","v":""},{"$f":"IF('Blank - Request Form'!$F$6=\"CIFDN\",IF(OR('Blank - Request Form'!I74=\"0\",'Blank - Request Form'!I74=\"00000\",'Blank - Request Form'!I74=0),\"\",'Blank - Request Form'!I74),IF('Blank - Request Form'!$F$7=\"CIFDN\",IF(OR('Blank - Request Form'!R74=\"0\",'Blank - Request Form'!R74=\"00000\",'Blank - Request Form'!R74=0),\"\",'Blank - Request Form'!R74),\"\"))","v":""},null,{"$f":"IF('Blank - Request Form'!$F$6=\"CIFDN\",IF('Blank - Request Form'!K74=0,\"\",'Blank - Request Form'!K74),IF('Blank - Request Form'!$F$7=\"CIFDN\",IF('Blank - Request Form'!T74=0,\"\",'Blank - Request Form'!T74),\"\"))","v":""},null,null,null,{"$f":"IF(M40<>\"\",'Blank - Request Form'!$M$2,\"\")","v":""},{"$f":"IF('Blank - Request Form'!$F$6=\"CIFDN\",IF('Blank - Request Form'!J74=0,\"\",'Blank - Request Form'!J74),IF('Blank - Request Form'!$F$7=\"CIFDN\",IF('Blank - Request Form'!S74=0,\"\",'Blank - Request Form'!S74),\"\"))","v":""},"",40]
[{"$f":"IF('Blank - Request Form'!$F$6=\"CIFDN\",IF('Blank - Request Form'!D75=0,\"\",'Blank - Request Form'!D75),IF('Blank - Request Form'!$F$7=\"CIFDN\",IF('Blank - Request Form'!M75=0,\"\",'Blank - Request Form'!M75),\"\"))","v":""},{"$f":"IF('Blank - Request Form'!$F$6=\"CIFDN\",IF('Blank - Request Form'!E75=0,\"\",'Blank - Request Form'!E75),IF('Blank - Request Form'!$F$7=\"CIFDN\",IF('Blank - Request Form'!N75=0,\"\",'Blank - Request Form'!N75),\"\"))","v":""},{"$f":"IF('Blank - Request Form'!$F$6=\"CIFDN\",IF(OR('Blank - Request Form'!F75=\"000\",'Blank - Request Form'!F75=0),\"\",'Blank - Request Form'!F75),IF('Blank - Request Form'!$F$7=\"CIFDN\",IF(OR('Blank - Request Form'!O75=\"000\",'Blank - Request Form'!O75=0),\"\",'Blank - Request Form'!O75),\"\"))","v":""},{"$f":"IF('Blank - Request Form'!$F$6=\"CIFDN\",IF(OR('Blank - Request Form'!G75=\"0\",'Blank - Request Form'!G75=\"00000\",'Blank - Request Form'!G75=0),\"\",'Blank - Request Form'!G75),IF('Blank - Request Form'!$F$7=\"CIFDN\",IF(OR('Blank - Request Form'!P75=\"0\",'Blank - Request Form'!P75=\"00000\",'Blank - Request Form'!P75=0),\"\",'Blank - Request Form'!P75),\"\"))","v":""},{"$f":"IF('Blank - Request Form'!$F$6=\"CIFDN\",IF(OR('Blank - Request Form'!H75=\"0\",'Blank - Request Form'!H75=\"00000\",'Blank - Request Form'!H75=0),\"\",'Blank - Request Form'!H75),IF('Blank - Request Form'!$F$7=\"CIFDN\",IF(OR('Blank - Request Form'!Q75=\"0\",'Blank - Request Form'!Q75=\"00000\",'Blank - Request Form'!Q75=0),\"\",'Blank - Request Form'!Q75),\"\"))","v":""},{"$f":"IF('Blank - Request Form'!$F$6=\"CIFDN\",IF(OR('Blank - Request Form'!I75=\"0\",'Blank - Request Form'!I75=\"00000\",'Blank - Request Form'!I75=0),\"\",'Blank - Request Form'!I75),IF('Blank - Request Form'!$F$7=\"CIFDN\",IF(OR('Blank - Request Form'!R75=\"0\",'Blank - Request Form'!R75=\"00000\",'Blank - Request Form'!R75=0),\"\",'Blank - Request Form'!R75),\"\"))","v":""},null,{"$f":"IF('Blank - Request Form'!$F$6=\"CIFDN\",IF('Blank - Request Form'!K75=0,\"\",'Blank - Request Form'!K75),IF('Blank - Request Form'!$F$7=\"CIFDN\",IF('Blank - Request Form'!T75=0,\"\",'Blank - Request Form'!T75),\"\"))","v":""},null,null,null,{"$f":"IF(M41<>\"\",'Blank - Request Form'!$M$2,\"\")","v":""},{"$f":"IF('Blank - Request Form'!$F$6=\"CIFDN\",IF('Blank - Request Form'!J75=0,\"\",'Blank - Request Form'!J75),IF('Blank - Request Form'!$F$7=\"CIFDN\",IF('Blank - Request Form'!S75=0,\"\",'Blank - Request Form'!S75),\"\"))","v":""},"",41]
[{"$f":"IF('Blank - Request Form'!$F$6=\"CIFDN\",IF('Blank - Request Form'!D76=0,\"\",'Blank - Request Form'!D76),IF('Blank - Request Form'!$F$7=\"CIFDN\",IF('Blank - Request Form'!M76=0,\"\",'Blank - Request Form'!M76),\"\"))","v":""},{"$f":"IF('Blank - Request Form'!$F$6=\"CIFDN\",IF('Blank - Request Form'!E76=0,\"\",'Blank - Request Form'!E76),IF('Blank - Request Form'!$F$7=\"CIFDN\",IF('Blank - Request Form'!N76=0,\"\",'Blank - Request Form'!N76),\"\"))","v":""},{"$f":"IF('Blank - Request Form'!$F$6=\"CIFDN\",IF(OR('Blank - Request Form'!F76=\"000\",'Blank - Request Form'!F76=0),\"\",'Blank - Request Form'!F76),IF('Blank - Request Form'!$F$7=\"CIFDN\",IF(OR('Blank - Request Form'!O76=\"000\",'Blank - Request Form'!O76=0),\"\",'Blank - Request Form'!O76),\"\"))","v":""},{"$f":"IF('Blank - Request Form'!$F$6=\"CIFDN\",IF(OR('Blank - Request Form'!G76=\"0\",'Blank - Request Form'!G76=\"00000\",'Blank - Request Form'!G76=0),\"\",'Blank - Request Form'!G76),IF('Blank - Request Form'!$F$7=\"CIFDN\",IF(OR('Blank - Request Form'!P76=\"0\",'Blank - Request Form'!P76=\"00000\",'Blank - Request Form'!P76=0),\"\",'Blank - Request Form'!P76),\"\"))","v":""},{"$f":"IF('Blank - Request Form'!$F$6=\"CIFDN\",IF(OR('Blank - Request Form'!H76=\"0\",'Blank - Request Form'!H76=\"00000\",'Blank - Request Form'!H76=0),\"\",'Blank - Request Form'!H76),IF('Blank - Request Form'!$F$7=\"CIFDN\",IF(OR('Blank - Request Form'!Q76=\"0\",'Blank - Request Form'!Q76=\"00000\",'Blank - Request Form'!Q76=0),\"\",'Blank - Request Form'!Q76),\"\"))","v":""},{"$f":"IF('Blank - Request Form'!$F$6=\"CIFDN\",IF(OR('Blank - Request Form'!I76=\"0\",'Blank - Request Form'!I76=\"00000\",'Blank - Request Form'!I76=0),\"\",'Blank - Request Form'!I76),IF('Blank - Request Form'!$F$7=\"CIFDN\",IF(OR('Blank - Request Form'!R76=\"0\",'Blank - Request Form'!R76=\"00000\",'Blank - Request Form'!R76=0),\"\",'Blank - Request Form'!R76),\"\"))","v":""},null,{"$f":"IF('Blank - Request Form'!$F$6=\"CIFDN\",IF('Blank - Request Form'!K76=0,\"\",'Blank - Request Form'!K76),IF('Blank - Request Form'!$F$7=\"CIFDN\",IF('Blank - Request Form'!T76=0,\"\",'Blank - Request Form'!T76),\"\"))","v":""},null,null,null,{"$f":"IF(M42<>\"\",'Blank - Request Form'!$M$2,\"\")","v":""},{"$f":"IF('Blank - Request Form'!$F$6=\"CIFDN\",IF('Blank - Request Form'!J76=0,\"\",'Blank - Request Form'!J76),IF('Blank - Request Form'!$F$7=\"CIFDN\",IF('Blank - Request Form'!S76=0,\"\",'Blank - Request Form'!S76),\"\"))","v":""},"",42]
[{"$f":"IF('Blank - Request Form'!$F$6=\"CIFDN\",IF('Blank - Request Form'!D77=0,\"\",'Blank - Request Form'!D77),IF('Blank - Request Form'!$F$7=\"CIFDN\",IF('Blank - Request Form'!M77=0,\"\",'Blank - Request Form'!M77),\"\"))","v":""},{"$f":"IF('Blank - Request Form'!$F$6=\"CIFDN\",IF('Blank - Request Form'!E77=0,\"\",'Blank - Request Form'!E77),IF('Blank - Request Form'!$F$7=\"CIFDN\",IF('Blank - Request Form'!N77=0,\"\",'Blank - Request Form'!N77),\"\"))","v":""},{"$f":"IF('Blank - Request Form'!$F$6=\"CIFDN\",IF(OR('Blank - Request Form'!F77=\"000\",'Blank - Request Form'!F77=0),\"\",'Blank - Request Form'!F77),IF('Blank - Request Form'!$F$7=\"CIFDN\",IF(OR('Blank - Request Form'!O77=\"000\",'Blank - Request Form'!O77=0),\"\",'Blank - Request Form'!O77),\"\"))","v":""},{"$f":"IF('Blank - Request Form'!$F$6=\"CIFDN\",IF(OR('Blank - Request Form'!G77=\"0\",'Blank - Request Form'!G77=\"00000\",'Blank - Request Form'!G77=0),\"\",'Blank - Request Form'!G77),IF('Blank - Request Form'!$F$7=\"CIFDN\",IF(OR('Blank - Request Form'!P77=\"0\",'Blank - Request Form'!P77=\"00000\",'Blank - Request Form'!P77=0),\"\",'Blank - Request Form'!P77),\"\"))","v":""},{"$f":"IF('Blank - Request Form'!$F$6=\"CIFDN\",IF(OR('Blank - Request Form'!H77=\"0\",'Blank - Request Form'!H77=\"00000\",'Blank - Request Form'!H77=0),\"\",'Blank - Request Form'!H77),IF('Blank - Request Form'!$F$7=\"CIFDN\",IF(OR('Blank - Request Form'!Q77=\"0\",'Blank - Request Form'!Q77=\"00000\",'Blank - Request Form'!Q77=0),\"\",'Blank - Request Form'!Q77),\"\"))","v":""},{"$f":"IF('Blank - Request Form'!$F$6=\"CIFDN\",IF(OR('Blank - Request Form'!I77=\"0\",'Blank - Request Form'!I77=\"00000\",'Blank - Request Form'!I77=0),\"\",'Blank - Request Form'!I77),IF('Blank - Request Form'!$F$7=\"CIFDN\",IF(OR('Blank - Request Form'!R77=\"0\",'Blank - Request Form'!R77=\"00000\",'Blank - Request Form'!R77=0),\"\",'Blank - Request Form'!R77),\"\"))","v":""},null,{"$f":"IF('Blank - Request Form'!$F$6=\"CIFDN\",IF('Blank - Request Form'!K77=0,\"\",'Blank - Request Form'!K77),IF('Blank - Request Form'!$F$7=\"CIFDN\",IF('Blank - Request Form'!T77=0,\"\",'Blank - Request Form'!T77),\"\"))","v":""},null,null,null,{"$f":"IF(M43<>\"\",'Blank - Request Form'!$M$2,\"\")","v":""},{"$f":"IF('Blank - Request Form'!$F$6=\"CIFDN\",IF('Blank - Request Form'!J77=0,\"\",'Blank - Request Form'!J77),IF('Blank - Request Form'!$F$7=\"CIFDN\",IF('Blank - Request Form'!S77=0,\"\",'Blank - Request Form'!S77),\"\"))","v":""},"",43]
[{"$f":"IF('Blank - Request Form'!$F$6=\"CIFDN\",IF('Blank - Request Form'!D78=0,\"\",'Blank - Request Form'!D78),IF('Blank - Request Form'!$F$7=\"CIFDN\",IF('Blank - Request Form'!M78=0,\"\",'Blank - Request Form'!M78),\"\"))","v":""},{"$f":"IF('Blank - Request Form'!$F$6=\"CIFDN\",IF('Blank - Request Form'!E78=0,\"\",'Blank - Request Form'!E78),IF('Blank - Request Form'!$F$7=\"CIFDN\",IF('Blank - Request Form'!N78=0,\"\",'Blank - Request Form'!N78),\"\"))","v":""},{"$f":"IF('Blank - Request Form'!$F$6=\"CIFDN\",IF(OR('Blank - Request Form'!F78=\"000\",'Blank - Request Form'!F78=0),\"\",'Blank - Request Form'!F78),IF('Blank - Request Form'!$F$7=\"CIFDN\",IF(OR('Blank - Request Form'!O78=\"000\",'Blank - Request Form'!O78=0),\"\",'Blank - Request Form'!O78),\"\"))","v":""},{"$f":"IF('Blank - Request Form'!$F$6=\"CIFDN\",IF(OR('Blank - Request Form'!G78=\"0\",'Blank - Request Form'!G78=\"00000\",'Blank - Request Form'!G78=0),\"\",'Blank - Request Form'!G78),IF('Blank - Request Form'!$F$7=\"CIFDN\",IF(OR('Blank - Request Form'!P78=\"0\",'Blank - Request Form'!P78=\"00000\",'Blank - Request Form'!P78=0),\"\",'Blank - Request Form'!P78),\"\"))","v":""},{"$f":"IF('Blank - Request Form'!$F$6=\"CIFDN\",IF(OR('Blank - Request Form'!H78=\"0\",'Blank - Request Form'!H78=\"00000\",'Blank - Request Form'!H78=0),\"\",'Blank - Request Form'!H78),IF('Blank - Request Form'!$F$7=\"CIFDN\",IF(OR('Blank - Request Form'!Q78=\"0\",'Blank - Request Form'!Q78=\"00000\",'Blank - Request Form'!Q78=0),\"\",'Blank - Request Form'!Q78),\"\"))","v":""},{"$f":"IF('Blank - Request Form'!$F$6=\"CIFDN\",IF(OR('Blank - Request Form'!I78=\"0\",'Blank - Request Form'!I78=\"00000\",'Blank - Request Form'!I78=0),\"\",'Blank - Request Form'!I78),IF('Blank - Request Form'!$F$7=\"CIFDN\",IF(OR('Blank - Request Form'!R78=\"0\",'Blank - Request Form'!R78=\"00000\",'Blank - Request Form'!R78=0),\"\",'Blank - Request Form'!R78),\"\"))","v":""},null,{"$f":"IF('Blank - Request Form'!$F$6=\"CIFDN\",IF('Blank - Request Form'!K78=0,\"\",'Blank - Request Form'!K78),IF('Blank - Request Form'!$F$7=\"CIFDN\",IF('Blank - Request Form'!T78=0,\"\",'Blank - Request Form'!T78),\"\"))","v":""},null,null,null,{"$f":"IF(M44<>\"\",'Blank - Request Form'!$M$2,\"\")","v":""},{"$f":"IF('Blank - Request Form'!$F$6=\"CIFDN\",IF('Blank - Request Form'!J78=0,\"\",'Blank - Request Form'!J78),IF('Blank - Request Form'!$F$7=\"CIFDN\",IF('Blank - Request Form'!S78=0,\"\",'Blank - Request Form'!S78),\"\"))","v":""},{"$f":"IF(M44<>\"\",O44,\"\")","v":""},44]
[{"$f":"IF('Blank - Request Form'!$F$6=\"CIFDN\",IF('Blank - Request Form'!D79=0,\"\",'Blank - Request Form'!D79),IF('Blank - Request Form'!$F$7=\"CIFDN\",IF('Blank - Request Form'!M79=0,\"\",'Blank - Request Form'!M79),\"\"))","v":""},{"$f":"IF('Blank - Request Form'!$F$6=\"CIFDN\",IF('Blank - Request Form'!E79=0,\"\",'Blank - Request Form'!E79),IF('Blank - Request Form'!$F$7=\"CIFDN\",IF('Blank - Request Form'!N79=0,\"\",'Blank - Request Form'!N79),\"\"))","v":""},{"$f":"IF('Blank - Request Form'!$F$6=\"CIFDN\",IF(OR('Blank - Request Form'!F79=\"000\",'Blank - Request Form'!F79=0),\"\",'Blank - Request Form'!F79),IF('Blank - Request Form'!$F$7=\"CIFDN\",IF(OR('Blank - Request Form'!O79=\"000\",'Blank - Request Form'!O79=0),\"\",'Blank - Request Form'!O79),\"\"))","v":""},{"$f":"IF('Blank - Request Form'!$F$6=\"CIFDN\",IF(OR('Blank - Request Form'!G79=\"0\",'Blank - Request Form'!G79=\"00000\",'Blank - Request Form'!G79=0),\"\",'Blank - Request Form'!G79),IF('Blank - Request Form'!$F$7=\"CIFDN\",IF(OR('Blank - Request Form'!P79=\"0\",'Blank - Request Form'!P79=\"00000\",'Blank - Request Form'!P79=0),\"\",'Blank - Request Form'!P79),\"\"))","v":""},{"$f":"IF('Blank - Request Form'!$F$6=\"CIFDN\",IF(OR('Blank - Request Form'!H79=\"0\",'Blank - Request Form'!H79=\"00000\",'Blank - Request Form'!H79=0),\"\",'Blank - Request Form'!H79),IF('Blank - Request Form'!$F$7=\"CIFDN\",IF(OR('Blank - Request Form'!Q79=\"0\",'Blank - Request Form'!Q79=\"00000\",'Blank - Request Form'!Q79=0),\"\",'Blank - Request Form'!Q79),\"\"))","v":""},{"$f":"IF('Blank - Request Form'!$F$6=\"CIFDN\",IF(OR('Blank - Request Form'!I79=\"0\",'Blank - Request Form'!I79=\"00000\",'Blank - Request Form'!I79=0),\"\",'Blank - Request Form'!I79),IF('Blank - Request Form'!$F$7=\"CIFDN\",IF(OR('Blank - Request Form'!R79=\"0\",'Blank - Request Form'!R79=\"00000\",'Blank - Request Form'!R79=0),\"\",'Blank - Request Form'!R79),\"\"))","v":""},null,{"$f":"IF('Blank - Request Form'!$F$6=\"CIFDN\",IF('Blank - Request Form'!K79=0,\"\",'Blank - Request Form'!K79),IF('Blank - Request Form'!$F$7=\"CIFDN\",IF('Blank - Request Form'!T79=0,\"\",'Blank - Request Form'!T79),\"\"))","v":""},null,null,null,{"$f":"IF(M45<>\"\",'Blank - Request Form'!$M$2,\"\")","v":""},{"$f":"IF('Blank - Request Form'!$F$6=\"CIFDN\",IF('Blank - Request Form'!J79=0,\"\",'Blank - Request Form'!J79),IF('Blank - Request Form'!$F$7=\"CIFDN\",IF('Blank - Request Form'!S79=0,\"\",'Blank - Request Form'!S79),\"\"))","v":""},"",45]
[{"$f":"IF('Blank - Request Form'!$F$6=\"CIFDN\",IF('Blank - Request Form'!D80=0,\"\",'Blank - Request Form'!D80),IF('Blank - Request Form'!$F$7=\"CIFDN\",IF('Blank - Request Form'!M80=0,\"\",'Blank - Request Form'!M80),\"\"))","v":""},{"$f":"IF('Blank - Request Form'!$F$6=\"CIFDN\",IF('Blank - Request Form'!E80=0,\"\",'Blank - Request Form'!E80),IF('Blank - Request Form'!$F$7=\"CIFDN\",IF('Blank - Request Form'!N80=0,\"\",'Blank - Request Form'!N80),\"\"))","v":""},{"$f":"IF('Blank - Request Form'!$F$6=\"CIFDN\",IF(OR('Blank - Request Form'!F80=\"000\",'Blank - Request Form'!F80=0),\"\",'Blank - Request Form'!F80),IF('Blank - Request Form'!$F$7=\"CIFDN\",IF(OR('Blank - Request Form'!O80=\"000\",'Blank - Request Form'!O80=0),\"\",'Blank - Request Form'!O80),\"\"))","v":""},{"$f":"IF('Blank - Request Form'!$F$6=\"CIFDN\",IF(OR('Blank - Request Form'!G80=\"0\",'Blank - Request Form'!G80=\"00000\",'Blank - Request Form'!G80=0),\"\",'Blank - Request Form'!G80),IF('Blank - Request Form'!$F$7=\"CIFDN\",IF(OR('Blank - Request Form'!P80=\"0\",'Blank - Request Form'!P80=\"00000\",'Blank - Request Form'!P80=0),\"\",'Blank - Request Form'!P80),\"\"))","v":""},{"$f":"IF('Blank - Request Form'!$F$6=\"CIFDN\",IF(OR('Blank - Request Form'!H80=\"0\",'Blank - Request Form'!H80=\"00000\",'Blank - Request Form'!H80=0),\"\",'Blank - Request Form'!H80),IF('Blank - Request Form'!$F$7=\"CIFDN\",IF(OR('Blank - Request Form'!Q80=\"0\",'Blank - Request Form'!Q80=\"00000\",'Blank - Request Form'!Q80=0),\"\",'Blank - Request Form'!Q80),\"\"))","v":""},{"$f":"IF('Blank - Request Form'!$F$6=\"CIFDN\",IF(OR('Blank - Request Form'!I80=\"0\",'Blank - Request Form'!I80=\"00000\",'Blank - Request Form'!I80=0),\"\",'Blank - Request Form'!I80),IF('Blank - Request Form'!$F$7=\"CIFDN\",IF(OR('Blank - Request Form'!R80=\"0\",'Blank - Request Form'!R80=\"00000\",'Blank - Request Form'!R80=0),\"\",'Blank - Request Form'!R80),\"\"))","v":""},null,{"$f":"IF('Blank - Request Form'!$F$6=\"CIFDN\",IF('Blank - Request Form'!K80=0,\"\",'Blank - Request Form'!K80),IF('Blank - Request Form'!$F$7=\"CIFDN\",IF('Blank - Request Form'!T80=0,\"\",'Blank - Request Form'!T80),\"\"))","v":""},null,null,null,{"$f":"IF(M46<>\"\",'Blank - Request Form'!$M$2,\"\")","v":""},{"$f":"IF('Blank - Request Form'!$F$6=\"CIFDN\",IF('Blank - Request Form'!J80=0,\"\",'Blank - Request Form'!J80),IF('Blank - Request Form'!$F$7=\"CIFDN\",IF('Blank - Request Form'!S80=0,\"\",'Blank - Request Form'!S80),\"\"))","v":""},"",46]
[{"$f":"IF('Blank - Request Form'!$F$6=\"CIFDN\",IF('Blank - Request Form'!D81=0,\"\",'Blank - Request Form'!D81),IF('Blank - Request Form'!$F$7=\"CIFDN\",IF('Blank - Request Form'!M81=0,\"\",'Blank - Request Form'!M81),\"\"))","v":""},{"$f":"IF('Blank - Request Form'!$F$6=\"CIFDN\",IF('Blank - Request Form'!E81=0,\"\",'Blank - Request Form'!E81),IF('Blank - Request Form'!$F$7=\"CIFDN\",IF('Blank - Request Form'!N81=0,\"\",'Blank - Request Form'!N81),\"\"))","v":""},{"$f":"IF('Blank - Request Form'!$F$6=\"CIFDN\",IF(OR('Blank - Request Form'!F81=\"000\",'Blank - Request Form'!F81=0),\"\",'Blank - Request Form'!F81),IF('Blank - Request Form'!$F$7=\"CIFDN\",IF(OR('Blank - Request Form'!O81=\"000\",'Blank - Request Form'!O81=0),\"\",'Blank - Request Form'!O81),\"\"))","v":""},{"$f":"IF('Blank - Request Form'!$F$6=\"CIFDN\",IF(OR('Blank - Request Form'!G81=\"0\",'Blank - Request Form'!G81=\"00000\",'Blank - Request Form'!G81=0),\"\",'Blank - Request Form'!G81),IF('Blank - Request Form'!$F$7=\"CIFDN\",IF(OR('Blank - Request Form'!P81=\"0\",'Blank - Request Form'!P81=\"00000\",'Blank - Request Form'!P81=0),\"\",'Blank - Request Form'!P81),\"\"))","v":""},{"$f":"IF('Blank - Request Form'!$F$6=\"CIFDN\",IF(OR('Blank - Request Form'!H81=\"0\",'Blank - Request Form'!H81=\"00000\",'Blank - Request Form'!H81=0),\"\",'Blank - Request Form'!H81),IF('Blank - Request Form'!$F$7=\"CIFDN\",IF(OR('Blank - Request Form'!Q81=\"0\",'Blank - Request Form'!Q81=\"00000\",'Blank - Request Form'!Q81=0),\"\",'Blank - Request Form'!Q81),\"\"))","v":""},{"$f":"IF('Blank - Request Form'!$F$6=\"CIFDN\",IF(OR('Blank - Request Form'!I81=\"0\",'Blank - Request Form'!I81=\"00000\",'Blank - Request Form'!I81=0),\"\",'Blank - Request Form'!I81),IF('Blank - Request Form'!$F$7=\"CIFDN\",IF(OR('Blank - Request Form'!R81=\"0\",'Blank - Request Form'!R81=\"00000\",'Blank - Request Form'!R81=0),\"\",'Blank - Request Form'!R81),\"\"))","v":""},null,{"$f":"IF('Blank - Request Form'!$F$6=\"CIFDN\",IF('Blank - Request Form'!K81=0,\"\",'Blank - Request Form'!K81),IF('Blank - Request Form'!$F$7=\"CIFDN\",IF('Blank - Request Form'!T81=0,\"\",'Blank - Request Form'!T81),\"\"))","v":""},null,null,null,{"$f":"IF(M47<>\"\",'Blank - Request Form'!$M$2,\"\")","v":""},{"$f":"IF('Blank - Request Form'!$F$6=\"CIFDN\",IF('Blank - Request Form'!J81=0,\"\",'Blank - Request Form'!J81),IF('Blank - Request Form'!$F$7=\"CIFDN\",IF('Blank - Request Form'!S81=0,\"\",'Blank - Request Form'!S81),\"\"))","v":""},"",47]
[{"$f":"IF('Blank - Request Form'!$F$6=\"CIFDN\",IF('Blank - Request Form'!D82=0,\"\",'Blank - Request Form'!D82),IF('Blank - Request Form'!$F$7=\"CIFDN\",IF('Blank - Request Form'!M82=0,\"\",'Blank - Request Form'!M82),\"\"))","v":""},{"$f":"IF('Blank - Request Form'!$F$6=\"CIFDN\",IF('Blank - Request Form'!E82=0,\"\",'Blank - Request Form'!E82),IF('Blank - Request Form'!$F$7=\"CIFDN\",IF('Blank - Request Form'!N82=0,\"\",'Blank - Request Form'!N82),\"\"))","v":""},{"$f":"IF('Blank - Request Form'!$F$6=\"CIFDN\",IF(OR('Blank - Request Form'!F82=\"000\",'Blank - Request Form'!F82=0),\"\",'Blank - Request Form'!F82),IF('Blank - Request Form'!$F$7=\"CIFDN\",IF(OR('Blank - Request Form'!O82=\"000\",'Blank - Request Form'!O82=0),\"\",'Blank - Request Form'!O82),\"\"))","v":""},{"$f":"IF('Blank - Request Form'!$F$6=\"CIFDN\",IF(OR('Blank - Request Form'!G82=\"0\",'Blank - Request Form'!G82=\"00000\",'Blank - Request Form'!G82=0),\"\",'Blank - Request Form'!G82),IF('Blank - Request Form'!$F$7=\"CIFDN\",IF(OR('Blank - Request Form'!P82=\"0\",'Blank - Request Form'!P82=\"00000\",'Blank - Request Form'!P82=0),\"\",'Blank - Request Form'!P82),\"\"))","v":""},{"$f":"IF('Blank - Request Form'!$F$6=\"CIFDN\",IF(OR('Blank - Request Form'!H82=\"0\",'Blank - Request Form'!H82=\"00000\",'Blank - Request Form'!H82=0),\"\",'Blank - Request Form'!H82),IF('Blank - Request Form'!$F$7=\"CIFDN\",IF(OR('Blank - Request Form'!Q82=\"0\",'Blank - Request Form'!Q82=\"00000\",'Blank - Request Form'!Q82=0),\"\",'Blank - Request Form'!Q82),\"\"))","v":""},{"$f":"IF('Blank - Request Form'!$F$6=\"CIFDN\",IF(OR('Blank - Request Form'!I82=\"0\",'Blank - Request Form'!I82=\"00000\",'Blank - Request Form'!I82=0),\"\",'Blank - Request Form'!I82),IF('Blank - Request Form'!$F$7=\"CIFDN\",IF(OR('Blank - Request Form'!R82=\"0\",'Blank - Request Form'!R82=\"00000\",'Blank - Request Form'!R82=0),\"\",'Blank - Request Form'!R82),\"\"))","v":""},null,{"$f":"IF('Blank - Request Form'!$F$6=\"CIFDN\",IF('Blank - Request Form'!K82=0,\"\",'Blank - Request Form'!K82),IF('Blank - Request Form'!$F$7=\"CIFDN\",IF('Blank - Request Form'!T82=0,\"\",'Blank - Request Form'!T82),\"\"))","v":""},null,null,null,{"$f":"IF(M48<>\"\",'Blank - Request Form'!$M$2,\"\")","v":""},{"$f":"IF('Blank - Request Form'!$F$6=\"CIFDN\",IF('Blank - Request Form'!J82=0,\"\",'Blank - Request Form'!J82),IF('Blank - Request Form'!$F$7=\"CIFDN\",IF('Blank - Request Form'!S82=0,\"\",'Blank - Request Form'!S82),\"\"))","v":""},"",48]
[{"$f":"IF('Blank - Request Form'!$F$6=\"CIFDN\",IF('Blank - Request Form'!D83=0,\"\",'Blank - Request Form'!D83),IF('Blank - Request Form'!$F$7=\"CIFDN\",IF('Blank - Request Form'!M83=0,\"\",'Blank - Request Form'!M83),\"\"))","v":""},{"$f":"IF('Blank - Request Form'!$F$6=\"CIFDN\",IF('Blank - Request Form'!E83=0,\"\",'Blank - Request Form'!E83),IF('Blank - Request Form'!$F$7=\"CIFDN\",IF('Blank - Request Form'!N83=0,\"\",'Blank - Request Form'!N83),\"\"))","v":""},{"$f":"IF('Blank - Request Form'!$F$6=\"CIFDN\",IF(OR('Blank - Request Form'!F83=\"000\",'Blank - Request Form'!F83=0),\"\",'Blank - Request Form'!F83),IF('Blank - Request Form'!$F$7=\"CIFDN\",IF(OR('Blank - Request Form'!O83=\"000\",'Blank - Request Form'!O83=0),\"\",'Blank - Request Form'!O83),\"\"))","v":""},{"$f":"IF('Blank - Request Form'!$F$6=\"CIFDN\",IF(OR('Blank - Request Form'!G83=\"0\",'Blank - Request Form'!G83=\"00000\",'Blank - Request Form'!G83=0),\"\",'Blank - Request Form'!G83),IF('Blank - Request Form'!$F$7=\"CIFDN\",IF(OR('Blank - Request Form'!P83=\"0\",'Blank - Request Form'!P83=\"00000\",'Blank - Request Form'!P83=0),\"\",'Blank - Request Form'!P83),\"\"))","v":""},{"$f":"IF('Blank - Request Form'!$F$6=\"CIFDN\",IF(OR('Blank - Request Form'!H83=\"0\",'Blank - Request Form'!H83=\"00000\",'Blank - Request Form'!H83=0),\"\",'Blank - Request Form'!H83),IF('Blank - Request Form'!$F$7=\"CIFDN\",IF(OR('Blank - Request Form'!Q83=\"0\",'Blank - Request Form'!Q83=\"00000\",'Blank - Request Form'!Q83=0),\"\",'Blank - Request Form'!Q83),\"\"))","v":""},{"$f":"IF('Blank - Request Form'!$F$6=\"CIFDN\",IF(OR('Blank - Request Form'!I83=\"0\",'Blank - Request Form'!I83=\"00000\",'Blank - Request Form'!I83=0),\"\",'Blank - Request Form'!I83),IF('Blank - Request Form'!$F$7=\"CIFDN\",IF(OR('Blank - Request Form'!R83=\"0\",'Blank - Request Form'!R83=\"00000\",'Blank - Request Form'!R83=0),\"\",'Blank - Request Form'!R83),\"\"))","v":""},null,{"$f":"IF('Blank - Request Form'!$F$6=\"CIFDN\",IF('Blank - Request Form'!K83=0,\"\",'Blank - Request Form'!K83),IF('Blank - Request Form'!$F$7=\"CIFDN\",IF('Blank - Request Form'!T83=0,\"\",'Blank - Request Form'!T83),\"\"))","v":""},null,null,null,{"$f":"IF(M49<>\"\",'Blank - Request Form'!$M$2,\"\")","v":""},{"$f":"IF('Blank - Request Form'!$F$6=\"CIFDN\",IF('Blank - Request Form'!J83=0,\"\",'Blank - Request Form'!J83),IF('Blank - Request Form'!$F$7=\"CIFDN\",IF('Blank - Request Form'!S83=0,\"\",'Blank - Request Form'!S83),\"\"))","v":""},"",49]
[{"$f":"IF('Blank - Request Form'!$F$6=\"CIFDN\",IF('Blank - Request Form'!D84=0,\"\",'Blank - Request Form'!D84),IF('Blank - Request Form'!$F$7=\"CIFDN\",IF('Blank - Request Form'!M84=0,\"\",'Blank - Request Form'!M84),\"\"))","v":""},{"$f":"IF('Blank - Request Form'!$F$6=\"CIFDN\",IF('Blank - Request Form'!E84=0,\"\",'Blank - Request Form'!E84),IF('Blank - Request Form'!$F$7=\"CIFDN\",IF('Blank - Request Form'!N84=0,\"\",'Blank - Request Form'!N84),\"\"))","v":""},{"$f":"IF('Blank - Request Form'!$F$6=\"CIFDN\",IF(OR('Blank - Request Form'!F84=\"000\",'Blank - Request Form'!F84=0),\"\",'Blank - Request Form'!F84),IF('Blank - Request Form'!$F$7=\"CIFDN\",IF(OR('Blank - Request Form'!O84=\"000\",'Blank - Request Form'!O84=0),\"\",'Blank - Request Form'!O84),\"\"))","v":""},{"$f":"IF('Blank - Request Form'!$F$6=\"CIFDN\",IF(OR('Blank - Request Form'!G84=\"0\",'Blank - Request Form'!G84=\"00000\",'Blank - Request Form'!G84=0),\"\",'Blank - Request Form'!G84),IF('Blank - Request Form'!$F$7=\"CIFDN\",IF(OR('Blank - Request Form'!P84=\"0\",'Blank - Request Form'!P84=\"00000\",'Blank - Request Form'!P84=0),\"\",'Blank - Request Form'!P84),\"\"))","v":""},{"$f":"IF('Blank - Request Form'!$F$6=\"CIFDN\",IF(OR('Blank - Request Form'!H84=\"0\",'Blank - Request Form'!H84=\"00000\",'Blank - Request Form'!H84=0),\"\",'Blank - Request Form'!H84),IF('Blank - Request Form'!$F$7=\"CIFDN\",IF(OR('Blank - Request Form'!Q84=\"0\",'Blank - Request Form'!Q84=\"00000\",'Blank - Request Form'!Q84=0),\"\",'Blank - Request Form'!Q84),\"\"))","v":""},{"$f":"IF('Blank - Request Form'!$F$6=\"CIFDN\",IF(OR('Blank - Request Form'!I84=\"0\",'Blank - Request Form'!I84=\"00000\",'Blank - Request Form'!I84=0),\"\",'Blank - Request Form'!I84),IF('Blank - Request Form'!$F$7=\"CIFDN\",IF(OR('Blank - Request Form'!R84=\"0\",'Blank - Request Form'!R84=\"00000\",'Blank - Request Form'!R84=0),\"\",'Blank - Request Form'!R84),\"\"))","v":""},null,{"$f":"IF('Blank - Request Form'!$F$6=\"CIFDN\",IF('Blank - Request Form'!K84=0,\"\",'Blank - Request Form'!K84),IF('Blank - Request Form'!$F$7=\"CIFDN\",IF('Blank - Request Form'!T84=0,\"\",'Blank - Request Form'!T84),\"\"))","v":""},null,null,null,{"$f":"IF(M50<>\"\",'Blank - Request Form'!$M$2,\"\")","v":""},{"$f":"IF('Blank - Request Form'!$F$6=\"CIFDN\",IF('Blank - Request Form'!J84=0,\"\",'Blank - Request Form'!J84),IF('Blank - Request Form'!$F$7=\"CIFDN\",IF('Blank - Request Form'!S84=0,\"\",'Blank - Request Form'!S84),\"\"))","v":""},"",50]
[{"$f":"IF('Blank - Request Form'!$F$6=\"CIFDN\",IF('Blank - Request Form'!D85=0,\"\",'Blank - Request Form'!D85),IF('Blank - Request Form'!$F$7=\"CIFDN\",IF('Blank - Request Form'!M85=0,\"\",'Blank - Request Form'!M85),\"\"))","v":""},{"$f":"IF('Blank - Request Form'!$F$6=\"CIFDN\",IF('Blank - Request Form'!E85=0,\"\",'Blank - Request Form'!E85),IF('Blank - Request Form'!$F$7=\"CIFDN\",IF('Blank - Request Form'!N85=0,\"\",'Blank - Request Form'!N85),\"\"))","v":""},{"$f":"IF('Blank - Request Form'!$F$6=\"CIFDN\",IF(OR('Blank - Request Form'!F85=\"000\",'Blank - Request Form'!F85=0),\"\",'Blank - Request Form'!F85),IF('Blank - Request Form'!$F$7=\"CIFDN\",IF(OR('Blank - Request Form'!O85=\"000\",'Blank - Request Form'!O85=0),\"\",'Blank - Request Form'!O85),\"\"))","v":""},{"$f":"IF('Blank - Request Form'!$F$6=\"CIFDN\",IF(OR('Blank - Request Form'!G85=\"0\",'Blank - Request Form'!G85=\"00000\",'Blank - Request Form'!G85=0),\"\",'Blank - Request Form'!G85),IF('Blank - Request Form'!$F$7=\"CIFDN\",IF(OR('Blank - Request Form'!P85=\"0\",'Blank - Request Form'!P85=\"00000\",'Blank - Request Form'!P85=0),\"\",'Blank - Request Form'!P85),\"\"))","v":""},{"$f":"IF('Blank - Request Form'!$F$6=\"CIFDN\",IF(OR('Blank - Request Form'!H85=\"0\",'Blank - Request Form'!H85=\"00000\",'Blank - Request Form'!H85=0),\"\",'Blank - Request Form'!H85),IF('Blank - Request Form'!$F$7=\"CIFDN\",IF(OR('Blank - Request Form'!Q85=\"0\",'Blank - Request Form'!Q85=\"00000\",'Blank - Request Form'!Q85=0),\"\",'Blank - Request Form'!Q85),\"\"))","v":""},{"$f":"IF('Blank - Request Form'!$F$6=\"CIFDN\",IF(OR('Blank - Request Form'!I85=\"0\",'Blank - Request Form'!I85=\"00000\",'Blank - Request Form'!I85=0),\"\",'Blank - Request Form'!I85),IF('Blank - Request Form'!$F$7=\"CIFDN\",IF(OR('Blank - Request Form'!R85=\"0\",'Blank - Request Form'!R85=\"00000\",'Blank - Request Form'!R85=0),\"\",'Blank - Request Form'!R85),\"\"))","v":""},null,{"$f":"IF('Blank - Request Form'!$F$6=\"CIFDN\",IF('Blank - Request Form'!K85=0,\"\",'Blank - Request Form'!K85),IF('Blank - Request Form'!$F$7=\"CIFDN\",IF('Blank - Request Form'!T85=0,\"\",'Blank - Request Form'!T85),\"\"))","v":""},null,null,null,{"$f":"IF(M51<>\"\",'Blank - Request Form'!$M$2,\"\")","v":""},{"$f":"IF('Blank - Request Form'!$F$6=\"CIFDN\",IF('Blank - Request Form'!J85=0,\"\",'Blank - Request Form'!J85),IF('Blank - Request Form'!$F$7=\"CIFDN\",IF('Blank - Request Form'!S85=0,\"\",'Blank - Request Form'!S85),\"\"))","v":""},"",51]
[{"$f":"IF('Blank - Request Form'!$F$6=\"CIFDN\",IF('Blank - Request Form'!D86=0,\"\",'Blank - Request Form'!D86),IF('Blank - Request Form'!$F$7=\"CIFDN\",IF('Blank - Request Form'!M86=0,\"\",'Blank - Request Form'!M86),\"\"))","v":""},{"$f":"IF('Blank - Request Form'!$F$6=\"CIFDN\",IF('Blank - Request Form'!E86=0,\"\",'Blank - Request Form'!E86),IF('Blank - Request Form'!$F$7=\"CIFDN\",IF('Blank - Request Form'!N86=0,\"\",'Blank - Request Form'!N86),\"\"))","v":""},{"$f":"IF('Blank - Request Form'!$F$6=\"CIFDN\",IF(OR('Blank - Request Form'!F86=\"000\",'Blank - Request Form'!F86=0),\"\",'Blank - Request Form'!F86),IF('Blank - Request Form'!$F$7=\"CIFDN\",IF(OR('Blank - Request Form'!O86=\"000\",'Blank - Request Form'!O86=0),\"\",'Blank - Request Form'!O86),\"\"))","v":""},{"$f":"IF('Blank - Request Form'!$F$6=\"CIFDN\",IF(OR('Blank - Request Form'!G86=\"0\",'Blank - Request Form'!G86=\"00000\",'Blank - Request Form'!G86=0),\"\",'Blank - Request Form'!G86),IF('Blank - Request Form'!$F$7=\"CIFDN\",IF(OR('Blank - Request Form'!P86=\"0\",'Blank - Request Form'!P86=\"00000\",'Blank - Request Form'!P86=0),\"\",'Blank - Request Form'!P86),\"\"))","v":""},{"$f":"IF('Blank - Request Form'!$F$6=\"CIFDN\",IF(OR('Blank - Request Form'!H86=\"0\",'Blank - Request Form'!H86=\"00000\",'Blank - Request Form'!H86=0),\"\",'Blank - Request Form'!H86),IF('Blank - Request Form'!$F$7=\"CIFDN\",IF(OR('Blank - Request Form'!Q86=\"0\",'Blank - Request Form'!Q86=\"00000\",'Blank - Request Form'!Q86=0),\"\",'Blank - Request Form'!Q86),\"\"))","v":""},{"$f":"IF('Blank - Request Form'!$F$6=\"CIFDN\",IF(OR('Blank - Request Form'!I86=\"0\",'Blank - Request Form'!I86=\"00000\",'Blank - Request Form'!I86=0),\"\",'Blank - Request Form'!I86),IF('Blank - Request Form'!$F$7=\"CIFDN\",IF(OR('Blank - Request Form'!R86=\"0\",'Blank - Request Form'!R86=\"00000\",'Blank - Request Form'!R86=0),\"\",'Blank - Request Form'!R86),\"\"))","v":""},null,{"$f":"IF('Blank - Request Form'!$F$6=\"CIFDN\",IF('Blank - Request Form'!K86=0,\"\",'Blank - Request Form'!K86),IF('Blank - Request Form'!$F$7=\"CIFDN\",IF('Blank - Request Form'!T86=0,\"\",'Blank - Request Form'!T86),\"\"))","v":""},null,null,null,{"$f":"IF(M52<>\"\",'Blank - Request Form'!$M$2,\"\")","v":""},{"$f":"IF('Blank - Request Form'!$F$6=\"CIFDN\",IF('Blank - Request Form'!J86=0,\"\",'Blank - Request Form'!J86),IF('Blank - Request Form'!$F$7=\"CIFDN\",IF('Blank - Request Form'!S86=0,\"\",'Blank - Request Form'!S86),\"\"))","v":""},"",52]
[{"$f":"IF('Blank - Request Form'!$F$6=\"CIFDN\",IF('Blank - Request Form'!D87=0,\"\",'Blank - Request Form'!D87),IF('Blank - Request Form'!$F$7=\"CIFDN\",IF('Blank - Request Form'!M87=0,\"\",'Blank - Request Form'!M87),\"\"))","v":""},{"$f":"IF('Blank - Request Form'!$F$6=\"CIFDN\",IF('Blank - Request Form'!E87=0,\"\",'Blank - Request Form'!E87),IF('Blank - Request Form'!$F$7=\"CIFDN\",IF('Blank - Request Form'!N87=0,\"\",'Blank - Request Form'!N87),\"\"))","v":""},{"$f":"IF('Blank - Request Form'!$F$6=\"CIFDN\",IF(OR('Blank - Request Form'!F87=\"000\",'Blank - Request Form'!F87=0),\"\",'Blank - Request Form'!F87),IF('Blank - Request Form'!$F$7=\"CIFDN\",IF(OR('Blank - Request Form'!O87=\"000\",'Blank - Request Form'!O87=0),\"\",'Blank - Request Form'!O87),\"\"))","v":""},{"$f":"IF('Blank - Request Form'!$F$6=\"CIFDN\",IF(OR('Blank - Request Form'!G87=\"0\",'Blank - Request Form'!G87=\"00000\",'Blank - Request Form'!G87=0),\"\",'Blank - Request Form'!G87),IF('Blank - Request Form'!$F$7=\"CIFDN\",IF(OR('Blank - Request Form'!P87=\"0\",'Blank - Request Form'!P87=\"00000\",'Blank - Request Form'!P87=0),\"\",'Blank - Request Form'!P87),\"\"))","v":""},{"$f":"IF('Blank - Request Form'!$F$6=\"CIFDN\",IF(OR('Blank - Request Form'!H87=\"0\",'Blank - Request Form'!H87=\"00000\",'Blank - Request Form'!H87=0),\"\",'Blank - Request Form'!H87),IF('Blank - Request Form'!$F$7=\"CIFDN\",IF(OR('Blank - Request Form'!Q87=\"0\",'Blank - Request Form'!Q87=\"00000\",'Blank - Request Form'!Q87=0),\"\",'Blank - Request Form'!Q87),\"\"))","v":""},{"$f":"IF('Blank - Request Form'!$F$6=\"CIFDN\",IF(OR('Blank - Request Form'!I87=\"0\",'Blank - Request Form'!I87=\"00000\",'Blank - Request Form'!I87=0),\"\",'Blank - Request Form'!I87),IF('Blank - Request Form'!$F$7=\"CIFDN\",IF(OR('Blank - Request Form'!R87=\"0\",'Blank - Request Form'!R87=\"00000\",'Blank - Request Form'!R87=0),\"\",'Blank - Request Form'!R87),\"\"))","v":""},null,{"$f":"IF('Blank - Request Form'!$F$6=\"CIFDN\",IF('Blank - Request Form'!K87=0,\"\",'Blank - Request Form'!K87),IF('Blank - Request Form'!$F$7=\"CIFDN\",IF('Blank - Request Form'!T87=0,\"\",'Blank - Request Form'!T87),\"\"))","v":""},null,null,null,{"$f":"IF(M53<>\"\",'Blank - Request Form'!$M$2,\"\")","v":""},{"$f":"IF('Blank - Request Form'!$F$6=\"CIFDN\",IF('Blank - Request Form'!J87=0,\"\",'Blank - Request Form'!J87),IF('Blank - Request Form'!$F$7=\"CIFDN\",IF('Blank - Request Form'!S87=0,\"\",'Blank - Request Form'!S87),\"\"))","v":""},"",53]
[{"$f":"IF('Blank - Request Form'!$F$6=\"CIFDN\",IF('Blank - Request Form'!D88=0,\"\",'Blank - Request Form'!D88),IF('Blank - Request Form'!$F$7=\"CIFDN\",IF('Blank - Request Form'!M88=0,\"\",'Blank - Request Form'!M88),\"\"))","v":""},{"$f":"IF('Blank - Request Form'!$F$6=\"CIFDN\",IF('Blank - Request Form'!E88=0,\"\",'Blank - Request Form'!E88),IF('Blank - Request Form'!$F$7=\"CIFDN\",IF('Blank - Request Form'!N88=0,\"\",'Blank - Request Form'!N88),\"\"))","v":""},{"$f":"IF('Blank - Request Form'!$F$6=\"CIFDN\",IF(OR('Blank - Request Form'!F88=\"000\",'Blank - Request Form'!F88=0),\"\",'Blank - Request Form'!F88),IF('Blank - Request Form'!$F$7=\"CIFDN\",IF(OR('Blank - Request Form'!O88=\"000\",'Blank - Request Form'!O88=0),\"\",'Blank - Request Form'!O88),\"\"))","v":""},{"$f":"IF('Blank - Request Form'!$F$6=\"CIFDN\",IF(OR('Blank - Request Form'!G88=\"0\",'Blank - Request Form'!G88=\"00000\",'Blank - Request Form'!G88=0),\"\",'Blank - Request Form'!G88),IF('Blank - Request Form'!$F$7=\"CIFDN\",IF(OR('Blank - Request Form'!P88=\"0\",'Blank - Request Form'!P88=\"00000\",'Blank - Request Form'!P88=0),\"\",'Blank - Request Form'!P88),\"\"))","v":""},{"$f":"IF('Blank - Request Form'!$F$6=\"CIFDN\",IF(OR('Blank - Request Form'!H88=\"0\",'Blank - Request Form'!H88=\"00000\",'Blank - Request Form'!H88=0),\"\",'Blank - Request Form'!H88),IF('Blank - Request Form'!$F$7=\"CIFDN\",IF(OR('Blank - Request Form'!Q88=\"0\",'Blank - Request Form'!Q88=\"00000\",'Blank - Request Form'!Q88=0),\"\",'Blank - Request Form'!Q88),\"\"))","v":""},{"$f":"IF('Blank - Request Form'!$F$6=\"CIFDN\",IF(OR('Blank - Request Form'!I88=\"0\",'Blank - Request Form'!I88=\"00000\",'Blank - Request Form'!I88=0),\"\",'Blank - Request Form'!I88),IF('Blank - Request Form'!$F$7=\"CIFDN\",IF(OR('Blank - Request Form'!R88=\"0\",'Blank - Request Form'!R88=\"00000\",'Blank - Request Form'!R88=0),\"\",'Blank - Request Form'!R88),\"\"))","v":""},null,{"$f":"IF('Blank - Request Form'!$F$6=\"CIFDN\",IF('Blank - Request Form'!K88=0,\"\",'Blank - Request Form'!K88),IF('Blank - Request Form'!$F$7=\"CIFDN\",IF('Blank - Request Form'!T88=0,\"\",'Blank - Request Form'!T88),\"\"))","v":""},null,null,null,{"$f":"IF(M54<>\"\",'Blank - Request Form'!$M$2,\"\")","v":""},{"$f":"IF('Blank - Request Form'!$F$6=\"CIFDN\",IF('Blank - Request Form'!J88=0,\"\",'Blank - Request Form'!J88),IF('Blank - Request Form'!$F$7=\"CIFDN\",IF('Blank - Request Form'!S88=0,\"\",'Blank - Request Form'!S88),\"\"))","v":""},"",54]
[{"$f":"IF('Blank - Request Form'!$F$6=\"CIFDN\",IF('Blank - Request Form'!D89=0,\"\",'Blank - Request Form'!D89),IF('Blank - Request Form'!$F$7=\"CIFDN\",IF('Blank - Request Form'!M89=0,\"\",'Blank - Request Form'!M89),\"\"))","v":""},{"$f":"IF('Blank - Request Form'!$F$6=\"CIFDN\",IF('Blank - Request Form'!E89=0,\"\",'Blank - Request Form'!E89),IF('Blank - Request Form'!$F$7=\"CIFDN\",IF('Blank - Request Form'!N89=0,\"\",'Blank - Request Form'!N89),\"\"))","v":""},{"$f":"IF('Blank - Request Form'!$F$6=\"CIFDN\",IF(OR('Blank - Request Form'!F89=\"000\",'Blank - Request Form'!F89=0),\"\",'Blank - Request Form'!F89),IF('Blank - Request Form'!$F$7=\"CIFDN\",IF(OR('Blank - Request Form'!O89=\"000\",'Blank - Request Form'!O89=0),\"\",'Blank - Request Form'!O89),\"\"))","v":""},{"$f":"IF('Blank - Request Form'!$F$6=\"CIFDN\",IF(OR('Blank - Request Form'!G89=\"0\",'Blank - Request Form'!G89=\"00000\",'Blank - Request Form'!G89=0),\"\",'Blank - Request Form'!G89),IF('Blank - Request Form'!$F$7=\"CIFDN\",IF(OR('Blank - Request Form'!P89=\"0\",'Blank - Request Form'!P89=\"00000\",'Blank - Request Form'!P89=0),\"\",'Blank - Request Form'!P89),\"\"))","v":""},{"$f":"IF('Blank - Request Form'!$F$6=\"CIFDN\",IF(OR('Blank - Request Form'!H89=\"0\",'Blank - Request Form'!H89=\"00000\",'Blank - Request Form'!H89=0),\"\",'Blank - Request Form'!H89),IF('Blank - Request Form'!$F$7=\"CIFDN\",IF(OR('Blank - Request Form'!Q89=\"0\",'Blank - Request Form'!Q89=\"00000\",'Blank - Request Form'!Q89=0),\"\",'Blank - Request Form'!Q89),\"\"))","v":""},{"$f":"IF('Blank - Request Form'!$F$6=\"CIFDN\",IF(OR('Blank - Request Form'!I89=\"0\",'Blank - Request Form'!I89=\"00000\",'Blank - Request Form'!I89=0),\"\",'Blank - Request Form'!I89),IF('Blank - Request Form'!$F$7=\"CIFDN\",IF(OR('Blank - Request Form'!R89=\"0\",'Blank - Request Form'!R89=\"00000\",'Blank - Request Form'!R89=0),\"\",'Blank - Request Form'!R89),\"\"))","v":""},null,{"$f":"IF('Blank - Request Form'!$F$6=\"CIFDN\",IF('Blank - Request Form'!K89=0,\"\",'Blank - Request Form'!K89),IF('Blank - Request Form'!$F$7=\"CIFDN\",IF('Blank - Request Form'!T89=0,\"\",'Blank - Request Form'!T89),\"\"))","v":""},null,null,null,{"$f":"IF(M55<>\"\",'Blank - Request Form'!$M$2,\"\")","v":""},{"$f":"IF('Blank - Request Form'!$F$6=\"CIFDN\",IF('Blank - Request Form'!J89=0,\"\",'Blank - Request Form'!J89),IF('Blank - Request Form'!$F$7=\"CIFDN\",IF('Blank - Request Form'!S89=0,\"\",'Blank - Request Form'!S89),\"\"))","v":""},"",55]
[{"$f":"IF('Blank - Request Form'!$F$6=\"CIFDN\",IF('Blank - Request Form'!D90=0,\"\",'Blank - Request Form'!D90),IF('Blank - Request Form'!$F$7=\"CIFDN\",IF('Blank - Request Form'!M90=0,\"\",'Blank - Request Form'!M90),\"\"))","v":""},{"$f":"IF('Blank - Request Form'!$F$6=\"CIFDN\",IF('Blank - Request Form'!E90=0,\"\",'Blank - Request Form'!E90),IF('Blank - Request Form'!$F$7=\"CIFDN\",IF('Blank - Request Form'!N90=0,\"\",'Blank - Request Form'!N90),\"\"))","v":""},{"$f":"IF('Blank - Request Form'!$F$6=\"CIFDN\",IF(OR('Blank - Request Form'!F90=\"000\",'Blank - Request Form'!F90=0),\"\",'Blank - Request Form'!F90),IF('Blank - Request Form'!$F$7=\"CIFDN\",IF(OR('Blank - Request Form'!O90=\"000\",'Blank - Request Form'!O90=0),\"\",'Blank - Request Form'!O90),\"\"))","v":""},{"$f":"IF('Blank - Request Form'!$F$6=\"CIFDN\",IF(OR('Blank - Request Form'!G90=\"0\",'Blank - Request Form'!G90=\"00000\",'Blank - Request Form'!G90=0),\"\",'Blank - Request Form'!G90),IF('Blank - Request Form'!$F$7=\"CIFDN\",IF(OR('Blank - Request Form'!P90=\"0\",'Blank - Request Form'!P90=\"00000\",'Blank - Request Form'!P90=0),\"\",'Blank - Request Form'!P90),\"\"))","v":""},{"$f":"IF('Blank - Request Form'!$F$6=\"CIFDN\",IF(OR('Blank - Request Form'!H90=\"0\",'Blank - Request Form'!H90=\"00000\",'Blank - Request Form'!H90=0),\"\",'Blank - Request Form'!H90),IF('Blank - Request Form'!$F$7=\"CIFDN\",IF(OR('Blank - Request Form'!Q90=\"0\",'Blank - Request Form'!Q90=\"00000\",'Blank - Request Form'!Q90=0),\"\",'Blank - Request Form'!Q90),\"\"))","v":""},{"$f":"IF('Blank - Request Form'!$F$6=\"CIFDN\",IF(OR('Blank - Request Form'!I90=\"0\",'Blank - Request Form'!I90=\"00000\",'Blank - Request Form'!I90=0),\"\",'Blank - Request Form'!I90),IF('Blank - Request Form'!$F$7=\"CIFDN\",IF(OR('Blank - Request Form'!R90=\"0\",'Blank - Request Form'!R90=\"00000\",'Blank - Request Form'!R90=0),\"\",'Blank - Request Form'!R90),\"\"))","v":""},null,{"$f":"IF('Blank - Request Form'!$F$6=\"CIFDN\",IF('Blank - Request Form'!K90=0,\"\",'Blank - Request Form'!K90),IF('Blank - Request Form'!$F$7=\"CIFDN\",IF('Blank - Request Form'!T90=0,\"\",'Blank - Request Form'!T90),\"\"))","v":""},null,null,null,{"$f":"IF(M56<>\"\",'Blank - Request Form'!$M$2,\"\")","v":""},{"$f":"IF('Blank - Request Form'!$F$6=\"CIFDN\",IF('Blank - Request Form'!J90=0,\"\",'Blank - Request Form'!J90),IF('Blank - Request Form'!$F$7=\"CIFDN\",IF('Blank - Request Form'!S90=0,\"\",'Blank - Request Form'!S90),\"\"))","v":""},"",56]
[{"$f":"IF('Blank - Request Form'!$F$6=\"CIFDN\",IF('Blank - Request Form'!D91=0,\"\",'Blank - Request Form'!D91),IF('Blank - Request Form'!$F$7=\"CIFDN\",IF('Blank - Request Form'!M91=0,\"\",'Blank - Request Form'!M91),\"\"))","v":""},{"$f":"IF('Blank - Request Form'!$F$6=\"CIFDN\",IF('Blank - Request Form'!E91=0,\"\",'Blank - Request Form'!E91),IF('Blank - Request Form'!$F$7=\"CIFDN\",IF('Blank - Request Form'!N91=0,\"\",'Blank - Request Form'!N91),\"\"))","v":""},{"$f":"IF('Blank - Request Form'!$F$6=\"CIFDN\",IF(OR('Blank - Request Form'!F91=\"000\",'Blank - Request Form'!F91=0),\"\",'Blank - Request Form'!F91),IF('Blank - Request Form'!$F$7=\"CIFDN\",IF(OR('Blank - Request Form'!O91=\"000\",'Blank - Request Form'!O91=0),\"\",'Blank - Request Form'!O91),\"\"))","v":""},{"$f":"IF('Blank - Request Form'!$F$6=\"CIFDN\",IF(OR('Blank - Request Form'!G91=\"0\",'Blank - Request Form'!G91=\"00000\",'Blank - Request Form'!G91=0),\"\",'Blank - Request Form'!G91),IF('Blank - Request Form'!$F$7=\"CIFDN\",IF(OR('Blank - Request Form'!P91=\"0\",'Blank - Request Form'!P91=\"00000\",'Blank - Request Form'!P91=0),\"\",'Blank - Request Form'!P91),\"\"))","v":""},{"$f":"IF('Blank - Request Form'!$F$6=\"CIFDN\",IF(OR('Blank - Request Form'!H91=\"0\",'Blank - Request Form'!H91=\"00000\",'Blank - Request Form'!H91=0),\"\",'Blank - Request Form'!H91),IF('Blank - Request Form'!$F$7=\"CIFDN\",IF(OR('Blank - Request Form'!Q91=\"0\",'Blank - Request Form'!Q91=\"00000\",'Blank - Request Form'!Q91=0),\"\",'Blank - Request Form'!Q91),\"\"))","v":""},{"$f":"IF('Blank - Request Form'!$F$6=\"CIFDN\",IF(OR('Blank - Request Form'!I91=\"0\",'Blank - Request Form'!I91=\"00000\",'Blank - Request Form'!I91=0),\"\",'Blank - Request Form'!I91),IF('Blank - Request Form'!$F$7=\"CIFDN\",IF(OR('Blank - Request Form'!R91=\"0\",'Blank - Request Form'!R91=\"00000\",'Blank - Request Form'!R91=0),\"\",'Blank - Request Form'!R91),\"\"))","v":""},null,{"$f":"IF('Blank - Request Form'!$F$6=\"CIFDN\",IF('Blank - Request Form'!K91=0,\"\",'Blank - Request Form'!K91),IF('Blank - Request Form'!$F$7=\"CIFDN\",IF('Blank - Request Form'!T91=0,\"\",'Blank - Request Form'!T91),\"\"))","v":""},null,null,null,{"$f":"IF(M57<>\"\",'Blank - Request Form'!$M$2,\"\")","v":""},{"$f":"IF('Blank - Request Form'!$F$6=\"CIFDN\",IF('Blank - Request Form'!J91=0,\"\",'Blank - Request Form'!J91),IF('Blank - Request Form'!$F$7=\"CIFDN\",IF('Blank - Request Form'!S91=0,\"\",'Blank - Request Form'!S91),\"\"))","v":""},"",57]
[{"$f":"IF('Blank - Request Form'!$F$6=\"CIFDN\",IF('Blank - Request Form'!D92=0,\"\",'Blank - Request Form'!D92),IF('Blank - Request Form'!$F$7=\"CIFDN\",IF('Blank - Request Form'!M92=0,\"\",'Blank - Request Form'!M92),\"\"))","v":""},{"$f":"IF('Blank - Request Form'!$F$6=\"CIFDN\",IF('Blank - Request Form'!E92=0,\"\",'Blank - Request Form'!E92),IF('Blank - Request Form'!$F$7=\"CIFDN\",IF('Blank - Request Form'!N92=0,\"\",'Blank - Request Form'!N92),\"\"))","v":""},{"$f":"IF('Blank - Request Form'!$F$6=\"CIFDN\",IF(OR('Blank - Request Form'!F92=\"000\",'Blank - Request Form'!F92=0),\"\",'Blank - Request Form'!F92),IF('Blank - Request Form'!$F$7=\"CIFDN\",IF(OR('Blank - Request Form'!O92=\"000\",'Blank - Request Form'!O92=0),\"\",'Blank - Request Form'!O92),\"\"))","v":""},{"$f":"IF('Blank - Request Form'!$F$6=\"CIFDN\",IF(OR('Blank - Request Form'!G92=\"0\",'Blank - Request Form'!G92=\"00000\",'Blank - Request Form'!G92=0),\"\",'Blank - Request Form'!G92),IF('Blank - Request Form'!$F$7=\"CIFDN\",IF(OR('Blank - Request Form'!P92=\"0\",'Blank - Request Form'!P92=\"00000\",'Blank - Request Form'!P92=0),\"\",'Blank - Request Form'!P92),\"\"))","v":""},{"$f":"IF('Blank - Request Form'!$F$6=\"CIFDN\",IF(OR('Blank - Request Form'!H92=\"0\",'Blank - Request Form'!H92=\"00000\",'Blank - Request Form'!H92=0),\"\",'Blank - Request Form'!H92),IF('Blank - Request Form'!$F$7=\"CIFDN\",IF(OR('Blank - Request Form'!Q92=\"0\",'Blank - Request Form'!Q92=\"00000\",'Blank - Request Form'!Q92=0),\"\",'Blank - Request Form'!Q92),\"\"))","v":""},{"$f":"IF('Blank - Request Form'!$F$6=\"CIFDN\",IF(OR('Blank - Request Form'!I92=\"0\",'Blank - Request Form'!I92=\"00000\",'Blank - Request Form'!I92=0),\"\",'Blank - Request Form'!I92),IF('Blank - Request Form'!$F$7=\"CIFDN\",IF(OR('Blank - Request Form'!R92=\"0\",'Blank - Request Form'!R92=\"00000\",'Blank - Request Form'!R92=0),\"\",'Blank - Request Form'!R92),\"\"))","v":""},null,{"$f":"IF('Blank - Request Form'!$F$6=\"CIFDN\",IF('Blank - Request Form'!K92=0,\"\",'Blank - Request Form'!K92),IF('Blank - Request Form'!$F$7=\"CIFDN\",IF('Blank - Request Form'!T92=0,\"\",'Blank - Request Form'!T92),\"\"))","v":""},null,null,null,{"$f":"IF(M58<>\"\",'Blank - Request Form'!$M$2,\"\")","v":""},{"$f":"IF('Blank - Request Form'!$F$6=\"CIFDN\",IF('Blank - Request Form'!J92=0,\"\",'Blank - Request Form'!J92),IF('Blank - Request Form'!$F$7=\"CIFDN\",IF('Blank - Request Form'!S92=0,\"\",'Blank - Request Form'!S92),\"\"))","v":""},"",58]
[{"$f":"IF('Blank - Request Form'!$F$6=\"CIFDN\",IF('Blank - Request Form'!D93=0,\"\",'Blank - Request Form'!D93),IF('Blank - Request Form'!$F$7=\"CIFDN\",IF('Blank - Request Form'!M93=0,\"\",'Blank - Request Form'!M93),\"\"))","v":""},{"$f":"IF('Blank - Request Form'!$F$6=\"CIFDN\",IF('Blank - Request Form'!E93=0,\"\",'Blank - Request Form'!E93),IF('Blank - Request Form'!$F$7=\"CIFDN\",IF('Blank - Request Form'!N93=0,\"\",'Blank - Request Form'!N93),\"\"))","v":""},{"$f":"IF('Blank - Request Form'!$F$6=\"CIFDN\",IF(OR('Blank - Request Form'!F93=\"000\",'Blank - Request Form'!F93=0),\"\",'Blank - Request Form'!F93),IF('Blank - Request Form'!$F$7=\"CIFDN\",IF(OR('Blank - Request Form'!O93=\"000\",'Blank - Request Form'!O93=0),\"\",'Blank - Request Form'!O93),\"\"))","v":""},{"$f":"IF('Blank - Request Form'!$F$6=\"CIFDN\",IF(OR('Blank - Request Form'!G93=\"0\",'Blank - Request Form'!G93=\"00000\",'Blank - Request Form'!G93=0),\"\",'Blank - Request Form'!G93),IF('Blank - Request Form'!$F$7=\"CIFDN\",IF(OR('Blank - Request Form'!P93=\"0\",'Blank - Request Form'!P93=\"00000\",'Blank - Request Form'!P93=0),\"\",'Blank - Request Form'!P93),\"\"))","v":""},{"$f":"IF('Blank - Request Form'!$F$6=\"CIFDN\",IF(OR('Blank - Request Form'!H93=\"0\",'Blank - Request Form'!H93=\"00000\",'Blank - Request Form'!H93=0),\"\",'Blank - Request Form'!H93),IF('Blank - Request Form'!$F$7=\"CIFDN\",IF(OR('Blank - Request Form'!Q93=\"0\",'Blank - Request Form'!Q93=\"00000\",'Blank - Request Form'!Q93=0),\"\",'Blank - Request Form'!Q93),\"\"))","v":""},{"$f":"IF('Blank - Request Form'!$F$6=\"CIFDN\",IF(OR('Blank - Request Form'!I93=\"0\",'Blank - Request Form'!I93=\"00000\",'Blank - Request Form'!I93=0),\"\",'Blank - Request Form'!I93),IF('Blank - Request Form'!$F$7=\"CIFDN\",IF(OR('Blank - Request Form'!R93=\"0\",'Blank - Request Form'!R93=\"00000\",'Blank - Request Form'!R93=0),\"\",'Blank - Request Form'!R93),\"\"))","v":""},null,{"$f":"IF('Blank - Request Form'!$F$6=\"CIFDN\",IF('Blank - Request Form'!K93=0,\"\",'Blank - Request Form'!K93),IF('Blank - Request Form'!$F$7=\"CIFDN\",IF('Blank - Request Form'!T93=0,\"\",'Blank - Request Form'!T93),\"\"))","v":""},null,null,null,{"$f":"IF(M59<>\"\",'Blank - Request Form'!$M$2,\"\")","v":""},{"$f":"IF('Blank - Request Form'!$F$6=\"CIFDN\",IF('Blank - Request Form'!J93=0,\"\",'Blank - Request Form'!J93),IF('Blank - Request Form'!$F$7=\"CIFDN\",IF('Blank - Request Form'!S93=0,\"\",'Blank - Request Form'!S93),\"\"))","v":""},"",59]
[{"$f":"IF('Blank - Request Form'!$F$6=\"CIFDN\",IF('Blank - Request Form'!D94=0,\"\",'Blank - Request Form'!D94),IF('Blank - Request Form'!$F$7=\"CIFDN\",IF('Blank - Request Form'!M94=0,\"\",'Blank - Request Form'!M94),\"\"))","v":""},{"$f":"IF('Blank - Request Form'!$F$6=\"CIFDN\",IF('Blank - Request Form'!E94=0,\"\",'Blank - Request Form'!E94),IF('Blank - Request Form'!$F$7=\"CIFDN\",IF('Blank - Request Form'!N94=0,\"\",'Blank - Request Form'!N94),\"\"))","v":""},{"$f":"IF('Blank - Request Form'!$F$6=\"CIFDN\",IF(OR('Blank - Request Form'!F94=\"000\",'Blank - Request Form'!F94=0),\"\",'Blank - Request Form'!F94),IF('Blank - Request Form'!$F$7=\"CIFDN\",IF(OR('Blank - Request Form'!O94=\"000\",'Blank - Request Form'!O94=0),\"\",'Blank - Request Form'!O94),\"\"))","v":""},{"$f":"IF('Blank - Request Form'!$F$6=\"CIFDN\",IF(OR('Blank - Request Form'!G94=\"0\",'Blank - Request Form'!G94=\"00000\",'Blank - Request Form'!G94=0),\"\",'Blank - Request Form'!G94),IF('Blank - Request Form'!$F$7=\"CIFDN\",IF(OR('Blank - Request Form'!P94=\"0\",'Blank - Request Form'!P94=\"00000\",'Blank - Request Form'!P94=0),\"\",'Blank - Request Form'!P94),\"\"))","v":""},{"$f":"IF('Blank - Request Form'!$F$6=\"CIFDN\",IF(OR('Blank - Request Form'!H94=\"0\",'Blank - Request Form'!H94=\"00000\",'Blank - Request Form'!H94=0),\"\",'Blank - Request Form'!H94),IF('Blank - Request Form'!$F$7=\"CIFDN\",IF(OR('Blank - Request Form'!Q94=\"0\",'Blank - Request Form'!Q94=\"00000\",'Blank - Request Form'!Q94=0),\"\",'Blank - Request Form'!Q94),\"\"))","v":""},{"$f":"IF('Blank - Request Form'!$F$6=\"CIFDN\",IF(OR('Blank - Request Form'!I94=\"0\",'Blank - Request Form'!I94=\"00000\",'Blank - Request Form'!I94=0),\"\",'Blank - Request Form'!I94),IF('Blank - Request Form'!$F$7=\"CIFDN\",IF(OR('Blank - Request Form'!R94=\"0\",'Blank - Request Form'!R94=\"00000\",'Blank - Request Form'!R94=0),\"\",'Blank - Request Form'!R94),\"\"))","v":""},null,{"$f":"IF('Blank - Request Form'!$F$6=\"CIFDN\",IF('Blank - Request Form'!K94=0,\"\",'Blank - Request Form'!K94),IF('Blank - Request Form'!$F$7=\"CIFDN\",IF('Blank - Request Form'!T94=0,\"\",'Blank - Request Form'!T94),\"\"))","v":""},null,null,null,{"$f":"IF(M60<>\"\",'Blank - Request Form'!$M$2,\"\")","v":""},{"$f":"IF('Blank - Request Form'!$F$6=\"CIFDN\",IF('Blank - Request Form'!J94=0,\"\",'Blank - Request Form'!J94),IF('Blank - Request Form'!$F$7=\"CIFDN\",IF('Blank - Request Form'!S94=0,\"\",'Blank - Request Form'!S94),\"\"))","v":""},"",60]
[{"$f":"IF('Blank - Request Form'!$F$6=\"CIFDN\",IF('Blank - Request Form'!D95=0,\"\",'Blank - Request Form'!D95),IF('Blank - Request Form'!$F$7=\"CIFDN\",IF('Blank - Request Form'!M95=0,\"\",'Blank - Request Form'!M95),\"\"))","v":""},{"$f":"IF('Blank - Request Form'!$F$6=\"CIFDN\",IF('Blank - Request Form'!E95=0,\"\",'Blank - Request Form'!E95),IF('Blank - Request Form'!$F$7=\"CIFDN\",IF('Blank - Request Form'!N95=0,\"\",'Blank - Request Form'!N95),\"\"))","v":""},{"$f":"IF('Blank - Request Form'!$F$6=\"CIFDN\",IF(OR('Blank - Request Form'!F95=\"000\",'Blank - Request Form'!F95=0),\"\",'Blank - Request Form'!F95),IF('Blank - Request Form'!$F$7=\"CIFDN\",IF(OR('Blank - Request Form'!O95=\"000\",'Blank - Request Form'!O95=0),\"\",'Blank - Request Form'!O95),\"\"))","v":""},{"$f":"IF('Blank - Request Form'!$F$6=\"CIFDN\",IF(OR('Blank - Request Form'!G95=\"0\",'Blank - Request Form'!G95=\"00000\",'Blank - Request Form'!G95=0),\"\",'Blank - Request Form'!G95),IF('Blank - Request Form'!$F$7=\"CIFDN\",IF(OR('Blank - Request Form'!P95=\"0\",'Blank - Request Form'!P95=\"00000\",'Blank - Request Form'!P95=0),\"\",'Blank - Request Form'!P95),\"\"))","v":""},{"$f":"IF('Blank - Request Form'!$F$6=\"CIFDN\",IF(OR('Blank - Request Form'!H95=\"0\",'Blank - Request Form'!H95=\"00000\",'Blank - Request Form'!H95=0),\"\",'Blank - Request Form'!H95),IF('Blank - Request Form'!$F$7=\"CIFDN\",IF(OR('Blank - Request Form'!Q95=\"0\",'Blank - Request Form'!Q95=\"00000\",'Blank - Request Form'!Q95=0),\"\",'Blank - Request Form'!Q95),\"\"))","v":""},{"$f":"IF('Blank - Request Form'!$F$6=\"CIFDN\",IF(OR('Blank - Request Form'!I95=\"0\",'Blank - Request Form'!I95=\"00000\",'Blank - Request Form'!I95=0),\"\",'Blank - Request Form'!I95),IF('Blank - Request Form'!$F$7=\"CIFDN\",IF(OR('Blank - Request Form'!R95=\"0\",'Blank - Request Form'!R95=\"00000\",'Blank - Request Form'!R95=0),\"\",'Blank - Request Form'!R95),\"\"))","v":""},null,{"$f":"IF('Blank - Request Form'!$F$6=\"CIFDN\",IF('Blank - Request Form'!K95=0,\"\",'Blank - Request Form'!K95),IF('Blank - Request Form'!$F$7=\"CIFDN\",IF('Blank - Request Form'!T95=0,\"\",'Blank - Request Form'!T95),\"\"))","v":""},null,null,null,{"$f":"IF(M61<>\"\",'Blank - Request Form'!$M$2,\"\")","v":""},{"$f":"IF('Blank - Request Form'!$F$6=\"CIFDN\",IF('Blank - Request Form'!J95=0,\"\",'Blank - Request Form'!J95),IF('Blank - Request Form'!$F$7=\"CIFDN\",IF('Blank - Request Form'!S95=0,\"\",'Blank - Request Form'!S95),\"\"))","v":""},"",61]
[{"$f":"IF('Blank - Request Form'!$F$6=\"CIFDN\",IF('Blank - Request Form'!D96=0,\"\",'Blank - Request Form'!D96),IF('Blank - Request Form'!$F$7=\"CIFDN\",IF('Blank - Request Form'!M96=0,\"\",'Blank - Request Form'!M96),\"\"))","v":""},{"$f":"IF('Blank - Request Form'!$F$6=\"CIFDN\",IF('Blank - Request Form'!E96=0,\"\",'Blank - Request Form'!E96),IF('Blank - Request Form'!$F$7=\"CIFDN\",IF('Blank - Request Form'!N96=0,\"\",'Blank - Request Form'!N96),\"\"))","v":""},{"$f":"IF('Blank - Request Form'!$F$6=\"CIFDN\",IF(OR('Blank - Request Form'!F96=\"000\",'Blank - Request Form'!F96=0),\"\",'Blank - Request Form'!F96),IF('Blank - Request Form'!$F$7=\"CIFDN\",IF(OR('Blank - Request Form'!O96=\"000\",'Blank - Request Form'!O96=0),\"\",'Blank - Request Form'!O96),\"\"))","v":""},{"$f":"IF('Blank - Request Form'!$F$6=\"CIFDN\",IF(OR('Blank - Request Form'!G96=\"0\",'Blank - Request Form'!G96=\"00000\",'Blank - Request Form'!G96=0),\"\",'Blank - Request Form'!G96),IF('Blank - Request Form'!$F$7=\"CIFDN\",IF(OR('Blank - Request Form'!P96=\"0\",'Blank - Request Form'!P96=\"00000\",'Blank - Request Form'!P96=0),\"\",'Blank - Request Form'!P96),\"\"))","v":""},{"$f":"IF('Blank - Request Form'!$F$6=\"CIFDN\",IF(OR('Blank - Request Form'!H96=\"0\",'Blank - Request Form'!H96=\"00000\",'Blank - Request Form'!H96=0),\"\",'Blank - Request Form'!H96),IF('Blank - Request Form'!$F$7=\"CIFDN\",IF(OR('Blank - Request Form'!Q96=\"0\",'Blank - Request Form'!Q96=\"00000\",'Blank - Request Form'!Q96=0),\"\",'Blank - Request Form'!Q96),\"\"))","v":""},{"$f":"IF('Blank - Request Form'!$F$6=\"CIFDN\",IF(OR('Blank - Request Form'!I96=\"0\",'Blank - Request Form'!I96=\"00000\",'Blank - Request Form'!I96=0),\"\",'Blank - Request Form'!I96),IF('Blank - Request Form'!$F$7=\"CIFDN\",IF(OR('Blank - Request Form'!R96=\"0\",'Blank - Request Form'!R96=\"00000\",'Blank - Request Form'!R96=0),\"\",'Blank - Request Form'!R96),\"\"))","v":""},null,{"$f":"IF('Blank - Request Form'!$F$6=\"CIFDN\",IF('Blank - Request Form'!K96=0,\"\",'Blank - Request Form'!K96),IF('Blank - Request Form'!$F$7=\"CIFDN\",IF('Blank - Request Form'!T96=0,\"\",'Blank - Request Form'!T96),\"\"))","v":""},null,null,null,{"$f":"IF(M62<>\"\",'Blank - Request Form'!$M$2,\"\")","v":""},{"$f":"IF('Blank - Request Form'!$F$6=\"CIFDN\",IF('Blank - Request Form'!J96=0,\"\",'Blank - Request Form'!J96),IF('Blank - Request Form'!$F$7=\"CIFDN\",IF('Blank - Request Form'!S96=0,\"\",'Blank - Request Form'!S96),\"\"))","v":""},"",62]
[{"$f":"IF('Blank - Request Form'!$F$6=\"CIFDN\",IF('Blank - Request Form'!D97=0,\"\",'Blank - Request Form'!D97),IF('Blank - Request Form'!$F$7=\"CIFDN\",IF('Blank - Request Form'!M97=0,\"\",'Blank - Request Form'!M97),\"\"))","v":""},{"$f":"IF('Blank - Request Form'!$F$6=\"CIFDN\",IF('Blank - Request Form'!E97=0,\"\",'Blank - Request Form'!E97),IF('Blank - Request Form'!$F$7=\"CIFDN\",IF('Blank - Request Form'!N97=0,\"\",'Blank - Request Form'!N97),\"\"))","v":""},{"$f":"IF('Blank - Request Form'!$F$6=\"CIFDN\",IF(OR('Blank - Request Form'!F97=\"000\",'Blank - Request Form'!F97=0),\"\",'Blank - Request Form'!F97),IF('Blank - Request Form'!$F$7=\"CIFDN\",IF(OR('Blank - Request Form'!O97=\"000\",'Blank - Request Form'!O97=0),\"\",'Blank - Request Form'!O97),\"\"))","v":""},{"$f":"IF('Blank - Request Form'!$F$6=\"CIFDN\",IF(OR('Blank - Request Form'!G97=\"0\",'Blank - Request Form'!G97=\"00000\",'Blank - Request Form'!G97=0),\"\",'Blank - Request Form'!G97),IF('Blank - Request Form'!$F$7=\"CIFDN\",IF(OR('Blank - Request Form'!P97=\"0\",'Blank - Request Form'!P97=\"00000\",'Blank - Request Form'!P97=0),\"\",'Blank - Request Form'!P97),\"\"))","v":""},{"$f":"IF('Blank - Request Form'!$F$6=\"CIFDN\",IF(OR('Blank - Request Form'!H97=\"0\",'Blank - Request Form'!H97=\"00000\",'Blank - Request Form'!H97=0),\"\",'Blank - Request Form'!H97),IF('Blank - Request Form'!$F$7=\"CIFDN\",IF(OR('Blank - Request Form'!Q97=\"0\",'Blank - Request Form'!Q97=\"00000\",'Blank - Request Form'!Q97=0),\"\",'Blank - Request Form'!Q97),\"\"))","v":""},{"$f":"IF('Blank - Request Form'!$F$6=\"CIFDN\",IF(OR('Blank - Request Form'!I97=\"0\",'Blank - Request Form'!I97=\"00000\",'Blank - Request Form'!I97=0),\"\",'Blank - Request Form'!I97),IF('Blank - Request Form'!$F$7=\"CIFDN\",IF(OR('Blank - Request Form'!R97=\"0\",'Blank - Request Form'!R97=\"00000\",'Blank - Request Form'!R97=0),\"\",'Blank - Request Form'!R97),\"\"))","v":""},null,{"$f":"IF('Blank - Request Form'!$F$6=\"CIFDN\",IF('Blank - Request Form'!K97=0,\"\",'Blank - Request Form'!K97),IF('Blank - Request Form'!$F$7=\"CIFDN\",IF('Blank - Request Form'!T97=0,\"\",'Blank - Request Form'!T97),\"\"))","v":""},null,null,null,{"$f":"IF(M63<>\"\",'Blank - Request Form'!$M$2,\"\")","v":""},{"$f":"IF('Blank - Request Form'!$F$6=\"CIFDN\",IF('Blank - Request Form'!J97=0,\"\",'Blank - Request Form'!J97),IF('Blank - Request Form'!$F$7=\"CIFDN\",IF('Blank - Request Form'!S97=0,\"\",'Blank - Request Form'!S97),\"\"))","v":""},"",63]
[{"$f":"IF('Blank - Request Form'!$F$6=\"CIFDN\",IF('Blank - Request Form'!D98=0,\"\",'Blank - Request Form'!D98),IF('Blank - Request Form'!$F$7=\"CIFDN\",IF('Blank - Request Form'!M98=0,\"\",'Blank - Request Form'!M98),\"\"))","v":""},{"$f":"IF('Blank - Request Form'!$F$6=\"CIFDN\",IF('Blank - Request Form'!E98=0,\"\",'Blank - Request Form'!E98),IF('Blank - Request Form'!$F$7=\"CIFDN\",IF('Blank - Request Form'!N98=0,\"\",'Blank - Request Form'!N98),\"\"))","v":""},{"$f":"IF('Blank - Request Form'!$F$6=\"CIFDN\",IF(OR('Blank - Request Form'!F98=\"000\",'Blank - Request Form'!F98=0),\"\",'Blank - Request Form'!F98),IF('Blank - Request Form'!$F$7=\"CIFDN\",IF(OR('Blank - Request Form'!O98=\"000\",'Blank - Request Form'!O98=0),\"\",'Blank - Request Form'!O98),\"\"))","v":""},{"$f":"IF('Blank - Request Form'!$F$6=\"CIFDN\",IF(OR('Blank - Request Form'!G98=\"0\",'Blank - Request Form'!G98=\"00000\",'Blank - Request Form'!G98=0),\"\",'Blank - Request Form'!G98),IF('Blank - Request Form'!$F$7=\"CIFDN\",IF(OR('Blank - Request Form'!P98=\"0\",'Blank - Request Form'!P98=\"00000\",'Blank - Request Form'!P98=0),\"\",'Blank - Request Form'!P98),\"\"))","v":""},{"$f":"IF('Blank - Request Form'!$F$6=\"CIFDN\",IF(OR('Blank - Request Form'!H98=\"0\",'Blank - Request Form'!H98=\"00000\",'Blank - Request Form'!H98=0),\"\",'Blank - Request Form'!H98),IF('Blank - Request Form'!$F$7=\"CIFDN\",IF(OR('Blank - Request Form'!Q98=\"0\",'Blank - Request Form'!Q98=\"00000\",'Blank - Request Form'!Q98=0),\"\",'Blank - Request Form'!Q98),\"\"))","v":""},{"$f":"IF('Blank - Request Form'!$F$6=\"CIFDN\",IF(OR('Blank - Request Form'!I98=\"0\",'Blank - Request Form'!I98=\"00000\",'Blank - Request Form'!I98=0),\"\",'Blank - Request Form'!I98),IF('Blank - Request Form'!$F$7=\"CIFDN\",IF(OR('Blank - Request Form'!R98=\"0\",'Blank - Request Form'!R98=\"00000\",'Blank - Request Form'!R98=0),\"\",'Blank - Request Form'!R98),\"\"))","v":""},null,{"$f":"IF('Blank - Request Form'!$F$6=\"CIFDN\",IF('Blank - Request Form'!K98=0,\"\",'Blank - Request Form'!K98),IF('Blank - Request Form'!$F$7=\"CIFDN\",IF('Blank - Request Form'!T98=0,\"\",'Blank - Request Form'!T98),\"\"))","v":""},null,null,null,{"$f":"IF(M64<>\"\",'Blank - Request Form'!$M$2,\"\")","v":""},{"$f":"IF('Blank - Request Form'!$F$6=\"CIFDN\",IF('Blank - Request Form'!J98=0,\"\",'Blank - Request Form'!J98),IF('Blank - Request Form'!$F$7=\"CIFDN\",IF('Blank - Request Form'!S98=0,\"\",'Blank - Request Form'!S98),\"\"))","v":""},"",64]
[{"$f":"IF('Blank - Request Form'!$F$6=\"CIFDN\",IF('Blank - Request Form'!D99=0,\"\",'Blank - Request Form'!D99),IF('Blank - Request Form'!$F$7=\"CIFDN\",IF('Blank - Request Form'!M99=0,\"\",'Blank - Request Form'!M99),\"\"))","v":""},{"$f":"IF('Blank - Request Form'!$F$6=\"CIFDN\",IF('Blank - Request Form'!E99=0,\"\",'Blank - Request Form'!E99),IF('Blank - Request Form'!$F$7=\"CIFDN\",IF('Blank - Request Form'!N99=0,\"\",'Blank - Request Form'!N99),\"\"))","v":""},{"$f":"IF('Blank - Request Form'!$F$6=\"CIFDN\",IF(OR('Blank - Request Form'!F99=\"000\",'Blank - Request Form'!F99=0),\"\",'Blank - Request Form'!F99),IF('Blank - Request Form'!$F$7=\"CIFDN\",IF(OR('Blank - Request Form'!O99=\"000\",'Blank - Request Form'!O99=0),\"\",'Blank - Request Form'!O99),\"\"))","v":""},{"$f":"IF('Blank - Request Form'!$F$6=\"CIFDN\",IF(OR('Blank - Request Form'!G99=\"0\",'Blank - Request Form'!G99=\"00000\",'Blank - Request Form'!G99=0),\"\",'Blank - Request Form'!G99),IF('Blank - Request Form'!$F$7=\"CIFDN\",IF(OR('Blank - Request Form'!P99=\"0\",'Blank - Request Form'!P99=\"00000\",'Blank - Request Form'!P99=0),\"\",'Blank - Request Form'!P99),\"\"))","v":""},{"$f":"IF('Blank - Request Form'!$F$6=\"CIFDN\",IF(OR('Blank - Request Form'!H99=\"0\",'Blank - Request Form'!H99=\"00000\",'Blank - Request Form'!H99=0),\"\",'Blank - Request Form'!H99),IF('Blank - Request Form'!$F$7=\"CIFDN\",IF(OR('Blank - Request Form'!Q99=\"0\",'Blank - Request Form'!Q99=\"00000\",'Blank - Request Form'!Q99=0),\"\",'Blank - Request Form'!Q99),\"\"))","v":""},{"$f":"IF('Blank - Request Form'!$F$6=\"CIFDN\",IF(OR('Blank - Request Form'!I99=\"0\",'Blank - Request Form'!I99=\"00000\",'Blank - Request Form'!I99=0),\"\",'Blank - Request Form'!I99),IF('Blank - Request Form'!$F$7=\"CIFDN\",IF(OR('Blank - Request Form'!R99=\"0\",'Blank - Request Form'!R99=\"00000\",'Blank - Request Form'!R99=0),\"\",'Blank - Request Form'!R99),\"\"))","v":""},null,{"$f":"IF('Blank - Request Form'!$F$6=\"CIFDN\",IF('Blank - Request Form'!K99=0,\"\",'Blank - Request Form'!K99),IF('Blank - Request Form'!$F$7=\"CIFDN\",IF('Blank - Request Form'!T99=0,\"\",'Blank - Request Form'!T99),\"\"))","v":""},null,null,null,{"$f":"IF(M65<>\"\",'Blank - Request Form'!$M$2,\"\")","v":""},{"$f":"IF('Blank - Request Form'!$F$6=\"CIFDN\",IF('Blank - Request Form'!J99=0,\"\",'Blank - Request Form'!J99),IF('Blank - Request Form'!$F$7=\"CIFDN\",IF('Blank - Request Form'!S99=0,\"\",'Blank - Request Form'!S99),\"\"))","v":""},"",65]
[{"$f":"IF('Blank - Request Form'!$F$6=\"CIFDN\",IF('Blank - Request Form'!D100=0,\"\",'Blank - Request Form'!D100),IF('Blank - Request Form'!$F$7=\"CIFDN\",IF('Blank - Request Form'!M100=0,\"\",'Blank - Request Form'!M100),\"\"))","v":""},{"$f":"IF('Blank - Request Form'!$F$6=\"CIFDN\",IF('Blank - Request Form'!E100=0,\"\",'Blank - Request Form'!E100),IF('Blank - Request Form'!$F$7=\"CIFDN\",IF('Blank - Request Form'!N100=0,\"\",'Blank - Request Form'!N100),\"\"))","v":""},{"$f":"IF('Blank - Request Form'!$F$6=\"CIFDN\",IF(OR('Blank - Request Form'!F100=\"000\",'Blank - Request Form'!F100=0),\"\",'Blank - Request Form'!F100),IF('Blank - Request Form'!$F$7=\"CIFDN\",IF(OR('Blank - Request Form'!O100=\"000\",'Blank - Request Form'!O100=0),\"\",'Blank - Request Form'!O100),\"\"))","v":""},{"$f":"IF('Blank - Request Form'!$F$6=\"CIFDN\",IF(OR('Blank - Request Form'!G100=\"0\",'Blank - Request Form'!G100=\"00000\",'Blank - Request Form'!G100=0),\"\",'Blank - Request Form'!G100),IF('Blank - Request Form'!$F$7=\"CIFDN\",IF(OR('Blank - Request Form'!P100=\"0\",'Blank - Request Form'!P100=\"00000\",'Blank - Request Form'!P100=0),\"\",'Blank - Request Form'!P100),\"\"))","v":""},{"$f":"IF('Blank - Request Form'!$F$6=\"CIFDN\",IF(OR('Blank - Request Form'!H100=\"0\",'Blank - Request Form'!H100=\"00000\",'Blank - Request Form'!H100=0),\"\",'Blank - Request Form'!H100),IF('Blank - Request Form'!$F$7=\"CIFDN\",IF(OR('Blank - Request Form'!Q100=\"0\",'Blank - Request Form'!Q100=\"00000\",'Blank - Request Form'!Q100=0),\"\",'Blank - Request Form'!Q100),\"\"))","v":""},{"$f":"IF('Blank - Request Form'!$F$6=\"CIFDN\",IF(OR('Blank - Request Form'!I100=\"0\",'Blank - Request Form'!I100=\"00000\",'Blank - Request Form'!I100=0),\"\",'Blank - Request Form'!I100),IF('Blank - Request Form'!$F$7=\"CIFDN\",IF(OR('Blank - Request Form'!R100=\"0\",'Blank - Request Form'!R100=\"00000\",'Blank - Request Form'!R100=0),\"\",'Blank - Request Form'!R100),\"\"))","v":""},null,{"$f":"IF('Blank - Request Form'!$F$6=\"CIFDN\",IF('Blank - Request Form'!K100=0,\"\",'Blank - Request Form'!K100),IF('Blank - Request Form'!$F$7=\"CIFDN\",IF('Blank - Request Form'!T100=0,\"\",'Blank - Request Form'!T100),\"\"))","v":""},null,null,null,{"$f":"IF(M66<>\"\",'Blank - Request Form'!$M$2,\"\")","v":""},{"$f":"IF('Blank - Request Form'!$F$6=\"CIFDN\",IF('Blank - Request Form'!J100=0,\"\",'Blank - Request Form'!J100),IF('Blank - Request Form'!$F$7=\"CIFDN\",IF('Blank - Request Form'!S100=0,\"\",'Blank - Request Form'!S100),\"\"))","v":""},"",66]
[{"$f":"IF('Blank - Request Form'!$F$6=\"CIFDN\",IF('Blank - Request Form'!D101=0,\"\",'Blank - Request Form'!D101),IF('Blank - Request Form'!$F$7=\"CIFDN\",IF('Blank - Request Form'!M101=0,\"\",'Blank - Request Form'!M101),\"\"))","v":""},{"$f":"IF('Blank - Request Form'!$F$6=\"CIFDN\",IF('Blank - Request Form'!E101=0,\"\",'Blank - Request Form'!E101),IF('Blank - Request Form'!$F$7=\"CIFDN\",IF('Blank - Request Form'!N101=0,\"\",'Blank - Request Form'!N101),\"\"))","v":""},{"$f":"IF('Blank - Request Form'!$F$6=\"CIFDN\",IF(OR('Blank - Request Form'!F101=\"000\",'Blank - Request Form'!F101=0),\"\",'Blank - Request Form'!F101),IF('Blank - Request Form'!$F$7=\"CIFDN\",IF(OR('Blank - Request Form'!O101=\"000\",'Blank - Request Form'!O101=0),\"\",'Blank - Request Form'!O101),\"\"))","v":""},{"$f":"IF('Blank - Request Form'!$F$6=\"CIFDN\",IF(OR('Blank - Request Form'!G101=\"0\",'Blank - Request Form'!G101=\"00000\",'Blank - Request Form'!G101=0),\"\",'Blank - Request Form'!G101),IF('Blank - Request Form'!$F$7=\"CIFDN\",IF(OR('Blank - Request Form'!P101=\"0\",'Blank - Request Form'!P101=\"00000\",'Blank - Request Form'!P101=0),\"\",'Blank - Request Form'!P101),\"\"))","v":""},{"$f":"IF('Blank - Request Form'!$F$6=\"CIFDN\",IF(OR('Blank - Request Form'!H101=\"0\",'Blank - Request Form'!H101=\"00000\",'Blank - Request Form'!H101=0),\"\",'Blank - Request Form'!H101),IF('Blank - Request Form'!$F$7=\"CIFDN\",IF(OR('Blank - Request Form'!Q101=\"0\",'Blank - Request Form'!Q101=\"00000\",'Blank - Request Form'!Q101=0),\"\",'Blank - Request Form'!Q101),\"\"))","v":""},{"$f":"IF('Blank - Request Form'!$F$6=\"CIFDN\",IF(OR('Blank - Request Form'!I101=\"0\",'Blank - Request Form'!I101=\"00000\",'Blank - Request Form'!I101=0),\"\",'Blank - Request Form'!I101),IF('Blank - Request Form'!$F$7=\"CIFDN\",IF(OR('Blank - Request Form'!R101=\"0\",'Blank - Request Form'!R101=\"00000\",'Blank - Request Form'!R101=0),\"\",'Blank - Request Form'!R101),\"\"))","v":""},null,{"$f":"IF('Blank - Request Form'!$F$6=\"CIFDN\",IF('Blank - Request Form'!K101=0,\"\",'Blank - Request Form'!K101),IF('Blank - Request Form'!$F$7=\"CIFDN\",IF('Blank - Request Form'!T101=0,\"\",'Blank - Request Form'!T101),\"\"))","v":""},null,null,null,{"$f":"IF(M67<>\"\",'Blank - Request Form'!$M$2,\"\")","v":""},{"$f":"IF('Blank - Request Form'!$F$6=\"CIFDN\",IF('Blank - Request Form'!J101=0,\"\",'Blank - Request Form'!J101),IF('Blank - Request Form'!$F$7=\"CIFDN\",IF('Blank - Request Form'!S101=0,\"\",'Blank - Request Form'!S101),\"\"))","v":""},"",67]
[{"$f":"IF('Blank - Request Form'!$F$6=\"CIFDN\",IF('Blank - Request Form'!D102=0,\"\",'Blank - Request Form'!D102),IF('Blank - Request Form'!$F$7=\"CIFDN\",IF('Blank - Request Form'!M102=0,\"\",'Blank - Request Form'!M102),\"\"))","v":""},{"$f":"IF('Blank - Request Form'!$F$6=\"CIFDN\",IF('Blank - Request Form'!E102=0,\"\",'Blank - Request Form'!E102),IF('Blank - Request Form'!$F$7=\"CIFDN\",IF('Blank - Request Form'!N102=0,\"\",'Blank - Request Form'!N102),\"\"))","v":""},{"$f":"IF('Blank - Request Form'!$F$6=\"CIFDN\",IF(OR('Blank - Request Form'!F102=\"000\",'Blank - Request Form'!F102=0),\"\",'Blank - Request Form'!F102),IF('Blank - Request Form'!$F$7=\"CIFDN\",IF(OR('Blank - Request Form'!O102=\"000\",'Blank - Request Form'!O102=0),\"\",'Blank - Request Form'!O102),\"\"))","v":""},{"$f":"IF('Blank - Request Form'!$F$6=\"CIFDN\",IF(OR('Blank - Request Form'!G102=\"0\",'Blank - Request Form'!G102=\"00000\",'Blank - Request Form'!G102=0),\"\",'Blank - Request Form'!G102),IF('Blank - Request Form'!$F$7=\"CIFDN\",IF(OR('Blank - Request Form'!P102=\"0\",'Blank - Request Form'!P102=\"00000\",'Blank - Request Form'!P102=0),\"\",'Blank - Request Form'!P102),\"\"))","v":""},{"$f":"IF('Blank - Request Form'!$F$6=\"CIFDN\",IF(OR('Blank - Request Form'!H102=\"0\",'Blank - Request Form'!H102=\"00000\",'Blank - Request Form'!H102=0),\"\",'Blank - Request Form'!H102),IF('Blank - Request Form'!$F$7=\"CIFDN\",IF(OR('Blank - Request Form'!Q102=\"0\",'Blank - Request Form'!Q102=\"00000\",'Blank - Request Form'!Q102=0),\"\",'Blank - Request Form'!Q102),\"\"))","v":""},{"$f":"IF('Blank - Request Form'!$F$6=\"CIFDN\",IF(OR('Blank - Request Form'!I102=\"0\",'Blank - Request Form'!I102=\"00000\",'Blank - Request Form'!I102=0),\"\",'Blank - Request Form'!I102),IF('Blank - Request Form'!$F$7=\"CIFDN\",IF(OR('Blank - Request Form'!R102=\"0\",'Blank - Request Form'!R102=\"00000\",'Blank - Request Form'!R102=0),\"\",'Blank - Request Form'!R102),\"\"))","v":""},null,{"$f":"IF('Blank - Request Form'!$F$6=\"CIFDN\",IF('Blank - Request Form'!K102=0,\"\",'Blank - Request Form'!K102),IF('Blank - Request Form'!$F$7=\"CIFDN\",IF('Blank - Request Form'!T102=0,\"\",'Blank - Request Form'!T102),\"\"))","v":""},null,null,null,{"$f":"IF(M68<>\"\",'Blank - Request Form'!$M$2,\"\")","v":""},{"$f":"IF('Blank - Request Form'!$F$6=\"CIFDN\",IF('Blank - Request Form'!J102=0,\"\",'Blank - Request Form'!J102),IF('Blank - Request Form'!$F$7=\"CIFDN\",IF('Blank - Request Form'!S102=0,\"\",'Blank - Request Form'!S102),\"\"))","v":""},"",68]
[{"$f":"IF('Blank - Request Form'!$F$6=\"CIFDN\",IF('Blank - Request Form'!D103=0,\"\",'Blank - Request Form'!D103),IF('Blank - Request Form'!$F$7=\"CIFDN\",IF('Blank - Request Form'!M103=0,\"\",'Blank - Request Form'!M103),\"\"))","v":""},{"$f":"IF('Blank - Request Form'!$F$6=\"CIFDN\",IF('Blank - Request Form'!E103=0,\"\",'Blank - Request Form'!E103),IF('Blank - Request Form'!$F$7=\"CIFDN\",IF('Blank - Request Form'!N103=0,\"\",'Blank - Request Form'!N103),\"\"))","v":""},{"$f":"IF('Blank - Request Form'!$F$6=\"CIFDN\",IF(OR('Blank - Request Form'!F103=\"000\",'Blank - Request Form'!F103=0),\"\",'Blank - Request Form'!F103),IF('Blank - Request Form'!$F$7=\"CIFDN\",IF(OR('Blank - Request Form'!O103=\"000\",'Blank - Request Form'!O103=0),\"\",'Blank - Request Form'!O103),\"\"))","v":""},{"$f":"IF('Blank - Request Form'!$F$6=\"CIFDN\",IF(OR('Blank - Request Form'!G103=\"0\",'Blank - Request Form'!G103=\"00000\",'Blank - Request Form'!G103=0),\"\",'Blank - Request Form'!G103),IF('Blank - Request Form'!$F$7=\"CIFDN\",IF(OR('Blank - Request Form'!P103=\"0\",'Blank - Request Form'!P103=\"00000\",'Blank - Request Form'!P103=0),\"\",'Blank - Request Form'!P103),\"\"))","v":""},{"$f":"IF('Blank - Request Form'!$F$6=\"CIFDN\",IF(OR('Blank - Request Form'!H103=\"0\",'Blank - Request Form'!H103=\"00000\",'Blank - Request Form'!H103=0),\"\",'Blank - Request Form'!H103),IF('Blank - Request Form'!$F$7=\"CIFDN\",IF(OR('Blank - Request Form'!Q103=\"0\",'Blank - Request Form'!Q103=\"00000\",'Blank - Request Form'!Q103=0),\"\",'Blank - Request Form'!Q103),\"\"))","v":""},{"$f":"IF('Blank - Request Form'!$F$6=\"CIFDN\",IF(OR('Blank - Request Form'!I103=\"0\",'Blank - Request Form'!I103=\"00000\",'Blank - Request Form'!I103=0),\"\",'Blank - Request Form'!I103),IF('Blank - Request Form'!$F$7=\"CIFDN\",IF(OR('Blank - Request Form'!R103=\"0\",'Blank - Request Form'!R103=\"00000\",'Blank - Request Form'!R103=0),\"\",'Blank - Request Form'!R103),\"\"))","v":""},null,{"$f":"IF('Blank - Request Form'!$F$6=\"CIFDN\",IF('Blank - Request Form'!K103=0,\"\",'Blank - Request Form'!K103),IF('Blank - Request Form'!$F$7=\"CIFDN\",IF('Blank - Request Form'!T103=0,\"\",'Blank - Request Form'!T103),\"\"))","v":""},null,null,null,{"$f":"IF(M69<>\"\",'Blank - Request Form'!$M$2,\"\")","v":""},{"$f":"IF('Blank - Request Form'!$F$6=\"CIFDN\",IF('Blank - Request Form'!J103=0,\"\",'Blank - Request Form'!J103),IF('Blank - Request Form'!$F$7=\"CIFDN\",IF('Blank - Request Form'!S103=0,\"\",'Blank - Request Form'!S103),\"\"))","v":""},"",69]
[{"$f":"IF('Blank - Request Form'!$F$6=\"CIFDN\",IF('Blank - Request Form'!D104=0,\"\",'Blank - Request Form'!D104),IF('Blank - Request Form'!$F$7=\"CIFDN\",IF('Blank - Request Form'!M104=0,\"\",'Blank - Request Form'!M104),\"\"))","v":""},{"$f":"IF('Blank - Request Form'!$F$6=\"CIFDN\",IF('Blank - Request Form'!E104=0,\"\",'Blank - Request Form'!E104),IF('Blank - Request Form'!$F$7=\"CIFDN\",IF('Blank - Request Form'!N104=0,\"\",'Blank - Request Form'!N104),\"\"))","v":""},{"$f":"IF('Blank - Request Form'!$F$6=\"CIFDN\",IF(OR('Blank - Request Form'!F104=\"000\",'Blank - Request Form'!F104=0),\"\",'Blank - Request Form'!F104),IF('Blank - Request Form'!$F$7=\"CIFDN\",IF(OR('Blank - Request Form'!O104=\"000\",'Blank - Request Form'!O104=0),\"\",'Blank - Request Form'!O104),\"\"))","v":""},{"$f":"IF('Blank - Request Form'!$F$6=\"CIFDN\",IF(OR('Blank - Request Form'!G104=\"0\",'Blank - Request Form'!G104=\"00000\",'Blank - Request Form'!G104=0),\"\",'Blank - Request Form'!G104),IF('Blank - Request Form'!$F$7=\"CIFDN\",IF(OR('Blank - Request Form'!P104=\"0\",'Blank - Request Form'!P104=\"00000\",'Blank - Request Form'!P104=0),\"\",'Blank - Request Form'!P104),\"\"))","v":""},{"$f":"IF('Blank - Request Form'!$F$6=\"CIFDN\",IF(OR('Blank - Request Form'!H104=\"0\",'Blank - Request Form'!H104=\"00000\",'Blank - Request Form'!H104=0),\"\",'Blank - Request Form'!H104),IF('Blank - Request Form'!$F$7=\"CIFDN\",IF(OR('Blank - Request Form'!Q104=\"0\",'Blank - Request Form'!Q104=\"00000\",'Blank - Request Form'!Q104=0),\"\",'Blank - Request Form'!Q104),\"\"))","v":""},{"$f":"IF('Blank - Request Form'!$F$6=\"CIFDN\",IF(OR('Blank - Request Form'!I104=\"0\",'Blank - Request Form'!I104=\"00000\",'Blank - Request Form'!I104=0),\"\",'Blank - Request Form'!I104),IF('Blank - Request Form'!$F$7=\"CIFDN\",IF(OR('Blank - Request Form'!R104=\"0\",'Blank - Request Form'!R104=\"00000\",'Blank - Request Form'!R104=0),\"\",'Blank - Request Form'!R104),\"\"))","v":""},null,{"$f":"IF('Blank - Request Form'!$F$6=\"CIFDN\",IF('Blank - Request Form'!K104=0,\"\",'Blank - Request Form'!K104),IF('Blank - Request Form'!$F$7=\"CIFDN\",IF('Blank - Request Form'!T104=0,\"\",'Blank - Request Form'!T104),\"\"))","v":""},null,null,null,{"$f":"IF(M70<>\"\",'Blank - Request Form'!$M$2,\"\")","v":""},{"$f":"IF('Blank - Request Form'!$F$6=\"CIFDN\",IF('Blank - Request Form'!J104=0,\"\",'Blank - Request Form'!J104),IF('Blank - Request Form'!$F$7=\"CIFDN\",IF('Blank - Request Form'!S104=0,\"\",'Blank - Request Form'!S104),\"\"))","v":""},"",70]
[{"$f":"IF('Blank - Request Form'!$F$6=\"CIFDN\",IF('Blank - Request Form'!D105=0,\"\",'Blank - Request Form'!D105),IF('Blank - Request Form'!$F$7=\"CIFDN\",IF('Blank - Request Form'!M105=0,\"\",'Blank - Request Form'!M105),\"\"))","v":""},{"$f":"IF('Blank - Request Form'!$F$6=\"CIFDN\",IF('Blank - Request Form'!E105=0,\"\",'Blank - Request Form'!E105),IF('Blank - Request Form'!$F$7=\"CIFDN\",IF('Blank - Request Form'!N105=0,\"\",'Blank - Request Form'!N105),\"\"))","v":""},{"$f":"IF('Blank - Request Form'!$F$6=\"CIFDN\",IF(OR('Blank - Request Form'!F105=\"000\",'Blank - Request Form'!F105=0),\"\",'Blank - Request Form'!F105),IF('Blank - Request Form'!$F$7=\"CIFDN\",IF(OR('Blank - Request Form'!O105=\"000\",'Blank - Request Form'!O105=0),\"\",'Blank - Request Form'!O105),\"\"))","v":""},{"$f":"IF('Blank - Request Form'!$F$6=\"CIFDN\",IF(OR('Blank - Request Form'!G105=\"0\",'Blank - Request Form'!G105=\"00000\",'Blank - Request Form'!G105=0),\"\",'Blank - Request Form'!G105),IF('Blank - Request Form'!$F$7=\"CIFDN\",IF(OR('Blank - Request Form'!P105=\"0\",'Blank - Request Form'!P105=\"00000\",'Blank - Request Form'!P105=0),\"\",'Blank - Request Form'!P105),\"\"))","v":""},{"$f":"IF('Blank - Request Form'!$F$6=\"CIFDN\",IF(OR('Blank - Request Form'!H105=\"0\",'Blank - Request Form'!H105=\"00000\",'Blank - Request Form'!H105=0),\"\",'Blank - Request Form'!H105),IF('Blank - Request Form'!$F$7=\"CIFDN\",IF(OR('Blank - Request Form'!Q105=\"0\",'Blank - Request Form'!Q105=\"00000\",'Blank - Request Form'!Q105=0),\"\",'Blank - Request Form'!Q105),\"\"))","v":""},{"$f":"IF('Blank - Request Form'!$F$6=\"CIFDN\",IF(OR('Blank - Request Form'!I105=\"0\",'Blank - Request Form'!I105=\"00000\",'Blank - Request Form'!I105=0),\"\",'Blank - Request Form'!I105),IF('Blank - Request Form'!$F$7=\"CIFDN\",IF(OR('Blank - Request Form'!R105=\"0\",'Blank - Request Form'!R105=\"00000\",'Blank - Request Form'!R105=0),\"\",'Blank - Request Form'!R105),\"\"))","v":""},null,{"$f":"IF('Blank - Request Form'!$F$6=\"CIFDN\",IF('Blank - Request Form'!K105=0,\"\",'Blank - Request Form'!K105),IF('Blank - Request Form'!$F$7=\"CIFDN\",IF('Blank - Request Form'!T105=0,\"\",'Blank - Request Form'!T105),\"\"))","v":""},null,null,null,{"$f":"IF(M71<>\"\",'Blank - Request Form'!$M$2,\"\")","v":""},{"$f":"IF('Blank - Request Form'!$F$6=\"CIFDN\",IF('Blank - Request Form'!J105=0,\"\",'Blank - Request Form'!J105),IF('Blank - Request Form'!$F$7=\"CIFDN\",IF('Blank - Request Form'!S105=0,\"\",'Blank - Request Form'!S105),\"\"))","v":""},"",71]
[{"$f":"IF('Blank - Request Form'!$F$6=\"CIFDN\",IF('Blank - Request Form'!D106=0,\"\",'Blank - Request Form'!D106),IF('Blank - Request Form'!$F$7=\"CIFDN\",IF('Blank - Request Form'!M106=0,\"\",'Blank - Request Form'!M106),\"\"))","v":""},{"$f":"IF('Blank - Request Form'!$F$6=\"CIFDN\",IF('Blank - Request Form'!E106=0,\"\",'Blank - Request Form'!E106),IF('Blank - Request Form'!$F$7=\"CIFDN\",IF('Blank - Request Form'!N106=0,\"\",'Blank - Request Form'!N106),\"\"))","v":""},{"$f":"IF('Blank - Request Form'!$F$6=\"CIFDN\",IF(OR('Blank - Request Form'!F106=\"000\",'Blank - Request Form'!F106=0),\"\",'Blank - Request Form'!F106),IF('Blank - Request Form'!$F$7=\"CIFDN\",IF(OR('Blank - Request Form'!O106=\"000\",'Blank - Request Form'!O106=0),\"\",'Blank - Request Form'!O106),\"\"))","v":""},{"$f":"IF('Blank - Request Form'!$F$6=\"CIFDN\",IF(OR('Blank - Request Form'!G106=\"0\",'Blank - Request Form'!G106=\"00000\",'Blank - Request Form'!G106=0),\"\",'Blank - Request Form'!G106),IF('Blank - Request Form'!$F$7=\"CIFDN\",IF(OR('Blank - Request Form'!P106=\"0\",'Blank - Request Form'!P106=\"00000\",'Blank - Request Form'!P106=0),\"\",'Blank - Request Form'!P106),\"\"))","v":""},{"$f":"IF('Blank - Request Form'!$F$6=\"CIFDN\",IF(OR('Blank - Request Form'!H106=\"0\",'Blank - Request Form'!H106=\"00000\",'Blank - Request Form'!H106=0),\"\",'Blank - Request Form'!H106),IF('Blank - Request Form'!$F$7=\"CIFDN\",IF(OR('Blank - Request Form'!Q106=\"0\",'Blank - Request Form'!Q106=\"00000\",'Blank - Request Form'!Q106=0),\"\",'Blank - Request Form'!Q106),\"\"))","v":""},{"$f":"IF('Blank - Request Form'!$F$6=\"CIFDN\",IF(OR('Blank - Request Form'!I106=\"0\",'Blank - Request Form'!I106=\"00000\",'Blank - Request Form'!I106=0),\"\",'Blank - Request Form'!I106),IF('Blank - Request Form'!$F$7=\"CIFDN\",IF(OR('Blank - Request Form'!R106=\"0\",'Blank - Request Form'!R106=\"00000\",'Blank - Request Form'!R106=0),\"\",'Blank - Request Form'!R106),\"\"))","v":""},null,{"$f":"IF('Blank - Request Form'!$F$6=\"CIFDN\",IF('Blank - Request Form'!K106=0,\"\",'Blank - Request Form'!K106),IF('Blank - Request Form'!$F$7=\"CIFDN\",IF('Blank - Request Form'!T106=0,\"\",'Blank - Request Form'!T106),\"\"))","v":""},null,null,null,{"$f":"IF(M72<>\"\",'Blank - Request Form'!$M$2,\"\")","v":""},{"$f":"IF('Blank - Request Form'!$F$6=\"CIFDN\",IF('Blank - Request Form'!J106=0,\"\",'Blank - Request Form'!J106),IF('Blank - Request Form'!$F$7=\"CIFDN\",IF('Blank - Request Form'!S106=0,\"\",'Blank - Request Form'!S106),\"\"))","v":""},"",72]
[{"$f":"IF('Blank - Request Form'!$F$6=\"CIFDN\",IF('Blank - Request Form'!D107=0,\"\",'Blank - Request Form'!D107),IF('Blank - Request Form'!$F$7=\"CIFDN\",IF('Blank - Request Form'!M107=0,\"\",'Blank - Request Form'!M107),\"\"))","v":""},{"$f":"IF('Blank - Request Form'!$F$6=\"CIFDN\",IF('Blank - Request Form'!E107=0,\"\",'Blank - Request Form'!E107),IF('Blank - Request Form'!$F$7=\"CIFDN\",IF('Blank - Request Form'!N107=0,\"\",'Blank - Request Form'!N107),\"\"))","v":""},{"$f":"IF('Blank - Request Form'!$F$6=\"CIFDN\",IF(OR('Blank - Request Form'!F107=\"000\",'Blank - Request Form'!F107=0),\"\",'Blank - Request Form'!F107),IF('Blank - Request Form'!$F$7=\"CIFDN\",IF(OR('Blank - Request Form'!O107=\"000\",'Blank - Request Form'!O107=0),\"\",'Blank - Request Form'!O107),\"\"))","v":""},{"$f":"IF('Blank - Request Form'!$F$6=\"CIFDN\",IF(OR('Blank - Request Form'!G107=\"0\",'Blank - Request Form'!G107=\"00000\",'Blank - Request Form'!G107=0),\"\",'Blank - Request Form'!G107),IF('Blank - Request Form'!$F$7=\"CIFDN\",IF(OR('Blank - Request Form'!P107=\"0\",'Blank - Request Form'!P107=\"00000\",'Blank - Request Form'!P107=0),\"\",'Blank - Request Form'!P107),\"\"))","v":""},{"$f":"IF('Blank - Request Form'!$F$6=\"CIFDN\",IF(OR('Blank - Request Form'!H107=\"0\",'Blank - Request Form'!H107=\"00000\",'Blank - Request Form'!H107=0),\"\",'Blank - Request Form'!H107),IF('Blank - Request Form'!$F$7=\"CIFDN\",IF(OR('Blank - Request Form'!Q107=\"0\",'Blank - Request Form'!Q107=\"00000\",'Blank - Request Form'!Q107=0),\"\",'Blank - Request Form'!Q107),\"\"))","v":""},{"$f":"IF('Blank - Request Form'!$F$6=\"CIFDN\",IF(OR('Blank - Request Form'!I107=\"0\",'Blank - Request Form'!I107=\"00000\",'Blank - Request Form'!I107=0),\"\",'Blank - Request Form'!I107),IF('Blank - Request Form'!$F$7=\"CIFDN\",IF(OR('Blank - Request Form'!R107=\"0\",'Blank - Request Form'!R107=\"00000\",'Blank - Request Form'!R107=0),\"\",'Blank - Request Form'!R107),\"\"))","v":""},null,{"$f":"IF('Blank - Request Form'!$F$6=\"CIFDN\",IF('Blank - Request Form'!K107=0,\"\",'Blank - Request Form'!K107),IF('Blank - Request Form'!$F$7=\"CIFDN\",IF('Blank - Request Form'!T107=0,\"\",'Blank - Request Form'!T107),\"\"))","v":""},null,null,null,{"$f":"IF(M73<>\"\",'Blank - Request Form'!$M$2,\"\")","v":""},{"$f":"IF('Blank - Request Form'!$F$6=\"CIFDN\",IF('Blank - Request Form'!J107=0,\"\",'Blank - Request Form'!J107),IF('Blank - Request Form'!$F$7=\"CIFDN\",IF('Blank - Request Form'!S107=0,\"\",'Blank - Request Form'!S107),\"\"))","v":""},"",73]
[{"$f":"IF('Blank - Request Form'!$F$6=\"CIFDN\",IF('Blank - Request Form'!D108=0,\"\",'Blank - Request Form'!D108),IF('Blank - Request Form'!$F$7=\"CIFDN\",IF('Blank - Request Form'!M108=0,\"\",'Blank - Request Form'!M108),\"\"))","v":""},{"$f":"IF('Blank - Request Form'!$F$6=\"CIFDN\",IF('Blank - Request Form'!E108=0,\"\",'Blank - Request Form'!E108),IF('Blank - Request Form'!$F$7=\"CIFDN\",IF('Blank - Request Form'!N108=0,\"\",'Blank - Request Form'!N108),\"\"))","v":""},{"$f":"IF('Blank - Request Form'!$F$6=\"CIFDN\",IF(OR('Blank - Request Form'!F108=\"000\",'Blank - Request Form'!F108=0),\"\",'Blank - Request Form'!F108),IF('Blank - Request Form'!$F$7=\"CIFDN\",IF(OR('Blank - Request Form'!O108=\"000\",'Blank - Request Form'!O108=0),\"\",'Blank - Request Form'!O108),\"\"))","v":""},{"$f":"IF('Blank - Request Form'!$F$6=\"CIFDN\",IF(OR('Blank - Request Form'!G108=\"0\",'Blank - Request Form'!G108=\"00000\",'Blank - Request Form'!G108=0),\"\",'Blank - Request Form'!G108),IF('Blank - Request Form'!$F$7=\"CIFDN\",IF(OR('Blank - Request Form'!P108=\"0\",'Blank - Request Form'!P108=\"00000\",'Blank - Request Form'!P108=0),\"\",'Blank - Request Form'!P108),\"\"))","v":""},{"$f":"IF('Blank - Request Form'!$F$6=\"CIFDN\",IF(OR('Blank - Request Form'!H108=\"0\",'Blank - Request Form'!H108=\"00000\",'Blank - Request Form'!H108=0),\"\",'Blank - Request Form'!H108),IF('Blank - Request Form'!$F$7=\"CIFDN\",IF(OR('Blank - Request Form'!Q108=\"0\",'Blank - Request Form'!Q108=\"00000\",'Blank - Request Form'!Q108=0),\"\",'Blank - Request Form'!Q108),\"\"))","v":""},{"$f":"IF('Blank - Request Form'!$F$6=\"CIFDN\",IF(OR('Blank - Request Form'!I108=\"0\",'Blank - Request Form'!I108=\"00000\",'Blank - Request Form'!I108=0),\"\",'Blank - Request Form'!I108),IF('Blank - Request Form'!$F$7=\"CIFDN\",IF(OR('Blank - Request Form'!R108=\"0\",'Blank - Request Form'!R108=\"00000\",'Blank - Request Form'!R108=0),\"\",'Blank - Request Form'!R108),\"\"))","v":""},null,{"$f":"IF('Blank - Request Form'!$F$6=\"CIFDN\",IF('Blank - Request Form'!K108=0,\"\",'Blank - Request Form'!K108),IF('Blank - Request Form'!$F$7=\"CIFDN\",IF('Blank - Request Form'!T108=0,\"\",'Blank - Request Form'!T108),\"\"))","v":""},null,null,null,{"$f":"IF(M74<>\"\",'Blank - Request Form'!$M$2,\"\")","v":""},{"$f":"IF('Blank - Request Form'!$F$6=\"CIFDN\",IF('Blank - Request Form'!J108=0,\"\",'Blank - Request Form'!J108),IF('Blank - Request Form'!$F$7=\"CIFDN\",IF('Blank - Request Form'!S108=0,\"\",'Blank - Request Form'!S108),\"\"))","v":""},"",74]
[{"$f":"IF('Blank - Request Form'!$F$6=\"CIFDN\",IF('Blank - Request Form'!D109=0,\"\",'Blank - Request Form'!D109),IF('Blank - Request Form'!$F$7=\"CIFDN\",IF('Blank - Request Form'!M109=0,\"\",'Blank - Request Form'!M109),\"\"))","v":""},{"$f":"IF('Blank - Request Form'!$F$6=\"CIFDN\",IF('Blank - Request Form'!E109=0,\"\",'Blank - Request Form'!E109),IF('Blank - Request Form'!$F$7=\"CIFDN\",IF('Blank - Request Form'!N109=0,\"\",'Blank - Request Form'!N109),\"\"))","v":""},{"$f":"IF('Blank - Request Form'!$F$6=\"CIFDN\",IF(OR('Blank - Request Form'!F109=\"000\",'Blank - Request Form'!F109=0),\"\",'Blank - Request Form'!F109),IF('Blank - Request Form'!$F$7=\"CIFDN\",IF(OR('Blank - Request Form'!O109=\"000\",'Blank - Request Form'!O109=0),\"\",'Blank - Request Form'!O109),\"\"))","v":""},{"$f":"IF('Blank - Request Form'!$F$6=\"CIFDN\",IF(OR('Blank - Request Form'!G109=\"0\",'Blank - Request Form'!G109=\"00000\",'Blank - Request Form'!G109=0),\"\",'Blank - Request Form'!G109),IF('Blank - Request Form'!$F$7=\"CIFDN\",IF(OR('Blank - Request Form'!P109=\"0\",'Blank - Request Form'!P109=\"00000\",'Blank - Request Form'!P109=0),\"\",'Blank - Request Form'!P109),\"\"))","v":""},{"$f":"IF('Blank - Request Form'!$F$6=\"CIFDN\",IF(OR('Blank - Request Form'!H109=\"0\",'Blank - Request Form'!H109=\"00000\",'Blank - Request Form'!H109=0),\"\",'Blank - Request Form'!H109),IF('Blank - Request Form'!$F$7=\"CIFDN\",IF(OR('Blank - Request Form'!Q109=\"0\",'Blank - Request Form'!Q109=\"00000\",'Blank - Request Form'!Q109=0),\"\",'Blank - Request Form'!Q109),\"\"))","v":""},{"$f":"IF('Blank - Request Form'!$F$6=\"CIFDN\",IF(OR('Blank - Request Form'!I109=\"0\",'Blank - Request Form'!I109=\"00000\",'Blank - Request Form'!I109=0),\"\",'Blank - Request Form'!I109),IF('Blank - Request Form'!$F$7=\"CIFDN\",IF(OR('Blank - Request Form'!R109=\"0\",'Blank - Request Form'!R109=\"00000\",'Blank - Request Form'!R109=0),\"\",'Blank - Request Form'!R109),\"\"))","v":""},null,{"$f":"IF('Blank - Request Form'!$F$6=\"CIFDN\",IF('Blank - Request Form'!K109=0,\"\",'Blank - Request Form'!K109),IF('Blank - Request Form'!$F$7=\"CIFDN\",IF('Blank - Request Form'!T109=0,\"\",'Blank - Request Form'!T109),\"\"))","v":""},null,null,null,{"$f":"IF(M75<>\"\",'Blank - Request Form'!$M$2,\"\")","v":""},{"$f":"IF('Blank - Request Form'!$F$6=\"CIFDN\",IF('Blank - Request Form'!J109=0,\"\",'Blank - Request Form'!J109),IF('Blank - Request Form'!$F$7=\"CIFDN\",IF('Blank - Request Form'!S109=0,\"\",'Blank - Request Form'!S109),\"\"))","v":""},"",75]
[{"$f":"IF('Blank - Request Form'!$F$6=\"CIFDN\",IF('Blank - Request Form'!D110=0,\"\",'Blank - Request Form'!D110),IF('Blank - Request Form'!$F$7=\"CIFDN\",IF('Blank - Request Form'!M110=0,\"\",'Blank - Request Form'!M110),\"\"))","v":""},{"$f":"IF('Blank - Request Form'!$F$6=\"CIFDN\",IF('Blank - Request Form'!E110=0,\"\",'Blank - Request Form'!E110),IF('Blank - Request Form'!$F$7=\"CIFDN\",IF('Blank - Request Form'!N110=0,\"\",'Blank - Request Form'!N110),\"\"))","v":""},{"$f":"IF('Blank - Request Form'!$F$6=\"CIFDN\",IF(OR('Blank - Request Form'!F110=\"000\",'Blank - Request Form'!F110=0),\"\",'Blank - Request Form'!F110),IF('Blank - Request Form'!$F$7=\"CIFDN\",IF(OR('Blank - Request Form'!O110=\"000\",'Blank - Request Form'!O110=0),\"\",'Blank - Request Form'!O110),\"\"))","v":""},{"$f":"IF('Blank - Request Form'!$F$6=\"CIFDN\",IF(OR('Blank - Request Form'!G110=\"0\",'Blank - Request Form'!G110=\"00000\",'Blank - Request Form'!G110=0),\"\",'Blank - Request Form'!G110),IF('Blank - Request Form'!$F$7=\"CIFDN\",IF(OR('Blank - Request Form'!P110=\"0\",'Blank - Request Form'!P110=\"00000\",'Blank - Request Form'!P110=0),\"\",'Blank - Request Form'!P110),\"\"))","v":""},{"$f":"IF('Blank - Request Form'!$F$6=\"CIFDN\",IF(OR('Blank - Request Form'!H110=\"0\",'Blank - Request Form'!H110=\"00000\",'Blank - Request Form'!H110=0),\"\",'Blank - Request Form'!H110),IF('Blank - Request Form'!$F$7=\"CIFDN\",IF(OR('Blank - Request Form'!Q110=\"0\",'Blank - Request Form'!Q110=\"00000\",'Blank - Request Form'!Q110=0),\"\",'Blank - Request Form'!Q110),\"\"))","v":""},{"$f":"IF('Blank - Request Form'!$F$6=\"CIFDN\",IF(OR('Blank - Request Form'!I110=\"0\",'Blank - Request Form'!I110=\"00000\",'Blank - Request Form'!I110=0),\"\",'Blank - Request Form'!I110),IF('Blank - Request Form'!$F$7=\"CIFDN\",IF(OR('Blank - Request Form'!R110=\"0\",'Blank - Request Form'!R110=\"00000\",'Blank - Request Form'!R110=0),\"\",'Blank - Request Form'!R110),\"\"))","v":""},null,{"$f":"IF('Blank - Request Form'!$F$6=\"CIFDN\",IF('Blank - Request Form'!K110=0,\"\",'Blank - Request Form'!K110),IF('Blank - Request Form'!$F$7=\"CIFDN\",IF('Blank - Request Form'!T110=0,\"\",'Blank - Request Form'!T110),\"\"))","v":""},null,null,null,{"$f":"IF(M76<>\"\",'Blank - Request Form'!$M$2,\"\")","v":""},{"$f":"IF('Blank - Request Form'!$F$6=\"CIFDN\",IF('Blank - Request Form'!J110=0,\"\",'Blank - Request Form'!J110),IF('Blank - Request Form'!$F$7=\"CIFDN\",IF('Blank - Request Form'!S110=0,\"\",'Blank - Request Form'!S110),\"\"))","v":""},"",76]
[{"$f":"IF('Blank - Request Form'!$F$6=\"CIFDN\",IF('Blank - Request Form'!D111=0,\"\",'Blank - Request Form'!D111),IF('Blank - Request Form'!$F$7=\"CIFDN\",IF('Blank - Request Form'!M111=0,\"\",'Blank - Request Form'!M111),\"\"))","v":""},{"$f":"IF('Blank - Request Form'!$F$6=\"CIFDN\",IF('Blank - Request Form'!E111=0,\"\",'Blank - Request Form'!E111),IF('Blank - Request Form'!$F$7=\"CIFDN\",IF('Blank - Request Form'!N111=0,\"\",'Blank - Request Form'!N111),\"\"))","v":""},{"$f":"IF('Blank - Request Form'!$F$6=\"CIFDN\",IF(OR('Blank - Request Form'!F111=\"000\",'Blank - Request Form'!F111=0),\"\",'Blank - Request Form'!F111),IF('Blank - Request Form'!$F$7=\"CIFDN\",IF(OR('Blank - Request Form'!O111=\"000\",'Blank - Request Form'!O111=0),\"\",'Blank - Request Form'!O111),\"\"))","v":""},{"$f":"IF('Blank - Request Form'!$F$6=\"CIFDN\",IF(OR('Blank - Request Form'!G111=\"0\",'Blank - Request Form'!G111=\"00000\",'Blank - Request Form'!G111=0),\"\",'Blank - Request Form'!G111),IF('Blank - Request Form'!$F$7=\"CIFDN\",IF(OR('Blank - Request Form'!P111=\"0\",'Blank - Request Form'!P111=\"00000\",'Blank - Request Form'!P111=0),\"\",'Blank - Request Form'!P111),\"\"))","v":""},{"$f":"IF('Blank - Request Form'!$F$6=\"CIFDN\",IF(OR('Blank - Request Form'!H111=\"0\",'Blank - Request Form'!H111=\"00000\",'Blank - Request Form'!H111=0),\"\",'Blank - Request Form'!H111),IF('Blank - Request Form'!$F$7=\"CIFDN\",IF(OR('Blank - Request Form'!Q111=\"0\",'Blank - Request Form'!Q111=\"00000\",'Blank - Request Form'!Q111=0),\"\",'Blank - Request Form'!Q111),\"\"))","v":""},{"$f":"IF('Blank - Request Form'!$F$6=\"CIFDN\",IF(OR('Blank - Request Form'!I111=\"0\",'Blank - Request Form'!I111=\"00000\",'Blank - Request Form'!I111=0),\"\",'Blank - Request Form'!I111),IF('Blank - Request Form'!$F$7=\"CIFDN\",IF(OR('Blank - Request Form'!R111=\"0\",'Blank - Request Form'!R111=\"00000\",'Blank - Request Form'!R111=0),\"\",'Blank - Request Form'!R111),\"\"))","v":""},null,{"$f":"IF('Blank - Request Form'!$F$6=\"CIFDN\",IF('Blank - Request Form'!K111=0,\"\",'Blank - Request Form'!K111),IF('Blank - Request Form'!$F$7=\"CIFDN\",IF('Blank - Request Form'!T111=0,\"\",'Blank - Request Form'!T111),\"\"))","v":""},null,null,null,{"$f":"IF(M77<>\"\",'Blank - Request Form'!$M$2,\"\")","v":""},{"$f":"IF('Blank - Request Form'!$F$6=\"CIFDN\",IF('Blank - Request Form'!J111=0,\"\",'Blank - Request Form'!J111),IF('Blank - Request Form'!$F$7=\"CIFDN\",IF('Blank - Request Form'!S111=0,\"\",'Blank - Request Form'!S111),\"\"))","v":""},"",77]
[{"$f":"IF('Blank - Request Form'!$F$6=\"CIFDN\",IF('Blank - Request Form'!D112=0,\"\",'Blank - Request Form'!D112),IF('Blank - Request Form'!$F$7=\"CIFDN\",IF('Blank - Request Form'!M112=0,\"\",'Blank - Request Form'!M112),\"\"))","v":""},{"$f":"IF('Blank - Request Form'!$F$6=\"CIFDN\",IF('Blank - Request Form'!E112=0,\"\",'Blank - Request Form'!E112),IF('Blank - Request Form'!$F$7=\"CIFDN\",IF('Blank - Request Form'!N112=0,\"\",'Blank - Request Form'!N112),\"\"))","v":""},{"$f":"IF('Blank - Request Form'!$F$6=\"CIFDN\",IF(OR('Blank - Request Form'!F112=\"000\",'Blank - Request Form'!F112=0),\"\",'Blank - Request Form'!F112),IF('Blank - Request Form'!$F$7=\"CIFDN\",IF(OR('Blank - Request Form'!O112=\"000\",'Blank - Request Form'!O112=0),\"\",'Blank - Request Form'!O112),\"\"))","v":""},{"$f":"IF('Blank - Request Form'!$F$6=\"CIFDN\",IF(OR('Blank - Request Form'!G112=\"0\",'Blank - Request Form'!G112=\"00000\",'Blank - Request Form'!G112=0),\"\",'Blank - Request Form'!G112),IF('Blank - Request Form'!$F$7=\"CIFDN\",IF(OR('Blank - Request Form'!P112=\"0\",'Blank - Request Form'!P112=\"00000\",'Blank - Request Form'!P112=0),\"\",'Blank - Request Form'!P112),\"\"))","v":""},{"$f":"IF('Blank - Request Form'!$F$6=\"CIFDN\",IF(OR('Blank - Request Form'!H112=\"0\",'Blank - Request Form'!H112=\"00000\",'Blank - Request Form'!H112=0),\"\",'Blank - Request Form'!H112),IF('Blank - Request Form'!$F$7=\"CIFDN\",IF(OR('Blank - Request Form'!Q112=\"0\",'Blank - Request Form'!Q112=\"00000\",'Blank - Request Form'!Q112=0),\"\",'Blank - Request Form'!Q112),\"\"))","v":""},{"$f":"IF('Blank - Request Form'!$F$6=\"CIFDN\",IF(OR('Blank - Request Form'!I112=\"0\",'Blank - Request Form'!I112=\"00000\",'Blank - Request Form'!I112=0),\"\",'Blank - Request Form'!I112),IF('Blank - Request Form'!$F$7=\"CIFDN\",IF(OR('Blank - Request Form'!R112=\"0\",'Blank - Request Form'!R112=\"00000\",'Blank - Request Form'!R112=0),\"\",'Blank - Request Form'!R112),\"\"))","v":""},null,{"$f":"IF('Blank - Request Form'!$F$6=\"CIFDN\",IF('Blank - Request Form'!K112=0,\"\",'Blank - Request Form'!K112),IF('Blank - Request Form'!$F$7=\"CIFDN\",IF('Blank - Request Form'!T112=0,\"\",'Blank - Request Form'!T112),\"\"))","v":""},null,null,null,{"$f":"IF(M78<>\"\",'Blank - Request Form'!$M$2,\"\")","v":""},{"$f":"IF('Blank - Request Form'!$F$6=\"CIFDN\",IF('Blank - Request Form'!J112=0,\"\",'Blank - Request Form'!J112),IF('Blank - Request Form'!$F$7=\"CIFDN\",IF('Blank - Request Form'!S112=0,\"\",'Blank - Request Form'!S112),\"\"))","v":""},"",78]
[{"$f":"IF('Blank - Request Form'!$F$6=\"CIFDN\",IF('Blank - Request Form'!D113=0,\"\",'Blank - Request Form'!D113),IF('Blank - Request Form'!$F$7=\"CIFDN\",IF('Blank - Request Form'!M113=0,\"\",'Blank - Request Form'!M113),\"\"))","v":""},{"$f":"IF('Blank - Request Form'!$F$6=\"CIFDN\",IF('Blank - Request Form'!E113=0,\"\",'Blank - Request Form'!E113),IF('Blank - Request Form'!$F$7=\"CIFDN\",IF('Blank - Request Form'!N113=0,\"\",'Blank - Request Form'!N113),\"\"))","v":""},{"$f":"IF('Blank - Request Form'!$F$6=\"CIFDN\",IF(OR('Blank - Request Form'!F113=\"000\",'Blank - Request Form'!F113=0),\"\",'Blank - Request Form'!F113),IF('Blank - Request Form'!$F$7=\"CIFDN\",IF(OR('Blank - Request Form'!O113=\"000\",'Blank - Request Form'!O113=0),\"\",'Blank - Request Form'!O113),\"\"))","v":""},{"$f":"IF('Blank - Request Form'!$F$6=\"CIFDN\",IF(OR('Blank - Request Form'!G113=\"0\",'Blank - Request Form'!G113=\"00000\",'Blank - Request Form'!G113=0),\"\",'Blank - Request Form'!G113),IF('Blank - Request Form'!$F$7=\"CIFDN\",IF(OR('Blank - Request Form'!P113=\"0\",'Blank - Request Form'!P113=\"00000\",'Blank - Request Form'!P113=0),\"\",'Blank - Request Form'!P113),\"\"))","v":""},{"$f":"IF('Blank - Request Form'!$F$6=\"CIFDN\",IF(OR('Blank - Request Form'!H113=\"0\",'Blank - Request Form'!H113=\"00000\",'Blank - Request Form'!H113=0),\"\",'Blank - Request Form'!H113),IF('Blank - Request Form'!$F$7=\"CIFDN\",IF(OR('Blank - Request Form'!Q113=\"0\",'Blank - Request Form'!Q113=\"00000\",'Blank - Request Form'!Q113=0),\"\",'Blank - Request Form'!Q113),\"\"))","v":""},{"$f":"IF('Blank - Request Form'!$F$6=\"CIFDN\",IF(OR('Blank - Request Form'!I113=\"0\",'Blank - Request Form'!I113=\"00000\",'Blank - Request Form'!I113=0),\"\",'Blank - Request Form'!I113),IF('Blank - Request Form'!$F$7=\"CIFDN\",IF(OR('Blank - Request Form'!R113=\"0\",'Blank - Request Form'!R113=\"00000\",'Blank - Request Form'!R113=0),\"\",'Blank - Request Form'!R113),\"\"))","v":""},null,{"$f":"IF('Blank - Request Form'!$F$6=\"CIFDN\",IF('Blank - Request Form'!K113=0,\"\",'Blank - Request Form'!K113),IF('Blank - Request Form'!$F$7=\"CIFDN\",IF('Blank - Request Form'!T113=0,\"\",'Blank - Request Form'!T113),\"\"))","v":""},null,null,null,{"$f":"IF(M79<>\"\",'Blank - Request Form'!$M$2,\"\")","v":""},{"$f":"IF('Blank - Request Form'!$F$6=\"CIFDN\",IF('Blank - Request Form'!J113=0,\"\",'Blank - Request Form'!J113),IF('Blank - Request Form'!$F$7=\"CIFDN\",IF('Blank - Request Form'!S113=0,\"\",'Blank - Request Form'!S113),\"\"))","v":""},"",79]
[{"$f":"IF('Blank - Request Form'!$F$6=\"CIFDN\",IF('Blank - Request Form'!D114=0,\"\",'Blank - Request Form'!D114),IF('Blank - Request Form'!$F$7=\"CIFDN\",IF('Blank - Request Form'!M114=0,\"\",'Blank - Request Form'!M114),\"\"))","v":""},{"$f":"IF('Blank - Request Form'!$F$6=\"CIFDN\",IF('Blank - Request Form'!E114=0,\"\",'Blank - Request Form'!E114),IF('Blank - Request Form'!$F$7=\"CIFDN\",IF('Blank - Request Form'!N114=0,\"\",'Blank - Request Form'!N114),\"\"))","v":""},{"$f":"IF('Blank - Request Form'!$F$6=\"CIFDN\",IF(OR('Blank - Request Form'!F114=\"000\",'Blank - Request Form'!F114=0),\"\",'Blank - Request Form'!F114),IF('Blank - Request Form'!$F$7=\"CIFDN\",IF(OR('Blank - Request Form'!O114=\"000\",'Blank - Request Form'!O114=0),\"\",'Blank - Request Form'!O114),\"\"))","v":""},{"$f":"IF('Blank - Request Form'!$F$6=\"CIFDN\",IF(OR('Blank - Request Form'!G114=\"0\",'Blank - Request Form'!G114=\"00000\",'Blank - Request Form'!G114=0),\"\",'Blank - Request Form'!G114),IF('Blank - Request Form'!$F$7=\"CIFDN\",IF(OR('Blank - Request Form'!P114=\"0\",'Blank - Request Form'!P114=\"00000\",'Blank - Request Form'!P114=0),\"\",'Blank - Request Form'!P114),\"\"))","v":""},{"$f":"IF('Blank - Request Form'!$F$6=\"CIFDN\",IF(OR('Blank - Request Form'!H114=\"0\",'Blank - Request Form'!H114=\"00000\",'Blank - Request Form'!H114=0),\"\",'Blank - Request Form'!H114),IF('Blank - Request Form'!$F$7=\"CIFDN\",IF(OR('Blank - Request Form'!Q114=\"0\",'Blank - Request Form'!Q114=\"00000\",'Blank - Request Form'!Q114=0),\"\",'Blank - Request Form'!Q114),\"\"))","v":""},{"$f":"IF('Blank - Request Form'!$F$6=\"CIFDN\",IF(OR('Blank - Request Form'!I114=\"0\",'Blank - Request Form'!I114=\"00000\",'Blank - Request Form'!I114=0),\"\",'Blank - Request Form'!I114),IF('Blank - Request Form'!$F$7=\"CIFDN\",IF(OR('Blank - Request Form'!R114=\"0\",'Blank - Request Form'!R114=\"00000\",'Blank - Request Form'!R114=0),\"\",'Blank - Request Form'!R114),\"\"))","v":""},null,{"$f":"IF('Blank - Request Form'!$F$6=\"CIFDN\",IF('Blank - Request Form'!K114=0,\"\",'Blank - Request Form'!K114),IF('Blank - Request Form'!$F$7=\"CIFDN\",IF('Blank - Request Form'!T114=0,\"\",'Blank - Request Form'!T114),\"\"))","v":""},null,null,null,{"$f":"IF(M80<>\"\",'Blank - Request Form'!$M$2,\"\")","v":""},{"$f":"IF('Blank - Request Form'!$F$6=\"CIFDN\",IF('Blank - Request Form'!J114=0,\"\",'Blank - Request Form'!J114),IF('Blank - Request Form'!$F$7=\"CIFDN\",IF('Blank - Request Form'!S114=0,\"\",'Blank - Request Form'!S114),\"\"))","v":""},"",80]
[{"$f":"IF('Blank - Request Form'!$F$6=\"CIFDN\",IF('Blank - Request Form'!D115=0,\"\",'Blank - Request Form'!D115),IF('Blank - Request Form'!$F$7=\"CIFDN\",IF('Blank - Request Form'!M115=0,\"\",'Blank - Request Form'!M115),\"\"))","v":""},{"$f":"IF('Blank - Request Form'!$F$6=\"CIFDN\",IF('Blank - Request Form'!E115=0,\"\",'Blank - Request Form'!E115),IF('Blank - Request Form'!$F$7=\"CIFDN\",IF('Blank - Request Form'!N115=0,\"\",'Blank - Request Form'!N115),\"\"))","v":""},{"$f":"IF('Blank - Request Form'!$F$6=\"CIFDN\",IF(OR('Blank - Request Form'!F115=\"000\",'Blank - Request Form'!F115=0),\"\",'Blank - Request Form'!F115),IF('Blank - Request Form'!$F$7=\"CIFDN\",IF(OR('Blank - Request Form'!O115=\"000\",'Blank - Request Form'!O115=0),\"\",'Blank - Request Form'!O115),\"\"))","v":""},{"$f":"IF('Blank - Request Form'!$F$6=\"CIFDN\",IF(OR('Blank - Request Form'!G115=\"0\",'Blank - Request Form'!G115=\"00000\",'Blank - Request Form'!G115=0),\"\",'Blank - Request Form'!G115),IF('Blank - Request Form'!$F$7=\"CIFDN\",IF(OR('Blank - Request Form'!P115=\"0\",'Blank - Request Form'!P115=\"00000\",'Blank - Request Form'!P115=0),\"\",'Blank - Request Form'!P115),\"\"))","v":""},{"$f":"IF('Blank - Request Form'!$F$6=\"CIFDN\",IF(OR('Blank - Request Form'!H115=\"0\",'Blank - Request Form'!H115=\"00000\",'Blank - Request Form'!H115=0),\"\",'Blank - Request Form'!H115),IF('Blank - Request Form'!$F$7=\"CIFDN\",IF(OR('Blank - Request Form'!Q115=\"0\",'Blank - Request Form'!Q115=\"00000\",'Blank - Request Form'!Q115=0),\"\",'Blank - Request Form'!Q115),\"\"))","v":""},{"$f":"IF('Blank - Request Form'!$F$6=\"CIFDN\",IF(OR('Blank - Request Form'!I115=\"0\",'Blank - Request Form'!I115=\"00000\",'Blank - Request Form'!I115=0),\"\",'Blank - Request Form'!I115),IF('Blank - Request Form'!$F$7=\"CIFDN\",IF(OR('Blank - Request Form'!R115=\"0\",'Blank - Request Form'!R115=\"00000\",'Blank - Request Form'!R115=0),\"\",'Blank - Request Form'!R115),\"\"))","v":""},null,{"$f":"IF('Blank - Request Form'!$F$6=\"CIFDN\",IF('Blank - Request Form'!K115=0,\"\",'Blank - Request Form'!K115),IF('Blank - Request Form'!$F$7=\"CIFDN\",IF('Blank - Request Form'!T115=0,\"\",'Blank - Request Form'!T115),\"\"))","v":""},null,null,null,{"$f":"IF(M81<>\"\",'Blank - Request Form'!$M$2,\"\")","v":""},{"$f":"IF('Blank - Request Form'!$F$6=\"CIFDN\",IF('Blank - Request Form'!J115=0,\"\",'Blank - Request Form'!J115),IF('Blank - Request Form'!$F$7=\"CIFDN\",IF('Blank - Request Form'!S115=0,\"\",'Blank - Request Form'!S115),\"\"))","v":""},"",81]
[{"$f":"IF('Blank - Request Form'!$F$6=\"CIFDN\",IF('Blank - Request Form'!D116=0,\"\",'Blank - Request Form'!D116),IF('Blank - Request Form'!$F$7=\"CIFDN\",IF('Blank - Request Form'!M116=0,\"\",'Blank - Request Form'!M116),\"\"))","v":""},{"$f":"IF('Blank - Request Form'!$F$6=\"CIFDN\",IF('Blank - Request Form'!E116=0,\"\",'Blank - Request Form'!E116),IF('Blank - Request Form'!$F$7=\"CIFDN\",IF('Blank - Request Form'!N116=0,\"\",'Blank - Request Form'!N116),\"\"))","v":""},{"$f":"IF('Blank - Request Form'!$F$6=\"CIFDN\",IF(OR('Blank - Request Form'!F116=\"000\",'Blank - Request Form'!F116=0),\"\",'Blank - Request Form'!F116),IF('Blank - Request Form'!$F$7=\"CIFDN\",IF(OR('Blank - Request Form'!O116=\"000\",'Blank - Request Form'!O116=0),\"\",'Blank - Request Form'!O116),\"\"))","v":""},{"$f":"IF('Blank - Request Form'!$F$6=\"CIFDN\",IF(OR('Blank - Request Form'!G116=\"0\",'Blank - Request Form'!G116=\"00000\",'Blank - Request Form'!G116=0),\"\",'Blank - Request Form'!G116),IF('Blank - Request Form'!$F$7=\"CIFDN\",IF(OR('Blank - Request Form'!P116=\"0\",'Blank - Request Form'!P116=\"00000\",'Blank - Request Form'!P116=0),\"\",'Blank - Request Form'!P116),\"\"))","v":""},{"$f":"IF('Blank - Request Form'!$F$6=\"CIFDN\",IF(OR('Blank - Request Form'!H116=\"0\",'Blank - Request Form'!H116=\"00000\",'Blank - Request Form'!H116=0),\"\",'Blank - Request Form'!H116),IF('Blank - Request Form'!$F$7=\"CIFDN\",IF(OR('Blank - Request Form'!Q116=\"0\",'Blank - Request Form'!Q116=\"00000\",'Blank - Request Form'!Q116=0),\"\",'Blank - Request Form'!Q116),\"\"))","v":""},{"$f":"IF('Blank - Request Form'!$F$6=\"CIFDN\",IF(OR('Blank - Request Form'!I116=\"0\",'Blank - Request Form'!I116=\"00000\",'Blank - Request Form'!I116=0),\"\",'Blank - Request Form'!I116),IF('Blank - Request Form'!$F$7=\"CIFDN\",IF(OR('Blank - Request Form'!R116=\"0\",'Blank - Request Form'!R116=\"00000\",'Blank - Request Form'!R116=0),\"\",'Blank - Request Form'!R116),\"\"))","v":""},null,{"$f":"IF('Blank - Request Form'!$F$6=\"CIFDN\",IF('Blank - Request Form'!K116=0,\"\",'Blank - Request Form'!K116),IF('Blank - Request Form'!$F$7=\"CIFDN\",IF('Blank - Request Form'!T116=0,\"\",'Blank - Request Form'!T116),\"\"))","v":""},null,null,null,{"$f":"IF(M82<>\"\",'Blank - Request Form'!$M$2,\"\")","v":""},{"$f":"IF('Blank - Request Form'!$F$6=\"CIFDN\",IF('Blank - Request Form'!J116=0,\"\",'Blank - Request Form'!J116),IF('Blank - Request Form'!$F$7=\"CIFDN\",IF('Blank - Request Form'!S116=0,\"\",'Blank - Request Form'!S116),\"\"))","v":""},"",82]
[{"$f":"IF('Blank - Request Form'!$F$6=\"CIFDN\",IF('Blank - Request Form'!D117=0,\"\",'Blank - Request Form'!D117),IF('Blank - Request Form'!$F$7=\"CIFDN\",IF('Blank - Request Form'!M117=0,\"\",'Blank - Request Form'!M117),\"\"))","v":""},{"$f":"IF('Blank - Request Form'!$F$6=\"CIFDN\",IF('Blank - Request Form'!E117=0,\"\",'Blank - Request Form'!E117),IF('Blank - Request Form'!$F$7=\"CIFDN\",IF('Blank - Request Form'!N117=0,\"\",'Blank - Request Form'!N117),\"\"))","v":""},{"$f":"IF('Blank - Request Form'!$F$6=\"CIFDN\",IF(OR('Blank - Request Form'!F117=\"000\",'Blank - Request Form'!F117=0),\"\",'Blank - Request Form'!F117),IF('Blank - Request Form'!$F$7=\"CIFDN\",IF(OR('Blank - Request Form'!O117=\"000\",'Blank - Request Form'!O117=0),\"\",'Blank - Request Form'!O117),\"\"))","v":""},{"$f":"IF('Blank - Request Form'!$F$6=\"CIFDN\",IF(OR('Blank - Request Form'!G117=\"0\",'Blank - Request Form'!G117=\"00000\",'Blank - Request Form'!G117=0),\"\",'Blank - Request Form'!G117),IF('Blank - Request Form'!$F$7=\"CIFDN\",IF(OR('Blank - Request Form'!P117=\"0\",'Blank - Request Form'!P117=\"00000\",'Blank - Request Form'!P117=0),\"\",'Blank - Request Form'!P117),\"\"))","v":""},{"$f":"IF('Blank - Request Form'!$F$6=\"CIFDN\",IF(OR('Blank - Request Form'!H117=\"0\",'Blank - Request Form'!H117=\"00000\",'Blank - Request Form'!H117=0),\"\",'Blank - Request Form'!H117),IF('Blank - Request Form'!$F$7=\"CIFDN\",IF(OR('Blank - Request Form'!Q117=\"0\",'Blank - Request Form'!Q117=\"00000\",'Blank - Request Form'!Q117=0),\"\",'Blank - Request Form'!Q117),\"\"))","v":""},{"$f":"IF('Blank - Request Form'!$F$6=\"CIFDN\",IF(OR('Blank - Request Form'!I117=\"0\",'Blank - Request Form'!I117=\"00000\",'Blank - Request Form'!I117=0),\"\",'Blank - Request Form'!I117),IF('Blank - Request Form'!$F$7=\"CIFDN\",IF(OR('Blank - Request Form'!R117=\"0\",'Blank - Request Form'!R117=\"00000\",'Blank - Request Form'!R117=0),\"\",'Blank - Request Form'!R117),\"\"))","v":""},null,{"$f":"IF('Blank - Request Form'!$F$6=\"CIFDN\",IF('Blank - Request Form'!K117=0,\"\",'Blank - Request Form'!K117),IF('Blank - Request Form'!$F$7=\"CIFDN\",IF('Blank - Request Form'!T117=0,\"\",'Blank - Request Form'!T117),\"\"))","v":""},null,null,null,{"$f":"IF(M83<>\"\",'Blank - Request Form'!$M$2,\"\")","v":""},{"$f":"IF('Blank - Request Form'!$F$6=\"CIFDN\",IF('Blank - Request Form'!J117=0,\"\",'Blank - Request Form'!J117),IF('Blank - Request Form'!$F$7=\"CIFDN\",IF('Blank - Request Form'!S117=0,\"\",'Blank - Request Form'!S117),\"\"))","v":""},"",83]
[{"$f":"IF('Blank - Request Form'!$F$6=\"CIFDN\",IF('Blank - Request Form'!D118=0,\"\",'Blank - Request Form'!D118),IF('Blank - Request Form'!$F$7=\"CIFDN\",IF('Blank - Request Form'!M118=0,\"\",'Blank - Request Form'!M118),\"\"))","v":""},{"$f":"IF('Blank - Request Form'!$F$6=\"CIFDN\",IF('Blank - Request Form'!E118=0,\"\",'Blank - Request Form'!E118),IF('Blank - Request Form'!$F$7=\"CIFDN\",IF('Blank - Request Form'!N118=0,\"\",'Blank - Request Form'!N118),\"\"))","v":""},{"$f":"IF('Blank - Request Form'!$F$6=\"CIFDN\",IF(OR('Blank - Request Form'!F118=\"000\",'Blank - Request Form'!F118=0),\"\",'Blank - Request Form'!F118),IF('Blank - Request Form'!$F$7=\"CIFDN\",IF(OR('Blank - Request Form'!O118=\"000\",'Blank - Request Form'!O118=0),\"\",'Blank - Request Form'!O118),\"\"))","v":""},{"$f":"IF('Blank - Request Form'!$F$6=\"CIFDN\",IF(OR('Blank - Request Form'!G118=\"0\",'Blank - Request Form'!G118=\"00000\",'Blank - Request Form'!G118=0),\"\",'Blank - Request Form'!G118),IF('Blank - Request Form'!$F$7=\"CIFDN\",IF(OR('Blank - Request Form'!P118=\"0\",'Blank - Request Form'!P118=\"00000\",'Blank - Request Form'!P118=0),\"\",'Blank - Request Form'!P118),\"\"))","v":""},{"$f":"IF('Blank - Request Form'!$F$6=\"CIFDN\",IF(OR('Blank - Request Form'!H118=\"0\",'Blank - Request Form'!H118=\"00000\",'Blank - Request Form'!H118=0),\"\",'Blank - Request Form'!H118),IF('Blank - Request Form'!$F$7=\"CIFDN\",IF(OR('Blank - Request Form'!Q118=\"0\",'Blank - Request Form'!Q118=\"00000\",'Blank - Request Form'!Q118=0),\"\",'Blank - Request Form'!Q118),\"\"))","v":""},{"$f":"IF('Blank - Request Form'!$F$6=\"CIFDN\",IF(OR('Blank - Request Form'!I118=\"0\",'Blank - Request Form'!I118=\"00000\",'Blank - Request Form'!I118=0),\"\",'Blank - Request Form'!I118),IF('Blank - Request Form'!$F$7=\"CIFDN\",IF(OR('Blank - Request Form'!R118=\"0\",'Blank - Request Form'!R118=\"00000\",'Blank - Request Form'!R118=0),\"\",'Blank - Request Form'!R118),\"\"))","v":""},null,{"$f":"IF('Blank - Request Form'!$F$6=\"CIFDN\",IF('Blank - Request Form'!K118=0,\"\",'Blank - Request Form'!K118),IF('Blank - Request Form'!$F$7=\"CIFDN\",IF('Blank - Request Form'!T118=0,\"\",'Blank - Request Form'!T118),\"\"))","v":""},null,null,null,{"$f":"IF(M84<>\"\",'Blank - Request Form'!$M$2,\"\")","v":""},{"$f":"IF('Blank - Request Form'!$F$6=\"CIFDN\",IF('Blank - Request Form'!J118=0,\"\",'Blank - Request Form'!J118),IF('Blank - Request Form'!$F$7=\"CIFDN\",IF('Blank - Request Form'!S118=0,\"\",'Blank - Request Form'!S118),\"\"))","v":""},"",84]
[{"$f":"IF('Blank - Request Form'!$F$6=\"CIFDN\",IF('Blank - Request Form'!D119=0,\"\",'Blank - Request Form'!D119),IF('Blank - Request Form'!$F$7=\"CIFDN\",IF('Blank - Request Form'!M119=0,\"\",'Blank - Request Form'!M119),\"\"))","v":""},{"$f":"IF('Blank - Request Form'!$F$6=\"CIFDN\",IF('Blank - Request Form'!E119=0,\"\",'Blank - Request Form'!E119),IF('Blank - Request Form'!$F$7=\"CIFDN\",IF('Blank - Request Form'!N119=0,\"\",'Blank - Request Form'!N119),\"\"))","v":""},{"$f":"IF('Blank - Request Form'!$F$6=\"CIFDN\",IF(OR('Blank - Request Form'!F119=\"000\",'Blank - Request Form'!F119=0),\"\",'Blank - Request Form'!F119),IF('Blank - Request Form'!$F$7=\"CIFDN\",IF(OR('Blank - Request Form'!O119=\"000\",'Blank - Request Form'!O119=0),\"\",'Blank - Request Form'!O119),\"\"))","v":""},{"$f":"IF('Blank - Request Form'!$F$6=\"CIFDN\",IF(OR('Blank - Request Form'!G119=\"0\",'Blank - Request Form'!G119=\"00000\",'Blank - Request Form'!G119=0),\"\",'Blank - Request Form'!G119),IF('Blank - Request Form'!$F$7=\"CIFDN\",IF(OR('Blank - Request Form'!P119=\"0\",'Blank - Request Form'!P119=\"00000\",'Blank - Request Form'!P119=0),\"\",'Blank - Request Form'!P119),\"\"))","v":""},{"$f":"IF('Blank - Request Form'!$F$6=\"CIFDN\",IF(OR('Blank - Request Form'!H119=\"0\",'Blank - Request Form'!H119=\"00000\",'Blank - Request Form'!H119=0),\"\",'Blank - Request Form'!H119),IF('Blank - Request Form'!$F$7=\"CIFDN\",IF(OR('Blank - Request Form'!Q119=\"0\",'Blank - Request Form'!Q119=\"00000\",'Blank - Request Form'!Q119=0),\"\",'Blank - Request Form'!Q119),\"\"))","v":""},{"$f":"IF('Blank - Request Form'!$F$6=\"CIFDN\",IF(OR('Blank - Request Form'!I119=\"0\",'Blank - Request Form'!I119=\"00000\",'Blank - Request Form'!I119=0),\"\",'Blank - Request Form'!I119),IF('Blank - Request Form'!$F$7=\"CIFDN\",IF(OR('Blank - Request Form'!R119=\"0\",'Blank - Request Form'!R119=\"00000\",'Blank - Request Form'!R119=0),\"\",'Blank - Request Form'!R119),\"\"))","v":""},null,{"$f":"IF('Blank - Request Form'!$F$6=\"CIFDN\",IF('Blank - Request Form'!K119=0,\"\",'Blank - Request Form'!K119),IF('Blank - Request Form'!$F$7=\"CIFDN\",IF('Blank - Request Form'!T119=0,\"\",'Blank - Request Form'!T119),\"\"))","v":""},null,null,null,{"$f":"IF(M85<>\"\",'Blank - Request Form'!$M$2,\"\")","v":""},{"$f":"IF('Blank - Request Form'!$F$6=\"CIFDN\",IF('Blank - Request Form'!J119=0,\"\",'Blank - Request Form'!J119),IF('Blank - Request Form'!$F$7=\"CIFDN\",IF('Blank - Request Form'!S119=0,\"\",'Blank - Request Form'!S119),\"\"))","v":""},"",85]
[{"$f":"IF('Blank - Request Form'!$F$6=\"CIFDN\",IF('Blank - Request Form'!D120=0,\"\",'Blank - Request Form'!D120),IF('Blank - Request Form'!$F$7=\"CIFDN\",IF('Blank - Request Form'!M120=0,\"\",'Blank - Request Form'!M120),\"\"))","v":""},{"$f":"IF('Blank - Request Form'!$F$6=\"CIFDN\",IF('Blank - Request Form'!E120=0,\"\",'Blank - Request Form'!E120),IF('Blank - Request Form'!$F$7=\"CIFDN\",IF('Blank - Request Form'!N120=0,\"\",'Blank - Request Form'!N120),\"\"))","v":""},{"$f":"IF('Blank - Request Form'!$F$6=\"CIFDN\",IF(OR('Blank - Request Form'!F120=\"000\",'Blank - Request Form'!F120=0),\"\",'Blank - Request Form'!F120),IF('Blank - Request Form'!$F$7=\"CIFDN\",IF(OR('Blank - Request Form'!O120=\"000\",'Blank - Request Form'!O120=0),\"\",'Blank - Request Form'!O120),\"\"))","v":""},{"$f":"IF('Blank - Request Form'!$F$6=\"CIFDN\",IF(OR('Blank - Request Form'!G120=\"0\",'Blank - Request Form'!G120=\"00000\",'Blank - Request Form'!G120=0),\"\",'Blank - Request Form'!G120),IF('Blank - Request Form'!$F$7=\"CIFDN\",IF(OR('Blank - Request Form'!P120=\"0\",'Blank - Request Form'!P120=\"00000\",'Blank - Request Form'!P120=0),\"\",'Blank - Request Form'!P120),\"\"))","v":""},{"$f":"IF('Blank - Request Form'!$F$6=\"CIFDN\",IF(OR('Blank - Request Form'!H120=\"0\",'Blank - Request Form'!H120=\"00000\",'Blank - Request Form'!H120=0),\"\",'Blank - Request Form'!H120),IF('Blank - Request Form'!$F$7=\"CIFDN\",IF(OR('Blank - Request Form'!Q120=\"0\",'Blank - Request Form'!Q120=\"00000\",'Blank - Request Form'!Q120=0),\"\",'Blank - Request Form'!Q120),\"\"))","v":""},{"$f":"IF('Blank - Request Form'!$F$6=\"CIFDN\",IF(OR('Blank - Request Form'!I120=\"0\",'Blank - Request Form'!I120=\"00000\",'Blank - Request Form'!I120=0),\"\",'Blank - Request Form'!I120),IF('Blank - Request Form'!$F$7=\"CIFDN\",IF(OR('Blank - Request Form'!R120=\"0\",'Blank - Request Form'!R120=\"00000\",'Blank - Request Form'!R120=0),\"\",'Blank - Request Form'!R120),\"\"))","v":""},null,{"$f":"IF('Blank - Request Form'!$F$6=\"CIFDN\",IF('Blank - Request Form'!K120=0,\"\",'Blank - Request Form'!K120),IF('Blank - Request Form'!$F$7=\"CIFDN\",IF('Blank - Request Form'!T120=0,\"\",'Blank - Request Form'!T120),\"\"))","v":""},null,null,null,{"$f":"IF(M86<>\"\",'Blank - Request Form'!$M$2,\"\")","v":""},{"$f":"IF('Blank - Request Form'!$F$6=\"CIFDN\",IF('Blank - Request Form'!J120=0,\"\",'Blank - Request Form'!J120),IF('Blank - Request Form'!$F$7=\"CIFDN\",IF('Blank - Request Form'!S120=0,\"\",'Blank - Request Form'!S120),\"\"))","v":""},"",86]
[{"$f":"IF('Blank - Request Form'!$F$6=\"CIFDN\",IF('Blank - Request Form'!D121=0,\"\",'Blank - Request Form'!D121),IF('Blank - Request Form'!$F$7=\"CIFDN\",IF('Blank - Request Form'!M121=0,\"\",'Blank - Request Form'!M121),\"\"))","v":""},{"$f":"IF('Blank - Request Form'!$F$6=\"CIFDN\",IF('Blank - Request Form'!E121=0,\"\",'Blank - Request Form'!E121),IF('Blank - Request Form'!$F$7=\"CIFDN\",IF('Blank - Request Form'!N121=0,\"\",'Blank - Request Form'!N121),\"\"))","v":""},{"$f":"IF('Blank - Request Form'!$F$6=\"CIFDN\",IF(OR('Blank - Request Form'!F121=\"000\",'Blank - Request Form'!F121=0),\"\",'Blank - Request Form'!F121),IF('Blank - Request Form'!$F$7=\"CIFDN\",IF(OR('Blank - Request Form'!O121=\"000\",'Blank - Request Form'!O121=0),\"\",'Blank - Request Form'!O121),\"\"))","v":""},{"$f":"IF('Blank - Request Form'!$F$6=\"CIFDN\",IF(OR('Blank - Request Form'!G121=\"0\",'Blank - Request Form'!G121=\"00000\",'Blank - Request Form'!G121=0),\"\",'Blank - Request Form'!G121),IF('Blank - Request Form'!$F$7=\"CIFDN\",IF(OR('Blank - Request Form'!P121=\"0\",'Blank - Request Form'!P121=\"00000\",'Blank - Request Form'!P121=0),\"\",'Blank - Request Form'!P121),\"\"))","v":""},{"$f":"IF('Blank - Request Form'!$F$6=\"CIFDN\",IF(OR('Blank - Request Form'!H121=\"0\",'Blank - Request Form'!H121=\"00000\",'Blank - Request Form'!H121=0),\"\",'Blank - Request Form'!H121),IF('Blank - Request Form'!$F$7=\"CIFDN\",IF(OR('Blank - Request Form'!Q121=\"0\",'Blank - Request Form'!Q121=\"00000\",'Blank - Request Form'!Q121=0),\"\",'Blank - Request Form'!Q121),\"\"))","v":""},{"$f":"IF('Blank - Request Form'!$F$6=\"CIFDN\",IF(OR('Blank - Request Form'!I121=\"0\",'Blank - Request Form'!I121=\"00000\",'Blank - Request Form'!I121=0),\"\",'Blank - Request Form'!I121),IF('Blank - Request Form'!$F$7=\"CIFDN\",IF(OR('Blank - Request Form'!R121=\"0\",'Blank - Request Form'!R121=\"00000\",'Blank - Request Form'!R121=0),\"\",'Blank - Request Form'!R121),\"\"))","v":""},null,{"$f":"IF('Blank - Request Form'!$F$6=\"CIFDN\",IF('Blank - Request Form'!K121=0,\"\",'Blank - Request Form'!K121),IF('Blank - Request Form'!$F$7=\"CIFDN\",IF('Blank - Request Form'!T121=0,\"\",'Blank - Request Form'!T121),\"\"))","v":""},null,null,null,{"$f":"IF(M87<>\"\",'Blank - Request Form'!$M$2,\"\")","v":""},{"$f":"IF('Blank - Request Form'!$F$6=\"CIFDN\",IF('Blank - Request Form'!J121=0,\"\",'Blank - Request Form'!J121),IF('Blank - Request Form'!$F$7=\"CIFDN\",IF('Blank - Request Form'!S121=0,\"\",'Blank - Request Form'!S121),\"\"))","v":""},"",87]
[{"$f":"IF('Blank - Request Form'!$F$6=\"CIFDN\",IF('Blank - Request Form'!D122=0,\"\",'Blank - Request Form'!D122),IF('Blank - Request Form'!$F$7=\"CIFDN\",IF('Blank - Request Form'!M122=0,\"\",'Blank - Request Form'!M122),\"\"))","v":""},{"$f":"IF('Blank - Request Form'!$F$6=\"CIFDN\",IF('Blank - Request Form'!E122=0,\"\",'Blank - Request Form'!E122),IF('Blank - Request Form'!$F$7=\"CIFDN\",IF('Blank - Request Form'!N122=0,\"\",'Blank - Request Form'!N122),\"\"))","v":""},{"$f":"IF('Blank - Request Form'!$F$6=\"CIFDN\",IF(OR('Blank - Request Form'!F122=\"000\",'Blank - Request Form'!F122=0),\"\",'Blank - Request Form'!F122),IF('Blank - Request Form'!$F$7=\"CIFDN\",IF(OR('Blank - Request Form'!O122=\"000\",'Blank - Request Form'!O122=0),\"\",'Blank - Request Form'!O122),\"\"))","v":""},{"$f":"IF('Blank - Request Form'!$F$6=\"CIFDN\",IF(OR('Blank - Request Form'!G122=\"0\",'Blank - Request Form'!G122=\"00000\",'Blank - Request Form'!G122=0),\"\",'Blank - Request Form'!G122),IF('Blank - Request Form'!$F$7=\"CIFDN\",IF(OR('Blank - Request Form'!P122=\"0\",'Blank - Request Form'!P122=\"00000\",'Blank - Request Form'!P122=0),\"\",'Blank - Request Form'!P122),\"\"))","v":""},{"$f":"IF('Blank - Request Form'!$F$6=\"CIFDN\",IF(OR('Blank - Request Form'!H122=\"0\",'Blank - Request Form'!H122=\"00000\",'Blank - Request Form'!H122=0),\"\",'Blank - Request Form'!H122),IF('Blank - Request Form'!$F$7=\"CIFDN\",IF(OR('Blank - Request Form'!Q122=\"0\",'Blank - Request Form'!Q122=\"00000\",'Blank - Request Form'!Q122=0),\"\",'Blank - Request Form'!Q122),\"\"))","v":""},{"$f":"IF('Blank - Request Form'!$F$6=\"CIFDN\",IF(OR('Blank - Request Form'!I122=\"0\",'Blank - Request Form'!I122=\"00000\",'Blank - Request Form'!I122=0),\"\",'Blank - Request Form'!I122),IF('Blank - Request Form'!$F$7=\"CIFDN\",IF(OR('Blank - Request Form'!R122=\"0\",'Blank - Request Form'!R122=\"00000\",'Blank - Request Form'!R122=0),\"\",'Blank - Request Form'!R122),\"\"))","v":""},null,{"$f":"IF('Blank - Request Form'!$F$6=\"CIFDN\",IF('Blank - Request Form'!K122=0,\"\",'Blank - Request Form'!K122),IF('Blank - Request Form'!$F$7=\"CIFDN\",IF('Blank - Request Form'!T122=0,\"\",'Blank - Request Form'!T122),\"\"))","v":""},null,null,null,{"$f":"IF(M88<>\"\",'Blank - Request Form'!$M$2,\"\")","v":""},{"$f":"IF('Blank - Request Form'!$F$6=\"CIFDN\",IF('Blank - Request Form'!J122=0,\"\",'Blank - Request Form'!J122),IF('Blank - Request Form'!$F$7=\"CIFDN\",IF('Blank - Request Form'!S122=0,\"\",'Blank - Request Form'!S122),\"\"))","v":""},"",88]
[{"$f":"IF('Blank - Request Form'!$F$6=\"CIFDN\",IF('Blank - Request Form'!D123=0,\"\",'Blank - Request Form'!D123),IF('Blank - Request Form'!$F$7=\"CIFDN\",IF('Blank - Request Form'!M123=0,\"\",'Blank - Request Form'!M123),\"\"))","v":""},{"$f":"IF('Blank - Request Form'!$F$6=\"CIFDN\",IF('Blank - Request Form'!E123=0,\"\",'Blank - Request Form'!E123),IF('Blank - Request Form'!$F$7=\"CIFDN\",IF('Blank - Request Form'!N123=0,\"\",'Blank - Request Form'!N123),\"\"))","v":""},{"$f":"IF('Blank - Request Form'!$F$6=\"CIFDN\",IF(OR('Blank - Request Form'!F123=\"000\",'Blank - Request Form'!F123=0),\"\",'Blank - Request Form'!F123),IF('Blank - Request Form'!$F$7=\"CIFDN\",IF(OR('Blank - Request Form'!O123=\"000\",'Blank - Request Form'!O123=0),\"\",'Blank - Request Form'!O123),\"\"))","v":""},{"$f":"IF('Blank - Request Form'!$F$6=\"CIFDN\",IF(OR('Blank - Request Form'!G123=\"0\",'Blank - Request Form'!G123=\"00000\",'Blank - Request Form'!G123=0),\"\",'Blank - Request Form'!G123),IF('Blank - Request Form'!$F$7=\"CIFDN\",IF(OR('Blank - Request Form'!P123=\"0\",'Blank - Request Form'!P123=\"00000\",'Blank - Request Form'!P123=0),\"\",'Blank - Request Form'!P123),\"\"))","v":""},{"$f":"IF('Blank - Request Form'!$F$6=\"CIFDN\",IF(OR('Blank - Request Form'!H123=\"0\",'Blank - Request Form'!H123=\"00000\",'Blank - Request Form'!H123=0),\"\",'Blank - Request Form'!H123),IF('Blank - Request Form'!$F$7=\"CIFDN\",IF(OR('Blank - Request Form'!Q123=\"0\",'Blank - Request Form'!Q123=\"00000\",'Blank - Request Form'!Q123=0),\"\",'Blank - Request Form'!Q123),\"\"))","v":""},{"$f":"IF('Blank - Request Form'!$F$6=\"CIFDN\",IF(OR('Blank - Request Form'!I123=\"0\",'Blank - Request Form'!I123=\"00000\",'Blank - Request Form'!I123=0),\"\",'Blank - Request Form'!I123),IF('Blank - Request Form'!$F$7=\"CIFDN\",IF(OR('Blank - Request Form'!R123=\"0\",'Blank - Request Form'!R123=\"00000\",'Blank - Request Form'!R123=0),\"\",'Blank - Request Form'!R123),\"\"))","v":""},null,{"$f":"IF('Blank - Request Form'!$F$6=\"CIFDN\",IF('Blank - Request Form'!K123=0,\"\",'Blank - Request Form'!K123),IF('Blank - Request Form'!$F$7=\"CIFDN\",IF('Blank - Request Form'!T123=0,\"\",'Blank - Request Form'!T123),\"\"))","v":""},null,null,null,{"$f":"IF(M89<>\"\",'Blank - Request Form'!$M$2,\"\")","v":""},{"$f":"IF('Blank - Request Form'!$F$6=\"CIFDN\",IF('Blank - Request Form'!J123=0,\"\",'Blank - Request Form'!J123),IF('Blank - Request Form'!$F$7=\"CIFDN\",IF('Blank - Request Form'!S123=0,\"\",'Blank - Request Form'!S123),\"\"))","v":""},"",89]
[{"$f":"IF('Blank - Request Form'!$F$6=\"CIFDN\",IF('Blank - Request Form'!D124=0,\"\",'Blank - Request Form'!D124),IF('Blank - Request Form'!$F$7=\"CIFDN\",IF('Blank - Request Form'!M124=0,\"\",'Blank - Request Form'!M124),\"\"))","v":""},{"$f":"IF('Blank - Request Form'!$F$6=\"CIFDN\",IF('Blank - Request Form'!E124=0,\"\",'Blank - Request Form'!E124),IF('Blank - Request Form'!$F$7=\"CIFDN\",IF('Blank - Request Form'!N124=0,\"\",'Blank - Request Form'!N124),\"\"))","v":""},{"$f":"IF('Blank - Request Form'!$F$6=\"CIFDN\",IF(OR('Blank - Request Form'!F124=\"000\",'Blank - Request Form'!F124=0),\"\",'Blank - Request Form'!F124),IF('Blank - Request Form'!$F$7=\"CIFDN\",IF(OR('Blank - Request Form'!O124=\"000\",'Blank - Request Form'!O124=0),\"\",'Blank - Request Form'!O124),\"\"))","v":""},{"$f":"IF('Blank - Request Form'!$F$6=\"CIFDN\",IF(OR('Blank - Request Form'!G124=\"0\",'Blank - Request Form'!G124=\"00000\",'Blank - Request Form'!G124=0),\"\",'Blank - Request Form'!G124),IF('Blank - Request Form'!$F$7=\"CIFDN\",IF(OR('Blank - Request Form'!P124=\"0\",'Blank - Request Form'!P124=\"00000\",'Blank - Request Form'!P124=0),\"\",'Blank - Request Form'!P124),\"\"))","v":""},{"$f":"IF('Blank - Request Form'!$F$6=\"CIFDN\",IF(OR('Blank - Request Form'!H124=\"0\",'Blank - Request Form'!H124=\"00000\",'Blank - Request Form'!H124=0),\"\",'Blank - Request Form'!H124),IF('Blank - Request Form'!$F$7=\"CIFDN\",IF(OR('Blank - Request Form'!Q124=\"0\",'Blank - Request Form'!Q124=\"00000\",'Blank - Request Form'!Q124=0),\"\",'Blank - Request Form'!Q124),\"\"))","v":""},{"$f":"IF('Blank - Request Form'!$F$6=\"CIFDN\",IF(OR('Blank - Request Form'!I124=\"0\",'Blank - Request Form'!I124=\"00000\",'Blank - Request Form'!I124=0),\"\",'Blank - Request Form'!I124),IF('Blank - Request Form'!$F$7=\"CIFDN\",IF(OR('Blank - Request Form'!R124=\"0\",'Blank - Request Form'!R124=\"00000\",'Blank - Request Form'!R124=0),\"\",'Blank - Request Form'!R124),\"\"))","v":""},null,{"$f":"IF('Blank - Request Form'!$F$6=\"CIFDN\",IF('Blank - Request Form'!K124=0,\"\",'Blank - Request Form'!K124),IF('Blank - Request Form'!$F$7=\"CIFDN\",IF('Blank - Request Form'!T124=0,\"\",'Blank - Request Form'!T124),\"\"))","v":""},null,null,null,{"$f":"IF(M90<>\"\",'Blank - Request Form'!$M$2,\"\")","v":""},{"$f":"IF('Blank - Request Form'!$F$6=\"CIFDN\",IF('Blank - Request Form'!J124=0,\"\",'Blank - Request Form'!J124),IF('Blank - Request Form'!$F$7=\"CIFDN\",IF('Blank - Request Form'!S124=0,\"\",'Blank - Request Form'!S124),\"\"))","v":""},"",90]
[{"$f":"IF('Blank - Request Form'!$F$6=\"CIFDN\",IF('Blank - Request Form'!D125=0,\"\",'Blank - Request Form'!D125),IF('Blank - Request Form'!$F$7=\"CIFDN\",IF('Blank - Request Form'!M125=0,\"\",'Blank - Request Form'!M125),\"\"))","v":""},{"$f":"IF('Blank - Request Form'!$F$6=\"CIFDN\",IF('Blank - Request Form'!E125=0,\"\",'Blank - Request Form'!E125),IF('Blank - Request Form'!$F$7=\"CIFDN\",IF('Blank - Request Form'!N125=0,\"\",'Blank - Request Form'!N125),\"\"))","v":""},{"$f":"IF('Blank - Request Form'!$F$6=\"CIFDN\",IF(OR('Blank - Request Form'!F125=\"000\",'Blank - Request Form'!F125=0),\"\",'Blank - Request Form'!F125),IF('Blank - Request Form'!$F$7=\"CIFDN\",IF(OR('Blank - Request Form'!O125=\"000\",'Blank - Request Form'!O125=0),\"\",'Blank - Request Form'!O125),\"\"))","v":""},{"$f":"IF('Blank - Request Form'!$F$6=\"CIFDN\",IF(OR('Blank - Request Form'!G125=\"0\",'Blank - Request Form'!G125=\"00000\",'Blank - Request Form'!G125=0),\"\",'Blank - Request Form'!G125),IF('Blank - Request Form'!$F$7=\"CIFDN\",IF(OR('Blank - Request Form'!P125=\"0\",'Blank - Request Form'!P125=\"00000\",'Blank - Request Form'!P125=0),\"\",'Blank - Request Form'!P125),\"\"))","v":""},{"$f":"IF('Blank - Request Form'!$F$6=\"CIFDN\",IF(OR('Blank - Request Form'!H125=\"0\",'Blank - Request Form'!H125=\"00000\",'Blank - Request Form'!H125=0),\"\",'Blank - Request Form'!H125),IF('Blank - Request Form'!$F$7=\"CIFDN\",IF(OR('Blank - Request Form'!Q125=\"0\",'Blank - Request Form'!Q125=\"00000\",'Blank - Request Form'!Q125=0),\"\",'Blank - Request Form'!Q125),\"\"))","v":""},{"$f":"IF('Blank - Request Form'!$F$6=\"CIFDN\",IF(OR('Blank - Request Form'!I125=\"0\",'Blank - Request Form'!I125=\"00000\",'Blank - Request Form'!I125=0),\"\",'Blank - Request Form'!I125),IF('Blank - Request Form'!$F$7=\"CIFDN\",IF(OR('Blank - Request Form'!R125=\"0\",'Blank - Request Form'!R125=\"00000\",'Blank - Request Form'!R125=0),\"\",'Blank - Request Form'!R125),\"\"))","v":""},null,{"$f":"IF('Blank - Request Form'!$F$6=\"CIFDN\",IF('Blank - Request Form'!K125=0,\"\",'Blank - Request Form'!K125),IF('Blank - Request Form'!$F$7=\"CIFDN\",IF('Blank - Request Form'!T125=0,\"\",'Blank - Request Form'!T125),\"\"))","v":""},null,null,null,{"$f":"IF(M91<>\"\",'Blank - Request Form'!$M$2,\"\")","v":""},{"$f":"IF('Blank - Request Form'!$F$6=\"CIFDN\",IF('Blank - Request Form'!J125=0,\"\",'Blank - Request Form'!J125),IF('Blank - Request Form'!$F$7=\"CIFDN\",IF('Blank - Request Form'!S125=0,\"\",'Blank - Request Form'!S125),\"\"))","v":""},"",91]
[{"$f":"IF('Blank - Request Form'!$F$6=\"CIFDN\",IF('Blank - Request Form'!D126=0,\"\",'Blank - Request Form'!D126),IF('Blank - Request Form'!$F$7=\"CIFDN\",IF('Blank - Request Form'!M126=0,\"\",'Blank - Request Form'!M126),\"\"))","v":""},{"$f":"IF('Blank - Request Form'!$F$6=\"CIFDN\",IF('Blank - Request Form'!E126=0,\"\",'Blank - Request Form'!E126),IF('Blank - Request Form'!$F$7=\"CIFDN\",IF('Blank - Request Form'!N126=0,\"\",'Blank - Request Form'!N126),\"\"))","v":""},{"$f":"IF('Blank - Request Form'!$F$6=\"CIFDN\",IF(OR('Blank - Request Form'!F126=\"000\",'Blank - Request Form'!F126=0),\"\",'Blank - Request Form'!F126),IF('Blank - Request Form'!$F$7=\"CIFDN\",IF(OR('Blank - Request Form'!O126=\"000\",'Blank - Request Form'!O126=0),\"\",'Blank - Request Form'!O126),\"\"))","v":""},{"$f":"IF('Blank - Request Form'!$F$6=\"CIFDN\",IF(OR('Blank - Request Form'!G126=\"0\",'Blank - Request Form'!G126=\"00000\",'Blank - Request Form'!G126=0),\"\",'Blank - Request Form'!G126),IF('Blank - Request Form'!$F$7=\"CIFDN\",IF(OR('Blank - Request Form'!P126=\"0\",'Blank - Request Form'!P126=\"00000\",'Blank - Request Form'!P126=0),\"\",'Blank - Request Form'!P126),\"\"))","v":""},{"$f":"IF('Blank - Request Form'!$F$6=\"CIFDN\",IF(OR('Blank - Request Form'!H126=\"0\",'Blank - Request Form'!H126=\"00000\",'Blank - Request Form'!H126=0),\"\",'Blank - Request Form'!H126),IF('Blank - Request Form'!$F$7=\"CIFDN\",IF(OR('Blank - Request Form'!Q126=\"0\",'Blank - Request Form'!Q126=\"00000\",'Blank - Request Form'!Q126=0),\"\",'Blank - Request Form'!Q126),\"\"))","v":""},{"$f":"IF('Blank - Request Form'!$F$6=\"CIFDN\",IF(OR('Blank - Request Form'!I126=\"0\",'Blank - Request Form'!I126=\"00000\",'Blank - Request Form'!I126=0),\"\",'Blank - Request Form'!I126),IF('Blank - Request Form'!$F$7=\"CIFDN\",IF(OR('Blank - Request Form'!R126=\"0\",'Blank - Request Form'!R126=\"00000\",'Blank - Request Form'!R126=0),\"\",'Blank - Request Form'!R126),\"\"))","v":""},null,{"$f":"IF('Blank - Request Form'!$F$6=\"CIFDN\",IF('Blank - Request Form'!K126=0,\"\",'Blank - Request Form'!K126),IF('Blank - Request Form'!$F$7=\"CIFDN\",IF('Blank - Request Form'!T126=0,\"\",'Blank - Request Form'!T126),\"\"))","v":""},null,null,null,{"$f":"IF(M92<>\"\",'Blank - Request Form'!$M$2,\"\")","v":""},{"$f":"IF('Blank - Request Form'!$F$6=\"CIFDN\",IF('Blank - Request Form'!J126=0,\"\",'Blank - Request Form'!J126),IF('Blank - Request Form'!$F$7=\"CIFDN\",IF('Blank - Request Form'!S126=0,\"\",'Blank - Request Form'!S126),\"\"))","v":""},"",92]
[{"$f":"IF('Blank - Request Form'!$F$6=\"CIFDN\",IF('Blank - Request Form'!D127=0,\"\",'Blank - Request Form'!D127),IF('Blank - Request Form'!$F$7=\"CIFDN\",IF('Blank - Request Form'!M127=0,\"\",'Blank - Request Form'!M127),\"\"))","v":""},{"$f":"IF('Blank - Request Form'!$F$6=\"CIFDN\",IF('Blank - Request Form'!E127=0,\"\",'Blank - Request Form'!E127),IF('Blank - Request Form'!$F$7=\"CIFDN\",IF('Blank - Request Form'!N127=0,\"\",'Blank - Request Form'!N127),\"\"))","v":""},{"$f":"IF('Blank - Request Form'!$F$6=\"CIFDN\",IF(OR('Blank - Request Form'!F127=\"000\",'Blank - Request Form'!F127=0),\"\",'Blank - Request Form'!F127),IF('Blank - Request Form'!$F$7=\"CIFDN\",IF(OR('Blank - Request Form'!O127=\"000\",'Blank - Request Form'!O127=0),\"\",'Blank - Request Form'!O127),\"\"))","v":""},{"$f":"IF('Blank - Request Form'!$F$6=\"CIFDN\",IF(OR('Blank - Request Form'!G127=\"0\",'Blank - Request Form'!G127=\"00000\",'Blank - Request Form'!G127=0),\"\",'Blank - Request Form'!G127),IF('Blank - Request Form'!$F$7=\"CIFDN\",IF(OR('Blank - Request Form'!P127=\"0\",'Blank - Request Form'!P127=\"00000\",'Blank - Request Form'!P127=0),\"\",'Blank - Request Form'!P127),\"\"))","v":""},{"$f":"IF('Blank - Request Form'!$F$6=\"CIFDN\",IF(OR('Blank - Request Form'!H127=\"0\",'Blank - Request Form'!H127=\"00000\",'Blank - Request Form'!H127=0),\"\",'Blank - Request Form'!H127),IF('Blank - Request Form'!$F$7=\"CIFDN\",IF(OR('Blank - Request Form'!Q127=\"0\",'Blank - Request Form'!Q127=\"00000\",'Blank - Request Form'!Q127=0),\"\",'Blank - Request Form'!Q127),\"\"))","v":""},{"$f":"IF('Blank - Request Form'!$F$6=\"CIFDN\",IF(OR('Blank - Request Form'!I127=\"0\",'Blank - Request Form'!I127=\"00000\",'Blank - Request Form'!I127=0),\"\",'Blank - Request Form'!I127),IF('Blank - Request Form'!$F$7=\"CIFDN\",IF(OR('Blank - Request Form'!R127=\"0\",'Blank - Request Form'!R127=\"00000\",'Blank - Request Form'!R127=0),\"\",'Blank - Request Form'!R127),\"\"))","v":""},null,{"$f":"IF('Blank - Request Form'!$F$6=\"CIFDN\",IF('Blank - Request Form'!K127=0,\"\",'Blank - Request Form'!K127),IF('Blank - Request Form'!$F$7=\"CIFDN\",IF('Blank - Request Form'!T127=0,\"\",'Blank - Request Form'!T127),\"\"))","v":""},null,null,null,{"$f":"IF(M93<>\"\",'Blank - Request Form'!$M$2,\"\")","v":""},{"$f":"IF('Blank - Request Form'!$F$6=\"CIFDN\",IF('Blank - Request Form'!J127=0,\"\",'Blank - Request Form'!J127),IF('Blank - Request Form'!$F$7=\"CIFDN\",IF('Blank - Request Form'!S127=0,\"\",'Blank - Request Form'!S127),\"\"))","v":""},"",93]
[{"$f":"IF('Blank - Request Form'!$F$6=\"CIFDN\",IF('Blank - Request Form'!D128=0,\"\",'Blank - Request Form'!D128),IF('Blank - Request Form'!$F$7=\"CIFDN\",IF('Blank - Request Form'!M128=0,\"\",'Blank - Request Form'!M128),\"\"))","v":""},{"$f":"IF('Blank - Request Form'!$F$6=\"CIFDN\",IF('Blank - Request Form'!E128=0,\"\",'Blank - Request Form'!E128),IF('Blank - Request Form'!$F$7=\"CIFDN\",IF('Blank - Request Form'!N128=0,\"\",'Blank - Request Form'!N128),\"\"))","v":""},{"$f":"IF('Blank - Request Form'!$F$6=\"CIFDN\",IF(OR('Blank - Request Form'!F128=\"000\",'Blank - Request Form'!F128=0),\"\",'Blank - Request Form'!F128),IF('Blank - Request Form'!$F$7=\"CIFDN\",IF(OR('Blank - Request Form'!O128=\"000\",'Blank - Request Form'!O128=0),\"\",'Blank - Request Form'!O128),\"\"))","v":""},{"$f":"IF('Blank - Request Form'!$F$6=\"CIFDN\",IF(OR('Blank - Request Form'!G128=\"0\",'Blank - Request Form'!G128=\"00000\",'Blank - Request Form'!G128=0),\"\",'Blank - Request Form'!G128),IF('Blank - Request Form'!$F$7=\"CIFDN\",IF(OR('Blank - Request Form'!P128=\"0\",'Blank - Request Form'!P128=\"00000\",'Blank - Request Form'!P128=0),\"\",'Blank - Request Form'!P128),\"\"))","v":""},{"$f":"IF('Blank - Request Form'!$F$6=\"CIFDN\",IF(OR('Blank - Request Form'!H128=\"0\",'Blank - Request Form'!H128=\"00000\",'Blank - Request Form'!H128=0),\"\",'Blank - Request Form'!H128),IF('Blank - Request Form'!$F$7=\"CIFDN\",IF(OR('Blank - Request Form'!Q128=\"0\",'Blank - Request Form'!Q128=\"00000\",'Blank - Request Form'!Q128=0),\"\",'Blank - Request Form'!Q128),\"\"))","v":""},{"$f":"IF('Blank - Request Form'!$F$6=\"CIFDN\",IF(OR('Blank - Request Form'!I128=\"0\",'Blank - Request Form'!I128=\"00000\",'Blank - Request Form'!I128=0),\"\",'Blank - Request Form'!I128),IF('Blank - Request Form'!$F$7=\"CIFDN\",IF(OR('Blank - Request Form'!R128=\"0\",'Blank - Request Form'!R128=\"00000\",'Blank - Request Form'!R128=0),\"\",'Blank - Request Form'!R128),\"\"))","v":""},null,{"$f":"IF('Blank - Request Form'!$F$6=\"CIFDN\",IF('Blank - Request Form'!K128=0,\"\",'Blank - Request Form'!K128),IF('Blank - Request Form'!$F$7=\"CIFDN\",IF('Blank - Request Form'!T128=0,\"\",'Blank - Request Form'!T128),\"\"))","v":""},null,null,null,{"$f":"IF(M94<>\"\",'Blank - Request Form'!$M$2,\"\")","v":""},{"$f":"IF('Blank - Request Form'!$F$6=\"CIFDN\",IF('Blank - Request Form'!J128=0,\"\",'Blank - Request Form'!J128),IF('Blank - Request Form'!$F$7=\"CIFDN\",IF('Blank - Request Form'!S128=0,\"\",'Blank - Request Form'!S128),\"\"))","v":""},"",94]
[{"$f":"IF('Blank - Request Form'!$F$6=\"CIFDN\",IF('Blank - Request Form'!D129=0,\"\",'Blank - Request Form'!D129),IF('Blank - Request Form'!$F$7=\"CIFDN\",IF('Blank - Request Form'!M129=0,\"\",'Blank - Request Form'!M129),\"\"))","v":""},{"$f":"IF('Blank - Request Form'!$F$6=\"CIFDN\",IF('Blank - Request Form'!E129=0,\"\",'Blank - Request Form'!E129),IF('Blank - Request Form'!$F$7=\"CIFDN\",IF('Blank - Request Form'!N129=0,\"\",'Blank - Request Form'!N129),\"\"))","v":""},{"$f":"IF('Blank - Request Form'!$F$6=\"CIFDN\",IF(OR('Blank - Request Form'!F129=\"000\",'Blank - Request Form'!F129=0),\"\",'Blank - Request Form'!F129),IF('Blank - Request Form'!$F$7=\"CIFDN\",IF(OR('Blank - Request Form'!O129=\"000\",'Blank - Request Form'!O129=0),\"\",'Blank - Request Form'!O129),\"\"))","v":""},{"$f":"IF('Blank - Request Form'!$F$6=\"CIFDN\",IF(OR('Blank - Request Form'!G129=\"0\",'Blank - Request Form'!G129=\"00000\",'Blank - Request Form'!G129=0),\"\",'Blank - Request Form'!G129),IF('Blank - Request Form'!$F$7=\"CIFDN\",IF(OR('Blank - Request Form'!P129=\"0\",'Blank - Request Form'!P129=\"00000\",'Blank - Request Form'!P129=0),\"\",'Blank - Request Form'!P129),\"\"))","v":""},{"$f":"IF('Blank - Request Form'!$F$6=\"CIFDN\",IF(OR('Blank - Request Form'!H129=\"0\",'Blank - Request Form'!H129=\"00000\",'Blank - Request Form'!H129=0),\"\",'Blank - Request Form'!H129),IF('Blank - Request Form'!$F$7=\"CIFDN\",IF(OR('Blank - Request Form'!Q129=\"0\",'Blank - Request Form'!Q129=\"00000\",'Blank - Request Form'!Q129=0),\"\",'Blank - Request Form'!Q129),\"\"))","v":""},{"$f":"IF('Blank - Request Form'!$F$6=\"CIFDN\",IF(OR('Blank - Request Form'!I129=\"0\",'Blank - Request Form'!I129=\"00000\",'Blank - Request Form'!I129=0),\"\",'Blank - Request Form'!I129),IF('Blank - Request Form'!$F$7=\"CIFDN\",IF(OR('Blank - Request Form'!R129=\"0\",'Blank - Request Form'!R129=\"00000\",'Blank - Request Form'!R129=0),\"\",'Blank - Request Form'!R129),\"\"))","v":""},null,{"$f":"IF('Blank - Request Form'!$F$6=\"CIFDN\",IF('Blank - Request Form'!K129=0,\"\",'Blank - Request Form'!K129),IF('Blank - Request Form'!$F$7=\"CIFDN\",IF('Blank - Request Form'!T129=0,\"\",'Blank - Request Form'!T129),\"\"))","v":""},null,null,null,{"$f":"IF(M95<>\"\",'Blank - Request Form'!$M$2,\"\")","v":""},{"$f":"IF('Blank - Request Form'!$F$6=\"CIFDN\",IF('Blank - Request Form'!J129=0,\"\",'Blank - Request Form'!J129),IF('Blank - Request Form'!$F$7=\"CIFDN\",IF('Blank - Request Form'!S129=0,\"\",'Blank - Request Form'!S129),\"\"))","v":""},"",95]
[{"$f":"IF('Blank - Request Form'!$F$6=\"CIFDN\",IF('Blank - Request Form'!D130=0,\"\",'Blank - Request Form'!D130),IF('Blank - Request Form'!$F$7=\"CIFDN\",IF('Blank - Request Form'!M130=0,\"\",'Blank - Request Form'!M130),\"\"))","v":""},{"$f":"IF('Blank - Request Form'!$F$6=\"CIFDN\",IF('Blank - Request Form'!E130=0,\"\",'Blank - Request Form'!E130),IF('Blank - Request Form'!$F$7=\"CIFDN\",IF('Blank - Request Form'!N130=0,\"\",'Blank - Request Form'!N130),\"\"))","v":""},{"$f":"IF('Blank - Request Form'!$F$6=\"CIFDN\",IF(OR('Blank - Request Form'!F130=\"000\",'Blank - Request Form'!F130=0),\"\",'Blank - Request Form'!F130),IF('Blank - Request Form'!$F$7=\"CIFDN\",IF(OR('Blank - Request Form'!O130=\"000\",'Blank - Request Form'!O130=0),\"\",'Blank - Request Form'!O130),\"\"))","v":""},{"$f":"IF('Blank - Request Form'!$F$6=\"CIFDN\",IF(OR('Blank - Request Form'!G130=\"0\",'Blank - Request Form'!G130=\"00000\",'Blank - Request Form'!G130=0),\"\",'Blank - Request Form'!G130),IF('Blank - Request Form'!$F$7=\"CIFDN\",IF(OR('Blank - Request Form'!P130=\"0\",'Blank - Request Form'!P130=\"00000\",'Blank - Request Form'!P130=0),\"\",'Blank - Request Form'!P130),\"\"))","v":""},{"$f":"IF('Blank - Request Form'!$F$6=\"CIFDN\",IF(OR('Blank - Request Form'!H130=\"0\",'Blank - Request Form'!H130=\"00000\",'Blank - Request Form'!H130=0),\"\",'Blank - Request Form'!H130),IF('Blank - Request Form'!$F$7=\"CIFDN\",IF(OR('Blank - Request Form'!Q130=\"0\",'Blank - Request Form'!Q130=\"00000\",'Blank - Request Form'!Q130=0),\"\",'Blank - Request Form'!Q130),\"\"))","v":""},{"$f":"IF('Blank - Request Form'!$F$6=\"CIFDN\",IF(OR('Blank - Request Form'!I130=\"0\",'Blank - Request Form'!I130=\"00000\",'Blank - Request Form'!I130=0),\"\",'Blank - Request Form'!I130),IF('Blank - Request Form'!$F$7=\"CIFDN\",IF(OR('Blank - Request Form'!R130=\"0\",'Blank - Request Form'!R130=\"00000\",'Blank - Request Form'!R130=0),\"\",'Blank - Request Form'!R130),\"\"))","v":""},null,{"$f":"IF('Blank - Request Form'!$F$6=\"CIFDN\",IF('Blank - Request Form'!K130=0,\"\",'Blank - Request Form'!K130),IF('Blank - Request Form'!$F$7=\"CIFDN\",IF('Blank - Request Form'!T130=0,\"\",'Blank - Request Form'!T130),\"\"))","v":""},null,null,null,{"$f":"IF(M96<>\"\",'Blank - Request Form'!$M$2,\"\")","v":""},{"$f":"IF('Blank - Request Form'!$F$6=\"CIFDN\",IF('Blank - Request Form'!J130=0,\"\",'Blank - Request Form'!J130),IF('Blank - Request Form'!$F$7=\"CIFDN\",IF('Blank - Request Form'!S130=0,\"\",'Blank - Request Form'!S130),\"\"))","v":""},"",96]
[{"$f":"IF('Blank - Request Form'!$F$6=\"CIFDN\",IF('Blank - Request Form'!D131=0,\"\",'Blank - Request Form'!D131),IF('Blank - Request Form'!$F$7=\"CIFDN\",IF('Blank - Request Form'!M131=0,\"\",'Blank - Request Form'!M131),\"\"))","v":""},{"$f":"IF('Blank - Request Form'!$F$6=\"CIFDN\",IF('Blank - Request Form'!E131=0,\"\",'Blank - Request Form'!E131),IF('Blank - Request Form'!$F$7=\"CIFDN\",IF('Blank - Request Form'!N131=0,\"\",'Blank - Request Form'!N131),\"\"))","v":""},{"$f":"IF('Blank - Request Form'!$F$6=\"CIFDN\",IF(OR('Blank - Request Form'!F131=\"000\",'Blank - Request Form'!F131=0),\"\",'Blank - Request Form'!F131),IF('Blank - Request Form'!$F$7=\"CIFDN\",IF(OR('Blank - Request Form'!O131=\"000\",'Blank - Request Form'!O131=0),\"\",'Blank - Request Form'!O131),\"\"))","v":""},{"$f":"IF('Blank - Request Form'!$F$6=\"CIFDN\",IF(OR('Blank - Request Form'!G131=\"0\",'Blank - Request Form'!G131=\"00000\",'Blank - Request Form'!G131=0),\"\",'Blank - Request Form'!G131),IF('Blank - Request Form'!$F$7=\"CIFDN\",IF(OR('Blank - Request Form'!P131=\"0\",'Blank - Request Form'!P131=\"00000\",'Blank - Request Form'!P131=0),\"\",'Blank - Request Form'!P131),\"\"))","v":""},{"$f":"IF('Blank - Request Form'!$F$6=\"CIFDN\",IF(OR('Blank - Request Form'!H131=\"0\",'Blank - Request Form'!H131=\"00000\",'Blank - Request Form'!H131=0),\"\",'Blank - Request Form'!H131),IF('Blank - Request Form'!$F$7=\"CIFDN\",IF(OR('Blank - Request Form'!Q131=\"0\",'Blank - Request Form'!Q131=\"00000\",'Blank - Request Form'!Q131=0),\"\",'Blank - Request Form'!Q131),\"\"))","v":""},{"$f":"IF('Blank - Request Form'!$F$6=\"CIFDN\",IF(OR('Blank - Request Form'!I131=\"0\",'Blank - Request Form'!I131=\"00000\",'Blank - Request Form'!I131=0),\"\",'Blank - Request Form'!I131),IF('Blank - Request Form'!$F$7=\"CIFDN\",IF(OR('Blank - Request Form'!R131=\"0\",'Blank - Request Form'!R131=\"00000\",'Blank - Request Form'!R131=0),\"\",'Blank - Request Form'!R131),\"\"))","v":""},null,{"$f":"IF('Blank - Request Form'!$F$6=\"CIFDN\",IF('Blank - Request Form'!K131=0,\"\",'Blank - Request Form'!K131),IF('Blank - Request Form'!$F$7=\"CIFDN\",IF('Blank - Request Form'!T131=0,\"\",'Blank - Request Form'!T131),\"\"))","v":""},null,null,null,{"$f":"IF(M97<>\"\",'Blank - Request Form'!$M$2,\"\")","v":""},{"$f":"IF('Blank - Request Form'!$F$6=\"CIFDN\",IF('Blank - Request Form'!J131=0,\"\",'Blank - Request Form'!J131),IF('Blank - Request Form'!$F$7=\"CIFDN\",IF('Blank - Request Form'!S131=0,\"\",'Blank - Request Form'!S131),\"\"))","v":""},"",97]
[{"$f":"IF('Blank - Request Form'!$F$6=\"CIFDN\",IF('Blank - Request Form'!D132=0,\"\",'Blank - Request Form'!D132),IF('Blank - Request Form'!$F$7=\"CIFDN\",IF('Blank - Request Form'!M132=0,\"\",'Blank - Request Form'!M132),\"\"))","v":""},{"$f":"IF('Blank - Request Form'!$F$6=\"CIFDN\",IF('Blank - Request Form'!E132=0,\"\",'Blank - Request Form'!E132),IF('Blank - Request Form'!$F$7=\"CIFDN\",IF('Blank - Request Form'!N132=0,\"\",'Blank - Request Form'!N132),\"\"))","v":""},{"$f":"IF('Blank - Request Form'!$F$6=\"CIFDN\",IF(OR('Blank - Request Form'!F132=\"000\",'Blank - Request Form'!F132=0),\"\",'Blank - Request Form'!F132),IF('Blank - Request Form'!$F$7=\"CIFDN\",IF(OR('Blank - Request Form'!O132=\"000\",'Blank - Request Form'!O132=0),\"\",'Blank - Request Form'!O132),\"\"))","v":""},{"$f":"IF('Blank - Request Form'!$F$6=\"CIFDN\",IF(OR('Blank - Request Form'!G132=\"0\",'Blank - Request Form'!G132=\"00000\",'Blank - Request Form'!G132=0),\"\",'Blank - Request Form'!G132),IF('Blank - Request Form'!$F$7=\"CIFDN\",IF(OR('Blank - Request Form'!P132=\"0\",'Blank - Request Form'!P132=\"00000\",'Blank - Request Form'!P132=0),\"\",'Blank - Request Form'!P132),\"\"))","v":""},{"$f":"IF('Blank - Request Form'!$F$6=\"CIFDN\",IF(OR('Blank - Request Form'!H132=\"0\",'Blank - Request Form'!H132=\"00000\",'Blank - Request Form'!H132=0),\"\",'Blank - Request Form'!H132),IF('Blank - Request Form'!$F$7=\"CIFDN\",IF(OR('Blank - Request Form'!Q132=\"0\",'Blank - Request Form'!Q132=\"00000\",'Blank - Request Form'!Q132=0),\"\",'Blank - Request Form'!Q132),\"\"))","v":""},{"$f":"IF('Blank - Request Form'!$F$6=\"CIFDN\",IF(OR('Blank - Request Form'!I132=\"0\",'Blank - Request Form'!I132=\"00000\",'Blank - Request Form'!I132=0),\"\",'Blank - Request Form'!I132),IF('Blank - Request Form'!$F$7=\"CIFDN\",IF(OR('Blank - Request Form'!R132=\"0\",'Blank - Request Form'!R132=\"00000\",'Blank - Request Form'!R132=0),\"\",'Blank - Request Form'!R132),\"\"))","v":""},null,{"$f":"IF('Blank - Request Form'!$F$6=\"CIFDN\",IF('Blank - Request Form'!K132=0,\"\",'Blank - Request Form'!K132),IF('Blank - Request Form'!$F$7=\"CIFDN\",IF('Blank - Request Form'!T132=0,\"\",'Blank - Request Form'!T132),\"\"))","v":""},null,null,null,{"$f":"IF(M98<>\"\",'Blank - Request Form'!$M$2,\"\")","v":""},{"$f":"IF('Blank - Request Form'!$F$6=\"CIFDN\",IF('Blank - Request Form'!J132=0,\"\",'Blank - Request Form'!J132),IF('Blank - Request Form'!$F$7=\"CIFDN\",IF('Blank - Request Form'!S132=0,\"\",'Blank - Request Form'!S132),\"\"))","v":""},"",98]
[{"$f":"IF('Blank - Request Form'!$F$6=\"CIFDN\",IF('Blank - Request Form'!D133=0,\"\",'Blank - Request Form'!D133),IF('Blank - Request Form'!$F$7=\"CIFDN\",IF('Blank - Request Form'!M133=0,\"\",'Blank - Request Form'!M133),\"\"))","v":""},{"$f":"IF('Blank - Request Form'!$F$6=\"CIFDN\",IF('Blank - Request Form'!E133=0,\"\",'Blank - Request Form'!E133),IF('Blank - Request Form'!$F$7=\"CIFDN\",IF('Blank - Request Form'!N133=0,\"\",'Blank - Request Form'!N133),\"\"))","v":""},{"$f":"IF('Blank - Request Form'!$F$6=\"CIFDN\",IF(OR('Blank - Request Form'!F133=\"000\",'Blank - Request Form'!F133=0),\"\",'Blank - Request Form'!F133),IF('Blank - Request Form'!$F$7=\"CIFDN\",IF(OR('Blank - Request Form'!O133=\"000\",'Blank - Request Form'!O133=0),\"\",'Blank - Request Form'!O133),\"\"))","v":""},{"$f":"IF('Blank - Request Form'!$F$6=\"CIFDN\",IF(OR('Blank - Request Form'!G133=\"0\",'Blank - Request Form'!G133=\"00000\",'Blank - Request Form'!G133=0),\"\",'Blank - Request Form'!G133),IF('Blank - Request Form'!$F$7=\"CIFDN\",IF(OR('Blank - Request Form'!P133=\"0\",'Blank - Request Form'!P133=\"00000\",'Blank - Request Form'!P133=0),\"\",'Blank - Request Form'!P133),\"\"))","v":""},{"$f":"IF('Blank - Request Form'!$F$6=\"CIFDN\",IF(OR('Blank - Request Form'!H133=\"0\",'Blank - Request Form'!H133=\"00000\",'Blank - Request Form'!H133=0),\"\",'Blank - Request Form'!H133),IF('Blank - Request Form'!$F$7=\"CIFDN\",IF(OR('Blank - Request Form'!Q133=\"0\",'Blank - Request Form'!Q133=\"00000\",'Blank - Request Form'!Q133=0),\"\",'Blank - Request Form'!Q133),\"\"))","v":""},{"$f":"IF('Blank - Request Form'!$F$6=\"CIFDN\",IF(OR('Blank - Request Form'!I133=\"0\",'Blank - Request Form'!I133=\"00000\",'Blank - Request Form'!I133=0),\"\",'Blank - Request Form'!I133),IF('Blank - Request Form'!$F$7=\"CIFDN\",IF(OR('Blank - Request Form'!R133=\"0\",'Blank - Request Form'!R133=\"00000\",'Blank - Request Form'!R133=0),\"\",'Blank - Request Form'!R133),\"\"))","v":""},null,{"$f":"IF('Blank - Request Form'!$F$6=\"CIFDN\",IF('Blank - Request Form'!K133=0,\"\",'Blank - Request Form'!K133),IF('Blank - Request Form'!$F$7=\"CIFDN\",IF('Blank - Request Form'!T133=0,\"\",'Blank - Request Form'!T133),\"\"))","v":""},null,null,null,{"$f":"IF(M99<>\"\",'Blank - Request Form'!$M$2,\"\")","v":""},{"$f":"IF('Blank - Request Form'!$F$6=\"CIFDN\",IF('Blank - Request Form'!J133=0,\"\",'Blank - Request Form'!J133),IF('Blank - Request Form'!$F$7=\"CIFDN\",IF('Blank - Request Form'!S133=0,\"\",'Blank - Request Form'!S133),\"\"))","v":""},"",99]
[{"$f":"IF('Blank - Request Form'!$F$6=\"CIFDN\",IF('Blank - Request Form'!D134=0,\"\",'Blank - Request Form'!D134),IF('Blank - Request Form'!$F$7=\"CIFDN\",IF('Blank - Request Form'!M134=0,\"\",'Blank - Request Form'!M134),\"\"))","v":""},{"$f":"IF('Blank - Request Form'!$F$6=\"CIFDN\",IF('Blank - Request Form'!E134=0,\"\",'Blank - Request Form'!E134),IF('Blank - Request Form'!$F$7=\"CIFDN\",IF('Blank - Request Form'!N134=0,\"\",'Blank - Request Form'!N134),\"\"))","v":""},{"$f":"IF('Blank - Request Form'!$F$6=\"CIFDN\",IF(OR('Blank - Request Form'!F134=\"000\",'Blank - Request Form'!F134=0),\"\",'Blank - Request Form'!F134),IF('Blank - Request Form'!$F$7=\"CIFDN\",IF(OR('Blank - Request Form'!O134=\"000\",'Blank - Request Form'!O134=0),\"\",'Blank - Request Form'!O134),\"\"))","v":""},{"$f":"IF('Blank - Request Form'!$F$6=\"CIFDN\",IF(OR('Blank - Request Form'!G134=\"0\",'Blank - Request Form'!G134=\"00000\",'Blank - Request Form'!G134=0),\"\",'Blank - Request Form'!G134),IF('Blank - Request Form'!$F$7=\"CIFDN\",IF(OR('Blank - Request Form'!P134=\"0\",'Blank - Request Form'!P134=\"00000\",'Blank - Request Form'!P134=0),\"\",'Blank - Request Form'!P134),\"\"))","v":""},{"$f":"IF('Blank - Request Form'!$F$6=\"CIFDN\",IF(OR('Blank - Request Form'!H134=\"0\",'Blank - Request Form'!H134=\"00000\",'Blank - Request Form'!H134=0),\"\",'Blank - Request Form'!H134),IF('Blank - Request Form'!$F$7=\"CIFDN\",IF(OR('Blank - Request Form'!Q134=\"0\",'Blank - Request Form'!Q134=\"00000\",'Blank - Request Form'!Q134=0),\"\",'Blank - Request Form'!Q134),\"\"))","v":""},{"$f":"IF('Blank - Request Form'!$F$6=\"CIFDN\",IF(OR('Blank - Request Form'!I134=\"0\",'Blank - Request Form'!I134=\"00000\",'Blank - Request Form'!I134=0),\"\",'Blank - Request Form'!I134),IF('Blank - Request Form'!$F$7=\"CIFDN\",IF(OR('Blank - Request Form'!R134=\"0\",'Blank - Request Form'!R134=\"00000\",'Blank - Request Form'!R134=0),\"\",'Blank - Request Form'!R134),\"\"))","v":""},null,{"$f":"IF('Blank - Request Form'!$F$6=\"CIFDN\",IF('Blank - Request Form'!K134=0,\"\",'Blank - Request Form'!K134),IF('Blank - Request Form'!$F$7=\"CIFDN\",IF('Blank - Request Form'!T134=0,\"\",'Blank - Request Form'!T134),\"\"))","v":""},null,null,null,{"$f":"IF(M100<>\"\",'Blank - Request Form'!$M$2,\"\")","v":""},{"$f":"IF('Blank - Request Form'!$F$6=\"CIFDN\",IF('Blank - Request Form'!J134=0,\"\",'Blank - Request Form'!J134),IF('Blank - Request Form'!$F$7=\"CIFDN\",IF('Blank - Request Form'!S134=0,\"\",'Blank - Request Form'!S134),\"\"))","v":""},"",100]
[{"$f":"IF('Blank - Request Form'!$F$6=\"CIFDN\",IF('Blank - Request Form'!D135=0,\"\",'Blank - Request Form'!D135),IF('Blank - Request Form'!$F$7=\"CIFDN\",IF('Blank - Request Form'!M135=0,\"\",'Blank - Request Form'!M135),\"\"))","v":""},{"$f":"IF('Blank - Request Form'!$F$6=\"CIFDN\",IF('Blank - Request Form'!E135=0,\"\",'Blank - Request Form'!E135),IF('Blank - Request Form'!$F$7=\"CIFDN\",IF('Blank - Request Form'!N135=0,\"\",'Blank - Request Form'!N135),\"\"))","v":""},{"$f":"IF('Blank - Request Form'!$F$6=\"CIFDN\",IF(OR('Blank - Request Form'!F135=\"000\",'Blank - Request Form'!F135=0),\"\",'Blank - Request Form'!F135),IF('Blank - Request Form'!$F$7=\"CIFDN\",IF(OR('Blank - Request Form'!O135=\"000\",'Blank - Request Form'!O135=0),\"\",'Blank - Request Form'!O135),\"\"))","v":""},{"$f":"IF('Blank - Request Form'!$F$6=\"CIFDN\",IF(OR('Blank - Request Form'!G135=\"0\",'Blank - Request Form'!G135=\"00000\",'Blank - Request Form'!G135=0),\"\",'Blank - Request Form'!G135),IF('Blank - Request Form'!$F$7=\"CIFDN\",IF(OR('Blank - Request Form'!P135=\"0\",'Blank - Request Form'!P135=\"00000\",'Blank - Request Form'!P135=0),\"\",'Blank - Request Form'!P135),\"\"))","v":""},{"$f":"IF('Blank - Request Form'!$F$6=\"CIFDN\",IF(OR('Blank - Request Form'!H135=\"0\",'Blank - Request Form'!H135=\"00000\",'Blank - Request Form'!H135=0),\"\",'Blank - Request Form'!H135),IF('Blank - Request Form'!$F$7=\"CIFDN\",IF(OR('Blank - Request Form'!Q135=\"0\",'Blank - Request Form'!Q135=\"00000\",'Blank - Request Form'!Q135=0),\"\",'Blank - Request Form'!Q135),\"\"))","v":""},{"$f":"IF('Blank - Request Form'!$F$6=\"CIFDN\",IF(OR('Blank - Request Form'!I135=\"0\",'Blank - Request Form'!I135=\"00000\",'Blank - Request Form'!I135=0),\"\",'Blank - Request Form'!I135),IF('Blank - Request Form'!$F$7=\"CIFDN\",IF(OR('Blank - Request Form'!R135=\"0\",'Blank - Request Form'!R135=\"00000\",'Blank - Request Form'!R135=0),\"\",'Blank - Request Form'!R135),\"\"))","v":""},null,{"$f":"IF('Blank - Request Form'!$F$6=\"CIFDN\",IF('Blank - Request Form'!K135=0,\"\",'Blank - Request Form'!K135),IF('Blank - Request Form'!$F$7=\"CIFDN\",IF('Blank - Request Form'!T135=0,\"\",'Blank - Request Form'!T135),\"\"))","v":""},null,null,null,{"$f":"IF(M101<>\"\",'Blank - Request Form'!$M$2,\"\")","v":""},{"$f":"IF('Blank - Request Form'!$F$6=\"CIFDN\",IF('Blank - Request Form'!J135=0,\"\",'Blank - Request Form'!J135),IF('Blank - Request Form'!$F$7=\"CIFDN\",IF('Blank - Request Form'!S135=0,\"\",'Blank - Request Form'!S135),\"\"))","v":""},"",101]
[{"$f":"IF('Blank - Request Form'!$F$6=\"CIFDN\",IF('Blank - Request Form'!D136=0,\"\",'Blank - Request Form'!D136),IF('Blank - Request Form'!$F$7=\"CIFDN\",IF('Blank - Request Form'!M136=0,\"\",'Blank - Request Form'!M136),\"\"))","v":""},{"$f":"IF('Blank - Request Form'!$F$6=\"CIFDN\",IF('Blank - Request Form'!E136=0,\"\",'Blank - Request Form'!E136),IF('Blank - Request Form'!$F$7=\"CIFDN\",IF('Blank - Request Form'!N136=0,\"\",'Blank - Request Form'!N136),\"\"))","v":""},{"$f":"IF('Blank - Request Form'!$F$6=\"CIFDN\",IF(OR('Blank - Request Form'!F136=\"000\",'Blank - Request Form'!F136=0),\"\",'Blank - Request Form'!F136),IF('Blank - Request Form'!$F$7=\"CIFDN\",IF(OR('Blank - Request Form'!O136=\"000\",'Blank - Request Form'!O136=0),\"\",'Blank - Request Form'!O136),\"\"))","v":""},{"$f":"IF('Blank - Request Form'!$F$6=\"CIFDN\",IF(OR('Blank - Request Form'!G136=\"0\",'Blank - Request Form'!G136=\"00000\",'Blank - Request Form'!G136=0),\"\",'Blank - Request Form'!G136),IF('Blank - Request Form'!$F$7=\"CIFDN\",IF(OR('Blank - Request Form'!P136=\"0\",'Blank - Request Form'!P136=\"00000\",'Blank - Request Form'!P136=0),\"\",'Blank - Request Form'!P136),\"\"))","v":""},{"$f":"IF('Blank - Request Form'!$F$6=\"CIFDN\",IF(OR('Blank - Request Form'!H136=\"0\",'Blank - Request Form'!H136=\"00000\",'Blank - Request Form'!H136=0),\"\",'Blank - Request Form'!H136),IF('Blank - Request Form'!$F$7=\"CIFDN\",IF(OR('Blank - Request Form'!Q136=\"0\",'Blank - Request Form'!Q136=\"00000\",'Blank - Request Form'!Q136=0),\"\",'Blank - Request Form'!Q136),\"\"))","v":""},{"$f":"IF('Blank - Request Form'!$F$6=\"CIFDN\",IF(OR('Blank - Request Form'!I136=\"0\",'Blank - Request Form'!I136=\"00000\",'Blank - Request Form'!I136=0),\"\",'Blank - Request Form'!I136),IF('Blank - Request Form'!$F$7=\"CIFDN\",IF(OR('Blank - Request Form'!R136=\"0\",'Blank - Request Form'!R136=\"00000\",'Blank - Request Form'!R136=0),\"\",'Blank - Request Form'!R136),\"\"))","v":""},null,{"$f":"IF('Blank - Request Form'!$F$6=\"CIFDN\",IF('Blank - Request Form'!K136=0,\"\",'Blank - Request Form'!K136),IF('Blank - Request Form'!$F$7=\"CIFDN\",IF('Blank - Request Form'!T136=0,\"\",'Blank - Request Form'!T136),\"\"))","v":""},null,null,null,{"$f":"IF(M102<>\"\",'Blank - Request Form'!$M$2,\"\")","v":""},{"$f":"IF('Blank - Request Form'!$F$6=\"CIFDN\",IF('Blank - Request Form'!J136=0,\"\",'Blank - Request Form'!J136),IF('Blank - Request Form'!$F$7=\"CIFDN\",IF('Blank - Request Form'!S136=0,\"\",'Blank - Request Form'!S136),\"\"))","v":""},"",102]
[{"$f":"IF('Blank - Request Form'!$F$6=\"CIFDN\",IF('Blank - Request Form'!D137=0,\"\",'Blank - Request Form'!D137),IF('Blank - Request Form'!$F$7=\"CIFDN\",IF('Blank - Request Form'!M137=0,\"\",'Blank - Request Form'!M137),\"\"))","v":""},{"$f":"IF('Blank - Request Form'!$F$6=\"CIFDN\",IF('Blank - Request Form'!E137=0,\"\",'Blank - Request Form'!E137),IF('Blank - Request Form'!$F$7=\"CIFDN\",IF('Blank - Request Form'!N137=0,\"\",'Blank - Request Form'!N137),\"\"))","v":""},{"$f":"IF('Blank - Request Form'!$F$6=\"CIFDN\",IF(OR('Blank - Request Form'!F137=\"000\",'Blank - Request Form'!F137=0),\"\",'Blank - Request Form'!F137),IF('Blank - Request Form'!$F$7=\"CIFDN\",IF(OR('Blank - Request Form'!O137=\"000\",'Blank - Request Form'!O137=0),\"\",'Blank - Request Form'!O137),\"\"))","v":""},{"$f":"IF('Blank - Request Form'!$F$6=\"CIFDN\",IF(OR('Blank - Request Form'!G137=\"0\",'Blank - Request Form'!G137=\"00000\",'Blank - Request Form'!G137=0),\"\",'Blank - Request Form'!G137),IF('Blank - Request Form'!$F$7=\"CIFDN\",IF(OR('Blank - Request Form'!P137=\"0\",'Blank - Request Form'!P137=\"00000\",'Blank - Request Form'!P137=0),\"\",'Blank - Request Form'!P137),\"\"))","v":""},{"$f":"IF('Blank - Request Form'!$F$6=\"CIFDN\",IF(OR('Blank - Request Form'!H137=\"0\",'Blank - Request Form'!H137=\"00000\",'Blank - Request Form'!H137=0),\"\",'Blank - Request Form'!H137),IF('Blank - Request Form'!$F$7=\"CIFDN\",IF(OR('Blank - Request Form'!Q137=\"0\",'Blank - Request Form'!Q137=\"00000\",'Blank - Request Form'!Q137=0),\"\",'Blank - Request Form'!Q137),\"\"))","v":""},{"$f":"IF('Blank - Request Form'!$F$6=\"CIFDN\",IF(OR('Blank - Request Form'!I137=\"0\",'Blank - Request Form'!I137=\"00000\",'Blank - Request Form'!I137=0),\"\",'Blank - Request Form'!I137),IF('Blank - Request Form'!$F$7=\"CIFDN\",IF(OR('Blank - Request Form'!R137=\"0\",'Blank - Request Form'!R137=\"00000\",'Blank - Request Form'!R137=0),\"\",'Blank - Request Form'!R137),\"\"))","v":""},null,{"$f":"IF('Blank - Request Form'!$F$6=\"CIFDN\",IF('Blank - Request Form'!K137=0,\"\",'Blank - Request Form'!K137),IF('Blank - Request Form'!$F$7=\"CIFDN\",IF('Blank - Request Form'!T137=0,\"\",'Blank - Request Form'!T137),\"\"))","v":""},null,null,null,{"$f":"IF(M103<>\"\",'Blank - Request Form'!$M$2,\"\")","v":""},{"$f":"IF('Blank - Request Form'!$F$6=\"CIFDN\",IF('Blank - Request Form'!J137=0,\"\",'Blank - Request Form'!J137),IF('Blank - Request Form'!$F$7=\"CIFDN\",IF('Blank - Request Form'!S137=0,\"\",'Blank - Request Form'!S137),\"\"))","v":""},"",103]
[{"$f":"IF('Blank - Request Form'!$F$6=\"CIFDN\",IF('Blank - Request Form'!D138=0,\"\",'Blank - Request Form'!D138),IF('Blank - Request Form'!$F$7=\"CIFDN\",IF('Blank - Request Form'!M138=0,\"\",'Blank - Request Form'!M138),\"\"))","v":""},{"$f":"IF('Blank - Request Form'!$F$6=\"CIFDN\",IF('Blank - Request Form'!E138=0,\"\",'Blank - Request Form'!E138),IF('Blank - Request Form'!$F$7=\"CIFDN\",IF('Blank - Request Form'!N138=0,\"\",'Blank - Request Form'!N138),\"\"))","v":""},{"$f":"IF('Blank - Request Form'!$F$6=\"CIFDN\",IF(OR('Blank - Request Form'!F138=\"000\",'Blank - Request Form'!F138=0),\"\",'Blank - Request Form'!F138),IF('Blank - Request Form'!$F$7=\"CIFDN\",IF(OR('Blank - Request Form'!O138=\"000\",'Blank - Request Form'!O138=0),\"\",'Blank - Request Form'!O138),\"\"))","v":""},{"$f":"IF('Blank - Request Form'!$F$6=\"CIFDN\",IF(OR('Blank - Request Form'!G138=\"0\",'Blank - Request Form'!G138=\"00000\",'Blank - Request Form'!G138=0),\"\",'Blank - Request Form'!G138),IF('Blank - Request Form'!$F$7=\"CIFDN\",IF(OR('Blank - Request Form'!P138=\"0\",'Blank - Request Form'!P138=\"00000\",'Blank - Request Form'!P138=0),\"\",'Blank - Request Form'!P138),\"\"))","v":""},{"$f":"IF('Blank - Request Form'!$F$6=\"CIFDN\",IF(OR('Blank - Request Form'!H138=\"0\",'Blank - Request Form'!H138=\"00000\",'Blank - Request Form'!H138=0),\"\",'Blank - Request Form'!H138),IF('Blank - Request Form'!$F$7=\"CIFDN\",IF(OR('Blank - Request Form'!Q138=\"0\",'Blank - Request Form'!Q138=\"00000\",'Blank - Request Form'!Q138=0),\"\",'Blank - Request Form'!Q138),\"\"))","v":""},{"$f":"IF('Blank - Request Form'!$F$6=\"CIFDN\",IF(OR('Blank - Request Form'!I138=\"0\",'Blank - Request Form'!I138=\"00000\",'Blank - Request Form'!I138=0),\"\",'Blank - Request Form'!I138),IF('Blank - Request Form'!$F$7=\"CIFDN\",IF(OR('Blank - Request Form'!R138=\"0\",'Blank - Request Form'!R138=\"00000\",'Blank - Request Form'!R138=0),\"\",'Blank - Request Form'!R138),\"\"))","v":""},null,{"$f":"IF('Blank - Request Form'!$F$6=\"CIFDN\",IF('Blank - Request Form'!K138=0,\"\",'Blank - Request Form'!K138),IF('Blank - Request Form'!$F$7=\"CIFDN\",IF('Blank - Request Form'!T138=0,\"\",'Blank - Request Form'!T138),\"\"))","v":""},null,null,null,{"$f":"IF(M104<>\"\",'Blank - Request Form'!$M$2,\"\")","v":""},{"$f":"IF('Blank - Request Form'!$F$6=\"CIFDN\",IF('Blank - Request Form'!J138=0,\"\",'Blank - Request Form'!J138),IF('Blank - Request Form'!$F$7=\"CIFDN\",IF('Blank - Request Form'!S138=0,\"\",'Blank - Request Form'!S138),\"\"))","v":""},"",104]
[{"$f":"IF('Blank - Request Form'!$F$6=\"CIFDN\",IF('Blank - Request Form'!D139=0,\"\",'Blank - Request Form'!D139),IF('Blank - Request Form'!$F$7=\"CIFDN\",IF('Blank - Request Form'!M139=0,\"\",'Blank - Request Form'!M139),\"\"))","v":""},{"$f":"IF('Blank - Request Form'!$F$6=\"CIFDN\",IF('Blank - Request Form'!E139=0,\"\",'Blank - Request Form'!E139),IF('Blank - Request Form'!$F$7=\"CIFDN\",IF('Blank - Request Form'!N139=0,\"\",'Blank - Request Form'!N139),\"\"))","v":""},{"$f":"IF('Blank - Request Form'!$F$6=\"CIFDN\",IF(OR('Blank - Request Form'!F139=\"000\",'Blank - Request Form'!F139=0),\"\",'Blank - Request Form'!F139),IF('Blank - Request Form'!$F$7=\"CIFDN\",IF(OR('Blank - Request Form'!O139=\"000\",'Blank - Request Form'!O139=0),\"\",'Blank - Request Form'!O139),\"\"))","v":""},{"$f":"IF('Blank - Request Form'!$F$6=\"CIFDN\",IF(OR('Blank - Request Form'!G139=\"0\",'Blank - Request Form'!G139=\"00000\",'Blank - Request Form'!G139=0),\"\",'Blank - Request Form'!G139),IF('Blank - Request Form'!$F$7=\"CIFDN\",IF(OR('Blank - Request Form'!P139=\"0\",'Blank - Request Form'!P139=\"00000\",'Blank - Request Form'!P139=0),\"\",'Blank - Request Form'!P139),\"\"))","v":""},{"$f":"IF('Blank - Request Form'!$F$6=\"CIFDN\",IF(OR('Blank - Request Form'!H139=\"0\",'Blank - Request Form'!H139=\"00000\",'Blank - Request Form'!H139=0),\"\",'Blank - Request Form'!H139),IF('Blank - Request Form'!$F$7=\"CIFDN\",IF(OR('Blank - Request Form'!Q139=\"0\",'Blank - Request Form'!Q139=\"00000\",'Blank - Request Form'!Q139=0),\"\",'Blank - Request Form'!Q139),\"\"))","v":""},{"$f":"IF('Blank - Request Form'!$F$6=\"CIFDN\",IF(OR('Blank - Request Form'!I139=\"0\",'Blank - Request Form'!I139=\"00000\",'Blank - Request Form'!I139=0),\"\",'Blank - Request Form'!I139),IF('Blank - Request Form'!$F$7=\"CIFDN\",IF(OR('Blank - Request Form'!R139=\"0\",'Blank - Request Form'!R139=\"00000\",'Blank - Request Form'!R139=0),\"\",'Blank - Request Form'!R139),\"\"))","v":""},null,{"$f":"IF('Blank - Request Form'!$F$6=\"CIFDN\",IF('Blank - Request Form'!K139=0,\"\",'Blank - Request Form'!K139),IF('Blank - Request Form'!$F$7=\"CIFDN\",IF('Blank - Request Form'!T139=0,\"\",'Blank - Request Form'!T139),\"\"))","v":""},null,null,null,{"$f":"IF(M105<>\"\",'Blank - Request Form'!$M$2,\"\")","v":""},{"$f":"IF('Blank - Request Form'!$F$6=\"CIFDN\",IF('Blank - Request Form'!J139=0,\"\",'Blank - Request Form'!J139),IF('Blank - Request Form'!$F$7=\"CIFDN\",IF('Blank - Request Form'!S139=0,\"\",'Blank - Request Form'!S139),\"\"))","v":""},"",105]
[{"$f":"IF('Blank - Request Form'!$F$6=\"CIFDN\",IF('Blank - Request Form'!D140=0,\"\",'Blank - Request Form'!D140),IF('Blank - Request Form'!$F$7=\"CIFDN\",IF('Blank - Request Form'!M140=0,\"\",'Blank - Request Form'!M140),\"\"))","v":""},{"$f":"IF('Blank - Request Form'!$F$6=\"CIFDN\",IF('Blank - Request Form'!E140=0,\"\",'Blank - Request Form'!E140),IF('Blank - Request Form'!$F$7=\"CIFDN\",IF('Blank - Request Form'!N140=0,\"\",'Blank - Request Form'!N140),\"\"))","v":""},{"$f":"IF('Blank - Request Form'!$F$6=\"CIFDN\",IF(OR('Blank - Request Form'!F140=\"000\",'Blank - Request Form'!F140=0),\"\",'Blank - Request Form'!F140),IF('Blank - Request Form'!$F$7=\"CIFDN\",IF(OR('Blank - Request Form'!O140=\"000\",'Blank - Request Form'!O140=0),\"\",'Blank - Request Form'!O140),\"\"))","v":""},{"$f":"IF('Blank - Request Form'!$F$6=\"CIFDN\",IF(OR('Blank - Request Form'!G140=\"0\",'Blank - Request Form'!G140=\"00000\",'Blank - Request Form'!G140=0),\"\",'Blank - Request Form'!G140),IF('Blank - Request Form'!$F$7=\"CIFDN\",IF(OR('Blank - Request Form'!P140=\"0\",'Blank - Request Form'!P140=\"00000\",'Blank - Request Form'!P140=0),\"\",'Blank - Request Form'!P140),\"\"))","v":""},{"$f":"IF('Blank - Request Form'!$F$6=\"CIFDN\",IF(OR('Blank - Request Form'!H140=\"0\",'Blank - Request Form'!H140=\"00000\",'Blank - Request Form'!H140=0),\"\",'Blank - Request Form'!H140),IF('Blank - Request Form'!$F$7=\"CIFDN\",IF(OR('Blank - Request Form'!Q140=\"0\",'Blank - Request Form'!Q140=\"00000\",'Blank - Request Form'!Q140=0),\"\",'Blank - Request Form'!Q140),\"\"))","v":""},{"$f":"IF('Blank - Request Form'!$F$6=\"CIFDN\",IF(OR('Blank - Request Form'!I140=\"0\",'Blank - Request Form'!I140=\"00000\",'Blank - Request Form'!I140=0),\"\",'Blank - Request Form'!I140),IF('Blank - Request Form'!$F$7=\"CIFDN\",IF(OR('Blank - Request Form'!R140=\"0\",'Blank - Request Form'!R140=\"00000\",'Blank - Request Form'!R140=0),\"\",'Blank - Request Form'!R140),\"\"))","v":""},null,{"$f":"IF('Blank - Request Form'!$F$6=\"CIFDN\",IF('Blank - Request Form'!K140=0,\"\",'Blank - Request Form'!K140),IF('Blank - Request Form'!$F$7=\"CIFDN\",IF('Blank - Request Form'!T140=0,\"\",'Blank - Request Form'!T140),\"\"))","v":""},null,null,null,{"$f":"IF(M106<>\"\",'Blank - Request Form'!$M$2,\"\")","v":""},{"$f":"IF('Blank - Request Form'!$F$6=\"CIFDN\",IF('Blank - Request Form'!J140=0,\"\",'Blank - Request Form'!J140),IF('Blank - Request Form'!$F$7=\"CIFDN\",IF('Blank - Request Form'!S140=0,\"\",'Blank - Request Form'!S140),\"\"))","v":""},"",106]
[{"$f":"IF('Blank - Request Form'!$F$6=\"CIFDN\",IF('Blank - Request Form'!D141=0,\"\",'Blank - Request Form'!D141),IF('Blank - Request Form'!$F$7=\"CIFDN\",IF('Blank - Request Form'!M141=0,\"\",'Blank - Request Form'!M141),\"\"))","v":""},{"$f":"IF('Blank - Request Form'!$F$6=\"CIFDN\",IF('Blank - Request Form'!E141=0,\"\",'Blank - Request Form'!E141),IF('Blank - Request Form'!$F$7=\"CIFDN\",IF('Blank - Request Form'!N141=0,\"\",'Blank - Request Form'!N141),\"\"))","v":""},{"$f":"IF('Blank - Request Form'!$F$6=\"CIFDN\",IF(OR('Blank - Request Form'!F141=\"000\",'Blank - Request Form'!F141=0),\"\",'Blank - Request Form'!F141),IF('Blank - Request Form'!$F$7=\"CIFDN\",IF(OR('Blank - Request Form'!O141=\"000\",'Blank - Request Form'!O141=0),\"\",'Blank - Request Form'!O141),\"\"))","v":""},{"$f":"IF('Blank - Request Form'!$F$6=\"CIFDN\",IF(OR('Blank - Request Form'!G141=\"0\",'Blank - Request Form'!G141=\"00000\",'Blank - Request Form'!G141=0),\"\",'Blank - Request Form'!G141),IF('Blank - Request Form'!$F$7=\"CIFDN\",IF(OR('Blank - Request Form'!P141=\"0\",'Blank - Request Form'!P141=\"00000\",'Blank - Request Form'!P141=0),\"\",'Blank - Request Form'!P141),\"\"))","v":""},{"$f":"IF('Blank - Request Form'!$F$6=\"CIFDN\",IF(OR('Blank - Request Form'!H141=\"0\",'Blank - Request Form'!H141=\"00000\",'Blank - Request Form'!H141=0),\"\",'Blank - Request Form'!H141),IF('Blank - Request Form'!$F$7=\"CIFDN\",IF(OR('Blank - Request Form'!Q141=\"0\",'Blank - Request Form'!Q141=\"00000\",'Blank - Request Form'!Q141=0),\"\",'Blank - Request Form'!Q141),\"\"))","v":""},{"$f":"IF('Blank - Request Form'!$F$6=\"CIFDN\",IF(OR('Blank - Request Form'!I141=\"0\",'Blank - Request Form'!I141=\"00000\",'Blank - Request Form'!I141=0),\"\",'Blank - Request Form'!I141),IF('Blank - Request Form'!$F$7=\"CIFDN\",IF(OR('Blank - Request Form'!R141=\"0\",'Blank - Request Form'!R141=\"00000\",'Blank - Request Form'!R141=0),\"\",'Blank - Request Form'!R141),\"\"))","v":""},null,{"$f":"IF('Blank - Request Form'!$F$6=\"CIFDN\",IF('Blank - Request Form'!K141=0,\"\",'Blank - Request Form'!K141),IF('Blank - Request Form'!$F$7=\"CIFDN\",IF('Blank - Request Form'!T141=0,\"\",'Blank - Request Form'!T141),\"\"))","v":""},null,null,null,{"$f":"IF(M107<>\"\",'Blank - Request Form'!$M$2,\"\")","v":""},{"$f":"IF('Blank - Request Form'!$F$6=\"CIFDN\",IF('Blank - Request Form'!J141=0,\"\",'Blank - Request Form'!J141),IF('Blank - Request Form'!$F$7=\"CIFDN\",IF('Blank - Request Form'!S141=0,\"\",'Blank - Request Form'!S141),\"\"))","v":""},"",107]
[{"$f":"IF('Blank - Request Form'!$F$6=\"CIFDN\",IF('Blank - Request Form'!D142=0,\"\",'Blank - Request Form'!D142),IF('Blank - Request Form'!$F$7=\"CIFDN\",IF('Blank - Request Form'!M142=0,\"\",'Blank - Request Form'!M142),\"\"))","v":""},{"$f":"IF('Blank - Request Form'!$F$6=\"CIFDN\",IF('Blank - Request Form'!E142=0,\"\",'Blank - Request Form'!E142),IF('Blank - Request Form'!$F$7=\"CIFDN\",IF('Blank - Request Form'!N142=0,\"\",'Blank - Request Form'!N142),\"\"))","v":""},{"$f":"IF('Blank - Request Form'!$F$6=\"CIFDN\",IF(OR('Blank - Request Form'!F142=\"000\",'Blank - Request Form'!F142=0),\"\",'Blank - Request Form'!F142),IF('Blank - Request Form'!$F$7=\"CIFDN\",IF(OR('Blank - Request Form'!O142=\"000\",'Blank - Request Form'!O142=0),\"\",'Blank - Request Form'!O142),\"\"))","v":""},{"$f":"IF('Blank - Request Form'!$F$6=\"CIFDN\",IF(OR('Blank - Request Form'!G142=\"0\",'Blank - Request Form'!G142=\"00000\",'Blank - Request Form'!G142=0),\"\",'Blank - Request Form'!G142),IF('Blank - Request Form'!$F$7=\"CIFDN\",IF(OR('Blank - Request Form'!P142=\"0\",'Blank - Request Form'!P142=\"00000\",'Blank - Request Form'!P142=0),\"\",'Blank - Request Form'!P142),\"\"))","v":""},{"$f":"IF('Blank - Request Form'!$F$6=\"CIFDN\",IF(OR('Blank - Request Form'!H142=\"0\",'Blank - Request Form'!H142=\"00000\",'Blank - Request Form'!H142=0),\"\",'Blank - Request Form'!H142),IF('Blank - Request Form'!$F$7=\"CIFDN\",IF(OR('Blank - Request Form'!Q142=\"0\",'Blank - Request Form'!Q142=\"00000\",'Blank - Request Form'!Q142=0),\"\",'Blank - Request Form'!Q142),\"\"))","v":""},{"$f":"IF('Blank - Request Form'!$F$6=\"CIFDN\",IF(OR('Blank - Request Form'!I142=\"0\",'Blank - Request Form'!I142=\"00000\",'Blank - Request Form'!I142=0),\"\",'Blank - Request Form'!I142),IF('Blank - Request Form'!$F$7=\"CIFDN\",IF(OR('Blank - Request Form'!R142=\"0\",'Blank - Request Form'!R142=\"00000\",'Blank - Request Form'!R142=0),\"\",'Blank - Request Form'!R142),\"\"))","v":""},null,{"$f":"IF('Blank - Request Form'!$F$6=\"CIFDN\",IF('Blank - Request Form'!K142=0,\"\",'Blank - Request Form'!K142),IF('Blank - Request Form'!$F$7=\"CIFDN\",IF('Blank - Request Form'!T142=0,\"\",'Blank - Request Form'!T142),\"\"))","v":""},null,null,null,{"$f":"IF(M108<>\"\",'Blank - Request Form'!$M$2,\"\")","v":""},{"$f":"IF('Blank - Request Form'!$F$6=\"CIFDN\",IF('Blank - Request Form'!J142=0,\"\",'Blank - Request Form'!J142),IF('Blank - Request Form'!$F$7=\"CIFDN\",IF('Blank - Request Form'!S142=0,\"\",'Blank - Request Form'!S142),\"\"))","v":""},{"$f":"IF(M108<>\"\",O108,\"\")","v":""},108]
[{"$f":"IF('Blank - Request Form'!$F$6=\"CIFDN\",IF('Blank - Request Form'!D143=0,\"\",'Blank - Request Form'!D143),IF('Blank - Request Form'!$F$7=\"CIFDN\",IF('Blank - Request Form'!M143=0,\"\",'Blank - Request Form'!M143),\"\"))","v":""},{"$f":"IF('Blank - Request Form'!$F$6=\"CIFDN\",IF('Blank - Request Form'!E143=0,\"\",'Blank - Request Form'!E143),IF('Blank - Request Form'!$F$7=\"CIFDN\",IF('Blank - Request Form'!N143=0,\"\",'Blank - Request Form'!N143),\"\"))","v":""},{"$f":"IF('Blank - Request Form'!$F$6=\"CIFDN\",IF(OR('Blank - Request Form'!F143=\"000\",'Blank - Request Form'!F143=0),\"\",'Blank - Request Form'!F143),IF('Blank - Request Form'!$F$7=\"CIFDN\",IF(OR('Blank - Request Form'!O143=\"000\",'Blank - Request Form'!O143=0),\"\",'Blank - Request Form'!O143),\"\"))","v":""},{"$f":"IF('Blank - Request Form'!$F$6=\"CIFDN\",IF(OR('Blank - Request Form'!G143=\"0\",'Blank - Request Form'!G143=\"00000\",'Blank - Request Form'!G143=0),\"\",'Blank - Request Form'!G143),IF('Blank - Request Form'!$F$7=\"CIFDN\",IF(OR('Blank - Request Form'!P143=\"0\",'Blank - Request Form'!P143=\"00000\",'Blank - Request Form'!P143=0),\"\",'Blank - Request Form'!P143),\"\"))","v":""},{"$f":"IF('Blank - Request Form'!$F$6=\"CIFDN\",IF(OR('Blank - Request Form'!H143=\"0\",'Blank - Request Form'!H143=\"00000\",'Blank - Request Form'!H143=0),\"\",'Blank - Request Form'!H143),IF('Blank - Request Form'!$F$7=\"CIFDN\",IF(OR('Blank - Request Form'!Q143=\"0\",'Blank - Request Form'!Q143=\"00000\",'Blank - Request Form'!Q143=0),\"\",'Blank - Request Form'!Q143),\"\"))","v":""},{"$f":"IF('Blank - Request Form'!$F$6=\"CIFDN\",IF(OR('Blank - Request Form'!I143=\"0\",'Blank - Request Form'!I143=\"00000\",'Blank - Request Form'!I143=0),\"\",'Blank - Request Form'!I143),IF('Blank - Request Form'!$F$7=\"CIFDN\",IF(OR('Blank - Request Form'!R143=\"0\",'Blank - Request Form'!R143=\"00000\",'Blank - Request Form'!R143=0),\"\",'Blank - Request Form'!R143),\"\"))","v":""},null,{"$f":"IF('Blank - Request Form'!$F$6=\"CIFDN\",IF('Blank - Request Form'!K143=0,\"\",'Blank - Request Form'!K143),IF('Blank - Request Form'!$F$7=\"CIFDN\",IF('Blank - Request Form'!T143=0,\"\",'Blank - Request Form'!T143),\"\"))","v":""},null,null,null,{"$f":"IF(M109<>\"\",'Blank - Request Form'!$M$2,\"\")","v":""},{"$f":"IF('Blank - Request Form'!$F$6=\"CIFDN\",IF('Blank - Request Form'!J143=0,\"\",'Blank - Request Form'!J143),IF('Blank - Request Form'!$F$7=\"CIFDN\",IF('Blank - Request Form'!S143=0,\"\",'Blank - Request Form'!S143),\"\"))","v":""},"",109]
[{"$f":"IF('Blank - Request Form'!$F$6=\"CIFDN\",IF('Blank - Request Form'!D144=0,\"\",'Blank - Request Form'!D144),IF('Blank - Request Form'!$F$7=\"CIFDN\",IF('Blank - Request Form'!M144=0,\"\",'Blank - Request Form'!M144),\"\"))","v":""},{"$f":"IF('Blank - Request Form'!$F$6=\"CIFDN\",IF('Blank - Request Form'!E144=0,\"\",'Blank - Request Form'!E144),IF('Blank - Request Form'!$F$7=\"CIFDN\",IF('Blank - Request Form'!N144=0,\"\",'Blank - Request Form'!N144),\"\"))","v":""},{"$f":"IF('Blank - Request Form'!$F$6=\"CIFDN\",IF(OR('Blank - Request Form'!F144=\"000\",'Blank - Request Form'!F144=0),\"\",'Blank - Request Form'!F144),IF('Blank - Request Form'!$F$7=\"CIFDN\",IF(OR('Blank - Request Form'!O144=\"000\",'Blank - Request Form'!O144=0),\"\",'Blank - Request Form'!O144),\"\"))","v":""},{"$f":"IF('Blank - Request Form'!$F$6=\"CIFDN\",IF(OR('Blank - Request Form'!G144=\"0\",'Blank - Request Form'!G144=\"00000\",'Blank - Request Form'!G144=0),\"\",'Blank - Request Form'!G144),IF('Blank - Request Form'!$F$7=\"CIFDN\",IF(OR('Blank - Request Form'!P144=\"0\",'Blank - Request Form'!P144=\"00000\",'Blank - Request Form'!P144=0),\"\",'Blank - Request Form'!P144),\"\"))","v":""},{"$f":"IF('Blank - Request Form'!$F$6=\"CIFDN\",IF(OR('Blank - Request Form'!H144=\"0\",'Blank - Request Form'!H144=\"00000\",'Blank - Request Form'!H144=0),\"\",'Blank - Request Form'!H144),IF('Blank - Request Form'!$F$7=\"CIFDN\",IF(OR('Blank - Request Form'!Q144=\"0\",'Blank - Request Form'!Q144=\"00000\",'Blank - Request Form'!Q144=0),\"\",'Blank - Request Form'!Q144),\"\"))","v":""},{"$f":"IF('Blank - Request Form'!$F$6=\"CIFDN\",IF(OR('Blank - Request Form'!I144=\"0\",'Blank - Request Form'!I144=\"00000\",'Blank - Request Form'!I144=0),\"\",'Blank - Request Form'!I144),IF('Blank - Request Form'!$F$7=\"CIFDN\",IF(OR('Blank - Request Form'!R144=\"0\",'Blank - Request Form'!R144=\"00000\",'Blank - Request Form'!R144=0),\"\",'Blank - Request Form'!R144),\"\"))","v":""},null,{"$f":"IF('Blank - Request Form'!$F$6=\"CIFDN\",IF('Blank - Request Form'!K144=0,\"\",'Blank - Request Form'!K144),IF('Blank - Request Form'!$F$7=\"CIFDN\",IF('Blank - Request Form'!T144=0,\"\",'Blank - Request Form'!T144),\"\"))","v":""},null,null,null,{"$f":"IF(M110<>\"\",'Blank - Request Form'!$M$2,\"\")","v":""},{"$f":"IF('Blank - Request Form'!$F$6=\"CIFDN\",IF('Blank - Request Form'!J144=0,\"\",'Blank - Request Form'!J144),IF('Blank - Request Form'!$F$7=\"CIFDN\",IF('Blank - Request Form'!S144=0,\"\",'Blank - Request Form'!S144),\"\"))","v":""},"",110]
[{"$f":"IF('Blank - Request Form'!$F$6=\"CIFDN\",IF('Blank - Request Form'!D145=0,\"\",'Blank - Request Form'!D145),IF('Blank - Request Form'!$F$7=\"CIFDN\",IF('Blank - Request Form'!M145=0,\"\",'Blank - Request Form'!M145),\"\"))","v":""},{"$f":"IF('Blank - Request Form'!$F$6=\"CIFDN\",IF('Blank - Request Form'!E145=0,\"\",'Blank - Request Form'!E145),IF('Blank - Request Form'!$F$7=\"CIFDN\",IF('Blank - Request Form'!N145=0,\"\",'Blank - Request Form'!N145),\"\"))","v":""},{"$f":"IF('Blank - Request Form'!$F$6=\"CIFDN\",IF(OR('Blank - Request Form'!F145=\"000\",'Blank - Request Form'!F145=0),\"\",'Blank - Request Form'!F145),IF('Blank - Request Form'!$F$7=\"CIFDN\",IF(OR('Blank - Request Form'!O145=\"000\",'Blank - Request Form'!O145=0),\"\",'Blank - Request Form'!O145),\"\"))","v":""},{"$f":"IF('Blank - Request Form'!$F$6=\"CIFDN\",IF(OR('Blank - Request Form'!G145=\"0\",'Blank - Request Form'!G145=\"00000\",'Blank - Request Form'!G145=0),\"\",'Blank - Request Form'!G145),IF('Blank - Request Form'!$F$7=\"CIFDN\",IF(OR('Blank - Request Form'!P145=\"0\",'Blank - Request Form'!P145=\"00000\",'Blank - Request Form'!P145=0),\"\",'Blank - Request Form'!P145),\"\"))","v":""},{"$f":"IF('Blank - Request Form'!$F$6=\"CIFDN\",IF(OR('Blank - Request Form'!H145=\"0\",'Blank - Request Form'!H145=\"00000\",'Blank - Request Form'!H145=0),\"\",'Blank - Request Form'!H145),IF('Blank - Request Form'!$F$7=\"CIFDN\",IF(OR('Blank - Request Form'!Q145=\"0\",'Blank - Request Form'!Q145=\"00000\",'Blank - Request Form'!Q145=0),\"\",'Blank - Request Form'!Q145),\"\"))","v":""},{"$f":"IF('Blank - Request Form'!$F$6=\"CIFDN\",IF(OR('Blank - Request Form'!I145=\"0\",'Blank - Request Form'!I145=\"00000\",'Blank - Request Form'!I145=0),\"\",'Blank - Request Form'!I145),IF('Blank - Request Form'!$F$7=\"CIFDN\",IF(OR('Blank - Request Form'!R145=\"0\",'Blank - Request Form'!R145=\"00000\",'Blank - Request Form'!R145=0),\"\",'Blank - Request Form'!R145),\"\"))","v":""},null,{"$f":"IF('Blank - Request Form'!$F$6=\"CIFDN\",IF('Blank - Request Form'!K145=0,\"\",'Blank - Request Form'!K145),IF('Blank - Request Form'!$F$7=\"CIFDN\",IF('Blank - Request Form'!T145=0,\"\",'Blank - Request Form'!T145),\"\"))","v":""},null,null,null,{"$f":"IF(M111<>\"\",'Blank - Request Form'!$M$2,\"\")","v":""},{"$f":"IF('Blank - Request Form'!$F$6=\"CIFDN\",IF('Blank - Request Form'!J145=0,\"\",'Blank - Request Form'!J145),IF('Blank - Request Form'!$F$7=\"CIFDN\",IF('Blank - Request Form'!S145=0,\"\",'Blank - Request Form'!S145),\"\"))","v":""},"",111]
[{"$f":"IF('Blank - Request Form'!$F$6=\"CIFDN\",IF('Blank - Request Form'!D146=0,\"\",'Blank - Request Form'!D146),IF('Blank - Request Form'!$F$7=\"CIFDN\",IF('Blank - Request Form'!M146=0,\"\",'Blank - Request Form'!M146),\"\"))","v":""},{"$f":"IF('Blank - Request Form'!$F$6=\"CIFDN\",IF('Blank - Request Form'!E146=0,\"\",'Blank - Request Form'!E146),IF('Blank - Request Form'!$F$7=\"CIFDN\",IF('Blank - Request Form'!N146=0,\"\",'Blank - Request Form'!N146),\"\"))","v":""},{"$f":"IF('Blank - Request Form'!$F$6=\"CIFDN\",IF(OR('Blank - Request Form'!F146=\"000\",'Blank - Request Form'!F146=0),\"\",'Blank - Request Form'!F146),IF('Blank - Request Form'!$F$7=\"CIFDN\",IF(OR('Blank - Request Form'!O146=\"000\",'Blank - Request Form'!O146=0),\"\",'Blank - Request Form'!O146),\"\"))","v":""},{"$f":"IF('Blank - Request Form'!$F$6=\"CIFDN\",IF(OR('Blank - Request Form'!G146=\"0\",'Blank - Request Form'!G146=\"00000\",'Blank - Request Form'!G146=0),\"\",'Blank - Request Form'!G146),IF('Blank - Request Form'!$F$7=\"CIFDN\",IF(OR('Blank - Request Form'!P146=\"0\",'Blank - Request Form'!P146=\"00000\",'Blank - Request Form'!P146=0),\"\",'Blank - Request Form'!P146),\"\"))","v":""},{"$f":"IF('Blank - Request Form'!$F$6=\"CIFDN\",IF(OR('Blank - Request Form'!H146=\"0\",'Blank - Request Form'!H146=\"00000\",'Blank - Request Form'!H146=0),\"\",'Blank - Request Form'!H146),IF('Blank - Request Form'!$F$7=\"CIFDN\",IF(OR('Blank - Request Form'!Q146=\"0\",'Blank - Request Form'!Q146=\"00000\",'Blank - Request Form'!Q146=0),\"\",'Blank - Request Form'!Q146),\"\"))","v":""},{"$f":"IF('Blank - Request Form'!$F$6=\"CIFDN\",IF(OR('Blank - Request Form'!I146=\"0\",'Blank - Request Form'!I146=\"00000\",'Blank - Request Form'!I146=0),\"\",'Blank - Request Form'!I146),IF('Blank - Request Form'!$F$7=\"CIFDN\",IF(OR('Blank - Request Form'!R146=\"0\",'Blank - Request Form'!R146=\"00000\",'Blank - Request Form'!R146=0),\"\",'Blank - Request Form'!R146),\"\"))","v":""},null,{"$f":"IF('Blank - Request Form'!$F$6=\"CIFDN\",IF('Blank - Request Form'!K146=0,\"\",'Blank - Request Form'!K146),IF('Blank - Request Form'!$F$7=\"CIFDN\",IF('Blank - Request Form'!T146=0,\"\",'Blank - Request Form'!T146),\"\"))","v":""},null,null,null,{"$f":"IF(M112<>\"\",'Blank - Request Form'!$M$2,\"\")","v":""},{"$f":"IF('Blank - Request Form'!$F$6=\"CIFDN\",IF('Blank - Request Form'!J146=0,\"\",'Blank - Request Form'!J146),IF('Blank - Request Form'!$F$7=\"CIFDN\",IF('Blank - Request Form'!S146=0,\"\",'Blank - Request Form'!S146),\"\"))","v":""},"",112]
[{"$f":"IF('Blank - Request Form'!$F$6=\"CIFDN\",IF('Blank - Request Form'!D147=0,\"\",'Blank - Request Form'!D147),IF('Blank - Request Form'!$F$7=\"CIFDN\",IF('Blank - Request Form'!M147=0,\"\",'Blank - Request Form'!M147),\"\"))","v":""},{"$f":"IF('Blank - Request Form'!$F$6=\"CIFDN\",IF('Blank - Request Form'!E147=0,\"\",'Blank - Request Form'!E147),IF('Blank - Request Form'!$F$7=\"CIFDN\",IF('Blank - Request Form'!N147=0,\"\",'Blank - Request Form'!N147),\"\"))","v":""},{"$f":"IF('Blank - Request Form'!$F$6=\"CIFDN\",IF(OR('Blank - Request Form'!F147=\"000\",'Blank - Request Form'!F147=0),\"\",'Blank - Request Form'!F147),IF('Blank - Request Form'!$F$7=\"CIFDN\",IF(OR('Blank - Request Form'!O147=\"000\",'Blank - Request Form'!O147=0),\"\",'Blank - Request Form'!O147),\"\"))","v":""},{"$f":"IF('Blank - Request Form'!$F$6=\"CIFDN\",IF(OR('Blank - Request Form'!G147=\"0\",'Blank - Request Form'!G147=\"00000\",'Blank - Request Form'!G147=0),\"\",'Blank - Request Form'!G147),IF('Blank - Request Form'!$F$7=\"CIFDN\",IF(OR('Blank - Request Form'!P147=\"0\",'Blank - Request Form'!P147=\"00000\",'Blank - Request Form'!P147=0),\"\",'Blank - Request Form'!P147),\"\"))","v":""},{"$f":"IF('Blank - Request Form'!$F$6=\"CIFDN\",IF(OR('Blank - Request Form'!H147=\"0\",'Blank - Request Form'!H147=\"00000\",'Blank - Request Form'!H147=0),\"\",'Blank - Request Form'!H147),IF('Blank - Request Form'!$F$7=\"CIFDN\",IF(OR('Blank - Request Form'!Q147=\"0\",'Blank - Request Form'!Q147=\"00000\",'Blank - Request Form'!Q147=0),\"\",'Blank - Request Form'!Q147),\"\"))","v":""},{"$f":"IF('Blank - Request Form'!$F$6=\"CIFDN\",IF(OR('Blank - Request Form'!I147=\"0\",'Blank - Request Form'!I147=\"00000\",'Blank - Request Form'!I147=0),\"\",'Blank - Request Form'!I147),IF('Blank - Request Form'!$F$7=\"CIFDN\",IF(OR('Blank - Request Form'!R147=\"0\",'Blank - Request Form'!R147=\"00000\",'Blank - Request Form'!R147=0),\"\",'Blank - Request Form'!R147),\"\"))","v":""},null,{"$f":"IF('Blank - Request Form'!$F$6=\"CIFDN\",IF('Blank - Request Form'!K147=0,\"\",'Blank - Request Form'!K147),IF('Blank - Request Form'!$F$7=\"CIFDN\",IF('Blank - Request Form'!T147=0,\"\",'Blank - Request Form'!T147),\"\"))","v":""},null,null,null,{"$f":"IF(M113<>\"\",'Blank - Request Form'!$M$2,\"\")","v":""},{"$f":"IF('Blank - Request Form'!$F$6=\"CIFDN\",IF('Blank - Request Form'!J147=0,\"\",'Blank - Request Form'!J147),IF('Blank - Request Form'!$F$7=\"CIFDN\",IF('Blank - Request Form'!S147=0,\"\",'Blank - Request Form'!S147),\"\"))","v":""},"",113]
[{"$f":"IF('Blank - Request Form'!$F$6=\"CIFDN\",IF('Blank - Request Form'!D148=0,\"\",'Blank - Request Form'!D148),IF('Blank - Request Form'!$F$7=\"CIFDN\",IF('Blank - Request Form'!M148=0,\"\",'Blank - Request Form'!M148),\"\"))","v":""},{"$f":"IF('Blank - Request Form'!$F$6=\"CIFDN\",IF('Blank - Request Form'!E148=0,\"\",'Blank - Request Form'!E148),IF('Blank - Request Form'!$F$7=\"CIFDN\",IF('Blank - Request Form'!N148=0,\"\",'Blank - Request Form'!N148),\"\"))","v":""},{"$f":"IF('Blank - Request Form'!$F$6=\"CIFDN\",IF(OR('Blank - Request Form'!F148=\"000\",'Blank - Request Form'!F148=0),\"\",'Blank - Request Form'!F148),IF('Blank - Request Form'!$F$7=\"CIFDN\",IF(OR('Blank - Request Form'!O148=\"000\",'Blank - Request Form'!O148=0),\"\",'Blank - Request Form'!O148),\"\"))","v":""},{"$f":"IF('Blank - Request Form'!$F$6=\"CIFDN\",IF(OR('Blank - Request Form'!G148=\"0\",'Blank - Request Form'!G148=\"00000\",'Blank - Request Form'!G148=0),\"\",'Blank - Request Form'!G148),IF('Blank - Request Form'!$F$7=\"CIFDN\",IF(OR('Blank - Request Form'!P148=\"0\",'Blank - Request Form'!P148=\"00000\",'Blank - Request Form'!P148=0),\"\",'Blank - Request Form'!P148),\"\"))","v":""},{"$f":"IF('Blank - Request Form'!$F$6=\"CIFDN\",IF(OR('Blank - Request Form'!H148=\"0\",'Blank - Request Form'!H148=\"00000\",'Blank - Request Form'!H148=0),\"\",'Blank - Request Form'!H148),IF('Blank - Request Form'!$F$7=\"CIFDN\",IF(OR('Blank - Request Form'!Q148=\"0\",'Blank - Request Form'!Q148=\"00000\",'Blank - Request Form'!Q148=0),\"\",'Blank - Request Form'!Q148),\"\"))","v":""},{"$f":"IF('Blank - Request Form'!$F$6=\"CIFDN\",IF(OR('Blank - Request Form'!I148=\"0\",'Blank - Request Form'!I148=\"00000\",'Blank - Request Form'!I148=0),\"\",'Blank - Request Form'!I148),IF('Blank - Request Form'!$F$7=\"CIFDN\",IF(OR('Blank - Request Form'!R148=\"0\",'Blank - Request Form'!R148=\"00000\",'Blank - Request Form'!R148=0),\"\",'Blank - Request Form'!R148),\"\"))","v":""},null,{"$f":"IF('Blank - Request Form'!$F$6=\"CIFDN\",IF('Blank - Request Form'!K148=0,\"\",'Blank - Request Form'!K148),IF('Blank - Request Form'!$F$7=\"CIFDN\",IF('Blank - Request Form'!T148=0,\"\",'Blank - Request Form'!T148),\"\"))","v":""},null,null,null,{"$f":"IF(M114<>\"\",'Blank - Request Form'!$M$2,\"\")","v":""},{"$f":"IF('Blank - Request Form'!$F$6=\"CIFDN\",IF('Blank - Request Form'!J148=0,\"\",'Blank - Request Form'!J148),IF('Blank - Request Form'!$F$7=\"CIFDN\",IF('Blank - Request Form'!S148=0,\"\",'Blank - Request Form'!S148),\"\"))","v":""},"",114]
[{"$f":"IF('Blank - Request Form'!$F$6=\"CIFDN\",IF('Blank - Request Form'!D149=0,\"\",'Blank - Request Form'!D149),IF('Blank - Request Form'!$F$7=\"CIFDN\",IF('Blank - Request Form'!M149=0,\"\",'Blank - Request Form'!M149),\"\"))","v":""},{"$f":"IF('Blank - Request Form'!$F$6=\"CIFDN\",IF('Blank - Request Form'!E149=0,\"\",'Blank - Request Form'!E149),IF('Blank - Request Form'!$F$7=\"CIFDN\",IF('Blank - Request Form'!N149=0,\"\",'Blank - Request Form'!N149),\"\"))","v":""},{"$f":"IF('Blank - Request Form'!$F$6=\"CIFDN\",IF(OR('Blank - Request Form'!F149=\"000\",'Blank - Request Form'!F149=0),\"\",'Blank - Request Form'!F149),IF('Blank - Request Form'!$F$7=\"CIFDN\",IF(OR('Blank - Request Form'!O149=\"000\",'Blank - Request Form'!O149=0),\"\",'Blank - Request Form'!O149),\"\"))","v":""},{"$f":"IF('Blank - Request Form'!$F$6=\"CIFDN\",IF(OR('Blank - Request Form'!G149=\"0\",'Blank - Request Form'!G149=\"00000\",'Blank - Request Form'!G149=0),\"\",'Blank - Request Form'!G149),IF('Blank - Request Form'!$F$7=\"CIFDN\",IF(OR('Blank - Request Form'!P149=\"0\",'Blank - Request Form'!P149=\"00000\",'Blank - Request Form'!P149=0),\"\",'Blank - Request Form'!P149),\"\"))","v":""},{"$f":"IF('Blank - Request Form'!$F$6=\"CIFDN\",IF(OR('Blank - Request Form'!H149=\"0\",'Blank - Request Form'!H149=\"00000\",'Blank - Request Form'!H149=0),\"\",'Blank - Request Form'!H149),IF('Blank - Request Form'!$F$7=\"CIFDN\",IF(OR('Blank - Request Form'!Q149=\"0\",'Blank - Request Form'!Q149=\"00000\",'Blank - Request Form'!Q149=0),\"\",'Blank - Request Form'!Q149),\"\"))","v":""},{"$f":"IF('Blank - Request Form'!$F$6=\"CIFDN\",IF(OR('Blank - Request Form'!I149=\"0\",'Blank - Request Form'!I149=\"00000\",'Blank - Request Form'!I149=0),\"\",'Blank - Request Form'!I149),IF('Blank - Request Form'!$F$7=\"CIFDN\",IF(OR('Blank - Request Form'!R149=\"0\",'Blank - Request Form'!R149=\"00000\",'Blank - Request Form'!R149=0),\"\",'Blank - Request Form'!R149),\"\"))","v":""},null,{"$f":"IF('Blank - Request Form'!$F$6=\"CIFDN\",IF('Blank - Request Form'!K149=0,\"\",'Blank - Request Form'!K149),IF('Blank - Request Form'!$F$7=\"CIFDN\",IF('Blank - Request Form'!T149=0,\"\",'Blank - Request Form'!T149),\"\"))","v":""},null,null,null,{"$f":"IF(M115<>\"\",'Blank - Request Form'!$M$2,\"\")","v":""},{"$f":"IF('Blank - Request Form'!$F$6=\"CIFDN\",IF('Blank - Request Form'!J149=0,\"\",'Blank - Request Form'!J149),IF('Blank - Request Form'!$F$7=\"CIFDN\",IF('Blank - Request Form'!S149=0,\"\",'Blank - Request Form'!S149),\"\"))","v":""},"",115]
[{"$f":"IF('Blank - Request Form'!$F$6=\"CIFDN\",IF('Blank - Request Form'!D150=0,\"\",'Blank - Request Form'!D150),IF('Blank - Request Form'!$F$7=\"CIFDN\",IF('Blank - Request Form'!M150=0,\"\",'Blank - Request Form'!M150),\"\"))","v":""},{"$f":"IF('Blank - Request Form'!$F$6=\"CIFDN\",IF('Blank - Request Form'!E150=0,\"\",'Blank - Request Form'!E150),IF('Blank - Request Form'!$F$7=\"CIFDN\",IF('Blank - Request Form'!N150=0,\"\",'Blank - Request Form'!N150),\"\"))","v":""},{"$f":"IF('Blank - Request Form'!$F$6=\"CIFDN\",IF(OR('Blank - Request Form'!F150=\"000\",'Blank - Request Form'!F150=0),\"\",'Blank - Request Form'!F150),IF('Blank - Request Form'!$F$7=\"CIFDN\",IF(OR('Blank - Request Form'!O150=\"000\",'Blank - Request Form'!O150=0),\"\",'Blank - Request Form'!O150),\"\"))","v":""},{"$f":"IF('Blank - Request Form'!$F$6=\"CIFDN\",IF(OR('Blank - Request Form'!G150=\"0\",'Blank - Request Form'!G150=\"00000\",'Blank - Request Form'!G150=0),\"\",'Blank - Request Form'!G150),IF('Blank - Request Form'!$F$7=\"CIFDN\",IF(OR('Blank - Request Form'!P150=\"0\",'Blank - Request Form'!P150=\"00000\",'Blank - Request Form'!P150=0),\"\",'Blank - Request Form'!P150),\"\"))","v":""},{"$f":"IF('Blank - Request Form'!$F$6=\"CIFDN\",IF(OR('Blank - Request Form'!H150=\"0\",'Blank - Request Form'!H150=\"00000\",'Blank - Request Form'!H150=0),\"\",'Blank - Request Form'!H150),IF('Blank - Request Form'!$F$7=\"CIFDN\",IF(OR('Blank - Request Form'!Q150=\"0\",'Blank - Request Form'!Q150=\"00000\",'Blank - Request Form'!Q150=0),\"\",'Blank - Request Form'!Q150),\"\"))","v":""},{"$f":"IF('Blank - Request Form'!$F$6=\"CIFDN\",IF(OR('Blank - Request Form'!I150=\"0\",'Blank - Request Form'!I150=\"00000\",'Blank - Request Form'!I150=0),\"\",'Blank - Request Form'!I150),IF('Blank - Request Form'!$F$7=\"CIFDN\",IF(OR('Blank - Request Form'!R150=\"0\",'Blank - Request Form'!R150=\"00000\",'Blank - Request Form'!R150=0),\"\",'Blank - Request Form'!R150),\"\"))","v":""},null,{"$f":"IF('Blank - Request Form'!$F$6=\"CIFDN\",IF('Blank - Request Form'!K150=0,\"\",'Blank - Request Form'!K150),IF('Blank - Request Form'!$F$7=\"CIFDN\",IF('Blank - Request Form'!T150=0,\"\",'Blank - Request Form'!T150),\"\"))","v":""},null,null,null,{"$f":"IF(M116<>\"\",'Blank - Request Form'!$M$2,\"\")","v":""},{"$f":"IF('Blank - Request Form'!$F$6=\"CIFDN\",IF('Blank - Request Form'!J150=0,\"\",'Blank - Request Form'!J150),IF('Blank - Request Form'!$F$7=\"CIFDN\",IF('Blank - Request Form'!S150=0,\"\",'Blank - Request Form'!S150),\"\"))","v":""},"",116]
[{"$f":"IF('Blank - Request Form'!$F$6=\"CIFDN\",IF('Blank - Request Form'!D151=0,\"\",'Blank - Request Form'!D151),IF('Blank - Request Form'!$F$7=\"CIFDN\",IF('Blank - Request Form'!M151=0,\"\",'Blank - Request Form'!M151),\"\"))","v":""},{"$f":"IF('Blank - Request Form'!$F$6=\"CIFDN\",IF('Blank - Request Form'!E151=0,\"\",'Blank - Request Form'!E151),IF('Blank - Request Form'!$F$7=\"CIFDN\",IF('Blank - Request Form'!N151=0,\"\",'Blank - Request Form'!N151),\"\"))","v":""},{"$f":"IF('Blank - Request Form'!$F$6=\"CIFDN\",IF(OR('Blank - Request Form'!F151=\"000\",'Blank - Request Form'!F151=0),\"\",'Blank - Request Form'!F151),IF('Blank - Request Form'!$F$7=\"CIFDN\",IF(OR('Blank - Request Form'!O151=\"000\",'Blank - Request Form'!O151=0),\"\",'Blank - Request Form'!O151),\"\"))","v":""},{"$f":"IF('Blank - Request Form'!$F$6=\"CIFDN\",IF(OR('Blank - Request Form'!G151=\"0\",'Blank - Request Form'!G151=\"00000\",'Blank - Request Form'!G151=0),\"\",'Blank - Request Form'!G151),IF('Blank - Request Form'!$F$7=\"CIFDN\",IF(OR('Blank - Request Form'!P151=\"0\",'Blank - Request Form'!P151=\"00000\",'Blank - Request Form'!P151=0),\"\",'Blank - Request Form'!P151),\"\"))","v":""},{"$f":"IF('Blank - Request Form'!$F$6=\"CIFDN\",IF(OR('Blank - Request Form'!H151=\"0\",'Blank - Request Form'!H151=\"00000\",'Blank - Request Form'!H151=0),\"\",'Blank - Request Form'!H151),IF('Blank - Request Form'!$F$7=\"CIFDN\",IF(OR('Blank - Request Form'!Q151=\"0\",'Blank - Request Form'!Q151=\"00000\",'Blank - Request Form'!Q151=0),\"\",'Blank - Request Form'!Q151),\"\"))","v":""},{"$f":"IF('Blank - Request Form'!$F$6=\"CIFDN\",IF(OR('Blank - Request Form'!I151=\"0\",'Blank - Request Form'!I151=\"00000\",'Blank - Request Form'!I151=0),\"\",'Blank - Request Form'!I151),IF('Blank - Request Form'!$F$7=\"CIFDN\",IF(OR('Blank - Request Form'!R151=\"0\",'Blank - Request Form'!R151=\"00000\",'Blank - Request Form'!R151=0),\"\",'Blank - Request Form'!R151),\"\"))","v":""},null,{"$f":"IF('Blank - Request Form'!$F$6=\"CIFDN\",IF('Blank - Request Form'!K151=0,\"\",'Blank - Request Form'!K151),IF('Blank - Request Form'!$F$7=\"CIFDN\",IF('Blank - Request Form'!T151=0,\"\",'Blank - Request Form'!T151),\"\"))","v":""},null,null,null,{"$f":"IF(M117<>\"\",'Blank - Request Form'!$M$2,\"\")","v":""},{"$f":"IF('Blank - Request Form'!$F$6=\"CIFDN\",IF('Blank - Request Form'!J151=0,\"\",'Blank - Request Form'!J151),IF('Blank - Request Form'!$F$7=\"CIFDN\",IF('Blank - Request Form'!S151=0,\"\",'Blank - Request Form'!S151),\"\"))","v":""},"",117]
[{"$f":"IF('Blank - Request Form'!$F$6=\"CIFDN\",IF('Blank - Request Form'!D152=0,\"\",'Blank - Request Form'!D152),IF('Blank - Request Form'!$F$7=\"CIFDN\",IF('Blank - Request Form'!M152=0,\"\",'Blank - Request Form'!M152),\"\"))","v":""},{"$f":"IF('Blank - Request Form'!$F$6=\"CIFDN\",IF('Blank - Request Form'!E152=0,\"\",'Blank - Request Form'!E152),IF('Blank - Request Form'!$F$7=\"CIFDN\",IF('Blank - Request Form'!N152=0,\"\",'Blank - Request Form'!N152),\"\"))","v":""},{"$f":"IF('Blank - Request Form'!$F$6=\"CIFDN\",IF(OR('Blank - Request Form'!F152=\"000\",'Blank - Request Form'!F152=0),\"\",'Blank - Request Form'!F152),IF('Blank - Request Form'!$F$7=\"CIFDN\",IF(OR('Blank - Request Form'!O152=\"000\",'Blank - Request Form'!O152=0),\"\",'Blank - Request Form'!O152),\"\"))","v":""},{"$f":"IF('Blank - Request Form'!$F$6=\"CIFDN\",IF(OR('Blank - Request Form'!G152=\"0\",'Blank - Request Form'!G152=\"00000\",'Blank - Request Form'!G152=0),\"\",'Blank - Request Form'!G152),IF('Blank - Request Form'!$F$7=\"CIFDN\",IF(OR('Blank - Request Form'!P152=\"0\",'Blank - Request Form'!P152=\"00000\",'Blank - Request Form'!P152=0),\"\",'Blank - Request Form'!P152),\"\"))","v":""},{"$f":"IF('Blank - Request Form'!$F$6=\"CIFDN\",IF(OR('Blank - Request Form'!H152=\"0\",'Blank - Request Form'!H152=\"00000\",'Blank - Request Form'!H152=0),\"\",'Blank - Request Form'!H152),IF('Blank - Request Form'!$F$7=\"CIFDN\",IF(OR('Blank - Request Form'!Q152=\"0\",'Blank - Request Form'!Q152=\"00000\",'Blank - Request Form'!Q152=0),\"\",'Blank - Request Form'!Q152),\"\"))","v":""},{"$f":"IF('Blank - Request Form'!$F$6=\"CIFDN\",IF(OR('Blank - Request Form'!I152=\"0\",'Blank - Request Form'!I152=\"00000\",'Blank - Request Form'!I152=0),\"\",'Blank - Request Form'!I152),IF('Blank - Request Form'!$F$7=\"CIFDN\",IF(OR('Blank - Request Form'!R152=\"0\",'Blank - Request Form'!R152=\"00000\",'Blank - Request Form'!R152=0),\"\",'Blank - Request Form'!R152),\"\"))","v":""},null,{"$f":"IF('Blank - Request Form'!$F$6=\"CIFDN\",IF('Blank - Request Form'!K152=0,\"\",'Blank - Request Form'!K152),IF('Blank - Request Form'!$F$7=\"CIFDN\",IF('Blank - Request Form'!T152=0,\"\",'Blank - Request Form'!T152),\"\"))","v":""},null,null,null,{"$f":"IF(M118<>\"\",'Blank - Request Form'!$M$2,\"\")","v":""},{"$f":"IF('Blank - Request Form'!$F$6=\"CIFDN\",IF('Blank - Request Form'!J152=0,\"\",'Blank - Request Form'!J152),IF('Blank - Request Form'!$F$7=\"CIFDN\",IF('Blank - Request Form'!S152=0,\"\",'Blank - Request Form'!S152),\"\"))","v":""},"",118]
[{"$f":"IF('Blank - Request Form'!$F$6=\"CIFDN\",IF('Blank - Request Form'!D153=0,\"\",'Blank - Request Form'!D153),IF('Blank - Request Form'!$F$7=\"CIFDN\",IF('Blank - Request Form'!M153=0,\"\",'Blank - Request Form'!M153),\"\"))","v":""},{"$f":"IF('Blank - Request Form'!$F$6=\"CIFDN\",IF('Blank - Request Form'!E153=0,\"\",'Blank - Request Form'!E153),IF('Blank - Request Form'!$F$7=\"CIFDN\",IF('Blank - Request Form'!N153=0,\"\",'Blank - Request Form'!N153),\"\"))","v":""},{"$f":"IF('Blank - Request Form'!$F$6=\"CIFDN\",IF(OR('Blank - Request Form'!F153=\"000\",'Blank - Request Form'!F153=0),\"\",'Blank - Request Form'!F153),IF('Blank - Request Form'!$F$7=\"CIFDN\",IF(OR('Blank - Request Form'!O153=\"000\",'Blank - Request Form'!O153=0),\"\",'Blank - Request Form'!O153),\"\"))","v":""},{"$f":"IF('Blank - Request Form'!$F$6=\"CIFDN\",IF(OR('Blank - Request Form'!G153=\"0\",'Blank - Request Form'!G153=\"00000\",'Blank - Request Form'!G153=0),\"\",'Blank - Request Form'!G153),IF('Blank - Request Form'!$F$7=\"CIFDN\",IF(OR('Blank - Request Form'!P153=\"0\",'Blank - Request Form'!P153=\"00000\",'Blank - Request Form'!P153=0),\"\",'Blank - Request Form'!P153),\"\"))","v":""},{"$f":"IF('Blank - Request Form'!$F$6=\"CIFDN\",IF(OR('Blank - Request Form'!H153=\"0\",'Blank - Request Form'!H153=\"00000\",'Blank - Request Form'!H153=0),\"\",'Blank - Request Form'!H153),IF('Blank - Request Form'!$F$7=\"CIFDN\",IF(OR('Blank - Request Form'!Q153=\"0\",'Blank - Request Form'!Q153=\"00000\",'Blank - Request Form'!Q153=0),\"\",'Blank - Request Form'!Q153),\"\"))","v":""},{"$f":"IF('Blank - Request Form'!$F$6=\"CIFDN\",IF(OR('Blank - Request Form'!I153=\"0\",'Blank - Request Form'!I153=\"00000\",'Blank - Request Form'!I153=0),\"\",'Blank - Request Form'!I153),IF('Blank - Request Form'!$F$7=\"CIFDN\",IF(OR('Blank - Request Form'!R153=\"0\",'Blank - Request Form'!R153=\"00000\",'Blank - Request Form'!R153=0),\"\",'Blank - Request Form'!R153),\"\"))","v":""},null,{"$f":"IF('Blank - Request Form'!$F$6=\"CIFDN\",IF('Blank - Request Form'!K153=0,\"\",'Blank - Request Form'!K153),IF('Blank - Request Form'!$F$7=\"CIFDN\",IF('Blank - Request Form'!T153=0,\"\",'Blank - Request Form'!T153),\"\"))","v":""},null,null,null,{"$f":"IF(M119<>\"\",'Blank - Request Form'!$M$2,\"\")","v":""},{"$f":"IF('Blank - Request Form'!$F$6=\"CIFDN\",IF('Blank - Request Form'!J153=0,\"\",'Blank - Request Form'!J153),IF('Blank - Request Form'!$F$7=\"CIFDN\",IF('Blank - Request Form'!S153=0,\"\",'Blank - Request Form'!S153),\"\"))","v":""},"",119]
[{"$f":"IF('Blank - Request Form'!$F$6=\"CIFDN\",IF('Blank - Request Form'!D154=0,\"\",'Blank - Request Form'!D154),IF('Blank - Request Form'!$F$7=\"CIFDN\",IF('Blank - Request Form'!M154=0,\"\",'Blank - Request Form'!M154),\"\"))","v":""},{"$f":"IF('Blank - Request Form'!$F$6=\"CIFDN\",IF('Blank - Request Form'!E154=0,\"\",'Blank - Request Form'!E154),IF('Blank - Request Form'!$F$7=\"CIFDN\",IF('Blank - Request Form'!N154=0,\"\",'Blank - Request Form'!N154),\"\"))","v":""},{"$f":"IF('Blank - Request Form'!$F$6=\"CIFDN\",IF(OR('Blank - Request Form'!F154=\"000\",'Blank - Request Form'!F154=0),\"\",'Blank - Request Form'!F154),IF('Blank - Request Form'!$F$7=\"CIFDN\",IF(OR('Blank - Request Form'!O154=\"000\",'Blank - Request Form'!O154=0),\"\",'Blank - Request Form'!O154),\"\"))","v":""},{"$f":"IF('Blank - Request Form'!$F$6=\"CIFDN\",IF(OR('Blank - Request Form'!G154=\"0\",'Blank - Request Form'!G154=\"00000\",'Blank - Request Form'!G154=0),\"\",'Blank - Request Form'!G154),IF('Blank - Request Form'!$F$7=\"CIFDN\",IF(OR('Blank - Request Form'!P154=\"0\",'Blank - Request Form'!P154=\"00000\",'Blank - Request Form'!P154=0),\"\",'Blank - Request Form'!P154),\"\"))","v":""},{"$f":"IF('Blank - Request Form'!$F$6=\"CIFDN\",IF(OR('Blank - Request Form'!H154=\"0\",'Blank - Request Form'!H154=\"00000\",'Blank - Request Form'!H154=0),\"\",'Blank - Request Form'!H154),IF('Blank - Request Form'!$F$7=\"CIFDN\",IF(OR('Blank - Request Form'!Q154=\"0\",'Blank - Request Form'!Q154=\"00000\",'Blank - Request Form'!Q154=0),\"\",'Blank - Request Form'!Q154),\"\"))","v":""},{"$f":"IF('Blank - Request Form'!$F$6=\"CIFDN\",IF(OR('Blank - Request Form'!I154=\"0\",'Blank - Request Form'!I154=\"00000\",'Blank - Request Form'!I154=0),\"\",'Blank - Request Form'!I154),IF('Blank - Request Form'!$F$7=\"CIFDN\",IF(OR('Blank - Request Form'!R154=\"0\",'Blank - Request Form'!R154=\"00000\",'Blank - Request Form'!R154=0),\"\",'Blank - Request Form'!R154),\"\"))","v":""},null,{"$f":"IF('Blank - Request Form'!$F$6=\"CIFDN\",IF('Blank - Request Form'!K154=0,\"\",'Blank - Request Form'!K154),IF('Blank - Request Form'!$F$7=\"CIFDN\",IF('Blank - Request Form'!T154=0,\"\",'Blank - Request Form'!T154),\"\"))","v":""},null,null,null,{"$f":"IF(M120<>\"\",'Blank - Request Form'!$M$2,\"\")","v":""},{"$f":"IF('Blank - Request Form'!$F$6=\"CIFDN\",IF('Blank - Request Form'!J154=0,\"\",'Blank - Request Form'!J154),IF('Blank - Request Form'!$F$7=\"CIFDN\",IF('Blank - Request Form'!S154=0,\"\",'Blank - Request Form'!S154),\"\"))","v":""},"",120]
[{"$f":"IF('Blank - Request Form'!$F$6=\"CIFDN\",IF('Blank - Request Form'!D155=0,\"\",'Blank - Request Form'!D155),IF('Blank - Request Form'!$F$7=\"CIFDN\",IF('Blank - Request Form'!M155=0,\"\",'Blank - Request Form'!M155),\"\"))","v":""},{"$f":"IF('Blank - Request Form'!$F$6=\"CIFDN\",IF('Blank - Request Form'!E155=0,\"\",'Blank - Request Form'!E155),IF('Blank - Request Form'!$F$7=\"CIFDN\",IF('Blank - Request Form'!N155=0,\"\",'Blank - Request Form'!N155),\"\"))","v":""},{"$f":"IF('Blank - Request Form'!$F$6=\"CIFDN\",IF(OR('Blank - Request Form'!F155=\"000\",'Blank - Request Form'!F155=0),\"\",'Blank - Request Form'!F155),IF('Blank - Request Form'!$F$7=\"CIFDN\",IF(OR('Blank - Request Form'!O155=\"000\",'Blank - Request Form'!O155=0),\"\",'Blank - Request Form'!O155),\"\"))","v":""},{"$f":"IF('Blank - Request Form'!$F$6=\"CIFDN\",IF(OR('Blank - Request Form'!G155=\"0\",'Blank - Request Form'!G155=\"00000\",'Blank - Request Form'!G155=0),\"\",'Blank - Request Form'!G155),IF('Blank - Request Form'!$F$7=\"CIFDN\",IF(OR('Blank - Request Form'!P155=\"0\",'Blank - Request Form'!P155=\"00000\",'Blank - Request Form'!P155=0),\"\",'Blank - Request Form'!P155),\"\"))","v":""},{"$f":"IF('Blank - Request Form'!$F$6=\"CIFDN\",IF(OR('Blank - Request Form'!H155=\"0\",'Blank - Request Form'!H155=\"00000\",'Blank - Request Form'!H155=0),\"\",'Blank - Request Form'!H155),IF('Blank - Request Form'!$F$7=\"CIFDN\",IF(OR('Blank - Request Form'!Q155=\"0\",'Blank - Request Form'!Q155=\"00000\",'Blank - Request Form'!Q155=0),\"\",'Blank - Request Form'!Q155),\"\"))","v":""},{"$f":"IF('Blank - Request Form'!$F$6=\"CIFDN\",IF(OR('Blank - Request Form'!I155=\"0\",'Blank - Request Form'!I155=\"00000\",'Blank - Request Form'!I155=0),\"\",'Blank - Request Form'!I155),IF('Blank - Request Form'!$F$7=\"CIFDN\",IF(OR('Blank - Request Form'!R155=\"0\",'Blank - Request Form'!R155=\"00000\",'Blank - Request Form'!R155=0),\"\",'Blank - Request Form'!R155),\"\"))","v":""},null,{"$f":"IF('Blank - Request Form'!$F$6=\"CIFDN\",IF('Blank - Request Form'!K155=0,\"\",'Blank - Request Form'!K155),IF('Blank - Request Form'!$F$7=\"CIFDN\",IF('Blank - Request Form'!T155=0,\"\",'Blank - Request Form'!T155),\"\"))","v":""},null,null,null,{"$f":"IF(M121<>\"\",'Blank - Request Form'!$M$2,\"\")","v":""},{"$f":"IF('Blank - Request Form'!$F$6=\"CIFDN\",IF('Blank - Request Form'!J155=0,\"\",'Blank - Request Form'!J155),IF('Blank - Request Form'!$F$7=\"CIFDN\",IF('Blank - Request Form'!S155=0,\"\",'Blank - Request Form'!S155),\"\"))","v":""},"",121]
[{"$f":"IF('Blank - Request Form'!$F$6=\"CIFDN\",IF('Blank - Request Form'!D156=0,\"\",'Blank - Request Form'!D156),IF('Blank - Request Form'!$F$7=\"CIFDN\",IF('Blank - Request Form'!M156=0,\"\",'Blank - Request Form'!M156),\"\"))","v":""},{"$f":"IF('Blank - Request Form'!$F$6=\"CIFDN\",IF('Blank - Request Form'!E156=0,\"\",'Blank - Request Form'!E156),IF('Blank - Request Form'!$F$7=\"CIFDN\",IF('Blank - Request Form'!N156=0,\"\",'Blank - Request Form'!N156),\"\"))","v":""},{"$f":"IF('Blank - Request Form'!$F$6=\"CIFDN\",IF(OR('Blank - Request Form'!F156=\"000\",'Blank - Request Form'!F156=0),\"\",'Blank - Request Form'!F156),IF('Blank - Request Form'!$F$7=\"CIFDN\",IF(OR('Blank - Request Form'!O156=\"000\",'Blank - Request Form'!O156=0),\"\",'Blank - Request Form'!O156),\"\"))","v":""},{"$f":"IF('Blank - Request Form'!$F$6=\"CIFDN\",IF(OR('Blank - Request Form'!G156=\"0\",'Blank - Request Form'!G156=\"00000\",'Blank - Request Form'!G156=0),\"\",'Blank - Request Form'!G156),IF('Blank - Request Form'!$F$7=\"CIFDN\",IF(OR('Blank - Request Form'!P156=\"0\",'Blank - Request Form'!P156=\"00000\",'Blank - Request Form'!P156=0),\"\",'Blank - Request Form'!P156),\"\"))","v":""},{"$f":"IF('Blank - Request Form'!$F$6=\"CIFDN\",IF(OR('Blank - Request Form'!H156=\"0\",'Blank - Request Form'!H156=\"00000\",'Blank - Request Form'!H156=0),\"\",'Blank - Request Form'!H156),IF('Blank - Request Form'!$F$7=\"CIFDN\",IF(OR('Blank - Request Form'!Q156=\"0\",'Blank - Request Form'!Q156=\"00000\",'Blank - Request Form'!Q156=0),\"\",'Blank - Request Form'!Q156),\"\"))","v":""},{"$f":"IF('Blank - Request Form'!$F$6=\"CIFDN\",IF(OR('Blank - Request Form'!I156=\"0\",'Blank - Request Form'!I156=\"00000\",'Blank - Request Form'!I156=0),\"\",'Blank - Request Form'!I156),IF('Blank - Request Form'!$F$7=\"CIFDN\",IF(OR('Blank - Request Form'!R156=\"0\",'Blank - Request Form'!R156=\"00000\",'Blank - Request Form'!R156=0),\"\",'Blank - Request Form'!R156),\"\"))","v":""},null,{"$f":"IF('Blank - Request Form'!$F$6=\"CIFDN\",IF('Blank - Request Form'!K156=0,\"\",'Blank - Request Form'!K156),IF('Blank - Request Form'!$F$7=\"CIFDN\",IF('Blank - Request Form'!T156=0,\"\",'Blank - Request Form'!T156),\"\"))","v":""},null,null,null,{"$f":"IF(M122<>\"\",'Blank - Request Form'!$M$2,\"\")","v":""},{"$f":"IF('Blank - Request Form'!$F$6=\"CIFDN\",IF('Blank - Request Form'!J156=0,\"\",'Blank - Request Form'!J156),IF('Blank - Request Form'!$F$7=\"CIFDN\",IF('Blank - Request Form'!S156=0,\"\",'Blank - Request Form'!S156),\"\"))","v":""},"",122]
[{"$f":"IF('Blank - Request Form'!$F$6=\"CIFDN\",IF('Blank - Request Form'!D157=0,\"\",'Blank - Request Form'!D157),IF('Blank - Request Form'!$F$7=\"CIFDN\",IF('Blank - Request Form'!M157=0,\"\",'Blank - Request Form'!M157),\"\"))","v":""},{"$f":"IF('Blank - Request Form'!$F$6=\"CIFDN\",IF('Blank - Request Form'!E157=0,\"\",'Blank - Request Form'!E157),IF('Blank - Request Form'!$F$7=\"CIFDN\",IF('Blank - Request Form'!N157=0,\"\",'Blank - Request Form'!N157),\"\"))","v":""},{"$f":"IF('Blank - Request Form'!$F$6=\"CIFDN\",IF(OR('Blank - Request Form'!F157=\"000\",'Blank - Request Form'!F157=0),\"\",'Blank - Request Form'!F157),IF('Blank - Request Form'!$F$7=\"CIFDN\",IF(OR('Blank - Request Form'!O157=\"000\",'Blank - Request Form'!O157=0),\"\",'Blank - Request Form'!O157),\"\"))","v":""},{"$f":"IF('Blank - Request Form'!$F$6=\"CIFDN\",IF(OR('Blank - Request Form'!G157=\"0\",'Blank - Request Form'!G157=\"00000\",'Blank - Request Form'!G157=0),\"\",'Blank - Request Form'!G157),IF('Blank - Request Form'!$F$7=\"CIFDN\",IF(OR('Blank - Request Form'!P157=\"0\",'Blank - Request Form'!P157=\"00000\",'Blank - Request Form'!P157=0),\"\",'Blank - Request Form'!P157),\"\"))","v":""},{"$f":"IF('Blank - Request Form'!$F$6=\"CIFDN\",IF(OR('Blank - Request Form'!H157=\"0\",'Blank - Request Form'!H157=\"00000\",'Blank - Request Form'!H157=0),\"\",'Blank - Request Form'!H157),IF('Blank - Request Form'!$F$7=\"CIFDN\",IF(OR('Blank - Request Form'!Q157=\"0\",'Blank - Request Form'!Q157=\"00000\",'Blank - Request Form'!Q157=0),\"\",'Blank - Request Form'!Q157),\"\"))","v":""},{"$f":"IF('Blank - Request Form'!$F$6=\"CIFDN\",IF(OR('Blank - Request Form'!I157=\"0\",'Blank - Request Form'!I157=\"00000\",'Blank - Request Form'!I157=0),\"\",'Blank - Request Form'!I157),IF('Blank - Request Form'!$F$7=\"CIFDN\",IF(OR('Blank - Request Form'!R157=\"0\",'Blank - Request Form'!R157=\"00000\",'Blank - Request Form'!R157=0),\"\",'Blank - Request Form'!R157),\"\"))","v":""},null,{"$f":"IF('Blank - Request Form'!$F$6=\"CIFDN\",IF('Blank - Request Form'!K157=0,\"\",'Blank - Request Form'!K157),IF('Blank - Request Form'!$F$7=\"CIFDN\",IF('Blank - Request Form'!T157=0,\"\",'Blank - Request Form'!T157),\"\"))","v":""},null,null,null,{"$f":"IF(M123<>\"\",'Blank - Request Form'!$M$2,\"\")","v":""},{"$f":"IF('Blank - Request Form'!$F$6=\"CIFDN\",IF('Blank - Request Form'!J157=0,\"\",'Blank - Request Form'!J157),IF('Blank - Request Form'!$F$7=\"CIFDN\",IF('Blank - Request Form'!S157=0,\"\",'Blank - Request Form'!S157),\"\"))","v":""},"",123]
[{"$f":"IF('Blank - Request Form'!$F$6=\"CIFDN\",IF('Blank - Request Form'!D158=0,\"\",'Blank - Request Form'!D158),IF('Blank - Request Form'!$F$7=\"CIFDN\",IF('Blank - Request Form'!M158=0,\"\",'Blank - Request Form'!M158),\"\"))","v":""},{"$f":"IF('Blank - Request Form'!$F$6=\"CIFDN\",IF('Blank - Request Form'!E158=0,\"\",'Blank - Request Form'!E158),IF('Blank - Request Form'!$F$7=\"CIFDN\",IF('Blank - Request Form'!N158=0,\"\",'Blank - Request Form'!N158),\"\"))","v":""},{"$f":"IF('Blank - Request Form'!$F$6=\"CIFDN\",IF(OR('Blank - Request Form'!F158=\"000\",'Blank - Request Form'!F158=0),\"\",'Blank - Request Form'!F158),IF('Blank - Request Form'!$F$7=\"CIFDN\",IF(OR('Blank - Request Form'!O158=\"000\",'Blank - Request Form'!O158=0),\"\",'Blank - Request Form'!O158),\"\"))","v":""},{"$f":"IF('Blank - Request Form'!$F$6=\"CIFDN\",IF(OR('Blank - Request Form'!G158=\"0\",'Blank - Request Form'!G158=\"00000\",'Blank - Request Form'!G158=0),\"\",'Blank - Request Form'!G158),IF('Blank - Request Form'!$F$7=\"CIFDN\",IF(OR('Blank - Request Form'!P158=\"0\",'Blank - Request Form'!P158=\"00000\",'Blank - Request Form'!P158=0),\"\",'Blank - Request Form'!P158),\"\"))","v":""},{"$f":"IF('Blank - Request Form'!$F$6=\"CIFDN\",IF(OR('Blank - Request Form'!H158=\"0\",'Blank - Request Form'!H158=\"00000\",'Blank - Request Form'!H158=0),\"\",'Blank - Request Form'!H158),IF('Blank - Request Form'!$F$7=\"CIFDN\",IF(OR('Blank - Request Form'!Q158=\"0\",'Blank - Request Form'!Q158=\"00000\",'Blank - Request Form'!Q158=0),\"\",'Blank - Request Form'!Q158),\"\"))","v":""},{"$f":"IF('Blank - Request Form'!$F$6=\"CIFDN\",IF(OR('Blank - Request Form'!I158=\"0\",'Blank - Request Form'!I158=\"00000\",'Blank - Request Form'!I158=0),\"\",'Blank - Request Form'!I158),IF('Blank - Request Form'!$F$7=\"CIFDN\",IF(OR('Blank - Request Form'!R158=\"0\",'Blank - Request Form'!R158=\"00000\",'Blank - Request Form'!R158=0),\"\",'Blank - Request Form'!R158),\"\"))","v":""},null,{"$f":"IF('Blank - Request Form'!$F$6=\"CIFDN\",IF('Blank - Request Form'!K158=0,\"\",'Blank - Request Form'!K158),IF('Blank - Request Form'!$F$7=\"CIFDN\",IF('Blank - Request Form'!T158=0,\"\",'Blank - Request Form'!T158),\"\"))","v":""},null,null,null,{"$f":"IF(M124<>\"\",'Blank - Request Form'!$M$2,\"\")","v":""},{"$f":"IF('Blank - Request Form'!$F$6=\"CIFDN\",IF('Blank - Request Form'!J158=0,\"\",'Blank - Request Form'!J158),IF('Blank - Request Form'!$F$7=\"CIFDN\",IF('Blank - Request Form'!S158=0,\"\",'Blank - Request Form'!S158),\"\"))","v":""},"",124]
[{"$f":"IF('Blank - Request Form'!$F$6=\"CIFDN\",IF('Blank - Request Form'!D159=0,\"\",'Blank - Request Form'!D159),IF('Blank - Request Form'!$F$7=\"CIFDN\",IF('Blank - Request Form'!M159=0,\"\",'Blank - Request Form'!M159),\"\"))","v":""},{"$f":"IF('Blank - Request Form'!$F$6=\"CIFDN\",IF('Blank - Request Form'!E159=0,\"\",'Blank - Request Form'!E159),IF('Blank - Request Form'!$F$7=\"CIFDN\",IF('Blank - Request Form'!N159=0,\"\",'Blank - Request Form'!N159),\"\"))","v":""},{"$f":"IF('Blank - Request Form'!$F$6=\"CIFDN\",IF(OR('Blank - Request Form'!F159=\"000\",'Blank - Request Form'!F159=0),\"\",'Blank - Request Form'!F159),IF('Blank - Request Form'!$F$7=\"CIFDN\",IF(OR('Blank - Request Form'!O159=\"000\",'Blank - Request Form'!O159=0),\"\",'Blank - Request Form'!O159),\"\"))","v":""},{"$f":"IF('Blank - Request Form'!$F$6=\"CIFDN\",IF(OR('Blank - Request Form'!G159=\"0\",'Blank - Request Form'!G159=\"00000\",'Blank - Request Form'!G159=0),\"\",'Blank - Request Form'!G159),IF('Blank - Request Form'!$F$7=\"CIFDN\",IF(OR('Blank - Request Form'!P159=\"0\",'Blank - Request Form'!P159=\"00000\",'Blank - Request Form'!P159=0),\"\",'Blank - Request Form'!P159),\"\"))","v":""},{"$f":"IF('Blank - Request Form'!$F$6=\"CIFDN\",IF(OR('Blank - Request Form'!H159=\"0\",'Blank - Request Form'!H159=\"00000\",'Blank - Request Form'!H159=0),\"\",'Blank - Request Form'!H159),IF('Blank - Request Form'!$F$7=\"CIFDN\",IF(OR('Blank - Request Form'!Q159=\"0\",'Blank - Request Form'!Q159=\"00000\",'Blank - Request Form'!Q159=0),\"\",'Blank - Request Form'!Q159),\"\"))","v":""},{"$f":"IF('Blank - Request Form'!$F$6=\"CIFDN\",IF(OR('Blank - Request Form'!I159=\"0\",'Blank - Request Form'!I159=\"00000\",'Blank - Request Form'!I159=0),\"\",'Blank - Request Form'!I159),IF('Blank - Request Form'!$F$7=\"CIFDN\",IF(OR('Blank - Request Form'!R159=\"0\",'Blank - Request Form'!R159=\"00000\",'Blank - Request Form'!R159=0),\"\",'Blank - Request Form'!R159),\"\"))","v":""},null,{"$f":"IF('Blank - Request Form'!$F$6=\"CIFDN\",IF('Blank - Request Form'!K159=0,\"\",'Blank - Request Form'!K159),IF('Blank - Request Form'!$F$7=\"CIFDN\",IF('Blank - Request Form'!T159=0,\"\",'Blank - Request Form'!T159),\"\"))","v":""},null,null,null,{"$f":"IF(M125<>\"\",'Blank - Request Form'!$M$2,\"\")","v":""},{"$f":"IF('Blank - Request Form'!$F$6=\"CIFDN\",IF('Blank - Request Form'!J159=0,\"\",'Blank - Request Form'!J159),IF('Blank - Request Form'!$F$7=\"CIFDN\",IF('Blank - Request Form'!S159=0,\"\",'Blank - Request Form'!S159),\"\"))","v":""},"",125]
[{"$f":"IF('Blank - Request Form'!$F$6=\"CIFDN\",IF('Blank - Request Form'!D160=0,\"\",'Blank - Request Form'!D160),IF('Blank - Request Form'!$F$7=\"CIFDN\",IF('Blank - Request Form'!M160=0,\"\",'Blank - Request Form'!M160),\"\"))","v":""},{"$f":"IF('Blank - Request Form'!$F$6=\"CIFDN\",IF('Blank - Request Form'!E160=0,\"\",'Blank - Request Form'!E160),IF('Blank - Request Form'!$F$7=\"CIFDN\",IF('Blank - Request Form'!N160=0,\"\",'Blank - Request Form'!N160),\"\"))","v":""},{"$f":"IF('Blank - Request Form'!$F$6=\"CIFDN\",IF(OR('Blank - Request Form'!F160=\"000\",'Blank - Request Form'!F160=0),\"\",'Blank - Request Form'!F160),IF('Blank - Request Form'!$F$7=\"CIFDN\",IF(OR('Blank - Request Form'!O160=\"000\",'Blank - Request Form'!O160=0),\"\",'Blank - Request Form'!O160),\"\"))","v":""},{"$f":"IF('Blank - Request Form'!$F$6=\"CIFDN\",IF(OR('Blank - Request Form'!G160=\"0\",'Blank - Request Form'!G160=\"00000\",'Blank - Request Form'!G160=0),\"\",'Blank - Request Form'!G160),IF('Blank - Request Form'!$F$7=\"CIFDN\",IF(OR('Blank - Request Form'!P160=\"0\",'Blank - Request Form'!P160=\"00000\",'Blank - Request Form'!P160=0),\"\",'Blank - Request Form'!P160),\"\"))","v":""},{"$f":"IF('Blank - Request Form'!$F$6=\"CIFDN\",IF(OR('Blank - Request Form'!H160=\"0\",'Blank - Request Form'!H160=\"00000\",'Blank - Request Form'!H160=0),\"\",'Blank - Request Form'!H160),IF('Blank - Request Form'!$F$7=\"CIFDN\",IF(OR('Blank - Request Form'!Q160=\"0\",'Blank - Request Form'!Q160=\"00000\",'Blank - Request Form'!Q160=0),\"\",'Blank - Request Form'!Q160),\"\"))","v":""},{"$f":"IF('Blank - Request Form'!$F$6=\"CIFDN\",IF(OR('Blank - Request Form'!I160=\"0\",'Blank - Request Form'!I160=\"00000\",'Blank - Request Form'!I160=0),\"\",'Blank - Request Form'!I160),IF('Blank - Request Form'!$F$7=\"CIFDN\",IF(OR('Blank - Request Form'!R160=\"0\",'Blank - Request Form'!R160=\"00000\",'Blank - Request Form'!R160=0),\"\",'Blank - Request Form'!R160),\"\"))","v":""},null,{"$f":"IF('Blank - Request Form'!$F$6=\"CIFDN\",IF('Blank - Request Form'!K160=0,\"\",'Blank - Request Form'!K160),IF('Blank - Request Form'!$F$7=\"CIFDN\",IF('Blank - Request Form'!T160=0,\"\",'Blank - Request Form'!T160),\"\"))","v":""},null,null,null,{"$f":"IF(M126<>\"\",'Blank - Request Form'!$M$2,\"\")","v":""},{"$f":"IF('Blank - Request Form'!$F$6=\"CIFDN\",IF('Blank - Request Form'!J160=0,\"\",'Blank - Request Form'!J160),IF('Blank - Request Form'!$F$7=\"CIFDN\",IF('Blank - Request Form'!S160=0,\"\",'Blank - Request Form'!S160),\"\"))","v":""},"",126]
[{"$f":"IF('Blank - Request Form'!$F$6=\"CIFDN\",IF('Blank - Request Form'!D161=0,\"\",'Blank - Request Form'!D161),IF('Blank - Request Form'!$F$7=\"CIFDN\",IF('Blank - Request Form'!M161=0,\"\",'Blank - Request Form'!M161),\"\"))","v":""},{"$f":"IF('Blank - Request Form'!$F$6=\"CIFDN\",IF('Blank - Request Form'!E161=0,\"\",'Blank - Request Form'!E161),IF('Blank - Request Form'!$F$7=\"CIFDN\",IF('Blank - Request Form'!N161=0,\"\",'Blank - Request Form'!N161),\"\"))","v":""},{"$f":"IF('Blank - Request Form'!$F$6=\"CIFDN\",IF(OR('Blank - Request Form'!F161=\"000\",'Blank - Request Form'!F161=0),\"\",'Blank - Request Form'!F161),IF('Blank - Request Form'!$F$7=\"CIFDN\",IF(OR('Blank - Request Form'!O161=\"000\",'Blank - Request Form'!O161=0),\"\",'Blank - Request Form'!O161),\"\"))","v":""},{"$f":"IF('Blank - Request Form'!$F$6=\"CIFDN\",IF(OR('Blank - Request Form'!G161=\"0\",'Blank - Request Form'!G161=\"00000\",'Blank - Request Form'!G161=0),\"\",'Blank - Request Form'!G161),IF('Blank - Request Form'!$F$7=\"CIFDN\",IF(OR('Blank - Request Form'!P161=\"0\",'Blank - Request Form'!P161=\"00000\",'Blank - Request Form'!P161=0),\"\",'Blank - Request Form'!P161),\"\"))","v":""},{"$f":"IF('Blank - Request Form'!$F$6=\"CIFDN\",IF(OR('Blank - Request Form'!H161=\"0\",'Blank - Request Form'!H161=\"00000\",'Blank - Request Form'!H161=0),\"\",'Blank - Request Form'!H161),IF('Blank - Request Form'!$F$7=\"CIFDN\",IF(OR('Blank - Request Form'!Q161=\"0\",'Blank - Request Form'!Q161=\"00000\",'Blank - Request Form'!Q161=0),\"\",'Blank - Request Form'!Q161),\"\"))","v":""},{"$f":"IF('Blank - Request Form'!$F$6=\"CIFDN\",IF(OR('Blank - Request Form'!I161=\"0\",'Blank - Request Form'!I161=\"00000\",'Blank - Request Form'!I161=0),\"\",'Blank - Request Form'!I161),IF('Blank - Request Form'!$F$7=\"CIFDN\",IF(OR('Blank - Request Form'!R161=\"0\",'Blank - Request Form'!R161=\"00000\",'Blank - Request Form'!R161=0),\"\",'Blank - Request Form'!R161),\"\"))","v":""},null,{"$f":"IF('Blank - Request Form'!$F$6=\"CIFDN\",IF('Blank - Request Form'!K161=0,\"\",'Blank - Request Form'!K161),IF('Blank - Request Form'!$F$7=\"CIFDN\",IF('Blank - Request Form'!T161=0,\"\",'Blank - Request Form'!T161),\"\"))","v":""},null,null,null,{"$f":"IF(M127<>\"\",'Blank - Request Form'!$M$2,\"\")","v":""},{"$f":"IF('Blank - Request Form'!$F$6=\"CIFDN\",IF('Blank - Request Form'!J161=0,\"\",'Blank - Request Form'!J161),IF('Blank - Request Form'!$F$7=\"CIFDN\",IF('Blank - Request Form'!S161=0,\"\",'Blank - Request Form'!S161),\"\"))","v":""},"",127]
[{"$f":"IF('Blank - Request Form'!$F$6=\"CIFDN\",IF('Blank - Request Form'!D162=0,\"\",'Blank - Request Form'!D162),IF('Blank - Request Form'!$F$7=\"CIFDN\",IF('Blank - Request Form'!M162=0,\"\",'Blank - Request Form'!M162),\"\"))","v":""},{"$f":"IF('Blank - Request Form'!$F$6=\"CIFDN\",IF('Blank - Request Form'!E162=0,\"\",'Blank - Request Form'!E162),IF('Blank - Request Form'!$F$7=\"CIFDN\",IF('Blank - Request Form'!N162=0,\"\",'Blank - Request Form'!N162),\"\"))","v":""},{"$f":"IF('Blank - Request Form'!$F$6=\"CIFDN\",IF(OR('Blank - Request Form'!F162=\"000\",'Blank - Request Form'!F162=0),\"\",'Blank - Request Form'!F162),IF('Blank - Request Form'!$F$7=\"CIFDN\",IF(OR('Blank - Request Form'!O162=\"000\",'Blank - Request Form'!O162=0),\"\",'Blank - Request Form'!O162),\"\"))","v":""},{"$f":"IF('Blank - Request Form'!$F$6=\"CIFDN\",IF(OR('Blank - Request Form'!G162=\"0\",'Blank - Request Form'!G162=\"00000\",'Blank - Request Form'!G162=0),\"\",'Blank - Request Form'!G162),IF('Blank - Request Form'!$F$7=\"CIFDN\",IF(OR('Blank - Request Form'!P162=\"0\",'Blank - Request Form'!P162=\"00000\",'Blank - Request Form'!P162=0),\"\",'Blank - Request Form'!P162),\"\"))","v":""},{"$f":"IF('Blank - Request Form'!$F$6=\"CIFDN\",IF(OR('Blank - Request Form'!H162=\"0\",'Blank - Request Form'!H162=\"00000\",'Blank - Request Form'!H162=0),\"\",'Blank - Request Form'!H162),IF('Blank - Request Form'!$F$7=\"CIFDN\",IF(OR('Blank - Request Form'!Q162=\"0\",'Blank - Request Form'!Q162=\"00000\",'Blank - Request Form'!Q162=0),\"\",'Blank - Request Form'!Q162),\"\"))","v":""},{"$f":"IF('Blank - Request Form'!$F$6=\"CIFDN\",IF(OR('Blank - Request Form'!I162=\"0\",'Blank - Request Form'!I162=\"00000\",'Blank - Request Form'!I162=0),\"\",'Blank - Request Form'!I162),IF('Blank - Request Form'!$F$7=\"CIFDN\",IF(OR('Blank - Request Form'!R162=\"0\",'Blank - Request Form'!R162=\"00000\",'Blank - Request Form'!R162=0),\"\",'Blank - Request Form'!R162),\"\"))","v":""},null,{"$f":"IF('Blank - Request Form'!$F$6=\"CIFDN\",IF('Blank - Request Form'!K162=0,\"\",'Blank - Request Form'!K162),IF('Blank - Request Form'!$F$7=\"CIFDN\",IF('Blank - Request Form'!T162=0,\"\",'Blank - Request Form'!T162),\"\"))","v":""},null,null,null,{"$f":"IF(M128<>\"\",'Blank - Request Form'!$M$2,\"\")","v":""},{"$f":"IF('Blank - Request Form'!$F$6=\"CIFDN\",IF('Blank - Request Form'!J162=0,\"\",'Blank - Request Form'!J162),IF('Blank - Request Form'!$F$7=\"CIFDN\",IF('Blank - Request Form'!S162=0,\"\",'Blank - Request Form'!S162),\"\"))","v":""},"",128]
[{"$f":"IF('Blank - Request Form'!$F$6=\"CIFDN\",IF('Blank - Request Form'!D163=0,\"\",'Blank - Request Form'!D163),IF('Blank - Request Form'!$F$7=\"CIFDN\",IF('Blank - Request Form'!M163=0,\"\",'Blank - Request Form'!M163),\"\"))","v":""},{"$f":"IF('Blank - Request Form'!$F$6=\"CIFDN\",IF('Blank - Request Form'!E163=0,\"\",'Blank - Request Form'!E163),IF('Blank - Request Form'!$F$7=\"CIFDN\",IF('Blank - Request Form'!N163=0,\"\",'Blank - Request Form'!N163),\"\"))","v":""},{"$f":"IF('Blank - Request Form'!$F$6=\"CIFDN\",IF(OR('Blank - Request Form'!F163=\"000\",'Blank - Request Form'!F163=0),\"\",'Blank - Request Form'!F163),IF('Blank - Request Form'!$F$7=\"CIFDN\",IF(OR('Blank - Request Form'!O163=\"000\",'Blank - Request Form'!O163=0),\"\",'Blank - Request Form'!O163),\"\"))","v":""},{"$f":"IF('Blank - Request Form'!$F$6=\"CIFDN\",IF(OR('Blank - Request Form'!G163=\"0\",'Blank - Request Form'!G163=\"00000\",'Blank - Request Form'!G163=0),\"\",'Blank - Request Form'!G163),IF('Blank - Request Form'!$F$7=\"CIFDN\",IF(OR('Blank - Request Form'!P163=\"0\",'Blank - Request Form'!P163=\"00000\",'Blank - Request Form'!P163=0),\"\",'Blank - Request Form'!P163),\"\"))","v":""},{"$f":"IF('Blank - Request Form'!$F$6=\"CIFDN\",IF(OR('Blank - Request Form'!H163=\"0\",'Blank - Request Form'!H163=\"00000\",'Blank - Request Form'!H163=0),\"\",'Blank - Request Form'!H163),IF('Blank - Request Form'!$F$7=\"CIFDN\",IF(OR('Blank - Request Form'!Q163=\"0\",'Blank - Request Form'!Q163=\"00000\",'Blank - Request Form'!Q163=0),\"\",'Blank - Request Form'!Q163),\"\"))","v":""},{"$f":"IF('Blank - Request Form'!$F$6=\"CIFDN\",IF(OR('Blank - Request Form'!I163=\"0\",'Blank - Request Form'!I163=\"00000\",'Blank - Request Form'!I163=0),\"\",'Blank - Request Form'!I163),IF('Blank - Request Form'!$F$7=\"CIFDN\",IF(OR('Blank - Request Form'!R163=\"0\",'Blank - Request Form'!R163=\"00000\",'Blank - Request Form'!R163=0),\"\",'Blank - Request Form'!R163),\"\"))","v":""},null,{"$f":"IF('Blank - Request Form'!$F$6=\"CIFDN\",IF('Blank - Request Form'!K163=0,\"\",'Blank - Request Form'!K163),IF('Blank - Request Form'!$F$7=\"CIFDN\",IF('Blank - Request Form'!T163=0,\"\",'Blank - Request Form'!T163),\"\"))","v":""},null,null,null,{"$f":"IF(M129<>\"\",'Blank - Request Form'!$M$2,\"\")","v":""},{"$f":"IF('Blank - Request Form'!$F$6=\"CIFDN\",IF('Blank - Request Form'!J163=0,\"\",'Blank - Request Form'!J163),IF('Blank - Request Form'!$F$7=\"CIFDN\",IF('Blank - Request Form'!S163=0,\"\",'Blank - Request Form'!S163),\"\"))","v":""},"",129]
[{"$f":"IF('Blank - Request Form'!$F$6=\"CIFDN\",IF('Blank - Request Form'!D164=0,\"\",'Blank - Request Form'!D164),IF('Blank - Request Form'!$F$7=\"CIFDN\",IF('Blank - Request Form'!M164=0,\"\",'Blank - Request Form'!M164),\"\"))","v":""},{"$f":"IF('Blank - Request Form'!$F$6=\"CIFDN\",IF('Blank - Request Form'!E164=0,\"\",'Blank - Request Form'!E164),IF('Blank - Request Form'!$F$7=\"CIFDN\",IF('Blank - Request Form'!N164=0,\"\",'Blank - Request Form'!N164),\"\"))","v":""},{"$f":"IF('Blank - Request Form'!$F$6=\"CIFDN\",IF(OR('Blank - Request Form'!F164=\"000\",'Blank - Request Form'!F164=0),\"\",'Blank - Request Form'!F164),IF('Blank - Request Form'!$F$7=\"CIFDN\",IF(OR('Blank - Request Form'!O164=\"000\",'Blank - Request Form'!O164=0),\"\",'Blank - Request Form'!O164),\"\"))","v":""},{"$f":"IF('Blank - Request Form'!$F$6=\"CIFDN\",IF(OR('Blank - Request Form'!G164=\"0\",'Blank - Request Form'!G164=\"00000\",'Blank - Request Form'!G164=0),\"\",'Blank - Request Form'!G164),IF('Blank - Request Form'!$F$7=\"CIFDN\",IF(OR('Blank - Request Form'!P164=\"0\",'Blank - Request Form'!P164=\"00000\",'Blank - Request Form'!P164=0),\"\",'Blank - Request Form'!P164),\"\"))","v":""},{"$f":"IF('Blank - Request Form'!$F$6=\"CIFDN\",IF(OR('Blank - Request Form'!H164=\"0\",'Blank - Request Form'!H164=\"00000\",'Blank - Request Form'!H164=0),\"\",'Blank - Request Form'!H164),IF('Blank - Request Form'!$F$7=\"CIFDN\",IF(OR('Blank - Request Form'!Q164=\"0\",'Blank - Request Form'!Q164=\"00000\",'Blank - Request Form'!Q164=0),\"\",'Blank - Request Form'!Q164),\"\"))","v":""},{"$f":"IF('Blank - Request Form'!$F$6=\"CIFDN\",IF(OR('Blank - Request Form'!I164=\"0\",'Blank - Request Form'!I164=\"00000\",'Blank - Request Form'!I164=0),\"\",'Blank - Request Form'!I164),IF('Blank - Request Form'!$F$7=\"CIFDN\",IF(OR('Blank - Request Form'!R164=\"0\",'Blank - Request Form'!R164=\"00000\",'Blank - Request Form'!R164=0),\"\",'Blank - Request Form'!R164),\"\"))","v":""},null,{"$f":"IF('Blank - Request Form'!$F$6=\"CIFDN\",IF('Blank - Request Form'!K164=0,\"\",'Blank - Request Form'!K164),IF('Blank - Request Form'!$F$7=\"CIFDN\",IF('Blank - Request Form'!T164=0,\"\",'Blank - Request Form'!T164),\"\"))","v":""},null,null,null,{"$f":"IF(M130<>\"\",'Blank - Request Form'!$M$2,\"\")","v":""},{"$f":"IF('Blank - Request Form'!$F$6=\"CIFDN\",IF('Blank - Request Form'!J164=0,\"\",'Blank - Request Form'!J164),IF('Blank - Request Form'!$F$7=\"CIFDN\",IF('Blank - Request Form'!S164=0,\"\",'Blank - Request Form'!S164),\"\"))","v":""},"",130]
[{"$f":"IF('Blank - Request Form'!$F$6=\"CIFDN\",IF('Blank - Request Form'!D165=0,\"\",'Blank - Request Form'!D165),IF('Blank - Request Form'!$F$7=\"CIFDN\",IF('Blank - Request Form'!M165=0,\"\",'Blank - Request Form'!M165),\"\"))","v":""},{"$f":"IF('Blank - Request Form'!$F$6=\"CIFDN\",IF('Blank - Request Form'!E165=0,\"\",'Blank - Request Form'!E165),IF('Blank - Request Form'!$F$7=\"CIFDN\",IF('Blank - Request Form'!N165=0,\"\",'Blank - Request Form'!N165),\"\"))","v":""},{"$f":"IF('Blank - Request Form'!$F$6=\"CIFDN\",IF(OR('Blank - Request Form'!F165=\"000\",'Blank - Request Form'!F165=0),\"\",'Blank - Request Form'!F165),IF('Blank - Request Form'!$F$7=\"CIFDN\",IF(OR('Blank - Request Form'!O165=\"000\",'Blank - Request Form'!O165=0),\"\",'Blank - Request Form'!O165),\"\"))","v":""},{"$f":"IF('Blank - Request Form'!$F$6=\"CIFDN\",IF(OR('Blank - Request Form'!G165=\"0\",'Blank - Request Form'!G165=\"00000\",'Blank - Request Form'!G165=0),\"\",'Blank - Request Form'!G165),IF('Blank - Request Form'!$F$7=\"CIFDN\",IF(OR('Blank - Request Form'!P165=\"0\",'Blank - Request Form'!P165=\"00000\",'Blank - Request Form'!P165=0),\"\",'Blank - Request Form'!P165),\"\"))","v":""},{"$f":"IF('Blank - Request Form'!$F$6=\"CIFDN\",IF(OR('Blank - Request Form'!H165=\"0\",'Blank - Request Form'!H165=\"00000\",'Blank - Request Form'!H165=0),\"\",'Blank - Request Form'!H165),IF('Blank - Request Form'!$F$7=\"CIFDN\",IF(OR('Blank - Request Form'!Q165=\"0\",'Blank - Request Form'!Q165=\"00000\",'Blank - Request Form'!Q165=0),\"\",'Blank - Request Form'!Q165),\"\"))","v":""},{"$f":"IF('Blank - Request Form'!$F$6=\"CIFDN\",IF(OR('Blank - Request Form'!I165=\"0\",'Blank - Request Form'!I165=\"00000\",'Blank - Request Form'!I165=0),\"\",'Blank - Request Form'!I165),IF('Blank - Request Form'!$F$7=\"CIFDN\",IF(OR('Blank - Request Form'!R165=\"0\",'Blank - Request Form'!R165=\"00000\",'Blank - Request Form'!R165=0),\"\",'Blank - Request Form'!R165),\"\"))","v":""},null,{"$f":"IF('Blank - Request Form'!$F$6=\"CIFDN\",IF('Blank - Request Form'!K165=0,\"\",'Blank - Request Form'!K165),IF('Blank - Request Form'!$F$7=\"CIFDN\",IF('Blank - Request Form'!T165=0,\"\",'Blank - Request Form'!T165),\"\"))","v":""},null,null,null,{"$f":"IF(M131<>\"\",'Blank - Request Form'!$M$2,\"\")","v":""},{"$f":"IF('Blank - Request Form'!$F$6=\"CIFDN\",IF('Blank - Request Form'!J165=0,\"\",'Blank - Request Form'!J165),IF('Blank - Request Form'!$F$7=\"CIFDN\",IF('Blank - Request Form'!S165=0,\"\",'Blank - Request Form'!S165),\"\"))","v":""},"",131]
[{"$f":"IF('Blank - Request Form'!$F$6=\"CIFDN\",IF('Blank - Request Form'!D166=0,\"\",'Blank - Request Form'!D166),IF('Blank - Request Form'!$F$7=\"CIFDN\",IF('Blank - Request Form'!M166=0,\"\",'Blank - Request Form'!M166),\"\"))","v":""},{"$f":"IF('Blank - Request Form'!$F$6=\"CIFDN\",IF('Blank - Request Form'!E166=0,\"\",'Blank - Request Form'!E166),IF('Blank - Request Form'!$F$7=\"CIFDN\",IF('Blank - Request Form'!N166=0,\"\",'Blank - Request Form'!N166),\"\"))","v":""},{"$f":"IF('Blank - Request Form'!$F$6=\"CIFDN\",IF(OR('Blank - Request Form'!F166=\"000\",'Blank - Request Form'!F166=0),\"\",'Blank - Request Form'!F166),IF('Blank - Request Form'!$F$7=\"CIFDN\",IF(OR('Blank - Request Form'!O166=\"000\",'Blank - Request Form'!O166=0),\"\",'Blank - Request Form'!O166),\"\"))","v":""},{"$f":"IF('Blank - Request Form'!$F$6=\"CIFDN\",IF(OR('Blank - Request Form'!G166=\"0\",'Blank - Request Form'!G166=\"00000\",'Blank - Request Form'!G166=0),\"\",'Blank - Request Form'!G166),IF('Blank - Request Form'!$F$7=\"CIFDN\",IF(OR('Blank - Request Form'!P166=\"0\",'Blank - Request Form'!P166=\"00000\",'Blank - Request Form'!P166=0),\"\",'Blank - Request Form'!P166),\"\"))","v":""},{"$f":"IF('Blank - Request Form'!$F$6=\"CIFDN\",IF(OR('Blank - Request Form'!H166=\"0\",'Blank - Request Form'!H166=\"00000\",'Blank - Request Form'!H166=0),\"\",'Blank - Request Form'!H166),IF('Blank - Request Form'!$F$7=\"CIFDN\",IF(OR('Blank - Request Form'!Q166=\"0\",'Blank - Request Form'!Q166=\"00000\",'Blank - Request Form'!Q166=0),\"\",'Blank - Request Form'!Q166),\"\"))","v":""},{"$f":"IF('Blank - Request Form'!$F$6=\"CIFDN\",IF(OR('Blank - Request Form'!I166=\"0\",'Blank - Request Form'!I166=\"00000\",'Blank - Request Form'!I166=0),\"\",'Blank - Request Form'!I166),IF('Blank - Request Form'!$F$7=\"CIFDN\",IF(OR('Blank - Request Form'!R166=\"0\",'Blank - Request Form'!R166=\"00000\",'Blank - Request Form'!R166=0),\"\",'Blank - Request Form'!R166),\"\"))","v":""},null,{"$f":"IF('Blank - Request Form'!$F$6=\"CIFDN\",IF('Blank - Request Form'!K166=0,\"\",'Blank - Request Form'!K166),IF('Blank - Request Form'!$F$7=\"CIFDN\",IF('Blank - Request Form'!T166=0,\"\",'Blank - Request Form'!T166),\"\"))","v":""},null,null,null,{"$f":"IF(M132<>\"\",'Blank - Request Form'!$M$2,\"\")","v":""},{"$f":"IF('Blank - Request Form'!$F$6=\"CIFDN\",IF('Blank - Request Form'!J166=0,\"\",'Blank - Request Form'!J166),IF('Blank - Request Form'!$F$7=\"CIFDN\",IF('Blank - Request Form'!S166=0,\"\",'Blank - Request Form'!S166),\"\"))","v":""},"",132]
[{"$f":"IF('Blank - Request Form'!$F$6=\"CIFDN\",IF('Blank - Request Form'!D167=0,\"\",'Blank - Request Form'!D167),IF('Blank - Request Form'!$F$7=\"CIFDN\",IF('Blank - Request Form'!M167=0,\"\",'Blank - Request Form'!M167),\"\"))","v":""},{"$f":"IF('Blank - Request Form'!$F$6=\"CIFDN\",IF('Blank - Request Form'!E167=0,\"\",'Blank - Request Form'!E167),IF('Blank - Request Form'!$F$7=\"CIFDN\",IF('Blank - Request Form'!N167=0,\"\",'Blank - Request Form'!N167),\"\"))","v":""},{"$f":"IF('Blank - Request Form'!$F$6=\"CIFDN\",IF(OR('Blank - Request Form'!F167=\"000\",'Blank - Request Form'!F167=0),\"\",'Blank - Request Form'!F167),IF('Blank - Request Form'!$F$7=\"CIFDN\",IF(OR('Blank - Request Form'!O167=\"000\",'Blank - Request Form'!O167=0),\"\",'Blank - Request Form'!O167),\"\"))","v":""},{"$f":"IF('Blank - Request Form'!$F$6=\"CIFDN\",IF(OR('Blank - Request Form'!G167=\"0\",'Blank - Request Form'!G167=\"00000\",'Blank - Request Form'!G167=0),\"\",'Blank - Request Form'!G167),IF('Blank - Request Form'!$F$7=\"CIFDN\",IF(OR('Blank - Request Form'!P167=\"0\",'Blank - Request Form'!P167=\"00000\",'Blank - Request Form'!P167=0),\"\",'Blank - Request Form'!P167),\"\"))","v":""},{"$f":"IF('Blank - Request Form'!$F$6=\"CIFDN\",IF(OR('Blank - Request Form'!H167=\"0\",'Blank - Request Form'!H167=\"00000\",'Blank - Request Form'!H167=0),\"\",'Blank - Request Form'!H167),IF('Blank - Request Form'!$F$7=\"CIFDN\",IF(OR('Blank - Request Form'!Q167=\"0\",'Blank - Request Form'!Q167=\"00000\",'Blank - Request Form'!Q167=0),\"\",'Blank - Request Form'!Q167),\"\"))","v":""},{"$f":"IF('Blank - Request Form'!$F$6=\"CIFDN\",IF(OR('Blank - Request Form'!I167=\"0\",'Blank - Request Form'!I167=\"00000\",'Blank - Request Form'!I167=0),\"\",'Blank - Request Form'!I167),IF('Blank - Request Form'!$F$7=\"CIFDN\",IF(OR('Blank - Request Form'!R167=\"0\",'Blank - Request Form'!R167=\"00000\",'Blank - Request Form'!R167=0),\"\",'Blank - Request Form'!R167),\"\"))","v":""},null,{"$f":"IF('Blank - Request Form'!$F$6=\"CIFDN\",IF('Blank - Request Form'!K167=0,\"\",'Blank - Request Form'!K167),IF('Blank - Request Form'!$F$7=\"CIFDN\",IF('Blank - Request Form'!T167=0,\"\",'Blank - Request Form'!T167),\"\"))","v":""},null,null,null,{"$f":"IF(M133<>\"\",'Blank - Request Form'!$M$2,\"\")","v":""},{"$f":"IF('Blank - Request Form'!$F$6=\"CIFDN\",IF('Blank - Request Form'!J167=0,\"\",'Blank - Request Form'!J167),IF('Blank - Request Form'!$F$7=\"CIFDN\",IF('Blank - Request Form'!S167=0,\"\",'Blank - Request Form'!S167),\"\"))","v":""},"",133]
[{"$f":"IF('Blank - Request Form'!$F$6=\"CIFDN\",IF('Blank - Request Form'!D168=0,\"\",'Blank - Request Form'!D168),IF('Blank - Request Form'!$F$7=\"CIFDN\",IF('Blank - Request Form'!M168=0,\"\",'Blank - Request Form'!M168),\"\"))","v":""},{"$f":"IF('Blank - Request Form'!$F$6=\"CIFDN\",IF('Blank - Request Form'!E168=0,\"\",'Blank - Request Form'!E168),IF('Blank - Request Form'!$F$7=\"CIFDN\",IF('Blank - Request Form'!N168=0,\"\",'Blank - Request Form'!N168),\"\"))","v":""},{"$f":"IF('Blank - Request Form'!$F$6=\"CIFDN\",IF(OR('Blank - Request Form'!F168=\"000\",'Blank - Request Form'!F168=0),\"\",'Blank - Request Form'!F168),IF('Blank - Request Form'!$F$7=\"CIFDN\",IF(OR('Blank - Request Form'!O168=\"000\",'Blank - Request Form'!O168=0),\"\",'Blank - Request Form'!O168),\"\"))","v":""},{"$f":"IF('Blank - Request Form'!$F$6=\"CIFDN\",IF(OR('Blank - Request Form'!G168=\"0\",'Blank - Request Form'!G168=\"00000\",'Blank - Request Form'!G168=0),\"\",'Blank - Request Form'!G168),IF('Blank - Request Form'!$F$7=\"CIFDN\",IF(OR('Blank - Request Form'!P168=\"0\",'Blank - Request Form'!P168=\"00000\",'Blank - Request Form'!P168=0),\"\",'Blank - Request Form'!P168),\"\"))","v":""},{"$f":"IF('Blank - Request Form'!$F$6=\"CIFDN\",IF(OR('Blank - Request Form'!H168=\"0\",'Blank - Request Form'!H168=\"00000\",'Blank - Request Form'!H168=0),\"\",'Blank - Request Form'!H168),IF('Blank - Request Form'!$F$7=\"CIFDN\",IF(OR('Blank - Request Form'!Q168=\"0\",'Blank - Request Form'!Q168=\"00000\",'Blank - Request Form'!Q168=0),\"\",'Blank - Request Form'!Q168),\"\"))","v":""},{"$f":"IF('Blank - Request Form'!$F$6=\"CIFDN\",IF(OR('Blank - Request Form'!I168=\"0\",'Blank - Request Form'!I168=\"00000\",'Blank - Request Form'!I168=0),\"\",'Blank - Request Form'!I168),IF('Blank - Request Form'!$F$7=\"CIFDN\",IF(OR('Blank - Request Form'!R168=\"0\",'Blank - Request Form'!R168=\"00000\",'Blank - Request Form'!R168=0),\"\",'Blank - Request Form'!R168),\"\"))","v":""},null,{"$f":"IF('Blank - Request Form'!$F$6=\"CIFDN\",IF('Blank - Request Form'!K168=0,\"\",'Blank - Request Form'!K168),IF('Blank - Request Form'!$F$7=\"CIFDN\",IF('Blank - Request Form'!T168=0,\"\",'Blank - Request Form'!T168),\"\"))","v":""},null,null,null,{"$f":"IF(M134<>\"\",'Blank - Request Form'!$M$2,\"\")","v":""},{"$f":"IF('Blank - Request Form'!$F$6=\"CIFDN\",IF('Blank - Request Form'!J168=0,\"\",'Blank - Request Form'!J168),IF('Blank - Request Form'!$F$7=\"CIFDN\",IF('Blank - Request Form'!S168=0,\"\",'Blank - Request Form'!S168),\"\"))","v":""},"",134]
[{"$f":"IF('Blank - Request Form'!$F$6=\"CIFDN\",IF('Blank - Request Form'!D169=0,\"\",'Blank - Request Form'!D169),IF('Blank - Request Form'!$F$7=\"CIFDN\",IF('Blank - Request Form'!M169=0,\"\",'Blank - Request Form'!M169),\"\"))","v":""},{"$f":"IF('Blank - Request Form'!$F$6=\"CIFDN\",IF('Blank - Request Form'!E169=0,\"\",'Blank - Request Form'!E169),IF('Blank - Request Form'!$F$7=\"CIFDN\",IF('Blank - Request Form'!N169=0,\"\",'Blank - Request Form'!N169),\"\"))","v":""},{"$f":"IF('Blank - Request Form'!$F$6=\"CIFDN\",IF(OR('Blank - Request Form'!F169=\"000\",'Blank - Request Form'!F169=0),\"\",'Blank - Request Form'!F169),IF('Blank - Request Form'!$F$7=\"CIFDN\",IF(OR('Blank - Request Form'!O169=\"000\",'Blank - Request Form'!O169=0),\"\",'Blank - Request Form'!O169),\"\"))","v":""},{"$f":"IF('Blank - Request Form'!$F$6=\"CIFDN\",IF(OR('Blank - Request Form'!G169=\"0\",'Blank - Request Form'!G169=\"00000\",'Blank - Request Form'!G169=0),\"\",'Blank - Request Form'!G169),IF('Blank - Request Form'!$F$7=\"CIFDN\",IF(OR('Blank - Request Form'!P169=\"0\",'Blank - Request Form'!P169=\"00000\",'Blank - Request Form'!P169=0),\"\",'Blank - Request Form'!P169),\"\"))","v":""},{"$f":"IF('Blank - Request Form'!$F$6=\"CIFDN\",IF(OR('Blank - Request Form'!H169=\"0\",'Blank - Request Form'!H169=\"00000\",'Blank - Request Form'!H169=0),\"\",'Blank - Request Form'!H169),IF('Blank - Request Form'!$F$7=\"CIFDN\",IF(OR('Blank - Request Form'!Q169=\"0\",'Blank - Request Form'!Q169=\"00000\",'Blank - Request Form'!Q169=0),\"\",'Blank - Request Form'!Q169),\"\"))","v":""},{"$f":"IF('Blank - Request Form'!$F$6=\"CIFDN\",IF(OR('Blank - Request Form'!I169=\"0\",'Blank - Request Form'!I169=\"00000\",'Blank - Request Form'!I169=0),\"\",'Blank - Request Form'!I169),IF('Blank - Request Form'!$F$7=\"CIFDN\",IF(OR('Blank - Request Form'!R169=\"0\",'Blank - Request Form'!R169=\"00000\",'Blank - Request Form'!R169=0),\"\",'Blank - Request Form'!R169),\"\"))","v":""},null,{"$f":"IF('Blank - Request Form'!$F$6=\"CIFDN\",IF('Blank - Request Form'!K169=0,\"\",'Blank - Request Form'!K169),IF('Blank - Request Form'!$F$7=\"CIFDN\",IF('Blank - Request Form'!T169=0,\"\",'Blank - Request Form'!T169),\"\"))","v":""},null,null,null,{"$f":"IF(M135<>\"\",'Blank - Request Form'!$M$2,\"\")","v":""},{"$f":"IF('Blank - Request Form'!$F$6=\"CIFDN\",IF('Blank - Request Form'!J169=0,\"\",'Blank - Request Form'!J169),IF('Blank - Request Form'!$F$7=\"CIFDN\",IF('Blank - Request Form'!S169=0,\"\",'Blank - Request Form'!S169),\"\"))","v":""},"",135]
[{"$f":"IF('Blank - Request Form'!$F$6=\"CIFDN\",IF('Blank - Request Form'!D170=0,\"\",'Blank - Request Form'!D170),IF('Blank - Request Form'!$F$7=\"CIFDN\",IF('Blank - Request Form'!M170=0,\"\",'Blank - Request Form'!M170),\"\"))","v":""},{"$f":"IF('Blank - Request Form'!$F$6=\"CIFDN\",IF('Blank - Request Form'!E170=0,\"\",'Blank - Request Form'!E170),IF('Blank - Request Form'!$F$7=\"CIFDN\",IF('Blank - Request Form'!N170=0,\"\",'Blank - Request Form'!N170),\"\"))","v":""},{"$f":"IF('Blank - Request Form'!$F$6=\"CIFDN\",IF(OR('Blank - Request Form'!F170=\"000\",'Blank - Request Form'!F170=0),\"\",'Blank - Request Form'!F170),IF('Blank - Request Form'!$F$7=\"CIFDN\",IF(OR('Blank - Request Form'!O170=\"000\",'Blank - Request Form'!O170=0),\"\",'Blank - Request Form'!O170),\"\"))","v":""},{"$f":"IF('Blank - Request Form'!$F$6=\"CIFDN\",IF(OR('Blank - Request Form'!G170=\"0\",'Blank - Request Form'!G170=\"00000\",'Blank - Request Form'!G170=0),\"\",'Blank - Request Form'!G170),IF('Blank - Request Form'!$F$7=\"CIFDN\",IF(OR('Blank - Request Form'!P170=\"0\",'Blank - Request Form'!P170=\"00000\",'Blank - Request Form'!P170=0),\"\",'Blank - Request Form'!P170),\"\"))","v":""},{"$f":"IF('Blank - Request Form'!$F$6=\"CIFDN\",IF(OR('Blank - Request Form'!H170=\"0\",'Blank - Request Form'!H170=\"00000\",'Blank - Request Form'!H170=0),\"\",'Blank - Request Form'!H170),IF('Blank - Request Form'!$F$7=\"CIFDN\",IF(OR('Blank - Request Form'!Q170=\"0\",'Blank - Request Form'!Q170=\"00000\",'Blank - Request Form'!Q170=0),\"\",'Blank - Request Form'!Q170),\"\"))","v":""},{"$f":"IF('Blank - Request Form'!$F$6=\"CIFDN\",IF(OR('Blank - Request Form'!I170=\"0\",'Blank - Request Form'!I170=\"00000\",'Blank - Request Form'!I170=0),\"\",'Blank - Request Form'!I170),IF('Blank - Request Form'!$F$7=\"CIFDN\",IF(OR('Blank - Request Form'!R170=\"0\",'Blank - Request Form'!R170=\"00000\",'Blank - Request Form'!R170=0),\"\",'Blank - Request Form'!R170),\"\"))","v":""},null,{"$f":"IF('Blank - Request Form'!$F$6=\"CIFDN\",IF('Blank - Request Form'!K170=0,\"\",'Blank - Request Form'!K170),IF('Blank - Request Form'!$F$7=\"CIFDN\",IF('Blank - Request Form'!T170=0,\"\",'Blank - Request Form'!T170),\"\"))","v":""},null,null,null,{"$f":"IF(M136<>\"\",'Blank - Request Form'!$M$2,\"\")","v":""},{"$f":"IF('Blank - Request Form'!$F$6=\"CIFDN\",IF('Blank - Request Form'!J170=0,\"\",'Blank - Request Form'!J170),IF('Blank - Request Form'!$F$7=\"CIFDN\",IF('Blank - Request Form'!S170=0,\"\",'Blank - Request Form'!S170),\"\"))","v":""},"",136]
[{"$f":"IF('Blank - Request Form'!$F$6=\"CIFDN\",IF('Blank - Request Form'!D171=0,\"\",'Blank - Request Form'!D171),IF('Blank - Request Form'!$F$7=\"CIFDN\",IF('Blank - Request Form'!M171=0,\"\",'Blank - Request Form'!M171),\"\"))","v":""},{"$f":"IF('Blank - Request Form'!$F$6=\"CIFDN\",IF('Blank - Request Form'!E171=0,\"\",'Blank - Request Form'!E171),IF('Blank - Request Form'!$F$7=\"CIFDN\",IF('Blank - Request Form'!N171=0,\"\",'Blank - Request Form'!N171),\"\"))","v":""},{"$f":"IF('Blank - Request Form'!$F$6=\"CIFDN\",IF(OR('Blank - Request Form'!F171=\"000\",'Blank - Request Form'!F171=0),\"\",'Blank - Request Form'!F171),IF('Blank - Request Form'!$F$7=\"CIFDN\",IF(OR('Blank - Request Form'!O171=\"000\",'Blank - Request Form'!O171=0),\"\",'Blank - Request Form'!O171),\"\"))","v":""},{"$f":"IF('Blank - Request Form'!$F$6=\"CIFDN\",IF(OR('Blank - Request Form'!G171=\"0\",'Blank - Request Form'!G171=\"00000\",'Blank - Request Form'!G171=0),\"\",'Blank - Request Form'!G171),IF('Blank - Request Form'!$F$7=\"CIFDN\",IF(OR('Blank - Request Form'!P171=\"0\",'Blank - Request Form'!P171=\"00000\",'Blank - Request Form'!P171=0),\"\",'Blank - Request Form'!P171),\"\"))","v":""},{"$f":"IF('Blank - Request Form'!$F$6=\"CIFDN\",IF(OR('Blank - Request Form'!H171=\"0\",'Blank - Request Form'!H171=\"00000\",'Blank - Request Form'!H171=0),\"\",'Blank - Request Form'!H171),IF('Blank - Request Form'!$F$7=\"CIFDN\",IF(OR('Blank - Request Form'!Q171=\"0\",'Blank - Request Form'!Q171=\"00000\",'Blank - Request Form'!Q171=0),\"\",'Blank - Request Form'!Q171),\"\"))","v":""},{"$f":"IF('Blank - Request Form'!$F$6=\"CIFDN\",IF(OR('Blank - Request Form'!I171=\"0\",'Blank - Request Form'!I171=\"00000\",'Blank - Request Form'!I171=0),\"\",'Blank - Request Form'!I171),IF('Blank - Request Form'!$F$7=\"CIFDN\",IF(OR('Blank - Request Form'!R171=\"0\",'Blank - Request Form'!R171=\"00000\",'Blank - Request Form'!R171=0),\"\",'Blank - Request Form'!R171),\"\"))","v":""},null,{"$f":"IF('Blank - Request Form'!$F$6=\"CIFDN\",IF('Blank - Request Form'!K171=0,\"\",'Blank - Request Form'!K171),IF('Blank - Request Form'!$F$7=\"CIFDN\",IF('Blank - Request Form'!T171=0,\"\",'Blank - Request Form'!T171),\"\"))","v":""},null,null,null,{"$f":"IF(M137<>\"\",'Blank - Request Form'!$M$2,\"\")","v":""},{"$f":"IF('Blank - Request Form'!$F$6=\"CIFDN\",IF('Blank - Request Form'!J171=0,\"\",'Blank - Request Form'!J171),IF('Blank - Request Form'!$F$7=\"CIFDN\",IF('Blank - Request Form'!S171=0,\"\",'Blank - Request Form'!S171),\"\"))","v":""},"",137]
[{"$f":"IF('Blank - Request Form'!$F$6=\"CIFDN\",IF('Blank - Request Form'!D172=0,\"\",'Blank - Request Form'!D172),IF('Blank - Request Form'!$F$7=\"CIFDN\",IF('Blank - Request Form'!M172=0,\"\",'Blank - Request Form'!M172),\"\"))","v":""},{"$f":"IF('Blank - Request Form'!$F$6=\"CIFDN\",IF('Blank - Request Form'!E172=0,\"\",'Blank - Request Form'!E172),IF('Blank - Request Form'!$F$7=\"CIFDN\",IF('Blank - Request Form'!N172=0,\"\",'Blank - Request Form'!N172),\"\"))","v":""},{"$f":"IF('Blank - Request Form'!$F$6=\"CIFDN\",IF(OR('Blank - Request Form'!F172=\"000\",'Blank - Request Form'!F172=0),\"\",'Blank - Request Form'!F172),IF('Blank - Request Form'!$F$7=\"CIFDN\",IF(OR('Blank - Request Form'!O172=\"000\",'Blank - Request Form'!O172=0),\"\",'Blank - Request Form'!O172),\"\"))","v":""},{"$f":"IF('Blank - Request Form'!$F$6=\"CIFDN\",IF(OR('Blank - Request Form'!G172=\"0\",'Blank - Request Form'!G172=\"00000\",'Blank - Request Form'!G172=0),\"\",'Blank - Request Form'!G172),IF('Blank - Request Form'!$F$7=\"CIFDN\",IF(OR('Blank - Request Form'!P172=\"0\",'Blank - Request Form'!P172=\"00000\",'Blank - Request Form'!P172=0),\"\",'Blank - Request Form'!P172),\"\"))","v":""},{"$f":"IF('Blank - Request Form'!$F$6=\"CIFDN\",IF(OR('Blank - Request Form'!H172=\"0\",'Blank - Request Form'!H172=\"00000\",'Blank - Request Form'!H172=0),\"\",'Blank - Request Form'!H172),IF('Blank - Request Form'!$F$7=\"CIFDN\",IF(OR('Blank - Request Form'!Q172=\"0\",'Blank - Request Form'!Q172=\"00000\",'Blank - Request Form'!Q172=0),\"\",'Blank - Request Form'!Q172),\"\"))","v":""},{"$f":"IF('Blank - Request Form'!$F$6=\"CIFDN\",IF(OR('Blank - Request Form'!I172=\"0\",'Blank - Request Form'!I172=\"00000\",'Blank - Request Form'!I172=0),\"\",'Blank - Request Form'!I172),IF('Blank - Request Form'!$F$7=\"CIFDN\",IF(OR('Blank - Request Form'!R172=\"0\",'Blank - Request Form'!R172=\"00000\",'Blank - Request Form'!R172=0),\"\",'Blank - Request Form'!R172),\"\"))","v":""},null,{"$f":"IF('Blank - Request Form'!$F$6=\"CIFDN\",IF('Blank - Request Form'!K172=0,\"\",'Blank - Request Form'!K172),IF('Blank - Request Form'!$F$7=\"CIFDN\",IF('Blank - Request Form'!T172=0,\"\",'Blank - Request Form'!T172),\"\"))","v":""},null,null,null,{"$f":"IF(M138<>\"\",'Blank - Request Form'!$M$2,\"\")","v":""},{"$f":"IF('Blank - Request Form'!$F$6=\"CIFDN\",IF('Blank - Request Form'!J172=0,\"\",'Blank - Request Form'!J172),IF('Blank - Request Form'!$F$7=\"CIFDN\",IF('Blank - Request Form'!S172=0,\"\",'Blank - Request Form'!S172),\"\"))","v":""},"",138]
[{"$f":"IF('Blank - Request Form'!$F$6=\"CIFDN\",IF('Blank - Request Form'!D173=0,\"\",'Blank - Request Form'!D173),IF('Blank - Request Form'!$F$7=\"CIFDN\",IF('Blank - Request Form'!M173=0,\"\",'Blank - Request Form'!M173),\"\"))","v":""},{"$f":"IF('Blank - Request Form'!$F$6=\"CIFDN\",IF('Blank - Request Form'!E173=0,\"\",'Blank - Request Form'!E173),IF('Blank - Request Form'!$F$7=\"CIFDN\",IF('Blank - Request Form'!N173=0,\"\",'Blank - Request Form'!N173),\"\"))","v":""},{"$f":"IF('Blank - Request Form'!$F$6=\"CIFDN\",IF(OR('Blank - Request Form'!F173=\"000\",'Blank - Request Form'!F173=0),\"\",'Blank - Request Form'!F173),IF('Blank - Request Form'!$F$7=\"CIFDN\",IF(OR('Blank - Request Form'!O173=\"000\",'Blank - Request Form'!O173=0),\"\",'Blank - Request Form'!O173),\"\"))","v":""},{"$f":"IF('Blank - Request Form'!$F$6=\"CIFDN\",IF(OR('Blank - Request Form'!G173=\"0\",'Blank - Request Form'!G173=\"00000\",'Blank - Request Form'!G173=0),\"\",'Blank - Request Form'!G173),IF('Blank - Request Form'!$F$7=\"CIFDN\",IF(OR('Blank - Request Form'!P173=\"0\",'Blank - Request Form'!P173=\"00000\",'Blank - Request Form'!P173=0),\"\",'Blank - Request Form'!P173),\"\"))","v":""},{"$f":"IF('Blank - Request Form'!$F$6=\"CIFDN\",IF(OR('Blank - Request Form'!H173=\"0\",'Blank - Request Form'!H173=\"00000\",'Blank - Request Form'!H173=0),\"\",'Blank - Request Form'!H173),IF('Blank - Request Form'!$F$7=\"CIFDN\",IF(OR('Blank - Request Form'!Q173=\"0\",'Blank - Request Form'!Q173=\"00000\",'Blank - Request Form'!Q173=0),\"\",'Blank - Request Form'!Q173),\"\"))","v":""},{"$f":"IF('Blank - Request Form'!$F$6=\"CIFDN\",IF(OR('Blank - Request Form'!I173=\"0\",'Blank - Request Form'!I173=\"00000\",'Blank - Request Form'!I173=0),\"\",'Blank - Request Form'!I173),IF('Blank - Request Form'!$F$7=\"CIFDN\",IF(OR('Blank - Request Form'!R173=\"0\",'Blank - Request Form'!R173=\"00000\",'Blank - Request Form'!R173=0),\"\",'Blank - Request Form'!R173),\"\"))","v":""},null,{"$f":"IF('Blank - Request Form'!$F$6=\"CIFDN\",IF('Blank - Request Form'!K173=0,\"\",'Blank - Request Form'!K173),IF('Blank - Request Form'!$F$7=\"CIFDN\",IF('Blank - Request Form'!T173=0,\"\",'Blank - Request Form'!T173),\"\"))","v":""},null,null,null,{"$f":"IF(M139<>\"\",'Blank - Request Form'!$M$2,\"\")","v":""},{"$f":"IF('Blank - Request Form'!$F$6=\"CIFDN\",IF('Blank - Request Form'!J173=0,\"\",'Blank - Request Form'!J173),IF('Blank - Request Form'!$F$7=\"CIFDN\",IF('Blank - Request Form'!S173=0,\"\",'Blank - Request Form'!S173),\"\"))","v":""},"",139]
[{"$f":"IF('Blank - Request Form'!$F$6=\"CIFDN\",IF('Blank - Request Form'!D174=0,\"\",'Blank - Request Form'!D174),IF('Blank - Request Form'!$F$7=\"CIFDN\",IF('Blank - Request Form'!M174=0,\"\",'Blank - Request Form'!M174),\"\"))","v":""},{"$f":"IF('Blank - Request Form'!$F$6=\"CIFDN\",IF('Blank - Request Form'!E174=0,\"\",'Blank - Request Form'!E174),IF('Blank - Request Form'!$F$7=\"CIFDN\",IF('Blank - Request Form'!N174=0,\"\",'Blank - Request Form'!N174),\"\"))","v":""},{"$f":"IF('Blank - Request Form'!$F$6=\"CIFDN\",IF(OR('Blank - Request Form'!F174=\"000\",'Blank - Request Form'!F174=0),\"\",'Blank - Request Form'!F174),IF('Blank - Request Form'!$F$7=\"CIFDN\",IF(OR('Blank - Request Form'!O174=\"000\",'Blank - Request Form'!O174=0),\"\",'Blank - Request Form'!O174),\"\"))","v":""},{"$f":"IF('Blank - Request Form'!$F$6=\"CIFDN\",IF(OR('Blank - Request Form'!G174=\"0\",'Blank - Request Form'!G174=\"00000\",'Blank - Request Form'!G174=0),\"\",'Blank - Request Form'!G174),IF('Blank - Request Form'!$F$7=\"CIFDN\",IF(OR('Blank - Request Form'!P174=\"0\",'Blank - Request Form'!P174=\"00000\",'Blank - Request Form'!P174=0),\"\",'Blank - Request Form'!P174),\"\"))","v":""},{"$f":"IF('Blank - Request Form'!$F$6=\"CIFDN\",IF(OR('Blank - Request Form'!H174=\"0\",'Blank - Request Form'!H174=\"00000\",'Blank - Request Form'!H174=0),\"\",'Blank - Request Form'!H174),IF('Blank - Request Form'!$F$7=\"CIFDN\",IF(OR('Blank - Request Form'!Q174=\"0\",'Blank - Request Form'!Q174=\"00000\",'Blank - Request Form'!Q174=0),\"\",'Blank - Request Form'!Q174),\"\"))","v":""},{"$f":"IF('Blank - Request Form'!$F$6=\"CIFDN\",IF(OR('Blank - Request Form'!I174=\"0\",'Blank - Request Form'!I174=\"00000\",'Blank - Request Form'!I174=0),\"\",'Blank - Request Form'!I174),IF('Blank - Request Form'!$F$7=\"CIFDN\",IF(OR('Blank - Request Form'!R174=\"0\",'Blank - Request Form'!R174=\"00000\",'Blank - Request Form'!R174=0),\"\",'Blank - Request Form'!R174),\"\"))","v":""},null,{"$f":"IF('Blank - Request Form'!$F$6=\"CIFDN\",IF('Blank - Request Form'!K174=0,\"\",'Blank - Request Form'!K174),IF('Blank - Request Form'!$F$7=\"CIFDN\",IF('Blank - Request Form'!T174=0,\"\",'Blank - Request Form'!T174),\"\"))","v":""},null,null,null,{"$f":"IF(M140<>\"\",'Blank - Request Form'!$M$2,\"\")","v":""},{"$f":"IF('Blank - Request Form'!$F$6=\"CIFDN\",IF('Blank - Request Form'!J174=0,\"\",'Blank - Request Form'!J174),IF('Blank - Request Form'!$F$7=\"CIFDN\",IF('Blank - Request Form'!S174=0,\"\",'Blank - Request Form'!S174),\"\"))","v":""},"",140]
[{"$f":"IF('Blank - Request Form'!$F$6=\"CIFDN\",IF('Blank - Request Form'!D175=0,\"\",'Blank - Request Form'!D175),IF('Blank - Request Form'!$F$7=\"CIFDN\",IF('Blank - Request Form'!M175=0,\"\",'Blank - Request Form'!M175),\"\"))","v":""},{"$f":"IF('Blank - Request Form'!$F$6=\"CIFDN\",IF('Blank - Request Form'!E175=0,\"\",'Blank - Request Form'!E175),IF('Blank - Request Form'!$F$7=\"CIFDN\",IF('Blank - Request Form'!N175=0,\"\",'Blank - Request Form'!N175),\"\"))","v":""},{"$f":"IF('Blank - Request Form'!$F$6=\"CIFDN\",IF(OR('Blank - Request Form'!F175=\"000\",'Blank - Request Form'!F175=0),\"\",'Blank - Request Form'!F175),IF('Blank - Request Form'!$F$7=\"CIFDN\",IF(OR('Blank - Request Form'!O175=\"000\",'Blank - Request Form'!O175=0),\"\",'Blank - Request Form'!O175),\"\"))","v":""},{"$f":"IF('Blank - Request Form'!$F$6=\"CIFDN\",IF(OR('Blank - Request Form'!G175=\"0\",'Blank - Request Form'!G175=\"00000\",'Blank - Request Form'!G175=0),\"\",'Blank - Request Form'!G175),IF('Blank - Request Form'!$F$7=\"CIFDN\",IF(OR('Blank - Request Form'!P175=\"0\",'Blank - Request Form'!P175=\"00000\",'Blank - Request Form'!P175=0),\"\",'Blank - Request Form'!P175),\"\"))","v":""},{"$f":"IF('Blank - Request Form'!$F$6=\"CIFDN\",IF(OR('Blank - Request Form'!H175=\"0\",'Blank - Request Form'!H175=\"00000\",'Blank - Request Form'!H175=0),\"\",'Blank - Request Form'!H175),IF('Blank - Request Form'!$F$7=\"CIFDN\",IF(OR('Blank - Request Form'!Q175=\"0\",'Blank - Request Form'!Q175=\"00000\",'Blank - Request Form'!Q175=0),\"\",'Blank - Request Form'!Q175),\"\"))","v":""},{"$f":"IF('Blank - Request Form'!$F$6=\"CIFDN\",IF(OR('Blank - Request Form'!I175=\"0\",'Blank - Request Form'!I175=\"00000\",'Blank - Request Form'!I175=0),\"\",'Blank - Request Form'!I175),IF('Blank - Request Form'!$F$7=\"CIFDN\",IF(OR('Blank - Request Form'!R175=\"0\",'Blank - Request Form'!R175=\"00000\",'Blank - Request Form'!R175=0),\"\",'Blank - Request Form'!R175),\"\"))","v":""},null,{"$f":"IF('Blank - Request Form'!$F$6=\"CIFDN\",IF('Blank - Request Form'!K175=0,\"\",'Blank - Request Form'!K175),IF('Blank - Request Form'!$F$7=\"CIFDN\",IF('Blank - Request Form'!T175=0,\"\",'Blank - Request Form'!T175),\"\"))","v":""},null,null,null,{"$f":"IF(M141<>\"\",'Blank - Request Form'!$M$2,\"\")","v":""},{"$f":"IF('Blank - Request Form'!$F$6=\"CIFDN\",IF('Blank - Request Form'!J175=0,\"\",'Blank - Request Form'!J175),IF('Blank - Request Form'!$F$7=\"CIFDN\",IF('Blank - Request Form'!S175=0,\"\",'Blank - Request Form'!S175),\"\"))","v":""},"",141]
[{"$f":"IF('Blank - Request Form'!$F$6=\"CIFDN\",IF('Blank - Request Form'!D176=0,\"\",'Blank - Request Form'!D176),IF('Blank - Request Form'!$F$7=\"CIFDN\",IF('Blank - Request Form'!M176=0,\"\",'Blank - Request Form'!M176),\"\"))","v":""},{"$f":"IF('Blank - Request Form'!$F$6=\"CIFDN\",IF('Blank - Request Form'!E176=0,\"\",'Blank - Request Form'!E176),IF('Blank - Request Form'!$F$7=\"CIFDN\",IF('Blank - Request Form'!N176=0,\"\",'Blank - Request Form'!N176),\"\"))","v":""},{"$f":"IF('Blank - Request Form'!$F$6=\"CIFDN\",IF(OR('Blank - Request Form'!F176=\"000\",'Blank - Request Form'!F176=0),\"\",'Blank - Request Form'!F176),IF('Blank - Request Form'!$F$7=\"CIFDN\",IF(OR('Blank - Request Form'!O176=\"000\",'Blank - Request Form'!O176=0),\"\",'Blank - Request Form'!O176),\"\"))","v":""},{"$f":"IF('Blank - Request Form'!$F$6=\"CIFDN\",IF(OR('Blank - Request Form'!G176=\"0\",'Blank - Request Form'!G176=\"00000\",'Blank - Request Form'!G176=0),\"\",'Blank - Request Form'!G176),IF('Blank - Request Form'!$F$7=\"CIFDN\",IF(OR('Blank - Request Form'!P176=\"0\",'Blank - Request Form'!P176=\"00000\",'Blank - Request Form'!P176=0),\"\",'Blank - Request Form'!P176),\"\"))","v":""},{"$f":"IF('Blank - Request Form'!$F$6=\"CIFDN\",IF(OR('Blank - Request Form'!H176=\"0\",'Blank - Request Form'!H176=\"00000\",'Blank - Request Form'!H176=0),\"\",'Blank - Request Form'!H176),IF('Blank - Request Form'!$F$7=\"CIFDN\",IF(OR('Blank - Request Form'!Q176=\"0\",'Blank - Request Form'!Q176=\"00000\",'Blank - Request Form'!Q176=0),\"\",'Blank - Request Form'!Q176),\"\"))","v":""},{"$f":"IF('Blank - Request Form'!$F$6=\"CIFDN\",IF(OR('Blank - Request Form'!I176=\"0\",'Blank - Request Form'!I176=\"00000\",'Blank - Request Form'!I176=0),\"\",'Blank - Request Form'!I176),IF('Blank - Request Form'!$F$7=\"CIFDN\",IF(OR('Blank - Request Form'!R176=\"0\",'Blank - Request Form'!R176=\"00000\",'Blank - Request Form'!R176=0),\"\",'Blank - Request Form'!R176),\"\"))","v":""},null,{"$f":"IF('Blank - Request Form'!$F$6=\"CIFDN\",IF('Blank - Request Form'!K176=0,\"\",'Blank - Request Form'!K176),IF('Blank - Request Form'!$F$7=\"CIFDN\",IF('Blank - Request Form'!T176=0,\"\",'Blank - Request Form'!T176),\"\"))","v":""},null,null,null,{"$f":"IF(M142<>\"\",'Blank - Request Form'!$M$2,\"\")","v":""},{"$f":"IF('Blank - Request Form'!$F$6=\"CIFDN\",IF('Blank - Request Form'!J176=0,\"\",'Blank - Request Form'!J176),IF('Blank - Request Form'!$F$7=\"CIFDN\",IF('Blank - Request Form'!S176=0,\"\",'Blank - Request Form'!S176),\"\"))","v":""},"",142]
[{"$f":"IF('Blank - Request Form'!$F$6=\"CIFDN\",IF('Blank - Request Form'!D177=0,\"\",'Blank - Request Form'!D177),IF('Blank - Request Form'!$F$7=\"CIFDN\",IF('Blank - Request Form'!M177=0,\"\",'Blank - Request Form'!M177),\"\"))","v":""},{"$f":"IF('Blank - Request Form'!$F$6=\"CIFDN\",IF('Blank - Request Form'!E177=0,\"\",'Blank - Request Form'!E177),IF('Blank - Request Form'!$F$7=\"CIFDN\",IF('Blank - Request Form'!N177=0,\"\",'Blank - Request Form'!N177),\"\"))","v":""},{"$f":"IF('Blank - Request Form'!$F$6=\"CIFDN\",IF(OR('Blank - Request Form'!F177=\"000\",'Blank - Request Form'!F177=0),\"\",'Blank - Request Form'!F177),IF('Blank - Request Form'!$F$7=\"CIFDN\",IF(OR('Blank - Request Form'!O177=\"000\",'Blank - Request Form'!O177=0),\"\",'Blank - Request Form'!O177),\"\"))","v":""},{"$f":"IF('Blank - Request Form'!$F$6=\"CIFDN\",IF(OR('Blank - Request Form'!G177=\"0\",'Blank - Request Form'!G177=\"00000\",'Blank - Request Form'!G177=0),\"\",'Blank - Request Form'!G177),IF('Blank - Request Form'!$F$7=\"CIFDN\",IF(OR('Blank - Request Form'!P177=\"0\",'Blank - Request Form'!P177=\"00000\",'Blank - Request Form'!P177=0),\"\",'Blank - Request Form'!P177),\"\"))","v":""},{"$f":"IF('Blank - Request Form'!$F$6=\"CIFDN\",IF(OR('Blank - Request Form'!H177=\"0\",'Blank - Request Form'!H177=\"00000\",'Blank - Request Form'!H177=0),\"\",'Blank - Request Form'!H177),IF('Blank - Request Form'!$F$7=\"CIFDN\",IF(OR('Blank - Request Form'!Q177=\"0\",'Blank - Request Form'!Q177=\"00000\",'Blank - Request Form'!Q177=0),\"\",'Blank - Request Form'!Q177),\"\"))","v":""},{"$f":"IF('Blank - Request Form'!$F$6=\"CIFDN\",IF(OR('Blank - Request Form'!I177=\"0\",'Blank - Request Form'!I177=\"00000\",'Blank - Request Form'!I177=0),\"\",'Blank - Request Form'!I177),IF('Blank - Request Form'!$F$7=\"CIFDN\",IF(OR('Blank - Request Form'!R177=\"0\",'Blank - Request Form'!R177=\"00000\",'Blank - Request Form'!R177=0),\"\",'Blank - Request Form'!R177),\"\"))","v":""},null,{"$f":"IF('Blank - Request Form'!$F$6=\"CIFDN\",IF('Blank - Request Form'!K177=0,\"\",'Blank - Request Form'!K177),IF('Blank - Request Form'!$F$7=\"CIFDN\",IF('Blank - Request Form'!T177=0,\"\",'Blank - Request Form'!T177),\"\"))","v":""},null,null,null,{"$f":"IF(M143<>\"\",'Blank - Request Form'!$M$2,\"\")","v":""},{"$f":"IF('Blank - Request Form'!$F$6=\"CIFDN\",IF('Blank - Request Form'!J177=0,\"\",'Blank - Request Form'!J177),IF('Blank - Request Form'!$F$7=\"CIFDN\",IF('Blank - Request Form'!S177=0,\"\",'Blank - Request Form'!S177),\"\"))","v":""},"",143]
[{"$f":"IF('Blank - Request Form'!$F$6=\"CIFDN\",IF('Blank - Request Form'!D178=0,\"\",'Blank - Request Form'!D178),IF('Blank - Request Form'!$F$7=\"CIFDN\",IF('Blank - Request Form'!M178=0,\"\",'Blank - Request Form'!M178),\"\"))","v":""},{"$f":"IF('Blank - Request Form'!$F$6=\"CIFDN\",IF('Blank - Request Form'!E178=0,\"\",'Blank - Request Form'!E178),IF('Blank - Request Form'!$F$7=\"CIFDN\",IF('Blank - Request Form'!N178=0,\"\",'Blank - Request Form'!N178),\"\"))","v":""},{"$f":"IF('Blank - Request Form'!$F$6=\"CIFDN\",IF(OR('Blank - Request Form'!F178=\"000\",'Blank - Request Form'!F178=0),\"\",'Blank - Request Form'!F178),IF('Blank - Request Form'!$F$7=\"CIFDN\",IF(OR('Blank - Request Form'!O178=\"000\",'Blank - Request Form'!O178=0),\"\",'Blank - Request Form'!O178),\"\"))","v":""},{"$f":"IF('Blank - Request Form'!$F$6=\"CIFDN\",IF(OR('Blank - Request Form'!G178=\"0\",'Blank - Request Form'!G178=\"00000\",'Blank - Request Form'!G178=0),\"\",'Blank - Request Form'!G178),IF('Blank - Request Form'!$F$7=\"CIFDN\",IF(OR('Blank - Request Form'!P178=\"0\",'Blank - Request Form'!P178=\"00000\",'Blank - Request Form'!P178=0),\"\",'Blank - Request Form'!P178),\"\"))","v":""},{"$f":"IF('Blank - Request Form'!$F$6=\"CIFDN\",IF(OR('Blank - Request Form'!H178=\"0\",'Blank - Request Form'!H178=\"00000\",'Blank - Request Form'!H178=0),\"\",'Blank - Request Form'!H178),IF('Blank - Request Form'!$F$7=\"CIFDN\",IF(OR('Blank - Request Form'!Q178=\"0\",'Blank - Request Form'!Q178=\"00000\",'Blank - Request Form'!Q178=0),\"\",'Blank - Request Form'!Q178),\"\"))","v":""},{"$f":"IF('Blank - Request Form'!$F$6=\"CIFDN\",IF(OR('Blank - Request Form'!I178=\"0\",'Blank - Request Form'!I178=\"00000\",'Blank - Request Form'!I178=0),\"\",'Blank - Request Form'!I178),IF('Blank - Request Form'!$F$7=\"CIFDN\",IF(OR('Blank - Request Form'!R178=\"0\",'Blank - Request Form'!R178=\"00000\",'Blank - Request Form'!R178=0),\"\",'Blank - Request Form'!R178),\"\"))","v":""},null,{"$f":"IF('Blank - Request Form'!$F$6=\"CIFDN\",IF('Blank - Request Form'!K178=0,\"\",'Blank - Request Form'!K178),IF('Blank - Request Form'!$F$7=\"CIFDN\",IF('Blank - Request Form'!T178=0,\"\",'Blank - Request Form'!T178),\"\"))","v":""},null,null,null,{"$f":"IF(M144<>\"\",'Blank - Request Form'!$M$2,\"\")","v":""},{"$f":"IF('Blank - Request Form'!$F$6=\"CIFDN\",IF('Blank - Request Form'!J178=0,\"\",'Blank - Request Form'!J178),IF('Blank - Request Form'!$F$7=\"CIFDN\",IF('Blank - Request Form'!S178=0,\"\",'Blank - Request Form'!S178),\"\"))","v":""},"",144]
[{"$f":"IF('Blank - Request Form'!$F$6=\"CIFDN\",IF('Blank - Request Form'!D179=0,\"\",'Blank - Request Form'!D179),IF('Blank - Request Form'!$F$7=\"CIFDN\",IF('Blank - Request Form'!M179=0,\"\",'Blank - Request Form'!M179),\"\"))","v":""},{"$f":"IF('Blank - Request Form'!$F$6=\"CIFDN\",IF('Blank - Request Form'!E179=0,\"\",'Blank - Request Form'!E179),IF('Blank - Request Form'!$F$7=\"CIFDN\",IF('Blank - Request Form'!N179=0,\"\",'Blank - Request Form'!N179),\"\"))","v":""},{"$f":"IF('Blank - Request Form'!$F$6=\"CIFDN\",IF(OR('Blank - Request Form'!F179=\"000\",'Blank - Request Form'!F179=0),\"\",'Blank - Request Form'!F179),IF('Blank - Request Form'!$F$7=\"CIFDN\",IF(OR('Blank - Request Form'!O179=\"000\",'Blank - Request Form'!O179=0),\"\",'Blank - Request Form'!O179),\"\"))","v":""},{"$f":"IF('Blank - Request Form'!$F$6=\"CIFDN\",IF(OR('Blank - Request Form'!G179=\"0\",'Blank - Request Form'!G179=\"00000\",'Blank - Request Form'!G179=0),\"\",'Blank - Request Form'!G179),IF('Blank - Request Form'!$F$7=\"CIFDN\",IF(OR('Blank - Request Form'!P179=\"0\",'Blank - Request Form'!P179=\"00000\",'Blank - Request Form'!P179=0),\"\",'Blank - Request Form'!P179),\"\"))","v":""},{"$f":"IF('Blank - Request Form'!$F$6=\"CIFDN\",IF(OR('Blank - Request Form'!H179=\"0\",'Blank - Request Form'!H179=\"00000\",'Blank - Request Form'!H179=0),\"\",'Blank - Request Form'!H179),IF('Blank - Request Form'!$F$7=\"CIFDN\",IF(OR('Blank - Request Form'!Q179=\"0\",'Blank - Request Form'!Q179=\"00000\",'Blank - Request Form'!Q179=0),\"\",'Blank - Request Form'!Q179),\"\"))","v":""},{"$f":"IF('Blank - Request Form'!$F$6=\"CIFDN\",IF(OR('Blank - Request Form'!I179=\"0\",'Blank - Request Form'!I179=\"00000\",'Blank - Request Form'!I179=0),\"\",'Blank - Request Form'!I179),IF('Blank - Request Form'!$F$7=\"CIFDN\",IF(OR('Blank - Request Form'!R179=\"0\",'Blank - Request Form'!R179=\"00000\",'Blank - Request Form'!R179=0),\"\",'Blank - Request Form'!R179),\"\"))","v":""},null,{"$f":"IF('Blank - Request Form'!$F$6=\"CIFDN\",IF('Blank - Request Form'!K179=0,\"\",'Blank - Request Form'!K179),IF('Blank - Request Form'!$F$7=\"CIFDN\",IF('Blank - Request Form'!T179=0,\"\",'Blank - Request Form'!T179),\"\"))","v":""},null,null,null,{"$f":"IF(M145<>\"\",'Blank - Request Form'!$M$2,\"\")","v":""},{"$f":"IF('Blank - Request Form'!$F$6=\"CIFDN\",IF('Blank - Request Form'!J179=0,\"\",'Blank - Request Form'!J179),IF('Blank - Request Form'!$F$7=\"CIFDN\",IF('Blank - Request Form'!S179=0,\"\",'Blank - Request Form'!S179),\"\"))","v":""},"",145]
[{"$f":"IF('Blank - Request Form'!$F$6=\"CIFDN\",IF('Blank - Request Form'!D180=0,\"\",'Blank - Request Form'!D180),IF('Blank - Request Form'!$F$7=\"CIFDN\",IF('Blank - Request Form'!M180=0,\"\",'Blank - Request Form'!M180),\"\"))","v":""},{"$f":"IF('Blank - Request Form'!$F$6=\"CIFDN\",IF('Blank - Request Form'!E180=0,\"\",'Blank - Request Form'!E180),IF('Blank - Request Form'!$F$7=\"CIFDN\",IF('Blank - Request Form'!N180=0,\"\",'Blank - Request Form'!N180),\"\"))","v":""},{"$f":"IF('Blank - Request Form'!$F$6=\"CIFDN\",IF(OR('Blank - Request Form'!F180=\"000\",'Blank - Request Form'!F180=0),\"\",'Blank - Request Form'!F180),IF('Blank - Request Form'!$F$7=\"CIFDN\",IF(OR('Blank - Request Form'!O180=\"000\",'Blank - Request Form'!O180=0),\"\",'Blank - Request Form'!O180),\"\"))","v":""},{"$f":"IF('Blank - Request Form'!$F$6=\"CIFDN\",IF(OR('Blank - Request Form'!G180=\"0\",'Blank - Request Form'!G180=\"00000\",'Blank - Request Form'!G180=0),\"\",'Blank - Request Form'!G180),IF('Blank - Request Form'!$F$7=\"CIFDN\",IF(OR('Blank - Request Form'!P180=\"0\",'Blank - Request Form'!P180=\"00000\",'Blank - Request Form'!P180=0),\"\",'Blank - Request Form'!P180),\"\"))","v":""},{"$f":"IF('Blank - Request Form'!$F$6=\"CIFDN\",IF(OR('Blank - Request Form'!H180=\"0\",'Blank - Request Form'!H180=\"00000\",'Blank - Request Form'!H180=0),\"\",'Blank - Request Form'!H180),IF('Blank - Request Form'!$F$7=\"CIFDN\",IF(OR('Blank - Request Form'!Q180=\"0\",'Blank - Request Form'!Q180=\"00000\",'Blank - Request Form'!Q180=0),\"\",'Blank - Request Form'!Q180),\"\"))","v":""},{"$f":"IF('Blank - Request Form'!$F$6=\"CIFDN\",IF(OR('Blank - Request Form'!I180=\"0\",'Blank - Request Form'!I180=\"00000\",'Blank - Request Form'!I180=0),\"\",'Blank - Request Form'!I180),IF('Blank - Request Form'!$F$7=\"CIFDN\",IF(OR('Blank - Request Form'!R180=\"0\",'Blank - Request Form'!R180=\"00000\",'Blank - Request Form'!R180=0),\"\",'Blank - Request Form'!R180),\"\"))","v":""},null,{"$f":"IF('Blank - Request Form'!$F$6=\"CIFDN\",IF('Blank - Request Form'!K180=0,\"\",'Blank - Request Form'!K180),IF('Blank - Request Form'!$F$7=\"CIFDN\",IF('Blank - Request Form'!T180=0,\"\",'Blank - Request Form'!T180),\"\"))","v":""},null,null,null,{"$f":"IF(M146<>\"\",'Blank - Request Form'!$M$2,\"\")","v":""},{"$f":"IF('Blank - Request Form'!$F$6=\"CIFDN\",IF('Blank - Request Form'!J180=0,\"\",'Blank - Request Form'!J180),IF('Blank - Request Form'!$F$7=\"CIFDN\",IF('Blank - Request Form'!S180=0,\"\",'Blank - Request Form'!S180),\"\"))","v":""},"",146]
[{"$f":"IF('Blank - Request Form'!$F$6=\"CIFDN\",IF('Blank - Request Form'!D181=0,\"\",'Blank - Request Form'!D181),IF('Blank - Request Form'!$F$7=\"CIFDN\",IF('Blank - Request Form'!M181=0,\"\",'Blank - Request Form'!M181),\"\"))","v":""},{"$f":"IF('Blank - Request Form'!$F$6=\"CIFDN\",IF('Blank - Request Form'!E181=0,\"\",'Blank - Request Form'!E181),IF('Blank - Request Form'!$F$7=\"CIFDN\",IF('Blank - Request Form'!N181=0,\"\",'Blank - Request Form'!N181),\"\"))","v":""},{"$f":"IF('Blank - Request Form'!$F$6=\"CIFDN\",IF(OR('Blank - Request Form'!F181=\"000\",'Blank - Request Form'!F181=0),\"\",'Blank - Request Form'!F181),IF('Blank - Request Form'!$F$7=\"CIFDN\",IF(OR('Blank - Request Form'!O181=\"000\",'Blank - Request Form'!O181=0),\"\",'Blank - Request Form'!O181),\"\"))","v":""},{"$f":"IF('Blank - Request Form'!$F$6=\"CIFDN\",IF(OR('Blank - Request Form'!G181=\"0\",'Blank - Request Form'!G181=\"00000\",'Blank - Request Form'!G181=0),\"\",'Blank - Request Form'!G181),IF('Blank - Request Form'!$F$7=\"CIFDN\",IF(OR('Blank - Request Form'!P181=\"0\",'Blank - Request Form'!P181=\"00000\",'Blank - Request Form'!P181=0),\"\",'Blank - Request Form'!P181),\"\"))","v":""},{"$f":"IF('Blank - Request Form'!$F$6=\"CIFDN\",IF(OR('Blank - Request Form'!H181=\"0\",'Blank - Request Form'!H181=\"00000\",'Blank - Request Form'!H181=0),\"\",'Blank - Request Form'!H181),IF('Blank - Request Form'!$F$7=\"CIFDN\",IF(OR('Blank - Request Form'!Q181=\"0\",'Blank - Request Form'!Q181=\"00000\",'Blank - Request Form'!Q181=0),\"\",'Blank - Request Form'!Q181),\"\"))","v":""},{"$f":"IF('Blank - Request Form'!$F$6=\"CIFDN\",IF(OR('Blank - Request Form'!I181=\"0\",'Blank - Request Form'!I181=\"00000\",'Blank - Request Form'!I181=0),\"\",'Blank - Request Form'!I181),IF('Blank - Request Form'!$F$7=\"CIFDN\",IF(OR('Blank - Request Form'!R181=\"0\",'Blank - Request Form'!R181=\"00000\",'Blank - Request Form'!R181=0),\"\",'Blank - Request Form'!R181),\"\"))","v":""},null,{"$f":"IF('Blank - Request Form'!$F$6=\"CIFDN\",IF('Blank - Request Form'!K181=0,\"\",'Blank - Request Form'!K181),IF('Blank - Request Form'!$F$7=\"CIFDN\",IF('Blank - Request Form'!T181=0,\"\",'Blank - Request Form'!T181),\"\"))","v":""},null,null,null,{"$f":"IF(M147<>\"\",'Blank - Request Form'!$M$2,\"\")","v":""},{"$f":"IF('Blank - Request Form'!$F$6=\"CIFDN\",IF('Blank - Request Form'!J181=0,\"\",'Blank - Request Form'!J181),IF('Blank - Request Form'!$F$7=\"CIFDN\",IF('Blank - Request Form'!S181=0,\"\",'Blank - Request Form'!S181),\"\"))","v":""},"",147]
[{"$f":"IF('Blank - Request Form'!$F$6=\"CIFDN\",IF('Blank - Request Form'!D182=0,\"\",'Blank - Request Form'!D182),IF('Blank - Request Form'!$F$7=\"CIFDN\",IF('Blank - Request Form'!M182=0,\"\",'Blank - Request Form'!M182),\"\"))","v":""},{"$f":"IF('Blank - Request Form'!$F$6=\"CIFDN\",IF('Blank - Request Form'!E182=0,\"\",'Blank - Request Form'!E182),IF('Blank - Request Form'!$F$7=\"CIFDN\",IF('Blank - Request Form'!N182=0,\"\",'Blank - Request Form'!N182),\"\"))","v":""},{"$f":"IF('Blank - Request Form'!$F$6=\"CIFDN\",IF(OR('Blank - Request Form'!F182=\"000\",'Blank - Request Form'!F182=0),\"\",'Blank - Request Form'!F182),IF('Blank - Request Form'!$F$7=\"CIFDN\",IF(OR('Blank - Request Form'!O182=\"000\",'Blank - Request Form'!O182=0),\"\",'Blank - Request Form'!O182),\"\"))","v":""},{"$f":"IF('Blank - Request Form'!$F$6=\"CIFDN\",IF(OR('Blank - Request Form'!G182=\"0\",'Blank - Request Form'!G182=\"00000\",'Blank - Request Form'!G182=0),\"\",'Blank - Request Form'!G182),IF('Blank - Request Form'!$F$7=\"CIFDN\",IF(OR('Blank - Request Form'!P182=\"0\",'Blank - Request Form'!P182=\"00000\",'Blank - Request Form'!P182=0),\"\",'Blank - Request Form'!P182),\"\"))","v":""},{"$f":"IF('Blank - Request Form'!$F$6=\"CIFDN\",IF(OR('Blank - Request Form'!H182=\"0\",'Blank - Request Form'!H182=\"00000\",'Blank - Request Form'!H182=0),\"\",'Blank - Request Form'!H182),IF('Blank - Request Form'!$F$7=\"CIFDN\",IF(OR('Blank - Request Form'!Q182=\"0\",'Blank - Request Form'!Q182=\"00000\",'Blank - Request Form'!Q182=0),\"\",'Blank - Request Form'!Q182),\"\"))","v":""},{"$f":"IF('Blank - Request Form'!$F$6=\"CIFDN\",IF(OR('Blank - Request Form'!I182=\"0\",'Blank - Request Form'!I182=\"00000\",'Blank - Request Form'!I182=0),\"\",'Blank - Request Form'!I182),IF('Blank - Request Form'!$F$7=\"CIFDN\",IF(OR('Blank - Request Form'!R182=\"0\",'Blank - Request Form'!R182=\"00000\",'Blank - Request Form'!R182=0),\"\",'Blank - Request Form'!R182),\"\"))","v":""},null,{"$f":"IF('Blank - Request Form'!$F$6=\"CIFDN\",IF('Blank - Request Form'!K182=0,\"\",'Blank - Request Form'!K182),IF('Blank - Request Form'!$F$7=\"CIFDN\",IF('Blank - Request Form'!T182=0,\"\",'Blank - Request Form'!T182),\"\"))","v":""},null,null,null,{"$f":"IF(M148<>\"\",'Blank - Request Form'!$M$2,\"\")","v":""},{"$f":"IF('Blank - Request Form'!$F$6=\"CIFDN\",IF('Blank - Request Form'!J182=0,\"\",'Blank - Request Form'!J182),IF('Blank - Request Form'!$F$7=\"CIFDN\",IF('Blank - Request Form'!S182=0,\"\",'Blank - Request Form'!S182),\"\"))","v":""},"",148]
[{"$f":"IF('Blank - Request Form'!$F$6=\"CIFDN\",IF('Blank - Request Form'!D183=0,\"\",'Blank - Request Form'!D183),IF('Blank - Request Form'!$F$7=\"CIFDN\",IF('Blank - Request Form'!M183=0,\"\",'Blank - Request Form'!M183),\"\"))","v":""},{"$f":"IF('Blank - Request Form'!$F$6=\"CIFDN\",IF('Blank - Request Form'!E183=0,\"\",'Blank - Request Form'!E183),IF('Blank - Request Form'!$F$7=\"CIFDN\",IF('Blank - Request Form'!N183=0,\"\",'Blank - Request Form'!N183),\"\"))","v":""},{"$f":"IF('Blank - Request Form'!$F$6=\"CIFDN\",IF(OR('Blank - Request Form'!F183=\"000\",'Blank - Request Form'!F183=0),\"\",'Blank - Request Form'!F183),IF('Blank - Request Form'!$F$7=\"CIFDN\",IF(OR('Blank - Request Form'!O183=\"000\",'Blank - Request Form'!O183=0),\"\",'Blank - Request Form'!O183),\"\"))","v":""},{"$f":"IF('Blank - Request Form'!$F$6=\"CIFDN\",IF(OR('Blank - Request Form'!G183=\"0\",'Blank - Request Form'!G183=\"00000\",'Blank - Request Form'!G183=0),\"\",'Blank - Request Form'!G183),IF('Blank - Request Form'!$F$7=\"CIFDN\",IF(OR('Blank - Request Form'!P183=\"0\",'Blank - Request Form'!P183=\"00000\",'Blank - Request Form'!P183=0),\"\",'Blank - Request Form'!P183),\"\"))","v":""},{"$f":"IF('Blank - Request Form'!$F$6=\"CIFDN\",IF(OR('Blank - Request Form'!H183=\"0\",'Blank - Request Form'!H183=\"00000\",'Blank - Request Form'!H183=0),\"\",'Blank - Request Form'!H183),IF('Blank - Request Form'!$F$7=\"CIFDN\",IF(OR('Blank - Request Form'!Q183=\"0\",'Blank - Request Form'!Q183=\"00000\",'Blank - Request Form'!Q183=0),\"\",'Blank - Request Form'!Q183),\"\"))","v":""},{"$f":"IF('Blank - Request Form'!$F$6=\"CIFDN\",IF(OR('Blank - Request Form'!I183=\"0\",'Blank - Request Form'!I183=\"00000\",'Blank - Request Form'!I183=0),\"\",'Blank - Request Form'!I183),IF('Blank - Request Form'!$F$7=\"CIFDN\",IF(OR('Blank - Request Form'!R183=\"0\",'Blank - Request Form'!R183=\"00000\",'Blank - Request Form'!R183=0),\"\",'Blank - Request Form'!R183),\"\"))","v":""},null,{"$f":"IF('Blank - Request Form'!$F$6=\"CIFDN\",IF('Blank - Request Form'!K183=0,\"\",'Blank - Request Form'!K183),IF('Blank - Request Form'!$F$7=\"CIFDN\",IF('Blank - Request Form'!T183=0,\"\",'Blank - Request Form'!T183),\"\"))","v":""},null,null,null,{"$f":"IF(M149<>\"\",'Blank - Request Form'!$M$2,\"\")","v":""},{"$f":"IF('Blank - Request Form'!$F$6=\"CIFDN\",IF('Blank - Request Form'!J183=0,\"\",'Blank - Request Form'!J183),IF('Blank - Request Form'!$F$7=\"CIFDN\",IF('Blank - Request Form'!S183=0,\"\",'Blank - Request Form'!S183),\"\"))","v":""},"",149]
[{"$f":"IF('Blank - Request Form'!$F$6=\"CIFDN\",IF('Blank - Request Form'!D184=0,\"\",'Blank - Request Form'!D184),IF('Blank - Request Form'!$F$7=\"CIFDN\",IF('Blank - Request Form'!M184=0,\"\",'Blank - Request Form'!M184),\"\"))","v":""},{"$f":"IF('Blank - Request Form'!$F$6=\"CIFDN\",IF('Blank - Request Form'!E184=0,\"\",'Blank - Request Form'!E184),IF('Blank - Request Form'!$F$7=\"CIFDN\",IF('Blank - Request Form'!N184=0,\"\",'Blank - Request Form'!N184),\"\"))","v":""},{"$f":"IF('Blank - Request Form'!$F$6=\"CIFDN\",IF(OR('Blank - Request Form'!F184=\"000\",'Blank - Request Form'!F184=0),\"\",'Blank - Request Form'!F184),IF('Blank - Request Form'!$F$7=\"CIFDN\",IF(OR('Blank - Request Form'!O184=\"000\",'Blank - Request Form'!O184=0),\"\",'Blank - Request Form'!O184),\"\"))","v":""},{"$f":"IF('Blank - Request Form'!$F$6=\"CIFDN\",IF(OR('Blank - Request Form'!G184=\"0\",'Blank - Request Form'!G184=\"00000\",'Blank - Request Form'!G184=0),\"\",'Blank - Request Form'!G184),IF('Blank - Request Form'!$F$7=\"CIFDN\",IF(OR('Blank - Request Form'!P184=\"0\",'Blank - Request Form'!P184=\"00000\",'Blank - Request Form'!P184=0),\"\",'Blank - Request Form'!P184),\"\"))","v":""},{"$f":"IF('Blank - Request Form'!$F$6=\"CIFDN\",IF(OR('Blank - Request Form'!H184=\"0\",'Blank - Request Form'!H184=\"00000\",'Blank - Request Form'!H184=0),\"\",'Blank - Request Form'!H184),IF('Blank - Request Form'!$F$7=\"CIFDN\",IF(OR('Blank - Request Form'!Q184=\"0\",'Blank - Request Form'!Q184=\"00000\",'Blank - Request Form'!Q184=0),\"\",'Blank - Request Form'!Q184),\"\"))","v":""},{"$f":"IF('Blank - Request Form'!$F$6=\"CIFDN\",IF(OR('Blank - Request Form'!I184=\"0\",'Blank - Request Form'!I184=\"00000\",'Blank - Request Form'!I184=0),\"\",'Blank - Request Form'!I184),IF('Blank - Request Form'!$F$7=\"CIFDN\",IF(OR('Blank - Request Form'!R184=\"0\",'Blank - Request Form'!R184=\"00000\",'Blank - Request Form'!R184=0),\"\",'Blank - Request Form'!R184),\"\"))","v":""},null,{"$f":"IF('Blank - Request Form'!$F$6=\"CIFDN\",IF('Blank - Request Form'!K184=0,\"\",'Blank - Request Form'!K184),IF('Blank - Request Form'!$F$7=\"CIFDN\",IF('Blank - Request Form'!T184=0,\"\",'Blank - Request Form'!T184),\"\"))","v":""},null,null,null,{"$f":"IF(M150<>\"\",'Blank - Request Form'!$M$2,\"\")","v":""},{"$f":"IF('Blank - Request Form'!$F$6=\"CIFDN\",IF('Blank - Request Form'!J184=0,\"\",'Blank - Request Form'!J184),IF('Blank - Request Form'!$F$7=\"CIFDN\",IF('Blank - Request Form'!S184=0,\"\",'Blank - Request Form'!S184),\"\"))","v":""},"",150]
[{"$f":"IF('Blank - Request Form'!$F$6=\"CIFDN\",IF('Blank - Request Form'!D185=0,\"\",'Blank - Request Form'!D185),IF('Blank - Request Form'!$F$7=\"CIFDN\",IF('Blank - Request Form'!M185=0,\"\",'Blank - Request Form'!M185),\"\"))","v":""},{"$f":"IF('Blank - Request Form'!$F$6=\"CIFDN\",IF('Blank - Request Form'!E185=0,\"\",'Blank - Request Form'!E185),IF('Blank - Request Form'!$F$7=\"CIFDN\",IF('Blank - Request Form'!N185=0,\"\",'Blank - Request Form'!N185),\"\"))","v":""},{"$f":"IF('Blank - Request Form'!$F$6=\"CIFDN\",IF(OR('Blank - Request Form'!F185=\"000\",'Blank - Request Form'!F185=0),\"\",'Blank - Request Form'!F185),IF('Blank - Request Form'!$F$7=\"CIFDN\",IF(OR('Blank - Request Form'!O185=\"000\",'Blank - Request Form'!O185=0),\"\",'Blank - Request Form'!O185),\"\"))","v":""},{"$f":"IF('Blank - Request Form'!$F$6=\"CIFDN\",IF(OR('Blank - Request Form'!G185=\"0\",'Blank - Request Form'!G185=\"00000\",'Blank - Request Form'!G185=0),\"\",'Blank - Request Form'!G185),IF('Blank - Request Form'!$F$7=\"CIFDN\",IF(OR('Blank - Request Form'!P185=\"0\",'Blank - Request Form'!P185=\"00000\",'Blank - Request Form'!P185=0),\"\",'Blank - Request Form'!P185),\"\"))","v":""},{"$f":"IF('Blank - Request Form'!$F$6=\"CIFDN\",IF(OR('Blank - Request Form'!H185=\"0\",'Blank - Request Form'!H185=\"00000\",'Blank - Request Form'!H185=0),\"\",'Blank - Request Form'!H185),IF('Blank - Request Form'!$F$7=\"CIFDN\",IF(OR('Blank - Request Form'!Q185=\"0\",'Blank - Request Form'!Q185=\"00000\",'Blank - Request Form'!Q185=0),\"\",'Blank - Request Form'!Q185),\"\"))","v":""},{"$f":"IF('Blank - Request Form'!$F$6=\"CIFDN\",IF(OR('Blank - Request Form'!I185=\"0\",'Blank - Request Form'!I185=\"00000\",'Blank - Request Form'!I185=0),\"\",'Blank - Request Form'!I185),IF('Blank - Request Form'!$F$7=\"CIFDN\",IF(OR('Blank - Request Form'!R185=\"0\",'Blank - Request Form'!R185=\"00000\",'Blank - Request Form'!R185=0),\"\",'Blank - Request Form'!R185),\"\"))","v":""},null,{"$f":"IF('Blank - Request Form'!$F$6=\"CIFDN\",IF('Blank - Request Form'!K185=0,\"\",'Blank - Request Form'!K185),IF('Blank - Request Form'!$F$7=\"CIFDN\",IF('Blank - Request Form'!T185=0,\"\",'Blank - Request Form'!T185),\"\"))","v":""},null,null,null,{"$f":"IF(M151<>\"\",'Blank - Request Form'!$M$2,\"\")","v":""},{"$f":"IF('Blank - Request Form'!$F$6=\"CIFDN\",IF('Blank - Request Form'!J185=0,\"\",'Blank - Request Form'!J185),IF('Blank - Request Form'!$F$7=\"CIFDN\",IF('Blank - Request Form'!S185=0,\"\",'Blank - Request Form'!S185),\"\"))","v":""},"",151]
[{"$f":"IF('Blank - Request Form'!$F$6=\"CIFDN\",IF('Blank - Request Form'!D186=0,\"\",'Blank - Request Form'!D186),IF('Blank - Request Form'!$F$7=\"CIFDN\",IF('Blank - Request Form'!M186=0,\"\",'Blank - Request Form'!M186),\"\"))","v":""},{"$f":"IF('Blank - Request Form'!$F$6=\"CIFDN\",IF('Blank - Request Form'!E186=0,\"\",'Blank - Request Form'!E186),IF('Blank - Request Form'!$F$7=\"CIFDN\",IF('Blank - Request Form'!N186=0,\"\",'Blank - Request Form'!N186),\"\"))","v":""},{"$f":"IF('Blank - Request Form'!$F$6=\"CIFDN\",IF(OR('Blank - Request Form'!F186=\"000\",'Blank - Request Form'!F186=0),\"\",'Blank - Request Form'!F186),IF('Blank - Request Form'!$F$7=\"CIFDN\",IF(OR('Blank - Request Form'!O186=\"000\",'Blank - Request Form'!O186=0),\"\",'Blank - Request Form'!O186),\"\"))","v":""},{"$f":"IF('Blank - Request Form'!$F$6=\"CIFDN\",IF(OR('Blank - Request Form'!G186=\"0\",'Blank - Request Form'!G186=\"00000\",'Blank - Request Form'!G186=0),\"\",'Blank - Request Form'!G186),IF('Blank - Request Form'!$F$7=\"CIFDN\",IF(OR('Blank - Request Form'!P186=\"0\",'Blank - Request Form'!P186=\"00000\",'Blank - Request Form'!P186=0),\"\",'Blank - Request Form'!P186),\"\"))","v":""},{"$f":"IF('Blank - Request Form'!$F$6=\"CIFDN\",IF(OR('Blank - Request Form'!H186=\"0\",'Blank - Request Form'!H186=\"00000\",'Blank - Request Form'!H186=0),\"\",'Blank - Request Form'!H186),IF('Blank - Request Form'!$F$7=\"CIFDN\",IF(OR('Blank - Request Form'!Q186=\"0\",'Blank - Request Form'!Q186=\"00000\",'Blank - Request Form'!Q186=0),\"\",'Blank - Request Form'!Q186),\"\"))","v":""},{"$f":"IF('Blank - Request Form'!$F$6=\"CIFDN\",IF(OR('Blank - Request Form'!I186=\"0\",'Blank - Request Form'!I186=\"00000\",'Blank - Request Form'!I186=0),\"\",'Blank - Request Form'!I186),IF('Blank - Request Form'!$F$7=\"CIFDN\",IF(OR('Blank - Request Form'!R186=\"0\",'Blank - Request Form'!R186=\"00000\",'Blank - Request Form'!R186=0),\"\",'Blank - Request Form'!R186),\"\"))","v":""},null,{"$f":"IF('Blank - Request Form'!$F$6=\"CIFDN\",IF('Blank - Request Form'!K186=0,\"\",'Blank - Request Form'!K186),IF('Blank - Request Form'!$F$7=\"CIFDN\",IF('Blank - Request Form'!T186=0,\"\",'Blank - Request Form'!T186),\"\"))","v":""},null,null,null,{"$f":"IF(M152<>\"\",'Blank - Request Form'!$M$2,\"\")","v":""},{"$f":"IF('Blank - Request Form'!$F$6=\"CIFDN\",IF('Blank - Request Form'!J186=0,\"\",'Blank - Request Form'!J186),IF('Blank - Request Form'!$F$7=\"CIFDN\",IF('Blank - Request Form'!S186=0,\"\",'Blank - Request Form'!S186),\"\"))","v":""},"",152]
[{"$f":"IF('Blank - Request Form'!$F$6=\"CIFDN\",IF('Blank - Request Form'!D187=0,\"\",'Blank - Request Form'!D187),IF('Blank - Request Form'!$F$7=\"CIFDN\",IF('Blank - Request Form'!M187=0,\"\",'Blank - Request Form'!M187),\"\"))","v":""},{"$f":"IF('Blank - Request Form'!$F$6=\"CIFDN\",IF('Blank - Request Form'!E187=0,\"\",'Blank - Request Form'!E187),IF('Blank - Request Form'!$F$7=\"CIFDN\",IF('Blank - Request Form'!N187=0,\"\",'Blank - Request Form'!N187),\"\"))","v":""},{"$f":"IF('Blank - Request Form'!$F$6=\"CIFDN\",IF(OR('Blank - Request Form'!F187=\"000\",'Blank - Request Form'!F187=0),\"\",'Blank - Request Form'!F187),IF('Blank - Request Form'!$F$7=\"CIFDN\",IF(OR('Blank - Request Form'!O187=\"000\",'Blank - Request Form'!O187=0),\"\",'Blank - Request Form'!O187),\"\"))","v":""},{"$f":"IF('Blank - Request Form'!$F$6=\"CIFDN\",IF(OR('Blank - Request Form'!G187=\"0\",'Blank - Request Form'!G187=\"00000\",'Blank - Request Form'!G187=0),\"\",'Blank - Request Form'!G187),IF('Blank - Request Form'!$F$7=\"CIFDN\",IF(OR('Blank - Request Form'!P187=\"0\",'Blank - Request Form'!P187=\"00000\",'Blank - Request Form'!P187=0),\"\",'Blank - Request Form'!P187),\"\"))","v":""},{"$f":"IF('Blank - Request Form'!$F$6=\"CIFDN\",IF(OR('Blank - Request Form'!H187=\"0\",'Blank - Request Form'!H187=\"00000\",'Blank - Request Form'!H187=0),\"\",'Blank - Request Form'!H187),IF('Blank - Request Form'!$F$7=\"CIFDN\",IF(OR('Blank - Request Form'!Q187=\"0\",'Blank - Request Form'!Q187=\"00000\",'Blank - Request Form'!Q187=0),\"\",'Blank - Request Form'!Q187),\"\"))","v":""},{"$f":"IF('Blank - Request Form'!$F$6=\"CIFDN\",IF(OR('Blank - Request Form'!I187=\"0\",'Blank - Request Form'!I187=\"00000\",'Blank - Request Form'!I187=0),\"\",'Blank - Request Form'!I187),IF('Blank - Request Form'!$F$7=\"CIFDN\",IF(OR('Blank - Request Form'!R187=\"0\",'Blank - Request Form'!R187=\"00000\",'Blank - Request Form'!R187=0),\"\",'Blank - Request Form'!R187),\"\"))","v":""},null,{"$f":"IF('Blank - Request Form'!$F$6=\"CIFDN\",IF('Blank - Request Form'!K187=0,\"\",'Blank - Request Form'!K187),IF('Blank - Request Form'!$F$7=\"CIFDN\",IF('Blank - Request Form'!T187=0,\"\",'Blank - Request Form'!T187),\"\"))","v":""},null,null,null,{"$f":"IF(M153<>\"\",'Blank - Request Form'!$M$2,\"\")","v":""},{"$f":"IF('Blank - Request Form'!$F$6=\"CIFDN\",IF('Blank - Request Form'!J187=0,\"\",'Blank - Request Form'!J187),IF('Blank - Request Form'!$F$7=\"CIFDN\",IF('Blank - Request Form'!S187=0,\"\",'Blank - Request Form'!S187),\"\"))","v":""},"",153]
[{"$f":"IF('Blank - Request Form'!$F$6=\"CIFDN\",IF('Blank - Request Form'!D188=0,\"\",'Blank - Request Form'!D188),IF('Blank - Request Form'!$F$7=\"CIFDN\",IF('Blank - Request Form'!M188=0,\"\",'Blank - Request Form'!M188),\"\"))","v":""},{"$f":"IF('Blank - Request Form'!$F$6=\"CIFDN\",IF('Blank - Request Form'!E188=0,\"\",'Blank - Request Form'!E188),IF('Blank - Request Form'!$F$7=\"CIFDN\",IF('Blank - Request Form'!N188=0,\"\",'Blank - Request Form'!N188),\"\"))","v":""},{"$f":"IF('Blank - Request Form'!$F$6=\"CIFDN\",IF(OR('Blank - Request Form'!F188=\"000\",'Blank - Request Form'!F188=0),\"\",'Blank - Request Form'!F188),IF('Blank - Request Form'!$F$7=\"CIFDN\",IF(OR('Blank - Request Form'!O188=\"000\",'Blank - Request Form'!O188=0),\"\",'Blank - Request Form'!O188),\"\"))","v":""},{"$f":"IF('Blank - Request Form'!$F$6=\"CIFDN\",IF(OR('Blank - Request Form'!G188=\"0\",'Blank - Request Form'!G188=\"00000\",'Blank - Request Form'!G188=0),\"\",'Blank - Request Form'!G188),IF('Blank - Request Form'!$F$7=\"CIFDN\",IF(OR('Blank - Request Form'!P188=\"0\",'Blank - Request Form'!P188=\"00000\",'Blank - Request Form'!P188=0),\"\",'Blank - Request Form'!P188),\"\"))","v":""},{"$f":"IF('Blank - Request Form'!$F$6=\"CIFDN\",IF(OR('Blank - Request Form'!H188=\"0\",'Blank - Request Form'!H188=\"00000\",'Blank - Request Form'!H188=0),\"\",'Blank - Request Form'!H188),IF('Blank - Request Form'!$F$7=\"CIFDN\",IF(OR('Blank - Request Form'!Q188=\"0\",'Blank - Request Form'!Q188=\"00000\",'Blank - Request Form'!Q188=0),\"\",'Blank - Request Form'!Q188),\"\"))","v":""},{"$f":"IF('Blank - Request Form'!$F$6=\"CIFDN\",IF(OR('Blank - Request Form'!I188=\"0\",'Blank - Request Form'!I188=\"00000\",'Blank - Request Form'!I188=0),\"\",'Blank - Request Form'!I188),IF('Blank - Request Form'!$F$7=\"CIFDN\",IF(OR('Blank - Request Form'!R188=\"0\",'Blank - Request Form'!R188=\"00000\",'Blank - Request Form'!R188=0),\"\",'Blank - Request Form'!R188),\"\"))","v":""},null,{"$f":"IF('Blank - Request Form'!$F$6=\"CIFDN\",IF('Blank - Request Form'!K188=0,\"\",'Blank - Request Form'!K188),IF('Blank - Request Form'!$F$7=\"CIFDN\",IF('Blank - Request Form'!T188=0,\"\",'Blank - Request Form'!T188),\"\"))","v":""},null,null,null,{"$f":"IF(M154<>\"\",'Blank - Request Form'!$M$2,\"\")","v":""},{"$f":"IF('Blank - Request Form'!$F$6=\"CIFDN\",IF('Blank - Request Form'!J188=0,\"\",'Blank - Request Form'!J188),IF('Blank - Request Form'!$F$7=\"CIFDN\",IF('Blank - Request Form'!S188=0,\"\",'Blank - Request Form'!S188),\"\"))","v":""},"",154]
[{"$f":"IF('Blank - Request Form'!$F$6=\"CIFDN\",IF('Blank - Request Form'!D189=0,\"\",'Blank - Request Form'!D189),IF('Blank - Request Form'!$F$7=\"CIFDN\",IF('Blank - Request Form'!M189=0,\"\",'Blank - Request Form'!M189),\"\"))","v":""},{"$f":"IF('Blank - Request Form'!$F$6=\"CIFDN\",IF('Blank - Request Form'!E189=0,\"\",'Blank - Request Form'!E189),IF('Blank - Request Form'!$F$7=\"CIFDN\",IF('Blank - Request Form'!N189=0,\"\",'Blank - Request Form'!N189),\"\"))","v":""},{"$f":"IF('Blank - Request Form'!$F$6=\"CIFDN\",IF(OR('Blank - Request Form'!F189=\"000\",'Blank - Request Form'!F189=0),\"\",'Blank - Request Form'!F189),IF('Blank - Request Form'!$F$7=\"CIFDN\",IF(OR('Blank - Request Form'!O189=\"000\",'Blank - Request Form'!O189=0),\"\",'Blank - Request Form'!O189),\"\"))","v":""},{"$f":"IF('Blank - Request Form'!$F$6=\"CIFDN\",IF(OR('Blank - Request Form'!G189=\"0\",'Blank - Request Form'!G189=\"00000\",'Blank - Request Form'!G189=0),\"\",'Blank - Request Form'!G189),IF('Blank - Request Form'!$F$7=\"CIFDN\",IF(OR('Blank - Request Form'!P189=\"0\",'Blank - Request Form'!P189=\"00000\",'Blank - Request Form'!P189=0),\"\",'Blank - Request Form'!P189),\"\"))","v":""},{"$f":"IF('Blank - Request Form'!$F$6=\"CIFDN\",IF(OR('Blank - Request Form'!H189=\"0\",'Blank - Request Form'!H189=\"00000\",'Blank - Request Form'!H189=0),\"\",'Blank - Request Form'!H189),IF('Blank - Request Form'!$F$7=\"CIFDN\",IF(OR('Blank - Request Form'!Q189=\"0\",'Blank - Request Form'!Q189=\"00000\",'Blank - Request Form'!Q189=0),\"\",'Blank - Request Form'!Q189),\"\"))","v":""},{"$f":"IF('Blank - Request Form'!$F$6=\"CIFDN\",IF(OR('Blank - Request Form'!I189=\"0\",'Blank - Request Form'!I189=\"00000\",'Blank - Request Form'!I189=0),\"\",'Blank - Request Form'!I189),IF('Blank - Request Form'!$F$7=\"CIFDN\",IF(OR('Blank - Request Form'!R189=\"0\",'Blank - Request Form'!R189=\"00000\",'Blank - Request Form'!R189=0),\"\",'Blank - Request Form'!R189),\"\"))","v":""},null,{"$f":"IF('Blank - Request Form'!$F$6=\"CIFDN\",IF('Blank - Request Form'!K189=0,\"\",'Blank - Request Form'!K189),IF('Blank - Request Form'!$F$7=\"CIFDN\",IF('Blank - Request Form'!T189=0,\"\",'Blank - Request Form'!T189),\"\"))","v":""},null,null,null,{"$f":"IF(M155<>\"\",'Blank - Request Form'!$M$2,\"\")","v":""},{"$f":"IF('Blank - Request Form'!$F$6=\"CIFDN\",IF('Blank - Request Form'!J189=0,\"\",'Blank - Request Form'!J189),IF('Blank - Request Form'!$F$7=\"CIFDN\",IF('Blank - Request Form'!S189=0,\"\",'Blank - Request Form'!S189),\"\"))","v":""},"",155]
[{"$f":"IF('Blank - Request Form'!$F$6=\"CIFDN\",IF('Blank - Request Form'!D190=0,\"\",'Blank - Request Form'!D190),IF('Blank - Request Form'!$F$7=\"CIFDN\",IF('Blank - Request Form'!M190=0,\"\",'Blank - Request Form'!M190),\"\"))","v":""},{"$f":"IF('Blank - Request Form'!$F$6=\"CIFDN\",IF('Blank - Request Form'!E190=0,\"\",'Blank - Request Form'!E190),IF('Blank - Request Form'!$F$7=\"CIFDN\",IF('Blank - Request Form'!N190=0,\"\",'Blank - Request Form'!N190),\"\"))","v":""},{"$f":"IF('Blank - Request Form'!$F$6=\"CIFDN\",IF(OR('Blank - Request Form'!F190=\"000\",'Blank - Request Form'!F190=0),\"\",'Blank - Request Form'!F190),IF('Blank - Request Form'!$F$7=\"CIFDN\",IF(OR('Blank - Request Form'!O190=\"000\",'Blank - Request Form'!O190=0),\"\",'Blank - Request Form'!O190),\"\"))","v":""},{"$f":"IF('Blank - Request Form'!$F$6=\"CIFDN\",IF(OR('Blank - Request Form'!G190=\"0\",'Blank - Request Form'!G190=\"00000\",'Blank - Request Form'!G190=0),\"\",'Blank - Request Form'!G190),IF('Blank - Request Form'!$F$7=\"CIFDN\",IF(OR('Blank - Request Form'!P190=\"0\",'Blank - Request Form'!P190=\"00000\",'Blank - Request Form'!P190=0),\"\",'Blank - Request Form'!P190),\"\"))","v":""},{"$f":"IF('Blank - Request Form'!$F$6=\"CIFDN\",IF(OR('Blank - Request Form'!H190=\"0\",'Blank - Request Form'!H190=\"00000\",'Blank - Request Form'!H190=0),\"\",'Blank - Request Form'!H190),IF('Blank - Request Form'!$F$7=\"CIFDN\",IF(OR('Blank - Request Form'!Q190=\"0\",'Blank - Request Form'!Q190=\"00000\",'Blank - Request Form'!Q190=0),\"\",'Blank - Request Form'!Q190),\"\"))","v":""},{"$f":"IF('Blank - Request Form'!$F$6=\"CIFDN\",IF(OR('Blank - Request Form'!I190=\"0\",'Blank - Request Form'!I190=\"00000\",'Blank - Request Form'!I190=0),\"\",'Blank - Request Form'!I190),IF('Blank - Request Form'!$F$7=\"CIFDN\",IF(OR('Blank - Request Form'!R190=\"0\",'Blank - Request Form'!R190=\"00000\",'Blank - Request Form'!R190=0),\"\",'Blank - Request Form'!R190),\"\"))","v":""},null,{"$f":"IF('Blank - Request Form'!$F$6=\"CIFDN\",IF('Blank - Request Form'!K190=0,\"\",'Blank - Request Form'!K190),IF('Blank - Request Form'!$F$7=\"CIFDN\",IF('Blank - Request Form'!T190=0,\"\",'Blank - Request Form'!T190),\"\"))","v":""},null,null,null,{"$f":"IF(M156<>\"\",'Blank - Request Form'!$M$2,\"\")","v":""},{"$f":"IF('Blank - Request Form'!$F$6=\"CIFDN\",IF('Blank - Request Form'!J190=0,\"\",'Blank - Request Form'!J190),IF('Blank - Request Form'!$F$7=\"CIFDN\",IF('Blank - Request Form'!S190=0,\"\",'Blank - Request Form'!S190),\"\"))","v":""},"",156]
[{"$f":"IF('Blank - Request Form'!$F$6=\"CIFDN\",IF('Blank - Request Form'!D191=0,\"\",'Blank - Request Form'!D191),IF('Blank - Request Form'!$F$7=\"CIFDN\",IF('Blank - Request Form'!M191=0,\"\",'Blank - Request Form'!M191),\"\"))","v":""},{"$f":"IF('Blank - Request Form'!$F$6=\"CIFDN\",IF('Blank - Request Form'!E191=0,\"\",'Blank - Request Form'!E191),IF('Blank - Request Form'!$F$7=\"CIFDN\",IF('Blank - Request Form'!N191=0,\"\",'Blank - Request Form'!N191),\"\"))","v":""},{"$f":"IF('Blank - Request Form'!$F$6=\"CIFDN\",IF(OR('Blank - Request Form'!F191=\"000\",'Blank - Request Form'!F191=0),\"\",'Blank - Request Form'!F191),IF('Blank - Request Form'!$F$7=\"CIFDN\",IF(OR('Blank - Request Form'!O191=\"000\",'Blank - Request Form'!O191=0),\"\",'Blank - Request Form'!O191),\"\"))","v":""},{"$f":"IF('Blank - Request Form'!$F$6=\"CIFDN\",IF(OR('Blank - Request Form'!G191=\"0\",'Blank - Request Form'!G191=\"00000\",'Blank - Request Form'!G191=0),\"\",'Blank - Request Form'!G191),IF('Blank - Request Form'!$F$7=\"CIFDN\",IF(OR('Blank - Request Form'!P191=\"0\",'Blank - Request Form'!P191=\"00000\",'Blank - Request Form'!P191=0),\"\",'Blank - Request Form'!P191),\"\"))","v":""},{"$f":"IF('Blank - Request Form'!$F$6=\"CIFDN\",IF(OR('Blank - Request Form'!H191=\"0\",'Blank - Request Form'!H191=\"00000\",'Blank - Request Form'!H191=0),\"\",'Blank - Request Form'!H191),IF('Blank - Request Form'!$F$7=\"CIFDN\",IF(OR('Blank - Request Form'!Q191=\"0\",'Blank - Request Form'!Q191=\"00000\",'Blank - Request Form'!Q191=0),\"\",'Blank - Request Form'!Q191),\"\"))","v":""},{"$f":"IF('Blank - Request Form'!$F$6=\"CIFDN\",IF(OR('Blank - Request Form'!I191=\"0\",'Blank - Request Form'!I191=\"00000\",'Blank - Request Form'!I191=0),\"\",'Blank - Request Form'!I191),IF('Blank - Request Form'!$F$7=\"CIFDN\",IF(OR('Blank - Request Form'!R191=\"0\",'Blank - Request Form'!R191=\"00000\",'Blank - Request Form'!R191=0),\"\",'Blank - Request Form'!R191),\"\"))","v":""},null,{"$f":"IF('Blank - Request Form'!$F$6=\"CIFDN\",IF('Blank - Request Form'!K191=0,\"\",'Blank - Request Form'!K191),IF('Blank - Request Form'!$F$7=\"CIFDN\",IF('Blank - Request Form'!T191=0,\"\",'Blank - Request Form'!T191),\"\"))","v":""},null,null,null,{"$f":"IF(M157<>\"\",'Blank - Request Form'!$M$2,\"\")","v":""},{"$f":"IF('Blank - Request Form'!$F$6=\"CIFDN\",IF('Blank - Request Form'!J191=0,\"\",'Blank - Request Form'!J191),IF('Blank - Request Form'!$F$7=\"CIFDN\",IF('Blank - Request Form'!S191=0,\"\",'Blank - Request Form'!S191),\"\"))","v":""},"",157]
[{"$f":"IF('Blank - Request Form'!$F$6=\"CIFDN\",IF('Blank - Request Form'!D192=0,\"\",'Blank - Request Form'!D192),IF('Blank - Request Form'!$F$7=\"CIFDN\",IF('Blank - Request Form'!M192=0,\"\",'Blank - Request Form'!M192),\"\"))","v":""},{"$f":"IF('Blank - Request Form'!$F$6=\"CIFDN\",IF('Blank - Request Form'!E192=0,\"\",'Blank - Request Form'!E192),IF('Blank - Request Form'!$F$7=\"CIFDN\",IF('Blank - Request Form'!N192=0,\"\",'Blank - Request Form'!N192),\"\"))","v":""},{"$f":"IF('Blank - Request Form'!$F$6=\"CIFDN\",IF(OR('Blank - Request Form'!F192=\"000\",'Blank - Request Form'!F192=0),\"\",'Blank - Request Form'!F192),IF('Blank - Request Form'!$F$7=\"CIFDN\",IF(OR('Blank - Request Form'!O192=\"000\",'Blank - Request Form'!O192=0),\"\",'Blank - Request Form'!O192),\"\"))","v":""},{"$f":"IF('Blank - Request Form'!$F$6=\"CIFDN\",IF(OR('Blank - Request Form'!G192=\"0\",'Blank - Request Form'!G192=\"00000\",'Blank - Request Form'!G192=0),\"\",'Blank - Request Form'!G192),IF('Blank - Request Form'!$F$7=\"CIFDN\",IF(OR('Blank - Request Form'!P192=\"0\",'Blank - Request Form'!P192=\"00000\",'Blank - Request Form'!P192=0),\"\",'Blank - Request Form'!P192),\"\"))","v":""},{"$f":"IF('Blank - Request Form'!$F$6=\"CIFDN\",IF(OR('Blank - Request Form'!H192=\"0\",'Blank - Request Form'!H192=\"00000\",'Blank - Request Form'!H192=0),\"\",'Blank - Request Form'!H192),IF('Blank - Request Form'!$F$7=\"CIFDN\",IF(OR('Blank - Request Form'!Q192=\"0\",'Blank - Request Form'!Q192=\"00000\",'Blank - Request Form'!Q192=0),\"\",'Blank - Request Form'!Q192),\"\"))","v":""},{"$f":"IF('Blank - Request Form'!$F$6=\"CIFDN\",IF(OR('Blank - Request Form'!I192=\"0\",'Blank - Request Form'!I192=\"00000\",'Blank - Request Form'!I192=0),\"\",'Blank - Request Form'!I192),IF('Blank - Request Form'!$F$7=\"CIFDN\",IF(OR('Blank - Request Form'!R192=\"0\",'Blank - Request Form'!R192=\"00000\",'Blank - Request Form'!R192=0),\"\",'Blank - Request Form'!R192),\"\"))","v":""},null,{"$f":"IF('Blank - Request Form'!$F$6=\"CIFDN\",IF('Blank - Request Form'!K192=0,\"\",'Blank - Request Form'!K192),IF('Blank - Request Form'!$F$7=\"CIFDN\",IF('Blank - Request Form'!T192=0,\"\",'Blank - Request Form'!T192),\"\"))","v":""},null,null,null,{"$f":"IF(M158<>\"\",'Blank - Request Form'!$M$2,\"\")","v":""},{"$f":"IF('Blank - Request Form'!$F$6=\"CIFDN\",IF('Blank - Request Form'!J192=0,\"\",'Blank - Request Form'!J192),IF('Blank - Request Form'!$F$7=\"CIFDN\",IF('Blank - Request Form'!S192=0,\"\",'Blank - Request Form'!S192),\"\"))","v":""},"",158]
[{"$f":"IF('Blank - Request Form'!$F$6=\"CIFDN\",IF('Blank - Request Form'!D193=0,\"\",'Blank - Request Form'!D193),IF('Blank - Request Form'!$F$7=\"CIFDN\",IF('Blank - Request Form'!M193=0,\"\",'Blank - Request Form'!M193),\"\"))","v":""},{"$f":"IF('Blank - Request Form'!$F$6=\"CIFDN\",IF('Blank - Request Form'!E193=0,\"\",'Blank - Request Form'!E193),IF('Blank - Request Form'!$F$7=\"CIFDN\",IF('Blank - Request Form'!N193=0,\"\",'Blank - Request Form'!N193),\"\"))","v":""},{"$f":"IF('Blank - Request Form'!$F$6=\"CIFDN\",IF(OR('Blank - Request Form'!F193=\"000\",'Blank - Request Form'!F193=0),\"\",'Blank - Request Form'!F193),IF('Blank - Request Form'!$F$7=\"CIFDN\",IF(OR('Blank - Request Form'!O193=\"000\",'Blank - Request Form'!O193=0),\"\",'Blank - Request Form'!O193),\"\"))","v":""},{"$f":"IF('Blank - Request Form'!$F$6=\"CIFDN\",IF(OR('Blank - Request Form'!G193=\"0\",'Blank - Request Form'!G193=\"00000\",'Blank - Request Form'!G193=0),\"\",'Blank - Request Form'!G193),IF('Blank - Request Form'!$F$7=\"CIFDN\",IF(OR('Blank - Request Form'!P193=\"0\",'Blank - Request Form'!P193=\"00000\",'Blank - Request Form'!P193=0),\"\",'Blank - Request Form'!P193),\"\"))","v":""},{"$f":"IF('Blank - Request Form'!$F$6=\"CIFDN\",IF(OR('Blank - Request Form'!H193=\"0\",'Blank - Request Form'!H193=\"00000\",'Blank - Request Form'!H193=0),\"\",'Blank - Request Form'!H193),IF('Blank - Request Form'!$F$7=\"CIFDN\",IF(OR('Blank - Request Form'!Q193=\"0\",'Blank - Request Form'!Q193=\"00000\",'Blank - Request Form'!Q193=0),\"\",'Blank - Request Form'!Q193),\"\"))","v":""},{"$f":"IF('Blank - Request Form'!$F$6=\"CIFDN\",IF(OR('Blank - Request Form'!I193=\"0\",'Blank - Request Form'!I193=\"00000\",'Blank - Request Form'!I193=0),\"\",'Blank - Request Form'!I193),IF('Blank - Request Form'!$F$7=\"CIFDN\",IF(OR('Blank - Request Form'!R193=\"0\",'Blank - Request Form'!R193=\"00000\",'Blank - Request Form'!R193=0),\"\",'Blank - Request Form'!R193),\"\"))","v":""},null,{"$f":"IF('Blank - Request Form'!$F$6=\"CIFDN\",IF('Blank - Request Form'!K193=0,\"\",'Blank - Request Form'!K193),IF('Blank - Request Form'!$F$7=\"CIFDN\",IF('Blank - Request Form'!T193=0,\"\",'Blank - Request Form'!T193),\"\"))","v":""},null,null,null,{"$f":"IF(M159<>\"\",'Blank - Request Form'!$M$2,\"\")","v":""},{"$f":"IF('Blank - Request Form'!$F$6=\"CIFDN\",IF('Blank - Request Form'!J193=0,\"\",'Blank - Request Form'!J193),IF('Blank - Request Form'!$F$7=\"CIFDN\",IF('Blank - Request Form'!S193=0,\"\",'Blank - Request Form'!S193),\"\"))","v":""},"",159]
[{"$f":"IF('Blank - Request Form'!$F$6=\"CIFDN\",IF('Blank - Request Form'!D194=0,\"\",'Blank - Request Form'!D194),IF('Blank - Request Form'!$F$7=\"CIFDN\",IF('Blank - Request Form'!M194=0,\"\",'Blank - Request Form'!M194),\"\"))","v":""},{"$f":"IF('Blank - Request Form'!$F$6=\"CIFDN\",IF('Blank - Request Form'!E194=0,\"\",'Blank - Request Form'!E194),IF('Blank - Request Form'!$F$7=\"CIFDN\",IF('Blank - Request Form'!N194=0,\"\",'Blank - Request Form'!N194),\"\"))","v":""},{"$f":"IF('Blank - Request Form'!$F$6=\"CIFDN\",IF(OR('Blank - Request Form'!F194=\"000\",'Blank - Request Form'!F194=0),\"\",'Blank - Request Form'!F194),IF('Blank - Request Form'!$F$7=\"CIFDN\",IF(OR('Blank - Request Form'!O194=\"000\",'Blank - Request Form'!O194=0),\"\",'Blank - Request Form'!O194),\"\"))","v":""},{"$f":"IF('Blank - Request Form'!$F$6=\"CIFDN\",IF(OR('Blank - Request Form'!G194=\"0\",'Blank - Request Form'!G194=\"00000\",'Blank - Request Form'!G194=0),\"\",'Blank - Request Form'!G194),IF('Blank - Request Form'!$F$7=\"CIFDN\",IF(OR('Blank - Request Form'!P194=\"0\",'Blank - Request Form'!P194=\"00000\",'Blank - Request Form'!P194=0),\"\",'Blank - Request Form'!P194),\"\"))","v":""},{"$f":"IF('Blank - Request Form'!$F$6=\"CIFDN\",IF(OR('Blank - Request Form'!H194=\"0\",'Blank - Request Form'!H194=\"00000\",'Blank - Request Form'!H194=0),\"\",'Blank - Request Form'!H194),IF('Blank - Request Form'!$F$7=\"CIFDN\",IF(OR('Blank - Request Form'!Q194=\"0\",'Blank - Request Form'!Q194=\"00000\",'Blank - Request Form'!Q194=0),\"\",'Blank - Request Form'!Q194),\"\"))","v":""},{"$f":"IF('Blank - Request Form'!$F$6=\"CIFDN\",IF(OR('Blank - Request Form'!I194=\"0\",'Blank - Request Form'!I194=\"00000\",'Blank - Request Form'!I194=0),\"\",'Blank - Request Form'!I194),IF('Blank - Request Form'!$F$7=\"CIFDN\",IF(OR('Blank - Request Form'!R194=\"0\",'Blank - Request Form'!R194=\"00000\",'Blank - Request Form'!R194=0),\"\",'Blank - Request Form'!R194),\"\"))","v":""},null,{"$f":"IF('Blank - Request Form'!$F$6=\"CIFDN\",IF('Blank - Request Form'!K194=0,\"\",'Blank - Request Form'!K194),IF('Blank - Request Form'!$F$7=\"CIFDN\",IF('Blank - Request Form'!T194=0,\"\",'Blank - Request Form'!T194),\"\"))","v":""},null,null,null,{"$f":"IF(M160<>\"\",'Blank - Request Form'!$M$2,\"\")","v":""},{"$f":"IF('Blank - Request Form'!$F$6=\"CIFDN\",IF('Blank - Request Form'!J194=0,\"\",'Blank - Request Form'!J194),IF('Blank - Request Form'!$F$7=\"CIFDN\",IF('Blank - Request Form'!S194=0,\"\",'Blank - Request Form'!S194),\"\"))","v":""},"",160]
[{"$f":"IF('Blank - Request Form'!$F$6=\"CIFDN\",IF('Blank - Request Form'!D195=0,\"\",'Blank - Request Form'!D195),IF('Blank - Request Form'!$F$7=\"CIFDN\",IF('Blank - Request Form'!M195=0,\"\",'Blank - Request Form'!M195),\"\"))","v":""},{"$f":"IF('Blank - Request Form'!$F$6=\"CIFDN\",IF('Blank - Request Form'!E195=0,\"\",'Blank - Request Form'!E195),IF('Blank - Request Form'!$F$7=\"CIFDN\",IF('Blank - Request Form'!N195=0,\"\",'Blank - Request Form'!N195),\"\"))","v":""},{"$f":"IF('Blank - Request Form'!$F$6=\"CIFDN\",IF(OR('Blank - Request Form'!F195=\"000\",'Blank - Request Form'!F195=0),\"\",'Blank - Request Form'!F195),IF('Blank - Request Form'!$F$7=\"CIFDN\",IF(OR('Blank - Request Form'!O195=\"000\",'Blank - Request Form'!O195=0),\"\",'Blank - Request Form'!O195),\"\"))","v":""},{"$f":"IF('Blank - Request Form'!$F$6=\"CIFDN\",IF(OR('Blank - Request Form'!G195=\"0\",'Blank - Request Form'!G195=\"00000\",'Blank - Request Form'!G195=0),\"\",'Blank - Request Form'!G195),IF('Blank - Request Form'!$F$7=\"CIFDN\",IF(OR('Blank - Request Form'!P195=\"0\",'Blank - Request Form'!P195=\"00000\",'Blank - Request Form'!P195=0),\"\",'Blank - Request Form'!P195),\"\"))","v":""},{"$f":"IF('Blank - Request Form'!$F$6=\"CIFDN\",IF(OR('Blank - Request Form'!H195=\"0\",'Blank - Request Form'!H195=\"00000\",'Blank - Request Form'!H195=0),\"\",'Blank - Request Form'!H195),IF('Blank - Request Form'!$F$7=\"CIFDN\",IF(OR('Blank - Request Form'!Q195=\"0\",'Blank - Request Form'!Q195=\"00000\",'Blank - Request Form'!Q195=0),\"\",'Blank - Request Form'!Q195),\"\"))","v":""},{"$f":"IF('Blank - Request Form'!$F$6=\"CIFDN\",IF(OR('Blank - Request Form'!I195=\"0\",'Blank - Request Form'!I195=\"00000\",'Blank - Request Form'!I195=0),\"\",'Blank - Request Form'!I195),IF('Blank - Request Form'!$F$7=\"CIFDN\",IF(OR('Blank - Request Form'!R195=\"0\",'Blank - Request Form'!R195=\"00000\",'Blank - Request Form'!R195=0),\"\",'Blank - Request Form'!R195),\"\"))","v":""},null,{"$f":"IF('Blank - Request Form'!$F$6=\"CIFDN\",IF('Blank - Request Form'!K195=0,\"\",'Blank - Request Form'!K195),IF('Blank - Request Form'!$F$7=\"CIFDN\",IF('Blank - Request Form'!T195=0,\"\",'Blank - Request Form'!T195),\"\"))","v":""},null,null,null,{"$f":"IF(M161<>\"\",'Blank - Request Form'!$M$2,\"\")","v":""},{"$f":"IF('Blank - Request Form'!$F$6=\"CIFDN\",IF('Blank - Request Form'!J195=0,\"\",'Blank - Request Form'!J195),IF('Blank - Request Form'!$F$7=\"CIFDN\",IF('Blank - Request Form'!S195=0,\"\",'Blank - Request Form'!S195),\"\"))","v":""},"",161]
[{"$f":"IF('Blank - Request Form'!$F$6=\"CIFDN\",IF('Blank - Request Form'!D196=0,\"\",'Blank - Request Form'!D196),IF('Blank - Request Form'!$F$7=\"CIFDN\",IF('Blank - Request Form'!M196=0,\"\",'Blank - Request Form'!M196),\"\"))","v":""},{"$f":"IF('Blank - Request Form'!$F$6=\"CIFDN\",IF('Blank - Request Form'!E196=0,\"\",'Blank - Request Form'!E196),IF('Blank - Request Form'!$F$7=\"CIFDN\",IF('Blank - Request Form'!N196=0,\"\",'Blank - Request Form'!N196),\"\"))","v":""},{"$f":"IF('Blank - Request Form'!$F$6=\"CIFDN\",IF(OR('Blank - Request Form'!F196=\"000\",'Blank - Request Form'!F196=0),\"\",'Blank - Request Form'!F196),IF('Blank - Request Form'!$F$7=\"CIFDN\",IF(OR('Blank - Request Form'!O196=\"000\",'Blank - Request Form'!O196=0),\"\",'Blank - Request Form'!O196),\"\"))","v":""},{"$f":"IF('Blank - Request Form'!$F$6=\"CIFDN\",IF(OR('Blank - Request Form'!G196=\"0\",'Blank - Request Form'!G196=\"00000\",'Blank - Request Form'!G196=0),\"\",'Blank - Request Form'!G196),IF('Blank - Request Form'!$F$7=\"CIFDN\",IF(OR('Blank - Request Form'!P196=\"0\",'Blank - Request Form'!P196=\"00000\",'Blank - Request Form'!P196=0),\"\",'Blank - Request Form'!P196),\"\"))","v":""},{"$f":"IF('Blank - Request Form'!$F$6=\"CIFDN\",IF(OR('Blank - Request Form'!H196=\"0\",'Blank - Request Form'!H196=\"00000\",'Blank - Request Form'!H196=0),\"\",'Blank - Request Form'!H196),IF('Blank - Request Form'!$F$7=\"CIFDN\",IF(OR('Blank - Request Form'!Q196=\"0\",'Blank - Request Form'!Q196=\"00000\",'Blank - Request Form'!Q196=0),\"\",'Blank - Request Form'!Q196),\"\"))","v":""},{"$f":"IF('Blank - Request Form'!$F$6=\"CIFDN\",IF(OR('Blank - Request Form'!I196=\"0\",'Blank - Request Form'!I196=\"00000\",'Blank - Request Form'!I196=0),\"\",'Blank - Request Form'!I196),IF('Blank - Request Form'!$F$7=\"CIFDN\",IF(OR('Blank - Request Form'!R196=\"0\",'Blank - Request Form'!R196=\"00000\",'Blank - Request Form'!R196=0),\"\",'Blank - Request Form'!R196),\"\"))","v":""},null,{"$f":"IF('Blank - Request Form'!$F$6=\"CIFDN\",IF('Blank - Request Form'!K196=0,\"\",'Blank - Request Form'!K196),IF('Blank - Request Form'!$F$7=\"CIFDN\",IF('Blank - Request Form'!T196=0,\"\",'Blank - Request Form'!T196),\"\"))","v":""},null,null,null,{"$f":"IF(M162<>\"\",'Blank - Request Form'!$M$2,\"\")","v":""},{"$f":"IF('Blank - Request Form'!$F$6=\"CIFDN\",IF('Blank - Request Form'!J196=0,\"\",'Blank - Request Form'!J196),IF('Blank - Request Form'!$F$7=\"CIFDN\",IF('Blank - Request Form'!S196=0,\"\",'Blank - Request Form'!S196),\"\"))","v":""},"",162]
[{"$f":"IF('Blank - Request Form'!$F$6=\"CIFDN\",IF('Blank - Request Form'!D197=0,\"\",'Blank - Request Form'!D197),IF('Blank - Request Form'!$F$7=\"CIFDN\",IF('Blank - Request Form'!M197=0,\"\",'Blank - Request Form'!M197),\"\"))","v":""},{"$f":"IF('Blank - Request Form'!$F$6=\"CIFDN\",IF('Blank - Request Form'!E197=0,\"\",'Blank - Request Form'!E197),IF('Blank - Request Form'!$F$7=\"CIFDN\",IF('Blank - Request Form'!N197=0,\"\",'Blank - Request Form'!N197),\"\"))","v":""},{"$f":"IF('Blank - Request Form'!$F$6=\"CIFDN\",IF(OR('Blank - Request Form'!F197=\"000\",'Blank - Request Form'!F197=0),\"\",'Blank - Request Form'!F197),IF('Blank - Request Form'!$F$7=\"CIFDN\",IF(OR('Blank - Request Form'!O197=\"000\",'Blank - Request Form'!O197=0),\"\",'Blank - Request Form'!O197),\"\"))","v":""},{"$f":"IF('Blank - Request Form'!$F$6=\"CIFDN\",IF(OR('Blank - Request Form'!G197=\"0\",'Blank - Request Form'!G197=\"00000\",'Blank - Request Form'!G197=0),\"\",'Blank - Request Form'!G197),IF('Blank - Request Form'!$F$7=\"CIFDN\",IF(OR('Blank - Request Form'!P197=\"0\",'Blank - Request Form'!P197=\"00000\",'Blank - Request Form'!P197=0),\"\",'Blank - Request Form'!P197),\"\"))","v":""},{"$f":"IF('Blank - Request Form'!$F$6=\"CIFDN\",IF(OR('Blank - Request Form'!H197=\"0\",'Blank - Request Form'!H197=\"00000\",'Blank - Request Form'!H197=0),\"\",'Blank - Request Form'!H197),IF('Blank - Request Form'!$F$7=\"CIFDN\",IF(OR('Blank - Request Form'!Q197=\"0\",'Blank - Request Form'!Q197=\"00000\",'Blank - Request Form'!Q197=0),\"\",'Blank - Request Form'!Q197),\"\"))","v":""},{"$f":"IF('Blank - Request Form'!$F$6=\"CIFDN\",IF(OR('Blank - Request Form'!I197=\"0\",'Blank - Request Form'!I197=\"00000\",'Blank - Request Form'!I197=0),\"\",'Blank - Request Form'!I197),IF('Blank - Request Form'!$F$7=\"CIFDN\",IF(OR('Blank - Request Form'!R197=\"0\",'Blank - Request Form'!R197=\"00000\",'Blank - Request Form'!R197=0),\"\",'Blank - Request Form'!R197),\"\"))","v":""},null,{"$f":"IF('Blank - Request Form'!$F$6=\"CIFDN\",IF('Blank - Request Form'!K197=0,\"\",'Blank - Request Form'!K197),IF('Blank - Request Form'!$F$7=\"CIFDN\",IF('Blank - Request Form'!T197=0,\"\",'Blank - Request Form'!T197),\"\"))","v":""},null,null,null,{"$f":"IF(M163<>\"\",'Blank - Request Form'!$M$2,\"\")","v":""},{"$f":"IF('Blank - Request Form'!$F$6=\"CIFDN\",IF('Blank - Request Form'!J197=0,\"\",'Blank - Request Form'!J197),IF('Blank - Request Form'!$F$7=\"CIFDN\",IF('Blank - Request Form'!S197=0,\"\",'Blank - Request Form'!S197),\"\"))","v":""},"",163]
[{"$f":"IF('Blank - Request Form'!$F$6=\"CIFDN\",IF('Blank - Request Form'!D198=0,\"\",'Blank - Request Form'!D198),IF('Blank - Request Form'!$F$7=\"CIFDN\",IF('Blank - Request Form'!M198=0,\"\",'Blank - Request Form'!M198),\"\"))","v":""},{"$f":"IF('Blank - Request Form'!$F$6=\"CIFDN\",IF('Blank - Request Form'!E198=0,\"\",'Blank - Request Form'!E198),IF('Blank - Request Form'!$F$7=\"CIFDN\",IF('Blank - Request Form'!N198=0,\"\",'Blank - Request Form'!N198),\"\"))","v":""},{"$f":"IF('Blank - Request Form'!$F$6=\"CIFDN\",IF(OR('Blank - Request Form'!F198=\"000\",'Blank - Request Form'!F198=0),\"\",'Blank - Request Form'!F198),IF('Blank - Request Form'!$F$7=\"CIFDN\",IF(OR('Blank - Request Form'!O198=\"000\",'Blank - Request Form'!O198=0),\"\",'Blank - Request Form'!O198),\"\"))","v":""},{"$f":"IF('Blank - Request Form'!$F$6=\"CIFDN\",IF(OR('Blank - Request Form'!G198=\"0\",'Blank - Request Form'!G198=\"00000\",'Blank - Request Form'!G198=0),\"\",'Blank - Request Form'!G198),IF('Blank - Request Form'!$F$7=\"CIFDN\",IF(OR('Blank - Request Form'!P198=\"0\",'Blank - Request Form'!P198=\"00000\",'Blank - Request Form'!P198=0),\"\",'Blank - Request Form'!P198),\"\"))","v":""},{"$f":"IF('Blank - Request Form'!$F$6=\"CIFDN\",IF(OR('Blank - Request Form'!H198=\"0\",'Blank - Request Form'!H198=\"00000\",'Blank - Request Form'!H198=0),\"\",'Blank - Request Form'!H198),IF('Blank - Request Form'!$F$7=\"CIFDN\",IF(OR('Blank - Request Form'!Q198=\"0\",'Blank - Request Form'!Q198=\"00000\",'Blank - Request Form'!Q198=0),\"\",'Blank - Request Form'!Q198),\"\"))","v":""},{"$f":"IF('Blank - Request Form'!$F$6=\"CIFDN\",IF(OR('Blank - Request Form'!I198=\"0\",'Blank - Request Form'!I198=\"00000\",'Blank - Request Form'!I198=0),\"\",'Blank - Request Form'!I198),IF('Blank - Request Form'!$F$7=\"CIFDN\",IF(OR('Blank - Request Form'!R198=\"0\",'Blank - Request Form'!R198=\"00000\",'Blank - Request Form'!R198=0),\"\",'Blank - Request Form'!R198),\"\"))","v":""},null,{"$f":"IF('Blank - Request Form'!$F$6=\"CIFDN\",IF('Blank - Request Form'!K198=0,\"\",'Blank - Request Form'!K198),IF('Blank - Request Form'!$F$7=\"CIFDN\",IF('Blank - Request Form'!T198=0,\"\",'Blank - Request Form'!T198),\"\"))","v":""},null,null,null,{"$f":"IF(M164<>\"\",'Blank - Request Form'!$M$2,\"\")","v":""},{"$f":"IF('Blank - Request Form'!$F$6=\"CIFDN\",IF('Blank - Request Form'!J198=0,\"\",'Blank - Request Form'!J198),IF('Blank - Request Form'!$F$7=\"CIFDN\",IF('Blank - Request Form'!S198=0,\"\",'Blank - Request Form'!S198),\"\"))","v":""},"",164]
[{"$f":"IF('Blank - Request Form'!$F$6=\"CIFDN\",IF('Blank - Request Form'!D199=0,\"\",'Blank - Request Form'!D199),IF('Blank - Request Form'!$F$7=\"CIFDN\",IF('Blank - Request Form'!M199=0,\"\",'Blank - Request Form'!M199),\"\"))","v":""},{"$f":"IF('Blank - Request Form'!$F$6=\"CIFDN\",IF('Blank - Request Form'!E199=0,\"\",'Blank - Request Form'!E199),IF('Blank - Request Form'!$F$7=\"CIFDN\",IF('Blank - Request Form'!N199=0,\"\",'Blank - Request Form'!N199),\"\"))","v":""},{"$f":"IF('Blank - Request Form'!$F$6=\"CIFDN\",IF(OR('Blank - Request Form'!F199=\"000\",'Blank - Request Form'!F199=0),\"\",'Blank - Request Form'!F199),IF('Blank - Request Form'!$F$7=\"CIFDN\",IF(OR('Blank - Request Form'!O199=\"000\",'Blank - Request Form'!O199=0),\"\",'Blank - Request Form'!O199),\"\"))","v":""},{"$f":"IF('Blank - Request Form'!$F$6=\"CIFDN\",IF(OR('Blank - Request Form'!G199=\"0\",'Blank - Request Form'!G199=\"00000\",'Blank - Request Form'!G199=0),\"\",'Blank - Request Form'!G199),IF('Blank - Request Form'!$F$7=\"CIFDN\",IF(OR('Blank - Request Form'!P199=\"0\",'Blank - Request Form'!P199=\"00000\",'Blank - Request Form'!P199=0),\"\",'Blank - Request Form'!P199),\"\"))","v":""},{"$f":"IF('Blank - Request Form'!$F$6=\"CIFDN\",IF(OR('Blank - Request Form'!H199=\"0\",'Blank - Request Form'!H199=\"00000\",'Blank - Request Form'!H199=0),\"\",'Blank - Request Form'!H199),IF('Blank - Request Form'!$F$7=\"CIFDN\",IF(OR('Blank - Request Form'!Q199=\"0\",'Blank - Request Form'!Q199=\"00000\",'Blank - Request Form'!Q199=0),\"\",'Blank - Request Form'!Q199),\"\"))","v":""},{"$f":"IF('Blank - Request Form'!$F$6=\"CIFDN\",IF(OR('Blank - Request Form'!I199=\"0\",'Blank - Request Form'!I199=\"00000\",'Blank - Request Form'!I199=0),\"\",'Blank - Request Form'!I199),IF('Blank - Request Form'!$F$7=\"CIFDN\",IF(OR('Blank - Request Form'!R199=\"0\",'Blank - Request Form'!R199=\"00000\",'Blank - Request Form'!R199=0),\"\",'Blank - Request Form'!R199),\"\"))","v":""},null,{"$f":"IF('Blank - Request Form'!$F$6=\"CIFDN\",IF('Blank - Request Form'!K199=0,\"\",'Blank - Request Form'!K199),IF('Blank - Request Form'!$F$7=\"CIFDN\",IF('Blank - Request Form'!T199=0,\"\",'Blank - Request Form'!T199),\"\"))","v":""},null,null,null,{"$f":"IF(M165<>\"\",'Blank - Request Form'!$M$2,\"\")","v":""},{"$f":"IF('Blank - Request Form'!$F$6=\"CIFDN\",IF('Blank - Request Form'!J199=0,\"\",'Blank - Request Form'!J199),IF('Blank - Request Form'!$F$7=\"CIFDN\",IF('Blank - Request Form'!S199=0,\"\",'Blank - Request Form'!S199),\"\"))","v":""},"",165]
[{"$f":"IF('Blank - Request Form'!$F$6=\"CIFDN\",IF('Blank - Request Form'!D200=0,\"\",'Blank - Request Form'!D200),IF('Blank - Request Form'!$F$7=\"CIFDN\",IF('Blank - Request Form'!M200=0,\"\",'Blank - Request Form'!M200),\"\"))","v":""},{"$f":"IF('Blank - Request Form'!$F$6=\"CIFDN\",IF('Blank - Request Form'!E200=0,\"\",'Blank - Request Form'!E200),IF('Blank - Request Form'!$F$7=\"CIFDN\",IF('Blank - Request Form'!N200=0,\"\",'Blank - Request Form'!N200),\"\"))","v":""},{"$f":"IF('Blank - Request Form'!$F$6=\"CIFDN\",IF(OR('Blank - Request Form'!F200=\"000\",'Blank - Request Form'!F200=0),\"\",'Blank - Request Form'!F200),IF('Blank - Request Form'!$F$7=\"CIFDN\",IF(OR('Blank - Request Form'!O200=\"000\",'Blank - Request Form'!O200=0),\"\",'Blank - Request Form'!O200),\"\"))","v":""},{"$f":"IF('Blank - Request Form'!$F$6=\"CIFDN\",IF(OR('Blank - Request Form'!G200=\"0\",'Blank - Request Form'!G200=\"00000\",'Blank - Request Form'!G200=0),\"\",'Blank - Request Form'!G200),IF('Blank - Request Form'!$F$7=\"CIFDN\",IF(OR('Blank - Request Form'!P200=\"0\",'Blank - Request Form'!P200=\"00000\",'Blank - Request Form'!P200=0),\"\",'Blank - Request Form'!P200),\"\"))","v":""},{"$f":"IF('Blank - Request Form'!$F$6=\"CIFDN\",IF(OR('Blank - Request Form'!H200=\"0\",'Blank - Request Form'!H200=\"00000\",'Blank - Request Form'!H200=0),\"\",'Blank - Request Form'!H200),IF('Blank - Request Form'!$F$7=\"CIFDN\",IF(OR('Blank - Request Form'!Q200=\"0\",'Blank - Request Form'!Q200=\"00000\",'Blank - Request Form'!Q200=0),\"\",'Blank - Request Form'!Q200),\"\"))","v":""},{"$f":"IF('Blank - Request Form'!$F$6=\"CIFDN\",IF(OR('Blank - Request Form'!I200=\"0\",'Blank - Request Form'!I200=\"00000\",'Blank - Request Form'!I200=0),\"\",'Blank - Request Form'!I200),IF('Blank - Request Form'!$F$7=\"CIFDN\",IF(OR('Blank - Request Form'!R200=\"0\",'Blank - Request Form'!R200=\"00000\",'Blank - Request Form'!R200=0),\"\",'Blank - Request Form'!R200),\"\"))","v":""},null,{"$f":"IF('Blank - Request Form'!$F$6=\"CIFDN\",IF('Blank - Request Form'!K200=0,\"\",'Blank - Request Form'!K200),IF('Blank - Request Form'!$F$7=\"CIFDN\",IF('Blank - Request Form'!T200=0,\"\",'Blank - Request Form'!T200),\"\"))","v":""},null,null,null,{"$f":"IF(M166<>\"\",'Blank - Request Form'!$M$2,\"\")","v":""},{"$f":"IF('Blank - Request Form'!$F$6=\"CIFDN\",IF('Blank - Request Form'!J200=0,\"\",'Blank - Request Form'!J200),IF('Blank - Request Form'!$F$7=\"CIFDN\",IF('Blank - Request Form'!S200=0,\"\",'Blank - Request Form'!S200),\"\"))","v":""},"",166]
[{"$f":"IF('Blank - Request Form'!$F$6=\"CIFDN\",IF('Blank - Request Form'!D201=0,\"\",'Blank - Request Form'!D201),IF('Blank - Request Form'!$F$7=\"CIFDN\",IF('Blank - Request Form'!M201=0,\"\",'Blank - Request Form'!M201),\"\"))","v":""},{"$f":"IF('Blank - Request Form'!$F$6=\"CIFDN\",IF('Blank - Request Form'!E201=0,\"\",'Blank - Request Form'!E201),IF('Blank - Request Form'!$F$7=\"CIFDN\",IF('Blank - Request Form'!N201=0,\"\",'Blank - Request Form'!N201),\"\"))","v":""},{"$f":"IF('Blank - Request Form'!$F$6=\"CIFDN\",IF(OR('Blank - Request Form'!F201=\"000\",'Blank - Request Form'!F201=0),\"\",'Blank - Request Form'!F201),IF('Blank - Request Form'!$F$7=\"CIFDN\",IF(OR('Blank - Request Form'!O201=\"000\",'Blank - Request Form'!O201=0),\"\",'Blank - Request Form'!O201),\"\"))","v":""},{"$f":"IF('Blank - Request Form'!$F$6=\"CIFDN\",IF(OR('Blank - Request Form'!G201=\"0\",'Blank - Request Form'!G201=\"00000\",'Blank - Request Form'!G201=0),\"\",'Blank - Request Form'!G201),IF('Blank - Request Form'!$F$7=\"CIFDN\",IF(OR('Blank - Request Form'!P201=\"0\",'Blank - Request Form'!P201=\"00000\",'Blank - Request Form'!P201=0),\"\",'Blank - Request Form'!P201),\"\"))","v":""},{"$f":"IF('Blank - Request Form'!$F$6=\"CIFDN\",IF(OR('Blank - Request Form'!H201=\"0\",'Blank - Request Form'!H201=\"00000\",'Blank - Request Form'!H201=0),\"\",'Blank - Request Form'!H201),IF('Blank - Request Form'!$F$7=\"CIFDN\",IF(OR('Blank - Request Form'!Q201=\"0\",'Blank - Request Form'!Q201=\"00000\",'Blank - Request Form'!Q201=0),\"\",'Blank - Request Form'!Q201),\"\"))","v":""},{"$f":"IF('Blank - Request Form'!$F$6=\"CIFDN\",IF(OR('Blank - Request Form'!I201=\"0\",'Blank - Request Form'!I201=\"00000\",'Blank - Request Form'!I201=0),\"\",'Blank - Request Form'!I201),IF('Blank - Request Form'!$F$7=\"CIFDN\",IF(OR('Blank - Request Form'!R201=\"0\",'Blank - Request Form'!R201=\"00000\",'Blank - Request Form'!R201=0),\"\",'Blank - Request Form'!R201),\"\"))","v":""},null,{"$f":"IF('Blank - Request Form'!$F$6=\"CIFDN\",IF('Blank - Request Form'!K201=0,\"\",'Blank - Request Form'!K201),IF('Blank - Request Form'!$F$7=\"CIFDN\",IF('Blank - Request Form'!T201=0,\"\",'Blank - Request Form'!T201),\"\"))","v":""},null,null,null,{"$f":"IF(M167<>\"\",'Blank - Request Form'!$M$2,\"\")","v":""},{"$f":"IF('Blank - Request Form'!$F$6=\"CIFDN\",IF('Blank - Request Form'!J201=0,\"\",'Blank - Request Form'!J201),IF('Blank - Request Form'!$F$7=\"CIFDN\",IF('Blank - Request Form'!S201=0,\"\",'Blank - Request Form'!S201),\"\"))","v":""},"",167]
[{"$f":"IF('Blank - Request Form'!$F$6=\"CIFDN\",IF('Blank - Request Form'!D202=0,\"\",'Blank - Request Form'!D202),IF('Blank - Request Form'!$F$7=\"CIFDN\",IF('Blank - Request Form'!M202=0,\"\",'Blank - Request Form'!M202),\"\"))","v":""},{"$f":"IF('Blank - Request Form'!$F$6=\"CIFDN\",IF('Blank - Request Form'!E202=0,\"\",'Blank - Request Form'!E202),IF('Blank - Request Form'!$F$7=\"CIFDN\",IF('Blank - Request Form'!N202=0,\"\",'Blank - Request Form'!N202),\"\"))","v":""},{"$f":"IF('Blank - Request Form'!$F$6=\"CIFDN\",IF(OR('Blank - Request Form'!F202=\"000\",'Blank - Request Form'!F202=0),\"\",'Blank - Request Form'!F202),IF('Blank - Request Form'!$F$7=\"CIFDN\",IF(OR('Blank - Request Form'!O202=\"000\",'Blank - Request Form'!O202=0),\"\",'Blank - Request Form'!O202),\"\"))","v":""},{"$f":"IF('Blank - Request Form'!$F$6=\"CIFDN\",IF(OR('Blank - Request Form'!G202=\"0\",'Blank - Request Form'!G202=\"00000\",'Blank - Request Form'!G202=0),\"\",'Blank - Request Form'!G202),IF('Blank - Request Form'!$F$7=\"CIFDN\",IF(OR('Blank - Request Form'!P202=\"0\",'Blank - Request Form'!P202=\"00000\",'Blank - Request Form'!P202=0),\"\",'Blank - Request Form'!P202),\"\"))","v":""},{"$f":"IF('Blank - Request Form'!$F$6=\"CIFDN\",IF(OR('Blank - Request Form'!H202=\"0\",'Blank - Request Form'!H202=\"00000\",'Blank - Request Form'!H202=0),\"\",'Blank - Request Form'!H202),IF('Blank - Request Form'!$F$7=\"CIFDN\",IF(OR('Blank - Request Form'!Q202=\"0\",'Blank - Request Form'!Q202=\"00000\",'Blank - Request Form'!Q202=0),\"\",'Blank - Request Form'!Q202),\"\"))","v":""},{"$f":"IF('Blank - Request Form'!$F$6=\"CIFDN\",IF(OR('Blank - Request Form'!I202=\"0\",'Blank - Request Form'!I202=\"00000\",'Blank - Request Form'!I202=0),\"\",'Blank - Request Form'!I202),IF('Blank - Request Form'!$F$7=\"CIFDN\",IF(OR('Blank - Request Form'!R202=\"0\",'Blank - Request Form'!R202=\"00000\",'Blank - Request Form'!R202=0),\"\",'Blank - Request Form'!R202),\"\"))","v":""},null,{"$f":"IF('Blank - Request Form'!$F$6=\"CIFDN\",IF('Blank - Request Form'!K202=0,\"\",'Blank - Request Form'!K202),IF('Blank - Request Form'!$F$7=\"CIFDN\",IF('Blank - Request Form'!T202=0,\"\",'Blank - Request Form'!T202),\"\"))","v":""},null,null,null,{"$f":"IF(M168<>\"\",'Blank - Request Form'!$M$2,\"\")","v":""},{"$f":"IF('Blank - Request Form'!$F$6=\"CIFDN\",IF('Blank - Request Form'!J202=0,\"\",'Blank - Request Form'!J202),IF('Blank - Request Form'!$F$7=\"CIFDN\",IF('Blank - Request Form'!S202=0,\"\",'Blank - Request Form'!S202),\"\"))","v":""},"",168]
[{"$f":"IF('Blank - Request Form'!$F$6=\"CIFDN\",IF('Blank - Request Form'!D203=0,\"\",'Blank - Request Form'!D203),IF('Blank - Request Form'!$F$7=\"CIFDN\",IF('Blank - Request Form'!M203=0,\"\",'Blank - Request Form'!M203),\"\"))","v":""},{"$f":"IF('Blank - Request Form'!$F$6=\"CIFDN\",IF('Blank - Request Form'!E203=0,\"\",'Blank - Request Form'!E203),IF('Blank - Request Form'!$F$7=\"CIFDN\",IF('Blank - Request Form'!N203=0,\"\",'Blank - Request Form'!N203),\"\"))","v":""},{"$f":"IF('Blank - Request Form'!$F$6=\"CIFDN\",IF(OR('Blank - Request Form'!F203=\"000\",'Blank - Request Form'!F203=0),\"\",'Blank - Request Form'!F203),IF('Blank - Request Form'!$F$7=\"CIFDN\",IF(OR('Blank - Request Form'!O203=\"000\",'Blank - Request Form'!O203=0),\"\",'Blank - Request Form'!O203),\"\"))","v":""},{"$f":"IF('Blank - Request Form'!$F$6=\"CIFDN\",IF(OR('Blank - Request Form'!G203=\"0\",'Blank - Request Form'!G203=\"00000\",'Blank - Request Form'!G203=0),\"\",'Blank - Request Form'!G203),IF('Blank - Request Form'!$F$7=\"CIFDN\",IF(OR('Blank - Request Form'!P203=\"0\",'Blank - Request Form'!P203=\"00000\",'Blank - Request Form'!P203=0),\"\",'Blank - Request Form'!P203),\"\"))","v":""},{"$f":"IF('Blank - Request Form'!$F$6=\"CIFDN\",IF(OR('Blank - Request Form'!H203=\"0\",'Blank - Request Form'!H203=\"00000\",'Blank - Request Form'!H203=0),\"\",'Blank - Request Form'!H203),IF('Blank - Request Form'!$F$7=\"CIFDN\",IF(OR('Blank - Request Form'!Q203=\"0\",'Blank - Request Form'!Q203=\"00000\",'Blank - Request Form'!Q203=0),\"\",'Blank - Request Form'!Q203),\"\"))","v":""},{"$f":"IF('Blank - Request Form'!$F$6=\"CIFDN\",IF(OR('Blank - Request Form'!I203=\"0\",'Blank - Request Form'!I203=\"00000\",'Blank - Request Form'!I203=0),\"\",'Blank - Request Form'!I203),IF('Blank - Request Form'!$F$7=\"CIFDN\",IF(OR('Blank - Request Form'!R203=\"0\",'Blank - Request Form'!R203=\"00000\",'Blank - Request Form'!R203=0),\"\",'Blank - Request Form'!R203),\"\"))","v":""},null,{"$f":"IF('Blank - Request Form'!$F$6=\"CIFDN\",IF('Blank - Request Form'!K203=0,\"\",'Blank - Request Form'!K203),IF('Blank - Request Form'!$F$7=\"CIFDN\",IF('Blank - Request Form'!T203=0,\"\",'Blank - Request Form'!T203),\"\"))","v":""},null,null,null,{"$f":"IF(M169<>\"\",'Blank - Request Form'!$M$2,\"\")","v":""},{"$f":"IF('Blank - Request Form'!$F$6=\"CIFDN\",IF('Blank - Request Form'!J203=0,\"\",'Blank - Request Form'!J203),IF('Blank - Request Form'!$F$7=\"CIFDN\",IF('Blank - Request Form'!S203=0,\"\",'Blank - Request Form'!S203),\"\"))","v":""},"",169]
[{"$f":"IF('Blank - Request Form'!$F$6=\"CIFDN\",IF('Blank - Request Form'!D204=0,\"\",'Blank - Request Form'!D204),IF('Blank - Request Form'!$F$7=\"CIFDN\",IF('Blank - Request Form'!M204=0,\"\",'Blank - Request Form'!M204),\"\"))","v":""},{"$f":"IF('Blank - Request Form'!$F$6=\"CIFDN\",IF('Blank - Request Form'!E204=0,\"\",'Blank - Request Form'!E204),IF('Blank - Request Form'!$F$7=\"CIFDN\",IF('Blank - Request Form'!N204=0,\"\",'Blank - Request Form'!N204),\"\"))","v":""},{"$f":"IF('Blank - Request Form'!$F$6=\"CIFDN\",IF(OR('Blank - Request Form'!F204=\"000\",'Blank - Request Form'!F204=0),\"\",'Blank - Request Form'!F204),IF('Blank - Request Form'!$F$7=\"CIFDN\",IF(OR('Blank - Request Form'!O204=\"000\",'Blank - Request Form'!O204=0),\"\",'Blank - Request Form'!O204),\"\"))","v":""},{"$f":"IF('Blank - Request Form'!$F$6=\"CIFDN\",IF(OR('Blank - Request Form'!G204=\"0\",'Blank - Request Form'!G204=\"00000\",'Blank - Request Form'!G204=0),\"\",'Blank - Request Form'!G204),IF('Blank - Request Form'!$F$7=\"CIFDN\",IF(OR('Blank - Request Form'!P204=\"0\",'Blank - Request Form'!P204=\"00000\",'Blank - Request Form'!P204=0),\"\",'Blank - Request Form'!P204),\"\"))","v":""},{"$f":"IF('Blank - Request Form'!$F$6=\"CIFDN\",IF(OR('Blank - Request Form'!H204=\"0\",'Blank - Request Form'!H204=\"00000\",'Blank - Request Form'!H204=0),\"\",'Blank - Request Form'!H204),IF('Blank - Request Form'!$F$7=\"CIFDN\",IF(OR('Blank - Request Form'!Q204=\"0\",'Blank - Request Form'!Q204=\"00000\",'Blank - Request Form'!Q204=0),\"\",'Blank - Request Form'!Q204),\"\"))","v":""},{"$f":"IF('Blank - Request Form'!$F$6=\"CIFDN\",IF(OR('Blank - Request Form'!I204=\"0\",'Blank - Request Form'!I204=\"00000\",'Blank - Request Form'!I204=0),\"\",'Blank - Request Form'!I204),IF('Blank - Request Form'!$F$7=\"CIFDN\",IF(OR('Blank - Request Form'!R204=\"0\",'Blank - Request Form'!R204=\"00000\",'Blank - Request Form'!R204=0),\"\",'Blank - Request Form'!R204),\"\"))","v":""},null,{"$f":"IF('Blank - Request Form'!$F$6=\"CIFDN\",IF('Blank - Request Form'!K204=0,\"\",'Blank - Request Form'!K204),IF('Blank - Request Form'!$F$7=\"CIFDN\",IF('Blank - Request Form'!T204=0,\"\",'Blank - Request Form'!T204),\"\"))","v":""},null,null,null,{"$f":"IF(M170<>\"\",'Blank - Request Form'!$M$2,\"\")","v":""},{"$f":"IF('Blank - Request Form'!$F$6=\"CIFDN\",IF('Blank - Request Form'!J204=0,\"\",'Blank - Request Form'!J204),IF('Blank - Request Form'!$F$7=\"CIFDN\",IF('Blank - Request Form'!S204=0,\"\",'Blank - Request Form'!S204),\"\"))","v":""},"",170]
[{"$f":"IF('Blank - Request Form'!$F$6=\"CIFDN\",IF('Blank - Request Form'!D205=0,\"\",'Blank - Request Form'!D205),IF('Blank - Request Form'!$F$7=\"CIFDN\",IF('Blank - Request Form'!M205=0,\"\",'Blank - Request Form'!M205),\"\"))","v":""},{"$f":"IF('Blank - Request Form'!$F$6=\"CIFDN\",IF('Blank - Request Form'!E205=0,\"\",'Blank - Request Form'!E205),IF('Blank - Request Form'!$F$7=\"CIFDN\",IF('Blank - Request Form'!N205=0,\"\",'Blank - Request Form'!N205),\"\"))","v":""},{"$f":"IF('Blank - Request Form'!$F$6=\"CIFDN\",IF(OR('Blank - Request Form'!F205=\"000\",'Blank - Request Form'!F205=0),\"\",'Blank - Request Form'!F205),IF('Blank - Request Form'!$F$7=\"CIFDN\",IF(OR('Blank - Request Form'!O205=\"000\",'Blank - Request Form'!O205=0),\"\",'Blank - Request Form'!O205),\"\"))","v":""},{"$f":"IF('Blank - Request Form'!$F$6=\"CIFDN\",IF(OR('Blank - Request Form'!G205=\"0\",'Blank - Request Form'!G205=\"00000\",'Blank - Request Form'!G205=0),\"\",'Blank - Request Form'!G205),IF('Blank - Request Form'!$F$7=\"CIFDN\",IF(OR('Blank - Request Form'!P205=\"0\",'Blank - Request Form'!P205=\"00000\",'Blank - Request Form'!P205=0),\"\",'Blank - Request Form'!P205),\"\"))","v":""},{"$f":"IF('Blank - Request Form'!$F$6=\"CIFDN\",IF(OR('Blank - Request Form'!H205=\"0\",'Blank - Request Form'!H205=\"00000\",'Blank - Request Form'!H205=0),\"\",'Blank - Request Form'!H205),IF('Blank - Request Form'!$F$7=\"CIFDN\",IF(OR('Blank - Request Form'!Q205=\"0\",'Blank - Request Form'!Q205=\"00000\",'Blank - Request Form'!Q205=0),\"\",'Blank - Request Form'!Q205),\"\"))","v":""},{"$f":"IF('Blank - Request Form'!$F$6=\"CIFDN\",IF(OR('Blank - Request Form'!I205=\"0\",'Blank - Request Form'!I205=\"00000\",'Blank - Request Form'!I205=0),\"\",'Blank - Request Form'!I205),IF('Blank - Request Form'!$F$7=\"CIFDN\",IF(OR('Blank - Request Form'!R205=\"0\",'Blank - Request Form'!R205=\"00000\",'Blank - Request Form'!R205=0),\"\",'Blank - Request Form'!R205),\"\"))","v":""},null,{"$f":"IF('Blank - Request Form'!$F$6=\"CIFDN\",IF('Blank - Request Form'!K205=0,\"\",'Blank - Request Form'!K205),IF('Blank - Request Form'!$F$7=\"CIFDN\",IF('Blank - Request Form'!T205=0,\"\",'Blank - Request Form'!T205),\"\"))","v":""},null,null,null,{"$f":"IF(M171<>\"\",'Blank - Request Form'!$M$2,\"\")","v":""},{"$f":"IF('Blank - Request Form'!$F$6=\"CIFDN\",IF('Blank - Request Form'!J205=0,\"\",'Blank - Request Form'!J205),IF('Blank - Request Form'!$F$7=\"CIFDN\",IF('Blank - Request Form'!S205=0,\"\",'Blank - Request Form'!S205),\"\"))","v":""},"",171]
[{"$f":"IF('Blank - Request Form'!$F$6=\"CIFDN\",IF('Blank - Request Form'!D206=0,\"\",'Blank - Request Form'!D206),IF('Blank - Request Form'!$F$7=\"CIFDN\",IF('Blank - Request Form'!M206=0,\"\",'Blank - Request Form'!M206),\"\"))","v":""},{"$f":"IF('Blank - Request Form'!$F$6=\"CIFDN\",IF('Blank - Request Form'!E206=0,\"\",'Blank - Request Form'!E206),IF('Blank - Request Form'!$F$7=\"CIFDN\",IF('Blank - Request Form'!N206=0,\"\",'Blank - Request Form'!N206),\"\"))","v":""},{"$f":"IF('Blank - Request Form'!$F$6=\"CIFDN\",IF(OR('Blank - Request Form'!F206=\"000\",'Blank - Request Form'!F206=0),\"\",'Blank - Request Form'!F206),IF('Blank - Request Form'!$F$7=\"CIFDN\",IF(OR('Blank - Request Form'!O206=\"000\",'Blank - Request Form'!O206=0),\"\",'Blank - Request Form'!O206),\"\"))","v":""},{"$f":"IF('Blank - Request Form'!$F$6=\"CIFDN\",IF(OR('Blank - Request Form'!G206=\"0\",'Blank - Request Form'!G206=\"00000\",'Blank - Request Form'!G206=0),\"\",'Blank - Request Form'!G206),IF('Blank - Request Form'!$F$7=\"CIFDN\",IF(OR('Blank - Request Form'!P206=\"0\",'Blank - Request Form'!P206=\"00000\",'Blank - Request Form'!P206=0),\"\",'Blank - Request Form'!P206),\"\"))","v":""},{"$f":"IF('Blank - Request Form'!$F$6=\"CIFDN\",IF(OR('Blank - Request Form'!H206=\"0\",'Blank - Request Form'!H206=\"00000\",'Blank - Request Form'!H206=0),\"\",'Blank - Request Form'!H206),IF('Blank - Request Form'!$F$7=\"CIFDN\",IF(OR('Blank - Request Form'!Q206=\"0\",'Blank - Request Form'!Q206=\"00000\",'Blank - Request Form'!Q206=0),\"\",'Blank - Request Form'!Q206),\"\"))","v":""},{"$f":"IF('Blank - Request Form'!$F$6=\"CIFDN\",IF(OR('Blank - Request Form'!I206=\"0\",'Blank - Request Form'!I206=\"00000\",'Blank - Request Form'!I206=0),\"\",'Blank - Request Form'!I206),IF('Blank - Request Form'!$F$7=\"CIFDN\",IF(OR('Blank - Request Form'!R206=\"0\",'Blank - Request Form'!R206=\"00000\",'Blank - Request Form'!R206=0),\"\",'Blank - Request Form'!R206),\"\"))","v":""},null,{"$f":"IF('Blank - Request Form'!$F$6=\"CIFDN\",IF('Blank - Request Form'!K206=0,\"\",'Blank - Request Form'!K206),IF('Blank - Request Form'!$F$7=\"CIFDN\",IF('Blank - Request Form'!T206=0,\"\",'Blank - Request Form'!T206),\"\"))","v":""},null,null,null,{"$f":"IF(M172<>\"\",'Blank - Request Form'!$M$2,\"\")","v":""},{"$f":"IF('Blank - Request Form'!$F$6=\"CIFDN\",IF('Blank - Request Form'!J206=0,\"\",'Blank - Request Form'!J206),IF('Blank - Request Form'!$F$7=\"CIFDN\",IF('Blank - Request Form'!S206=0,\"\",'Blank - Request Form'!S206),\"\"))","v":""},{"$f":"IF(M172<>\"\",O172,\"\")","v":""},172]
[{"$f":"IF('Blank - Request Form'!$F$6=\"CIFDN\",IF('Blank - Request Form'!D207=0,\"\",'Blank - Request Form'!D207),IF('Blank - Request Form'!$F$7=\"CIFDN\",IF('Blank - Request Form'!M207=0,\"\",'Blank - Request Form'!M207),\"\"))","v":""},{"$f":"IF('Blank - Request Form'!$F$6=\"CIFDN\",IF('Blank - Request Form'!E207=0,\"\",'Blank - Request Form'!E207),IF('Blank - Request Form'!$F$7=\"CIFDN\",IF('Blank - Request Form'!N207=0,\"\",'Blank - Request Form'!N207),\"\"))","v":""},{"$f":"IF('Blank - Request Form'!$F$6=\"CIFDN\",IF(OR('Blank - Request Form'!F207=\"000\",'Blank - Request Form'!F207=0),\"\",'Blank - Request Form'!F207),IF('Blank - Request Form'!$F$7=\"CIFDN\",IF(OR('Blank - Request Form'!O207=\"000\",'Blank - Request Form'!O207=0),\"\",'Blank - Request Form'!O207),\"\"))","v":""},{"$f":"IF('Blank - Request Form'!$F$6=\"CIFDN\",IF(OR('Blank - Request Form'!G207=\"0\",'Blank - Request Form'!G207=\"00000\",'Blank - Request Form'!G207=0),\"\",'Blank - Request Form'!G207),IF('Blank - Request Form'!$F$7=\"CIFDN\",IF(OR('Blank - Request Form'!P207=\"0\",'Blank - Request Form'!P207=\"00000\",'Blank - Request Form'!P207=0),\"\",'Blank - Request Form'!P207),\"\"))","v":""},{"$f":"IF('Blank - Request Form'!$F$6=\"CIFDN\",IF(OR('Blank - Request Form'!H207=\"0\",'Blank - Request Form'!H207=\"00000\",'Blank - Request Form'!H207=0),\"\",'Blank - Request Form'!H207),IF('Blank - Request Form'!$F$7=\"CIFDN\",IF(OR('Blank - Request Form'!Q207=\"0\",'Blank - Request Form'!Q207=\"00000\",'Blank - Request Form'!Q207=0),\"\",'Blank - Request Form'!Q207),\"\"))","v":""},{"$f":"IF('Blank - Request Form'!$F$6=\"CIFDN\",IF(OR('Blank - Request Form'!I207=\"0\",'Blank - Request Form'!I207=\"00000\",'Blank - Request Form'!I207=0),\"\",'Blank - Request Form'!I207),IF('Blank - Request Form'!$F$7=\"CIFDN\",IF(OR('Blank - Request Form'!R207=\"0\",'Blank - Request Form'!R207=\"00000\",'Blank - Request Form'!R207=0),\"\",'Blank - Request Form'!R207),\"\"))","v":""},null,{"$f":"IF('Blank - Request Form'!$F$6=\"CIFDN\",IF('Blank - Request Form'!K207=0,\"\",'Blank - Request Form'!K207),IF('Blank - Request Form'!$F$7=\"CIFDN\",IF('Blank - Request Form'!T207=0,\"\",'Blank - Request Form'!T207),\"\"))","v":""},null,null,null,{"$f":"IF(M173<>\"\",'Blank - Request Form'!$M$2,\"\")","v":""},{"$f":"IF('Blank - Request Form'!$F$6=\"CIFDN\",IF('Blank - Request Form'!J207=0,\"\",'Blank - Request Form'!J207),IF('Blank - Request Form'!$F$7=\"CIFDN\",IF('Blank - Request Form'!S207=0,\"\",'Blank - Request Form'!S207),\"\"))","v":""},"",173]
[{"$f":"IF('Blank - Request Form'!$F$6=\"CIFDN\",IF('Blank - Request Form'!D208=0,\"\",'Blank - Request Form'!D208),IF('Blank - Request Form'!$F$7=\"CIFDN\",IF('Blank - Request Form'!M208=0,\"\",'Blank - Request Form'!M208),\"\"))","v":""},{"$f":"IF('Blank - Request Form'!$F$6=\"CIFDN\",IF('Blank - Request Form'!E208=0,\"\",'Blank - Request Form'!E208),IF('Blank - Request Form'!$F$7=\"CIFDN\",IF('Blank - Request Form'!N208=0,\"\",'Blank - Request Form'!N208),\"\"))","v":""},{"$f":"IF('Blank - Request Form'!$F$6=\"CIFDN\",IF(OR('Blank - Request Form'!F208=\"000\",'Blank - Request Form'!F208=0),\"\",'Blank - Request Form'!F208),IF('Blank - Request Form'!$F$7=\"CIFDN\",IF(OR('Blank - Request Form'!O208=\"000\",'Blank - Request Form'!O208=0),\"\",'Blank - Request Form'!O208),\"\"))","v":""},{"$f":"IF('Blank - Request Form'!$F$6=\"CIFDN\",IF(OR('Blank - Request Form'!G208=\"0\",'Blank - Request Form'!G208=\"00000\",'Blank - Request Form'!G208=0),\"\",'Blank - Request Form'!G208),IF('Blank - Request Form'!$F$7=\"CIFDN\",IF(OR('Blank - Request Form'!P208=\"0\",'Blank - Request Form'!P208=\"00000\",'Blank - Request Form'!P208=0),\"\",'Blank - Request Form'!P208),\"\"))","v":""},{"$f":"IF('Blank - Request Form'!$F$6=\"CIFDN\",IF(OR('Blank - Request Form'!H208=\"0\",'Blank - Request Form'!H208=\"00000\",'Blank - Request Form'!H208=0),\"\",'Blank - Request Form'!H208),IF('Blank - Request Form'!$F$7=\"CIFDN\",IF(OR('Blank - Request Form'!Q208=\"0\",'Blank - Request Form'!Q208=\"00000\",'Blank - Request Form'!Q208=0),\"\",'Blank - Request Form'!Q208),\"\"))","v":""},{"$f":"IF('Blank - Request Form'!$F$6=\"CIFDN\",IF(OR('Blank - Request Form'!I208=\"0\",'Blank - Request Form'!I208=\"00000\",'Blank - Request Form'!I208=0),\"\",'Blank - Request Form'!I208),IF('Blank - Request Form'!$F$7=\"CIFDN\",IF(OR('Blank - Request Form'!R208=\"0\",'Blank - Request Form'!R208=\"00000\",'Blank - Request Form'!R208=0),\"\",'Blank - Request Form'!R208),\"\"))","v":""},null,{"$f":"IF('Blank - Request Form'!$F$6=\"CIFDN\",IF('Blank - Request Form'!K208=0,\"\",'Blank - Request Form'!K208),IF('Blank - Request Form'!$F$7=\"CIFDN\",IF('Blank - Request Form'!T208=0,\"\",'Blank - Request Form'!T208),\"\"))","v":""},null,null,null,{"$f":"IF(M174<>\"\",'Blank - Request Form'!$M$2,\"\")","v":""},{"$f":"IF('Blank - Request Form'!$F$6=\"CIFDN\",IF('Blank - Request Form'!J208=0,\"\",'Blank - Request Form'!J208),IF('Blank - Request Form'!$F$7=\"CIFDN\",IF('Blank - Request Form'!S208=0,\"\",'Blank - Request Form'!S208),\"\"))","v":""},"",174]
[{"$f":"IF('Blank - Request Form'!$F$6=\"CIFDN\",IF('Blank - Request Form'!D209=0,\"\",'Blank - Request Form'!D209),IF('Blank - Request Form'!$F$7=\"CIFDN\",IF('Blank - Request Form'!M209=0,\"\",'Blank - Request Form'!M209),\"\"))","v":""},{"$f":"IF('Blank - Request Form'!$F$6=\"CIFDN\",IF('Blank - Request Form'!E209=0,\"\",'Blank - Request Form'!E209),IF('Blank - Request Form'!$F$7=\"CIFDN\",IF('Blank - Request Form'!N209=0,\"\",'Blank - Request Form'!N209),\"\"))","v":""},{"$f":"IF('Blank - Request Form'!$F$6=\"CIFDN\",IF(OR('Blank - Request Form'!F209=\"000\",'Blank - Request Form'!F209=0),\"\",'Blank - Request Form'!F209),IF('Blank - Request Form'!$F$7=\"CIFDN\",IF(OR('Blank - Request Form'!O209=\"000\",'Blank - Request Form'!O209=0),\"\",'Blank - Request Form'!O209),\"\"))","v":""},{"$f":"IF('Blank - Request Form'!$F$6=\"CIFDN\",IF(OR('Blank - Request Form'!G209=\"0\",'Blank - Request Form'!G209=\"00000\",'Blank - Request Form'!G209=0),\"\",'Blank - Request Form'!G209),IF('Blank - Request Form'!$F$7=\"CIFDN\",IF(OR('Blank - Request Form'!P209=\"0\",'Blank - Request Form'!P209=\"00000\",'Blank - Request Form'!P209=0),\"\",'Blank - Request Form'!P209),\"\"))","v":""},{"$f":"IF('Blank - Request Form'!$F$6=\"CIFDN\",IF(OR('Blank - Request Form'!H209=\"0\",'Blank - Request Form'!H209=\"00000\",'Blank - Request Form'!H209=0),\"\",'Blank - Request Form'!H209),IF('Blank - Request Form'!$F$7=\"CIFDN\",IF(OR('Blank - Request Form'!Q209=\"0\",'Blank - Request Form'!Q209=\"00000\",'Blank - Request Form'!Q209=0),\"\",'Blank - Request Form'!Q209),\"\"))","v":""},{"$f":"IF('Blank - Request Form'!$F$6=\"CIFDN\",IF(OR('Blank - Request Form'!I209=\"0\",'Blank - Request Form'!I209=\"00000\",'Blank - Request Form'!I209=0),\"\",'Blank - Request Form'!I209),IF('Blank - Request Form'!$F$7=\"CIFDN\",IF(OR('Blank - Request Form'!R209=\"0\",'Blank - Request Form'!R209=\"00000\",'Blank - Request Form'!R209=0),\"\",'Blank - Request Form'!R209),\"\"))","v":""},null,{"$f":"IF('Blank - Request Form'!$F$6=\"CIFDN\",IF('Blank - Request Form'!K209=0,\"\",'Blank - Request Form'!K209),IF('Blank - Request Form'!$F$7=\"CIFDN\",IF('Blank - Request Form'!T209=0,\"\",'Blank - Request Form'!T209),\"\"))","v":""},null,null,null,{"$f":"IF(M175<>\"\",'Blank - Request Form'!$M$2,\"\")","v":""},{"$f":"IF('Blank - Request Form'!$F$6=\"CIFDN\",IF('Blank - Request Form'!J209=0,\"\",'Blank - Request Form'!J209),IF('Blank - Request Form'!$F$7=\"CIFDN\",IF('Blank - Request Form'!S209=0,\"\",'Blank - Request Form'!S209),\"\"))","v":""},"",175]
[{"$f":"IF('Blank - Request Form'!$F$6=\"CIFDN\",IF('Blank - Request Form'!D210=0,\"\",'Blank - Request Form'!D210),IF('Blank - Request Form'!$F$7=\"CIFDN\",IF('Blank - Request Form'!M210=0,\"\",'Blank - Request Form'!M210),\"\"))","v":""},{"$f":"IF('Blank - Request Form'!$F$6=\"CIFDN\",IF('Blank - Request Form'!E210=0,\"\",'Blank - Request Form'!E210),IF('Blank - Request Form'!$F$7=\"CIFDN\",IF('Blank - Request Form'!N210=0,\"\",'Blank - Request Form'!N210),\"\"))","v":""},{"$f":"IF('Blank - Request Form'!$F$6=\"CIFDN\",IF(OR('Blank - Request Form'!F210=\"000\",'Blank - Request Form'!F210=0),\"\",'Blank - Request Form'!F210),IF('Blank - Request Form'!$F$7=\"CIFDN\",IF(OR('Blank - Request Form'!O210=\"000\",'Blank - Request Form'!O210=0),\"\",'Blank - Request Form'!O210),\"\"))","v":""},{"$f":"IF('Blank - Request Form'!$F$6=\"CIFDN\",IF(OR('Blank - Request Form'!G210=\"0\",'Blank - Request Form'!G210=\"00000\",'Blank - Request Form'!G210=0),\"\",'Blank - Request Form'!G210),IF('Blank - Request Form'!$F$7=\"CIFDN\",IF(OR('Blank - Request Form'!P210=\"0\",'Blank - Request Form'!P210=\"00000\",'Blank - Request Form'!P210=0),\"\",'Blank - Request Form'!P210),\"\"))","v":""},{"$f":"IF('Blank - Request Form'!$F$6=\"CIFDN\",IF(OR('Blank - Request Form'!H210=\"0\",'Blank - Request Form'!H210=\"00000\",'Blank - Request Form'!H210=0),\"\",'Blank - Request Form'!H210),IF('Blank - Request Form'!$F$7=\"CIFDN\",IF(OR('Blank - Request Form'!Q210=\"0\",'Blank - Request Form'!Q210=\"00000\",'Blank - Request Form'!Q210=0),\"\",'Blank - Request Form'!Q210),\"\"))","v":""},{"$f":"IF('Blank - Request Form'!$F$6=\"CIFDN\",IF(OR('Blank - Request Form'!I210=\"0\",'Blank - Request Form'!I210=\"00000\",'Blank - Request Form'!I210=0),\"\",'Blank - Request Form'!I210),IF('Blank - Request Form'!$F$7=\"CIFDN\",IF(OR('Blank - Request Form'!R210=\"0\",'Blank - Request Form'!R210=\"00000\",'Blank - Request Form'!R210=0),\"\",'Blank - Request Form'!R210),\"\"))","v":""},null,{"$f":"IF('Blank - Request Form'!$F$6=\"CIFDN\",IF('Blank - Request Form'!K210=0,\"\",'Blank - Request Form'!K210),IF('Blank - Request Form'!$F$7=\"CIFDN\",IF('Blank - Request Form'!T210=0,\"\",'Blank - Request Form'!T210),\"\"))","v":""},null,null,null,{"$f":"IF(M176<>\"\",'Blank - Request Form'!$M$2,\"\")","v":""},{"$f":"IF('Blank - Request Form'!$F$6=\"CIFDN\",IF('Blank - Request Form'!J210=0,\"\",'Blank - Request Form'!J210),IF('Blank - Request Form'!$F$7=\"CIFDN\",IF('Blank - Request Form'!S210=0,\"\",'Blank - Request Form'!S210),\"\"))","v":""},"",176]
[{"$f":"IF('Blank - Request Form'!$F$6=\"CIFDN\",IF('Blank - Request Form'!D211=0,\"\",'Blank - Request Form'!D211),IF('Blank - Request Form'!$F$7=\"CIFDN\",IF('Blank - Request Form'!M211=0,\"\",'Blank - Request Form'!M211),\"\"))","v":""},{"$f":"IF('Blank - Request Form'!$F$6=\"CIFDN\",IF('Blank - Request Form'!E211=0,\"\",'Blank - Request Form'!E211),IF('Blank - Request Form'!$F$7=\"CIFDN\",IF('Blank - Request Form'!N211=0,\"\",'Blank - Request Form'!N211),\"\"))","v":""},{"$f":"IF('Blank - Request Form'!$F$6=\"CIFDN\",IF(OR('Blank - Request Form'!F211=\"000\",'Blank - Request Form'!F211=0),\"\",'Blank - Request Form'!F211),IF('Blank - Request Form'!$F$7=\"CIFDN\",IF(OR('Blank - Request Form'!O211=\"000\",'Blank - Request Form'!O211=0),\"\",'Blank - Request Form'!O211),\"\"))","v":""},{"$f":"IF('Blank - Request Form'!$F$6=\"CIFDN\",IF(OR('Blank - Request Form'!G211=\"0\",'Blank - Request Form'!G211=\"00000\",'Blank - Request Form'!G211=0),\"\",'Blank - Request Form'!G211),IF('Blank - Request Form'!$F$7=\"CIFDN\",IF(OR('Blank - Request Form'!P211=\"0\",'Blank - Request Form'!P211=\"00000\",'Blank - Request Form'!P211=0),\"\",'Blank - Request Form'!P211),\"\"))","v":""},{"$f":"IF('Blank - Request Form'!$F$6=\"CIFDN\",IF(OR('Blank - Request Form'!H211=\"0\",'Blank - Request Form'!H211=\"00000\",'Blank - Request Form'!H211=0),\"\",'Blank - Request Form'!H211),IF('Blank - Request Form'!$F$7=\"CIFDN\",IF(OR('Blank - Request Form'!Q211=\"0\",'Blank - Request Form'!Q211=\"00000\",'Blank - Request Form'!Q211=0),\"\",'Blank - Request Form'!Q211),\"\"))","v":""},{"$f":"IF('Blank - Request Form'!$F$6=\"CIFDN\",IF(OR('Blank - Request Form'!I211=\"0\",'Blank - Request Form'!I211=\"00000\",'Blank - Request Form'!I211=0),\"\",'Blank - Request Form'!I211),IF('Blank - Request Form'!$F$7=\"CIFDN\",IF(OR('Blank - Request Form'!R211=\"0\",'Blank - Request Form'!R211=\"00000\",'Blank - Request Form'!R211=0),\"\",'Blank - Request Form'!R211),\"\"))","v":""},null,{"$f":"IF('Blank - Request Form'!$F$6=\"CIFDN\",IF('Blank - Request Form'!K211=0,\"\",'Blank - Request Form'!K211),IF('Blank - Request Form'!$F$7=\"CIFDN\",IF('Blank - Request Form'!T211=0,\"\",'Blank - Request Form'!T211),\"\"))","v":""},null,null,null,{"$f":"IF(M177<>\"\",'Blank - Request Form'!$M$2,\"\")","v":""},{"$f":"IF('Blank - Request Form'!$F$6=\"CIFDN\",IF('Blank - Request Form'!J211=0,\"\",'Blank - Request Form'!J211),IF('Blank - Request Form'!$F$7=\"CIFDN\",IF('Blank - Request Form'!S211=0,\"\",'Blank - Request Form'!S211),\"\"))","v":""},"",177]
[{"$f":"IF('Blank - Request Form'!$F$6=\"CIFDN\",IF('Blank - Request Form'!D212=0,\"\",'Blank - Request Form'!D212),IF('Blank - Request Form'!$F$7=\"CIFDN\",IF('Blank - Request Form'!M212=0,\"\",'Blank - Request Form'!M212),\"\"))","v":""},{"$f":"IF('Blank - Request Form'!$F$6=\"CIFDN\",IF('Blank - Request Form'!E212=0,\"\",'Blank - Request Form'!E212),IF('Blank - Request Form'!$F$7=\"CIFDN\",IF('Blank - Request Form'!N212=0,\"\",'Blank - Request Form'!N212),\"\"))","v":""},{"$f":"IF('Blank - Request Form'!$F$6=\"CIFDN\",IF(OR('Blank - Request Form'!F212=\"000\",'Blank - Request Form'!F212=0),\"\",'Blank - Request Form'!F212),IF('Blank - Request Form'!$F$7=\"CIFDN\",IF(OR('Blank - Request Form'!O212=\"000\",'Blank - Request Form'!O212=0),\"\",'Blank - Request Form'!O212),\"\"))","v":""},{"$f":"IF('Blank - Request Form'!$F$6=\"CIFDN\",IF(OR('Blank - Request Form'!G212=\"0\",'Blank - Request Form'!G212=\"00000\",'Blank - Request Form'!G212=0),\"\",'Blank - Request Form'!G212),IF('Blank - Request Form'!$F$7=\"CIFDN\",IF(OR('Blank - Request Form'!P212=\"0\",'Blank - Request Form'!P212=\"00000\",'Blank - Request Form'!P212=0),\"\",'Blank - Request Form'!P212),\"\"))","v":""},{"$f":"IF('Blank - Request Form'!$F$6=\"CIFDN\",IF(OR('Blank - Request Form'!H212=\"0\",'Blank - Request Form'!H212=\"00000\",'Blank - Request Form'!H212=0),\"\",'Blank - Request Form'!H212),IF('Blank - Request Form'!$F$7=\"CIFDN\",IF(OR('Blank - Request Form'!Q212=\"0\",'Blank - Request Form'!Q212=\"00000\",'Blank - Request Form'!Q212=0),\"\",'Blank - Request Form'!Q212),\"\"))","v":""},{"$f":"IF('Blank - Request Form'!$F$6=\"CIFDN\",IF(OR('Blank - Request Form'!I212=\"0\",'Blank - Request Form'!I212=\"00000\",'Blank - Request Form'!I212=0),\"\",'Blank - Request Form'!I212),IF('Blank - Request Form'!$F$7=\"CIFDN\",IF(OR('Blank - Request Form'!R212=\"0\",'Blank - Request Form'!R212=\"00000\",'Blank - Request Form'!R212=0),\"\",'Blank - Request Form'!R212),\"\"))","v":""},null,{"$f":"IF('Blank - Request Form'!$F$6=\"CIFDN\",IF('Blank - Request Form'!K212=0,\"\",'Blank - Request Form'!K212),IF('Blank - Request Form'!$F$7=\"CIFDN\",IF('Blank - Request Form'!T212=0,\"\",'Blank - Request Form'!T212),\"\"))","v":""},null,null,null,{"$f":"IF(M178<>\"\",'Blank - Request Form'!$M$2,\"\")","v":""},{"$f":"IF('Blank - Request Form'!$F$6=\"CIFDN\",IF('Blank - Request Form'!J212=0,\"\",'Blank - Request Form'!J212),IF('Blank - Request Form'!$F$7=\"CIFDN\",IF('Blank - Request Form'!S212=0,\"\",'Blank - Request Form'!S212),\"\"))","v":""},"",178]
[{"$f":"IF('Blank - Request Form'!$F$6=\"CIFDN\",IF('Blank - Request Form'!D213=0,\"\",'Blank - Request Form'!D213),IF('Blank - Request Form'!$F$7=\"CIFDN\",IF('Blank - Request Form'!M213=0,\"\",'Blank - Request Form'!M213),\"\"))","v":""},{"$f":"IF('Blank - Request Form'!$F$6=\"CIFDN\",IF('Blank - Request Form'!E213=0,\"\",'Blank - Request Form'!E213),IF('Blank - Request Form'!$F$7=\"CIFDN\",IF('Blank - Request Form'!N213=0,\"\",'Blank - Request Form'!N213),\"\"))","v":""},{"$f":"IF('Blank - Request Form'!$F$6=\"CIFDN\",IF(OR('Blank - Request Form'!F213=\"000\",'Blank - Request Form'!F213=0),\"\",'Blank - Request Form'!F213),IF('Blank - Request Form'!$F$7=\"CIFDN\",IF(OR('Blank - Request Form'!O213=\"000\",'Blank - Request Form'!O213=0),\"\",'Blank - Request Form'!O213),\"\"))","v":""},{"$f":"IF('Blank - Request Form'!$F$6=\"CIFDN\",IF(OR('Blank - Request Form'!G213=\"0\",'Blank - Request Form'!G213=\"00000\",'Blank - Request Form'!G213=0),\"\",'Blank - Request Form'!G213),IF('Blank - Request Form'!$F$7=\"CIFDN\",IF(OR('Blank - Request Form'!P213=\"0\",'Blank - Request Form'!P213=\"00000\",'Blank - Request Form'!P213=0),\"\",'Blank - Request Form'!P213),\"\"))","v":""},{"$f":"IF('Blank - Request Form'!$F$6=\"CIFDN\",IF(OR('Blank - Request Form'!H213=\"0\",'Blank - Request Form'!H213=\"00000\",'Blank - Request Form'!H213=0),\"\",'Blank - Request Form'!H213),IF('Blank - Request Form'!$F$7=\"CIFDN\",IF(OR('Blank - Request Form'!Q213=\"0\",'Blank - Request Form'!Q213=\"00000\",'Blank - Request Form'!Q213=0),\"\",'Blank - Request Form'!Q213),\"\"))","v":""},{"$f":"IF('Blank - Request Form'!$F$6=\"CIFDN\",IF(OR('Blank - Request Form'!I213=\"0\",'Blank - Request Form'!I213=\"00000\",'Blank - Request Form'!I213=0),\"\",'Blank - Request Form'!I213),IF('Blank - Request Form'!$F$7=\"CIFDN\",IF(OR('Blank - Request Form'!R213=\"0\",'Blank - Request Form'!R213=\"00000\",'Blank - Request Form'!R213=0),\"\",'Blank - Request Form'!R213),\"\"))","v":""},null,{"$f":"IF('Blank - Request Form'!$F$6=\"CIFDN\",IF('Blank - Request Form'!K213=0,\"\",'Blank - Request Form'!K213),IF('Blank - Request Form'!$F$7=\"CIFDN\",IF('Blank - Request Form'!T213=0,\"\",'Blank - Request Form'!T213),\"\"))","v":""},null,null,null,{"$f":"IF(M179<>\"\",'Blank - Request Form'!$M$2,\"\")","v":""},{"$f":"IF('Blank - Request Form'!$F$6=\"CIFDN\",IF('Blank - Request Form'!J213=0,\"\",'Blank - Request Form'!J213),IF('Blank - Request Form'!$F$7=\"CIFDN\",IF('Blank - Request Form'!S213=0,\"\",'Blank - Request Form'!S213),\"\"))","v":""},"",179]
[{"$f":"IF('Blank - Request Form'!$F$6=\"CIFDN\",IF('Blank - Request Form'!D214=0,\"\",'Blank - Request Form'!D214),IF('Blank - Request Form'!$F$7=\"CIFDN\",IF('Blank - Request Form'!M214=0,\"\",'Blank - Request Form'!M214),\"\"))","v":""},{"$f":"IF('Blank - Request Form'!$F$6=\"CIFDN\",IF('Blank - Request Form'!E214=0,\"\",'Blank - Request Form'!E214),IF('Blank - Request Form'!$F$7=\"CIFDN\",IF('Blank - Request Form'!N214=0,\"\",'Blank - Request Form'!N214),\"\"))","v":""},{"$f":"IF('Blank - Request Form'!$F$6=\"CIFDN\",IF(OR('Blank - Request Form'!F214=\"000\",'Blank - Request Form'!F214=0),\"\",'Blank - Request Form'!F214),IF('Blank - Request Form'!$F$7=\"CIFDN\",IF(OR('Blank - Request Form'!O214=\"000\",'Blank - Request Form'!O214=0),\"\",'Blank - Request Form'!O214),\"\"))","v":""},{"$f":"IF('Blank - Request Form'!$F$6=\"CIFDN\",IF(OR('Blank - Request Form'!G214=\"0\",'Blank - Request Form'!G214=\"00000\",'Blank - Request Form'!G214=0),\"\",'Blank - Request Form'!G214),IF('Blank - Request Form'!$F$7=\"CIFDN\",IF(OR('Blank - Request Form'!P214=\"0\",'Blank - Request Form'!P214=\"00000\",'Blank - Request Form'!P214=0),\"\",'Blank - Request Form'!P214),\"\"))","v":""},{"$f":"IF('Blank - Request Form'!$F$6=\"CIFDN\",IF(OR('Blank - Request Form'!H214=\"0\",'Blank - Request Form'!H214=\"00000\",'Blank - Request Form'!H214=0),\"\",'Blank - Request Form'!H214),IF('Blank - Request Form'!$F$7=\"CIFDN\",IF(OR('Blank - Request Form'!Q214=\"0\",'Blank - Request Form'!Q214=\"00000\",'Blank - Request Form'!Q214=0),\"\",'Blank - Request Form'!Q214),\"\"))","v":""},{"$f":"IF('Blank - Request Form'!$F$6=\"CIFDN\",IF(OR('Blank - Request Form'!I214=\"0\",'Blank - Request Form'!I214=\"00000\",'Blank - Request Form'!I214=0),\"\",'Blank - Request Form'!I214),IF('Blank - Request Form'!$F$7=\"CIFDN\",IF(OR('Blank - Request Form'!R214=\"0\",'Blank - Request Form'!R214=\"00000\",'Blank - Request Form'!R214=0),\"\",'Blank - Request Form'!R214),\"\"))","v":""},null,{"$f":"IF('Blank - Request Form'!$F$6=\"CIFDN\",IF('Blank - Request Form'!K214=0,\"\",'Blank - Request Form'!K214),IF('Blank - Request Form'!$F$7=\"CIFDN\",IF('Blank - Request Form'!T214=0,\"\",'Blank - Request Form'!T214),\"\"))","v":""},null,null,null,{"$f":"IF(M180<>\"\",'Blank - Request Form'!$M$2,\"\")","v":""},{"$f":"IF('Blank - Request Form'!$F$6=\"CIFDN\",IF('Blank - Request Form'!J214=0,\"\",'Blank - Request Form'!J214),IF('Blank - Request Form'!$F$7=\"CIFDN\",IF('Blank - Request Form'!S214=0,\"\",'Blank - Request Form'!S214),\"\"))","v":""},"",180]
[{"$f":"IF('Blank - Request Form'!$F$6=\"CIFDN\",IF('Blank - Request Form'!D215=0,\"\",'Blank - Request Form'!D215),IF('Blank - Request Form'!$F$7=\"CIFDN\",IF('Blank - Request Form'!M215=0,\"\",'Blank - Request Form'!M215),\"\"))","v":""},{"$f":"IF('Blank - Request Form'!$F$6=\"CIFDN\",IF('Blank - Request Form'!E215=0,\"\",'Blank - Request Form'!E215),IF('Blank - Request Form'!$F$7=\"CIFDN\",IF('Blank - Request Form'!N215=0,\"\",'Blank - Request Form'!N215),\"\"))","v":""},{"$f":"IF('Blank - Request Form'!$F$6=\"CIFDN\",IF(OR('Blank - Request Form'!F215=\"000\",'Blank - Request Form'!F215=0),\"\",'Blank - Request Form'!F215),IF('Blank - Request Form'!$F$7=\"CIFDN\",IF(OR('Blank - Request Form'!O215=\"000\",'Blank - Request Form'!O215=0),\"\",'Blank - Request Form'!O215),\"\"))","v":""},{"$f":"IF('Blank - Request Form'!$F$6=\"CIFDN\",IF(OR('Blank - Request Form'!G215=\"0\",'Blank - Request Form'!G215=\"00000\",'Blank - Request Form'!G215=0),\"\",'Blank - Request Form'!G215),IF('Blank - Request Form'!$F$7=\"CIFDN\",IF(OR('Blank - Request Form'!P215=\"0\",'Blank - Request Form'!P215=\"00000\",'Blank - Request Form'!P215=0),\"\",'Blank - Request Form'!P215),\"\"))","v":""},{"$f":"IF('Blank - Request Form'!$F$6=\"CIFDN\",IF(OR('Blank - Request Form'!H215=\"0\",'Blank - Request Form'!H215=\"00000\",'Blank - Request Form'!H215=0),\"\",'Blank - Request Form'!H215),IF('Blank - Request Form'!$F$7=\"CIFDN\",IF(OR('Blank - Request Form'!Q215=\"0\",'Blank - Request Form'!Q215=\"00000\",'Blank - Request Form'!Q215=0),\"\",'Blank - Request Form'!Q215),\"\"))","v":""},{"$f":"IF('Blank - Request Form'!$F$6=\"CIFDN\",IF(OR('Blank - Request Form'!I215=\"0\",'Blank - Request Form'!I215=\"00000\",'Blank - Request Form'!I215=0),\"\",'Blank - Request Form'!I215),IF('Blank - Request Form'!$F$7=\"CIFDN\",IF(OR('Blank - Request Form'!R215=\"0\",'Blank - Request Form'!R215=\"00000\",'Blank - Request Form'!R215=0),\"\",'Blank - Request Form'!R215),\"\"))","v":""},null,{"$f":"IF('Blank - Request Form'!$F$6=\"CIFDN\",IF('Blank - Request Form'!K215=0,\"\",'Blank - Request Form'!K215),IF('Blank - Request Form'!$F$7=\"CIFDN\",IF('Blank - Request Form'!T215=0,\"\",'Blank - Request Form'!T215),\"\"))","v":""},null,null,null,{"$f":"IF(M181<>\"\",'Blank - Request Form'!$M$2,\"\")","v":""},{"$f":"IF('Blank - Request Form'!$F$6=\"CIFDN\",IF('Blank - Request Form'!J215=0,\"\",'Blank - Request Form'!J215),IF('Blank - Request Form'!$F$7=\"CIFDN\",IF('Blank - Request Form'!S215=0,\"\",'Blank - Request Form'!S215),\"\"))","v":""},"",181]
[{"$f":"IF('Blank - Request Form'!$F$6=\"CIFDN\",IF('Blank - Request Form'!D216=0,\"\",'Blank - Request Form'!D216),IF('Blank - Request Form'!$F$7=\"CIFDN\",IF('Blank - Request Form'!M216=0,\"\",'Blank - Request Form'!M216),\"\"))","v":""},{"$f":"IF('Blank - Request Form'!$F$6=\"CIFDN\",IF('Blank - Request Form'!E216=0,\"\",'Blank - Request Form'!E216),IF('Blank - Request Form'!$F$7=\"CIFDN\",IF('Blank - Request Form'!N216=0,\"\",'Blank - Request Form'!N216),\"\"))","v":""},{"$f":"IF('Blank - Request Form'!$F$6=\"CIFDN\",IF(OR('Blank - Request Form'!F216=\"000\",'Blank - Request Form'!F216=0),\"\",'Blank - Request Form'!F216),IF('Blank - Request Form'!$F$7=\"CIFDN\",IF(OR('Blank - Request Form'!O216=\"000\",'Blank - Request Form'!O216=0),\"\",'Blank - Request Form'!O216),\"\"))","v":""},{"$f":"IF('Blank - Request Form'!$F$6=\"CIFDN\",IF(OR('Blank - Request Form'!G216=\"0\",'Blank - Request Form'!G216=\"00000\",'Blank - Request Form'!G216=0),\"\",'Blank - Request Form'!G216),IF('Blank - Request Form'!$F$7=\"CIFDN\",IF(OR('Blank - Request Form'!P216=\"0\",'Blank - Request Form'!P216=\"00000\",'Blank - Request Form'!P216=0),\"\",'Blank - Request Form'!P216),\"\"))","v":""},{"$f":"IF('Blank - Request Form'!$F$6=\"CIFDN\",IF(OR('Blank - Request Form'!H216=\"0\",'Blank - Request Form'!H216=\"00000\",'Blank - Request Form'!H216=0),\"\",'Blank - Request Form'!H216),IF('Blank - Request Form'!$F$7=\"CIFDN\",IF(OR('Blank - Request Form'!Q216=\"0\",'Blank - Request Form'!Q216=\"00000\",'Blank - Request Form'!Q216=0),\"\",'Blank - Request Form'!Q216),\"\"))","v":""},{"$f":"IF('Blank - Request Form'!$F$6=\"CIFDN\",IF(OR('Blank - Request Form'!I216=\"0\",'Blank - Request Form'!I216=\"00000\",'Blank - Request Form'!I216=0),\"\",'Blank - Request Form'!I216),IF('Blank - Request Form'!$F$7=\"CIFDN\",IF(OR('Blank - Request Form'!R216=\"0\",'Blank - Request Form'!R216=\"00000\",'Blank - Request Form'!R216=0),\"\",'Blank - Request Form'!R216),\"\"))","v":""},null,{"$f":"IF('Blank - Request Form'!$F$6=\"CIFDN\",IF('Blank - Request Form'!K216=0,\"\",'Blank - Request Form'!K216),IF('Blank - Request Form'!$F$7=\"CIFDN\",IF('Blank - Request Form'!T216=0,\"\",'Blank - Request Form'!T216),\"\"))","v":""},null,null,null,{"$f":"IF(M182<>\"\",'Blank - Request Form'!$M$2,\"\")","v":""},{"$f":"IF('Blank - Request Form'!$F$6=\"CIFDN\",IF('Blank - Request Form'!J216=0,\"\",'Blank - Request Form'!J216),IF('Blank - Request Form'!$F$7=\"CIFDN\",IF('Blank - Request Form'!S216=0,\"\",'Blank - Request Form'!S216),\"\"))","v":""},"",182]
[{"$f":"IF('Blank - Request Form'!$F$6=\"CIFDN\",IF('Blank - Request Form'!D217=0,\"\",'Blank - Request Form'!D217),IF('Blank - Request Form'!$F$7=\"CIFDN\",IF('Blank - Request Form'!M217=0,\"\",'Blank - Request Form'!M217),\"\"))","v":""},{"$f":"IF('Blank - Request Form'!$F$6=\"CIFDN\",IF('Blank - Request Form'!E217=0,\"\",'Blank - Request Form'!E217),IF('Blank - Request Form'!$F$7=\"CIFDN\",IF('Blank - Request Form'!N217=0,\"\",'Blank - Request Form'!N217),\"\"))","v":""},{"$f":"IF('Blank - Request Form'!$F$6=\"CIFDN\",IF(OR('Blank - Request Form'!F217=\"000\",'Blank - Request Form'!F217=0),\"\",'Blank - Request Form'!F217),IF('Blank - Request Form'!$F$7=\"CIFDN\",IF(OR('Blank - Request Form'!O217=\"000\",'Blank - Request Form'!O217=0),\"\",'Blank - Request Form'!O217),\"\"))","v":""},{"$f":"IF('Blank - Request Form'!$F$6=\"CIFDN\",IF(OR('Blank - Request Form'!G217=\"0\",'Blank - Request Form'!G217=\"00000\",'Blank - Request Form'!G217=0),\"\",'Blank - Request Form'!G217),IF('Blank - Request Form'!$F$7=\"CIFDN\",IF(OR('Blank - Request Form'!P217=\"0\",'Blank - Request Form'!P217=\"00000\",'Blank - Request Form'!P217=0),\"\",'Blank - Request Form'!P217),\"\"))","v":""},{"$f":"IF('Blank - Request Form'!$F$6=\"CIFDN\",IF(OR('Blank - Request Form'!H217=\"0\",'Blank - Request Form'!H217=\"00000\",'Blank - Request Form'!H217=0),\"\",'Blank - Request Form'!H217),IF('Blank - Request Form'!$F$7=\"CIFDN\",IF(OR('Blank - Request Form'!Q217=\"0\",'Blank - Request Form'!Q217=\"00000\",'Blank - Request Form'!Q217=0),\"\",'Blank - Request Form'!Q217),\"\"))","v":""},{"$f":"IF('Blank - Request Form'!$F$6=\"CIFDN\",IF(OR('Blank - Request Form'!I217=\"0\",'Blank - Request Form'!I217=\"00000\",'Blank - Request Form'!I217=0),\"\",'Blank - Request Form'!I217),IF('Blank - Request Form'!$F$7=\"CIFDN\",IF(OR('Blank - Request Form'!R217=\"0\",'Blank - Request Form'!R217=\"00000\",'Blank - Request Form'!R217=0),\"\",'Blank - Request Form'!R217),\"\"))","v":""},null,{"$f":"IF('Blank - Request Form'!$F$6=\"CIFDN\",IF('Blank - Request Form'!K217=0,\"\",'Blank - Request Form'!K217),IF('Blank - Request Form'!$F$7=\"CIFDN\",IF('Blank - Request Form'!T217=0,\"\",'Blank - Request Form'!T217),\"\"))","v":""},null,null,null,{"$f":"IF(M183<>\"\",'Blank - Request Form'!$M$2,\"\")","v":""},{"$f":"IF('Blank - Request Form'!$F$6=\"CIFDN\",IF('Blank - Request Form'!J217=0,\"\",'Blank - Request Form'!J217),IF('Blank - Request Form'!$F$7=\"CIFDN\",IF('Blank - Request Form'!S217=0,\"\",'Blank - Request Form'!S217),\"\"))","v":""},"",183]
[{"$f":"IF('Blank - Request Form'!$F$6=\"CIFDN\",IF('Blank - Request Form'!D218=0,\"\",'Blank - Request Form'!D218),IF('Blank - Request Form'!$F$7=\"CIFDN\",IF('Blank - Request Form'!M218=0,\"\",'Blank - Request Form'!M218),\"\"))","v":""},{"$f":"IF('Blank - Request Form'!$F$6=\"CIFDN\",IF('Blank - Request Form'!E218=0,\"\",'Blank - Request Form'!E218),IF('Blank - Request Form'!$F$7=\"CIFDN\",IF('Blank - Request Form'!N218=0,\"\",'Blank - Request Form'!N218),\"\"))","v":""},{"$f":"IF('Blank - Request Form'!$F$6=\"CIFDN\",IF(OR('Blank - Request Form'!F218=\"000\",'Blank - Request Form'!F218=0),\"\",'Blank - Request Form'!F218),IF('Blank - Request Form'!$F$7=\"CIFDN\",IF(OR('Blank - Request Form'!O218=\"000\",'Blank - Request Form'!O218=0),\"\",'Blank - Request Form'!O218),\"\"))","v":""},{"$f":"IF('Blank - Request Form'!$F$6=\"CIFDN\",IF(OR('Blank - Request Form'!G218=\"0\",'Blank - Request Form'!G218=\"00000\",'Blank - Request Form'!G218=0),\"\",'Blank - Request Form'!G218),IF('Blank - Request Form'!$F$7=\"CIFDN\",IF(OR('Blank - Request Form'!P218=\"0\",'Blank - Request Form'!P218=\"00000\",'Blank - Request Form'!P218=0),\"\",'Blank - Request Form'!P218),\"\"))","v":""},{"$f":"IF('Blank - Request Form'!$F$6=\"CIFDN\",IF(OR('Blank - Request Form'!H218=\"0\",'Blank - Request Form'!H218=\"00000\",'Blank - Request Form'!H218=0),\"\",'Blank - Request Form'!H218),IF('Blank - Request Form'!$F$7=\"CIFDN\",IF(OR('Blank - Request Form'!Q218=\"0\",'Blank - Request Form'!Q218=\"00000\",'Blank - Request Form'!Q218=0),\"\",'Blank - Request Form'!Q218),\"\"))","v":""},{"$f":"IF('Blank - Request Form'!$F$6=\"CIFDN\",IF(OR('Blank - Request Form'!I218=\"0\",'Blank - Request Form'!I218=\"00000\",'Blank - Request Form'!I218=0),\"\",'Blank - Request Form'!I218),IF('Blank - Request Form'!$F$7=\"CIFDN\",IF(OR('Blank - Request Form'!R218=\"0\",'Blank - Request Form'!R218=\"00000\",'Blank - Request Form'!R218=0),\"\",'Blank - Request Form'!R218),\"\"))","v":""},null,{"$f":"IF('Blank - Request Form'!$F$6=\"CIFDN\",IF('Blank - Request Form'!K218=0,\"\",'Blank - Request Form'!K218),IF('Blank - Request Form'!$F$7=\"CIFDN\",IF('Blank - Request Form'!T218=0,\"\",'Blank - Request Form'!T218),\"\"))","v":""},null,null,null,{"$f":"IF(M184<>\"\",'Blank - Request Form'!$M$2,\"\")","v":""},{"$f":"IF('Blank - Request Form'!$F$6=\"CIFDN\",IF('Blank - Request Form'!J218=0,\"\",'Blank - Request Form'!J218),IF('Blank - Request Form'!$F$7=\"CIFDN\",IF('Blank - Request Form'!S218=0,\"\",'Blank - Request Form'!S218),\"\"))","v":""},"",184]
[{"$f":"IF('Blank - Request Form'!$F$6=\"CIFDN\",IF('Blank - Request Form'!D219=0,\"\",'Blank - Request Form'!D219),IF('Blank - Request Form'!$F$7=\"CIFDN\",IF('Blank - Request Form'!M219=0,\"\",'Blank - Request Form'!M219),\"\"))","v":""},{"$f":"IF('Blank - Request Form'!$F$6=\"CIFDN\",IF('Blank - Request Form'!E219=0,\"\",'Blank - Request Form'!E219),IF('Blank - Request Form'!$F$7=\"CIFDN\",IF('Blank - Request Form'!N219=0,\"\",'Blank - Request Form'!N219),\"\"))","v":""},{"$f":"IF('Blank - Request Form'!$F$6=\"CIFDN\",IF(OR('Blank - Request Form'!F219=\"000\",'Blank - Request Form'!F219=0),\"\",'Blank - Request Form'!F219),IF('Blank - Request Form'!$F$7=\"CIFDN\",IF(OR('Blank - Request Form'!O219=\"000\",'Blank - Request Form'!O219=0),\"\",'Blank - Request Form'!O219),\"\"))","v":""},{"$f":"IF('Blank - Request Form'!$F$6=\"CIFDN\",IF(OR('Blank - Request Form'!G219=\"0\",'Blank - Request Form'!G219=\"00000\",'Blank - Request Form'!G219=0),\"\",'Blank - Request Form'!G219),IF('Blank - Request Form'!$F$7=\"CIFDN\",IF(OR('Blank - Request Form'!P219=\"0\",'Blank - Request Form'!P219=\"00000\",'Blank - Request Form'!P219=0),\"\",'Blank - Request Form'!P219),\"\"))","v":""},{"$f":"IF('Blank - Request Form'!$F$6=\"CIFDN\",IF(OR('Blank - Request Form'!H219=\"0\",'Blank - Request Form'!H219=\"00000\",'Blank - Request Form'!H219=0),\"\",'Blank - Request Form'!H219),IF('Blank - Request Form'!$F$7=\"CIFDN\",IF(OR('Blank - Request Form'!Q219=\"0\",'Blank - Request Form'!Q219=\"00000\",'Blank - Request Form'!Q219=0),\"\",'Blank - Request Form'!Q219),\"\"))","v":""},{"$f":"IF('Blank - Request Form'!$F$6=\"CIFDN\",IF(OR('Blank - Request Form'!I219=\"0\",'Blank - Request Form'!I219=\"00000\",'Blank - Request Form'!I219=0),\"\",'Blank - Request Form'!I219),IF('Blank - Request Form'!$F$7=\"CIFDN\",IF(OR('Blank - Request Form'!R219=\"0\",'Blank - Request Form'!R219=\"00000\",'Blank - Request Form'!R219=0),\"\",'Blank - Request Form'!R219),\"\"))","v":""},null,{"$f":"IF('Blank - Request Form'!$F$6=\"CIFDN\",IF('Blank - Request Form'!K219=0,\"\",'Blank - Request Form'!K219),IF('Blank - Request Form'!$F$7=\"CIFDN\",IF('Blank - Request Form'!T219=0,\"\",'Blank - Request Form'!T219),\"\"))","v":""},null,null,null,{"$f":"IF(M185<>\"\",'Blank - Request Form'!$M$2,\"\")","v":""},{"$f":"IF('Blank - Request Form'!$F$6=\"CIFDN\",IF('Blank - Request Form'!J219=0,\"\",'Blank - Request Form'!J219),IF('Blank - Request Form'!$F$7=\"CIFDN\",IF('Blank - Request Form'!S219=0,\"\",'Blank - Request Form'!S219),\"\"))","v":""},"",185]
[{"$f":"IF('Blank - Request Form'!$F$6=\"CIFDN\",IF('Blank - Request Form'!D220=0,\"\",'Blank - Request Form'!D220),IF('Blank - Request Form'!$F$7=\"CIFDN\",IF('Blank - Request Form'!M220=0,\"\",'Blank - Request Form'!M220),\"\"))","v":""},{"$f":"IF('Blank - Request Form'!$F$6=\"CIFDN\",IF('Blank - Request Form'!E220=0,\"\",'Blank - Request Form'!E220),IF('Blank - Request Form'!$F$7=\"CIFDN\",IF('Blank - Request Form'!N220=0,\"\",'Blank - Request Form'!N220),\"\"))","v":""},{"$f":"IF('Blank - Request Form'!$F$6=\"CIFDN\",IF(OR('Blank - Request Form'!F220=\"000\",'Blank - Request Form'!F220=0),\"\",'Blank - Request Form'!F220),IF('Blank - Request Form'!$F$7=\"CIFDN\",IF(OR('Blank - Request Form'!O220=\"000\",'Blank - Request Form'!O220=0),\"\",'Blank - Request Form'!O220),\"\"))","v":""},{"$f":"IF('Blank - Request Form'!$F$6=\"CIFDN\",IF(OR('Blank - Request Form'!G220=\"0\",'Blank - Request Form'!G220=\"00000\",'Blank - Request Form'!G220=0),\"\",'Blank - Request Form'!G220),IF('Blank - Request Form'!$F$7=\"CIFDN\",IF(OR('Blank - Request Form'!P220=\"0\",'Blank - Request Form'!P220=\"00000\",'Blank - Request Form'!P220=0),\"\",'Blank - Request Form'!P220),\"\"))","v":""},{"$f":"IF('Blank - Request Form'!$F$6=\"CIFDN\",IF(OR('Blank - Request Form'!H220=\"0\",'Blank - Request Form'!H220=\"00000\",'Blank - Request Form'!H220=0),\"\",'Blank - Request Form'!H220),IF('Blank - Request Form'!$F$7=\"CIFDN\",IF(OR('Blank - Request Form'!Q220=\"0\",'Blank - Request Form'!Q220=\"00000\",'Blank - Request Form'!Q220=0),\"\",'Blank - Request Form'!Q220),\"\"))","v":""},{"$f":"IF('Blank - Request Form'!$F$6=\"CIFDN\",IF(OR('Blank - Request Form'!I220=\"0\",'Blank - Request Form'!I220=\"00000\",'Blank - Request Form'!I220=0),\"\",'Blank - Request Form'!I220),IF('Blank - Request Form'!$F$7=\"CIFDN\",IF(OR('Blank - Request Form'!R220=\"0\",'Blank - Request Form'!R220=\"00000\",'Blank - Request Form'!R220=0),\"\",'Blank - Request Form'!R220),\"\"))","v":""},null,{"$f":"IF('Blank - Request Form'!$F$6=\"CIFDN\",IF('Blank - Request Form'!K220=0,\"\",'Blank - Request Form'!K220),IF('Blank - Request Form'!$F$7=\"CIFDN\",IF('Blank - Request Form'!T220=0,\"\",'Blank - Request Form'!T220),\"\"))","v":""},null,null,null,{"$f":"IF(M186<>\"\",'Blank - Request Form'!$M$2,\"\")","v":""},{"$f":"IF('Blank - Request Form'!$F$6=\"CIFDN\",IF('Blank - Request Form'!J220=0,\"\",'Blank - Request Form'!J220),IF('Blank - Request Form'!$F$7=\"CIFDN\",IF('Blank - Request Form'!S220=0,\"\",'Blank - Request Form'!S220),\"\"))","v":""},"",186]
[{"$f":"IF('Blank - Request Form'!$F$6=\"CIFDN\",IF('Blank - Request Form'!D221=0,\"\",'Blank - Request Form'!D221),IF('Blank - Request Form'!$F$7=\"CIFDN\",IF('Blank - Request Form'!M221=0,\"\",'Blank - Request Form'!M221),\"\"))","v":""},{"$f":"IF('Blank - Request Form'!$F$6=\"CIFDN\",IF('Blank - Request Form'!E221=0,\"\",'Blank - Request Form'!E221),IF('Blank - Request Form'!$F$7=\"CIFDN\",IF('Blank - Request Form'!N221=0,\"\",'Blank - Request Form'!N221),\"\"))","v":""},{"$f":"IF('Blank - Request Form'!$F$6=\"CIFDN\",IF(OR('Blank - Request Form'!F221=\"000\",'Blank - Request Form'!F221=0),\"\",'Blank - Request Form'!F221),IF('Blank - Request Form'!$F$7=\"CIFDN\",IF(OR('Blank - Request Form'!O221=\"000\",'Blank - Request Form'!O221=0),\"\",'Blank - Request Form'!O221),\"\"))","v":""},{"$f":"IF('Blank - Request Form'!$F$6=\"CIFDN\",IF(OR('Blank - Request Form'!G221=\"0\",'Blank - Request Form'!G221=\"00000\",'Blank - Request Form'!G221=0),\"\",'Blank - Request Form'!G221),IF('Blank - Request Form'!$F$7=\"CIFDN\",IF(OR('Blank - Request Form'!P221=\"0\",'Blank - Request Form'!P221=\"00000\",'Blank - Request Form'!P221=0),\"\",'Blank - Request Form'!P221),\"\"))","v":""},{"$f":"IF('Blank - Request Form'!$F$6=\"CIFDN\",IF(OR('Blank - Request Form'!H221=\"0\",'Blank - Request Form'!H221=\"00000\",'Blank - Request Form'!H221=0),\"\",'Blank - Request Form'!H221),IF('Blank - Request Form'!$F$7=\"CIFDN\",IF(OR('Blank - Request Form'!Q221=\"0\",'Blank - Request Form'!Q221=\"00000\",'Blank - Request Form'!Q221=0),\"\",'Blank - Request Form'!Q221),\"\"))","v":""},{"$f":"IF('Blank - Request Form'!$F$6=\"CIFDN\",IF(OR('Blank - Request Form'!I221=\"0\",'Blank - Request Form'!I221=\"00000\",'Blank - Request Form'!I221=0),\"\",'Blank - Request Form'!I221),IF('Blank - Request Form'!$F$7=\"CIFDN\",IF(OR('Blank - Request Form'!R221=\"0\",'Blank - Request Form'!R221=\"00000\",'Blank - Request Form'!R221=0),\"\",'Blank - Request Form'!R221),\"\"))","v":""},null,{"$f":"IF('Blank - Request Form'!$F$6=\"CIFDN\",IF('Blank - Request Form'!K221=0,\"\",'Blank - Request Form'!K221),IF('Blank - Request Form'!$F$7=\"CIFDN\",IF('Blank - Request Form'!T221=0,\"\",'Blank - Request Form'!T221),\"\"))","v":""},null,null,null,{"$f":"IF(M187<>\"\",'Blank - Request Form'!$M$2,\"\")","v":""},{"$f":"IF('Blank - Request Form'!$F$6=\"CIFDN\",IF('Blank - Request Form'!J221=0,\"\",'Blank - Request Form'!J221),IF('Blank - Request Form'!$F$7=\"CIFDN\",IF('Blank - Request Form'!S221=0,\"\",'Blank - Request Form'!S221),\"\"))","v":""},"",187]
[{"$f":"IF('Blank - Request Form'!$F$6=\"CIFDN\",IF('Blank - Request Form'!D222=0,\"\",'Blank - Request Form'!D222),IF('Blank - Request Form'!$F$7=\"CIFDN\",IF('Blank - Request Form'!M222=0,\"\",'Blank - Request Form'!M222),\"\"))","v":""},{"$f":"IF('Blank - Request Form'!$F$6=\"CIFDN\",IF('Blank - Request Form'!E222=0,\"\",'Blank - Request Form'!E222),IF('Blank - Request Form'!$F$7=\"CIFDN\",IF('Blank - Request Form'!N222=0,\"\",'Blank - Request Form'!N222),\"\"))","v":""},{"$f":"IF('Blank - Request Form'!$F$6=\"CIFDN\",IF(OR('Blank - Request Form'!F222=\"000\",'Blank - Request Form'!F222=0),\"\",'Blank - Request Form'!F222),IF('Blank - Request Form'!$F$7=\"CIFDN\",IF(OR('Blank - Request Form'!O222=\"000\",'Blank - Request Form'!O222=0),\"\",'Blank - Request Form'!O222),\"\"))","v":""},{"$f":"IF('Blank - Request Form'!$F$6=\"CIFDN\",IF(OR('Blank - Request Form'!G222=\"0\",'Blank - Request Form'!G222=\"00000\",'Blank - Request Form'!G222=0),\"\",'Blank - Request Form'!G222),IF('Blank - Request Form'!$F$7=\"CIFDN\",IF(OR('Blank - Request Form'!P222=\"0\",'Blank - Request Form'!P222=\"00000\",'Blank - Request Form'!P222=0),\"\",'Blank - Request Form'!P222),\"\"))","v":""},{"$f":"IF('Blank - Request Form'!$F$6=\"CIFDN\",IF(OR('Blank - Request Form'!H222=\"0\",'Blank - Request Form'!H222=\"00000\",'Blank - Request Form'!H222=0),\"\",'Blank - Request Form'!H222),IF('Blank - Request Form'!$F$7=\"CIFDN\",IF(OR('Blank - Request Form'!Q222=\"0\",'Blank - Request Form'!Q222=\"00000\",'Blank - Request Form'!Q222=0),\"\",'Blank - Request Form'!Q222),\"\"))","v":""},{"$f":"IF('Blank - Request Form'!$F$6=\"CIFDN\",IF(OR('Blank - Request Form'!I222=\"0\",'Blank - Request Form'!I222=\"00000\",'Blank - Request Form'!I222=0),\"\",'Blank - Request Form'!I222),IF('Blank - Request Form'!$F$7=\"CIFDN\",IF(OR('Blank - Request Form'!R222=\"0\",'Blank - Request Form'!R222=\"00000\",'Blank - Request Form'!R222=0),\"\",'Blank - Request Form'!R222),\"\"))","v":""},null,{"$f":"IF('Blank - Request Form'!$F$6=\"CIFDN\",IF('Blank - Request Form'!K222=0,\"\",'Blank - Request Form'!K222),IF('Blank - Request Form'!$F$7=\"CIFDN\",IF('Blank - Request Form'!T222=0,\"\",'Blank - Request Form'!T222),\"\"))","v":""},null,null,null,{"$f":"IF(M188<>\"\",'Blank - Request Form'!$M$2,\"\")","v":""},{"$f":"IF('Blank - Request Form'!$F$6=\"CIFDN\",IF('Blank - Request Form'!J222=0,\"\",'Blank - Request Form'!J222),IF('Blank - Request Form'!$F$7=\"CIFDN\",IF('Blank - Request Form'!S222=0,\"\",'Blank - Request Form'!S222),\"\"))","v":""},"",188]
[{"$f":"IF('Blank - Request Form'!$F$6=\"CIFDN\",IF('Blank - Request Form'!D223=0,\"\",'Blank - Request Form'!D223),IF('Blank - Request Form'!$F$7=\"CIFDN\",IF('Blank - Request Form'!M223=0,\"\",'Blank - Request Form'!M223),\"\"))","v":""},{"$f":"IF('Blank - Request Form'!$F$6=\"CIFDN\",IF('Blank - Request Form'!E223=0,\"\",'Blank - Request Form'!E223),IF('Blank - Request Form'!$F$7=\"CIFDN\",IF('Blank - Request Form'!N223=0,\"\",'Blank - Request Form'!N223),\"\"))","v":""},{"$f":"IF('Blank - Request Form'!$F$6=\"CIFDN\",IF(OR('Blank - Request Form'!F223=\"000\",'Blank - Request Form'!F223=0),\"\",'Blank - Request Form'!F223),IF('Blank - Request Form'!$F$7=\"CIFDN\",IF(OR('Blank - Request Form'!O223=\"000\",'Blank - Request Form'!O223=0),\"\",'Blank - Request Form'!O223),\"\"))","v":""},{"$f":"IF('Blank - Request Form'!$F$6=\"CIFDN\",IF(OR('Blank - Request Form'!G223=\"0\",'Blank - Request Form'!G223=\"00000\",'Blank - Request Form'!G223=0),\"\",'Blank - Request Form'!G223),IF('Blank - Request Form'!$F$7=\"CIFDN\",IF(OR('Blank - Request Form'!P223=\"0\",'Blank - Request Form'!P223=\"00000\",'Blank - Request Form'!P223=0),\"\",'Blank - Request Form'!P223),\"\"))","v":""},{"$f":"IF('Blank - Request Form'!$F$6=\"CIFDN\",IF(OR('Blank - Request Form'!H223=\"0\",'Blank - Request Form'!H223=\"00000\",'Blank - Request Form'!H223=0),\"\",'Blank - Request Form'!H223),IF('Blank - Request Form'!$F$7=\"CIFDN\",IF(OR('Blank - Request Form'!Q223=\"0\",'Blank - Request Form'!Q223=\"00000\",'Blank - Request Form'!Q223=0),\"\",'Blank - Request Form'!Q223),\"\"))","v":""},{"$f":"IF('Blank - Request Form'!$F$6=\"CIFDN\",IF(OR('Blank - Request Form'!I223=\"0\",'Blank - Request Form'!I223=\"00000\",'Blank - Request Form'!I223=0),\"\",'Blank - Request Form'!I223),IF('Blank - Request Form'!$F$7=\"CIFDN\",IF(OR('Blank - Request Form'!R223=\"0\",'Blank - Request Form'!R223=\"00000\",'Blank - Request Form'!R223=0),\"\",'Blank - Request Form'!R223),\"\"))","v":""},null,{"$f":"IF('Blank - Request Form'!$F$6=\"CIFDN\",IF('Blank - Request Form'!K223=0,\"\",'Blank - Request Form'!K223),IF('Blank - Request Form'!$F$7=\"CIFDN\",IF('Blank - Request Form'!T223=0,\"\",'Blank - Request Form'!T223),\"\"))","v":""},null,null,null,{"$f":"IF(M189<>\"\",'Blank - Request Form'!$M$2,\"\")","v":""},{"$f":"IF('Blank - Request Form'!$F$6=\"CIFDN\",IF('Blank - Request Form'!J223=0,\"\",'Blank - Request Form'!J223),IF('Blank - Request Form'!$F$7=\"CIFDN\",IF('Blank - Request Form'!S223=0,\"\",'Blank - Request Form'!S223),\"\"))","v":""},"",189]
[{"$f":"IF('Blank - Request Form'!$F$6=\"CIFDN\",IF('Blank - Request Form'!D224=0,\"\",'Blank - Request Form'!D224),IF('Blank - Request Form'!$F$7=\"CIFDN\",IF('Blank - Request Form'!M224=0,\"\",'Blank - Request Form'!M224),\"\"))","v":""},{"$f":"IF('Blank - Request Form'!$F$6=\"CIFDN\",IF('Blank - Request Form'!E224=0,\"\",'Blank - Request Form'!E224),IF('Blank - Request Form'!$F$7=\"CIFDN\",IF('Blank - Request Form'!N224=0,\"\",'Blank - Request Form'!N224),\"\"))","v":""},{"$f":"IF('Blank - Request Form'!$F$6=\"CIFDN\",IF(OR('Blank - Request Form'!F224=\"000\",'Blank - Request Form'!F224=0),\"\",'Blank - Request Form'!F224),IF('Blank - Request Form'!$F$7=\"CIFDN\",IF(OR('Blank - Request Form'!O224=\"000\",'Blank - Request Form'!O224=0),\"\",'Blank - Request Form'!O224),\"\"))","v":""},{"$f":"IF('Blank - Request Form'!$F$6=\"CIFDN\",IF(OR('Blank - Request Form'!G224=\"0\",'Blank - Request Form'!G224=\"00000\",'Blank - Request Form'!G224=0),\"\",'Blank - Request Form'!G224),IF('Blank - Request Form'!$F$7=\"CIFDN\",IF(OR('Blank - Request Form'!P224=\"0\",'Blank - Request Form'!P224=\"00000\",'Blank - Request Form'!P224=0),\"\",'Blank - Request Form'!P224),\"\"))","v":""},{"$f":"IF('Blank - Request Form'!$F$6=\"CIFDN\",IF(OR('Blank - Request Form'!H224=\"0\",'Blank - Request Form'!H224=\"00000\",'Blank - Request Form'!H224=0),\"\",'Blank - Request Form'!H224),IF('Blank - Request Form'!$F$7=\"CIFDN\",IF(OR('Blank - Request Form'!Q224=\"0\",'Blank - Request Form'!Q224=\"00000\",'Blank - Request Form'!Q224=0),\"\",'Blank - Request Form'!Q224),\"\"))","v":""},{"$f":"IF('Blank - Request Form'!$F$6=\"CIFDN\",IF(OR('Blank - Request Form'!I224=\"0\",'Blank - Request Form'!I224=\"00000\",'Blank - Request Form'!I224=0),\"\",'Blank - Request Form'!I224),IF('Blank - Request Form'!$F$7=\"CIFDN\",IF(OR('Blank - Request Form'!R224=\"0\",'Blank - Request Form'!R224=\"00000\",'Blank - Request Form'!R224=0),\"\",'Blank - Request Form'!R224),\"\"))","v":""},null,{"$f":"IF('Blank - Request Form'!$F$6=\"CIFDN\",IF('Blank - Request Form'!K224=0,\"\",'Blank - Request Form'!K224),IF('Blank - Request Form'!$F$7=\"CIFDN\",IF('Blank - Request Form'!T224=0,\"\",'Blank - Request Form'!T224),\"\"))","v":""},null,null,null,{"$f":"IF(M190<>\"\",'Blank - Request Form'!$M$2,\"\")","v":""},{"$f":"IF('Blank - Request Form'!$F$6=\"CIFDN\",IF('Blank - Request Form'!J224=0,\"\",'Blank - Request Form'!J224),IF('Blank - Request Form'!$F$7=\"CIFDN\",IF('Blank - Request Form'!S224=0,\"\",'Blank - Request Form'!S224),\"\"))","v":""},"",190]
[{"$f":"IF('Blank - Request Form'!$F$6=\"CIFDN\",IF('Blank - Request Form'!D225=0,\"\",'Blank - Request Form'!D225),IF('Blank - Request Form'!$F$7=\"CIFDN\",IF('Blank - Request Form'!M225=0,\"\",'Blank - Request Form'!M225),\"\"))","v":""},{"$f":"IF('Blank - Request Form'!$F$6=\"CIFDN\",IF('Blank - Request Form'!E225=0,\"\",'Blank - Request Form'!E225),IF('Blank - Request Form'!$F$7=\"CIFDN\",IF('Blank - Request Form'!N225=0,\"\",'Blank - Request Form'!N225),\"\"))","v":""},{"$f":"IF('Blank - Request Form'!$F$6=\"CIFDN\",IF(OR('Blank - Request Form'!F225=\"000\",'Blank - Request Form'!F225=0),\"\",'Blank - Request Form'!F225),IF('Blank - Request Form'!$F$7=\"CIFDN\",IF(OR('Blank - Request Form'!O225=\"000\",'Blank - Request Form'!O225=0),\"\",'Blank - Request Form'!O225),\"\"))","v":""},{"$f":"IF('Blank - Request Form'!$F$6=\"CIFDN\",IF(OR('Blank - Request Form'!G225=\"0\",'Blank - Request Form'!G225=\"00000\",'Blank - Request Form'!G225=0),\"\",'Blank - Request Form'!G225),IF('Blank - Request Form'!$F$7=\"CIFDN\",IF(OR('Blank - Request Form'!P225=\"0\",'Blank - Request Form'!P225=\"00000\",'Blank - Request Form'!P225=0),\"\",'Blank - Request Form'!P225),\"\"))","v":""},{"$f":"IF('Blank - Request Form'!$F$6=\"CIFDN\",IF(OR('Blank - Request Form'!H225=\"0\",'Blank - Request Form'!H225=\"00000\",'Blank - Request Form'!H225=0),\"\",'Blank - Request Form'!H225),IF('Blank - Request Form'!$F$7=\"CIFDN\",IF(OR('Blank - Request Form'!Q225=\"0\",'Blank - Request Form'!Q225=\"00000\",'Blank - Request Form'!Q225=0),\"\",'Blank - Request Form'!Q225),\"\"))","v":""},{"$f":"IF('Blank - Request Form'!$F$6=\"CIFDN\",IF(OR('Blank - Request Form'!I225=\"0\",'Blank - Request Form'!I225=\"00000\",'Blank - Request Form'!I225=0),\"\",'Blank - Request Form'!I225),IF('Blank - Request Form'!$F$7=\"CIFDN\",IF(OR('Blank - Request Form'!R225=\"0\",'Blank - Request Form'!R225=\"00000\",'Blank - Request Form'!R225=0),\"\",'Blank - Request Form'!R225),\"\"))","v":""},null,{"$f":"IF('Blank - Request Form'!$F$6=\"CIFDN\",IF('Blank - Request Form'!K225=0,\"\",'Blank - Request Form'!K225),IF('Blank - Request Form'!$F$7=\"CIFDN\",IF('Blank - Request Form'!T225=0,\"\",'Blank - Request Form'!T225),\"\"))","v":""},null,null,null,{"$f":"IF(M191<>\"\",'Blank - Request Form'!$M$2,\"\")","v":""},{"$f":"IF('Blank - Request Form'!$F$6=\"CIFDN\",IF('Blank - Request Form'!J225=0,\"\",'Blank - Request Form'!J225),IF('Blank - Request Form'!$F$7=\"CIFDN\",IF('Blank - Request Form'!S225=0,\"\",'Blank - Request Form'!S225),\"\"))","v":""},"",191]
[{"$f":"IF('Blank - Request Form'!$F$6=\"CIFDN\",IF('Blank - Request Form'!D226=0,\"\",'Blank - Request Form'!D226),IF('Blank - Request Form'!$F$7=\"CIFDN\",IF('Blank - Request Form'!M226=0,\"\",'Blank - Request Form'!M226),\"\"))","v":""},{"$f":"IF('Blank - Request Form'!$F$6=\"CIFDN\",IF('Blank - Request Form'!E226=0,\"\",'Blank - Request Form'!E226),IF('Blank - Request Form'!$F$7=\"CIFDN\",IF('Blank - Request Form'!N226=0,\"\",'Blank - Request Form'!N226),\"\"))","v":""},{"$f":"IF('Blank - Request Form'!$F$6=\"CIFDN\",IF(OR('Blank - Request Form'!F226=\"000\",'Blank - Request Form'!F226=0),\"\",'Blank - Request Form'!F226),IF('Blank - Request Form'!$F$7=\"CIFDN\",IF(OR('Blank - Request Form'!O226=\"000\",'Blank - Request Form'!O226=0),\"\",'Blank - Request Form'!O226),\"\"))","v":""},{"$f":"IF('Blank - Request Form'!$F$6=\"CIFDN\",IF(OR('Blank - Request Form'!G226=\"0\",'Blank - Request Form'!G226=\"00000\",'Blank - Request Form'!G226=0),\"\",'Blank - Request Form'!G226),IF('Blank - Request Form'!$F$7=\"CIFDN\",IF(OR('Blank - Request Form'!P226=\"0\",'Blank - Request Form'!P226=\"00000\",'Blank - Request Form'!P226=0),\"\",'Blank - Request Form'!P226),\"\"))","v":""},{"$f":"IF('Blank - Request Form'!$F$6=\"CIFDN\",IF(OR('Blank - Request Form'!H226=\"0\",'Blank - Request Form'!H226=\"00000\",'Blank - Request Form'!H226=0),\"\",'Blank - Request Form'!H226),IF('Blank - Request Form'!$F$7=\"CIFDN\",IF(OR('Blank - Request Form'!Q226=\"0\",'Blank - Request Form'!Q226=\"00000\",'Blank - Request Form'!Q226=0),\"\",'Blank - Request Form'!Q226),\"\"))","v":""},{"$f":"IF('Blank - Request Form'!$F$6=\"CIFDN\",IF(OR('Blank - Request Form'!I226=\"0\",'Blank - Request Form'!I226=\"00000\",'Blank - Request Form'!I226=0),\"\",'Blank - Request Form'!I226),IF('Blank - Request Form'!$F$7=\"CIFDN\",IF(OR('Blank - Request Form'!R226=\"0\",'Blank - Request Form'!R226=\"00000\",'Blank - Request Form'!R226=0),\"\",'Blank - Request Form'!R226),\"\"))","v":""},null,{"$f":"IF('Blank - Request Form'!$F$6=\"CIFDN\",IF('Blank - Request Form'!K226=0,\"\",'Blank - Request Form'!K226),IF('Blank - Request Form'!$F$7=\"CIFDN\",IF('Blank - Request Form'!T226=0,\"\",'Blank - Request Form'!T226),\"\"))","v":""},null,null,null,{"$f":"IF(M192<>\"\",'Blank - Request Form'!$M$2,\"\")","v":""},{"$f":"IF('Blank - Request Form'!$F$6=\"CIFDN\",IF('Blank - Request Form'!J226=0,\"\",'Blank - Request Form'!J226),IF('Blank - Request Form'!$F$7=\"CIFDN\",IF('Blank - Request Form'!S226=0,\"\",'Blank - Request Form'!S226),\"\"))","v":""},"",192]
[{"$f":"IF('Blank - Request Form'!$F$6=\"CIFDN\",IF('Blank - Request Form'!D227=0,\"\",'Blank - Request Form'!D227),IF('Blank - Request Form'!$F$7=\"CIFDN\",IF('Blank - Request Form'!M227=0,\"\",'Blank - Request Form'!M227),\"\"))","v":""},{"$f":"IF('Blank - Request Form'!$F$6=\"CIFDN\",IF('Blank - Request Form'!E227=0,\"\",'Blank - Request Form'!E227),IF('Blank - Request Form'!$F$7=\"CIFDN\",IF('Blank - Request Form'!N227=0,\"\",'Blank - Request Form'!N227),\"\"))","v":""},{"$f":"IF('Blank - Request Form'!$F$6=\"CIFDN\",IF(OR('Blank - Request Form'!F227=\"000\",'Blank - Request Form'!F227=0),\"\",'Blank - Request Form'!F227),IF('Blank - Request Form'!$F$7=\"CIFDN\",IF(OR('Blank - Request Form'!O227=\"000\",'Blank - Request Form'!O227=0),\"\",'Blank - Request Form'!O227),\"\"))","v":""},{"$f":"IF('Blank - Request Form'!$F$6=\"CIFDN\",IF(OR('Blank - Request Form'!G227=\"0\",'Blank - Request Form'!G227=\"00000\",'Blank - Request Form'!G227=0),\"\",'Blank - Request Form'!G227),IF('Blank - Request Form'!$F$7=\"CIFDN\",IF(OR('Blank - Request Form'!P227=\"0\",'Blank - Request Form'!P227=\"00000\",'Blank - Request Form'!P227=0),\"\",'Blank - Request Form'!P227),\"\"))","v":""},{"$f":"IF('Blank - Request Form'!$F$6=\"CIFDN\",IF(OR('Blank - Request Form'!H227=\"0\",'Blank - Request Form'!H227=\"00000\",'Blank - Request Form'!H227=0),\"\",'Blank - Request Form'!H227),IF('Blank - Request Form'!$F$7=\"CIFDN\",IF(OR('Blank - Request Form'!Q227=\"0\",'Blank - Request Form'!Q227=\"00000\",'Blank - Request Form'!Q227=0),\"\",'Blank - Request Form'!Q227),\"\"))","v":""},{"$f":"IF('Blank - Request Form'!$F$6=\"CIFDN\",IF(OR('Blank - Request Form'!I227=\"0\",'Blank - Request Form'!I227=\"00000\",'Blank - Request Form'!I227=0),\"\",'Blank - Request Form'!I227),IF('Blank - Request Form'!$F$7=\"CIFDN\",IF(OR('Blank - Request Form'!R227=\"0\",'Blank - Request Form'!R227=\"00000\",'Blank - Request Form'!R227=0),\"\",'Blank - Request Form'!R227),\"\"))","v":""},null,{"$f":"IF('Blank - Request Form'!$F$6=\"CIFDN\",IF('Blank - Request Form'!K227=0,\"\",'Blank - Request Form'!K227),IF('Blank - Request Form'!$F$7=\"CIFDN\",IF('Blank - Request Form'!T227=0,\"\",'Blank - Request Form'!T227),\"\"))","v":""},null,null,null,{"$f":"IF(M193<>\"\",'Blank - Request Form'!$M$2,\"\")","v":""},{"$f":"IF('Blank - Request Form'!$F$6=\"CIFDN\",IF('Blank - Request Form'!J227=0,\"\",'Blank - Request Form'!J227),IF('Blank - Request Form'!$F$7=\"CIFDN\",IF('Blank - Request Form'!S227=0,\"\",'Blank - Request Form'!S227),\"\"))","v":""},"",193]
[{"$f":"IF('Blank - Request Form'!$F$6=\"CIFDN\",IF('Blank - Request Form'!D228=0,\"\",'Blank - Request Form'!D228),IF('Blank - Request Form'!$F$7=\"CIFDN\",IF('Blank - Request Form'!M228=0,\"\",'Blank - Request Form'!M228),\"\"))","v":""},{"$f":"IF('Blank - Request Form'!$F$6=\"CIFDN\",IF('Blank - Request Form'!E228=0,\"\",'Blank - Request Form'!E228),IF('Blank - Request Form'!$F$7=\"CIFDN\",IF('Blank - Request Form'!N228=0,\"\",'Blank - Request Form'!N228),\"\"))","v":""},{"$f":"IF('Blank - Request Form'!$F$6=\"CIFDN\",IF(OR('Blank - Request Form'!F228=\"000\",'Blank - Request Form'!F228=0),\"\",'Blank - Request Form'!F228),IF('Blank - Request Form'!$F$7=\"CIFDN\",IF(OR('Blank - Request Form'!O228=\"000\",'Blank - Request Form'!O228=0),\"\",'Blank - Request Form'!O228),\"\"))","v":""},{"$f":"IF('Blank - Request Form'!$F$6=\"CIFDN\",IF(OR('Blank - Request Form'!G228=\"0\",'Blank - Request Form'!G228=\"00000\",'Blank - Request Form'!G228=0),\"\",'Blank - Request Form'!G228),IF('Blank - Request Form'!$F$7=\"CIFDN\",IF(OR('Blank - Request Form'!P228=\"0\",'Blank - Request Form'!P228=\"00000\",'Blank - Request Form'!P228=0),\"\",'Blank - Request Form'!P228),\"\"))","v":""},{"$f":"IF('Blank - Request Form'!$F$6=\"CIFDN\",IF(OR('Blank - Request Form'!H228=\"0\",'Blank - Request Form'!H228=\"00000\",'Blank - Request Form'!H228=0),\"\",'Blank - Request Form'!H228),IF('Blank - Request Form'!$F$7=\"CIFDN\",IF(OR('Blank - Request Form'!Q228=\"0\",'Blank - Request Form'!Q228=\"00000\",'Blank - Request Form'!Q228=0),\"\",'Blank - Request Form'!Q228),\"\"))","v":""},{"$f":"IF('Blank - Request Form'!$F$6=\"CIFDN\",IF(OR('Blank - Request Form'!I228=\"0\",'Blank - Request Form'!I228=\"00000\",'Blank - Request Form'!I228=0),\"\",'Blank - Request Form'!I228),IF('Blank - Request Form'!$F$7=\"CIFDN\",IF(OR('Blank - Request Form'!R228=\"0\",'Blank - Request Form'!R228=\"00000\",'Blank - Request Form'!R228=0),\"\",'Blank - Request Form'!R228),\"\"))","v":""},null,{"$f":"IF('Blank - Request Form'!$F$6=\"CIFDN\",IF('Blank - Request Form'!K228=0,\"\",'Blank - Request Form'!K228),IF('Blank - Request Form'!$F$7=\"CIFDN\",IF('Blank - Request Form'!T228=0,\"\",'Blank - Request Form'!T228),\"\"))","v":""},null,null,null,{"$f":"IF(M194<>\"\",'Blank - Request Form'!$M$2,\"\")","v":""},{"$f":"IF('Blank - Request Form'!$F$6=\"CIFDN\",IF('Blank - Request Form'!J228=0,\"\",'Blank - Request Form'!J228),IF('Blank - Request Form'!$F$7=\"CIFDN\",IF('Blank - Request Form'!S228=0,\"\",'Blank - Request Form'!S228),\"\"))","v":""},"",194]
[{"$f":"IF('Blank - Request Form'!$F$6=\"CIFDN\",IF('Blank - Request Form'!D229=0,\"\",'Blank - Request Form'!D229),IF('Blank - Request Form'!$F$7=\"CIFDN\",IF('Blank - Request Form'!M229=0,\"\",'Blank - Request Form'!M229),\"\"))","v":""},{"$f":"IF('Blank - Request Form'!$F$6=\"CIFDN\",IF('Blank - Request Form'!E229=0,\"\",'Blank - Request Form'!E229),IF('Blank - Request Form'!$F$7=\"CIFDN\",IF('Blank - Request Form'!N229=0,\"\",'Blank - Request Form'!N229),\"\"))","v":""},{"$f":"IF('Blank - Request Form'!$F$6=\"CIFDN\",IF(OR('Blank - Request Form'!F229=\"000\",'Blank - Request Form'!F229=0),\"\",'Blank - Request Form'!F229),IF('Blank - Request Form'!$F$7=\"CIFDN\",IF(OR('Blank - Request Form'!O229=\"000\",'Blank - Request Form'!O229=0),\"\",'Blank - Request Form'!O229),\"\"))","v":""},{"$f":"IF('Blank - Request Form'!$F$6=\"CIFDN\",IF(OR('Blank - Request Form'!G229=\"0\",'Blank - Request Form'!G229=\"00000\",'Blank - Request Form'!G229=0),\"\",'Blank - Request Form'!G229),IF('Blank - Request Form'!$F$7=\"CIFDN\",IF(OR('Blank - Request Form'!P229=\"0\",'Blank - Request Form'!P229=\"00000\",'Blank - Request Form'!P229=0),\"\",'Blank - Request Form'!P229),\"\"))","v":""},{"$f":"IF('Blank - Request Form'!$F$6=\"CIFDN\",IF(OR('Blank - Request Form'!H229=\"0\",'Blank - Request Form'!H229=\"00000\",'Blank - Request Form'!H229=0),\"\",'Blank - Request Form'!H229),IF('Blank - Request Form'!$F$7=\"CIFDN\",IF(OR('Blank - Request Form'!Q229=\"0\",'Blank - Request Form'!Q229=\"00000\",'Blank - Request Form'!Q229=0),\"\",'Blank - Request Form'!Q229),\"\"))","v":""},{"$f":"IF('Blank - Request Form'!$F$6=\"CIFDN\",IF(OR('Blank - Request Form'!I229=\"0\",'Blank - Request Form'!I229=\"00000\",'Blank - Request Form'!I229=0),\"\",'Blank - Request Form'!I229),IF('Blank - Request Form'!$F$7=\"CIFDN\",IF(OR('Blank - Request Form'!R229=\"0\",'Blank - Request Form'!R229=\"00000\",'Blank - Request Form'!R229=0),\"\",'Blank - Request Form'!R229),\"\"))","v":""},null,{"$f":"IF('Blank - Request Form'!$F$6=\"CIFDN\",IF('Blank - Request Form'!K229=0,\"\",'Blank - Request Form'!K229),IF('Blank - Request Form'!$F$7=\"CIFDN\",IF('Blank - Request Form'!T229=0,\"\",'Blank - Request Form'!T229),\"\"))","v":""},null,null,null,{"$f":"IF(M195<>\"\",'Blank - Request Form'!$M$2,\"\")","v":""},{"$f":"IF('Blank - Request Form'!$F$6=\"CIFDN\",IF('Blank - Request Form'!J229=0,\"\",'Blank - Request Form'!J229),IF('Blank - Request Form'!$F$7=\"CIFDN\",IF('Blank - Request Form'!S229=0,\"\",'Blank - Request Form'!S229),\"\"))","v":""},"",195]
[{"$f":"IF('Blank - Request Form'!$F$6=\"CIFDN\",IF('Blank - Request Form'!D230=0,\"\",'Blank - Request Form'!D230),IF('Blank - Request Form'!$F$7=\"CIFDN\",IF('Blank - Request Form'!M230=0,\"\",'Blank - Request Form'!M230),\"\"))","v":""},{"$f":"IF('Blank - Request Form'!$F$6=\"CIFDN\",IF('Blank - Request Form'!E230=0,\"\",'Blank - Request Form'!E230),IF('Blank - Request Form'!$F$7=\"CIFDN\",IF('Blank - Request Form'!N230=0,\"\",'Blank - Request Form'!N230),\"\"))","v":""},{"$f":"IF('Blank - Request Form'!$F$6=\"CIFDN\",IF(OR('Blank - Request Form'!F230=\"000\",'Blank - Request Form'!F230=0),\"\",'Blank - Request Form'!F230),IF('Blank - Request Form'!$F$7=\"CIFDN\",IF(OR('Blank - Request Form'!O230=\"000\",'Blank - Request Form'!O230=0),\"\",'Blank - Request Form'!O230),\"\"))","v":""},{"$f":"IF('Blank - Request Form'!$F$6=\"CIFDN\",IF(OR('Blank - Request Form'!G230=\"0\",'Blank - Request Form'!G230=\"00000\",'Blank - Request Form'!G230=0),\"\",'Blank - Request Form'!G230),IF('Blank - Request Form'!$F$7=\"CIFDN\",IF(OR('Blank - Request Form'!P230=\"0\",'Blank - Request Form'!P230=\"00000\",'Blank - Request Form'!P230=0),\"\",'Blank - Request Form'!P230),\"\"))","v":""},{"$f":"IF('Blank - Request Form'!$F$6=\"CIFDN\",IF(OR('Blank - Request Form'!H230=\"0\",'Blank - Request Form'!H230=\"00000\",'Blank - Request Form'!H230=0),\"\",'Blank - Request Form'!H230),IF('Blank - Request Form'!$F$7=\"CIFDN\",IF(OR('Blank - Request Form'!Q230=\"0\",'Blank - Request Form'!Q230=\"00000\",'Blank - Request Form'!Q230=0),\"\",'Blank - Request Form'!Q230),\"\"))","v":""},{"$f":"IF('Blank - Request Form'!$F$6=\"CIFDN\",IF(OR('Blank - Request Form'!I230=\"0\",'Blank - Request Form'!I230=\"00000\",'Blank - Request Form'!I230=0),\"\",'Blank - Request Form'!I230),IF('Blank - Request Form'!$F$7=\"CIFDN\",IF(OR('Blank - Request Form'!R230=\"0\",'Blank - Request Form'!R230=\"00000\",'Blank - Request Form'!R230=0),\"\",'Blank - Request Form'!R230),\"\"))","v":""},null,{"$f":"IF('Blank - Request Form'!$F$6=\"CIFDN\",IF('Blank - Request Form'!K230=0,\"\",'Blank - Request Form'!K230),IF('Blank - Request Form'!$F$7=\"CIFDN\",IF('Blank - Request Form'!T230=0,\"\",'Blank - Request Form'!T230),\"\"))","v":""},null,null,null,{"$f":"IF(M196<>\"\",'Blank - Request Form'!$M$2,\"\")","v":""},{"$f":"IF('Blank - Request Form'!$F$6=\"CIFDN\",IF('Blank - Request Form'!J230=0,\"\",'Blank - Request Form'!J230),IF('Blank - Request Form'!$F$7=\"CIFDN\",IF('Blank - Request Form'!S230=0,\"\",'Blank - Request Form'!S230),\"\"))","v":""},"",196]
[{"$f":"IF('Blank - Request Form'!$F$6=\"CIFDN\",IF('Blank - Request Form'!D231=0,\"\",'Blank - Request Form'!D231),IF('Blank - Request Form'!$F$7=\"CIFDN\",IF('Blank - Request Form'!M231=0,\"\",'Blank - Request Form'!M231),\"\"))","v":""},{"$f":"IF('Blank - Request Form'!$F$6=\"CIFDN\",IF('Blank - Request Form'!E231=0,\"\",'Blank - Request Form'!E231),IF('Blank - Request Form'!$F$7=\"CIFDN\",IF('Blank - Request Form'!N231=0,\"\",'Blank - Request Form'!N231),\"\"))","v":""},{"$f":"IF('Blank - Request Form'!$F$6=\"CIFDN\",IF(OR('Blank - Request Form'!F231=\"000\",'Blank - Request Form'!F231=0),\"\",'Blank - Request Form'!F231),IF('Blank - Request Form'!$F$7=\"CIFDN\",IF(OR('Blank - Request Form'!O231=\"000\",'Blank - Request Form'!O231=0),\"\",'Blank - Request Form'!O231),\"\"))","v":""},{"$f":"IF('Blank - Request Form'!$F$6=\"CIFDN\",IF(OR('Blank - Request Form'!G231=\"0\",'Blank - Request Form'!G231=\"00000\",'Blank - Request Form'!G231=0),\"\",'Blank - Request Form'!G231),IF('Blank - Request Form'!$F$7=\"CIFDN\",IF(OR('Blank - Request Form'!P231=\"0\",'Blank - Request Form'!P231=\"00000\",'Blank - Request Form'!P231=0),\"\",'Blank - Request Form'!P231),\"\"))","v":""},{"$f":"IF('Blank - Request Form'!$F$6=\"CIFDN\",IF(OR('Blank - Request Form'!H231=\"0\",'Blank - Request Form'!H231=\"00000\",'Blank - Request Form'!H231=0),\"\",'Blank - Request Form'!H231),IF('Blank - Request Form'!$F$7=\"CIFDN\",IF(OR('Blank - Request Form'!Q231=\"0\",'Blank - Request Form'!Q231=\"00000\",'Blank - Request Form'!Q231=0),\"\",'Blank - Request Form'!Q231),\"\"))","v":""},{"$f":"IF('Blank - Request Form'!$F$6=\"CIFDN\",IF(OR('Blank - Request Form'!I231=\"0\",'Blank - Request Form'!I231=\"00000\",'Blank - Request Form'!I231=0),\"\",'Blank - Request Form'!I231),IF('Blank - Request Form'!$F$7=\"CIFDN\",IF(OR('Blank - Request Form'!R231=\"0\",'Blank - Request Form'!R231=\"00000\",'Blank - Request Form'!R231=0),\"\",'Blank - Request Form'!R231),\"\"))","v":""},null,{"$f":"IF('Blank - Request Form'!$F$6=\"CIFDN\",IF('Blank - Request Form'!K231=0,\"\",'Blank - Request Form'!K231),IF('Blank - Request Form'!$F$7=\"CIFDN\",IF('Blank - Request Form'!T231=0,\"\",'Blank - Request Form'!T231),\"\"))","v":""},null,null,null,{"$f":"IF(M197<>\"\",'Blank - Request Form'!$M$2,\"\")","v":""},{"$f":"IF('Blank - Request Form'!$F$6=\"CIFDN\",IF('Blank - Request Form'!J231=0,\"\",'Blank - Request Form'!J231),IF('Blank - Request Form'!$F$7=\"CIFDN\",IF('Blank - Request Form'!S231=0,\"\",'Blank - Request Form'!S231),\"\"))","v":""},"",197]
[{"$f":"IF('Blank - Request Form'!$F$6=\"CIFDN\",IF('Blank - Request Form'!D232=0,\"\",'Blank - Request Form'!D232),IF('Blank - Request Form'!$F$7=\"CIFDN\",IF('Blank - Request Form'!M232=0,\"\",'Blank - Request Form'!M232),\"\"))","v":""},{"$f":"IF('Blank - Request Form'!$F$6=\"CIFDN\",IF('Blank - Request Form'!E232=0,\"\",'Blank - Request Form'!E232),IF('Blank - Request Form'!$F$7=\"CIFDN\",IF('Blank - Request Form'!N232=0,\"\",'Blank - Request Form'!N232),\"\"))","v":""},{"$f":"IF('Blank - Request Form'!$F$6=\"CIFDN\",IF(OR('Blank - Request Form'!F232=\"000\",'Blank - Request Form'!F232=0),\"\",'Blank - Request Form'!F232),IF('Blank - Request Form'!$F$7=\"CIFDN\",IF(OR('Blank - Request Form'!O232=\"000\",'Blank - Request Form'!O232=0),\"\",'Blank - Request Form'!O232),\"\"))","v":""},{"$f":"IF('Blank - Request Form'!$F$6=\"CIFDN\",IF(OR('Blank - Request Form'!G232=\"0\",'Blank - Request Form'!G232=\"00000\",'Blank - Request Form'!G232=0),\"\",'Blank - Request Form'!G232),IF('Blank - Request Form'!$F$7=\"CIFDN\",IF(OR('Blank - Request Form'!P232=\"0\",'Blank - Request Form'!P232=\"00000\",'Blank - Request Form'!P232=0),\"\",'Blank - Request Form'!P232),\"\"))","v":""},{"$f":"IF('Blank - Request Form'!$F$6=\"CIFDN\",IF(OR('Blank - Request Form'!H232=\"0\",'Blank - Request Form'!H232=\"00000\",'Blank - Request Form'!H232=0),\"\",'Blank - Request Form'!H232),IF('Blank - Request Form'!$F$7=\"CIFDN\",IF(OR('Blank - Request Form'!Q232=\"0\",'Blank - Request Form'!Q232=\"00000\",'Blank - Request Form'!Q232=0),\"\",'Blank - Request Form'!Q232),\"\"))","v":""},{"$f":"IF('Blank - Request Form'!$F$6=\"CIFDN\",IF(OR('Blank - Request Form'!I232=\"0\",'Blank - Request Form'!I232=\"00000\",'Blank - Request Form'!I232=0),\"\",'Blank - Request Form'!I232),IF('Blank - Request Form'!$F$7=\"CIFDN\",IF(OR('Blank - Request Form'!R232=\"0\",'Blank - Request Form'!R232=\"00000\",'Blank - Request Form'!R232=0),\"\",'Blank - Request Form'!R232),\"\"))","v":""},null,{"$f":"IF('Blank - Request Form'!$F$6=\"CIFDN\",IF('Blank - Request Form'!K232=0,\"\",'Blank - Request Form'!K232),IF('Blank - Request Form'!$F$7=\"CIFDN\",IF('Blank - Request Form'!T232=0,\"\",'Blank - Request Form'!T232),\"\"))","v":""},null,null,null,{"$f":"IF(M198<>\"\",'Blank - Request Form'!$M$2,\"\")","v":""},{"$f":"IF('Blank - Request Form'!$F$6=\"CIFDN\",IF('Blank - Request Form'!J232=0,\"\",'Blank - Request Form'!J232),IF('Blank - Request Form'!$F$7=\"CIFDN\",IF('Blank - Request Form'!S232=0,\"\",'Blank - Request Form'!S232),\"\"))","v":""},"",198]
[{"$f":"IF('Blank - Request Form'!$F$6=\"CIFDN\",IF('Blank - Request Form'!D233=0,\"\",'Blank - Request Form'!D233),IF('Blank - Request Form'!$F$7=\"CIFDN\",IF('Blank - Request Form'!M233=0,\"\",'Blank - Request Form'!M233),\"\"))","v":""},{"$f":"IF('Blank - Request Form'!$F$6=\"CIFDN\",IF('Blank - Request Form'!E233=0,\"\",'Blank - Request Form'!E233),IF('Blank - Request Form'!$F$7=\"CIFDN\",IF('Blank - Request Form'!N233=0,\"\",'Blank - Request Form'!N233),\"\"))","v":""},{"$f":"IF('Blank - Request Form'!$F$6=\"CIFDN\",IF(OR('Blank - Request Form'!F233=\"000\",'Blank - Request Form'!F233=0),\"\",'Blank - Request Form'!F233),IF('Blank - Request Form'!$F$7=\"CIFDN\",IF(OR('Blank - Request Form'!O233=\"000\",'Blank - Request Form'!O233=0),\"\",'Blank - Request Form'!O233),\"\"))","v":""},{"$f":"IF('Blank - Request Form'!$F$6=\"CIFDN\",IF(OR('Blank - Request Form'!G233=\"0\",'Blank - Request Form'!G233=\"00000\",'Blank - Request Form'!G233=0),\"\",'Blank - Request Form'!G233),IF('Blank - Request Form'!$F$7=\"CIFDN\",IF(OR('Blank - Request Form'!P233=\"0\",'Blank - Request Form'!P233=\"00000\",'Blank - Request Form'!P233=0),\"\",'Blank - Request Form'!P233),\"\"))","v":""},{"$f":"IF('Blank - Request Form'!$F$6=\"CIFDN\",IF(OR('Blank - Request Form'!H233=\"0\",'Blank - Request Form'!H233=\"00000\",'Blank - Request Form'!H233=0),\"\",'Blank - Request Form'!H233),IF('Blank - Request Form'!$F$7=\"CIFDN\",IF(OR('Blank - Request Form'!Q233=\"0\",'Blank - Request Form'!Q233=\"00000\",'Blank - Request Form'!Q233=0),\"\",'Blank - Request Form'!Q233),\"\"))","v":""},{"$f":"IF('Blank - Request Form'!$F$6=\"CIFDN\",IF(OR('Blank - Request Form'!I233=\"0\",'Blank - Request Form'!I233=\"00000\",'Blank - Request Form'!I233=0),\"\",'Blank - Request Form'!I233),IF('Blank - Request Form'!$F$7=\"CIFDN\",IF(OR('Blank - Request Form'!R233=\"0\",'Blank - Request Form'!R233=\"00000\",'Blank - Request Form'!R233=0),\"\",'Blank - Request Form'!R233),\"\"))","v":""},null,{"$f":"IF('Blank - Request Form'!$F$6=\"CIFDN\",IF('Blank - Request Form'!K233=0,\"\",'Blank - Request Form'!K233),IF('Blank - Request Form'!$F$7=\"CIFDN\",IF('Blank - Request Form'!T233=0,\"\",'Blank - Request Form'!T233),\"\"))","v":""},null,null,null,{"$f":"IF(M199<>\"\",'Blank - Request Form'!$M$2,\"\")","v":""},{"$f":"IF('Blank - Request Form'!$F$6=\"CIFDN\",IF('Blank - Request Form'!J233=0,\"\",'Blank - Request Form'!J233),IF('Blank - Request Form'!$F$7=\"CIFDN\",IF('Blank - Request Form'!S233=0,\"\",'Blank - Request Form'!S233),\"\"))","v":""},"",199]
[{"$f":"IF('Blank - Request Form'!$F$6=\"CIFDN\",IF('Blank - Request Form'!D234=0,\"\",'Blank - Request Form'!D234),IF('Blank - Request Form'!$F$7=\"CIFDN\",IF('Blank - Request Form'!M234=0,\"\",'Blank - Request Form'!M234),\"\"))","v":""},{"$f":"IF('Blank - Request Form'!$F$6=\"CIFDN\",IF('Blank - Request Form'!E234=0,\"\",'Blank - Request Form'!E234),IF('Blank - Request Form'!$F$7=\"CIFDN\",IF('Blank - Request Form'!N234=0,\"\",'Blank - Request Form'!N234),\"\"))","v":""},{"$f":"IF('Blank - Request Form'!$F$6=\"CIFDN\",IF(OR('Blank - Request Form'!F234=\"000\",'Blank - Request Form'!F234=0),\"\",'Blank - Request Form'!F234),IF('Blank - Request Form'!$F$7=\"CIFDN\",IF(OR('Blank - Request Form'!O234=\"000\",'Blank - Request Form'!O234=0),\"\",'Blank - Request Form'!O234),\"\"))","v":""},{"$f":"IF('Blank - Request Form'!$F$6=\"CIFDN\",IF(OR('Blank - Request Form'!G234=\"0\",'Blank - Request Form'!G234=\"00000\",'Blank - Request Form'!G234=0),\"\",'Blank - Request Form'!G234),IF('Blank - Request Form'!$F$7=\"CIFDN\",IF(OR('Blank - Request Form'!P234=\"0\",'Blank - Request Form'!P234=\"00000\",'Blank - Request Form'!P234=0),\"\",'Blank - Request Form'!P234),\"\"))","v":""},{"$f":"IF('Blank - Request Form'!$F$6=\"CIFDN\",IF(OR('Blank - Request Form'!H234=\"0\",'Blank - Request Form'!H234=\"00000\",'Blank - Request Form'!H234=0),\"\",'Blank - Request Form'!H234),IF('Blank - Request Form'!$F$7=\"CIFDN\",IF(OR('Blank - Request Form'!Q234=\"0\",'Blank - Request Form'!Q234=\"00000\",'Blank - Request Form'!Q234=0),\"\",'Blank - Request Form'!Q234),\"\"))","v":""},{"$f":"IF('Blank - Request Form'!$F$6=\"CIFDN\",IF(OR('Blank - Request Form'!I234=\"0\",'Blank - Request Form'!I234=\"00000\",'Blank - Request Form'!I234=0),\"\",'Blank - Request Form'!I234),IF('Blank - Request Form'!$F$7=\"CIFDN\",IF(OR('Blank - Request Form'!R234=\"0\",'Blank - Request Form'!R234=\"00000\",'Blank - Request Form'!R234=0),\"\",'Blank - Request Form'!R234),\"\"))","v":""},null,{"$f":"IF('Blank - Request Form'!$F$6=\"CIFDN\",IF('Blank - Request Form'!K234=0,\"\",'Blank - Request Form'!K234),IF('Blank - Request Form'!$F$7=\"CIFDN\",IF('Blank - Request Form'!T234=0,\"\",'Blank - Request Form'!T234),\"\"))","v":""},null,null,null,{"$f":"IF(M200<>\"\",'Blank - Request Form'!$M$2,\"\")","v":""},{"$f":"IF('Blank - Request Form'!$F$6=\"CIFDN\",IF('Blank - Request Form'!J234=0,\"\",'Blank - Request Form'!J234),IF('Blank - Request Form'!$F$7=\"CIFDN\",IF('Blank - Request Form'!S234=0,\"\",'Blank - Request Form'!S234),\"\"))","v":""},"",200]
[{"$f":"IF('Blank - Request Form'!$F$6=\"CIFDN\",IF('Blank - Request Form'!D235=0,\"\",'Blank - Request Form'!D235),IF('Blank - Request Form'!$F$7=\"CIFDN\",IF('Blank - Request Form'!M235=0,\"\",'Blank - Request Form'!M235),\"\"))","v":""},{"$f":"IF('Blank - Request Form'!$F$6=\"CIFDN\",IF('Blank - Request Form'!E235=0,\"\",'Blank - Request Form'!E235),IF('Blank - Request Form'!$F$7=\"CIFDN\",IF('Blank - Request Form'!N235=0,\"\",'Blank - Request Form'!N235),\"\"))","v":""},{"$f":"IF('Blank - Request Form'!$F$6=\"CIFDN\",IF(OR('Blank - Request Form'!F235=\"000\",'Blank - Request Form'!F235=0),\"\",'Blank - Request Form'!F235),IF('Blank - Request Form'!$F$7=\"CIFDN\",IF(OR('Blank - Request Form'!O235=\"000\",'Blank - Request Form'!O235=0),\"\",'Blank - Request Form'!O235),\"\"))","v":""},{"$f":"IF('Blank - Request Form'!$F$6=\"CIFDN\",IF(OR('Blank - Request Form'!G235=\"0\",'Blank - Request Form'!G235=\"00000\",'Blank - Request Form'!G235=0),\"\",'Blank - Request Form'!G235),IF('Blank - Request Form'!$F$7=\"CIFDN\",IF(OR('Blank - Request Form'!P235=\"0\",'Blank - Request Form'!P235=\"00000\",'Blank - Request Form'!P235=0),\"\",'Blank - Request Form'!P235),\"\"))","v":""},{"$f":"IF('Blank - Request Form'!$F$6=\"CIFDN\",IF(OR('Blank - Request Form'!H235=\"0\",'Blank - Request Form'!H235=\"00000\",'Blank - Request Form'!H235=0),\"\",'Blank - Request Form'!H235),IF('Blank - Request Form'!$F$7=\"CIFDN\",IF(OR('Blank - Request Form'!Q235=\"0\",'Blank - Request Form'!Q235=\"00000\",'Blank - Request Form'!Q235=0),\"\",'Blank - Request Form'!Q235),\"\"))","v":""},{"$f":"IF('Blank - Request Form'!$F$6=\"CIFDN\",IF(OR('Blank - Request Form'!I235=\"0\",'Blank - Request Form'!I235=\"00000\",'Blank - Request Form'!I235=0),\"\",'Blank - Request Form'!I235),IF('Blank - Request Form'!$F$7=\"CIFDN\",IF(OR('Blank - Request Form'!R235=\"0\",'Blank - Request Form'!R235=\"00000\",'Blank - Request Form'!R235=0),\"\",'Blank - Request Form'!R235),\"\"))","v":""},null,{"$f":"IF('Blank - Request Form'!$F$6=\"CIFDN\",IF('Blank - Request Form'!K235=0,\"\",'Blank - Request Form'!K235),IF('Blank - Request Form'!$F$7=\"CIFDN\",IF('Blank - Request Form'!T235=0,\"\",'Blank - Request Form'!T235),\"\"))","v":""},null,null,null,{"$f":"IF(M201<>\"\",'Blank - Request Form'!$M$2,\"\")","v":""},{"$f":"IF('Blank - Request Form'!$F$6=\"CIFDN\",IF('Blank - Request Form'!J235=0,\"\",'Blank - Request Form'!J235),IF('Blank - Request Form'!$F$7=\"CIFDN\",IF('Blank - Request Form'!S235=0,\"\",'Blank - Request Form'!S235),\"\"))","v":""},"",201]

{"sheet":"Macro Use Only","index":7,"n_rows":12,"n_cols":2,"rows_kept":12,"cut":false,"hidden":true,"merged":[]}
["This worksheet is only used to run macros, not for users."]
[false,"cijet@csuci.edu"]
[]
[]
[]
[]
[]
[]
[]
[]
[{"$f":"TODAY()","v":"2020-05-20"}]
[{"$f":"NOW()","v":"2020-05-20T22:08:41.700"}]

{"sheet":"Expense Transfer Justification","index":8,"n_rows":41,"n_cols":9,"rows_kept":41,"cut":false,"hidden":false,"merged":[[6,0,6,8],[7,0,7,8],[4,0,4,8],[11,3,11,4],[13,3,13,6],[26,0,26,8],[29,0,29,8],[32,0,32,8],[34,0,34,2],[34,3,34,4],[34,5,34,7],[35,0,35,2],[35,3,35,4],[36,0,36,2],[36,3,36,4],[35,5,35,7],[36,5,36,7],[37,0,37,2],[37,3,37,4],[38,0,38,2],[38,3,38,4],[37,5,37,7],[38,5,38,7],[39,0,39,2],[39,3,39,4],[40,0,40,2],[40,3,40,4],[39,5,39,7],[40,5,40,7]]}
[]
[]
[]
[]
["Expense Transfer Justification Form"]
[]
["This form is to be used to justify transfers of both payroll and operating expenses "]
["when the expenses being transferred are greater than 90-days old."]
[]
[]
[]
[null,"1. Date Transaction Posted:"]
[]
[null,"2. Vendor/Employee Name:"]
[]
[null,null,null,"Account","Fund","Dept","Program","Class","Project"]
[null,"3. Current Chartfield:"]
[]
[null,null,null,"Account","Fund","Dept","Program","Class","Project"]
[null,"4. Change Chartfield To: "]
[]
[null,"5. Amount:","$"]
[]
[null,"6. Please provide details as to why transaction was posted to the current chartfield and "]
[null,"    why the transfer is needed:"]
[]
[]
[]
[null,"7. Explain reason why transaction is being moved after 90-day time limit:"]
[]
[]
[null,"8. What steps have been taken to avoid a similar situation?"]
[]
[]
["Signature Approvals:",null,null,"Print Name",null,"Signature",null,null,"Date"]
["PI Signature (if applicable)"]
["Chair/Dept Budget"]
["AVP"]
["Division VP/Designee (if applicable)"]
["Grant Accounting (if applicable)"]
["AVP for Financial Services"]